{"text_format":"1","workbook":"xlsx","n_sheets":117,"sheets":["CONFIGURATION","Currency Table","Submission","FileStorage","Insurer Information","Content","Index","Import","Export","Import Differences","Attachments","Declaration","BSCR Rating","AML (LT Direct Only)","SAR & Sanc. (All)","AML Reference","Information Sheet","Financial Condition","Form 1SFS","Form 2SFS","Form 8SFS","Form 1ASFS","Form 2ASFS","Form 8ASFS","Form 4EBS","Schedule II","Schedule II (EBS)","Schedule IIA","Schedule IIA (EBS)","Inv Recon (Original)","Investment Reconciliation","Schedule IIB (EBS)","Schedule IIC (EBS)","Schedule IID (EBS)","Schedule IIE (EBS)","Schedule IIF (EBS)","Grandfathered Equity Part","Non-Grandfathered Equity Part","Schedule IVB","Schedule IVB (EBS)","Schedule IVF","Schedule V","Schedule V(a)","Schedule V(c)","Schedule V(e)","Schedule V(f)","Schedule V(g)","Schedule V(k)","Schedule V(l)","Schedule V(m)","Schedule VI","Schedule VIA","Schedule VI (EBS)","Schedule VIA (EBS)","Schedule VI PY","Schedule VI (EBS) PY","Schedule VI (New)","Schedule VIA (New)","Schedule VI (EBS) (New)","Schedule VIA (EBS) (New)","Schedule VII","Schedule VII (EBS)","Schedule VIII","Schedule VIII (EBS)","Schedule VIIIA","Schedule VIIIA (EBS)","Schedule IX(a)","Schedule IX(b)","Schedule IX(c)","Schedule XII(a)","Schedule XII(b)","Schedule XVI","Schedule XVII","Schedule XVIII","Schedule XVIII (EBS)","Schedule XIX","Schedule XIXA","Schedule XX","Schedule XXA","Schedule XXI","Schedule XXIA","Schedule XXIII","Corp Gov","Risk Man","Identification","Measurement","Response","Monitoring & Reporting","Op Risk","Op Risk (Revised)","Summary","Fixed Income Investments","Fixed Income Investments (Rev.)","Equity Investments","Equity Investments (Revised)","Equity Grandfathering","Equity Investments (Grandf)","Equity Investments (Non-Grandf)","Interest Rate-Liquidity Risk","Interest Rate-Liquidity (Rev.)","Currency Risk","Currency Risk (Revised)","Concentration Risk","Concentration Risk (Revised)","Credit Risk","Credit Risk (Revised)","LT Insurance Risk","LT Other Insurance Risk","LT Variable Annuity Gte Risk","Company Specific Parameters","Crosscheck - SFS","Crosscheck-Model","Crosscheck - Op Risk","prt_res","CSP (Revised)","Correlation Matrix","HiddenFormulas"],"not_rendered":{"charts":3,"images":3,"macros":1,"external_links":0,"defined_names":243,"comments":36,"pivot_tables":0},"unopened":[],"bounds":{"document_bytes":16777216,"sheet_cells":100000,"rows_first":2000,"rows_last":500,"rows_between":2000,"halvings":0,"cell_chars":16384,"cell_head_chars":4096},"cells_cut":0,"cells_raw":0,"read":"whole","date_system":"1900"}

{"sheet":"CONFIGURATION","index":0,"n_rows":22,"n_cols":4,"rows_kept":22,"cut":false,"hidden":true,"merged":[]}
["ENTITY_ID",{"$f":"'Insurer Information'!F11","v":0}]
["ENTITY_NAME",{"$f":"'Insurer Information'!C7","v":"Enter Company Name"}]
["FILING_TYPE",{"$f":"\"BSCR\" & B11","v":"BSCRC"}]
["FILING_YEAR",{"$f":"YEAR('Insurer Information'!C3)","v":2023}]
["CONTACT_PERSON_NAME",{"$f":"'Insurer Information'!C15&\" \"&'Insurer Information'!F15","v":" "}]
["CONTACT_PERSON_EMAIL",{"$f":"'Insurer Information'!C29","v":0}]
["CONTACT_PERSON_PHONE",{"$f":"IF('Insurer Information'!E27=\"\",'Insurer Information'!C27,'Insurer Information'!C27&\" Extension:\"&'Insurer Information'!E27)","v":0}]
["OPTION"]
["COMMENT",{"$f":"IF(Submission!B17=\"\",\"\",Submission!B17)","v":0}]
["CURRENCY_CODE",{"$f":"VLOOKUP('Form 4EBS'!C4,'Currency Table'!A:B,2,FALSE)","v":"USD"}]
["CLASS",{"$f":"IF('Insurer Information'!F9=\"Class C\",\"C\",\"DandE\")","v":"C"}]
["DECIMALS",{"$f":"IF(C12=\"Units\",1,IF(C12=\"Thousand Units\",1000,\"\"))","v":1000},"Thousand Units",{"$f":"IF(CONFIGURATION!$B$12=\"\",\"\",IF(CONFIGURATION!$B$12>1,\" ('\"&MID(CONFIGURATION!$B$12,2,LEN(CONFIGURATION!$B$12))&\"s)\",\"\"))","v":" ('000s)"}]
["FILINGWEBSERVICE","https://xbrl.bma.bm/ExternalWebPH3-1/filing.ashx",null,"https://xbrl.bma.bm/ExternalWebPH3-1/filing.ashx"]
["VALIDATIONWEBSERVICE","https://xbrl.bma.bm/ExternalWebPH3-1/validator.ashx",null,"https://xbrl.bma.bm/ExternalWebPH3-1/validator.ashx"]
["FILINGCOUNTERWEBSERVICE","https://xbrl.bma.bm/ExternalWebPH3-1/FilingCounter.ashx",null,"https://xbrl.bma.bm/ExternalWebPH3-1/FilingCounter.ashx"]
["DUMMYWEBSERVICE","https://xbrl.bma.bm/ExternalWebPH3-1/dummy.ashx",null,"https://xbrl.bma.bm/ExternalWebPH3-1/dummy.ashx"]
["XBRLCONVERSIONWEBSERVICE","https://xbrl.bma.bm/ExternalWebPH3-1/XBRLConv.ashx",null,"https://xbrl.bma.bm/ExternalWebPH3-1/XBRLConv.ashx"]
["PREPOPULATEWEBSERVICE","https://xbrl.bma.bm/ExternalWebPH3-1/GetEntityDataByFilingYear.ashx"]
["PREYEARSTARTDATE"]
["PREYEARENDDATE"]
["SAVEDDATAPOPULATEWEBSERVICE"]
["FORMVERSION","2023 Year-end Model"]

{"sheet":"Currency Table","index":1,"n_rows":170,"n_cols":4,"rows_kept":170,"cut":false,"hidden":true,"merged":[]}
["United States Dollars","USD",null,"Units"]
["Euro","EUR",null,"Thousand Units"]
["Afghanistan Afghanis","AFN"]
["Albania Leke","ALL"]
["Armenia Drams","AMD"]
["Netherlands Antilles Guilders","ANG"]
["Angola Kwanza","AOA"]
["Argentina Pesos","ARS"]
["Australia Dollars","AUD"]
["Aruba Guilders","AWG"]
["Azerbaijan New Manats","AZN"]
["Bosnia and Herzegovina Convertible Marka","BAM"]
["Barbados Dollars","BBD"]
["Bangladesh Taka","BDT"]
["Bulgaria Leva","BGN"]
["Bahrain Dinars","BHD"]
["Burundi Francs","BIF"]
["Bermuda Dollars","BMD"]
["Brunei Dollars","BND"]
["Bolivia Bolivianos","BOB"]
["Brazil Reais","BRL"]
["Bahamas Dollars","BSD"]
["Bhutan Ngultrum","BTN"]
["Botswana Pulas","BWP"]
["Belarus Rubles","BYR"]
["Belize Dollars","BZD"]
["Canada Dollars","CAD"]
["Congo/Kinshasa Francs","CDF"]
["Switzerland Francs","CHF"]
["Chile Pesos","CLP"]
["China Yuan Renminbi","CNY"]
["Colombia Pesos","COP"]
["Costa Rica Colones","CRC"]
["Cuba Convertible Pesos","CUC"]
["Cuba Pesos","CUP"]
["Cape Verde Escudos","CVE"]
["Czech Republic Koruny","CZK"]
["Djibouti Francs","DJF"]
["Denmark Kroner","DKK"]
["Dominican Republic Pesos","DOP"]
["Algeria Dinars","DZD"]
["Estonia Krooni","EEK"]
["Egypt Pounds","EGP"]
["Eritrea Nakfa","ERN"]
["Ethiopia Birr","ETB"]
["Fiji Dollars","FJD"]
["Falkland Islands Pounds","FKP"]
["United Kingdom Pounds","GBP"]
["Georgia Lari","GEL"]
["Guernsey Pounds","GGP"]
["Ghana Cedis","GHS"]
["Gibraltar Pounds","GIP"]
["Gambia Dalasi","GMD"]
["Guinea Francs","GNF"]
["Guatemala Quetzales","GTQ"]
["Guyana Dollars","GYD"]
["Hong Kong Dollars","HKD"]
["Honduras Lempiras","HNL"]
["Croatia Kuna","HRK"]
["Haiti Gourdes","HTG"]
["Hungary Forint","HUF"]
["Indonesia Rupiahs","IDR"]
["Israel New Shekels","ILS"]
["Isle of Man Pounds","IMP"]
["India Rupees","INR"]
["Iraq Dinars","IQD"]
["Iran Rials","IRR"]
["Iceland Kronur","ISK"]
["Jersey Pounds","JEP"]
["Jamaica Dollars","JMD"]
["Jordan Dinars","JOD"]
["Japan Yen","JPY"]
["Kenya Shillings","KES"]
["Kyrgyzstan Soms","KGS"]
["Cambodia Riels","KHR"]
["Comoros Francs","KMF"]
["North Korea Won","KPW"]
["South Korea Won","KRW"]
["Kuwait Dinars","KWD"]
["Cayman Islands Dollars","KYD"]
["Kazakhstan Tenge","KZT"]
["Laos Kips","LAK"]
["Lebanon Pounds","LBP"]
["Sri Lanka Rupees","LKR"]
["Liberia Dollars","LRD"]
["Lesotho Maloti","LSL"]
["Lithuania Litai","LTL"]
["Latvia Lati","LVL"]
["Libya Dinars","LYD"]
["Morocco Dirhams","MAD"]
["Moldova Lei","MDL"]
["Madagascar Ariary","MGA"]
["Macedonia Denars","MKD"]
["Myanmar Kyats","MMK"]
["Mongolia Tugriks","MNT"]
["Macau Patacas","MOP"]
["Mauritania Ouguiyas","MRO"]
["Mauritius Rupees","MUR"]
["Maldives Rufiyaa","MVR"]
["Malawi Kwachas","MWK"]
["Mexico Pesos","MXN"]
["Malaysia Ringgits","MYR"]
["Mozambique Meticais","MZN"]
["Namibia Dollars","NAD"]
["Nigeria Nairas","NGN"]
["Nicaragua Cordobas","NIO"]
["Norway Kroner","NOK"]
["Nepal Rupees","NPR"]
["New Zealand Dollars","NZD"]
["Oman Rials","OMR"]
["Panama Balboas","PAB"]
["Peru Nuevos Soles","PEN"]
["Papua New Guinea Kina","PGK"]
["Philippines Pesos","PHP"]
["Pakistan Rupees","PKR"]
["Poland Zlotych","PLN"]
["Paraguay Guarani","PYG"]
["Qatar Riyals","QAR"]
["Romania New Lei","RON"]
["Serbia Dinars","RSD"]
["Russia Rubles","RUB"]
["Rwanda Francs","RWF"]
["Saudi Arabia Riyals","SAR"]
["Solomon Islands Dollars","SBD"]
["Seychelles Rupees","SCR"]
["Sudan Pounds","SDG"]
["Sweden Kronor","SEK"]
["Singapore Dollars","SGD"]
["Saint Helena Pounds","SHP"]
["Slovakia Koruny","SKK"]
["Sierra Leone Leones","SLL"]
["Somalia Shillings","SOS"]
["Seborga Luigini","SPL"]
["Suriname Dollars","SRD"]
["São Tome and Principe Dobras","STD"]
["El Salvador Colones","SVC"]
["Syria Pounds","SYP"]
["Swaziland Emalangeni","SZL"]
["Thailand Baht","THB"]
["Tajikistan Somoni","TJS"]
["Turkmenistan Manats","TMM"]
["Tunisia Dinars","TND"]
["Tonga Pa'anga","TOP"]
["Turkey New Lira","TRY"]
["Trinidad and Tobago Dollars","TTD"]
["Tuvalu Dollars","TVD"]
["Taiwan New Dollars","TWD"]
["Tanzania Shillings","TZS"]
["Ukraine Hryvnia","UAH"]
["Uganda Shillings","UGX"]
["Uruguay Pesos","UYU"]
["Uzbekistan Sums","UZS"]
["Venezuela Bolivares","VEB"]
["Venezuela Bolivares Fuertes","VEF"]
["Vietnam Dong","VND"]
["Vanuatu Vatu","VUV"]
["Samoa Tala","WST"]
["Communauté Financière Africaine Francs BEAC","XAF"]
["Silver Ounces","XAG"]
["Gold Ounces","XAU"]
["East Caribbean Dollars","XCD"]
["International Monetary Fund Special Drawing Rights","XDR"]
["Communauté Financière Africaine Francs BCEAO","XOF"]
["Palladium Ounces","XPD"]
["Comptoirs Français du Pacifique Francs","XPF"]
["Platinum Ounces","XPT"]
["Yemen Rials","YER"]
["South Africa Rand","ZAR"]
["Zambia Kwacha","ZMK"]
["Zimbabwe Dollars","ZWD"]

{"sheet":"Submission","index":2,"n_rows":36,"n_cols":3,"rows_kept":36,"cut":false,"hidden":false,"merged":[[36,1,36,2],[16,1,16,2],[34,1,34,2],[0,0,0,2],[1,1,1,2],[4,1,4,2],[7,1,7,2]]}
[]
[null,{"$f":"IF('Insurer Information'!F9=\"\",\"BSCR Long Term Model\",\"BSCR for \"&'Insurer Information'!F9)","v":"BSCR for Class C"}]
[]
[]
[null,"IMPORTANT: Completion of this submission requires an internet connection. \n\nQuestions and comments can be directed to: riskanalytics@bma.bm\n"]
[]
[]
[]
[null,null,"Select Unit: Prior to inputting BSCR form, select units which the monetary values are reported in."]
[null,null,"Get last saved data: Prefill form with last saved data from unfinished submission."]
[null,null,"Prepopulate previous data: Prefill form with previously submitted data"]
[null,null,"Input BSCR data"]
[null," ","Validate data: Prior to submitting to the BMA, validation of the data is required. To complete this step, click the ‘VALIDATE RETURN’ button. Users must acknowledge all failed validations and provide comments in the ‘Comments’ box below. Once the validation is complete, click the location link to go to the error locationn."]
[null,null,"Save Data: Data can be saved prior to submission. Click the \"SAVE\" button to save the unfinished submission. "]
[null,null,"Submit Data: Once data has been completed, please submit for review. To complete this step click the \"SUBMIT\" button. If data is submitted more than twice, the latest data will be accepted. You will be required to select a reason for re-submissions. The time to submit will vary depending on the speed of the internet connection. A white status bar will appear when the data is transmitting. Please wait for the submission acknowledgement and record your submission number for later reference.\n\nIf there are issues submitting the BSCR model, contact RiskAnalytics@bma.bm for assistance."]
[null,"Comments:"]
[null,{"$f":"Import!E3","v":0}]
[null,"Validation results:"]
[null,"MSM requirement met",{"$f":"Summary!G31","v":"NO"}]
[null,"ECR requirement met",{"$f":"Summary!N114","v":"NO"}]
[null,"MSM Eligible Capital requirement met",{"$f":"Summary!E126","v":"NO"}]
[null,"ECR Eligible Capital requirement met",{"$f":"Summary!G126","v":"NO"}]
[null,"Capital Reduction requirement met",{"$f":"Summary!O31","v":"NO"}]
[null,"C&S Reduction requirement met",{"$f":"Summary!O19","v":"YES"}]
[null,"Unqualified Opinion issued",{"$f":"'Information Sheet'!H41","v":"Select Yes/No"}]
[null,"CISSA document attached",{"$f":"IF(Attachments!F35=\"<Attach file>\",\"Outstanding\",\"File Attached\")","v":"Outstanding"}]
[null,"FCR document attached",{"$f":"IF(Attachments!F25=\"<Attach file>\",\"Outstanding\",\"File Attached\")","v":"Outstanding"}]
[null,"DOC document attached",{"$f":"IF(Attachments!F15=\"<Attach file>\",\"Outstanding\",\"File Attached\")","v":"Outstanding"}]
[null,"Blank Schedules",{"$f":"Content!H4","v":42}]
[null,"Acknowledged",{"$f":"Content!I4","v":0}]
[null,"Failed Validation Checks",{"$f":"Content!K4","v":0}]
[null,"Acknowledged",{"$f":"Content!L4","v":0}]
[]
[null,"Comments from BMA:"]
[]
[null,"Company Information'!E27","Validation failed (Contact person's phone number is necessary.)"]

{"sheet":"FileStorage","index":3,"n_rows":0,"n_cols":0,"rows_kept":0,"cut":false,"hidden":true,"merged":[]}

{"sheet":"Insurer Information","index":4,"n_rows":31,"n_cols":7,"rows_kept":31,"cut":false,"hidden":false,"merged":[[0,0,0,1],[6,2,6,5],[18,2,18,5]]}
["INSURER INFORMATION PAGE",null,null,null,null,null,{"$f":"HYPERLINK(\"#'Index'!A1\",\"Return to Index\")","v":"Return to Index"}]
[null,"Accounting Basis","Select"]
[null,"For the Year Ending ","2023-12-31",null,null,"Class C Model"]
[]
[null,"INSURER INFORMATION"]
[]
[null,"Insurer Name","Enter Company Name"]
[]
[null,"Date Incorporated/Organised",null,null,"Long-Term Business Class","Class C"]
[]
[null,"Date Commenced Business",null,null,"Registration No."]
[]
[null,"CONTACT PERSON FOR RISK-BASED CAPITAL"]
[]
[null,"First Name",null,null,"Last Name"]
[]
[null,"CONTACT PERSON INFORMATION"]
[]
[null,"Street and Number of P.O. Box"]
[]
[null,"City"]
[]
[null,"Country"]
[]
[null,"Postal Code"]
[]
[null,"Phone Number",null,"Extension"]
[]
[null,"Email"]
[]
[null,"Date Prepared"]

{"sheet":"Content","index":5,"n_rows":189,"n_cols":23,"rows_kept":189,"cut":false,"hidden":false,"merged":[[4,7,4,8],[4,10,4,11],[28,2,29,2],[27,1,27,2],[177,1,177,2],[97,1,97,2],[99,1,99,2],[82,1,82,2],[87,1,87,2],[91,1,91,2],[93,1,93,2],[101,1,101,2],[92,3,92,4],[76,3,76,4],[33,2,34,2],[38,2,39,2],[107,1,107,2],[111,1,111,2],[115,1,115,2],[119,1,119,2],[162,1,162,2],[121,1,121,2],[117,1,117,2],[141,1,141,2],[123,1,123,2],[127,1,127,2],[133,1,133,2],[125,1,125,2],[130,1,130,2],[136,1,136,2],[178,1,178,2],[173,1,173,2],[174,1,174,2],[175,1,175,2],[176,1,176,2],[185,1,185,2],[25,1,25,2],[26,1,26,2],[32,1,32,2],[43,1,43,2],[42,1,42,2],[53,1,53,2],[150,1,150,2],[154,1,154,2],[158,1,158,2],[165,1,165,2],[169,1,169,2],[104,1,104,2],[109,1,109,2],[113,1,113,2],[181,1,181,2],[73,3,73,4],[74,3,74,4],[75,3,75,4],[3,0,3,3],[4,0,4,2],[21,2,22,2],[23,2,24,2],[6,1,6,2],[7,1,7,2],[8,1,8,2],[9,1,9,2],[10,1,10,2],[11,1,11,2],[20,1,20,2],[14,1,14,2],[16,1,16,2],[50,1,50,2],[51,1,51,2],[52,1,52,2],[70,3,70,4],[72,3,72,4],[59,1,59,2],[15,1,15,2],[77,3,77,4],[90,3,90,4],[78,3,78,4],[79,3,79,4],[88,3,88,4],[89,3,89,4],[80,3,80,4],[81,3,81,4],[37,1,37,2],[56,1,56,2],[62,1,62,2],[69,1,69,2],[71,3,71,4],[44,1,44,2],[47,1,47,2]]}
["CONTENT OF THE BSCR MODEL",null,null,null,null,null,null,null,null,null,null,null,null,{"$f":"HYPERLINK(\"#'Index'!A1\",\"Return to Index\")","v":"Return to Index"},null,null,null,null,null,null,null,null,{"$f":"IF(C3=\"\",\"\",TEXT(DATE(YEAR(C3+1)-1,MONTH(C3+1),DAY(C3+1)),\"mm/dd/yyyy\"))","v":"01/01/2023"}]
[{"$f":"+'Insurer Information'!C7","v":"Enter Company Name"}]
["As At:",null,{"$f":" TEXT('Insurer Information'!C3,\"D MMMM YYYY\")","v":"31 December 2023"}]
[{"$f":"HYPERLINK(\"#'Submission'!B17\",\"If Confirm Message Check Box is Selected, include comments in Submission Tab Cell B17\")","v":"If Confirm Message Check Box is Selected, include comments in Submission Tab Cell B17"},null,null,null,null,null,null,{"$f":"COUNTIF(H13:H187,H6)","v":42},{"$f":"COUNTIF(I13:I187,\"Yes\")","v":0},null,{"$f":"COUNTIF(K13:K187,\"False.\")","v":0},{"$f":"COUNTIF(L13:L187,\"Yes\")","v":0},null,"Confirm"]
["Text in Column C Have Been Hyperlinked for Ease",null,null,null,null,null,null,"Form / Schedule ",null,null,"Validation Check",null,null,"Message"]
[null,null,"Company Information / Reference Schedule","True / False","Difference $","Difference %",null,"Blank","Blank Confirm",null,false,"Unbal. Confirm"]
[1,{"$f":"HYPERLINK(\"#'Submission'!A1\",\"Submission Tab\")","v":"Submission Tab"}]
[{"$f":"A7+1","v":2},{"$f":"HYPERLINK(\"#'Index'!A1\",\"Index\")","v":"Index"}]
[{"$f":"A8+1","v":3},{"$f":"HYPERLINK(\"#'Attachments'!A1\",\"Attachments\")","v":"Attachments"}]
[4,{"$f":"HYPERLINK(\"#'Insurer Information'!A1\",\"Insurer Information\")","v":"Insurer Information"}]
[5,{"$f":"HYPERLINK(\"#'Declaration'!A1\",\"Declaration\")","v":"Declaration"}]
[6,{"$f":"HYPERLINK(\"#'Information Sheet'!A1\",\"Information Sheet\")","v":"Information Sheet"}]
[null,"i)",{"$f":"HYPERLINK(\"#'Information Sheet'!H13\",\"Section (e)Filing Period Start Date check\")","v":"Section (e)Filing Period Start Date check"},{"$f":"IF('Information Sheet'!H13=0,\"Filing Period Start Date is Blank\",\"TRUE\")","v":"Filing Period Start Date is Blank"},null,null,null,{"$f":"IF(D13=\"Filing Period Start Date is Blank\",\"Blank\",\"\")","v":"Blank"},{"$f":"IF(H13=\"Blank\",IF(P13=TRUE,\"Yes\",\"\"),\"\")","v":""},null,{"$f":"IF(D13=\"False\",\"False.\",\"\")","v":""},{"$f":"IF(K13=\"\",\"\",IF(P13=TRUE,\"Yes\",\"\"))","v":""}]
[null,"ii)",{"$f":"HYPERLINK(\"#'Information Sheet'!H18\",\"Section (h)Exchange Rate check\")","v":"Section (h)Exchange Rate check"},{"$f":"IF('Information Sheet'!H18=0,\"Exchange Rate is Blank\",\"TRUE\")","v":"TRUE"},null,null,null,{"$f":"IF(D14=\"Exchange Rate is Blank\",\"Blank\",\"\")","v":""},{"$f":"IF(H14=\"Blank\",IF(P14=TRUE,\"Yes\",\"\"),\"\")","v":""},null,{"$f":"IF(D14=\"False\",\"False.\",\"\")","v":""},{"$f":"IF(K14=\"\",\"\",IF(P14=TRUE,\"Yes\",\"\"))","v":""}]
[{"$f":"A12+1","v":7},{"$f":"HYPERLINK(\"#'AML'!A1\",\"AML Questionnaire For Long-Term Direct Writers\")","v":"AML Questionnaire For Long-Term Direct Writers"}]
[{"$f":"A15+1","v":8},{"$f":"HYPERLINK(\"#'SAR & Sanc. (All)'!A1\",\"SARS and Sanctions for All Insurers\")","v":"SARS and Sanctions for All Insurers"}]
[{"$f":"A16+1","v":9},{"$f":"HYPERLINK(\"#'AML Reference'!A1\",\"AML Reference\")","v":"AML Reference"}]
[]
[null,null,"BSCR Schedules"]
[null,null,"Statutory Forms & Economic Balance Sheet"]
[{"$f":"A17+1","v":10},{"$f":"HYPERLINK(\"#'Form 1SFS'!A1\",\"Form 1SFS - Statutory Balance Sheet\")","v":"Form 1SFS - Statutory Balance Sheet"}]
[null,"i)",{"$f":"HYPERLINK(\"#'Form 1SFS'!A1\",\"Unconsolidated Assets equals Total Long-Term Business Insurance Reserves & Other Liabilities and Statutory Capital & Surplus\")","v":"Unconsolidated Assets equals Total Long-Term Business Insurance Reserves & Other Liabilities and Statutory Capital & Surplus"},{"$f":"IF('Insurer Information'!$F$2=\"Unconsolidated BSCR Model\",\"N/A\",IF(+'Form 1SFS'!H100=0,\"Form 1SFS Unconsolidated is Blank\",'Form 1SFS'!H202))","v":"Form 1SFS Unconsolidated is Blank"},{"$f":"'Form 1SFS'!H204","v":0},{"$f":"IF('Form 1SFS'!H100=0,0,'Form 1SFS'!H204/'Form 1SFS'!H100)","v":0},null,{"$f":"IF(D22=\"Form 1SFS Unconsolidated is Blank\",\"Blank\",\"\")","v":"Blank"},{"$f":"IF(H22=\"Blank\",IF(P22=TRUE,\"Yes\",\"\"),\"\")","v":""},null,{"$f":"IF(D22=\"False\",\"False.\",\"\")","v":""},{"$f":"IF(K22=\"\",\"\",IF(P22=TRUE,\"Yes\",\"\"))","v":""},null,null,null,false]
[]
[null,"ii)",{"$f":"HYPERLINK(\"#'Form 1SFS'!A1\",\"Consolidated Assets equals Total Long-Term Business Insurance Reserves & Other Liabilities and Statutory Capital & Surplus\")","v":"Consolidated Assets equals Total Long-Term Business Insurance Reserves & Other Liabilities and Statutory Capital & Surplus"},{"$f":"IF(+'Form 1SFS'!K100=0,\"Form 1SFS Consolidated is Blank\",'Form 1SFS'!K202)","v":"Form 1SFS Consolidated is Blank"},{"$f":"'Form 1SFS'!K204","v":0},{"$f":"IF('Form 1SFS'!K100=0,0,'Form 1SFS'!K204/'Form 1SFS'!K100)","v":0},null,{"$f":"IF(D24=\"Form 1SFS Consolidated is Blank\",\"Blank\",\"\")","v":"Blank"},{"$f":"IF(H24=\"Blank\",IF(P24=TRUE,\"Yes\",\"\"),\"\")","v":""},null,{"$f":"IF(D24=\"False\",\"False.\",\"\")","v":""},{"$f":"IF(K24=\"\",\"\",IF(P24=TRUE,\"Yes\",\"\"))","v":""},null,null,null,false]
[]
[{"$f":"A21+1","v":11},{"$f":"HYPERLINK(\"#'Form 2SFS'!A1\",\"Form 2SFS - Statutory Statement of Income\")","v":"Form 2SFS - Statutory Statement of Income"}]
[{"$f":"A26+1","v":12},{"$f":"HYPERLINK(\"#'Form 8SFS'!A1\",\"Form 8SFS - Statutory Statement of Capital & Surplus\")","v":"Form 8SFS - Statutory Statement of Capital & Surplus"}]
[{"$f":"A27+1","v":13},{"$f":"HYPERLINK(\"#'Form 4EBS'!A1\",\"Form 4EBS - Economic Balance Sheet\")","v":"Form 4EBS - Economic Balance Sheet"}]
[null,"i)",{"$f":"HYPERLINK(\"#'Form 4EBS'!A1\",\"Assets equals Total Long-Term Business Insurance Reserves & Other Liabilities and Statutory Capital & Surplus\")","v":"Assets equals Total Long-Term Business Insurance Reserves & Other Liabilities and Statutory Capital & Surplus"},{"$f":"IF(+'Form 4EBS'!F93=0,\"Form 4EBS is Blank\",'Form 4EBS'!F188)","v":"Form 4EBS is Blank"},{"$f":"+'Form 4EBS'!F190","v":0},{"$f":"IF(+'Form 4EBS'!F93=0,0,'Form 4EBS'!F190/'Form 4EBS'!F93)","v":0},null,{"$f":"IF(D29=\"Form 4EBS is Blank\",\"Blank\",\"\")","v":"Blank"},{"$f":"IF(H29=\"Blank\",IF(P29=TRUE,\"Yes\",\"\"),\"\")","v":""},null,{"$f":"IF(D29=\"False\",\"False.\",\"\")","v":""},{"$f":"IF(K29=\"\",\"\",IF(P29=TRUE,\"Yes\",\"\"))","v":""},null,null,null,false]
[]
[]
[null,null,"BSCR Capital Schedules"]
[{"$f":"A28+1","v":14},{"$f":"HYPERLINK(\"#'Schedule II'!A1\",\"Schedule II - Schedule of Fixed Income & Equity Investments By BSCR Rating\")","v":"Schedule II - Schedule of Fixed Income & Equity Investments By BSCR Rating"}]
[null,"i)",{"$f":"HYPERLINK(\"#'Schedule II'!A1\",\"Quoted and Unquoted Bond Debentures as reported on Schedule II equals Form 1SFS\")","v":"Quoted and Unquoted Bond Debentures as reported on Schedule II equals Form 1SFS"},{"$f":"IF('Insurer Information'!$F$2=\"Unconsolidated BSCR Model\",\"N/A\",IF(('Form 1SFS'!F18+'Form 1SFS'!H18+'Form 1SFS'!F31+'Form 1SFS'!H31)=0,\"N/A\",IF('Schedule II'!T22=0,\"Schedule is Blank\",'Schedule II'!T24)))","v":"N/A"},{"$f":"+'Schedule II'!T26","v":0},{"$f":"IF(('Form 1SFS'!F18+'Form 1SFS'!H18+'Form 1SFS'!F31+'Form 1SFS'!H31)=0,0,(+'Schedule II'!T26/('Form 1SFS'!F18+'Form 1SFS'!H18+'Form 1SFS'!F31+'Form 1SFS'!H31)))","v":0},null,{"$f":"IF(D34=\"Schedule is Blank\",\"Blank\",\"\")","v":""},{"$f":"IF(H34=\"Blank\",IF(P34=TRUE,\"Yes\",\"\"),\"\")","v":""},null,{"$f":"IF(D34=\"False\",\"False.\",\"\")","v":""},{"$f":"IF(K34=\"\",\"\",IF(P34=TRUE,\"Yes\",\"\"))","v":""},null,null,null,false]
[]
[null,"ii)",{"$f":"HYPERLINK(\"#'Schedule II'!A32\",\"Quoted and Unquoted Equities as reported on Schedule II equals Form 1SFS\")","v":"Quoted and Unquoted Equities as reported on Schedule II equals Form 1SFS"},{"$f":"IF('Insurer Information'!$F$2=\"Unconsolidated BSCR Model\",\"N/A\",IF(('Form 1SFS'!F23+'Form 1SFS'!H23+'Form 1SFS'!F36+'Form 1SFS'!H36)=0,\"N/A\",IF('Schedule II'!T44=0,\"Schedule is Blank\",'Schedule II'!T46)))","v":"N/A"},{"$f":"'Schedule II'!T48","v":0},{"$f":"IF(('Form 1SFS'!F23+'Form 1SFS'!H23+'Form 1SFS'!F36+'Form 1SFS'!H36)=0,0,('Schedule II'!T48/('Form 1SFS'!F23+'Form 1SFS'!H23+'Form 1SFS'!F36+'Form 1SFS'!H36)))","v":0},null,{"$f":"IF(D36=\"Schedule is Blank\",\"Blank\",\"\")","v":""},{"$f":"IF(H36=\"Blank\",IF(P36=TRUE,\"Yes\",\"\"),\"\")","v":""},null,{"$f":"IF(D36=\"False\",\"False.\",\"\")","v":""},{"$f":"IF(K36=\"\",\"\",IF(P36=TRUE,\"Yes\",\"\"))","v":""},null,null,null,false]
[null,"iii)",{"$f":"HYPERLINK(\"#'Schedule II'!A55\",\"Mortgage Loans as reported on Schedule II equals Form 1SFS\")","v":"Mortgage Loans as reported on Schedule II equals Form 1SFS"},{"$f":"IF('Insurer Information'!$F$2=\"Unconsolidated BSCR Model\",\"N/A\",IF('Form 1SFS'!H53=0,\"N/A\",IF('Schedule II'!D62=0,\"Schedule is Blank\",'Schedule II'!D64)))","v":"N/A"},{"$f":"'Schedule II'!D66","v":0},{"$f":"IF('Form 1SFS'!H53=0,0,'Schedule II'!D66/'Form 1SFS'!H53)","v":0},null,{"$f":"IF(D37=\"Schedule is Blank\",\"Blank\",\"\")","v":""},{"$f":"IF(H37=\"Blank\",IF(P37=TRUE,\"Yes\",\"\"),\"\")","v":""},null,{"$f":"IF(D37=\"False\",\"False.\",\"\")","v":""},{"$f":"IF(K37=\"\",\"\",IF(P37=TRUE,\"Yes\",\"\"))","v":""},null,null,null,false]
[{"$f":"A33+1","v":15},{"$f":"HYPERLINK(\"#'Schedule II (EBS)'!A1\",\"Schedule II (EBS) - Schedule of Fixed Income & Equity Investments By BSCR Rating\")","v":"Schedule II (EBS) - Schedule of Fixed Income & Equity Investments By BSCR Rating"}]
[null,"i)",{"$f":"HYPERLINK(\"#'Schedule II (EBS)'!A1\",\"Quoted and Unquoted Bond Debentures as reported on Schedule II (EBS) equals Form 1EBS\")","v":"Quoted and Unquoted Bond Debentures as reported on Schedule II (EBS) equals Form 1EBS"},{"$f":"IF(('Form 4EBS'!F13+'Form 4EBS'!F23)=0,\"N/A\",IF('Schedule II (EBS)'!T22=0,\"Schedule is Blank\",'Schedule II (EBS)'!T24))","v":"N/A"},{"$f":"+'Schedule II (EBS)'!T26","v":0},{"$f":"IF(('Form 4EBS'!F13+'Form 4EBS'!F23)=0,0,(+'Schedule II (EBS)'!T26/('Form 4EBS'!F13+'Form 4EBS'!F23)))","v":0},null,{"$f":"IF(D39=\"Schedule is Blank\",\"Blank\",\"\")","v":""},{"$f":"IF(H39=\"Blank\",IF(P39=TRUE,\"Yes\",\"\"),\"\")","v":""},null,{"$f":"IF(D39=\"False\",\"False.\",\"\")","v":""},{"$f":"IF(K39=\"\",\"\",IF(P39=TRUE,\"Yes\",\"\"))","v":""},null,null,null,false]
[]
[null,"ii)",{"$f":"HYPERLINK(\"#'Schedule II (EBS)'!A32\",\"Quoted and Unquoted Equities as reported on Schedule II (EBS) equals Form 1EBS\")","v":"Quoted and Unquoted Equities as reported on Schedule II (EBS) equals Form 1EBS"},{"$f":"IF(('Form 4EBS'!F18+'Form 4EBS'!F28)=0,\"N/A\",IF('Schedule II (EBS)'!T44=0,\"Schedule is Blank\",'Schedule II (EBS)'!T46))","v":"N/A"},{"$f":"'Schedule II (EBS)'!T48","v":0},{"$f":"IF(('Form 4EBS'!F18+'Form 4EBS'!F28)=0,0,('Schedule II (EBS)'!T48/('Form 4EBS'!F18+'Form 4EBS'!F28)))","v":0},null,{"$f":"IF(D41=\"Schedule is Blank\",\"Blank\",\"\")","v":""},{"$f":"IF(H41=\"Blank\",IF(P41=TRUE,\"Yes\",\"\"),\"\")","v":""},null,{"$f":"IF(D41=\"False\",\"False.\",\"\")","v":""},{"$f":"IF(K41=\"\",\"\",IF(P41=TRUE,\"Yes\",\"\"))","v":""}]
[null,"iii)",{"$f":"HYPERLINK(\"#'Schedule II (EBS)'!A55\",\"Mortgage Loans as reported on Schedule II (EBS) equals Form 1EBS\")","v":"Mortgage Loans as reported on Schedule II (EBS) equals Form 1EBS"},{"$f":"IF('Form 4EBS'!F45=0,\"N/A\",IF('Schedule II (EBS)'!D62=0,\"Schedule is Blank\",'Schedule II (EBS)'!D64))","v":"N/A"},{"$f":"'Schedule II (EBS)'!D66","v":0},{"$f":"IF('Form 4EBS'!F45=0,0,'Schedule II (EBS)'!D66/'Form 4EBS'!F45)","v":0},null,{"$f":"IF(D42=\"Schedule is Blank\",\"Blank\",\"\")","v":""},{"$f":"IF(H42=\"Blank\",IF(P42=TRUE,\"Yes\",\"\"),\"\")","v":""},null,{"$f":"IF(D42=\"False\",\"False.\",\"\")","v":""},{"$f":"IF(K42=\"\",\"\",IF(P42=TRUE,\"Yes\",\"\"))","v":""}]
[{"$f":"A38+1","v":16},{"$f":"HYPERLINK(\"#'Schedule IIA'!A1\",\"Schedule IIA - Schedule of Funds Held by Ceding Reinsurers in Segregated Accounts\")","v":"Schedule IIA - Schedule of Funds Held by Ceding Reinsurers in Segregated Accounts"}]
[{"$f":"A43+1","v":17},{"$f":"HYPERLINK(\"#'Schedule IIA (EBS)'!A1\",\"Schedule IIA (EBS) - Schedule of Funds Held by Ceding Reinsurers in Segregated Accounts\")","v":"Schedule IIA (EBS) - Schedule of Funds Held by Ceding Reinsurers in Segregated Accounts"}]
[{"$f":"A44+1","v":18},{"$f":"HYPERLINK(\"#'Schedule IIB (EBS)'!A1\",\"Schedule IIB (EBS)- Schedule of Fixed Income & Equity Investments By BSCR Rating\")","v":"Schedule IIB (EBS)- Schedule of Fixed Income & Equity Investments By BSCR Rating"}]
[null,"Interest rate-sensitive investments",null,{"$f":"IF('Investment Reconciliation'!G10=0,\"N/A\",IF('Investment Reconciliation'!G28=0,\"Schedule is Blank\",'Investment Reconciliation'!G30))","v":"N/A"},{"$f":"'Investment Reconciliation'!G32","v":0},{"$f":"IF('Investment Reconciliation'!G28=0,0,('Investment Reconciliation'!G32)/'Investment Reconciliation'!G28)","v":0},null,{"$f":"IF(D46=\"Schedule is Blank\",\"Blank\",\"\")","v":""},{"$f":"IF(H46=\"Blank\",IF(P46=TRUE,\"Yes\",\"\"),\"\")","v":""},null,{"$f":"IF(D46=\"False\",\"False.\",\"\")","v":""},{"$f":"IF(K46=\"\",\"\",IF(P46=TRUE,\"Yes\",\"\"))","v":""}]
[null,"Investments sensitive to equity prices",null,{"$f":"IF('Investment Reconciliation'!H10=0,\"N/A\",IF('Investment Reconciliation'!H28=0,\"Schedule is Blank\",'Investment Reconciliation'!H30))","v":"N/A"},{"$f":"'Investment Reconciliation'!H32","v":0},{"$f":"IF('Investment Reconciliation'!H28=0,0,('Investment Reconciliation'!H32)/'Investment Reconciliation'!H28)","v":0},null,{"$f":"IF(D47=\"Schedule is Blank\",\"Blank\",\"\")","v":""},{"$f":"IF(H47=\"Blank\",IF(P47=TRUE,\"Yes\",\"\"),\"\")","v":""},null,{"$f":"IF(D47=\"False\",\"False.\",\"\")","v":""},{"$f":"IF(K47=\"\",\"\",IF(P47=TRUE,\"Yes\",\"\"))","v":""}]
[{"$f":"A45+1","v":19},{"$f":"HYPERLINK(\"#'Schedule IIC (EBS)'!A1\",\"Schedule IIC (EBS) - Schedule of Funds Held By Ceding Reinsurers in Segregated Accounts\")","v":"Schedule IIC (EBS) - Schedule of Funds Held By Ceding Reinsurers in Segregated Accounts"}]
[null,"Interest rate-sensitive investments",null,{"$f":"IF('Investment Reconciliation'!I10=0,\"N/A\",IF('Investment Reconciliation'!I28=0,\"Schedule is Blank\",'Investment Reconciliation'!I30))","v":"N/A"},{"$f":"'Investment Reconciliation'!I32","v":0},{"$f":"IF('Investment Reconciliation'!I28=0,0,('Investment Reconciliation'!I32)/'Investment Reconciliation'!I28)","v":0},null,{"$f":"IF(D49=\"Schedule is Blank\",\"Blank\",\"\")","v":""},{"$f":"IF(H49=\"Blank\",IF(P49=TRUE,\"Yes\",\"\"),\"\")","v":""},null,{"$f":"IF(D49=\"False\",\"False.\",\"\")","v":""},{"$f":"IF(K49=\"\",\"\",IF(P49=TRUE,\"Yes\",\"\"))","v":""}]
[null,"Investments sensitive to equity prices",null,{"$f":"IF('Investment Reconciliation'!J10=0,\"N/A\",IF('Investment Reconciliation'!J28=0,\"Schedule is Blank\",'Investment Reconciliation'!J30))","v":"N/A"},{"$f":"'Investment Reconciliation'!J32","v":0},{"$f":"IF('Investment Reconciliation'!J28=0,0,('Investment Reconciliation'!J32)/'Investment Reconciliation'!J28)","v":0},null,{"$f":"IF(D50=\"Schedule is Blank\",\"Blank\",\"\")","v":""},{"$f":"IF(H50=\"Blank\",IF(P50=TRUE,\"Yes\",\"\"),\"\")","v":""},null,{"$f":"IF(D50=\"False\",\"False.\",\"\")","v":""},{"$f":"IF(K50=\"\",\"\",IF(P50=TRUE,\"Yes\",\"\"))","v":""}]
[{"$f":"A48+1","v":20},{"$f":"HYPERLINK(\"#'Schedule IID (EBS)'!A1\",\"Schedule IID (EBS) - Schedule of Segregated Accounts\")","v":"Schedule IID (EBS) - Schedule of Segregated Accounts"},null,{"$f":"IF(('Form 4EBS'!F77+'Form 4EBS'!F78)=0,\"N/A\",IF('Schedule IID (EBS)'!D97=0,\"Schedule is Blank\",'Investment Reconciliation'!K30))","v":"N/A"},{"$f":"'Investment Reconciliation'!K32","v":0},{"$f":"IF('Investment Reconciliation'!K28=0,0,('Investment Reconciliation'!K32)/'Investment Reconciliation'!K28)","v":0},null,{"$f":"IF(D51=\"Schedule is Blank\",\"Blank\",\"\")","v":""},{"$f":"IF(H51=\"Blank\",IF(P51=TRUE,\"Yes\",\"\"),\"\")","v":""},null,{"$f":"IF(D51=\"False\",\"False.\",\"\")","v":""},{"$f":"IF(K51=\"\",\"\",IF(P51=TRUE,\"Yes\",\"\"))","v":""}]
[{"$f":"A51+1","v":21},{"$f":"HYPERLINK(\"#'Schedule IIE (EBS)'!A1\",\"Schedule IIE (EBS) - Schedule of Deposit Assets & Liabilities\")","v":"Schedule IIE (EBS) - Schedule of Deposit Assets & Liabilities"},null,{"$f":"IF('Form 4EBS'!F79=0,\"N/A\",IF('Schedule IIE (EBS)'!D97=0,\"Schedule is Blank\",'Investment Reconciliation'!M30))","v":"N/A"},{"$f":"'Investment Reconciliation'!M32","v":0},{"$f":"IF('Investment Reconciliation'!M28=0,0,('Investment Reconciliation'!M32)/'Investment Reconciliation'!M28)","v":0},null,{"$f":"IF(D52=\"Schedule is Blank\",\"Blank\",\"\")","v":""},{"$f":"IF(H52=\"Blank\",IF(P52=TRUE,\"Yes\",\"\"),\"\")","v":""},null,{"$f":"IF(D52=\"False\",\"False.\",\"\")","v":""},{"$f":"IF(K52=\"\",\"\",IF(P52=TRUE,\"Yes\",\"\"))","v":""}]
[{"$f":"A52+1","v":22},{"$f":"HYPERLINK(\"#'Schedule IIF (EBS)'!A1\",\"Schedule IIF (EBS) - Schedule of Sundry Assets\")","v":"Schedule IIF (EBS) - Schedule of Sundry Assets"},null,{"$f":"IF(('Form 4EBS'!F81+'Form 4EBS'!F83+'Form 4EBS'!F84)=0,\"N/A\",IF('Schedule IIF (EBS)'!D97=0,\"Schedule is Blank\",'Investment Reconciliation'!O30))","v":"N/A"},{"$f":"'Investment Reconciliation'!O32","v":0},{"$f":"IF('Investment Reconciliation'!O28=0,0,('Investment Reconciliation'!O32)/'Investment Reconciliation'!O28)","v":0},null,{"$f":"IF(D53=\"Schedule is Blank\",\"Blank\",\"\")","v":""},{"$f":"IF(H53=\"Blank\",IF(P53=TRUE,\"Yes\",\"\"),\"\")","v":""},null,{"$f":"IF(D53=\"False\",\"False.\",\"\")","v":""},{"$f":"IF(K53=\"\",\"\",IF(P53=TRUE,\"Yes\",\"\"))","v":""}]
[{"$f":"A53+1","v":23},{"$f":"HYPERLINK(\"#'Schedule IVB'!A1\",\"Schedule IVB - Schedule of Long-Term Business Premiums\")","v":"Schedule IVB - Schedule of Long-Term Business Premiums"}]
[null,"i)",{"$f":"HYPERLINK(\"#'Schedule IVB'!E15:O34\",\"Unconsolidated Gross Premiums Written\")","v":"Unconsolidated Gross Premiums Written"},{"$f":"IF('Form 2SFS'!I43=0,\"N/A\",IF('Schedule IVB'!M31=0,\"Schedule is Blank\",'Schedule IVB'!M33))","v":"N/A"},{"$f":"+'Schedule IVB'!M35","v":0},{"$f":"IF('Form 2SFS'!I43=0,0,'Schedule IVB'!M35/'Form 2SFS'!I43)","v":0},null,{"$f":"IF(D55=\"Schedule is Blank\",\"Blank\",\"\")","v":""},{"$f":"IF(H55=\"Blank\",IF(P55=TRUE,\"Yes\",\"\"),\"\")","v":""},null,{"$f":"IF(D55=\"False\",\"False.\",\"\")","v":""},{"$f":"IF(K55=\"\",\"\",IF(P55=TRUE,\"Yes\",\"\"))","v":""},null,null,null,false]
[null,"ii)",{"$f":"HYPERLINK(\"#'Schedule IVB'!Q16:AA35\",\"Unconsolidated Net Premiums Written\")","v":"Unconsolidated Net Premiums Written"},{"$f":"IF('Form 2SFS'!I51=0,\"N/A\",IF('Schedule IVB'!Y31=0,\"Schedule is Blank\",'Schedule IVB'!Y33))","v":"N/A"},{"$f":"+'Schedule IVB'!Y35","v":0},{"$f":"IF('Form 2SFS'!I51=0,0,'Schedule IVB'!Y35/'Form 2SFS'!I51)","v":0},null,{"$f":"IF(D56=\"Schedule is Blank\",\"Blank\",\"\")","v":""},{"$f":"IF(H56=\"Blank\",IF(P56=TRUE,\"Yes\",\"\"),\"\")","v":""},null,{"$f":"IF(D56=\"False\",\"False.\",\"\")","v":""},{"$f":"IF(K56=\"\",\"\",IF(P56=TRUE,\"Yes\",\"\"))","v":""}]
[{"$f":"A54+1","v":24},{"$f":"HYPERLINK(\"#'Schedule IVB (EBS)'!A1\",\"Schedule IVB (EBS) - Schedule of Long-Term Business Premiums\")","v":"Schedule IVB (EBS) - Schedule of Long-Term Business Premiums"}]
[null,"i)",{"$f":"HYPERLINK(\"#'Schedule IVB (EBS)'!E15:O34\",\"Consolidated Gross Premiums Written\")","v":"Consolidated Gross Premiums Written"},{"$f":"IF('Form 2SFS'!M43=0,\"N/A\",IF('Schedule IVB (EBS)'!M31=0,\"Schedule is Blank\",'Schedule IVB (EBS)'!M33))","v":"N/A"},{"$f":"+'Schedule IVB (EBS)'!M35","v":0},{"$f":"IF('Form 2SFS'!M43=0,0,'Schedule IVB (EBS)'!M35/'Form 2SFS'!M43)","v":0},null,{"$f":"IF(D58=\"Schedule is Blank\",\"Blank\",\"\")","v":""},{"$f":"IF(H58=\"Blank\",IF(P58=TRUE,\"Yes\",\"\"),\"\")","v":""},null,{"$f":"IF(D58=\"False\",\"False.\",\"\")","v":""},{"$f":"IF(K58=\"\",\"\",IF(P58=TRUE,\"Yes\",\"\"))","v":""}]
[null,"ii)",{"$f":"HYPERLINK(\"#'Schedule IVB (EBS)'!Q15:AA34\",\"Consolidated Net Premiums Written\")","v":"Consolidated Net Premiums Written"},{"$f":"IF('Form 2SFS'!M51=0,\"N/A\",IF('Schedule IVB (EBS)'!Y31=0,\"Schedule is Blank\",'Schedule IVB (EBS)'!Y33))","v":"N/A"},{"$f":"+'Schedule IVB (EBS)'!Y35","v":0},{"$f":"IF('Form 2SFS'!M51=0,0,'Schedule IVB (EBS)'!Y35/'Form 2SFS'!M51)","v":0},null,{"$f":"IF(D59=\"Schedule is Blank\",\"Blank\",\"\")","v":""},{"$f":"IF(H59=\"Blank\",IF(P59=TRUE,\"Yes\",\"\"),\"\")","v":""},null,{"$f":"IF(D59=\"False\",\"False.\",\"\")","v":""},{"$f":"IF(K59=\"\",\"\",IF(P59=TRUE,\"Yes\",\"\"))","v":""}]
[{"$f":"A57+1","v":25},{"$f":"HYPERLINK(\"#'Schedule IVF'!A1\",\"Schedule IVF - Exposure Of Risk\")","v":"Schedule IVF - Exposure Of Risk"}]
[null,"i)",{"$f":"HYPERLINK(\"#'Schedule IVF'!S53\",\"Long-Term Business Gross Reserves\")","v":"Long-Term Business Gross Reserves"},{"$f":"IF(('Form 1SFS'!$F$100+'Form 1SFS'!$H$100)=0,IF('Form 1SFS'!$K$147=0,\"N/A\",IF((SUM('Schedule IVF'!$M$52:$S$52))=0,\"Schedule is Blank\",'Schedule IVF'!$S$53)), IF('Form 1SFS'!$H$147=0,\"N/A\",IF((SUM('Schedule IVF'!$M$52:$S$52))=0,\"Schedule is Blank\",'Schedule IVF'!$S$53)))","v":"N/A"},{"$f":"'Schedule IVF'!$S$55","v":0},{"$f":"IF(('Form 1SFS'!$F$100+'Form 1SFS'!$H$100)=0,IF('Form 1SFS'!$K$147=0,0,'Schedule IVF'!$S$55/'Form 1SFS'!$K$147),IF('Form 1SFS'!$H$147=0,0,'Schedule IVF'!$S$55/'Form 1SFS'!$I$147))","v":0},null,{"$f":"IF(D61=\"Schedule is Blank\",\"Blank\",\"\")","v":""},{"$f":"IF(H61=\"Blank\",IF(P61=TRUE,\"Yes\",\"\"),\"\")","v":""},null,{"$f":"IF(D61=\"False\",\"False.\",\"\")","v":""},{"$f":"IF(K61=\"\",\"\",IF(P61=TRUE,\"Yes\",\"\"))","v":""}]
[null,"ii)",{"$f":"HYPERLINK(\"#'Schedule IVF'!T53\",\"Long-Term Business Losses Incurred\")","v":"Long-Term Business Losses Incurred"},{"$f":"IF(('Form 1SFS'!$F$100+'Form 1SFS'!$H$100)=0,IF('Form 2SFS'!$M$75=0,\"N/A\",IF(('Schedule IVF'!$T$52)=0,\"Schedule is Blank\",'Schedule IVF'!$T$53)), IF('Form 2SFS'!$I$75=0,\"N/A\",IF(('Schedule IVF'!$T$52)=0,\"Schedule is Blank\",'Schedule IVF'!$T$53)))","v":"N/A"},{"$f":"'Schedule IVF'!$T$55","v":0},{"$f":"IF(('Form 1SFS'!$F$100+'Form 1SFS'!$H$100)=0,IF('Form 2SFS'!$M$75=0,0,'Schedule IVF'!$T$55/'Form 2SFS'!$M$75),IF('Form 2SFS'!$I$75=0,0,'Schedule IVF'!$T$55/'Form 2SFS'!$I$75))","v":0},null,"","",null,"",""]
[{"$f":"A60+1","v":26},{"$f":"HYPERLINK(\"#'Schedule V'!A1\",\"Schedule V - Schedule of Risk Management\")","v":"Schedule V - Schedule of Risk Management"},null,null,null,null,null,null,null,null,null,null,null,null,null,false]
[null,"i)",{"$f":"HYPERLINK(\"#'Schedule V'!H11\",\"Effective Duration of Assets\")","v":"Effective Duration of Assets"},{"$f":"IF('Schedule V'!H11=0,\"Asset Duration is not Reported\",\"True\")","v":"Asset Duration is not Reported"},null,null,null,{"$f":"IF(D64=\"Asset Duration is not Reported\",\"Blank\",\"\")","v":"Blank"},{"$f":"IF(H64=\"Blank\",IF(P64=TRUE,\"Yes\",\"\"),\"\")","v":""},null,null,null,null,null,null,false]
[null,"ii)",{"$f":"HYPERLINK(\"#'Schedule V'!H13\",\"Effective Duration of Liabilities\")","v":"Effective Duration of Liabilities"},{"$f":"IF('Schedule V'!H13=0,\"Liability Duration is not Reported\",\"True\")","v":"Liability Duration is not Reported"},null,null,null,{"$f":"IF(D65=\"Liability Duration is not Reported\",\"Blank\",\"\")","v":"Blank"},{"$f":"IF(H65=\"Blank\",IF(P65=TRUE,\"Yes\",\"\"),\"\")","v":""},null,null,null,null,null,null,false]
[null,"iii)",{"$f":"HYPERLINK(\"#'Schedule V'!H15\",\"Weighted average of the difference in the asset duration and liability duration\")","v":"Weighted average of the difference in the asset duration and liability duration"},{"$f":"IF('Schedule V'!H15=0,\"Weighted Average is not Reported\",\"True\")","v":"Weighted Average is not Reported"},null,null,null,null,null,null,null,null,null,null,null,false]
[null,"iv)",{"$f":"HYPERLINK(\"#'Schedule V'!H19\",\"Reserves with Known Duration as a Percentage of Total Reserves\")","v":"Reserves with Known Duration as a Percentage of Total Reserves"},{"$f":"IF('Schedule V'!H20=0,\"Percentage is not Reported\",\"True\")","v":"Percentage is not Reported"},null,null,null,{"$f":"IF(D67=\"Percentage is not Reported\",\"Blank\",\"\")","v":"Blank"},{"$f":"IF(H67=\"Blank\",IF(P67=TRUE,\"Yes\",\"\"),\"\")","v":""},null,null,null,null,null,null,false]
[null,"v)",{"$f":"HYPERLINK(\"#'Schedule V'!H24:I26\",\"Summary of Projected Performance\")","v":"Summary of Projected Performance"},{"$f":"IF(COUNTIF('Schedule V'!H25:H26,0)>0,\"Projected Performance is not Reported\",\"True\")","v":"Projected Performance is not Reported"},null,null,null,{"$f":"IF(D68=\"Projected Performance is not Reported\",\"Blank\",\"\")","v":"Blank"},{"$f":"IF(H68=\"Blank\",IF(P68=TRUE,\"Yes\",\"\"),\"\")","v":""}]
[null,"vi)",{"$f":"HYPERLINK(\"#'Schedule V'!H38:H41\",\"Deferred Accumulation Annuities Disclosure\")","v":"Deferred Accumulation Annuities Disclosure"},{"$f":"IF(COUNTIF('Schedule V'!H39:H42,0)=4,\"Def. Acc. Ann. is not Reported\",\"True\")","v":"Def. Acc. Ann. is not Reported"},null,null,null,null,null,null,null,null,null,null,null,false]
[{"$f":"A63+1","v":27},{"$f":"HYPERLINK(\"#'Schedule V(a)'!A1\",\"Schedule V(a) Schedule of Risk Management - Governance and Group Structure\")","v":"Schedule V(a) Schedule of Risk Management - Governance and Group Structure"}]
[null,"i)",{"$f":"HYPERLINK(\"#'Schedule V(a)'!E11\",\"Directors - Country of Residence\")","v":"Directors - Country of Residence"},{"$f":"IF('Schedule V(a)'!E12=0,\"Directors- Country of Residence is not Reported\",\"True\")","v":"Directors- Country of Residence is not Reported"},null,null,null,{"$f":"IF(D71=\"Directors- Country of Residence is not Reported\",\"Blank\",\"\")","v":"Blank"},{"$f":"IF(H71=\"Blank\",IF(P71=TRUE,\"Yes\",\"\"),\"\")","v":""}]
[null,"ii)",{"$f":"HYPERLINK(\"#'Schedule V(a)'!H11\",\"Directors - Status\")","v":"Directors - Status"},{"$f":"IF('Schedule V(a)'!H12=0,\"Directors- Status is not Reported\",\"True\")","v":"True"},null,null,null,{"$f":"IF(D72=\"Directors- Status is not Reported\",\"Blank\",\"\")","v":""},""]
[null,"iii)",{"$f":"HYPERLINK(\"#'Schedule V(a)'!E36\",\"Chief & Senior Executives - Country of Residence\")","v":"Chief & Senior Executives - Country of Residence"},{"$f":"IF('Schedule V(a)'!E37=0,\"Chief & Senior Executives - Country of Residence is not Reported\",\"True\")","v":"Chief & Senior Executives - Country of Residence is not Reported"},null,null,null,{"$f":"IF(D73=\"Chief & Senior Executives - Country of Residence is not Reported\",\"Blank\",\"\")","v":"Blank"},"",null,null,null,null,null,null,false]
[null,"iv)",{"$f":"HYPERLINK(\"#'Schedule V(a)'!H36\",\"Chief & Senior Executives - Employee Arrangement\")","v":"Chief & Senior Executives - Employee Arrangement"},{"$f":"IF('Schedule V(a)'!H37=0,\"Chief & Senior Executives - Employee Arrangement is not Reported\",\"True\")","v":"True"},null,null,null,{"$f":"IF(D74=\"Chief & Senior Executives - Employee Arrangement is not Reported\",\"Blank\",\"\")","v":""},"",null,null,null,null,null,null,false]
[null,"v)",{"$f":"HYPERLINK(\"#'Schedule V(a)'!J36\",\"Chief & Senior Executives - Description of Responsibilities\")","v":"Chief & Senior Executives - Description of Responsibilities"},{"$f":"IF('Schedule V(a)'!I37=0,\"Chief & Senior Executives - Description of Responsibilities is not Reported\",\"True\")","v":"True"},null,null,null,{"$f":"IF(D75=\"Chief & Senior Executives - Description of Responsibilities is not Reported\",\"Blank\",\"\")","v":""},"",null,null,null,null,null,null,false]
[null,"vi)",{"$f":"HYPERLINK(\"#'Schedule V(a)'!C60\",\"Jurisdiction of Activities\")","v":"Jurisdiction of Activities"},{"$f":"IF(COUNTIF('Schedule V(a)'!E65:E68,0)=0,\"True\",\"Jurisdiction of Activities is not Reported\")","v":"True"},null,null,null,{"$f":"IF(D76=\"Jurisdiction of Activities is not Reported\",\"Blank\",\"\")","v":""},"",null,null,null,null,null,null,false]
[null,"vii)",{"$f":"HYPERLINK(\"#'Schedule V(a)'!C67\",\"Jurisdiction of Operations\")","v":"Jurisdiction of Operations"},{"$f":"IF(COUNTIF('Schedule V(a)'!E72:E77,0)=0,\"True\",\"Jurisdiction of Operations is not Reported\")","v":"True"},null,null,null,{"$f":"IF(D77=\"Jurisdiction of Operations is not Reported\",\"Blank\",\"\")","v":""},""]
[null,"viii)",{"$f":"HYPERLINK(\"#'Schedule V(a)'!H69:H74\",\"Services Outsourced\")","v":"Services Outsourced"},{"$f":"IF(COUNTIF('Schedule V(a)'!H72:H77,0)=0,\"True\",\"Services Outsourced is not Reported\")","v":"True"},null,null,null,{"$f":"IF(D78=\"Services Outsourced is not Reported\",\"Blank\",\"\")","v":""},"",null,null,null,null,null,null,false]
[null,"ix)",{"$f":"HYPERLINK(\"#'Schedule V(a)'!G76\",\"Number of Employees in Bermuda\")","v":"Number of Employees in Bermuda"},{"$f":"IF('Schedule V(a)'!G98=0,\"Numbers of Employees in Bermuda is not Reported\",\"True\")","v":"Numbers of Employees in Bermuda is not Reported"},null,null,null,{"$f":"IF(D79=\"Numbers of Employees in Bermuda is not Reported\",\"Blank\",\"\")","v":"Blank"},"",null,null,null,null,null,null,false]
[null,"vii)",{"$f":"HYPERLINK(\"#'Schedule V(a)'!C79:G83\",\"Group Financial Position\")","v":"Group Financial Position"},{"$f":"IF(COUNTIF('Schedule V(a)'!G110:G114,0)=0,\"True\",\"Group Financial Position is not Reported\")","v":"Group Financial Position is not Reported"},null,null,null,{"$f":"IF(D80=\"Group Financial Position is not Reported\",\"Blank\",\"\")","v":"Blank"},""]
[null,"vi)",{"$f":"HYPERLINK(\"#'Schedule V(a)'!C99:G107\",\"Largest Balance Sheet Values\")","v":"Largest Balance Sheet Values"},{"$f":"IF(COUNTIF('Schedule V(a)'!C130:G138,0)=45,\"Largest Values is not Reported\",\"True\")","v":"Largest Values is not Reported"},null,null,null,{"$f":"IF(D81=\"Largest Values is not Reported\",\"Blank\",\"\")","v":"Blank"},""]
[null,"vi)",{"$f":"HYPERLINK(\"#'Schedule V(a)'!C111\",\"Subsequent Events\")","v":"Subsequent Events"},{"$f":"IF('Schedule V(a)'!C142=0,\"Subsequent Events is not Reported\",\"True\")","v":"Subsequent Events is not Reported"},null,null,null,{"$f":"IF(D82=\"Subsequent Events is not Reported\",\"Blank\",\"\")","v":"Blank"},""]
[{"$f":"A70+1","v":28},{"$f":"HYPERLINK(\"#'Schedule V(c)'!A1\",\"Schedule V(c) Schedule of Risk Management - Intra-Group Exposures\")","v":"Schedule V(c) Schedule of Risk Management - Intra-Group Exposures"}]
[null,"i)",{"$f":"HYPERLINK(\"#'Schedule V(c)'!E9\",\"10 Largest Counterparty Exposures\")","v":"10 Largest Counterparty Exposures"},{"$f":"IF('Schedule V(c)'!C13=0,\"Counterparty Exposure is not Completed\",\"True\")","v":"Counterparty Exposure is not Completed"},null,null,null,{"$f":"IF(D84=\"Counterparty Exposure is not Completed\",\"Blank\",\"\")","v":"Blank"},{"$f":"IF(H84=\"Blank\",IF(P84=TRUE,\"Yes\",\"\"),\"\")","v":""}]
[null,"ii)",{"$f":"HYPERLINK(\"#'Schedule V(c)'!E55\",\"Intra-Group Transactions\")","v":"Intra-Group Transactions"},{"$f":"IF('Schedule V(c)'!C59=0,\"Intra-Group Transactions is not Reported\",\"True\")","v":"Intra-Group Transactions is not Reported"},null,null,null,{"$f":"IF(D85=\"Intra-Group Transactions is not Reported\",\"Blank\",\"\")","v":"Blank"},{"$f":"IF(H85=\"Blank\",IF(P85=TRUE,\"Yes\",\"\"),\"\")","v":""}]
[null,"iii)",{"$f":"HYPERLINK(\"#'Schedule V(c)'!E86\",\"Intra-Group Reinsurance & Retrocession\")","v":"Intra-Group Reinsurance & Retrocession"},{"$f":"IF('Schedule V(c)'!C91=0,\"Intra-Group R/I is not Reported\",\"True\")","v":"Intra-Group R/I is not Reported"},null,null,null,{"$f":"IF(D86=\"Intra-Group R/I is not Reported\",\"Blank\",\"\")","v":"Blank"},{"$f":"IF(H86=\"Blank\",IF(P86=TRUE,\"Yes\",\"\"),\"\")","v":""}]
[null,"iv)",{"$f":"HYPERLINK(\"#'Schedule V(c)'!J115\",\"Proportion of Internal Reinsurance\")","v":"Proportion of Internal Reinsurance"},{"$f":"IF('Schedule V(c)'!L117=0,\"Proportion R/I is not Reported\",\"True\")","v":"Proportion R/I is not Reported"},null,null,null,{"$f":"IF(D87=\"Proportion R/I is not Reported\",\"Blank\",\"\")","v":"Blank"},{"$f":"IF(H87=\"Blank\",IF(P87=TRUE,\"Yes\",\"\"),\"\")","v":""}]
[{"$f":"A83+1","v":29},{"$f":"HYPERLINK(\"#'Schedule V(e)'!A1\",\"Schedule V(e) Schedule of Risk Management - Stress & Scenario Tests\")","v":"Schedule V(e) Schedule of Risk Management - Stress & Scenario Tests"}]
[null,"i)",{"$f":"HYPERLINK(\"#'Schedule V(e)'!F17:G22\",\"Financial Market Scenarios\")","v":"Financial Market Scenarios"},{"$f":"IF('Schedule V(e)'!H8=\"\",IF(COUNTBLANK('Schedule V(e)'!F12:G18)=0,\"True\",\"Financial Market Scenario is not Reported\"),\"True\")","v":"True"},null,null,null,{"$f":"IF(D89=\"Financial Market Scenario is not Reported\",\"Blank\",\"\")","v":""},{"$f":"IF(H89=\"Blank\",IF(P89=TRUE,\"Yes\",\"\"),\"\")","v":""}]
[null,"ii)",{"$f":"HYPERLINK(\"#'Schedule V(e)'!B31:L33\",\"Other Underwriting Loss Scenarios\")","v":"Other Underwriting Loss Scenarios"},{"$f":"IF('Schedule V(e)'!H8=\"\",IF(COUNTIF('Schedule V(e)'!I116:I118,0)=0,\"True\",\"Other Underwriting Loss Scenarios is not Reported\"),\"True\")","v":"Other Underwriting Loss Scenarios is not Reported"},null,null,null,{"$f":"IF(D90=\"Other Underwriting Loss Scenarios is not Reported\",\"Blank\",\"\")","v":"Blank"},{"$f":"IF(H90=\"Blank\",IF(P90=TRUE,\"Yes\",\"\"),\"\")","v":""}]
[null,"iii)",{"$f":"HYPERLINK(\"#'Schedule V(e)'!b54:D58\",\"Reinsurer Specific Worst Case Scenario\")","v":"Reinsurer Specific Worst Case Scenario"},{"$f":"IF((COUNTIF('Schedule V(e)'!D142:E143,0)+COUNTIF('Schedule V(e)'!D151:E152,0))>2,\"Reinsurer Expecific Scenario is not Reported\",\"True\")","v":"Reinsurer Expecific Scenario is not Reported"},null,null,null,{"$f":"IF(D91=\"Reinsurer Expecific Scenario is not Reported\",\"Blank\",\"\")","v":"Blank"},{"$f":"IF(H91=\"Blank\",IF(P91=TRUE,\"Yes\",\"\"),\"\")","v":""}]
[{"$f":"A88+1","v":30},{"$f":"HYPERLINK(\"#'Schedule V(f)'!A1\",\"Schedule V(f) Schedule of Risk Management - Modified Coinsurance Arrangements\")","v":"Schedule V(f) Schedule of Risk Management - Modified Coinsurance Arrangements"}]
[null,"i)",{"$f":"HYPERLINK(\"#'Schedule V(f)'!A1\",\"Modified Coinsurance Arrangements\")","v":"Modified Coinsurance Arrangements"},{"$f":"IF('Schedule V(f)'!J32=0,\"Schedule is Blank\",\"True\")","v":"Schedule is Blank"}]
[{"$f":"A92+1","v":31},{"$f":"HYPERLINK(\"#'Schedule V(g)'!A1\",\"Schedule V(g) Schedule of Risk Management - Reconciliation from GAAP Financial Statements to Form 1EBS\")","v":"Schedule V(g) Schedule of Risk Management - Reconciliation from GAAP Financial Statements to Form 1EBS"}]
[null,"i)",{"$f":"HYPERLINK(\"#'Schedule V(g)'!A1\",\"Statutory Financial Statement Assets equals Form 4EBS\")","v":"Statutory Financial Statement Assets equals Form 4EBS"},{"$f":"IF('Schedule V(g)'!D51=0,\"Schedule is Blank\",'Schedule V(g)'!D53)","v":"Schedule is Blank"},{"$f":"+'Schedule V(g)'!D55","v":0},{"$f":"IF('Schedule V(g)'!D51=0,0,'Schedule V(g)'!D55/'Form 4EBS'!F93)","v":0},null,{"$f":"IF(OR(D95=\"False\",D95=\"Schedule is Blank\"),\"Blank\",\"\")","v":"Blank"},{"$f":"IF(H95=\"Blank\",IF(P95=TRUE,\"Yes\",\"\"),\"\")","v":""},null,{"$f":"IF(D95=\"False\",\"False.\",\"\")","v":""},{"$f":"IF(K95=\"\",\"\",IF(P95=TRUE,\"Yes\",\"\"))","v":""}]
[null,"ii)",{"$f":"HYPERLINK(\"#'Schedule V(g)'!A1\",\"Statutory Financial Statement Liabilities equals Form 4EBS\")","v":"Statutory Financial Statement Liabilities equals Form 4EBS"},{"$f":"IF('Schedule V(g)'!E51=0,\"Schedule is Blank\",'Schedule V(g)'!E53)","v":"Schedule is Blank"},{"$f":"+'Schedule V(g)'!E55","v":0},{"$f":"IF('Schedule V(g)'!E51=0,0,'Schedule V(g)'!E55/'Form 4EBS'!F180)","v":0},null,{"$f":"IF(OR(D96=\"False\",D96=\"Schedule is Blank\"),\"Blank\",\"\")","v":"Blank"},{"$f":"IF(H96=\"Blank\",IF(P96=TRUE,\"Yes\",\"\"),\"\")","v":""},null,{"$f":"IF(D96=\"False\",\"False.\",\"\")","v":""},{"$f":"IF(K96=\"\",\"\",IF(P96=TRUE,\"Yes\",\"\"))","v":""}]
[null,"iii)",{"$f":"HYPERLINK(\"#'Schedule V(g)'!A1\",\"Statutory Financial Statement Capital & Surplus equals Form 4EBS\")","v":"Statutory Financial Statement Capital & Surplus equals Form 4EBS"},{"$f":"IF('Schedule V(g)'!G51=0,\"Schedule is Blank\",'Schedule V(g)'!G53)","v":"Schedule is Blank"},{"$f":"+'Schedule V(g)'!G55","v":0},{"$f":"IF('Schedule V(g)'!G51=0,0,'Schedule V(g)'!G55/'Form 4EBS'!F184)","v":0},null,{"$f":"IF(OR(D97=\"False\",D97=\"Schedule is Blank\"),\"Blank\",\"\")","v":"Blank"},{"$f":"IF(H97=\"Blank\",IF(P97=TRUE,\"Yes\",\"\"),\"\")","v":""},null,{"$f":"IF(D97=\"False\",\"False.\",\"\")","v":""},{"$f":"IF(K97=\"\",\"\",IF(P97=TRUE,\"Yes\",\"\"))","v":""}]
[{"$f":"A94+1","v":32},{"$f":"HYPERLINK(\"#'Schedule V(k)'!A1\",\"Schedule V(k) Schedule of Risk Management - Details of Deposit Assets and Liabilities\")","v":"Schedule V(k) Schedule of Risk Management - Details of Deposit Assets and Liabilities"}]
[null,"i)",{"$f":"HYPERLINK(\"#'Schedule V(k)'!A1\",\"Details of Deposit Assets and Liabilities\")","v":"Details of Deposit Assets and Liabilities"},{"$f":"IF(('Form 1SFS'!F86+'Form 1SFS'!H86+'Form 1SFS'!K86)=0,\"N/A\",IF('Schedule V(k)'!F58=0,\"Schedule is Blank\",\"True\"))","v":"N/A"},null,null,null,{"$f":"IF(D99=\"Schedule is Blank\",\"Blank\",\"\")","v":""},{"$f":"IF(H99=\"Blank\",IF(P99=TRUE,\"Yes\",\"\"),\"\")","v":""},null,null,null,null,null,null,false]
[{"$f":"A98+1","v":33},{"$f":"HYPERLINK(\"#'Schedule V(l)'!A1\",\"Schedule V(l) Schedule of Risk Management - Schedule of Segregated Accounts\")","v":"Schedule V(l) Schedule of Risk Management - Schedule of Segregated Accounts"}]
[null,"i)",{"$f":"HYPERLINK(\"#'Schedule V(l)'!A1\",\"Schedule of Segregated Accounts\")","v":"Schedule of Segregated Accounts"},{"$f":"IF(('Form 1SFS'!F85+'Form 1SFS'!K85+'Form 1SFS'!H83+'Form 1SFS'!K83+'Form 1SFS'!H84+'Form 1SFS'!K84)=0,\"N/A\",IF('Schedule V(l)'!BC18=0,\"Schedule is Blank\",\"True\"))","v":"N/A"},null,null,null,{"$f":"IF(D101=\"Schedule is Blank\",\"Blank\",\"\")","v":""},{"$f":"IF(H101=\"Blank\",IF(P101=TRUE,\"Yes\",\"\"),\"\")","v":""},null,null,null,null,null,null,false]
[{"$f":"A100+1","v":34},{"$f":"HYPERLINK(\"#'Schedule VI'!A1\",\"Schedule VI - Schedule of Assets\")","v":"Schedule VI - Schedule of Assets"}]
[null,"i)",{"$f":"HYPERLINK(\"#'Schedule VI'!A2000\",\"Assets equals Form 1SFS\")","v":"Assets equals Form 1SFS"},{"$f":"IF('Schedule VI'!F2000=0,\"Schedule is Blank\",'Schedule VI'!F2004)","v":"Schedule is Blank"},{"$f":"'Schedule VI'!F2006","v":0},{"$f":"IFERROR(('Schedule VI'!F2000-'Schedule VI'!F2002)/'Schedule VI'!F2002,0)","v":0},null,{"$f":"IF(D103=\"Schedule is Blank\",\"Blank\",\"\")","v":"Blank"},{"$f":"IF(H103=\"Blank\",IF(P103=TRUE,\"Yes\",\"\"),\"\")","v":""},null,{"$f":"IF(D103=\"False\",\"False.\",\"\")","v":""},{"$f":"IF(K103=\"\",\"\",IF(P103=TRUE,\"Yes\",\"\"))","v":""}]
[null,"ii)",{"$f":"HYPERLINK(\"#'Schedule VI'!A2029\",\"Level 1-3 Asset Reconcilation\")","v":"Level 1-3 Asset Reconcilation"},{"$f":"IF('Schedule VI'!E2025=0,\"Schedule is Blank\",'Schedule VI'!F2029)","v":"Schedule is Blank"},{"$f":"'Schedule VI'!E2029","v":0},{"$f":"IFERROR(('Schedule VI'!E2025-'Schedule VI'!E2027)/'Schedule VI'!E2027,0)","v":0},null,{"$f":"IF(D104=\"Schedule is Blank\",\"Blank\",\"\")","v":"Blank"},{"$f":"IF(H104=\"Blank\",IF(P104=TRUE,\"Yes\",\"\"),\"\")","v":""},null,{"$f":"IF(D104=\"False\",\"False.\",\"\")","v":""},{"$f":"IF(K104=\"\",\"\",IF(P104=TRUE,\"Yes\",\"\"))","v":""}]
[{"$f":"A102+1","v":35},{"$f":"HYPERLINK(\"#'Schedule VI (EBS)'!A1\",\"Schedule VI (EBS) - Schedule of Assets\")","v":"Schedule VI (EBS) - Schedule of Assets"}]
[null,"i)",{"$f":"HYPERLINK(\"#'Schedule VI (EBS)'!A2000\",\"Assets equals Form 1EBS\")","v":"Assets equals Form 1EBS"},{"$f":"IF('Schedule VI (EBS)'!F2000=0,\"Schedule is Blank\",'Schedule VI (EBS)'!F2004)","v":"Schedule is Blank"},{"$f":"'Schedule VI (EBS)'!F2006","v":0},{"$f":"IFERROR(('Schedule VI (EBS)'!F2000-'Schedule VI (EBS)'!F2002)/'Schedule VI (EBS)'!F2002,0)","v":0},null,{"$f":"IF(D106=\"Schedule is Blank\",\"Blank\",\"\")","v":"Blank"},{"$f":"IF(H106=\"Blank\",IF(P106=TRUE,\"Yes\",\"\"),\"\")","v":""},null,{"$f":"IF(D106=\"False\",\"False.\",\"\")","v":""},{"$f":"IF(K106=\"\",\"\",IF(P106=TRUE,\"Yes\",\"\"))","v":""}]
[null,"ii)",{"$f":"HYPERLINK(\"#'Schedule VIA'!A2029\",\"Level 1-3 Asset Reconcilation\")","v":"Level 1-3 Asset Reconcilation"},{"$f":"IF('Schedule VI (EBS)'!E2025=0,\"Schedule is Blank\",'Schedule VI (EBS)'!F2029)","v":"Schedule is Blank"},{"$f":"'Schedule VI (EBS)'!E2029","v":0},{"$f":"IFERROR(('Schedule VI (EBS)'!E2025-'Schedule VI (EBS)'!E2027)/'Schedule VI (EBS)'!E2027,0)","v":0},null,{"$f":"IF(D107=\"Schedule is Blank\",\"Blank\",\"\")","v":"Blank"},{"$f":"IF(H107=\"Blank\",IF(P107=TRUE,\"Yes\",\"\"),\"\")","v":""},null,{"$f":"IF(D107=\"False\",\"False.\",\"\")","v":""},{"$f":"IF(K107=\"\",\"\",IF(P107=TRUE,\"Yes\",\"\"))","v":""}]
[{"$f":"A105+1","v":36},{"$f":"HYPERLINK(\"#'Schedule VII'!A1\",\"Schedule VII - Schedule of Long-Term Insurance\")","v":"Schedule VII - Schedule of Long-Term Insurance"}]
[null,"i)",{"$f":"HYPERLINK(\"#'Schedule VII'!A1\",\"Long-Term Reserves\")","v":"Long-Term Reserves"},{"$f":"IF(('Form 1SFS'!H154+'Form 1SFS'!K154)=0,\"N/A\",IF('Schedule VII'!D48=0,\"Schedule is Blank\",\"True\"))","v":"N/A"},null,null,null,{"$f":"IF(D109=\"Schedule is Blank\",\"Blank\",\"\")","v":""},{"$f":"IF(H109=\"Blank\",IF(P109=TRUE,\"Yes\",\"\"),\"\")","v":""}]
[{"$f":"A108+1","v":37},{"$f":"HYPERLINK(\"#'Schedule VII (EBS)'!A1\",\"Schedule VII (EBS) - Schedule of Long-Term Insurance\")","v":"Schedule VII (EBS) - Schedule of Long-Term Insurance"}]
[null,"i)",{"$f":"HYPERLINK(\"#'Schedule VII (EBS)'!A1\",\"Long-Term Reserves\")","v":"Long-Term Reserves"},{"$f":"IF('Form 4EBS'!F134=0,\"N/A\",IF('Schedule VII (EBS)'!D48=0,\"Schedule is Blank\",\"True\"))","v":"N/A"},null,null,null,{"$f":"IF(D111=\"Schedule is Blank\",\"Blank\",\"\")","v":""},{"$f":"IF(H111=\"Blank\",IF(P111=TRUE,\"Yes\",\"\"),\"\")","v":""}]
[{"$f":"A110+1","v":38},{"$f":"HYPERLINK(\"#'Schedule VIII'!A1\",\"Schedule VIII - Schedule of Variable Annuity\")","v":"Schedule VIII - Schedule of Variable Annuity"}]
[null,"i)",{"$f":"HYPERLINK(\"#'Schedule VIII'!A1\",\"Long-Term Variable Annuity Reserves\")","v":"Long-Term Variable Annuity Reserves"},{"$f":"IF(('Form 1SFS'!H154+'Form 1SFS'!K154)=0,\"N/A\",IF('Schedule VIII'!F48=0,\"Schedule is Blank\",\"True\"))","v":"N/A"},null,null,null,{"$f":"IF(D113=\"Schedule is Blank\",\"Blank\",\"\")","v":""},{"$f":"IF(H113=\"Blank\",IF(P113=TRUE,\"Yes\",\"\"),\"\")","v":""}]
[{"$f":"A112+1","v":39},{"$f":"HYPERLINK(\"#'Schedule VIII (EBS)'!A1\",\"Schedule VIII (EBS) - Schedule of Variable Annuity\")","v":"Schedule VIII (EBS) - Schedule of Variable Annuity"}]
[null,"i)",{"$f":"HYPERLINK(\"#'Schedule VIII (EBS)'!A1\",\"Long-Term Variable Annuity Reserves\")","v":"Long-Term Variable Annuity Reserves"},{"$f":"IF('Form 4EBS'!F134=0,\"N/A\",IF('Schedule VIII (EBS)'!F48=0,\"Schedule is Blank\",\"True\"))","v":"N/A"},null,null,null,{"$f":"IF(D115=\"Schedule is Blank\",\"Blank\",\"\")","v":""},{"$f":"IF(H115=\"Blank\",IF(P115=TRUE,\"Yes\",\"\"),\"\")","v":""}]
[{"$f":"A114+1","v":40},{"$f":"HYPERLINK(\"#'Schedule VIIIA'!A1\",\"Schedule VIIIA - Schedule of Variable Annuity - Internal Capital Model\")","v":"Schedule VIIIA - Schedule of Variable Annuity - Internal Capital Model"}]
[null,"i)",{"$f":"HYPERLINK(\"#'Schedule VIIIA'!A1\",\"Long-Term Variable Annuity Capital Model\")","v":"Long-Term Variable Annuity Capital Model"},{"$f":"IF(('Form 1SFS'!H154+'Form 1SFS'!K154)=0,\"N/A\",IF('Schedule VIIIA'!S12=0,\"Schedule is Blank\",\"True\"))","v":"N/A"},null,null,null,{"$f":"IF(D117=\"Schedule is Blank\",\"Blank\",\"\")","v":""},{"$f":"IF(H117=\"Blank\",IF(P117=TRUE,\"Yes\",\"\"),\"\")","v":""}]
[{"$f":"A116+1","v":41},{"$f":"HYPERLINK(\"#'Schedule VIIIA (EBS)'!A1\",\"Schedule VIIIA (EBS) - Schedule of Variable Annuity - Internal Capital Model\")","v":"Schedule VIIIA (EBS) - Schedule of Variable Annuity - Internal Capital Model"}]
[null,"i)",{"$f":"HYPERLINK(\"#'Schedule VIIIA (EBS)'!A1\",\"Long-Term Variable Annuity Capital Model\")","v":"Long-Term Variable Annuity Capital Model"},{"$f":"IF('Form 4EBS'!F134=0,\"N/A\",IF('Schedule VIIIA (EBS)'!S12=0,\"Schedule is Blank\",\"True\"))","v":"N/A"},null,null,null,{"$f":"IF(D119=\"Schedule is Blank\",\"Blank\",\"\")","v":""},{"$f":"IF(H119=\"Blank\",IF(P119=TRUE,\"Yes\",\"\"),\"\")","v":""}]
[{"$f":"A118+1","v":42},{"$f":"HYPERLINK(\"#'Schedule XVIII'!A1\",\"Schedule XVIII Particulars of Reinsurance Balances\")","v":"Schedule XVIII Particulars of Reinsurance Balances"}]
[null,"i)",{"$f":"HYPERLINK(\"#'Schedule XVIII'!A1\",\"Reinsurance Balances as reported on Schedule XVIII & IIA equals Form 1SFS\")","v":"Reinsurance Balances as reported on Schedule XVIII & IIA equals Form 1SFS"},{"$f":"IF('Schedule XVIII'!G71=0,\"N/A\",IF('Schedule XVIII'!G54=0,\"Schedule is Blank\",'Schedule XVIII'!G76))","v":"N/A"},{"$f":"'Schedule XVIII'!G78","v":0},{"$f":"IF('Schedule XVIII'!G71=0,0,('Schedule XVIII'!G78)/'Schedule XVIII'!G71)","v":0},null,{"$f":"IF(D121=\"Schedule is Blank\",\"Blank\",\"\")","v":""},{"$f":"IF(H121=\"Blank\",IF(P121=TRUE,\"Yes\",\"\"),\"\")","v":""},null,{"$f":"IF(D121=\"False\",\"False.\",\"\")","v":""},{"$f":"IF(K121=\"\",\"\",IF(P121=TRUE,\"Yes\",\"\"))","v":""}]
[{"$f":"A120+1","v":43},{"$f":"HYPERLINK(\"#'Schedule XVIII (EBS)'!A1\",\"Schedule XVIII (EBS) Particulars of Reinsurance Balances\")","v":"Schedule XVIII (EBS) Particulars of Reinsurance Balances"}]
[null,"i)",{"$f":"HYPERLINK(\"#'Schedule XVIII (EBS)'!A1\",\"Reinsurance Balances as reported on Schedule XVIII (EBS) & IIA (EBS) equals Form 4EBS\")","v":"Reinsurance Balances as reported on Schedule XVIII (EBS) & IIA (EBS) equals Form 4EBS"},{"$f":"IF('Schedule XVIII (EBS)'!G71=0,\"N/A\",IF('Schedule XVIII (EBS)'!G54=0,\"Schedule is Blank\",'Schedule XVIII (EBS)'!G76))","v":"N/A"},{"$f":"'Schedule XVIII (EBS)'!G78","v":0},{"$f":"IF('Schedule XVIII (EBS)'!G71=0,0,('Schedule XVIII (EBS)'!G78)/'Schedule XVIII (EBS)'!G71)","v":0},null,{"$f":"IF(D123=\"Schedule is Blank\",\"Blank\",\"\")","v":""},{"$f":"IF(H123=\"Blank\",IF(P123=TRUE,\"Yes\",\"\"),\"\")","v":""},null,{"$f":"IF(D123=\"False\",\"False.\",\"\")","v":""},{"$f":"IF(K123=\"\",\"\",IF(P123=TRUE,\"Yes\",\"\"))","v":""}]
[{"$f":"A122+1","v":44},{"$f":"HYPERLINK(\"#'Schedule XIX'!A1\",\"Schedule XIX Particulars of Cash and Cash Equivalents\")","v":"Schedule XIX Particulars of Cash and Cash Equivalents"}]
[null,"i)",{"$f":"HYPERLINK(\"#'Schedule XIX'!A1\",\"Particulars of Cash and Cash Equivalents equals Form 4EBS\")","v":"Particulars of Cash and Cash Equivalents equals Form 4EBS"},{"$f":"IF('Schedule XIX'!H54=0,\"Schedule is Blank\",'Schedule XIX'!H74)","v":"Schedule is Blank"},{"$f":"'Schedule XIX'!H76","v":0},{"$f":"IF('Schedule XIX'!H54=0,0,('Schedule XIX'!H76)/'Schedule XIX'!H72)","v":0},null,{"$f":"IF(D125=\"Schedule is Blank\",\"Blank\",\"\")","v":"Blank"},{"$f":"IF(H125=\"Blank\",IF(P125=TRUE,\"Yes\",\"\"),\"\")","v":""},null,{"$f":"IF(D125=\"False\",\"False.\",\"\")","v":""},{"$f":"IF(K125=\"\",\"\",IF(P125=TRUE,\"Yes\",\"\"))","v":""}]
[{"$f":"A124+1","v":45},{"$f":"HYPERLINK(\"#'Schedule XIXA'!A1\",\"Schedule XIXA Particulars of Cash and Cash Equivalents\")","v":"Schedule XIXA Particulars of Cash and Cash Equivalents"}]
[null,"i)",{"$f":"HYPERLINK(\"#'Schedule XIXA'!A1\",\"Particulars of Cash and Cash Equivalents equals Form 4EBS\")","v":"Particulars of Cash and Cash Equivalents equals Form 4EBS"},{"$f":"IF('Schedule XIXA'!F54=0,\"Schedule is Blank\",'Schedule XIXA'!F74)","v":"Schedule is Blank"},{"$f":"'Schedule XIXA'!F77","v":0},{"$f":"IF('Schedule XIXA'!F72=0,0,('Schedule XIXA'!F76)/'Schedule XIXA'!F72)","v":0},null,{"$f":"IF(D127=\"Schedule is Blank\",\"Blank\",\"\")","v":"Blank"},{"$f":"IF(H127=\"Blank\",IF(P127=TRUE,\"Yes\",\"\"),\"\")","v":""},null,{"$f":"IF(D127=\"False\",\"False.\",\"\")","v":""},{"$f":"IF(K127=\"\",\"\",IF(P127=TRUE,\"Yes\",\"\"))","v":""}]
[{"$f":"A126+1","v":46},{"$f":"HYPERLINK(\"#'Schedule XX'!A1\",\"Schedule XX Schedule of Currency Risk\")","v":"Schedule XX Schedule of Currency Risk"}]
[null,"i)",{"$f":"HYPERLINK(\"#'Schedule XX'!A1\",\"Currency Test of Minimum of 95% Has Been Met\")","v":"Currency Test of Minimum of 95% Has Been Met"},{"$f":"IF(+'Schedule XX'!L24=0,\"Schedule is Blank\",'Schedule XX'!L30)","v":"Schedule is Blank"},{"$f":"'Schedule XX'!L27-'Schedule XX'!L24","v":0},{"$f":"-IF('Schedule XX'!L27=0,0,('Schedule XX'!L24-'Schedule XX'!L27)/'Schedule XX'!L27)","v":0},null,{"$f":"IF(D129=\"Schedule is Blank\",\"Blank\",\"\")","v":"Blank"},{"$f":"IF(H129=\"Blank\",IF(P129=TRUE,\"Yes\",\"\"),\"\")","v":""},null,{"$f":"IF(D129=\"False\",\"False.\",\"\")","v":""},{"$f":"IF(K129=\"\",\"\",IF(P129=TRUE,\"Yes\",\"\"))","v":""},null,null,null,false]
[null,"ii)",{"$f":"HYPERLINK(\"#'Schedule XX'!T36\",\"Liabilities and ECR Charge has been completed\")","v":"Liabilities and ECR Charge has been completed"},{"$f":"IF(COUNTIF('Schedule XX'!L34:P36,0)>0,\"Schedule is not Complete\",\"True\")","v":"Schedule is not Complete"},null,null,null,{"$f":"IF(D130=\"Schedule is not complete\",\"Blank\",\"\")","v":"Blank"},{"$f":"IF(H130=\"Blank\",IF(P130=TRUE,\"Yes\",\"\"),\"\")","v":""}]
[{"$f":"A128+1","v":47},{"$f":"HYPERLINK(\"#'Schedule XXA'!A1\",\"Schedule XXA Schedule of Currency Risk\")","v":"Schedule XXA Schedule of Currency Risk"}]
[null,"i)",{"$f":"HYPERLINK(\"#'Schedule XXA'!A1\",\"Currency Test of Minimum of 95% Has Been Met\")","v":"Currency Test of Minimum of 95% Has Been Met"},{"$f":"IF('Schedule XXA'!D33=0,\"Schedule is Blank\",'Schedule XXA'!D39)","v":"Schedule is Blank"},{"$f":"'Schedule XXA'!D36-'Schedule XXA'!D33-'Schedule XXA'!F33-'Schedule XXA'!H33-'Schedule XXA'!J33-'Schedule XXA'!L33","v":0},{"$f":"IF('Schedule XXA'!D33=0,0,('Schedule XXA'!D36-'Schedule XXA'!D33-'Schedule XXA'!F33-'Schedule XXA'!H33-'Schedule XXA'!J33-'Schedule XXA'!L33)/'Schedule XXA'!D36)","v":0},null,{"$f":"IF(D132=\"Schedule is Blank\",\"Blank\",\"\")","v":"Blank"},{"$f":"IF(H132=\"Blank\",IF(P132=TRUE,\"Yes\",\"\"),\"\")","v":""},null,{"$f":"IF(D132=\"False\",\"False.\",\"\")","v":""},{"$f":"IF(K132=\"\",\"\",IF(P132=TRUE,\"Yes\",\"\"))","v":""}]
[null,"ii)",{"$f":"HYPERLINK(\"#'Schedule XXA'!P45\",\"Liabilities and ECR Charge has been completed\")","v":"Liabilities and ECR Charge has been completed"},{"$f":"IF(COUNTIF('Schedule XXA'!D43:H45,0)>0,\"Schedule is not Complete\",\"True\")","v":"Schedule is not Complete"},null,null,null,{"$f":"IF(D133=\"Schedule is not complete\",\"Blank\",\"\")","v":"Blank"},{"$f":"IF(H133=\"Blank\",IF(P133=TRUE,\"Yes\",\"\"),\"\")","v":""}]
[{"$f":"A131+1","v":48},{"$f":"HYPERLINK(\"#'Schedule XXI'!A1\",\"Schedule XXI Schedule of Concentration Risk\")","v":"Schedule XXI Schedule of Concentration Risk"}]
[null,"i)",{"$f":"HYPERLINK(\"#'Schedule XXI'!A1\",\"Particulars of Concentration Risk\")","v":"Particulars of Concentration Risk"},{"$f":"IF('Schedule XXI'!M58=0,\"Schedule is Blank\",\"True\")","v":"Schedule is Blank"},null,null,null,{"$f":"IF(D135=\"Schedule is Blank\",\"Blank\",\"\")","v":"Blank"},{"$f":"IF(H135=\"Blank\",IF(P135=TRUE,\"Yes\",\"\"),\"\")","v":""}]
[null,"ii)",{"$f":"HYPERLINK(\"#'Schedule XXI'!A1\",\"Particulars of Concentration Risk - Bond Type and BSCR Rating Complete\")","v":"Particulars of Concentration Risk - Bond Type and BSCR Rating Complete"},{"$f":"IF('Schedule XXI'!M58=0,\"Schedule is Blank\",IF(ROUND('Schedule XXI'!M58-'Concentration Risk'!D111,0)=0,\"True\",\"Schedule is not Complete\"))","v":"Schedule is Blank"},{"$f":"'Schedule XXI'!M58-'Concentration Risk'!D111","v":0},{"$f":"IF('Schedule XXI'!M58=0,0,('Schedule XXI'!M58-'Concentration Risk'!D111)/'Schedule XXI'!M58)","v":0},null,{"$f":"IF(D136=\"Schedule is Blank\",\"Blank\",\"\")","v":"Blank"},{"$f":"IF(H136=\"Blank\",IF(P136=TRUE,\"Yes\",\"\"),\"\")","v":""}]
[{"$f":"A134+1","v":49},{"$f":"HYPERLINK(\"#'Schedule XXIA'!A1\",\"Schedule XXIA Schedule of Concentration Risk\")","v":"Schedule XXIA Schedule of Concentration Risk"}]
[null,"i)",{"$f":"HYPERLINK(\"#'Schedule XXIA'!A1\",\"Particulars of Concentration Risk\")","v":"Particulars of Concentration Risk"},{"$f":"IF('Schedule XXIA'!M58=0,\"Schedule is Blank\",\"True\")","v":"Schedule is Blank"},null,null,null,{"$f":"IF(D138=\"Schedule is Blank\",\"Blank\",\"\")","v":"Blank"},{"$f":"IF(H138=\"Blank\",IF(P138=TRUE,\"Yes\",\"\"),\"\")","v":""}]
[null,"ii)",{"$f":"HYPERLINK(\"#'Schedule XXIA'!A1\",\"Particulars of Concentration Risk - Bond Type and BSCR Rating Complete\")","v":"Particulars of Concentration Risk - Bond Type and BSCR Rating Complete"},{"$f":"IF('Schedule XXIA'!M58=0,\"Schedule is Blank\",IF(ROUND('Schedule XXIA'!M58-'Concentration Risk (Revised)'!D123,0)=0,\"True\",\"Schedule is not Complete\"))","v":"Schedule is Blank"},{"$f":"'Schedule XXIA'!M58-'Concentration Risk (Revised)'!D123","v":0},{"$f":"IF('Schedule XXIA'!M58=0,0,('Schedule XXIA'!M58-'Concentration Risk (Revised)'!D123)/'Schedule XXIA'!M58)","v":0},null,{"$f":"IF(D139=\"Schedule is Blank\",\"Blank\",\"\")","v":"Blank"},{"$f":"IF(H139=\"Blank\",IF(P139=TRUE,\"Yes\",\"\"),\"\")","v":""}]
[]
[null,"CISSA Schedules"]
[{"$f":"A137+1","v":50},{"$f":"HYPERLINK(\"#'Schedule IX(a)'!A1\",\"Schedule IX(a) - CISSA Capital Summary\")","v":"Schedule IX(a) - CISSA Capital Summary"}]
[null,"i)",{"$f":"HYPERLINK(\"#'Schedule IX(a)'!A1\",\"CISSA Capital Summary\")","v":"CISSA Capital Summary"},{"$f":"IF('Schedule IX(a)'!E31=0,\"CISSA Capital Summary is Blank\",\"True\")","v":"CISSA Capital Summary is Blank"},null,null,null,{"$f":"IF(D143=\"CISSA Capital Summary is Blank\",\"Blank\",\"\")","v":"Blank"},{"$f":"IF(H143=\"Blank\",IF(P143=TRUE,\"Yes\",\"\"),\"\")","v":""}]
[null,"ii)",{"$f":"HYPERLINK(\"#'Schedule IX(a)'!B44:C50\",\"Insurer's Reason for Maintaining CISSA Capital Amount\")","v":"Insurer's Reason for Maintaining CISSA Capital Amount"},{"$f":"IF(COUNTIF('Schedule IX(a)'!B44:B50,\"Select\")=7,\"CISSA Section is Blank\",\"True\")","v":"True"},null,null,null,{"$f":"IF(D144=\"CISSA Section is Blank\",\"Blank\",\"\")","v":""},""]
[null,"iii)",{"$f":"HYPERLINK(\"#'Schedule IX(a)'!B54:C60\",\"Insurer's Method of Aggregating CISSA Capital\")","v":"Insurer's Method of Aggregating CISSA Capital"},{"$f":"IF(COUNTIF('Schedule IX(a)'!B54:B60,\"Select\")=7,\"CISSA Section is Blank\",\"True\")","v":"True"},null,null,null,"",""]
[null,"iv)",{"$f":"HYPERLINK(\"#'Schedule IX(a)'!B64:C72\",\"Insurer's Contingency Plan\")","v":"Insurer's Contingency Plan"},{"$f":"IF(COUNTIF('Schedule IX(a)'!B64:B72,\"Select\")=9,\"CISSA Section is Blank\",\"True\")","v":"True"},null,null,null,"",""]
[null,"v)",{"$f":"HYPERLINK(\"#'Schedule IX(a)'!B74:G77\",\"Insurer's Confirmation of Contractual Commits under Stressed Situations\")","v":"Insurer's Confirmation of Contractual Commits under Stressed Situations"},{"$f":"IF('Schedule IX(a)'!G74=\"Select\",\"CISSA Section is Blank\",\"True\")","v":"True"},null,null,null,"",""]
[null,"vi)",{"$f":"HYPERLINK(\"#'Schedule IX(a)'!B79:G81\",\"Insurer's Confirmation of Issurance of Downstream of Debt\")","v":"Insurer's Confirmation of Issurance of Downstream of Debt"},{"$f":"IF('Schedule IX(a)'!G79=\"Select\",\"CISSA Section is Blank\",\"True\")","v":"True"},null,null,null,"",""]
[null,"vii)",{"$f":"HYPERLINK(\"#'Schedule IX(a)'!B83:G85\",\"Insurer's Confirmation of Receipt of Downstream of Debt\")","v":"Insurer's Confirmation of Receipt of Downstream of Debt"},{"$f":"IF('Schedule IX(a)'!G83=\"Select\",\"CISSA Section is Blank\",\"True\")","v":"True"},null,null,null,"",""]
[null,"viii)",{"$f":"HYPERLINK(\"#'Schedule IX(a)'!B87:G93\",\"Insurer's Confirmation of Transferrability of Assets\")","v":"Insurer's Confirmation of Transferrability of Assets"},{"$f":"IF('Schedule IX(a)'!G87=\"Select\",\"CISSA Section is Blank\",\"True\")","v":"True"},null,null,null,"",""]
[{"$f":"A142+1","v":51},{"$f":"HYPERLINK(\"#'Schedule IX(b)'!A1\",\"Schedule IX(b) - CISSA General Questions\")","v":"Schedule IX(b) - CISSA General Questions"}]
[null,"i)",{"$f":"HYPERLINK(\"#'Schedule IX(b)'!B8:F28\",\"CISSA Integration\")","v":"CISSA Integration"},{"$f":"IF('Schedule IX(b)'!F7=\"Select\",\"CISSA Section is Blank\",\"True\")","v":"True"},null,null,null,{"$f":"IF(D152=\"CISSA Section is Blank\",\"Blank\",\"\")","v":""},{"$f":"IF(H152=\"Blank\",IF(P152=TRUE,\"Yes\",\"\"),\"\")","v":""}]
[null,"ii)",{"$f":"HYPERLINK(\"#'Schedule IX(b)'!B31:F37\",\"CISSA General Questions\")","v":"CISSA General Questions"},{"$f":"IF(COUNTIF('Schedule IX(b)'!F29:F35,\"Select\")>=2,\"CISSA Section is Blank\",\"True\")","v":"True"},null,null,null,{"$f":"IF(D153=\"CISSA Section is Blank\",\"Blank\",\"\")","v":""},{"$f":"IF(H153=\"Blank\",IF(P153=TRUE,\"Yes\",\"\"),\"\")","v":""}]
[]
[{"$f":"A151+1","v":52},{"$f":"HYPERLINK(\"#'Schedule IX(c)'!A1\",\"Schedule IX(c) - CISSA Assessment of Material Risks\")","v":"Schedule IX(c) - CISSA Assessment of Material Risks"}]
[null,"i)",{"$f":"HYPERLINK(\"#'Schedule IX(c)'!B66:F82\",\"CISSA Model Assessment\")","v":"CISSA Model Assessment"}]
[]
[null,"Eligible Capital"]
[{"$f":"A155+1","v":53},{"$f":"HYPERLINK(\"#'Schedule XII(a)'!A1\",\"Schedule XII(a) - Schedule of Eligible Capital\")","v":"Schedule XII(a) - Schedule of Eligible Capital"}]
[null,"i)",{"$f":"HYPERLINK(\"#'Schedule XII(a)'!G26:G30\",\"Policyholder Obligations equals Form 4EBS\")","v":"Policyholder Obligations equals Form 4EBS"},{"$f":"IF('Schedule XII(a)'!H30=0,\"N/A\",IF('Schedule XII(a)'!G28=0,\"Schedule Not Completed\",IF(ROUND('Schedule XII(a)'!H32,0)=0,\"True\",\"False\")))","v":"N/A"},{"$f":"'Schedule XII(a)'!H32","v":0},{"$f":"IF('Schedule XII(a)'!G28=0,0,'Schedule XII(a)'!H32/'Form 4EBS'!F115)","v":0},null,{"$f":"IF(D160=\"Schedule Not Completed\",\"Blank\",\"\")","v":""},{"$f":"IF(H160=\"Blank\",IF(P160=TRUE,\"Yes\",\"\"),\"\")","v":""}]
[]
[null,"ii)",{"$f":"HYPERLINK(\"#'Schedule XII(a)'!J79:J81\",\"Eligible Capital equals Economic Available Capital & Surplus\")","v":"Eligible Capital equals Economic Available Capital & Surplus"},{"$f":"IF('Schedule XII(a)'!J79=0,\"N/A\",'Schedule XII(a)'!J81)","v":"N/A"},{"$f":"'Schedule XII(a)'!J83","v":0},{"$f":"IF('Schedule XII(a)'!J79=0,0,('Schedule XII(a)'!J83/'Schedule XII(a)'!J9))","v":0},null,{"$f":"IF(D162=\"N/A\",\"Blank\",\"\")","v":"Blank"},{"$f":"IF(H162=\"Blank\",IF(P162=TRUE,\"Yes\",\"\"),\"\")","v":""},null,{"$f":"IF(D162=\"False\",\"False.\",\"\")","v":""},{"$f":"IF(K162=\"\",\"\",IF(P162=TRUE,\"Yes\",\"\"))","v":""}]
[{"$f":"A159+1","v":54},{"$f":"HYPERLINK(\"#'Schedule XII(b)'!A1\",\"Schedule XII(b) - Schedule of Eligible Capital Additional Details\")","v":"Schedule XII(b) - Schedule of Eligible Capital Additional Details"}]
[]
[null,"Schedule of Non-Insurance Financial Operating Entities"]
[{"$f":"A163+1","v":55},{"$f":"HYPERLINK(\"#'Schedule XVI'!A1\",\"Schedule XVI - Schedule of Non-Insurance Financial Operating Entities\")","v":"Schedule XVI - Schedule of Non-Insurance Financial Operating Entities"}]
[null,"i)",{"$f":"HYPERLINK(\"#'Schedule XVI'!A1\",\"Schedule of Non-Insurance Financial Operating Entities\")","v":"Schedule of Non-Insurance Financial Operating Entities"},{"$f":"IF('Form 4EBS'!F36=0,\"N/A\",)","v":"N/A"},null,null,null,{"$f":"IF(D167=\"Schedule is Blank\",\"Blank\",\"\")","v":""},{"$f":"IF(H167=\"Blank\",IF(P167=TRUE,\"Yes\",\"\"),\"\")","v":""},null,null,null,null,null,null,false]
[]
[null,"Schedule of Solvency"]
[{"$f":"A166+1","v":56},{"$f":"HYPERLINK(\"#'Schedule XVII'!A1\",\"Schedule XVII (EBS) - Schedule of Solvency\")","v":"Schedule XVII (EBS) - Schedule of Solvency"}]
[null,"i)",{"$f":"HYPERLINK(\"#'Schedule XVII'!A1\",\"Schedule of Solvency\")","v":"Schedule of Solvency"},{"$f":"IF('Schedule XVII'!J211=0,\"Schedule is Blank\", \"True\")","v":"Schedule is Blank"},null,null,null,{"$f":"IF(D171=\"Schedule is Blank\",\"Blank\",\"\")","v":"Blank"},{"$f":"IF(H171=\"Blank\",IF(P171=TRUE,\"Yes\",\"\"),\"\")","v":""},null,null,null,null,null,null,false]
[]
[null,"Commercial Insurers Risk Assessment (CIRA)"]
[{"$f":"A170+1","v":57},{"$f":"HYPERLINK(\"#'Corp Gov'!A1\",\"Corporate Governance\")","v":"Corporate Governance"},null,{"$f":"IF('Corp Gov'!D17=0,\"Schedule is Blank\", \"Schedule is Completed\")","v":"Schedule is Blank"},null,null,null,{"$f":"IF(D174=\"Schedule is Blank\",\"Blank\",\"\")","v":"Blank"},{"$f":"IF(H174=\"Blank\",IF(P174=TRUE,\"Yes\",\"\"),\"\")","v":""}]
[{"$f":"A174+1","v":58},{"$f":"HYPERLINK(\"#'Risk Man'!A1\",\"Risk Management\")","v":"Risk Management"},null,{"$f":"IF('Risk Man'!D18=0,\"Schedule is Blank\", \"Schedule is Completed\")","v":"Schedule is Blank"},null,null,null,"Blank",""]
[{"$f":"A175+1","v":59},{"$f":"HYPERLINK(\"#'Identification'!A1\",\"Identification (Class D & E Insurers Only)\")","v":"Identification (Class D & E Insurers Only)"},null,{"$f":"IF('Insurer Information'!$F$9=\"Class C\",\"N/A\",IF(Identification!M19=0,\"Schedule is Blank\", \"Schedule is Completed\"))","v":"N/A"},null,null,null,"",""]
[{"$f":"A176+1","v":60},{"$f":"HYPERLINK(\"#'Measurement'!A1\",\"Measurement (Class D & E Insurers Only)\")","v":"Measurement (Class D & E Insurers Only)"},null,{"$f":"IF('Insurer Information'!$F$9=\"Class C\",\"N/A\",IF(Measurement!M19=0,\"Schedule is Blank\", \"Schedule is Completed\"))","v":"N/A"},null,null,null,"",""]
[{"$f":"A177+1","v":61},{"$f":"HYPERLINK(\"#'Response'!A1\",\"Response (Class D & E Insurers Only)\")","v":"Response (Class D & E Insurers Only)"},null,{"$f":"IF('Insurer Information'!$F$9=\"Class C\",\"N/A\",IF(Response!M19=0,\"Schedule is Blank\", \"Schedule is Completed\"))","v":"N/A"},null,null,null,"",""]
[{"$f":"A178+1","v":62},{"$f":"HYPERLINK(\"#'Monitoring & Reporting'!A1\",\"Monitoring & Reporting (Class D & E Insurers Only)\")","v":"Monitoring & Reporting (Class D & E Insurers Only)"},null,{"$f":"IF('Insurer Information'!$F$9=\"Class C\",\"N/A\",IF('Monitoring & Reporting'!M19=0,\"Schedule is Blank\", \"Schedule is Completed\"))","v":"N/A"},null,null,null,"",""]
[]
[null,"Summary"]
[{"$f":"A179+1","v":63},{"$f":"HYPERLINK(\"#'Summary'!A1\",\"Summary Tab\")","v":"Summary Tab"}]
[null,"i)",{"$f":"HYPERLINK(\"#'Summary'!B65:F69\",\"ECR Ratio Met\")","v":"ECR Ratio Met"},{"$f":"IF(Summary!N76=0,\"ECR is Blank\",IF(Summary!N110>100%,\"ECR Ratio of \"&ROUND(Summary!N110,2)*100&\"% Met\",\"ECR of \"&ROUND(Summary!N110,2)*100&\"% is not Met\"))","v":"ECR is Blank"}]
[]
[null,"Company Specific Parameters"]
[{"$f":"A182+1","v":64},{"$f":"HYPERLINK(\"#'Comp Specific Parameters'!A1\",\"Company Specific Parameters\")","v":"Company Specific Parameters"}]
[null,"i)",{"$f":"HYPERLINK(\"#'Comp Specific Parameters'!A1\",\"Capital Charge has been amended\")","v":"Capital Charge has been amended"},{"$f":"IF(Summary!N68=0,\"No\",\"Adjustment made to a BSCR Capital Charge\")","v":"No"},{"$f":"ROUND(Summary!G68,0)","v":0},{"$f":"IF(Summary!G68=0,0,(Summary!G68)/Summary!G60)","v":0}]
[]
[null,null,null,null,null,null,null,null,null,null,""]

{"sheet":"Index","index":6,"n_rows":68,"n_cols":40,"rows_kept":68,"cut":false,"hidden":false,"merged":[[37,16,38,21],[25,16,26,21],[58,25,59,30],[61,16,62,21],[25,32,26,37],[58,16,59,21],[31,16,32,21],[49,25,50,30],[61,25,62,30],[43,39,44,44],[49,32,50,37],[49,39,50,44],[64,39,65,44],[58,39,59,44],[58,32,59,37],[61,39,62,44],[67,2,68,7],[58,9,59,14],[64,2,65,7],[64,9,65,14],[67,9,68,14],[61,2,62,7],[58,2,59,7],[61,9,62,14],[67,16,68,21],[64,16,65,21],[64,32,65,37],[61,32,62,37],[64,25,65,30],[67,25,68,30],[22,2,23,7],[22,39,23,44],[34,2,35,7],[22,32,23,37],[31,2,32,7],[31,32,32,37],[25,2,26,7],[34,39,35,44],[25,39,26,44],[22,25,23,30],[31,39,32,44],[34,16,35,21],[25,9,26,14],[28,2,29,7],[25,25,26,30],[49,2,50,7],[49,9,50,14],[49,16,50,21],[52,2,53,7],[43,16,44,21],[52,9,53,14],[43,2,44,7],[43,9,44,14],[19,39,20,44],[7,2,8,7],[7,9,8,14],[13,2,14,7],[19,2,20,7],[7,16,8,21],[16,16,17,21],[16,9,17,14],[19,9,20,14],[19,16,20,21],[19,25,20,30],[16,25,17,30],[4,39,5,44],[4,32,5,37],[22,9,23,14],[28,16,29,21],[28,9,29,14],[4,16,5,21],[28,39,29,44],[16,39,17,44],[19,32,20,37],[13,32,14,37],[13,39,14,44],[13,9,14,14],[13,16,14,21],[13,25,14,30],[4,25,5,30],[22,16,23,21],[4,2,5,7],[16,32,17,37],[4,9,5,14],[28,25,29,30],[43,25,44,30],[37,32,38,37],[37,25,38,30],[31,9,32,14],[34,9,35,14],[28,32,29,37],[37,9,38,14],[37,2,38,7],[34,32,35,37],[31,25,32,30],[34,25,35,30],[16,2,17,7]]}
[null,"INDEX"]
[null,{"$f":"'Insurer Information'!C7","v":"Enter Company Name"}]
[null,"CLICK BUTTON TO NAVIGATE"]
[]
[null,null,{"$f":"HYPERLINK(\"#'Submission'!A1\",\"Submission\")","v":"Submission"},null,null,null,null,null,null,{"$f":"HYPERLINK(\"#'Insurer Information'!A1\",\"Insurer Information\")","v":"Insurer Information"},null,null,null,null,null,null,{"$f":"HYPERLINK(\"#'Content'!A1\",\"Content\")","v":"Content"},null,null,null,null,null,null,null,null,{"$f":"HYPERLINK(\"#'Attachments'!A1\",\"Attachments\")","v":"Attachments"},null,null,null,null,null,null,{"$f":"HYPERLINK(\"#'BSCR Rating'!A1\",\"BSCR Rating\")","v":"BSCR Rating"},null,null,null,null,null,null,{"$f":"HYPERLINK(\"#'Declaration'!A1\",\"Declaration\")","v":"Declaration"}]
[]
[]
[null,null,{"$f":"HYPERLINK(\"#'AML (LT Direct Only)'!A1\",\"AML (for Direct LT Writers Only)\")","v":"AML (for Direct LT Writers Only)"},null,null,null,null,null,null,{"$f":"HYPERLINK(\"#'SAR & Sanc. (All)'!A1\",\"SAR & Sanctions (All insurers)\")","v":"SAR & Sanctions (All insurers)"},null,null,null,null,null,null,{"$f":"HYPERLINK(\"#'AML Reference'!A1\",\"AML Reference\")","v":"AML Reference"}]
[]
[]
[]
[null,"BSCR SCHEDULES"]
[]
[null,null,{"$f":"HYPERLINK(\"#'Information Sheet'!A1\",\"Information Sheet\")","v":"Information Sheet"},null,null,null,null,null,null,{"$f":"HYPERLINK(\"#'Form 1SFS'!A1\",\"Form 1SFS Balance Sheet\")","v":"Form 1SFS Balance Sheet"},null,null,null,null,null,null,{"$f":"HYPERLINK(\"#'Form 2SFS'!A1\",\"Form 2SFS Income Stmt\")","v":"Form 2SFS Income Stmt"},null,null,null,null,null,null,null,null,{"$f":"HYPERLINK(\"#'Form 8SFS'!A1\",\"Form 8SFS Capital & Surplus\")","v":"Form 8SFS Capital & Surplus"},null,null,null,null,null,null,{"$f":"HYPERLINK(\"#'Form 1ASFS'!A1\",\"Form 1ASFS \nIFRS Bal. Sheet\")","v":"Form 1ASFS \nIFRS Bal. Sheet"},null,null,null,null,null,null,{"$f":"HYPERLINK(\"#'Form 2ASFS'!A1\",\"Form 2ASFS \nIFRS Inc. Stmt\")","v":"Form 2ASFS \nIFRS Inc. Stmt"}]
[]
[]
[null,null,{"$f":"HYPERLINK(\"#'Form 8ASFS'!A1\",\"Form 8ASFS \nIFRS C&S\")","v":"Form 8ASFS \nIFRS C&S"},null,null,null,null,null,null,{"$f":"HYPERLINK(\"#'Form 4EBS'!A1\",\"Form 4EBS Balance Sheet\")","v":"Form 4EBS Balance Sheet"},null,null,null,null,null,null,{"$f":"HYPERLINK(\"#'Schedule II'!A1\",\"Sch II     Investments\")","v":"Sch II     Investments"},null,null,null,null,null,null,null,null,{"$f":"HYPERLINK(\"#'Schedule II (EBS)'!A1\",\"Sch II (EBS)    Investments\")","v":"Sch II (EBS)    Investments"},null,null,null,null,null,null,{"$f":"HYPERLINK(\"#'Schedule IIA'!A1\",\"Sch IIA          Funds Held\")","v":"Sch IIA          Funds Held"},null,null,null,null,null,null,{"$f":"HYPERLINK(\"#'Schedule IIA (EBS)'!A1\",\"Sch IIA (EBS)         Funds Held\")","v":"Sch IIA (EBS)         Funds Held"}]
[]
[]
[null,null,{"$f":"HYPERLINK(\"#'Investment Reconciliation'!A1\",\"Investment Reconciliation\")","v":"Investment Reconciliation"},null,null,null,null,null,null,{"$f":"HYPERLINK(\"#'Schedule IIB (EBS)'!A1\",\"Sch IIB (EBS)   Investments\")","v":"Sch IIB (EBS)   Investments"},null,null,null,null,null,null,{"$f":"HYPERLINK(\"#'Schedule IIC (EBS)'!A1\",\"Sch IIC (EBS)         Funds Held\")","v":"Sch IIC (EBS)         Funds Held"},null,null,null,null,null,null,null,null,{"$f":"HYPERLINK(\"#'SCHEDULE IID (EBS)'!A1\",\"Sch IID (EBS) Segregated Acc\")","v":"Sch IID (EBS) Segregated Acc"},null,null,null,null,null,null,{"$f":"HYPERLINK(\"#'SCHEDULE IIE (EBS)'!A1\",\"Sch IIE (EBS) Deposits\")","v":"Sch IIE (EBS) Deposits"},null,null,null,null,null,null,{"$f":"HYPERLINK(\"#'SCHEDULE IIF (EBS)'!A1\",\"Sch IIF (EBS) Other Sundry\")","v":"Sch IIF (EBS) Other Sundry"}]
[]
[]
[null,null,{"$f":"HYPERLINK(\"#'Grandfathered Equity Part'!A1\",\"Grandfathered Equity Part\")","v":"Grandfathered Equity Part"},null,null,null,null,null,null,{"$f":"HYPERLINK(\"#'Non-Grandfathered Equity Part'!A1\",\"Non-Grand fathered Equity Part\")","v":"Non-Grand fathered Equity Part"},null,null,null,null,null,null,{"$f":"HYPERLINK(\"#'SCHEDULE IVB'!A1\",\"Sch IVB \nLT Premium\")","v":"Sch IVB \nLT Premium"},null,null,null,null,null,null,null,null,{"$f":"HYPERLINK(\"#'SCHEDULE IVB (EBS)'!A1\",\"Sch IVB (EBS)\nLT Premium\")","v":"Sch IVB (EBS)\nLT Premium"},null,null,null,null,null,null,{"$f":"HYPERLINK(\"#'SCHEDULE IVF'!A1\",\"Sch IVF\nRisk Exposure\")","v":"Sch IVF\nRisk Exposure"},null,null,null,null,null,null,{"$f":"HYPERLINK(\"#'SCHEDULE V'!A1\",\"Sch V \nRisk Mgmt\")","v":"Sch V \nRisk Mgmt"}]
[]
[]
[null,null,{"$f":"HYPERLINK(\"#'SCHEDULE V(a)'!A1\",\"Sch V(a) Governance\")","v":"Sch V(a) Governance"},null,null,null,null,null,null,{"$f":"HYPERLINK(\"#'SCHEDULE V(c)'!A1\",\"Sch V(c) \nIntra-Group\")","v":"Sch V(c) \nIntra-Group"},null,null,null,null,null,null,{"$f":"HYPERLINK(\"#'SCHEDULE V(e)'!A1\",\"Sch V(e)\nStress Scenario\")","v":"Sch V(e)\nStress Scenario"},null,null,null,null,null,null,null,null,{"$f":"HYPERLINK(\"#'SCHEDULE V(f)'!A1\",\"Sch V(f) \nMod-Coinsurance\")","v":"Sch V(f) \nMod-Coinsurance"},null,null,null,null,null,null,{"$f":"HYPERLINK(\"#'SCHEDULE V(g)'!A1\",\"Sch V(g) \nGAAP-BSCR Rec\")","v":"Sch V(g) \nGAAP-BSCR Rec"},null,null,null,null,null,null,{"$f":"HYPERLINK(\"#'SCHEDULE V(k)'!A1\",\"Sch V(k) \nDeposit Assets\")","v":"Sch V(k) \nDeposit Assets"}]
[]
[]
[null,null,{"$f":"HYPERLINK(\"#'SCHEDULE V(l)'!A1\",\"Sch V(l) Segregated Acc\")","v":"Sch V(l) Segregated Acc"},null,null,null,null,null,null,{"$f":"HYPERLINK(\"#'SCHEDULE V(m)'!A1\",\"Sch V(m) \nAlt. Capital\")","v":"Sch V(m) \nAlt. Capital"},null,null,null,null,null,null,{"$f":"HYPERLINK(\"#'SCHEDULE VI'!A1\",\"Sch VI\nAssets\")","v":"Sch VI\nAssets"},null,null,null,null,null,null,null,null,{"$f":"HYPERLINK(\"#'SCHEDULE VIA'!A1\",\"Sch VIA\nFunds Held\")","v":"Sch VIA\nFunds Held"},null,null,null,null,null,null,{"$f":"HYPERLINK(\"#'SCHEDULE VI (EBS)'!A1\",\"Sch VI (EBS)\nAssets\")","v":"Sch VI (EBS)\nAssets"},null,null,null,null,null,null,{"$f":"HYPERLINK(\"#'SCHEDULE VIA (EBS)'!A1\",\"Sch VIA (EBS)\nFunds Held\")","v":"Sch VIA (EBS)\nFunds Held"}]
[]
[]
[null,null,{"$f":"HYPERLINK(\"#'SCHEDULE VII'!A1\",\"Sch VII\nLT Reserves\")","v":"Sch VII\nLT Reserves"},null,null,null,null,null,null,{"$f":"HYPERLINK(\"#'SCHEDULE VII (EBS)'!A1\",\"Sch VII (EBS)\nLT Reserves\")","v":"Sch VII (EBS)\nLT Reserves"},null,null,null,null,null,null,{"$f":"HYPERLINK(\"#'SCHEDULE VIII'!A1\",\"Sch VIII \nLT Annuity\")","v":"Sch VIII \nLT Annuity"},null,null,null,null,null,null,null,null,{"$f":"HYPERLINK(\"#'SCHEDULE VIII (EBS)'!A1\",\"Sch VIII (EBS) \nLT Annuity\")","v":"Sch VIII (EBS) \nLT Annuity"},null,null,null,null,null,null,{"$f":"HYPERLINK(\"#'SCHEDULE VIIIA'!A1\",\"Sch VIIIA\nInternal Model\")","v":"Sch VIIIA\nInternal Model"},null,null,null,null,null,null,{"$f":"HYPERLINK(\"#'SCHEDULE VIIIA (EBS)'!A1\",\"Sch VIIIA (EBS)\nInternal Model\")","v":"Sch VIIIA (EBS)\nInternal Model"}]
[]
[]
[null,null,{"$f":"HYPERLINK(\"#'SCHEDULE XVI'!A1\",\"Sch XVI \nNon-Insurance\")","v":"Sch XVI \nNon-Insurance"},null,null,null,null,null,null,{"$f":"HYPERLINK(\"#'SCHEDULE XVII'!A1\",\"Sch XVII \nSolvency Analysis\")","v":"Sch XVII \nSolvency Analysis"},null,null,null,null,null,null,{"$f":"HYPERLINK(\"#'SCHEDULE XVIII'!A1\",\"Sch XVIII \nCeded Reins\")","v":"Sch XVIII \nCeded Reins"},null,null,null,null,null,null,null,null,{"$f":"HYPERLINK(\"#'SCHEDULE XVIII (EBS)'!A1\",\"Sch XVIII (EBS)\nCeded Reins\")","v":"Sch XVIII (EBS)\nCeded Reins"},null,null,null,null,null,null,{"$f":"HYPERLINK(\"#'SCHEDULE XIX'!A1\",\"Sch XIX \nCash Counterpart\")","v":"Sch XIX \nCash Counterpart"},null,null,null,null,null,null,{"$f":"HYPERLINK(\"#'SCHEDULE XXIA'!A1\",\"Sch XXIA\nCash Counterpart\")","v":"Sch XXIA\nCash Counterpart"}]
[]
[]
[null,null,{"$f":"HYPERLINK(\"#'SCHEDULE XX'!A1\",\"Sch XX \nCurrency Analysis\")","v":"Sch XX \nCurrency Analysis"},null,null,null,null,null,null,{"$f":"HYPERLINK(\"#'SCHEDULE XXA'!A1\",\"Sch XXA\nCurrency Analysis\")","v":"Sch XXA\nCurrency Analysis"},null,null,null,null,null,null,{"$f":"HYPERLINK(\"#'SCHEDULE XXI'!A1\",\"Sch XXI \nCon Risk\")","v":"Sch XXI \nCon Risk"},null,null,null,null,null,null,null,null,{"$f":"HYPERLINK(\"#'SCHEDULE XXIA'!A1\",\"Sch XXIA \nCon Risk\")","v":"Sch XXIA \nCon Risk"},null,null,null,null,null,null,{"$f":"HYPERLINK(\"#'SCHEDULE XXIII'!A1\",\"Sch XXIII \nInterest Rates\")","v":"Sch XXIII \nInterest Rates"}]
[]
[]
[]
[null,"CISSA",null,null,null,null,null,null,null,null,null,null,null,null,null,null,null,null,null,null,null,null,null,null,"ELIGIBLE CAPITAL"]
[]
[null,null,{"$f":"HYPERLINK(\"#'Schedule IX(a)'!A1\",\"Sch IX(a) \nCapital Summary\")","v":"Sch IX(a) \nCapital Summary"},null,null,null,null,null,null,{"$f":"HYPERLINK(\"#'Schedule IX(b)'!A1\",\"Sch IX(b)\nGen. Questions\")","v":"Sch IX(b)\nGen. Questions"},null,null,null,null,null,null,{"$f":"HYPERLINK(\"#'Schedule IX(c)'!A1\",\"Sch IX(c)\nRisk Assessment\")","v":"Sch IX(c)\nRisk Assessment"},null,null,null,null,null,null,null,null,{"$f":"HYPERLINK(\"#'Schedule XII(a)'!A1\",\"Schedule XII(a)\")","v":"Schedule XII(a)"},null,null,null,null,null,null,null,null,null,null,null,null,null,{"$f":"HYPERLINK(\"#'Schedule XII(b)'!A1\",\"Schedule XII(b)\")","v":"Schedule XII(b)"}]
[]
[]
[]
[null,"OPERATIONAL RISK CHARGE"]
[]
[null,null,{"$f":"HYPERLINK(\"#'Corp Gov'!A1\",\"Corporate Governance\")","v":"Corporate Governance"},null,null,null,null,null,null,{"$f":"HYPERLINK(\"#'Risk Man'!A1\",\"Risk Management\")","v":"Risk Management"},null,null,null,null,null,null,{"$f":"HYPERLINK(\"#'Identification'!A1\",\"Risk Identi. (Class D/E Only)\")","v":"Risk Identi. (Class D/E Only)"},null,null,null,null,null,null,null,null,{"$f":"HYPERLINK(\"#'Measurement'!A1\",\"Risk Meas. (Class D/E Only)\")","v":"Risk Meas. (Class D/E Only)"},null,null,null,null,null,null,{"$f":"HYPERLINK(\"#'Response'!A1\",\"Risk Response (Class D/E Only)\")","v":"Risk Response (Class D/E Only)"},null,null,null,null,null,null,{"$f":"HYPERLINK(\"#'Monitoring & Reporting'!A1\",\"Risk Mon. & Rep. (Class D/E Only)\")","v":"Risk Mon. & Rep. (Class D/E Only)"}]
[]
[]
[null,null,{"$f":"HYPERLINK(\"#'Op Risk'!A1\",\"Operational Risk Charge\")","v":"Operational Risk Charge"},null,null,null,null,null,null,{"$f":"HYPERLINK(\"#'Op Risk (Revised)'!A1\",\"Operational Risk Charge (Revised)\")","v":"Operational Risk Charge (Revised)"}]
[]
[]
[]
[null,"BSCR MODEL"]
[]
[null,null,{"$f":"HYPERLINK(\"#'Summary'!A1\",\"Summary\")","v":"Summary"},null,null,null,null,null,null,{"$f":"HYPERLINK(\"#'Fixed Income Investments'!A1\",\"Fixed Income Investments\")","v":"Fixed Income Investments"},null,null,null,null,null,null,{"$f":"HYPERLINK(\"#'Fixed Income Investments (Rev.)'!A1\",\"Fixed Income Inv. (Revised)\")","v":"Fixed Income Inv. (Revised)"},null,null,null,null,null,null,null,null,{"$f":"HYPERLINK(\"#'Equity Investments'!A1\",\"Equity Investments\")","v":"Equity Investments"},null,null,null,null,null,null,{"$f":"HYPERLINK(\"#'Equity Investments (Revised)'!A1\",\"Equity Inv. (Revised)\")","v":"Equity Inv. (Revised)"},null,null,null,null,null,null,{"$f":"HYPERLINK(\"#'Equity Grandfathering'!A1\",\"Equity Grandfathering\")","v":"Equity Grandfathering"}]
[]
[]
[null,null,{"$f":"HYPERLINK(\"#'Equity Investments (Grandf)'!A1\",\"Equity Inv. (Grandf)\")","v":"Equity Inv. (Grandf)"},null,null,null,null,null,null,{"$f":"HYPERLINK(\"#'Equity Investments (Non-Grandf)'!A1\",\"Equity Inv. \n(Non-Grandf)\")","v":"Equity Inv. \n(Non-Grandf)"},null,null,null,null,null,null,{"$f":"HYPERLINK(\"#'Interest Rate-Liquidity Risk'!A1\",\"Interest and Liquidity Risk\")","v":"Interest and Liquidity Risk"},null,null,null,null,null,null,null,null,{"$f":"HYPERLINK(\"#'Interest Rate-Liquidity (Rev.)'!A1\",\"Interest-Liquidity Risk (Revised)\")","v":"Interest-Liquidity Risk (Revised)"},null,null,null,null,null,null,{"$f":"HYPERLINK(\"#'Currency Risk'!A1\",\"Currency Risk\")","v":"Currency Risk"},null,null,null,null,null,null,{"$f":"HYPERLINK(\"#'Currency Risk (Revised)'!A1\",\"Currency Risk (Revised)\")","v":"Currency Risk (Revised)"}]
[]
[]
[null,null,{"$f":"HYPERLINK(\"#'Concentration Risk'!A1\",\"Concentration Risk\")","v":"Concentration Risk"},null,null,null,null,null,null,{"$f":"HYPERLINK(\"#'Concentration Risk (Revised)'!A1\",\"Concentration Risk (Revised)\")","v":"Concentration Risk (Revised)"},null,null,null,null,null,null,{"$f":"HYPERLINK(\"#'Credit Risk'!A1\",\"Credit Risk\")","v":"Credit Risk"},null,null,null,null,null,null,null,null,{"$f":"HYPERLINK(\"#'Credit Risk (Revised)'!A1\",\"Credit Risk (Revised)\")","v":"Credit Risk (Revised)"},null,null,null,null,null,null,{"$f":"HYPERLINK(\"#'LT Insurance Risk'!A1\",\"LT Insurance Risk\")","v":"LT Insurance Risk"},null,null,null,null,null,null,{"$f":"HYPERLINK(\"#'LT Other Insurance Risk'!A1\",\"LT Other Insurance Risk\")","v":"LT Other Insurance Risk"}]
[]
[]
[null,null,{"$f":"HYPERLINK(\"#'LT Variable Annuity Gte Risk'!A1\",\"LT Variable Annuity Gte Risk\")","v":"LT Variable Annuity Gte Risk"},null,null,null,null,null,null,{"$f":"HYPERLINK(\"#'Company Specific Parameters'!A1\",\"Company Specific Parameters\")","v":"Company Specific Parameters"},null,null,null,null,null,null,{"$f":"HYPERLINK(\"#'CSP (Revised)'!A1\",\"CSP (Revised)\")","v":"CSP (Revised)"},null,null,null,null,null,null,null,null,{"$f":"HYPERLINK(\"#'Correlation Matrix'!A1\",\"Correlation Matrix\")","v":"Correlation Matrix"}]

{"sheet":"Import","index":7,"n_rows":40764,"n_cols":17,"rows_kept":4500,"cut":true,"hidden":false,"merged":[[0,4,0,6],[0,8,0,10],[0,12,0,14]],"bounds":{"rows_first":2000,"rows_last":500,"rows_between":2000,"halvings":0}}
[null,null,null,null,"Unconsolidated",null,null,null,"Consolidated",null,null,null,"EBS"]
["Sheet Name","Sheet Short Description","Field Code","Field Description",{"$f":"YEAR('Insurer Information'!$C$3)","v":2023},null,{"$f":"E2-1","v":2022},null,{"$f":"YEAR('Insurer Information'!$C$3)","v":2023},null,{"$f":"I2-1","v":2022},null,{"$f":"YEAR('Insurer Information'!$C$3)","v":2023},null,{"$f":"M2-1","v":2022}]
["Declaration",null,null,"Director 1",0]
["Declaration",null,null,"Date","00:00:00"]
["Declaration",null,null,"Director 2",0]
["Declaration",null,null,"Date","00:00:00"]
["Declaration",null,null,"Other Signatory",0]
["Declaration",null,null,"Date","00:00:00"]
[]
["Info Sheet",null,null,"(d) Statements Held at Registered Office","Select Yes/No"]
["Info Sheet",null,null,"(e) Filing Period - Period Start Date","00:00:00"]
["Info Sheet",null,null,"(g) Figures Translated at:",1]
["Info Sheet",null,null,"(h) Ultimate Parent",0]
["Info Sheet",null,null,"(i) Insurer's Parent Company",0]
["Info Sheet",null,null,"(j) Industry Sector of Insurer's Parent","Select from Drop-Down"]
["Info Sheet",null,null,"(k) Insurer's Ownership Structure","Select from Drop-Down"]
["Info Sheet",null,null,"(l) Insurer's Company Structure","Select from Drop-Down"]
["Info Sheet",null,null,"(l).1 Confirm if Company writes LT Insurance","Select Yes/No"]
["Info Sheet",null,null,"(l).2 LT Insurance written during the period","Select Yes/No"]
["Info Sheet",null,null,"(l).3 Subsidiaries wrote Long-Term insurance","Select Yes/No"]
["Info Sheet",null,null,"(l).4 Subsidiaries wrote LT Ins. Outside of BDA","Select Yes/No"]
["Info Sheet",null,null,"(l).5 Subsidiaries Ins. Outside of BDA jurisdiction 1",0]
["Info Sheet",null,null,"(l).5 Subsidiaries Ins. Outside of BDA jurisdiction 2",0]
["Info Sheet",null,null,"(l).5 Subsidiaries Ins. Outside of BDA jurisdiction 3",0]
["Info Sheet",null,null,"(m)(i) Is the Insurer a Member of Ins. Group?","Select Yes/No"]
["Info Sheet",null,null,"(m)(ii) Are there Segregated Accounts?","Select Yes/No"]
["Info Sheet",null,null,"(m)(iii) IS the Insurer in Run-Off?","Select Yes/No"]
["Info Sheet",null,null,"(m)(iv) Statements have a Qualified Opinion?","Select Yes/No"]
["Info Sheet",null,null,"(m)(iv) Details of Qualified Opinion",0]
["Info Sheet",null,null,"(m)(v) Minimum Solvency Margin Met","Select Yes/No"]
["Info Sheet",null,null,"(n)(1) Certificate of Registration Date",""]
["Info Sheet",null,null,"(n)(2) # of Conditions",0]
["Info Sheet",null,null,"Effective Start Date of Condition - 1","00:00:00"]
["Info Sheet",null,null,"Effective Start Date of Condition - 2","00:00:00"]
["Info Sheet",null,null,"Effective Start Date of Condition - 3","00:00:00"]
["Info Sheet",null,null,"Effective Start Date of Condition - 4","00:00:00"]
["Info Sheet",null,null,"Effective Start Date of Condition - 5","00:00:00"]
["Info Sheet",null,null,"Effective Start Date of Condition - 6","00:00:00"]
["Info Sheet",null,null,"Effective Start Date of Condition - 7","00:00:00"]
["Info Sheet",null,null,"Effective Start Date of Condition - 8","00:00:00"]
["Info Sheet",null,null,"Effective Start Date of Condition - 9","00:00:00"]
["Info Sheet",null,null,"Effective Start Date of Condition - 10","00:00:00"]
["Info Sheet",null,null,"Effective End Date of Condition - 1","00:00:00"]
["Info Sheet",null,null,"Effective End Date of Condition - 2","00:00:00"]
["Info Sheet",null,null,"Effective End Date of Condition - 3","00:00:00"]
["Info Sheet",null,null,"Effective End Date of Condition - 4","00:00:00"]
["Info Sheet",null,null,"Effective End Date of Condition - 5","00:00:00"]
["Info Sheet",null,null,"Effective End Date of Condition - 6","00:00:00"]
["Info Sheet",null,null,"Effective End Date of Condition - 7","00:00:00"]
["Info Sheet",null,null,"Effective End Date of Condition - 8","00:00:00"]
["Info Sheet",null,null,"Effective End Date of Condition - 9","00:00:00"]
["Info Sheet",null,null,"Effective End Date of Condition - 10","00:00:00"]
["Info Sheet",null,null,"Description of Condition - 1",0]
["Info Sheet",null,null,"Description of Condition - 2",0]
["Info Sheet",null,null,"Description of Condition - 3",0]
["Info Sheet",null,null,"Description of Condition - 4",0]
["Info Sheet",null,null,"Description of Condition - 5",0]
["Info Sheet",null,null,"Description of Condition - 6",0]
["Info Sheet",null,null,"Description of Condition - 7",0]
["Info Sheet",null,null,"Description of Condition - 8",0]
["Info Sheet",null,null,"Description of Condition - 9",0]
["Info Sheet",null,null,"Description of Condition - 10",0]
["Info Sheet",null,null,"Insurer Complied with All Conditions?","Select Yes/No"]
["Info Sheet",null,null,"(p) # of Directions",0]
["Info Sheet",null,null,"Effective Start Date of Direction - 1","00:00:00"]
["Info Sheet",null,null,"Effective Start Date of Direction - 2","00:00:00"]
["Info Sheet",null,null,"Effective Start Date of Direction - 3","00:00:00"]
["Info Sheet",null,null,"Effective Start Date of Direction - 4","00:00:00"]
["Info Sheet",null,null,"Effective Start Date of Direction - 5","00:00:00"]
["Info Sheet",null,null,"Effective Start Date of Direction - 6","00:00:00"]
["Info Sheet",null,null,"Effective Start Date of Direction - 7","00:00:00"]
["Info Sheet",null,null,"Effective Start Date of Direction - 8","00:00:00"]
["Info Sheet",null,null,"Effective Start Date of Direction - 9","00:00:00"]
["Info Sheet",null,null,"Effective Start Date of Direction - 10","00:00:00"]
["Info Sheet",null,null,"Effective End Date of Direction - 1","00:00:00"]
["Info Sheet",null,null,"Effective End Date of Direction - 2","00:00:00"]
["Info Sheet",null,null,"Effective End Date of Direction - 3","00:00:00"]
["Info Sheet",null,null,"Effective End Date of Direction - 4","00:00:00"]
["Info Sheet",null,null,"Effective End Date of Direction - 5","00:00:00"]
["Info Sheet",null,null,"Effective End Date of Direction - 6","00:00:00"]
["Info Sheet",null,null,"Effective End Date of Direction - 7","00:00:00"]
["Info Sheet",null,null,"Effective End Date of Direction - 8","00:00:00"]
["Info Sheet",null,null,"Effective End Date of Direction - 9","00:00:00"]
["Info Sheet",null,null,"Effective End Date of Direction - 10","00:00:00"]
["Info Sheet",null,null,"Description of Direction - 1",0]
["Info Sheet",null,null,"Description of Direction - 2",0]
["Info Sheet",null,null,"Description of Direction - 3",0]
["Info Sheet",null,null,"Description of Direction - 4",0]
["Info Sheet",null,null,"Description of Direction - 5",0]
["Info Sheet",null,null,"Description of Direction - 6",0]
["Info Sheet",null,null,"Description of Direction - 7",0]
["Info Sheet",null,null,"Description of Direction - 8",0]
["Info Sheet",null,null,"Description of Direction - 9",0]
["Info Sheet",null,null,"Description of Direction - 10",0]
["Info Sheet",null,null,"(q) Confirm If Any Negative Responses?","Select Yes/No"]
["Info Sheet",null,null,"Details of Negative Responses",0]
[]
[null,null,null,"Balance Sheet"]
["Form 1SFS/1EBS","Balance Sheet LT/CON/EBS","1SFS1","Cash and Cash Equivalents",0,null,0,null,0,null,0,null,0,null,0]
["Form 1SFS/1EBS","Balance Sheet LT/CON/EBS","1SFS2ai","Quoted - Bonds - Held to Maturity",0,null,0,null,0,null,0]
["Form 1SFS/1EBS","Balance Sheet LT/CON/EBS","1SFS2aii","Quoted - Bonds - Other",0,null,0,null,0,null,0]
["Form 1SFS/1EBS","Balance Sheet LT/CON/EBS","1EBS2b","Quoted - Bonds - Total",null,null,null,null,null,null,null,null,0,null,0]
["Form 1SFS/1EBS","Balance Sheet LT/CON/EBS","1SFS2ci","Quoted - Equities - Common Stocks",0,null,0,null,0,null,0,null,0,null,0]
["Form 1SFS/1EBS","Balance Sheet LT/CON/EBS","1SFS2cii","Quoted - Equities - Preferred Stocks",0,null,0,null,0,null,0,null,0,null,0]
["Form 1SFS/1EBS","Balance Sheet LT/CON/EBS","1SFS2ciii","Quoted - Equities - Mutual Funds",0,null,0,null,0,null,0,null,0,null,0]
["Form 1SFS/1EBS","Balance Sheet LT/CON/EBS","1SFS2e","Quoted - Other Investments",0,null,0,null,0,null,0,null,0,null,0]
["Form 1SFS/1EBS","Balance Sheet LT/CON/EBS","1SFS3ai","Unquoted - Bonds - Held to Maturity",0,null,0,null,0,null,0]
["Form 1SFS/1EBS","Balance Sheet LT/CON/EBS","1SFS3aii","Unquoted - Bonds - Other",0,null,0,null,0,null,0]
["Form 1SFS/1EBS","Balance Sheet LT/CON/EBS","1EBS3b","Unquoted - Bonds - Total",null,null,null,null,null,null,null,null,0,null,0]
["Form 1SFS/1EBS","Balance Sheet LT/CON/EBS","1SFS3ci","Unquoted - Equities - Common Stocks",0,null,0,null,0,null,0,null,0,null,0]
["Form 1SFS/1EBS","Balance Sheet LT/CON/EBS","1SFS3cii","Unquoted - Equities - Preferred Stocks",0,null,0,null,0,null,0,null,0,null,0]
["Form 1SFS/1EBS","Balance Sheet LT/CON/EBS","1SFS3ciii","Unquoted - Equities - Mutual Funds",0,null,0,null,0,null,0,null,0,null,0]
["Form 1SFS/1EBS","Balance Sheet LT/CON/EBS","1SFS3e","Unquoted - Other Investments",0,null,0,null,0,null,0,null,0,null,0]
["Form 1SFS/1EBS","Balance Sheet LT/CON/EBS","1SFS4a","Inv. In Affiliates - Unregulated Ancillary",0,null,0,null,0,null,0,null,0,null,0]
["Form 1SFS/1EBS","Balance Sheet LT/CON/EBS","1SFS4b","Inv. In Affiliates - Unregulated Non-Fin. Oper.",0,null,0,null,0,null,0,null,0,null,0]
["Form 1SFS/1EBS","Balance Sheet LT/CON/EBS","1SFS4c","Inv. In Affiliates - Unregulated Fin. Operating",0,null,0,null,0,null,0,null,0,null,0]
["Form 1SFS/1EBS","Balance Sheet LT/CON/EBS","1SFS4d","Inv. In Affiliates - Regulated Non-Insurance",0,null,0,null,0,null,0,null,0,null,0]
["Form 1SFS/1EBS","Balance Sheet LT/CON/EBS","1SFS4e","Inv. In Affiliates - Regulated Insurance",0,null,0,null,0,null,0,null,0,null,0]
["Form 1SFS/1EBS","Balance Sheet LT/CON/EBS","1SFS4g","Advances To Affiliates",0,null,0,null,0,null,0,null,0,null,0]
["Form 1SFS/1EBS","Balance Sheet LT/CON/EBS","1SFS5a","Inv. In Mortg. Loans on Real Estate - 1st Lien",0,null,0,null,0,null,0,null,0,null,0]
["Form 1SFS/1EBS","Balance Sheet LT/CON/EBS","1SFS5b","Inv. In Mortg. Loans on Real Estate - Other",0,null,0,null,0,null,0,null,0,null,0]
["Form 1SFS/1EBS","Balance Sheet LT/CON/EBS","1SFS6","Policy Loans",0,null,0,null,0,null,0,null,0,null,0]
["Form 1SFS/1EBS","Balance Sheet LT/CON/EBS","1SFS7a","Real Estate - Occupied by Company",0,null,0,null,0,null,0,null,0,null,0]
["Form 1SFS/1EBS","Balance Sheet LT/CON/EBS","1SFS7b","Real Estate - Other",0,null,0,null,0,null,0,null,0,null,0]
["Form 1SFS/1EBS","Balance Sheet LT/CON/EBS","1SFS8","Collateral Loans",0,null,0,null,0,null,0,null,0,null,0]
["Form 1SFS/1EBS","Balance Sheet LT/CON/EBS","1SFS9","Investment Income Due and Accrued",0,null,0,null,0,null,0,null,0,null,0]
["Form 1SFS/1EBS","Balance Sheet LT/CON/EBS","1SFS10a","Accounts & Premium Rec. - In Collection",0,null,0,null,0,null,0,null,0,null,0]
["Form 1SFS/1EBS","Balance Sheet LT/CON/EBS","1SFS10b","Accounts & Premium Rec. - Not Yet Due ",0,null,0,null,0,null,0]
["Form 1SFS/1EBS","Balance Sheet LT/CON/EBS","1SFS10c","Accounts & Premium Rec. - Retro. Contracts",0,null,0,null,0,null,0,null,0,null,0]
["Form 1SFS/1EBS","Balance Sheet LT/CON/EBS","1SFS11a","R/I Balances Receivable - Foreign Affiliates",0,null,0,null,0,null,0,null,0,null,0]
["Form 1SFS/1EBS","Balance Sheet LT/CON/EBS","1SFS11b","R/I Balances Receivable - Domestic Affiliates",0,null,0,null,0,null,0,null,0,null,0]
["Form 1SFS/1EBS","Balance Sheet LT/CON/EBS","1SFS11c","R/I Balances Receivable - Pools & Assoc.",0,null,0,null,0,null,0,null,0,null,0]
["Form 1SFS/1EBS","Balance Sheet LT/CON/EBS","1SFS11d","R/I Balances Receivable - All Other",0,null,0,null,0,null,0,null,0,null,0]
["Form 1SFS/1EBS","Balance Sheet LT/CON/EBS","1EBS12a","Funds Held by Ceding Companies - Affiliates",null,null,null,null,null,null,null,null,0,null,0]
["Form 1SFS/1EBS","Balance Sheet LT/CON/EBS","1EBS12b","Funds Held by Ceding Companies - Non-Aff.",null,null,null,null,null,null,null,null,0,null,0]
["Form 1SFS/1EBS","Balance Sheet LT/CON/EBS","1SFS12","Funds Held by Ceding Companies ",0,null,0,null,0,null,0]
["Form 1SFS/1EBS","Balance Sheet LT/CON/EBS","1SFS13a","Sundry Assets - Derivatives",0,null,0,null,0,null,0,null,0,null,0]
["Form 1SFS/1EBS","Balance Sheet LT/CON/EBS","1SFS13b","Sundry Assets - SAC - LT- Variable Annuities",0,null,0,null,0,null,0,null,0,null,0]
["Form 1SFS/1EBS","Balance Sheet LT/CON/EBS","1SFS13c","Sundry Assets - SAC - LT- Others",0,null,0,null,0,null,0,null,0,null,0]
["Form 1SFS/1EBS","Balance Sheet LT/CON/EBS","1SFS13d","Sundry Assets - SAC - General Business",null,null,null,null,0,null,0]
["Form 1SFS/1EBS","Balance Sheet LT/CON/EBS","1SFS13e","Sundry Assets - Deposit Assets",0,null,0,null,0,null,0,null,0,null,0]
["Form 1SFS/1EBS","Balance Sheet LT/CON/EBS","1SFS13f","Sundry Assets - Deferred Acquisition Costs",0,null,0,null,0,null,0]
["Form 1SFS/1EBS","Balance Sheet LT/CON/EBS","1SFS13g","Sundry Assets - Net Rec. for Investments",0,null,0,null,0,null,0,null,0,null,0]
["Form 1SFS/1EBS","Balance Sheet LT/CON/EBS","1EBS13g","Sundry Assets - Intangible Assets",null,null,null,null,null,null,null,null,0,null,0]
["Form 1SFS/1EBS","Balance Sheet LT/CON/EBS","1EBS13h","Sundry Assets - Deferred Tax Assets",null,null,null,null,null,null,null,null,0,null,0]
["Form 1SFS/1EBS","Balance Sheet LT/CON/EBS","1EBS13i","Sundry Assets - Pension Benefit Surplus",null,null,null,null,null,null,null,null,0,null,0]
["Form 1SFS/1EBS","Balance Sheet LT/CON/EBS","1SFS13h","Sundry Assets - Other 1",0,null,0,null,0,null,0,null,0,null,0]
["Form 1SFS/1EBS","Balance Sheet LT/CON/EBS","1SFS13i","Sundry Assets - Other 2",0,null,0,null,0,null,0]
["Form 1SFS/1EBS","Balance Sheet LT/CON/EBS","1SFS13j","Sundry Assets - Other 3",0,null,0,null,0,null,0]
["Form 1SFS/1EBS","Balance Sheet LT/CON/EBS","1SFS14a","Letters of Credit",0,null,0,null,0,null,0,null,0,null,0]
["Form 1SFS/1EBS","Balance Sheet LT/CON/EBS","1SFS14b","Guarantees",0,null,0,null,0,null,0,null,0,null,0]
["Form 1SFS/1EBS","Balance Sheet LT/CON/EBS","1SFS14c","Other Instruments",0,null,0,null,0,null,0,null,0,null,0]
["Form 1SFS/1EBS","Balance Sheet LT/CON/EBS","1SFS15","Total Assets",0,null,0]
["Form 1SFS/1EBS","Balance Sheet LT/CON/EBS","1SFS16a","Unearned Premium Reserve - Gross",null,null,null,null,0,null,0]
["Form 1SFS/1EBS","Balance Sheet LT/CON/EBS","1SFS16bi","UPR - Ceded - Foreign Affiliates",null,null,null,null,0,null,0]
["Form 1SFS/1EBS","Balance Sheet LT/CON/EBS","1SFS16bii","UPR - Ceded - Domestic Affiliates",null,null,null,null,0,null,0]
["Form 1SFS/1EBS","Balance Sheet LT/CON/EBS","1SFS16biii","UPR - Ceded - Pools & Assoc.",null,null,null,null,0,null,0]
["Form 1SFS/1EBS","Balance Sheet LT/CON/EBS","1SFS16biv","UPR - Ceded - All Other",null,null,null,null,0,null,0]
["Form 1SFS/1EBS","Balance Sheet LT/CON/EBS","1SFS17a","Loss Provision - Gross",null,null,null,null,0,null,0]
["Form 1SFS/1EBS","Balance Sheet LT/CON/EBS","1SFS17bi","R/I Recoverable - Foreign Affiliates",null,null,null,null,0,null,0]
["Form 1SFS/1EBS","Balance Sheet LT/CON/EBS","1SFS17bii","R/I Recoverable - Domestic Affiliates",null,null,null,null,0,null,0]
["Form 1SFS/1EBS","Balance Sheet LT/CON/EBS","1SFS17biii","R/I Recoverable - Pools & Assoc.",null,null,null,null,0,null,0]
["Form 1SFS/1EBS","Balance Sheet LT/CON/EBS","1SFS17biv","R/I Recoverable - All Other",null,null,null,null,0,null,0]
["Form 1SFS/1EBS","Balance Sheet LT/CON/EBS","1SFS18","Risk Margin",null,null,null,null,0,null,0]
["Form 1SFS/1EBS","Balance Sheet LT/CON/EBS","1SFS20","Net - Reserves for Reported Claims",0,null,0,null,0,null,0,null,0,null,0]
["Form 1SFS/1EBS","Balance Sheet LT/CON/EBS","1SFS21","Net - Reserves for Unreported Claims",0,null,0,null,0,null,0,null,0,null,0]
["Form 1SFS/1EBS","Balance Sheet LT/CON/EBS","1SFS22","Net - Policy Reserves - Life",0,null,0,null,0,null,0,null,0,null,0]
["Form 1SFS/1EBS","Balance Sheet LT/CON/EBS","1SFS23","Net - Policy Reserves - Accident & Health",0,null,0,null,0,null,0,null,0,null,0]
["Form 1SFS/1EBS","Balance Sheet LT/CON/EBS","1SFS24","Net - Policyholder's Funds on Deposit",0,null,0,null,0,null,0,null,0,null,0]
["Form 1SFS/1EBS","Balance Sheet LT/CON/EBS","1SFS25","Net - Liability for Future Policyholder Dividends",0,null,0,null,0,null,0,null,0,null,0]
["Form 1SFS/1EBS","Balance Sheet LT/CON/EBS","1SFS26","Net - Other LT Insurance Reserves",0,null,0,null,0,null,0,null,0,null,0]
["Form 1SFS/1EBS","Balance Sheet LT/CON/EBS","1SFS27bi","R/I Recoverable - Foreign Affiliates",0,null,0,null,0,null,0,null,0,null,0]
["Form 1SFS/1EBS","Balance Sheet LT/CON/EBS","1SFS27bii","R/I Recoverable - Domestic Affiliates",0,null,0,null,0,null,0,null,0,null,0]
["Form 1SFS/1EBS","Balance Sheet LT/CON/EBS","1SFS27biii","R/I Recoverable - Pools & Assoc.",0,null,0,null,0,null,0,null,0,null,0]
["Form 1SFS/1EBS","Balance Sheet LT/CON/EBS","1SFS27biv","R/I Recoverable - All Other",0,null,0,null,0,null,0,null,0,null,0]
["Form 1SFS/1EBS","Balance Sheet LT/CON/EBS","1EBS27A","Risk Margin",null,null,null,null,null,null,null,null,0,null,0]
["Form 1SFS/1EBS","Balance Sheet LT/CON/EBS","1EBS27Ba","Gross Provision - Tech. Prov. Calc. on Whole",null,null,null,null,null,null,null,null,0,null,0]
["Form 1SFS/1EBS","Balance Sheet LT/CON/EBS","1EBS27Bbi","R/I Recoverable - Foreign Affiliates",null,null,null,null,null,null,null,null,0,null,0]
["Form 1SFS/1EBS","Balance Sheet LT/CON/EBS","1EBS27Bbii","R/I Recoverable - Domestic Affiliates",null,null,null,null,null,null,null,null,0,null,0]
["Form 1SFS/1EBS","Balance Sheet LT/CON/EBS","1EBS27Bbiii","R/I Recoverable - Pools & Assoc.",null,null,null,null,null,null,null,null,0,null,0]
["Form 1SFS/1EBS","Balance Sheet LT/CON/EBS","1EBS27Bbiv","R/I Recoverable - All Other",null,null,null,null,null,null,null,null,0,null,0]
["Form 1SFS/1EBS","Balance Sheet LT/CON/EBS","1SFS28","Insurance & R/I Balances Payable",0,null,0,null,0,null,0,null,0,null,0]
["Form 1SFS/1EBS","Balance Sheet LT/CON/EBS","1SFS29","Commissions, Expenses and Taxes Payable",0,null,0,null,0,null,0,null,0,null,0]
["Form 1SFS/1EBS","Balance Sheet LT/CON/EBS","1SFS30","Loans and Notes Payable",0,null,0,null,0,null,0,null,0,null,0]
["Form 1SFS/1EBS","Balance Sheet LT/CON/EBS","1SFS31a","Income Taxes Payable",0,null,0,null,0,null,0,null,0,null,0]
["Form 1SFS/1EBS","Balance Sheet LT/CON/EBS","1SFS31b","Deferred Taxes Payable",0,null,0,null,0,null,0,null,0,null,0]
["Form 1SFS/1EBS","Balance Sheet LT/CON/EBS","1SFS32","Amounts Due to Affiliates",0,null,0,null,0,null,0,null,0,null,0]
["Form 1SFS/1EBS","Balance Sheet LT/CON/EBS","1SFS33","Accounts Payable and Accrued Liabilities",0,null,0,null,0,null,0,null,0,null,0]
["Form 1SFS/1EBS","Balance Sheet LT/CON/EBS","1EBS34a","Funds Held under R/I Contracts - Affiliates",null,null,null,null,null,null,null,null,0,null,0]
["Form 1SFS/1EBS","Balance Sheet LT/CON/EBS","1EBS34b","Funds Held under R/I Contracts - Non-Aff.",null,null,null,null,null,null,null,null,0,null,0]
["Form 1SFS/1EBS","Balance Sheet LT/CON/EBS","1SFS34","Funds Held under R/I Contracts",0,null,0,null,0,null,0,null,0,null,0]
["Form 1SFS/1EBS","Balance Sheet LT/CON/EBS","1SFS35","Dividends Payable",0,null,0,null,0,null,0]
["Form 1SFS/1EBS","Balance Sheet LT/CON/EBS","1SFS36a","Sundry Liabilities - Derivative Instruments",0,null,0,null,0,null,0,null,0,null,0]
["Form 1SFS/1EBS","Balance Sheet LT/CON/EBS","1EBS36b","Sundry Liabilities - Der. Instr. - Non-Hedge Purp.",null,null,null,null,null,null,null,null,0,null,0]
["Form 1SFS/1EBS","Balance Sheet LT/CON/EBS","1SFS36b","Sundry Liabilities - Segregated Accounts",0,null,0,null,0,null,0,null,0,null,0]
["Form 1SFS/1EBS","Balance Sheet LT/CON/EBS","1EBS36d","Sundry Liabilities - SAC - LT - Other",null,null,null,null,null,null,null,null,0,null,0]
["Form 1SFS/1EBS","Balance Sheet LT/CON/EBS","1SFS36c","Sundry Liabilities - Deposit Liabilities",0,null,0,null,0,null,0,null,0,null,0]
["Form 1SFS/1EBS","Balance Sheet LT/CON/EBS","1EBS36g","Sundry Liabilities - Pension Benefit Oblig.",null,null,null,null,null,null,null,null,0,null,0]
["Form 1SFS/1EBS","Balance Sheet LT/CON/EBS","1SFS36h","Sundry Liabilities - Investments Purchased",0,null,0,null,0,null,0,null,0,null,0]
["Form 1SFS/1EBS","Balance Sheet LT/CON/EBS","1SFS36e","Sundry Liabilities - Other 1",0,null,0,null,0,null,0,null,0,null,0]
["Form 1SFS/1EBS","Balance Sheet LT/CON/EBS","1SFS36f","Sundry Liabilities - Other 2",0,null,0,null,0,null,0]
["Form 1SFS/1EBS","Balance Sheet LT/CON/EBS","1SFS36g","Sundry Liabilities - Other 3",0,null,0,null,0,null,0]
["Form 1SFS/1EBS","Balance Sheet LT/CON/EBS","1SFS37a","Letters of Credit",0,null,0,null,0,null,0,null,0,null,0]
["Form 1SFS/1EBS","Balance Sheet LT/CON/EBS","1SFS37b","Guarantees",0,null,0,null,0,null,0,null,0,null,0]
["Form 1SFS/1EBS","Balance Sheet LT/CON/EBS","1SFS37c","Other Instruments",0,null,0,null,0,null,0,null,0,null,0]
["Form 1SFS/1EBS","Balance Sheet LT/CON/EBS","1EBS40","Economic Capital & Surplus",null,null,null,null,null,null,null,null,0,null,0]
[]
["Form 1SFS","Balance Sheet GEN","1SFS1","Cash and Cash Equivalents",0,null,0]
["Form 1SFS","Balance Sheet GEN","1SFS2ai","Quoted - Bonds - Held to Maturity",0,null,0]
["Form 1SFS","Balance Sheet GEN","1SFS2aii","Quoted - Bonds - Other",0,null,0]
["Form 1SFS","Balance Sheet GEN","1SFS2ci","Quoted - Equities - Common Stocks",0,null,0]
["Form 1SFS","Balance Sheet GEN","1SFS2cii","Quoted - Equities - Preferred Stocks",0,null,0]
["Form 1SFS","Balance Sheet GEN","1SFS2ciii","Quoted - Equities - Mutual Funds",0,null,0]
["Form 1SFS","Balance Sheet GEN","1SFS2e","Quoted - Other Investments",0,null,0]
["Form 1SFS","Balance Sheet GEN","1SFS3ai","Unquoted - Bonds - Held to Maturity",0,null,0]
["Form 1SFS","Balance Sheet GEN","1SFS3aii","Unquoted - Bonds - Other",0,null,0]
["Form 1SFS","Balance Sheet GEN","1SFS3ci","Unquoted - Equities - Common Stocks",0,null,0]
["Form 1SFS","Balance Sheet GEN","1SFS3cii","Unquoted - Equities - Preferred Stocks",0,null,0]
["Form 1SFS","Balance Sheet GEN","1SFS3ciii","Unquoted - Equities - Mutual Funds",0,null,0]
["Form 1SFS","Balance Sheet GEN","1SFS3e","Unquoted - Other Investments",0,null,0]
["Form 1SFS","Balance Sheet GEN","1SFS4a","Inv. In Affiliates - Unregulated Ancillary",0,null,0]
["Form 1SFS","Balance Sheet GEN","1SFS4b","Inv. In Affiliates - Unregulated Non-Fin. Oper.",0,null,0]
["Form 1SFS","Balance Sheet GEN","1SFS4c","Inv. In Affiliates - Unregulated Fin. Operating",0,null,0]
["Form 1SFS","Balance Sheet GEN","1SFS4d","Inv. In Affiliates - Regulated Non-Insurance",0,null,0]
["Form 1SFS","Balance Sheet GEN","1SFS4e","Inv. In Affiliates - Regulated Insurance",0,null,0]
["Form 1SFS","Balance Sheet GEN","1SFS4g","Advances To Affiliates",0,null,0]
["Form 1SFS","Balance Sheet GEN","1SFS5a","Inv. In Mortg. Loans on Real Estate - 1st Lien",0,null,0]
["Form 1SFS","Balance Sheet GEN","1SFS5b","Inv. In Mortg. Loans on Real Estate - Other",0,null,0]
["Form 1SFS","Balance Sheet GEN","1SFS7a","Real Estate - Occupied by Company",0,null,0]
["Form 1SFS","Balance Sheet GEN","1SFS7b","Real Estate - Other",0,null,0]
["Form 1SFS","Balance Sheet GEN","1SFS8","Collateral Loans",0,null,0]
["Form 1SFS","Balance Sheet GEN","1SFS9","Investment Income Due and Accrued",0,null,0]
["Form 1SFS","Balance Sheet GEN","1SFS10a","Accounts & Premium Rec. - In Collection",0,null,0]
["Form 1SFS","Balance Sheet GEN","1SFS10b","Accounts & Premium Rec. - Not Yet Due ",0,null,0]
["Form 1SFS","Balance Sheet GEN","1SFS10c","Accounts & Premium Rec. - Retro. Contracts",0,null,0]
["Form 1SFS","Balance Sheet GEN","1SFS11a","R/I Balances Receivable - Foreign Affiliates",0,null,0]
["Form 1SFS","Balance Sheet GEN","1SFS11b","R/I Balances Receivable - Domestic Affiliates",0,null,0]
["Form 1SFS","Balance Sheet GEN","1SFS11c","R/I Balances Receivable - Pools & Assoc.",0,null,0]
["Form 1SFS","Balance Sheet GEN","1SFS11d","R/I Balances Receivable - All Other",0,null,0]
["Form 1SFS","Balance Sheet GEN","1SFS12","Funds Held by Ceding Companies ",0,null,0]
["Form 1SFS","Balance Sheet GEN","1SFS13a","Sundry Assets - Derivatives",0,null,0]
["Form 1SFS","Balance Sheet GEN","1SFS13d","Sundry Assets - SAC - General Business",0,null,0]
["Form 1SFS","Balance Sheet GEN","1SFS13e","Sundry Assets - Deposit Assets",0,null,0]
["Form 1SFS","Balance Sheet GEN","1SFS13f","Sundry Assets - Deferred Acquisition Costs",0,null,0]
["Form 1SFS","Balance Sheet GEN","1SFS36d","Sundry Assets - Net Rec. for Investments",0,null,0]
["Form 1SFS","Balance Sheet GEN","1SFS13h","Sundry Assets - Other 1",0,null,0]
["Form 1SFS","Balance Sheet GEN","1SFS13i","Sundry Assets - Other 2",0,null,0]
["Form 1SFS","Balance Sheet GEN","1SFS13j","Sundry Assets - Other 3",0,null,0]
["Form 1SFS","Balance Sheet GEN","1SFS14a","Letters of Credit",0,null,0]
["Form 1SFS","Balance Sheet GEN","1SFS14b","Guarantees",0,null,0]
["Form 1SFS","Balance Sheet GEN","1SFS14c","Other Instruments",0,null,0]
["Form 1SFS","Balance Sheet GEN","1SFS15","Total Assets",0,null,0]
["Form 1SFS","Balance Sheet GEN","1SFS16a","Unearned Premium Reserve - Gross",0,null,0]
["Form 1SFS","Balance Sheet GEN","1SFS16bi","UPR - Ceded - Foreign Affiliates",0,null,0]
["Form 1SFS","Balance Sheet GEN","1SFS16bii","UPR - Ceded - Domestic Affiliates",0,null,0]
["Form 1SFS","Balance Sheet GEN","1SFS16biii","UPR - Ceded - Pools & Assoc.",0,null,0]
["Form 1SFS","Balance Sheet GEN","1SFS16biv","UPR - Ceded - All Other",0,null,0]
["Form 1SFS","Balance Sheet GEN","1SFS17a","Loss Provision - Gross",0,null,0]
["Form 1SFS","Balance Sheet GEN","1SFS17bi","R/I Recoverable - Foreign Affiliates",0,null,0]
["Form 1SFS","Balance Sheet GEN","1SFS17bii","R/I Recoverable - Domestic Affiliates",0,null,0]
["Form 1SFS","Balance Sheet GEN","1SFS17biii","R/I Recoverable - Pools & Assoc.",0,null,0]
["Form 1SFS","Balance Sheet GEN","1SFS17biv","R/I Recoverable - All Other",0,null,0]
["Form 1SFS","Balance Sheet GEN","1SFS18","Other Insurance Reserves",0,null,0]
["Form 1SFS","Balance Sheet GEN","1SFS28","Insurance & R/I Balances Payable",0,null,0]
["Form 1SFS","Balance Sheet GEN","1SFS29","Commissions, Expenses and Taxes Payable",0,null,0]
["Form 1SFS","Balance Sheet GEN","1SFS30","Loans and Notes Payable",0,null,0]
["Form 1SFS","Balance Sheet GEN","1SFS31a","Income Taxes Payable",0,null,0]
["Form 1SFS","Balance Sheet GEN","1SFS31b","Deferred Taxes Payable",0,null,0]
["Form 1SFS","Balance Sheet GEN","1SFS32","Amounts Due to Affiliates",0,null,0]
["Form 1SFS","Balance Sheet GEN","1SFS33","Accounts Payable and Accrued Liabilities",0,null,0]
["Form 1SFS","Balance Sheet GEN","1SFS34","Funds Held under R/I Contracts",0,null,0]
["Form 1SFS","Balance Sheet GEN","1SFS35","Dividends Payable",0,null,0]
["Form 1SFS","Balance Sheet GEN","1SFS36a","Sundry Liabilities - Derivative Instruments",0,null,0]
["Form 1SFS","Balance Sheet GEN","1SFS36b","Sundry Liabilities - Segregated Accounts",0,null,0]
["Form 1SFS","Balance Sheet GEN","1SFS36c","Sundry Liabilities - Deposit Liabilities",0,null,0]
["Form 1SFS","Balance Sheet GEN","1SFS36d","Sundry Liabilities - Investments Purchased",0,null,0]
["Form 1SFS","Balance Sheet GEN","1SFS36e","Sundry Liabilities - Other 1",0,null,0]
["Form 1SFS","Balance Sheet GEN","1SFS36f","Sundry Liabilities - Other 2",0,null,0]
["Form 1SFS","Balance Sheet GEN","1SFS36g","Sundry Liabilities - Other 3",0,null,0]
["Form 1SFS","Balance Sheet GEN","1SFS37a","Letters of Credit",0,null,0]
["Form 1SFS","Balance Sheet GEN","1SFS37b","Guarantees",0,null,0]
["Form 1SFS","Balance Sheet GEN","1SFS37c","Other Instruments",0,null,0]
[]
["Form 1SFS","Notes","Form 1SFS","Line 10 - Collaterized Balances",0,null,0,null,null,null,null,null,0]
["Form 1SFS","Notes","Form 1SFS","Line 11(e) - Collaterized Balances",0,null,null,null,null,null,null,null,0]
["Form 1SFS","Notes","Form 1SFS","Line 27cii - Collat. in Favor of Insurer",0,null,null,null,null,null,null,null,0]
["Form 1SFS","Notes","Form 1SFS","Line 13 - Sundry Assets",0,null,0,null,null,null,null,null,0]
["Form 1SFS","Notes","Form 1SFS","Line 15 - Policy. Oblig. - Cash",0,null,0,null,null,null,null,null,0,null,0]
["Form 1SFS","Notes","Form 1SFS","Line 15 - Policy. Oblig. - Quoted. Inv.",0,null,0,null,null,null,null,null,0,null,0]
["Form 1SFS","Notes","Form 1SFS","Line 15 - Policy. Oblig. - Unquoted. Inv.",0,null,0,null,null,null,null,null,0,null,0]
["Form 1SFS","Notes","Form 1SFS","Line 15 - Policy. Oblig. - Funds Held",0,null,0,null,null,null,null,null,0,null,0]
["Form 1SFS","Notes","Form 1SFS","Line 15 - Policy. Oblig. - Other Assets",0,null,0,null,null,null,null,null,0,null,0]
["Form 1SFS","Notes","Form 1SFS","Line 15 - Policy. Oblig. - Total",0,null,0,null,null,null,null,null,0,null,0]
["Form 1SFS","Notes","Form 1SFS","Line 15 - Other - Cash",0,null,0,null,null,null,null,null,0,null,0]
["Form 1SFS","Notes","Form 1SFS","Line 15 - Other - Quoted. Inv.",0,null,0,null,null,null,null,null,0,null,0]
["Form 1SFS","Notes","Form 1SFS","Line 15 - Other - Unquoted. Inv.",0,null,0,null,null,null,null,null,0,null,0]
["Form 1SFS","Notes","Form 1SFS","Line 15 - Other - Other Assets",0,null,0,null,null,null,null,null,0,null,0]
["Form 1SFS","Notes","Form 1SFS","Line 15 - Other - Total",0,null,0,null,null,null,null,null,0,null,0]
["Form 1SFS","Notes","Form 1SFS","Line 36 - Sundry Liabilities",0,null,0,null,null,null,null,null,0]
["Form 1SFS","Notes","Form 1SFS","Line 37 - LOC's & Guarantees",0,null,0,null,null,null,null,null,0]
["Form 1SFS","Notes","Form 1SFS","Line 17 - Prior year note disclosure",0]
["Form 1SFS","Notes","Form 1SFS","Gross Provision - Beg. Of Year",0,null,0]
["Form 1SFS","Notes","Form 1SFS","R/I Recoverable - Beg. Of Year",0,null,0]
["Form 1SFS","Notes","Form 1SFS","Net Provision - Beg. Of Year",0,null,0]
["Form 1SFS","Notes","Form 1SFS","Acquisition / Sale of loss reserves (net):",0,null,0]
["Form 1SFS","Notes","Form 1SFS","Net Losses Incurred - Current Year",0,null,0]
["Form 1SFS","Notes","Form 1SFS","Net Losses Incurred - Prior Years",0,null,0]
["Form 1SFS","Notes","Form 1SFS","Net Losses Incurred - Total",0,null,0]
["Form 1SFS","Notes","Form 1SFS","Losses Paid - Current Year",0,null,0]
["Form 1SFS","Notes","Form 1SFS","Losses Paid - Prior Years",0,null,0]
["Form 1SFS","Notes","Form 1SFS","Losses Paid - Total",0,null,0]
["Form 1SFS","Notes","Form 1SFS","Foreign Exchange and Other",0,null,0]
["Form 1SFS","Notes","Form 1SFS","Net Provision - End Of Year",0,null,0]
["Form 1SFS","Notes","Form 1SFS","R/I Recoverable - End Of Year",0,null,0]
["Form 1SFS","Notes","Form 1SFS","Gross Provision - End Of Year",0,null,0]
["Form 1SFS","Notes","Form 1SFS","Insurance - Gross - Open Balance",0,null,0]
["Form 1SFS","Notes","Form 1SFS","Insurance - Gross - Terminations",0,null,0]
["Form 1SFS","Notes","Form 1SFS","Insurance - Gross - New Business",0,null,0]
["Form 1SFS","Notes","Form 1SFS","Insurance - Gross - Chg.In Force",0,null,0]
["Form 1SFS","Notes","Form 1SFS","Insurance - Gross - Mgmt Actions",0,null,0]
["Form 1SFS","Notes","Form 1SFS","Insurance - Gross - FX",0,null,0]
["Form 1SFS","Notes","Form 1SFS","Insurance - Gross - Closing Balance",0,null,0]
["Form 1SFS","Notes","Form 1SFS","Insurance - R/I - Open Balance",0,null,0]
["Form 1SFS","Notes","Form 1SFS","Insurance - R/I - Terminations",0,null,0]
["Form 1SFS","Notes","Form 1SFS","Insurance - R/I - New Business",0,null,0]
["Form 1SFS","Notes","Form 1SFS","Insurance - R/I - Chg.In Force",0,null,0]
["Form 1SFS","Notes","Form 1SFS","Insurance - R/I - Mgmt Actions",0,null,0]
["Form 1SFS","Notes","Form 1SFS","Insurance - R/I - FX",0,null,0]
["Form 1SFS","Notes","Form 1SFS","Insurance - R/I - Closing Balance",0,null,0]
["Form 1SFS","Notes","Form 1SFS","Invmnt - Gross - Open Balance",0,null,0]
["Form 1SFS","Notes","Form 1SFS","Invmnt - Gross - Terminations",0,null,0]
["Form 1SFS","Notes","Form 1SFS","Invmnt - Gross - New Business",0,null,0]
["Form 1SFS","Notes","Form 1SFS","Invmnt - Gross - Chg.In Force",0,null,0]
["Form 1SFS","Notes","Form 1SFS","Invmnt - Gross - Mgmt Actions",0,null,0]
["Form 1SFS","Notes","Form 1SFS","Invmnt - Gross - FX",0,null,0]
["Form 1SFS","Notes","Form 1SFS","Invmnt - Gross - Closing Balance",0,null,0]
["Form 1SFS","Notes","Form 1SFS","Invmnt - R/I - Open Balance",0,null,0]
["Form 1SFS","Notes","Form 1SFS","Invmnt - R/I - Terminations",0,null,0]
["Form 1SFS","Notes","Form 1SFS","Invmnt - R/I - New Business",0,null,0]
["Form 1SFS","Notes","Form 1SFS","Invmnt - R/I - Chg.In Force",0,null,0]
["Form 1SFS","Notes","Form 1SFS","Invmnt - R/I - Mgmt Actions",0,null,0]
["Form 1SFS","Notes","Form 1SFS","Invmnt - R/I - FX",0,null,0]
["Form 1SFS","Notes","Form 1SFS","Invmnt - R/I - Closing Balance",0,null,0]
[]
["1EBS","Notes","1EBS","Line 27Bcii - Collat. in Favor of Insurer",null,null,null,null,null,null,null,null,0]
["1EBS","Notes","1EBS","Line 36(i) - Any Other Liabilities",null,null,null,null,null,null,null,null,0]
["1EBS","Notes","1EBS","Line 36(f) - Details of Deposit Liab.",null,null,null,null,null,null,null,null,0]
["1EBS","Notes","1EBS","Line 40 - Recon. 1SFS 40 to EBS 40",null,null,null,null,null,null,null,null,0]
["1EBS","Notes","1EBS","Line 27ci - Adj. Counterparty Default",null,null,null,null,null,null,null,null,0]
["1EBS","Notes","1EBS","Line 27di - Premium in BBNI",null,null,null,null,null,null,null,null,0]
["1EBS","Notes","1EBS","Line 27dii - Tech Prov. In BBNI",null,null,null,null,null,null,null,null,0]
["1EBS","Notes","1EBS","Line 27diii - Best Est. that used Trans. Arrang.",null,null,null,null,null,null,null,null,0]
["1EBS","Notes","1EBS","Line 27div - Best Est. that not used Trans. Arrang.",null,null,null,null,null,null,null,null,0]
["1EBS","Notes","1EBS","Line 27dv - Scenario Based used",null,null,null,null,null,null,null,null,0]
["1EBS","Notes","1EBS","Line 27dvi - Scen. Based used Stand. Appro.",null,null,null,null,null,null,null,null,0]
["1EBS","Notes","1EBS","Line 27dvii - Scen. Based used Base Appro.",null,null,null,null,null,null,null,null,0]
["1EBS","Notes","1EBS","Line 27Bci - Adj. Counterparty Default",null,null,null,null,null,null,null,null,0]
["1EBS","Notes","1EBS","Line 27Bdi - Premium in BBNI",null,null,null,null,null,null,null,null,0]
["1EBS","Notes","1EBS","Line 27Bdii - Tech Prov. In BBNI",null,null,null,null,null,null,null,null,0]
[]
[null,null,null,"Income Statement"]
["Form 2SFS","Income Stmt Uncon LT / CON","2SFS1a","Gross Premium Written - Direct",null,null,null,null,0,null,0]
["Form 2SFS","Income Stmt Uncon LT / CON","2SFS1b","Gross Premium Written - Assumed",null,null,null,null,0,null,0]
["Form 2SFS","Income Stmt Uncon LT / CON","2SFS2","R/I Premiums Ceded",null,null,null,null,0,null,0]
["Form 2SFS","Income Stmt Uncon LT / CON","2SFS4","Change in Unearned Premiums",null,null,null,null,0,null,0]
["Form 2SFS","Income Stmt Uncon LT / CON","2SFS6","Other Insurance Income",null,null,null,null,0,null,0]
["Form 2SFS","Income Stmt Uncon LT / CON","2SFS8","Net Losses Incurred",null,null,null,null,0,null,0]
["Form 2SFS","Income Stmt Uncon LT / CON","2SFS9","Commissions & Brokerage",null,null,null,null,0,null,0]
["Form 2SFS","Income Stmt Uncon LT / CON","2SFS12a","Gross Premium Written - Direct",0,null,0,null,0,null,0]
["Form 2SFS","Income Stmt Uncon LT / CON","2SFS12b","Gross Premium Written - Assumed",0,null,0,null,0,null,0]
["Form 2SFS","Income Stmt Uncon LT / CON","2SFS13","R/I Premiums Ceded",0,null,0,null,0,null,0]
["Form 2SFS","Income Stmt Uncon LT / CON","2SFS14a","NPW - Life",0,null,0,null,0,null,0]
["Form 2SFS","Income Stmt Uncon LT / CON","2SFS14b","NPW - Annuities",0,null,0,null,0,null,0]
["Form 2SFS","Income Stmt Uncon LT / CON","2SFS14c","NPW - Accident & Health",0,null,0,null,0,null,0]
["Form 2SFS","Income Stmt Uncon LT / CON","2SFS15","Other Insurance Income",0,null,0,null,0,null,0]
["Form 2SFS","Income Stmt Uncon LT / CON","2SFS17","Claims - Life",0,null,0,null,0,null,0]
["Form 2SFS","Income Stmt Uncon LT / CON","2SFS18","Policyholders' Dividends",0,null,0,null,0,null,0]
["Form 2SFS","Income Stmt Uncon LT / CON","2SFS19","Surrenders",0,null,0,null,0,null,0]
["Form 2SFS","Income Stmt Uncon LT / CON","2SFS20","Maturities",0,null,0,null,0,null,0]
["Form 2SFS","Income Stmt Uncon LT / CON","2SFS21","Annuities",0,null,0,null,0,null,0]
["Form 2SFS","Income Stmt Uncon LT / CON","2SFS22","Accident & Health Benefits",0,null,0,null,0,null,0]
["Form 2SFS","Income Stmt Uncon LT / CON","2SFS23","Commissions",0,null,0,null,0,null,0]
["Form 2SFS","Income Stmt Uncon LT / CON","2SFS24","Other",0,null,0,null,0,null,0]
["Form 2SFS","Income Stmt Uncon LT / CON","2SFS26a","Change in Policy Reserves - Life",0,null,0,null,0,null,0]
["Form 2SFS","Income Stmt Uncon LT / CON","2SFS26b","Change in Policy Reserves - Annuities",0,null,0,null,0,null,0]
["Form 2SFS","Income Stmt Uncon LT / CON","2SFS26c","Change in Policy Reserves - Accid. & Health",0,null,0,null,0,null,0]
["Form 2SFS","Income Stmt Uncon LT / CON","2SFS30a","Operating Expense - G&A",0,null,0,null,0,null,0]
["Form 2SFS","Income Stmt Uncon LT / CON","2SFS30b","Operating Expense - Personnel Costs",0,null,0,null,0,null,0]
["Form 2SFS","Income Stmt Uncon LT / CON","2SFS30c","Operating Expense - Other",0,null,0,null,0,null,0]
["Form 2SFS","Income Stmt Uncon LT / CON","2SFS31","Investment Income",0,null,0,null,0,null,0]
["Form 2SFS","Income Stmt Uncon LT / CON","2SFS32","Other Income",0,null,0,null,0,null,0]
["Form 2SFS","Income Stmt Uncon LT / CON","2SFS34a","Income Tax - Current",0,null,0,null,0,null,0]
["Form 2SFS","Income Stmt Uncon LT / CON","2SFS34b","Income Tax - Deferred",0,null,0,null,0,null,0]
["Form 2SFS","Income Stmt Uncon LT / CON","2SFS36","Realized Gains/Losses",0,null,0,null,0,null,0]
["Form 2SFS","Income Stmt Uncon LT / CON","2SFS37","Interest Charges",0,null,0,null,0,null,0]
[]
["Form 2SFS","Income Stmt Uncon GEN","2SFS1a","Gross Premium Written - Direct",0,null,0]
["Form 2SFS","Income Stmt Uncon GEN","2SFS1b","Gross Premium Written - Assumed",0,null,0]
["Form 2SFS","Income Stmt Uncon GEN","2SFS2","R/I Premiums Ceded",0,null,0]
["Form 2SFS","Income Stmt Uncon GEN","2SFS4","Change in Unearned Premiums",0,null,0]
["Form 2SFS","Income Stmt Uncon GEN","2SFS6","Other Insurance Income",0,null,0]
["Form 2SFS","Income Stmt Uncon GEN","2SFS8","Net Losses Incurred",0,null,0]
["Form 2SFS","Income Stmt Uncon GEN","2SFS9","Commissions & Brokerage",0,null,0]
["Form 2SFS","Income Stmt Uncon GEN","2SFS30a","Operating Expense - G&A",0,null,0]
["Form 2SFS","Income Stmt Uncon GEN","2SFS30b","Operating Expense - Personnel Costs",0,null,0]
["Form 2SFS","Income Stmt Uncon GEN","2SFS30c","Operating Expense - Other",0,null,0]
["Form 2SFS","Income Stmt Uncon GEN","2SFS31","Investment Income",0,null,0]
["Form 2SFS","Income Stmt Uncon GEN","2SFS32","Other Income",0,null,0]
["Form 2SFS","Income Stmt Uncon GEN","2SFS34a","Income Tax - Current",0,null,0]
["Form 2SFS","Income Stmt Uncon GEN","2SFS34b","Income Tax - Deferred",0,null,0]
["Form 2SFS","Income Stmt Uncon GEN","2SFS36","Realized Gains/Losses",0,null,0]
["Form 2SFS","Income Stmt Uncon GEN","2SFS37","Interest Charges",0,null,0]
[]
[null,null,null,"Statement of Capital & Surplus"]
["Form 8SFS","Stmt of C&S Uncon LT / CON","8SFS1ai","Capital Stock",0,null,0]
["Form 8SFS","Stmt of C&S Uncon LT / CON",null,"Common Stock",null,null,null,null,0,null,0]
["Form 8SFS","Stmt of C&S Uncon LT / CON","8SFS1aii","Preferred Shares",null,null,null,null,0,null,0]
["Form 8SFS","Stmt of C&S Uncon LT / CON","8SFS1aiii","Treasury Shares",null,null,null,null,0,null,0]
["Form 8SFS","Stmt of C&S Uncon LT / CON","8SFS1b","Contributed Surplus",0,null,0,null,0,null,0]
["Form 8SFS","Stmt of C&S Uncon LT / CON","8SFS1ci","Other Fixed Capital - Hybrid Instruments",0,null,0,null,0,null,0]
["Form 8SFS","Stmt of C&S Uncon LT / CON","8SFS1cii","Other Fixed Capital - Guarantees & Others",0,null,0,null,0,null,0]
["Form 8SFS","Stmt of C&S Uncon LT / CON","8SFS2a","Statutory Surplus - Beginning of Year",0,null,0,null,0,null,0]
["Form 8SFS","Stmt of C&S Uncon LT / CON","8SFS2c","Dividends",0,null,0,null,0,null,0]
["Form 8SFS","Stmt of C&S Uncon LT / CON","8SFS2d","Unrealized Change in Investments",0,null,0,null,0,null,0]
["Form 8SFS","Stmt of C&S Uncon LT / CON","8SFS2e","Change in Non-Admitted Assets",0,null,0,null,0,null,0]
["Form 8SFS","Stmt of C&S Uncon LT / CON","8SFS2f","Change in Real Estate",0,null,0,null,0,null,0]
["Form 8SFS","Stmt of C&S Uncon LT / CON","8SFS2g","Change in Other Statutory Capital",0,null,0,null,0,null,0]
["Form 8SFS","Stmt of C&S Uncon LT / CON","8SFS3","Minority Interest",0,null,0,null,0,null,0]
[]
["Form 8SFS","Stmt of C&S Uncon GEN","8SFS1a","Common Stock",0,null,0]
["Form 8SFS","Stmt of C&S Uncon GEN","8SFS1b","Contributed Surplus",0,null,0]
["Form 8SFS","Stmt of C&S Uncon GEN","8SFS1ci","Other Fixed Capital - Hybrid Instruments",0,null,0]
["Form 8SFS","Stmt of C&S Uncon GEN","8SFS1cii","Other Fixed Capital - Guarantees & Others",0,null,0]
["Form 8SFS","Stmt of C&S Uncon GEN","8SFS2a","Statutory Surplus - Beginning of Year",0,null,0]
["Form 8SFS","Stmt of C&S Uncon GEN","8SFS2c","Dividends",0,null,0]
["Form 8SFS","Stmt of C&S Uncon GEN","8SFS2d","Unrealized Change in Investments",0,null,0]
["Form 8SFS","Stmt of C&S Uncon GEN","8SFS2e","Change in Non-Admitted Assets",0,null,0]
["Form 8SFS","Stmt of C&S Uncon GEN","8SFS2f","Change in Real Estate",0,null,0]
["Form 8SFS","Stmt of C&S Uncon GEN","8SFS2g","Change in Other Statutory Capital",0,null,0]
["Form 8SFS","Stmt of C&S Uncon GEN","8SFS3","Minority Interest",0,null,0]
[]
[null,null,null,"IFRS Balance Sheet"]
["Form 1ASFS","Balance Sheet GEN/CON","1ASFS1","Cash and Cash Equivalents",{"$f":"'Form 1SFS'!H12","v":0},null,{"$f":"'Form 1SFS'!I12","v":0},null,{"$f":"'Form 1SFS'!K12","v":0},null,{"$f":"'Form 1SFS'!M12","v":0}]
["Form 1ASFS","Balance Sheet GEN/CON","1ASFS2ai","Quoted - Bonds - Held to Maturity",{"$f":"'Form 1SFS'!H16","v":0},null,{"$f":"'Form 1SFS'!I16","v":0},null,{"$f":"'Form 1SFS'!K16","v":0},null,{"$f":"'Form 1SFS'!M16","v":0}]
["Form 1ASFS","Balance Sheet GEN/CON","1ASFS2aii","Quoted - Bonds - Other",{"$f":"'Form 1SFS'!H17","v":0},null,{"$f":"'Form 1SFS'!I17","v":0},null,{"$f":"'Form 1SFS'!K17","v":0},null,{"$f":"'Form 1SFS'!M17","v":0}]
["Form 1ASFS","Balance Sheet GEN/CON","1ASFS2ci","Quoted - Equities - Common Stocks",{"$f":"'Form 1SFS'!H20","v":0},null,{"$f":"'Form 1SFS'!I20","v":0},null,{"$f":"'Form 1SFS'!K20","v":0},null,{"$f":"'Form 1SFS'!M20","v":0}]
["Form 1ASFS","Balance Sheet GEN/CON","1ASFS2cii","Quoted - Equities - Preferred Stocks",{"$f":"'Form 1SFS'!H21","v":0},null,{"$f":"'Form 1SFS'!I21","v":0},null,{"$f":"'Form 1SFS'!K21","v":0},null,{"$f":"'Form 1SFS'!M21","v":0}]
["Form 1ASFS","Balance Sheet GEN/CON","1ASFS2ciii","Quoted - Equities - Mutual Funds",{"$f":"'Form 1SFS'!H22","v":0},null,{"$f":"'Form 1SFS'!I22","v":0},null,{"$f":"'Form 1SFS'!K22","v":0},null,{"$f":"'Form 1SFS'!M22","v":0}]
["Form 1ASFS","Balance Sheet GEN/CON","1ASFS2e","Quoted - Other Investments",{"$f":"'Form 1SFS'!H24","v":0},null,{"$f":"'Form 1SFS'!I24","v":0},null,{"$f":"'Form 1SFS'!K24","v":0},null,{"$f":"'Form 1SFS'!M24","v":0}]
["Form 1ASFS","Balance Sheet GEN/CON","1ASFS3ai","Unquoted - Bonds - Held to Maturity",{"$f":"'Form 1SFS'!H29","v":0},null,{"$f":"'Form 1SFS'!I29","v":0},null,{"$f":"'Form 1SFS'!K29","v":0},null,{"$f":"'Form 1SFS'!M29","v":0}]
["Form 1ASFS","Balance Sheet GEN/CON","1ASFS3aii","Unquoted - Bonds - Other",{"$f":"'Form 1SFS'!H30","v":0},null,{"$f":"'Form 1SFS'!I30","v":0},null,{"$f":"'Form 1SFS'!K30","v":0},null,{"$f":"'Form 1SFS'!M30","v":0}]
["Form 1ASFS","Balance Sheet GEN/CON","1ASFS3ci","Unquoted - Equities - Common Stocks",{"$f":"'Form 1SFS'!H33","v":0},null,{"$f":"'Form 1SFS'!I33","v":0},null,{"$f":"'Form 1SFS'!K33","v":0},null,{"$f":"'Form 1SFS'!M33","v":0}]
["Form 1ASFS","Balance Sheet GEN/CON","1ASFS3cii","Unquoted - Equities - Preferred Stocks",{"$f":"'Form 1SFS'!H34","v":0},null,{"$f":"'Form 1SFS'!I34","v":0},null,{"$f":"'Form 1SFS'!K34","v":0},null,{"$f":"'Form 1SFS'!M34","v":0}]
["Form 1ASFS","Balance Sheet GEN/CON","1ASFS3ciii","Unquoted - Equities - Mutual Funds",{"$f":"'Form 1SFS'!H35","v":0},null,{"$f":"'Form 1SFS'!I35","v":0},null,{"$f":"'Form 1SFS'!K35","v":0},null,{"$f":"'Form 1SFS'!M35","v":0}]
["Form 1ASFS","Balance Sheet GEN/CON","1ASFS3e","Unquoted - Other Investments",{"$f":"'Form 1SFS'!H37","v":0},null,{"$f":"'Form 1SFS'!I37","v":0},null,{"$f":"'Form 1SFS'!K37","v":0},null,{"$f":"'Form 1SFS'!M37","v":0}]
["Form 1ASFS","Balance Sheet GEN/CON","1ASFS4a","Inv. In Affiliates - Unregulated Ancillary",{"$f":"'Form 1SFS'!H41","v":0},null,{"$f":"'Form 1SFS'!I41","v":0},null,{"$f":"'Form 1SFS'!K41","v":0},null,{"$f":"'Form 1SFS'!M41","v":0}]
["Form 1ASFS","Balance Sheet GEN/CON","1ASFS4b","Inv. In Affiliates - Unregulated Non-Fin. Oper.",{"$f":"'Form 1SFS'!H42","v":0},null,{"$f":"'Form 1SFS'!I42","v":0},null,{"$f":"'Form 1SFS'!K42","v":0},null,{"$f":"'Form 1SFS'!M42","v":0}]
["Form 1ASFS","Balance Sheet GEN/CON","1ASFS4c","Inv. In Affiliates - Unregulated Fin. Operating",{"$f":"'Form 1SFS'!H43","v":0},null,{"$f":"'Form 1SFS'!I43","v":0},null,{"$f":"'Form 1SFS'!K43","v":0},null,{"$f":"'Form 1SFS'!M43","v":0}]
["Form 1ASFS","Balance Sheet GEN/CON","1ASFS4d","Inv. In Affiliates - Regulated Non-Insurance",{"$f":"'Form 1SFS'!H44","v":0},null,{"$f":"'Form 1SFS'!I44","v":0},null,{"$f":"'Form 1SFS'!K44","v":0},null,{"$f":"'Form 1SFS'!M44","v":0}]
["Form 1ASFS","Balance Sheet GEN/CON","1ASFS4e","Inv. In Affiliates - Regulated Insurance",{"$f":"'Form 1SFS'!H45","v":0},null,{"$f":"'Form 1SFS'!I45","v":0},null,{"$f":"'Form 1SFS'!K45","v":0},null,{"$f":"'Form 1SFS'!M45","v":0}]
["Form 1ASFS","Balance Sheet GEN/CON","1ASFS4g","Advances To Affiliates",{"$f":"'Form 1SFS'!H47","v":0},null,{"$f":"'Form 1SFS'!I47","v":0},null,{"$f":"'Form 1SFS'!K47","v":0},null,{"$f":"'Form 1SFS'!M47","v":0}]
["Form 1ASFS","Balance Sheet GEN/CON","1ASFS5a","Inv. In Mortg. Loans on Real Estate - 1st Lien",{"$f":"'Form 1SFS'!H51","v":0},null,{"$f":"'Form 1SFS'!I51","v":0},null,{"$f":"'Form 1SFS'!K51","v":0},null,{"$f":"'Form 1SFS'!M51","v":0}]
["Form 1ASFS","Balance Sheet GEN/CON","1ASFS5b","Inv. In Mortg. Loans on Real Estate - Other",{"$f":"'Form 1SFS'!H52","v":0},null,{"$f":"'Form 1SFS'!I52","v":0},null,{"$f":"'Form 1SFS'!K52","v":0},null,{"$f":"'Form 1SFS'!M52","v":0}]
["Form 1ASFS","Balance Sheet GEN/CON","1ASFS7a","Real Estate - Occupied by Company",{"$f":"'Form 1SFS'!H58","v":0},null,{"$f":"'Form 1SFS'!I58","v":0},null,{"$f":"'Form 1SFS'!K58","v":0},null,{"$f":"'Form 1SFS'!M58","v":0}]
["Form 1ASFS","Balance Sheet GEN/CON","1ASFS7b","Real Estate - Other",{"$f":"'Form 1SFS'!H59","v":0},null,{"$f":"'Form 1SFS'!I59","v":0},null,{"$f":"'Form 1SFS'!K59","v":0},null,{"$f":"'Form 1SFS'!M59","v":0}]
["Form 1ASFS","Balance Sheet GEN/CON","1ASFS8","Collateral Loans",{"$f":"'Form 1SFS'!H62","v":0},null,{"$f":"'Form 1SFS'!I62","v":0},null,{"$f":"'Form 1SFS'!K62","v":0},null,{"$f":"'Form 1SFS'!M62","v":0}]
["Form 1ASFS","Balance Sheet GEN/CON","1ASFS9","Investment Income Due and Accrued",{"$f":"'Form 1SFS'!H64","v":0},null,{"$f":"'Form 1SFS'!I64","v":0},null,{"$f":"'Form 1SFS'!K64","v":0},null,{"$f":"'Form 1SFS'!M64","v":0}]
["Form 1ASFS","Balance Sheet GEN/CON","1ASFS10","Accounts Receivable",0,null,0,null,0,null,0]
["Form 1ASFS","Balance Sheet GEN/CON","1ASFS11a","Insurance Contract Assets",0,null,0,null,0,null,0]
["Form 1ASFS","Balance Sheet GEN/CON","1ASFS11b","Reinsurance Contract Assets",0,null,0,null,0,null,0]
["Form 1ASFS","Balance Sheet GEN/CON","1ASFS11c","Investment Contracts with DPF Assets",0,null,0,null,0,null,0]
["Form 1ASFS","Balance Sheet GEN/CON","1ASFS13a","Sundry Assets - Derivatives",{"$f":"'Form 1SFS'!H82","v":0},null,{"$f":"'Form 1SFS'!I82","v":0},null,{"$f":"'Form 1SFS'!K82","v":0},null,{"$f":"'Form 1SFS'!M82","v":0}]
["Form 1ASFS","Balance Sheet GEN/CON","1ASFS13b","Sundry Assets - SAC - LT- Variable Annuities",{"$f":"'Form 1SFS'!H83","v":0},null,{"$f":"'Form 1SFS'!I83","v":0},null,{"$f":"'Form 1SFS'!K83","v":0},null,{"$f":"'Form 1SFS'!M83","v":0}]
["Form 1ASFS","Balance Sheet GEN/CON","1ASFS13c","Sundry Assets - SAC - LT- Others",{"$f":"'Form 1SFS'!H84","v":0},null,{"$f":"'Form 1SFS'!I84","v":0},null,{"$f":"'Form 1SFS'!K84","v":0},null,{"$f":"'Form 1SFS'!M84","v":0}]
["Form 1ASFS","Balance Sheet GEN/CON","1ASFS13d","Sundry Assets - SAC - General Business",null,null,null,null,{"$f":"'Form 1SFS'!K85","v":0},null,{"$f":"'Form 1SFS'!M85","v":0}]
["Form 1ASFS","Balance Sheet GEN/CON","1ASFS13e","Sundry Assets - Deposit Assets",{"$f":"'Form 1SFS'!H86","v":0},null,{"$f":"'Form 1SFS'!I86","v":0},null,{"$f":"'Form 1SFS'!K86","v":0},null,{"$f":"'Form 1SFS'!M86","v":0}]
["Form 1ASFS","Balance Sheet GEN/CON","1ASFS13f","Sundry Assets - Net Rec. for Investments",{"$f":"'Form 1SFS'!H88","v":0},null,{"$f":"'Form 1SFS'!I88","v":0},null,{"$f":"'Form 1SFS'!K88","v":0},null,{"$f":"'Form 1SFS'!M88","v":0}]
["Form 1ASFS","Balance Sheet GEN/CON","1ASFS13g","Sundry Assets - Other 1",{"$f":"'Form 1SFS'!H89","v":0},null,{"$f":"'Form 1SFS'!I89","v":0},null,{"$f":"'Form 1SFS'!K89","v":0},null,{"$f":"'Form 1SFS'!M89","v":0}]
["Form 1ASFS","Balance Sheet GEN/CON","1ASFS13h","Sundry Assets - Other 2",{"$f":"'Form 1SFS'!H90","v":0},null,{"$f":"'Form 1SFS'!I90","v":0},null,{"$f":"'Form 1SFS'!K90","v":0},null,{"$f":"'Form 1SFS'!M90","v":0}]
["Form 1ASFS","Balance Sheet GEN/CON","1ASFS13i","Sundry Assets - Other 3",{"$f":"'Form 1SFS'!H91","v":0},null,{"$f":"'Form 1SFS'!I91","v":0},null,{"$f":"'Form 1SFS'!K91","v":0},null,{"$f":"'Form 1SFS'!M91","v":0}]
["Form 1ASFS","Balance Sheet GEN/CON","1ASFS14a","Letters of Credit",{"$f":"'Form 1SFS'!H95","v":0},null,{"$f":"'Form 1SFS'!I95","v":0},null,{"$f":"'Form 1SFS'!K95","v":0},null,{"$f":"'Form 1SFS'!M95","v":0}]
["Form 1ASFS","Balance Sheet GEN/CON","1ASFS14b","Guarantees",{"$f":"'Form 1SFS'!H96","v":0},null,{"$f":"'Form 1SFS'!I96","v":0},null,{"$f":"'Form 1SFS'!K96","v":0},null,{"$f":"'Form 1SFS'!M96","v":0}]
["Form 1ASFS","Balance Sheet GEN/CON","1ASFS14c","Other Instruments",{"$f":"'Form 1SFS'!H97","v":0},null,{"$f":"'Form 1SFS'!I97","v":0},null,{"$f":"'Form 1SFS'!K97","v":0},null,{"$f":"'Form 1SFS'!M97","v":0}]
["Form 1ASFS","Balance Sheet GEN/CON","1ASFS15","Total Assets",{"$f":"'Form 1SFS'!H100","v":0},null,{"$f":"'Form 1SFS'!I100","v":0},null,{"$f":"'Form 1SFS'!K100","v":0},null,{"$f":"'Form 1SFS'!M100","v":0}]
["Form 1ASFS","Balance Sheet GEN/CON","1ASFS17","General Business Insurance Contract Liabilities",0,null,0,null,0,null,0]
["Form 1ASFS","Balance Sheet GEN/CON","1ASFS17A","General Business Reinsurance Contract Liabilities",0,null,0,null,0,null,0]
["Form 1ASFS","Balance Sheet GEN/CON","1ASFS18","Investment Contracts with DPF Liabilities",0,null,0,null,0,null,0]
["Form 1ASFS","Balance Sheet GEN/CON","1ASFS27","Long-Term Business Insurance Contract Liabilities",null,null,null,null,0,null,0]
["Form 1ASFS","Balance Sheet GEN/CON","1ASFS27A","Long-Term Business Reinsurance Contract Liabilities",null,null,null,null,0,null,0]
["Form 1ASFS","Balance Sheet GEN/CON","1ASFS29","Commissions, Expenses and Taxes Payable",{"$f":"'Form 1SFS'!H160","v":0},null,{"$f":"'Form 1SFS'!I160","v":0},null,{"$f":"'Form 1SFS'!K160","v":0},null,{"$f":"'Form 1SFS'!M160","v":0}]
["Form 1ASFS","Balance Sheet GEN/CON","1ASFS30","Loans and Notes Payable",{"$f":"'Form 1SFS'!H162","v":0},null,{"$f":"'Form 1SFS'!I162","v":0},null,{"$f":"'Form 1SFS'!K162","v":0},null,{"$f":"'Form 1SFS'!M162","v":0}]
["Form 1ASFS","Balance Sheet GEN/CON","1ASFS31a","Income Taxes Payable",{"$f":"'Form 1SFS'!H164","v":0},null,{"$f":"'Form 1SFS'!I164","v":0},null,{"$f":"'Form 1SFS'!K164","v":0},null,{"$f":"'Form 1SFS'!M164","v":0}]
["Form 1ASFS","Balance Sheet GEN/CON","1ASFS31b","Deferred Taxes Payable",{"$f":"'Form 1SFS'!H166","v":0},null,{"$f":"'Form 1SFS'!I166","v":0},null,{"$f":"'Form 1SFS'!K166","v":0},null,{"$f":"'Form 1SFS'!M166","v":0}]
["Form 1ASFS","Balance Sheet GEN/CON","1ASFS32","Amounts Due to Affiliates",{"$f":"'Form 1SFS'!H168","v":0},null,{"$f":"'Form 1SFS'!I168","v":0},null,{"$f":"'Form 1SFS'!K168","v":0},null,{"$f":"'Form 1SFS'!M168","v":0}]
["Form 1ASFS","Balance Sheet GEN/CON","1ASFS33","Accounts Payable and Accrued Liabilities",{"$f":"'Form 1SFS'!H170","v":0},null,{"$f":"'Form 1SFS'!I170","v":0},null,{"$f":"'Form 1SFS'!K170","v":0},null,{"$f":"'Form 1SFS'!M170","v":0}]
["Form 1ASFS","Balance Sheet GEN/CON","1ASFS35","Dividends Payable",{"$f":"'Form 1SFS'!H174","v":0},null,{"$f":"'Form 1SFS'!I174","v":0},null,{"$f":"'Form 1SFS'!K174","v":0},null,{"$f":"'Form 1SFS'!M174","v":0}]
["Form 1ASFS","Balance Sheet GEN/CON","1ASFS36a","Sundry Liabilities - Derivative Instruments",{"$f":"'Form 1SFS'!H177","v":0},null,{"$f":"'Form 1SFS'!I177","v":0},null,{"$f":"'Form 1SFS'!K177","v":0},null,{"$f":"'Form 1SFS'!M177","v":0}]
["Form 1ASFS","Balance Sheet GEN/CON","1ASFS36b","Sundry Liabilities - Seg. Accounts",{"$f":"'Form 1SFS'!H178","v":0},null,{"$f":"'Form 1SFS'!I178","v":0},null,{"$f":"'Form 1SFS'!K178","v":0},null,{"$f":"'Form 1SFS'!M178","v":0}]
["Form 1ASFS","Balance Sheet GEN/CON","1ASFS36c","Sundry Liabilities - Deposit Liabilities",{"$f":"'Form 1SFS'!H179","v":0},null,{"$f":"'Form 1SFS'!I179","v":0},null,{"$f":"'Form 1SFS'!K179","v":0},null,{"$f":"'Form 1SFS'!M179","v":0}]
["Form 1ASFS","Balance Sheet GEN/CON","1ASFS36d","Sundry Liabilities - Investments Purchased",{"$f":"'Form 1SFS'!H180","v":0},null,{"$f":"'Form 1SFS'!I180","v":0},null,{"$f":"'Form 1SFS'!K180","v":0},null,{"$f":"'Form 1SFS'!M180","v":0}]
["Form 1ASFS","Balance Sheet GEN/CON","1ASFS36e","Sundry Liabilities - Other 1",{"$f":"'Form 1SFS'!H181","v":0},null,{"$f":"'Form 1SFS'!I181","v":0},null,{"$f":"'Form 1SFS'!K181","v":0},null,{"$f":"'Form 1SFS'!M181","v":0}]
["Form 1ASFS","Balance Sheet GEN/CON","1ASFS36f","Sundry Liabilities - Other 2",{"$f":"'Form 1SFS'!H182","v":0},null,{"$f":"'Form 1SFS'!I182","v":0},null,{"$f":"'Form 1SFS'!K182","v":0},null,{"$f":"'Form 1SFS'!M182","v":0}]
["Form 1ASFS","Balance Sheet GEN/CON","1ASFS36g","Sundry Liabilities - Other 3",{"$f":"'Form 1SFS'!H183","v":0},null,{"$f":"'Form 1SFS'!I183","v":0},null,{"$f":"'Form 1SFS'!K183","v":0},null,{"$f":"'Form 1SFS'!M183","v":0}]
["Form 1ASFS","Balance Sheet GEN/CON","1ASFS37a","Letters of Credit",{"$f":"'Form 1SFS'!H187","v":0},null,{"$f":"'Form 1SFS'!I187","v":0},null,{"$f":"'Form 1SFS'!K187","v":0},null,{"$f":"'Form 1SFS'!M187","v":0}]
["Form 1ASFS","Balance Sheet GEN/CON","1ASFS37b","Guarantees",{"$f":"'Form 1SFS'!H188","v":0},null,{"$f":"'Form 1SFS'!I188","v":0},null,{"$f":"'Form 1SFS'!K188","v":0},null,{"$f":"'Form 1SFS'!M188","v":0}]
["Form 1ASFS","Balance Sheet GEN/CON","1ASFS37c","Other Instruments",{"$f":"'Form 1SFS'!H189","v":0},null,{"$f":"'Form 1SFS'!I189","v":0},null,{"$f":"'Form 1SFS'!K189","v":0},null,{"$f":"'Form 1SFS'!M189","v":0}]
[]
["Form 1ASFS","Balance Sheet LT","1ASFS1","Cash and Cash Equivalents",{"$f":"'Form 1SFS'!F12","v":0},null,{"$f":"'Form 1SFS'!G12","v":0}]
["Form 1ASFS","Balance Sheet LT","1ASFS2ai","Quoted - Bonds - Held to Maturity",{"$f":"'Form 1SFS'!F16","v":0},null,{"$f":"'Form 1SFS'!G16","v":0}]
["Form 1ASFS","Balance Sheet LT","1ASFS2aii","Quoted - Bonds - Other",{"$f":"'Form 1SFS'!F17","v":0},null,{"$f":"'Form 1SFS'!G17","v":0}]
["Form 1ASFS","Balance Sheet LT","1ASFS2ci","Quoted - Equities - Common Stocks",{"$f":"'Form 1SFS'!F20","v":0},null,{"$f":"'Form 1SFS'!G20","v":0}]
["Form 1ASFS","Balance Sheet LT","1ASFS2cii","Quoted - Equities - Preferred Stocks",{"$f":"'Form 1SFS'!F21","v":0},null,{"$f":"'Form 1SFS'!G21","v":0}]
["Form 1ASFS","Balance Sheet LT","1ASFS2ciii","Quoted - Equities - Mutual Funds",{"$f":"'Form 1SFS'!F22","v":0},null,{"$f":"'Form 1SFS'!G22","v":0}]
["Form 1ASFS","Balance Sheet LT","1ASFS2e","Quoted - Other Investments",{"$f":"'Form 1SFS'!F24","v":0},null,{"$f":"'Form 1SFS'!G24","v":0}]
["Form 1ASFS","Balance Sheet LT","1ASFS3ai","Unquoted - Bonds - Held to Maturity",{"$f":"'Form 1SFS'!F29","v":0},null,{"$f":"'Form 1SFS'!G29","v":0}]
["Form 1ASFS","Balance Sheet LT","1ASFS3aii","Unquoted - Bonds - Other",{"$f":"'Form 1SFS'!F30","v":0},null,{"$f":"'Form 1SFS'!G30","v":0}]
["Form 1ASFS","Balance Sheet LT","1ASFS3ci","Unquoted - Equities - Common Stocks",{"$f":"'Form 1SFS'!F33","v":0},null,{"$f":"'Form 1SFS'!G33","v":0}]
["Form 1ASFS","Balance Sheet LT","1ASFS3cii","Unquoted - Equities - Preferred Stocks",{"$f":"'Form 1SFS'!F34","v":0},null,{"$f":"'Form 1SFS'!G34","v":0}]
["Form 1ASFS","Balance Sheet LT","1ASFS3ciii","Unquoted - Equities - Mutual Funds",{"$f":"'Form 1SFS'!F35","v":0},null,{"$f":"'Form 1SFS'!G35","v":0}]
["Form 1ASFS","Balance Sheet LT","1ASFS3e","Unquoted - Other Investments",{"$f":"'Form 1SFS'!F37","v":0},null,{"$f":"'Form 1SFS'!G37","v":0}]
["Form 1ASFS","Balance Sheet LT","1ASFS4a","Inv. In Affiliates - Unregulated Ancillary",{"$f":"'Form 1SFS'!F41","v":0},null,{"$f":"'Form 1SFS'!G41","v":0}]
["Form 1ASFS","Balance Sheet LT","1ASFS4b","Inv. In Affiliates - Unregulated Non-Fin. Oper.",{"$f":"'Form 1SFS'!F42","v":0},null,{"$f":"'Form 1SFS'!G42","v":0}]
["Form 1ASFS","Balance Sheet LT","1ASFS4c","Inv. In Affiliates - Unregulated Fin. Operating",{"$f":"'Form 1SFS'!F43","v":0},null,{"$f":"'Form 1SFS'!G43","v":0}]
["Form 1ASFS","Balance Sheet LT","1ASFS4d","Inv. In Affiliates - Regulated Non-Insurance",{"$f":"'Form 1SFS'!F44","v":0},null,{"$f":"'Form 1SFS'!G44","v":0}]
["Form 1ASFS","Balance Sheet LT","1ASFS4e","Inv. In Affiliates - Regulated Insurance",{"$f":"'Form 1SFS'!F45","v":0},null,{"$f":"'Form 1SFS'!G45","v":0}]
["Form 1ASFS","Balance Sheet LT","1ASFS4g","Advances To Affiliates",{"$f":"'Form 1SFS'!F47","v":0},null,{"$f":"'Form 1SFS'!G47","v":0}]
["Form 1ASFS","Balance Sheet LT","1ASFS5a","Inv. In Mortg. Loans on Real Estate - 1st Lien",{"$f":"'Form 1SFS'!F51","v":0},null,{"$f":"'Form 1SFS'!G51","v":0}]
["Form 1ASFS","Balance Sheet LT","1ASFS5b","Inv. In Mortg. Loans on Real Estate - Other",{"$f":"'Form 1SFS'!F52","v":0},null,{"$f":"'Form 1SFS'!G52","v":0}]
["Form 1ASFS","Balance Sheet LT","1ASFS7a","Real Estate - Occupied by Company",{"$f":"'Form 1SFS'!F58","v":0},null,{"$f":"'Form 1SFS'!G58","v":0}]
["Form 1ASFS","Balance Sheet LT","1ASFS7b","Real Estate - Other",{"$f":"'Form 1SFS'!F59","v":0},null,{"$f":"'Form 1SFS'!G59","v":0}]
["Form 1ASFS","Balance Sheet LT","1ASFS8","Collateral Loans",{"$f":"'Form 1SFS'!F62","v":0},null,{"$f":"'Form 1SFS'!G62","v":0}]
["Form 1ASFS","Balance Sheet LT","1ASFS9","Investment Income Due and Accrued",{"$f":"'Form 1SFS'!F64","v":0},null,{"$f":"'Form 1SFS'!G64","v":0}]
["Form 1ASFS","Balance Sheet LT","1ASFS10","Accounts Receivable",0,null,0]
["Form 1ASFS","Balance Sheet LT","1ASFS11a","Insurance Contract Assets",0,null,0]
["Form 1ASFS","Balance Sheet LT","1ASFS11b","Reinsurance Contract Assets",0,null,0]
["Form 1ASFS","Balance Sheet LT","1ASFS11c","Investment Contracts with DPF Assets",0,null,0]
["Form 1ASFS","Balance Sheet LT","1ASFS13a","Sundry Assets - Derivatives",{"$f":"'Form 1SFS'!F82","v":0},null,{"$f":"'Form 1SFS'!G82","v":0}]
["Form 1ASFS","Balance Sheet LT","1ASFS13b","Sundry Assets - SAC - LT- Variable Annuities",{"$f":"'Form 1SFS'!H83","v":0},null,{"$f":"'Form 1SFS'!I83","v":0}]
["Form 1ASFS","Balance Sheet LT","1ASFS13c","Sundry Assets - SAC - LT- Others",{"$f":"'Form 1SFS'!H84","v":0},null,{"$f":"'Form 1SFS'!I84","v":0}]
["Form 1ASFS","Balance Sheet LT","1ASFS13e","Sundry Assets - Deposit Assets",{"$f":"'Form 1SFS'!F86","v":0},null,{"$f":"'Form 1SFS'!G86","v":0}]
["Form 1ASFS","Balance Sheet LT","1ASFS13f","Sundry Assets - Net Rec. for Investments",{"$f":"'Form 1SFS'!F88","v":0},null,{"$f":"'Form 1SFS'!G88","v":0}]
["Form 1ASFS","Balance Sheet LT","1ASFS13g","Sundry Assets - Other 1",{"$f":"'Form 1SFS'!F89","v":0},null,{"$f":"'Form 1SFS'!G89","v":0}]
["Form 1ASFS","Balance Sheet LT","1ASFS13h","Sundry Assets - Other 2",{"$f":"'Form 1SFS'!F90","v":0},null,{"$f":"'Form 1SFS'!G90","v":0}]
["Form 1ASFS","Balance Sheet LT","1ASFS13i","Sundry Assets - Other 3",{"$f":"'Form 1SFS'!F91","v":0},null,{"$f":"'Form 1SFS'!G91","v":0}]
["Form 1ASFS","Balance Sheet LT","1ASFS14a","Letters of Credit",{"$f":"'Form 1SFS'!F95","v":0},null,{"$f":"'Form 1SFS'!G95","v":0}]
["Form 1ASFS","Balance Sheet LT","1ASFS14b","Guarantees",{"$f":"'Form 1SFS'!F96","v":0},null,{"$f":"'Form 1SFS'!G96","v":0}]
["Form 1ASFS","Balance Sheet LT","1ASFS14c","Other Instruments",{"$f":"'Form 1SFS'!F97","v":0},null,{"$f":"'Form 1SFS'!G97","v":0}]
["Form 1ASFS","Balance Sheet LT","1ASFS15","Total Assets",{"$f":"'Form 1SFS'!F100","v":0},null,{"$f":"'Form 1SFS'!G100","v":0}]
["Form 1ASFS","Balance Sheet LT","1ASFS18","Investment Contracts with DPF Liabilities",0,null,0]
["Form 1ASFS","Balance Sheet LT","1ASFS27","Long-Term Business Insurance Contract Liabilities",0,null,0]
["Form 1ASFS","Balance Sheet LT","1ASFS27A","Long-Term Business Reinsurance Contract Liabilities",0,null,0]
["Form 1ASFS","Balance Sheet LT","1ASFS29","Commissions, Expenses and Taxes Payable",{"$f":"'Form 1SFS'!F160","v":0},null,{"$f":"'Form 1SFS'!G160","v":0}]
["Form 1ASFS","Balance Sheet LT","1ASFS30","Loans and Notes Payable",{"$f":"'Form 1SFS'!F162","v":0},null,{"$f":"'Form 1SFS'!G162","v":0}]
["Form 1ASFS","Balance Sheet LT","1ASFS31a","Income Taxes Payable",{"$f":"'Form 1SFS'!F164","v":0},null,{"$f":"'Form 1SFS'!G164","v":0}]
["Form 1ASFS","Balance Sheet LT","1ASFS31b","Deferred Taxes Payable",{"$f":"'Form 1SFS'!F166","v":0},null,{"$f":"'Form 1SFS'!G166","v":0}]
["Form 1ASFS","Balance Sheet LT","1ASFS32","Amounts Due to Affiliates",{"$f":"'Form 1SFS'!F168","v":0},null,{"$f":"'Form 1SFS'!G168","v":0}]
["Form 1ASFS","Balance Sheet LT","1ASFS33","Accounts Payable and Accrued Liabilities",{"$f":"'Form 1SFS'!F170","v":0},null,{"$f":"'Form 1SFS'!G170","v":0}]
["Form 1ASFS","Balance Sheet LT","1ASFS35","Dividends Payable",{"$f":"'Form 1SFS'!F174","v":0},null,{"$f":"'Form 1SFS'!G174","v":0}]
["Form 1ASFS","Balance Sheet LT","1ASFS36a","Sundry Liabilities - Derivative Instruments",{"$f":"'Form 1SFS'!F177","v":0},null,{"$f":"'Form 1SFS'!G177","v":0}]
["Form 1ASFS","Balance Sheet LT","1ASFS36b","Sundry Liabilities - Segregated Accounts",{"$f":"'Form 1SFS'!F178","v":0},null,{"$f":"'Form 1SFS'!G178","v":0}]
["Form 1ASFS","Balance Sheet LT","1ASFS36c","Sundry Liabilities - Deposit Liabilities",{"$f":"'Form 1SFS'!F179","v":0},null,{"$f":"'Form 1SFS'!G179","v":0}]
["Form 1ASFS","Balance Sheet LT","1ASFS36d","Sundry Liabilities - Investments Purchased",{"$f":"'Form 1SFS'!F180","v":0},null,{"$f":"'Form 1SFS'!G180","v":0}]
["Form 1ASFS","Balance Sheet LT","1ASFS36e","Sundry Liabilities - Other 1",{"$f":"'Form 1SFS'!F181","v":0},null,{"$f":"'Form 1SFS'!G181","v":0}]
["Form 1ASFS","Balance Sheet LT","1ASFS36f","Sundry Liabilities - Other 2",{"$f":"'Form 1SFS'!F182","v":0},null,{"$f":"'Form 1SFS'!G182","v":0}]
["Form 1ASFS","Balance Sheet LT","1ASFS36g","Sundry Liabilities - Other 3",{"$f":"'Form 1SFS'!F183","v":0},null,{"$f":"'Form 1SFS'!G183","v":0}]
["Form 1ASFS","Balance Sheet LT","1ASFS37a","Letters of Credit",{"$f":"'Form 1SFS'!F187","v":0},null,{"$f":"'Form 1SFS'!G187","v":0}]
["Form 1ASFS","Balance Sheet LT","1ASFS37b","Guarantees",{"$f":"'Form 1SFS'!F188","v":0},null,{"$f":"'Form 1SFS'!G188","v":0}]
["Form 1ASFS","Balance Sheet LT","1ASFS37c","Other Instruments",{"$f":"'Form 1SFS'!F189","v":0},null,{"$f":"'Form 1SFS'!G189","v":0}]
[]
["Form 1ASFS","Notes","Form 1ASFS","Premium Receivable - in course of collection",null,null,null,null,0,null,0]
["Form 1ASFS","Notes","Form 1ASFS","Premium Receivable - Deferred not yet due",null,null,null,null,0,null,0]
["Form 1ASFS","Notes","Form 1ASFS","Premium Receivable - receivable from retrocessional contracts",null,null,null,null,0,null,0]
["Form 1ASFS","Notes","Form 1ASFS","Premium Receivable - Total",null,null,null,null,0,null,0]
["Form 1ASFS","Form 1ASFS","Form 1ASFS","Reinsurance Balances Receivable",null,null,null,null,0,null,0]
["Form 1ASFS","Form 1ASFS","Form 1ASFS","Funds Held by Ceding Reinsurers",null,null,null,null,0,null,0]
["Form 1ASFS","Notes","Form 1ASFS","Line 10 - Collaterized Balances",null,null,null,null,0,null,0]
["Form 1ASFS","Notes","Form 1ASFS","Line 13(a) Natue of Sundry Assets",null,null,null,null,0]
["Form 1ASFS","Notes","Form 1ASFS","Line 13(b)(i) Description of Derivatives policies",null,null,null,null,0]
["Form 1ASFS","Notes","Form 1ASFS","Line 13(b)(ii) MV and Nominal Exposure of derivatives",null,null,null,null,0]
["Form 1ASFS","Notes","Form 1ASFS","Line 15 - Policy. Oblig. - Cash",null,null,null,null,0,null,0]
["Form 1ASFS","Notes","Form 1ASFS","Line 15 - Policy. Oblig. - Quoted. Inv.",null,null,null,null,0,null,0]
["Form 1ASFS","Notes","Form 1ASFS","Line 15 - Policy. Oblig. - Unquoted. Inv.",null,null,null,null,0,null,0]
["Form 1ASFS","Notes","Form 1ASFS","Line 15 - Policy. Oblig. - Other Assets",null,null,null,null,0,null,0]
["Form 1ASFS","Notes","Form 1ASFS","Line 15 - Policy. Oblig. - Total",null,null,null,null,0,null,0]
["Form 1ASFS","Notes","Form 1ASFS","Line 15 - Other - Cash",null,null,null,null,0,null,0]
["Form 1ASFS","Notes","Form 1ASFS","Line 15 - Other - Quoted. Inv.",null,null,null,null,0,null,0]
["Form 1ASFS","Notes","Form 1ASFS","Line 15 - Other - Unquoted. Inv.",null,null,null,null,0,null,0]
["Form 1ASFS","Notes","Form 1ASFS","Line 15 - Other - Other Assets",null,null,null,null,0,null,0]
["Form 1ASFS","Notes","Form 1ASFS","Line 15 - Other - Total",null,null,null,null,0,null,0]
["Form 1ASFS","Notes","Form 1ASFS","Line 36(a) Natue of Sundry Liabilities",null,null,null,null,0]
["Form 1ASFS","Notes","Form 1ASFS","Line 13(b)(i) Description of Derivatives policies",null,null,null,null,0]
["Form 1ASFS","Notes","Form 1ASFS","Line 13(b)(ii) MV and Nominal Exposure of derivatives",null,null,null,null,0]
["Form 1ASFS","Notes","Form 1ASFS","Line 37 - LOC's & Guarantees",null,null,null,null,0,null,0]
["Form 1ASFS","Notes","Form 1ASFS","L17 - PAA Exc. Loss Comp - Open Assets",null,null,null,null,0]
["Form 1ASFS","Notes","Form 1ASFS","L17 - PAA Exc. Loss Comp - Open Liabilities",null,null,null,null,0]
["Form 1ASFS","Notes","Form 1ASFS","L17 - PAA Exc. Loss Comp - Net Open",null,null,null,null,0]
["Form 1ASFS","Notes","Form 1ASFS","L17 - PAA Exc. Loss Comp - Insurance Revenue",null,null,null,null,0]
["Form 1ASFS","Notes","Form 1ASFS","L17 - PAA Exc. Loss Comp - Amort. Cash Flows",null,null,null,null,0]
["Form 1ASFS","Notes","Form 1ASFS","L17 - PAA Exc. Loss Comp - Incurred Claims",null,null,null,null,0]
["Form 1ASFS","Notes","Form 1ASFS","L17 - PAA Exc. Loss Comp - Losses on enerous contracts",null,null,null,null,0]
["Form 1ASFS","Notes","Form 1ASFS","L17 - PAA Exc. Loss Comp - Adj to Liabilities for Incurred Claims",null,null,null,null,0]
["Form 1ASFS","Notes","Form 1ASFS","L17 - PAA Exc. Loss Comp - Total Insurance Service Expenses",null,null,null,null,0]
["Form 1ASFS","Notes","Form 1ASFS","L17 - PAA Exc. Loss Comp - Investment Components",null,null,null,null,0]
["Form 1ASFS","Notes","Form 1ASFS","L17 - PAA Exc. Loss Comp - Insurance Service Results",null,null,null,null,0]
["Form 1ASFS","Notes","Form 1ASFS","L17 - PAA Exc. Loss Comp - Net finance expenses",null,null,null,null,0]
["Form 1ASFS","Notes","Form 1ASFS","L17 - PAA Exc. Loss Comp - Foreign Exchange",null,null,null,null,0]
["Form 1ASFS","Notes","Form 1ASFS","L17 - PAA Exc. Loss Comp - Change in Profit or Loss",null,null,null,null,0]
["Form 1ASFS","Notes","Form 1ASFS","L17 - PAA Exc. Loss Comp - CF Premium Received",null,null,null,null,0]
["Form 1ASFS","Notes","Form 1ASFS","L17 - PAA Exc. Loss Comp - CF Insurance Acquisition",null,null,null,null,0]
["Form 1ASFS","Notes","Form 1ASFS","L17 - PAA Exc. Loss Comp - CF Claims Paid",null,null,null,null,0]
["Form 1ASFS","Notes","Form 1ASFS","L17 - PAA Exc. Loss Comp - Total CF",null,null,null,null,0]
["Form 1ASFS","Notes","Form 1ASFS","L17 - PAA Exc. Loss Comp - Contracts Trans. Acquisition Sub.",null,null,null,null,0]
["Form 1ASFS","Notes","Form 1ASFS","L17 - PAA Exc. Loss Comp - Contracts Trans. Disposal Sub.",null,null,null,null,0]
["Form 1ASFS","Notes","Form 1ASFS","L17 - PAA Exc. Loss Comp - Net Closing Balance",null,null,null,null,0]
["Form 1ASFS","Notes","Form 1ASFS","L17 - PAA Exc. Loss Comp - Closing Assets",null,null,null,null,0]
["Form 1ASFS","Notes","Form 1ASFS","L17 - PAA Exc. Loss Comp - Closing Liabilities",null,null,null,null,0]
["Form 1ASFS","Notes","Form 1ASFS","L17 - PAA Exc. Loss Comp - Net Closing Balance",null,null,null,null,0]
["Form 1ASFS","Notes","Form 1ASFS","L17 - PAA Loss Comp - Open Assets",null,null,null,null,0]
["Form 1ASFS","Notes","Form 1ASFS","L17 - PAA Loss Comp - Open Liabilities",null,null,null,null,0]
["Form 1ASFS","Notes","Form 1ASFS","L17 - PAA Loss Comp - Net Open",null,null,null,null,0]
["Form 1ASFS","Notes","Form 1ASFS","L17 - PAA Loss Comp - Insurance Revenue",null,null,null,null,0]
["Form 1ASFS","Notes","Form 1ASFS","L17 - PAA Loss Comp - Amort. Cash Flows",null,null,null,null,0]
["Form 1ASFS","Notes","Form 1ASFS","L17 - PAA Loss Comp - Incurred Claims",null,null,null,null,0]
["Form 1ASFS","Notes","Form 1ASFS","L17 - PAA Loss Comp - Losses on enerous contracts",null,null,null,null,0]
["Form 1ASFS","Notes","Form 1ASFS","L17 - PAA Loss Comp - Adj to Liabilities for Incurred Claims",null,null,null,null,0]
["Form 1ASFS","Notes","Form 1ASFS","L17 - PAA Loss Comp - Total Insurance Service Expenses",null,null,null,null,0]
["Form 1ASFS","Notes","Form 1ASFS","L17 - PAA Loss Comp - Investment Components",null,null,null,null,0]
["Form 1ASFS","Notes","Form 1ASFS","L17 - PAA Loss Comp - Insurance Service Results",null,null,null,null,0]
["Form 1ASFS","Notes","Form 1ASFS","L17 - PAA Loss Comp - Net finance expenses",null,null,null,null,0]
["Form 1ASFS","Notes","Form 1ASFS","L17 - PAA Loss Comp - Foreign Exchange",null,null,null,null,0]
["Form 1ASFS","Notes","Form 1ASFS","L17 - PAA Loss Comp - Change in Profit or Loss",null,null,null,null,0]
["Form 1ASFS","Notes","Form 1ASFS","L17 - PAA Loss Comp - CF Premium Received",null,null,null,null,0]
["Form 1ASFS","Notes","Form 1ASFS","L17 - PAA Loss Comp - CF Insurance Acquisition",null,null,null,null,0]
["Form 1ASFS","Notes","Form 1ASFS","L17 - PAA Loss Comp - CF Claims Paid",null,null,null,null,0]
["Form 1ASFS","Notes","Form 1ASFS","L17 - PAA Loss Comp - Total CF",null,null,null,null,0]
["Form 1ASFS","Notes","Form 1ASFS","L17 - PAA Loss Comp - Contracts Trans. Acquisition Sub.",null,null,null,null,0]
["Form 1ASFS","Notes","Form 1ASFS","L17 - PAA Loss Comp - Contracts Trans. Disposal Sub.",null,null,null,null,0]
["Form 1ASFS","Notes","Form 1ASFS","L17 - PAA Loss Comp - Net Closing Balance",null,null,null,null,0]
["Form 1ASFS","Notes","Form 1ASFS","L17 - PAA Loss Comp - Closing Assets",null,null,null,null,0]
["Form 1ASFS","Notes","Form 1ASFS","L17 - PAA Loss Comp - Closing Liabilities",null,null,null,null,0]
["Form 1ASFS","Notes","Form 1ASFS","L17 - PAA Loss Comp - Net Closing Balance",null,null,null,null,0]
["Form 1ASFS","Notes","Form 1ASFS","L17 - GMM Liab. for Incurred - Open Assets",null,null,null,null,0]
["Form 1ASFS","Notes","Form 1ASFS","L17 - GMM Liab. for Incurred - Open Liabilities",null,null,null,null,0]
["Form 1ASFS","Notes","Form 1ASFS","L17 - GMM Liab. for Incurred - Net Open",null,null,null,null,0]
["Form 1ASFS","Notes","Form 1ASFS","L17 - GMM Liab. for Incurred - Insurance Revenue",null,null,null,null,0]
["Form 1ASFS","Notes","Form 1ASFS","L17 - GMM Liab. for Incurred - Amort. Cash Flows",null,null,null,null,0]
["Form 1ASFS","Notes","Form 1ASFS","L17 - GMM Liab. for Incurred - Incurred Claims",null,null,null,null,0]
["Form 1ASFS","Notes","Form 1ASFS","L17 - GMM Liab. for Incurred - Losses on enerous contracts",null,null,null,null,0]
["Form 1ASFS","Notes","Form 1ASFS","L17 - GMM Liab. for Incurred - Adj to Liabilities for Incurred Claims",null,null,null,null,0]
["Form 1ASFS","Notes","Form 1ASFS","L17 - GMM Liab. for Incurred - Total Insurance Service Expenses",null,null,null,null,0]
["Form 1ASFS","Notes","Form 1ASFS","L17 - GMM Liab. for Incurred - Investment Components",null,null,null,null,0]
["Form 1ASFS","Notes","Form 1ASFS","L17 - GMM Liab. for Incurred - Insurance Service Results",null,null,null,null,0]
["Form 1ASFS","Notes","Form 1ASFS","L17 - GMM Liab. for Incurred - Net finance expenses",null,null,null,null,0]
["Form 1ASFS","Notes","Form 1ASFS","L17 - GMM Liab. for Incurred - Foreign Exchange",null,null,null,null,0]
["Form 1ASFS","Notes","Form 1ASFS","L17 - GMM Liab. for Incurred - Change in Profit or Loss",null,null,null,null,0]
["Form 1ASFS","Notes","Form 1ASFS","L17 - GMM Liab. for Incurred - CF Premium Received",null,null,null,null,0]
["Form 1ASFS","Notes","Form 1ASFS","L17 - GMM Liab. for Incurred - CF Insurance Acquisition",null,null,null,null,0]
["Form 1ASFS","Notes","Form 1ASFS","L17 - GMM Liab. for Incurred - CF Claims Paid",null,null,null,null,0]
["Form 1ASFS","Notes","Form 1ASFS","L17 - GMM Liab. for Incurred - Total CF",null,null,null,null,0]
["Form 1ASFS","Notes","Form 1ASFS","L17 - GMM Liab. for Incurred - Contracts Trans. Acquisition Sub.",null,null,null,null,0]
["Form 1ASFS","Notes","Form 1ASFS","L17 - GMM Liab. for Incurred - Contracts Trans. Disposal Sub.",null,null,null,null,0]
["Form 1ASFS","Notes","Form 1ASFS","L17 - GMM Liab. for Incurred - Net Closing Balance",null,null,null,null,0]
["Form 1ASFS","Notes","Form 1ASFS","L17 - GMM Liab. for Incurred - Closing Assets",null,null,null,null,0]
["Form 1ASFS","Notes","Form 1ASFS","L17 - GMM Liab. for Incurred - Closing Liabilities",null,null,null,null,0]
["Form 1ASFS","Notes","Form 1ASFS","L17 - GMM Liab. for Incurred - Net Closing Balance",null,null,null,null,0]
["Form 1ASFS","Notes","Form 1ASFS","L17 - GMM PV Cash Flow - Open Assets",null,null,null,null,0]
["Form 1ASFS","Notes","Form 1ASFS","L17 - GMM PV Cash Flow - Open Liabilities",null,null,null,null,0]
["Form 1ASFS","Notes","Form 1ASFS","L17 - GMM PV Cash Flow - Net Open",null,null,null,null,0]
["Form 1ASFS","Notes","Form 1ASFS","L17 - GMM PV Cash Flow - Insurance Revenue",null,null,null,null,0]
["Form 1ASFS","Notes","Form 1ASFS","L17 - GMM PV Cash Flow - Amort. Cash Flows",null,null,null,null,0]
["Form 1ASFS","Notes","Form 1ASFS","L17 - GMM PV Cash Flow - Incurred Claims",null,null,null,null,0]
["Form 1ASFS","Notes","Form 1ASFS","L17 - GMM PV Cash Flow - Losses on enerous contracts",null,null,null,null,0]
["Form 1ASFS","Notes","Form 1ASFS","L17 - GMM PV Cash Flow - Adj to Liabilities for Incurred Claims",null,null,null,null,0]
["Form 1ASFS","Notes","Form 1ASFS","L17 - GMM PV Cash Flow - Total Insurance Service Expenses",null,null,null,null,0]
["Form 1ASFS","Notes","Form 1ASFS","L17 - GMM PV Cash Flow - Investment Components",null,null,null,null,0]
["Form 1ASFS","Notes","Form 1ASFS","L17 - GMM PV Cash Flow - Insurance Service Results",null,null,null,null,0]
["Form 1ASFS","Notes","Form 1ASFS","L17 - GMM PV Cash Flow - Net finance expenses",null,null,null,null,0]
["Form 1ASFS","Notes","Form 1ASFS","L17 - GMM PV Cash Flow - Foreign Exchange",null,null,null,null,0]
["Form 1ASFS","Notes","Form 1ASFS","L17 - GMM PV Cash Flow - Change in Profit or Loss",null,null,null,null,0]
["Form 1ASFS","Notes","Form 1ASFS","L17 - GMM PV Cash Flow - CF Premium Received",null,null,null,null,0]
["Form 1ASFS","Notes","Form 1ASFS","L17 - GMM PV Cash Flow - CF Insurance Acquisition",null,null,null,null,0]
["Form 1ASFS","Notes","Form 1ASFS","L17 - GMM PV Cash Flow - CF Claims Paid",null,null,null,null,0]
["Form 1ASFS","Notes","Form 1ASFS","L17 - GMM PV Cash Flow - Total CF",null,null,null,null,0]
["Form 1ASFS","Notes","Form 1ASFS","L17 - GMM PV Cash Flow - Contracts Trans. Acquisition Sub.",null,null,null,null,0]
["Form 1ASFS","Notes","Form 1ASFS","L17 - GMM PV Cash Flow - Contracts Trans. Disposal Sub.",null,null,null,null,0]
["Form 1ASFS","Notes","Form 1ASFS","L17 - GMM PV Cash Flow - Net Closing Balance",null,null,null,null,0]
["Form 1ASFS","Notes","Form 1ASFS","L17 - GMM PV Cash Flow - Closing Assets",null,null,null,null,0]
["Form 1ASFS","Notes","Form 1ASFS","L17 - GMM PV Cash Flow - Closing Liabilities",null,null,null,null,0]
["Form 1ASFS","Notes","Form 1ASFS","L17 - GMM PV Cash Flow - Net Closing Balance",null,null,null,null,0]
["Form 1ASFS","Notes","Form 1ASFS","L17 - GMM Risk Adj - Open Assets",null,null,null,null,0]
["Form 1ASFS","Notes","Form 1ASFS","L17 - GMM Risk Adj - Open Liabilities",null,null,null,null,0]
["Form 1ASFS","Notes","Form 1ASFS","L17 - GMM Risk Adj - Net Open",null,null,null,null,0]
["Form 1ASFS","Notes","Form 1ASFS","L17 - GMM Risk Adj - Insurance Revenue",null,null,null,null,0]
["Form 1ASFS","Notes","Form 1ASFS","L17 - GMM Risk Adj - Amort. Cash Flows",null,null,null,null,0]
["Form 1ASFS","Notes","Form 1ASFS","L17 - GMM Risk Adj - Incurred Claims",null,null,null,null,0]
["Form 1ASFS","Notes","Form 1ASFS","L17 - GMM Risk Adj - Losses on enerous contracts",null,null,null,null,0]
["Form 1ASFS","Notes","Form 1ASFS","L17 - GMM Risk Adj - Adj to Liabilities for Incurred Claims",null,null,null,null,0]
["Form 1ASFS","Notes","Form 1ASFS","L17 - GMM Risk Adj - Total Insurance Service Expenses",null,null,null,null,0]
["Form 1ASFS","Notes","Form 1ASFS","L17 - GMM Risk Adj - Investment Components",null,null,null,null,0]
["Form 1ASFS","Notes","Form 1ASFS","L17 - GMM Risk Adj - Insurance Service Results",null,null,null,null,0]
["Form 1ASFS","Notes","Form 1ASFS","L17 - GMM Risk Adj - Net finance expenses",null,null,null,null,0]
["Form 1ASFS","Notes","Form 1ASFS","L17 - GMM Risk Adj - Foreign Exchange",null,null,null,null,0]
["Form 1ASFS","Notes","Form 1ASFS","L17 - GMM Risk Adj - Change in Profit or Loss",null,null,null,null,0]
["Form 1ASFS","Notes","Form 1ASFS","L17 - GMM Risk Adj - CF Premium Received",null,null,null,null,0]
["Form 1ASFS","Notes","Form 1ASFS","L17 - GMM Risk Adj - CF Insurance Acquisition",null,null,null,null,0]
["Form 1ASFS","Notes","Form 1ASFS","L17 - GMM Risk Adj - CF Claims Paid",null,null,null,null,0]
["Form 1ASFS","Notes","Form 1ASFS","L17 - GMM Risk Adj - Total CF",null,null,null,null,0]
["Form 1ASFS","Notes","Form 1ASFS","L17 - GMM Risk Adj - Contracts Trans. Acquisition Sub.",null,null,null,null,0]
["Form 1ASFS","Notes","Form 1ASFS","L17 - GMM Risk Adj - Contracts Trans. Disposal Sub.",null,null,null,null,0]
["Form 1ASFS","Notes","Form 1ASFS","L17 - GMM Risk Adj - Net Closing Balance",null,null,null,null,0]
["Form 1ASFS","Notes","Form 1ASFS","L17 - GMM Risk Adj - Closing Assets",null,null,null,null,0]
["Form 1ASFS","Notes","Form 1ASFS","L17 - GMM Risk Adj - Closing Liabilities",null,null,null,null,0]
["Form 1ASFS","Notes","Form 1ASFS","L17 - GMM Risk Adj - Net Closing Balance",null,null,null,null,0]
["Form 1ASFS","Notes","Form 1ASFS","L27 - PAA Exc. Loss Comp - Open Assets",null,null,null,null,0]
["Form 1ASFS","Notes","Form 1ASFS","L27 - PAA Exc. Loss Comp - Open Liabilities",null,null,null,null,0]
["Form 1ASFS","Notes","Form 1ASFS","L27 - PAA Exc. Loss Comp - Net Open",null,null,null,null,0]
["Form 1ASFS","Notes","Form 1ASFS","L27 - PAA Exc. Loss Comp - Insurance Revenue",null,null,null,null,0]
["Form 1ASFS","Notes","Form 1ASFS","L27 - PAA Exc. Loss Comp - Amort. Cash Flows",null,null,null,null,0]
["Form 1ASFS","Notes","Form 1ASFS","L27 - PAA Exc. Loss Comp - Incurred Claims",null,null,null,null,0]
["Form 1ASFS","Notes","Form 1ASFS","L27 - PAA Exc. Loss Comp - Losses on enerous contracts",null,null,null,null,0]
["Form 1ASFS","Notes","Form 1ASFS","L27 - PAA Exc. Loss Comp - Adj to Liabilities for Incurred Claims",null,null,null,null,0]
["Form 1ASFS","Notes","Form 1ASFS","L27 - PAA Exc. Loss Comp - Total Insurance Service Expenses",null,null,null,null,0]
["Form 1ASFS","Notes","Form 1ASFS","L27 - PAA Exc. Loss Comp - Investment Components",null,null,null,null,0]
["Form 1ASFS","Notes","Form 1ASFS","L27 - PAA Exc. Loss Comp - Insurance Service Results",null,null,null,null,0]
["Form 1ASFS","Notes","Form 1ASFS","L27 - PAA Exc. Loss Comp - Net finance expenses",null,null,null,null,0]
["Form 1ASFS","Notes","Form 1ASFS","L27 - PAA Exc. Loss Comp - Foreign Exchange",null,null,null,null,0]
["Form 1ASFS","Notes","Form 1ASFS","L27 - PAA Exc. Loss Comp - Change in Profit or Loss",null,null,null,null,0]
["Form 1ASFS","Notes","Form 1ASFS","L27 - PAA Exc. Loss Comp - CF Premium Received",null,null,null,null,0]
["Form 1ASFS","Notes","Form 1ASFS","L27 - PAA Exc. Loss Comp - CF Insurance Acquisition",null,null,null,null,0]
["Form 1ASFS","Notes","Form 1ASFS","L27 - PAA Exc. Loss Comp - CF Claims Paid",null,null,null,null,0]
["Form 1ASFS","Notes","Form 1ASFS","L27 - PAA Exc. Loss Comp - Total CF",null,null,null,null,0]
["Form 1ASFS","Notes","Form 1ASFS","L27 - PAA Exc. Loss Comp - Contracts Trans. Acquisition Sub.",null,null,null,null,0]
["Form 1ASFS","Notes","Form 1ASFS","L27 - PAA Exc. Loss Comp - Contracts Trans. Disposal Sub.",null,null,null,null,0]
["Form 1ASFS","Notes","Form 1ASFS","L27 - PAA Exc. Loss Comp - Net Closing Balance",null,null,null,null,0]
["Form 1ASFS","Notes","Form 1ASFS","L27 - PAA Exc. Loss Comp - Closing Assets",null,null,null,null,0]
["Form 1ASFS","Notes","Form 1ASFS","L27 - PAA Exc. Loss Comp - Closing Liabilities",null,null,null,null,0]
["Form 1ASFS","Notes","Form 1ASFS","L27 - PAA Exc. Loss Comp - Net Closing Balance",null,null,null,null,0]
["Form 1ASFS","Notes","Form 1ASFS","L27 - PAA Loss Comp - Open Assets",null,null,null,null,0]
["Form 1ASFS","Notes","Form 1ASFS","L27 - PAA Loss Comp - Open Liabilities",null,null,null,null,0]
["Form 1ASFS","Notes","Form 1ASFS","L27 - PAA Loss Comp - Net Open",null,null,null,null,0]
["Form 1ASFS","Notes","Form 1ASFS","L27 - PAA Loss Comp - Insurance Revenue",null,null,null,null,0]
["Form 1ASFS","Notes","Form 1ASFS","L27 - PAA Loss Comp - Amort. Cash Flows",null,null,null,null,0]
["Form 1ASFS","Notes","Form 1ASFS","L27 - PAA Loss Comp - Incurred Claims",null,null,null,null,0]
["Form 1ASFS","Notes","Form 1ASFS","L27 - PAA Loss Comp - Losses on enerous contracts",null,null,null,null,0]
["Form 1ASFS","Notes","Form 1ASFS","L27 - PAA Loss Comp - Adj to Liabilities for Incurred Claims",null,null,null,null,0]
["Form 1ASFS","Notes","Form 1ASFS","L27 - PAA Loss Comp - Total Insurance Service Expenses",null,null,null,null,0]
["Form 1ASFS","Notes","Form 1ASFS","L27 - PAA Loss Comp - Investment Components",null,null,null,null,0]
["Form 1ASFS","Notes","Form 1ASFS","L27 - PAA Loss Comp - Insurance Service Results",null,null,null,null,0]
["Form 1ASFS","Notes","Form 1ASFS","L27 - PAA Loss Comp - Net finance expenses",null,null,null,null,0]
["Form 1ASFS","Notes","Form 1ASFS","L27 - PAA Loss Comp - Foreign Exchange",null,null,null,null,0]
["Form 1ASFS","Notes","Form 1ASFS","L27 - PAA Loss Comp - Change in Profit or Loss",null,null,null,null,0]
["Form 1ASFS","Notes","Form 1ASFS","L27 - PAA Loss Comp - CF Premium Received",null,null,null,null,0]
["Form 1ASFS","Notes","Form 1ASFS","L27 - PAA Loss Comp - CF Insurance Acquisition",null,null,null,null,0]
["Form 1ASFS","Notes","Form 1ASFS","L27 - PAA Loss Comp - CF Claims Paid",null,null,null,null,0]
["Form 1ASFS","Notes","Form 1ASFS","L27 - PAA Loss Comp - Total CF",null,null,null,null,0]
["Form 1ASFS","Notes","Form 1ASFS","L27 - PAA Loss Comp - Contracts Trans. Acquisition Sub.",null,null,null,null,0]
["Form 1ASFS","Notes","Form 1ASFS","L27 - PAA Loss Comp - Contracts Trans. Disposal Sub.",null,null,null,null,0]
["Form 1ASFS","Notes","Form 1ASFS","L27 - PAA Loss Comp - Net Closing Balance",null,null,null,null,0]
["Form 1ASFS","Notes","Form 1ASFS","L27 - PAA Loss Comp - Closing Assets",null,null,null,null,0]
["Form 1ASFS","Notes","Form 1ASFS","L27 - PAA Loss Comp - Closing Liabilities",null,null,null,null,0]
["Form 1ASFS","Notes","Form 1ASFS","L27 - PAA Loss Comp - Net Closing Balance",null,null,null,null,0]
["Form 1ASFS","Notes","Form 1ASFS","L27 - GMM Liab. for Incurred - Open Assets",null,null,null,null,0]
["Form 1ASFS","Notes","Form 1ASFS","L27 - GMM Liab. for Incurred - Open Liabilities",null,null,null,null,0]
["Form 1ASFS","Notes","Form 1ASFS","L27 - GMM Liab. for Incurred - Net Open",null,null,null,null,0]
["Form 1ASFS","Notes","Form 1ASFS","L27 - GMM Liab. for Incurred - Insurance Revenue",null,null,null,null,0]
["Form 1ASFS","Notes","Form 1ASFS","L27 - GMM Liab. for Incurred - Amort. Cash Flows",null,null,null,null,0]
["Form 1ASFS","Notes","Form 1ASFS","L27 - GMM Liab. for Incurred - Incurred Claims",null,null,null,null,0]
["Form 1ASFS","Notes","Form 1ASFS","L27 - GMM Liab. for Incurred - Losses on enerous contracts",null,null,null,null,0]
["Form 1ASFS","Notes","Form 1ASFS","L27 - GMM Liab. for Incurred - Adj to Liabilities for Incurred Claims",null,null,null,null,0]
["Form 1ASFS","Notes","Form 1ASFS","L27 - GMM Liab. for Incurred - Total Insurance Service Expenses",null,null,null,null,0]
["Form 1ASFS","Notes","Form 1ASFS","L27 - GMM Liab. for Incurred - Investment Components",null,null,null,null,0]
["Form 1ASFS","Notes","Form 1ASFS","L27 - GMM Liab. for Incurred - Insurance Service Results",null,null,null,null,0]
["Form 1ASFS","Notes","Form 1ASFS","L27 - GMM Liab. for Incurred - Net finance expenses",null,null,null,null,0]
["Form 1ASFS","Notes","Form 1ASFS","L27 - GMM Liab. for Incurred - Foreign Exchange",null,null,null,null,0]
["Form 1ASFS","Notes","Form 1ASFS","L27 - GMM Liab. for Incurred - Change in Profit or Loss",null,null,null,null,0]
["Form 1ASFS","Notes","Form 1ASFS","L27 - GMM Liab. for Incurred - CF Premium Received",null,null,null,null,0]
["Form 1ASFS","Notes","Form 1ASFS","L27 - GMM Liab. for Incurred - CF Insurance Acquisition",null,null,null,null,0]
["Form 1ASFS","Notes","Form 1ASFS","L27 - GMM Liab. for Incurred - CF Claims Paid",null,null,null,null,0]
["Form 1ASFS","Notes","Form 1ASFS","L27 - GMM Liab. for Incurred - Total CF",null,null,null,null,0]
["Form 1ASFS","Notes","Form 1ASFS","L27 - GMM Liab. for Incurred - Contracts Trans. Acquisition Sub.",null,null,null,null,0]
["Form 1ASFS","Notes","Form 1ASFS","L27 - GMM Liab. for Incurred - Contracts Trans. Disposal Sub.",null,null,null,null,0]
["Form 1ASFS","Notes","Form 1ASFS","L27 - GMM Liab. for Incurred - Net Closing Balance",null,null,null,null,0]
["Form 1ASFS","Notes","Form 1ASFS","L27 - GMM Liab. for Incurred - Closing Assets",null,null,null,null,0]
["Form 1ASFS","Notes","Form 1ASFS","L27 - GMM Liab. for Incurred - Closing Liabilities",null,null,null,null,0]
["Form 1ASFS","Notes","Form 1ASFS","L27 - GMM Liab. for Incurred - Net Closing Balance",null,null,null,null,0]
["Form 1ASFS","Notes","Form 1ASFS","L27 - GMM PV Cash Flow - Open Assets",null,null,null,null,0]
["Form 1ASFS","Notes","Form 1ASFS","L27 - GMM PV Cash Flow - Open Liabilities",null,null,null,null,0]
["Form 1ASFS","Notes","Form 1ASFS","L27 - GMM PV Cash Flow - Net Open",null,null,null,null,0]
["Form 1ASFS","Notes","Form 1ASFS","L27 - GMM PV Cash Flow - Insurance Revenue",null,null,null,null,0]
["Form 1ASFS","Notes","Form 1ASFS","L27 - GMM PV Cash Flow - Amort. Cash Flows",null,null,null,null,0]
["Form 1ASFS","Notes","Form 1ASFS","L27 - GMM PV Cash Flow - Incurred Claims",null,null,null,null,0]
["Form 1ASFS","Notes","Form 1ASFS","L27 - GMM PV Cash Flow - Losses on enerous contracts",null,null,null,null,0]
["Form 1ASFS","Notes","Form 1ASFS","L27 - GMM PV Cash Flow - Adj to Liabilities for Incurred Claims",null,null,null,null,0]
["Form 1ASFS","Notes","Form 1ASFS","L27 - GMM PV Cash Flow - Total Insurance Service Expenses",null,null,null,null,0]
["Form 1ASFS","Notes","Form 1ASFS","L27 - GMM PV Cash Flow - Investment Components",null,null,null,null,0]
["Form 1ASFS","Notes","Form 1ASFS","L27 - GMM PV Cash Flow - Insurance Service Results",null,null,null,null,0]
["Form 1ASFS","Notes","Form 1ASFS","L27 - GMM PV Cash Flow - Net finance expenses",null,null,null,null,0]
["Form 1ASFS","Notes","Form 1ASFS","L27 - GMM PV Cash Flow - Foreign Exchange",null,null,null,null,0]
["Form 1ASFS","Notes","Form 1ASFS","L27 - GMM PV Cash Flow - Change in Profit or Loss",null,null,null,null,0]
["Form 1ASFS","Notes","Form 1ASFS","L27 - GMM PV Cash Flow - CF Premium Received",null,null,null,null,0]
["Form 1ASFS","Notes","Form 1ASFS","L27 - GMM PV Cash Flow - CF Insurance Acquisition",null,null,null,null,0]
["Form 1ASFS","Notes","Form 1ASFS","L27 - GMM PV Cash Flow - CF Claims Paid",null,null,null,null,0]
["Form 1ASFS","Notes","Form 1ASFS","L27 - GMM PV Cash Flow - Total CF",null,null,null,null,0]
["Form 1ASFS","Notes","Form 1ASFS","L27 - GMM PV Cash Flow - Contracts Trans. Acquisition Sub.",null,null,null,null,0]
["Form 1ASFS","Notes","Form 1ASFS","L27 - GMM PV Cash Flow - Contracts Trans. Disposal Sub.",null,null,null,null,0]
["Form 1ASFS","Notes","Form 1ASFS","L27 - GMM PV Cash Flow - Net Closing Balance",null,null,null,null,0]
["Form 1ASFS","Notes","Form 1ASFS","L27 - GMM PV Cash Flow - Closing Assets",null,null,null,null,0]
["Form 1ASFS","Notes","Form 1ASFS","L27 - GMM PV Cash Flow - Closing Liabilities",null,null,null,null,0]
["Form 1ASFS","Notes","Form 1ASFS","L27 - GMM PV Cash Flow - Net Closing Balance",null,null,null,null,0]
["Form 1ASFS","Notes","Form 1ASFS","L27 - GMM Risk Adj - Open Assets",null,null,null,null,0]
["Form 1ASFS","Notes","Form 1ASFS","L27 - GMM Risk Adj - Open Liabilities",null,null,null,null,0]
["Form 1ASFS","Notes","Form 1ASFS","L27 - GMM Risk Adj - Net Open",null,null,null,null,0]
["Form 1ASFS","Notes","Form 1ASFS","L27 - GMM Risk Adj - Insurance Revenue",null,null,null,null,0]
["Form 1ASFS","Notes","Form 1ASFS","L27 - GMM Risk Adj - Amort. Cash Flows",null,null,null,null,0]
["Form 1ASFS","Notes","Form 1ASFS","L27 - GMM Risk Adj - Incurred Claims",null,null,null,null,0]
["Form 1ASFS","Notes","Form 1ASFS","L27 - GMM Risk Adj - Losses on enerous contracts",null,null,null,null,0]
["Form 1ASFS","Notes","Form 1ASFS","L27 - GMM Risk Adj - Adj to Liabilities for Incurred Claims",null,null,null,null,0]
["Form 1ASFS","Notes","Form 1ASFS","L27 - GMM Risk Adj - Total Insurance Service Expenses",null,null,null,null,0]
["Form 1ASFS","Notes","Form 1ASFS","L27 - GMM Risk Adj - Investment Components",null,null,null,null,0]
["Form 1ASFS","Notes","Form 1ASFS","L27 - GMM Risk Adj - Insurance Service Results",null,null,null,null,0]
["Form 1ASFS","Notes","Form 1ASFS","L27 - GMM Risk Adj - Net finance expenses",null,null,null,null,0]
["Form 1ASFS","Notes","Form 1ASFS","L27 - GMM Risk Adj - Foreign Exchange",null,null,null,null,0]
["Form 1ASFS","Notes","Form 1ASFS","L27 - GMM Risk Adj - Change in Profit or Loss",null,null,null,null,0]
["Form 1ASFS","Notes","Form 1ASFS","L27 - GMM Risk Adj - CF Premium Received",null,null,null,null,0]
["Form 1ASFS","Notes","Form 1ASFS","L27 - GMM Risk Adj - CF Insurance Acquisition",null,null,null,null,0]
["Form 1ASFS","Notes","Form 1ASFS","L27 - GMM Risk Adj - CF Claims Paid",null,null,null,null,0]
["Form 1ASFS","Notes","Form 1ASFS","L27 - GMM Risk Adj - Total CF",null,null,null,null,0]
["Form 1ASFS","Notes","Form 1ASFS","L27 - GMM Risk Adj - Contracts Trans. Acquisition Sub.",null,null,null,null,0]
["Form 1ASFS","Notes","Form 1ASFS","L27 - GMM Risk Adj - Contracts Trans. Disposal Sub.",null,null,null,null,0]
["Form 1ASFS","Notes","Form 1ASFS","L27 - GMM Risk Adj - Net Closing Balance",null,null,null,null,0]
["Form 1ASFS","Notes","Form 1ASFS","L27 - GMM Risk Adj - Closing Assets",null,null,null,null,0]
["Form 1ASFS","Notes","Form 1ASFS","L27 - GMM Risk Adj - Closing Liabilities",null,null,null,null,0]
["Form 1ASFS","Notes","Form 1ASFS","L27 - GMM Risk Adj - Net Closing Balance",null,null,null,null,0]
["Form 1A","Notes","Form 1A","L17A - Coverage Exc. Loss Comp - Open Assets",null,null,null,null,0]
["Form 1A","Notes","Form 1A","L17A - Coverage Exc. Loss Comp - Open Liabilities",null,null,null,null,0]
["Form 1A","Notes","Form 1A","L17A - Coverage Exc. Loss Comp - Net Open",null,null,null,null,0]
["Form 1A","Notes","Form 1A","L17A - Coverage Exc. Loss Comp - Premiums Paid",null,null,null,null,0]
["Form 1A","Notes","Form 1A","L17A - Coverage Exc. Loss Comp - Recov. Incurred Claims",null,null,null,null,0]
["Form 1A","Notes","Form 1A","L17A - Coverage Exc. Loss Comp - Recov. on Reversals",null,null,null,null,0]
["Form 1A","Notes","Form 1A","L17A - Coverage Exc. Loss Comp - Adj to Assets for Incurred Claims",null,null,null,null,0]
["Form 1A","Notes","Form 1A","L17A - Coverage Exc. Loss Comp - Total Recov. From Reinsurers",null,null,null,null,0]
["Form 1A","Notes","Form 1A","L17A - Coverage Exc. Loss Comp - Investment Components",null,null,null,null,0]
["Form 1A","Notes","Form 1A","L17A - Coverage Exc. Loss Comp - Changes in Non-Performance Risk",null,null,null,null,0]
["Form 1A","Notes","Form 1A","L17A - Coverage Exc. Loss Comp - Net Expenses from R/I Contracts",null,null,null,null,0]
["Form 1A","Notes","Form 1A","L17A - Coverage Exc. Loss Comp - Net Finance profit",null,null,null,null,0]
["Form 1A","Notes","Form 1A","L17A - Coverage Exc. Loss Comp - Foreign Exchange",null,null,null,null,0]
["Form 1A","Notes","Form 1A","L17A - Coverage Exc. Loss Comp - Change in Profit or Loss",null,null,null,null,0]
["Form 1A","Notes","Form 1A","L17A - Coverage Exc. Loss Comp - CF Premium Received",null,null,null,null,0]
["Form 1A","Notes","Form 1A","L17A - Coverage Exc. Loss Comp - CF Incurred Claims",null,null,null,null,0]
["Form 1A","Notes","Form 1A","L17A - Coverage Exc. Loss Comp - Total CF",null,null,null,null,0]
["Form 1A","Notes","Form 1A","L17A - Coverage Exc. Loss Comp - Net Closing Balance",null,null,null,null,0]
["Form 1A","Notes","Form 1A","L17A - Coverage Exc. Loss Comp - Closing Assets",null,null,null,null,0]
["Form 1A","Notes","Form 1A","L17A - Coverage Exc. Loss Comp - Closing Liabilities",null,null,null,null,0]
["Form 1A","Notes","Form 1A","L17A - Coverage Exc. Loss Comp - Net Closing Balance",null,null,null,null,0]
["Form 1A","Notes","Form 1A","L17A - Coverage Inc. Loss Comp - Open Assets",null,null,null,null,0]
["Form 1A","Notes","Form 1A","L17A - Coverage Inc. Loss Comp - Open Liabilities",null,null,null,null,0]
["Form 1A","Notes","Form 1A","L17A - Coverage Inc. Loss Comp - Net Open",null,null,null,null,0]
["Form 1A","Notes","Form 1A","L17A - Coverage Inc. Loss Comp - Premiums Paid",null,null,null,null,0]
["Form 1A","Notes","Form 1A","L17A - Coverage Inc. Loss Comp - Recov. Incurred Claims",null,null,null,null,0]
["Form 1A","Notes","Form 1A","L17A - Coverage Inc. Loss Comp - Recov. on Reversals",null,null,null,null,0]
["Form 1A","Notes","Form 1A","L17A - Coverage Inc. Loss Comp - Adj to Assets for Incurred Claims",null,null,null,null,0]
["Form 1A","Notes","Form 1A","L17A - Coverage Inc. Loss Comp - Total Recov. From Reinsurers",null,null,null,null,0]
["Form 1A","Notes","Form 1A","L17A - Coverage Inc. Loss Comp - Investment Components",null,null,null,null,0]
["Form 1A","Notes","Form 1A","L17A - Coverage Inc. Loss Comp - Changes in Non-Performance Risk",null,null,null,null,0]
["Form 1A","Notes","Form 1A","L17A - Coverage Inc. Loss Comp - Net Expenses from R/I Contracts",null,null,null,null,0]
["Form 1A","Notes","Form 1A","L17A - Coverage Inc. Loss Comp - Net Finance profit",null,null,null,null,0]
["Form 1A","Notes","Form 1A","L17A - Coverage Inc. Loss Comp - Foreign Exchange",null,null,null,null,0]
["Form 1A","Notes","Form 1A","L17A - Coverage Inc. Loss Comp - Change in Profit or Loss",null,null,null,null,0]
["Form 1A","Notes","Form 1A","L17A - Coverage Inc. Loss Comp - CF Premium Received",null,null,null,null,0]
["Form 1A","Notes","Form 1A","L17A - Coverage Inc. Loss Comp - CF Incurred Claims",null,null,null,null,0]
["Form 1A","Notes","Form 1A","L17A - Coverage Inc. Loss Comp - Total CF",null,null,null,null,0]
["Form 1A","Notes","Form 1A","L17A - Coverage Inc. Loss Comp - Net Closing Balance",null,null,null,null,0]
["Form 1A","Notes","Form 1A","L17A - Coverage Inc. Loss Comp - Closing Assets",null,null,null,null,0]
["Form 1A","Notes","Form 1A","L17A - Coverage Inc. Loss Comp - Closing Liabilities",null,null,null,null,0]
["Form 1A","Notes","Form 1A","L17A - Coverage Inc. Loss Comp - Net Closing Balance",null,null,null,null,0]
["Form 1A","Notes","Form 1A","L17A - Inc. Claims Products Not PAA - Open Assets",null,null,null,null,0]
["Form 1A","Notes","Form 1A","L17A - Inc. Claims Products Not PAA - Open Liabilities",null,null,null,null,0]
["Form 1A","Notes","Form 1A","L17A - Inc. Claims Products Not PAA - Net Open",null,null,null,null,0]
["Form 1A","Notes","Form 1A","L17A - Inc. Claims Products Not PAA - Premiums Paid",null,null,null,null,0]
["Form 1A","Notes","Form 1A","L17A - Inc. Claims Products Not PAA - Recov. Incurred Claims",null,null,null,null,0]
["Form 1A","Notes","Form 1A","L17A - Inc. Claims Products Not PAA - Recov. on Reversals",null,null,null,null,0]
["Form 1A","Notes","Form 1A","L17A - Inc. Claims Products Not PAA - Adj to Assets for Incurred Claims",null,null,null,null,0]
["Form 1A","Notes","Form 1A","L17A - Inc. Claims Products Not PAA - Total Recov. From Reinsurers",null,null,null,null,0]
["Form 1A","Notes","Form 1A","L17A - Inc. Claims Products Not PAA - Investment Components",null,null,null,null,0]
["Form 1A","Notes","Form 1A","L17A - Inc. Claims Products Not PAA - Changes in Non-Performance Risk",null,null,null,null,0]
["Form 1A","Notes","Form 1A","L17A - Inc. Claims Products Not PAA - Net Expenses from R/I Contracts",null,null,null,null,0]
["Form 1A","Notes","Form 1A","L17A - Inc. Claims Products Not PAA - Net Finance profit",null,null,null,null,0]
["Form 1A","Notes","Form 1A","L17A - Inc. Claims Products Not PAA - Foreign Exchange",null,null,null,null,0]
["Form 1A","Notes","Form 1A","L17A - Inc. Claims Products Not PAA - Change in Profit or Loss",null,null,null,null,0]
["Form 1A","Notes","Form 1A","L17A - Inc. Claims Products Not PAA - CF Premium Received",null,null,null,null,0]
["Form 1A","Notes","Form 1A","L17A - Inc. Claims Products Not PAA - CF Incurred Claims",null,null,null,null,0]
["Form 1A","Notes","Form 1A","L17A - Inc. Claims Products Not PAA - Total CF",null,null,null,null,0]
["Form 1A","Notes","Form 1A","L17A - Inc. Claims Products Not PAA - Net Closing Balance",null,null,null,null,0]
["Form 1A","Notes","Form 1A","L17A - Inc. Claims Products Not PAA - Closing Assets",null,null,null,null,0]
["Form 1A","Notes","Form 1A","L17A - Inc. Claims Products Not PAA - Closing Liabilities",null,null,null,null,0]
["Form 1A","Notes","Form 1A","L17A - Inc. Claims Products Not PAA - Net Closing Balance",null,null,null,null,0]
["Form 1A","Notes","Form 1A","L17A - Inc. Claims PAA PV Cash Flow - Open Assets",null,null,null,null,0]
["Form 1A","Notes","Form 1A","L17A - Inc. Claims PAA PV Cash Flow - Open Liabilities",null,null,null,null,0]
["Form 1A","Notes","Form 1A","L17A - Inc. Claims PAA PV Cash Flow - Net Open",null,null,null,null,0]
["Form 1A","Notes","Form 1A","L17A - Inc. Claims PAA PV Cash Flow - Premiums Paid",null,null,null,null,0]
["Form 1A","Notes","Form 1A","L17A - Inc. Claims PAA PV Cash Flow - Recov. Incurred Claims",null,null,null,null,0]
["Form 1A","Notes","Form 1A","L17A - Inc. Claims PAA PV Cash Flow - Recov. on Reversals",null,null,null,null,0]
["Form 1A","Notes","Form 1A","L17A - Inc. Claims PAA PV Cash Flow - Adj to Assets for Incurred Claims",null,null,null,null,0]
["Form 1A","Notes","Form 1A","L17A - Inc. Claims PAA PV Cash Flow - Total Recov. From Reinsurers",null,null,null,null,0]
["Form 1A","Notes","Form 1A","L17A - Inc. Claims PAA PV Cash Flow - Investment Components",null,null,null,null,0]
["Form 1A","Notes","Form 1A","L17A - Inc. Claims PAA PV Cash Flow - Changes in Non-Performance Risk",null,null,null,null,0]
["Form 1A","Notes","Form 1A","L17A - Inc. Claims PAA PV Cash Flow - Net Expenses from R/I Contracts",null,null,null,null,0]
["Form 1A","Notes","Form 1A","L17A - Inc. Claims PAA PV Cash Flow - Net Finance profit",null,null,null,null,0]
["Form 1A","Notes","Form 1A","L17A - Inc. Claims PAA PV Cash Flow - Foreign Exchange",null,null,null,null,0]
["Form 1A","Notes","Form 1A","L17A - Inc. Claims PAA PV Cash Flow - Change in Profit or Loss",null,null,null,null,0]
["Form 1A","Notes","Form 1A","L17A - Inc. Claims PAA PV Cash Flow - CF Premium Received",null,null,null,null,0]
["Form 1A","Notes","Form 1A","L17A - Inc. Claims PAA PV Cash Flow - CF Incurred Claims",null,null,null,null,0]
["Form 1A","Notes","Form 1A","L17A - Inc. Claims PAA PV Cash Flow - Total CF",null,null,null,null,0]
["Form 1A","Notes","Form 1A","L17A - Inc. Claims PAA PV Cash Flow - Net Closing Balance",null,null,null,null,0]
["Form 1A","Notes","Form 1A","L17A - Inc. Claims PAA PV Cash Flow - Closing Assets",null,null,null,null,0]
["Form 1A","Notes","Form 1A","L17A - Inc. Claims PAA PV Cash Flow - Closing Liabilities",null,null,null,null,0]
["Form 1A","Notes","Form 1A","L17A - Inc. Claims PAA PV Cash Flow - Net Closing Balance",null,null,null,null,0]
["Form 1A","Notes","Form 1A","L17A - Inc. Claims PAA Adj Non Fin. - Open Assets",null,null,null,null,0]
["Form 1A","Notes","Form 1A","L17A - Inc. Claims PAA Adj Non Fin. - Open Liabilities",null,null,null,null,0]
["Form 1A","Notes","Form 1A","L17A - Inc. Claims PAA Adj Non Fin. - Net Open",null,null,null,null,0]
["Form 1A","Notes","Form 1A","L17A - Inc. Claims PAA Adj Non Fin. - Premiums Paid",null,null,null,null,0]
["Form 1A","Notes","Form 1A","L17A - Inc. Claims PAA Adj Non Fin. - Recov. Incurred Claims",null,null,null,null,0]
["Form 1A","Notes","Form 1A","L17A - Inc. Claims PAA Adj Non Fin. - Recov. on Reversals",null,null,null,null,0]
["Form 1A","Notes","Form 1A","L17A - Inc. Claims PAA Adj Non Fin. - Adj to Assets for Incurred Claims",null,null,null,null,0]
["Form 1A","Notes","Form 1A","L17A - Inc. Claims PAA Adj Non Fin. - Total Recov. From Reinsurers",null,null,null,null,0]
["Form 1A","Notes","Form 1A","L17A - Inc. Claims PAA Adj Non Fin. - Investment Components",null,null,null,null,0]
["Form 1A","Notes","Form 1A","L17A - Inc. Claims PAA Adj Non Fin. - Changes in Non-Performance Risk",null,null,null,null,0]
["Form 1A","Notes","Form 1A","L17A - Inc. Claims PAA Adj Non Fin. - Net Expenses from R/I Contracts",null,null,null,null,0]
["Form 1A","Notes","Form 1A","L17A - Inc. Claims PAA Adj Non Fin. - Net Finance profit",null,null,null,null,0]
["Form 1A","Notes","Form 1A","L17A - Inc. Claims PAA Adj Non Fin. - Foreign Exchange",null,null,null,null,0]
["Form 1A","Notes","Form 1A","L17A - Inc. Claims PAA Adj Non Fin. - Change in Profit or Loss",null,null,null,null,0]
["Form 1A","Notes","Form 1A","L17A - Inc. Claims PAA Adj Non Fin. - CF Premium Received",null,null,null,null,0]
["Form 1A","Notes","Form 1A","L17A - Inc. Claims PAA Adj Non Fin. - CF Incurred Claims",null,null,null,null,0]
["Form 1A","Notes","Form 1A","L17A - Inc. Claims PAA Adj Non Fin. - Total CF",null,null,null,null,0]
["Form 1A","Notes","Form 1A","L17A - Inc. Claims PAA Adj Non Fin. - Net Closing Balance",null,null,null,null,0]
["Form 1A","Notes","Form 1A","L17A - Inc. Claims PAA Adj Non Fin. - Closing Assets",null,null,null,null,0]
["Form 1A","Notes","Form 1A","L17A - Inc. Claims PAA Adj Non Fin. - Closing Liabilities",null,null,null,null,0]
["Form 1A","Notes","Form 1A","L17A - Inc. Claims PAA Adj Non Fin. - Net Closing Balance",null,null,null,null,0]
["Form 1A","Notes","Form 1A","L27A - Coverage Exc. Loss Comp - Open Assets",null,null,null,null,0]
["Form 1A","Notes","Form 1A","L27A - Coverage Exc. Loss Comp - Open Liabilities",null,null,null,null,0]
["Form 1A","Notes","Form 1A","L27A - Coverage Exc. Loss Comp - Net Open",null,null,null,null,0]
["Form 1A","Notes","Form 1A","L27A - Coverage Exc. Loss Comp - Premiums Paid",null,null,null,null,0]
["Form 1A","Notes","Form 1A","L27A - Coverage Exc. Loss Comp - Recov. Incurred Claims",null,null,null,null,0]
["Form 1A","Notes","Form 1A","L27A - Coverage Exc. Loss Comp - Recov. on Reversals",null,null,null,null,0]
["Form 1A","Notes","Form 1A","L27A - Coverage Exc. Loss Comp - Adj to Assets for Incurred Claims",null,null,null,null,0]
["Form 1A","Notes","Form 1A","L27A - Coverage Exc. Loss Comp - Total Recov. From Reinsurers",null,null,null,null,0]
["Form 1A","Notes","Form 1A","L27A - Coverage Exc. Loss Comp - Investment Components",null,null,null,null,0]
["Form 1A","Notes","Form 1A","L27A - Coverage Exc. Loss Comp - Changes in Non-Performance Risk",null,null,null,null,0]
["Form 1A","Notes","Form 1A","L27A - Coverage Exc. Loss Comp - Net Expenses from R/I Contracts",null,null,null,null,0]
["Form 1A","Notes","Form 1A","L27A - Coverage Exc. Loss Comp - Net Finance profit",null,null,null,null,0]
["Form 1A","Notes","Form 1A","L27A - Coverage Exc. Loss Comp - Foreign Exchange",null,null,null,null,0]
["Form 1A","Notes","Form 1A","L27A - Coverage Exc. Loss Comp - Change in Profit or Loss",null,null,null,null,0]
["Form 1A","Notes","Form 1A","L27A - Coverage Exc. Loss Comp - CF Premium Received",null,null,null,null,0]
["Form 1A","Notes","Form 1A","L27A - Coverage Exc. Loss Comp - CF Incurred Claims",null,null,null,null,0]
["Form 1A","Notes","Form 1A","L27A - Coverage Exc. Loss Comp - Total CF",null,null,null,null,0]
["Form 1A","Notes","Form 1A","L27A - Coverage Exc. Loss Comp - Net Closing Balance",null,null,null,null,0]
["Form 1A","Notes","Form 1A","L27A - Coverage Exc. Loss Comp - Closing Assets",null,null,null,null,0]
["Form 1A","Notes","Form 1A","L27A - Coverage Exc. Loss Comp - Closing Liabilities",null,null,null,null,0]
["Form 1A","Notes","Form 1A","L27A - Coverage Exc. Loss Comp - Net Closing Balance",null,null,null,null,0]
["Form 1A","Notes","Form 1A","L27A - Coverage Inc. Loss Comp - Open Assets",null,null,null,null,0]
["Form 1A","Notes","Form 1A","L27A - Coverage Inc. Loss Comp - Open Liabilities",null,null,null,null,0]
["Form 1A","Notes","Form 1A","L27A - Coverage Inc. Loss Comp - Net Open",null,null,null,null,0]
["Form 1A","Notes","Form 1A","L27A - Coverage Inc. Loss Comp - Premiums Paid",null,null,null,null,0]
["Form 1A","Notes","Form 1A","L27A - Coverage Inc. Loss Comp - Recov. Incurred Claims",null,null,null,null,0]
["Form 1A","Notes","Form 1A","L27A - Coverage Inc. Loss Comp - Recov. on Reversals",null,null,null,null,0]
["Form 1A","Notes","Form 1A","L27A - Coverage Inc. Loss Comp - Adj to Assets for Incurred Claims",null,null,null,null,0]
["Form 1A","Notes","Form 1A","L27A - Coverage Inc. Loss Comp - Total Recov. From Reinsurers",null,null,null,null,0]
["Form 1A","Notes","Form 1A","L27A - Coverage Inc. Loss Comp - Investment Components",null,null,null,null,0]
["Form 1A","Notes","Form 1A","L27A - Coverage Inc. Loss Comp - Changes in Non-Performance Risk",null,null,null,null,0]
["Form 1A","Notes","Form 1A","L27A - Coverage Inc. Loss Comp - Net Expenses from R/I Contracts",null,null,null,null,0]
["Form 1A","Notes","Form 1A","L27A - Coverage Inc. Loss Comp - Net Finance profit",null,null,null,null,0]
["Form 1A","Notes","Form 1A","L27A - Coverage Inc. Loss Comp - Foreign Exchange",null,null,null,null,0]
["Form 1A","Notes","Form 1A","L27A - Coverage Inc. Loss Comp - Change in Profit or Loss",null,null,null,null,0]
["Form 1A","Notes","Form 1A","L27A - Coverage Inc. Loss Comp - CF Premium Received",null,null,null,null,0]
["Form 1A","Notes","Form 1A","L27A - Coverage Inc. Loss Comp - CF Incurred Claims",null,null,null,null,0]
["Form 1A","Notes","Form 1A","L27A - Coverage Inc. Loss Comp - Total CF",null,null,null,null,0]
["Form 1A","Notes","Form 1A","L27A - Coverage Inc. Loss Comp - Net Closing Balance",null,null,null,null,0]
["Form 1A","Notes","Form 1A","L27A - Coverage Inc. Loss Comp - Closing Assets",null,null,null,null,0]
["Form 1A","Notes","Form 1A","L27A - Coverage Inc. Loss Comp - Closing Liabilities",null,null,null,null,0]
["Form 1A","Notes","Form 1A","L27A - Coverage Inc. Loss Comp - Net Closing Balance",null,null,null,null,0]
["Form 1A","Notes","Form 1A","L27A - Inc. Claims - Open Assets",null,null,null,null,0]
["Form 1A","Notes","Form 1A","L27A - Inc. Claims - Open Liabilities",null,null,null,null,0]
["Form 1A","Notes","Form 1A","L27A - Inc. Claims - Net Open",null,null,null,null,0]
["Form 1A","Notes","Form 1A","L27A - Inc. Claims - Premiums Paid",null,null,null,null,0]
["Form 1A","Notes","Form 1A","L27A - Inc. Claims - Recov. Incurred Claims",null,null,null,null,0]
["Form 1A","Notes","Form 1A","L27A - Inc. Claims - Recov. on Reversals",null,null,null,null,0]
["Form 1A","Notes","Form 1A","L27A - Inc. Claims - Adj to Assets for Incurred Claims",null,null,null,null,0]
["Form 1A","Notes","Form 1A","L27A - Inc. Claims - Total Recov. From Reinsurers",null,null,null,null,0]
["Form 1A","Notes","Form 1A","L27A - Inc. Claims - Investment Components",null,null,null,null,0]
["Form 1A","Notes","Form 1A","L27A - Inc. Claims - Changes in Non-Performance Risk",null,null,null,null,0]
["Form 1A","Notes","Form 1A","L27A - Inc. Claims - Net Expenses from R/I Contracts",null,null,null,null,0]
["Form 1A","Notes","Form 1A","L27A - Inc. Claims - Net Finance profit",null,null,null,null,0]
["Form 1A","Notes","Form 1A","L27A - Inc. Claims - Foreign Exchange",null,null,null,null,0]
["Form 1A","Notes","Form 1A","L27A - Inc. Claims - Change in Profit or Loss",null,null,null,null,0]
["Form 1A","Notes","Form 1A","L27A - Inc. Claims - CF Premium Received",null,null,null,null,0]
["Form 1A","Notes","Form 1A","L27A - Inc. Claims - CF Incurred Claims",null,null,null,null,0]
["Form 1A","Notes","Form 1A","L27A - Inc. Claims - Total CF",null,null,null,null,0]
["Form 1A","Notes","Form 1A","L27A - Inc. Claims - Net Closing Balance",null,null,null,null,0]
["Form 1A","Notes","Form 1A","L27A - Inc. Claims - Closing Assets",null,null,null,null,0]
["Form 1A","Notes","Form 1A","L27A - Inc. Claims - Closing Liabilities",null,null,null,null,0]
["Form 1A","Notes","Form 1A","L27A - Inc. Claims - Net Closing Balance",null,null,null,null,0]
[]
[null,null,null,"IFRS Income Statement"]
["Form 2ASFS","Income Stmt Uncon GEN / CON","2ASFS1","Insurance Contract Revenue",0,null,0,null,0,null,0]
["Form 2ASFS","Income Stmt Uncon GEN / CON","2ASFS2a","Incurred Claims",0,null,0,null,0,null,0]
["Form 2ASFS","Income Stmt Uncon GEN / CON","2ASFS2b","Acquisition Cash Flows",0,null,0,null,0,null,0]
["Form 2ASFS","Income Stmt Uncon GEN / CON","2ASFS2c","Adj for Liability Incurred Claims",0,null,0,null,0,null,0]
["Form 2ASFS","Income Stmt Uncon GEN / CON","2ASFS2d","Losses on Onerous Contracts",0,null,0,null,0,null,0]
["Form 2ASFS","Income Stmt Uncon GEN / CON","2ASFS2e","Other Service Expenses",0,null,0,null,0,null,0]
["Form 2ASFS","Income Stmt Uncon GEN / CON","2ASFS2f","Total Insurance Service Expense",0,null,0,null,0,null,0]
["Form 2ASFS","Income Stmt Uncon GEN / CON","2ASFS3","Insurance Service Results Before R/I",0,null,0,null,0,null,0]
["Form 2ASFS","Income Stmt Uncon GEN / CON","2ASFS4a","R/I Recoveries and Other Income",0,null,0,null,0,null,0]
["Form 2ASFS","Income Stmt Uncon GEN / CON","2ASFS4b","R/I Expenses",0,null,0,null,0,null,0]
["Form 2ASFS","Income Stmt Uncon GEN / CON","2ASFS4c","Net Expenses R/I Contracts Held",0,null,0,null,0,null,0]
["Form 2ASFS","Income Stmt Uncon GEN / CON","2ASFS5","Insurance Service Results",0,null,0,null,0,null,0]
["Form 2ASFS","Income Stmt Uncon GEN / CON","2ASFS6a","Net Interest Income",0,null,0,null,0,null,0]
["Form 2ASFS","Income Stmt Uncon GEN / CON","2ASFS6b","Net Realized",0,null,0,null,0,null,0]
["Form 2ASFS","Income Stmt Uncon GEN / CON","2ASFS6c","Net Foreign Exchange",0,null,0,null,0,null,0]
["Form 2ASFS","Income Stmt Uncon GEN / CON","2ASFS6d","Credit Impairment Losses",0,null,0,null,0,null,0]
["Form 2ASFS","Income Stmt Uncon GEN / CON","2ASFS6e","Other Investment Returns",0,null,0,null,0,null,0]
["Form 2ASFS","Income Stmt Uncon GEN / CON","2ASFS6f","Total Investment Returns",0,null,0,null,0,null,0]
["Form 2ASFS","Income Stmt Uncon GEN / CON","2ASFS7a","Net Finance Expense from Insurance",0,null,0,null,0,null,0]
["Form 2ASFS","Income Stmt Uncon GEN / CON","2ASFS7b","Net Finance Expense from Reinsurance",0,null,0,null,0,null,0]
["Form 2ASFS","Income Stmt Uncon GEN / CON","2ASFS7c","Insurance Finance Results",0,null,0,null,0,null,0]
["Form 2ASFS","Income Stmt Uncon GEN / CON","2ASFS8","Net Insurance Financial and Investment Results",0,null,0,null,0,null,0]
["Form 2ASFS","Income Stmt Uncon GEN / CON","2ASFS9","Other Income",0,null,0,null,0,null,0]
["Form 2ASFS","Income Stmt Uncon GEN / CON","2ASFS10","Profit Before Tax",0,null,0,null,0,null,0]
["Form 2ASFS","Income Stmt Uncon GEN / CON","2ASFS11","Income Tax",0,null,0,null,0,null,0]
["Form 2ASFS","Income Stmt Uncon GEN / CON","2ASFS12","Net Income",0,null,0,null,0,null,0]
[]
["Form 2ASFS","Income Stmt Uncon LT","2ASFS1","Insurance Contract Revenue",0,null,0]
["Form 2ASFS","Income Stmt Uncon LT","2ASFS2a","Incurred Claims",0,null,0]
["Form 2ASFS","Income Stmt Uncon LT","2ASFS2b","Acquisition Cash Flows",0,null,0]
["Form 2ASFS","Income Stmt Uncon LT","2ASFS2c","Adj for Liability Incurred Claims",0,null,0]
["Form 2ASFS","Income Stmt Uncon LT","2ASFS2d","Losses on Onerous Contracts",0,null,0]
["Form 2ASFS","Income Stmt Uncon LT","2ASFS2e","Other Service Expenses",0,null,0]
["Form 2ASFS","Income Stmt Uncon LT","2ASFS2f","Total Insurance Service Expense",0,null,0]
["Form 2ASFS","Income Stmt Uncon LT","2ASFS3","Insurance Service Results Before R/I",0,null,0]
["Form 2ASFS","Income Stmt Uncon LT","2ASFS4a","R/I Recoveries and Other Income",0,null,0]
["Form 2ASFS","Income Stmt Uncon LT","2ASFS4b","R/I Expenses",0,null,0]
["Form 2ASFS","Income Stmt Uncon LT","2ASFS4c","Net Expenses R/I Contracts Held",0,null,0]
["Form 2ASFS","Income Stmt Uncon LT","2ASFS5","Insurance Service Results",0,null,0]
["Form 2ASFS","Income Stmt Uncon LT","2ASFS6a","Net Interest Income",0,null,0]
["Form 2ASFS","Income Stmt Uncon LT","2ASFS6b","Net Realized",0,null,0]
["Form 2ASFS","Income Stmt Uncon LT","2ASFS6c","Net Foreign Exchange",0,null,0]
["Form 2ASFS","Income Stmt Uncon LT","2ASFS6d","Credit Impairment Losses",0,null,0]
["Form 2ASFS","Income Stmt Uncon LT","2ASFS6e","Other Investment Returns",0,null,0]
["Form 2ASFS","Income Stmt Uncon LT","2ASFS6f","Total Investment Returns",0,null,0]
["Form 2ASFS","Income Stmt Uncon LT","2ASFS7a","Net Finance Expense from Insurance",0,null,0]
["Form 2ASFS","Income Stmt Uncon LT","2ASFS7b","Net Finance Expense from Reinsurance",0,null,0]
["Form 2ASFS","Income Stmt Uncon LT","2ASFS7c","Insurance Finance Results",0,null,0]
["Form 2ASFS","Income Stmt Uncon LT","2ASFS8","Net Insurance Financial and Investment Results",0,null,0]
["Form 2ASFS","Income Stmt Uncon LT","2ASFS9","Other Income",0,null,0]
["Form 2ASFS","Income Stmt Uncon LT","2ASFS10","Profit Before Tax",0,null,0]
["Form 2ASFS","Income Stmt Uncon LT","2ASFS11","Income Tax",0,null,0]
["Form 2ASFS","Income Stmt Uncon LT","2ASFS12","Net Income",0,null,0]
[]
["Form 2ASFS","Notes","Revenue","Expected Incurred Claims",0]
["Form 2ASFS","Notes","Revenue","CSM for Services Provided",0]
["Form 2ASFS","Notes","Revenue","Change in Risk Adjustment",0]
["Form 2ASFS","Notes","Revenue","Recovery of Insurance Acqusition",0]
["Form 2ASFS","Notes","Revenue","Contracts Measured under the General Model",0]
["Form 2ASFS","Notes","Revenue","Contracts Measured under PAA",0]
["Form 2ASFS","Notes","Revenue","Total Insurance Revenue",0]
["Form 2ASFS","Notes","Premium","General Business GPW",{"$f":"'Form 2SFS'!E14","v":0},null,null,null,{"$f":"'Form 2SFS'!M14","v":0}]
["Form 2ASFS","Notes","Premium","General Business Premiums Ceded",{"$f":"'Form 2SFS'!E16","v":0},null,null,null,{"$f":"'Form 2SFS'!M16","v":0}]
["Form 2ASFS","Notes","Premium","General Business NPW",{"$f":"'Form 2SFS'!E18","v":0},null,null,null,{"$f":"'Form 2SFS'!M18","v":0}]
["Form 2ASFS","Notes","Premium","General Business Net Losses Incurred",{"$f":"'Form 2SFS'!E32","v":0},null,null,null,{"$f":"'Form 2SFS'!M30","v":0}]
["Form 2ASFS","Notes","Premium","Long-Term GPW",{"$f":"'Form 2SFS'!I43","v":0},null,null,null,{"$f":"'Form 2SFS'!M43","v":0}]
["Form 2ASFS","Notes","Premium","Long-Term Premiums Ceded",{"$f":"'Form 2SFS'!I45","v":0},null,null,null,{"$f":"'Form 2SFS'!M45","v":0}]
["Form 2ASFS","Notes","Premium","Long-Term NPW",{"$f":"'Form 2SFS'!I51","v":0},null,null,null,{"$f":"'Form 2SFS'!M51","v":0}]
["Form 2ASFS","Notes","Oper. Exp.","General and Administrative Expense",{"$f":"'Form 2SFS'!E93+'Form 2SFS'!I93","v":0},null,null,null,{"$f":"'Form 2SFS'!M93","v":0}]
["Form 2ASFS","Notes","Oper. Exp.","Personnel Costs",{"$f":"'Form 2SFS'!E94+'Form 2SFS'!I94","v":0},null,null,null,{"$f":"'Form 2SFS'!M94","v":0}]
["Form 2ASFS","Notes","Oper. Exp.","Other Expenses",{"$f":"'Form 2SFS'!E95+'Form 2SFS'!I95","v":0},null,null,null,{"$f":"'Form 2SFS'!M95","v":0}]
["Form 2ASFS","Notes","Oper. Exp.","Total Combined Operating Expense",{"$f":"'Form 2SFS'!E96+'Form 2SFS'!I96","v":0},null,null,null,{"$f":"'Form 2SFS'!M96","v":0}]
[]
[null,null,null,"Statement of Capital & Surplus"]
["Form 8ASFS","Stmt of C&S Uncon GEN / CON","8ASFS1ai","Capital Stock",{"$f":"'Form 8SFS'!K11","v":0},null,{"$f":"'Form 8SFS'!M11","v":0}]
["Form 8ASFS","Stmt of C&S Uncon GEN / CON",null,"Common Stock",null,null,null,null,{"$f":"'Form 8SFS'!O12","v":0},null,{"$f":"'Form 8SFS'!Q12","v":0}]
["Form 8ASFS","Stmt of C&S Uncon GEN / CON","8ASFS1aii","Preferred Shares",null,null,null,null,{"$f":"'Form 8SFS'!O17","v":0},null,{"$f":"'Form 8SFS'!Q17","v":0}]
["Form 8ASFS","Stmt of C&S Uncon GEN / CON","8ASFS1aiii","Treasury Shares",null,null,null,null,{"$f":"'Form 8SFS'!O25","v":0},null,{"$f":"'Form 8SFS'!Q25","v":0}]
["Form 8ASFS","Stmt of C&S Uncon GEN / CON","8ASFS1b","Contributed Surplus",{"$f":"'Form 8SFS'!K29","v":0},null,{"$f":"'Form 8SFS'!M29","v":0},null,{"$f":"'Form 8SFS'!O29","v":0},null,{"$f":"'Form 8SFS'!Q29","v":0}]
["Form 8ASFS","Stmt of C&S Uncon GEN / CON","8ASFS1ci","Other Fixed Capital - Hybrid Instruments",{"$f":"'Form 8SFS'!K32","v":0},null,{"$f":"'Form 8SFS'!M32","v":0},null,{"$f":"'Form 8SFS'!O32","v":0},null,{"$f":"'Form 8SFS'!Q32","v":0}]
["Form 8ASFS","Stmt of C&S Uncon GEN / CON","8ASFS1cii","Other Fixed Capital - Guarantees & Others",{"$f":"'Form 8SFS'!K33","v":0},null,{"$f":"'Form 8SFS'!M33","v":0},null,{"$f":"'Form 8SFS'!O33","v":0},null,{"$f":"'Form 8SFS'!Q33","v":0}]
["Form 8ASFS","Stmt of C&S Uncon GEN / CON","8ASFS2a","Statutory Surplus - Beginning of Year",{"$f":"'Form 8SFS'!K40","v":0},null,{"$f":"'Form 8SFS'!M40","v":0},null,{"$f":"'Form 8SFS'!O40","v":0},null,{"$f":"'Form 8SFS'!Q40","v":0}]
["Form 8ASFS","Stmt of C&S Uncon GEN / CON","8ASFS2c","Dividends",{"$f":"'Form 8SFS'!K44","v":0},null,{"$f":"'Form 8SFS'!M44","v":0},null,{"$f":"'Form 8SFS'!O44","v":0},null,{"$f":"'Form 8SFS'!Q44","v":0}]
["Form 8ASFS","Stmt of C&S Uncon GEN / CON","8ASFS2d","Unrealized Change in Investments",{"$f":"'Form 8SFS'!K46","v":0},null,{"$f":"'Form 8SFS'!M46","v":0},null,{"$f":"'Form 8SFS'!O46","v":0},null,{"$f":"'Form 8SFS'!Q46","v":0}]
["Form 8ASFS","Stmt of C&S Uncon GEN / CON","8ASFS2e","Change in Non-Admitted Assets",{"$f":"'Form 8SFS'!K48","v":0},null,{"$f":"'Form 8SFS'!M48","v":0},null,{"$f":"'Form 8SFS'!O48","v":0},null,{"$f":"'Form 8SFS'!Q48","v":0}]
["Form 8ASFS","Stmt of C&S Uncon GEN / CON","8ASFS2f","Change in Real Estate",{"$f":"'Form 8SFS'!K50","v":0},null,{"$f":"'Form 8SFS'!M50","v":0},null,{"$f":"'Form 8SFS'!O50","v":0},null,{"$f":"'Form 8SFS'!Q50","v":0}]
["Form 8ASFS","Stmt of C&S Uncon GEN / CON","8ASFS2g","Change in Other Statutory Capital",{"$f":"'Form 8SFS'!K52","v":0},null,{"$f":"'Form 8SFS'!M52","v":0},null,{"$f":"'Form 8SFS'!O52","v":0},null,{"$f":"'Form 8SFS'!Q52","v":0}]
["Form 8ASFS","Stmt of C&S Uncon GEN / CON","8ASFS3","Minority Interest",{"$f":"'Form 8SFS'!K56","v":0},null,{"$f":"'Form 8SFS'!M56","v":0},null,{"$f":"'Form 8SFS'!O56","v":0},null,{"$f":"'Form 8SFS'!Q56","v":0}]
[]
["Form 8ASFS","Stmt of C&S Uncon LT","8ASFS1a","Common Stock",{"$f":"'Form 8SFS'!G11","v":0},null,{"$f":"'Form 8SFS'!I11","v":0}]
["Form 8ASFS","Stmt of C&S Uncon LT","8ASFS1b","Contributed Surplus",{"$f":"'Form 8SFS'!G29","v":0},null,{"$f":"'Form 8SFS'!I29","v":0}]
["Form 8ASFS","Stmt of C&S Uncon LT","8ASFS1ci","Other Fixed Capital - Hybrid Instruments",{"$f":"'Form 8SFS'!G32","v":0},null,{"$f":"'Form 8SFS'!I32","v":0}]
["Form 8ASFS","Stmt of C&S Uncon LT","8ASFS1cii","Other Fixed Capital - Guarantees & Others",{"$f":"'Form 8SFS'!G33","v":0},null,{"$f":"'Form 8SFS'!I33","v":0}]
["Form 8ASFS","Stmt of C&S Uncon LT","8ASFS2a","Statutory Surplus - Beginning of Year",{"$f":"'Form 8SFS'!G40","v":0},null,{"$f":"'Form 8SFS'!I40","v":0}]
["Form 8ASFS","Stmt of C&S Uncon LT","8ASFS2c","Dividends",{"$f":"'Form 8SFS'!G44","v":0},null,{"$f":"'Form 8SFS'!I44","v":0}]
["Form 8ASFS","Stmt of C&S Uncon LT","8ASFS2d","Unrealized Change in Investments",{"$f":"'Form 8SFS'!G46","v":0},null,{"$f":"'Form 8SFS'!I46","v":0}]
["Form 8ASFS","Stmt of C&S Uncon LT","8ASFS2e","Change in Non-Admitted Assets",{"$f":"'Form 8SFS'!G48","v":0},null,{"$f":"'Form 8SFS'!I48","v":0}]
["Form 8ASFS","Stmt of C&S Uncon LT","8ASFS2f","Change in Real Estate",{"$f":"'Form 8SFS'!G50","v":0},null,{"$f":"'Form 8SFS'!I50","v":0}]
["Form 8ASFS","Stmt of C&S Uncon LT","8ASFS2g","Change in Other Statutory Capital",{"$f":"'Form 8SFS'!G52","v":0},null,{"$f":"'Form 8SFS'!I52","v":0}]
["Form 8ASFS","Stmt of C&S Uncon LT","8ASFS3","Minority Interest",{"$f":"'Form 8SFS'!G56","v":0},null,{"$f":"'Form 8SFS'!I56","v":0}]
[]
["Form 8ASFS","Notes","2g","Description 1",0]
["Form 8ASFS","Notes","2g","Description 2",0]
["Form 8ASFS","Notes","2g","Description 3",0]
["Form 8ASFS","Notes","2g","Description 4",0]
["Form 8ASFS","Notes","2g","IFRS 4 to 17 Adj",0,null,null,null,0]
["Form 8ASFS","Notes","2g","Other Adj 1",0,null,null,null,0]
["Form 8ASFS","Notes","2g","Other Adj 2",0,null,null,null,0]
["Form 8ASFS","Notes","2g","Other Adj 3",0,null,null,null,0]
["Form 8ASFS","Notes","2g","Other Adj 4",0,null,null,null,0]
[]
[null,null,null,"BSCR Schedules "]
["Sch II","Investments",null,"Corp. Bonds - BSCR Rate 0",0,null,0,null,null,null,null,null,0,null,0]
["Sch II","Investments",null,"Corp. Bonds - BSCR Rate 1",0,null,0,null,null,null,null,null,0,null,0]
["Sch II","Investments",null,"Corp. Bonds - BSCR Rate 2",0,null,0,null,null,null,null,null,0,null,0]
["Sch II","Investments",null,"Corp. Bonds - BSCR Rate 3",0,null,0,null,null,null,null,null,0,null,0]
["Sch II","Investments",null,"Corp. Bonds - BSCR Rate 4",0,null,0,null,null,null,null,null,0,null,0]
["Sch II","Investments",null,"Corp. Bonds - BSCR Rate 5",0,null,0,null,null,null,null,null,0,null,0]
["Sch II","Investments",null,"Corp. Bonds - BSCR Rate 6",0,null,0,null,null,null,null,null,0,null,0]
["Sch II","Investments",null,"Corp. Bonds - BSCR Rate 7",0,null,0,null,null,null,null,null,0,null,0]
["Sch II","Investments",null,"Corp. Bonds - BSCR Rate 8",0,null,0,null,null,null,null,null,0,null,0]
["Sch II","Investments",null,"Residential MBS - BSCR Rate 1",0,null,0,null,null,null,null,null,0,null,0]
["Sch II","Investments",null,"Residential MBS - BSCR Rate 2",0,null,0,null,null,null,null,null,0,null,0]
["Sch II","Investments",null,"Residential MBS - BSCR Rate 3",0,null,0,null,null,null,null,null,0,null,0]
["Sch II","Investments",null,"Residential MBS - BSCR Rate 4",0,null,0,null,null,null,null,null,0,null,0]
["Sch II","Investments",null,"Residential MBS - BSCR Rate 5",0,null,0,null,null,null,null,null,0,null,0]
["Sch II","Investments",null,"Residential MBS - BSCR Rate 6",0,null,0,null,null,null,null,null,0,null,0]
["Sch II","Investments",null,"Residential MBS - BSCR Rate 7",0,null,0,null,null,null,null,null,0,null,0]
["Sch II","Investments",null,"Residential MBS - BSCR Rate 8",0,null,0,null,null,null,null,null,0,null,0]
["Sch II","Investments",null,"Commercial MBS - BSCR Rate 1",0,null,0,null,null,null,null,null,0,null,0]
["Sch II","Investments",null,"Commercial MBS - BSCR Rate 2",0,null,0,null,null,null,null,null,0,null,0]
["Sch II","Investments",null,"Commercial MBS - BSCR Rate 3",0,null,0,null,null,null,null,null,0,null,0]
["Sch II","Investments",null,"Commercial MBS - BSCR Rate 4",0,null,0,null,null,null,null,null,0,null,0]
["Sch II","Investments",null,"Commercial MBS - BSCR Rate 5",0,null,0,null,null,null,null,null,0,null,0]
["Sch II","Investments",null,"Commercial MBS - BSCR Rate 6",0,null,0,null,null,null,null,null,0,null,0]
["Sch II","Investments",null,"Commercial MBS - BSCR Rate 7",0,null,0,null,null,null,null,null,0,null,0]
["Sch II","Investments",null,"Commercial MBS - BSCR Rate 8",0,null,0,null,null,null,null,null,0,null,0]
["Sch II","Investments",null,"Bonds Mutual Fund - BSCR Rate 0",0,null,0,null,null,null,null,null,0,null,0]
["Sch II","Investments",null,"Bonds Mutual Fund - BSCR Rate 1",0,null,0,null,null,null,null,null,0,null,0]
["Sch II","Investments",null,"Bonds Mutual Fund - BSCR Rate 2",0,null,0,null,null,null,null,null,0,null,0]
["Sch II","Investments",null,"Bonds Mutual Fund - BSCR Rate 3",0,null,0,null,null,null,null,null,0,null,0]
["Sch II","Investments",null,"Bonds Mutual Fund - BSCR Rate 4",0,null,0,null,null,null,null,null,0,null,0]
["Sch II","Investments",null,"Bonds Mutual Fund - BSCR Rate 5",0,null,0,null,null,null,null,null,0,null,0]
["Sch II","Investments",null,"Bonds Mutual Fund - BSCR Rate 6",0,null,0,null,null,null,null,null,0,null,0]
["Sch II","Investments",null,"Bonds Mutual Fund - BSCR Rate 7",0,null,0,null,null,null,null,null,0,null,0]
["Sch II","Investments",null,"Bonds Mutual Fund - BSCR Rate 8",0,null,0,null,null,null,null,null,0,null,0]
["Sch II","Investments",null,"Common Shares - Quoted",0,null,0,null,null,null,null,null,0,null,0]
["Sch II","Investments",null,"Common Shares - Unquoted",0,null,0,null,null,null,null,null,0,null,0]
["Sch II","Investments",null,"Preferred Shares - BSCR Rate 1",0,null,0,null,null,null,null,null,0,null,0]
["Sch II","Investments",null,"Preferred Shares - BSCR Rate 2",0,null,0,null,null,null,null,null,0,null,0]
["Sch II","Investments",null,"Preferred Shares - BSCR Rate 3",0,null,0,null,null,null,null,null,0,null,0]
["Sch II","Investments",null,"Preferred Shares - BSCR Rate 4",0,null,0,null,null,null,null,null,0,null,0]
["Sch II","Investments",null,"Preferred Shares - BSCR Rate 5",0,null,0,null,null,null,null,null,0,null,0]
["Sch II","Investments",null,"Preferred Shares - BSCR Rate 6",0,null,0,null,null,null,null,null,0,null,0]
["Sch II","Investments",null,"Preferred Shares - BSCR Rate 7",0,null,0,null,null,null,null,null,0,null,0]
["Sch II","Investments",null,"Preferred Shares - BSCR Rate 8",0,null,0,null,null,null,null,null,0,null,0]
["Sch II","Investments",null,"Equity Mutual Funds -  Quoted",0,null,0,null,null,null,null,null,0,null,0]
["Sch II","Investments",null,"Equity Mutual Funds -  Unquoted",0,null,0,null,null,null,null,null,0,null,0]
["Sch II","Investments",null,"Mortgage Loans - Insured",0,null,0,null,null,null,null,null,0,null,0]
["Sch II","Investments",null,"Mortgage Loans - Other Commercial",0,null,0,null,null,null,null,null,0,null,0]
["Sch II","Investments",null,"Mortgage Loans - Other Residential",0,null,0,null,null,null,null,null,0,null,0]
["Sch II","Investments",null,"Mortgage Loans - Not Good Stand.",0,null,0,null,null,null,null,null,0,null,0]
["Sch II","Investments",null,"NAIC Resid. MBS - Orig. Class 1",0,null,null,null,null,null,null,null,0]
["Sch II","Investments",null,"NAIC Resid. MBS - Orig. Class 2",0,null,null,null,null,null,null,null,0]
["Sch II","Investments",null,"NAIC Resid. MBS - Orig. Class 3",0,null,null,null,null,null,null,null,0]
["Sch II","Investments",null,"NAIC Resid. MBS - Orig. Class 4",0,null,null,null,null,null,null,null,0]
["Sch II","Investments",null,"NAIC Resid. MBS - Orig. Class 5",0,null,null,null,null,null,null,null,0]
["Sch II","Investments",null,"NAIC Resid. MBS - Orig. Class 6",0,null,null,null,null,null,null,null,0]
["Sch II","Investments",null,"NAIC Resid. MBS - Orig. Total",0,null,null,null,null,null,null,null,0]
["Sch II","Investments",null,"NAIC Resid. MBS - Rev. Class 1",0,null,null,null,null,null,null,null,0]
["Sch II","Investments",null,"NAIC Resid. MBS - Rev. Class 2",0,null,null,null,null,null,null,null,0]
["Sch II","Investments",null,"NAIC Resid. MBS - Rev. Class 3",0,null,null,null,null,null,null,null,0]
["Sch II","Investments",null,"NAIC Resid. MBS - Rev. Class 4",0,null,null,null,null,null,null,null,0]
["Sch II","Investments",null,"NAIC Resid. MBS - Rev. Class 5",0,null,null,null,null,null,null,null,0]
["Sch II","Investments",null,"NAIC Resid. MBS - Rev. Class 6",0,null,null,null,null,null,null,null,0]
["Sch II","Investments",null,"NAIC Resid. MBS - Rev. Total",0,null,null,null,null,null,null,null,0]
["Sch II","Investments",null,"NAIC Comm. MBS - Orig. Class 1",0,null,null,null,null,null,null,null,0]
["Sch II","Investments",null,"NAIC Comm. MBS - Orig. Class 2",0,null,null,null,null,null,null,null,0]
["Sch II","Investments",null,"NAIC Comm. MBS - Orig. Class 3",0,null,null,null,null,null,null,null,0]
["Sch II","Investments",null,"NAIC Comm. MBS - Orig. Class 4",0,null,null,null,null,null,null,null,0]
["Sch II","Investments",null,"NAIC Comm. MBS - Orig. Class 5",0,null,null,null,null,null,null,null,0]
["Sch II","Investments",null,"NAIC Comm. MBS - Orig. Class 6",0,null,null,null,null,null,null,null,0]
["Sch II","Investments",null,"NAIC Comm. MBS - Orig. Total",0,null,null,null,null,null,null,null,0]
["Sch II","Investments",null,"NAIC Comm. MBS - Rev. Class 1",0,null,null,null,null,null,null,null,0]
["Sch II","Investments",null,"NAIC Comm. MBS - Rev. Class 2",0,null,null,null,null,null,null,null,0]
["Sch II","Investments",null,"NAIC Comm. MBS - Rev. Class 3",0,null,null,null,null,null,null,null,0]
["Sch II","Investments",null,"NAIC Comm. MBS - Rev. Class 4",0,null,null,null,null,null,null,null,0]
["Sch II","Investments",null,"NAIC Comm. MBS - Rev. Class 5",0,null,null,null,null,null,null,null,0]
["Sch II","Investments",null,"NAIC Comm. MBS - Rev. Class 6",0,null,null,null,null,null,null,null,0]
["Sch II","Investments",null,"NAIC Comm. MBS - Rev. Total",0,null,null,null,null,null,null,null,0]
["Sch II","Investments",null,"NAIC Rating Corp & Sov. Bond - Class 1",0,null,null,null,null,null,null,null,0]
["Sch II","Investments",null,"NAIC Rating Corp & Sov. Bond - Class 2",0,null,null,null,null,null,null,null,0]
["Sch II","Investments",null,"NAIC Rating Corp & Sov. Bond - Class 3",0,null,null,null,null,null,null,null,0]
["Sch II","Investments",null,"NAIC Rating Corp & Sov. Bond - Class 4",0,null,null,null,null,null,null,null,0]
["Sch II","Investments",null,"NAIC Rating Corp & Sov. Bond - Class 5",0,null,null,null,null,null,null,null,0]
["Sch II","Investments",null,"NAIC Rating Corp & Sov. Bond - Class 6",0,null,null,null,null,null,null,null,0]
["Sch II","Investments",null,"NAIC Rating Corp & Sov. Bond - Total",0,null,null,null,null,null,null,null,0]
["Sch II","Investments",null,"NAIC Rating Resid. MBS - Class 1",0,null,null,null,null,null,null,null,0]
["Sch II","Investments",null,"NAIC Rating Resid. MBS - Class 2",0,null,null,null,null,null,null,null,0]
["Sch II","Investments",null,"NAIC Rating Resid. MBS - Class 3",0,null,null,null,null,null,null,null,0]
["Sch II","Investments",null,"NAIC Rating Resid. MBS - Class 4",0,null,null,null,null,null,null,null,0]
["Sch II","Investments",null,"NAIC Rating Resid. MBS - Class 5",0,null,null,null,null,null,null,null,0]
["Sch II","Investments",null,"NAIC Rating Resid. MBS - Class 6",0,null,null,null,null,null,null,null,0]
["Sch II","Investments",null,"NAIC Rating Resid. MBS - Total",0,null,null,null,null,null,null,null,0]
["Sch II","Investments",null,"NAIC Rating Comm. MBS - Class 1",0,null,null,null,null,null,null,null,0]
["Sch II","Investments",null,"NAIC Rating Comm. MBS - Class 2",0,null,null,null,null,null,null,null,0]
["Sch II","Investments",null,"NAIC Rating Comm. MBS - Class 3",0,null,null,null,null,null,null,null,0]
["Sch II","Investments",null,"NAIC Rating Comm. MBS - Class 4",0,null,null,null,null,null,null,null,0]
["Sch II","Investments",null,"NAIC Rating Comm. MBS - Class 5",0,null,null,null,null,null,null,null,0]
["Sch II","Investments",null,"NAIC Rating Comm. MBS - Class 6",0,null,null,null,null,null,null,null,0]
["Sch II","Investments",null,"NAIC Rating Comm. MBS - Total",0,null,null,null,null,null,null,null,0]
["Sch II","Investments",null,"NAIC Rating Bond Mutual - Class 1",0,null,null,null,null,null,null,null,0]
["Sch II","Investments",null,"NAIC Rating Bond Mutual - Class 2",0,null,null,null,null,null,null,null,0]
["Sch II","Investments",null,"NAIC Rating Bond Mutual - Class 3",0,null,null,null,null,null,null,null,0]
["Sch II","Investments",null,"NAIC Rating Bond Mutual - Class 4",0,null,null,null,null,null,null,null,0]
["Sch II","Investments",null,"NAIC Rating Bond Mutual - Class 5",0,null,null,null,null,null,null,null,0]
["Sch II","Investments",null,"NAIC Rating Bond Mutual - Class 6",0,null,null,null,null,null,null,null,0]
["Sch II","Investments",null,"NAIC Rating Bond Mutual - Total",0,null,null,null,null,null,null,null,0]
["Sch II","Investments",null,"NAIC Rating Mort. Loan - Class 1",0,null,null,null,null,null,null,null,0]
["Sch II","Investments",null,"NAIC Rating Mort. Loan - Class 2",0,null,null,null,null,null,null,null,0]
["Sch II","Investments",null,"NAIC Rating Mort. Loan - Class 3",0,null,null,null,null,null,null,null,0]
["Sch II","Investments",null,"NAIC Rating Mort. Loan - Class 4",0,null,null,null,null,null,null,null,0]
["Sch II","Investments",null,"NAIC Rating Mort. Loan - Class 5",0,null,null,null,null,null,null,null,0]
["Sch II","Investments",null,"NAIC Rating Mort. Loan - Class 6",0,null,null,null,null,null,null,null,0]
["Sch II","Investments",null,"NAIC Rating Mort. Loan - Total",0,null,null,null,null,null,null,null,0]
["Sch II","Investments",null,"NAIC Rating Pref. Stock - Class 1",0,null,null,null,null,null,null,null,0]
["Sch II","Investments",null,"NAIC Rating Pref. Stock - Class 2",0,null,null,null,null,null,null,null,0]
["Sch II","Investments",null,"NAIC Rating Pref. Stock - Class 3",0,null,null,null,null,null,null,null,0]
["Sch II","Investments",null,"NAIC Rating Pref. Stock - Class 4",0,null,null,null,null,null,null,null,0]
["Sch II","Investments",null,"NAIC Rating Pref. Stock - Class 5",0,null,null,null,null,null,null,null,0]
["Sch II","Investments",null,"NAIC Rating Pref. Stock - Class 6",0,null,null,null,null,null,null,null,0]
["Sch II","Investments",null,"NAIC Rating Pref. Stock - Total",0,null,null,null,null,null,null,null,0]
["Sch II","Investments",null,"NAIC Rating Other Assets - Class 1",0,null,null,null,null,null,null,null,0]
["Sch II","Investments",null,"NAIC Rating Other Assets - Class 2",0,null,null,null,null,null,null,null,0]
["Sch II","Investments",null,"NAIC Rating Other Assets - Class 3",0,null,null,null,null,null,null,null,0]
["Sch II","Investments",null,"NAIC Rating Other Assets - Class 4",0,null,null,null,null,null,null,null,0]
["Sch II","Investments",null,"NAIC Rating Other Assets - Class 5",0,null,null,null,null,null,null,null,0]
["Sch II","Investments",null,"NAIC Rating Other Assets - Class 6",0,null,null,null,null,null,null,null,0]
["Sch II","Investments",null,"NAIC Rating Other Assets - Total",0,null,null,null,null,null,null,null,0]
[]
["Sch IIA","Funds Held",null,"Corp. Bonds - BSCR Rate 0",0,null,0,null,null,null,null,null,0,null,0]
["Sch IIA","Funds Held",null,"Corp. Bonds - BSCR Rate 1",0,null,0,null,null,null,null,null,0,null,0]
["Sch IIA","Funds Held",null,"Corp. Bonds - BSCR Rate 2",0,null,0,null,null,null,null,null,0,null,0]
["Sch IIA","Funds Held",null,"Corp. Bonds - BSCR Rate 3",0,null,0,null,null,null,null,null,0,null,0]
["Sch IIA","Funds Held",null,"Corp. Bonds - BSCR Rate 4",0,null,0,null,null,null,null,null,0,null,0]
["Sch IIA","Funds Held",null,"Corp. Bonds - BSCR Rate 5",0,null,0,null,null,null,null,null,0,null,0]
["Sch IIA","Funds Held",null,"Corp. Bonds - BSCR Rate 6",0,null,0,null,null,null,null,null,0,null,0]
["Sch IIA","Funds Held",null,"Corp. Bonds - BSCR Rate 7",0,null,0,null,null,null,null,null,0,null,0]
["Sch IIA","Funds Held",null,"Corp. Bonds - BSCR Rate 8",0,null,0,null,null,null,null,null,0,null,0]
["Sch IIA","Funds Held",null,"Residential MBS - BSCR Rate 1",0,null,0,null,null,null,null,null,0,null,0]
["Sch IIA","Funds Held",null,"Residential MBS - BSCR Rate 2",0,null,0,null,null,null,null,null,0,null,0]
["Sch IIA","Funds Held",null,"Residential MBS - BSCR Rate 3",0,null,0,null,null,null,null,null,0,null,0]
["Sch IIA","Funds Held",null,"Residential MBS - BSCR Rate 4",0,null,0,null,null,null,null,null,0,null,0]
["Sch IIA","Funds Held",null,"Residential MBS - BSCR Rate 5",0,null,0,null,null,null,null,null,0,null,0]
["Sch IIA","Funds Held",null,"Residential MBS - BSCR Rate 6",0,null,0,null,null,null,null,null,0,null,0]
["Sch IIA","Funds Held",null,"Residential MBS - BSCR Rate 7",0,null,0,null,null,null,null,null,0,null,0]
["Sch IIA","Funds Held",null,"Residential MBS - BSCR Rate 8",0,null,0,null,null,null,null,null,0,null,0]
["Sch IIA","Funds Held",null,"Commercial MBS - BSCR Rate 1",0,null,0,null,null,null,null,null,0,null,0]
["Sch IIA","Funds Held",null,"Commercial MBS - BSCR Rate 2",0,null,0,null,null,null,null,null,0,null,0]
["Sch IIA","Funds Held",null,"Commercial MBS - BSCR Rate 3",0,null,0,null,null,null,null,null,0,null,0]
["Sch IIA","Funds Held",null,"Commercial MBS - BSCR Rate 4",0,null,0,null,null,null,null,null,0,null,0]
["Sch IIA","Funds Held",null,"Commercial MBS - BSCR Rate 5",0,null,0,null,null,null,null,null,0,null,0]
["Sch IIA","Funds Held",null,"Commercial MBS - BSCR Rate 6",0,null,0,null,null,null,null,null,0,null,0]
["Sch IIA","Funds Held",null,"Commercial MBS - BSCR Rate 7",0,null,0,null,null,null,null,null,0,null,0]
["Sch IIA","Funds Held",null,"Commercial MBS - BSCR Rate 8",0,null,0,null,null,null,null,null,0,null,0]
["Sch IIA","Funds Held",null,"Bonds Mutual Fund - BSCR Rate 0",0,null,0,null,null,null,null,null,0,null,0]
["Sch IIA","Funds Held",null,"Bonds Mutual Fund - BSCR Rate 1",0,null,0,null,null,null,null,null,0,null,0]
["Sch IIA","Funds Held",null,"Bonds Mutual Fund - BSCR Rate 2",0,null,0,null,null,null,null,null,0,null,0]
["Sch IIA","Funds Held",null,"Bonds Mutual Fund - BSCR Rate 3",0,null,0,null,null,null,null,null,0,null,0]
["Sch IIA","Funds Held",null,"Bonds Mutual Fund - BSCR Rate 4",0,null,0,null,null,null,null,null,0,null,0]
["Sch IIA","Funds Held",null,"Bonds Mutual Fund - BSCR Rate 5",0,null,0,null,null,null,null,null,0,null,0]
["Sch IIA","Funds Held",null,"Bonds Mutual Fund - BSCR Rate 6",0,null,0,null,null,null,null,null,0,null,0]
["Sch IIA","Funds Held",null,"Bonds Mutual Fund - BSCR Rate 7",0,null,0,null,null,null,null,null,0,null,0]
["Sch IIA","Funds Held",null,"Bonds Mutual Fund - BSCR Rate 8",0,null,0,null,null,null,null,null,0,null,0]
["Sch IIA","Funds Held",null,"Common Shares - Quoted",0,null,0,null,null,null,null,null,0,null,0]
["Sch IIA","Funds Held",null,"Common Shares - Unquoted",0,null,0,null,null,null,null,null,0,null,0]
["Sch IIA","Funds Held",null,"Preferred Shares - BSCR Rate 1",0,null,0,null,null,null,null,null,0,null,0]
["Sch IIA","Funds Held",null,"Preferred Shares - BSCR Rate 2",0,null,0,null,null,null,null,null,0,null,0]
["Sch IIA","Funds Held",null,"Preferred Shares - BSCR Rate 3",0,null,0,null,null,null,null,null,0,null,0]
["Sch IIA","Funds Held",null,"Preferred Shares - BSCR Rate 4",0,null,0,null,null,null,null,null,0,null,0]
["Sch IIA","Funds Held",null,"Preferred Shares - BSCR Rate 5",0,null,0,null,null,null,null,null,0,null,0]
["Sch IIA","Funds Held",null,"Preferred Shares - BSCR Rate 6",0,null,0,null,null,null,null,null,0,null,0]
["Sch IIA","Funds Held",null,"Preferred Shares - BSCR Rate 7",0,null,0,null,null,null,null,null,0,null,0]
["Sch IIA","Funds Held",null,"Preferred Shares - BSCR Rate 8",0,null,0,null,null,null,null,null,0,null,0]
["Sch IIA","Funds Held",null,"Equity Mutual Funds -  Quoted",0,null,0,null,null,null,null,null,0,null,0]
["Sch IIA","Funds Held",null,"Equity Mutual Funds -  Unquoted",0,null,0,null,null,null,null,null,0,null,0]
["Sch IIA","Funds Held",null,"Other Investments -  Quoted",0,null,0,null,null,null,null,null,0,null,0]
["Sch IIA","Funds Held",null,"Other Investments -  Unquoted",0,null,0,null,null,null,null,null,0,null,0]
["Sch IIA","Funds Held",null,"Mortgage Loans - Insured",0,null,0,null,null,null,null,null,0,null,0]
["Sch IIA","Funds Held",null,"Mortgage Loans - Other Commercial",0,null,0,null,null,null,null,null,0,null,0]
["Sch IIA","Funds Held",null,"Mortgage Loans - Other Residential",0,null,0,null,null,null,null,null,0,null,0]
["Sch IIA","Funds Held",null,"Mortgage Loans - Not Good Stand.",0,null,0,null,null,null,null,null,0,null,0]
["Sch IIA","Funds Held",null,"Cash and Cash Equivalents",0,null,0,null,null,null,null,null,0,null,0]
["Sch IIA","Funds Held",null,"NAIC Resid. MBS - Orig. Class 1",0,null,null,null,null,null,null,null,0]
["Sch IIA","Funds Held",null,"NAIC Resid. MBS - Orig. Class 2",0,null,null,null,null,null,null,null,0]
["Sch IIA","Funds Held",null,"NAIC Resid. MBS - Orig. Class 3",0,null,null,null,null,null,null,null,0]
["Sch IIA","Funds Held",null,"NAIC Resid. MBS - Orig. Class 4",0,null,null,null,null,null,null,null,0]
["Sch IIA","Funds Held",null,"NAIC Resid. MBS - Orig. Class 5",0,null,null,null,null,null,null,null,0]
["Sch IIA","Funds Held",null,"NAIC Resid. MBS - Orig. Class 6",0,null,null,null,null,null,null,null,0]
["Sch IIA","Funds Held",null,"NAIC Resid. MBS - Orig. Total",0,null,null,null,null,null,null,null,0]
["Sch IIA","Funds Held",null,"NAIC Resid. MBS - Rev. Class 1",0,null,null,null,null,null,null,null,0]
["Sch IIA","Funds Held",null,"NAIC Resid. MBS - Rev. Class 2",0,null,null,null,null,null,null,null,0]
["Sch IIA","Funds Held",null,"NAIC Resid. MBS - Rev. Class 3",0,null,null,null,null,null,null,null,0]
["Sch IIA","Funds Held",null,"NAIC Resid. MBS - Rev. Class 4",0,null,null,null,null,null,null,null,0]
["Sch IIA","Funds Held",null,"NAIC Resid. MBS - Rev. Class 5",0,null,null,null,null,null,null,null,0]
["Sch IIA","Funds Held",null,"NAIC Resid. MBS - Rev. Class 6",0,null,null,null,null,null,null,null,0]
["Sch IIA","Funds Held",null,"NAIC Resid. MBS - Rev. Total",0,null,null,null,null,null,null,null,0]
["Sch IIA","Funds Held",null,"NAIC Comm. MBS - Orig. Class 1",0,null,null,null,null,null,null,null,0]
["Sch IIA","Funds Held",null,"NAIC Comm. MBS - Orig. Class 2",0,null,null,null,null,null,null,null,0]
["Sch IIA","Funds Held",null,"NAIC Comm. MBS - Orig. Class 3",0,null,null,null,null,null,null,null,0]
["Sch IIA","Funds Held",null,"NAIC Comm. MBS - Orig. Class 4",0,null,null,null,null,null,null,null,0]
["Sch IIA","Funds Held",null,"NAIC Comm. MBS - Orig. Class 5",0,null,null,null,null,null,null,null,0]
["Sch IIA","Funds Held",null,"NAIC Comm. MBS - Orig. Class 6",0,null,null,null,null,null,null,null,0]
["Sch IIA","Funds Held",null,"NAIC Comm. MBS - Orig. Total",0,null,null,null,null,null,null,null,0]
["Sch IIA","Funds Held",null,"NAIC Comm. MBS - Rev. Class 1",0,null,null,null,null,null,null,null,0]
["Sch IIA","Funds Held",null,"NAIC Comm. MBS - Rev. Class 2",0,null,null,null,null,null,null,null,0]
["Sch IIA","Funds Held",null,"NAIC Comm. MBS - Rev. Class 3",0,null,null,null,null,null,null,null,0]
["Sch IIA","Funds Held",null,"NAIC Comm. MBS - Rev. Class 4",0,null,null,null,null,null,null,null,0]
["Sch IIA","Funds Held",null,"NAIC Comm. MBS - Rev. Class 5",0,null,null,null,null,null,null,null,0]
["Sch IIA","Funds Held",null,"NAIC Comm. MBS - Rev. Class 6",0,null,null,null,null,null,null,null,0]
["Sch IIA","Funds Held",null,"NAIC Comm. MBS - Rev. Total",0,null,null,null,null,null,null,null,0]
["Sch IIA","Funds Held",null,"NAIC Rating Corp & Sov. Bond - Class 1",0,null,null,null,null,null,null,null,0]
["Sch IIA","Funds Held",null,"NAIC Rating Corp & Sov. Bond - Class 2",0,null,null,null,null,null,null,null,0]
["Sch IIA","Funds Held",null,"NAIC Rating Corp & Sov. Bond - Class 3",0,null,null,null,null,null,null,null,0]
["Sch IIA","Funds Held",null,"NAIC Rating Corp & Sov. Bond - Class 4",0,null,null,null,null,null,null,null,0]
["Sch IIA","Funds Held",null,"NAIC Rating Corp & Sov. Bond - Class 5",0,null,null,null,null,null,null,null,0]
["Sch IIA","Funds Held",null,"NAIC Rating Corp & Sov. Bond - Class 6",0,null,null,null,null,null,null,null,0]
["Sch IIA","Funds Held",null,"NAIC Rating Corp & Sov. Bond - Total",0,null,null,null,null,null,null,null,0]
["Sch IIA","Funds Held",null,"NAIC Rating Resid. MBS - Class 1",0,null,null,null,null,null,null,null,0]
["Sch IIA","Funds Held",null,"NAIC Rating Resid. MBS - Class 2",0,null,null,null,null,null,null,null,0]
["Sch IIA","Funds Held",null,"NAIC Rating Resid. MBS - Class 3",0,null,null,null,null,null,null,null,0]
["Sch IIA","Funds Held",null,"NAIC Rating Resid. MBS - Class 4",0,null,null,null,null,null,null,null,0]
["Sch IIA","Funds Held",null,"NAIC Rating Resid. MBS - Class 5",0,null,null,null,null,null,null,null,0]
["Sch IIA","Funds Held",null,"NAIC Rating Resid. MBS - Class 6",0,null,null,null,null,null,null,null,0]
["Sch IIA","Funds Held",null,"NAIC Rating Resid. MBS - Total",0,null,null,null,null,null,null,null,0]
["Sch IIA","Funds Held",null,"NAIC Rating Comm. MBS - Class 1",0,null,null,null,null,null,null,null,0]
["Sch IIA","Funds Held",null,"NAIC Rating Comm. MBS - Class 2",0,null,null,null,null,null,null,null,0]
["Sch IIA","Funds Held",null,"NAIC Rating Comm. MBS - Class 3",0,null,null,null,null,null,null,null,0]
["Sch IIA","Funds Held",null,"NAIC Rating Comm. MBS - Class 4",0,null,null,null,null,null,null,null,0]
["Sch IIA","Funds Held",null,"NAIC Rating Comm. MBS - Class 5",0,null,null,null,null,null,null,null,0]
["Sch IIA","Funds Held",null,"NAIC Rating Comm. MBS - Class 6",0,null,null,null,null,null,null,null,0]
["Sch IIA","Funds Held",null,"NAIC Rating Comm. MBS - Total",0,null,null,null,null,null,null,null,0]
["Sch IIA","Funds Held",null,"NAIC Rating Bond Mutual - Class 1",0,null,null,null,null,null,null,null,0]
["Sch IIA","Funds Held",null,"NAIC Rating Bond Mutual - Class 2",0,null,null,null,null,null,null,null,0]
["Sch IIA","Funds Held",null,"NAIC Rating Bond Mutual - Class 3",0,null,null,null,null,null,null,null,0]
["Sch IIA","Funds Held",null,"NAIC Rating Bond Mutual - Class 4",0,null,null,null,null,null,null,null,0]
["Sch IIA","Funds Held",null,"NAIC Rating Bond Mutual - Class 5",0,null,null,null,null,null,null,null,0]
["Sch IIA","Funds Held",null,"NAIC Rating Bond Mutual - Class 6",0,null,null,null,null,null,null,null,0]
["Sch IIA","Funds Held",null,"NAIC Rating Bond Mutual - Total",0,null,null,null,null,null,null,null,0]
["Sch IIA","Funds Held",null,"NAIC Rating Mort. Loan - Class 1",0,null,null,null,null,null,null,null,0]
["Sch IIA","Funds Held",null,"NAIC Rating Mort. Loan - Class 2",0,null,null,null,null,null,null,null,0]
["Sch IIA","Funds Held",null,"NAIC Rating Mort. Loan - Class 3",0,null,null,null,null,null,null,null,0]
["Sch IIA","Funds Held",null,"NAIC Rating Mort. Loan - Class 4",0,null,null,null,null,null,null,null,0]
["Sch IIA","Funds Held",null,"NAIC Rating Mort. Loan - Class 5",0,null,null,null,null,null,null,null,0]
["Sch IIA","Funds Held",null,"NAIC Rating Mort. Loan - Class 6",0,null,null,null,null,null,null,null,0]
["Sch IIA","Funds Held",null,"NAIC Rating Mort. Loan - Total",0,null,null,null,null,null,null,null,0]
["Sch IIA","Funds Held",null,"NAIC Rating Pref. Stock - Class 1",0,null,null,null,null,null,null,null,0]
["Sch IIA","Funds Held",null,"NAIC Rating Pref. Stock - Class 2",0,null,null,null,null,null,null,null,0]
["Sch IIA","Funds Held",null,"NAIC Rating Pref. Stock - Class 3",0,null,null,null,null,null,null,null,0]
["Sch IIA","Funds Held",null,"NAIC Rating Pref. Stock - Class 4",0,null,null,null,null,null,null,null,0]
["Sch IIA","Funds Held",null,"NAIC Rating Pref. Stock - Class 5",0,null,null,null,null,null,null,null,0]
["Sch IIA","Funds Held",null,"NAIC Rating Pref. Stock - Class 6",0,null,null,null,null,null,null,null,0]
["Sch IIA","Funds Held",null,"NAIC Rating Pref. Stock - Total",0,null,null,null,null,null,null,null,0]
["Sch IIA","Funds Held",null,"NAIC Rating Other Assets - Class 1",0,null,null,null,null,null,null,null,0]
["Sch IIA","Funds Held",null,"NAIC Rating Other Assets - Class 2",0,null,null,null,null,null,null,null,0]
["Sch IIA","Funds Held",null,"NAIC Rating Other Assets - Class 3",0,null,null,null,null,null,null,null,0]
["Sch IIA","Funds Held",null,"NAIC Rating Other Assets - Class 4",0,null,null,null,null,null,null,null,0]
["Sch IIA","Funds Held",null,"NAIC Rating Other Assets - Class 5",0,null,null,null,null,null,null,null,0]
["Sch IIA","Funds Held",null,"NAIC Rating Other Assets - Class 6",0,null,null,null,null,null,null,null,0]
["Sch IIA","Funds Held",null,"NAIC Rating Other Assets - Total",0,null,null,null,null,null,null,null,0]
[]
["Sch IVA","LT Premium",null,"Unrelated - 1. Mortality",0,null,0,null,0,null,0]
["Sch IVA","LT Premium",null,"Unrelated - 2. Critical Illness",0,null,0,null,0,null,0]
["Sch IVA","LT Premium",null,"Unrelated - 3. Longevity",0,null,0,null,0,null,0]
["Sch IVA","LT Premium",null,"Unrelated - 4. Deferred Annuities ",0,null,0,null,0,null,0]
["Sch IVA","LT Premium",null,"Unrelated - 5i. Dis. Income: 1 Yr",0,null,0,null,0,null,0]
["Sch IVA","LT Premium",null,"Unrelated - 5ii. Dis. Income: 1-5 Yrs",0,null,0,null,0,null,0]
["Sch IVA","LT Premium",null,"Unrelated - 5iii. Dis. Income: 5+ Yrs",0,null,0,null,0,null,0]
["Sch IVA","LT Premium",null,"Unrelated - 6. Dis. Income: Active Liv",0,null,0,null,0,null,0]
["Sch IVA","LT Premium",null,"Unrelated - 7. Dis. Income: Claims in Pay",0,null,0,null,0,null,0]
["Sch IVA","LT Premium",null,"Unrelated - 8. Dis. Income: Claims in Pay Other",0,null,0,null,0,null,0]
["Sch IVA","LT Premium",null,"Unrelated - 9. Group Life",0,null,0,null,0,null,0]
["Sch IVA","LT Premium",null,"Unrelated - 10. Group Disability",0,null,0,null,0,null,0]
["Sch IVA","LT Premium",null,"Unrelated - 11. Group Health",0,null,0,null,0,null,0]
["Sch IVA","LT Premium",null,"Unrelated - 12. Stop Loss",0,null,0,null,0,null,0]
["Sch IVA","LT Premium",null,"Unrelated - 13. Riders",0,null,0,null,0,null,0]
["Sch IVA","LT Premium",null,"Unrelated - 14. Variable Annuities",0,null,0,null,0,null,0]
["Sch IVA","LT Premium",null,"Related - 1. Mortality",0,null,0,null,0,null,0]
["Sch IVA","LT Premium",null,"Related - 2. Critical Illness",0,null,0,null,0,null,0]
["Sch IVA","LT Premium",null,"Related - 3. Longevity",0,null,0,null,0,null,0]
["Sch IVA","LT Premium",null,"Related - 4. Deferred Annuities ",0,null,0,null,0,null,0]
["Sch IVA","LT Premium",null,"Related - 5i. Dis. Income: 1 Yr",0,null,0,null,0,null,0]
["Sch IVA","LT Premium",null,"Related - 5ii. Dis. Income: 1-5 Yrs",0,null,0,null,0,null,0]
["Sch IVA","LT Premium",null,"Related - 5iiii. Dis. Income: 5+ Yrs",0,null,0,null,0,null,0]
["Sch IVA","LT Premium",null,"Related - 6. Dis. Income: Active Liv",0,null,0,null,0,null,0]
["Sch IVA","LT Premium",null,"Related - 7. Dis. Income: Claims in Pay",0,null,0,null,0,null,0]
["Sch IVA","LT Premium",null,"Related - 8. Dis. Income: Claims in Pay Other",0,null,0,null,0,null,0]
["Sch IVA","LT Premium",null,"Related - 9. Group Life",0,null,0,null,0,null,0]
["Sch IVA","LT Premium",null,"Related - 10. Group Disability",0,null,0,null,0,null,0]
["Sch IVA","LT Premium",null,"Related - 11. Group Health",0,null,0,null,0,null,0]
["Sch IVA","LT Premium",null,"Related - 12. Stop Loss",0,null,0,null,0,null,0]
["Sch IVA","LT Premium",null,"Related - 13. Riders",0,null,0,null,0,null,0]
["Sch IVA","LT Premium",null,"Related - 14. Variable Annuities",0,null,0,null,0,null,0]
["Sch IVA","LT Premium",null,"Adj. Benefit -2 Yrs - 5i. Dis. Income: 1 Yr",0,null,0,null,0,null,0]
["Sch IVA","LT Premium",null,"Adj. Benefit -2 Yrs - 5ii. Dis. Income: 1-5 Yrs",0,null,0,null,0,null,0]
["Sch IVA","LT Premium",null,"Adj. Benefit -2 Yrs - 5iii. Dis. Income: 5+ Yrs",0,null,0,null,0,null,0]
["Sch IVA","LT Premium",null,"Adj. Benefit +2 Yrs - 5i. Dis. Income: 1 Yr",0,null,0,null,0,null,0]
["Sch IVA","LT Premium",null,"Adj. Benefit +2 Yrs - 5ii. Dis. Income: 1-5 Yrs",0,null,0,null,0,null,0]
["Sch IVA","LT Premium",null,"Adj. Benefit +2 Yrs - 5iii. Dis. Income: 5+ Yrs",0,null,0,null,0,null,0]
["Sch IVA","LT Premium",null,"Net - 1. Mortality",0,null,0,null,0,null,0]
["Sch IVA","LT Premium",null,"Net - 2. Critical Illness",0,null,0,null,0,null,0]
["Sch IVA","LT Premium",null,"Net - 3. Longevity",0,null,0,null,0,null,0]
["Sch IVA","LT Premium",null,"Net - 4. Deferred Annuities ",0,null,0,null,0,null,0]
["Sch IVA","LT Premium",null,"Net - 6. Dis. Income: Active Liv",0,null,0,null,0,null,0]
["Sch IVA","LT Premium",null,"Net - 7. Dis. Income: Claims in Pay",0,null,0,null,0,null,0]
["Sch IVA","LT Premium",null,"Net - 8. Dis. Income: Claims in Pay Other",0,null,0,null,0,null,0]
["Sch IVA","LT Premium",null,"Net - 9. Group Life",0,null,0,null,0,null,0]
["Sch IVA","LT Premium",null,"Net - 10. Group Disability",0,null,0,null,0,null,0]
["Sch IVA","LT Premium",null,"Net - 11. Group Health",0,null,0,null,0,null,0]
["Sch IVA","LT Premium",null,"Net - 12. Stop Loss",0,null,0,null,0,null,0]
["Sch IVA","LT Premium",null,"Net - 13. Riders",0,null,0,null,0,null,0]
["Sch IVA","LT Premium",null,"Net - 14. Variable Annuities",0,null,0,null,0,null,0]
[]
["Sch V","Risk Mgnt",null,"Asset Duration",null,null,null,null,null,null,null,null,0]
["Sch V","Risk Mgnt",null,"Liability Duration",null,null,null,null,null,null,null,null,0]
["Sch V","Risk Mgnt",null,"Weighted Average of Difference with Management Action",null,null,null,null,0]
["Sch V","Risk Mgnt",null,"Weighted Average of Difference without Management Action",null,null,null,null,0]
["Sch V","Risk Mgnt",null,"Reserves with Known Duration",null,null,null,null,0]
["Sch V","Risk Mgnt",null,"Projected Net Premium Written",null,null,null,null,0]
["Sch V","Risk Mgnt",null,"Projected % of Group ",null,null,null,null,0,null,null,null,0]
["Sch V","Risk Mgnt",null,"Projected Net Income",null,null,null,null,0]
["Sch V","Risk Mgnt",null,"a)Def Acc",null,null,null,null,0]
["Sch V","Risk Mgnt",null,"b)Def Acc",null,null,null,null,0]
["Sch V","Risk Mgnt",null,"c)Def Acc",null,null,null,null,0]
["Sch V","Risk Mgnt",null,"d)Def Acc",null,null,null,null,0]
[]
["Sch Va","Governance",null,"# of Directors",0]
["Sch Va","Governance",null,"Director Name - 1",0]
["Sch Va","Governance",null,"Director Name - 2",0]
["Sch Va","Governance",null,"Director Name - 3",0]
["Sch Va","Governance",null,"Director Name - 4",0]
["Sch Va","Governance",null,"Director Name - 5",0]
["Sch Va","Governance",null,"Director Name - 6",0]
["Sch Va","Governance",null,"Director Name - 7",0]
["Sch Va","Governance",null,"Director Name - 8",0]
["Sch Va","Governance",null,"Director Name - 9",0]
["Sch Va","Governance",null,"Director Name - 10",0]
["Sch Va","Governance",null,"Director Name - 11",0]
["Sch Va","Governance",null,"Director Name - 12",0]
["Sch Va","Governance",null,"Director Name - 13",0]
["Sch Va","Governance",null,"Director Name - 14",0]
["Sch Va","Governance",null,"Director Name - 15",0]
["Sch Va","Governance",null,"Director Name - 16",0]
["Sch Va","Governance",null,"Director Name - 17",0]
["Sch Va","Governance",null,"Director Name - 18",0]
["Sch Va","Governance",null,"Director Name - 19",0]
["Sch Va","Governance",null,"Director Name - 20",0]
["Sch Va","Governance",null,"Director Position - 1",0]
["Sch Va","Governance",null,"Director Position - 2",0]
["Sch Va","Governance",null,"Director Position - 3",0]
["Sch Va","Governance",null,"Director Position - 4",0]
["Sch Va","Governance",null,"Director Position - 5",0]
["Sch Va","Governance",null,"Director Position - 6",0]
["Sch Va","Governance",null,"Director Position - 7",0]
["Sch Va","Governance",null,"Director Position - 8",0]
["Sch Va","Governance",null,"Director Position - 9",0]
["Sch Va","Governance",null,"Director Position - 10",0]
["Sch Va","Governance",null,"Director Position - 11",0]
["Sch Va","Governance",null,"Director Position - 12",0]
["Sch Va","Governance",null,"Director Position - 13",0]
["Sch Va","Governance",null,"Director Position - 14",0]
["Sch Va","Governance",null,"Director Position - 15",0]
["Sch Va","Governance",null,"Director Position - 16",0]
["Sch Va","Governance",null,"Director Position - 17",0]
["Sch Va","Governance",null,"Director Position - 18",0]
["Sch Va","Governance",null,"Director Position - 19",0]
["Sch Va","Governance",null,"Director Position - 20",0]
["Sch Va","Governance",null,"Director Residence - 1",0]
["Sch Va","Governance",null,"Director Residence - 2",0]
["Sch Va","Governance",null,"Director Residence - 3",0]
["Sch Va","Governance",null,"Director Residence - 4",0]
["Sch Va","Governance",null,"Director Residence - 5",0]
["Sch Va","Governance",null,"Director Residence - 6",0]
["Sch Va","Governance",null,"Director Residence - 7",0]
["Sch Va","Governance",null,"Director Residence - 8",0]
["Sch Va","Governance",null,"Director Residence - 9",0]
["Sch Va","Governance",null,"Director Residence - 10",0]
["Sch Va","Governance",null,"Director Residence - 11",0]
["Sch Va","Governance",null,"Director Residence - 12",0]
["Sch Va","Governance",null,"Director Residence - 13",0]
["Sch Va","Governance",null,"Director Residence - 14",0]
["Sch Va","Governance",null,"Director Residence - 15",0]
["Sch Va","Governance",null,"Director Residence - 16",0]
["Sch Va","Governance",null,"Director Residence - 17",0]
["Sch Va","Governance",null,"Director Residence - 18",0]
["Sch Va","Governance",null,"Director Residence - 19",0]
["Sch Va","Governance",null,"Director Residence - 20",0]
["Sch Va","Governance",null,"Director Work Experience - 1",0]
["Sch Va","Governance",null,"Director Work Experience - 2",0]
["Sch Va","Governance",null,"Director Work Experience - 3",0]
["Sch Va","Governance",null,"Director Work Experience - 4",0]
["Sch Va","Governance",null,"Director Work Experience - 5",0]
["Sch Va","Governance",null,"Director Work Experience - 6",0]
["Sch Va","Governance",null,"Director Work Experience - 7",0]
["Sch Va","Governance",null,"Director Work Experience - 8",0]
["Sch Va","Governance",null,"Director Work Experience - 9",0]
["Sch Va","Governance",null,"Director Work Experience - 10",0]
["Sch Va","Governance",null,"Director Work Experience - 11",0]
["Sch Va","Governance",null,"Director Work Experience - 12",0]
["Sch Va","Governance",null,"Director Work Experience - 13",0]
["Sch Va","Governance",null,"Director Work Experience - 14",0]
["Sch Va","Governance",null,"Director Work Experience - 15",0]
["Sch Va","Governance",null,"Director Work Experience - 16",0]
["Sch Va","Governance",null,"Director Work Experience - 17",0]
["Sch Va","Governance",null,"Director Work Experience - 18",0]
["Sch Va","Governance",null,"Director Work Experience - 19",0]
["Sch Va","Governance",null,"Director Work Experience - 20",0]
["Sch Va","Governance",null,"Director Status on Board - 1","Select"]
["Sch Va","Governance",null,"Director Status on Board - 2","Select"]
["Sch Va","Governance",null,"Director Status on Board - 3","Select"]
["Sch Va","Governance",null,"Director Status on Board - 4","Select"]
["Sch Va","Governance",null,"Director Status on Board - 5","Select"]
["Sch Va","Governance",null,"Director Status on Board - 6","Select"]
["Sch Va","Governance",null,"Director Status on Board - 7","Select"]
["Sch Va","Governance",null,"Director Status on Board - 8","Select"]
["Sch Va","Governance",null,"Director Status on Board - 9","Select"]
["Sch Va","Governance",null,"Director Status on Board - 10","Select"]
["Sch Va","Governance",null,"Director Status on Board - 11","Select"]
["Sch Va","Governance",null,"Director Status on Board - 12","Select"]
["Sch Va","Governance",null,"Director Status on Board - 13","Select"]
["Sch Va","Governance",null,"Director Status on Board - 14","Select"]
["Sch Va","Governance",null,"Director Status on Board - 15","Select"]
["Sch Va","Governance",null,"Director Status on Board - 16","Select"]
["Sch Va","Governance",null,"Director Status on Board - 17","Select"]
["Sch Va","Governance",null,"Director Status on Board - 18","Select"]
["Sch Va","Governance",null,"Director Status on Board - 19","Select"]
["Sch Va","Governance",null,"Director Status on Board - 20","Select"]
["Sch Va","Governance",null,"# of Executives",0]
["Sch Va","Governance",null,"Executive Name - 1",0]
["Sch Va","Governance",null,"Executive Name - 2",0]
["Sch Va","Governance",null,"Executive Name - 3",0]
["Sch Va","Governance",null,"Executive Name - 4",0]
["Sch Va","Governance",null,"Executive Name - 5",0]
["Sch Va","Governance",null,"Executive Name - 6",0]
["Sch Va","Governance",null,"Executive Name - 7",0]
["Sch Va","Governance",null,"Executive Name - 8",0]
["Sch Va","Governance",null,"Executive Name - 9",0]
["Sch Va","Governance",null,"Executive Name - 10",0]
["Sch Va","Governance",null,"Executive Name - 11",0]
["Sch Va","Governance",null,"Executive Name - 12",0]
["Sch Va","Governance",null,"Executive Name - 13",0]
["Sch Va","Governance",null,"Executive Name - 14",0]
["Sch Va","Governance",null,"Executive Name - 15",0]
["Sch Va","Governance",null,"Executive Name - 16",0]
["Sch Va","Governance",null,"Executive Name - 17",0]
["Sch Va","Governance",null,"Executive Name - 18",0]
["Sch Va","Governance",null,"Executive Name - 19",0]
["Sch Va","Governance",null,"Executive Name - 20",0]
["Sch Va","Governance",null,"Executive Position - 1",0]
["Sch Va","Governance",null,"Executive Position - 2",0]
["Sch Va","Governance",null,"Executive Position - 3",0]
["Sch Va","Governance",null,"Executive Position - 4",0]
["Sch Va","Governance",null,"Executive Position - 5",0]
["Sch Va","Governance",null,"Executive Position - 6",0]
["Sch Va","Governance",null,"Executive Position - 7",0]
["Sch Va","Governance",null,"Executive Position - 8",0]
["Sch Va","Governance",null,"Executive Position - 9",0]
["Sch Va","Governance",null,"Executive Position - 10",0]
["Sch Va","Governance",null,"Executive Position - 11",0]
["Sch Va","Governance",null,"Executive Position - 12",0]
["Sch Va","Governance",null,"Executive Position - 13",0]
["Sch Va","Governance",null,"Executive Position - 14",0]
["Sch Va","Governance",null,"Executive Position - 15",0]
["Sch Va","Governance",null,"Executive Position - 16",0]
["Sch Va","Governance",null,"Executive Position - 17",0]
["Sch Va","Governance",null,"Executive Position - 18",0]
["Sch Va","Governance",null,"Executive Position - 19",0]
["Sch Va","Governance",null,"Executive Position - 20",0]
["Sch Va","Governance",null,"Executive Residence - 1",0]
["Sch Va","Governance",null,"Executive Residence - 2",0]
["Sch Va","Governance",null,"Executive Residence - 3",0]
["Sch Va","Governance",null,"Executive Residence - 4",0]
["Sch Va","Governance",null,"Executive Residence - 5",0]
["Sch Va","Governance",null,"Executive Residence - 6",0]
["Sch Va","Governance",null,"Executive Residence - 7",0]
["Sch Va","Governance",null,"Executive Residence - 8",0]
["Sch Va","Governance",null,"Executive Residence - 9",0]
["Sch Va","Governance",null,"Executive Residence - 10",0]
["Sch Va","Governance",null,"Executive Residence - 11",0]
["Sch Va","Governance",null,"Executive Residence - 12",0]
["Sch Va","Governance",null,"Executive Residence - 13",0]
["Sch Va","Governance",null,"Executive Residence - 14",0]
["Sch Va","Governance",null,"Executive Residence - 15",0]
["Sch Va","Governance",null,"Executive Residence - 16",0]
["Sch Va","Governance",null,"Executive Residence - 17",0]
["Sch Va","Governance",null,"Executive Residence - 18",0]
["Sch Va","Governance",null,"Executive Residence - 19",0]
["Sch Va","Governance",null,"Executive Residence - 20",0]
["Sch Va","Governance",null,"Executive Work Experience - 1",0]
["Sch Va","Governance",null,"Executive Work Experience - 2",0]
["Sch Va","Governance",null,"Executive Work Experience - 3",0]
["Sch Va","Governance",null,"Executive Work Experience - 4",0]
["Sch Va","Governance",null,"Executive Work Experience - 5",0]
["Sch Va","Governance",null,"Executive Work Experience - 6",0]
["Sch Va","Governance",null,"Executive Work Experience - 7",0]
["Sch Va","Governance",null,"Executive Work Experience - 8",0]
["Sch Va","Governance",null,"Executive Work Experience - 9",0]
["Sch Va","Governance",null,"Executive Work Experience - 10",0]
["Sch Va","Governance",null,"Executive Work Experience - 11",0]
["Sch Va","Governance",null,"Executive Work Experience - 12",0]
["Sch Va","Governance",null,"Executive Work Experience - 13",0]
["Sch Va","Governance",null,"Executive Work Experience - 14",0]
["Sch Va","Governance",null,"Executive Work Experience - 15",0]
["Sch Va","Governance",null,"Executive Work Experience - 16",0]
["Sch Va","Governance",null,"Executive Work Experience - 17",0]
["Sch Va","Governance",null,"Executive Work Experience - 18",0]
["Sch Va","Governance",null,"Executive Work Experience - 19",0]
["Sch Va","Governance",null,"Executive Work Experience - 20",0]
["Sch Va","Governance",null,"Executive Employee Arrangement - 1","Select"]
["Sch Va","Governance",null,"Executive Employee Arrangement - 2","Select"]
["Sch Va","Governance",null,"Executive Employee Arrangement - 3","Select"]
["Sch Va","Governance",null,"Executive Employee Arrangement - 4","Select"]
["Sch Va","Governance",null,"Executive Employee Arrangement - 5","Select"]
["Sch Va","Governance",null,"Executive Employee Arrangement - 6","Select"]
["Sch Va","Governance",null,"Executive Employee Arrangement - 7","Select"]
["Sch Va","Governance",null,"Executive Employee Arrangement - 8","Select"]
["Sch Va","Governance",null,"Executive Employee Arrangement - 9","Select"]
["Sch Va","Governance",null,"Executive Employee Arrangement - 10","Select"]
["Sch Va","Governance",null,"Executive Employee Arrangement - 11","Select"]
["Sch Va","Governance",null,"Executive Employee Arrangement - 12","Select"]
["Sch Va","Governance",null,"Executive Employee Arrangement - 13","Select"]
["Sch Va","Governance",null,"Executive Employee Arrangement - 14","Select"]
["Sch Va","Governance",null,"Executive Employee Arrangement - 15","Select"]
["Sch Va","Governance",null,"Executive Employee Arrangement - 16","Select"]
["Sch Va","Governance",null,"Executive Employee Arrangement - 17","Select"]
["Sch Va","Governance",null,"Executive Employee Arrangement - 18","Select"]
["Sch Va","Governance",null,"Executive Employee Arrangement - 19","Select"]
["Sch Va","Governance",null,"Executive Employee Arrangement - 20","Select"]
["Sch Va","Governance",null,"Executive Responsibilities - 1","Select"]
["Sch Va","Governance",null,"Executive Responsibilities - 2","Select"]
["Sch Va","Governance",null,"Executive Responsibilities - 3","Select"]
["Sch Va","Governance",null,"Executive Responsibilities - 4","Select"]
["Sch Va","Governance",null,"Executive Responsibilities - 5","Select"]
["Sch Va","Governance",null,"Executive Responsibilities - 6","Select"]
["Sch Va","Governance",null,"Executive Responsibilities - 7","Select"]
["Sch Va","Governance",null,"Executive Responsibilities - 8","Select"]
["Sch Va","Governance",null,"Executive Responsibilities - 9","Select"]
["Sch Va","Governance",null,"Executive Responsibilities - 10","Select"]
["Sch Va","Governance",null,"Executive Responsibilities - 11","Select"]
["Sch Va","Governance",null,"Executive Responsibilities - 12","Select"]
["Sch Va","Governance",null,"Executive Responsibilities - 13","Select"]
["Sch Va","Governance",null,"Executive Responsibilities - 14","Select"]
["Sch Va","Governance",null,"Executive Responsibilities - 15","Select"]
["Sch Va","Governance",null,"Executive Responsibilities - 16","Select"]
["Sch Va","Governance",null,"Executive Responsibilities - 17","Select"]
["Sch Va","Governance",null,"Executive Responsibilities - 18","Select"]
["Sch Va","Governance",null,"Executive Responsibilities - 19","Select"]
["Sch Va","Governance",null,"Executive Responsibilities - 20","Select"]
["Sch Va","Governance",null,"Tax Residency outside of Bermuda","Select Yes/No"]
["Sch Va","Governance",null,"If Yes, Tax Residency Jurisdiction","Select"]
["Sch Va","Governance",null,"BOD Activity - Strategic Direction","Select Yes/No"]
["Sch Va","Governance",null,"BOD Activity - Risk Appetite","Select Yes/No"]
["Sch Va","Governance",null,"BOD Activity - LOB Decisions","Select Yes/No"]
["Sch Va","Governance",null,"BOD Activity - Solvency Req.","Select Yes/No"]
["Sch Va","Governance",null,"BOD Location - Strategic Direction",0]
["Sch Va","Governance",null,"BOD Location - Risk Appetite",0]
["Sch Va","Governance",null,"BOD Location - LOB Decisions",0]
["Sch Va","Governance",null,"BOD Location - Solvency Req.",0]
["Sch Va","Governance",null,"U/W - Operation in Bermuda","Select Yes/No"]
["Sch Va","Governance",null,"Risk Mgmt. - Operation in Bermuda","Select Yes/No"]
["Sch Va","Governance",null,"Inv. Strategy - Operation in Bermuda","Select Yes/No"]
["Sch Va","Governance",null,"Actuarial - Operation in Bermuda","Select Yes/No"]
["Sch Va","Governance",null,"Compliance - Operation in Bermuda","Select Yes/No"]
["Sch Va","Governance",null,"Int. Audit - Operation in Bermuda","Select Yes/No"]
["Sch Va","Governance",null,"U/W - Operation Location",0]
["Sch Va","Governance",null,"Risk Mgmt. - Operation Location",0]
["Sch Va","Governance",null,"Inv. Strategy - Operation Location",0]
["Sch Va","Governance",null,"Actuarial - Operation Location",0]
["Sch Va","Governance",null,"Compliance - Operation Location",0]
["Sch Va","Governance",null,"Int. Audit - Operation Location",0]
["Sch Va","Governance",null,"U/W - Outsourced","Select Yes/No"]
["Sch Va","Governance",null,"Risk Mgmt. - Outsourced","Select Yes/No"]
["Sch Va","Governance",null,"Inv. Strategy - Outsourced","Select Yes/No"]
["Sch Va","Governance",null,"Actuarial - Outsourced","Select Yes/No"]
["Sch Va","Governance",null,"Compliance - Outsourced","Select Yes/No"]
["Sch Va","Governance",null,"Int. Audit - Outsourced","Select Yes/No"]
["Sch Va","Governance",null,"U/W - Provider Type","Select"]
["Sch Va","Governance",null,"Risk Mgmt. - Provider Type","Select"]
["Sch Va","Governance",null,"Inv. Strategy - Provider Type","Select"]
["Sch Va","Governance",null,"Actuarial - Provider Type","Select"]
["Sch Va","Governance",null,"Compliance - Provider Type","Select"]
["Sch Va","Governance",null,"Int. Audit - Provider Type","Select"]
["Sch Va","Governance",null,"U/W - Name of Provider",0]
["Sch Va","Governance",null,"Risk Mgmt. - Name of Provider",0]
["Sch Va","Governance",null,"Inv. Strategy - Name of Provider",0]
["Sch Va","Governance",null,"Actuarial - Name of Provider",0]
["Sch Va","Governance",null,"Compliance - Name of Provider",0]
["Sch Va","Governance",null,"Int. Audit - Name of Provider",0]
["Sch Va","Governance",null,"Services Outsourced - Principal Rep.","Select Yes/No"]
["Sch Va","Governance",null,"Services Outsourced - Director/Board Member","Select Yes/No"]
["Sch Va","Governance",null,"Services Outsourced - Senior Officer","Select Yes/No"]
["Sch Va","Governance",null,"Services Outsourced - Accounting","Select Yes/No"]
["Sch Va","Governance",null,"Services Outsourced - Prep. SFR/Prudential","Select Yes/No"]
["Sch Va","Governance",null,"Services Outsourced - Underwriting","Select Yes/No"]
["Sch Va","Governance",null,"Services Outsourced - Claims Handling","Select Yes/No"]
["Sch Va","Governance",null,"Services Outsourced - Risk Mgmt.","Select Yes/No"]
["Sch Va","Governance",null,"Services Outsourced - Investment","Select Yes/No"]
["Sch Va","Governance",null,"Services Outsourced - Treasury","Select Yes/No"]
["Sch Va","Governance",null,"Services Outsourced - Actuarial","Select Yes/No"]
["Sch Va","Governance",null,"Services Outsourced - Internal Audit","Select Yes/No"]
["Sch Va","Governance",null,"Services Outsourced - Compliance","Select Yes/No"]
["Sch Va","Governance",null,"Services Outsourced - AML/ATF/Sanctions","Select Yes/No"]
["Sch Va","Governance",null,"Services Outsourced - Money Laundering Officer","Select Yes/No"]
["Sch Va","Governance",null,"Services Outsourced - Other",0]
["Sch Va","Governance",null,"Services in BDA - Principal Rep.","Select Yes/No"]
["Sch Va","Governance",null,"Services in BDA - Director/Board Member","Select Yes/No"]
["Sch Va","Governance",null,"Services in BDA - Senior Officer","Select Yes/No"]
["Sch Va","Governance",null,"Services in BDA - Accounting","Select Yes/No"]
["Sch Va","Governance",null,"Services in BDA - Prep. SFR/Prudential","Select Yes/No"]
["Sch Va","Governance",null,"Services in BDA - Underwriting","Select Yes/No"]
["Sch Va","Governance",null,"Services in BDA - Claims Handling","Select Yes/No"]
["Sch Va","Governance",null,"Services in BDA - Risk Mgmt.","Select Yes/No"]
["Sch Va","Governance",null,"Services in BDA - Investment","Select Yes/No"]
["Sch Va","Governance",null,"Services in BDA - Treasury","Select Yes/No"]
["Sch Va","Governance",null,"Services in BDA - Actuarial","Select Yes/No"]
["Sch Va","Governance",null,"Services in BDA - Internal Audit","Select Yes/No"]
["Sch Va","Governance",null,"Services in BDA - Compliance","Select Yes/No"]
["Sch Va","Governance",null,"Services in BDA - AML/ATF/Sanctions","Select Yes/No"]
["Sch Va","Governance",null,"Services in BDA - Money Laundering Officer","Select Yes/No"]
["Sch Va","Governance",null,"Employees in BDA",0]
["Sch Va","Governance",null,"Number of Employees in BDA - Senior Executive",0]
["Sch Va","Governance",null,"Number of Employees in BDA - Senior Manager",0]
["Sch Va","Governance",null,"Number of Employees in BDA - Technical Officer",0]
["Sch Va","Governance",null,"Number of Employees in BDA - Administrative",0]
["Sch Va","Governance",null,"7a Group BOD-Strat. Decision- Location",null,null,null,null,0]
["Sch Va","Governance",null,"7b Group BOD-Risk Appet.- Location",null,null,null,null,0]
["Sch Va","Governance",null,"7c Group BOD-Corp. Struct.- Location",null,null,null,null,0]
["Sch Va","Governance",null,"7d Group BOD-LOB, Prod. & Mkt.- Location",null,null,null,null,0]
["Sch Va","Governance",null,"7e Group BOD-Assess Solvency- Location",null,null,null,null,0]
["Sch Va","Governance",null,"8. Group BOD - Reside",null,null,null,null,0]
["Sch Va","Governance",null,"9. Group Control Function - Reside",null,null,null,null,0]
["Sch Va","Governance",null,"10a Group's Total Assets",null,null,null,null,0]
["Sch Va","Governance",null,"10b Group's Total Reserves",null,null,null,null,0]
["Sch Va","Governance",null,"10c Group's Total Capital & Surplus",null,null,null,null,0]
["Sch Va","Governance",null,"Name of Insurer - 1",null,null,null,null,0]
["Sch Va","Governance",null,"Name of Insurer - 2",null,null,null,null,0]
["Sch Va","Governance",null,"Name of Insurer - 3",null,null,null,null,0]
["Sch Va","Governance",null,"Name of Insurer - 4",null,null,null,null,0]
["Sch Va","Governance",null,"Name of Insurer - 5",null,null,null,null,0]
["Sch Va","Governance",null,"Name of Insurer - 6",null,null,null,null,0]
["Sch Va","Governance",null,"Name of Insurer - 7",null,null,null,null,0]
["Sch Va","Governance",null,"Name of Insurer - 8",null,null,null,null,0]
["Sch Va","Governance",null,"Name of Insurer - 9",null,null,null,null,0]
["Sch Va","Governance",null,"Insurer Location - 1",null,null,null,null,0]
["Sch Va","Governance",null,"Insurer Location - 2",null,null,null,null,0]
["Sch Va","Governance",null,"Insurer Location - 3",null,null,null,null,0]
["Sch Va","Governance",null,"Insurer Location - 4",null,null,null,null,0]
["Sch Va","Governance",null,"Insurer Location - 5",null,null,null,null,0]
["Sch Va","Governance",null,"Insurer Location - 6",null,null,null,null,0]
["Sch Va","Governance",null,"Insurer Location - 7",null,null,null,null,0]
["Sch Va","Governance",null,"Insurer Location - 8",null,null,null,null,0]
["Sch Va","Governance",null,"Insurer Location - 9",null,null,null,null,0]
["Sch Va","Governance",null,"Insurer Asset - 1",null,null,null,null,0]
["Sch Va","Governance",null,"Insurer Asset - 2",null,null,null,null,0]
["Sch Va","Governance",null,"Insurer Asset - 3",null,null,null,null,0]
["Sch Va","Governance",null,"Insurer Asset - 4",null,null,null,null,0]
["Sch Va","Governance",null,"Insurer Asset - 5",null,null,null,null,0]
["Sch Va","Governance",null,"Insurer Asset - 6",null,null,null,null,0]
["Sch Va","Governance",null,"Insurer Asset - 7",null,null,null,null,0]
["Sch Va","Governance",null,"Insurer Asset - 8",null,null,null,null,0]
["Sch Va","Governance",null,"Insurer Asset - 9",null,null,null,null,0]
["Sch Va","Governance",null,"Insurer Reserve - 1",null,null,null,null,0]
["Sch Va","Governance",null,"Insurer Reserve - 2",null,null,null,null,0]
["Sch Va","Governance",null,"Insurer Reserve - 3",null,null,null,null,0]
["Sch Va","Governance",null,"Insurer Reserve - 4",null,null,null,null,0]
["Sch Va","Governance",null,"Insurer Reserve - 5",null,null,null,null,0]
["Sch Va","Governance",null,"Insurer Reserve - 6",null,null,null,null,0]
["Sch Va","Governance",null,"Insurer Reserve - 7",null,null,null,null,0]
["Sch Va","Governance",null,"Insurer Reserve - 8",null,null,null,null,0]
["Sch Va","Governance",null,"Insurer Reserve - 9",null,null,null,null,0]
["Sch Va","Governance",null,"Insurer Capital & Surplus - 1",null,null,null,null,0]
["Sch Va","Governance",null,"Insurer Capital & Surplus - 2",null,null,null,null,0]
["Sch Va","Governance",null,"Insurer Capital & Surplus - 3",null,null,null,null,0]
["Sch Va","Governance",null,"Insurer Capital & Surplus - 4",null,null,null,null,0]
["Sch Va","Governance",null,"Insurer Capital & Surplus - 5",null,null,null,null,0]
["Sch Va","Governance",null,"Insurer Capital & Surplus - 6",null,null,null,null,0]
["Sch Va","Governance",null,"Insurer Capital & Surplus - 7",null,null,null,null,0]
["Sch Va","Governance",null,"Insurer Capital & Surplus - 8",null,null,null,null,0]
["Sch Va","Governance",null,"Insurer Capital & Surplus - 9",null,null,null,null,0]
["Sch Va","Governance",null,"12 Subsequent Events",0]
[]
["Sch Vc","Group Structure",null,"# of Largest Counterparty Exposure",0]
["Sch Vc","Group Structure",null,"Counterparty Name - 1",0]
["Sch Vc","Group Structure",null,"Counterparty Name - 2",0]
["Sch Vc","Group Structure",null,"Counterparty Name - 3",0]
["Sch Vc","Group Structure",null,"Counterparty Name - 4",0]
["Sch Vc","Group Structure",null,"Counterparty Name - 5",0]
["Sch Vc","Group Structure",null,"Counterparty Name - 6",0]
["Sch Vc","Group Structure",null,"Counterparty Name - 7",0]
["Sch Vc","Group Structure",null,"Counterparty Name - 8",0]
["Sch Vc","Group Structure",null,"Counterparty Name - 9",0]
["Sch Vc","Group Structure",null,"Counterparty Name - 10",0]
["Sch Vc","Group Structure",null,"Counterparty Name - 11",0]
["Sch Vc","Group Structure",null,"Counterparty Name - 12",0]
["Sch Vc","Group Structure",null,"Counterparty Name - 13",0]
["Sch Vc","Group Structure",null,"Counterparty Name - 14",0]
["Sch Vc","Group Structure",null,"Counterparty Name - 15",0]
["Sch Vc","Group Structure",null,"Counterparty Name - 16",0]
["Sch Vc","Group Structure",null,"Counterparty Name - 17",0]
["Sch Vc","Group Structure",null,"Counterparty Name - 18",0]
["Sch Vc","Group Structure",null,"Counterparty Name - 19",0]
["Sch Vc","Group Structure",null,"Counterparty Name - 20",0]
["Sch Vc","Group Structure",null,"Counterparty Name - 21",0]
["Sch Vc","Group Structure",null,"Counterparty Name - 22",0]
["Sch Vc","Group Structure",null,"Counterparty Name - 23",0]
["Sch Vc","Group Structure",null,"Counterparty Name - 24",0]
["Sch Vc","Group Structure",null,"Counterparty Name - 25",0]
["Sch Vc","Group Structure",null,"Counterparty Location - 1",0]
["Sch Vc","Group Structure",null,"Counterparty Location - 2",0]
["Sch Vc","Group Structure",null,"Counterparty Location - 3",0]
["Sch Vc","Group Structure",null,"Counterparty Location - 4",0]
["Sch Vc","Group Structure",null,"Counterparty Location - 5",0]
["Sch Vc","Group Structure",null,"Counterparty Location - 6",0]
["Sch Vc","Group Structure",null,"Counterparty Location - 7",0]
["Sch Vc","Group Structure",null,"Counterparty Location - 8",0]
["Sch Vc","Group Structure",null,"Counterparty Location - 9",0]
["Sch Vc","Group Structure",null,"Counterparty Location - 10",0]
["Sch Vc","Group Structure",null,"Counterparty Location - 11",0]
["Sch Vc","Group Structure",null,"Counterparty Location - 12",0]
["Sch Vc","Group Structure",null,"Counterparty Location - 13",0]
["Sch Vc","Group Structure",null,"Counterparty Location - 14",0]
["Sch Vc","Group Structure",null,"Counterparty Location - 15",0]
["Sch Vc","Group Structure",null,"Counterparty Location - 16",0]
["Sch Vc","Group Structure",null,"Counterparty Location - 17",0]
["Sch Vc","Group Structure",null,"Counterparty Location - 18",0]
["Sch Vc","Group Structure",null,"Counterparty Location - 19",0]
["Sch Vc","Group Structure",null,"Counterparty Location - 20",0]
["Sch Vc","Group Structure",null,"Counterparty Location - 21",0]
["Sch Vc","Group Structure",null,"Counterparty Location - 22",0]
["Sch Vc","Group Structure",null,"Counterparty Location - 23",0]
["Sch Vc","Group Structure",null,"Counterparty Location - 24",0]
["Sch Vc","Group Structure",null,"Counterparty Location - 25",0]
["Sch Vc","Group Structure",null,"Exposure Face Value - 1",0]
["Sch Vc","Group Structure",null,"Exposure Face Value - 2",0]
["Sch Vc","Group Structure",null,"Exposure Face Value - 3",0]
["Sch Vc","Group Structure",null,"Exposure Face Value - 4",0]
["Sch Vc","Group Structure",null,"Exposure Face Value - 5",0]
["Sch Vc","Group Structure",null,"Exposure Face Value - 6",0]
["Sch Vc","Group Structure",null,"Exposure Face Value - 7",0]
["Sch Vc","Group Structure",null,"Exposure Face Value - 8",0]
["Sch Vc","Group Structure",null,"Exposure Face Value - 9",0]
["Sch Vc","Group Structure",null,"Exposure Face Value - 10",0]
["Sch Vc","Group Structure",null,"Exposure Face Value - 11",0]
["Sch Vc","Group Structure",null,"Exposure Face Value - 12",0]
["Sch Vc","Group Structure",null,"Exposure Face Value - 13",0]
["Sch Vc","Group Structure",null,"Exposure Face Value - 14",0]
["Sch Vc","Group Structure",null,"Exposure Face Value - 15",0]
["Sch Vc","Group Structure",null,"Exposure Face Value - 16",0]
["Sch Vc","Group Structure",null,"Exposure Face Value - 17",0]
["Sch Vc","Group Structure",null,"Exposure Face Value - 18",0]
["Sch Vc","Group Structure",null,"Exposure Face Value - 19",0]
["Sch Vc","Group Structure",null,"Exposure Face Value - 20",0]
["Sch Vc","Group Structure",null,"Exposure Face Value - 21",0]
["Sch Vc","Group Structure",null,"Exposure Face Value - 22",0]
["Sch Vc","Group Structure",null,"Exposure Face Value - 23",0]
["Sch Vc","Group Structure",null,"Exposure Face Value - 24",0]
["Sch Vc","Group Structure",null,"Exposure Face Value - 25",0]
["Sch Vc","Group Structure",null,"Exposure Market Value - 1",0]
["Sch Vc","Group Structure",null,"Exposure Market Value - 2",0]
["Sch Vc","Group Structure",null,"Exposure Market Value - 3",0]
["Sch Vc","Group Structure",null,"Exposure Market Value - 4",0]
["Sch Vc","Group Structure",null,"Exposure Market Value - 5",0]
["Sch Vc","Group Structure",null,"Exposure Market Value - 6",0]
["Sch Vc","Group Structure",null,"Exposure Market Value - 7",0]
["Sch Vc","Group Structure",null,"Exposure Market Value - 8",0]
["Sch Vc","Group Structure",null,"Exposure Market Value - 9",0]
["Sch Vc","Group Structure",null,"Exposure Market Value - 10",0]
["Sch Vc","Group Structure",null,"Exposure Market Value - 11",0]
["Sch Vc","Group Structure",null,"Exposure Market Value - 12",0]
["Sch Vc","Group Structure",null,"Exposure Market Value - 13",0]
["Sch Vc","Group Structure",null,"Exposure Market Value - 14",0]
["Sch Vc","Group Structure",null,"Exposure Market Value - 15",0]
["Sch Vc","Group Structure",null,"Exposure Market Value - 16",0]
["Sch Vc","Group Structure",null,"Exposure Market Value - 17",0]
["Sch Vc","Group Structure",null,"Exposure Market Value - 18",0]
["Sch Vc","Group Structure",null,"Exposure Market Value - 19",0]
["Sch Vc","Group Structure",null,"Exposure Market Value - 20",0]
["Sch Vc","Group Structure",null,"Exposure Market Value - 21",0]
["Sch Vc","Group Structure",null,"Exposure Market Value - 22",0]
["Sch Vc","Group Structure",null,"Exposure Market Value - 23",0]
["Sch Vc","Group Structure",null,"Exposure Market Value - 24",0]
["Sch Vc","Group Structure",null,"Exposure Market Value - 25",0]
["Sch Vc","Group Structure",null,"Transaction Type - 1",0]
["Sch Vc","Group Structure",null,"Transaction Type - 2",0]
["Sch Vc","Group Structure",null,"Transaction Type - 3",0]
["Sch Vc","Group Structure",null,"Transaction Type - 4",0]
["Sch Vc","Group Structure",null,"Transaction Type - 5",0]
["Sch Vc","Group Structure",null,"Transaction Type - 6",0]
["Sch Vc","Group Structure",null,"Transaction Type - 7",0]
["Sch Vc","Group Structure",null,"Transaction Type - 8",0]
["Sch Vc","Group Structure",null,"Transaction Type - 9",0]
["Sch Vc","Group Structure",null,"Transaction Type - 10",0]
["Sch Vc","Group Structure",null,"Transaction Type - 11",0]
["Sch Vc","Group Structure",null,"Transaction Type - 12",0]
["Sch Vc","Group Structure",null,"Transaction Type - 13",0]
["Sch Vc","Group Structure",null,"Transaction Type - 14",0]
["Sch Vc","Group Structure",null,"Transaction Type - 15",0]
["Sch Vc","Group Structure",null,"Transaction Type - 16",0]
["Sch Vc","Group Structure",null,"Transaction Type - 17",0]
["Sch Vc","Group Structure",null,"Transaction Type - 18",0]
["Sch Vc","Group Structure",null,"Transaction Type - 19",0]
["Sch Vc","Group Structure",null,"Transaction Type - 20",0]
["Sch Vc","Group Structure",null,"Transaction Type - 21",0]
["Sch Vc","Group Structure",null,"Transaction Type - 22",0]
["Sch Vc","Group Structure",null,"Transaction Type - 23",0]
["Sch Vc","Group Structure",null,"Transaction Type - 24",0]
["Sch Vc","Group Structure",null,"Transaction Type - 25",0]
["Sch Vc","Group Structure",null,"# of Material Intra-Group Transactions",0]
["Sch Vc","Group Structure",null,"Issuer/Borrower Name - 1",0]
["Sch Vc","Group Structure",null,"Issuer/Borrower Name - 2",0]
["Sch Vc","Group Structure",null,"Issuer/Borrower Name - 3",0]
["Sch Vc","Group Structure",null,"Issuer/Borrower Name - 4",0]
["Sch Vc","Group Structure",null,"Issuer/Borrower Name - 5",0]
["Sch Vc","Group Structure",null,"Issuer/Borrower Name - 6",0]
["Sch Vc","Group Structure",null,"Issuer/Borrower Name - 7",0]
["Sch Vc","Group Structure",null,"Issuer/Borrower Name - 8",0]
["Sch Vc","Group Structure",null,"Issuer/Borrower Name - 9",0]
["Sch Vc","Group Structure",null,"Issuer/Borrower Name - 10",0]
["Sch Vc","Group Structure",null,"Issuer/Borrower Name - 11",0]
["Sch Vc","Group Structure",null,"Issuer/Borrower Name - 12",0]
["Sch Vc","Group Structure",null,"Issuer/Borrower Name - 13",0]
["Sch Vc","Group Structure",null,"Issuer/Borrower Name - 14",0]
["Sch Vc","Group Structure",null,"Issuer/Borrower Name - 15",0]
["Sch Vc","Group Structure",null,"Issuer/Borrower Name - 16",0]
["Sch Vc","Group Structure",null,"Issuer/Borrower Name - 17",0]
["Sch Vc","Group Structure",null,"Issuer/Borrower Name - 18",0]
["Sch Vc","Group Structure",null,"Issuer/Borrower Name - 19",0]
["Sch Vc","Group Structure",null,"Issuer/Borrower Name - 20",0]
["Sch Vc","Group Structure",null,"Issuer/Borrower Name - 21",0]
["Sch Vc","Group Structure",null,"Issuer/Borrower Name - 22",0]
["Sch Vc","Group Structure",null,"Issuer/Borrower Name - 23",0]
["Sch Vc","Group Structure",null,"Issuer/Borrower Name - 24",0]
["Sch Vc","Group Structure",null,"Issuer/Borrower Name - 25",0]
["Sch Vc","Group Structure",null,"Issuer Jurisdiction - 1",0]
["Sch Vc","Group Structure",null,"Issuer Jurisdiction - 2",0]
["Sch Vc","Group Structure",null,"Issuer Jurisdiction - 3",0]
["Sch Vc","Group Structure",null,"Issuer Jurisdiction - 4",0]
["Sch Vc","Group Structure",null,"Issuer Jurisdiction - 5",0]
["Sch Vc","Group Structure",null,"Issuer Jurisdiction - 6",0]
["Sch Vc","Group Structure",null,"Issuer Jurisdiction - 7",0]
["Sch Vc","Group Structure",null,"Issuer Jurisdiction - 8",0]
["Sch Vc","Group Structure",null,"Issuer Jurisdiction - 9",0]
["Sch Vc","Group Structure",null,"Issuer Jurisdiction - 10",0]
["Sch Vc","Group Structure",null,"Issuer Jurisdiction - 11",0]
["Sch Vc","Group Structure",null,"Issuer Jurisdiction - 12",0]
["Sch Vc","Group Structure",null,"Issuer Jurisdiction - 13",0]
["Sch Vc","Group Structure",null,"Issuer Jurisdiction - 14",0]
["Sch Vc","Group Structure",null,"Issuer Jurisdiction - 15",0]
["Sch Vc","Group Structure",null,"Issuer Jurisdiction - 16",0]
["Sch Vc","Group Structure",null,"Issuer Jurisdiction - 17",0]
["Sch Vc","Group Structure",null,"Issuer Jurisdiction - 18",0]
["Sch Vc","Group Structure",null,"Issuer Jurisdiction - 19",0]
["Sch Vc","Group Structure",null,"Issuer Jurisdiction - 20",0]
["Sch Vc","Group Structure",null,"Issuer Jurisdiction - 21",0]
["Sch Vc","Group Structure",null,"Issuer Jurisdiction - 22",0]
["Sch Vc","Group Structure",null,"Issuer Jurisdiction - 23",0]
["Sch Vc","Group Structure",null,"Issuer Jurisdiction - 24",0]
["Sch Vc","Group Structure",null,"Issuer Jurisdiction - 25",0]
["Sch Vc","Group Structure",null,"Investor/Lendor Name - 1",0]
["Sch Vc","Group Structure",null,"Investor/Lendor Name - 2",0]
["Sch Vc","Group Structure",null,"Investor/Lendor Name - 3",0]
["Sch Vc","Group Structure",null,"Investor/Lendor Name - 4",0]
["Sch Vc","Group Structure",null,"Investor/Lendor Name - 5",0]
["Sch Vc","Group Structure",null,"Investor/Lendor Name - 6",0]
["Sch Vc","Group Structure",null,"Investor/Lendor Name - 7",0]
["Sch Vc","Group Structure",null,"Investor/Lendor Name - 8",0]
["Sch Vc","Group Structure",null,"Investor/Lendor Name - 9",0]
["Sch Vc","Group Structure",null,"Investor/Lendor Name - 10",0]
["Sch Vc","Group Structure",null,"Investor/Lendor Name - 11",0]
["Sch Vc","Group Structure",null,"Investor/Lendor Name - 12",0]
["Sch Vc","Group Structure",null,"Investor/Lendor Name - 13",0]
["Sch Vc","Group Structure",null,"Investor/Lendor Name - 14",0]
["Sch Vc","Group Structure",null,"Investor/Lendor Name - 15",0]
["Sch Vc","Group Structure",null,"Investor/Lendor Name - 16",0]
["Sch Vc","Group Structure",null,"Investor/Lendor Name - 17",0]
["Sch Vc","Group Structure",null,"Investor/Lendor Name - 18",0]
["Sch Vc","Group Structure",null,"Investor/Lendor Name - 19",0]
["Sch Vc","Group Structure",null,"Investor/Lendor Name - 20",0]
["Sch Vc","Group Structure",null,"Investor/Lendor Name - 21",0]
["Sch Vc","Group Structure",null,"Investor/Lendor Name - 22",0]
["Sch Vc","Group Structure",null,"Investor/Lendor Name - 23",0]
["Sch Vc","Group Structure",null,"Investor/Lendor Name - 24",0]
["Sch Vc","Group Structure",null,"Investor/Lendor Name - 25",0]
["Sch Vc","Group Structure",null,"Investor Jurisdiction - 1",0]
["Sch Vc","Group Structure",null,"Investor Jurisdiction - 2",0]
["Sch Vc","Group Structure",null,"Investor Jurisdiction - 3",0]
["Sch Vc","Group Structure",null,"Investor Jurisdiction - 4",0]
["Sch Vc","Group Structure",null,"Investor Jurisdiction - 19",0]
["Sch Vc","Group Structure",null,"Investor Jurisdiction - 25",0]
["Sch Vc","Group Structure",null,"Transaction Details - 19",0]
["Sch Vc","Group Structure",null,"Exposure Value - 19",0]
["Sch Vc","Group Structure",null,"Assuming Party Name - 12",0]
["Sch Vc","Group Structure",null,"Assuming Party Jurisdiction - 8",0]
["Sch Vc","Group Structure",null,"Assuming Party Rating - 10",0]
["Sch Vc","Group Structure",null,"Ceding Party Name - 1",0]
["Sch Vc","Group Structure",null,"Ceding Party Name - 13",0]
["Sch Vc","Group Structure",null,"Ceding Party Jurisdiction - 9",0]
["Sch Vc","Group Structure",null,"Ceding Party Rating - 5",0]
["Sch Vc","Group Structure",null,"Gross Exposure Limit - 7",0]
["Sch Vc","Group Structure",null,"Net Exposure Limit - 3",0]
["Sch Vc","Group Structure",null,"Net Exposure Limit - 22",0]
["Sch Vc","Group Structure",null,"Net Premium Written - 1",0]
["Sch Vc","Group Structure",null,"Q4 Proportion of Internal R/I",0]
["Sch Ve","Scenario Tests",null,"R5 - Greece",null,null,null,null,null,null,null,null,0]
["Sch Ve","Scenario Tests",null,"R9 - Pre-Stress - Sovereigns rated AA- and above",null,null,null,null,null,null,null,null,0]
["Sch Ve","Scenario Tests",null,"R9 - BEL Medium - Low Retail ",null,null,null,null,null,null,null,null,0]
["Sch Ve","Scenario Tests",null,"R9 - BEL Medium - Medium Retail ",null,null,null,null,null,null,null,null,0]
["Sch Ve","Scenario Tests",null,"R9 - Account Value High - Medium Retail ",null,null,null,null,null,null,null,null,0]
["Sch Ve","Scenario Tests",null,"R9 - Cash Surrender Low - High Instit. ",null,null,null,null,null,null,null,null,0]
["Sch Ve","Scenario Tests",null,"Product Not Sensitive to Lapse - Cash 5",null,null,null,null,null,null,null,null,0]
["Sch Ve","Scenario Tests",null," Other - Gross Loss 2",null,null,null,null,null,null,null,null,0]
["Sch Ve","Scenario Tests",null,"A13a) Designated IT Risk Manager Details","Confirm role holder's name"]
["Sch Ve","Scenario Tests",null,"B9) Classed Data by sensitivity","Select Yes/No"]
["Sch Ve","Scenario Tests",null,"C4a) Internal Vulnerability scanning frequency","Select Frequency"]
[]
["Sch Vf","Coinsurance",null,"Mod Co - Coverage 4","Select from Drop-Down"]
["Sch Vf","Coinsurance",null,"Mod Co - Reserve 14",0]
["Sch Vf","Coinsurance",null,"Affiliated Cedant - Total",0]
["Sch Vg","GAAP - BSCR Rec",null,"Assets Fin. Stmts. - Other 4",0]
["Sch Vg","GAAP - BSCR Rec",null,"Net. Inc. Fin. Stmts. - Other 7",0]
["Sch Vg","GAAP - BSCR Rec",null,"Assets Form 1SFS - Other 3",0]
["Sch Vg","GAAP - BSCR Rec",null,"Liab. Form 1SFS - Other 3",0]
["Sch Vg","GAAP - BSCR Rec",null,"Net Inc. Form 1SFS - Risk Margin",0]
["Sch Vg","GAAP - BSCR Rec",null,"C&S Form 1SFS - Risk Margin",0]
["Sch Vk","Deposit Details",null,"Name of Exposure - 10",0]
["Sch Vk","Deposit Details",null,"Line of Business - 4",0]
["Sch Vk","Deposit Details",null,"Line of Business - 23",0]
["Sch Vk","Deposit Details",null,"Assets in Trust - 23",0]
["Sch Vk","Deposit Details",null,"Collateral - 16",0]
["Sch Vk","Deposit Details",null,"Collateral - 22",0]
["Sch Vk","Deposit Details",null,"GPW for the Period - 15",0]
["Sch Vk","Deposit Details",null,"NPW for the Period - 8",0]
["Sch Vk","Deposit Details",null,"Exposure - 17",0]
["Sch Vk","Deposit Details",null,"Limit @ 99.0 TVAR - 1",0]
["Sch Vk","Deposit Details",null,"Limit @ 99.0 TVAR - 20",0]
["Sch Vk","Deposit Details",null,"Unlimited Exposure Details - 19",0]
["Sch V(L)","Segregated Acc","(K)","Unearned Premiums - Cell 1",0]
["Sch V(L)","Segregated Acc","(Q)","Net Premiums Written - Cell 1",0]
["Sch V(L)","Segregated Acc","(AF) ","Cell Deficit - Cell 1",0]
["Sch V(L)","Segregated Acc","(AQ) ","ii) GPW - Cell 1",0]
["Sch V(L)","Segregated Acc","(J)","Other Assets - Cell 2",0]
["Sch V(L)","Segregated Acc","(AC) ","currency used - Cell 2","Select Currency"]
["Sch V(L)","Segregated Acc","(AQ) ","ii) Premiums Ceded - Cell 2",0]
["Sch V(L)","Segregated Acc","(F)","Quoted: Equites and Other - Cell 3",0]
["Sch V(L)","Segregated Acc","(Y) ","Actual collateral posted by Cell/Insurer - Cell 3",0]
["Sch V(L)","Segregated Acc","(AC) ","currency used - Cell 3","Select Currency"]
["Sch V(L)","Segregated Acc","(AQ) ","i) Statutory Line of Business - Cell 3","Select Line of Business"]
["Sch V(L)","Segregated Acc","(M)","Other Liabilities - Cell 4",0]
["Sch V(L)","Segregated Acc","(Z) ","Primary Cell Funding - Cell 4","Select Funding"]
["Sch V(L)","Segregated Acc","(AM) ","Beneficial Ownership Gov Instrument - Cell 4","Confirm Instrument"]
["Sch V(L)","Segregated Acc","(A)","Cell Ref # - Cell 5",0]
["Sch V(L)","Segregated Acc","(T) ","Commissions and Brokerage - Cell 5",0]
["Sch V(L)","Segregated Acc","(AH) ","Details of Beneficial Owners of Risk - Cell 5","Confirm"]
["Sch V(L)","Segregated Acc","(AQ) ","iv) Premiums Ceded - Cell 5",0]
["Sch V(L)","Segregated Acc","(N)","Statutory Capital - Cell 6",0]
["Sch V(L)","Segregated Acc","(P)","Gross Premiums Written - Cell 6",0]
["Sch V(L)","Segregated Acc","(AI) ","Details of Beneficial Owners of Cell - Cell 6","Confirm"]
["Sch V(L)","Segregated Acc","(AQ) ","iii) GPW - Cell 6",0]
["Sch V(L)","Segregated Acc","(O)","Statutory Surplus - Cell 7",0]
["Sch V(L)","Segregated Acc","(AE) ","General Cell to Cell Activity - Cell 7","Confirm Activity"]
["Sch V(L)","Segregated Acc","(AQ) ","i) NPW - Cell 7",0]
["Sch V(L)","Segregated Acc","(I)","Funds Held by Ceding Reinsurers - Cell 8",0]
["Sch V(L)","Segregated Acc","(O)","Statutory Surplus - Cell 8",0]
["Sch V(L)","Segregated Acc","(AE.1) ","General Cell to Cell Activity Details - Cell 8",0]
["Sch V(L)","Segregated Acc","(AQ) ","ii) Statutory Line of Business - Cell 8","Select Line of Business"]
["Sch V(L)","Segregated Acc","(D)","Cash and Time Deposits - Cell 9",0]
["Sch V(L)","Segregated Acc","(AA.2) ","Limit of Cell  Funding/ Collateral Details - Cell 9",0]
["Sch V(L)","Segregated Acc","(AO) ","Limited recourse  - Cell 9",0]
["Sch V(L)","Segregated Acc","(AQ) ","v) GPW - Cell 9",0]
["Sch V(L)","Segregated Acc","(W) ","Is Collateral required - Cell 10","Select Yes/No"]
["Sch V(L)","Segregated Acc","(AG.1) ","Additional Capital Support Details - Cell 10",0]
["Sch V(L)","Segregated Acc","(AP) ","Operational Risk Mitigants - Cell 10","Confirm Mitigants & Attach Support"]
["Sch V(L)","Segregated Acc","(AQ) ","v) Premiums Ceded - Cell 10",0]
["Sch V(L)","Segregated Acc","(R)","Total Income (Insurance and Other) - Cell 11",0]
["Sch V(L)","Segregated Acc","(AK.1) ","Beneficial Ownership Add. Details - Cell 11",0]
["Sch V(L)","Segregated Acc","(AQ) ","iv) Statutory Line of Business - Cell 11","Select Line of Business"]
["Sch V(L)","Segregated Acc","(L)","Net Loss & Loss Expense Provisions - Cell 12",0]
["Sch V(L)","Segregated Acc","(AG) ","Additional Capital Support - Cell 12","Confirm"]
["Sch V(L)","Segregated Acc","(AQ) ","ii) NPW - Cell 12",0]
["Sch V(L)","Segregated Acc","(AQ) ","iv) GPW - Cell 12",0]
["Sch V(L)","Segregated Acc","(M)","Other Liabilities - Cell 13",0]
["Sch V(L)","Segregated Acc","(AD) ","Cell to Cell Activity  - Cell 13","Confirm Activity"]
["Sch V(L)","Segregated Acc","(AQ) ","ii) NPW - Cell 13",0]
["Sch V(L)","Segregated Acc","(G)","Unquoted: Bonds, and Debentures - Cell 14",0]
["Sch V(L)","Segregated Acc","(AD) ","Cell to Cell Activity  - Cell 14","Confirm Activity"]
["Sch V(L)","Segregated Acc","(AI) ","Details of Beneficial Owners of Cell 1- Cell 14","Confirm"]
["Sch V(L)","Segregated Acc","(B)","Cell name - Cell 15",0]
["Sch V(L)","Segregated Acc","(H)","Investments in and Advances to Affiliates - Cell 15",0]
["Sch V(L)","Segregated Acc","(AA) ","Limit of Cell Funding/ Collateral - Cell 15","Confirm Funding / Collateral"]
["Sch V(L)","Segregated Acc","(AM.1) ","Beneficial Ownership Gov Instrument Det. - Cell 15",0]
["Sch V(L)","Segregated Acc","(B)","Cell name - Cell 16",0]
["Sch V(L)","Segregated Acc","(U) ","Other Expenses - Cell 16",0]
["Sch V(L)","Segregated Acc","(AM.1) ","Beneficial Ownership Gov Instrument Det. - Cell 16",0]
["Sch V(L)","Segregated Acc","(AQ) ","iv) GPW - Cell 16",0]
["Sch V(L)","Segregated Acc","(P)","Gross Premiums Written - Cell 17",0]
["Sch V(L)","Segregated Acc","(V) ","Capital Returned & Dividends Paid/Payable - Cell 17",0]
["Sch V(L)","Segregated Acc","(AJ) ","Beneficial Owners - Cell 17","Confirm"]
["Sch V(L)","Segregated Acc","(AQ) ","v) Statutory Line of Business - Cell 17","Select Line of Business"]
["Sch V(L)","Segregated Acc","(P)","Gross Premiums Written - Cell 18",0]
["Sch V(L)","Segregated Acc","(AE.1) ","General Cell to Cell Activity Details - Cell 18",0]
["Sch V(L)","Segregated Acc","(AQ) ","iv) Statutory Line of Business - Cell 18","Select Line of Business"]
["Sch V(L)","Segregated Acc","(K)","Unearned Premiums - Cell 19",0]
["Sch V(L)","Segregated Acc","(AB) ","Cell  in Run-Off - Cell 19","Select Yes/No"]
["Sch V(L)","Segregated Acc","(AQ) ","ii) GPW - Cell 19",0]
["Sch V(L)","Segregated Acc","(E)","Quoted: Bonds and Debentures - Cell 20",0]
["Sch V(L)","Segregated Acc","(K)","Unearned Premiums - Cell 20",0]
["Sch V(L)","Segregated Acc","(AB) ","Cell is in Run-Off - Cell 20","Select Yes/No"]
["Sch V(L)","Segregated Acc","(AP) ","Operational Risk Mitigants - Cell 20","Confirm Mitigants & Attach Support"]
["Sch V(L)","Segregated Acc","(AQ) ","iv) NPW - Cell 20",0]
["Sch V(L)","Segregated Acc","(Y) ","Actual collateral posted by Cell/Insurer - Cell 21",0]
["Sch V(L)","Segregated Acc","(AL) ","Jurisdiction - Cell 21","Confirm Jurisdiction"]
["Sch V(L)","Segregated Acc","(AQ) ","v) NPW - Cell 21",0]
["Sch V(L)","Segregated Acc","(S) ","Net loss and Loss Expenses Incurred - Cell 22",0]
["Sch V(L)","Segregated Acc","(Y) ","Actual collateral posted by Cell/Insurer - Cell 22",0]
["Sch V(L)","Segregated Acc","(AL) ","Jurisdiction - Cell 22","Confirm Jurisdiction"]
["Sch V(L)","Segregated Acc","(AQ) ","v) Premiums Ceded - Cell 22",0]
["Sch V(L)","Segregated Acc","(T) ","Commissions and Brokerage - Cell 23",0]
["Sch V(L)","Segregated Acc","(AH) ","Details of Beneficial Owners of Risk - Cell 23","Confirm"]
["Sch V(L)","Segregated Acc","(AQ) ","iv) Premiums Ceded - Cell 23",0]
["Sch V(L)","Segregated Acc","(N)","Statutory Capital - Cell 24",0]
["Sch V(L)","Segregated Acc","(AD.1) ","Cell to Cell Activity Details - Cell 24",0]
["Sch V(L)","Segregated Acc","(AH) ","Details of Beneficial Owners of Risk - Cell 24","Confirm"]
["Sch V(L)","Segregated Acc","(AQ) ","iii) Statutory Line of Business - Cell 24","Select Line of Business"]
["Sch V(L)","Segregated Acc","(V) ","Capital Returned & Dividends Paid/Payable - Cell 25",0]
["Sch V(L)","Segregated Acc","(AE) ","General Cell to Cell Activity - Cell 25","Confirm Activity"]
["Sch V(L)","Segregated Acc","(AQ) ","i) NPW - Cell 25",0]
["Sch V(L)","Segregated Acc",null,"i) Premiums Ceded - Gen Acc.",0]
["Sch V(L)","Segregated Acc",null,"Comment on Statutory Asset Difference",0]
["Sch V(m)","Alternative Capital",null,"Name of Cedant - 13",0]
["Sch V(m)","Alternative Capital",null,"Name of Cedant - 19",0]
["Sch V(m)","Alternative Capital",null,"Contract Reference - 11",0]
["Sch V(m)","Alternative Capital",null,"Type of Coverage - 14","Select from Drop Down"]
["Sch V(m)","Alternative Capital",null,"Statutory Line of Business - 8","Select from Drop Down"]
["Sch V(m)","Alternative Capital",null,"Location of Coverage - 2","Select from Drop Down"]
["Sch V(m)","Alternative Capital",null,"Agg. Max. Limit at Inception - 2",0]
["Sch V(m)","Alternative Capital",null,"Agg. Max. Limit at Inception - 21",0]
["Sch V(m)","Alternative Capital",null,"Net Agg. Max. Limit at End of Year - 14",0]
["Sch V(m)","Alternative Capital",null,"Net Agg. Max. Limit at End of Year - 20",0]
["Sch V(m)","Alternative Capital",null,"Inception Date of Cover Period - 20","00:00:00"]
["Sch V(m)","Alternative Capital",null,"Effective Date of Contract - 14","00:00:00"]
["Sch V(m)","Alternative Capital",null,"Expiry Date of Cover - 8","00:00:00"]
["Sch V(m)","Alternative Capital",null,"Cover Period GPW - 2",0]
["Sch V(m)","Alternative Capital",null,"Cover Period NPW - 1",0]
["Sch V(m)","Alternative Capital",null,"Cover Period NPW - 20",0]
["Sch V(m)","Alternative Capital",null,"Attachment Point - 13",0]
["Sch V(m)","Alternative Capital",null,"Attachment Point - 19",0]
["Sch V(m)","Alternative Capital",null,"Aggregate Losses Incurred - 2",0]
["Sch V(m)","Alternative Capital",null,"Aggregate Losses Incurred - 12",0]
["Sch V(m)","Alternative Capital",null,"Aggregate Losses End Of Year - 5",0]
["Sch V(m)","Alternative Capital",null,"Aggregate Losses End Of Year - 24",0]
["Sch V(m)","Alternative Capital",null,"Collateral Reserve Buffer - 23",0]
["Sch V(m)","Alternative Capital",null,"Currency of Exposure - 16","Select from Drop Down"]
["Sch V(m)","Alternative Capital",null,"Nature of Collateral - 16","Select from Drop Down"]
["Sch V(m)","Alternative Capital",null,"Collateral Rating - 11","Select from Drop Down"]
["Sch V(m)","Alternative Capital",null,"Amount of Collateral - 5",0]
["Sch V(m)","Alternative Capital",null,"Amount of Collateral - 11",0]
["Sch V(m)","Alternative Capital",null,"Comments - 4",0]
["Sch V(m)","Alternative Capital",null,"Comments - 23",0]
["Sch VI","Schedule of Assets",null,"(A) Cash - Asset Type 20","Select",null,null,null,null,null,null,null,"Select"]
["Sch VI","Schedule of Assets",null,"(A) Cash - Asset Type 39","Select",null,null,null,null,null,null,null,"Select"]
["Sch VI","Schedule of Assets",null,"(A) Cash - Asset Type 64","Select",null,null,null,null,null,null,null,"Select"]
["Sch VI","Schedule of Assets",null,"(A) Cash - Asset Type 73","Select",null,null,null,null,null,null,null,"Select"]
["Sch VI","Schedule of Assets",null,"(A) Cash - Asset Type 103","Select",null,null,null,null,null,null,null,"Select"]
["Sch VI","Schedule of Assets",null,"(A) Cash - Asset Type 109","Select",null,null,null,null,null,null,null,"Select"]
["Sch VI","Schedule of Assets",null,"(A) Cash - Asset Type 128","Select",null,null,null,null,null,null,null,"Select"]
["Sch VI","Schedule of Assets",null,"(A) Cash - Asset Type 147","Select",null,null,null,null,null,null,null,"Select"]
["Sch VI","Schedule of Assets",null,"(A) Cash - Asset Type 172","Select",null,null,null,null,null,null,null,"Select"]
["Sch VI","Schedule of Assets",null,"(A) Cash - Asset Type 191","Select",null,null,null,null,null,null,null,"Select"]
["Sch VI","Schedule of Assets",null,"(A) Cash - Currency 10","Select",null,null,null,null,null,null,null,"Select"]
["Sch VI","Schedule of Assets",null,"(A) Cash - Currency 36","Select",null,null,null,null,null,null,null,"Select"]
["Sch VI","Schedule of Assets",null,"(A) Cash - Currency 55","Select",null,null,null,null,null,null,null,"Select"]
["Sch VI","Schedule of Assets",null,"(A) Cash - Currency 61","Select",null,null,null,null,null,null,null,"Select"]
["Sch VI","Schedule of Assets",null,"(A) Cash - Currency 80","Select",null,null,null,null,null,null,null,"Select"]
["Sch VI","Schedule of Assets",null,"(A) Cash - Currency 105","Select",null,null,null,null,null,null,null,"Select"]
["Sch VI","Schedule of Assets",null,"(A) Cash - Currency 124","Select",null,null,null,null,null,null,null,"Select"]
["Sch VI","Schedule of Assets",null,"(A) Cash - Currency 143","Select",null,null,null,null,null,null,null,"Select"]
["Sch VI","Schedule of Assets",null,"(A) Cash - Currency 171","Select",null,null,null,null,null,null,null,"Select"]
["Sch VI","Schedule of Assets",null,"(A) Cash - Currency 188","Select",null,null,null,null,null,null,null,"Select"]
["Sch VI","Schedule of Assets",null,"(A) Cash - Rating 7","Select",null,null,null,null,null,null,null,"Select"]
["Sch VI","Schedule of Assets",null,"(A) Cash - Rating 13","Select",null,null,null,null,null,null,null,"Select"]
["Sch VI","Schedule of Assets",null,"(A) Cash - Rating 32","Select",null,null,null,null,null,null,null,"Select"]
["Sch VI","Schedule of Assets",null,"(A) Cash - Rating 57","Select",null,null,null,null,null,null,null,"Select"]
["Sch VI","Schedule of Assets",null,"(A) Cash - Rating 76","Select",null,null,null,null,null,null,null,"Select"]
["Sch VI","Schedule of Assets",null,"(A) Cash - Rating 92","Select",null,null,null,null,null,null,null,"Select"]
["Sch VI","Schedule of Assets",null,"(A) Cash - Rating 121","Select",null,null,null,null,null,null,null,"Select"]
["Sch VI","Schedule of Assets",null,"(A) Cash - Rating 140","Select",null,null,null,null,null,null,null,"Select"]
["Sch VI","Schedule of Assets",null,"(A) Cash - Rating 146","Select",null,null,null,null,null,null,null,"Select"]
["Sch VI","Schedule of Assets",null,"(A) Cash - Rating 165","Select",null,null,null,null,null,null,null,"Select"]
["Sch VI","Schedule of Assets",null,"(A) Cash - Rating 184","Select",null,null,null,null,null,null,null,"Select"]
["Sch VI","Schedule of Assets",null,"(A) Cash - Nominal 9",0,null,null,null,null,null,null,null,0]
["Sch VI","Schedule of Assets",null,"(A) Cash - Nominal 28",0,null,null,null,null,null,null,null,0]
["Sch VI","Schedule of Assets",null,"(A) Cash - Nominal 53",0,null,null,null,null,null,null,null,0]
["Sch VI","Schedule of Assets",null,"(A) Cash - Nominal 73",0,null,null,null,null,null,null,null,0]
["Sch VI","Schedule of Assets",null,"(A) Cash - Nominal 92",0,null,null,null,null,null,null,null,0]
["Sch VI","Schedule of Assets",null,"(A) Cash - Nominal 98",0,null,null,null,null,null,null,null,0]
["Sch VI","Schedule of Assets",null,"(A) Cash - Nominal 117",0,null,null,null,null,null,null,null,0]
["Sch VI","Schedule of Assets",null,"(A) Cash - Nominal 136",0,null,null,null,null,null,null,null,0]
["Sch VI","Schedule of Assets",null,"(A) Cash - Nominal 161",0,null,null,null,null,null,null,null,0]
["Sch VI","Schedule of Assets",null,"(A) Cash - Nominal 180",0,null,null,null,null,null,null,null,0]
["Sch VI","Schedule of Assets",null,"(A) Cash - Nominal 194",0,null,null,null,null,null,null,null,0]
["Sch VI","Schedule of Assets",null,"(A) Cash - Fair Value 25",0,null,null,null,null,null,null,null,0]
["Sch VI","Schedule of Assets",null,"(A) Cash - Fair Value 44",0,null,null,null,null,null,null,null,0]
["Sch VI","Schedule of Assets",null,"(A) Cash - Fair Value 69",0,null,null,null,null,null,null,null,0]
["Sch VI","Schedule of Assets",null,"(A) Cash - Fair Value 88",0,null,null,null,null,null,null,null,0]
["Sch VI","Schedule of Assets",null,"(A) Cash - Fair Value 107",0,null,null,null,null,null,null,null,0]
["Sch VI","Schedule of Assets",null,"(A) Cash - Fair Value 113",0,null,null,null,null,null,null,null,0]
["Sch VI","Schedule of Assets",null,"(A) Cash - Fair Value 131",0,null,null,null,null,null,null,null,0]
["Sch VI","Schedule of Assets",null,"(A) Cash - Fair Value 158",0,null,null,null,null,null,null,null,0]
["Sch VI","Schedule of Assets",null,"(A) Cash - Fair Value 177",0,null,null,null,null,null,null,null,0]
["Sch VI","Schedule of Assets",null,"(A) Cash - Fair Value 196",0,null,null,null,null,null,null,null,0]
["Sch VI","Schedule of Assets",null,"(A) Cash - Comments 21",0,null,null,null,null,null,null,null,0]
["Sch VI","Schedule of Assets",null,"(A) Cash - Comments 40",0,null,null,null,null,null,null,null,0]
["Sch VI","Schedule of Assets",null,"(A) Cash - Comments 59",0,null,null,null,null,null,null,null,0]
["Sch VI","Schedule of Assets",null,"(A) Cash - Comments 65",0,null,null,null,null,null,null,null,0]
["Sch VI","Schedule of Assets",null,"(A) Cash - Comments 92",0,null,null,null,null,null,null,null,0]
["Sch VI","Schedule of Assets",null,"(A) Cash - Comments 110",0,null,null,null,null,null,null,null,0]
["Sch VI","Schedule of Assets",null,"(A) Cash - Comments 129",0,null,null,null,null,null,null,null,0]
["Sch VI","Schedule of Assets",null,"(A) Cash - Comments 148",0,null,null,null,null,null,null,null,0]
["Sch VI","Schedule of Assets",null,"(A) Cash - Comments 173",0,null,null,null,null,null,null,null,0]
["Sch VI","Schedule of Assets",null,"(A) Cash - Comments 192",0,null,null,null,null,null,null,null,0]
["Sch VI","Schedule of Assets",null,"(B) Bonds - Asset Type 10","Select",null,null,null,null,null,null,null,"Select"]
["Sch VI","Schedule of Assets",null,"(B) Bonds - Asset Type 28","Select",null,null,null,null,null,null,null,"Select"]
["Sch VI","Schedule of Assets",null,"(B) Bonds - Asset Type 36","Select",null,null,null,null,null,null,null,"Select"]
["Sch VI","Schedule of Assets",null,"(B) Bonds - Asset Type 61","Select",null,null,null,null,null,null,null,"Select"]
["Sch VI","Schedule of Assets",null,"(B) Bonds - Asset Type 80","Select",null,null,null,null,null,null,null,"Select"]
["Sch VI","Schedule of Assets",null,"(B) Bonds - Asset Type 99","Select",null,null,null,null,null,null,null,"Select"]
["Sch VI","Schedule of Assets",null,"(B) Bonds - Asset Type 124","Select",null,null,null,null,null,null,null,"Select"]
["Sch VI","Schedule of Assets",null,"(B) Bonds - Asset Type 143","Select",null,null,null,null,null,null,null,"Select"]
["Sch VI","Schedule of Assets",null,"(B) Bonds - Asset Type 149","Select",null,null,null,null,null,null,null,"Select"]
["Sch VI","Schedule of Assets",null,"(B) Bonds - Asset Type 169","Select",null,null,null,null,null,null,null,"Select"]
["Sch VI","Schedule of Assets",null,"(B) Bonds - Asset Type 188","Select",null,null,null,null,null,null,null,"Select"]
["Sch VI","Schedule of Assets",null,"(B) Bonds - Asset Type 213","Select",null,null,null,null,null,null,null,"Select"]
["Sch VI","Schedule of Assets",null,"(B) Bonds - Asset Type 232","Select",null,null,null,null,null,null,null,"Select"]
["Sch VI","Schedule of Assets",null,"(B) Bonds - Asset Type 251","Select",null,null,null,null,null,null,null,"Select"]
["Sch VI","Schedule of Assets",null,"(B) Bonds - Asset Type 276","Select",null,null,null,null,null,null,null,"Select"]
["Sch VI","Schedule of Assets",null,"(B) Bonds - Asset Type 295","Select",null,null,null,null,null,null,null,"Select"]
["Sch VI","Schedule of Assets",null,"(B) Bonds - Asset Type 306","Select",null,null,null,null,null,null,null,"Select"]
["Sch VI","Schedule of Assets",null,"(B) Bonds - Asset Type 321","Select",null,null,null,null,null,null,null,"Select"]
["Sch VI","Schedule of Assets",null,"(B) Bonds - Asset Type 340","Select",null,null,null,null,null,null,null,"Select"]
["Sch VI","Schedule of Assets",null,"(B) Bonds - Asset Type 365","Select",null,null,null,null,null,null,null,"Select"]
["Sch VI","Schedule of Assets",null,"(B) Bonds - Asset Type 384","Select",null,null,null,null,null,null,null,"Select"]
["Sch VI","Schedule of Assets",null,"(B) Bonds - Currency 9","Select",null,null,null,null,null,null,null,"Select"]
["Sch VI","Schedule of Assets",null,"(B) Bonds - Currency 28","Select",null,null,null,null,null,null,null,"Select"]
["Sch VI","Schedule of Assets",null,"(B) Bonds - Currency 47","Select",null,null,null,null,null,null,null,"Select"]
["Sch VI","Schedule of Assets",null,"(B) Bonds - Currency 67","Select",null,null,null,null,null,null,null,"Select"]
["Sch VI","Schedule of Assets",null,"(B) Bonds - Currency 73","Select",null,null,null,null,null,null,null,"Select"]
["Sch VI","Schedule of Assets",null,"(B) Bonds - Currency 92","Select",null,null,null,null,null,null,null,"Select"]
["Sch VI","Schedule of Assets",null,"(B) Bonds - Currency 117","Select",null,null,null,null,null,null,null,"Select"]
["Sch VI","Schedule of Assets",null,"(B) Bonds - Currency 136","Select",null,null,null,null,null,null,null,"Select"]
["Sch VI","Schedule of Assets",null,"(B) Bonds - Currency 161","Select",null,null,null,null,null,null,null,"Select"]
["Sch VI","Schedule of Assets",null,"(B) Bonds - Currency 180","Select",null,null,null,null,null,null,null,"Select"]
["Sch VI","Schedule of Assets",null,"(B) Bonds - Currency 199","Select",null,null,null,null,null,null,null,"Select"]
["Sch VI","Schedule of Assets",null,"(B) Bonds - Currency 208","Select",null,null,null,null,null,null,null,"Select"]
["Sch VI","Schedule of Assets",null,"(B) Bonds - Currency 244","Select",null,null,null,null,null,null,null,"Select"]
["Sch VI","Schedule of Assets",null,"(B) Bonds - Currency 263","Select",null,null,null,null,null,null,null,"Select"]
["Sch VI","Schedule of Assets",null,"(B) Bonds - Currency 269","Select",null,null,null,null,null,null,null,"Select"]
["Sch VI","Schedule of Assets",null,"(B) Bonds - Currency 288","Select",null,null,null,null,null,null,null,"Select"]
["Sch VI","Schedule of Assets",null,"(B) Bonds - Currency 313","Select",null,null,null,null,null,null,null,"Select"]
["Sch VI","Schedule of Assets",null,"(B) Bonds - Currency 332","Select",null,null,null,null,null,null,null,"Select"]
["Sch VI","Schedule of Assets",null,"(B) Bonds - Currency 349","Select",null,null,null,null,null,null,null,"Select"]
["Sch VI","Schedule of Assets",null,"(B) Bonds - Currency 377","Select",null,null,null,null,null,null,null,"Select"]
["Sch VI","Schedule of Assets",null,"(B) Bonds - Currency 396","Select",null,null,null,null,null,null,null,"Select"]
["Sch VI","Schedule of Assets",null,"(B) Bonds - Rating 2","Select",null,null,null,null,null,null,null,"Select"]
["Sch VI","Schedule of Assets",null,"(B) Bonds - Rating 21","Select",null,null,null,null,null,null,null,"Select"]
["Sch VI","Schedule of Assets",null,"(B) Bonds - Rating 40","Select",null,null,null,null,null,null,null,"Select"]
["Sch VI","Schedule of Assets",null,"(B) Bonds - Rating 65","Select",null,null,null,null,null,null,null,"Select"]
["Sch VI","Schedule of Assets",null,"(B) Bonds - Rating 84","Select",null,null,null,null,null,null,null,"Select"]
["Sch VI","Schedule of Assets",null,"(B) Bonds - Rating 110","Select",null,null,null,null,null,null,null,"Select"]
["Sch VI","Schedule of Assets",null,"(B) Bonds - Rating 129","Select",null,null,null,null,null,null,null,"Select"]
["Sch VI","Schedule of Assets",null,"(B) Bonds - Rating 148","Select",null,null,null,null,null,null,null,"Select"]
["Sch VI","Schedule of Assets",null,"(B) Bonds - Rating 154","Select",null,null,null,null,null,null,null,"Select"]
["Sch VI","Schedule of Assets",null,"(B) Bonds - Rating 173","Select",null,null,null,null,null,null,null,"Select"]
["Sch VI","Schedule of Assets",null,"(B) Bonds - Rating 192","Select",null,null,null,null,null,null,null,"Select"]
["Sch VI","Schedule of Assets",null,"(B) Bonds - Rating 217","Select",null,null,null,null,null,null,null,"Select"]
["Sch VI","Schedule of Assets",null,"(B) Bonds - Rating 227","Select",null,null,null,null,null,null,null,"Select"]
["Sch VI","Schedule of Assets",null,"(B) Bonds - Rating 262","Select",null,null,null,null,null,null,null,"Select"]
["Sch VI","Schedule of Assets",null,"(B) Bonds - Rating 281","Select",null,null,null,null,null,null,null,"Select"]
["Sch VI","Schedule of Assets",null,"(B) Bonds - Rating 300","Select",null,null,null,null,null,null,null,"Select"]
["Sch VI","Schedule of Assets",null,"(B) Bonds - Rating 306","Select",null,null,null,null,null,null,null,"Select"]
["Sch VI","Schedule of Assets",null,"(B) Bonds - Rating 325","Select",null,null,null,null,null,null,null,"Select"]
["Sch VI","Schedule of Assets",null,"(B) Bonds - Rating 344","Select",null,null,null,null,null,null,null,"Select"]
["Sch VI","Schedule of Assets",null,"(B) Bonds - Rating 369","Select",null,null,null,null,null,null,null,"Select"]
["Sch VI","Schedule of Assets",null,"(B) Bonds - Rating 388","Select",null,null,null,null,null,null,null,"Select"]
["Sch VI","Schedule of Assets",null,"(B) Bonds - Nominal 14",0,null,null,null,null,null,null,null,0]
["Sch VI","Schedule of Assets",null,"(B) Bonds - Nominal 33",0,null,null,null,null,null,null,null,0]
["Sch VI","Schedule of Assets",null,"(B) Bonds - Nominal 52",0,null,null,null,null,null,null,null,0]
["Sch VI","Schedule of Assets",null,"(B) Bonds - Nominal 58",0,null,null,null,null,null,null,null,0]
["Sch VI","Schedule of Assets",null,"(B) Bonds - Nominal 77",0,null,null,null,null,null,null,null,0]
["Sch VI","Schedule of Assets",null,"(B) Bonds - Nominal 96",0,null,null,null,null,null,null,null,0]
["Sch VI","Schedule of Assets",null,"(B) Bonds - Nominal 121",0,null,null,null,null,null,null,null,0]
["Sch VI","Schedule of Assets",null,"(B) Bonds - Nominal 149",0,null,null,null,null,null,null,null,0]
["Sch VI","Schedule of Assets",null,"(B) Bonds - Nominal 166",0,null,null,null,null,null,null,null,0]
["Sch VI","Schedule of Assets",null,"(B) Bonds - Nominal 185",0,null,null,null,null,null,null,null,0]
["Sch VI","Schedule of Assets",null,"(B) Bonds - Nominal 204",0,null,null,null,null,null,null,null,0]
["Sch VI","Schedule of Assets",null,"(B) Bonds - Nominal 210",0,null,null,null,null,null,null,null,0]
["Sch VI","Schedule of Assets",null,"(B) Bonds - Nominal 229",0,null,null,null,null,null,null,null,0]
["Sch VI","Schedule of Assets",null,"(B) Bonds - Nominal 254",0,null,null,null,null,null,null,null,0]
["Sch VI","Schedule of Assets",null,"(B) Bonds - Nominal 286",0,null,null,null,null,null,null,null,0]
["Sch VI","Schedule of Assets",null,"(B) Bonds - Nominal 293",0,null,null,null,null,null,null,null,0]
["Sch VI","Schedule of Assets",null,"(B) Bonds - Nominal 318",0,null,null,null,null,null,null,null,0]
["Sch VI","Schedule of Assets",null,"(B) Bonds - Nominal 337",0,null,null,null,null,null,null,null,0]
["Sch VI","Schedule of Assets",null,"(B) Bonds - Nominal 356",0,null,null,null,null,null,null,null,0]
["Sch VI","Schedule of Assets",null,"(B) Bonds - Nominal 381",0,null,null,null,null,null,null,null,0]
["Sch VI","Schedule of Assets",null,"(B) Bonds - Nominal 400",0,null,null,null,null,null,null,null,0]
["Sch VI","Schedule of Assets",null,"(B) Bonds - Fair Value 6",0,null,null,null,null,null,null,null,0]
["Sch VI","Schedule of Assets",null,"(B) Bonds - Fair Value 27",0,null,null,null,null,null,null,null,0]
["Sch VI","Schedule of Assets",null,"(B) Bonds - Fair Value 45",0,null,null,null,null,null,null,null,0]
["Sch VI","Schedule of Assets",null,"(B) Bonds - Fair Value 70",0,null,null,null,null,null,null,null,0]
["Sch VI","Schedule of Assets",null,"(B) Bonds - Fair Value 89",0,null,null,null,null,null,null,null,0]
["Sch VI","Schedule of Assets",null,"(B) Bonds - Fair Value 108",0,null,null,null,null,null,null,null,0]
["Sch VI","Schedule of Assets",null,"(B) Bonds - Fair Value 133",0,null,null,null,null,null,null,null,0]
["Sch VI","Schedule of Assets",null,"(B) Bonds - Fair Value 152",0,null,null,null,null,null,null,null,0]
["Sch VI","Schedule of Assets",null,"(B) Bonds - Fair Value 164",0,null,null,null,null,null,null,null,0]
["Sch VI","Schedule of Assets",null,"(B) Bonds - Fair Value 178",0,null,null,null,null,null,null,null,0]
["Sch VI","Schedule of Assets",null,"(B) Bonds - Fair Value 197",0,null,null,null,null,null,null,null,0]
["Sch VI","Schedule of Assets",null,"(B) Bonds - Fair Value 222",0,null,null,null,null,null,null,null,0]
["Sch VI","Schedule of Assets",null,"(B) Bonds - Fair Value 241",0,null,null,null,null,null,null,null,0]
["Sch VI","Schedule of Assets",null,"(B) Bonds - Fair Value 266",0,null,null,null,null,null,null,null,0]
["Sch VI","Schedule of Assets",null,"(B) Bonds - Fair Value 285",0,null,null,null,null,null,null,null,0]
["Sch VI","Schedule of Assets",null,"(B) Bonds - Fair Value 304",0,null,null,null,null,null,null,null,0]
["Sch VI","Schedule of Assets",null,"(B) Bonds - Fair Value 325",0,null,null,null,null,null,null,null,0]
["Sch VI","Schedule of Assets",null,"(B) Bonds - Fair Value 330",0,null,null,null,null,null,null,null,0]
["Sch VI","Schedule of Assets",null,"(B) Bonds - Fair Value 349",0,null,null,null,null,null,null,null,0]
["Sch VI","Schedule of Assets",null,"(B) Bonds - Fair Value 374",0,null,null,null,null,null,null,null,0]
["Sch VI","Schedule of Assets",null,"(B) Bonds - Fair Value 393",0,null,null,null,null,null,null,null,0]
["Sch VI","Schedule of Assets",null,"(B) Bonds - Weighted Average YTM 18",0,null,null,null,null,null,null,null,0]
["Sch VI","Schedule of Assets",null,"(B) Bonds - Weighted Average YTM 37",0,null,null,null,null,null,null,null,0]
["Sch VI","Schedule of Assets",null,"(B) Bonds - Weighted Average YTM 46",0,null,null,null,null,null,null,null,0]
["Sch VI","Schedule of Assets",null,"(B) Bonds - Weighted Average YTM 63",0,null,null,null,null,null,null,null,0]
["Sch VI","Schedule of Assets",null,"(B) Bonds - Weighted Average YTM 82",0,null,null,null,null,null,null,null,0]
["Sch VI","Schedule of Assets",null,"(B) Bonds - Weighted Average YTM 107",0,null,null,null,null,null,null,null,0]
["Sch VI","Schedule of Assets",null,"(B) Bonds - Weighted Average YTM 126",0,null,null,null,null,null,null,null,0]
["Sch VI","Schedule of Assets",null,"(B) Bonds - Weighted Average YTM 145",0,null,null,null,null,null,null,null,0]
["Sch VI","Schedule of Assets",null,"(B) Bonds - Weighted Average YTM 170",0,null,null,null,null,null,null,null,0]
["Sch VI","Schedule of Assets",null,"(B) Bonds - Weighted Average YTM 189",0,null,null,null,null,null,null,null,0]
["Sch VI","Schedule of Assets",null,"(B) Bonds - Weighted Average YTM 207",0,null,null,null,null,null,null,null,0]
["Sch VI","Schedule of Assets",null,"(B) Bonds - Weighted Average YTM 215",0,null,null,null,null,null,null,null,0]
["Sch VI","Schedule of Assets",null,"(B) Bonds - Weighted Average YTM 234",0,null,null,null,null,null,null,null,0]
["Sch VI","Schedule of Assets",null,"(B) Bonds - Weighted Average YTM 259",0,null,null,null,null,null,null,null,0]
["Sch VI","Schedule of Assets",null,"(B) Bonds - Weighted Average YTM 278",0,null,null,null,null,null,null,null,0]
["Sch VI","Schedule of Assets",null,"(B) Bonds - Weighted Average YTM 297",0,null,null,null,null,null,null,null,0]
["Sch VI","Schedule of Assets",null,"(B) Bonds - Weighted Average YTM 322",0,null,null,null,null,null,null,null,0]
["Sch VI","Schedule of Assets",null,"(B) Bonds - Weighted Average YTM 341",0,null,null,null,null,null,null,null,0]
["Sch VI","Schedule of Assets",null,"(B) Bonds - Weighted Average YTM 348",0,null,null,null,null,null,null,null,0]
["Sch VI","Schedule of Assets",null,"(B) Bonds - Weighted Average YTM 367",0,null,null,null,null,null,null,null,0]
["Sch VI","Schedule of Assets",null,"(B) Bonds - Weighted Average YTM 386",0,null,null,null,null,null,null,null,0]
["Sch VI","Schedule of Assets",null,"(B) Bonds - Effective Duration 11",0,null,null,null,null,null,null,null,0]
["Sch VI","Schedule of Assets",null,"(B) Bonds - Effective Duration 30",0,null,null,null,null,null,null,null,0]
["Sch VI","Schedule of Assets",null,"(B) Bonds - Effective Duration 49",0,null,null,null,null,null,null,null,0]
["Sch VI","Schedule of Assets",null,"(B) Bonds - Effective Duration 74",0,null,null,null,null,null,null,null,0]
["Sch VI","Schedule of Assets",null,"(B) Bonds - Effective Duration 85",0,null,null,null,null,null,null,null,0]
["Sch VI","Schedule of Assets",null,"(B) Bonds - Effective Duration 119",0,null,null,null,null,null,null,null,0]
["Sch VI","Schedule of Assets",null,"(B) Bonds - Effective Duration 138",0,null,null,null,null,null,null,null,0]
["Sch VI","Schedule of Assets",null,"(B) Bonds - Effective Duration 157",0,null,null,null,null,null,null,null,0]
["Sch VI","Schedule of Assets",null,"(B) Bonds - Effective Duration 163",0,null,null,null,null,null,null,null,0]
["Sch VI","Schedule of Assets",null,"(B) Bonds - Effective Duration 182",0,null,null,null,null,null,null,null,0]
["Sch VI","Schedule of Assets",null,"(B) Bonds - Effective Duration 201",0,null,null,null,null,null,null,null,0]
["Sch VI","Schedule of Assets",null,"(B) Bonds - Effective Duration 226",0,null,null,null,null,null,null,null,0]
["Sch VI","Schedule of Assets",null,"(B) Bonds - Effective Duration 246",0,null,null,null,null,null,null,null,0]
["Sch VI","Schedule of Assets",null,"(B) Bonds - Effective Duration 271",0,null,null,null,null,null,null,null,0]
["Sch VI","Schedule of Assets",null,"(B) Bonds - Effective Duration 290",0,null,null,null,null,null,null,null,0]
["Sch VI","Schedule of Assets",null,"(B) Bonds - Effective Duration 309",0,null,null,null,null,null,null,null,0]
["Sch VI","Schedule of Assets",null,"(B) Bonds - Effective Duration 315",0,null,null,null,null,null,null,null,0]
["Sch VI","Schedule of Assets",null,"(B) Bonds - Effective Duration 334",0,null,null,null,null,null,null,null,0]
["Sch VI","Schedule of Assets",null,"(B) Bonds - Effective Duration 359",0,null,null,null,null,null,null,null,0]
["Sch VI","Schedule of Assets",null,"(B) Bonds - Effective Duration 383",0,null,null,null,null,null,null,null,0]
["Sch VI","Schedule of Assets",null,"(B) Bonds - Effective Duration 398",0,null,null,null,null,null,null,null,0]
["Sch VI","Schedule of Assets",null,"(B) Bonds - Comments 23",0,null,null,null,null,null,null,null,0]
["Sch VI","Schedule of Assets",null,"(B) Bonds - Comments 42",0,null,null,null,null,null,null,null,0]
["Sch VI","Schedule of Assets",null,"(B) Bonds - Comments 61",0,null,null,null,null,null,null,null,0]
["Sch VI","Schedule of Assets",null,"(B) Bonds - Comments 67",0,null,null,null,null,null,null,null,0]
["Sch VI","Schedule of Assets",null,"(B) Bonds - Comments 86",0,null,null,null,null,null,null,null,0]
["Sch VI","Schedule of Assets",null,"(B) Bonds - Comments 111",0,null,null,null,null,null,null,null,0]
["Sch VI","Schedule of Assets",null,"(B) Bonds - Comments 124",0,null,null,null,null,null,null,null,0]
["Sch VI","Schedule of Assets",null,"(B) Bonds - Comments 150",0,null,null,null,null,null,null,null,0]
["Sch VI","Schedule of Assets",null,"(B) Bonds - Comments 175",0,null,null,null,null,null,null,null,0]
["Sch VI","Schedule of Assets",null,"(B) Bonds - Comments 194",0,null,null,null,null,null,null,null,0]
["Sch VI","Schedule of Assets",null,"(B) Bonds - Comments 213",0,null,null,null,null,null,null,null,0]
["Sch VI","Schedule of Assets",null,"(B) Bonds - Comments 219",0,null,null,null,null,null,null,null,0]
["Sch VI","Schedule of Assets",null,"(B) Bonds - Comments 238",0,null,null,null,null,null,null,null,0]
["Sch VI","Schedule of Assets",null,"(B) Bonds - Comments 261",0,null,null,null,null,null,null,null,0]
["Sch VI","Schedule of Assets",null,"(B) Bonds - Comments 283",0,null,null,null,null,null,null,null,0]
["Sch VI","Schedule of Assets",null,"(B) Bonds - Comments 302",0,null,null,null,null,null,null,null,0]
["Sch VI","Schedule of Assets",null,"(B) Bonds - Comments 327",0,null,null,null,null,null,null,null,0]
["Sch VI","Schedule of Assets",null,"(B) Bonds - Comments 346",0,null,null,null,null,null,null,null,0]
["Sch VI","Schedule of Assets",null,"(B) Bonds - Comments 352",0,null,null,null,null,null,null,null,0]
["Sch VI","Schedule of Assets",null,"(B) Bonds - Comments 371",0,null,null,null,null,null,null,null,0]
["Sch VI","Schedule of Assets",null,"(B) Bonds - Comments 390",0,null,null,null,null,null,null,null,0]
["Sch VI","Schedule of Assets",null,"(B) Bonds Sovereign Debt - Country 21","Select",null,null,null,null,null,null,null,"Select"]
["Sch VI","Schedule of Assets",null,"(B) Bonds Sovereign Debt - Country 34","Select",null,null,null,null,null,null,null,"Select"]
["Sch VI","Schedule of Assets",null,"(B) Bonds Sovereign Debt - Country 53","Select",null,null,null,null,null,null,null,"Select"]
["Sch VI","Schedule of Assets",null,"(B) Bonds Sovereign Debt - Country 78","Select",null,null,null,null,null,null,null,"Select"]
["Sch VI","Schedule of Assets",null,"(B) Bonds Sovereign Debt - Country 97","Select",null,null,null,null,null,null,null,"Select"]
["Sch VI","Schedule of Assets",null,"(B) Bonds Sovereign Debt - Country 103","Select",null,null,null,null,null,null,null,"Select"]
["Sch VI","Schedule of Assets",null,"(B) Bonds Sovereign Debt - Country 122","Select",null,null,null,null,null,null,null,"Select"]
["Sch VI","Schedule of Assets",null,"(B) Bonds Sovereign Debt - Country 141","Select",null,null,null,null,null,null,null,"Select"]
["Sch VI","Schedule of Assets",null,"(B) Bonds Sovereign Debt - Country 162","Select",null,null,null,null,null,null,null,"Select"]
["Sch VI","Schedule of Assets",null,"(B) Bonds Sovereign Debt - Country 186","Select",null,null,null,null,null,null,null,"Select"]
["Sch VI","Schedule of Assets",null,"(B) Bonds Sovereign Debt - Currency 5","Select",null,null,null,null,null,null,null,"Select"]
["Sch VI","Schedule of Assets",null,"(B) Bonds Sovereign Debt - Currency 30","Select",null,null,null,null,null,null,null,"Select"]
["Sch VI","Schedule of Assets",null,"(B) Bonds Sovereign Debt - Currency 49","Select",null,null,null,null,null,null,null,"Select"]
["Sch VI","Schedule of Assets",null,"(B) Bonds Sovereign Debt - Currency 74","Select",null,null,null,null,null,null,null,"Select"]
["Sch VI","Schedule of Assets",null,"(B) Bonds Sovereign Debt - Currency 93","Select",null,null,null,null,null,null,null,"Select"]
["Sch VI","Schedule of Assets",null,"(B) Bonds Sovereign Debt - Currency 103","Select",null,null,null,null,null,null,null,"Select"]
["Sch VI","Schedule of Assets",null,"(B) Bonds Sovereign Debt - Currency 119","Select",null,null,null,null,null,null,null,"Select"]
["Sch VI","Schedule of Assets",null,"(B) Bonds Sovereign Debt - Currency 138","Select",null,null,null,null,null,null,null,"Select"]
["Sch VI","Schedule of Assets",null,"(B) Bonds Sovereign Debt - Currency 163","Select",null,null,null,null,null,null,null,"Select"]
["Sch VI","Schedule of Assets",null,"(B) Bonds Sovereign Debt - Currency 182","Select",null,null,null,null,null,null,null,"Select"]
["Sch VI","Schedule of Assets",null,"(B) Bonds Sovereign Debt - Rating 1","Select",null,null,null,null,null,null,null,"Select"]
["Sch VI","Schedule of Assets",null,"(B) Bonds Sovereign Debt - Rating 26","Select",null,null,null,null,null,null,null,"Select"]
["Sch VI","Schedule of Assets",null,"(B) Bonds Sovereign Debt - Rating 45","Select",null,null,null,null,null,null,null,"Select"]
["Sch VI","Schedule of Assets",null,"(B) Bonds Sovereign Debt - Rating 64","Select",null,null,null,null,null,null,null,"Select"]
["Sch VI","Schedule of Assets",null,"(B) Bonds Sovereign Debt - Rating 71","Select",null,null,null,null,null,null,null,"Select"]
["Sch VI","Schedule of Assets",null,"(B) Bonds Sovereign Debt - Rating 90","Select",null,null,null,null,null,null,null,"Select"]
["Sch VI","Schedule of Assets",null,"(B) Bonds Sovereign Debt - Rating 115","Select",null,null,null,null,null,null,null,"Select"]
["Sch VI","Schedule of Assets",null,"(B) Bonds Sovereign Debt - Rating 134","Select",null,null,null,null,null,null,null,"Select"]
["Sch VI","Schedule of Assets",null,"(B) Bonds Sovereign Debt - Rating 153","Select",null,null,null,null,null,null,null,"Select"]
["Sch VI","Schedule of Assets",null,"(B) Bonds Sovereign Debt - Rating 178","Select",null,null,null,null,null,null,null,"Select"]
["Sch VI","Schedule of Assets",null,"(B) Bonds Sovereign Debt - Rating 181","Select",null,null,null,null,null,null,null,"Select"]
["Sch VI","Schedule of Assets",null,"(B) Bonds Sovereign Debt - Fair Value 4",0,null,null,null,null,null,null,null,0]
["Sch VI","Schedule of Assets",null,"(B) Bonds Sovereign Debt - Fair Value 23",0,null,null,null,null,null,null,null,0]
["Sch VI","Schedule of Assets",null,"(B) Bonds Sovereign Debt - Fair Value 42",0,null,null,null,null,null,null,null,0]
["Sch VI","Schedule of Assets",null,"(B) Bonds Sovereign Debt - Fair Value 67",0,null,null,null,null,null,null,null,0]
["Sch VI","Schedule of Assets",null,"(B) Bonds Sovereign Debt - Fair Value 86",0,null,null,null,null,null,null,null,0]
["Sch VI","Schedule of Assets",null,"(B) Bonds Sovereign Debt - Fair Value 105",0,null,null,null,null,null,null,null,0]
["Sch VI","Schedule of Assets",null,"(B) Bonds Sovereign Debt - Fair Value 130",0,null,null,null,null,null,null,null,0]
["Sch VI","Schedule of Assets",null,"(B) Bonds Sovereign Debt - Fair Value 142",0,null,null,null,null,null,null,null,0]
["Sch VI","Schedule of Assets",null,"(B) Bonds Sovereign Debt - Fair Value 156",0,null,null,null,null,null,null,null,0]
["Sch VI","Schedule of Assets",null,"(B) Bonds Sovereign Debt - Fair Value 175",0,null,null,null,null,null,null,null,0]
["Sch VI","Schedule of Assets",null,"(B) Bonds Sovereign Debt - Fair Value 194",0,null,null,null,null,null,null,null,0]
["Sch VI","Schedule of Assets",null,"(B) Bonds Sovereign Debt - Comments 19",0,null,null,null,null,null,null,null,0]
["Sch VI","Schedule of Assets",null,"(B) Bonds Sovereign Debt - Comments 38",0,null,null,null,null,null,null,null,0]
["Sch VI","Schedule of Assets",null,"(B) Bonds Sovereign Debt - Comments 57",0,null,null,null,null,null,null,null,0]
["Sch VI","Schedule of Assets",null,"(B) Bonds Sovereign Debt - Comments 79",0,null,null,null,null,null,null,null,0]
["Sch VI","Schedule of Assets",null,"(B) Bonds Sovereign Debt - Comments 102",0,null,null,null,null,null,null,null,0]
["Sch VI","Schedule of Assets",null,"(B) Bonds Sovereign Debt - Comments 108",0,null,null,null,null,null,null,null,0]
["Sch VI","Schedule of Assets",null,"(B) Bonds Sovereign Debt - Comments 127",0,null,null,null,null,null,null,null,0]
["Sch VI","Schedule of Assets",null,"(B) Bonds Sovereign Debt - Comments 146",0,null,null,null,null,null,null,null,0]
["Sch VI","Schedule of Assets",null,"(B) Bonds Sovereign Debt - Comments 171",0,null,null,null,null,null,null,null,0]
["Sch VI","Schedule of Assets",null,"(B) Bonds Sovereign Debt - Comments 190",0,null,null,null,null,null,null,null,0]
["Sch VI","Schedule of Assets",null,"(C) ABS and Struct. Sec. - Asset Type 14","Select",null,null,null,null,null,null,null,"Select"]
["Sch VI","Schedule of Assets",null,"(C) ABS and Struct. Sec. - Asset Type 39","Select",null,null,null,null,null,null,null,"Select"]
["Sch VI","Schedule of Assets",null,"(C) ABS and Struct. Sec. - Asset Type 53","Select",null,null,null,null,null,null,null,"Select"]
["Sch VI","Schedule of Assets",null,"(C) ABS and Struct. Sec. - Asset Type 59","Select",null,null,null,null,null,null,null,"Select"]
["Sch VI","Schedule of Assets",null,"(C) ABS and Struct. Sec. - Asset Type 78","Select",null,null,null,null,null,null,null,"Select"]
["Sch VI","Schedule of Assets",null,"(C) ABS and Struct. Sec. - Asset Type 97","Select",null,null,null,null,null,null,null,"Select"]
["Sch VI","Schedule of Assets",null,"(C) ABS and Struct. Sec. - Asset Type 122","Select",null,null,null,null,null,null,null,"Select"]
["Sch VI","Schedule of Assets",null,"(C) ABS and Struct. Sec. - Asset Type 141","Select",null,null,null,null,null,null,null,"Select"]
["Sch VI","Schedule of Assets",null,"(C) ABS and Struct. Sec. - Currency 16","Select",null,null,null,null,null,null,null,"Select"]
["Sch VI","Schedule of Assets",null,"(C) ABS and Struct. Sec. - Currency 30","Select",null,null,null,null,null,null,null,"Select"]
["Sch VI","Schedule of Assets",null,"(C) ABS and Struct. Sec. - Currency 55","Select",null,null,null,null,null,null,null,"Select"]
["Sch VI","Schedule of Assets",null,"(C) ABS and Struct. Sec. - Currency 80","Select",null,null,null,null,null,null,null,"Select"]
["Sch VI","Schedule of Assets",null,"(C) ABS and Struct. Sec. - Currency 99","Select",null,null,null,null,null,null,null,"Select"]
["Sch VI","Schedule of Assets",null,"(C) ABS and Struct. Sec. - Currency 118","Select",null,null,null,null,null,null,null,"Select"]
["Sch VI","Schedule of Assets",null,"(C) ABS and Struct. Sec. - Currency 124","Select",null,null,null,null,null,null,null,"Select"]
["Sch VI","Schedule of Assets",null,"(C) ABS and Struct. Sec. - Currency 143","Select",null,null,null,null,null,null,null,"Select"]
["Sch VI","Schedule of Assets",null,"(C) ABS and Struct. Sec. - Rating 17","Select",null,null,null,null,null,null,null,"Select"]
["Sch VI","Schedule of Assets",null,"(C) ABS and Struct. Sec. - Rating 38","Select",null,null,null,null,null,null,null,"Select"]
["Sch VI","Schedule of Assets",null,"(C) ABS and Struct. Sec. - Rating 57","Select",null,null,null,null,null,null,null,"Select"]
["Sch VI","Schedule of Assets",null,"(C) ABS and Struct. Sec. - Rating 82","Select",null,null,null,null,null,null,null,"Select"]
["Sch VI","Schedule of Assets",null,"(C) ABS and Struct. Sec. - Rating 101","Select",null,null,null,null,null,null,null,"Select"]
["Sch VI","Schedule of Assets",null,"(C) ABS and Struct. Sec. - Rating 107","Select",null,null,null,null,null,null,null,"Select"]
["Sch VI","Schedule of Assets",null,"(C) ABS and Struct. Sec. - Rating 126","Select",null,null,null,null,null,null,null,"Select"]
["Sch VI","Schedule of Assets",null,"(C) ABS and Struct. Sec. - Rating 145","Select",null,null,null,null,null,null,null,"Select"]
["Sch VI","Schedule of Assets",null,"(C) ABS and Struct. Sec. - Nominal Amount 28",0,null,null,null,null,null,null,null,0]
["Sch VI","Schedule of Assets",null,"(C) ABS and Struct. Sec. - Nominal Amount 40",0,null,null,null,null,null,null,null,0]
["Sch VI","Schedule of Assets",null,"(C) ABS and Struct. Sec. - Nominal Amount 59",0,null,null,null,null,null,null,null,0]
["Sch VI","Schedule of Assets",null,"(C) ABS and Struct. Sec. - Nominal Amount 84",0,null,null,null,null,null,null,null,0]
["Sch VI","Schedule of Assets",null,"(C) ABS and Struct. Sec. - Nominal Amount 103",0,null,null,null,null,null,null,null,0]
["Sch VI","Schedule of Assets",null,"(C) ABS and Struct. Sec. - Nominal Amount 109",0,null,null,null,null,null,null,null,0]
["Sch VI","Schedule of Assets",null,"(C) ABS and Struct. Sec. - Nominal Amount 128",0,null,null,null,null,null,null,null,0]
["Sch VI","Schedule of Assets",null,"(C) ABS and Struct. Sec. - Nominal Amount 149",0,null,null,null,null,null,null,null,0]
["Sch VI","Schedule of Assets",null,"(C) ABS and Struct. Sec. - Fair Value 23",0,null,null,null,null,null,null,null,0]
["Sch VI","Schedule of Assets",null,"(C) ABS and Struct. Sec. - Fair Value 42",0,null,null,null,null,null,null,null,0]
["Sch VI","Schedule of Assets",null,"(C) ABS and Struct. Sec. - Fair Value 67",0,null,null,null,null,null,null,null,0]
["Sch VI","Schedule of Assets",null,"(C) ABS and Struct. Sec. - Fair Value 86",0,null,null,null,null,null,null,null,0]
["Sch VI","Schedule of Assets",null,"(C) ABS and Struct. Sec. - Fair Value 105",0,null,null,null,null,null,null,null,0]
["Sch VI","Schedule of Assets",null,"(C) ABS and Struct. Sec. - Fair Value 111",0,null,null,null,null,null,null,null,0]
["Sch VI","Schedule of Assets",null,"(C) ABS and Struct. Sec. - Fair Value 130",0,null,null,null,null,null,null,null,0]
["Sch VI","Schedule of Assets",null,"(C) ABS and Struct. Sec. - Weighted Avg YTM 10",0,null,null,null,null,null,null,null,0]
["Sch VI","Schedule of Assets",null,"(C) ABS and Struct. Sec. - Weighted Avg YTM 25",0,null,null,null,null,null,null,null,0]
["Sch VI","Schedule of Assets",null,"(C) ABS and Struct. Sec. - Weighted Avg YTM 44",0,null,null,null,null,null,null,null,0]
["Sch VI","Schedule of Assets",null,"(C) ABS and Struct. Sec. - Weighted Avg YTM 69",0,null,null,null,null,null,null,null,0]
["Sch VI","Schedule of Assets",null,"(C) ABS and Struct. Sec. - Weighted Avg YTM 88",0,null,null,null,null,null,null,null,0]
["Sch VI","Schedule of Assets",null,"(C) ABS and Struct. Sec. - Weighted Avg YTM 107",0,null,null,null,null,null,null,null,0]
["Sch VI","Schedule of Assets",null,"(C) ABS and Struct. Sec. - Weighted Avg YTM 113",0,null,null,null,null,null,null,null,0]
["Sch VI","Schedule of Assets",null,"(C) ABS and Struct. Sec. - Weighted Avg YTM 147",0,null,null,null,null,null,null,null,0]
["Sch VI","Schedule of Assets",null,"(C) ABS and Struct. Sec. - Effective Duration 2",0,null,null,null,null,null,null,null,0]
["Sch VI","Schedule of Assets",null,"(C) ABS and Struct. Sec. - Effective Duration 27",0,null,null,null,null,null,null,null,0]
["Sch VI","Schedule of Assets",null,"(C) ABS and Struct. Sec. - Effective Duration 46",0,null,null,null,null,null,null,null,0]
["Sch VI","Schedule of Assets",null,"(C) ABS and Struct. Sec. - Effective Duration 71",0,null,null,null,null,null,null,null,0]
["Sch VI","Schedule of Assets",null,"(C) ABS and Struct. Sec. - Effective Duration 90",0,null,null,null,null,null,null,null,0]
["Sch VI","Schedule of Assets",null,"(C) ABS and Struct. Sec. - Effective Duration 109",0,null,null,null,null,null,null,null,0]
["Sch VI","Schedule of Assets",null,"(C) ABS and Struct. Sec. - Effective Duration 115",0,null,null,null,null,null,null,null,0]
["Sch VI","Schedule of Assets",null,"(C) ABS and Struct. Sec. - Effective Duration 138",0,null,null,null,null,null,null,null,0]
["Sch VI","Schedule of Assets",null,"(C) ABS and Struct. Sec. - Comments 10",0,null,null,null,null,null,null,null,0]
["Sch VI","Schedule of Assets",null,"(C) ABS and Struct. Sec. - Comments 29",0,null,null,null,null,null,null,null,0]
["Sch VI","Schedule of Assets",null,"(C) ABS and Struct. Sec. - Comments 48",0,null,null,null,null,null,null,null,0]
["Sch VI","Schedule of Assets",null,"(C) ABS and Struct. Sec. - Comments 73",0,null,null,null,null,null,null,null,0]
["Sch VI","Schedule of Assets",null,"(C) ABS and Struct. Sec. - Comments 92",0,null,null,null,null,null,null,null,0]
["Sch VI","Schedule of Assets",null,"(C) ABS and Struct. Sec. - Comments 111",0,null,null,null,null,null,null,null,0]
["Sch VI","Schedule of Assets",null,"(C) ABS and Struct. Sec. - Comments 136",0,null,null,null,null,null,null,null,0]
["Sch VI","Schedule of Assets",null,"(C) ABS and Struct. Sec. - Comments 149",0,null,null,null,null,null,null,null,0]
["Sch VI","Schedule of Assets",null,"(D) Loans - Asset Type 11","Select",null,null,null,null,null,null,null,"Select"]
["Sch VI","Schedule of Assets",null,"(D) Loans - Asset Type 30","Select",null,null,null,null,null,null,null,"Select"]
["Sch VI","Schedule of Assets",null,"(D) Loans - Asset Type 49","Select",null,null,null,null,null,null,null,"Select"]
["Sch VI","Schedule of Assets",null,"(D) Loans - Asset Type 74","Select",null,null,null,null,null,null,null,"Select"]
["Sch VI","Schedule of Assets",null,"(D) Loans - Asset Type 93","Select",null,null,null,null,null,null,null,"Select"]
["Sch VI","Schedule of Assets",null,"(D) Loans - Currency 18","Select",null,null,null,null,null,null,null,"Select"]
["Sch VI","Schedule of Assets",null,"(D) Loans - Currency 35","Select",null,null,null,null,null,null,null,"Select"]
["Sch VI","Schedule of Assets",null,"(D) Loans - Currency 57","Select",null,null,null,null,null,null,null,"Select"]
["Sch VI","Schedule of Assets",null,"(D) Loans - Currency 63","Select",null,null,null,null,null,null,null,"Select"]
["Sch VI","Schedule of Assets",null,"(D) Loans - Currency 82","Select",null,null,null,null,null,null,null,"Select"]
["Sch VI","Schedule of Assets",null,"(D) Loans - Country 1","Select",null,null,null,null,null,null,null,"Select"]
["Sch VI","Schedule of Assets",null,"(D) Loans - Country 26","Select",null,null,null,null,null,null,null,"Select"]
["Sch VI","Schedule of Assets",null,"(D) Loans - Country 45","Select",null,null,null,null,null,null,null,"Select"]
["Sch VI","Schedule of Assets",null,"(D) Loans - Country 70","Select",null,null,null,null,null,null,null,"Select"]
["Sch VI","Schedule of Assets",null,"(D) Loans - Country 76","Select",null,null,null,null,null,null,null,"Select"]
["Sch VI","Schedule of Assets",null,"(D) Loans - Rating 9","Select",null,null,null,null,null,null,null,"Select"]
["Sch VI","Schedule of Assets",null,"(D) Loans - Rating 15","Select",null,null,null,null,null,null,null,"Select"]
["Sch VI","Schedule of Assets",null,"(D) Loans - Rating 34","Select",null,null,null,null,null,null,null,"Select"]
["Sch VI","Schedule of Assets",null,"(D) Loans - Rating 53","Select",null,null,null,null,null,null,null,"Select"]
["Sch VI","Schedule of Assets",null,"(D) Loans - Rating 78","Select",null,null,null,null,null,null,null,"Select"]
["Sch VI","Schedule of Assets",null,"(D) Loans - Rating 97","Select",null,null,null,null,null,null,null,"Select"]
["Sch VI","Schedule of Assets",null,"(D) Loans - Nominal Amount 13",0,null,null,null,null,null,null,null,0]
["Sch VI","Schedule of Assets",null,"(D) Loans - Nominal Amount 42",0,null,null,null,null,null,null,null,0]
["Sch VI","Schedule of Assets",null,"(D) Loans - Nominal Amount 61",0,null,null,null,null,null,null,null,0]
["Sch VI","Schedule of Assets",null,"(D) Loans - Nominal Amount 67",0,null,null,null,null,null,null,null,0]
["Sch VI","Schedule of Assets",null,"(D) Loans - Nominal Amount 86",0,null,null,null,null,null,null,null,0]
["Sch VI","Schedule of Assets",null,"(D) Loans - Fair Value 11",0,null,null,null,null,null,null,null,0]
["Sch VI","Schedule of Assets",null,"(D) Loans - Fair Value 30",0,null,null,null,null,null,null,null,0]
["Sch VI","Schedule of Assets",null,"(D) Loans - Fair Value 49",0,null,null,null,null,null,null,null,0]
["Sch VI","Schedule of Assets",null,"(D) Loans - Fair Value 74",0,null,null,null,null,null,null,null,0]
["Sch VI","Schedule of Assets",null,"(D) Loans - Fair Value 94",0,null,null,null,null,null,null,null,0]
["Sch VI","Schedule of Assets",null,"(D) Loans - Weighted Avg YTM 13",0,null,null,null,null,null,null,null,0]
["Sch VI","Schedule of Assets",null,"(D) Loans - Weighted Avg YTM 19",0,null,null,null,null,null,null,null,0]
["Sch VI","Schedule of Assets",null,"(D) Loans - Weighted Avg YTM 38",0,null,null,null,null,null,null,null,0]
["Sch VI","Schedule of Assets",null,"(D) Loans - Weighted Avg YTM 63",0,null,null,null,null,null,null,null,0]
["Sch VI","Schedule of Assets",null,"(D) Loans - Weighted Avg YTM 82",0,null,null,null,null,null,null,null,0]
["Sch VI","Schedule of Assets",null,"(D) Loans - Effective Duration 1",0,null,null,null,null,null,null,null,0]
["Sch VI","Schedule of Assets",null,"(D) Loans - Effective Duration 15",0,null,null,null,null,null,null,null,0]
["Sch VI","Schedule of Assets",null,"(D) Loans - Effective Duration 46",0,null,null,null,null,null,null,null,0]
["Sch VI","Schedule of Assets",null,"(D) Loans - Effective Duration 65",0,null,null,null,null,null,null,null,0]
["Sch VI","Schedule of Assets",null,"(D) Loans - Effective Duration 71",0,null,null,null,null,null,null,null,0]
["Sch VI","Schedule of Assets",null,"(D) Loans - Effective Duration 90",0,null,null,null,null,null,null,null,0]
["Sch VI","Schedule of Assets",null,"(D) Loans - Comments 15",0,null,null,null,null,null,null,null,0]
["Sch VI","Schedule of Assets",null,"(D) Loans - Comments 34",0,null,null,null,null,null,null,null,0]
["Sch VI","Schedule of Assets",null,"(D) Loans - Comments 56",0,null,null,null,null,null,null,null,0]
["Sch VI","Schedule of Assets",null,"(D) Loans - Comments 79",0,null,null,null,null,null,null,null,0]
["Sch VI","Schedule of Assets",null,"(D) Loans - Comments 98",0,null,null,null,null,null,null,null,0]
["Sch VI","Schedule of Assets",null,"(D) Loans Not Perform. - Currency 2","Select",null,null,null,null,null,null,null,"Select"]
["Sch VI","Schedule of Assets",null,"(D) Loans Not Perform. - Country 1","Select",null,null,null,null,null,null,null,"Select"]
["Sch VI","Schedule of Assets",null,"(D) Loans Not Perform. - Country 20","Select",null,null,null,null,null,null,null,"Select"]
["Sch VI","Schedule of Assets",null,"(D) Loans Not Perform. - Rating 6","Select",null,null,null,null,null,null,null,"Select"]
["Sch VI","Schedule of Assets",null,"(D) Loans Not Perform. - Nominal Amount 5",0,null,null,null,null,null,null,null,0]
["Sch VI","Schedule of Assets",null,"(D) Loans Not Perform. - Fair Value 16",0,null,null,null,null,null,null,null,0]
["Sch VI","Schedule of Assets",null,"(D) Loans Not Perform. - Comment 10",0,null,null,null,null,null,null,null,0]
["Sch VI","Schedule of Assets",null,"(E) Preferred Equities - Asset Type 8","Select",null,null,null,null,null,null,null,"Select"]
["Sch VI","Schedule of Assets",null,"(E) Preferred Equities - Asset Type 33","Select",null,null,null,null,null,null,null,"Select"]
["Sch VI","Schedule of Assets",null,"(E) Preferred Equities - Asset Type 52","Select",null,null,null,null,null,null,null,"Select"]
["Sch VI","Schedule of Assets",null,"(E) Preferred Equities - Asset Type 71","Select",null,null,null,null,null,null,null,"Select"]
["Sch VI","Schedule of Assets",null,"(E) Preferred Equities - Asset Type 77","Select",null,null,null,null,null,null,null,"Select"]
["Sch VI","Schedule of Assets",null,"(E) Preferred Equities - Asset Type 92","Select",null,null,null,null,null,null,null,"Select"]
["Sch VI","Schedule of Assets",null,"(E) Preferred Equities - Currency 22","Select",null,null,null,null,null,null,null,"Select"]
["Sch VI","Schedule of Assets",null,"(E) Preferred Equities - Currency 41","Select",null,null,null,null,null,null,null,"Select"]
["Sch VI","Schedule of Assets",null,"(E) Preferred Equities - Currency 60","Select",null,null,null,null,null,null,null,"Select"]
["Sch VI","Schedule of Assets",null,"(E) Preferred Equities - Currency 85","Select",null,null,null,null,null,null,null,"Select"]
["Sch VI","Schedule of Assets",null,"(E) Preferred Equities - Rating 4","Select",null,null,null,null,null,null,null,"Select"]
["Sch VI","Schedule of Assets",null,"(E) Preferred Equities - Rating 23","Select",null,null,null,null,null,null,null,"Select"]
["Sch VI","Schedule of Assets",null,"(E) Preferred Equities - Rating 29","Select",null,null,null,null,null,null,null,"Select"]
["Sch VI","Schedule of Assets",null,"(E) Preferred Equities - Rating 53","Select",null,null,null,null,null,null,null,"Select"]
["Sch VI","Schedule of Assets",null,"(E) Preferred Equities - Rating 74","Select",null,null,null,null,null,null,null,"Select"]
["Sch VI","Schedule of Assets",null,"(E) Preferred Equities - Rating 93","Select",null,null,null,null,null,null,null,"Select"]
["Sch VI","Schedule of Assets",null,"(E) Preferred Equities - Nominal Amount 12",0,null,null,null,null,null,null,null,0]
["Sch VI","Schedule of Assets",null,"(E) Preferred Equities - Nominal Amount 37",0,null,null,null,null,null,null,null,0]
["Sch VI","Schedule of Assets",null,"(E) Preferred Equities - Nominal Amount 56",0,null,null,null,null,null,null,null,0]
["Sch VI","Schedule of Assets",null,"(E) Preferred Equities - Nominal Amount 75",0,null,null,null,null,null,null,null,0]
["Sch VI","Schedule of Assets",null,"(E) Preferred Equities - Nominal Amount 90",0,null,null,null,null,null,null,null,0]
["Sch VI","Schedule of Assets",null,"(E) Preferred Equities - Fair Value 1",0,null,null,null,null,null,null,null,0]
["Sch VI","Schedule of Assets",null,"(E) Preferred Equities - Fair Value 26",0,null,null,null,null,null,null,null,0]
["Sch VI","Schedule of Assets",null,"(E) Preferred Equities - Fair Value 45",0,null,null,null,null,null,null,null,0]
["Sch VI","Schedule of Assets",null,"(E) Preferred Equities - Fair Value 64",0,null,null,null,null,null,null,null,0]
["Sch VI","Schedule of Assets",null,"(E) Preferred Equities - Fair Value 89",0,null,null,null,null,null,null,null,0]
["Sch VI","Schedule of Assets",null,"(E) Preferred Equities - Weighted Avg YTM 8",0,null,null,null,null,null,null,null,0]
["Sch VI","Schedule of Assets",null,"(E) Preferred Equities - Weighted Avg YTM 14",0,null,null,null,null,null,null,null,0]
["Sch VI","Schedule of Assets",null,"(E) Preferred Equities - Weighted Avg YTM 51",0,null,null,null,null,null,null,null,0]
["Sch VI","Schedule of Assets",null,"(E) Preferred Equities - Weighted Avg YTM 53",0,null,null,null,null,null,null,null,0]
["Sch VI","Schedule of Assets",null,"(E) Preferred Equities - Weighted Avg YTM 78",0,null,null,null,null,null,null,null,0]
["Sch VI","Schedule of Assets",null,"(E) Preferred Equities - Weighted Avg YTM 97",0,null,null,null,null,null,null,null,0]
["Sch VI","Schedule of Assets",null,"(E) Preferred Equities - Effective Duration 16",0,null,null,null,null,null,null,null,0]
["Sch VI","Schedule of Assets",null,"(E) Preferred Equities - Effective Duration 41",0,null,null,null,null,null,null,null,0]
["Sch VI","Schedule of Assets",null,"(E) Preferred Equities - Effective Duration 60",0,null,null,null,null,null,null,null,0]
["Sch VI","Schedule of Assets",null,"(E) Preferred Equities - Effective Duration 66",0,null,null,null,null,null,null,null,0]
["Sch VI","Schedule of Assets",null,"(E) Preferred Equities - Effective Duration 92",0,null,null,null,null,null,null,null,0]
["Sch VI","Schedule of Assets",null,"(E) Preferred Equities - Comments 5",0,null,null,null,null,null,null,null,0]
["Sch VI","Schedule of Assets",null,"(E) Preferred Equities - Comments 30",0,null,null,null,null,null,null,null,0]
["Sch VI","Schedule of Assets",null,"(E) Preferred Equities - Comments 49",0,null,null,null,null,null,null,null,0]
["Sch VI","Schedule of Assets",null,"(E) Preferred Equities - Comments 68",0,null,null,null,null,null,null,null,0]
["Sch VI","Schedule of Assets",null,"(E) Preferred Equities - Comments 93",0,null,null,null,null,null,null,null,0]
["Sch VI","Schedule of Assets",null,"(F) Common Equities - Asset Type 11","Select",null,null,null,null,null,null,null,"Select"]
["Sch VI","Schedule of Assets",null,"(F) Common Equities - Asset Type 28","Select",null,null,null,null,null,null,null,"Select"]
["Sch VI","Schedule of Assets",null,"(F) Common Equities - Asset Type 56","Select",null,null,null,null,null,null,null,"Select"]
["Sch VI","Schedule of Assets",null,"(F) Common Equities - Asset Type 75","Select",null,null,null,null,null,null,null,"Select"]
["Sch VI","Schedule of Assets",null,"(F) Common Equities - Asset Type 81","Select",null,null,null,null,null,null,null,"Select"]
["Sch VI","Schedule of Assets",null,"(F) Common Equities - Asset Type 100","Select",null,null,null,null,null,null,null,"Select"]
["Sch VI","Schedule of Assets",null,"(F) Common Equities - Currency 25","Select",null,null,null,null,null,null,null,"Select"]
["Sch VI","Schedule of Assets",null,"(F) Common Equities - Currency 44","Select",null,null,null,null,null,null,null,"Select"]
["Sch VI","Schedule of Assets",null,"(F) Common Equities - Currency 63","Select",null,null,null,null,null,null,null,"Select"]
["Sch VI","Schedule of Assets",null,"(F) Common Equities - Currency 89","Select",null,null,null,null,null,null,null,"Select"]
["Sch VI","Schedule of Assets",null,"(F) Common Equities - Country 8","Select",null,null,null,null,null,null,null,"Select"]
["Sch VI","Schedule of Assets",null,"(F) Common Equities - Country 27","Select",null,null,null,null,null,null,null,"Select"]
["Sch VI","Schedule of Assets",null,"(F) Common Equities - Country 33","Select",null,null,null,null,null,null,null,"Select"]
["Sch VI","Schedule of Assets",null,"(F) Common Equities - Country 52","Select",null,null,null,null,null,null,null,"Select"]
["Sch VI","Schedule of Assets",null,"(F) Common Equities - Country 77","Select",null,null,null,null,null,null,null,"Select"]
["Sch VI","Schedule of Assets",null,"(F) Common Equities - Country 96","Select",null,null,null,null,null,null,null,"Select"]
["Sch VI","Schedule of Assets",null,"(F) Common Equities - Fair Value 10",0,null,null,null,null,null,null,null,0]
["Sch VI","Schedule of Assets",null,"(F) Common Equities - Fair Value 41",0,null,null,null,null,null,null,null,0]
["Sch VI","Schedule of Assets",null,"(F) Common Equities - Fair Value 60",0,null,null,null,null,null,null,null,0]
["Sch VI","Schedule of Assets",null,"(F) Common Equities - Fair Value 66",0,null,null,null,null,null,null,null,0]
["Sch VI","Schedule of Assets",null,"(F) Common Equities - Fair Value 85",0,null,null,null,null,null,null,null,0]
["Sch VI","Schedule of Assets",null,"(F) Common Equities - Comments 4",0,null,null,null,null,null,null,null,0]
["Sch VI","Schedule of Assets",null,"(F) Common Equities - Comments 29",0,null,null,null,null,null,null,null,0]
["Sch VI","Schedule of Assets",null,"(F) Common Equities - Comments 48",0,null,null,null,null,null,null,null,0]
["Sch VI","Schedule of Assets",null,"(F) Common Equities - Comments 71",0,null,null,null,null,null,null,null,0]
["Sch VI","Schedule of Assets",null,"(F) Common Equities - Comments 93",0,null,null,null,null,null,null,null,0]
["Sch VI","Schedule of Assets",null,"(G) Real Estate - Asset Type 11","Select",null,null,null,null,null,null,null,"Select"]
["Sch VI","Schedule of Assets",null,"(G) Real Estate - Asset Type 17","Select",null,null,null,null,null,null,null,"Select"]
["Sch VI","Schedule of Assets",null,"(G) Real Estate - Asset Type 36","Select",null,null,null,null,null,null,null,"Select"]
["Sch VI","Schedule of Assets",null,"(G) Real Estate - Asset Type 55","Select",null,null,null,null,null,null,null,"Select"]
["Sch VI","Schedule of Assets",null,"(G) Real Estate - Asset Type 80","Select",null,null,null,null,null,null,null,"Select"]
["Sch VI","Schedule of Assets",null,"(G) Real Estate - Currency 7","Select",null,null,null,null,null,null,null,"Select"]
["Sch VI","Schedule of Assets",null,"(G) Real Estate - Currency 19","Select",null,null,null,null,null,null,null,"Select"]
["Sch VI","Schedule of Assets",null,"(G) Real Estate - Currency 44","Select",null,null,null,null,null,null,null,"Select"]
["Sch VI","Schedule of Assets",null,"(G) Real Estate - Currency 63","Select",null,null,null,null,null,null,null,"Select"]
["Sch VI","Schedule of Assets",null,"(G) Real Estate - Currency 69","Select",null,null,null,null,null,null,null,"Select"]
["Sch VI","Schedule of Assets",null,"(G) Real Estate - Currency 88","Select",null,null,null,null,null,null,null,"Select"]
["Sch VI","Schedule of Assets",null,"(G) Real Estate - Country 7","Select",null,null,null,null,null,null,null,"Select"]
["Sch VI","Schedule of Assets",null,"(G) Real Estate - Country 32","Select",null,null,null,null,null,null,null,"Select"]
["Sch VI","Schedule of Assets",null,"(G) Real Estate - Country 48","Select",null,null,null,null,null,null,null,"Select"]
["Sch VI","Schedule of Assets",null,"(G) Real Estate - Country 77","Select",null,null,null,null,null,null,null,"Select"]
["Sch VI","Schedule of Assets",null,"(G) Real Estate - Country 96","Select",null,null,null,null,null,null,null,"Select"]
["Sch VI","Schedule of Assets",null,"(G) Real Estate - Purpose 15","Select",null,null,null,null,null,null,null,"Select"]
["Sch VI","Schedule of Assets",null,"(G) Real Estate - Purpose 21","Select",null,null,null,null,null,null,null,"Select"]
["Sch VI","Schedule of Assets",null,"(G) Real Estate - Purpose 40","Select",null,null,null,null,null,null,null,"Select"]
["Sch VI","Schedule of Assets",null,"(G) Real Estate - Purpose 59","Select",null,null,null,null,null,null,null,"Select"]
["Sch VI","Schedule of Assets",null,"(G) Real Estate - Purpose 84","Select",null,null,null,null,null,null,null,"Select"]
["Sch VI","Schedule of Assets",null,"(G) Real Estate - Cost 9",0,null,null,null,null,null,null,null,0]
["Sch VI","Schedule of Assets",null,"(G) Real Estate - Cost 29",0,null,null,null,null,null,null,null,0]
["Sch VI","Schedule of Assets",null,"(G) Real Estate - Cost 48",0,null,null,null,null,null,null,null,0]
["Sch VI","Schedule of Assets",null,"(G) Real Estate - Cost 67",0,null,null,null,null,null,null,null,0]
["Sch VI","Schedule of Assets",null,"(G) Real Estate - Cost 92",0,null,null,null,null,null,null,null,0]
["Sch VI","Schedule of Assets",null,"(G) Real Estate - Fair Value 11",0,null,null,null,null,null,null,null,0]
["Sch VI","Schedule of Assets",null,"(G) Real Estate - Fair Value 17",0,null,null,null,null,null,null,null,0]
["Sch VI","Schedule of Assets",null,"(G) Real Estate - Fair Value 46",0,null,null,null,null,null,null,null,0]
["Sch VI","Schedule of Assets",null,"(G) Real Estate - Fair Value 56",0,null,null,null,null,null,null,null,0]
["Sch VI","Schedule of Assets",null,"(G) Real Estate - Fair Value 81",0,null,null,null,null,null,null,null,0]
["Sch VI","Schedule of Assets",null,"(G) Real Estate - Fair Value 100",0,null,null,null,null,null,null,null,0]
["Sch VI","Schedule of Assets",null,"(G) Real Estate - Comments 19",0,null,null,null,null,null,null,null,0]
["Sch VI","Schedule of Assets",null,"(G) Real Estate - Comments 44",0,null,null,null,null,null,null,null,0]
["Sch VI","Schedule of Assets",null,"(G) Real Estate - Comments 63",0,null,null,null,null,null,null,null,0]
["Sch VI","Schedule of Assets",null,"(G) Real Estate - Comments 69",0,null,null,null,null,null,null,null,0]
["Sch VI","Schedule of Assets",null,"(G) Real Estate - Comments 87",0,null,null,null,null,null,null,null,0]
["Sch VI","Schedule of Assets",null,"(H) Other Alt. Inv. - Asset Type 7","Select",null,null,null,null,null,null,null,"Select"]
["Sch VI","Schedule of Assets",null,"(H) Other Alt. Inv. - Asset Type 32","Select",null,null,null,null,null,null,null,"Select"]
["Sch VI","Schedule of Assets",null,"(H) Other Alt. Inv. - Asset Type 51","Select",null,null,null,null,null,null,null,"Select"]
["Sch VI","Schedule of Assets",null,"(H) Other Alt. Inv. - Asset Type 70","Select",null,null,null,null,null,null,null,"Select"]
["Sch VI","Schedule of Assets",null,"(H) Other Alt. Inv. - Asset Type 95","Select",null,null,null,null,null,null,null,"Select"]
["Sch VI","Schedule of Assets",null,"(H) Other Alt. Inv. - Currency 14","Select",null,null,null,null,null,null,null,"Select"]
["Sch VI","Schedule of Assets",null,"(H) Other Alt. Inv. - Currency 23","Select",null,null,null,null,null,null,null,"Select"]
["Sch VI","Schedule of Assets",null,"(H) Other Alt. Inv. - Currency 40","Select",null,null,null,null,null,null,null,"Select"]
["Sch VI","Schedule of Assets",null,"(H) Other Alt. Inv. - Currency 59","Select",null,null,null,null,null,null,null,"Select"]
["Sch VI","Schedule of Assets",null,"(H) Other Alt. Inv. - Currency 84","Select",null,null,null,null,null,null,null,"Select"]
["Sch VI","Schedule of Assets",null,"(H) Other Alt. Inv. - Country 3","Select",null,null,null,null,null,null,null,"Select"]
["Sch VI","Schedule of Assets",null,"(H) Other Alt. Inv. - Country 28","Select",null,null,null,null,null,null,null,"Select"]
["Sch VI","Schedule of Assets",null,"(H) Other Alt. Inv. - Country 47","Select",null,null,null,null,null,null,null,"Select"]
["Sch VI","Schedule of Assets",null,"(H) Other Alt. Inv. - Country 66","Select",null,null,null,null,null,null,null,"Select"]
["Sch VI","Schedule of Assets",null,"(H) Other Alt. Inv. - Country 84","Select",null,null,null,null,null,null,null,"Select"]
["Sch VI","Schedule of Assets",null,"(H) Other Alt. Inv. - Country 92","Select",null,null,null,null,null,null,null,"Select"]
["Sch VI","Schedule of Assets",null,"(H) Other Alt. Inv. - Rating 11","Select",null,null,null,null,null,null,null,"Select"]
["Sch VI","Schedule of Assets",null,"(H) Other Alt. Inv. - Rating 36","Select",null,null,null,null,null,null,null,"Select"]
["Sch VI","Schedule of Assets",null,"(H) Other Alt. Inv. - Rating 55","Select",null,null,null,null,null,null,null,"Select"]
["Sch VI","Schedule of Assets",null,"(H) Other Alt. Inv. - Rating 80","Select",null,null,null,null,null,null,null,"Select"]
["Sch VI","Schedule of Assets",null,"(H) Other Alt. Inv. - Rating 99","Select",null,null,null,null,null,null,null,"Select"]
["Sch VI","Schedule of Assets",null,"(H) Other Alt. Inv. - Nominal Amount 5",0,null,null,null,null,null,null,null,0]
["Sch VI","Schedule of Assets",null,"(H) Other Alt. Inv. - Nominal Amount 25",0,null,null,null,null,null,null,null,0]
["Sch VI","Schedule of Assets",null,"(H) Other Alt. Inv. - Nominal Amount 44",0,null,null,null,null,null,null,null,0]
["Sch VI","Schedule of Assets",null,"(H) Other Alt. Inv. - Nominal Amount 63",0,null,null,null,null,null,null,null,0]
["Sch VI","Schedule of Assets",null,"(H) Other Alt. Inv. - Nominal Amount 88",0,null,null,null,null,null,null,null,0]
["Sch VI","Schedule of Assets",null,"(H) Other Alt. Inv. - Fair Value 7",0,null,null,null,null,null,null,null,0]
["Sch VI","Schedule of Assets",null,"(H) Other Alt. Inv. - Fair Value 32",0,null,null,null,null,null,null,null,0]
["Sch VI","Schedule of Assets",null,"(H) Other Alt. Inv. - Fair Value 51",0,null,null,null,null,null,null,null,0]
["Sch VI","Schedule of Assets",null,"(H) Other Alt. Inv. - Fair Value 66",0,null,null,null,null,null,null,null,0]
["Sch VI","Schedule of Assets",null,"(H) Other Alt. Inv. - Fair Value 77",0,null,null,null,null,null,null,null,0]
["Sch VI","Schedule of Assets",null,"(H) Other Alt. Inv. - Fair Value 96",0,null,null,null,null,null,null,null,0]
["Sch VI","Schedule of Assets",null,"(H) Other Alt. Inv. - Weighted Avg YTM 21",0,null,null,null,null,null,null,null,0]
["Sch VI","Schedule of Assets",null,"(H) Other Alt. Inv. - Weighted Avg YTM 40",0,null,null,null,null,null,null,null,0]
["Sch VI","Schedule of Assets",null,"(H) Other Alt. Inv. - Weighted Avg YTM 59",0,null,null,null,null,null,null,null,0]
["Sch VI","Schedule of Assets",null,"(H) Other Alt. Inv. - Weighted Avg YTM 84",0,null,null,null,null,null,null,null,0]
["Sch VI","Schedule of Assets",null,"(H) Other Alt. Inv. - Effective Duration 3",0,null,null,null,null,null,null,null,0]
["Sch VI","Schedule of Assets",null,"(H) Other Alt. Inv. - Effective Duration 27",0,null,null,null,null,null,null,null,0]
["Sch VI","Schedule of Assets",null,"(H) Other Alt. Inv. - Effective Duration 48",0,null,null,null,null,null,null,null,0]
["Sch VI","Schedule of Assets",null,"(H) Other Alt. Inv. - Effective Duration 67",0,null,null,null,null,null,null,null,0]
["Sch VI","Schedule of Assets",null,"(H) Other Alt. Inv. - Effective Duration 73",0,null,null,null,null,null,null,null,0]
["Sch VI","Schedule of Assets",null,"(H) Other Alt. Inv. - Effective Duration 92",0,null,null,null,null,null,null,null,0]
["Sch VI","Schedule of Assets",null,"(H) Other Alt. Inv. - Comments 11",0,null,null,null,null,null,null,null,0]
["Sch VI","Schedule of Assets",null,"(H) Other Alt. Inv. - Comments 36",0,null,null,null,null,null,null,null,0]
["Sch VI","Schedule of Assets",null,"(H) Other Alt. Inv. - Comments 44",0,null,null,null,null,null,null,null,0]
["Sch VI","Schedule of Assets",null,"(H) Other Alt. Inv. - Comments 81",0,null,null,null,null,null,null,null,0]
["Sch VI","Schedule of Assets",null,"(H) Other Alt. Inv. - Comments 100",0,null,null,null,null,null,null,null,0]
["Sch VI","Schedule of Assets",null,"(I) Derivatives - Derivative Type 18","Select",null,null,null,null,null,null,null,"Select"]
["Sch VI","Schedule of Assets",null,"(I) Derivatives - Derivative Type 24","Select",null,null,null,null,null,null,null,"Select"]
["Sch VI","Schedule of Assets",null,"(I) Derivatives - Derivative Type 43","Select",null,null,null,null,null,null,null,"Select"]
["Sch VI","Schedule of Assets",null,"(I) Derivatives - Derivative Type 62","Select",null,null,null,null,null,null,null,"Select"]
["Sch VI","Schedule of Assets",null,"(I) Derivatives - Derivative Type 87","Select",null,null,null,null,null,null,null,"Select"]
["Sch VI","Schedule of Assets",null,"(I) Derivatives - Derivative Type 104","Select",null,null,null,null,null,null,null,"Select"]
["Sch VI","Schedule of Assets",null,"(I) Derivatives - Derivative Type 132","Select",null,null,null,null,null,null,null,"Select"]
["Sch VI","Schedule of Assets",null,"(I) Derivatives - Derivative Type 151","Select",null,null,null,null,null,null,null,"Select"]
["Sch VI","Schedule of Assets",null,"(I) Derivatives - Derivative Type 170","Select",null,null,null,null,null,null,null,"Select"]
["Sch VI","Schedule of Assets",null,"(I) Derivatives - Derivative Type 176","Select",null,null,null,null,null,null,null,"Select"]
["Sch VI","Schedule of Assets",null,"(I) Derivatives - Derivative Type 195","Select",null,null,null,null,null,null,null,"Select"]
["Sch VI","Schedule of Assets",null,"(I) Derivatives - Underlying 14","Select",null,null,null,null,null,null,null,"Select"]
["Sch VI","Schedule of Assets",null,"(I) Derivatives - Underlying 41","Select",null,null,null,null,null,null,null,"Select"]
["Sch VI","Schedule of Assets",null,"(I) Derivatives - Underlying 59","Select",null,null,null,null,null,null,null,"Select"]
["Sch VI","Schedule of Assets",null,"(I) Derivatives - Underlying 84","Select",null,null,null,null,null,null,null,"Select"]
["Sch VI","Schedule of Assets",null,"(I) Derivatives - Underlying 103","Select",null,null,null,null,null,null,null,"Select"]
["Sch VI","Schedule of Assets",null,"(I) Derivatives - Underlying 122","Select",null,null,null,null,null,null,null,"Select"]
["Sch VI","Schedule of Assets",null,"(I) Derivatives - Underlying 128","Select",null,null,null,null,null,null,null,"Select"]
["Sch VI","Schedule of Assets",null,"(I) Derivatives - Underlying 147","Select",null,null,null,null,null,null,null,"Select"]
["Sch VI","Schedule of Assets",null,"(I) Derivatives - Underlying 172","Select",null,null,null,null,null,null,null,"Select"]
["Sch VI","Schedule of Assets",null,"(I) Derivatives - Currency 2","Select",null,null,null,null,null,null,null,"Select"]
["Sch VI","Schedule of Assets",null,"(I) Derivatives - Currency 11","Select",null,null,null,null,null,null,null,"Select"]
["Sch VI","Schedule of Assets",null,"(I) Derivatives - Currency 36","Select",null,null,null,null,null,null,null,"Select"]
["Sch VI","Schedule of Assets",null,"(I) Derivatives - Currency 55","Select",null,null,null,null,null,null,null,"Select"]
["Sch VI","Schedule of Assets",null,"(I) Derivatives - Currency 74","Select",null,null,null,null,null,null,null,"Select"]
["Sch VI","Schedule of Assets",null,"(I) Derivatives - Currency 80","Select",null,null,null,null,null,null,null,"Select"]
["Sch VI","Schedule of Assets",null,"(I) Derivatives - Currency 99","Select",null,null,null,null,null,null,null,"Select"]
["Sch VI","Schedule of Assets",null,"(I) Derivatives - Currency 119","Select",null,null,null,null,null,null,null,"Select"]
["Sch VI","Schedule of Assets",null,"(I) Derivatives - Currency 144","Select",null,null,null,null,null,null,null,"Select"]
["Sch VI","Schedule of Assets",null,"(I) Derivatives - Currency 163","Select",null,null,null,null,null,null,null,"Select"]
["Sch VI","Schedule of Assets",null,"(I) Derivatives - Currency 188","Select",null,null,null,null,null,null,null,"Select"]
["Sch VI","Schedule of Assets",null,"(I) Derivatives - Trading Category 7","Select",null,null,null,null,null,null,null,"Select"]
["Sch VI","Schedule of Assets",null,"(I) Derivatives - Trading Category 13","Select",null,null,null,null,null,null,null,"Select"]
["Sch VI","Schedule of Assets",null,"(I) Derivatives - Trading Category 32","Select",null,null,null,null,null,null,null,"Select"]
["Sch VI","Schedule of Assets",null,"(I) Derivatives - Trading Category 51","Select",null,null,null,null,null,null,null,"Select"]
["Sch VI","Schedule of Assets",null,"(I) Derivatives - Trading Category 80","Select",null,null,null,null,null,null,null,"Select"]
["Sch VI","Schedule of Assets",null,"(I) Derivatives - Trading Category 96","Select",null,null,null,null,null,null,null,"Select"]
["Sch VI","Schedule of Assets",null,"(I) Derivatives - Trading Category 115","Select",null,null,null,null,null,null,null,"Select"]
["Sch VI","Schedule of Assets",null,"(I) Derivatives - Trading Category 140","Select",null,null,null,null,null,null,null,"Select"]
["Sch VI","Schedule of Assets",null,"(I) Derivatives - Trading Category 159","Select",null,null,null,null,null,null,null,"Select"]
["Sch VI","Schedule of Assets",null,"(I) Derivatives - Trading Category 184","Select",null,null,null,null,null,null,null,"Select"]
["Sch VI","Schedule of Assets",null,"(I) Derivatives - Purpose 3","Select",null,null,null,null,null,null,null,"Select"]
["Sch VI","Schedule of Assets",null,"(I) Derivatives - Purpose 22","Select",null,null,null,null,null,null,null,"Select"]
["Sch VI","Schedule of Assets",null,"(I) Derivatives - Purpose 41","Select",null,null,null,null,null,null,null,"Select"]
["Sch VI","Schedule of Assets",null,"(I) Derivatives - Purpose 48","Select",null,null,null,null,null,null,null,"Select"]
["Sch VI","Schedule of Assets",null,"(I) Derivatives - Purpose 67","Select",null,null,null,null,null,null,null,"Select"]
["Sch VI","Schedule of Assets",null,"(I) Derivatives - Purpose 92","Select",null,null,null,null,null,null,null,"Select"]
["Sch VI","Schedule of Assets",null,"(I) Derivatives - Purpose 111","Select",null,null,null,null,null,null,null,"Select"]
["Sch VI","Schedule of Assets",null,"(I) Derivatives - Purpose 136","Select",null,null,null,null,null,null,null,"Select"]
["Sch VI","Schedule of Assets",null,"(I) Derivatives - Purpose 155","Select",null,null,null,null,null,null,null,"Select"]
["Sch VI","Schedule of Assets",null,"(I) Derivatives - Purpose 162","Select",null,null,null,null,null,null,null,"Select"]
["Sch VI","Schedule of Assets",null,"(I) Derivatives - Purpose 181","Select",null,null,null,null,null,null,null,"Select"]
["Sch VI","Schedule of Assets",null,"(I) Derivatives - Purpose 200","Select",null,null,null,null,null,null,null,"Select"]
["Sch VI","Schedule of Assets",null,"(I) Derivatives - Position 25","Select",null,null,null,null,null,null,null,"Select"]
["Sch VI","Schedule of Assets",null,"(I) Derivatives - Position 44","Select",null,null,null,null,null,null,null,"Select"]
["Sch VI","Schedule of Assets",null,"(I) Derivatives - Position 63","Select",null,null,null,null,null,null,null,"Select"]
["Sch VI","Schedule of Assets",null,"(I) Derivatives - Position 88","Select",null,null,null,null,null,null,null,"Select"]
["Sch VI","Schedule of Assets",null,"(I) Derivatives - Position 107","Select",null,null,null,null,null,null,null,"Select"]
["Sch VI","Schedule of Assets",null,"(I) Derivatives - Position 123","Select",null,null,null,null,null,null,null,"Select"]
["Sch VI","Schedule of Assets",null,"(I) Derivatives - Position 133","Select",null,null,null,null,null,null,null,"Select"]
["Sch VI","Schedule of Assets",null,"(I) Derivatives - Position 152","Select",null,null,null,null,null,null,null,"Select"]
["Sch VI","Schedule of Assets",null,"(I) Derivatives - Position 177","Select",null,null,null,null,null,null,null,"Select"]
["Sch VI","Schedule of Assets",null,"(I) Derivatives - Position 196","Select",null,null,null,null,null,null,null,"Select"]
["Sch VI","Schedule of Assets",null,"(I) Derivatives - Pos./Neg. - 15","Select",null,null,null,null,null,null,null,"Select"]
["Sch VI","Schedule of Assets",null,"(I) Derivatives - Pos./Neg. - 40","Select",null,null,null,null,null,null,null,"Select"]
["Sch VI","Schedule of Assets",null,"(I) Derivatives - Pos./Neg. - 60","Select",null,null,null,null,null,null,null,"Select"]
["Sch VI","Schedule of Assets",null,"(I) Derivatives - Pos./Neg. - 79","Select",null,null,null,null,null,null,null,"Select"]
["Sch VI","Schedule of Assets",null,"(I) Derivatives - Pos./Neg. - 85","Select",null,null,null,null,null,null,null,"Select"]
["Sch VI","Schedule of Assets",null,"(I) Derivatives - Pos./Neg. - 104","Select",null,null,null,null,null,null,null,"Select"]
["Sch VI","Schedule of Assets",null,"(I) Derivatives - Pos./Neg. - 129","Select",null,null,null,null,null,null,null,"Select"]
["Sch VI","Schedule of Assets",null,"(I) Derivatives - Pos./Neg. - 148","Select",null,null,null,null,null,null,null,"Select"]
["Sch VI","Schedule of Assets",null,"(I) Derivatives - Pos./Neg. - 167","Select",null,null,null,null,null,null,null,"Select"]
["Sch VI","Schedule of Assets",null,"(I) Derivatives - Pos./Neg. - 192","Select",null,null,null,null,null,null,null,"Select"]
["Sch VI","Schedule of Assets",null,"(I) Derivatives - Market Value 1",0,null,null,null,null,null,null,null,0]
["Sch VI","Schedule of Assets",null,"(I) Derivatives - Market Value 18",0,null,null,null,null,null,null,null,0]
["Sch VI","Schedule of Assets",null,"(I) Derivatives - Market Value 37",0,null,null,null,null,null,null,null,0]
["Sch VI","Schedule of Assets",null,"(I) Derivatives - Market Value 56",0,null,null,null,null,null,null,null,0]
["Sch VI","Schedule of Assets",null,"(I) Derivatives - Market Value 81",0,null,null,null,null,null,null,null,0]
["Sch VI","Schedule of Assets",null,"(I) Derivatives - Market Value 100",0,null,null,null,null,null,null,null,0]
["Sch VI","Schedule of Assets",null,"(I) Derivatives - Market Value 119",0,null,null,null,null,null,null,null,0]
["Sch VI","Schedule of Assets",null,"(I) Derivatives - Market Value 144",0,null,null,null,null,null,null,null,0]
["Sch VI","Schedule of Assets",null,"(I) Derivatives - Market Value 162",0,null,null,null,null,null,null,null,0]
["Sch VI","Schedule of Assets",null,"(I) Derivatives - Market Value 170",0,null,null,null,null,null,null,null,0]
["Sch VI","Schedule of Assets",null,"(I) Derivatives - Market Value 189",0,null,null,null,null,null,null,null,0]
["Sch VI","Schedule of Assets",null,"(I) Derivatives - Gross Notional Value 8",0,null,null,null,null,null,null,null,0]
["Sch VI","Schedule of Assets",null,"(I) Derivatives - Gross Notional Value 33",0,null,null,null,null,null,null,null,0]
["Sch VI","Schedule of Assets",null,"(I) Derivatives - Gross Notional Value 52",0,null,null,null,null,null,null,null,0]
["Sch VI","Schedule of Assets",null,"(I) Derivatives - Gross Notional Value 77",0,null,null,null,null,null,null,null,0]
["Sch VI","Schedule of Assets",null,"(I) Derivatives - Gross Notional Value 99",0,null,null,null,null,null,null,null,0]
["Sch VI","Schedule of Assets",null,"(I) Derivatives - Gross Notional Value 116",0,null,null,null,null,null,null,null,0]
["Sch VI","Schedule of Assets",null,"(I) Derivatives - Gross Notional Value 141",0,null,null,null,null,null,null,null,0]
["Sch VI","Schedule of Assets",null,"(I) Derivatives - Gross Notional Value 160",0,null,null,null,null,null,null,null,0]
["Sch VI","Schedule of Assets",null,"(I) Derivatives - Gross Notional Value 179",0,null,null,null,null,null,null,null,0]
["Sch VI","Schedule of Assets",null,"(I) Derivatives - Gross Notional Value 185",0,null,null,null,null,null,null,null,0]
["Sch VI","Schedule of Assets",null,"(I) Derivatives - Net Notional Value 4",0,null,null,null,null,null,null,null,0]
["Sch VI","Schedule of Assets",null,"(I) Derivatives - Net Notional Value 29",0,null,null,null,null,null,null,null,0]
["Sch VI","Schedule of Assets",null,"(I) Derivatives - Net Notional Value 40",0,null,null,null,null,null,null,null,0]
["Sch VI","Schedule of Assets",null,"(I) Derivatives - Net Notional Value 68",0,null,null,null,null,null,null,null,0]
["Sch VI","Schedule of Assets",null,"(I) Derivatives - Net Notional Value 93",0,null,null,null,null,null,null,null,0]
["Sch VI","Schedule of Assets",null,"(I) Derivatives - Net Notional Value 112",0,null,null,null,null,null,null,null,0]
["Sch VI","Schedule of Assets",null,"(I) Derivatives - Net Notional Value 131",0,null,null,null,null,null,null,null,0]
["Sch VI","Schedule of Assets",null,"(I) Derivatives - Net Notional Value 137",0,null,null,null,null,null,null,null,0]
["Sch VI","Schedule of Assets",null,"(I) Derivatives - Net Notional Value 156",0,null,null,null,null,null,null,null,0]
["Sch VI","Schedule of Assets",null,"(I) Derivatives - Net Notional Value 177",0,null,null,null,null,null,null,null,0]
["Sch VI","Schedule of Assets",null,"(I) Derivatives - Exposure 1",0,null,null,null,null,null,null,null,0]
["Sch VI","Schedule of Assets",null,"(I) Derivatives - Exposure 20",0,null,null,null,null,null,null,null,0]
["Sch VI","Schedule of Assets",null,"(I) Derivatives - Exposure 45",0,null,null,null,null,null,null,null,0]
["Sch VI","Schedule of Assets",null,"(I) Derivatives - Exposure 64",0,null,null,null,null,null,null,null,0]
["Sch VI","Schedule of Assets",null,"(I) Derivatives - Exposure 70",0,null,null,null,null,null,null,null,0]
["Sch VI","Schedule of Assets",null,"(I) Derivatives - Exposure 89",0,null,null,null,null,null,null,null,0]
["Sch VI","Schedule of Assets",null,"(I) Derivatives - Exposure 108",0,null,null,null,null,null,null,null,0]
["Sch VI","Schedule of Assets",null,"(I) Derivatives - Exposure 138",0,null,null,null,null,null,null,null,0]
["Sch VI","Schedule of Assets",null,"(I) Derivatives - Exposure 153",0,null,null,null,null,null,null,null,0]
["Sch VI","Schedule of Assets",null,"(I) Derivatives - Exposure 172",0,null,null,null,null,null,null,null,0]
["Sch VI","Schedule of Assets",null,"(I) Derivatives - Exposure 197",0,null,null,null,null,null,null,null,0]
["Sch VI","Schedule of Assets",null,"(I) Derivatives - Comments 16",0,null,null,null,null,null,null,null,0]
["Sch VI","Schedule of Assets",null,"(I) Derivatives - Comments 22",0,null,null,null,null,null,null,null,0]
["Sch VI","Schedule of Assets",null,"(I) Derivatives - Comments 41",0,null,null,null,null,null,null,null,0]
["Sch VI","Schedule of Assets",null,"(I) Derivatives - Comments 59",0,null,null,null,null,null,null,null,0]
["Sch VI","Schedule of Assets",null,"(I) Derivatives - Comments 86",0,null,null,null,null,null,null,null,0]
["Sch VI","Schedule of Assets",null,"(I) Derivatives - Comments 105",0,null,null,null,null,null,null,null,0]
["Sch VI","Schedule of Assets",null,"(I) Derivatives - Comments 124",0,null,null,null,null,null,null,null,0]
["Sch VI","Schedule of Assets",null,"(I) Derivatives - Comments 149",0,null,null,null,null,null,null,null,0]
["Sch VI","Schedule of Assets",null,"(I) Derivatives - Comments 168",0,null,null,null,null,null,null,null,0]
["Sch VI","Schedule of Assets",null,"(I) Derivatives - Comments 174",0,null,null,null,null,null,null,null,0]
["Sch VI","Schedule of Assets",null,"(I) Derivatives - Comments 193",0,null,null,null,null,null,null,null,0]
["Sch VI","Schedule of Assets",null,"(J) Fin. Inst. Rating 8 - Securitization",0,null,null,null,null,null,null,null,0]
["Sch VI","Schedule of Assets",null,"(J) Fin. Inst. Banks - Other",0,null,null,null,null,null,null,null,0]
["Sch VI","Schedule of Assets",null,"(J) Unlisted Counterparty Rating 4 - Other",0,null,null,null,null,null,null,null,0]
["Sch VI","Schedule of Assets",null,"(K) Other Assets - Asset Type 18","Select",null,null,null,null,null,null,null,"Select"]
["Sch VI","Schedule of Assets",null,"(K) Other Assets - Asset Type 37","Select",null,null,null,null,null,null,null,"Select"]
["Sch VI","Schedule of Assets",null,"(K) Other Assets - Asset Type 56","Select",null,null,null,null,null,null,null,"Select"]
["Sch VI","Schedule of Assets",null,"(K) Other Assets - Asset Type 62","Select",null,null,null,null,null,null,null,"Select"]
["Sch VI","Schedule of Assets",null,"(K) Other Assets - Asset Type 81","Select",null,null,null,null,null,null,null,"Select"]
["Sch VI","Schedule of Assets",null,"(K) Other Assets - Asset Type 117","Select",null,null,null,null,null,null,null,"Select"]
["Sch VI","Schedule of Assets",null,"(K) Other Assets - Asset Type 126","Select",null,null,null,null,null,null,null,"Select"]
["Sch VI","Schedule of Assets",null,"(K) Other Assets - Asset Type 145","Select",null,null,null,null,null,null,null,"Select"]
["Sch VI","Schedule of Assets",null,"(K) Other Assets - Asset Type 170","Select",null,null,null,null,null,null,null,"Select"]
["Sch VI","Schedule of Assets",null,"(K) Other Assets - Asset Type 189","Select",null,null,null,null,null,null,null,"Select"]
["Sch VI","Schedule of Assets",null,"(K) Other Assets - Currency 8","Select",null,null,null,null,null,null,null,"Select"]
["Sch VI","Schedule of Assets",null,"(K) Other Assets - Currency 33","Select",null,null,null,null,null,null,null,"Select"]
["Sch VI","Schedule of Assets",null,"(K) Other Assets - Currency 34","Select",null,null,null,null,null,null,null,"Select"]
["Sch VI","Schedule of Assets",null,"(K) Other Assets - Currency 59","Select",null,null,null,null,null,null,null,"Select"]
["Sch VI","Schedule of Assets",null,"(K) Other Assets - Currency 78","Select",null,null,null,null,null,null,null,"Select"]
["Sch VI","Schedule of Assets",null,"(K) Other Assets - Currency 97","Select",null,null,null,null,null,null,null,"Select"]
["Sch VI","Schedule of Assets",null,"(K) Other Assets - Currency 122","Select",null,null,null,null,null,null,null,"Select"]
["Sch VI","Schedule of Assets",null,"(K) Other Assets - Currency 141","Select",null,null,null,null,null,null,null,"Select"]
["Sch VI","Schedule of Assets",null,"(K) Other Assets - Currency 160","Select",null,null,null,null,null,null,null,"Select"]
["Sch VI","Schedule of Assets",null,"(K) Other Assets - Currency 185","Select",null,null,null,null,null,null,null,"Select"]
["Sch VI","Schedule of Assets",null,"(K) Other Assets - Currency 195","Select",null,null,null,null,null,null,null,"Select"]
["Sch VI","Schedule of Assets",null,"(K) Other Assets - Rating 11","Select",null,null,null,null,null,null,null,"Select"]
["Sch VI","Schedule of Assets",null,"(K) Other Assets - Rating 30","Select",null,null,null,null,null,null,null,"Select"]
["Sch VI","Schedule of Assets",null,"(K) Other Assets - Rating 49","Select",null,null,null,null,null,null,null,"Select"]
["Sch VI","Schedule of Assets",null,"(K) Other Assets - Rating 74","Select",null,null,null,null,null,null,null,"Select"]
["Sch VI","Schedule of Assets",null,"(K) Other Assets - Rating 93","Select",null,null,null,null,null,null,null,"Select"]
["Sch VI","Schedule of Assets",null,"(K) Other Assets - Rating 112","Select",null,null,null,null,null,null,null,"Select"]
["Sch VI","Schedule of Assets",null,"(K) Other Assets - Rating 132","Select",null,null,null,null,null,null,null,"Select"]
["Sch VI","Schedule of Assets",null,"(K) Other Assets - Rating 157","Select",null,null,null,null,null,null,null,"Select"]
["Sch VI","Schedule of Assets",null,"(K) Other Assets - Rating 163","Select",null,null,null,null,null,null,null,"Select"]
["Sch VI","Schedule of Assets",null,"(K) Other Assets - Rating 182","Select",null,null,null,null,null,null,null,"Select"]
["Sch VI","Schedule of Assets",null,"(K) Other Assets - Nominal Amount 1",0,null,null,null,null,null,null,null,0]
["Sch VI","Schedule of Assets",null,"(K) Other Assets - Nominal Amount 26",0,null,null,null,null,null,null,null,0]
["Sch VI","Schedule of Assets",null,"(K) Other Assets - Nominal Amount 45",0,null,null,null,null,null,null,null,0]
["Sch VI","Schedule of Assets",null,"(K) Other Assets - Nominal Amount 70",0,null,null,null,null,null,null,null,0]
["Sch VI","Schedule of Assets",null,"(K) Other Assets - Nominal Amount 93",0,null,null,null,null,null,null,null,0]
["Sch VI","Schedule of Assets",null,"(K) Other Assets - Nominal Amount 109",0,null,null,null,null,null,null,null,0]
["Sch VI","Schedule of Assets",null,"(K) Other Assets - Nominal Amount 115",0,null,null,null,null,null,null,null,0]
["Sch VI","Schedule of Assets",null,"(K) Other Assets - Nominal Amount 134",0,null,null,null,null,null,null,null,0]
["Sch VI","Schedule of Assets",null,"(K) Other Assets - Nominal Amount 153",0,null,null,null,null,null,null,null,0]
["Sch VI","Schedule of Assets",null,"(K) Other Assets - Nominal Amount 178",0,null,null,null,null,null,null,null,0]
["Sch VI","Schedule of Assets",null,"(K) Other Assets - Nominal Amount 197",0,null,null,null,null,null,null,null,0]
["Sch VI","Schedule of Assets",null,"(K) Other Assets - Fair Value 10",0,null,null,null,null,null,null,null,0]
["Sch VI","Schedule of Assets",null,"(K) Other Assets - Fair Value 42",0,null,null,null,null,null,null,null,0]
["Sch VI","Schedule of Assets",null,"(K) Other Assets - Fair Value 61",0,null,null,null,null,null,null,null,0]
["Sch VI","Schedule of Assets",null,"(K) Other Assets - Fair Value 67",0,null,null,null,null,null,null,null,0]
["Sch VI","Schedule of Assets",null,"(K) Other Assets - Fair Value 86",0,null,null,null,null,null,null,null,0]
["Sch VI","Schedule of Assets",null,"(K) Other Assets - Fair Value 111",0,null,null,null,null,null,null,null,0]
["Sch VI","Schedule of Assets",null,"(K) Other Assets - Fair Value 130",0,null,null,null,null,null,null,null,0]
["Sch VI","Schedule of Assets",null,"(K) Other Assets - Fair Value 149",0,null,null,null,null,null,null,null,0]
["Sch VI","Schedule of Assets",null,"(K) Other Assets - Fair Value 171",0,null,null,null,null,null,null,null,0]
["Sch VI","Schedule of Assets",null,"(K) Other Assets - Fair Value 194",0,null,null,null,null,null,null,null,0]
["Sch VI","Schedule of Assets",null,"(K) Other Assets - Comments 13",0,null,null,null,null,null,null,null,0]
["Sch VI","Schedule of Assets",null,"(K) Other Assets - Comments 19",0,null,null,null,null,null,null,null,0]
["Sch VI","Schedule of Assets",null,"(K) Other Assets - Comments 38",0,null,null,null,null,null,null,null,0]
["Sch VI","Schedule of Assets",null,"(K) Other Assets - Comments 63",0,null,null,null,null,null,null,null,0]
["Sch VI","Schedule of Assets",null,"(K) Other Assets - Comments 82",0,null,null,null,null,null,null,null,0]
["Sch VI","Schedule of Assets",null,"(K) Other Assets - Comments 101",0,null,null,null,null,null,null,null,0]
["Sch VI","Schedule of Assets",null,"(K) Other Assets - Comments 132",0,null,null,null,null,null,null,null,0]
["Sch VI","Schedule of Assets",null,"(K) Other Assets - Comments 146",0,null,null,null,null,null,null,null,0]
["Sch VI","Schedule of Assets",null,"(K) Other Assets - Comments 165",0,null,null,null,null,null,null,null,0]
["Sch VI","Schedule of Assets",null,"(K) Other Assets - Comments 190",0,null,null,null,null,null,null,null,0]
["Sch VI","Schedule of Assets",null,"(M) Add. Info. - Fair Value Unaffiliated Level 3 Assets",0,null,null,null,null,null,null,null,0]
["Sch VI","Schedule of Assets",null,"(M) Add. Info. - Fair Value Comments Level 3 Assets",0,null,null,null,null,null,null,null,0]
["Sch VI","Schedule of Assets",null,"Ins. Companies - Moody's Rating 5",0,null,null,null,null,null,null,null,0]
["Sch VI","Schedule of Assets",null,"ABS - Moody's Rating 8",0,null,null,null,null,null,null,null,0]
["Sch VI","Schedule of Assets",null,"Corp. Insurers - S&P Rating 1",0,null,null,null,null,null,null,null,0]
["Sch VI","Schedule of Assets",null,"Gov. Securities - S&P Rating 3",0,null,null,null,null,null,null,null,0]
["Sch VI","Schedule of Assets",null,"Corp. Insurers - DBRS Rating 4",0,null,null,null,null,null,null,null,0]
["Sch VI","Schedule of Assets",null,"Gov. Securities - DBRS Rating 6",0,null,null,null,null,null,null,null,0]
["Sch VI","Schedule of Assets",null,"Corp. Insurers - Kroll Rating 1",0,null,null,null,null,null,null,null,0]
["Sch VI","Schedule of Assets",null,"Corp. Insurers - Kroll Rating 7",0,null,null,null,null,null,null,null,0]
["Sch VI","Schedule of Assets",null,"Fin. Inst. - Egan Jones Rating 1",0,null,null,null,null,null,null,null,0]
["Sch VI","Schedule of Assets",null,"ABS - Egan Jones Rating 5",0,null,null,null,null,null,null,null,0]
["Sch VI","Schedule of Assets",null,"Fin. Inst. - Japan Credit Rating 5",0,null,null,null,null,null,null,null,0]
["Sch VI","Schedule of Assets",null,"Corp. Insurers - Japan Credit Rating 8",0,null,null,null,null,null,null,null,0]
["Sch VI","Schedule of Assets",null,"Fin. Inst. - BMA Approved Int. Rating 8",0,null,null,null,null,null,null,null,0]
["Sch VI","Schedule of Assets",null,"ABS - BMA Approved Int. Rating 3",0,null,null,null,null,null,null,null,0]
["Sch VI","Schedule of Assets",null,"Fin. Inst. - BMA Approved Agency 1 -  Rating 5",0,null,null,null,null,null,null,null,0]
["Sch VI","Schedule of Assets",null,"Ins. Companies - BMA Approved Agency 1 -  Rating 3",0,null,null,null,null,null,null,null,0]
["Sch VI","Schedule of Assets",null,"Fin. Inst. - BMA Approved Agency 2 -  Rating 2",0,null,null,null,null,null,null,null,0]
["Sch VI","Schedule of Assets",null,"Ins. Companies - BMA Approved Agency 2 -  Rating 1",0,null,null,null,null,null,null,null,0]
["Sch VI","Schedule of Assets",null,"Gov. Securities - BMA Approved Agency 2 -  Rating 1",0,null,null,null,null,null,null,null,0]
["Sch VI","Schedule of Assets",null,"Ins. Companies - BMA Approved Agency 3 -  Rating 4",0,null,null,null,null,null,null,null,0]
["Sch VI","Schedule of Assets",null,"Gov. Securities - BMA Approved Agency 3 -  Rating 4",0,null,null,null,null,null,null,null,0]
["Sch VIA","Schedule of Funds Held",null,"(A) Cash - Asset Type 8","Select",null,null,null,null,null,null,null,"Select"]
["Sch VIA","Schedule of Funds Held",null,"(A) Cash - Asset Type 27","Select",null,null,null,null,null,null,null,"Select"]
["Sch VIA","Schedule of Funds Held",null,"(A) Cash - Asset Type 33","Select",null,null,null,null,null,null,null,"Select"]
["Sch VIA","Schedule of Funds Held",null,"(A) Cash - Asset Type 54","Select",null,null,null,null,null,null,null,"Select"]
["Sch VIA","Schedule of Funds Held",null,"(A) Cash - Asset Type 78","Select",null,null,null,null,null,null,null,"Select"]
["Sch VIA","Schedule of Funds Held",null,"(A) Cash - Asset Type 97","Select",null,null,null,null,null,null,null,"Select"]
["Sch VIA","Schedule of Funds Held",null,"(A) Cash - Asset Type 116","Select",null,null,null,null,null,null,null,"Select"]
["Sch VIA","Schedule of Funds Held",null,"(A) Cash - Asset Type 141","Select",null,null,null,null,null,null,null,"Select"]
["Sch VIA","Schedule of Funds Held",null,"(A) Cash - Asset Type 160","Select",null,null,null,null,null,null,null,"Select"]
["Sch VIA","Schedule of Funds Held",null,"(A) Cash - Asset Type 179","Select",null,null,null,null,null,null,null,"Select"]
["Sch VIA","Schedule of Funds Held",null,"(A) Cash - Asset Type 191","Select",null,null,null,null,null,null,null,"Select"]
["Sch VIA","Schedule of Funds Held",null,"(A) Cash - Currency 5","Select",null,null,null,null,null,null,null,"Select"]
["Sch VIA","Schedule of Funds Held",null,"(A) Cash - Currency 30","Select",null,null,null,null,null,null,null,"Select"]
["Sch VIA","Schedule of Funds Held",null,"(A) Cash - Currency 49","Select",null,null,null,null,null,null,null,"Select"]
["Sch VIA","Schedule of Funds Held",null,"(A) Cash - Currency 68","Select",null,null,null,null,null,null,null,"Select"]
["Sch VIA","Schedule of Funds Held",null,"(A) Cash - Currency 93","Select",null,null,null,null,null,null,null,"Select"]
["Sch VIA","Schedule of Funds Held",null,"(A) Cash - Currency 112","Select",null,null,null,null,null,null,null,"Select"]
["Sch VIA","Schedule of Funds Held",null,"(A) Cash - Currency 118","Select",null,null,null,null,null,null,null,"Select"]
["Sch VIA","Schedule of Funds Held",null,"(A) Cash - Currency 152","Select",null,null,null,null,null,null,null,"Select"]
["Sch VIA","Schedule of Funds Held",null,"(A) Cash - Currency 157","Select",null,null,null,null,null,null,null,"Select"]
["Sch VIA","Schedule of Funds Held",null,"(A) Cash - Currency 182","Select",null,null,null,null,null,null,null,"Select"]
["Sch VIA","Schedule of Funds Held",null,"(A) Cash - Rating 1","Select",null,null,null,null,null,null,null,"Select"]
["Sch VIA","Schedule of Funds Held",null,"(A) Cash - Rating 20","Select",null,null,null,null,null,null,null,"Select"]
["Sch VIA","Schedule of Funds Held",null,"(A) Cash - Rating 45","Select",null,null,null,null,null,null,null,"Select"]
["Sch VIA","Schedule of Funds Held",null,"(A) Cash - Rating 64","Select",null,null,null,null,null,null,null,"Select"]
["Sch VIA","Schedule of Funds Held",null,"(A) Cash - Rating 89","Select",null,null,null,null,null,null,null,"Select"]
["Sch VIA","Schedule of Funds Held",null,"(A) Cash - Rating 93","Select",null,null,null,null,null,null,null,"Select"]
["Sch VIA","Schedule of Funds Held",null,"(A) Cash - Rating 128","Select",null,null,null,null,null,null,null,"Select"]
["Sch VIA","Schedule of Funds Held",null,"(A) Cash - Rating 134","Select",null,null,null,null,null,null,null,"Select"]
["Sch VIA","Schedule of Funds Held",null,"(A) Cash - Rating 153","Select",null,null,null,null,null,null,null,"Select"]
["Sch VIA","Schedule of Funds Held",null,"(A) Cash - Rating 172","Select",null,null,null,null,null,null,null,"Select"]
["Sch VIA","Schedule of Funds Held",null,"(A) Cash - Rating 197","Select",null,null,null,null,null,null,null,"Select"]
["Sch VIA","Schedule of Funds Held",null,"(A) Cash - Nominal 16",0,null,null,null,null,null,null,null,0]
["Sch VIA","Schedule of Funds Held",null,"(A) Cash - Nominal 30",0,null,null,null,null,null,null,null,0]
["Sch VIA","Schedule of Funds Held",null,"(A) Cash - Nominal 61",0,null,null,null,null,null,null,null,0]
["Sch VIA","Schedule of Funds Held",null,"(A) Cash - Nominal 80",0,null,null,null,null,null,null,null,0]
["Sch VIA","Schedule of Funds Held",null,"(A) Cash - Nominal 86",0,null,null,null,null,null,null,null,0]
["Sch VIA","Schedule of Funds Held",null,"(A) Cash - Nominal 105",0,null,null,null,null,null,null,null,0]
["Sch VIA","Schedule of Funds Held",null,"(A) Cash - Nominal 130",0,null,null,null,null,null,null,null,0]
["Sch VIA","Schedule of Funds Held",null,"(A) Cash - Nominal 149",0,null,null,null,null,null,null,null,0]
["Sch VIA","Schedule of Funds Held",null,"(A) Cash - Nominal 168",0,null,null,null,null,null,null,null,0]
["Sch VIA","Schedule of Funds Held",null,"(A) Cash - Nominal 191",0,null,null,null,null,null,null,null,0]
["Sch VIA","Schedule of Funds Held",null,"(A) Cash - Fair Value 13",0,null,null,null,null,null,null,null,0]
["Sch VIA","Schedule of Funds Held",null,"(A) Cash - Fair Value 32",0,null,null,null,null,null,null,null,0]
["Sch VIA","Schedule of Funds Held",null,"(A) Cash - Fair Value 38",0,null,null,null,null,null,null,null,0]
["Sch VIA","Schedule of Funds Held",null,"(A) Cash - Fair Value 57",0,null,null,null,null,null,null,null,0]
["Sch VIA","Schedule of Funds Held",null,"(A) Cash - Fair Value 82",0,null,null,null,null,null,null,null,0]
["Sch VIA","Schedule of Funds Held",null,"(A) Cash - Fair Value 101",0,null,null,null,null,null,null,null,0]
["Sch VIA","Schedule of Funds Held",null,"(A) Cash - Fair Value 112",0,null,null,null,null,null,null,null,0]
["Sch VIA","Schedule of Funds Held",null,"(A) Cash - Fair Value 146",0,null,null,null,null,null,null,null,0]
["Sch VIA","Schedule of Funds Held",null,"(A) Cash - Fair Value 165",0,null,null,null,null,null,null,null,0]
["Sch VIA","Schedule of Funds Held",null,"(A) Cash - Fair Value 171",0,null,null,null,null,null,null,null,0]
["Sch VIA","Schedule of Funds Held",null,"(A) Cash - Fair Value 190",0,null,null,null,null,null,null,null,0]
["Sch VIA","Schedule of Funds Held",null,"(A) Cash - Comments 9",0,null,null,null,null,null,null,null,0]
["Sch VIA","Schedule of Funds Held",null,"(A) Cash - Comments 34",0,null,null,null,null,null,null,null,0]
["Sch VIA","Schedule of Funds Held",null,"(A) Cash - Comments 53",0,null,null,null,null,null,null,null,0]
["Sch VIA","Schedule of Funds Held",null,"(A) Cash - Comments 73",0,null,null,null,null,null,null,null,0]
["Sch VIA","Schedule of Funds Held",null,"(A) Cash - Comments 98",0,null,null,null,null,null,null,null,0]
["Sch VIA","Schedule of Funds Held",null,"(A) Cash - Comments 117",0,null,null,null,null,null,null,null,0]
["Sch VIA","Schedule of Funds Held",null,"(A) Cash - Comments 123",0,null,null,null,null,null,null,null,0]
["Sch VIA","Schedule of Funds Held",null,"(A) Cash - Comments 142",0,null,null,null,null,null,null,null,0]
["Sch VIA","Schedule of Funds Held",null,"(A) Cash - Comments 161",0,null,null,null,null,null,null,null,0]
["Sch VIA","Schedule of Funds Held",null,"(A) Cash - Comments 186",0,null,null,null,null,null,null,null,0]
["Sch VIA","Schedule of Funds Held",null,"(B) Bonds - Asset Type 9","Select",null,null,null,null,null,null,null,"Select"]
["Sch VIA","Schedule of Funds Held",null,"(B) Bonds - Asset Type 24","Select",null,null,null,null,null,null,null,"Select"]
["Sch VIA","Schedule of Funds Held",null,"(B) Bonds - Asset Type 49","Select",null,null,null,null,null,null,null,"Select"]
["Sch VIA","Schedule of Funds Held",null,"(B) Bonds - Asset Type 68","Select",null,null,null,null,null,null,null,"Select"]
["Sch VIA","Schedule of Funds Held",null,"(B) Bonds - Asset Type 74","Select",null,null,null,null,null,null,null,"Select"]
["Sch VIA","Schedule of Funds Held",null,"(B) Bonds - Asset Type 93","Select",null,null,null,null,null,null,null,"Select"]
["Sch VIA","Schedule of Funds Held",null,"(B) Bonds - Asset Type 112","Select",null,null,null,null,null,null,null,"Select"]
["Sch VIA","Schedule of Funds Held",null,"(B) Bonds - Asset Type 137","Select",null,null,null,null,null,null,null,"Select"]
["Sch VIA","Schedule of Funds Held",null,"(B) Bonds - Asset Type 150","Select",null,null,null,null,null,null,null,"Select"]
["Sch VIA","Schedule of Funds Held",null,"(B) Bonds - Asset Type 182","Select",null,null,null,null,null,null,null,"Select"]
["Sch VIA","Schedule of Funds Held",null,"(B) Bonds - Asset Type 201","Select",null,null,null,null,null,null,null,"Select"]
["Sch VIA","Schedule of Funds Held",null,"(B) Bonds - Asset Type 220","Select",null,null,null,null,null,null,null,"Select"]
["Sch VIA","Schedule of Funds Held",null,"(B) Bonds - Asset Type 245","Select",null,null,null,null,null,null,null,"Select"]
["Sch VIA","Schedule of Funds Held",null,"(B) Bonds - Asset Type 264","Select",null,null,null,null,null,null,null,"Select"]
["Sch VIA","Schedule of Funds Held",null,"(B) Bonds - Asset Type 283","Select",null,null,null,null,null,null,null,"Select"]
["Sch VIA","Schedule of Funds Held",null,"(B) Bonds - Asset Type 289","Select",null,null,null,null,null,null,null,"Select"]
["Sch VIA","Schedule of Funds Held",null,"(B) Bonds - Asset Type 311","Select",null,null,null,null,null,null,null,"Select"]
["Sch VIA","Schedule of Funds Held",null,"(B) Bonds - Asset Type 334","Select",null,null,null,null,null,null,null,"Select"]
["Sch VIA","Schedule of Funds Held",null,"(B) Bonds - Asset Type 353","Select",null,null,null,null,null,null,null,"Select"]
["Sch VIA","Schedule of Funds Held",null,"(B) Bonds - Asset Type 372","Select",null,null,null,null,null,null,null,"Select"]
["Sch VIA","Schedule of Funds Held",null,"(B) Bonds - Asset Type 397","Select",null,null,null,null,null,null,null,"Select"]
["Sch VIA","Schedule of Funds Held",null,"(B) Bonds - Currency 16","Select",null,null,null,null,null,null,null,"Select"]
["Sch VIA","Schedule of Funds Held",null,"(B) Bonds - Currency 35","Select",null,null,null,null,null,null,null,"Select"]
["Sch VIA","Schedule of Funds Held",null,"(B) Bonds - Currency 48","Select",null,null,null,null,null,null,null,"Select"]
["Sch VIA","Schedule of Funds Held",null,"(B) Bonds - Currency 61","Select",null,null,null,null,null,null,null,"Select"]
["Sch VIA","Schedule of Funds Held",null,"(B) Bonds - Currency 86","Select",null,null,null,null,null,null,null,"Select"]
["Sch VIA","Schedule of Funds Held",null,"(B) Bonds - Currency 105","Select",null,null,null,null,null,null,null,"Select"]
["Sch VIA","Schedule of Funds Held",null,"(B) Bonds - Currency 124","Select",null,null,null,null,null,null,null,"Select"]
["Sch VIA","Schedule of Funds Held",null,"(B) Bonds - Currency 149","Select",null,null,null,null,null,null,null,"Select"]
["Sch VIA","Schedule of Funds Held",null,"(B) Bonds - Currency 168","Select",null,null,null,null,null,null,null,"Select"]
["Sch VIA","Schedule of Funds Held",null,"(B) Bonds - Currency 174","Select",null,null,null,null,null,null,null,"Select"]
["Sch VIA","Schedule of Funds Held",null,"(B) Bonds - Currency 209","Select",null,null,null,null,null,null,null,"Select"]
["Sch VIA","Schedule of Funds Held",null,"(B) Bonds - Currency 213","Select",null,null,null,null,null,null,null,"Select"]
["Sch VIA","Schedule of Funds Held",null,"(B) Bonds - Currency 238","Select",null,null,null,null,null,null,null,"Select"]
["Sch VIA","Schedule of Funds Held",null,"(B) Bonds - Currency 257","Select",null,null,null,null,null,null,null,"Select"]
["Sch VIA","Schedule of Funds Held",null,"(B) Bonds - Currency 276","Select",null,null,null,null,null,null,null,"Select"]
["Sch VIA","Schedule of Funds Held",null,"(B) Bonds - Currency 301","Select",null,null,null,null,null,null,null,"Select"]
["Sch VIA","Schedule of Funds Held",null,"(B) Bonds - Currency 320","Select",null,null,null,null,null,null,null,"Select"]
["Sch VIA","Schedule of Funds Held",null,"(B) Bonds - Currency 326","Select",null,null,null,null,null,null,null,"Select"]
["Sch VIA","Schedule of Funds Held",null,"(B) Bonds - Currency 346","Select",null,null,null,null,null,null,null,"Select"]
["Sch VIA","Schedule of Funds Held",null,"(B) Bonds - Currency 365","Select",null,null,null,null,null,null,null,"Select"]
["Sch VIA","Schedule of Funds Held",null,"(B) Bonds - Currency 390","Select",null,null,null,null,null,null,null,"Select"]
["Sch VIA","Schedule of Funds Held",null,"(B) Bonds - Rating 9","Select",null,null,null,null,null,null,null,"Select"]
["Sch VIA","Schedule of Funds Held",null,"(B) Bonds - Rating 34","Select",null,null,null,null,null,null,null,"Select"]
["Sch VIA","Schedule of Funds Held",null,"(B) Bonds - Rating 53","Select",null,null,null,null,null,null,null,"Select"]
["Sch VIA","Schedule of Funds Held",null,"(B) Bonds - Rating 72","Select",null,null,null,null,null,null,null,"Select"]
["Sch VIA","Schedule of Funds Held",null,"(B) Bonds - Rating 87","Select",null,null,null,null,null,null,null,"Select"]
["Sch VIA","Schedule of Funds Held",null,"(B) Bonds - Rating 98","Select",null,null,null,null,null,null,null,"Select"]
["Sch VIA","Schedule of Funds Held",null,"(B) Bonds - Rating 117","Select",null,null,null,null,null,null,null,"Select"]
["Sch VIA","Schedule of Funds Held",null,"(B) Bonds - Rating 142","Select",null,null,null,null,null,null,null,"Select"]
["Sch VIA","Schedule of Funds Held",null,"(B) Bonds - Rating 161","Select",null,null,null,null,null,null,null,"Select"]
["Sch VIA","Schedule of Funds Held",null,"(B) Bonds - Rating 186","Select",null,null,null,null,null,null,null,"Select"]
["Sch VIA","Schedule of Funds Held",null,"(B) Bonds - Rating 205","Select",null,null,null,null,null,null,null,"Select"]
["Sch VIA","Schedule of Funds Held",null,"(B) Bonds - Rating 224","Select",null,null,null,null,null,null,null,"Select"]
["Sch VIA","Schedule of Funds Held",null,"(B) Bonds - Rating 248","Select",null,null,null,null,null,null,null,"Select"]
["Sch VIA","Schedule of Funds Held",null,"(B) Bonds - Rating 250","Select",null,null,null,null,null,null,null,"Select"]
["Sch VIA","Schedule of Funds Held",null,"(B) Bonds - Rating 269","Select",null,null,null,null,null,null,null,"Select"]
["Sch VIA","Schedule of Funds Held",null,"(B) Bonds - Rating 294","Select",null,null,null,null,null,null,null,"Select"]
["Sch VIA","Schedule of Funds Held",null,"(B) Bonds - Rating 313","Select",null,null,null,null,null,null,null,"Select"]
["Sch VIA","Schedule of Funds Held",null,"(B) Bonds - Rating 338","Select",null,null,null,null,null,null,null,"Select"]
["Sch VIA","Schedule of Funds Held",null,"(B) Bonds - Rating 357","Select",null,null,null,null,null,null,null,"Select"]
["Sch VIA","Schedule of Funds Held",null,"(B) Bonds - Rating 369","Select",null,null,null,null,null,null,null,"Select"]
["Sch VIA","Schedule of Funds Held",null,"(B) Bonds - Nominal 2",0,null,null,null,null,null,null,null,0]
["Sch VIA","Schedule of Funds Held",null,"(B) Bonds - Nominal 21",0,null,null,null,null,null,null,null,0]
["Sch VIA","Schedule of Funds Held",null,"(B) Bonds - Nominal 27",0,null,null,null,null,null,null,null,0]
["Sch VIA","Schedule of Funds Held",null,"(B) Bonds - Nominal 46",0,null,null,null,null,null,null,null,0]
["Sch VIA","Schedule of Funds Held",null,"(B) Bonds - Nominal 65",0,null,null,null,null,null,null,null,0]
["Sch VIA","Schedule of Funds Held",null,"(B) Bonds - Nominal 90",0,null,null,null,null,null,null,null,0]
["Sch VIA","Schedule of Funds Held",null,"(B) Bonds - Nominal 109",0,null,null,null,null,null,null,null,0]
["Sch VIA","Schedule of Funds Held",null,"(B) Bonds - Nominal 130",0,null,null,null,null,null,null,null,0]
["Sch VIA","Schedule of Funds Held",null,"(B) Bonds - Nominal 154",0,null,null,null,null,null,null,null,0]
["Sch VIA","Schedule of Funds Held",null,"(B) Bonds - Nominal 173",0,null,null,null,null,null,null,null,0]
["Sch VIA","Schedule of Funds Held",null,"(B) Bonds - Nominal 179",0,null,null,null,null,null,null,null,0]
["Sch VIA","Schedule of Funds Held",null,"(B) Bonds - Nominal 198",0,null,null,null,null,null,null,null,0]
["Sch VIA","Schedule of Funds Held",null,"(B) Bonds - Nominal 217",0,null,null,null,null,null,null,null,0]
["Sch VIA","Schedule of Funds Held",null,"(B) Bonds - Nominal 242",0,null,null,null,null,null,null,null,0]
["Sch VIA","Schedule of Funds Held",null,"(B) Bonds - Nominal 267",0,null,null,null,null,null,null,null,0]
["Sch VIA","Schedule of Funds Held",null,"(B) Bonds - Nominal 281",0,null,null,null,null,null,null,null,0]
["Sch VIA","Schedule of Funds Held",null,"(B) Bonds - Nominal 306",0,null,null,null,null,null,null,null,0]
["Sch VIA","Schedule of Funds Held",null,"(B) Bonds - Nominal 325",0,null,null,null,null,null,null,null,0]
["Sch VIA","Schedule of Funds Held",null,"(B) Bonds - Nominal 331",0,null,null,null,null,null,null,null,0]
["Sch VIA","Schedule of Funds Held",null,"(B) Bonds - Nominal 350",0,null,null,null,null,null,null,null,0]
["Sch VIA","Schedule of Funds Held",null,"(B) Bonds - Nominal 369",0,null,null,null,null,null,null,null,0]
["Sch VIA","Schedule of Funds Held",null,"(B) Bonds - Nominal 394",0,null,null,null,null,null,null,null,0]
["Sch VIA","Schedule of Funds Held",null,"(B) Bonds - Fair Value 8",0,null,null,null,null,null,null,null,0]
["Sch VIA","Schedule of Funds Held",null,"(B) Bonds - Fair Value 39",0,null,null,null,null,null,null,null,0]
["Sch VIA","Schedule of Funds Held",null,"(B) Bonds - Fair Value 58",0,null,null,null,null,null,null,null,0]
["Sch VIA","Schedule of Funds Held",null,"(B) Bonds - Fair Value 77",0,null,null,null,null,null,null,null,0]
["Sch VIA","Schedule of Funds Held",null,"(B) Bonds - Fair Value 83",0,null,null,null,null,null,null,null,0]
["Sch VIA","Schedule of Funds Held",null,"(B) Bonds - Fair Value 102",0,null,null,null,null,null,null,null,0]
["Sch VIA","Schedule of Funds Held",null,"(B) Bonds - Fair Value 121",0,null,null,null,null,null,null,null,0]
["Sch VIA","Schedule of Funds Held",null,"(B) Bonds - Fair Value 145",0,null,null,null,null,null,null,null,0]
["Sch VIA","Schedule of Funds Held",null,"(B) Bonds - Fair Value 166",0,null,null,null,null,null,null,null,0]
["Sch VIA","Schedule of Funds Held",null,"(B) Bonds - Fair Value 191",0,null,null,null,null,null,null,null,0]
["Sch VIA","Schedule of Funds Held",null,"(B) Bonds - Fair Value 210",0,null,null,null,null,null,null,null,0]
["Sch VIA","Schedule of Funds Held",null,"(B) Bonds - Fair Value 229",0,null,null,null,null,null,null,null,0]
["Sch VIA","Schedule of Funds Held",null,"(B) Bonds - Fair Value 235",0,null,null,null,null,null,null,null,0]
["Sch VIA","Schedule of Funds Held",null,"(B) Bonds - Fair Value 254",0,null,null,null,null,null,null,null,0]
["Sch VIA","Schedule of Funds Held",null,"(B) Bonds - Fair Value 279",0,null,null,null,null,null,null,null,0]
["Sch VIA","Schedule of Funds Held",null,"(B) Bonds - Fair Value 306",0,null,null,null,null,null,null,null,0]
["Sch VIA","Schedule of Funds Held",null,"(B) Bonds - Fair Value 318",0,null,null,null,null,null,null,null,0]
["Sch VIA","Schedule of Funds Held",null,"(B) Bonds - Fair Value 343",0,null,null,null,null,null,null,null,0]
["Sch VIA","Schedule of Funds Held",null,"(B) Bonds - Fair Value 362",0,null,null,null,null,null,null,null,0]
["Sch VIA","Schedule of Funds Held",null,"(B) Bonds - Fair Value 381",0,null,null,null,null,null,null,null,0]
["Sch VIA","Schedule of Funds Held",null,"(B) Bonds - Fair Value 387",0,null,null,null,null,null,null,null,0]
["Sch VIA","Schedule of Funds Held",null,"(B) Bonds - Weighted Average YTM 6",0,null,null,null,null,null,null,null,0]
["Sch VIA","Schedule of Funds Held",null,"(B) Bonds - Weighted Average YTM 31",0,null,null,null,null,null,null,null,0]
["Sch VIA","Schedule of Funds Held",null,"(B) Bonds - Weighted Average YTM 47",0,null,null,null,null,null,null,null,0]
["Sch VIA","Schedule of Funds Held",null,"(B) Bonds - Weighted Average YTM 70",0,null,null,null,null,null,null,null,0]
["Sch VIA","Schedule of Funds Held",null,"(B) Bonds - Weighted Average YTM 95",0,null,null,null,null,null,null,null,0]
["Sch VIA","Schedule of Funds Held",null,"(B) Bonds - Weighted Average YTM 114",0,null,null,null,null,null,null,null,0]
["Sch VIA","Schedule of Funds Held",null,"(B) Bonds - Weighted Average YTM 133",0,null,null,null,null,null,null,null,0]
["Sch VIA","Schedule of Funds Held",null,"(B) Bonds - Weighted Average YTM 158",0,null,null,null,null,null,null,null,0]
["Sch VIA","Schedule of Funds Held",null,"(B) Bonds - Weighted Average YTM 177",0,null,null,null,null,null,null,null,0]
["Sch VIA","Schedule of Funds Held",null,"(B) Bonds - Weighted Average YTM 184",0,null,null,null,null,null,null,null,0]
["Sch VIA","Schedule of Funds Held",null,"(B) Bonds - Weighted Average YTM 203",0,null,null,null,null,null,null,null,0]
["Sch VIA","Schedule of Funds Held",null,"(B) Bonds - Weighted Average YTM 222",0,null,null,null,null,null,null,null,0]
["Sch VIA","Schedule of Funds Held",null,"(B) Bonds - Weighted Average YTM 247",0,null,null,null,null,null,null,null,0]
["Sch VIA","Schedule of Funds Held",null,"(B) Bonds - Weighted Average YTM 266",0,null,null,null,null,null,null,null,0]
["Sch VIA","Schedule of Funds Held",null,"(B) Bonds - Weighted Average YTM 291",0,null,null,null,null,null,null,null,0]
["Sch VIA","Schedule of Funds Held",null,"(B) Bonds - Weighted Average YTM 310",0,null,null,null,null,null,null,null,0]
["Sch VIA","Schedule of Funds Held",null,"(B) Bonds - Weighted Average YTM 329",0,null,null,null,null,null,null,null,0]
["Sch VIA","Schedule of Funds Held",null,"(B) Bonds - Weighted Average YTM 345",0,null,null,null,null,null,null,null,0]
["Sch VIA","Schedule of Funds Held",null,"(B) Bonds - Weighted Average YTM 355",0,null,null,null,null,null,null,null,0]
["Sch VIA","Schedule of Funds Held",null,"(B) Bonds - Weighted Average YTM 374",0,null,null,null,null,null,null,null,0]
["Sch VIA","Schedule of Funds Held",null,"(B) Bonds - Weighted Average YTM 399",0,null,null,null,null,null,null,null,0]
["Sch VIA","Schedule of Funds Held",null,"(B) Bonds - Effective Duration 18",0,null,null,null,null,null,null,null,0]
["Sch VIA","Schedule of Funds Held",null,"(B) Bonds - Effective Duration 43",0,null,null,null,null,null,null,null,0]
["Sch VIA","Schedule of Funds Held",null,"(B) Bonds - Effective Duration 62",0,null,null,null,null,null,null,null,0]
["Sch VIA","Schedule of Funds Held",null,"(B) Bonds - Effective Duration 66",0,null,null,null,null,null,null,null,0]
["Sch VIA","Schedule of Funds Held",null,"(B) Bonds - Effective Duration 88",0,null,null,null,null,null,null,null,0]
["Sch VIA","Schedule of Funds Held",null,"(B) Bonds - Effective Duration 107",0,null,null,null,null,null,null,null,0]
["Sch VIA","Schedule of Funds Held",null,"(B) Bonds - Effective Duration 132",0,null,null,null,null,null,null,null,0]
["Sch VIA","Schedule of Funds Held",null,"(B) Bonds - Effective Duration 151",0,null,null,null,null,null,null,null,0]
["Sch VIA","Schedule of Funds Held",null,"(B) Bonds - Effective Duration 170",0,null,null,null,null,null,null,null,0]
["Sch VIA","Schedule of Funds Held",null,"(B) Bonds - Effective Duration 195",0,null,null,null,null,null,null,null,0]
["Sch VIA","Schedule of Funds Held",null,"(B) Bonds - Effective Duration 214",0,null,null,null,null,null,null,null,0]
["Sch VIA","Schedule of Funds Held",null,"(B) Bonds - Effective Duration 227",0,null,null,null,null,null,null,null,0]
["Sch VIA","Schedule of Funds Held",null,"(B) Bonds - Effective Duration 240",0,null,null,null,null,null,null,null,0]
["Sch VIA","Schedule of Funds Held",null,"(B) Bonds - Effective Duration 259",0,null,null,null,null,null,null,null,0]
["Sch VIA","Schedule of Funds Held",null,"(B) Bonds - Effective Duration 284",0,null,null,null,null,null,null,null,0]
["Sch VIA","Schedule of Funds Held",null,"(B) Bonds - Effective Duration 303",0,null,null,null,null,null,null,null,0]
["Sch VIA","Schedule of Funds Held",null,"(B) Bonds - Effective Duration 322",0,null,null,null,null,null,null,null,0]
["Sch VIA","Schedule of Funds Held",null,"(B) Bonds - Effective Duration 347",0,null,null,null,null,null,null,null,0]
["Sch VIA","Schedule of Funds Held",null,"(B) Bonds - Effective Duration 364",0,null,null,null,null,null,null,null,0]
["Sch VIA","Schedule of Funds Held",null,"(B) Bonds - Effective Duration 386",0,null,null,null,null,null,null,null,0]
["Sch VIA","Schedule of Funds Held",null,"(B) Bonds - Effective Duration 392",0,null,null,null,null,null,null,null,0]
["Sch VIA","Schedule of Funds Held",null,"(B) Bonds - Comments 11",0,null,null,null,null,null,null,null,0]
["Sch VIA","Schedule of Funds Held",null,"(B) Bonds - Comments 36",0,null,null,null,null,null,null,null,0]
["Sch VIA","Schedule of Funds Held",null,"(B) Bonds - Comments 55",0,null,null,null,null,null,null,null,0]
["Sch VIA","Schedule of Funds Held",null,"(B) Bonds - Comments 74",0,null,null,null,null,null,null,null,0]
["Sch VIA","Schedule of Funds Held",null,"(B) Bonds - Comments 99",0,null,null,null,null,null,null,null,0]
["Sch VIA","Schedule of Funds Held",null,"(B) Bonds - Comments 105",0,null,null,null,null,null,null,null,0]
["Sch VIA","Schedule of Funds Held",null,"(B) Bonds - Comments 125",0,null,null,null,null,null,null,null,0]
["Sch VIA","Schedule of Funds Held",null,"(B) Bonds - Comments 144",0,null,null,null,null,null,null,null,0]
["Sch VIA","Schedule of Funds Held",null,"(B) Bonds - Comments 163",0,null,null,null,null,null,null,null,0]
["Sch VIA","Schedule of Funds Held",null,"(B) Bonds - Comments 188",0,null,null,null,null,null,null,null,0]
["Sch VIA","Schedule of Funds Held",null,"(B) Bonds - Comments 207",0,null,null,null,null,null,null,null,0]
["Sch VIA","Schedule of Funds Held",null,"(B) Bonds - Comments 226",0,null,null,null,null,null,null,null,0]
["Sch VIA","Schedule of Funds Held",null,"(B) Bonds - Comments 251",0,null,null,null,null,null,null,null,0]
["Sch VIA","Schedule of Funds Held",null,"(B) Bonds - Comments 266",0,null,null,null,null,null,null,null,0]
["Sch VIA","Schedule of Funds Held",null,"(B) Bonds - Comments 296",0,null,null,null,null,null,null,null,0]
["Sch VIA","Schedule of Funds Held",null,"(B) Bonds - Comments 315",0,null,null,null,null,null,null,null,0]
["Sch VIA","Schedule of Funds Held",null,"(B) Bonds - Comments 334",0,null,null,null,null,null,null,null,0]
["Sch VIA","Schedule of Funds Held",null,"(B) Bonds - Comments 340",0,null,null,null,null,null,null,null,0]
["Sch VIA","Schedule of Funds Held",null,"(B) Bonds - Comments 359",0,null,null,null,null,null,null,null,0]
["Sch VIA","Schedule of Funds Held",null,"(B) Bonds - Comments 378",0,null,null,null,null,null,null,null,0]
["Sch VIA","Schedule of Funds Held",null,"(B) Bonds Sovereign Debt - Country 2","Select",null,null,null,null,null,null,null,"Select"]
["Sch VIA","Schedule of Funds Held",null,"(B) Bonds Sovereign Debt - Country 22","Select",null,null,null,null,null,null,null,"Select"]
["Sch VIA","Schedule of Funds Held",null,"(B) Bonds Sovereign Debt - Country 47","Select",null,null,null,null,null,null,null,"Select"]
["Sch VIA","Schedule of Funds Held",null,"(B) Bonds Sovereign Debt - Country 66","Select",null,null,null,null,null,null,null,"Select"]
["Sch VIA","Schedule of Funds Held",null,"(B) Bonds Sovereign Debt - Country 85","Select",null,null,null,null,null,null,null,"Select"]
["Sch VIA","Schedule of Funds Held",null,"(B) Bonds Sovereign Debt - Country 91","Select",null,null,null,null,null,null,null,"Select"]
["Sch VIA","Schedule of Funds Held",null,"(B) Bonds Sovereign Debt - Country 110","Select",null,null,null,null,null,null,null,"Select"]
["Sch VIA","Schedule of Funds Held",null,"(B) Bonds Sovereign Debt - Country 135","Select",null,null,null,null,null,null,null,"Select"]
["Sch VIA","Schedule of Funds Held",null,"(B) Bonds Sovereign Debt - Country 163","Select",null,null,null,null,null,null,null,"Select"]
["Sch VIA","Schedule of Funds Held",null,"(B) Bonds Sovereign Debt - Country 174","Select",null,null,null,null,null,null,null,"Select"]
["Sch VIA","Schedule of Funds Held",null,"(B) Bonds Sovereign Debt - Country 199","Select",null,null,null,null,null,null,null,"Select"]
["Sch VIA","Schedule of Funds Held",null,"(B) Bonds Sovereign Debt - Currency 18","Select",null,null,null,null,null,null,null,"Select"]
["Sch VIA","Schedule of Funds Held",null,"(B) Bonds Sovereign Debt - Currency 37","Select",null,null,null,null,null,null,null,"Select"]
["Sch VIA","Schedule of Funds Held",null,"(B) Bonds Sovereign Debt - Currency 43","Select",null,null,null,null,null,null,null,"Select"]
["Sch VIA","Schedule of Funds Held",null,"(B) Bonds Sovereign Debt - Currency 62","Select",null,null,null,null,null,null,null,"Select"]
["Sch VIA","Schedule of Funds Held",null,"(B) Bonds Sovereign Debt - Currency 80","Select",null,null,null,null,null,null,null,"Select"]
["Sch VIA","Schedule of Funds Held",null,"(B) Bonds Sovereign Debt - Currency 107","Select",null,null,null,null,null,null,null,"Select"]
["Sch VIA","Schedule of Funds Held",null,"(B) Bonds Sovereign Debt - Currency 126","Select",null,null,null,null,null,null,null,"Select"]
["Sch VIA","Schedule of Funds Held",null,"(B) Bonds Sovereign Debt - Currency 151","Select",null,null,null,null,null,null,null,"Select"]
["Sch VIA","Schedule of Funds Held",null,"(B) Bonds Sovereign Debt - Currency 170","Select",null,null,null,null,null,null,null,"Select"]
["Sch VIA","Schedule of Funds Held",null,"(B) Bonds Sovereign Debt - Currency 176","Select",null,null,null,null,null,null,null,"Select"]
["Sch VIA","Schedule of Funds Held",null,"(B) Bonds Sovereign Debt - Currency 195","Select",null,null,null,null,null,null,null,"Select"]
["Sch VIA","Schedule of Funds Held",null,"(B) Bonds Sovereign Debt - Rating 14","Select",null,null,null,null,null,null,null,"Select"]
["Sch VIA","Schedule of Funds Held",null,"(B) Bonds Sovereign Debt - Rating 41","Select",null,null,null,null,null,null,null,"Select"]
["Sch VIA","Schedule of Funds Held",null,"(B) Bonds Sovereign Debt - Rating 59","Select",null,null,null,null,null,null,null,"Select"]
["Sch VIA","Schedule of Funds Held",null,"(B) Bonds Sovereign Debt - Rating 78","Select",null,null,null,null,null,null,null,"Select"]
["Sch VIA","Schedule of Funds Held",null,"(B) Bonds Sovereign Debt - Rating 103","Select",null,null,null,null,null,null,null,"Select"]
["Sch VIA","Schedule of Funds Held",null,"(B) Bonds Sovereign Debt - Rating 122","Select",null,null,null,null,null,null,null,"Select"]
["Sch VIA","Schedule of Funds Held",null,"(B) Bonds Sovereign Debt - Rating 128","Select",null,null,null,null,null,null,null,"Select"]
["Sch VIA","Schedule of Funds Held",null,"(B) Bonds Sovereign Debt - Rating 147","Select",null,null,null,null,null,null,null,"Select"]
["Sch VIA","Schedule of Funds Held",null,"(B) Bonds Sovereign Debt - Rating 182","Select",null,null,null,null,null,null,null,"Select"]
["Sch VIA","Schedule of Funds Held",null,"(B) Bonds Sovereign Debt - Rating 192","Select",null,null,null,null,null,null,null,"Select"]
["Sch VIA","Schedule of Funds Held",null,"(B) Bonds Sovereign Debt - Fair Value 11",0,null,null,null,null,null,null,null,0]
["Sch VIA","Schedule of Funds Held",null,"(B) Bonds Sovereign Debt - Fair Value 30",0,null,null,null,null,null,null,null,0]
["Sch VIA","Schedule of Funds Held",null,"(B) Bonds Sovereign Debt - Fair Value 55",0,null,null,null,null,null,null,null,0]
["Sch VIA","Schedule of Funds Held",null,"(B) Bonds Sovereign Debt - Fair Value 74",0,null,null,null,null,null,null,null,0]
["Sch VIA","Schedule of Funds Held",null,"(B) Bonds Sovereign Debt - Fair Value 80",0,null,null,null,null,null,null,null,0]
["Sch VIA","Schedule of Funds Held",null,"(B) Bonds Sovereign Debt - Fair Value 99",0,null,null,null,null,null,null,null,0]
["Sch VIA","Schedule of Funds Held",null,"(B) Bonds Sovereign Debt - Fair Value 123",0,null,null,null,null,null,null,null,0]
["Sch VIA","Schedule of Funds Held",null,"(B) Bonds Sovereign Debt - Fair Value 144",0,null,null,null,null,null,null,null,0]
["Sch VIA","Schedule of Funds Held",null,"(B) Bonds Sovereign Debt - Fair Value 163",0,null,null,null,null,null,null,null,0]
["Sch VIA","Schedule of Funds Held",null,"(B) Bonds Sovereign Debt - Fair Value 188",0,null,null,null,null,null,null,null,0]
["Sch VIA","Schedule of Funds Held",null,"(B) Bonds Sovereign Debt - Comments 7",0,null,null,null,null,null,null,null,0]
["Sch VIA","Schedule of Funds Held",null,"(B) Bonds Sovereign Debt - Comments 26",0,null,null,null,null,null,null,null,0]
["Sch VIA","Schedule of Funds Held",null,"(B) Bonds Sovereign Debt - Comments 51",0,null,null,null,null,null,null,null,0]
["Sch VIA","Schedule of Funds Held",null,"(B) Bonds Sovereign Debt - Comments 70",0,null,null,null,null,null,null,null,0]
["Sch VIA","Schedule of Funds Held",null,"(B) Bonds Sovereign Debt - Comments 84",0,null,null,null,null,null,null,null,0]
["Sch VIA","Schedule of Funds Held",null,"(B) Bonds Sovereign Debt - Comments 96",0,null,null,null,null,null,null,null,0]
["Sch VIA","Schedule of Funds Held",null,"(B) Bonds Sovereign Debt - Comments 115",0,null,null,null,null,null,null,null,0]
["Sch VIA","Schedule of Funds Held",null,"(B) Bonds Sovereign Debt - Comments 140",0,null,null,null,null,null,null,null,0]
["Sch VIA","Schedule of Funds Held",null,"(B) Bonds Sovereign Debt - Comments 159",0,null,null,null,null,null,null,null,0]
["Sch VIA","Schedule of Funds Held",null,"(B) Bonds Sovereign Debt - Comments 178",0,null,null,null,null,null,null,null,0]
["Sch VIA","Schedule of Funds Held",null,"(C) ABS and Struct. Sec. - Asset Type 2","Select",null,null,null,null,null,null,null,"Select"]
["Sch VIA","Schedule of Funds Held",null,"(C) ABS and Struct. Sec. - Asset Type 20","Select",null,null,null,null,null,null,null,"Select"]
["Sch VIA","Schedule of Funds Held",null,"(C) ABS and Struct. Sec. - Asset Type 41","Select",null,null,null,null,null,null,null,"Select"]
["Sch VIA","Schedule of Funds Held",null,"(C) ABS and Struct. Sec. - Asset Type 47","Select",null,null,null,null,null,null,null,"Select"]
["Sch VIA","Schedule of Funds Held",null,"(C) ABS and Struct. Sec. - Asset Type 66","Select",null,null,null,null,null,null,null,"Select"]
["Sch VIA","Schedule of Funds Held",null,"(C) ABS and Struct. Sec. - Asset Type 91","Select",null,null,null,null,null,null,null,"Select"]
["Sch VIA","Schedule of Funds Held",null,"(C) ABS and Struct. Sec. - Asset Type 110","Select",null,null,null,null,null,null,null,"Select"]
["Sch VIA","Schedule of Funds Held",null,"(C) ABS and Struct. Sec. - Asset Type 129","Select",null,null,null,null,null,null,null,"Select"]
["Sch VIA","Schedule of Funds Held",null,"(C) ABS and Struct. Sec. - Currency 4","Select",null,null,null,null,null,null,null,"Select"]
["Sch VIA","Schedule of Funds Held",null,"(C) ABS and Struct. Sec. - Currency 11","Select",null,null,null,null,null,null,null,"Select"]
["Sch VIA","Schedule of Funds Held",null,"(C) ABS and Struct. Sec. - Currency 30","Select",null,null,null,null,null,null,null,"Select"]
["Sch VIA","Schedule of Funds Held",null,"(C) ABS and Struct. Sec. - Currency 49","Select",null,null,null,null,null,null,null,"Select"]
["Sch VIA","Schedule of Funds Held",null,"(C) ABS and Struct. Sec. - Currency 68","Select",null,null,null,null,null,null,null,"Select"]
["Sch VIA","Schedule of Funds Held",null,"(C) ABS and Struct. Sec. - Currency 93","Select",null,null,null,null,null,null,null,"Select"]
["Sch VIA","Schedule of Funds Held",null,"(C) ABS and Struct. Sec. - Currency 112","Select",null,null,null,null,null,null,null,"Select"]
["Sch VIA","Schedule of Funds Held",null,"(C) ABS and Struct. Sec. - Currency 131","Select",null,null,null,null,null,null,null,"Select"]
["Sch VIA","Schedule of Funds Held",null,"(C) ABS and Struct. Sec. - Currency 148","Select",null,null,null,null,null,null,null,"Select"]
["Sch VIA","Schedule of Funds Held",null,"(C) ABS and Struct. Sec. - Rating 26","Select",null,null,null,null,null,null,null,"Select"]
["Sch VIA","Schedule of Funds Held",null,"(C) ABS and Struct. Sec. - Rating 32","Select",null,null,null,null,null,null,null,"Select"]
["Sch VIA","Schedule of Funds Held",null,"(C) ABS and Struct. Sec. - Rating 51","Select",null,null,null,null,null,null,null,"Select"]
["Sch VIA","Schedule of Funds Held",null,"(C) ABS and Struct. Sec. - Rating 70","Select",null,null,null,null,null,null,null,"Select"]
["Sch VIA","Schedule of Funds Held",null,"(C) ABS and Struct. Sec. - Rating 95","Select",null,null,null,null,null,null,null,"Select"]
["Sch VIA","Schedule of Funds Held",null,"(C) ABS and Struct. Sec. - Rating 114","Select",null,null,null,null,null,null,null,"Select"]
["Sch VIA","Schedule of Funds Held",null,"(C) ABS and Struct. Sec. - Rating 139","Select",null,null,null,null,null,null,null,"Select"]
["Sch VIA","Schedule of Funds Held",null,"(C) ABS and Struct. Sec. - Nominal Amount 9",0,null,null,null,null,null,null,null,0]
["Sch VIA","Schedule of Funds Held",null,"(C) ABS and Struct. Sec. - Nominal Amount 28",0,null,null,null,null,null,null,null,0]
["Sch VIA","Schedule of Funds Held",null,"(C) ABS and Struct. Sec. - Nominal Amount 34",0,null,null,null,null,null,null,null,0]
["Sch VIA","Schedule of Funds Held",null,"(C) ABS and Struct. Sec. - Nominal Amount 53",0,null,null,null,null,null,null,null,0]
["Sch VIA","Schedule of Funds Held",null,"(C) ABS and Struct. Sec. - Nominal Amount 72",0,null,null,null,null,null,null,null,0]
["Sch VIA","Schedule of Funds Held",null,"(C) ABS and Struct. Sec. - Nominal Amount 97",0,null,null,null,null,null,null,null,0]
["Sch VIA","Schedule of Funds Held",null,"(C) ABS and Struct. Sec. - Nominal Amount 116",0,null,null,null,null,null,null,null,0]
["Sch VIA","Schedule of Funds Held",null,"(C) ABS and Struct. Sec. - Nominal Amount 146",0,null,null,null,null,null,null,null,0]
["Sch VIA","Schedule of Funds Held",null,"(C) ABS and Struct. Sec. - Fair Value 11",0,null,null,null,null,null,null,null,0]
["Sch VIA","Schedule of Funds Held",null,"(C) ABS and Struct. Sec. - Fair Value 30",0,null,null,null,null,null,null,null,0]
["Sch VIA","Schedule of Funds Held",null,"(C) ABS and Struct. Sec. - Fair Value 36",0,null,null,null,null,null,null,null,0]
["Sch VIA","Schedule of Funds Held",null,"(C) ABS and Struct. Sec. - Fair Value 55",0,null,null,null,null,null,null,null,0]
["Sch VIA","Schedule of Funds Held",null,"(C) ABS and Struct. Sec. - Fair Value 74",0,null,null,null,null,null,null,null,0]
["Sch VIA","Schedule of Funds Held",null,"(C) ABS and Struct. Sec. - Fair Value 99",0,null,null,null,null,null,null,null,0]
["Sch VIA","Schedule of Funds Held",null,"(C) ABS and Struct. Sec. - Fair Value 118",0,null,null,null,null,null,null,null,0]
["Sch VIA","Schedule of Funds Held",null,"(C) ABS and Struct. Sec. - Fair Value 137",0,null,null,null,null,null,null,null,0]
["Sch VIA","Schedule of Funds Held",null,"(C) ABS and Struct. Sec. - Weighted Avg YTM 13",0,null,null,null,null,null,null,null,0]
["Sch VIA","Schedule of Funds Held",null,"(C) ABS and Struct. Sec. - Weighted Avg YTM 32",0,null,null,null,null,null,null,null,0]
["Sch VIA","Schedule of Funds Held",null,"(C) ABS and Struct. Sec. - Weighted Avg YTM 57",0,null,null,null,null,null,null,null,0]
["Sch VIA","Schedule of Funds Held",null,"(C) ABS and Struct. Sec. - Weighted Avg YTM 76",0,null,null,null,null,null,null,null,0]
["Sch VIA","Schedule of Funds Held",null,"(C) ABS and Struct. Sec. - Weighted Avg YTM 82",0,null,null,null,null,null,null,null,0]
["Sch VIA","Schedule of Funds Held",null,"(C) ABS and Struct. Sec. - Weighted Avg YTM 101",0,null,null,null,null,null,null,null,0]
["Sch VIA","Schedule of Funds Held",null,"(C) ABS and Struct. Sec. - Weighted Avg YTM 120",0,null,null,null,null,null,null,null,0]
["Sch VIA","Schedule of Funds Held",null,"(C) ABS and Struct. Sec. - Weighted Avg YTM 148",0,null,null,null,null,null,null,null,0]
["Sch VIA","Schedule of Funds Held",null,"(C) ABS and Struct. Sec. - Effective Duration 15",0,null,null,null,null,null,null,null,0]
["Sch VIA","Schedule of Funds Held",null,"(C) ABS and Struct. Sec. - Effective Duration 34",0,null,null,null,null,null,null,null,0]
["Sch VIA","Schedule of Funds Held",null,"(C) ABS and Struct. Sec. - Effective Duration 59",0,null,null,null,null,null,null,null,0]
["Sch VIA","Schedule of Funds Held",null,"(C) ABS and Struct. Sec. - Effective Duration 78",0,null,null,null,null,null,null,null,0]
["Sch VIA","Schedule of Funds Held",null,"(C) ABS and Struct. Sec. - Effective Duration 84",0,null,null,null,null,null,null,null,0]
["Sch VIA","Schedule of Funds Held",null,"(C) ABS and Struct. Sec. - Effective Duration 103",0,null,null,null,null,null,null,null,0]
["Sch VIA","Schedule of Funds Held",null,"(C) ABS and Struct. Sec. - Effective Duration 119",0,null,null,null,null,null,null,null,0]
["Sch VIA","Schedule of Funds Held",null,"(C) ABS and Struct. Sec. - Effective Duration 148",0,null,null,null,null,null,null,null,0]
["Sch VIA","Schedule of Funds Held",null,"(C) ABS and Struct. Sec. - Comments 17",0,null,null,null,null,null,null,null,0]
["Sch VIA","Schedule of Funds Held",null,"(C) ABS and Struct. Sec. - Comments 42",0,null,null,null,null,null,null,null,0]
["Sch VIA","Schedule of Funds Held",null,"(C) ABS and Struct. Sec. - Comments 61",0,null,null,null,null,null,null,null,0]
["Sch VIA","Schedule of Funds Held",null,"(C) ABS and Struct. Sec. - Comments 80",0,null,null,null,null,null,null,null,0]
["Sch VIA","Schedule of Funds Held",null,"(C) ABS and Struct. Sec. - Comments 86",0,null,null,null,null,null,null,null,0]
["Sch VIA","Schedule of Funds Held",null,"(C) ABS and Struct. Sec. - Comments 105",0,null,null,null,null,null,null,null,0]
["Sch VIA","Schedule of Funds Held",null,"(C) ABS and Struct. Sec. - Comments 130",0,null,null,null,null,null,null,null,0]
["Sch VIA","Schedule of Funds Held",null,"(C) ABS and Struct. Sec. - Comments 150",0,null,null,null,null,null,null,null,0]
["Sch VIA","Schedule of Funds Held",null,"(D) Loans - Asset Type 18","Select",null,null,null,null,null,null,null,"Select"]
["Sch VIA","Schedule of Funds Held",null,"(D) Loans - Asset Type 43","Select",null,null,null,null,null,null,null,"Select"]
["Sch VIA","Schedule of Funds Held",null,"(D) Loans - Asset Type 62","Select",null,null,null,null,null,null,null,"Select"]
["Sch VIA","Schedule of Funds Held",null,"(D) Loans - Asset Type 81","Select",null,null,null,null,null,null,null,"Select"]
["Sch VIA","Schedule of Funds Held",null,"(D) Loans - Asset Type 87","Select",null,null,null,null,null,null,null,"Select"]
["Sch VIA","Schedule of Funds Held",null,"(D) Loans - Currency 16","Select",null,null,null,null,null,null,null,"Select"]
["Sch VIA","Schedule of Funds Held",null,"(D) Loans - Currency 26","Select",null,null,null,null,null,null,null,"Select"]
["Sch VIA","Schedule of Funds Held",null,"(D) Loans - Currency 51","Select",null,null,null,null,null,null,null,"Select"]
["Sch VIA","Schedule of Funds Held",null,"(D) Loans - Currency 70","Select",null,null,null,null,null,null,null,"Select"]
["Sch VIA","Schedule of Funds Held",null,"(D) Loans - Currency 95","Select",null,null,null,null,null,null,null,"Select"]
["Sch VIA","Schedule of Funds Held",null,"(D) Loans - Country 14","Select",null,null,null,null,null,null,null,"Select"]
["Sch VIA","Schedule of Funds Held",null,"(D) Loans - Country 33","Select",null,null,null,null,null,null,null,"Select"]
["Sch VIA","Schedule of Funds Held",null,"(D) Loans - Country 39","Select",null,null,null,null,null,null,null,"Select"]
["Sch VIA","Schedule of Funds Held",null,"(D) Loans - Country 57","Select",null,null,null,null,null,null,null,"Select"]
["Sch VIA","Schedule of Funds Held",null,"(D) Loans - Country 84","Select",null,null,null,null,null,null,null,"Select"]
["Sch VIA","Schedule of Funds Held",null,"(D) Loans - Rating 3","Select",null,null,null,null,null,null,null,"Select"]
["Sch VIA","Schedule of Funds Held",null,"(D) Loans - Rating 22","Select",null,null,null,null,null,null,null,"Select"]
["Sch VIA","Schedule of Funds Held",null,"(D) Loans - Rating 47","Select",null,null,null,null,null,null,null,"Select"]
["Sch VIA","Schedule of Funds Held",null,"(D) Loans - Rating 66","Select",null,null,null,null,null,null,null,"Select"]
["Sch VIA","Schedule of Funds Held",null,"(D) Loans - Rating 85","Select",null,null,null,null,null,null,null,"Select"]
["Sch VIA","Schedule of Funds Held",null,"(D) Loans - Rating 91","Select",null,null,null,null,null,null,null,"Select"]
["Sch VIA","Schedule of Funds Held",null,"(D) Loans - Nominal Amount 18",0,null,null,null,null,null,null,null,0]
["Sch VIA","Schedule of Funds Held",null,"(D) Loans - Nominal Amount 36",0,null,null,null,null,null,null,null,0]
["Sch VIA","Schedule of Funds Held",null,"(D) Loans - Nominal Amount 55",0,null,null,null,null,null,null,null,0]
["Sch VIA","Schedule of Funds Held",null,"(D) Loans - Nominal Amount 74",0,null,null,null,null,null,null,null,0]
["Sch VIA","Schedule of Funds Held",null,"(D) Loans - Nominal Amount 99",0,null,null,null,null,null,null,null,0]
["Sch VIA","Schedule of Funds Held",null,"(D) Loans - Fair Value 18",0,null,null,null,null,null,null,null,0]
["Sch VIA","Schedule of Funds Held",null,"(D) Loans - Fair Value 37",0,null,null,null,null,null,null,null,0]
["Sch VIA","Schedule of Funds Held",null,"(D) Loans - Fair Value 55",0,null,null,null,null,null,null,null,0]
["Sch VIA","Schedule of Funds Held",null,"(D) Loans - Fair Value 82",0,null,null,null,null,null,null,null,0]
["Sch VIA","Schedule of Funds Held",null,"(D) Loans - Fair Value 88",0,null,null,null,null,null,null,null,0]
["Sch VIA","Schedule of Funds Held",null,"(D) Loans - Weighted Avg YTM 7",0,null,null,null,null,null,null,null,0]
["Sch VIA","Schedule of Funds Held",null,"(D) Loans - Weighted Avg YTM 26",0,null,null,null,null,null,null,null,0]
["Sch VIA","Schedule of Funds Held",null,"(D) Loans - Weighted Avg YTM 51",0,null,null,null,null,null,null,null,0]
["Sch VIA","Schedule of Funds Held",null,"(D) Loans - Weighted Avg YTM 70",0,null,null,null,null,null,null,null,0]
["Sch VIA","Schedule of Funds Held",null,"(D) Loans - Weighted Avg YTM 95",0,null,null,null,null,null,null,null,0]
["Sch VIA","Schedule of Funds Held",null,"(D) Loans - Effective Duration 16",0,null,null,null,null,null,null,null,0]
["Sch VIA","Schedule of Funds Held",null,"(D) Loans - Effective Duration 34",0,null,null,null,null,null,null,null,0]
["Sch VIA","Schedule of Funds Held",null,"(D) Loans - Effective Duration 40",0,null,null,null,null,null,null,null,0]
["Sch VIA","Schedule of Funds Held",null,"(D) Loans - Effective Duration 59",0,null,null,null,null,null,null,null,0]
["Sch VIA","Schedule of Funds Held",null,"(D) Loans - Effective Duration 78",0,null,null,null,null,null,null,null,0]
["Sch VIA","Schedule of Funds Held",null,"(D) Loans - Comments 3",0,null,null,null,null,null,null,null,0]
["Sch VIA","Schedule of Funds Held",null,"(D) Loans - Comments 22",0,null,null,null,null,null,null,null,0]
["Sch VIA","Schedule of Funds Held",null,"(D) Loans - Comments 33",0,null,null,null,null,null,null,null,0]
["Sch VIA","Schedule of Funds Held",null,"(D) Loans - Comments 67",0,null,null,null,null,null,null,null,0]
["Sch VIA","Schedule of Funds Held",null,"(D) Loans - Comments 86",0,null,null,null,null,null,null,null,0]
["Sch VIA","Schedule of Funds Held",null,"(D) Loans - Comments 92",0,null,null,null,null,null,null,null,0]
["Sch VIA","Schedule of Funds Held",null,"(D) Loans Not Perform. - Asset Type 10","Select",null,null,null,null,null,null,null,"Select"]
["Sch VIA","Schedule of Funds Held",null,"(D) Loans Not Perform. - Currency 15","Select",null,null,null,null,null,null,null,"Select"]
["Sch VIA","Schedule of Funds Held",null,"(D) Loans Not Perform. - Country 14","Select",null,null,null,null,null,null,null,"Select"]
["Sch VIA","Schedule of Funds Held",null,"(D) Loans Not Perform. - Rating 13","Select",null,null,null,null,null,null,null,"Select"]
["Sch VIA","Schedule of Funds Held",null,"(D) Loans Not Perform. - Nominal Amount 13",0,null,null,null,null,null,null,null,0]
["Sch VIA","Schedule of Funds Held",null,"(D) Loans Not Perform. - Fair Value 18",0,null,null,null,null,null,null,null,0]
["Sch VIA","Schedule of Funds Held",null,"(D) Loans Not Perform. - Comment 17",0,null,null,null,null,null,null,null,0]
["Sch VIA","Schedule of Funds Held",null,"(E) Preferred Equities - Asset Type 2","Select",null,null,null,null,null,null,null,"Select"]
["Sch VIA","Schedule of Funds Held",null,"(E) Preferred Equities - Asset Type 21","Select",null,null,null,null,null,null,null,"Select"]
["Sch VIA","Schedule of Funds Held",null,"(E) Preferred Equities - Asset Type 46","Select",null,null,null,null,null,null,null,"Select"]
["Sch VIA","Schedule of Funds Held",null,"(E) Preferred Equities - Asset Type 65","Select",null,null,null,null,null,null,null,"Select"]
["Sch VIA","Schedule of Funds Held",null,"(E) Preferred Equities - Asset Type 93","Select",null,null,null,null,null,null,null,"Select"]
["Sch VIA","Schedule of Funds Held",null,"(E) Preferred Equities - Currency 10","Select",null,null,null,null,null,null,null,"Select"]
["Sch VIA","Schedule of Funds Held",null,"(E) Preferred Equities - Currency 29","Select",null,null,null,null,null,null,null,"Select"]
["Sch VIA","Schedule of Funds Held",null,"(E) Preferred Equities - Currency 48","Select",null,null,null,null,null,null,null,"Select"]
["Sch VIA","Schedule of Funds Held",null,"(E) Preferred Equities - Currency 54","Select",null,null,null,null,null,null,null,"Select"]
["Sch VIA","Schedule of Funds Held",null,"(E) Preferred Equities - Currency 73","Select",null,null,null,null,null,null,null,"Select"]
["Sch VIA","Schedule of Funds Held",null,"(E) Preferred Equities - Currency 98","Select",null,null,null,null,null,null,null,"Select"]
["Sch VIA","Schedule of Funds Held",null,"(E) Preferred Equities - Rating 17","Select",null,null,null,null,null,null,null,"Select"]
["Sch VIA","Schedule of Funds Held",null,"(E) Preferred Equities - Rating 34","Select",null,null,null,null,null,null,null,"Select"]
["Sch VIA","Schedule of Funds Held",null,"(E) Preferred Equities - Rating 62","Select",null,null,null,null,null,null,null,"Select"]
["Sch VIA","Schedule of Funds Held",null,"(E) Preferred Equities - Rating 81","Select",null,null,null,null,null,null,null,"Select"]
["Sch VIA","Schedule of Funds Held",null,"(E) Preferred Equities - Rating 87","Select",null,null,null,null,null,null,null,"Select"]
["Sch VIA","Schedule of Funds Held",null,"(E) Preferred Equities - Nominal Amount 6",0,null,null,null,null,null,null,null,0]
["Sch VIA","Schedule of Funds Held",null,"(E) Preferred Equities - Nominal Amount 25",0,null,null,null,null,null,null,null,0]
["Sch VIA","Schedule of Funds Held",null,"(E) Preferred Equities - Nominal Amount 50",0,null,null,null,null,null,null,null,0]
["Sch VIA","Schedule of Funds Held",null,"(E) Preferred Equities - Nominal Amount 69",0,null,null,null,null,null,null,null,0]
["Sch VIA","Schedule of Funds Held",null,"(E) Preferred Equities - Nominal Amount 95",0,null,null,null,null,null,null,null,0]
["Sch VIA","Schedule of Funds Held",null,"(E) Preferred Equities - Fair Value 14",0,null,null,null,null,null,null,null,0]
["Sch VIA","Schedule of Funds Held",null,"(E) Preferred Equities - Fair Value 33",0,null,null,null,null,null,null,null,0]
["Sch VIA","Schedule of Funds Held",null,"(E) Preferred Equities - Fair Value 58",0,null,null,null,null,null,null,null,0]
["Sch VIA","Schedule of Funds Held",null,"(E) Preferred Equities - Fair Value 77",0,null,null,null,null,null,null,null,0]
["Sch VIA","Schedule of Funds Held",null,"(E) Preferred Equities - Fair Value 96",0,null,null,null,null,null,null,null,0]
["Sch VIA","Schedule of Funds Held",null,"(E) Preferred Equities - Weighted Avg YTM 2",0,null,null,null,null,null,null,null,0]
["Sch VIA","Schedule of Funds Held",null,"(E) Preferred Equities - Weighted Avg YTM 32",0,null,null,null,null,null,null,null,0]
["Sch VIA","Schedule of Funds Held",null,"(E) Preferred Equities - Weighted Avg YTM 47",0,null,null,null,null,null,null,null,0]
["Sch VIA","Schedule of Funds Held",null,"(E) Preferred Equities - Weighted Avg YTM 66",0,null,null,null,null,null,null,null,0]
["Sch VIA","Schedule of Funds Held",null,"(E) Preferred Equities - Weighted Avg YTM 85",0,null,null,null,null,null,null,null,0]
["Sch VIA","Schedule of Funds Held",null,"(E) Preferred Equities - Effective Duration 10",0,null,null,null,null,null,null,null,0]
["Sch VIA","Schedule of Funds Held",null,"(E) Preferred Equities - Effective Duration 29",0,null,null,null,null,null,null,null,0]
["Sch VIA","Schedule of Funds Held",null,"(E) Preferred Equities - Effective Duration 48",0,null,null,null,null,null,null,null,0]
["Sch VIA","Schedule of Funds Held",null,"(E) Preferred Equities - Effective Duration 54",0,null,null,null,null,null,null,null,0]
["Sch VIA","Schedule of Funds Held",null,"(E) Preferred Equities - Effective Duration 73",0,null,null,null,null,null,null,null,0]
["Sch VIA","Schedule of Funds Held",null,"(E) Preferred Equities - Effective Duration 99",0,null,null,null,null,null,null,null,0]
["Sch VIA","Schedule of Funds Held",null,"(E) Preferred Equities - Comments 18",0,null,null,null,null,null,null,null,0]
["Sch VIA","Schedule of Funds Held",null,"(E) Preferred Equities - Comments 37",0,null,null,null,null,null,null,null,0]
["Sch VIA","Schedule of Funds Held",null,"(E) Preferred Equities - Comments 62",0,null,null,null,null,null,null,null,0]
["Sch VIA","Schedule of Funds Held",null,"(E) Preferred Equities - Comments 81",0,null,null,null,null,null,null,null,0]
["Sch VIA","Schedule of Funds Held",null,"(E) Preferred Equities - Comments 100",0,null,null,null,null,null,null,null,0]
["Sch VIA","Schedule of Funds Held",null,"(F) Common Equities - Asset Type 9","Select",null,null,null,null,null,null,null,"Select"]
["Sch VIA","Schedule of Funds Held",null,"(F) Common Equities - Asset Type 25","Select",null,null,null,null,null,null,null,"Select"]
["Sch VIA","Schedule of Funds Held",null,"(F) Common Equities - Asset Type 50","Select",null,null,null,null,null,null,null,"Select"]
["Sch VIA","Schedule of Funds Held",null,"(F) Common Equities - Asset Type 69","Select",null,null,null,null,null,null,null,"Select"]
["Sch VIA","Schedule of Funds Held",null,"(F) Common Equities - Asset Type 88","Select",null,null,null,null,null,null,null,"Select"]
["Sch VIA","Schedule of Funds Held",null,"(F) Common Equities - Currency 13","Select",null,null,null,null,null,null,null,"Select"]
["Sch VIA","Schedule of Funds Held",null,"(F) Common Equities - Currency 32","Select",null,null,null,null,null,null,null,"Select"]
["Sch VIA","Schedule of Funds Held",null,"(F) Common Equities - Currency 38","Select",null,null,null,null,null,null,null,"Select"]
["Sch VIA","Schedule of Funds Held",null,"(F) Common Equities - Currency 70","Select",null,null,null,null,null,null,null,"Select"]
["Sch VIA","Schedule of Funds Held",null,"(F) Common Equities - Currency 77","Select",null,null,null,null,null,null,null,"Select"]
["Sch VIA","Schedule of Funds Held",null,"(F) Common Equities - Country 2","Select",null,null,null,null,null,null,null,"Select"]
["Sch VIA","Schedule of Funds Held",null,"(F) Common Equities - Country 21","Select",null,null,null,null,null,null,null,"Select"]
["Sch VIA","Schedule of Funds Held",null,"(F) Common Equities - Country 40","Select",null,null,null,null,null,null,null,"Select"]
["Sch VIA","Schedule of Funds Held",null,"(F) Common Equities - Country 65","Select",null,null,null,null,null,null,null,"Select"]
["Sch VIA","Schedule of Funds Held",null,"(F) Common Equities - Country 84","Select",null,null,null,null,null,null,null,"Select"]
["Sch VIA","Schedule of Funds Held",null,"(F) Common Equities - Fair Value 7",0,null,null,null,null,null,null,null,0]
["Sch VIA","Schedule of Funds Held",null,"(F) Common Equities - Fair Value 10",0,null,null,null,null,null,null,null,0]
["Sch VIA","Schedule of Funds Held",null,"(F) Common Equities - Fair Value 29",0,null,null,null,null,null,null,null,0]
["Sch VIA","Schedule of Funds Held",null,"(F) Common Equities - Fair Value 54",0,null,null,null,null,null,null,null,0]
["Sch VIA","Schedule of Funds Held",null,"(F) Common Equities - Fair Value 73",0,null,null,null,null,null,null,null,0]
["Sch VIA","Schedule of Funds Held",null,"(F) Common Equities - Fair Value 92",0,null,null,null,null,null,null,null,0]
["Sch VIA","Schedule of Funds Held",null,"(F) Common Equities - Comments 17",0,null,null,null,null,null,null,null,0]
["Sch VIA","Schedule of Funds Held",null,"(F) Common Equities - Comments 36",0,null,null,null,null,null,null,null,0]
["Sch VIA","Schedule of Funds Held",null,"(F) Common Equities - Comments 48",0,null,null,null,null,null,null,null,0]
["Sch VIA","Schedule of Funds Held",null,"(F) Common Equities - Comments 62",0,null,null,null,null,null,null,null,0]
["Sch VIA","Schedule of Funds Held",null,"(F) Common Equities - Comments 81",0,null,null,null,null,null,null,null,0]
["Sch VIA","Schedule of Funds Held",null,"(G) Real Estate - Asset Type 5","Select",null,null,null,null,null,null,null,"Select"]
["Sch VIA","Schedule of Funds Held",null,"(G) Real Estate - Asset Type 24","Select",null,null,null,null,null,null,null,"Select"]
["Sch VIA","Schedule of Funds Held",null,"(G) Real Estate - Asset Type 49","Select",null,null,null,null,null,null,null,"Select"]
["Sch VIA","Schedule of Funds Held",null,"(G) Real Estate - Asset Type 68","Select",null,null,null,null,null,null,null,"Select"]
["Sch VIA","Schedule of Funds Held",null,"(G) Real Estate - Asset Type 87","Select",null,null,null,null,null,null,null,"Select"]
["Sch VIA","Schedule of Funds Held",null,"(G) Real Estate - Currency 8","Select",null,null,null,null,null,null,null,"Select"]
["Sch VIA","Schedule of Funds Held",null,"(G) Real Estate - Currency 32","Select",null,null,null,null,null,null,null,"Select"]
["Sch VIA","Schedule of Funds Held",null,"(G) Real Estate - Currency 51","Select",null,null,null,null,null,null,null,"Select"]
["Sch VIA","Schedule of Funds Held",null,"(G) Real Estate - Currency 57","Select",null,null,null,null,null,null,null,"Select"]
["Sch VIA","Schedule of Funds Held",null,"(G) Real Estate - Currency 76","Select",null,null,null,null,null,null,null,"Select"]
["Sch VIA","Schedule of Funds Held",null,"(G) Real Estate - Country 1","Select",null,null,null,null,null,null,null,"Select"]
["Sch VIA","Schedule of Funds Held",null,"(G) Real Estate - Country 20","Select",null,null,null,null,null,null,null,"Select"]
["Sch VIA","Schedule of Funds Held",null,"(G) Real Estate - Country 29","Select",null,null,null,null,null,null,null,"Select"]
["Sch VIA","Schedule of Funds Held",null,"(G) Real Estate - Country 65","Select",null,null,null,null,null,null,null,"Select"]
["Sch VIA","Schedule of Funds Held",null,"(G) Real Estate - Country 84","Select",null,null,null,null,null,null,null,"Select"]
["Sch VIA","Schedule of Funds Held",null,"(G) Real Estate - Country 90","Select",null,null,null,null,null,null,null,"Select"]
["Sch VIA","Schedule of Funds Held",null,"(G) Real Estate - Purpose 9","Select",null,null,null,null,null,null,null,"Select"]
["Sch VIA","Schedule of Funds Held",null,"(G) Real Estate - Purpose 28","Select",null,null,null,null,null,null,null,"Select"]
["Sch VIA","Schedule of Funds Held",null,"(G) Real Estate - Purpose 53","Select",null,null,null,null,null,null,null,"Select"]
["Sch VIA","Schedule of Funds Held",null,"(G) Real Estate - Purpose 72","Select",null,null,null,null,null,null,null,"Select"]
["Sch VIA","Schedule of Funds Held",null,"(G) Real Estate - Purpose 90","Select",null,null,null,null,null,null,null,"Select"]
["Sch VIA","Schedule of Funds Held",null,"(G) Real Estate - Cost 17",0,null,null,null,null,null,null,null,0]
["Sch VIA","Schedule of Funds Held",null,"(G) Real Estate - Cost 36",0,null,null,null,null,null,null,null,0]
["Sch VIA","Schedule of Funds Held",null,"(G) Real Estate - Cost 42",0,null,null,null,null,null,null,null,0]
["Sch VIA","Schedule of Funds Held",null,"(G) Real Estate - Cost 61",0,null,null,null,null,null,null,null,0]
["Sch VIA","Schedule of Funds Held",null,"(G) Real Estate - Cost 80",0,null,null,null,null,null,null,null,0]
["Sch VIA","Schedule of Funds Held",null,"(G) Real Estate - Fair Value 5",0,null,null,null,null,null,null,null,0]
["Sch VIA","Schedule of Funds Held",null,"(G) Real Estate - Fair Value 27",0,null,null,null,null,null,null,null,0]
["Sch VIA","Schedule of Funds Held",null,"(G) Real Estate - Fair Value 44",0,null,null,null,null,null,null,null,0]
["Sch VIA","Schedule of Funds Held",null,"(G) Real Estate - Fair Value 69",0,null,null,null,null,null,null,null,0]
["Sch VIA","Schedule of Funds Held",null,"(G) Real Estate - Fair Value 88",0,null,null,null,null,null,null,null,0]
["Sch VIA","Schedule of Funds Held",null,"(G) Real Estate - Fair Value 94",0,null,null,null,null,null,null,null,0]
["Sch VIA","Schedule of Funds Held",null,"(G) Real Estate - Comments 13",0,null,null,null,null,null,null,null,0]
["Sch VIA","Schedule of Funds Held",null,"(G) Real Estate - Comments 32",0,null,null,null,null,null,null,null,0]
["Sch VIA","Schedule of Funds Held",null,"(G) Real Estate - Comments 57",0,null,null,null,null,null,null,null,0]
["Sch VIA","Schedule of Funds Held",null,"(G) Real Estate - Comments 68",0,null,null,null,null,null,null,null,0]
["Sch VIA","Schedule of Funds Held",null,"(H) Other Alt. Inv. - Asset Type 1","Select",null,null,null,null,null,null,null,"Select"]
["Sch VIA","Schedule of Funds Held",null,"(H) Other Alt. Inv. - Asset Type 20","Select",null,null,null,null,null,null,null,"Select"]
["Sch VIA","Schedule of Funds Held",null,"(H) Other Alt. Inv. - Asset Type 39","Select",null,null,null,null,null,null,null,"Select"]
["Sch VIA","Schedule of Funds Held",null,"(H) Other Alt. Inv. - Asset Type 45","Select",null,null,null,null,null,null,null,"Select"]
["Sch VIA","Schedule of Funds Held",null,"(H) Other Alt. Inv. - Asset Type 64","Select",null,null,null,null,null,null,null,"Select"]
["Sch VIA","Schedule of Funds Held",null,"(H) Other Alt. Inv. - Asset Type 83","Select",null,null,null,null,null,null,null,"Select"]
["Sch VIA","Schedule of Funds Held",null,"(H) Other Alt. Inv. - Currency 4","Select",null,null,null,null,null,null,null,"Select"]
["Sch VIA","Schedule of Funds Held",null,"(H) Other Alt. Inv. - Currency 28","Select",null,null,null,null,null,null,null,"Select"]
["Sch VIA","Schedule of Funds Held",null,"(H) Other Alt. Inv. - Currency 53","Select",null,null,null,null,null,null,null,"Select"]
["Sch VIA","Schedule of Funds Held",null,"(H) Other Alt. Inv. - Currency 72","Select",null,null,null,null,null,null,null,"Select"]
["Sch VIA","Schedule of Funds Held",null,"(H) Other Alt. Inv. - Currency 91","Select",null,null,null,null,null,null,null,"Select"]
["Sch VIA","Schedule of Funds Held",null,"(H) Other Alt. Inv. - Currency 97","Select",null,null,null,null,null,null,null,"Select"]
["Sch VIA","Schedule of Funds Held",null,"(H) Other Alt. Inv. - Country 16","Select",null,null,null,null,null,null,null,"Select"]
["Sch VIA","Schedule of Funds Held",null,"(H) Other Alt. Inv. - Country 35","Select",null,null,null,null,null,null,null,"Select"]
["Sch VIA","Schedule of Funds Held",null,"(H) Other Alt. Inv. - Country 65","Select",null,null,null,null,null,null,null,"Select"]
["Sch VIA","Schedule of Funds Held",null,"(H) Other Alt. Inv. - Country 80","Select",null,null,null,null,null,null,null,"Select"]
["Sch VIA","Schedule of Funds Held",null,"(H) Other Alt. Inv. - Rating 5","Select",null,null,null,null,null,null,null,"Select"]
["Sch VIA","Schedule of Funds Held",null,"(H) Other Alt. Inv. - Rating 24","Select",null,null,null,null,null,null,null,"Select"]
["Sch VIA","Schedule of Funds Held",null,"(H) Other Alt. Inv. - Rating 43","Select",null,null,null,null,null,null,null,"Select"]
["Sch VIA","Schedule of Funds Held",null,"(H) Other Alt. Inv. - Rating 68","Select",null,null,null,null,null,null,null,"Select"]
["Sch VIA","Schedule of Funds Held",null,"(H) Other Alt. Inv. - Rating 87","Select",null,null,null,null,null,null,null,"Select"]
["Sch VIA","Schedule of Funds Held",null,"(H) Other Alt. Inv. - Rating 93","Select",null,null,null,null,null,null,null,"Select"]
["Sch VIA","Schedule of Funds Held",null,"(H) Other Alt. Inv. - Nominal Amount 26",0,null,null,null,null,null,null,null,0]
["Sch VIA","Schedule of Funds Held",null,"(H) Other Alt. Inv. - Nominal Amount 32",0,null,null,null,null,null,null,null,0]
["Sch VIA","Schedule of Funds Held",null,"(H) Other Alt. Inv. - Nominal Amount 57",0,null,null,null,null,null,null,null,0]
["Sch VIA","Schedule of Funds Held",null,"(H) Other Alt. Inv. - Nominal Amount 76",0,null,null,null,null,null,null,null,0]
["Sch VIA","Schedule of Funds Held",null,"(H) Other Alt. Inv. - Nominal Amount 95",0,null,null,null,null,null,null,null,0]
["Sch VIA","Schedule of Funds Held",null,"(H) Other Alt. Inv. - Fair Value 20",0,null,null,null,null,null,null,null,0]
["Sch VIA","Schedule of Funds Held",null,"(H) Other Alt. Inv. - Fair Value 39",0,null,null,null,null,null,null,null,0]
["Sch VIA","Schedule of Funds Held",null,"(H) Other Alt. Inv. - Fair Value 43",0,null,null,null,null,null,null,null,0]
["Sch VIA","Schedule of Funds Held",null,"(H) Other Alt. Inv. - Fair Value 65",0,null,null,null,null,null,null,null,0]
["Sch VIA","Schedule of Funds Held",null,"(H) Other Alt. Inv. - Fair Value 84",0,null,null,null,null,null,null,null,0]
["Sch VIA","Schedule of Funds Held",null,"(H) Other Alt. Inv. - Weighted Avg YTM 9",0,null,null,null,null,null,null,null,0]
["Sch VIA","Schedule of Funds Held",null,"(H) Other Alt. Inv. - Weighted Avg YTM 28",0,null,null,null,null,null,null,null,0]
["Sch VIA","Schedule of Funds Held",null,"(H) Other Alt. Inv. - Weighted Avg YTM 53",0,null,null,null,null,null,null,null,0]
["Sch VIA","Schedule of Funds Held",null,"(H) Other Alt. Inv. - Weighted Avg YTM 72",0,null,null,null,null,null,null,null,0]
["Sch VIA","Schedule of Funds Held",null,"(H) Other Alt. Inv. - Weighted Avg YTM 91",0,null,null,null,null,null,null,null,0]
["Sch VIA","Schedule of Funds Held",null,"(H) Other Alt. Inv. - Effective Duration 4",0,null,null,null,null,null,null,null,0]
["Sch VIA","Schedule of Funds Held",null,"(H) Other Alt. Inv. - Effective Duration 17",0,null,null,null,null,null,null,null,0]
["Sch VIA","Schedule of Funds Held",null,"(H) Other Alt. Inv. - Effective Duration 36",0,null,null,null,null,null,null,null,0]
["Sch VIA","Schedule of Funds Held",null,"(H) Other Alt. Inv. - Effective Duration 61",0,null,null,null,null,null,null,null,0]
["Sch VIA","Schedule of Funds Held",null,"(H) Other Alt. Inv. - Effective Duration 80",0,null,null,null,null,null,null,null,0]
["Sch VIA","Schedule of Funds Held",null,"(H) Other Alt. Inv. - Comments 5",0,null,null,null,null,null,null,null,0]
["Sch VIA","Schedule of Funds Held",null,"(H) Other Alt. Inv. - Comments 24",0,null,null,null,null,null,null,null,0]
["Sch VIA","Schedule of Funds Held",null,"(H) Other Alt. Inv. - Comments 45",0,null,null,null,null,null,null,null,0]
["Sch VIA","Schedule of Funds Held",null,"(H) Other Alt. Inv. - Comments 50",0,null,null,null,null,null,null,null,0]
["Sch VIA","Schedule of Funds Held",null,"(H) Other Alt. Inv. - Comments 69",0,null,null,null,null,null,null,null,0]
["Sch VIA","Schedule of Funds Held",null,"(H) Other Alt. Inv. - Comments 88",0,null,null,null,null,null,null,null,0]
["Sch VIA","Schedule of Funds Held",null,"(I) Derivatives - Derivative Type 12","Select",null,null,null,null,null,null,null,"Select"]
["Sch VIA","Schedule of Funds Held",null,"(I) Derivatives - Derivative Type 31","Select",null,null,null,null,null,null,null,"Select"]
["Sch VIA","Schedule of Funds Held",null,"(I) Derivatives - Derivative Type 56","Select",null,null,null,null,null,null,null,"Select"]
["Sch VIA","Schedule of Funds Held",null,"(I) Derivatives - Derivative Type 75","Select",null,null,null,null,null,null,null,"Select"]
["Sch VIA","Schedule of Funds Held",null,"(I) Derivatives - Derivative Type 85","Select",null,null,null,null,null,null,null,"Select"]
["Sch VIA","Schedule of Funds Held",null,"(I) Derivatives - Derivative Type 101","Select",null,null,null,null,null,null,null,"Select"]
["Sch VIA","Schedule of Funds Held",null,"(I) Derivatives - Derivative Type 120","Select",null,null,null,null,null,null,null,"Select"]
["Sch VIA","Schedule of Funds Held",null,"(I) Derivatives - Derivative Type 145","Select",null,null,null,null,null,null,null,"Select"]
["Sch VIA","Schedule of Funds Held",null,"(I) Derivatives - Derivative Type 164","Select",null,null,null,null,null,null,null,"Select"]
["Sch VIA","Schedule of Funds Held",null,"(I) Derivatives - Derivative Type 183","Select",null,null,null,null,null,null,null,"Select"]
["Sch VIA","Schedule of Funds Held",null,"(I) Derivatives - Underlying 8","Select",null,null,null,null,null,null,null,"Select"]
["Sch VIA","Schedule of Funds Held",null,"(I) Derivatives - Underlying 22","Select",null,null,null,null,null,null,null,"Select"]
["Sch VIA","Schedule of Funds Held",null,"(I) Derivatives - Underlying 47","Select",null,null,null,null,null,null,null,"Select"]
["Sch VIA","Schedule of Funds Held",null,"(I) Derivatives - Underlying 53","Select",null,null,null,null,null,null,null,"Select"]
["Sch VIA","Schedule of Funds Held",null,"(I) Derivatives - Underlying 72","Select",null,null,null,null,null,null,null,"Select"]
["Sch VIA","Schedule of Funds Held",null,"(I) Derivatives - Underlying 97","Select",null,null,null,null,null,null,null,"Select"]
["Sch VIA","Schedule of Funds Held",null,"(I) Derivatives - Underlying 116","Select",null,null,null,null,null,null,null,"Select"]
["Sch VIA","Schedule of Funds Held",null,"(I) Derivatives - Underlying 135","Select",null,null,null,null,null,null,null,"Select"]
["Sch VIA","Schedule of Funds Held",null,"(I) Derivatives - Underlying 160","Select",null,null,null,null,null,null,null,"Select"]
["Sch VIA","Schedule of Funds Held",null,"(I) Derivatives - Underlying 183","Select",null,null,null,null,null,null,null,"Select"]
["Sch VIA","Schedule of Funds Held",null,"(I) Derivatives - Currency 5","Select",null,null,null,null,null,null,null,"Select"]
["Sch VIA","Schedule of Funds Held",null,"(I) Derivatives - Currency 24","Select",null,null,null,null,null,null,null,"Select"]
["Sch VIA","Schedule of Funds Held",null,"(I) Derivatives - Currency 43","Select",null,null,null,null,null,null,null,"Select"]
["Sch VIA","Schedule of Funds Held",null,"(I) Derivatives - Currency 49","Select",null,null,null,null,null,null,null,"Select"]
["Sch VIA","Schedule of Funds Held",null,"(I) Derivatives - Currency 68","Select",null,null,null,null,null,null,null,"Select"]
["Sch VIA","Schedule of Funds Held",null,"(I) Derivatives - Currency 87","Select",null,null,null,null,null,null,null,"Select"]
["Sch VIA","Schedule of Funds Held",null,"(I) Derivatives - Currency 112","Select",null,null,null,null,null,null,null,"Select"]
["Sch VIA","Schedule of Funds Held",null,"(I) Derivatives - Currency 124","Select",null,null,null,null,null,null,null,"Select"]
["Sch VIA","Schedule of Funds Held",null,"(I) Derivatives - Currency 157","Select",null,null,null,null,null,null,null,"Select"]
["Sch VIA","Schedule of Funds Held",null,"(I) Derivatives - Currency 176","Select",null,null,null,null,null,null,null,"Select"]
["Sch VIA","Schedule of Funds Held",null,"(I) Derivatives - Currency 195","Select",null,null,null,null,null,null,null,"Select"]
["Sch VIA","Schedule of Funds Held",null,"(I) Derivatives - Trading Category 1","Select",null,null,null,null,null,null,null,"Select"]
["Sch VIA","Schedule of Funds Held",null,"(I) Derivatives - Trading Category 20","Select",null,null,null,null,null,null,null,"Select"]
["Sch VIA","Schedule of Funds Held",null,"(I) Derivatives - Trading Category 39","Select",null,null,null,null,null,null,null,"Select"]
["Sch VIA","Schedule of Funds Held",null,"(I) Derivatives - Trading Category 61","Select",null,null,null,null,null,null,null,"Select"]
["Sch VIA","Schedule of Funds Held",null,"(I) Derivatives - Trading Category 84","Select",null,null,null,null,null,null,null,"Select"]
["Sch VIA","Schedule of Funds Held",null,"(I) Derivatives - Trading Category 109","Select",null,null,null,null,null,null,null,"Select"]
["Sch VIA","Schedule of Funds Held",null,"(I) Derivatives - Trading Category 128","Select",null,null,null,null,null,null,null,"Select"]
["Sch VIA","Schedule of Funds Held",null,"(I) Derivatives - Trading Category 147","Select",null,null,null,null,null,null,null,"Select"]
["Sch VIA","Schedule of Funds Held",null,"(I) Derivatives - Trading Category 153","Select",null,null,null,null,null,null,null,"Select"]
["Sch VIA","Schedule of Funds Held",null,"(I) Derivatives - Trading Category 172","Select",null,null,null,null,null,null,null,"Select"]
["Sch VIA","Schedule of Funds Held",null,"(I) Derivatives - Trading Category 197","Select",null,null,null,null,null,null,null,"Select"]
["Sch VIA","Schedule of Funds Held",null,"(I) Derivatives - Purpose 22","Select",null,null,null,null,null,null,null,"Select"]
["Sch VIA","Schedule of Funds Held",null,"(I) Derivatives - Purpose 36","Select",null,null,null,null,null,null,null,"Select"]
["Sch VIA","Schedule of Funds Held",null,"(I) Derivatives - Purpose 61","Select",null,null,null,null,null,null,null,"Select"]
["Sch VIA","Schedule of Funds Held",null,"(I) Derivatives - Purpose 80","Select",null,null,null,null,null,null,null,"Select"]
["Sch VIA","Schedule of Funds Held",null,"(I) Derivatives - Purpose 99","Select",null,null,null,null,null,null,null,"Select"]
["Sch VIA","Schedule of Funds Held",null,"(I) Derivatives - Purpose 105","Select",null,null,null,null,null,null,null,"Select"]
["Sch VIA","Schedule of Funds Held",null,"(I) Derivatives - Purpose 124","Select",null,null,null,null,null,null,null,"Select"]
["Sch VIA","Schedule of Funds Held",null,"(I) Derivatives - Purpose 159","Select",null,null,null,null,null,null,null,"Select"]
["Sch VIA","Schedule of Funds Held",null,"(I) Derivatives - Purpose 169","Select",null,null,null,null,null,null,null,"Select"]
["Sch VIA","Schedule of Funds Held",null,"(I) Derivatives - Purpose 188","Select",null,null,null,null,null,null,null,"Select"]
["Sch VIA","Schedule of Funds Held",null,"(I) Derivatives - Position 13","Select",null,null,null,null,null,null,null,"Select"]
["Sch VIA","Schedule of Funds Held",null,"(I) Derivatives - Position 32","Select",null,null,null,null,null,null,null,"Select"]
["Sch VIA","Schedule of Funds Held",null,"(I) Derivatives - Position 51","Select",null,null,null,null,null,null,null,"Select"]
["Sch VIA","Schedule of Funds Held",null,"(I) Derivatives - Position 57","Select",null,null,null,null,null,null,null,"Select"]
["Sch VIA","Schedule of Funds Held",null,"(I) Derivatives - Position 76","Select",null,null,null,null,null,null,null,"Select"]
["Sch VIA","Schedule of Funds Held",null,"(I) Derivatives - Position 100","Select",null,null,null,null,null,null,null,"Select"]
["Sch VIA","Schedule of Funds Held",null,"(I) Derivatives - Position 121","Select",null,null,null,null,null,null,null,"Select"]
["Sch VIA","Schedule of Funds Held",null,"(I) Derivatives - Position 140","Select",null,null,null,null,null,null,null,"Select"]
["Sch VIA","Schedule of Funds Held",null,"(I) Derivatives - Position 165","Select",null,null,null,null,null,null,null,"Select"]
["Sch VIA","Schedule of Funds Held",null,"(I) Derivatives - Position 184","Select",null,null,null,null,null,null,null,"Select"]
["Sch VIA","Schedule of Funds Held",null,"(I) Derivatives - Position 190","Select",null,null,null,null,null,null,null,"Select"]
["Sch VIA","Schedule of Funds Held",null,"(I) Derivatives - Pos./Neg. - 9","Select",null,null,null,null,null,null,null,"Select"]
["Sch VIA","Schedule of Funds Held",null,"(I) Derivatives - Pos./Neg. - 28","Select",null,null,null,null,null,null,null,"Select"]
["Sch VIA","Schedule of Funds Held",null,"(I) Derivatives - Pos./Neg. - 61","Select",null,null,null,null,null,null,null,"Select"]
["Sch VIA","Schedule of Funds Held",null,"(I) Derivatives - Pos./Neg. - 73","Select",null,null,null,null,null,null,null,"Select"]
["Sch VIA","Schedule of Funds Held",null,"(I) Derivatives - Pos./Neg. - 92","Select",null,null,null,null,null,null,null,"Select"]
["Sch VIA","Schedule of Funds Held",null,"(I) Derivatives - Pos./Neg. - 117","Select",null,null,null,null,null,null,null,"Select"]
["Sch VIA","Schedule of Funds Held",null,"(I) Derivatives - Pos./Neg. - 136","Select",null,null,null,null,null,null,null,"Select"]
["Sch VIA","Schedule of Funds Held",null,"(I) Derivatives - Pos./Neg. - 161","Select",null,null,null,null,null,null,null,"Select"]
["Sch VIA","Schedule of Funds Held",null,"(I) Derivatives - Pos./Neg. - 180","Select",null,null,null,null,null,null,null,"Select"]
["Sch VIA","Schedule of Funds Held",null,"(I) Derivatives - Pos./Neg. - 182","Select",null,null,null,null,null,null,null,"Select"]
["Sch VIA","Schedule of Funds Held",null,"(I) Derivatives - Market Value 6",0,null,null,null,null,null,null,null,0]
["Sch VIA","Schedule of Funds Held",null,"(I) Derivatives - Market Value 25",0,null,null,null,null,null,null,null,0]
["Sch VIA","Schedule of Funds Held",null,"(I) Derivatives - Market Value 50",0,null,null,null,null,null,null,null,0]
["Sch VIA","Schedule of Funds Held",null,"(I) Derivatives - Market Value 69",0,null,null,null,null,null,null,null,0]
["Sch VIA","Schedule of Funds Held",null,"(I) Derivatives - Market Value 88",0,null,null,null,null,null,null,null,0]
["Sch VIA","Schedule of Funds Held",null,"(I) Derivatives - Market Value 113",0,null,null,null,null,null,null,null,0]
["Sch VIA","Schedule of Funds Held",null,"(I) Derivatives - Market Value 132",0,null,null,null,null,null,null,null,0]
["Sch VIA","Schedule of Funds Held",null,"(I) Derivatives - Market Value 143",0,null,null,null,null,null,null,null,0]
["Sch VIA","Schedule of Funds Held",null,"(I) Derivatives - Market Value 158",0,null,null,null,null,null,null,null,0]
["Sch VIA","Schedule of Funds Held",null,"(I) Derivatives - Market Value 177",0,null,null,null,null,null,null,null,0]
["Sch VIA","Schedule of Funds Held",null,"(I) Derivatives - Gross Notional Value 2",0,null,null,null,null,null,null,null,0]
["Sch VIA","Schedule of Funds Held",null,"(I) Derivatives - Gross Notional Value 21",0,null,null,null,null,null,null,null,0]
["Sch VIA","Schedule of Funds Held",null,"(I) Derivatives - Gross Notional Value 40",0,null,null,null,null,null,null,null,0]
["Sch VIA","Schedule of Funds Held",null,"(I) Derivatives - Gross Notional Value 65",0,null,null,null,null,null,null,null,0]
["Sch VIA","Schedule of Funds Held",null,"(I) Derivatives - Gross Notional Value 80",0,null,null,null,null,null,null,null,0]
["Sch VIA","Schedule of Funds Held",null,"(I) Derivatives - Gross Notional Value 104",0,null,null,null,null,null,null,null,0]
["Sch VIA","Schedule of Funds Held",null,"(I) Derivatives - Gross Notional Value 110",0,null,null,null,null,null,null,null,0]
["Sch VIA","Schedule of Funds Held",null,"(I) Derivatives - Gross Notional Value 129",0,null,null,null,null,null,null,null,0]
["Sch VIA","Schedule of Funds Held",null,"(I) Derivatives - Gross Notional Value 154",0,null,null,null,null,null,null,null,0]
["Sch VIA","Schedule of Funds Held",null,"(I) Derivatives - Gross Notional Value 173",0,null,null,null,null,null,null,null,0]
["Sch VIA","Schedule of Funds Held",null,"(I) Derivatives - Gross Notional Value 192",0,null,null,null,null,null,null,null,0]
["Sch VIA","Schedule of Funds Held",null,"(I) Derivatives - Net Notional Value 17",0,null,null,null,null,null,null,null,0]
["Sch VIA","Schedule of Funds Held",null,"(I) Derivatives - Net Notional Value 21",0,null,null,null,null,null,null,null,0]
["Sch VIA","Schedule of Funds Held",null,"(I) Derivatives - Net Notional Value 43",0,null,null,null,null,null,null,null,0]
["Sch VIA","Schedule of Funds Held",null,"(I) Derivatives - Net Notional Value 62",0,null,null,null,null,null,null,null,0]
["Sch VIA","Schedule of Funds Held",null,"(I) Derivatives - Net Notional Value 81",0,null,null,null,null,null,null,null,0]
["Sch VIA","Schedule of Funds Held",null,"(I) Derivatives - Net Notional Value 106",0,null,null,null,null,null,null,null,0]
["Sch VIA","Schedule of Funds Held",null,"(I) Derivatives - Net Notional Value 125",0,null,null,null,null,null,null,null,0]
["Sch VIA","Schedule of Funds Held",null,"(I) Derivatives - Net Notional Value 144",0,null,null,null,null,null,null,null,0]
["Sch VIA","Schedule of Funds Held",null,"(I) Derivatives - Net Notional Value 158",0,null,null,null,null,null,null,null,0]
["Sch VIA","Schedule of Funds Held",null,"(I) Derivatives - Net Notional Value 189",0,null,null,null,null,null,null,null,0]
["Sch VIA","Schedule of Funds Held",null,"(I) Derivatives - Net Notional Value 195",0,null,null,null,null,null,null,null,0]
["Sch VIA","Schedule of Funds Held",null,"(I) Derivatives - Exposure 14",0,null,null,null,null,null,null,null,0]
["Sch VIA","Schedule of Funds Held",null,"(I) Derivatives - Exposure 33",0,null,null,null,null,null,null,null,0]
["Sch VIA","Schedule of Funds Held",null,"(I) Derivatives - Exposure 58",0,null,null,null,null,null,null,null,0]
["Sch VIA","Schedule of Funds Held",null,"(I) Derivatives - Exposure 77",0,null,null,null,null,null,null,null,0]
["Sch VIA","Schedule of Funds Held",null,"(I) Derivatives - Exposure 96",0,null,null,null,null,null,null,null,0]
["Sch VIA","Schedule of Funds Held",null,"(I) Derivatives - Exposure 119",0,null,null,null,null,null,null,null,0]
["Sch VIA","Schedule of Funds Held",null,"(I) Derivatives - Exposure 141",0,null,null,null,null,null,null,null,0]
["Sch VIA","Schedule of Funds Held",null,"(I) Derivatives - Exposure 147",0,null,null,null,null,null,null,null,0]
["Sch VIA","Schedule of Funds Held",null,"(I) Derivatives - Exposure 166",0,null,null,null,null,null,null,null,0]
["Sch VIA","Schedule of Funds Held",null,"(I) Derivatives - Exposure 185",0,null,null,null,null,null,null,null,0]
["Sch VIA","Schedule of Funds Held",null,"(I) Derivatives - Comments 10",0,null,null,null,null,null,null,null,0]
["Sch VIA","Schedule of Funds Held",null,"(I) Derivatives - Comments 29",0,null,null,null,null,null,null,null,0]
["Sch VIA","Schedule of Funds Held",null,"(I) Derivatives - Comments 54",0,null,null,null,null,null,null,null,0]
["Sch VIA","Schedule of Funds Held",null,"(I) Derivatives - Comments 80",0,null,null,null,null,null,null,null,0]
["Sch VIA","Schedule of Funds Held",null,"(I) Derivatives - Comments 93",0,null,null,null,null,null,null,null,0]
["Sch VIA","Schedule of Funds Held",null,"(I) Derivatives - Comments 118",0,null,null,null,null,null,null,null,0]
["Sch VIA","Schedule of Funds Held",null,"(I) Derivatives - Comments 137",0,null,null,null,null,null,null,null,0]
["Sch VIA","Schedule of Funds Held",null,"(I) Derivatives - Comments 156",0,null,null,null,null,null,null,null,0]
["Sch VIA","Schedule of Funds Held",null,"(I) Derivatives - Comments 162",0,null,null,null,null,null,null,null,0]
["Sch VIA","Schedule of Funds Held",null,"(I) Derivatives - Comments 181",0,null,null,null,null,null,null,null,0]
["Sch VIA","Schedule of Funds Held",null,"(I) Derivatives - Comments 197",0,null,null,null,null,null,null,null,0]
["Sch VIA","Schedule of Funds Held",null,"(J) Fin. Inst. Rating 4 - Comments",0,null,null,null,null,null,null,null,0]
["Sch VIA","Schedule of Funds Held",null,"(J) Unlisted Counterparty Rating 4 - Equities",0,null,null,null,null,null,null,null,0]
["Sch VIA","Schedule of Funds Held",null,"(K) Other Assets - Asset Type 6","Select",null,null,null,null,null,null,null,"Select"]
["Sch VIA","Schedule of Funds Held",null,"(K) Other Assets - Asset Type 25","Select",null,null,null,null,null,null,null,"Select"]
["Sch VIA","Schedule of Funds Held",null,"(K) Other Assets - Asset Type 31","Select",null,null,null,null,null,null,null,"Select"]
["Sch VIA","Schedule of Funds Held",null,"(K) Other Assets - Asset Type 50","Select",null,null,null,null,null,null,null,"Select"]
["Sch VIA","Schedule of Funds Held",null,"(K) Other Assets - Asset Type 69","Select",null,null,null,null,null,null,null,"Select"]
["Sch VIA","Schedule of Funds Held",null,"(K) Other Assets - Asset Type 94","Select",null,null,null,null,null,null,null,"Select"]
["Sch VIA","Schedule of Funds Held",null,"(K) Other Assets - Asset Type 114","Select",null,null,null,null,null,null,null,"Select"]
["Sch VIA","Schedule of Funds Held",null,"(K) Other Assets - Asset Type 133","Select",null,null,null,null,null,null,null,"Select"]
["Sch VIA","Schedule of Funds Held",null,"(K) Other Assets - Asset Type 158","Select",null,null,null,null,null,null,null,"Select"]
["Sch VIA","Schedule of Funds Held",null,"(K) Other Assets - Asset Type 177","Select",null,null,null,null,null,null,null,"Select"]
["Sch VIA","Schedule of Funds Held",null,"(K) Other Assets - Asset Type 183","Select",null,null,null,null,null,null,null,"Select"]
["Sch VIA","Schedule of Funds Held",null,"(K) Other Assets - Currency 2","Select",null,null,null,null,null,null,null,"Select"]
["Sch VIA","Schedule of Funds Held",null,"(K) Other Assets - Currency 35","Select",null,null,null,null,null,null,null,"Select"]
["Sch VIA","Schedule of Funds Held",null,"(K) Other Assets - Currency 47","Select",null,null,null,null,null,null,null,"Select"]
["Sch VIA","Schedule of Funds Held",null,"(K) Other Assets - Currency 66","Select",null,null,null,null,null,null,null,"Select"]
["Sch VIA","Schedule of Funds Held",null,"(K) Other Assets - Currency 85","Select",null,null,null,null,null,null,null,"Select"]
["Sch VIA","Schedule of Funds Held",null,"(K) Other Assets - Currency 110","Select",null,null,null,null,null,null,null,"Select"]
["Sch VIA","Schedule of Funds Held",null,"(K) Other Assets - Currency 129","Select",null,null,null,null,null,null,null,"Select"]
["Sch VIA","Schedule of Funds Held",null,"(K) Other Assets - Currency 135","Select",null,null,null,null,null,null,null,"Select"]
["Sch VIA","Schedule of Funds Held",null,"(K) Other Assets - Currency 154","Select",null,null,null,null,null,null,null,"Select"]
["Sch VIA","Schedule of Funds Held",null,"(K) Other Assets - Currency 176","Select",null,null,null,null,null,null,null,"Select"]
["Sch VIA","Schedule of Funds Held",null,"(K) Other Assets - Currency 199","Select",null,null,null,null,null,null,null,"Select"]
["Sch VIA","Schedule of Funds Held",null,"(K) Other Assets - Rating 18","Select",null,null,null,null,null,null,null,"Select"]
["Sch VIA","Schedule of Funds Held",null,"(K) Other Assets - Rating 43","Select",null,null,null,null,null,null,null,"Select"]
["Sch VIA","Schedule of Funds Held",null,"(K) Other Assets - Rating 62","Select",null,null,null,null,null,null,null,"Select"]
["Sch VIA","Schedule of Funds Held",null,"(K) Other Assets - Rating 81","Select",null,null,null,null,null,null,null,"Select"]
["Sch VIA","Schedule of Funds Held",null,"(K) Other Assets - Rating 87","Select",null,null,null,null,null,null,null,"Select"]
["Sch VIA","Schedule of Funds Held",null,"(K) Other Assets - Rating 113","Select",null,null,null,null,null,null,null,"Select"]
["Sch VIA","Schedule of Funds Held",null,"(K) Other Assets - Rating 126","Select",null,null,null,null,null,null,null,"Select"]
["Sch VIA","Schedule of Funds Held",null,"(K) Other Assets - Rating 151","Select",null,null,null,null,null,null,null,"Select"]
["Sch VIA","Schedule of Funds Held",null,"(K) Other Assets - Rating 170","Select",null,null,null,null,null,null,null,"Select"]
["Sch VIA","Schedule of Funds Held",null,"(K) Other Assets - Rating 195","Select",null,null,null,null,null,null,null,"Select"]
["Sch VIA","Schedule of Funds Held",null,"(K) Other Assets - Nominal Amount 14",0,null,null,null,null,null,null,null,0]
["Sch VIA","Schedule of Funds Held",null,"(K) Other Assets - Nominal Amount 33",0,null,null,null,null,null,null,null,0]
["Sch VIA","Schedule of Funds Held",null,"(K) Other Assets - Nominal Amount 39",0,null,null,null,null,null,null,null,0]
["Sch VIA","Schedule of Funds Held",null,"(K) Other Assets - Nominal Amount 74",0,null,null,null,null,null,null,null,0]
["Sch VIA","Schedule of Funds Held",null,"(K) Other Assets - Nominal Amount 84",0,null,null,null,null,null,null,null,0]
["Sch VIA","Schedule of Funds Held",null,"(K) Other Assets - Nominal Amount 103",0,null,null,null,null,null,null,null,0]
["Sch VIA","Schedule of Funds Held",null,"(K) Other Assets - Nominal Amount 122",0,null,null,null,null,null,null,null,0]
["Sch VIA","Schedule of Funds Held",null,"(K) Other Assets - Nominal Amount 147",0,null,null,null,null,null,null,null,0]
["Sch VIA","Schedule of Funds Held",null,"(K) Other Assets - Nominal Amount 166",0,null,null,null,null,null,null,null,0]
["Sch VIA","Schedule of Funds Held",null,"(K) Other Assets - Nominal Amount 185",0,null,null,null,null,null,null,null,0]
["Sch VIA","Schedule of Funds Held",null,"(K) Other Assets - Fair Value 10",0,null,null,null,null,null,null,null,0]
["Sch VIA","Schedule of Funds Held",null,"(K) Other Assets - Fair Value 15",0,null,null,null,null,null,null,null,0]
["Sch VIA","Schedule of Funds Held",null,"(K) Other Assets - Fair Value 36",0,null,null,null,null,null,null,null,0]
["Sch VIA","Schedule of Funds Held",null,"(K) Other Assets - Fair Value 55",0,null,null,null,null,null,null,null,0]
["Sch VIA","Schedule of Funds Held",null,"(K) Other Assets - Fair Value 74",0,null,null,null,null,null,null,null,0]
["Sch VIA","Schedule of Funds Held",null,"(K) Other Assets - Fair Value 99",0,null,null,null,null,null,null,null,0]
["Sch VIA","Schedule of Funds Held",null,"(K) Other Assets - Fair Value 118",0,null,null,null,null,null,null,null,0]
["Sch VIA","Schedule of Funds Held",null,"(K) Other Assets - Fair Value 137",0,null,null,null,null,null,null,null,0]
["Sch VIA","Schedule of Funds Held",null,"(K) Other Assets - Fair Value 152",0,null,null,null,null,null,null,null,0]
["Sch VIA","Schedule of Funds Held",null,"(K) Other Assets - Fair Value 182",0,null,null,null,null,null,null,null,0]
["Sch VIA","Schedule of Funds Held",null,"(K) Other Assets - Fair Value 188",0,null,null,null,null,null,null,null,0]
["Sch VIA","Schedule of Funds Held",null,"(K) Other Assets - Comments 7",0,null,null,null,null,null,null,null,0]
["Sch VIA","Schedule of Funds Held",null,"(K) Other Assets - Comments 26",0,null,null,null,null,null,null,null,0]
["Sch VIA","Schedule of Funds Held",null,"(K) Other Assets - Comments 51",0,null,null,null,null,null,null,null,0]
["Sch VIA","Schedule of Funds Held",null,"(K) Other Assets - Comments 70",0,null,null,null,null,null,null,null,0]
["Sch VIA","Schedule of Funds Held",null,"(K) Other Assets - Comments 95",0,null,null,null,null,null,null,null,0]
["Sch VIA","Schedule of Funds Held",null,"(K) Other Assets - Comments 113",0,null,null,null,null,null,null,null,0]
["Sch VIA","Schedule of Funds Held",null,"(K) Other Assets - Comments 134",0,null,null,null,null,null,null,null,0]
["Sch VIA","Schedule of Funds Held",null,"(K) Other Assets - Comments 140",0,null,null,null,null,null,null,null,0]
["Sch VIA","Schedule of Funds Held",null,"(K) Other Assets - Comments 159",0,null,null,null,null,null,null,null,0]
["Sch VIA","Schedule of Funds Held",null,"(K) Other Assets - Comments 178",0,null,null,null,null,null,null,null,0]
["Sch VIA","Schedule of Funds Held",null,"(L) Add. Info. - Security Lending Fair Value",0,null,null,null,null,null,null,null,0]
["Sch VIA","Schedule of Funds Held",null,"Fin. Inst. - Moody's Rating 1",0,null,null,null,null,null,null,null,0]
["Sch VIA","Schedule of Funds Held",null,"ABS - Moody's Rating 5",0,null,null,null,null,null,null,null,0]
["Sch VIA","Schedule of Funds Held",null,"Fin. Inst. - S&P Rating 5",0,null,null,null,null,null,null,null,0]
["Sch VIA","Schedule of Funds Held",null,"Corp. Insurers - S&P Rating 8",0,null,null,null,null,null,null,null,0]
["Sch VIA","Schedule of Funds Held",null,"ABS - S&P Rating 6",0,null,null,null,null,null,null,null,0]
["Sch VIA","Schedule of Funds Held",null,"Fin. Inst. - DBRS Rating 8",0,null,null,null,null,null,null,null,0]
["Sch VIA","Schedule of Funds Held",null,"ABS - DBRS Rating 3",0,null,null,null,null,null,null,null,0]
["Sch VIA","Schedule of Funds Held",null,"Ins. Companies - Kroll Rating 3",0,null,null,null,null,null,null,null,0]
["Sch VIA","Schedule of Funds Held",null,"ABS - Kroll Rating 6",0,null,null,null,null,null,null,null,0]
["Sch VIA","Schedule of Funds Held",null,"Fin. Inst. - Egan Jones Rating 6",0,null,null,null,null,null,null,null,0]
["Sch VIA","Schedule of Funds Held",null,"Gov. Securities - Egan Jones Rating 1",0,null,null,null,null,null,null,null,0]
["Sch VIA","Schedule of Funds Held",null,"Ins. Companies - Japan Credit Rating 4",0,null,null,null,null,null,null,null,0]
["Sch VIA","Schedule of Funds Held",null,"Corp. Insurers - Japan Credit Rating 2",0,null,null,null,null,null,null,null,0]
["Sch VIA","Schedule of Funds Held",null,"Gov. Securities - Japan Credit Rating 4",0,null,null,null,null,null,null,null,0]
["Sch VIA","Schedule of Funds Held",null,"Corp. Insurers - BMA Approved Int. Rating 5",0,null,null,null,null,null,null,null,0]
["Sch VIA","Schedule of Funds Held",null,"Gov. Securities - BMA Approved Int. Rating 7",0,null,null,null,null,null,null,null,0]
["Sch VIA","Schedule of Funds Held",null,"Corp. Insurers - BMA Approved Agency 1 -  Rating 8",0,null,null,null,null,null,null,null,0]
["Sch VIA","Schedule of Funds Held",null,"Fin. Inst. - BMA Approved Agency 2 -  Rating 3",0,null,null,null,null,null,null,null,0]
["Sch VIA","Schedule of Funds Held",null,"Corp. Insurers - BMA Approved Agency 2 -  Rating 6",0,null,null,null,null,null,null,null,0]
["Sch VIA","Schedule of Funds Held",null,"Gov. Securities - BMA Approved Agency 2 -  Rating 8",0,null,null,null,null,null,null,null,0]
["Sch VIA","Schedule of Funds Held",null,"Fin. Inst. - BMA Approved Agency 3 -  Rating 6",0,null,null,null,null,null,null,null,0]
["Sch VIA","Schedule of Funds Held",null,"ABS - BMA Approved Agency 3 -  Rating 1",0,null,null,null,null,null,null,null,0]
["Sch VII","LT Reserves",null,"1SFS 27d - 3a. Longevity - Imm Pay 0-55",0]
["Sch VII","LT Reserves",null,"1SFS 27d - 11. Group Life",0]
["Sch VII","LT Reserves",null,"DAC - 3e. Longevity - Imm Pay 81+",0]
["Sch VII","LT Reserves",null,"VOBA - 4a. Longevity - Def Pay 0-55",0]
["Sch VII","LT Reserves",null,"VOBA - 17. Variable Annuities",0]
["Sch VII","LT Reserves",null,"PVFP - 13. Group Health",0]
["Sch VII","LT Reserves",null,"Best Est. - 4f. Longevity - Def Pay 76+",0,null,null,null,null,null,null,null,0]
["Sch VII","LT Reserves",null,"Net Amount @ Risk - 2. Critical Illness",0,null,null,null,null,null,null,null,0]
["Sch VII","LT Reserves",null,"12. BBNI Prem. - 6. Deferred Acc. Annuities",null,null,null,null,null,null,null,null,0]
["Sch VII","LT Reserves",null,"13. BBNI Best Est. - 7d. Dis. Income: Active Lives ",null,null,null,null,null,null,null,null,0]
["Sch VII","LT Reserves",null,"14. Best Est. Trans. - 12. Group Disability",null,null,null,null,null,null,null,null,0]
["Sch VII","LT Reserves",null,"15. Best Est. W/O Trans. - 16. Sub Total",null,null,null,null,null,null,null,null,0]
["Sch VII","LT Reserves",null,"16. Scen. - 17. Variable Annuities",null,null,null,null,null,null,null,null,0]
["Sch VII","LT Reserves",null,"18. Base Scen. - 6. Deferred Acc. Annuities",null,null,null,null,null,null,null,null,0]
["Sch VII","LT Reserves",null,"19. BBNI Prem. - 7d. Dis. Income: Active Lives ",null,null,null,null,null,null,null,null,0]
["Sch VII","LT Reserves",null,"20. BBNI Est . - 8. Dis. Income: Active Liv",null,null,null,null,null,null,null,null,0]
["Sch VII","LT Reserves",null,"20. BBNI Est . - 14. Stop Loss",null,null,null,null,null,null,null,null,0]
["Sch VIII","LT Annuity",null,"1. Reserve Out Money - 22. GMAB - Mat. 1-2 Yrs",0,null,null,null,null,null,null,null,0]
["Sch VIII","LT Annuity",null,"2. Vol. 0-10% In Money - 3. GMIB",0,null,null,null,null,null,null,null,0]
["Sch VIII","LT Annuity",null,"2. Vol. 0-10% Out Money - 28. GMAB - Mat. 7-8 Yrs",0,null,null,null,null,null,null,null,0]
["Sch VIII","LT Annuity",null,"3. Vol. 10-15% Out Money - 16. GMDB - Return of Prem.",0,null,null,null,null,null,null,null,0]
["Sch VIII","LT Annuity",null,"4. Vol. +15% In Money - 10. GMAB - Mat. 4-5 Yrs",0,null,null,null,null,null,null,null,0]
["Sch VIII","LT Annuity",null,"4. Vol. +15% Out Money - 29. GMAB - Mat. 8-9 Yrs",0,null,null,null,null,null,null,null,0]
["Sch VIII","LT Annuity",null,"6. Vol. 10-15% In Money - 1. GMDB - Return of Prem.",0,null,null,null,null,null,null,null,0]
["Sch VIII","LT Annuity",null,"6. Vol. 10-15% In Money - 7. GMAB - Mat. 1-2 Yrs",0,null,null,null,null,null,null,null,0]
["Sch VIII","LT Annuity",null,"7. Vol. +15% In Money - 7. GMAB - Mat. 1-2 Yrs",0,null,null,null,null,null,null,null,0]
["Sch VIIIA","LT Internal Model",null,"6-7. 3b. Description of Test - 2",0,null,null,null,null,null,null,null,0]
["Sch VIIIA","LT Internal Model",null,"Policy Type - 2. Policy Count - GMDB - Roll-up",0,null,null,null,null,null,null,null,0]
["Sch VIIIA","LT Internal Model",null,"Policy Type - 3. Acc. Val. - GMIB - W/ Comp Guar.",0,null,null,null,null,null,null,null,0]
["Sch VIIIA","LT Internal Model",null,"Policy Type - 5. NAR - GMIB - Ret. Of Prem.",0,null,null,null,null,null,null,null,0]
["Sch VIIIA","LT Internal Model",null,"Years Since Issue - 1. Stat. Res. - 9",0,null,null,null,null,null,null,null,0]
["Sch VIIIA","LT Internal Model",null,"Years Since Issue - 2. Policy Count - 10",0,null,null,null,null,null,null,null,0]
["Sch VIIIA","LT Internal Model",null,"Years Since Issue - 2. Policy Count - Total",0,null,null,null,null,null,null,null,0]
["Sch VIIIA","LT Internal Model",null,"Years Since Issue - 4. Guar. Val. - 0",0,null,null,null,null,null,null,null,0]
["Sch VIIIA","LT Internal Model",null,"Years Since Issue - 5. NAR - 7",0,null,null,null,null,null,null,null,0]
["Sch VIIIA","LT Internal Model",null,"In/Out of Money - 2. Policy Count - -5 to +5%",0,null,null,null,null,null,null,null,0]
["Sch VIIIA","LT Internal Model",null,"In/Out of Money - 5. NAR - +5 to +15%",0,null,null,null,null,null,null,null,0]
["Sch VIIIA","LT Internal Model",null,"Yr to Next Maturity - 1. Reserve - 2",0,null,null,null,null,null,null,null,0]
["Sch VIIIA","LT Internal Model",null,"Yr to Next Maturity - 2. Policy Count - 9",0,null,null,null,null,null,null,null,0]
["Sch VIIIA","LT Internal Model",null,"Yr to Next Maturity - 3. Acc. Val. - 3",0,null,null,null,null,null,null,null,0]
["Sch VIIIA","LT Internal Model",null,"Yr to Next Maturity - 5. NAR - 8",0,null,null,null,null,null,null,null,0]
["Sch IX(a)","CISSA Capital Summary",null,"Stop Loss Risk (Class D & E insurers only)",null,null,null,null,null,null,null,null,0]
["Sch IX(a)","CISSA Capital Summary",null,"2. Agg. Risk Categories - Other","Select Yes/No"]
["Sch IX(a)","CISSA Capital Summary",null,"7. Restricted Assets in Excess of Cap. Req.",0]
["Sch IX(b)","CISSA General Questions",null,"1. CISSA Used For - Others","Select Yes/No"]
["Sch IX(c)","CISSA Assessment of Material Risks",null,"12g. Doc. Comment - Formal Structure",0]
["Sch XII(a)","Eligible Capital",null,"Encumb. Assets - Pledged Asset - Less Than",null,null,null,null,null,null,null,null,0]
["Sch XII(a)","Eligible Capital",null,"Tier 3 Ancillary - c. Guarantees",null,null,null,null,null,null,null,null,0]
["Sch XII(b)","Eligible Capital - Additional Details",null,"Description of Capital Instrument 3",0]
["Sch XII(b)","Eligible Capital - Additional Details",null,"Date of Issue - Instrument 2","00:00:00"]
["Sch XII(b)","Eligible Capital - Additional Details",null,"Maturity Date - Instrument 7","00:00:00"]
["Sch XII(b)","Eligible Capital - Additional Details",null,"Authority Approval Date - Instrument 6","00:00:00"]
["Sch XII(b)","Eligible Capital - Additional Details",null,"Valuation - Instrument 5",0]
["Sch XII(b)","Eligible Capital - Additional Details",null,"Tier - Instrument 10",0]
["Sch XVI","Non-Insurance",null,"Entity Name - 7",null,null,null,null,0]
["Sch XVI","Non-Insurance",null,"Entity Jurisdiction - 1",null,null,null,null,0]
["Sch XVI","Non-Insurance",null,"Entity Strategic Purpose - 7",null,null,null,null,0]
["Sch XVI","Non-Insurance",null,"Entity Type - 11",null,null,null,null,"Select"]
["Sch XVI","Non-Insurance",null,"Entity Product & Services - 2",null,null,null,null,0]
["Sch XVI","Non-Insurance",null,"Entity Participation - 6",null,null,null,null,"Select"]
["Sch XVI","Non-Insurance",null,"Total Assets in Entity - 1",null,null,null,null,0]
["Sch XVI","Non-Insurance",null,"Investments in Entity - 4",null,null,null,null,0]
["Sch XVI","Non-Insurance",null,"Regulatory Capital in Entity - 7",null,null,null,null,0]
["Sch XVII","Solvency Analysis",null,"Name of Entity - 8",null,null,null,null,0]
["Sch XVII","Solvency Analysis",null,"Jurisdiction of Entity - 5",null,null,null,null,0]
["Sch XVII","Solvency Analysis",null,"Jurisdiction of Entity - 24",null,null,null,null,0]
["Sch XVII","Solvency Analysis",null,"Jurisdiction of Entity - 30",null,null,null,null,0]
["Sch XVII","Solvency Analysis",null,"Type of Entity - 19",null,null,null,null,"Select"]
["Sch XVII","Solvency Analysis",null,"% Ownership of Entity - 14",null,null,null,null,0]
["Sch XVII","Solvency Analysis",null,"GPW of Entity - 3",null,null,null,null,0]
["Sch XVII","Solvency Analysis",null,"GPW of Entity - 29",null,null,null,null,0]
["Sch XVII","Solvency Analysis",null,"NPW of Entity - 17",null,null,null,null,0]
["Sch XVII","Solvency Analysis",null,"Total Assets of Entity - 5",null,null,null,null,0]
["Sch XVII","Solvency Analysis",null,"Total Assets of Entity - 24",null,null,null,null,0]
["Sch XVII","Solvency Analysis",null,"Total Assets of Entity - 30",null,null,null,null,0]
["Sch XVII","Solvency Analysis",null,"Net Assets of Entity - 18",null,null,null,null,0]
["Sch XVII","Solvency Analysis",null,"Regulatory Capital of Entity - 12",null,null,null,null,0]
["Sch XVII","Solvency Analysis",null,"Regulatory Capital Total",null,null,null,null,0]
["Sch XVIII","Ceded Reins",null,"Reinsurer Name - 13",0,null,null,null,null,null,null,null,0]
["Sch XVIII","Ceded Reins",null,"Reinsurer BSCR Rating - 13","Select",null,null,null,null,null,null,null,"Select"]
["Sch XVIII","Ceded Reins",null,"Reinsurer R/I Assets - 2",0,null,null,null,null,null,null,null,0]
["Sch XVIII","Ceded Reins",null,"Reinsurer R/I Assets - 8",0,null,null,null,null,null,null,null,0]
["Sch XVIII","Ceded Reins",null,"Reinsurer R/I Assets - 27",0,null,null,null,null,null,null,null,0]
["Sch XVIII","Ceded Reins",null,"Reinsurer R/I Payable - 15",0,null,null,null,null,null,null,null,0]
["Sch XVIII","Ceded Reins",null,"Reinsurer Collateral - 9",0,null,null,null,null,null,null,null,0]
["Sch XVIII","Ceded Reins",null,"Reinsurer Collateral - 28",0,null,null,null,null,null,null,null,0]
["Sch XVIII","Ceded Reins",null,"R/I Payable - Exposure by BSCR Rate 5",0,null,null,null,null,null,null,null,0]
["Sch XIX","Cash Counterpart",null,"Name - Counterparty 8",0]
["Sch XIX","Cash Counterpart",null,"BSCR Rating - Counterparty 7","Select"]
["Sch XIX","Cash Counterpart",null,"BSCR Rating - Counterparty 13","Select"]
["Sch XIX","Cash Counterpart",null,"Counterparty Value 12",0,null,null,null,null,null,null,null,0]
[]
["Sch XX","Currency Analysis",null,"Hedge Assets - Other 4",0,null,null,null,null,null,null,null,0]
["Sch XX","Currency Analysis",null,"Hedge Liab. - Japan Yen",0,null,null,null,null,null,null,null,0]
["Sch XX","Currency Analysis",null,"ECR Prior Year 3",null,null,null,null,null,null,null,null,0]
["Sch XXI","Inv Con Risk",null,"Name of Exposure - 17",0]
["Sch XXI","Inv Con Risk",null,"Name of Exposure - 36",0]
["Sch XXI","Inv Con Risk",null,"Name of Exposure - 42",0]
["Sch XXI","Inv Con Risk",null,"Asset Type - 11","Select",null,null,null,null,null,null,null,"Select"]
["Sch XXI","Inv Con Risk",null,"Asset Type - 30","Select",null,null,null,null,null,null,null,"Select"]
["Sch XXI","Inv Con Risk",null,"Bond Type - 5","Select",null,null,null,null,null,null,null,"Select"]
["Sch XXI","Inv Con Risk",null,"Bond Type - 22","Select",null,null,null,null,null,null,null,"Select"]
["Sch XXI","Inv Con Risk",null,"Bond Type - 50","Select",null,null,null,null,null,null,null,"Select"]
["Sch XXI","Inv Con Risk",null,"BSCR Rating - 19","Select",null,null,null,null,null,null,null,"Select"]
["Sch XXI","Inv Con Risk",null,"BSCR Rating - 38","Select",null,null,null,null,null,null,null,"Select"]
["Sch XXI","Inv Con Risk",null,"Asset Value - 13",0,null,null,null,null,null,null,null,0]
["Sch XXI","Inv Con Risk",null,"Asset Value - 32",0,null,null,null,null,null,null,null,0]
["Sch XXI","Inv Con Risk",null,"Asset Value - Total",0,null,null,null,null,null,null,null,0]
["Op Risk","Corp Gov",null,"Corporate Governance Q7",null,null,null,null,0]
["Op Risk","Measurement",null,"Measurement - Outsourcing (Class D/E Only)",null,null,null,null,0]
["Summary",null,null,"Deferred Tax Asset - T",null,null,null,null,null,null,null,null,0]
["Sch IIB","Investments",null,"Residential MBS - BSCR Rate 5",null,null,null,null,null,null,null,null,0,null,0]
["Sch IIB","Investments",null,"Bonds Mutual Fund - BSCR Rate 7",null,null,null,null,null,null,null,null,0,null,0]
["Sch IIB","Investments",null,"Long Positions - Before - Derivatives on Infrastructure",null,null,null,null,null,null,null,null,0]
["Sch IIB","Investments",null,"Long Positions - After - Pension Benefit Surplus",null,null,null,null,null,null,null,null,0]
["Sch IIB","Investments",null,"Short - Before - Qualified Assets - Strategic Holdings - Listed",null,null,null,null,null,null,null,null,0]
["Sch IIB","Investments",null,"Short - After - Qualified Assets - Preferred Stocks, BSCR Rating 6",null,null,null,null,null,null,null,null,0]
["Sch IIB","Investments",null,"Short - After - Qualified Assets - Equity Derivatives on Type 2 Equities",null,null,null,null,null,null,null,null,0]
["Sch IIB","Investments",null,"Short - Before - UnQualified Assets - Equity Real Estate 1",null,null,null,null,null,null,null,null,0]
["Sch IIB","Investments",null,"Short - After - UnQualified Assets - Equity Derivatives on Type 2 Equities",null,null,null,null,null,null,null,null,0]
["Sch IIB","Investments",null,"Liabilities - Before - W/O Mgmt Actions - Letters of Credit",null,null,null,null,null,null,null,null,0]
["Sch IIB","Investments",null,"Liabilities - After - W/O Mgmt Actions - Equity Derivatives on Type 2 Equities",null,null,null,null,null,null,null,null,0]
["Sch IIB","Investments",null,"Liabilities - After - With Mgmt Actions - Letters of Credit",null,null,null,null,null,null,null,null,0]
["Sch IIB","Investments",null,"Credit Derivatives - Up - After - Long- Rating 4",null,null,null,null,null,null,null,null,0]
["Sch IIB","Investments",null,"Credit Derivatives - Up - Before - Short- Rating 0",null,null,null,null,null,null,null,null,0]
["Sch IIB","Investments",null,"Credit Derivatives - Down - Before - Long-Rating 1",null,null,null,null,null,null,null,null,0]
["Sch IIB","Investments",null,"Credit Derivatives - Down - Before - Short- Rating 8",null,null,null,null,null,null,null,null,0]
["Sch IIB","Investments",null,"Counterparty Default Risk - MV of Derivatives - MV Negative - Rating 0",null,null,null,null,null,null,null,null,0]
["Sch IIB","Investments",null,"NAIC Resid. MBS - Orig. Class 1",null,null,null,null,null,null,null,null,0]
["Sch IIB","Investments",null,"NAIC Comm. MBS - Rev. Class 5",null,null,null,null,null,null,null,null,0]
["Sch IIB","Investments",null,"NAIC Rating Comm. MBS - Class 3",null,null,null,null,null,null,null,null,0]
["Sch IIB","Investments",null,"NAIC Rating Bond Mutual - Class 6",null,null,null,null,null,null,null,null,0]
["Sch IIB","Investments",null,"NAIC Rating Other Assets - Class 1",null,null,null,null,null,null,null,null,0]
["Sch IIC","Funds Held",null,"Residential MBS - BSCR Rate 3",null,null,null,null,null,null,null,null,0,null,0]
["Sch IIC","Funds Held",null,"Mortgage Loans - Other Residential",null,null,null,null,null,null,null,null,0,null,0]
["Sch IIC","Funds Held",null,"Long Positions - Before - Equity Derivatives on Type 2 Equities",null,null,null,null,null,null,null,null,0]
["Sch IIC","Funds Held",null,"Long Positions - After - Equity Real Estate 1",null,null,null,null,null,null,null,null,0]
["Sch IIC","Funds Held",null,"Short - Before - Qualified Assets - Equity Derivatives on Type 2 Equities",null,null,null,null,null,null,null,null,0]
["Sch IIC","Funds Held",null,"Short - After - Qualified Assets - Other Equities",null,null,null,null,null,null,null,null,0]
["Sch IIC","Funds Held",null,"Short - After - Qualified Assets - Equity Real Estate 2",null,null,null,null,null,null,null,null,0]
["Sch IIC","Funds Held",null,"Short - Before - UnQualified Assets - Infrastructure",null,null,null,null,null,null,null,null,0]
["Sch IIC","Funds Held",null,"Short - After - UnQualified Assets - Intangible assets",null,null,null,null,null,null,null,null,0]
["Sch IIC","Funds Held",null,"Liabilities - Before - W/O Mgmt Actions - Infrastructure",null,null,null,null,null,null,null,null,0]
["Sch IIC","Funds Held",null,"Liabilities - After - W/O Mgmt Actions - Intangible assets",null,null,null,null,null,null,null,null,0]
["Sch IIC","Funds Held",null,"Liabilities - After - With Mgmt Actions - Infrastructure",null,null,null,null,null,null,null,null,0]
["Sch IIC","Funds Held",null,"Credit Derivatives - Up - After - Long- Rating 6",null,null,null,null,null,null,null,null,0]
["Sch IIC","Funds Held",null,"Credit Derivatives - Up - Before - Short- Rating 4",null,null,null,null,null,null,null,null,0]
["Sch IIC","Funds Held",null,"Credit Derivatives - Down - Before - Long-Rating 5",null,null,null,null,null,null,null,null,0]
["Sch IIC","Funds Held",null,"Credit Derivatives - Down - Before - Short- Rating 6",null,null,null,null,null,null,null,null,0]
["Sch IIC","Funds Held",null,"Counterparty Default Risk - MV of Derivatives - MV Negative - Rating 4",null,null,null,null,null,null,null,null,0]
["Sch IIC","Funds Held",null,"NAIC Rating Corp & Sov. Bond - Class 5",null,null,null,null,null,null,null,null,0]
["Sch IIC","Funds Held",null,"NAIC Rating Bond Mutual - Class 3",null,null,null,null,null,null,null,null,0]
["Sch IIC","Funds Held",null,"NAIC Rating Other Assets - Total",null,null,null,null,null,null,null,null,0]
["Sch IID","Segregated Acc",null,"Liabilities Supported by Corp. Bonds - BSCR Rate 8",null,null,null,null,null,null,null,null,0]
["Sch IID","Segregated Acc",null,"Liabilities Supported by Residential MBS - BSCR Rate 8",null,null,null,null,null,null,null,null,0]
["Sch IID","Segregated Acc",null,"Liabilities Supported by Bonds Mutual Fund - BSCR Rate 3",null,null,null,null,null,null,null,null,0]
["Sch IID","Segregated Acc",null,"Long Positions - Before - Preferred Stocks, BSCR Rating 3",null,null,null,null,null,null,null,null,0]
["Sch IID","Segregated Acc",null,"Long Positions - Before - Equity Derivatives on Type 1 Equities",null,null,null,null,null,null,null,null,0]
["Sch IID","Segregated Acc",null,"Long Positions - After - Preferred Stocks, BSCR Rating 6",null,null,null,null,null,null,null,null,0]
["Sch IID","Segregated Acc",null,"Short - Before - Qualified Assets - Preferred Stocks, BSCR Rating 3",null,null,null,null,null,null,null,null,0]
["Sch IID","Segregated Acc",null,"Short - After - Qualified Assets - Preferred Stocks, BSCR Rating 6",null,null,null,null,null,null,null,null,0]
["Sch IID","Segregated Acc",null,"Short - Before - UnQualified Assets - Preferred Stocks, BSCR Rating 4",null,null,null,null,null,null,null,null,0]
["Sch IID","Segregated Acc",null,"Short - After - UnQualified Assets - Preferred Stocks, BSCR Rating 1",null,null,null,null,null,null,null,null,0]
["Sch IID","Segregated Acc",null,"Liabilities - Before - W/O Mgmt Actions - Preferred Stocks, BSCR Rating 4",null,null,null,null,null,null,null,null,0]
["Sch IID","Segregated Acc",null,"Liabilities - After - W/O Mgmt Actions - Preferred Stocks, BSCR Rating 1",null,null,null,null,null,null,null,null,0]
["Sch IID","Segregated Acc",null,"Liabilities - After - W/O Mgmt Actions - Preferred Stocks, BSCR Rating 7",null,null,null,null,null,null,null,null,0]
["Sch IID","Segregated Acc",null,"Liabilities - After - With Mgmt Actions - Preferred Stocks, BSCR Rating 4",null,null,null,null,null,null,null,null,0]
["Sch IID","Segregated Acc",null,"Credit Derivatives - Up - Before - Long-Rating 3",null,null,null,null,null,null,null,null,0]
["Sch IID","Segregated Acc",null,"Credit Derivatives - Up - After - Short- Rating 1",null,null,null,null,null,null,null,null,0]
["Sch IID","Segregated Acc",null,"Credit Derivatives - Down - Before - Long-Rating 1",null,null,null,null,null,null,null,null,0]
["Sch IID","Segregated Acc",null,"Counterparty Default Risk - MV of Derivatives - MV Positive - Rating 1",null,null,null,null,null,null,null,null,0]
["Sch IID","Segregated Acc",null,"Counterparty Default Risk - MV of Collateral - Rating 2",null,null,null,null,null,null,null,null,0]
["Sch IID","Segregated Acc",null,"NAIC Rating Resid. MBS - Class 5",null,null,null,null,null,null,null,null,0]
["Sch IID","Segregated Acc",null,"NAIC Rating Comm. MBS - Class 4",null,null,null,null,null,null,null,null,0]
["Sch IID","Segregated Acc",null,"NAIC Rating Pref. Stock - Class 2",null,null,null,null,null,null,null,null,0]
["Sch IIE","Deposits",null,"Corp. Bonds - BSCR Rate 5",null,null,null,null,null,null,null,null,0,null,0]
["Sch IIE","Deposits",null,"Commercial MBS - BSCR Rate 8",null,null,null,null,null,null,null,null,0,null,0]
["Sch IIE","Deposits",null,"Long Positions - Before - Strategic Holdings - Unlisted",null,null,null,null,null,null,null,null,0]
["Sch IIE","Deposits",null,"Long Positions - After - Intangible assets",null,null,null,null,null,null,null,null,0]
["Sch IIE","Deposits",null,"Short - Before - Qualified Assets - Strategic Holdings - Unlisted",null,null,null,null,null,null,null,null,0]
["Sch IIE","Deposits",null,"Short - After - Qualified Assets - Preferred Stocks, BSCR Rating 7",null,null,null,null,null,null,null,null,0]
["Sch IIE","Deposits",null,"Short - After - Qualified Assets - Intangible assets",null,null,null,null,null,null,null,null,0]
["Sch IIE","Deposits",null,"Short - Before - UnQualified Assets - Strategic Holdings - Unlisted",null,null,null,null,null,null,null,null,0]
["Sch IIE","Deposits",null,"Short - After - UnQualified Assets - Intangible assets",null,null,null,null,null,null,null,null,0]
["Sch IIE","Deposits",null,"Liabilities - Before - W/O Mgmt Actions - Intangible assets",null,null,null,null,null,null,null,null,0]
["Sch IIE","Deposits",null,"Liabilities - After - W/O Mgmt Actions - Preferred Stocks, BSCR Rating 8",null,null,null,null,null,null,null,null,0]
["Sch IIE","Deposits",null,"Liabilities - After - With Mgmt Actions - Other Equities",null,null,null,null,null,null,null,null,0]
["Sch IIE","Deposits",null,"Credit Derivatives - Up - After - Long- Rating 1",null,null,null,null,null,null,null,null,0]
["Sch IIE","Deposits",null,"Credit Derivatives - Up - After - Short- Rating 2",null,null,null,null,null,null,null,null,0]
["Sch IIE","Deposits",null,"Credit Derivatives - Up - After - Short- Rating 8",null,null,null,null,null,null,null,null,0]
["Sch IIE","Deposits",null,"Credit Derivatives - Down - Before - Short- Rating 0",null,null,null,null,null,null,null,null,0]
["Sch IIE","Deposits",null,"Counterparty Default Risk - MV of Derivatives - MV Negative - Rating 5",null,null,null,null,null,null,null,null,0]
["Sch IIE","Deposits",null,"Cash and Cash Equivalents",null,null,null,null,null,null,null,null,0]
["Sch IIE","Deposits",null,"NAIC Rating Comm. MBS - Class 5",null,null,null,null,null,null,null,null,0]
["Sch IIE","Deposits",null,"NAIC Rating Other Assets - Class 2",null,null,null,null,null,null,null,null,0]
["Sch IIF","Other Sundry",null,"Residential MBS - BSCR Rate 4",null,null,null,null,null,null,null,null,0,null,0]
["Sch IIF","Other Sundry",null,"Bonds Mutual Fund - BSCR Rate 6",null,null,null,null,null,null,null,null,0,null,0]
["Sch IIF","Other Sundry",null,"Mortgage Loans - Not Good Stand.",null,null,null,null,null,null,null,null,0,null,0]
["Sch IIF","Other Sundry",null,"Long Positions - Before - Infrastructure",null,null,null,null,null,null,null,null,0]
["Sch IIF","Other Sundry",null,"Long Positions - After - Equity Derivatives on Type 2 Equities",null,null,null,null,null,null,null,null,0]
["Sch IIF","Other Sundry",null,"Short - Before - Qualified Assets - Derivatives on Infrastructure",null,null,null,null,null,null,null,null,0]
["Sch IIF","Other Sundry",null,"Short - After - Qualified Assets - Pension Benefit Surplus",null,null,null,null,null,null,null,null,0]
["Sch IIF","Other Sundry",null,"Short - Before - UnQualified Assets - Derivatives on Infrastructure",null,null,null,null,null,null,null,null,0]
["Sch IIF","Other Sundry",null,"Short - After - UnQualified Assets - Pension Benefit Surplus",null,null,null,null,null,null,null,null,0]
["Sch IIF","Other Sundry",null,"Liabilities - Before - W/O Mgmt Actions - Derivatives on Infrastructure",null,null,null,null,null,null,null,null,0]
["Sch IIF","Other Sundry",null,"Liabilities - After - W/O Mgmt Actions - Pension Benefit Surplus",null,null,null,null,null,null,null,null,0]
["Sch IIF","Other Sundry",null,"Liabilities - After - With Mgmt Actions - Other Equities",null,null,null,null,null,null,null,null,0]
["Sch IIF","Other Sundry",null,"Credit Derivatives - Up - Before - Long-Rating 2",null,null,null,null,null,null,null,null,0]
["Sch IIF","Other Sundry",null,"Credit Derivatives - Up - After - Long- Rating 8",null,null,null,null,null,null,null,null,0]
["Sch IIF","Other Sundry",null,"Credit Derivatives - Down - Before - Long-Rating 0",null,null,null,null,null,null,null,null,0]
["Sch IIF","Other Sundry",null,"Credit Derivatives - Down - Before - Short- Rating 7",null,null,null,null,null,null,null,null,0]
["Sch IIF","Other Sundry",null,"Counterparty Default Risk - MV of Derivatives - MV Positive - Rating 8",null,null,null,null,null,null,null,null,0]
["Sch IIF","Other Sundry",null,"NAIC Rating Corp & Sov. Bond - Class 6",null,null,null,null,null,null,null,null,0]
["Sch IIF","Other Sundry",null,"NAIC Rating Bond Mutual - Class 4",null,null,null,null,null,null,null,null,0]
["Sch IIF","Other Sundry",null,"NAIC Rating Other Assets - Class 2",null,null,null,null,null,null,null,null,0]
["Sch IVF","Exposure of Risk",null,"0. Jurisdiction of Ultimate Parent Company",null,null,null,null,"Select"]
["Sch IVF","Exposure of Risk",null,"1. # of Subsidiaries - 19.Malta",null,null,null,null,0]
["Sch IVF","Exposure of Risk",null,"1. # of Subsidiaries - 38.All Other Locations",null,null,null,null,0]
["Sch IVF","Exposure of Risk",null,"9. LT Mortality Reserve - 24.Slovakia",null,null,null,null,0]
["Sch IVF","Exposure of Risk",null,"10. LT Longevity Reserve - 4.Croatia",null,null,null,null,0]
["Sch IVF","Exposure of Risk",null,"10. LT Longevity Reserve - 29.Bermuda",null,null,null,null,0]
["Sch IVF","Exposure of Risk",null,"11. LT Accumulation Reserve - 9.Finland",null,null,null,null,0]
["Sch IVF","Exposure of Risk",null,"11. LT Accumulation Reserve - 17.Lithuania",null,null,null,null,0]
["Sch IVF","Exposure of Risk",null,"11. LT Accumulation Reserve - 35.Japan",null,null,null,null,0]
["Sch IVF","Exposure of Risk",null,"12. LT Disability Reserve - 15.Italy",null,null,null,null,0]
["Sch IVF","Exposure of Risk",null,"13. LT Group Reserve - 1.Austria",null,null,null,null,0]
["Sch IVF","Exposure of Risk",null,"13. LT Group Reserve - 20.Netherlands",null,null,null,null,0]
["Sch IVF","Exposure of Risk",null,"13. LT Group Reserve - 39.Total",null,null,null,null,0]
["Sch IVF","Exposure of Risk",null,"14. LT Var. Annuity Reserve - 25.Slovenia",null,null,null,null,0]
["Sch IVF","Exposure of Risk",null,"14. LT Var. Annuity Reserve - 37.Australia",null,null,null,null,0]
["Sch IVF","Exposure of Risk",null,"15. LT Other Reserve - 25.Slovenia",null,null,null,null,0]
["Sch IVF","Exposure of Risk",null,"15. LT Other Reserve - 31.Switzerland",null,null,null,null,0]
["Sch IVF","Exposure of Risk",null,"16. LT Claims Paid - 11.Germany",null,null,null,null,0]
["Sch IVF","Exposure of Risk",null,"16. LT Claims Paid - 36.Hong Kong",null,null,null,null,0]
["Sch XIXA","Cash Counterpart",null,"Name - Counterparty 14",null,null,null,null,null,null,null,null,0]
["Sch XIXA","Cash Counterpart",null,"BSCR Rating - Counterparty 13",null,null,null,null,null,null,null,null,"Select"]
["Sch XIXA","Cash Counterpart",null,"Counterparty Value 18",null,null,null,null,null,null,null,null,0]
["Sch XXA","Currency Shock",null,"Other Currency 8",null,null,null,null,null,null,null,null,"Other currency 8"]
["Sch XXA","Currency Shock",null,"Before Shock - Assets - Excluding Currency - Sensitive Derivatives Qatar Riyals",null,null,null,null,null,null,null,null,0]
["Sch XXA","Currency Shock",null,"Before Shock - Assets - Excluding Currency - Sensitive Derivatives Other currency 9",null,null,null,null,null,null,null,null,0]
["Sch XXA","Currency Shock",null,"Before Shock - Long Exposures - Currency Derivatives Qualifying as held for risk-mitigation purposes Other currency 5",null,null,null,null,null,null,null,null,0]
["Sch XXA","Currency Shock",null,"Before Shock - Long Exposures - Currency Derivatives Not Qualifying as held for risk-mitigation purposes Other currency 7",null,null,null,null,null,null,null,null,0]
["Sch XXA","Currency Shock",null,"Before Shock - Short Exposures - Currency Derivatives Qualifying as held for risk-mitigation purposes Other currency 3",null,null,null,null,null,null,null,null,0]
["Sch XXA","Currency Shock",null,"Before Shock - Short Exposures - Currency Derivatives Not Qualifying as held for risk-mitigation purposes Canada Dollars",null,null,null,null,null,null,null,null,0]
["Sch XXA","Currency Shock",null,"Before Shock - B.E. Liabilities Other currency 7",null,null,null,null,null,null,null,null,0]
["Sch XXA","Currency Shock",null,"After Shock - Assets - Excluding Currency - Sensitive Derivatives United Kingdom Pounds",null,null,null,null,null,null,null,null,0]
["Sch XXA","Currency Shock",null,"After Shock - Assets - Excluding Currency - Sensitive Derivatives Other currency 4",null,null,null,null,null,null,null,null,0]
["Sch XXA","Currency Shock",null,"After Shock - Long Exposures - Currency Derivatives Qualifying as held for risk-mitigation purposes Japan Yen",null,null,null,null,null,null,null,null,0]
["Sch XXA","Currency Shock",null,"After Shock - Long Exposures - Currency Derivatives Not Qualifying as held for risk-mitigation purposes Central African CFA Francs",null,null,null,null,null,null,null,null,0]
["Sch XXA","Currency Shock",null,"After Shock - Short Exposures - Currency Derivatives Qualifying as held for risk-mitigation purposes United Kingdom Pounds",null,null,null,null,null,null,null,null,0]
["Sch XXA","Currency Shock",null,"After Shock - Short Exposures - Currency Derivatives Not Qualifying as held for risk-mitigation purposes Bulgaria Leva",null,null,null,null,null,null,null,null,0]
["Sch XXA","Currency Shock",null,"After Shock - B.E. Liabilities Qatar Riyals",null,null,null,null,null,null,null,null,0]
["Sch XXA","Currency Shock",null,"After Shock - B.E. Liabilities Other currency 10",null,null,null,null,null,null,null,null,0]
["Sch XXA","Currency Shock",null,"Liabilities Prior Year 2",null,null,null,null,null,null,null,null,0]
["Sch XXIA","Inv Con Risk",null,"Name of Exposure - 19",0]
["Sch XXIA","Inv Con Risk",null,"Name of Exposure - 38",0]
["Sch XXIA","Inv Con Risk",null,"Asset Type - 7","Select",null,null,null,null,null,null,null,"Select"]
["Sch XXIA","Inv Con Risk",null,"Asset Type - 13","Select",null,null,null,null,null,null,null,"Select"]
["Sch XXIA","Inv Con Risk",null,"Asset Type - 32","Select",null,null,null,null,null,null,null,"Select"]
["Sch XXIA","Inv Con Risk",null,"Bond Type - 7","Select",null,null,null,null,null,null,null,"Select"]
["Sch XXIA","Inv Con Risk",null,"Bond Type - 30","Select",null,null,null,null,null,null,null,"Select"]
["Sch XXIA","Inv Con Risk",null,"Bond Type - 46","Select",null,null,null,null,null,null,null,"Select"]
["Sch XXIA","Inv Con Risk",null,"BSCR Rating - 21","Select",null,null,null,null,null,null,null,"Select"]
["Sch XXIA","Inv Con Risk",null,"BSCR Rating - 40","Select",null,null,null,null,null,null,null,"Select"]
["Sch XXIA","Inv Con Risk",null,"Asset Value - 9",0,null,null,null,null,null,null,null,0]
["Sch XXIA","Inv Con Risk",null,"Asset Value - 15",0,null,null,null,null,null,null,null,0]
["Sch XXIA","Inv Con Risk",null,"Asset Value - 34",0,null,null,null,null,null,null,null,0]
["Sch XXIII","Interest Rates",null,"Int. Down - Before Shock - Other - Qualifying Assets - Canada Dollars",null,null,null,null,null,null,null,null,0]
["Sch XXIII","Interest Rates",null,"Int. Down - Before Shock - Other - Qualifying Assets - Other currency 9",null,null,null,null,null,null,null,null,0]
["Sch XXIII","Interest Rates",null,"Int. Down - After Shock - Other - Qualifying Assets - Other currency 9",null,null,null,null,null,null,null,null,0]
["Sch XXIII","Interest Rates",null,"Int. Down - After Shock - Other - Liab. w/o Mgmt Action - Japan Yen",null,null,null,null,null,null,null,null,0]
["Sch XXIII","Interest Rates",null,"Int. Down - After Shock - Other - Liab. with Mgmt Action - Japan Yen",null,null,null,null,null,null,null,null,0]
["Sch XXIII","Interest Rates",null,"Int. Down - After Shock - Other - Liab. with Mgmt Action - Other currency 2",null,null,null,null,null,null,null,null,0]
["Sch XXIII","Interest Rates",null,"Int. Down - Before Shock - Derivatives - Qualifying Assets - Other currency 2",null,null,null,null,null,null,null,null,0]
["Sch XXIII","Interest Rates",null,"Int. Down - After Shock - Derivatives - Qualifying Assets - Other currency 2",null,null,null,null,null,null,null,null,0]
["Sch XXIII","Interest Rates",null,"Int. Down - Before Shock - Derivatives - Not Qualifying Assets - Other currency 5",null,null,null,null,null,null,null,null,0]
["Sch XXIII","Interest Rates",null,"Int. Down - After Shock - Derivatives - Not Qualifying Assets - Other currency 9",null,null,null,null,null,null,null,null,0]
["Sch XXIII","Interest Rates",null,"Int. Down - Before Shock - Derivatives - Liab. w/o Mgmt Action - Other currency 9",null,null,null,null,null,null,null,null,0]
["Sch XXIII","Interest Rates",null,"Int. Down - After Shock - Derivatives - Liab. with Mgmt Action - Japan Yen",null,null,null,null,null,null,null,null,0]
["Sch XXIII","Interest Rates",null,"Other currency 4",null,null,null,null,null,null,null,null,"Other currency 4"]
["Sch XXIII","Interest Rates",null,"Other currency 10",null,null,null,null,null,null,null,null,"Other currency 10"]
["Sch XXIII","Interest Rates",null,"Int. Up - Before Shock - Other - Qualifying Assets - Total",null,null,null,null,null,null,null,null,0]
["Sch XXIII","Interest Rates",null,"Int. Up - Before Shock - Other - Liab. w/o Mgmt Action - Other currency 3",null,null,null,null,null,null,null,null,0]
["Sch XXIII","Interest Rates",null,"Int. Up - After Shock - Other - Liab. w/o Mgmt Action - Australia Dollar",null,null,null,null,null,null,null,null,0]
["Sch XXIII","Interest Rates",null,"Int. Up - After Shock - Other - Liab. with Mgmt Action - Australia Dollar",null,null,null,null,null,null,null,null,0]
["Sch XXIII","Interest Rates",null,"Int. Up - Before Shock - Derivatives - Qualifying Assets - Australia Dollar",null,null,null,null,null,null,null,null,0]
["Sch XXIII","Interest Rates",null,"Int. Up - After Shock - Derivatives - Qualifying Assets - Other currency 5",null,null,null,null,null,null,null,null,0]
["Sch XXIII","Interest Rates",null,"Int. Up - Before Shock - Derivatives - Not Qualifying Assets - Other currency 5",null,null,null,null,null,null,null,null,0]
["Sch XXIII","Interest Rates",null,"Int. Up - Before Shock - Derivatives - Not Qualifying Assets - Total",null,null,null,null,null,null,null,null,0]
["Sch XXIII","Interest Rates",null,"Int. Up - After Shock - Derivatives - Not Qualifying Assets - Total",null,null,null,null,null,null,null,null,0]
["Sch XXIII","Interest Rates",null,"Int. Up - Before Shock - Derivatives - Liab. w/o Mgmt Action - Total",null,null,null,null,null,null,null,null,0]
["Sch XXIII","Interest Rates",null,"Int. Up - After Shock - Derivatives - Liab. with Mgmt Action - Australia Dollar",null,null,null,null,null,null,null,null,0]
["Equity Grandfather","Equity Grandfather",null,"Long Positions - Before - Preferred Stocks, BSCR Rating 3",null,null,null,null,null,null,null,null,0]
["Equity Grandfather","Equity Grandfather",null,"Long Positions - After - Preferred Stocks, BSCR Rating 6",null,null,null,null,null,null,null,null,0]
["Equity Grandfather","Equity Grandfather",null,"Short - Before - Qualified Assets - Preferred Stocks, BSCR Rating 3",null,null,null,null,null,null,null,null,0]
["Equity Grandfather","Equity Grandfather",null,"Short - After - Qualified Assets - Listed Equity Securities in Developed Markets",null,null,null,null,null,null,null,null,0]
["Equity Grandfather","Equity Grandfather",null,"Short - After - Qualified Assets - Preferred Stocks, BSCR Rating 6",null,null,null,null,null,null,null,null,0]
["Equity Grandfather","Equity Grandfather",null,"Short - Before - UnQualified Assets - Preferred Stocks, BSCR Rating 7",null,null,null,null,null,null,null,null,0]
["Equity Grandfather","Equity Grandfather",null,"Short - After - UnQualified Assets - Preferred Stocks, BSCR Rating 1",null,null,null,null,null,null,null,null,0]
["Equity Grandfather","Equity Grandfather",null,"Short - After - UnQualified Assets - Preferred Stocks, BSCR Rating 2",null,null,null,null,null,null,null,null,0]
["Equity Grandfather","Equity Grandfather",null,"Short - After - UnQualified Assets - Preferred Stocks, BSCR Rating 3",null,null,null,null,null,null,null,null,0]
["Equity Grandfather","Equity Grandfather",null,"Short - After - UnQualified Assets - Preferred Stocks, BSCR Rating 4",null,null,null,null,null,null,null,null,0]
["Equity Grandfather","Equity Grandfather",null,"Short - After - UnQualified Assets - Preferred Stocks, BSCR Rating 5",null,null,null,null,null,null,null,null,0]
["Equity Grandfather","Equity Grandfather",null,"Short - After - UnQualified Assets - Preferred Stocks, BSCR Rating 6",null,null,null,null,null,null,null,null,0]
["Equity Grandfather","Equity Grandfather",null,"Short - After - UnQualified Assets - Preferred Stocks, BSCR Rating 7",null,null,null,null,null,null,null,null,0]
["Equity Grandfather","Equity Grandfather",null,"Short - After - UnQualified Assets - Preferred Stocks, BSCR Rating 8",null,null,null,null,null,null,null,null,0]
["Equity Grandfather","Equity Grandfather",null,"Short - After - UnQualified Assets - Equity Derivatives on Type 1 Equities",null,null,null,null,null,null,null,null,0]
["Equity Grandfather","Equity Grandfather",null,"Short - After - UnQualified Assets - Strategic Holdings - Unlisted",null,null,null,null,null,null,null,null,0]
["Equity Grandfather","Equity Grandfather",null,"Short - After - UnQualified Assets - Other Equities",null,null,null,null,null,null,null,null,0]
["Equity Grandfather","Equity Grandfather",null,"Short - After - UnQualified Assets - Letters of Credit",null,null,null,null,null,null,null,null,0]
["Equity Grandfather","Equity Grandfather",null,"Short - After - UnQualified Assets - Intangible assets",null,null,null,null,null,null,null,null,0]
["Equity Grandfather","Equity Grandfather",null,"Short - After - UnQualified Assets - Pension Benefit Surplus",null,null,null,null,null,null,null,null,0]
["Equity Grandfather","Equity Grandfather",null,"Short - After - UnQualified Assets - Equity Derivatives on Type 2 Equities",null,null,null,null,null,null,null,null,0]
["Equity Grandfather","Equity Grandfather",null,"Short - After - UnQualified Assets - Infrastructure",null,null,null,null,null,null,null,null,0]
["Equity Grandfather","Equity Grandfather",null,"Short - After - UnQualified Assets - Derivatives on Infrastructure",null,null,null,null,null,null,null,null,0]
["Equity Grandfather","Equity Grandfather",null,"Short - After - UnQualified Assets - Equity Real Estate 1",null,null,null,null,null,null,null,null,0]
["Equity Grandfather","Equity Grandfather",null,"Short - After - UnQualified Assets - Equity Real Estate 2",null,null,null,null,null,null,null,null,0]
["Equity Grandfather","Equity Grandfather",null,"Liabilities - Before - W/O Mgmt Actions - Strategic Holdings - Listed",null,null,null,null,null,null,null,null,0]
["Equity Grandfather","Equity Grandfather",null,"Liabilities - Before - W/O Mgmt Actions - Duration Based",null,null,null,null,null,null,null,null,0]
["Equity Grandfather","Equity Grandfather",null,"Liabilities - Before - W/O Mgmt Actions - Listed Equity Securities in Developed Markets",null,null,null,null,null,null,null,null,0]
["Equity Grandfather","Equity Grandfather",null,"Liabilities - Before - W/O Mgmt Actions - Preferred Stocks, BSCR Rating 1",null,null,null,null,null,null,null,null,0]
["Equity Grandfather","Equity Grandfather",null,"Liabilities - Before - W/O Mgmt Actions - Preferred Stocks, BSCR Rating 2",null,null,null,null,null,null,null,null,0]
["Equity Grandfather","Equity Grandfather",null,"Liabilities - Before - W/O Mgmt Actions - Preferred Stocks, BSCR Rating 3",null,null,null,null,null,null,null,null,0]
["Equity Grandfather","Equity Grandfather",null,"Liabilities - Before - W/O Mgmt Actions - Preferred Stocks, BSCR Rating 4",null,null,null,null,null,null,null,null,0]
["Equity Grandfather","Equity Grandfather",null,"Liabilities - Before - W/O Mgmt Actions - Preferred Stocks, BSCR Rating 5",null,null,null,null,null,null,null,null,0]
["Equity Grandfather","Equity Grandfather",null,"Liabilities - Before - W/O Mgmt Actions - Preferred Stocks, BSCR Rating 6",null,null,null,null,null,null,null,null,0]
["Equity Grandfather","Equity Grandfather",null,"Liabilities - Before - W/O Mgmt Actions - Preferred Stocks, BSCR Rating 7",null,null,null,null,null,null,null,null,0]
["Equity Grandfather","Equity Grandfather",null,"Liabilities - Before - W/O Mgmt Actions - Preferred Stocks, BSCR Rating 8",null,null,null,null,null,null,null,null,0]
["Equity Grandfather","Equity Grandfather",null,"Liabilities - Before - W/O Mgmt Actions - Equity Derivatives on Type 1 Equities",null,null,null,null,null,null,null,null,0]
["Equity Grandfather","Equity Grandfather",null,"Liabilities - Before - W/O Mgmt Actions - Strategic Holdings - Unlisted",null,null,null,null,null,null,null,null,0]
["Equity Grandfather","Equity Grandfather",null,"Liabilities - Before - W/O Mgmt Actions - Other Equities",null,null,null,null,null,null,null,null,0]
["Equity Grandfather","Equity Grandfather",null,"Liabilities - Before - W/O Mgmt Actions - Letters of Credit",null,null,null,null,null,null,null,null,0]
["Equity Grandfather","Equity Grandfather",null,"Liabilities - Before - W/O Mgmt Actions - Intangible assets",null,null,null,null,null,null,null,null,0]
["Equity Grandfather","Equity Grandfather",null,"Liabilities - Before - W/O Mgmt Actions - Pension Benefit Surplus",null,null,null,null,null,null,null,null,0]
["Equity Grandfather","Equity Grandfather",null,"Liabilities - Before - W/O Mgmt Actions - Equity Derivatives on Type 2 Equities",null,null,null,null,null,null,null,null,0]
["Equity Grandfather","Equity Grandfather",null,"Liabilities - Before - W/O Mgmt Actions - Infrastructure",null,null,null,null,null,null,null,null,0]
["Equity Grandfather","Equity Grandfather",null,"Liabilities - Before - W/O Mgmt Actions - Derivatives on Infrastructure",null,null,null,null,null,null,null,null,0]
["Equity Grandfather","Equity Grandfather",null,"Liabilities - Before - W/O Mgmt Actions - Equity Real Estate 1",null,null,null,null,null,null,null,null,0]
["Equity Grandfather","Equity Grandfather",null,"Liabilities - Before - W/O Mgmt Actions - Equity Real Estate 2",null,null,null,null,null,null,null,null,0]
["Equity Grandfather","Equity Grandfather",null,"Liabilities - After - W/O Mgmt Actions - Strategic Holdings - Listed",null,null,null,null,null,null,null,null,0]
["Equity Grandfather","Equity Grandfather",null,"Liabilities - After - W/O Mgmt Actions - Duration Based",null,null,null,null,null,null,null,null,0]
["Equity Grandfather","Equity Grandfather",null,"Liabilities - After - W/O Mgmt Actions - Listed Equity Securities in Developed Markets",null,null,null,null,null,null,null,null,0]
["Equity Grandfather","Equity Grandfather",null,"Liabilities - After - W/O Mgmt Actions - Preferred Stocks, BSCR Rating 1",null,null,null,null,null,null,null,null,0]
["Equity Grandfather","Equity Grandfather",null,"Liabilities - After - W/O Mgmt Actions - Preferred Stocks, BSCR Rating 2",null,null,null,null,null,null,null,null,0]
["Equity Grandfather","Equity Grandfather",null,"Liabilities - After - W/O Mgmt Actions - Preferred Stocks, BSCR Rating 3",null,null,null,null,null,null,null,null,0]
["Equity Grandfather","Equity Grandfather",null,"Liabilities - After - W/O Mgmt Actions - Preferred Stocks, BSCR Rating 4",null,null,null,null,null,null,null,null,0]
["Equity Grandfather","Equity Grandfather",null,"Liabilities - After - W/O Mgmt Actions - Preferred Stocks, BSCR Rating 5",null,null,null,null,null,null,null,null,0]
["Equity Grandfather","Equity Grandfather",null,"Liabilities - After - W/O Mgmt Actions - Preferred Stocks, BSCR Rating 6",null,null,null,null,null,null,null,null,0]
["Equity Grandfather","Equity Grandfather",null,"Liabilities - After - W/O Mgmt Actions - Preferred Stocks, BSCR Rating 7",null,null,null,null,null,null,null,null,0]
["Equity Grandfather","Equity Grandfather",null,"Liabilities - After - W/O Mgmt Actions - Preferred Stocks, BSCR Rating 8",null,null,null,null,null,null,null,null,0]
["Equity Grandfather","Equity Grandfather",null,"Liabilities - After - W/O Mgmt Actions - Equity Derivatives on Type 1 Equities",null,null,null,null,null,null,null,null,0]
["Equity Grandfather","Equity Grandfather",null,"Liabilities - After - W/O Mgmt Actions - Strategic Holdings - Unlisted",null,null,null,null,null,null,null,null,0]
["Equity Grandfather","Equity Grandfather",null,"Liabilities - After - W/O Mgmt Actions - Other Equities",null,null,null,null,null,null,null,null,0]
["Equity Grandfather","Equity Grandfather",null,"Liabilities - After - W/O Mgmt Actions - Letters of Credit",null,null,null,null,null,null,null,null,0]
["Equity Grandfather","Equity Grandfather",null,"Liabilities - After - W/O Mgmt Actions - Intangible assets",null,null,null,null,null,null,null,null,0]
["Equity Grandfather","Equity Grandfather",null,"Liabilities - After - W/O Mgmt Actions - Pension Benefit Surplus",null,null,null,null,null,null,null,null,0]
["Equity Grandfather","Equity Grandfather",null,"Liabilities - After - W/O Mgmt Actions - Equity Derivatives on Type 2 Equities",null,null,null,null,null,null,null,null,0]
["Equity Grandfather","Equity Grandfather",null,"Liabilities - After - W/O Mgmt Actions - Infrastructure",null,null,null,null,null,null,null,null,0]
["Equity Grandfather","Equity Grandfather",null,"Liabilities - After - W/O Mgmt Actions - Derivatives on Infrastructure",null,null,null,null,null,null,null,null,0]
["Equity Grandfather","Equity Grandfather",null,"Liabilities - After - W/O Mgmt Actions - Equity Real Estate 1",null,null,null,null,null,null,null,null,0]
["Equity Grandfather","Equity Grandfather",null,"Liabilities - After - W/O Mgmt Actions - Equity Real Estate 2",null,null,null,null,null,null,null,null,0]
["Equity Grandfather","Equity Grandfather",null,"Liabilities - After - With Mgmt Actions - Strategic Holdings - Listed",null,null,null,null,null,null,null,null,0]
["Equity Grandfather","Equity Grandfather",null,"Liabilities - After - With Mgmt Actions - Duration Based",null,null,null,null,null,null,null,null,0]
["Equity Grandfather","Equity Grandfather",null,"Liabilities - After - With Mgmt Actions - Listed Equity Securities in Developed Markets",null,null,null,null,null,null,null,null,0]
["Equity Grandfather","Equity Grandfather",null,"Liabilities - After - With Mgmt Actions - Preferred Stocks, BSCR Rating 1",null,null,null,null,null,null,null,null,0]
["Equity Grandfather","Equity Grandfather",null,"Liabilities - After - With Mgmt Actions - Preferred Stocks, BSCR Rating 2",null,null,null,null,null,null,null,null,0]
["Equity Grandfather","Equity Grandfather",null,"Liabilities - After - With Mgmt Actions - Preferred Stocks, BSCR Rating 3",null,null,null,null,null,null,null,null,0]
["Equity Grandfather","Equity Grandfather",null,"Liabilities - After - With Mgmt Actions - Preferred Stocks, BSCR Rating 4",null,null,null,null,null,null,null,null,0]
["Equity Grandfather","Equity Grandfather",null,"Liabilities - After - With Mgmt Actions - Preferred Stocks, BSCR Rating 5",null,null,null,null,null,null,null,null,0]
["Equity Grandfather","Equity Grandfather",null,"Liabilities - After - With Mgmt Actions - Preferred Stocks, BSCR Rating 6",null,null,null,null,null,null,null,null,0]
["Equity Grandfather","Equity Grandfather",null,"Liabilities - After - With Mgmt Actions - Preferred Stocks, BSCR Rating 7",null,null,null,null,null,null,null,null,0]
["Equity Grandfather","Equity Grandfather",null,"Liabilities - After - With Mgmt Actions - Preferred Stocks, BSCR Rating 8",null,null,null,null,null,null,null,null,0]
["Equity Grandfather","Equity Grandfather",null,"Liabilities - After - With Mgmt Actions - Equity Derivatives on Type 1 Equities",null,null,null,null,null,null,null,null,0]
["Equity Grandfather","Equity Grandfather",null,"Liabilities - After - With Mgmt Actions - Strategic Holdings - Unlisted",null,null,null,null,null,null,null,null,0]
["Equity Grandfather","Equity Grandfather",null,"Liabilities - After - With Mgmt Actions - Other Equities",null,null,null,null,null,null,null,null,0]
["Equity Grandfather","Equity Grandfather",null,"Liabilities - After - With Mgmt Actions - Letters of Credit",null,null,null,null,null,null,null,null,0]
["Equity Grandfather","Equity Grandfather",null,"Liabilities - After - With Mgmt Actions - Intangible assets",null,null,null,null,null,null,null,null,0]
["Equity Grandfather","Equity Grandfather",null,"Liabilities - After - With Mgmt Actions - Pension Benefit Surplus",null,null,null,null,null,null,null,null,0]
["Equity Grandfather","Equity Grandfather",null,"Liabilities - After - With Mgmt Actions - Equity Derivatives on Type 2 Equities",null,null,null,null,null,null,null,null,0]
["Equity Grandfather","Equity Grandfather",null,"Liabilities - After - With Mgmt Actions - Infrastructure",null,null,null,null,null,null,null,null,0]
["Equity Grandfather","Equity Grandfather",null,"Liabilities - After - With Mgmt Actions - Derivatives on Infrastructure",null,null,null,null,null,null,null,null,0]
["Equity Grandfather","Equity Grandfather",null,"Liabilities - After - With Mgmt Actions - Equity Real Estate 1",null,null,null,null,null,null,null,null,0]
["Equity Grandfather","Equity Grandfather",null,"Liabilities - After - With Mgmt Actions - Equity Real Estate 2",null,null,null,null,null,null,null,null,0]
[]
["Equity Grandfather","Equity Grandfather",null,"Common Shares - Quoted",null,null,null,null,null,null,null,null,0]
["Equity Grandfather","Equity Grandfather",null,"Common Shares - Unquoted",null,null,null,null,null,null,null,null,0]
["Equity Grandfather","Equity Grandfather",null,"Equity Mutual Funds",null,null,null,null,null,null,null,null,0]
["Equity Grandfather","Equity Grandfather",null,"Preferred Shares - BSCR Rate 1",null,null,null,null,null,null,null,null,0]
["Equity Grandfather","Equity Grandfather",null,"Preferred Shares - BSCR Rate 2",null,null,null,null,null,null,null,null,0]
["Equity Grandfather","Equity Grandfather",null,"Preferred Shares - BSCR Rate 3",null,null,null,null,null,null,null,null,0]
["Equity Grandfather","Equity Grandfather",null,"Preferred Shares - BSCR Rate 4",null,null,null,null,null,null,null,null,0]
["Equity Grandfather","Equity Grandfather",null,"Preferred Shares - BSCR Rate 5",null,null,null,null,null,null,null,null,0]
["Equity Grandfather","Equity Grandfather",null,"Preferred Shares - BSCR Rate 6",null,null,null,null,null,null,null,null,0]
["Equity Grandfather","Equity Grandfather",null,"Preferred Shares - BSCR Rate 7",null,null,null,null,null,null,null,null,0]
["Equity Grandfather","Equity Grandfather",null,"Preferred Shares - BSCR Rate 8",null,null,null,null,null,null,null,null,0]
["Equity Grandfather","Equity Grandfather",null,"Real Estate - Occupied by Company",null,null,null,null,null,null,null,null,0]
["Equity Grandfather","Equity Grandfather",null,"Real Estate - Other",null,null,null,null,null,null,null,null,0]
["Equity Grandfather","Equity Grandfather",null,"Other Investments",null,null,null,null,null,null,null,null,0]
["Equity Grandfather","Equity Grandfather",null,"Sundry Assets",null,null,null,null,null,null,null,null,0]
["Equity Grandfather","Equity Grandfather",null,"Inv. In Affiliates - Unregulated Ancillary",null,null,null,null,null,null,null,null,0]
["Equity Grandfather","Equity Grandfather",null,"Inv. In Affiliates - Unregulated Non-Fin. Oper.",null,null,null,null,null,null,null,null,0]
["Equity Grandfather","Equity Grandfather",null,"Inv. In Affiliates - Unregulated Fin. Operating",null,null,null,null,null,null,null,null,0]
["Equity Grandfather","Equity Grandfather",null,"Inv. In Affiliates - Regulated Insurance",null,null,null,null,null,null,null,null,0]
[]
["AML","AML Questionnaire",null,"A.1 # of Policies",0]
["AML","AML Questionnaire",null,"A.2 Risk Rate Policies","Select Yes/No"]
["AML","AML Questionnaire",null,"A.3 # Policies - Low Risk",0]
["AML","AML Questionnaire",null,"A.3 # Policies - Medium Risk",0]
["AML","AML Questionnaire",null,"A.3 # Policies - High Risk",0]
["AML","AML Questionnaire",null,"A.3 # Policies - Unknown Risk",0]
["AML","AML Questionnaire",null,"A.3 # Policies - Total Risk",0]
["AML","AML Questionnaire",null,"B.1 GPW",0]
["AML","AML Questionnaire",null,"B.1(a) % Unrelated",0]
["AML","AML Questionnaire",null,"B.1(b) % incidental",0]
["AML","AML Questionnaire",null,"B.1 GPW - (i) Mortality - Term Assurance",0]
["AML","AML Questionnaire",null,"B.1 GPW - (ii) Mortality - Whole Life",0]
["AML","AML Questionnaire",null,"B.1 GPW - (iii) Mortality - Universal Life",0]
["AML","AML Questionnaire",null,"B.1 GPW - (b) Critical Illness ",0]
["AML","AML Questionnaire",null,"B.1 GPW - (c) Longevity (immediate pay-out annuities)",0]
["AML","AML Questionnaire",null,"B.1 GPW - (d) Longevity (deferred pay-out annuities)",0]
["AML","AML Questionnaire",null,"B.1 GPW - (e) Annuities certain only",0]
["AML","AML Questionnaire",null,"B.1 GPW - (f) Deferred accumulation annuities",0]
["AML","AML Questionnaire",null,"B.1 GPW - (g) Disability Income: active lives - including waiver of premium and long-term care",0]
["AML","AML Questionnaire",null,"B.1 GPW - (h) Disability income: active lives - other accident and sickness",0]
["AML","AML Questionnaire",null,"B.1 GPW - (i) Disability income: claims in payment - including waiver of premium and long-term care",0]
["AML","AML Questionnaire",null,"B.1 GPW - (j) Disability income: claims in payment - other accident and sickness",0]
["AML","AML Questionnaire",null,"B.1 GPW - (k) Group Life",0]
["AML","AML Questionnaire",null,"B.1 GPW - (l) Group Disability",0]
["AML","AML Questionnaire",null,"B.1 GPW - (m) Group Health",0]
["AML","AML Questionnaire",null,"B.1 GPW - (n) Stop Loss",0]
["AML","AML Questionnaire",null,"B.1 GPW - (o) Rider ",0]
["AML","AML Questionnaire",null,"B.1 GPW - (p) Variable Annuities",0]
["AML","AML Questionnaire",null,"B.1 GPW - (q) Other Lines of Business",0]
["AML","AML Questionnaire",null,"B.1 GPW - General Business",0]
["AML","AML Questionnaire",null,"B.1 GPW - Other LOB",0]
["AML","AML Questionnaire",null,"B.1 GPW - Total GPW",0]
["AML","AML Questionnaire",null,"B.1 # Policies - (i) Mortality - Term Assurance",0]
["AML","AML Questionnaire",null,"B.1 # Policies - (ii) Mortality - Whole Life",0]
["AML","AML Questionnaire",null,"B.1 # Policies - (iii) Mortality - Universal Life",0]
["AML","AML Questionnaire",null,"B.1 # Policies - (b) Critical Illness ",0]
["AML","AML Questionnaire",null,"B.1 # Policies - (c) Longevity (immediate pay-out annuities)",0]
["AML","AML Questionnaire",null,"B.1 # Policies - (d) Longevity (deferred pay-out annuities)",0]
["AML","AML Questionnaire",null,"B.1 # Policies - (e) Annuities certain only",0]
["AML","AML Questionnaire",null,"B.1 # Policies - (f) Deferred accumulation annuities",0]
["AML","AML Questionnaire",null,"B.1 # Policies - (g) Disability Income: active lives - including waiver of premium and long-term care",0]
["AML","AML Questionnaire",null,"B.1 # Policies - (h) Disability income: active lives - other accident and sickness",0]
["AML","AML Questionnaire",null,"B.1 # Policies - (i) Disability income: claims in payment - including waiver of premium and long-term care",0]
["AML","AML Questionnaire",null,"B.1 # Policies - (j) Disability income: claims in payment - other accident and sickness",0]
["AML","AML Questionnaire",null,"B.1 # Policies - (k) Group Life",0]
["AML","AML Questionnaire",null,"B.1 # Policies - (l) Group Disability",0]
["AML","AML Questionnaire",null,"B.1 # Policies - (m) Group Health",0]
["AML","AML Questionnaire",null,"B.1 # Policies - (n) Stop Loss",0]
["AML","AML Questionnaire",null,"B.1 # Policies - (o) Rider",0]
["AML","AML Questionnaire",null,"B.1 # Policies - (p) Variable Annuities",0]
["AML","AML Questionnaire",null,"B.1 # Policies - (q) Other Lines of Business",0]
["AML","AML Questionnaire",null,"B.1 # Policies - General Business",0]
["AML","AML Questionnaire",null,"B.1 # Policies - Other LOB",0]
["AML","AML Questionnaire",null,"B.1 # Policies - Total # Policies",0]
["AML","AML Questionnaire",null,"B.2 Paid - (i) Mortality - Term Assurance",0]
["AML","AML Questionnaire",null,"B.2 Paid - (ii) Mortality - Whole Life",0]
["AML","AML Questionnaire",null,"B.2 Paid - (iii) Mortality - Universal Life",0]
["AML","AML Questionnaire",null,"B.2 Paid - (b) Critical Illness ",0]
["AML","AML Questionnaire",null,"B.2 Paid - (c) Longevity (immediate pay-out annuities)",0]
["AML","AML Questionnaire",null,"B.2 Paid - (d) Longevity (deferred pay-out annuities)",0]
["AML","AML Questionnaire",null,"B.2 Paid - (e) Annuities certain only",0]
["AML","AML Questionnaire",null,"B.2 Paid - (f) Deferred accumulation annuities",0]
["AML","AML Questionnaire",null,"B.2 Paid - (g) Disability Income: active lives - including waiver of premium and long-term care",0]
["AML","AML Questionnaire",null,"B.2 Paid - (h) Disability income: active lives - other accident and sickness",0]
["AML","AML Questionnaire",null,"B.2 Paid - (i) Disability income: claims in payment - including waiver of premium and long-term care",0]
["AML","AML Questionnaire",null,"B.2 Paid - (j) Disability income: claims in payment - other accident and sickness",0]
["AML","AML Questionnaire",null,"B.2 Paid - (k) Group Life",0]
["AML","AML Questionnaire",null,"B.2 Paid - (l) Group Disability",0]
["AML","AML Questionnaire",null,"B.2 Paid - (m) Group Health",0]
["AML","AML Questionnaire",null,"B.2 Paid - (n) Stop Loss",0]
["AML","AML Questionnaire",null,"B.2 Paid - (o) Rider ",0]
["AML","AML Questionnaire",null,"B.2 Paid - (p) Variable Annuities",0]
["AML","AML Questionnaire",null,"B.2 Paid - (q) Other Lines of Business",0]
["AML","AML Questionnaire",null,"B.2 Paid - General Business",0]
["AML","AML Questionnaire",null,"B.2 Paid - Other LOB",0]
["AML","AML Questionnaire",null,"B.2 Paid - Total Paid",0]
["AML","AML Questionnaire",null,"B.2 # Policies - (i) Mortality - Term Assurance",0]
["AML","AML Questionnaire",null,"B.2 # Policies - (ii) Mortality - Whole Life",0]
["AML","AML Questionnaire",null,"B.2 # Policies - (iii) Mortality - Universal Life",0]
["AML","AML Questionnaire",null,"B.2 # Policies - (b) Critical Illness ",0]
["AML","AML Questionnaire",null,"B.2 # Policies - (c) Longevity (immediate pay-out annuities)",0]
["AML","AML Questionnaire",null,"B.2 # Policies - (d) Longevity (deferred pay-out annuities)",0]
["AML","AML Questionnaire",null,"B.2 # Policies - (e) Annuities certain only",0]
["AML","AML Questionnaire",null,"B.2 # Policies - (f) Deferred accumulation annuities",0]
["AML","AML Questionnaire",null,"B.2 # Policies - (g) Disability Income: active lives - including waiver of premium and long-term care",0]
["AML","AML Questionnaire",null,"B.2 # Policies - (h) Disability income: active lives - other accident and sickness",0]
["AML","AML Questionnaire",null,"B.2 # Policies - (i) Disability income: claims in payment - including waiver of premium and long-term care",0]
["AML","AML Questionnaire",null,"B.2 # Policies - (j) Disability income: claims in payment - other accident and sickness",0]
["AML","AML Questionnaire",null,"B.2 # Policies - (k) Group Life",0]
["AML","AML Questionnaire",null,"B.2 # Policies - (l) Group Disability",0]
["AML","AML Questionnaire",null,"B.2 # Policies - (m) Group Health",0]
["AML","AML Questionnaire",null,"B.2 # Policies - (n) Stop Loss",0]
["AML","AML Questionnaire",null,"B.2 # Policies - (o) Rider",0]
["AML","AML Questionnaire",null,"B.2 # Policies - (p) Variable Annuities",0]
["AML","AML Questionnaire",null,"B.2 # Policies - (q) Other Lines of Business",0]
["AML","AML Questionnaire",null,"B.2 # Policies - General Business",0]
["AML","AML Questionnaire",null,"B.2 # Policies - Other LOB",0]
["AML","AML Questionnaire",null,"B.2 # Policies - Total # Policies",0]
["AML","AML Questionnaire",null,"B.3 Premium - Bank Transfer",0]
["AML","AML Questionnaire",null,"B.3 Premium - Cash",0]
["AML","AML Questionnaire",null,"B.3 Premium - Cheque",0]
["AML","AML Questionnaire",null,"B.3 Premium - Credit Card",0]
["AML","AML Questionnaire",null,"B.3 Premium - Virtual Currencies",0]
["AML","AML Questionnaire",null,"B.3 Premium - Other",0]
["AML","AML Questionnaire",null,"B.3 Premium - Total",0]
["AML","AML Questionnaire",null,"B.3 Claims - Bank Transfer",0]
["AML","AML Questionnaire",null,"B.3 Claims - Cash",0]
["AML","AML Questionnaire",null,"B.3 Claims - Cheque",0]
["AML","AML Questionnaire",null,"B.3 Claims - Credit Card",0]
["AML","AML Questionnaire",null,"B.3 Claims - Virtual Currencies",0]
["AML","AML Questionnaire",null,"B.3 Claims - Other",0]
["AML","AML Questionnaire",null,"B.3 Claims - Total",0]
["AML","AML Questionnaire",null,"B.3 Other Details",0]
["AML","AML Questionnaire",null,"B.4 Accept 3rd Party Payments","Select Yes/No"]
["AML","AML Questionnaire",null,"B.4 If yes, Details",0]
["AML","AML Questionnaire",null,"C.1 Business Relationships - Face to Face",0]
["AML","AML Questionnaire",null,"C.1 Business Relationships - Intermediary",0]
["AML","AML Questionnaire",null,"C.1 Business Relationships - Phone, Email",0]
["AML","AML Questionnaire",null,"C.1 Business Relationships - Other",0]
["AML","AML Questionnaire",null,"C.1 Business Relationships - Total",0]
["AML","AML Questionnaire",null,"D.1 PEP's Identified","Select Yes/No"]
["AML","AML Questionnaire",null,"D.2 GPW - Zone 1 - Central & Western Asia",0]
["AML","AML Questionnaire",null,"D.2 GPW - Zone 2 - Eastern Asia",0]
["AML","AML Questionnaire",null,"D.2 GPW - Zone 3 - South & South Eastern Asia",0]
["AML","AML Questionnaire",null,"D.2 GPW - Zone 4 - Oceania",0]
["AML","AML Questionnaire",null,"D.2 GPW - Zone 5 - Northern Africa",0]
["AML","AML Questionnaire",null,"D.2 GPW - Zone 6 - Southern Africa",0]
["AML","AML Questionnaire",null,"D.2 GPW - Zone 7 - Eastern Europe",0]
["AML","AML Questionnaire",null,"D.2 GPW - Zone 8 - Northern Europe",0]
["AML","AML Questionnaire",null,"D.2 GPW - Zone 9 - Southern Europe",0]
["AML","AML Questionnaire",null,"D.2 GPW - Zone 10 - Western Europe",0]
["AML","AML Questionnaire",null,"D.2 GPW - Zone 11 -  North America ",0]
["AML","AML Questionnaire",null,"D.2 GPW - Zone 12 - Caribbean",0]
["AML","AML Questionnaire",null,"D.2 GPW - Zone 13 - Eastern South America",0]
["AML","AML Questionnaire",null,"D.2 GPW - Zone 14 - N, S & W South America",0]
["AML","AML Questionnaire",null,"D.2 GPW - Zone 15 - North East United States",0]
["AML","AML Questionnaire",null,"D.2 GPW - Zone 16 - South-East United States",0]
["AML","AML Questionnaire",null,"D.2 GPW - Zone 17 - Mid-West United States",0]
["AML","AML Questionnaire",null,"D.2 GPW - Zone 18 - Western United States",0]
["AML","AML Questionnaire",null,"D.2 GPW - Zone 19 - Central America",0]
["AML","AML Questionnaire",null,"D.2 GPW - Zone 20 - Bermuda",0]
["AML","AML Questionnaire",null,"D.2 GPW - Zone 20 - Total",0]
["AML","AML Questionnaire",null,"D.2 # of Policies - Zone 1 - Central & Western Asia",0]
["AML","AML Questionnaire",null,"D.2 # of Policies - Zone 2 - Eastern Asia",0]
["AML","AML Questionnaire",null,"D.2 # of Policies - Zone 3 - South & South Eastern Asia",0]
["AML","AML Questionnaire",null,"D.2 # of Policies - Zone 4 - Oceania",0]
["AML","AML Questionnaire",null,"D.2 # of Policies - Zone 5 - Northern Africa",0]
["AML","AML Questionnaire",null,"D.2 # of Policies - Zone 6 - Southern Africa",0]
["AML","AML Questionnaire",null,"D.2 # of Policies - Zone 7 - Eastern Europe",0]
["AML","AML Questionnaire",null,"D.2 # of Policies - Zone 8 - Northern Europe",0]
["AML","AML Questionnaire",null,"D.2 # of Policies - Zone 9 - Southern Europe",0]
["AML","AML Questionnaire",null,"D.2 # of Policies - Zone 10 - Western Europe",0]
["AML","AML Questionnaire",null,"D.2 # of Policies - Zone 11 -  North America ",0]
["AML","AML Questionnaire",null,"D.2 # of Policies - Zone 12 - Caribbean",0]
["AML","AML Questionnaire",null,"D.2 # of Policies - Zone 13 - Eastern South America",0]
["AML","AML Questionnaire",null,"D.2 # of Policies - Zone 14 - N, S & W South America",0]
["AML","AML Questionnaire",null,"D.2 # of Policies - Zone 15 - North East United States",0]
["AML","AML Questionnaire",null,"D.2 # of Policies - Zone 16 - South-East United States",0]
["AML","AML Questionnaire",null,"D.2 # of Policies - Zone 17 - Mid-West United States",0]
["AML","AML Questionnaire",null,"D.2 # of Policies - Zone 18 - Western United States",0]
["AML","AML Questionnaire",null,"D.2 # of Policies - Zone 19 - Central America",0]
["AML","AML Questionnaire",null,"D.2 # of Policies - Zone 20 - Bermuda",0]
["AML","AML Questionnaire",null,"D.2 # of Policies - Zone 20 - Total",0]
["AML","AML Questionnaire",null,"D.2 # of PEP - Zone 1 - Central & Western Asia",0]
["AML","AML Questionnaire",null,"D.2 # of PEP - Zone 2 - Eastern Asia",0]
["AML","AML Questionnaire",null,"D.2 # of PEP - Zone 3 - South & South Eastern Asia",0]
["AML","AML Questionnaire",null,"D.2 # of PEP - Zone 4 - Oceania",0]
["AML","AML Questionnaire",null,"D.2 # of PEP - Zone 5 - Northern Africa",0]
["AML","AML Questionnaire",null,"D.2 # of PEP - Zone 6 - Southern Africa",0]
["AML","AML Questionnaire",null,"D.2 # of PEP - Zone 7 - Eastern Europe",0]
["AML","AML Questionnaire",null,"D.2 # of PEP - Zone 8 - Northern Europe",0]
["AML","AML Questionnaire",null,"D.2 # of PEP - Zone 9 - Southern Europe",0]
["AML","AML Questionnaire",null,"D.2 # of PEP - Zone 10 - Western Europe",0]
["AML","AML Questionnaire",null,"D.2 # of PEP - Zone 11 -  North America ",0]
["AML","AML Questionnaire",null,"D.2 # of PEP - Zone 12 - Caribbean",0]
["AML","AML Questionnaire",null,"D.2 # of PEP - Zone 13 - Eastern South America",0]
["AML","AML Questionnaire",null,"D.2 # of PEP - Zone 14 - N, S & W South America",0]
["AML","AML Questionnaire",null,"D.2 # of PEP - Zone 15 - North East United States",0]
["AML","AML Questionnaire",null,"D.2 # of PEP - Zone 16 - South-East United States",0]
["AML","AML Questionnaire",null,"D.2 # of PEP - Zone 17 - Mid-West United States",0]
["AML","AML Questionnaire",null,"D.2 # of PEP - Zone 18 - Western United States",0]
["AML","AML Questionnaire",null,"D.2 # of PEP - Zone 19 - Central America",0]
["AML","AML Questionnaire",null,"D.2 # of PEP - Zone 20 - Bermuda",0]
["AML","AML Questionnaire",null,"D.2 # of PEP - Zone 20 - Total",0]
["AML","AML Questionnaire",null,"D.3 Transaction Monitoring","Select Yes/No"]
["AML","AML Questionnaire",null,"D.4 # Beneficiaries - Zone 1 - Central & Western Asia",0]
["AML","AML Questionnaire",null,"D.4 # Beneficiaries - Zone 2 - Eastern Asia",0]
["AML","AML Questionnaire",null,"D.4 # Beneficiaries - Zone 3 - South & South Eastern Asia",0]
["AML","AML Questionnaire",null,"D.4 # Beneficiaries - Zone 4 - Oceania",0]
["AML","AML Questionnaire",null,"D.4 # Beneficiaries - Zone 5 - Northern Africa",0]
["AML","AML Questionnaire",null,"D.4 # Beneficiaries - Zone 6 - Southern Africa",0]
["AML","AML Questionnaire",null,"D.4 # Beneficiaries - Zone 7 - Eastern Europe",0]
["AML","AML Questionnaire",null,"D.4 # Beneficiaries - Zone 8 - Northern Europe",0]
["AML","AML Questionnaire",null,"D.4 # Beneficiaries - Zone 9 - Southern Europe",0]
["AML","AML Questionnaire",null,"D.4 # Beneficiaries - Zone 10 - Western Europe",0]
["AML","AML Questionnaire",null,"D.4 # Beneficiaries - Zone 11 -  North America ",0]
["AML","AML Questionnaire",null,"D.4 # Beneficiaries - Zone 12 - Caribbean",0]
["AML","AML Questionnaire",null,"D.4 # Beneficiaries - Zone 13 - Eastern South America",0]
["AML","AML Questionnaire",null,"D.4 # Beneficiaries - Zone 14 - N, S & W South America",0]
["AML","AML Questionnaire",null,"D.4 # Beneficiaries - Zone 15 - North East United States",0]
["AML","AML Questionnaire",null,"D.4 # Beneficiaries - Zone 16 - South-East United States",0]
["AML","AML Questionnaire",null,"D.4 # Beneficiaries - Zone 17 - Mid-West United States",0]
["AML","AML Questionnaire",null,"D.4 # Beneficiaries - Zone 18 - Western United States",0]
["AML","AML Questionnaire",null,"D.4 # Beneficiaries - Zone 19 - Central America",0]
["AML","AML Questionnaire",null,"D.4 # Beneficiaries - Zone 20 - Bermuda",0]
["AML","AML Questionnaire",null,"D.4 # Beneficiaries - Zone 20 - Total",0]
["AML","AML Questionnaire",null,"D.4 # Policies - Zone 1 - Central & Western Asia",0]
["AML","AML Questionnaire",null,"D.4 # Policies - Zone 2 - Eastern Asia",0]
["AML","AML Questionnaire",null,"D.4 # Policies - Zone 3 - South & South Eastern Asia",0]
["AML","AML Questionnaire",null,"D.4 # Policies - Zone 4 - Oceania",0]
["AML","AML Questionnaire",null,"D.4 # Policies - Zone 5 - Northern Africa",0]
["AML","AML Questionnaire",null,"D.4 # Policies - Zone 6 - Southern Africa",0]
["AML","AML Questionnaire",null,"D.4 # Policies - Zone 7 - Eastern Europe",0]
["AML","AML Questionnaire",null,"D.4 # Policies - Zone 8 - Northern Europe",0]
["AML","AML Questionnaire",null,"D.4 # Policies - Zone 9 - Southern Europe",0]
["AML","AML Questionnaire",null,"D.4 # Policies - Zone 10 - Western Europe",0]
["AML","AML Questionnaire",null,"D.4 # Policies - Zone 11 -  North America ",0]
["AML","AML Questionnaire",null,"D.4 # Policies - Zone 12 - Caribbean",0]
["AML","AML Questionnaire",null,"D.4 # Policies - Zone 13 - Eastern South America",0]
["AML","AML Questionnaire",null,"D.4 # Policies - Zone 14 - N, S & W South America",0]
["AML","AML Questionnaire",null,"D.4 # Policies - Zone 15 - North East United States",0]
["AML","AML Questionnaire",null,"D.4 # Policies - Zone 16 - South-East United States",0]
["AML","AML Questionnaire",null,"D.4 # Policies - Zone 17 - Mid-West United States",0]
["AML","AML Questionnaire",null,"D.4 # Policies - Zone 18 - Western United States",0]
["AML","AML Questionnaire",null,"D.4 # Policies - Zone 19 - Central America",0]
["AML","AML Questionnaire",null,"D.4 # Policies - Zone 20 - Bermuda",0]
["AML","AML Questionnaire",null,"D.4 # Policies - Zone 20 - Total",0]
["AML","AML Questionnaire",null,"D.4 Claims Paid - Zone 1 - Central & Western Asia",0]
["AML","AML Questionnaire",null,"D.4 Claims Paid - Zone 2 - Eastern Asia",0]
["AML","AML Questionnaire",null,"D.4 Claims Paid - Zone 3 - South & South Eastern Asia",0]
["AML","AML Questionnaire",null,"D.4 Claims Paid - Zone 4 - Oceania",0]
["AML","AML Questionnaire",null,"D.4 Claims Paid - Zone 5 - Northern Africa",0]
["AML","AML Questionnaire",null,"D.4 Claims Paid - Zone 6 - Southern Africa",0]
["AML","AML Questionnaire",null,"D.4 Claims Paid - Zone 7 - Eastern Europe",0]
["AML","AML Questionnaire",null,"D.4 Claims Paid - Zone 8 - Northern Europe",0]
["AML","AML Questionnaire",null,"D.4 Claims Paid - Zone 9 - Southern Europe",0]
["AML","AML Questionnaire",null,"D.4 Claims Paid - Zone 10 - Western Europe",0]
["AML","AML Questionnaire",null,"D.4 Claims Paid - Zone 11 -  North America ",0]
["AML","AML Questionnaire",null,"D.4 Claims Paid - Zone 12 - Caribbean",0]
["AML","AML Questionnaire",null,"D.4 Claims Paid - Zone 13 - Eastern South America",0]
["AML","AML Questionnaire",null,"D.4 Claims Paid - Zone 14 - N, S & W South America",0]
["AML","AML Questionnaire",null,"D.4 Claims Paid - Zone 15 - North East United States",0]
["AML","AML Questionnaire",null,"D.4 Claims Paid - Zone 16 - South-East United States",0]
["AML","AML Questionnaire",null,"D.4 Claims Paid - Zone 17 - Mid-West United States",0]
["AML","AML Questionnaire",null,"D.4 Claims Paid - Zone 18 - Western United States",0]
["AML","AML Questionnaire",null,"D.4 Claims Paid - Zone 19 - Central America",0]
["AML","AML Questionnaire",null,"D.4 Claims Paid - Zone 20 - Bermuda",0]
["AML","AML Questionnaire",null,"D.4 Claims Paid - Zone 20 - Total",0]
["AML","AML Questionnaire",null,"D.4 # PEPs - Zone 1 - Central & Western Asia",0]
["AML","AML Questionnaire",null,"D.4 # PEPs - Zone 2 - Eastern Asia",0]
["AML","AML Questionnaire",null,"D.4 # PEPs - Zone 3 - South & South Eastern Asia",0]
["AML","AML Questionnaire",null,"D.4 # PEPs - Zone 4 - Oceania",0]
["AML","AML Questionnaire",null,"D.4 # PEPs - Zone 5 - Northern Africa",0]
["AML","AML Questionnaire",null,"D.4 # PEPs - Zone 6 - Southern Africa",0]
["AML","AML Questionnaire",null,"D.4 # PEPs - Zone 7 - Eastern Europe",0]
["AML","AML Questionnaire",null,"D.4 # PEPs - Zone 8 - Northern Europe",0]
["AML","AML Questionnaire",null,"D.4 # PEPs - Zone 9 - Southern Europe",0]
["AML","AML Questionnaire",null,"D.4 # PEPs - Zone 10 - Western Europe",0]
["AML","AML Questionnaire",null,"D.4 # PEPs - Zone 11 -  North America ",0]
["AML","AML Questionnaire",null,"D.4 # PEPs - Zone 12 - Caribbean",0]
["AML","AML Questionnaire",null,"D.4 # PEPs - Zone 13 - Eastern South America",0]
["AML","AML Questionnaire",null,"D.4 # PEPs - Zone 14 - N, S & W South America",0]
["AML","AML Questionnaire",null,"D.4 # PEPs - Zone 15 - North East United States",0]
["AML","AML Questionnaire",null,"D.4 # PEPs - Zone 16 - South-East United States",0]
["AML","AML Questionnaire",null,"D.4 # PEPs - Zone 17 - Mid-West United States",0]
["AML","AML Questionnaire",null,"D.4 # PEPs - Zone 18 - Western United States",0]
["AML","AML Questionnaire",null,"D.4 # PEPs - Zone 19 - Central America",0]
["AML","AML Questionnaire",null,"D.4 # PEPs - Zone 20 - Bermuda",0]
["AML","AML Questionnaire",null,"D.4 # PEPs - Zone 20 - Total",0]
["AML","AML Questionnaire",null,"F.1 ML & TF Employee Training","Select Yes/No"]
["AML","AML Questionnaire",null,"F.1(a) New Employees","Select Yes/No"]
["AML","AML Questionnaire",null,"F.1(b) Program Specific or Generic","Select Yes/No"]
["AML","AML Questionnaire",null,"F.1(c) Training Frequency","Select Years"]
["AML","AML Questionnaire",null,"F.2 # of Employees - Full Time",0]
["AML","AML Questionnaire",null,"F.2 # of Employees - Part Time",0]
["AML","AML Questionnaire",null,"F.2.1 Compliance Officer Name",0]
["AML","AML Questionnaire",null,"F.2.1 Compliance Officer Work Terms","(Select Terms)"]
["AML","AML Questionnaire",null,"F.2.1.1 Compliance Officer Email Address",0]
["AML","AML Questionnaire",null,"F.2.2 Reporting Officer Name",0]
["AML","AML Questionnaire",null,"F.2.2 Reporting Officer Work Terms","(Select Terms)"]
["AML","AML Questionnaire",null,"F.2.2.1 Reporting Officer Email Address",0]
["AML","AML Questionnaire",null,"F.3 Recruit Staff - Verify Name","Select Yes/No"]
["AML","AML Questionnaire",null,"F.3 Recruit Staff - Verify Address","Select Yes/No"]
["AML","AML Questionnaire",null,"F.3 Recruit Staff - Verify Staff PEP","Select Yes/No"]
["AML","AML Questionnaire",null,"F.3 Recruit Staff - Verify Sanction List","Select Yes/No"]
["AML","AML Questionnaire",null,"F.3 Recruit Staff - Verify Negative Press","Select Yes/No"]
["AML","AML Questionnaire",null,"F.3 Recruit Staff - Verify Employee History","Select Yes/No"]
["AML","AML Questionnaire",null,"F.3 Recruit Staff - Verify References","Select Yes/No"]
["AML","AML Questionnaire",null,"F.3 Recruit Staff - Verify Reg Action","Select Yes/No"]
["AML","AML Questionnaire",null,"F.3 Recruit Staff - Verify Criminal Convictions","Select Yes/No"]
["AML","AML Questionnaire",null,"F.4 Compliance Officer Senior Mgmnt","Select Yes/No"]
["AML","AML Questionnaire",null,"G.1 AML/ATF Specific LT Insurance","Select Yes/No"]
["AML","AML Questionnaire",null,"G.2 AML/ATF GB or Reinsurance","Select Yes/No"]
["AML","AML Questionnaire",null,"G.3 AML/ATF Other Controls","Select Yes/No"]
["AML","AML Questionnaire",null,"G.3 AML/ATF Other Controls - Details",0]
["AML","AML Questionnaire",null,"G.4 AML/ATF Rating Frequency","Select Years"]
["AML","AML Questionnaire",null,"G.5 Approval of New Business - Low Risk","Select Yes/No"]
["AML","AML Questionnaire",null,"G.5 Approval of New Business - Medium Risk","Select Yes/No"]
["AML","AML Questionnaire",null,"G.5 Approval of New Business - High Risk","Select Yes/No"]
["AML","AML Questionnaire",null,"G.6 Approval of Existing Business - Low Risk","Select Yes/No"]
["AML","AML Questionnaire",null,"G.6 Approval of Existing Business - Medium Risk","Select Yes/No"]
["AML","AML Questionnaire",null,"G.6 Approval of Existing Business - High Risk","Select Yes/No"]
["AML","AML Questionnaire",null,"G.7 AML/ATF Manuals with BDA Laws","Select Yes/No"]
["AML","AML Questionnaire",null,"G.7.1 AML/ATF Manuals Reviewed","Select Years"]
["AML","AML Questionnaire",null,"G.8 Last AML/ATF Risk Assessment","(Select)"]
["AML","AML Questionnaire",null,"G.9 AML/ATF Independent Audit ","(Select)"]
["AML","AML Questionnaire",null,"G.10 Last Compliance Report","(Select)"]
["AML","AML Questionnaire",null,"G.11 Document ML/TF Prior to Launch","Select Yes/No"]
["AML","AML Questionnaire",null,"H.1.1 Insurer Part of Group","Select Yes/No"]
["AML","AML Questionnaire",null,"H.1.1.1 Group Name",0]
["AML","AML Questionnaire",null,"H.1.1.1 Group ROC #",0]
["AML","AML Questionnaire",null,"H.1.1.2 Listed on Exchange","Select Yes/No"]
["AML","AML Questionnaire",null,"H.1.1.2 Exchange 1",0]
["AML","AML Questionnaire",null,"H.1.1.2 Exchange 2",0]
["AML","AML Questionnaire",null,"H.1.1.2 Exchange 3",0]
["AML","AML Questionnaire",null,"H.2(a) # of SAC Registered accounts",0]
["AML","AML Questionnaire",null,"H.2(i) # of Active SAC",0]
["AML","AML Questionnaire",null,"H.2(ii) # of Non-Active SAC",0]
["AML","AML Questionnaire",null,"H.3 Private Act Confirmation","Select Yes/No"]
["AML","AML Questionnaire",null,"H.3(a) # of Designated Inv. Contracts",0]
["AML","AML Questionnaire",null,"H.3(b) Net Account Value of Designated Inv. Contracts",0]
["AML","AML Questionnaire",null,"H.3 Other Comments",0]
["AML","AML Questionnaire",null,"I. Corporate Governance Q1","Select Yes/No"]
["AML","AML Questionnaire",null,"I. Corporate Governance Q2","Select Yes/No"]
["AML","AML Questionnaire",null,"I. Corporate Governance Q3","Select Yes/No"]
["AML","AML Questionnaire",null,"I. Corporate Governance Q4","Select Yes/No"]
["AML","AML Questionnaire",null,"I. Corporate Governance Q5","Select Yes/No"]
["AML","AML Questionnaire",null,"I. Corporate Governance Q6","Select Yes/No"]
["AML","AML Questionnaire",null,"I. Corporate Governance Q7","Select Yes/No"]
["AML","AML Questionnaire",null,"I. Corporate Governance Q8","Select Yes/No"]
["AML","AML Questionnaire",null,"I. Corporate Governance Q9","Select Yes/No"]
["AML","AML Questionnaire",null,"I. Corporate Governance Q10","Select Yes/No"]
["AML","AML Questionnaire",null,"I. Corporate Governance Q11","Select Yes/No"]
["AML","AML Questionnaire",null,"I. Corporate Governance Q12","Select Yes/No"]
["AML","AML Questionnaire",null,"I. Corporate Governance Q13","Select Yes/No"]
["AML","AML Questionnaire",null,"I. Employee Integrity Q14","Select Yes/No"]
["AML","AML Questionnaire",null,"I. Employee Integrity Q15","Select Yes/No"]
["AML","AML Questionnaire",null,"I. Employee Integrity Q16","Select Yes/No"]
["AML","AML Questionnaire",null,"I. Employee Integrity Q17","Select Yes/No"]
["AML","AML Questionnaire",null,"I. Employee Integrity Q18","Select Yes/No"]
["AML","AML Questionnaire",null,"I. Employee Knowledge Q19","Select Yes/No"]
["AML","AML Questionnaire",null,"I. Employee Knowledge Q20","Select Yes/No"]
["AML","AML Questionnaire",null,"I. Employee Knowledge Q21","Select Yes/No"]
["AML","AML Questionnaire",null,"I. Employee Knowledge Q22","Select Yes/No"]
["AML","AML Questionnaire",null,"I. Employee Knowledge Q23","Select Yes/No"]
["AML","AML Questionnaire",null,"I. Employee Knowledge Q24","Select Yes/No"]
["AML","AML Questionnaire",null,"I. Employee Knowledge Q25","Select Yes/No"]
["AML","AML Questionnaire",null,"I. Employee Knowledge Q26","Select Yes/No"]
["AML","AML Questionnaire",null,"I. Employee Knowledge Q27","Select Yes/No"]
["AML","AML Questionnaire",null,"I. Employee Compliance Q28","Select Yes/No"]
["AML","AML Questionnaire",null,"I. Employee Compliance Q29","Select Yes/No"]
["AML","AML Questionnaire",null,"I. Employee Compliance Q30","Select Yes/No"]
["AML","AML Questionnaire",null,"I. Employee Compliance Q31","Select Yes/No"]
[]
["Sar & Sanc.","SAR & Sanctions",null,"E.1 Registered GoAML","Select Yes/No"]
["Sar & Sanc.","SAR & Sanctions",null,"E.1.1 When","(Select)"]
["Sar & Sanc.","SAR & Sanctions",null,"E.1.1 Name",0]
["Sar & Sanc.","SAR & Sanctions",null,"E.1.2 Another Registered","Select Yes/No"]
["Sar & Sanc.","SAR & Sanctions",null,"E.1.3 Name",0]
["Sar & Sanc.","SAR & Sanctions",null,"E.1.4 Filed SAR",0]
["Sar & Sanc.","SAR & Sanctions",null,"E.2 SAR Filed - Internal - Current Year",0]
["Sar & Sanc.","SAR & Sanctions",null,"E.2 SAR Filed - Internal - Prior Year",0]
["Sar & Sanc.","SAR & Sanctions",null,"E.2 SAR Filed - Internal - 2 Years Prior",0]
["Sar & Sanc.","SAR & Sanctions",null,"E.2 SAR Filed - Internal - 3 Years Prior",0]
["Sar & Sanc.","SAR & Sanctions",null,"E.2 SAR Filed - Internal - Total",0]
["Sar & Sanc.","SAR & Sanctions",null,"E.2 SAR Filed - w FIA - Current Year",0]
["Sar & Sanc.","SAR & Sanctions",null,"E.2 SAR Filed - w FIA - Prior Year",0]
["Sar & Sanc.","SAR & Sanctions",null,"E.2 SAR Filed - w FIA - 2 Years Prior",0]
["Sar & Sanc.","SAR & Sanctions",null,"E.2 SAR Filed - w FIA - 3 Years Prior",0]
["Sar & Sanc.","SAR & Sanctions",null,"E.2 SAR Filed - w FIA - Total",0]
["Sar & Sanc.","SAR & Sanctions",null,"E.2 Additional Comments",0]
["Sar & Sanc.","SAR & Sanctions",null,"E. Sanction - 1. Screen insurers","Select Yes/No"]
["Sar & Sanc.","SAR & Sanctions",null,"E. Sanction - 2. Screen employees","Select Yes/No"]
["Sar & Sanc.","SAR & Sanctions",null,"E. Sanction - 3. Freeze Assets","Select Yes/No"]
["Sar & Sanc.","SAR & Sanctions",null,"E. Sanction - 3.1 # of Assets Frozen",0]
["Sar & Sanc.","SAR & Sanctions",null,"E. Sanction - 3.2 Group ID 1",0]
["Sar & Sanc.","SAR & Sanctions",null,"E. Sanction - 3.2 Group ID 2",0]
["Sar & Sanc.","SAR & Sanctions",null,"E. Sanction - 3.2 Group ID 3",0]
["Sar & Sanc.","SAR & Sanctions",null,"E. Sanction - 3.2 Group ID 4",0]
["Sar & Sanc.","SAR & Sanctions",null,"E. Sanction - 3.2 Name Given 1",0]
["Sar & Sanc.","SAR & Sanctions",null,"E. Sanction - 3.2 Name Given 2",0]
["Sar & Sanc.","SAR & Sanctions",null,"E. Sanction - 3.2 Name Given 3",0]
["Sar & Sanc.","SAR & Sanctions",null,"E. Sanction - 3.2 Name Given 4",0]
["Sar & Sanc.","SAR & Sanctions",null,"E. Sanction - 3.2 Owned 1",0]
["Sar & Sanc.","SAR & Sanctions",null,"E. Sanction - 3.2 Owned 2",0]
["Sar & Sanc.","SAR & Sanctions",null,"E. Sanction - 3.2 Owned 3",0]
["Sar & Sanc.","SAR & Sanctions",null,"E. Sanction - 3.2 Owned 4",0]
["Sar & Sanc.","SAR & Sanctions",null,"E. Sanction - 3.2 Value of Assets 1",0]
["Sar & Sanc.","SAR & Sanctions",null,"E. Sanction - 3.2 Value of Assets 2",0]
["Sar & Sanc.","SAR & Sanctions",null,"E. Sanction - 3.2 Value of Assets 3",0]
["Sar & Sanc.","SAR & Sanctions",null,"E. Sanction - 3.2 Value of Assets 4",0]
["Sar & Sanc.","SAR & Sanctions",null,"E. Sanction - 3.2 Value of Total",0]
["Sar & Sanc.","SAR & Sanctions",null,"E. Sanction - 4 Frequency of Screen for Sanctions","Select"]
["Sar & Sanc.","SAR & Sanctions",null,"E. Sanction - Additional Comments ",0]

{"sheet":"Export","index":8,"n_rows":40764,"n_cols":15,"rows_kept":4500,"cut":true,"hidden":false,"merged":[[0,4,0,6],[0,8,0,10],[0,12,0,14]],"bounds":{"rows_first":2000,"rows_last":500,"rows_between":2000,"halvings":0}}
[null,null,null,null,"Unconsolidated",null,null,null,"Consolidated",null,null,null,"EBS"]
["Sheet Name","Sheet Short Description","Field Code","Field Description",{"$f":"YEAR('Insurer Information'!$C$3)","v":2023},null,{"$f":"E2-1","v":2022},null,{"$f":"YEAR('Insurer Information'!$C$3)","v":2023},null,{"$f":"I2-1","v":2022},null,{"$f":"YEAR('Insurer Information'!$C$3)","v":2023},null,{"$f":"M2-1","v":2022}]
["Declaration",null,null,"Director 1",{"$f":"Declaration!C20","v":0}]
["Declaration",null,null,"Date",{"$f":"Declaration!C23","v":"00:00:00"}]
["Declaration",null,null,"Director 2",{"$f":"Declaration!C28","v":0}]
["Declaration",null,null,"Date",{"$f":"Declaration!C31","v":"00:00:00"}]
["Declaration",null,null,"Other Signatory",{"$f":"Declaration!C35","v":0}]
["Declaration",null,null,"Date",{"$f":"Declaration!C38","v":"00:00:00"}]
[]
["Info Sheet",null,null,"(d) Statements Held at Registered Office",{"$f":"'Information Sheet'!H9","v":"Select Yes/No"}]
["Info Sheet",null,null,"(e) Filing Period - Period Start Date",{"$f":"'Information Sheet'!H13","v":"00:00:00"}]
["Info Sheet",null,null,"(g) Figures Translated at:",{"$f":"'Information Sheet'!H18","v":1}]
["Info Sheet",null,null,"(h) Ultimate Parent",{"$f":"'Information Sheet'!H20","v":0}]
["Info Sheet",null,null,"(i) Insurer's Parent Company",{"$f":"'Information Sheet'!H22","v":0}]
["Info Sheet",null,null,"(j) Industry Sector of Insurer's Parent",{"$f":"'Information Sheet'!H24","v":"Select from Drop-Down"}]
["Info Sheet",null,null,"(k) Insurer's Ownership Structure",{"$f":"'Information Sheet'!H26","v":"Select from Drop-Down"}]
["Info Sheet",null,null,"(l) Insurer's Company Structure",{"$f":"'Information Sheet'!H28","v":"Select from Drop-Down"}]
["Info Sheet",null,null,"(l).1 Confirm if Company writes LT Insurance",{"$f":"'Information Sheet'!H29","v":"Select Yes/No"}]
["Info Sheet",null,null,"(l).2 LT Insurance written during the period",{"$f":"'Information Sheet'!H30","v":"Select Yes/No"}]
["Info Sheet",null,null,"(l).3 Subsidiaries wrote Long-Term insurance",{"$f":"'Information Sheet'!H31","v":"Select Yes/No"}]
["Info Sheet",null,null,"(l).4 Subsidiaries wrote LT Ins. Outside of BDA",{"$f":"'Information Sheet'!H32","v":"Select Yes/No"}]
["Info Sheet",null,null,"(l).5 Subsidiaries Ins. Outside of BDA jurisdiction 1",{"$f":"'Information Sheet'!H33","v":0}]
["Info Sheet",null,null,"(l).5 Subsidiaries Ins. Outside of BDA jurisdiction 2",{"$f":"'Information Sheet'!H34","v":0}]
["Info Sheet",null,null,"(l).5 Subsidiaries Ins. Outside of BDA jurisdiction 3",{"$f":"'Information Sheet'!H35","v":0}]
["Info Sheet",null,null,"(m)(i) Is the Insurer a Member of Ins. Group?",{"$f":"'Information Sheet'!H38","v":"Select Yes/No"}]
["Info Sheet",null,null,"(m)(ii) Are there Segregated Accounts?",{"$f":"'Information Sheet'!H39","v":"Select Yes/No"}]
["Info Sheet",null,null,"(m)(iii) IS the Insurer in Run-Off?",{"$f":"'Information Sheet'!H40","v":"Select Yes/No"}]
["Info Sheet",null,null,"(m)(iv) Statements have a Qualified Opinion?",{"$f":"'Information Sheet'!H41","v":"Select Yes/No"}]
["Info Sheet",null,null,"(m)(iv) Details of Qualified Opinion",{"$f":"'Information Sheet'!C43","v":0}]
["Info Sheet",null,null,"(m)(v) Minimum Solvency Margin Met",{"$f":"'Information Sheet'!H46","v":"Select Yes/No"}]
["Info Sheet",null,null,"(n)(1) Certificate of Registration Date",{"$f":"'Information Sheet'!H51","v":""}]
["Info Sheet",null,null,"(n)(2) # of Conditions",{"$f":"'Information Sheet'!H53","v":0}]
["Info Sheet",null,null,"Effective Start Date of Condition - 1",{"$f":"'Information Sheet'!E56","v":"00:00:00"}]
["Info Sheet",null,null,"Effective Start Date of Condition - 2",{"$f":"'Information Sheet'!E57","v":"00:00:00"}]
["Info Sheet",null,null,"Effective Start Date of Condition - 3",{"$f":"'Information Sheet'!E58","v":"00:00:00"}]
["Info Sheet",null,null,"Effective Start Date of Condition - 4",{"$f":"'Information Sheet'!E59","v":"00:00:00"}]
["Info Sheet",null,null,"Effective Start Date of Condition - 5",{"$f":"'Information Sheet'!E60","v":"00:00:00"}]
["Info Sheet",null,null,"Effective Start Date of Condition - 6",{"$f":"'Information Sheet'!E61","v":"00:00:00"}]
["Info Sheet",null,null,"Effective Start Date of Condition - 7",{"$f":"'Information Sheet'!E62","v":"00:00:00"}]
["Info Sheet",null,null,"Effective Start Date of Condition - 8",{"$f":"'Information Sheet'!E63","v":"00:00:00"}]
["Info Sheet",null,null,"Effective Start Date of Condition - 9",{"$f":"'Information Sheet'!E64","v":"00:00:00"}]
["Info Sheet",null,null,"Effective Start Date of Condition - 10",{"$f":"'Information Sheet'!E65","v":"00:00:00"}]
["Info Sheet",null,null,"Effective End Date of Condition - 1",{"$f":"'Information Sheet'!F56","v":"00:00:00"}]
["Info Sheet",null,null,"Effective End Date of Condition - 2",{"$f":"'Information Sheet'!F57","v":"00:00:00"}]
["Info Sheet",null,null,"Effective End Date of Condition - 3",{"$f":"'Information Sheet'!F58","v":"00:00:00"}]
["Info Sheet",null,null,"Effective End Date of Condition - 4",{"$f":"'Information Sheet'!F59","v":"00:00:00"}]
["Info Sheet",null,null,"Effective End Date of Condition - 5",{"$f":"'Information Sheet'!F60","v":"00:00:00"}]
["Info Sheet",null,null,"Effective End Date of Condition - 6",{"$f":"'Information Sheet'!F61","v":"00:00:00"}]
["Info Sheet",null,null,"Effective End Date of Condition - 7",{"$f":"'Information Sheet'!F62","v":"00:00:00"}]
["Info Sheet",null,null,"Effective End Date of Condition - 8",{"$f":"'Information Sheet'!F63","v":"00:00:00"}]
["Info Sheet",null,null,"Effective End Date of Condition - 9",{"$f":"'Information Sheet'!F64","v":"00:00:00"}]
["Info Sheet",null,null,"Effective End Date of Condition - 10",{"$f":"'Information Sheet'!F65","v":"00:00:00"}]
["Info Sheet",null,null,"Description of Condition - 1",{"$f":"'Information Sheet'!G56","v":0}]
["Info Sheet",null,null,"Description of Condition - 2",{"$f":"'Information Sheet'!G57","v":0}]
["Info Sheet",null,null,"Description of Condition - 3",{"$f":"'Information Sheet'!G58","v":0}]
["Info Sheet",null,null,"Description of Condition - 4",{"$f":"'Information Sheet'!G59","v":0}]
["Info Sheet",null,null,"Description of Condition - 5",{"$f":"'Information Sheet'!G60","v":0}]
["Info Sheet",null,null,"Description of Condition - 6",{"$f":"'Information Sheet'!G61","v":0}]
["Info Sheet",null,null,"Description of Condition - 7",{"$f":"'Information Sheet'!G62","v":0}]
["Info Sheet",null,null,"Description of Condition - 8",{"$f":"'Information Sheet'!G63","v":0}]
["Info Sheet",null,null,"Description of Condition - 9",{"$f":"'Information Sheet'!G64","v":0}]
["Info Sheet",null,null,"Description of Condition - 10",{"$f":"'Information Sheet'!G65","v":0}]
["Info Sheet",null,null,"Insurer Complied with All Conditions?",{"$f":"'Information Sheet'!H67","v":"Select Yes/No"}]
["Info Sheet",null,null,"(p) # of Directions",{"$f":"'Information Sheet'!H71","v":0}]
["Info Sheet",null,null,"Effective Start Date of Direction - 1",{"$f":"'Information Sheet'!E74","v":"00:00:00"}]
["Info Sheet",null,null,"Effective Start Date of Direction - 2",{"$f":"'Information Sheet'!E75","v":"00:00:00"}]
["Info Sheet",null,null,"Effective Start Date of Direction - 3",{"$f":"'Information Sheet'!E76","v":"00:00:00"}]
["Info Sheet",null,null,"Effective Start Date of Direction - 4",{"$f":"'Information Sheet'!E77","v":"00:00:00"}]
["Info Sheet",null,null,"Effective Start Date of Direction - 5",{"$f":"'Information Sheet'!E78","v":"00:00:00"}]
["Info Sheet",null,null,"Effective Start Date of Direction - 6",{"$f":"'Information Sheet'!E79","v":"00:00:00"}]
["Info Sheet",null,null,"Effective Start Date of Direction - 7",{"$f":"'Information Sheet'!E80","v":"00:00:00"}]
["Info Sheet",null,null,"Effective Start Date of Direction - 8",{"$f":"'Information Sheet'!E81","v":"00:00:00"}]
["Info Sheet",null,null,"Effective Start Date of Direction - 9",{"$f":"'Information Sheet'!E82","v":"00:00:00"}]
["Info Sheet",null,null,"Effective Start Date of Direction - 10",{"$f":"'Information Sheet'!E83","v":"00:00:00"}]
["Info Sheet",null,null,"Effective End Date of Direction - 1",{"$f":"'Information Sheet'!F74","v":"00:00:00"}]
["Info Sheet",null,null,"Effective End Date of Direction - 2",{"$f":"'Information Sheet'!F75","v":"00:00:00"}]
["Info Sheet",null,null,"Effective End Date of Direction - 3",{"$f":"'Information Sheet'!F76","v":"00:00:00"}]
["Info Sheet",null,null,"Effective End Date of Direction - 4",{"$f":"'Information Sheet'!F77","v":"00:00:00"}]
["Info Sheet",null,null,"Effective End Date of Direction - 5",{"$f":"'Information Sheet'!F78","v":"00:00:00"}]
["Info Sheet",null,null,"Effective End Date of Direction - 6",{"$f":"'Information Sheet'!F79","v":"00:00:00"}]
["Info Sheet",null,null,"Effective End Date of Direction - 7",{"$f":"'Information Sheet'!F80","v":"00:00:00"}]
["Info Sheet",null,null,"Effective End Date of Direction - 8",{"$f":"'Information Sheet'!F81","v":"00:00:00"}]
["Info Sheet",null,null,"Effective End Date of Direction - 9",{"$f":"'Information Sheet'!F82","v":"00:00:00"}]
["Info Sheet",null,null,"Effective End Date of Direction - 10",{"$f":"'Information Sheet'!F83","v":"00:00:00"}]
["Info Sheet",null,null,"Description of Direction - 1",{"$f":"'Information Sheet'!G74","v":0}]
["Info Sheet",null,null,"Description of Direction - 2",{"$f":"'Information Sheet'!G75","v":0}]
["Info Sheet",null,null,"Description of Direction - 3",{"$f":"'Information Sheet'!G76","v":0}]
["Info Sheet",null,null,"Description of Direction - 4",{"$f":"'Information Sheet'!G77","v":0}]
["Info Sheet",null,null,"Description of Direction - 5",{"$f":"'Information Sheet'!G78","v":0}]
["Info Sheet",null,null,"Description of Direction - 6",{"$f":"'Information Sheet'!G79","v":0}]
["Info Sheet",null,null,"Description of Direction - 7",{"$f":"'Information Sheet'!G80","v":0}]
["Info Sheet",null,null,"Description of Direction - 8",{"$f":"'Information Sheet'!G81","v":0}]
["Info Sheet",null,null,"Description of Direction - 9",{"$f":"'Information Sheet'!G82","v":0}]
["Info Sheet",null,null,"Description of Direction - 10",{"$f":"'Information Sheet'!G83","v":0}]
["Info Sheet",null,null,"(q) Confirm If Any Negative Responses?",{"$f":"'Information Sheet'!H87","v":"Select Yes/No"}]
["Info Sheet",null,null,"Details of Negative Responses",{"$f":"'Information Sheet'!C89","v":0}]
[]
[null,null,null,"Balance Sheet"]
["Form 1SFS/1EBS","Balance Sheet LT/CON/EBS","1SFS1","Cash and Cash Equivalents",{"$f":"'Form 1SFS'!H12","v":0},null,{"$f":"'Form 1SFS'!I12","v":0},null,{"$f":"'Form 1SFS'!K12","v":0},null,{"$f":"'Form 1SFS'!M12","v":0},null,{"$f":"'Form 4EBS'!F10","v":0},null,{"$f":"'Form 4EBS'!H10","v":0}]
["Form 1SFS/1EBS","Balance Sheet LT/CON/EBS","1SFS2ai","Quoted - Bonds - Held to Maturity",{"$f":"'Form 1SFS'!H16","v":0},null,{"$f":"'Form 1SFS'!I16","v":0},null,{"$f":"'Form 1SFS'!K16","v":0},null,{"$f":"'Form 1SFS'!M16","v":0}]
["Form 1SFS/1EBS","Balance Sheet LT/CON/EBS","1SFS2aii","Quoted - Bonds - Other",{"$f":"'Form 1SFS'!H17","v":0},null,{"$f":"'Form 1SFS'!I17","v":0},null,{"$f":"'Form 1SFS'!K17","v":0},null,{"$f":"'Form 1SFS'!M17","v":0}]
["Form 1SFS/1EBS","Balance Sheet LT/CON/EBS","1EBS2b","Quoted - Bonds - Total",null,null,null,null,null,null,null,null,{"$f":"'Form 4EBS'!F13","v":0},null,{"$f":"'Form 4EBS'!H13","v":0}]
["Form 1SFS/1EBS","Balance Sheet LT/CON/EBS","1SFS2ci","Quoted - Equities - Common Stocks",{"$f":"'Form 1SFS'!H20","v":0},null,{"$f":"'Form 1SFS'!I20","v":0},null,{"$f":"'Form 1SFS'!K20","v":0},null,{"$f":"'Form 1SFS'!M20","v":0},null,{"$f":"'Form 4EBS'!F15","v":0},null,{"$f":"'Form 4EBS'!H15","v":0}]
["Form 1SFS/1EBS","Balance Sheet LT/CON/EBS","1SFS2cii","Quoted - Equities - Preferred Stocks",{"$f":"'Form 1SFS'!H21","v":0},null,{"$f":"'Form 1SFS'!I21","v":0},null,{"$f":"'Form 1SFS'!K21","v":0},null,{"$f":"'Form 1SFS'!M21","v":0},null,{"$f":"'Form 4EBS'!F16","v":0},null,{"$f":"'Form 4EBS'!H16","v":0}]
["Form 1SFS/1EBS","Balance Sheet LT/CON/EBS","1SFS2ciii","Quoted - Equities - Mutual Funds",{"$f":"'Form 1SFS'!H22","v":0},null,{"$f":"'Form 1SFS'!I22","v":0},null,{"$f":"'Form 1SFS'!K22","v":0},null,{"$f":"'Form 1SFS'!M22","v":0},null,{"$f":"'Form 4EBS'!F17","v":0},null,{"$f":"'Form 4EBS'!H17","v":0}]
["Form 1SFS/1EBS","Balance Sheet LT/CON/EBS","1SFS2e","Quoted - Other Investments",{"$f":"'Form 1SFS'!H24","v":0},null,{"$f":"'Form 1SFS'!I24","v":0},null,{"$f":"'Form 1SFS'!K24","v":0},null,{"$f":"'Form 1SFS'!M24","v":0},null,{"$f":"'Form 4EBS'!F19","v":0},null,{"$f":"'Form 4EBS'!H19","v":0}]
["Form 1SFS/1EBS","Balance Sheet LT/CON/EBS","1SFS3ai","Unquoted - Bonds - Held to Maturity",{"$f":"'Form 1SFS'!H29","v":0},null,{"$f":"'Form 1SFS'!I29","v":0},null,{"$f":"'Form 1SFS'!K29","v":0},null,{"$f":"'Form 1SFS'!M29","v":0}]
["Form 1SFS/1EBS","Balance Sheet LT/CON/EBS","1SFS3aii","Unquoted - Bonds - Other",{"$f":"'Form 1SFS'!H30","v":0},null,{"$f":"'Form 1SFS'!I30","v":0},null,{"$f":"'Form 1SFS'!K30","v":0},null,{"$f":"'Form 1SFS'!M30","v":0}]
["Form 1SFS/1EBS","Balance Sheet LT/CON/EBS","1EBS3b","Unquoted - Bonds - Total",null,null,null,null,null,null,null,null,{"$f":"'Form 4EBS'!F23","v":0},null,{"$f":"'Form 4EBS'!H23","v":0}]
["Form 1SFS/1EBS","Balance Sheet LT/CON/EBS","1SFS3ci","Unquoted - Equities - Common Stocks",{"$f":"'Form 1SFS'!H33","v":0},null,{"$f":"'Form 1SFS'!I33","v":0},null,{"$f":"'Form 1SFS'!K33","v":0},null,{"$f":"'Form 1SFS'!M33","v":0},null,{"$f":"'Form 4EBS'!F25","v":0},null,{"$f":"'Form 4EBS'!H25","v":0}]
["Form 1SFS/1EBS","Balance Sheet LT/CON/EBS","1SFS3cii","Unquoted - Equities - Preferred Stocks",{"$f":"'Form 1SFS'!H34","v":0},null,{"$f":"'Form 1SFS'!I34","v":0},null,{"$f":"'Form 1SFS'!K34","v":0},null,{"$f":"'Form 1SFS'!M34","v":0},null,{"$f":"'Form 4EBS'!F26","v":0},null,{"$f":"'Form 4EBS'!H26","v":0}]
["Form 1SFS/1EBS","Balance Sheet LT/CON/EBS","1SFS3ciii","Unquoted - Equities - Mutual Funds",{"$f":"'Form 1SFS'!H35","v":0},null,{"$f":"'Form 1SFS'!I35","v":0},null,{"$f":"'Form 1SFS'!K35","v":0},null,{"$f":"'Form 1SFS'!M35","v":0},null,{"$f":"'Form 4EBS'!F27","v":0},null,{"$f":"'Form 4EBS'!H27","v":0}]
["Form 1SFS/1EBS","Balance Sheet LT/CON/EBS","1SFS3e","Unquoted - Other Investments",{"$f":"'Form 1SFS'!H37","v":0},null,{"$f":"'Form 1SFS'!I37","v":0},null,{"$f":"'Form 1SFS'!K37","v":0},null,{"$f":"'Form 1SFS'!M37","v":0},null,{"$f":"'Form 4EBS'!F29","v":0},null,{"$f":"'Form 4EBS'!H29","v":0}]
["Form 1SFS/1EBS","Balance Sheet LT/CON/EBS","1SFS4a","Inv. In Affiliates - Unregulated Ancillary",{"$f":"'Form 1SFS'!H41","v":0},null,{"$f":"'Form 1SFS'!I41","v":0},null,{"$f":"'Form 1SFS'!K41","v":0},null,{"$f":"'Form 1SFS'!M41","v":0},null,{"$f":"'Form 4EBS'!F33","v":0},null,{"$f":"'Form 4EBS'!H33","v":0}]
["Form 1SFS/1EBS","Balance Sheet LT/CON/EBS","1SFS4b","Inv. In Affiliates - Unregulated Non-Fin. Oper.",{"$f":"'Form 1SFS'!H42","v":0},null,{"$f":"'Form 1SFS'!I42","v":0},null,{"$f":"'Form 1SFS'!K42","v":0},null,{"$f":"'Form 1SFS'!M42","v":0},null,{"$f":"'Form 4EBS'!F34","v":0},null,{"$f":"'Form 4EBS'!H34","v":0}]
["Form 1SFS/1EBS","Balance Sheet LT/CON/EBS","1SFS4c","Inv. In Affiliates - Unregulated Fin. Operating",{"$f":"'Form 1SFS'!H43","v":0},null,{"$f":"'Form 1SFS'!I43","v":0},null,{"$f":"'Form 1SFS'!K43","v":0},null,{"$f":"'Form 1SFS'!M43","v":0},null,{"$f":"'Form 4EBS'!F35","v":0},null,{"$f":"'Form 4EBS'!H35","v":0}]
["Form 1SFS/1EBS","Balance Sheet LT/CON/EBS","1SFS4d","Inv. In Affiliates - Regulated Non-Insurance",{"$f":"'Form 1SFS'!H44","v":0},null,{"$f":"'Form 1SFS'!I44","v":0},null,{"$f":"'Form 1SFS'!K44","v":0},null,{"$f":"'Form 1SFS'!M44","v":0},null,{"$f":"'Form 4EBS'!F36","v":0},null,{"$f":"'Form 4EBS'!H36","v":0}]
["Form 1SFS/1EBS","Balance Sheet LT/CON/EBS","1SFS4e","Inv. In Affiliates - Regulated Insurance",{"$f":"'Form 1SFS'!H45","v":0},null,{"$f":"'Form 1SFS'!I45","v":0},null,{"$f":"'Form 1SFS'!K45","v":0},null,{"$f":"'Form 1SFS'!M45","v":0},null,{"$f":"'Form 4EBS'!F37","v":0},null,{"$f":"'Form 4EBS'!H37","v":0}]
["Form 1SFS/1EBS","Balance Sheet LT/CON/EBS","1SFS4g","Advances To Affiliates",{"$f":"'Form 1SFS'!H47","v":0},null,{"$f":"'Form 1SFS'!I47","v":0},null,{"$f":"'Form 1SFS'!K47","v":0},null,{"$f":"'Form 1SFS'!M47","v":0},null,{"$f":"'Form 4EBS'!F39","v":0},null,{"$f":"'Form 4EBS'!H39","v":0}]
["Form 1SFS/1EBS","Balance Sheet LT/CON/EBS","1SFS5a","Inv. In Mortg. Loans on Real Estate - 1st Lien",{"$f":"'Form 1SFS'!H51","v":0},null,{"$f":"'Form 1SFS'!I51","v":0},null,{"$f":"'Form 1SFS'!K51","v":0},null,{"$f":"'Form 1SFS'!M51","v":0},null,{"$f":"'Form 4EBS'!F43","v":0},null,{"$f":"'Form 4EBS'!H43","v":0}]
["Form 1SFS/1EBS","Balance Sheet LT/CON/EBS","1SFS5b","Inv. In Mortg. Loans on Real Estate - Other",{"$f":"'Form 1SFS'!H52","v":0},null,{"$f":"'Form 1SFS'!I52","v":0},null,{"$f":"'Form 1SFS'!K52","v":0},null,{"$f":"'Form 1SFS'!M52","v":0},null,{"$f":"'Form 4EBS'!F44","v":0},null,{"$f":"'Form 4EBS'!H44","v":0}]
["Form 1SFS/1EBS","Balance Sheet LT/CON/EBS","1SFS6","Policy Loans",{"$f":"'Form 1SFS'!H55","v":0},null,{"$f":"'Form 1SFS'!I55","v":0},null,{"$f":"'Form 1SFS'!K55","v":0},null,{"$f":"'Form 1SFS'!M55","v":0},null,{"$f":"'Form 4EBS'!F47","v":0},null,{"$f":"'Form 4EBS'!H47","v":0}]
["Form 1SFS/1EBS","Balance Sheet LT/CON/EBS","1SFS7a","Real Estate - Occupied by Company",{"$f":"'Form 1SFS'!H58","v":0},null,{"$f":"'Form 1SFS'!I58","v":0},null,{"$f":"'Form 1SFS'!K58","v":0},null,{"$f":"'Form 1SFS'!M58","v":0},null,{"$f":"'Form 4EBS'!F50","v":0},null,{"$f":"'Form 4EBS'!H50","v":0}]
["Form 1SFS/1EBS","Balance Sheet LT/CON/EBS","1SFS7b","Real Estate - Other",{"$f":"'Form 1SFS'!H59","v":0},null,{"$f":"'Form 1SFS'!I59","v":0},null,{"$f":"'Form 1SFS'!K59","v":0},null,{"$f":"'Form 1SFS'!M59","v":0},null,{"$f":"'Form 4EBS'!F51","v":0},null,{"$f":"'Form 4EBS'!H51","v":0}]
["Form 1SFS/1EBS","Balance Sheet LT/CON/EBS","1SFS8","Collateral Loans",{"$f":"'Form 1SFS'!H62","v":0},null,{"$f":"'Form 1SFS'!I62","v":0},null,{"$f":"'Form 1SFS'!K62","v":0},null,{"$f":"'Form 1SFS'!M62","v":0},null,{"$f":"'Form 4EBS'!F54","v":0},null,{"$f":"'Form 4EBS'!H54","v":0}]
["Form 1SFS/1EBS","Balance Sheet LT/CON/EBS","1SFS9","Investment Income Due and Accrued",{"$f":"'Form 1SFS'!H64","v":0},null,{"$f":"'Form 1SFS'!I64","v":0},null,{"$f":"'Form 1SFS'!K64","v":0},null,{"$f":"'Form 1SFS'!M64","v":0},null,{"$f":"'Form 4EBS'!F56","v":0},null,{"$f":"'Form 4EBS'!H56","v":0}]
["Form 1SFS/1EBS","Balance Sheet LT/CON/EBS","1SFS10a","Accounts & Premium Rec. - In Collection",{"$f":"'Form 1SFS'!H67","v":0},null,{"$f":"'Form 1SFS'!I67","v":0},null,{"$f":"'Form 1SFS'!K67","v":0},null,{"$f":"'Form 1SFS'!M67","v":0},null,{"$f":"'Form 4EBS'!F59","v":0},null,{"$f":"'Form 4EBS'!H59","v":0}]
["Form 1SFS/1EBS","Balance Sheet LT/CON/EBS","1SFS10b","Accounts & Premium Rec. - Not Yet Due ",{"$f":"'Form 1SFS'!H68","v":0},null,{"$f":"'Form 1SFS'!I68","v":0},null,{"$f":"'Form 1SFS'!K68","v":0},null,{"$f":"'Form 1SFS'!M68","v":0}]
["Form 1SFS/1EBS","Balance Sheet LT/CON/EBS","1SFS10c","Accounts & Premium Rec. - Retro. Contracts",{"$f":"'Form 1SFS'!H69","v":0},null,{"$f":"'Form 1SFS'!I69","v":0},null,{"$f":"'Form 1SFS'!K69","v":0},null,{"$f":"'Form 1SFS'!M69","v":0},null,{"$f":"'Form 4EBS'!F60","v":0},null,{"$f":"'Form 4EBS'!H60","v":0}]
["Form 1SFS/1EBS","Balance Sheet LT/CON/EBS","1SFS11a","R/I Balances Receivable - Foreign Affiliates",{"$f":"'Form 1SFS'!H73","v":0},null,{"$f":"'Form 1SFS'!I73","v":0},null,{"$f":"'Form 1SFS'!K73","v":0},null,{"$f":"'Form 1SFS'!M73","v":0},null,{"$f":"'Form 4EBS'!F64","v":0},null,{"$f":"'Form 4EBS'!H64","v":0}]
["Form 1SFS/1EBS","Balance Sheet LT/CON/EBS","1SFS11b","R/I Balances Receivable - Domestic Affiliates",{"$f":"'Form 1SFS'!H74","v":0},null,{"$f":"'Form 1SFS'!I74","v":0},null,{"$f":"'Form 1SFS'!K74","v":0},null,{"$f":"'Form 1SFS'!M74","v":0},null,{"$f":"'Form 4EBS'!F65","v":0},null,{"$f":"'Form 4EBS'!H65","v":0}]
["Form 1SFS/1EBS","Balance Sheet LT/CON/EBS","1SFS11c","R/I Balances Receivable - Pools & Assoc.",{"$f":"'Form 1SFS'!H75","v":0},null,{"$f":"'Form 1SFS'!I75","v":0},null,{"$f":"'Form 1SFS'!K75","v":0},null,{"$f":"'Form 1SFS'!M75","v":0},null,{"$f":"'Form 4EBS'!F66","v":0},null,{"$f":"'Form 4EBS'!H66","v":0}]
["Form 1SFS/1EBS","Balance Sheet LT/CON/EBS","1SFS11d","R/I Balances Receivable - All Other",{"$f":"'Form 1SFS'!H76","v":0},null,{"$f":"'Form 1SFS'!I76","v":0},null,{"$f":"'Form 1SFS'!K76","v":0},null,{"$f":"'Form 1SFS'!M76","v":0},null,{"$f":"'Form 4EBS'!F67","v":0},null,{"$f":"'Form 4EBS'!H67","v":0}]
["Form 1SFS/1EBS","Balance Sheet LT/CON/EBS","1EBS12a","Funds Held by Ceding Companies - Affiliates",null,null,null,null,null,null,null,null,{"$f":"'Form 4EBS'!F71","v":0},null,{"$f":"'Form 4EBS'!H71","v":0}]
["Form 1SFS/1EBS","Balance Sheet LT/CON/EBS","1EBS12b","Funds Held by Ceding Companies - Non-Aff.",null,null,null,null,null,null,null,null,{"$f":"'Form 4EBS'!F72","v":0},null,{"$f":"'Form 4EBS'!H72","v":0}]
["Form 1SFS/1EBS","Balance Sheet LT/CON/EBS","1SFS12","Funds Held by Ceding Companies ",{"$f":"'Form 1SFS'!H79","v":0},null,{"$f":"'Form 1SFS'!I79","v":0},null,{"$f":"'Form 1SFS'!K79","v":0},null,{"$f":"'Form 1SFS'!M79","v":0}]
["Form 1SFS/1EBS","Balance Sheet LT/CON/EBS","1SFS13a","Sundry Assets - Derivatives",{"$f":"'Form 1SFS'!H82","v":0},null,{"$f":"'Form 1SFS'!I82","v":0},null,{"$f":"'Form 1SFS'!K82","v":0},null,{"$f":"'Form 1SFS'!M82","v":0},null,{"$f":"'Form 4EBS'!F76","v":0},null,{"$f":"'Form 4EBS'!H76","v":0}]
["Form 1SFS/1EBS","Balance Sheet LT/CON/EBS","1SFS13b","Sundry Assets - SAC - LT- Variable Annuities",{"$f":"'Form 1SFS'!H83","v":0},null,{"$f":"'Form 1SFS'!I83","v":0},null,{"$f":"'Form 1SFS'!K83","v":0},null,{"$f":"'Form 1SFS'!M83","v":0},null,{"$f":"'Form 4EBS'!F77","v":0},null,{"$f":"'Form 4EBS'!H77","v":0}]
["Form 1SFS/1EBS","Balance Sheet LT/CON/EBS","1SFS13c","Sundry Assets - SAC - LT- Others",{"$f":"'Form 1SFS'!H84","v":0},null,{"$f":"'Form 1SFS'!I84","v":0},null,{"$f":"'Form 1SFS'!K84","v":0},null,{"$f":"'Form 1SFS'!M84","v":0},null,{"$f":"'Form 4EBS'!F78","v":0},null,{"$f":"'Form 4EBS'!H78","v":0}]
["Form 1SFS/1EBS","Balance Sheet LT/CON/EBS","1SFS13d","Sundry Assets - SAC - General Business",null,null,null,null,{"$f":"'Form 1SFS'!K85","v":0},null,{"$f":"'Form 1SFS'!M85","v":0}]
["Form 1SFS/1EBS","Balance Sheet LT/CON/EBS","1SFS13e","Sundry Assets - Deposit Assets",{"$f":"'Form 1SFS'!H86","v":0},null,{"$f":"'Form 1SFS'!I86","v":0},null,{"$f":"'Form 1SFS'!K86","v":0},null,{"$f":"'Form 1SFS'!M86","v":0},null,{"$f":"'Form 4EBS'!F79","v":0},null,{"$f":"'Form 4EBS'!H79","v":0}]
["Form 1SFS/1EBS","Balance Sheet LT/CON/EBS","1SFS13f","Sundry Assets - Deferred Acquisition Costs",{"$f":"'Form 1SFS'!H87","v":0},null,{"$f":"'Form 1SFS'!I87","v":0},null,{"$f":"'Form 1SFS'!K87","v":0},null,{"$f":"'Form 1SFS'!M87","v":0}]
["Form 1SFS/1EBS","Balance Sheet LT/CON/EBS","1SFS13g","Sundry Assets - Net Rec. for Investments",{"$f":"'Form 1SFS'!H88","v":0},null,{"$f":"'Form 1SFS'!I88","v":0},null,{"$f":"'Form 1SFS'!K88","v":0},null,{"$f":"'Form 1SFS'!M88","v":0},null,{"$f":"'Form 4EBS'!F80","v":0},null,{"$f":"'Form 4EBS'!H80","v":0}]
["Form 1SFS/1EBS","Balance Sheet LT/CON/EBS","1EBS13g","Sundry Assets - Intangible Assets",null,null,null,null,null,null,null,null,{"$f":"'Form 4EBS'!F81","v":0},null,{"$f":"'Form 4EBS'!H81","v":0}]
["Form 1SFS/1EBS","Balance Sheet LT/CON/EBS","1EBS13h","Sundry Assets - Deferred Tax Assets",null,null,null,null,null,null,null,null,{"$f":"'Form 4EBS'!F82","v":0},null,{"$f":"'Form 4EBS'!H82","v":0}]
["Form 1SFS/1EBS","Balance Sheet LT/CON/EBS","1EBS13i","Sundry Assets - Pension Benefit Surplus",null,null,null,null,null,null,null,null,{"$f":"'Form 4EBS'!F83","v":0},null,{"$f":"'Form 4EBS'!H83","v":0}]
["Form 1SFS/1EBS","Balance Sheet LT/CON/EBS","1SFS13h","Sundry Assets - Other 1",{"$f":"'Form 1SFS'!H89","v":0},null,{"$f":"'Form 1SFS'!I89","v":0},null,{"$f":"'Form 1SFS'!K89","v":0},null,{"$f":"'Form 1SFS'!M89","v":0},null,{"$f":"'Form 4EBS'!F84","v":0},null,{"$f":"'Form 4EBS'!H84","v":0}]
["Form 1SFS/1EBS","Balance Sheet LT/CON/EBS","1SFS13i","Sundry Assets - Other 2",{"$f":"'Form 1SFS'!H90","v":0},null,{"$f":"'Form 1SFS'!I90","v":0},null,{"$f":"'Form 1SFS'!K90","v":0},null,{"$f":"'Form 1SFS'!M90","v":0}]
["Form 1SFS/1EBS","Balance Sheet LT/CON/EBS","1SFS13j","Sundry Assets - Other 3",{"$f":"'Form 1SFS'!H91","v":0},null,{"$f":"'Form 1SFS'!I91","v":0},null,{"$f":"'Form 1SFS'!K91","v":0},null,{"$f":"'Form 1SFS'!M91","v":0}]
["Form 1SFS/1EBS","Balance Sheet LT/CON/EBS","1SFS14a","Letters of Credit",{"$f":"'Form 1SFS'!H95","v":0},null,{"$f":"'Form 1SFS'!I95","v":0},null,{"$f":"'Form 1SFS'!K95","v":0},null,{"$f":"'Form 1SFS'!M95","v":0},null,{"$f":"'Form 4EBS'!F88","v":0},null,{"$f":"'Form 4EBS'!H88","v":0}]
["Form 1SFS/1EBS","Balance Sheet LT/CON/EBS","1SFS14b","Guarantees",{"$f":"'Form 1SFS'!H96","v":0},null,{"$f":"'Form 1SFS'!I96","v":0},null,{"$f":"'Form 1SFS'!K96","v":0},null,{"$f":"'Form 1SFS'!M96","v":0},null,{"$f":"'Form 4EBS'!F89","v":0},null,{"$f":"'Form 4EBS'!H89","v":0}]
["Form 1SFS/1EBS","Balance Sheet LT/CON/EBS","1SFS14c","Other Instruments",{"$f":"'Form 1SFS'!H97","v":0},null,{"$f":"'Form 1SFS'!I97","v":0},null,{"$f":"'Form 1SFS'!K97","v":0},null,{"$f":"'Form 1SFS'!M97","v":0},null,{"$f":"'Form 4EBS'!F90","v":0},null,{"$f":"'Form 4EBS'!H90","v":0}]
["Form 1SFS/1EBS","Balance Sheet LT/CON/EBS","1SFS15","Total Assets",{"$f":"'Form 1SFS'!H100","v":0},null,{"$f":"'Form 1SFS'!I100","v":0}]
["Form 1SFS/1EBS","Balance Sheet LT/CON/EBS","1SFS16a","Unearned Premium Reserve - Gross",null,null,null,null,{"$f":"'Form 1SFS'!K107","v":0},null,{"$f":"'Form 1SFS'!M107","v":0}]
["Form 1SFS/1EBS","Balance Sheet LT/CON/EBS","1SFS16bi","UPR - Ceded - Foreign Affiliates",null,null,null,null,{"$f":"'Form 1SFS'!K109","v":0},null,{"$f":"'Form 1SFS'!M109","v":0}]
["Form 1SFS/1EBS","Balance Sheet LT/CON/EBS","1SFS16bii","UPR - Ceded - Domestic Affiliates",null,null,null,null,{"$f":"'Form 1SFS'!K110","v":0},null,{"$f":"'Form 1SFS'!M110","v":0}]
["Form 1SFS/1EBS","Balance Sheet LT/CON/EBS","1SFS16biii","UPR - Ceded - Pools & Assoc.",null,null,null,null,{"$f":"'Form 1SFS'!K111","v":0},null,{"$f":"'Form 1SFS'!M111","v":0}]
["Form 1SFS/1EBS","Balance Sheet LT/CON/EBS","1SFS16biv","UPR - Ceded - All Other",null,null,null,null,{"$f":"'Form 1SFS'!K112","v":0},null,{"$f":"'Form 1SFS'!M112","v":0}]
["Form 1SFS/1EBS","Balance Sheet LT/CON/EBS","1SFS17a","Loss Provision - Gross",null,null,null,null,{"$f":"'Form 1SFS'!K117","v":0},null,{"$f":"'Form 1SFS'!M117","v":0}]
["Form 1SFS/1EBS","Balance Sheet LT/CON/EBS","1SFS17bi","R/I Recoverable - Foreign Affiliates",null,null,null,null,{"$f":"'Form 1SFS'!K119","v":0},null,{"$f":"'Form 1SFS'!M119","v":0}]
["Form 1SFS/1EBS","Balance Sheet LT/CON/EBS","1SFS17bii","R/I Recoverable - Domestic Affiliates",null,null,null,null,{"$f":"'Form 1SFS'!K120","v":0},null,{"$f":"'Form 1SFS'!M120","v":0}]
["Form 1SFS/1EBS","Balance Sheet LT/CON/EBS","1SFS17biii","R/I Recoverable - Pools & Assoc.",null,null,null,null,{"$f":"'Form 1SFS'!K121","v":0},null,{"$f":"'Form 1SFS'!M121","v":0}]
["Form 1SFS/1EBS","Balance Sheet LT/CON/EBS","1SFS17biv","R/I Recoverable - All Other",null,null,null,null,{"$f":"'Form 1SFS'!K122","v":0},null,{"$f":"'Form 1SFS'!M122","v":0}]
["Form 1SFS/1EBS","Balance Sheet LT/CON/EBS","1SFS18","Risk Margin",null,null,null,null,{"$f":"'Form 1SFS'!K126","v":0},null,{"$f":"'Form 1SFS'!M126","v":0}]
["Form 1SFS/1EBS","Balance Sheet LT/CON/EBS","1SFS20","Net - Reserves for Reported Claims",{"$f":"'Form 1SFS'!H132","v":0},null,{"$f":"'Form 1SFS'!I132","v":0},null,{"$f":"'Form 1SFS'!K132","v":0},null,{"$f":"'Form 1SFS'!M132","v":0},null,{"$f":"'Form 4EBS'!F100","v":0},null,{"$f":"'Form 4EBS'!H100","v":0}]
["Form 1SFS/1EBS","Balance Sheet LT/CON/EBS","1SFS21","Net - Reserves for Unreported Claims",{"$f":"'Form 1SFS'!H134","v":0},null,{"$f":"'Form 1SFS'!I134","v":0},null,{"$f":"'Form 1SFS'!K134","v":0},null,{"$f":"'Form 1SFS'!M134","v":0},null,{"$f":"'Form 4EBS'!F102","v":0},null,{"$f":"'Form 4EBS'!H102","v":0}]
["Form 1SFS/1EBS","Balance Sheet LT/CON/EBS","1SFS22","Net - Policy Reserves - Life",{"$f":"'Form 1SFS'!H136","v":0},null,{"$f":"'Form 1SFS'!I136","v":0},null,{"$f":"'Form 1SFS'!K136","v":0},null,{"$f":"'Form 1SFS'!M136","v":0},null,{"$f":"'Form 4EBS'!F104","v":0},null,{"$f":"'Form 4EBS'!H104","v":0}]
["Form 1SFS/1EBS","Balance Sheet LT/CON/EBS","1SFS23","Net - Policy Reserves - Accident & Health",{"$f":"'Form 1SFS'!H138","v":0},null,{"$f":"'Form 1SFS'!I138","v":0},null,{"$f":"'Form 1SFS'!K138","v":0},null,{"$f":"'Form 1SFS'!M138","v":0},null,{"$f":"'Form 4EBS'!F106","v":0},null,{"$f":"'Form 4EBS'!H106","v":0}]
["Form 1SFS/1EBS","Balance Sheet LT/CON/EBS","1SFS24","Net - Policyholder's Funds on Deposit",{"$f":"'Form 1SFS'!H140","v":0},null,{"$f":"'Form 1SFS'!I140","v":0},null,{"$f":"'Form 1SFS'!K140","v":0},null,{"$f":"'Form 1SFS'!M140","v":0},null,{"$f":"'Form 4EBS'!F108","v":0},null,{"$f":"'Form 4EBS'!H108","v":0}]
["Form 1SFS/1EBS","Balance Sheet LT/CON/EBS","1SFS25","Net - Liability for Future Policyholder Dividends",{"$f":"'Form 1SFS'!H142","v":0},null,{"$f":"'Form 1SFS'!I142","v":0},null,{"$f":"'Form 1SFS'!K142","v":0},null,{"$f":"'Form 1SFS'!M142","v":0},null,{"$f":"'Form 4EBS'!F110","v":0},null,{"$f":"'Form 4EBS'!H110","v":0}]
["Form 1SFS/1EBS","Balance Sheet LT/CON/EBS","1SFS26","Net - Other LT Insurance Reserves",{"$f":"'Form 1SFS'!H144","v":0},null,{"$f":"'Form 1SFS'!I144","v":0},null,{"$f":"'Form 1SFS'!K144","v":0},null,{"$f":"'Form 1SFS'!M144","v":0},null,{"$f":"'Form 4EBS'!F112","v":0},null,{"$f":"'Form 4EBS'!H112","v":0}]
["Form 1SFS/1EBS","Balance Sheet LT/CON/EBS","1SFS27bi","R/I Recoverable - Foreign Affiliates",{"$f":"'Form 1SFS'!H149","v":0},null,{"$f":"'Form 1SFS'!I149","v":0},null,{"$f":"'Form 1SFS'!K149","v":0},null,{"$f":"'Form 1SFS'!M149","v":0},null,{"$f":"'Form 4EBS'!F117","v":0},null,{"$f":"'Form 4EBS'!H117","v":0}]
["Form 1SFS/1EBS","Balance Sheet LT/CON/EBS","1SFS27bii","R/I Recoverable - Domestic Affiliates",{"$f":"'Form 1SFS'!H150","v":0},null,{"$f":"'Form 1SFS'!I150","v":0},null,{"$f":"'Form 1SFS'!K150","v":0},null,{"$f":"'Form 1SFS'!M150","v":0},null,{"$f":"'Form 4EBS'!F118","v":0},null,{"$f":"'Form 4EBS'!H118","v":0}]
["Form 1SFS/1EBS","Balance Sheet LT/CON/EBS","1SFS27biii","R/I Recoverable - Pools & Assoc.",{"$f":"'Form 1SFS'!H151","v":0},null,{"$f":"'Form 1SFS'!I151","v":0},null,{"$f":"'Form 1SFS'!K151","v":0},null,{"$f":"'Form 1SFS'!M151","v":0},null,{"$f":"'Form 4EBS'!F119","v":0},null,{"$f":"'Form 4EBS'!H119","v":0}]
["Form 1SFS/1EBS","Balance Sheet LT/CON/EBS","1SFS27biv","R/I Recoverable - All Other",{"$f":"'Form 1SFS'!H152","v":0},null,{"$f":"'Form 1SFS'!I152","v":0},null,{"$f":"'Form 1SFS'!K152","v":0},null,{"$f":"'Form 1SFS'!M152","v":0},null,{"$f":"'Form 4EBS'!F120","v":0},null,{"$f":"'Form 4EBS'!H120","v":0}]
["Form 1SFS/1EBS","Balance Sheet LT/CON/EBS","1EBS27A","Risk Margin",null,null,null,null,null,null,null,null,{"$f":"'Form 4EBS'!F124","v":0},null,{"$f":"'Form 4EBS'!H124","v":0}]
["Form 1SFS/1EBS","Balance Sheet LT/CON/EBS","1EBS27Ba","Gross Provision - Tech. Prov. Calc. on Whole",null,null,null,null,null,null,null,null,{"$f":"'Form 4EBS'!F127","v":0},null,{"$f":"'Form 4EBS'!H127","v":0}]
["Form 1SFS/1EBS","Balance Sheet LT/CON/EBS","1EBS27Bbi","R/I Recoverable - Foreign Affiliates",null,null,null,null,null,null,null,null,{"$f":"'Form 4EBS'!F129","v":0},null,{"$f":"'Form 4EBS'!H129","v":0}]
["Form 1SFS/1EBS","Balance Sheet LT/CON/EBS","1EBS27Bbii","R/I Recoverable - Domestic Affiliates",null,null,null,null,null,null,null,null,{"$f":"'Form 4EBS'!F130","v":0},null,{"$f":"'Form 4EBS'!H130","v":0}]
["Form 1SFS/1EBS","Balance Sheet LT/CON/EBS","1EBS27Bbiii","R/I Recoverable - Pools & Assoc.",null,null,null,null,null,null,null,null,{"$f":"'Form 4EBS'!F131","v":0},null,{"$f":"'Form 4EBS'!H131","v":0}]
["Form 1SFS/1EBS","Balance Sheet LT/CON/EBS","1EBS27Bbiv","R/I Recoverable - All Other",null,null,null,null,null,null,null,null,{"$f":"'Form 4EBS'!F132","v":0},null,{"$f":"'Form 4EBS'!H132","v":0}]
["Form 1SFS/1EBS","Balance Sheet LT/CON/EBS","1SFS28","Insurance & R/I Balances Payable",{"$f":"'Form 1SFS'!H158","v":0},null,{"$f":"'Form 1SFS'!I158","v":0},null,{"$f":"'Form 1SFS'!K158","v":0},null,{"$f":"'Form 1SFS'!M158","v":0},null,{"$f":"'Form 4EBS'!F140","v":0},null,{"$f":"'Form 4EBS'!H140","v":0}]
["Form 1SFS/1EBS","Balance Sheet LT/CON/EBS","1SFS29","Commissions, Expenses and Taxes Payable",{"$f":"'Form 1SFS'!H160","v":0},null,{"$f":"'Form 1SFS'!I160","v":0},null,{"$f":"'Form 1SFS'!K160","v":0},null,{"$f":"'Form 1SFS'!M160","v":0},null,{"$f":"'Form 4EBS'!F142","v":0},null,{"$f":"'Form 4EBS'!H142","v":0}]
["Form 1SFS/1EBS","Balance Sheet LT/CON/EBS","1SFS30","Loans and Notes Payable",{"$f":"'Form 1SFS'!H162","v":0},null,{"$f":"'Form 1SFS'!I162","v":0},null,{"$f":"'Form 1SFS'!K162","v":0},null,{"$f":"'Form 1SFS'!M162","v":0},null,{"$f":"'Form 4EBS'!F144","v":0},null,{"$f":"'Form 4EBS'!H144","v":0}]
["Form 1SFS/1EBS","Balance Sheet LT/CON/EBS","1SFS31a","Income Taxes Payable",{"$f":"'Form 1SFS'!H164","v":0},null,{"$f":"'Form 1SFS'!I164","v":0},null,{"$f":"'Form 1SFS'!K164","v":0},null,{"$f":"'Form 1SFS'!M164","v":0},null,{"$f":"'Form 4EBS'!F147","v":0},null,{"$f":"'Form 4EBS'!H147","v":0}]
["Form 1SFS/1EBS","Balance Sheet LT/CON/EBS","1SFS31b","Deferred Taxes Payable",{"$f":"'Form 1SFS'!H166","v":0},null,{"$f":"'Form 1SFS'!I166","v":0},null,{"$f":"'Form 1SFS'!K166","v":0},null,{"$f":"'Form 1SFS'!M166","v":0},null,{"$f":"'Form 4EBS'!F148","v":0},null,{"$f":"'Form 4EBS'!H148","v":0}]
["Form 1SFS/1EBS","Balance Sheet LT/CON/EBS","1SFS32","Amounts Due to Affiliates",{"$f":"'Form 1SFS'!H168","v":0},null,{"$f":"'Form 1SFS'!I168","v":0},null,{"$f":"'Form 1SFS'!K168","v":0},null,{"$f":"'Form 1SFS'!M168","v":0},null,{"$f":"'Form 4EBS'!F150","v":0},null,{"$f":"'Form 4EBS'!H150","v":0}]
["Form 1SFS/1EBS","Balance Sheet LT/CON/EBS","1SFS33","Accounts Payable and Accrued Liabilities",{"$f":"'Form 1SFS'!H170","v":0},null,{"$f":"'Form 1SFS'!I170","v":0},null,{"$f":"'Form 1SFS'!K170","v":0},null,{"$f":"'Form 1SFS'!M170","v":0},null,{"$f":"'Form 4EBS'!F152","v":0},null,{"$f":"'Form 4EBS'!H152","v":0}]
["Form 1SFS/1EBS","Balance Sheet LT/CON/EBS","1EBS34a","Funds Held under R/I Contracts - Affiliates",null,null,null,null,null,null,null,null,{"$f":"'Form 4EBS'!F155","v":0},null,{"$f":"'Form 4EBS'!H155","v":0}]
["Form 1SFS/1EBS","Balance Sheet LT/CON/EBS","1EBS34b","Funds Held under R/I Contracts - Non-Aff.",null,null,null,null,null,null,null,null,{"$f":"'Form 4EBS'!F156","v":0},null,{"$f":"'Form 4EBS'!H156","v":0}]
["Form 1SFS/1EBS","Balance Sheet LT/CON/EBS","1SFS34","Funds Held under R/I Contracts",{"$f":"'Form 1SFS'!H172","v":0},null,{"$f":"'Form 1SFS'!I172","v":0},null,{"$f":"'Form 1SFS'!K172","v":0},null,{"$f":"'Form 1SFS'!M172","v":0},null,{"$f":"'Form 4EBS'!F157","v":0},null,{"$f":"'Form 4EBS'!H157","v":0}]
["Form 1SFS/1EBS","Balance Sheet LT/CON/EBS","1SFS35","Dividends Payable",{"$f":"'Form 1SFS'!H174","v":0},null,{"$f":"'Form 1SFS'!I174","v":0},null,{"$f":"'Form 1SFS'!K174","v":0},null,{"$f":"'Form 1SFS'!M174","v":0},null,{"$f":"'Form 4EBS'!F159","v":0},null,{"$f":"'Form 4EBS'!H159","v":0}]
["Form 1SFS/1EBS","Balance Sheet LT/CON/EBS","1SFS36a","Sundry Liabilities - Derivative Instruments",{"$f":"'Form 1SFS'!H177","v":0},null,{"$f":"'Form 1SFS'!I177","v":0},null,{"$f":"'Form 1SFS'!K177","v":0},null,{"$f":"'Form 1SFS'!M177","v":0},null,{"$f":"'Form 4EBS'!F162","v":0},null,{"$f":"'Form 4EBS'!H162","v":0}]
["Form 1SFS/1EBS","Balance Sheet LT/CON/EBS","1EBS36b","Sundry Liabilities - Der. Instr. - Non-Hedge Purp.",null,null,null,null,null,null,null,null,{"$f":"'Form 4EBS'!F163","v":0},null,{"$f":"'Form 4EBS'!H163","v":0}]
["Form 1SFS/1EBS","Balance Sheet LT/CON/EBS","1SFS36b","Sundry Liabilities - Segregated Accounts",{"$f":"'Form 1SFS'!H178","v":0},null,{"$f":"'Form 1SFS'!I178","v":0},null,{"$f":"'Form 1SFS'!K178","v":0},null,{"$f":"'Form 1SFS'!M178","v":0},null,{"$f":"'Form 4EBS'!F164","v":0},null,{"$f":"'Form 4EBS'!H164","v":0}]
["Form 1SFS/1EBS","Balance Sheet LT/CON/EBS","1EBS36d","Sundry Liabilities - SAC - LT - Other",null,null,null,null,null,null,null,null,{"$f":"'Form 4EBS'!F165","v":0},null,{"$f":"'Form 4EBS'!H165","v":0}]
["Form 1SFS/1EBS","Balance Sheet LT/CON/EBS","1SFS36c","Sundry Liabilities - Deposit Liabilities",{"$f":"'Form 1SFS'!H179","v":0},null,{"$f":"'Form 1SFS'!I179","v":0},null,{"$f":"'Form 1SFS'!K179","v":0},null,{"$f":"'Form 1SFS'!M179","v":0},null,{"$f":"'Form 4EBS'!F166","v":0},null,{"$f":"'Form 4EBS'!H166","v":0}]
["Form 1SFS/1EBS","Balance Sheet LT/CON/EBS","1EBS36g","Sundry Liabilities - Pension Benefit Oblig.",null,null,null,null,null,null,null,null,{"$f":"'Form 4EBS'!F167","v":0},null,{"$f":"'Form 4EBS'!H167","v":0}]
["Form 1SFS/1EBS","Balance Sheet LT/CON/EBS","1SFS36h","Sundry Liabilities - Investments Purchased",{"$f":"'Form 1SFS'!H180","v":0},null,{"$f":"'Form 1SFS'!I180","v":0},null,{"$f":"'Form 1SFS'!K180","v":0},null,{"$f":"'Form 1SFS'!M180","v":0},null,{"$f":"'Form 4EBS'!F168","v":0},null,{"$f":"'Form 4EBS'!H168","v":0}]
["Form 1SFS/1EBS","Balance Sheet LT/CON/EBS","1SFS36e","Sundry Liabilities - Other 1",{"$f":"'Form 1SFS'!H181","v":0},null,{"$f":"'Form 1SFS'!I181","v":0},null,{"$f":"'Form 1SFS'!K181","v":0},null,{"$f":"'Form 1SFS'!M181","v":0},null,{"$f":"'Form 4EBS'!F169","v":0},null,{"$f":"'Form 4EBS'!H169","v":0}]
["Form 1SFS/1EBS","Balance Sheet LT/CON/EBS","1SFS36f","Sundry Liabilities - Other 2",{"$f":"'Form 1SFS'!H182","v":0},null,{"$f":"'Form 1SFS'!I182","v":0},null,{"$f":"'Form 1SFS'!K182","v":0},null,{"$f":"'Form 1SFS'!M182","v":0}]
["Form 1SFS/1EBS","Balance Sheet LT/CON/EBS","1SFS36g","Sundry Liabilities - Other 3",{"$f":"'Form 1SFS'!H183","v":0},null,{"$f":"'Form 1SFS'!I183","v":0},null,{"$f":"'Form 1SFS'!K183","v":0},null,{"$f":"'Form 1SFS'!M183","v":0}]
["Form 1SFS/1EBS","Balance Sheet LT/CON/EBS","1SFS37a","Letters of Credit",{"$f":"'Form 1SFS'!H187","v":0},null,{"$f":"'Form 1SFS'!I187","v":0},null,{"$f":"'Form 1SFS'!K187","v":0},null,{"$f":"'Form 1SFS'!M187","v":0},null,{"$f":"'Form 4EBS'!F173","v":0},null,{"$f":"'Form 4EBS'!H173","v":0}]
["Form 1SFS/1EBS","Balance Sheet LT/CON/EBS","1SFS37b","Guarantees",{"$f":"'Form 1SFS'!H188","v":0},null,{"$f":"'Form 1SFS'!I188","v":0},null,{"$f":"'Form 1SFS'!K188","v":0},null,{"$f":"'Form 1SFS'!M188","v":0},null,{"$f":"'Form 4EBS'!F174","v":0},null,{"$f":"'Form 4EBS'!H174","v":0}]
["Form 1SFS/1EBS","Balance Sheet LT/CON/EBS","1SFS37c","Other Instruments",{"$f":"'Form 1SFS'!H189","v":0},null,{"$f":"'Form 1SFS'!I189","v":0},null,{"$f":"'Form 1SFS'!K189","v":0},null,{"$f":"'Form 1SFS'!M189","v":0},null,{"$f":"'Form 4EBS'!F175","v":0},null,{"$f":"'Form 4EBS'!H175","v":0}]
["Form 1SFS/1EBS","Balance Sheet LT/CON/EBS","1EBS40","Economic Capital & Surplus",null,null,null,null,null,null,null,null,{"$f":"'Form 4EBS'!F184","v":0},null,{"$f":"'Form 4EBS'!H184","v":0}]
[]
["Form 1SFS","Balance Sheet GEN","1SFS1","Cash and Cash Equivalents",{"$f":"'Form 1SFS'!F12","v":0},null,{"$f":"'Form 1SFS'!G12","v":0}]
["Form 1SFS","Balance Sheet GEN","1SFS2ai","Quoted - Bonds - Held to Maturity",{"$f":"'Form 1SFS'!F16","v":0},null,{"$f":"'Form 1SFS'!G16","v":0}]
["Form 1SFS","Balance Sheet GEN","1SFS2aii","Quoted - Bonds - Other",{"$f":"'Form 1SFS'!F17","v":0},null,{"$f":"'Form 1SFS'!G17","v":0}]
["Form 1SFS","Balance Sheet GEN","1SFS2ci","Quoted - Equities - Common Stocks",{"$f":"'Form 1SFS'!F20","v":0},null,{"$f":"'Form 1SFS'!G20","v":0}]
["Form 1SFS","Balance Sheet GEN","1SFS2cii","Quoted - Equities - Preferred Stocks",{"$f":"'Form 1SFS'!F21","v":0},null,{"$f":"'Form 1SFS'!G21","v":0}]
["Form 1SFS","Balance Sheet GEN","1SFS2ciii","Quoted - Equities - Mutual Funds",{"$f":"'Form 1SFS'!F22","v":0},null,{"$f":"'Form 1SFS'!G22","v":0}]
["Form 1SFS","Balance Sheet GEN","1SFS2e","Quoted - Other Investments",{"$f":"'Form 1SFS'!F24","v":0},null,{"$f":"'Form 1SFS'!G24","v":0}]
["Form 1SFS","Balance Sheet GEN","1SFS3ai","Unquoted - Bonds - Held to Maturity",{"$f":"'Form 1SFS'!F29","v":0},null,{"$f":"'Form 1SFS'!G29","v":0}]
["Form 1SFS","Balance Sheet GEN","1SFS3aii","Unquoted - Bonds - Other",{"$f":"'Form 1SFS'!F30","v":0},null,{"$f":"'Form 1SFS'!G30","v":0}]
["Form 1SFS","Balance Sheet GEN","1SFS3ci","Unquoted - Equities - Common Stocks",{"$f":"'Form 1SFS'!F33","v":0},null,{"$f":"'Form 1SFS'!G33","v":0}]
["Form 1SFS","Balance Sheet GEN","1SFS3cii","Unquoted - Equities - Preferred Stocks",{"$f":"'Form 1SFS'!F34","v":0},null,{"$f":"'Form 1SFS'!G34","v":0}]
["Form 1SFS","Balance Sheet GEN","1SFS3ciii","Unquoted - Equities - Mutual Funds",{"$f":"'Form 1SFS'!F35","v":0},null,{"$f":"'Form 1SFS'!G35","v":0}]
["Form 1SFS","Balance Sheet GEN","1SFS3e","Unquoted - Other Investments",{"$f":"'Form 1SFS'!F37","v":0},null,{"$f":"'Form 1SFS'!G37","v":0}]
["Form 1SFS","Balance Sheet GEN","1SFS4a","Inv. In Affiliates - Unregulated Ancillary",{"$f":"'Form 1SFS'!F41","v":0},null,{"$f":"'Form 1SFS'!G41","v":0}]
["Form 1SFS","Balance Sheet GEN","1SFS4b","Inv. In Affiliates - Unregulated Non-Fin. Oper.",{"$f":"'Form 1SFS'!F42","v":0},null,{"$f":"'Form 1SFS'!G42","v":0}]
["Form 1SFS","Balance Sheet GEN","1SFS4c","Inv. In Affiliates - Unregulated Fin. Operating",{"$f":"'Form 1SFS'!F43","v":0},null,{"$f":"'Form 1SFS'!G43","v":0}]
["Form 1SFS","Balance Sheet GEN","1SFS4d","Inv. In Affiliates - Regulated Non-Insurance",{"$f":"'Form 1SFS'!F44","v":0},null,{"$f":"'Form 1SFS'!G44","v":0}]
["Form 1SFS","Balance Sheet GEN","1SFS4e","Inv. In Affiliates - Regulated Insurance",{"$f":"'Form 1SFS'!F45","v":0},null,{"$f":"'Form 1SFS'!G45","v":0}]
["Form 1SFS","Balance Sheet GEN","1SFS4g","Advances To Affiliates",{"$f":"'Form 1SFS'!F47","v":0},null,{"$f":"'Form 1SFS'!G47","v":0}]
["Form 1SFS","Balance Sheet GEN","1SFS5a","Inv. In Mortg. Loans on Real Estate - 1st Lien",{"$f":"'Form 1SFS'!F51","v":0},null,{"$f":"'Form 1SFS'!G51","v":0}]
["Form 1SFS","Balance Sheet GEN","1SFS5b","Inv. In Mortg. Loans on Real Estate - Other",{"$f":"'Form 1SFS'!F52","v":0},null,{"$f":"'Form 1SFS'!G52","v":0}]
["Form 1SFS","Balance Sheet GEN","1SFS7a","Real Estate - Occupied by Company",{"$f":"'Form 1SFS'!F58","v":0},null,{"$f":"'Form 1SFS'!G58","v":0}]
["Form 1SFS","Balance Sheet GEN","1SFS7b","Real Estate - Other",{"$f":"'Form 1SFS'!F59","v":0},null,{"$f":"'Form 1SFS'!G59","v":0}]
["Form 1SFS","Balance Sheet GEN","1SFS8","Collateral Loans",{"$f":"'Form 1SFS'!F62","v":0},null,{"$f":"'Form 1SFS'!G62","v":0}]
["Form 1SFS","Balance Sheet GEN","1SFS9","Investment Income Due and Accrued",{"$f":"'Form 1SFS'!F64","v":0},null,{"$f":"'Form 1SFS'!G64","v":0}]
["Form 1SFS","Balance Sheet GEN","1SFS10a","Accounts & Premium Rec. - In Collection",{"$f":"'Form 1SFS'!F67","v":0},null,{"$f":"'Form 1SFS'!G67","v":0}]
["Form 1SFS","Balance Sheet GEN","1SFS10b","Accounts & Premium Rec. - Not Yet Due ",{"$f":"'Form 1SFS'!F68","v":0},null,{"$f":"'Form 1SFS'!G68","v":0}]
["Form 1SFS","Balance Sheet GEN","1SFS10c","Accounts & Premium Rec. - Retro. Contracts",{"$f":"'Form 1SFS'!F69","v":0},null,{"$f":"'Form 1SFS'!G69","v":0}]
["Form 1SFS","Balance Sheet GEN","1SFS11a","R/I Balances Receivable - Foreign Affiliates",{"$f":"'Form 1SFS'!F73","v":0},null,{"$f":"'Form 1SFS'!G73","v":0}]
["Form 1SFS","Balance Sheet GEN","1SFS11b","R/I Balances Receivable - Domestic Affiliates",{"$f":"'Form 1SFS'!F74","v":0},null,{"$f":"'Form 1SFS'!G74","v":0}]
["Form 1SFS","Balance Sheet GEN","1SFS11c","R/I Balances Receivable - Pools & Assoc.",{"$f":"'Form 1SFS'!F75","v":0},null,{"$f":"'Form 1SFS'!G75","v":0}]
["Form 1SFS","Balance Sheet GEN","1SFS11d","R/I Balances Receivable - All Other",{"$f":"'Form 1SFS'!F76","v":0},null,{"$f":"'Form 1SFS'!G76","v":0}]
["Form 1SFS","Balance Sheet GEN","1SFS12","Funds Held by Ceding Companies ",{"$f":"'Form 1SFS'!F79","v":0},null,{"$f":"'Form 1SFS'!G79","v":0}]
["Form 1SFS","Balance Sheet GEN","1SFS13a","Sundry Assets - Derivatives",{"$f":"'Form 1SFS'!F82","v":0},null,{"$f":"'Form 1SFS'!G82","v":0}]
["Form 1SFS","Balance Sheet GEN","1SFS13d","Sundry Assets - SAC - General Business",{"$f":"'Form 1SFS'!F85","v":0},null,{"$f":"'Form 1SFS'!G85","v":0}]
["Form 1SFS","Balance Sheet GEN","1SFS13e","Sundry Assets - Deposit Assets",{"$f":"'Form 1SFS'!F86","v":0},null,{"$f":"'Form 1SFS'!G86","v":0}]
["Form 1SFS","Balance Sheet GEN","1SFS13f","Sundry Assets - Deferred Acquisition Costs",{"$f":"'Form 1SFS'!F87","v":0},null,{"$f":"'Form 1SFS'!G87","v":0}]
["Form 1SFS","Balance Sheet GEN","1SFS36d","Sundry Assets - Net Rec. for Investments",{"$f":"'Form 1SFS'!F88","v":0},null,{"$f":"'Form 1SFS'!G88","v":0}]
["Form 1SFS","Balance Sheet GEN","1SFS13h","Sundry Assets - Other 1",{"$f":"'Form 1SFS'!F89","v":0},null,{"$f":"'Form 1SFS'!G89","v":0}]
["Form 1SFS","Balance Sheet GEN","1SFS13i","Sundry Assets - Other 2",{"$f":"'Form 1SFS'!F90","v":0},null,{"$f":"'Form 1SFS'!G90","v":0}]
["Form 1SFS","Balance Sheet GEN","1SFS13j","Sundry Assets - Other 3",{"$f":"'Form 1SFS'!F91","v":0},null,{"$f":"'Form 1SFS'!G91","v":0}]
["Form 1SFS","Balance Sheet GEN","1SFS14a","Letters of Credit",{"$f":"'Form 1SFS'!F95","v":0},null,{"$f":"'Form 1SFS'!G95","v":0}]
["Form 1SFS","Balance Sheet GEN","1SFS14b","Guarantees",{"$f":"'Form 1SFS'!F96","v":0},null,{"$f":"'Form 1SFS'!G96","v":0}]
["Form 1SFS","Balance Sheet GEN","1SFS14c","Other Instruments",{"$f":"'Form 1SFS'!F97","v":0},null,{"$f":"'Form 1SFS'!G97","v":0}]
["Form 1SFS","Balance Sheet GEN","1SFS15","Total Assets",{"$f":"'Form 1SFS'!F100","v":0},null,{"$f":"'Form 1SFS'!G100","v":0}]
["Form 1SFS","Balance Sheet GEN","1SFS16a","Unearned Premium Reserve - Gross",{"$f":"'Form 1SFS'!F107","v":0},null,{"$f":"'Form 1SFS'!G107","v":0}]
["Form 1SFS","Balance Sheet GEN","1SFS16bi","UPR - Ceded - Foreign Affiliates",{"$f":"'Form 1SFS'!F109","v":0},null,{"$f":"'Form 1SFS'!G109","v":0}]
["Form 1SFS","Balance Sheet GEN","1SFS16bii","UPR - Ceded - Domestic Affiliates",{"$f":"'Form 1SFS'!F110","v":0},null,{"$f":"'Form 1SFS'!G110","v":0}]
["Form 1SFS","Balance Sheet GEN","1SFS16biii","UPR - Ceded - Pools & Assoc.",{"$f":"'Form 1SFS'!F111","v":0},null,{"$f":"'Form 1SFS'!G111","v":0}]
["Form 1SFS","Balance Sheet GEN","1SFS16biv","UPR - Ceded - All Other",{"$f":"'Form 1SFS'!F112","v":0},null,{"$f":"'Form 1SFS'!G112","v":0}]
["Form 1SFS","Balance Sheet GEN","1SFS17a","Loss Provision - Gross",{"$f":"'Form 1SFS'!F117","v":0},null,{"$f":"'Form 1SFS'!G117","v":0}]
["Form 1SFS","Balance Sheet GEN","1SFS17bi","R/I Recoverable - Foreign Affiliates",{"$f":"'Form 1SFS'!F119","v":0},null,{"$f":"'Form 1SFS'!G119","v":0}]
["Form 1SFS","Balance Sheet GEN","1SFS17bii","R/I Recoverable - Domestic Affiliates",{"$f":"'Form 1SFS'!F120","v":0},null,{"$f":"'Form 1SFS'!G120","v":0}]
["Form 1SFS","Balance Sheet GEN","1SFS17biii","R/I Recoverable - Pools & Assoc.",{"$f":"'Form 1SFS'!F121","v":0},null,{"$f":"'Form 1SFS'!G121","v":0}]
["Form 1SFS","Balance Sheet GEN","1SFS17biv","R/I Recoverable - All Other",{"$f":"'Form 1SFS'!F122","v":0},null,{"$f":"'Form 1SFS'!G122","v":0}]
["Form 1SFS","Balance Sheet GEN","1SFS18","Other Insurance Reserves",{"$f":"'Form 1SFS'!F126","v":0},null,{"$f":"'Form 1SFS'!G126","v":0}]
["Form 1SFS","Balance Sheet GEN","1SFS28","Insurance & R/I Balances Payable",{"$f":"'Form 1SFS'!F158","v":0},null,{"$f":"'Form 1SFS'!G158","v":0}]
["Form 1SFS","Balance Sheet GEN","1SFS29","Commissions, Expenses and Taxes Payable",{"$f":"'Form 1SFS'!F160","v":0},null,{"$f":"'Form 1SFS'!G160","v":0}]
["Form 1SFS","Balance Sheet GEN","1SFS30","Loans and Notes Payable",{"$f":"'Form 1SFS'!F162","v":0},null,{"$f":"'Form 1SFS'!G162","v":0}]
["Form 1SFS","Balance Sheet GEN","1SFS31a","Income Taxes Payable",{"$f":"'Form 1SFS'!F164","v":0},null,{"$f":"'Form 1SFS'!G164","v":0}]
["Form 1SFS","Balance Sheet GEN","1SFS31b","Deferred Taxes Payable",{"$f":"'Form 1SFS'!F166","v":0},null,{"$f":"'Form 1SFS'!G166","v":0}]
["Form 1SFS","Balance Sheet GEN","1SFS32","Amounts Due to Affiliates",{"$f":"'Form 1SFS'!F168","v":0},null,{"$f":"'Form 1SFS'!G168","v":0}]
["Form 1SFS","Balance Sheet GEN","1SFS33","Accounts Payable and Accrued Liabilities",{"$f":"'Form 1SFS'!F170","v":0},null,{"$f":"'Form 1SFS'!G170","v":0}]
["Form 1SFS","Balance Sheet GEN","1SFS34","Funds Held under R/I Contracts",{"$f":"'Form 1SFS'!F172","v":0},null,{"$f":"'Form 1SFS'!G172","v":0}]
["Form 1SFS","Balance Sheet GEN","1SFS35","Dividends Payable",{"$f":"'Form 1SFS'!F174","v":0},null,{"$f":"'Form 1SFS'!G174","v":0}]
["Form 1SFS","Balance Sheet GEN","1SFS36a","Sundry Liabilities - Derivative Instruments",{"$f":"'Form 1SFS'!F177","v":0},null,{"$f":"'Form 1SFS'!G177","v":0}]
["Form 1SFS","Balance Sheet GEN","1SFS36b","Sundry Liabilities - Segregated Accounts",{"$f":"'Form 1SFS'!F178","v":0},null,{"$f":"'Form 1SFS'!G178","v":0}]
["Form 1SFS","Balance Sheet GEN","1SFS36c","Sundry Liabilities - Deposit Liabilities",{"$f":"'Form 1SFS'!F179","v":0},null,{"$f":"'Form 1SFS'!G179","v":0}]
["Form 1SFS","Balance Sheet GEN","1SFS36d","Sundry Liabilities - Investments Purchased",{"$f":"'Form 1SFS'!F180","v":0},null,{"$f":"'Form 1SFS'!G180","v":0}]
["Form 1SFS","Balance Sheet GEN","1SFS36e","Sundry Liabilities - Other 1",{"$f":"'Form 1SFS'!F181","v":0},null,{"$f":"'Form 1SFS'!G181","v":0}]
["Form 1SFS","Balance Sheet GEN","1SFS36f","Sundry Liabilities - Other 2",{"$f":"'Form 1SFS'!F182","v":0},null,{"$f":"'Form 1SFS'!G182","v":0}]
["Form 1SFS","Balance Sheet GEN","1SFS36g","Sundry Liabilities - Other 3",{"$f":"'Form 1SFS'!F183","v":0},null,{"$f":"'Form 1SFS'!G183","v":0}]
["Form 1SFS","Balance Sheet GEN","1SFS37a","Letters of Credit",{"$f":"'Form 1SFS'!F187","v":0},null,{"$f":"'Form 1SFS'!G187","v":0}]
["Form 1SFS","Balance Sheet GEN","1SFS37b","Guarantees",{"$f":"'Form 1SFS'!F188","v":0},null,{"$f":"'Form 1SFS'!G188","v":0}]
["Form 1SFS","Balance Sheet GEN","1SFS37c","Other Instruments",{"$f":"'Form 1SFS'!F189","v":0},null,{"$f":"'Form 1SFS'!G189","v":0}]
[]
["Form 1SFS","Notes","Form 1SFS","Line 10 - Collaterized Balances",{"$f":"'Form 1SFS'!K210","v":0},null,{"$f":"'Form 1SFS'!M210","v":0},null,null,null,null,null,{"$f":"'Form 4EBS'!F196","v":0}]
["Form 1SFS","Notes","Form 1SFS","Line 11(e) - Collaterized Balances",{"$f":"'Form 1SFS'!K212","v":0},null,null,null,null,null,null,null,{"$f":"'Form 4EBS'!F197","v":0}]
["Form 1SFS","Notes","Form 1SFS","Line 27cii - Collat. in Favor of Insurer",{"$f":"'Form 1SFS'!K214","v":0},null,null,null,null,null,null,null,{"$f":"'Form 4EBS'!F198","v":0}]
["Form 1SFS","Notes","Form 1SFS","Line 13 - Sundry Assets",{"$f":"'Form 1SFS'!K216","v":0},null,{"$f":"'Form 1SFS'!M216","v":0},null,null,null,null,null,{"$f":"'Form 4EBS'!F200","v":0}]
["Form 1SFS","Notes","Form 1SFS","Line 15 - Policy. Oblig. - Cash",{"$f":"'Form 1SFS'!K221","v":0},null,{"$f":"'Form 1SFS'!M221","v":0},null,null,null,null,null,{"$f":"'Form 4EBS'!F206","v":0},null,{"$f":"'Form 4EBS'!H206","v":0}]
["Form 1SFS","Notes","Form 1SFS","Line 15 - Policy. Oblig. - Quoted. Inv.",{"$f":"'Form 1SFS'!K222","v":0},null,{"$f":"'Form 1SFS'!M222","v":0},null,null,null,null,null,{"$f":"'Form 4EBS'!F207","v":0},null,{"$f":"'Form 4EBS'!H207","v":0}]
["Form 1SFS","Notes","Form 1SFS","Line 15 - Policy. Oblig. - Unquoted. Inv.",{"$f":"'Form 1SFS'!K223","v":0},null,{"$f":"'Form 1SFS'!M223","v":0},null,null,null,null,null,{"$f":"'Form 4EBS'!F208","v":0},null,{"$f":"'Form 4EBS'!H208","v":0}]
["Form 1SFS","Notes","Form 1SFS","Line 15 - Policy. Oblig. - Funds Held",{"$f":"'Form 1SFS'!K224","v":0},null,{"$f":"'Form 1SFS'!M224","v":0},null,null,null,null,null,{"$f":"'Form 4EBS'!F209","v":0},null,{"$f":"'Form 4EBS'!H209","v":0}]
["Form 1SFS","Notes","Form 1SFS","Line 15 - Policy. Oblig. - Other Assets",{"$f":"'Form 1SFS'!K225","v":0},null,{"$f":"'Form 1SFS'!M225","v":0},null,null,null,null,null,{"$f":"'Form 4EBS'!F210","v":0},null,{"$f":"'Form 4EBS'!H210","v":0}]
["Form 1SFS","Notes","Form 1SFS","Line 15 - Policy. Oblig. - Total",{"$f":"'Form 1SFS'!K226","v":0},null,{"$f":"'Form 1SFS'!M226","v":0},null,null,null,null,null,{"$f":"'Form 4EBS'!F211","v":0},null,{"$f":"'Form 4EBS'!H211","v":0}]
["Form 1SFS","Notes","Form 1SFS","Line 15 - Other - Cash",{"$f":"'Form 1SFS'!K231","v":0},null,{"$f":"'Form 1SFS'!M231","v":0},null,null,null,null,null,{"$f":"'Form 4EBS'!F216","v":0},null,{"$f":"'Form 4EBS'!H216","v":0}]
["Form 1SFS","Notes","Form 1SFS","Line 15 - Other - Quoted. Inv.",{"$f":"'Form 1SFS'!K232","v":0},null,{"$f":"'Form 1SFS'!M232","v":0},null,null,null,null,null,{"$f":"'Form 4EBS'!F217","v":0},null,{"$f":"'Form 4EBS'!H217","v":0}]
["Form 1SFS","Notes","Form 1SFS","Line 15 - Other - Unquoted. Inv.",{"$f":"'Form 1SFS'!K233","v":0},null,{"$f":"'Form 1SFS'!M233","v":0},null,null,null,null,null,{"$f":"'Form 4EBS'!F218","v":0},null,{"$f":"'Form 4EBS'!H218","v":0}]
["Form 1SFS","Notes","Form 1SFS","Line 15 - Other - Other Assets",{"$f":"'Form 1SFS'!K234","v":0},null,{"$f":"'Form 1SFS'!M234","v":0},null,null,null,null,null,{"$f":"'Form 4EBS'!F219","v":0},null,{"$f":"'Form 4EBS'!H219","v":0}]
["Form 1SFS","Notes","Form 1SFS","Line 15 - Other - Total",{"$f":"'Form 1SFS'!K235","v":0},null,{"$f":"'Form 1SFS'!M235","v":0},null,null,null,null,null,{"$f":"'Form 4EBS'!F220","v":0},null,{"$f":"'Form 4EBS'!H220","v":0}]
["Form 1SFS","Notes","Form 1SFS","Line 36 - Sundry Liabilities",{"$f":"'Form 1SFS'!K237","v":0},null,{"$f":"'Form 1SFS'!M237","v":0},null,null,null,null,null,{"$f":"'Form 4EBS'!F222","v":0}]
["Form 1SFS","Notes","Form 1SFS","Line 37 - LOC's & Guarantees",{"$f":"'Form 1SFS'!K239","v":0},null,{"$f":"'Form 1SFS'!M239","v":0},null,null,null,null,null,{"$f":"'Form 4EBS'!F224","v":0}]
["Form 1SFS","Notes","Form 1SFS","Line 17 - Prior year note disclosure",{"$f":"'Form 1SFS'!I242","v":0}]
["Form 1SFS","Notes","Form 1SFS","Gross Provision - Beg. Of Year",{"$f":"'Form 1SFS'!K251","v":0},null,{"$f":"'Form 1SFS'!M251","v":0}]
["Form 1SFS","Notes","Form 1SFS","R/I Recoverable - Beg. Of Year",{"$f":"'Form 1SFS'!K253","v":0},null,{"$f":"'Form 1SFS'!M253","v":0}]
["Form 1SFS","Notes","Form 1SFS","Net Provision - Beg. Of Year",{"$f":"'Form 1SFS'!K255","v":0},null,{"$f":"'Form 1SFS'!M255","v":0}]
["Form 1SFS","Notes","Form 1SFS","Acquisition / Sale of loss reserves (net):",{"$f":"'Form 1SFS'!K257","v":0},null,{"$f":"'Form 1SFS'!M257","v":0}]
["Form 1SFS","Notes","Form 1SFS","Net Losses Incurred - Current Year",{"$f":"'Form 1SFS'!K261","v":0},null,{"$f":"'Form 1SFS'!M261","v":0}]
["Form 1SFS","Notes","Form 1SFS","Net Losses Incurred - Prior Years",{"$f":"'Form 1SFS'!K262","v":0},null,{"$f":"'Form 1SFS'!M262","v":0}]
["Form 1SFS","Notes","Form 1SFS","Net Losses Incurred - Total",{"$f":"'Form 1SFS'!K264","v":0},null,{"$f":"'Form 1SFS'!M264","v":0}]
["Form 1SFS","Notes","Form 1SFS","Losses Paid - Current Year",{"$f":"'Form 1SFS'!K268","v":0},null,{"$f":"'Form 1SFS'!M268","v":0}]
["Form 1SFS","Notes","Form 1SFS","Losses Paid - Prior Years",{"$f":"'Form 1SFS'!K269","v":0},null,{"$f":"'Form 1SFS'!M269","v":0}]
["Form 1SFS","Notes","Form 1SFS","Losses Paid - Total",{"$f":"'Form 1SFS'!K271","v":0},null,{"$f":"'Form 1SFS'!M271","v":0}]
["Form 1SFS","Notes","Form 1SFS","Foreign Exchange and Other",{"$f":"'Form 1SFS'!K273","v":0},null,{"$f":"'Form 1SFS'!M273","v":0}]
["Form 1SFS","Notes","Form 1SFS","Net Provision - End Of Year",{"$f":"'Form 1SFS'!K275","v":0},null,{"$f":"'Form 1SFS'!M275","v":0}]
["Form 1SFS","Notes","Form 1SFS","R/I Recoverable - End Of Year",{"$f":"'Form 1SFS'!K277","v":0},null,{"$f":"'Form 1SFS'!M277","v":0}]
["Form 1SFS","Notes","Form 1SFS","Gross Provision - End Of Year",{"$f":"'Form 1SFS'!K279","v":0},null,{"$f":"'Form 1SFS'!M279","v":0}]
["Form 1SFS","Notes","Form 1SFS","Insurance - Gross - Open Balance",{"$f":"'Form 1SFS'!D321","v":0},null,{"$f":"'Form 1SFS'!D330","v":0}]
["Form 1SFS","Notes","Form 1SFS","Insurance - Gross - Terminations",{"$f":"'Form 1SFS'!D322","v":0},null,{"$f":"'Form 1SFS'!D331","v":0}]
["Form 1SFS","Notes","Form 1SFS","Insurance - Gross - New Business",{"$f":"'Form 1SFS'!D323","v":0},null,{"$f":"'Form 1SFS'!D332","v":0}]
["Form 1SFS","Notes","Form 1SFS","Insurance - Gross - Chg.In Force",{"$f":"'Form 1SFS'!D324","v":0},null,{"$f":"'Form 1SFS'!D333","v":0}]
["Form 1SFS","Notes","Form 1SFS","Insurance - Gross - Mgmt Actions",{"$f":"'Form 1SFS'!D325","v":0},null,{"$f":"'Form 1SFS'!D334","v":0}]
["Form 1SFS","Notes","Form 1SFS","Insurance - Gross - FX",{"$f":"'Form 1SFS'!D326","v":0},null,{"$f":"'Form 1SFS'!D335","v":0}]
["Form 1SFS","Notes","Form 1SFS","Insurance - Gross - Closing Balance",{"$f":"'Form 1SFS'!D327","v":0},null,{"$f":"'Form 1SFS'!D336","v":0}]
["Form 1SFS","Notes","Form 1SFS","Insurance - R/I - Open Balance",{"$f":"'Form 1SFS'!E321","v":0},null,{"$f":"'Form 1SFS'!E330","v":0}]
["Form 1SFS","Notes","Form 1SFS","Insurance - R/I - Terminations",{"$f":"'Form 1SFS'!E322","v":0},null,{"$f":"'Form 1SFS'!E331","v":0}]
["Form 1SFS","Notes","Form 1SFS","Insurance - R/I - New Business",{"$f":"'Form 1SFS'!E323","v":0},null,{"$f":"'Form 1SFS'!E332","v":0}]
["Form 1SFS","Notes","Form 1SFS","Insurance - R/I - Chg.In Force",{"$f":"'Form 1SFS'!E324","v":0},null,{"$f":"'Form 1SFS'!E333","v":0}]
["Form 1SFS","Notes","Form 1SFS","Insurance - R/I - Mgmt Actions",{"$f":"'Form 1SFS'!E325","v":0},null,{"$f":"'Form 1SFS'!E334","v":0}]
["Form 1SFS","Notes","Form 1SFS","Insurance - R/I - FX",{"$f":"'Form 1SFS'!E326","v":0},null,{"$f":"'Form 1SFS'!E335","v":0}]
["Form 1SFS","Notes","Form 1SFS","Insurance - R/I - Closing Balance",{"$f":"'Form 1SFS'!E327","v":0},null,{"$f":"'Form 1SFS'!E336","v":0}]
["Form 1SFS","Notes","Form 1SFS","Invmnt - Gross - Open Balance",{"$f":"'Form 1SFS'!K321","v":0},null,{"$f":"'Form 1SFS'!K330","v":0}]
["Form 1SFS","Notes","Form 1SFS","Invmnt - Gross - Terminations",{"$f":"'Form 1SFS'!K322","v":0},null,{"$f":"'Form 1SFS'!K331","v":0}]
["Form 1SFS","Notes","Form 1SFS","Invmnt - Gross - New Business",{"$f":"'Form 1SFS'!K323","v":0},null,{"$f":"'Form 1SFS'!K332","v":0}]
["Form 1SFS","Notes","Form 1SFS","Invmnt - Gross - Chg.In Force",{"$f":"'Form 1SFS'!K324","v":0},null,{"$f":"'Form 1SFS'!K333","v":0}]
["Form 1SFS","Notes","Form 1SFS","Invmnt - Gross - Mgmt Actions",{"$f":"'Form 1SFS'!K325","v":0},null,{"$f":"'Form 1SFS'!K334","v":0}]
["Form 1SFS","Notes","Form 1SFS","Invmnt - Gross - FX",{"$f":"'Form 1SFS'!K326","v":0},null,{"$f":"'Form 1SFS'!K335","v":0}]
["Form 1SFS","Notes","Form 1SFS","Invmnt - Gross - Closing Balance",{"$f":"'Form 1SFS'!K327","v":0},null,{"$f":"'Form 1SFS'!K336","v":0}]
["Form 1SFS","Notes","Form 1SFS","Invmnt - R/I - Open Balance",{"$f":"'Form 1SFS'!M321","v":0},null,{"$f":"'Form 1SFS'!M330","v":0}]
["Form 1SFS","Notes","Form 1SFS","Invmnt - R/I - Terminations",{"$f":"'Form 1SFS'!M322","v":0},null,{"$f":"'Form 1SFS'!M331","v":0}]
["Form 1SFS","Notes","Form 1SFS","Invmnt - R/I - New Business",{"$f":"'Form 1SFS'!M323","v":0},null,{"$f":"'Form 1SFS'!M332","v":0}]
["Form 1SFS","Notes","Form 1SFS","Invmnt - R/I - Chg.In Force",{"$f":"'Form 1SFS'!M324","v":0},null,{"$f":"'Form 1SFS'!M333","v":0}]
["Form 1SFS","Notes","Form 1SFS","Invmnt - R/I - Mgmt Actions",{"$f":"'Form 1SFS'!M325","v":0},null,{"$f":"'Form 1SFS'!M334","v":0}]
["Form 1SFS","Notes","Form 1SFS","Invmnt - R/I - FX",{"$f":"'Form 1SFS'!M326","v":0},null,{"$f":"'Form 1SFS'!M335","v":0}]
["Form 1SFS","Notes","Form 1SFS","Invmnt - R/I - Closing Balance",{"$f":"'Form 1SFS'!M327","v":0},null,{"$f":"'Form 1SFS'!M336","v":0}]
[]
["1EBS","Notes","1EBS","Line 27Bcii - Collat. in Favor of Insurer",null,null,null,null,null,null,null,null,{"$f":"'Form 4EBS'!F199","v":0}]
["1EBS","Notes","1EBS","Line 36(i) - Any Other Liabilities",null,null,null,null,null,null,null,null,{"$f":"'Form 4EBS'!F201","v":0}]
["1EBS","Notes","1EBS","Line 36(f) - Details of Deposit Liab.",null,null,null,null,null,null,null,null,{"$f":"'Form 4EBS'!F223","v":0}]
["1EBS","Notes","1EBS","Line 40 - Recon. 1SFS 40 to EBS 40",null,null,null,null,null,null,null,null,{"$f":"'Form 4EBS'!F225","v":0}]
["1EBS","Notes","1EBS","Line 27ci - Adj. Counterparty Default",null,null,null,null,null,null,null,null,{"$f":"'Form 4EBS'!F228","v":0}]
["1EBS","Notes","1EBS","Line 27di - Premium in BBNI",null,null,null,null,null,null,null,null,{"$f":"'Form 4EBS'!F229","v":0}]
["1EBS","Notes","1EBS","Line 27dii - Tech Prov. In BBNI",null,null,null,null,null,null,null,null,{"$f":"'Form 4EBS'!F230","v":0}]
["1EBS","Notes","1EBS","Line 27diii - Best Est. that used Trans. Arrang.",null,null,null,null,null,null,null,null,{"$f":"'Form 4EBS'!F231","v":0}]
["1EBS","Notes","1EBS","Line 27div - Best Est. that not used Trans. Arrang.",null,null,null,null,null,null,null,null,{"$f":"'Form 4EBS'!F232","v":0}]
["1EBS","Notes","1EBS","Line 27dv - Scenario Based used",null,null,null,null,null,null,null,null,{"$f":"'Form 4EBS'!F233","v":0}]
["1EBS","Notes","1EBS","Line 27dvi - Scen. Based used Stand. Appro.",null,null,null,null,null,null,null,null,{"$f":"'Form 4EBS'!F234","v":0}]
["1EBS","Notes","1EBS","Line 27dvii - Scen. Based used Base Appro.",null,null,null,null,null,null,null,null,{"$f":"'Form 4EBS'!F235","v":0}]
["1EBS","Notes","1EBS","Line 27Bci - Adj. Counterparty Default",null,null,null,null,null,null,null,null,{"$f":"'Form 4EBS'!F236","v":0}]
["1EBS","Notes","1EBS","Line 27Bdi - Premium in BBNI",null,null,null,null,null,null,null,null,{"$f":"'Form 4EBS'!F237","v":0}]
["1EBS","Notes","1EBS","Line 27Bdii - Tech Prov. In BBNI",null,null,null,null,null,null,null,null,{"$f":"'Form 4EBS'!F238","v":0}]
[]
[null,null,null,"Income Statement"]
["Form 2SFS","Income Stmt Uncon LT / CON","2SFS1a","Gross Premium Written - Direct",null,null,null,null,{"$f":"'Form 2SFS'!M12","v":0},null,{"$f":"'Form 2SFS'!O12","v":0}]
["Form 2SFS","Income Stmt Uncon LT / CON","2SFS1b","Gross Premium Written - Assumed",null,null,null,null,{"$f":"'Form 2SFS'!M13","v":0},null,{"$f":"'Form 2SFS'!O13","v":0}]
["Form 2SFS","Income Stmt Uncon LT / CON","2SFS2","R/I Premiums Ceded",null,null,null,null,{"$f":"'Form 2SFS'!M16","v":0},null,{"$f":"'Form 2SFS'!O16","v":0}]
["Form 2SFS","Income Stmt Uncon LT / CON","2SFS4","Change in Unearned Premiums",null,null,null,null,{"$f":"'Form 2SFS'!M20","v":0},null,{"$f":"'Form 2SFS'!O20","v":0}]
["Form 2SFS","Income Stmt Uncon LT / CON","2SFS6","Other Insurance Income",null,null,null,null,{"$f":"'Form 2SFS'!M24","v":0},null,{"$f":"'Form 2SFS'!O24","v":0}]
["Form 2SFS","Income Stmt Uncon LT / CON","2SFS8","Net Losses Incurred",null,null,null,null,{"$f":"'Form 2SFS'!M30","v":0},null,{"$f":"'Form 2SFS'!O30","v":0}]
["Form 2SFS","Income Stmt Uncon LT / CON","2SFS9","Commissions & Brokerage",null,null,null,null,{"$f":"'Form 2SFS'!M32","v":0},null,{"$f":"'Form 2SFS'!O32","v":0}]
["Form 2SFS","Income Stmt Uncon LT / CON","2SFS12a","Gross Premium Written - Direct",{"$f":"'Form 2SFS'!I41","v":0},null,{"$f":"'Form 2SFS'!K41","v":0},null,{"$f":"'Form 2SFS'!M41","v":0},null,{"$f":"'Form 2SFS'!O41","v":0}]
["Form 2SFS","Income Stmt Uncon LT / CON","2SFS12b","Gross Premium Written - Assumed",{"$f":"'Form 2SFS'!I42","v":0},null,{"$f":"'Form 2SFS'!K42","v":0},null,{"$f":"'Form 2SFS'!M42","v":0},null,{"$f":"'Form 2SFS'!O42","v":0}]
["Form 2SFS","Income Stmt Uncon LT / CON","2SFS13","R/I Premiums Ceded",{"$f":"'Form 2SFS'!I45","v":0},null,{"$f":"'Form 2SFS'!K45","v":0},null,{"$f":"'Form 2SFS'!M45","v":0},null,{"$f":"'Form 2SFS'!O45","v":0}]
["Form 2SFS","Income Stmt Uncon LT / CON","2SFS14a","NPW - Life",{"$f":"'Form 2SFS'!I48","v":0},null,{"$f":"'Form 2SFS'!K48","v":0},null,{"$f":"'Form 2SFS'!M48","v":0},null,{"$f":"'Form 2SFS'!O48","v":0}]
["Form 2SFS","Income Stmt Uncon LT / CON","2SFS14b","NPW - Annuities",{"$f":"'Form 2SFS'!I49","v":0},null,{"$f":"'Form 2SFS'!K49","v":0},null,{"$f":"'Form 2SFS'!M49","v":0},null,{"$f":"'Form 2SFS'!O49","v":0}]
["Form 2SFS","Income Stmt Uncon LT / CON","2SFS14c","NPW - Accident & Health",{"$f":"'Form 2SFS'!I50","v":0},null,{"$f":"'Form 2SFS'!K50","v":0},null,{"$f":"'Form 2SFS'!M50","v":0},null,{"$f":"'Form 2SFS'!O50","v":0}]
["Form 2SFS","Income Stmt Uncon LT / CON","2SFS15","Other Insurance Income",{"$f":"'Form 2SFS'!I53","v":0},null,{"$f":"'Form 2SFS'!K53","v":0},null,{"$f":"'Form 2SFS'!M53","v":0},null,{"$f":"'Form 2SFS'!O53","v":0}]
["Form 2SFS","Income Stmt Uncon LT / CON","2SFS17","Claims - Life",{"$f":"'Form 2SFS'!I59","v":0},null,{"$f":"'Form 2SFS'!K59","v":0},null,{"$f":"'Form 2SFS'!M59","v":0},null,{"$f":"'Form 2SFS'!O59","v":0}]
["Form 2SFS","Income Stmt Uncon LT / CON","2SFS18","Policyholders' Dividends",{"$f":"'Form 2SFS'!I61","v":0},null,{"$f":"'Form 2SFS'!K61","v":0},null,{"$f":"'Form 2SFS'!M61","v":0},null,{"$f":"'Form 2SFS'!O61","v":0}]
["Form 2SFS","Income Stmt Uncon LT / CON","2SFS19","Surrenders",{"$f":"'Form 2SFS'!I63","v":0},null,{"$f":"'Form 2SFS'!K63","v":0},null,{"$f":"'Form 2SFS'!M63","v":0},null,{"$f":"'Form 2SFS'!O63","v":0}]
["Form 2SFS","Income Stmt Uncon LT / CON","2SFS20","Maturities",{"$f":"'Form 2SFS'!I65","v":0},null,{"$f":"'Form 2SFS'!K65","v":0},null,{"$f":"'Form 2SFS'!M65","v":0},null,{"$f":"'Form 2SFS'!O65","v":0}]
["Form 2SFS","Income Stmt Uncon LT / CON","2SFS21","Annuities",{"$f":"'Form 2SFS'!I67","v":0},null,{"$f":"'Form 2SFS'!K67","v":0},null,{"$f":"'Form 2SFS'!M67","v":0},null,{"$f":"'Form 2SFS'!O67","v":0}]
["Form 2SFS","Income Stmt Uncon LT / CON","2SFS22","Accident & Health Benefits",{"$f":"'Form 2SFS'!I69","v":0},null,{"$f":"'Form 2SFS'!K69","v":0},null,{"$f":"'Form 2SFS'!M69","v":0},null,{"$f":"'Form 2SFS'!O69","v":0}]
["Form 2SFS","Income Stmt Uncon LT / CON","2SFS23","Commissions",{"$f":"'Form 2SFS'!I71","v":0},null,{"$f":"'Form 2SFS'!K71","v":0},null,{"$f":"'Form 2SFS'!M71","v":0},null,{"$f":"'Form 2SFS'!O71","v":0}]
["Form 2SFS","Income Stmt Uncon LT / CON","2SFS24","Other",{"$f":"'Form 2SFS'!I73","v":0},null,{"$f":"'Form 2SFS'!K73","v":0},null,{"$f":"'Form 2SFS'!M73","v":0},null,{"$f":"'Form 2SFS'!O73","v":0}]
["Form 2SFS","Income Stmt Uncon LT / CON","2SFS26a","Change in Policy Reserves - Life",{"$f":"'Form 2SFS'!I78","v":0},null,{"$f":"'Form 2SFS'!K78","v":0},null,{"$f":"'Form 2SFS'!M78","v":0},null,{"$f":"'Form 2SFS'!O78","v":0}]
["Form 2SFS","Income Stmt Uncon LT / CON","2SFS26b","Change in Policy Reserves - Annuities",{"$f":"'Form 2SFS'!I79","v":0},null,{"$f":"'Form 2SFS'!K79","v":0},null,{"$f":"'Form 2SFS'!M79","v":0},null,{"$f":"'Form 2SFS'!O79","v":0}]
["Form 2SFS","Income Stmt Uncon LT / CON","2SFS26c","Change in Policy Reserves - Accid. & Health",{"$f":"'Form 2SFS'!I80","v":0},null,{"$f":"'Form 2SFS'!K80","v":0},null,{"$f":"'Form 2SFS'!M80","v":0},null,{"$f":"'Form 2SFS'!O80","v":0}]
["Form 2SFS","Income Stmt Uncon LT / CON","2SFS30a","Operating Expense - G&A",{"$f":"'Form 2SFS'!I93","v":0},null,{"$f":"'Form 2SFS'!K93","v":0},null,{"$f":"'Form 2SFS'!M93","v":0},null,{"$f":"'Form 2SFS'!O93","v":0}]
["Form 2SFS","Income Stmt Uncon LT / CON","2SFS30b","Operating Expense - Personnel Costs",{"$f":"'Form 2SFS'!I94","v":0},null,{"$f":"'Form 2SFS'!K94","v":0},null,{"$f":"'Form 2SFS'!M94","v":0},null,{"$f":"'Form 2SFS'!O94","v":0}]
["Form 2SFS","Income Stmt Uncon LT / CON","2SFS30c","Operating Expense - Other",{"$f":"'Form 2SFS'!I95","v":0},null,{"$f":"'Form 2SFS'!K95","v":0},null,{"$f":"'Form 2SFS'!M95","v":0},null,{"$f":"'Form 2SFS'!O95","v":0}]
["Form 2SFS","Income Stmt Uncon LT / CON","2SFS31","Investment Income",{"$f":"'Form 2SFS'!I98","v":0},null,{"$f":"'Form 2SFS'!K98","v":0},null,{"$f":"'Form 2SFS'!M98","v":0},null,{"$f":"'Form 2SFS'!O98","v":0}]
["Form 2SFS","Income Stmt Uncon LT / CON","2SFS32","Other Income",{"$f":"'Form 2SFS'!I100","v":0},null,{"$f":"'Form 2SFS'!K100","v":0},null,{"$f":"'Form 2SFS'!M100","v":0},null,{"$f":"'Form 2SFS'!O100","v":0}]
["Form 2SFS","Income Stmt Uncon LT / CON","2SFS34a","Income Tax - Current",{"$f":"'Form 2SFS'!I105","v":0},null,{"$f":"'Form 2SFS'!K105","v":0},null,{"$f":"'Form 2SFS'!M105","v":0},null,{"$f":"'Form 2SFS'!O105","v":0}]
["Form 2SFS","Income Stmt Uncon LT / CON","2SFS34b","Income Tax - Deferred",{"$f":"'Form 2SFS'!I106","v":0},null,{"$f":"'Form 2SFS'!K106","v":0},null,{"$f":"'Form 2SFS'!M106","v":0},null,{"$f":"'Form 2SFS'!O106","v":0}]
["Form 2SFS","Income Stmt Uncon LT / CON","2SFS36","Realized Gains/Losses",{"$f":"'Form 2SFS'!I111","v":0},null,{"$f":"'Form 2SFS'!K111","v":0},null,{"$f":"'Form 2SFS'!M111","v":0},null,{"$f":"'Form 2SFS'!O111","v":0}]
["Form 2SFS","Income Stmt Uncon LT / CON","2SFS37","Interest Charges",{"$f":"'Form 2SFS'!I113","v":0},null,{"$f":"'Form 2SFS'!K113","v":0},null,{"$f":"'Form 2SFS'!M113","v":0},null,{"$f":"'Form 2SFS'!O113","v":0}]
[]
["Form 2SFS","Income Stmt Uncon GEN","2SFS1a","Gross Premium Written - Direct",{"$f":"'Form 2SFS'!E12","v":0},null,{"$f":"'Form 2SFS'!G12","v":0}]
["Form 2SFS","Income Stmt Uncon GEN","2SFS1b","Gross Premium Written - Assumed",{"$f":"'Form 2SFS'!E13","v":0},null,{"$f":"'Form 2SFS'!G13","v":0}]
["Form 2SFS","Income Stmt Uncon GEN","2SFS2","R/I Premiums Ceded",{"$f":"'Form 2SFS'!E16","v":0},null,{"$f":"'Form 2SFS'!G16","v":0}]
["Form 2SFS","Income Stmt Uncon GEN","2SFS4","Change in Unearned Premiums",{"$f":"'Form 2SFS'!E20","v":0},null,{"$f":"'Form 2SFS'!G20","v":0}]
["Form 2SFS","Income Stmt Uncon GEN","2SFS6","Other Insurance Income",{"$f":"'Form 2SFS'!E24","v":0},null,{"$f":"'Form 2SFS'!G24","v":0}]
["Form 2SFS","Income Stmt Uncon GEN","2SFS8","Net Losses Incurred",{"$f":"'Form 2SFS'!E30","v":0},null,{"$f":"'Form 2SFS'!G30","v":0}]
["Form 2SFS","Income Stmt Uncon GEN","2SFS9","Commissions & Brokerage",{"$f":"'Form 2SFS'!E32","v":0},null,{"$f":"'Form 2SFS'!G32","v":0}]
["Form 2SFS","Income Stmt Uncon GEN","2SFS30a","Operating Expense - G&A",{"$f":"'Form 2SFS'!E93","v":0},null,{"$f":"'Form 2SFS'!G93","v":0}]
["Form 2SFS","Income Stmt Uncon GEN","2SFS30b","Operating Expense - Personnel Costs",{"$f":"'Form 2SFS'!E94","v":0},null,{"$f":"'Form 2SFS'!G94","v":0}]
["Form 2SFS","Income Stmt Uncon GEN","2SFS30c","Operating Expense - Other",{"$f":"'Form 2SFS'!E95","v":0},null,{"$f":"'Form 2SFS'!G95","v":0}]
["Form 2SFS","Income Stmt Uncon GEN","2SFS31","Investment Income",{"$f":"'Form 2SFS'!E98","v":0},null,{"$f":"'Form 2SFS'!G98","v":0}]
["Form 2SFS","Income Stmt Uncon GEN","2SFS32","Other Income",{"$f":"'Form 2SFS'!E100","v":0},null,{"$f":"'Form 2SFS'!G100","v":0}]
["Form 2SFS","Income Stmt Uncon GEN","2SFS34a","Income Tax - Current",{"$f":"'Form 2SFS'!E105","v":0},null,{"$f":"'Form 2SFS'!G105","v":0}]
["Form 2SFS","Income Stmt Uncon GEN","2SFS34b","Income Tax - Deferred",{"$f":"'Form 2SFS'!E106","v":0},null,{"$f":"'Form 2SFS'!G106","v":0}]
["Form 2SFS","Income Stmt Uncon GEN","2SFS36","Realized Gains/Losses",{"$f":"'Form 2SFS'!E111","v":0},null,{"$f":"'Form 2SFS'!G111","v":0}]
["Form 2SFS","Income Stmt Uncon GEN","2SFS37","Interest Charges",{"$f":"'Form 2SFS'!E113","v":0},null,{"$f":"'Form 2SFS'!G113","v":0}]
[]
[null,null,null,"Statement of Capital & Surplus"]
["Form 8SFS","Stmt of C&S Uncon LT / CON","8SFS1ai","Capital Stock",{"$f":"'Form 8SFS'!K11","v":0},null,{"$f":"'Form 8SFS'!M11","v":0}]
["Form 8SFS","Stmt of C&S Uncon LT / CON",null,"Common Stock",null,null,null,null,{"$f":"'Form 8SFS'!O12","v":0},null,{"$f":"'Form 8SFS'!Q12","v":0}]
["Form 8SFS","Stmt of C&S Uncon LT / CON","8SFS1aii","Preferred Shares",null,null,null,null,{"$f":"'Form 8SFS'!O17","v":0},null,{"$f":"'Form 8SFS'!Q17","v":0}]
["Form 8SFS","Stmt of C&S Uncon LT / CON","8SFS1aiii","Treasury Shares",null,null,null,null,{"$f":"'Form 8SFS'!O25","v":0},null,{"$f":"'Form 8SFS'!Q25","v":0}]
["Form 8SFS","Stmt of C&S Uncon LT / CON","8SFS1b","Contributed Surplus",{"$f":"'Form 8SFS'!K29","v":0},null,{"$f":"'Form 8SFS'!M29","v":0},null,{"$f":"'Form 8SFS'!O29","v":0},null,{"$f":"'Form 8SFS'!Q29","v":0}]
["Form 8SFS","Stmt of C&S Uncon LT / CON","8SFS1ci","Other Fixed Capital - Hybrid Instruments",{"$f":"'Form 8SFS'!K32","v":0},null,{"$f":"'Form 8SFS'!M32","v":0},null,{"$f":"'Form 8SFS'!O32","v":0},null,{"$f":"'Form 8SFS'!Q32","v":0}]
["Form 8SFS","Stmt of C&S Uncon LT / CON","8SFS1cii","Other Fixed Capital - Guarantees & Others",{"$f":"'Form 8SFS'!K33","v":0},null,{"$f":"'Form 8SFS'!M33","v":0},null,{"$f":"'Form 8SFS'!O33","v":0},null,{"$f":"'Form 8SFS'!Q33","v":0}]
["Form 8SFS","Stmt of C&S Uncon LT / CON","8SFS2a","Statutory Surplus - Beginning of Year",{"$f":"'Form 8SFS'!K40","v":0},null,{"$f":"'Form 8SFS'!M40","v":0},null,{"$f":"'Form 8SFS'!O40","v":0},null,{"$f":"'Form 8SFS'!Q40","v":0}]
["Form 8SFS","Stmt of C&S Uncon LT / CON","8SFS2c","Dividends",{"$f":"'Form 8SFS'!K44","v":0},null,{"$f":"'Form 8SFS'!M44","v":0},null,{"$f":"'Form 8SFS'!O44","v":0},null,{"$f":"'Form 8SFS'!Q44","v":0}]
["Form 8SFS","Stmt of C&S Uncon LT / CON","8SFS2d","Unrealized Change in Investments",{"$f":"'Form 8SFS'!K46","v":0},null,{"$f":"'Form 8SFS'!M46","v":0},null,{"$f":"'Form 8SFS'!O46","v":0},null,{"$f":"'Form 8SFS'!Q46","v":0}]
["Form 8SFS","Stmt of C&S Uncon LT / CON","8SFS2e","Change in Non-Admitted Assets",{"$f":"'Form 8SFS'!K48","v":0},null,{"$f":"'Form 8SFS'!M48","v":0},null,{"$f":"'Form 8SFS'!O48","v":0},null,{"$f":"'Form 8SFS'!Q48","v":0}]
["Form 8SFS","Stmt of C&S Uncon LT / CON","8SFS2f","Change in Real Estate",{"$f":"'Form 8SFS'!K50","v":0},null,{"$f":"'Form 8SFS'!M50","v":0},null,{"$f":"'Form 8SFS'!O50","v":0},null,{"$f":"'Form 8SFS'!Q50","v":0}]
["Form 8SFS","Stmt of C&S Uncon LT / CON","8SFS2g","Change in Other Statutory Capital",{"$f":"'Form 8SFS'!K52","v":0},null,{"$f":"'Form 8SFS'!M52","v":0},null,{"$f":"'Form 8SFS'!O52","v":0},null,{"$f":"'Form 8SFS'!Q52","v":0}]
["Form 8SFS","Stmt of C&S Uncon LT / CON","8SFS3","Minority Interest",{"$f":"'Form 8SFS'!K56","v":0},null,{"$f":"'Form 8SFS'!M56","v":0},null,{"$f":"'Form 8SFS'!O56","v":0},null,{"$f":"'Form 8SFS'!Q56","v":0}]
[]
["Form 8SFS","Stmt of C&S Uncon GEN","8SFS1a","Common Stock",{"$f":"'Form 8SFS'!G11","v":0},null,{"$f":"'Form 8SFS'!I11","v":0}]
["Form 8SFS","Stmt of C&S Uncon GEN","8SFS1b","Contributed Surplus",{"$f":"'Form 8SFS'!G29","v":0},null,{"$f":"'Form 8SFS'!I29","v":0}]
["Form 8SFS","Stmt of C&S Uncon GEN","8SFS1ci","Other Fixed Capital - Hybrid Instruments",{"$f":"'Form 8SFS'!G32","v":0},null,{"$f":"'Form 8SFS'!I32","v":0}]
["Form 8SFS","Stmt of C&S Uncon GEN","8SFS1cii","Other Fixed Capital - Guarantees & Others",{"$f":"'Form 8SFS'!G33","v":0},null,{"$f":"'Form 8SFS'!I33","v":0}]
["Form 8SFS","Stmt of C&S Uncon GEN","8SFS2a","Statutory Surplus - Beginning of Year",{"$f":"'Form 8SFS'!G40","v":0},null,{"$f":"'Form 8SFS'!I40","v":0}]
["Form 8SFS","Stmt of C&S Uncon GEN","8SFS2c","Dividends",{"$f":"'Form 8SFS'!G44","v":0},null,{"$f":"'Form 8SFS'!I44","v":0}]
["Form 8SFS","Stmt of C&S Uncon GEN","8SFS2d","Unrealized Change in Investments",{"$f":"'Form 8SFS'!G46","v":0},null,{"$f":"'Form 8SFS'!I46","v":0}]
["Form 8SFS","Stmt of C&S Uncon GEN","8SFS2e","Change in Non-Admitted Assets",{"$f":"'Form 8SFS'!G48","v":0},null,{"$f":"'Form 8SFS'!I48","v":0}]
["Form 8SFS","Stmt of C&S Uncon GEN","8SFS2f","Change in Real Estate",{"$f":"'Form 8SFS'!G50","v":0},null,{"$f":"'Form 8SFS'!I50","v":0}]
["Form 8SFS","Stmt of C&S Uncon GEN","8SFS2g","Change in Other Statutory Capital",{"$f":"'Form 8SFS'!G52","v":0},null,{"$f":"'Form 8SFS'!I52","v":0}]
["Form 8SFS","Stmt of C&S Uncon GEN","8SFS3","Minority Interest",{"$f":"'Form 8SFS'!G56","v":0},null,{"$f":"'Form 8SFS'!I56","v":0}]
[]
[null,null,null,"IFRS Balance Sheet"]
["Form 1ASFS","Balance Sheet GEN/CON","1ASFS1","Cash and Cash Equivalents",{"$f":"'Form 1ASFS'!E10","v":0},null,{"$f":"'Form 1ASFS'!G10","v":0},null,{"$f":"'Form 1ASFS'!M10","v":0},null,{"$f":"'Form 1ASFS'!O10","v":0}]
["Form 1ASFS","Balance Sheet GEN/CON","1ASFS2ai","Quoted - Bonds - Held to Maturity",{"$f":"'Form 1ASFS'!E14","v":0},null,{"$f":"'Form 1ASFS'!G14","v":0},null,{"$f":"'Form 1ASFS'!M14","v":0},null,{"$f":"'Form 1ASFS'!O14","v":0}]
["Form 1ASFS","Balance Sheet GEN/CON","1ASFS2aii","Quoted - Bonds - Other",{"$f":"'Form 1ASFS'!E15","v":0},null,{"$f":"'Form 1ASFS'!G15","v":0},null,{"$f":"'Form 1ASFS'!M15","v":0},null,{"$f":"'Form 1ASFS'!O15","v":0}]
["Form 1ASFS","Balance Sheet GEN/CON","1ASFS2ci","Quoted - Equities - Common Stocks",{"$f":"'Form 1ASFS'!E18","v":0},null,{"$f":"'Form 1ASFS'!G18","v":0},null,{"$f":"'Form 1ASFS'!M18","v":0},null,{"$f":"'Form 1ASFS'!O18","v":0}]
["Form 1ASFS","Balance Sheet GEN/CON","1ASFS2cii","Quoted - Equities - Preferred Stocks",{"$f":"'Form 1ASFS'!E19","v":0},null,{"$f":"'Form 1ASFS'!G19","v":0},null,{"$f":"'Form 1ASFS'!M19","v":0},null,{"$f":"'Form 1ASFS'!O19","v":0}]
["Form 1ASFS","Balance Sheet GEN/CON","1ASFS2ciii","Quoted - Equities - Mutual Funds",{"$f":"'Form 1ASFS'!E20","v":0},null,{"$f":"'Form 1ASFS'!G20","v":0},null,{"$f":"'Form 1ASFS'!M20","v":0},null,{"$f":"'Form 1ASFS'!O20","v":0}]
["Form 1ASFS","Balance Sheet GEN/CON","1ASFS2e","Quoted - Other Investments",{"$f":"'Form 1ASFS'!E22","v":0},null,{"$f":"'Form 1ASFS'!G22","v":0},null,{"$f":"'Form 1ASFS'!M22","v":0},null,{"$f":"'Form 1ASFS'!O22","v":0}]
["Form 1ASFS","Balance Sheet GEN/CON","1ASFS3ai","Unquoted - Bonds - Held to Maturity",{"$f":"'Form 1ASFS'!E27","v":0},null,{"$f":"'Form 1ASFS'!G27","v":0},null,{"$f":"'Form 1ASFS'!M27","v":0},null,{"$f":"'Form 1ASFS'!O27","v":0}]
["Form 1ASFS","Balance Sheet GEN/CON","1ASFS3aii","Unquoted - Bonds - Other",{"$f":"'Form 1ASFS'!E28","v":0},null,{"$f":"'Form 1ASFS'!G28","v":0},null,{"$f":"'Form 1ASFS'!M28","v":0},null,{"$f":"'Form 1ASFS'!O28","v":0}]
["Form 1ASFS","Balance Sheet GEN/CON","1ASFS3ci","Unquoted - Equities - Common Stocks",{"$f":"'Form 1ASFS'!E31","v":0},null,{"$f":"'Form 1ASFS'!G31","v":0},null,{"$f":"'Form 1ASFS'!M31","v":0},null,{"$f":"'Form 1ASFS'!O31","v":0}]
["Form 1ASFS","Balance Sheet GEN/CON","1ASFS3cii","Unquoted - Equities - Preferred Stocks",{"$f":"'Form 1ASFS'!E32","v":0},null,{"$f":"'Form 1ASFS'!G32","v":0},null,{"$f":"'Form 1ASFS'!M32","v":0},null,{"$f":"'Form 1ASFS'!O32","v":0}]
["Form 1ASFS","Balance Sheet GEN/CON","1ASFS3ciii","Unquoted - Equities - Mutual Funds",{"$f":"'Form 1ASFS'!E33","v":0},null,{"$f":"'Form 1ASFS'!G33","v":0},null,{"$f":"'Form 1ASFS'!M33","v":0},null,{"$f":"'Form 1ASFS'!O33","v":0}]
["Form 1ASFS","Balance Sheet GEN/CON","1ASFS3e","Unquoted - Other Investments",{"$f":"'Form 1ASFS'!E35","v":0},null,{"$f":"'Form 1ASFS'!G35","v":0},null,{"$f":"'Form 1ASFS'!M35","v":0},null,{"$f":"'Form 1ASFS'!O35","v":0}]
["Form 1ASFS","Balance Sheet GEN/CON","1ASFS4a","Inv. In Affiliates - Unregulated Ancillary",{"$f":"'Form 1ASFS'!E39","v":0},null,{"$f":"'Form 1ASFS'!G39","v":0},null,{"$f":"'Form 1ASFS'!M39","v":0},null,{"$f":"'Form 1ASFS'!O39","v":0}]
["Form 1ASFS","Balance Sheet GEN/CON","1ASFS4b","Inv. In Affiliates - Unregulated Non-Fin. Oper.",{"$f":"'Form 1ASFS'!E40","v":0},null,{"$f":"'Form 1ASFS'!G40","v":0},null,{"$f":"'Form 1ASFS'!M40","v":0},null,{"$f":"'Form 1ASFS'!O40","v":0}]
["Form 1ASFS","Balance Sheet GEN/CON","1ASFS4c","Inv. In Affiliates - Unregulated Fin. Operating",{"$f":"'Form 1ASFS'!E41","v":0},null,{"$f":"'Form 1ASFS'!G41","v":0},null,{"$f":"'Form 1ASFS'!M41","v":0},null,{"$f":"'Form 1ASFS'!O41","v":0}]
["Form 1ASFS","Balance Sheet GEN/CON","1ASFS4d","Inv. In Affiliates - Regulated Non-Insurance",{"$f":"'Form 1ASFS'!E42","v":0},null,{"$f":"'Form 1ASFS'!G42","v":0},null,{"$f":"'Form 1ASFS'!M42","v":0},null,{"$f":"'Form 1ASFS'!O42","v":0}]
["Form 1ASFS","Balance Sheet GEN/CON","1ASFS4e","Inv. In Affiliates - Regulated Insurance",{"$f":"'Form 1ASFS'!E43","v":0},null,{"$f":"'Form 1ASFS'!G43","v":0},null,{"$f":"'Form 1ASFS'!M43","v":0},null,{"$f":"'Form 1ASFS'!O43","v":0}]
["Form 1ASFS","Balance Sheet GEN/CON","1ASFS4g","Advances To Affiliates",{"$f":"'Form 1ASFS'!E45","v":0},null,{"$f":"'Form 1ASFS'!G45","v":0},null,{"$f":"'Form 1ASFS'!M45","v":0},null,{"$f":"'Form 1ASFS'!O45","v":0}]
["Form 1ASFS","Balance Sheet GEN/CON","1ASFS5a","Inv. In Mortg. Loans on Real Estate - 1st Lien",{"$f":"'Form 1ASFS'!E49","v":0},null,{"$f":"'Form 1ASFS'!G49","v":0},null,{"$f":"'Form 1ASFS'!M49","v":0},null,{"$f":"'Form 1ASFS'!O49","v":0}]
["Form 1ASFS","Balance Sheet GEN/CON","1ASFS5b","Inv. In Mortg. Loans on Real Estate - Other",{"$f":"'Form 1ASFS'!E50","v":0},null,{"$f":"'Form 1ASFS'!G50","v":0},null,{"$f":"'Form 1ASFS'!M50","v":0},null,{"$f":"'Form 1ASFS'!O50","v":0}]
["Form 1ASFS","Balance Sheet GEN/CON","1ASFS7a","Real Estate - Occupied by Company",{"$f":"'Form 1ASFS'!E54","v":0},null,{"$f":"'Form 1ASFS'!G54","v":0},null,{"$f":"'Form 1ASFS'!M54","v":0},null,{"$f":"'Form 1ASFS'!O54","v":0}]
["Form 1ASFS","Balance Sheet GEN/CON","1ASFS7b","Real Estate - Other",{"$f":"'Form 1ASFS'!E55","v":0},null,{"$f":"'Form 1ASFS'!G55","v":0},null,{"$f":"'Form 1ASFS'!M55","v":0},null,{"$f":"'Form 1ASFS'!O55","v":0}]
["Form 1ASFS","Balance Sheet GEN/CON","1ASFS8","Collateral Loans",{"$f":"'Form 1ASFS'!E58","v":0},null,{"$f":"'Form 1ASFS'!G58","v":0},null,{"$f":"'Form 1ASFS'!M58","v":0},null,{"$f":"'Form 1ASFS'!O58","v":0}]
["Form 1ASFS","Balance Sheet GEN/CON","1ASFS9","Investment Income Due and Accrued",{"$f":"'Form 1ASFS'!E60","v":0},null,{"$f":"'Form 1ASFS'!G60","v":0},null,{"$f":"'Form 1ASFS'!M60","v":0},null,{"$f":"'Form 1ASFS'!O60","v":0}]
["Form 1ASFS","Balance Sheet GEN/CON","1ASFS10","Accounts Receivable",{"$f":"'Form 1ASFS'!E62","v":0},null,{"$f":"'Form 1ASFS'!G62","v":0},null,{"$f":"'Form 1ASFS'!M62","v":0},null,{"$f":"'Form 1ASFS'!O62","v":0}]
["Form 1ASFS","Balance Sheet GEN/CON","1ASFS11a","Insurance Contract Assets",{"$f":"'Form 1ASFS'!E65","v":0},null,{"$f":"'Form 1ASFS'!G65","v":0},null,{"$f":"'Form 1ASFS'!M65","v":0},null,{"$f":"'Form 1ASFS'!O65","v":0}]
["Form 1ASFS","Balance Sheet GEN/CON","1ASFS11b","Reinsurance Contract Assets",{"$f":"'Form 1ASFS'!E66","v":0},null,{"$f":"'Form 1ASFS'!G66","v":0},null,{"$f":"'Form 1ASFS'!M66","v":0},null,{"$f":"'Form 1ASFS'!O66","v":0}]
["Form 1ASFS","Balance Sheet GEN/CON","1ASFS11c","Investment Contracts with DPF Assets",{"$f":"'Form 1ASFS'!E67","v":0},null,{"$f":"'Form 1ASFS'!G67","v":0},null,{"$f":"'Form 1ASFS'!M67","v":0},null,{"$f":"'Form 1ASFS'!O67","v":0}]
["Form 1ASFS","Balance Sheet GEN/CON","1ASFS13a","Sundry Assets - Derivatives",{"$f":"'Form 1ASFS'!E71","v":0},null,{"$f":"'Form 1ASFS'!G71","v":0},null,{"$f":"'Form 1ASFS'!M71","v":0},null,{"$f":"'Form 1ASFS'!O71","v":0}]
["Form 1ASFS","Balance Sheet GEN/CON","1ASFS13b","Sundry Assets - SAC - LT- Variable Annuities",null,null,null,null,{"$f":"'Form 1ASFS'!M72","v":0},null,{"$f":"'Form 1ASFS'!O72","v":0}]
["Form 1ASFS","Balance Sheet GEN/CON","1ASFS13c","Sundry Assets - SAC - LT- Others",null,null,null,null,{"$f":"'Form 1ASFS'!M73","v":0},null,{"$f":"'Form 1ASFS'!O73","v":0}]
["Form 1ASFS","Balance Sheet GEN/CON","1ASFS13d","Sundry Assets - SAC - General Business",{"$f":"'Form 1ASFS'!E74","v":0},null,{"$f":"'Form 1ASFS'!G74","v":0},null,{"$f":"'Form 1ASFS'!M74","v":0},null,{"$f":"'Form 1ASFS'!O74","v":0}]
["Form 1ASFS","Balance Sheet GEN/CON","1ASFS13e","Sundry Assets - Deposit Assets",{"$f":"'Form 1ASFS'!E75","v":0},null,{"$f":"'Form 1ASFS'!G75","v":0},null,{"$f":"'Form 1ASFS'!M75","v":0},null,{"$f":"'Form 1ASFS'!O75","v":0}]
["Form 1ASFS","Balance Sheet GEN/CON","1ASFS13f","Sundry Assets - Net Rec. for Investments",{"$f":"'Form 1ASFS'!E76","v":0},null,{"$f":"'Form 1ASFS'!G76","v":0},null,{"$f":"'Form 1ASFS'!M76","v":0},null,{"$f":"'Form 1ASFS'!O76","v":0}]
["Form 1ASFS","Balance Sheet GEN/CON","1ASFS13g","Sundry Assets - Other 1",{"$f":"'Form 1ASFS'!E77","v":0},null,{"$f":"'Form 1ASFS'!G77","v":0},null,{"$f":"'Form 1ASFS'!M77","v":0},null,{"$f":"'Form 1ASFS'!O77","v":0}]
["Form 1ASFS","Balance Sheet GEN/CON","1ASFS13h","Sundry Assets - Other 2",{"$f":"'Form 1ASFS'!E78","v":0},null,{"$f":"'Form 1ASFS'!G78","v":0},null,{"$f":"'Form 1ASFS'!M78","v":0},null,{"$f":"'Form 1ASFS'!O78","v":0}]
["Form 1ASFS","Balance Sheet GEN/CON","1ASFS13i","Sundry Assets - Other 3",{"$f":"'Form 1ASFS'!E79","v":0},null,{"$f":"'Form 1ASFS'!G79","v":0},null,{"$f":"'Form 1ASFS'!M79","v":0},null,{"$f":"'Form 1ASFS'!O79","v":0}]
["Form 1ASFS","Balance Sheet GEN/CON","1ASFS14a","Letters of Credit",{"$f":"'Form 1ASFS'!E83","v":0},null,{"$f":"'Form 1ASFS'!G83","v":0},null,{"$f":"'Form 1ASFS'!M83","v":0},null,{"$f":"'Form 1ASFS'!O83","v":0}]
["Form 1ASFS","Balance Sheet GEN/CON","1ASFS14b","Guarantees",{"$f":"'Form 1ASFS'!E84","v":0},null,{"$f":"'Form 1ASFS'!G84","v":0},null,{"$f":"'Form 1ASFS'!M84","v":0},null,{"$f":"'Form 1ASFS'!O84","v":0}]
["Form 1ASFS","Balance Sheet GEN/CON","1ASFS14c","Other Instruments",{"$f":"'Form 1ASFS'!E85","v":0},null,{"$f":"'Form 1ASFS'!G85","v":0},null,{"$f":"'Form 1ASFS'!M85","v":0},null,{"$f":"'Form 1ASFS'!O85","v":0}]
["Form 1ASFS","Balance Sheet GEN/CON","1ASFS15","Total Assets",{"$f":"'Form 1ASFS'!E88","v":0},null,{"$f":"'Form 1ASFS'!G88","v":0},null,{"$f":"'Form 1ASFS'!M88","v":0},null,{"$f":"'Form 1ASFS'!O88","v":0}]
["Form 1ASFS","Balance Sheet GEN/CON","1ASFS17","General Business Insurance Contract Liabilities",{"$f":"'Form 1ASFS'!E94","v":0},null,{"$f":"'Form 1ASFS'!G94","v":0},null,{"$f":"'Form 1ASFS'!M94","v":0},null,{"$f":"'Form 1ASFS'!O94","v":0}]
["Form 1ASFS","Balance Sheet GEN/CON","1ASFS17A","General Business Reinsurance Contract Liabilities",{"$f":"'Form 1ASFS'!E96","v":0},null,{"$f":"'Form 1ASFS'!G96","v":0},null,{"$f":"'Form 1ASFS'!M96","v":0},null,{"$f":"'Form 1ASFS'!O96","v":0}]
["Form 1ASFS","Balance Sheet GEN/CON","1ASFS18","Investment Contracts with DPF Liabilities",{"$f":"'Form 1ASFS'!E98","v":0},null,{"$f":"'Form 1ASFS'!G98","v":0},null,{"$f":"'Form 1ASFS'!M98","v":0},null,{"$f":"'Form 1ASFS'!O98","v":0}]
["Form 1ASFS","Balance Sheet GEN/CON","1ASFS27","Long-Term Business Insurance Contract Liabilities",null,null,null,null,{"$f":"'Form 1ASFS'!M100","v":0},null,{"$f":"'Form 1ASFS'!O100","v":0}]
["Form 1ASFS","Balance Sheet GEN/CON","1ASFS27A","Long-Term Business Reinsurance Contract Liabilities",null,null,null,null,{"$f":"'Form 1ASFS'!M102","v":0},null,{"$f":"'Form 1ASFS'!O102","v":0}]
["Form 1ASFS","Balance Sheet GEN/CON","1ASFS29","Commissions, Expenses and Taxes Payable",{"$f":"'Form 1ASFS'!E106","v":0},null,{"$f":"'Form 1ASFS'!G106","v":0},null,{"$f":"'Form 1ASFS'!M106","v":0},null,{"$f":"'Form 1ASFS'!O106","v":0}]
["Form 1ASFS","Balance Sheet GEN/CON","1ASFS30","Loans and Notes Payable",{"$f":"'Form 1ASFS'!E108","v":0},null,{"$f":"'Form 1ASFS'!G108","v":0},null,{"$f":"'Form 1ASFS'!M108","v":0},null,{"$f":"'Form 1ASFS'!O108","v":0}]
["Form 1ASFS","Balance Sheet GEN/CON","1ASFS31a","Income Taxes Payable",{"$f":"'Form 1ASFS'!E110","v":0},null,{"$f":"'Form 1ASFS'!G110","v":0},null,{"$f":"'Form 1ASFS'!M110","v":0},null,{"$f":"'Form 1ASFS'!O110","v":0}]
["Form 1ASFS","Balance Sheet GEN/CON","1ASFS31b","Deferred Taxes Payable",{"$f":"'Form 1ASFS'!E112","v":0},null,{"$f":"'Form 1ASFS'!G112","v":0},null,{"$f":"'Form 1ASFS'!M112","v":0},null,{"$f":"'Form 1ASFS'!O112","v":0}]
["Form 1ASFS","Balance Sheet GEN/CON","1ASFS32","Amounts Due to Affiliates",{"$f":"'Form 1ASFS'!E114","v":0},null,{"$f":"'Form 1ASFS'!G114","v":0},null,{"$f":"'Form 1ASFS'!M114","v":0},null,{"$f":"'Form 1ASFS'!O114","v":0}]
["Form 1ASFS","Balance Sheet GEN/CON","1ASFS33","Accounts Payable and Accrued Liabilities",{"$f":"'Form 1ASFS'!E116","v":0},null,{"$f":"'Form 1ASFS'!G116","v":0},null,{"$f":"'Form 1ASFS'!M116","v":0},null,{"$f":"'Form 1ASFS'!O116","v":0}]
["Form 1ASFS","Balance Sheet GEN/CON","1ASFS35","Dividends Payable",{"$f":"'Form 1ASFS'!E118","v":0},null,{"$f":"'Form 1ASFS'!G118","v":0},null,{"$f":"'Form 1ASFS'!M118","v":0},null,{"$f":"'Form 1ASFS'!O118","v":0}]
["Form 1ASFS","Balance Sheet GEN/CON","1ASFS36a","Sundry Liabilities - Derivative Instruments",{"$f":"'Form 1ASFS'!E121","v":0},null,{"$f":"'Form 1ASFS'!G121","v":0},null,{"$f":"'Form 1ASFS'!M121","v":0},null,{"$f":"'Form 1ASFS'!O121","v":0}]
["Form 1ASFS","Balance Sheet GEN/CON","1ASFS36b","Sundry Liabilities - Seg. Accounts",{"$f":"'Form 1ASFS'!E122","v":0},null,{"$f":"'Form 1ASFS'!G122","v":0},null,{"$f":"'Form 1ASFS'!M122","v":0},null,{"$f":"'Form 1ASFS'!O122","v":0}]
["Form 1ASFS","Balance Sheet GEN/CON","1ASFS36c","Sundry Liabilities - Deposit Liabilities",{"$f":"'Form 1ASFS'!E123","v":0},null,{"$f":"'Form 1ASFS'!G123","v":0},null,{"$f":"'Form 1ASFS'!M123","v":0},null,{"$f":"'Form 1ASFS'!O123","v":0}]
["Form 1ASFS","Balance Sheet GEN/CON","1ASFS36d","Sundry Liabilities - Investments Purchased",{"$f":"'Form 1ASFS'!E124","v":0},null,{"$f":"'Form 1ASFS'!G124","v":0},null,{"$f":"'Form 1ASFS'!M124","v":0},null,{"$f":"'Form 1ASFS'!O124","v":0}]
["Form 1ASFS","Balance Sheet GEN/CON","1ASFS36e","Sundry Liabilities - Other 1",{"$f":"'Form 1ASFS'!E125","v":0},null,{"$f":"'Form 1ASFS'!G125","v":0},null,{"$f":"'Form 1ASFS'!M125","v":0},null,{"$f":"'Form 1ASFS'!O125","v":0}]
["Form 1ASFS","Balance Sheet GEN/CON","1ASFS36f","Sundry Liabilities - Other 2",{"$f":"'Form 1ASFS'!E126","v":0},null,{"$f":"'Form 1ASFS'!G126","v":0},null,{"$f":"'Form 1ASFS'!M126","v":0},null,{"$f":"'Form 1ASFS'!O126","v":0}]
["Form 1ASFS","Balance Sheet GEN/CON","1ASFS36g","Sundry Liabilities - Other 3",{"$f":"'Form 1ASFS'!E127","v":0},null,{"$f":"'Form 1ASFS'!G127","v":0},null,{"$f":"'Form 1ASFS'!M127","v":0},null,{"$f":"'Form 1ASFS'!O127","v":0}]
["Form 1ASFS","Balance Sheet GEN/CON","1ASFS37a","Letters of Credit",{"$f":"'Form 1ASFS'!E131","v":0},null,{"$f":"'Form 1ASFS'!G131","v":0},null,{"$f":"'Form 1ASFS'!M131","v":0},null,{"$f":"'Form 1ASFS'!O131","v":0}]
["Form 1ASFS","Balance Sheet GEN/CON","1ASFS37b","Guarantees",{"$f":"'Form 1ASFS'!E132","v":0},null,{"$f":"'Form 1ASFS'!G132","v":0},null,{"$f":"'Form 1ASFS'!M132","v":0},null,{"$f":"'Form 1ASFS'!O132","v":0}]
["Form 1ASFS","Balance Sheet GEN/CON","1ASFS37c","Other Instruments",{"$f":"'Form 1ASFS'!E133","v":0},null,{"$f":"'Form 1ASFS'!G133","v":0},null,{"$f":"'Form 1ASFS'!M133","v":0},null,{"$f":"'Form 1ASFS'!O133","v":0}]
[]
["Form 1ASFS","Balance Sheet LT","1ASFS1","Cash and Cash Equivalents",{"$f":"'Form 1ASFS'!I10","v":0},null,{"$f":"'Form 1ASFS'!K10","v":0}]
["Form 1ASFS","Balance Sheet LT","1ASFS2ai","Quoted - Bonds - Held to Maturity",{"$f":"'Form 1ASFS'!I14","v":0},null,{"$f":"'Form 1ASFS'!K14","v":0}]
["Form 1ASFS","Balance Sheet LT","1ASFS2aii","Quoted - Bonds - Other",{"$f":"'Form 1ASFS'!I15","v":0},null,{"$f":"'Form 1ASFS'!K15","v":0}]
["Form 1ASFS","Balance Sheet LT","1ASFS2ci","Quoted - Equities - Common Stocks",{"$f":"'Form 1ASFS'!I18","v":0},null,{"$f":"'Form 1ASFS'!K18","v":0}]
["Form 1ASFS","Balance Sheet LT","1ASFS2cii","Quoted - Equities - Preferred Stocks",{"$f":"'Form 1ASFS'!I19","v":0},null,{"$f":"'Form 1ASFS'!K19","v":0}]
["Form 1ASFS","Balance Sheet LT","1ASFS2ciii","Quoted - Equities - Mutual Funds",{"$f":"'Form 1ASFS'!I20","v":0},null,{"$f":"'Form 1ASFS'!K20","v":0}]
["Form 1ASFS","Balance Sheet LT","1ASFS2e","Quoted - Other Investments",{"$f":"'Form 1ASFS'!I22","v":0},null,{"$f":"'Form 1ASFS'!K22","v":0}]
["Form 1ASFS","Balance Sheet LT","1ASFS3ai","Unquoted - Bonds - Held to Maturity",{"$f":"'Form 1ASFS'!I27","v":0},null,{"$f":"'Form 1ASFS'!K27","v":0}]
["Form 1ASFS","Balance Sheet LT","1ASFS3aii","Unquoted - Bonds - Other",{"$f":"'Form 1ASFS'!I28","v":0},null,{"$f":"'Form 1ASFS'!K28","v":0}]
["Form 1ASFS","Balance Sheet LT","1ASFS3ci","Unquoted - Equities - Common Stocks",{"$f":"'Form 1ASFS'!I31","v":0},null,{"$f":"'Form 1ASFS'!K31","v":0}]
["Form 1ASFS","Balance Sheet LT","1ASFS3cii","Unquoted - Equities - Preferred Stocks",{"$f":"'Form 1ASFS'!I32","v":0},null,{"$f":"'Form 1ASFS'!K32","v":0}]
["Form 1ASFS","Balance Sheet LT","1ASFS3ciii","Unquoted - Equities - Mutual Funds",{"$f":"'Form 1ASFS'!I33","v":0},null,{"$f":"'Form 1ASFS'!K33","v":0}]
["Form 1ASFS","Balance Sheet LT","1ASFS3e","Unquoted - Other Investments",{"$f":"'Form 1ASFS'!I35","v":0},null,{"$f":"'Form 1ASFS'!K35","v":0}]
["Form 1ASFS","Balance Sheet LT","1ASFS4a","Inv. In Affiliates - Unregulated Ancillary",{"$f":"'Form 1ASFS'!I39","v":0},null,{"$f":"'Form 1ASFS'!K39","v":0}]
["Form 1ASFS","Balance Sheet LT","1ASFS4b","Inv. In Affiliates - Unregulated Non-Fin. Oper.",{"$f":"'Form 1ASFS'!I40","v":0},null,{"$f":"'Form 1ASFS'!K40","v":0}]
["Form 1ASFS","Balance Sheet LT","1ASFS4c","Inv. In Affiliates - Unregulated Fin. Operating",{"$f":"'Form 1ASFS'!I41","v":0},null,{"$f":"'Form 1ASFS'!K41","v":0}]
["Form 1ASFS","Balance Sheet LT","1ASFS4d","Inv. In Affiliates - Regulated Non-Insurance",{"$f":"'Form 1ASFS'!I42","v":0},null,{"$f":"'Form 1ASFS'!K42","v":0}]
["Form 1ASFS","Balance Sheet LT","1ASFS4e","Inv. In Affiliates - Regulated Insurance",{"$f":"'Form 1ASFS'!I43","v":0},null,{"$f":"'Form 1ASFS'!K43","v":0}]
["Form 1ASFS","Balance Sheet LT","1ASFS4g","Advances To Affiliates",{"$f":"'Form 1ASFS'!I45","v":0},null,{"$f":"'Form 1ASFS'!K45","v":0}]
["Form 1ASFS","Balance Sheet LT","1ASFS5a","Inv. In Mortg. Loans on Real Estate - 1st Lien",{"$f":"'Form 1ASFS'!I49","v":0},null,{"$f":"'Form 1ASFS'!K49","v":0}]
["Form 1ASFS","Balance Sheet LT","1ASFS5b","Inv. In Mortg. Loans on Real Estate - Other",{"$f":"'Form 1ASFS'!I50","v":0},null,{"$f":"'Form 1ASFS'!K50","v":0}]
["Form 1ASFS","Balance Sheet LT","1ASFS7a","Real Estate - Occupied by Company",{"$f":"'Form 1ASFS'!I54","v":0},null,{"$f":"'Form 1ASFS'!K54","v":0}]
["Form 1ASFS","Balance Sheet LT","1ASFS7b","Real Estate - Other",{"$f":"'Form 1ASFS'!I55","v":0},null,{"$f":"'Form 1ASFS'!K55","v":0}]
["Form 1ASFS","Balance Sheet LT","1ASFS8","Collateral Loans",{"$f":"'Form 1ASFS'!I58","v":0},null,{"$f":"'Form 1ASFS'!K58","v":0}]
["Form 1ASFS","Balance Sheet LT","1ASFS9","Investment Income Due and Accrued",{"$f":"'Form 1ASFS'!I60","v":0},null,{"$f":"'Form 1ASFS'!K60","v":0}]
["Form 1ASFS","Balance Sheet LT","1ASFS10","Accounts Receivable",{"$f":"'Form 1ASFS'!I62","v":0},null,{"$f":"'Form 1ASFS'!K62","v":0}]
["Form 1ASFS","Balance Sheet LT","1ASFS11a","Insurance Contract Assets",{"$f":"'Form 1ASFS'!I65","v":0},null,{"$f":"'Form 1ASFS'!K65","v":0}]
["Form 1ASFS","Balance Sheet LT","1ASFS11b","Reinsurance Contract Assets",{"$f":"'Form 1ASFS'!I66","v":0},null,{"$f":"'Form 1ASFS'!K66","v":0}]
["Form 1ASFS","Balance Sheet LT","1ASFS11c","Investment Contracts with DPF Assets",{"$f":"'Form 1ASFS'!I67","v":0},null,{"$f":"'Form 1ASFS'!K67","v":0}]
["Form 1ASFS","Balance Sheet LT","1ASFS13a","Sundry Assets - Derivatives",{"$f":"'Form 1ASFS'!I71","v":0},null,{"$f":"'Form 1ASFS'!K71","v":0}]
["Form 1ASFS","Balance Sheet LT","1ASFS13b","Sundry Assets - SAC - LT- Variable Annuities",{"$f":"'Form 1ASFS'!I72","v":0},null,{"$f":"'Form 1ASFS'!K72","v":0}]
["Form 1ASFS","Balance Sheet LT","1ASFS13c","Sundry Assets - SAC - LT- Others",{"$f":"'Form 1ASFS'!I73","v":0},null,{"$f":"'Form 1ASFS'!K73","v":0}]
["Form 1ASFS","Balance Sheet LT","1ASFS13e","Sundry Assets - Deposit Assets",{"$f":"'Form 1ASFS'!I75","v":0},null,{"$f":"'Form 1ASFS'!K75","v":0}]
["Form 1ASFS","Balance Sheet LT","1ASFS13f","Sundry Assets - Net Rec. for Investments",{"$f":"'Form 1ASFS'!I76","v":0},null,{"$f":"'Form 1ASFS'!K76","v":0}]
["Form 1ASFS","Balance Sheet LT","1ASFS13g","Sundry Assets - Other 1",{"$f":"'Form 1ASFS'!I77","v":0},null,{"$f":"'Form 1ASFS'!K77","v":0}]
["Form 1ASFS","Balance Sheet LT","1ASFS13h","Sundry Assets - Other 2",{"$f":"'Form 1ASFS'!I78","v":0},null,{"$f":"'Form 1ASFS'!K78","v":0}]
["Form 1ASFS","Balance Sheet LT","1ASFS13i","Sundry Assets - Other 3",{"$f":"'Form 1ASFS'!I79","v":0},null,{"$f":"'Form 1ASFS'!K79","v":0}]
["Form 1ASFS","Balance Sheet LT","1ASFS14a","Letters of Credit",{"$f":"'Form 1ASFS'!I83","v":0},null,{"$f":"'Form 1ASFS'!K83","v":0}]
["Form 1ASFS","Balance Sheet LT","1ASFS14b","Guarantees",{"$f":"'Form 1ASFS'!I84","v":0},null,{"$f":"'Form 1ASFS'!K84","v":0}]
["Form 1ASFS","Balance Sheet LT","1ASFS14c","Other Instruments",{"$f":"'Form 1ASFS'!I85","v":0},null,{"$f":"'Form 1ASFS'!K85","v":0}]
["Form 1ASFS","Balance Sheet LT","1ASFS15","Total Assets",{"$f":"'Form 1ASFS'!I88","v":0},null,{"$f":"'Form 1ASFS'!K88","v":0}]
["Form 1ASFS","Balance Sheet LT","1ASFS18","Investment Contracts with DPF Liabilities",{"$f":"'Form 1ASFS'!I98","v":0},null,{"$f":"'Form 1ASFS'!K98","v":0}]
["Form 1ASFS","Balance Sheet LT","1ASFS27","Long-Term Business Insurance Contract Liabilities",{"$f":"'Form 1ASFS'!I100","v":0},null,{"$f":"'Form 1ASFS'!K100","v":0}]
["Form 1ASFS","Balance Sheet LT","1ASFS27A","Long-Term Business Reinsurance Contract Liabilities",{"$f":"'Form 1ASFS'!I102","v":0},null,{"$f":"'Form 1ASFS'!K102","v":0}]
["Form 1ASFS","Balance Sheet LT","1ASFS29","Commissions, Expenses and Taxes Payable",{"$f":"'Form 1ASFS'!I106","v":0},null,{"$f":"'Form 1ASFS'!K106","v":0}]
["Form 1ASFS","Balance Sheet LT","1ASFS30","Loans and Notes Payable",{"$f":"'Form 1ASFS'!I108","v":0},null,{"$f":"'Form 1ASFS'!K108","v":0}]
["Form 1ASFS","Balance Sheet LT","1ASFS31a","Income Taxes Payable",{"$f":"'Form 1ASFS'!I110","v":0},null,{"$f":"'Form 1ASFS'!K110","v":0}]
["Form 1ASFS","Balance Sheet LT","1ASFS31b","Deferred Taxes Payable",{"$f":"'Form 1ASFS'!I112","v":0},null,{"$f":"'Form 1ASFS'!K112","v":0}]
["Form 1ASFS","Balance Sheet LT","1ASFS32","Amounts Due to Affiliates",{"$f":"'Form 1ASFS'!I114","v":0},null,{"$f":"'Form 1ASFS'!K114","v":0}]
["Form 1ASFS","Balance Sheet LT","1ASFS33","Accounts Payable and Accrued Liabilities",{"$f":"'Form 1ASFS'!I116","v":0},null,{"$f":"'Form 1ASFS'!K116","v":0}]
["Form 1ASFS","Balance Sheet LT","1ASFS35","Dividends Payable",{"$f":"'Form 1ASFS'!I118","v":0},null,{"$f":"'Form 1ASFS'!K118","v":0}]
["Form 1ASFS","Balance Sheet LT","1ASFS36a","Sundry Liabilities - Derivative Instruments",{"$f":"'Form 1ASFS'!I121","v":0},null,{"$f":"'Form 1ASFS'!K121","v":0}]
["Form 1ASFS","Balance Sheet LT","1ASFS36b","Sundry Liabilities - Segregated Accounts",{"$f":"'Form 1ASFS'!I122","v":0},null,{"$f":"'Form 1ASFS'!K122","v":0}]
["Form 1ASFS","Balance Sheet LT","1ASFS36c","Sundry Liabilities - Deposit Liabilities",{"$f":"'Form 1ASFS'!I123","v":0},null,{"$f":"'Form 1ASFS'!K123","v":0}]
["Form 1ASFS","Balance Sheet LT","1ASFS36d","Sundry Liabilities - Investments Purchased",{"$f":"'Form 1ASFS'!I124","v":0},null,{"$f":"'Form 1ASFS'!K124","v":0}]
["Form 1ASFS","Balance Sheet LT","1ASFS36e","Sundry Liabilities - Other 1",{"$f":"'Form 1ASFS'!I125","v":0},null,{"$f":"'Form 1ASFS'!K125","v":0}]
["Form 1ASFS","Balance Sheet LT","1ASFS36f","Sundry Liabilities - Other 2",{"$f":"'Form 1ASFS'!I126","v":0},null,{"$f":"'Form 1ASFS'!K126","v":0}]
["Form 1ASFS","Balance Sheet LT","1ASFS36g","Sundry Liabilities - Other 3",{"$f":"'Form 1ASFS'!I127","v":0},null,{"$f":"'Form 1ASFS'!K127","v":0}]
["Form 1ASFS","Balance Sheet LT","1ASFS37a","Letters of Credit",{"$f":"'Form 1ASFS'!I131","v":0},null,{"$f":"'Form 1ASFS'!K131","v":0}]
["Form 1ASFS","Balance Sheet LT","1ASFS37b","Guarantees",{"$f":"'Form 1ASFS'!I132","v":0},null,{"$f":"'Form 1ASFS'!K132","v":0}]
["Form 1ASFS","Balance Sheet LT","1ASFS37c","Other Instruments",{"$f":"'Form 1ASFS'!I133","v":0},null,{"$f":"'Form 1ASFS'!K133","v":0}]
[]
["Form 1ASFS","Form 1ASFS","Form 1ASFS","Premium Receivable - in course of collection",null,null,null,null,{"$f":"'Form 1ASFS'!M155","v":0},null,{"$f":"'Form 1ASFS'!O155","v":0}]
["Form 1ASFS","Form 1ASFS","Form 1ASFS","Premium Receivable - Deferred not yet due",null,null,null,null,{"$f":"'Form 1ASFS'!M156","v":0},null,{"$f":"'Form 1ASFS'!O156","v":0}]
["Form 1ASFS","Form 1ASFS","Form 1ASFS","Premium Receivable - receivable from retrocessional contracts",null,null,null,null,{"$f":"'Form 1ASFS'!M157","v":0},null,{"$f":"'Form 1ASFS'!O157","v":0}]
["Form 1ASFS","Form 1ASFS","Form 1ASFS","Premium Receivable - Total",null,null,null,null,{"$f":"'Form 1ASFS'!M158","v":0},null,{"$f":"'Form 1ASFS'!O158","v":0}]
["Form 1ASFS","Form 1ASFS","Form 1ASFS","Reinsurance Balances Receivable",null,null,null,null,{"$f":"'Form 1ASFS'!M160","v":0},null,{"$f":"'Form 1ASFS'!O160","v":0}]
["Form 1ASFS","Form 1ASFS","Form 1ASFS","Funds Held by Ceding Reinsurers",null,null,null,null,{"$f":"'Form 1ASFS'!M162","v":0},null,{"$f":"'Form 1ASFS'!O162","v":0}]
["Form 1ASFS","Form 1ASFS","Form 1ASFS","Line 10 - Collaterized Balances",null,null,null,null,{"$f":"'Form 1ASFS'!M164","v":0},null,{"$f":"'Form 1ASFS'!O164","v":0}]
["Form 1ASFS","Form 1ASFS","Form 1ASFS","Line 13(a) Natue of Sundry Assets",null,null,null,null,{"$f":"'Form 1ASFS'!M167","v":0}]
["Form 1ASFS","Form 1ASFS","Form 1ASFS","Line 13(b)(i) Description of Derivatives policies",null,null,null,null,{"$f":"'Form 1ASFS'!M168","v":0}]
["Form 1ASFS","Form 1ASFS","Form 1ASFS","Line 13(b)(ii) MV and Nominal Exposure of derivatives",null,null,null,null,{"$f":"'Form 1ASFS'!M169","v":0}]
["Form 1ASFS","Notes","Form 1ASFS","Line 15 - Policy. Oblig. - Cash",null,null,null,null,{"$f":"'Form 1ASFS'!M174","v":0},null,{"$f":"'Form 1ASFS'!O174","v":0}]
["Form 1ASFS","Notes","Form 1ASFS","Line 15 - Policy. Oblig. - Quoted. Inv.",null,null,null,null,{"$f":"'Form 1ASFS'!M175","v":0},null,{"$f":"'Form 1ASFS'!O175","v":0}]
["Form 1ASFS","Notes","Form 1ASFS","Line 15 - Policy. Oblig. - Unquoted. Inv.",null,null,null,null,{"$f":"'Form 1ASFS'!M176","v":0},null,{"$f":"'Form 1ASFS'!O176","v":0}]
["Form 1ASFS","Notes","Form 1ASFS","Line 15 - Policy. Oblig. - Other Assets",null,null,null,null,{"$f":"'Form 1ASFS'!M178","v":0},null,{"$f":"'Form 1ASFS'!O178","v":0}]
["Form 1ASFS","Notes","Form 1ASFS","Line 15 - Policy. Oblig. - Total",null,null,null,null,{"$f":"'Form 1ASFS'!M179","v":0},null,{"$f":"'Form 1ASFS'!O179","v":0}]
["Form 1ASFS","Notes","Form 1ASFS","Line 15 - Other - Cash",null,null,null,null,{"$f":"'Form 1ASFS'!M184","v":0},null,{"$f":"'Form 1ASFS'!O184","v":0}]
["Form 1ASFS","Notes","Form 1ASFS","Line 15 - Other - Quoted. Inv.",null,null,null,null,{"$f":"'Form 1ASFS'!M185","v":0},null,{"$f":"'Form 1ASFS'!O185","v":0}]
["Form 1ASFS","Notes","Form 1ASFS","Line 15 - Other - Unquoted. Inv.",null,null,null,null,{"$f":"'Form 1ASFS'!M186","v":0},null,{"$f":"'Form 1ASFS'!O186","v":0}]
["Form 1ASFS","Notes","Form 1ASFS","Line 15 - Other - Other Assets",null,null,null,null,{"$f":"'Form 1ASFS'!M187","v":0},null,{"$f":"'Form 1ASFS'!O187","v":0}]
["Form 1ASFS","Notes","Form 1ASFS","Line 15 - Other - Total",null,null,null,null,{"$f":"'Form 1ASFS'!M188","v":0},null,{"$f":"'Form 1ASFS'!O188","v":0}]
["Form 1ASFS","Notes","Form 1ASFS","Line 36(a) Natue of Sundry Liabilities",null,null,null,null,{"$f":"'Form 1ASFS'!M191","v":0}]
["Form 1ASFS","Notes","Form 1ASFS","Line 13(b)(i) Description of Derivatives policies",null,null,null,null,{"$f":"'Form 1ASFS'!M192","v":0}]
["Form 1ASFS","Notes","Form 1ASFS","Line 13(b)(ii) MV and Nominal Exposure of derivatives",null,null,null,null,{"$f":"'Form 1ASFS'!M193","v":0}]
["Form 1ASFS","Notes","Form 1ASFS","Line 37 - LOC's & Guarantees",null,null,null,null,{"$f":"'Form 1ASFS'!M195","v":0},null,{"$f":"'Form 1ASFS'!O195","v":0}]
["Form 1ASFS","Notes","Form 1ASFS","L17 - PAA Exc. Loss Comp - Open Assets",null,null,null,null,{"$f":"'Form 1ASFS'!E201","v":0}]
["Form 1ASFS","Notes","Form 1ASFS","L17 - PAA Exc. Loss Comp - Open Liabilities",null,null,null,null,{"$f":"'Form 1ASFS'!E202","v":0}]
["Form 1ASFS","Notes","Form 1ASFS","L17 - PAA Exc. Loss Comp - Net Open",null,null,null,null,{"$f":"'Form 1ASFS'!E203","v":0}]
["Form 1ASFS","Notes","Form 1ASFS","L17 - PAA Exc. Loss Comp - Insurance Revenue",null,null,null,null,{"$f":"'Form 1ASFS'!E207","v":0}]
["Form 1ASFS","Notes","Form 1ASFS","L17 - PAA Exc. Loss Comp - Amort. Cash Flows",null,null,null,null,{"$f":"'Form 1ASFS'!E210","v":0}]
["Form 1ASFS","Notes","Form 1ASFS","L17 - PAA Exc. Loss Comp - Incurred Claims",null,null,null,null,{"$f":"'Form 1ASFS'!E211","v":0}]
["Form 1ASFS","Notes","Form 1ASFS","L17 - PAA Exc. Loss Comp - Losses on enerous contracts",null,null,null,null,{"$f":"'Form 1ASFS'!E212","v":0}]
["Form 1ASFS","Notes","Form 1ASFS","L17 - PAA Exc. Loss Comp - Adj to Liabilities for Incurred Claims",null,null,null,null,{"$f":"'Form 1ASFS'!E213","v":0}]
["Form 1ASFS","Notes","Form 1ASFS","L17 - PAA Exc. Loss Comp - Total Insurance Service Expenses",null,null,null,null,{"$f":"'Form 1ASFS'!E214","v":0}]
["Form 1ASFS","Notes","Form 1ASFS","L17 - PAA Exc. Loss Comp - Investment Components",null,null,null,null,{"$f":"'Form 1ASFS'!E216","v":0}]
["Form 1ASFS","Notes","Form 1ASFS","L17 - PAA Exc. Loss Comp - Insurance Service Results",null,null,null,null,{"$f":"'Form 1ASFS'!E217","v":0}]
["Form 1ASFS","Notes","Form 1ASFS","L17 - PAA Exc. Loss Comp - Net finance expenses",null,null,null,null,{"$f":"'Form 1ASFS'!E219","v":0}]
["Form 1ASFS","Notes","Form 1ASFS","L17 - PAA Exc. Loss Comp - Foreign Exchange",null,null,null,null,{"$f":"'Form 1ASFS'!E220","v":0}]
["Form 1ASFS","Notes","Form 1ASFS","L17 - PAA Exc. Loss Comp - Change in Profit or Loss",null,null,null,null,{"$f":"'Form 1ASFS'!E221","v":0}]
["Form 1ASFS","Notes","Form 1ASFS","L17 - PAA Exc. Loss Comp - CF Premium Received",null,null,null,null,{"$f":"'Form 1ASFS'!E224","v":0}]
["Form 1ASFS","Notes","Form 1ASFS","L17 - PAA Exc. Loss Comp - CF Insurance Acquisition",null,null,null,null,{"$f":"'Form 1ASFS'!E225","v":0}]
["Form 1ASFS","Notes","Form 1ASFS","L17 - PAA Exc. Loss Comp - CF Claims Paid",null,null,null,null,{"$f":"'Form 1ASFS'!E226","v":0}]
["Form 1ASFS","Notes","Form 1ASFS","L17 - PAA Exc. Loss Comp - Total CF",null,null,null,null,{"$f":"'Form 1ASFS'!E227","v":0}]
["Form 1ASFS","Notes","Form 1ASFS","L17 - PAA Exc. Loss Comp - Contracts Trans. Acquisition Sub.",null,null,null,null,{"$f":"'Form 1ASFS'!E228","v":0}]
["Form 1ASFS","Notes","Form 1ASFS","L17 - PAA Exc. Loss Comp - Contracts Trans. Disposal Sub.",null,null,null,null,{"$f":"'Form 1ASFS'!E229","v":0}]
["Form 1ASFS","Notes","Form 1ASFS","L17 - PAA Exc. Loss Comp - Net Closing Balance",null,null,null,null,{"$f":"'Form 1ASFS'!E230","v":0}]
["Form 1ASFS","Notes","Form 1ASFS","L17 - PAA Exc. Loss Comp - Closing Assets",null,null,null,null,{"$f":"'Form 1ASFS'!E232","v":0}]
["Form 1ASFS","Notes","Form 1ASFS","L17 - PAA Exc. Loss Comp - Closing Liabilities",null,null,null,null,{"$f":"'Form 1ASFS'!E233","v":0}]
["Form 1ASFS","Notes","Form 1ASFS","L17 - PAA Exc. Loss Comp - Net Closing Balance",null,null,null,null,{"$f":"'Form 1ASFS'!E234","v":0}]
["Form 1ASFS","Notes","Form 1ASFS","L17 - PAA Loss Comp - Open Assets",null,null,null,null,{"$f":"'Form 1ASFS'!G201","v":0}]
["Form 1ASFS","Notes","Form 1ASFS","L17 - PAA Loss Comp - Open Liabilities",null,null,null,null,{"$f":"'Form 1ASFS'!G202","v":0}]
["Form 1ASFS","Notes","Form 1ASFS","L17 - PAA Loss Comp - Net Open",null,null,null,null,{"$f":"'Form 1ASFS'!G203","v":0}]
["Form 1ASFS","Notes","Form 1ASFS","L17 - PAA Loss Comp - Insurance Revenue",null,null,null,null,{"$f":"'Form 1ASFS'!G207","v":0}]
["Form 1ASFS","Notes","Form 1ASFS","L17 - PAA Loss Comp - Amort. Cash Flows",null,null,null,null,{"$f":"'Form 1ASFS'!G210","v":0}]
["Form 1ASFS","Notes","Form 1ASFS","L17 - PAA Loss Comp - Incurred Claims",null,null,null,null,{"$f":"'Form 1ASFS'!G211","v":0}]
["Form 1ASFS","Notes","Form 1ASFS","L17 - PAA Loss Comp - Losses on enerous contracts",null,null,null,null,{"$f":"'Form 1ASFS'!G212","v":0}]
["Form 1ASFS","Notes","Form 1ASFS","L17 - PAA Loss Comp - Adj to Liabilities for Incurred Claims",null,null,null,null,{"$f":"'Form 1ASFS'!G213","v":0}]
["Form 1ASFS","Notes","Form 1ASFS","L17 - PAA Loss Comp - Total Insurance Service Expenses",null,null,null,null,{"$f":"'Form 1ASFS'!G214","v":0}]
["Form 1ASFS","Notes","Form 1ASFS","L17 - PAA Loss Comp - Investment Components",null,null,null,null,{"$f":"'Form 1ASFS'!G216","v":0}]
["Form 1ASFS","Notes","Form 1ASFS","L17 - PAA Loss Comp - Insurance Service Results",null,null,null,null,{"$f":"'Form 1ASFS'!G217","v":0}]
["Form 1ASFS","Notes","Form 1ASFS","L17 - PAA Loss Comp - Net finance expenses",null,null,null,null,{"$f":"'Form 1ASFS'!G219","v":0}]
["Form 1ASFS","Notes","Form 1ASFS","L17 - PAA Loss Comp - Foreign Exchange",null,null,null,null,{"$f":"'Form 1ASFS'!G220","v":0}]
["Form 1ASFS","Notes","Form 1ASFS","L17 - PAA Loss Comp - Change in Profit or Loss",null,null,null,null,{"$f":"'Form 1ASFS'!G221","v":0}]
["Form 1ASFS","Notes","Form 1ASFS","L17 - PAA Loss Comp - CF Premium Received",null,null,null,null,{"$f":"'Form 1ASFS'!G224","v":0}]
["Form 1ASFS","Notes","Form 1ASFS","L17 - PAA Loss Comp - CF Insurance Acquisition",null,null,null,null,{"$f":"'Form 1ASFS'!G225","v":0}]
["Form 1ASFS","Notes","Form 1ASFS","L17 - PAA Loss Comp - CF Claims Paid",null,null,null,null,{"$f":"'Form 1ASFS'!G226","v":0}]
["Form 1ASFS","Notes","Form 1ASFS","L17 - PAA Loss Comp - Total CF",null,null,null,null,{"$f":"'Form 1ASFS'!G227","v":0}]
["Form 1ASFS","Notes","Form 1ASFS","L17 - PAA Loss Comp - Contracts Trans. Acquisition Sub.",null,null,null,null,{"$f":"'Form 1ASFS'!G228","v":0}]
["Form 1ASFS","Notes","Form 1ASFS","L17 - PAA Loss Comp - Contracts Trans. Disposal Sub.",null,null,null,null,{"$f":"'Form 1ASFS'!G229","v":0}]
["Form 1ASFS","Notes","Form 1ASFS","L17 - PAA Loss Comp - Net Closing Balance",null,null,null,null,{"$f":"'Form 1ASFS'!G230","v":0}]
["Form 1ASFS","Notes","Form 1ASFS","L17 - PAA Loss Comp - Closing Assets",null,null,null,null,{"$f":"'Form 1ASFS'!G232","v":0}]
["Form 1ASFS","Notes","Form 1ASFS","L17 - PAA Loss Comp - Closing Liabilities",null,null,null,null,{"$f":"'Form 1ASFS'!G233","v":0}]
["Form 1ASFS","Notes","Form 1ASFS","L17 - PAA Loss Comp - Net Closing Balance",null,null,null,null,{"$f":"'Form 1ASFS'!G234","v":0}]
["Form 1ASFS","Notes","Form 1ASFS","L17 - GMM Liab. for Incurred - Open Assets",null,null,null,null,{"$f":"'Form 1ASFS'!I201","v":0}]
["Form 1ASFS","Notes","Form 1ASFS","L17 - GMM Liab. for Incurred - Open Liabilities",null,null,null,null,{"$f":"'Form 1ASFS'!I202","v":0}]
["Form 1ASFS","Notes","Form 1ASFS","L17 - GMM Liab. for Incurred - Net Open",null,null,null,null,{"$f":"'Form 1ASFS'!I203","v":0}]
["Form 1ASFS","Notes","Form 1ASFS","L17 - GMM Liab. for Incurred - Insurance Revenue",null,null,null,null,{"$f":"'Form 1ASFS'!I207","v":0}]
["Form 1ASFS","Notes","Form 1ASFS","L17 - GMM Liab. for Incurred - Amort. Cash Flows",null,null,null,null,{"$f":"'Form 1ASFS'!I210","v":0}]
["Form 1ASFS","Notes","Form 1ASFS","L17 - GMM Liab. for Incurred - Incurred Claims",null,null,null,null,{"$f":"'Form 1ASFS'!I211","v":0}]
["Form 1ASFS","Notes","Form 1ASFS","L17 - GMM Liab. for Incurred - Losses on enerous contracts",null,null,null,null,{"$f":"'Form 1ASFS'!I212","v":0}]
["Form 1ASFS","Notes","Form 1ASFS","L17 - GMM Liab. for Incurred - Adj to Liabilities for Incurred Claims",null,null,null,null,{"$f":"'Form 1ASFS'!I213","v":0}]
["Form 1ASFS","Notes","Form 1ASFS","L17 - GMM Liab. for Incurred - Total Insurance Service Expenses",null,null,null,null,{"$f":"'Form 1ASFS'!I214","v":0}]
["Form 1ASFS","Notes","Form 1ASFS","L17 - GMM Liab. for Incurred - Investment Components",null,null,null,null,{"$f":"'Form 1ASFS'!I216","v":0}]
["Form 1ASFS","Notes","Form 1ASFS","L17 - GMM Liab. for Incurred - Insurance Service Results",null,null,null,null,{"$f":"'Form 1ASFS'!I217","v":0}]
["Form 1ASFS","Notes","Form 1ASFS","L17 - GMM Liab. for Incurred - Net finance expenses",null,null,null,null,{"$f":"'Form 1ASFS'!I219","v":0}]
["Form 1ASFS","Notes","Form 1ASFS","L17 - GMM Liab. for Incurred - Foreign Exchange",null,null,null,null,{"$f":"'Form 1ASFS'!I220","v":0}]
["Form 1ASFS","Notes","Form 1ASFS","L17 - GMM Liab. for Incurred - Change in Profit or Loss",null,null,null,null,{"$f":"'Form 1ASFS'!I221","v":0}]
["Form 1ASFS","Notes","Form 1ASFS","L17 - GMM Liab. for Incurred - CF Premium Received",null,null,null,null,{"$f":"'Form 1ASFS'!I224","v":0}]
["Form 1ASFS","Notes","Form 1ASFS","L17 - GMM Liab. for Incurred - CF Insurance Acquisition",null,null,null,null,{"$f":"'Form 1ASFS'!I225","v":0}]
["Form 1ASFS","Notes","Form 1ASFS","L17 - GMM Liab. for Incurred - CF Claims Paid",null,null,null,null,{"$f":"'Form 1ASFS'!I226","v":0}]
["Form 1ASFS","Notes","Form 1ASFS","L17 - GMM Liab. for Incurred - Total CF",null,null,null,null,{"$f":"'Form 1ASFS'!I227","v":0}]
["Form 1ASFS","Notes","Form 1ASFS","L17 - GMM Liab. for Incurred - Contracts Trans. Acquisition Sub.",null,null,null,null,{"$f":"'Form 1ASFS'!I228","v":0}]
["Form 1ASFS","Notes","Form 1ASFS","L17 - GMM Liab. for Incurred - Contracts Trans. Disposal Sub.",null,null,null,null,{"$f":"'Form 1ASFS'!I229","v":0}]
["Form 1ASFS","Notes","Form 1ASFS","L17 - GMM Liab. for Incurred - Net Closing Balance",null,null,null,null,{"$f":"'Form 1ASFS'!I230","v":0}]
["Form 1ASFS","Notes","Form 1ASFS","L17 - GMM Liab. for Incurred - Closing Assets",null,null,null,null,{"$f":"'Form 1ASFS'!I232","v":0}]
["Form 1ASFS","Notes","Form 1ASFS","L17 - GMM Liab. for Incurred - Closing Liabilities",null,null,null,null,{"$f":"'Form 1ASFS'!I233","v":0}]
["Form 1ASFS","Notes","Form 1ASFS","L17 - GMM Liab. for Incurred - Net Closing Balance",null,null,null,null,{"$f":"'Form 1ASFS'!I234","v":0}]
["Form 1ASFS","Notes","Form 1ASFS","L17 - GMM PV Cash Flow - Open Assets",null,null,null,null,{"$f":"'Form 1ASFS'!K201","v":0}]
["Form 1ASFS","Notes","Form 1ASFS","L17 - GMM PV Cash Flow - Open Liabilities",null,null,null,null,{"$f":"'Form 1ASFS'!K202","v":0}]
["Form 1ASFS","Notes","Form 1ASFS","L17 - GMM PV Cash Flow - Net Open",null,null,null,null,{"$f":"'Form 1ASFS'!K203","v":0}]
["Form 1ASFS","Notes","Form 1ASFS","L17 - GMM PV Cash Flow - Insurance Revenue",null,null,null,null,{"$f":"'Form 1ASFS'!K207","v":0}]
["Form 1ASFS","Notes","Form 1ASFS","L17 - GMM PV Cash Flow - Amort. Cash Flows",null,null,null,null,{"$f":"'Form 1ASFS'!K210","v":0}]
["Form 1ASFS","Notes","Form 1ASFS","L17 - GMM PV Cash Flow - Incurred Claims",null,null,null,null,{"$f":"'Form 1ASFS'!K211","v":0}]
["Form 1ASFS","Notes","Form 1ASFS","L17 - GMM PV Cash Flow - Losses on enerous contracts",null,null,null,null,{"$f":"'Form 1ASFS'!K212","v":0}]
["Form 1ASFS","Notes","Form 1ASFS","L17 - GMM PV Cash Flow - Adj to Liabilities for Incurred Claims",null,null,null,null,{"$f":"'Form 1ASFS'!K213","v":0}]
["Form 1ASFS","Notes","Form 1ASFS","L17 - GMM PV Cash Flow - Total Insurance Service Expenses",null,null,null,null,{"$f":"'Form 1ASFS'!K214","v":0}]
["Form 1ASFS","Notes","Form 1ASFS","L17 - GMM PV Cash Flow - Investment Components",null,null,null,null,{"$f":"'Form 1ASFS'!K216","v":0}]
["Form 1ASFS","Notes","Form 1ASFS","L17 - GMM PV Cash Flow - Insurance Service Results",null,null,null,null,{"$f":"'Form 1ASFS'!K217","v":0}]
["Form 1ASFS","Notes","Form 1ASFS","L17 - GMM PV Cash Flow - Net finance expenses",null,null,null,null,{"$f":"'Form 1ASFS'!K219","v":0}]
["Form 1ASFS","Notes","Form 1ASFS","L17 - GMM PV Cash Flow - Foreign Exchange",null,null,null,null,{"$f":"'Form 1ASFS'!K220","v":0}]
["Form 1ASFS","Notes","Form 1ASFS","L17 - GMM PV Cash Flow - Change in Profit or Loss",null,null,null,null,{"$f":"'Form 1ASFS'!K221","v":0}]
["Form 1ASFS","Notes","Form 1ASFS","L17 - GMM PV Cash Flow - CF Premium Received",null,null,null,null,{"$f":"'Form 1ASFS'!K224","v":0}]
["Form 1ASFS","Notes","Form 1ASFS","L17 - GMM PV Cash Flow - CF Insurance Acquisition",null,null,null,null,{"$f":"'Form 1ASFS'!K225","v":0}]
["Form 1ASFS","Notes","Form 1ASFS","L17 - GMM PV Cash Flow - CF Claims Paid",null,null,null,null,{"$f":"'Form 1ASFS'!K226","v":0}]
["Form 1ASFS","Notes","Form 1ASFS","L17 - GMM PV Cash Flow - Total CF",null,null,null,null,{"$f":"'Form 1ASFS'!K227","v":0}]
["Form 1ASFS","Notes","Form 1ASFS","L17 - GMM PV Cash Flow - Contracts Trans. Acquisition Sub.",null,null,null,null,{"$f":"'Form 1ASFS'!K228","v":0}]
["Form 1ASFS","Notes","Form 1ASFS","L17 - GMM PV Cash Flow - Contracts Trans. Disposal Sub.",null,null,null,null,{"$f":"'Form 1ASFS'!K229","v":0}]
["Form 1ASFS","Notes","Form 1ASFS","L17 - GMM PV Cash Flow - Net Closing Balance",null,null,null,null,{"$f":"'Form 1ASFS'!K230","v":0}]
["Form 1ASFS","Notes","Form 1ASFS","L17 - GMM PV Cash Flow - Closing Assets",null,null,null,null,{"$f":"'Form 1ASFS'!K232","v":0}]
["Form 1ASFS","Notes","Form 1ASFS","L17 - GMM PV Cash Flow - Closing Liabilities",null,null,null,null,{"$f":"'Form 1ASFS'!K233","v":0}]
["Form 1ASFS","Notes","Form 1ASFS","L17 - GMM PV Cash Flow - Net Closing Balance",null,null,null,null,{"$f":"'Form 1ASFS'!K234","v":0}]
["Form 1ASFS","Notes","Form 1ASFS","L17 - GMM Risk Adj - Open Assets",null,null,null,null,{"$f":"'Form 1ASFS'!M201","v":0}]
["Form 1ASFS","Notes","Form 1ASFS","L17 - GMM Risk Adj - Open Liabilities",null,null,null,null,{"$f":"'Form 1ASFS'!M202","v":0}]
["Form 1ASFS","Notes","Form 1ASFS","L17 - GMM Risk Adj - Net Open",null,null,null,null,{"$f":"'Form 1ASFS'!M203","v":0}]
["Form 1ASFS","Notes","Form 1ASFS","L17 - GMM Risk Adj - Insurance Revenue",null,null,null,null,{"$f":"'Form 1ASFS'!M207","v":0}]
["Form 1ASFS","Notes","Form 1ASFS","L17 - GMM Risk Adj - Amort. Cash Flows",null,null,null,null,{"$f":"'Form 1ASFS'!M210","v":0}]
["Form 1ASFS","Notes","Form 1ASFS","L17 - GMM Risk Adj - Incurred Claims",null,null,null,null,{"$f":"'Form 1ASFS'!M211","v":0}]
["Form 1ASFS","Notes","Form 1ASFS","L17 - GMM Risk Adj - Losses on enerous contracts",null,null,null,null,{"$f":"'Form 1ASFS'!M212","v":0}]
["Form 1ASFS","Notes","Form 1ASFS","L17 - GMM Risk Adj - Adj to Liabilities for Incurred Claims",null,null,null,null,{"$f":"'Form 1ASFS'!M213","v":0}]
["Form 1ASFS","Notes","Form 1ASFS","L17 - GMM Risk Adj - Total Insurance Service Expenses",null,null,null,null,{"$f":"'Form 1ASFS'!M214","v":0}]
["Form 1ASFS","Notes","Form 1ASFS","L17 - GMM Risk Adj - Investment Components",null,null,null,null,{"$f":"'Form 1ASFS'!M216","v":0}]
["Form 1ASFS","Notes","Form 1ASFS","L17 - GMM Risk Adj - Insurance Service Results",null,null,null,null,{"$f":"'Form 1ASFS'!M217","v":0}]
["Form 1ASFS","Notes","Form 1ASFS","L17 - GMM Risk Adj - Net finance expenses",null,null,null,null,{"$f":"'Form 1ASFS'!M219","v":0}]
["Form 1ASFS","Notes","Form 1ASFS","L17 - GMM Risk Adj - Foreign Exchange",null,null,null,null,{"$f":"'Form 1ASFS'!M220","v":0}]
["Form 1ASFS","Notes","Form 1ASFS","L17 - GMM Risk Adj - Change in Profit or Loss",null,null,null,null,{"$f":"'Form 1ASFS'!M221","v":0}]
["Form 1ASFS","Notes","Form 1ASFS","L17 - GMM Risk Adj - CF Premium Received",null,null,null,null,{"$f":"'Form 1ASFS'!M224","v":0}]
["Form 1ASFS","Notes","Form 1ASFS","L17 - GMM Risk Adj - CF Insurance Acquisition",null,null,null,null,{"$f":"'Form 1ASFS'!M225","v":0}]
["Form 1ASFS","Notes","Form 1ASFS","L17 - GMM Risk Adj - CF Claims Paid",null,null,null,null,{"$f":"'Form 1ASFS'!M226","v":0}]
["Form 1ASFS","Notes","Form 1ASFS","L17 - GMM Risk Adj - Total CF",null,null,null,null,{"$f":"'Form 1ASFS'!M227","v":0}]
["Form 1ASFS","Notes","Form 1ASFS","L17 - GMM Risk Adj - Contracts Trans. Acquisition Sub.",null,null,null,null,{"$f":"'Form 1ASFS'!M228","v":0}]
["Form 1ASFS","Notes","Form 1ASFS","L17 - GMM Risk Adj - Contracts Trans. Disposal Sub.",null,null,null,null,{"$f":"'Form 1ASFS'!M229","v":0}]
["Form 1ASFS","Notes","Form 1ASFS","L17 - GMM Risk Adj - Net Closing Balance",null,null,null,null,{"$f":"'Form 1ASFS'!M230","v":0}]
["Form 1ASFS","Notes","Form 1ASFS","L17 - GMM Risk Adj - Closing Assets",null,null,null,null,{"$f":"'Form 1ASFS'!M232","v":0}]
["Form 1ASFS","Notes","Form 1ASFS","L17 - GMM Risk Adj - Closing Liabilities",null,null,null,null,{"$f":"'Form 1ASFS'!M233","v":0}]
["Form 1ASFS","Notes","Form 1ASFS","L17 - GMM Risk Adj - Net Closing Balance",null,null,null,null,{"$f":"'Form 1ASFS'!M234","v":0}]
["Form 1ASFS","Notes","Form 1ASFS","L27 - PAA Exc. Loss Comp - Open Assets",null,null,null,null,{"$f":"'Form 1ASFS'!E241","v":0}]
["Form 1ASFS","Notes","Form 1ASFS","L27 - PAA Exc. Loss Comp - Open Liabilities",null,null,null,null,{"$f":"'Form 1ASFS'!E242","v":0}]
["Form 1ASFS","Notes","Form 1ASFS","L27 - PAA Exc. Loss Comp - Net Open",null,null,null,null,{"$f":"'Form 1ASFS'!E243","v":0}]
["Form 1ASFS","Notes","Form 1ASFS","L27 - PAA Exc. Loss Comp - Insurance Revenue",null,null,null,null,{"$f":"'Form 1ASFS'!E247","v":0}]
["Form 1ASFS","Notes","Form 1ASFS","L27 - PAA Exc. Loss Comp - Amort. Cash Flows",null,null,null,null,{"$f":"'Form 1ASFS'!E250","v":0}]
["Form 1ASFS","Notes","Form 1ASFS","L27 - PAA Exc. Loss Comp - Incurred Claims",null,null,null,null,{"$f":"'Form 1ASFS'!E251","v":0}]
["Form 1ASFS","Notes","Form 1ASFS","L27 - PAA Exc. Loss Comp - Losses on enerous contracts",null,null,null,null,{"$f":"'Form 1ASFS'!E252","v":0}]
["Form 1ASFS","Notes","Form 1ASFS","L27 - PAA Exc. Loss Comp - Adj to Liabilities for Incurred Claims",null,null,null,null,{"$f":"'Form 1ASFS'!E253","v":0}]
["Form 1ASFS","Notes","Form 1ASFS","L27 - PAA Exc. Loss Comp - Total Insurance Service Expenses",null,null,null,null,{"$f":"'Form 1ASFS'!E254","v":0}]
["Form 1ASFS","Notes","Form 1ASFS","L27 - PAA Exc. Loss Comp - Investment Components",null,null,null,null,{"$f":"'Form 1ASFS'!E256","v":0}]
["Form 1ASFS","Notes","Form 1ASFS","L27 - PAA Exc. Loss Comp - Insurance Service Results",null,null,null,null,{"$f":"'Form 1ASFS'!E257","v":0}]
["Form 1ASFS","Notes","Form 1ASFS","L27 - PAA Exc. Loss Comp - Net finance expenses",null,null,null,null,{"$f":"'Form 1ASFS'!E259","v":0}]
["Form 1ASFS","Notes","Form 1ASFS","L27 - PAA Exc. Loss Comp - Foreign Exchange",null,null,null,null,{"$f":"'Form 1ASFS'!E260","v":0}]
["Form 1ASFS","Notes","Form 1ASFS","L27 - PAA Exc. Loss Comp - Change in Profit or Loss",null,null,null,null,{"$f":"'Form 1ASFS'!E261","v":0}]
["Form 1ASFS","Notes","Form 1ASFS","L27 - PAA Exc. Loss Comp - CF Premium Received",null,null,null,null,{"$f":"'Form 1ASFS'!E264","v":0}]
["Form 1ASFS","Notes","Form 1ASFS","L27 - PAA Exc. Loss Comp - CF Insurance Acquisition",null,null,null,null,{"$f":"'Form 1ASFS'!E265","v":0}]
["Form 1ASFS","Notes","Form 1ASFS","L27 - PAA Exc. Loss Comp - CF Claims Paid",null,null,null,null,{"$f":"'Form 1ASFS'!E266","v":0}]
["Form 1ASFS","Notes","Form 1ASFS","L27 - PAA Exc. Loss Comp - Total CF",null,null,null,null,{"$f":"'Form 1ASFS'!E267","v":0}]
["Form 1ASFS","Notes","Form 1ASFS","L27 - PAA Exc. Loss Comp - Contracts Trans. Acquisition Sub.",null,null,null,null,{"$f":"'Form 1ASFS'!E268","v":0}]
["Form 1ASFS","Notes","Form 1ASFS","L27 - PAA Exc. Loss Comp - Contracts Trans. Disposal Sub.",null,null,null,null,{"$f":"'Form 1ASFS'!E269","v":0}]
["Form 1ASFS","Notes","Form 1ASFS","L27 - PAA Exc. Loss Comp - Net Closing Balance",null,null,null,null,{"$f":"'Form 1ASFS'!E270","v":0}]
["Form 1ASFS","Notes","Form 1ASFS","L27 - PAA Exc. Loss Comp - Closing Assets",null,null,null,null,{"$f":"'Form 1ASFS'!E272","v":0}]
["Form 1ASFS","Notes","Form 1ASFS","L27 - PAA Exc. Loss Comp - Closing Liabilities",null,null,null,null,{"$f":"'Form 1ASFS'!E273","v":0}]
["Form 1ASFS","Notes","Form 1ASFS","L27 - PAA Exc. Loss Comp - Net Closing Balance",null,null,null,null,{"$f":"'Form 1ASFS'!E274","v":0}]
["Form 1ASFS","Notes","Form 1ASFS","L27 - PAA Loss Comp - Open Assets",null,null,null,null,{"$f":"'Form 1ASFS'!G241","v":0}]
["Form 1ASFS","Notes","Form 1ASFS","L27 - PAA Loss Comp - Open Liabilities",null,null,null,null,{"$f":"'Form 1ASFS'!G242","v":0}]
["Form 1ASFS","Notes","Form 1ASFS","L27 - PAA Loss Comp - Net Open",null,null,null,null,{"$f":"'Form 1ASFS'!G243","v":0}]
["Form 1ASFS","Notes","Form 1ASFS","L27 - PAA Loss Comp - Insurance Revenue",null,null,null,null,{"$f":"'Form 1ASFS'!G247","v":0}]
["Form 1ASFS","Notes","Form 1ASFS","L27 - PAA Loss Comp - Amort. Cash Flows",null,null,null,null,{"$f":"'Form 1ASFS'!G250","v":0}]
["Form 1ASFS","Notes","Form 1ASFS","L27 - PAA Loss Comp - Incurred Claims",null,null,null,null,{"$f":"'Form 1ASFS'!G251","v":0}]
["Form 1ASFS","Notes","Form 1ASFS","L27 - PAA Loss Comp - Losses on enerous contracts",null,null,null,null,{"$f":"'Form 1ASFS'!G252","v":0}]
["Form 1ASFS","Notes","Form 1ASFS","L27 - PAA Loss Comp - Adj to Liabilities for Incurred Claims",null,null,null,null,{"$f":"'Form 1ASFS'!G253","v":0}]
["Form 1ASFS","Notes","Form 1ASFS","L27 - PAA Loss Comp - Total Insurance Service Expenses",null,null,null,null,{"$f":"'Form 1ASFS'!G254","v":0}]
["Form 1ASFS","Notes","Form 1ASFS","L27 - PAA Loss Comp - Investment Components",null,null,null,null,{"$f":"'Form 1ASFS'!G256","v":0}]
["Form 1ASFS","Notes","Form 1ASFS","L27 - PAA Loss Comp - Insurance Service Results",null,null,null,null,{"$f":"'Form 1ASFS'!G257","v":0}]
["Form 1ASFS","Notes","Form 1ASFS","L27 - PAA Loss Comp - Net finance expenses",null,null,null,null,{"$f":"'Form 1ASFS'!G259","v":0}]
["Form 1ASFS","Notes","Form 1ASFS","L27 - PAA Loss Comp - Foreign Exchange",null,null,null,null,{"$f":"'Form 1ASFS'!G260","v":0}]
["Form 1ASFS","Notes","Form 1ASFS","L27 - PAA Loss Comp - Change in Profit or Loss",null,null,null,null,{"$f":"'Form 1ASFS'!G261","v":0}]
["Form 1ASFS","Notes","Form 1ASFS","L27 - PAA Loss Comp - CF Premium Received",null,null,null,null,{"$f":"'Form 1ASFS'!G264","v":0}]
["Form 1ASFS","Notes","Form 1ASFS","L27 - PAA Loss Comp - CF Insurance Acquisition",null,null,null,null,{"$f":"'Form 1ASFS'!G265","v":0}]
["Form 1ASFS","Notes","Form 1ASFS","L27 - PAA Loss Comp - CF Claims Paid",null,null,null,null,{"$f":"'Form 1ASFS'!G266","v":0}]
["Form 1ASFS","Notes","Form 1ASFS","L27 - PAA Loss Comp - Total CF",null,null,null,null,{"$f":"'Form 1ASFS'!G267","v":0}]
["Form 1ASFS","Notes","Form 1ASFS","L27 - PAA Loss Comp - Contracts Trans. Acquisition Sub.",null,null,null,null,{"$f":"'Form 1ASFS'!G268","v":0}]
["Form 1ASFS","Notes","Form 1ASFS","L27 - PAA Loss Comp - Contracts Trans. Disposal Sub.",null,null,null,null,{"$f":"'Form 1ASFS'!G269","v":0}]
["Form 1ASFS","Notes","Form 1ASFS","L27 - PAA Loss Comp - Net Closing Balance",null,null,null,null,{"$f":"'Form 1ASFS'!G270","v":0}]
["Form 1ASFS","Notes","Form 1ASFS","L27 - PAA Loss Comp - Closing Assets",null,null,null,null,{"$f":"'Form 1ASFS'!G272","v":0}]
["Form 1ASFS","Notes","Form 1ASFS","L27 - PAA Loss Comp - Closing Liabilities",null,null,null,null,{"$f":"'Form 1ASFS'!G273","v":0}]
["Form 1ASFS","Notes","Form 1ASFS","L27 - PAA Loss Comp - Net Closing Balance",null,null,null,null,{"$f":"'Form 1ASFS'!G274","v":0}]
["Form 1ASFS","Notes","Form 1ASFS","L27 - GMM Liab. for Incurred - Open Assets",null,null,null,null,{"$f":"'Form 1ASFS'!I241","v":0}]
["Form 1ASFS","Notes","Form 1ASFS","L27 - GMM Liab. for Incurred - Open Liabilities",null,null,null,null,{"$f":"'Form 1ASFS'!I242","v":0}]
["Form 1ASFS","Notes","Form 1ASFS","L27 - GMM Liab. for Incurred - Net Open",null,null,null,null,{"$f":"'Form 1ASFS'!I243","v":0}]
["Form 1ASFS","Notes","Form 1ASFS","L27 - GMM Liab. for Incurred - Insurance Revenue",null,null,null,null,{"$f":"'Form 1ASFS'!I247","v":0}]
["Form 1ASFS","Notes","Form 1ASFS","L27 - GMM Liab. for Incurred - Amort. Cash Flows",null,null,null,null,{"$f":"'Form 1ASFS'!I250","v":0}]
["Form 1ASFS","Notes","Form 1ASFS","L27 - GMM Liab. for Incurred - Incurred Claims",null,null,null,null,{"$f":"'Form 1ASFS'!I251","v":0}]
["Form 1ASFS","Notes","Form 1ASFS","L27 - GMM Liab. for Incurred - Losses on enerous contracts",null,null,null,null,{"$f":"'Form 1ASFS'!I252","v":0}]
["Form 1ASFS","Notes","Form 1ASFS","L27 - GMM Liab. for Incurred - Adj to Liabilities for Incurred Claims",null,null,null,null,{"$f":"'Form 1ASFS'!I253","v":0}]
["Form 1ASFS","Notes","Form 1ASFS","L27 - GMM Liab. for Incurred - Total Insurance Service Expenses",null,null,null,null,{"$f":"'Form 1ASFS'!I254","v":0}]
["Form 1ASFS","Notes","Form 1ASFS","L27 - GMM Liab. for Incurred - Investment Components",null,null,null,null,{"$f":"'Form 1ASFS'!I256","v":0}]
["Form 1ASFS","Notes","Form 1ASFS","L27 - GMM Liab. for Incurred - Insurance Service Results",null,null,null,null,{"$f":"'Form 1ASFS'!I257","v":0}]
["Form 1ASFS","Notes","Form 1ASFS","L27 - GMM Liab. for Incurred - Net finance expenses",null,null,null,null,{"$f":"'Form 1ASFS'!I259","v":0}]
["Form 1ASFS","Notes","Form 1ASFS","L27 - GMM Liab. for Incurred - Foreign Exchange",null,null,null,null,{"$f":"'Form 1ASFS'!I260","v":0}]
["Form 1ASFS","Notes","Form 1ASFS","L27 - GMM Liab. for Incurred - Change in Profit or Loss",null,null,null,null,{"$f":"'Form 1ASFS'!I261","v":0}]
["Form 1ASFS","Notes","Form 1ASFS","L27 - GMM Liab. for Incurred - CF Premium Received",null,null,null,null,{"$f":"'Form 1ASFS'!I264","v":0}]
["Form 1ASFS","Notes","Form 1ASFS","L27 - GMM Liab. for Incurred - CF Insurance Acquisition",null,null,null,null,{"$f":"'Form 1ASFS'!I265","v":0}]
["Form 1ASFS","Notes","Form 1ASFS","L27 - GMM Liab. for Incurred - CF Claims Paid",null,null,null,null,{"$f":"'Form 1ASFS'!I266","v":0}]
["Form 1ASFS","Notes","Form 1ASFS","L27 - GMM Liab. for Incurred - Total CF",null,null,null,null,{"$f":"'Form 1ASFS'!I267","v":0}]
["Form 1ASFS","Notes","Form 1ASFS","L27 - GMM Liab. for Incurred - Contracts Trans. Acquisition Sub.",null,null,null,null,{"$f":"'Form 1ASFS'!I268","v":0}]
["Form 1ASFS","Notes","Form 1ASFS","L27 - GMM Liab. for Incurred - Contracts Trans. Disposal Sub.",null,null,null,null,{"$f":"'Form 1ASFS'!I269","v":0}]
["Form 1ASFS","Notes","Form 1ASFS","L27 - GMM Liab. for Incurred - Net Closing Balance",null,null,null,null,{"$f":"'Form 1ASFS'!I270","v":0}]
["Form 1ASFS","Notes","Form 1ASFS","L27 - GMM Liab. for Incurred - Closing Assets",null,null,null,null,{"$f":"'Form 1ASFS'!I272","v":0}]
["Form 1ASFS","Notes","Form 1ASFS","L27 - GMM Liab. for Incurred - Closing Liabilities",null,null,null,null,{"$f":"'Form 1ASFS'!I273","v":0}]
["Form 1ASFS","Notes","Form 1ASFS","L27 - GMM Liab. for Incurred - Net Closing Balance",null,null,null,null,{"$f":"'Form 1ASFS'!I274","v":0}]
["Form 1ASFS","Notes","Form 1ASFS","L27 - GMM PV Cash Flow - Open Assets",null,null,null,null,{"$f":"'Form 1ASFS'!K241","v":0}]
["Form 1ASFS","Notes","Form 1ASFS","L27 - GMM PV Cash Flow - Open Liabilities",null,null,null,null,{"$f":"'Form 1ASFS'!K242","v":0}]
["Form 1ASFS","Notes","Form 1ASFS","L27 - GMM PV Cash Flow - Net Open",null,null,null,null,{"$f":"'Form 1ASFS'!K243","v":0}]
["Form 1ASFS","Notes","Form 1ASFS","L27 - GMM PV Cash Flow - Insurance Revenue",null,null,null,null,{"$f":"'Form 1ASFS'!K247","v":0}]
["Form 1ASFS","Notes","Form 1ASFS","L27 - GMM PV Cash Flow - Amort. Cash Flows",null,null,null,null,{"$f":"'Form 1ASFS'!K250","v":0}]
["Form 1ASFS","Notes","Form 1ASFS","L27 - GMM PV Cash Flow - Incurred Claims",null,null,null,null,{"$f":"'Form 1ASFS'!K251","v":0}]
["Form 1ASFS","Notes","Form 1ASFS","L27 - GMM PV Cash Flow - Losses on enerous contracts",null,null,null,null,{"$f":"'Form 1ASFS'!K252","v":0}]
["Form 1ASFS","Notes","Form 1ASFS","L27 - GMM PV Cash Flow - Adj to Liabilities for Incurred Claims",null,null,null,null,{"$f":"'Form 1ASFS'!K253","v":0}]
["Form 1ASFS","Notes","Form 1ASFS","L27 - GMM PV Cash Flow - Total Insurance Service Expenses",null,null,null,null,{"$f":"'Form 1ASFS'!K254","v":0}]
["Form 1ASFS","Notes","Form 1ASFS","L27 - GMM PV Cash Flow - Investment Components",null,null,null,null,{"$f":"'Form 1ASFS'!K256","v":0}]
["Form 1ASFS","Notes","Form 1ASFS","L27 - GMM PV Cash Flow - Insurance Service Results",null,null,null,null,{"$f":"'Form 1ASFS'!K257","v":0}]
["Form 1ASFS","Notes","Form 1ASFS","L27 - GMM PV Cash Flow - Net finance expenses",null,null,null,null,{"$f":"'Form 1ASFS'!K259","v":0}]
["Form 1ASFS","Notes","Form 1ASFS","L27 - GMM PV Cash Flow - Foreign Exchange",null,null,null,null,{"$f":"'Form 1ASFS'!K260","v":0}]
["Form 1ASFS","Notes","Form 1ASFS","L27 - GMM PV Cash Flow - Change in Profit or Loss",null,null,null,null,{"$f":"'Form 1ASFS'!K261","v":0}]
["Form 1ASFS","Notes","Form 1ASFS","L27 - GMM PV Cash Flow - CF Premium Received",null,null,null,null,{"$f":"'Form 1ASFS'!K264","v":0}]
["Form 1ASFS","Notes","Form 1ASFS","L27 - GMM PV Cash Flow - CF Insurance Acquisition",null,null,null,null,{"$f":"'Form 1ASFS'!K265","v":0}]
["Form 1ASFS","Notes","Form 1ASFS","L27 - GMM PV Cash Flow - CF Claims Paid",null,null,null,null,{"$f":"'Form 1ASFS'!K266","v":0}]
["Form 1ASFS","Notes","Form 1ASFS","L27 - GMM PV Cash Flow - Total CF",null,null,null,null,{"$f":"'Form 1ASFS'!K267","v":0}]
["Form 1ASFS","Notes","Form 1ASFS","L27 - GMM PV Cash Flow - Contracts Trans. Acquisition Sub.",null,null,null,null,{"$f":"'Form 1ASFS'!K268","v":0}]
["Form 1ASFS","Notes","Form 1ASFS","L27 - GMM PV Cash Flow - Contracts Trans. Disposal Sub.",null,null,null,null,{"$f":"'Form 1ASFS'!K269","v":0}]
["Form 1ASFS","Notes","Form 1ASFS","L27 - GMM PV Cash Flow - Net Closing Balance",null,null,null,null,{"$f":"'Form 1ASFS'!K270","v":0}]
["Form 1ASFS","Notes","Form 1ASFS","L27 - GMM PV Cash Flow - Closing Assets",null,null,null,null,{"$f":"'Form 1ASFS'!K272","v":0}]
["Form 1ASFS","Notes","Form 1ASFS","L27 - GMM PV Cash Flow - Closing Liabilities",null,null,null,null,{"$f":"'Form 1ASFS'!K273","v":0}]
["Form 1ASFS","Notes","Form 1ASFS","L27 - GMM PV Cash Flow - Net Closing Balance",null,null,null,null,{"$f":"'Form 1ASFS'!K274","v":0}]
["Form 1ASFS","Notes","Form 1ASFS","L27 - GMM Risk Adj - Open Assets",null,null,null,null,{"$f":"'Form 1ASFS'!M241","v":0}]
["Form 1ASFS","Notes","Form 1ASFS","L27 - GMM Risk Adj - Open Liabilities",null,null,null,null,{"$f":"'Form 1ASFS'!M242","v":0}]
["Form 1ASFS","Notes","Form 1ASFS","L27 - GMM Risk Adj - Net Open",null,null,null,null,{"$f":"'Form 1ASFS'!M243","v":0}]
["Form 1ASFS","Notes","Form 1ASFS","L27 - GMM Risk Adj - Insurance Revenue",null,null,null,null,{"$f":"'Form 1ASFS'!M247","v":0}]
["Form 1ASFS","Notes","Form 1ASFS","L27 - GMM Risk Adj - Amort. Cash Flows",null,null,null,null,{"$f":"'Form 1ASFS'!M250","v":0}]
["Form 1ASFS","Notes","Form 1ASFS","L27 - GMM Risk Adj - Incurred Claims",null,null,null,null,{"$f":"'Form 1ASFS'!M251","v":0}]
["Form 1ASFS","Notes","Form 1ASFS","L27 - GMM Risk Adj - Losses on enerous contracts",null,null,null,null,{"$f":"'Form 1ASFS'!M252","v":0}]
["Form 1ASFS","Notes","Form 1ASFS","L27 - GMM Risk Adj - Adj to Liabilities for Incurred Claims",null,null,null,null,{"$f":"'Form 1ASFS'!M253","v":0}]
["Form 1ASFS","Notes","Form 1ASFS","L27 - GMM Risk Adj - Total Insurance Service Expenses",null,null,null,null,{"$f":"'Form 1ASFS'!M254","v":0}]
["Form 1ASFS","Notes","Form 1ASFS","L27 - GMM Risk Adj - Investment Components",null,null,null,null,{"$f":"'Form 1ASFS'!M256","v":0}]
["Form 1ASFS","Notes","Form 1ASFS","L27 - GMM Risk Adj - Insurance Service Results",null,null,null,null,{"$f":"'Form 1ASFS'!M257","v":0}]
["Form 1ASFS","Notes","Form 1ASFS","L27 - GMM Risk Adj - Net finance expenses",null,null,null,null,{"$f":"'Form 1ASFS'!M259","v":0}]
["Form 1ASFS","Notes","Form 1ASFS","L27 - GMM Risk Adj - Foreign Exchange",null,null,null,null,{"$f":"'Form 1ASFS'!M260","v":0}]
["Form 1ASFS","Notes","Form 1ASFS","L27 - GMM Risk Adj - Change in Profit or Loss",null,null,null,null,{"$f":"'Form 1ASFS'!M261","v":0}]
["Form 1ASFS","Notes","Form 1ASFS","L27 - GMM Risk Adj - CF Premium Received",null,null,null,null,{"$f":"'Form 1ASFS'!M264","v":0}]
["Form 1ASFS","Notes","Form 1ASFS","L27 - GMM Risk Adj - CF Insurance Acquisition",null,null,null,null,{"$f":"'Form 1ASFS'!M265","v":0}]
["Form 1ASFS","Notes","Form 1ASFS","L27 - GMM Risk Adj - CF Claims Paid",null,null,null,null,{"$f":"'Form 1ASFS'!M266","v":0}]
["Form 1ASFS","Notes","Form 1ASFS","L27 - GMM Risk Adj - Total CF",null,null,null,null,{"$f":"'Form 1ASFS'!M267","v":0}]
["Form 1ASFS","Notes","Form 1ASFS","L27 - GMM Risk Adj - Contracts Trans. Acquisition Sub.",null,null,null,null,{"$f":"'Form 1ASFS'!M268","v":0}]
["Form 1ASFS","Notes","Form 1ASFS","L27 - GMM Risk Adj - Contracts Trans. Disposal Sub.",null,null,null,null,{"$f":"'Form 1ASFS'!M269","v":0}]
["Form 1ASFS","Notes","Form 1ASFS","L27 - GMM Risk Adj - Net Closing Balance",null,null,null,null,{"$f":"'Form 1ASFS'!M270","v":0}]
["Form 1ASFS","Notes","Form 1ASFS","L27 - GMM Risk Adj - Closing Assets",null,null,null,null,{"$f":"'Form 1ASFS'!M272","v":0}]
["Form 1ASFS","Notes","Form 1ASFS","L27 - GMM Risk Adj - Closing Liabilities",null,null,null,null,{"$f":"'Form 1ASFS'!M273","v":0}]
["Form 1ASFS","Notes","Form 1ASFS","L27 - GMM Risk Adj - Net Closing Balance",null,null,null,null,{"$f":"'Form 1ASFS'!M274","v":0}]
["Form 1A","Notes","Form 1A","L17A - Coverage Exc. Loss Comp - Open Assets",null,null,null,null,{"$f":"'Form 1ASFS'!E282","v":0}]
["Form 1A","Notes","Form 1A","L17A - Coverage Exc. Loss Comp - Open Liabilities",null,null,null,null,{"$f":"'Form 1ASFS'!E283","v":0}]
["Form 1A","Notes","Form 1A","L17A - Coverage Exc. Loss Comp - Net Open",null,null,null,null,{"$f":"'Form 1ASFS'!E284","v":0}]
["Form 1A","Notes","Form 1A","L17A - Coverage Exc. Loss Comp - Premiums Paid",null,null,null,null,{"$f":"'Form 1ASFS'!E287","v":0}]
["Form 1A","Notes","Form 1A","L17A - Coverage Exc. Loss Comp - Recov. Incurred Claims",null,null,null,null,{"$f":"'Form 1ASFS'!E292","v":0}]
["Form 1A","Notes","Form 1A","L17A - Coverage Exc. Loss Comp - Recov. on Reversals",null,null,null,null,{"$f":"'Form 1ASFS'!E293","v":0}]
["Form 1A","Notes","Form 1A","L17A - Coverage Exc. Loss Comp - Adj to Assets for Incurred Claims",null,null,null,null,{"$f":"'Form 1ASFS'!E294","v":0}]
["Form 1A","Notes","Form 1A","L17A - Coverage Exc. Loss Comp - Total Recov. From Reinsurers",null,null,null,null,{"$f":"'Form 1ASFS'!E295","v":0}]
["Form 1A","Notes","Form 1A","L17A - Coverage Exc. Loss Comp - Investment Components",null,null,null,null,{"$f":"'Form 1ASFS'!E297","v":0}]
["Form 1A","Notes","Form 1A","L17A - Coverage Exc. Loss Comp - Changes in Non-Performance Risk",null,null,null,null,{"$f":"'Form 1ASFS'!E298","v":0}]
["Form 1A","Notes","Form 1A","L17A - Coverage Exc. Loss Comp - Net Expenses from R/I Contracts",null,null,null,null,{"$f":"'Form 1ASFS'!E300","v":0}]
["Form 1A","Notes","Form 1A","L17A - Coverage Exc. Loss Comp - Net Finance profit",null,null,null,null,{"$f":"'Form 1ASFS'!E302","v":0}]
["Form 1A","Notes","Form 1A","L17A - Coverage Exc. Loss Comp - Foreign Exchange",null,null,null,null,{"$f":"'Form 1ASFS'!E303","v":0}]
["Form 1A","Notes","Form 1A","L17A - Coverage Exc. Loss Comp - Change in Profit or Loss",null,null,null,null,{"$f":"'Form 1ASFS'!E304","v":0}]
["Form 1A","Notes","Form 1A","L17A - Coverage Exc. Loss Comp - CF Premium Received",null,null,null,null,{"$f":"'Form 1ASFS'!E307","v":0}]
["Form 1A","Notes","Form 1A","L17A - Coverage Exc. Loss Comp - CF Incurred Claims",null,null,null,null,{"$f":"'Form 1ASFS'!E308","v":0}]
["Form 1A","Notes","Form 1A","L17A - Coverage Exc. Loss Comp - Total CF",null,null,null,null,{"$f":"'Form 1ASFS'!E309","v":0}]
["Form 1A","Notes","Form 1A","L17A - Coverage Exc. Loss Comp - Net Closing Balance",null,null,null,null,{"$f":"'Form 1ASFS'!E310","v":0}]
["Form 1A","Notes","Form 1A","L17A - Coverage Exc. Loss Comp - Closing Assets",null,null,null,null,{"$f":"'Form 1ASFS'!E312","v":0}]
["Form 1A","Notes","Form 1A","L17A - Coverage Exc. Loss Comp - Closing Liabilities",null,null,null,null,{"$f":"'Form 1ASFS'!E313","v":0}]
["Form 1A","Notes","Form 1A","L17A - Coverage Exc. Loss Comp - Net Closing Balance",null,null,null,null,{"$f":"'Form 1ASFS'!E314","v":0}]
["Form 1A","Notes","Form 1A","L17A - Coverage Inc. Loss Comp - Open Assets",null,null,null,null,{"$f":"'Form 1ASFS'!G282","v":0}]
["Form 1A","Notes","Form 1A","L17A - Coverage Inc. Loss Comp - Open Liabilities",null,null,null,null,{"$f":"'Form 1ASFS'!G283","v":0}]
["Form 1A","Notes","Form 1A","L17A - Coverage Inc. Loss Comp - Net Open",null,null,null,null,{"$f":"'Form 1ASFS'!G284","v":0}]
["Form 1A","Notes","Form 1A","L17A - Coverage Inc. Loss Comp - Premiums Paid",null,null,null,null,{"$f":"'Form 1ASFS'!G287","v":0}]
["Form 1A","Notes","Form 1A","L17A - Coverage Inc. Loss Comp - Recov. Incurred Claims",null,null,null,null,{"$f":"'Form 1ASFS'!G292","v":0}]
["Form 1A","Notes","Form 1A","L17A - Coverage Inc. Loss Comp - Recov. on Reversals",null,null,null,null,{"$f":"'Form 1ASFS'!G293","v":0}]
["Form 1A","Notes","Form 1A","L17A - Coverage Inc. Loss Comp - Adj to Assets for Incurred Claims",null,null,null,null,{"$f":"'Form 1ASFS'!G294","v":0}]
["Form 1A","Notes","Form 1A","L17A - Coverage Inc. Loss Comp - Total Recov. From Reinsurers",null,null,null,null,{"$f":"'Form 1ASFS'!G295","v":0}]
["Form 1A","Notes","Form 1A","L17A - Coverage Inc. Loss Comp - Investment Components",null,null,null,null,{"$f":"'Form 1ASFS'!G297","v":0}]
["Form 1A","Notes","Form 1A","L17A - Coverage Inc. Loss Comp - Changes in Non-Performance Risk",null,null,null,null,{"$f":"'Form 1ASFS'!G298","v":0}]
["Form 1A","Notes","Form 1A","L17A - Coverage Inc. Loss Comp - Net Expenses from R/I Contracts",null,null,null,null,{"$f":"'Form 1ASFS'!G300","v":0}]
["Form 1A","Notes","Form 1A","L17A - Coverage Inc. Loss Comp - Net Finance profit",null,null,null,null,{"$f":"'Form 1ASFS'!G302","v":0}]
["Form 1A","Notes","Form 1A","L17A - Coverage Inc. Loss Comp - Foreign Exchange",null,null,null,null,{"$f":"'Form 1ASFS'!G303","v":0}]
["Form 1A","Notes","Form 1A","L17A - Coverage Inc. Loss Comp - Change in Profit or Loss",null,null,null,null,{"$f":"'Form 1ASFS'!G304","v":0}]
["Form 1A","Notes","Form 1A","L17A - Coverage Inc. Loss Comp - CF Premium Received",null,null,null,null,{"$f":"'Form 1ASFS'!G307","v":0}]
["Form 1A","Notes","Form 1A","L17A - Coverage Inc. Loss Comp - CF Incurred Claims",null,null,null,null,{"$f":"'Form 1ASFS'!G308","v":0}]
["Form 1A","Notes","Form 1A","L17A - Coverage Inc. Loss Comp - Total CF",null,null,null,null,{"$f":"'Form 1ASFS'!G309","v":0}]
["Form 1A","Notes","Form 1A","L17A - Coverage Inc. Loss Comp - Net Closing Balance",null,null,null,null,{"$f":"'Form 1ASFS'!G310","v":0}]
["Form 1A","Notes","Form 1A","L17A - Coverage Inc. Loss Comp - Closing Assets",null,null,null,null,{"$f":"'Form 1ASFS'!G312","v":0}]
["Form 1A","Notes","Form 1A","L17A - Coverage Inc. Loss Comp - Closing Liabilities",null,null,null,null,{"$f":"'Form 1ASFS'!G313","v":0}]
["Form 1A","Notes","Form 1A","L17A - Coverage Inc. Loss Comp - Net Closing Balance",null,null,null,null,{"$f":"'Form 1ASFS'!G314","v":0}]
["Form 1A","Notes","Form 1A","L17A - Inc. Claims Products Not PAA - Open Assets",null,null,null,null,{"$f":"'Form 1ASFS'!I282","v":0}]
["Form 1A","Notes","Form 1A","L17A - Inc. Claims Products Not PAA - Open Liabilities",null,null,null,null,{"$f":"'Form 1ASFS'!I283","v":0}]
["Form 1A","Notes","Form 1A","L17A - Inc. Claims Products Not PAA - Net Open",null,null,null,null,{"$f":"'Form 1ASFS'!I284","v":0}]
["Form 1A","Notes","Form 1A","L17A - Inc. Claims Products Not PAA - Premiums Paid",null,null,null,null,{"$f":"'Form 1ASFS'!I287","v":0}]
["Form 1A","Notes","Form 1A","L17A - Inc. Claims Products Not PAA - Recov. Incurred Claims",null,null,null,null,{"$f":"'Form 1ASFS'!I292","v":0}]
["Form 1A","Notes","Form 1A","L17A - Inc. Claims Products Not PAA - Recov. on Reversals",null,null,null,null,{"$f":"'Form 1ASFS'!I293","v":0}]
["Form 1A","Notes","Form 1A","L17A - Inc. Claims Products Not PAA - Adj to Assets for Incurred Claims",null,null,null,null,{"$f":"'Form 1ASFS'!I294","v":0}]
["Form 1A","Notes","Form 1A","L17A - Inc. Claims Products Not PAA - Total Recov. From Reinsurers",null,null,null,null,{"$f":"'Form 1ASFS'!I295","v":0}]
["Form 1A","Notes","Form 1A","L17A - Inc. Claims Products Not PAA - Investment Components",null,null,null,null,{"$f":"'Form 1ASFS'!I297","v":0}]
["Form 1A","Notes","Form 1A","L17A - Inc. Claims Products Not PAA - Changes in Non-Performance Risk",null,null,null,null,{"$f":"'Form 1ASFS'!I298","v":0}]
["Form 1A","Notes","Form 1A","L17A - Inc. Claims Products Not PAA - Net Expenses from R/I Contracts",null,null,null,null,{"$f":"'Form 1ASFS'!I300","v":0}]
["Form 1A","Notes","Form 1A","L17A - Inc. Claims Products Not PAA - Net Finance profit",null,null,null,null,{"$f":"'Form 1ASFS'!I302","v":0}]
["Form 1A","Notes","Form 1A","L17A - Inc. Claims Products Not PAA - Foreign Exchange",null,null,null,null,{"$f":"'Form 1ASFS'!I303","v":0}]
["Form 1A","Notes","Form 1A","L17A - Inc. Claims Products Not PAA - Change in Profit or Loss",null,null,null,null,{"$f":"'Form 1ASFS'!I304","v":0}]
["Form 1A","Notes","Form 1A","L17A - Inc. Claims Products Not PAA - CF Premium Received",null,null,null,null,{"$f":"'Form 1ASFS'!I307","v":0}]
["Form 1A","Notes","Form 1A","L17A - Inc. Claims Products Not PAA - CF Incurred Claims",null,null,null,null,{"$f":"'Form 1ASFS'!I308","v":0}]
["Form 1A","Notes","Form 1A","L17A - Inc. Claims Products Not PAA - Total CF",null,null,null,null,{"$f":"'Form 1ASFS'!I309","v":0}]
["Form 1A","Notes","Form 1A","L17A - Inc. Claims Products Not PAA - Net Closing Balance",null,null,null,null,{"$f":"'Form 1ASFS'!I310","v":0}]
["Form 1A","Notes","Form 1A","L17A - Inc. Claims Products Not PAA - Closing Assets",null,null,null,null,{"$f":"'Form 1ASFS'!I312","v":0}]
["Form 1A","Notes","Form 1A","L17A - Inc. Claims Products Not PAA - Closing Liabilities",null,null,null,null,{"$f":"'Form 1ASFS'!I313","v":0}]
["Form 1A","Notes","Form 1A","L17A - Inc. Claims Products Not PAA - Net Closing Balance",null,null,null,null,{"$f":"'Form 1ASFS'!I314","v":0}]
["Form 1A","Notes","Form 1A","L17A - Inc. Claims PAA PV Cash Flow - Open Assets",null,null,null,null,{"$f":"'Form 1ASFS'!K282","v":0}]
["Form 1A","Notes","Form 1A","L17A - Inc. Claims PAA PV Cash Flow - Open Liabilities",null,null,null,null,{"$f":"'Form 1ASFS'!K283","v":0}]
["Form 1A","Notes","Form 1A","L17A - Inc. Claims PAA PV Cash Flow - Net Open",null,null,null,null,{"$f":"'Form 1ASFS'!K284","v":0}]
["Form 1A","Notes","Form 1A","L17A - Inc. Claims PAA PV Cash Flow - Premiums Paid",null,null,null,null,{"$f":"'Form 1ASFS'!K287","v":0}]
["Form 1A","Notes","Form 1A","L17A - Inc. Claims PAA PV Cash Flow - Recov. Incurred Claims",null,null,null,null,{"$f":"'Form 1ASFS'!K292","v":0}]
["Form 1A","Notes","Form 1A","L17A - Inc. Claims PAA PV Cash Flow - Recov. on Reversals",null,null,null,null,{"$f":"'Form 1ASFS'!K293","v":0}]
["Form 1A","Notes","Form 1A","L17A - Inc. Claims PAA PV Cash Flow - Adj to Assets for Incurred Claims",null,null,null,null,{"$f":"'Form 1ASFS'!K294","v":0}]
["Form 1A","Notes","Form 1A","L17A - Inc. Claims PAA PV Cash Flow - Total Recov. From Reinsurers",null,null,null,null,{"$f":"'Form 1ASFS'!K295","v":0}]
["Form 1A","Notes","Form 1A","L17A - Inc. Claims PAA PV Cash Flow - Investment Components",null,null,null,null,{"$f":"'Form 1ASFS'!K297","v":0}]
["Form 1A","Notes","Form 1A","L17A - Inc. Claims PAA PV Cash Flow - Changes in Non-Performance Risk",null,null,null,null,{"$f":"'Form 1ASFS'!K298","v":0}]
["Form 1A","Notes","Form 1A","L17A - Inc. Claims PAA PV Cash Flow - Net Expenses from R/I Contracts",null,null,null,null,{"$f":"'Form 1ASFS'!K300","v":0}]
["Form 1A","Notes","Form 1A","L17A - Inc. Claims PAA PV Cash Flow - Net Finance profit",null,null,null,null,{"$f":"'Form 1ASFS'!K302","v":0}]
["Form 1A","Notes","Form 1A","L17A - Inc. Claims PAA PV Cash Flow - Foreign Exchange",null,null,null,null,{"$f":"'Form 1ASFS'!K303","v":0}]
["Form 1A","Notes","Form 1A","L17A - Inc. Claims PAA PV Cash Flow - Change in Profit or Loss",null,null,null,null,{"$f":"'Form 1ASFS'!K304","v":0}]
["Form 1A","Notes","Form 1A","L17A - Inc. Claims PAA PV Cash Flow - CF Premium Received",null,null,null,null,{"$f":"'Form 1ASFS'!K307","v":0}]
["Form 1A","Notes","Form 1A","L17A - Inc. Claims PAA PV Cash Flow - CF Incurred Claims",null,null,null,null,{"$f":"'Form 1ASFS'!K308","v":0}]
["Form 1A","Notes","Form 1A","L17A - Inc. Claims PAA PV Cash Flow - Total CF",null,null,null,null,{"$f":"'Form 1ASFS'!K309","v":0}]
["Form 1A","Notes","Form 1A","L17A - Inc. Claims PAA PV Cash Flow - Net Closing Balance",null,null,null,null,{"$f":"'Form 1ASFS'!K310","v":0}]
["Form 1A","Notes","Form 1A","L17A - Inc. Claims PAA PV Cash Flow - Closing Assets",null,null,null,null,{"$f":"'Form 1ASFS'!K312","v":0}]
["Form 1A","Notes","Form 1A","L17A - Inc. Claims PAA PV Cash Flow - Closing Liabilities",null,null,null,null,{"$f":"'Form 1ASFS'!K313","v":0}]
["Form 1A","Notes","Form 1A","L17A - Inc. Claims PAA PV Cash Flow - Net Closing Balance",null,null,null,null,{"$f":"'Form 1ASFS'!K314","v":0}]
["Form 1A","Notes","Form 1A","L17A - Inc. Claims PAA Adj Non Fin. - Open Assets",null,null,null,null,{"$f":"'Form 1ASFS'!M282","v":0}]
["Form 1A","Notes","Form 1A","L17A - Inc. Claims PAA Adj Non Fin. - Open Liabilities",null,null,null,null,{"$f":"'Form 1ASFS'!M283","v":0}]
["Form 1A","Notes","Form 1A","L17A - Inc. Claims PAA Adj Non Fin. - Net Open",null,null,null,null,{"$f":"'Form 1ASFS'!M284","v":0}]
["Form 1A","Notes","Form 1A","L17A - Inc. Claims PAA Adj Non Fin. - Premiums Paid",null,null,null,null,{"$f":"'Form 1ASFS'!M287","v":0}]
["Form 1A","Notes","Form 1A","L17A - Inc. Claims PAA Adj Non Fin. - Recov. Incurred Claims",null,null,null,null,{"$f":"'Form 1ASFS'!M292","v":0}]
["Form 1A","Notes","Form 1A","L17A - Inc. Claims PAA Adj Non Fin. - Recov. on Reversals",null,null,null,null,{"$f":"'Form 1ASFS'!M293","v":0}]
["Form 1A","Notes","Form 1A","L17A - Inc. Claims PAA Adj Non Fin. - Adj to Assets for Incurred Claims",null,null,null,null,{"$f":"'Form 1ASFS'!M294","v":0}]
["Form 1A","Notes","Form 1A","L17A - Inc. Claims PAA Adj Non Fin. - Total Recov. From Reinsurers",null,null,null,null,{"$f":"'Form 1ASFS'!M295","v":0}]
["Form 1A","Notes","Form 1A","L17A - Inc. Claims PAA Adj Non Fin. - Investment Components",null,null,null,null,{"$f":"'Form 1ASFS'!M297","v":0}]
["Form 1A","Notes","Form 1A","L17A - Inc. Claims PAA Adj Non Fin. - Changes in Non-Performance Risk",null,null,null,null,{"$f":"'Form 1ASFS'!M298","v":0}]
["Form 1A","Notes","Form 1A","L17A - Inc. Claims PAA Adj Non Fin. - Net Expenses from R/I Contracts",null,null,null,null,{"$f":"'Form 1ASFS'!M300","v":0}]
["Form 1A","Notes","Form 1A","L17A - Inc. Claims PAA Adj Non Fin. - Net Finance profit",null,null,null,null,{"$f":"'Form 1ASFS'!M302","v":0}]
["Form 1A","Notes","Form 1A","L17A - Inc. Claims PAA Adj Non Fin. - Foreign Exchange",null,null,null,null,{"$f":"'Form 1ASFS'!M303","v":0}]
["Form 1A","Notes","Form 1A","L17A - Inc. Claims PAA Adj Non Fin. - Change in Profit or Loss",null,null,null,null,{"$f":"'Form 1ASFS'!M304","v":0}]
["Form 1A","Notes","Form 1A","L17A - Inc. Claims PAA Adj Non Fin. - CF Premium Received",null,null,null,null,{"$f":"'Form 1ASFS'!M307","v":0}]
["Form 1A","Notes","Form 1A","L17A - Inc. Claims PAA Adj Non Fin. - CF Incurred Claims",null,null,null,null,{"$f":"'Form 1ASFS'!M308","v":0}]
["Form 1A","Notes","Form 1A","L17A - Inc. Claims PAA Adj Non Fin. - Total CF",null,null,null,null,{"$f":"'Form 1ASFS'!M309","v":0}]
["Form 1A","Notes","Form 1A","L17A - Inc. Claims PAA Adj Non Fin. - Net Closing Balance",null,null,null,null,{"$f":"'Form 1ASFS'!M310","v":0}]
["Form 1A","Notes","Form 1A","L17A - Inc. Claims PAA Adj Non Fin. - Closing Assets",null,null,null,null,{"$f":"'Form 1ASFS'!M312","v":0}]
["Form 1A","Notes","Form 1A","L17A - Inc. Claims PAA Adj Non Fin. - Closing Liabilities",null,null,null,null,{"$f":"'Form 1ASFS'!M313","v":0}]
["Form 1A","Notes","Form 1A","L17A - Inc. Claims PAA Adj Non Fin. - Net Closing Balance",null,null,null,null,{"$f":"'Form 1ASFS'!M314","v":0}]
["Form 1A","Notes","Form 1A","L27A - Coverage Exc. Loss Comp - Open Assets",null,null,null,null,{"$f":"'Form 1ASFS'!E322","v":0}]
["Form 1A","Notes","Form 1A","L27A - Coverage Exc. Loss Comp - Open Liabilities",null,null,null,null,{"$f":"'Form 1ASFS'!E323","v":0}]
["Form 1A","Notes","Form 1A","L27A - Coverage Exc. Loss Comp - Net Open",null,null,null,null,{"$f":"'Form 1ASFS'!E324","v":0}]
["Form 1A","Notes","Form 1A","L27A - Coverage Exc. Loss Comp - Premiums Paid",null,null,null,null,{"$f":"'Form 1ASFS'!E327","v":0}]
["Form 1A","Notes","Form 1A","L27A - Coverage Exc. Loss Comp - Recov. Incurred Claims",null,null,null,null,{"$f":"'Form 1ASFS'!E330","v":0}]
["Form 1A","Notes","Form 1A","L27A - Coverage Exc. Loss Comp - Recov. on Reversals",null,null,null,null,{"$f":"'Form 1ASFS'!E331","v":0}]
["Form 1A","Notes","Form 1A","L27A - Coverage Exc. Loss Comp - Adj to Assets for Incurred Claims",null,null,null,null,{"$f":"'Form 1ASFS'!E332","v":0}]
["Form 1A","Notes","Form 1A","L27A - Coverage Exc. Loss Comp - Total Recov. From Reinsurers",null,null,null,null,{"$f":"'Form 1ASFS'!E333","v":0}]
["Form 1A","Notes","Form 1A","L27A - Coverage Exc. Loss Comp - Investment Components",null,null,null,null,{"$f":"'Form 1ASFS'!E335","v":0}]
["Form 1A","Notes","Form 1A","L27A - Coverage Exc. Loss Comp - Changes in Non-Performance Risk",null,null,null,null,{"$f":"'Form 1ASFS'!E336","v":0}]
["Form 1A","Notes","Form 1A","L27A - Coverage Exc. Loss Comp - Net Expenses from R/I Contracts",null,null,null,null,{"$f":"'Form 1ASFS'!E338","v":0}]
["Form 1A","Notes","Form 1A","L27A - Coverage Exc. Loss Comp - Net Finance profit",null,null,null,null,{"$f":"'Form 1ASFS'!E340","v":0}]
["Form 1A","Notes","Form 1A","L27A - Coverage Exc. Loss Comp - Foreign Exchange",null,null,null,null,{"$f":"'Form 1ASFS'!E341","v":0}]
["Form 1A","Notes","Form 1A","L27A - Coverage Exc. Loss Comp - Change in Profit or Loss",null,null,null,null,{"$f":"'Form 1ASFS'!E342","v":0}]
["Form 1A","Notes","Form 1A","L27A - Coverage Exc. Loss Comp - CF Premium Received",null,null,null,null,{"$f":"'Form 1ASFS'!E345","v":0}]
["Form 1A","Notes","Form 1A","L27A - Coverage Exc. Loss Comp - CF Incurred Claims",null,null,null,null,{"$f":"'Form 1ASFS'!E346","v":0}]
["Form 1A","Notes","Form 1A","L27A - Coverage Exc. Loss Comp - Total CF",null,null,null,null,{"$f":"'Form 1ASFS'!E347","v":0}]
["Form 1A","Notes","Form 1A","L27A - Coverage Exc. Loss Comp - Net Closing Balance",null,null,null,null,{"$f":"'Form 1ASFS'!E348","v":0}]
["Form 1A","Notes","Form 1A","L27A - Coverage Exc. Loss Comp - Closing Assets",null,null,null,null,{"$f":"'Form 1ASFS'!E350","v":0}]
["Form 1A","Notes","Form 1A","L27A - Coverage Exc. Loss Comp - Closing Liabilities",null,null,null,null,{"$f":"'Form 1ASFS'!E351","v":0}]
["Form 1A","Notes","Form 1A","L27A - Coverage Exc. Loss Comp - Net Closing Balance",null,null,null,null,{"$f":"'Form 1ASFS'!E352","v":0}]
["Form 1A","Notes","Form 1A","L27A - Coverage Inc. Loss Comp - Open Assets",null,null,null,null,{"$f":"'Form 1ASFS'!G322","v":0}]
["Form 1A","Notes","Form 1A","L27A - Coverage Inc. Loss Comp - Open Liabilities",null,null,null,null,{"$f":"'Form 1ASFS'!G323","v":0}]
["Form 1A","Notes","Form 1A","L27A - Coverage Inc. Loss Comp - Net Open",null,null,null,null,{"$f":"'Form 1ASFS'!G324","v":0}]
["Form 1A","Notes","Form 1A","L27A - Coverage Inc. Loss Comp - Premiums Paid",null,null,null,null,{"$f":"'Form 1ASFS'!G327","v":0}]
["Form 1A","Notes","Form 1A","L27A - Coverage Inc. Loss Comp - Recov. Incurred Claims",null,null,null,null,{"$f":"'Form 1ASFS'!G330","v":0}]
["Form 1A","Notes","Form 1A","L27A - Coverage Inc. Loss Comp - Recov. on Reversals",null,null,null,null,{"$f":"'Form 1ASFS'!G331","v":0}]
["Form 1A","Notes","Form 1A","L27A - Coverage Inc. Loss Comp - Adj to Assets for Incurred Claims",null,null,null,null,{"$f":"'Form 1ASFS'!G332","v":0}]
["Form 1A","Notes","Form 1A","L27A - Coverage Inc. Loss Comp - Total Recov. From Reinsurers",null,null,null,null,{"$f":"'Form 1ASFS'!G333","v":0}]
["Form 1A","Notes","Form 1A","L27A - Coverage Inc. Loss Comp - Investment Components",null,null,null,null,{"$f":"'Form 1ASFS'!G335","v":0}]
["Form 1A","Notes","Form 1A","L27A - Coverage Inc. Loss Comp - Changes in Non-Performance Risk",null,null,null,null,{"$f":"'Form 1ASFS'!G336","v":0}]
["Form 1A","Notes","Form 1A","L27A - Coverage Inc. Loss Comp - Net Expenses from R/I Contracts",null,null,null,null,{"$f":"'Form 1ASFS'!G338","v":0}]
["Form 1A","Notes","Form 1A","L27A - Coverage Inc. Loss Comp - Net Finance profit",null,null,null,null,{"$f":"'Form 1ASFS'!G340","v":0}]
["Form 1A","Notes","Form 1A","L27A - Coverage Inc. Loss Comp - Foreign Exchange",null,null,null,null,{"$f":"'Form 1ASFS'!G341","v":0}]
["Form 1A","Notes","Form 1A","L27A - Coverage Inc. Loss Comp - Change in Profit or Loss",null,null,null,null,{"$f":"'Form 1ASFS'!G342","v":0}]
["Form 1A","Notes","Form 1A","L27A - Coverage Inc. Loss Comp - CF Premium Received",null,null,null,null,{"$f":"'Form 1ASFS'!G345","v":0}]
["Form 1A","Notes","Form 1A","L27A - Coverage Inc. Loss Comp - CF Incurred Claims",null,null,null,null,{"$f":"'Form 1ASFS'!G346","v":0}]
["Form 1A","Notes","Form 1A","L27A - Coverage Inc. Loss Comp - Total CF",null,null,null,null,{"$f":"'Form 1ASFS'!G347","v":0}]
["Form 1A","Notes","Form 1A","L27A - Coverage Inc. Loss Comp - Net Closing Balance",null,null,null,null,{"$f":"'Form 1ASFS'!G348","v":0}]
["Form 1A","Notes","Form 1A","L27A - Coverage Inc. Loss Comp - Closing Assets",null,null,null,null,{"$f":"'Form 1ASFS'!G350","v":0}]
["Form 1A","Notes","Form 1A","L27A - Coverage Inc. Loss Comp - Closing Liabilities",null,null,null,null,{"$f":"'Form 1ASFS'!G351","v":0}]
["Form 1A","Notes","Form 1A","L27A - Coverage Inc. Loss Comp - Net Closing Balance",null,null,null,null,{"$f":"'Form 1ASFS'!G352","v":0}]
["Form 1A","Notes","Form 1A","L27A - Inc. Claims - Open Assets",null,null,null,null,{"$f":"'Form 1ASFS'!I322","v":0}]
["Form 1A","Notes","Form 1A","L27A - Inc. Claims - Open Liabilities",null,null,null,null,{"$f":"'Form 1ASFS'!I323","v":0}]
["Form 1A","Notes","Form 1A","L27A - Inc. Claims - Net Open",null,null,null,null,{"$f":"'Form 1ASFS'!I324","v":0}]
["Form 1A","Notes","Form 1A","L27A - Inc. Claims - Premiums Paid",null,null,null,null,{"$f":"'Form 1ASFS'!I327","v":0}]
["Form 1A","Notes","Form 1A","L27A - Inc. Claims - Recov. Incurred Claims",null,null,null,null,{"$f":"'Form 1ASFS'!I330","v":0}]
["Form 1A","Notes","Form 1A","L27A - Inc. Claims - Recov. on Reversals",null,null,null,null,{"$f":"'Form 1ASFS'!I331","v":0}]
["Form 1A","Notes","Form 1A","L27A - Inc. Claims - Adj to Assets for Incurred Claims",null,null,null,null,{"$f":"'Form 1ASFS'!I332","v":0}]
["Form 1A","Notes","Form 1A","L27A - Inc. Claims - Total Recov. From Reinsurers",null,null,null,null,{"$f":"'Form 1ASFS'!I333","v":0}]
["Form 1A","Notes","Form 1A","L27A - Inc. Claims - Investment Components",null,null,null,null,{"$f":"'Form 1ASFS'!I335","v":0}]
["Form 1A","Notes","Form 1A","L27A - Inc. Claims - Changes in Non-Performance Risk",null,null,null,null,{"$f":"'Form 1ASFS'!I336","v":0}]
["Form 1A","Notes","Form 1A","L27A - Inc. Claims - Net Expenses from R/I Contracts",null,null,null,null,{"$f":"'Form 1ASFS'!I338","v":0}]
["Form 1A","Notes","Form 1A","L27A - Inc. Claims - Net Finance profit",null,null,null,null,{"$f":"'Form 1ASFS'!I340","v":0}]
["Form 1A","Notes","Form 1A","L27A - Inc. Claims - Foreign Exchange",null,null,null,null,{"$f":"'Form 1ASFS'!I341","v":0}]
["Form 1A","Notes","Form 1A","L27A - Inc. Claims - Change in Profit or Loss",null,null,null,null,{"$f":"'Form 1ASFS'!I342","v":0}]
["Form 1A","Notes","Form 1A","L27A - Inc. Claims - CF Premium Received",null,null,null,null,{"$f":"'Form 1ASFS'!I345","v":0}]
["Form 1A","Notes","Form 1A","L27A - Inc. Claims - CF Incurred Claims",null,null,null,null,{"$f":"'Form 1ASFS'!I346","v":0}]
["Form 1A","Notes","Form 1A","L27A - Inc. Claims - Total CF",null,null,null,null,{"$f":"'Form 1ASFS'!I347","v":0}]
["Form 1A","Notes","Form 1A","L27A - Inc. Claims - Net Closing Balance",null,null,null,null,{"$f":"'Form 1ASFS'!I348","v":0}]
["Form 1A","Notes","Form 1A","L27A - Inc. Claims - Closing Assets",null,null,null,null,{"$f":"'Form 1ASFS'!I350","v":0}]
["Form 1A","Notes","Form 1A","L27A - Inc. Claims - Closing Liabilities",null,null,null,null,{"$f":"'Form 1ASFS'!I351","v":0}]
["Form 1A","Notes","Form 1A","L27A - Inc. Claims - Net Closing Balance",null,null,null,null,{"$f":"'Form 1ASFS'!I352","v":0}]
[]
[null,null,null,"IFRS Income Statement"]
["Form 2ASFS","Income Stmt Uncon GEN / CON","2ASFS1","Insurance Contract Revenue",{"$f":"'Form 2ASFS'!E11","v":0},null,{"$f":"'Form 2ASFS'!G11","v":0},null,{"$f":"'Form 2ASFS'!M11","v":0},null,{"$f":"'Form 2ASFS'!O11","v":0}]
["Form 2ASFS","Income Stmt Uncon GEN / CON","2ASFS2a","Incurred Claims",{"$f":"'Form 2ASFS'!E14","v":0},null,{"$f":"'Form 2ASFS'!G14","v":0},null,{"$f":"'Form 2ASFS'!M14","v":0},null,{"$f":"'Form 2ASFS'!O14","v":0}]
["Form 2ASFS","Income Stmt Uncon GEN / CON","2ASFS2b","Acquisition Cash Flows",{"$f":"'Form 2ASFS'!E15","v":0},null,{"$f":"'Form 2ASFS'!G15","v":0},null,{"$f":"'Form 2ASFS'!M15","v":0},null,{"$f":"'Form 2ASFS'!O15","v":0}]
["Form 2ASFS","Income Stmt Uncon GEN / CON","2ASFS2c","Adj for Liability Incurred Claims",{"$f":"'Form 2ASFS'!E16","v":0},null,{"$f":"'Form 2ASFS'!G16","v":0},null,{"$f":"'Form 2ASFS'!M16","v":0},null,{"$f":"'Form 2ASFS'!O16","v":0}]
["Form 2ASFS","Income Stmt Uncon GEN / CON","2ASFS2d","Losses on Onerous Contracts",{"$f":"'Form 2ASFS'!E17","v":0},null,{"$f":"'Form 2ASFS'!G17","v":0},null,{"$f":"'Form 2ASFS'!M17","v":0},null,{"$f":"'Form 2ASFS'!O17","v":0}]
["Form 2ASFS","Income Stmt Uncon GEN / CON","2ASFS2e","Other Service Expenses",{"$f":"'Form 2ASFS'!E18","v":0},null,{"$f":"'Form 2ASFS'!G18","v":0},null,{"$f":"'Form 2ASFS'!M18","v":0},null,{"$f":"'Form 2ASFS'!O18","v":0}]
["Form 2ASFS","Income Stmt Uncon GEN / CON","2ASFS2f","Total Insurance Service Expense",{"$f":"'Form 2ASFS'!E19","v":0},null,{"$f":"'Form 2ASFS'!G19","v":0},null,{"$f":"'Form 2ASFS'!M19","v":0},null,{"$f":"'Form 2ASFS'!O19","v":0}]
["Form 2ASFS","Income Stmt Uncon GEN / CON","2ASFS3","Insurance Service Results Before R/I",{"$f":"'Form 2ASFS'!E21","v":0},null,{"$f":"'Form 2ASFS'!G21","v":0},null,{"$f":"'Form 2ASFS'!M21","v":0},null,{"$f":"'Form 2ASFS'!O21","v":0}]
["Form 2ASFS","Income Stmt Uncon GEN / CON","2ASFS4a","R/I Recoveries and Other Income",{"$f":"'Form 2ASFS'!E24","v":0},null,{"$f":"'Form 2ASFS'!G24","v":0},null,{"$f":"'Form 2ASFS'!M24","v":0},null,{"$f":"'Form 2ASFS'!O24","v":0}]
["Form 2ASFS","Income Stmt Uncon GEN / CON","2ASFS4b","R/I Expenses",{"$f":"'Form 2ASFS'!E25","v":0},null,{"$f":"'Form 2ASFS'!G25","v":0},null,{"$f":"'Form 2ASFS'!M25","v":0},null,{"$f":"'Form 2ASFS'!O25","v":0}]
["Form 2ASFS","Income Stmt Uncon GEN / CON","2ASFS4c","Net Expenses R/I Contracts Held",{"$f":"'Form 2ASFS'!E26","v":0},null,{"$f":"'Form 2ASFS'!G26","v":0},null,{"$f":"'Form 2ASFS'!M26","v":0},null,{"$f":"'Form 2ASFS'!O26","v":0}]
["Form 2ASFS","Income Stmt Uncon GEN / CON","2ASFS5","Insurance Service Results",{"$f":"'Form 2ASFS'!E28","v":0},null,{"$f":"'Form 2ASFS'!G28","v":0},null,{"$f":"'Form 2ASFS'!M28","v":0},null,{"$f":"'Form 2ASFS'!O28","v":0}]
["Form 2ASFS","Income Stmt Uncon GEN / CON","2ASFS6a","Net Interest Income",{"$f":"'Form 2ASFS'!E31","v":0},null,{"$f":"'Form 2ASFS'!G31","v":0},null,{"$f":"'Form 2ASFS'!M31","v":0},null,{"$f":"'Form 2ASFS'!O31","v":0}]
["Form 2ASFS","Income Stmt Uncon GEN / CON","2ASFS6b","Net Realized",{"$f":"'Form 2ASFS'!E32","v":0},null,{"$f":"'Form 2ASFS'!G32","v":0},null,{"$f":"'Form 2ASFS'!M32","v":0},null,{"$f":"'Form 2ASFS'!O32","v":0}]
["Form 2ASFS","Income Stmt Uncon GEN / CON","2ASFS6c","Net Foreign Exchange",{"$f":"'Form 2ASFS'!E33","v":0},null,{"$f":"'Form 2ASFS'!G33","v":0},null,{"$f":"'Form 2ASFS'!M33","v":0},null,{"$f":"'Form 2ASFS'!O33","v":0}]
["Form 2ASFS","Income Stmt Uncon GEN / CON","2ASFS6d","Credit Impairment Losses",{"$f":"'Form 2ASFS'!E34","v":0},null,{"$f":"'Form 2ASFS'!G34","v":0},null,{"$f":"'Form 2ASFS'!M34","v":0},null,{"$f":"'Form 2ASFS'!O34","v":0}]
["Form 2ASFS","Income Stmt Uncon GEN / CON","2ASFS6e","Other Investment Returns",{"$f":"'Form 2ASFS'!E35","v":0},null,{"$f":"'Form 2ASFS'!G35","v":0},null,{"$f":"'Form 2ASFS'!M35","v":0},null,{"$f":"'Form 2ASFS'!O35","v":0}]
["Form 2ASFS","Income Stmt Uncon GEN / CON","2ASFS6f","Total Investment Returns",{"$f":"'Form 2ASFS'!E36","v":0},null,{"$f":"'Form 2ASFS'!G36","v":0},null,{"$f":"'Form 2ASFS'!M36","v":0},null,{"$f":"'Form 2ASFS'!O36","v":0}]
["Form 2ASFS","Income Stmt Uncon GEN / CON","2ASFS7a","Net Finance Expense from Insurance",{"$f":"'Form 2ASFS'!E39","v":0},null,{"$f":"'Form 2ASFS'!G39","v":0},null,{"$f":"'Form 2ASFS'!M39","v":0},null,{"$f":"'Form 2ASFS'!O39","v":0}]
["Form 2ASFS","Income Stmt Uncon GEN / CON","2ASFS7b","Net Finance Expense from Reinsurance",{"$f":"'Form 2ASFS'!E40","v":0},null,{"$f":"'Form 2ASFS'!G40","v":0},null,{"$f":"'Form 2ASFS'!M40","v":0},null,{"$f":"'Form 2ASFS'!O40","v":0}]
["Form 2ASFS","Income Stmt Uncon GEN / CON","2ASFS7c","Insurance Finance Results",{"$f":"'Form 2ASFS'!E41","v":0},null,{"$f":"'Form 2ASFS'!G41","v":0},null,{"$f":"'Form 2ASFS'!M41","v":0},null,{"$f":"'Form 2ASFS'!O41","v":0}]
["Form 2ASFS","Income Stmt Uncon GEN / CON","2ASFS8","Net Insurance Financial and Investment Results",{"$f":"'Form 2ASFS'!E43","v":0},null,{"$f":"'Form 2ASFS'!G43","v":0},null,{"$f":"'Form 2ASFS'!M43","v":0},null,{"$f":"'Form 2ASFS'!O43","v":0}]
["Form 2ASFS","Income Stmt Uncon GEN / CON","2ASFS9","Other Income",{"$f":"'Form 2ASFS'!E45","v":0},null,{"$f":"'Form 2ASFS'!G45","v":0},null,{"$f":"'Form 2ASFS'!M45","v":0},null,{"$f":"'Form 2ASFS'!O45","v":0}]
["Form 2ASFS","Income Stmt Uncon GEN / CON","2ASFS10","Profit Before Tax",{"$f":"'Form 2ASFS'!E48","v":0},null,{"$f":"'Form 2ASFS'!G48","v":0},null,{"$f":"'Form 2ASFS'!M48","v":0},null,{"$f":"'Form 2ASFS'!O48","v":0}]
["Form 2ASFS","Income Stmt Uncon GEN / CON","2ASFS11","Income Tax",{"$f":"'Form 2ASFS'!E50","v":0},null,{"$f":"'Form 2ASFS'!G50","v":0},null,{"$f":"'Form 2ASFS'!M50","v":0},null,{"$f":"'Form 2ASFS'!O50","v":0}]
["Form 2ASFS","Income Stmt Uncon GEN / CON","2ASFS12","Net Income",{"$f":"'Form 2ASFS'!E52","v":0},null,{"$f":"'Form 2ASFS'!G52","v":0},null,{"$f":"'Form 2ASFS'!M52","v":0},null,{"$f":"'Form 2ASFS'!O52","v":0}]
[]
["Form 2ASFS","Income Stmt Uncon LT","2ASFS1","Insurance Contract Revenue",{"$f":"'Form 2ASFS'!I11","v":0},null,{"$f":"'Form 2ASFS'!K11","v":0}]
["Form 2ASFS","Income Stmt Uncon LT","2ASFS2a","Incurred Claims",{"$f":"'Form 2ASFS'!I14","v":0},null,{"$f":"'Form 2ASFS'!K14","v":0}]
["Form 2ASFS","Income Stmt Uncon LT","2ASFS2b","Acquisition Cash Flows",{"$f":"'Form 2ASFS'!I15","v":0},null,{"$f":"'Form 2ASFS'!K15","v":0}]
["Form 2ASFS","Income Stmt Uncon LT","2ASFS2c","Adj for Liability Incurred Claims",{"$f":"'Form 2ASFS'!I16","v":0},null,{"$f":"'Form 2ASFS'!K16","v":0}]
["Form 2ASFS","Income Stmt Uncon LT","2ASFS2d","Losses on Onerous Contracts",{"$f":"'Form 2ASFS'!I17","v":0},null,{"$f":"'Form 2ASFS'!K17","v":0}]
["Form 2ASFS","Income Stmt Uncon LT","2ASFS2e","Other Service Expenses",{"$f":"'Form 2ASFS'!I18","v":0},null,{"$f":"'Form 2ASFS'!K18","v":0}]
["Form 2ASFS","Income Stmt Uncon LT","2ASFS2f","Total Insurance Service Expense",{"$f":"'Form 2ASFS'!I19","v":0},null,{"$f":"'Form 2ASFS'!K19","v":0}]
["Form 2ASFS","Income Stmt Uncon LT","2ASFS3","Insurance Service Results Before R/I",{"$f":"'Form 2ASFS'!I21","v":0},null,{"$f":"'Form 2ASFS'!K21","v":0}]
["Form 2ASFS","Income Stmt Uncon LT","2ASFS4a","R/I Recoveries and Other Income",{"$f":"'Form 2ASFS'!I24","v":0},null,{"$f":"'Form 2ASFS'!K24","v":0}]
["Form 2ASFS","Income Stmt Uncon LT","2ASFS4b","R/I Expenses",{"$f":"'Form 2ASFS'!I25","v":0},null,{"$f":"'Form 2ASFS'!K25","v":0}]
["Form 2ASFS","Income Stmt Uncon LT","2ASFS4c","Net Expenses R/I Contracts Held",{"$f":"'Form 2ASFS'!I26","v":0},null,{"$f":"'Form 2ASFS'!K26","v":0}]
["Form 2ASFS","Income Stmt Uncon LT","2ASFS5","Insurance Service Results",{"$f":"'Form 2ASFS'!I28","v":0},null,{"$f":"'Form 2ASFS'!K28","v":0}]
["Form 2ASFS","Income Stmt Uncon LT","2ASFS6a","Net Interest Income",{"$f":"'Form 2ASFS'!I31","v":0},null,{"$f":"'Form 2ASFS'!K31","v":0}]
["Form 2ASFS","Income Stmt Uncon LT","2ASFS6b","Net Realized",{"$f":"'Form 2ASFS'!I32","v":0},null,{"$f":"'Form 2ASFS'!K32","v":0}]
["Form 2ASFS","Income Stmt Uncon LT","2ASFS6c","Net Foreign Exchange",{"$f":"'Form 2ASFS'!I33","v":0},null,{"$f":"'Form 2ASFS'!K33","v":0}]
["Form 2ASFS","Income Stmt Uncon LT","2ASFS6d","Credit Impairment Losses",{"$f":"'Form 2ASFS'!I34","v":0},null,{"$f":"'Form 2ASFS'!K34","v":0}]
["Form 2ASFS","Income Stmt Uncon LT","2ASFS6e","Other Investment Returns",{"$f":"'Form 2ASFS'!I35","v":0},null,{"$f":"'Form 2ASFS'!K35","v":0}]
["Form 2ASFS","Income Stmt Uncon LT","2ASFS6f","Total Investment Returns",{"$f":"'Form 2ASFS'!I36","v":0},null,{"$f":"'Form 2ASFS'!K36","v":0}]
["Form 2ASFS","Income Stmt Uncon LT","2ASFS7a","Net Finance Expense from Insurance",{"$f":"'Form 2ASFS'!I39","v":0},null,{"$f":"'Form 2ASFS'!K39","v":0}]
["Form 2ASFS","Income Stmt Uncon LT","2ASFS7b","Net Finance Expense from Reinsurance",{"$f":"'Form 2ASFS'!I40","v":0},null,{"$f":"'Form 2ASFS'!K40","v":0}]
["Form 2ASFS","Income Stmt Uncon LT","2ASFS7c","Insurance Finance Results",{"$f":"'Form 2ASFS'!I41","v":0},null,{"$f":"'Form 2ASFS'!K41","v":0}]
["Form 2ASFS","Income Stmt Uncon LT","2ASFS8","Net Insurance Financial and Investment Results",{"$f":"'Form 2ASFS'!I43","v":0},null,{"$f":"'Form 2ASFS'!K43","v":0}]
["Form 2ASFS","Income Stmt Uncon LT","2ASFS9","Other Income",{"$f":"'Form 2ASFS'!I45","v":0},null,{"$f":"'Form 2ASFS'!K45","v":0}]
["Form 2ASFS","Income Stmt Uncon LT","2ASFS10","Profit Before Tax",{"$f":"'Form 2ASFS'!I48","v":0},null,{"$f":"'Form 2ASFS'!K48","v":0}]
["Form 2ASFS","Income Stmt Uncon LT","2ASFS11","Income Tax",{"$f":"'Form 2ASFS'!I50","v":0},null,{"$f":"'Form 2ASFS'!K50","v":0}]
["Form 2ASFS","Income Stmt Uncon LT","2ASFS12","Net Income",{"$f":"'Form 2ASFS'!I52","v":0},null,{"$f":"'Form 2ASFS'!K52","v":0}]
[]
["Form 2ASFS","Notes","Revenue","Expected Incurred Claims",{"$f":"'Form 2ASFS'!E61","v":0}]
["Form 2ASFS","Notes","Revenue","CSM for Services Provided",{"$f":"'Form 2ASFS'!E63","v":0}]
["Form 2ASFS","Notes","Revenue","Change in Risk Adjustment",{"$f":"'Form 2ASFS'!E65","v":0}]
["Form 2ASFS","Notes","Revenue","Recovery of Insurance Acqusition",{"$f":"'Form 2ASFS'!E67","v":0}]
["Form 2ASFS","Notes","Revenue","Contracts Measured under the General Model",{"$f":"'Form 2ASFS'!E69","v":0}]
["Form 2ASFS","Notes","Revenue","Contracts Measured under PAA",{"$f":"'Form 2ASFS'!E71","v":0}]
["Form 2ASFS","Notes","Revenue","Total Insurance Revenue",{"$f":"'Form 2ASFS'!E73","v":0}]
["Form 2ASFS","Notes","Premium","General Business GPW",{"$f":"'Form 2ASFS'!E77","v":0},null,null,null,{"$f":"'Form 2ASFS'!M77","v":0}]
["Form 2ASFS","Notes","Premium","General Business Premiums Ceded",{"$f":"'Form 2ASFS'!E78","v":0},null,null,null,{"$f":"'Form 2ASFS'!M78","v":0}]
["Form 2ASFS","Notes","Premium","General Business NPW",{"$f":"'Form 2ASFS'!E79","v":0},null,null,null,{"$f":"'Form 2ASFS'!M79","v":0}]
["Form 2ASFS","Notes","Premium","General Business Net Losses Incurred",{"$f":"'Form 2ASFS'!E81","v":0},null,null,null,{"$f":"'Form 2ASFS'!M81","v":0}]
["Form 2ASFS","Notes","Premium","Long-Term GPW",{"$f":"'Form 2ASFS'!E83","v":0},null,null,null,{"$f":"'Form 2ASFS'!M83","v":0}]
["Form 2ASFS","Notes","Premium","Long-Term Premiums Ceded",{"$f":"'Form 2ASFS'!E84","v":0},null,null,null,{"$f":"'Form 2ASFS'!M84","v":0}]
["Form 2ASFS","Notes","Premium","Long-Term NPW",{"$f":"'Form 2ASFS'!E85","v":0},null,null,null,{"$f":"'Form 2ASFS'!M85","v":0}]
["Form 2ASFS","Notes","Oper. Exp.","General and Administrative Expense",{"$f":"'Form 2ASFS'!E89","v":0},null,null,null,{"$f":"'Form 2ASFS'!M89","v":0}]
["Form 2ASFS","Notes","Oper. Exp.","Personnel Costs",{"$f":"'Form 2ASFS'!E90","v":0},null,null,null,{"$f":"'Form 2ASFS'!M90","v":0}]
["Form 2ASFS","Notes","Oper. Exp.","Other Expenses",{"$f":"'Form 2ASFS'!E91","v":0},null,null,null,{"$f":"'Form 2ASFS'!M91","v":0}]
["Form 2ASFS","Notes","Oper. Exp.","Total Combined Operating Expense",{"$f":"'Form 2ASFS'!E92","v":0},null,null,null,{"$f":"'Form 2ASFS'!M92","v":0}]
[]
[null,null,null,"Statement of Capital & Surplus"]
["Form 8ASFS","Stmt of C&S Uncon GEN / CON","8ASFS1ai","Capital Stock",{"$f":"'Form 8ASFS'!G11","v":0},null,{"$f":"'Form 8ASFS'!I11","v":0}]
["Form 8ASFS","Stmt of C&S Uncon GEN / CON",null,"Common Stock",null,null,null,null,{"$f":"'Form 8ASFS'!O12","v":0},null,{"$f":"'Form 8ASFS'!Q12","v":0}]
["Form 8ASFS","Stmt of C&S Uncon GEN / CON","8ASFS1aii","Preferred Shares",null,null,null,null,{"$f":"'Form 8ASFS'!O17","v":0},null,{"$f":"'Form 8ASFS'!Q17","v":0}]
["Form 8ASFS","Stmt of C&S Uncon GEN / CON","8ASFS1aiii","Treasury Shares",null,null,null,null,{"$f":"'Form 8ASFS'!O25","v":0},null,{"$f":"'Form 8ASFS'!Q25","v":0}]
["Form 8ASFS","Stmt of C&S Uncon GEN / CON","8ASFS1b","Contributed Surplus",{"$f":"'Form 8ASFS'!G29","v":0},null,{"$f":"'Form 8ASFS'!I29","v":0},null,{"$f":"'Form 8ASFS'!O29","v":0},null,{"$f":"'Form 8ASFS'!Q29","v":0}]
["Form 8ASFS","Stmt of C&S Uncon GEN / CON","8ASFS1ci","Other Fixed Capital - Hybrid Instruments",{"$f":"'Form 8ASFS'!G32","v":0},null,{"$f":"'Form 8ASFS'!I32","v":0},null,{"$f":"'Form 8ASFS'!O32","v":0},null,{"$f":"'Form 8ASFS'!Q32","v":0}]
["Form 8ASFS","Stmt of C&S Uncon GEN / CON","8ASFS1cii","Other Fixed Capital - Guarantees & Others",{"$f":"'Form 8ASFS'!G33","v":0},null,{"$f":"'Form 8ASFS'!I33","v":0},null,{"$f":"'Form 8ASFS'!O33","v":0},null,{"$f":"'Form 8ASFS'!Q33","v":0}]
["Form 8ASFS","Stmt of C&S Uncon GEN / CON","8ASFS2a","Statutory Surplus - Beginning of Year",{"$f":"'Form 8ASFS'!G40","v":0},null,{"$f":"'Form 8ASFS'!I40","v":0},null,{"$f":"'Form 8ASFS'!O40","v":0},null,{"$f":"'Form 8ASFS'!Q40","v":0}]
["Form 8ASFS","Stmt of C&S Uncon GEN / CON","8ASFS2c","Dividends",{"$f":"'Form 8ASFS'!G44","v":0},null,{"$f":"'Form 8ASFS'!I44","v":0},null,{"$f":"'Form 8ASFS'!O44","v":0},null,{"$f":"'Form 8ASFS'!Q44","v":0}]
["Form 8ASFS","Stmt of C&S Uncon GEN / CON","8ASFS2d","Unrealized Change in Investments",{"$f":"'Form 8ASFS'!G46","v":0},null,{"$f":"'Form 8ASFS'!I46","v":0},null,{"$f":"'Form 8ASFS'!O46","v":0},null,{"$f":"'Form 8ASFS'!Q46","v":0}]
["Form 8ASFS","Stmt of C&S Uncon GEN / CON","8ASFS2e","Change in Non-Admitted Assets",{"$f":"'Form 8ASFS'!G48","v":0},null,{"$f":"'Form 8ASFS'!I48","v":0},null,{"$f":"'Form 8ASFS'!O48","v":0},null,{"$f":"'Form 8ASFS'!Q48","v":0}]
["Form 8ASFS","Stmt of C&S Uncon GEN / CON","8ASFS2f","Change in Real Estate",{"$f":"'Form 8ASFS'!G50","v":0},null,{"$f":"'Form 8ASFS'!I50","v":0},null,{"$f":"'Form 8ASFS'!O50","v":0},null,{"$f":"'Form 8ASFS'!Q50","v":0}]
["Form 8ASFS","Stmt of C&S Uncon GEN / CON","8ASFS2g","Change in Other Statutory Capital",{"$f":"'Form 8ASFS'!G52","v":0},null,{"$f":"'Form 8ASFS'!I52","v":0},null,{"$f":"'Form 8ASFS'!O52","v":0},null,{"$f":"'Form 8ASFS'!Q52","v":0}]
["Form 8ASFS","Stmt of C&S Uncon GEN / CON","8ASFS3","Minority Interest",{"$f":"'Form 8ASFS'!G56","v":0},null,{"$f":"'Form 8ASFS'!I56","v":0},null,{"$f":"'Form 8ASFS'!O56","v":0},null,{"$f":"'Form 8ASFS'!Q56","v":0}]
[]
["Form 8ASFS","Stmt of C&S Uncon LT","8ASFS1a","Common Stock",{"$f":"'Form 8ASFS'!K11","v":0},null,{"$f":"'Form 8ASFS'!M11","v":0}]
["Form 8ASFS","Stmt of C&S Uncon LT","8ASFS1b","Contributed Surplus",{"$f":"'Form 8ASFS'!K29","v":0},null,{"$f":"'Form 8ASFS'!M29","v":0}]
["Form 8ASFS","Stmt of C&S Uncon LT","8ASFS1ci","Other Fixed Capital - Hybrid Instruments",{"$f":"'Form 8ASFS'!K32","v":0},null,{"$f":"'Form 8ASFS'!M32","v":0}]
["Form 8ASFS","Stmt of C&S Uncon LT","8ASFS1cii","Other Fixed Capital - Guarantees & Others",{"$f":"'Form 8ASFS'!K33","v":0},null,{"$f":"'Form 8ASFS'!M33","v":0}]
["Form 8ASFS","Stmt of C&S Uncon LT","8ASFS2a","Statutory Surplus - Beginning of Year",{"$f":"'Form 8ASFS'!K40","v":0},null,{"$f":"'Form 8ASFS'!M40","v":0}]
["Form 8ASFS","Stmt of C&S Uncon LT","8ASFS2c","Dividends",{"$f":"'Form 8ASFS'!K44","v":0},null,{"$f":"'Form 8ASFS'!M44","v":0}]
["Form 8ASFS","Stmt of C&S Uncon LT","8ASFS2d","Unrealized Change in Investments",{"$f":"'Form 8ASFS'!K46","v":0},null,{"$f":"'Form 8ASFS'!M46","v":0}]
["Form 8ASFS","Stmt of C&S Uncon LT","8ASFS2e","Change in Non-Admitted Assets",{"$f":"'Form 8ASFS'!K48","v":0},null,{"$f":"'Form 8ASFS'!M48","v":0}]
["Form 8ASFS","Stmt of C&S Uncon LT","8ASFS2f","Change in Real Estate",{"$f":"'Form 8ASFS'!K50","v":0},null,{"$f":"'Form 8ASFS'!M50","v":0}]
["Form 8ASFS","Stmt of C&S Uncon LT","8ASFS2g","Change in Other Statutory Capital",{"$f":"'Form 8ASFS'!K52","v":0},null,{"$f":"'Form 8ASFS'!M52","v":0}]
["Form 8ASFS","Stmt of C&S Uncon LT","8ASFS3","Minority Interest",{"$f":"'Form 8ASFS'!K56","v":0},null,{"$f":"'Form 8ASFS'!M56","v":0}]
[]
["Form 8ASFS","Notes","2g","Description 1",{"$f":"'Form 8ASFS'!G61","v":0}]
["Form 8ASFS","Notes","2g","Description 2",{"$f":"'Form 8ASFS'!G62","v":0}]
["Form 8ASFS","Notes","2g","Description 3",{"$f":"'Form 8ASFS'!G63","v":0}]
["Form 8ASFS","Notes","2g","Description 4",{"$f":"'Form 8ASFS'!G64","v":0}]
["Form 8ASFS","Notes","2g","IFRS 4 to 17 Adj",{"$f":"'Form 8ASFS'!K61","v":0},null,null,null,{"$f":"'Form 8ASFS'!O61","v":0}]
["Form 8ASFS","Notes","2g","Other Adj 1",{"$f":"'Form 8ASFS'!K62","v":0},null,null,null,{"$f":"'Form 8ASFS'!O62","v":0}]
["Form 8ASFS","Notes","2g","Other Adj 2",{"$f":"'Form 8ASFS'!K63","v":0},null,null,null,{"$f":"'Form 8ASFS'!O63","v":0}]
["Form 8ASFS","Notes","2g","Other Adj 3",{"$f":"'Form 8ASFS'!K64","v":0},null,null,null,{"$f":"'Form 8ASFS'!O64","v":0}]
["Form 8ASFS","Notes","2g","Other Adj 4",{"$f":"'Form 8ASFS'!K65","v":0},null,null,null,{"$f":"'Form 8ASFS'!O65","v":0}]
[]
[null,null,null,"BSCR Schedules "]
["Sch II","Investments",null,"Corp. Bonds - BSCR Rate 0",{"$f":"'Schedule II'!D12","v":0},null,{"$f":"'Schedule II'!F12","v":0},null,null,null,null,null,{"$f":"'Schedule II (EBS)'!D12","v":0},null,{"$f":"'Schedule II (EBS)'!F12","v":0}]
["Sch II","Investments",null,"Corp. Bonds - BSCR Rate 1",{"$f":"'Schedule II'!D13","v":0},null,{"$f":"'Schedule II'!F13","v":0},null,null,null,null,null,{"$f":"'Schedule II (EBS)'!D13","v":0},null,{"$f":"'Schedule II (EBS)'!F13","v":0}]
["Sch II","Investments",null,"Corp. Bonds - BSCR Rate 2",{"$f":"'Schedule II'!D14","v":0},null,{"$f":"'Schedule II'!F14","v":0},null,null,null,null,null,{"$f":"'Schedule II (EBS)'!D14","v":0},null,{"$f":"'Schedule II (EBS)'!F14","v":0}]
["Sch II","Investments",null,"Corp. Bonds - BSCR Rate 3",{"$f":"'Schedule II'!D15","v":0},null,{"$f":"'Schedule II'!F15","v":0},null,null,null,null,null,{"$f":"'Schedule II (EBS)'!D15","v":0},null,{"$f":"'Schedule II (EBS)'!F15","v":0}]
["Sch II","Investments",null,"Corp. Bonds - BSCR Rate 4",{"$f":"'Schedule II'!D16","v":0},null,{"$f":"'Schedule II'!F16","v":0},null,null,null,null,null,{"$f":"'Schedule II (EBS)'!D16","v":0},null,{"$f":"'Schedule II (EBS)'!F16","v":0}]
["Sch II","Investments",null,"Corp. Bonds - BSCR Rate 5",{"$f":"'Schedule II'!D17","v":0},null,{"$f":"'Schedule II'!F17","v":0},null,null,null,null,null,{"$f":"'Schedule II (EBS)'!D17","v":0},null,{"$f":"'Schedule II (EBS)'!F17","v":0}]
["Sch II","Investments",null,"Corp. Bonds - BSCR Rate 6",{"$f":"'Schedule II'!D18","v":0},null,{"$f":"'Schedule II'!F18","v":0},null,null,null,null,null,{"$f":"'Schedule II (EBS)'!D18","v":0},null,{"$f":"'Schedule II (EBS)'!F18","v":0}]
["Sch II","Investments",null,"Corp. Bonds - BSCR Rate 7",{"$f":"'Schedule II'!D19","v":0},null,{"$f":"'Schedule II'!F19","v":0},null,null,null,null,null,{"$f":"'Schedule II (EBS)'!D19","v":0},null,{"$f":"'Schedule II (EBS)'!F19","v":0}]
["Sch II","Investments",null,"Corp. Bonds - BSCR Rate 8",{"$f":"'Schedule II'!D20","v":0},null,{"$f":"'Schedule II'!F20","v":0},null,null,null,null,null,{"$f":"'Schedule II (EBS)'!D20","v":0},null,{"$f":"'Schedule II (EBS)'!F20","v":0}]
["Sch II","Investments",null,"Residential MBS - BSCR Rate 1",{"$f":"'Schedule II'!H13","v":0},null,{"$f":"'Schedule II'!J13","v":0},null,null,null,null,null,{"$f":"'Schedule II (EBS)'!H13","v":0},null,{"$f":"'Schedule II (EBS)'!J13","v":0}]
["Sch II","Investments",null,"Residential MBS - BSCR Rate 2",{"$f":"'Schedule II'!H14","v":0},null,{"$f":"'Schedule II'!J14","v":0},null,null,null,null,null,{"$f":"'Schedule II (EBS)'!H14","v":0},null,{"$f":"'Schedule II (EBS)'!J14","v":0}]
["Sch II","Investments",null,"Residential MBS - BSCR Rate 3",{"$f":"'Schedule II'!H15","v":0},null,{"$f":"'Schedule II'!J15","v":0},null,null,null,null,null,{"$f":"'Schedule II (EBS)'!H15","v":0},null,{"$f":"'Schedule II (EBS)'!J15","v":0}]
["Sch II","Investments",null,"Residential MBS - BSCR Rate 4",{"$f":"'Schedule II'!H16","v":0},null,{"$f":"'Schedule II'!J16","v":0},null,null,null,null,null,{"$f":"'Schedule II (EBS)'!H16","v":0},null,{"$f":"'Schedule II (EBS)'!J16","v":0}]
["Sch II","Investments",null,"Residential MBS - BSCR Rate 5",{"$f":"'Schedule II'!H17","v":0},null,{"$f":"'Schedule II'!J17","v":0},null,null,null,null,null,{"$f":"'Schedule II (EBS)'!H17","v":0},null,{"$f":"'Schedule II (EBS)'!J17","v":0}]
["Sch II","Investments",null,"Residential MBS - BSCR Rate 6",{"$f":"'Schedule II'!H18","v":0},null,{"$f":"'Schedule II'!J18","v":0},null,null,null,null,null,{"$f":"'Schedule II (EBS)'!H18","v":0},null,{"$f":"'Schedule II (EBS)'!J18","v":0}]
["Sch II","Investments",null,"Residential MBS - BSCR Rate 7",{"$f":"'Schedule II'!H19","v":0},null,{"$f":"'Schedule II'!J19","v":0},null,null,null,null,null,{"$f":"'Schedule II (EBS)'!H19","v":0},null,{"$f":"'Schedule II (EBS)'!J19","v":0}]
["Sch II","Investments",null,"Residential MBS - BSCR Rate 8",{"$f":"'Schedule II'!H20","v":0},null,{"$f":"'Schedule II'!J20","v":0},null,null,null,null,null,{"$f":"'Schedule II (EBS)'!H20","v":0},null,{"$f":"'Schedule II (EBS)'!J20","v":0}]
["Sch II","Investments",null,"Commercial MBS - BSCR Rate 1",{"$f":"'Schedule II'!L13","v":0},null,{"$f":"'Schedule II'!N13","v":0},null,null,null,null,null,{"$f":"'Schedule II (EBS)'!L13","v":0},null,{"$f":"'Schedule II (EBS)'!N13","v":0}]
["Sch II","Investments",null,"Commercial MBS - BSCR Rate 2",{"$f":"'Schedule II'!L14","v":0},null,{"$f":"'Schedule II'!N14","v":0},null,null,null,null,null,{"$f":"'Schedule II (EBS)'!L14","v":0},null,{"$f":"'Schedule II (EBS)'!N14","v":0}]
["Sch II","Investments",null,"Commercial MBS - BSCR Rate 3",{"$f":"'Schedule II'!L15","v":0},null,{"$f":"'Schedule II'!N15","v":0},null,null,null,null,null,{"$f":"'Schedule II (EBS)'!L15","v":0},null,{"$f":"'Schedule II (EBS)'!N15","v":0}]
["Sch II","Investments",null,"Commercial MBS - BSCR Rate 4",{"$f":"'Schedule II'!L16","v":0},null,{"$f":"'Schedule II'!N16","v":0},null,null,null,null,null,{"$f":"'Schedule II (EBS)'!L16","v":0},null,{"$f":"'Schedule II (EBS)'!N16","v":0}]
["Sch II","Investments",null,"Commercial MBS - BSCR Rate 5",{"$f":"'Schedule II'!L17","v":0},null,{"$f":"'Schedule II'!N17","v":0},null,null,null,null,null,{"$f":"'Schedule II (EBS)'!L17","v":0},null,{"$f":"'Schedule II (EBS)'!N17","v":0}]
["Sch II","Investments",null,"Commercial MBS - BSCR Rate 6",{"$f":"'Schedule II'!L18","v":0},null,{"$f":"'Schedule II'!N18","v":0},null,null,null,null,null,{"$f":"'Schedule II (EBS)'!L18","v":0},null,{"$f":"'Schedule II (EBS)'!N18","v":0}]
["Sch II","Investments",null,"Commercial MBS - BSCR Rate 7",{"$f":"'Schedule II'!L19","v":0},null,{"$f":"'Schedule II'!N19","v":0},null,null,null,null,null,{"$f":"'Schedule II (EBS)'!L19","v":0},null,{"$f":"'Schedule II (EBS)'!N19","v":0}]
["Sch II","Investments",null,"Commercial MBS - BSCR Rate 8",{"$f":"'Schedule II'!L20","v":0},null,{"$f":"'Schedule II'!N20","v":0},null,null,null,null,null,{"$f":"'Schedule II (EBS)'!L20","v":0},null,{"$f":"'Schedule II (EBS)'!N20","v":0}]
["Sch II","Investments",null,"Bonds Mutual Fund - BSCR Rate 0",{"$f":"'Schedule II'!P12","v":0},null,{"$f":"'Schedule II'!R12","v":0},null,null,null,null,null,{"$f":"'Schedule II (EBS)'!P12","v":0},null,{"$f":"'Schedule II (EBS)'!R12","v":0}]
["Sch II","Investments",null,"Bonds Mutual Fund - BSCR Rate 1",{"$f":"'Schedule II'!P13","v":0},null,{"$f":"'Schedule II'!R13","v":0},null,null,null,null,null,{"$f":"'Schedule II (EBS)'!P13","v":0},null,{"$f":"'Schedule II (EBS)'!R13","v":0}]
["Sch II","Investments",null,"Bonds Mutual Fund - BSCR Rate 2",{"$f":"'Schedule II'!P14","v":0},null,{"$f":"'Schedule II'!R14","v":0},null,null,null,null,null,{"$f":"'Schedule II (EBS)'!P14","v":0},null,{"$f":"'Schedule II (EBS)'!R14","v":0}]
["Sch II","Investments",null,"Bonds Mutual Fund - BSCR Rate 3",{"$f":"'Schedule II'!P15","v":0},null,{"$f":"'Schedule II'!R15","v":0},null,null,null,null,null,{"$f":"'Schedule II (EBS)'!P15","v":0},null,{"$f":"'Schedule II (EBS)'!R15","v":0}]
["Sch II","Investments",null,"Bonds Mutual Fund - BSCR Rate 4",{"$f":"'Schedule II'!P16","v":0},null,{"$f":"'Schedule II'!R16","v":0},null,null,null,null,null,{"$f":"'Schedule II (EBS)'!P16","v":0},null,{"$f":"'Schedule II (EBS)'!R16","v":0}]
["Sch II","Investments",null,"Bonds Mutual Fund - BSCR Rate 5",{"$f":"'Schedule II'!P17","v":0},null,{"$f":"'Schedule II'!R17","v":0},null,null,null,null,null,{"$f":"'Schedule II (EBS)'!P17","v":0},null,{"$f":"'Schedule II (EBS)'!R17","v":0}]
["Sch II","Investments",null,"Bonds Mutual Fund - BSCR Rate 6",{"$f":"'Schedule II'!P18","v":0},null,{"$f":"'Schedule II'!R18","v":0},null,null,null,null,null,{"$f":"'Schedule II (EBS)'!P18","v":0},null,{"$f":"'Schedule II (EBS)'!R18","v":0}]
["Sch II","Investments",null,"Bonds Mutual Fund - BSCR Rate 7",{"$f":"'Schedule II'!P19","v":0},null,{"$f":"'Schedule II'!R19","v":0},null,null,null,null,null,{"$f":"'Schedule II (EBS)'!P19","v":0},null,{"$f":"'Schedule II (EBS)'!R19","v":0}]
["Sch II","Investments",null,"Bonds Mutual Fund - BSCR Rate 8",{"$f":"'Schedule II'!P20","v":0},null,{"$f":"'Schedule II'!R20","v":0},null,null,null,null,null,{"$f":"'Schedule II (EBS)'!P20","v":0},null,{"$f":"'Schedule II (EBS)'!R20","v":0}]
["Sch II","Investments",null,"Common Shares - Quoted",{"$f":"'Schedule II'!D41","v":0},null,{"$f":"'Schedule II'!F41","v":0},null,null,null,null,null,{"$f":"'Schedule II (EBS)'!D41","v":0},null,{"$f":"'Schedule II (EBS)'!F41","v":0}]
["Sch II","Investments",null,"Common Shares - Unquoted",{"$f":"'Schedule II'!D42","v":0},null,{"$f":"'Schedule II'!F42","v":0},null,null,null,null,null,{"$f":"'Schedule II (EBS)'!D42","v":0},null,{"$f":"'Schedule II (EBS)'!F42","v":0}]
["Sch II","Investments",null,"Preferred Shares - BSCR Rate 1",{"$f":"'Schedule II'!H33","v":0},null,{"$f":"'Schedule II'!J33","v":0},null,null,null,null,null,{"$f":"'Schedule II (EBS)'!H33","v":0},null,{"$f":"'Schedule II (EBS)'!J33","v":0}]
["Sch II","Investments",null,"Preferred Shares - BSCR Rate 2",{"$f":"'Schedule II'!H34","v":0},null,{"$f":"'Schedule II'!J34","v":0},null,null,null,null,null,{"$f":"'Schedule II (EBS)'!H34","v":0},null,{"$f":"'Schedule II (EBS)'!J34","v":0}]
["Sch II","Investments",null,"Preferred Shares - BSCR Rate 3",{"$f":"'Schedule II'!H35","v":0},null,{"$f":"'Schedule II'!J35","v":0},null,null,null,null,null,{"$f":"'Schedule II (EBS)'!H35","v":0},null,{"$f":"'Schedule II (EBS)'!J35","v":0}]
["Sch II","Investments",null,"Preferred Shares - BSCR Rate 4",{"$f":"'Schedule II'!H36","v":0},null,{"$f":"'Schedule II'!J36","v":0},null,null,null,null,null,{"$f":"'Schedule II (EBS)'!H36","v":0},null,{"$f":"'Schedule II (EBS)'!J36","v":0}]
["Sch II","Investments",null,"Preferred Shares - BSCR Rate 5",{"$f":"'Schedule II'!H37","v":0},null,{"$f":"'Schedule II'!J37","v":0},null,null,null,null,null,{"$f":"'Schedule II (EBS)'!H37","v":0},null,{"$f":"'Schedule II (EBS)'!J37","v":0}]
["Sch II","Investments",null,"Preferred Shares - BSCR Rate 6",{"$f":"'Schedule II'!H38","v":0},null,{"$f":"'Schedule II'!J38","v":0},null,null,null,null,null,{"$f":"'Schedule II (EBS)'!H38","v":0},null,{"$f":"'Schedule II (EBS)'!J38","v":0}]
["Sch II","Investments",null,"Preferred Shares - BSCR Rate 7",{"$f":"'Schedule II'!H39","v":0},null,{"$f":"'Schedule II'!J39","v":0},null,null,null,null,null,{"$f":"'Schedule II (EBS)'!H39","v":0},null,{"$f":"'Schedule II (EBS)'!J39","v":0}]
["Sch II","Investments",null,"Preferred Shares - BSCR Rate 8",{"$f":"'Schedule II'!H40","v":0},null,{"$f":"'Schedule II'!J40","v":0},null,null,null,null,null,{"$f":"'Schedule II (EBS)'!H40","v":0},null,{"$f":"'Schedule II (EBS)'!J40","v":0}]
["Sch II","Investments",null,"Equity Mutual Funds -  Quoted",{"$f":"'Schedule II'!L41","v":0},null,{"$f":"'Schedule II'!N41","v":0},null,null,null,null,null,{"$f":"'Schedule II (EBS)'!L41","v":0},null,{"$f":"'Schedule II (EBS)'!N41","v":0}]
["Sch II","Investments",null,"Equity Mutual Funds -  Unquoted",{"$f":"'Schedule II'!L42","v":0},null,{"$f":"'Schedule II'!N42","v":0},null,null,null,null,null,{"$f":"'Schedule II (EBS)'!L42","v":0},null,{"$f":"'Schedule II (EBS)'!N42","v":0}]
["Sch II","Investments",null,"Mortgage Loans - Insured",{"$f":"'Schedule II'!D57","v":0},null,{"$f":"'Schedule II'!F57","v":0},null,null,null,null,null,{"$f":"'Schedule II (EBS)'!D57","v":0},null,{"$f":"'Schedule II (EBS)'!F57","v":0}]
["Sch II","Investments",null,"Mortgage Loans - Other Commercial",{"$f":"'Schedule II'!D58","v":0},null,{"$f":"'Schedule II'!F58","v":0},null,null,null,null,null,{"$f":"'Schedule II (EBS)'!D58","v":0},null,{"$f":"'Schedule II (EBS)'!F58","v":0}]
["Sch II","Investments",null,"Mortgage Loans - Other Residential",{"$f":"'Schedule II'!D59","v":0},null,{"$f":"'Schedule II'!F59","v":0},null,null,null,null,null,{"$f":"'Schedule II (EBS)'!D59","v":0},null,{"$f":"'Schedule II (EBS)'!F59","v":0}]
["Sch II","Investments",null,"Mortgage Loans - Not Good Stand.",{"$f":"'Schedule II'!D60","v":0},null,{"$f":"'Schedule II'!F60","v":0},null,null,null,null,null,{"$f":"'Schedule II (EBS)'!D60","v":0},null,{"$f":"'Schedule II (EBS)'!F60","v":0}]
["Sch II","Investments",null,"NAIC Resid. MBS - Orig. Class 1",{"$f":"'Schedule II'!L56","v":0},null,null,null,null,null,null,null,{"$f":"'Schedule II (EBS)'!L55","v":0}]
["Sch II","Investments",null,"NAIC Resid. MBS - Orig. Class 2",{"$f":"'Schedule II'!L57","v":0},null,null,null,null,null,null,null,{"$f":"'Schedule II (EBS)'!L56","v":0}]
["Sch II","Investments",null,"NAIC Resid. MBS - Orig. Class 3",{"$f":"'Schedule II'!L58","v":0},null,null,null,null,null,null,null,{"$f":"'Schedule II (EBS)'!L57","v":0}]
["Sch II","Investments",null,"NAIC Resid. MBS - Orig. Class 4",{"$f":"'Schedule II'!L59","v":0},null,null,null,null,null,null,null,{"$f":"'Schedule II (EBS)'!L58","v":0}]
["Sch II","Investments",null,"NAIC Resid. MBS - Orig. Class 5",{"$f":"'Schedule II'!L60","v":0},null,null,null,null,null,null,null,{"$f":"'Schedule II (EBS)'!L59","v":0}]
["Sch II","Investments",null,"NAIC Resid. MBS - Orig. Class 6",{"$f":"'Schedule II'!L61","v":0},null,null,null,null,null,null,null,{"$f":"'Schedule II (EBS)'!L60","v":0}]
["Sch II","Investments",null,"NAIC Resid. MBS - Orig. Total",{"$f":"'Schedule II'!L63","v":0},null,null,null,null,null,null,null,{"$f":"'Schedule II (EBS)'!L62","v":0}]
["Sch II","Investments",null,"NAIC Resid. MBS - Rev. Class 1",{"$f":"'Schedule II'!N56","v":0},null,null,null,null,null,null,null,{"$f":"'Schedule II (EBS)'!N55","v":0}]
["Sch II","Investments",null,"NAIC Resid. MBS - Rev. Class 2",{"$f":"'Schedule II'!N57","v":0},null,null,null,null,null,null,null,{"$f":"'Schedule II (EBS)'!N56","v":0}]
["Sch II","Investments",null,"NAIC Resid. MBS - Rev. Class 3",{"$f":"'Schedule II'!N58","v":0},null,null,null,null,null,null,null,{"$f":"'Schedule II (EBS)'!N57","v":0}]
["Sch II","Investments",null,"NAIC Resid. MBS - Rev. Class 4",{"$f":"'Schedule II'!N59","v":0},null,null,null,null,null,null,null,{"$f":"'Schedule II (EBS)'!N58","v":0}]
["Sch II","Investments",null,"NAIC Resid. MBS - Rev. Class 5",{"$f":"'Schedule II'!N60","v":0},null,null,null,null,null,null,null,{"$f":"'Schedule II (EBS)'!N59","v":0}]
["Sch II","Investments",null,"NAIC Resid. MBS - Rev. Class 6",{"$f":"'Schedule II'!N61","v":0},null,null,null,null,null,null,null,{"$f":"'Schedule II (EBS)'!N60","v":0}]
["Sch II","Investments",null,"NAIC Resid. MBS - Rev. Total",{"$f":"'Schedule II'!N63","v":0},null,null,null,null,null,null,null,{"$f":"'Schedule II (EBS)'!N62","v":0}]
["Sch II","Investments",null,"NAIC Comm. MBS - Orig. Class 1",{"$f":"'Schedule II'!P56","v":0},null,null,null,null,null,null,null,{"$f":"'Schedule II (EBS)'!P55","v":0}]
["Sch II","Investments",null,"NAIC Comm. MBS - Orig. Class 2",{"$f":"'Schedule II'!P57","v":0},null,null,null,null,null,null,null,{"$f":"'Schedule II (EBS)'!P56","v":0}]
["Sch II","Investments",null,"NAIC Comm. MBS - Orig. Class 3",{"$f":"'Schedule II'!P58","v":0},null,null,null,null,null,null,null,{"$f":"'Schedule II (EBS)'!P57","v":0}]
["Sch II","Investments",null,"NAIC Comm. MBS - Orig. Class 4",{"$f":"'Schedule II'!P59","v":0},null,null,null,null,null,null,null,{"$f":"'Schedule II (EBS)'!P58","v":0}]
["Sch II","Investments",null,"NAIC Comm. MBS - Orig. Class 5",{"$f":"'Schedule II'!P60","v":0},null,null,null,null,null,null,null,{"$f":"'Schedule II (EBS)'!P59","v":0}]
["Sch II","Investments",null,"NAIC Comm. MBS - Orig. Class 6",{"$f":"'Schedule II'!P61","v":0},null,null,null,null,null,null,null,{"$f":"'Schedule II (EBS)'!P60","v":0}]
["Sch II","Investments",null,"NAIC Comm. MBS - Orig. Total",{"$f":"'Schedule II'!P63","v":0},null,null,null,null,null,null,null,{"$f":"'Schedule II (EBS)'!P62","v":0}]
["Sch II","Investments",null,"NAIC Comm. MBS - Rev. Class 1",{"$f":"'Schedule II'!R56","v":0},null,null,null,null,null,null,null,{"$f":"'Schedule II (EBS)'!R55","v":0}]
["Sch II","Investments",null,"NAIC Comm. MBS - Rev. Class 2",{"$f":"'Schedule II'!R57","v":0},null,null,null,null,null,null,null,{"$f":"'Schedule II (EBS)'!R56","v":0}]
["Sch II","Investments",null,"NAIC Comm. MBS - Rev. Class 3",{"$f":"'Schedule II'!R58","v":0},null,null,null,null,null,null,null,{"$f":"'Schedule II (EBS)'!R57","v":0}]
["Sch II","Investments",null,"NAIC Comm. MBS - Rev. Class 4",{"$f":"'Schedule II'!R59","v":0},null,null,null,null,null,null,null,{"$f":"'Schedule II (EBS)'!R58","v":0}]
["Sch II","Investments",null,"NAIC Comm. MBS - Rev. Class 5",{"$f":"'Schedule II'!R60","v":0},null,null,null,null,null,null,null,{"$f":"'Schedule II (EBS)'!R59","v":0}]
["Sch II","Investments",null,"NAIC Comm. MBS - Rev. Class 6",{"$f":"'Schedule II'!R61","v":0},null,null,null,null,null,null,null,{"$f":"'Schedule II (EBS)'!R60","v":0}]
["Sch II","Investments",null,"NAIC Comm. MBS - Rev. Total",{"$f":"'Schedule II'!R63","v":0},null,null,null,null,null,null,null,{"$f":"'Schedule II (EBS)'!R62","v":0}]
["Sch II","Investments",null,"NAIC Rating Corp & Sov. Bond - Class 1",{"$f":"'Schedule II'!D70","v":0},null,null,null,null,null,null,null,{"$f":"'Schedule II (EBS)'!D70","v":0}]
["Sch II","Investments",null,"NAIC Rating Corp & Sov. Bond - Class 2",{"$f":"'Schedule II'!D71","v":0},null,null,null,null,null,null,null,{"$f":"'Schedule II (EBS)'!D71","v":0}]
["Sch II","Investments",null,"NAIC Rating Corp & Sov. Bond - Class 3",{"$f":"'Schedule II'!D72","v":0},null,null,null,null,null,null,null,{"$f":"'Schedule II (EBS)'!D72","v":0}]
["Sch II","Investments",null,"NAIC Rating Corp & Sov. Bond - Class 4",{"$f":"'Schedule II'!D73","v":0},null,null,null,null,null,null,null,{"$f":"'Schedule II (EBS)'!D73","v":0}]
["Sch II","Investments",null,"NAIC Rating Corp & Sov. Bond - Class 5",{"$f":"'Schedule II'!D74","v":0},null,null,null,null,null,null,null,{"$f":"'Schedule II (EBS)'!D74","v":0}]
["Sch II","Investments",null,"NAIC Rating Corp & Sov. Bond - Class 6",{"$f":"'Schedule II'!D75","v":0},null,null,null,null,null,null,null,{"$f":"'Schedule II (EBS)'!D75","v":0}]
["Sch II","Investments",null,"NAIC Rating Corp & Sov. Bond - Total",{"$f":"'Schedule II'!D76","v":0},null,null,null,null,null,null,null,{"$f":"'Schedule II (EBS)'!D76","v":0}]
["Sch II","Investments",null,"NAIC Rating Resid. MBS - Class 1",{"$f":"'Schedule II'!F70","v":0},null,null,null,null,null,null,null,{"$f":"'Schedule II (EBS)'!F70","v":0}]
["Sch II","Investments",null,"NAIC Rating Resid. MBS - Class 2",{"$f":"'Schedule II'!F71","v":0},null,null,null,null,null,null,null,{"$f":"'Schedule II (EBS)'!F71","v":0}]
["Sch II","Investments",null,"NAIC Rating Resid. MBS - Class 3",{"$f":"'Schedule II'!F72","v":0},null,null,null,null,null,null,null,{"$f":"'Schedule II (EBS)'!F72","v":0}]
["Sch II","Investments",null,"NAIC Rating Resid. MBS - Class 4",{"$f":"'Schedule II'!F73","v":0},null,null,null,null,null,null,null,{"$f":"'Schedule II (EBS)'!F73","v":0}]
["Sch II","Investments",null,"NAIC Rating Resid. MBS - Class 5",{"$f":"'Schedule II'!F74","v":0},null,null,null,null,null,null,null,{"$f":"'Schedule II (EBS)'!F74","v":0}]
["Sch II","Investments",null,"NAIC Rating Resid. MBS - Class 6",{"$f":"'Schedule II'!F75","v":0},null,null,null,null,null,null,null,{"$f":"'Schedule II (EBS)'!F75","v":0}]
["Sch II","Investments",null,"NAIC Rating Resid. MBS - Total",{"$f":"'Schedule II'!F76","v":0},null,null,null,null,null,null,null,{"$f":"'Schedule II (EBS)'!F76","v":0}]
["Sch II","Investments",null,"NAIC Rating Comm. MBS - Class 1",{"$f":"'Schedule II'!H70","v":0},null,null,null,null,null,null,null,{"$f":"'Schedule II (EBS)'!H70","v":0}]
["Sch II","Investments",null,"NAIC Rating Comm. MBS - Class 2",{"$f":"'Schedule II'!H71","v":0},null,null,null,null,null,null,null,{"$f":"'Schedule II (EBS)'!H71","v":0}]
["Sch II","Investments",null,"NAIC Rating Comm. MBS - Class 3",{"$f":"'Schedule II'!H72","v":0},null,null,null,null,null,null,null,{"$f":"'Schedule II (EBS)'!H72","v":0}]
["Sch II","Investments",null,"NAIC Rating Comm. MBS - Class 4",{"$f":"'Schedule II'!H73","v":0},null,null,null,null,null,null,null,{"$f":"'Schedule II (EBS)'!H73","v":0}]
["Sch II","Investments",null,"NAIC Rating Comm. MBS - Class 5",{"$f":"'Schedule II'!H74","v":0},null,null,null,null,null,null,null,{"$f":"'Schedule II (EBS)'!H74","v":0}]
["Sch II","Investments",null,"NAIC Rating Comm. MBS - Class 6",{"$f":"'Schedule II'!H75","v":0},null,null,null,null,null,null,null,{"$f":"'Schedule II (EBS)'!H75","v":0}]
["Sch II","Investments",null,"NAIC Rating Comm. MBS - Total",{"$f":"'Schedule II'!H76","v":0},null,null,null,null,null,null,null,{"$f":"'Schedule II (EBS)'!H76","v":0}]
["Sch II","Investments",null,"NAIC Rating Bond Mutual - Class 1",{"$f":"'Schedule II'!J70","v":0},null,null,null,null,null,null,null,{"$f":"'Schedule II (EBS)'!J70","v":0}]
["Sch II","Investments",null,"NAIC Rating Bond Mutual - Class 2",{"$f":"'Schedule II'!J71","v":0},null,null,null,null,null,null,null,{"$f":"'Schedule II (EBS)'!J71","v":0}]
["Sch II","Investments",null,"NAIC Rating Bond Mutual - Class 3",{"$f":"'Schedule II'!J72","v":0},null,null,null,null,null,null,null,{"$f":"'Schedule II (EBS)'!J72","v":0}]
["Sch II","Investments",null,"NAIC Rating Bond Mutual - Class 4",{"$f":"'Schedule II'!J73","v":0},null,null,null,null,null,null,null,{"$f":"'Schedule II (EBS)'!J73","v":0}]
["Sch II","Investments",null,"NAIC Rating Bond Mutual - Class 5",{"$f":"'Schedule II'!J74","v":0},null,null,null,null,null,null,null,{"$f":"'Schedule II (EBS)'!J74","v":0}]
["Sch II","Investments",null,"NAIC Rating Bond Mutual - Class 6",{"$f":"'Schedule II'!J75","v":0},null,null,null,null,null,null,null,{"$f":"'Schedule II (EBS)'!J75","v":0}]
["Sch II","Investments",null,"NAIC Rating Bond Mutual - Total",{"$f":"'Schedule II'!J76","v":0},null,null,null,null,null,null,null,{"$f":"'Schedule II (EBS)'!J76","v":0}]
["Sch II","Investments",null,"NAIC Rating Mort. Loan - Class 1",{"$f":"'Schedule II'!L70","v":0},null,null,null,null,null,null,null,{"$f":"'Schedule II (EBS)'!L70","v":0}]
["Sch II","Investments",null,"NAIC Rating Mort. Loan - Class 2",{"$f":"'Schedule II'!L71","v":0},null,null,null,null,null,null,null,{"$f":"'Schedule II (EBS)'!L71","v":0}]
["Sch II","Investments",null,"NAIC Rating Mort. Loan - Class 3",{"$f":"'Schedule II'!L72","v":0},null,null,null,null,null,null,null,{"$f":"'Schedule II (EBS)'!L72","v":0}]
["Sch II","Investments",null,"NAIC Rating Mort. Loan - Class 4",{"$f":"'Schedule II'!L73","v":0},null,null,null,null,null,null,null,{"$f":"'Schedule II (EBS)'!L73","v":0}]
["Sch II","Investments",null,"NAIC Rating Mort. Loan - Class 5",{"$f":"'Schedule II'!L74","v":0},null,null,null,null,null,null,null,{"$f":"'Schedule II (EBS)'!L74","v":0}]
["Sch II","Investments",null,"NAIC Rating Mort. Loan - Class 6",{"$f":"'Schedule II'!L75","v":0},null,null,null,null,null,null,null,{"$f":"'Schedule II (EBS)'!L75","v":0}]
["Sch II","Investments",null,"NAIC Rating Mort. Loan - Total",{"$f":"'Schedule II'!L76","v":0},null,null,null,null,null,null,null,{"$f":"'Schedule II (EBS)'!L76","v":0}]
["Sch II","Investments",null,"NAIC Rating Pref. Stock - Class 1",{"$f":"'Schedule II'!N70","v":0},null,null,null,null,null,null,null,{"$f":"'Schedule II (EBS)'!N70","v":0}]
["Sch II","Investments",null,"NAIC Rating Pref. Stock - Class 2",{"$f":"'Schedule II'!N71","v":0},null,null,null,null,null,null,null,{"$f":"'Schedule II (EBS)'!N71","v":0}]
["Sch II","Investments",null,"NAIC Rating Pref. Stock - Class 3",{"$f":"'Schedule II'!N72","v":0},null,null,null,null,null,null,null,{"$f":"'Schedule II (EBS)'!N72","v":0}]
["Sch II","Investments",null,"NAIC Rating Pref. Stock - Class 4",{"$f":"'Schedule II'!N73","v":0},null,null,null,null,null,null,null,{"$f":"'Schedule II (EBS)'!N73","v":0}]
["Sch II","Investments",null,"NAIC Rating Pref. Stock - Class 5",{"$f":"'Schedule II'!N74","v":0},null,null,null,null,null,null,null,{"$f":"'Schedule II (EBS)'!N74","v":0}]
["Sch II","Investments",null,"NAIC Rating Pref. Stock - Class 6",{"$f":"'Schedule II'!N75","v":0},null,null,null,null,null,null,null,{"$f":"'Schedule II (EBS)'!N75","v":0}]
["Sch II","Investments",null,"NAIC Rating Pref. Stock - Total",{"$f":"'Schedule II'!N76","v":0},null,null,null,null,null,null,null,{"$f":"'Schedule II (EBS)'!N76","v":0}]
["Sch II","Investments",null,"NAIC Rating Other Assets - Class 1",{"$f":"'Schedule II'!P70","v":0},null,null,null,null,null,null,null,{"$f":"'Schedule II (EBS)'!P70","v":0}]
["Sch II","Investments",null,"NAIC Rating Other Assets - Class 2",{"$f":"'Schedule II'!P71","v":0},null,null,null,null,null,null,null,{"$f":"'Schedule II (EBS)'!P71","v":0}]
["Sch II","Investments",null,"NAIC Rating Other Assets - Class 3",{"$f":"'Schedule II'!P72","v":0},null,null,null,null,null,null,null,{"$f":"'Schedule II (EBS)'!P72","v":0}]
["Sch II","Investments",null,"NAIC Rating Other Assets - Class 4",{"$f":"'Schedule II'!P73","v":0},null,null,null,null,null,null,null,{"$f":"'Schedule II (EBS)'!P73","v":0}]
["Sch II","Investments",null,"NAIC Rating Other Assets - Class 5",{"$f":"'Schedule II'!P74","v":0},null,null,null,null,null,null,null,{"$f":"'Schedule II (EBS)'!P74","v":0}]
["Sch II","Investments",null,"NAIC Rating Other Assets - Class 6",{"$f":"'Schedule II'!P75","v":0},null,null,null,null,null,null,null,{"$f":"'Schedule II (EBS)'!P75","v":0}]
["Sch II","Investments",null,"NAIC Rating Other Assets - Total",{"$f":"'Schedule II'!P76","v":0},null,null,null,null,null,null,null,{"$f":"'Schedule II (EBS)'!P76","v":0}]
[]
["Sch IIA","Funds Held",null,"Corp. Bonds - BSCR Rate 0",{"$f":"'Schedule IIA'!D12","v":0},null,{"$f":"'Schedule IIA'!F12","v":0},null,null,null,null,null,{"$f":"'Schedule IIA (EBS)'!D12","v":0},null,{"$f":"'Schedule IIA (EBS)'!F12","v":0}]
["Sch IIA","Funds Held",null,"Corp. Bonds - BSCR Rate 1",{"$f":"'Schedule IIA'!D13","v":0},null,{"$f":"'Schedule IIA'!F13","v":0},null,null,null,null,null,{"$f":"'Schedule IIA (EBS)'!D13","v":0},null,{"$f":"'Schedule IIA (EBS)'!F13","v":0}]
["Sch IIA","Funds Held",null,"Corp. Bonds - BSCR Rate 2",{"$f":"'Schedule IIA'!D14","v":0},null,{"$f":"'Schedule IIA'!F14","v":0},null,null,null,null,null,{"$f":"'Schedule IIA (EBS)'!D14","v":0},null,{"$f":"'Schedule IIA (EBS)'!F14","v":0}]
["Sch IIA","Funds Held",null,"Corp. Bonds - BSCR Rate 3",{"$f":"'Schedule IIA'!D15","v":0},null,{"$f":"'Schedule IIA'!F15","v":0},null,null,null,null,null,{"$f":"'Schedule IIA (EBS)'!D15","v":0},null,{"$f":"'Schedule IIA (EBS)'!F15","v":0}]
["Sch IIA","Funds Held",null,"Corp. Bonds - BSCR Rate 4",{"$f":"'Schedule IIA'!D16","v":0},null,{"$f":"'Schedule IIA'!F16","v":0},null,null,null,null,null,{"$f":"'Schedule IIA (EBS)'!D16","v":0},null,{"$f":"'Schedule IIA (EBS)'!F16","v":0}]
["Sch IIA","Funds Held",null,"Corp. Bonds - BSCR Rate 5",{"$f":"'Schedule IIA'!D17","v":0},null,{"$f":"'Schedule IIA'!F17","v":0},null,null,null,null,null,{"$f":"'Schedule IIA (EBS)'!D17","v":0},null,{"$f":"'Schedule IIA (EBS)'!F17","v":0}]
["Sch IIA","Funds Held",null,"Corp. Bonds - BSCR Rate 6",{"$f":"'Schedule IIA'!D18","v":0},null,{"$f":"'Schedule IIA'!F18","v":0},null,null,null,null,null,{"$f":"'Schedule IIA (EBS)'!D18","v":0},null,{"$f":"'Schedule IIA (EBS)'!F18","v":0}]
["Sch IIA","Funds Held",null,"Corp. Bonds - BSCR Rate 7",{"$f":"'Schedule IIA'!D19","v":0},null,{"$f":"'Schedule IIA'!F19","v":0},null,null,null,null,null,{"$f":"'Schedule IIA (EBS)'!D19","v":0},null,{"$f":"'Schedule IIA (EBS)'!F19","v":0}]
["Sch IIA","Funds Held",null,"Corp. Bonds - BSCR Rate 8",{"$f":"'Schedule IIA'!D20","v":0},null,{"$f":"'Schedule IIA'!F20","v":0},null,null,null,null,null,{"$f":"'Schedule IIA (EBS)'!D20","v":0},null,{"$f":"'Schedule IIA (EBS)'!F20","v":0}]
["Sch IIA","Funds Held",null,"Residential MBS - BSCR Rate 1",{"$f":"'Schedule IIA'!H13","v":0},null,{"$f":"'Schedule IIA'!J13","v":0},null,null,null,null,null,{"$f":"'Schedule IIA (EBS)'!H13","v":0},null,{"$f":"'Schedule IIA (EBS)'!J13","v":0}]
["Sch IIA","Funds Held",null,"Residential MBS - BSCR Rate 2",{"$f":"'Schedule IIA'!H14","v":0},null,{"$f":"'Schedule IIA'!J14","v":0},null,null,null,null,null,{"$f":"'Schedule IIA (EBS)'!H14","v":0},null,{"$f":"'Schedule IIA (EBS)'!J14","v":0}]
["Sch IIA","Funds Held",null,"Residential MBS - BSCR Rate 3",{"$f":"'Schedule IIA'!H15","v":0},null,{"$f":"'Schedule IIA'!J15","v":0},null,null,null,null,null,{"$f":"'Schedule IIA (EBS)'!H15","v":0},null,{"$f":"'Schedule IIA (EBS)'!J15","v":0}]
["Sch IIA","Funds Held",null,"Residential MBS - BSCR Rate 4",{"$f":"'Schedule IIA'!H16","v":0},null,{"$f":"'Schedule IIA'!J16","v":0},null,null,null,null,null,{"$f":"'Schedule IIA (EBS)'!H16","v":0},null,{"$f":"'Schedule IIA (EBS)'!J16","v":0}]
["Sch IIA","Funds Held",null,"Residential MBS - BSCR Rate 5",{"$f":"'Schedule IIA'!H17","v":0},null,{"$f":"'Schedule IIA'!J17","v":0},null,null,null,null,null,{"$f":"'Schedule IIA (EBS)'!H17","v":0},null,{"$f":"'Schedule IIA (EBS)'!J17","v":0}]
["Sch IIA","Funds Held",null,"Residential MBS - BSCR Rate 6",{"$f":"'Schedule IIA'!H18","v":0},null,{"$f":"'Schedule IIA'!J18","v":0},null,null,null,null,null,{"$f":"'Schedule IIA (EBS)'!H18","v":0},null,{"$f":"'Schedule IIA (EBS)'!J18","v":0}]
["Sch IIA","Funds Held",null,"Residential MBS - BSCR Rate 7",{"$f":"'Schedule IIA'!H19","v":0},null,{"$f":"'Schedule IIA'!J19","v":0},null,null,null,null,null,{"$f":"'Schedule IIA (EBS)'!H19","v":0},null,{"$f":"'Schedule IIA (EBS)'!J19","v":0}]
["Sch IIA","Funds Held",null,"Residential MBS - BSCR Rate 8",{"$f":"'Schedule IIA'!H20","v":0},null,{"$f":"'Schedule IIA'!J20","v":0},null,null,null,null,null,{"$f":"'Schedule IIA (EBS)'!H20","v":0},null,{"$f":"'Schedule IIA (EBS)'!J20","v":0}]
["Sch IIA","Funds Held",null,"Commercial MBS - BSCR Rate 1",{"$f":"'Schedule IIA'!L13","v":0},null,{"$f":"'Schedule IIA'!N13","v":0},null,null,null,null,null,{"$f":"'Schedule IIA (EBS)'!L13","v":0},null,{"$f":"'Schedule IIA (EBS)'!N13","v":0}]
["Sch IIA","Funds Held",null,"Commercial MBS - BSCR Rate 2",{"$f":"'Schedule IIA'!L14","v":0},null,{"$f":"'Schedule IIA'!N14","v":0},null,null,null,null,null,{"$f":"'Schedule IIA (EBS)'!L14","v":0},null,{"$f":"'Schedule IIA (EBS)'!N14","v":0}]
["Sch IIA","Funds Held",null,"Commercial MBS - BSCR Rate 3",{"$f":"'Schedule IIA'!L15","v":0},null,{"$f":"'Schedule IIA'!N15","v":0},null,null,null,null,null,{"$f":"'Schedule IIA (EBS)'!L15","v":0},null,{"$f":"'Schedule IIA (EBS)'!N15","v":0}]
["Sch IIA","Funds Held",null,"Commercial MBS - BSCR Rate 4",{"$f":"'Schedule IIA'!L16","v":0},null,{"$f":"'Schedule IIA'!N16","v":0},null,null,null,null,null,{"$f":"'Schedule IIA (EBS)'!L16","v":0},null,{"$f":"'Schedule IIA (EBS)'!N16","v":0}]
["Sch IIA","Funds Held",null,"Commercial MBS - BSCR Rate 5",{"$f":"'Schedule IIA'!L17","v":0},null,{"$f":"'Schedule IIA'!N17","v":0},null,null,null,null,null,{"$f":"'Schedule IIA (EBS)'!L17","v":0},null,{"$f":"'Schedule IIA (EBS)'!N17","v":0}]
["Sch IIA","Funds Held",null,"Commercial MBS - BSCR Rate 6",{"$f":"'Schedule IIA'!L18","v":0},null,{"$f":"'Schedule IIA'!N18","v":0},null,null,null,null,null,{"$f":"'Schedule IIA (EBS)'!L18","v":0},null,{"$f":"'Schedule IIA (EBS)'!N18","v":0}]
["Sch IIA","Funds Held",null,"Commercial MBS - BSCR Rate 7",{"$f":"'Schedule IIA'!L19","v":0},null,{"$f":"'Schedule IIA'!N19","v":0},null,null,null,null,null,{"$f":"'Schedule IIA (EBS)'!L19","v":0},null,{"$f":"'Schedule IIA (EBS)'!N19","v":0}]
["Sch IIA","Funds Held",null,"Commercial MBS - BSCR Rate 8",{"$f":"'Schedule IIA'!L20","v":0},null,{"$f":"'Schedule IIA'!N20","v":0},null,null,null,null,null,{"$f":"'Schedule IIA (EBS)'!L20","v":0},null,{"$f":"'Schedule IIA (EBS)'!N20","v":0}]
["Sch IIA","Funds Held",null,"Bonds Mutual Fund - BSCR Rate 0",{"$f":"'Schedule IIA'!P12","v":0},null,{"$f":"'Schedule IIA'!R12","v":0},null,null,null,null,null,{"$f":"'Schedule IIA (EBS)'!P12","v":0},null,{"$f":"'Schedule IIA (EBS)'!R12","v":0}]
["Sch IIA","Funds Held",null,"Bonds Mutual Fund - BSCR Rate 1",{"$f":"'Schedule IIA'!P13","v":0},null,{"$f":"'Schedule IIA'!R13","v":0},null,null,null,null,null,{"$f":"'Schedule IIA (EBS)'!P13","v":0},null,{"$f":"'Schedule IIA (EBS)'!R13","v":0}]
["Sch IIA","Funds Held",null,"Bonds Mutual Fund - BSCR Rate 2",{"$f":"'Schedule IIA'!P14","v":0},null,{"$f":"'Schedule IIA'!R14","v":0},null,null,null,null,null,{"$f":"'Schedule IIA (EBS)'!P14","v":0},null,{"$f":"'Schedule IIA (EBS)'!R14","v":0}]
["Sch IIA","Funds Held",null,"Bonds Mutual Fund - BSCR Rate 3",{"$f":"'Schedule IIA'!P15","v":0},null,{"$f":"'Schedule IIA'!R15","v":0},null,null,null,null,null,{"$f":"'Schedule IIA (EBS)'!P15","v":0},null,{"$f":"'Schedule IIA (EBS)'!R15","v":0}]
["Sch IIA","Funds Held",null,"Bonds Mutual Fund - BSCR Rate 4",{"$f":"'Schedule IIA'!P16","v":0},null,{"$f":"'Schedule IIA'!R16","v":0},null,null,null,null,null,{"$f":"'Schedule IIA (EBS)'!P16","v":0},null,{"$f":"'Schedule IIA (EBS)'!R16","v":0}]
["Sch IIA","Funds Held",null,"Bonds Mutual Fund - BSCR Rate 5",{"$f":"'Schedule IIA'!P17","v":0},null,{"$f":"'Schedule IIA'!R17","v":0},null,null,null,null,null,{"$f":"'Schedule IIA (EBS)'!P17","v":0},null,{"$f":"'Schedule IIA (EBS)'!R17","v":0}]
["Sch IIA","Funds Held",null,"Bonds Mutual Fund - BSCR Rate 6",{"$f":"'Schedule IIA'!P18","v":0},null,{"$f":"'Schedule IIA'!R18","v":0},null,null,null,null,null,{"$f":"'Schedule IIA (EBS)'!P18","v":0},null,{"$f":"'Schedule IIA (EBS)'!R18","v":0}]
["Sch IIA","Funds Held",null,"Bonds Mutual Fund - BSCR Rate 7",{"$f":"'Schedule IIA'!P19","v":0},null,{"$f":"'Schedule IIA'!R19","v":0},null,null,null,null,null,{"$f":"'Schedule IIA (EBS)'!P19","v":0},null,{"$f":"'Schedule IIA (EBS)'!R19","v":0}]
["Sch IIA","Funds Held",null,"Bonds Mutual Fund - BSCR Rate 8",{"$f":"'Schedule IIA'!P20","v":0},null,{"$f":"'Schedule IIA'!R20","v":0},null,null,null,null,null,{"$f":"'Schedule IIA (EBS)'!P20","v":0},null,{"$f":"'Schedule IIA (EBS)'!R20","v":0}]
["Sch IIA","Funds Held",null,"Common Shares - Quoted",{"$f":"'Schedule IIA'!D41","v":0},null,{"$f":"'Schedule IIA'!F41","v":0},null,null,null,null,null,{"$f":"'Schedule IIA (EBS)'!D41","v":0},null,{"$f":"'Schedule IIA (EBS)'!F41","v":0}]
["Sch IIA","Funds Held",null,"Common Shares - Unquoted",{"$f":"'Schedule IIA'!D42","v":0},null,{"$f":"'Schedule IIA'!F42","v":0},null,null,null,null,null,{"$f":"'Schedule IIA (EBS)'!D42","v":0},null,{"$f":"'Schedule IIA (EBS)'!F42","v":0}]
["Sch IIA","Funds Held",null,"Preferred Shares - BSCR Rate 1",{"$f":"'Schedule IIA'!H33","v":0},null,{"$f":"'Schedule IIA'!J33","v":0},null,null,null,null,null,{"$f":"'Schedule IIA (EBS)'!H33","v":0},null,{"$f":"'Schedule IIA (EBS)'!J33","v":0}]
["Sch IIA","Funds Held",null,"Preferred Shares - BSCR Rate 2",{"$f":"'Schedule IIA'!H34","v":0},null,{"$f":"'Schedule IIA'!J34","v":0},null,null,null,null,null,{"$f":"'Schedule IIA (EBS)'!H34","v":0},null,{"$f":"'Schedule IIA (EBS)'!J34","v":0}]
["Sch IIA","Funds Held",null,"Preferred Shares - BSCR Rate 3",{"$f":"'Schedule IIA'!H35","v":0},null,{"$f":"'Schedule IIA'!J35","v":0},null,null,null,null,null,{"$f":"'Schedule IIA (EBS)'!H35","v":0},null,{"$f":"'Schedule IIA (EBS)'!J35","v":0}]
["Sch IIA","Funds Held",null,"Preferred Shares - BSCR Rate 4",{"$f":"'Schedule IIA'!H36","v":0},null,{"$f":"'Schedule IIA'!J36","v":0},null,null,null,null,null,{"$f":"'Schedule IIA (EBS)'!H36","v":0},null,{"$f":"'Schedule IIA (EBS)'!J36","v":0}]
["Sch IIA","Funds Held",null,"Preferred Shares - BSCR Rate 5",{"$f":"'Schedule IIA'!H37","v":0},null,{"$f":"'Schedule IIA'!J37","v":0},null,null,null,null,null,{"$f":"'Schedule IIA (EBS)'!H37","v":0},null,{"$f":"'Schedule IIA (EBS)'!J37","v":0}]
["Sch IIA","Funds Held",null,"Preferred Shares - BSCR Rate 6",{"$f":"'Schedule IIA'!H38","v":0},null,{"$f":"'Schedule IIA'!J38","v":0},null,null,null,null,null,{"$f":"'Schedule IIA (EBS)'!H38","v":0},null,{"$f":"'Schedule IIA (EBS)'!J38","v":0}]
["Sch IIA","Funds Held",null,"Preferred Shares - BSCR Rate 7",{"$f":"'Schedule IIA'!H39","v":0},null,{"$f":"'Schedule IIA'!J39","v":0},null,null,null,null,null,{"$f":"'Schedule IIA (EBS)'!H39","v":0},null,{"$f":"'Schedule IIA (EBS)'!J39","v":0}]
["Sch IIA","Funds Held",null,"Preferred Shares - BSCR Rate 8",{"$f":"'Schedule IIA'!H40","v":0},null,{"$f":"'Schedule IIA'!J40","v":0},null,null,null,null,null,{"$f":"'Schedule IIA (EBS)'!H40","v":0},null,{"$f":"'Schedule IIA (EBS)'!J40","v":0}]
["Sch IIA","Funds Held",null,"Equity Mutual Funds -  Quoted",{"$f":"'Schedule IIA'!L41","v":0},null,{"$f":"'Schedule IIA'!N41","v":0},null,null,null,null,null,{"$f":"'Schedule IIA (EBS)'!L41","v":0},null,{"$f":"'Schedule IIA (EBS)'!N41","v":0}]
["Sch IIA","Funds Held",null,"Equity Mutual Funds -  Unquoted",{"$f":"'Schedule IIA'!L42","v":0},null,{"$f":"'Schedule IIA'!N42","v":0},null,null,null,null,null,{"$f":"'Schedule IIA (EBS)'!L42","v":0},null,{"$f":"'Schedule IIA (EBS)'!N42","v":0}]
["Sch IIA","Funds Held",null,"Other Investments -  Quoted",{"$f":"'Schedule IIA'!P41","v":0},null,{"$f":"'Schedule IIA'!R41","v":0},null,null,null,null,null,{"$f":"'Schedule IIA (EBS)'!P41","v":0},null,{"$f":"'Schedule IIA (EBS)'!R41","v":0}]
["Sch IIA","Funds Held",null,"Other Investments -  Unquoted",{"$f":"'Schedule IIA'!P42","v":0},null,{"$f":"'Schedule IIA'!R42","v":0},null,null,null,null,null,{"$f":"'Schedule IIA (EBS)'!P42","v":0},null,{"$f":"'Schedule IIA (EBS)'!R42","v":0}]
["Sch IIA","Funds Held",null,"Mortgage Loans - Insured",{"$f":"'Schedule IIA'!D57","v":0},null,{"$f":"'Schedule IIA'!F57","v":0},null,null,null,null,null,{"$f":"'Schedule IIA (EBS)'!D57","v":0},null,{"$f":"'Schedule IIA (EBS)'!F57","v":0}]
["Sch IIA","Funds Held",null,"Mortgage Loans - Other Commercial",{"$f":"'Schedule IIA'!D58","v":0},null,{"$f":"'Schedule IIA'!F58","v":0},null,null,null,null,null,{"$f":"'Schedule IIA (EBS)'!D58","v":0},null,{"$f":"'Schedule IIA (EBS)'!F58","v":0}]
["Sch IIA","Funds Held",null,"Mortgage Loans - Other Residential",{"$f":"'Schedule IIA'!D59","v":0},null,{"$f":"'Schedule IIA'!F59","v":0},null,null,null,null,null,{"$f":"'Schedule IIA (EBS)'!D59","v":0},null,{"$f":"'Schedule IIA (EBS)'!F59","v":0}]
["Sch IIA","Funds Held",null,"Mortgage Loans - Not Good Stand.",{"$f":"'Schedule IIA'!D60","v":0},null,{"$f":"'Schedule IIA'!F60","v":0},null,null,null,null,null,{"$f":"'Schedule IIA (EBS)'!D60","v":0},null,{"$f":"'Schedule IIA (EBS)'!F60","v":0}]
["Sch IIA","Funds Held",null,"Cash and Cash Equivalents",{"$f":"'Schedule IIA'!D68","v":0},null,{"$f":"'Schedule IIA'!F68","v":0},null,null,null,null,null,{"$f":"'Schedule IIA (EBS)'!D68","v":0},null,{"$f":"'Schedule IIA (EBS)'!F68","v":0}]
["Sch IIA","Funds Held",null,"NAIC Resid. MBS - Orig. Class 1",{"$f":"'Schedule IIA'!L55","v":0},null,null,null,null,null,null,null,{"$f":"'Schedule IIA (EBS)'!L55","v":0}]
["Sch IIA","Funds Held",null,"NAIC Resid. MBS - Orig. Class 2",{"$f":"'Schedule IIA'!L56","v":0},null,null,null,null,null,null,null,{"$f":"'Schedule IIA (EBS)'!L56","v":0}]
["Sch IIA","Funds Held",null,"NAIC Resid. MBS - Orig. Class 3",{"$f":"'Schedule IIA'!L57","v":0},null,null,null,null,null,null,null,{"$f":"'Schedule IIA (EBS)'!L57","v":0}]
["Sch IIA","Funds Held",null,"NAIC Resid. MBS - Orig. Class 4",{"$f":"'Schedule IIA'!L58","v":0},null,null,null,null,null,null,null,{"$f":"'Schedule IIA (EBS)'!L58","v":0}]
["Sch IIA","Funds Held",null,"NAIC Resid. MBS - Orig. Class 5",{"$f":"'Schedule IIA'!L59","v":0},null,null,null,null,null,null,null,{"$f":"'Schedule IIA (EBS)'!L59","v":0}]
["Sch IIA","Funds Held",null,"NAIC Resid. MBS - Orig. Class 6",{"$f":"'Schedule IIA'!L60","v":0},null,null,null,null,null,null,null,{"$f":"'Schedule IIA (EBS)'!L60","v":0}]
["Sch IIA","Funds Held",null,"NAIC Resid. MBS - Orig. Total",{"$f":"'Schedule IIA'!L62","v":0},null,null,null,null,null,null,null,{"$f":"'Schedule IIA (EBS)'!L62","v":0}]
["Sch IIA","Funds Held",null,"NAIC Resid. MBS - Rev. Class 1",{"$f":"'Schedule IIA'!N55","v":0},null,null,null,null,null,null,null,{"$f":"'Schedule IIA (EBS)'!N55","v":0}]
["Sch IIA","Funds Held",null,"NAIC Resid. MBS - Rev. Class 2",{"$f":"'Schedule IIA'!N56","v":0},null,null,null,null,null,null,null,{"$f":"'Schedule IIA (EBS)'!N56","v":0}]
["Sch IIA","Funds Held",null,"NAIC Resid. MBS - Rev. Class 3",{"$f":"'Schedule IIA'!N57","v":0},null,null,null,null,null,null,null,{"$f":"'Schedule IIA (EBS)'!N57","v":0}]
["Sch IIA","Funds Held",null,"NAIC Resid. MBS - Rev. Class 4",{"$f":"'Schedule IIA'!N58","v":0},null,null,null,null,null,null,null,{"$f":"'Schedule IIA (EBS)'!N58","v":0}]
["Sch IIA","Funds Held",null,"NAIC Resid. MBS - Rev. Class 5",{"$f":"'Schedule IIA'!N59","v":0},null,null,null,null,null,null,null,{"$f":"'Schedule IIA (EBS)'!N59","v":0}]
["Sch IIA","Funds Held",null,"NAIC Resid. MBS - Rev. Class 6",{"$f":"'Schedule IIA'!N60","v":0},null,null,null,null,null,null,null,{"$f":"'Schedule IIA (EBS)'!N60","v":0}]
["Sch IIA","Funds Held",null,"NAIC Resid. MBS - Rev. Total",{"$f":"'Schedule IIA'!N62","v":0},null,null,null,null,null,null,null,{"$f":"'Schedule IIA (EBS)'!N62","v":0}]
["Sch IIA","Funds Held",null,"NAIC Comm. MBS - Orig. Class 1",{"$f":"'Schedule IIA'!P55","v":0},null,null,null,null,null,null,null,{"$f":"'Schedule IIA (EBS)'!P55","v":0}]
["Sch IIA","Funds Held",null,"NAIC Comm. MBS - Orig. Class 2",{"$f":"'Schedule IIA'!P56","v":0},null,null,null,null,null,null,null,{"$f":"'Schedule IIA (EBS)'!P56","v":0}]
["Sch IIA","Funds Held",null,"NAIC Comm. MBS - Orig. Class 3",{"$f":"'Schedule IIA'!P57","v":0},null,null,null,null,null,null,null,{"$f":"'Schedule IIA (EBS)'!P57","v":0}]
["Sch IIA","Funds Held",null,"NAIC Comm. MBS - Orig. Class 4",{"$f":"'Schedule IIA'!P58","v":0},null,null,null,null,null,null,null,{"$f":"'Schedule IIA (EBS)'!P58","v":0}]
["Sch IIA","Funds Held",null,"NAIC Comm. MBS - Orig. Class 5",{"$f":"'Schedule IIA'!P59","v":0},null,null,null,null,null,null,null,{"$f":"'Schedule IIA (EBS)'!P59","v":0}]
["Sch IIA","Funds Held",null,"NAIC Comm. MBS - Orig. Class 6",{"$f":"'Schedule IIA'!P60","v":0},null,null,null,null,null,null,null,{"$f":"'Schedule IIA (EBS)'!P60","v":0}]
["Sch IIA","Funds Held",null,"NAIC Comm. MBS - Orig. Total",{"$f":"'Schedule IIA'!P62","v":0},null,null,null,null,null,null,null,{"$f":"'Schedule IIA (EBS)'!P62","v":0}]
["Sch IIA","Funds Held",null,"NAIC Comm. MBS - Rev. Class 1",{"$f":"'Schedule IIA'!R55","v":0},null,null,null,null,null,null,null,{"$f":"'Schedule IIA (EBS)'!R55","v":0}]
["Sch IIA","Funds Held",null,"NAIC Comm. MBS - Rev. Class 2",{"$f":"'Schedule IIA'!R56","v":0},null,null,null,null,null,null,null,{"$f":"'Schedule IIA (EBS)'!R56","v":0}]
["Sch IIA","Funds Held",null,"NAIC Comm. MBS - Rev. Class 3",{"$f":"'Schedule IIA'!R57","v":0},null,null,null,null,null,null,null,{"$f":"'Schedule IIA (EBS)'!R57","v":0}]
["Sch IIA","Funds Held",null,"NAIC Comm. MBS - Rev. Class 4",{"$f":"'Schedule IIA'!R58","v":0},null,null,null,null,null,null,null,{"$f":"'Schedule IIA (EBS)'!R58","v":0}]
["Sch IIA","Funds Held",null,"NAIC Comm. MBS - Rev. Class 5",{"$f":"'Schedule IIA'!R59","v":0},null,null,null,null,null,null,null,{"$f":"'Schedule IIA (EBS)'!R59","v":0}]
["Sch IIA","Funds Held",null,"NAIC Comm. MBS - Rev. Class 6",{"$f":"'Schedule IIA'!R60","v":0},null,null,null,null,null,null,null,{"$f":"'Schedule IIA (EBS)'!R60","v":0}]
["Sch IIA","Funds Held",null,"NAIC Comm. MBS - Rev. Total",{"$f":"'Schedule IIA'!R62","v":0},null,null,null,null,null,null,null,{"$f":"'Schedule IIA (EBS)'!R62","v":0}]
["Sch IIA","Funds Held",null,"NAIC Rating Corp & Sov. Bond - Class 1",{"$f":"'Schedule IIA'!D78","v":0},null,null,null,null,null,null,null,{"$f":"'Schedule IIA (EBS)'!D78","v":0}]
["Sch IIA","Funds Held",null,"NAIC Rating Corp & Sov. Bond - Class 2",{"$f":"'Schedule IIA'!D79","v":0},null,null,null,null,null,null,null,{"$f":"'Schedule IIA (EBS)'!D79","v":0}]
["Sch IIA","Funds Held",null,"NAIC Rating Corp & Sov. Bond - Class 3",{"$f":"'Schedule IIA'!D80","v":0},null,null,null,null,null,null,null,{"$f":"'Schedule IIA (EBS)'!D80","v":0}]
["Sch IIA","Funds Held",null,"NAIC Rating Corp & Sov. Bond - Class 4",{"$f":"'Schedule IIA'!D81","v":0},null,null,null,null,null,null,null,{"$f":"'Schedule IIA (EBS)'!D81","v":0}]
["Sch IIA","Funds Held",null,"NAIC Rating Corp & Sov. Bond - Class 5",{"$f":"'Schedule IIA'!D82","v":0},null,null,null,null,null,null,null,{"$f":"'Schedule IIA (EBS)'!D82","v":0}]
["Sch IIA","Funds Held",null,"NAIC Rating Corp & Sov. Bond - Class 6",{"$f":"'Schedule IIA'!D83","v":0},null,null,null,null,null,null,null,{"$f":"'Schedule IIA (EBS)'!D83","v":0}]
["Sch IIA","Funds Held",null,"NAIC Rating Corp & Sov. Bond - Total",{"$f":"'Schedule IIA'!D84","v":0},null,null,null,null,null,null,null,{"$f":"'Schedule IIA (EBS)'!D84","v":0}]
["Sch IIA","Funds Held",null,"NAIC Rating Resid. MBS - Class 1",{"$f":"'Schedule IIA'!F78","v":0},null,null,null,null,null,null,null,{"$f":"'Schedule IIA (EBS)'!F78","v":0}]
["Sch IIA","Funds Held",null,"NAIC Rating Resid. MBS - Class 2",{"$f":"'Schedule IIA'!F79","v":0},null,null,null,null,null,null,null,{"$f":"'Schedule IIA (EBS)'!F79","v":0}]
["Sch IIA","Funds Held",null,"NAIC Rating Resid. MBS - Class 3",{"$f":"'Schedule IIA'!F80","v":0},null,null,null,null,null,null,null,{"$f":"'Schedule IIA (EBS)'!F80","v":0}]
["Sch IIA","Funds Held",null,"NAIC Rating Resid. MBS - Class 4",{"$f":"'Schedule IIA'!F81","v":0},null,null,null,null,null,null,null,{"$f":"'Schedule IIA (EBS)'!F81","v":0}]
["Sch IIA","Funds Held",null,"NAIC Rating Resid. MBS - Class 5",{"$f":"'Schedule IIA'!F82","v":0},null,null,null,null,null,null,null,{"$f":"'Schedule IIA (EBS)'!F82","v":0}]
["Sch IIA","Funds Held",null,"NAIC Rating Resid. MBS - Class 6",{"$f":"'Schedule IIA'!F83","v":0},null,null,null,null,null,null,null,{"$f":"'Schedule IIA (EBS)'!F83","v":0}]
["Sch IIA","Funds Held",null,"NAIC Rating Resid. MBS - Total",{"$f":"'Schedule IIA'!F84","v":0},null,null,null,null,null,null,null,{"$f":"'Schedule IIA (EBS)'!F84","v":0}]
["Sch IIA","Funds Held",null,"NAIC Rating Comm. MBS - Class 1",{"$f":"'Schedule IIA'!H78","v":0},null,null,null,null,null,null,null,{"$f":"'Schedule IIA (EBS)'!H78","v":0}]
["Sch IIA","Funds Held",null,"NAIC Rating Comm. MBS - Class 2",{"$f":"'Schedule IIA'!H79","v":0},null,null,null,null,null,null,null,{"$f":"'Schedule IIA (EBS)'!H79","v":0}]
["Sch IIA","Funds Held",null,"NAIC Rating Comm. MBS - Class 3",{"$f":"'Schedule IIA'!H80","v":0},null,null,null,null,null,null,null,{"$f":"'Schedule IIA (EBS)'!H80","v":0}]
["Sch IIA","Funds Held",null,"NAIC Rating Comm. MBS - Class 4",{"$f":"'Schedule IIA'!H81","v":0},null,null,null,null,null,null,null,{"$f":"'Schedule IIA (EBS)'!H81","v":0}]
["Sch IIA","Funds Held",null,"NAIC Rating Comm. MBS - Class 5",{"$f":"'Schedule IIA'!H82","v":0},null,null,null,null,null,null,null,{"$f":"'Schedule IIA (EBS)'!H82","v":0}]
["Sch IIA","Funds Held",null,"NAIC Rating Comm. MBS - Class 6",{"$f":"'Schedule IIA'!H83","v":0},null,null,null,null,null,null,null,{"$f":"'Schedule IIA (EBS)'!H83","v":0}]
["Sch IIA","Funds Held",null,"NAIC Rating Comm. MBS - Total",{"$f":"'Schedule IIA'!H84","v":0},null,null,null,null,null,null,null,{"$f":"'Schedule IIA (EBS)'!H84","v":0}]
["Sch IIA","Funds Held",null,"NAIC Rating Bond Mutual - Class 1",{"$f":"'Schedule IIA'!J78","v":0},null,null,null,null,null,null,null,{"$f":"'Schedule IIA (EBS)'!J78","v":0}]
["Sch IIA","Funds Held",null,"NAIC Rating Bond Mutual - Class 2",{"$f":"'Schedule IIA'!J79","v":0},null,null,null,null,null,null,null,{"$f":"'Schedule IIA (EBS)'!J79","v":0}]
["Sch IIA","Funds Held",null,"NAIC Rating Bond Mutual - Class 3",{"$f":"'Schedule IIA'!J80","v":0},null,null,null,null,null,null,null,{"$f":"'Schedule IIA (EBS)'!J80","v":0}]
["Sch IIA","Funds Held",null,"NAIC Rating Bond Mutual - Class 4",{"$f":"'Schedule IIA'!J81","v":0},null,null,null,null,null,null,null,{"$f":"'Schedule IIA (EBS)'!J81","v":0}]
["Sch IIA","Funds Held",null,"NAIC Rating Bond Mutual - Class 5",{"$f":"'Schedule IIA'!J82","v":0},null,null,null,null,null,null,null,{"$f":"'Schedule IIA (EBS)'!J82","v":0}]
["Sch IIA","Funds Held",null,"NAIC Rating Bond Mutual - Class 6",{"$f":"'Schedule IIA'!J83","v":0},null,null,null,null,null,null,null,{"$f":"'Schedule IIA (EBS)'!J83","v":0}]
["Sch IIA","Funds Held",null,"NAIC Rating Bond Mutual - Total",{"$f":"'Schedule IIA'!J84","v":0},null,null,null,null,null,null,null,{"$f":"'Schedule IIA (EBS)'!J84","v":0}]
["Sch IIA","Funds Held",null,"NAIC Rating Mort. Loan - Class 1",{"$f":"'Schedule IIA'!L78","v":0},null,null,null,null,null,null,null,{"$f":"'Schedule IIA (EBS)'!L78","v":0}]
["Sch IIA","Funds Held",null,"NAIC Rating Mort. Loan - Class 2",{"$f":"'Schedule IIA'!L79","v":0},null,null,null,null,null,null,null,{"$f":"'Schedule IIA (EBS)'!L79","v":0}]
["Sch IIA","Funds Held",null,"NAIC Rating Mort. Loan - Class 3",{"$f":"'Schedule IIA'!L80","v":0},null,null,null,null,null,null,null,{"$f":"'Schedule IIA (EBS)'!L80","v":0}]
["Sch IIA","Funds Held",null,"NAIC Rating Mort. Loan - Class 4",{"$f":"'Schedule IIA'!L81","v":0},null,null,null,null,null,null,null,{"$f":"'Schedule IIA (EBS)'!L81","v":0}]
["Sch IIA","Funds Held",null,"NAIC Rating Mort. Loan - Class 5",{"$f":"'Schedule IIA'!L82","v":0},null,null,null,null,null,null,null,{"$f":"'Schedule IIA (EBS)'!L82","v":0}]
["Sch IIA","Funds Held",null,"NAIC Rating Mort. Loan - Class 6",{"$f":"'Schedule IIA'!L83","v":0},null,null,null,null,null,null,null,{"$f":"'Schedule IIA (EBS)'!L83","v":0}]
["Sch IIA","Funds Held",null,"NAIC Rating Mort. Loan - Total",{"$f":"'Schedule IIA'!L84","v":0},null,null,null,null,null,null,null,{"$f":"'Schedule IIA (EBS)'!L84","v":0}]
["Sch IIA","Funds Held",null,"NAIC Rating Pref. Stock - Class 1",{"$f":"'Schedule IIA'!N78","v":0},null,null,null,null,null,null,null,{"$f":"'Schedule IIA (EBS)'!N78","v":0}]
["Sch IIA","Funds Held",null,"NAIC Rating Pref. Stock - Class 2",{"$f":"'Schedule IIA'!N79","v":0},null,null,null,null,null,null,null,{"$f":"'Schedule IIA (EBS)'!N79","v":0}]
["Sch IIA","Funds Held",null,"NAIC Rating Pref. Stock - Class 3",{"$f":"'Schedule IIA'!N80","v":0},null,null,null,null,null,null,null,{"$f":"'Schedule IIA (EBS)'!N80","v":0}]
["Sch IIA","Funds Held",null,"NAIC Rating Pref. Stock - Class 4",{"$f":"'Schedule IIA'!N81","v":0},null,null,null,null,null,null,null,{"$f":"'Schedule IIA (EBS)'!N81","v":0}]
["Sch IIA","Funds Held",null,"NAIC Rating Pref. Stock - Class 5",{"$f":"'Schedule IIA'!N82","v":0},null,null,null,null,null,null,null,{"$f":"'Schedule IIA (EBS)'!N82","v":0}]
["Sch IIA","Funds Held",null,"NAIC Rating Pref. Stock - Class 6",{"$f":"'Schedule IIA'!N83","v":0},null,null,null,null,null,null,null,{"$f":"'Schedule IIA (EBS)'!N83","v":0}]
["Sch IIA","Funds Held",null,"NAIC Rating Pref. Stock - Total",{"$f":"'Schedule IIA'!N84","v":0},null,null,null,null,null,null,null,{"$f":"'Schedule IIA (EBS)'!N84","v":0}]
["Sch IIA","Funds Held",null,"NAIC Rating Other Assets - Class 1",{"$f":"'Schedule IIA'!P78","v":0},null,null,null,null,null,null,null,{"$f":"'Schedule IIA (EBS)'!P78","v":0}]
["Sch IIA","Funds Held",null,"NAIC Rating Other Assets - Class 2",{"$f":"'Schedule IIA'!P79","v":0},null,null,null,null,null,null,null,{"$f":"'Schedule IIA (EBS)'!P79","v":0}]
["Sch IIA","Funds Held",null,"NAIC Rating Other Assets - Class 3",{"$f":"'Schedule IIA'!P80","v":0},null,null,null,null,null,null,null,{"$f":"'Schedule IIA (EBS)'!P80","v":0}]
["Sch IIA","Funds Held",null,"NAIC Rating Other Assets - Class 4",{"$f":"'Schedule IIA'!P81","v":0},null,null,null,null,null,null,null,{"$f":"'Schedule IIA (EBS)'!P81","v":0}]
["Sch IIA","Funds Held",null,"NAIC Rating Other Assets - Class 5",{"$f":"'Schedule IIA'!P82","v":0},null,null,null,null,null,null,null,{"$f":"'Schedule IIA (EBS)'!P82","v":0}]
["Sch IIA","Funds Held",null,"NAIC Rating Other Assets - Class 6",{"$f":"'Schedule IIA'!P83","v":0},null,null,null,null,null,null,null,{"$f":"'Schedule IIA (EBS)'!P83","v":0}]
["Sch IIA","Funds Held",null,"NAIC Rating Other Assets - Total",{"$f":"'Schedule IIA'!P84","v":0},null,null,null,null,null,null,null,{"$f":"'Schedule IIA (EBS)'!P84","v":0}]
[]
["Sch IVA","LT Premium",null,"Unrelated - 1. Mortality",{"$f":"'Schedule IVB'!E12","v":0},null,{"$f":"'Schedule IVB'!G12","v":0},null,{"$f":"'Schedule IVB (EBS)'!E12","v":0},null,{"$f":"'Schedule IVB (EBS)'!G12","v":0}]
["Sch IVA","LT Premium",null,"Unrelated - 2. Critical Illness",{"$f":"'Schedule IVB'!E13","v":0},null,{"$f":"'Schedule IVB'!G13","v":0},null,{"$f":"'Schedule IVB (EBS)'!E13","v":0},null,{"$f":"'Schedule IVB (EBS)'!G13","v":0}]
["Sch IVA","LT Premium",null,"Unrelated - 3. Longevity",{"$f":"'Schedule IVB'!E14","v":0},null,{"$f":"'Schedule IVB'!G14","v":0},null,{"$f":"'Schedule IVB (EBS)'!E14","v":0},null,{"$f":"'Schedule IVB (EBS)'!G14","v":0}]
["Sch IVA","LT Premium",null,"Unrelated - 4. Deferred Annuities ",{"$f":"'Schedule IVB'!E15","v":0},null,{"$f":"'Schedule IVB'!G15","v":0},null,{"$f":"'Schedule IVB (EBS)'!E15","v":0},null,{"$f":"'Schedule IVB (EBS)'!G15","v":0}]
["Sch IVA","LT Premium",null,"Unrelated - 5i. Dis. Income: 1 Yr",{"$f":"'Schedule IVB'!E17","v":0},null,{"$f":"'Schedule IVB'!G17","v":0},null,{"$f":"'Schedule IVB (EBS)'!E17","v":0},null,{"$f":"'Schedule IVB (EBS)'!G17","v":0}]
["Sch IVA","LT Premium",null,"Unrelated - 5ii. Dis. Income: 1-5 Yrs",{"$f":"'Schedule IVB'!E18","v":0},null,{"$f":"'Schedule IVB'!G18","v":0},null,{"$f":"'Schedule IVB (EBS)'!E18","v":0},null,{"$f":"'Schedule IVB (EBS)'!G18","v":0}]
["Sch IVA","LT Premium",null,"Unrelated - 5iii. Dis. Income: 5+ Yrs",{"$f":"'Schedule IVB'!E19","v":0},null,{"$f":"'Schedule IVB'!G19","v":0},null,{"$f":"'Schedule IVB (EBS)'!E19","v":0},null,{"$f":"'Schedule IVB (EBS)'!G19","v":0}]
["Sch IVA","LT Premium",null,"Unrelated - 6. Dis. Income: Active Liv",{"$f":"'Schedule IVB'!E20","v":0},null,{"$f":"'Schedule IVB'!G20","v":0},null,{"$f":"'Schedule IVB (EBS)'!E20","v":0},null,{"$f":"'Schedule IVB (EBS)'!G20","v":0}]
["Sch IVA","LT Premium",null,"Unrelated - 7. Dis. Income: Claims in Pay",{"$f":"'Schedule IVB'!E22","v":0},null,{"$f":"'Schedule IVB'!G22","v":0},null,{"$f":"'Schedule IVB (EBS)'!E22","v":0},null,{"$f":"'Schedule IVB (EBS)'!G22","v":0}]
["Sch IVA","LT Premium",null,"Unrelated - 8. Dis. Income: Claims in Pay Other",{"$f":"'Schedule IVB'!E23","v":0},null,{"$f":"'Schedule IVB'!G23","v":0},null,{"$f":"'Schedule IVB (EBS)'!E23","v":0},null,{"$f":"'Schedule IVB (EBS)'!G23","v":0}]
["Sch IVA","LT Premium",null,"Unrelated - 9. Group Life",{"$f":"'Schedule IVB'!E25","v":0},null,{"$f":"'Schedule IVB'!G25","v":0},null,{"$f":"'Schedule IVB (EBS)'!E25","v":0},null,{"$f":"'Schedule IVB (EBS)'!G25","v":0}]
["Sch IVA","LT Premium",null,"Unrelated - 10. Group Disability",{"$f":"'Schedule IVB'!E26","v":0},null,{"$f":"'Schedule IVB'!G26","v":0},null,{"$f":"'Schedule IVB (EBS)'!E26","v":0},null,{"$f":"'Schedule IVB (EBS)'!G26","v":0}]
["Sch IVA","LT Premium",null,"Unrelated - 11. Group Health",{"$f":"'Schedule IVB'!E27","v":0},null,{"$f":"'Schedule IVB'!G27","v":0},null,{"$f":"'Schedule IVB (EBS)'!E27","v":0},null,{"$f":"'Schedule IVB (EBS)'!G27","v":0}]
["Sch IVA","LT Premium",null,"Unrelated - 12. Stop Loss",{"$f":"'Schedule IVB'!E28","v":0},null,{"$f":"'Schedule IVB'!G28","v":0},null,{"$f":"'Schedule IVB (EBS)'!E28","v":0},null,{"$f":"'Schedule IVB (EBS)'!G28","v":0}]
["Sch IVA","LT Premium",null,"Unrelated - 13. Riders",{"$f":"'Schedule IVB'!E29","v":0},null,{"$f":"'Schedule IVB'!G29","v":0},null,{"$f":"'Schedule IVB (EBS)'!E29","v":0},null,{"$f":"'Schedule IVB (EBS)'!G29","v":0}]
["Sch IVA","LT Premium",null,"Unrelated - 14. Variable Annuities",{"$f":"'Schedule IVB'!E30","v":0},null,{"$f":"'Schedule IVB'!G30","v":0},null,{"$f":"'Schedule IVB (EBS)'!E30","v":0},null,{"$f":"'Schedule IVB (EBS)'!G30","v":0}]
["Sch IVA","LT Premium",null,"Related - 1. Mortality",{"$f":"'Schedule IVB'!I12","v":0},null,{"$f":"'Schedule IVB'!K12","v":0},null,{"$f":"'Schedule IVB (EBS)'!I12","v":0},null,{"$f":"'Schedule IVB (EBS)'!K12","v":0}]
["Sch IVA","LT Premium",null,"Related - 2. Critical Illness",{"$f":"'Schedule IVB'!I13","v":0},null,{"$f":"'Schedule IVB'!K13","v":0},null,{"$f":"'Schedule IVB (EBS)'!I13","v":0},null,{"$f":"'Schedule IVB (EBS)'!K13","v":0}]
["Sch IVA","LT Premium",null,"Related - 3. Longevity",{"$f":"'Schedule IVB'!I14","v":0},null,{"$f":"'Schedule IVB'!K14","v":0},null,{"$f":"'Schedule IVB (EBS)'!I14","v":0},null,{"$f":"'Schedule IVB (EBS)'!K14","v":0}]
["Sch IVA","LT Premium",null,"Related - 4. Deferred Annuities ",{"$f":"'Schedule IVB'!I15","v":0},null,{"$f":"'Schedule IVB'!K15","v":0},null,{"$f":"'Schedule IVB (EBS)'!I15","v":0},null,{"$f":"'Schedule IVB (EBS)'!K15","v":0}]
["Sch IVA","LT Premium",null,"Related - 5i. Dis. Income: 1 Yr",{"$f":"'Schedule IVB'!I17","v":0},null,{"$f":"'Schedule IVB'!K17","v":0},null,{"$f":"'Schedule IVB (EBS)'!I17","v":0},null,{"$f":"'Schedule IVB (EBS)'!K17","v":0}]
["Sch IVA","LT Premium",null,"Related - 5ii. Dis. Income: 1-5 Yrs",{"$f":"'Schedule IVB'!I18","v":0},null,{"$f":"'Schedule IVB'!K18","v":0},null,{"$f":"'Schedule IVB (EBS)'!I18","v":0},null,{"$f":"'Schedule IVB (EBS)'!K18","v":0}]
["Sch IVA","LT Premium",null,"Related - 5iiii. Dis. Income: 5+ Yrs",{"$f":"'Schedule IVB'!I19","v":0},null,{"$f":"'Schedule IVB'!K19","v":0},null,{"$f":"'Schedule IVB (EBS)'!I19","v":0},null,{"$f":"'Schedule IVB (EBS)'!K19","v":0}]
["Sch IVA","LT Premium",null,"Related - 6. Dis. Income: Active Liv",{"$f":"'Schedule IVB'!I20","v":0},null,{"$f":"'Schedule IVB'!K20","v":0},null,{"$f":"'Schedule IVB (EBS)'!I20","v":0},null,{"$f":"'Schedule IVB (EBS)'!K20","v":0}]
["Sch IVA","LT Premium",null,"Related - 7. Dis. Income: Claims in Pay",{"$f":"'Schedule IVB'!I22","v":0},null,{"$f":"'Schedule IVB'!K22","v":0},null,{"$f":"'Schedule IVB (EBS)'!I22","v":0},null,{"$f":"'Schedule IVB (EBS)'!K22","v":0}]
["Sch IVA","LT Premium",null,"Related - 8. Dis. Income: Claims in Pay Other",{"$f":"'Schedule IVB'!I23","v":0},null,{"$f":"'Schedule IVB'!K23","v":0},null,{"$f":"'Schedule IVB (EBS)'!I23","v":0},null,{"$f":"'Schedule IVB (EBS)'!K23","v":0}]
["Sch IVA","LT Premium",null,"Related - 9. Group Life",{"$f":"'Schedule IVB'!I25","v":0},null,{"$f":"'Schedule IVB'!K25","v":0},null,{"$f":"'Schedule IVB (EBS)'!I25","v":0},null,{"$f":"'Schedule IVB (EBS)'!K25","v":0}]
["Sch IVA","LT Premium",null,"Related - 10. Group Disability",{"$f":"'Schedule IVB'!I26","v":0},null,{"$f":"'Schedule IVB'!K26","v":0},null,{"$f":"'Schedule IVB (EBS)'!I26","v":0},null,{"$f":"'Schedule IVB (EBS)'!K26","v":0}]
["Sch IVA","LT Premium",null,"Related - 11. Group Health",{"$f":"'Schedule IVB'!I27","v":0},null,{"$f":"'Schedule IVB'!K27","v":0},null,{"$f":"'Schedule IVB (EBS)'!I27","v":0},null,{"$f":"'Schedule IVB (EBS)'!K27","v":0}]
["Sch IVA","LT Premium",null,"Related - 12. Stop Loss",{"$f":"'Schedule IVB'!I28","v":0},null,{"$f":"'Schedule IVB'!K28","v":0},null,{"$f":"'Schedule IVB (EBS)'!I28","v":0},null,{"$f":"'Schedule IVB (EBS)'!K28","v":0}]
["Sch IVA","LT Premium",null,"Related - 13. Riders",{"$f":"'Schedule IVB'!I29","v":0},null,{"$f":"'Schedule IVB'!K29","v":0},null,{"$f":"'Schedule IVB (EBS)'!I29","v":0},null,{"$f":"'Schedule IVB (EBS)'!K29","v":0}]
["Sch IVA","LT Premium",null,"Related - 14. Variable Annuities",{"$f":"'Schedule IVB'!I30","v":0},null,{"$f":"'Schedule IVB'!K30","v":0},null,{"$f":"'Schedule IVB (EBS)'!I30","v":0},null,{"$f":"'Schedule IVB (EBS)'!K30","v":0}]
["Sch IVA","LT Premium",null,"Adj. Benefit -2 Yrs - 5i. Dis. Income: 1 Yr",{"$f":"'Schedule IVB'!Q17","v":0},null,{"$f":"'Schedule IVB'!S17","v":0},null,{"$f":"'Schedule IVB (EBS)'!Q17","v":0},null,{"$f":"'Schedule IVB (EBS)'!S17","v":0}]
["Sch IVA","LT Premium",null,"Adj. Benefit -2 Yrs - 5ii. Dis. Income: 1-5 Yrs",{"$f":"'Schedule IVB'!Q18","v":0},null,{"$f":"'Schedule IVB'!S18","v":0},null,{"$f":"'Schedule IVB (EBS)'!Q18","v":0},null,{"$f":"'Schedule IVB (EBS)'!S18","v":0}]
["Sch IVA","LT Premium",null,"Adj. Benefit -2 Yrs - 5iii. Dis. Income: 5+ Yrs",{"$f":"'Schedule IVB'!Q19","v":0},null,{"$f":"'Schedule IVB'!S19","v":0},null,{"$f":"'Schedule IVB (EBS)'!Q19","v":0},null,{"$f":"'Schedule IVB (EBS)'!S19","v":0}]
["Sch IVA","LT Premium",null,"Adj. Benefit +2 Yrs - 5i. Dis. Income: 1 Yr",{"$f":"'Schedule IVB'!U17","v":0},null,{"$f":"'Schedule IVB'!W17","v":0},null,{"$f":"'Schedule IVB (EBS)'!U17","v":0},null,{"$f":"'Schedule IVB (EBS)'!W17","v":0}]
["Sch IVA","LT Premium",null,"Adj. Benefit +2 Yrs - 5ii. Dis. Income: 1-5 Yrs",{"$f":"'Schedule IVB'!U18","v":0},null,{"$f":"'Schedule IVB'!W18","v":0},null,{"$f":"'Schedule IVB (EBS)'!U18","v":0},null,{"$f":"'Schedule IVB (EBS)'!W18","v":0}]
["Sch IVA","LT Premium",null,"Adj. Benefit +2 Yrs - 5iii. Dis. Income: 5+ Yrs",{"$f":"'Schedule IVB'!U19","v":0},null,{"$f":"'Schedule IVB'!W19","v":0},null,{"$f":"'Schedule IVB (EBS)'!U19","v":0},null,{"$f":"'Schedule IVB (EBS)'!W19","v":0}]
["Sch IVA","LT Premium",null,"Net - 1. Mortality",{"$f":"'Schedule IVB'!Y12","v":0},null,{"$f":"'Schedule IVB'!AA12","v":0},null,{"$f":"'Schedule IVB (EBS)'!Y12","v":0},null,{"$f":"'Schedule IVB (EBS)'!AA12","v":0}]
["Sch IVA","LT Premium",null,"Net - 2. Critical Illness",{"$f":"'Schedule IVB'!Y13","v":0},null,{"$f":"'Schedule IVB'!AA13","v":0},null,{"$f":"'Schedule IVB (EBS)'!Y13","v":0},null,{"$f":"'Schedule IVB (EBS)'!AA13","v":0}]
["Sch IVA","LT Premium",null,"Net - 3. Longevity",{"$f":"'Schedule IVB'!Y14","v":0},null,{"$f":"'Schedule IVB'!AA14","v":0},null,{"$f":"'Schedule IVB (EBS)'!Y14","v":0},null,{"$f":"'Schedule IVB (EBS)'!AA14","v":0}]
["Sch IVA","LT Premium",null,"Net - 4. Deferred Annuities ",{"$f":"'Schedule IVB'!Y15","v":0},null,{"$f":"'Schedule IVB'!AA15","v":0},null,{"$f":"'Schedule IVB (EBS)'!Y15","v":0},null,{"$f":"'Schedule IVB (EBS)'!AA15","v":0}]
["Sch IVA","LT Premium",null,"Net - 6. Dis. Income: Active Liv",{"$f":"'Schedule IVB'!Y20","v":0},null,{"$f":"'Schedule IVB'!AA20","v":0},null,{"$f":"'Schedule IVB (EBS)'!Y20","v":0},null,{"$f":"'Schedule IVB (EBS)'!AA20","v":0}]
["Sch IVA","LT Premium",null,"Net - 7. Dis. Income: Claims in Pay",{"$f":"'Schedule IVB'!Y22","v":0},null,{"$f":"'Schedule IVB'!AA22","v":0},null,{"$f":"'Schedule IVB (EBS)'!Y22","v":0},null,{"$f":"'Schedule IVB (EBS)'!AA22","v":0}]
["Sch IVA","LT Premium",null,"Net - 8. Dis. Income: Claims in Pay Other",{"$f":"'Schedule IVB'!Y23","v":0},null,{"$f":"'Schedule IVB'!AA23","v":0},null,{"$f":"'Schedule IVB (EBS)'!Y23","v":0},null,{"$f":"'Schedule IVB (EBS)'!AA23","v":0}]
["Sch IVA","LT Premium",null,"Net - 9. Group Life",{"$f":"'Schedule IVB'!Y25","v":0},null,{"$f":"'Schedule IVB'!AA25","v":0},null,{"$f":"'Schedule IVB (EBS)'!Y25","v":0},null,{"$f":"'Schedule IVB (EBS)'!AA25","v":0}]
["Sch IVA","LT Premium",null,"Net - 10. Group Disability",{"$f":"'Schedule IVB'!Y26","v":0},null,{"$f":"'Schedule IVB'!AA26","v":0},null,{"$f":"'Schedule IVB (EBS)'!Y26","v":0},null,{"$f":"'Schedule IVB (EBS)'!AA26","v":0}]
["Sch IVA","LT Premium",null,"Net - 11. Group Health",{"$f":"'Schedule IVB'!Y27","v":0},null,{"$f":"'Schedule IVB'!AA27","v":0},null,{"$f":"'Schedule IVB (EBS)'!Y27","v":0},null,{"$f":"'Schedule IVB (EBS)'!AA27","v":0}]
["Sch IVA","LT Premium",null,"Net - 12. Stop Loss",{"$f":"'Schedule IVB'!Y28","v":0},null,{"$f":"'Schedule IVB'!AA28","v":0},null,{"$f":"'Schedule IVB (EBS)'!Y28","v":0},null,{"$f":"'Schedule IVB (EBS)'!AA28","v":0}]
["Sch IVA","LT Premium",null,"Net - 13. Riders",{"$f":"'Schedule IVB'!Y29","v":0},null,{"$f":"'Schedule IVB'!AA29","v":0},null,{"$f":"'Schedule IVB (EBS)'!Y29","v":0},null,{"$f":"'Schedule IVB (EBS)'!AA29","v":0}]
["Sch IVA","LT Premium",null,"Net - 14. Variable Annuities",{"$f":"'Schedule IVB'!Y30","v":0},null,{"$f":"'Schedule IVB'!AA30","v":0},null,{"$f":"'Schedule IVB (EBS)'!Y30","v":0},null,{"$f":"'Schedule IVB (EBS)'!AA30","v":0}]
[]
["Sch V","Risk Mgnt",null,"Asset Duration",null,null,null,null,null,null,null,null,{"$f":"'Schedule V'!H11","v":0}]
["Sch V","Risk Mgnt",null,"Liability Duration",null,null,null,null,null,null,null,null,{"$f":"'Schedule V'!H13","v":0}]
["Sch V","Risk Mgnt",null,"Weighted Average of Difference with Management Action",null,null,null,null,{"$f":"'Schedule V'!H15","v":0}]
["Sch V","Risk Mgnt",null,"Weighted Average of Difference without Management Action",null,null,null,null,{"$f":"'Schedule V'!H16","v":0}]
["Sch V","Risk Mgnt",null,"Reserves with Known Duration",null,null,null,null,{"$f":"'Schedule V'!H20","v":0}]
["Sch V","Risk Mgnt",null,"Projected Net Premium Written",null,null,null,null,{"$f":"'Schedule V'!H25","v":0}]
["Sch V","Risk Mgnt",null,"Projected % of Group ",null,null,null,null,{"$f":"'Schedule V'!I27","v":0},null,null,null,{"$f":"'Schedule V'!I26","v":0}]
["Sch V","Risk Mgnt",null,"Projected Net Income",null,null,null,null,{"$f":"'Schedule V'!H26","v":0}]
["Sch V","Risk Mgnt",null,"a)Def Acc",null,null,null,null,{"$f":"'Schedule V'!H39","v":0}]
["Sch V","Risk Mgnt",null,"b)Def Acc",null,null,null,null,{"$f":"'Schedule V'!H40","v":0}]
["Sch V","Risk Mgnt",null,"c)Def Acc",null,null,null,null,{"$f":"'Schedule V'!H41","v":0}]
["Sch V","Risk Mgnt",null,"d)Def Acc",null,null,null,null,{"$f":"'Schedule V'!H42","v":0}]
[]
["Sch Va","Governance",null,"# of Directors",{"$f":"'Schedule V(a)'!D8","v":0}]
["Sch Va","Governance",null,"Director Name - 1",{"$f":"'Schedule V(a)'!C12","v":0}]
["Sch Va","Governance",null,"Director Name - 2",{"$f":"'Schedule V(a)'!C13","v":0}]
["Sch Va","Governance",null,"Director Name - 3",{"$f":"'Schedule V(a)'!C14","v":0}]
["Sch Va","Governance",null,"Director Name - 4",{"$f":"'Schedule V(a)'!C15","v":0}]
["Sch Va","Governance",null,"Director Name - 5",{"$f":"'Schedule V(a)'!C16","v":0}]
["Sch Va","Governance",null,"Director Name - 6",{"$f":"'Schedule V(a)'!C17","v":0}]
["Sch Va","Governance",null,"Director Name - 7",{"$f":"'Schedule V(a)'!C18","v":0}]
["Sch Va","Governance",null,"Director Name - 8",{"$f":"'Schedule V(a)'!C19","v":0}]
["Sch Va","Governance",null,"Director Name - 9",{"$f":"'Schedule V(a)'!C20","v":0}]
["Sch Va","Governance",null,"Director Name - 10",{"$f":"'Schedule V(a)'!C21","v":0}]
["Sch Va","Governance",null,"Director Name - 11",{"$f":"'Schedule V(a)'!C22","v":0}]
["Sch Va","Governance",null,"Director Name - 12",{"$f":"'Schedule V(a)'!C23","v":0}]
["Sch Va","Governance",null,"Director Name - 13",{"$f":"'Schedule V(a)'!C24","v":0}]
["Sch Va","Governance",null,"Director Name - 14",{"$f":"'Schedule V(a)'!C25","v":0}]
["Sch Va","Governance",null,"Director Name - 15",{"$f":"'Schedule V(a)'!C26","v":0}]
["Sch Va","Governance",null,"Director Name - 16",{"$f":"'Schedule V(a)'!C27","v":0}]
["Sch Va","Governance",null,"Director Name - 17",{"$f":"'Schedule V(a)'!C28","v":0}]
["Sch Va","Governance",null,"Director Name - 18",{"$f":"'Schedule V(a)'!C29","v":0}]
["Sch Va","Governance",null,"Director Name - 19",{"$f":"'Schedule V(a)'!C30","v":0}]
["Sch Va","Governance",null,"Director Name - 20",{"$f":"'Schedule V(a)'!C31","v":0}]
["Sch Va","Governance",null,"Director Position - 1",{"$f":"'Schedule V(a)'!D12","v":0}]
["Sch Va","Governance",null,"Director Position - 2",{"$f":"'Schedule V(a)'!D13","v":0}]
["Sch Va","Governance",null,"Director Position - 3",{"$f":"'Schedule V(a)'!D14","v":0}]
["Sch Va","Governance",null,"Director Position - 4",{"$f":"'Schedule V(a)'!D15","v":0}]
["Sch Va","Governance",null,"Director Position - 5",{"$f":"'Schedule V(a)'!D16","v":0}]
["Sch Va","Governance",null,"Director Position - 6",{"$f":"'Schedule V(a)'!D17","v":0}]
["Sch Va","Governance",null,"Director Position - 7",{"$f":"'Schedule V(a)'!D18","v":0}]
["Sch Va","Governance",null,"Director Position - 8",{"$f":"'Schedule V(a)'!D19","v":0}]
["Sch Va","Governance",null,"Director Position - 9",{"$f":"'Schedule V(a)'!D20","v":0}]
["Sch Va","Governance",null,"Director Position - 10",{"$f":"'Schedule V(a)'!D21","v":0}]
["Sch Va","Governance",null,"Director Position - 11",{"$f":"'Schedule V(a)'!D22","v":0}]
["Sch Va","Governance",null,"Director Position - 12",{"$f":"'Schedule V(a)'!D23","v":0}]
["Sch Va","Governance",null,"Director Position - 13",{"$f":"'Schedule V(a)'!D24","v":0}]
["Sch Va","Governance",null,"Director Position - 14",{"$f":"'Schedule V(a)'!D25","v":0}]
["Sch Va","Governance",null,"Director Position - 15",{"$f":"'Schedule V(a)'!D26","v":0}]
["Sch Va","Governance",null,"Director Position - 16",{"$f":"'Schedule V(a)'!D27","v":0}]
["Sch Va","Governance",null,"Director Position - 17",{"$f":"'Schedule V(a)'!D28","v":0}]
["Sch Va","Governance",null,"Director Position - 18",{"$f":"'Schedule V(a)'!D29","v":0}]
["Sch Va","Governance",null,"Director Position - 19",{"$f":"'Schedule V(a)'!D30","v":0}]
["Sch Va","Governance",null,"Director Position - 20",{"$f":"'Schedule V(a)'!D31","v":0}]
["Sch Va","Governance",null,"Director Residence - 1",{"$f":"'Schedule V(a)'!E12","v":0}]
["Sch Va","Governance",null,"Director Residence - 2",{"$f":"'Schedule V(a)'!E13","v":0}]
["Sch Va","Governance",null,"Director Residence - 3",{"$f":"'Schedule V(a)'!E14","v":0}]
["Sch Va","Governance",null,"Director Residence - 4",{"$f":"'Schedule V(a)'!E15","v":0}]
["Sch Va","Governance",null,"Director Residence - 5",{"$f":"'Schedule V(a)'!E16","v":0}]
["Sch Va","Governance",null,"Director Residence - 6",{"$f":"'Schedule V(a)'!E17","v":0}]
["Sch Va","Governance",null,"Director Residence - 7",{"$f":"'Schedule V(a)'!E18","v":0}]
["Sch Va","Governance",null,"Director Residence - 8",{"$f":"'Schedule V(a)'!E19","v":0}]
["Sch Va","Governance",null,"Director Residence - 9",{"$f":"'Schedule V(a)'!E20","v":0}]
["Sch Va","Governance",null,"Director Residence - 10",{"$f":"'Schedule V(a)'!E21","v":0}]
["Sch Va","Governance",null,"Director Residence - 11",{"$f":"'Schedule V(a)'!E22","v":0}]
["Sch Va","Governance",null,"Director Residence - 12",{"$f":"'Schedule V(a)'!E23","v":0}]
["Sch Va","Governance",null,"Director Residence - 13",{"$f":"'Schedule V(a)'!E24","v":0}]
["Sch Va","Governance",null,"Director Residence - 14",{"$f":"'Schedule V(a)'!E25","v":0}]
["Sch Va","Governance",null,"Director Residence - 15",{"$f":"'Schedule V(a)'!E26","v":0}]
["Sch Va","Governance",null,"Director Residence - 16",{"$f":"'Schedule V(a)'!E27","v":0}]
["Sch Va","Governance",null,"Director Residence - 17",{"$f":"'Schedule V(a)'!E28","v":0}]
["Sch Va","Governance",null,"Director Residence - 18",{"$f":"'Schedule V(a)'!E29","v":0}]
["Sch Va","Governance",null,"Director Residence - 19",{"$f":"'Schedule V(a)'!E30","v":0}]
["Sch Va","Governance",null,"Director Residence - 20",{"$f":"'Schedule V(a)'!E31","v":0}]
["Sch Va","Governance",null,"Director Work Experience - 1",{"$f":"'Schedule V(a)'!F12","v":0}]
["Sch Va","Governance",null,"Director Work Experience - 2",{"$f":"'Schedule V(a)'!F13","v":0}]
["Sch Va","Governance",null,"Director Work Experience - 3",{"$f":"'Schedule V(a)'!F14","v":0}]
["Sch Va","Governance",null,"Director Work Experience - 4",{"$f":"'Schedule V(a)'!F15","v":0}]
["Sch Va","Governance",null,"Director Work Experience - 5",{"$f":"'Schedule V(a)'!F16","v":0}]
["Sch Va","Governance",null,"Director Work Experience - 6",{"$f":"'Schedule V(a)'!F17","v":0}]
["Sch Va","Governance",null,"Director Work Experience - 7",{"$f":"'Schedule V(a)'!F18","v":0}]
["Sch Va","Governance",null,"Director Work Experience - 8",{"$f":"'Schedule V(a)'!F19","v":0}]
["Sch Va","Governance",null,"Director Work Experience - 9",{"$f":"'Schedule V(a)'!F20","v":0}]
["Sch Va","Governance",null,"Director Work Experience - 10",{"$f":"'Schedule V(a)'!F21","v":0}]
["Sch Va","Governance",null,"Director Work Experience - 11",{"$f":"'Schedule V(a)'!F22","v":0}]
["Sch Va","Governance",null,"Director Work Experience - 12",{"$f":"'Schedule V(a)'!F23","v":0}]
["Sch Va","Governance",null,"Director Work Experience - 13",{"$f":"'Schedule V(a)'!F24","v":0}]
["Sch Va","Governance",null,"Director Work Experience - 14",{"$f":"'Schedule V(a)'!F25","v":0}]
["Sch Va","Governance",null,"Director Work Experience - 15",{"$f":"'Schedule V(a)'!F26","v":0}]
["Sch Va","Governance",null,"Director Work Experience - 16",{"$f":"'Schedule V(a)'!F27","v":0}]
["Sch Va","Governance",null,"Director Work Experience - 17",{"$f":"'Schedule V(a)'!F28","v":0}]
["Sch Va","Governance",null,"Director Work Experience - 18",{"$f":"'Schedule V(a)'!F29","v":0}]
["Sch Va","Governance",null,"Director Work Experience - 19",{"$f":"'Schedule V(a)'!F30","v":0}]
["Sch Va","Governance",null,"Director Work Experience - 20",{"$f":"'Schedule V(a)'!F31","v":0}]
["Sch Va","Governance",null,"Director Status on Board - 1",{"$f":"'Schedule V(a)'!H12","v":"Select"}]
["Sch Va","Governance",null,"Director Status on Board - 2",{"$f":"'Schedule V(a)'!H13","v":"Select"}]
["Sch Va","Governance",null,"Director Status on Board - 3",{"$f":"'Schedule V(a)'!H14","v":"Select"}]
["Sch Va","Governance",null,"Director Status on Board - 4",{"$f":"'Schedule V(a)'!H15","v":"Select"}]
["Sch Va","Governance",null,"Director Status on Board - 5",{"$f":"'Schedule V(a)'!H16","v":"Select"}]
["Sch Va","Governance",null,"Director Status on Board - 6",{"$f":"'Schedule V(a)'!H17","v":"Select"}]
["Sch Va","Governance",null,"Director Status on Board - 7",{"$f":"'Schedule V(a)'!H18","v":"Select"}]
["Sch Va","Governance",null,"Director Status on Board - 8",{"$f":"'Schedule V(a)'!H19","v":"Select"}]
["Sch Va","Governance",null,"Director Status on Board - 9",{"$f":"'Schedule V(a)'!H20","v":"Select"}]
["Sch Va","Governance",null,"Director Status on Board - 10",{"$f":"'Schedule V(a)'!H21","v":"Select"}]
["Sch Va","Governance",null,"Director Status on Board - 11",{"$f":"'Schedule V(a)'!H22","v":"Select"}]
["Sch Va","Governance",null,"Director Status on Board - 12",{"$f":"'Schedule V(a)'!H23","v":"Select"}]
["Sch Va","Governance",null,"Director Status on Board - 13",{"$f":"'Schedule V(a)'!H24","v":"Select"}]
["Sch Va","Governance",null,"Director Status on Board - 14",{"$f":"'Schedule V(a)'!H25","v":"Select"}]
["Sch Va","Governance",null,"Director Status on Board - 15",{"$f":"'Schedule V(a)'!H26","v":"Select"}]
["Sch Va","Governance",null,"Director Status on Board - 16",{"$f":"'Schedule V(a)'!H27","v":"Select"}]
["Sch Va","Governance",null,"Director Status on Board - 17",{"$f":"'Schedule V(a)'!H28","v":"Select"}]
["Sch Va","Governance",null,"Director Status on Board - 18",{"$f":"'Schedule V(a)'!H29","v":"Select"}]
["Sch Va","Governance",null,"Director Status on Board - 19",{"$f":"'Schedule V(a)'!H30","v":"Select"}]
["Sch Va","Governance",null,"Director Status on Board - 20",{"$f":"'Schedule V(a)'!H31","v":"Select"}]
["Sch Va","Governance",null,"# of Executives",{"$f":"'Schedule V(a)'!D33","v":0}]
["Sch Va","Governance",null,"Executive Name - 1",{"$f":"'Schedule V(a)'!C37","v":0}]
["Sch Va","Governance",null,"Executive Name - 2",{"$f":"'Schedule V(a)'!C38","v":0}]
["Sch Va","Governance",null,"Executive Name - 3",{"$f":"'Schedule V(a)'!C39","v":0}]
["Sch Va","Governance",null,"Executive Name - 4",{"$f":"'Schedule V(a)'!C40","v":0}]
["Sch Va","Governance",null,"Executive Name - 5",{"$f":"'Schedule V(a)'!C41","v":0}]
["Sch Va","Governance",null,"Executive Name - 6",{"$f":"'Schedule V(a)'!C42","v":0}]
["Sch Va","Governance",null,"Executive Name - 7",{"$f":"'Schedule V(a)'!C43","v":0}]
["Sch Va","Governance",null,"Executive Name - 8",{"$f":"'Schedule V(a)'!C44","v":0}]
["Sch Va","Governance",null,"Executive Name - 9",{"$f":"'Schedule V(a)'!C45","v":0}]
["Sch Va","Governance",null,"Executive Name - 10",{"$f":"'Schedule V(a)'!C46","v":0}]
["Sch Va","Governance",null,"Executive Name - 11",{"$f":"'Schedule V(a)'!C47","v":0}]
["Sch Va","Governance",null,"Executive Name - 12",{"$f":"'Schedule V(a)'!C48","v":0}]
["Sch Va","Governance",null,"Executive Name - 13",{"$f":"'Schedule V(a)'!C49","v":0}]
["Sch Va","Governance",null,"Executive Name - 14",{"$f":"'Schedule V(a)'!C50","v":0}]
["Sch Va","Governance",null,"Executive Name - 15",{"$f":"'Schedule V(a)'!C51","v":0}]
["Sch Va","Governance",null,"Executive Name - 16",{"$f":"'Schedule V(a)'!C52","v":0}]
["Sch Va","Governance",null,"Executive Name - 17",{"$f":"'Schedule V(a)'!C53","v":0}]
["Sch Va","Governance",null,"Executive Name - 18",{"$f":"'Schedule V(a)'!C54","v":0}]
["Sch Va","Governance",null,"Executive Name - 19",{"$f":"'Schedule V(a)'!C55","v":0}]
["Sch Va","Governance",null,"Executive Name - 20",{"$f":"'Schedule V(a)'!C56","v":0}]
["Sch Va","Governance",null,"Executive Position - 1",{"$f":"'Schedule V(a)'!D37","v":0}]
["Sch Va","Governance",null,"Executive Position - 2",{"$f":"'Schedule V(a)'!D38","v":0}]
["Sch Va","Governance",null,"Executive Position - 3",{"$f":"'Schedule V(a)'!D39","v":0}]
["Sch Va","Governance",null,"Executive Position - 4",{"$f":"'Schedule V(a)'!D40","v":0}]
["Sch Va","Governance",null,"Executive Position - 5",{"$f":"'Schedule V(a)'!D41","v":0}]
["Sch Va","Governance",null,"Executive Position - 6",{"$f":"'Schedule V(a)'!D42","v":0}]
["Sch Va","Governance",null,"Executive Position - 7",{"$f":"'Schedule V(a)'!D43","v":0}]
["Sch Va","Governance",null,"Executive Position - 8",{"$f":"'Schedule V(a)'!D44","v":0}]
["Sch Va","Governance",null,"Executive Position - 9",{"$f":"'Schedule V(a)'!D45","v":0}]
["Sch Va","Governance",null,"Executive Position - 10",{"$f":"'Schedule V(a)'!D46","v":0}]
["Sch Va","Governance",null,"Executive Position - 11",{"$f":"'Schedule V(a)'!D47","v":0}]
["Sch Va","Governance",null,"Executive Position - 12",{"$f":"'Schedule V(a)'!D48","v":0}]
["Sch Va","Governance",null,"Executive Position - 13",{"$f":"'Schedule V(a)'!D49","v":0}]
["Sch Va","Governance",null,"Executive Position - 14",{"$f":"'Schedule V(a)'!D50","v":0}]
["Sch Va","Governance",null,"Executive Position - 15",{"$f":"'Schedule V(a)'!D51","v":0}]
["Sch Va","Governance",null,"Executive Position - 16",{"$f":"'Schedule V(a)'!D52","v":0}]
["Sch Va","Governance",null,"Executive Position - 17",{"$f":"'Schedule V(a)'!D53","v":0}]
["Sch Va","Governance",null,"Executive Position - 18",{"$f":"'Schedule V(a)'!D54","v":0}]
["Sch Va","Governance",null,"Executive Position - 19",{"$f":"'Schedule V(a)'!D55","v":0}]
["Sch Va","Governance",null,"Executive Position - 20",{"$f":"'Schedule V(a)'!D56","v":0}]
["Sch Va","Governance",null,"Executive Residence - 1",{"$f":"'Schedule V(a)'!E37","v":0}]
["Sch Va","Governance",null,"Executive Residence - 2",{"$f":"'Schedule V(a)'!E38","v":0}]
["Sch Va","Governance",null,"Executive Residence - 3",{"$f":"'Schedule V(a)'!E39","v":0}]
["Sch Va","Governance",null,"Executive Residence - 4",{"$f":"'Schedule V(a)'!E40","v":0}]
["Sch Va","Governance",null,"Executive Residence - 5",{"$f":"'Schedule V(a)'!E41","v":0}]
["Sch Va","Governance",null,"Executive Residence - 6",{"$f":"'Schedule V(a)'!E42","v":0}]
["Sch Va","Governance",null,"Executive Residence - 7",{"$f":"'Schedule V(a)'!E43","v":0}]
["Sch Va","Governance",null,"Executive Residence - 8",{"$f":"'Schedule V(a)'!E44","v":0}]
["Sch Va","Governance",null,"Executive Residence - 9",{"$f":"'Schedule V(a)'!E45","v":0}]
["Sch Va","Governance",null,"Executive Residence - 10",{"$f":"'Schedule V(a)'!E46","v":0}]
["Sch Va","Governance",null,"Executive Residence - 11",{"$f":"'Schedule V(a)'!E47","v":0}]
["Sch Va","Governance",null,"Executive Residence - 12",{"$f":"'Schedule V(a)'!E48","v":0}]
["Sch Va","Governance",null,"Executive Residence - 13",{"$f":"'Schedule V(a)'!E49","v":0}]
["Sch Va","Governance",null,"Executive Residence - 14",{"$f":"'Schedule V(a)'!E50","v":0}]
["Sch Va","Governance",null,"Executive Residence - 15",{"$f":"'Schedule V(a)'!E51","v":0}]
["Sch Va","Governance",null,"Executive Residence - 16",{"$f":"'Schedule V(a)'!E52","v":0}]
["Sch Va","Governance",null,"Executive Residence - 17",{"$f":"'Schedule V(a)'!E53","v":0}]
["Sch Va","Governance",null,"Executive Residence - 18",{"$f":"'Schedule V(a)'!E54","v":0}]
["Sch Va","Governance",null,"Executive Residence - 19",{"$f":"'Schedule V(a)'!E55","v":0}]
["Sch Va","Governance",null,"Executive Residence - 20",{"$f":"'Schedule V(a)'!E56","v":0}]
["Sch Va","Governance",null,"Executive Work Experience - 1",{"$f":"'Schedule V(a)'!F37","v":0}]
["Sch Va","Governance",null,"Executive Work Experience - 2",{"$f":"'Schedule V(a)'!F38","v":0}]
["Sch Va","Governance",null,"Executive Work Experience - 3",{"$f":"'Schedule V(a)'!F39","v":0}]
["Sch Va","Governance",null,"Executive Work Experience - 4",{"$f":"'Schedule V(a)'!F40","v":0}]
["Sch Va","Governance",null,"Executive Work Experience - 5",{"$f":"'Schedule V(a)'!F41","v":0}]
["Sch Va","Governance",null,"Executive Work Experience - 6",{"$f":"'Schedule V(a)'!F42","v":0}]
["Sch Va","Governance",null,"Executive Work Experience - 7",{"$f":"'Schedule V(a)'!F43","v":0}]
["Sch Va","Governance",null,"Executive Work Experience - 8",{"$f":"'Schedule V(a)'!F44","v":0}]
["Sch Va","Governance",null,"Executive Work Experience - 9",{"$f":"'Schedule V(a)'!F45","v":0}]
["Sch Va","Governance",null,"Executive Work Experience - 10",{"$f":"'Schedule V(a)'!F46","v":0}]
["Sch Va","Governance",null,"Executive Work Experience - 11",{"$f":"'Schedule V(a)'!F47","v":0}]
["Sch Va","Governance",null,"Executive Work Experience - 12",{"$f":"'Schedule V(a)'!F48","v":0}]
["Sch Va","Governance",null,"Executive Work Experience - 13",{"$f":"'Schedule V(a)'!F49","v":0}]
["Sch Va","Governance",null,"Executive Work Experience - 14",{"$f":"'Schedule V(a)'!F50","v":0}]
["Sch Va","Governance",null,"Executive Work Experience - 15",{"$f":"'Schedule V(a)'!F51","v":0}]
["Sch Va","Governance",null,"Executive Work Experience - 16",{"$f":"'Schedule V(a)'!F52","v":0}]
["Sch Va","Governance",null,"Executive Work Experience - 17",{"$f":"'Schedule V(a)'!F53","v":0}]
["Sch Va","Governance",null,"Executive Work Experience - 18",{"$f":"'Schedule V(a)'!F54","v":0}]
["Sch Va","Governance",null,"Executive Work Experience - 19",{"$f":"'Schedule V(a)'!F55","v":0}]
["Sch Va","Governance",null,"Executive Work Experience - 20",{"$f":"'Schedule V(a)'!F56","v":0}]
["Sch Va","Governance",null,"Executive Employee Arrangement - 1",{"$f":"'Schedule V(a)'!H37","v":"Select"}]
["Sch Va","Governance",null,"Executive Employee Arrangement - 2",{"$f":"'Schedule V(a)'!H38","v":"Select"}]
["Sch Va","Governance",null,"Executive Employee Arrangement - 3",{"$f":"'Schedule V(a)'!H39","v":"Select"}]
["Sch Va","Governance",null,"Executive Employee Arrangement - 4",{"$f":"'Schedule V(a)'!H40","v":"Select"}]
["Sch Va","Governance",null,"Executive Employee Arrangement - 5",{"$f":"'Schedule V(a)'!H41","v":"Select"}]
["Sch Va","Governance",null,"Executive Employee Arrangement - 6",{"$f":"'Schedule V(a)'!H42","v":"Select"}]
["Sch Va","Governance",null,"Executive Employee Arrangement - 7",{"$f":"'Schedule V(a)'!H43","v":"Select"}]
["Sch Va","Governance",null,"Executive Employee Arrangement - 8",{"$f":"'Schedule V(a)'!H44","v":"Select"}]
["Sch Va","Governance",null,"Executive Employee Arrangement - 9",{"$f":"'Schedule V(a)'!H45","v":"Select"}]
["Sch Va","Governance",null,"Executive Employee Arrangement - 10",{"$f":"'Schedule V(a)'!H46","v":"Select"}]
["Sch Va","Governance",null,"Executive Employee Arrangement - 11",{"$f":"'Schedule V(a)'!H47","v":"Select"}]
["Sch Va","Governance",null,"Executive Employee Arrangement - 12",{"$f":"'Schedule V(a)'!H48","v":"Select"}]
["Sch Va","Governance",null,"Executive Employee Arrangement - 13",{"$f":"'Schedule V(a)'!H49","v":"Select"}]
["Sch Va","Governance",null,"Executive Employee Arrangement - 14",{"$f":"'Schedule V(a)'!H50","v":"Select"}]
["Sch Va","Governance",null,"Executive Employee Arrangement - 15",{"$f":"'Schedule V(a)'!H51","v":"Select"}]
["Sch Va","Governance",null,"Executive Employee Arrangement - 16",{"$f":"'Schedule V(a)'!H52","v":"Select"}]
["Sch Va","Governance",null,"Executive Employee Arrangement - 17",{"$f":"'Schedule V(a)'!H53","v":"Select"}]
["Sch Va","Governance",null,"Executive Employee Arrangement - 18",{"$f":"'Schedule V(a)'!H54","v":"Select"}]
["Sch Va","Governance",null,"Executive Employee Arrangement - 19",{"$f":"'Schedule V(a)'!H55","v":"Select"}]
["Sch Va","Governance",null,"Executive Employee Arrangement - 20",{"$f":"'Schedule V(a)'!H56","v":"Select"}]
["Sch Va","Governance",null,"Executive Responsibilities - 1",{"$f":"'Schedule V(a)'!I37","v":"Select"}]
["Sch Va","Governance",null,"Executive Responsibilities - 2",{"$f":"'Schedule V(a)'!I38","v":"Select"}]
["Sch Va","Governance",null,"Executive Responsibilities - 3",{"$f":"'Schedule V(a)'!I39","v":"Select"}]
["Sch Va","Governance",null,"Executive Responsibilities - 4",{"$f":"'Schedule V(a)'!I40","v":"Select"}]
["Sch Va","Governance",null,"Executive Responsibilities - 5",{"$f":"'Schedule V(a)'!I41","v":"Select"}]
["Sch Va","Governance",null,"Executive Responsibilities - 6",{"$f":"'Schedule V(a)'!I42","v":"Select"}]
["Sch Va","Governance",null,"Executive Responsibilities - 7",{"$f":"'Schedule V(a)'!I43","v":"Select"}]
["Sch Va","Governance",null,"Executive Responsibilities - 8",{"$f":"'Schedule V(a)'!I44","v":"Select"}]
["Sch Va","Governance",null,"Executive Responsibilities - 9",{"$f":"'Schedule V(a)'!I45","v":"Select"}]
["Sch Va","Governance",null,"Executive Responsibilities - 10",{"$f":"'Schedule V(a)'!I46","v":"Select"}]
["Sch Va","Governance",null,"Executive Responsibilities - 11",{"$f":"'Schedule V(a)'!I47","v":"Select"}]
["Sch Va","Governance",null,"Executive Responsibilities - 12",{"$f":"'Schedule V(a)'!I48","v":"Select"}]
["Sch Va","Governance",null,"Executive Responsibilities - 13",{"$f":"'Schedule V(a)'!I49","v":"Select"}]
["Sch Va","Governance",null,"Executive Responsibilities - 14",{"$f":"'Schedule V(a)'!I50","v":"Select"}]
["Sch Va","Governance",null,"Executive Responsibilities - 15",{"$f":"'Schedule V(a)'!I51","v":"Select"}]
["Sch Va","Governance",null,"Executive Responsibilities - 16",{"$f":"'Schedule V(a)'!I52","v":"Select"}]
["Sch Va","Governance",null,"Executive Responsibilities - 17",{"$f":"'Schedule V(a)'!I53","v":"Select"}]
["Sch Va","Governance",null,"Executive Responsibilities - 18",{"$f":"'Schedule V(a)'!I54","v":"Select"}]
["Sch Va","Governance",null,"Executive Responsibilities - 19",{"$f":"'Schedule V(a)'!I55","v":"Select"}]
["Sch Va","Governance",null,"Executive Responsibilities - 20",{"$f":"'Schedule V(a)'!I56","v":"Select"}]
["Sch Va","Governance",null,"Tax Residency outside of Bermuda",{"$f":"'Schedule V(a)'!H61","v":"Select Yes/No"}]
["Sch Va","Governance",null,"If Yes, Tax Residency Jurisdiction",{"$f":"'Schedule V(a)'!I61","v":"Select"}]
["Sch Va","Governance",null,"BOD Activity - Strategic Direction",{"$f":"'Schedule V(a)'!E65","v":"Select Yes/No"}]
["Sch Va","Governance",null,"BOD Activity - Risk Appetite",{"$f":"'Schedule V(a)'!E66","v":"Select Yes/No"}]
["Sch Va","Governance",null,"BOD Activity - LOB Decisions",{"$f":"'Schedule V(a)'!E67","v":"Select Yes/No"}]
["Sch Va","Governance",null,"BOD Activity - Solvency Req.",{"$f":"'Schedule V(a)'!E68","v":"Select Yes/No"}]
["Sch Va","Governance",null,"BOD Location - Strategic Direction",{"$f":"IF('Schedule V(a)'!F65=\"\",\"Bermuda\",'Schedule V(a)'!F65)","v":0}]
["Sch Va","Governance",null,"BOD Location - Risk Appetite",{"$f":"IF('Schedule V(a)'!F66=\"\",\"Bermuda\",'Schedule V(a)'!F66)","v":0}]
["Sch Va","Governance",null,"BOD Location - LOB Decisions",{"$f":"IF('Schedule V(a)'!F67=\"\",\"Bermuda\",'Schedule V(a)'!F67)","v":0}]
["Sch Va","Governance",null,"BOD Location - Solvency Req.",{"$f":"IF('Schedule V(a)'!F68=\"\",\"Bermuda\",'Schedule V(a)'!F68)","v":0}]
["Sch Va","Governance",null,"U/W - Operation in Bermuda",{"$f":"'Schedule V(a)'!E72","v":"Select Yes/No"}]
["Sch Va","Governance",null,"Risk Mgmt. - Operation in Bermuda",{"$f":"'Schedule V(a)'!E73","v":"Select Yes/No"}]
["Sch Va","Governance",null,"Inv. Strategy - Operation in Bermuda",{"$f":"'Schedule V(a)'!E74","v":"Select Yes/No"}]
["Sch Va","Governance",null,"Actuarial - Operation in Bermuda",{"$f":"'Schedule V(a)'!E75","v":"Select Yes/No"}]
["Sch Va","Governance",null,"Compliance - Operation in Bermuda",{"$f":"'Schedule V(a)'!E76","v":"Select Yes/No"}]
["Sch Va","Governance",null,"Int. Audit - Operation in Bermuda",{"$f":"'Schedule V(a)'!E77","v":"Select Yes/No"}]
["Sch Va","Governance",null,"U/W - Operation Location",{"$f":"IF('Schedule V(a)'!F72=\"\",\"Bermuda\",'Schedule V(a)'!F72)","v":0}]
["Sch Va","Governance",null,"Risk Mgmt. - Operation Location",{"$f":"IF('Schedule V(a)'!F73=\"\",\"Bermuda\",'Schedule V(a)'!F73)","v":0}]
["Sch Va","Governance",null,"Inv. Strategy - Operation Location",{"$f":"IF('Schedule V(a)'!F74=\"\",\"Bermuda\",'Schedule V(a)'!F74)","v":0}]
["Sch Va","Governance",null,"Actuarial - Operation Location",{"$f":"IF('Schedule V(a)'!F75=\"\",\"Bermuda\",'Schedule V(a)'!F75)","v":0}]
["Sch Va","Governance",null,"Compliance - Operation Location",{"$f":"IF('Schedule V(a)'!F76=\"\",\"Bermuda\",'Schedule V(a)'!F76)","v":0}]
["Sch Va","Governance",null,"Int. Audit - Operation Location",{"$f":"IF('Schedule V(a)'!F77=\"\",\"Bermuda\",'Schedule V(a)'!F77)","v":0}]
["Sch Va","Governance",null,"U/W - Outsourced",{"$f":"'Schedule V(a)'!H72","v":"Select Yes/No"}]
["Sch Va","Governance",null,"Risk Mgmt. - Outsourced",{"$f":"'Schedule V(a)'!H73","v":"Select Yes/No"}]
["Sch Va","Governance",null,"Inv. Strategy - Outsourced",{"$f":"'Schedule V(a)'!H74","v":"Select Yes/No"}]
["Sch Va","Governance",null,"Actuarial - Outsourced",{"$f":"'Schedule V(a)'!H75","v":"Select Yes/No"}]
["Sch Va","Governance",null,"Compliance - Outsourced",{"$f":"'Schedule V(a)'!H76","v":"Select Yes/No"}]
["Sch Va","Governance",null,"Int. Audit - Outsourced",{"$f":"'Schedule V(a)'!H77","v":"Select Yes/No"}]
["Sch Va","Governance",null,"U/W - Provider Type",{"$f":"'Schedule V(a)'!I72","v":"Select"}]
["Sch Va","Governance",null,"Risk Mgmt. - Provider Type",{"$f":"'Schedule V(a)'!I73","v":"Select"}]
["Sch Va","Governance",null,"Inv. Strategy - Provider Type",{"$f":"'Schedule V(a)'!I74","v":"Select"}]
["Sch Va","Governance",null,"Actuarial - Provider Type",{"$f":"'Schedule V(a)'!I75","v":"Select"}]
["Sch Va","Governance",null,"Compliance - Provider Type",{"$f":"'Schedule V(a)'!I76","v":"Select"}]
["Sch Va","Governance",null,"Int. Audit - Provider Type",{"$f":"'Schedule V(a)'!I77","v":"Select"}]
["Sch Va","Governance",null,"U/W - Name of Provider",{"$f":"'Schedule V(a)'!J72","v":0}]
["Sch Va","Governance",null,"Risk Mgmt. - Name of Provider",{"$f":"'Schedule V(a)'!J73","v":0}]
["Sch Va","Governance",null,"Inv. Strategy - Name of Provider",{"$f":"'Schedule V(a)'!J74","v":0}]
["Sch Va","Governance",null,"Actuarial - Name of Provider",{"$f":"'Schedule V(a)'!J75","v":0}]
["Sch Va","Governance",null,"Compliance - Name of Provider",{"$f":"'Schedule V(a)'!J76","v":0}]
["Sch Va","Governance",null,"Int. Audit - Name of Provider",{"$f":"'Schedule V(a)'!J77","v":0}]
["Sch Va","Governance",null,"Services Outsourced - Principal Rep.",{"$f":"'Schedule V(a)'!F81","v":"Select Yes/No"}]
["Sch Va","Governance",null,"Services Outsourced - Director/Board Member",{"$f":"'Schedule V(a)'!F82","v":"Select Yes/No"}]
["Sch Va","Governance",null,"Services Outsourced - Senior Officer",{"$f":"'Schedule V(a)'!F83","v":"Select Yes/No"}]
["Sch Va","Governance",null,"Services Outsourced - Accounting",{"$f":"'Schedule V(a)'!F84","v":"Select Yes/No"}]
["Sch Va","Governance",null,"Services Outsourced - Prep. SFR/Prudential",{"$f":"'Schedule V(a)'!F85","v":"Select Yes/No"}]
["Sch Va","Governance",null,"Services Outsourced - Underwriting",{"$f":"'Schedule V(a)'!F86","v":"Select Yes/No"}]
["Sch Va","Governance",null,"Services Outsourced - Claims Handling",{"$f":"'Schedule V(a)'!F87","v":"Select Yes/No"}]
["Sch Va","Governance",null,"Services Outsourced - Risk Mgmt.",{"$f":"'Schedule V(a)'!F88","v":"Select Yes/No"}]
["Sch Va","Governance",null,"Services Outsourced - Investment",{"$f":"'Schedule V(a)'!F89","v":"Select Yes/No"}]
["Sch Va","Governance",null,"Services Outsourced - Treasury",{"$f":"'Schedule V(a)'!F90","v":"Select Yes/No"}]
["Sch Va","Governance",null,"Services Outsourced - Actuarial",{"$f":"'Schedule V(a)'!F91","v":"Select Yes/No"}]
["Sch Va","Governance",null,"Services Outsourced - Internal Audit",{"$f":"'Schedule V(a)'!F92","v":"Select Yes/No"}]
["Sch Va","Governance",null,"Services Outsourced - Compliance",{"$f":"'Schedule V(a)'!F93","v":"Select Yes/No"}]
["Sch Va","Governance",null,"Services Outsourced - AML/ATF/Sanctions",{"$f":"'Schedule V(a)'!F94","v":"Select Yes/No"}]
["Sch Va","Governance",null,"Services Outsourced - Money Laundering Officer",{"$f":"'Schedule V(a)'!F95","v":"Select Yes/No"}]
["Sch Va","Governance",null,"Services Outsourced - Other",{"$f":"'Schedule V(a)'!D96","v":0}]
["Sch Va","Governance",null,"Services in BDA - Principal Rep.",{"$f":"'Schedule V(a)'!G81","v":"Select Yes/No"}]
["Sch Va","Governance",null,"Services in BDA - Director/Board Member",{"$f":"'Schedule V(a)'!G82","v":"Select Yes/No"}]
["Sch Va","Governance",null,"Services in BDA - Senior Officer",{"$f":"'Schedule V(a)'!G83","v":"Select Yes/No"}]
["Sch Va","Governance",null,"Services in BDA - Accounting",{"$f":"'Schedule V(a)'!G84","v":"Select Yes/No"}]
["Sch Va","Governance",null,"Services in BDA - Prep. SFR/Prudential",{"$f":"'Schedule V(a)'!G85","v":"Select Yes/No"}]
["Sch Va","Governance",null,"Services in BDA - Underwriting",{"$f":"'Schedule V(a)'!G86","v":"Select Yes/No"}]
["Sch Va","Governance",null,"Services in BDA - Claims Handling",{"$f":"'Schedule V(a)'!G87","v":"Select Yes/No"}]
["Sch Va","Governance",null,"Services in BDA - Risk Mgmt.",{"$f":"'Schedule V(a)'!G88","v":"Select Yes/No"}]
["Sch Va","Governance",null,"Services in BDA - Investment",{"$f":"'Schedule V(a)'!G89","v":"Select Yes/No"}]
["Sch Va","Governance",null,"Services in BDA - Treasury",{"$f":"'Schedule V(a)'!G90","v":"Select Yes/No"}]
["Sch Va","Governance",null,"Services in BDA - Actuarial",{"$f":"'Schedule V(a)'!G91","v":"Select Yes/No"}]
["Sch Va","Governance",null,"Services in BDA - Internal Audit",{"$f":"'Schedule V(a)'!G92","v":"Select Yes/No"}]
["Sch Va","Governance",null,"Services in BDA - Compliance",{"$f":"'Schedule V(a)'!G93","v":"Select Yes/No"}]
["Sch Va","Governance",null,"Services in BDA - AML/ATF/Sanctions",{"$f":"'Schedule V(a)'!G94","v":"Select Yes/No"}]
["Sch Va","Governance",null,"Services in BDA - Money Laundering Officer",{"$f":"'Schedule V(a)'!G95","v":"Select Yes/No"}]
["Sch Va","Governance",null,"Employees in BDA",{"$f":"'Schedule V(a)'!G98","v":0}]
["Sch Va","Governance",null,"Number of Employees in BDA - Senior Executive",{"$f":"'Schedule V(a)'!G101","v":0}]
["Sch Va","Governance",null,"Number of Employees in BDA - Senior Manager",{"$f":"'Schedule V(a)'!G102","v":0}]
["Sch Va","Governance",null,"Number of Employees in BDA - Technical Officer",{"$f":"'Schedule V(a)'!G103","v":0}]
["Sch Va","Governance",null,"Number of Employees in BDA - Administrative",{"$f":"'Schedule V(a)'!G104","v":0}]
["Sch Va","Governance",null,"7a Group BOD-Strat. Decision- Location",null,null,null,null,{"$f":"'Schedule V(a)'!G110","v":0}]
["Sch Va","Governance",null,"7b Group BOD-Risk Appet.- Location",null,null,null,null,{"$f":"'Schedule V(a)'!G111","v":0}]
["Sch Va","Governance",null,"7c Group BOD-Corp. Struct.- Location",null,null,null,null,{"$f":"'Schedule V(a)'!G112","v":0}]
["Sch Va","Governance",null,"7d Group BOD-LOB, Prod. & Mkt.- Location",null,null,null,null,{"$f":"'Schedule V(a)'!G113","v":0}]
["Sch Va","Governance",null,"7e Group BOD-Assess Solvency- Location",null,null,null,null,{"$f":"'Schedule V(a)'!G114","v":0}]
["Sch Va","Governance",null,"8. Group BOD - Reside",null,null,null,null,{"$f":"'Schedule V(a)'!G117","v":0}]
["Sch Va","Governance",null,"9. Group Control Function - Reside",null,null,null,null,{"$f":"'Schedule V(a)'!G120","v":0}]
["Sch Va","Governance",null,"10a Group's Total Assets",null,null,null,null,{"$f":"'Schedule V(a)'!G123","v":0}]
["Sch Va","Governance",null,"10b Group's Total Reserves",null,null,null,null,{"$f":"'Schedule V(a)'!G124","v":0}]
["Sch Va","Governance",null,"10c Group's Total Capital & Surplus",null,null,null,null,{"$f":"'Schedule V(a)'!G125","v":0}]
["Sch Va","Governance",null,"Name of Insurer - 1",null,null,null,null,{"$f":"'Schedule V(a)'!C130","v":0}]
["Sch Va","Governance",null,"Name of Insurer - 2",null,null,null,null,{"$f":"'Schedule V(a)'!C131","v":0}]
["Sch Va","Governance",null,"Name of Insurer - 3",null,null,null,null,{"$f":"'Schedule V(a)'!C132","v":0}]
["Sch Va","Governance",null,"Name of Insurer - 4",null,null,null,null,{"$f":"'Schedule V(a)'!C133","v":0}]
["Sch Va","Governance",null,"Name of Insurer - 5",null,null,null,null,{"$f":"'Schedule V(a)'!C134","v":0}]
["Sch Va","Governance",null,"Name of Insurer - 6",null,null,null,null,{"$f":"'Schedule V(a)'!C135","v":0}]
["Sch Va","Governance",null,"Name of Insurer - 7",null,null,null,null,{"$f":"'Schedule V(a)'!C136","v":0}]
["Sch Va","Governance",null,"Name of Insurer - 8",null,null,null,null,{"$f":"'Schedule V(a)'!C137","v":0}]
["Sch Va","Governance",null,"Name of Insurer - 9",null,null,null,null,{"$f":"'Schedule V(a)'!C138","v":0}]
["Sch Va","Governance",null,"Insurer Location - 1",null,null,null,null,{"$f":"'Schedule V(a)'!D130","v":0}]
["Sch Va","Governance",null,"Insurer Location - 2",null,null,null,null,{"$f":"'Schedule V(a)'!D131","v":0}]
["Sch Va","Governance",null,"Insurer Location - 3",null,null,null,null,{"$f":"'Schedule V(a)'!D132","v":0}]
["Sch Va","Governance",null,"Insurer Location - 4",null,null,null,null,{"$f":"'Schedule V(a)'!D133","v":0}]
["Sch Va","Governance",null,"Insurer Location - 5",null,null,null,null,{"$f":"'Schedule V(a)'!D134","v":0}]
["Sch Va","Governance",null,"Insurer Location - 6",null,null,null,null,{"$f":"'Schedule V(a)'!D135","v":0}]
["Sch Va","Governance",null,"Insurer Location - 7",null,null,null,null,{"$f":"'Schedule V(a)'!D136","v":0}]
["Sch Va","Governance",null,"Insurer Location - 8",null,null,null,null,{"$f":"'Schedule V(a)'!D137","v":0}]
["Sch Va","Governance",null,"Insurer Location - 9",null,null,null,null,{"$f":"'Schedule V(a)'!D138","v":0}]
["Sch Va","Governance",null,"Insurer Asset - 1",null,null,null,null,{"$f":"'Schedule V(a)'!E130","v":0}]
["Sch Va","Governance",null,"Insurer Asset - 2",null,null,null,null,{"$f":"'Schedule V(a)'!E131","v":0}]
["Sch Va","Governance",null,"Insurer Asset - 3",null,null,null,null,{"$f":"'Schedule V(a)'!E132","v":0}]
["Sch Va","Governance",null,"Insurer Asset - 4",null,null,null,null,{"$f":"'Schedule V(a)'!E133","v":0}]
["Sch Va","Governance",null,"Insurer Asset - 5",null,null,null,null,{"$f":"'Schedule V(a)'!E134","v":0}]
["Sch Va","Governance",null,"Insurer Asset - 6",null,null,null,null,{"$f":"'Schedule V(a)'!E135","v":0}]
["Sch Va","Governance",null,"Insurer Asset - 7",null,null,null,null,{"$f":"'Schedule V(a)'!E136","v":0}]
["Sch Va","Governance",null,"Insurer Asset - 8",null,null,null,null,{"$f":"'Schedule V(a)'!E137","v":0}]
["Sch Va","Governance",null,"Insurer Asset - 9",null,null,null,null,{"$f":"'Schedule V(a)'!E138","v":0}]
["Sch Va","Governance",null,"Insurer Reserve - 1",null,null,null,null,{"$f":"'Schedule V(a)'!F130","v":0}]
["Sch Va","Governance",null,"Insurer Reserve - 2",null,null,null,null,{"$f":"'Schedule V(a)'!F131","v":0}]
["Sch Va","Governance",null,"Insurer Reserve - 3",null,null,null,null,{"$f":"'Schedule V(a)'!F132","v":0}]
["Sch Va","Governance",null,"Insurer Reserve - 4",null,null,null,null,{"$f":"'Schedule V(a)'!F133","v":0}]
["Sch Va","Governance",null,"Insurer Reserve - 5",null,null,null,null,{"$f":"'Schedule V(a)'!F134","v":0}]
["Sch Va","Governance",null,"Insurer Reserve - 6",null,null,null,null,{"$f":"'Schedule V(a)'!F135","v":0}]
["Sch Va","Governance",null,"Insurer Reserve - 7",null,null,null,null,{"$f":"'Schedule V(a)'!F136","v":0}]
["Sch Va","Governance",null,"Insurer Reserve - 8",null,null,null,null,{"$f":"'Schedule V(a)'!F137","v":0}]
["Sch Va","Governance",null,"Insurer Reserve - 9",null,null,null,null,{"$f":"'Schedule V(a)'!F138","v":0}]
["Sch Va","Governance",null,"Insurer Capital & Surplus - 1",null,null,null,null,{"$f":"'Schedule V(a)'!G130","v":0}]
["Sch Va","Governance",null,"Insurer Capital & Surplus - 2",null,null,null,null,{"$f":"'Schedule V(a)'!G131","v":0}]
["Sch Va","Governance",null,"Insurer Capital & Surplus - 3",null,null,null,null,{"$f":"'Schedule V(a)'!G132","v":0}]
["Sch Va","Governance",null,"Insurer Capital & Surplus - 4",null,null,null,null,{"$f":"'Schedule V(a)'!G133","v":0}]
["Sch Va","Governance",null,"Insurer Capital & Surplus - 5",null,null,null,null,{"$f":"'Schedule V(a)'!G134","v":0}]
["Sch Va","Governance",null,"Insurer Capital & Surplus - 6",null,null,null,null,{"$f":"'Schedule V(a)'!G135","v":0}]
["Sch Va","Governance",null,"Insurer Capital & Surplus - 7",null,null,null,null,{"$f":"'Schedule V(a)'!G136","v":0}]
["Sch Va","Governance",null,"Insurer Capital & Surplus - 8",null,null,null,null,{"$f":"'Schedule V(a)'!G137","v":0}]
["Sch Va","Governance",null,"Insurer Capital & Surplus - 9",null,null,null,null,{"$f":"'Schedule V(a)'!G138","v":0}]
["Sch Va","Governance",null,"12 Subsequent Events",{"$f":"'Schedule V(a)'!C142","v":0}]
[]
["Sch Vc","Group Structure",null,"# of Largest Counterparty Exposure",{"$f":"'Schedule V(c)'!E9","v":0}]
["Sch Vc","Group Structure",null,"Counterparty Name - 1",{"$f":"'Schedule V(c)'!C13","v":0}]
["Sch Vc","Group Structure",null,"Counterparty Name - 2",{"$f":"'Schedule V(c)'!C14","v":0}]
["Sch Vc","Group Structure",null,"Counterparty Name - 3",{"$f":"'Schedule V(c)'!C15","v":0}]
["Sch Vc","Group Structure",null,"Counterparty Name - 4",{"$f":"'Schedule V(c)'!C16","v":0}]
["Sch Vc","Group Structure",null,"Counterparty Name - 5",{"$f":"'Schedule V(c)'!C17","v":0}]
["Sch Vc","Group Structure",null,"Counterparty Name - 6",{"$f":"'Schedule V(c)'!C18","v":0}]
["Sch Vc","Group Structure",null,"Counterparty Name - 7",{"$f":"'Schedule V(c)'!C19","v":0}]
["Sch Vc","Group Structure",null,"Counterparty Name - 8",{"$f":"'Schedule V(c)'!C20","v":0}]
["Sch Vc","Group Structure",null,"Counterparty Name - 9",{"$f":"'Schedule V(c)'!C21","v":0}]
["Sch Vc","Group Structure",null,"Counterparty Name - 10",{"$f":"'Schedule V(c)'!C22","v":0}]
["Sch Vc","Group Structure",null,"Counterparty Name - 11",{"$f":"'Schedule V(c)'!C23","v":0}]
["Sch Vc","Group Structure",null,"Counterparty Name - 12",{"$f":"'Schedule V(c)'!C24","v":0}]
["Sch Vc","Group Structure",null,"Counterparty Name - 13",{"$f":"'Schedule V(c)'!C25","v":0}]
["Sch Vc","Group Structure",null,"Counterparty Name - 14",{"$f":"'Schedule V(c)'!C26","v":0}]
["Sch Vc","Group Structure",null,"Counterparty Name - 15",{"$f":"'Schedule V(c)'!C27","v":0}]
["Sch Vc","Group Structure",null,"Counterparty Name - 16",{"$f":"'Schedule V(c)'!C28","v":0}]
["Sch Vc","Group Structure",null,"Counterparty Name - 17",{"$f":"'Schedule V(c)'!C29","v":0}]
["Sch Vc","Group Structure",null,"Counterparty Name - 18",{"$f":"'Schedule V(c)'!C30","v":0}]
["Sch Vc","Group Structure",null,"Counterparty Name - 19",{"$f":"'Schedule V(c)'!C31","v":0}]
["Sch Vc","Group Structure",null,"Counterparty Name - 20",{"$f":"'Schedule V(c)'!C32","v":0}]
["Sch Vc","Group Structure",null,"Counterparty Name - 21",{"$f":"'Schedule V(c)'!C33","v":0}]
["Sch Vc","Group Structure",null,"Counterparty Name - 22",{"$f":"'Schedule V(c)'!C34","v":0}]
["Sch Vc","Group Structure",null,"Counterparty Name - 23",{"$f":"'Schedule V(c)'!C35","v":0}]
["Sch Vc","Group Structure",null,"Counterparty Name - 24",{"$f":"'Schedule V(c)'!C36","v":0}]
["Sch Vc","Group Structure",null,"Counterparty Name - 25",{"$f":"'Schedule V(c)'!C37","v":0}]
["Sch Vc","Group Structure",null,"Counterparty Location - 1",{"$f":"'Schedule V(c)'!G13","v":0}]
["Sch Vc","Group Structure",null,"Counterparty Location - 2",{"$f":"'Schedule V(c)'!G14","v":0}]
["Sch Vc","Group Structure",null,"Counterparty Location - 3",{"$f":"'Schedule V(c)'!G15","v":0}]
["Sch Vc","Group Structure",null,"Counterparty Location - 4",{"$f":"'Schedule V(c)'!G16","v":0}]
["Sch Vc","Group Structure",null,"Counterparty Location - 5",{"$f":"'Schedule V(c)'!G17","v":0}]
["Sch Vc","Group Structure",null,"Counterparty Location - 6",{"$f":"'Schedule V(c)'!G18","v":0}]
["Sch Vc","Group Structure",null,"Counterparty Location - 7",{"$f":"'Schedule V(c)'!G19","v":0}]
["Sch Vc","Group Structure",null,"Counterparty Location - 8",{"$f":"'Schedule V(c)'!G20","v":0}]
["Sch Vc","Group Structure",null,"Counterparty Location - 9",{"$f":"'Schedule V(c)'!G21","v":0}]
["Sch Vc","Group Structure",null,"Counterparty Location - 10",{"$f":"'Schedule V(c)'!G22","v":0}]
["Sch Vc","Group Structure",null,"Counterparty Location - 11",{"$f":"'Schedule V(c)'!G23","v":0}]
["Sch Vc","Group Structure",null,"Counterparty Location - 12",{"$f":"'Schedule V(c)'!G24","v":0}]
["Sch Vc","Group Structure",null,"Counterparty Location - 13",{"$f":"'Schedule V(c)'!G25","v":0}]
["Sch Vc","Group Structure",null,"Counterparty Location - 14",{"$f":"'Schedule V(c)'!G26","v":0}]
["Sch Vc","Group Structure",null,"Counterparty Location - 15",{"$f":"'Schedule V(c)'!G27","v":0}]
["Sch Vc","Group Structure",null,"Counterparty Location - 16",{"$f":"'Schedule V(c)'!G28","v":0}]
["Sch Vc","Group Structure",null,"Counterparty Location - 17",{"$f":"'Schedule V(c)'!G29","v":0}]
["Sch Vc","Group Structure",null,"Counterparty Location - 18",{"$f":"'Schedule V(c)'!G30","v":0}]
["Sch Vc","Group Structure",null,"Counterparty Location - 19",{"$f":"'Schedule V(c)'!G31","v":0}]
["Sch Vc","Group Structure",null,"Counterparty Location - 20",{"$f":"'Schedule V(c)'!G32","v":0}]
["Sch Vc","Group Structure",null,"Counterparty Location - 21",{"$f":"'Schedule V(c)'!G33","v":0}]
["Sch Vc","Group Structure",null,"Counterparty Location - 22",{"$f":"'Schedule V(c)'!G34","v":0}]
["Sch Vc","Group Structure",null,"Counterparty Location - 23",{"$f":"'Schedule V(c)'!G35","v":0}]
["Sch Vc","Group Structure",null,"Counterparty Location - 24",{"$f":"'Schedule V(c)'!G36","v":0}]
["Sch Vc","Group Structure",null,"Counterparty Location - 25",{"$f":"'Schedule V(c)'!G37","v":0}]
["Sch Vc","Group Structure",null,"Exposure Face Value - 1",{"$f":"'Schedule V(c)'!H13","v":0}]
["Sch Vc","Group Structure",null,"Exposure Face Value - 2",{"$f":"'Schedule V(c)'!H14","v":0}]
["Sch Vc","Group Structure",null,"Exposure Face Value - 3",{"$f":"'Schedule V(c)'!H15","v":0}]
["Sch Vc","Group Structure",null,"Exposure Face Value - 4",{"$f":"'Schedule V(c)'!H16","v":0}]
["Sch Vc","Group Structure",null,"Exposure Face Value - 5",{"$f":"'Schedule V(c)'!H17","v":0}]
["Sch Vc","Group Structure",null,"Exposure Face Value - 6",{"$f":"'Schedule V(c)'!H18","v":0}]
["Sch Vc","Group Structure",null,"Exposure Face Value - 7",{"$f":"'Schedule V(c)'!H19","v":0}]
["Sch Vc","Group Structure",null,"Exposure Face Value - 8",{"$f":"'Schedule V(c)'!H20","v":0}]
["Sch Vc","Group Structure",null,"Exposure Face Value - 9",{"$f":"'Schedule V(c)'!H21","v":0}]
["Sch Vc","Group Structure",null,"Exposure Face Value - 10",{"$f":"'Schedule V(c)'!H22","v":0}]
["Sch Vc","Group Structure",null,"Exposure Face Value - 11",{"$f":"'Schedule V(c)'!H23","v":0}]
["Sch Vc","Group Structure",null,"Exposure Face Value - 12",{"$f":"'Schedule V(c)'!H24","v":0}]
["Sch Vc","Group Structure",null,"Exposure Face Value - 13",{"$f":"'Schedule V(c)'!H25","v":0}]
["Sch Vc","Group Structure",null,"Exposure Face Value - 14",{"$f":"'Schedule V(c)'!H26","v":0}]
["Sch Vc","Group Structure",null,"Exposure Face Value - 15",{"$f":"'Schedule V(c)'!H27","v":0}]
["Sch Vc","Group Structure",null,"Exposure Face Value - 16",{"$f":"'Schedule V(c)'!H28","v":0}]
["Sch Vc","Group Structure",null,"Exposure Face Value - 17",{"$f":"'Schedule V(c)'!H29","v":0}]
["Sch Vc","Group Structure",null,"Exposure Face Value - 18",{"$f":"'Schedule V(c)'!H30","v":0}]
["Sch Vc","Group Structure",null,"Exposure Face Value - 19",{"$f":"'Schedule V(c)'!H31","v":0}]
["Sch Vc","Group Structure",null,"Exposure Face Value - 20",{"$f":"'Schedule V(c)'!H32","v":0}]
["Sch Vc","Group Structure",null,"Exposure Face Value - 21",{"$f":"'Schedule V(c)'!H33","v":0}]
["Sch Vc","Group Structure",null,"Exposure Face Value - 22",{"$f":"'Schedule V(c)'!H34","v":0}]
["Sch Vc","Group Structure",null,"Exposure Face Value - 23",{"$f":"'Schedule V(c)'!H35","v":0}]
["Sch Vc","Group Structure",null,"Exposure Face Value - 24",{"$f":"'Schedule V(c)'!H36","v":0}]
["Sch Vc","Group Structure",null,"Exposure Face Value - 25",{"$f":"'Schedule V(c)'!H37","v":0}]
["Sch Vc","Group Structure",null,"Exposure Market Value - 1",{"$f":"'Schedule V(c)'!I13","v":0}]
["Sch Vc","Group Structure",null,"Exposure Market Value - 2",{"$f":"'Schedule V(c)'!I14","v":0}]
["Sch Vc","Group Structure",null,"Exposure Market Value - 3",{"$f":"'Schedule V(c)'!I15","v":0}]
["Sch Vc","Group Structure",null,"Exposure Market Value - 4",{"$f":"'Schedule V(c)'!I16","v":0}]
["Sch Vc","Group Structure",null,"Exposure Market Value - 5",{"$f":"'Schedule V(c)'!I17","v":0}]
["Sch Vc","Group Structure",null,"Exposure Market Value - 6",{"$f":"'Schedule V(c)'!I18","v":0}]
["Sch Vc","Group Structure",null,"Exposure Market Value - 7",{"$f":"'Schedule V(c)'!I19","v":0}]
["Sch Vc","Group Structure",null,"Exposure Market Value - 8",{"$f":"'Schedule V(c)'!I20","v":0}]
["Sch Vc","Group Structure",null,"Exposure Market Value - 9",{"$f":"'Schedule V(c)'!I21","v":0}]
["Sch Vc","Group Structure",null,"Exposure Market Value - 10",{"$f":"'Schedule V(c)'!I22","v":0}]
["Sch Vc","Group Structure",null,"Exposure Market Value - 11",{"$f":"'Schedule V(c)'!I23","v":0}]
["Sch Vc","Group Structure",null,"Exposure Market Value - 12",{"$f":"'Schedule V(c)'!I24","v":0}]
["Sch Vc","Group Structure",null,"Exposure Market Value - 13",{"$f":"'Schedule V(c)'!I25","v":0}]
["Sch Vc","Group Structure",null,"Exposure Market Value - 14",{"$f":"'Schedule V(c)'!I26","v":0}]
["Sch Vc","Group Structure",null,"Exposure Market Value - 15",{"$f":"'Schedule V(c)'!I27","v":0}]
["Sch Vc","Group Structure",null,"Exposure Market Value - 16",{"$f":"'Schedule V(c)'!I28","v":0}]
["Sch Vc","Group Structure",null,"Exposure Market Value - 17",{"$f":"'Schedule V(c)'!I29","v":0}]
["Sch Vc","Group Structure",null,"Exposure Market Value - 18",{"$f":"'Schedule V(c)'!I30","v":0}]
["Sch Vc","Group Structure",null,"Exposure Market Value - 19",{"$f":"'Schedule V(c)'!I31","v":0}]
["Sch Vc","Group Structure",null,"Exposure Market Value - 20",{"$f":"'Schedule V(c)'!I32","v":0}]
["Sch Vc","Group Structure",null,"Exposure Market Value - 21",{"$f":"'Schedule V(c)'!I33","v":0}]
["Sch Vc","Group Structure",null,"Exposure Market Value - 22",{"$f":"'Schedule V(c)'!I34","v":0}]
["Sch Vc","Group Structure",null,"Exposure Market Value - 23",{"$f":"'Schedule V(c)'!I35","v":0}]
["Sch Vc","Group Structure",null,"Exposure Market Value - 24",{"$f":"'Schedule V(c)'!I36","v":0}]
["Sch Vc","Group Structure",null,"Exposure Market Value - 25",{"$f":"'Schedule V(c)'!I37","v":0}]
["Sch Vc","Group Structure",null,"Transaction Type - 1",{"$f":"'Schedule V(c)'!J13","v":0}]
["Sch Vc","Group Structure",null,"Transaction Type - 2",{"$f":"'Schedule V(c)'!J14","v":0}]
["Sch Vc","Group Structure",null,"Transaction Type - 3",{"$f":"'Schedule V(c)'!J15","v":0}]
["Sch Vc","Group Structure",null,"Transaction Type - 4",{"$f":"'Schedule V(c)'!J16","v":0}]
["Sch Vc","Group Structure",null,"Transaction Type - 5",{"$f":"'Schedule V(c)'!J17","v":0}]
["Sch Vc","Group Structure",null,"Transaction Type - 6",{"$f":"'Schedule V(c)'!J18","v":0}]
["Sch Vc","Group Structure",null,"Transaction Type - 7",{"$f":"'Schedule V(c)'!J19","v":0}]
["Sch Vc","Group Structure",null,"Transaction Type - 8",{"$f":"'Schedule V(c)'!J20","v":0}]
["Sch Vc","Group Structure",null,"Transaction Type - 9",{"$f":"'Schedule V(c)'!J21","v":0}]
["Sch Vc","Group Structure",null,"Transaction Type - 10",{"$f":"'Schedule V(c)'!J22","v":0}]
["Sch Vc","Group Structure",null,"Transaction Type - 11",{"$f":"'Schedule V(c)'!J23","v":0}]
["Sch Vc","Group Structure",null,"Transaction Type - 12",{"$f":"'Schedule V(c)'!J24","v":0}]
["Sch Vc","Group Structure",null,"Transaction Type - 13",{"$f":"'Schedule V(c)'!J25","v":0}]
["Sch Vc","Group Structure",null,"Transaction Type - 14",{"$f":"'Schedule V(c)'!J26","v":0}]
["Sch Vc","Group Structure",null,"Transaction Type - 15",{"$f":"'Schedule V(c)'!J27","v":0}]
["Sch Vc","Group Structure",null,"Transaction Type - 16",{"$f":"'Schedule V(c)'!J28","v":0}]
["Sch Vc","Group Structure",null,"Transaction Type - 17",{"$f":"'Schedule V(c)'!J29","v":0}]
["Sch Vc","Group Structure",null,"Transaction Type - 18",{"$f":"'Schedule V(c)'!J30","v":0}]
["Sch Vc","Group Structure",null,"Transaction Type - 19",{"$f":"'Schedule V(c)'!J31","v":0}]
["Sch Vc","Group Structure",null,"Transaction Type - 20",{"$f":"'Schedule V(c)'!J32","v":0}]
["Sch Vc","Group Structure",null,"Transaction Type - 21",{"$f":"'Schedule V(c)'!J33","v":0}]
["Sch Vc","Group Structure",null,"Transaction Type - 22",{"$f":"'Schedule V(c)'!J34","v":0}]
["Sch Vc","Group Structure",null,"Transaction Type - 23",{"$f":"'Schedule V(c)'!J35","v":0}]
["Sch Vc","Group Structure",null,"Transaction Type - 24",{"$f":"'Schedule V(c)'!J36","v":0}]
["Sch Vc","Group Structure",null,"Transaction Type - 25",{"$f":"'Schedule V(c)'!J37","v":0}]
["Sch Vc","Group Structure",null,"# of Material Intra-Group Transactions",{"$f":"'Schedule V(c)'!E55","v":0}]
["Sch Vc","Group Structure",null,"Issuer/Borrower Name - 1",{"$f":"'Schedule V(c)'!C59","v":0}]
["Sch Vc","Group Structure",null,"Issuer/Borrower Name - 2",{"$f":"'Schedule V(c)'!C60","v":0}]
["Sch Vc","Group Structure",null,"Issuer/Borrower Name - 3",{"$f":"'Schedule V(c)'!C61","v":0}]
["Sch Vc","Group Structure",null,"Issuer/Borrower Name - 4",{"$f":"'Schedule V(c)'!C62","v":0}]
["Sch Vc","Group Structure",null,"Issuer/Borrower Name - 5",{"$f":"'Schedule V(c)'!C63","v":0}]
["Sch Vc","Group Structure",null,"Issuer/Borrower Name - 6",{"$f":"'Schedule V(c)'!C64","v":0}]
["Sch Vc","Group Structure",null,"Issuer/Borrower Name - 7",{"$f":"'Schedule V(c)'!C65","v":0}]
["Sch Vc","Group Structure",null,"Issuer/Borrower Name - 8",{"$f":"'Schedule V(c)'!C66","v":0}]
["Sch Vc","Group Structure",null,"Issuer/Borrower Name - 9",{"$f":"'Schedule V(c)'!C67","v":0}]
["Sch Vc","Group Structure",null,"Issuer/Borrower Name - 10",{"$f":"'Schedule V(c)'!C68","v":0}]
["Sch Vc","Group Structure",null,"Issuer/Borrower Name - 11",{"$f":"'Schedule V(c)'!C69","v":0}]
["Sch Vc","Group Structure",null,"Issuer/Borrower Name - 12",{"$f":"'Schedule V(c)'!C70","v":0}]
["Sch Vc","Group Structure",null,"Issuer/Borrower Name - 13",{"$f":"'Schedule V(c)'!C71","v":0}]
["Sch Vc","Group Structure",null,"Issuer/Borrower Name - 14",{"$f":"'Schedule V(c)'!C72","v":0}]
["Sch Vc","Group Structure",null,"Issuer/Borrower Name - 15",{"$f":"'Schedule V(c)'!C73","v":0}]
["Sch Vc","Group Structure",null,"Issuer/Borrower Name - 16",{"$f":"'Schedule V(c)'!C74","v":0}]
["Sch Vc","Group Structure",null,"Issuer/Borrower Name - 17",{"$f":"'Schedule V(c)'!C75","v":0}]
["Sch Vc","Group Structure",null,"Issuer/Borrower Name - 18",{"$f":"'Schedule V(c)'!C76","v":0}]
["Sch Vc","Group Structure",null,"Issuer/Borrower Name - 19",{"$f":"'Schedule V(c)'!C77","v":0}]
["Sch Vc","Group Structure",null,"Issuer/Borrower Name - 20",{"$f":"'Schedule V(c)'!C78","v":0}]
["Sch Vc","Group Structure",null,"Issuer/Borrower Name - 21",{"$f":"'Schedule V(c)'!C79","v":0}]
["Sch Vc","Group Structure",null,"Issuer/Borrower Name - 22",{"$f":"'Schedule V(c)'!C80","v":0}]
["Sch Vc","Group Structure",null,"Issuer/Borrower Name - 23",{"$f":"'Schedule V(c)'!C81","v":0}]
["Sch Vc","Group Structure",null,"Issuer/Borrower Name - 24",{"$f":"'Schedule V(c)'!C82","v":0}]
["Sch Vc","Group Structure",null,"Issuer/Borrower Name - 25",{"$f":"'Schedule V(c)'!C83","v":0}]
["Sch Vc","Group Structure",null,"Issuer Jurisdiction - 1",{"$f":"'Schedule V(c)'!D59","v":0}]
["Sch Vc","Group Structure",null,"Issuer Jurisdiction - 2",{"$f":"'Schedule V(c)'!D60","v":0}]
["Sch Vc","Group Structure",null,"Issuer Jurisdiction - 3",{"$f":"'Schedule V(c)'!D61","v":0}]
["Sch Vc","Group Structure",null,"Issuer Jurisdiction - 4",{"$f":"'Schedule V(c)'!D62","v":0}]
["Sch Vc","Group Structure",null,"Issuer Jurisdiction - 5",{"$f":"'Schedule V(c)'!D63","v":0}]
["Sch Vc","Group Structure",null,"Issuer Jurisdiction - 6",{"$f":"'Schedule V(c)'!D64","v":0}]
["Sch Vc","Group Structure",null,"Issuer Jurisdiction - 7",{"$f":"'Schedule V(c)'!D65","v":0}]
["Sch Vc","Group Structure",null,"Issuer Jurisdiction - 8",{"$f":"'Schedule V(c)'!D66","v":0}]
["Sch Vc","Group Structure",null,"Issuer Jurisdiction - 9",{"$f":"'Schedule V(c)'!D67","v":0}]
["Sch Vc","Group Structure",null,"Issuer Jurisdiction - 10",{"$f":"'Schedule V(c)'!D68","v":0}]
["Sch Vc","Group Structure",null,"Issuer Jurisdiction - 11",{"$f":"'Schedule V(c)'!D69","v":0}]
["Sch Vc","Group Structure",null,"Issuer Jurisdiction - 12",{"$f":"'Schedule V(c)'!D70","v":0}]
["Sch Vc","Group Structure",null,"Issuer Jurisdiction - 13",{"$f":"'Schedule V(c)'!D71","v":0}]
["Sch Vc","Group Structure",null,"Issuer Jurisdiction - 14",{"$f":"'Schedule V(c)'!D72","v":0}]
["Sch Vc","Group Structure",null,"Issuer Jurisdiction - 15",{"$f":"'Schedule V(c)'!D73","v":0}]
["Sch Vc","Group Structure",null,"Issuer Jurisdiction - 16",{"$f":"'Schedule V(c)'!D74","v":0}]
["Sch Vc","Group Structure",null,"Issuer Jurisdiction - 17",{"$f":"'Schedule V(c)'!D75","v":0}]
["Sch Vc","Group Structure",null,"Issuer Jurisdiction - 18",{"$f":"'Schedule V(c)'!D76","v":0}]
["Sch Vc","Group Structure",null,"Issuer Jurisdiction - 19",{"$f":"'Schedule V(c)'!D77","v":0}]
["Sch Vc","Group Structure",null,"Issuer Jurisdiction - 20",{"$f":"'Schedule V(c)'!D78","v":0}]
["Sch Vc","Group Structure",null,"Issuer Jurisdiction - 21",{"$f":"'Schedule V(c)'!D79","v":0}]
["Sch Vc","Group Structure",null,"Issuer Jurisdiction - 22",{"$f":"'Schedule V(c)'!D80","v":0}]
["Sch Vc","Group Structure",null,"Issuer Jurisdiction - 23",{"$f":"'Schedule V(c)'!D81","v":0}]
["Sch Vc","Group Structure",null,"Issuer Jurisdiction - 24",{"$f":"'Schedule V(c)'!D82","v":0}]
["Sch Vc","Group Structure",null,"Issuer Jurisdiction - 25",{"$f":"'Schedule V(c)'!D83","v":0}]
["Sch Vc","Group Structure",null,"Investor/Lendor Name - 1",{"$f":"'Schedule V(c)'!E59","v":0}]
["Sch Vc","Group Structure",null,"Investor/Lendor Name - 2",{"$f":"'Schedule V(c)'!E60","v":0}]
["Sch Vc","Group Structure",null,"Investor/Lendor Name - 3",{"$f":"'Schedule V(c)'!E61","v":0}]
["Sch Vc","Group Structure",null,"Investor/Lendor Name - 4",{"$f":"'Schedule V(c)'!E62","v":0}]
["Sch Vc","Group Structure",null,"Investor/Lendor Name - 5",{"$f":"'Schedule V(c)'!E63","v":0}]
["Sch Vc","Group Structure",null,"Investor/Lendor Name - 6",{"$f":"'Schedule V(c)'!E64","v":0}]
["Sch Vc","Group Structure",null,"Investor/Lendor Name - 7",{"$f":"'Schedule V(c)'!E65","v":0}]
["Sch Vc","Group Structure",null,"Investor/Lendor Name - 8",{"$f":"'Schedule V(c)'!E66","v":0}]
["Sch Vc","Group Structure",null,"Investor/Lendor Name - 9",{"$f":"'Schedule V(c)'!E67","v":0}]
["Sch Vc","Group Structure",null,"Investor/Lendor Name - 10",{"$f":"'Schedule V(c)'!E68","v":0}]
["Sch Vc","Group Structure",null,"Investor/Lendor Name - 11",{"$f":"'Schedule V(c)'!E69","v":0}]
["Sch Vc","Group Structure",null,"Investor/Lendor Name - 12",{"$f":"'Schedule V(c)'!E70","v":0}]
["Sch Vc","Group Structure",null,"Investor/Lendor Name - 13",{"$f":"'Schedule V(c)'!E71","v":0}]
["Sch Vc","Group Structure",null,"Investor/Lendor Name - 14",{"$f":"'Schedule V(c)'!E72","v":0}]
["Sch Vc","Group Structure",null,"Investor/Lendor Name - 15",{"$f":"'Schedule V(c)'!E73","v":0}]
["Sch Vc","Group Structure",null,"Investor/Lendor Name - 16",{"$f":"'Schedule V(c)'!E74","v":0}]
["Sch Vc","Group Structure",null,"Investor/Lendor Name - 17",{"$f":"'Schedule V(c)'!E75","v":0}]
["Sch Vc","Group Structure",null,"Investor/Lendor Name - 18",{"$f":"'Schedule V(c)'!E76","v":0}]
["Sch Vc","Group Structure",null,"Investor/Lendor Name - 19",{"$f":"'Schedule V(c)'!E77","v":0}]
["Sch Vc","Group Structure",null,"Investor/Lendor Name - 20",{"$f":"'Schedule V(c)'!E78","v":0}]
["Sch Vc","Group Structure",null,"Investor/Lendor Name - 21",{"$f":"'Schedule V(c)'!E79","v":0}]
["Sch Vc","Group Structure",null,"Investor/Lendor Name - 22",{"$f":"'Schedule V(c)'!E80","v":0}]
["Sch Vc","Group Structure",null,"Investor/Lendor Name - 23",{"$f":"'Schedule V(c)'!E81","v":0}]
["Sch Vc","Group Structure",null,"Investor/Lendor Name - 24",{"$f":"'Schedule V(c)'!E82","v":0}]
["Sch Vc","Group Structure",null,"Investor/Lendor Name - 25",{"$f":"'Schedule V(c)'!E83","v":0}]
["Sch Vc","Group Structure",null,"Investor Jurisdiction - 1",{"$f":"'Schedule V(c)'!F59","v":0}]
["Sch Vc","Group Structure",null,"Investor Jurisdiction - 2",{"$f":"'Schedule V(c)'!F60","v":0}]
["Sch Vc","Group Structure",null,"Investor Jurisdiction - 3",{"$f":"'Schedule V(c)'!F61","v":0}]
["Sch Vc","Group Structure",null,"Investor Jurisdiction - 4",{"$f":"'Schedule V(c)'!F62","v":0}]
["Sch Vc","Group Structure",null,"Investor Jurisdiction - 19",{"$f":"'Schedule V(c)'!F77","v":0}]
["Sch Vc","Group Structure",null,"Investor Jurisdiction - 25",{"$f":"'Schedule V(c)'!F83","v":0}]
["Sch Vc","Group Structure",null,"Transaction Details - 19",{"$f":"'Schedule V(c)'!G77","v":0}]
["Sch Vc","Group Structure",null,"Exposure Value - 19",{"$f":"'Schedule V(c)'!J77","v":0}]
["Sch Vc","Group Structure",null,"Assuming Party Name - 12",{"$f":"'Schedule V(c)'!C102","v":0}]
["Sch Vc","Group Structure",null,"Assuming Party Jurisdiction - 8",{"$f":"'Schedule V(c)'!D98","v":0}]
["Sch Vc","Group Structure",null,"Assuming Party Rating - 10",{"$f":"'Schedule V(c)'!E100","v":0}]
["Sch Vc","Group Structure",null,"Ceding Party Name - 1",{"$f":"'Schedule V(c)'!F91","v":0}]
["Sch Vc","Group Structure",null,"Ceding Party Name - 13",{"$f":"'Schedule V(c)'!F103","v":0}]
["Sch Vc","Group Structure",null,"Ceding Party Jurisdiction - 9",{"$f":"'Schedule V(c)'!G99","v":0}]
["Sch Vc","Group Structure",null,"Ceding Party Rating - 5",{"$f":"'Schedule V(c)'!H95","v":0}]
["Sch Vc","Group Structure",null,"Gross Exposure Limit - 7",{"$f":"'Schedule V(c)'!I97","v":0}]
["Sch Vc","Group Structure",null,"Net Exposure Limit - 3",{"$f":"'Schedule V(c)'!J93","v":0}]
["Sch Vc","Group Structure",null,"Net Exposure Limit - 22",{"$f":"'Schedule V(c)'!J112","v":0}]
["Sch Vc","Group Structure",null,"Net Premium Written - 1",{"$f":"'Schedule V(c)'!L91","v":0}]
["Sch Vc","Group Structure",null,"Q4 Proportion of Internal R/I",{"$f":"'Schedule V(c)'!L117","v":0}]
["Sch Ve","Scenario Tests",null,"R5 - Greece",null,null,null,null,null,null,null,null,{"$f":"'Schedule V(e)'!E24","v":0}]
["Sch Ve","Scenario Tests",null,"R9 - Pre-Stress - Sovereigns rated AA- and above",null,null,null,null,null,null,null,null,{"$f":"'Schedule V(e)'!I42","v":0}]
["Sch Ve","Scenario Tests",null,"R9 - BEL Medium - Low Retail ",null,null,null,null,null,null,null,null,{"$f":"'Schedule V(e)'!E65","v":0}]
["Sch Ve","Scenario Tests",null,"R9 - BEL Medium - Medium Retail ",null,null,null,null,null,null,null,null,{"$f":"'Schedule V(e)'!G65","v":0}]
["Sch Ve","Scenario Tests",null,"R9 - Account Value High - Medium Retail ",null,null,null,null,null,null,null,null,{"$f":"'Schedule V(e)'!G74","v":0}]
["Sch Ve","Scenario Tests",null,"R9 - Cash Surrender Low - High Instit. ",null,null,null,null,null,null,null,null,{"$f":"'Schedule V(e)'!J80","v":0}]
["Sch Ve","Scenario Tests",null,"Product Not Sensitive to Lapse - Cash 5",null,null,null,null,null,null,null,null,{"$f":"'Schedule V(e)'!F98","v":0}]
["Sch Ve","Scenario Tests",null," Other - Gross Loss 2",null,null,null,null,null,null,null,null,{"$f":"'Schedule V(e)'!G117","v":0}]
["Sch Ve","Scenario Tests",null,"A13a) Designated IT Risk Manager Details",{"$f":"'Schedule V(e)'!J188","v":"Confirm role holder's name"}]
["Sch Ve","Scenario Tests",null,"B9) Classed Data by sensitivity",{"$f":"'Schedule V(e)'!I206","v":"Select Yes/No"}]
["Sch Ve","Scenario Tests",null,"C4a) Internal Vulnerability scanning frequency",{"$f":"'Schedule V(e)'!J230","v":"Select Frequency"}]
[]
["Sch Vf","Coinsurance",null,"Mod Co - Coverage 4",{"$f":"+'Schedule V(f)'!F15","v":"Select from Drop-Down"}]
["Sch Vf","Coinsurance",null,"Mod Co - Reserve 14",{"$f":"'Schedule V(f)'!J25","v":0}]
["Sch Vf","Coinsurance",null,"Affiliated Cedant - Total",{"$f":"'Schedule V(f)'!F52","v":0}]
["Sch Vg","GAAP - BSCR Rec",null,"Assets Fin. Stmts. - Other 4",{"$f":"'Schedule V(g)'!D17","v":0}]
["Sch Vg","GAAP - BSCR Rec",null,"Net. Inc. Fin. Stmts. - Other 7",{"$f":"'Schedule V(g)'!F20","v":0}]
["Sch Vg","GAAP - BSCR Rec",null,"Assets Form 1SFS - Other 3",{"$f":"'Schedule V(g)'!D47","v":0}]
["Sch Vg","GAAP - BSCR Rec",null,"Liab. Form 1SFS - Other 3",{"$f":"'Schedule V(g)'!E47","v":0}]
["Sch Vg","GAAP - BSCR Rec",null,"Net Inc. Form 1SFS - Risk Margin",{"$f":"'Schedule V(g)'!F34","v":0}]
["Sch Vg","GAAP - BSCR Rec",null,"C&S Form 1SFS - Risk Margin",{"$f":"'Schedule V(g)'!G34","v":0}]
["Sch Vk","Deposit Details",null,"Name of Exposure - 10",{"$f":"'Schedule V(k)'!C17","v":0}]
["Sch Vk","Deposit Details",null,"Line of Business - 4",{"$f":"'Schedule V(k)'!E11","v":0}]
["Sch Vk","Deposit Details",null,"Line of Business - 23",{"$f":"'Schedule V(k)'!E30","v":0}]
["Sch Vk","Deposit Details",null,"Assets in Trust - 23",{"$f":"'Schedule V(k)'!F30","v":0}]
["Sch Vk","Deposit Details",null,"Collateral - 16",{"$f":"'Schedule V(k)'!G23","v":0}]
["Sch Vk","Deposit Details",null,"Collateral - 22",{"$f":"'Schedule V(k)'!G29","v":0}]
["Sch Vk","Deposit Details",null,"GPW for the Period - 15",{"$f":"'Schedule V(k)'!H22","v":0}]
["Sch Vk","Deposit Details",null,"NPW for the Period - 8",{"$f":"'Schedule V(k)'!I15","v":0}]
["Sch Vk","Deposit Details",null,"Exposure - 17",{"$f":"'Schedule V(k)'!J24","v":0}]
["Sch Vk","Deposit Details",null,"Limit @ 99.0 TVAR - 1",{"$f":"'Schedule V(k)'!K8","v":0}]
["Sch Vk","Deposit Details",null,"Limit @ 99.0 TVAR - 20",{"$f":"'Schedule V(k)'!K27","v":0}]
["Sch Vk","Deposit Details",null,"Unlimited Exposure Details - 19",{"$f":"'Schedule V(k)'!L26","v":0}]
["Sch V(L)","Segregated Acc","(K)","Unearned Premiums - Cell 1",{"$f":"'Schedule V(l)'!D21","v":0}]
["Sch V(L)","Segregated Acc","(Q)","Net Premiums Written - Cell 1",{"$f":"'Schedule V(l)'!D31","v":0}]
["Sch V(L)","Segregated Acc","(AF) ","Cell Deficit - Cell 1",{"$f":"'Schedule V(l)'!D56","v":0}]
["Sch V(L)","Segregated Acc","(AQ) ","ii) GPW - Cell 1",{"$f":"'Schedule V(l)'!D79","v":0}]
["Sch V(L)","Segregated Acc","(J)","Other Assets - Cell 2",{"$f":"'Schedule V(l)'!E17","v":0}]
["Sch V(L)","Segregated Acc","(AC) ","currency used - Cell 2",{"$f":"'Schedule V(l)'!E51","v":"Select Currency"}]
["Sch V(L)","Segregated Acc","(AQ) ","ii) Premiums Ceded - Cell 2",{"$f":"'Schedule V(l)'!E80","v":0}]
["Sch V(L)","Segregated Acc","(F)","Quoted: Equites and Other - Cell 3",{"$f":"'Schedule V(l)'!F13","v":0}]
["Sch V(L)","Segregated Acc","(Y) ","Actual collateral posted by Cell/Insurer - Cell 3",{"$f":"'Schedule V(l)'!F42","v":0}]
["Sch V(L)","Segregated Acc","(AC) ","currency used - Cell 3",{"$f":"'Schedule V(l)'!F51","v":"Select Currency"}]
["Sch V(L)","Segregated Acc","(AQ) ","i) Statutory Line of Business - Cell 3",{"$f":"'Schedule V(l)'!F74","v":"Select Line of Business"}]
["Sch V(L)","Segregated Acc","(M)","Other Liabilities - Cell 4",{"$f":"'Schedule V(l)'!G23","v":0}]
["Sch V(L)","Segregated Acc","(Z) ","Primary Cell Funding - Cell 4",{"$f":"'Schedule V(l)'!G44","v":"Select Funding"}]
["Sch V(L)","Segregated Acc","(AM) ","Beneficial Ownership Gov Instrument - Cell 4",{"$f":"'Schedule V(l)'!G67","v":"Confirm Instrument"}]
["Sch V(L)","Segregated Acc","(A)","Cell Ref # - Cell 5",{"$f":"'Schedule V(l)'!H6","v":0}]
["Sch V(L)","Segregated Acc","(T) ","Commissions and Brokerage - Cell 5",{"$f":"'Schedule V(l)'!H34","v":0}]
["Sch V(L)","Segregated Acc","(AH) ","Details of Beneficial Owners of Risk - Cell 5",{"$f":"'Schedule V(l)'!H61","v":"Confirm"}]
["Sch V(L)","Segregated Acc","(AQ) ","iv) Premiums Ceded - Cell 5",{"$f":"'Schedule V(l)'!H88","v":0}]
["Sch V(L)","Segregated Acc","(N)","Statutory Capital - Cell 6",{"$f":"'Schedule V(l)'!I24","v":0}]
["Sch V(L)","Segregated Acc","(P)","Gross Premiums Written - Cell 6",{"$f":"'Schedule V(l)'!I30","v":0}]
["Sch V(L)","Segregated Acc","(AI) ","Details of Beneficial Owners of Cell - Cell 6",{"$f":"'Schedule V(l)'!I62","v":"Confirm"}]
["Sch V(L)","Segregated Acc","(AQ) ","iii) GPW - Cell 6",{"$f":"'Schedule V(l)'!I83","v":0}]
["Sch V(L)","Segregated Acc","(O)","Statutory Surplus - Cell 7",{"$f":"'Schedule V(l)'!J25","v":0}]
["Sch V(L)","Segregated Acc","(AE) ","General Cell to Cell Activity - Cell 7",{"$f":"'Schedule V(l)'!J54","v":"Confirm Activity"}]
["Sch V(L)","Segregated Acc","(AQ) ","i) NPW - Cell 7",{"$f":"'Schedule V(l)'!J77","v":0}]
["Sch V(L)","Segregated Acc","(I)","Funds Held by Ceding Reinsurers - Cell 8",{"$f":"'Schedule V(l)'!K16","v":0}]
["Sch V(L)","Segregated Acc","(O)","Statutory Surplus - Cell 8",{"$f":"'Schedule V(l)'!K25","v":0}]
["Sch V(L)","Segregated Acc","(AE.1) ","General Cell to Cell Activity Details - Cell 8",{"$f":"'Schedule V(l)'!K55","v":0}]
["Sch V(L)","Segregated Acc","(AQ) ","ii) Statutory Line of Business - Cell 8",{"$f":"'Schedule V(l)'!K78","v":"Select Line of Business"}]
["Sch V(L)","Segregated Acc","(D)","Cash and Time Deposits - Cell 9",{"$f":"'Schedule V(l)'!L11","v":0}]
["Sch V(L)","Segregated Acc","(AA.2) ","Limit of Cell  Funding/ Collateral Details - Cell 9",{"$f":"'Schedule V(l)'!L47","v":0}]
["Sch V(L)","Segregated Acc","(AO) ","Limited recourse  - Cell 9",{"$f":"'Schedule V(l)'!L70","v":0}]
["Sch V(L)","Segregated Acc","(AQ) ","v) GPW - Cell 9",{"$f":"'Schedule V(l)'!L91","v":0}]
["Sch V(L)","Segregated Acc","(W) ","Is Collateral required - Cell 10",{"$f":"'Schedule V(l)'!M40","v":"Select Yes/No"}]
["Sch V(L)","Segregated Acc","(AG.1) ","Additional Capital Support Details - Cell 10",{"$f":"'Schedule V(l)'!M58","v":0}]
["Sch V(L)","Segregated Acc","(AP) ","Operational Risk Mitigants - Cell 10",{"$f":"'Schedule V(l)'!M71","v":"Confirm Mitigants & Attach Support"}]
["Sch V(L)","Segregated Acc","(AQ) ","v) Premiums Ceded - Cell 10",{"$f":"'Schedule V(l)'!M92","v":0}]
["Sch V(L)","Segregated Acc","(R)","Total Income (Insurance and Other) - Cell 11",{"$f":"'Schedule V(l)'!N32","v":0}]
["Sch V(L)","Segregated Acc","(AK.1) ","Beneficial Ownership Add. Details - Cell 11",{"$f":"'Schedule V(l)'!N65","v":0}]
["Sch V(L)","Segregated Acc","(AQ) ","iv) Statutory Line of Business - Cell 11",{"$f":"'Schedule V(l)'!N86","v":"Select Line of Business"}]
["Sch V(L)","Segregated Acc","(L)","Net Loss & Loss Expense Provisions - Cell 12",{"$f":"'Schedule V(l)'!O22","v":0}]
["Sch V(L)","Segregated Acc","(AG) ","Additional Capital Support - Cell 12",{"$f":"'Schedule V(l)'!O57","v":"Confirm"}]
["Sch V(L)","Segregated Acc","(AQ) ","ii) NPW - Cell 12",{"$f":"'Schedule V(l)'!O81","v":0}]
["Sch V(L)","Segregated Acc","(AQ) ","iv) GPW - Cell 12",{"$f":"'Schedule V(l)'!O87","v":0}]
["Sch V(L)","Segregated Acc","(M)","Other Liabilities - Cell 13",{"$f":"'Schedule V(l)'!P23","v":0}]
["Sch V(L)","Segregated Acc","(AD) ","Cell to Cell Activity  - Cell 13",{"$f":"'Schedule V(l)'!P52","v":"Confirm Activity"}]
["Sch V(L)","Segregated Acc","(AQ) ","ii) NPW - Cell 13",{"$f":"'Schedule V(l)'!P81","v":0}]
["Sch V(L)","Segregated Acc","(G)","Unquoted: Bonds, and Debentures - Cell 14",{"$f":"'Schedule V(l)'!Q14","v":0}]
["Sch V(L)","Segregated Acc","(AD) ","Cell to Cell Activity  - Cell 14",{"$f":"'Schedule V(l)'!Q52","v":"Confirm Activity"}]
["Sch V(L)","Segregated Acc","(AI) ","Details of Beneficial Owners of Cell 1- Cell 14",{"$f":"'Schedule V(l)'!Q62","v":"Confirm"}]
["Sch V(L)","Segregated Acc","(B)","Cell name - Cell 15",{"$f":"'Schedule V(l)'!R7","v":0}]
["Sch V(L)","Segregated Acc","(H)","Investments in and Advances to Affiliates - Cell 15",{"$f":"'Schedule V(l)'!R15","v":0}]
["Sch V(L)","Segregated Acc","(AA) ","Limit of Cell Funding/ Collateral - Cell 15",{"$f":"'Schedule V(l)'!R45","v":"Confirm Funding / Collateral"}]
["Sch V(L)","Segregated Acc","(AM.1) ","Beneficial Ownership Gov Instrument Det. - Cell 15",{"$f":"'Schedule V(l)'!R68","v":0}]
["Sch V(L)","Segregated Acc","(B)","Cell name - Cell 16",{"$f":"'Schedule V(l)'!S7","v":0}]
["Sch V(L)","Segregated Acc","(U) ","Other Expenses - Cell 16",{"$f":"'Schedule V(l)'!S35","v":0}]
["Sch V(L)","Segregated Acc","(AM.1) ","Beneficial Ownership Gov Instrument Det. - Cell 16",{"$f":"'Schedule V(l)'!S68","v":0}]
["Sch V(L)","Segregated Acc","(AQ) ","iv) GPW - Cell 16",{"$f":"'Schedule V(l)'!S87","v":0}]
["Sch V(L)","Segregated Acc","(P)","Gross Premiums Written - Cell 17",{"$f":"'Schedule V(l)'!T30","v":0}]
["Sch V(L)","Segregated Acc","(V) ","Capital Returned & Dividends Paid/Payable - Cell 17",{"$f":"'Schedule V(l)'!T37","v":0}]
["Sch V(L)","Segregated Acc","(AJ) ","Beneficial Owners - Cell 17",{"$f":"'Schedule V(l)'!T63","v":"Confirm"}]
["Sch V(L)","Segregated Acc","(AQ) ","v) Statutory Line of Business - Cell 17",{"$f":"'Schedule V(l)'!T90","v":"Select Line of Business"}]
["Sch V(L)","Segregated Acc","(P)","Gross Premiums Written - Cell 18",{"$f":"'Schedule V(l)'!U30","v":0}]
["Sch V(L)","Segregated Acc","(AE.1) ","General Cell to Cell Activity Details - Cell 18",{"$f":"'Schedule V(l)'!U55","v":0}]
["Sch V(L)","Segregated Acc","(AQ) ","iv) Statutory Line of Business - Cell 18",{"$f":"'Schedule V(l)'!U86","v":"Select Line of Business"}]
["Sch V(L)","Segregated Acc","(K)","Unearned Premiums - Cell 19",{"$f":"'Schedule V(l)'!V21","v":0}]
["Sch V(L)","Segregated Acc","(AB) ","Cell  in Run-Off - Cell 19",{"$f":"'Schedule V(l)'!V50","v":"Select Yes/No"}]
["Sch V(L)","Segregated Acc","(AQ) ","ii) GPW - Cell 19",{"$f":"'Schedule V(l)'!V79","v":0}]
["Sch V(L)","Segregated Acc","(E)","Quoted: Bonds and Debentures - Cell 20",{"$f":"'Schedule V(l)'!W12","v":0}]
["Sch V(L)","Segregated Acc","(K)","Unearned Premiums - Cell 20",{"$f":"'Schedule V(l)'!W21","v":0}]
["Sch V(L)","Segregated Acc","(AB) ","Cell is in Run-Off - Cell 20",{"$f":"'Schedule V(l)'!W50","v":"Select Yes/No"}]
["Sch V(L)","Segregated Acc","(AP) ","Operational Risk Mitigants - Cell 20",{"$f":"'Schedule V(l)'!W71","v":"Confirm Mitigants & Attach Support"}]
["Sch V(L)","Segregated Acc","(AQ) ","iv) NPW - Cell 20",{"$f":"'Schedule V(l)'!W89","v":0}]
["Sch V(L)","Segregated Acc","(Y) ","Actual collateral posted by Cell/Insurer - Cell 21",{"$f":"'Schedule V(l)'!X42","v":0}]
["Sch V(L)","Segregated Acc","(AL) ","Jurisdiction - Cell 21",{"$f":"'Schedule V(l)'!X66","v":"Confirm Jurisdiction"}]
["Sch V(L)","Segregated Acc","(AQ) ","v) NPW - Cell 21",{"$f":"'Schedule V(l)'!X93","v":0}]
["Sch V(L)","Segregated Acc","(S) ","Net loss and Loss Expenses Incurred - Cell 22",{"$f":"'Schedule V(l)'!Y33","v":0}]
["Sch V(L)","Segregated Acc","(Y) ","Actual collateral posted by Cell/Insurer - Cell 22",{"$f":"'Schedule V(l)'!Y42","v":0}]
["Sch V(L)","Segregated Acc","(AL) ","Jurisdiction - Cell 22",{"$f":"'Schedule V(l)'!Y66","v":"Confirm Jurisdiction"}]
["Sch V(L)","Segregated Acc","(AQ) ","v) Premiums Ceded - Cell 22",{"$f":"'Schedule V(l)'!Y92","v":0}]
["Sch V(L)","Segregated Acc","(T) ","Commissions and Brokerage - Cell 23",{"$f":"'Schedule V(l)'!Z34","v":0}]
["Sch V(L)","Segregated Acc","(AH) ","Details of Beneficial Owners of Risk - Cell 23",{"$f":"'Schedule V(l)'!Z61","v":"Confirm"}]
["Sch V(L)","Segregated Acc","(AQ) ","iv) Premiums Ceded - Cell 23",{"$f":"'Schedule V(l)'!Z88","v":0}]
["Sch V(L)","Segregated Acc","(N)","Statutory Capital - Cell 24",{"$f":"'Schedule V(l)'!AA24","v":0}]
["Sch V(L)","Segregated Acc","(AD.1) ","Cell to Cell Activity Details - Cell 24",{"$f":"'Schedule V(l)'!AA53","v":0}]
["Sch V(L)","Segregated Acc","(AH) ","Details of Beneficial Owners of Risk - Cell 24",{"$f":"'Schedule V(l)'!AA61","v":"Confirm"}]
["Sch V(L)","Segregated Acc","(AQ) ","iii) Statutory Line of Business - Cell 24",{"$f":"'Schedule V(l)'!AA82","v":"Select Line of Business"}]
["Sch V(L)","Segregated Acc","(V) ","Capital Returned & Dividends Paid/Payable - Cell 25",{"$f":"'Schedule V(l)'!AB37","v":0}]
["Sch V(L)","Segregated Acc","(AE) ","General Cell to Cell Activity - Cell 25",{"$f":"'Schedule V(l)'!AB54","v":"Confirm Activity"}]
["Sch V(L)","Segregated Acc","(AQ) ","i) NPW - Cell 25",{"$f":"'Schedule V(l)'!AB77","v":0}]
["Sch V(L)","Segregated Acc",null,"i) Premiums Ceded - Gen Acc.",{"$f":"'Schedule V(l)'!BE76","v":0}]
["Sch V(L)","Segregated Acc",null,"Comment on Statutory Asset Difference",{"$f":"'Schedule V(l)'!BM18","v":0}]
["Sch V(m)","Alternative Capital",null,"Name of Cedant - 13",{"$f":"'Schedule V(m)'!B23","v":0}]
["Sch V(m)","Alternative Capital",null,"Name of Cedant - 19",{"$f":"'Schedule V(m)'!B29","v":0}]
["Sch V(m)","Alternative Capital",null,"Contract Reference - 11",{"$f":"'Schedule V(m)'!C21","v":0}]
["Sch V(m)","Alternative Capital",null,"Type of Coverage - 14",{"$f":"'Schedule V(m)'!D24","v":"Select from Drop Down"}]
["Sch V(m)","Alternative Capital",null,"Statutory Line of Business - 8",{"$f":"'Schedule V(m)'!E18","v":"Select from Drop Down"}]
["Sch V(m)","Alternative Capital",null,"Location of Coverage - 2",{"$f":"'Schedule V(m)'!F12","v":"Select from Drop Down"}]
["Sch V(m)","Alternative Capital",null,"Agg. Max. Limit at Inception - 2",{"$f":"'Schedule V(m)'!G12","v":0}]
["Sch V(m)","Alternative Capital",null,"Agg. Max. Limit at Inception - 21",{"$f":"'Schedule V(m)'!G31","v":0}]
["Sch V(m)","Alternative Capital",null,"Net Agg. Max. Limit at End of Year - 14",{"$f":"'Schedule V(m)'!H24","v":0}]
["Sch V(m)","Alternative Capital",null,"Net Agg. Max. Limit at End of Year - 20",{"$f":"'Schedule V(m)'!H30","v":0}]
["Sch V(m)","Alternative Capital",null,"Inception Date of Cover Period - 20",{"$f":"'Schedule V(m)'!I30","v":""}]
["Sch V(m)","Alternative Capital",null,"Effective Date of Contract - 14",{"$f":"'Schedule V(m)'!J24","v":""}]
["Sch V(m)","Alternative Capital",null,"Expiry Date of Cover - 8",{"$f":"'Schedule V(m)'!K18","v":""}]
["Sch V(m)","Alternative Capital",null,"Cover Period GPW - 2",{"$f":"'Schedule V(m)'!L12","v":0}]
["Sch V(m)","Alternative Capital",null,"Cover Period NPW - 1",{"$f":"'Schedule V(m)'!M11","v":0}]
["Sch V(m)","Alternative Capital",null,"Cover Period NPW - 20",{"$f":"'Schedule V(m)'!M30","v":0}]
["Sch V(m)","Alternative Capital",null,"Attachment Point - 13",{"$f":"'Schedule V(m)'!N23","v":0}]
["Sch V(m)","Alternative Capital",null,"Attachment Point - 19",{"$f":"'Schedule V(m)'!N29","v":0}]
["Sch V(m)","Alternative Capital",null,"Aggregate Losses Incurred - 2",{"$f":"'Schedule V(m)'!P12","v":0}]
["Sch V(m)","Alternative Capital",null,"Aggregate Losses Incurred - 12",{"$f":"'Schedule V(m)'!P22","v":0}]
["Sch V(m)","Alternative Capital",null,"Aggregate Losses End Of Year - 5",{"$f":"'Schedule V(m)'!Q15","v":0}]
["Sch V(m)","Alternative Capital",null,"Aggregate Losses End Of Year - 24",{"$f":"'Schedule V(m)'!Q34","v":0}]
["Sch V(m)","Alternative Capital",null,"Collateral Reserve Buffer - 23",{"$f":"'Schedule V(m)'!R33","v":0}]
["Sch V(m)","Alternative Capital",null,"Currency of Exposure - 16",{"$f":"'Schedule V(m)'!S26","v":"Select from Drop Down"}]
["Sch V(m)","Alternative Capital",null,"Nature of Collateral - 16",{"$f":"'Schedule V(m)'!T26","v":"Select from Drop Down"}]
["Sch V(m)","Alternative Capital",null,"Collateral Rating - 11",{"$f":"'Schedule V(m)'!U21","v":"Select from Drop Down"}]
["Sch V(m)","Alternative Capital",null,"Amount of Collateral - 5",{"$f":"'Schedule V(m)'!V15","v":0}]
["Sch V(m)","Alternative Capital",null,"Amount of Collateral - 11",{"$f":"'Schedule V(m)'!V21","v":0}]
["Sch V(m)","Alternative Capital",null,"Comments - 4",{"$f":"'Schedule V(m)'!W14","v":0}]
["Sch V(m)","Alternative Capital",null,"Comments - 23",{"$f":"'Schedule V(m)'!W33","v":0}]
["Sch VI","Schedule of Assets",null,"(A) Cash - Asset Type 20",{"$f":"'Schedule VI'!B30","v":"Select"},null,null,null,null,null,null,null,{"$f":"'Schedule VI (EBS)'!B30","v":"Select"}]
["Sch VI","Schedule of Assets",null,"(A) Cash - Asset Type 39",{"$f":"'Schedule VI'!B49","v":"Select"},null,null,null,null,null,null,null,{"$f":"'Schedule VI (EBS)'!B49","v":"Select"}]
["Sch VI","Schedule of Assets",null,"(A) Cash - Asset Type 64",{"$f":"'Schedule VI'!B74","v":"Select"},null,null,null,null,null,null,null,{"$f":"'Schedule VI (EBS)'!B74","v":"Select"}]
["Sch VI","Schedule of Assets",null,"(A) Cash - Asset Type 73",{"$f":"'Schedule VI'!B83","v":"Select"},null,null,null,null,null,null,null,{"$f":"'Schedule VI (EBS)'!B83","v":"Select"}]
["Sch VI","Schedule of Assets",null,"(A) Cash - Asset Type 103",{"$f":"'Schedule VI'!B113","v":"Select"},null,null,null,null,null,null,null,{"$f":"'Schedule VI (EBS)'!B113","v":"Select"}]
["Sch VI","Schedule of Assets",null,"(A) Cash - Asset Type 109",{"$f":"'Schedule VI'!B119","v":"Select"},null,null,null,null,null,null,null,{"$f":"'Schedule VI (EBS)'!B119","v":"Select"}]
["Sch VI","Schedule of Assets",null,"(A) Cash - Asset Type 128",{"$f":"'Schedule VI'!B138","v":"Select"},null,null,null,null,null,null,null,{"$f":"'Schedule VI (EBS)'!B138","v":"Select"}]
["Sch VI","Schedule of Assets",null,"(A) Cash - Asset Type 147",{"$f":"'Schedule VI'!B157","v":"Select"},null,null,null,null,null,null,null,{"$f":"'Schedule VI (EBS)'!B157","v":"Select"}]
["Sch VI","Schedule of Assets",null,"(A) Cash - Asset Type 172",{"$f":"'Schedule VI'!B182","v":"Select"},null,null,null,null,null,null,null,{"$f":"'Schedule VI (EBS)'!B182","v":"Select"}]
["Sch VI","Schedule of Assets",null,"(A) Cash - Asset Type 191",{"$f":"'Schedule VI'!B201","v":"Select"},null,null,null,null,null,null,null,{"$f":"'Schedule VI (EBS)'!B201","v":"Select"}]
["Sch VI","Schedule of Assets",null,"(A) Cash - Currency 10",{"$f":"'Schedule VI'!C20","v":"Select"},null,null,null,null,null,null,null,{"$f":"'Schedule VI (EBS)'!C20","v":"Select"}]
["Sch VI","Schedule of Assets",null,"(A) Cash - Currency 36",{"$f":"'Schedule VI'!C46","v":"Select"},null,null,null,null,null,null,null,{"$f":"'Schedule VI (EBS)'!C46","v":"Select"}]
["Sch VI","Schedule of Assets",null,"(A) Cash - Currency 55",{"$f":"'Schedule VI'!C65","v":"Select"},null,null,null,null,null,null,null,{"$f":"'Schedule VI (EBS)'!C65","v":"Select"}]
["Sch VI","Schedule of Assets",null,"(A) Cash - Currency 61",{"$f":"'Schedule VI'!C71","v":"Select"},null,null,null,null,null,null,null,{"$f":"'Schedule VI (EBS)'!C71","v":"Select"}]
["Sch VI","Schedule of Assets",null,"(A) Cash - Currency 80",{"$f":"'Schedule VI'!C90","v":"Select"},null,null,null,null,null,null,null,{"$f":"'Schedule VI (EBS)'!C90","v":"Select"}]
["Sch VI","Schedule of Assets",null,"(A) Cash - Currency 105",{"$f":"'Schedule VI'!C115","v":"Select"},null,null,null,null,null,null,null,{"$f":"'Schedule VI (EBS)'!C115","v":"Select"}]
["Sch VI","Schedule of Assets",null,"(A) Cash - Currency 124",{"$f":"'Schedule VI'!C134","v":"Select"},null,null,null,null,null,null,null,{"$f":"'Schedule VI (EBS)'!C134","v":"Select"}]
["Sch VI","Schedule of Assets",null,"(A) Cash - Currency 143",{"$f":"'Schedule VI'!C153","v":"Select"},null,null,null,null,null,null,null,{"$f":"'Schedule VI (EBS)'!C153","v":"Select"}]
["Sch VI","Schedule of Assets",null,"(A) Cash - Currency 171",{"$f":"'Schedule VI'!C181","v":"Select"},null,null,null,null,null,null,null,{"$f":"'Schedule VI (EBS)'!C181","v":"Select"}]
["Sch VI","Schedule of Assets",null,"(A) Cash - Currency 188",{"$f":"'Schedule VI'!C198","v":"Select"},null,null,null,null,null,null,null,{"$f":"'Schedule VI (EBS)'!C198","v":"Select"}]
["Sch VI","Schedule of Assets",null,"(A) Cash - Rating 7",{"$f":"'Schedule VI'!D17","v":"Select"},null,null,null,null,null,null,null,{"$f":"'Schedule VI (EBS)'!D17","v":"Select"}]
["Sch VI","Schedule of Assets",null,"(A) Cash - Rating 13",{"$f":"'Schedule VI'!D23","v":"Select"},null,null,null,null,null,null,null,{"$f":"'Schedule VI (EBS)'!D23","v":"Select"}]
["Sch VI","Schedule of Assets",null,"(A) Cash - Rating 32",{"$f":"'Schedule VI'!D42","v":"Select"},null,null,null,null,null,null,null,{"$f":"'Schedule VI (EBS)'!D42","v":"Select"}]
["Sch VI","Schedule of Assets",null,"(A) Cash - Rating 57",{"$f":"'Schedule VI'!D67","v":"Select"},null,null,null,null,null,null,null,{"$f":"'Schedule VI (EBS)'!D67","v":"Select"}]
["Sch VI","Schedule of Assets",null,"(A) Cash - Rating 76",{"$f":"'Schedule VI'!D86","v":"Select"},null,null,null,null,null,null,null,{"$f":"'Schedule VI (EBS)'!D86","v":"Select"}]
["Sch VI","Schedule of Assets",null,"(A) Cash - Rating 92",{"$f":"'Schedule VI'!D102","v":"Select"},null,null,null,null,null,null,null,{"$f":"'Schedule VI (EBS)'!D102","v":"Select"}]
["Sch VI","Schedule of Assets",null,"(A) Cash - Rating 121",{"$f":"'Schedule VI'!D131","v":"Select"},null,null,null,null,null,null,null,{"$f":"'Schedule VI (EBS)'!D131","v":"Select"}]
["Sch VI","Schedule of Assets",null,"(A) Cash - Rating 140",{"$f":"'Schedule VI'!D150","v":"Select"},null,null,null,null,null,null,null,{"$f":"'Schedule VI (EBS)'!D150","v":"Select"}]
["Sch VI","Schedule of Assets",null,"(A) Cash - Rating 146",{"$f":"'Schedule VI'!D156","v":"Select"},null,null,null,null,null,null,null,{"$f":"'Schedule VI (EBS)'!D156","v":"Select"}]
["Sch VI","Schedule of Assets",null,"(A) Cash - Rating 165",{"$f":"'Schedule VI'!D175","v":"Select"},null,null,null,null,null,null,null,{"$f":"'Schedule VI (EBS)'!D175","v":"Select"}]
["Sch VI","Schedule of Assets",null,"(A) Cash - Rating 184",{"$f":"'Schedule VI'!D194","v":"Select"},null,null,null,null,null,null,null,{"$f":"'Schedule VI (EBS)'!D194","v":"Select"}]
["Sch VI","Schedule of Assets",null,"(A) Cash - Nominal 9",{"$f":"'Schedule VI'!E19","v":0},null,null,null,null,null,null,null,{"$f":"'Schedule VI (EBS)'!E19","v":0}]
["Sch VI","Schedule of Assets",null,"(A) Cash - Nominal 28",{"$f":"'Schedule VI'!E38","v":0},null,null,null,null,null,null,null,{"$f":"'Schedule VI (EBS)'!E38","v":0}]
["Sch VI","Schedule of Assets",null,"(A) Cash - Nominal 53",{"$f":"'Schedule VI'!E63","v":0},null,null,null,null,null,null,null,{"$f":"'Schedule VI (EBS)'!E63","v":0}]
["Sch VI","Schedule of Assets",null,"(A) Cash - Nominal 73",{"$f":"'Schedule VI'!E83","v":0},null,null,null,null,null,null,null,{"$f":"'Schedule VI (EBS)'!E83","v":0}]
["Sch VI","Schedule of Assets",null,"(A) Cash - Nominal 92",{"$f":"'Schedule VI'!E102","v":0},null,null,null,null,null,null,null,{"$f":"'Schedule VI (EBS)'!E102","v":0}]
["Sch VI","Schedule of Assets",null,"(A) Cash - Nominal 98",{"$f":"'Schedule VI'!E108","v":0},null,null,null,null,null,null,null,{"$f":"'Schedule VI (EBS)'!E108","v":0}]
["Sch VI","Schedule of Assets",null,"(A) Cash - Nominal 117",{"$f":"'Schedule VI'!E127","v":0},null,null,null,null,null,null,null,{"$f":"'Schedule VI (EBS)'!E127","v":0}]
["Sch VI","Schedule of Assets",null,"(A) Cash - Nominal 136",{"$f":"'Schedule VI'!E146","v":0},null,null,null,null,null,null,null,{"$f":"'Schedule VI (EBS)'!E146","v":0}]
["Sch VI","Schedule of Assets",null,"(A) Cash - Nominal 161",{"$f":"'Schedule VI'!E171","v":0},null,null,null,null,null,null,null,{"$f":"'Schedule VI (EBS)'!E171","v":0}]
["Sch VI","Schedule of Assets",null,"(A) Cash - Nominal 180",{"$f":"'Schedule VI'!E190","v":0},null,null,null,null,null,null,null,{"$f":"'Schedule VI (EBS)'!E190","v":0}]
["Sch VI","Schedule of Assets",null,"(A) Cash - Nominal 194",{"$f":"'Schedule VI'!E204","v":0},null,null,null,null,null,null,null,{"$f":"'Schedule VI (EBS)'!E204","v":0}]
["Sch VI","Schedule of Assets",null,"(A) Cash - Fair Value 25",{"$f":"'Schedule VI'!F35","v":0},null,null,null,null,null,null,null,{"$f":"'Schedule VI (EBS)'!F35","v":0}]
["Sch VI","Schedule of Assets",null,"(A) Cash - Fair Value 44",{"$f":"'Schedule VI'!F54","v":0},null,null,null,null,null,null,null,{"$f":"'Schedule VI (EBS)'!F54","v":0}]
["Sch VI","Schedule of Assets",null,"(A) Cash - Fair Value 69",{"$f":"'Schedule VI'!F79","v":0},null,null,null,null,null,null,null,{"$f":"'Schedule VI (EBS)'!F79","v":0}]
["Sch VI","Schedule of Assets",null,"(A) Cash - Fair Value 88",{"$f":"'Schedule VI'!F98","v":0},null,null,null,null,null,null,null,{"$f":"'Schedule VI (EBS)'!F98","v":0}]
["Sch VI","Schedule of Assets",null,"(A) Cash - Fair Value 107",{"$f":"'Schedule VI'!F117","v":0},null,null,null,null,null,null,null,{"$f":"'Schedule VI (EBS)'!F117","v":0}]
["Sch VI","Schedule of Assets",null,"(A) Cash - Fair Value 113",{"$f":"'Schedule VI'!F123","v":0},null,null,null,null,null,null,null,{"$f":"'Schedule VI (EBS)'!F123","v":0}]
["Sch VI","Schedule of Assets",null,"(A) Cash - Fair Value 131",{"$f":"'Schedule VI'!F141","v":0},null,null,null,null,null,null,null,{"$f":"'Schedule VI (EBS)'!F141","v":0}]
["Sch VI","Schedule of Assets",null,"(A) Cash - Fair Value 158",{"$f":"'Schedule VI'!F168","v":0},null,null,null,null,null,null,null,{"$f":"'Schedule VI (EBS)'!F168","v":0}]
["Sch VI","Schedule of Assets",null,"(A) Cash - Fair Value 177",{"$f":"'Schedule VI'!F187","v":0},null,null,null,null,null,null,null,{"$f":"'Schedule VI (EBS)'!F187","v":0}]
["Sch VI","Schedule of Assets",null,"(A) Cash - Fair Value 196",{"$f":"'Schedule VI'!F206","v":0},null,null,null,null,null,null,null,{"$f":"'Schedule VI (EBS)'!F206","v":0}]
["Sch VI","Schedule of Assets",null,"(A) Cash - Comments 21",{"$f":"'Schedule VI'!G31","v":0},null,null,null,null,null,null,null,{"$f":"'Schedule VI (EBS)'!G31","v":0}]
["Sch VI","Schedule of Assets",null,"(A) Cash - Comments 40",{"$f":"'Schedule VI'!G50","v":0},null,null,null,null,null,null,null,{"$f":"'Schedule VI (EBS)'!G50","v":0}]
["Sch VI","Schedule of Assets",null,"(A) Cash - Comments 59",{"$f":"'Schedule VI'!G69","v":0},null,null,null,null,null,null,null,{"$f":"'Schedule VI (EBS)'!G69","v":0}]
["Sch VI","Schedule of Assets",null,"(A) Cash - Comments 65",{"$f":"'Schedule VI'!G75","v":0},null,null,null,null,null,null,null,{"$f":"'Schedule VI (EBS)'!G75","v":0}]
["Sch VI","Schedule of Assets",null,"(A) Cash - Comments 92",{"$f":"'Schedule VI'!G102","v":0},null,null,null,null,null,null,null,{"$f":"'Schedule VI (EBS)'!G102","v":0}]
["Sch VI","Schedule of Assets",null,"(A) Cash - Comments 110",{"$f":"'Schedule VI'!G120","v":0},null,null,null,null,null,null,null,{"$f":"'Schedule VI (EBS)'!G120","v":0}]
["Sch VI","Schedule of Assets",null,"(A) Cash - Comments 129",{"$f":"'Schedule VI'!G139","v":0},null,null,null,null,null,null,null,{"$f":"'Schedule VI (EBS)'!G139","v":0}]
["Sch VI","Schedule of Assets",null,"(A) Cash - Comments 148",{"$f":"'Schedule VI'!G158","v":0},null,null,null,null,null,null,null,{"$f":"'Schedule VI (EBS)'!G158","v":0}]
["Sch VI","Schedule of Assets",null,"(A) Cash - Comments 173",{"$f":"'Schedule VI'!G183","v":0},null,null,null,null,null,null,null,{"$f":"'Schedule VI (EBS)'!G183","v":0}]
["Sch VI","Schedule of Assets",null,"(A) Cash - Comments 192",{"$f":"'Schedule VI'!G202","v":0},null,null,null,null,null,null,null,{"$f":"'Schedule VI (EBS)'!G202","v":0}]
["Sch VI","Schedule of Assets",null,"(B) Bonds - Asset Type 10",{"$f":"'Schedule VI'!B228","v":"Select"},null,null,null,null,null,null,null,{"$f":"'Schedule VI (EBS)'!B228","v":"Select"}]
["Sch VI","Schedule of Assets",null,"(B) Bonds - Asset Type 28",{"$f":"'Schedule VI'!B246","v":"Select"},null,null,null,null,null,null,null,{"$f":"'Schedule VI (EBS)'!B246","v":"Select"}]
["Sch VI","Schedule of Assets",null,"(B) Bonds - Asset Type 36",{"$f":"'Schedule VI'!B254","v":"Select"},null,null,null,null,null,null,null,{"$f":"'Schedule VI (EBS)'!B254","v":"Select"}]
["Sch VI","Schedule of Assets",null,"(B) Bonds - Asset Type 61",{"$f":"'Schedule VI'!B279","v":"Select"},null,null,null,null,null,null,null,{"$f":"'Schedule VI (EBS)'!B279","v":"Select"}]
["Sch VI","Schedule of Assets",null,"(B) Bonds - Asset Type 80",{"$f":"'Schedule VI'!B298","v":"Select"},null,null,null,null,null,null,null,{"$f":"'Schedule VI (EBS)'!B298","v":"Select"}]
["Sch VI","Schedule of Assets",null,"(B) Bonds - Asset Type 99",{"$f":"'Schedule VI'!B317","v":"Select"},null,null,null,null,null,null,null,{"$f":"'Schedule VI (EBS)'!B317","v":"Select"}]
["Sch VI","Schedule of Assets",null,"(B) Bonds - Asset Type 124",{"$f":"'Schedule VI'!B342","v":"Select"},null,null,null,null,null,null,null,{"$f":"'Schedule VI (EBS)'!B342","v":"Select"}]
["Sch VI","Schedule of Assets",null,"(B) Bonds - Asset Type 143",{"$f":"'Schedule VI'!B361","v":"Select"},null,null,null,null,null,null,null,{"$f":"'Schedule VI (EBS)'!B361","v":"Select"}]
["Sch VI","Schedule of Assets",null,"(B) Bonds - Asset Type 149",{"$f":"'Schedule VI'!B367","v":"Select"},null,null,null,null,null,null,null,{"$f":"'Schedule VI (EBS)'!B367","v":"Select"}]
["Sch VI","Schedule of Assets",null,"(B) Bonds - Asset Type 169",{"$f":"'Schedule VI'!B387","v":"Select"},null,null,null,null,null,null,null,{"$f":"'Schedule VI (EBS)'!B387","v":"Select"}]
["Sch VI","Schedule of Assets",null,"(B) Bonds - Asset Type 188",{"$f":"'Schedule VI'!B406","v":"Select"},null,null,null,null,null,null,null,{"$f":"'Schedule VI (EBS)'!B406","v":"Select"}]
["Sch VI","Schedule of Assets",null,"(B) Bonds - Asset Type 213",{"$f":"'Schedule VI'!B431","v":"Select"},null,null,null,null,null,null,null,{"$f":"'Schedule VI (EBS)'!B431","v":"Select"}]
["Sch VI","Schedule of Assets",null,"(B) Bonds - Asset Type 232",{"$f":"'Schedule VI'!B450","v":"Select"},null,null,null,null,null,null,null,{"$f":"'Schedule VI (EBS)'!B450","v":"Select"}]
["Sch VI","Schedule of Assets",null,"(B) Bonds - Asset Type 251",{"$f":"'Schedule VI'!B469","v":"Select"},null,null,null,null,null,null,null,{"$f":"'Schedule VI (EBS)'!B469","v":"Select"}]
["Sch VI","Schedule of Assets",null,"(B) Bonds - Asset Type 276",{"$f":"'Schedule VI'!B494","v":"Select"},null,null,null,null,null,null,null,{"$f":"'Schedule VI (EBS)'!B494","v":"Select"}]
["Sch VI","Schedule of Assets",null,"(B) Bonds - Asset Type 295",{"$f":"'Schedule VI'!B513","v":"Select"},null,null,null,null,null,null,null,{"$f":"'Schedule VI (EBS)'!B513","v":"Select"}]
["Sch VI","Schedule of Assets",null,"(B) Bonds - Asset Type 306",{"$f":"'Schedule VI'!B524","v":"Select"},null,null,null,null,null,null,null,{"$f":"'Schedule VI (EBS)'!B524","v":"Select"}]
["Sch VI","Schedule of Assets",null,"(B) Bonds - Asset Type 321",{"$f":"'Schedule VI'!B539","v":"Select"},null,null,null,null,null,null,null,{"$f":"'Schedule VI (EBS)'!B539","v":"Select"}]
["Sch VI","Schedule of Assets",null,"(B) Bonds - Asset Type 340",{"$f":"'Schedule VI'!B558","v":"Select"},null,null,null,null,null,null,null,{"$f":"'Schedule VI (EBS)'!B558","v":"Select"}]
["Sch VI","Schedule of Assets",null,"(B) Bonds - Asset Type 365",{"$f":"'Schedule VI'!B583","v":"Select"},null,null,null,null,null,null,null,{"$f":"'Schedule VI (EBS)'!B583","v":"Select"}]
["Sch VI","Schedule of Assets",null,"(B) Bonds - Asset Type 384",{"$f":"'Schedule VI'!B602","v":"Select"},null,null,null,null,null,null,null,{"$f":"'Schedule VI (EBS)'!B602","v":"Select"}]
["Sch VI","Schedule of Assets",null,"(B) Bonds - Currency 9",{"$f":"'Schedule VI'!C227","v":"Select"},null,null,null,null,null,null,null,{"$f":"'Schedule VI (EBS)'!C227","v":"Select"}]
["Sch VI","Schedule of Assets",null,"(B) Bonds - Currency 28",{"$f":"'Schedule VI'!C246","v":"Select"},null,null,null,null,null,null,null,{"$f":"'Schedule VI (EBS)'!C246","v":"Select"}]
["Sch VI","Schedule of Assets",null,"(B) Bonds - Currency 47",{"$f":"'Schedule VI'!C265","v":"Select"},null,null,null,null,null,null,null,{"$f":"'Schedule VI (EBS)'!C265","v":"Select"}]
["Sch VI","Schedule of Assets",null,"(B) Bonds - Currency 67",{"$f":"'Schedule VI'!C285","v":"Select"},null,null,null,null,null,null,null,{"$f":"'Schedule VI (EBS)'!C285","v":"Select"}]
["Sch VI","Schedule of Assets",null,"(B) Bonds - Currency 73",{"$f":"'Schedule VI'!C291","v":"Select"},null,null,null,null,null,null,null,{"$f":"'Schedule VI (EBS)'!C291","v":"Select"}]
["Sch VI","Schedule of Assets",null,"(B) Bonds - Currency 92",{"$f":"'Schedule VI'!C310","v":"Select"},null,null,null,null,null,null,null,{"$f":"'Schedule VI (EBS)'!C310","v":"Select"}]
["Sch VI","Schedule of Assets",null,"(B) Bonds - Currency 117",{"$f":"'Schedule VI'!C335","v":"Select"},null,null,null,null,null,null,null,{"$f":"'Schedule VI (EBS)'!C335","v":"Select"}]
["Sch VI","Schedule of Assets",null,"(B) Bonds - Currency 136",{"$f":"'Schedule VI'!C354","v":"Select"},null,null,null,null,null,null,null,{"$f":"'Schedule VI (EBS)'!C354","v":"Select"}]
["Sch VI","Schedule of Assets",null,"(B) Bonds - Currency 161",{"$f":"'Schedule VI'!C379","v":"Select"},null,null,null,null,null,null,null,{"$f":"'Schedule VI (EBS)'!C379","v":"Select"}]
["Sch VI","Schedule of Assets",null,"(B) Bonds - Currency 180",{"$f":"'Schedule VI'!C398","v":"Select"},null,null,null,null,null,null,null,{"$f":"'Schedule VI (EBS)'!C398","v":"Select"}]
["Sch VI","Schedule of Assets",null,"(B) Bonds - Currency 199",{"$f":"'Schedule VI'!C417","v":"Select"},null,null,null,null,null,null,null,{"$f":"'Schedule VI (EBS)'!C417","v":"Select"}]
["Sch VI","Schedule of Assets",null,"(B) Bonds - Currency 208",{"$f":"'Schedule VI'!C426","v":"Select"},null,null,null,null,null,null,null,{"$f":"'Schedule VI (EBS)'!C426","v":"Select"}]
["Sch VI","Schedule of Assets",null,"(B) Bonds - Currency 244",{"$f":"'Schedule VI'!C462","v":"Select"},null,null,null,null,null,null,null,{"$f":"'Schedule VI (EBS)'!C462","v":"Select"}]
["Sch VI","Schedule of Assets",null,"(B) Bonds - Currency 263",{"$f":"'Schedule VI'!C481","v":"Select"},null,null,null,null,null,null,null,{"$f":"'Schedule VI (EBS)'!C481","v":"Select"}]
["Sch VI","Schedule of Assets",null,"(B) Bonds - Currency 269",{"$f":"'Schedule VI'!C487","v":"Select"},null,null,null,null,null,null,null,{"$f":"'Schedule VI (EBS)'!C487","v":"Select"}]
["Sch VI","Schedule of Assets",null,"(B) Bonds - Currency 288",{"$f":"'Schedule VI'!C506","v":"Select"},null,null,null,null,null,null,null,{"$f":"'Schedule VI (EBS)'!C506","v":"Select"}]
["Sch VI","Schedule of Assets",null,"(B) Bonds - Currency 313",{"$f":"'Schedule VI'!C531","v":"Select"},null,null,null,null,null,null,null,{"$f":"'Schedule VI (EBS)'!C531","v":"Select"}]
["Sch VI","Schedule of Assets",null,"(B) Bonds - Currency 332",{"$f":"'Schedule VI'!C550","v":"Select"},null,null,null,null,null,null,null,{"$f":"'Schedule VI (EBS)'!C550","v":"Select"}]
["Sch VI","Schedule of Assets",null,"(B) Bonds - Currency 349",{"$f":"'Schedule VI'!C567","v":"Select"},null,null,null,null,null,null,null,{"$f":"'Schedule VI (EBS)'!C567","v":"Select"}]
["Sch VI","Schedule of Assets",null,"(B) Bonds - Currency 377",{"$f":"'Schedule VI'!C595","v":"Select"},null,null,null,null,null,null,null,{"$f":"'Schedule VI (EBS)'!C595","v":"Select"}]
["Sch VI","Schedule of Assets",null,"(B) Bonds - Currency 396",{"$f":"'Schedule VI'!C614","v":"Select"},null,null,null,null,null,null,null,{"$f":"'Schedule VI (EBS)'!C614","v":"Select"}]
["Sch VI","Schedule of Assets",null,"(B) Bonds - Rating 2",{"$f":"'Schedule VI'!D220","v":"Select"},null,null,null,null,null,null,null,{"$f":"'Schedule VI (EBS)'!D220","v":"Select"}]
["Sch VI","Schedule of Assets",null,"(B) Bonds - Rating 21",{"$f":"'Schedule VI'!D239","v":"Select"},null,null,null,null,null,null,null,{"$f":"'Schedule VI (EBS)'!D239","v":"Select"}]
["Sch VI","Schedule of Assets",null,"(B) Bonds - Rating 40",{"$f":"'Schedule VI'!D258","v":"Select"},null,null,null,null,null,null,null,{"$f":"'Schedule VI (EBS)'!D258","v":"Select"}]
["Sch VI","Schedule of Assets",null,"(B) Bonds - Rating 65",{"$f":"'Schedule VI'!D283","v":"Select"},null,null,null,null,null,null,null,{"$f":"'Schedule VI (EBS)'!D283","v":"Select"}]
["Sch VI","Schedule of Assets",null,"(B) Bonds - Rating 84",{"$f":"'Schedule VI'!D302","v":"Select"},null,null,null,null,null,null,null,{"$f":"'Schedule VI (EBS)'!D302","v":"Select"}]
["Sch VI","Schedule of Assets",null,"(B) Bonds - Rating 110",{"$f":"'Schedule VI'!D328","v":"Select"},null,null,null,null,null,null,null,{"$f":"'Schedule VI (EBS)'!D328","v":"Select"}]
["Sch VI","Schedule of Assets",null,"(B) Bonds - Rating 129",{"$f":"'Schedule VI'!D347","v":"Select"},null,null,null,null,null,null,null,{"$f":"'Schedule VI (EBS)'!D347","v":"Select"}]
["Sch VI","Schedule of Assets",null,"(B) Bonds - Rating 148",{"$f":"'Schedule VI'!D366","v":"Select"},null,null,null,null,null,null,null,{"$f":"'Schedule VI (EBS)'!D366","v":"Select"}]
["Sch VI","Schedule of Assets",null,"(B) Bonds - Rating 154",{"$f":"'Schedule VI'!D372","v":"Select"},null,null,null,null,null,null,null,{"$f":"'Schedule VI (EBS)'!D372","v":"Select"}]
["Sch VI","Schedule of Assets",null,"(B) Bonds - Rating 173",{"$f":"'Schedule VI'!D391","v":"Select"},null,null,null,null,null,null,null,{"$f":"'Schedule VI (EBS)'!D391","v":"Select"}]
["Sch VI","Schedule of Assets",null,"(B) Bonds - Rating 192",{"$f":"'Schedule VI'!D410","v":"Select"},null,null,null,null,null,null,null,{"$f":"'Schedule VI (EBS)'!D410","v":"Select"}]
["Sch VI","Schedule of Assets",null,"(B) Bonds - Rating 217",{"$f":"'Schedule VI'!D435","v":"Select"},null,null,null,null,null,null,null,{"$f":"'Schedule VI (EBS)'!D435","v":"Select"}]
["Sch VI","Schedule of Assets",null,"(B) Bonds - Rating 227",{"$f":"'Schedule VI'!D445","v":"Select"},null,null,null,null,null,null,null,{"$f":"'Schedule VI (EBS)'!D445","v":"Select"}]
["Sch VI","Schedule of Assets",null,"(B) Bonds - Rating 262",{"$f":"'Schedule VI'!D480","v":"Select"},null,null,null,null,null,null,null,{"$f":"'Schedule VI (EBS)'!D480","v":"Select"}]
["Sch VI","Schedule of Assets",null,"(B) Bonds - Rating 281",{"$f":"'Schedule VI'!D499","v":"Select"},null,null,null,null,null,null,null,{"$f":"'Schedule VI (EBS)'!D499","v":"Select"}]
["Sch VI","Schedule of Assets",null,"(B) Bonds - Rating 300",{"$f":"'Schedule VI'!D518","v":"Select"},null,null,null,null,null,null,null,{"$f":"'Schedule VI (EBS)'!D518","v":"Select"}]
["Sch VI","Schedule of Assets",null,"(B) Bonds - Rating 306",{"$f":"'Schedule VI'!D524","v":"Select"},null,null,null,null,null,null,null,{"$f":"'Schedule VI (EBS)'!D524","v":"Select"}]
["Sch VI","Schedule of Assets",null,"(B) Bonds - Rating 325",{"$f":"'Schedule VI'!D543","v":"Select"},null,null,null,null,null,null,null,{"$f":"'Schedule VI (EBS)'!D543","v":"Select"}]
["Sch VI","Schedule of Assets",null,"(B) Bonds - Rating 344",{"$f":"'Schedule VI'!D562","v":"Select"},null,null,null,null,null,null,null,{"$f":"'Schedule VI (EBS)'!D562","v":"Select"}]
["Sch VI","Schedule of Assets",null,"(B) Bonds - Rating 369",{"$f":"'Schedule VI'!D587","v":"Select"},null,null,null,null,null,null,null,{"$f":"'Schedule VI (EBS)'!D587","v":"Select"}]
["Sch VI","Schedule of Assets",null,"(B) Bonds - Rating 388",{"$f":"'Schedule VI'!D606","v":"Select"},null,null,null,null,null,null,null,{"$f":"'Schedule VI (EBS)'!D606","v":"Select"}]
["Sch VI","Schedule of Assets",null,"(B) Bonds - Nominal 14",{"$f":"'Schedule VI'!E232","v":0},null,null,null,null,null,null,null,{"$f":"'Schedule VI (EBS)'!E232","v":0}]
["Sch VI","Schedule of Assets",null,"(B) Bonds - Nominal 33",{"$f":"'Schedule VI'!E251","v":0},null,null,null,null,null,null,null,{"$f":"'Schedule VI (EBS)'!E251","v":0}]
["Sch VI","Schedule of Assets",null,"(B) Bonds - Nominal 52",{"$f":"'Schedule VI'!E270","v":0},null,null,null,null,null,null,null,{"$f":"'Schedule VI (EBS)'!E270","v":0}]
["Sch VI","Schedule of Assets",null,"(B) Bonds - Nominal 58",{"$f":"'Schedule VI'!E276","v":0},null,null,null,null,null,null,null,{"$f":"'Schedule VI (EBS)'!E276","v":0}]
["Sch VI","Schedule of Assets",null,"(B) Bonds - Nominal 77",{"$f":"'Schedule VI'!E295","v":0},null,null,null,null,null,null,null,{"$f":"'Schedule VI (EBS)'!E295","v":0}]
["Sch VI","Schedule of Assets",null,"(B) Bonds - Nominal 96",{"$f":"'Schedule VI'!E314","v":0},null,null,null,null,null,null,null,{"$f":"'Schedule VI (EBS)'!E314","v":0}]
["Sch VI","Schedule of Assets",null,"(B) Bonds - Nominal 121",{"$f":"'Schedule VI'!E339","v":0},null,null,null,null,null,null,null,{"$f":"'Schedule VI (EBS)'!E339","v":0}]
["Sch VI","Schedule of Assets",null,"(B) Bonds - Nominal 149",{"$f":"'Schedule VI'!E367","v":0},null,null,null,null,null,null,null,{"$f":"'Schedule VI (EBS)'!E367","v":0}]
["Sch VI","Schedule of Assets",null,"(B) Bonds - Nominal 166",{"$f":"'Schedule VI'!E384","v":0},null,null,null,null,null,null,null,{"$f":"'Schedule VI (EBS)'!E384","v":0}]
["Sch VI","Schedule of Assets",null,"(B) Bonds - Nominal 185",{"$f":"'Schedule VI'!E403","v":0},null,null,null,null,null,null,null,{"$f":"'Schedule VI (EBS)'!E403","v":0}]
["Sch VI","Schedule of Assets",null,"(B) Bonds - Nominal 204",{"$f":"'Schedule VI'!E422","v":0},null,null,null,null,null,null,null,{"$f":"'Schedule VI (EBS)'!E422","v":0}]
["Sch VI","Schedule of Assets",null,"(B) Bonds - Nominal 210",{"$f":"'Schedule VI'!E428","v":0},null,null,null,null,null,null,null,{"$f":"'Schedule VI (EBS)'!E428","v":0}]
["Sch VI","Schedule of Assets",null,"(B) Bonds - Nominal 229",{"$f":"'Schedule VI'!E447","v":0},null,null,null,null,null,null,null,{"$f":"'Schedule VI (EBS)'!E447","v":0}]
["Sch VI","Schedule of Assets",null,"(B) Bonds - Nominal 254",{"$f":"'Schedule VI'!E472","v":0},null,null,null,null,null,null,null,{"$f":"'Schedule VI (EBS)'!E472","v":0}]
["Sch VI","Schedule of Assets",null,"(B) Bonds - Nominal 286",{"$f":"'Schedule VI'!E504","v":0},null,null,null,null,null,null,null,{"$f":"'Schedule VI (EBS)'!E504","v":0}]
["Sch VI","Schedule of Assets",null,"(B) Bonds - Nominal 293",{"$f":"'Schedule VI'!E511","v":0},null,null,null,null,null,null,null,{"$f":"'Schedule VI (EBS)'!E511","v":0}]
["Sch VI","Schedule of Assets",null,"(B) Bonds - Nominal 318",{"$f":"'Schedule VI'!E536","v":0},null,null,null,null,null,null,null,{"$f":"'Schedule VI (EBS)'!E536","v":0}]
["Sch VI","Schedule of Assets",null,"(B) Bonds - Nominal 337",{"$f":"'Schedule VI'!E555","v":0},null,null,null,null,null,null,null,{"$f":"'Schedule VI (EBS)'!E555","v":0}]
["Sch VI","Schedule of Assets",null,"(B) Bonds - Nominal 356",{"$f":"'Schedule VI'!E574","v":0},null,null,null,null,null,null,null,{"$f":"'Schedule VI (EBS)'!E574","v":0}]
["Sch VI","Schedule of Assets",null,"(B) Bonds - Nominal 381",{"$f":"'Schedule VI'!E599","v":0},null,null,null,null,null,null,null,{"$f":"'Schedule VI (EBS)'!E599","v":0}]
["Sch VI","Schedule of Assets",null,"(B) Bonds - Nominal 400",{"$f":"'Schedule VI'!E618","v":0},null,null,null,null,null,null,null,{"$f":"'Schedule VI (EBS)'!E618","v":0}]
["Sch VI","Schedule of Assets",null,"(B) Bonds - Fair Value 6",{"$f":"'Schedule VI'!F224","v":0},null,null,null,null,null,null,null,{"$f":"'Schedule VI (EBS)'!F224","v":0}]
["Sch VI","Schedule of Assets",null,"(B) Bonds - Fair Value 27",{"$f":"'Schedule VI'!F245","v":0},null,null,null,null,null,null,null,{"$f":"'Schedule VI (EBS)'!F245","v":0}]
["Sch VI","Schedule of Assets",null,"(B) Bonds - Fair Value 45",{"$f":"'Schedule VI'!F263","v":0},null,null,null,null,null,null,null,{"$f":"'Schedule VI (EBS)'!F263","v":0}]
["Sch VI","Schedule of Assets",null,"(B) Bonds - Fair Value 70",{"$f":"'Schedule VI'!F288","v":0},null,null,null,null,null,null,null,{"$f":"'Schedule VI (EBS)'!F288","v":0}]
["Sch VI","Schedule of Assets",null,"(B) Bonds - Fair Value 89",{"$f":"'Schedule VI'!F307","v":0},null,null,null,null,null,null,null,{"$f":"'Schedule VI (EBS)'!F307","v":0}]
["Sch VI","Schedule of Assets",null,"(B) Bonds - Fair Value 108",{"$f":"'Schedule VI'!F326","v":0},null,null,null,null,null,null,null,{"$f":"'Schedule VI (EBS)'!F326","v":0}]
["Sch VI","Schedule of Assets",null,"(B) Bonds - Fair Value 133",{"$f":"'Schedule VI'!F351","v":0},null,null,null,null,null,null,null,{"$f":"'Schedule VI (EBS)'!F351","v":0}]
["Sch VI","Schedule of Assets",null,"(B) Bonds - Fair Value 152",{"$f":"'Schedule VI'!F370","v":0},null,null,null,null,null,null,null,{"$f":"'Schedule VI (EBS)'!F370","v":0}]
["Sch VI","Schedule of Assets",null,"(B) Bonds - Fair Value 164",{"$f":"'Schedule VI'!F382","v":0},null,null,null,null,null,null,null,{"$f":"'Schedule VI (EBS)'!F382","v":0}]
["Sch VI","Schedule of Assets",null,"(B) Bonds - Fair Value 178",{"$f":"'Schedule VI'!F396","v":0},null,null,null,null,null,null,null,{"$f":"'Schedule VI (EBS)'!F396","v":0}]
["Sch VI","Schedule of Assets",null,"(B) Bonds - Fair Value 197",{"$f":"'Schedule VI'!F415","v":0},null,null,null,null,null,null,null,{"$f":"'Schedule VI (EBS)'!F415","v":0}]
["Sch VI","Schedule of Assets",null,"(B) Bonds - Fair Value 222",{"$f":"'Schedule VI'!F440","v":0},null,null,null,null,null,null,null,{"$f":"'Schedule VI (EBS)'!F440","v":0}]
["Sch VI","Schedule of Assets",null,"(B) Bonds - Fair Value 241",{"$f":"'Schedule VI'!F459","v":0},null,null,null,null,null,null,null,{"$f":"'Schedule VI (EBS)'!F459","v":0}]
["Sch VI","Schedule of Assets",null,"(B) Bonds - Fair Value 266",{"$f":"'Schedule VI'!F484","v":0},null,null,null,null,null,null,null,{"$f":"'Schedule VI (EBS)'!F484","v":0}]
["Sch VI","Schedule of Assets",null,"(B) Bonds - Fair Value 285",{"$f":"'Schedule VI'!F503","v":0},null,null,null,null,null,null,null,{"$f":"'Schedule VI (EBS)'!F503","v":0}]
["Sch VI","Schedule of Assets",null,"(B) Bonds - Fair Value 304",{"$f":"'Schedule VI'!F522","v":0},null,null,null,null,null,null,null,{"$f":"'Schedule VI (EBS)'!F522","v":0}]
["Sch VI","Schedule of Assets",null,"(B) Bonds - Fair Value 325",{"$f":"'Schedule VI'!F543","v":0},null,null,null,null,null,null,null,{"$f":"'Schedule VI (EBS)'!F543","v":0}]
["Sch VI","Schedule of Assets",null,"(B) Bonds - Fair Value 330",{"$f":"'Schedule VI'!F548","v":0},null,null,null,null,null,null,null,{"$f":"'Schedule VI (EBS)'!F548","v":0}]
["Sch VI","Schedule of Assets",null,"(B) Bonds - Fair Value 349",{"$f":"'Schedule VI'!F567","v":0},null,null,null,null,null,null,null,{"$f":"'Schedule VI (EBS)'!F567","v":0}]
["Sch VI","Schedule of Assets",null,"(B) Bonds - Fair Value 374",{"$f":"'Schedule VI'!F592","v":0},null,null,null,null,null,null,null,{"$f":"'Schedule VI (EBS)'!F592","v":0}]
["Sch VI","Schedule of Assets",null,"(B) Bonds - Fair Value 393",{"$f":"'Schedule VI'!F611","v":0},null,null,null,null,null,null,null,{"$f":"'Schedule VI (EBS)'!F611","v":0}]
["Sch VI","Schedule of Assets",null,"(B) Bonds - Weighted Average YTM 18",{"$f":"'Schedule VI'!G236","v":0},null,null,null,null,null,null,null,{"$f":"'Schedule VI (EBS)'!G236","v":0}]
["Sch VI","Schedule of Assets",null,"(B) Bonds - Weighted Average YTM 37",{"$f":"'Schedule VI'!G255","v":0},null,null,null,null,null,null,null,{"$f":"'Schedule VI (EBS)'!G255","v":0}]
["Sch VI","Schedule of Assets",null,"(B) Bonds - Weighted Average YTM 46",{"$f":"'Schedule VI'!G264","v":0},null,null,null,null,null,null,null,{"$f":"'Schedule VI (EBS)'!G264","v":0}]
["Sch VI","Schedule of Assets",null,"(B) Bonds - Weighted Average YTM 63",{"$f":"'Schedule VI'!G281","v":0},null,null,null,null,null,null,null,{"$f":"'Schedule VI (EBS)'!G281","v":0}]
["Sch VI","Schedule of Assets",null,"(B) Bonds - Weighted Average YTM 82",{"$f":"'Schedule VI'!G300","v":0},null,null,null,null,null,null,null,{"$f":"'Schedule VI (EBS)'!G300","v":0}]
["Sch VI","Schedule of Assets",null,"(B) Bonds - Weighted Average YTM 107",{"$f":"'Schedule VI'!G325","v":0},null,null,null,null,null,null,null,{"$f":"'Schedule VI (EBS)'!G325","v":0}]
["Sch VI","Schedule of Assets",null,"(B) Bonds - Weighted Average YTM 126",{"$f":"'Schedule VI'!G344","v":0},null,null,null,null,null,null,null,{"$f":"'Schedule VI (EBS)'!G344","v":0}]
["Sch VI","Schedule of Assets",null,"(B) Bonds - Weighted Average YTM 145",{"$f":"'Schedule VI'!G363","v":0},null,null,null,null,null,null,null,{"$f":"'Schedule VI (EBS)'!G363","v":0}]
["Sch VI","Schedule of Assets",null,"(B) Bonds - Weighted Average YTM 170",{"$f":"'Schedule VI'!G388","v":0},null,null,null,null,null,null,null,{"$f":"'Schedule VI (EBS)'!G388","v":0}]
["Sch VI","Schedule of Assets",null,"(B) Bonds - Weighted Average YTM 189",{"$f":"'Schedule VI'!G407","v":0},null,null,null,null,null,null,null,{"$f":"'Schedule VI (EBS)'!G407","v":0}]
["Sch VI","Schedule of Assets",null,"(B) Bonds - Weighted Average YTM 207",{"$f":"'Schedule VI'!G425","v":0},null,null,null,null,null,null,null,{"$f":"'Schedule VI (EBS)'!G425","v":0}]
["Sch VI","Schedule of Assets",null,"(B) Bonds - Weighted Average YTM 215",{"$f":"'Schedule VI'!G433","v":0},null,null,null,null,null,null,null,{"$f":"'Schedule VI (EBS)'!G433","v":0}]
["Sch VI","Schedule of Assets",null,"(B) Bonds - Weighted Average YTM 234",{"$f":"'Schedule VI'!G452","v":0},null,null,null,null,null,null,null,{"$f":"'Schedule VI (EBS)'!G452","v":0}]
["Sch VI","Schedule of Assets",null,"(B) Bonds - Weighted Average YTM 259",{"$f":"'Schedule VI'!G477","v":0},null,null,null,null,null,null,null,{"$f":"'Schedule VI (EBS)'!G477","v":0}]
["Sch VI","Schedule of Assets",null,"(B) Bonds - Weighted Average YTM 278",{"$f":"'Schedule VI'!G496","v":0},null,null,null,null,null,null,null,{"$f":"'Schedule VI (EBS)'!G496","v":0}]
["Sch VI","Schedule of Assets",null,"(B) Bonds - Weighted Average YTM 297",{"$f":"'Schedule VI'!G515","v":0},null,null,null,null,null,null,null,{"$f":"'Schedule VI (EBS)'!G515","v":0}]
["Sch VI","Schedule of Assets",null,"(B) Bonds - Weighted Average YTM 322",{"$f":"'Schedule VI'!G540","v":0},null,null,null,null,null,null,null,{"$f":"'Schedule VI (EBS)'!G540","v":0}]
["Sch VI","Schedule of Assets",null,"(B) Bonds - Weighted Average YTM 341",{"$f":"'Schedule VI'!G559","v":0},null,null,null,null,null,null,null,{"$f":"'Schedule VI (EBS)'!G559","v":0}]
["Sch VI","Schedule of Assets",null,"(B) Bonds - Weighted Average YTM 348",{"$f":"'Schedule VI'!G566","v":0},null,null,null,null,null,null,null,{"$f":"'Schedule VI (EBS)'!G566","v":0}]
["Sch VI","Schedule of Assets",null,"(B) Bonds - Weighted Average YTM 367",{"$f":"'Schedule VI'!G585","v":0},null,null,null,null,null,null,null,{"$f":"'Schedule VI (EBS)'!G585","v":0}]
["Sch VI","Schedule of Assets",null,"(B) Bonds - Weighted Average YTM 386",{"$f":"'Schedule VI'!G604","v":0},null,null,null,null,null,null,null,{"$f":"'Schedule VI (EBS)'!G604","v":0}]
["Sch VI","Schedule of Assets",null,"(B) Bonds - Effective Duration 11",{"$f":"'Schedule VI'!H229","v":0},null,null,null,null,null,null,null,{"$f":"'Schedule VI (EBS)'!H229","v":0}]
["Sch VI","Schedule of Assets",null,"(B) Bonds - Effective Duration 30",{"$f":"'Schedule VI'!H248","v":0},null,null,null,null,null,null,null,{"$f":"'Schedule VI (EBS)'!H248","v":0}]
["Sch VI","Schedule of Assets",null,"(B) Bonds - Effective Duration 49",{"$f":"'Schedule VI'!H267","v":0},null,null,null,null,null,null,null,{"$f":"'Schedule VI (EBS)'!H267","v":0}]
["Sch VI","Schedule of Assets",null,"(B) Bonds - Effective Duration 74",{"$f":"'Schedule VI'!H292","v":0},null,null,null,null,null,null,null,{"$f":"'Schedule VI (EBS)'!H292","v":0}]
["Sch VI","Schedule of Assets",null,"(B) Bonds - Effective Duration 85",{"$f":"'Schedule VI'!H303","v":0},null,null,null,null,null,null,null,{"$f":"'Schedule VI (EBS)'!H303","v":0}]
["Sch VI","Schedule of Assets",null,"(B) Bonds - Effective Duration 119",{"$f":"'Schedule VI'!H337","v":0},null,null,null,null,null,null,null,{"$f":"'Schedule VI (EBS)'!H337","v":0}]
["Sch VI","Schedule of Assets",null,"(B) Bonds - Effective Duration 138",{"$f":"'Schedule VI'!H356","v":0},null,null,null,null,null,null,null,{"$f":"'Schedule VI (EBS)'!H356","v":0}]
["Sch VI","Schedule of Assets",null,"(B) Bonds - Effective Duration 157",{"$f":"'Schedule VI'!H375","v":0},null,null,null,null,null,null,null,{"$f":"'Schedule VI (EBS)'!H375","v":0}]
["Sch VI","Schedule of Assets",null,"(B) Bonds - Effective Duration 163",{"$f":"'Schedule VI'!H381","v":0},null,null,null,null,null,null,null,{"$f":"'Schedule VI (EBS)'!H381","v":0}]
["Sch VI","Schedule of Assets",null,"(B) Bonds - Effective Duration 182",{"$f":"'Schedule VI'!H400","v":0},null,null,null,null,null,null,null,{"$f":"'Schedule VI (EBS)'!H400","v":0}]
["Sch VI","Schedule of Assets",null,"(B) Bonds - Effective Duration 201",{"$f":"'Schedule VI'!H419","v":0},null,null,null,null,null,null,null,{"$f":"'Schedule VI (EBS)'!H419","v":0}]
["Sch VI","Schedule of Assets",null,"(B) Bonds - Effective Duration 226",{"$f":"'Schedule VI'!H444","v":0},null,null,null,null,null,null,null,{"$f":"'Schedule VI (EBS)'!H444","v":0}]
["Sch VI","Schedule of Assets",null,"(B) Bonds - Effective Duration 246",{"$f":"'Schedule VI'!H464","v":0},null,null,null,null,null,null,null,{"$f":"'Schedule VI (EBS)'!H464","v":0}]
["Sch VI","Schedule of Assets",null,"(B) Bonds - Effective Duration 271",{"$f":"'Schedule VI'!H489","v":0},null,null,null,null,null,null,null,{"$f":"'Schedule VI (EBS)'!H489","v":0}]
["Sch VI","Schedule of Assets",null,"(B) Bonds - Effective Duration 290",{"$f":"'Schedule VI'!H508","v":0},null,null,null,null,null,null,null,{"$f":"'Schedule VI (EBS)'!H508","v":0}]
["Sch VI","Schedule of Assets",null,"(B) Bonds - Effective Duration 309",{"$f":"'Schedule VI'!H527","v":0},null,null,null,null,null,null,null,{"$f":"'Schedule VI (EBS)'!H527","v":0}]
["Sch VI","Schedule of Assets",null,"(B) Bonds - Effective Duration 315",{"$f":"'Schedule VI'!H533","v":0},null,null,null,null,null,null,null,{"$f":"'Schedule VI (EBS)'!H533","v":0}]
["Sch VI","Schedule of Assets",null,"(B) Bonds - Effective Duration 334",{"$f":"'Schedule VI'!H552","v":0},null,null,null,null,null,null,null,{"$f":"'Schedule VI (EBS)'!H552","v":0}]
["Sch VI","Schedule of Assets",null,"(B) Bonds - Effective Duration 359",{"$f":"'Schedule VI'!H577","v":0},null,null,null,null,null,null,null,{"$f":"'Schedule VI (EBS)'!H577","v":0}]
["Sch VI","Schedule of Assets",null,"(B) Bonds - Effective Duration 383",{"$f":"'Schedule VI'!H601","v":0},null,null,null,null,null,null,null,{"$f":"'Schedule VI (EBS)'!H601","v":0}]
["Sch VI","Schedule of Assets",null,"(B) Bonds - Effective Duration 398",{"$f":"'Schedule VI'!H616","v":0},null,null,null,null,null,null,null,{"$f":"'Schedule VI (EBS)'!H616","v":0}]
["Sch VI","Schedule of Assets",null,"(B) Bonds - Comments 23",{"$f":"'Schedule VI'!I241","v":0},null,null,null,null,null,null,null,{"$f":"'Schedule VI (EBS)'!I241","v":0}]
["Sch VI","Schedule of Assets",null,"(B) Bonds - Comments 42",{"$f":"'Schedule VI'!I260","v":0},null,null,null,null,null,null,null,{"$f":"'Schedule VI (EBS)'!I260","v":0}]
["Sch VI","Schedule of Assets",null,"(B) Bonds - Comments 61",{"$f":"'Schedule VI'!I279","v":0},null,null,null,null,null,null,null,{"$f":"'Schedule VI (EBS)'!I279","v":0}]
["Sch VI","Schedule of Assets",null,"(B) Bonds - Comments 67",{"$f":"'Schedule VI'!I285","v":0},null,null,null,null,null,null,null,{"$f":"'Schedule VI (EBS)'!I285","v":0}]
["Sch VI","Schedule of Assets",null,"(B) Bonds - Comments 86",{"$f":"'Schedule VI'!I304","v":0},null,null,null,null,null,null,null,{"$f":"'Schedule VI (EBS)'!I304","v":0}]
["Sch VI","Schedule of Assets",null,"(B) Bonds - Comments 111",{"$f":"'Schedule VI'!I329","v":0},null,null,null,null,null,null,null,{"$f":"'Schedule VI (EBS)'!I329","v":0}]
["Sch VI","Schedule of Assets",null,"(B) Bonds - Comments 124",{"$f":"'Schedule VI'!I342","v":0},null,null,null,null,null,null,null,{"$f":"'Schedule VI (EBS)'!I342","v":0}]
["Sch VI","Schedule of Assets",null,"(B) Bonds - Comments 150",{"$f":"'Schedule VI'!I368","v":0},null,null,null,null,null,null,null,{"$f":"'Schedule VI (EBS)'!I368","v":0}]
["Sch VI","Schedule of Assets",null,"(B) Bonds - Comments 175",{"$f":"'Schedule VI'!I393","v":0},null,null,null,null,null,null,null,{"$f":"'Schedule VI (EBS)'!I393","v":0}]
["Sch VI","Schedule of Assets",null,"(B) Bonds - Comments 194",{"$f":"'Schedule VI'!I412","v":0},null,null,null,null,null,null,null,{"$f":"'Schedule VI (EBS)'!I412","v":0}]
["Sch VI","Schedule of Assets",null,"(B) Bonds - Comments 213",{"$f":"'Schedule VI'!I431","v":0},null,null,null,null,null,null,null,{"$f":"'Schedule VI (EBS)'!I431","v":0}]
["Sch VI","Schedule of Assets",null,"(B) Bonds - Comments 219",{"$f":"'Schedule VI'!I437","v":0},null,null,null,null,null,null,null,{"$f":"'Schedule VI (EBS)'!I437","v":0}]
["Sch VI","Schedule of Assets",null,"(B) Bonds - Comments 238",{"$f":"'Schedule VI'!I456","v":0},null,null,null,null,null,null,null,{"$f":"'Schedule VI (EBS)'!I456","v":0}]
["Sch VI","Schedule of Assets",null,"(B) Bonds - Comments 261",{"$f":"'Schedule VI'!I479","v":0},null,null,null,null,null,null,null,{"$f":"'Schedule VI (EBS)'!I479","v":0}]
["Sch VI","Schedule of Assets",null,"(B) Bonds - Comments 283",{"$f":"'Schedule VI'!I501","v":0},null,null,null,null,null,null,null,{"$f":"'Schedule VI (EBS)'!I501","v":0}]
["Sch VI","Schedule of Assets",null,"(B) Bonds - Comments 302",{"$f":"'Schedule VI'!I520","v":0},null,null,null,null,null,null,null,{"$f":"'Schedule VI (EBS)'!I520","v":0}]
["Sch VI","Schedule of Assets",null,"(B) Bonds - Comments 327",{"$f":"'Schedule VI'!I545","v":0},null,null,null,null,null,null,null,{"$f":"'Schedule VI (EBS)'!I545","v":0}]
["Sch VI","Schedule of Assets",null,"(B) Bonds - Comments 346",{"$f":"'Schedule VI'!I564","v":0},null,null,null,null,null,null,null,{"$f":"'Schedule VI (EBS)'!I564","v":0}]
["Sch VI","Schedule of Assets",null,"(B) Bonds - Comments 352",{"$f":"'Schedule VI'!I570","v":0},null,null,null,null,null,null,null,{"$f":"'Schedule VI (EBS)'!I570","v":0}]
["Sch VI","Schedule of Assets",null,"(B) Bonds - Comments 371",{"$f":"'Schedule VI'!I589","v":0},null,null,null,null,null,null,null,{"$f":"'Schedule VI (EBS)'!I589","v":0}]
["Sch VI","Schedule of Assets",null,"(B) Bonds - Comments 390",{"$f":"'Schedule VI'!I608","v":0},null,null,null,null,null,null,null,{"$f":"'Schedule VI (EBS)'!I608","v":0}]
["Sch VI","Schedule of Assets",null,"(B) Bonds Sovereign Debt - Country 21",{"$f":"'Schedule VI'!C647","v":"Select"},null,null,null,null,null,null,null,{"$f":"'Schedule VI (EBS)'!C647","v":"Select"}]
["Sch VI","Schedule of Assets",null,"(B) Bonds Sovereign Debt - Country 34",{"$f":"'Schedule VI'!C660","v":"Select"},null,null,null,null,null,null,null,{"$f":"'Schedule VI (EBS)'!C660","v":"Select"}]
["Sch VI","Schedule of Assets",null,"(B) Bonds Sovereign Debt - Country 53",{"$f":"'Schedule VI'!C679","v":"Select"},null,null,null,null,null,null,null,{"$f":"'Schedule VI (EBS)'!C679","v":"Select"}]
["Sch VI","Schedule of Assets",null,"(B) Bonds Sovereign Debt - Country 78",{"$f":"'Schedule VI'!C704","v":"Select"},null,null,null,null,null,null,null,{"$f":"'Schedule VI (EBS)'!C704","v":"Select"}]
["Sch VI","Schedule of Assets",null,"(B) Bonds Sovereign Debt - Country 97",{"$f":"'Schedule VI'!C723","v":"Select"},null,null,null,null,null,null,null,{"$f":"'Schedule VI (EBS)'!C723","v":"Select"}]
["Sch VI","Schedule of Assets",null,"(B) Bonds Sovereign Debt - Country 103",{"$f":"'Schedule VI'!C729","v":"Select"},null,null,null,null,null,null,null,{"$f":"'Schedule VI (EBS)'!C729","v":"Select"}]
["Sch VI","Schedule of Assets",null,"(B) Bonds Sovereign Debt - Country 122",{"$f":"'Schedule VI'!C748","v":"Select"},null,null,null,null,null,null,null,{"$f":"'Schedule VI (EBS)'!C748","v":"Select"}]
["Sch VI","Schedule of Assets",null,"(B) Bonds Sovereign Debt - Country 141",{"$f":"'Schedule VI'!C767","v":"Select"},null,null,null,null,null,null,null,{"$f":"'Schedule VI (EBS)'!C767","v":"Select"}]
["Sch VI","Schedule of Assets",null,"(B) Bonds Sovereign Debt - Country 162",{"$f":"'Schedule VI'!C788","v":"Select"},null,null,null,null,null,null,null,{"$f":"'Schedule VI (EBS)'!C788","v":"Select"}]
["Sch VI","Schedule of Assets",null,"(B) Bonds Sovereign Debt - Country 186",{"$f":"'Schedule VI'!C812","v":"Select"},null,null,null,null,null,null,null,{"$f":"'Schedule VI (EBS)'!C812","v":"Select"}]
["Sch VI","Schedule of Assets",null,"(B) Bonds Sovereign Debt - Currency 5",{"$f":"'Schedule VI'!D631","v":"Select"},null,null,null,null,null,null,null,{"$f":"'Schedule VI (EBS)'!D631","v":"Select"}]
["Sch VI","Schedule of Assets",null,"(B) Bonds Sovereign Debt - Currency 30",{"$f":"'Schedule VI'!D656","v":"Select"},null,null,null,null,null,null,null,{"$f":"'Schedule VI (EBS)'!D656","v":"Select"}]
["Sch VI","Schedule of Assets",null,"(B) Bonds Sovereign Debt - Currency 49",{"$f":"'Schedule VI'!D675","v":"Select"},null,null,null,null,null,null,null,{"$f":"'Schedule VI (EBS)'!D675","v":"Select"}]
["Sch VI","Schedule of Assets",null,"(B) Bonds Sovereign Debt - Currency 74",{"$f":"'Schedule VI'!D700","v":"Select"},null,null,null,null,null,null,null,{"$f":"'Schedule VI (EBS)'!D700","v":"Select"}]
["Sch VI","Schedule of Assets",null,"(B) Bonds Sovereign Debt - Currency 93",{"$f":"'Schedule VI'!D719","v":"Select"},null,null,null,null,null,null,null,{"$f":"'Schedule VI (EBS)'!D719","v":"Select"}]
["Sch VI","Schedule of Assets",null,"(B) Bonds Sovereign Debt - Currency 103",{"$f":"'Schedule VI'!D729","v":"Select"},null,null,null,null,null,null,null,{"$f":"'Schedule VI (EBS)'!D729","v":"Select"}]
["Sch VI","Schedule of Assets",null,"(B) Bonds Sovereign Debt - Currency 119",{"$f":"'Schedule VI'!D745","v":"Select"},null,null,null,null,null,null,null,{"$f":"'Schedule VI (EBS)'!D745","v":"Select"}]
["Sch VI","Schedule of Assets",null,"(B) Bonds Sovereign Debt - Currency 138",{"$f":"'Schedule VI'!D764","v":"Select"},null,null,null,null,null,null,null,{"$f":"'Schedule VI (EBS)'!D764","v":"Select"}]
["Sch VI","Schedule of Assets",null,"(B) Bonds Sovereign Debt - Currency 163",{"$f":"'Schedule VI'!D789","v":"Select"},null,null,null,null,null,null,null,{"$f":"'Schedule VI (EBS)'!D789","v":"Select"}]
["Sch VI","Schedule of Assets",null,"(B) Bonds Sovereign Debt - Currency 182",{"$f":"'Schedule VI'!D808","v":"Select"},null,null,null,null,null,null,null,{"$f":"'Schedule VI (EBS)'!D808","v":"Select"}]
["Sch VI","Schedule of Assets",null,"(B) Bonds Sovereign Debt - Rating 1",{"$f":"'Schedule VI'!E627","v":"Select"},null,null,null,null,null,null,null,{"$f":"'Schedule VI (EBS)'!E627","v":"Select"}]
["Sch VI","Schedule of Assets",null,"(B) Bonds Sovereign Debt - Rating 26",{"$f":"'Schedule VI'!E652","v":"Select"},null,null,null,null,null,null,null,{"$f":"'Schedule VI (EBS)'!E652","v":"Select"}]
["Sch VI","Schedule of Assets",null,"(B) Bonds Sovereign Debt - Rating 45",{"$f":"'Schedule VI'!E671","v":"Select"},null,null,null,null,null,null,null,{"$f":"'Schedule VI (EBS)'!E671","v":"Select"}]
["Sch VI","Schedule of Assets",null,"(B) Bonds Sovereign Debt - Rating 64",{"$f":"'Schedule VI'!E690","v":"Select"},null,null,null,null,null,null,null,{"$f":"'Schedule VI (EBS)'!E690","v":"Select"}]
["Sch VI","Schedule of Assets",null,"(B) Bonds Sovereign Debt - Rating 71",{"$f":"'Schedule VI'!E697","v":"Select"},null,null,null,null,null,null,null,{"$f":"'Schedule VI (EBS)'!E697","v":"Select"}]
["Sch VI","Schedule of Assets",null,"(B) Bonds Sovereign Debt - Rating 90",{"$f":"'Schedule VI'!E716","v":"Select"},null,null,null,null,null,null,null,{"$f":"'Schedule VI (EBS)'!E716","v":"Select"}]
["Sch VI","Schedule of Assets",null,"(B) Bonds Sovereign Debt - Rating 115",{"$f":"'Schedule VI'!E741","v":"Select"},null,null,null,null,null,null,null,{"$f":"'Schedule VI (EBS)'!E741","v":"Select"}]
["Sch VI","Schedule of Assets",null,"(B) Bonds Sovereign Debt - Rating 134",{"$f":"'Schedule VI'!E760","v":"Select"},null,null,null,null,null,null,null,{"$f":"'Schedule VI (EBS)'!E760","v":"Select"}]
["Sch VI","Schedule of Assets",null,"(B) Bonds Sovereign Debt - Rating 153",{"$f":"'Schedule VI'!E779","v":"Select"},null,null,null,null,null,null,null,{"$f":"'Schedule VI (EBS)'!E779","v":"Select"}]
["Sch VI","Schedule of Assets",null,"(B) Bonds Sovereign Debt - Rating 178",{"$f":"'Schedule VI'!E804","v":"Select"},null,null,null,null,null,null,null,{"$f":"'Schedule VI (EBS)'!E804","v":"Select"}]
["Sch VI","Schedule of Assets",null,"(B) Bonds Sovereign Debt - Rating 181",{"$f":"'Schedule VI'!E807","v":"Select"},null,null,null,null,null,null,null,{"$f":"'Schedule VI (EBS)'!E807","v":"Select"}]
["Sch VI","Schedule of Assets",null,"(B) Bonds Sovereign Debt - Fair Value 4",{"$f":"'Schedule VI'!F630","v":0},null,null,null,null,null,null,null,{"$f":"'Schedule VI (EBS)'!F630","v":0}]
["Sch VI","Schedule of Assets",null,"(B) Bonds Sovereign Debt - Fair Value 23",{"$f":"'Schedule VI'!F649","v":0},null,null,null,null,null,null,null,{"$f":"'Schedule VI (EBS)'!F649","v":0}]
["Sch VI","Schedule of Assets",null,"(B) Bonds Sovereign Debt - Fair Value 42",{"$f":"'Schedule VI'!F668","v":0},null,null,null,null,null,null,null,{"$f":"'Schedule VI (EBS)'!F668","v":0}]
["Sch VI","Schedule of Assets",null,"(B) Bonds Sovereign Debt - Fair Value 67",{"$f":"'Schedule VI'!F693","v":0},null,null,null,null,null,null,null,{"$f":"'Schedule VI (EBS)'!F693","v":0}]
["Sch VI","Schedule of Assets",null,"(B) Bonds Sovereign Debt - Fair Value 86",{"$f":"'Schedule VI'!F712","v":0},null,null,null,null,null,null,null,{"$f":"'Schedule VI (EBS)'!F712","v":0}]
["Sch VI","Schedule of Assets",null,"(B) Bonds Sovereign Debt - Fair Value 105",{"$f":"'Schedule VI'!F731","v":0},null,null,null,null,null,null,null,{"$f":"'Schedule VI (EBS)'!F731","v":0}]
["Sch VI","Schedule of Assets",null,"(B) Bonds Sovereign Debt - Fair Value 130",{"$f":"'Schedule VI'!F756","v":0},null,null,null,null,null,null,null,{"$f":"'Schedule VI (EBS)'!F756","v":0}]
["Sch VI","Schedule of Assets",null,"(B) Bonds Sovereign Debt - Fair Value 142",{"$f":"'Schedule VI'!F768","v":0},null,null,null,null,null,null,null,{"$f":"'Schedule VI (EBS)'!F768","v":0}]
["Sch VI","Schedule of Assets",null,"(B) Bonds Sovereign Debt - Fair Value 156",{"$f":"'Schedule VI'!F782","v":0},null,null,null,null,null,null,null,{"$f":"'Schedule VI (EBS)'!F782","v":0}]
["Sch VI","Schedule of Assets",null,"(B) Bonds Sovereign Debt - Fair Value 175",{"$f":"'Schedule VI'!F801","v":0},null,null,null,null,null,null,null,{"$f":"'Schedule VI (EBS)'!F801","v":0}]
["Sch VI","Schedule of Assets",null,"(B) Bonds Sovereign Debt - Fair Value 194",{"$f":"'Schedule VI'!F820","v":0},null,null,null,null,null,null,null,{"$f":"'Schedule VI (EBS)'!F820","v":0}]
["Sch VI","Schedule of Assets",null,"(B) Bonds Sovereign Debt - Comments 19",{"$f":"'Schedule VI'!G645","v":0},null,null,null,null,null,null,null,{"$f":"'Schedule VI (EBS)'!G645","v":0}]
["Sch VI","Schedule of Assets",null,"(B) Bonds Sovereign Debt - Comments 38",{"$f":"'Schedule VI'!G664","v":0},null,null,null,null,null,null,null,{"$f":"'Schedule VI (EBS)'!G664","v":0}]
["Sch VI","Schedule of Assets",null,"(B) Bonds Sovereign Debt - Comments 57",{"$f":"'Schedule VI'!G683","v":0},null,null,null,null,null,null,null,{"$f":"'Schedule VI (EBS)'!G683","v":0}]
["Sch VI","Schedule of Assets",null,"(B) Bonds Sovereign Debt - Comments 79",{"$f":"'Schedule VI'!G705","v":0},null,null,null,null,null,null,null,{"$f":"'Schedule VI (EBS)'!G705","v":0}]
["Sch VI","Schedule of Assets",null,"(B) Bonds Sovereign Debt - Comments 102",{"$f":"'Schedule VI'!G728","v":0},null,null,null,null,null,null,null,{"$f":"'Schedule VI (EBS)'!G728","v":0}]
["Sch VI","Schedule of Assets",null,"(B) Bonds Sovereign Debt - Comments 108",{"$f":"'Schedule VI'!G734","v":0},null,null,null,null,null,null,null,{"$f":"'Schedule VI (EBS)'!G734","v":0}]
["Sch VI","Schedule of Assets",null,"(B) Bonds Sovereign Debt - Comments 127",{"$f":"'Schedule VI'!G753","v":0},null,null,null,null,null,null,null,{"$f":"'Schedule VI (EBS)'!G753","v":0}]
["Sch VI","Schedule of Assets",null,"(B) Bonds Sovereign Debt - Comments 146",{"$f":"'Schedule VI'!G772","v":0},null,null,null,null,null,null,null,{"$f":"'Schedule VI (EBS)'!G772","v":0}]
["Sch VI","Schedule of Assets",null,"(B) Bonds Sovereign Debt - Comments 171",{"$f":"'Schedule VI'!G797","v":0},null,null,null,null,null,null,null,{"$f":"'Schedule VI (EBS)'!G797","v":0}]
["Sch VI","Schedule of Assets",null,"(B) Bonds Sovereign Debt - Comments 190",{"$f":"'Schedule VI'!G816","v":0},null,null,null,null,null,null,null,{"$f":"'Schedule VI (EBS)'!G816","v":0}]
["Sch VI","Schedule of Assets",null,"(C) ABS and Struct. Sec. - Asset Type 14",{"$f":"'Schedule VI'!B848","v":"Select"},null,null,null,null,null,null,null,{"$f":"'Schedule VI (EBS)'!B848","v":"Select"}]
["Sch VI","Schedule of Assets",null,"(C) ABS and Struct. Sec. - Asset Type 39",{"$f":"'Schedule VI'!B873","v":"Select"},null,null,null,null,null,null,null,{"$f":"'Schedule VI (EBS)'!B873","v":"Select"}]
["Sch VI","Schedule of Assets",null,"(C) ABS and Struct. Sec. - Asset Type 53",{"$f":"'Schedule VI'!B887","v":"Select"},null,null,null,null,null,null,null,{"$f":"'Schedule VI (EBS)'!B887","v":"Select"}]
["Sch VI","Schedule of Assets",null,"(C) ABS and Struct. Sec. - Asset Type 59",{"$f":"'Schedule VI'!B893","v":"Select"},null,null,null,null,null,null,null,{"$f":"'Schedule VI (EBS)'!B893","v":"Select"}]
["Sch VI","Schedule of Assets",null,"(C) ABS and Struct. Sec. - Asset Type 78",{"$f":"'Schedule VI'!B912","v":"Select"},null,null,null,null,null,null,null,{"$f":"'Schedule VI (EBS)'!B912","v":"Select"}]
["Sch VI","Schedule of Assets",null,"(C) ABS and Struct. Sec. - Asset Type 97",{"$f":"'Schedule VI'!B931","v":"Select"},null,null,null,null,null,null,null,{"$f":"'Schedule VI (EBS)'!B931","v":"Select"}]
["Sch VI","Schedule of Assets",null,"(C) ABS and Struct. Sec. - Asset Type 122",{"$f":"'Schedule VI'!B956","v":"Select"},null,null,null,null,null,null,null,{"$f":"'Schedule VI (EBS)'!B956","v":"Select"}]
["Sch VI","Schedule of Assets",null,"(C) ABS and Struct. Sec. - Asset Type 141",{"$f":"'Schedule VI'!B975","v":"Select"},null,null,null,null,null,null,null,{"$f":"'Schedule VI (EBS)'!B975","v":"Select"}]
["Sch VI","Schedule of Assets",null,"(C) ABS and Struct. Sec. - Currency 16",{"$f":"'Schedule VI'!C850","v":"Select"},null,null,null,null,null,null,null,{"$f":"'Schedule VI (EBS)'!C850","v":"Select"}]
["Sch VI","Schedule of Assets",null,"(C) ABS and Struct. Sec. - Currency 30",{"$f":"'Schedule VI'!C864","v":"Select"},null,null,null,null,null,null,null,{"$f":"'Schedule VI (EBS)'!C864","v":"Select"}]
["Sch VI","Schedule of Assets",null,"(C) ABS and Struct. Sec. - Currency 55",{"$f":"'Schedule VI'!C889","v":"Select"},null,null,null,null,null,null,null,{"$f":"'Schedule VI (EBS)'!C889","v":"Select"}]
["Sch VI","Schedule of Assets",null,"(C) ABS and Struct. Sec. - Currency 80",{"$f":"'Schedule VI'!C914","v":"Select"},null,null,null,null,null,null,null,{"$f":"'Schedule VI (EBS)'!C914","v":"Select"}]
["Sch VI","Schedule of Assets",null,"(C) ABS and Struct. Sec. - Currency 99",{"$f":"'Schedule VI'!C933","v":"Select"},null,null,null,null,null,null,null,{"$f":"'Schedule VI (EBS)'!C933","v":"Select"}]
["Sch VI","Schedule of Assets",null,"(C) ABS and Struct. Sec. - Currency 118",{"$f":"'Schedule VI'!C952","v":"Select"},null,null,null,null,null,null,null,{"$f":"'Schedule VI (EBS)'!C952","v":"Select"}]
["Sch VI","Schedule of Assets",null,"(C) ABS and Struct. Sec. - Currency 124",{"$f":"'Schedule VI'!C958","v":"Select"},null,null,null,null,null,null,null,{"$f":"'Schedule VI (EBS)'!C958","v":"Select"}]
["Sch VI","Schedule of Assets",null,"(C) ABS and Struct. Sec. - Currency 143",{"$f":"'Schedule VI'!C977","v":"Select"},null,null,null,null,null,null,null,{"$f":"'Schedule VI (EBS)'!C977","v":"Select"}]
["Sch VI","Schedule of Assets",null,"(C) ABS and Struct. Sec. - Rating 17",{"$f":"'Schedule VI'!D851","v":"Select"},null,null,null,null,null,null,null,{"$f":"'Schedule VI (EBS)'!D851","v":"Select"}]
["Sch VI","Schedule of Assets",null,"(C) ABS and Struct. Sec. - Rating 38",{"$f":"'Schedule VI'!D872","v":"Select"},null,null,null,null,null,null,null,{"$f":"'Schedule VI (EBS)'!D872","v":"Select"}]
["Sch VI","Schedule of Assets",null,"(C) ABS and Struct. Sec. - Rating 57",{"$f":"'Schedule VI'!D891","v":"Select"},null,null,null,null,null,null,null,{"$f":"'Schedule VI (EBS)'!D891","v":"Select"}]
["Sch VI","Schedule of Assets",null,"(C) ABS and Struct. Sec. - Rating 82",{"$f":"'Schedule VI'!D916","v":"Select"},null,null,null,null,null,null,null,{"$f":"'Schedule VI (EBS)'!D916","v":"Select"}]
["Sch VI","Schedule of Assets",null,"(C) ABS and Struct. Sec. - Rating 101",{"$f":"'Schedule VI'!D935","v":"Select"},null,null,null,null,null,null,null,{"$f":"'Schedule VI (EBS)'!D935","v":"Select"}]
["Sch VI","Schedule of Assets",null,"(C) ABS and Struct. Sec. - Rating 107",{"$f":"'Schedule VI'!D941","v":"Select"},null,null,null,null,null,null,null,{"$f":"'Schedule VI (EBS)'!D941","v":"Select"}]
["Sch VI","Schedule of Assets",null,"(C) ABS and Struct. Sec. - Rating 126",{"$f":"'Schedule VI'!D960","v":"Select"},null,null,null,null,null,null,null,{"$f":"'Schedule VI (EBS)'!D960","v":"Select"}]
["Sch VI","Schedule of Assets",null,"(C) ABS and Struct. Sec. - Rating 145",{"$f":"'Schedule VI'!D979","v":"Select"},null,null,null,null,null,null,null,{"$f":"'Schedule VI (EBS)'!D979","v":"Select"}]
["Sch VI","Schedule of Assets",null,"(C) ABS and Struct. Sec. - Nominal Amount 28",{"$f":"'Schedule VI'!E862","v":0},null,null,null,null,null,null,null,{"$f":"'Schedule VI (EBS)'!E862","v":0}]
["Sch VI","Schedule of Assets",null,"(C) ABS and Struct. Sec. - Nominal Amount 40",{"$f":"'Schedule VI'!E874","v":0},null,null,null,null,null,null,null,{"$f":"'Schedule VI (EBS)'!E874","v":0}]
["Sch VI","Schedule of Assets",null,"(C) ABS and Struct. Sec. - Nominal Amount 59",{"$f":"'Schedule VI'!E893","v":0},null,null,null,null,null,null,null,{"$f":"'Schedule VI (EBS)'!E893","v":0}]
["Sch VI","Schedule of Assets",null,"(C) ABS and Struct. Sec. - Nominal Amount 84",{"$f":"'Schedule VI'!E918","v":0},null,null,null,null,null,null,null,{"$f":"'Schedule VI (EBS)'!E918","v":0}]
["Sch VI","Schedule of Assets",null,"(C) ABS and Struct. Sec. - Nominal Amount 103",{"$f":"'Schedule VI'!E937","v":0},null,null,null,null,null,null,null,{"$f":"'Schedule VI (EBS)'!E937","v":0}]
["Sch VI","Schedule of Assets",null,"(C) ABS and Struct. Sec. - Nominal Amount 109",{"$f":"'Schedule VI'!E943","v":0},null,null,null,null,null,null,null,{"$f":"'Schedule VI (EBS)'!E943","v":0}]
["Sch VI","Schedule of Assets",null,"(C) ABS and Struct. Sec. - Nominal Amount 128",{"$f":"'Schedule VI'!E962","v":0},null,null,null,null,null,null,null,{"$f":"'Schedule VI (EBS)'!E962","v":0}]
["Sch VI","Schedule of Assets",null,"(C) ABS and Struct. Sec. - Nominal Amount 149",{"$f":"'Schedule VI'!E983","v":0},null,null,null,null,null,null,null,{"$f":"'Schedule VI (EBS)'!E983","v":0}]
["Sch VI","Schedule of Assets",null,"(C) ABS and Struct. Sec. - Fair Value 23",{"$f":"'Schedule VI'!F857","v":0},null,null,null,null,null,null,null,{"$f":"'Schedule VI (EBS)'!F857","v":0}]
["Sch VI","Schedule of Assets",null,"(C) ABS and Struct. Sec. - Fair Value 42",{"$f":"'Schedule VI'!F876","v":0},null,null,null,null,null,null,null,{"$f":"'Schedule VI (EBS)'!F876","v":0}]
["Sch VI","Schedule of Assets",null,"(C) ABS and Struct. Sec. - Fair Value 67",{"$f":"'Schedule VI'!F901","v":0},null,null,null,null,null,null,null,{"$f":"'Schedule VI (EBS)'!F901","v":0}]
["Sch VI","Schedule of Assets",null,"(C) ABS and Struct. Sec. - Fair Value 86",{"$f":"'Schedule VI'!F920","v":0},null,null,null,null,null,null,null,{"$f":"'Schedule VI (EBS)'!F920","v":0}]
["Sch VI","Schedule of Assets",null,"(C) ABS and Struct. Sec. - Fair Value 105",{"$f":"'Schedule VI'!F939","v":0},null,null,null,null,null,null,null,{"$f":"'Schedule VI (EBS)'!F939","v":0}]
["Sch VI","Schedule of Assets",null,"(C) ABS and Struct. Sec. - Fair Value 111",{"$f":"'Schedule VI'!F945","v":0},null,null,null,null,null,null,null,{"$f":"'Schedule VI (EBS)'!F945","v":0}]
["Sch VI","Schedule of Assets",null,"(C) ABS and Struct. Sec. - Fair Value 130",{"$f":"'Schedule VI'!F964","v":0},null,null,null,null,null,null,null,{"$f":"'Schedule VI (EBS)'!F964","v":0}]
["Sch VI","Schedule of Assets",null,"(C) ABS and Struct. Sec. - Weighted Avg YTM 10",{"$f":"'Schedule VI'!G844","v":0},null,null,null,null,null,null,null,{"$f":"'Schedule VI (EBS)'!G844","v":0}]
["Sch VI","Schedule of Assets",null,"(C) ABS and Struct. Sec. - Weighted Avg YTM 25",{"$f":"'Schedule VI'!G859","v":0},null,null,null,null,null,null,null,{"$f":"'Schedule VI (EBS)'!G859","v":0}]
["Sch VI","Schedule of Assets",null,"(C) ABS and Struct. Sec. - Weighted Avg YTM 44",{"$f":"'Schedule VI'!G878","v":0},null,null,null,null,null,null,null,{"$f":"'Schedule VI (EBS)'!G878","v":0}]
["Sch VI","Schedule of Assets",null,"(C) ABS and Struct. Sec. - Weighted Avg YTM 69",{"$f":"'Schedule VI'!G903","v":0},null,null,null,null,null,null,null,{"$f":"'Schedule VI (EBS)'!G903","v":0}]
["Sch VI","Schedule of Assets",null,"(C) ABS and Struct. Sec. - Weighted Avg YTM 88",{"$f":"'Schedule VI'!G922","v":0},null,null,null,null,null,null,null,{"$f":"'Schedule VI (EBS)'!G922","v":0}]
["Sch VI","Schedule of Assets",null,"(C) ABS and Struct. Sec. - Weighted Avg YTM 107",{"$f":"'Schedule VI'!G941","v":0},null,null,null,null,null,null,null,{"$f":"'Schedule VI (EBS)'!G941","v":0}]
["Sch VI","Schedule of Assets",null,"(C) ABS and Struct. Sec. - Weighted Avg YTM 113",{"$f":"'Schedule VI'!G947","v":0},null,null,null,null,null,null,null,{"$f":"'Schedule VI (EBS)'!G947","v":0}]
["Sch VI","Schedule of Assets",null,"(C) ABS and Struct. Sec. - Weighted Avg YTM 147",{"$f":"'Schedule VI'!G981","v":0},null,null,null,null,null,null,null,{"$f":"'Schedule VI (EBS)'!G981","v":0}]
["Sch VI","Schedule of Assets",null,"(C) ABS and Struct. Sec. - Effective Duration 2",{"$f":"'Schedule VI'!H836","v":0},null,null,null,null,null,null,null,{"$f":"'Schedule VI (EBS)'!H836","v":0}]
["Sch VI","Schedule of Assets",null,"(C) ABS and Struct. Sec. - Effective Duration 27",{"$f":"'Schedule VI'!H861","v":0},null,null,null,null,null,null,null,{"$f":"'Schedule VI (EBS)'!H861","v":0}]
["Sch VI","Schedule of Assets",null,"(C) ABS and Struct. Sec. - Effective Duration 46",{"$f":"'Schedule VI'!H880","v":0},null,null,null,null,null,null,null,{"$f":"'Schedule VI (EBS)'!H880","v":0}]
["Sch VI","Schedule of Assets",null,"(C) ABS and Struct. Sec. - Effective Duration 71",{"$f":"'Schedule VI'!H905","v":0},null,null,null,null,null,null,null,{"$f":"'Schedule VI (EBS)'!H905","v":0}]
["Sch VI","Schedule of Assets",null,"(C) ABS and Struct. Sec. - Effective Duration 90",{"$f":"'Schedule VI'!H924","v":0},null,null,null,null,null,null,null,{"$f":"'Schedule VI (EBS)'!H924","v":0}]
["Sch VI","Schedule of Assets",null,"(C) ABS and Struct. Sec. - Effective Duration 109",{"$f":"'Schedule VI'!H943","v":0},null,null,null,null,null,null,null,{"$f":"'Schedule VI (EBS)'!H943","v":0}]
["Sch VI","Schedule of Assets",null,"(C) ABS and Struct. Sec. - Effective Duration 115",{"$f":"'Schedule VI'!H949","v":0},null,null,null,null,null,null,null,{"$f":"'Schedule VI (EBS)'!H949","v":0}]
["Sch VI","Schedule of Assets",null,"(C) ABS and Struct. Sec. - Effective Duration 138",{"$f":"'Schedule VI'!H972","v":0},null,null,null,null,null,null,null,{"$f":"'Schedule VI (EBS)'!H972","v":0}]
["Sch VI","Schedule of Assets",null,"(C) ABS and Struct. Sec. - Comments 10",{"$f":"'Schedule VI'!I844","v":0},null,null,null,null,null,null,null,{"$f":"'Schedule VI (EBS)'!I844","v":0}]
["Sch VI","Schedule of Assets",null,"(C) ABS and Struct. Sec. - Comments 29",{"$f":"'Schedule VI'!I863","v":0},null,null,null,null,null,null,null,{"$f":"'Schedule VI (EBS)'!I863","v":0}]
["Sch VI","Schedule of Assets",null,"(C) ABS and Struct. Sec. - Comments 48",{"$f":"'Schedule VI'!I882","v":0},null,null,null,null,null,null,null,{"$f":"'Schedule VI (EBS)'!I882","v":0}]
["Sch VI","Schedule of Assets",null,"(C) ABS and Struct. Sec. - Comments 73",{"$f":"'Schedule VI'!I907","v":0},null,null,null,null,null,null,null,{"$f":"'Schedule VI (EBS)'!I907","v":0}]
["Sch VI","Schedule of Assets",null,"(C) ABS and Struct. Sec. - Comments 92",{"$f":"'Schedule VI'!I926","v":0},null,null,null,null,null,null,null,{"$f":"'Schedule VI (EBS)'!I926","v":0}]
["Sch VI","Schedule of Assets",null,"(C) ABS and Struct. Sec. - Comments 111",{"$f":"'Schedule VI'!I945","v":0},null,null,null,null,null,null,null,{"$f":"'Schedule VI (EBS)'!I945","v":0}]
["Sch VI","Schedule of Assets",null,"(C) ABS and Struct. Sec. - Comments 136",{"$f":"'Schedule VI'!I970","v":0},null,null,null,null,null,null,null,{"$f":"'Schedule VI (EBS)'!I970","v":0}]
["Sch VI","Schedule of Assets",null,"(C) ABS and Struct. Sec. - Comments 149",{"$f":"'Schedule VI'!I983","v":0},null,null,null,null,null,null,null,{"$f":"'Schedule VI (EBS)'!I983","v":0}]
["Sch VI","Schedule of Assets",null,"(D) Loans - Asset Type 11",{"$f":"'Schedule VI'!B1003","v":"Select"},null,null,null,null,null,null,null,{"$f":"'Schedule VI (EBS)'!B1003","v":"Select"}]
["Sch VI","Schedule of Assets",null,"(D) Loans - Asset Type 30",{"$f":"'Schedule VI'!B1022","v":"Select"},null,null,null,null,null,null,null,{"$f":"'Schedule VI (EBS)'!B1022","v":"Select"}]
["Sch VI","Schedule of Assets",null,"(D) Loans - Asset Type 49",{"$f":"'Schedule VI'!B1041","v":"Select"},null,null,null,null,null,null,null,{"$f":"'Schedule VI (EBS)'!B1041","v":"Select"}]
["Sch VI","Schedule of Assets",null,"(D) Loans - Asset Type 74",{"$f":"'Schedule VI'!B1066","v":"Select"},null,null,null,null,null,null,null,{"$f":"'Schedule VI (EBS)'!B1066","v":"Select"}]
["Sch VI","Schedule of Assets",null,"(D) Loans - Asset Type 93",{"$f":"'Schedule VI'!B1085","v":"Select"},null,null,null,null,null,null,null,{"$f":"'Schedule VI (EBS)'!B1085","v":"Select"}]
["Sch VI","Schedule of Assets",null,"(D) Loans - Currency 18",{"$f":"'Schedule VI'!C1010","v":"Select"},null,null,null,null,null,null,null,{"$f":"'Schedule VI (EBS)'!C1010","v":"Select"}]
["Sch VI","Schedule of Assets",null,"(D) Loans - Currency 35",{"$f":"'Schedule VI'!C1027","v":"Select"},null,null,null,null,null,null,null,{"$f":"'Schedule VI (EBS)'!C1027","v":"Select"}]
["Sch VI","Schedule of Assets",null,"(D) Loans - Currency 57",{"$f":"'Schedule VI'!C1049","v":"Select"},null,null,null,null,null,null,null,{"$f":"'Schedule VI (EBS)'!C1049","v":"Select"}]
["Sch VI","Schedule of Assets",null,"(D) Loans - Currency 63",{"$f":"'Schedule VI'!C1055","v":"Select"},null,null,null,null,null,null,null,{"$f":"'Schedule VI (EBS)'!C1055","v":"Select"}]
["Sch VI","Schedule of Assets",null,"(D) Loans - Currency 82",{"$f":"'Schedule VI'!C1074","v":"Select"},null,null,null,null,null,null,null,{"$f":"'Schedule VI (EBS)'!C1074","v":"Select"}]
["Sch VI","Schedule of Assets",null,"(D) Loans - Country 1",{"$f":"'Schedule VI'!D993","v":"Select"},null,null,null,null,null,null,null,{"$f":"'Schedule VI (EBS)'!D993","v":"Select"}]
["Sch VI","Schedule of Assets",null,"(D) Loans - Country 26",{"$f":"'Schedule VI'!D1018","v":"Select"},null,null,null,null,null,null,null,{"$f":"'Schedule VI (EBS)'!D1018","v":"Select"}]
["Sch VI","Schedule of Assets",null,"(D) Loans - Country 45",{"$f":"'Schedule VI'!D1037","v":"Select"},null,null,null,null,null,null,null,{"$f":"'Schedule VI (EBS)'!D1037","v":"Select"}]
["Sch VI","Schedule of Assets",null,"(D) Loans - Country 70",{"$f":"'Schedule VI'!D1062","v":"Select"},null,null,null,null,null,null,null,{"$f":"'Schedule VI (EBS)'!D1062","v":"Select"}]
["Sch VI","Schedule of Assets",null,"(D) Loans - Country 76",{"$f":"'Schedule VI'!D1068","v":"Select"},null,null,null,null,null,null,null,{"$f":"'Schedule VI (EBS)'!D1068","v":"Select"}]
["Sch VI","Schedule of Assets",null,"(D) Loans - Rating 9",{"$f":"'Schedule VI'!E1001","v":"Select"},null,null,null,null,null,null,null,{"$f":"'Schedule VI (EBS)'!E1001","v":"Select"}]
["Sch VI","Schedule of Assets",null,"(D) Loans - Rating 15",{"$f":"'Schedule VI'!E1007","v":"Select"},null,null,null,null,null,null,null,{"$f":"'Schedule VI (EBS)'!E1007","v":"Select"}]
["Sch VI","Schedule of Assets",null,"(D) Loans - Rating 34",{"$f":"'Schedule VI'!E1026","v":"Select"},null,null,null,null,null,null,null,{"$f":"'Schedule VI (EBS)'!E1026","v":"Select"}]
["Sch VI","Schedule of Assets",null,"(D) Loans - Rating 53",{"$f":"'Schedule VI'!E1045","v":"Select"},null,null,null,null,null,null,null,{"$f":"'Schedule VI (EBS)'!E1045","v":"Select"}]
["Sch VI","Schedule of Assets",null,"(D) Loans - Rating 78",{"$f":"'Schedule VI'!E1070","v":"Select"},null,null,null,null,null,null,null,{"$f":"'Schedule VI (EBS)'!E1070","v":"Select"}]
["Sch VI","Schedule of Assets",null,"(D) Loans - Rating 97",{"$f":"'Schedule VI'!E1089","v":"Select"},null,null,null,null,null,null,null,{"$f":"'Schedule VI (EBS)'!E1089","v":"Select"}]
["Sch VI","Schedule of Assets",null,"(D) Loans - Nominal Amount 13",{"$f":"'Schedule VI'!F1005","v":0},null,null,null,null,null,null,null,{"$f":"'Schedule VI (EBS)'!F1005","v":0}]
["Sch VI","Schedule of Assets",null,"(D) Loans - Nominal Amount 42",{"$f":"'Schedule VI'!F1034","v":0},null,null,null,null,null,null,null,{"$f":"'Schedule VI (EBS)'!F1034","v":0}]
["Sch VI","Schedule of Assets",null,"(D) Loans - Nominal Amount 61",{"$f":"'Schedule VI'!F1053","v":0},null,null,null,null,null,null,null,{"$f":"'Schedule VI (EBS)'!F1053","v":0}]
["Sch VI","Schedule of Assets",null,"(D) Loans - Nominal Amount 67",{"$f":"'Schedule VI'!F1059","v":0},null,null,null,null,null,null,null,{"$f":"'Schedule VI (EBS)'!F1059","v":0}]
["Sch VI","Schedule of Assets",null,"(D) Loans - Nominal Amount 86",{"$f":"'Schedule VI'!F1078","v":0},null,null,null,null,null,null,null,{"$f":"'Schedule VI (EBS)'!F1078","v":0}]
["Sch VI","Schedule of Assets",null,"(D) Loans - Fair Value 11",{"$f":"'Schedule VI'!G1003","v":0},null,null,null,null,null,null,null,{"$f":"'Schedule VI (EBS)'!G1003","v":0}]
["Sch VI","Schedule of Assets",null,"(D) Loans - Fair Value 30",{"$f":"'Schedule VI'!G1022","v":0},null,null,null,null,null,null,null,{"$f":"'Schedule VI (EBS)'!G1022","v":0}]
["Sch VI","Schedule of Assets",null,"(D) Loans - Fair Value 49",{"$f":"'Schedule VI'!G1041","v":0},null,null,null,null,null,null,null,{"$f":"'Schedule VI (EBS)'!G1041","v":0}]
["Sch VI","Schedule of Assets",null,"(D) Loans - Fair Value 74",{"$f":"'Schedule VI'!G1066","v":0},null,null,null,null,null,null,null,{"$f":"'Schedule VI (EBS)'!G1066","v":0}]
["Sch VI","Schedule of Assets",null,"(D) Loans - Fair Value 94",{"$f":"'Schedule VI'!G1086","v":0},null,null,null,null,null,null,null,{"$f":"'Schedule VI (EBS)'!G1086","v":0}]
["Sch VI","Schedule of Assets",null,"(D) Loans - Weighted Avg YTM 13",{"$f":"'Schedule VI'!H1005","v":0},null,null,null,null,null,null,null,{"$f":"'Schedule VI (EBS)'!H1005","v":0}]
["Sch VI","Schedule of Assets",null,"(D) Loans - Weighted Avg YTM 19",{"$f":"'Schedule VI'!H1011","v":0},null,null,null,null,null,null,null,{"$f":"'Schedule VI (EBS)'!H1011","v":0}]
["Sch VI","Schedule of Assets",null,"(D) Loans - Weighted Avg YTM 38",{"$f":"'Schedule VI'!H1030","v":0},null,null,null,null,null,null,null,{"$f":"'Schedule VI (EBS)'!H1030","v":0}]
["Sch VI","Schedule of Assets",null,"(D) Loans - Weighted Avg YTM 63",{"$f":"'Schedule VI'!H1055","v":0},null,null,null,null,null,null,null,{"$f":"'Schedule VI (EBS)'!H1055","v":0}]
["Sch VI","Schedule of Assets",null,"(D) Loans - Weighted Avg YTM 82",{"$f":"'Schedule VI'!H1074","v":0},null,null,null,null,null,null,null,{"$f":"'Schedule VI (EBS)'!H1074","v":0}]
["Sch VI","Schedule of Assets",null,"(D) Loans - Effective Duration 1",{"$f":"'Schedule VI'!I993","v":0},null,null,null,null,null,null,null,{"$f":"'Schedule VI (EBS)'!I993","v":0}]
["Sch VI","Schedule of Assets",null,"(D) Loans - Effective Duration 15",{"$f":"'Schedule VI'!I1007","v":0},null,null,null,null,null,null,null,{"$f":"'Schedule VI (EBS)'!I1007","v":0}]
["Sch VI","Schedule of Assets",null,"(D) Loans - Effective Duration 46",{"$f":"'Schedule VI'!I1038","v":0},null,null,null,null,null,null,null,{"$f":"'Schedule VI (EBS)'!I1038","v":0}]
["Sch VI","Schedule of Assets",null,"(D) Loans - Effective Duration 65",{"$f":"'Schedule VI'!I1057","v":0},null,null,null,null,null,null,null,{"$f":"'Schedule VI (EBS)'!I1057","v":0}]
["Sch VI","Schedule of Assets",null,"(D) Loans - Effective Duration 71",{"$f":"'Schedule VI'!I1063","v":0},null,null,null,null,null,null,null,{"$f":"'Schedule VI (EBS)'!I1063","v":0}]
["Sch VI","Schedule of Assets",null,"(D) Loans - Effective Duration 90",{"$f":"'Schedule VI'!I1082","v":0},null,null,null,null,null,null,null,{"$f":"'Schedule VI (EBS)'!I1082","v":0}]
["Sch VI","Schedule of Assets",null,"(D) Loans - Comments 15",{"$f":"'Schedule VI'!J1007","v":0},null,null,null,null,null,null,null,{"$f":"'Schedule VI (EBS)'!J1007","v":0}]
["Sch VI","Schedule of Assets",null,"(D) Loans - Comments 34",{"$f":"'Schedule VI'!J1026","v":0},null,null,null,null,null,null,null,{"$f":"'Schedule VI (EBS)'!J1026","v":0}]
["Sch VI","Schedule of Assets",null,"(D) Loans - Comments 56",{"$f":"'Schedule VI'!J1048","v":0},null,null,null,null,null,null,null,{"$f":"'Schedule VI (EBS)'!J1048","v":0}]
["Sch VI","Schedule of Assets",null,"(D) Loans - Comments 79",{"$f":"'Schedule VI'!J1071","v":0},null,null,null,null,null,null,null,{"$f":"'Schedule VI (EBS)'!J1071","v":0}]
["Sch VI","Schedule of Assets",null,"(D) Loans - Comments 98",{"$f":"'Schedule VI'!J1090","v":0},null,null,null,null,null,null,null,{"$f":"'Schedule VI (EBS)'!J1090","v":0}]
["Sch VI","Schedule of Assets",null,"(D) Loans Not Perform. - Currency 2",{"$f":"'Schedule VI'!C1102","v":"Select"},null,null,null,null,null,null,null,{"$f":"'Schedule VI (EBS)'!C1102","v":"Select"}]
["Sch VI","Schedule of Assets",null,"(D) Loans Not Perform. - Country 1",{"$f":"'Schedule VI'!D1101","v":"Select"},null,null,null,null,null,null,null,{"$f":"'Schedule VI (EBS)'!D1101","v":"Select"}]
["Sch VI","Schedule of Assets",null,"(D) Loans Not Perform. - Country 20",{"$f":"'Schedule VI'!D1120","v":"Select"},null,null,null,null,null,null,null,{"$f":"'Schedule VI (EBS)'!D1120","v":"Select"}]
["Sch VI","Schedule of Assets",null,"(D) Loans Not Perform. - Rating 6",{"$f":"'Schedule VI'!E1106","v":"Select"},null,null,null,null,null,null,null,{"$f":"'Schedule VI (EBS)'!E1106","v":"Select"}]
["Sch VI","Schedule of Assets",null,"(D) Loans Not Perform. - Nominal Amount 5",{"$f":"'Schedule VI'!F1105","v":0},null,null,null,null,null,null,null,{"$f":"'Schedule VI (EBS)'!F1105","v":0}]
["Sch VI","Schedule of Assets",null,"(D) Loans Not Perform. - Fair Value 16",{"$f":"'Schedule VI'!G1116","v":0},null,null,null,null,null,null,null,{"$f":"'Schedule VI (EBS)'!G1116","v":0}]
["Sch VI","Schedule of Assets",null,"(D) Loans Not Perform. - Comment 10",{"$f":"'Schedule VI'!H1110","v":0},null,null,null,null,null,null,null,{"$f":"'Schedule VI (EBS)'!H1110","v":0}]
["Sch VI","Schedule of Assets",null,"(E) Preferred Equities - Asset Type 8",{"$f":"'Schedule VI'!B1136","v":"Select"},null,null,null,null,null,null,null,{"$f":"'Schedule VI (EBS)'!B1136","v":"Select"}]
["Sch VI","Schedule of Assets",null,"(E) Preferred Equities - Asset Type 33",{"$f":"'Schedule VI'!B1161","v":"Select"},null,null,null,null,null,null,null,{"$f":"'Schedule VI (EBS)'!B1161","v":"Select"}]
["Sch VI","Schedule of Assets",null,"(E) Preferred Equities - Asset Type 52",{"$f":"'Schedule VI'!B1180","v":"Select"},null,null,null,null,null,null,null,{"$f":"'Schedule VI (EBS)'!B1180","v":"Select"}]
["Sch VI","Schedule of Assets",null,"(E) Preferred Equities - Asset Type 71",{"$f":"'Schedule VI'!B1199","v":"Select"},null,null,null,null,null,null,null,{"$f":"'Schedule VI (EBS)'!B1199","v":"Select"}]
["Sch VI","Schedule of Assets",null,"(E) Preferred Equities - Asset Type 77",{"$f":"'Schedule VI'!B1205","v":"Select"},null,null,null,null,null,null,null,{"$f":"'Schedule VI (EBS)'!B1205","v":"Select"}]
["Sch VI","Schedule of Assets",null,"(E) Preferred Equities - Asset Type 92",{"$f":"'Schedule VI'!B1220","v":"Select"},null,null,null,null,null,null,null,{"$f":"'Schedule VI (EBS)'!B1220","v":"Select"}]
["Sch VI","Schedule of Assets",null,"(E) Preferred Equities - Currency 22",{"$f":"'Schedule VI'!C1150","v":"Select"},null,null,null,null,null,null,null,{"$f":"'Schedule VI (EBS)'!C1150","v":"Select"}]
["Sch VI","Schedule of Assets",null,"(E) Preferred Equities - Currency 41",{"$f":"'Schedule VI'!C1169","v":"Select"},null,null,null,null,null,null,null,{"$f":"'Schedule VI (EBS)'!C1169","v":"Select"}]
["Sch VI","Schedule of Assets",null,"(E) Preferred Equities - Currency 60",{"$f":"'Schedule VI'!C1188","v":"Select"},null,null,null,null,null,null,null,{"$f":"'Schedule VI (EBS)'!C1188","v":"Select"}]
["Sch VI","Schedule of Assets",null,"(E) Preferred Equities - Currency 85",{"$f":"'Schedule VI'!C1213","v":"Select"},null,null,null,null,null,null,null,{"$f":"'Schedule VI (EBS)'!C1213","v":"Select"}]
["Sch VI","Schedule of Assets",null,"(E) Preferred Equities - Rating 4",{"$f":"'Schedule VI'!D1132","v":"Select"},null,null,null,null,null,null,null,{"$f":"'Schedule VI (EBS)'!D1132","v":"Select"}]
["Sch VI","Schedule of Assets",null,"(E) Preferred Equities - Rating 23",{"$f":"'Schedule VI'!D1151","v":"Select"},null,null,null,null,null,null,null,{"$f":"'Schedule VI (EBS)'!D1151","v":"Select"}]
["Sch VI","Schedule of Assets",null,"(E) Preferred Equities - Rating 29",{"$f":"'Schedule VI'!D1157","v":"Select"},null,null,null,null,null,null,null,{"$f":"'Schedule VI (EBS)'!D1157","v":"Select"}]
["Sch VI","Schedule of Assets",null,"(E) Preferred Equities - Rating 53",{"$f":"'Schedule VI'!D1181","v":"Select"},null,null,null,null,null,null,null,{"$f":"'Schedule VI (EBS)'!D1181","v":"Select"}]
["Sch VI","Schedule of Assets",null,"(E) Preferred Equities - Rating 74",{"$f":"'Schedule VI'!D1202","v":"Select"},null,null,null,null,null,null,null,{"$f":"'Schedule VI (EBS)'!D1202","v":"Select"}]
["Sch VI","Schedule of Assets",null,"(E) Preferred Equities - Rating 93",{"$f":"'Schedule VI'!D1221","v":"Select"},null,null,null,null,null,null,null,{"$f":"'Schedule VI (EBS)'!D1221","v":"Select"}]
["Sch VI","Schedule of Assets",null,"(E) Preferred Equities - Nominal Amount 12",{"$f":"'Schedule VI'!E1140","v":0},null,null,null,null,null,null,null,{"$f":"'Schedule VI (EBS)'!E1140","v":0}]
["Sch VI","Schedule of Assets",null,"(E) Preferred Equities - Nominal Amount 37",{"$f":"'Schedule VI'!E1165","v":0},null,null,null,null,null,null,null,{"$f":"'Schedule VI (EBS)'!E1165","v":0}]
["Sch VI","Schedule of Assets",null,"(E) Preferred Equities - Nominal Amount 56",{"$f":"'Schedule VI'!E1184","v":0},null,null,null,null,null,null,null,{"$f":"'Schedule VI (EBS)'!E1184","v":0}]
["Sch VI","Schedule of Assets",null,"(E) Preferred Equities - Nominal Amount 75",{"$f":"'Schedule VI'!E1203","v":0},null,null,null,null,null,null,null,{"$f":"'Schedule VI (EBS)'!E1203","v":0}]
["Sch VI","Schedule of Assets",null,"(E) Preferred Equities - Nominal Amount 90",{"$f":"'Schedule VI'!E1218","v":0},null,null,null,null,null,null,null,{"$f":"'Schedule VI (EBS)'!E1218","v":0}]
["Sch VI","Schedule of Assets",null,"(E) Preferred Equities - Fair Value 1",{"$f":"'Schedule VI'!F1129","v":0},null,null,null,null,null,null,null,{"$f":"'Schedule VI (EBS)'!F1129","v":0}]
["Sch VI","Schedule of Assets",null,"(E) Preferred Equities - Fair Value 26",{"$f":"'Schedule VI'!F1154","v":0},null,null,null,null,null,null,null,{"$f":"'Schedule VI (EBS)'!F1154","v":0}]
["Sch VI","Schedule of Assets",null,"(E) Preferred Equities - Fair Value 45",{"$f":"'Schedule VI'!F1173","v":0},null,null,null,null,null,null,null,{"$f":"'Schedule VI (EBS)'!F1173","v":0}]
["Sch VI","Schedule of Assets",null,"(E) Preferred Equities - Fair Value 64",{"$f":"'Schedule VI'!F1192","v":0},null,null,null,null,null,null,null,{"$f":"'Schedule VI (EBS)'!F1192","v":0}]
["Sch VI","Schedule of Assets",null,"(E) Preferred Equities - Fair Value 89",{"$f":"'Schedule VI'!F1217","v":0},null,null,null,null,null,null,null,{"$f":"'Schedule VI (EBS)'!F1217","v":0}]
["Sch VI","Schedule of Assets",null,"(E) Preferred Equities - Weighted Avg YTM 8",{"$f":"'Schedule VI'!G1136","v":0},null,null,null,null,null,null,null,{"$f":"'Schedule VI (EBS)'!G1136","v":0}]
["Sch VI","Schedule of Assets",null,"(E) Preferred Equities - Weighted Avg YTM 14",{"$f":"'Schedule VI'!G1142","v":0},null,null,null,null,null,null,null,{"$f":"'Schedule VI (EBS)'!G1142","v":0}]
["Sch VI","Schedule of Assets",null,"(E) Preferred Equities - Weighted Avg YTM 51",{"$f":"'Schedule VI'!G1179","v":0},null,null,null,null,null,null,null,{"$f":"'Schedule VI (EBS)'!G1179","v":0}]
["Sch VI","Schedule of Assets",null,"(E) Preferred Equities - Weighted Avg YTM 53",{"$f":"'Schedule VI'!G1181","v":0},null,null,null,null,null,null,null,{"$f":"'Schedule VI (EBS)'!G1181","v":0}]
["Sch VI","Schedule of Assets",null,"(E) Preferred Equities - Weighted Avg YTM 78",{"$f":"'Schedule VI'!G1206","v":0},null,null,null,null,null,null,null,{"$f":"'Schedule VI (EBS)'!G1206","v":0}]
["Sch VI","Schedule of Assets",null,"(E) Preferred Equities - Weighted Avg YTM 97",{"$f":"'Schedule VI'!G1225","v":0},null,null,null,null,null,null,null,{"$f":"'Schedule VI (EBS)'!G1225","v":0}]
["Sch VI","Schedule of Assets",null,"(E) Preferred Equities - Effective Duration 16",{"$f":"'Schedule VI'!H1144","v":0},null,null,null,null,null,null,null,{"$f":"'Schedule VI (EBS)'!H1144","v":0}]
["Sch VI","Schedule of Assets",null,"(E) Preferred Equities - Effective Duration 41",{"$f":"'Schedule VI'!H1169","v":0},null,null,null,null,null,null,null,{"$f":"'Schedule VI (EBS)'!H1169","v":0}]
["Sch VI","Schedule of Assets",null,"(E) Preferred Equities - Effective Duration 60",{"$f":"'Schedule VI'!H1188","v":0},null,null,null,null,null,null,null,{"$f":"'Schedule VI (EBS)'!H1188","v":0}]
["Sch VI","Schedule of Assets",null,"(E) Preferred Equities - Effective Duration 66",{"$f":"'Schedule VI'!H1194","v":0},null,null,null,null,null,null,null,{"$f":"'Schedule VI (EBS)'!H1194","v":0}]
["Sch VI","Schedule of Assets",null,"(E) Preferred Equities - Effective Duration 92",{"$f":"'Schedule VI'!H1220","v":0},null,null,null,null,null,null,null,{"$f":"'Schedule VI (EBS)'!H1220","v":0}]
["Sch VI","Schedule of Assets",null,"(E) Preferred Equities - Comments 5",{"$f":"'Schedule VI'!I1133","v":0},null,null,null,null,null,null,null,{"$f":"'Schedule VI (EBS)'!I1133","v":0}]
["Sch VI","Schedule of Assets",null,"(E) Preferred Equities - Comments 30",{"$f":"'Schedule VI'!I1158","v":0},null,null,null,null,null,null,null,{"$f":"'Schedule VI (EBS)'!I1158","v":0}]
["Sch VI","Schedule of Assets",null,"(E) Preferred Equities - Comments 49",{"$f":"'Schedule VI'!I1177","v":0},null,null,null,null,null,null,null,{"$f":"'Schedule VI (EBS)'!I1177","v":0}]
["Sch VI","Schedule of Assets",null,"(E) Preferred Equities - Comments 68",{"$f":"'Schedule VI'!I1196","v":0},null,null,null,null,null,null,null,{"$f":"'Schedule VI (EBS)'!I1196","v":0}]
["Sch VI","Schedule of Assets",null,"(E) Preferred Equities - Comments 93",{"$f":"'Schedule VI'!I1221","v":0},null,null,null,null,null,null,null,{"$f":"'Schedule VI (EBS)'!I1221","v":0}]
["Sch VI","Schedule of Assets",null,"(F) Common Equities - Asset Type 11",{"$f":"'Schedule VI'!B1247","v":"Select"},null,null,null,null,null,null,null,{"$f":"'Schedule VI (EBS)'!B1247","v":"Select"}]
["Sch VI","Schedule of Assets",null,"(F) Common Equities - Asset Type 28",{"$f":"'Schedule VI'!B1264","v":"Select"},null,null,null,null,null,null,null,{"$f":"'Schedule VI (EBS)'!B1264","v":"Select"}]
["Sch VI","Schedule of Assets",null,"(F) Common Equities - Asset Type 56",{"$f":"'Schedule VI'!B1292","v":"Select"},null,null,null,null,null,null,null,{"$f":"'Schedule VI (EBS)'!B1292","v":"Select"}]
["Sch VI","Schedule of Assets",null,"(F) Common Equities - Asset Type 75",{"$f":"'Schedule VI'!B1311","v":"Select"},null,null,null,null,null,null,null,{"$f":"'Schedule VI (EBS)'!B1311","v":"Select"}]
["Sch VI","Schedule of Assets",null,"(F) Common Equities - Asset Type 81",{"$f":"'Schedule VI'!B1317","v":"Select"},null,null,null,null,null,null,null,{"$f":"'Schedule VI (EBS)'!B1317","v":"Select"}]
["Sch VI","Schedule of Assets",null,"(F) Common Equities - Asset Type 100",{"$f":"'Schedule VI'!B1336","v":"Select"},null,null,null,null,null,null,null,{"$f":"'Schedule VI (EBS)'!B1336","v":"Select"}]
["Sch VI","Schedule of Assets",null,"(F) Common Equities - Currency 25",{"$f":"'Schedule VI'!C1261","v":"Select"},null,null,null,null,null,null,null,{"$f":"'Schedule VI (EBS)'!C1261","v":"Select"}]
["Sch VI","Schedule of Assets",null,"(F) Common Equities - Currency 44",{"$f":"'Schedule VI'!C1280","v":"Select"},null,null,null,null,null,null,null,{"$f":"'Schedule VI (EBS)'!C1280","v":"Select"}]
["Sch VI","Schedule of Assets",null,"(F) Common Equities - Currency 63",{"$f":"'Schedule VI'!C1299","v":"Select"},null,null,null,null,null,null,null,{"$f":"'Schedule VI (EBS)'!C1299","v":"Select"}]
["Sch VI","Schedule of Assets",null,"(F) Common Equities - Currency 89",{"$f":"'Schedule VI'!C1325","v":"Select"},null,null,null,null,null,null,null,{"$f":"'Schedule VI (EBS)'!C1325","v":"Select"}]
["Sch VI","Schedule of Assets",null,"(F) Common Equities - Country 8",{"$f":"'Schedule VI'!D1244","v":"Select"},null,null,null,null,null,null,null,{"$f":"'Schedule VI (EBS)'!D1244","v":"Select"}]
["Sch VI","Schedule of Assets",null,"(F) Common Equities - Country 27",{"$f":"'Schedule VI'!D1263","v":"Select"},null,null,null,null,null,null,null,{"$f":"'Schedule VI (EBS)'!D1263","v":"Select"}]
["Sch VI","Schedule of Assets",null,"(F) Common Equities - Country 33",{"$f":"'Schedule VI'!D1269","v":"Select"},null,null,null,null,null,null,null,{"$f":"'Schedule VI (EBS)'!D1269","v":"Select"}]
["Sch VI","Schedule of Assets",null,"(F) Common Equities - Country 52",{"$f":"'Schedule VI'!D1288","v":"Select"},null,null,null,null,null,null,null,{"$f":"'Schedule VI (EBS)'!D1288","v":"Select"}]
["Sch VI","Schedule of Assets",null,"(F) Common Equities - Country 77",{"$f":"'Schedule VI'!D1313","v":"Select"},null,null,null,null,null,null,null,{"$f":"'Schedule VI (EBS)'!D1313","v":"Select"}]
["Sch VI","Schedule of Assets",null,"(F) Common Equities - Country 96",{"$f":"'Schedule VI'!D1332","v":"Select"},null,null,null,null,null,null,null,{"$f":"'Schedule VI (EBS)'!D1332","v":"Select"}]
["Sch VI","Schedule of Assets",null,"(F) Common Equities - Fair Value 10",{"$f":"'Schedule VI'!E1246","v":0},null,null,null,null,null,null,null,{"$f":"'Schedule VI (EBS)'!E1246","v":0}]
["Sch VI","Schedule of Assets",null,"(F) Common Equities - Fair Value 41",{"$f":"'Schedule VI'!E1277","v":0},null,null,null,null,null,null,null,{"$f":"'Schedule VI (EBS)'!E1277","v":0}]
["Sch VI","Schedule of Assets",null,"(F) Common Equities - Fair Value 60",{"$f":"'Schedule VI'!E1296","v":0},null,null,null,null,null,null,null,{"$f":"'Schedule VI (EBS)'!E1296","v":0}]
["Sch VI","Schedule of Assets",null,"(F) Common Equities - Fair Value 66",{"$f":"'Schedule VI'!E1302","v":0},null,null,null,null,null,null,null,{"$f":"'Schedule VI (EBS)'!E1302","v":0}]
["Sch VI","Schedule of Assets",null,"(F) Common Equities - Fair Value 85",{"$f":"'Schedule VI'!E1321","v":0},null,null,null,null,null,null,null,{"$f":"'Schedule VI (EBS)'!E1321","v":0}]
["Sch VI","Schedule of Assets",null,"(F) Common Equities - Comments 4",{"$f":"'Schedule VI'!F1240","v":0},null,null,null,null,null,null,null,{"$f":"'Schedule VI (EBS)'!F1240","v":0}]
["Sch VI","Schedule of Assets",null,"(F) Common Equities - Comments 29",{"$f":"'Schedule VI'!F1265","v":0},null,null,null,null,null,null,null,{"$f":"'Schedule VI (EBS)'!F1265","v":0}]
["Sch VI","Schedule of Assets",null,"(F) Common Equities - Comments 48",{"$f":"'Schedule VI'!F1284","v":0},null,null,null,null,null,null,null,{"$f":"'Schedule VI (EBS)'!F1284","v":0}]
["Sch VI","Schedule of Assets",null,"(F) Common Equities - Comments 71",{"$f":"'Schedule VI'!F1307","v":0},null,null,null,null,null,null,null,{"$f":"'Schedule VI (EBS)'!F1307","v":0}]
["Sch VI","Schedule of Assets",null,"(F) Common Equities - Comments 93",{"$f":"'Schedule VI'!F1329","v":0},null,null,null,null,null,null,null,{"$f":"'Schedule VI (EBS)'!F1329","v":0}]
["Sch VI","Schedule of Assets",null,"(G) Real Estate - Asset Type 11",{"$f":"'Schedule VI'!B1355","v":"Select"},null,null,null,null,null,null,null,{"$f":"'Schedule VI (EBS)'!B1355","v":"Select"}]
["Sch VI","Schedule of Assets",null,"(G) Real Estate - Asset Type 17",{"$f":"'Schedule VI'!B1361","v":"Select"},null,null,null,null,null,null,null,{"$f":"'Schedule VI (EBS)'!B1361","v":"Select"}]
["Sch VI","Schedule of Assets",null,"(G) Real Estate - Asset Type 36",{"$f":"'Schedule VI'!B1380","v":"Select"},null,null,null,null,null,null,null,{"$f":"'Schedule VI (EBS)'!B1380","v":"Select"}]
["Sch VI","Schedule of Assets",null,"(G) Real Estate - Asset Type 55",{"$f":"'Schedule VI'!B1399","v":"Select"},null,null,null,null,null,null,null,{"$f":"'Schedule VI (EBS)'!B1399","v":"Select"}]
["Sch VI","Schedule of Assets",null,"(G) Real Estate - Asset Type 80",{"$f":"'Schedule VI'!B1424","v":"Select"},null,null,null,null,null,null,null,{"$f":"'Schedule VI (EBS)'!B1424","v":"Select"}]
["Sch VI","Schedule of Assets",null,"(G) Real Estate - Currency 7",{"$f":"'Schedule VI'!C1351","v":"Select"},null,null,null,null,null,null,null,{"$f":"'Schedule VI (EBS)'!C1351","v":"Select"}]
["Sch VI","Schedule of Assets",null,"(G) Real Estate - Currency 19",{"$f":"'Schedule VI'!C1363","v":"Select"},null,null,null,null,null,null,null,{"$f":"'Schedule VI (EBS)'!C1363","v":"Select"}]
["Sch VI","Schedule of Assets",null,"(G) Real Estate - Currency 44",{"$f":"'Schedule VI'!C1388","v":"Select"},null,null,null,null,null,null,null,{"$f":"'Schedule VI (EBS)'!C1388","v":"Select"}]
["Sch VI","Schedule of Assets",null,"(G) Real Estate - Currency 63",{"$f":"'Schedule VI'!C1407","v":"Select"},null,null,null,null,null,null,null,{"$f":"'Schedule VI (EBS)'!C1407","v":"Select"}]
["Sch VI","Schedule of Assets",null,"(G) Real Estate - Currency 69",{"$f":"'Schedule VI'!C1413","v":"Select"},null,null,null,null,null,null,null,{"$f":"'Schedule VI (EBS)'!C1413","v":"Select"}]
["Sch VI","Schedule of Assets",null,"(G) Real Estate - Currency 88",{"$f":"'Schedule VI'!C1432","v":"Select"},null,null,null,null,null,null,null,{"$f":"'Schedule VI (EBS)'!C1432","v":"Select"}]
["Sch VI","Schedule of Assets",null,"(G) Real Estate - Country 7",{"$f":"'Schedule VI'!D1351","v":"Select"},null,null,null,null,null,null,null,{"$f":"'Schedule VI (EBS)'!D1351","v":"Select"}]
["Sch VI","Schedule of Assets",null,"(G) Real Estate - Country 32",{"$f":"'Schedule VI'!D1376","v":"Select"},null,null,null,null,null,null,null,{"$f":"'Schedule VI (EBS)'!D1376","v":"Select"}]
["Sch VI","Schedule of Assets",null,"(G) Real Estate - Country 48",{"$f":"'Schedule VI'!D1392","v":"Select"},null,null,null,null,null,null,null,{"$f":"'Schedule VI (EBS)'!D1392","v":"Select"}]
["Sch VI","Schedule of Assets",null,"(G) Real Estate - Country 77",{"$f":"'Schedule VI'!D1421","v":"Select"},null,null,null,null,null,null,null,{"$f":"'Schedule VI (EBS)'!D1421","v":"Select"}]
["Sch VI","Schedule of Assets",null,"(G) Real Estate - Country 96",{"$f":"'Schedule VI'!D1440","v":"Select"},null,null,null,null,null,null,null,{"$f":"'Schedule VI (EBS)'!D1440","v":"Select"}]
["Sch VI","Schedule of Assets",null,"(G) Real Estate - Purpose 15",{"$f":"'Schedule VI'!E1359","v":"Select"},null,null,null,null,null,null,null,{"$f":"'Schedule VI (EBS)'!E1359","v":"Select"}]
["Sch VI","Schedule of Assets",null,"(G) Real Estate - Purpose 21",{"$f":"'Schedule VI'!E1365","v":"Select"},null,null,null,null,null,null,null,{"$f":"'Schedule VI (EBS)'!E1365","v":"Select"}]
["Sch VI","Schedule of Assets",null,"(G) Real Estate - Purpose 40",{"$f":"'Schedule VI'!E1384","v":"Select"},null,null,null,null,null,null,null,{"$f":"'Schedule VI (EBS)'!E1384","v":"Select"}]
["Sch VI","Schedule of Assets",null,"(G) Real Estate - Purpose 59",{"$f":"'Schedule VI'!E1403","v":"Select"},null,null,null,null,null,null,null,{"$f":"'Schedule VI (EBS)'!E1403","v":"Select"}]
["Sch VI","Schedule of Assets",null,"(G) Real Estate - Purpose 84",{"$f":"'Schedule VI'!E1428","v":"Select"},null,null,null,null,null,null,null,{"$f":"'Schedule VI (EBS)'!E1428","v":"Select"}]
["Sch VI","Schedule of Assets",null,"(G) Real Estate - Cost 9",{"$f":"'Schedule VI'!F1353","v":0},null,null,null,null,null,null,null,{"$f":"'Schedule VI (EBS)'!F1353","v":0}]
["Sch VI","Schedule of Assets",null,"(G) Real Estate - Cost 29",{"$f":"'Schedule VI'!F1373","v":0},null,null,null,null,null,null,null,{"$f":"'Schedule VI (EBS)'!F1373","v":0}]
["Sch VI","Schedule of Assets",null,"(G) Real Estate - Cost 48",{"$f":"'Schedule VI'!F1392","v":0},null,null,null,null,null,null,null,{"$f":"'Schedule VI (EBS)'!F1392","v":0}]
["Sch VI","Schedule of Assets",null,"(G) Real Estate - Cost 67",{"$f":"'Schedule VI'!F1411","v":0},null,null,null,null,null,null,null,{"$f":"'Schedule VI (EBS)'!F1411","v":0}]
["Sch VI","Schedule of Assets",null,"(G) Real Estate - Cost 92",{"$f":"'Schedule VI'!F1436","v":0},null,null,null,null,null,null,null,{"$f":"'Schedule VI (EBS)'!F1436","v":0}]
["Sch VI","Schedule of Assets",null,"(G) Real Estate - Fair Value 11",{"$f":"'Schedule VI'!G1355","v":0},null,null,null,null,null,null,null,{"$f":"'Schedule VI (EBS)'!G1355","v":0}]
["Sch VI","Schedule of Assets",null,"(G) Real Estate - Fair Value 17",{"$f":"'Schedule VI'!G1361","v":0},null,null,null,null,null,null,null,{"$f":"'Schedule VI (EBS)'!G1361","v":0}]
["Sch VI","Schedule of Assets",null,"(G) Real Estate - Fair Value 46",{"$f":"'Schedule VI'!G1390","v":0},null,null,null,null,null,null,null,{"$f":"'Schedule VI (EBS)'!G1390","v":0}]
["Sch VI","Schedule of Assets",null,"(G) Real Estate - Fair Value 56",{"$f":"'Schedule VI'!G1400","v":0},null,null,null,null,null,null,null,{"$f":"'Schedule VI (EBS)'!G1400","v":0}]
["Sch VI","Schedule of Assets",null,"(G) Real Estate - Fair Value 81",{"$f":"'Schedule VI'!G1425","v":0},null,null,null,null,null,null,null,{"$f":"'Schedule VI (EBS)'!G1425","v":0}]
["Sch VI","Schedule of Assets",null,"(G) Real Estate - Fair Value 100",{"$f":"'Schedule VI'!G1444","v":0},null,null,null,null,null,null,null,{"$f":"'Schedule VI (EBS)'!G1444","v":0}]
["Sch VI","Schedule of Assets",null,"(G) Real Estate - Comments 19",{"$f":"'Schedule VI'!H1363","v":0},null,null,null,null,null,null,null,{"$f":"'Schedule VI (EBS)'!H1363","v":0}]
["Sch VI","Schedule of Assets",null,"(G) Real Estate - Comments 44",{"$f":"'Schedule VI'!H1388","v":0},null,null,null,null,null,null,null,{"$f":"'Schedule VI (EBS)'!H1388","v":0}]
["Sch VI","Schedule of Assets",null,"(G) Real Estate - Comments 63",{"$f":"'Schedule VI'!H1407","v":0},null,null,null,null,null,null,null,{"$f":"'Schedule VI (EBS)'!H1407","v":0}]
["Sch VI","Schedule of Assets",null,"(G) Real Estate - Comments 69",{"$f":"'Schedule VI'!H1413","v":0},null,null,null,null,null,null,null,{"$f":"'Schedule VI (EBS)'!H1413","v":0}]
["Sch VI","Schedule of Assets",null,"(G) Real Estate - Comments 87",{"$f":"'Schedule VI'!H1431","v":0},null,null,null,null,null,null,null,{"$f":"'Schedule VI (EBS)'!H1431","v":0}]
["Sch VI","Schedule of Assets",null,"(H) Other Alt. Inv. - Asset Type 7",{"$f":"'Schedule VI'!B1459","v":"Select"},null,null,null,null,null,null,null,{"$f":"'Schedule VI (EBS)'!B1459","v":"Select"}]
["Sch VI","Schedule of Assets",null,"(H) Other Alt. Inv. - Asset Type 32",{"$f":"'Schedule VI'!B1484","v":"Select"},null,null,null,null,null,null,null,{"$f":"'Schedule VI (EBS)'!B1484","v":"Select"}]
["Sch VI","Schedule of Assets",null,"(H) Other Alt. Inv. - Asset Type 51",{"$f":"'Schedule VI'!B1503","v":"Select"},null,null,null,null,null,null,null,{"$f":"'Schedule VI (EBS)'!B1503","v":"Select"}]
["Sch VI","Schedule of Assets",null,"(H) Other Alt. Inv. - Asset Type 70",{"$f":"'Schedule VI'!B1522","v":"Select"},null,null,null,null,null,null,null,{"$f":"'Schedule VI (EBS)'!B1522","v":"Select"}]
["Sch VI","Schedule of Assets",null,"(H) Other Alt. Inv. - Asset Type 95",{"$f":"'Schedule VI'!B1547","v":"Select"},null,null,null,null,null,null,null,{"$f":"'Schedule VI (EBS)'!B1547","v":"Select"}]
["Sch VI","Schedule of Assets",null,"(H) Other Alt. Inv. - Currency 14",{"$f":"'Schedule VI'!C1466","v":"Select"},null,null,null,null,null,null,null,{"$f":"'Schedule VI (EBS)'!C1466","v":"Select"}]
["Sch VI","Schedule of Assets",null,"(H) Other Alt. Inv. - Currency 23",{"$f":"'Schedule VI'!C1475","v":"Select"},null,null,null,null,null,null,null,{"$f":"'Schedule VI (EBS)'!C1475","v":"Select"}]
["Sch VI","Schedule of Assets",null,"(H) Other Alt. Inv. - Currency 40",{"$f":"'Schedule VI'!C1492","v":"Select"},null,null,null,null,null,null,null,{"$f":"'Schedule VI (EBS)'!C1492","v":"Select"}]
["Sch VI","Schedule of Assets",null,"(H) Other Alt. Inv. - Currency 59",{"$f":"'Schedule VI'!C1511","v":"Select"},null,null,null,null,null,null,null,{"$f":"'Schedule VI (EBS)'!C1511","v":"Select"}]
["Sch VI","Schedule of Assets",null,"(H) Other Alt. Inv. - Currency 84",{"$f":"'Schedule VI'!C1536","v":"Select"},null,null,null,null,null,null,null,{"$f":"'Schedule VI (EBS)'!C1536","v":"Select"}]
["Sch VI","Schedule of Assets",null,"(H) Other Alt. Inv. - Country 3",{"$f":"'Schedule VI'!D1455","v":"Select"},null,null,null,null,null,null,null,{"$f":"'Schedule VI (EBS)'!D1455","v":"Select"}]
["Sch VI","Schedule of Assets",null,"(H) Other Alt. Inv. - Country 28",{"$f":"'Schedule VI'!D1480","v":"Select"},null,null,null,null,null,null,null,{"$f":"'Schedule VI (EBS)'!D1480","v":"Select"}]
["Sch VI","Schedule of Assets",null,"(H) Other Alt. Inv. - Country 47",{"$f":"'Schedule VI'!D1499","v":"Select"},null,null,null,null,null,null,null,{"$f":"'Schedule VI (EBS)'!D1499","v":"Select"}]
["Sch VI","Schedule of Assets",null,"(H) Other Alt. Inv. - Country 66",{"$f":"'Schedule VI'!D1518","v":"Select"},null,null,null,null,null,null,null,{"$f":"'Schedule VI (EBS)'!D1518","v":"Select"}]
["Sch VI","Schedule of Assets",null,"(H) Other Alt. Inv. - Country 84",{"$f":"'Schedule VI'!D1536","v":"Select"},null,null,null,null,null,null,null,{"$f":"'Schedule VI (EBS)'!D1536","v":"Select"}]
["Sch VI","Schedule of Assets",null,"(H) Other Alt. Inv. - Country 92",{"$f":"'Schedule VI'!D1544","v":"Select"},null,null,null,null,null,null,null,{"$f":"'Schedule VI (EBS)'!D1544","v":"Select"}]
["Sch VI","Schedule of Assets",null,"(H) Other Alt. Inv. - Rating 11",{"$f":"'Schedule VI'!E1463","v":"Select"},null,null,null,null,null,null,null,{"$f":"'Schedule VI (EBS)'!E1463","v":"Select"}]
["Sch VI","Schedule of Assets",null,"(H) Other Alt. Inv. - Rating 36",{"$f":"'Schedule VI'!E1488","v":"Select"},null,null,null,null,null,null,null,{"$f":"'Schedule VI (EBS)'!E1488","v":"Select"}]
["Sch VI","Schedule of Assets",null,"(H) Other Alt. Inv. - Rating 55",{"$f":"'Schedule VI'!E1507","v":"Select"},null,null,null,null,null,null,null,{"$f":"'Schedule VI (EBS)'!E1507","v":"Select"}]
["Sch VI","Schedule of Assets",null,"(H) Other Alt. Inv. - Rating 80",{"$f":"'Schedule VI'!E1532","v":"Select"},null,null,null,null,null,null,null,{"$f":"'Schedule VI (EBS)'!E1532","v":"Select"}]
["Sch VI","Schedule of Assets",null,"(H) Other Alt. Inv. - Rating 99",{"$f":"'Schedule VI'!E1551","v":"Select"},null,null,null,null,null,null,null,{"$f":"'Schedule VI (EBS)'!E1551","v":"Select"}]
["Sch VI","Schedule of Assets",null,"(H) Other Alt. Inv. - Nominal Amount 5",{"$f":"'Schedule VI'!F1457","v":0},null,null,null,null,null,null,null,{"$f":"'Schedule VI (EBS)'!F1457","v":0}]
["Sch VI","Schedule of Assets",null,"(H) Other Alt. Inv. - Nominal Amount 25",{"$f":"'Schedule VI'!F1477","v":0},null,null,null,null,null,null,null,{"$f":"'Schedule VI (EBS)'!F1477","v":0}]
["Sch VI","Schedule of Assets",null,"(H) Other Alt. Inv. - Nominal Amount 44",{"$f":"'Schedule VI'!F1496","v":0},null,null,null,null,null,null,null,{"$f":"'Schedule VI (EBS)'!F1496","v":0}]
["Sch VI","Schedule of Assets",null,"(H) Other Alt. Inv. - Nominal Amount 63",{"$f":"'Schedule VI'!F1515","v":0},null,null,null,null,null,null,null,{"$f":"'Schedule VI (EBS)'!F1515","v":0}]
["Sch VI","Schedule of Assets",null,"(H) Other Alt. Inv. - Nominal Amount 88",{"$f":"'Schedule VI'!F1540","v":0},null,null,null,null,null,null,null,{"$f":"'Schedule VI (EBS)'!F1540","v":0}]
["Sch VI","Schedule of Assets",null,"(H) Other Alt. Inv. - Fair Value 7",{"$f":"'Schedule VI'!G1459","v":0},null,null,null,null,null,null,null,{"$f":"'Schedule VI (EBS)'!G1459","v":0}]
["Sch VI","Schedule of Assets",null,"(H) Other Alt. Inv. - Fair Value 32",{"$f":"'Schedule VI'!G1484","v":0},null,null,null,null,null,null,null,{"$f":"'Schedule VI (EBS)'!G1484","v":0}]
["Sch VI","Schedule of Assets",null,"(H) Other Alt. Inv. - Fair Value 51",{"$f":"'Schedule VI'!G1503","v":0},null,null,null,null,null,null,null,{"$f":"'Schedule VI (EBS)'!G1503","v":0}]
["Sch VI","Schedule of Assets",null,"(H) Other Alt. Inv. - Fair Value 66",{"$f":"'Schedule VI'!G1518","v":0},null,null,null,null,null,null,null,{"$f":"'Schedule VI (EBS)'!G1518","v":0}]
["Sch VI","Schedule of Assets",null,"(H) Other Alt. Inv. - Fair Value 77",{"$f":"'Schedule VI'!G1529","v":0},null,null,null,null,null,null,null,{"$f":"'Schedule VI (EBS)'!G1529","v":0}]
["Sch VI","Schedule of Assets",null,"(H) Other Alt. Inv. - Fair Value 96",{"$f":"'Schedule VI'!G1548","v":0},null,null,null,null,null,null,null,{"$f":"'Schedule VI (EBS)'!G1548","v":0}]
["Sch VI","Schedule of Assets",null,"(H) Other Alt. Inv. - Weighted Avg YTM 21",{"$f":"'Schedule VI'!H1473","v":0},null,null,null,null,null,null,null,{"$f":"'Schedule VI (EBS)'!H1473","v":0}]
["Sch VI","Schedule of Assets",null,"(H) Other Alt. Inv. - Weighted Avg YTM 40",{"$f":"'Schedule VI'!H1492","v":0},null,null,null,null,null,null,null,{"$f":"'Schedule VI (EBS)'!H1492","v":0}]
["Sch VI","Schedule of Assets",null,"(H) Other Alt. Inv. - Weighted Avg YTM 59",{"$f":"'Schedule VI'!H1511","v":0},null,null,null,null,null,null,null,{"$f":"'Schedule VI (EBS)'!H1511","v":0}]
["Sch VI","Schedule of Assets",null,"(H) Other Alt. Inv. - Weighted Avg YTM 84",{"$f":"'Schedule VI'!H1536","v":0},null,null,null,null,null,null,null,{"$f":"'Schedule VI (EBS)'!H1536","v":0}]
["Sch VI","Schedule of Assets",null,"(H) Other Alt. Inv. - Effective Duration 3",{"$f":"'Schedule VI'!I1455","v":0},null,null,null,null,null,null,null,{"$f":"'Schedule VI (EBS)'!I1455","v":0}]
["Sch VI","Schedule of Assets",null,"(H) Other Alt. Inv. - Effective Duration 27",{"$f":"'Schedule VI'!I1479","v":0},null,null,null,null,null,null,null,{"$f":"'Schedule VI (EBS)'!I1479","v":0}]
["Sch VI","Schedule of Assets",null,"(H) Other Alt. Inv. - Effective Duration 48",{"$f":"'Schedule VI'!I1500","v":0},null,null,null,null,null,null,null,{"$f":"'Schedule VI (EBS)'!I1500","v":0}]
["Sch VI","Schedule of Assets",null,"(H) Other Alt. Inv. - Effective Duration 67",{"$f":"'Schedule VI'!I1519","v":0},null,null,null,null,null,null,null,{"$f":"'Schedule VI (EBS)'!I1519","v":0}]
["Sch VI","Schedule of Assets",null,"(H) Other Alt. Inv. - Effective Duration 73",{"$f":"'Schedule VI'!I1525","v":0},null,null,null,null,null,null,null,{"$f":"'Schedule VI (EBS)'!I1525","v":0}]
["Sch VI","Schedule of Assets",null,"(H) Other Alt. Inv. - Effective Duration 92",{"$f":"'Schedule VI'!I1544","v":0},null,null,null,null,null,null,null,{"$f":"'Schedule VI (EBS)'!I1544","v":0}]
["Sch VI","Schedule of Assets",null,"(H) Other Alt. Inv. - Comments 11",{"$f":"'Schedule VI'!J1463","v":0},null,null,null,null,null,null,null,{"$f":"'Schedule VI (EBS)'!J1463","v":0}]
["Sch VI","Schedule of Assets",null,"(H) Other Alt. Inv. - Comments 36",{"$f":"'Schedule VI'!J1488","v":0},null,null,null,null,null,null,null,{"$f":"'Schedule VI (EBS)'!J1488","v":0}]
["Sch VI","Schedule of Assets",null,"(H) Other Alt. Inv. - Comments 44",{"$f":"'Schedule VI'!J1496","v":0},null,null,null,null,null,null,null,{"$f":"'Schedule VI (EBS)'!J1496","v":0}]
["Sch VI","Schedule of Assets",null,"(H) Other Alt. Inv. - Comments 81",{"$f":"'Schedule VI'!J1533","v":0},null,null,null,null,null,null,null,{"$f":"'Schedule VI (EBS)'!J1533","v":0}]
["Sch VI","Schedule of Assets",null,"(H) Other Alt. Inv. - Comments 100",{"$f":"'Schedule VI'!J1552","v":0},null,null,null,null,null,null,null,{"$f":"'Schedule VI (EBS)'!J1552","v":0}]
["Sch VI","Schedule of Assets",null,"(I) Derivatives - Derivative Type 18",{"$f":"'Schedule VI'!B1577","v":"Select"},null,null,null,null,null,null,null,{"$f":"'Schedule VI (EBS)'!B1577","v":"Select"}]
["Sch VI","Schedule of Assets",null,"(I) Derivatives - Derivative Type 24",{"$f":"'Schedule VI'!B1583","v":"Select"},null,null,null,null,null,null,null,{"$f":"'Schedule VI (EBS)'!B1583","v":"Select"}]
["Sch VI","Schedule of Assets",null,"(I) Derivatives - Derivative Type 43",{"$f":"'Schedule VI'!B1602","v":"Select"},null,null,null,null,null,null,null,{"$f":"'Schedule VI (EBS)'!B1602","v":"Select"}]
["Sch VI","Schedule of Assets",null,"(I) Derivatives - Derivative Type 62",{"$f":"'Schedule VI'!B1621","v":"Select"},null,null,null,null,null,null,null,{"$f":"'Schedule VI (EBS)'!B1621","v":"Select"}]
["Sch VI","Schedule of Assets",null,"(I) Derivatives - Derivative Type 87",{"$f":"'Schedule VI'!B1646","v":"Select"},null,null,null,null,null,null,null,{"$f":"'Schedule VI (EBS)'!B1646","v":"Select"}]
["Sch VI","Schedule of Assets",null,"(I) Derivatives - Derivative Type 104",{"$f":"'Schedule VI'!B1663","v":"Select"},null,null,null,null,null,null,null,{"$f":"'Schedule VI (EBS)'!B1663","v":"Select"}]
["Sch VI","Schedule of Assets",null,"(I) Derivatives - Derivative Type 132",{"$f":"'Schedule VI'!B1691","v":"Select"},null,null,null,null,null,null,null,{"$f":"'Schedule VI (EBS)'!B1691","v":"Select"}]
["Sch VI","Schedule of Assets",null,"(I) Derivatives - Derivative Type 151",{"$f":"'Schedule VI'!B1710","v":"Select"},null,null,null,null,null,null,null,{"$f":"'Schedule VI (EBS)'!B1710","v":"Select"}]
["Sch VI","Schedule of Assets",null,"(I) Derivatives - Derivative Type 170",{"$f":"'Schedule VI'!B1729","v":"Select"},null,null,null,null,null,null,null,{"$f":"'Schedule VI (EBS)'!B1729","v":"Select"}]
["Sch VI","Schedule of Assets",null,"(I) Derivatives - Derivative Type 176",{"$f":"'Schedule VI'!B1735","v":"Select"},null,null,null,null,null,null,null,{"$f":"'Schedule VI (EBS)'!B1735","v":"Select"}]
["Sch VI","Schedule of Assets",null,"(I) Derivatives - Derivative Type 195",{"$f":"'Schedule VI'!B1754","v":"Select"},null,null,null,null,null,null,null,{"$f":"'Schedule VI (EBS)'!B1754","v":"Select"}]
["Sch VI","Schedule of Assets",null,"(I) Derivatives - Underlying 14",{"$f":"'Schedule VI'!C1573","v":"Select"},null,null,null,null,null,null,null,{"$f":"'Schedule VI (EBS)'!C1573","v":"Select"}]
["Sch VI","Schedule of Assets",null,"(I) Derivatives - Underlying 41",{"$f":"'Schedule VI'!C1600","v":"Select"},null,null,null,null,null,null,null,{"$f":"'Schedule VI (EBS)'!C1600","v":"Select"}]
["Sch VI","Schedule of Assets",null,"(I) Derivatives - Underlying 59",{"$f":"'Schedule VI'!C1618","v":"Select"},null,null,null,null,null,null,null,{"$f":"'Schedule VI (EBS)'!C1618","v":"Select"}]
["Sch VI","Schedule of Assets",null,"(I) Derivatives - Underlying 84",{"$f":"'Schedule VI'!C1643","v":"Select"},null,null,null,null,null,null,null,{"$f":"'Schedule VI (EBS)'!C1643","v":"Select"}]
["Sch VI","Schedule of Assets",null,"(I) Derivatives - Underlying 103",{"$f":"'Schedule VI'!C1662","v":"Select"},null,null,null,null,null,null,null,{"$f":"'Schedule VI (EBS)'!C1662","v":"Select"}]
["Sch VI","Schedule of Assets",null,"(I) Derivatives - Underlying 122",{"$f":"'Schedule VI'!C1681","v":"Select"},null,null,null,null,null,null,null,{"$f":"'Schedule VI (EBS)'!C1681","v":"Select"}]
["Sch VI","Schedule of Assets",null,"(I) Derivatives - Underlying 128",{"$f":"'Schedule VI'!C1687","v":"Select"},null,null,null,null,null,null,null,{"$f":"'Schedule VI (EBS)'!C1687","v":"Select"}]
["Sch VI","Schedule of Assets",null,"(I) Derivatives - Underlying 147",{"$f":"'Schedule VI'!C1706","v":"Select"},null,null,null,null,null,null,null,{"$f":"'Schedule VI (EBS)'!C1706","v":"Select"}]
["Sch VI","Schedule of Assets",null,"(I) Derivatives - Underlying 172",{"$f":"'Schedule VI'!C1731","v":"Select"},null,null,null,null,null,null,null,{"$f":"'Schedule VI (EBS)'!C1731","v":"Select"}]
["Sch VI","Schedule of Assets",null,"(I) Derivatives - Currency 2",{"$f":"'Schedule VI'!D1561","v":"Select"},null,null,null,null,null,null,null,{"$f":"'Schedule VI (EBS)'!D1561","v":"Select"}]
["Sch VI","Schedule of Assets",null,"(I) Derivatives - Currency 11",{"$f":"'Schedule VI'!D1570","v":"Select"},null,null,null,null,null,null,null,{"$f":"'Schedule VI (EBS)'!D1570","v":"Select"}]
["Sch VI","Schedule of Assets",null,"(I) Derivatives - Currency 36",{"$f":"'Schedule VI'!D1595","v":"Select"},null,null,null,null,null,null,null,{"$f":"'Schedule VI (EBS)'!D1595","v":"Select"}]
["Sch VI","Schedule of Assets",null,"(I) Derivatives - Currency 55",{"$f":"'Schedule VI'!D1614","v":"Select"},null,null,null,null,null,null,null,{"$f":"'Schedule VI (EBS)'!D1614","v":"Select"}]
["Sch VI","Schedule of Assets",null,"(I) Derivatives - Currency 74",{"$f":"'Schedule VI'!D1633","v":"Select"},null,null,null,null,null,null,null,{"$f":"'Schedule VI (EBS)'!D1633","v":"Select"}]
["Sch VI","Schedule of Assets",null,"(I) Derivatives - Currency 80",{"$f":"'Schedule VI'!D1639","v":"Select"},null,null,null,null,null,null,null,{"$f":"'Schedule VI (EBS)'!D1639","v":"Select"}]
["Sch VI","Schedule of Assets",null,"(I) Derivatives - Currency 99",{"$f":"'Schedule VI'!D1658","v":"Select"},null,null,null,null,null,null,null,{"$f":"'Schedule VI (EBS)'!D1658","v":"Select"}]
["Sch VI","Schedule of Assets",null,"(I) Derivatives - Currency 119",{"$f":"'Schedule VI'!D1678","v":"Select"},null,null,null,null,null,null,null,{"$f":"'Schedule VI (EBS)'!D1678","v":"Select"}]
["Sch VI","Schedule of Assets",null,"(I) Derivatives - Currency 144",{"$f":"'Schedule VI'!D1703","v":"Select"},null,null,null,null,null,null,null,{"$f":"'Schedule VI (EBS)'!D1703","v":"Select"}]
["Sch VI","Schedule of Assets",null,"(I) Derivatives - Currency 163",{"$f":"'Schedule VI'!D1722","v":"Select"},null,null,null,null,null,null,null,{"$f":"'Schedule VI (EBS)'!D1722","v":"Select"}]
["Sch VI","Schedule of Assets",null,"(I) Derivatives - Currency 188",{"$f":"'Schedule VI'!D1747","v":"Select"},null,null,null,null,null,null,null,{"$f":"'Schedule VI (EBS)'!D1747","v":"Select"}]
["Sch VI","Schedule of Assets",null,"(I) Derivatives - Trading Category 7",{"$f":"'Schedule VI'!E1566","v":"Select"},null,null,null,null,null,null,null,{"$f":"'Schedule VI (EBS)'!E1566","v":"Select"}]
["Sch VI","Schedule of Assets",null,"(I) Derivatives - Trading Category 13",{"$f":"'Schedule VI'!E1572","v":"Select"},null,null,null,null,null,null,null,{"$f":"'Schedule VI (EBS)'!E1572","v":"Select"}]
["Sch VI","Schedule of Assets",null,"(I) Derivatives - Trading Category 32",{"$f":"'Schedule VI'!E1591","v":"Select"},null,null,null,null,null,null,null,{"$f":"'Schedule VI (EBS)'!E1591","v":"Select"}]
["Sch VI","Schedule of Assets",null,"(I) Derivatives - Trading Category 51",{"$f":"'Schedule VI'!E1610","v":"Select"},null,null,null,null,null,null,null,{"$f":"'Schedule VI (EBS)'!E1610","v":"Select"}]
["Sch VI","Schedule of Assets",null,"(I) Derivatives - Trading Category 80",{"$f":"'Schedule VI'!E1639","v":"Select"},null,null,null,null,null,null,null,{"$f":"'Schedule VI (EBS)'!E1639","v":"Select"}]
["Sch VI","Schedule of Assets",null,"(I) Derivatives - Trading Category 96",{"$f":"'Schedule VI'!E1655","v":"Select"},null,null,null,null,null,null,null,{"$f":"'Schedule VI (EBS)'!E1655","v":"Select"}]
["Sch VI","Schedule of Assets",null,"(I) Derivatives - Trading Category 115",{"$f":"'Schedule VI'!E1674","v":"Select"},null,null,null,null,null,null,null,{"$f":"'Schedule VI (EBS)'!E1674","v":"Select"}]
["Sch VI","Schedule of Assets",null,"(I) Derivatives - Trading Category 140",{"$f":"'Schedule VI'!E1699","v":"Select"},null,null,null,null,null,null,null,{"$f":"'Schedule VI (EBS)'!E1699","v":"Select"}]
["Sch VI","Schedule of Assets",null,"(I) Derivatives - Trading Category 159",{"$f":"'Schedule VI'!E1718","v":"Select"},null,null,null,null,null,null,null,{"$f":"'Schedule VI (EBS)'!E1718","v":"Select"}]
["Sch VI","Schedule of Assets",null,"(I) Derivatives - Trading Category 184",{"$f":"'Schedule VI'!E1743","v":"Select"},null,null,null,null,null,null,null,{"$f":"'Schedule VI (EBS)'!E1743","v":"Select"}]
["Sch VI","Schedule of Assets",null,"(I) Derivatives - Purpose 3",{"$f":"'Schedule VI'!F1562","v":"Select"},null,null,null,null,null,null,null,{"$f":"'Schedule VI (EBS)'!F1562","v":"Select"}]
["Sch VI","Schedule of Assets",null,"(I) Derivatives - Purpose 22",{"$f":"'Schedule VI'!F1581","v":"Select"},null,null,null,null,null,null,null,{"$f":"'Schedule VI (EBS)'!F1581","v":"Select"}]
["Sch VI","Schedule of Assets",null,"(I) Derivatives - Purpose 41",{"$f":"'Schedule VI'!F1600","v":"Select"},null,null,null,null,null,null,null,{"$f":"'Schedule VI (EBS)'!F1600","v":"Select"}]
["Sch VI","Schedule of Assets",null,"(I) Derivatives - Purpose 48",{"$f":"'Schedule VI'!F1607","v":"Select"},null,null,null,null,null,null,null,{"$f":"'Schedule VI (EBS)'!F1607","v":"Select"}]
["Sch VI","Schedule of Assets",null,"(I) Derivatives - Purpose 67",{"$f":"'Schedule VI'!F1626","v":"Select"},null,null,null,null,null,null,null,{"$f":"'Schedule VI (EBS)'!F1626","v":"Select"}]
["Sch VI","Schedule of Assets",null,"(I) Derivatives - Purpose 92",{"$f":"'Schedule VI'!F1651","v":"Select"},null,null,null,null,null,null,null,{"$f":"'Schedule VI (EBS)'!F1651","v":"Select"}]
["Sch VI","Schedule of Assets",null,"(I) Derivatives - Purpose 111",{"$f":"'Schedule VI'!F1670","v":"Select"},null,null,null,null,null,null,null,{"$f":"'Schedule VI (EBS)'!F1670","v":"Select"}]
["Sch VI","Schedule of Assets",null,"(I) Derivatives - Purpose 136",{"$f":"'Schedule VI'!F1695","v":"Select"},null,null,null,null,null,null,null,{"$f":"'Schedule VI (EBS)'!F1695","v":"Select"}]
["Sch VI","Schedule of Assets",null,"(I) Derivatives - Purpose 155",{"$f":"'Schedule VI'!F1714","v":"Select"},null,null,null,null,null,null,null,{"$f":"'Schedule VI (EBS)'!F1714","v":"Select"}]
["Sch VI","Schedule of Assets",null,"(I) Derivatives - Purpose 162",{"$f":"'Schedule VI'!F1721","v":"Select"},null,null,null,null,null,null,null,{"$f":"'Schedule VI (EBS)'!F1721","v":"Select"}]
["Sch VI","Schedule of Assets",null,"(I) Derivatives - Purpose 181",{"$f":"'Schedule VI'!F1740","v":"Select"},null,null,null,null,null,null,null,{"$f":"'Schedule VI (EBS)'!F1740","v":"Select"}]
["Sch VI","Schedule of Assets",null,"(I) Derivatives - Purpose 200",{"$f":"'Schedule VI'!F1759","v":"Select"},null,null,null,null,null,null,null,{"$f":"'Schedule VI (EBS)'!F1759","v":"Select"}]
["Sch VI","Schedule of Assets",null,"(I) Derivatives - Position 25",{"$f":"'Schedule VI'!G1584","v":"Select"},null,null,null,null,null,null,null,{"$f":"'Schedule VI (EBS)'!G1584","v":"Select"}]
["Sch VI","Schedule of Assets",null,"(I) Derivatives - Position 44",{"$f":"'Schedule VI'!G1603","v":"Select"},null,null,null,null,null,null,null,{"$f":"'Schedule VI (EBS)'!G1603","v":"Select"}]
["Sch VI","Schedule of Assets",null,"(I) Derivatives - Position 63",{"$f":"'Schedule VI'!G1622","v":"Select"},null,null,null,null,null,null,null,{"$f":"'Schedule VI (EBS)'!G1622","v":"Select"}]
["Sch VI","Schedule of Assets",null,"(I) Derivatives - Position 88",{"$f":"'Schedule VI'!G1647","v":"Select"},null,null,null,null,null,null,null,{"$f":"'Schedule VI (EBS)'!G1647","v":"Select"}]
["Sch VI","Schedule of Assets",null,"(I) Derivatives - Position 107",{"$f":"'Schedule VI'!G1666","v":"Select"},null,null,null,null,null,null,null,{"$f":"'Schedule VI (EBS)'!G1666","v":"Select"}]
["Sch VI","Schedule of Assets",null,"(I) Derivatives - Position 123",{"$f":"'Schedule VI'!G1682","v":"Select"},null,null,null,null,null,null,null,{"$f":"'Schedule VI (EBS)'!G1682","v":"Select"}]
["Sch VI","Schedule of Assets",null,"(I) Derivatives - Position 133",{"$f":"'Schedule VI'!G1692","v":"Select"},null,null,null,null,null,null,null,{"$f":"'Schedule VI (EBS)'!G1692","v":"Select"}]
["Sch VI","Schedule of Assets",null,"(I) Derivatives - Position 152",{"$f":"'Schedule VI'!G1711","v":"Select"},null,null,null,null,null,null,null,{"$f":"'Schedule VI (EBS)'!G1711","v":"Select"}]
["Sch VI","Schedule of Assets",null,"(I) Derivatives - Position 177",{"$f":"'Schedule VI'!G1736","v":"Select"},null,null,null,null,null,null,null,{"$f":"'Schedule VI (EBS)'!G1736","v":"Select"}]
["Sch VI","Schedule of Assets",null,"(I) Derivatives - Position 196",{"$f":"'Schedule VI'!G1755","v":"Select"},null,null,null,null,null,null,null,{"$f":"'Schedule VI (EBS)'!G1755","v":"Select"}]
["Sch VI","Schedule of Assets",null,"(I) Derivatives - Pos./Neg. - 15",{"$f":"'Schedule VI'!H1574","v":"Select"},null,null,null,null,null,null,null,{"$f":"'Schedule VI (EBS)'!H1574","v":"Select"}]
["Sch VI","Schedule of Assets",null,"(I) Derivatives - Pos./Neg. - 40",{"$f":"'Schedule VI'!H1599","v":"Select"},null,null,null,null,null,null,null,{"$f":"'Schedule VI (EBS)'!H1599","v":"Select"}]
["Sch VI","Schedule of Assets",null,"(I) Derivatives - Pos./Neg. - 60",{"$f":"'Schedule VI'!H1619","v":"Select"},null,null,null,null,null,null,null,{"$f":"'Schedule VI (EBS)'!H1619","v":"Select"}]
["Sch VI","Schedule of Assets",null,"(I) Derivatives - Pos./Neg. - 79",{"$f":"'Schedule VI'!H1638","v":"Select"},null,null,null,null,null,null,null,{"$f":"'Schedule VI (EBS)'!H1638","v":"Select"}]
["Sch VI","Schedule of Assets",null,"(I) Derivatives - Pos./Neg. - 85",{"$f":"'Schedule VI'!H1644","v":"Select"},null,null,null,null,null,null,null,{"$f":"'Schedule VI (EBS)'!H1644","v":"Select"}]
["Sch VI","Schedule of Assets",null,"(I) Derivatives - Pos./Neg. - 104",{"$f":"'Schedule VI'!H1663","v":"Select"},null,null,null,null,null,null,null,{"$f":"'Schedule VI (EBS)'!H1663","v":"Select"}]
["Sch VI","Schedule of Assets",null,"(I) Derivatives - Pos./Neg. - 129",{"$f":"'Schedule VI'!H1688","v":"Select"},null,null,null,null,null,null,null,{"$f":"'Schedule VI (EBS)'!H1688","v":"Select"}]
["Sch VI","Schedule of Assets",null,"(I) Derivatives - Pos./Neg. - 148",{"$f":"'Schedule VI'!H1707","v":"Select"},null,null,null,null,null,null,null,{"$f":"'Schedule VI (EBS)'!H1707","v":"Select"}]
["Sch VI","Schedule of Assets",null,"(I) Derivatives - Pos./Neg. - 167",{"$f":"'Schedule VI'!H1726","v":"Select"},null,null,null,null,null,null,null,{"$f":"'Schedule VI (EBS)'!H1726","v":"Select"}]
["Sch VI","Schedule of Assets",null,"(I) Derivatives - Pos./Neg. - 192",{"$f":"'Schedule VI'!H1751","v":"Select"},null,null,null,null,null,null,null,{"$f":"'Schedule VI (EBS)'!H1751","v":"Select"}]
["Sch VI","Schedule of Assets",null,"(I) Derivatives - Market Value 1",{"$f":"'Schedule VI'!I1560","v":0},null,null,null,null,null,null,null,{"$f":"'Schedule VI (EBS)'!I1560","v":0}]
["Sch VI","Schedule of Assets",null,"(I) Derivatives - Market Value 18",{"$f":"'Schedule VI'!I1577","v":0},null,null,null,null,null,null,null,{"$f":"'Schedule VI (EBS)'!I1577","v":0}]
["Sch VI","Schedule of Assets",null,"(I) Derivatives - Market Value 37",{"$f":"'Schedule VI'!I1596","v":0},null,null,null,null,null,null,null,{"$f":"'Schedule VI (EBS)'!I1596","v":0}]
["Sch VI","Schedule of Assets",null,"(I) Derivatives - Market Value 56",{"$f":"'Schedule VI'!I1615","v":0},null,null,null,null,null,null,null,{"$f":"'Schedule VI (EBS)'!I1615","v":0}]
["Sch VI","Schedule of Assets",null,"(I) Derivatives - Market Value 81",{"$f":"'Schedule VI'!I1640","v":0},null,null,null,null,null,null,null,{"$f":"'Schedule VI (EBS)'!I1640","v":0}]
["Sch VI","Schedule of Assets",null,"(I) Derivatives - Market Value 100",{"$f":"'Schedule VI'!I1659","v":0},null,null,null,null,null,null,null,{"$f":"'Schedule VI (EBS)'!I1659","v":0}]
["Sch VI","Schedule of Assets",null,"(I) Derivatives - Market Value 119",{"$f":"'Schedule VI'!I1678","v":0},null,null,null,null,null,null,null,{"$f":"'Schedule VI (EBS)'!I1678","v":0}]
["Sch VI","Schedule of Assets",null,"(I) Derivatives - Market Value 144",{"$f":"'Schedule VI'!I1703","v":0},null,null,null,null,null,null,null,{"$f":"'Schedule VI (EBS)'!I1703","v":0}]
["Sch VI","Schedule of Assets",null,"(I) Derivatives - Market Value 162",{"$f":"'Schedule VI'!I1721","v":0},null,null,null,null,null,null,null,{"$f":"'Schedule VI (EBS)'!I1721","v":0}]
["Sch VI","Schedule of Assets",null,"(I) Derivatives - Market Value 170",{"$f":"'Schedule VI'!I1729","v":0},null,null,null,null,null,null,null,{"$f":"'Schedule VI (EBS)'!I1729","v":0}]
["Sch VI","Schedule of Assets",null,"(I) Derivatives - Market Value 189",{"$f":"'Schedule VI'!I1748","v":0},null,null,null,null,null,null,null,{"$f":"'Schedule VI (EBS)'!I1748","v":0}]
["Sch VI","Schedule of Assets",null,"(I) Derivatives - Gross Notional Value 8",{"$f":"'Schedule VI'!J1567","v":0},null,null,null,null,null,null,null,{"$f":"'Schedule VI (EBS)'!J1567","v":0}]
["Sch VI","Schedule of Assets",null,"(I) Derivatives - Gross Notional Value 33",{"$f":"'Schedule VI'!J1592","v":0},null,null,null,null,null,null,null,{"$f":"'Schedule VI (EBS)'!J1592","v":0}]
["Sch VI","Schedule of Assets",null,"(I) Derivatives - Gross Notional Value 52",{"$f":"'Schedule VI'!J1611","v":0},null,null,null,null,null,null,null,{"$f":"'Schedule VI (EBS)'!J1611","v":0}]
["Sch VI","Schedule of Assets",null,"(I) Derivatives - Gross Notional Value 77",{"$f":"'Schedule VI'!J1636","v":0},null,null,null,null,null,null,null,{"$f":"'Schedule VI (EBS)'!J1636","v":0}]
["Sch VI","Schedule of Assets",null,"(I) Derivatives - Gross Notional Value 99",{"$f":"'Schedule VI'!J1658","v":0},null,null,null,null,null,null,null,{"$f":"'Schedule VI (EBS)'!J1658","v":0}]
["Sch VI","Schedule of Assets",null,"(I) Derivatives - Gross Notional Value 116",{"$f":"'Schedule VI'!J1675","v":0},null,null,null,null,null,null,null,{"$f":"'Schedule VI (EBS)'!J1675","v":0}]
["Sch VI","Schedule of Assets",null,"(I) Derivatives - Gross Notional Value 141",{"$f":"'Schedule VI'!J1700","v":0},null,null,null,null,null,null,null,{"$f":"'Schedule VI (EBS)'!J1700","v":0}]
["Sch VI","Schedule of Assets",null,"(I) Derivatives - Gross Notional Value 160",{"$f":"'Schedule VI'!J1719","v":0},null,null,null,null,null,null,null,{"$f":"'Schedule VI (EBS)'!J1719","v":0}]
["Sch VI","Schedule of Assets",null,"(I) Derivatives - Gross Notional Value 179",{"$f":"'Schedule VI'!J1738","v":0},null,null,null,null,null,null,null,{"$f":"'Schedule VI (EBS)'!J1738","v":0}]
["Sch VI","Schedule of Assets",null,"(I) Derivatives - Gross Notional Value 185",{"$f":"'Schedule VI'!J1744","v":0},null,null,null,null,null,null,null,{"$f":"'Schedule VI (EBS)'!J1744","v":0}]
["Sch VI","Schedule of Assets",null,"(I) Derivatives - Net Notional Value 4",{"$f":"'Schedule VI'!K1563","v":0},null,null,null,null,null,null,null,{"$f":"'Schedule VI (EBS)'!K1563","v":0}]
["Sch VI","Schedule of Assets",null,"(I) Derivatives - Net Notional Value 29",{"$f":"'Schedule VI'!K1588","v":0},null,null,null,null,null,null,null,{"$f":"'Schedule VI (EBS)'!K1588","v":0}]
["Sch VI","Schedule of Assets",null,"(I) Derivatives - Net Notional Value 40",{"$f":"'Schedule VI'!K1599","v":0},null,null,null,null,null,null,null,{"$f":"'Schedule VI (EBS)'!K1599","v":0}]
["Sch VI","Schedule of Assets",null,"(I) Derivatives - Net Notional Value 68",{"$f":"'Schedule VI'!K1627","v":0},null,null,null,null,null,null,null,{"$f":"'Schedule VI (EBS)'!K1627","v":0}]
["Sch VI","Schedule of Assets",null,"(I) Derivatives - Net Notional Value 93",{"$f":"'Schedule VI'!K1652","v":0},null,null,null,null,null,null,null,{"$f":"'Schedule VI (EBS)'!K1652","v":0}]
["Sch VI","Schedule of Assets",null,"(I) Derivatives - Net Notional Value 112",{"$f":"'Schedule VI'!K1671","v":0},null,null,null,null,null,null,null,{"$f":"'Schedule VI (EBS)'!K1671","v":0}]
["Sch VI","Schedule of Assets",null,"(I) Derivatives - Net Notional Value 131",{"$f":"'Schedule VI'!K1690","v":0},null,null,null,null,null,null,null,{"$f":"'Schedule VI (EBS)'!K1690","v":0}]
["Sch VI","Schedule of Assets",null,"(I) Derivatives - Net Notional Value 137",{"$f":"'Schedule VI'!K1696","v":0},null,null,null,null,null,null,null,{"$f":"'Schedule VI (EBS)'!K1696","v":0}]
["Sch VI","Schedule of Assets",null,"(I) Derivatives - Net Notional Value 156",{"$f":"'Schedule VI'!K1715","v":0},null,null,null,null,null,null,null,{"$f":"'Schedule VI (EBS)'!K1715","v":0}]
["Sch VI","Schedule of Assets",null,"(I) Derivatives - Net Notional Value 177",{"$f":"'Schedule VI'!K1736","v":0},null,null,null,null,null,null,null,{"$f":"'Schedule VI (EBS)'!K1736","v":0}]
["Sch VI","Schedule of Assets",null,"(I) Derivatives - Exposure 1",{"$f":"'Schedule VI'!L1560","v":0},null,null,null,null,null,null,null,{"$f":"'Schedule VI (EBS)'!L1560","v":0}]
["Sch VI","Schedule of Assets",null,"(I) Derivatives - Exposure 20",{"$f":"'Schedule VI'!L1579","v":0},null,null,null,null,null,null,null,{"$f":"'Schedule VI (EBS)'!L1579","v":0}]
["Sch VI","Schedule of Assets",null,"(I) Derivatives - Exposure 45",{"$f":"'Schedule VI'!L1604","v":0},null,null,null,null,null,null,null,{"$f":"'Schedule VI (EBS)'!L1604","v":0}]
["Sch VI","Schedule of Assets",null,"(I) Derivatives - Exposure 64",{"$f":"'Schedule VI'!L1623","v":0},null,null,null,null,null,null,null,{"$f":"'Schedule VI (EBS)'!L1623","v":0}]
["Sch VI","Schedule of Assets",null,"(I) Derivatives - Exposure 70",{"$f":"'Schedule VI'!L1629","v":0},null,null,null,null,null,null,null,{"$f":"'Schedule VI (EBS)'!L1629","v":0}]
["Sch VI","Schedule of Assets",null,"(I) Derivatives - Exposure 89",{"$f":"'Schedule VI'!L1648","v":0},null,null,null,null,null,null,null,{"$f":"'Schedule VI (EBS)'!L1648","v":0}]
["Sch VI","Schedule of Assets",null,"(I) Derivatives - Exposure 108",{"$f":"'Schedule VI'!L1667","v":0},null,null,null,null,null,null,null,{"$f":"'Schedule VI (EBS)'!L1667","v":0}]
["Sch VI","Schedule of Assets",null,"(I) Derivatives - Exposure 138",{"$f":"'Schedule VI'!L1697","v":0},null,null,null,null,null,null,null,{"$f":"'Schedule VI (EBS)'!L1697","v":0}]
["Sch VI","Schedule of Assets",null,"(I) Derivatives - Exposure 153",{"$f":"'Schedule VI'!L1712","v":0},null,null,null,null,null,null,null,{"$f":"'Schedule VI (EBS)'!L1712","v":0}]
["Sch VI","Schedule of Assets",null,"(I) Derivatives - Exposure 172",{"$f":"'Schedule VI'!L1731","v":0},null,null,null,null,null,null,null,{"$f":"'Schedule VI (EBS)'!L1731","v":0}]
["Sch VI","Schedule of Assets",null,"(I) Derivatives - Exposure 197",{"$f":"'Schedule VI'!L1756","v":0},null,null,null,null,null,null,null,{"$f":"'Schedule VI (EBS)'!L1756","v":0}]
["Sch VI","Schedule of Assets",null,"(I) Derivatives - Comments 16",{"$f":"'Schedule VI'!M1575","v":0},null,null,null,null,null,null,null,{"$f":"'Schedule VI (EBS)'!M1575","v":0}]
["Sch VI","Schedule of Assets",null,"(I) Derivatives - Comments 22",{"$f":"'Schedule VI'!M1581","v":0},null,null,null,null,null,null,null,{"$f":"'Schedule VI (EBS)'!M1581","v":0}]
["Sch VI","Schedule of Assets",null,"(I) Derivatives - Comments 41",{"$f":"'Schedule VI'!M1600","v":0},null,null,null,null,null,null,null,{"$f":"'Schedule VI (EBS)'!M1600","v":0}]
["Sch VI","Schedule of Assets",null,"(I) Derivatives - Comments 59",{"$f":"'Schedule VI'!M1618","v":0},null,null,null,null,null,null,null,{"$f":"'Schedule VI (EBS)'!M1618","v":0}]
["Sch VI","Schedule of Assets",null,"(I) Derivatives - Comments 86",{"$f":"'Schedule VI'!M1645","v":0},null,null,null,null,null,null,null,{"$f":"'Schedule VI (EBS)'!M1645","v":0}]
["Sch VI","Schedule of Assets",null,"(I) Derivatives - Comments 105",{"$f":"'Schedule VI'!M1664","v":0},null,null,null,null,null,null,null,{"$f":"'Schedule VI (EBS)'!M1664","v":0}]
["Sch VI","Schedule of Assets",null,"(I) Derivatives - Comments 124",{"$f":"'Schedule VI'!M1683","v":0},null,null,null,null,null,null,null,{"$f":"'Schedule VI (EBS)'!M1683","v":0}]
["Sch VI","Schedule of Assets",null,"(I) Derivatives - Comments 149",{"$f":"'Schedule VI'!M1708","v":0},null,null,null,null,null,null,null,{"$f":"'Schedule VI (EBS)'!M1708","v":0}]
["Sch VI","Schedule of Assets",null,"(I) Derivatives - Comments 168",{"$f":"'Schedule VI'!M1727","v":0},null,null,null,null,null,null,null,{"$f":"'Schedule VI (EBS)'!M1727","v":0}]
["Sch VI","Schedule of Assets",null,"(I) Derivatives - Comments 174",{"$f":"'Schedule VI'!M1733","v":0},null,null,null,null,null,null,null,{"$f":"'Schedule VI (EBS)'!M1733","v":0}]
["Sch VI","Schedule of Assets",null,"(I) Derivatives - Comments 193",{"$f":"'Schedule VI'!M1752","v":0},null,null,null,null,null,null,null,{"$f":"'Schedule VI (EBS)'!M1752","v":0}]
["Sch VI","Schedule of Assets",null,"(J) Fin. Inst. Rating 8 - Securitization",{"$f":"'Schedule VI'!G1770","v":0},null,null,null,null,null,null,null,{"$f":"'Schedule VI (EBS)'!G1770","v":0}]
["Sch VI","Schedule of Assets",null,"(J) Fin. Inst. Banks - Other",{"$f":"'Schedule VI'!F1775","v":0},null,null,null,null,null,null,null,{"$f":"'Schedule VI (EBS)'!F1775","v":0}]
["Sch VI","Schedule of Assets",null,"(J) Unlisted Counterparty Rating 4 - Other",{"$f":"'Schedule VI'!F1784","v":0},null,null,null,null,null,null,null,{"$f":"'Schedule VI (EBS)'!F1784","v":0}]
["Sch VI","Schedule of Assets",null,"(K) Other Assets - Asset Type 18",{"$f":"'Schedule VI'!B1813","v":"Select"},null,null,null,null,null,null,null,{"$f":"'Schedule VI (EBS)'!B1813","v":"Select"}]
["Sch VI","Schedule of Assets",null,"(K) Other Assets - Asset Type 37",{"$f":"'Schedule VI'!B1832","v":"Select"},null,null,null,null,null,null,null,{"$f":"'Schedule VI (EBS)'!B1832","v":"Select"}]
["Sch VI","Schedule of Assets",null,"(K) Other Assets - Asset Type 56",{"$f":"'Schedule VI'!B1851","v":"Select"},null,null,null,null,null,null,null,{"$f":"'Schedule VI (EBS)'!B1851","v":"Select"}]
["Sch VI","Schedule of Assets",null,"(K) Other Assets - Asset Type 62",{"$f":"'Schedule VI'!B1857","v":"Select"},null,null,null,null,null,null,null,{"$f":"'Schedule VI (EBS)'!B1857","v":"Select"}]
["Sch VI","Schedule of Assets",null,"(K) Other Assets - Asset Type 81",{"$f":"'Schedule VI'!B1876","v":"Select"},null,null,null,null,null,null,null,{"$f":"'Schedule VI (EBS)'!B1876","v":"Select"}]
["Sch VI","Schedule of Assets",null,"(K) Other Assets - Asset Type 117",{"$f":"'Schedule VI'!B1912","v":"Select"},null,null,null,null,null,null,null,{"$f":"'Schedule VI (EBS)'!B1912","v":"Select"}]
["Sch VI","Schedule of Assets",null,"(K) Other Assets - Asset Type 126",{"$f":"'Schedule VI'!B1921","v":"Select"},null,null,null,null,null,null,null,{"$f":"'Schedule VI (EBS)'!B1921","v":"Select"}]
["Sch VI","Schedule of Assets",null,"(K) Other Assets - Asset Type 145",{"$f":"'Schedule VI'!B1940","v":"Select"},null,null,null,null,null,null,null,{"$f":"'Schedule VI (EBS)'!B1940","v":"Select"}]
["Sch VI","Schedule of Assets",null,"(K) Other Assets - Asset Type 170",{"$f":"'Schedule VI'!B1965","v":"Select"},null,null,null,null,null,null,null,{"$f":"'Schedule VI (EBS)'!B1965","v":"Select"}]
["Sch VI","Schedule of Assets",null,"(K) Other Assets - Asset Type 189",{"$f":"'Schedule VI'!B1984","v":"Select"},null,null,null,null,null,null,null,{"$f":"'Schedule VI (EBS)'!B1984","v":"Select"}]
["Sch VI","Schedule of Assets",null,"(K) Other Assets - Currency 8",{"$f":"'Schedule VI'!C1803","v":"Select"},null,null,null,null,null,null,null,{"$f":"'Schedule VI (EBS)'!C1803","v":"Select"}]
["Sch VI","Schedule of Assets",null,"(K) Other Assets - Currency 33",{"$f":"'Schedule VI'!C1828","v":"Select"},null,null,null,null,null,null,null,{"$f":"'Schedule VI (EBS)'!C1828","v":"Select"}]
["Sch VI","Schedule of Assets",null,"(K) Other Assets - Currency 34",{"$f":"'Schedule VI'!C1829","v":"Select"},null,null,null,null,null,null,null,{"$f":"'Schedule VI (EBS)'!C1829","v":"Select"}]
["Sch VI","Schedule of Assets",null,"(K) Other Assets - Currency 59",{"$f":"'Schedule VI'!C1854","v":"Select"},null,null,null,null,null,null,null,{"$f":"'Schedule VI (EBS)'!C1854","v":"Select"}]
["Sch VI","Schedule of Assets",null,"(K) Other Assets - Currency 78",{"$f":"'Schedule VI'!C1873","v":"Select"},null,null,null,null,null,null,null,{"$f":"'Schedule VI (EBS)'!C1873","v":"Select"}]
["Sch VI","Schedule of Assets",null,"(K) Other Assets - Currency 97",{"$f":"'Schedule VI'!C1892","v":"Select"},null,null,null,null,null,null,null,{"$f":"'Schedule VI (EBS)'!C1892","v":"Select"}]
["Sch VI","Schedule of Assets",null,"(K) Other Assets - Currency 122",{"$f":"'Schedule VI'!C1917","v":"Select"},null,null,null,null,null,null,null,{"$f":"'Schedule VI (EBS)'!C1917","v":"Select"}]
["Sch VI","Schedule of Assets",null,"(K) Other Assets - Currency 141",{"$f":"'Schedule VI'!C1936","v":"Select"},null,null,null,null,null,null,null,{"$f":"'Schedule VI (EBS)'!C1936","v":"Select"}]
["Sch VI","Schedule of Assets",null,"(K) Other Assets - Currency 160",{"$f":"'Schedule VI'!C1955","v":"Select"},null,null,null,null,null,null,null,{"$f":"'Schedule VI (EBS)'!C1955","v":"Select"}]
["Sch VI","Schedule of Assets",null,"(K) Other Assets - Currency 185",{"$f":"'Schedule VI'!C1980","v":"Select"},null,null,null,null,null,null,null,{"$f":"'Schedule VI (EBS)'!C1980","v":"Select"}]
["Sch VI","Schedule of Assets",null,"(K) Other Assets - Currency 195",{"$f":"'Schedule VI'!C1990","v":"Select"},null,null,null,null,null,null,null,{"$f":"'Schedule VI (EBS)'!C1990","v":"Select"}]
["Sch VI","Schedule of Assets",null,"(K) Other Assets - Rating 11",{"$f":"'Schedule VI'!D1806","v":"Select"},null,null,null,null,null,null,null,{"$f":"'Schedule VI (EBS)'!D1806","v":"Select"}]
["Sch VI","Schedule of Assets",null,"(K) Other Assets - Rating 30",{"$f":"'Schedule VI'!D1825","v":"Select"},null,null,null,null,null,null,null,{"$f":"'Schedule VI (EBS)'!D1825","v":"Select"}]
["Sch VI","Schedule of Assets",null,"(K) Other Assets - Rating 49",{"$f":"'Schedule VI'!D1844","v":"Select"},null,null,null,null,null,null,null,{"$f":"'Schedule VI (EBS)'!D1844","v":"Select"}]
["Sch VI","Schedule of Assets",null,"(K) Other Assets - Rating 74",{"$f":"'Schedule VI'!D1869","v":"Select"},null,null,null,null,null,null,null,{"$f":"'Schedule VI (EBS)'!D1869","v":"Select"}]
["Sch VI","Schedule of Assets",null,"(K) Other Assets - Rating 93",{"$f":"'Schedule VI'!D1888","v":"Select"},null,null,null,null,null,null,null,{"$f":"'Schedule VI (EBS)'!D1888","v":"Select"}]
["Sch VI","Schedule of Assets",null,"(K) Other Assets - Rating 112",{"$f":"'Schedule VI'!D1907","v":"Select"},null,null,null,null,null,null,null,{"$f":"'Schedule VI (EBS)'!D1907","v":"Select"}]
["Sch VI","Schedule of Assets",null,"(K) Other Assets - Rating 132",{"$f":"'Schedule VI'!D1927","v":"Select"},null,null,null,null,null,null,null,{"$f":"'Schedule VI (EBS)'!D1927","v":"Select"}]
["Sch VI","Schedule of Assets",null,"(K) Other Assets - Rating 157",{"$f":"'Schedule VI'!D1952","v":"Select"},null,null,null,null,null,null,null,{"$f":"'Schedule VI (EBS)'!D1952","v":"Select"}]
["Sch VI","Schedule of Assets",null,"(K) Other Assets - Rating 163",{"$f":"'Schedule VI'!D1958","v":"Select"},null,null,null,null,null,null,null,{"$f":"'Schedule VI (EBS)'!D1958","v":"Select"}]
["Sch VI","Schedule of Assets",null,"(K) Other Assets - Rating 182",{"$f":"'Schedule VI'!D1977","v":"Select"},null,null,null,null,null,null,null,{"$f":"'Schedule VI (EBS)'!D1977","v":"Select"}]
["Sch VI","Schedule of Assets",null,"(K) Other Assets - Nominal Amount 1",{"$f":"'Schedule VI'!E1796","v":0},null,null,null,null,null,null,null,{"$f":"'Schedule VI (EBS)'!E1796","v":0}]
["Sch VI","Schedule of Assets",null,"(K) Other Assets - Nominal Amount 26",{"$f":"'Schedule VI'!E1821","v":0},null,null,null,null,null,null,null,{"$f":"'Schedule VI (EBS)'!E1821","v":0}]
["Sch VI","Schedule of Assets",null,"(K) Other Assets - Nominal Amount 45",{"$f":"'Schedule VI'!E1840","v":0},null,null,null,null,null,null,null,{"$f":"'Schedule VI (EBS)'!E1840","v":0}]
["Sch VI","Schedule of Assets",null,"(K) Other Assets - Nominal Amount 70",{"$f":"'Schedule VI'!E1865","v":0},null,null,null,null,null,null,null,{"$f":"'Schedule VI (EBS)'!E1865","v":0}]
["Sch VI","Schedule of Assets",null,"(K) Other Assets - Nominal Amount 93",{"$f":"'Schedule VI'!E1888","v":0},null,null,null,null,null,null,null,{"$f":"'Schedule VI (EBS)'!E1888","v":0}]
["Sch VI","Schedule of Assets",null,"(K) Other Assets - Nominal Amount 109",{"$f":"'Schedule VI'!E1904","v":0},null,null,null,null,null,null,null,{"$f":"'Schedule VI (EBS)'!E1904","v":0}]
["Sch VI","Schedule of Assets",null,"(K) Other Assets - Nominal Amount 115",{"$f":"'Schedule VI'!E1910","v":0},null,null,null,null,null,null,null,{"$f":"'Schedule VI (EBS)'!E1910","v":0}]
["Sch VI","Schedule of Assets",null,"(K) Other Assets - Nominal Amount 134",{"$f":"'Schedule VI'!E1929","v":0},null,null,null,null,null,null,null,{"$f":"'Schedule VI (EBS)'!E1929","v":0}]
["Sch VI","Schedule of Assets",null,"(K) Other Assets - Nominal Amount 153",{"$f":"'Schedule VI'!E1948","v":0},null,null,null,null,null,null,null,{"$f":"'Schedule VI (EBS)'!E1948","v":0}]
["Sch VI","Schedule of Assets",null,"(K) Other Assets - Nominal Amount 178",{"$f":"'Schedule VI'!E1973","v":0},null,null,null,null,null,null,null,{"$f":"'Schedule VI (EBS)'!E1973","v":0}]
["Sch VI","Schedule of Assets",null,"(K) Other Assets - Nominal Amount 197",{"$f":"'Schedule VI'!E1992","v":0},null,null,null,null,null,null,null,{"$f":"'Schedule VI (EBS)'!E1992","v":0}]
["Sch VI","Schedule of Assets",null,"(K) Other Assets - Fair Value 10",{"$f":"'Schedule VI'!F1805","v":0},null,null,null,null,null,null,null,{"$f":"'Schedule VI (EBS)'!F1805","v":0}]
["Sch VI","Schedule of Assets",null,"(K) Other Assets - Fair Value 42",{"$f":"'Schedule VI'!F1837","v":0},null,null,null,null,null,null,null,{"$f":"'Schedule VI (EBS)'!F1837","v":0}]
["Sch VI","Schedule of Assets",null,"(K) Other Assets - Fair Value 61",{"$f":"'Schedule VI'!F1856","v":0},null,null,null,null,null,null,null,{"$f":"'Schedule VI (EBS)'!F1856","v":0}]
["Sch VI","Schedule of Assets",null,"(K) Other Assets - Fair Value 67",{"$f":"'Schedule VI'!F1862","v":0},null,null,null,null,null,null,null,{"$f":"'Schedule VI (EBS)'!F1862","v":0}]
["Sch VI","Schedule of Assets",null,"(K) Other Assets - Fair Value 86",{"$f":"'Schedule VI'!F1881","v":0},null,null,null,null,null,null,null,{"$f":"'Schedule VI (EBS)'!F1881","v":0}]
["Sch VI","Schedule of Assets",null,"(K) Other Assets - Fair Value 111",{"$f":"'Schedule VI'!F1906","v":0},null,null,null,null,null,null,null,{"$f":"'Schedule VI (EBS)'!F1906","v":0}]
["Sch VI","Schedule of Assets",null,"(K) Other Assets - Fair Value 130",{"$f":"'Schedule VI'!F1925","v":0},null,null,null,null,null,null,null,{"$f":"'Schedule VI (EBS)'!F1925","v":0}]
["Sch VI","Schedule of Assets",null,"(K) Other Assets - Fair Value 149",{"$f":"'Schedule VI'!F1944","v":0},null,null,null,null,null,null,null,{"$f":"'Schedule VI (EBS)'!F1944","v":0}]
["Sch VI","Schedule of Assets",null,"(K) Other Assets - Fair Value 171",{"$f":"'Schedule VI'!F1966","v":0},null,null,null,null,null,null,null,{"$f":"'Schedule VI (EBS)'!F1966","v":0}]
["Sch VI","Schedule of Assets",null,"(K) Other Assets - Fair Value 194",{"$f":"'Schedule VI'!F1989","v":0},null,null,null,null,null,null,null,{"$f":"'Schedule VI (EBS)'!F1989","v":0}]
["Sch VI","Schedule of Assets",null,"(K) Other Assets - Comments 13",{"$f":"'Schedule VI'!G1808","v":0},null,null,null,null,null,null,null,{"$f":"'Schedule VI (EBS)'!G1808","v":0}]
["Sch VI","Schedule of Assets",null,"(K) Other Assets - Comments 19",{"$f":"'Schedule VI'!G1814","v":0},null,null,null,null,null,null,null,{"$f":"'Schedule VI (EBS)'!G1814","v":0}]
["Sch VI","Schedule of Assets",null,"(K) Other Assets - Comments 38",{"$f":"'Schedule VI'!G1833","v":0},null,null,null,null,null,null,null,{"$f":"'Schedule VI (EBS)'!G1833","v":0}]
["Sch VI","Schedule of Assets",null,"(K) Other Assets - Comments 63",{"$f":"'Schedule VI'!G1858","v":0},null,null,null,null,null,null,null,{"$f":"'Schedule VI (EBS)'!G1858","v":0}]
["Sch VI","Schedule of Assets",null,"(K) Other Assets - Comments 82",{"$f":"'Schedule VI'!G1877","v":0},null,null,null,null,null,null,null,{"$f":"'Schedule VI (EBS)'!G1877","v":0}]
["Sch VI","Schedule of Assets",null,"(K) Other Assets - Comments 101",{"$f":"'Schedule VI'!G1896","v":0},null,null,null,null,null,null,null,{"$f":"'Schedule VI (EBS)'!G1896","v":0}]
["Sch VI","Schedule of Assets",null,"(K) Other Assets - Comments 132",{"$f":"'Schedule VI'!G1927","v":0},null,null,null,null,null,null,null,{"$f":"'Schedule VI (EBS)'!G1927","v":0}]
["Sch VI","Schedule of Assets",null,"(K) Other Assets - Comments 146",{"$f":"'Schedule VI'!G1941","v":0},null,null,null,null,null,null,null,{"$f":"'Schedule VI (EBS)'!G1941","v":0}]
["Sch VI","Schedule of Assets",null,"(K) Other Assets - Comments 165",{"$f":"'Schedule VI'!G1960","v":0},null,null,null,null,null,null,null,{"$f":"'Schedule VI (EBS)'!G1960","v":0}]
["Sch VI","Schedule of Assets",null,"(K) Other Assets - Comments 190",{"$f":"'Schedule VI'!G1985","v":0},null,null,null,null,null,null,null,{"$f":"'Schedule VI (EBS)'!G1985","v":0}]
["Sch VI","Schedule of Assets",null,"(M) Add. Info. - Fair Value Unaffiliated Level 3 Assets",{"$f":"'Schedule VI'!C2023","v":0},null,null,null,null,null,null,null,{"$f":"'Schedule VI (EBS)'!C2023","v":0}]
["Sch VI","Schedule of Assets",null,"(M) Add. Info. - Fair Value Comments Level 3 Assets",{"$f":"'Schedule VI'!F2023","v":0},null,null,null,null,null,null,null,{"$f":"'Schedule VI (EBS)'!F2023","v":0}]
["Sch VI","Schedule of Assets",null,"Ins. Companies - Moody's Rating 5",{"$f":"'Schedule VI'!D2050","v":0},null,null,null,null,null,null,null,{"$f":"'Schedule VI (EBS)'!D2050","v":0}]
["Sch VI","Schedule of Assets",null,"ABS - Moody's Rating 8",{"$f":"'Schedule VI'!D2069","v":0},null,null,null,null,null,null,null,{"$f":"'Schedule VI (EBS)'!D2069","v":0}]
["Sch VI","Schedule of Assets",null,"Corp. Insurers - S&P Rating 1",{"$f":"'Schedule VI'!E2054","v":0},null,null,null,null,null,null,null,{"$f":"'Schedule VI (EBS)'!E2054","v":0}]
["Sch VI","Schedule of Assets",null,"Gov. Securities - S&P Rating 3",{"$f":"'Schedule VI'!E2073","v":0},null,null,null,null,null,null,null,{"$f":"'Schedule VI (EBS)'!E2073","v":0}]
["Sch VI","Schedule of Assets",null,"Corp. Insurers - DBRS Rating 4",{"$f":"'Schedule VI'!F2057","v":0},null,null,null,null,null,null,null,{"$f":"'Schedule VI (EBS)'!F2057","v":0}]
["Sch VI","Schedule of Assets",null,"Gov. Securities - DBRS Rating 6",{"$f":"'Schedule VI'!F2076","v":0},null,null,null,null,null,null,null,{"$f":"'Schedule VI (EBS)'!F2076","v":0}]
["Sch VI","Schedule of Assets",null,"Corp. Insurers - Kroll Rating 1",{"$f":"'Schedule VI'!G2054","v":0},null,null,null,null,null,null,null,{"$f":"'Schedule VI (EBS)'!G2054","v":0}]
["Sch VI","Schedule of Assets",null,"Corp. Insurers - Kroll Rating 7",{"$f":"'Schedule VI'!G2060","v":0},null,null,null,null,null,null,null,{"$f":"'Schedule VI (EBS)'!G2060","v":0}]
["Sch VI","Schedule of Assets",null,"Fin. Inst. - Egan Jones Rating 1",{"$f":"'Schedule VI'!H2038","v":0},null,null,null,null,null,null,null,{"$f":"'Schedule VI (EBS)'!H2038","v":0}]
["Sch VI","Schedule of Assets",null,"ABS - Egan Jones Rating 5",{"$f":"'Schedule VI'!H2066","v":0},null,null,null,null,null,null,null,{"$f":"'Schedule VI (EBS)'!H2066","v":0}]
["Sch VI","Schedule of Assets",null,"Fin. Inst. - Japan Credit Rating 5",{"$f":"'Schedule VI'!I2042","v":0},null,null,null,null,null,null,null,{"$f":"'Schedule VI (EBS)'!I2042","v":0}]
["Sch VI","Schedule of Assets",null,"Corp. Insurers - Japan Credit Rating 8",{"$f":"'Schedule VI'!I2061","v":0},null,null,null,null,null,null,null,{"$f":"'Schedule VI (EBS)'!I2061","v":0}]
["Sch VI","Schedule of Assets",null,"Fin. Inst. - BMA Approved Int. Rating 8",{"$f":"'Schedule VI'!J2045","v":0},null,null,null,null,null,null,null,{"$f":"'Schedule VI (EBS)'!J2045","v":0}]
["Sch VI","Schedule of Assets",null,"ABS - BMA Approved Int. Rating 3",{"$f":"'Schedule VI'!J2064","v":0},null,null,null,null,null,null,null,{"$f":"'Schedule VI (EBS)'!J2064","v":0}]
["Sch VI","Schedule of Assets",null,"Fin. Inst. - BMA Approved Agency 1 -  Rating 5",{"$f":"'Schedule VI'!K2042","v":0},null,null,null,null,null,null,null,{"$f":"'Schedule VI (EBS)'!K2042","v":0}]
["Sch VI","Schedule of Assets",null,"Ins. Companies - BMA Approved Agency 1 -  Rating 3",{"$f":"'Schedule VI'!K2048","v":0},null,null,null,null,null,null,null,{"$f":"'Schedule VI (EBS)'!K2048","v":0}]
["Sch VI","Schedule of Assets",null,"Fin. Inst. - BMA Approved Agency 2 -  Rating 2",{"$f":"'Schedule VI'!L2039","v":0},null,null,null,null,null,null,null,{"$f":"'Schedule VI (EBS)'!L2039","v":0}]
["Sch VI","Schedule of Assets",null,"Ins. Companies - BMA Approved Agency 2 -  Rating 1",{"$f":"'Schedule VI'!L2046","v":0},null,null,null,null,null,null,null,{"$f":"'Schedule VI (EBS)'!L2046","v":0}]
["Sch VI","Schedule of Assets",null,"Gov. Securities - BMA Approved Agency 2 -  Rating 1",{"$f":"'Schedule VI'!L2071","v":0},null,null,null,null,null,null,null,{"$f":"'Schedule VI (EBS)'!L2071","v":0}]
["Sch VI","Schedule of Assets",null,"Ins. Companies - BMA Approved Agency 3 -  Rating 4",{"$f":"'Schedule VI'!M2049","v":0},null,null,null,null,null,null,null,{"$f":"'Schedule VI (EBS)'!M2049","v":0}]
["Sch VI","Schedule of Assets",null,"Gov. Securities - BMA Approved Agency 3 -  Rating 4",{"$f":"'Schedule VI'!M2074","v":0},null,null,null,null,null,null,null,{"$f":"'Schedule VI (EBS)'!M2074","v":0}]
["Sch VIA","Schedule of Funds Held",null,"(A) Cash - Asset Type 8",{"$f":"'Schedule VIA'!B18","v":"Select"},null,null,null,null,null,null,null,{"$f":"'Schedule VIA (EBS)'!B18","v":"Select"}]
["Sch VIA","Schedule of Funds Held",null,"(A) Cash - Asset Type 27",{"$f":"'Schedule VIA'!B37","v":"Select"},null,null,null,null,null,null,null,{"$f":"'Schedule VIA (EBS)'!B37","v":"Select"}]
["Sch VIA","Schedule of Funds Held",null,"(A) Cash - Asset Type 33",{"$f":"'Schedule VIA'!B43","v":"Select"},null,null,null,null,null,null,null,{"$f":"'Schedule VIA (EBS)'!B43","v":"Select"}]
["Sch VIA","Schedule of Funds Held",null,"(A) Cash - Asset Type 54",{"$f":"'Schedule VIA'!B64","v":"Select"},null,null,null,null,null,null,null,{"$f":"'Schedule VIA (EBS)'!B64","v":"Select"}]
["Sch VIA","Schedule of Funds Held",null,"(A) Cash - Asset Type 78",{"$f":"'Schedule VIA'!B88","v":"Select"},null,null,null,null,null,null,null,{"$f":"'Schedule VIA (EBS)'!B88","v":"Select"}]
["Sch VIA","Schedule of Funds Held",null,"(A) Cash - Asset Type 97",{"$f":"'Schedule VIA'!B107","v":"Select"},null,null,null,null,null,null,null,{"$f":"'Schedule VIA (EBS)'!B107","v":"Select"}]
["Sch VIA","Schedule of Funds Held",null,"(A) Cash - Asset Type 116",{"$f":"'Schedule VIA'!B126","v":"Select"},null,null,null,null,null,null,null,{"$f":"'Schedule VIA (EBS)'!B126","v":"Select"}]
["Sch VIA","Schedule of Funds Held",null,"(A) Cash - Asset Type 141",{"$f":"'Schedule VIA'!B151","v":"Select"},null,null,null,null,null,null,null,{"$f":"'Schedule VIA (EBS)'!B151","v":"Select"}]
["Sch VIA","Schedule of Funds Held",null,"(A) Cash - Asset Type 160",{"$f":"'Schedule VIA'!B170","v":"Select"},null,null,null,null,null,null,null,{"$f":"'Schedule VIA (EBS)'!B170","v":"Select"}]
["Sch VIA","Schedule of Funds Held",null,"(A) Cash - Asset Type 179",{"$f":"'Schedule VIA'!B189","v":"Select"},null,null,null,null,null,null,null,{"$f":"'Schedule VIA (EBS)'!B189","v":"Select"}]
["Sch VIA","Schedule of Funds Held",null,"(A) Cash - Asset Type 191",{"$f":"'Schedule VIA'!B201","v":"Select"},null,null,null,null,null,null,null,{"$f":"'Schedule VIA (EBS)'!B201","v":"Select"}]
["Sch VIA","Schedule of Funds Held",null,"(A) Cash - Currency 5",{"$f":"'Schedule VIA'!C15","v":"Select"},null,null,null,null,null,null,null,{"$f":"'Schedule VIA (EBS)'!C15","v":"Select"}]
["Sch VIA","Schedule of Funds Held",null,"(A) Cash - Currency 30",{"$f":"'Schedule VIA'!C40","v":"Select"},null,null,null,null,null,null,null,{"$f":"'Schedule VIA (EBS)'!C40","v":"Select"}]
["Sch VIA","Schedule of Funds Held",null,"(A) Cash - Currency 49",{"$f":"'Schedule VIA'!C59","v":"Select"},null,null,null,null,null,null,null,{"$f":"'Schedule VIA (EBS)'!C59","v":"Select"}]
["Sch VIA","Schedule of Funds Held",null,"(A) Cash - Currency 68",{"$f":"'Schedule VIA'!C78","v":"Select"},null,null,null,null,null,null,null,{"$f":"'Schedule VIA (EBS)'!C78","v":"Select"}]
["Sch VIA","Schedule of Funds Held",null,"(A) Cash - Currency 93",{"$f":"'Schedule VIA'!C103","v":"Select"},null,null,null,null,null,null,null,{"$f":"'Schedule VIA (EBS)'!C103","v":"Select"}]
["Sch VIA","Schedule of Funds Held",null,"(A) Cash - Currency 112",{"$f":"'Schedule VIA'!C122","v":"Select"},null,null,null,null,null,null,null,{"$f":"'Schedule VIA (EBS)'!C122","v":"Select"}]
["Sch VIA","Schedule of Funds Held",null,"(A) Cash - Currency 118",{"$f":"'Schedule VIA'!C128","v":"Select"},null,null,null,null,null,null,null,{"$f":"'Schedule VIA (EBS)'!C128","v":"Select"}]
["Sch VIA","Schedule of Funds Held",null,"(A) Cash - Currency 152",{"$f":"'Schedule VIA'!C162","v":"Select"},null,null,null,null,null,null,null,{"$f":"'Schedule VIA (EBS)'!C162","v":"Select"}]
["Sch VIA","Schedule of Funds Held",null,"(A) Cash - Currency 157",{"$f":"'Schedule VIA'!C167","v":"Select"},null,null,null,null,null,null,null,{"$f":"'Schedule VIA (EBS)'!C167","v":"Select"}]
["Sch VIA","Schedule of Funds Held",null,"(A) Cash - Currency 182",{"$f":"'Schedule VIA'!C192","v":"Select"},null,null,null,null,null,null,null,{"$f":"'Schedule VIA (EBS)'!C192","v":"Select"}]
["Sch VIA","Schedule of Funds Held",null,"(A) Cash - Rating 1",{"$f":"'Schedule VIA'!D11","v":"Select"},null,null,null,null,null,null,null,{"$f":"'Schedule VIA (EBS)'!D11","v":"Select"}]
["Sch VIA","Schedule of Funds Held",null,"(A) Cash - Rating 20",{"$f":"'Schedule VIA'!D30","v":"Select"},null,null,null,null,null,null,null,{"$f":"'Schedule VIA (EBS)'!D30","v":"Select"}]
["Sch VIA","Schedule of Funds Held",null,"(A) Cash - Rating 45",{"$f":"'Schedule VIA'!D55","v":"Select"},null,null,null,null,null,null,null,{"$f":"'Schedule VIA (EBS)'!D55","v":"Select"}]
["Sch VIA","Schedule of Funds Held",null,"(A) Cash - Rating 64",{"$f":"'Schedule VIA'!D74","v":"Select"},null,null,null,null,null,null,null,{"$f":"'Schedule VIA (EBS)'!D74","v":"Select"}]
["Sch VIA","Schedule of Funds Held",null,"(A) Cash - Rating 89",{"$f":"'Schedule VIA'!D99","v":"Select"},null,null,null,null,null,null,null,{"$f":"'Schedule VIA (EBS)'!D99","v":"Select"}]
["Sch VIA","Schedule of Funds Held",null,"(A) Cash - Rating 93",{"$f":"'Schedule VIA'!D103","v":"Select"},null,null,null,null,null,null,null,{"$f":"'Schedule VIA (EBS)'!D103","v":"Select"}]
["Sch VIA","Schedule of Funds Held",null,"(A) Cash - Rating 128",{"$f":"'Schedule VIA'!D138","v":"Select"},null,null,null,null,null,null,null,{"$f":"'Schedule VIA (EBS)'!D138","v":"Select"}]
["Sch VIA","Schedule of Funds Held",null,"(A) Cash - Rating 134",{"$f":"'Schedule VIA'!D144","v":"Select"},null,null,null,null,null,null,null,{"$f":"'Schedule VIA (EBS)'!D144","v":"Select"}]
["Sch VIA","Schedule of Funds Held",null,"(A) Cash - Rating 153",{"$f":"'Schedule VIA'!D163","v":"Select"},null,null,null,null,null,null,null,{"$f":"'Schedule VIA (EBS)'!D163","v":"Select"}]
["Sch VIA","Schedule of Funds Held",null,"(A) Cash - Rating 172",{"$f":"'Schedule VIA'!D182","v":"Select"},null,null,null,null,null,null,null,{"$f":"'Schedule VIA (EBS)'!D182","v":"Select"}]
["Sch VIA","Schedule of Funds Held",null,"(A) Cash - Rating 197",{"$f":"'Schedule VIA'!D207","v":"Select"},null,null,null,null,null,null,null,{"$f":"'Schedule VIA (EBS)'!D207","v":"Select"}]
["Sch VIA","Schedule of Funds Held",null,"(A) Cash - Nominal 16",{"$f":"'Schedule VIA'!E26","v":0},null,null,null,null,null,null,null,{"$f":"'Schedule VIA (EBS)'!E26","v":0}]
["Sch VIA","Schedule of Funds Held",null,"(A) Cash - Nominal 30",{"$f":"'Schedule VIA'!E40","v":0},null,null,null,null,null,null,null,{"$f":"'Schedule VIA (EBS)'!E40","v":0}]
["Sch VIA","Schedule of Funds Held",null,"(A) Cash - Nominal 61",{"$f":"'Schedule VIA'!E71","v":0},null,null,null,null,null,null,null,{"$f":"'Schedule VIA (EBS)'!E71","v":0}]
["Sch VIA","Schedule of Funds Held",null,"(A) Cash - Nominal 80",{"$f":"'Schedule VIA'!E90","v":0},null,null,null,null,null,null,null,{"$f":"'Schedule VIA (EBS)'!E90","v":0}]
["Sch VIA","Schedule of Funds Held",null,"(A) Cash - Nominal 86",{"$f":"'Schedule VIA'!E96","v":0},null,null,null,null,null,null,null,{"$f":"'Schedule VIA (EBS)'!E96","v":0}]
["Sch VIA","Schedule of Funds Held",null,"(A) Cash - Nominal 105",{"$f":"'Schedule VIA'!E115","v":0},null,null,null,null,null,null,null,{"$f":"'Schedule VIA (EBS)'!E115","v":0}]
["Sch VIA","Schedule of Funds Held",null,"(A) Cash - Nominal 130",{"$f":"'Schedule VIA'!E140","v":0},null,null,null,null,null,null,null,{"$f":"'Schedule VIA (EBS)'!E140","v":0}]
["Sch VIA","Schedule of Funds Held",null,"(A) Cash - Nominal 149",{"$f":"'Schedule VIA'!E159","v":0},null,null,null,null,null,null,null,{"$f":"'Schedule VIA (EBS)'!E159","v":0}]
["Sch VIA","Schedule of Funds Held",null,"(A) Cash - Nominal 168",{"$f":"'Schedule VIA'!E178","v":0},null,null,null,null,null,null,null,{"$f":"'Schedule VIA (EBS)'!E178","v":0}]
["Sch VIA","Schedule of Funds Held",null,"(A) Cash - Nominal 191",{"$f":"'Schedule VIA'!E201","v":0},null,null,null,null,null,null,null,{"$f":"'Schedule VIA (EBS)'!E201","v":0}]
["Sch VIA","Schedule of Funds Held",null,"(A) Cash - Fair Value 13",{"$f":"'Schedule VIA'!F23","v":0},null,null,null,null,null,null,null,{"$f":"'Schedule VIA (EBS)'!F23","v":0}]
["Sch VIA","Schedule of Funds Held",null,"(A) Cash - Fair Value 32",{"$f":"'Schedule VIA'!F42","v":0},null,null,null,null,null,null,null,{"$f":"'Schedule VIA (EBS)'!F42","v":0}]
["Sch VIA","Schedule of Funds Held",null,"(A) Cash - Fair Value 38",{"$f":"'Schedule VIA'!F48","v":0},null,null,null,null,null,null,null,{"$f":"'Schedule VIA (EBS)'!F48","v":0}]
["Sch VIA","Schedule of Funds Held",null,"(A) Cash - Fair Value 57",{"$f":"'Schedule VIA'!F67","v":0},null,null,null,null,null,null,null,{"$f":"'Schedule VIA (EBS)'!F67","v":0}]
["Sch VIA","Schedule of Funds Held",null,"(A) Cash - Fair Value 82",{"$f":"'Schedule VIA'!F92","v":0},null,null,null,null,null,null,null,{"$f":"'Schedule VIA (EBS)'!F92","v":0}]
["Sch VIA","Schedule of Funds Held",null,"(A) Cash - Fair Value 101",{"$f":"'Schedule VIA'!F111","v":0},null,null,null,null,null,null,null,{"$f":"'Schedule VIA (EBS)'!F111","v":0}]
["Sch VIA","Schedule of Funds Held",null,"(A) Cash - Fair Value 112",{"$f":"'Schedule VIA'!F122","v":0},null,null,null,null,null,null,null,{"$f":"'Schedule VIA (EBS)'!F122","v":0}]
["Sch VIA","Schedule of Funds Held",null,"(A) Cash - Fair Value 146",{"$f":"'Schedule VIA'!F156","v":0},null,null,null,null,null,null,null,{"$f":"'Schedule VIA (EBS)'!F156","v":0}]
["Sch VIA","Schedule of Funds Held",null,"(A) Cash - Fair Value 165",{"$f":"'Schedule VIA'!F175","v":0},null,null,null,null,null,null,null,{"$f":"'Schedule VIA (EBS)'!F175","v":0}]
["Sch VIA","Schedule of Funds Held",null,"(A) Cash - Fair Value 171",{"$f":"'Schedule VIA'!F181","v":0},null,null,null,null,null,null,null,{"$f":"'Schedule VIA (EBS)'!F181","v":0}]
["Sch VIA","Schedule of Funds Held",null,"(A) Cash - Fair Value 190",{"$f":"'Schedule VIA'!F200","v":0},null,null,null,null,null,null,null,{"$f":"'Schedule VIA (EBS)'!F200","v":0}]
["Sch VIA","Schedule of Funds Held",null,"(A) Cash - Comments 9",{"$f":"'Schedule VIA'!G19","v":0},null,null,null,null,null,null,null,{"$f":"'Schedule VIA (EBS)'!G19","v":0}]
["Sch VIA","Schedule of Funds Held",null,"(A) Cash - Comments 34",{"$f":"'Schedule VIA'!G44","v":0},null,null,null,null,null,null,null,{"$f":"'Schedule VIA (EBS)'!G44","v":0}]
["Sch VIA","Schedule of Funds Held",null,"(A) Cash - Comments 53",{"$f":"'Schedule VIA'!G63","v":0},null,null,null,null,null,null,null,{"$f":"'Schedule VIA (EBS)'!G63","v":0}]
["Sch VIA","Schedule of Funds Held",null,"(A) Cash - Comments 73",{"$f":"'Schedule VIA'!G83","v":0},null,null,null,null,null,null,null,{"$f":"'Schedule VIA (EBS)'!G83","v":0}]
["Sch VIA","Schedule of Funds Held",null,"(A) Cash - Comments 98",{"$f":"'Schedule VIA'!G108","v":0},null,null,null,null,null,null,null,{"$f":"'Schedule VIA (EBS)'!G108","v":0}]
["Sch VIA","Schedule of Funds Held",null,"(A) Cash - Comments 117",{"$f":"'Schedule VIA'!G127","v":0},null,null,null,null,null,null,null,{"$f":"'Schedule VIA (EBS)'!G127","v":0}]
["Sch VIA","Schedule of Funds Held",null,"(A) Cash - Comments 123",{"$f":"'Schedule VIA'!G133","v":0},null,null,null,null,null,null,null,{"$f":"'Schedule VIA (EBS)'!G133","v":0}]
["Sch VIA","Schedule of Funds Held",null,"(A) Cash - Comments 142",{"$f":"'Schedule VIA'!G152","v":0},null,null,null,null,null,null,null,{"$f":"'Schedule VIA (EBS)'!G152","v":0}]
["Sch VIA","Schedule of Funds Held",null,"(A) Cash - Comments 161",{"$f":"'Schedule VIA'!G171","v":0},null,null,null,null,null,null,null,{"$f":"'Schedule VIA (EBS)'!G171","v":0}]
["Sch VIA","Schedule of Funds Held",null,"(A) Cash - Comments 186",{"$f":"'Schedule VIA'!G196","v":0},null,null,null,null,null,null,null,{"$f":"'Schedule VIA (EBS)'!G196","v":0}]
["Sch VIA","Schedule of Funds Held",null,"(B) Bonds - Asset Type 9",{"$f":"'Schedule VIA'!B227","v":"Select"},null,null,null,null,null,null,null,{"$f":"'Schedule VIA (EBS)'!B227","v":"Select"}]
["Sch VIA","Schedule of Funds Held",null,"(B) Bonds - Asset Type 24",{"$f":"'Schedule VIA'!B242","v":"Select"},null,null,null,null,null,null,null,{"$f":"'Schedule VIA (EBS)'!B242","v":"Select"}]
["Sch VIA","Schedule of Funds Held",null,"(B) Bonds - Asset Type 49",{"$f":"'Schedule VIA'!B267","v":"Select"},null,null,null,null,null,null,null,{"$f":"'Schedule VIA (EBS)'!B267","v":"Select"}]
["Sch VIA","Schedule of Funds Held",null,"(B) Bonds - Asset Type 68",{"$f":"'Schedule VIA'!B286","v":"Select"},null,null,null,null,null,null,null,{"$f":"'Schedule VIA (EBS)'!B286","v":"Select"}]
["Sch VIA","Schedule of Funds Held",null,"(B) Bonds - Asset Type 74",{"$f":"'Schedule VIA'!B292","v":"Select"},null,null,null,null,null,null,null,{"$f":"'Schedule VIA (EBS)'!B292","v":"Select"}]
["Sch VIA","Schedule of Funds Held",null,"(B) Bonds - Asset Type 93",{"$f":"'Schedule VIA'!B311","v":"Select"},null,null,null,null,null,null,null,{"$f":"'Schedule VIA (EBS)'!B311","v":"Select"}]
["Sch VIA","Schedule of Funds Held",null,"(B) Bonds - Asset Type 112",{"$f":"'Schedule VIA'!B330","v":"Select"},null,null,null,null,null,null,null,{"$f":"'Schedule VIA (EBS)'!B330","v":"Select"}]
["Sch VIA","Schedule of Funds Held",null,"(B) Bonds - Asset Type 137",{"$f":"'Schedule VIA'!B355","v":"Select"},null,null,null,null,null,null,null,{"$f":"'Schedule VIA (EBS)'!B355","v":"Select"}]
["Sch VIA","Schedule of Funds Held",null,"(B) Bonds - Asset Type 150",{"$f":"'Schedule VIA'!B368","v":"Select"},null,null,null,null,null,null,null,{"$f":"'Schedule VIA (EBS)'!B368","v":"Select"}]
["Sch VIA","Schedule of Funds Held",null,"(B) Bonds - Asset Type 182",{"$f":"'Schedule VIA'!B400","v":"Select"},null,null,null,null,null,null,null,{"$f":"'Schedule VIA (EBS)'!B400","v":"Select"}]
["Sch VIA","Schedule of Funds Held",null,"(B) Bonds - Asset Type 201",{"$f":"'Schedule VIA'!B419","v":"Select"},null,null,null,null,null,null,null,{"$f":"'Schedule VIA (EBS)'!B419","v":"Select"}]
["Sch VIA","Schedule of Funds Held",null,"(B) Bonds - Asset Type 220",{"$f":"'Schedule VIA'!B438","v":"Select"},null,null,null,null,null,null,null,{"$f":"'Schedule VIA (EBS)'!B438","v":"Select"}]
["Sch VIA","Schedule of Funds Held",null,"(B) Bonds - Asset Type 245",{"$f":"'Schedule VIA'!B463","v":"Select"},null,null,null,null,null,null,null,{"$f":"'Schedule VIA (EBS)'!B463","v":"Select"}]
["Sch VIA","Schedule of Funds Held",null,"(B) Bonds - Asset Type 264",{"$f":"'Schedule VIA'!B482","v":"Select"},null,null,null,null,null,null,null,{"$f":"'Schedule VIA (EBS)'!B482","v":"Select"}]
["Sch VIA","Schedule of Funds Held",null,"(B) Bonds - Asset Type 283",{"$f":"'Schedule VIA'!B501","v":"Select"},null,null,null,null,null,null,null,{"$f":"'Schedule VIA (EBS)'!B501","v":"Select"}]
["Sch VIA","Schedule of Funds Held",null,"(B) Bonds - Asset Type 289",{"$f":"'Schedule VIA'!B507","v":"Select"},null,null,null,null,null,null,null,{"$f":"'Schedule VIA (EBS)'!B507","v":"Select"}]
["Sch VIA","Schedule of Funds Held",null,"(B) Bonds - Asset Type 311",{"$f":"'Schedule VIA'!B529","v":"Select"},null,null,null,null,null,null,null,{"$f":"'Schedule VIA (EBS)'!B529","v":"Select"}]
["Sch VIA","Schedule of Funds Held",null,"(B) Bonds - Asset Type 334",{"$f":"'Schedule VIA'!B552","v":"Select"},null,null,null,null,null,null,null,{"$f":"'Schedule VIA (EBS)'!B552","v":"Select"}]
["Sch VIA","Schedule of Funds Held",null,"(B) Bonds - Asset Type 353",{"$f":"'Schedule VIA'!B571","v":"Select"},null,null,null,null,null,null,null,{"$f":"'Schedule VIA (EBS)'!B571","v":"Select"}]
["Sch VIA","Schedule of Funds Held",null,"(B) Bonds - Asset Type 372",{"$f":"'Schedule VIA'!B590","v":"Select"},null,null,null,null,null,null,null,{"$f":"'Schedule VIA (EBS)'!B590","v":"Select"}]
["Sch VIA","Schedule of Funds Held",null,"(B) Bonds - Asset Type 397",{"$f":"'Schedule VIA'!B615","v":"Select"},null,null,null,null,null,null,null,{"$f":"'Schedule VIA (EBS)'!B615","v":"Select"}]
["Sch VIA","Schedule of Funds Held",null,"(B) Bonds - Currency 16",{"$f":"'Schedule VIA'!C234","v":"Select"},null,null,null,null,null,null,null,{"$f":"'Schedule VIA (EBS)'!C234","v":"Select"}]
["Sch VIA","Schedule of Funds Held",null,"(B) Bonds - Currency 35",{"$f":"'Schedule VIA'!C253","v":"Select"},null,null,null,null,null,null,null,{"$f":"'Schedule VIA (EBS)'!C253","v":"Select"}]
["Sch VIA","Schedule of Funds Held",null,"(B) Bonds - Currency 48",{"$f":"'Schedule VIA'!C266","v":"Select"},null,null,null,null,null,null,null,{"$f":"'Schedule VIA (EBS)'!C266","v":"Select"}]
["Sch VIA","Schedule of Funds Held",null,"(B) Bonds - Currency 61",{"$f":"'Schedule VIA'!C279","v":"Select"},null,null,null,null,null,null,null,{"$f":"'Schedule VIA (EBS)'!C279","v":"Select"}]
["Sch VIA","Schedule of Funds Held",null,"(B) Bonds - Currency 86",{"$f":"'Schedule VIA'!C304","v":"Select"},null,null,null,null,null,null,null,{"$f":"'Schedule VIA (EBS)'!C304","v":"Select"}]
["Sch VIA","Schedule of Funds Held",null,"(B) Bonds - Currency 105",{"$f":"'Schedule VIA'!C323","v":"Select"},null,null,null,null,null,null,null,{"$f":"'Schedule VIA (EBS)'!C323","v":"Select"}]
["Sch VIA","Schedule of Funds Held",null,"(B) Bonds - Currency 124",{"$f":"'Schedule VIA'!C342","v":"Select"},null,null,null,null,null,null,null,{"$f":"'Schedule VIA (EBS)'!C342","v":"Select"}]
["Sch VIA","Schedule of Funds Held",null,"(B) Bonds - Currency 149",{"$f":"'Schedule VIA'!C367","v":"Select"},null,null,null,null,null,null,null,{"$f":"'Schedule VIA (EBS)'!C367","v":"Select"}]
["Sch VIA","Schedule of Funds Held",null,"(B) Bonds - Currency 168",{"$f":"'Schedule VIA'!C386","v":"Select"},null,null,null,null,null,null,null,{"$f":"'Schedule VIA (EBS)'!C386","v":"Select"}]
["Sch VIA","Schedule of Funds Held",null,"(B) Bonds - Currency 174",{"$f":"'Schedule VIA'!C392","v":"Select"},null,null,null,null,null,null,null,{"$f":"'Schedule VIA (EBS)'!C392","v":"Select"}]
["Sch VIA","Schedule of Funds Held",null,"(B) Bonds - Currency 209",{"$f":"'Schedule VIA'!C427","v":"Select"},null,null,null,null,null,null,null,{"$f":"'Schedule VIA (EBS)'!C427","v":"Select"}]
["Sch VIA","Schedule of Funds Held",null,"(B) Bonds - Currency 213",{"$f":"'Schedule VIA'!C431","v":"Select"},null,null,null,null,null,null,null,{"$f":"'Schedule VIA (EBS)'!C431","v":"Select"}]
["Sch VIA","Schedule of Funds Held",null,"(B) Bonds - Currency 238",{"$f":"'Schedule VIA'!C456","v":"Select"},null,null,null,null,null,null,null,{"$f":"'Schedule VIA (EBS)'!C456","v":"Select"}]
["Sch VIA","Schedule of Funds Held",null,"(B) Bonds - Currency 257",{"$f":"'Schedule VIA'!C475","v":"Select"},null,null,null,null,null,null,null,{"$f":"'Schedule VIA (EBS)'!C475","v":"Select"}]
["Sch VIA","Schedule of Funds Held",null,"(B) Bonds - Currency 276",{"$f":"'Schedule VIA'!C494","v":"Select"},null,null,null,null,null,null,null,{"$f":"'Schedule VIA (EBS)'!C494","v":"Select"}]
["Sch VIA","Schedule of Funds Held",null,"(B) Bonds - Currency 301",{"$f":"'Schedule VIA'!C519","v":"Select"},null,null,null,null,null,null,null,{"$f":"'Schedule VIA (EBS)'!C519","v":"Select"}]
["Sch VIA","Schedule of Funds Held",null,"(B) Bonds - Currency 320",{"$f":"'Schedule VIA'!C538","v":"Select"},null,null,null,null,null,null,null,{"$f":"'Schedule VIA (EBS)'!C538","v":"Select"}]
["Sch VIA","Schedule of Funds Held",null,"(B) Bonds - Currency 326",{"$f":"'Schedule VIA'!C544","v":"Select"},null,null,null,null,null,null,null,{"$f":"'Schedule VIA (EBS)'!C544","v":"Select"}]
["Sch VIA","Schedule of Funds Held",null,"(B) Bonds - Currency 346",{"$f":"'Schedule VIA'!C564","v":"Select"},null,null,null,null,null,null,null,{"$f":"'Schedule VIA (EBS)'!C564","v":"Select"}]
["Sch VIA","Schedule of Funds Held",null,"(B) Bonds - Currency 365",{"$f":"'Schedule VIA'!C583","v":"Select"},null,null,null,null,null,null,null,{"$f":"'Schedule VIA (EBS)'!C583","v":"Select"}]
["Sch VIA","Schedule of Funds Held",null,"(B) Bonds - Currency 390",{"$f":"'Schedule VIA'!C608","v":"Select"},null,null,null,null,null,null,null,{"$f":"'Schedule VIA (EBS)'!C608","v":"Select"}]
["Sch VIA","Schedule of Funds Held",null,"(B) Bonds - Rating 9",{"$f":"'Schedule VIA'!D227","v":"Select"},null,null,null,null,null,null,null,{"$f":"'Schedule VIA (EBS)'!D227","v":"Select"}]
["Sch VIA","Schedule of Funds Held",null,"(B) Bonds - Rating 34",{"$f":"'Schedule VIA'!D252","v":"Select"},null,null,null,null,null,null,null,{"$f":"'Schedule VIA (EBS)'!D252","v":"Select"}]
["Sch VIA","Schedule of Funds Held",null,"(B) Bonds - Rating 53",{"$f":"'Schedule VIA'!D271","v":"Select"},null,null,null,null,null,null,null,{"$f":"'Schedule VIA (EBS)'!D271","v":"Select"}]
["Sch VIA","Schedule of Funds Held",null,"(B) Bonds - Rating 72",{"$f":"'Schedule VIA'!D290","v":"Select"},null,null,null,null,null,null,null,{"$f":"'Schedule VIA (EBS)'!D290","v":"Select"}]
["Sch VIA","Schedule of Funds Held",null,"(B) Bonds - Rating 87",{"$f":"'Schedule VIA'!D305","v":"Select"},null,null,null,null,null,null,null,{"$f":"'Schedule VIA (EBS)'!D305","v":"Select"}]
["Sch VIA","Schedule of Funds Held",null,"(B) Bonds - Rating 98",{"$f":"'Schedule VIA'!D316","v":"Select"},null,null,null,null,null,null,null,{"$f":"'Schedule VIA (EBS)'!D316","v":"Select"}]
["Sch VIA","Schedule of Funds Held",null,"(B) Bonds - Rating 117",{"$f":"'Schedule VIA'!D335","v":"Select"},null,null,null,null,null,null,null,{"$f":"'Schedule VIA (EBS)'!D335","v":"Select"}]
["Sch VIA","Schedule of Funds Held",null,"(B) Bonds - Rating 142",{"$f":"'Schedule VIA'!D360","v":"Select"},null,null,null,null,null,null,null,{"$f":"'Schedule VIA (EBS)'!D360","v":"Select"}]
["Sch VIA","Schedule of Funds Held",null,"(B) Bonds - Rating 161",{"$f":"'Schedule VIA'!D379","v":"Select"},null,null,null,null,null,null,null,{"$f":"'Schedule VIA (EBS)'!D379","v":"Select"}]
["Sch VIA","Schedule of Funds Held",null,"(B) Bonds - Rating 186",{"$f":"'Schedule VIA'!D404","v":"Select"},null,null,null,null,null,null,null,{"$f":"'Schedule VIA (EBS)'!D404","v":"Select"}]
["Sch VIA","Schedule of Funds Held",null,"(B) Bonds - Rating 205",{"$f":"'Schedule VIA'!D423","v":"Select"},null,null,null,null,null,null,null,{"$f":"'Schedule VIA (EBS)'!D423","v":"Select"}]
["Sch VIA","Schedule of Funds Held",null,"(B) Bonds - Rating 224",{"$f":"'Schedule VIA'!D442","v":"Select"},null,null,null,null,null,null,null,{"$f":"'Schedule VIA (EBS)'!D442","v":"Select"}]
["Sch VIA","Schedule of Funds Held",null,"(B) Bonds - Rating 248",{"$f":"'Schedule VIA'!D466","v":"Select"},null,null,null,null,null,null,null,{"$f":"'Schedule VIA (EBS)'!D466","v":"Select"}]
["Sch VIA","Schedule of Funds Held",null,"(B) Bonds - Rating 250",{"$f":"'Schedule VIA'!D468","v":"Select"},null,null,null,null,null,null,null,{"$f":"'Schedule VIA (EBS)'!D468","v":"Select"}]
["Sch VIA","Schedule of Funds Held",null,"(B) Bonds - Rating 269",{"$f":"'Schedule VIA'!D487","v":"Select"},null,null,null,null,null,null,null,{"$f":"'Schedule VIA (EBS)'!D487","v":"Select"}]
["Sch VIA","Schedule of Funds Held",null,"(B) Bonds - Rating 294",{"$f":"'Schedule VIA'!D512","v":"Select"},null,null,null,null,null,null,null,{"$f":"'Schedule VIA (EBS)'!D512","v":"Select"}]
["Sch VIA","Schedule of Funds Held",null,"(B) Bonds - Rating 313",{"$f":"'Schedule VIA'!D531","v":"Select"},null,null,null,null,null,null,null,{"$f":"'Schedule VIA (EBS)'!D531","v":"Select"}]
["Sch VIA","Schedule of Funds Held",null,"(B) Bonds - Rating 338",{"$f":"'Schedule VIA'!D556","v":"Select"},null,null,null,null,null,null,null,{"$f":"'Schedule VIA (EBS)'!D556","v":"Select"}]
["Sch VIA","Schedule of Funds Held",null,"(B) Bonds - Rating 357",{"$f":"'Schedule VIA'!D575","v":"Select"},null,null,null,null,null,null,null,{"$f":"'Schedule VIA (EBS)'!D575","v":"Select"}]
["Sch VIA","Schedule of Funds Held",null,"(B) Bonds - Rating 369",{"$f":"'Schedule VIA'!D587","v":"Select"},null,null,null,null,null,null,null,{"$f":"'Schedule VIA (EBS)'!D587","v":"Select"}]
["Sch VIA","Schedule of Funds Held",null,"(B) Bonds - Nominal 2",{"$f":"'Schedule VIA'!E220","v":0},null,null,null,null,null,null,null,{"$f":"'Schedule VIA (EBS)'!E220","v":0}]
["Sch VIA","Schedule of Funds Held",null,"(B) Bonds - Nominal 21",{"$f":"'Schedule VIA'!E239","v":0},null,null,null,null,null,null,null,{"$f":"'Schedule VIA (EBS)'!E239","v":0}]
["Sch VIA","Schedule of Funds Held",null,"(B) Bonds - Nominal 27",{"$f":"'Schedule VIA'!E245","v":0},null,null,null,null,null,null,null,{"$f":"'Schedule VIA (EBS)'!E245","v":0}]
["Sch VIA","Schedule of Funds Held",null,"(B) Bonds - Nominal 46",{"$f":"'Schedule VIA'!E264","v":0},null,null,null,null,null,null,null,{"$f":"'Schedule VIA (EBS)'!E264","v":0}]
["Sch VIA","Schedule of Funds Held",null,"(B) Bonds - Nominal 65",{"$f":"'Schedule VIA'!E283","v":0},null,null,null,null,null,null,null,{"$f":"'Schedule VIA (EBS)'!E283","v":0}]
["Sch VIA","Schedule of Funds Held",null,"(B) Bonds - Nominal 90",{"$f":"'Schedule VIA'!E308","v":0},null,null,null,null,null,null,null,{"$f":"'Schedule VIA (EBS)'!E308","v":0}]
["Sch VIA","Schedule of Funds Held",null,"(B) Bonds - Nominal 109",{"$f":"'Schedule VIA'!E327","v":0},null,null,null,null,null,null,null,{"$f":"'Schedule VIA (EBS)'!E327","v":0}]
["Sch VIA","Schedule of Funds Held",null,"(B) Bonds - Nominal 130",{"$f":"'Schedule VIA'!E348","v":0},null,null,null,null,null,null,null,{"$f":"'Schedule VIA (EBS)'!E348","v":0}]
["Sch VIA","Schedule of Funds Held",null,"(B) Bonds - Nominal 154",{"$f":"'Schedule VIA'!E372","v":0},null,null,null,null,null,null,null,{"$f":"'Schedule VIA (EBS)'!E372","v":0}]
["Sch VIA","Schedule of Funds Held",null,"(B) Bonds - Nominal 173",{"$f":"'Schedule VIA'!E391","v":0},null,null,null,null,null,null,null,{"$f":"'Schedule VIA (EBS)'!E391","v":0}]
["Sch VIA","Schedule of Funds Held",null,"(B) Bonds - Nominal 179",{"$f":"'Schedule VIA'!E397","v":0},null,null,null,null,null,null,null,{"$f":"'Schedule VIA (EBS)'!E397","v":0}]
["Sch VIA","Schedule of Funds Held",null,"(B) Bonds - Nominal 198",{"$f":"'Schedule VIA'!E416","v":0},null,null,null,null,null,null,null,{"$f":"'Schedule VIA (EBS)'!E416","v":0}]
["Sch VIA","Schedule of Funds Held",null,"(B) Bonds - Nominal 217",{"$f":"'Schedule VIA'!E435","v":0},null,null,null,null,null,null,null,{"$f":"'Schedule VIA (EBS)'!E435","v":0}]
["Sch VIA","Schedule of Funds Held",null,"(B) Bonds - Nominal 242",{"$f":"'Schedule VIA'!E460","v":0},null,null,null,null,null,null,null,{"$f":"'Schedule VIA (EBS)'!E460","v":0}]
["Sch VIA","Schedule of Funds Held",null,"(B) Bonds - Nominal 267",{"$f":"'Schedule VIA'!E485","v":0},null,null,null,null,null,null,null,{"$f":"'Schedule VIA (EBS)'!E485","v":0}]
["Sch VIA","Schedule of Funds Held",null,"(B) Bonds - Nominal 281",{"$f":"'Schedule VIA'!E499","v":0},null,null,null,null,null,null,null,{"$f":"'Schedule VIA (EBS)'!E499","v":0}]
["Sch VIA","Schedule of Funds Held",null,"(B) Bonds - Nominal 306",{"$f":"'Schedule VIA'!E524","v":0},null,null,null,null,null,null,null,{"$f":"'Schedule VIA (EBS)'!E524","v":0}]
["Sch VIA","Schedule of Funds Held",null,"(B) Bonds - Nominal 325",{"$f":"'Schedule VIA'!E543","v":0},null,null,null,null,null,null,null,{"$f":"'Schedule VIA (EBS)'!E543","v":0}]
["Sch VIA","Schedule of Funds Held",null,"(B) Bonds - Nominal 331",{"$f":"'Schedule VIA'!E549","v":0},null,null,null,null,null,null,null,{"$f":"'Schedule VIA (EBS)'!E549","v":0}]
["Sch VIA","Schedule of Funds Held",null,"(B) Bonds - Nominal 350",{"$f":"'Schedule VIA'!E568","v":0},null,null,null,null,null,null,null,{"$f":"'Schedule VIA (EBS)'!E568","v":0}]
["Sch VIA","Schedule of Funds Held",null,"(B) Bonds - Nominal 369",{"$f":"'Schedule VIA'!E587","v":0},null,null,null,null,null,null,null,{"$f":"'Schedule VIA (EBS)'!E587","v":0}]
["Sch VIA","Schedule of Funds Held",null,"(B) Bonds - Nominal 394",{"$f":"'Schedule VIA'!E612","v":0},null,null,null,null,null,null,null,{"$f":"'Schedule VIA (EBS)'!E612","v":0}]
["Sch VIA","Schedule of Funds Held",null,"(B) Bonds - Fair Value 8",{"$f":"'Schedule VIA'!F226","v":0},null,null,null,null,null,null,null,{"$f":"'Schedule VIA (EBS)'!F226","v":0}]
["Sch VIA","Schedule of Funds Held",null,"(B) Bonds - Fair Value 39",{"$f":"'Schedule VIA'!F257","v":0},null,null,null,null,null,null,null,{"$f":"'Schedule VIA (EBS)'!F257","v":0}]
["Sch VIA","Schedule of Funds Held",null,"(B) Bonds - Fair Value 58",{"$f":"'Schedule VIA'!F276","v":0},null,null,null,null,null,null,null,{"$f":"'Schedule VIA (EBS)'!F276","v":0}]
["Sch VIA","Schedule of Funds Held",null,"(B) Bonds - Fair Value 77",{"$f":"'Schedule VIA'!F295","v":0},null,null,null,null,null,null,null,{"$f":"'Schedule VIA (EBS)'!F295","v":0}]
["Sch VIA","Schedule of Funds Held",null,"(B) Bonds - Fair Value 83",{"$f":"'Schedule VIA'!F301","v":0},null,null,null,null,null,null,null,{"$f":"'Schedule VIA (EBS)'!F301","v":0}]
["Sch VIA","Schedule of Funds Held",null,"(B) Bonds - Fair Value 102",{"$f":"'Schedule VIA'!F320","v":0},null,null,null,null,null,null,null,{"$f":"'Schedule VIA (EBS)'!F320","v":0}]
["Sch VIA","Schedule of Funds Held",null,"(B) Bonds - Fair Value 121",{"$f":"'Schedule VIA'!F339","v":0},null,null,null,null,null,null,null,{"$f":"'Schedule VIA (EBS)'!F339","v":0}]
["Sch VIA","Schedule of Funds Held",null,"(B) Bonds - Fair Value 145",{"$f":"'Schedule VIA'!F363","v":0},null,null,null,null,null,null,null,{"$f":"'Schedule VIA (EBS)'!F363","v":0}]
["Sch VIA","Schedule of Funds Held",null,"(B) Bonds - Fair Value 166",{"$f":"'Schedule VIA'!F384","v":0},null,null,null,null,null,null,null,{"$f":"'Schedule VIA (EBS)'!F384","v":0}]
["Sch VIA","Schedule of Funds Held",null,"(B) Bonds - Fair Value 191",{"$f":"'Schedule VIA'!F409","v":0},null,null,null,null,null,null,null,{"$f":"'Schedule VIA (EBS)'!F409","v":0}]
["Sch VIA","Schedule of Funds Held",null,"(B) Bonds - Fair Value 210",{"$f":"'Schedule VIA'!F428","v":0},null,null,null,null,null,null,null,{"$f":"'Schedule VIA (EBS)'!F428","v":0}]
["Sch VIA","Schedule of Funds Held",null,"(B) Bonds - Fair Value 229",{"$f":"'Schedule VIA'!F447","v":0},null,null,null,null,null,null,null,{"$f":"'Schedule VIA (EBS)'!F447","v":0}]
["Sch VIA","Schedule of Funds Held",null,"(B) Bonds - Fair Value 235",{"$f":"'Schedule VIA'!F453","v":0},null,null,null,null,null,null,null,{"$f":"'Schedule VIA (EBS)'!F453","v":0}]
["Sch VIA","Schedule of Funds Held",null,"(B) Bonds - Fair Value 254",{"$f":"'Schedule VIA'!F472","v":0},null,null,null,null,null,null,null,{"$f":"'Schedule VIA (EBS)'!F472","v":0}]
["Sch VIA","Schedule of Funds Held",null,"(B) Bonds - Fair Value 279",{"$f":"'Schedule VIA'!F497","v":0},null,null,null,null,null,null,null,{"$f":"'Schedule VIA (EBS)'!F497","v":0}]
["Sch VIA","Schedule of Funds Held",null,"(B) Bonds - Fair Value 306",{"$f":"'Schedule VIA'!F524","v":0},null,null,null,null,null,null,null,{"$f":"'Schedule VIA (EBS)'!F524","v":0}]
["Sch VIA","Schedule of Funds Held",null,"(B) Bonds - Fair Value 318",{"$f":"'Schedule VIA'!F536","v":0},null,null,null,null,null,null,null,{"$f":"'Schedule VIA (EBS)'!F536","v":0}]
["Sch VIA","Schedule of Funds Held",null,"(B) Bonds - Fair Value 343",{"$f":"'Schedule VIA'!F561","v":0},null,null,null,null,null,null,null,{"$f":"'Schedule VIA (EBS)'!F561","v":0}]
["Sch VIA","Schedule of Funds Held",null,"(B) Bonds - Fair Value 362",{"$f":"'Schedule VIA'!F580","v":0},null,null,null,null,null,null,null,{"$f":"'Schedule VIA (EBS)'!F580","v":0}]
["Sch VIA","Schedule of Funds Held",null,"(B) Bonds - Fair Value 381",{"$f":"'Schedule VIA'!F599","v":0},null,null,null,null,null,null,null,{"$f":"'Schedule VIA (EBS)'!F599","v":0}]
["Sch VIA","Schedule of Funds Held",null,"(B) Bonds - Fair Value 387",{"$f":"'Schedule VIA'!F605","v":0},null,null,null,null,null,null,null,{"$f":"'Schedule VIA (EBS)'!F605","v":0}]
["Sch VIA","Schedule of Funds Held",null,"(B) Bonds - Weighted Average YTM 6",{"$f":"'Schedule VIA'!G224","v":0},null,null,null,null,null,null,null,{"$f":"'Schedule VIA (EBS)'!G224","v":0}]
["Sch VIA","Schedule of Funds Held",null,"(B) Bonds - Weighted Average YTM 31",{"$f":"'Schedule VIA'!G249","v":0},null,null,null,null,null,null,null,{"$f":"'Schedule VIA (EBS)'!G249","v":0}]
["Sch VIA","Schedule of Funds Held",null,"(B) Bonds - Weighted Average YTM 47",{"$f":"'Schedule VIA'!G265","v":0},null,null,null,null,null,null,null,{"$f":"'Schedule VIA (EBS)'!G265","v":0}]
["Sch VIA","Schedule of Funds Held",null,"(B) Bonds - Weighted Average YTM 70",{"$f":"'Schedule VIA'!G288","v":0},null,null,null,null,null,null,null,{"$f":"'Schedule VIA (EBS)'!G288","v":0}]
["Sch VIA","Schedule of Funds Held",null,"(B) Bonds - Weighted Average YTM 95",{"$f":"'Schedule VIA'!G313","v":0},null,null,null,null,null,null,null,{"$f":"'Schedule VIA (EBS)'!G313","v":0}]
["Sch VIA","Schedule of Funds Held",null,"(B) Bonds - Weighted Average YTM 114",{"$f":"'Schedule VIA'!G332","v":0},null,null,null,null,null,null,null,{"$f":"'Schedule VIA (EBS)'!G332","v":0}]
["Sch VIA","Schedule of Funds Held",null,"(B) Bonds - Weighted Average YTM 133",{"$f":"'Schedule VIA'!G351","v":0},null,null,null,null,null,null,null,{"$f":"'Schedule VIA (EBS)'!G351","v":0}]
["Sch VIA","Schedule of Funds Held",null,"(B) Bonds - Weighted Average YTM 158",{"$f":"'Schedule VIA'!G376","v":0},null,null,null,null,null,null,null,{"$f":"'Schedule VIA (EBS)'!G376","v":0}]
["Sch VIA","Schedule of Funds Held",null,"(B) Bonds - Weighted Average YTM 177",{"$f":"'Schedule VIA'!G395","v":0},null,null,null,null,null,null,null,{"$f":"'Schedule VIA (EBS)'!G395","v":0}]
["Sch VIA","Schedule of Funds Held",null,"(B) Bonds - Weighted Average YTM 184",{"$f":"'Schedule VIA'!G402","v":0},null,null,null,null,null,null,null,{"$f":"'Schedule VIA (EBS)'!G402","v":0}]
["Sch VIA","Schedule of Funds Held",null,"(B) Bonds - Weighted Average YTM 203",{"$f":"'Schedule VIA'!G421","v":0},null,null,null,null,null,null,null,{"$f":"'Schedule VIA (EBS)'!G421","v":0}]
["Sch VIA","Schedule of Funds Held",null,"(B) Bonds - Weighted Average YTM 222",{"$f":"'Schedule VIA'!G440","v":0},null,null,null,null,null,null,null,{"$f":"'Schedule VIA (EBS)'!G440","v":0}]
["Sch VIA","Schedule of Funds Held",null,"(B) Bonds - Weighted Average YTM 247",{"$f":"'Schedule VIA'!G465","v":0},null,null,null,null,null,null,null,{"$f":"'Schedule VIA (EBS)'!G465","v":0}]
["Sch VIA","Schedule of Funds Held",null,"(B) Bonds - Weighted Average YTM 266",{"$f":"'Schedule VIA'!G484","v":0},null,null,null,null,null,null,null,{"$f":"'Schedule VIA (EBS)'!G484","v":0}]
["Sch VIA","Schedule of Funds Held",null,"(B) Bonds - Weighted Average YTM 291",{"$f":"'Schedule VIA'!G509","v":0},null,null,null,null,null,null,null,{"$f":"'Schedule VIA (EBS)'!G509","v":0}]
["Sch VIA","Schedule of Funds Held",null,"(B) Bonds - Weighted Average YTM 310",{"$f":"'Schedule VIA'!G528","v":0},null,null,null,null,null,null,null,{"$f":"'Schedule VIA (EBS)'!G528","v":0}]
["Sch VIA","Schedule of Funds Held",null,"(B) Bonds - Weighted Average YTM 329",{"$f":"'Schedule VIA'!G547","v":0},null,null,null,null,null,null,null,{"$f":"'Schedule VIA (EBS)'!G547","v":0}]
["Sch VIA","Schedule of Funds Held",null,"(B) Bonds - Weighted Average YTM 345",{"$f":"'Schedule VIA'!G563","v":0},null,null,null,null,null,null,null,{"$f":"'Schedule VIA (EBS)'!G563","v":0}]
["Sch VIA","Schedule of Funds Held",null,"(B) Bonds - Weighted Average YTM 355",{"$f":"'Schedule VIA'!G573","v":0},null,null,null,null,null,null,null,{"$f":"'Schedule VIA (EBS)'!G573","v":0}]
["Sch VIA","Schedule of Funds Held",null,"(B) Bonds - Weighted Average YTM 374",{"$f":"'Schedule VIA'!G592","v":0},null,null,null,null,null,null,null,{"$f":"'Schedule VIA (EBS)'!G592","v":0}]
["Sch VIA","Schedule of Funds Held",null,"(B) Bonds - Weighted Average YTM 399",{"$f":"'Schedule VIA'!G617","v":0},null,null,null,null,null,null,null,{"$f":"'Schedule VIA (EBS)'!G617","v":0}]
["Sch VIA","Schedule of Funds Held",null,"(B) Bonds - Effective Duration 18",{"$f":"'Schedule VIA'!H236","v":0},null,null,null,null,null,null,null,{"$f":"'Schedule VIA (EBS)'!H236","v":0}]
["Sch VIA","Schedule of Funds Held",null,"(B) Bonds - Effective Duration 43",{"$f":"'Schedule VIA'!H261","v":0},null,null,null,null,null,null,null,{"$f":"'Schedule VIA (EBS)'!H261","v":0}]
["Sch VIA","Schedule of Funds Held",null,"(B) Bonds - Effective Duration 62",{"$f":"'Schedule VIA'!H280","v":0},null,null,null,null,null,null,null,{"$f":"'Schedule VIA (EBS)'!H280","v":0}]
["Sch VIA","Schedule of Funds Held",null,"(B) Bonds - Effective Duration 66",{"$f":"'Schedule VIA'!H284","v":0},null,null,null,null,null,null,null,{"$f":"'Schedule VIA (EBS)'!H284","v":0}]
["Sch VIA","Schedule of Funds Held",null,"(B) Bonds - Effective Duration 88",{"$f":"'Schedule VIA'!H306","v":0},null,null,null,null,null,null,null,{"$f":"'Schedule VIA (EBS)'!H306","v":0}]
["Sch VIA","Schedule of Funds Held",null,"(B) Bonds - Effective Duration 107",{"$f":"'Schedule VIA'!H325","v":0},null,null,null,null,null,null,null,{"$f":"'Schedule VIA (EBS)'!H325","v":0}]
["Sch VIA","Schedule of Funds Held",null,"(B) Bonds - Effective Duration 132",{"$f":"'Schedule VIA'!H350","v":0},null,null,null,null,null,null,null,{"$f":"'Schedule VIA (EBS)'!H350","v":0}]
["Sch VIA","Schedule of Funds Held",null,"(B) Bonds - Effective Duration 151",{"$f":"'Schedule VIA'!H369","v":0},null,null,null,null,null,null,null,{"$f":"'Schedule VIA (EBS)'!H369","v":0}]
["Sch VIA","Schedule of Funds Held",null,"(B) Bonds - Effective Duration 170",{"$f":"'Schedule VIA'!H388","v":0},null,null,null,null,null,null,null,{"$f":"'Schedule VIA (EBS)'!H388","v":0}]
["Sch VIA","Schedule of Funds Held",null,"(B) Bonds - Effective Duration 195",{"$f":"'Schedule VIA'!H413","v":0},null,null,null,null,null,null,null,{"$f":"'Schedule VIA (EBS)'!H413","v":0}]
["Sch VIA","Schedule of Funds Held",null,"(B) Bonds - Effective Duration 214",{"$f":"'Schedule VIA'!H432","v":0},null,null,null,null,null,null,null,{"$f":"'Schedule VIA (EBS)'!H432","v":0}]
["Sch VIA","Schedule of Funds Held",null,"(B) Bonds - Effective Duration 227",{"$f":"'Schedule VIA'!H445","v":0},null,null,null,null,null,null,null,{"$f":"'Schedule VIA (EBS)'!H445","v":0}]
["Sch VIA","Schedule of Funds Held",null,"(B) Bonds - Effective Duration 240",{"$f":"'Schedule VIA'!H458","v":0},null,null,null,null,null,null,null,{"$f":"'Schedule VIA (EBS)'!H458","v":0}]
["Sch VIA","Schedule of Funds Held",null,"(B) Bonds - Effective Duration 259",{"$f":"'Schedule VIA'!H477","v":0},null,null,null,null,null,null,null,{"$f":"'Schedule VIA (EBS)'!H477","v":0}]
["Sch VIA","Schedule of Funds Held",null,"(B) Bonds - Effective Duration 284",{"$f":"'Schedule VIA'!H502","v":0},null,null,null,null,null,null,null,{"$f":"'Schedule VIA (EBS)'!H502","v":0}]
["Sch VIA","Schedule of Funds Held",null,"(B) Bonds - Effective Duration 303",{"$f":"'Schedule VIA'!H521","v":0},null,null,null,null,null,null,null,{"$f":"'Schedule VIA (EBS)'!H521","v":0}]
["Sch VIA","Schedule of Funds Held",null,"(B) Bonds - Effective Duration 322",{"$f":"'Schedule VIA'!H540","v":0},null,null,null,null,null,null,null,{"$f":"'Schedule VIA (EBS)'!H540","v":0}]
["Sch VIA","Schedule of Funds Held",null,"(B) Bonds - Effective Duration 347",{"$f":"'Schedule VIA'!H565","v":0},null,null,null,null,null,null,null,{"$f":"'Schedule VIA (EBS)'!H565","v":0}]
["Sch VIA","Schedule of Funds Held",null,"(B) Bonds - Effective Duration 364",{"$f":"'Schedule VIA'!H582","v":0},null,null,null,null,null,null,null,{"$f":"'Schedule VIA (EBS)'!H582","v":0}]
["Sch VIA","Schedule of Funds Held",null,"(B) Bonds - Effective Duration 386",{"$f":"'Schedule VIA'!H604","v":0},null,null,null,null,null,null,null,{"$f":"'Schedule VIA (EBS)'!H604","v":0}]
["Sch VIA","Schedule of Funds Held",null,"(B) Bonds - Effective Duration 392",{"$f":"'Schedule VIA'!H610","v":0},null,null,null,null,null,null,null,{"$f":"'Schedule VIA (EBS)'!H610","v":0}]
["Sch VIA","Schedule of Funds Held",null,"(B) Bonds - Comments 11",{"$f":"'Schedule VIA'!I229","v":0},null,null,null,null,null,null,null,{"$f":"'Schedule VIA (EBS)'!I229","v":0}]
["Sch VIA","Schedule of Funds Held",null,"(B) Bonds - Comments 36",{"$f":"'Schedule VIA'!I254","v":0},null,null,null,null,null,null,null,{"$f":"'Schedule VIA (EBS)'!I254","v":0}]
["Sch VIA","Schedule of Funds Held",null,"(B) Bonds - Comments 55",{"$f":"'Schedule VIA'!I273","v":0},null,null,null,null,null,null,null,{"$f":"'Schedule VIA (EBS)'!I273","v":0}]
["Sch VIA","Schedule of Funds Held",null,"(B) Bonds - Comments 74",{"$f":"'Schedule VIA'!I292","v":0},null,null,null,null,null,null,null,{"$f":"'Schedule VIA (EBS)'!I292","v":0}]
["Sch VIA","Schedule of Funds Held",null,"(B) Bonds - Comments 99",{"$f":"'Schedule VIA'!I317","v":0},null,null,null,null,null,null,null,{"$f":"'Schedule VIA (EBS)'!I317","v":0}]
["Sch VIA","Schedule of Funds Held",null,"(B) Bonds - Comments 105",{"$f":"'Schedule VIA'!I323","v":0},null,null,null,null,null,null,null,{"$f":"'Schedule VIA (EBS)'!I323","v":0}]
["Sch VIA","Schedule of Funds Held",null,"(B) Bonds - Comments 125",{"$f":"'Schedule VIA'!I343","v":0},null,null,null,null,null,null,null,{"$f":"'Schedule VIA (EBS)'!I343","v":0}]
["Sch VIA","Schedule of Funds Held",null,"(B) Bonds - Comments 144",{"$f":"'Schedule VIA'!I362","v":0},null,null,null,null,null,null,null,{"$f":"'Schedule VIA (EBS)'!I362","v":0}]
["Sch VIA","Schedule of Funds Held",null,"(B) Bonds - Comments 163",{"$f":"'Schedule VIA'!I381","v":0},null,null,null,null,null,null,null,{"$f":"'Schedule VIA (EBS)'!I381","v":0}]
["Sch VIA","Schedule of Funds Held",null,"(B) Bonds - Comments 188",{"$f":"'Schedule VIA'!I406","v":0},null,null,null,null,null,null,null,{"$f":"'Schedule VIA (EBS)'!I406","v":0}]
["Sch VIA","Schedule of Funds Held",null,"(B) Bonds - Comments 207",{"$f":"'Schedule VIA'!I425","v":0},null,null,null,null,null,null,null,{"$f":"'Schedule VIA (EBS)'!I425","v":0}]
["Sch VIA","Schedule of Funds Held",null,"(B) Bonds - Comments 226",{"$f":"'Schedule VIA'!I444","v":0},null,null,null,null,null,null,null,{"$f":"'Schedule VIA (EBS)'!I444","v":0}]
["Sch VIA","Schedule of Funds Held",null,"(B) Bonds - Comments 251",{"$f":"'Schedule VIA'!I469","v":0},null,null,null,null,null,null,null,{"$f":"'Schedule VIA (EBS)'!I469","v":0}]
["Sch VIA","Schedule of Funds Held",null,"(B) Bonds - Comments 266",{"$f":"'Schedule VIA'!I484","v":0},null,null,null,null,null,null,null,{"$f":"'Schedule VIA (EBS)'!I484","v":0}]
["Sch VIA","Schedule of Funds Held",null,"(B) Bonds - Comments 296",{"$f":"'Schedule VIA'!I514","v":0},null,null,null,null,null,null,null,{"$f":"'Schedule VIA (EBS)'!I514","v":0}]
["Sch VIA","Schedule of Funds Held",null,"(B) Bonds - Comments 315",{"$f":"'Schedule VIA'!I533","v":0},null,null,null,null,null,null,null,{"$f":"'Schedule VIA (EBS)'!I533","v":0}]
["Sch VIA","Schedule of Funds Held",null,"(B) Bonds - Comments 334",{"$f":"'Schedule VIA'!I552","v":0},null,null,null,null,null,null,null,{"$f":"'Schedule VIA (EBS)'!I552","v":0}]
["Sch VIA","Schedule of Funds Held",null,"(B) Bonds - Comments 340",{"$f":"'Schedule VIA'!I558","v":0},null,null,null,null,null,null,null,{"$f":"'Schedule VIA (EBS)'!I558","v":0}]
["Sch VIA","Schedule of Funds Held",null,"(B) Bonds - Comments 359",{"$f":"'Schedule VIA'!I577","v":0},null,null,null,null,null,null,null,{"$f":"'Schedule VIA (EBS)'!I577","v":0}]
["Sch VIA","Schedule of Funds Held",null,"(B) Bonds - Comments 378",{"$f":"'Schedule VIA'!I596","v":0},null,null,null,null,null,null,null,{"$f":"'Schedule VIA (EBS)'!I596","v":0}]
["Sch VIA","Schedule of Funds Held",null,"(B) Bonds Sovereign Debt - Country 2",{"$f":"'Schedule VIA'!C628","v":"Select"},null,null,null,null,null,null,null,{"$f":"'Schedule VIA (EBS)'!C628","v":"Select"}]
["Sch VIA","Schedule of Funds Held",null,"(B) Bonds Sovereign Debt - Country 22",{"$f":"'Schedule VIA'!C648","v":"Select"},null,null,null,null,null,null,null,{"$f":"'Schedule VIA (EBS)'!C648","v":"Select"}]
["Sch VIA","Schedule of Funds Held",null,"(B) Bonds Sovereign Debt - Country 47",{"$f":"'Schedule VIA'!C673","v":"Select"},null,null,null,null,null,null,null,{"$f":"'Schedule VIA (EBS)'!C673","v":"Select"}]
["Sch VIA","Schedule of Funds Held",null,"(B) Bonds Sovereign Debt - Country 66",{"$f":"'Schedule VIA'!C692","v":"Select"},null,null,null,null,null,null,null,{"$f":"'Schedule VIA (EBS)'!C692","v":"Select"}]
["Sch VIA","Schedule of Funds Held",null,"(B) Bonds Sovereign Debt - Country 85",{"$f":"'Schedule VIA'!C711","v":"Select"},null,null,null,null,null,null,null,{"$f":"'Schedule VIA (EBS)'!C711","v":"Select"}]
["Sch VIA","Schedule of Funds Held",null,"(B) Bonds Sovereign Debt - Country 91",{"$f":"'Schedule VIA'!C717","v":"Select"},null,null,null,null,null,null,null,{"$f":"'Schedule VIA (EBS)'!C717","v":"Select"}]
["Sch VIA","Schedule of Funds Held",null,"(B) Bonds Sovereign Debt - Country 110",{"$f":"'Schedule VIA'!C736","v":"Select"},null,null,null,null,null,null,null,{"$f":"'Schedule VIA (EBS)'!C736","v":"Select"}]
["Sch VIA","Schedule of Funds Held",null,"(B) Bonds Sovereign Debt - Country 135",{"$f":"'Schedule VIA'!C761","v":"Select"},null,null,null,null,null,null,null,{"$f":"'Schedule VIA (EBS)'!C761","v":"Select"}]
["Sch VIA","Schedule of Funds Held",null,"(B) Bonds Sovereign Debt - Country 163",{"$f":"'Schedule VIA'!C789","v":"Select"},null,null,null,null,null,null,null,{"$f":"'Schedule VIA (EBS)'!C789","v":"Select"}]
["Sch VIA","Schedule of Funds Held",null,"(B) Bonds Sovereign Debt - Country 174",{"$f":"'Schedule VIA'!C800","v":"Select"},null,null,null,null,null,null,null,{"$f":"'Schedule VIA (EBS)'!C800","v":"Select"}]
["Sch VIA","Schedule of Funds Held",null,"(B) Bonds Sovereign Debt - Country 199",{"$f":"'Schedule VIA'!C825","v":"Select"},null,null,null,null,null,null,null,{"$f":"'Schedule VIA (EBS)'!C825","v":"Select"}]
["Sch VIA","Schedule of Funds Held",null,"(B) Bonds Sovereign Debt - Currency 18",{"$f":"'Schedule VIA'!D644","v":"Select"},null,null,null,null,null,null,null,{"$f":"'Schedule VIA (EBS)'!D644","v":"Select"}]
["Sch VIA","Schedule of Funds Held",null,"(B) Bonds Sovereign Debt - Currency 37",{"$f":"'Schedule VIA'!D663","v":"Select"},null,null,null,null,null,null,null,{"$f":"'Schedule VIA (EBS)'!D663","v":"Select"}]
["Sch VIA","Schedule of Funds Held",null,"(B) Bonds Sovereign Debt - Currency 43",{"$f":"'Schedule VIA'!D669","v":"Select"},null,null,null,null,null,null,null,{"$f":"'Schedule VIA (EBS)'!D669","v":"Select"}]
["Sch VIA","Schedule of Funds Held",null,"(B) Bonds Sovereign Debt - Currency 62",{"$f":"'Schedule VIA'!D688","v":"Select"},null,null,null,null,null,null,null,{"$f":"'Schedule VIA (EBS)'!D688","v":"Select"}]
["Sch VIA","Schedule of Funds Held",null,"(B) Bonds Sovereign Debt - Currency 80",{"$f":"'Schedule VIA'!D706","v":"Select"},null,null,null,null,null,null,null,{"$f":"'Schedule VIA (EBS)'!D706","v":"Select"}]
["Sch VIA","Schedule of Funds Held",null,"(B) Bonds Sovereign Debt - Currency 107",{"$f":"'Schedule VIA'!D733","v":"Select"},null,null,null,null,null,null,null,{"$f":"'Schedule VIA (EBS)'!D733","v":"Select"}]
["Sch VIA","Schedule of Funds Held",null,"(B) Bonds Sovereign Debt - Currency 126",{"$f":"'Schedule VIA'!D752","v":"Select"},null,null,null,null,null,null,null,{"$f":"'Schedule VIA (EBS)'!D752","v":"Select"}]
["Sch VIA","Schedule of Funds Held",null,"(B) Bonds Sovereign Debt - Currency 151",{"$f":"'Schedule VIA'!D777","v":"Select"},null,null,null,null,null,null,null,{"$f":"'Schedule VIA (EBS)'!D777","v":"Select"}]
["Sch VIA","Schedule of Funds Held",null,"(B) Bonds Sovereign Debt - Currency 170",{"$f":"'Schedule VIA'!D796","v":"Select"},null,null,null,null,null,null,null,{"$f":"'Schedule VIA (EBS)'!D796","v":"Select"}]
["Sch VIA","Schedule of Funds Held",null,"(B) Bonds Sovereign Debt - Currency 176",{"$f":"'Schedule VIA'!D802","v":"Select"},null,null,null,null,null,null,null,{"$f":"'Schedule VIA (EBS)'!D802","v":"Select"}]
["Sch VIA","Schedule of Funds Held",null,"(B) Bonds Sovereign Debt - Currency 195",{"$f":"'Schedule VIA'!D821","v":"Select"},null,null,null,null,null,null,null,{"$f":"'Schedule VIA (EBS)'!D821","v":"Select"}]
["Sch VIA","Schedule of Funds Held",null,"(B) Bonds Sovereign Debt - Rating 14",{"$f":"'Schedule VIA'!E640","v":"Select"},null,null,null,null,null,null,null,{"$f":"'Schedule VIA (EBS)'!E640","v":"Select"}]
["Sch VIA","Schedule of Funds Held",null,"(B) Bonds Sovereign Debt - Rating 41",{"$f":"'Schedule VIA'!E667","v":"Select"},null,null,null,null,null,null,null,{"$f":"'Schedule VIA (EBS)'!E667","v":"Select"}]
["Sch VIA","Schedule of Funds Held",null,"(B) Bonds Sovereign Debt - Rating 59",{"$f":"'Schedule VIA'!E685","v":"Select"},null,null,null,null,null,null,null,{"$f":"'Schedule VIA (EBS)'!E685","v":"Select"}]
["Sch VIA","Schedule of Funds Held",null,"(B) Bonds Sovereign Debt - Rating 78",{"$f":"'Schedule VIA'!E704","v":"Select"},null,null,null,null,null,null,null,{"$f":"'Schedule VIA (EBS)'!E704","v":"Select"}]
["Sch VIA","Schedule of Funds Held",null,"(B) Bonds Sovereign Debt - Rating 103",{"$f":"'Schedule VIA'!E729","v":"Select"},null,null,null,null,null,null,null,{"$f":"'Schedule VIA (EBS)'!E729","v":"Select"}]
["Sch VIA","Schedule of Funds Held",null,"(B) Bonds Sovereign Debt - Rating 122",{"$f":"'Schedule VIA'!E748","v":"Select"},null,null,null,null,null,null,null,{"$f":"'Schedule VIA (EBS)'!E748","v":"Select"}]
["Sch VIA","Schedule of Funds Held",null,"(B) Bonds Sovereign Debt - Rating 128",{"$f":"'Schedule VIA'!E754","v":"Select"},null,null,null,null,null,null,null,{"$f":"'Schedule VIA (EBS)'!E754","v":"Select"}]
["Sch VIA","Schedule of Funds Held",null,"(B) Bonds Sovereign Debt - Rating 147",{"$f":"'Schedule VIA'!E773","v":"Select"},null,null,null,null,null,null,null,{"$f":"'Schedule VIA (EBS)'!E773","v":"Select"}]
["Sch VIA","Schedule of Funds Held",null,"(B) Bonds Sovereign Debt - Rating 182",{"$f":"'Schedule VIA'!E808","v":"Select"},null,null,null,null,null,null,null,{"$f":"'Schedule VIA (EBS)'!E808","v":"Select"}]
["Sch VIA","Schedule of Funds Held",null,"(B) Bonds Sovereign Debt - Rating 192",{"$f":"'Schedule VIA'!E818","v":"Select"},null,null,null,null,null,null,null,{"$f":"'Schedule VIA (EBS)'!E818","v":"Select"}]
["Sch VIA","Schedule of Funds Held",null,"(B) Bonds Sovereign Debt - Fair Value 11",{"$f":"'Schedule VIA'!F637","v":0},null,null,null,null,null,null,null,{"$f":"'Schedule VIA (EBS)'!F637","v":0}]
["Sch VIA","Schedule of Funds Held",null,"(B) Bonds Sovereign Debt - Fair Value 30",{"$f":"'Schedule VIA'!F656","v":0},null,null,null,null,null,null,null,{"$f":"'Schedule VIA (EBS)'!F656","v":0}]
["Sch VIA","Schedule of Funds Held",null,"(B) Bonds Sovereign Debt - Fair Value 55",{"$f":"'Schedule VIA'!F681","v":0},null,null,null,null,null,null,null,{"$f":"'Schedule VIA (EBS)'!F681","v":0}]
["Sch VIA","Schedule of Funds Held",null,"(B) Bonds Sovereign Debt - Fair Value 74",{"$f":"'Schedule VIA'!F700","v":0},null,null,null,null,null,null,null,{"$f":"'Schedule VIA (EBS)'!F700","v":0}]
["Sch VIA","Schedule of Funds Held",null,"(B) Bonds Sovereign Debt - Fair Value 80",{"$f":"'Schedule VIA'!F706","v":0},null,null,null,null,null,null,null,{"$f":"'Schedule VIA (EBS)'!F706","v":0}]
["Sch VIA","Schedule of Funds Held",null,"(B) Bonds Sovereign Debt - Fair Value 99",{"$f":"'Schedule VIA'!F725","v":0},null,null,null,null,null,null,null,{"$f":"'Schedule VIA (EBS)'!F725","v":0}]
["Sch VIA","Schedule of Funds Held",null,"(B) Bonds Sovereign Debt - Fair Value 123",{"$f":"'Schedule VIA'!F749","v":0},null,null,null,null,null,null,null,{"$f":"'Schedule VIA (EBS)'!F749","v":0}]
["Sch VIA","Schedule of Funds Held",null,"(B) Bonds Sovereign Debt - Fair Value 144",{"$f":"'Schedule VIA'!F770","v":0},null,null,null,null,null,null,null,{"$f":"'Schedule VIA (EBS)'!F770","v":0}]
["Sch VIA","Schedule of Funds Held",null,"(B) Bonds Sovereign Debt - Fair Value 163",{"$f":"'Schedule VIA'!F789","v":0},null,null,null,null,null,null,null,{"$f":"'Schedule VIA (EBS)'!F789","v":0}]
["Sch VIA","Schedule of Funds Held",null,"(B) Bonds Sovereign Debt - Fair Value 188",{"$f":"'Schedule VIA'!F814","v":0},null,null,null,null,null,null,null,{"$f":"'Schedule VIA (EBS)'!F814","v":0}]
["Sch VIA","Schedule of Funds Held",null,"(B) Bonds Sovereign Debt - Comments 7",{"$f":"'Schedule VIA'!G633","v":0},null,null,null,null,null,null,null,{"$f":"'Schedule VIA (EBS)'!G633","v":0}]
["Sch VIA","Schedule of Funds Held",null,"(B) Bonds Sovereign Debt - Comments 26",{"$f":"'Schedule VIA'!G652","v":0},null,null,null,null,null,null,null,{"$f":"'Schedule VIA (EBS)'!G652","v":0}]
["Sch VIA","Schedule of Funds Held",null,"(B) Bonds Sovereign Debt - Comments 51",{"$f":"'Schedule VIA'!G677","v":0},null,null,null,null,null,null,null,{"$f":"'Schedule VIA (EBS)'!G677","v":0}]
["Sch VIA","Schedule of Funds Held",null,"(B) Bonds Sovereign Debt - Comments 70",{"$f":"'Schedule VIA'!G696","v":0},null,null,null,null,null,null,null,{"$f":"'Schedule VIA (EBS)'!G696","v":0}]
["Sch VIA","Schedule of Funds Held",null,"(B) Bonds Sovereign Debt - Comments 84",{"$f":"'Schedule VIA'!G710","v":0},null,null,null,null,null,null,null,{"$f":"'Schedule VIA (EBS)'!G710","v":0}]
["Sch VIA","Schedule of Funds Held",null,"(B) Bonds Sovereign Debt - Comments 96",{"$f":"'Schedule VIA'!G722","v":0},null,null,null,null,null,null,null,{"$f":"'Schedule VIA (EBS)'!G722","v":0}]
["Sch VIA","Schedule of Funds Held",null,"(B) Bonds Sovereign Debt - Comments 115",{"$f":"'Schedule VIA'!G741","v":0},null,null,null,null,null,null,null,{"$f":"'Schedule VIA (EBS)'!G741","v":0}]
["Sch VIA","Schedule of Funds Held",null,"(B) Bonds Sovereign Debt - Comments 140",{"$f":"'Schedule VIA'!G766","v":0},null,null,null,null,null,null,null,{"$f":"'Schedule VIA (EBS)'!G766","v":0}]
["Sch VIA","Schedule of Funds Held",null,"(B) Bonds Sovereign Debt - Comments 159",{"$f":"'Schedule VIA'!G785","v":0},null,null,null,null,null,null,null,{"$f":"'Schedule VIA (EBS)'!G785","v":0}]
["Sch VIA","Schedule of Funds Held",null,"(B) Bonds Sovereign Debt - Comments 178",{"$f":"'Schedule VIA'!G804","v":0},null,null,null,null,null,null,null,{"$f":"'Schedule VIA (EBS)'!G804","v":0}]
["Sch VIA","Schedule of Funds Held",null,"(C) ABS and Struct. Sec. - Asset Type 2",{"$f":"'Schedule VIA'!B836","v":"Select"},null,null,null,null,null,null,null,{"$f":"'Schedule VIA (EBS)'!B836","v":"Select"}]
["Sch VIA","Schedule of Funds Held",null,"(C) ABS and Struct. Sec. - Asset Type 20",{"$f":"'Schedule VIA'!B854","v":"Select"},null,null,null,null,null,null,null,{"$f":"'Schedule VIA (EBS)'!B854","v":"Select"}]
["Sch VIA","Schedule of Funds Held",null,"(C) ABS and Struct. Sec. - Asset Type 41",{"$f":"'Schedule VIA'!B875","v":"Select"},null,null,null,null,null,null,null,{"$f":"'Schedule VIA (EBS)'!B875","v":"Select"}]
["Sch VIA","Schedule of Funds Held",null,"(C) ABS and Struct. Sec. - Asset Type 47",{"$f":"'Schedule VIA'!B881","v":"Select"},null,null,null,null,null,null,null,{"$f":"'Schedule VIA (EBS)'!B881","v":"Select"}]
["Sch VIA","Schedule of Funds Held",null,"(C) ABS and Struct. Sec. - Asset Type 66",{"$f":"'Schedule VIA'!B900","v":"Select"},null,null,null,null,null,null,null,{"$f":"'Schedule VIA (EBS)'!B900","v":"Select"}]
["Sch VIA","Schedule of Funds Held",null,"(C) ABS and Struct. Sec. - Asset Type 91",{"$f":"'Schedule VIA'!B925","v":"Select"},null,null,null,null,null,null,null,{"$f":"'Schedule VIA (EBS)'!B925","v":"Select"}]
["Sch VIA","Schedule of Funds Held",null,"(C) ABS and Struct. Sec. - Asset Type 110",{"$f":"'Schedule VIA'!B944","v":"Select"},null,null,null,null,null,null,null,{"$f":"'Schedule VIA (EBS)'!B944","v":"Select"}]
["Sch VIA","Schedule of Funds Held",null,"(C) ABS and Struct. Sec. - Asset Type 129",{"$f":"'Schedule VIA'!B963","v":"Select"},null,null,null,null,null,null,null,{"$f":"'Schedule VIA (EBS)'!B963","v":"Select"}]
["Sch VIA","Schedule of Funds Held",null,"(C) ABS and Struct. Sec. - Currency 4",{"$f":"'Schedule VIA'!C838","v":"Select"},null,null,null,null,null,null,null,{"$f":"'Schedule VIA (EBS)'!C838","v":"Select"}]
["Sch VIA","Schedule of Funds Held",null,"(C) ABS and Struct. Sec. - Currency 11",{"$f":"'Schedule VIA'!C845","v":"Select"},null,null,null,null,null,null,null,{"$f":"'Schedule VIA (EBS)'!C845","v":"Select"}]
["Sch VIA","Schedule of Funds Held",null,"(C) ABS and Struct. Sec. - Currency 30",{"$f":"'Schedule VIA'!C864","v":"Select"},null,null,null,null,null,null,null,{"$f":"'Schedule VIA (EBS)'!C864","v":"Select"}]
["Sch VIA","Schedule of Funds Held",null,"(C) ABS and Struct. Sec. - Currency 49",{"$f":"'Schedule VIA'!C883","v":"Select"},null,null,null,null,null,null,null,{"$f":"'Schedule VIA (EBS)'!C883","v":"Select"}]
["Sch VIA","Schedule of Funds Held",null,"(C) ABS and Struct. Sec. - Currency 68",{"$f":"'Schedule VIA'!C902","v":"Select"},null,null,null,null,null,null,null,{"$f":"'Schedule VIA (EBS)'!C902","v":"Select"}]
["Sch VIA","Schedule of Funds Held",null,"(C) ABS and Struct. Sec. - Currency 93",{"$f":"'Schedule VIA'!C927","v":"Select"},null,null,null,null,null,null,null,{"$f":"'Schedule VIA (EBS)'!C927","v":"Select"}]
["Sch VIA","Schedule of Funds Held",null,"(C) ABS and Struct. Sec. - Currency 112",{"$f":"'Schedule VIA'!C946","v":"Select"},null,null,null,null,null,null,null,{"$f":"'Schedule VIA (EBS)'!C946","v":"Select"}]
["Sch VIA","Schedule of Funds Held",null,"(C) ABS and Struct. Sec. - Currency 131",{"$f":"'Schedule VIA'!C965","v":"Select"},null,null,null,null,null,null,null,{"$f":"'Schedule VIA (EBS)'!C965","v":"Select"}]
["Sch VIA","Schedule of Funds Held",null,"(C) ABS and Struct. Sec. - Currency 148",{"$f":"'Schedule VIA'!C982","v":"Select"},null,null,null,null,null,null,null,{"$f":"'Schedule VIA (EBS)'!C982","v":"Select"}]
["Sch VIA","Schedule of Funds Held",null,"(C) ABS and Struct. Sec. - Rating 26",{"$f":"'Schedule VIA'!D860","v":"Select"},null,null,null,null,null,null,null,{"$f":"'Schedule VIA (EBS)'!D860","v":"Select"}]
["Sch VIA","Schedule of Funds Held",null,"(C) ABS and Struct. Sec. - Rating 32",{"$f":"'Schedule VIA'!D866","v":"Select"},null,null,null,null,null,null,null,{"$f":"'Schedule VIA (EBS)'!D866","v":"Select"}]
["Sch VIA","Schedule of Funds Held",null,"(C) ABS and Struct. Sec. - Rating 51",{"$f":"'Schedule VIA'!D885","v":"Select"},null,null,null,null,null,null,null,{"$f":"'Schedule VIA (EBS)'!D885","v":"Select"}]
["Sch VIA","Schedule of Funds Held",null,"(C) ABS and Struct. Sec. - Rating 70",{"$f":"'Schedule VIA'!D904","v":"Select"},null,null,null,null,null,null,null,{"$f":"'Schedule VIA (EBS)'!D904","v":"Select"}]
["Sch VIA","Schedule of Funds Held",null,"(C) ABS and Struct. Sec. - Rating 95",{"$f":"'Schedule VIA'!D929","v":"Select"},null,null,null,null,null,null,null,{"$f":"'Schedule VIA (EBS)'!D929","v":"Select"}]
["Sch VIA","Schedule of Funds Held",null,"(C) ABS and Struct. Sec. - Rating 114",{"$f":"'Schedule VIA'!D948","v":"Select"},null,null,null,null,null,null,null,{"$f":"'Schedule VIA (EBS)'!D948","v":"Select"}]
["Sch VIA","Schedule of Funds Held",null,"(C) ABS and Struct. Sec. - Rating 139",{"$f":"'Schedule VIA'!D973","v":"Select"},null,null,null,null,null,null,null,{"$f":"'Schedule VIA (EBS)'!D973","v":"Select"}]
["Sch VIA","Schedule of Funds Held",null,"(C) ABS and Struct. Sec. - Nominal Amount 9",{"$f":"'Schedule VIA'!E843","v":0},null,null,null,null,null,null,null,{"$f":"'Schedule VIA (EBS)'!E843","v":0}]
["Sch VIA","Schedule of Funds Held",null,"(C) ABS and Struct. Sec. - Nominal Amount 28",{"$f":"'Schedule VIA'!E862","v":0},null,null,null,null,null,null,null,{"$f":"'Schedule VIA (EBS)'!E862","v":0}]
["Sch VIA","Schedule of Funds Held",null,"(C) ABS and Struct. Sec. - Nominal Amount 34",{"$f":"'Schedule VIA'!E868","v":0},null,null,null,null,null,null,null,{"$f":"'Schedule VIA (EBS)'!E868","v":0}]
["Sch VIA","Schedule of Funds Held",null,"(C) ABS and Struct. Sec. - Nominal Amount 53",{"$f":"'Schedule VIA'!E887","v":0},null,null,null,null,null,null,null,{"$f":"'Schedule VIA (EBS)'!E887","v":0}]
["Sch VIA","Schedule of Funds Held",null,"(C) ABS and Struct. Sec. - Nominal Amount 72",{"$f":"'Schedule VIA'!E906","v":0},null,null,null,null,null,null,null,{"$f":"'Schedule VIA (EBS)'!E906","v":0}]
["Sch VIA","Schedule of Funds Held",null,"(C) ABS and Struct. Sec. - Nominal Amount 97",{"$f":"'Schedule VIA'!E931","v":0},null,null,null,null,null,null,null,{"$f":"'Schedule VIA (EBS)'!E931","v":0}]
["Sch VIA","Schedule of Funds Held",null,"(C) ABS and Struct. Sec. - Nominal Amount 116",{"$f":"'Schedule VIA'!E950","v":0},null,null,null,null,null,null,null,{"$f":"'Schedule VIA (EBS)'!E950","v":0}]
["Sch VIA","Schedule of Funds Held",null,"(C) ABS and Struct. Sec. - Nominal Amount 146",{"$f":"'Schedule VIA'!E980","v":0},null,null,null,null,null,null,null,{"$f":"'Schedule VIA (EBS)'!E980","v":0}]
["Sch VIA","Schedule of Funds Held",null,"(C) ABS and Struct. Sec. - Fair Value 11",{"$f":"'Schedule VIA'!F845","v":0},null,null,null,null,null,null,null,{"$f":"'Schedule VIA (EBS)'!F845","v":0}]
["Sch VIA","Schedule of Funds Held",null,"(C) ABS and Struct. Sec. - Fair Value 30",{"$f":"'Schedule VIA'!F864","v":0},null,null,null,null,null,null,null,{"$f":"'Schedule VIA (EBS)'!F864","v":0}]
["Sch VIA","Schedule of Funds Held",null,"(C) ABS and Struct. Sec. - Fair Value 36",{"$f":"'Schedule VIA'!F870","v":0},null,null,null,null,null,null,null,{"$f":"'Schedule VIA (EBS)'!F870","v":0}]
["Sch VIA","Schedule of Funds Held",null,"(C) ABS and Struct. Sec. - Fair Value 55",{"$f":"'Schedule VIA'!F889","v":0},null,null,null,null,null,null,null,{"$f":"'Schedule VIA (EBS)'!F889","v":0}]
["Sch VIA","Schedule of Funds Held",null,"(C) ABS and Struct. Sec. - Fair Value 74",{"$f":"'Schedule VIA'!F908","v":0},null,null,null,null,null,null,null,{"$f":"'Schedule VIA (EBS)'!F908","v":0}]
["Sch VIA","Schedule of Funds Held",null,"(C) ABS and Struct. Sec. - Fair Value 99",{"$f":"'Schedule VIA'!F933","v":0},null,null,null,null,null,null,null,{"$f":"'Schedule VIA (EBS)'!F933","v":0}]
["Sch VIA","Schedule of Funds Held",null,"(C) ABS and Struct. Sec. - Fair Value 118",{"$f":"'Schedule VIA'!F952","v":0},null,null,null,null,null,null,null,{"$f":"'Schedule VIA (EBS)'!F952","v":0}]
["Sch VIA","Schedule of Funds Held",null,"(C) ABS and Struct. Sec. - Fair Value 137",{"$f":"'Schedule VIA'!F971","v":0},null,null,null,null,null,null,null,{"$f":"'Schedule VIA (EBS)'!F971","v":0}]
["Sch VIA","Schedule of Funds Held",null,"(C) ABS and Struct. Sec. - Weighted Avg YTM 13",{"$f":"'Schedule VIA'!G847","v":0},null,null,null,null,null,null,null,{"$f":"'Schedule VIA (EBS)'!G847","v":0}]
["Sch VIA","Schedule of Funds Held",null,"(C) ABS and Struct. Sec. - Weighted Avg YTM 32",{"$f":"'Schedule VIA'!G866","v":0},null,null,null,null,null,null,null,{"$f":"'Schedule VIA (EBS)'!G866","v":0}]
["Sch VIA","Schedule of Funds Held",null,"(C) ABS and Struct. Sec. - Weighted Avg YTM 57",{"$f":"'Schedule VIA'!G891","v":0},null,null,null,null,null,null,null,{"$f":"'Schedule VIA (EBS)'!G891","v":0}]
["Sch VIA","Schedule of Funds Held",null,"(C) ABS and Struct. Sec. - Weighted Avg YTM 76",{"$f":"'Schedule VIA'!G910","v":0},null,null,null,null,null,null,null,{"$f":"'Schedule VIA (EBS)'!G910","v":0}]
["Sch VIA","Schedule of Funds Held",null,"(C) ABS and Struct. Sec. - Weighted Avg YTM 82",{"$f":"'Schedule VIA'!G916","v":0},null,null,null,null,null,null,null,{"$f":"'Schedule VIA (EBS)'!G916","v":0}]
["Sch VIA","Schedule of Funds Held",null,"(C) ABS and Struct. Sec. - Weighted Avg YTM 101",{"$f":"'Schedule VIA'!G935","v":0},null,null,null,null,null,null,null,{"$f":"'Schedule VIA (EBS)'!G935","v":0}]
["Sch VIA","Schedule of Funds Held",null,"(C) ABS and Struct. Sec. - Weighted Avg YTM 120",{"$f":"'Schedule VIA'!G954","v":0},null,null,null,null,null,null,null,{"$f":"'Schedule VIA (EBS)'!G954","v":0}]
["Sch VIA","Schedule of Funds Held",null,"(C) ABS and Struct. Sec. - Weighted Avg YTM 148",{"$f":"'Schedule VIA'!G982","v":0},null,null,null,null,null,null,null,{"$f":"'Schedule VIA (EBS)'!G982","v":0}]
["Sch VIA","Schedule of Funds Held",null,"(C) ABS and Struct. Sec. - Effective Duration 15",{"$f":"'Schedule VIA'!H849","v":0},null,null,null,null,null,null,null,{"$f":"'Schedule VIA (EBS)'!H849","v":0}]
["Sch VIA","Schedule of Funds Held",null,"(C) ABS and Struct. Sec. - Effective Duration 34",{"$f":"'Schedule VIA'!H868","v":0},null,null,null,null,null,null,null,{"$f":"'Schedule VIA (EBS)'!H868","v":0}]
["Sch VIA","Schedule of Funds Held",null,"(C) ABS and Struct. Sec. - Effective Duration 59",{"$f":"'Schedule VIA'!H893","v":0},null,null,null,null,null,null,null,{"$f":"'Schedule VIA (EBS)'!H893","v":0}]
["Sch VIA","Schedule of Funds Held",null,"(C) ABS and Struct. Sec. - Effective Duration 78",{"$f":"'Schedule VIA'!H912","v":0},null,null,null,null,null,null,null,{"$f":"'Schedule VIA (EBS)'!H912","v":0}]
["Sch VIA","Schedule of Funds Held",null,"(C) ABS and Struct. Sec. - Effective Duration 84",{"$f":"'Schedule VIA'!H918","v":0},null,null,null,null,null,null,null,{"$f":"'Schedule VIA (EBS)'!H918","v":0}]
["Sch VIA","Schedule of Funds Held",null,"(C) ABS and Struct. Sec. - Effective Duration 103",{"$f":"'Schedule VIA'!H937","v":0},null,null,null,null,null,null,null,{"$f":"'Schedule VIA (EBS)'!H937","v":0}]
["Sch VIA","Schedule of Funds Held",null,"(C) ABS and Struct. Sec. - Effective Duration 119",{"$f":"'Schedule VIA'!H953","v":0},null,null,null,null,null,null,null,{"$f":"'Schedule VIA (EBS)'!H953","v":0}]
["Sch VIA","Schedule of Funds Held",null,"(C) ABS and Struct. Sec. - Effective Duration 148",{"$f":"'Schedule VIA'!H982","v":0},null,null,null,null,null,null,null,{"$f":"'Schedule VIA (EBS)'!H982","v":0}]
["Sch VIA","Schedule of Funds Held",null,"(C) ABS and Struct. Sec. - Comments 17",{"$f":"'Schedule VIA'!I851","v":0},null,null,null,null,null,null,null,{"$f":"'Schedule VIA (EBS)'!I851","v":0}]
["Sch VIA","Schedule of Funds Held",null,"(C) ABS and Struct. Sec. - Comments 42",{"$f":"'Schedule VIA'!I876","v":0},null,null,null,null,null,null,null,{"$f":"'Schedule VIA (EBS)'!I876","v":0}]
["Sch VIA","Schedule of Funds Held",null,"(C) ABS and Struct. Sec. - Comments 61",{"$f":"'Schedule VIA'!I895","v":0},null,null,null,null,null,null,null,{"$f":"'Schedule VIA (EBS)'!I895","v":0}]
["Sch VIA","Schedule of Funds Held",null,"(C) ABS and Struct. Sec. - Comments 80",{"$f":"'Schedule VIA'!I914","v":0},null,null,null,null,null,null,null,{"$f":"'Schedule VIA (EBS)'!I914","v":0}]
["Sch VIA","Schedule of Funds Held",null,"(C) ABS and Struct. Sec. - Comments 86",{"$f":"'Schedule VIA'!I920","v":0},null,null,null,null,null,null,null,{"$f":"'Schedule VIA (EBS)'!I920","v":0}]
["Sch VIA","Schedule of Funds Held",null,"(C) ABS and Struct. Sec. - Comments 105",{"$f":"'Schedule VIA'!I939","v":0},null,null,null,null,null,null,null,{"$f":"'Schedule VIA (EBS)'!I939","v":0}]
["Sch VIA","Schedule of Funds Held",null,"(C) ABS and Struct. Sec. - Comments 130",{"$f":"'Schedule VIA'!I964","v":0},null,null,null,null,null,null,null,{"$f":"'Schedule VIA (EBS)'!I964","v":0}]
["Sch VIA","Schedule of Funds Held",null,"(C) ABS and Struct. Sec. - Comments 150",{"$f":"'Schedule VIA'!I984","v":0},null,null,null,null,null,null,null,{"$f":"'Schedule VIA (EBS)'!I984","v":0}]
["Sch VIA","Schedule of Funds Held",null,"(D) Loans - Asset Type 18",{"$f":"'Schedule VIA'!B1010","v":"Select"},null,null,null,null,null,null,null,{"$f":"'Schedule VIA (EBS)'!B1010","v":"Select"}]
["Sch VIA","Schedule of Funds Held",null,"(D) Loans - Asset Type 43",{"$f":"'Schedule VIA'!B1035","v":"Select"},null,null,null,null,null,null,null,{"$f":"'Schedule VIA (EBS)'!B1035","v":"Select"}]
["Sch VIA","Schedule of Funds Held",null,"(D) Loans - Asset Type 62",{"$f":"'Schedule VIA'!B1054","v":"Select"},null,null,null,null,null,null,null,{"$f":"'Schedule VIA (EBS)'!B1054","v":"Select"}]
["Sch VIA","Schedule of Funds Held",null,"(D) Loans - Asset Type 81",{"$f":"'Schedule VIA'!B1073","v":"Select"},null,null,null,null,null,null,null,{"$f":"'Schedule VIA (EBS)'!B1073","v":"Select"}]
["Sch VIA","Schedule of Funds Held",null,"(D) Loans - Asset Type 87",{"$f":"'Schedule VIA'!B1079","v":"Select"},null,null,null,null,null,null,null,{"$f":"'Schedule VIA (EBS)'!B1079","v":"Select"}]
["Sch VIA","Schedule of Funds Held",null,"(D) Loans - Currency 16",{"$f":"'Schedule VIA'!C1008","v":"Select"},null,null,null,null,null,null,null,{"$f":"'Schedule VIA (EBS)'!C1008","v":"Select"}]
["Sch VIA","Schedule of Funds Held",null,"(D) Loans - Currency 26",{"$f":"'Schedule VIA'!C1018","v":"Select"},null,null,null,null,null,null,null,{"$f":"'Schedule VIA (EBS)'!C1018","v":"Select"}]
["Sch VIA","Schedule of Funds Held",null,"(D) Loans - Currency 51",{"$f":"'Schedule VIA'!C1043","v":"Select"},null,null,null,null,null,null,null,{"$f":"'Schedule VIA (EBS)'!C1043","v":"Select"}]
["Sch VIA","Schedule of Funds Held",null,"(D) Loans - Currency 70",{"$f":"'Schedule VIA'!C1062","v":"Select"},null,null,null,null,null,null,null,{"$f":"'Schedule VIA (EBS)'!C1062","v":"Select"}]
["Sch VIA","Schedule of Funds Held",null,"(D) Loans - Currency 95",{"$f":"'Schedule VIA'!C1087","v":"Select"},null,null,null,null,null,null,null,{"$f":"'Schedule VIA (EBS)'!C1087","v":"Select"}]
["Sch VIA","Schedule of Funds Held",null,"(D) Loans - Country 14",{"$f":"'Schedule VIA'!D1006","v":"Select"},null,null,null,null,null,null,null,{"$f":"'Schedule VIA (EBS)'!D1006","v":"Select"}]
["Sch VIA","Schedule of Funds Held",null,"(D) Loans - Country 33",{"$f":"'Schedule VIA'!D1025","v":"Select"},null,null,null,null,null,null,null,{"$f":"'Schedule VIA (EBS)'!D1025","v":"Select"}]
["Sch VIA","Schedule of Funds Held",null,"(D) Loans - Country 39",{"$f":"'Schedule VIA'!D1031","v":"Select"},null,null,null,null,null,null,null,{"$f":"'Schedule VIA (EBS)'!D1031","v":"Select"}]
["Sch VIA","Schedule of Funds Held",null,"(D) Loans - Country 57",{"$f":"'Schedule VIA'!D1049","v":"Select"},null,null,null,null,null,null,null,{"$f":"'Schedule VIA (EBS)'!D1049","v":"Select"}]
["Sch VIA","Schedule of Funds Held",null,"(D) Loans - Country 84",{"$f":"'Schedule VIA'!D1076","v":"Select"},null,null,null,null,null,null,null,{"$f":"'Schedule VIA (EBS)'!D1076","v":"Select"}]
["Sch VIA","Schedule of Funds Held",null,"(D) Loans - Rating 3",{"$f":"'Schedule VIA'!E995","v":"Select"},null,null,null,null,null,null,null,{"$f":"'Schedule VIA (EBS)'!E995","v":"Select"}]
["Sch VIA","Schedule of Funds Held",null,"(D) Loans - Rating 22",{"$f":"'Schedule VIA'!E1014","v":"Select"},null,null,null,null,null,null,null,{"$f":"'Schedule VIA (EBS)'!E1014","v":"Select"}]
["Sch VIA","Schedule of Funds Held",null,"(D) Loans - Rating 47",{"$f":"'Schedule VIA'!E1039","v":"Select"},null,null,null,null,null,null,null,{"$f":"'Schedule VIA (EBS)'!E1039","v":"Select"}]
["Sch VIA","Schedule of Funds Held",null,"(D) Loans - Rating 66",{"$f":"'Schedule VIA'!E1058","v":"Select"},null,null,null,null,null,null,null,{"$f":"'Schedule VIA (EBS)'!E1058","v":"Select"}]
["Sch VIA","Schedule of Funds Held",null,"(D) Loans - Rating 85",{"$f":"'Schedule VIA'!E1077","v":"Select"},null,null,null,null,null,null,null,{"$f":"'Schedule VIA (EBS)'!E1077","v":"Select"}]
["Sch VIA","Schedule of Funds Held",null,"(D) Loans - Rating 91",{"$f":"'Schedule VIA'!E1083","v":"Select"},null,null,null,null,null,null,null,{"$f":"'Schedule VIA (EBS)'!E1083","v":"Select"}]
["Sch VIA","Schedule of Funds Held",null,"(D) Loans - Nominal Amount 18",{"$f":"'Schedule VIA'!F1010","v":0},null,null,null,null,null,null,null,{"$f":"'Schedule VIA (EBS)'!F1010","v":0}]
["Sch VIA","Schedule of Funds Held",null,"(D) Loans - Nominal Amount 36",{"$f":"'Schedule VIA'!F1028","v":0},null,null,null,null,null,null,null,{"$f":"'Schedule VIA (EBS)'!F1028","v":0}]
["Sch VIA","Schedule of Funds Held",null,"(D) Loans - Nominal Amount 55",{"$f":"'Schedule VIA'!F1047","v":0},null,null,null,null,null,null,null,{"$f":"'Schedule VIA (EBS)'!F1047","v":0}]
["Sch VIA","Schedule of Funds Held",null,"(D) Loans - Nominal Amount 74",{"$f":"'Schedule VIA'!F1066","v":0},null,null,null,null,null,null,null,{"$f":"'Schedule VIA (EBS)'!F1066","v":0}]
["Sch VIA","Schedule of Funds Held",null,"(D) Loans - Nominal Amount 99",{"$f":"'Schedule VIA'!F1091","v":0},null,null,null,null,null,null,null,{"$f":"'Schedule VIA (EBS)'!F1091","v":0}]
["Sch VIA","Schedule of Funds Held",null,"(D) Loans - Fair Value 18",{"$f":"'Schedule VIA'!G1010","v":0},null,null,null,null,null,null,null,{"$f":"'Schedule VIA (EBS)'!G1010","v":0}]
["Sch VIA","Schedule of Funds Held",null,"(D) Loans - Fair Value 37",{"$f":"'Schedule VIA'!G1029","v":0},null,null,null,null,null,null,null,{"$f":"'Schedule VIA (EBS)'!G1029","v":0}]
["Sch VIA","Schedule of Funds Held",null,"(D) Loans - Fair Value 55",{"$f":"'Schedule VIA'!G1047","v":0},null,null,null,null,null,null,null,{"$f":"'Schedule VIA (EBS)'!G1047","v":0}]
["Sch VIA","Schedule of Funds Held",null,"(D) Loans - Fair Value 82",{"$f":"'Schedule VIA'!G1074","v":0},null,null,null,null,null,null,null,{"$f":"'Schedule VIA (EBS)'!G1074","v":0}]
["Sch VIA","Schedule of Funds Held",null,"(D) Loans - Fair Value 88",{"$f":"'Schedule VIA'!G1080","v":0},null,null,null,null,null,null,null,{"$f":"'Schedule VIA (EBS)'!G1080","v":0}]
["Sch VIA","Schedule of Funds Held",null,"(D) Loans - Weighted Avg YTM 7",{"$f":"'Schedule VIA'!H999","v":0},null,null,null,null,null,null,null,{"$f":"'Schedule VIA (EBS)'!H999","v":0}]
["Sch VIA","Schedule of Funds Held",null,"(D) Loans - Weighted Avg YTM 26",{"$f":"'Schedule VIA'!H1018","v":0},null,null,null,null,null,null,null,{"$f":"'Schedule VIA (EBS)'!H1018","v":0}]
["Sch VIA","Schedule of Funds Held",null,"(D) Loans - Weighted Avg YTM 51",{"$f":"'Schedule VIA'!H1043","v":0},null,null,null,null,null,null,null,{"$f":"'Schedule VIA (EBS)'!H1043","v":0}]
["Sch VIA","Schedule of Funds Held",null,"(D) Loans - Weighted Avg YTM 70",{"$f":"'Schedule VIA'!H1062","v":0},null,null,null,null,null,null,null,{"$f":"'Schedule VIA (EBS)'!H1062","v":0}]
["Sch VIA","Schedule of Funds Held",null,"(D) Loans - Weighted Avg YTM 95",{"$f":"'Schedule VIA'!H1087","v":0},null,null,null,null,null,null,null,{"$f":"'Schedule VIA (EBS)'!H1087","v":0}]
["Sch VIA","Schedule of Funds Held",null,"(D) Loans - Effective Duration 16",{"$f":"'Schedule VIA'!I1008","v":0},null,null,null,null,null,null,null,{"$f":"'Schedule VIA (EBS)'!I1008","v":0}]
["Sch VIA","Schedule of Funds Held",null,"(D) Loans - Effective Duration 34",{"$f":"'Schedule VIA'!I1026","v":0},null,null,null,null,null,null,null,{"$f":"'Schedule VIA (EBS)'!I1026","v":0}]
["Sch VIA","Schedule of Funds Held",null,"(D) Loans - Effective Duration 40",{"$f":"'Schedule VIA'!I1032","v":0},null,null,null,null,null,null,null,{"$f":"'Schedule VIA (EBS)'!I1032","v":0}]
["Sch VIA","Schedule of Funds Held",null,"(D) Loans - Effective Duration 59",{"$f":"'Schedule VIA'!I1051","v":0},null,null,null,null,null,null,null,{"$f":"'Schedule VIA (EBS)'!I1051","v":0}]
["Sch VIA","Schedule of Funds Held",null,"(D) Loans - Effective Duration 78",{"$f":"'Schedule VIA'!I1070","v":0},null,null,null,null,null,null,null,{"$f":"'Schedule VIA (EBS)'!I1070","v":0}]
["Sch VIA","Schedule of Funds Held",null,"(D) Loans - Comments 3",{"$f":"'Schedule VIA'!J995","v":0},null,null,null,null,null,null,null,{"$f":"'Schedule VIA (EBS)'!J995","v":0}]
["Sch VIA","Schedule of Funds Held",null,"(D) Loans - Comments 22",{"$f":"'Schedule VIA'!J1014","v":0},null,null,null,null,null,null,null,{"$f":"'Schedule VIA (EBS)'!J1014","v":0}]
["Sch VIA","Schedule of Funds Held",null,"(D) Loans - Comments 33",{"$f":"'Schedule VIA'!J1025","v":0},null,null,null,null,null,null,null,{"$f":"'Schedule VIA (EBS)'!J1025","v":0}]
["Sch VIA","Schedule of Funds Held",null,"(D) Loans - Comments 67",{"$f":"'Schedule VIA'!J1059","v":0},null,null,null,null,null,null,null,{"$f":"'Schedule VIA (EBS)'!J1059","v":0}]
["Sch VIA","Schedule of Funds Held",null,"(D) Loans - Comments 86",{"$f":"'Schedule VIA'!J1078","v":0},null,null,null,null,null,null,null,{"$f":"'Schedule VIA (EBS)'!J1078","v":0}]
["Sch VIA","Schedule of Funds Held",null,"(D) Loans - Comments 92",{"$f":"'Schedule VIA'!J1084","v":0},null,null,null,null,null,null,null,{"$f":"'Schedule VIA (EBS)'!J1084","v":0}]
["Sch VIA","Schedule of Funds Held",null,"(D) Loans Not Perform. - Asset Type 10",{"$f":"'Schedule VIA'!B1110","v":"Select"},null,null,null,null,null,null,null,{"$f":"'Schedule VIA (EBS)'!B1110","v":"Select"}]
["Sch VIA","Schedule of Funds Held",null,"(D) Loans Not Perform. - Currency 15",{"$f":"'Schedule VIA'!C1115","v":"Select"},null,null,null,null,null,null,null,{"$f":"'Schedule VIA (EBS)'!C1115","v":"Select"}]
["Sch VIA","Schedule of Funds Held",null,"(D) Loans Not Perform. - Country 14",{"$f":"'Schedule VIA'!D1114","v":"Select"},null,null,null,null,null,null,null,{"$f":"'Schedule VIA (EBS)'!D1114","v":"Select"}]
["Sch VIA","Schedule of Funds Held",null,"(D) Loans Not Perform. - Rating 13",{"$f":"'Schedule VIA'!E1113","v":"Select"},null,null,null,null,null,null,null,{"$f":"'Schedule VIA (EBS)'!E1113","v":"Select"}]
["Sch VIA","Schedule of Funds Held",null,"(D) Loans Not Perform. - Nominal Amount 13",{"$f":"'Schedule VIA'!F1113","v":0},null,null,null,null,null,null,null,{"$f":"'Schedule VIA (EBS)'!F1113","v":0}]
["Sch VIA","Schedule of Funds Held",null,"(D) Loans Not Perform. - Fair Value 18",{"$f":"'Schedule VIA'!G1118","v":0},null,null,null,null,null,null,null,{"$f":"'Schedule VIA (EBS)'!G1118","v":0}]
["Sch VIA","Schedule of Funds Held",null,"(D) Loans Not Perform. - Comment 17",{"$f":"'Schedule VIA'!H1117","v":0},null,null,null,null,null,null,null,{"$f":"'Schedule VIA (EBS)'!H1117","v":0}]
["Sch VIA","Schedule of Funds Held",null,"(E) Preferred Equities - Asset Type 2",{"$f":"'Schedule VIA'!B1130","v":"Select"},null,null,null,null,null,null,null,{"$f":"'Schedule VIA (EBS)'!B1130","v":"Select"}]
["Sch VIA","Schedule of Funds Held",null,"(E) Preferred Equities - Asset Type 21",{"$f":"'Schedule VIA'!B1149","v":"Select"},null,null,null,null,null,null,null,{"$f":"'Schedule VIA (EBS)'!B1149","v":"Select"}]
["Sch VIA","Schedule of Funds Held",null,"(E) Preferred Equities - Asset Type 46",{"$f":"'Schedule VIA'!B1174","v":"Select"},null,null,null,null,null,null,null,{"$f":"'Schedule VIA (EBS)'!B1174","v":"Select"}]
["Sch VIA","Schedule of Funds Held",null,"(E) Preferred Equities - Asset Type 65",{"$f":"'Schedule VIA'!B1193","v":"Select"},null,null,null,null,null,null,null,{"$f":"'Schedule VIA (EBS)'!B1193","v":"Select"}]
["Sch VIA","Schedule of Funds Held",null,"(E) Preferred Equities - Asset Type 93",{"$f":"'Schedule VIA'!B1221","v":"Select"},null,null,null,null,null,null,null,{"$f":"'Schedule VIA (EBS)'!B1221","v":"Select"}]
["Sch VIA","Schedule of Funds Held",null,"(E) Preferred Equities - Currency 10",{"$f":"'Schedule VIA'!C1138","v":"Select"},null,null,null,null,null,null,null,{"$f":"'Schedule VIA (EBS)'!C1138","v":"Select"}]
["Sch VIA","Schedule of Funds Held",null,"(E) Preferred Equities - Currency 29",{"$f":"'Schedule VIA'!C1157","v":"Select"},null,null,null,null,null,null,null,{"$f":"'Schedule VIA (EBS)'!C1157","v":"Select"}]
["Sch VIA","Schedule of Funds Held",null,"(E) Preferred Equities - Currency 48",{"$f":"'Schedule VIA'!C1176","v":"Select"},null,null,null,null,null,null,null,{"$f":"'Schedule VIA (EBS)'!C1176","v":"Select"}]
["Sch VIA","Schedule of Funds Held",null,"(E) Preferred Equities - Currency 54",{"$f":"'Schedule VIA'!C1182","v":"Select"},null,null,null,null,null,null,null,{"$f":"'Schedule VIA (EBS)'!C1182","v":"Select"}]
["Sch VIA","Schedule of Funds Held",null,"(E) Preferred Equities - Currency 73",{"$f":"'Schedule VIA'!C1201","v":"Select"},null,null,null,null,null,null,null,{"$f":"'Schedule VIA (EBS)'!C1201","v":"Select"}]
["Sch VIA","Schedule of Funds Held",null,"(E) Preferred Equities - Currency 98",{"$f":"'Schedule VIA'!C1226","v":"Select"},null,null,null,null,null,null,null,{"$f":"'Schedule VIA (EBS)'!C1226","v":"Select"}]
["Sch VIA","Schedule of Funds Held",null,"(E) Preferred Equities - Rating 17",{"$f":"'Schedule VIA'!D1145","v":"Select"},null,null,null,null,null,null,null,{"$f":"'Schedule VIA (EBS)'!D1145","v":"Select"}]
["Sch VIA","Schedule of Funds Held",null,"(E) Preferred Equities - Rating 34",{"$f":"'Schedule VIA'!D1162","v":"Select"},null,null,null,null,null,null,null,{"$f":"'Schedule VIA (EBS)'!D1162","v":"Select"}]
["Sch VIA","Schedule of Funds Held",null,"(E) Preferred Equities - Rating 62",{"$f":"'Schedule VIA'!D1190","v":"Select"},null,null,null,null,null,null,null,{"$f":"'Schedule VIA (EBS)'!D1190","v":"Select"}]
["Sch VIA","Schedule of Funds Held",null,"(E) Preferred Equities - Rating 81",{"$f":"'Schedule VIA'!D1209","v":"Select"},null,null,null,null,null,null,null,{"$f":"'Schedule VIA (EBS)'!D1209","v":"Select"}]
["Sch VIA","Schedule of Funds Held",null,"(E) Preferred Equities - Rating 87",{"$f":"'Schedule VIA'!D1215","v":"Select"},null,null,null,null,null,null,null,{"$f":"'Schedule VIA (EBS)'!D1215","v":"Select"}]
["Sch VIA","Schedule of Funds Held",null,"(E) Preferred Equities - Nominal Amount 6",{"$f":"'Schedule VIA'!E1134","v":0},null,null,null,null,null,null,null,{"$f":"'Schedule VIA (EBS)'!E1134","v":0}]
["Sch VIA","Schedule of Funds Held",null,"(E) Preferred Equities - Nominal Amount 25",{"$f":"'Schedule VIA'!E1153","v":0},null,null,null,null,null,null,null,{"$f":"'Schedule VIA (EBS)'!E1153","v":0}]
["Sch VIA","Schedule of Funds Held",null,"(E) Preferred Equities - Nominal Amount 50",{"$f":"'Schedule VIA'!E1178","v":0},null,null,null,null,null,null,null,{"$f":"'Schedule VIA (EBS)'!E1178","v":0}]
["Sch VIA","Schedule of Funds Held",null,"(E) Preferred Equities - Nominal Amount 69",{"$f":"'Schedule VIA'!E1197","v":0},null,null,null,null,null,null,null,{"$f":"'Schedule VIA (EBS)'!E1197","v":0}]
["Sch VIA","Schedule of Funds Held",null,"(E) Preferred Equities - Nominal Amount 95",{"$f":"'Schedule VIA'!E1223","v":0},null,null,null,null,null,null,null,{"$f":"'Schedule VIA (EBS)'!E1223","v":0}]
["Sch VIA","Schedule of Funds Held",null,"(E) Preferred Equities - Fair Value 14",{"$f":"'Schedule VIA'!F1142","v":0},null,null,null,null,null,null,null,{"$f":"'Schedule VIA (EBS)'!F1142","v":0}]
["Sch VIA","Schedule of Funds Held",null,"(E) Preferred Equities - Fair Value 33",{"$f":"'Schedule VIA'!F1161","v":0},null,null,null,null,null,null,null,{"$f":"'Schedule VIA (EBS)'!F1161","v":0}]
["Sch VIA","Schedule of Funds Held",null,"(E) Preferred Equities - Fair Value 58",{"$f":"'Schedule VIA'!F1186","v":0},null,null,null,null,null,null,null,{"$f":"'Schedule VIA (EBS)'!F1186","v":0}]
["Sch VIA","Schedule of Funds Held",null,"(E) Preferred Equities - Fair Value 77",{"$f":"'Schedule VIA'!F1205","v":0},null,null,null,null,null,null,null,{"$f":"'Schedule VIA (EBS)'!F1205","v":0}]
["Sch VIA","Schedule of Funds Held",null,"(E) Preferred Equities - Fair Value 96",{"$f":"'Schedule VIA'!F1224","v":0},null,null,null,null,null,null,null,{"$f":"'Schedule VIA (EBS)'!F1224","v":0}]
["Sch VIA","Schedule of Funds Held",null,"(E) Preferred Equities - Weighted Avg YTM 2",{"$f":"'Schedule VIA'!G1130","v":0},null,null,null,null,null,null,null,{"$f":"'Schedule VIA (EBS)'!G1130","v":0}]
["Sch VIA","Schedule of Funds Held",null,"(E) Preferred Equities - Weighted Avg YTM 32",{"$f":"'Schedule VIA'!G1160","v":0},null,null,null,null,null,null,null,{"$f":"'Schedule VIA (EBS)'!G1160","v":0}]
["Sch VIA","Schedule of Funds Held",null,"(E) Preferred Equities - Weighted Avg YTM 47",{"$f":"'Schedule VIA'!G1175","v":0},null,null,null,null,null,null,null,{"$f":"'Schedule VIA (EBS)'!G1175","v":0}]
["Sch VIA","Schedule of Funds Held",null,"(E) Preferred Equities - Weighted Avg YTM 66",{"$f":"'Schedule VIA'!G1194","v":0},null,null,null,null,null,null,null,{"$f":"'Schedule VIA (EBS)'!G1194","v":0}]
["Sch VIA","Schedule of Funds Held",null,"(E) Preferred Equities - Weighted Avg YTM 85",{"$f":"'Schedule VIA'!G1213","v":0},null,null,null,null,null,null,null,{"$f":"'Schedule VIA (EBS)'!G1213","v":0}]
["Sch VIA","Schedule of Funds Held",null,"(E) Preferred Equities - Effective Duration 10",{"$f":"'Schedule VIA'!H1138","v":0},null,null,null,null,null,null,null,{"$f":"'Schedule VIA (EBS)'!H1138","v":0}]
["Sch VIA","Schedule of Funds Held",null,"(E) Preferred Equities - Effective Duration 29",{"$f":"'Schedule VIA'!H1157","v":0},null,null,null,null,null,null,null,{"$f":"'Schedule VIA (EBS)'!H1157","v":0}]
["Sch VIA","Schedule of Funds Held",null,"(E) Preferred Equities - Effective Duration 48",{"$f":"'Schedule VIA'!H1176","v":0},null,null,null,null,null,null,null,{"$f":"'Schedule VIA (EBS)'!H1176","v":0}]
["Sch VIA","Schedule of Funds Held",null,"(E) Preferred Equities - Effective Duration 54",{"$f":"'Schedule VIA'!H1182","v":0},null,null,null,null,null,null,null,{"$f":"'Schedule VIA (EBS)'!H1182","v":0}]
["Sch VIA","Schedule of Funds Held",null,"(E) Preferred Equities - Effective Duration 73",{"$f":"'Schedule VIA'!H1201","v":0},null,null,null,null,null,null,null,{"$f":"'Schedule VIA (EBS)'!H1201","v":0}]
["Sch VIA","Schedule of Funds Held",null,"(E) Preferred Equities - Effective Duration 99",{"$f":"'Schedule VIA'!H1227","v":0},null,null,null,null,null,null,null,{"$f":"'Schedule VIA (EBS)'!H1227","v":0}]
["Sch VIA","Schedule of Funds Held",null,"(E) Preferred Equities - Comments 18",{"$f":"'Schedule VIA'!I1146","v":0},null,null,null,null,null,null,null,{"$f":"'Schedule VIA (EBS)'!I1146","v":0}]
["Sch VIA","Schedule of Funds Held",null,"(E) Preferred Equities - Comments 37",{"$f":"'Schedule VIA'!I1165","v":0},null,null,null,null,null,null,null,{"$f":"'Schedule VIA (EBS)'!I1165","v":0}]
["Sch VIA","Schedule of Funds Held",null,"(E) Preferred Equities - Comments 62",{"$f":"'Schedule VIA'!I1190","v":0},null,null,null,null,null,null,null,{"$f":"'Schedule VIA (EBS)'!I1190","v":0}]
["Sch VIA","Schedule of Funds Held",null,"(E) Preferred Equities - Comments 81",{"$f":"'Schedule VIA'!I1209","v":0},null,null,null,null,null,null,null,{"$f":"'Schedule VIA (EBS)'!I1209","v":0}]
["Sch VIA","Schedule of Funds Held",null,"(E) Preferred Equities - Comments 100",{"$f":"'Schedule VIA'!I1228","v":0},null,null,null,null,null,null,null,{"$f":"'Schedule VIA (EBS)'!I1228","v":0}]
["Sch VIA","Schedule of Funds Held",null,"(F) Common Equities - Asset Type 9",{"$f":"'Schedule VIA'!B1245","v":"Select"},null,null,null,null,null,null,null,{"$f":"'Schedule VIA (EBS)'!B1245","v":"Select"}]
["Sch VIA","Schedule of Funds Held",null,"(F) Common Equities - Asset Type 25",{"$f":"'Schedule VIA'!B1261","v":"Select"},null,null,null,null,null,null,null,{"$f":"'Schedule VIA (EBS)'!B1261","v":"Select"}]
["Sch VIA","Schedule of Funds Held",null,"(F) Common Equities - Asset Type 50",{"$f":"'Schedule VIA'!B1286","v":"Select"},null,null,null,null,null,null,null,{"$f":"'Schedule VIA (EBS)'!B1286","v":"Select"}]
["Sch VIA","Schedule of Funds Held",null,"(F) Common Equities - Asset Type 69",{"$f":"'Schedule VIA'!B1305","v":"Select"},null,null,null,null,null,null,null,{"$f":"'Schedule VIA (EBS)'!B1305","v":"Select"}]
["Sch VIA","Schedule of Funds Held",null,"(F) Common Equities - Asset Type 88",{"$f":"'Schedule VIA'!B1324","v":"Select"},null,null,null,null,null,null,null,{"$f":"'Schedule VIA (EBS)'!B1324","v":"Select"}]
["Sch VIA","Schedule of Funds Held",null,"(F) Common Equities - Currency 13",{"$f":"'Schedule VIA'!C1249","v":"Select"},null,null,null,null,null,null,null,{"$f":"'Schedule VIA (EBS)'!C1249","v":"Select"}]
["Sch VIA","Schedule of Funds Held",null,"(F) Common Equities - Currency 32",{"$f":"'Schedule VIA'!C1268","v":"Select"},null,null,null,null,null,null,null,{"$f":"'Schedule VIA (EBS)'!C1268","v":"Select"}]
["Sch VIA","Schedule of Funds Held",null,"(F) Common Equities - Currency 38",{"$f":"'Schedule VIA'!C1274","v":"Select"},null,null,null,null,null,null,null,{"$f":"'Schedule VIA (EBS)'!C1274","v":"Select"}]
["Sch VIA","Schedule of Funds Held",null,"(F) Common Equities - Currency 70",{"$f":"'Schedule VIA'!C1306","v":"Select"},null,null,null,null,null,null,null,{"$f":"'Schedule VIA (EBS)'!C1306","v":"Select"}]
["Sch VIA","Schedule of Funds Held",null,"(F) Common Equities - Currency 77",{"$f":"'Schedule VIA'!C1313","v":"Select"},null,null,null,null,null,null,null,{"$f":"'Schedule VIA (EBS)'!C1313","v":"Select"}]
["Sch VIA","Schedule of Funds Held",null,"(F) Common Equities - Country 2",{"$f":"'Schedule VIA'!D1238","v":"Select"},null,null,null,null,null,null,null,{"$f":"'Schedule VIA (EBS)'!D1238","v":"Select"}]
["Sch VIA","Schedule of Funds Held",null,"(F) Common Equities - Country 21",{"$f":"'Schedule VIA'!D1257","v":"Select"},null,null,null,null,null,null,null,{"$f":"'Schedule VIA (EBS)'!D1257","v":"Select"}]
["Sch VIA","Schedule of Funds Held",null,"(F) Common Equities - Country 40",{"$f":"'Schedule VIA'!D1276","v":"Select"},null,null,null,null,null,null,null,{"$f":"'Schedule VIA (EBS)'!D1276","v":"Select"}]
["Sch VIA","Schedule of Funds Held",null,"(F) Common Equities - Country 65",{"$f":"'Schedule VIA'!D1301","v":"Select"},null,null,null,null,null,null,null,{"$f":"'Schedule VIA (EBS)'!D1301","v":"Select"}]
["Sch VIA","Schedule of Funds Held",null,"(F) Common Equities - Country 84",{"$f":"'Schedule VIA'!D1320","v":"Select"},null,null,null,null,null,null,null,{"$f":"'Schedule VIA (EBS)'!D1320","v":"Select"}]
["Sch VIA","Schedule of Funds Held",null,"(F) Common Equities - Fair Value 7",{"$f":"'Schedule VIA'!E1243","v":0},null,null,null,null,null,null,null,{"$f":"'Schedule VIA (EBS)'!E1243","v":0}]
["Sch VIA","Schedule of Funds Held",null,"(F) Common Equities - Fair Value 10",{"$f":"'Schedule VIA'!E1246","v":0},null,null,null,null,null,null,null,{"$f":"'Schedule VIA (EBS)'!E1246","v":0}]
["Sch VIA","Schedule of Funds Held",null,"(F) Common Equities - Fair Value 29",{"$f":"'Schedule VIA'!E1265","v":0},null,null,null,null,null,null,null,{"$f":"'Schedule VIA (EBS)'!E1265","v":0}]
["Sch VIA","Schedule of Funds Held",null,"(F) Common Equities - Fair Value 54",{"$f":"'Schedule VIA'!E1290","v":0},null,null,null,null,null,null,null,{"$f":"'Schedule VIA (EBS)'!E1290","v":0}]
["Sch VIA","Schedule of Funds Held",null,"(F) Common Equities - Fair Value 73",{"$f":"'Schedule VIA'!E1309","v":0},null,null,null,null,null,null,null,{"$f":"'Schedule VIA (EBS)'!E1309","v":0}]
["Sch VIA","Schedule of Funds Held",null,"(F) Common Equities - Fair Value 92",{"$f":"'Schedule VIA'!E1328","v":0},null,null,null,null,null,null,null,{"$f":"'Schedule VIA (EBS)'!E1328","v":0}]
["Sch VIA","Schedule of Funds Held",null,"(F) Common Equities - Comments 17",{"$f":"'Schedule VIA'!F1253","v":0},null,null,null,null,null,null,null,{"$f":"'Schedule VIA (EBS)'!F1253","v":0}]
["Sch VIA","Schedule of Funds Held",null,"(F) Common Equities - Comments 36",{"$f":"'Schedule VIA'!F1272","v":0},null,null,null,null,null,null,null,{"$f":"'Schedule VIA (EBS)'!F1272","v":0}]
["Sch VIA","Schedule of Funds Held",null,"(F) Common Equities - Comments 48",{"$f":"'Schedule VIA'!F1284","v":0},null,null,null,null,null,null,null,{"$f":"'Schedule VIA (EBS)'!F1284","v":0}]
["Sch VIA","Schedule of Funds Held",null,"(F) Common Equities - Comments 62",{"$f":"'Schedule VIA'!F1298","v":0},null,null,null,null,null,null,null,{"$f":"'Schedule VIA (EBS)'!F1298","v":0}]
["Sch VIA","Schedule of Funds Held",null,"(F) Common Equities - Comments 81",{"$f":"'Schedule VIA'!F1317","v":0},null,null,null,null,null,null,null,{"$f":"'Schedule VIA (EBS)'!F1317","v":0}]
["Sch VIA","Schedule of Funds Held",null,"(G) Real Estate - Asset Type 5",{"$f":"'Schedule VIA'!B1349","v":"Select"},null,null,null,null,null,null,null,{"$f":"'Schedule VIA (EBS)'!B1349","v":"Select"}]
["Sch VIA","Schedule of Funds Held",null,"(G) Real Estate - Asset Type 24",{"$f":"'Schedule VIA'!B1368","v":"Select"},null,null,null,null,null,null,null,{"$f":"'Schedule VIA (EBS)'!B1368","v":"Select"}]
["Sch VIA","Schedule of Funds Held",null,"(G) Real Estate - Asset Type 49",{"$f":"'Schedule VIA'!B1393","v":"Select"},null,null,null,null,null,null,null,{"$f":"'Schedule VIA (EBS)'!B1393","v":"Select"}]
["Sch VIA","Schedule of Funds Held",null,"(G) Real Estate - Asset Type 68",{"$f":"'Schedule VIA'!B1412","v":"Select"},null,null,null,null,null,null,null,{"$f":"'Schedule VIA (EBS)'!B1412","v":"Select"}]
["Sch VIA","Schedule of Funds Held",null,"(G) Real Estate - Asset Type 87",{"$f":"'Schedule VIA'!B1431","v":"Select"},null,null,null,null,null,null,null,{"$f":"'Schedule VIA (EBS)'!B1431","v":"Select"}]
["Sch VIA","Schedule of Funds Held",null,"(G) Real Estate - Currency 8",{"$f":"'Schedule VIA'!C1352","v":"Select"},null,null,null,null,null,null,null,{"$f":"'Schedule VIA (EBS)'!C1352","v":"Select"}]
["Sch VIA","Schedule of Funds Held",null,"(G) Real Estate - Currency 32",{"$f":"'Schedule VIA'!C1376","v":"Select"},null,null,null,null,null,null,null,{"$f":"'Schedule VIA (EBS)'!C1376","v":"Select"}]
["Sch VIA","Schedule of Funds Held",null,"(G) Real Estate - Currency 51",{"$f":"'Schedule VIA'!C1395","v":"Select"},null,null,null,null,null,null,null,{"$f":"'Schedule VIA (EBS)'!C1395","v":"Select"}]
["Sch VIA","Schedule of Funds Held",null,"(G) Real Estate - Currency 57",{"$f":"'Schedule VIA'!C1401","v":"Select"},null,null,null,null,null,null,null,{"$f":"'Schedule VIA (EBS)'!C1401","v":"Select"}]
["Sch VIA","Schedule of Funds Held",null,"(G) Real Estate - Currency 76",{"$f":"'Schedule VIA'!C1420","v":"Select"},null,null,null,null,null,null,null,{"$f":"'Schedule VIA (EBS)'!C1420","v":"Select"}]
["Sch VIA","Schedule of Funds Held",null,"(G) Real Estate - Country 1",{"$f":"'Schedule VIA'!D1345","v":"Select"},null,null,null,null,null,null,null,{"$f":"'Schedule VIA (EBS)'!D1345","v":"Select"}]
["Sch VIA","Schedule of Funds Held",null,"(G) Real Estate - Country 20",{"$f":"'Schedule VIA'!D1364","v":"Select"},null,null,null,null,null,null,null,{"$f":"'Schedule VIA (EBS)'!D1364","v":"Select"}]
["Sch VIA","Schedule of Funds Held",null,"(G) Real Estate - Country 29",{"$f":"'Schedule VIA'!D1373","v":"Select"},null,null,null,null,null,null,null,{"$f":"'Schedule VIA (EBS)'!D1373","v":"Select"}]
["Sch VIA","Schedule of Funds Held",null,"(G) Real Estate - Country 65",{"$f":"'Schedule VIA'!D1409","v":"Select"},null,null,null,null,null,null,null,{"$f":"'Schedule VIA (EBS)'!D1409","v":"Select"}]
["Sch VIA","Schedule of Funds Held",null,"(G) Real Estate - Country 84",{"$f":"'Schedule VIA'!D1428","v":"Select"},null,null,null,null,null,null,null,{"$f":"'Schedule VIA (EBS)'!D1428","v":"Select"}]
["Sch VIA","Schedule of Funds Held",null,"(G) Real Estate - Country 90",{"$f":"'Schedule VIA'!D1434","v":"Select"},null,null,null,null,null,null,null,{"$f":"'Schedule VIA (EBS)'!D1434","v":"Select"}]
["Sch VIA","Schedule of Funds Held",null,"(G) Real Estate - Purpose 9",{"$f":"'Schedule VIA'!E1353","v":"Select"},null,null,null,null,null,null,null,{"$f":"'Schedule VIA (EBS)'!E1353","v":"Select"}]
["Sch VIA","Schedule of Funds Held",null,"(G) Real Estate - Purpose 28",{"$f":"'Schedule VIA'!E1372","v":"Select"},null,null,null,null,null,null,null,{"$f":"'Schedule VIA (EBS)'!E1372","v":"Select"}]
["Sch VIA","Schedule of Funds Held",null,"(G) Real Estate - Purpose 53",{"$f":"'Schedule VIA'!E1397","v":"Select"},null,null,null,null,null,null,null,{"$f":"'Schedule VIA (EBS)'!E1397","v":"Select"}]
["Sch VIA","Schedule of Funds Held",null,"(G) Real Estate - Purpose 72",{"$f":"'Schedule VIA'!E1416","v":"Select"},null,null,null,null,null,null,null,{"$f":"'Schedule VIA (EBS)'!E1416","v":"Select"}]
["Sch VIA","Schedule of Funds Held",null,"(G) Real Estate - Purpose 90",{"$f":"'Schedule VIA'!E1434","v":"Select"},null,null,null,null,null,null,null,{"$f":"'Schedule VIA (EBS)'!E1434","v":"Select"}]
["Sch VIA","Schedule of Funds Held",null,"(G) Real Estate - Cost 17",{"$f":"'Schedule VIA'!F1361","v":0},null,null,null,null,null,null,null,{"$f":"'Schedule VIA (EBS)'!F1361","v":0}]
["Sch VIA","Schedule of Funds Held",null,"(G) Real Estate - Cost 36",{"$f":"'Schedule VIA'!F1380","v":0},null,null,null,null,null,null,null,{"$f":"'Schedule VIA (EBS)'!F1380","v":0}]
["Sch VIA","Schedule of Funds Held",null,"(G) Real Estate - Cost 42",{"$f":"'Schedule VIA'!F1386","v":0},null,null,null,null,null,null,null,{"$f":"'Schedule VIA (EBS)'!F1386","v":0}]
["Sch VIA","Schedule of Funds Held",null,"(G) Real Estate - Cost 61",{"$f":"'Schedule VIA'!F1405","v":0},null,null,null,null,null,null,null,{"$f":"'Schedule VIA (EBS)'!F1405","v":0}]
["Sch VIA","Schedule of Funds Held",null,"(G) Real Estate - Cost 80",{"$f":"'Schedule VIA'!F1424","v":0},null,null,null,null,null,null,null,{"$f":"'Schedule VIA (EBS)'!F1424","v":0}]
["Sch VIA","Schedule of Funds Held",null,"(G) Real Estate - Fair Value 5",{"$f":"'Schedule VIA'!G1349","v":0},null,null,null,null,null,null,null,{"$f":"'Schedule VIA (EBS)'!G1349","v":0}]
["Sch VIA","Schedule of Funds Held",null,"(G) Real Estate - Fair Value 27",{"$f":"'Schedule VIA'!G1371","v":0},null,null,null,null,null,null,null,{"$f":"'Schedule VIA (EBS)'!G1371","v":0}]
["Sch VIA","Schedule of Funds Held",null,"(G) Real Estate - Fair Value 44",{"$f":"'Schedule VIA'!G1388","v":0},null,null,null,null,null,null,null,{"$f":"'Schedule VIA (EBS)'!G1388","v":0}]
["Sch VIA","Schedule of Funds Held",null,"(G) Real Estate - Fair Value 69",{"$f":"'Schedule VIA'!G1413","v":0},null,null,null,null,null,null,null,{"$f":"'Schedule VIA (EBS)'!G1413","v":0}]
["Sch VIA","Schedule of Funds Held",null,"(G) Real Estate - Fair Value 88",{"$f":"'Schedule VIA'!G1432","v":0},null,null,null,null,null,null,null,{"$f":"'Schedule VIA (EBS)'!G1432","v":0}]
["Sch VIA","Schedule of Funds Held",null,"(G) Real Estate - Fair Value 94",{"$f":"'Schedule VIA'!G1438","v":0},null,null,null,null,null,null,null,{"$f":"'Schedule VIA (EBS)'!G1438","v":0}]
["Sch VIA","Schedule of Funds Held",null,"(G) Real Estate - Comments 13",{"$f":"'Schedule VIA'!H1357","v":0},null,null,null,null,null,null,null,{"$f":"'Schedule VIA (EBS)'!H1357","v":0}]
["Sch VIA","Schedule of Funds Held",null,"(G) Real Estate - Comments 32",{"$f":"'Schedule VIA'!H1376","v":0},null,null,null,null,null,null,null,{"$f":"'Schedule VIA (EBS)'!H1376","v":0}]
["Sch VIA","Schedule of Funds Held",null,"(G) Real Estate - Comments 57",{"$f":"'Schedule VIA'!H1401","v":0},null,null,null,null,null,null,null,{"$f":"'Schedule VIA (EBS)'!H1401","v":0}]
["Sch VIA","Schedule of Funds Held",null,"(G) Real Estate - Comments 68",{"$f":"'Schedule VIA'!H1412","v":0},null,null,null,null,null,null,null,{"$f":"'Schedule VIA (EBS)'!H1412","v":0}]
["Sch VIA","Schedule of Funds Held",null,"(H) Other Alt. Inv. - Asset Type 1",{"$f":"'Schedule VIA'!B1453","v":"Select"},null,null,null,null,null,null,null,{"$f":"'Schedule VIA (EBS)'!B1453","v":"Select"}]
["Sch VIA","Schedule of Funds Held",null,"(H) Other Alt. Inv. - Asset Type 20",{"$f":"'Schedule VIA'!B1472","v":"Select"},null,null,null,null,null,null,null,{"$f":"'Schedule VIA (EBS)'!B1472","v":"Select"}]
["Sch VIA","Schedule of Funds Held",null,"(H) Other Alt. Inv. - Asset Type 39",{"$f":"'Schedule VIA'!B1491","v":"Select"},null,null,null,null,null,null,null,{"$f":"'Schedule VIA (EBS)'!B1491","v":"Select"}]
["Sch VIA","Schedule of Funds Held",null,"(H) Other Alt. Inv. - Asset Type 45",{"$f":"'Schedule VIA'!B1497","v":"Select"},null,null,null,null,null,null,null,{"$f":"'Schedule VIA (EBS)'!B1497","v":"Select"}]
["Sch VIA","Schedule of Funds Held",null,"(H) Other Alt. Inv. - Asset Type 64",{"$f":"'Schedule VIA'!B1516","v":"Select"},null,null,null,null,null,null,null,{"$f":"'Schedule VIA (EBS)'!B1516","v":"Select"}]
["Sch VIA","Schedule of Funds Held",null,"(H) Other Alt. Inv. - Asset Type 83",{"$f":"'Schedule VIA'!B1535","v":"Select"},null,null,null,null,null,null,null,{"$f":"'Schedule VIA (EBS)'!B1535","v":"Select"}]
["Sch VIA","Schedule of Funds Held",null,"(H) Other Alt. Inv. - Currency 4",{"$f":"'Schedule VIA'!C1456","v":"Select"},null,null,null,null,null,null,null,{"$f":"'Schedule VIA (EBS)'!C1456","v":"Select"}]
["Sch VIA","Schedule of Funds Held",null,"(H) Other Alt. Inv. - Currency 28",{"$f":"'Schedule VIA'!C1480","v":"Select"},null,null,null,null,null,null,null,{"$f":"'Schedule VIA (EBS)'!C1480","v":"Select"}]
["Sch VIA","Schedule of Funds Held",null,"(H) Other Alt. Inv. - Currency 53",{"$f":"'Schedule VIA'!C1505","v":"Select"},null,null,null,null,null,null,null,{"$f":"'Schedule VIA (EBS)'!C1505","v":"Select"}]
["Sch VIA","Schedule of Funds Held",null,"(H) Other Alt. Inv. - Currency 72",{"$f":"'Schedule VIA'!C1524","v":"Select"},null,null,null,null,null,null,null,{"$f":"'Schedule VIA (EBS)'!C1524","v":"Select"}]
["Sch VIA","Schedule of Funds Held",null,"(H) Other Alt. Inv. - Currency 91",{"$f":"'Schedule VIA'!C1543","v":"Select"},null,null,null,null,null,null,null,{"$f":"'Schedule VIA (EBS)'!C1543","v":"Select"}]
["Sch VIA","Schedule of Funds Held",null,"(H) Other Alt. Inv. - Currency 97",{"$f":"'Schedule VIA'!C1549","v":"Select"},null,null,null,null,null,null,null,{"$f":"'Schedule VIA (EBS)'!C1549","v":"Select"}]
["Sch VIA","Schedule of Funds Held",null,"(H) Other Alt. Inv. - Country 16",{"$f":"'Schedule VIA'!D1468","v":"Select"},null,null,null,null,null,null,null,{"$f":"'Schedule VIA (EBS)'!D1468","v":"Select"}]
["Sch VIA","Schedule of Funds Held",null,"(H) Other Alt. Inv. - Country 35",{"$f":"'Schedule VIA'!D1487","v":"Select"},null,null,null,null,null,null,null,{"$f":"'Schedule VIA (EBS)'!D1487","v":"Select"}]
["Sch VIA","Schedule of Funds Held",null,"(H) Other Alt. Inv. - Country 65",{"$f":"'Schedule VIA'!D1517","v":"Select"},null,null,null,null,null,null,null,{"$f":"'Schedule VIA (EBS)'!D1517","v":"Select"}]
["Sch VIA","Schedule of Funds Held",null,"(H) Other Alt. Inv. - Country 80",{"$f":"'Schedule VIA'!D1532","v":"Select"},null,null,null,null,null,null,null,{"$f":"'Schedule VIA (EBS)'!D1532","v":"Select"}]
["Sch VIA","Schedule of Funds Held",null,"(H) Other Alt. Inv. - Rating 5",{"$f":"'Schedule VIA'!E1457","v":"Select"},null,null,null,null,null,null,null,{"$f":"'Schedule VIA (EBS)'!E1457","v":"Select"}]
["Sch VIA","Schedule of Funds Held",null,"(H) Other Alt. Inv. - Rating 24",{"$f":"'Schedule VIA'!E1476","v":"Select"},null,null,null,null,null,null,null,{"$f":"'Schedule VIA (EBS)'!E1476","v":"Select"}]
["Sch VIA","Schedule of Funds Held",null,"(H) Other Alt. Inv. - Rating 43",{"$f":"'Schedule VIA'!E1495","v":"Select"},null,null,null,null,null,null,null,{"$f":"'Schedule VIA (EBS)'!E1495","v":"Select"}]
["Sch VIA","Schedule of Funds Held",null,"(H) Other Alt. Inv. - Rating 68",{"$f":"'Schedule VIA'!E1520","v":"Select"},null,null,null,null,null,null,null,{"$f":"'Schedule VIA (EBS)'!E1520","v":"Select"}]
["Sch VIA","Schedule of Funds Held",null,"(H) Other Alt. Inv. - Rating 87",{"$f":"'Schedule VIA'!E1539","v":"Select"},null,null,null,null,null,null,null,{"$f":"'Schedule VIA (EBS)'!E1539","v":"Select"}]
["Sch VIA","Schedule of Funds Held",null,"(H) Other Alt. Inv. - Rating 93",{"$f":"'Schedule VIA'!E1545","v":"Select"},null,null,null,null,null,null,null,{"$f":"'Schedule VIA (EBS)'!E1545","v":"Select"}]
["Sch VIA","Schedule of Funds Held",null,"(H) Other Alt. Inv. - Nominal Amount 26",{"$f":"'Schedule VIA'!F1478","v":0},null,null,null,null,null,null,null,{"$f":"'Schedule VIA (EBS)'!F1478","v":0}]
["Sch VIA","Schedule of Funds Held",null,"(H) Other Alt. Inv. - Nominal Amount 32",{"$f":"'Schedule VIA'!F1484","v":0},null,null,null,null,null,null,null,{"$f":"'Schedule VIA (EBS)'!F1484","v":0}]
["Sch VIA","Schedule of Funds Held",null,"(H) Other Alt. Inv. - Nominal Amount 57",{"$f":"'Schedule VIA'!F1509","v":0},null,null,null,null,null,null,null,{"$f":"'Schedule VIA (EBS)'!F1509","v":0}]
["Sch VIA","Schedule of Funds Held",null,"(H) Other Alt. Inv. - Nominal Amount 76",{"$f":"'Schedule VIA'!F1528","v":0},null,null,null,null,null,null,null,{"$f":"'Schedule VIA (EBS)'!F1528","v":0}]
["Sch VIA","Schedule of Funds Held",null,"(H) Other Alt. Inv. - Nominal Amount 95",{"$f":"'Schedule VIA'!F1547","v":0},null,null,null,null,null,null,null,{"$f":"'Schedule VIA (EBS)'!F1547","v":0}]
["Sch VIA","Schedule of Funds Held",null,"(H) Other Alt. Inv. - Fair Value 20",{"$f":"'Schedule VIA'!G1472","v":0},null,null,null,null,null,null,null,{"$f":"'Schedule VIA (EBS)'!G1472","v":0}]
["Sch VIA","Schedule of Funds Held",null,"(H) Other Alt. Inv. - Fair Value 39",{"$f":"'Schedule VIA'!G1491","v":0},null,null,null,null,null,null,null,{"$f":"'Schedule VIA (EBS)'!G1491","v":0}]
["Sch VIA","Schedule of Funds Held",null,"(H) Other Alt. Inv. - Fair Value 43",{"$f":"'Schedule VIA'!G1495","v":0},null,null,null,null,null,null,null,{"$f":"'Schedule VIA (EBS)'!G1495","v":0}]
["Sch VIA","Schedule of Funds Held",null,"(H) Other Alt. Inv. - Fair Value 65",{"$f":"'Schedule VIA'!G1517","v":0},null,null,null,null,null,null,null,{"$f":"'Schedule VIA (EBS)'!G1517","v":0}]
["Sch VIA","Schedule of Funds Held",null,"(H) Other Alt. Inv. - Fair Value 84",{"$f":"'Schedule VIA'!G1536","v":0},null,null,null,null,null,null,null,{"$f":"'Schedule VIA (EBS)'!G1536","v":0}]
["Sch VIA","Schedule of Funds Held",null,"(H) Other Alt. Inv. - Weighted Avg YTM 9",{"$f":"'Schedule VIA'!H1461","v":0},null,null,null,null,null,null,null,{"$f":"'Schedule VIA (EBS)'!H1461","v":0}]
["Sch VIA","Schedule of Funds Held",null,"(H) Other Alt. Inv. - Weighted Avg YTM 28",{"$f":"'Schedule VIA'!H1480","v":0},null,null,null,null,null,null,null,{"$f":"'Schedule VIA (EBS)'!H1480","v":0}]
["Sch VIA","Schedule of Funds Held",null,"(H) Other Alt. Inv. - Weighted Avg YTM 53",{"$f":"'Schedule VIA'!H1505","v":0},null,null,null,null,null,null,null,{"$f":"'Schedule VIA (EBS)'!H1505","v":0}]
["Sch VIA","Schedule of Funds Held",null,"(H) Other Alt. Inv. - Weighted Avg YTM 72",{"$f":"'Schedule VIA'!H1524","v":0},null,null,null,null,null,null,null,{"$f":"'Schedule VIA (EBS)'!H1524","v":0}]
["Sch VIA","Schedule of Funds Held",null,"(H) Other Alt. Inv. - Weighted Avg YTM 91",{"$f":"'Schedule VIA'!H1543","v":0},null,null,null,null,null,null,null,{"$f":"'Schedule VIA (EBS)'!H1543","v":0}]
["Sch VIA","Schedule of Funds Held",null,"(H) Other Alt. Inv. - Effective Duration 4",{"$f":"'Schedule VIA'!I1456","v":0},null,null,null,null,null,null,null,{"$f":"'Schedule VIA (EBS)'!I1456","v":0}]
["Sch VIA","Schedule of Funds Held",null,"(H) Other Alt. Inv. - Effective Duration 17",{"$f":"'Schedule VIA'!I1469","v":0},null,null,null,null,null,null,null,{"$f":"'Schedule VIA (EBS)'!I1469","v":0}]
["Sch VIA","Schedule of Funds Held",null,"(H) Other Alt. Inv. - Effective Duration 36",{"$f":"'Schedule VIA'!I1488","v":0},null,null,null,null,null,null,null,{"$f":"'Schedule VIA (EBS)'!I1488","v":0}]
["Sch VIA","Schedule of Funds Held",null,"(H) Other Alt. Inv. - Effective Duration 61",{"$f":"'Schedule VIA'!I1513","v":0},null,null,null,null,null,null,null,{"$f":"'Schedule VIA (EBS)'!I1513","v":0}]
["Sch VIA","Schedule of Funds Held",null,"(H) Other Alt. Inv. - Effective Duration 80",{"$f":"'Schedule VIA'!I1532","v":0},null,null,null,null,null,null,null,{"$f":"'Schedule VIA (EBS)'!I1532","v":0}]
["Sch VIA","Schedule of Funds Held",null,"(H) Other Alt. Inv. - Comments 5",{"$f":"'Schedule VIA'!J1457","v":0},null,null,null,null,null,null,null,{"$f":"'Schedule VIA (EBS)'!J1457","v":0}]
["Sch VIA","Schedule of Funds Held",null,"(H) Other Alt. Inv. - Comments 24",{"$f":"'Schedule VIA'!J1476","v":0},null,null,null,null,null,null,null,{"$f":"'Schedule VIA (EBS)'!J1476","v":0}]
["Sch VIA","Schedule of Funds Held",null,"(H) Other Alt. Inv. - Comments 45",{"$f":"'Schedule VIA'!J1497","v":0},null,null,null,null,null,null,null,{"$f":"'Schedule VIA (EBS)'!J1497","v":0}]
["Sch VIA","Schedule of Funds Held",null,"(H) Other Alt. Inv. - Comments 50",{"$f":"'Schedule VIA'!J1502","v":0},null,null,null,null,null,null,null,{"$f":"'Schedule VIA (EBS)'!J1502","v":0}]
["Sch VIA","Schedule of Funds Held",null,"(H) Other Alt. Inv. - Comments 69",{"$f":"'Schedule VIA'!J1521","v":0},null,null,null,null,null,null,null,{"$f":"'Schedule VIA (EBS)'!J1521","v":0}]
["Sch VIA","Schedule of Funds Held",null,"(H) Other Alt. Inv. - Comments 88",{"$f":"'Schedule VIA'!J1540","v":0},null,null,null,null,null,null,null,{"$f":"'Schedule VIA (EBS)'!J1540","v":0}]
["Sch VIA","Schedule of Funds Held",null,"(I) Derivatives - Derivative Type 12",{"$f":"'Schedule VIA'!B1571","v":"Select"},null,null,null,null,null,null,null,{"$f":"'Schedule VIA (EBS)'!B1571","v":"Select"}]
["Sch VIA","Schedule of Funds Held",null,"(I) Derivatives - Derivative Type 31",{"$f":"'Schedule VIA'!B1590","v":"Select"},null,null,null,null,null,null,null,{"$f":"'Schedule VIA (EBS)'!B1590","v":"Select"}]
["Sch VIA","Schedule of Funds Held",null,"(I) Derivatives - Derivative Type 56",{"$f":"'Schedule VIA'!B1615","v":"Select"},null,null,null,null,null,null,null,{"$f":"'Schedule VIA (EBS)'!B1615","v":"Select"}]
["Sch VIA","Schedule of Funds Held",null,"(I) Derivatives - Derivative Type 75",{"$f":"'Schedule VIA'!B1634","v":"Select"},null,null,null,null,null,null,null,{"$f":"'Schedule VIA (EBS)'!B1634","v":"Select"}]
["Sch VIA","Schedule of Funds Held",null,"(I) Derivatives - Derivative Type 85",{"$f":"'Schedule VIA'!B1644","v":"Select"},null,null,null,null,null,null,null,{"$f":"'Schedule VIA (EBS)'!B1644","v":"Select"}]
["Sch VIA","Schedule of Funds Held",null,"(I) Derivatives - Derivative Type 101",{"$f":"'Schedule VIA'!B1660","v":"Select"},null,null,null,null,null,null,null,{"$f":"'Schedule VIA (EBS)'!B1660","v":"Select"}]
["Sch VIA","Schedule of Funds Held",null,"(I) Derivatives - Derivative Type 120",{"$f":"'Schedule VIA'!B1679","v":"Select"},null,null,null,null,null,null,null,{"$f":"'Schedule VIA (EBS)'!B1679","v":"Select"}]
["Sch VIA","Schedule of Funds Held",null,"(I) Derivatives - Derivative Type 145",{"$f":"'Schedule VIA'!B1704","v":"Select"},null,null,null,null,null,null,null,{"$f":"'Schedule VIA (EBS)'!B1704","v":"Select"}]
["Sch VIA","Schedule of Funds Held",null,"(I) Derivatives - Derivative Type 164",{"$f":"'Schedule VIA'!B1723","v":"Select"},null,null,null,null,null,null,null,{"$f":"'Schedule VIA (EBS)'!B1723","v":"Select"}]
["Sch VIA","Schedule of Funds Held",null,"(I) Derivatives - Derivative Type 183",{"$f":"'Schedule VIA'!B1742","v":"Select"},null,null,null,null,null,null,null,{"$f":"'Schedule VIA (EBS)'!B1742","v":"Select"}]
["Sch VIA","Schedule of Funds Held",null,"(I) Derivatives - Underlying 8",{"$f":"'Schedule VIA'!C1567","v":"Select"},null,null,null,null,null,null,null,{"$f":"'Schedule VIA (EBS)'!C1567","v":"Select"}]
["Sch VIA","Schedule of Funds Held",null,"(I) Derivatives - Underlying 22",{"$f":"'Schedule VIA'!C1581","v":"Select"},null,null,null,null,null,null,null,{"$f":"'Schedule VIA (EBS)'!C1581","v":"Select"}]
["Sch VIA","Schedule of Funds Held",null,"(I) Derivatives - Underlying 47",{"$f":"'Schedule VIA'!C1606","v":"Select"},null,null,null,null,null,null,null,{"$f":"'Schedule VIA (EBS)'!C1606","v":"Select"}]
["Sch VIA","Schedule of Funds Held",null,"(I) Derivatives - Underlying 53",{"$f":"'Schedule VIA'!C1612","v":"Select"},null,null,null,null,null,null,null,{"$f":"'Schedule VIA (EBS)'!C1612","v":"Select"}]
["Sch VIA","Schedule of Funds Held",null,"(I) Derivatives - Underlying 72",{"$f":"'Schedule VIA'!C1631","v":"Select"},null,null,null,null,null,null,null,{"$f":"'Schedule VIA (EBS)'!C1631","v":"Select"}]
["Sch VIA","Schedule of Funds Held",null,"(I) Derivatives - Underlying 97",{"$f":"'Schedule VIA'!C1656","v":"Select"},null,null,null,null,null,null,null,{"$f":"'Schedule VIA (EBS)'!C1656","v":"Select"}]
["Sch VIA","Schedule of Funds Held",null,"(I) Derivatives - Underlying 116",{"$f":"'Schedule VIA'!C1675","v":"Select"},null,null,null,null,null,null,null,{"$f":"'Schedule VIA (EBS)'!C1675","v":"Select"}]
["Sch VIA","Schedule of Funds Held",null,"(I) Derivatives - Underlying 135",{"$f":"'Schedule VIA'!C1694","v":"Select"},null,null,null,null,null,null,null,{"$f":"'Schedule VIA (EBS)'!C1694","v":"Select"}]
["Sch VIA","Schedule of Funds Held",null,"(I) Derivatives - Underlying 160",{"$f":"'Schedule VIA'!C1719","v":"Select"},null,null,null,null,null,null,null,{"$f":"'Schedule VIA (EBS)'!C1719","v":"Select"}]
["Sch VIA","Schedule of Funds Held",null,"(I) Derivatives - Underlying 183",{"$f":"'Schedule VIA'!C1742","v":"Select"},null,null,null,null,null,null,null,{"$f":"'Schedule VIA (EBS)'!C1742","v":"Select"}]
["Sch VIA","Schedule of Funds Held",null,"(I) Derivatives - Currency 5",{"$f":"'Schedule VIA'!D1564","v":"Select"},null,null,null,null,null,null,null,{"$f":"'Schedule VIA (EBS)'!D1564","v":"Select"}]
["Sch VIA","Schedule of Funds Held",null,"(I) Derivatives - Currency 24",{"$f":"'Schedule VIA'!D1583","v":"Select"},null,null,null,null,null,null,null,{"$f":"'Schedule VIA (EBS)'!D1583","v":"Select"}]
["Sch VIA","Schedule of Funds Held",null,"(I) Derivatives - Currency 43",{"$f":"'Schedule VIA'!D1602","v":"Select"},null,null,null,null,null,null,null,{"$f":"'Schedule VIA (EBS)'!D1602","v":"Select"}]
["Sch VIA","Schedule of Funds Held",null,"(I) Derivatives - Currency 49",{"$f":"'Schedule VIA'!D1608","v":"Select"},null,null,null,null,null,null,null,{"$f":"'Schedule VIA (EBS)'!D1608","v":"Select"}]
["Sch VIA","Schedule of Funds Held",null,"(I) Derivatives - Currency 68",{"$f":"'Schedule VIA'!D1627","v":"Select"},null,null,null,null,null,null,null,{"$f":"'Schedule VIA (EBS)'!D1627","v":"Select"}]
["Sch VIA","Schedule of Funds Held",null,"(I) Derivatives - Currency 87",{"$f":"'Schedule VIA'!D1646","v":"Select"},null,null,null,null,null,null,null,{"$f":"'Schedule VIA (EBS)'!D1646","v":"Select"}]
["Sch VIA","Schedule of Funds Held",null,"(I) Derivatives - Currency 112",{"$f":"'Schedule VIA'!D1671","v":"Select"},null,null,null,null,null,null,null,{"$f":"'Schedule VIA (EBS)'!D1671","v":"Select"}]
["Sch VIA","Schedule of Funds Held",null,"(I) Derivatives - Currency 124",{"$f":"'Schedule VIA'!D1683","v":"Select"},null,null,null,null,null,null,null,{"$f":"'Schedule VIA (EBS)'!D1683","v":"Select"}]
["Sch VIA","Schedule of Funds Held",null,"(I) Derivatives - Currency 157",{"$f":"'Schedule VIA'!D1716","v":"Select"},null,null,null,null,null,null,null,{"$f":"'Schedule VIA (EBS)'!D1716","v":"Select"}]
["Sch VIA","Schedule of Funds Held",null,"(I) Derivatives - Currency 176",{"$f":"'Schedule VIA'!D1735","v":"Select"},null,null,null,null,null,null,null,{"$f":"'Schedule VIA (EBS)'!D1735","v":"Select"}]
["Sch VIA","Schedule of Funds Held",null,"(I) Derivatives - Currency 195",{"$f":"'Schedule VIA'!D1754","v":"Select"},null,null,null,null,null,null,null,{"$f":"'Schedule VIA (EBS)'!D1754","v":"Select"}]
["Sch VIA","Schedule of Funds Held",null,"(I) Derivatives - Trading Category 1",{"$f":"'Schedule VIA'!E1560","v":"Select"},null,null,null,null,null,null,null,{"$f":"'Schedule VIA (EBS)'!E1560","v":"Select"}]
["Sch VIA","Schedule of Funds Held",null,"(I) Derivatives - Trading Category 20",{"$f":"'Schedule VIA'!E1579","v":"Select"},null,null,null,null,null,null,null,{"$f":"'Schedule VIA (EBS)'!E1579","v":"Select"}]
["Sch VIA","Schedule of Funds Held",null,"(I) Derivatives - Trading Category 39",{"$f":"'Schedule VIA'!E1598","v":"Select"},null,null,null,null,null,null,null,{"$f":"'Schedule VIA (EBS)'!E1598","v":"Select"}]
["Sch VIA","Schedule of Funds Held",null,"(I) Derivatives - Trading Category 61",{"$f":"'Schedule VIA'!E1620","v":"Select"},null,null,null,null,null,null,null,{"$f":"'Schedule VIA (EBS)'!E1620","v":"Select"}]
["Sch VIA","Schedule of Funds Held",null,"(I) Derivatives - Trading Category 84",{"$f":"'Schedule VIA'!E1643","v":"Select"},null,null,null,null,null,null,null,{"$f":"'Schedule VIA (EBS)'!E1643","v":"Select"}]
["Sch VIA","Schedule of Funds Held",null,"(I) Derivatives - Trading Category 109",{"$f":"'Schedule VIA'!E1668","v":"Select"},null,null,null,null,null,null,null,{"$f":"'Schedule VIA (EBS)'!E1668","v":"Select"}]
["Sch VIA","Schedule of Funds Held",null,"(I) Derivatives - Trading Category 128",{"$f":"'Schedule VIA'!E1687","v":"Select"},null,null,null,null,null,null,null,{"$f":"'Schedule VIA (EBS)'!E1687","v":"Select"}]
["Sch VIA","Schedule of Funds Held",null,"(I) Derivatives - Trading Category 147",{"$f":"'Schedule VIA'!E1706","v":"Select"},null,null,null,null,null,null,null,{"$f":"'Schedule VIA (EBS)'!E1706","v":"Select"}]
["Sch VIA","Schedule of Funds Held",null,"(I) Derivatives - Trading Category 153",{"$f":"'Schedule VIA'!E1712","v":"Select"},null,null,null,null,null,null,null,{"$f":"'Schedule VIA (EBS)'!E1712","v":"Select"}]
["Sch VIA","Schedule of Funds Held",null,"(I) Derivatives - Trading Category 172",{"$f":"'Schedule VIA'!E1731","v":"Select"},null,null,null,null,null,null,null,{"$f":"'Schedule VIA (EBS)'!E1731","v":"Select"}]
["Sch VIA","Schedule of Funds Held",null,"(I) Derivatives - Trading Category 197",{"$f":"'Schedule VIA'!E1756","v":"Select"},null,null,null,null,null,null,null,{"$f":"'Schedule VIA (EBS)'!E1756","v":"Select"}]
["Sch VIA","Schedule of Funds Held",null,"(I) Derivatives - Purpose 22",{"$f":"'Schedule VIA'!F1581","v":"Select"},null,null,null,null,null,null,null,{"$f":"'Schedule VIA (EBS)'!F1581","v":"Select"}]
["Sch VIA","Schedule of Funds Held",null,"(I) Derivatives - Purpose 36",{"$f":"'Schedule VIA'!F1595","v":"Select"},null,null,null,null,null,null,null,{"$f":"'Schedule VIA (EBS)'!F1595","v":"Select"}]
["Sch VIA","Schedule of Funds Held",null,"(I) Derivatives - Purpose 61",{"$f":"'Schedule VIA'!F1620","v":"Select"},null,null,null,null,null,null,null,{"$f":"'Schedule VIA (EBS)'!F1620","v":"Select"}]
["Sch VIA","Schedule of Funds Held",null,"(I) Derivatives - Purpose 80",{"$f":"'Schedule VIA'!F1639","v":"Select"},null,null,null,null,null,null,null,{"$f":"'Schedule VIA (EBS)'!F1639","v":"Select"}]
["Sch VIA","Schedule of Funds Held",null,"(I) Derivatives - Purpose 99",{"$f":"'Schedule VIA'!F1658","v":"Select"},null,null,null,null,null,null,null,{"$f":"'Schedule VIA (EBS)'!F1658","v":"Select"}]
["Sch VIA","Schedule of Funds Held",null,"(I) Derivatives - Purpose 105",{"$f":"'Schedule VIA'!F1664","v":"Select"},null,null,null,null,null,null,null,{"$f":"'Schedule VIA (EBS)'!F1664","v":"Select"}]
["Sch VIA","Schedule of Funds Held",null,"(I) Derivatives - Purpose 124",{"$f":"'Schedule VIA'!F1683","v":"Select"},null,null,null,null,null,null,null,{"$f":"'Schedule VIA (EBS)'!F1683","v":"Select"}]
["Sch VIA","Schedule of Funds Held",null,"(I) Derivatives - Purpose 159",{"$f":"'Schedule VIA'!F1718","v":"Select"},null,null,null,null,null,null,null,{"$f":"'Schedule VIA (EBS)'!F1718","v":"Select"}]
["Sch VIA","Schedule of Funds Held",null,"(I) Derivatives - Purpose 169",{"$f":"'Schedule VIA'!F1728","v":"Select"},null,null,null,null,null,null,null,{"$f":"'Schedule VIA (EBS)'!F1728","v":"Select"}]
["Sch VIA","Schedule of Funds Held",null,"(I) Derivatives - Purpose 188",{"$f":"'Schedule VIA'!F1747","v":"Select"},null,null,null,null,null,null,null,{"$f":"'Schedule VIA (EBS)'!F1747","v":"Select"}]
["Sch VIA","Schedule of Funds Held",null,"(I) Derivatives - Position 13",{"$f":"'Schedule VIA'!G1572","v":"Select"},null,null,null,null,null,null,null,{"$f":"'Schedule VIA (EBS)'!G1572","v":"Select"}]
["Sch VIA","Schedule of Funds Held",null,"(I) Derivatives - Position 32",{"$f":"'Schedule VIA'!G1591","v":"Select"},null,null,null,null,null,null,null,{"$f":"'Schedule VIA (EBS)'!G1591","v":"Select"}]
["Sch VIA","Schedule of Funds Held",null,"(I) Derivatives - Position 51",{"$f":"'Schedule VIA'!G1610","v":"Select"},null,null,null,null,null,null,null,{"$f":"'Schedule VIA (EBS)'!G1610","v":"Select"}]
["Sch VIA","Schedule of Funds Held",null,"(I) Derivatives - Position 57",{"$f":"'Schedule VIA'!G1616","v":"Select"},null,null,null,null,null,null,null,{"$f":"'Schedule VIA (EBS)'!G1616","v":"Select"}]
["Sch VIA","Schedule of Funds Held",null,"(I) Derivatives - Position 76",{"$f":"'Schedule VIA'!G1635","v":"Select"},null,null,null,null,null,null,null,{"$f":"'Schedule VIA (EBS)'!G1635","v":"Select"}]
["Sch VIA","Schedule of Funds Held",null,"(I) Derivatives - Position 100",{"$f":"'Schedule VIA'!G1659","v":"Select"},null,null,null,null,null,null,null,{"$f":"'Schedule VIA (EBS)'!G1659","v":"Select"}]
["Sch VIA","Schedule of Funds Held",null,"(I) Derivatives - Position 121",{"$f":"'Schedule VIA'!G1680","v":"Select"},null,null,null,null,null,null,null,{"$f":"'Schedule VIA (EBS)'!G1680","v":"Select"}]
["Sch VIA","Schedule of Funds Held",null,"(I) Derivatives - Position 140",{"$f":"'Schedule VIA'!G1699","v":"Select"},null,null,null,null,null,null,null,{"$f":"'Schedule VIA (EBS)'!G1699","v":"Select"}]
["Sch VIA","Schedule of Funds Held",null,"(I) Derivatives - Position 165",{"$f":"'Schedule VIA'!G1724","v":"Select"},null,null,null,null,null,null,null,{"$f":"'Schedule VIA (EBS)'!G1724","v":"Select"}]
["Sch VIA","Schedule of Funds Held",null,"(I) Derivatives - Position 184",{"$f":"'Schedule VIA'!G1743","v":"Select"},null,null,null,null,null,null,null,{"$f":"'Schedule VIA (EBS)'!G1743","v":"Select"}]
["Sch VIA","Schedule of Funds Held",null,"(I) Derivatives - Position 190",{"$f":"'Schedule VIA'!G1749","v":"Select"},null,null,null,null,null,null,null,{"$f":"'Schedule VIA (EBS)'!G1749","v":"Select"}]
["Sch VIA","Schedule of Funds Held",null,"(I) Derivatives - Pos./Neg. - 9",{"$f":"'Schedule VIA'!H1568","v":"Select"},null,null,null,null,null,null,null,{"$f":"'Schedule VIA (EBS)'!H1568","v":"Select"}]
["Sch VIA","Schedule of Funds Held",null,"(I) Derivatives - Pos./Neg. - 28",{"$f":"'Schedule VIA'!H1587","v":"Select"},null,null,null,null,null,null,null,{"$f":"'Schedule VIA (EBS)'!H1587","v":"Select"}]
["Sch VIA","Schedule of Funds Held",null,"(I) Derivatives - Pos./Neg. - 61",{"$f":"'Schedule VIA'!H1620","v":"Select"},null,null,null,null,null,null,null,{"$f":"'Schedule VIA (EBS)'!H1620","v":"Select"}]
["Sch VIA","Schedule of Funds Held",null,"(I) Derivatives - Pos./Neg. - 73",{"$f":"'Schedule VIA'!H1632","v":"Select"},null,null,null,null,null,null,null,{"$f":"'Schedule VIA (EBS)'!H1632","v":"Select"}]
["Sch VIA","Schedule of Funds Held",null,"(I) Derivatives - Pos./Neg. - 92",{"$f":"'Schedule VIA'!H1651","v":"Select"},null,null,null,null,null,null,null,{"$f":"'Schedule VIA (EBS)'!H1651","v":"Select"}]
["Sch VIA","Schedule of Funds Held",null,"(I) Derivatives - Pos./Neg. - 117",{"$f":"'Schedule VIA'!H1676","v":"Select"},null,null,null,null,null,null,null,{"$f":"'Schedule VIA (EBS)'!H1676","v":"Select"}]
["Sch VIA","Schedule of Funds Held",null,"(I) Derivatives - Pos./Neg. - 136",{"$f":"'Schedule VIA'!H1695","v":"Select"},null,null,null,null,null,null,null,{"$f":"'Schedule VIA (EBS)'!H1695","v":"Select"}]
["Sch VIA","Schedule of Funds Held",null,"(I) Derivatives - Pos./Neg. - 161",{"$f":"'Schedule VIA'!H1720","v":"Select"},null,null,null,null,null,null,null,{"$f":"'Schedule VIA (EBS)'!H1720","v":"Select"}]
["Sch VIA","Schedule of Funds Held",null,"(I) Derivatives - Pos./Neg. - 180",{"$f":"'Schedule VIA'!H1739","v":"Select"},null,null,null,null,null,null,null,{"$f":"'Schedule VIA (EBS)'!H1739","v":"Select"}]
["Sch VIA","Schedule of Funds Held",null,"(I) Derivatives - Pos./Neg. - 182",{"$f":"'Schedule VIA'!H1741","v":"Select"},null,null,null,null,null,null,null,{"$f":"'Schedule VIA (EBS)'!H1741","v":"Select"}]
["Sch VIA","Schedule of Funds Held",null,"(I) Derivatives - Market Value 6",{"$f":"'Schedule VIA'!I1565","v":0},null,null,null,null,null,null,null,{"$f":"'Schedule VIA (EBS)'!I1565","v":0}]
["Sch VIA","Schedule of Funds Held",null,"(I) Derivatives - Market Value 25",{"$f":"'Schedule VIA'!I1584","v":0},null,null,null,null,null,null,null,{"$f":"'Schedule VIA (EBS)'!I1584","v":0}]
["Sch VIA","Schedule of Funds Held",null,"(I) Derivatives - Market Value 50",{"$f":"'Schedule VIA'!I1609","v":0},null,null,null,null,null,null,null,{"$f":"'Schedule VIA (EBS)'!I1609","v":0}]
["Sch VIA","Schedule of Funds Held",null,"(I) Derivatives - Market Value 69",{"$f":"'Schedule VIA'!I1628","v":0},null,null,null,null,null,null,null,{"$f":"'Schedule VIA (EBS)'!I1628","v":0}]
["Sch VIA","Schedule of Funds Held",null,"(I) Derivatives - Market Value 88",{"$f":"'Schedule VIA'!I1647","v":0},null,null,null,null,null,null,null,{"$f":"'Schedule VIA (EBS)'!I1647","v":0}]
["Sch VIA","Schedule of Funds Held",null,"(I) Derivatives - Market Value 113",{"$f":"'Schedule VIA'!I1672","v":0},null,null,null,null,null,null,null,{"$f":"'Schedule VIA (EBS)'!I1672","v":0}]
["Sch VIA","Schedule of Funds Held",null,"(I) Derivatives - Market Value 132",{"$f":"'Schedule VIA'!I1691","v":0},null,null,null,null,null,null,null,{"$f":"'Schedule VIA (EBS)'!I1691","v":0}]
["Sch VIA","Schedule of Funds Held",null,"(I) Derivatives - Market Value 143",{"$f":"'Schedule VIA'!I1702","v":0},null,null,null,null,null,null,null,{"$f":"'Schedule VIA (EBS)'!I1702","v":0}]
["Sch VIA","Schedule of Funds Held",null,"(I) Derivatives - Market Value 158",{"$f":"'Schedule VIA'!I1717","v":0},null,null,null,null,null,null,null,{"$f":"'Schedule VIA (EBS)'!I1717","v":0}]
["Sch VIA","Schedule of Funds Held",null,"(I) Derivatives - Market Value 177",{"$f":"'Schedule VIA'!I1736","v":0},null,null,null,null,null,null,null,{"$f":"'Schedule VIA (EBS)'!I1736","v":0}]
["Sch VIA","Schedule of Funds Held",null,"(I) Derivatives - Gross Notional Value 2",{"$f":"'Schedule VIA'!J1561","v":0},null,null,null,null,null,null,null,{"$f":"'Schedule VIA (EBS)'!J1561","v":0}]
["Sch VIA","Schedule of Funds Held",null,"(I) Derivatives - Gross Notional Value 21",{"$f":"'Schedule VIA'!J1580","v":0},null,null,null,null,null,null,null,{"$f":"'Schedule VIA (EBS)'!J1580","v":0}]
["Sch VIA","Schedule of Funds Held",null,"(I) Derivatives - Gross Notional Value 40",{"$f":"'Schedule VIA'!J1599","v":0},null,null,null,null,null,null,null,{"$f":"'Schedule VIA (EBS)'!J1599","v":0}]
["Sch VIA","Schedule of Funds Held",null,"(I) Derivatives - Gross Notional Value 65",{"$f":"'Schedule VIA'!J1624","v":0},null,null,null,null,null,null,null,{"$f":"'Schedule VIA (EBS)'!J1624","v":0}]
["Sch VIA","Schedule of Funds Held",null,"(I) Derivatives - Gross Notional Value 80",{"$f":"'Schedule VIA'!J1639","v":0},null,null,null,null,null,null,null,{"$f":"'Schedule VIA (EBS)'!J1639","v":0}]
["Sch VIA","Schedule of Funds Held",null,"(I) Derivatives - Gross Notional Value 104",{"$f":"'Schedule VIA'!J1663","v":0},null,null,null,null,null,null,null,{"$f":"'Schedule VIA (EBS)'!J1663","v":0}]
["Sch VIA","Schedule of Funds Held",null,"(I) Derivatives - Gross Notional Value 110",{"$f":"'Schedule VIA'!J1669","v":0},null,null,null,null,null,null,null,{"$f":"'Schedule VIA (EBS)'!J1669","v":0}]
["Sch VIA","Schedule of Funds Held",null,"(I) Derivatives - Gross Notional Value 129",{"$f":"'Schedule VIA'!J1688","v":0},null,null,null,null,null,null,null,{"$f":"'Schedule VIA (EBS)'!J1688","v":0}]
["Sch VIA","Schedule of Funds Held",null,"(I) Derivatives - Gross Notional Value 154",{"$f":"'Schedule VIA'!J1713","v":0},null,null,null,null,null,null,null,{"$f":"'Schedule VIA (EBS)'!J1713","v":0}]
["Sch VIA","Schedule of Funds Held",null,"(I) Derivatives - Gross Notional Value 173",{"$f":"'Schedule VIA'!J1732","v":0},null,null,null,null,null,null,null,{"$f":"'Schedule VIA (EBS)'!J1732","v":0}]
["Sch VIA","Schedule of Funds Held",null,"(I) Derivatives - Gross Notional Value 192",{"$f":"'Schedule VIA'!J1751","v":0},null,null,null,null,null,null,null,{"$f":"'Schedule VIA (EBS)'!J1751","v":0}]
["Sch VIA","Schedule of Funds Held",null,"(I) Derivatives - Net Notional Value 17",{"$f":"'Schedule VIA'!K1576","v":0},null,null,null,null,null,null,null,{"$f":"'Schedule VIA (EBS)'!K1576","v":0}]
["Sch VIA","Schedule of Funds Held",null,"(I) Derivatives - Net Notional Value 21",{"$f":"'Schedule VIA'!K1580","v":0},null,null,null,null,null,null,null,{"$f":"'Schedule VIA (EBS)'!K1580","v":0}]
["Sch VIA","Schedule of Funds Held",null,"(I) Derivatives - Net Notional Value 43",{"$f":"'Schedule VIA'!K1602","v":0},null,null,null,null,null,null,null,{"$f":"'Schedule VIA (EBS)'!K1602","v":0}]
["Sch VIA","Schedule of Funds Held",null,"(I) Derivatives - Net Notional Value 62",{"$f":"'Schedule VIA'!K1621","v":0},null,null,null,null,null,null,null,{"$f":"'Schedule VIA (EBS)'!K1621","v":0}]
["Sch VIA","Schedule of Funds Held",null,"(I) Derivatives - Net Notional Value 81",{"$f":"'Schedule VIA'!K1640","v":0},null,null,null,null,null,null,null,{"$f":"'Schedule VIA (EBS)'!K1640","v":0}]
["Sch VIA","Schedule of Funds Held",null,"(I) Derivatives - Net Notional Value 106",{"$f":"'Schedule VIA'!K1665","v":0},null,null,null,null,null,null,null,{"$f":"'Schedule VIA (EBS)'!K1665","v":0}]
["Sch VIA","Schedule of Funds Held",null,"(I) Derivatives - Net Notional Value 125",{"$f":"'Schedule VIA'!K1684","v":0},null,null,null,null,null,null,null,{"$f":"'Schedule VIA (EBS)'!K1684","v":0}]
["Sch VIA","Schedule of Funds Held",null,"(I) Derivatives - Net Notional Value 144",{"$f":"'Schedule VIA'!K1703","v":0},null,null,null,null,null,null,null,{"$f":"'Schedule VIA (EBS)'!K1703","v":0}]
["Sch VIA","Schedule of Funds Held",null,"(I) Derivatives - Net Notional Value 158",{"$f":"'Schedule VIA'!K1717","v":0},null,null,null,null,null,null,null,{"$f":"'Schedule VIA (EBS)'!K1717","v":0}]
["Sch VIA","Schedule of Funds Held",null,"(I) Derivatives - Net Notional Value 189",{"$f":"'Schedule VIA'!K1748","v":0},null,null,null,null,null,null,null,{"$f":"'Schedule VIA (EBS)'!K1748","v":0}]
["Sch VIA","Schedule of Funds Held",null,"(I) Derivatives - Net Notional Value 195",{"$f":"'Schedule VIA'!K1754","v":0},null,null,null,null,null,null,null,{"$f":"'Schedule VIA (EBS)'!K1754","v":0}]
["Sch VIA","Schedule of Funds Held",null,"(I) Derivatives - Exposure 14",{"$f":"'Schedule VIA'!L1573","v":0},null,null,null,null,null,null,null,{"$f":"'Schedule VIA (EBS)'!L1573","v":0}]
["Sch VIA","Schedule of Funds Held",null,"(I) Derivatives - Exposure 33",{"$f":"'Schedule VIA'!L1592","v":0},null,null,null,null,null,null,null,{"$f":"'Schedule VIA (EBS)'!L1592","v":0}]
["Sch VIA","Schedule of Funds Held",null,"(I) Derivatives - Exposure 58",{"$f":"'Schedule VIA'!L1617","v":0},null,null,null,null,null,null,null,{"$f":"'Schedule VIA (EBS)'!L1617","v":0}]
["Sch VIA","Schedule of Funds Held",null,"(I) Derivatives - Exposure 77",{"$f":"'Schedule VIA'!L1636","v":0},null,null,null,null,null,null,null,{"$f":"'Schedule VIA (EBS)'!L1636","v":0}]
["Sch VIA","Schedule of Funds Held",null,"(I) Derivatives - Exposure 96",{"$f":"'Schedule VIA'!L1655","v":0},null,null,null,null,null,null,null,{"$f":"'Schedule VIA (EBS)'!L1655","v":0}]
["Sch VIA","Schedule of Funds Held",null,"(I) Derivatives - Exposure 119",{"$f":"'Schedule VIA'!L1678","v":0},null,null,null,null,null,null,null,{"$f":"'Schedule VIA (EBS)'!L1678","v":0}]
["Sch VIA","Schedule of Funds Held",null,"(I) Derivatives - Exposure 141",{"$f":"'Schedule VIA'!L1700","v":0},null,null,null,null,null,null,null,{"$f":"'Schedule VIA (EBS)'!L1700","v":0}]
["Sch VIA","Schedule of Funds Held",null,"(I) Derivatives - Exposure 147",{"$f":"'Schedule VIA'!L1706","v":0},null,null,null,null,null,null,null,{"$f":"'Schedule VIA (EBS)'!L1706","v":0}]
["Sch VIA","Schedule of Funds Held",null,"(I) Derivatives - Exposure 166",{"$f":"'Schedule VIA'!L1725","v":0},null,null,null,null,null,null,null,{"$f":"'Schedule VIA (EBS)'!L1725","v":0}]
["Sch VIA","Schedule of Funds Held",null,"(I) Derivatives - Exposure 185",{"$f":"'Schedule VIA'!L1744","v":0},null,null,null,null,null,null,null,{"$f":"'Schedule VIA (EBS)'!L1744","v":0}]
["Sch VIA","Schedule of Funds Held",null,"(I) Derivatives - Comments 10",{"$f":"'Schedule VIA'!M1569","v":0},null,null,null,null,null,null,null,{"$f":"'Schedule VIA (EBS)'!M1569","v":0}]
["Sch VIA","Schedule of Funds Held",null,"(I) Derivatives - Comments 29",{"$f":"'Schedule VIA'!M1588","v":0},null,null,null,null,null,null,null,{"$f":"'Schedule VIA (EBS)'!M1588","v":0}]
["Sch VIA","Schedule of Funds Held",null,"(I) Derivatives - Comments 54",{"$f":"'Schedule VIA'!M1613","v":0},null,null,null,null,null,null,null,{"$f":"'Schedule VIA (EBS)'!M1613","v":0}]
["Sch VIA","Schedule of Funds Held",null,"(I) Derivatives - Comments 80",{"$f":"'Schedule VIA'!M1639","v":0},null,null,null,null,null,null,null,{"$f":"'Schedule VIA (EBS)'!M1639","v":0}]
["Sch VIA","Schedule of Funds Held",null,"(I) Derivatives - Comments 93",{"$f":"'Schedule VIA'!M1652","v":0},null,null,null,null,null,null,null,{"$f":"'Schedule VIA (EBS)'!M1652","v":0}]
["Sch VIA","Schedule of Funds Held",null,"(I) Derivatives - Comments 118",{"$f":"'Schedule VIA'!M1677","v":0},null,null,null,null,null,null,null,{"$f":"'Schedule VIA (EBS)'!M1677","v":0}]
["Sch VIA","Schedule of Funds Held",null,"(I) Derivatives - Comments 137",{"$f":"'Schedule VIA'!M1696","v":0},null,null,null,null,null,null,null,{"$f":"'Schedule VIA (EBS)'!M1696","v":0}]
["Sch VIA","Schedule of Funds Held",null,"(I) Derivatives - Comments 156",{"$f":"'Schedule VIA'!M1715","v":0},null,null,null,null,null,null,null,{"$f":"'Schedule VIA (EBS)'!M1715","v":0}]
["Sch VIA","Schedule of Funds Held",null,"(I) Derivatives - Comments 162",{"$f":"'Schedule VIA'!M1721","v":0},null,null,null,null,null,null,null,{"$f":"'Schedule VIA (EBS)'!M1721","v":0}]
["Sch VIA","Schedule of Funds Held",null,"(I) Derivatives - Comments 181",{"$f":"'Schedule VIA'!M1740","v":0},null,null,null,null,null,null,null,{"$f":"'Schedule VIA (EBS)'!M1740","v":0}]
["Sch VIA","Schedule of Funds Held",null,"(I) Derivatives - Comments 197",{"$f":"'Schedule VIA'!M1756","v":0},null,null,null,null,null,null,null,{"$f":"'Schedule VIA (EBS)'!M1756","v":0}]
["Sch VIA","Schedule of Funds Held",null,"(J) Fin. Inst. Rating 4 - Comments",{"$f":"'Schedule VIA'!J1768","v":0},null,null,null,null,null,null,null,{"$f":"'Schedule VIA (EBS)'!J1768","v":0}]
["Sch VIA","Schedule of Funds Held",null,"(J) Unlisted Counterparty Rating 4 - Equities",{"$f":"'Schedule VIA'!C1784","v":0},null,null,null,null,null,null,null,{"$f":"'Schedule VIA (EBS)'!C1784","v":0}]
["Sch VIA","Schedule of Funds Held",null,"(K) Other Assets - Asset Type 6",{"$f":"'Schedule VIA'!B1801","v":"Select"},null,null,null,null,null,null,null,{"$f":"'Schedule VIA (EBS)'!B1801","v":"Select"}]
["Sch VIA","Schedule of Funds Held",null,"(K) Other Assets - Asset Type 25",{"$f":"'Schedule VIA'!B1820","v":"Select"},null,null,null,null,null,null,null,{"$f":"'Schedule VIA (EBS)'!B1820","v":"Select"}]
["Sch VIA","Schedule of Funds Held",null,"(K) Other Assets - Asset Type 31",{"$f":"'Schedule VIA'!B1826","v":"Select"},null,null,null,null,null,null,null,{"$f":"'Schedule VIA (EBS)'!B1826","v":"Select"}]
["Sch VIA","Schedule of Funds Held",null,"(K) Other Assets - Asset Type 50",{"$f":"'Schedule VIA'!B1845","v":"Select"},null,null,null,null,null,null,null,{"$f":"'Schedule VIA (EBS)'!B1845","v":"Select"}]
["Sch VIA","Schedule of Funds Held",null,"(K) Other Assets - Asset Type 69",{"$f":"'Schedule VIA'!B1864","v":"Select"},null,null,null,null,null,null,null,{"$f":"'Schedule VIA (EBS)'!B1864","v":"Select"}]
["Sch VIA","Schedule of Funds Held",null,"(K) Other Assets - Asset Type 94",{"$f":"'Schedule VIA'!B1889","v":"Select"},null,null,null,null,null,null,null,{"$f":"'Schedule VIA (EBS)'!B1889","v":"Select"}]
["Sch VIA","Schedule of Funds Held",null,"(K) Other Assets - Asset Type 114",{"$f":"'Schedule VIA'!B1909","v":"Select"},null,null,null,null,null,null,null,{"$f":"'Schedule VIA (EBS)'!B1909","v":"Select"}]
["Sch VIA","Schedule of Funds Held",null,"(K) Other Assets - Asset Type 133",{"$f":"'Schedule VIA'!B1928","v":"Select"},null,null,null,null,null,null,null,{"$f":"'Schedule VIA (EBS)'!B1928","v":"Select"}]
["Sch VIA","Schedule of Funds Held",null,"(K) Other Assets - Asset Type 158",{"$f":"'Schedule VIA'!B1953","v":"Select"},null,null,null,null,null,null,null,{"$f":"'Schedule VIA (EBS)'!B1953","v":"Select"}]
["Sch VIA","Schedule of Funds Held",null,"(K) Other Assets - Asset Type 177",{"$f":"'Schedule VIA'!B1972","v":"Select"},null,null,null,null,null,null,null,{"$f":"'Schedule VIA (EBS)'!B1972","v":"Select"}]
["Sch VIA","Schedule of Funds Held",null,"(K) Other Assets - Asset Type 183",{"$f":"'Schedule VIA'!B1978","v":"Select"},null,null,null,null,null,null,null,{"$f":"'Schedule VIA (EBS)'!B1978","v":"Select"}]
["Sch VIA","Schedule of Funds Held",null,"(K) Other Assets - Currency 2",{"$f":"'Schedule VIA'!C1797","v":"Select"},null,null,null,null,null,null,null,{"$f":"'Schedule VIA (EBS)'!C1797","v":"Select"}]
["Sch VIA","Schedule of Funds Held",null,"(K) Other Assets - Currency 35",{"$f":"'Schedule VIA'!C1830","v":"Select"},null,null,null,null,null,null,null,{"$f":"'Schedule VIA (EBS)'!C1830","v":"Select"}]
["Sch VIA","Schedule of Funds Held",null,"(K) Other Assets - Currency 47",{"$f":"'Schedule VIA'!C1842","v":"Select"},null,null,null,null,null,null,null,{"$f":"'Schedule VIA (EBS)'!C1842","v":"Select"}]
["Sch VIA","Schedule of Funds Held",null,"(K) Other Assets - Currency 66",{"$f":"'Schedule VIA'!C1861","v":"Select"},null,null,null,null,null,null,null,{"$f":"'Schedule VIA (EBS)'!C1861","v":"Select"}]
["Sch VIA","Schedule of Funds Held",null,"(K) Other Assets - Currency 85",{"$f":"'Schedule VIA'!C1880","v":"Select"},null,null,null,null,null,null,null,{"$f":"'Schedule VIA (EBS)'!C1880","v":"Select"}]
["Sch VIA","Schedule of Funds Held",null,"(K) Other Assets - Currency 110",{"$f":"'Schedule VIA'!C1905","v":"Select"},null,null,null,null,null,null,null,{"$f":"'Schedule VIA (EBS)'!C1905","v":"Select"}]
["Sch VIA","Schedule of Funds Held",null,"(K) Other Assets - Currency 129",{"$f":"'Schedule VIA'!C1924","v":"Select"},null,null,null,null,null,null,null,{"$f":"'Schedule VIA (EBS)'!C1924","v":"Select"}]
["Sch VIA","Schedule of Funds Held",null,"(K) Other Assets - Currency 135",{"$f":"'Schedule VIA'!C1930","v":"Select"},null,null,null,null,null,null,null,{"$f":"'Schedule VIA (EBS)'!C1930","v":"Select"}]
["Sch VIA","Schedule of Funds Held",null,"(K) Other Assets - Currency 154",{"$f":"'Schedule VIA'!C1949","v":"Select"},null,null,null,null,null,null,null,{"$f":"'Schedule VIA (EBS)'!C1949","v":"Select"}]
["Sch VIA","Schedule of Funds Held",null,"(K) Other Assets - Currency 176",{"$f":"'Schedule VIA'!C1971","v":"Select"},null,null,null,null,null,null,null,{"$f":"'Schedule VIA (EBS)'!C1971","v":"Select"}]
["Sch VIA","Schedule of Funds Held",null,"(K) Other Assets - Currency 199",{"$f":"'Schedule VIA'!C1994","v":"Select"},null,null,null,null,null,null,null,{"$f":"'Schedule VIA (EBS)'!C1994","v":"Select"}]
["Sch VIA","Schedule of Funds Held",null,"(K) Other Assets - Rating 18",{"$f":"'Schedule VIA'!D1813","v":"Select"},null,null,null,null,null,null,null,{"$f":"'Schedule VIA (EBS)'!D1813","v":"Select"}]
["Sch VIA","Schedule of Funds Held",null,"(K) Other Assets - Rating 43",{"$f":"'Schedule VIA'!D1838","v":"Select"},null,null,null,null,null,null,null,{"$f":"'Schedule VIA (EBS)'!D1838","v":"Select"}]
["Sch VIA","Schedule of Funds Held",null,"(K) Other Assets - Rating 62",{"$f":"'Schedule VIA'!D1857","v":"Select"},null,null,null,null,null,null,null,{"$f":"'Schedule VIA (EBS)'!D1857","v":"Select"}]
["Sch VIA","Schedule of Funds Held",null,"(K) Other Assets - Rating 81",{"$f":"'Schedule VIA'!D1876","v":"Select"},null,null,null,null,null,null,null,{"$f":"'Schedule VIA (EBS)'!D1876","v":"Select"}]
["Sch VIA","Schedule of Funds Held",null,"(K) Other Assets - Rating 87",{"$f":"'Schedule VIA'!D1882","v":"Select"},null,null,null,null,null,null,null,{"$f":"'Schedule VIA (EBS)'!D1882","v":"Select"}]
["Sch VIA","Schedule of Funds Held",null,"(K) Other Assets - Rating 113",{"$f":"'Schedule VIA'!D1908","v":"Select"},null,null,null,null,null,null,null,{"$f":"'Schedule VIA (EBS)'!D1908","v":"Select"}]
["Sch VIA","Schedule of Funds Held",null,"(K) Other Assets - Rating 126",{"$f":"'Schedule VIA'!D1921","v":"Select"},null,null,null,null,null,null,null,{"$f":"'Schedule VIA (EBS)'!D1921","v":"Select"}]
["Sch VIA","Schedule of Funds Held",null,"(K) Other Assets - Rating 151",{"$f":"'Schedule VIA'!D1946","v":"Select"},null,null,null,null,null,null,null,{"$f":"'Schedule VIA (EBS)'!D1946","v":"Select"}]
["Sch VIA","Schedule of Funds Held",null,"(K) Other Assets - Rating 170",{"$f":"'Schedule VIA'!D1965","v":"Select"},null,null,null,null,null,null,null,{"$f":"'Schedule VIA (EBS)'!D1965","v":"Select"}]
["Sch VIA","Schedule of Funds Held",null,"(K) Other Assets - Rating 195",{"$f":"'Schedule VIA'!D1990","v":"Select"},null,null,null,null,null,null,null,{"$f":"'Schedule VIA (EBS)'!D1990","v":"Select"}]
["Sch VIA","Schedule of Funds Held",null,"(K) Other Assets - Nominal Amount 14",{"$f":"'Schedule VIA'!E1809","v":0},null,null,null,null,null,null,null,{"$f":"'Schedule VIA (EBS)'!E1809","v":0}]
["Sch VIA","Schedule of Funds Held",null,"(K) Other Assets - Nominal Amount 33",{"$f":"'Schedule VIA'!E1828","v":0},null,null,null,null,null,null,null,{"$f":"'Schedule VIA (EBS)'!E1828","v":0}]
["Sch VIA","Schedule of Funds Held",null,"(K) Other Assets - Nominal Amount 39",{"$f":"'Schedule VIA'!E1834","v":0},null,null,null,null,null,null,null,{"$f":"'Schedule VIA (EBS)'!E1834","v":0}]
["Sch VIA","Schedule of Funds Held",null,"(K) Other Assets - Nominal Amount 74",{"$f":"'Schedule VIA'!E1869","v":0},null,null,null,null,null,null,null,{"$f":"'Schedule VIA (EBS)'!E1869","v":0}]
["Sch VIA","Schedule of Funds Held",null,"(K) Other Assets - Nominal Amount 84",{"$f":"'Schedule VIA'!E1879","v":0},null,null,null,null,null,null,null,{"$f":"'Schedule VIA (EBS)'!E1879","v":0}]
["Sch VIA","Schedule of Funds Held",null,"(K) Other Assets - Nominal Amount 103",{"$f":"'Schedule VIA'!E1898","v":0},null,null,null,null,null,null,null,{"$f":"'Schedule VIA (EBS)'!E1898","v":0}]
["Sch VIA","Schedule of Funds Held",null,"(K) Other Assets - Nominal Amount 122",{"$f":"'Schedule VIA'!E1917","v":0},null,null,null,null,null,null,null,{"$f":"'Schedule VIA (EBS)'!E1917","v":0}]
["Sch VIA","Schedule of Funds Held",null,"(K) Other Assets - Nominal Amount 147",{"$f":"'Schedule VIA'!E1942","v":0},null,null,null,null,null,null,null,{"$f":"'Schedule VIA (EBS)'!E1942","v":0}]
["Sch VIA","Schedule of Funds Held",null,"(K) Other Assets - Nominal Amount 166",{"$f":"'Schedule VIA'!E1961","v":0},null,null,null,null,null,null,null,{"$f":"'Schedule VIA (EBS)'!E1961","v":0}]
["Sch VIA","Schedule of Funds Held",null,"(K) Other Assets - Nominal Amount 185",{"$f":"'Schedule VIA'!E1980","v":0},null,null,null,null,null,null,null,{"$f":"'Schedule VIA (EBS)'!E1980","v":0}]
["Sch VIA","Schedule of Funds Held",null,"(K) Other Assets - Fair Value 10",{"$f":"'Schedule VIA'!F1805","v":0},null,null,null,null,null,null,null,{"$f":"'Schedule VIA (EBS)'!F1805","v":0}]
["Sch VIA","Schedule of Funds Held",null,"(K) Other Assets - Fair Value 15",{"$f":"'Schedule VIA'!F1810","v":0},null,null,null,null,null,null,null,{"$f":"'Schedule VIA (EBS)'!F1810","v":0}]
["Sch VIA","Schedule of Funds Held",null,"(K) Other Assets - Fair Value 36",{"$f":"'Schedule VIA'!F1831","v":0},null,null,null,null,null,null,null,{"$f":"'Schedule VIA (EBS)'!F1831","v":0}]
["Sch VIA","Schedule of Funds Held",null,"(K) Other Assets - Fair Value 55",{"$f":"'Schedule VIA'!F1850","v":0},null,null,null,null,null,null,null,{"$f":"'Schedule VIA (EBS)'!F1850","v":0}]
["Sch VIA","Schedule of Funds Held",null,"(K) Other Assets - Fair Value 74",{"$f":"'Schedule VIA'!F1869","v":0},null,null,null,null,null,null,null,{"$f":"'Schedule VIA (EBS)'!F1869","v":0}]
["Sch VIA","Schedule of Funds Held",null,"(K) Other Assets - Fair Value 99",{"$f":"'Schedule VIA'!F1894","v":0},null,null,null,null,null,null,null,{"$f":"'Schedule VIA (EBS)'!F1894","v":0}]
["Sch VIA","Schedule of Funds Held",null,"(K) Other Assets - Fair Value 118",{"$f":"'Schedule VIA'!F1913","v":0},null,null,null,null,null,null,null,{"$f":"'Schedule VIA (EBS)'!F1913","v":0}]
["Sch VIA","Schedule of Funds Held",null,"(K) Other Assets - Fair Value 137",{"$f":"'Schedule VIA'!F1932","v":0},null,null,null,null,null,null,null,{"$f":"'Schedule VIA (EBS)'!F1932","v":0}]
["Sch VIA","Schedule of Funds Held",null,"(K) Other Assets - Fair Value 152",{"$f":"'Schedule VIA'!F1947","v":0},null,null,null,null,null,null,null,{"$f":"'Schedule VIA (EBS)'!F1947","v":0}]
["Sch VIA","Schedule of Funds Held",null,"(K) Other Assets - Fair Value 182",{"$f":"'Schedule VIA'!F1977","v":0},null,null,null,null,null,null,null,{"$f":"'Schedule VIA (EBS)'!F1977","v":0}]
["Sch VIA","Schedule of Funds Held",null,"(K) Other Assets - Fair Value 188",{"$f":"'Schedule VIA'!F1983","v":0},null,null,null,null,null,null,null,{"$f":"'Schedule VIA (EBS)'!F1983","v":0}]
["Sch VIA","Schedule of Funds Held",null,"(K) Other Assets - Comments 7",{"$f":"'Schedule VIA'!G1802","v":0},null,null,null,null,null,null,null,{"$f":"'Schedule VIA (EBS)'!G1802","v":0}]
["Sch VIA","Schedule of Funds Held",null,"(K) Other Assets - Comments 26",{"$f":"'Schedule VIA'!G1821","v":0},null,null,null,null,null,null,null,{"$f":"'Schedule VIA (EBS)'!G1821","v":0}]
["Sch VIA","Schedule of Funds Held",null,"(K) Other Assets - Comments 51",{"$f":"'Schedule VIA'!G1846","v":0},null,null,null,null,null,null,null,{"$f":"'Schedule VIA (EBS)'!G1846","v":0}]
["Sch VIA","Schedule of Funds Held",null,"(K) Other Assets - Comments 70",{"$f":"'Schedule VIA'!G1865","v":0},null,null,null,null,null,null,null,{"$f":"'Schedule VIA (EBS)'!G1865","v":0}]
["Sch VIA","Schedule of Funds Held",null,"(K) Other Assets - Comments 95",{"$f":"'Schedule VIA'!G1890","v":0},null,null,null,null,null,null,null,{"$f":"'Schedule VIA (EBS)'!G1890","v":0}]
["Sch VIA","Schedule of Funds Held",null,"(K) Other Assets - Comments 113",{"$f":"'Schedule VIA'!G1908","v":0},null,null,null,null,null,null,null,{"$f":"'Schedule VIA (EBS)'!G1908","v":0}]
["Sch VIA","Schedule of Funds Held",null,"(K) Other Assets - Comments 134",{"$f":"'Schedule VIA'!G1929","v":0},null,null,null,null,null,null,null,{"$f":"'Schedule VIA (EBS)'!G1929","v":0}]
["Sch VIA","Schedule of Funds Held",null,"(K) Other Assets - Comments 140",{"$f":"'Schedule VIA'!G1935","v":0},null,null,null,null,null,null,null,{"$f":"'Schedule VIA (EBS)'!G1935","v":0}]
["Sch VIA","Schedule of Funds Held",null,"(K) Other Assets - Comments 159",{"$f":"'Schedule VIA'!G1954","v":0},null,null,null,null,null,null,null,{"$f":"'Schedule VIA (EBS)'!G1954","v":0}]
["Sch VIA","Schedule of Funds Held",null,"(K) Other Assets - Comments 178",{"$f":"'Schedule VIA'!G1973","v":0},null,null,null,null,null,null,null,{"$f":"'Schedule VIA (EBS)'!G1973","v":0}]
["Sch VIA","Schedule of Funds Held",null,"(L) Add. Info. - Security Lending Fair Value",{"$f":"'Schedule VIA'!D2012","v":0},null,null,null,null,null,null,null,{"$f":"'Schedule VIA (EBS)'!D2012","v":0}]
["Sch VIA","Schedule of Funds Held",null,"Fin. Inst. - Moody's Rating 1",{"$f":"'Schedule VIA'!D2038","v":0},null,null,null,null,null,null,null,{"$f":"'Schedule VIA (EBS)'!D2038","v":0}]
["Sch VIA","Schedule of Funds Held",null,"ABS - Moody's Rating 5",{"$f":"'Schedule VIA'!D2066","v":0},null,null,null,null,null,null,null,{"$f":"'Schedule VIA (EBS)'!D2066","v":0}]
["Sch VIA","Schedule of Funds Held",null,"Fin. Inst. - S&P Rating 5",{"$f":"'Schedule VIA'!E2042","v":0},null,null,null,null,null,null,null,{"$f":"'Schedule VIA (EBS)'!E2042","v":0}]
["Sch VIA","Schedule of Funds Held",null,"Corp. Insurers - S&P Rating 8",{"$f":"'Schedule VIA'!E2061","v":0},null,null,null,null,null,null,null,{"$f":"'Schedule VIA (EBS)'!E2061","v":0}]
["Sch VIA","Schedule of Funds Held",null,"ABS - S&P Rating 6",{"$f":"'Schedule VIA'!E2067","v":0},null,null,null,null,null,null,null,{"$f":"'Schedule VIA (EBS)'!E2067","v":0}]
["Sch VIA","Schedule of Funds Held",null,"Fin. Inst. - DBRS Rating 8",{"$f":"'Schedule VIA'!F2045","v":0},null,null,null,null,null,null,null,{"$f":"'Schedule VIA (EBS)'!F2045","v":0}]
["Sch VIA","Schedule of Funds Held",null,"ABS - DBRS Rating 3",{"$f":"'Schedule VIA'!F2064","v":0},null,null,null,null,null,null,null,{"$f":"'Schedule VIA (EBS)'!F2064","v":0}]
["Sch VIA","Schedule of Funds Held",null,"Ins. Companies - Kroll Rating 3",{"$f":"'Schedule VIA'!G2048","v":0},null,null,null,null,null,null,null,{"$f":"'Schedule VIA (EBS)'!G2048","v":0}]
["Sch VIA","Schedule of Funds Held",null,"ABS - Kroll Rating 6",{"$f":"'Schedule VIA'!G2067","v":0},null,null,null,null,null,null,null,{"$f":"'Schedule VIA (EBS)'!G2067","v":0}]
["Sch VIA","Schedule of Funds Held",null,"Fin. Inst. - Egan Jones Rating 6",{"$f":"'Schedule VIA'!H2043","v":0},null,null,null,null,null,null,null,{"$f":"'Schedule VIA (EBS)'!H2043","v":0}]
["Sch VIA","Schedule of Funds Held",null,"Gov. Securities - Egan Jones Rating 1",{"$f":"'Schedule VIA'!H2071","v":0},null,null,null,null,null,null,null,{"$f":"'Schedule VIA (EBS)'!H2071","v":0}]
["Sch VIA","Schedule of Funds Held",null,"Ins. Companies - Japan Credit Rating 4",{"$f":"'Schedule VIA'!I2049","v":0},null,null,null,null,null,null,null,{"$f":"'Schedule VIA (EBS)'!I2049","v":0}]
["Sch VIA","Schedule of Funds Held",null,"Corp. Insurers - Japan Credit Rating 2",{"$f":"'Schedule VIA'!I2055","v":0},null,null,null,null,null,null,null,{"$f":"'Schedule VIA (EBS)'!I2055","v":0}]
["Sch VIA","Schedule of Funds Held",null,"Gov. Securities - Japan Credit Rating 4",{"$f":"'Schedule VIA'!I2074","v":0},null,null,null,null,null,null,null,{"$f":"'Schedule VIA (EBS)'!I2074","v":0}]
["Sch VIA","Schedule of Funds Held",null,"Corp. Insurers - BMA Approved Int. Rating 5",{"$f":"'Schedule VIA'!J2058","v":0},null,null,null,null,null,null,null,{"$f":"'Schedule VIA (EBS)'!J2058","v":0}]
["Sch VIA","Schedule of Funds Held",null,"Gov. Securities - BMA Approved Int. Rating 7",{"$f":"'Schedule VIA'!J2077","v":0},null,null,null,null,null,null,null,{"$f":"'Schedule VIA (EBS)'!J2077","v":0}]
["Sch VIA","Schedule of Funds Held",null,"Corp. Insurers - BMA Approved Agency 1 -  Rating 8",{"$f":"'Schedule VIA'!K2061","v":0},null,null,null,null,null,null,null,{"$f":"'Schedule VIA (EBS)'!K2061","v":0}]
["Sch VIA","Schedule of Funds Held",null,"Fin. Inst. - BMA Approved Agency 2 -  Rating 3",{"$f":"'Schedule VIA'!L2040","v":0},null,null,null,null,null,null,null,{"$f":"'Schedule VIA (EBS)'!L2040","v":0}]
["Sch VIA","Schedule of Funds Held",null,"Corp. Insurers - BMA Approved Agency 2 -  Rating 6",{"$f":"'Schedule VIA'!L2059","v":0},null,null,null,null,null,null,null,{"$f":"'Schedule VIA (EBS)'!L2059","v":0}]
["Sch VIA","Schedule of Funds Held",null,"Gov. Securities - BMA Approved Agency 2 -  Rating 8",{"$f":"'Schedule VIA'!L2078","v":0},null,null,null,null,null,null,null,{"$f":"'Schedule VIA (EBS)'!L2078","v":0}]
["Sch VIA","Schedule of Funds Held",null,"Fin. Inst. - BMA Approved Agency 3 -  Rating 6",{"$f":"'Schedule VIA'!M2043","v":0},null,null,null,null,null,null,null,{"$f":"'Schedule VIA (EBS)'!M2043","v":0}]
["Sch VIA","Schedule of Funds Held",null,"ABS - BMA Approved Agency 3 -  Rating 1",{"$f":"'Schedule VIA'!M2062","v":0},null,null,null,null,null,null,null,{"$f":"'Schedule VIA (EBS)'!M2062","v":0}]
["Sch VII","LT Reserves",null,"1SFS 27d - 3a. Longevity - Imm Pay 0-55",{"$f":"'Schedule VII'!D14","v":0}]
["Sch VII","LT Reserves",null,"1SFS 27d - 11. Group Life",{"$f":"'Schedule VII'!D40","v":0}]
["Sch VII","LT Reserves",null,"DAC - 3e. Longevity - Imm Pay 81+",{"$f":"'Schedule VII'!E18","v":0}]
["Sch VII","LT Reserves",null,"VOBA - 4a. Longevity - Def Pay 0-55",{"$f":"'Schedule VII'!F22","v":0}]
["Sch VII","LT Reserves",null,"VOBA - 17. Variable Annuities",{"$f":"'Schedule VII'!F47","v":0}]
["Sch VII","LT Reserves",null,"PVFP - 13. Group Health",{"$f":"'Schedule VII'!G42","v":0}]
["Sch VII","LT Reserves",null,"Best Est. - 4f. Longevity - Def Pay 76+",{"$f":"'Schedule VII'!H27","v":0},null,null,null,null,null,null,null,{"$f":"'Schedule VII (EBS)'!D27","v":0}]
["Sch VII","LT Reserves",null,"Net Amount @ Risk - 2. Critical Illness",{"$f":"'Schedule VII'!O11","v":0},null,null,null,null,null,null,null,{"$f":"'Schedule VII (EBS)'!I11","v":0}]
["Sch VII","LT Reserves",null,"12. BBNI Prem. - 6. Deferred Acc. Annuities",null,null,null,null,null,null,null,null,{"$f":"'Schedule VII (EBS)'!L30","v":0}]
["Sch VII","LT Reserves",null,"13. BBNI Best Est. - 7d. Dis. Income: Active Lives ",null,null,null,null,null,null,null,null,{"$f":"'Schedule VII (EBS)'!M36","v":0}]
["Sch VII","LT Reserves",null,"14. Best Est. Trans. - 12. Group Disability",null,null,null,null,null,null,null,null,{"$f":"'Schedule VII (EBS)'!N41","v":0}]
["Sch VII","LT Reserves",null,"15. Best Est. W/O Trans. - 16. Sub Total",null,null,null,null,null,null,null,null,{"$f":"'Schedule VII (EBS)'!O46","v":0}]
["Sch VII","LT Reserves",null,"16. Scen. - 17. Variable Annuities",null,null,null,null,null,null,null,null,{"$f":"'Schedule VII (EBS)'!P47","v":0}]
["Sch VII","LT Reserves",null,"18. Base Scen. - 6. Deferred Acc. Annuities",null,null,null,null,null,null,null,null,{"$f":"'Schedule VII (EBS)'!R30","v":0}]
["Sch VII","LT Reserves",null,"19. BBNI Prem. - 7d. Dis. Income: Active Lives ",null,null,null,null,null,null,null,null,{"$f":"'Schedule VII (EBS)'!S36","v":0}]
["Sch VII","LT Reserves",null,"20. BBNI Est . - 8. Dis. Income: Active Liv",null,null,null,null,null,null,null,null,{"$f":"'Schedule VII (EBS)'!T37","v":0}]
["Sch VII","LT Reserves",null,"20. BBNI Est . - 14. Stop Loss",null,null,null,null,null,null,null,null,{"$f":"'Schedule VII (EBS)'!T43","v":0}]
["Sch VIII","LT Annuity",null,"1. Reserve Out Money - 22. GMAB - Mat. 1-2 Yrs",{"$f":"'Schedule VIII'!F38","v":0},null,null,null,null,null,null,null,{"$f":"'Schedule VIII (EBS)'!F38","v":0}]
["Sch VIII","LT Annuity",null,"2. Vol. 0-10% In Money - 3. GMIB",{"$f":"'Schedule VIII'!H15","v":0},null,null,null,null,null,null,null,{"$f":"'Schedule VIII (EBS)'!H15","v":0}]
["Sch VIII","LT Annuity",null,"2. Vol. 0-10% Out Money - 28. GMAB - Mat. 7-8 Yrs",{"$f":"'Schedule VIII'!H44","v":0},null,null,null,null,null,null,null,{"$f":"'Schedule VIII (EBS)'!H44","v":0}]
["Sch VIII","LT Annuity",null,"3. Vol. 10-15% Out Money - 16. GMDB - Return of Prem.",{"$f":"'Schedule VIII'!J31","v":0},null,null,null,null,null,null,null,{"$f":"'Schedule VIII (EBS)'!J31","v":0}]
["Sch VIII","LT Annuity",null,"4. Vol. +15% In Money - 10. GMAB - Mat. 4-5 Yrs",{"$f":"'Schedule VIII'!L23","v":0},null,null,null,null,null,null,null,{"$f":"'Schedule VIII (EBS)'!L23","v":0}]
["Sch VIII","LT Annuity",null,"4. Vol. +15% Out Money - 29. GMAB - Mat. 8-9 Yrs",{"$f":"'Schedule VIII'!L45","v":0},null,null,null,null,null,null,null,{"$f":"'Schedule VIII (EBS)'!L45","v":0}]
["Sch VIII","LT Annuity",null,"6. Vol. 10-15% In Money - 1. GMDB - Return of Prem.",{"$f":"'Schedule VIII'!P13","v":0},null,null,null,null,null,null,null,{"$f":"'Schedule VIII (EBS)'!P13","v":0}]
["Sch VIII","LT Annuity",null,"6. Vol. 10-15% In Money - 7. GMAB - Mat. 1-2 Yrs",{"$f":"'Schedule VIII'!P20","v":0},null,null,null,null,null,null,null,{"$f":"'Schedule VIII (EBS)'!P20","v":0}]
["Sch VIII","LT Annuity",null,"7. Vol. +15% In Money - 7. GMAB - Mat. 1-2 Yrs",{"$f":"'Schedule VIII'!R20","v":0},null,null,null,null,null,null,null,{"$f":"'Schedule VIII (EBS)'!R20","v":0}]
["Sch VIIIA","LT Internal Model",null,"6-7. 3b. Description of Test - 2",{"$f":"'Schedule VIIIA'!O21","v":0},null,null,null,null,null,null,null,{"$f":"'Schedule VIIIA (EBS)'!O21","v":0}]
["Sch VIIIA","LT Internal Model",null,"Policy Type - 2. Policy Count - GMDB - Roll-up",{"$f":"'Schedule VIIIA'!F14","v":0},null,null,null,null,null,null,null,{"$f":"'Schedule VIIIA (EBS)'!F14","v":0}]
["Sch VIIIA","LT Internal Model",null,"Policy Type - 3. Acc. Val. - GMIB - W/ Comp Guar.",{"$f":"'Schedule VIIIA'!H19","v":0},null,null,null,null,null,null,null,{"$f":"'Schedule VIIIA (EBS)'!H19","v":0}]
["Sch VIIIA","LT Internal Model",null,"Policy Type - 5. NAR - GMIB - Ret. Of Prem.",{"$f":"'Schedule VIIIA'!L16","v":0},null,null,null,null,null,null,null,{"$f":"'Schedule VIIIA (EBS)'!L16","v":0}]
["Sch VIIIA","LT Internal Model",null,"Years Since Issue - 1. Stat. Res. - 9",{"$f":"'Schedule VIIIA'!D40","v":0},null,null,null,null,null,null,null,{"$f":"'Schedule VIIIA (EBS)'!D40","v":0}]
["Sch VIIIA","LT Internal Model",null,"Years Since Issue - 2. Policy Count - 10",{"$f":"'Schedule VIIIA'!F41","v":0},null,null,null,null,null,null,null,{"$f":"'Schedule VIIIA (EBS)'!F41","v":0}]
["Sch VIIIA","LT Internal Model",null,"Years Since Issue - 2. Policy Count - Total",{"$f":"'Schedule VIIIA'!F48","v":0},null,null,null,null,null,null,null,{"$f":"'Schedule VIIIA (EBS)'!F48","v":0}]
["Sch VIIIA","LT Internal Model",null,"Years Since Issue - 4. Guar. Val. - 0",{"$f":"'Schedule VIIIA'!J31","v":0},null,null,null,null,null,null,null,{"$f":"'Schedule VIIIA (EBS)'!J31","v":0}]
["Sch VIIIA","LT Internal Model",null,"Years Since Issue - 5. NAR - 7",{"$f":"'Schedule VIIIA'!L38","v":0},null,null,null,null,null,null,null,{"$f":"'Schedule VIIIA (EBS)'!L38","v":0}]
["Sch VIIIA","LT Internal Model",null,"In/Out of Money - 2. Policy Count - -5 to +5%",{"$f":"'Schedule VIIIA'!F56","v":0},null,null,null,null,null,null,null,{"$f":"'Schedule VIIIA (EBS)'!F56","v":0}]
["Sch VIIIA","LT Internal Model",null,"In/Out of Money - 5. NAR - +5 to +15%",{"$f":"'Schedule VIIIA'!L57","v":0},null,null,null,null,null,null,null,{"$f":"'Schedule VIIIA (EBS)'!L57","v":0}]
["Sch VIIIA","LT Internal Model",null,"Yr to Next Maturity - 1. Reserve - 2",{"$f":"'Schedule VIIIA'!D76","v":0},null,null,null,null,null,null,null,{"$f":"'Schedule VIIIA (EBS)'!D76","v":0}]
["Sch VIIIA","LT Internal Model",null,"Yr to Next Maturity - 2. Policy Count - 9",{"$f":"'Schedule VIIIA'!F83","v":0},null,null,null,null,null,null,null,{"$f":"'Schedule VIIIA (EBS)'!F83","v":0}]
["Sch VIIIA","LT Internal Model",null,"Yr to Next Maturity - 3. Acc. Val. - 3",{"$f":"'Schedule VIIIA'!H77","v":0},null,null,null,null,null,null,null,{"$f":"'Schedule VIIIA (EBS)'!H77","v":0}]
["Sch VIIIA","LT Internal Model",null,"Yr to Next Maturity - 5. NAR - 8",{"$f":"'Schedule VIIIA'!L82","v":0},null,null,null,null,null,null,null,{"$f":"'Schedule VIIIA (EBS)'!L82","v":0}]
["Sch IX(a)","CISSA Capital Summary",null,"Stop Loss Risk (Class D & E insurers only)",null,null,null,null,null,null,null,null,{"$f":"'Schedule IX(a)'!E15","v":0}]
["Sch IX(a)","CISSA Capital Summary",null,"2. Agg. Risk Categories - Other",{"$f":"IF('Schedule IX(a)'!B60=0,\"No\",'Schedule IX(a)'!B60)","v":"Select Yes/No"}]
["Sch IX(a)","CISSA Capital Summary",null,"7. Restricted Assets in Excess of Cap. Req.",{"$f":"'Schedule IX(a)'!G93","v":0}]
["Sch IX(b)","CISSA General Questions",null,"1. CISSA Used For - Others",{"$f":"IF('Schedule IX(b)'!F27=0,\"No\",'Schedule IX(b)'!F27)","v":"Select Yes/No"}]
["Sch IX(c)","CISSA Assessment of Material Risks",null,"12g. Doc. Comment - Formal Structure",{"$f":"'Schedule IX(c)'!F75","v":0}]
["Sch XII(a)","Eligible Capital",null,"Encumb. Assets - Pledged Asset - Less Than",null,null,null,null,null,null,null,null,{"$f":"'Schedule XII(a)'!H26","v":0}]
["Sch XII(a)","Eligible Capital",null,"Tier 3 Ancillary - c. Guarantees",null,null,null,null,null,null,null,null,{"$f":"'Schedule XII(a)'!J76","v":0}]
["Sch XII(b)","Eligible Capital - Additional Details",null,"Description of Capital Instrument 3",{"$f":"'Schedule XII(b)'!B13","v":0}]
["Sch XII(b)","Eligible Capital - Additional Details",null,"Date of Issue - Instrument 2",{"$f":"'Schedule XII(b)'!C12","v":"00:00:00"}]
["Sch XII(b)","Eligible Capital - Additional Details",null,"Maturity Date - Instrument 7",{"$f":"'Schedule XII(b)'!D17","v":"00:00:00"}]
["Sch XII(b)","Eligible Capital - Additional Details",null,"Authority Approval Date - Instrument 6",{"$f":"'Schedule XII(b)'!E16","v":"00:00:00"}]
["Sch XII(b)","Eligible Capital - Additional Details",null,"Valuation - Instrument 5",{"$f":"+'Schedule XII(b)'!F15","v":0}]
["Sch XII(b)","Eligible Capital - Additional Details",null,"Tier - Instrument 10",{"$f":"'Schedule XII(b)'!G20","v":0}]
["Sch XVI","Non-Insurance",null,"Entity Name - 7",null,null,null,null,{"$f":"'Schedule XVI'!B17","v":0}]
["Sch XVI","Non-Insurance",null,"Entity Jurisdiction - 1",null,null,null,null,{"$f":"'Schedule XVI'!C11","v":0}]
["Sch XVI","Non-Insurance",null,"Entity Strategic Purpose - 7",null,null,null,null,{"$f":"'Schedule XVI'!E17","v":0}]
["Sch XVI","Non-Insurance",null,"Entity Type - 11",null,null,null,null,{"$f":"'Schedule XVI'!F21","v":"Select"}]
["Sch XVI","Non-Insurance",null,"Entity Product & Services - 2",null,null,null,null,{"$f":"'Schedule XVI'!G12","v":0}]
["Sch XVI","Non-Insurance",null,"Entity Participation - 6",null,null,null,null,{"$f":"'Schedule XVI'!H16","v":"Select"}]
["Sch XVI","Non-Insurance",null,"Total Assets in Entity - 1",null,null,null,null,{"$f":"'Schedule XVI'!J11","v":0}]
["Sch XVI","Non-Insurance",null,"Investments in Entity - 4",null,null,null,null,{"$f":"'Schedule XVI'!K14","v":0}]
["Sch XVI","Non-Insurance",null,"Regulatory Capital in Entity - 7",null,null,null,null,{"$f":"'Schedule XVI'!L17","v":0}]
["Sch XVII","Solvency Analysis",null,"Name of Entity - 8",null,null,null,null,{"$f":"'Schedule XVII'!B18","v":0}]
["Sch XVII","Solvency Analysis",null,"Jurisdiction of Entity - 5",null,null,null,null,{"$f":"'Schedule XVII'!C15","v":0}]
["Sch XVII","Solvency Analysis",null,"Jurisdiction of Entity - 24",null,null,null,null,{"$f":"'Schedule XVII'!C34","v":0}]
["Sch XVII","Solvency Analysis",null,"Jurisdiction of Entity - 30",null,null,null,null,{"$f":"'Schedule XVII'!C40","v":0}]
["Sch XVII","Solvency Analysis",null,"Type of Entity - 19",null,null,null,null,{"$f":"'Schedule XVII'!D29","v":"Select"}]
["Sch XVII","Solvency Analysis",null,"% Ownership of Entity - 14",null,null,null,null,{"$f":"'Schedule XVII'!E24","v":0}]
["Sch XVII","Solvency Analysis",null,"GPW of Entity - 3",null,null,null,null,{"$f":"'Schedule XVII'!F13","v":0}]
["Sch XVII","Solvency Analysis",null,"GPW of Entity - 29",null,null,null,null,{"$f":"'Schedule XVII'!F39","v":0}]
["Sch XVII","Solvency Analysis",null,"NPW of Entity - 17",null,null,null,null,{"$f":"'Schedule XVII'!G27","v":0}]
["Sch XVII","Solvency Analysis",null,"Total Assets of Entity - 5",null,null,null,null,{"$f":"'Schedule XVII'!H15","v":0}]
["Sch XVII","Solvency Analysis",null,"Total Assets of Entity - 24",null,null,null,null,{"$f":"'Schedule XVII'!H34","v":0}]
["Sch XVII","Solvency Analysis",null,"Total Assets of Entity - 30",null,null,null,null,{"$f":"'Schedule XVII'!H40","v":0}]
["Sch XVII","Solvency Analysis",null,"Net Assets of Entity - 18",null,null,null,null,{"$f":"'Schedule XVII'!I28","v":0}]
["Sch XVII","Solvency Analysis",null,"Regulatory Capital of Entity - 12",null,null,null,null,{"$f":"'Schedule XVII'!J22","v":0}]
["Sch XVII","Solvency Analysis",null,"Regulatory Capital Total",null,null,null,null,{"$f":"'Schedule XVII'!J211","v":0}]
["Sch XVIII","Ceded Reins",null,"Reinsurer Name - 13",{"$f":"'Schedule XVIII'!C26","v":0},null,null,null,null,null,null,null,{"$f":"'Schedule XVIII (EBS)'!C26","v":0}]
["Sch XVIII","Ceded Reins",null,"Reinsurer BSCR Rating - 13",{"$f":"'Schedule XVIII'!E26","v":"Select"},null,null,null,null,null,null,null,{"$f":"'Schedule XVIII (EBS)'!E26","v":"Select"}]
["Sch XVIII","Ceded Reins",null,"Reinsurer R/I Assets - 2",{"$f":"'Schedule XVIII'!G15","v":0},null,null,null,null,null,null,null,{"$f":"'Schedule XVIII (EBS)'!G15","v":0}]
["Sch XVIII","Ceded Reins",null,"Reinsurer R/I Assets - 8",{"$f":"'Schedule XVIII'!G21","v":0},null,null,null,null,null,null,null,{"$f":"'Schedule XVIII (EBS)'!G21","v":0}]
["Sch XVIII","Ceded Reins",null,"Reinsurer R/I Assets - 27",{"$f":"'Schedule XVIII'!G40","v":0},null,null,null,null,null,null,null,{"$f":"'Schedule XVIII (EBS)'!G40","v":0}]
["Sch XVIII","Ceded Reins",null,"Reinsurer R/I Payable - 15",{"$f":"'Schedule XVIII'!I28","v":0},null,null,null,null,null,null,null,{"$f":"'Schedule XVIII (EBS)'!I28","v":0}]
["Sch XVIII","Ceded Reins",null,"Reinsurer Collateral - 9",{"$f":"'Schedule XVIII'!K22","v":0},null,null,null,null,null,null,null,{"$f":"'Schedule XVIII (EBS)'!K22","v":0}]
["Sch XVIII","Ceded Reins",null,"Reinsurer Collateral - 28",{"$f":"'Schedule XVIII'!K41","v":0},null,null,null,null,null,null,null,{"$f":"'Schedule XVIII (EBS)'!K41","v":0}]
["Sch XVIII","Ceded Reins",null,"R/I Payable - Exposure by BSCR Rate 5",{"$f":"'Schedule XVIII'!I62","v":0},null,null,null,null,null,null,null,{"$f":"'Schedule XVIII (EBS)'!I62","v":0}]
["Sch XIX","Cash Counterpart",null,"Name - Counterparty 8",{"$f":"'Schedule XIX'!C21","v":0}]
["Sch XIX","Cash Counterpart",null,"BSCR Rating - Counterparty 7",{"$f":"'Schedule XIX'!D20","v":"Select"}]
["Sch XIX","Cash Counterpart",null,"BSCR Rating - Counterparty 13",{"$f":"'Schedule XIX'!D26","v":"Select"}]
["Sch XIX","Cash Counterpart",null,"Counterparty Value 12",{"$f":"'Schedule XIX'!F25","v":0},null,null,null,null,null,null,null,{"$f":"'Schedule XIX'!H25","v":0}]
[]
["Sch XX","Currency Analysis",null,"Hedge Assets - Other 4",{"$f":"'Schedule XX'!F17","v":0},null,null,null,null,null,null,null,{"$f":"'Schedule XX'!N17","v":0}]
["Sch XX","Currency Analysis",null,"Hedge Liab. - Japan Yen",{"$f":"'Schedule XX'!J13","v":0},null,null,null,null,null,null,null,{"$f":"'Schedule XX'!R13","v":0}]
["Sch XX","Currency Analysis",null,"ECR Prior Year 3",null,null,null,null,null,null,null,null,{"$f":"'Schedule XX'!P36","v":0}]
["Sch XXI","Inv Con Risk",null,"Name of Exposure - 17",{"$f":"'Schedule XXI'!C24","v":0}]
["Sch XXI","Inv Con Risk",null,"Name of Exposure - 36",{"$f":"'Schedule XXI'!C43","v":0}]
["Sch XXI","Inv Con Risk",null,"Name of Exposure - 42",{"$f":"'Schedule XXI'!C49","v":0}]
["Sch XXI","Inv Con Risk",null,"Asset Type - 11",{"$f":"'Schedule XXI'!E18","v":"Select"},null,null,null,null,null,null,null,{"$f":"'Schedule XXI'!J18","v":"Select"}]
["Sch XXI","Inv Con Risk",null,"Asset Type - 30",{"$f":"'Schedule XXI'!E37","v":"Select"},null,null,null,null,null,null,null,{"$f":"'Schedule XXI'!J37","v":"Select"}]
["Sch XXI","Inv Con Risk",null,"Bond Type - 5",{"$f":"'Schedule XXI'!F12","v":"Select"},null,null,null,null,null,null,null,{"$f":"'Schedule XXI'!K12","v":"Select"}]
["Sch XXI","Inv Con Risk",null,"Bond Type - 22",{"$f":"'Schedule XXI'!F29","v":"Select"},null,null,null,null,null,null,null,{"$f":"'Schedule XXI'!K29","v":"Select"}]
["Sch XXI","Inv Con Risk",null,"Bond Type - 50",{"$f":"'Schedule XXI'!F57","v":"Select"},null,null,null,null,null,null,null,{"$f":"'Schedule XXI'!K57","v":"Select"}]
["Sch XXI","Inv Con Risk",null,"BSCR Rating - 19",{"$f":"'Schedule XXI'!G26","v":"Select"},null,null,null,null,null,null,null,{"$f":"'Schedule XXI'!L26","v":"Select"}]
["Sch XXI","Inv Con Risk",null,"BSCR Rating - 38",{"$f":"'Schedule XXI'!G45","v":"Select"},null,null,null,null,null,null,null,{"$f":"'Schedule XXI'!L45","v":"Select"}]
["Sch XXI","Inv Con Risk",null,"Asset Value - 13",{"$f":"'Schedule XXI'!H20","v":0},null,null,null,null,null,null,null,{"$f":"'Schedule XXI'!M20","v":0}]
["Sch XXI","Inv Con Risk",null,"Asset Value - 32",{"$f":"'Schedule XXI'!H39","v":0},null,null,null,null,null,null,null,{"$f":"'Schedule XXI'!M39","v":0}]
["Sch XXI","Inv Con Risk",null,"Asset Value - Total",{"$f":"'Schedule XXI'!H58","v":0},null,null,null,null,null,null,null,{"$f":"'Schedule XXI'!M58","v":0}]
["Op Risk","Corp Gov",null,"Corporate Governance Q7",null,null,null,null,{"$f":"'Corp Gov'!D16","v":0}]
["Op Risk","Measurement",null,"Measurement - Outsourcing (Class D/E Only)",null,null,null,null,{"$f":"Measurement!G19","v":0}]
["Summary",null,null,"Deferred Tax Asset - T",null,null,null,null,null,null,null,null,{"$f":"Summary!D143","v":0}]
["Sch IIB","Investments",null,"Residential MBS - BSCR Rate 5",null,null,null,null,null,null,null,null,{"$f":"'Schedule IIB (EBS)'!H18","v":0},null,{"$f":"'Schedule IIB (EBS)'!J18","v":0}]
["Sch IIB","Investments",null,"Bonds Mutual Fund - BSCR Rate 7",null,null,null,null,null,null,null,null,{"$f":"'Schedule IIB (EBS)'!P20","v":0},null,{"$f":"'Schedule IIB (EBS)'!R20","v":0}]
["Sch IIB","Investments",null,"Long Positions - Before - Derivatives on Infrastructure",null,null,null,null,null,null,null,null,{"$f":"'Schedule IIB (EBS)'!D58","v":0}]
["Sch IIB","Investments",null,"Long Positions - After - Pension Benefit Surplus",null,null,null,null,null,null,null,null,{"$f":"'Schedule IIB (EBS)'!F55","v":0}]
["Sch IIB","Investments",null,"Short - Before - Qualified Assets - Strategic Holdings - Listed",null,null,null,null,null,null,null,null,{"$f":"'Schedule IIB (EBS)'!H39","v":0}]
["Sch IIB","Investments",null,"Short - After - Qualified Assets - Preferred Stocks, BSCR Rating 6",null,null,null,null,null,null,null,null,{"$f":"'Schedule IIB (EBS)'!J47","v":0}]
["Sch IIB","Investments",null,"Short - After - Qualified Assets - Equity Derivatives on Type 2 Equities",null,null,null,null,null,null,null,null,{"$f":"'Schedule IIB (EBS)'!J56","v":0}]
["Sch IIB","Investments",null,"Short - Before - UnQualified Assets - Equity Real Estate 1",null,null,null,null,null,null,null,null,{"$f":"'Schedule IIB (EBS)'!L59","v":0}]
["Sch IIB","Investments",null,"Short - After - UnQualified Assets - Equity Derivatives on Type 2 Equities",null,null,null,null,null,null,null,null,{"$f":"'Schedule IIB (EBS)'!N56","v":0}]
["Sch IIB","Investments",null,"Liabilities - Before - W/O Mgmt Actions - Letters of Credit",null,null,null,null,null,null,null,null,{"$f":"'Schedule IIB (EBS)'!P53","v":0}]
["Sch IIB","Investments",null,"Liabilities - After - W/O Mgmt Actions - Equity Derivatives on Type 2 Equities",null,null,null,null,null,null,null,null,{"$f":"'Schedule IIB (EBS)'!R56","v":0}]
["Sch IIB","Investments",null,"Liabilities - After - With Mgmt Actions - Letters of Credit",null,null,null,null,null,null,null,null,{"$f":"'Schedule IIB (EBS)'!T53","v":0}]
["Sch IIB","Investments",null,"Credit Derivatives - Up - After - Long- Rating 4",null,null,null,null,null,null,null,null,{"$f":"'Schedule IIB (EBS)'!F72","v":0}]
["Sch IIB","Investments",null,"Credit Derivatives - Up - Before - Short- Rating 0",null,null,null,null,null,null,null,null,{"$f":"'Schedule IIB (EBS)'!H68","v":0}]
["Sch IIB","Investments",null,"Credit Derivatives - Down - Before - Long-Rating 1",null,null,null,null,null,null,null,null,{"$f":"'Schedule IIB (EBS)'!N69","v":0}]
["Sch IIB","Investments",null,"Credit Derivatives - Down - Before - Short- Rating 8",null,null,null,null,null,null,null,null,{"$f":"'Schedule IIB (EBS)'!R76","v":0}]
["Sch IIB","Investments",null,"Counterparty Default Risk - MV of Derivatives - MV Negative - Rating 0",null,null,null,null,null,null,null,null,{"$f":"'Schedule IIB (EBS)'!F84","v":0}]
["Sch IIB","Investments",null,"NAIC Resid. MBS - Orig. Class 1",null,null,null,null,null,null,null,null,{"$f":"'Schedule IIB (EBS)'!N86","v":0}]
["Sch IIB","Investments",null,"NAIC Comm. MBS - Rev. Class 5",null,null,null,null,null,null,null,null,{"$f":"'Schedule IIB (EBS)'!T90","v":0}]
["Sch IIB","Investments",null,"NAIC Rating Comm. MBS - Class 3",null,null,null,null,null,null,null,null,{"$f":"'Schedule IIB (EBS)'!H103","v":0}]
["Sch IIB","Investments",null,"NAIC Rating Bond Mutual - Class 6",null,null,null,null,null,null,null,null,{"$f":"'Schedule IIB (EBS)'!J106","v":0}]
["Sch IIB","Investments",null,"NAIC Rating Other Assets - Class 1",null,null,null,null,null,null,null,null,{"$f":"'Schedule IIB (EBS)'!P101","v":0}]
["Sch IIC","Funds Held",null,"Residential MBS - BSCR Rate 3",null,null,null,null,null,null,null,null,{"$f":"'Schedule IIC (EBS)'!H16","v":0},null,{"$f":"'Schedule IIC (EBS)'!J16","v":0}]
["Sch IIC","Funds Held",null,"Mortgage Loans - Other Residential",null,null,null,null,null,null,null,null,{"$f":"'Schedule IIC (EBS)'!T24","v":0},null,{"$f":"'Schedule IIC (EBS)'!V24","v":0}]
["Sch IIC","Funds Held",null,"Long Positions - Before - Equity Derivatives on Type 2 Equities",null,null,null,null,null,null,null,null,{"$f":"'Schedule IIC (EBS)'!D56","v":0}]
["Sch IIC","Funds Held",null,"Long Positions - After - Equity Real Estate 1",null,null,null,null,null,null,null,null,{"$f":"'Schedule IIC (EBS)'!F59","v":0}]
["Sch IIC","Funds Held",null,"Short - Before - Qualified Assets - Equity Derivatives on Type 2 Equities",null,null,null,null,null,null,null,null,{"$f":"'Schedule IIC (EBS)'!H56","v":0}]
["Sch IIC","Funds Held",null,"Short - After - Qualified Assets - Other Equities",null,null,null,null,null,null,null,null,{"$f":"'Schedule IIC (EBS)'!J52","v":0}]
["Sch IIC","Funds Held",null,"Short - After - Qualified Assets - Equity Real Estate 2",null,null,null,null,null,null,null,null,{"$f":"'Schedule IIC (EBS)'!J60","v":0}]
["Sch IIC","Funds Held",null,"Short - Before - UnQualified Assets - Infrastructure",null,null,null,null,null,null,null,null,{"$f":"'Schedule IIC (EBS)'!L57","v":0}]
["Sch IIC","Funds Held",null,"Short - After - UnQualified Assets - Intangible assets",null,null,null,null,null,null,null,null,{"$f":"'Schedule IIC (EBS)'!N54","v":0}]
["Sch IIC","Funds Held",null,"Liabilities - Before - W/O Mgmt Actions - Infrastructure",null,null,null,null,null,null,null,null,{"$f":"'Schedule IIC (EBS)'!P57","v":0}]
["Sch IIC","Funds Held",null,"Liabilities - After - W/O Mgmt Actions - Intangible assets",null,null,null,null,null,null,null,null,{"$f":"'Schedule IIC (EBS)'!R54","v":0}]
["Sch IIC","Funds Held",null,"Liabilities - After - With Mgmt Actions - Infrastructure",null,null,null,null,null,null,null,null,{"$f":"'Schedule IIC (EBS)'!T57","v":0}]
["Sch IIC","Funds Held",null,"Credit Derivatives - Up - After - Long- Rating 6",null,null,null,null,null,null,null,null,{"$f":"'Schedule IIC (EBS)'!F74","v":0}]
["Sch IIC","Funds Held",null,"Credit Derivatives - Up - Before - Short- Rating 4",null,null,null,null,null,null,null,null,{"$f":"'Schedule IIC (EBS)'!H72","v":0}]
["Sch IIC","Funds Held",null,"Credit Derivatives - Down - Before - Long-Rating 5",null,null,null,null,null,null,null,null,{"$f":"'Schedule IIC (EBS)'!N73","v":0}]
["Sch IIC","Funds Held",null,"Credit Derivatives - Down - Before - Short- Rating 6",null,null,null,null,null,null,null,null,{"$f":"'Schedule IIC (EBS)'!R74","v":0}]
["Sch IIC","Funds Held",null,"Counterparty Default Risk - MV of Derivatives - MV Negative - Rating 4",null,null,null,null,null,null,null,null,{"$f":"'Schedule IIC (EBS)'!F88","v":0}]
["Sch IIC","Funds Held",null,"NAIC Rating Corp & Sov. Bond - Class 5",null,null,null,null,null,null,null,null,{"$f":"'Schedule IIC (EBS)'!D105","v":0}]
["Sch IIC","Funds Held",null,"NAIC Rating Bond Mutual - Class 3",null,null,null,null,null,null,null,null,{"$f":"'Schedule IIC (EBS)'!J103","v":0}]
["Sch IIC","Funds Held",null,"NAIC Rating Other Assets - Total",null,null,null,null,null,null,null,null,{"$f":"'Schedule IIC (EBS)'!P107","v":0}]
["Sch IID","Segregated Acc",null,"Liabilities Supported by Corp. Bonds - BSCR Rate 8",null,null,null,null,null,null,null,null,{"$f":"'Schedule IID (EBS)'!F21","v":0}]
["Sch IID","Segregated Acc",null,"Liabilities Supported by Residential MBS - BSCR Rate 8",null,null,null,null,null,null,null,null,{"$f":"'Schedule IID (EBS)'!J21","v":0}]
["Sch IID","Segregated Acc",null,"Liabilities Supported by Bonds Mutual Fund - BSCR Rate 3",null,null,null,null,null,null,null,null,{"$f":"'Schedule IID (EBS)'!R16","v":0}]
["Sch IID","Segregated Acc",null,"Long Positions - Before - Preferred Stocks, BSCR Rating 3",null,null,null,null,null,null,null,null,{"$f":"'Schedule IID (EBS)'!D44","v":0}]
["Sch IID","Segregated Acc",null,"Long Positions - Before - Equity Derivatives on Type 1 Equities",null,null,null,null,null,null,null,null,{"$f":"'Schedule IID (EBS)'!D50","v":0}]
["Sch IID","Segregated Acc",null,"Long Positions - After - Preferred Stocks, BSCR Rating 6",null,null,null,null,null,null,null,null,{"$f":"'Schedule IID (EBS)'!F47","v":0}]
["Sch IID","Segregated Acc",null,"Short - Before - Qualified Assets - Preferred Stocks, BSCR Rating 3",null,null,null,null,null,null,null,null,{"$f":"'Schedule IID (EBS)'!H44","v":0}]
["Sch IID","Segregated Acc",null,"Short - After - Qualified Assets - Preferred Stocks, BSCR Rating 6",null,null,null,null,null,null,null,null,{"$f":"'Schedule IID (EBS)'!J47","v":0}]
["Sch IID","Segregated Acc",null,"Short - Before - UnQualified Assets - Preferred Stocks, BSCR Rating 4",null,null,null,null,null,null,null,null,{"$f":"'Schedule IID (EBS)'!L45","v":0}]
["Sch IID","Segregated Acc",null,"Short - After - UnQualified Assets - Preferred Stocks, BSCR Rating 1",null,null,null,null,null,null,null,null,{"$f":"'Schedule IID (EBS)'!N42","v":0}]
["Sch IID","Segregated Acc",null,"Liabilities - Before - W/O Mgmt Actions - Preferred Stocks, BSCR Rating 4",null,null,null,null,null,null,null,null,{"$f":"'Schedule IID (EBS)'!P45","v":0}]
["Sch IID","Segregated Acc",null,"Liabilities - After - W/O Mgmt Actions - Preferred Stocks, BSCR Rating 1",null,null,null,null,null,null,null,null,{"$f":"'Schedule IID (EBS)'!R42","v":0}]
["Sch IID","Segregated Acc",null,"Liabilities - After - W/O Mgmt Actions - Preferred Stocks, BSCR Rating 7",null,null,null,null,null,null,null,null,{"$f":"'Schedule IID (EBS)'!R48","v":0}]
["Sch IID","Segregated Acc",null,"Liabilities - After - With Mgmt Actions - Preferred Stocks, BSCR Rating 4",null,null,null,null,null,null,null,null,{"$f":"'Schedule IID (EBS)'!T45","v":0}]
["Sch IID","Segregated Acc",null,"Credit Derivatives - Up - Before - Long-Rating 3",null,null,null,null,null,null,null,null,{"$f":"'Schedule IID (EBS)'!D71","v":0}]
["Sch IID","Segregated Acc",null,"Credit Derivatives - Up - After - Short- Rating 1",null,null,null,null,null,null,null,null,{"$f":"'Schedule IID (EBS)'!J69","v":0}]
["Sch IID","Segregated Acc",null,"Credit Derivatives - Down - Before - Long-Rating 1",null,null,null,null,null,null,null,null,{"$f":"'Schedule IID (EBS)'!N69","v":0}]
["Sch IID","Segregated Acc",null,"Counterparty Default Risk - MV of Derivatives - MV Positive - Rating 1",null,null,null,null,null,null,null,null,{"$f":"'Schedule IID (EBS)'!D85","v":0}]
["Sch IID","Segregated Acc",null,"Counterparty Default Risk - MV of Collateral - Rating 2",null,null,null,null,null,null,null,null,{"$f":"'Schedule IID (EBS)'!H86","v":0}]
["Sch IID","Segregated Acc",null,"NAIC Rating Resid. MBS - Class 5",null,null,null,null,null,null,null,null,{"$f":"'Schedule IID (EBS)'!F105","v":0}]
["Sch IID","Segregated Acc",null,"NAIC Rating Comm. MBS - Class 4",null,null,null,null,null,null,null,null,{"$f":"'Schedule IID (EBS)'!H104","v":0}]
["Sch IID","Segregated Acc",null,"NAIC Rating Pref. Stock - Class 2",null,null,null,null,null,null,null,null,{"$f":"'Schedule IID (EBS)'!N102","v":0}]
["Sch IIE","Deposits",null,"Corp. Bonds - BSCR Rate 5",null,null,null,null,null,null,null,null,{"$f":"'Schedule IIE (EBS)'!D18","v":0},null,{"$f":"'Schedule IIE (EBS)'!F18","v":0}]
["Sch IIE","Deposits",null,"Commercial MBS - BSCR Rate 8",null,null,null,null,null,null,null,null,{"$f":"'Schedule IIE (EBS)'!L21","v":0},null,{"$f":"'Schedule IIE (EBS)'!N21","v":0}]
["Sch IIE","Deposits",null,"Long Positions - Before - Strategic Holdings - Unlisted",null,null,null,null,null,null,null,null,{"$f":"'Schedule IIE (EBS)'!D51","v":0}]
["Sch IIE","Deposits",null,"Long Positions - After - Intangible assets",null,null,null,null,null,null,null,null,{"$f":"'Schedule IIE (EBS)'!F54","v":0}]
["Sch IIE","Deposits",null,"Short - Before - Qualified Assets - Strategic Holdings - Unlisted",null,null,null,null,null,null,null,null,{"$f":"'Schedule IIE (EBS)'!H51","v":0}]
["Sch IIE","Deposits",null,"Short - After - Qualified Assets - Preferred Stocks, BSCR Rating 7",null,null,null,null,null,null,null,null,{"$f":"'Schedule IIE (EBS)'!J48","v":0}]
["Sch IIE","Deposits",null,"Short - After - Qualified Assets - Intangible assets",null,null,null,null,null,null,null,null,{"$f":"'Schedule IIE (EBS)'!J54","v":0}]
["Sch IIE","Deposits",null,"Short - Before - UnQualified Assets - Strategic Holdings - Unlisted",null,null,null,null,null,null,null,null,{"$f":"'Schedule IIE (EBS)'!L51","v":0}]
["Sch IIE","Deposits",null,"Short - After - UnQualified Assets - Intangible assets",null,null,null,null,null,null,null,null,{"$f":"'Schedule IIE (EBS)'!N54","v":0}]
["Sch IIE","Deposits",null,"Liabilities - Before - W/O Mgmt Actions - Intangible assets",null,null,null,null,null,null,null,null,{"$f":"'Schedule IIE (EBS)'!P54","v":0}]
["Sch IIE","Deposits",null,"Liabilities - After - W/O Mgmt Actions - Preferred Stocks, BSCR Rating 8",null,null,null,null,null,null,null,null,{"$f":"'Schedule IIE (EBS)'!R49","v":0}]
["Sch IIE","Deposits",null,"Liabilities - After - With Mgmt Actions - Other Equities",null,null,null,null,null,null,null,null,{"$f":"'Schedule IIE (EBS)'!T52","v":0}]
["Sch IIE","Deposits",null,"Credit Derivatives - Up - After - Long- Rating 1",null,null,null,null,null,null,null,null,{"$f":"'Schedule IIE (EBS)'!F69","v":0}]
["Sch IIE","Deposits",null,"Credit Derivatives - Up - After - Short- Rating 2",null,null,null,null,null,null,null,null,{"$f":"'Schedule IIE (EBS)'!J70","v":0}]
["Sch IIE","Deposits",null,"Credit Derivatives - Up - After - Short- Rating 8",null,null,null,null,null,null,null,null,{"$f":"'Schedule IIE (EBS)'!J76","v":0}]
["Sch IIE","Deposits",null,"Credit Derivatives - Down - Before - Short- Rating 0",null,null,null,null,null,null,null,null,{"$f":"'Schedule IIE (EBS)'!R68","v":0}]
["Sch IIE","Deposits",null,"Counterparty Default Risk - MV of Derivatives - MV Negative - Rating 5",null,null,null,null,null,null,null,null,{"$f":"'Schedule IIE (EBS)'!F89","v":0}]
["Sch IIE","Deposits",null,"Cash and Cash Equivalents",null,null,null,null,null,null,null,null,{"$f":"'Schedule IIE (EBS)'!D95","v":0}]
["Sch IIE","Deposits",null,"NAIC Rating Comm. MBS - Class 5",null,null,null,null,null,null,null,null,{"$f":"'Schedule IIE (EBS)'!H105","v":0}]
["Sch IIE","Deposits",null,"NAIC Rating Other Assets - Class 2",null,null,null,null,null,null,null,null,{"$f":"'Schedule IIE (EBS)'!P102","v":0}]
["Sch IIF","Other Sundry",null,"Residential MBS - BSCR Rate 4",null,null,null,null,null,null,null,null,{"$f":"'Schedule IIF (EBS)'!H17","v":0},null,{"$f":"'Schedule IIF (EBS)'!J17","v":0}]
["Sch IIF","Other Sundry",null,"Bonds Mutual Fund - BSCR Rate 6",null,null,null,null,null,null,null,null,{"$f":"'Schedule IIF (EBS)'!P19","v":0},null,{"$f":"'Schedule IIF (EBS)'!R19","v":0}]
["Sch IIF","Other Sundry",null,"Mortgage Loans - Not Good Stand.",null,null,null,null,null,null,null,null,{"$f":"'Schedule IIF (EBS)'!T25","v":0},null,{"$f":"'Schedule IIF (EBS)'!V25","v":0}]
["Sch IIF","Other Sundry",null,"Long Positions - Before - Infrastructure",null,null,null,null,null,null,null,null,{"$f":"'Schedule IIF (EBS)'!D57","v":0}]
["Sch IIF","Other Sundry",null,"Long Positions - After - Equity Derivatives on Type 2 Equities",null,null,null,null,null,null,null,null,{"$f":"'Schedule IIF (EBS)'!F56","v":0}]
["Sch IIF","Other Sundry",null,"Short - Before - Qualified Assets - Derivatives on Infrastructure",null,null,null,null,null,null,null,null,{"$f":"'Schedule IIF (EBS)'!H58","v":0}]
["Sch IIF","Other Sundry",null,"Short - After - Qualified Assets - Pension Benefit Surplus",null,null,null,null,null,null,null,null,{"$f":"'Schedule IIF (EBS)'!J55","v":0}]
["Sch IIF","Other Sundry",null,"Short - Before - UnQualified Assets - Derivatives on Infrastructure",null,null,null,null,null,null,null,null,{"$f":"'Schedule IIF (EBS)'!L58","v":0}]
["Sch IIF","Other Sundry",null,"Short - After - UnQualified Assets - Pension Benefit Surplus",null,null,null,null,null,null,null,null,{"$f":"'Schedule IIF (EBS)'!N55","v":0}]
["Sch IIF","Other Sundry",null,"Liabilities - Before - W/O Mgmt Actions - Derivatives on Infrastructure",null,null,null,null,null,null,null,null,{"$f":"'Schedule IIF (EBS)'!P58","v":0}]
["Sch IIF","Other Sundry",null,"Liabilities - After - W/O Mgmt Actions - Pension Benefit Surplus",null,null,null,null,null,null,null,null,{"$f":"'Schedule IIF (EBS)'!R55","v":0}]
["Sch IIF","Other Sundry",null,"Liabilities - After - With Mgmt Actions - Other Equities",null,null,null,null,null,null,null,null,{"$f":"'Schedule IIF (EBS)'!T52","v":0}]
["Sch IIF","Other Sundry",null,"Credit Derivatives - Up - Before - Long-Rating 2",null,null,null,null,null,null,null,null,{"$f":"'Schedule IIF (EBS)'!D70","v":0}]
["Sch IIF","Other Sundry",null,"Credit Derivatives - Up - After - Long- Rating 8",null,null,null,null,null,null,null,null,{"$f":"'Schedule IIF (EBS)'!F76","v":0}]
["Sch IIF","Other Sundry",null,"Credit Derivatives - Down - Before - Long-Rating 0",null,null,null,null,null,null,null,null,{"$f":"'Schedule IIF (EBS)'!N68","v":0}]
["Sch IIF","Other Sundry",null,"Credit Derivatives - Down - Before - Short- Rating 7",null,null,null,null,null,null,null,null,{"$f":"'Schedule IIF (EBS)'!R75","v":0}]
["Sch IIF","Other Sundry",null,"Counterparty Default Risk - MV of Derivatives - MV Positive - Rating 8",null,null,null,null,null,null,null,null,{"$f":"'Schedule IIF (EBS)'!D92","v":0}]
["Sch IIF","Other Sundry",null,"NAIC Rating Corp & Sov. Bond - Class 6",null,null,null,null,null,null,null,null,{"$f":"'Schedule IIF (EBS)'!D106","v":0}]
["Sch IIF","Other Sundry",null,"NAIC Rating Bond Mutual - Class 4",null,null,null,null,null,null,null,null,{"$f":"'Schedule IIF (EBS)'!J104","v":0}]
["Sch IIF","Other Sundry",null,"NAIC Rating Other Assets - Class 2",null,null,null,null,null,null,null,null,{"$f":"'Schedule IIF (EBS)'!P102","v":0}]
["Sch IVF","Exposure of Risk",null,"0. Jurisdiction of Ultimate Parent Company",null,null,null,null,{"$f":"'Schedule IVF'!D6","v":"Select"}]
["Sch IVF","Exposure of Risk",null,"1. # of Subsidiaries - 19.Malta",null,null,null,null,{"$f":"'Schedule IVF'!D31","v":0}]
["Sch IVF","Exposure of Risk",null,"1. # of Subsidiaries - 38.All Other Locations",null,null,null,null,{"$f":"'Schedule IVF'!D51","v":0}]
["Sch IVF","Exposure of Risk",null,"9. LT Mortality Reserve - 24.Slovakia",null,null,null,null,{"$f":"'Schedule IVF'!M36","v":0}]
["Sch IVF","Exposure of Risk",null,"10. LT Longevity Reserve - 4.Croatia",null,null,null,null,{"$f":"'Schedule IVF'!N16","v":0}]
["Sch IVF","Exposure of Risk",null,"10. LT Longevity Reserve - 29.Bermuda",null,null,null,null,{"$f":"'Schedule IVF'!N42","v":0}]
["Sch IVF","Exposure of Risk",null,"11. LT Accumulation Reserve - 9.Finland",null,null,null,null,{"$f":"'Schedule IVF'!O21","v":0}]
["Sch IVF","Exposure of Risk",null,"11. LT Accumulation Reserve - 17.Lithuania",null,null,null,null,{"$f":"'Schedule IVF'!O29","v":0}]
["Sch IVF","Exposure of Risk",null,"11. LT Accumulation Reserve - 35.Japan",null,null,null,null,{"$f":"'Schedule IVF'!O48","v":0}]
["Sch IVF","Exposure of Risk",null,"12. LT Disability Reserve - 15.Italy",null,null,null,null,{"$f":"'Schedule IVF'!P27","v":0}]
["Sch IVF","Exposure of Risk",null,"13. LT Group Reserve - 1.Austria",null,null,null,null,{"$f":"'Schedule IVF'!Q13","v":0}]
["Sch IVF","Exposure of Risk",null,"13. LT Group Reserve - 20.Netherlands",null,null,null,null,{"$f":"'Schedule IVF'!Q32","v":0}]
["Sch IVF","Exposure of Risk",null,"13. LT Group Reserve - 39.Total",null,null,null,null,{"$f":"'Schedule IVF'!Q52","v":0}]
["Sch IVF","Exposure of Risk",null,"14. LT Var. Annuity Reserve - 25.Slovenia",null,null,null,null,{"$f":"'Schedule IVF'!R37","v":0}]
["Sch IVF","Exposure of Risk",null,"14. LT Var. Annuity Reserve - 37.Australia",null,null,null,null,{"$f":"'Schedule IVF'!R50","v":0}]
["Sch IVF","Exposure of Risk",null,"15. LT Other Reserve - 25.Slovenia",null,null,null,null,{"$f":"'Schedule IVF'!S37","v":0}]
["Sch IVF","Exposure of Risk",null,"15. LT Other Reserve - 31.Switzerland",null,null,null,null,{"$f":"'Schedule IVF'!S44","v":0}]
["Sch IVF","Exposure of Risk",null,"16. LT Claims Paid - 11.Germany",null,null,null,null,{"$f":"'Schedule IVF'!T23","v":0}]
["Sch IVF","Exposure of Risk",null,"16. LT Claims Paid - 36.Hong Kong",null,null,null,null,{"$f":"'Schedule IVF'!T49","v":0}]
["Sch XIXA","Cash Counterpart",null,"Name - Counterparty 14",null,null,null,null,null,null,null,null,{"$f":"'Schedule XIXA'!C27","v":0}]
["Sch XIXA","Cash Counterpart",null,"BSCR Rating - Counterparty 13",null,null,null,null,null,null,null,null,{"$f":"'Schedule XIXA'!D26","v":"Select"}]
["Sch XIXA","Cash Counterpart",null,"Counterparty Value 18",null,null,null,null,null,null,null,null,{"$f":"'Schedule XIXA'!F31","v":0}]
["Sch XXA","Currency Shock",null,"Other Currency 8",null,null,null,null,null,null,null,null,{"$f":"'Schedule XXA'!B30","v":"Other currency 8"}]
["Sch XXA","Currency Shock",null,{"$f":"\"Before Shock - Assets - Excluding Currency - Sensitive Derivatives \"&'Schedule XXA'!$B$12","v":"Before Shock - Assets - Excluding Currency - Sensitive Derivatives Qatar Riyals"},null,null,null,null,null,null,null,null,{"$f":"'Schedule XXA'!D12","v":0}]
["Sch XXA","Currency Shock",null,{"$f":"\"Before Shock - Assets - Excluding Currency - Sensitive Derivatives \"&'Schedule XXA'!$B$31","v":"Before Shock - Assets - Excluding Currency - Sensitive Derivatives Other currency 9"},null,null,null,null,null,null,null,null,{"$f":"'Schedule XXA'!D31","v":0}]
["Sch XXA","Currency Shock",null,{"$f":"\"Before Shock - Long Exposures - Currency Derivatives Qualifying as held for risk-mitigation purposes \"&'Schedule XXA'!$B$27","v":"Before Shock - Long Exposures - Currency Derivatives Qualifying as held for risk-mitigation purposes Other currency 5"},null,null,null,null,null,null,null,null,{"$f":"'Schedule XXA'!F27","v":0}]
["Sch XXA","Currency Shock",null,{"$f":"\"Before Shock - Long Exposures - Currency Derivatives Not Qualifying as held for risk-mitigation purposes \"&'Schedule XXA'!$B$29","v":"Before Shock - Long Exposures - Currency Derivatives Not Qualifying as held for risk-mitigation purposes Other currency 7"},null,null,null,null,null,null,null,null,{"$f":"'Schedule XXA'!H29","v":0}]
["Sch XXA","Currency Shock",null,{"$f":"\"Before Shock - Short Exposures - Currency Derivatives Qualifying as held for risk-mitigation purposes \"&'Schedule XXA'!$B$25","v":"Before Shock - Short Exposures - Currency Derivatives Qualifying as held for risk-mitigation purposes Other currency 3"},null,null,null,null,null,null,null,null,{"$f":"'Schedule XXA'!J25","v":0}]
["Sch XXA","Currency Shock",null,{"$f":"\"Before Shock - Short Exposures - Currency Derivatives Not Qualifying as held for risk-mitigation purposes \"&'Schedule XXA'!$B$21","v":"Before Shock - Short Exposures - Currency Derivatives Not Qualifying as held for risk-mitigation purposes Canada Dollars"},null,null,null,null,null,null,null,null,{"$f":"'Schedule XXA'!L21","v":0}]
["Sch XXA","Currency Shock",null,{"$f":"\"Before Shock - B.E. Liabilities \"&'Schedule XXA'!$B$29","v":"Before Shock - B.E. Liabilities Other currency 7"},null,null,null,null,null,null,null,null,{"$f":"'Schedule XXA'!N29","v":0}]
["Sch XXA","Currency Shock",null,{"$f":"\"After Shock - Assets - Excluding Currency - Sensitive Derivatives \"&'Schedule XXA'!$B$20","v":"After Shock - Assets - Excluding Currency - Sensitive Derivatives United Kingdom Pounds"},null,null,null,null,null,null,null,null,{"$f":"'Schedule XXA'!V20","v":0}]
["Sch XXA","Currency Shock",null,{"$f":"\"After Shock - Assets - Excluding Currency - Sensitive Derivatives \"&'Schedule XXA'!$B$26","v":"After Shock - Assets - Excluding Currency - Sensitive Derivatives Other currency 4"},null,null,null,null,null,null,null,null,{"$f":"'Schedule XXA'!V26","v":0}]
["Sch XXA","Currency Shock",null,{"$f":"\"After Shock - Long Exposures - Currency Derivatives Qualifying as held for risk-mitigation purposes \"&'Schedule XXA'!$B$22","v":"After Shock - Long Exposures - Currency Derivatives Qualifying as held for risk-mitigation purposes Japan Yen"},null,null,null,null,null,null,null,null,{"$f":"'Schedule XXA'!X22","v":0}]
["Sch XXA","Currency Shock",null,{"$f":"\"After Shock - Long Exposures - Currency Derivatives Not Qualifying as held for risk-mitigation purposes \"&'Schedule XXA'!$B$18","v":"After Shock - Long Exposures - Currency Derivatives Not Qualifying as held for risk-mitigation purposes Central African CFA Francs"},null,null,null,null,null,null,null,null,{"$f":"'Schedule XXA'!Z18","v":0}]
["Sch XXA","Currency Shock",null,{"$f":"\"After Shock - Short Exposures - Currency Derivatives Qualifying as held for risk-mitigation purposes \"&'Schedule XXA'!$B$20","v":"After Shock - Short Exposures - Currency Derivatives Qualifying as held for risk-mitigation purposes United Kingdom Pounds"},null,null,null,null,null,null,null,null,{"$f":"'Schedule XXA'!AB20","v":0}]
["Sch XXA","Currency Shock",null,{"$f":"\"After Shock - Short Exposures - Currency Derivatives Not Qualifying as held for risk-mitigation purposes \"&'Schedule XXA'!$B$16","v":"After Shock - Short Exposures - Currency Derivatives Not Qualifying as held for risk-mitigation purposes Bulgaria Leva"},null,null,null,null,null,null,null,null,{"$f":"'Schedule XXA'!AD16","v":0}]
["Sch XXA","Currency Shock",null,{"$f":"\"After Shock - B.E. Liabilities \"&'Schedule XXA'!$B$12","v":"After Shock - B.E. Liabilities Qatar Riyals"},null,null,null,null,null,null,null,null,{"$f":"'Schedule XXA'!AF12","v":0}]
["Sch XXA","Currency Shock",null,{"$f":"\"After Shock - B.E. Liabilities \"&'Schedule XXA'!$B$32","v":"After Shock - B.E. Liabilities Other currency 10"},null,null,null,null,null,null,null,null,{"$f":"'Schedule XXA'!AF32","v":0}]
["Sch XXA","Currency Shock",null,"Liabilities Prior Year 2",null,null,null,null,null,null,null,null,{"$f":"'Schedule XXA'!D44","v":0}]
["Sch XXIA","Inv Con Risk",null,"Name of Exposure - 19",{"$f":"'Schedule XXIA'!C26","v":0}]
["Sch XXIA","Inv Con Risk",null,"Name of Exposure - 38",{"$f":"'Schedule XXIA'!C45","v":0}]
["Sch XXIA","Inv Con Risk",null,"Asset Type - 7",{"$f":"'Schedule XXIA'!E14","v":"Select"},null,null,null,null,null,null,null,{"$f":"'Schedule XXIA'!J14","v":"Select"}]
["Sch XXIA","Inv Con Risk",null,"Asset Type - 13",{"$f":"'Schedule XXIA'!E20","v":"Select"},null,null,null,null,null,null,null,{"$f":"'Schedule XXIA'!J20","v":"Select"}]
["Sch XXIA","Inv Con Risk",null,"Asset Type - 32",{"$f":"'Schedule XXIA'!E39","v":"Select"},null,null,null,null,null,null,null,{"$f":"'Schedule XXIA'!J39","v":"Select"}]
["Sch XXIA","Inv Con Risk",null,"Bond Type - 7",{"$f":"'Schedule XXIA'!F14","v":"Select"},null,null,null,null,null,null,null,{"$f":"'Schedule XXIA'!K14","v":"Select"}]
["Sch XXIA","Inv Con Risk",null,"Bond Type - 30",{"$f":"'Schedule XXIA'!F37","v":"Select"},null,null,null,null,null,null,null,{"$f":"'Schedule XXIA'!K37","v":"Select"}]
["Sch XXIA","Inv Con Risk",null,"Bond Type - 46",{"$f":"'Schedule XXIA'!F53","v":"Select"},null,null,null,null,null,null,null,{"$f":"'Schedule XXIA'!K53","v":"Select"}]
["Sch XXIA","Inv Con Risk",null,"BSCR Rating - 21",{"$f":"'Schedule XXIA'!G28","v":"Select"},null,null,null,null,null,null,null,{"$f":"'Schedule XXIA'!L28","v":"Select"}]
["Sch XXIA","Inv Con Risk",null,"BSCR Rating - 40",{"$f":"'Schedule XXIA'!G47","v":"Select"},null,null,null,null,null,null,null,{"$f":"'Schedule XXIA'!L47","v":"Select"}]
["Sch XXIA","Inv Con Risk",null,"Asset Value - 9",{"$f":"'Schedule XXIA'!H16","v":0},null,null,null,null,null,null,null,{"$f":"'Schedule XXIA'!M16","v":0}]
["Sch XXIA","Inv Con Risk",null,"Asset Value - 15",{"$f":"'Schedule XXIA'!H22","v":0},null,null,null,null,null,null,null,{"$f":"'Schedule XXIA'!M22","v":0}]
["Sch XXIA","Inv Con Risk",null,"Asset Value - 34",{"$f":"'Schedule XXIA'!H41","v":0},null,null,null,null,null,null,null,{"$f":"'Schedule XXIA'!M41","v":0}]
["Sch XXIII","Interest Rates",null,"Int. Down - Before Shock - Other - Qualifying Assets - Canada Dollars",null,null,null,null,null,null,null,null,{"$f":"'Schedule XXIII'!E14","v":0}]
["Sch XXIII","Interest Rates",null,{"$f":"\"Int. Down - Before Shock - Other - Qualifying Assets - \"&'Schedule XXIII'!$C$26","v":"Int. Down - Before Shock - Other - Qualifying Assets - Other currency 9"},null,null,null,null,null,null,null,null,{"$f":"'Schedule XXIII'!E26","v":0}]
["Sch XXIII","Interest Rates",null,{"$f":"\"Int. Down - After Shock - Other - Qualifying Assets - \"&'Schedule XXIII'!$C$26","v":"Int. Down - After Shock - Other - Qualifying Assets - Other currency 9"},null,null,null,null,null,null,null,null,{"$f":"'Schedule XXIII'!F26","v":0}]
["Sch XXIII","Interest Rates",null,"Int. Down - After Shock - Other - Liab. w/o Mgmt Action - Japan Yen",null,null,null,null,null,null,null,null,{"$f":"'Schedule XXIII'!I13","v":0}]
["Sch XXIII","Interest Rates",null,"Int. Down - After Shock - Other - Liab. with Mgmt Action - Japan Yen",null,null,null,null,null,null,null,null,{"$f":"'Schedule XXIII'!K13","v":0}]
["Sch XXIII","Interest Rates",null,{"$f":"\"Int. Down - After Shock - Other - Liab. with Mgmt Action - \"&'Schedule XXIII'!$C$19","v":"Int. Down - After Shock - Other - Liab. with Mgmt Action - Other currency 2"},null,null,null,null,null,null,null,null,{"$f":"'Schedule XXIII'!K19","v":0}]
["Sch XXIII","Interest Rates",null,{"$f":"\"Int. Down - Before Shock - Derivatives - Qualifying Assets - \"&'Schedule XXIII'!$C$19","v":"Int. Down - Before Shock - Derivatives - Qualifying Assets - Other currency 2"},null,null,null,null,null,null,null,null,{"$f":"'Schedule XXIII'!M19","v":0}]
["Sch XXIII","Interest Rates",null,{"$f":"\"Int. Down - After Shock - Derivatives - Qualifying Assets - \"&'Schedule XXIII'!$C$19","v":"Int. Down - After Shock - Derivatives - Qualifying Assets - Other currency 2"},null,null,null,null,null,null,null,null,{"$f":"'Schedule XXIII'!N19","v":0}]
["Sch XXIII","Interest Rates",null,{"$f":"\"Int. Down - Before Shock - Derivatives - Not Qualifying Assets - \"&'Schedule XXIII'!$C$22","v":"Int. Down - Before Shock - Derivatives - Not Qualifying Assets - Other currency 5"},null,null,null,null,null,null,null,null,{"$f":"'Schedule XXIII'!P22","v":0}]
["Sch XXIII","Interest Rates",null,{"$f":"\"Int. Down - After Shock - Derivatives - Not Qualifying Assets - \"&'Schedule XXIII'!$C$26","v":"Int. Down - After Shock - Derivatives - Not Qualifying Assets - Other currency 9"},null,null,null,null,null,null,null,null,{"$f":"'Schedule XXIII'!Q26","v":0}]
["Sch XXIII","Interest Rates",null,{"$f":"\"Int. Down - Before Shock - Derivatives - Liab. w/o Mgmt Action - \"&'Schedule XXIII'!$C$26","v":"Int. Down - Before Shock - Derivatives - Liab. w/o Mgmt Action - Other currency 9"},null,null,null,null,null,null,null,null,{"$f":"'Schedule XXIII'!S26","v":0}]
["Sch XXIII","Interest Rates",null,"Int. Down - After Shock - Derivatives - Liab. with Mgmt Action - Japan Yen",null,null,null,null,null,null,null,null,{"$f":"'Schedule XXIII'!V13","v":0}]
["Sch XXIII","Interest Rates",null,"Other currency 4",null,null,null,null,null,null,null,null,{"$f":"'Schedule XXIII'!C46","v":"Other currency 4"}]
["Sch XXIII","Interest Rates",null,"Other currency 10",null,null,null,null,null,null,null,null,{"$f":"'Schedule XXIII'!C52","v":"Other currency 10"}]
["Sch XXIII","Interest Rates",null,"Int. Up - Before Shock - Other - Qualifying Assets - Total",null,null,null,null,null,null,null,null,{"$f":"'Schedule XXIII'!E53","v":0}]
["Sch XXIII","Interest Rates",null,{"$f":"\"Int. Up - Before Shock - Other - Liab. w/o Mgmt Action - \"&'Schedule XXIII'!$C$20","v":"Int. Up - Before Shock - Other - Liab. w/o Mgmt Action - Other currency 3"},null,null,null,null,null,null,null,null,{"$f":"'Schedule XXIII'!H45","v":0}]
["Sch XXIII","Interest Rates",null,"Int. Up - After Shock - Other - Liab. w/o Mgmt Action - Australia Dollar",null,null,null,null,null,null,null,null,{"$f":"'Schedule XXIII'!I41","v":0}]
["Sch XXIII","Interest Rates",null,"Int. Up - After Shock - Other - Liab. with Mgmt Action - Australia Dollar",null,null,null,null,null,null,null,null,{"$f":"'Schedule XXIII'!K41","v":0}]
["Sch XXIII","Interest Rates",null,"Int. Up - Before Shock - Derivatives - Qualifying Assets - Australia Dollar",null,null,null,null,null,null,null,null,{"$f":"'Schedule XXIII'!M41","v":0}]
["Sch XXIII","Interest Rates",null,{"$f":"\"Int. Up - After Shock - Derivatives - Qualifying Assets - \"&'Schedule XXIII'!$C$22","v":"Int. Up - After Shock - Derivatives - Qualifying Assets - Other currency 5"},null,null,null,null,null,null,null,null,{"$f":"'Schedule XXIII'!N47","v":0}]
["Sch XXIII","Interest Rates",null,{"$f":"\"Int. Up - Before Shock - Derivatives - Not Qualifying Assets - \"&'Schedule XXIII'!$C$22","v":"Int. Up - Before Shock - Derivatives - Not Qualifying Assets - Other currency 5"},null,null,null,null,null,null,null,null,{"$f":"'Schedule XXIII'!P47","v":0}]
["Sch XXIII","Interest Rates",null,"Int. Up - Before Shock - Derivatives - Not Qualifying Assets - Total",null,null,null,null,null,null,null,null,{"$f":"'Schedule XXIII'!P53","v":0}]
["Sch XXIII","Interest Rates",null,"Int. Up - After Shock - Derivatives - Not Qualifying Assets - Total",null,null,null,null,null,null,null,null,{"$f":"'Schedule XXIII'!Q53","v":0}]
["Sch XXIII","Interest Rates",null,"Int. Up - Before Shock - Derivatives - Liab. w/o Mgmt Action - Total",null,null,null,null,null,null,null,null,{"$f":"'Schedule XXIII'!S53","v":0}]
["Sch XXIII","Interest Rates",null,"Int. Up - After Shock - Derivatives - Liab. with Mgmt Action - Australia Dollar",null,null,null,null,null,null,null,null,{"$f":"'Schedule XXIII'!V41","v":0}]
["Equity Grandfather","Equity Grandfather",null,"Long Positions - Before - Preferred Stocks, BSCR Rating 3",null,null,null,null,null,null,null,null,{"$f":"'Non-Grandfathered Equity Part'!D20","v":0}]
["Equity Grandfather","Equity Grandfather",null,"Long Positions - After - Preferred Stocks, BSCR Rating 6",null,null,null,null,null,null,null,null,{"$f":"'Non-Grandfathered Equity Part'!F23","v":0}]
["Equity Grandfather","Equity Grandfather",null,"Short - Before - Qualified Assets - Preferred Stocks, BSCR Rating 3",null,null,null,null,null,null,null,null,{"$f":"'Non-Grandfathered Equity Part'!H20","v":0}]
["Equity Grandfather","Equity Grandfather",null,"Short - After - Qualified Assets - Listed Equity Securities in Developed Markets",null,null,null,null,null,null,null,null,{"$f":"'Non-Grandfathered Equity Part'!J17","v":0}]
["Equity Grandfather","Equity Grandfather",null,"Short - After - Qualified Assets - Preferred Stocks, BSCR Rating 6",null,null,null,null,null,null,null,null,{"$f":"'Non-Grandfathered Equity Part'!J23","v":0}]
["Equity Grandfather","Equity Grandfather",null,"Short - Before - UnQualified Assets - Preferred Stocks, BSCR Rating 7",null,null,null,null,null,null,null,null,{"$f":"'Non-Grandfathered Equity Part'!L24","v":0}]
["Equity Grandfather","Equity Grandfather",null,"Short - After - UnQualified Assets - Preferred Stocks, BSCR Rating 1",null,null,null,null,null,null,null,null,{"$f":"'Non-Grandfathered Equity Part'!N18","v":0}]
["Equity Grandfather","Equity Grandfather",null,"Short - After - UnQualified Assets - Preferred Stocks, BSCR Rating 2",null,null,null,null,null,null,null,null,{"$f":"'Non-Grandfathered Equity Part'!N19","v":0}]
["Equity Grandfather","Equity Grandfather",null,"Short - After - UnQualified Assets - Preferred Stocks, BSCR Rating 3",null,null,null,null,null,null,null,null,{"$f":"'Non-Grandfathered Equity Part'!N20","v":0}]
["Equity Grandfather","Equity Grandfather",null,"Short - After - UnQualified Assets - Preferred Stocks, BSCR Rating 4",null,null,null,null,null,null,null,null,{"$f":"'Non-Grandfathered Equity Part'!N21","v":0}]
["Equity Grandfather","Equity Grandfather",null,"Short - After - UnQualified Assets - Preferred Stocks, BSCR Rating 5",null,null,null,null,null,null,null,null,{"$f":"'Non-Grandfathered Equity Part'!N22","v":0}]
["Equity Grandfather","Equity Grandfather",null,"Short - After - UnQualified Assets - Preferred Stocks, BSCR Rating 6",null,null,null,null,null,null,null,null,{"$f":"'Non-Grandfathered Equity Part'!N23","v":0}]
["Equity Grandfather","Equity Grandfather",null,"Short - After - UnQualified Assets - Preferred Stocks, BSCR Rating 7",null,null,null,null,null,null,null,null,{"$f":"'Non-Grandfathered Equity Part'!N24","v":0}]
["Equity Grandfather","Equity Grandfather",null,"Short - After - UnQualified Assets - Preferred Stocks, BSCR Rating 8",null,null,null,null,null,null,null,null,{"$f":"'Non-Grandfathered Equity Part'!N25","v":0}]
["Equity Grandfather","Equity Grandfather",null,"Short - After - UnQualified Assets - Equity Derivatives on Type 1 Equities",null,null,null,null,null,null,null,null,{"$f":"'Non-Grandfathered Equity Part'!N26","v":0}]
["Equity Grandfather","Equity Grandfather",null,"Short - After - UnQualified Assets - Strategic Holdings - Unlisted",null,null,null,null,null,null,null,null,{"$f":"'Non-Grandfathered Equity Part'!N27","v":0}]
["Equity Grandfather","Equity Grandfather",null,"Short - After - UnQualified Assets - Other Equities",null,null,null,null,null,null,null,null,{"$f":"'Non-Grandfathered Equity Part'!N28","v":0}]
["Equity Grandfather","Equity Grandfather",null,"Short - After - UnQualified Assets - Letters of Credit",null,null,null,null,null,null,null,null,{"$f":"'Non-Grandfathered Equity Part'!N29","v":0}]
["Equity Grandfather","Equity Grandfather",null,"Short - After - UnQualified Assets - Intangible assets",null,null,null,null,null,null,null,null,{"$f":"'Non-Grandfathered Equity Part'!N30","v":0}]
["Equity Grandfather","Equity Grandfather",null,"Short - After - UnQualified Assets - Pension Benefit Surplus",null,null,null,null,null,null,null,null,{"$f":"'Non-Grandfathered Equity Part'!N31","v":0}]
["Equity Grandfather","Equity Grandfather",null,"Short - After - UnQualified Assets - Equity Derivatives on Type 2 Equities",null,null,null,null,null,null,null,null,{"$f":"'Non-Grandfathered Equity Part'!N32","v":0}]
["Equity Grandfather","Equity Grandfather",null,"Short - After - UnQualified Assets - Infrastructure",null,null,null,null,null,null,null,null,{"$f":"'Non-Grandfathered Equity Part'!N33","v":0}]
["Equity Grandfather","Equity Grandfather",null,"Short - After - UnQualified Assets - Derivatives on Infrastructure",null,null,null,null,null,null,null,null,{"$f":"'Non-Grandfathered Equity Part'!N34","v":0}]
["Equity Grandfather","Equity Grandfather",null,"Short - After - UnQualified Assets - Equity Real Estate 1",null,null,null,null,null,null,null,null,{"$f":"'Non-Grandfathered Equity Part'!N35","v":0}]
["Equity Grandfather","Equity Grandfather",null,"Short - After - UnQualified Assets - Equity Real Estate 2",null,null,null,null,null,null,null,null,{"$f":"'Non-Grandfathered Equity Part'!N36","v":0}]
["Equity Grandfather","Equity Grandfather",null,"Liabilities - Before - W/O Mgmt Actions - Strategic Holdings - Listed",null,null,null,null,null,null,null,null,{"$f":"'Non-Grandfathered Equity Part'!P15","v":0}]
["Equity Grandfather","Equity Grandfather",null,"Liabilities - Before - W/O Mgmt Actions - Duration Based",null,null,null,null,null,null,null,null,{"$f":"'Non-Grandfathered Equity Part'!P16","v":0}]
["Equity Grandfather","Equity Grandfather",null,"Liabilities - Before - W/O Mgmt Actions - Listed Equity Securities in Developed Markets",null,null,null,null,null,null,null,null,{"$f":"'Non-Grandfathered Equity Part'!P17","v":0}]
["Equity Grandfather","Equity Grandfather",null,"Liabilities - Before - W/O Mgmt Actions - Preferred Stocks, BSCR Rating 1",null,null,null,null,null,null,null,null,{"$f":"'Non-Grandfathered Equity Part'!P18","v":0}]
["Equity Grandfather","Equity Grandfather",null,"Liabilities - Before - W/O Mgmt Actions - Preferred Stocks, BSCR Rating 2",null,null,null,null,null,null,null,null,{"$f":"'Non-Grandfathered Equity Part'!P19","v":0}]
["Equity Grandfather","Equity Grandfather",null,"Liabilities - Before - W/O Mgmt Actions - Preferred Stocks, BSCR Rating 3",null,null,null,null,null,null,null,null,{"$f":"'Non-Grandfathered Equity Part'!P20","v":0}]
["Equity Grandfather","Equity Grandfather",null,"Liabilities - Before - W/O Mgmt Actions - Preferred Stocks, BSCR Rating 4",null,null,null,null,null,null,null,null,{"$f":"'Non-Grandfathered Equity Part'!P21","v":0}]
["Equity Grandfather","Equity Grandfather",null,"Liabilities - Before - W/O Mgmt Actions - Preferred Stocks, BSCR Rating 5",null,null,null,null,null,null,null,null,{"$f":"'Non-Grandfathered Equity Part'!P22","v":0}]
["Equity Grandfather","Equity Grandfather",null,"Liabilities - Before - W/O Mgmt Actions - Preferred Stocks, BSCR Rating 6",null,null,null,null,null,null,null,null,{"$f":"'Non-Grandfathered Equity Part'!P23","v":0}]
["Equity Grandfather","Equity Grandfather",null,"Liabilities - Before - W/O Mgmt Actions - Preferred Stocks, BSCR Rating 7",null,null,null,null,null,null,null,null,{"$f":"'Non-Grandfathered Equity Part'!P24","v":0}]
["Equity Grandfather","Equity Grandfather",null,"Liabilities - Before - W/O Mgmt Actions - Preferred Stocks, BSCR Rating 8",null,null,null,null,null,null,null,null,{"$f":"'Non-Grandfathered Equity Part'!P25","v":0}]
["Equity Grandfather","Equity Grandfather",null,"Liabilities - Before - W/O Mgmt Actions - Equity Derivatives on Type 1 Equities",null,null,null,null,null,null,null,null,{"$f":"'Non-Grandfathered Equity Part'!P26","v":0}]
["Equity Grandfather","Equity Grandfather",null,"Liabilities - Before - W/O Mgmt Actions - Strategic Holdings - Unlisted",null,null,null,null,null,null,null,null,{"$f":"'Non-Grandfathered Equity Part'!P27","v":0}]
["Equity Grandfather","Equity Grandfather",null,"Liabilities - Before - W/O Mgmt Actions - Other Equities",null,null,null,null,null,null,null,null,{"$f":"'Non-Grandfathered Equity Part'!P28","v":0}]
["Equity Grandfather","Equity Grandfather",null,"Liabilities - Before - W/O Mgmt Actions - Letters of Credit",null,null,null,null,null,null,null,null,{"$f":"'Non-Grandfathered Equity Part'!P29","v":0}]
["Equity Grandfather","Equity Grandfather",null,"Liabilities - Before - W/O Mgmt Actions - Intangible assets",null,null,null,null,null,null,null,null,{"$f":"'Non-Grandfathered Equity Part'!P30","v":0}]
["Equity Grandfather","Equity Grandfather",null,"Liabilities - Before - W/O Mgmt Actions - Pension Benefit Surplus",null,null,null,null,null,null,null,null,{"$f":"'Non-Grandfathered Equity Part'!P31","v":0}]
["Equity Grandfather","Equity Grandfather",null,"Liabilities - Before - W/O Mgmt Actions - Equity Derivatives on Type 2 Equities",null,null,null,null,null,null,null,null,{"$f":"'Non-Grandfathered Equity Part'!P32","v":0}]
["Equity Grandfather","Equity Grandfather",null,"Liabilities - Before - W/O Mgmt Actions - Infrastructure",null,null,null,null,null,null,null,null,{"$f":"'Non-Grandfathered Equity Part'!P33","v":0}]
["Equity Grandfather","Equity Grandfather",null,"Liabilities - Before - W/O Mgmt Actions - Derivatives on Infrastructure",null,null,null,null,null,null,null,null,{"$f":"'Non-Grandfathered Equity Part'!P34","v":0}]
["Equity Grandfather","Equity Grandfather",null,"Liabilities - Before - W/O Mgmt Actions - Equity Real Estate 1",null,null,null,null,null,null,null,null,{"$f":"'Non-Grandfathered Equity Part'!P35","v":0}]
["Equity Grandfather","Equity Grandfather",null,"Liabilities - Before - W/O Mgmt Actions - Equity Real Estate 2",null,null,null,null,null,null,null,null,{"$f":"'Non-Grandfathered Equity Part'!P36","v":0}]
["Equity Grandfather","Equity Grandfather",null,"Liabilities - After - W/O Mgmt Actions - Strategic Holdings - Listed",null,null,null,null,null,null,null,null,{"$f":"'Non-Grandfathered Equity Part'!R15","v":0}]
["Equity Grandfather","Equity Grandfather",null,"Liabilities - After - W/O Mgmt Actions - Duration Based",null,null,null,null,null,null,null,null,{"$f":"'Non-Grandfathered Equity Part'!R16","v":0}]
["Equity Grandfather","Equity Grandfather",null,"Liabilities - After - W/O Mgmt Actions - Listed Equity Securities in Developed Markets",null,null,null,null,null,null,null,null,{"$f":"'Non-Grandfathered Equity Part'!R17","v":0}]
["Equity Grandfather","Equity Grandfather",null,"Liabilities - After - W/O Mgmt Actions - Preferred Stocks, BSCR Rating 1",null,null,null,null,null,null,null,null,{"$f":"'Non-Grandfathered Equity Part'!R18","v":0}]
["Equity Grandfather","Equity Grandfather",null,"Liabilities - After - W/O Mgmt Actions - Preferred Stocks, BSCR Rating 2",null,null,null,null,null,null,null,null,{"$f":"'Non-Grandfathered Equity Part'!R19","v":0}]
["Equity Grandfather","Equity Grandfather",null,"Liabilities - After - W/O Mgmt Actions - Preferred Stocks, BSCR Rating 3",null,null,null,null,null,null,null,null,{"$f":"'Non-Grandfathered Equity Part'!R20","v":0}]
["Equity Grandfather","Equity Grandfather",null,"Liabilities - After - W/O Mgmt Actions - Preferred Stocks, BSCR Rating 4",null,null,null,null,null,null,null,null,{"$f":"'Non-Grandfathered Equity Part'!R21","v":0}]
["Equity Grandfather","Equity Grandfather",null,"Liabilities - After - W/O Mgmt Actions - Preferred Stocks, BSCR Rating 5",null,null,null,null,null,null,null,null,{"$f":"'Non-Grandfathered Equity Part'!R22","v":0}]
["Equity Grandfather","Equity Grandfather",null,"Liabilities - After - W/O Mgmt Actions - Preferred Stocks, BSCR Rating 6",null,null,null,null,null,null,null,null,{"$f":"'Non-Grandfathered Equity Part'!R23","v":0}]
["Equity Grandfather","Equity Grandfather",null,"Liabilities - After - W/O Mgmt Actions - Preferred Stocks, BSCR Rating 7",null,null,null,null,null,null,null,null,{"$f":"'Non-Grandfathered Equity Part'!R24","v":0}]
["Equity Grandfather","Equity Grandfather",null,"Liabilities - After - W/O Mgmt Actions - Preferred Stocks, BSCR Rating 8",null,null,null,null,null,null,null,null,{"$f":"'Non-Grandfathered Equity Part'!R25","v":0}]
["Equity Grandfather","Equity Grandfather",null,"Liabilities - After - W/O Mgmt Actions - Equity Derivatives on Type 1 Equities",null,null,null,null,null,null,null,null,{"$f":"'Non-Grandfathered Equity Part'!R26","v":0}]
["Equity Grandfather","Equity Grandfather",null,"Liabilities - After - W/O Mgmt Actions - Strategic Holdings - Unlisted",null,null,null,null,null,null,null,null,{"$f":"'Non-Grandfathered Equity Part'!R27","v":0}]
["Equity Grandfather","Equity Grandfather",null,"Liabilities - After - W/O Mgmt Actions - Other Equities",null,null,null,null,null,null,null,null,{"$f":"'Non-Grandfathered Equity Part'!R28","v":0}]
["Equity Grandfather","Equity Grandfather",null,"Liabilities - After - W/O Mgmt Actions - Letters of Credit",null,null,null,null,null,null,null,null,{"$f":"'Non-Grandfathered Equity Part'!R29","v":0}]
["Equity Grandfather","Equity Grandfather",null,"Liabilities - After - W/O Mgmt Actions - Intangible assets",null,null,null,null,null,null,null,null,{"$f":"'Non-Grandfathered Equity Part'!R30","v":0}]
["Equity Grandfather","Equity Grandfather",null,"Liabilities - After - W/O Mgmt Actions - Pension Benefit Surplus",null,null,null,null,null,null,null,null,{"$f":"'Non-Grandfathered Equity Part'!R31","v":0}]
["Equity Grandfather","Equity Grandfather",null,"Liabilities - After - W/O Mgmt Actions - Equity Derivatives on Type 2 Equities",null,null,null,null,null,null,null,null,{"$f":"'Non-Grandfathered Equity Part'!R32","v":0}]
["Equity Grandfather","Equity Grandfather",null,"Liabilities - After - W/O Mgmt Actions - Infrastructure",null,null,null,null,null,null,null,null,{"$f":"'Non-Grandfathered Equity Part'!R33","v":0}]
["Equity Grandfather","Equity Grandfather",null,"Liabilities - After - W/O Mgmt Actions - Derivatives on Infrastructure",null,null,null,null,null,null,null,null,{"$f":"'Non-Grandfathered Equity Part'!R34","v":0}]
["Equity Grandfather","Equity Grandfather",null,"Liabilities - After - W/O Mgmt Actions - Equity Real Estate 1",null,null,null,null,null,null,null,null,{"$f":"'Non-Grandfathered Equity Part'!R35","v":0}]
["Equity Grandfather","Equity Grandfather",null,"Liabilities - After - W/O Mgmt Actions - Equity Real Estate 2",null,null,null,null,null,null,null,null,{"$f":"'Non-Grandfathered Equity Part'!R36","v":0}]
["Equity Grandfather","Equity Grandfather",null,"Liabilities - After - With Mgmt Actions - Strategic Holdings - Listed",null,null,null,null,null,null,null,null,{"$f":"'Non-Grandfathered Equity Part'!T15","v":0}]
["Equity Grandfather","Equity Grandfather",null,"Liabilities - After - With Mgmt Actions - Duration Based",null,null,null,null,null,null,null,null,{"$f":"'Non-Grandfathered Equity Part'!T16","v":0}]
["Equity Grandfather","Equity Grandfather",null,"Liabilities - After - With Mgmt Actions - Listed Equity Securities in Developed Markets",null,null,null,null,null,null,null,null,{"$f":"'Non-Grandfathered Equity Part'!T17","v":0}]
["Equity Grandfather","Equity Grandfather",null,"Liabilities - After - With Mgmt Actions - Preferred Stocks, BSCR Rating 1",null,null,null,null,null,null,null,null,{"$f":"'Non-Grandfathered Equity Part'!T18","v":0}]
["Equity Grandfather","Equity Grandfather",null,"Liabilities - After - With Mgmt Actions - Preferred Stocks, BSCR Rating 2",null,null,null,null,null,null,null,null,{"$f":"'Non-Grandfathered Equity Part'!T19","v":0}]
["Equity Grandfather","Equity Grandfather",null,"Liabilities - After - With Mgmt Actions - Preferred Stocks, BSCR Rating 3",null,null,null,null,null,null,null,null,{"$f":"'Non-Grandfathered Equity Part'!T20","v":0}]
["Equity Grandfather","Equity Grandfather",null,"Liabilities - After - With Mgmt Actions - Preferred Stocks, BSCR Rating 4",null,null,null,null,null,null,null,null,{"$f":"'Non-Grandfathered Equity Part'!T21","v":0}]
["Equity Grandfather","Equity Grandfather",null,"Liabilities - After - With Mgmt Actions - Preferred Stocks, BSCR Rating 5",null,null,null,null,null,null,null,null,{"$f":"'Non-Grandfathered Equity Part'!T22","v":0}]
["Equity Grandfather","Equity Grandfather",null,"Liabilities - After - With Mgmt Actions - Preferred Stocks, BSCR Rating 6",null,null,null,null,null,null,null,null,{"$f":"'Non-Grandfathered Equity Part'!T23","v":0}]
["Equity Grandfather","Equity Grandfather",null,"Liabilities - After - With Mgmt Actions - Preferred Stocks, BSCR Rating 7",null,null,null,null,null,null,null,null,{"$f":"'Non-Grandfathered Equity Part'!T24","v":0}]
["Equity Grandfather","Equity Grandfather",null,"Liabilities - After - With Mgmt Actions - Preferred Stocks, BSCR Rating 8",null,null,null,null,null,null,null,null,{"$f":"'Non-Grandfathered Equity Part'!T25","v":0}]
["Equity Grandfather","Equity Grandfather",null,"Liabilities - After - With Mgmt Actions - Equity Derivatives on Type 1 Equities",null,null,null,null,null,null,null,null,{"$f":"'Non-Grandfathered Equity Part'!T26","v":0}]
["Equity Grandfather","Equity Grandfather",null,"Liabilities - After - With Mgmt Actions - Strategic Holdings - Unlisted",null,null,null,null,null,null,null,null,{"$f":"'Non-Grandfathered Equity Part'!T27","v":0}]
["Equity Grandfather","Equity Grandfather",null,"Liabilities - After - With Mgmt Actions - Other Equities",null,null,null,null,null,null,null,null,{"$f":"'Non-Grandfathered Equity Part'!T28","v":0}]
["Equity Grandfather","Equity Grandfather",null,"Liabilities - After - With Mgmt Actions - Letters of Credit",null,null,null,null,null,null,null,null,{"$f":"'Non-Grandfathered Equity Part'!T29","v":0}]
["Equity Grandfather","Equity Grandfather",null,"Liabilities - After - With Mgmt Actions - Intangible assets",null,null,null,null,null,null,null,null,{"$f":"'Non-Grandfathered Equity Part'!T30","v":0}]
["Equity Grandfather","Equity Grandfather",null,"Liabilities - After - With Mgmt Actions - Pension Benefit Surplus",null,null,null,null,null,null,null,null,{"$f":"'Non-Grandfathered Equity Part'!T31","v":0}]
["Equity Grandfather","Equity Grandfather",null,"Liabilities - After - With Mgmt Actions - Equity Derivatives on Type 2 Equities",null,null,null,null,null,null,null,null,{"$f":"'Non-Grandfathered Equity Part'!T32","v":0}]
["Equity Grandfather","Equity Grandfather",null,"Liabilities - After - With Mgmt Actions - Infrastructure",null,null,null,null,null,null,null,null,{"$f":"'Non-Grandfathered Equity Part'!T33","v":0}]
["Equity Grandfather","Equity Grandfather",null,"Liabilities - After - With Mgmt Actions - Derivatives on Infrastructure",null,null,null,null,null,null,null,null,{"$f":"'Non-Grandfathered Equity Part'!T34","v":0}]
["Equity Grandfather","Equity Grandfather",null,"Liabilities - After - With Mgmt Actions - Equity Real Estate 1",null,null,null,null,null,null,null,null,{"$f":"'Non-Grandfathered Equity Part'!T35","v":0}]
["Equity Grandfather","Equity Grandfather",null,"Liabilities - After - With Mgmt Actions - Equity Real Estate 2",null,null,null,null,null,null,null,null,{"$f":"'Non-Grandfathered Equity Part'!T36","v":0}]
[]
["Equity Grandfather","Equity Grandfather",null,"Common Shares - Quoted",null,null,null,null,null,null,null,null,{"$f":"'Grandfathered Equity Part'!D11","v":0}]
["Equity Grandfather","Equity Grandfather",null,"Common Shares - Unquoted",null,null,null,null,null,null,null,null,{"$f":"'Grandfathered Equity Part'!D12","v":0}]
["Equity Grandfather","Equity Grandfather",null,"Equity Mutual Funds",null,null,null,null,null,null,null,null,{"$f":"'Grandfathered Equity Part'!D13","v":0}]
["Equity Grandfather","Equity Grandfather",null,"Preferred Shares - BSCR Rate 1",null,null,null,null,null,null,null,null,{"$f":"'Grandfathered Equity Part'!D20","v":0}]
["Equity Grandfather","Equity Grandfather",null,"Preferred Shares - BSCR Rate 2",null,null,null,null,null,null,null,null,{"$f":"'Grandfathered Equity Part'!D21","v":0}]
["Equity Grandfather","Equity Grandfather",null,"Preferred Shares - BSCR Rate 3",null,null,null,null,null,null,null,null,{"$f":"'Grandfathered Equity Part'!D22","v":0}]
["Equity Grandfather","Equity Grandfather",null,"Preferred Shares - BSCR Rate 4",null,null,null,null,null,null,null,null,{"$f":"'Grandfathered Equity Part'!D23","v":0}]
["Equity Grandfather","Equity Grandfather",null,"Preferred Shares - BSCR Rate 5",null,null,null,null,null,null,null,null,{"$f":"'Grandfathered Equity Part'!D24","v":0}]
["Equity Grandfather","Equity Grandfather",null,"Preferred Shares - BSCR Rate 6",null,null,null,null,null,null,null,null,{"$f":"'Grandfathered Equity Part'!D25","v":0}]
["Equity Grandfather","Equity Grandfather",null,"Preferred Shares - BSCR Rate 7",null,null,null,null,null,null,null,null,{"$f":"'Grandfathered Equity Part'!D26","v":0}]
["Equity Grandfather","Equity Grandfather",null,"Preferred Shares - BSCR Rate 8",null,null,null,null,null,null,null,null,{"$f":"'Grandfathered Equity Part'!D27","v":0}]
["Equity Grandfather","Equity Grandfather",null,"Real Estate - Occupied by Company",null,null,null,null,null,null,null,null,{"$f":"'Grandfathered Equity Part'!D34","v":0}]
["Equity Grandfather","Equity Grandfather",null,"Real Estate - Other",null,null,null,null,null,null,null,null,{"$f":"'Grandfathered Equity Part'!D35","v":0}]
["Equity Grandfather","Equity Grandfather",null,"Other Investments",null,null,null,null,null,null,null,null,{"$f":"'Grandfathered Equity Part'!D37","v":0}]
["Equity Grandfather","Equity Grandfather",null,"Sundry Assets",null,null,null,null,null,null,null,null,{"$f":"'Grandfathered Equity Part'!D38","v":0}]
["Equity Grandfather","Equity Grandfather",null,"Inv. In Affiliates - Unregulated Ancillary",null,null,null,null,null,null,null,null,{"$f":"'Grandfathered Equity Part'!D44","v":0}]
["Equity Grandfather","Equity Grandfather",null,"Inv. In Affiliates - Unregulated Non-Fin. Oper.",null,null,null,null,null,null,null,null,{"$f":"'Grandfathered Equity Part'!D45","v":0}]
["Equity Grandfather","Equity Grandfather",null,"Inv. In Affiliates - Unregulated Fin. Operating",null,null,null,null,null,null,null,null,{"$f":"'Grandfathered Equity Part'!D46","v":0}]
["Equity Grandfather","Equity Grandfather",null,"Inv. In Affiliates - Regulated Insurance",null,null,null,null,null,null,null,null,{"$f":"'Grandfathered Equity Part'!D47","v":0}]
[]
["AML","AML Questionnaire",null,"A.1 # of Policies",{"$f":"'AML (LT Direct Only)'!I10","v":0}]
["AML","AML Questionnaire",null,"A.2 Risk Rate Policies",{"$f":"'AML (LT Direct Only)'!I12","v":"Select Yes/No"}]
["AML","AML Questionnaire",null,"A.3 # Policies - Low Risk",{"$f":"'AML (LT Direct Only)'!I16","v":0}]
["AML","AML Questionnaire",null,"A.3 # Policies - Medium Risk",{"$f":"'AML (LT Direct Only)'!I17","v":0}]
["AML","AML Questionnaire",null,"A.3 # Policies - High Risk",{"$f":"'AML (LT Direct Only)'!I18","v":0}]
["AML","AML Questionnaire",null,"A.3 # Policies - Unknown Risk",{"$f":"'AML (LT Direct Only)'!I19","v":0}]
["AML","AML Questionnaire",null,"A.3 # Policies - Total Risk",{"$f":"'AML (LT Direct Only)'!I20","v":0}]
["AML","AML Questionnaire",null,"B.1 GPW",{"$f":"'AML (LT Direct Only)'!I22","v":0}]
["AML","AML Questionnaire",null,"B.1(a) % Unrelated",{"$f":"'AML (LT Direct Only)'!I23","v":0}]
["AML","AML Questionnaire",null,"B.1(b) % incidental",{"$f":"'AML (LT Direct Only)'!I24","v":0}]
["AML","AML Questionnaire",null,"B.1 GPW - (i) Mortality - Term Assurance",{"$f":"'AML (LT Direct Only)'!G29","v":0}]
["AML","AML Questionnaire",null,"B.1 GPW - (ii) Mortality - Whole Life",{"$f":"'AML (LT Direct Only)'!G30","v":0}]
["AML","AML Questionnaire",null,"B.1 GPW - (iii) Mortality - Universal Life",{"$f":"'AML (LT Direct Only)'!G31","v":0}]
["AML","AML Questionnaire",null,"B.1 GPW - (b) Critical Illness ",{"$f":"'AML (LT Direct Only)'!G32","v":0}]
["AML","AML Questionnaire",null,"B.1 GPW - (c) Longevity (immediate pay-out annuities)",{"$f":"'AML (LT Direct Only)'!G33","v":0}]
["AML","AML Questionnaire",null,"B.1 GPW - (d) Longevity (deferred pay-out annuities)",{"$f":"'AML (LT Direct Only)'!G34","v":0}]
["AML","AML Questionnaire",null,"B.1 GPW - (e) Annuities certain only",{"$f":"'AML (LT Direct Only)'!G35","v":0}]
["AML","AML Questionnaire",null,"B.1 GPW - (f) Deferred accumulation annuities",{"$f":"'AML (LT Direct Only)'!G36","v":0}]
["AML","AML Questionnaire",null,"B.1 GPW - (g) Disability Income: active lives - including waiver of premium and long-term care",{"$f":"'AML (LT Direct Only)'!G37","v":0}]
["AML","AML Questionnaire",null,"B.1 GPW - (h) Disability income: active lives - other accident and sickness",{"$f":"'AML (LT Direct Only)'!G38","v":0}]
["AML","AML Questionnaire",null,"B.1 GPW - (i) Disability income: claims in payment - including waiver of premium and long-term care",{"$f":"'AML (LT Direct Only)'!G39","v":0}]
["AML","AML Questionnaire",null,"B.1 GPW - (j) Disability income: claims in payment - other accident and sickness",{"$f":"'AML (LT Direct Only)'!G40","v":0}]
["AML","AML Questionnaire",null,"B.1 GPW - (k) Group Life",{"$f":"'AML (LT Direct Only)'!G41","v":0}]
["AML","AML Questionnaire",null,"B.1 GPW - (l) Group Disability",{"$f":"'AML (LT Direct Only)'!G42","v":0}]
["AML","AML Questionnaire",null,"B.1 GPW - (m) Group Health",{"$f":"'AML (LT Direct Only)'!G43","v":0}]
["AML","AML Questionnaire",null,"B.1 GPW - (n) Stop Loss",{"$f":"'AML (LT Direct Only)'!G44","v":0}]
["AML","AML Questionnaire",null,"B.1 GPW - (o) Rider ",{"$f":"'AML (LT Direct Only)'!G45","v":0}]
["AML","AML Questionnaire",null,"B.1 GPW - (p) Variable Annuities",{"$f":"'AML (LT Direct Only)'!G46","v":0}]
["AML","AML Questionnaire",null,"B.1 GPW - (q) Other Lines of Business",{"$f":"'AML (LT Direct Only)'!G47","v":0}]
["AML","AML Questionnaire",null,"B.1 GPW - General Business",{"$f":"'AML (LT Direct Only)'!G49","v":0}]
["AML","AML Questionnaire",null,"B.1 GPW - Other LOB",{"$f":"'AML (LT Direct Only)'!G50","v":0}]
["AML","AML Questionnaire",null,"B.1 GPW - Total GPW",{"$f":"'AML (LT Direct Only)'!G52","v":0}]
["AML","AML Questionnaire",null,"B.1 # Policies - (i) Mortality - Term Assurance",{"$f":"'AML (LT Direct Only)'!I29","v":0}]
["AML","AML Questionnaire",null,"B.1 # Policies - (ii) Mortality - Whole Life",{"$f":"'AML (LT Direct Only)'!I30","v":0}]
["AML","AML Questionnaire",null,"B.1 # Policies - (iii) Mortality - Universal Life",{"$f":"'AML (LT Direct Only)'!I31","v":0}]
["AML","AML Questionnaire",null,"B.1 # Policies - (b) Critical Illness ",{"$f":"'AML (LT Direct Only)'!I32","v":0}]
["AML","AML Questionnaire",null,"B.1 # Policies - (c) Longevity (immediate pay-out annuities)",{"$f":"'AML (LT Direct Only)'!I33","v":0}]
["AML","AML Questionnaire",null,"B.1 # Policies - (d) Longevity (deferred pay-out annuities)",{"$f":"'AML (LT Direct Only)'!I34","v":0}]
["AML","AML Questionnaire",null,"B.1 # Policies - (e) Annuities certain only",{"$f":"'AML (LT Direct Only)'!I35","v":0}]
["AML","AML Questionnaire",null,"B.1 # Policies - (f) Deferred accumulation annuities",{"$f":"'AML (LT Direct Only)'!I36","v":0}]
["AML","AML Questionnaire",null,"B.1 # Policies - (g) Disability Income: active lives - including waiver of premium and long-term care",{"$f":"'AML (LT Direct Only)'!I37","v":0}]
["AML","AML Questionnaire",null,"B.1 # Policies - (h) Disability income: active lives - other accident and sickness",{"$f":"'AML (LT Direct Only)'!I38","v":0}]
["AML","AML Questionnaire",null,"B.1 # Policies - (i) Disability income: claims in payment - including waiver of premium and long-term care",{"$f":"'AML (LT Direct Only)'!I39","v":0}]
["AML","AML Questionnaire",null,"B.1 # Policies - (j) Disability income: claims in payment - other accident and sickness",{"$f":"'AML (LT Direct Only)'!I40","v":0}]
["AML","AML Questionnaire",null,"B.1 # Policies - (k) Group Life",{"$f":"'AML (LT Direct Only)'!I41","v":0}]
["AML","AML Questionnaire",null,"B.1 # Policies - (l) Group Disability",{"$f":"'AML (LT Direct Only)'!I42","v":0}]
["AML","AML Questionnaire",null,"B.1 # Policies - (m) Group Health",{"$f":"'AML (LT Direct Only)'!I43","v":0}]
["AML","AML Questionnaire",null,"B.1 # Policies - (n) Stop Loss",{"$f":"'AML (LT Direct Only)'!I44","v":0}]
["AML","AML Questionnaire",null,"B.1 # Policies - (o) Rider",{"$f":"'AML (LT Direct Only)'!I45","v":0}]
["AML","AML Questionnaire",null,"B.1 # Policies - (p) Variable Annuities",{"$f":"'AML (LT Direct Only)'!I46","v":0}]
["AML","AML Questionnaire",null,"B.1 # Policies - (q) Other Lines of Business",{"$f":"'AML (LT Direct Only)'!I47","v":0}]
["AML","AML Questionnaire",null,"B.1 # Policies - General Business",{"$f":"'AML (LT Direct Only)'!I49","v":0}]
["AML","AML Questionnaire",null,"B.1 # Policies - Other LOB",{"$f":"'AML (LT Direct Only)'!I50","v":0}]
["AML","AML Questionnaire",null,"B.1 # Policies - Total # Policies",{"$f":"'AML (LT Direct Only)'!I52","v":0}]
["AML","AML Questionnaire",null,"B.2 Paid - (i) Mortality - Term Assurance",{"$f":"'AML (LT Direct Only)'!G58","v":0}]
["AML","AML Questionnaire",null,"B.2 Paid - (ii) Mortality - Whole Life",{"$f":"'AML (LT Direct Only)'!G59","v":0}]
["AML","AML Questionnaire",null,"B.2 Paid - (iii) Mortality - Universal Life",{"$f":"'AML (LT Direct Only)'!G60","v":0}]
["AML","AML Questionnaire",null,"B.2 Paid - (b) Critical Illness ",{"$f":"'AML (LT Direct Only)'!G61","v":0}]
["AML","AML Questionnaire",null,"B.2 Paid - (c) Longevity (immediate pay-out annuities)",{"$f":"'AML (LT Direct Only)'!G62","v":0}]
["AML","AML Questionnaire",null,"B.2 Paid - (d) Longevity (deferred pay-out annuities)",{"$f":"'AML (LT Direct Only)'!G63","v":0}]
["AML","AML Questionnaire",null,"B.2 Paid - (e) Annuities certain only",{"$f":"'AML (LT Direct Only)'!G64","v":0}]
["AML","AML Questionnaire",null,"B.2 Paid - (f) Deferred accumulation annuities",{"$f":"'AML (LT Direct Only)'!G65","v":0}]
["AML","AML Questionnaire",null,"B.2 Paid - (g) Disability Income: active lives - including waiver of premium and long-term care",{"$f":"'AML (LT Direct Only)'!G66","v":0}]
["AML","AML Questionnaire",null,"B.2 Paid - (h) Disability income: active lives - other accident and sickness",{"$f":"'AML (LT Direct Only)'!G67","v":0}]
["AML","AML Questionnaire",null,"B.2 Paid - (i) Disability income: claims in payment - including waiver of premium and long-term care",{"$f":"'AML (LT Direct Only)'!G68","v":0}]
["AML","AML Questionnaire",null,"B.2 Paid - (j) Disability income: claims in payment - other accident and sickness",{"$f":"'AML (LT Direct Only)'!G69","v":0}]
["AML","AML Questionnaire",null,"B.2 Paid - (k) Group Life",{"$f":"'AML (LT Direct Only)'!G70","v":0}]
["AML","AML Questionnaire",null,"B.2 Paid - (l) Group Disability",{"$f":"'AML (LT Direct Only)'!G71","v":0}]
["AML","AML Questionnaire",null,"B.2 Paid - (m) Group Health",{"$f":"'AML (LT Direct Only)'!G72","v":0}]
["AML","AML Questionnaire",null,"B.2 Paid - (n) Stop Loss",{"$f":"'AML (LT Direct Only)'!G73","v":0}]
["AML","AML Questionnaire",null,"B.2 Paid - (o) Rider ",{"$f":"'AML (LT Direct Only)'!G74","v":0}]
["AML","AML Questionnaire",null,"B.2 Paid - (p) Variable Annuities",{"$f":"'AML (LT Direct Only)'!G75","v":0}]
["AML","AML Questionnaire",null,"B.2 Paid - (q) Other Lines of Business",{"$f":"'AML (LT Direct Only)'!G76","v":0}]
["AML","AML Questionnaire",null,"B.2 Paid - General Business",{"$f":"'AML (LT Direct Only)'!G78","v":0}]
["AML","AML Questionnaire",null,"B.2 Paid - Other LOB",{"$f":"'AML (LT Direct Only)'!G79","v":0}]
["AML","AML Questionnaire",null,"B.2 Paid - Total Paid",{"$f":"'AML (LT Direct Only)'!G81","v":0}]
["AML","AML Questionnaire",null,"B.2 # Policies - (i) Mortality - Term Assurance",{"$f":"'AML (LT Direct Only)'!I58","v":0}]
["AML","AML Questionnaire",null,"B.2 # Policies - (ii) Mortality - Whole Life",{"$f":"'AML (LT Direct Only)'!I59","v":0}]
["AML","AML Questionnaire",null,"B.2 # Policies - (iii) Mortality - Universal Life",{"$f":"'AML (LT Direct Only)'!I60","v":0}]
["AML","AML Questionnaire",null,"B.2 # Policies - (b) Critical Illness ",{"$f":"'AML (LT Direct Only)'!I61","v":0}]
["AML","AML Questionnaire",null,"B.2 # Policies - (c) Longevity (immediate pay-out annuities)",{"$f":"'AML (LT Direct Only)'!I62","v":0}]
["AML","AML Questionnaire",null,"B.2 # Policies - (d) Longevity (deferred pay-out annuities)",{"$f":"'AML (LT Direct Only)'!I63","v":0}]
["AML","AML Questionnaire",null,"B.2 # Policies - (e) Annuities certain only",{"$f":"'AML (LT Direct Only)'!I64","v":0}]
["AML","AML Questionnaire",null,"B.2 # Policies - (f) Deferred accumulation annuities",{"$f":"'AML (LT Direct Only)'!I65","v":0}]
["AML","AML Questionnaire",null,"B.2 # Policies - (g) Disability Income: active lives - including waiver of premium and long-term care",{"$f":"'AML (LT Direct Only)'!I66","v":0}]
["AML","AML Questionnaire",null,"B.2 # Policies - (h) Disability income: active lives - other accident and sickness",{"$f":"'AML (LT Direct Only)'!I67","v":0}]
["AML","AML Questionnaire",null,"B.2 # Policies - (i) Disability income: claims in payment - including waiver of premium and long-term care",{"$f":"'AML (LT Direct Only)'!I68","v":0}]
["AML","AML Questionnaire",null,"B.2 # Policies - (j) Disability income: claims in payment - other accident and sickness",{"$f":"'AML (LT Direct Only)'!I69","v":0}]
["AML","AML Questionnaire",null,"B.2 # Policies - (k) Group Life",{"$f":"'AML (LT Direct Only)'!I70","v":0}]
["AML","AML Questionnaire",null,"B.2 # Policies - (l) Group Disability",{"$f":"'AML (LT Direct Only)'!I71","v":0}]
["AML","AML Questionnaire",null,"B.2 # Policies - (m) Group Health",{"$f":"'AML (LT Direct Only)'!I72","v":0}]
["AML","AML Questionnaire",null,"B.2 # Policies - (n) Stop Loss",{"$f":"'AML (LT Direct Only)'!I73","v":0}]
["AML","AML Questionnaire",null,"B.2 # Policies - (o) Rider",{"$f":"'AML (LT Direct Only)'!I74","v":0}]
["AML","AML Questionnaire",null,"B.2 # Policies - (p) Variable Annuities",{"$f":"'AML (LT Direct Only)'!I75","v":0}]
["AML","AML Questionnaire",null,"B.2 # Policies - (q) Other Lines of Business",{"$f":"'AML (LT Direct Only)'!I76","v":0}]
["AML","AML Questionnaire",null,"B.2 # Policies - General Business",{"$f":"'AML (LT Direct Only)'!I78","v":0}]
["AML","AML Questionnaire",null,"B.2 # Policies - Other LOB",{"$f":"'AML (LT Direct Only)'!I79","v":0}]
["AML","AML Questionnaire",null,"B.2 # Policies - Total # Policies",{"$f":"'AML (LT Direct Only)'!I81","v":0}]
["AML","AML Questionnaire",null,"B.3 Premium - Bank Transfer",{"$f":"'AML (LT Direct Only)'!G85","v":0}]
["AML","AML Questionnaire",null,"B.3 Premium - Cash",{"$f":"'AML (LT Direct Only)'!G86","v":0}]
["AML","AML Questionnaire",null,"B.3 Premium - Cheque",{"$f":"'AML (LT Direct Only)'!G87","v":0}]
["AML","AML Questionnaire",null,"B.3 Premium - Credit Card",{"$f":"'AML (LT Direct Only)'!G88","v":0}]
["AML","AML Questionnaire",null,"B.3 Premium - Virtual Currencies",{"$f":"'AML (LT Direct Only)'!G89","v":0}]
["AML","AML Questionnaire",null,"B.3 Premium - Other",{"$f":"'AML (LT Direct Only)'!G90","v":0}]
["AML","AML Questionnaire",null,"B.3 Premium - Total",{"$f":"SUM(E40469:E40474)","v":0}]
["AML","AML Questionnaire",null,"B.3 Claims - Bank Transfer",{"$f":"'AML (LT Direct Only)'!I85","v":0}]
["AML","AML Questionnaire",null,"B.3 Claims - Cash",{"$f":"'AML (LT Direct Only)'!I86","v":0}]
["AML","AML Questionnaire",null,"B.3 Claims - Cheque",{"$f":"'AML (LT Direct Only)'!I87","v":0}]
["AML","AML Questionnaire",null,"B.3 Claims - Credit Card",{"$f":"'AML (LT Direct Only)'!I88","v":0}]
["AML","AML Questionnaire",null,"B.3 Claims - Virtual Currencies",{"$f":"'AML (LT Direct Only)'!I89","v":0}]
["AML","AML Questionnaire",null,"B.3 Claims - Other",{"$f":"'AML (LT Direct Only)'!I90","v":0}]
["AML","AML Questionnaire",null,"B.3 Claims - Total",{"$f":"SUM(E40476:E40481)","v":0}]
["AML","AML Questionnaire",null,"B.3 Other Details",{"$f":"'AML (LT Direct Only)'!C92","v":0}]
["AML","AML Questionnaire",null,"B.4 Accept 3rd Party Payments",{"$f":"'AML (LT Direct Only)'!I98","v":"Select Yes/No"}]
["AML","AML Questionnaire",null,"B.4 If yes, Details",{"$f":"'AML (LT Direct Only)'!C100","v":0}]
["AML","AML Questionnaire",null,"C.1 Business Relationships - Face to Face",{"$f":"'AML (LT Direct Only)'!G109","v":0}]
["AML","AML Questionnaire",null,"C.1 Business Relationships - Intermediary",{"$f":"'AML (LT Direct Only)'!G110","v":0}]
["AML","AML Questionnaire",null,"C.1 Business Relationships - Phone, Email",{"$f":"'AML (LT Direct Only)'!G111","v":0}]
["AML","AML Questionnaire",null,"C.1 Business Relationships - Other",{"$f":"'AML (LT Direct Only)'!G112","v":0}]
["AML","AML Questionnaire",null,"C.1 Business Relationships - Total",{"$f":"'AML (LT Direct Only)'!G113","v":0}]
["AML","AML Questionnaire",null,"D.1 PEP's Identified",{"$f":"'AML (LT Direct Only)'!I116","v":"Select Yes/No"}]
["AML","AML Questionnaire",null,"D.2 GPW - Zone 1 - Central & Western Asia",{"$f":"'AML (LT Direct Only)'!E123","v":0}]
["AML","AML Questionnaire",null,"D.2 GPW - Zone 2 - Eastern Asia",{"$f":"'AML (LT Direct Only)'!E124","v":0}]
["AML","AML Questionnaire",null,"D.2 GPW - Zone 3 - South & South Eastern Asia",{"$f":"'AML (LT Direct Only)'!E125","v":0}]
["AML","AML Questionnaire",null,"D.2 GPW - Zone 4 - Oceania",{"$f":"'AML (LT Direct Only)'!E126","v":0}]
["AML","AML Questionnaire",null,"D.2 GPW - Zone 5 - Northern Africa",{"$f":"'AML (LT Direct Only)'!E127","v":0}]
["AML","AML Questionnaire",null,"D.2 GPW - Zone 6 - Southern Africa",{"$f":"'AML (LT Direct Only)'!E128","v":0}]
["AML","AML Questionnaire",null,"D.2 GPW - Zone 7 - Eastern Europe",{"$f":"'AML (LT Direct Only)'!E129","v":0}]
["AML","AML Questionnaire",null,"D.2 GPW - Zone 8 - Northern Europe",{"$f":"'AML (LT Direct Only)'!E130","v":0}]
["AML","AML Questionnaire",null,"D.2 GPW - Zone 9 - Southern Europe",{"$f":"'AML (LT Direct Only)'!E131","v":0}]
["AML","AML Questionnaire",null,"D.2 GPW - Zone 10 - Western Europe",{"$f":"'AML (LT Direct Only)'!E132","v":0}]
["AML","AML Questionnaire",null,"D.2 GPW - Zone 11 -  North America ",{"$f":"'AML (LT Direct Only)'!E133","v":0}]
["AML","AML Questionnaire",null,"D.2 GPW - Zone 12 - Caribbean",{"$f":"'AML (LT Direct Only)'!E134","v":0}]
["AML","AML Questionnaire",null,"D.2 GPW - Zone 13 - Eastern South America",{"$f":"'AML (LT Direct Only)'!E135","v":0}]
["AML","AML Questionnaire",null,"D.2 GPW - Zone 14 - N, S & W South America",{"$f":"'AML (LT Direct Only)'!E136","v":0}]
["AML","AML Questionnaire",null,"D.2 GPW - Zone 15 - North East United States",{"$f":"'AML (LT Direct Only)'!E137","v":0}]
["AML","AML Questionnaire",null,"D.2 GPW - Zone 16 - South-East United States",{"$f":"'AML (LT Direct Only)'!E138","v":0}]
["AML","AML Questionnaire",null,"D.2 GPW - Zone 17 - Mid-West United States",{"$f":"'AML (LT Direct Only)'!E139","v":0}]
["AML","AML Questionnaire",null,"D.2 GPW - Zone 18 - Western United States",{"$f":"'AML (LT Direct Only)'!E140","v":0}]
["AML","AML Questionnaire",null,"D.2 GPW - Zone 19 - Central America",{"$f":"'AML (LT Direct Only)'!E141","v":0}]
["AML","AML Questionnaire",null,"D.2 GPW - Zone 20 - Bermuda",{"$f":"'AML (LT Direct Only)'!E142","v":0}]
["AML","AML Questionnaire",null,"D.2 GPW - Zone 20 - Total",{"$f":"'AML (LT Direct Only)'!E143","v":0}]
["AML","AML Questionnaire",null,"D.2 # of Policies - Zone 1 - Central & Western Asia",{"$f":"'AML (LT Direct Only)'!G123","v":0}]
["AML","AML Questionnaire",null,"D.2 # of Policies - Zone 2 - Eastern Asia",{"$f":"'AML (LT Direct Only)'!G124","v":0}]
["AML","AML Questionnaire",null,"D.2 # of Policies - Zone 3 - South & South Eastern Asia",{"$f":"'AML (LT Direct Only)'!G125","v":0}]
["AML","AML Questionnaire",null,"D.2 # of Policies - Zone 4 - Oceania",{"$f":"'AML (LT Direct Only)'!G126","v":0}]
["AML","AML Questionnaire",null,"D.2 # of Policies - Zone 5 - Northern Africa",{"$f":"'AML (LT Direct Only)'!G127","v":0}]
["AML","AML Questionnaire",null,"D.2 # of Policies - Zone 6 - Southern Africa",{"$f":"'AML (LT Direct Only)'!G128","v":0}]
["AML","AML Questionnaire",null,"D.2 # of Policies - Zone 7 - Eastern Europe",{"$f":"'AML (LT Direct Only)'!G129","v":0}]
["AML","AML Questionnaire",null,"D.2 # of Policies - Zone 8 - Northern Europe",{"$f":"'AML (LT Direct Only)'!G130","v":0}]
["AML","AML Questionnaire",null,"D.2 # of Policies - Zone 9 - Southern Europe",{"$f":"'AML (LT Direct Only)'!G131","v":0}]
["AML","AML Questionnaire",null,"D.2 # of Policies - Zone 10 - Western Europe",{"$f":"'AML (LT Direct Only)'!G132","v":0}]
["AML","AML Questionnaire",null,"D.2 # of Policies - Zone 11 -  North America ",{"$f":"'AML (LT Direct Only)'!G133","v":0}]
["AML","AML Questionnaire",null,"D.2 # of Policies - Zone 12 - Caribbean",{"$f":"'AML (LT Direct Only)'!G134","v":0}]
["AML","AML Questionnaire",null,"D.2 # of Policies - Zone 13 - Eastern South America",{"$f":"'AML (LT Direct Only)'!G135","v":0}]
["AML","AML Questionnaire",null,"D.2 # of Policies - Zone 14 - N, S & W South America",{"$f":"'AML (LT Direct Only)'!G136","v":0}]
["AML","AML Questionnaire",null,"D.2 # of Policies - Zone 15 - North East United States",{"$f":"'AML (LT Direct Only)'!G137","v":0}]
["AML","AML Questionnaire",null,"D.2 # of Policies - Zone 16 - South-East United States",{"$f":"'AML (LT Direct Only)'!G138","v":0}]
["AML","AML Questionnaire",null,"D.2 # of Policies - Zone 17 - Mid-West United States",{"$f":"'AML (LT Direct Only)'!G139","v":0}]
["AML","AML Questionnaire",null,"D.2 # of Policies - Zone 18 - Western United States",{"$f":"'AML (LT Direct Only)'!G140","v":0}]
["AML","AML Questionnaire",null,"D.2 # of Policies - Zone 19 - Central America",{"$f":"'AML (LT Direct Only)'!G141","v":0}]
["AML","AML Questionnaire",null,"D.2 # of Policies - Zone 20 - Bermuda",{"$f":"'AML (LT Direct Only)'!G142","v":0}]
["AML","AML Questionnaire",null,"D.2 # of Policies - Zone 20 - Total",{"$f":"'AML (LT Direct Only)'!G143","v":0}]
["AML","AML Questionnaire",null,"D.2 # of PEP - Zone 1 - Central & Western Asia",{"$f":"'AML (LT Direct Only)'!I123","v":0}]
["AML","AML Questionnaire",null,"D.2 # of PEP - Zone 2 - Eastern Asia",{"$f":"'AML (LT Direct Only)'!I124","v":0}]
["AML","AML Questionnaire",null,"D.2 # of PEP - Zone 3 - South & South Eastern Asia",{"$f":"'AML (LT Direct Only)'!I125","v":0}]
["AML","AML Questionnaire",null,"D.2 # of PEP - Zone 4 - Oceania",{"$f":"'AML (LT Direct Only)'!I126","v":0}]
["AML","AML Questionnaire",null,"D.2 # of PEP - Zone 5 - Northern Africa",{"$f":"'AML (LT Direct Only)'!I127","v":0}]
["AML","AML Questionnaire",null,"D.2 # of PEP - Zone 6 - Southern Africa",{"$f":"'AML (LT Direct Only)'!I128","v":0}]
["AML","AML Questionnaire",null,"D.2 # of PEP - Zone 7 - Eastern Europe",{"$f":"'AML (LT Direct Only)'!I129","v":0}]
["AML","AML Questionnaire",null,"D.2 # of PEP - Zone 8 - Northern Europe",{"$f":"'AML (LT Direct Only)'!I130","v":0}]
["AML","AML Questionnaire",null,"D.2 # of PEP - Zone 9 - Southern Europe",{"$f":"'AML (LT Direct Only)'!I131","v":0}]
["AML","AML Questionnaire",null,"D.2 # of PEP - Zone 10 - Western Europe",{"$f":"'AML (LT Direct Only)'!I132","v":0}]
["AML","AML Questionnaire",null,"D.2 # of PEP - Zone 11 -  North America ",{"$f":"'AML (LT Direct Only)'!I133","v":0}]
["AML","AML Questionnaire",null,"D.2 # of PEP - Zone 12 - Caribbean",{"$f":"'AML (LT Direct Only)'!I134","v":0}]
["AML","AML Questionnaire",null,"D.2 # of PEP - Zone 13 - Eastern South America",{"$f":"'AML (LT Direct Only)'!I135","v":0}]
["AML","AML Questionnaire",null,"D.2 # of PEP - Zone 14 - N, S & W South America",{"$f":"'AML (LT Direct Only)'!I136","v":0}]
["AML","AML Questionnaire",null,"D.2 # of PEP - Zone 15 - North East United States",{"$f":"'AML (LT Direct Only)'!I137","v":0}]
["AML","AML Questionnaire",null,"D.2 # of PEP - Zone 16 - South-East United States",{"$f":"'AML (LT Direct Only)'!I138","v":0}]
["AML","AML Questionnaire",null,"D.2 # of PEP - Zone 17 - Mid-West United States",{"$f":"'AML (LT Direct Only)'!I139","v":0}]
["AML","AML Questionnaire",null,"D.2 # of PEP - Zone 18 - Western United States",{"$f":"'AML (LT Direct Only)'!I140","v":0}]
["AML","AML Questionnaire",null,"D.2 # of PEP - Zone 19 - Central America",{"$f":"'AML (LT Direct Only)'!I141","v":0}]
["AML","AML Questionnaire",null,"D.2 # of PEP - Zone 20 - Bermuda",{"$f":"'AML (LT Direct Only)'!I142","v":0}]
["AML","AML Questionnaire",null,"D.2 # of PEP - Zone 20 - Total",{"$f":"'AML (LT Direct Only)'!I143","v":0}]
["AML","AML Questionnaire",null,"D.3 Transaction Monitoring",{"$f":"'AML (LT Direct Only)'!I145","v":"Select Yes/No"}]
["AML","AML Questionnaire",null,"D.4 # Beneficiaries - Zone 1 - Central & Western Asia",{"$f":"'AML (LT Direct Only)'!E150","v":0}]
["AML","AML Questionnaire",null,"D.4 # Beneficiaries - Zone 2 - Eastern Asia",{"$f":"'AML (LT Direct Only)'!E151","v":0}]
["AML","AML Questionnaire",null,"D.4 # Beneficiaries - Zone 3 - South & South Eastern Asia",{"$f":"'AML (LT Direct Only)'!E152","v":0}]
["AML","AML Questionnaire",null,"D.4 # Beneficiaries - Zone 4 - Oceania",{"$f":"'AML (LT Direct Only)'!E153","v":0}]
["AML","AML Questionnaire",null,"D.4 # Beneficiaries - Zone 5 - Northern Africa",{"$f":"'AML (LT Direct Only)'!E154","v":0}]
["AML","AML Questionnaire",null,"D.4 # Beneficiaries - Zone 6 - Southern Africa",{"$f":"'AML (LT Direct Only)'!E155","v":0}]
["AML","AML Questionnaire",null,"D.4 # Beneficiaries - Zone 7 - Eastern Europe",{"$f":"'AML (LT Direct Only)'!E156","v":0}]
["AML","AML Questionnaire",null,"D.4 # Beneficiaries - Zone 8 - Northern Europe",{"$f":"'AML (LT Direct Only)'!E157","v":0}]
["AML","AML Questionnaire",null,"D.4 # Beneficiaries - Zone 9 - Southern Europe",{"$f":"'AML (LT Direct Only)'!E158","v":0}]
["AML","AML Questionnaire",null,"D.4 # Beneficiaries - Zone 10 - Western Europe",{"$f":"'AML (LT Direct Only)'!E159","v":0}]
["AML","AML Questionnaire",null,"D.4 # Beneficiaries - Zone 11 -  North America ",{"$f":"'AML (LT Direct Only)'!E160","v":0}]
["AML","AML Questionnaire",null,"D.4 # Beneficiaries - Zone 12 - Caribbean",{"$f":"'AML (LT Direct Only)'!E161","v":0}]
["AML","AML Questionnaire",null,"D.4 # Beneficiaries - Zone 13 - Eastern South America",{"$f":"'AML (LT Direct Only)'!E162","v":0}]
["AML","AML Questionnaire",null,"D.4 # Beneficiaries - Zone 14 - N, S & W South America",{"$f":"'AML (LT Direct Only)'!E163","v":0}]
["AML","AML Questionnaire",null,"D.4 # Beneficiaries - Zone 15 - North East United States",{"$f":"'AML (LT Direct Only)'!E164","v":0}]
["AML","AML Questionnaire",null,"D.4 # Beneficiaries - Zone 16 - South-East United States",{"$f":"'AML (LT Direct Only)'!E165","v":0}]
["AML","AML Questionnaire",null,"D.4 # Beneficiaries - Zone 17 - Mid-West United States",{"$f":"'AML (LT Direct Only)'!E166","v":0}]
["AML","AML Questionnaire",null,"D.4 # Beneficiaries - Zone 18 - Western United States",{"$f":"'AML (LT Direct Only)'!E167","v":0}]
["AML","AML Questionnaire",null,"D.4 # Beneficiaries - Zone 19 - Central America",{"$f":"'AML (LT Direct Only)'!E168","v":0}]
["AML","AML Questionnaire",null,"D.4 # Beneficiaries - Zone 20 - Bermuda",{"$f":"'AML (LT Direct Only)'!E169","v":0}]
["AML","AML Questionnaire",null,"D.4 # Beneficiaries - Zone 20 - Total",{"$f":"'AML (LT Direct Only)'!E170","v":0}]
["AML","AML Questionnaire",null,"D.4 # Policies - Zone 1 - Central & Western Asia",{"$f":"'AML (LT Direct Only)'!G150","v":0}]
["AML","AML Questionnaire",null,"D.4 # Policies - Zone 2 - Eastern Asia",{"$f":"'AML (LT Direct Only)'!G151","v":0}]
["AML","AML Questionnaire",null,"D.4 # Policies - Zone 3 - South & South Eastern Asia",{"$f":"'AML (LT Direct Only)'!G152","v":0}]
["AML","AML Questionnaire",null,"D.4 # Policies - Zone 4 - Oceania",{"$f":"'AML (LT Direct Only)'!G153","v":0}]
["AML","AML Questionnaire",null,"D.4 # Policies - Zone 5 - Northern Africa",{"$f":"'AML (LT Direct Only)'!G154","v":0}]
["AML","AML Questionnaire",null,"D.4 # Policies - Zone 6 - Southern Africa",{"$f":"'AML (LT Direct Only)'!G155","v":0}]
["AML","AML Questionnaire",null,"D.4 # Policies - Zone 7 - Eastern Europe",{"$f":"'AML (LT Direct Only)'!G156","v":0}]
["AML","AML Questionnaire",null,"D.4 # Policies - Zone 8 - Northern Europe",{"$f":"'AML (LT Direct Only)'!G157","v":0}]
["AML","AML Questionnaire",null,"D.4 # Policies - Zone 9 - Southern Europe",{"$f":"'AML (LT Direct Only)'!G158","v":0}]
["AML","AML Questionnaire",null,"D.4 # Policies - Zone 10 - Western Europe",{"$f":"'AML (LT Direct Only)'!G159","v":0}]
["AML","AML Questionnaire",null,"D.4 # Policies - Zone 11 -  North America ",{"$f":"'AML (LT Direct Only)'!G160","v":0}]
["AML","AML Questionnaire",null,"D.4 # Policies - Zone 12 - Caribbean",{"$f":"'AML (LT Direct Only)'!G161","v":0}]
["AML","AML Questionnaire",null,"D.4 # Policies - Zone 13 - Eastern South America",{"$f":"'AML (LT Direct Only)'!G162","v":0}]
["AML","AML Questionnaire",null,"D.4 # Policies - Zone 14 - N, S & W South America",{"$f":"'AML (LT Direct Only)'!G163","v":0}]
["AML","AML Questionnaire",null,"D.4 # Policies - Zone 15 - North East United States",{"$f":"'AML (LT Direct Only)'!G164","v":0}]
["AML","AML Questionnaire",null,"D.4 # Policies - Zone 16 - South-East United States",{"$f":"'AML (LT Direct Only)'!G165","v":0}]
["AML","AML Questionnaire",null,"D.4 # Policies - Zone 17 - Mid-West United States",{"$f":"'AML (LT Direct Only)'!G166","v":0}]
["AML","AML Questionnaire",null,"D.4 # Policies - Zone 18 - Western United States",{"$f":"'AML (LT Direct Only)'!G167","v":0}]
["AML","AML Questionnaire",null,"D.4 # Policies - Zone 19 - Central America",{"$f":"'AML (LT Direct Only)'!G168","v":0}]
["AML","AML Questionnaire",null,"D.4 # Policies - Zone 20 - Bermuda",{"$f":"'AML (LT Direct Only)'!G169","v":0}]
["AML","AML Questionnaire",null,"D.4 # Policies - Zone 20 - Total",{"$f":"'AML (LT Direct Only)'!G170","v":0}]
["AML","AML Questionnaire",null,"D.4 Claims Paid - Zone 1 - Central & Western Asia",{"$f":"'AML (LT Direct Only)'!I150","v":0}]
["AML","AML Questionnaire",null,"D.4 Claims Paid - Zone 2 - Eastern Asia",{"$f":"'AML (LT Direct Only)'!I151","v":0}]
["AML","AML Questionnaire",null,"D.4 Claims Paid - Zone 3 - South & South Eastern Asia",{"$f":"'AML (LT Direct Only)'!I152","v":0}]
["AML","AML Questionnaire",null,"D.4 Claims Paid - Zone 4 - Oceania",{"$f":"'AML (LT Direct Only)'!I153","v":0}]
["AML","AML Questionnaire",null,"D.4 Claims Paid - Zone 5 - Northern Africa",{"$f":"'AML (LT Direct Only)'!I154","v":0}]
["AML","AML Questionnaire",null,"D.4 Claims Paid - Zone 6 - Southern Africa",{"$f":"'AML (LT Direct Only)'!I155","v":0}]
["AML","AML Questionnaire",null,"D.4 Claims Paid - Zone 7 - Eastern Europe",{"$f":"'AML (LT Direct Only)'!I156","v":0}]
["AML","AML Questionnaire",null,"D.4 Claims Paid - Zone 8 - Northern Europe",{"$f":"'AML (LT Direct Only)'!I157","v":0}]
["AML","AML Questionnaire",null,"D.4 Claims Paid - Zone 9 - Southern Europe",{"$f":"'AML (LT Direct Only)'!I158","v":0}]
["AML","AML Questionnaire",null,"D.4 Claims Paid - Zone 10 - Western Europe",{"$f":"'AML (LT Direct Only)'!I159","v":0}]
["AML","AML Questionnaire",null,"D.4 Claims Paid - Zone 11 -  North America ",{"$f":"'AML (LT Direct Only)'!I160","v":0}]
["AML","AML Questionnaire",null,"D.4 Claims Paid - Zone 12 - Caribbean",{"$f":"'AML (LT Direct Only)'!I161","v":0}]
["AML","AML Questionnaire",null,"D.4 Claims Paid - Zone 13 - Eastern South America",{"$f":"'AML (LT Direct Only)'!I162","v":0}]
["AML","AML Questionnaire",null,"D.4 Claims Paid - Zone 14 - N, S & W South America",{"$f":"'AML (LT Direct Only)'!I163","v":0}]
["AML","AML Questionnaire",null,"D.4 Claims Paid - Zone 15 - North East United States",{"$f":"'AML (LT Direct Only)'!I164","v":0}]
["AML","AML Questionnaire",null,"D.4 Claims Paid - Zone 16 - South-East United States",{"$f":"'AML (LT Direct Only)'!I165","v":0}]
["AML","AML Questionnaire",null,"D.4 Claims Paid - Zone 17 - Mid-West United States",{"$f":"'AML (LT Direct Only)'!I166","v":0}]
["AML","AML Questionnaire",null,"D.4 Claims Paid - Zone 18 - Western United States",{"$f":"'AML (LT Direct Only)'!I167","v":0}]
["AML","AML Questionnaire",null,"D.4 Claims Paid - Zone 19 - Central America",{"$f":"'AML (LT Direct Only)'!I168","v":0}]
["AML","AML Questionnaire",null,"D.4 Claims Paid - Zone 20 - Bermuda",{"$f":"'AML (LT Direct Only)'!I169","v":0}]
["AML","AML Questionnaire",null,"D.4 Claims Paid - Zone 20 - Total",{"$f":"'AML (LT Direct Only)'!I170","v":0}]
["AML","AML Questionnaire",null,"D.4 # PEPs - Zone 1 - Central & Western Asia",{"$f":"'AML (LT Direct Only)'!J150","v":0}]
["AML","AML Questionnaire",null,"D.4 # PEPs - Zone 2 - Eastern Asia",{"$f":"'AML (LT Direct Only)'!J151","v":0}]
["AML","AML Questionnaire",null,"D.4 # PEPs - Zone 3 - South & South Eastern Asia",{"$f":"'AML (LT Direct Only)'!J152","v":0}]
["AML","AML Questionnaire",null,"D.4 # PEPs - Zone 4 - Oceania",{"$f":"'AML (LT Direct Only)'!J153","v":0}]
["AML","AML Questionnaire",null,"D.4 # PEPs - Zone 5 - Northern Africa",{"$f":"'AML (LT Direct Only)'!J154","v":0}]
["AML","AML Questionnaire",null,"D.4 # PEPs - Zone 6 - Southern Africa",{"$f":"'AML (LT Direct Only)'!J155","v":0}]
["AML","AML Questionnaire",null,"D.4 # PEPs - Zone 7 - Eastern Europe",{"$f":"'AML (LT Direct Only)'!J156","v":0}]
["AML","AML Questionnaire",null,"D.4 # PEPs - Zone 8 - Northern Europe",{"$f":"'AML (LT Direct Only)'!J157","v":0}]
["AML","AML Questionnaire",null,"D.4 # PEPs - Zone 9 - Southern Europe",{"$f":"'AML (LT Direct Only)'!J158","v":0}]
["AML","AML Questionnaire",null,"D.4 # PEPs - Zone 10 - Western Europe",{"$f":"'AML (LT Direct Only)'!J159","v":0}]
["AML","AML Questionnaire",null,"D.4 # PEPs - Zone 11 -  North America ",{"$f":"'AML (LT Direct Only)'!J160","v":0}]
["AML","AML Questionnaire",null,"D.4 # PEPs - Zone 12 - Caribbean",{"$f":"'AML (LT Direct Only)'!J161","v":0}]
["AML","AML Questionnaire",null,"D.4 # PEPs - Zone 13 - Eastern South America",{"$f":"'AML (LT Direct Only)'!J162","v":0}]
["AML","AML Questionnaire",null,"D.4 # PEPs - Zone 14 - N, S & W South America",{"$f":"'AML (LT Direct Only)'!J163","v":0}]
["AML","AML Questionnaire",null,"D.4 # PEPs - Zone 15 - North East United States",{"$f":"'AML (LT Direct Only)'!J164","v":0}]
["AML","AML Questionnaire",null,"D.4 # PEPs - Zone 16 - South-East United States",{"$f":"'AML (LT Direct Only)'!J165","v":0}]
["AML","AML Questionnaire",null,"D.4 # PEPs - Zone 17 - Mid-West United States",{"$f":"'AML (LT Direct Only)'!J166","v":0}]
["AML","AML Questionnaire",null,"D.4 # PEPs - Zone 18 - Western United States",{"$f":"'AML (LT Direct Only)'!J167","v":0}]
["AML","AML Questionnaire",null,"D.4 # PEPs - Zone 19 - Central America",{"$f":"'AML (LT Direct Only)'!J168","v":0}]
["AML","AML Questionnaire",null,"D.4 # PEPs - Zone 20 - Bermuda",{"$f":"'AML (LT Direct Only)'!J169","v":0}]
["AML","AML Questionnaire",null,"D.4 # PEPs - Zone 20 - Total",{"$f":"'AML (LT Direct Only)'!J170","v":0}]
["AML","AML Questionnaire",null,"F.1 ML & TF Employee Training",{"$f":"'AML (LT Direct Only)'!I173","v":"Select Yes/No"}]
["AML","AML Questionnaire",null,"F.1(a) New Employees",{"$f":"'AML (LT Direct Only)'!I175","v":"Select Yes/No"}]
["AML","AML Questionnaire",null,"F.1(b) Program Specific or Generic",{"$f":"'AML (LT Direct Only)'!I176","v":"Select Yes/No"}]
["AML","AML Questionnaire",null,"F.1(c) Training Frequency",{"$f":"'AML (LT Direct Only)'!I177","v":"Select Years"}]
["AML","AML Questionnaire",null,"F.2 # of Employees - Full Time",{"$f":"'AML (LT Direct Only)'!I179","v":0}]
["AML","AML Questionnaire",null,"F.2 # of Employees - Part Time",{"$f":"'AML (LT Direct Only)'!I180","v":0}]
["AML","AML Questionnaire",null,"F.2.1 Compliance Officer Name",0]
["AML","AML Questionnaire",null,"F.2.1 Compliance Officer Work Terms",{"$f":"'AML (LT Direct Only)'!I182","v":"(Select Terms)"}]
["AML","AML Questionnaire",null,"F.2.1.1 Compliance Officer Email Address",0]
["AML","AML Questionnaire",null,"F.2.2 Reporting Officer Name",0]
["AML","AML Questionnaire",null,"F.2.2 Reporting Officer Work Terms",{"$f":"'AML (LT Direct Only)'!I185","v":"(Select Terms)"}]
["AML","AML Questionnaire",null,"F.2.2.1 Reporting Officer Email Address",0]
["AML","AML Questionnaire",null,"F.3 Recruit Staff - Verify Name",{"$f":"'AML (LT Direct Only)'!I189","v":"Select Yes/No"}]
["AML","AML Questionnaire",null,"F.3 Recruit Staff - Verify Address",{"$f":"'AML (LT Direct Only)'!I190","v":"Select Yes/No"}]
["AML","AML Questionnaire",null,"F.3 Recruit Staff - Verify Staff PEP",{"$f":"'AML (LT Direct Only)'!I191","v":"Select Yes/No"}]
["AML","AML Questionnaire",null,"F.3 Recruit Staff - Verify Sanction List",{"$f":"'AML (LT Direct Only)'!I192","v":"Select Yes/No"}]
["AML","AML Questionnaire",null,"F.3 Recruit Staff - Verify Negative Press",{"$f":"'AML (LT Direct Only)'!I193","v":"Select Yes/No"}]
["AML","AML Questionnaire",null,"F.3 Recruit Staff - Verify Employee History",{"$f":"'AML (LT Direct Only)'!I194","v":"Select Yes/No"}]
["AML","AML Questionnaire",null,"F.3 Recruit Staff - Verify References",{"$f":"'AML (LT Direct Only)'!I195","v":"Select Yes/No"}]
["AML","AML Questionnaire",null,"F.3 Recruit Staff - Verify Reg Action",{"$f":"'AML (LT Direct Only)'!I196","v":"Select Yes/No"}]
["AML","AML Questionnaire",null,"F.3 Recruit Staff - Verify Criminal Convictions",{"$f":"'AML (LT Direct Only)'!I197","v":"Select Yes/No"}]
["AML","AML Questionnaire",null,"F.4 Compliance Officer Senior Mgmnt",{"$f":"'AML (LT Direct Only)'!I199","v":"Select Yes/No"}]
["AML","AML Questionnaire",null,"G.1 AML/ATF Specific LT Insurance",{"$f":"'AML (LT Direct Only)'!I202","v":"Select Yes/No"}]
["AML","AML Questionnaire",null,"G.2 AML/ATF GB or Reinsurance",{"$f":"'AML (LT Direct Only)'!I203","v":"Select Yes/No"}]
["AML","AML Questionnaire",null,"G.3 AML/ATF Other Controls",{"$f":"'AML (LT Direct Only)'!I204","v":"Select Yes/No"}]
["AML","AML Questionnaire",null,"G.3 AML/ATF Other Controls - Details",{"$f":"'AML (LT Direct Only)'!C207","v":0}]
["AML","AML Questionnaire",null,"G.4 AML/ATF Rating Frequency",{"$f":"'AML (LT Direct Only)'!I213","v":"Select Years"}]
["AML","AML Questionnaire",null,"G.5 Approval of New Business - Low Risk",{"$f":"'AML (LT Direct Only)'!E217","v":"Select Yes/No"}]
["AML","AML Questionnaire",null,"G.5 Approval of New Business - Medium Risk",{"$f":"'AML (LT Direct Only)'!G217","v":"Select Yes/No"}]
["AML","AML Questionnaire",null,"G.5 Approval of New Business - High Risk",{"$f":"'AML (LT Direct Only)'!I217","v":"Select Yes/No"}]
["AML","AML Questionnaire",null,"G.6 Approval of Existing Business - Low Risk",{"$f":"'AML (LT Direct Only)'!E221","v":"Select Yes/No"}]
["AML","AML Questionnaire",null,"G.6 Approval of Existing Business - Medium Risk",{"$f":"'AML (LT Direct Only)'!G221","v":"Select Yes/No"}]
["AML","AML Questionnaire",null,"G.6 Approval of Existing Business - High Risk",{"$f":"'AML (LT Direct Only)'!I221","v":"Select Yes/No"}]
["AML","AML Questionnaire",null,"G.7 AML/ATF Manuals with BDA Laws",{"$f":"'AML (LT Direct Only)'!I223","v":"Select Yes/No"}]
["AML","AML Questionnaire",null,"G.7.1 AML/ATF Manuals Reviewed",{"$f":"'AML (LT Direct Only)'!I224","v":"Select Years"}]
["AML","AML Questionnaire",null,"G.8 Last AML/ATF Risk Assessment",{"$f":"'AML (LT Direct Only)'!I227","v":"(Select)"}]
["AML","AML Questionnaire",null,"G.9 AML/ATF Independent Audit ",{"$f":"'AML (LT Direct Only)'!I229","v":"(Select)"}]
["AML","AML Questionnaire",null,"G.10 Last Compliance Report",{"$f":"'AML (LT Direct Only)'!I232","v":"(Select)"}]
["AML","AML Questionnaire",null,"G.11 Document ML/TF Prior to Launch",{"$f":"'AML (LT Direct Only)'!I234","v":"Select Yes/No"}]
["AML","AML Questionnaire",null,"H.1.1 Insurer Part of Group",{"$f":"'AML (LT Direct Only)'!I238","v":"Select Yes/No"}]
["AML","AML Questionnaire",null,"H.1.1.1 Group Name",{"$f":"'AML (LT Direct Only)'!F240","v":0}]
["AML","AML Questionnaire",null,"H.1.1.1 Group ROC #",{"$f":"'AML (LT Direct Only)'!I240","v":0}]
["AML","AML Questionnaire",null,"H.1.1.2 Listed on Exchange",{"$f":"'AML (LT Direct Only)'!I242","v":"Select Yes/No"}]
["AML","AML Questionnaire",null,"H.1.1.2 Exchange 1",{"$f":"'AML (LT Direct Only)'!C245","v":0}]
["AML","AML Questionnaire",null,"H.1.1.2 Exchange 2",{"$f":"'AML (LT Direct Only)'!C246","v":0}]
["AML","AML Questionnaire",null,"H.1.1.2 Exchange 3",{"$f":"'AML (LT Direct Only)'!C247","v":0}]
["AML","AML Questionnaire",null,"H.2(a) # of SAC Registered accounts",{"$f":"'AML (LT Direct Only)'!I250","v":0}]
["AML","AML Questionnaire",null,"H.2(i) # of Active SAC",{"$f":"'AML (LT Direct Only)'!I251","v":0}]
["AML","AML Questionnaire",null,"H.2(ii) # of Non-Active SAC",{"$f":"'AML (LT Direct Only)'!I252","v":0}]
["AML","AML Questionnaire",null,"H.3 Private Act Confirmation",{"$f":"'AML (LT Direct Only)'!I255","v":"Select Yes/No"}]
["AML","AML Questionnaire",null,"H.3(a) # of Designated Inv. Contracts",{"$f":"'AML (LT Direct Only)'!I256","v":0}]
["AML","AML Questionnaire",null,"H.3(b) Net Account Value of Designated Inv. Contracts",{"$f":"'AML (LT Direct Only)'!I257","v":0}]
["AML","AML Questionnaire",null,"H.3 Other Comments",{"$f":"'AML (LT Direct Only)'!C260","v":0}]
["AML","AML Questionnaire",null,"I. Corporate Governance Q1",{"$f":"'AML (LT Direct Only)'!I269","v":"Select Yes/No"}]
["AML","AML Questionnaire",null,"I. Corporate Governance Q2",{"$f":"'AML (LT Direct Only)'!I270","v":"Select Yes/No"}]
["AML","AML Questionnaire",null,"I. Corporate Governance Q3",{"$f":"'AML (LT Direct Only)'!I271","v":"Select Yes/No"}]
["AML","AML Questionnaire",null,"I. Corporate Governance Q4",{"$f":"'AML (LT Direct Only)'!I272","v":"Select Yes/No"}]
["AML","AML Questionnaire",null,"I. Corporate Governance Q5",{"$f":"'AML (LT Direct Only)'!I273","v":"Select Yes/No"}]
["AML","AML Questionnaire",null,"I. Corporate Governance Q6",{"$f":"'AML (LT Direct Only)'!I274","v":"Select Yes/No"}]
["AML","AML Questionnaire",null,"I. Corporate Governance Q7",{"$f":"'AML (LT Direct Only)'!I275","v":"Select Yes/No"}]
["AML","AML Questionnaire",null,"I. Corporate Governance Q8",{"$f":"'AML (LT Direct Only)'!I276","v":"Select Yes/No"}]
["AML","AML Questionnaire",null,"I. Corporate Governance Q9",{"$f":"'AML (LT Direct Only)'!I277","v":"Select Yes/No"}]
["AML","AML Questionnaire",null,"I. Corporate Governance Q10",{"$f":"'AML (LT Direct Only)'!I278","v":"Select Yes/No"}]
["AML","AML Questionnaire",null,"I. Corporate Governance Q11",{"$f":"'AML (LT Direct Only)'!I279","v":"Select Yes/No"}]
["AML","AML Questionnaire",null,"I. Corporate Governance Q12",{"$f":"'AML (LT Direct Only)'!I280","v":"Select Yes/No"}]
["AML","AML Questionnaire",null,"I. Corporate Governance Q13",{"$f":"'AML (LT Direct Only)'!I281","v":"Select Yes/No"}]
["AML","AML Questionnaire",null,"I. Employee Integrity Q14",{"$f":"'AML (LT Direct Only)'!I285","v":"Select Yes/No"}]
["AML","AML Questionnaire",null,"I. Employee Integrity Q15",{"$f":"'AML (LT Direct Only)'!I286","v":"Select Yes/No"}]
["AML","AML Questionnaire",null,"I. Employee Integrity Q16",{"$f":"'AML (LT Direct Only)'!I287","v":"Select Yes/No"}]
["AML","AML Questionnaire",null,"I. Employee Integrity Q17",{"$f":"'AML (LT Direct Only)'!I288","v":"Select Yes/No"}]
["AML","AML Questionnaire",null,"I. Employee Integrity Q18",{"$f":"'AML (LT Direct Only)'!I289","v":"Select Yes/No"}]
["AML","AML Questionnaire",null,"I. Employee Knowledge Q19",{"$f":"'AML (LT Direct Only)'!I293","v":"Select Yes/No"}]
["AML","AML Questionnaire",null,"I. Employee Knowledge Q20",{"$f":"'AML (LT Direct Only)'!I294","v":"Select Yes/No"}]
["AML","AML Questionnaire",null,"I. Employee Knowledge Q21",{"$f":"'AML (LT Direct Only)'!I295","v":"Select Yes/No"}]
["AML","AML Questionnaire",null,"I. Employee Knowledge Q22",{"$f":"'AML (LT Direct Only)'!I296","v":"Select Yes/No"}]
["AML","AML Questionnaire",null,"I. Employee Knowledge Q23",{"$f":"'AML (LT Direct Only)'!I297","v":"Select Yes/No"}]
["AML","AML Questionnaire",null,"I. Employee Knowledge Q24",{"$f":"'AML (LT Direct Only)'!I298","v":"Select Yes/No"}]
["AML","AML Questionnaire",null,"I. Employee Knowledge Q25",{"$f":"'AML (LT Direct Only)'!I299","v":"Select Yes/No"}]
["AML","AML Questionnaire",null,"I. Employee Knowledge Q26",{"$f":"'AML (LT Direct Only)'!I300","v":"Select Yes/No"}]
["AML","AML Questionnaire",null,"I. Employee Knowledge Q27",{"$f":"'AML (LT Direct Only)'!I301","v":"Select Yes/No"}]
["AML","AML Questionnaire",null,"I. Employee Compliance Q28",{"$f":"'AML (LT Direct Only)'!I305","v":"Select Yes/No"}]
["AML","AML Questionnaire",null,"I. Employee Compliance Q29",{"$f":"'AML (LT Direct Only)'!I306","v":"Select Yes/No"}]
["AML","AML Questionnaire",null,"I. Employee Compliance Q30",{"$f":"'AML (LT Direct Only)'!I307","v":"Select Yes/No"}]
["AML","AML Questionnaire",null,"I. Employee Compliance Q31",{"$f":"'AML (LT Direct Only)'!I308","v":"Select Yes/No"}]
[]
["Sar & Sanc.","SAR & Sanctions",null,"E.1 Registered GoAML",{"$f":"'SAR & Sanc. (All)'!I8","v":"Select Yes/No"}]
["Sar & Sanc.","SAR & Sanctions",null,"E.1.1 When",{"$f":"'SAR & Sanc. (All)'!I10","v":"(Select)"}]
["Sar & Sanc.","SAR & Sanctions",null,"E.1.1 Name",{"$f":"'SAR & Sanc. (All)'!C10","v":0}]
["Sar & Sanc.","SAR & Sanctions",null,"E.1.2 Another Registered",{"$f":"'SAR & Sanc. (All)'!I12","v":"Select Yes/No"}]
["Sar & Sanc.","SAR & Sanctions",null,"E.1.3 Name",{"$f":"'SAR & Sanc. (All)'!C14","v":0}]
["Sar & Sanc.","SAR & Sanctions",null,"E.1.4 Filed SAR",{"$f":"'SAR & Sanc. (All)'!C17","v":0}]
["Sar & Sanc.","SAR & Sanctions",null,"E.2 SAR Filed - Internal - Current Year",{"$f":"'SAR & Sanc. (All)'!G21","v":0}]
["Sar & Sanc.","SAR & Sanctions",null,"E.2 SAR Filed - Internal - Prior Year",{"$f":"'SAR & Sanc. (All)'!G22","v":0}]
["Sar & Sanc.","SAR & Sanctions",null,"E.2 SAR Filed - Internal - 2 Years Prior",{"$f":"'SAR & Sanc. (All)'!G23","v":0}]
["Sar & Sanc.","SAR & Sanctions",null,"E.2 SAR Filed - Internal - 3 Years Prior",{"$f":"'SAR & Sanc. (All)'!G24","v":0}]
["Sar & Sanc.","SAR & Sanctions",null,"E.2 SAR Filed - Internal - Total",{"$f":"'SAR & Sanc. (All)'!G25","v":0}]
["Sar & Sanc.","SAR & Sanctions",null,"E.2 SAR Filed - w FIA - Current Year",{"$f":"'SAR & Sanc. (All)'!I21","v":0}]
["Sar & Sanc.","SAR & Sanctions",null,"E.2 SAR Filed - w FIA - Prior Year",{"$f":"'SAR & Sanc. (All)'!I22","v":0}]
["Sar & Sanc.","SAR & Sanctions",null,"E.2 SAR Filed - w FIA - 2 Years Prior",{"$f":"'SAR & Sanc. (All)'!I23","v":0}]
["Sar & Sanc.","SAR & Sanctions",null,"E.2 SAR Filed - w FIA - 3 Years Prior",{"$f":"'SAR & Sanc. (All)'!I24","v":0}]
["Sar & Sanc.","SAR & Sanctions",null,"E.2 SAR Filed - w FIA - Total",{"$f":"'SAR & Sanc. (All)'!I25","v":0}]
["Sar & Sanc.","SAR & Sanctions",null,"E.2 Additional Comments",{"$f":"'SAR & Sanc. (All)'!C28","v":0}]
["Sar & Sanc.","SAR & Sanctions",null,"E. Sanction - 1. Screen insurers",{"$f":"'SAR & Sanc. (All)'!I35","v":"Select Yes/No"}]
["Sar & Sanc.","SAR & Sanctions",null,"E. Sanction - 2. Screen employees",{"$f":"'SAR & Sanc. (All)'!I37","v":"Select Yes/No"}]
["Sar & Sanc.","SAR & Sanctions",null,"E. Sanction - 3. Freeze Assets",{"$f":"'SAR & Sanc. (All)'!I39","v":"Select Yes/No"}]
["Sar & Sanc.","SAR & Sanctions",null,"E. Sanction - 3.1 # of Assets Frozen",{"$f":"'SAR & Sanc. (All)'!I41","v":0}]
["Sar & Sanc.","SAR & Sanctions",null,"E. Sanction - 3.2 Group ID 1",{"$f":"'SAR & Sanc. (All)'!E45","v":0}]
["Sar & Sanc.","SAR & Sanctions",null,"E. Sanction - 3.2 Group ID 2",{"$f":"'SAR & Sanc. (All)'!E46","v":0}]
["Sar & Sanc.","SAR & Sanctions",null,"E. Sanction - 3.2 Group ID 3",{"$f":"'SAR & Sanc. (All)'!E47","v":0}]
["Sar & Sanc.","SAR & Sanctions",null,"E. Sanction - 3.2 Group ID 4",{"$f":"'SAR & Sanc. (All)'!E48","v":0}]
["Sar & Sanc.","SAR & Sanctions",null,"E. Sanction - 3.2 Name Given 1",{"$f":"'SAR & Sanc. (All)'!F45","v":0}]
["Sar & Sanc.","SAR & Sanctions",null,"E. Sanction - 3.2 Name Given 2",{"$f":"'SAR & Sanc. (All)'!F46","v":0}]
["Sar & Sanc.","SAR & Sanctions",null,"E. Sanction - 3.2 Name Given 3",{"$f":"'SAR & Sanc. (All)'!F47","v":0}]
["Sar & Sanc.","SAR & Sanctions",null,"E. Sanction - 3.2 Name Given 4",{"$f":"'SAR & Sanc. (All)'!F48","v":0}]
["Sar & Sanc.","SAR & Sanctions",null,"E. Sanction - 3.2 Owned 1",{"$f":"'SAR & Sanc. (All)'!I45","v":0}]
["Sar & Sanc.","SAR & Sanctions",null,"E. Sanction - 3.2 Owned 2",{"$f":"'SAR & Sanc. (All)'!I46","v":0}]
["Sar & Sanc.","SAR & Sanctions",null,"E. Sanction - 3.2 Owned 3",{"$f":"'SAR & Sanc. (All)'!I47","v":0}]
["Sar & Sanc.","SAR & Sanctions",null,"E. Sanction - 3.2 Owned 4",{"$f":"'SAR & Sanc. (All)'!I48","v":0}]
["Sar & Sanc.","SAR & Sanctions",null,"E. Sanction - 3.2 Value of Assets 1",{"$f":"'SAR & Sanc. (All)'!J45","v":0}]
["Sar & Sanc.","SAR & Sanctions",null,"E. Sanction - 3.2 Value of Assets 2",{"$f":"'SAR & Sanc. (All)'!J46","v":0}]
["Sar & Sanc.","SAR & Sanctions",null,"E. Sanction - 3.2 Value of Assets 3",{"$f":"'SAR & Sanc. (All)'!J47","v":0}]
["Sar & Sanc.","SAR & Sanctions",null,"E. Sanction - 3.2 Value of Assets 4",{"$f":"'SAR & Sanc. (All)'!J48","v":0}]
["Sar & Sanc.","SAR & Sanctions",null,"E. Sanction - 3.2 Value of Total",{"$f":"SUM(E40758:E40761)","v":0}]
["Sar & Sanc.","SAR & Sanctions",null,"E. Sanction - 4 Frequency of Screen for Sanctions",{"$f":"'SAR & Sanc. (All)'!I50","v":"Select"}]
["Sar & Sanc.","SAR & Sanctions",null,"E. Sanction - Additional Comments ",{"$f":"'SAR & Sanc. (All)'!C53","v":0}]

{"sheet":"Import Differences","index":9,"n_rows":11,"n_cols":4,"rows_kept":11,"cut":false,"hidden":false,"merged":[]}
["Long-Term BSCR Model"]
["Import/Export Row Changes"]
["From the 2022 year-end model to 2023 year-end Model"]
[]
[null,"Schedule","Row(s)","Section"]
[1,"IFRS Schedules","Rows: 442:1113","IFRS Financial Statements"]
[{"$f":"A6+1","v":2},"Schedule V","Row: 1430","Schedule of Risk Management - Weighted Average of Difference without Management Action"]
[{"$f":"A7+1","v":3},"Schedule V(e) ","Rows: 2313:2314 & 2323:2324","Schedule of Stress Test Scenarios - Inflation Risk Financial Market Scenario"]
[{"$f":"A8+1","v":4},"Schedule V(e) ","Rows: 2331:2447","Schedule of Stress Test Scenarios - R9 Long-Term Liquidity Risk Stress Scenario"]
[{"$f":"A9+1","v":5},"Schedule V(e)","Rows 2448","Mortgage Loan Stress Test Scenario Removed"]
[{"$f":"A10+1","v":6},"Schedule VI & VIA","Rows: 5263:34559","Schedule of Assets and Schedule of Funds Held By Ceding Reinsurers"]

{"sheet":"Attachments","index":10,"n_rows":194,"n_cols":11,"rows_kept":194,"cut":false,"hidden":false,"merged":[[193,2,193,4],[184,2,184,4],[185,2,185,4],[186,2,186,4],[187,2,187,4],[188,2,188,4],[189,2,189,4],[190,2,190,4],[191,2,191,4],[192,2,192,4],[147,2,147,4],[148,2,148,4],[149,2,149,4],[150,2,150,4],[168,2,168,4],[123,2,123,4],[124,2,124,4],[125,2,125,4],[126,2,126,4],[164,2,164,4],[166,2,166,4],[167,2,167,4],[122,2,122,4],[104,2,104,4],[140,2,140,4],[105,2,105,4],[112,2,112,4],[113,2,113,4],[109,2,109,4],[106,2,106,4],[107,2,107,4],[108,2,108,4],[138,2,138,4],[121,2,121,4],[110,2,110,4],[111,2,111,4],[114,2,114,4],[115,2,115,4],[116,2,116,4],[117,2,117,4],[119,2,119,4],[120,2,120,4],[118,2,118,4],[102,2,102,4],[103,2,103,4],[99,2,99,4],[100,2,100,4],[44,2,44,4],[45,2,45,4],[82,2,82,4],[76,2,76,4],[77,2,77,4],[78,2,78,4],[80,2,80,4],[84,2,84,4],[83,2,83,4],[46,2,46,4],[47,2,47,4],[48,2,48,4],[49,2,49,4],[50,2,50,4],[51,2,51,4],[56,2,56,4],[57,2,57,4],[58,2,58,4],[52,2,52,4],[53,2,53,4],[4,2,4,4],[20,2,20,4],[35,2,35,4],[18,2,18,4],[8,2,8,4],[11,2,11,4],[12,2,12,4],[13,2,13,4],[27,2,27,4],[17,2,17,4],[33,2,33,4],[24,2,24,4],[15,2,15,4],[31,2,31,4],[32,2,32,4],[25,2,25,4],[9,2,9,4],[10,2,10,4],[5,2,5,4],[6,2,6,4],[7,2,7,4],[28,2,28,4],[29,2,29,4],[30,2,30,4],[40,2,40,4],[34,2,34,4],[36,2,36,4],[39,2,39,4],[37,2,37,4],[182,2,182,4],[183,2,183,4],[66,2,66,4],[67,2,67,4],[159,2,159,4],[160,2,160,4],[161,2,161,4],[162,2,162,4],[163,2,163,4],[154,2,154,4],[130,2,130,4],[137,2,137,4],[139,2,139,4],[135,2,135,4],[136,2,136,4],[134,2,134,4],[131,2,131,4],[132,2,132,4],[133,2,133,4],[177,2,177,4],[178,2,178,4],[179,2,179,4],[180,2,180,4],[157,2,157,4],[158,2,158,4],[127,2,127,4],[128,2,128,4],[129,2,129,4],[145,2,145,4],[141,2,141,4],[142,2,142,4],[143,2,143,4],[151,2,151,4],[152,2,152,4],[153,2,153,4],[144,2,144,4],[165,2,165,4],[146,2,146,4],[173,2,173,4],[169,2,169,4],[170,2,170,4],[171,2,171,4],[172,2,172,4],[181,2,181,4],[14,2,14,4],[16,2,16,4],[19,2,19,4],[21,2,21,4],[155,2,155,4],[22,2,22,4],[23,2,23,4],[41,2,41,4],[26,2,26,4],[38,2,38,4],[70,2,70,4],[73,2,73,4],[81,2,81,4],[74,2,74,4],[79,2,79,4],[42,2,42,4],[43,2,43,4],[75,2,75,4],[64,2,64,4],[174,2,174,4],[175,2,175,4],[176,2,176,4],[156,2,156,4],[54,2,54,4],[55,2,55,4],[59,2,59,4],[60,2,60,4],[61,2,61,4],[63,2,63,4],[65,2,65,4],[68,2,68,4],[69,2,69,4],[86,2,86,4],[87,2,87,4],[88,2,88,4],[90,2,90,4],[91,2,91,4],[101,2,101,4],[62,2,62,4],[72,2,72,4],[94,2,94,4],[95,2,95,4],[96,2,96,4],[97,2,97,4],[98,2,98,4],[92,2,92,4],[93,2,93,4],[89,2,89,4],[71,2,71,4],[85,2,85,4]]}
[null,"File Attachments",null,null,null,null,null,null,null,{"$f":"HYPERLINK(\"#'Index'!A1\",\"Return to Index\")","v":"Return to Index"}]
[]
[]
[null,null,null,null,null,null,null,null,null,"Input comment for each attached file here."]
[null,"1.","GAAP/IFRS Financial Statements",null,null,"<Attach file>","Attach","View","Remove",null,"Governance structure"]
[null,null,null,null,null,null,null,null,null,null,"Governance structure"]
[null,null,null,null,null,null,null,null,null,null,"Governance structure"]
[null,null,null,null,null,null,null,null,null,null,"Governance structure"]
[null,null,null,null,null,null,null,null,null,null,"Governance structure"]
[null,null,null,null,null,null,null,null,null,null,"Governance structure"]
[null,null,null,null,null,null,null,null,null,null,"Governance structure"]
[null,null,null,null,null,null,null,null,null,null,"Governance structure"]
[null,null,null,null,null,null,null,null,null,null,"Governance structure"]
[null,null,null,null,null,null,null,null,null,null,"Governance structure"]
[null,"2.","Declaration of Compliance",null,null,"<Attach file>","Attach","View","Remove",null,"Other Attachments"]
[null,null,null,null,null,null,null,null,null,null,"Other Attachments"]
[null,null,null,null,null,null,null,null,null,null,"Other Attachments"]
[null,null,null,null,null,null,null,null,null,null,"Other Attachments"]
[null,null,null,null,null,null,null,null,null,null,"Other Attachments"]
[null,null,null,null,null,null,null,null,null,null,"Other Attachments"]
[null,null,null,null,null,null,null,null,null,null,"Other Attachments"]
[null,null,null,null,null,null,null,null,null,null,"Other Attachments"]
[null,null,null,null,null,null,null,null,null,null,"Other Attachments"]
[null,null,null,null,null,null,null,null,null,null,"Other Attachments"]
[null,"3.","Financial Condition Report",null,null,"<Attach file>","Attach","View","Remove",null,"Group structure"]
[null,null,null,null,null,null,null,null,null,null,"Group structure"]
[null,null,null,null,null,null,null,null,null,null,"Group structure"]
[null,null,null,null,null,null,null,null,null,null,"Group structure"]
[null,null,null,null,null,null,null,null,null,null,"Group structure"]
[null,null,null,null,null,null,null,null,null,null,"Group structure"]
[null,null,null,null,null,null,null,null,null,null,"Group structure"]
[null,null,null,null,null,null,null,null,null,null,"Group structure"]
[null,null,null,null,null,null,null,null,null,null,"Group structure"]
[null,null,null,null,null,null,null,null,null,null,"Group structure"]
[null,"4.","CISSA attachments",null,null,"<Attach file>","Attach","View","Remove",null,"Intra-group exposures"]
[null,null,null,null,null,"<Attach file>","Attach","View","Remove",null,"Intra-group exposures"]
[null,null,null,null,null,"<Attach file>","Attach","View","Remove",null,"Intra-group exposures"]
[null,null,null,null,null,"<Attach file>","Attach","View","Remove",null,"Intra-group exposures"]
[null,null,null,null,null,"<Attach file>","Attach","View","Remove",null,"Intra-group exposures"]
[null,null,null,null,null,"<Attach file>","Attach","View","Remove",null,"Intra-group exposures"]
[null,null,null,null,null,"<Attach file>","Attach","View","Remove",null,"Intra-group exposures"]
[null,null,null,null,null,"<Attach file>","Attach","View","Remove",null,"Intra-group exposures"]
[null,null,null,null,null,"<Attach file>","Attach","View","Remove",null,"Intra-group exposures"]
[null,null,null,null,null,"<Attach file>","Attach","View","Remove",null,"Intra-group exposures"]
[null,"5.","Form 4EBS Attachments - Collateral Balances and Sundry Assets/Liabilities",null,null,"<Attach file>","Attach","View","Remove",null,"Risk register"]
[null,null,null,null,null,"<Attach file>","Attach","View","Remove",null,"Risk register"]
[null,null,null,null,null,"<Attach file>","Attach","View","Remove",null,"Risk register"]
[null,null,null,null,null,"<Attach file>","Attach","View","Remove",null,"Risk register"]
[null,null,null,null,null,"<Attach file>","Attach","View","Remove",null,"Risk register"]
[null,null,null,null,null,"<Attach file>","Attach","View","Remove",null,"Risk register"]
[null,null,null,null,null,"<Attach file>","Attach","View","Remove",null,"Risk register"]
[null,null,null,null,null,"<Attach file>","Attach","View","Remove",null,"Risk register"]
[null,null,null,null,null,"<Attach file>","Attach","View","Remove",null,"Risk register"]
[null,null,null,null,null,"<Attach file>","Attach","View","Remove",null,"Risk register"]
[null,"6.","Form 4EBS Attachments - Long-Term Business Reserves & Actuarial Memorandum",null,null,"<Attach file>","Attach","View","Remove",null,"Risk register"]
[null,null,null,null,null,"<Attach file>","Attach","View","Remove",null,"Risk register"]
[null,null,null,null,null,"<Attach file>","Attach","View","Remove",null,"Risk register"]
[null,null,null,null,null,"<Attach file>","Attach","View","Remove",null,"Risk register"]
[null,null,null,null,null,"<Attach file>","Attach","View","Remove",null,"Risk register"]
[null,null,null,null,null,"<Attach file>","Attach","View","Remove",null,"Risk register"]
[null,null,null,null,null,"<Attach file>","Attach","View","Remove",null,"Risk register"]
[null,null,null,null,null,"<Attach file>","Attach","View","Remove",null,"Risk register"]
[null,null,null,null,null,"<Attach file>","Attach","View","Remove",null,"Risk register"]
[null,null,null,null,null,"<Attach file>","Attach","View","Remove",null,"Risk register"]
[null,"7.","Governance and group structure",null,null,"<Attach file>","Attach","View","Remove",null,"Risk register"]
[null,null,null,null,null,"<Attach file>","Attach","View","Remove",null,"Risk register"]
[null,null,null,null,null,"<Attach file>","Attach","View","Remove",null,"Risk register"]
[null,null,null,null,null,"<Attach file>","Attach","View","Remove",null,"Risk register"]
[null,null,null,null,null,"<Attach file>","Attach","View","Remove",null,"Risk register"]
[null,null,null,null,null,"<Attach file>","Attach","View","Remove",null,"Risk register"]
[null,null,null,null,null,"<Attach file>","Attach","View","Remove",null,"Risk register"]
[null,null,null,null,null,"<Attach file>","Attach","View","Remove",null,"Risk register"]
[null,null,null,null,null,"<Attach file>","Attach","View","Remove",null,"Risk register"]
[null,null,null,null,null,"<Attach file>","Attach","View","Remove",null,"Risk register"]
[null,"8.","Organisational Chart",null,null,"<Attach file>","Attach","View","Remove",null,"Description of the effective duration of assets and liabilities calculations and key assumptions"]
[null,null,null,null,null,"<Attach file>","Attach","View","Remove",null,"Description of the effective duration of assets and liabilities calculations and key assumptions"]
[null,null,null,null,null,"<Attach file>","Attach","View","Remove",null,"Description of the effective duration of assets and liabilities calculations and key assumptions"]
[null,null,null,null,null,"<Attach file>","Attach","View","Remove",null,"Description of the effective duration of assets and liabilities calculations and key assumptions"]
[null,null,null,null,null,"<Attach file>","Attach","View","Remove",null,"Description of the effective duration of assets and liabilities calculations and key assumptions"]
[null,null,null,null,null,"<Attach file>","Attach","View","Remove",null,"Description of the effective duration of assets and liabilities calculations and key assumptions"]
[null,null,null,null,null,"<Attach file>","Attach","View","Remove",null,"Description of the effective duration of assets and liabilities calculations and key assumptions"]
[null,null,null,null,null,"<Attach file>","Attach","View","Remove",null,"Description of the effective duration of assets and liabilities calculations and key assumptions"]
[null,null,null,null,null,"<Attach file>","Attach","View","Remove",null,"Description of the effective duration of assets and liabilities calculations and key assumptions"]
[null,null,null,null,null,"<Attach file>","Attach","View","Remove",null,"Description of the effective duration of assets and liabilities calculations and key assumptions"]
[null,"9.","Intra-group transactions and risk concentrations",null,null,"<Attach file>","Attach","View","Remove",null,"Description of underwriting strategy"]
[null,null,null,null,null,"<Attach file>","Attach","View","Remove",null,"Description of underwriting strategy"]
[null,null,null,null,null,"<Attach file>","Attach","View","Remove",null,"Description of underwriting strategy"]
[null,null,null,null,null,"<Attach file>","Attach","View","Remove",null,"Description of underwriting strategy"]
[null,null,null,null,null,"<Attach file>","Attach","View","Remove",null,"Description of underwriting strategy"]
[null,null,null,null,null,"<Attach file>","Attach","View","Remove",null,"Description of underwriting strategy"]
[null,null,null,null,null,"<Attach file>","Attach","View","Remove",null,"Description of underwriting strategy"]
[null,null,null,null,null,"<Attach file>","Attach","View","Remove",null,"Description of underwriting strategy"]
[null,null,null,null,null,"<Attach file>","Attach","View","Remove",null,"Description of underwriting strategy"]
[null,null,null,null,null,"<Attach file>","Attach","View","Remove",null,"Description of underwriting strategy"]
[null,"10.","Description of the effective duration of assets and liabilities calculations and key assumptions",null,null,"<Attach file>","Attach","View","Remove",null,"Financial impact and description of stress & scenarios"]
[null,null,null,null,null,"<Attach file>","Attach","View","Remove",null,"Financial impact and description of stress & scenarios"]
[null,null,null,null,null,"<Attach file>","Attach","View","Remove",null,"Financial impact and description of stress & scenarios"]
[null,null,null,null,null,"<Attach file>","Attach","View","Remove",null,"Financial impact and description of stress & scenarios"]
[null,null,null,null,null,"<Attach file>","Attach","View","Remove",null,"Financial impact and description of stress & scenarios"]
[null,null,null,null,null,"<Attach file>","Attach","View","Remove",null,"Financial impact and description of stress & scenarios"]
[null,null,null,null,null,"<Attach file>","Attach","View","Remove",null,"Financial impact and description of stress & scenarios"]
[null,null,null,null,null,"<Attach file>","Attach","View","Remove",null,"Financial impact and description of stress & scenarios"]
[null,null,null,null,null,"<Attach file>","Attach","View","Remove",null,"Financial impact and description of stress & scenarios"]
[null,null,null,null,null,"<Attach file>","Attach","View","Remove",null,"Financial impact and description of stress & scenarios"]
[null,"11.","Description of the investments, derivatives strategies & policies",null,null,"<Attach file>","Attach","View","Remove",null,"Description of the insurer's risk management program"]
[null,null,null,null,null,"<Attach file>","Attach","View","Remove",null,"Description of the insurer's risk management program"]
[null,null,null,null,null,"<Attach file>","Attach","View","Remove",null,"Description of the insurer's risk management program"]
[null,null,null,null,null,"<Attach file>","Attach","View","Remove",null,"Description of the insurer's risk management program"]
[null,null,null,null,null,"<Attach file>","Attach","View","Remove",null,"Description of the insurer's risk management program"]
[null,null,null,null,null,"<Attach file>","Attach","View","Remove",null,"Description of the insurer's risk management program"]
[null,null,null,null,null,"<Attach file>","Attach","View","Remove",null,"Description of the insurer's risk management program"]
[null,null,null,null,null,"<Attach file>","Attach","View","Remove",null,"Description of the insurer's risk management program"]
[null,null,null,null,null,"<Attach file>","Attach","View","Remove",null,"Description of the insurer's risk management program"]
[null,null,null,null,null,"<Attach file>","Attach","View","Remove",null,"Description of the insurer's risk management program"]
[null,"12.","Bonds and debentures that have been reclassed in accordance with the NAIC",null,null,"<Attach file>","Attach","View","Remove",null,"Other Attachments"]
[null,null,null,null,null,"<Attach file>","Attach","View","Remove",null,"Other Attachments"]
[null,null,null,null,null,"<Attach file>","Attach","View","Remove",null,"Other Attachments"]
[null,null,null,null,null,"<Attach file>","Attach","View","Remove",null,"Other Attachments"]
[null,null,null,null,null,"<Attach file>","Attach","View","Remove",null,"Other Attachments"]
[null,null,null,null,null,"<Attach file>","Attach","View","Remove",null,"Other Attachments"]
[null,null,null,null,null,"<Attach file>","Attach","View","Remove",null,"Other Attachments"]
[null,null,null,null,null,"<Attach file>","Attach","View","Remove",null,"Other Attachments"]
[null,null,null,null,null,"<Attach file>","Attach","View","Remove",null,"Other Attachments"]
[null,null,null,null,null,"<Attach file>","Attach","View","Remove",null,"Other Attachments"]
[null,"13.","Mutual fund disclosures",null,null,"<Attach file>","Attach","View","Remove",null,"Other Attachments"]
[null,null,null,null,null,"<Attach file>","Attach","View","Remove",null,"Other Attachments"]
[null,null,null,null,null,"<Attach file>","Attach","View","Remove",null,"Other Attachments"]
[null,null,null,null,null,"<Attach file>","Attach","View","Remove",null,"Other Attachments"]
[null,null,null,null,null,"<Attach file>","Attach","View","Remove",null,"Other Attachments"]
[null,null,null,null,null,"<Attach file>","Attach","View","Remove",null,"Other Attachments"]
[null,null,null,null,null,"<Attach file>","Attach","View","Remove",null,"Other Attachments"]
[null,null,null,null,null,"<Attach file>","Attach","View","Remove",null,"Other Attachments"]
[null,null,null,null,null,"<Attach file>","Attach","View","Remove",null,"Other Attachments"]
[null,null,null,null,null,"<Attach file>","Attach","View","Remove",null,"Other Attachments"]
[null,"14.","Description of business and underwriting strategy",null,null,"<Attach file>","Attach","View","Remove",null,"Risk register"]
[null,null,null,null,null,"<Attach file>","Attach","View","Remove",null,"Risk register"]
[null,null,null,null,null,"<Attach file>","Attach","View","Remove",null,"Risk register"]
[null,null,null,null,null,"<Attach file>","Attach","View","Remove",null,"Risk register"]
[null,null,null,null,null,"<Attach file>","Attach","View","Remove",null,"Risk register"]
[null,null,null,null,null,"<Attach file>","Attach","View","Remove",null,"Risk register"]
[null,null,null,null,null,"<Attach file>","Attach","View","Remove",null,"Risk register"]
[null,null,null,null,null,"<Attach file>","Attach","View","Remove",null,"Risk register"]
[null,null,null,null,null,"<Attach file>","Attach","View","Remove",null,"Risk register"]
[null,null,null,null,null,"<Attach file>","Attach","View","Remove",null,"Risk register"]
[null,"15.","Summary of product features and risks",null,null,"<Attach file>","Attach","View","Remove",null,"CISSA Attachments"]
[null,null,null,null,null,"<Attach file>","Attach","View","Remove",null,"CISSA Attachments"]
[null,null,null,null,null,"<Attach file>","Attach","View","Remove",null,"CISSA Attachments"]
[null,null,null,null,null,"<Attach file>","Attach","View","Remove",null,"CISSA Attachments"]
[null,null,null,null,null,"<Attach file>","Attach","View","Remove",null,"CISSA Attachments"]
[null,null,null,null,null,"<Attach file>","Attach","View","Remove",null,"CISSA Attachments"]
[null,null,null,null,null,"<Attach file>","Attach","View","Remove",null,"CISSA Attachments"]
[null,null,null,null,null,"<Attach file>","Attach","View","Remove",null,"CISSA Attachments"]
[null,null,null,null,null,"<Attach file>","Attach","View","Remove",null,"CISSA Attachments"]
[null,null,null,null,null,"<Attach file>","Attach","View","Remove",null,"CISSA Attachments"]
[null,"16.","Financial impact and description of stress & scenarios",null,null,"<Attach file>","Attach","View","Remove",null,"CISSA Attachments"]
[null,null,null,null,null,"<Attach file>","Attach","View","Remove",null,"CISSA Attachments"]
[null,null,null,null,null,"<Attach file>","Attach","View","Remove",null,"CISSA Attachments"]
[null,null,null,null,null,"<Attach file>","Attach","View","Remove",null,"CISSA Attachments"]
[null,null,null,null,null,"<Attach file>","Attach","View","Remove",null,"CISSA Attachments"]
[null,null,null,null,null,"<Attach file>","Attach","View","Remove",null,"CISSA Attachments"]
[null,null,null,null,null,"<Attach file>","Attach","View","Remove",null,"CISSA Attachments"]
[null,null,null,null,null,"<Attach file>","Attach","View","Remove",null,"CISSA Attachments"]
[null,null,null,null,null,"<Attach file>","Attach","View","Remove",null,"CISSA Attachments"]
[null,null,null,null,null,"<Attach file>","Attach","View","Remove",null,"CISSA Attachments"]
[null,"17.","Reconciliation to Company-Specific Parameters",null,null,"<Attach file>","Attach","View","Remove",null,"Other Attachments"]
[null,null,null,null,null,"<Attach file>","Attach","View","Remove",null,"Other Attachments"]
[null,null,null,null,null,"<Attach file>","Attach","View","Remove",null,"Other Attachments"]
[null,null,null,null,null,"<Attach file>","Attach","View","Remove",null,"Other Attachments"]
[null,null,null,null,null,"<Attach file>","Attach","View","Remove",null,"Other Attachments"]
[null,null,null,null,null,"<Attach file>","Attach","View","Remove",null,"Other Attachments"]
[null,null,null,null,null,"<Attach file>","Attach","View","Remove",null,"Other Attachments"]
[null,null,null,null,null,"<Attach file>","Attach","View","Remove",null,"Other Attachments"]
[null,null,null,null,null,"<Attach file>","Attach","View","Remove",null,"Other Attachments"]
[null,null,null,null,null,"<Attach file>","Attach","View","Remove",null,"Other Attachments"]
[null,"18.","Capital and Solvency Return Declaration and Statutory Financial Statements",null,null,"<Attach file>","Attach","View","Remove",null,"Other Attachments"]
[null,null,null,null,null,"<Attach file>","Attach","View","Remove",null,"Other Attachments"]
[null,null,null,null,null,"<Attach file>","Attach","View","Remove",null,"Other Attachments"]
[null,null,null,null,null,"<Attach file>","Attach","View","Remove",null,"Other Attachments"]
[null,null,null,null,null,"<Attach file>","Attach","View","Remove",null,"Other Attachments"]
[null,null,null,null,null,"<Attach file>","Attach","View","Remove",null,"Other Attachments"]
[null,null,null,null,null,"<Attach file>","Attach","View","Remove",null,"Other Attachments"]
[null,null,null,null,null,"<Attach file>","Attach","View","Remove","","Other Attachments"]
[null,null,null,null,null,"<Attach file>","Attach","View","Remove","","Other Attachments"]
[null,null,null,null,null,"<Attach file>","Attach","View","Remove","","Other Attachments"]
[null,"19.","Other Attachments",null,null,"<Attach file>","Attach","View","Remove",null,"Other Attachments"]
[null,null,null,null,null,"<Attach file>","Attach","View","Remove",null,"Other Attachments"]
[null,null,null,null,null,"<Attach file>","Attach","View","Remove",null,"Other Attachments"]
[null,null,null,null,null,"<Attach file>","Attach","View","Remove",null,"Other Attachments"]
[null,null,null,null,null,"<Attach file>","Attach","View","Remove",null,"Other Attachments"]
[null,null,null,null,null,"<Attach file>","Attach","View","Remove",null,"Other Attachments"]
[null,null,null,null,null,"<Attach file>","Attach","View","Remove",null,"Other Attachments"]
[null,null,null,null,null,"<Attach file>","Attach","View","Remove",null,"Other Attachments"]
[null,null,null,null,null,"<Attach file>","Attach","View","Remove","","Other Attachments"]
[null,null,null,null,null,"<Attach file>","Attach","View","Remove","","Other Attachments"]

{"sheet":"Declaration","index":11,"n_rows":42,"n_cols":7,"rows_kept":42,"cut":false,"hidden":false,"merged":[[14,1,14,6],[17,2,17,6],[19,2,19,6],[25,2,25,6],[37,2,37,6],[27,2,27,6],[22,2,22,6],[30,2,30,6],[32,2,32,6],[34,2,34,6]]}
[null,"CAPITAL AND SOLVENCY RETURN DECLARATION",null,null,null,null,{"$f":"HYPERLINK(\"#'Index'!A1\",\"Return to Index\")","v":"Return to Index"}]
[]
[]
[null,{"$f":"'Insurer Information'!C7","v":"Enter Company Name"}]
[null,{"$f":" TEXT('Insurer Information'!C3,\"D MMMM YYYY\")","v":"31 December 2023"}]
[]
[]
[]
[]
[]
[]
[]
[]
[]
[null,"We declare that to the best of our knowledge and belief, the information in this Capital and Solvency Return fairly represents the financial condition of the Company in all material respects."]
[]
[]
[null,"Signatory:"]
[]
[null,"Print Name:",{"$f":"Import!E3","v":0}]
[null,null,"Director"]
[]
[null,"Date:",{"$f":"Import!E4","v":"00:00:00"}]
[]
[]
[null,"Signatory:"]
[]
[null,"Print Name:",{"$f":"Import!E5","v":0}]
[null,null,"Director"]
[]
[null,"Date:",{"$f":"Import!E6","v":"00:00:00"}]
[]
[null,"Signatory:"]
[]
[null,"Print Name:",{"$f":"Import!E7","v":0}]
[null,null,"Principal Representative "]
[]
[null,"Date:",{"$f":"Import!E8","v":"00:00:00"}]
[]
[null,"Insurer Name:",{"$f":"'Insurer Information'!C7","v":"Enter Company Name"}]
[]
[null,"Year-end:",{"$f":"'Insurer Information'!C3","v":"2023-12-31"}]

{"sheet":"BSCR Rating","index":12,"n_rows":17,"n_cols":6,"rows_kept":17,"cut":false,"hidden":false,"merged":[[8,2,8,5]]}
[null,"BSCR RATING SCHEDULE",null,null,null,{"$f":"HYPERLINK(\"#'Index'!A1\",\"Return to Index\")","v":"Return to Index"}]
[]
[]
[null,{"$f":"'Insurer Information'!C7","v":"Enter Company Name"}]
[null,{"$f":" TEXT('Insurer Information'!C3,\"D MMMM YYYY\")","v":"31 December 2023"}]
[]
[null,"BSCR RATING SCHEDULE"]
[null,"BSCR Rating","Standard & Poor’s","Moody’s","AM Best","Fitch"]
[null,0,"Sovereign debt issued by a country in its own currency that is rated AA- or better"]
[null,1,"AAA","Aaa","A++","AAA"]
[null,2,"AA+ to AA-","Aa1 to Aa3","A+","AA+ to AA-"]
[null,3,"A+ to A-","A1 to A3","A","A+ to A-"]
[null,4,"BBB+ to BBB-","Baa1 to Baa3","A-","BBB+ to BBB-"]
[null,5,"BB+ to BB-","Ba1 to Ba3","B++ to B","BB+ to BB-"]
[null,6,"B+ to B-","B1 to B3","B- to C+","B+ to B-"]
[null,7,"CCC+ to CCC-","Caa1 to Caa3","C, C-","CCC+ to CCC-"]
[null,8,"Below CCC-","Below Caa3","Below C-","Below CCC-"]

{"sheet":"AML (LT Direct Only)","index":13,"n_rows":317,"n_cols":19,"rows_kept":317,"cut":false,"hidden":false,"merged":[[0,1,0,4],[4,1,6,9],[25,6,25,8],[54,6,54,8],[91,2,95,9],[99,2,103,9],[111,4,111,5],[206,2,210,9],[231,2,231,7],[239,5,239,6],[244,2,244,5],[245,2,245,5],[246,2,246,5],[259,2,263,9],[266,1,266,8],[267,1,267,7],[268,2,268,7],[269,2,269,7],[270,2,270,7],[271,2,271,7],[272,2,272,7],[273,2,273,7],[274,2,274,7],[275,2,275,7],[276,2,276,7],[277,2,277,7],[278,2,278,7],[279,2,279,7],[280,2,280,7],[282,1,282,8],[284,2,284,7],[285,2,285,7],[286,2,286,7],[287,2,287,7],[288,2,288,7],[290,1,290,8],[292,2,292,7],[293,2,293,7],[294,2,294,7],[295,2,295,7],[296,2,296,7],[297,2,297,7],[298,2,298,7],[299,2,299,7],[300,2,300,7],[302,1,302,8],[304,2,304,7],[305,2,305,7],[306,2,306,7],[307,2,307,7]]}
[null,"SCHEDULE OF ANTI-MONEY LAUNDERING AND ANTI-TERRORIST FINANCING ",null,null,null,null,null,null,null,{"$f":"HYPERLINK(\"#'Index'!A1\",\"Return to Index\")","v":"Return to Index"}]
[null,{"$f":"'Insurer Information'!C7","v":"Enter Company Name"}]
[null,{"$f":" TEXT('Insurer Information'!C3,\"D MMMM YYYY\")","v":"31 December 2023"},null,null,null,null,null,null,null,"SCHEDULE XXII"]
[]
[null,"Every insurer (on an unconsolidated basis) that writes or has in force long-term business shall be required to complete the questions set out in the Schedule of Anti-Money Laundering/Anti-Terrorist Financing (“Schedule”) in relation to its long-term business but excluding any reinsurance business and provide particulars of its gross written premiums for the relevant year. "]
[]
[]
[]
["Section A - Client/Customer Numbers"]
[null,1,"Total Number of policies (regulated for AML/ATF purposes)",null,null,null,null,null,{"$f":"Import!E40371","v":0}]
[]
[null,{"$f":"B10+1","v":2},"Does the company risk rate policies for ML/TF risk?",null,null,null,null,null,{"$f":"Import!E40372","v":"Select Yes/No"}]
[]
[null,{"$f":"B12+1","v":3},"State the number of policies in the following risk assessment category—"]
[null,null,null,null,null,null,null,null,"Number of Policies"]
[null,null,null,null,null,null,null,"Low Risk",{"$f":"Import!E40373","v":0}]
[null,null,null,null,null,null,null,"Medium Risk",{"$f":"Import!E40374","v":0}]
[null,null,null,null,null,null,null,"High Risk",{"$f":"Import!E40375","v":0}]
[null,null,null,null,null,null,null,"Unknown",{"$f":"Import!E40376","v":0}]
[null,null,null,null,null,null,null,"Total",{"$f":"SUM(I16:I19)","v":0}]
["Section B - Products/Services"]
[null,1,"Provide the Gross Premium Written (GPW) for the relevant year. In addition:",null,null,null,null,null,{"$f":"Import!E40378","v":0}]
[null,null,"(a) Provide the percentage of GPW corresponding to any unrelated business written by the insurer.",null,null,null,null,null,{"$f":"Import!E40379","v":0}]
[null,null,"(b) If applicable, confirm the percentage of insurance incidental general business written by the insurer to the total insurance gross premium written.",null,null,null,null,null,{"$f":"Import!E40380","v":0}]
[null,null,"(c) Provide GPW by line of business:"]
[null,null,null,null,null,null,"Insurance"]
[null,null,"Lines of Business",null,null,null,"GPW US$",null,"Number of Policies"]
[null,null,"(a) Mortality "]
[null,null,null,"(i) Term Assurance",null,null,{"$f":"Import!E40381","v":0},null,{"$f":"Import!E40403","v":0}]
[null,null,null,"(ii) Whole Life",null,null,{"$f":"Import!E40382","v":0},null,{"$f":"Import!E40404","v":0}]
[null,null,null,"(iii) Universal Life",null,null,{"$f":"Import!E40383","v":0},null,{"$f":"Import!E40405","v":0}]
[null,null,"(b) Critical Illness (including accelerated critical illness products)",null,null,null,{"$f":"Import!E40384","v":0},null,{"$f":"Import!E40406","v":0}]
[null,null,"(c) Longevity (immediate pay-out annuities, contingent annuities, pension pay-outs)",null,null,null,{"$f":"Import!E40385","v":0},null,{"$f":"Import!E40407","v":0}]
[null,null,"(d) Longevity (deferred pay-out annuities, future contingent annuities, future pension pay-outs)",null,null,null,{"$f":"Import!E40386","v":0},null,{"$f":"Import!E40408","v":0}]
[null,null,"(e) Annuities certain only",null,null,null,{"$f":"Import!E40387","v":0},null,{"$f":"Import!E40409","v":0}]
[null,null,"(f) Deferred accumulation annuities",null,null,null,{"$f":"Import!E40388","v":0},null,{"$f":"Import!E40410","v":0}]
[null,null,"(g) Disability Income: active lives - including waiver of premium and long-term care",null,null,null,{"$f":"Import!E40389","v":0},null,{"$f":"Import!E40411","v":0}]
[null,null,"(h) Disability income: active lives - other accident and sickness",null,null,null,{"$f":"Import!E40390","v":0},null,{"$f":"Import!E40412","v":0}]
[null,null,"(i) Disability income: claims in payment - including waiver of premium and long-term care",null,null,null,{"$f":"Import!E40391","v":0},null,{"$f":"Import!E40413","v":0}]
[null,null,"(j) Disability income: claims in payment - other accident and sickness",null,null,null,{"$f":"Import!E40392","v":0},null,{"$f":"Import!E40414","v":0}]
[null,null,"(k) Group Life",null,null,null,{"$f":"Import!E40393","v":0},null,{"$f":"Import!E40415","v":0}]
[null,null,"(l) Group Disability",null,null,null,{"$f":"Import!E40394","v":0},null,{"$f":"Import!E40416","v":0}]
[null,null,"(m) Group Health",null,null,null,{"$f":"Import!E40395","v":0},null,{"$f":"Import!E40417","v":0}]
[null,null,"(n) Stop Loss",null,null,null,{"$f":"Import!E40396","v":0},null,{"$f":"Import!E40418","v":0}]
[null,null,"(o) Rider (other product riders not included above)",null,null,null,{"$f":"Import!E40397","v":0},null,{"$f":"Import!E40419","v":0}]
[null,null,"(p) Variable Annuities",null,null,null,{"$f":"Import!E40398","v":0},null,{"$f":"Import!E40420","v":0}]
[null,null,"(q) Other Lines of Business",null,null,null,{"$f":"Import!E40399","v":0},null,{"$f":"Import!E40421","v":0}]
[]
[null,null,null,"(i) General Business",null,null,{"$f":"Import!E40400","v":0},null,{"$f":"Import!E40422","v":0}]
[null,null,null,"(ii) Any other lines of Business",null,null,{"$f":"Import!E40401","v":0},null,{"$f":"Import!E40423","v":0}]
[]
[null,null,"Total Gross Premium Written ",null,null,null,{"$f":"SUM(G29:G50)","v":0},null,{"$f":"SUM(I29:I50)","v":0}]
[]
[null,2,"Provide claims paid (gross) for the reporting period. Additionally, provide claims paid by line of business:"]
[null,null,null,null,null,null,"Insurance"]
[null,null,"Lines of Business",null,null,null,"Paid US$",null,"Number of Policies"]
[null,null,"(a) Mortality "]
[null,null,null,"(i) Term Assurance",null,null,{"$f":"Import!E40425","v":0},null,{"$f":"Import!E40447","v":0}]
[null,null,null,"(ii) Whole Life",null,null,{"$f":"Import!E40426","v":0},null,{"$f":"Import!E40448","v":0}]
[null,null,null,"(iii) Universal Life",null,null,{"$f":"Import!E40427","v":0},null,{"$f":"Import!E40449","v":0}]
[null,null,"(b) Critical Illness (including accelerated critical illness products)",null,null,null,{"$f":"Import!E40428","v":0},null,{"$f":"Import!E40450","v":0}]
[null,null,"(c) Longevity (immediate pay-out annuities, contingent annuities, pension pay-outs)",null,null,null,{"$f":"Import!E40429","v":0},null,{"$f":"Import!E40451","v":0}]
[null,null,"(d) Longevity (deferred pay-out annuities, future contingent annuities, future pension pay-outs)",null,null,null,{"$f":"Import!E40430","v":0},null,{"$f":"Import!E40452","v":0}]
[null,null,"(e) Annuities certain only",null,null,null,{"$f":"Import!E40431","v":0},null,{"$f":"Import!E40453","v":0}]
[null,null,"(f) Deferred accumulation annuities",null,null,null,{"$f":"Import!E40432","v":0},null,{"$f":"Import!E40454","v":0}]
[null,null,"(g) Disability Income: active lives - including waiver of premium and long-term care",null,null,null,{"$f":"Import!E40433","v":0},null,{"$f":"Import!E40455","v":0}]
[null,null,"(h) Disability income: active lives - other accident and sickness",null,null,null,{"$f":"Import!E40434","v":0},null,{"$f":"Import!E40456","v":0}]
[null,null,"(i) Disability income: claims in payment - including waiver of premium and long-term care",null,null,null,{"$f":"Import!E40435","v":0},null,{"$f":"Import!E40457","v":0}]
[null,null,"(j) Disability income: claims in payment - other accident and sickness",null,null,null,{"$f":"Import!E40436","v":0},null,{"$f":"Import!E40458","v":0}]
[null,null,"(k) Group Life",null,null,null,{"$f":"Import!E40437","v":0},null,{"$f":"Import!E40459","v":0}]
[null,null,"(l) Group Disability",null,null,null,{"$f":"Import!E40438","v":0},null,{"$f":"Import!E40460","v":0}]
[null,null,"(m) Group Health",null,null,null,{"$f":"Import!E40439","v":0},null,{"$f":"Import!E40461","v":0}]
[null,null,"(n) Stop Loss",null,null,null,{"$f":"Import!E40440","v":0},null,{"$f":"Import!E40462","v":0}]
[null,null,"(o) Rider (other product riders not included above)",null,null,null,{"$f":"Import!E40441","v":0},null,{"$f":"Import!E40463","v":0}]
[null,null,"(p) Variable Annuities",null,null,null,{"$f":"Import!E40442","v":0},null,{"$f":"Import!E40464","v":0}]
[null,null,"(q) Other Lines of Business",null,null,null,{"$f":"Import!E40443","v":0},null,{"$f":"Import!E40465","v":0}]
[]
[null,null,null,"(i) General Business",null,null,{"$f":"Import!E40444","v":0},null,{"$f":"Import!E40466","v":0}]
[null,null,null,"(ii) Any other lines of Business",null,null,{"$f":"Import!E40445","v":0},null,{"$f":"Import!E40467","v":0}]
[]
[null,null,"Total Claims Paid",null,null,null,{"$f":"SUM(G58:G79)","v":0},null,{"$f":"SUM(I58:I79)","v":0}]
[]
[null,3,"Confirm the mechanism(s) used by the company to receive premium and pay claims:"]
[null,null,null,null,null,null,"Premium ",null,"Claims"]
[null,null,null,null,null,"Bank transfer",{"$f":"Import!E40469","v":0},null,{"$f":"Import!E40476","v":0}]
[null,null,null,null,null,"Cash",{"$f":"Import!E40470","v":0},null,{"$f":"Import!E40477","v":0}]
[null,null,null,null,null,"Cheque",{"$f":"Import!E40471","v":0},null,{"$f":"Import!E40478","v":0}]
[null,null,null,null,null,"Credit/debit card",{"$f":"Import!E40472","v":0},null,{"$f":"Import!E40479","v":0}]
[null,null,null,null,null,"Virtual currencies",{"$f":"Import!E40473","v":0},null,{"$f":"Import!E40480","v":0}]
[null,null,null,null,null,"Other (provide examples)",{"$f":"Import!E40474","v":0},null,{"$f":"Import!E40481","v":0}]
[null,null,"If you use Other provide details:"]
[null,null,{"$f":"Import!E40483","v":0}]
[]
[]
[]
[]
[]
[null,4,"Does your Company accept third-party payments?",null,null,null,null,null,{"$f":"Import!E40484","v":"Select Yes/No"}]
[null,null,"If you have answered 'Yes' to 4., describe briefly the AML/ATF controls you have in place to mitigate this risk"]
[null,null,{"$f":"Import!E40485","v":0}]
[]
[]
[]
[]
[]
["Section C - Delivery Channel"]
[null,1,"The number of business relationships onboarded for the last 12 months by each of the following methods—"]
[null,null,null,null,null,null,"Number of Business Relationships"]
[null,null,null,null,null,"Face to face with clients",{"$f":"Import!E40486","v":0}]
[null,null,null,null,null,"Via intermediary",{"$f":"Import!E40487","v":0}]
[null,null,null,null,null,"By phone, email, fax, or post",{"$f":"Import!E40488","v":0}]
[null,null,null,null,"Other (provide examples)",null,{"$f":"Import!E40489","v":0}]
[null,null,null,null,null,"Total",{"$f":"SUM(G109:G112)","v":0}]
[]
["Section D - Geography (including sub-sections for Customer, Transactions and PEPs)"]
[null,1,"Do you identify Politically Exposed Persons (PEPs)",null,null,null,null,null,{"$f":"Import!E40491","v":"Select Yes/No"}]
[]
[null,2,"Country of residence based on the policyholder's residence"]
[null,null,"Zones listed below are in accordance with the BSCR under the Zone Categorisation and BSCR Rating Schedule"]
[]
[null,"Country of Residence",null,null,"GPW US$",null,"Number of",null,"Number of"]
[null,null,null,null,null,null,"Policies",null,"PEPs"]
[null,"Zone 1 - Central & Western Asia",null,null,{"$f":"Import!E40492","v":0},null,{"$f":"Import!E40513","v":0},null,{"$f":"Import!E40534","v":0}]
[null,"Zone 2 - Eastern Asia",null,null,{"$f":"Import!E40493","v":0},null,{"$f":"Import!E40514","v":0},null,{"$f":"Import!E40535","v":0}]
[null,"Zone 3 - South & South Eastern Asia",null,null,{"$f":"Import!E40494","v":0},null,{"$f":"Import!E40515","v":0},null,{"$f":"Import!E40536","v":0}]
[null,"Zone 4 - Oceania",null,null,{"$f":"Import!E40495","v":0},null,{"$f":"Import!E40516","v":0},null,{"$f":"Import!E40537","v":0}]
[null,"Zone 5 - Northern Africa",null,null,{"$f":"Import!E40496","v":0},null,{"$f":"Import!E40517","v":0},null,{"$f":"Import!E40538","v":0}]
[null,"Zone 6 - Southern Africa",null,null,{"$f":"Import!E40497","v":0},null,{"$f":"Import!E40518","v":0},null,{"$f":"Import!E40539","v":0}]
[null,"Zone 7 - Eastern Europe",null,null,{"$f":"Import!E40498","v":0},null,{"$f":"Import!E40519","v":0},null,{"$f":"Import!E40540","v":0}]
[null,"Zone 8 - Northern Europe",null,null,{"$f":"Import!E40499","v":0},null,{"$f":"Import!E40520","v":0},null,{"$f":"Import!E40541","v":0}]
[null,"Zone 9 - Southern Europe",null,null,{"$f":"Import!E40500","v":0},null,{"$f":"Import!E40521","v":0},null,{"$f":"Import!E40542","v":0}]
[null,"Zone 10 - Western Europe",null,null,{"$f":"Import!E40501","v":0},null,{"$f":"Import!E40522","v":0},null,{"$f":"Import!E40543","v":0}]
[null,"Zone 11 -  North America (excluding USA)",null,null,{"$f":"Import!E40502","v":0},null,{"$f":"Import!E40523","v":0},null,{"$f":"Import!E40544","v":0}]
[null,"Zone 12 - Caribbean",null,null,{"$f":"Import!E40503","v":0},null,{"$f":"Import!E40524","v":0},null,{"$f":"Import!E40545","v":0}]
[null,"Zone 13 - Eastern South America",null,null,{"$f":"Import!E40504","v":0},null,{"$f":"Import!E40525","v":0},null,{"$f":"Import!E40546","v":0}]
[null,"Zone 14 - Northern, Southern & Western South America",null,null,{"$f":"Import!E40505","v":0},null,{"$f":"Import!E40526","v":0},null,{"$f":"Import!E40547","v":0}]
[null,"Zone 15 - North East United States",null,null,{"$f":"Import!E40506","v":0},null,{"$f":"Import!E40527","v":0},null,{"$f":"Import!E40548","v":0}]
[null,"Zone 16 - South-East United States",null,null,{"$f":"Import!E40507","v":0},null,{"$f":"Import!E40528","v":0},null,{"$f":"Import!E40549","v":0}]
[null,"Zone 17 - Mid-West United States",null,null,{"$f":"Import!E40508","v":0},null,{"$f":"Import!E40529","v":0},null,{"$f":"Import!E40550","v":0}]
[null,"Zone 18 - Western United States",null,null,{"$f":"Import!E40509","v":0},null,{"$f":"Import!E40530","v":0},null,{"$f":"Import!E40551","v":0}]
[null,"Zone 19 - Central America",null,null,{"$f":"Import!E40510","v":0},null,{"$f":"Import!E40531","v":0},null,{"$f":"Import!E40552","v":0}]
[null,"Zone 20 - Bermuda",null,null,{"$f":"Import!E40511","v":0},null,{"$f":"Import!E40532","v":0},null,{"$f":"Import!E40553","v":0}]
[null,"Total",null,null,{"$f":"SUM(E123:E142)","v":0},null,{"$f":"SUM(G123:G142)","v":0},null,{"$f":"SUM(I123:I142)","v":0}]
[]
[null,3,"Confirm if the company performs transaction monitoring ",null,null,null,null,null,{"$f":"Import!E40555","v":"Select Yes/No"}]
[]
[null,4,"Provide the following information, regarding claims handling:"]
[null,"Country of Residence",null,null,"Number of",null,"Number of",null,"Value of","Number of"]
[null,"of beneficiaries",null,null,"beneficiaries",null,"Policies",null,"Claims Paid in USD","PEPs"]
[null,"Zone 1 - Central & Western Asia",null,null,{"$f":"Import!E40556","v":0},null,{"$f":"Import!E40577","v":0},null,{"$f":"Import!E40598","v":0},{"$f":"Import!E40619","v":0}]
[null,"Zone 2 - Eastern Asia",null,null,{"$f":"Import!E40557","v":0},null,{"$f":"Import!E40578","v":0},null,{"$f":"Import!E40599","v":0},{"$f":"Import!E40620","v":0}]
[null,"Zone 3 - South & South Eastern Asia",null,null,{"$f":"Import!E40558","v":0},null,{"$f":"Import!E40579","v":0},null,{"$f":"Import!E40600","v":0},{"$f":"Import!E40621","v":0}]
[null,"Zone 4 - Oceania",null,null,{"$f":"Import!E40559","v":0},null,{"$f":"Import!E40580","v":0},null,{"$f":"Import!E40601","v":0},{"$f":"Import!E40622","v":0}]
[null,"Zone 5 - Northern Africa",null,null,{"$f":"Import!E40560","v":0},null,{"$f":"Import!E40581","v":0},null,{"$f":"Import!E40602","v":0},{"$f":"Import!E40623","v":0}]
[null,"Zone 6 - Southern Africa",null,null,{"$f":"Import!E40561","v":0},null,{"$f":"Import!E40582","v":0},null,{"$f":"Import!E40603","v":0},{"$f":"Import!E40624","v":0}]
[null,"Zone 7 - Eastern Europe",null,null,{"$f":"Import!E40562","v":0},null,{"$f":"Import!E40583","v":0},null,{"$f":"Import!E40604","v":0},{"$f":"Import!E40625","v":0}]
[null,"Zone 8 - Northern Europe",null,null,{"$f":"Import!E40563","v":0},null,{"$f":"Import!E40584","v":0},null,{"$f":"Import!E40605","v":0},{"$f":"Import!E40626","v":0}]
[null,"Zone 9 - Southern Europe",null,null,{"$f":"Import!E40564","v":0},null,{"$f":"Import!E40585","v":0},null,{"$f":"Import!E40606","v":0},{"$f":"Import!E40627","v":0}]
[null,"Zone 10 - Western Europe",null,null,{"$f":"Import!E40565","v":0},null,{"$f":"Import!E40586","v":0},null,{"$f":"Import!E40607","v":0},{"$f":"Import!E40628","v":0}]
[null,"Zone 11 -  North America (excluding USA)",null,null,{"$f":"Import!E40566","v":0},null,{"$f":"Import!E40587","v":0},null,{"$f":"Import!E40608","v":0},{"$f":"Import!E40629","v":0}]
[null,"Zone 12 - Caribbean",null,null,{"$f":"Import!E40567","v":0},null,{"$f":"Import!E40588","v":0},null,{"$f":"Import!E40609","v":0},{"$f":"Import!E40630","v":0}]
[null,"Zone 13 - Eastern South America",null,null,{"$f":"Import!E40568","v":0},null,{"$f":"Import!E40589","v":0},null,{"$f":"Import!E40610","v":0},{"$f":"Import!E40631","v":0}]
[null,"Zone 14 - Northern, Southern & Western South America",null,null,{"$f":"Import!E40569","v":0},null,{"$f":"Import!E40590","v":0},null,{"$f":"Import!E40611","v":0},{"$f":"Import!E40632","v":0}]
[null,"Zone 15 - North East United States",null,null,{"$f":"Import!E40570","v":0},null,{"$f":"Import!E40591","v":0},null,{"$f":"Import!E40612","v":0},{"$f":"Import!E40633","v":0}]
[null,"Zone 16 - South-East United States",null,null,{"$f":"Import!E40571","v":0},null,{"$f":"Import!E40592","v":0},null,{"$f":"Import!E40613","v":0},{"$f":"Import!E40634","v":0}]
[null,"Zone 17 - Mid-West United States",null,null,{"$f":"Import!E40572","v":0},null,{"$f":"Import!E40593","v":0},null,{"$f":"Import!E40614","v":0},{"$f":"Import!E40635","v":0}]
[null,"Zone 18 - Western United States",null,null,{"$f":"Import!E40573","v":0},null,{"$f":"Import!E40594","v":0},null,{"$f":"Import!E40615","v":0},{"$f":"Import!E40636","v":0}]
[null,"Zone 19 - Central America",null,null,{"$f":"Import!E40574","v":0},null,{"$f":"Import!E40595","v":0},null,{"$f":"Import!E40616","v":0},{"$f":"Import!E40637","v":0}]
[null,"Zone 20 - Bermuda",null,null,{"$f":"Import!E40575","v":0},null,{"$f":"Import!E40596","v":0},null,{"$f":"Import!E40617","v":0},{"$f":"Import!E40638","v":0}]
[null,"Total",null,null,{"$f":"SUM(E150:E169)","v":0},null,{"$f":"SUM(G150:G169)","v":0},null,{"$f":"SUM(I150:I169)","v":0},{"$f":"SUM(J150:J169)","v":0}]
[]
["Section F - Training/Personnel"]
[null,1,"Confirm if your company provides employees with training in relating to money laundering (“ML”) and terrorism financing (“TF”). ",null,null,null,null,null,{"$f":"Import!E40640","v":"Select Yes/No"}]
[null,null,"If yes, confirm:"]
[null,null,"(a) if ML/TF training is included in the induction programme of new employees.",null,null,null,null,null,{"$f":"Import!E40641","v":"Select Yes/No"}]
[null,null,"(b) if the ML/TF training provided is specific to the business of insurance conducted by the insurer or is of general application.",null,null,null,null,null,{"$f":"Import!E40642","v":"Select Yes/No"}]
[null,null,"(c) the frequency that employees must undertake ML/TF training",null,null,null,null,null,{"$f":"Import!E40643","v":"Select Years"}]
[]
[null,2,"How many persons are employed by the Company?",null,null,null,null,"Full Time",{"$f":"Import!E40644","v":0}]
[null,null,null,null,null,null,null,"Part time (including temporary/contract)",{"$f":"Import!E40645","v":0}]
[]
[null,null,"2.1. Confirm the name and work arrangement of your Compliance Officer ",null,null,"Name:",{"$f":"Import!E40646","v":0},null,{"$f":"Import!E40647","v":"(Select Terms)"}]
[null,null,null,"2.1.1 Please give the Compliance Officer's contact email address",null,"Email:",{"$f":"Import!E40648","v":0}]
[]
[null,null,"2.2. Confirm the name work arrangement of your Reporting Officer",null,null,"Name:",{"$f":"Import!E40649","v":0},null,{"$f":"Import!E40650","v":"(Select Terms)"}]
[null,null,null,"2.2.1 Please give the Reporting Officer's contact email address",null,"Email:",{"$f":"Import!E40651","v":0}]
[]
[null,3,"Indicate what actions are undertaken when recruiting staff"]
[null,null,"Verify name",null,null,null,null,null,{"$f":"Import!E40652","v":"Select Yes/No"}]
[null,null,"Verify residential address",null,null,null,null,null,{"$f":"Import!E40653","v":"Select Yes/No"}]
[null,null,"Check if the individual should be considered as PEP",null,null,null,null,null,{"$f":"Import!E40654","v":"Select Yes/No"}]
[null,null,"Check individual against sanctions lists",null,null,null,null,null,{"$f":"Import!E40655","v":"Select Yes/No"}]
[null,null,"Check for any negative press against the individual",null,null,null,null,null,{"$f":"Import!E40656","v":"Select Yes/No"}]
[null,null,"Confirm employment history",null,null,null,null,null,{"$f":"Import!E40657","v":"Select Yes/No"}]
[null,null,"Confirm references",null,null,null,null,null,{"$f":"Import!E40658","v":"Select Yes/No"}]
[null,null,"Request details on any regulatory action taken against the individual",null,null,null,null,null,{"$f":"Import!E40659","v":"Select Yes/No"}]
[null,null,"Request details of any criminal convictions",null,null,null,null,null,{"$f":"Import!E40660","v":"Select Yes/No"}]
[]
[null,4,"Confirm if the Company’s Compliance Officer is a member of the senior management of the Company",null,null,null,null,null,{"$f":"Import!E40661","v":"Select Yes/No"}]
[]
["Section G - AML/ATF Controls"]
[null,1,"Does the Company has AML/ATF controls that are specific long-term insurance (not reinsurance)",null,null,null,null,null,{"$f":"Import!E40662","v":"Select Yes/No"}]
[null,2,"Does the Company has AML/ATF controls that are specific for all other general business or reinsurance",null,null,null,null,null,{"$f":"Import!E40663","v":"Select Yes/No"}]
[null,3,"Does the Company have other specific AML/ATF controls ",null,null,null,null,null,{"$f":"Import!E40664","v":"Select Yes/No"}]
[]
[null,null,"If you have answered 'Yes' to 3. describe briefly these AML/ATF controls"]
[null,null,{"$f":"Import!E40665","v":0}]
[]
[]
[]
[]
[]
[null,4,"Confirm the frequency with which it rates the AML/ATF risks.",null,null,null,null,null,{"$f":"Import!E40666","v":"Select Years"}]
[]
[null,5,"Whether senior management approval is required to approve new business, if the client has been risk rated as— "]
[null,null,null,null,"Low",null,"Medium",null,"High"]
[null,null,null,null,{"$f":"Import!E40667","v":"Select Yes/No"},null,{"$f":"Import!E40668","v":"Select Yes/No"},null,{"$f":"Import!E40669","v":"Select Yes/No"}]
[]
[null,6,"If senior management approval is required to retain an existing client, if the client’s risk rating has changed to—"]
[null,null,null,null,"Low",null,"Medium",null,"High"]
[null,null,null,null,{"$f":"Import!E40670","v":"Select Yes/No"},null,{"$f":"Import!E40671","v":"Select Yes/No"},null,{"$f":"Import!E40672","v":"Select Yes/No"}]
[]
[null,7,"Confirm if the policies & procedure manuals of the company relating to AML/ATF are in line with all applicable Bermuda laws & regulations",null,null,null,null,null,{"$f":"Import!E40673","v":"Select Yes/No"}]
[null,null,"7.1 Confirm the frequency for which the Company's  AML/ATF policies and procedures are reviewed",null,null,null,null,null,{"$f":"Import!E40674","v":"Select Years"}]
[null,"(attach a copy of the AML/ATF policies and procedure if they have been updated in the last 12 months to the Attachments tab)"]
[]
[null,8,"The date the Company last performed an entity-wide AML/ATF risk assessment.",null,null,null,null,null,{"$f":"Import!E40675","v":"(Select)"}]
[]
[null,9,"The date the Company last conducted an independent audit of its AML/ATF programme. ",null,null,null,null,null,{"$f":"Import!E40676","v":"(Select)"}]
[null,null,"    (attach a copy of the latest independent audit to the Attachments tab)"]
[]
[null,10,"The date of the last Compliance/ Reporting Officer report on the operation and effectiveness of the Company AML/ATF policies, procedures and controls.",null,null,null,null,null,{"$f":"Import!E40677","v":"(Select)"}]
[null,null," "]
[null,11,"Does the Company document the ML/TF risks associated with a product/service prior to launch?",null,null,null,null,null,{"$f":"Import!E40678","v":"Select Yes/No"}]
[]
["Section H - Company Data"]
[null,1,"Company Data",null,null,"Entity Name"]
[null,null,"1.1. Is the Company a Part of a Group?",null,null,null,null,null,{"$f":"Import!E40679","v":"Select Yes/No"}]
[null,null,null,null,null,"Entity Name",null,null,"RoC #"]
[null,null,"1.1.1. If yes, provide name of the Group and RoC number (where relevant).",null,null,{"$f":"Import!E40680","v":0},{"$f":"Import!F40680","v":0},null,{"$f":"Import!E40681","v":0}]
[]
[null,null,"1.1.2 Is the company listed on a stock exchange?",null,null,null,null,null,{"$f":"Import!E40682","v":"Select Yes/No"}]
[]
[null,null,"If yes, list the name of the exchange:"]
[null,null,{"$f":"Import!E40683","v":0}]
[null,null,{"$f":"Import!E40684","v":0}]
[null,null,{"$f":"Import!E40685","v":0}]
[]
[null,2," Confirm if the insurer is registered as a segregated accounts company (\"SAC\") in accordance with the requirements of the Segregated Accounts Act 2000 or of the Private Acts. "]
[null,null,"(a) If the insurer is a SAC, provide the number of: ",null,null,null,null,null,{"$f":"Import!E40686","v":0}]
[null,null,null,"(i) Active SAC’s ",null,null,null,null,{"$f":"Import!E40687","v":0}]
[null,null,null,"(ii) Non-Active SAC’s ",null,null,null,null,{"$f":"Import!E40688","v":0}]
[]
[null,3,"Confirm if the Insurer has designated investment contracts in accordance with the provisions of section 57A of the Insurance Act or of the Private Act. "]
[null,null,"If yes, provide the: ",null,null,null,null,null,{"$f":"Import!E40689","v":"Select Yes/No"}]
[null,null,"(a) Number of designated investment contracts approved; ",null,null,null,null,null,{"$f":"Import!E40690","v":0}]
[null,null,"(b) Net account value of the designated investments contracts at year-end.",null,null,null,null,null,{"$f":"Import!E40691","v":0}]
[]
[null,null,"Include any additional information/comments which you think might be relevant to this exercise?"]
[null,null,{"$f":"Import!E40692","v":0}]
[]
[]
[]
[]
[]
["Section I - Corporate Governance"]
[null,"Corporate Governance"]
[null,"The Company shall confirm the following information (to the best of its knowledge and belief) as at the reporting period:",null,null,null,null,null,null,"Select from the dropdown menu:"]
[null,1,"The powers, roles, responsibilities and accountabilities between the Board and management are clearly defined, segregated and understood.",null,null,null,null,null,{"$f":"Import!E40693","v":"Select Yes/No"}]
[null,2,"The Company reviews and monitors the structure, size and composition of the Board and recommends improvements to ensure its compliance to the applicable laws, regulations, listing rules and Company policies. ",null,null,null,null,null,{"$f":"Import!E40694","v":"Select Yes/No"}]
[null,3,"The Audit and Risk Management Committee and/or any related committee, assists the Board in fulfilling its oversight function through the review and evaluation of the financial reporting process and adequacy and effectiveness of the system of internal controls, including financial reporting control and information technology security. ","The Audit and Risk Management Committee and/or any related committee, assists the Board in fulfilling its oversight function through the review and evaluation of the financial reporting process and adequacy and effectiveness of the system of internal controls, including financial reporting control and information technology security. ","The Audit and Risk Management Committee and/or any related committee, assists the Board in fulfilling its oversight function through the review and evaluation of the financial reporting process and adequacy and effectiveness of the system of internal controls, including financial reporting control and information technology security. ","The Audit and Risk Management Committee and/or any related committee, assists the Board in fulfilling its oversight function through the review and evaluation of the financial reporting process and adequacy and effectiveness of the system of internal controls, including financial reporting control and information technology security. ","The Audit and Risk Management Committee and/or any related committee, assists the Board in fulfilling its oversight function through the review and evaluation of the financial reporting process and adequacy and effectiveness of the system of internal controls, including financial reporting control and information technology security. ","The Audit and Risk Management Committee and/or any related committee, assists the Board in fulfilling its oversight function through the review and evaluation of the financial reporting process and adequacy and effectiveness of the system of internal controls, including financial reporting control and information technology security. ",{"$f":"Import!E40695","v":"Select Yes/No"}]
[null,4,"The AML/ATF Audit Committee and/or any related committee, assists the Board in fulfilling its oversight function and receives sufficient information to assess and understand management’s process for evaluating the organisation’s system of internal controls","The AML/ATF Audit Committee and/or any related committee, assists the Board in fulfilling its oversight function and receives sufficient information to assess and understand management’s process for evaluating the organization’s system of internal controls","The AML/ATF Audit Committee and/or any related committee, assists the Board in fulfilling its oversight function and receives sufficient information to assess and understand management’s process for evaluating the organization’s system of internal controls","The AML/ATF Audit Committee and/or any related committee, assists the Board in fulfilling its oversight function and receives sufficient information to assess and understand management’s process for evaluating the organization’s system of internal controls","The AML/ATF Audit Committee and/or any related committee, assists the Board in fulfilling its oversight function and receives sufficient information to assess and understand management’s process for evaluating the organization’s system of internal controls","The AML/ATF Audit Committee and/or any related committee, assists the Board in fulfilling its oversight function and receives sufficient information to assess and understand management’s process for evaluating the organization’s system of internal controls",{"$f":"Import!E40696","v":"Select Yes/No"}]
[null,5,"The Board ensures that the Company complies with all relevant laws and regulations and endeavours to adopt accepted best business practices.","The Board ensures that the Company complies with all relevant laws and regulations and endeavours to adopt accepted best business practices.","The Board ensures that the Company complies with all relevant laws and regulations and endeavours to adopt accepted best business practices.","The Board ensures that the Company complies with all relevant laws and regulations and endeavours to adopt accepted best business practices.","The Board ensures that the Company complies with all relevant laws and regulations and endeavours to adopt accepted best business practices.","The Board ensures that the Company complies with all relevant laws and regulations and endeavours to adopt accepted best business practices.",{"$f":"Import!E40697","v":"Select Yes/No"}]
[null,6,"The Board and senior management declare their personal dealings to HR and the Compliance department.","The Board and senior management declare their personal dealings to HR and the Compliance department.","The Board and senior management declare their personal dealings to HR and the Compliance department.","The Board and senior management declare their personal dealings to HR and the Compliance department.","The Board and senior management declare their personal dealings to HR and the Compliance department.","The Board and senior management declare their personal dealings to HR and the Compliance department.",{"$f":"Import!E40698","v":"Select Yes/No"}]
[null,7,"The Board provides oversight with regard to enterprise risk management and identifies key risk areas and key performance indicators and monitors these factors with due diligence.","The Board provides oversight with regard to enterprise risk management and identifies key risk areas and key performance indicators and monitor these factors with due diligence.","The Board provides oversight with regard to enterprise risk management and identifies key risk areas and key performance indicators and monitor these factors with due diligence.","The Board provides oversight with regard to enterprise risk management and identifies key risk areas and key performance indicators and monitor these factors with due diligence.","The Board provides oversight with regard to enterprise risk management and identifies key risk areas and key performance indicators and monitor these factors with due diligence.","The Board provides oversight with regard to enterprise risk management and identifies key risk areas and key performance indicators and monitor these factors with due diligence.",{"$f":"Import!E40699","v":"Select Yes/No"}]
[null,8,"Board members ensure there is appropriate oversight by senior management consistent with board policy.","Board members ensure there is appropriate oversight by senior management consistent with board policy.","Board members ensure there is appropriate oversight by senior management consistent with board policy.","Board members ensure there is appropriate oversight by senior management consistent with board policy.","Board members ensure there is appropriate oversight by senior management consistent with board policy.","Board members ensure there is appropriate oversight by senior management consistent with board policy.",{"$f":"Import!E40700","v":"Select Yes/No"}]
[null,9,"Board members set and enforce clear lines of responsibility and accountability throughout the organisation.","Board members set and enforce clear lines of responsibility and accountability throughout the organisation.","Board members set and enforce clear lines of responsibility and accountability throughout the organisation.","Board members set and enforce clear lines of responsibility and accountability throughout the organisation.","Board members set and enforce clear lines of responsibility and accountability throughout the organisation.","Board members set and enforce clear lines of responsibility and accountability throughout the organisation.",{"$f":"Import!E40701","v":"Select Yes/No"}]
[null,10,"The Board regularly and periodically (at least annually) monitors the management’s compliance with policies set by the Board and its performance based on approved targets and objectives.","The Board regularly and periodically (at least annually) monitors the management’s compliance with policies set by the Board and its performance based on approved targets and objectives.","The Board regularly and periodically (at least annually) monitors the management’s compliance with policies set by the Board and its performance based on approved targets and objectives.","The Board regularly and periodically (at least annually) monitors the management’s compliance with policies set by the Board and its performance based on approved targets and objectives.","The Board regularly and periodically (at least annually) monitors the management’s compliance with policies set by the Board and its performance based on approved targets and objectives.","The Board regularly and periodically (at least annually) monitors the management’s compliance with policies set by the Board and its performance based on approved targets and objectives.",{"$f":"Import!E40702","v":"Select Yes/No"}]
[null,11,"The Board receives advice on all major financing transactions, principal agreements and capitalisation requiring Board approval and makes appropriate recommendations for their consideration.","The Board receives advice on all major financing transactions, principal agreements and capitalisation requiring Board approval and makes appropriate recommendations for their consideration.","The Board receives advice on all major financing transactions, principal agreements and capitalisation requiring Board approval and makes appropriate recommendations for their consideration.","The Board receives advice on all major financing transactions, principal agreements and capitalisation requiring Board approval and makes appropriate recommendations for their consideration.","The Board receives advice on all major financing transactions, principal agreements and capitalisation requiring Board approval and makes appropriate recommendations for their consideration.","The Board receives advice on all major financing transactions, principal agreements and capitalisation requiring Board approval and makes appropriate recommendations for their consideration.",{"$f":"Import!E40703","v":"Select Yes/No"}]
[null,12,"The compliance and audit function are independent of all operational and business functions as far as practicable and has a direct line of communication to senior management.","The compliance and audit function are independent of all operational and business functions as far as practicable and has a direct line of communication to senior management.","The compliance and audit function are independent of all operational and business functions as far as practicable and has a direct line of communication to senior management.","The compliance and audit function are independent of all operational and business functions as far as practicable and has a direct line of communication to senior management.","The compliance and audit function are independent of all operational and business functions as far as practicable and has a direct line of communication to senior management.","The compliance and audit function are independent of all operational and business functions as far as practicable and has a direct line of communication to senior management.",{"$f":"Import!E40704","v":"Select Yes/No"}]
[null,13," The Compliance Officer has direct access to senior management"," The Compliance Officer has direct access to senior management"," The Compliance Officer has direct access to senior management"," The Compliance Officer has direct access to senior management"," The Compliance Officer has direct access to senior management"," The Compliance Officer has direct access to senior management",{"$f":"Import!E40705","v":"Select Yes/No"}]
[]
[null,"Employee  Integrity"]
[]
[null,14,"The Company establishes, maintains and operates appropriate procedures in order to be satisfied of the integrity of any new employees?","The Company establishes, maintains and operates appropriate procedures in order to be satisfied of the integrity of any new employees?","The Company establishes, maintains and operates appropriate procedures in order to be satisfied of the integrity of any new employees?","The Company establishes, maintains and operates appropriate procedures in order to be satisfied of the integrity of any new employees?","The Company establishes, maintains and operates appropriate procedures in order to be satisfied of the integrity of any new employees?","The Company establishes, maintains and operates appropriate procedures in order to be satisfied of the integrity of any new employees?",{"$f":"Import!E40706","v":"Select Yes/No"}]
[null,15,"There are appropriate mechanisms that ensure the protection of the Company’s staff for reporting suspicious transactions and their other actions to comply with AML/ATF obligations.","There are appropriate mechanisms that ensure the protection of the Company’s staff for reporting suspicious transactions and their other actions to comply with AML/ATF obligations.","There are appropriate mechanisms that ensure the protection of the Company’s staff for reporting suspicious transactions and their other actions to comply with AML/ATF obligations.","There are appropriate mechanisms that ensure the protection of the Company’s staff for reporting suspicious transactions and their other actions to comply with AML/ATF obligations.","There are appropriate mechanisms that ensure the protection of the Company’s staff for reporting suspicious transactions and their other actions to comply with AML/ATF obligations.","There are appropriate mechanisms that ensure the protection of the Company’s staff for reporting suspicious transactions and their other actions to comply with AML/ATF obligations.",{"$f":"Import!E40707","v":"Select Yes/No"}]
[null,16,"There are adequate procedures or management information systems in place to provide relevant staff with timely information that might include any information on any connected accounts or relationships.","There are adequate procedures or management information systems in place to provide relevant staff with timely information that might include any information on any connected accounts or relationships.","There are adequate procedures or management information systems in place to provide relevant staff with timely information that might include any information on any connected accounts or relationships.","There are adequate procedures or management information systems in place to provide relevant staff with timely information that might include any information on any connected accounts or relationships.","There are adequate procedures or management information systems in place to provide relevant staff with timely information that might include any information on any connected accounts or relationships.","There are adequate procedures or management information systems in place to provide relevant staff with timely information that might include any information on any connected accounts or relationships.",{"$f":"Import!E40708","v":"Select Yes/No"}]
[null,17,"There are adequate procedures or management information systems in place to ensure relevant legal obligations are well understood by staff and adequate guidance and training is provided.","There are adequate procedures or management information systems in place to ensure relevant legal obligations are well understood by staff and adequate guidance and training is provided.","There are adequate procedures or management information systems in place to ensure relevant legal obligations are well understood by staff and adequate guidance and training is provided.","There are adequate procedures or management information systems in place to ensure relevant legal obligations are well understood by staff and adequate guidance and training is provided.","There are adequate procedures or management information systems in place to ensure relevant legal obligations are well understood by staff and adequate guidance and training is provided.","There are adequate procedures or management information systems in place to ensure relevant legal obligations are well understood by staff and adequate guidance and training is provided.",{"$f":"Import!E40709","v":"Select Yes/No"}]
[null,18,"The incidence of integrity failure (e.g. theft, fraud) involving the Company’s staff is low","The incidence of integrity failure (e.g. theft, fraud) involving the Company’s staff is low","The incidence of integrity failure (e.g. theft, fraud) involving the Company’s staff is low","The incidence of integrity failure (e.g. theft, fraud) involving the Company’s staff is low","The incidence of integrity failure (e.g. theft, fraud) involving the Company’s staff is low","The incidence of integrity failure (e.g. theft, fraud) involving the Company’s staff is low",{"$f":"Import!E40710","v":"Select Yes/No"}]
[]
[null,"Employee  Knowledge"]
[]
[null,19,"All staff know who the AML/ATF Compliance Officer is and report all suspicious activities.","All staff know who the AML/ATF Compliance Officer is and report all suspicious activities.","All staff know who the AML/ATF Compliance Officer is and report all suspicious activities.","All staff know who the AML/ATF Compliance Officer is and report all suspicious activities.","All staff know who the AML/ATF Compliance Officer is and report all suspicious activities.","All staff know who the AML/ATF Compliance Officer is and report all suspicious activities.",{"$f":"Import!E40711","v":"Select Yes/No"}]
[null,20,"Training programmes are designed to cover the AML/ATF risks of the Company in order to ensure that all appropriate staff members are trained.","Training programmes are designed to cover the AML/ATF risks of the Company in order to ensure that all appropriate staff members are trained.","Training programmes are designed to cover the AML/ATF risks of the Company in order to ensure that all appropriate staff members are trained.","Training programmes are designed to cover the AML/ATF risks of the Company in order to ensure that all appropriate staff members are trained.","Training programmes are designed to cover the AML/ATF risks of the Company in order to ensure that all appropriate staff members are trained.","Training programmes are designed to cover the AML/ATF risks of the Company in order to ensure that all appropriate staff members are trained.",{"$f":"Import!E40712","v":"Select Yes/No"}]
[null,21,"The Company has an appropriate number of suitably trained staff and other resources necessary to implement and operate its AML/ATF programme.","The Company has an appropriate number of suitably trained staff and other resources necessary to implement and operate its AML/ATF program.","The Company has an appropriate number of suitably trained staff and other resources necessary to implement and operate its AML/ATF program.","The Company has an appropriate number of suitably trained staff and other resources necessary to implement and operate its AML/ATF program.","The Company has an appropriate number of suitably trained staff and other resources necessary to implement and operate its AML/ATF program.","The Company has an appropriate number of suitably trained staff and other resources necessary to implement and operate its AML/ATF program.",{"$f":"Import!E40713","v":"Select Yes/No"}]
[null,22,"Staff comply fully with all Anti-Money Laundering procedures in respect of customer identification, account monitoring, record keeping and reporting.","Staff comply fully with all Anti Money Laundering procedures in respect of customer identification, account monitoring, record keeping and reporting.","Staff comply fully with all Anti Money Laundering procedures in respect of customer identification, account monitoring, record keeping and reporting.","Staff comply fully with all Anti Money Laundering procedures in respect of customer identification, account monitoring, record keeping and reporting.","Staff comply fully with all Anti Money Laundering procedures in respect of customer identification, account monitoring, record keeping and reporting.","Staff comply fully with all Anti Money Laundering procedures in respect of customer identification, account monitoring, record keeping and reporting.",{"$f":"Import!E40714","v":"Select Yes/No"}]
[null,23,"Staff remain vigilant to the possibility of ML/TF.","Staff remain vigilant to the possibility of ML/TF.","Staff remain vigilant to the possibility of ML/TF.","Staff remain vigilant to the possibility of ML/TF.","Staff remain vigilant to the possibility of ML/TF.","Staff remain vigilant to the possibility of ML/TF.",{"$f":"Import!E40715","v":"Select Yes/No"}]
[null,24,"Staff who violate any of the AML/ATF regulations or the policies and procedures outlined in the handbook will be subject to disciplinary action.","Staff who violate any of the AML/ATF regulations or the policies and procedures outlined in the handbook will be subject to disciplinary action.","Staff who violate any of the AML/ATF regulations or the policies and procedures outlined in the handbook will be subject to disciplinary action.","Staff who violate any of the AML/ATF regulations or the policies and procedures outlined in the handbook will be subject to disciplinary action.","Staff who violate any of the AML/ATF regulations or the policies and procedures outlined in the handbook will be subject to disciplinary action.","Staff who violate any of the AML/ATF regulations or the policies and procedures outlined in the handbook will be subject to disciplinary action.",{"$f":"Import!E40716","v":"Select Yes/No"}]
[null,25,"All staff members are required to undergo refresher training to ensure that their knowledge of AML/ATF laws, policies and procedure is current (at least annually).","All staff members are required to undergo refresher training to ensure that their knowledge of AML/ATF laws, policies and procedure is current (at least annually).","All staff members are required to undergo refresher training to ensure that their knowledge of AML/ATF laws, policies and procedure is current (at least annually).","All staff members are required to undergo refresher training to ensure that their knowledge of AML/ATF laws, policies and procedure is current (at least annually).","All staff members are required to undergo refresher training to ensure that their knowledge of AML/ATF laws, policies and procedure is current (at least annually).","All staff members are required to undergo refresher training to ensure that their knowledge of AML/ATF laws, policies and procedure is current (at least annually).",{"$f":"Import!E40717","v":"Select Yes/No"}]
[null,26,"Company staff are updated on ML/TF schemes and typologies on a regular basis.","Company staff are updated on ML/TF schemes and typologies on a regular basis.","Company staff are updated on ML/TF schemes and typologies on a regular basis.","Company staff are updated on ML/TF schemes and typologies on a regular basis.","Company staff are updated on ML/TF schemes and typologies on a regular basis.","Company staff are updated on ML/TF schemes and typologies on a regular basis.",{"$f":"Import!E40718","v":"Select Yes/No"}]
[null,27,"Staff are required to declare their personal dealings relevant in the jurisdictions that the Company operates on  a regular basis (at least annually)","Staff are required to declare their personal dealings relevant in the jurisdictions that the Company operates on  a regular basis (at least annually)","Staff are required to declare their personal dealings relevant in the jurisdictions that the Company operates on  a regular basis (at least annually)","Staff are required to declare their personal dealings relevant in the jurisdictions that the Company operates on  a regular basis (at least annually)","Staff are required to declare their personal dealings relevant in the jurisdictions that the Company operates on  a regular basis (at least annually)","Staff are required to declare their personal dealings relevant in the jurisdictions that the Company operates on  a regular basis (at least annually)",{"$f":"Import!E40719","v":"Select Yes/No"}]
[]
[null,"Employee  Compliance"]
[]
[null,28,"The Company ensures that the Compliance Officer is the focal point for the oversight of all activities relating to the prevention and detection of ML/TF.","The Company ensures that the Compliance Officer is the focal point for the oversight of all activities relating to the prevention and detection of ML/TF.","The Company ensures that the Compliance Officer is the focal point for the oversight of all activities relating to the prevention and detection of ML/TF.","The Company ensures that the Compliance Officer is the focal point for the oversight of all activities relating to the prevention and detection of ML/TF.","The Company ensures that the Compliance Officer is the focal point for the oversight of all activities relating to the prevention and detection of ML/TF.","The Company ensures that the Compliance Officer is the focal point for the oversight of all activities relating to the prevention and detection of ML/TF.",{"$f":"Import!E40720","v":"Select Yes/No"}]
[null,29,"The Compliance Office is fully conversant in regulatory requirements and AML/ATF risks arising from your business.","The Compliance Office is fully conversant in regulatory requirements and AML/ATF risks arising from your business.","The Compliance Office is fully conversant in regulatory requirements and AML/ATF risks arising from your business.","The Compliance Office is fully conversant in regulatory requirements and AML/ATF risks arising from your business.","The Compliance Office is fully conversant in regulatory requirements and AML/ATF risks arising from your business.","The Compliance Office is fully conversant in regulatory requirements and AML/ATF risks arising from your business.",{"$f":"Import!E40721","v":"Select Yes/No"}]
[null,30,"The AML/ATF Audit Committee monitors compliance with corporate governance regulations and guidelines.","The AML/ATF Audit Committee monitors compliance with corporate governance regulations and guidelines.","The AML/ATF Audit Committee monitors compliance with corporate governance regulations and guidelines.","The AML/ATF Audit Committee monitors compliance with corporate governance regulations and guidelines.","The AML/ATF Audit Committee monitors compliance with corporate governance regulations and guidelines.","The AML/ATF Audit Committee monitors compliance with corporate governance regulations and guidelines.",{"$f":"Import!E40722","v":"Select Yes/No"}]
[null,31,"The AML/ATF Audit Committee believes that management’s scope of internal control testing adequately supports its internal control assessment and receives regular reports (at least annually) from the senior management.","The AML/ATF Audit Committee believes that management’s scope of internal control testing adequately supports its internal control assessment and receives regular reports (at least annually) from the senior management.","The AML/ATF Audit Committee believes that management’s scope of internal control testing adequately supports its internal control assessment and receives regular reports (at least annually) from the senior management.","The AML/ATF Audit Committee believes that management’s scope of internal control testing adequately supports its internal control assessment and receives regular reports (at least annually) from the senior management.","The AML/ATF Audit Committee believes that management’s scope of internal control testing adequately supports its internal control assessment and receives regular reports (at least annually) from the senior management.","The AML/ATF Audit Committee believes that management’s scope of internal control testing adequately supports its internal control assessment and receives regular reports (at least annually) from the senior management.",{"$f":"Import!E40723","v":"Select Yes/No"}]
[null,null,null,null,null,null,null,null,null,null,null,null,null,null,null,null,null,null,""]
[]
[]
[null,null,null,null,null,null,null,2016,"Every year","Yes"]
[null,null,null,null,null,null,null,2015,"1 to 2 years","No"]
[null,null,null,null,null,null,null,2014,"2 to 5 years"]
[null,null,null,null,null,null,null,2013,"+5 years"]
[null,null,null,null,null,null,null,2012]
[null,null,null,null,null,null,null,"Prior 2012"]

{"sheet":"SAR & Sanc. (All)","index":14,"n_rows":66,"n_cols":10,"rows_kept":66,"cut":false,"hidden":false,"merged":[[0,1,0,4],[52,2,56,9],[9,2,9,4],[13,2,13,4],[16,2,16,4],[27,2,31,9],[43,5,43,7],[44,5,44,7],[45,5,45,7],[46,5,46,7],[47,5,47,7],[4,1,4,9],[34,2,34,7]]}
[null,"SCHEDULE OF SUSPICIOUS ACTIVITY REPORTING AND SANCTIONS",null,null,null,null,null,null,null,{"$f":"HYPERLINK(\"#'Index'!A1\",\"Return to Index\")","v":"Return to Index"}]
[null,{"$f":"'Insurer Information'!C7","v":"Enter Company Name"}]
[null,{"$f":" TEXT('Insurer Information'!C3,\"D MMMM YYYY\")","v":"31 December 2023"},null,null,null,null,null,null,null,"SAR & Sanctions"]
[]
[null,"All insurers shall be required to complete the questions set out in the Suspicious Activity Reporting and Sanctions Schedule (on an unconsolidated basis). "]
[]
["Section E - Reporting"]
[null,1,"Is your company registered with GoAML at www.fia.bm",null,null,null,null,null,{"$f":"Import!E40725","v":"Select Yes/No"}]
[null,null,"1.1 If yes, under what name and when?"]
[null,null,{"$f":"Import!E40727","v":0},null,null,null,null,null,{"$f":"Import!E40726","v":"(Select)"}]
[]
[null,null,"1.2 If you answered no to 1., do you have access to GoAML through another registration?",null,null,null,null,null,{"$f":"Import!E40728","v":"Select Yes/No"}]
[null,null,"1.3 Under what name and how are you connected?"]
[null,null,{"$f":"Import!E40729","v":0}]
[]
[null,null,"1.4 if you answered no to 1. and 1.2 who would file a SAR on your behalf?"]
[null,null,{"$f":"Import!E40730","v":0}]
[]
[null,2,"How many Suspicious Activity Reports (SAR) have been filed?"]
[null,null,null,null,null,null,"Internal",null,"With FIA"]
[null,null,null,null,null,{"$f":"YEAR($B$3)","v":2023},{"$f":"Import!E40731","v":0},{"$f":"YEAR($B$3)","v":2023},{"$f":"Import!E40736","v":0}]
[null,null,null,null,null,{"$f":"F21-1","v":2022},{"$f":"Import!E40732","v":0},{"$f":"H21-1","v":2022},{"$f":"Import!E40737","v":0}]
[null,null,null,null,null,{"$f":"F22-1","v":2021},{"$f":"Import!E40733","v":0},{"$f":"H22-1","v":2021},{"$f":"Import!E40738","v":0}]
[null,null,null,null,null,2020,{"$f":"Import!E40734","v":0},2020,{"$f":"Import!E40739","v":0}]
[null,null,null,null,null,"Total",{"$f":"SUM(G21:G24)","v":0},"Total",{"$f":"SUM(I21:I24)","v":0}]
[]
[null,null,"Include any additional information/comments which you think might be relevant to this exercise?"]
[null,null,{"$f":"Import!E40741","v":0}]
[]
[]
[]
[]
[]
["SANCTIONS QUESTIONNAIRE"]
[null,1,"Does the company screen insurers and beneficiaries (where relevant) to determine if they are subject to measures imposed under Bermuda sanctions regime?",null,null,null,null,null,{"$f":"Import!E40742","v":"Select Yes/No"}]
[]
[null,2,"Does the company screen employees to determine if they are subject to measures imposed under Bermuda sanctions regime?",null,null,null,null,null,{"$f":"Import!E40743","v":"Select Yes/No"}]
[]
[null,3,"Has the Company frozen any customer assets in the last 12 months under the Bermuda sanctions regime?",null,null,null,null,null,{"$f":"Import!E40744","v":"Select Yes/No"}]
[]
[null,null,"3.1 If yes, how many asset freezes have there been?",null,null,null,null,null,{"$f":"Import!E40745","v":0}]
[]
[null,null,"3.2 Provide the following details for those assets freezes from the consolidated list:"]
[null,null,null,null,"Group ID","Name of the designated person as given on the consolidated list",null,null,"Name of the person/entity if owned/controlled by a designated person.","Value of Assets"]
[null,null,null,1,{"$f":"Import!E40746","v":0},{"$f":"Import!E40750","v":0},null,null,{"$f":"Import!E40754","v":0},{"$f":"Import!E40758","v":0}]
[null,null,null,2,{"$f":"Import!E40747","v":0},{"$f":"Import!E40751","v":0},null,null,{"$f":"Import!E40755","v":0},{"$f":"Import!E40759","v":0}]
[null,null,null,3,{"$f":"Import!E40748","v":0},{"$f":"Import!E40752","v":0},null,null,{"$f":"Import!E40756","v":0},{"$f":"Import!E40760","v":0}]
[null,null,null,4,{"$f":"Import!E40749","v":0},{"$f":"Import!E40753","v":0},null,null,{"$f":"Import!E40757","v":0},{"$f":"Import!E40761","v":0}]
[]
[null,4,"How often does the licensee screen for sanctions?",null,null,null,null,null,{"$f":"Import!E40763","v":"Select"}]
[]
[null,null,"Include any additional information/comments which you think might be relevant to this exercise?"]
[null,null,{"$f":"Import!E40764","v":0}]
[]
[]
[]
[]
[]
[]
[]
[null,null,null,null,null,null,null,2016,"Every year","Yes"]
[null,null,null,null,null,null,null,2015,"1 to 2 years","No"]
[null,null,null,null,null,null,null,2014,"2 to 5 years"]
[null,null,null,null,null,null,null,2013,"+5 years"]
[null,null,null,null,null,null,null,2012]
[null,null,null,null,null,null,null,"Prior 2012"]

{"sheet":"AML Reference","index":15,"n_rows":125,"n_cols":10,"rows_kept":125,"cut":false,"hidden":false,"merged":[[0,1,0,7]]}
[null,"SCHEDULE OF ANTI-MONEY LAUNDERING AND ANTI-TERRORIST FINANCING ",null,null,null,null,null,null,null,{"$f":"HYPERLINK(\"#'Index'!A1\",\"Return to Index\")","v":"Return to Index"}]
[null,{"$f":"'Insurer Information'!C7","v":"Enter Company Name"}]
[null,{"$f":" TEXT('Insurer Information'!C3,\"D MMMM YYYY\")","v":"31 December 2023"},null,null,null,null,null,null,null,"AML Reference"]
[]
["Table A – Underwriting Geographical Zones"]
[]
[null,null,"Zone 1 - Central & Western Asia"]
[null,null,null,"Armenia",null,"Azerbaijan",null,"Bahrain",null,"Georgia"]
[null,null,null,"Iraq",null,"Israel",null,"Jordan",null,"Kazakhstan"]
[null,null,null,"Kuwait",null,"Kyrgyzstan",null,"Lebanon",null,"Oman"]
[null,null,null,"Palestinian",null,"Qatar",null,"Saudi Arabia",null,"Syria"]
[null,null,null,"Tajikistan",null,"Turkey",null,"Turkmenistan",null,"United Arab Emirates"]
[null,null,null,"Uzbekistan",null,"Yemen"]
[]
[null,null,"Zone 2 - Eastern Asia"]
[null,null,null,"China",null,"Hong Kong",null,"Japan",null,"Macao"]
[null,null,null,"Mongolia",null,"North Korea",null,"South Korea",null,"Taiwan"]
[]
[null,null,"Zone 3 - South and South-Eastern Asia"]
[null,null,null,"Afghanistan",null,"Bangladesh",null,"Bhutan",null,"Brunei Darussalam"]
[null,null,null,"Cambodia",null,"India",null,"Indonesia",null,"Iran"]
[null,null,null,"Lao PDR",null,"Malaysia",null,"Maldives",null,"Myanmar"]
[null,null,null,"Nepal",null,"Pakistan",null,"Philippines",null,"Singapore"]
[null,null,null,"Sri Lanka",null,"Thailand",null,"Timor-Leste",null,"Vietnam"]
[]
[null,null,"Zone 4 - Oceania"]
[null,null,null,"American Samoa",null,"Australia",null,"Cook Islands",null,"Fiji"]
[null,null,null,"French Polynesia",null,"Guam",null,"Kiribati",null,"Marshall Islands"]
[null,null,null,"Micronesia",null,"Nauru",null,"New Caledonia",null,"New Zealand"]
[null,null,null,"Niue",null,"Norfolk Island",null,"N. Mariana Islands",null,"Palau"]
[null,null,null,"Papua New Guinea",null,"Pitcairn",null,"Samoa",null,"Solomon Islands"]
[null,null,null,"Tokelau",null,"Tonga",null,"Tuvalu",null,"Vanuatu"]
[null,null,null,"Wallis & Futuna Islands"]
[]
[null,null,"Zone 5 - Northern Africa"]
[null,null,null,"Algeria",null,"Benin",null,"Burkina Faso",null,"Cameroon"]
[null,null,null,"Cape Verde",null,"Central African Republic",null,"Chad",null,"Cote d' Ivoire"]
[null,null,null,"Egypt",null,"Gambia",null,"Ghana",null,"Guinea"]
[null,null,null,"Guinea-Bissau",null,"Liberia",null,"Libya",null,"Mali"]
[null,null,null,"Mauritania",null,"Morocco",null,"Niger",null,"Nigeria"]
[null,null,null,"Saint Helena",null,"Senegal",null,"Sierra Leone",null,"Sudan"]
[null,null,null,"Togo",null,"Tunisia",null,"Western Sahara"]
[]
[null,null,"Zone 6 - Southern Africa"]
[null,null,null,"Angola",null,"Botswana",null,"Burundi",null,"Democratic Republic of Congo"]
[null,null,null,"Comoros",null,"Djibouti",null,"Equatorial Guinea",null,"Eritrea"]
[null,null,null,"Ethiopia",null,"Gabon",null,"Kenya",null,"Lesotho"]
[null,null,null,"Madagascar",null,"Malawi",null,"Mauritius",null,"Mayotte"]
[null,null,null,"Mozambique",null,"Namibia",null,"Republic of Congo",null,"Reunion"]
[null,null,null,"Rwanda",null,"Sao Tome & Principe",null,"Seychelles",null,"Somalia"]
[null,null,null,"South Africa",null,"Swaziland",null,"Uganda",null,"United Republic of Tanzania"]
[null,null,null,"Zambia",null,"Zimbabwe"]
[]
[null,null,"Zone 7 - Eastern Europe"]
[null,null,null,"Belarus",null,"Bulgaria",null,"Czech Republic",null,"Hungary"]
[null,null,null,"Moldova",null,"Poland",null,"Romania",null,"Russian Federation"]
[null,null,null,"Slovakia",null,"Ukraine"]
[]
[null,null,"Zone 8 - Northern Europe"]
[null,null,null,"Aland Islands",null,"Denmark",null,"Estonia",null,"Faeroe Islands"]
[null,null,null,"Finland",null,"Guernsey",null,"Iceland",null,"Republic of Ireland"]
[null,null,null,"Isle of Man",null,"Jersey",null,"Latvia",null,"Lithuania"]
[null,null,null,"Norway",null,"Svalbard, Jan Mayen",null,"Sweden",null,"United Kingdom"]
[]
[null,null,"Zone 9 - Southern Europe"]
[null,null,null,"Albania",null,"Andorra",null,"Bosnia and Herzegovina",null,"Croatia"]
[null,null,null,"Cyprus",null,"Gibraltar",null,"Greece",null,"Italy"]
[null,null,null,"fYR of Macedonia",null,"Malta",null,"Montenegro",null,"Portugal"]
[null,null,null,"San Marino",null,"Serbia",null,"Slovenia",null,"Spain"]
[null,null,null,"Vatican City"]
[]
[null,null,"Zone 10 - Western Europe"]
[null,null,null,"Austria",null,"Belgium",null,"France",null,"Germany"]
[null,null,null,"Liechtenstein",null,"Luxembourg",null,"Monaco",null,"Netherlands"]
[null,null,null,"Switzerland"]
[]
[null,null,"Zone 11 - Northern America (Excluding USA)"]
[null,null,null,"Canada",null,"Greenland",null,"St Pierre & Miquelon"]
[]
[null,null,"Zone 12 - Caribbean"]
[null,null,null,"Anguilla",null,"Antigua & Barbuda",null,"Aruba",null,"Bahamas"]
[null,null,null,"Barbados",null,"British Virgin Islands",null,"Cayman Islands",null,"Cuba"]
[null,null,null,"Dominica",null,"Dominican Republic",null,"El Salvador",null,"Grenada"]
[null,null,null,"Guadeloupe",null,"Haiti",null,"Montserrat",null,"Netherlands Antilles (Curacao and Bonaire)"]
[null,null,null,"Puerto Rico",null,"St-Barthelemy",null,"St Kitts & Nevis",null,"St Lucia"]
[null,null,null,"St. Maarten",null,"St. Vincent & the Grenadines",null,"Trinidad & Tobago",null,"Turks & Caicos Islands"]
[null,null,null,"US Virgin Islands",null,"Jamica"]
[]
[null,null,"Zone 13 - Eastern South America"]
[null,null,null,"Brazil",null,"Falkland Islands",null,"French Guiana",null,"Guyana"]
[null,null,null,"Paraguay",null,"Suriname",null,"Uruguay"]
[]
[null,null,"Zone 14 - Northern, Southern and Western South America"]
[null,null,null,"Argentina",null,"Bolivia",null,"Chile",null,"Colombia"]
[null,null,null,"Ecuador",null,"Peru",null,"Venezuela"]
[]
[null,null,"Zone 15 - North-East United States"]
[null,null,null,"Connecticut",null,"Delaware",null,"District of Columbia",null,"Maine"]
[null,null,null,"Maryland",null,"Massachusetts",null,"New Hampshire",null,"New Jersey"]
[null,null,null,"New York",null,"Pennsylvania",null,"Rhode Island",null,"Vermont"]
[]
[null,null,"Zone 16 - South-East United States"]
[null,null,null,"Alabama",null,"Arkansas",null,"Florida",null,"Georgia"]
[null,null,null,"Kentucky",null,"Louisiana",null,"Mississippi",null,"North Carolina"]
[null,null,null,"Puerto Rico",null,"South Carolina",null,"Tennessee",null,"Virginia"]
[null,null,null,"West Virigina"]
[]
[null,null,"Zone 17 - Mid-West United States"]
[null,null,null,"Illinois",null,"Indiana",null,"Iowa",null,"Kansas"]
[null,null,null,"Michigan",null,"Minnesota",null,"Missouri",null,"Nebraska"]
[null,null,null,"North Dakota",null,"Ohio",null,"Oklahoma",null,"South Dakota"]
[null,null,null,"Wisconsin"]
[]
[null,null,"Zone 18 - Western United States"]
[null,null,null,"Alaska",null,"Arizona",null,"California",null,"Colorado"]
[null,null,null,"Hawaii",null,"Idaho",null,"Montana",null,"Nevada"]
[null,null,null,"New Mexico",null,"Oregon",null,"Texas",null,"Utah"]
[null,null,null,"Washington",null,"Wyoming"]
[]
[null,null,"Zone 19 - Central America"]
[null,null,null,"Belize",null,"Costa Rica",null,"Guatemala",null,"Honduras"]
[null,null,null,"Mexico",null,"Nicaragua",null,"Panama"]
[]
[null,null,"Zone 20 - Bermuda"]
[null,null,null,"Bermuda"]

{"sheet":"Information Sheet","index":16,"n_rows":132,"n_cols":8,"rows_kept":132,"cut":false,"hidden":false,"merged":[[8,2,9,6],[42,2,44,6],[86,2,87,6],[88,2,89,6],[28,2,28,6],[31,2,31,6],[40,2,40,6]]}
[null,"Insurer Information Sheet",null,null,null,null,null,{"$f":"HYPERLINK(\"#'Index'!A1\",\"Return to Index\")","v":"Return to Index"}]
[]
[null,"(a)","Name of Insurer:",null,null,null,null,{"$f":"+'Insurer Information'!C7","v":"Enter Company Name"}]
[]
[null,"(b)","Certificate of Registration Number",null,null,null,null,{"$f":"+'Insurer Information'!F11","v":0}]
[]
[null,"(c)","Class of Registration:",null,null,null,null,{"$f":"+'Insurer Information'!F9","v":"Class C"}]
[]
[null,"(d)","Statements are available at the insurer's registered office in Bermuda pursuant to section 17(1) or, as the case may be, have been filed pursuant to section 17(3) of the Act",null,null,null,null,{"$f":"Import!E10","v":"Select Yes/No"}]
[]
[]
[null,"(e)","Filing Period:"]
[null,null,"Period Start Date:",null,null,null,null,{"$f":"Import!E11","v":"00:00:00"}]
[null,null,"Period End Date:",null,null,null,null,{"$f":"+'Insurer Information'!C3","v":"2023-12-31"}]
[]
[null,"(f)","Currency used in the statutory financial statements:",null,null,null,null,{"$f":"'Form 1SFS'!C5","v":"United States Dollars"}]
[]
[null,"(g)","To prepare this return, provide the multiplier exchange rate / translation rate is applicable in converting the reporting currency to USD/BMD",null,null,null,null,{"$f":"Import!E12","v":1}]
[]
[null,"(h)","Ultimate Parent",null,null,null,null,{"$f":"Import!E13","v":0}]
[]
[null,"(i)","Insurer's Parent Company",null,null,null,null,{"$f":"Import!E14","v":0}]
[]
[null,"(j)","Industry Sector of the Insurer's Parent",null,null,null,null,{"$f":"Import!E15","v":"Select from Drop-Down"}]
[]
[null,"(k)","Insurer's Ownership Structure",null,null,null,null,{"$f":"Import!E16","v":"Select from Drop-Down"}]
[]
[null,"(l)","Insurer's Company Structure",null,null,null,null,{"$f":"Import!E17","v":"Select from Drop-Down"}]
[null,"(l).1","Confirm if the Company has written or currently writes Long-Term insurance",null,null,null,null,{"$f":"Import!E18","v":"Select Yes/No"}]
[null,"(l).2","Did the Company actively write Long-Term insurance business during the financial period",null,null,null,null,{"$f":"Import!E19","v":"Select Yes/No"}]
[null,"(l).3","If the Company has subsidiaries, confirm if the subsidiaries wrote Long-Term insurance business during the financial period",null,null,null,null,{"$f":"Import!E20","v":"Select Yes/No"}]
[null,"(l).4","If the subsidiaries wrote Long-Term insurance business during the financial period, confirm if the subsidiaries are in another jurisdication outside of Bermuda",null,null,null,null,{"$f":"Import!E21","v":"Select Yes/No"}]
[null,"(l).5","If other jurisdictions outside of Bermuda, list the jurisdictions",null,null,null,null,{"$f":"Import!E22","v":0}]
[null,null,null,null,null,null,null,{"$f":"Import!E23","v":0}]
[null,null,null,null,null,null,null,{"$f":"Import!E24","v":0}]
[]
[null,"(m)","General Questions"]
[null,null,"(i) Is the Insurer a member of a group of companies?",null,null,null,null,{"$f":"Import!E25","v":"Select Yes/No"}]
[null,null,"(ii) Does the Insurer have segregated accounts?",null,null,null,null,{"$f":"Import!E26","v":"Select Yes/No"}]
[null,null,"(iii) Is the insurer in run-off?",null,null,null,null,{"$f":"Import!E27","v":"Select Yes/No"}]
[null,null,"(iv) Whether the general purpose financial statements of the insurer for the relevant year have been audited and/or an unqualified opinion issued",null,null,null,null,{"$f":"Import!E28","v":"Select Yes/No"}]
[null,null,"If a qualified opinion was issued, indicate the qualification:"]
[null,null,{"$f":"Import!E29","v":0}]
[]
[]
[null,null,"(v) The minimum solvency margin was met:",null,null,null,null,{"$f":"Import!E30","v":"Select Yes/No"}]
[]
[]
[null,"(n)","Certificate of Registration Conditions"]
[]
[null,1,"Certificate of Registration for Long-Term Business - Effective Date",null,null,null,null,{"$f":"IF(+'Insurer Information'!C11=0,\"\",+'Insurer Information'!C11)","v":""}]
[]
[null,2,"Certificate of Registration for Long-Term Business - General Conditions (Enter Number of Conditions)",null,null,null,null,{"$f":"Import!E32","v":0}]
[]
[null,null,null,null,"Effective Start Date","Effective End Date","Condition Description"]
[null,null,null,1,{"$f":"Import!E33","v":"00:00:00"},{"$f":"Import!E43","v":"00:00:00"},{"$f":"Import!E53","v":0}]
[null,null,null,2,{"$f":"Import!E34","v":"00:00:00"},{"$f":"Import!E44","v":"00:00:00"},{"$f":"Import!E54","v":0}]
[null,null,null,3,{"$f":"Import!E35","v":"00:00:00"},{"$f":"Import!E45","v":"00:00:00"},{"$f":"Import!E55","v":0}]
[null,null,null,4,{"$f":"Import!E36","v":"00:00:00"},{"$f":"Import!E46","v":"00:00:00"},{"$f":"Import!E56","v":0}]
[null,null,null,5,{"$f":"Import!E37","v":"00:00:00"},{"$f":"Import!E47","v":"00:00:00"},{"$f":"Import!E57","v":0}]
[null,null,null,6,{"$f":"Import!E38","v":"00:00:00"},{"$f":"Import!E48","v":"00:00:00"},{"$f":"Import!E58","v":0}]
[null,null,null,7,{"$f":"Import!E39","v":"00:00:00"},{"$f":"Import!E49","v":"00:00:00"},{"$f":"Import!E59","v":0}]
[null,null,null,8,{"$f":"Import!E40","v":"00:00:00"},{"$f":"Import!E50","v":"00:00:00"},{"$f":"Import!E60","v":0}]
[null,null,null,9,{"$f":"Import!E41","v":"00:00:00"},{"$f":"Import!E51","v":"00:00:00"},{"$f":"Import!E61","v":0}]
[null,null,null,10,{"$f":"Import!E42","v":"00:00:00"},{"$f":"Import!E52","v":"00:00:00"},{"$f":"Import!E62","v":0}]
[]
[null,"(o)","The insurer has complied with conditions on Certificate of Registration",null,null,null,null,{"$f":"Import!E63","v":"Select Yes/No"}]
[]
[null,"(p)","Regulatory Approvals"]
[]
[null,1,"Regulatory - Approved Direction (Enter Number of Directions)",null,null,null,null,{"$f":"Import!E64","v":0}]
[]
[null,null,null,null,"Effective Start Date","Effective End Date","Direction Description"]
[null,null,null,1,{"$f":"Import!E65","v":"00:00:00"},{"$f":"Import!E75","v":"00:00:00"},{"$f":"Import!E85","v":0}]
[null,null,null,2,{"$f":"Import!E66","v":"00:00:00"},{"$f":"Import!E76","v":"00:00:00"},{"$f":"Import!E86","v":0}]
[null,null,null,3,{"$f":"Import!E67","v":"00:00:00"},{"$f":"Import!E77","v":"00:00:00"},{"$f":"Import!E87","v":0}]
[null,null,null,4,{"$f":"Import!E68","v":"00:00:00"},{"$f":"Import!E78","v":"00:00:00"},{"$f":"Import!E88","v":0}]
[null,null,null,5,{"$f":"Import!E69","v":"00:00:00"},{"$f":"Import!E79","v":"00:00:00"},{"$f":"Import!E89","v":0}]
[null,null,null,6,{"$f":"Import!E70","v":"00:00:00"},{"$f":"Import!E80","v":"00:00:00"},{"$f":"Import!E90","v":0}]
[null,null,null,7,{"$f":"Import!E71","v":"00:00:00"},{"$f":"Import!E81","v":"00:00:00"},{"$f":"Import!E91","v":0}]
[null,null,null,8,{"$f":"Import!E72","v":"00:00:00"},{"$f":"Import!E82","v":"00:00:00"},{"$f":"Import!E92","v":0}]
[null,null,null,9,{"$f":"Import!E73","v":"00:00:00"},{"$f":"Import!E83","v":"00:00:00"},{"$f":"Import!E93","v":0}]
[null,null,null,10,{"$f":"Import!E74","v":"00:00:00"},{"$f":"Import!E84","v":"00:00:00"},{"$f":"Import!E94","v":0}]
[]
[]
[]
[null,"(q)","If any question in points (m)(v) and (o) has been answered in the negative, state the reason for negative answer and describe whether or not the insurer has taken corrective action in any case and, where the insurer has taken such action, describe the action in a statement attached ",null,null,null,null,{"$f":"Import!E95","v":"Select Yes/No"}]
[]
[null,null,{"$f":"Import!E96","v":0}]
[]
[]
[]
[]
[]
[]
[null,null,"Industry Sector","Type of Company"]
[null,null,"Select from Drop-Down","Select from Drop-Down"]
[null,null,"Administrative and Support Services","Pure Captive"]
[null,null,"Agriculture, Mining, Forestry and Fishing","Rent-a-Captive"]
[null,null,"Automotive, Manufacturing and Retail","Agency Captive"]
[null,null,"Charities & Non-profit Organisations","Group Captive"]
[null,null,"Chemical and Pharmaceutical","Association Captive"]
[null,null,"Construction","Risk Retention Group"]
[null,null,"Education","Insurer/Reinsurer"]
[null,null,"Energy, Power and Utilities"]
[null,null,"Financial Institution"]
[null,null,"Government or Public Sector"]
[null,null,"Healthcare"]
[null,null,"Hospitality"]
[null,null,"Leisure"]
[null,null,"Media and Gaming"]
[null,null,"Professional Services"]
[null,null,"Science and Research"]
[null,null,"Shipping, Transport & Storage"]
[null,null,"Technology and Telecoms"]
[null,null,"Wholesale and Retail"]
[]
[null,null,"Ownership"]
[null,null,"Select from Drop-Down"]
[null,null,"Mutual"]
[null,null,"Shares"]
[null,null,"Partnership"]
[null,null,"Government or Government Agency"]
[null,null,"Limited Partnership"]
[null,null,"Permit/Branch"]
[null,null,"Trust"]
[]
[null,null,"General Questions"]
[null,null,"Select from Drop-Down"]
[null,null,"Yes"]
[null,null,"No"]
[null,null,"N/A"]

{"sheet":"Financial Condition","index":17,"n_rows":470,"n_cols":6,"rows_kept":470,"cut":false,"hidden":true,"merged":[[176,1,178,5],[154,1,156,5],[111,1,113,5],[117,1,119,5],[159,1,161,5],[164,1,166,5],[169,1,171,5],[242,1,244,5],[181,1,183,5],[188,1,190,5],[192,1,193,5],[194,1,196,5],[199,1,201,5],[204,1,206,5],[211,1,213,5],[216,1,218,5],[223,1,225,5],[230,1,232,5],[237,1,239,5],[294,1,296,5],[248,1,250,5],[252,1,253,5],[256,1,258,5],[261,1,263,5],[266,1,268,5],[271,1,273,5],[276,1,278,5],[281,1,283,5],[285,1,285,5],[288,1,290,5],[292,1,293,5],[358,1,360,5],[341,1,342,5],[299,1,301,5],[304,1,306,5],[309,1,311,5],[313,1,313,5],[317,1,318,5],[319,1,321,5],[328,1,329,5],[330,1,332,5],[343,1,345,5],[348,1,350,5],[353,1,355,5],[423,1,424,5],[363,1,365,5],[367,1,367,5],[376,1,378,5],[381,1,383,5],[386,1,388,5],[393,1,395,5],[398,1,400,5],[403,1,405,5],[408,1,410,5],[413,1,415,5],[418,1,420,5],[445,1,447,5],[427,1,427,5],[430,1,432,5],[434,1,434,5],[435,1,437,5],[439,1,439,5],[440,1,442,5]]}
[null,"SCHEDULE OF FINANCIAL CONDITION REPORT"]
["i)","Business and Performance - particulars regarding the organisational structure, insurance business activities and financial performance "]
[]
["(a)","Name of the insurer:"]
[null,null,null,null,null,{"$f":"+'Insurer Information'!C7","v":"Enter Company Name"}]
["(b)","Name and contact details of the insurance supervisor and group supervisor"]
[null,null,null,"Insurance Supervisor",null,"Group Supervisor"]
[null,"Name:"]
[null,"Jurisdiction:"]
[null,"Email Address:"]
[null,"Phone Number:"]
[]
["(c)","Name and contact details of the Approved Auditor"]
[]
[null,"Organisation:"]
[null,"Name:"]
[null,"Jurisdiction:"]
[null,"Email Address:"]
[null,"Phone Number:"]
[]
["(d)","Ownership details: ",null,null,null,"Enter Number of Owners"]
[]
[null,null,null,"Owner Name",null,"Ownership Percentage"]
[null,null,1]
[null,null,2]
[null,null,3]
[null,null,4]
[null,null,5]
[null,null,6]
[null,null,7]
[null,null,8]
[null,null,9]
[null,null,10]
[null,null,11]
[null,null,12]
[null,null,13]
[null,null,14]
[null,null,15]
[]
["(e)","Where the insurer is part of a group, a group structure chart showing where the insurer fits within the group structure"]
[]
["(f)","Insurance business written by business segment and by geographical region during the reporting period:"]
[null,"Line of Business",null,"Gross Premium Written",null,"Net Premium Written"]
[1,"Mortality ",null,{"$f":"+'Schedule IVB (EBS)'!M12","v":0},null,{"$f":"'Schedule IVB (EBS)'!Y12","v":0}]
[2,"Critical Illness",null,{"$f":"+'Schedule IVB (EBS)'!M13","v":0},null,{"$f":"'Schedule IVB (EBS)'!Y13","v":0}]
[3,"Longevity",null,{"$f":"+'Schedule IVB (EBS)'!M14","v":0},null,{"$f":"'Schedule IVB (EBS)'!Y14","v":0}]
[4,"Deferred Annuities",null,{"$f":"+'Schedule IVB (EBS)'!M15","v":0},null,{"$f":"'Schedule IVB (EBS)'!Y15","v":0}]
[5,"Disability Income: Active lives with "]
[null,"premium guarantee of —"]
[null,"(i) Less than or equal to 1 year",null,{"$f":"+'Schedule IVB (EBS)'!M17","v":0},null,{"$f":"'Schedule IVB (EBS)'!Q17+'Schedule IVB (EBS)'!U17","v":0}]
[null,"(ii) More than 1 year but less than 5 years",null,{"$f":"+'Schedule IVB (EBS)'!M18","v":0},null,{"$f":"'Schedule IVB (EBS)'!Q18+'Schedule IVB (EBS)'!U18","v":0}]
[null,"(iii) Greater than 5 years",null,{"$f":"+'Schedule IVB (EBS)'!M19","v":0},null,{"$f":"'Schedule IVB (EBS)'!Q19+'Schedule IVB (EBS)'!U19","v":0}]
[6,"Disability Income: Actives lives for other "]
[null,"accident and sickness",null,{"$f":"+'Schedule IVB (EBS)'!M20","v":0},null,{"$f":"'Schedule IVB (EBS)'!Y20","v":0}]
[7,"Disability Income: Claims in payment ",null,{"$f":"+'Schedule IVB (EBS)'!M22","v":0},null,{"$f":"'Schedule IVB (EBS)'!Y22","v":0}]
[8,"Disability Income: Claims in payment for other",null,{"$f":"+'Schedule IVB (EBS)'!M23","v":0},null,{"$f":"'Schedule IVB (EBS)'!Y23","v":0}]
[null,"accident and sickness"]
[9,"Group Life",null,{"$f":"+'Schedule IVB (EBS)'!M25","v":0},null,{"$f":"'Schedule IVB (EBS)'!Y25","v":0}]
[10,"Group Disability",null,{"$f":"+'Schedule IVB (EBS)'!M26","v":0},null,{"$f":"'Schedule IVB (EBS)'!Y26","v":0}]
[11,"Group Health",null,{"$f":"+'Schedule IVB (EBS)'!M27","v":0},null,{"$f":"'Schedule IVB (EBS)'!Y27","v":0}]
[12,"Stop Loss",null,{"$f":"+'Schedule IVB (EBS)'!M28","v":0},null,{"$f":"'Schedule IVB (EBS)'!Y28","v":0}]
[13,"Rider",null,{"$f":"+'Schedule IVB (EBS)'!M29","v":0},null,{"$f":"'Schedule IVB (EBS)'!Y29","v":0}]
[14,"Variable Annuities",null,{"$f":"+'Schedule IVB (EBS)'!M30","v":0},null,{"$f":"'Schedule IVB (EBS)'!Y30","v":0}]
[15,"Total ",null,{"$f":"SUM(D44:D63)","v":0},null,{"$f":"SUM(F44:F63)","v":0}]
[]
[null,"Geographical Location",null,"Gross Premium Written"]
[1,"Central & Western Asia"]
[2,"Eastern Asia"]
[3,"South and South-Eastern Asia"]
[4,"Oceania"]
[5,"Nothern Africa"]
[6,"Southern Africa"]
[7,"Eastern Europe"]
[8,"Nothern Europe"]
[9,"Southern Europe"]
[10,"Western Europe"]
[11,"Nothern America (Excluding USA)"]
[12,"Caribean & Centeral America"]
[13,"Eastern South America"]
[14,"Nothern, Southern, and Western South America"]
[15,"North-East United States"]
[16,"South-East United States"]
[17,"Mid-West United States"]
[18,"Western United States"]
[null,"TOTAL",null,{"$f":"SUM(D67:D84)","v":0}]
[]
["(g)","Performance  of  investments during the reporting period:"]
[null,null,null,"Market Value",null,"Performance"]
[1,{"$f":"+'Schedule VI PY'!C8","v":"U.S. Government "}]
[null,{"$f":"+'Schedule VI PY'!C9","v":"(a) U.S. Government Federal"},null,{"$f":"'Schedule VI (EBS) PY'!E9","v":0}]
[null,{"$f":"+'Schedule VI PY'!C10","v":"(b) U.S. Government Agency - mortgage-backed securities"},null,{"$f":"'Schedule VI (EBS) PY'!E10","v":0}]
[null,{"$f":"+'Schedule VI PY'!C11","v":"(c) U.S. Government Agency - other"},null,{"$f":"'Schedule VI (EBS) PY'!E11","v":0}]
[2,{"$f":"+'Schedule VI PY'!C12","v":"Non-U.S. Government"},null,{"$f":"'Schedule VI (EBS) PY'!E12","v":0}]
[3,{"$f":"+'Schedule VI PY'!C13","v":"States, Municipalities, and Political Subdivision"},null,{"$f":"'Schedule VI (EBS) PY'!E13","v":0}]
[4,{"$f":"+'Schedule VI PY'!C14","v":"Corporate Securities"}]
[null,{"$f":"+'Schedule VI PY'!C15","v":"(a) U.S. Government-backed Corporate"},null,{"$f":"'Schedule VI (EBS) PY'!E15","v":0}]
[null,{"$f":"+'Schedule VI PY'!C16","v":"(b) Non-U.S. Government-backed Corporate"},null,{"$f":"'Schedule VI (EBS) PY'!E16","v":0}]
[null,{"$f":"+'Schedule VI PY'!C17","v":"(c) FDIC Guaranteed Corporate"},null,{"$f":"'Schedule VI (EBS) PY'!E17","v":0}]
[null,{"$f":"+'Schedule VI PY'!C18","v":"(d) Other Corporate"},null,{"$f":"'Schedule VI (EBS) PY'!E18","v":0}]
[5,{"$f":"+'Schedule VI PY'!C19","v":"Asset-backed Securities"},null,{"$f":"'Schedule VI (EBS) PY'!E19","v":0}]
[6,{"$f":"+'Schedule VI PY'!C20","v":"Mortgage-backed Securities"}]
[null,{"$f":"+'Schedule VI PY'!C21","v":"(a) Residential Subprime"},null,{"$f":"'Schedule VI (EBS) PY'!E21","v":0}]
[null,{"$f":"+'Schedule VI PY'!C22","v":"(b) Residential Non-subprime"},null,{"$f":"'Schedule VI (EBS) PY'!E22","v":0}]
[null,{"$f":"+'Schedule VI PY'!C23","v":"(c) Commercial"},null,{"$f":"'Schedule VI (EBS) PY'!E23","v":0}]
[7,{"$f":"+'Schedule VI PY'!C24","v":"Mutual Funds"},null,{"$f":"'Schedule VI (EBS) PY'!E24","v":0}]
[8,{"$f":"+'Schedule VI PY'!C25","v":"Bank Loans"},null,{"$f":"'Schedule VI (EBS) PY'!E25","v":0}]
[9,{"$f":"+'Schedule VI PY'!C26","v":"Catastrophe Bonds and Insurance-Linked Securities"},null,{"$f":"'Schedule VI (EBS) PY'!E26","v":0}]
[10,{"$f":"+'Schedule VI PY'!C27","v":"Others (Briefly describe)"},null,{"$f":"'Schedule VI (EBS) PY'!E27","v":0}]
[null,{"$f":"+'Schedule VI PY'!C28","v":"TOTAL PORTFOLIO"},null,{"$f":"SUM(D89:D107)","v":0}]
[]
[null,"Details  on  material income and expenses incurred"]
[]
[]
[]
[]
["(h)","Any other material information:"]
[]
[]
[]
[]
[]
["ii)","Governance Structure - particulars of corporate governance, risk management and solvency self-assessment frameworks"]
[]
["(a)","Board and Senior Executive:"]
[]
["i.","Directors",null,null,null,{"$f":"'Schedule V(a)'!D8","v":0}]
[]
[null,"Name","Board Position"]
[1,{"$f":"'Schedule V(a)'!C12","v":0},{"$f":"'Schedule V(a)'!D12","v":0}]
[2,{"$f":"'Schedule V(a)'!C13","v":0},{"$f":"'Schedule V(a)'!D13","v":0}]
[3,{"$f":"'Schedule V(a)'!C14","v":0},{"$f":"'Schedule V(a)'!D14","v":0}]
[4,{"$f":"'Schedule V(a)'!C15","v":0},{"$f":"'Schedule V(a)'!D15","v":0}]
[5,{"$f":"'Schedule V(a)'!C16","v":0},{"$f":"'Schedule V(a)'!D16","v":0}]
[6,{"$f":"'Schedule V(a)'!C17","v":0},{"$f":"'Schedule V(a)'!D17","v":0}]
[7,{"$f":"'Schedule V(a)'!C18","v":0},{"$f":"'Schedule V(a)'!D18","v":0}]
[8,{"$f":"'Schedule V(a)'!C19","v":0},{"$f":"'Schedule V(a)'!D19","v":0}]
[9,{"$f":"'Schedule V(a)'!C20","v":0},{"$f":"'Schedule V(a)'!D20","v":0}]
[10,{"$f":"'Schedule V(a)'!C21","v":0},{"$f":"'Schedule V(a)'!D21","v":0}]
[]
[null,"Officers",null,null,null,{"$f":"'Schedule V(a)'!D33","v":0}]
[]
[null,"Name","Board Position","Responsibilities"]
[1,{"$f":"'Schedule V(a)'!C37","v":0},{"$f":"'Schedule V(a)'!D37","v":0}]
[2,{"$f":"'Schedule V(a)'!C38","v":0},{"$f":"'Schedule V(a)'!D38","v":0}]
[3,{"$f":"'Schedule V(a)'!C39","v":0},{"$f":"'Schedule V(a)'!D39","v":0}]
[4,{"$f":"'Schedule V(a)'!C40","v":0},{"$f":"'Schedule V(a)'!D40","v":0}]
[5,{"$f":"'Schedule V(a)'!C41","v":0},{"$f":"'Schedule V(a)'!D41","v":0}]
[6,{"$f":"'Schedule V(a)'!C42","v":0},{"$f":"'Schedule V(a)'!D42","v":0}]
[7,{"$f":"'Schedule V(a)'!C43","v":0},{"$f":"'Schedule V(a)'!D43","v":0}]
[8,{"$f":"'Schedule V(a)'!C44","v":0},{"$f":"'Schedule V(a)'!D44","v":0}]
[9,{"$f":"'Schedule V(a)'!C45","v":0},{"$f":"'Schedule V(a)'!D45","v":0}]
[10,{"$f":"'Schedule V(a)'!C46","v":0},{"$f":"'Schedule V(a)'!D46","v":0}]
[]
[null,"Description of segregation of these responsibilities"]
[]
[]
[]
[]
["ii.","Description of remuneration policy and practices and performance- based criteria governing the board, senior executive and employees"]
[]
[]
[]
[]
["iii.","Description of the supplementary pension or early retirement schemes for members, the board and senior executive"]
[]
[]
[]
[]
["iv.","Any material transactions with shareholder controllers, persons who exercise significant influence, the board or senior executive"]
[]
[]
[]
[]
["(b)","Fitness and Propriety Requirements"]
[]
["i.","Description of the fit and proper process in assessing the board and senior executive"]
[]
[]
[]
[]
["ii.","Description of the professional qualifications, skills, and expertise of the board and senior executives to carry out their functions"]
[]
[]
[]
[]
["(c)","Risk Management and Solvency Self-Assessment"]
[]
["i.","Description of  the risk management process and procedures to effectively identify, measure, manage and report on risk exposures"]
[]
[]
[]
[]
["ii.","Description of how the risk management and solvency self- assessment systems are implemented and integrated into the insurer’s operations; including strategic planning and organisational and decision making process"]
[]
[]
[]
[]
[]
["iii.","Description of the relationship between the solvency self- assessment, solvency needs, and capital and risk management systems"]
[]
[]
[]
[]
["iv.","Description of the solvency self-assessment approval process including the level of oversight and independent verification by the board and senior executives"]
[]
[]
[]
[]
["(d)","Internal Controls"]
[]
["i.","Description of the internal control system"]
[]
[]
[]
[]
["ii.","Description of how the compliance function is executed"]
[]
[]
[]
[]
["(e)","Internal Audit"]
[]
[null,"Description of how the internal audit function is implemented and how it maintains its independence and objectivity when conducting its functions"]
[]
[]
[]
[]
["(f)","Actuarial Function"]
[]
[null,"Description of how the actuarial function is implemented"]
[]
[]
[]
[]
["(g)","Outsourcing"]
[]
["i.","Description of the outsourcing policy and information on any key or important functions that have been outsourced"]
[]
[]
[]
[]
["ii.","Description of material intra-group outsourcing"]
[]
[]
[]
[]
["(h)","Any other material information:"]
[]
[]
[]
[]
[]
["iii)","Risk Profile - particulars on exposures on underwriting risk, market risk including off balance sheet exposures, credit risk, liquidity risk, operational risk and other material risks"]
[]
[]
["(a)","Material risks that the insurer is exposed to, including how these risks are measured and any material changes that have occurred during the reporting period:"]
[]
[]
[]
[]
["(b)","How risks are mitigated including the methods used and the process to monitor the effectiveness of these methods"]
[]
[]
[]
[]
["(c)","Material risk concentrations"]
[]
[]
[]
[]
["(d)","How assets are invested in accordance with the prudent person principle as stated in Paragraph 5.1.2 of the Code"]
[]
[]
[]
[]
["(e)","The stress testing and sensitivity analysis to assess material risks, including the methods and assumptions used, and the outcomes"]
[]
[]
[]
[]
["(f)","Any other material information:"]
[]
[]
[]
[]
["iv)","Solvency Valuation - particulars of the valuation bases, methods and assumptions on the inputs used to determine solvency"]
[]
["(a)","The valuation bases, assumptions and methods used to derive the value of each asset class"]
[]
[]
[]
[]
["(b)","The valuation bases, assumptions and methods used to derive the value of technical provisions and the amount of the best estimate. The amount of the risk margin as well as the level of uncertainty to determine the value of the technical provisions should be included"]
[]
[]
[]
[]
[]
["(c)","Description of recoverables from reinsurance contracts, including special purpose insurers and other risk transfer mechanisms"]
[]
[]
[]
[]
["(d)","The valuation bases, assumptions and methods used to derive the value of other liabilities"]
[]
[]
[]
[]
["(e)","Any other material information:"]
[]
[]
[]
[]
["v)","Capital Management - particulars regarding an assessment of capital needs and regulatory capital requirements"]
[]
["(a)","Eligible Capital"]
[]
["i.","Description of the capital management policy and process to determine capital needs for business planning, how capital is managed and any material changes during the reporting period"]
[]
[]
[]
[]
[]
["ii.","Eligible Capital"]
[null,"Tier 1",null,null,null,{"$f":"+'Schedule XII(a)'!J56","v":0}]
[null,"Tier 2",null,null,null,{"$f":"+'Schedule XII(a)'!J69","v":0}]
[null,"Tier 3",null,null,null,{"$f":"+'Schedule XII(a)'!J77","v":0}]
[null,"Total",null,null,null,{"$f":"SUM(F325:F327)","v":0}]
[null,"Description of the eligible capital categorised by tiers in accordance with the Eligible Capital Rules"]
[]
[]
[]
[]
[]
["iii.","Eligible Capital by Regulatory Limitations"]
[null,null,"Limits:                 MSM                    ECR","Minimum Margin of Solvency",null,"Enhanced Capital Requirement"]
[null,"Tier 1","min                             80%                          50%",{"$f":"+'Schedule XII(a)'!G93","v":0},null,{"$f":"+'Schedule XII(a)'!I93","v":0}]
[null,"Tier 2","max                            25%                          50%",{"$f":"+'Schedule XII(a)'!G94","v":0},null,{"$f":"+'Schedule XII(a)'!I94","v":0}]
[null,"Tier 3","max                                                              15%",null,null,{"$f":"+'Schedule XII(a)'!I95","v":0}]
[null,"Total",null,{"$f":"SUM(D337:D339)","v":0},null,{"$f":"SUM(F337:F339)","v":0}]
[]
[null,"Description of the  eligible capital categorised by tiers, in accordance with the Eligible Capital Rules used to meet the Enhanced Capital Requirement (“ECR”) and the Minimum Margin of Solvency (“MSM”) defined in accordance with section (1) (1) of the Act"]
[]
[]
[]
[]
[]
["iv.","Confirmation that eligible capital is subject to transitional arrangements as required under the Eligible Capital Rules",null,null,null,"Select from Drop-Down"]
[]
[]
[]
[]
["v.","Identification of any factors affecting encumbrances affecting the availability and transferability of capital to meet the ECR"]
[]
[]
[]
[]
["vi."," Identification of ancillary capital instruments that have been approved by the Authority"]
[]
[]
[]
[]
["vii.","Identification of differences in shareholder’s equity as stated in the financial statements versus available statutory capital and surplus"]
[]
[]
[]
[]
["(b)","Regulatory Capital Requirements"]
[]
["i.","Amount of the ECR and MSM at the end of the reporting period:"]
[]
[null,null,null,null,null,"Amount"]
[null,"Minimum Margin of Solvency",null,null,null,{"$f":"Summary!N92","v":500}]
[null,"Enhanced Capital Requirement",null,null,null,{"$f":"Summary!N98","v":500}]
[]
["ii.","Identification of any non-compliance with the MSM and the ECR"]
[]
[]
[]
[]
["iii.","Description of the amount and circumstances surrounding the non-compliance, the remedial measures taken and their effectiveness"]
[]
[]
[]
[]
["iv.","Where the non-compliance has not been resolved, description of the amount of the non-compliance at the end of the reporting period"]
[]
[]
[]
[]
["(c)","Approved Internal Capital Model used to derive the ECR"]
[]
["i.","Description of the purpose and scope of the business and risk areas where the internal model is used"]
[]
[]
[]
[]
["ii.","where a partial internal model is used, description of how it is integrated with the BSCR Model"]
[]
[]
[]
[]
["iii.","Description of methods used in the internal model to calculate the ECR"]
[]
[]
[]
[]
["iv.","Description of aggregation methodologies and diversification effects"]
[]
[]
[]
[]
["v.","description of the main differences in the methods and assumptions used for the risk areas in the internal model versus the BSCR Model"]
[]
[]
[]
[]
["vi.","Description of the nature and suitability of the data used in the internal model"]
[]
[]
[]
[]
["vii.","Any other material information:"]
[]
[]
[]
[]
["vi)","Significant Event - particulars and explanations of a significant event including, but not limited to the following"]
[]
["(a)","Description of the significant event"]
[]
[]
[]
[]
["(b)","Approximate date(s) or proposed timing of the significant event"]
[]
[]
[]
[]
["(c)","Confirmation of how the significant event has impacted or will impact, any information provided in the most recent financial condition report filed with the Authority"]
[]
[]
[]
[]
["(d)","Any other material information:"]
[]
[]
[]
[]
[]
[]
[null,"General Questions"]
[null,"Select from Drop-Down"]
[null,"Yes"]
[null,"No"]
[null,"Rating Agency"]
[null,"Select Rating Agency"]
[null,"Standard & Poor"]
[null,"Moody's"]
[null,"AM Best"]
[null,"Fitch"]
[null,"Standard & Poor","Moody's","AM Best","Fitch"]
[null,"AAA","Aaa","A++","AAA"]
[null,"AA+ to AA-","Aa1 to Aa3","A+","AA+ to AA-"]
[null,"A+ to A-","A1 to A3","A","A+ to A-"]
[null,"BBB+ to BBB-","Baa1 to Baa3","A-","BBB+ to BBB-"]
[null,"BB+ to BB-","Ba1 to Ba3","B++ to B","BB+ to BB-"]
[null,"B+ to B-","B1 to B3","B- to C+","B+ to B-"]
[null,"CCC+ to CCC-","Caa1 to Caa3","C, C-","CCC+ to CCC-"]
[null,"Below CCC-","Below Caa3","Below C-","Below CCC-"]

{"sheet":"Form 1SFS","index":18,"n_rows":336,"n_cols":13,"rows_kept":336,"cut":false,"hidden":false,"merged":[[333,1,333,2],[318,10,318,12],[318,3,318,4],[3,5,5,8],[220,7,220,8],[221,7,221,8],[222,7,222,8],[223,7,223,8],[224,7,224,8],[230,7,230,8],[231,7,231,8],[232,7,232,8],[233,7,233,8],[234,7,234,8],[241,2,242,7],[241,8,242,12],[244,2,245,7],[247,2,248,7],[6,10,6,12],[7,10,7,12],[7,7,7,8],[7,5,7,6],[6,5,6,6],[6,7,6,8]]}
[null,"STATUTORY BALANCE SHEET",null,null,null,null,null,null,null,null,null,null,{"$f":"HYPERLINK(\"#'Index'!A1\",\"Return to Index\")","v":"Return to Index"}]
[]
[null,{"$f":"'Insurer Information'!C7","v":"Enter Company Name"}]
[null,"As at",{"$f":"'Insurer Information'!C3","v":"2023-12-31"},null,null,"Note if an insurer does not have any entities to consolidate, select \"No Subsidiaries\" on the Insurer Information tab (This cell is editable for deletion)",null,null,null,null,null,null,"FORM 1SFS"]
[null,{"$f":"\"Expressed in \" & IF(CONFIGURATION!$B$12>1,\" ['\"&MID(CONFIGURATION!$B$12,2,LEN(CONFIGURATION!$B$12))&\"s]\",\"\")","v":"Expressed in  ['000s]"},"United States Dollars"]
[]
[null,null,null,null,null,"General Business",null,"Long-Term Business",null,null,"General & Long-Term Business"]
[null,"STMT.",null,null,null,"Unconsolidated",null,"Unconsolidated",null,null,"Consolidated"]
[null,"LINE No.",null,null,null,{"$f":"C4","v":"2023-12-31"},{"$f":"DATE(YEAR(C4) -1, MONTH(C4), DAY(C4))","v":"2022-12-31"},{"$f":"C4","v":"2023-12-31"},{"$f":"DATE(YEAR(C4) -1, MONTH(C4), DAY(C4))","v":"2022-12-31"},null,{"$f":"C4","v":"2023-12-31"},null,{"$f":"DATE(YEAR(C4) -1, MONTH(C4), DAY(C4))","v":"2022-12-31"}]
[null,null,null,null,null,{"$f":"CONFIGURATION!$D$12","v":" ('000s)"},{"$f":"CONFIGURATION!$D$12","v":" ('000s)"},{"$f":"CONFIGURATION!$D$12","v":" ('000s)"},{"$f":"CONFIGURATION!$D$12","v":" ('000s)"},null,{"$f":"CONFIGURATION!$D$12","v":" ('000s)"},null,{"$f":"CONFIGURATION!$D$12","v":" ('000s)"}]
[]
[null,"1.","CASH AND CASH EQUIVALENTS",null,null,{"$f":"Import!E208","v":0},{"$f":"Import!G208","v":0},{"$f":"Import!E99","v":0},{"$f":"Import!G99","v":0},null,{"$f":"Import!I99","v":0},null,{"$f":"Import!K99","v":0}]
[]
[null,"2.","QUOTED INVESTMENTS:"]
[null,"(a)","Bonds and debentures"]
[null,null,"  i.   Held to maturity",null,null,{"$f":"Import!E209","v":0},{"$f":"Import!G209","v":0},{"$f":"Import!E100","v":0},{"$f":"Import!G100","v":0},null,{"$f":"Import!I100","v":0},null,{"$f":"Import!K100","v":0}]
[null,null,"  ii.  Other",null,null,{"$f":"Import!E210","v":0},{"$f":"Import!G210","v":0},{"$f":"Import!E101","v":0},{"$f":"Import!G101","v":0},null,{"$f":"Import!I101","v":0},null,{"$f":"Import!K101","v":0}]
[null,"(b) ","Total Bonds and Debentures",null,null,{"$f":"SUM(F16:F17)","v":0},{"$f":"SUM(G16:G17)","v":0},{"$f":"SUM(H16:H17)","v":0},{"$f":"SUM(I16:I17)","v":0},null,{"$f":"SUM(K16:K17)","v":0},null,{"$f":"SUM(M16:M17)","v":0}]
[null,"(c) ","Equities "]
[null,null,"  i.  Common Stocks",null,null,{"$f":"Import!E211","v":0},{"$f":"Import!G211","v":0},{"$f":"Import!E103","v":0},{"$f":"Import!G103","v":0},null,{"$f":"Import!I103","v":0},null,{"$f":"Import!K103","v":0}]
[null,null,"  ii. Preferred Stocks",null,null,{"$f":"Import!E212","v":0},{"$f":"Import!G212","v":0},{"$f":"Import!E104","v":0},{"$f":"Import!G104","v":0},null,{"$f":"Import!I104","v":0},null,{"$f":"Import!K104","v":0}]
[null,null,"  iii. Mutual Funds",null,null,{"$f":"Import!E213","v":0},{"$f":"Import!G213","v":0},{"$f":"Import!E105","v":0},{"$f":"Import!G105","v":0},null,{"$f":"Import!I105","v":0},null,{"$f":"Import!K105","v":0}]
[null,"(d) ","Total Equity Investments",null,null,{"$f":"SUM(F20:F22)","v":0},{"$f":"SUM(G20:G22)","v":0},{"$f":"SUM(H20:H22)","v":0},{"$f":"SUM(I20:I22)","v":0},null,{"$f":"SUM(K20:K22)","v":0},null,{"$f":"SUM(M20:M22)","v":0}]
[null,"(e)","Other Quoted Investments",null,null,{"$f":"Import!E214","v":0},{"$f":"Import!G214","v":0},{"$f":"Import!E106","v":0},{"$f":"Import!G106","v":0},null,{"$f":"Import!I106","v":0},null,{"$f":"Import!K106","v":0}]
[null,"(f)","Total Quoted Investments",null,null,{"$f":"F18+F23+F24","v":0},{"$f":"G18+G23+G24","v":0},{"$f":"H18+H23+H24","v":0},{"$f":"I18+I23+I24","v":0},null,{"$f":"K18+K23+K24","v":0},null,{"$f":"M18+M23+M24","v":0}]
[]
[null,"3.","UNQUOTED INVESTMENTS:"]
[null,"(a)","Bonds and debentures"]
[null,null,"  i.   Held to maturity",null,null,{"$f":"Import!E215","v":0},{"$f":"Import!G215","v":0},{"$f":"Import!E107","v":0},{"$f":"Import!G107","v":0},null,{"$f":"Import!I107","v":0},null,{"$f":"Import!K107","v":0}]
[null,null,"  ii.  Other",null,null,{"$f":"Import!E216","v":0},{"$f":"Import!G216","v":0},{"$f":"Import!E108","v":0},{"$f":"Import!G108","v":0},null,{"$f":"Import!I108","v":0},null,{"$f":"Import!K108","v":0}]
[null,"(b) ","Bonds and Debentures",null,null,{"$f":"SUM(F29:F30)","v":0},{"$f":"SUM(G29:G30)","v":0},{"$f":"SUM(H29:H30)","v":0},{"$f":"SUM(I29:I30)","v":0},null,{"$f":"SUM(K29:K30)","v":0},null,{"$f":"SUM(M29:M30)","v":0}]
[null,"(c) ","Equities "]
[null,null,"  i.  Common Stocks",null,null,{"$f":"Import!E217","v":0},{"$f":"Import!G217","v":0},{"$f":"Import!E110","v":0},{"$f":"Import!G110","v":0},null,{"$f":"Import!I110","v":0},null,{"$f":"Import!K110","v":0}]
[null,null,"  ii. Preferred Stocks",null,null,{"$f":"Import!E218","v":0},{"$f":"Import!G218","v":0},{"$f":"Import!E111","v":0},{"$f":"Import!G111","v":0},null,{"$f":"Import!I111","v":0},null,{"$f":"Import!K111","v":0}]
[null,null,"  iii. Mutual Funds",null,null,{"$f":"Import!E219","v":0},{"$f":"Import!G219","v":0},{"$f":"Import!E112","v":0},{"$f":"Import!G112","v":0},null,{"$f":"Import!I112","v":0},null,{"$f":"Import!K112","v":0}]
[null,"(d) ","Total Equity Investments",null,null,{"$f":"SUM(F33:F35)","v":0},{"$f":"SUM(G33:G35)","v":0},{"$f":"SUM(H33:H35)","v":0},{"$f":"SUM(I33:I35)","v":0},null,{"$f":"SUM(K33:K35)","v":0},null,{"$f":"SUM(M33:M35)","v":0}]
[null,"(e)","Other Unquoted Investments",null,null,{"$f":"Import!E220","v":0},{"$f":"Import!G220","v":0},{"$f":"Import!E113","v":0},{"$f":"Import!G113","v":0},null,{"$f":"Import!I113","v":0},null,{"$f":"Import!K113","v":0}]
[null,"(f)","Total Unquoted Investments",null,null,{"$f":"F31+F36+F37","v":0},{"$f":"G31+G36+G37","v":0},{"$f":"H31+H36+H37","v":0},{"$f":"I31+I36+I37","v":0},null,{"$f":"K31+K36+K37","v":0},null,{"$f":"M31+M36+M37","v":0}]
[]
[null,"4.","INVESTMENTS IN AND ADVANCES TO AFFILIATES (EQUITY METHOD):"]
[null,"(a)","Unregulated entities that conduct ancillary services",null,null,{"$f":"Import!E221","v":0},{"$f":"Import!G221","v":0},{"$f":"Import!E114","v":0},{"$f":"Import!G114","v":0},null,{"$f":"Import!I114","v":0},null,{"$f":"Import!K114","v":0}]
[null,"(b)","Unregulated non-financial operating entities",null,null,{"$f":"Import!E222","v":0},{"$f":"Import!G222","v":0},{"$f":"Import!E115","v":0},{"$f":"Import!G115","v":0},null,{"$f":"Import!I115","v":0},null,{"$f":"Import!K115","v":0}]
[null,"(c)","Unregulated financial operating entities",null,null,{"$f":"Import!E223","v":0},{"$f":"Import!G223","v":0},{"$f":"Import!E116","v":0},{"$f":"Import!G116","v":0},null,{"$f":"Import!I116","v":0},null,{"$f":"Import!K116","v":0}]
[null,"(d)","Regulated non-insurance financial operating entities",null,null,{"$f":"Import!E224","v":0},{"$f":"Import!G224","v":0},{"$f":"Import!E117","v":0},{"$f":"Import!G117","v":0},null,{"$f":"Import!I117","v":0},null,{"$f":"Import!K117","v":0}]
[null,"(e)","Regulated insurance financial operating entities",null,null,{"$f":"Import!E225","v":0},{"$f":"Import!G225","v":0},{"$f":"Import!E118","v":0},{"$f":"Import!G118","v":0},null,{"$f":"Import!I118","v":0},null,{"$f":"Import!K118","v":0}]
[null,"(f)","Total investments in affiliates (equity method)",null,null,{"$f":"SUM(F41:F45)","v":0},{"$f":"SUM(G41:G45)","v":0},{"$f":"SUM(H41:H45)","v":0},{"$f":"SUM(I41:I45)","v":0},null,{"$f":"SUM(K41:K45)","v":0},null,{"$f":"SUM(M41:M45)","v":0}]
[null,"(g)","Advances to affiliates",null,null,{"$f":"Import!E226","v":0},{"$f":"Import!G226","v":0},{"$f":"Import!E119","v":0},{"$f":"Import!G119","v":0},null,{"$f":"Import!I119","v":0},null,{"$f":"Import!K119","v":0}]
[null,"(h)","Total investments in and advances to affiliates (equity method)",null,null,{"$f":"F46+F47","v":0},{"$f":"G46+G47","v":0},{"$f":"H46+H47","v":0},{"$f":"I46+I47","v":0},null,{"$f":"K46+K47","v":0},null,{"$f":"M46+M47","v":0}]
[]
[null,"5.","INVESTMENTS IN MORTGAGE LOANS ON REAL ESTATE:"]
[null,"(a)","First Liens",null,null,{"$f":"Import!E227","v":0},{"$f":"Import!G227","v":0},{"$f":"Import!E120","v":0},{"$f":"Import!G120","v":0},null,{"$f":"Import!I120","v":0},null,{"$f":"Import!K120","v":0}]
[null,"(b) ","Other than First Liens",null,null,{"$f":"Import!E228","v":0},{"$f":"Import!G228","v":0},{"$f":"Import!E121","v":0},{"$f":"Import!G121","v":0},null,{"$f":"Import!I121","v":0},null,{"$f":"Import!K121","v":0}]
[null,"(c) ","Total Investments in Mortgage Loans on Real Estate",null,null,{"$f":"F51+F52","v":0},{"$f":"G51+G52","v":0},{"$f":"H51+H52","v":0},{"$f":"I51+I52","v":0},null,{"$f":"K51+K52","v":0},null,{"$f":"M51+M52","v":0}]
[]
[null,"6.","POLICY LOANS",null,null,null,null,{"$f":"Import!E122","v":0},{"$f":"Import!G122","v":0},null,{"$f":"Import!I122","v":0},null,{"$f":"Import!K122","v":0}]
[]
[null,"7.","REAL ESTATE:"]
[null,"(a)","Occupied by the company (less encumbrances)",null,null,{"$f":"Import!E229","v":0},{"$f":"Import!G229","v":0},{"$f":"Import!E123","v":0},{"$f":"Import!G123","v":0},null,{"$f":"Import!I123","v":0},null,{"$f":"Import!K123","v":0}]
[null,"(b)","Other properties (less encumbrances)",null,null,{"$f":"Import!E230","v":0},{"$f":"Import!G230","v":0},{"$f":"Import!E124","v":0},{"$f":"Import!G124","v":0},null,{"$f":"Import!I124","v":0},null,{"$f":"Import!K124","v":0}]
[null,"(c) ","Total real estate",null,null,{"$f":"SUM(F58:F59)","v":0},{"$f":"SUM(G58:G59)","v":0},{"$f":"SUM(H58:H59)","v":0},{"$f":"SUM(I58:I59)","v":0},null,{"$f":"SUM(K58:K59)","v":0},null,{"$f":"SUM(M58:M59)","v":0}]
[]
[null,"8.","COLLATERAL LOANS",null,null,{"$f":"Import!E231","v":0},{"$f":"Import!G231","v":0},{"$f":"Import!E125","v":0},{"$f":"Import!G125","v":0},null,{"$f":"Import!I125","v":0},null,{"$f":"Import!K125","v":0}]
[]
[null,"9.","INVESTMENT INCOME DUE AND ACCRUED",null,null,{"$f":"Import!E232","v":0},{"$f":"Import!G232","v":0},{"$f":"Import!E126","v":0},{"$f":"Import!G126","v":0},null,{"$f":"Import!I126","v":0},null,{"$f":"Import!K126","v":0}]
[]
[null,"10.","ACCOUNTS AND PREMIUMS RECEIVABLE"]
[null,"(a)","In course of collection",null,null,{"$f":"Import!E233","v":0},{"$f":"Import!G233","v":0},{"$f":"Import!E127","v":0},{"$f":"Import!G127","v":0},null,{"$f":"Import!I127","v":0},null,{"$f":"Import!K127","v":0}]
[null,"(b)","Deferred - not yet due",null,null,{"$f":"Import!E234","v":0},{"$f":"Import!G234","v":0},{"$f":"Import!E128","v":0},{"$f":"Import!G128","v":0},null,{"$f":"Import!I128","v":0},null,{"$f":"Import!K128","v":0}]
[null,"(c) ","Receivables from retrocessional contracts",null,null,{"$f":"Import!E235","v":0},{"$f":"Import!G235","v":0},{"$f":"Import!E129","v":0},{"$f":"Import!G129","v":0},null,{"$f":"Import!I129","v":0},null,{"$f":"Import!K129","v":0}]
[null,"(d) ","Total accounts and premiums receivable",null,null,{"$f":"SUM(F67:F69)","v":0},{"$f":"SUM(G67:G69)","v":0},{"$f":"SUM(H67:H69)","v":0},{"$f":"SUM(I67:I69)","v":0},null,{"$f":"SUM(K67:K69)","v":0},null,{"$f":"SUM(M67:M69)","v":0}]
[]
[null,"11.","REINSURANCE BALANCES RECEIVABLE"]
[null,"(a)","Foreign affiliates",null,null,{"$f":"Import!E236","v":0},{"$f":"Import!G236","v":0},{"$f":"Import!E130","v":0},{"$f":"Import!G130","v":0},null,{"$f":"Import!I130","v":0},null,{"$f":"Import!K130","v":0}]
[null,"(b)","Domestic affiliates",null,null,{"$f":"Import!E237","v":0},{"$f":"Import!G237","v":0},{"$f":"Import!E131","v":0},{"$f":"Import!G131","v":0},null,{"$f":"Import!I131","v":0},null,{"$f":"Import!K131","v":0}]
[null,"(c) ","Pools & associations",null,null,{"$f":"Import!E238","v":0},{"$f":"Import!G238","v":0},{"$f":"Import!E132","v":0},{"$f":"Import!G132","v":0},null,{"$f":"Import!I132","v":0},null,{"$f":"Import!K132","v":0}]
[null,"(d) ","All other insurers",null,null,{"$f":"Import!E239","v":0},{"$f":"Import!G239","v":0},{"$f":"Import!E133","v":0},{"$f":"Import!G133","v":0},null,{"$f":"Import!I133","v":0},null,{"$f":"Import!K133","v":0}]
[null,"(e)","Total reinsurance balances receivable",null,null,{"$f":"SUM(F73:F76)","v":0},{"$f":"SUM(G73:G76)","v":0},{"$f":"SUM(H73:H76)","v":0},{"$f":"SUM(I73:I76)","v":0},null,{"$f":"SUM(K73:K76)","v":0},null,{"$f":"SUM(M73:M76)","v":0}]
[]
[null,"12.","FUNDS HELD BY CEDING REINSURERS",null,null,{"$f":"Import!E240","v":0},{"$f":"Import!G240","v":0},{"$f":"Import!E136","v":0},{"$f":"Import!G136","v":0},null,{"$f":"Import!I136","v":0},null,{"$f":"Import!K136","v":0}]
[]
[null,"13.","SUNDRY ASSETS:"]
[null,"(a)","Derivative instruments",null,null,{"$f":"Import!E241","v":0},{"$f":"Import!G241","v":0},{"$f":"Import!E137","v":0},{"$f":"Import!G137","v":0},null,{"$f":"Import!I137","v":0},null,{"$f":"Import!K137","v":0}]
[null,"(b)","Segregated accounts companies - long-term business - variable annuities",null,null,null,null,{"$f":"Import!E138","v":0},{"$f":"Import!G138","v":0},null,{"$f":"Import!I138","v":0},null,{"$f":"Import!K138","v":0}]
[null,"(c) ","Segregated accounts companies - long-term business - others",null,null,null,null,{"$f":"Import!E139","v":0},{"$f":"Import!G139","v":0},null,{"$f":"Import!I139","v":0},null,{"$f":"Import!K139","v":0}]
[null,"(d)","Segregated accounts companies - general business",null,null,{"$f":"Import!E242","v":0},{"$f":"Import!G242","v":0},null,null,null,{"$f":"Import!I140","v":0},null,{"$f":"Import!K140","v":0}]
[null,"(e) ","Deposit assets",null,null,{"$f":"Import!E243","v":0},{"$f":"Import!G243","v":0},{"$f":"Import!E141","v":0},{"$f":"Import!G141","v":0},null,{"$f":"Import!I141","v":0},null,{"$f":"Import!K141","v":0}]
[null,"(f) ","Deferred acquisition costs",null,null,{"$f":"Import!E244","v":0},{"$f":"Import!G244","v":0},{"$f":"Import!E142","v":0},{"$f":"Import!G142","v":0},null,{"$f":"Import!I142","v":0},null,{"$f":"Import!K142","v":0}]
[null,"(g) ","Net receivables for investments sold",null,null,{"$f":"Import!E245","v":0},{"$f":"Import!G245","v":0},{"$f":"Import!E143","v":0},{"$f":"Import!G143","v":0},null,{"$f":"Import!I143","v":0},null,{"$f":"Import!K143","v":0}]
[null,"(h) ","Other Sundry Assets (Specify)",null,null,{"$f":"Import!E246","v":0},{"$f":"Import!G246","v":0},{"$f":"Import!E147","v":0},{"$f":"Import!G147","v":0},null,{"$f":"Import!I147","v":0},null,{"$f":"Import!K147","v":0}]
[null,"(i) ","Other Sundry Assets (Specify)",null,null,{"$f":"Import!E247","v":0},{"$f":"Import!G247","v":0},{"$f":"Import!E148","v":0},{"$f":"Import!G148","v":0},null,{"$f":"Import!I148","v":0},null,{"$f":"Import!K148","v":0}]
[null,"(j)","Other Sundry Assets (Specify)",null,null,{"$f":"Import!E248","v":0},{"$f":"Import!G248","v":0},{"$f":"Import!E149","v":0},{"$f":"Import!G149","v":0},null,{"$f":"Import!I149","v":0},null,{"$f":"Import!K149","v":0}]
[null,"(k)","Total sundry assets",null,null,{"$f":"SUM(F82:F91)","v":0},{"$f":"SUM(G82:G91)","v":0},{"$f":"SUM(H82:H91)","v":0},{"$f":"SUM(I82:I91)","v":0},null,{"$f":"SUM(K82:K91)","v":0},null,{"$f":"SUM(M82:M91)","v":0}]
[]
[null,"14.","LETTERS OF CREDIT, GUARANTEES AND OTHER INSTRUMENTS"]
[null,"(a)","Letters of credit ",null,null,{"$f":"Import!E249","v":0},{"$f":"Import!G249","v":0},{"$f":"Import!E150","v":0},{"$f":"Import!G150","v":0},null,{"$f":"Import!I150","v":0},null,{"$f":"Import!K150","v":0}]
[null,"(b)","Guarantees",null,null,{"$f":"Import!E250","v":0},{"$f":"Import!G250","v":0},{"$f":"Import!E151","v":0},{"$f":"Import!G151","v":0},null,{"$f":"Import!I151","v":0},null,{"$f":"Import!K151","v":0}]
[null,"(c) ","Other instruments",null,null,{"$f":"Import!E251","v":0},{"$f":"Import!G251","v":0},{"$f":"Import!E152","v":0},{"$f":"Import!G152","v":0},null,{"$f":"Import!I152","v":0},null,{"$f":"Import!K152","v":0}]
[null,"(d) ","Total letters of credit, guarantees and other instruments",null,null,{"$f":"SUM(F95:F97)","v":0},{"$f":"SUM(G95:G97)","v":0},{"$f":"SUM(H95:H97)","v":0},{"$f":"SUM(I95:I97)","v":0},null,{"$f":"SUM(K95:K97)","v":0},null,{"$f":"SUM(M95:M97)","v":0}]
[]
[null,"15.","TOTAL",null,null,{"$f":"F12+F25+F38+F48+F53+F55+F60+F62+F64+F70+F77+F79+F92+F98","v":0},{"$f":"G12+G25+G38+G48+G53+G55+G60+G62+G64+G70+G77+G79+G92+G98","v":0},{"$f":"H12+H25+H38+H48+H53+H55+H60+H62+H64+H70+H77+H79+H92+H98","v":0},{"$f":"I12+I25+I38+I48+I53+I55+I60+I62+I64+I70+I77+I79+I92+I98","v":0},null,{"$f":"K12+K25+K38+K48+K53+K55+K60+K62+K64+K70+K77+K79+K92+K98","v":0},null,{"$f":"M12+M25+M38+M48+M53+M55+M60+M62+M64+M70+M77+M79+M92+M98","v":0}]
[]
[null,null,"INSURANCE RESERVES, OTHER LIABILITIES AND STATUTORY CAPITAL AND SURPLUS"]
[]
[null,null,"INSURANCE RESERVES"]
[]
[null,"16.","UNEARNED PREMIUM RESERVE"]
[null,"(a)","Gross unearned premium reserves",null,null,{"$f":"Import!E253","v":0},{"$f":"Import!G253","v":0},null,null,null,{"$f":"Import!I154","v":0},null,{"$f":"Import!K154","v":0}]
[null,"(b)","Less: Ceded unearned premium reserve"]
[null,null,"  i.   Foreign affiliates",null,null,{"$f":"Import!E254","v":0},{"$f":"Import!G254","v":0},null,null,null,{"$f":"Import!I155","v":0},null,{"$f":"Import!K155","v":0}]
[null,null,"  ii.  Domestic affiliates",null,null,{"$f":"Import!E255","v":0},{"$f":"Import!G255","v":0},null,null,null,{"$f":"Import!I156","v":0},null,{"$f":"Import!K156","v":0}]
[null,null,"  iii. Pools & associations",null,null,{"$f":"Import!E256","v":0},{"$f":"Import!G256","v":0},null,null,null,{"$f":"Import!I157","v":0},null,{"$f":"Import!K157","v":0}]
[null,null,"  iv.  All other insurers",null,null,{"$f":"Import!E257","v":0},{"$f":"Import!G257","v":0},null,null,null,{"$f":"Import!I158","v":0},null,{"$f":"Import!K158","v":0}]
[null,"(c) ","Total ceded unearned premium reserve",null,null,{"$f":"SUM(F109:F112)","v":0},{"$f":"SUM(G109:G112)","v":0},null,null,null,{"$f":"SUM(K109:K112)","v":0},null,{"$f":"SUM(M109:M112)","v":0}]
[null,"(d) ","Net unearned premium reserves",null,null,{"$f":"F107-F113","v":0},{"$f":"G107-G113","v":0},null,null,null,{"$f":"K107-K113","v":0},null,{"$f":"M107-M113","v":0}]
[]
[null,"17.","LOSS AND LOSS EXPENSE PROVISIONS:"]
[null,"(a)","Gross loss and loss expense provisions",null,null,{"$f":"Import!E258","v":0},{"$f":"Import!G258","v":0},null,null,null,{"$f":"Import!I159","v":0},null,{"$f":"Import!K159","v":0}]
[null,"(b)","Less : Reinsurance recoverable balance"]
[null,null,"  i.   Foreign affiliates",null,null,{"$f":"Import!E259","v":0},{"$f":"Import!G259","v":0},null,null,null,{"$f":"Import!I160","v":0},null,{"$f":"Import!K160","v":0}]
[null,null,"  ii.  Domestic affiliates",null,null,{"$f":"Import!E260","v":0},{"$f":"Import!G260","v":0},null,null,null,{"$f":"Import!I161","v":0},null,{"$f":"Import!K161","v":0}]
[null,null,"  iii. Pools & associations",null,null,{"$f":"Import!E261","v":0},{"$f":"Import!G261","v":0},null,null,null,{"$f":"Import!I162","v":0},null,{"$f":"Import!K162","v":0}]
[null,null,"  iv.  All other insurers",null,null,{"$f":"Import!E262","v":0},{"$f":"Import!G262","v":0},null,null,null,{"$f":"Import!I163","v":0},null,{"$f":"Import!K163","v":0}]
[null,"(c) ","Total reinsurance recoverable balance",null,null,{"$f":"SUM(F119:F122)","v":0},{"$f":"SUM(G119:G122)","v":0},null,null,null,{"$f":"SUM(K119:K122)","v":0},null,{"$f":"SUM(M119:M122)","v":0}]
[null,"(d) ","Net loss and loss expense provisions",null,null,{"$f":"F117-F123","v":0},{"$f":"G117-G123","v":0},null,null,null,{"$f":"K117-K123","v":0},null,{"$f":"M117-M123","v":0}]
[]
[null,"18.","OTHER INSURANCE RESERVES",null,null,{"$f":"Import!E263","v":0},{"$f":"Import!G263","v":0},null,null,null,{"$f":"Import!I164","v":0},null,{"$f":"Import!K164","v":0}]
[]
[null,"19.","TOTAL GENERAL BUSINESS - INSURANCE RESERVES",null,null,{"$f":"F114+F124+F126","v":0},{"$f":"G114+G124+G126","v":0},null,null,null,{"$f":"K114+K124+K126","v":0},null,{"$f":"M114+M124+M126","v":0}]
[]
[null,null,"LONG-TERM BUSINESS INSURANCE RESERVES"]
[]
[null,"20. ","RESERVES FOR REPORTED CLAIMS",null,null,null,null,{"$f":"Import!E165","v":0},{"$f":"Import!G165","v":0},null,{"$f":"Import!I165","v":0},null,{"$f":"Import!K165","v":0}]
[]
[null,"21.","RESERVES FOR UNREPORTED CLAIMS",null,null,null,null,{"$f":"Import!E166","v":0},{"$f":"Import!G166","v":0},null,{"$f":"Import!I166","v":0},null,{"$f":"Import!K166","v":0}]
[]
[null,"22.","POLICY RESERVES - LIFE",null,null,null,null,{"$f":"Import!E167","v":0},{"$f":"Import!G167","v":0},null,{"$f":"Import!I167","v":0},null,{"$f":"Import!K167","v":0}]
[]
[null,"23.","POLICY RESERVES - ACCIDENT AND HEALTH",null,null,null,null,{"$f":"Import!E168","v":0},{"$f":"Import!G168","v":0},null,{"$f":"Import!I168","v":0},null,{"$f":"Import!K168","v":0}]
[]
[null,"24.","POLICYHOLDER'S FUNDS ON DEPOSIT",null,null,null,null,{"$f":"Import!E169","v":0},{"$f":"Import!G169","v":0},null,{"$f":"Import!I169","v":0},null,{"$f":"Import!K169","v":0}]
[]
[null,"25.","LIABILITY FOR FUTURE POLICYHOLDER DIVIDENDS",null,null,null,null,{"$f":"Import!E170","v":0},{"$f":"Import!G170","v":0},null,{"$f":"Import!I170","v":0},null,{"$f":"Import!K170","v":0}]
[]
[null,"26.","OTHER LONG-TERM BUSINESS INSURANCE RESERVES",null,null,null,null,{"$f":"Import!E171","v":0},{"$f":"Import!G171","v":0},null,{"$f":"Import!I171","v":0},null,{"$f":"Import!K171","v":0}]
[]
[null,"27.","TOTAL LONG-TERM BUSINESS - INSURANCE RESERVES"]
[null,"(a)","Total Gross Long-Term Business Insurance Reserves",null,null,null,null,{"$f":"H153+H154","v":0},{"$f":"I153+I154","v":0},null,{"$f":"K153+K154","v":0},null,{"$f":"M153+M154","v":0}]
[null,"(b)","Less: Reinsurance Recoverable Balance:"]
[null,null,"(i) Foreign Affiliates",null,null,null,null,{"$f":"Import!E172","v":0},{"$f":"Import!G172","v":0},null,{"$f":"Import!I172","v":0},null,{"$f":"Import!K172","v":0}]
[null,null,"(ii) Domestic Affiliaties",null,null,null,null,{"$f":"Import!E173","v":0},{"$f":"Import!G173","v":0},null,{"$f":"Import!I173","v":0},null,{"$f":"Import!K173","v":0}]
[null,null,"(iii) Pools and Associations",null,null,null,null,{"$f":"Import!E174","v":0},{"$f":"Import!G174","v":0},null,{"$f":"Import!I174","v":0},null,{"$f":"Import!K174","v":0}]
[null,null,"(iv) All Other Insurers",null,null,null,null,{"$f":"Import!E175","v":0},{"$f":"Import!G175","v":0},null,{"$f":"Import!I175","v":0},null,{"$f":"Import!K175","v":0}]
[null,"(c)","Total Reinsurance Recoverable Balance",null,null,null,null,{"$f":"SUM(H149:H152)","v":0},{"$f":"SUM(I149:I152)","v":0},null,{"$f":"SUM(K149:K152)","v":0},null,{"$f":"SUM(M149:M152)","v":0}]
[null,"(d)","Net Long-Term Business Insurance Reserves",null,null,null,null,{"$f":"H132+H134+H136+H138+H140+H142+H144","v":0},{"$f":"I132+I134+I136+I138+I140+I142+I144","v":0},null,{"$f":"K132+K134+K136+K138+K140+K142+K144","v":0},null,{"$f":"M132+M134+M136+M138+M140+M142+M144","v":0}]
[]
[null,null,"OTHER LIABILITIES"]
[]
[null,"28."," INSURANCE AND REINSURANCE BALANCES PAYABLE",null,null,{"$f":"Import!E264","v":0},{"$f":"Import!G264","v":0},{"$f":"Import!E182","v":0},{"$f":"Import!G182","v":0},null,{"$f":"Import!I182","v":0},null,{"$f":"Import!K182","v":0}]
[]
[null,"29.","COMMISSIONS, EXPENSES, FEES AND TAXES PAYABLE",null,null,{"$f":"Import!E265","v":0},{"$f":"Import!G265","v":0},{"$f":"Import!E183","v":0},{"$f":"Import!G183","v":0},null,{"$f":"Import!I183","v":0},null,{"$f":"Import!K183","v":0}]
[]
[null,"30.","LOANS AND NOTES PAYABLE",null,null,{"$f":"Import!E266","v":0},{"$f":"Import!G266","v":0},{"$f":"Import!E184","v":0},{"$f":"Import!G184","v":0},null,{"$f":"Import!I184","v":0},null,{"$f":"Import!K184","v":0}]
[]
[null,"31.","(a) INCOME TAXES PAYABLE",null,null,{"$f":"Import!E267","v":0},{"$f":"Import!G267","v":0},{"$f":"Import!E185","v":0},{"$f":"Import!G185","v":0},null,{"$f":"Import!I185","v":0},null,{"$f":"Import!K185","v":0}]
[]
[null,null,"(b) DEFERRED INCOME TAXES",null,null,{"$f":"Import!E268","v":0},{"$f":"Import!G268","v":0},{"$f":"Import!E186","v":0},{"$f":"Import!G186","v":0},null,{"$f":"Import!I186","v":0},null,{"$f":"Import!K186","v":0}]
[]
[null,"32.","AMOUNTS DUE TO AFFILIATES",null,null,{"$f":"Import!E269","v":0},{"$f":"Import!G269","v":0},{"$f":"Import!E187","v":0},{"$f":"Import!G187","v":0},null,{"$f":"Import!I187","v":0},null,{"$f":"Import!K187","v":0}]
[]
[null,"33.","ACCOUNTS PAYABLE AND ACCRUED LIABILITIES",null,null,{"$f":"Import!E270","v":0},{"$f":"Import!G270","v":0},{"$f":"Import!E188","v":0},{"$f":"Import!G188","v":0},null,{"$f":"Import!I188","v":0},null,{"$f":"Import!K188","v":0}]
[]
[null,"34.","FUNDS HELD UNDER REINSURANCE CONTRACTS",null,null,{"$f":"Import!E271","v":0},{"$f":"Import!G271","v":0},{"$f":"Import!E191","v":0},{"$f":"Import!G191","v":0},null,{"$f":"Import!I191","v":0},null,{"$f":"Import!K191","v":0}]
[]
[null,"35.","DIVIDENDS PAYABLE",null,null,{"$f":"Import!E272","v":0},{"$f":"Import!G272","v":0},{"$f":"Import!E192","v":0},{"$f":"Import!G192","v":0},null,{"$f":"Import!I192","v":0},null,{"$f":"Import!K192","v":0}]
[]
[null,"36.","SUNDRY LIABILITIES:"]
[null,"(a)","Derivative instruments",null,null,{"$f":"Import!E273","v":0},{"$f":"Import!G273","v":0},{"$f":"Import!E193","v":0},{"$f":"Import!G193","v":0},null,{"$f":"Import!I193","v":0},null,{"$f":"Import!K193","v":0}]
[null,"(b)","Segregated accounts",null,null,{"$f":"Import!E274","v":0},{"$f":"Import!G274","v":0},{"$f":"Import!E195","v":0},{"$f":"Import!G195","v":0},null,{"$f":"Import!I195","v":0},null,{"$f":"Import!K195","v":0}]
[null,"(c)","Deposit liabilities",null,null,{"$f":"Import!E275","v":0},{"$f":"Import!G275","v":0},{"$f":"Import!E197","v":0},{"$f":"Import!G197","v":0},null,{"$f":"Import!I197","v":0},null,{"$f":"Import!K197","v":0}]
[null,"(d)","Net payable for investments purchased",null,null,{"$f":"Import!E276","v":0},{"$f":"Import!G276","v":0},{"$f":"Import!E199","v":0},{"$f":"Import!G199","v":0},null,{"$f":"Import!I199","v":0},null,{"$f":"Import!K199","v":0}]
[null,"(e)","Other sundry liabilities (specify)",null,null,{"$f":"Import!E277","v":0},{"$f":"Import!G277","v":0},{"$f":"Import!E200","v":0},{"$f":"Import!G200","v":0},null,{"$f":"Import!I200","v":0},null,{"$f":"Import!K200","v":0}]
[null,"(f)","Other sundry liabilities (specify)",null,null,{"$f":"Import!E278","v":0},{"$f":"Import!G278","v":0},{"$f":"Import!E201","v":0},{"$f":"Import!G201","v":0},null,{"$f":"Import!I201","v":0},null,{"$f":"Import!K201","v":0}]
[null,"(g)","Other sundry liabilities (specify)",null,null,{"$f":"Import!E279","v":0},{"$f":"Import!G279","v":0},{"$f":"Import!E202","v":0},{"$f":"Import!G202","v":0},null,{"$f":"Import!I202","v":0},null,{"$f":"Import!K202","v":0}]
[null,"(h)","Total sundry liabilities",null,null,{"$f":"SUM(F177:F183)","v":0},{"$f":"SUM(G177:G183)","v":0},{"$f":"SUM(H177:H183)","v":0},{"$f":"SUM(I177:I183)","v":0},null,{"$f":"SUM(K177:K183)","v":0},null,{"$f":"SUM(M177:M183)","v":0}]
[]
[null,"37.","LETTERS OF CREDIT, GUARANTEES AND OTHER INSTRUMENTS"]
[null,"(a)","Letters of credit ",null,null,{"$f":"Import!E280","v":0},{"$f":"Import!G280","v":0},{"$f":"Import!E203","v":0},{"$f":"Import!G203","v":0},null,{"$f":"Import!I203","v":0},null,{"$f":"Import!K203","v":0}]
[null,"(b)","Guarantees",null,null,{"$f":"Import!E281","v":0},{"$f":"Import!G281","v":0},{"$f":"Import!E204","v":0},{"$f":"Import!G204","v":0},null,{"$f":"Import!I204","v":0},null,{"$f":"Import!K204","v":0}]
[null,"(c) ","Other instruments",null,null,{"$f":"Import!E282","v":0},{"$f":"Import!G282","v":0},{"$f":"Import!E205","v":0},{"$f":"Import!G205","v":0},null,{"$f":"Import!I205","v":0},null,{"$f":"Import!K205","v":0}]
[null,"(d)","Total letters of credit, guarantees and other instruments",null,null,{"$f":"SUM(F187:F189)","v":0},{"$f":"SUM(G187:G189)","v":0},{"$f":"SUM(H187:H189)","v":0},{"$f":"SUM(I187:I189)","v":0},null,{"$f":"SUM(K187:K189)","v":0},null,{"$f":"SUM(M187:M189)","v":0}]
[]
[null,"38.","TOTAL OTHER LIABILITIES",null,null,{"$f":"F158+F160+F162+F164+F166+F168+F170+F172+F174+F184+F190","v":0},{"$f":"G158+G160+G162+G164+G166+G168+G170+G172+G174+G184+G190","v":0},{"$f":"H158+H160+H162+H164+H166+H168+H170+H172+H174+H184+H190","v":0},{"$f":"I158+I160+I162+I164+I166+I168+I170+I172+I174+I184+I190","v":0},null,{"$f":"K158+K160+K162+K164+K166+K168+K170+K172+K174+K184+K190","v":0},null,{"$f":"M158+M160+M162+M164+M166+M168+M170+M172+M174+M184+M190","v":0}]
[]
[null,"39.","TOTAL INSURANCE PROVISIONS AND OTHER LIABILITIES",null,null,{"$f":"F128+F154+F192","v":0},{"$f":"G128+G154+G192","v":0},{"$f":"H128+H154+H192","v":0},{"$f":"I128+I154+I192","v":0},null,{"$f":"K128+K154+K192","v":0},null,{"$f":"M128+M154+M192","v":0}]
[]
[null,null,"STATUTORY CAPITAL AND SURPLUS"]
[]
[null,"40.","TOTAL STATUTORY CAPITAL AND SURPLUS ",null,null,{"$f":"+'Form 8SFS'!G58","v":0},{"$f":"+'Form 8SFS'!I58","v":0},{"$f":"+'Form 8SFS'!K58","v":0},{"$f":"+'Form 8SFS'!M58","v":0},null,{"$f":"+'Form 8SFS'!O58","v":0},null,{"$f":"+'Form 8SFS'!Q58","v":0}]
[]
[null,"41.","TOTAL",null,null,{"$f":"F194+F198","v":0},{"$f":"G194+G198","v":0},{"$f":"H194+H198","v":0},{"$f":"I194+I198","v":0},null,{"$f":"K194+K198","v":0},null,{"$f":"M194+M198","v":0}]
[]
[null,null,null,null,null,{"$f":"IF(F203=\"TRUE\",HYPERLINK(\"#'Form 1SFS'!F100\",\"TRUE\"),HYPERLINK(\"#'Form 1SFS'!F100\",\"FALSE\"))","v":"TRUE"},{"$f":"IF(G203=\"TRUE\",HYPERLINK(\"#'Form 1SFS'!G100\",\"TRUE\"),HYPERLINK(\"#'Form 1SFS'!G100\",\"FALSE\"))","v":"TRUE"},{"$f":"IF(H203=\"TRUE\",HYPERLINK(\"#'Form 1SFS'!H100\",\"TRUE\"),HYPERLINK(\"#'Form 1SFS'!H100\",\"FALSE\"))","v":"TRUE"},{"$f":"IF(I203=\"TRUE\",HYPERLINK(\"#'Form 1SFS'!I100\",\"TRUE\"),HYPERLINK(\"#'Form 1SFS'!I100\",\"FALSE\"))","v":"TRUE"},null,{"$f":"IF(K203=\"TRUE\",HYPERLINK(\"#'Form 1SFS'!K100\",\"TRUE\"),HYPERLINK(\"#'Form 1SFS'!K100\",\"FALSE\"))","v":"TRUE"},null,{"$f":"IF(M203=\"TRUE\",HYPERLINK(\"#'Form 1SFS'!M100\",\"TRUE\"),HYPERLINK(\"#'Form 1SFS'!M100\",\"FALSE\"))","v":"TRUE"}]
[null,null,null,null,null,{"$f":"IF(ROUND((F100-F200),0)=0,\"TRUE\",\"FALSE\")","v":"TRUE"},{"$f":"IF(ROUND((G100-G200),0)=0,\"TRUE\",\"FALSE\")","v":"TRUE"},{"$f":"IF(ROUND((H100-H200),0)=0,\"TRUE\",\"FALSE\")","v":"TRUE"},{"$f":"IF(ROUND((I100-I200),0)=0,\"TRUE\",\"FALSE\")","v":"TRUE"},null,{"$f":"IF(ROUND((K100-K200),0)=0,\"TRUE\",\"FALSE\")","v":"TRUE"},null,{"$f":"IF(ROUND((M100-M200),0)=0,\"TRUE\",\"FALSE\")","v":"TRUE"}]
[null,null,"Difference",null,null,{"$f":"ROUND((F100-F200),0)","v":0},{"$f":"ROUND((G100-G200),0)","v":0},{"$f":"ROUND((H100-H200),0)","v":0},{"$f":"ROUND((I100-I200),0)","v":0},null,{"$f":"ROUND((K100-K200),0)","v":0},null,{"$f":"ROUND((M100-M200),0)","v":0}]
[]
[null,null,null,null,null,{"$f":"IF(F202=\"False\",\"Line 15 does not equal Line 41\",\"\")","v":""},{"$f":"IF(G202=\"False\",\"Line 15 does not equal Line 41\",\"\")","v":""},{"$f":"IF(H202=\"False\",\"Line 15 does not equal Line 41\",\"\")","v":""},{"$f":"IF(I202=\"False\",\"Line 15 does not equal Line 41\",\"\")","v":""},null,{"$f":"IF(K202=\"False\",\"Line 15 does not equal Line 41\",\"\")","v":""},null,{"$f":"IF(M202=\"False\",\"Line 15 does not equal Line 41\",\"\")","v":""}]
[]
[null,"Notes to Form 1SFS"]
[]
[null,"Line 10 ","Collateralized balances",null,null,null,null,null,null,null,{"$f":"Import!E284","v":0},null,{"$f":"Import!G284","v":0}]
[]
[null,"Line 11(e) ","Collateralized balances",null,null,null,null,null,null,null,{"$f":"Import!E285","v":0}]
[]
[null,"Line 27(c) ","Collateral placed in favor of the insurer ",null,null,null,null,null,null,null,{"$f":"Import!E286","v":0}]
[]
[null,"Line 13 ","Sundry assets",null,null,null,null,null,null,null,{"$f":"Import!E287","v":0},null,{"$f":"Import!G287","v":0}]
[]
[null,"Line 15","Encumbered assets for policyholder obligations"]
[]
[null,null,"Asset",null,null,null,null,"Purpose of Encumbrance"]
[null,null,"             Cash",null,null,null,null,null,null,null,{"$f":"Import!E288","v":0},null,{"$f":"Import!G288","v":0}]
[null,null,"             Total quoted investments",null,null,null,null,null,null,null,{"$f":"Import!E289","v":0},null,{"$f":"Import!G289","v":0}]
[null,null,"             Total unquoted investments",null,null,null,null,null,null,null,{"$f":"Import!E290","v":0},null,{"$f":"Import!G290","v":0}]
[null,null,"             Funds held by ceding reinsurers",null,null,null,null,null,null,null,{"$f":"IF(SUM(F100,H100)=0,K79,F79+H79)","v":0},null,{"$f":"IF(SUM(G100,I100)=0,M79,G79+I79)","v":0}]
[null,null,"             Other asset types",null,null,null,null,null,null,null,{"$f":"Import!E292","v":0},null,{"$f":"Import!G292","v":0}]
[null,null,"                      Total assets encumbered",null,null,null,null,null,null,null,{"$f":"SUM(K221:K225)","v":0},null,{"$f":"SUM(M221:M225)","v":0}]
[]
[null,"Line 15","Encumbered assets not securing policyholder obligations"]
[]
[null,null,"Asset",null,null,null,null,"Purpose of Encumbrance"]
[null,null,"             Cash",null,null,null,null,null,null,null,{"$f":"Import!E294","v":0},null,{"$f":"Import!G294","v":0}]
[null,null,"             Total quoted investments",null,null,null,null,null,null,null,{"$f":"Import!E295","v":0},null,{"$f":"Import!G295","v":0}]
[null,null,"             Total unquoted investments",null,null,null,null,null,null,null,{"$f":"Import!E296","v":0},null,{"$f":"Import!G296","v":0}]
[null,null,"             Other asset types",null,null,null,null,null,null,null,{"$f":"Import!E297","v":0},null,{"$f":"Import!G297","v":0}]
[null,null,"                      Total assets encumbered",null,null,null,null,null,null,null,{"$f":"SUM(K231:K234)","v":0},null,{"$f":"SUM(M231:M234)","v":0}]
[]
[null,"Line 36 ","Sundry liabilities",null,null,null,null,null,null,null,{"$f":"Import!E299","v":0},null,{"$f":"Import!G299","v":0}]
[]
[null,"Line 37 ","Letters of Credit, Guarantees and other Instruments",null,null,null,null,null,null,null,{"$f":"Import!E300","v":0},null,{"$f":"Import!G300","v":0}]
[]
[null,null,"General Business"]
[null,"Line 17","Reasons for the change in the net losses incurred and net loss expenses incurred related to prior years and indicate whether additional premiums or return premiums have been accrued as a result of the prior year effects. ",null,null,null,null,null,{"$f":"Import!E301","v":0}]
[]
[]
[null,"Line 17","Loss and loss expense provisions total restricted assets - an amount equal to the value of all that are held for security or collateral against a liability or contingent liabilit"]
[]
[]
[null,"Line 17","Loss and loss expense provision unsecured policyholder obligations - an amount equal to all policyholder obligations that are not secured by assets or collateral"]
[]
[]
[null,"Line 17","Gross loss and loss expense provisions at beginning of year",null,null,null,null,null,null,null,{"$f":"Import!E302","v":0},null,{"$f":"Import!G302","v":0}]
[]
[null,null,"Less: Reinsurance recoverable at beginning of year",null,null,null,null,null,null,null,{"$f":"Import!E303","v":0},null,{"$f":"Import!G303","v":0}]
[]
[null,null,"Net loss and loss expense provisions at beginning of year",null,null,null,null,null,null,null,{"$f":"K251-K253","v":0},null,{"$f":"M251-M253","v":0}]
[]
[null,null,"Acquisition / Sale of loss reserves (net):",null,null,null,null,null,null,null,{"$f":"Import!E305","v":0},null,{"$f":"Import!G305","v":0}]
[]
[null,null,"Net losses incurred and net loss expenses incurred related to:"]
[]
[null,null,"               Current year",null,null,null,null,null,null,null,{"$f":"Import!E306","v":0},null,{"$f":"Import!G306","v":0}]
[null,null,"               Prior years",null,null,null,null,null,null,null,{"$f":"Import!E307","v":0},null,{"$f":"Import!G307","v":0}]
[]
[null,null,"Total net incurred losses & loss expenses",null,null,null,null,null,null,null,{"$f":"SUM(K261:K262)","v":0},null,{"$f":"SUM(M261:M262)","v":0}]
[]
[null,null,"Net losses and loss expenses paid or payable related to:"]
[]
[null,null,"               Current year",null,null,null,null,null,null,null,{"$f":"Import!E309","v":0},null,{"$f":"Import!G309","v":0}]
[null,null,"               Prior years",null,null,null,null,null,null,null,{"$f":"Import!E310","v":0},null,{"$f":"Import!G310","v":0}]
[]
[null,null,"Total losses and loss expenses paid or payable",null,null,null,null,null,null,null,{"$f":"SUM(K268:K269)","v":0},null,{"$f":"SUM(M268:M269)","v":0}]
[]
[null,null,"Foreign exchange and other",null,null,null,null,null,null,null,{"$f":"Import!E312","v":0},null,{"$f":"Import!G312","v":0}]
[]
[null,null,"Net loss and loss expense provisions at end of year",null,null,null,null,null,null,null,{"$f":"K255+K257+K264+K271+K273","v":0},null,{"$f":"M255+M257+M264+M271+M273","v":0}]
[]
[null,null,"Add: Reinsurance recoverable at end of year",null,null,null,null,null,null,null,{"$f":"Import!E314","v":0},null,{"$f":"Import!G314","v":0}]
[]
[null,null,"Gross loss and loss expense provisions at end of year",null,null,null,null,null,null,null,{"$f":"K275+K277","v":0},null,{"$f":"M275+M277","v":0}]
[]
[null,null,null,null,null,null,null,null,null,null,{"$f":"IF(K282=\"TRUE\",HYPERLINK(\"#'Form 1SFS'!F117\",\"TRUE\"),HYPERLINK(\"#'Form 1SFS'!F117\",\"FALSE\"))","v":"TRUE"},null,{"$f":"IF(M282=\"TRUE\",HYPERLINK(\"#'Form 1SFS'!G117\",\"TRUE\"),HYPERLINK(\"#'Form 1SFS'!G117\",\"FALSE\"))","v":"TRUE"}]
[null,null,null,null,null,null,null,null,null,null,{"$f":"IF(ROUND((K279-F117),0)=0,\"TRUE\",\"FALSE\")","v":"TRUE"},null,{"$f":"IF(ROUND((M279-G117),0)=0,\"TRUE\",\"FALSE\")","v":"TRUE"}]
[null,null,"Difference",null,null,null,null,null,null,null,{"$f":"ROUND(F117-K279,0)","v":0},null,{"$f":"ROUND(G117-M279,0)","v":0}]
[]
[null,null,null,null,null,null,null,null,null,null,{"$f":"IF(K281=\"False\",\"Does not equal Line 17(a)\",\"\")","v":""},null,{"$f":"IF(M281=\"False\",\"Does not equal Line 17(a)\",\"\")","v":""}]
[]
[null,null,"Long-Term Business"]
[]
[null,"Line 27","Total gross long-term business insurance reserves at beginning of year"]
[]
[null,null,"Less: Reinsurance recoverable on long-term business at beginning of year"]
[]
[null,null,"Total net long-term business insurance reserves at beginning of year",null,null,null,null,null,null,null,{"$f":"K289-K291","v":0},null,{"$f":"M289-M291","v":0}]
[]
[null,null,"Long-term business deductions related to:"]
[]
[null,null,"               Current year"]
[null,null,"               Prior years"]
[]
[null,null,"Total long-term business deductions",null,null,null,null,null,null,null,{"$f":"SUM(K297:K298)","v":0},null,{"$f":"SUM(M297:M298)","v":0}]
[]
[null,null,"Less: Long-term business deductions paid or payable related to:"]
[]
[null,null,"               Current year"]
[null,null,"               Prior years"]
[]
[null,null,"Total long-term business deductions paid or payable",null,null,null,null,null,null,null,{"$f":"SUM(K304:K305)","v":0},null,{"$f":"SUM(M304:M305)","v":0}]
[]
[null,null,"Total net long-term business insurance reserves at end of year",null,null,null,null,null,null,null,{"$f":"K293+K300+K307","v":0},null,{"$f":"M293+M300+M307","v":0}]
[]
[null,null,"Add: Reinsurance recoverable on long-term business at end of year"]
[]
[null,null,"Total gross long-term business insurance reserves at end of year",null,null,null,null,null,null,null,{"$f":"K309+K311","v":0},null,{"$f":"M309+M311","v":0}]
[]
[null,null,null,null,null,null,null,null,null,null,{"$f":"IF((K313-K147)=0,TRUE,FALSE)","v":true},null,{"$f":"IF((M313-M147)=0,TRUE,FALSE)","v":true}]
[]
[null,null,"Difference",null,null,null,null,null,null,null,{"$f":"K147-K313","v":0},null,{"$f":"M147-M313","v":0}]
[]
[null,"Line 27",null,"Insurance Contracts",null,null,null,null,null,null," Investment Contracts "]
[null,"CURRENT YEAR",null,"Gross","Reinsurance",null,null,null,null,null,"Gross",null,"Reinsurance"]
[null,"Balance - Beginning of Year",null,{"$f":"Import!E316","v":0},{"$f":"Import!E323","v":0},null,null,null,null,null,{"$f":"Import!E330","v":0},null,{"$f":"Import!E337","v":0}]
[null,"Impact of Terminations",null,{"$f":"Import!E317","v":0},{"$f":"Import!E324","v":0},null,null,null,null,null,{"$f":"Import!E331","v":0},null,{"$f":"Import!E338","v":0}]
[null,"Impact of New Business",null,{"$f":"Import!E318","v":0},{"$f":"Import!E325","v":0},null,null,null,null,null,{"$f":"Import!E332","v":0},null,{"$f":"Import!E339","v":0}]
[null,"Normal Change in force",null,{"$f":"Import!E319","v":0},{"$f":"Import!E326","v":0},null,null,null,null,null,{"$f":"Import!E333","v":0},null,{"$f":"Import!E340","v":0}]
[null,"Management Actions and Changes in Assumptions",null,{"$f":"Import!E320","v":0},{"$f":"Import!E327","v":0},null,null,null,null,null,{"$f":"Import!E334","v":0},null,{"$f":"Import!E341","v":0}]
[null,"Impact of Foreign Exchange rate changes",null,{"$f":"Import!E321","v":0},{"$f":"Import!E328","v":0},null,null,null,null,null,{"$f":"Import!E335","v":0},null,{"$f":"Import!E342","v":0}]
[null,"Balance - End of Year",null,{"$f":"SUM(D321:D326)","v":0},{"$f":"SUM(E321:E326)","v":0},null,null,null,null,null,{"$f":"SUM(K321:K326)","v":0},null,{"$f":"SUM(M321:M326)","v":0}]
[]
[null,"PRIOR YEAR"]
[null,"Balance - Beginning of Year",null,{"$f":"Import!G316","v":0},{"$f":"Import!G323","v":0},null,null,null,null,null,{"$f":"Import!G330","v":0},null,{"$f":"Import!G337","v":0}]
[null,"Impact of Terminations",null,{"$f":"Import!G317","v":0},{"$f":"Import!G324","v":0},null,null,null,null,null,{"$f":"Import!G331","v":0},null,{"$f":"Import!G338","v":0}]
[null,"Impact of New Business",null,{"$f":"Import!G318","v":0},{"$f":"Import!G325","v":0},null,null,null,null,null,{"$f":"Import!G332","v":0},null,{"$f":"Import!G339","v":0}]
[null,"Normal Change in force",null,{"$f":"Import!G319","v":0},{"$f":"Import!G326","v":0},null,null,null,null,null,{"$f":"Import!G333","v":0},null,{"$f":"Import!G340","v":0}]
[null,"Management Actions and Changes in Assumptions",null,{"$f":"Import!G320","v":0},{"$f":"Import!G327","v":0},null,null,null,null,null,{"$f":"Import!G334","v":0},null,{"$f":"Import!G341","v":0}]
[null,"Impact of Foreign Exchange rate changes",null,{"$f":"Import!G321","v":0},{"$f":"Import!G328","v":0},null,null,null,null,null,{"$f":"Import!G335","v":0},null,{"$f":"Import!G342","v":0}]
[null,"Balance - End of Year",null,{"$f":"SUM(D330:D335)","v":0},{"$f":"SUM(E330:E335)","v":0},null,null,null,null,null,{"$f":"SUM(K330:K335)","v":0},null,{"$f":"SUM(M330:M335)","v":0}]

{"sheet":"Form 2SFS","index":19,"n_rows":115,"n_cols":15,"rows_kept":115,"cut":false,"hidden":false,"merged":[[1,4,3,10],[5,8,5,10],[5,12,5,14],[5,4,5,6],[4,4,4,6],[4,8,4,10],[4,12,4,14]]}
[null,"STATUTORY STATEMENT OF INCOME ",null,null,null,null,null,null,null,null,null,null,null,null,{"$f":"HYPERLINK(\"#'Index'!A1\",\"Return to Index\")","v":"Return to Index"}]
[null,{"$f":"'Form 4EBS'!B2","v":"Enter Company Name"},null,null,"Note if an insurer does not have any entities to consolidate, select \"No Subsidiaries\" on the Insurer Information tab (This cell is editable for deletion)"]
[null,"For the year ending",{"$f":" TEXT('Insurer Information'!C3,\"D MMMM YYYY\")","v":"31 December 2023"},null,null,null,null,null,null,null,null,null,null,null,"FORM 2SFS"]
[null,{"$f":"\"Expressed in \" & IF(CONFIGURATION!$B$12>1,\" ['\"&MID(CONFIGURATION!$B$12,2,LEN(CONFIGURATION!$B$12))&\"s]\",\"\")","v":"Expressed in  ['000s]"},{"$f":"'Form 4EBS'!C4","v":"United States Dollars"}]
[null,null,null,null,"General Business",null,null,null,"Long-Term Business",null,null,null,"General and Long-Term Business"]
[null,"STMT.",null,null,"Unconsolidated",null,null,null,"Unconsolidated",null,null,null,"Consolidated"]
[null,"LINE No.",null,null,{"$f":"'Form 4EBS'!F6","v":"2023-12-31"},null,{"$f":"'Form 4EBS'!H6","v":"2022-12-31"},null,{"$f":"'Form 4EBS'!F6","v":"2023-12-31"},null,{"$f":"'Form 4EBS'!H6","v":"2022-12-31"},null,{"$f":"'Form 4EBS'!F6","v":"2023-12-31"},null,{"$f":"'Form 4EBS'!H6","v":"2022-12-31"}]
[null,null,null,null,"('000)",null,"('000)",null,"('000)",null,"('000)",null,"('000)",null,"('000)"]
[null,null,"GENERAL BUSINESS UNDERWRITING INCOME"]
[]
[null,"1.","GROSS PREMIUMS WRITTEN:"]
[null,null,"(a) Direct gross premiums written",null,{"$f":"Import!E397","v":0},null,{"$f":"Import!G397","v":0},null,null,null,null,null,{"$f":"Import!I362","v":0},null,{"$f":"Import!K362","v":0}]
[null,null,"(b) Assumed gross premiums written",null,{"$f":"Import!E398","v":0},null,{"$f":"Import!G398","v":0},null,null,null,null,null,{"$f":"Import!I363","v":0},null,{"$f":"Import!K363","v":0}]
[null,null,"(c) Total gross premiums written",null,{"$f":"SUM(E12:E13)","v":0},null,{"$f":"SUM(G12:G13)","v":0},null,null,null,null,null,{"$f":"SUM(M12:M13)","v":0},null,{"$f":"SUM(O12:O13)","v":0}]
[]
[null,"2.","REINSURANCE PREMIUMS CEDED",null,{"$f":"Import!E399","v":0},null,{"$f":"Import!G399","v":0},null,null,null,null,null,{"$f":"Import!I364","v":0},null,{"$f":"Import!K364","v":0}]
[]
[null,"3.","NET PREMIUMS WRITTEN",null,{"$f":"E14-E16","v":0},null,{"$f":"G14-G16","v":0},null,null,null,null,null,{"$f":"M14-M16","v":0},null,{"$f":"O14-O16","v":0}]
[]
[null,"4.","INCREASE (DECREASE) IN UNEARNED PREMIUMS",null,{"$f":"Import!E400","v":0},null,{"$f":"Import!G400","v":0},null,null,null,null,null,{"$f":"Import!I365","v":0},null,{"$f":"Import!K365","v":0}]
[]
[null,"5.","NET PREMIUMS EARNED",null,{"$f":"E18+E20","v":0},null,{"$f":"G18+G20","v":0},null,null,null,null,null,{"$f":"M18+M20","v":0},null,{"$f":"O18+O20","v":0}]
[]
[null,"6.","OTHER INSURANCE INCOME",null,{"$f":"Import!E401","v":0},null,{"$f":"Import!G401","v":0},null,null,null,null,null,{"$f":"Import!I366","v":0},null,{"$f":"Import!K366","v":0}]
[]
[null,"7.",null,null,{"$f":"E22+E24","v":0},null,{"$f":"G22+G24","v":0},null,null,null,null,null,{"$f":"M22+M24","v":0},null,{"$f":"O22+O24","v":0}]
[]
[null,null,"GENERAL BUSINESS UNDERWRITING EXPENSES"]
[]
[null,"8.","NET LOSSES INCURRED AND NET LOSS EXPENSES INCURRED",null,{"$f":"Import!E402","v":0},null,{"$f":"Import!G402","v":0},null,null,null,null,null,{"$f":"Import!I367","v":0},null,{"$f":"Import!K367","v":0}]
[]
[null,"9.","COMMISSIONS AND BROKERAGE",null,{"$f":"Import!E403","v":0},null,{"$f":"Import!G403","v":0},null,null,null,null,null,{"$f":"Import!I368","v":0},null,{"$f":"Import!K368","v":0}]
[]
[null,"10.",null,null,{"$f":"E30+E32","v":0},null,{"$f":"G30+G32","v":0},null,null,null,null,null,{"$f":"M30+M32","v":0},null,{"$f":"O30+O32","v":0}]
[]
[null,"11.","NET UNDERWRITING PROFIT (LOSS) - GENERAL BUSINESS",null,{"$f":"E26-E34","v":0},null,{"$f":"G26-G34","v":0},null,null,null,null,null,{"$f":"M26-M34","v":0},null,{"$f":"O26-O34","v":0}]
[]
[null,null,"LONG-TERM BUSINESS UNDERWRITING INCOME"]
[]
[null,"12.","GROSS PREMIUMS AND OTHER CONSIDERATIONS:"]
[null,null,"(a) Direct gross premiums and other considerations",null,null,null,null,null,{"$f":"Import!E369","v":0},null,{"$f":"Import!G369","v":0},null,{"$f":"Import!I369","v":0},null,{"$f":"Import!K369","v":0}]
[null,null,"(b) Assumed gross premiums and other considerations",null,null,null,null,null,{"$f":"Import!E370","v":0},null,{"$f":"Import!G370","v":0},null,{"$f":"Import!I370","v":0},null,{"$f":"Import!K370","v":0}]
[null,null,"(c) Total gross premiums and other considerations",null,null,null,null,null,{"$f":"SUM(I41:I42)","v":0},null,{"$f":"SUM(K41:K42)","v":0},null,{"$f":"SUM(M41:M42)","v":0},null,{"$f":"SUM(O41:O42)","v":0}]
[]
[null,"13.","PREMIUMS CEDED",null,null,null,null,null,{"$f":"I43-I51","v":0},null,{"$f":"K43-K51","v":0},null,{"$f":"M43-M51","v":0},null,{"$f":"O43-O51","v":0}]
[]
[null,"14.","NET PREMIUMS AND OTHER CONSIDERATIONS:"]
[null,null,"(a) Life",null,null,null,null,null,{"$f":"Import!E372","v":0},null,{"$f":"Import!G372","v":0},null,{"$f":"Import!I372","v":0},null,{"$f":"Import!K372","v":0}]
[null,null,"(b) Annuities",null,null,null,null,null,{"$f":"Import!E373","v":0},null,{"$f":"Import!G373","v":0},null,{"$f":"Import!I373","v":0},null,{"$f":"Import!K373","v":0}]
[null,null,"(c) Accident and health",null,null,null,null,null,{"$f":"Import!E374","v":0},null,{"$f":"Import!G374","v":0},null,{"$f":"Import!I374","v":0},null,{"$f":"Import!K374","v":0}]
[null,null,"(d) Total net premiums and other considerations",null,null,null,null,null,{"$f":"SUM(I48:I50)","v":0},null,{"$f":"SUM(K48:K50)","v":0},null,{"$f":"SUM(M48:M50)","v":0},null,{"$f":"SUM(O48:O50)","v":0}]
[]
[null,"15.","OTHER INSURANCE INCOME",null,null,null,null,null,{"$f":"Import!E375","v":0},null,{"$f":"Import!G375","v":0},null,{"$f":"Import!I375","v":0},null,{"$f":"Import!K375","v":0}]
[]
[null,"16.",null,null,null,null,null,null,{"$f":"I51+I53","v":0},null,{"$f":"K51+K53","v":0},null,{"$f":"M51+M53","v":0},null,{"$f":"O51+O53","v":0}]
[]
[null,null,"DEDUCTIONS"]
[]
[null,"17.","CLAIMS - LIFE",null,null,null,null,null,{"$f":"Import!E376","v":0},null,{"$f":"Import!G376","v":0},null,{"$f":"Import!I376","v":0},null,{"$f":"Import!K376","v":0}]
[]
[null,"18.","POLICYHOLDERS' DIVIDENDS",null,null,null,null,null,{"$f":"Import!E377","v":0},null,{"$f":"Import!G377","v":0},null,{"$f":"Import!I377","v":0},null,{"$f":"Import!K377","v":0}]
[]
[null,"19.","SURRENDERS",null,null,null,null,null,{"$f":"Import!E378","v":0},null,{"$f":"Import!G378","v":0},null,{"$f":"Import!I378","v":0},null,{"$f":"Import!K378","v":0}]
[]
[null,"20.","MATURITIES",null,null,null,null,null,{"$f":"Import!E379","v":0},null,{"$f":"Import!G379","v":0},null,{"$f":"Import!I379","v":0},null,{"$f":"Import!K379","v":0}]
[]
[null,"21.","ANNUITIES",null,null,null,null,null,{"$f":"Import!E380","v":0},null,{"$f":"Import!G380","v":0},null,{"$f":"Import!I380","v":0},null,{"$f":"Import!K380","v":0}]
[]
[null,"22.","ACCIDENT AND HEALTH BENEFITS",null,null,null,null,null,{"$f":"Import!E381","v":0},null,{"$f":"Import!G381","v":0},null,{"$f":"Import!I381","v":0},null,{"$f":"Import!K381","v":0}]
[]
[null,"23.","COMMISSIONS",null,null,null,null,null,{"$f":"Import!E382","v":0},null,{"$f":"Import!G382","v":0},null,{"$f":"Import!I382","v":0},null,{"$f":"Import!K382","v":0}]
[]
[null,"24.","OTHER",null,null,null,null,null,{"$f":"Import!E383","v":0},null,{"$f":"Import!G383","v":0},null,{"$f":"Import!I383","v":0},null,{"$f":"Import!K383","v":0}]
[]
[null,"25.",null,null,null,null,null,null,{"$f":"I59+I61+I63+I65+I67+I69+I71+I73","v":0},null,{"$f":"K59+K61+K63+K65+K67+K69+K71+K73","v":0},null,{"$f":"M59+M61+M63+M65+M67+M69+M71+M73","v":0},null,{"$f":"O59+O61+O63+O65+O67+O69+O71+O73","v":0}]
[]
[null,"26.","INCREASE (DECREASE) IN POLICY RESERVES:"]
[null,null,"(a) Life",null,null,null,null,null,{"$f":"Import!E384","v":0},null,{"$f":"Import!G384","v":0},null,{"$f":"Import!I384","v":0},null,{"$f":"Import!K384","v":0}]
[null,null,"(b) Annuities",null,null,null,null,null,{"$f":"Import!E385","v":0},null,{"$f":"Import!G385","v":0},null,{"$f":"Import!I385","v":0},null,{"$f":"Import!K385","v":0}]
[null,null,"(c) Accident and health",null,null,null,null,null,{"$f":"Import!E386","v":0},null,{"$f":"Import!G386","v":0},null,{"$f":"Import!I386","v":0},null,{"$f":"Import!K386","v":0}]
[null,null,"(d) Total increase (decrease) in policy reserves",null,null,null,null,null,{"$f":"SUM(I78:I80)","v":0},null,{"$f":"SUM(K78:K80)","v":0},null,{"$f":"SUM(M78:M80)","v":0},null,{"$f":"SUM(O78:O80)","v":0}]
[]
[null,"27.",null,null,null,null,null,null,{"$f":"I75+I81","v":0},null,{"$f":"K75+K81","v":0},null,{"$f":"M75+M81","v":0},null,{"$f":"O75+O81","v":0}]
[]
[null,"28.","NET UNDERWRITING PROFIT (LOSS) - LONG-TERM BUSINESS",null,null,null,null,null,{"$f":"I55-I83","v":0},null,{"$f":"K55-K83","v":0},null,{"$f":"M55-M83","v":0},null,{"$f":"O55-O83","v":0}]
[]
[null,"29.","COMBINED NET UNDERWRITING PROFIT (LOSS) BEFORE "]
[null,null,"THE UNDERNOTED ITEMS",null,{"$f":"E36+E85","v":0},null,{"$f":"G36+G85","v":0},null,{"$f":"I36+I85","v":0},null,{"$f":"K36+K85","v":0},null,{"$f":"M36+M85","v":0},null,{"$f":"O36+O85","v":0}]
[]
[null,null,"UNDERNOTED ITEMS"]
[]
[null,"30.","COMBINED OPERATING EXPENSES:"]
[null,null,"(a) General and administrative ",null,{"$f":"Import!E404","v":0},null,{"$f":"Import!G404","v":0},null,{"$f":"Import!E387","v":0},null,{"$f":"Import!G387","v":0},null,{"$f":"Import!I387","v":0},null,{"$f":"Import!K387","v":0}]
[null,null,"(b) Personnel Costs  ",null,{"$f":"Import!E405","v":0},null,{"$f":"Import!G405","v":0},null,{"$f":"Import!E388","v":0},null,{"$f":"Import!G388","v":0},null,{"$f":"Import!I388","v":0},null,{"$f":"Import!K388","v":0}]
[null,null,"(c) Other  ",null,{"$f":"Import!E406","v":0},null,{"$f":"Import!G406","v":0},null,{"$f":"Import!E389","v":0},null,{"$f":"Import!G389","v":0},null,{"$f":"Import!I389","v":0},null,{"$f":"Import!K389","v":0}]
[null,null,"(d) Total combined operating expenses  ",null,{"$f":"SUM(E93:E95)","v":0},null,{"$f":"SUM(G93:G95)","v":0},null,{"$f":"SUM(I93:I95)","v":0},null,{"$f":"SUM(K93:K95)","v":0},null,{"$f":"SUM(M93:M95)","v":0},null,{"$f":"SUM(O93:O95)","v":0}]
[]
[null,"31.","COMBINED INVESTMENT INCOME - NET",null,{"$f":"Import!E407","v":0},null,{"$f":"Import!G407","v":0},null,{"$f":"Import!E390","v":0},null,{"$f":"Import!G390","v":0},null,{"$f":"Import!I390","v":0},null,{"$f":"Import!K390","v":0}]
[]
[null,"32.","COMBINED OTHER INCOME (DEDUCTIONS)",null,{"$f":"Import!E408","v":0},null,{"$f":"Import!G408","v":0},null,{"$f":"Import!E391","v":0},null,{"$f":"Import!G391","v":0},null,{"$f":"Import!I391","v":0},null,{"$f":"Import!K391","v":0}]
[]
[null,"33.","COMBINED INCOME BEFORE TAXES",null,{"$f":"E88-E96+E98+E100","v":0},null,{"$f":"G88-G96+G98+G100","v":0},null,{"$f":"I88-I96+I98+I100","v":0},null,{"$f":"K88-K96+K98+K100","v":0},null,{"$f":"M88-M96+M98+M100","v":0},null,{"$f":"O88-O96+O98+O100","v":0}]
[]
[null,"34.","COMBINED INCOME TAXES (IF APPLICABLE):"]
[null,null,"(a) Current",null,{"$f":"Import!E409","v":0},null,{"$f":"Import!G409","v":0},null,{"$f":"Import!E392","v":0},null,{"$f":"Import!G392","v":0},null,{"$f":"Import!I392","v":0},null,{"$f":"Import!K392","v":0}]
[null,null,"(b) Deferred",null,{"$f":"Import!E410","v":0},null,{"$f":"Import!G410","v":0},null,{"$f":"Import!E393","v":0},null,{"$f":"Import!G393","v":0},null,{"$f":"Import!I393","v":0},null,{"$f":"Import!K393","v":0}]
[null,null,"(c) Total ",null,{"$f":"E105+E106","v":0},null,{"$f":"G105+G106","v":0},null,{"$f":"I105+I106","v":0},null,{"$f":"K105+K106","v":0},null,{"$f":"M105+M106","v":0},null,{"$f":"O105+O106","v":0}]
[]
[null,"35.","COMBINED INCOME BEFORE REALIZED GAINS (LOSSES)",null,{"$f":"E102-E107","v":0},null,{"$f":"G102-G107","v":0},null,{"$f":"I102-I107","v":0},null,{"$f":"K102-K107","v":0},null,{"$f":"M102-M107","v":0},null,{"$f":"O102-O107","v":0}]
[]
[null,"36.","COMBINED REALIZED GAINS (LOSSES)",null,{"$f":"Import!E411","v":0},null,{"$f":"Import!G411","v":0},null,{"$f":"Import!E394","v":0},null,{"$f":"Import!G394","v":0},null,{"$f":"Import!I394","v":0},null,{"$f":"Import!K394","v":0}]
[]
[null,"37.","COMBINED INTEREST CHARGES",null,{"$f":"Import!E412","v":0},null,{"$f":"Import!G412","v":0},null,{"$f":"Import!E395","v":0},null,{"$f":"Import!G395","v":0},null,{"$f":"Import!I395","v":0},null,{"$f":"Import!K395","v":0}]
[]
[null,"38.","NET INCOME",null,{"$f":"E109+E111-E113","v":0},null,{"$f":"G109+G111-G113","v":0},null,{"$f":"I109+I111-I113","v":0},null,{"$f":"K109+K111-K113","v":0},null,{"$f":"M109+M111-M113","v":0},null,{"$f":"O109+O111-O113","v":0}]

{"sheet":"Form 8SFS","index":20,"n_rows":63,"n_cols":17,"rows_kept":63,"cut":false,"hidden":false,"merged":[[60,2,60,4],[62,2,62,4],[60,10,60,12],[4,6,4,8],[4,10,4,12],[5,6,5,8],[5,10,5,12],[62,10,62,12],[2,2,2,3],[3,2,3,3],[45,2,45,4],[5,14,5,16],[4,14,4,16],[1,6,3,12]]}
[null,"STATUTORY STATEMENT OF CAPITAL AND SURPLUS",null,null,null,null,null,null,null,null,null,null,null,null,null,null,{"$f":"HYPERLINK(\"#'Index'!A1\",\"Return to Index\")","v":"Return to Index"}]
[null,{"$f":"'Insurer Information'!C7","v":"Enter Company Name"},null,null,null,null,"Note if an insurer does not have any entities to consolidate, select \"No Subsidiaries\" on the Insurer Information tab (This cell is editable for deletion)"]
[null,"For the year ending",{"$f":" TEXT('Insurer Information'!C3,\"D MMMM YYYY\")","v":"31 December 2023"},null,null,null,null,null,null,null,null,null,null,null,null,null,"FORM 8SFS"]
[null,{"$f":"\"Expressed in  \"& IF(CONFIGURATION!$B$12>1,\" ['\"&MID(CONFIGURATION!$B$12,2,LEN(CONFIGURATION!$B$12))&\"s]\",\"\")","v":"Expressed in   ['000s]"},{"$f":"'Form 4EBS'!C4","v":"United States Dollars"}]
[null,null,null,null,null,null,"General Business",null,null,null,"Long-Term Business",null,null,null,"General and Long-Term Business"]
[null,"STMT.",null,null,null,null,"Unconsolidated",null,null,null,"Unconsolidated",null,null,null,"Consolidated"]
[null,"LINE No.",null,null,null,null,{"$f":"+'Form 2SFS'!E7","v":"2023-12-31"},null,{"$f":"+'Form 2SFS'!G7","v":"2022-12-31"},null,{"$f":"+'Form 2SFS'!I7","v":"2023-12-31"},null,{"$f":"+'Form 2SFS'!K7","v":"2022-12-31"},null,{"$f":"+'Form 2SFS'!M7","v":"2023-12-31"},null,{"$f":"+'Form 2SFS'!O7","v":"2022-12-31"}]
[null,null,null,null,null,null,{"$f":"CONFIGURATION!$D$12","v":" ('000s)"},null,{"$f":"CONFIGURATION!$D$12","v":" ('000s)"},null,{"$f":"CONFIGURATION!$D$12","v":" ('000s)"},null,{"$f":"CONFIGURATION!$D$12","v":" ('000s)"},null,{"$f":"CONFIGURATION!$D$12","v":" ('000s)"},null,{"$f":"CONFIGURATION!$D$12","v":" ('000s)"}]
[null,"1.","STATUTORY CAPITAL"]
[]
[null,"(a) ","Capital stock",null,null,null,{"$f":"Import!E430","v":0},null,{"$f":"Import!G430","v":0},null,{"$f":"Import!E415","v":0},null,{"$f":"Import!G415","v":0}]
[null,null,"(i) Common shares",null,null,null,null,null,null,null,null,null,null,null,{"$f":"Import!I416","v":0},null,{"$f":"Import!K416","v":0}]
[null,null,"authorized",null,"shares of par"]
[null,null,"value",null,"each issued and"]
[null,null,"fully paid",null,"shares"]
[]
[null,null,"(ii) Preferred shares",null,null,null,null,null,null,null,null,null,null,null,{"$f":"Import!I417","v":0},null,{"$f":"Import!K417","v":0}]
[null,null,"authorized",null,"shares of par"]
[null,null,"value",null,"each issued and"]
[null,null,"fully paid",null,"shares"]
[null,null,"aggregate liquidation value for —"]
[null,null,{"$f":"G7","v":"2023-12-31"}]
[null,null,{"$f":"I7","v":"2022-12-31"}]
[]
[null,null,"(iii) Treasury shares",null,null,null,null,null,null,null,null,null,null,null,{"$f":"Import!I418","v":0},null,{"$f":"Import!K418","v":0}]
[null,null,"repurchased",null,"shares of par"]
[null,null,"value",null,"each issued"]
[]
[null,"(b)","Contributed surplus",null,null,null,{"$f":"Import!E431","v":0},null,{"$f":"Import!G431","v":0},null,{"$f":"Import!E419","v":0},null,{"$f":"Import!G419","v":0},null,{"$f":"Import!I419","v":0},null,{"$f":"Import!K419","v":0}]
[]
[null,"(c) ","Any other fixed capital"]
[null,null,"(i) Hybrid capital instruments",null,null,null,{"$f":"Import!E432","v":0},null,{"$f":"Import!G432","v":0},null,{"$f":"Import!E420","v":0},null,{"$f":"Import!G420","v":0},null,{"$f":"Import!I420","v":0},null,{"$f":"Import!K420","v":0}]
[null,null,"(ii) Guarantees and others",null,null,null,{"$f":"Import!E433","v":0},null,{"$f":"Import!G433","v":0},null,{"$f":"Import!E421","v":0},null,{"$f":"Import!G421","v":0},null,{"$f":"Import!I421","v":0},null,{"$f":"Import!K421","v":0}]
[null,null,"(iii) Total any other fixed capital",null,null,null,{"$f":"SUM(G32:G33)","v":0},null,{"$f":"SUM(I32:I33)","v":0},null,{"$f":"SUM(K32:K33)","v":0},null,{"$f":"SUM(M32:M33)","v":0},null,{"$f":"SUM(O32:O33)","v":0},null,{"$f":"SUM(Q32:Q33)","v":0}]
[]
[null,"(d)","Total Statutory Capital",null,null,null,{"$f":"G11+G29+G34","v":0},null,{"$f":"I11+I29+I34","v":0},null,{"$f":"K11+K29+K34","v":0},null,{"$f":"M11+M29+M34","v":0},null,{"$f":"O12+O17-O25+O29+O34","v":0},null,{"$f":"Q12+Q17-Q25+Q29+Q34","v":0}]
[]
[null,"2.","STATUTORY SURPLUS:"]
[]
[null,"(a) ","Statutory Surplus - Beginning of Year",null,null,null,{"$f":"Import!E434","v":0},null,{"$f":"Import!G434","v":0},null,{"$f":"Import!E422","v":0},null,{"$f":"Import!G422","v":0},null,{"$f":"Import!I422","v":0},null,{"$f":"Import!K422","v":0}]
[]
[null,"(b)","Add: Income for Year",null,null,null,{"$f":"'Form 2SFS'!E115","v":0},null,{"$f":"'Form 2SFS'!G115","v":0},null,{"$f":"'Form 2SFS'!I115","v":0},null,{"$f":"'Form 2SFS'!K115","v":0},null,{"$f":"'Form 2SFS'!M115","v":0},null,{"$f":"'Form 2SFS'!O115","v":0}]
[]
[null,"(c) ","Less: Dividends paid and payable",null,null,null,{"$f":"Import!E435","v":0},null,{"$f":"Import!G435","v":0},null,{"$f":"Import!E423","v":0},null,{"$f":"Import!G423","v":0},null,{"$f":"Import!I423","v":0},null,{"$f":"Import!K423","v":0}]
[]
[null,"(d)","Add (Deduct) change in unrealized appreciation (depreciation) of investments",null,null,null,{"$f":"Import!E436","v":0},null,{"$f":"Import!G436","v":0},null,{"$f":"Import!E424","v":0},null,{"$f":"Import!G424","v":0},null,{"$f":"Import!I424","v":0},null,{"$f":"Import!K424","v":0}]
[]
[null,"(e)","Add (Deduct) change in non-admitted assets",null,null,null,{"$f":"Import!E437","v":0},null,{"$f":"Import!G437","v":0},null,{"$f":"Import!E425","v":0},null,{"$f":"Import!G425","v":0},null,{"$f":"Import!I425","v":0},null,{"$f":"Import!K425","v":0}]
[]
[null,"(f)","Add (Deduct) change in appraisal of real estate",null,null,null,{"$f":"Import!E438","v":0},null,{"$f":"Import!G438","v":0},null,{"$f":"Import!E426","v":0},null,{"$f":"Import!G426","v":0},null,{"$f":"Import!I426","v":0},null,{"$f":"Import!K426","v":0}]
[]
[null,"(g)","Add (Deduct) change in any other statutory capital",null,null,null,{"$f":"Import!E439","v":0},null,{"$f":"Import!G439","v":0},null,{"$f":"Import!E427","v":0},null,{"$f":"Import!G427","v":0},null,{"$f":"Import!I427","v":0},null,{"$f":"Import!K427","v":0}]
[]
[null,"(h)","Statutory Surplus - End of Year",null,null,null,{"$f":"G40+G42+G44+G46+G48+G50+G52","v":0},null,{"$f":"I40+I42+I44+I46+I48+I50+I52","v":0},null,{"$f":"K40+K42+K44+K46+K48+K50+K52","v":0},null,{"$f":"M40+M42+M44+M46+M48+M50+M52","v":0},null,{"$f":"O40+O42+O44+O46+O48+O50+O52","v":0},null,{"$f":"Q40+Q42+Q44+Q46+Q48+Q50+Q52","v":0}]
[]
[null,"3.","MINORITY INTEREST",null,null,null,{"$f":"Import!E440","v":0},null,{"$f":"Import!G440","v":0},null,{"$f":"Import!E428","v":0},null,{"$f":"Import!G428","v":0},null,{"$f":"Import!I428","v":0},null,{"$f":"Import!K428","v":0}]
[]
[null,"4.","TOTAL STATUTORY CAPITAL AND SURPLUS",null,null,null,{"$f":"G36+G54+G56","v":0},null,{"$f":"I36+I54+I56","v":0},null,{"$f":"K36+K54+K56","v":0},null,{"$f":"M36+M54+M56","v":0},null,{"$f":"O36+O54+O56","v":0},null,{"$f":"Q36+Q54+Q56","v":0}]
[]
[null,null,null,null,null,null,null,null,null,null,"Change in other statutory capital and surplus"]
[null,"Line 2g","Change in any other statutory capital"]
[]
[null,"Line 4","Total Statutory Capital & Surplus",null,null,null,null,null,null,null,{"$f":"HYPERLINK(\"#'Schedule V(g)'!A1\",\"Refer to Schedule V(g)\")","v":"Refer to Schedule V(g)"}]

{"sheet":"Form 1ASFS","index":21,"n_rows":353,"n_cols":15,"rows_kept":353,"cut":false,"hidden":false,"merged":[[295,1,295,2],[299,1,299,2],[301,1,301,2],[305,1,305,2],[317,4,317,6],[279,4,279,6],[279,8,279,12],[289,1,289,2],[290,1,290,2],[294,1,294,2],[183,8,183,10],[175,8,175,10],[177,8,177,10],[166,12,166,14],[167,12,167,14],[168,12,168,14],[173,8,173,10],[174,8,174,10],[176,8,176,10],[4,4,4,6],[4,8,4,10],[4,12,4,14],[5,4,5,6],[5,8,5,10],[5,12,5,14],[238,4,238,6],[184,8,184,10],[190,12,190,14],[191,12,191,14],[192,12,192,14],[198,4,198,6],[198,8,198,12],[186,8,186,10],[238,8,238,12],[185,8,185,10]]}
[null,"STATUTORY BALANCE SHEET",null,null,null,null,null,null,null,null,null,null,null,null,{"$f":"HYPERLINK(\"#'Index'!A1\",\"Return to Index\")","v":"Return to Index"}]
[null,{"$f":"'Insurer Information'!C7","v":"Enter Company Name"}]
[null,"As at",{"$f":"'Insurer Information'!C3","v":"2023-12-31"},null,null,null,null,null,null,null,null,null,null,null,"FORM 1ASFS"]
[null,{"$f":"\"Expressed in \" & IF(CONFIGURATION!$B$12>1,\" ['\"&MID(CONFIGURATION!$B$12,2,LEN(CONFIGURATION!$B$12))&\"s]\",\"\")","v":"Expressed in  ['000s]"},"United States Dollars"]
[null,null,null,null,"General Business",null,null,null,"Long-Term Business",null,null,null,"General & Long-Term Business"]
[null,"STMT.",null,null,"Unconsolidated",null,null,null,"Unconsolidated",null,null,null,"Consolidated"]
[null,"LINE No.",null,null,{"$f":"C3","v":"2023-12-31"},null,{"$f":"DATE(YEAR(C3) -1, MONTH(C3), DAY(C3))","v":"2022-12-31"},null,{"$f":"C3","v":"2023-12-31"},null,{"$f":"DATE(YEAR(C3) -1, MONTH(C3), DAY(C3))","v":"2022-12-31"},null,{"$f":"C3","v":"2023-12-31"},null,{"$f":"DATE(YEAR(C3) -1, MONTH(C3), DAY(C3))","v":"2022-12-31"}]
[null,null,null,null,{"$f":"CONFIGURATION!$D$12","v":" ('000s)"},null,{"$f":"CONFIGURATION!$D$12","v":" ('000s)"},null,{"$f":"CONFIGURATION!$D$12","v":" ('000s)"},null,{"$f":"CONFIGURATION!$D$12","v":" ('000s)"},null,{"$f":"CONFIGURATION!$D$12","v":" ('000s)"},null,{"$f":"CONFIGURATION!$D$12","v":" ('000s)"}]
[]
[null,"1.","CASH AND CASH EQUIVALENTS",null,{"$f":"Import!E508","v":0},null,{"$f":"Import!G508","v":0},null,{"$f":"Import!E443","v":0},null,{"$f":"Import!G443","v":0},null,{"$f":"Import!I443","v":0},null,{"$f":"Import!K443","v":0}]
[]
[null,"2.","QUOTED INVESTMENTS:"]
[null,"(a)","Bonds and Debentures"]
[null,null,"  i.   Assets Held to maturity or collection",null,{"$f":"Import!E509","v":0},null,{"$f":"Import!G509","v":0},null,{"$f":"Import!E444","v":0},null,{"$f":"Import!G444","v":0},null,{"$f":"Import!I444","v":0},null,{"$f":"Import!K444","v":0}]
[null,null,"  ii.  Other",null,{"$f":"Import!E510","v":0},null,{"$f":"Import!G510","v":0},null,{"$f":"Import!E445","v":0},null,{"$f":"Import!G445","v":0},null,{"$f":"Import!I445","v":0},null,{"$f":"Import!K445","v":0}]
[null,"(b) ","Total Bonds and Debentures",null,{"$f":"SUM(E14:E15)","v":0},null,{"$f":"SUM(G14:G15)","v":0},null,{"$f":"SUM(I14:I15)","v":0},null,{"$f":"SUM(K14:K15)","v":0},null,{"$f":"SUM(M14:M15)","v":0},null,{"$f":"SUM(O14:O15)","v":0}]
[null,"(c) ","Equities "]
[null,null,"  i.  Common stocks",null,{"$f":"Import!E511","v":0},null,{"$f":"Import!G511","v":0},null,{"$f":"Import!E446","v":0},null,{"$f":"Import!G446","v":0},null,{"$f":"Import!I446","v":0},null,{"$f":"Import!K446","v":0}]
[null,null,"  ii. Preferred stocks",null,{"$f":"Import!E512","v":0},null,{"$f":"Import!G512","v":0},null,{"$f":"Import!E447","v":0},null,{"$f":"Import!G447","v":0},null,{"$f":"Import!I447","v":0},null,{"$f":"Import!K447","v":0}]
[null,null,"  iii. Mutual Funds",null,{"$f":"Import!E513","v":0},null,{"$f":"Import!G513","v":0},null,{"$f":"Import!E448","v":0},null,{"$f":"Import!G448","v":0},null,{"$f":"Import!I448","v":0},null,{"$f":"Import!K448","v":0}]
[null,"(d) ","Total Equity Investments",null,{"$f":"SUM(E18:E20)","v":0},null,{"$f":"SUM(G18:G20)","v":0},null,{"$f":"SUM(I18:I20)","v":0},null,{"$f":"SUM(K18:K20)","v":0},null,{"$f":"SUM(M18:M20)","v":0},null,{"$f":"SUM(O18:O20)","v":0}]
[null,"(e)","Other quoted investments",null,{"$f":"Import!E514","v":0},null,{"$f":"Import!G514","v":0},null,{"$f":"Import!E449","v":0},null,{"$f":"Import!G449","v":0},null,{"$f":"Import!I449","v":0},null,{"$f":"Import!K449","v":0}]
[null,"(f)","Total quoted investments",null,{"$f":"E16+E21+E22","v":0},null,{"$f":"G16+G21+G22","v":0},null,{"$f":"I16+I21+I22","v":0},null,{"$f":"K16+K21+K22","v":0},null,{"$f":"M16+M21+M22","v":0},null,{"$f":"O16+O21+O22","v":0}]
[]
[null,"3.","UNQUOTED INVESTMENTS:"]
[null,"(a)","Bonds and Debentures"]
[null,null,"  i.   Assets held to maturity or collection",null,{"$f":"Import!E515","v":0},null,{"$f":"Import!G515","v":0},null,{"$f":"Import!E450","v":0},null,{"$f":"Import!G450","v":0},null,{"$f":"Import!I450","v":0},null,{"$f":"Import!K450","v":0}]
[null,null,"  ii.  Other",null,{"$f":"Import!E516","v":0},null,{"$f":"Import!G516","v":0},null,{"$f":"Import!E451","v":0},null,{"$f":"Import!G451","v":0},null,{"$f":"Import!I451","v":0},null,{"$f":"Import!K451","v":0}]
[null,"(b) ","Total Bonds and Debentures",null,{"$f":"SUM(E27:E28)","v":0},null,{"$f":"SUM(G27:G28)","v":0},null,{"$f":"SUM(I27:I28)","v":0},null,{"$f":"SUM(K27:K28)","v":0},null,{"$f":"SUM(M27:M28)","v":0},null,{"$f":"SUM(O27:O28)","v":0}]
[null,"(c) ","Equities "]
[null,null,"  i.  Common stocks",null,{"$f":"Import!E517","v":0},null,{"$f":"Import!G517","v":0},null,{"$f":"Import!E452","v":0},null,{"$f":"Import!G452","v":0},null,{"$f":"Import!I452","v":0},null,{"$f":"Import!K452","v":0}]
[null,null,"  ii. Preferred stocks",null,{"$f":"Import!E518","v":0},null,{"$f":"Import!G518","v":0},null,{"$f":"Import!E453","v":0},null,{"$f":"Import!G453","v":0},null,{"$f":"Import!I453","v":0},null,{"$f":"Import!K453","v":0}]
[null,null,"  iii. Mutual Funds",null,{"$f":"Import!E519","v":0},null,{"$f":"Import!G519","v":0},null,{"$f":"Import!E454","v":0},null,{"$f":"Import!G454","v":0},null,{"$f":"Import!I454","v":0},null,{"$f":"Import!K454","v":0}]
[null,"(d) ","Total equity investments",null,{"$f":"SUM(E31:E33)","v":0},null,{"$f":"SUM(G31:G33)","v":0},null,{"$f":"SUM(I31:I33)","v":0},null,{"$f":"SUM(K31:K33)","v":0},null,{"$f":"SUM(M31:M33)","v":0},null,{"$f":"SUM(O31:O33)","v":0}]
[null,"(e)","Other unquoted investments",null,{"$f":"Import!E520","v":0},null,{"$f":"Import!G520","v":0},null,{"$f":"Import!E455","v":0},null,{"$f":"Import!G455","v":0},null,{"$f":"Import!I455","v":0},null,{"$f":"Import!K455","v":0}]
[null,"(f)","Total unquoted investments",null,{"$f":"E29+E34+E35","v":0},null,{"$f":"G29+G34+G35","v":0},null,{"$f":"I29+I34+I35","v":0},null,{"$f":"K29+K34+K35","v":0},null,{"$f":"M29+M34+M35","v":0},null,{"$f":"O29+O34+O35","v":0}]
[]
[null,"4.","INVESTMENTS IN AND ADVANCES TO AFFILIATES (EQUITY METHOD):"]
[null,"(a)","Unregulated entities that conduct ancillary services",null,{"$f":"Import!E521","v":0},null,{"$f":"Import!G521","v":0},null,{"$f":"Import!E456","v":0},null,{"$f":"Import!G456","v":0},null,{"$f":"Import!I456","v":0},null,{"$f":"Import!K456","v":0}]
[null,"(b)","Unregulated non-financial operating entities",null,{"$f":"Import!E522","v":0},null,{"$f":"Import!G522","v":0},null,{"$f":"Import!E457","v":0},null,{"$f":"Import!G457","v":0},null,{"$f":"Import!I457","v":0},null,{"$f":"Import!K457","v":0}]
[null,"(c)","Unregulated financial operating entities",null,{"$f":"Import!E523","v":0},null,{"$f":"Import!G523","v":0},null,{"$f":"Import!E458","v":0},null,{"$f":"Import!G458","v":0},null,{"$f":"Import!I458","v":0},null,{"$f":"Import!K458","v":0}]
[null,"(d)","Regulated non-insurance financial operating entities",null,{"$f":"Import!E524","v":0},null,{"$f":"Import!G524","v":0},null,{"$f":"Import!E459","v":0},null,{"$f":"Import!G459","v":0},null,{"$f":"Import!I459","v":0},null,{"$f":"Import!K459","v":0}]
[null,"(e)","Regulated insurance financial operating entities",null,{"$f":"Import!E525","v":0},null,{"$f":"Import!G525","v":0},null,{"$f":"Import!E460","v":0},null,{"$f":"Import!G460","v":0},null,{"$f":"Import!I460","v":0},null,{"$f":"Import!K460","v":0}]
[null,"(f)","Total investments in affiliates (equity method)",null,{"$f":"SUM(E39:E43)","v":0},null,{"$f":"SUM(G39:G43)","v":0},null,{"$f":"SUM(I39:I43)","v":0},null,{"$f":"SUM(K39:K43)","v":0},null,{"$f":"SUM(M39:M43)","v":0},null,{"$f":"SUM(O39:O43)","v":0}]
[null,"(g)","Advances to affiliates",null,{"$f":"Import!E526","v":0},null,{"$f":"Import!G526","v":0},null,{"$f":"Import!E461","v":0},null,{"$f":"Import!G461","v":0},null,{"$f":"Import!I461","v":0},null,{"$f":"Import!K461","v":0}]
[null,"(h)","Total investments in and advances to affiliates (equity method)",null,{"$f":"E44+E45","v":0},null,{"$f":"G44+G45","v":0},null,{"$f":"I44+I45","v":0},null,{"$f":"K44+K45","v":0},null,{"$f":"M44+M45","v":0},null,{"$f":"O44+O45","v":0}]
[]
[null,"5.","INVESTMENTS IN MORTGAGE LOANS ON REAL ESTATE:"]
[null,"(a)","First liens",null,{"$f":"Import!E527","v":0},null,{"$f":"Import!G527","v":0},null,{"$f":"Import!E462","v":0},null,{"$f":"Import!G462","v":0},null,{"$f":"Import!I462","v":0},null,{"$f":"Import!K462","v":0}]
[null,"(b) ","Other than first liens",null,{"$f":"Import!E528","v":0},null,{"$f":"Import!G528","v":0},null,{"$f":"Import!E463","v":0},null,{"$f":"Import!G463","v":0},null,{"$f":"Import!I463","v":0},null,{"$f":"Import!K463","v":0}]
[null,"(c) ","Total investments in mortgage loans on real estate",null,{"$f":"E49+E50","v":0},null,{"$f":"G49+G50","v":0},null,{"$f":"I49+I50","v":0},null,{"$f":"K49+K50","v":0},null,{"$f":"M49+M50","v":0},null,{"$f":"O49+O50","v":0}]
[]
[null,"7.","REAL ESTATE:"]
[null,"(a)","Occupied by the company (less encumbrances)",null,{"$f":"Import!E529","v":0},null,{"$f":"Import!G529","v":0},null,{"$f":"Import!E464","v":0},null,{"$f":"Import!G464","v":0},null,{"$f":"Import!I464","v":0},null,{"$f":"Import!K464","v":0}]
[null,"(b)","Other properties (less encumbrances)",null,{"$f":"Import!E530","v":0},null,{"$f":"Import!G530","v":0},null,{"$f":"Import!E465","v":0},null,{"$f":"Import!G465","v":0},null,{"$f":"Import!I465","v":0},null,{"$f":"Import!K465","v":0}]
[null,"(c) ","Total real estate",null,{"$f":"SUM(E54:E55)","v":0},null,{"$f":"SUM(G54:G55)","v":0},null,{"$f":"SUM(I54:I55)","v":0},null,{"$f":"SUM(K54:K55)","v":0},null,{"$f":"SUM(M54:M55)","v":0},null,{"$f":"SUM(O54:O55)","v":0}]
[]
[null,"8.","COLLATERAL LOANS",null,{"$f":"Import!E531","v":0},null,{"$f":"Import!G531","v":0},null,{"$f":"Import!E466","v":0},null,{"$f":"Import!G466","v":0},null,{"$f":"Import!I466","v":0},null,{"$f":"Import!K466","v":0}]
[]
[null,"9.","INVESTMENT INCOME DUE AND ACCRUED",null,{"$f":"Import!E532","v":0},null,{"$f":"Import!G532","v":0},null,{"$f":"Import!E467","v":0},null,{"$f":"Import!G467","v":0},null,{"$f":"Import!I467","v":0},null,{"$f":"Import!K467","v":0}]
[]
[null,"10.","ACCOUNTS RECEIVABLE",null,{"$f":"Import!E533","v":0},null,{"$f":"Import!G533","v":0},null,{"$f":"Import!E468","v":0},null,{"$f":"Import!G468","v":0},null,{"$f":"Import!I468","v":0},null,{"$f":"Import!K468","v":0}]
[]
[null,"11.","INSURANCE AND REINSURANCE CONTRACT ASSETS"]
[null,"(a)","Insurance Contract Assets",null,{"$f":"Import!E534","v":0},null,{"$f":"Import!G534","v":0},null,{"$f":"Import!E469","v":0},null,{"$f":"Import!G469","v":0},null,{"$f":"Import!I469","v":0},null,{"$f":"Import!K469","v":0}]
[null,"(b)","Reinsurance Contract Assets",null,{"$f":"Import!E535","v":0},null,{"$f":"Import!G535","v":0},null,{"$f":"Import!E470","v":0},null,{"$f":"Import!G470","v":0},null,{"$f":"Import!I470","v":0},null,{"$f":"Import!K470","v":0}]
[null,"(c)","Investment Contracts with Discretionary Participation Features (DPF) assets",null,{"$f":"Import!E536","v":0},null,{"$f":"Import!G536","v":0},null,{"$f":"Import!E471","v":0},null,{"$f":"Import!G471","v":0},null,{"$f":"Import!I471","v":0},null,{"$f":"Import!K471","v":0}]
[null,"(d) ","Total Insurance and Reinsurance Contract Assets",null,{"$f":"SUM(E65:E67)","v":0},null,{"$f":"SUM(G65:G67)","v":0},null,{"$f":"SUM(I65:I67)","v":0},null,{"$f":"SUM(K65:K67)","v":0},null,{"$f":"SUM(M65:M67)","v":0},null,{"$f":"SUM(O65:O67)","v":0}]
[]
[null,"13.","SUNDRY ASSETS:"]
[null,"(a)","Derivative instruments",null,{"$f":"Import!E537","v":0},null,{"$f":"Import!G537","v":0},null,{"$f":"Import!E472","v":0},null,{"$f":"Import!G472","v":0},null,{"$f":"Import!I472","v":0},null,{"$f":"Import!K472","v":0}]
[null,"(b)","Segregated accounts companies - long-term business - variable annuities",null,{"$f":"Import!E538","v":0},null,{"$f":"Import!G538","v":0},null,null,null,null,null,{"$f":"Import!I473","v":0},null,{"$f":"Import!K473","v":0}]
[null,"(c) ","Segregated accounts companies - long-term business - others",null,{"$f":"Import!E539","v":0},null,{"$f":"Import!G539","v":0},null,null,null,null,null,{"$f":"Import!I474","v":0},null,{"$f":"Import!K474","v":0}]
[null,"(d)","Segregated accounts companies - general business",null,null,null,null,null,{"$f":"Import!E475","v":0},null,{"$f":"Import!G475","v":0},null,{"$f":"Import!I475","v":0},null,{"$f":"Import!K475","v":0}]
[null,"(e) ","Deposit assets",null,{"$f":"Import!E540","v":0},null,{"$f":"Import!G540","v":0},null,{"$f":"Import!E476","v":0},null,{"$f":"Import!G476","v":0},null,{"$f":"Import!I476","v":0},null,{"$f":"Import!K476","v":0}]
[null,"(f) ","Net receivables for investments sold",null,{"$f":"Import!E541","v":0},null,{"$f":"Import!G541","v":0},null,{"$f":"Import!E477","v":0},null,{"$f":"Import!G477","v":0},null,{"$f":"Import!I477","v":0},null,{"$f":"Import!K477","v":0}]
[null,"(g) ","Other Sundry Assets - 1 (Specify)",null,{"$f":"Import!E542","v":0},null,{"$f":"Import!G542","v":0},null,{"$f":"Import!E478","v":0},null,{"$f":"Import!G478","v":0},null,{"$f":"Import!I478","v":0},null,{"$f":"Import!K478","v":0}]
[null,"(h) ","Other Sundry Assets - 2 (Specify)",null,{"$f":"Import!E543","v":0},null,{"$f":"Import!G543","v":0},null,{"$f":"Import!E479","v":0},null,{"$f":"Import!G479","v":0},null,{"$f":"Import!I479","v":0},null,{"$f":"Import!K479","v":0}]
[null,"(i) ","Other Sundry Assets - 3 (Specify)",null,{"$f":"Import!E544","v":0},null,{"$f":"Import!G544","v":0},null,{"$f":"Import!E480","v":0},null,{"$f":"Import!G480","v":0},null,{"$f":"Import!I480","v":0},null,{"$f":"Import!K480","v":0}]
[null,"(j)","Total sundry assets",null,{"$f":"SUM(E71:E79)","v":0},null,{"$f":"SUM(G71:G79)","v":0},null,{"$f":"SUM(I71:I79)","v":0},null,{"$f":"SUM(K71:K79)","v":0},null,{"$f":"SUM(M71:M79)","v":0},null,{"$f":"SUM(O71:O79)","v":0}]
[]
[null,"14.","LETTERS OF CREDIT, GUARANTEES AND OTHER INSTRUMENTS"]
[null,"(a)","Letters of credit ",null,{"$f":"Import!E545","v":0},null,{"$f":"Import!G545","v":0},null,{"$f":"Import!E481","v":0},null,{"$f":"Import!G481","v":0},null,{"$f":"Import!I481","v":0},null,{"$f":"Import!K481","v":0}]
[null,"(b)","Guarantees",null,{"$f":"Import!E546","v":0},null,{"$f":"Import!G546","v":0},null,{"$f":"Import!E482","v":0},null,{"$f":"Import!G482","v":0},null,{"$f":"Import!I482","v":0},null,{"$f":"Import!K482","v":0}]
[null,"(c) ","Other instruments",null,{"$f":"Import!E547","v":0},null,{"$f":"Import!G547","v":0},null,{"$f":"Import!E483","v":0},null,{"$f":"Import!G483","v":0},null,{"$f":"Import!I483","v":0},null,{"$f":"Import!K483","v":0}]
[null,"(d) ","Total letters of credit, guarantees and other instruments",null,{"$f":"SUM(E83:E85)","v":0},null,{"$f":"SUM(G83:G85)","v":0},null,{"$f":"SUM(I83:I85)","v":0},null,{"$f":"SUM(K83:K85)","v":0},null,{"$f":"SUM(M83:M85)","v":0},null,{"$f":"SUM(O83:O85)","v":0}]
[]
[null,"15.","TOTAL ASSETS",null,{"$f":"E10+E23+E36+E46+E51+E56+E58+E60+E62+E80+E86+E68","v":0},null,{"$f":"G10+G23+G36+G46+G51+G56+G58+G60+G62+G80+G86+G68","v":0},null,{"$f":"I10+I23+I36+I46+I51+I56+I58+I60+I62+I80+I86+I68","v":0},null,{"$f":"K10+K23+K36+K46+K51+K56+K58+K60+K62+K80+K86+K68","v":0},null,{"$f":"M10+M23+M36+M46+M51+M56+M58+M60+M62+M80+M86+M68","v":0},null,{"$f":"O10+O23+O36+O46+O51+O56+O58+O60+O62+O80+O86+O68","v":0}]
[]
[null,null,"INSURANCE LIABILITIES, OTHER LIABILITIES AND STATUTORY CAPITAL AND SURPLUS"]
[]
[null,null,"INSURANCE LIABILITIES"]
[]
[null,"17.","GENERAL BUSINESS INSURANCE CONTRACT LIABILITIES",null,{"$f":"Import!E485","v":0},null,{"$f":"Import!G485","v":0},null,null,null,null,null,{"$f":"Import!I485","v":0},null,{"$f":"Import!K485","v":0}]
[]
[null,"17A.","GENERAL BUSINESS REINSURANCE CONTRACT LIABILITIES",null,{"$f":"Import!E486","v":0},null,{"$f":"Import!G486","v":0},null,null,null,null,null,{"$f":"Import!I486","v":0},null,{"$f":"Import!K486","v":0}]
[]
[null,"18.","INVESTMENT CONTRACT WITH DPF LIABILITIES",null,{"$f":"Import!E549","v":0},null,{"$f":"Import!G549","v":0},null,{"$f":"Import!E487","v":0},null,{"$f":"Import!G487","v":0},null,{"$f":"Import!I487","v":0},null,{"$f":"Import!K487","v":0}]
[]
[null,"27.","LONG-TERM BUSINESS INSURANCE CONTRACT LIABILITIES",null,null,null,null,null,{"$f":"Import!E550","v":0},null,{"$f":"Import!G550","v":0},null,{"$f":"Import!I488","v":0},null,{"$f":"Import!K488","v":0}]
[]
[null,"27A.","LONG-TERM REINSURANCE CONTRACT LIABILITIES",null,null,null,null,null,{"$f":"Import!E551","v":0},null,{"$f":"Import!G551","v":0},null,{"$f":"Import!I489","v":0},null,{"$f":"Import!K489","v":0}]
[]
[null,null,"OTHER LIABILITIES"]
[]
[null,"29.","COMMISSIONS, EXPENSES, FEES AND TAXES PAYABLE",null,{"$f":"Import!E552","v":0},null,{"$f":"Import!G552","v":0},null,{"$f":"Import!E490","v":0},null,{"$f":"Import!G490","v":0},null,{"$f":"Import!I490","v":0},null,{"$f":"Import!K490","v":0}]
[]
[null,"30.","LOANS AND NOTES PAYABLE",null,{"$f":"Import!E553","v":0},null,{"$f":"Import!G553","v":0},null,{"$f":"Import!E491","v":0},null,{"$f":"Import!G491","v":0},null,{"$f":"Import!I491","v":0},null,{"$f":"Import!K491","v":0}]
[]
[null,"31.","(a) INCOME TAXES PAYABLE",null,{"$f":"Import!E554","v":0},null,{"$f":"Import!G554","v":0},null,{"$f":"Import!E492","v":0},null,{"$f":"Import!G492","v":0},null,{"$f":"Import!I492","v":0},null,{"$f":"Import!K492","v":0}]
[]
[null,null,"(b) DEFERRED INCOME TAXES",null,{"$f":"Import!E555","v":0},null,{"$f":"Import!G555","v":0},null,{"$f":"Import!E493","v":0},null,{"$f":"Import!G493","v":0},null,{"$f":"Import!I493","v":0},null,{"$f":"Import!K493","v":0}]
[]
[null,"32.","AMOUNTS DUE TO AFFILIATES",null,{"$f":"Import!E556","v":0},null,{"$f":"Import!G556","v":0},null,{"$f":"Import!E494","v":0},null,{"$f":"Import!G494","v":0},null,{"$f":"Import!I494","v":0},null,{"$f":"Import!K494","v":0}]
[]
[null,"33.","ACCOUNTS PAYABLE AND ACCRUED LIABILITIES",null,{"$f":"Import!E557","v":0},null,{"$f":"Import!G557","v":0},null,{"$f":"Import!E495","v":0},null,{"$f":"Import!G495","v":0},null,{"$f":"Import!I495","v":0},null,{"$f":"Import!K495","v":0}]
[]
[null,"35.","DIVIDENDS PAYABLE",null,{"$f":"Import!E558","v":0},null,{"$f":"Import!G558","v":0},null,{"$f":"Import!E496","v":0},null,{"$f":"Import!G496","v":0},null,{"$f":"Import!I496","v":0},null,{"$f":"Import!K496","v":0}]
[]
[null,"36.","SUNDRY LIABILITIES:"]
[null,"(a)","Derivative instruments",null,{"$f":"Import!E559","v":0},null,{"$f":"Import!G559","v":0},null,{"$f":"Import!E497","v":0},null,{"$f":"Import!G497","v":0},null,{"$f":"Import!I497","v":0},null,{"$f":"Import!K497","v":0}]
[null,"(b)","Segregated account companies",null,{"$f":"Import!E560","v":0},null,{"$f":"Import!G560","v":0},null,{"$f":"Import!E498","v":0},null,{"$f":"Import!G498","v":0},null,{"$f":"Import!I498","v":0},null,{"$f":"Import!K498","v":0}]
[null,"(c)","Deposit liabilities",null,{"$f":"Import!E561","v":0},null,{"$f":"Import!G561","v":0},null,{"$f":"Import!E499","v":0},null,{"$f":"Import!G499","v":0},null,{"$f":"Import!I499","v":0},null,{"$f":"Import!K499","v":0}]
[null,"(d)","Net payable for investments purchased",null,{"$f":"Import!E562","v":0},null,{"$f":"Import!G562","v":0},null,{"$f":"Import!E500","v":0},null,{"$f":"Import!G500","v":0},null,{"$f":"Import!I500","v":0},null,{"$f":"Import!K500","v":0}]
[null,"(e)","Other sundry liabilities - 1 (specify)",null,{"$f":"Import!E563","v":0},null,{"$f":"Import!G563","v":0},null,{"$f":"Import!E501","v":0},null,{"$f":"Import!G501","v":0},null,{"$f":"Import!I501","v":0},null,{"$f":"Import!K501","v":0}]
[null,"(f)","Other sundry liabilities - 2 (specify)",null,{"$f":"Import!E564","v":0},null,{"$f":"Import!G564","v":0},null,{"$f":"Import!E502","v":0},null,{"$f":"Import!G502","v":0},null,{"$f":"Import!I502","v":0},null,{"$f":"Import!K502","v":0}]
[null,"(g)","Other sundry liabilities - 3 (specify)",null,{"$f":"Import!E565","v":0},null,{"$f":"Import!G565","v":0},null,{"$f":"Import!E503","v":0},null,{"$f":"Import!G503","v":0},null,{"$f":"Import!I503","v":0},null,{"$f":"Import!K503","v":0}]
[null,"(h)","Total sundry liabilities",null,{"$f":"SUM(E121:E127)","v":0},null,{"$f":"SUM(G121:G127)","v":0},null,{"$f":"SUM(I121:I127)","v":0},null,{"$f":"SUM(K121:K127)","v":0},null,{"$f":"SUM(M121:M127)","v":0},null,{"$f":"SUM(O121:O127)","v":0}]
[]
[null,"37.","LETTERS OF CREDIT, GUARANTEES AND OTHER INSTRUMENTS"]
[null,"(a)","Letters of credit ",null,{"$f":"Import!E566","v":0},null,{"$f":"Import!G566","v":0},null,{"$f":"Import!E504","v":0},null,{"$f":"Import!G504","v":0},null,{"$f":"Import!I504","v":0},null,{"$f":"Import!K504","v":0}]
[null,"(b)","Guarantees",null,{"$f":"Import!E567","v":0},null,{"$f":"Import!G567","v":0},null,{"$f":"Import!E505","v":0},null,{"$f":"Import!G505","v":0},null,{"$f":"Import!I505","v":0},null,{"$f":"Import!K505","v":0}]
[null,"(c) ","Other instruments",null,{"$f":"Import!E568","v":0},null,{"$f":"Import!G568","v":0},null,{"$f":"Import!E506","v":0},null,{"$f":"Import!G506","v":0},null,{"$f":"Import!I506","v":0},null,{"$f":"Import!K506","v":0}]
[null,"(d)","Total letters of credit, guarantees and other instruments",null,{"$f":"SUM(E131:E133)","v":0},null,{"$f":"SUM(G131:G133)","v":0},null,{"$f":"SUM(I131:I133)","v":0},null,{"$f":"SUM(K131:K133)","v":0},null,{"$f":"SUM(M131:M133)","v":0},null,{"$f":"SUM(O131:O133)","v":0}]
[]
[null,"38.","TOTAL OTHER LIABILITIES",null,{"$f":"E106+E108+E110+E112+E114+E116+E118+E128+E134","v":0},null,{"$f":"G106+G108+G110+G112+G114+G116+G118+G128+G134","v":0},null,{"$f":"I106+I108+I110+I112+I114+I116+I118+I128+I134","v":0},null,{"$f":"K106+K108+K110+K112+K114+K116+K118+K128+K134","v":0},null,{"$f":"M106+M108+M110+M112+M114+M116+M118+M128+M134","v":0},null,{"$f":"O106+O108+O110+O112+O114+O116+O118+O128+O134","v":0}]
[]
[null,"39.","TOTAL INSURANCE LIABILITIES AND OTHER LIABILITIES",null,{"$f":"E94+E96+E100+E102+E98+E136","v":0},null,{"$f":"G94+G96+G100+G102+G98+G136","v":0},null,{"$f":"I94+I96+I100+I102+I98+I136","v":0},null,{"$f":"K94+K96+K100+K102+K98+K136","v":0},null,{"$f":"M94+M96+M100+M102+M98+M136","v":0},null,{"$f":"O94+O96+O100+O102+O98+O136","v":0}]
[]
[null,null,"STATUTORY CAPITAL AND SURPLUS"]
[]
[null,"40.","TOTAL STATUTORY CAPITAL AND SURPLUS ",null,{"$f":"'Form 8ASFS'!G58","v":0},null,{"$f":"'Form 8ASFS'!I58","v":0},null,{"$f":"'Form 8ASFS'!K58","v":0},null,{"$f":"'Form 8ASFS'!M58","v":0},null,{"$f":"'Form 8ASFS'!O58","v":0},null,{"$f":"'Form 8ASFS'!Q58","v":0}]
[]
[null,"41.","TOTAL LIABILITIES AND STATUTORY CAPITAL AND SURPLUS",null,{"$f":"E138+E142","v":0},null,{"$f":"G138+G142","v":0},null,{"$f":"I138+I142","v":0},null,{"$f":"K138+K142","v":0},null,{"$f":"M138+M142","v":0},null,{"$f":"O138+O142","v":0}]
[]
[null,null,null,null,{"$f":"IF(E147=\"TRUE\",HYPERLINK(\"#'Form 1ASFS'!I89\",\"TRUE\"),HYPERLINK(\"#'Form 1ASFS'!I89\",\"FALSE\"))","v":"TRUE"},null,{"$f":"IF(G147=\"TRUE\",HYPERLINK(\"#'Form 1ASFS'!K89\",\"TRUE\"),HYPERLINK(\"#'Form 1ASFS'!K89\",\"FALSE\"))","v":"TRUE"},null,{"$f":"IF(I147=\"TRUE\",HYPERLINK(\"#'Form 1ASFS'!E89\",\"TRUE\"),HYPERLINK(\"#'Form 1ASFS'!E89\",\"FALSE\"))","v":"TRUE"},null,{"$f":"IF(K147=\"TRUE\",HYPERLINK(\"#'Form 1ASFS'!G89\",\"TRUE\"),HYPERLINK(\"#'Form 1ASFS'!G89\",\"FALSE\"))","v":"TRUE"},null,{"$f":"IF(M147=\"TRUE\",HYPERLINK(\"#'Form 1ASFS'!M89\",\"TRUE\"),HYPERLINK(\"#'Form 1ASFS'!M89\",\"FALSE\"))","v":"TRUE"},null,{"$f":"IF(O147=\"TRUE\",HYPERLINK(\"#'Form 1ASFS'!O89\",\"TRUE\"),HYPERLINK(\"#'Form 1ASFS'!O89\",\"FALSE\"))","v":"TRUE"}]
[null,null,null,null,{"$f":"IF(ROUND((E88-E144),0)=0,\"TRUE\",\"FALSE\")","v":"TRUE"},null,{"$f":"IF(ROUND((G88-G144),0)=0,\"TRUE\",\"FALSE\")","v":"TRUE"},null,{"$f":"IF(ROUND((I88-I144),0)=0,\"TRUE\",\"FALSE\")","v":"TRUE"},null,{"$f":"IF(ROUND((K88-K144),0)=0,\"TRUE\",\"FALSE\")","v":"TRUE"},null,{"$f":"IF(ROUND((M88-M144),0)=0,\"TRUE\",\"FALSE\")","v":"TRUE"},null,{"$f":"IF(ROUND((O88-O144),0)=0,\"TRUE\",\"FALSE\")","v":"TRUE"}]
[null,null,"Difference",null,{"$f":"ROUND((E88-E144),0)","v":0},null,{"$f":"ROUND((G88-G144),0)","v":0},null,{"$f":"ROUND((I88-I144),0)","v":0},null,{"$f":"ROUND((K88-K144),0)","v":0},null,{"$f":"ROUND((M88-M144),0)","v":0},null,{"$f":"ROUND((O88-O144),0)","v":0}]
[]
[]
[]
[null,"Notes to Unconsolidated Form 1ASFS"]
[]
[null,null,"Premiums Receivable"]
[null,null,"In course of collection",null,null,null,null,null,null,null,null,null,{"$f":"Import!I570","v":0},null,{"$f":"Import!K570","v":0}]
[null,null,"Deferred - not yet due",null,null,null,null,null,null,null,null,null,{"$f":"Import!I571","v":0},null,{"$f":"Import!K571","v":0}]
[null,null,"Receivable from retrocessional contracts",null,null,null,null,null,null,null,null,null,{"$f":"Import!I572","v":0},null,{"$f":"Import!K572","v":0}]
[null,null,"Total Premium Receivable",null,null,null,null,null,null,null,null,null,{"$f":"SUM(M155:M157)","v":0},null,{"$f":"SUM(O155:O157)","v":0}]
[]
[null,null,"Reinsurance Balances Receivable",null,null,null,null,null,null,null,null,null,{"$f":"Import!I574","v":0},null,{"$f":"Import!K574","v":0}]
[]
[null,null,"Funds Held by Ceding Reinsurers",null,null,null,null,null,null,null,null,null,{"$f":"Import!I575","v":0},null,{"$f":"Import!K575","v":0}]
[]
[null,null,"Collateralized balances related to receivables from retrocessional contracts",null,null,null,null,null,null,null,null,null,{"$f":"Import!I576","v":0},null,{"$f":"Import!K576","v":0}]
[]
[null,"Line 13","Sundry assets"]
[null,null,"(a) Nature of the assets",null,null,null,null,null,null,null,null,null,{"$f":"Import!I577","v":0}]
[null,null,"(b) (i) Description of policies surrounding use of derivatives, if applicable",null,null,null,null,null,null,null,null,null,{"$f":"Import!I578","v":0}]
[null,null,"(b) (ii) Market value and nominal exposure of each derivative by issuer",null,null,null,null,null,null,null,null,null,{"$f":"Import!I579","v":0}]
[]
[null,"Line 15","Encumbered assets for policyholder obligations"]
[]
[null,null,"Asset",null,null,null,null,null,"Purpose of Encumbrance"]
[null,null,"             Cash",null,null,null,null,null,null,null,null,null,{"$f":"Import!I580","v":0},null,{"$f":"Import!K580","v":0}]
[null,null,"             Total quoted investments",null,null,null,null,null,null,null,null,null,{"$f":"Import!I581","v":0},null,{"$f":"Import!K581","v":0}]
[null,null,"             Total unquoted investments",null,null,null,null,null,null,null,null,null,{"$f":"Import!I582","v":0},null,{"$f":"Import!K582","v":0}]
[null,null,"             Funds held by ceding reinsurers"]
[null,null,"             Other asset types",null,null,null,null,null,null,null,null,null,{"$f":"Import!I583","v":0},null,{"$f":"Import!K583","v":0}]
[null,null,"                      Total assets encumbered",null,null,null,null,null,null,null,null,null,{"$f":"SUM(M174:M178)","v":0},null,{"$f":"SUM(O174:O178)","v":0}]
[]
[null,"Line 15","Encumbered assets not securing policyholder obligations"]
[]
[null,null,"Asset",null,null,null,null,null,"Purpose of Encumbrance"]
[null,null,"             Cash",null,null,null,null,null,null,null,null,null,{"$f":"Import!I585","v":0},null,{"$f":"Import!K585","v":0}]
[null,null,"             Total quoted investments",null,null,null,null,null,null,null,null,null,{"$f":"Import!I586","v":0},null,{"$f":"Import!K586","v":0}]
[null,null,"             Total unquoted investments",null,null,null,null,null,null,null,null,null,{"$f":"Import!I587","v":0},null,{"$f":"Import!K587","v":0}]
[null,null,"             Other asset types",null,null,null,null,null,null,null,null,null,{"$f":"Import!I588","v":0},null,{"$f":"Import!K588","v":0}]
[null,null,"                      Total assets encumbered",null,null,null,null,null,null,null,null,null,{"$f":"SUM(M184:M187)","v":0},null,{"$f":"SUM(O184:O187)","v":0}]
[]
[null,"Line 36","Sundry liabilities"]
[null,null,"(a) Nature of the liabilities and repayment terms",null,null,null,null,null,null,null,null,null,{"$f":"Import!I590","v":0}]
[null,null,"(b) (i) Description of policies surrounding use of derivatives, if applicable",null,null,null,null,null,null,null,null,null,{"$f":"Import!I591","v":0}]
[null,null,"(b) (ii) Market value and nominal exposure of each derivative by issuer",null,null,null,null,null,null,null,null,null,{"$f":"Import!I592","v":0}]
[]
[null,"Line 37","Letters of Credit, Guarantees and other Instruments",null,null,null,null,null,null,null,null,null,{"$f":"Import!I593","v":0},null,{"$f":"Import!K593","v":0}]
[]
[null,"Reconciliation of Net Changes in Insurance Contracts Liabilities by Remaining Coverage and Incurred Claim - General Business"]
[null,"Line 17 and 11(a)"]
[null,null,null,null,"Liability for Remaining Coverage",null,null,null,"Liabilities for Incurred Claims"]
[null,null,null,null,"Excluding loss component",null,"Loss component",null,"Products not under PAA",null,"(PAA) Estimates of present value of future cash flows",null," (PAA) Risk adjustment for non-financial risk",null,"Total"]
[null,"Opening assets",null,null,{"$f":"Import!I594","v":0},null,{"$f":"Import!I618","v":0},null,{"$f":"Import!I642","v":0},null,{"$f":"Import!I666","v":0},null,{"$f":"Import!I690","v":0},null,{"$f":"SUM(D201:M201)","v":0}]
[null,"Opening liabilities",null,null,{"$f":"Import!I595","v":0},null,{"$f":"Import!I619","v":0},null,{"$f":"Import!I643","v":0},null,{"$f":"Import!I667","v":0},null,{"$f":"Import!I691","v":0},null,{"$f":"SUM(D202:M202)","v":0}]
[null,"Net opening balance",null,null,{"$f":"E201-E202","v":0},null,{"$f":"G201-G202","v":0},null,{"$f":"I201-I202","v":0},null,0,null,0,null,0]
[]
[null,"Changes in the statement of income or loss"]
[]
[null," Insurance revenue",null,null,{"$f":"Import!I597","v":0},null,{"$f":"Import!I621","v":0},null,{"$f":"Import!I645","v":0},null,{"$f":"Import!I669","v":0},null,{"$f":"Import!I693","v":0},null,{"$f":"SUM(D207:M207)","v":0}]
[]
[null,"Insurance service expenses"]
[null,"Amortisation of insurance acquisition cash flows",null,null,{"$f":"Import!I598","v":0},null,{"$f":"Import!I622","v":0},null,{"$f":"Import!I646","v":0},null,{"$f":"Import!I670","v":0},null,{"$f":"Import!I694","v":0},null,{"$f":"SUM(D210:M210)","v":0}]
[null,"Incurred claims and other insurance service expenses",null,null,{"$f":"Import!I599","v":0},null,{"$f":"Import!I623","v":0},null,{"$f":"Import!I647","v":0},null,{"$f":"Import!I671","v":0},null,{"$f":"Import!I695","v":0},null,{"$f":"SUM(D211:M211)","v":0}]
[null,"Losses and reversals on onerous contracts",null,null,{"$f":"Import!I600","v":0},null,{"$f":"Import!I624","v":0},null,{"$f":"Import!I648","v":0},null,{"$f":"Import!I672","v":0},null,{"$f":"Import!I696","v":0},null,{"$f":"SUM(D212:M212)","v":0}]
[null,"Adjustments to liabilities for incurred claims",null,null,{"$f":"Import!I601","v":0},null,{"$f":"Import!I625","v":0},null,{"$f":"Import!I649","v":0},null,{"$f":"Import!I673","v":0},null,{"$f":"Import!I697","v":0},null,{"$f":"SUM(D213:M213)","v":0}]
[null,"Total Insurance service expenses",null,null,{"$f":"SUM(E210:E213)","v":0},null,{"$f":"SUM(G210:G213)","v":0},null,{"$f":"SUM(I210:I213)","v":0},null,{"$f":"SUM(K210:K213)","v":0},null,{"$f":"SUM(M210:M213)","v":0},null,{"$f":"SUM(O210:O213)","v":0}]
[]
[null,"Investment components",null,null,{"$f":"Import!I603","v":0},null,{"$f":"Import!I627","v":0},null,{"$f":"Import!I651","v":0},null,{"$f":"Import!I675","v":0},null,{"$f":"Import!I699","v":0},null,{"$f":"SUM(D216:M216)","v":0}]
[null,"Insurance service result",null,null,{"$f":"E207+E214+E216","v":0},null,{"$f":"G207+G214+G216","v":0},null,{"$f":"I207+I214+I216","v":0},null,{"$f":"K207+K214+K216","v":0},null,{"$f":"M207+M214+M216","v":0},null,{"$f":"O207+O214+O216","v":0}]
[]
[null,"Net finance expenses from insurance contracts",null,null,{"$f":"Import!I605","v":0},null,{"$f":"Import!I629","v":0},null,{"$f":"Import!I653","v":0},null,{"$f":"Import!I677","v":0},null,{"$f":"Import!I701","v":0},null,{"$f":"SUM(D219:M219)","v":0}]
[null,"Effect of movements in exchange rates",null,null,{"$f":"Import!I606","v":0},null,{"$f":"Import!I630","v":0},null,{"$f":"Import!I654","v":0},null,{"$f":"Import!I678","v":0},null,{"$f":"Import!I702","v":0},null,{"$f":"SUM(D220:M220)","v":0}]
[null,"Total changes in the statement of income or loss ",null,null,{"$f":"E217+E219+E220","v":0},null,{"$f":"G217+G219+G220","v":0},null,{"$f":"I217+I219+I220","v":0},null,{"$f":"K217+K219+K220","v":0},null,{"$f":"M217+M219+M220","v":0},null,{"$f":"O217+O219+O220","v":0}]
[]
[null,"Cash flows"]
[null,"Premiums received",null,null,{"$f":"Import!I608","v":0},null,{"$f":"Import!I632","v":0},null,{"$f":"Import!I656","v":0},null,{"$f":"Import!I680","v":0},null,{"$f":"Import!I704","v":0},null,{"$f":"SUM(D224:M224)","v":0}]
[null,"Insurance acquisition cash flows",null,null,{"$f":"Import!I609","v":0},null,{"$f":"Import!I633","v":0},null,{"$f":"Import!I657","v":0},null,{"$f":"Import!I681","v":0},null,{"$f":"Import!I705","v":0},null,{"$f":"SUM(D225:M225)","v":0}]
[null,"Claims and other insurance service expenses paid",null,null,{"$f":"Import!I610","v":0},null,{"$f":"Import!I634","v":0},null,{"$f":"Import!I658","v":0},null,{"$f":"Import!I682","v":0},null,{"$f":"Import!I706","v":0},null,{"$f":"SUM(D226:M226)","v":0}]
[null,"Total cash flows",null,null,{"$f":"SUM(E224:E226)","v":0},null,{"$f":"SUM(G224:G226)","v":0},null,{"$f":"SUM(I224:I226)","v":0},null,{"$f":"SUM(K224:K226)","v":0},null,{"$f":"SUM(M224:M226)","v":0},null,{"$f":"SUM(O224:O226)","v":0}]
[null,"Contracts transferred on acquisition of subsidiary",null,null,{"$f":"Import!I612","v":0},null,{"$f":"Import!I636","v":0},null,{"$f":"Import!I660","v":0},null,{"$f":"Import!I684","v":0},null,{"$f":"Import!I708","v":0},null,{"$f":"SUM(D228:M228)","v":0}]
[null,"Contracts transferred on disposal of subsidiary",null,null,{"$f":"Import!I613","v":0},null,{"$f":"Import!I637","v":0},null,{"$f":"Import!I661","v":0},null,{"$f":"Import!I685","v":0},null,{"$f":"Import!I709","v":0},null,{"$f":"SUM(D229:M229)","v":0}]
[null,"Net closing balance",null,null,{"$f":"E203+E221+E227+E228+E229","v":0},null,{"$f":"G203+G221+G227+G228+G229","v":0},null,{"$f":"I203+I221+I227+I228+I229","v":0},null,{"$f":"K203+K221+K227+K228+K229","v":0},null,{"$f":"M203+M221+M227+M228+M229","v":0},null,{"$f":"O203+O221+O227+O228+O229","v":0}]
[]
[null,"Closing assets",null,null,{"$f":"Import!I615","v":0},null,{"$f":"Import!I639","v":0},null,{"$f":"Import!I663","v":0},null,{"$f":"Import!I687","v":0},null,{"$f":"Import!I711","v":0},null,{"$f":"SUM(D232:M232)","v":0}]
[null,"Closing liabilities",null,null,{"$f":"Import!I616","v":0},null,{"$f":"Import!I640","v":0},null,{"$f":"Import!I664","v":0},null,{"$f":"Import!I688","v":0},null,{"$f":"Import!I712","v":0},null,{"$f":"SUM(D233:M233)","v":0}]
[null,"Net closing balance",null,null,{"$f":"E232-E233","v":0},null,{"$f":"G232-G233","v":0},null,{"$f":"I232-I233","v":0},null,{"$f":"K232-K233","v":0},null,{"$f":"M232-M233","v":0},null,{"$f":"O232-O233","v":0}]
[]
[null,null,null,null,null,null,null,null,null,null,null,null,{"$f":"E65-E94","v":0},null,{"$f":"IF(ROUND((O234-(E65-E94)),0)=0,\"True\",\"False\")","v":"True"}]
[null,null,null,null,null,null,null,null,null,null,null,null,{"$f":"ROUND((O234-(E65-E94)),0)","v":0},null,{"$f":"IF(ROUND((O234-O230),0)=0,\"True\",\"False\")","v":"True"}]
[null,"Reconciliation of Net Changes in Insurance Contracts Liabilities by Remaining Coverage and Incurred Claim - Long-Term Business"]
[null,"Line 27 and 11(a)",null,null,"Liability for Remaining Coverage",null,null,null,"Liabilities for Incurred Claims"]
[null,null,null,null,"Excluding loss component",null,"Loss component",null,"Products not under PAA",null,"(PAA) Estimates of present value of future cash flows",null," (PAA) Risk adjustment for non-financial risk",null,"Total"]
[null,"Opening assets",null,null,{"$f":"Import!I714","v":0},null,{"$f":"Import!I738","v":0},null,{"$f":"Import!I762","v":0},null,{"$f":"Import!I786","v":0},null,{"$f":"Import!I810","v":0},null,{"$f":"SUM(D241:M241)","v":0}]
[null,"Opening liabilities",null,null,{"$f":"Import!I715","v":0},null,{"$f":"Import!I739","v":0},null,{"$f":"Import!I763","v":0},null,{"$f":"Import!I787","v":0},null,{"$f":"Import!I811","v":0},null,{"$f":"SUM(D242:M242)","v":0}]
[null,"Net opening balance",null,null,{"$f":"E241-E242","v":0},null,{"$f":"G241-G242","v":0},null,{"$f":"I241-I242","v":0},null,{"$f":"K241-K242","v":0},null,{"$f":"M241-M242","v":0},null,{"$f":"O241-O242","v":0}]
[]
[null,"Changes in the statement of income or loss "]
[]
[null,"Insurance revenue",null,null,{"$f":"Import!I717","v":0},null,{"$f":"Import!I741","v":0},null,{"$f":"Import!I765","v":0},null,{"$f":"Import!I789","v":0},null,{"$f":"Import!I813","v":0},null,{"$f":"SUM(D247:M247)","v":0}]
[]
[null,"Insurance service expenses"]
[null,"Amortisation of insurance acquisition cash flows",null,null,{"$f":"Import!I718","v":0},null,{"$f":"Import!I742","v":0},null,{"$f":"Import!I766","v":0},null,{"$f":"Import!I790","v":0},null,{"$f":"Import!I814","v":0},null,{"$f":"SUM(D250:M250)","v":0}]
[null,"Incurred claims and other insurance service expenses",null,null,{"$f":"Import!I719","v":0},null,{"$f":"Import!I743","v":0},null,0,null,{"$f":"Import!I791","v":0},null,{"$f":"Import!I815","v":0},null,{"$f":"SUM(D251:M251)","v":0}]
[null,"Losses and reversals on onerous contracts",null,null,{"$f":"Import!I720","v":0},null,{"$f":"Import!I744","v":0},null,{"$f":"Import!I768","v":0},null,{"$f":"Import!I792","v":0},null,{"$f":"Import!I816","v":0},null,{"$f":"SUM(D252:M252)","v":0}]
[null,"Adjustments to liabilities for incurred claims",null,null,{"$f":"Import!I721","v":0},null,{"$f":"Import!I745","v":0},null,{"$f":"Import!I769","v":0},null,{"$f":"Import!I793","v":0},null,{"$f":"Import!I817","v":0},null,{"$f":"SUM(D253:M253)","v":0}]
[null,"Total Insurance service expenses",null,null,{"$f":"SUM(E250:E253)","v":0},{"$f":"SUM(F250:F253)","v":0},0,0,0,0,0,0,0,0,0]
[]
[null,"Investment components",null,null,{"$f":"Import!I723","v":0},null,{"$f":"Import!I747","v":0},null,{"$f":"Import!I771","v":0},null,{"$f":"Import!I795","v":0},null,{"$f":"Import!I819","v":0},null,{"$f":"SUM(D256:M256)","v":0}]
[null,"Insurance service result",null,null,{"$f":"E247+E254+E256","v":0},null,{"$f":"G247+G254+G256","v":0},null,{"$f":"I247+I254+I256","v":0},null,{"$f":"K247+K254+K256","v":0},null,{"$f":"M247+M254+M256","v":0},null,{"$f":"O247+O254+O256","v":0}]
[]
[null,"Net finance expenses from insurance contracts",null,null,{"$f":"Import!I725","v":0},null,{"$f":"Import!I749","v":0},null,{"$f":"Import!I773","v":0},null,{"$f":"Import!I797","v":0},null,{"$f":"Import!I821","v":0},null,{"$f":"SUM(D259:M259)","v":0}]
[null,"Effect of movements in exchange rates",null,null,{"$f":"Import!I726","v":0},null,{"$f":"Import!I750","v":0},null,{"$f":"Import!I774","v":0},null,{"$f":"Import!I798","v":0},null,{"$f":"Import!I822","v":0},null,{"$f":"SUM(D260:M260)","v":0}]
[null,"Total changes in the statement of income or loss ",null,null,{"$f":"E257+E259+E260","v":0},null,{"$f":"G257+G259+G260","v":0},null,{"$f":"I257+I259+I260","v":0},null,{"$f":"K257+K259+K260","v":0},null,{"$f":"M257+M259+M260","v":0},null,{"$f":"O257+O259+O260","v":0}]
[]
[null,"Cash flows"]
[null,"Premiums received",null,null,{"$f":"Import!I728","v":0},null,{"$f":"Import!I752","v":0},null,{"$f":"Import!I776","v":0},null,{"$f":"Import!I800","v":0},null,{"$f":"Import!I824","v":0},null,{"$f":"SUM(D264:M264)","v":0}]
[null,"Insurance acquisition cash flows",null,null,{"$f":"Import!I729","v":0},null,{"$f":"Import!I753","v":0},null,{"$f":"Import!I777","v":0},null,{"$f":"Import!I801","v":0},null,{"$f":"Import!I825","v":0},null,{"$f":"SUM(D265:M265)","v":0}]
[null,"Claims and other insurance service expenses paid",null,null,{"$f":"Import!I730","v":0},null,{"$f":"Import!I754","v":0},null,{"$f":"Import!I778","v":0},null,{"$f":"Import!I802","v":0},null,{"$f":"Import!I826","v":0},null,{"$f":"SUM(D266:M266)","v":0}]
[null,"Total cash flows",null,null,{"$f":"SUM(E264:E266)","v":0},null,{"$f":"SUM(G264:G266)","v":0},null,{"$f":"SUM(I264:I266)","v":0},null,{"$f":"SUM(K264:K266)","v":0},null,{"$f":"SUM(M264:M266)","v":0},null,{"$f":"SUM(O264:O266)","v":0}]
[null,"Contracts transferred on acquisition of subsidiary",null,null,{"$f":"Import!I732","v":0},null,{"$f":"Import!I756","v":0},null,{"$f":"Import!I780","v":0},null,{"$f":"Import!I804","v":0},null,{"$f":"Import!I828","v":0},null,{"$f":"SUM(D268:M268)","v":0}]
[null,"Contracts transferred on disposal of subsidiary",null,null,{"$f":"Import!I733","v":0},null,{"$f":"Import!I757","v":0},null,{"$f":"Import!I781","v":0},null,{"$f":"Import!I805","v":0},null,{"$f":"Import!I829","v":0},null,{"$f":"SUM(D269:M269)","v":0}]
[null,"Net closing balance",null,null,{"$f":"E243+E261+E267+E268+E269","v":0},null,{"$f":"G243+G261+G267+G268+G269","v":0},null,{"$f":"I243+I261+I267+I268+I269","v":0},null,{"$f":"K243+K261+K267+K268+K269","v":0},null,{"$f":"M243+M261+M267+M268+M269","v":0},null,{"$f":"O243+O261+O267+O268+O269","v":0}]
[]
[null,"Closing assets",null,null,{"$f":"Import!I735","v":0},null,{"$f":"Import!I759","v":0},null,{"$f":"Import!I783","v":0},null,{"$f":"Import!I807","v":0},null,{"$f":"Import!I831","v":0},null,{"$f":"SUM(D272:M272)","v":0}]
[null,"Closing liabilities",null,null,{"$f":"Import!I736","v":0},null,{"$f":"Import!I760","v":0},null,{"$f":"Import!I784","v":0},null,{"$f":"Import!I808","v":0},null,{"$f":"Import!I832","v":0},null,{"$f":"SUM(D273:M273)","v":0}]
[null,"Net closing balance",null,null,{"$f":"E272-E273","v":0},null,{"$f":"G272-G273","v":0},null,{"$f":"I272-I273","v":0},null,{"$f":"K272-K273","v":0},null,{"$f":"M272-M273","v":0},null,{"$f":"O272-O273","v":0}]
[]
[null,null,null,null,null,null,null,null,null,null,null,null,{"$f":"I65-I100","v":0},null,{"$f":"IF(ROUND((O274-(I65-I100)),0)=0,\"True\",\"False\")","v":"True"}]
[null,null,null,null,null,null,null,null,null,null,null,null,{"$f":"ROUND((O274-(I65-I100)),0)","v":0},null,{"$f":"IF(ROUND((O274-O270),0)=0,\"True\",\"False\")","v":"True"}]
[null,"Reconciliation of Changes in Net Reinsurance Contracts Assets by Remaining Coverage and Incurred Claims- General Business"]
[null,"Line 11b and 17A "]
[null,null,null,null,"Assets for Remaining Coverage",null,null,null,"Assets for Incurred Claims"]
[null,null,null,null,"Excluding loss-recovery component",null,"Loss recovery component",null,"Products not under PAA",null,"(PAA) Estimates of present value of future cashflows",null,"(PAA) Risk adjustment for non-financial risk",null,"Total"]
[null,"Opening assets",null,null,{"$f":"Import!I834","v":0},null,{"$f":"Import!I855","v":0},null,{"$f":"Import!I876","v":0},null,{"$f":"Import!I897","v":0},null,{"$f":"Import!I918","v":0},null,{"$f":"SUM(E282:M282)","v":0}]
[null,"Opening liabilities",null,null,{"$f":"Import!I835","v":0},null,{"$f":"Import!I856","v":0},null,{"$f":"Import!I877","v":0},null,{"$f":"Import!I898","v":0},null,{"$f":"Import!I919","v":0},null,0]
[null,"Net opening balance",null,null,{"$f":"E282-E283","v":0},null,{"$f":"G282-G283","v":0},null,{"$f":"I282-I283","v":0},null,{"$f":"K282-K283","v":0},null,{"$f":"M282-M283","v":0},null,{"$f":"O282-O283","v":0}]
[]
[null,"Changes in the statement of income or loss"]
[null,"Allocation of reinsurance premiums paid",null,null,{"$f":"Import!I837","v":0},null,{"$f":"Import!I858","v":0},null,{"$f":"Import!I879","v":0},null,{"$f":"Import!I900","v":0},null,{"$f":"Import!I921","v":0},null,{"$f":"SUM(E287:M287)","v":0}]
[]
[null,"Amounts recovered from reinsurers"]
[null,"Recoveries on incurred claims and other incurred reinsurance service expenses",null,null,{"$f":"Import!I838","v":0},null,{"$f":"Import!I859","v":0},null,{"$f":"Import!I880","v":0},null,{"$f":"Import!I901","v":0},null,{"$f":"Import!I922","v":0},null,{"$f":"SUM(E290:M290)","v":0}]
[null,"Recoveries and reversals of recoveries of losses on onerous contracts",null,null,{"$f":"Import!I839","v":0},null,{"$f":"Import!I860","v":0},null,{"$f":"Import!I881","v":0},null,{"$f":"Import!I902","v":0},null,{"$f":"Import!I923","v":0},null,0]
[null,"Adjustments to assets for incurred claims",null,null,{"$f":"Import!I840","v":0},null,{"$f":"Import!I861","v":0},null,{"$f":"Import!I882","v":0},null,{"$f":"Import!I903","v":0},null,{"$f":"Import!I924","v":0},null,0]
[null,"Total Amounts recovered from reinsurers",null,null,{"$f":"SUM(E290:E292)","v":0},null,{"$f":"SUM(G290:G292)","v":0},null,{"$f":"SUM(I290:I292)","v":0},null,{"$f":"SUM(K290:K292)","v":0},null,{"$f":"SUM(M290:M292)","v":0},null,{"$f":"SUM(O290:O292)","v":0}]
[]
[null,"Investment components and premium refunds",null,null,{"$f":"Import!I842","v":0},null,{"$f":"Import!I863","v":0},null,{"$f":"Import!I884","v":0},null,{"$f":"Import!I905","v":0},null,{"$f":"Import!I926","v":0},null,{"$f":"SUM(E295:M295)","v":0}]
[null,"Effect of changes in non-performance risk of reinsurers",null,null,{"$f":"Import!I843","v":0},null,{"$f":"Import!I864","v":0},null,{"$f":"Import!I885","v":0},null,{"$f":"Import!I906","v":0},null,{"$f":"Import!I927","v":0},null,0]
[]
[null,"Net expenses from reinsurance contracts held",null,null,{"$f":"E287+E293+E295+E296","v":0},null,{"$f":"G287+G293+G295+G296","v":0},null,{"$f":"I287+I293+I295+I296","v":0},null,{"$f":"K287+K293+K295+K296","v":0},null,{"$f":"M287+M293+M295+M296","v":0},null,{"$f":"O287+O293+O295+O296","v":0}]
[]
[null,"Net Finance income or expenses from reinsurance contracts",null,null,{"$f":"Import!I845","v":0},null,{"$f":"Import!I866","v":0},null,{"$f":"Import!I887","v":0},null,{"$f":"Import!I908","v":0},null,{"$f":"Import!I929","v":0},null,{"$f":"SUM(E300:M300)","v":0}]
[null,"Effect of movements in exchange rates",null,null,{"$f":"Import!I846","v":0},null,{"$f":"Import!I867","v":0},null,{"$f":"Import!I888","v":0},null,{"$f":"Import!I909","v":0},null,{"$f":"Import!I930","v":0},null,0]
[null,"Total changes in the statement of income or loss ",null,null,{"$f":"SUM(E298:E301)","v":0},null,{"$f":"SUM(G298:G301)","v":0},null,{"$f":"SUM(I298:I301)","v":0},null,{"$f":"SUM(K298:K301)","v":0},null,{"$f":"SUM(M298:M301)","v":0},null,{"$f":"SUM(O298:O301)","v":0}]
[]
[null,"Cash flows"]
[null,"Premiums paid",null,null,{"$f":"Import!I848","v":0},null,{"$f":"Import!I869","v":0},null,{"$f":"Import!I890","v":0},null,{"$f":"Import!I911","v":0},null,{"$f":"Import!I932","v":0},null,{"$f":"SUM(E305:M305)","v":0}]
[null,"Amounts received from reinsurers relating to incurred claims",null,null,{"$f":"Import!I849","v":0},null,{"$f":"Import!I870","v":0},null,{"$f":"Import!I891","v":0},null,{"$f":"Import!I912","v":0},null,{"$f":"Import!I933","v":0},null,0]
[null,"Total cash flows",null,null,{"$f":"SUM(E305:E306)","v":0},null,{"$f":"SUM(G305:G306)","v":0},null,{"$f":"SUM(I305:I306)","v":0},null,{"$f":"SUM(K305:K306)","v":0},null,{"$f":"SUM(M305:M306)","v":0},null,{"$f":"SUM(O305:O306)","v":0}]
[null,"Net closing balance",null,null,{"$f":"E284+E302+E307","v":0},null,{"$f":"G284+G302+G307","v":0},null,{"$f":"I284+I302+I307","v":0},null,{"$f":"K284+K302+K307","v":0},null,{"$f":"M284+M302+M307","v":0},null,{"$f":"O284+O302+O307","v":0}]
[]
[null,"Closing assets",null,null,{"$f":"Import!I852","v":0},null,{"$f":"Import!I873","v":0},null,{"$f":"Import!I894","v":0},null,{"$f":"Import!I915","v":0},null,{"$f":"Import!I936","v":0},null,{"$f":"SUM(E310:M310)","v":0}]
[null,"Closing liabilities",null,null,{"$f":"Import!I853","v":0},null,{"$f":"Import!I874","v":0},null,{"$f":"Import!I895","v":0},null,{"$f":"Import!I916","v":0},null,{"$f":"Import!I937","v":0},null,0]
[null,"Net closing balance",null,null,{"$f":"E310-E311","v":0},null,{"$f":"G310-G311","v":0},null,{"$f":"I310-I311","v":0},null,{"$f":"K310-K311","v":0},null,{"$f":"M310-M311","v":0},null,{"$f":"O310-O311","v":0}]
[]
[null,null,null,null,null,null,null,null,null,null,null,null,{"$f":"E66-E96","v":0},null,{"$f":"IF(ROUND((O312-(E66-E96)),0)=0,\"True\",\"False\")","v":"True"}]
[null,null,null,null,null,null,null,null,null,null,null,null,{"$f":"ROUND((O312-(E66-E96)),0)","v":0},null,{"$f":"IF(ROUND((O312-O308),0)=0,\"True\",\"False\")","v":"True"}]
[null,"Reconciliation of Changes in Net Reinsurance Contracts Assets by Remaining Coverage and Incurred Claims- Long Term"]
[null,"Line 11b and 27A "]
[null,null,null,null,"Assets for Remaining Coverage"]
[null,null,null,null,"Excluding loss-recovery component",null,"Loss recovery component",null,"Amounts recoverable: Incurred claims",null,"Total"]
[null,"Opening assets",null,null,{"$f":"Import!I939","v":0},null,{"$f":"Import!I960","v":0},null,{"$f":"Import!I981","v":0},null,{"$f":"SUM(G320:I320)","v":0}]
[null,"Opening liabilities",null,null,{"$f":"Import!I940","v":0},null,{"$f":"Import!I961","v":0},null,{"$f":"Import!I982","v":0},null,{"$f":"SUM(G321:I321)","v":0}]
[null,"Net opening balance",null,null,{"$f":"E320-E321","v":0},null,{"$f":"G320-G321","v":0},null,{"$f":"I320-I321","v":0},null,{"$f":"K320-K321","v":0}]
[]
[null,"Changes in the statement of income or loss"]
[null,"Allocation of reinsurance premiums paid",null,null,{"$f":"Import!I942","v":0},null,{"$f":"Import!I963","v":0},null,{"$f":"Import!I984","v":0},null,{"$f":"SUM(G325:I325)","v":0}]
[]
[null,"Amounts recovered from reinsurers"]
[null,"Recoveries on incurred claims and other incurred reinsurance service expenses",null,null,{"$f":"Import!I943","v":0},null,{"$f":"Import!I964","v":0},null,{"$f":"Import!I985","v":0},null,{"$f":"SUM(G328:I328)","v":0}]
[null,"Recoveries and reversals of recoveries of losses on onerous contracts",null,null,{"$f":"Import!I944","v":0},null,{"$f":"Import!I965","v":0},null,{"$f":"Import!I986","v":0},null,0]
[null,"Adjustments to assets for incurred claims",null,null,{"$f":"Import!I945","v":0},null,{"$f":"Import!I966","v":0},null,{"$f":"Import!I987","v":0},null,0]
[null,"Total Amounts recovered from reinsurers",null,null,{"$f":"SUM(E328:E330)","v":0},null,{"$f":"SUM(G328:G330)","v":0},null,{"$f":"SUM(I328:I330)","v":0},null,{"$f":"SUM(K328:K330)","v":0}]
[]
[null,"Investment components and premium refunds",null,null,{"$f":"Import!I947","v":0},null,{"$f":"Import!I968","v":0},null,{"$f":"Import!I989","v":0},null,{"$f":"SUM(G333:I333)","v":0}]
[null,"Effect of changes in non-performance risk of reinsurers",null,null,{"$f":"Import!I948","v":0},null,{"$f":"Import!I969","v":0},null,{"$f":"Import!I990","v":0},null,0]
[]
[null,"Net expenses from reinsurance contracts held",null,null,{"$f":"E325+E331+E333+E334","v":0},null,{"$f":"G325+G331+G333+G334","v":0},null,{"$f":"I325+I331+I333+I334","v":0},null,{"$f":"K325+K331+K333+K334","v":0}]
[]
[null,"Net Finance income or expenses from reinsurance contracts",null,null,{"$f":"Import!I950","v":0},null,{"$f":"Import!I971","v":0},null,{"$f":"Import!I992","v":0},null,{"$f":"SUM(G338:I338)","v":0}]
[null,"Effect of movements in exchange rates",null,null,{"$f":"Import!I951","v":0},null,{"$f":"Import!I972","v":0},null,{"$f":"Import!I993","v":0},null,0]
[null,"Total changes in the statement of income or loss ",null,null,{"$f":"SUM(E336:E339)","v":0},null,{"$f":"SUM(G336:G339)","v":0},null,{"$f":"SUM(I336:I339)","v":0},null,{"$f":"SUM(K336:K339)","v":0}]
[]
[null,"Cash flows"]
[null,"Premiums paid",null,null,{"$f":"Import!I953","v":0},null,{"$f":"Import!I974","v":0},null,{"$f":"Import!I995","v":0},null,{"$f":"SUM(G343:I343)","v":0}]
[null,"Amounts received from reinsurers relating to incurred claims",null,null,{"$f":"Import!I954","v":0},null,{"$f":"Import!I975","v":0},null,{"$f":"Import!I996","v":0},null,0]
[null,"Total cash flows",null,null,{"$f":"SUM(E343:E344)","v":0},null,{"$f":"SUM(G343:G344)","v":0},null,{"$f":"SUM(I343:I344)","v":0},null,{"$f":"SUM(K343:K344)","v":0}]
[null,"Net closing balance",null,null,{"$f":"E322+E340+E345","v":0},null,{"$f":"G322+G340+G345","v":0},null,{"$f":"I322+I340+I345","v":0},null,{"$f":"K322+K340+K345","v":0}]
[]
[null,"Closing assets",null,null,{"$f":"Import!I957","v":0},null,{"$f":"Import!I978","v":0},null,{"$f":"Import!I999","v":0},null,{"$f":"SUM(G348:I348)","v":0}]
[null,"Closing liabilities",null,null,{"$f":"Import!I958","v":0},null,{"$f":"Import!I979","v":0},null,{"$f":"Import!I1000","v":0},null,0]
[null,"Net closing balance",null,null,{"$f":"E348-E349","v":0},null,{"$f":"G348-G349","v":0},null,{"$f":"I348-I349","v":0},null,{"$f":"K348-K349","v":0}]
[]
[null,null,null,null,null,null,null,null,{"$f":"I66-I102","v":0},null,{"$f":"IF(ROUND((K350-(I66-I102)),0)=0,\"True\",\"False\")","v":"True"}]
[null,null,null,null,null,null,null,null,{"$f":"ROUND((K350-(I66-I102)),0)","v":0},null,{"$f":"IF(ROUND((K350-K346),0)=0,\"True\",\"False\")","v":"True"}]

{"sheet":"Form 2ASFS","index":22,"n_rows":92,"n_cols":15,"rows_kept":92,"cut":false,"hidden":false,"merged":[[4,4,4,6],[4,8,4,10],[4,12,4,14],[5,4,5,6],[5,8,5,10],[5,12,5,14]]}
[null,"STATUTORY STATEMENT OF PROFIT OR LOSS",null,null,null,null,null,null,null,null,null,null,null,null,{"$f":"HYPERLINK(\"#'Index'!A1\",\"Return to Index\")","v":"Return to Index"}]
[null,{"$f":"'Form 4EBS'!B2","v":"Enter Company Name"}]
[null,"For the year ending",{"$f":" TEXT('Insurer Information'!C3,\"D MMMM YYYY\")","v":"31 December 2023"},null,null,null,null,null,null,null,null,null,null,null,"FORM 2ASFS"]
[null,{"$f":"\"Expressed in \" & IF(CONFIGURATION!$B$12>1,\" ['\"&MID(CONFIGURATION!$B$12,2,LEN(CONFIGURATION!$B$12))&\"s]\",\"\")","v":"Expressed in  ['000s]"},{"$f":"'Form 4EBS'!C4","v":"United States Dollars"}]
[null,null,null,null,"General Business",null,null,null,"Long-Term Business",null,null,null,"General and Long-Term Business"]
[null,"STMT.",null,null,"Unconsolidated",null,null,null,"Unconsolidated",null,null,null,"Consolidated"]
[null,"LINE No.",null,null,{"$f":"'Form 4EBS'!$F$6","v":"2023-12-31"},null,{"$f":"'Form 4EBS'!H6","v":"2022-12-31"},null,{"$f":"'Form 4EBS'!F6","v":"2023-12-31"},null,{"$f":"'Form 4EBS'!H6","v":"2022-12-31"},null,{"$f":"'Form 4EBS'!F6","v":"2023-12-31"},null,{"$f":"'Form 4EBS'!H6","v":"2022-12-31"}]
[null,null,null,null,"('000)",null,"('000)",null,"('000)",null,"('000)",null,"('000)",null,"('000)"]
[]
[]
[null,"1.","INSURANCE CONTRACT REVENUE",null,{"$f":"Import!E1004","v":0},null,{"$f":"Import!G1004","v":0},null,{"$f":"Import!E1031","v":0},null,{"$f":"Import!G1031","v":0},null,{"$f":"Import!I1004","v":0},null,{"$f":"Import!K1004","v":0}]
[]
[null,"2.","INSURANCE SERVICE EXPENSES"]
[null,"(a)","Incurred Claims and Insurance Contract Expenses",null,{"$f":"Import!E1005","v":0},null,{"$f":"Import!G1005","v":0},null,{"$f":"Import!E1032","v":0},null,{"$f":"Import!G1032","v":0},null,{"$f":"Import!I1005","v":0},null,{"$f":"Import!K1005","v":0}]
[null,"(b)","Insurance Contract Acquisition Cash Flows",null,{"$f":"Import!E1006","v":0},null,{"$f":"Import!G1006","v":0},null,{"$f":"Import!E1033","v":0},null,{"$f":"Import!G1033","v":0},null,{"$f":"Import!I1006","v":0},null,{"$f":"Import!K1006","v":0}]
[null,"(c)","Adjustments to Liabilities for Incurred Claims",null,{"$f":"Import!E1007","v":0},null,{"$f":"Import!G1007","v":0},null,{"$f":"Import!E1034","v":0},null,{"$f":"Import!G1034","v":0},null,{"$f":"Import!I1007","v":0},null,{"$f":"Import!K1007","v":0}]
[null,"(d)","Losses (and reversals of losses) on Onerous Insurance Contracts",null,{"$f":"Import!E1008","v":0},null,{"$f":"Import!G1008","v":0},null,{"$f":"Import!E1035","v":0},null,{"$f":"Import!G1035","v":0},null,{"$f":"Import!I1008","v":0},null,{"$f":"Import!K1008","v":0}]
[null,"(e)","Other Insurance Service Expenses",null,{"$f":"Import!E1009","v":0},null,{"$f":"Import!G1009","v":0},null,{"$f":"Import!E1036","v":0},null,{"$f":"Import!G1036","v":0},null,{"$f":"Import!I1009","v":0},null,{"$f":"Import!K1009","v":0}]
[null,"(f)","TOTAL INSURANCE SERVICE EXPENSES",null,{"$f":"SUM(E14:E18)","v":0},null,{"$f":"SUM(G14:G18)","v":0},null,{"$f":"SUM(I14:I18)","v":0},null,{"$f":"SUM(K14:K18)","v":0},null,{"$f":"SUM(M14:M18)","v":0},null,{"$f":"SUM(O14:O18)","v":0}]
[]
[null,"3.","INSURANCE SERVICE RESULTS BEFORE REINSURANCE",null,{"$f":"E11-E19","v":0},null,{"$f":"G11-G19","v":0},null,{"$f":"I11-I19","v":0},null,{"$f":"K11-K19","v":0},null,{"$f":"M11-M19","v":0},null,{"$f":"O11-O19","v":0}]
[]
[null,"4.","NET EXPENSES FROM REINSURANCE CONTRACT HELD"]
[null,"(a)","    Reinsurance recoveries and other income",null,{"$f":"Import!E1012","v":0},null,{"$f":"Import!G1012","v":0},null,{"$f":"Import!E1039","v":0},null,{"$f":"Import!G1039","v":0},null,{"$f":"Import!I1012","v":0},null,{"$f":"Import!K1012","v":0}]
[null,"(b)","    Reinsurance expenses (allocated reinsurance premiums)",null,{"$f":"Import!E1013","v":0},null,{"$f":"Import!G1013","v":0},null,{"$f":"Import!E1040","v":0},null,{"$f":"Import!G1040","v":0},null,{"$f":"Import!I1013","v":0},null,{"$f":"Import!K1013","v":0}]
[null,"(c)","TOTAL NET EXPENSES FROM REINSURANCE CONTRACTS HELD",null,{"$f":"SUM(E24:E25)","v":0},null,{"$f":"SUM(G24:G25)","v":0},null,{"$f":"SUM(I24:I25)","v":0},null,{"$f":"SUM(K24:K25)","v":0},null,{"$f":"SUM(M24:M25)","v":0},null,{"$f":"SUM(O24:O25)","v":0}]
[]
[null,"5.","NET INSURANCE SERVICE RESULTS",null,{"$f":"E21-E26","v":0},null,{"$f":"G21-G26","v":0},null,{"$f":"I21-I26","v":0},null,{"$f":"K21-K26","v":0},null,{"$f":"M21-M26","v":0},null,{"$f":"O21-O26","v":0}]
[]
[null,"6.","INVESTMENT RETURNS"]
[null,"(a)","Net interest revenue/investment income",null,{"$f":"Import!E1016","v":0},null,{"$f":"Import!G1016","v":0},null,{"$f":"Import!E1043","v":0},null,{"$f":"Import!G1043","v":0},null,{"$f":"Import!I1016","v":0},null,{"$f":"Import!K1016","v":0}]
[null,"(b)","Net realised fair value gains/(losses) through P&L",null,{"$f":"Import!E1017","v":0},null,{"$f":"Import!G1017","v":0},null,{"$f":"Import!E1044","v":0},null,{"$f":"Import!G1044","v":0},null,{"$f":"Import!I1017","v":0},null,{"$f":"Import!K1017","v":0}]
[null,"(c)","Net foreign exchange income",null,{"$f":"Import!E1018","v":0},null,{"$f":"Import!G1018","v":0},null,{"$f":"Import!E1045","v":0},null,{"$f":"Import!G1045","v":0},null,{"$f":"Import!I1018","v":0},null,{"$f":"Import!K1018","v":0}]
[null,"(d)","Credit impairment losses on financial assets",null,{"$f":"Import!E1019","v":0},null,{"$f":"Import!G1019","v":0},null,{"$f":"Import!E1046","v":0},null,{"$f":"Import!G1046","v":0},null,{"$f":"Import!I1019","v":0},null,{"$f":"Import!K1019","v":0}]
[null,"(e)","Other investment returns",null,{"$f":"Import!E1020","v":0},null,{"$f":"Import!G1020","v":0},null,{"$f":"Import!E1047","v":0},null,{"$f":"Import!G1047","v":0},null,{"$f":"Import!I1020","v":0},null,{"$f":"Import!K1020","v":0}]
[null,"(f)","TOTAL INVESTMENT RETURNS",null,{"$f":"E31+E32-E33+E34+E35","v":0},null,{"$f":"G31+G32-G33+G34+G35","v":0},null,{"$f":"I31+I32-I33+I34+I35","v":0},null,{"$f":"K31+K32-K33+K34+K35","v":0},null,{"$f":"M31+M32-M33+M34+M35","v":0},null,{"$f":"O31+O32-O33+O34+O35","v":0}]
[]
[null,"7.","INSURANCE FINANCE RESULTS"]
[null,"(a)","Net finance income and expenses from insurance contracts issued",null,{"$f":"Import!E1022","v":0},null,{"$f":"Import!G1022","v":0},null,{"$f":"Import!E1049","v":0},null,{"$f":"Import!G1049","v":0},null,{"$f":"Import!I1022","v":0},null,{"$f":"Import!K1022","v":0}]
[null,"(b)","Net finance income and expenses from reinsurance contracts held",null,{"$f":"Import!E1023","v":0},null,{"$f":"Import!G1023","v":0},null,{"$f":"Import!E1050","v":0},null,{"$f":"Import!G1050","v":0},null,{"$f":"Import!I1023","v":0},null,{"$f":"Import!K1023","v":0}]
[null,"(c)","TOTAL NET INSURANCE FINANCE RESULTS",null,{"$f":"SUM(E39:E40)","v":0},null,{"$f":"SUM(G39:G40)","v":0},null,{"$f":"SUM(I39:I40)","v":0},null,{"$f":"SUM(K39:K40)","v":0},null,{"$f":"SUM(M39:M40)","v":0},null,{"$f":"SUM(O39:O40)","v":0}]
[]
[null,"8.","NET INSURANCE FINANCIAL AND INVESTMENT RESULTS",null,{"$f":"E36+E41","v":0},null,{"$f":"G36+G41","v":0},null,{"$f":"I36+I41","v":0},null,{"$f":"K36+K41","v":0},null,{"$f":"M36+M41","v":0},null,{"$f":"O36+O41","v":0}]
[]
[null,"9.","COMBINED OTHER INCOME (DEDUCTIONS)",null,{"$f":"Import!E1026","v":0},null,{"$f":"Import!G1026","v":0},null,{"$f":"Import!E1053","v":0},null,{"$f":"Import!G1053","v":0},null,{"$f":"Import!I1026","v":0},null,{"$f":"Import!K1026","v":0}]
[]
[]
[null,"10.","PROFIT BEFORE TAX",null,{"$f":"E43+E28+E45","v":0},null,{"$f":"G43+G28+G45","v":0},null,{"$f":"I43+I28+I45","v":0},null,{"$f":"K43+K28+K45","v":0},null,{"$f":"M43+M28+M45","v":0},null,{"$f":"O43+O28+O45","v":0}]
[]
[null,"11.","INCOME TAX",null,{"$f":"Import!E1028","v":0},null,{"$f":"Import!G1028","v":0},null,{"$f":"Import!E1055","v":0},null,{"$f":"Import!G1055","v":0},null,{"$f":"Import!I1028","v":0},null,{"$f":"Import!K1028","v":0}]
[]
[null,"12.","NET INCOME",null,{"$f":"E48-E50","v":0},null,{"$f":"G48-G50","v":0},null,{"$f":"I48-I50","v":0},null,{"$f":"K48-K50","v":0},null,{"$f":"M48-M50","v":0},null,{"$f":"O48-O50","v":0}]
[]
[]
[null,"Unconsolidated Disclosures for Statement of Profit or Loss"]
[null,"Line 1","Notes to Insurance Revenue"]
[]
[null,null,"Contracts not measured under the PAA"]
[null,null,"Amounts relating to changes in liabilities for remaining coverage"]
[]
[null,null,"Expected incurred claims and other insurance service expenses",null,{"$f":"Import!E1058","v":0}]
[]
[null,null,"CSM recognised for services provided",null,{"$f":"Import!E1059","v":0}]
[]
[null,null,"Change in risk adjustment for non-financial risk for risk expired",null,{"$f":"Import!E1060","v":0}]
[]
[null,null,"Allocation of the portion of premiums that relate to the recovery of insurance acquisition cashflows",null,{"$f":"Import!E1061","v":0}]
[]
[null,null,"Contracts measured under the General Model",null,{"$f":"E63+E65+E67+E61","v":0}]
[]
[null,null,"Contracts measured under the PAA",null,{"$f":"Import!E1063","v":0}]
[]
[null,null,"Total Insurance Revenue",null,{"$f":"E69+E71","v":0}]
[]
[null,"UNCONSOLIDATERD AND CONSOLIDATED SUPPLEMENTARY DISCLOSURES"]
[null,"Premium Disclosures",null,null,{"$f":"'Form 4EBS'!$F$6","v":"2023-12-31"}]
[null,null,"General Business - Gross premium written in the reporting Year",null,{"$f":"Import!E1065","v":0},null,null,null,null,null,null,null,{"$f":"Import!I1065","v":0}]
[null,null,"General Business - Premiums Ceded in the reporting Year",null,{"$f":"Import!E1066","v":0},null,null,null,null,null,null,null,{"$f":"Import!I1066","v":0}]
[null,null,"General Business - Net premium written in the reporting Year",null,{"$f":"E77-E78","v":0},null,null,null,null,null,null,null,{"$f":"M77-M78","v":0}]
[]
[null,null,"General Business - Net Losses Incurred in the reporting Year",null,{"$f":"Import!E1068","v":0},null,null,null,null,null,null,null,{"$f":"Import!I1068","v":0}]
[]
[null,null,"Long-Term Business - Gross premium written in the reporting Year",null,{"$f":"Import!E1069","v":0},null,null,null,null,null,null,null,{"$f":"Import!I1069","v":0}]
[null,null,"Long-Term Business - Premiums Ceded in the reporting Year",null,{"$f":"Import!E1070","v":0},null,null,null,null,null,null,null,{"$f":"Import!I1070","v":0}]
[null,null,"Long-Term Business - Net premium written in the reporting Year",null,{"$f":"E83-E84","v":0},null,null,null,null,null,null,null,{"$f":"M83-M84","v":0}]
[]
[null,"Operating Expenses Details"]
[]
[null,"(a)","General and administrative ",null,{"$f":"Import!E1072","v":0},null,null,null,null,null,null,null,{"$f":"Import!I1072","v":0}]
[null,"(b)","Personnel costs  ",null,{"$f":"Import!E1073","v":0},null,null,null,null,null,null,null,{"$f":"Import!I1073","v":0}]
[null,"(c)","Other  ",null,{"$f":"Import!E1074","v":0},null,null,null,null,null,null,null,{"$f":"Import!I1074","v":0}]
[null,"(d)","Total combined operating expenses  ",null,{"$f":"SUM(E89:E91)","v":0}]

{"sheet":"Form 8ASFS","index":23,"n_rows":67,"n_cols":17,"rows_kept":67,"cut":false,"hidden":false,"merged":[[4,14,4,16],[5,6,5,8],[5,10,5,12],[5,14,5,16],[66,6,66,8],[60,6,60,8],[61,6,61,8],[62,6,62,8],[63,6,63,8],[2,2,2,3],[3,2,3,3],[4,6,4,8],[4,10,4,12],[45,2,45,4],[51,2,51,4],[60,2,60,4],[61,2,61,4],[62,2,62,4],[66,2,66,4],[63,2,63,4]]}
[null,"STATUTORY STATEMENT OF CAPITAL AND SURPLUS",null,null,null,null,null,null,null,null,null,null,null,null,null,null,{"$f":"HYPERLINK(\"#'Index'!A1\",\"Return to Index\")","v":"Return to Index"}]
[null,{"$f":"'Insurer Information'!C7","v":"Enter Company Name"}]
[null,"For the year ending",{"$f":" TEXT('Insurer Information'!C3,\"D MMMM YYYY\")","v":"31 December 2023"},null,null,null,null,null,null,null,null,null,null,null,null,null,"FORM 8ASFS"]
[null,{"$f":"\"Expressed in  \"& IF(CONFIGURATION!$B$12>1,\" ['\"&MID(CONFIGURATION!$B$12,2,LEN(CONFIGURATION!$B$12))&\"s]\",\"\")","v":"Expressed in   ['000s]"},{"$f":"'Form 4EBS'!C4","v":"United States Dollars"}]
[null,null,null,null,null,null,"General Business",null,null,null,"Long-Term Business",null,null,null,"General and Long-Term Business"]
[null,"STMT.",null,null,null,null,"Unconsolidated",null,null,null,"Unconsolidated",null,null,null,"Consolidated"]
[null,"LINE No.",null,null,null,null,{"$f":"'Form 4EBS'!$F$6","v":"2023-12-31"},null,{"$f":"'Form 4EBS'!$H$6","v":"2022-12-31"},null,{"$f":"'Form 4EBS'!$F$6","v":"2023-12-31"},null,{"$f":"'Form 4EBS'!$H$6","v":"2022-12-31"},null,{"$f":"'Form 4EBS'!$F$6","v":"2023-12-31"},null,{"$f":"'Form 4EBS'!$H$6","v":"2022-12-31"}]
[null,null,null,null,null,null,"('000)",null,"('000)",null,"('000)",null,"('000)",null,"('000)",null,"('000)"]
[null,"1.","STATUTORY CAPITAL"]
[]
[null,"(a) ","Capital stock",null,null,null,{"$f":"Import!E1093","v":0},null,{"$f":"Import!G1093","v":0},null,{"$f":"Import!E1078","v":0},null,{"$f":"Import!G1078","v":0}]
[null,null,"(i) Common shares",null,null,null,null,null,null,null,null,null,null,null,{"$f":"Import!I1079","v":0},null,{"$f":"Import!K1079","v":0}]
[null,null,"authorised",null,"shares of par"]
[null,null,"value",null,"each issued and"]
[null,null,"fully paid",null,"shares"]
[]
[null,null,"(ii) Preferred shares",null,null,null,null,null,null,null,null,null,null,null,{"$f":"Import!I1080","v":0},null,{"$f":"Import!K1080","v":0}]
[null,null,"authorised",null,"shares of par"]
[null,null,"value",null,"each issued and"]
[null,null,"fully paid",null,"shares"]
[null,null,"aggregate liquidation value for —"]
[null,null,{"$f":"G7","v":"2023-12-31"}]
[null,null,{"$f":"I7","v":"2022-12-31"}]
[]
[null,null,"(iii) Treasury shares",null,null,null,null,null,null,null,null,null,null,null,{"$f":"Import!I1081","v":0},null,{"$f":"Import!K1081","v":0}]
[null,null,"repurchased",null,"shares of par"]
[null,null,"value",null,"each issued"]
[]
[null,"(b)","Contributed surplus",null,null,null,{"$f":"Import!E1094","v":0},null,{"$f":"Import!G1094","v":0},null,{"$f":"Import!E1082","v":0},null,{"$f":"Import!G1082","v":0},null,{"$f":"Import!I1082","v":0},null,{"$f":"Import!K1082","v":0}]
[]
[null,"(c) ","Any other fixed capital"]
[null,null,"(i) Hybrid capital instruments",null,null,null,{"$f":"Import!E1095","v":0},null,{"$f":"Import!G1095","v":0},null,{"$f":"Import!E1083","v":0},null,{"$f":"Import!G1083","v":0},null,{"$f":"Import!I1083","v":0},null,{"$f":"Import!K1083","v":0}]
[null,null,"(ii) Guarantees and others",null,null,null,{"$f":"Import!E1096","v":0},null,{"$f":"Import!G1096","v":0},null,{"$f":"Import!E1084","v":0},null,{"$f":"Import!G1084","v":0},null,{"$f":"Import!I1084","v":0},null,{"$f":"Import!K1084","v":0}]
[null,null,"(iii) Total any other fixed capital",null,null,null,{"$f":"SUM(G32:G33)","v":0},null,{"$f":"SUM(I32:I33)","v":0},null,{"$f":"SUM(K32:K33)","v":0},null,{"$f":"SUM(M32:M33)","v":0},null,{"$f":"SUM(O32:O33)","v":0},null,{"$f":"SUM(Q32:Q33)","v":0}]
[]
[null,"(d)","Total Statutory Capital",null,null,null,{"$f":"G11+G29+G34","v":0},null,{"$f":"I11+I29+I34","v":0},null,{"$f":"K11+K29+K34","v":0},null,{"$f":"M11+M29+M34","v":0},null,{"$f":"O12+O17-O25+O29+O34","v":0},null,{"$f":"Q12+Q17-Q25+Q29+Q34","v":0}]
[]
[null,"2.","STATUTORY SURPLUS:"]
[]
[null,"(a) ","Statutory Surplus - Beginning of Year",null,null,null,{"$f":"Import!E1097","v":0},null,{"$f":"Import!G1097","v":0},null,{"$f":"Import!E1085","v":0},null,{"$f":"Import!G1085","v":0},null,{"$f":"Import!I1085","v":0},null,{"$f":"Import!K1085","v":0}]
[]
[null,"(b)","Add: Income for Year",null,null,null,{"$f":"'Form 2ASFS'!E52","v":0},null,{"$f":"'Form 2ASFS'!G52","v":0},null,{"$f":"'Form 2ASFS'!I52","v":0},null,{"$f":"'Form 2ASFS'!K52","v":0},null,{"$f":"'Form 2ASFS'!M52","v":0},null,{"$f":"'Form 2ASFS'!O52","v":0}]
[]
[null,"(c) ","Less: Dividends paid and payable",null,null,null,{"$f":"Import!E1098","v":0},null,{"$f":"Import!G1098","v":0},null,{"$f":"Import!E1086","v":0},null,{"$f":"Import!G1086","v":0},null,{"$f":"Import!I1086","v":0},null,{"$f":"Import!K1086","v":0}]
[]
[null,"(d)","Add (Deduct) change in unrealized appreciation (depreciation) of investments",null,null,null,{"$f":"Import!E1099","v":0},null,{"$f":"Import!G1099","v":0},null,{"$f":"Import!E1087","v":0},null,{"$f":"Import!G1087","v":0},null,{"$f":"Import!I1087","v":0},null,{"$f":"Import!K1087","v":0}]
[]
[null,"(e)","Add (Deduct) change in non-admitted assets",null,null,null,{"$f":"Import!E1100","v":0},null,{"$f":"Import!G1100","v":0},null,{"$f":"Import!E1088","v":0},null,{"$f":"Import!G1088","v":0},null,{"$f":"Import!I1088","v":0},null,{"$f":"Import!K1088","v":0}]
[]
[null,"(f)","Add (Deduct) change in appraisal of real estate",null,null,null,{"$f":"Import!E1101","v":0},null,{"$f":"Import!G1101","v":0},null,{"$f":"Import!E1089","v":0},null,{"$f":"Import!G1089","v":0},null,{"$f":"Import!I1089","v":0},null,{"$f":"Import!K1089","v":0}]
[]
[null,"(g)","Add (Deduct) change in any other statutory capital",null,null,null,{"$f":"Import!E1102","v":0},null,{"$f":"Import!G1102","v":0},null,{"$f":"Import!E1090","v":0},null,{"$f":"Import!G1090","v":0},null,{"$f":"Import!I1090","v":0},null,{"$f":"Import!K1090","v":0}]
[]
[null,"(h)","Statutory Surplus - End of Year",null,null,null,{"$f":"G40+G42+G44+G46+G48+G50+G52","v":0},null,{"$f":"I40+I42+I44+I46+I48+I50+I52","v":0},null,{"$f":"K40+K42+K44+K46+K48+K50+K52","v":0},null,{"$f":"M40+M42+M44+M46+M48+M50+M52","v":0},null,{"$f":"O40+O42+O44+O46+O48+O50+O52","v":0},null,{"$f":"Q40+Q42+Q44+Q46+Q48+Q50+Q52","v":0}]
[]
[null,"3.","MINORITY INTEREST",null,null,null,{"$f":"Import!E1103","v":0},null,{"$f":"Import!G1103","v":0},null,{"$f":"Import!E1091","v":0},null,{"$f":"Import!G1091","v":0},null,{"$f":"Import!I1091","v":0},null,{"$f":"Import!K1091","v":0}]
[]
[null,"4.","TOTAL STATUTORY CAPITAL AND SURPLUS",null,null,null,{"$f":"G36+G54+G56","v":0},null,{"$f":"I36+I54+I56","v":0},null,{"$f":"K36+K54+K56","v":0},null,{"$f":"M36+M54+M56","v":0},null,{"$f":"O36+O54+O56","v":0},null,{"$f":"Q36+Q54+Q56","v":0}]
[]
[null,null,null,null,null,null,"Change in other statutory capital and surplus"]
[null,"Line 2g","Change in any other statutory capital - Change from IFRS 4 to 17",null,null,null,{"$f":"Import!E1105","v":0},null,null,null,{"$f":"Import!E1109","v":0},null,null,null,{"$f":"Import!I1109","v":0}]
[null,"Line 2g","Change in any other statutory capital - 1 Other",null,null,null,{"$f":"Import!E1106","v":0},null,null,null,{"$f":"Import!E1110","v":0},null,null,null,{"$f":"Import!I1110","v":0}]
[null,"Line 2g","Change in any other statutory capital - 2 Other",null,null,null,{"$f":"Import!E1107","v":0},null,null,null,{"$f":"Import!E1111","v":0},null,null,null,{"$f":"Import!I1111","v":0}]
[null,"Line 2g","Change in any other statutory capital - 3 Other",null,null,null,{"$f":"Import!E1108","v":0},null,null,null,{"$f":"Import!E1112","v":0},null,null,null,{"$f":"Import!I1112","v":0}]
[null,null,"Total",null,null,null,null,null,null,null,{"$f":"SUM(K61:K64)","v":0},null,{"$f":"IF(M67=0,\"True\",\"False\")","v":"True"},null,{"$f":"SUM(O61:O64)","v":0},null,{"$f":"IF(Q67=0,\"True\",\"False\")","v":"True"}]
[null,null,null,null,null,null,null,null,null,null,null,null,{"$f":"IF(ROUND((M8-M63),0)=0,\"TRUE\",\"FALSE\")","v":{"$error":"#VALUE!"}},null,null,null,{"$f":"IF(ROUND((Q8-Q63),0)=0,\"TRUE\",\"FALSE\")","v":{"$error":"#VALUE!"}}]
[null,"Line 4","Total Statutory Capital and Surplus",null,null,null,{"$f":"HYPERLINK(\"#'Schedule V(g)'!A1\",\"Refer to Schedule V(g)\")","v":"Refer to Schedule V(g)"},null,null,null,null,null,{"$f":"ROUND((G52+K52)-K65,0)","v":0},null,null,null,{"$f":"ROUND((O52-O65),0)","v":0}]

{"sheet":"Form 4EBS","index":24,"n_rows":238,"n_cols":8,"rows_kept":238,"cut":false,"hidden":false,"merged":[[3,2,3,3]]}
[null,"ECONOMIC BALANCE SHEET",null,null,null,null,null,{"$f":"HYPERLINK(\"#'Index'!A1\",\"Return to Index\")","v":"Return to Index"}]
[null,{"$f":"'Insurer Information'!C7","v":"Enter Company Name"}]
[null,"As at",{"$f":"'Insurer Information'!C3","v":"2023-12-31"},null,null,null,null,"FORM 4EBS"]
[null,{"$f":"\"Expressed in \" & IF(CONFIGURATION!$B$12>1,\" ['\"&MID(CONFIGURATION!$B$12,2,LEN(CONFIGURATION!$B$12))&\"s]\",\"\")","v":"Expressed in  ['000s]"},{"$f":"'Form 1SFS'!C5","v":"United States Dollars"}]
[]
[null,"STMT.",null,null,null,{"$f":"C3","v":"2023-12-31"},null,{"$f":"DATE(YEAR(C3) -1, MONTH(C3), DAY(C3))","v":"2022-12-31"}]
[null,"LINE No.",null,null,null,{"$f":"CONFIGURATION!$D$12","v":" ('000s)"},null,{"$f":"CONFIGURATION!$D$12","v":" ('000s)"}]
[]
[]
[null,"1.","CASH AND CASH EQUIVALENTS",null,null,{"$f":"Import!M99","v":0},null,{"$f":"Import!O99","v":0}]
[]
[null,"2.","QUOTED INVESTMENTS:"]
[null,"(b) ","Total Bonds and Debentures",null,null,{"$f":"Import!M102","v":0},null,{"$f":"Import!O102","v":0}]
[null,"(c) ","Equities "]
[null,null,"  i.  Common Stocks",null,null,{"$f":"Import!M103","v":0},null,{"$f":"Import!O103","v":0}]
[null,null,"  ii. Preferred Stocks",null,null,{"$f":"Import!M104","v":0},null,{"$f":"Import!O104","v":0}]
[null,null,"  iii. Mutual Funds",null,null,{"$f":"Import!M105","v":0},null,{"$f":"Import!O105","v":0}]
[null,"(d) ","Total Equity Investments",null,null,{"$f":"SUM(F15:F17)","v":0},null,{"$f":"SUM(H15:H17)","v":0}]
[null,"(e)","Other Quoted Investments",null,null,{"$f":"Import!M106","v":0},null,{"$f":"Import!O106","v":0}]
[null,"(f)","Total Quoted Investments",null,null,{"$f":"F13+F18+F19","v":0},null,{"$f":"H13+H18+H19","v":0}]
[]
[null,"3.","UNQUOTED INVESTMENTS:"]
[null,"(b) ","Bonds and Debentures",null,null,{"$f":"Import!M109","v":0},null,{"$f":"Import!O109","v":0}]
[null,"(c) ","Equities "]
[null,null,"  i.  Common Stocks",null,null,{"$f":"Import!M110","v":0},null,{"$f":"Import!O110","v":0}]
[null,null,"  ii. Preferred Stocks",null,null,{"$f":"Import!M111","v":0},null,{"$f":"Import!O111","v":0}]
[null,null,"  iii. Mutual Funds",null,null,{"$f":"Import!M112","v":0},null,{"$f":"Import!O112","v":0}]
[null,"(d) ","Total Equity Investments",null,null,{"$f":"SUM(F25:F27)","v":0},null,{"$f":"SUM(H25:H27)","v":0}]
[null,"(e)","Other Unquoted Investments",null,null,{"$f":"Import!M113","v":0},null,{"$f":"Import!O113","v":0}]
[null,"(f)","Total Unquoted Investments",null,null,{"$f":"F23+F28+F29","v":0},null,{"$f":"H23+H28+H29","v":0}]
[]
[null,"4.","INVESTMENTS IN AND ADVANCES TO AFFILIATES (EQUITY METHOD):"]
[null,"(a)","Unregulated entities that conduct ancillary services",null,null,{"$f":"Import!M114","v":0},null,{"$f":"Import!O114","v":0}]
[null,"(b)","Unregulated non-financial operating entities",null,null,{"$f":"Import!M115","v":0},null,{"$f":"Import!O115","v":0}]
[null,"(c)","Unregulated financial operating entities",null,null,{"$f":"Import!M116","v":0},null,{"$f":"Import!O116","v":0}]
[null,"(d)","Regulated non-insurance financial operating entities",null,null,{"$f":"Import!M117","v":0},null,{"$f":"Import!O117","v":0}]
[null,"(e)","Regulated insurance financial operating entities",null,null,{"$f":"Import!M118","v":0},null,{"$f":"Import!O118","v":0}]
[null,"(f)","Total investments in affiliates (equity method)",null,null,{"$f":"SUM(F33:F37)","v":0},null,{"$f":"SUM(H33:H37)","v":0}]
[null,"(g)","Advances to affiliates",null,null,{"$f":"Import!M119","v":0},null,{"$f":"Import!O119","v":0}]
[null,"(h)","Total investments in and advances to affiliates (equity method)",null,null,{"$f":"F38+F39","v":0},null,{"$f":"H38+H39","v":0}]
[]
[null,"5.","INVESTMENTS IN MORTGAGE LOANS ON REAL ESTATE:"]
[null,"(a)","First Liens",null,null,{"$f":"Import!M120","v":0},null,{"$f":"Import!O120","v":0}]
[null,"(b) ","Other than First Liens",null,null,{"$f":"Import!M121","v":0},null,{"$f":"Import!O121","v":0}]
[null,"(c) ","Total Investments in Mortgage Loans on Real Estate",null,null,{"$f":"F43+F44","v":0},null,{"$f":"H43+H44","v":0}]
[]
[null,"6.","POLICY LOANS",null,null,{"$f":"Import!M122","v":0},null,{"$f":"Import!O122","v":0}]
[]
[null,"7.","REAL ESTATE:"]
[null,"(a)","Occupied by the company (less encumbrances)",null,null,{"$f":"Import!M123","v":0},null,{"$f":"Import!O123","v":0}]
[null,"(b)","Other properties (less encumbrances)",null,null,{"$f":"Import!M124","v":0},null,{"$f":"Import!O124","v":0}]
[null,"(c) ","Total real estate",null,null,{"$f":"SUM(F50:F51)","v":0},null,{"$f":"SUM(H50:H51)","v":0}]
[]
[null,"8.","COLLATERAL LOANS",null,null,{"$f":"Import!M125","v":0},null,{"$f":"Import!O125","v":0}]
[]
[null,"9.","INVESTMENT INCOME DUE AND ACCRUED",null,null,{"$f":"Import!M126","v":0},null,{"$f":"Import!O126","v":0}]
[]
[null,"10.","ACCOUNTS AND PREMIUMS RECEIVABLE"]
[null,"(a)","In course of collection",null,null,{"$f":"Import!M127","v":0},null,{"$f":"Import!O127","v":0}]
[null,"(c) ","Receivables from retrocessional contracts",null,null,{"$f":"Import!M129","v":0},null,{"$f":"Import!O129","v":0}]
[null,"(d) ","Total accounts and premiums receivable",null,null,{"$f":"SUM(F59:F60)","v":0},null,{"$f":"SUM(H59:H60)","v":0}]
[]
[null,"11.","REINSURANCE BALANCES RECEIVABLE"]
[null,"(a)","Foreign affiliates",null,null,{"$f":"Import!M130","v":0},null,{"$f":"Import!O130","v":0}]
[null,"(b)","Domestic affiliates",null,null,{"$f":"Import!M131","v":0},null,{"$f":"Import!O131","v":0}]
[null,"(c) ","Pools & associations",null,null,{"$f":"Import!M132","v":0},null,{"$f":"Import!O132","v":0}]
[null,"(d) ","All other insurers",null,null,{"$f":"Import!M133","v":0},null,{"$f":"Import!O133","v":0}]
[null,"(e)","Total reinsurance balances receivable",null,null,{"$f":"SUM(F64:F67)","v":0},null,{"$f":"SUM(H64:H67)","v":0}]
[]
[null,"12.","FUNDS HELD BY CEDING REINSURERS"]
[null,"(a)","Affiliates",null,null,{"$f":"Import!M134","v":0},null,{"$f":"Import!O134","v":0}]
[null,"(b)","Non-Affiliates",null,null,{"$f":"Import!M135","v":0},null,{"$f":"Import!O135","v":0}]
[null,"(c) ","Total Funds Held by Ceding Reinsurers",null,null,{"$f":"SUM(F71:F72)","v":0},null,{"$f":"SUM(H71:H72)","v":0}]
[]
[null,"13.","SUNDRY ASSETS:"]
[null,"(a)","Derivative instruments",null,null,{"$f":"Import!M137","v":0},null,{"$f":"Import!O137","v":0}]
[null,"(b)","Segregated Accounts Companies - Variable Annuities",null,null,{"$f":"Import!M138","v":0},null,{"$f":"Import!O138","v":0}]
[null,"(c)","Segregated Accounts Companies - Others",null,null,{"$f":"Import!M139","v":0},null,{"$f":"Import!O139","v":0}]
[null,"(e)","Deposit assets",null,null,{"$f":"Import!M141","v":0},null,{"$f":"Import!O141","v":0}]
[null,"(f)","Balances receivable on the sale of investments",null,null,{"$f":"Import!M143","v":0},null,{"$f":"Import!O143","v":0}]
[null,"(g)","Intangible assets",null,null,{"$f":"Import!M144","v":0},null,{"$f":"Import!O144","v":0}]
[null,"(h)","Deferred tax Assets",null,null,{"$f":"Import!M145","v":0},null,{"$f":"Import!O145","v":0}]
[null,"(i)","Pension Benefit Surplus",null,null,{"$f":"Import!M146","v":0},null,{"$f":"Import!O146","v":0}]
[null,"(j)",null,null,null,{"$f":"Import!M147","v":0},null,{"$f":"Import!O147","v":0}]
[null,"(k)","Total sundry assets",null,null,{"$f":"SUM(F76:F84)","v":0},null,{"$f":"SUM(H76:H84)","v":0}]
[]
[null,"14.","LETTERS OF CREDIT, GUARANTEES AND OTHER INSTRUMENTS"]
[null,"(a)","Letters of credit ",null,null,{"$f":"Import!M150","v":0},null,{"$f":"Import!O150","v":0}]
[null,"(b)","Guarantees",null,null,{"$f":"Import!M151","v":0},null,{"$f":"Import!O151","v":0}]
[null,"(c) ","Other instruments",null,null,{"$f":"Import!M152","v":0},null,{"$f":"Import!O152","v":0}]
[null,"(d)","Total letters of credit, guarantees and other instruments",null,null,{"$f":"SUM(F88:F90)","v":0},null,{"$f":"SUM(H88:H90)","v":0}]
[]
[null,"15.","TOTAL",null,null,{"$f":"F10+F20+F30+F40+F45+F47+F52+F54+F56+F61+F68+F73+F85+F91","v":0},null,{"$f":"H10+H20+H30+H40+H45+H47+H52+H54+H56+H61+H68+H73+H85+H91","v":0}]
[]
[null,null,"LONG-TERM BUSINESS INSURANCE TECHNICAL PROVISIONS, OTHER LIABILITIES "]
[null,null,"AND STATUTORY CAPITAL AND SURPLUS"]
[]
[null,null,"LONG-TERM BUSINESS INSURANCE TECHNICAL PROVISIONS"]
[]
[null,"20. ","BEST ESTIMATE RESERVES FOR REPORTED CLAIMS",null,null,{"$f":"Import!M165","v":0},null,{"$f":"Import!O165","v":0}]
[]
[null,"21.","BEST ESTIMATE RESERVES FOR UNREPORTED CLAIMS",null,null,{"$f":"Import!M166","v":0},null,{"$f":"Import!O166","v":0}]
[]
[null,"22.","BEST ESTIMATE POLICY RESERVES - LIFE",null,null,{"$f":"Import!M167","v":0},null,{"$f":"Import!O167","v":0}]
[]
[null,"23.","BEST ESTIMATE POLICY RESERVES - ACCIDENT AND HEALTH",null,null,{"$f":"Import!M168","v":0},null,{"$f":"Import!O168","v":0}]
[]
[null,"24.","BEST ESTIMATE POLICYHOLDER'S FUNDS ON DEPOSIT",null,null,{"$f":"Import!M169","v":0},null,{"$f":"Import!O169","v":0}]
[]
[null,"25.","BEST ESTIMATE LIABILITY FOR FUTURE POLICYHOLDER DIVIDENDS",null,null,{"$f":"Import!M170","v":0},null,{"$f":"Import!O170","v":0}]
[]
[null,"26.","BEST ESTIMATE OTHER LONG-TERM BUSINESS INSURANCE RESERVES",null,null,{"$f":"Import!M171","v":0},null,{"$f":"Import!O171","v":0}]
[]
[null,"27.","TOTAL BEST ESTIMATE LONG-TERM BUSINESS INSURANCE PROVISIONS"]
[null,"(a)","Total Gross Long-Term Business Insurance Provisions",null,null,{"$f":"F121+F122","v":0},null,{"$f":"H121+H122","v":0}]
[null,"(b)","Less: Reinsurance Recoverable Balance:"]
[null,null,"(i) Foreign Affiliates",null,null,{"$f":"Import!M172","v":0},null,{"$f":"Import!O172","v":0}]
[null,null,"(ii) Domestic Affiliaties",null,null,{"$f":"Import!M173","v":0},null,{"$f":"Import!O173","v":0}]
[null,null,"(iii) Pools and Associations",null,null,{"$f":"Import!M174","v":0},null,{"$f":"Import!O174","v":0}]
[null,null,"(iv) All Other Insurers",null,null,{"$f":"Import!M175","v":0},null,{"$f":"Import!O175","v":0}]
[null,"(c)","Total Reinsurance Recoverable Balance",null,null,{"$f":"SUM(F117:F120)","v":0},null,{"$f":"SUM(H117:H120)","v":0}]
[null,"(d)","Net Long-Term Business Insurance Provisions",null,null,{"$f":"F100+F102+F104+F106+F108+F110+F112","v":0},null,{"$f":"H100+H102+H104+H106+H108+H110+H112","v":0}]
[]
[null,"27A.","Risk Margin – Long-term insurance business",null,null,{"$f":"Import!M176","v":0},null,{"$f":"Import!O176","v":0}]
[]
[null,"27B.","LONG-TERM TECHNICAL PROVISIONS CALCULATED AS A WHOLE"]
[null,"(a)","Total Gross Long-Term Business Insurance Provisions",null,null,{"$f":"Import!M177","v":0},null,{"$f":"Import!O177","v":0}]
[null,"(b)","Less: Reinsurance Recoverable Balance:"]
[null,null,"(i) Foreign Affiliates",null,null,{"$f":"Import!M178","v":0},null,{"$f":"Import!O178","v":0}]
[null,null,"(ii) Domestic Affiliaties",null,null,{"$f":"Import!M179","v":0},null,{"$f":"Import!O179","v":0}]
[null,null,"(iii) Pools and Associations",null,null,{"$f":"Import!M180","v":0},null,{"$f":"Import!O180","v":0}]
[null,null,"(iv) All Other Insurers",null,null,{"$f":"Import!M181","v":0},null,{"$f":"Import!O181","v":0}]
[null,"(c)","Total Reinsurance Recoverable Balance",null,null,{"$f":"SUM(F129:F132)","v":0},null,{"$f":"SUM(H129:H132)","v":0}]
[null,"(d)","Net Long-Term Business Insurance Provisions",null,null,{"$f":"F127-F133","v":0},null,{"$f":"H127-H133","v":0}]
[]
[null,"27C.","TOTAL LONG-TERM INSURANCE BUSINESS TECHNICAL PROVISIONS",null,null,{"$f":"F122+F124+F134","v":0},null,{"$f":"H122+H124+H134","v":0}]
[]
[null,null,"OTHER LIABILITIES"]
[]
[null,"28."," INSURANCE AND REINSURANCE BALANCES PAYABLE",null,null,{"$f":"Import!M182","v":0},null,{"$f":"Import!O182","v":0}]
[]
[null,"29.","COMMISSIONS, EXPENSES, FEES AND TAXES PAYABLE",null,null,{"$f":"Import!M183","v":0},null,{"$f":"Import!O183","v":0}]
[]
[null,"30.","LOANS AND NOTES PAYABLE",null,null,{"$f":"Import!M184","v":0},null,{"$f":"Import!O184","v":0}]
[]
[null,"31.","TAX LIABILITIES"]
[null,"(a)","Income taxes payable",null,null,{"$f":"Import!M185","v":0},null,{"$f":"Import!O185","v":0}]
[null,"(b)","Deferred income taxes",null,null,{"$f":"Import!M186","v":0},null,{"$f":"Import!O186","v":0}]
[]
[null,"32.","AMOUNTS DUE TO AFFILIATES",null,null,{"$f":"Import!M187","v":0},null,{"$f":"Import!O187","v":0}]
[]
[null,"33.","ACCOUNTS PAYABLE AND ACCRUED LIABILITIES",null,null,{"$f":"Import!M188","v":0},null,{"$f":"Import!O188","v":0}]
[]
[null,"34.","FUNDS HELD UNDER REINSURANCE CONTRACTS"]
[null,"(a)","Affiliates",null,null,{"$f":"Import!M189","v":0},null,{"$f":"Import!O189","v":0}]
[null,"(b)","Non-Affiliates",null,null,{"$f":"Import!M190","v":0},null,{"$f":"Import!O190","v":0}]
[null,"(c) ","Total Funds Held Under Reinsurance Contracts",null,null,{"$f":"F155+F156","v":0},null,{"$f":"H155+H156","v":0}]
[]
[null,"35.","DIVIDENDS PAYABLE",null,null,{"$f":"Import!M192","v":0},null,{"$f":"Import!O192","v":0}]
[]
[null,"36.","SUNDRY LIABILITIES:"]
[null,"(a)","Derivative instruments – held for hedging purposes",null,null,{"$f":"Import!M193","v":0},null,{"$f":"Import!O193","v":0}]
[null,"(b)","Derivative instruments – not held for hedging purposes",null,null,{"$f":"Import!M194","v":0},null,{"$f":"Import!O194","v":0}]
[null,"(c)","Segregated accounts - LT business – variable annuities",null,null,{"$f":"Import!M195","v":0},null,{"$f":"Import!O195","v":0}]
[null,"(d)","Segregated accounts - LT business - other",null,null,{"$f":"Import!M196","v":0},null,{"$f":"Import!O196","v":0}]
[null,"(f)","Deposit liabilities",null,null,{"$f":"Import!M197","v":0},null,{"$f":"Import!O197","v":0}]
[null,"(g)","Pension benefit obligations",null,null,{"$f":"Import!M198","v":0},null,{"$f":"Import!O198","v":0}]
[null,"(h)","Balances payable for purchase of investments",null,null,{"$f":"Import!M199","v":0},null,{"$f":"Import!O199","v":0}]
[null,"(i)",null,null,null,{"$f":"Import!M200","v":0},null,{"$f":"Import!O200","v":0}]
[null,"(j)","Total sundry liabilities",null,null,{"$f":"SUM(F162:F169)","v":0},null,{"$f":"SUM(H162:H169)","v":0}]
[]
[null,"37.","LETTERS OF CREDIT, GUARANTEES AND OTHER INSTRUMENTS"]
[null,"(a)","Letters of credit ",null,null,{"$f":"Import!M203","v":0},null,{"$f":"Import!O203","v":0}]
[null,"(b)","Guarantees",null,null,{"$f":"Import!M204","v":0},null,{"$f":"Import!O204","v":0}]
[null,"(c) ","Other instruments",null,null,{"$f":"Import!M205","v":0},null,{"$f":"Import!O205","v":0}]
[null,"(d)","Total letters of credit, guarantees and other instruments",null,null,{"$f":"SUM(F173:F175)","v":0},null,{"$f":"SUM(H173:H175)","v":0}]
[]
[null,"38.","TOTAL OTHER LIABILITIES",null,null,{"$f":"F140+F142+F144+F147+F148+F150+F152+F157+F159+F170+F176","v":0},null,{"$f":"H140+H142+H144+H147+H148+H150+H152+H157+H159+H170+H176","v":0}]
[]
[null,"39.","TOTAL INSURANCE TECHNICAL PROVISIONS AND OTHER LIABILITIES",null,null,{"$f":"F136+F178","v":0},null,{"$f":"H136+H178","v":0}]
[]
[null,null,"STATUTORY ECONOMIC CAPITAL AND SURPLUS"]
[]
[null,"40.","TOTAL STATUTORY ECONOMIC CAPITAL AND SURPLUS ",null,null,{"$f":"Import!M206","v":0},null,{"$f":"Import!O206","v":0}]
[]
[null,"41.","TOTAL",null,null,{"$f":"F180+F184","v":0},null,{"$f":"H180+H184","v":0}]
[]
[null,null,null,null,null,{"$f":"IF(F189=\"TRUE\",HYPERLINK(\"#'Form 4EBS'!F93\",\"TRUE\"),HYPERLINK(\"#'Form 4EBS'!F93\",\"FALSE\"))","v":"TRUE"},null,{"$f":"IF(H189=\"TRUE\",HYPERLINK(\"#'Form 4EBS'!H93\",\"TRUE\"),HYPERLINK(\"#'Form 4EBS'!H93\",\"FALSE\"))","v":"TRUE"}]
[null,null,null,null,null,{"$f":"IF(ROUND((F93-F186),0)=0,\"TRUE\",\"FALSE\")","v":"TRUE"},null,{"$f":"IF(ROUND((H93-H186),0)=0,\"TRUE\",\"FALSE\")","v":"TRUE"}]
[null,null,"Difference",null,null,{"$f":"ROUND((F93-F186),0)","v":0},null,{"$f":"ROUND((H93-H186),0)","v":0}]
[]
[null,null,null,null,null,{"$f":"IF(F188=\"False\",\"Line 15 does not equal Line 41\",\"\")","v":""},null,{"$f":"IF(H188=\"False\",\"Line 15 does not equal Line 41\",\"\")","v":""}]
[]
[null,"Notes to Form 4EBS"]
[null,null,null,"Additional Details"]
[null,"Line 10 ","Collateralized balances",null,null,{"$f":"Import!M284","v":0}]
[null,"Line 11(e)","Collateralized balances",null,null,{"$f":"Import!M285","v":0}]
[null,"Line 27(c)-(ii)","Collateral placed in favor of the insurer ",{"$f":"IF('Insurer Information'!$F$9=\"Class C\",HYPERLINK(\"#'Attachments'!G115\",\"Attach file\"),HYPERLINK(\"#'Attachments'!G155\",\"Attach file\"))","v":"Attach file"},null,{"$f":"Import!M286","v":0}]
[null,"Line 27B(c)-(ii)","Collateral placed in favor of the insurer ",{"$f":"IF('Insurer Information'!$F$9=\"Class C\",HYPERLINK(\"#'Attachments'!G115\",\"Attach file\"),HYPERLINK(\"#'Attachments'!G155\",\"Attach file\"))","v":"Attach file"},null,{"$f":"Import!M345","v":0}]
[null,"Line 13(j)","Any other assets",{"$f":"IF('Insurer Information'!$F$9=\"Class C\",HYPERLINK(\"#'Attachments'!G115\",\"Attach file\"),HYPERLINK(\"#'Attachments'!G155\",\"Attach file\"))","v":"Attach file"},null,{"$f":"Import!M287","v":0}]
[null,"Line 36(i)","Any other liabilities",{"$f":"IF('Insurer Information'!$F$9=\"Class C\",HYPERLINK(\"#'Attachments'!G115\",\"Attach file\"),HYPERLINK(\"#'Attachments'!G155\",\"Attach file\"))","v":"Attach file"},null,{"$f":"Import!M299","v":0}]
[]
[null,"Line 15","Encumbered assets for policyholder obligations"]
[]
[null,null,"Asset"]
[null,null,"             Cash",null,null,{"$f":"Import!M288","v":0},null,{"$f":"Import!O288","v":0}]
[null,null,"             Total quoted investments",null,null,{"$f":"Import!M289","v":0},null,{"$f":"Import!O289","v":0}]
[null,null,"             Total unquoted investments",null,null,{"$f":"Import!M290","v":0},null,{"$f":"Import!O290","v":0}]
[null,null,"             Funds held by ceding reinsurers",null,null,{"$f":"F73","v":0},null,{"$f":"H73","v":0}]
[null,null,"             Other asset types",null,null,{"$f":"Import!M292","v":0},null,{"$f":"Import!O292","v":0}]
[null,null,"                      Total assets encumbered",null,null,{"$f":"SUM(F206:F210)","v":0},null,{"$f":"SUM(H206:H210)","v":0}]
[]
[null,"Line 15","Encumbered assets not securing policyholder obligations"]
[]
[null,null,"Asset","Purpose of Encumbrance"]
[null,null,"             Cash",null,null,{"$f":"Import!M294","v":0},null,{"$f":"Import!O294","v":0}]
[null,null,"             Total quoted investments",null,null,{"$f":"Import!M295","v":0},null,{"$f":"Import!O295","v":0}]
[null,null,"             Total unquoted investments",null,null,{"$f":"Import!M296","v":0},null,{"$f":"Import!O296","v":0}]
[null,null,"             Other asset types",null,null,{"$f":"Import!M297","v":0},null,{"$f":"Import!O297","v":0}]
[null,null,"                      Total assets encumbered",null,null,{"$f":"SUM(F216:F219)","v":0},null,{"$f":"SUM(H216:H219)","v":0}]
[null,null,null,"Additional Details"]
[null,"Line 13(e) ","Details of business treated under deposit accounting techniques as an asset",{"$f":"IF('Insurer Information'!$F$9=\"Class C\",HYPERLINK(\"#'Attachments'!G115\",\"Attach file\"),HYPERLINK(\"#'Attachments'!G155\",\"Attach file\"))","v":"Attach file"},null,{"$f":"Import!M346","v":0}]
[null,"Line 36(f)","Details of business treated under deposit accounting techniques as an liability",{"$f":"IF('Insurer Information'!$F$9=\"Class C\",HYPERLINK(\"#'Attachments'!G115\",\"Attach file\"),HYPERLINK(\"#'Attachments'!G155\",\"Attach file\"))","v":"Attach file"},null,{"$f":"Import!M347","v":0}]
[null,"Line 37","Details of the basis used to derive the amounts disclosed",{"$f":"IF('Insurer Information'!$F$9=\"Class C\",HYPERLINK(\"#'Attachments'!G115\",\"Attach file\"),HYPERLINK(\"#'Attachments'!G155\",\"Attach file\"))","v":"Attach file"},null,{"$f":"Import!M300","v":0}]
[null,"Line 40","Reconciliation between Line 40 of 4EBS and Line 40 of Form 4",{"$f":"HYPERLINK(\"#'Schedule V(g)'!A1\",\"Refer to Schedule V(g)\")","v":"Refer to Schedule V(g)"},null,{"$f":"Import!M348","v":0}]
[]
[null,null,"Long-Term Business Provisions Additional Disclosures"]
[null,"Line 27(c)-(i)","Adjustment for counterparty default ",{"$f":"IF('Insurer Information'!$F$9=\"Class C\",HYPERLINK(\"#'Attachments'!G125\",\"Attach file with Details of Line of Business\"),HYPERLINK(\"#'Attachments'!G165\",\"Attach file with Details of Line of Business\"))","v":"Attach file with Details of Line of Business"},null,{"$f":"Import!M349","v":0}]
[null,"Line 27(d)-(i)","Premium included as Bound But Not Incepted ","See and complete Sch VII",null,{"$f":"Import!M350","v":0},null,{"$f":"+'Schedule VII (EBS)'!L48","v":0}]
[null,"Line 27(d)-(ii)","Best Estimate Technical Provisions in respect of BBNI Business","See and complete Sch VII",null,{"$f":"Import!M351","v":0},null,{"$f":"+'Schedule VII (EBS)'!M48","v":0}]
[null,"Line 27(d)-(iii)","Best estimate provisions that used trans. Arrangements","See and complete Sch VII",null,{"$f":"Import!M352","v":0},null,{"$f":"+'Schedule VII (EBS)'!N48","v":0}]
[null,"Line 27(d)-(iv)","Best estimate provisions if transitional arrangements were not applied","See and complete Sch VII",null,{"$f":"Import!M353","v":0},null,{"$f":"+'Schedule VII (EBS)'!O48","v":0}]
[null,"Line 27(d)-(v)","Scenario-based best estimate provisions that were used","See and complete Sch VII",null,{"$f":"Import!M354","v":0},null,{"$f":"+'Schedule VII (EBS)'!P48","v":0}]
[null,"Line 27(d)-(vi)","Scenario-based approach that used standard approach","See and complete Sch VII",null,{"$f":"Import!M355","v":0},null,{"$f":"+'Schedule VII (EBS)'!Q48","v":0}]
[null,"Line 27(d)-(vii)","Scenario-based approach that used base approach","See and complete Sch VII",null,{"$f":"Import!M356","v":0},null,{"$f":"+'Schedule VII (EBS)'!R48","v":0}]
[null,"Line 27B(c)-(i)","Adjustment for counterparty default ","See and complete Sch VII",null,{"$f":"Import!M357","v":0}]
[null,"Line 27B(d)-(i)","Premium included as Bound But Not Incepted ","See and complete Sch VII",null,{"$f":"Import!M358","v":0},null,{"$f":"+'Schedule VII (EBS)'!S48","v":0}]
[null,"Line 27B(d)-(ii)","Best Estimate Technical Provisions in respect of BBNI Business","See and complete Sch VII",null,{"$f":"Import!M359","v":0},null,{"$f":"+'Schedule VII (EBS)'!T48","v":0}]

{"sheet":"Schedule II","index":25,"n_rows":76,"n_cols":22,"rows_kept":76,"cut":false,"hidden":false,"merged":[[6,19,6,21],[28,3,28,5],[28,7,28,9],[28,11,28,13],[28,19,28,21],[6,11,6,13],[51,3,51,5],[51,8,51,18],[52,11,52,13],[52,15,52,17],[6,15,6,17],[1,2,1,4],[2,3,2,5],[3,3,3,5],[6,3,6,5],[6,7,6,9]]}
[null,"SCHEDULE OF FIXED INCOME & EQUITY INVESTMENTS BY BSCR RATING",null,null,null,null,null,null,null,null,null,null,null,null,null,null,null,null,null,null,null,{"$f":"HYPERLINK(\"#'Index'!A1\",\"Return to Index\")","v":"Return to Index"}]
[null,null,{"$f":"'Insurer Information'!C7","v":"Enter Company Name"}]
[null,null,"As at",{"$f":" TEXT('Insurer Information'!C3,\"D MMMM YYYY\")","v":"31 December 2023"},null,null,null,null,null,null,null,null,null,null,null,null,null,null,null,null,null,"SCHEDULE II"]
[null,null,{"$f":"\"Expressed in \" & IF(CONFIGURATION!$B$12>1,\" ['\"&MID(CONFIGURATION!$B$12,2,LEN(CONFIGURATION!$B$12))&\"s]\",\"\")","v":"Expressed in  ['000s]"},{"$f":"'Form 4EBS'!C4","v":"United States Dollars"}]
[]
[null,null,null,"(1)",null,"(2)",null,"(3)",null,"(4)",null,"(5)",null,"(6)",null,"(7)",null,"(8)",null,"(9)",null,"(10)"]
[null,null,null,"CORPORATE & SOVEREIGN BONDS",null,null,null,"RESIDENTIAL MORTGAGE-BACKED SECURITIES",null,null,null,"COMMERCIAL MORTGAGE-BACKED SECURITIES / ASSET-BACKED SECURITIES",null,null,null,"BOND MUTUAL FUNDS",null,null,null,"TOTAL\n[ Form 1SFS Lines 2(b) & 3(b)]"]
[null,null,null,{"$f":"'Form 4EBS'!F6","v":"2023-12-31"},null,{"$f":"'Form 4EBS'!H6","v":"2022-12-31"},null,{"$f":"'Form 4EBS'!F6","v":"2023-12-31"},null,{"$f":"'Form 4EBS'!H6","v":"2022-12-31"},null,{"$f":"'Form 4EBS'!F6","v":"2023-12-31"},null,{"$f":"'Form 4EBS'!H6","v":"2022-12-31"},null,{"$f":"'Form 4EBS'!F6","v":"2023-12-31"},null,{"$f":"'Form 4EBS'!H6","v":"2022-12-31"},null,{"$f":"D8","v":"2023-12-31"},null,{"$f":"F8","v":"2022-12-31"}]
[null,null,null,{"$f":"CONFIGURATION!$D$12","v":" ('000s)"},null,{"$f":"CONFIGURATION!$D$12","v":" ('000s)"},null,{"$f":"CONFIGURATION!$D$12","v":" ('000s)"},null,{"$f":"CONFIGURATION!$D$12","v":" ('000s)"},null,{"$f":"CONFIGURATION!$D$12","v":" ('000s)"},null,{"$f":"CONFIGURATION!$D$12","v":" ('000s)"},null,{"$f":"CONFIGURATION!$D$12","v":" ('000s)"},null,{"$f":"CONFIGURATION!$D$12","v":" ('000s)"},null,{"$f":"CONFIGURATION!$D$12","v":" ('000s)"},null,{"$f":"CONFIGURATION!$D$12","v":" ('000s)"}]
[null,"Line no. "]
[null,"Quoted and Unquoted Bonds and Debentures"]
[null,1,"BSCR Rating 0",{"$f":"Import!E1116","v":0},null,{"$f":"Import!G1116","v":0},null,null,null,null,null,null,null,null,null,{"$f":"Import!E1141","v":0},null,{"$f":"Import!G1141","v":0},null,{"$f":"D12+H12+L12+P12","v":0},null,{"$f":"F12+J12+N12+R12","v":0}]
[null,2,"BSCR Rating 1",{"$f":"Import!E1117","v":0},null,{"$f":"Import!G1117","v":0},null,{"$f":"Import!E1125","v":0},null,{"$f":"Import!G1125","v":0},null,{"$f":"Import!E1133","v":0},null,{"$f":"Import!G1133","v":0},null,{"$f":"Import!E1142","v":0},null,{"$f":"Import!G1142","v":0},null,0,null,0]
[null,3,"BSCR Rating 2",{"$f":"Import!E1118","v":0},null,{"$f":"Import!G1118","v":0},null,{"$f":"Import!E1126","v":0},null,{"$f":"Import!G1126","v":0},null,{"$f":"Import!E1134","v":0},null,{"$f":"Import!G1134","v":0},null,{"$f":"Import!E1143","v":0},null,{"$f":"Import!G1143","v":0},null,0,null,0]
[null,4,"BSCR Rating 3",{"$f":"Import!E1119","v":0},null,{"$f":"Import!G1119","v":0},null,{"$f":"Import!E1127","v":0},null,{"$f":"Import!G1127","v":0},null,{"$f":"Import!E1135","v":0},null,{"$f":"Import!G1135","v":0},null,{"$f":"Import!E1144","v":0},null,{"$f":"Import!G1144","v":0},null,0,null,0]
[null,5,"BSCR Rating 4",{"$f":"Import!E1120","v":0},null,{"$f":"Import!G1120","v":0},null,{"$f":"Import!E1128","v":0},null,{"$f":"Import!G1128","v":0},null,{"$f":"Import!E1136","v":0},null,{"$f":"Import!G1136","v":0},null,{"$f":"Import!E1145","v":0},null,{"$f":"Import!G1145","v":0},null,0,null,0]
[null,6,"BSCR Rating 5",{"$f":"Import!E1121","v":0},null,{"$f":"Import!G1121","v":0},null,{"$f":"Import!E1129","v":0},null,{"$f":"Import!G1129","v":0},null,{"$f":"Import!E1137","v":0},null,{"$f":"Import!G1137","v":0},null,{"$f":"Import!E1146","v":0},null,{"$f":"Import!G1146","v":0},null,0,null,0]
[null,7,"BSCR Rating 6",{"$f":"Import!E1122","v":0},null,{"$f":"Import!G1122","v":0},null,{"$f":"Import!E1130","v":0},null,{"$f":"Import!G1130","v":0},null,{"$f":"Import!E1138","v":0},null,{"$f":"Import!G1138","v":0},null,{"$f":"Import!E1147","v":0},null,{"$f":"Import!G1147","v":0},null,0,null,0]
[null,8,"BSCR Rating 7",{"$f":"Import!E1123","v":0},null,{"$f":"Import!G1123","v":0},null,{"$f":"Import!E1131","v":0},null,{"$f":"Import!G1131","v":0},null,{"$f":"Import!E1139","v":0},null,{"$f":"Import!G1139","v":0},null,{"$f":"Import!E1148","v":0},null,{"$f":"Import!G1148","v":0},null,0,null,0]
[null,9,"BSCR Rating 8",{"$f":"Import!E1124","v":0},null,{"$f":"Import!G1124","v":0},null,{"$f":"Import!E1132","v":0},null,{"$f":"Import!G1132","v":0},null,{"$f":"Import!E1140","v":0},null,{"$f":"Import!G1140","v":0},null,{"$f":"Import!E1149","v":0},null,{"$f":"Import!G1149","v":0},null,0,null,0]
[]
[null,10,"Total",{"$f":"SUM(D12:D20)","v":0},null,{"$f":"SUM(F12:F20)","v":0},null,{"$f":"SUM(H12:H20)","v":0},null,{"$f":"SUM(J12:J20)","v":0},null,{"$f":"SUM(L12:L20)","v":0},null,{"$f":"SUM(N12:N20)","v":0},null,{"$f":"SUM(P11:P20)","v":0},null,{"$f":"SUM(R11:R20)","v":0},null,{"$f":"SUM(T12:T20)","v":0},null,{"$f":"SUM(V12:V20)","v":0}]
[]
[null,null,null,null,null,null,null,null,null,null,null,null,null,null,null,null,null,null,null,{"$f":"IF(T25=\"TRUE\",HYPERLINK(\"#'Form 1SFS'!F16:K31\",\"TRUE\"),HYPERLINK(\"#'Form 1SFS'!F16:K31\",\"FALSE\"))","v":"TRUE"},null,{"$f":"IF(V25=\"TRUE\",HYPERLINK(\"#'Form 1SFS'!G16:M31\",\"TRUE\"),HYPERLINK(\"#'Form 1SFS'!G16:M31\",\"FALSE\"))","v":"TRUE"}]
[null,null,null,null,null,null,null,null,null,null,null,null,null,null,null,null,null,null,null,{"$f":"IF('Insurer Information'!$C$2=\"IFRS\",IF(ROUND((T22-('Form 1ASFS'!E16+'Form 1ASFS'!I16+'Form 1ASFS'!E29+'Form 1ASFS'!I29)),0)=0,\"TRUE\",\"FALSE\"),IF(ROUND((T22-('Form 1SFS'!F18+'Form 1SFS'!H18+'Form 1SFS'!F31+'Form 1SFS'!H31)),0)=0,\"TRUE\",\"FALSE\"))","v":"TRUE"},null,{"$f":"IF('Insurer Information'!$C$2=\"IFRS\",IF(ROUND((V22-('Form 1ASFS'!G16+'Form 1ASFS'!K16+'Form 1ASFS'!G29+'Form 1ASFS'!K29)),0)=0,\"TRUE\",\"FALSE\"),IF(ROUND((V22-('Form 1SFS'!G18+'Form 1SFS'!I18+'Form 1SFS'!G31+'Form 1SFS'!I31)),0)=0,\"TRUE\",\"FALSE\"))","v":"TRUE"}]
[null,null,"Difference",null,null,null,null,null,null,null,null,null,null,null,null,null,null,null,null,{"$f":"IF('Insurer Information'!$C$2=\"IFRS\",ROUND(('Form 1ASFS'!E16+'Form 1ASFS'!I16+'Form 1ASFS'!E29+'Form 1ASFS'!I29)-T22,0),ROUND(('Form 1SFS'!F18+'Form 1SFS'!H18+'Form 1SFS'!F31+'Form 1SFS'!H31)-T22,0))","v":0},null,{"$f":"IF('Insurer Information'!$C$2=\"IFRS\",ROUND(('Form 1ASFS'!G16+'Form 1ASFS'!K16+'Form 1ASFS'!G29+'Form 1ASFS'!K29)-V22,0),ROUND(('Form 1SFS'!G18+'Form 1SFS'!I18+'Form 1SFS'!G31+'Form 1SFS'!I31)-V22,0))","v":0}]
[]
[null,null,null,null,null,null,null,null,null,null,null,null,null,null,null,null,null,null,null,{"$f":"IF(T24=\"False\",\"Does not equal Form 1SFS Lines 2(b) & 3(b)\",\"\")","v":""},null,{"$f":"IF(V24=\"False\",\"Does not equal Form 1SFS Lines 2(b) & 3(b)\",\"\")","v":""}]
[null,null,null,"COMMON STOCK\n[ Form 1SFS Lines 2(c)(i) & 3(c)(i) ]",null,null,null,"PREFERRED STOCK\n[ Form 1SFS Lines 2(c)(ii) & 3(c)(ii) ]",null,null,null,"EQUITY MUTUAL FUNDS\n[ Form 1SFS Lines 2(c)(iii) & 3(c)(iii) ]",null,null,null,null,null,null,null,"TOTAL\n[ Form 1SFS Lines 2(d) & 3(d)]"]
[null,null,null,{"$f":"'Form 4EBS'!F6","v":"2023-12-31"},null,{"$f":"'Form 4EBS'!H6","v":"2022-12-31"},null,{"$f":"'Form 4EBS'!F6","v":"2023-12-31"},null,{"$f":"'Form 4EBS'!H6","v":"2022-12-31"},null,{"$f":"'Form 4EBS'!F6","v":"2023-12-31"},null,{"$f":"'Form 4EBS'!H6","v":"2022-12-31"},null,null,null,null,null,{"$f":"'Form 4EBS'!F6","v":"2023-12-31"},null,{"$f":"'Form 4EBS'!F6","v":"2023-12-31"}]
[null,null,null,{"$f":"CONFIGURATION!$D$12","v":" ('000s)"},null,{"$f":"CONFIGURATION!$D$12","v":" ('000s)"},null,{"$f":"CONFIGURATION!$D$12","v":" ('000s)"},null,{"$f":"CONFIGURATION!$D$12","v":" ('000s)"},null,{"$f":"CONFIGURATION!$D$12","v":" ('000s)"},null,{"$f":"CONFIGURATION!$D$12","v":" ('000s)"},null,null,null,null,null,{"$f":"CONFIGURATION!$D$12","v":" ('000s)"},null,{"$f":"CONFIGURATION!$D$12","v":" ('000s)"}]
[null,"Quoted and Unquoted Equities"]
[null,11,"BSCR Rating 1",null,null,null,null,{"$f":"Import!E1152","v":0},null,{"$f":"Import!G1152","v":0},null,null,null,null,null,null,null,null,null,{"$f":"D33+H33+L33","v":0},null,{"$f":"F33+J33+N33","v":0}]
[null,12,"BSCR Rating 2",null,null,null,null,{"$f":"Import!E1153","v":0},null,{"$f":"Import!G1153","v":0},null,null,null,null,null,null,null,null,null,0,null,0]
[null,13,"BSCR Rating 3",null,null,null,null,{"$f":"Import!E1154","v":0},null,{"$f":"Import!G1154","v":0},null,null,null,null,null,null,null,null,null,0,null,0]
[null,14,"BSCR Rating 4",null,null,null,null,{"$f":"Import!E1155","v":0},null,{"$f":"Import!G1155","v":0},null,null,null,null,null,null,null,null,null,0,null,0]
[null,15,"BSCR Rating 5",null,null,null,null,{"$f":"Import!E1156","v":0},null,{"$f":"Import!G1156","v":0},null,null,null,null,null,null,null,null,null,0,null,0]
[null,16,"BSCR Rating 6",null,null,null,null,{"$f":"Import!E1157","v":0},null,{"$f":"Import!G1157","v":0},null,null,null,null,null,null,null,null,null,0,null,0]
[null,17,"BSCR Rating 7",null,null,null,null,{"$f":"Import!E1158","v":0},null,{"$f":"Import!G1158","v":0},null,null,null,null,null,null,null,null,null,0,null,0]
[null,18,"BSCR Rating 8",null,null,null,null,{"$f":"Import!E1159","v":0},null,{"$f":"Import!G1159","v":0},null,null,null,null,null,null,null,null,null,0,null,0]
[null,19,"Quoted Equity Funds",{"$f":"IF('Insurer Information'!$C$2=\"IFRS\",'Form 1ASFS'!E18+'Form 1ASFS'!I18,'Form 1SFS'!F20+'Form 1SFS'!H20)","v":0},null,{"$f":"IF('Insurer Information'!$C$2=\"IFRS\",'Form 1ASFS'!G18+'Form 1ASFS'!K18,'Form 1SFS'!G20+'Form 1SFS'!I20)","v":0},null,null,null,null,null,{"$f":"IF('Insurer Information'!$C$2=\"IFRS\",'Form 1ASFS'!E20+'Form 1ASFS'!I20,'Form 1SFS'!F22+'Form 1SFS'!H22)","v":0},null,{"$f":"IF('Insurer Information'!$C$2=\"IFRS\",'Form 1ASFS'!G20+'Form 1ASFS'!K20,'Form 1SFS'!G22+'Form 1SFS'!I22)","v":0},null,null,null,null,null,0,null,0]
[null,20,"Unquoted Equity Funds",{"$f":"IF('Insurer Information'!$C$2=\"IFRS\",'Form 1ASFS'!E31+'Form 1ASFS'!I31,'Form 1SFS'!F33+'Form 1SFS'!H33)","v":0},null,{"$f":"IF('Insurer Information'!$C$2=\"IFRS\",'Form 1ASFS'!G31+'Form 1ASFS'!K31,'Form 1SFS'!G33+'Form 1SFS'!I33)","v":0},null,null,null,null,null,{"$f":"IF('Insurer Information'!$C$2=\"IFRS\",'Form 1ASFS'!E33+'Form 1ASFS'!I33,'Form 1SFS'!F35+'Form 1SFS'!H35)","v":0},null,{"$f":"IF('Insurer Information'!$C$2=\"IFRS\",'Form 1ASFS'!G33+'Form 1ASFS'!K33,'Form 1SFS'!G35+'Form 1SFS'!I35)","v":0},null,null,null,null,null,0,null,0]
[]
[null,21,"Total",{"$f":"SUM(D33:D42)","v":0},null,{"$f":"SUM(F33:F42)","v":0},null,{"$f":"SUM(H33:H42)","v":0},null,{"$f":"SUM(J33:J42)","v":0},null,{"$f":"SUM(L32:L42)","v":0},null,{"$f":"SUM(N32:N42)","v":0},null,null,null,null,null,{"$f":"SUM(T33:T42)","v":0},null,{"$f":"SUM(V33:V42)","v":0}]
[]
[null,null,null,{"$f":"IF(D47=\"TRUE\",HYPERLINK(\"#'Form 1SFS'!F20:K33\",\"TRUE\"),HYPERLINK(\"#'Form 1SFS'!F20:K33\",\"FALSE\"))","v":"TRUE"},null,{"$f":"IF(F47=\"TRUE\",HYPERLINK(\"#'Form 1SFS'!G20:M33\",\"TRUE\"),HYPERLINK(\"#'Form 1SFS'!G20:M33\",\"FALSE\"))","v":"TRUE"},null,{"$f":"IF(H47=\"TRUE\",HYPERLINK(\"#'Form 1SFS'!F21:K34\",\"TRUE\"),HYPERLINK(\"#'Form 1SFS'!F21:K34\",\"FALSE\"))","v":"TRUE"},null,{"$f":"IF(J47=\"TRUE\",HYPERLINK(\"#'Form 1SFS'!G21:M34\",\"TRUE\"),HYPERLINK(\"#'Form 1SFS'!G21:M34\",\"FALSE\"))","v":"TRUE"},null,{"$f":"IF(L47=\"TRUE\",HYPERLINK(\"#'Form 1SFS'!F22:K35\",\"TRUE\"),HYPERLINK(\"#'Form 1SFS'!F22:K35\",\"FALSE\"))","v":"TRUE"},null,{"$f":"IF(N47=\"TRUE\",HYPERLINK(\"#'Form 1SFS'!G22:M35\",\"TRUE\"),HYPERLINK(\"#'Form 1SFS'!G22:M35\",\"FALSE\"))","v":"TRUE"},null,null,null,null,null,{"$f":"IF(T47=\"TRUE\",HYPERLINK(\"#'Form 1SFS'!F20:K36\",\"TRUE\"),HYPERLINK(\"#'Form 1SFS'!F20:K36\",\"FALSE\"))","v":"TRUE"},null,{"$f":"IF(V47=\"TRUE\",HYPERLINK(\"#'Form 1SFS'!G20:M36\",\"TRUE\"),HYPERLINK(\"#'Form 1SFS'!G20:M36\",\"FALSE\"))","v":"TRUE"}]
[null,null,null,{"$f":"IF('Insurer Information'!$C$2=\"IFRS\",IF(ROUND(D44-('Form 1ASFS'!E18+'Form 1ASFS'!I18+'Form 1ASFS'!E31+'Form 1ASFS'!I31),0)=0,\"TRUE\",\"FALSE\"),IF(ROUND(D44-('Form 1SFS'!F20+'Form 1SFS'!F33+'Form 1SFS'!H20+'Form 1SFS'!H33),0)=0,\"TRUE\",\"FALSE\"))","v":"TRUE"},null,{"$f":"IF('Insurer Information'!$C$2=\"IFRS\",IF(ROUND(F44-('Form 1ASFS'!G18+'Form 1ASFS'!K18+'Form 1ASFS'!G31+'Form 1ASFS'!K31),0)=0,\"TRUE\",\"FALSE\"),IF(ROUND(F44-('Form 1SFS'!G20+'Form 1SFS'!G33+'Form 1SFS'!I20+'Form 1SFS'!I33),0)=0,\"TRUE\",\"FALSE\"))","v":"TRUE"},null,{"$f":"IF('Insurer Information'!$C$2=\"IFRS\",IF(ROUND(D44-('Form 1ASFS'!E19+'Form 1ASFS'!I19+'Form 1ASFS'!E32+'Form 1ASFS'!I32),0)=0,\"TRUE\",\"FALSE\"),IF(ROUND(H44-('Form 1SFS'!F21+'Form 1SFS'!H21+'Form 1SFS'!F34+'Form 1SFS'!H34),0)=0,\"TRUE\",\"FALSE\"))","v":"TRUE"},null,{"$f":"IF('Insurer Information'!$C$2=\"IFRS\",IF(ROUND(F44-('Form 1ASFS'!G19+'Form 1ASFS'!K19+'Form 1ASFS'!G32+'Form 1ASFS'!K32),0)=0,\"TRUE\",\"FALSE\"),IF(ROUND(J44-('Form 1SFS'!G21+'Form 1SFS'!I21+'Form 1SFS'!G34+'Form 1SFS'!I34),0)=0,\"TRUE\",\"FALSE\"))","v":"TRUE"},null,{"$f":"IF('Insurer Information'!$C$2=\"IFRS\",IF(ROUND(L44-('Form 1ASFS'!E20+'Form 1ASFS'!I20+'Form 1ASFS'!E33+'Form 1ASFS'!I33),0)=0,\"TRUE\",\"FALSE\"),IF(ROUND(L44-('Form 1SFS'!F22+'Form 1SFS'!F35+'Form 1SFS'!H22+'Form 1SFS'!H35),0)=0,\"TRUE\",\"FALSE\"))","v":"TRUE"},null,{"$f":"IF('Insurer Information'!$C$2=\"IFRS\",IF(ROUND(N44-('Form 1ASFS'!G20+'Form 1ASFS'!K20+'Form 1ASFS'!G33+'Form 1ASFS'!K33),0)=0,\"TRUE\",\"FALSE\"),IF(ROUND(N44-('Form 1SFS'!G22+'Form 1SFS'!G35+'Form 1SFS'!I22+'Form 1SFS'!I35),0)=0,\"TRUE\",\"FALSE\"))","v":"TRUE"},null,null,null,null,null,{"$f":"IF('Insurer Information'!$C$2=\"IFRS\",IF(ROUND(T44-('Form 1ASFS'!E21+'Form 1ASFS'!I21+'Form 1ASFS'!E34+'Form 1ASFS'!I34),0)=0,\"TRUE\",\"FALSE\"),IF(ROUND(T44-('Form 1SFS'!F23+'Form 1SFS'!H23+'Form 1SFS'!F36+'Form 1SFS'!H36),0)=0,\"TRUE\",\"FALSE\"))","v":"TRUE"},null,{"$f":"IF('Insurer Information'!$C$2=\"IFRS\",IF(ROUND(V44-('Form 1ASFS'!G21+'Form 1ASFS'!K21+'Form 1ASFS'!G34+'Form 1ASFS'!K34),0)=0,\"TRUE\",\"FALSE\"),IF(ROUND(V44-('Form 1SFS'!G23+'Form 1SFS'!I23+'Form 1SFS'!G36+'Form 1SFS'!I36),0)=0,\"TRUE\",\"FALSE\"))","v":"TRUE"}]
[null,null,"Difference",{"$f":"IF('Insurer Information'!$C$2=\"IFRS\",ROUND(('Form 1ASFS'!E18+'Form 1ASFS'!I18+'Form 1ASFS'!E31+'Form 1ASFS'!I31)-D44,0),ROUND(('Form 1SFS'!F20+'Form 1SFS'!F33+'Form 1SFS'!H20+'Form 1SFS'!H33)-D44,0))","v":0},null,{"$f":"IF('Insurer Information'!$C$2=\"IFRS\",ROUND(('Form 1ASFS'!G18+'Form 1ASFS'!K18+'Form 1ASFS'!G31+'Form 1ASFS'!K31)-F44,0),ROUND(('Form 1SFS'!G20+'Form 1SFS'!G33+'Form 1SFS'!I20+'Form 1SFS'!I33)-F44,0))","v":0},null,{"$f":"IF('Insurer Information'!$C$2=\"IFRS\",ROUND(('Form 1ASFS'!E19+'Form 1ASFS'!I19+'Form 1ASFS'!E32+'Form 1ASFS'!I32)-D44,0),ROUND(('Form 1SFS'!F21+'Form 1SFS'!H21+'Form 1SFS'!F34+'Form 1SFS'!H34)-H44,0))","v":0},null,{"$f":"IF('Insurer Information'!$C$2=\"IFRS\",ROUND(('Form 1ASFS'!G19+'Form 1ASFS'!K19+'Form 1ASFS'!G32+'Form 1ASFS'!K32)-F44,0),ROUND(('Form 1SFS'!G21+'Form 1SFS'!I21+'Form 1SFS'!G34+'Form 1SFS'!I34)-J44,0))","v":0},null,{"$f":"IF('Insurer Information'!$C$2=\"IFRS\",ROUND(('Form 1ASFS'!E20+'Form 1ASFS'!I20+'Form 1ASFS'!E33+'Form 1ASFS'!I33)-L44,0),ROUND(('Form 1SFS'!F22+'Form 1SFS'!F35+'Form 1SFS'!H22+'Form 1SFS'!H35)-L44,0))","v":0},null,{"$f":"IF('Insurer Information'!$C$2=\"IFRS\",ROUND(('Form 1ASFS'!G20+'Form 1ASFS'!K20+'Form 1ASFS'!G33+'Form 1ASFS'!K33)-N44,0),ROUND(('Form 1SFS'!G22+'Form 1SFS'!G35+'Form 1SFS'!I22+'Form 1SFS'!I35)-N44,0))","v":0},null,null,null,null,null,{"$f":"IF('Insurer Information'!$C$2=\"IFRS\",ROUND(('Form 1ASFS'!E21+'Form 1ASFS'!I21+'Form 1ASFS'!E34+'Form 1ASFS'!I34)-T44,0),ROUND(('Form 1SFS'!F23+'Form 1SFS'!H23+'Form 1SFS'!F36+'Form 1SFS'!H36)-T44,0))","v":0},null,{"$f":"IF('Insurer Information'!$C$2=\"IFRS\",ROUND(('Form 1ASFS'!G21+'Form 1ASFS'!K21+'Form 1ASFS'!G34+'Form 1ASFS'!K34)-V44,0),ROUND(('Form 1SFS'!G23+'Form 1SFS'!I23+'Form 1SFS'!G36+'Form 1SFS'!I36)-V44,0))","v":0}]
[]
[null,null,null,{"$f":"IF(D46=\"False\",\"Does not equal Form 1SFS Lines 2(c)(i) & 3(c)(i)\",\"\")","v":""},null,{"$f":"IF(F46=\"False\",\"Does not equal Form 1SFS Lines 2(c)(i) & 3(c)(i)\",\"\")","v":""},null,{"$f":"IF(H46=\"False\",\"Does not equal Form 1SFS Lines 2(c)(ii) & 3(c)(ii)\",\"\")","v":""},null,{"$f":"IF(J46=\"False\",\"Does not equal Form 1SFS Lines 2(c)(ii) & 3(c)(ii)\",\"\")","v":""},null,{"$f":"IF(L46=\"False\",\"Does not equal Form 1SFS Lines 2(c)(iii) & 3(c)(iii)\",\"\")","v":""},null,{"$f":"IF(N46=\"False\",\"Does not equal Form 1SFS Lines 2(c)(iii) & 3(c)(iii)\",\"\")","v":""},null,null,null,null,null,{"$f":"IF(T46=\"False\",\"Does not equal Form 1SFS Lines 2(d) & 3(d)\",\"\")","v":""},null,{"$f":"IF(V46=\"False\",\"Does not equal Form 1SFS Lines 2(d) & 3(d)\",\"\")","v":""}]
[]
[null,null,null,"MORTGAGE LOANS\n[ Form 1SFS Lines 5(c) ]",null,null,null,null,"This Section is Only Applicable to Companies that have Mortgage Backed Securities that have been Reclassified in Accordance with the NAIC and that elect to use NAIC reclassifications to map to the BSCR classes"]
[null,null,null,{"$f":"'Form 4EBS'!F6","v":"2023-12-31"},null,{"$f":"'Form 4EBS'!H6","v":"2022-12-31"},null,null,null,null,null,"VALUES OF RESIDENTIAL MORTGAGE-BACKED SECURITIES",null,null,null,"VALUES OF COMMERCIAL MORTGAGE-BACKED SECURITIES / ASSET-BACKED SECURITIES"]
[null,null,null,{"$f":"CONFIGURATION!$D$12","v":" ('000s)"},null,{"$f":"CONFIGURATION!$D$12","v":" ('000s)"},null,null,null,null,null,"Original Classification",null,"Revised Classification",null,"Original Classification",null,"Revised Classification"]
[]
[null,"Mortgage Loans",null,null,null,null,null,null,null,"NAIC Class 1",null,{"$f":"Import!E1166","v":0},null,{"$f":"Import!E1173","v":0},null,{"$f":"Import!E1180","v":0},null,{"$f":"Import!E1187","v":0}]
[null,22,"Insured/Guaranteed Mortgages",{"$f":"Import!E1162","v":0},null,{"$f":"Import!G1162","v":0},null,null,null,"NAIC Class 2",null,{"$f":"Import!E1167","v":0},null,{"$f":"Import!E1174","v":0},null,{"$f":"Import!E1181","v":0},null,{"$f":"Import!E1188","v":0}]
[null,23,"Other Commercial and Farm Mortgages",{"$f":"Import!E1163","v":0},null,{"$f":"Import!G1163","v":0},null,null,null,"NAIC Class 3",null,{"$f":"Import!E1168","v":0},null,{"$f":"Import!E1175","v":0},null,{"$f":"Import!E1182","v":0},null,{"$f":"Import!E1189","v":0}]
[null,24,"Other Residential Mortgages",{"$f":"Import!E1164","v":0},null,{"$f":"Import!G1164","v":0},null,null,null,"NAIC Class 4",null,{"$f":"Import!E1169","v":0},null,{"$f":"Import!E1176","v":0},null,{"$f":"Import!E1183","v":0},null,{"$f":"Import!E1190","v":0}]
[null,25,"Mortgages Not In Good Standing",{"$f":"Import!E1165","v":0},null,{"$f":"Import!G1165","v":0},null,null,null,"NAIC Class 5",null,{"$f":"Import!E1170","v":0},null,{"$f":"Import!E1177","v":0},null,{"$f":"Import!E1184","v":0},null,{"$f":"Import!E1191","v":0}]
[null,null,null,null,null,null,null,null,null,"NAIC Class 6",null,{"$f":"Import!E1171","v":0},null,{"$f":"Import!E1178","v":0},null,{"$f":"Import!E1185","v":0},null,{"$f":"Import!E1192","v":0}]
[null,26,"Total",{"$f":"SUM(D57:D60)","v":0},null,{"$f":"SUM(F57:F60)","v":0}]
[null,null,null,null,null,null,null,null,null,null,null,{"$f":"SUM(L56:L61)","v":0},null,{"$f":"SUM(N56:N61)","v":0},null,{"$f":"SUM(P56:P61)","v":0},null,{"$f":"SUM(R56:R61)","v":0}]
[null,null,null,{"$f":"IF(D65=\"TRUE\",HYPERLINK(\"#'Form 1SFS'!F53:K53\",\"TRUE\"),HYPERLINK(\"#'Form 1SFS'!F53:K53\",\"FALSE\"))","v":"TRUE"},null,{"$f":"IF(F65=\"TRUE\",HYPERLINK(\"#'Form 1SFS'!G53:M53\",\"TRUE\"),HYPERLINK(\"#'Form 1SFS'!G53:M53\",\"FALSE\"))","v":"TRUE"}]
[null,null,null,{"$f":"IF('Insurer Information'!$C$2=\"IFRS\",IF(ROUND((D62-('Form 1ASFS'!E51+'Form 1ASFS'!I51)),0)=0,\"TRUE\",\"FALSE\"),IF(ROUND((D62-('Form 1SFS'!F53+'Form 1SFS'!H53)),0)=0,\"TRUE\",\"FALSE\"))","v":"TRUE"},null,{"$f":"IF('Insurer Information'!$C$2=\"IFRS\",IF(ROUND((F62-('Form 1ASFS'!G51+'Form 1ASFS'!K51)),0)=0,\"TRUE\",\"FALSE\"),IF(ROUND((F62-('Form 1SFS'!G53+'Form 1SFS'!I53)),0)=0,\"TRUE\",\"FALSE\"))","v":"TRUE"}]
[null,null,"Difference",{"$f":"IF('Insurer Information'!$C$2=\"IFRS\",ROUND(('Form 1ASFS'!E51+'Form 1ASFS'!I51)-D62,0),ROUND(('Form 1SFS'!F53+'Form 1SFS'!H53)-D62,0))","v":0},null,{"$f":"IF('Insurer Information'!$C$2=\"IFRS\",ROUND(('Form 1ASFS'!G51+'Form 1ASFS'!K51)-F62,0),ROUND(('Form 1SFS'!G53+'Form 1SFS'!I53)-F62,0))","v":0},null,null,null,{"$f":"IF('Insurer Information'!F9=\"Class C\",HYPERLINK(\"#'Attachments'!G45\",\"Attach file\"),HYPERLINK(\"#'Attachments'!G65\",\"Attach file\"))","v":"Attach file"}]
[]
[null,null,"Please include in the table below any assets, included in this Schedule, for which NAIC ratings were used to map to the BSCR rating classes"]
[null,null,"Information on the use of NAIC ratings\n(for disclosure purposes only)","CORPORATE & SOVEREIGN BONDS",null,"RESIDENTIAL MORTGAGE-BACKED SECURITIES",null,"COMMERCIAL MORTGAGE-BACKED SECURITIES / ASSET-BACKED SECURITIES",null,"BOND MUTUAL FUNDS",null,"MORTGAGE LOANS",null,"PREFERRED STOCKS",null,"OTHER ASSETS"]
[null,null,"NAIC Class 1",{"$f":"Import!E1194","v":0},null,{"$f":"Import!E1201","v":0},null,{"$f":"Import!E1208","v":0},null,{"$f":"Import!E1215","v":0},null,{"$f":"Import!E1222","v":0},null,{"$f":"Import!E1229","v":0},null,{"$f":"Import!E1236","v":0}]
[null,null,"NAIC Class 2",{"$f":"Import!E1195","v":0},null,{"$f":"Import!E1202","v":0},null,{"$f":"Import!E1209","v":0},null,{"$f":"Import!E1216","v":0},null,{"$f":"Import!E1223","v":0},null,{"$f":"Import!E1230","v":0},null,{"$f":"Import!E1237","v":0}]
[null,null,"NAIC Class 3",{"$f":"Import!E1196","v":0},null,{"$f":"Import!E1203","v":0},null,{"$f":"Import!E1210","v":0},null,{"$f":"Import!E1217","v":0},null,{"$f":"Import!E1224","v":0},null,{"$f":"Import!E1231","v":0},null,{"$f":"Import!E1238","v":0}]
[null,null,"NAIC Class 4",{"$f":"Import!E1197","v":0},null,{"$f":"Import!E1204","v":0},null,{"$f":"Import!E1211","v":0},null,{"$f":"Import!E1218","v":0},null,{"$f":"Import!E1225","v":0},null,{"$f":"Import!E1232","v":0},null,{"$f":"Import!E1239","v":0}]
[null,null,"NAIC Class 5",{"$f":"Import!E1198","v":0},null,{"$f":"Import!E1205","v":0},null,{"$f":"Import!E1212","v":0},null,{"$f":"Import!E1219","v":0},null,{"$f":"Import!E1226","v":0},null,{"$f":"Import!E1233","v":0},null,{"$f":"Import!E1240","v":0}]
[null,null,"NAIC Class 6",{"$f":"Import!E1199","v":0},null,{"$f":"Import!E1206","v":0},null,{"$f":"Import!E1213","v":0},null,{"$f":"Import!E1220","v":0},null,{"$f":"Import!E1227","v":0},null,{"$f":"Import!E1234","v":0},null,{"$f":"Import!E1241","v":0}]
[null,null,null,{"$f":"SUM(D70:D75)","v":0},null,{"$f":"SUM(F70:F75)","v":0},null,{"$f":"SUM(H70:H75)","v":0},null,{"$f":"SUM(J70:J75)","v":0},null,{"$f":"SUM(L70:L75)","v":0},null,{"$f":"SUM(N70:N75)","v":0},null,{"$f":"SUM(P70:P75)","v":0}]

{"sheet":"Schedule II (EBS)","index":26,"n_rows":76,"n_cols":22,"rows_kept":76,"cut":false,"hidden":false,"merged":[[28,19,28,21],[51,3,51,5],[28,11,28,13],[51,8,51,18],[6,19,6,21],[6,3,6,5],[6,7,6,9],[6,11,6,13],[28,7,28,9],[52,11,52,13],[52,15,52,17],[28,3,28,5],[6,15,6,17],[1,2,1,4],[2,3,2,5],[3,3,3,5]]}
[null,"SCHEDULE OF FIXED INCOME & EQUITY INVESTMENTS BY BSCR RATING",null,null,null,null,null,null,null,null,null,null,null,null,null,null,null,null,null,null,null,{"$f":"HYPERLINK(\"#'Index'!A1\",\"Return to Index\")","v":"Return to Index"}]
[null,null,{"$f":"'Insurer Information'!C7","v":"Enter Company Name"}]
[null,null,"As at",{"$f":" TEXT('Insurer Information'!C3,\"D MMMM YYYY\")","v":"31 December 2023"},null,null,null,null,null,null,null,null,null,null,null,null,null,null,null,null,null,"SCHEDULE II (EBS)"]
[null,null,{"$f":"\"Expressed in \" & IF(CONFIGURATION!$B$12>1,\" ['\"&MID(CONFIGURATION!$B$12,2,LEN(CONFIGURATION!$B$12))&\"s]\",\"\")","v":"Expressed in  ['000s]"},{"$f":"'Form 4EBS'!C4","v":"United States Dollars"}]
[]
[null,null,null,"(1)",null,"(2)",null,"(3)",null,"(4)",null,"(5)",null,"(6)",null,"(7)",null,"(8)",null,"(9)",null,"(10)"]
[null,null,null,"CORPORATE & SOVEREIGN BONDS",null,null,null,"RESIDENTIAL MORTGAGE-BACKED SECURITIES",null,null,null,"COMMERCIAL MORTGAGE-BACKED SECURITIES / ASSET-BACKED SECURITIES",null,null,null,"BOND MUTUAL FUNDS",null,null,null,"TOTAL\n[ Form 4EBS Lines 2(b) & 3(b)]"]
[null,null,null,{"$f":"'Form 4EBS'!F6","v":"2023-12-31"},null,{"$f":"'Form 4EBS'!H6","v":"2022-12-31"},null,{"$f":"'Form 4EBS'!F6","v":"2023-12-31"},null,{"$f":"'Form 4EBS'!H6","v":"2022-12-31"},null,{"$f":"'Form 4EBS'!F6","v":"2023-12-31"},null,{"$f":"'Form 4EBS'!H6","v":"2022-12-31"},null,{"$f":"'Form 4EBS'!F6","v":"2023-12-31"},null,{"$f":"'Form 4EBS'!H6","v":"2022-12-31"},null,{"$f":"D8","v":"2023-12-31"},null,{"$f":"F8","v":"2022-12-31"}]
[null,null,null,{"$f":"CONFIGURATION!$D$12","v":" ('000s)"},null,{"$f":"CONFIGURATION!$D$12","v":" ('000s)"},null,{"$f":"CONFIGURATION!$D$12","v":" ('000s)"},null,{"$f":"CONFIGURATION!$D$12","v":" ('000s)"},null,{"$f":"CONFIGURATION!$D$12","v":" ('000s)"},null,{"$f":"CONFIGURATION!$D$12","v":" ('000s)"},null,{"$f":"CONFIGURATION!$D$12","v":" ('000s)"},null,{"$f":"CONFIGURATION!$D$12","v":" ('000s)"},null,{"$f":"CONFIGURATION!$D$12","v":" ('000s)"},null,{"$f":"CONFIGURATION!$D$12","v":" ('000s)"}]
[null,"Line no. "]
[null,"Quoted and Unquoted Bonds and Debentures"]
[null,1,"BSCR Rating 0",{"$f":"Import!M1116","v":0},null,{"$f":"Import!O1116","v":0},null,null,null,null,null,null,null,null,null,{"$f":"Import!M1141","v":0},null,{"$f":"Import!O1141","v":0},null,{"$f":"D12+H12+L12+P12","v":0},null,{"$f":"F12+J12+N12+R12","v":0}]
[null,2,"BSCR Rating 1",{"$f":"Import!M1117","v":0},null,{"$f":"Import!O1117","v":0},null,{"$f":"Import!M1125","v":0},null,{"$f":"Import!O1125","v":0},null,{"$f":"Import!M1133","v":0},null,{"$f":"Import!O1133","v":0},null,{"$f":"Import!M1142","v":0},null,{"$f":"Import!O1142","v":0},null,0,null,0]
[null,3,"BSCR Rating 2",{"$f":"Import!M1118","v":0},null,{"$f":"Import!O1118","v":0},null,{"$f":"Import!M1126","v":0},null,{"$f":"Import!O1126","v":0},null,{"$f":"Import!M1134","v":0},null,{"$f":"Import!O1134","v":0},null,{"$f":"Import!M1143","v":0},null,{"$f":"Import!O1143","v":0},null,0,null,0]
[null,4,"BSCR Rating 3",{"$f":"Import!M1119","v":0},null,{"$f":"Import!O1119","v":0},null,{"$f":"Import!M1127","v":0},null,{"$f":"Import!O1127","v":0},null,{"$f":"Import!M1135","v":0},null,{"$f":"Import!O1135","v":0},null,{"$f":"Import!M1144","v":0},null,{"$f":"Import!O1144","v":0},null,0,null,0]
[null,5,"BSCR Rating 4",{"$f":"Import!M1120","v":0},null,{"$f":"Import!O1120","v":0},null,{"$f":"Import!M1128","v":0},null,{"$f":"Import!O1128","v":0},null,{"$f":"Import!M1136","v":0},null,{"$f":"Import!O1136","v":0},null,{"$f":"Import!M1145","v":0},null,{"$f":"Import!O1145","v":0},null,0,null,0]
[null,6,"BSCR Rating 5",{"$f":"Import!M1121","v":0},null,{"$f":"Import!O1121","v":0},null,{"$f":"Import!M1129","v":0},null,{"$f":"Import!O1129","v":0},null,{"$f":"Import!M1137","v":0},null,{"$f":"Import!O1137","v":0},null,{"$f":"Import!M1146","v":0},null,{"$f":"Import!O1146","v":0},null,0,null,0]
[null,7,"BSCR Rating 6",{"$f":"Import!M1122","v":0},null,{"$f":"Import!O1122","v":0},null,{"$f":"Import!M1130","v":0},null,{"$f":"Import!O1130","v":0},null,{"$f":"Import!M1138","v":0},null,{"$f":"Import!O1138","v":0},null,{"$f":"Import!M1147","v":0},null,{"$f":"Import!O1147","v":0},null,0,null,0]
[null,8,"BSCR Rating 7",{"$f":"Import!M1123","v":0},null,{"$f":"Import!O1123","v":0},null,{"$f":"Import!M1131","v":0},null,{"$f":"Import!O1131","v":0},null,{"$f":"Import!M1139","v":0},null,{"$f":"Import!O1139","v":0},null,{"$f":"Import!M1148","v":0},null,{"$f":"Import!O1148","v":0},null,0,null,0]
[null,9,"BSCR Rating 8",{"$f":"Import!M1124","v":0},null,{"$f":"Import!O1124","v":0},null,{"$f":"Import!M1132","v":0},null,{"$f":"Import!O1132","v":0},null,{"$f":"Import!M1140","v":0},null,{"$f":"Import!O1140","v":0},null,{"$f":"Import!M1149","v":0},null,{"$f":"Import!O1149","v":0},null,0,null,0]
[]
[null,10,"Total",{"$f":"SUM(D12:D20)","v":0},null,{"$f":"SUM(F12:F20)","v":0},null,{"$f":"SUM(H12:H20)","v":0},null,{"$f":"SUM(J12:J20)","v":0},null,{"$f":"SUM(L12:L20)","v":0},null,{"$f":"SUM(N12:N20)","v":0},null,{"$f":"SUM(P11:P20)","v":0},null,{"$f":"SUM(R11:R20)","v":0},null,{"$f":"SUM(T12:T20)","v":0},null,{"$f":"SUM(V12:V20)","v":0}]
[]
[null,null,null,null,null,null,null,null,null,null,null,null,null,null,null,null,null,null,null,{"$f":"IF(T25=\"TRUE\",HYPERLINK(\"#'Form 4EBS'!F13:F23\",\"TRUE\"),HYPERLINK(\"#'Form 4EBS'!F13:F23\",\"FALSE\"))","v":"TRUE"},null,{"$f":"IF(V25=\"TRUE\",HYPERLINK(\"#'Form 4EBS'!H13:H23\",\"TRUE\"),HYPERLINK(\"#'Form 4EBS'!H13:H23\",\"FALSE\"))","v":"TRUE"}]
[null,null,null,null,null,null,null,null,null,null,null,null,null,null,null,null,null,null,null,{"$f":"IF(ROUND((T22-('Form 4EBS'!F13+'Form 4EBS'!F23)),0)=0,\"TRUE\",\"FALSE\")","v":"TRUE"},null,{"$f":"IF(ROUND((V22-('Form 4EBS'!H13+'Form 4EBS'!H23)),0)=0,\"TRUE\",\"FALSE\")","v":"TRUE"}]
[null,null,"Difference",null,null,null,null,null,null,null,null,null,null,null,null,null,null,null,null,{"$f":"ROUND(('Form 4EBS'!F13+'Form 4EBS'!F23)-T22,0)","v":0},null,{"$f":"ROUND(('Form 4EBS'!H13+'Form 4EBS'!H23)-V22,0)","v":0}]
[]
[null,null,null,null,null,null,null,null,null,null,null,null,null,null,null,null,null,null,null,{"$f":"IF(T24=\"False\",\"Does not equal Form 4EBS Lines 2(b) & 3(b)\",\"\")","v":""},null,{"$f":"IF(V24=\"False\",\"Does not equal Form 4EBS Lines 2(b) & 3(b)\",\"\")","v":""}]
[null,null,null,"COMMON STOCK\n[ Form 4EBS Lines 2(c)(i) & 3(c)(i) ]",null,null,null,"PREFERRED STOCK\n[ Form 4EBS Lines 2(c)(ii) & 3(c)(ii) ]",null,null,null,"EQUITY MUTUAL FUNDS\n[ Form 4EBS Lines 2(c)(iii) & 3(c)(iii) ]",null,null,null,null,null,null,null,"TOTAL\n[ Form 4EBS Lines 2(d) & 3(d)]"]
[null,null,null,{"$f":"'Form 4EBS'!F6","v":"2023-12-31"},null,{"$f":"'Form 4EBS'!H6","v":"2022-12-31"},null,{"$f":"'Form 4EBS'!F6","v":"2023-12-31"},null,{"$f":"'Form 4EBS'!H6","v":"2022-12-31"},null,{"$f":"'Form 4EBS'!F6","v":"2023-12-31"},null,{"$f":"'Form 4EBS'!H6","v":"2022-12-31"},null,null,null,null,null,{"$f":"'Form 4EBS'!F6","v":"2023-12-31"},null,{"$f":"'Form 4EBS'!F6","v":"2023-12-31"}]
[null,null,null,{"$f":"CONFIGURATION!$D$12","v":" ('000s)"},null,{"$f":"CONFIGURATION!$D$12","v":" ('000s)"},null,{"$f":"CONFIGURATION!$D$12","v":" ('000s)"},null,{"$f":"CONFIGURATION!$D$12","v":" ('000s)"},null,{"$f":"CONFIGURATION!$D$12","v":" ('000s)"},null,{"$f":"CONFIGURATION!$D$12","v":" ('000s)"},null,null,null,null,null,{"$f":"CONFIGURATION!$D$12","v":" ('000s)"},null,{"$f":"CONFIGURATION!$D$12","v":" ('000s)"}]
[null,"Quoted and Unquoted Equities"]
[null,11,"BSCR Rating 1",null,null,null,null,{"$f":"Import!M1152","v":0},null,{"$f":"Import!O1152","v":0},null,null,null,null,null,null,null,null,null,{"$f":"D33+H33+L33","v":0},null,{"$f":"F33+J33+N33","v":0}]
[null,12,"BSCR Rating 2",null,null,null,null,{"$f":"Import!M1153","v":0},null,{"$f":"Import!O1153","v":0},null,null,null,null,null,null,null,null,null,0,null,0]
[null,13,"BSCR Rating 3",null,null,null,null,{"$f":"Import!M1154","v":0},null,{"$f":"Import!O1154","v":0},null,null,null,null,null,null,null,null,null,0,null,0]
[null,14,"BSCR Rating 4",null,null,null,null,{"$f":"Import!M1155","v":0},null,{"$f":"Import!O1155","v":0},null,null,null,null,null,null,null,null,null,0,null,0]
[null,15,"BSCR Rating 5",null,null,null,null,{"$f":"Import!M1156","v":0},null,{"$f":"Import!O1156","v":0},null,null,null,null,null,null,null,null,null,0,null,0]
[null,16,"BSCR Rating 6",null,null,null,null,{"$f":"Import!M1157","v":0},null,{"$f":"Import!O1157","v":0},null,null,null,null,null,null,null,null,null,0,null,0]
[null,17,"BSCR Rating 7",null,null,null,null,{"$f":"Import!M1158","v":0},null,{"$f":"Import!O1158","v":0},null,null,null,null,null,null,null,null,null,0,null,0]
[null,18,"BSCR Rating 8",null,null,null,null,{"$f":"Import!M1159","v":0},null,{"$f":"Import!O1159","v":0},null,null,null,null,null,null,null,null,null,0,null,0]
[null,19,"Quoted Equity Funds",{"$f":"'Form 4EBS'!F15","v":0},null,{"$f":"'Form 4EBS'!H15","v":0},null,null,null,null,null,{"$f":"+'Form 4EBS'!F17","v":0},null,{"$f":"+'Form 4EBS'!H17","v":0},null,null,null,null,null,0,null,0]
[null,20,"Unquoted Equity Funds",{"$f":"'Form 4EBS'!F25","v":0},null,{"$f":"'Form 4EBS'!H25","v":0},null,null,null,null,null,{"$f":"+'Form 4EBS'!F27","v":0},null,{"$f":"+'Form 4EBS'!H27","v":0},null,null,null,null,null,0,null,0]
[]
[null,21,"Total",{"$f":"SUM(D33:D42)","v":0},null,{"$f":"SUM(F33:F42)","v":0},null,{"$f":"SUM(H33:H42)","v":0},null,{"$f":"SUM(J33:J42)","v":0},null,{"$f":"SUM(L32:L42)","v":0},null,{"$f":"SUM(N32:N42)","v":0},null,null,null,null,null,{"$f":"SUM(T33:T42)","v":0},null,{"$f":"SUM(V33:V42)","v":0}]
[]
[null,null,null,{"$f":"IF(D47=\"TRUE\",HYPERLINK(\"#'Form 4EBS'!F15:F25\",\"TRUE\"),HYPERLINK(\"#'Form 4EBS'!F15:F25\",\"FALSE\"))","v":"TRUE"},null,{"$f":"IF(F47=\"TRUE\",HYPERLINK(\"#'Form 4EBS'!H15:H25\",\"TRUE\"),HYPERLINK(\"#'Form 4EBS'!H15:H25\",\"FALSE\"))","v":"TRUE"},null,{"$f":"IF(H47=\"TRUE\",HYPERLINK(\"#'Form 4EBS'!F16:F26\",\"TRUE\"),HYPERLINK(\"#'Form 4EBS'!F16:F26\",\"FALSE\"))","v":"TRUE"},null,{"$f":"IF(J47=\"TRUE\",HYPERLINK(\"#'Form 4EBS'!H16:H26\",\"TRUE\"),HYPERLINK(\"#'Form 4EBS'!H16:H26\",\"FALSE\"))","v":"TRUE"},null,{"$f":"IF(L47=\"TRUE\",HYPERLINK(\"#'Form 4EBS'!F17:F27\",\"TRUE\"),HYPERLINK(\"#'Form 4EBS'!F17:F27\",\"FALSE\"))","v":"TRUE"},null,{"$f":"IF(N47=\"TRUE\",HYPERLINK(\"#'Form 4EBS'!H17:H27\",\"TRUE\"),HYPERLINK(\"#'Form 4EBS'!H17:H27\",\"FALSE\"))","v":"TRUE"},null,null,null,null,null,{"$f":"IF(T47=\"TRUE\",HYPERLINK(\"#'Form 4EBS'!F15:F29\",\"TRUE\"),HYPERLINK(\"#'Form 4EBS'!F15:F29\",\"FALSE\"))","v":"TRUE"},null,{"$f":"IF(V47=\"TRUE\",HYPERLINK(\"#'Form 4EBS'!H15:H29\",\"TRUE\"),HYPERLINK(\"#'Form 4EBS'!H15:H29\",\"FALSE\"))","v":"TRUE"}]
[null,null,null,{"$f":"IF(ROUND((D44-('Form 4EBS'!F15+'Form 4EBS'!F25)),0)=0,\"TRUE\",\"FALSE\")","v":"TRUE"},null,{"$f":"IF(ROUND((F44-('Form 4EBS'!H15+'Form 4EBS'!H25)),0)=0,\"TRUE\",\"FALSE\")","v":"TRUE"},null,{"$f":"IF(ROUND((H44-('Form 4EBS'!F16+'Form 4EBS'!F26)),0)=0,\"TRUE\",\"FALSE\")","v":"TRUE"},null,{"$f":"IF(ROUND((J44-('Form 4EBS'!H16+'Form 4EBS'!H26)),0)=0,\"TRUE\",\"FALSE\")","v":"TRUE"},null,{"$f":"IF(ROUND((L44-('Form 4EBS'!F17+'Form 4EBS'!F27)),0)=0,\"TRUE\",\"FALSE\")","v":"TRUE"},null,{"$f":"IF(ROUND((N44-('Form 4EBS'!H17+'Form 4EBS'!H27)),0)=0,\"TRUE\",\"FALSE\")","v":"TRUE"},null,null,null,null,null,{"$f":"IF(ROUND((T44-('Form 4EBS'!F18+'Form 4EBS'!F28)),0)=0,\"TRUE\",\"FALSE\")","v":"TRUE"},null,{"$f":"IF(ROUND((V44-('Form 4EBS'!H18+'Form 4EBS'!H28)),0)=0,\"TRUE\",\"FALSE\")","v":"TRUE"}]
[null,null,"Difference",{"$f":"ROUND(('Form 4EBS'!F15+'Form 4EBS'!F25)-D44,0)","v":0},null,{"$f":"ROUND(('Form 4EBS'!H15+'Form 4EBS'!H25)-F44,0)","v":0},null,{"$f":"ROUND(('Form 4EBS'!F16+'Form 4EBS'!F26)-H44,0)","v":0},null,{"$f":"ROUND(('Form 4EBS'!H16+'Form 4EBS'!H26)-J44,0)","v":0},null,{"$f":"ROUND(('Form 4EBS'!F17+'Form 4EBS'!F27)-L44,0)","v":0},null,{"$f":"ROUND(('Form 4EBS'!H17+'Form 4EBS'!H27)-N44,0)","v":0},null,null,null,null,null,{"$f":"ROUND(('Form 4EBS'!F18+'Form 4EBS'!F28)-T44,0)","v":0},null,{"$f":"ROUND(('Form 4EBS'!H18+'Form 4EBS'!H28)-V44,0)","v":0}]
[]
[null,null,null,{"$f":"IF(D46=\"False\",\"Does not equal Form 4EBS Lines 2(c)(i) & 3(c)(i)\",\"\")","v":""},null,{"$f":"IF(F46=\"False\",\"Does not equal Form 4EBS Lines 2(c)(i) & 3(c)(i)\",\"\")","v":""},null,{"$f":"IF(H46=\"False\",\"Does not equal Form 4EBS Lines 2(c)(ii) & 3(c)(ii)\",\"\")","v":""},null,{"$f":"IF(J46=\"False\",\"Does not equal Form 4EBS Lines 2(c)(ii) & 3(c)(ii)\",\"\")","v":""},null,{"$f":"IF(L46=\"False\",\"Does not equal Form 4EBS Lines 2(c)(iii) & 3(c)(iii)\",\"\")","v":""},null,{"$f":"IF(N46=\"False\",\"Does not equal Form 4EBS Lines 2(c)(iii) & 3(c)(iii)\",\"\")","v":""},null,null,null,null,null,{"$f":"IF(T46=\"False\",\"Does not equal Form 4EBS Lines 2(d) & 3(d)\",\"\")","v":""},null,{"$f":"IF(V46=\"False\",\"Does not equal Form 4EBS Lines 2(d) & 3(d)\",\"\")","v":""}]
[]
[null,null,null,"MORTGAGE LOANS\n[ Form 4EBS Lines 5(c) ]",null,null,null,null,"This Section is Only Applicable to Companies that have Mortgage Backed Securities that have been Reclassified in Accordance with the NAIC and that elect to use NAIC reclassifications to map to the BSCR classes"]
[null,null,null,{"$f":"'Form 4EBS'!F6","v":"2023-12-31"},null,{"$f":"'Form 4EBS'!H6","v":"2022-12-31"},null,null,null,null,null,"VALUES OF RESIDENTIAL MORTGAGE-BACKED SECURITIES",null,null,null,"VALUES OF COMMERCIAL MORTGAGE-BACKED SECURITIES / ASSET-BACKED SECURITIES"]
[null,null,null,{"$f":"CONFIGURATION!$D$12","v":" ('000s)"},null,{"$f":"CONFIGURATION!$D$12","v":" ('000s)"},null,null,null,null,null,"Original Classification",null,"Revised Classification",null,"Original Classification",null,"Revised Classification"]
[null,null,null,null,null,null,null,null,null,"NAIC Class 1",null,{"$f":"Import!M1166","v":0},null,{"$f":"Import!M1173","v":0},null,{"$f":"Import!M1180","v":0},null,{"$f":"Import!M1187","v":0}]
[null,"Mortgage Loans",null,null,null,null,null,null,null,"NAIC Class 2",null,{"$f":"Import!M1167","v":0},null,{"$f":"Import!M1174","v":0},null,{"$f":"Import!M1181","v":0},null,{"$f":"Import!M1188","v":0}]
[null,22,"Insured/Guaranteed Mortgages",{"$f":"Import!M1162","v":0},null,{"$f":"Import!O1162","v":0},null,null,null,"NAIC Class 3",null,{"$f":"Import!M1168","v":0},null,{"$f":"Import!M1175","v":0},null,{"$f":"Import!M1182","v":0},null,{"$f":"Import!M1189","v":0}]
[null,23,"Other Commercial and Farm Mortgages",{"$f":"Import!M1163","v":0},null,{"$f":"Import!O1163","v":0},null,null,null,"NAIC Class 4",null,{"$f":"Import!M1169","v":0},null,{"$f":"Import!M1176","v":0},null,{"$f":"Import!M1183","v":0},null,{"$f":"Import!M1190","v":0}]
[null,24,"Other Residential Mortgages",{"$f":"Import!M1164","v":0},null,{"$f":"Import!O1164","v":0},null,null,null,"NAIC Class 5",null,{"$f":"Import!M1170","v":0},null,{"$f":"Import!M1177","v":0},null,{"$f":"Import!M1184","v":0},null,{"$f":"Import!M1191","v":0}]
[null,25,"Mortgages Not In Good Standing",{"$f":"Import!M1165","v":0},null,{"$f":"Import!O1165","v":0},null,null,null,"NAIC Class 6",null,{"$f":"Import!M1171","v":0},null,{"$f":"Import!M1178","v":0},null,{"$f":"Import!M1185","v":0},null,{"$f":"Import!M1192","v":0}]
[]
[null,26,"Total",{"$f":"SUM(D57:D60)","v":0},null,{"$f":"SUM(F57:F60)","v":0},null,null,null,null,null,{"$f":"SUM(L55:L60)","v":0},null,{"$f":"SUM(N55:N60)","v":0},null,{"$f":"SUM(P55:P60)","v":0},null,{"$f":"SUM(R55:R60)","v":0}]
[]
[null,null,null,{"$f":"IF(D65=\"TRUE\",HYPERLINK(\"#'Form 4EBS'!F45\",\"TRUE\"),HYPERLINK(\"#'Form 4EBS'!F45\",\"FALSE\"))","v":"TRUE"},null,{"$f":"IF(F65=\"TRUE\",HYPERLINK(\"#'Form 4EBS'!H45\",\"TRUE\"),HYPERLINK(\"#'Form 4EBS'!H45\",\"FALSE\"))","v":"TRUE"}]
[null,null,null,{"$f":"IF(ROUND((D62-'Form 4EBS'!F45),0)=0,\"TRUE\",\"FALSE\")","v":"TRUE"},null,{"$f":"IF(ROUND((F62-'Form 4EBS'!H45),0)=0,\"TRUE\",\"FALSE\")","v":"TRUE"}]
[null,null,"Difference",{"$f":"ROUND('Form 4EBS'!F45-D62,0)","v":0},null,{"$f":"ROUND('Form 4EBS'!H45-F62,0)","v":0},null,null,null,{"$f":"IF('Insurer Information'!F9=\"Class C\",HYPERLINK(\"#'Attachments'!G45\",\"Attach file\"),HYPERLINK(\"#'Attachments'!G65\",\"Attach file\"))","v":"Attach file"}]
[]
[null,null,"Please include in the table below any assets, included in this Schedule, for which NAIC ratings were used to map to the BSCR rating classes"]
[null,null,"Information on the use of NAIC ratings\n(for disclosure purposes only)","CORPORATE & SOVEREIGN BONDS",null,"RESIDENTIAL MORTGAGE-BACKED SECURITIES",null,"COMMERCIAL MORTGAGE-BACKED SECURITIES / ASSET-BACKED SECURITIES",null,"BOND MUTUAL FUNDS",null,"MORTGAGE LOANS",null,"PREFERRED STOCKS",null,"OTHER ASSETS"]
[null,null,"NAIC Class 1",{"$f":"Import!M1194","v":0},null,{"$f":"Import!M1201","v":0},null,{"$f":"Import!M1208","v":0},null,{"$f":"Import!M1215","v":0},null,{"$f":"Import!M1222","v":0},null,{"$f":"Import!M1229","v":0},null,{"$f":"Import!M1236","v":0}]
[null,null,"NAIC Class 2",{"$f":"Import!M1195","v":0},null,{"$f":"Import!M1202","v":0},null,{"$f":"Import!M1209","v":0},null,{"$f":"Import!M1216","v":0},null,{"$f":"Import!M1223","v":0},null,{"$f":"Import!M1230","v":0},null,{"$f":"Import!M1237","v":0}]
[null,null,"NAIC Class 3",{"$f":"Import!M1196","v":0},null,{"$f":"Import!M1203","v":0},null,{"$f":"Import!M1210","v":0},null,{"$f":"Import!M1217","v":0},null,{"$f":"Import!M1224","v":0},null,{"$f":"Import!M1231","v":0},null,{"$f":"Import!M1238","v":0}]
[null,null,"NAIC Class 4",{"$f":"Import!M1197","v":0},null,{"$f":"Import!M1204","v":0},null,{"$f":"Import!M1211","v":0},null,{"$f":"Import!M1218","v":0},null,{"$f":"Import!M1225","v":0},null,{"$f":"Import!M1232","v":0},null,{"$f":"Import!M1239","v":0}]
[null,null,"NAIC Class 5",{"$f":"Import!M1198","v":0},null,{"$f":"Import!M1205","v":0},null,{"$f":"Import!M1212","v":0},null,{"$f":"Import!M1219","v":0},null,{"$f":"Import!M1226","v":0},null,{"$f":"Import!M1233","v":0},null,{"$f":"Import!M1240","v":0}]
[null,null,"NAIC Class 6",{"$f":"Import!M1199","v":0},null,{"$f":"Import!M1206","v":0},null,{"$f":"Import!M1213","v":0},null,{"$f":"Import!M1220","v":0},null,{"$f":"Import!M1227","v":0},null,{"$f":"Import!M1234","v":0},null,{"$f":"Import!M1241","v":0}]
[null,null,null,{"$f":"SUM(D70:D75)","v":0},null,{"$f":"SUM(F70:F75)","v":0},null,{"$f":"SUM(H70:H75)","v":0},null,{"$f":"SUM(J70:J75)","v":0},null,{"$f":"SUM(L70:L75)","v":0},null,{"$f":"SUM(N70:N75)","v":0},null,{"$f":"SUM(P70:P75)","v":0}]

{"sheet":"Schedule IIA","index":27,"n_rows":84,"n_cols":22,"rows_kept":84,"cut":false,"hidden":false,"merged":[[71,2,73,2],[51,3,51,5],[50,8,51,20],[52,11,52,13],[52,15,52,17],[63,3,63,5],[6,11,6,13],[6,15,6,17],[6,19,6,21],[28,3,28,5],[28,7,28,9],[28,11,28,13],[28,19,28,21],[28,15,28,17],[1,2,1,6],[2,3,2,5],[3,3,3,5],[6,3,6,5],[6,7,6,9]]}
[null,"SCHEDULE OF FUNDS HELD BY CEDING REINSURERS IN SEGREGATED ACCOUNTS / TRUSTS BY BSCR RATING",null,null,null,null,null,null,null,null,null,null,null,null,null,null,null,null,null,null,null,{"$f":"HYPERLINK(\"#'Index'!A1\",\"Return to Index\")","v":"Return to Index"}]
[null,null,{"$f":"'Insurer Information'!C7","v":"Enter Company Name"}]
[null,null,"As at",{"$f":" TEXT('Insurer Information'!C3,\"D MMMM YYYY\")","v":"31 December 2023"},null,null,null,null,null,null,null,null,null,null,null,null,null,null,null,null,null,"SCHEDULE IIA"]
[null,null,{"$f":"\"Expressed in \" & IF(CONFIGURATION!$B$12>1,\" ['\"&MID(CONFIGURATION!$B$12,2,LEN(CONFIGURATION!$B$12))&\"s]\",\"\")","v":"Expressed in  ['000s]"},{"$f":"'Form 4EBS'!C4","v":"United States Dollars"}]
[]
[null,null,null,"(1)",null,"(2)",null,"(3)",null,"(4)",null,"(5)",null,"(6)",null,"(7)",null,"(8)",null,"(9)",null,"(10)"]
[null,null,null,"CORPORATE & SOVEREIGN BONDS",null,null,null,"RESIDENTIAL MORTGAGE-BACKED SECURITIES",null,null,null,"COMMERCIAL MORTGAGE-BACKED SECURITIES / ASSET-BACKED SECURITIES",null,null,null,"BOND MUTUAL FUNDS",null,null,null,"TOTAL"]
[null,null,null,{"$f":"'Form 4EBS'!F6","v":"2023-12-31"},null,{"$f":"'Form 4EBS'!H6","v":"2022-12-31"},null,{"$f":"'Form 4EBS'!F6","v":"2023-12-31"},null,{"$f":"'Form 4EBS'!H6","v":"2022-12-31"},null,{"$f":"'Form 4EBS'!F6","v":"2023-12-31"},null,{"$f":"'Form 4EBS'!H6","v":"2022-12-31"},null,{"$f":"'Form 4EBS'!F6","v":"2023-12-31"},null,{"$f":"'Form 4EBS'!H6","v":"2022-12-31"},null,{"$f":"D8","v":"2023-12-31"},null,{"$f":"F8","v":"2022-12-31"}]
[null,null,null,{"$f":"CONFIGURATION!$D$12","v":" ('000s)"},null,{"$f":"CONFIGURATION!$D$12","v":" ('000s)"},null,{"$f":"CONFIGURATION!$D$12","v":" ('000s)"},null,{"$f":"CONFIGURATION!$D$12","v":" ('000s)"},null,{"$f":"CONFIGURATION!$D$12","v":" ('000s)"},null,{"$f":"CONFIGURATION!$D$12","v":" ('000s)"},null,{"$f":"CONFIGURATION!$D$12","v":" ('000s)"},null,{"$f":"CONFIGURATION!$D$12","v":" ('000s)"},null,{"$f":"CONFIGURATION!$D$12","v":" ('000s)"},null,{"$f":"CONFIGURATION!$D$12","v":" ('000s)"}]
[null,"Line no. "]
[null,"Quoted and Unquoted Bonds and Debentures"]
[null,1,"BSCR Rating 0",{"$f":"Import!E1244","v":0},null,{"$f":"Import!G1244","v":0},null,null,null,null,null,null,null,null,null,{"$f":"Import!E1269","v":0},null,{"$f":"Import!G1269","v":0},null,{"$f":"D12+H12+L12+P12","v":0},null,{"$f":"F12+J12+N12+R12","v":0}]
[null,2,"BSCR Rating 1",{"$f":"Import!E1245","v":0},null,{"$f":"Import!G1245","v":0},null,{"$f":"Import!E1253","v":0},null,{"$f":"Import!G1253","v":0},null,{"$f":"Import!E1261","v":0},null,{"$f":"Import!G1261","v":0},null,{"$f":"Import!E1270","v":0},null,{"$f":"Import!G1270","v":0},null,{"$f":"D13+H13+L13+P13","v":0},null,0]
[null,3,"BSCR Rating 2",{"$f":"Import!E1246","v":0},null,{"$f":"Import!G1246","v":0},null,{"$f":"Import!E1254","v":0},null,{"$f":"Import!G1254","v":0},null,{"$f":"Import!E1262","v":0},null,{"$f":"Import!G1262","v":0},null,{"$f":"Import!E1271","v":0},null,{"$f":"Import!G1271","v":0},null,0,null,0]
[null,4,"BSCR Rating 3",{"$f":"Import!E1247","v":0},null,{"$f":"Import!G1247","v":0},null,{"$f":"Import!E1255","v":0},null,{"$f":"Import!G1255","v":0},null,{"$f":"Import!E1263","v":0},null,{"$f":"Import!G1263","v":0},null,{"$f":"Import!E1272","v":0},null,{"$f":"Import!G1272","v":0},null,0,null,0]
[null,5,"BSCR Rating 4",{"$f":"Import!E1248","v":0},null,{"$f":"Import!G1248","v":0},null,{"$f":"Import!E1256","v":0},null,{"$f":"Import!G1256","v":0},null,{"$f":"Import!E1264","v":0},null,{"$f":"Import!G1264","v":0},null,{"$f":"Import!E1273","v":0},null,{"$f":"Import!G1273","v":0},null,0,null,0]
[null,6,"BSCR Rating 5",{"$f":"Import!E1249","v":0},null,{"$f":"Import!G1249","v":0},null,{"$f":"Import!E1257","v":0},null,{"$f":"Import!G1257","v":0},null,{"$f":"Import!E1265","v":0},null,{"$f":"Import!G1265","v":0},null,{"$f":"Import!E1274","v":0},null,{"$f":"Import!G1274","v":0},null,0,null,0]
[null,7,"BSCR Rating 6",{"$f":"Import!E1250","v":0},null,{"$f":"Import!G1250","v":0},null,{"$f":"Import!E1258","v":0},null,{"$f":"Import!G1258","v":0},null,{"$f":"Import!E1266","v":0},null,{"$f":"Import!G1266","v":0},null,{"$f":"Import!E1275","v":0},null,{"$f":"Import!G1275","v":0},null,0,null,0]
[null,8,"BSCR Rating 7",{"$f":"Import!E1251","v":0},null,{"$f":"Import!G1251","v":0},null,{"$f":"Import!E1259","v":0},null,{"$f":"Import!G1259","v":0},null,{"$f":"Import!E1267","v":0},null,{"$f":"Import!G1267","v":0},null,{"$f":"Import!E1276","v":0},null,{"$f":"Import!G1276","v":0},null,0,null,0]
[null,9,"BSCR Rating 8",{"$f":"Import!E1252","v":0},null,{"$f":"Import!G1252","v":0},null,{"$f":"Import!E1260","v":0},null,{"$f":"Import!G1260","v":0},null,{"$f":"Import!E1268","v":0},null,{"$f":"Import!G1268","v":0},null,{"$f":"Import!E1277","v":0},null,{"$f":"Import!G1277","v":0},null,0,null,0]
[]
[null,10,"Total",{"$f":"SUM(D12:D20)","v":0},null,{"$f":"SUM(F12:F20)","v":0},null,{"$f":"SUM(H12:H20)","v":0},null,{"$f":"SUM(J12:J20)","v":0},null,{"$f":"SUM(L12:L20)","v":0},null,{"$f":"SUM(N12:N20)","v":0},null,{"$f":"SUM(P12:P20)","v":0},null,{"$f":"SUM(R12:R20)","v":0},null,{"$f":"SUM(T12:T20)","v":0},null,{"$f":"SUM(V12:V20)","v":0}]
[]
[]
[]
[]
[]
[]
[null,null,null,"COMMON STOCK",null,null,null,"PREFERRED STOCK",null,null,null,"EQUITY MUTUAL FUNDS",null,null,null,"OTHER INVESTMENTS",null,null,null,"TOTAL\n"]
[null,null,null,{"$f":"'Form 4EBS'!F6","v":"2023-12-31"},null,{"$f":"'Form 4EBS'!H6","v":"2022-12-31"},null,{"$f":"'Form 4EBS'!F6","v":"2023-12-31"},null,{"$f":"'Form 4EBS'!H6","v":"2022-12-31"},null,{"$f":"'Form 4EBS'!F6","v":"2023-12-31"},null,{"$f":"'Form 4EBS'!H6","v":"2022-12-31"},null,{"$f":"'Form 4EBS'!F6","v":"2023-12-31"},null,{"$f":"'Form 4EBS'!L6","v":"00:00:00"},null,{"$f":"'Form 4EBS'!F6","v":"2023-12-31"},null,{"$f":"'Form 4EBS'!F6","v":"2023-12-31"}]
[null,null,null,{"$f":"CONFIGURATION!$D$12","v":" ('000s)"},null,{"$f":"CONFIGURATION!$D$12","v":" ('000s)"},null,{"$f":"CONFIGURATION!$D$12","v":" ('000s)"},null,{"$f":"CONFIGURATION!$D$12","v":" ('000s)"},null,{"$f":"CONFIGURATION!$D$12","v":" ('000s)"},null,{"$f":"CONFIGURATION!$D$12","v":" ('000s)"},null,{"$f":"CONFIGURATION!$D$12","v":" ('000s)"},null,{"$f":"CONFIGURATION!$D$12","v":" ('000s)"},null,{"$f":"CONFIGURATION!$D$12","v":" ('000s)"},null,{"$f":"CONFIGURATION!$D$12","v":" ('000s)"}]
[null,"Quoted and Unquoted Equities"]
[null,11,"BSCR Rating 1",null,null,null,null,{"$f":"Import!E1280","v":0},null,{"$f":"Import!G1280","v":0},null,null,null,null,null,null,null,null,null,{"$f":"D33+H33+L33","v":0},null,{"$f":"F33+J33+N33","v":0}]
[null,12,"BSCR Rating 2",null,null,null,null,{"$f":"Import!E1281","v":0},null,{"$f":"Import!G1281","v":0},null,null,null,null,null,null,null,null,null,0,null,0]
[null,13,"BSCR Rating 3",null,null,null,null,{"$f":"Import!E1282","v":0},null,{"$f":"Import!G1282","v":0},null,null,null,null,null,null,null,null,null,0,null,0]
[null,14,"BSCR Rating 4",null,null,null,null,{"$f":"Import!E1283","v":0},null,{"$f":"Import!G1283","v":0},null,null,null,null,null,null,null,null,null,0,null,0]
[null,15,"BSCR Rating 5",null,null,null,null,{"$f":"Import!E1284","v":0},null,{"$f":"Import!G1284","v":0},null,null,null,null,null,null,null,null,null,0,null,0]
[null,16,"BSCR Rating 6",null,null,null,null,{"$f":"Import!E1285","v":0},null,{"$f":"Import!G1285","v":0},null,null,null,null,null,null,null,null,null,0,null,0]
[null,17,"BSCR Rating 7",null,null,null,null,{"$f":"Import!E1286","v":0},null,{"$f":"Import!G1286","v":0},null,null,null,null,null,null,null,null,null,0,null,0]
[null,18,"BSCR Rating 8",null,null,null,null,{"$f":"Import!E1287","v":0},null,{"$f":"Import!G1287","v":0},null,null,null,null,null,null,null,null,null,0,null,0]
[null,19,"Quoted Equity Funds",{"$f":"Import!E1278","v":0},null,{"$f":"Import!G1278","v":0},null,null,null,null,null,{"$f":"Import!E1288","v":0},null,{"$f":"Import!G1288","v":0},null,{"$f":"Import!E1290","v":0},null,{"$f":"Import!G1290","v":0},null,{"$f":"D41+H41+L41+P41","v":0},null,{"$f":"F41+J41+N41+R41","v":0}]
[null,20,"Unquoted Equity Funds",{"$f":"Import!E1279","v":0},null,{"$f":"Import!G1279","v":0},null,null,null,null,null,{"$f":"Import!E1289","v":0},null,{"$f":"Import!G1289","v":0},null,{"$f":"Import!E1291","v":0},null,{"$f":"Import!G1291","v":0},null,{"$f":"D42+H42+L42+P42","v":0},null,{"$f":"F42+J42+N42+R42","v":0}]
[]
[null,21,"Total",{"$f":"SUM(D33:D42)","v":0},null,{"$f":"SUM(F33:F42)","v":0},null,{"$f":"SUM(H33:H42)","v":0},null,{"$f":"SUM(J33:J42)","v":0},null,{"$f":"SUM(L33:L42)","v":0},null,{"$f":"SUM(N33:N42)","v":0},null,{"$f":"SUM(P33:P42)","v":0},null,{"$f":"SUM(R33:R42)","v":0},null,{"$f":"SUM(T33:T42)","v":0},null,{"$f":"SUM(V33:V42)","v":0}]
[]
[]
[]
[]
[]
[]
[null,null,null,null,null,null,null,null,"This Section is Only Applicable to Companies that have Mortgage Backed Securities that have been Reclassified in Accordance with the NAIC and that elect to use NAIC reclassifications to map to the BSCR classes"]
[null,null,null,"MORTGAGE LOANS"]
[null,null,null,{"$f":"'Form 4EBS'!F6","v":"2023-12-31"},null,{"$f":"'Form 4EBS'!H6","v":"2022-12-31"},null,null,null,null,null,"VALUES OF RESIDENTIAL MORTGAGE-BACKED SECURITIES",null,null,null,"VALUES OF COMMERCIAL MORTGAGE-BACKED SECURITIES / ASSET-BACKED SECURITIES"]
[null,null,null,{"$f":"CONFIGURATION!$D$12","v":" ('000s)"},null,{"$f":"CONFIGURATION!$D$12","v":" ('000s)"},null,null,null,null,null,"Original Classification",null,"Revised Classification",null,"Original Classification",null,"Revised Classification"]
[null,null,null,null,null,null,null,null,null,"NAIC Class 1",null,{"$f":"Import!E1297","v":0},null,{"$f":"Import!E1304","v":0},null,{"$f":"Import!E1311","v":0},null,{"$f":"Import!E1318","v":0}]
[null,"Mortgage Loans",null,null,null,null,null,null,null,"NAIC Class 2",null,{"$f":"Import!E1298","v":0},null,{"$f":"Import!E1305","v":0},null,{"$f":"Import!E1312","v":0},null,{"$f":"Import!E1319","v":0}]
[null,22,"Insured/Guaranteed Mortgages",{"$f":"Import!E1292","v":0},null,{"$f":"Import!G1292","v":0},null,null,null,"NAIC Class 3",null,{"$f":"Import!E1299","v":0},null,{"$f":"Import!E1306","v":0},null,{"$f":"Import!E1313","v":0},null,{"$f":"Import!E1320","v":0}]
[null,23,"Other Commercial and Farm Mortgages",{"$f":"Import!E1293","v":0},null,{"$f":"Import!G1293","v":0},null,null,null,"NAIC Class 4",null,{"$f":"Import!E1300","v":0},null,{"$f":"Import!E1307","v":0},null,{"$f":"Import!E1314","v":0},null,{"$f":"Import!E1321","v":0}]
[null,24,"Other Residential Mortgages",{"$f":"Import!E1294","v":0},null,{"$f":"Import!G1294","v":0},null,null,null,"NAIC Class 5",null,{"$f":"Import!E1301","v":0},null,{"$f":"Import!E1308","v":0},null,{"$f":"Import!E1315","v":0},null,{"$f":"Import!E1322","v":0}]
[null,25,"Mortgages Not In Good Standing",{"$f":"Import!E1295","v":0},null,{"$f":"Import!G1295","v":0},null,null,null,"NAIC Class 6",null,{"$f":"Import!E1302","v":0},null,{"$f":"Import!E1309","v":0},null,{"$f":"Import!E1316","v":0},null,{"$f":"Import!E1323","v":0}]
[]
[null,26,"Total",{"$f":"SUM(D57:D60)","v":0},null,{"$f":"SUM(F57:F60)","v":0},null,null,null,null,null,{"$f":"SUM(L55:L60)","v":0},null,{"$f":"SUM(N55:N60)","v":0},null,{"$f":"SUM(P55:P60)","v":0},null,{"$f":"SUM(R55:R60)","v":0}]
[]
[null,null,null,"CASH AND CASH EQUIVALENTS"]
[null,null,null,{"$f":"'Form 4EBS'!F6","v":"2023-12-31"},null,{"$f":"'Form 4EBS'!H6","v":"2022-12-31"},null,null,null,{"$f":"IF('Insurer Information'!F9=\"Class C\",HYPERLINK(\"#'Attachments'!G45\",\"Attach file\"),HYPERLINK(\"#'Attachments'!G65\",\"Attach file\"))","v":"Attach file"}]
[null,null,null,{"$f":"CONFIGURATION!$D$12","v":" ('000s)"},null,{"$f":"CONFIGURATION!$D$12","v":" ('000s)"}]
[]
[null,27,"Cash and Cash Equivalents",{"$f":"Import!E1296","v":0},null,{"$f":"Import!G1296","v":0}]
[]
[null,null,null,{"$f":"'Form 4EBS'!F6","v":"2023-12-31"},null,{"$f":"'Form 4EBS'!H6","v":"2022-12-31"}]
[null,null,null,{"$f":"CONFIGURATION!$D$12","v":" ('000s)"},null,{"$f":"CONFIGURATION!$D$12","v":" ('000s)"}]
[null,null,"Total Funds Held by Ceding Reinsurers in Segregated Accounts / Trusts (Lines 10, 21, 26 and 27)"]
[]
[null,{"$f":"B68+1","v":28},null,{"$f":"T22+T44+D62+D68","v":0},null,{"$f":"V22+V44+F62+F68","v":0}]
[]
[null,null,"Please include in the table below any assets, included in this Schedule, for which NAIC ratings were used to map to the BSCR rating classes"]
[null,null,"Information on the use of NAIC ratings\n(for disclosure purposes only)","CORPORATE & SOVEREIGN BONDS",null,"RESIDENTIAL MORTGAGE-BACKED SECURITIES",null,"COMMERCIAL MORTGAGE-BACKED SECURITIES / ASSET-BACKED SECURITIES",null,"BOND MUTUAL FUNDS",null,"MORTGAGE LOANS",null,"PREFERRED STOCKS",null,"OTHER ASSETS"]
[null,null,"NAIC Class 1",{"$f":"Import!E1325","v":0},null,{"$f":"Import!E1332","v":0},null,{"$f":"Import!E1339","v":0},null,{"$f":"Import!E1346","v":0},null,{"$f":"Import!E1353","v":0},null,{"$f":"Import!E1360","v":0},null,{"$f":"Import!E1367","v":0}]
[null,null,"NAIC Class 2",{"$f":"Import!E1326","v":0},null,{"$f":"Import!E1333","v":0},null,{"$f":"Import!E1340","v":0},null,{"$f":"Import!E1347","v":0},null,{"$f":"Import!E1354","v":0},null,{"$f":"Import!E1361","v":0},null,{"$f":"Import!E1368","v":0}]
[null,null,"NAIC Class 3",{"$f":"Import!E1327","v":0},null,{"$f":"Import!E1334","v":0},null,{"$f":"Import!E1341","v":0},null,{"$f":"Import!E1348","v":0},null,{"$f":"Import!E1355","v":0},null,{"$f":"Import!E1362","v":0},null,{"$f":"Import!E1369","v":0}]
[null,null,"NAIC Class 4",{"$f":"Import!E1328","v":0},null,{"$f":"Import!E1335","v":0},null,{"$f":"Import!E1342","v":0},null,{"$f":"Import!E1349","v":0},null,{"$f":"Import!E1356","v":0},null,{"$f":"Import!E1363","v":0},null,{"$f":"Import!E1370","v":0}]
[null,null,"NAIC Class 5",{"$f":"Import!E1329","v":0},null,{"$f":"Import!E1336","v":0},null,{"$f":"Import!E1343","v":0},null,{"$f":"Import!E1350","v":0},null,{"$f":"Import!E1357","v":0},null,{"$f":"Import!E1364","v":0},null,{"$f":"Import!E1371","v":0}]
[null,null,"NAIC Class 6",{"$f":"Import!E1330","v":0},null,{"$f":"Import!E1337","v":0},null,{"$f":"Import!E1344","v":0},null,{"$f":"Import!E1351","v":0},null,{"$f":"Import!E1358","v":0},null,{"$f":"Import!E1365","v":0},null,{"$f":"Import!E1372","v":0}]
[null,null,null,{"$f":"SUM(D78:D83)","v":0},null,{"$f":"SUM(F78:F83)","v":0},null,{"$f":"SUM(H78:H83)","v":0},null,{"$f":"SUM(J78:J83)","v":0},null,{"$f":"SUM(L78:L83)","v":0},null,{"$f":"SUM(N78:N83)","v":0},null,{"$f":"SUM(P78:P83)","v":0}]

{"sheet":"Schedule IIA (EBS)","index":28,"n_rows":84,"n_cols":22,"rows_kept":84,"cut":false,"hidden":false,"merged":[[71,2,73,2],[63,3,63,5],[6,19,6,21],[28,3,28,5],[28,7,28,9],[28,11,28,13],[28,19,28,21],[6,15,6,17],[6,3,6,5],[6,7,6,9],[1,2,1,6],[2,3,2,5],[3,3,3,5],[50,8,51,20],[52,11,52,13],[52,15,52,17],[51,3,51,5],[6,11,6,13],[28,15,28,17]]}
[null,"SCHEDULE OF FUNDS HELD BY CEDING REINSURERS IN SEGREGATED ACCOUNTS / TRUSTS BY BSCR RATING",null,null,null,null,null,null,null,null,null,null,null,null,null,null,null,null,null,null,null,{"$f":"HYPERLINK(\"#'Index'!A1\",\"Return to Index\")","v":"Return to Index"}]
[null,null,{"$f":"'Insurer Information'!C7","v":"Enter Company Name"}]
[null,null,"As at",{"$f":" TEXT('Insurer Information'!C3,\"D MMMM YYYY\")","v":"31 December 2023"},null,null,null,null,null,null,null,null,null,null,null,null,null,null,null,null,null,"SCHEDULE IIA (EBS)"]
[null,null,{"$f":"\"Expressed in \" & IF(CONFIGURATION!$B$12>1,\" ['\"&MID(CONFIGURATION!$B$12,2,LEN(CONFIGURATION!$B$12))&\"s]\",\"\")","v":"Expressed in  ['000s]"},{"$f":"'Form 4EBS'!C4","v":"United States Dollars"}]
[]
[null,null,null,"(1)",null,"(2)",null,"(3)",null,"(4)",null,"(5)",null,"(6)",null,"(7)",null,"(8)",null,"(9)",null,"(10)"]
[null,null,null,"CORPORATE & SOVEREIGN BONDS",null,null,null,"RESIDENTIAL MORTGAGE-BACKED SECURITIES",null,null,null,"COMMERCIAL MORTGAGE-BACKED SECURITIES / ASSET-BACKED SECURITIES",null,null,null,"BOND MUTUAL FUNDS",null,null,null,"TOTAL"]
[null,null,null,{"$f":"'Form 4EBS'!F6","v":"2023-12-31"},null,{"$f":"'Form 4EBS'!H6","v":"2022-12-31"},null,{"$f":"'Form 4EBS'!F6","v":"2023-12-31"},null,{"$f":"'Form 4EBS'!H6","v":"2022-12-31"},null,{"$f":"'Form 4EBS'!F6","v":"2023-12-31"},null,{"$f":"'Form 4EBS'!H6","v":"2022-12-31"},null,{"$f":"'Form 4EBS'!F6","v":"2023-12-31"},null,{"$f":"'Form 4EBS'!H6","v":"2022-12-31"},null,{"$f":"D8","v":"2023-12-31"},null,{"$f":"F8","v":"2022-12-31"}]
[null,null,null,{"$f":"CONFIGURATION!$D$12","v":" ('000s)"},null,{"$f":"CONFIGURATION!$D$12","v":" ('000s)"},null,{"$f":"CONFIGURATION!$D$12","v":" ('000s)"},null,{"$f":"CONFIGURATION!$D$12","v":" ('000s)"},null,{"$f":"CONFIGURATION!$D$12","v":" ('000s)"},null,{"$f":"CONFIGURATION!$D$12","v":" ('000s)"},null,{"$f":"CONFIGURATION!$D$12","v":" ('000s)"},null,{"$f":"CONFIGURATION!$D$12","v":" ('000s)"},null,{"$f":"CONFIGURATION!$D$12","v":" ('000s)"},null,{"$f":"CONFIGURATION!$D$12","v":" ('000s)"}]
[null,"Line no. "]
[null,"Quoted and Unquoted Bonds and Debentures"]
[null,1,"BSCR Rating 0",{"$f":"Import!M1244","v":0},null,{"$f":"Import!O1244","v":0},null,null,null,null,null,null,null,null,null,{"$f":"Import!M1269","v":0},null,{"$f":"Import!O1269","v":0},null,{"$f":"D12+H12+L12+P12","v":0},null,{"$f":"F12+J12+N12+R12","v":0}]
[null,2,"BSCR Rating 1",{"$f":"Import!M1245","v":0},null,{"$f":"Import!O1245","v":0},null,{"$f":"Import!M1253","v":0},null,{"$f":"Import!O1253","v":0},null,{"$f":"Import!M1261","v":0},null,{"$f":"Import!O1261","v":0},null,{"$f":"Import!M1270","v":0},null,{"$f":"Import!O1270","v":0},null,{"$f":"D13+H13+L13+P13","v":0},null,0]
[null,3,"BSCR Rating 2",{"$f":"Import!M1246","v":0},null,{"$f":"Import!O1246","v":0},null,{"$f":"Import!M1254","v":0},null,{"$f":"Import!O1254","v":0},null,{"$f":"Import!M1262","v":0},null,{"$f":"Import!O1262","v":0},null,{"$f":"Import!M1271","v":0},null,{"$f":"Import!O1271","v":0},null,0,null,0]
[null,4,"BSCR Rating 3",{"$f":"Import!M1247","v":0},null,{"$f":"Import!O1247","v":0},null,{"$f":"Import!M1255","v":0},null,{"$f":"Import!O1255","v":0},null,{"$f":"Import!M1263","v":0},null,{"$f":"Import!O1263","v":0},null,{"$f":"Import!M1272","v":0},null,{"$f":"Import!O1272","v":0},null,0,null,0]
[null,5,"BSCR Rating 4",{"$f":"Import!M1248","v":0},null,{"$f":"Import!O1248","v":0},null,{"$f":"Import!M1256","v":0},null,{"$f":"Import!O1256","v":0},null,{"$f":"Import!M1264","v":0},null,{"$f":"Import!O1264","v":0},null,{"$f":"Import!M1273","v":0},null,{"$f":"Import!O1273","v":0},null,0,null,0]
[null,6,"BSCR Rating 5",{"$f":"Import!M1249","v":0},null,{"$f":"Import!O1249","v":0},null,{"$f":"Import!M1257","v":0},null,{"$f":"Import!O1257","v":0},null,{"$f":"Import!M1265","v":0},null,{"$f":"Import!O1265","v":0},null,{"$f":"Import!M1274","v":0},null,{"$f":"Import!O1274","v":0},null,0,null,0]
[null,7,"BSCR Rating 6",{"$f":"Import!M1250","v":0},null,{"$f":"Import!O1250","v":0},null,{"$f":"Import!M1258","v":0},null,{"$f":"Import!O1258","v":0},null,{"$f":"Import!M1266","v":0},null,{"$f":"Import!O1266","v":0},null,{"$f":"Import!M1275","v":0},null,{"$f":"Import!O1275","v":0},null,0,null,0]
[null,8,"BSCR Rating 7",{"$f":"Import!M1251","v":0},null,{"$f":"Import!O1251","v":0},null,{"$f":"Import!M1259","v":0},null,{"$f":"Import!O1259","v":0},null,{"$f":"Import!M1267","v":0},null,{"$f":"Import!O1267","v":0},null,{"$f":"Import!M1276","v":0},null,{"$f":"Import!O1276","v":0},null,0,null,0]
[null,9,"BSCR Rating 8",{"$f":"Import!M1252","v":0},null,{"$f":"Import!O1252","v":0},null,{"$f":"Import!M1260","v":0},null,{"$f":"Import!O1260","v":0},null,{"$f":"Import!M1268","v":0},null,{"$f":"Import!O1268","v":0},null,{"$f":"Import!M1277","v":0},null,{"$f":"Import!O1277","v":0},null,0,null,0]
[]
[null,10,"Total",{"$f":"SUM(D12:D20)","v":0},null,{"$f":"SUM(F12:F20)","v":0},null,{"$f":"SUM(H12:H20)","v":0},null,{"$f":"SUM(J12:J20)","v":0},null,{"$f":"SUM(L12:L20)","v":0},null,{"$f":"SUM(N12:N20)","v":0},null,{"$f":"SUM(P12:P20)","v":0},null,{"$f":"SUM(R12:R20)","v":0},null,{"$f":"SUM(T12:T20)","v":0},null,{"$f":"SUM(V12:V20)","v":0}]
[]
[]
[]
[]
[]
[]
[null,null,null,"COMMON STOCK",null,null,null,"PREFERRED STOCK",null,null,null,"EQUITY MUTUAL FUNDS",null,null,null,"OTHER INVESTMENTS",null,null,null,"TOTAL\n"]
[null,null,null,{"$f":"'Form 4EBS'!F6","v":"2023-12-31"},null,{"$f":"'Form 4EBS'!H6","v":"2022-12-31"},null,{"$f":"'Form 4EBS'!F6","v":"2023-12-31"},null,{"$f":"'Form 4EBS'!H6","v":"2022-12-31"},null,{"$f":"'Form 4EBS'!$F$6","v":"2023-12-31"},null,{"$f":"'Form 4EBS'!H6","v":"2022-12-31"},null,{"$f":"'Form 4EBS'!$F$6","v":"2023-12-31"},null,{"$f":"'Form 4EBS'!L6","v":"00:00:00"},null,{"$f":"'Form 4EBS'!F6","v":"2023-12-31"},null,{"$f":"'Form 4EBS'!F6","v":"2023-12-31"}]
[null,null,null,{"$f":"CONFIGURATION!$D$12","v":" ('000s)"},null,{"$f":"CONFIGURATION!$D$12","v":" ('000s)"},null,{"$f":"CONFIGURATION!$D$12","v":" ('000s)"},null,{"$f":"CONFIGURATION!$D$12","v":" ('000s)"},null,{"$f":"CONFIGURATION!$D$12","v":" ('000s)"},null,{"$f":"CONFIGURATION!$D$12","v":" ('000s)"},null,{"$f":"CONFIGURATION!$D$12","v":" ('000s)"},null,{"$f":"CONFIGURATION!$D$12","v":" ('000s)"},null,{"$f":"CONFIGURATION!$D$12","v":" ('000s)"},null,{"$f":"CONFIGURATION!$D$12","v":" ('000s)"}]
[null,"Quoted and Unquoted Equities"]
[null,11,"BSCR Rating 1",null,null,null,null,{"$f":"Import!M1280","v":0},null,{"$f":"Import!O1280","v":0},null,null,null,null,null,null,null,null,null,{"$f":"D33+H33+L33","v":0},null,{"$f":"F33+J33+N33","v":0}]
[null,12,"BSCR Rating 2",null,null,null,null,{"$f":"Import!M1281","v":0},null,{"$f":"Import!O1281","v":0},null,null,null,null,null,null,null,null,null,0,null,0]
[null,13,"BSCR Rating 3",null,null,null,null,{"$f":"Import!M1282","v":0},null,{"$f":"Import!O1282","v":0},null,null,null,null,null,null,null,null,null,0,null,0]
[null,14,"BSCR Rating 4",null,null,null,null,{"$f":"Import!M1283","v":0},null,{"$f":"Import!O1283","v":0},null,null,null,null,null,null,null,null,null,0,null,0]
[null,15,"BSCR Rating 5",null,null,null,null,{"$f":"Import!M1284","v":0},null,{"$f":"Import!O1284","v":0},null,null,null,null,null,null,null,null,null,0,null,0]
[null,16,"BSCR Rating 6",null,null,null,null,{"$f":"Import!M1285","v":0},null,{"$f":"Import!O1285","v":0},null,null,null,null,null,null,null,null,null,0,null,0]
[null,17,"BSCR Rating 7",null,null,null,null,{"$f":"Import!M1286","v":0},null,{"$f":"Import!O1286","v":0},null,null,null,null,null,null,null,null,null,0,null,0]
[null,18,"BSCR Rating 8",null,null,null,null,{"$f":"Import!M1287","v":0},null,{"$f":"Import!O1287","v":0},null,null,null,null,null,null,null,null,null,0,null,0]
[null,19,"Quoted Equity Funds",{"$f":"Import!M1278","v":0},null,{"$f":"Import!O1278","v":0},null,null,null,null,null,{"$f":"Import!M1288","v":0},null,{"$f":"Import!O1288","v":0},null,{"$f":"+Import!M1290","v":0},null,{"$f":"+Import!O1290","v":0},null,{"$f":"D41+H41+L41+P41","v":0},null,{"$f":"F41+J41+N41+R41","v":0}]
[null,20,"Unquoted Equity Funds",{"$f":"Import!M1279","v":0},null,{"$f":"Import!O1279","v":0},null,null,null,null,null,{"$f":"Import!M1289","v":0},null,{"$f":"Import!O1289","v":0},null,{"$f":"+Import!M1291","v":0},null,{"$f":"+Import!O1291","v":0},null,{"$f":"D42+H42+L42+P42","v":0},null,0]
[]
[null,21,"Total",{"$f":"SUM(D33:D42)","v":0},null,{"$f":"SUM(F33:F42)","v":0},null,{"$f":"SUM(H33:H42)","v":0},null,{"$f":"SUM(J33:J42)","v":0},null,{"$f":"SUM(L33:L42)","v":0},null,{"$f":"SUM(N33:N42)","v":0},null,{"$f":"SUM(P33:P42)","v":0},null,{"$f":"SUM(R33:R42)","v":0},null,{"$f":"SUM(T33:T42)","v":0},null,{"$f":"SUM(V33:V42)","v":0}]
[]
[]
[]
[]
[]
[]
[null,null,null,null,null,null,null,null,"This Section is Only Applicable to Companies that have Mortgage Backed Securities that have been Reclassified in Accordance with the NAIC and that elect to use NAIC reclassifications to map to the BSCR classes"]
[null,null,null,"MORTGAGE LOANS"]
[null,null,null,{"$f":"'Form 4EBS'!F6","v":"2023-12-31"},null,{"$f":"'Form 4EBS'!H6","v":"2022-12-31"},null,null,null,null,null,"VALUES OF RESIDENTIAL MORTGAGE-BACKED SECURITIES",null,null,null,"VALUES OF COMMERCIAL MORTGAGE-BACKED SECURITIES / ASSET-BACKED SECURITIES"]
[null,null,null,{"$f":"CONFIGURATION!$D$12","v":" ('000s)"},null,{"$f":"CONFIGURATION!$D$12","v":" ('000s)"},null,null,null,null,null,"Original Classification",null,"Revised Classification",null,"Original Classification",null,"Revised Classification"]
[null,null,null,null,null,null,null,null,null,"NAIC Class 1",null,{"$f":"Import!M1297","v":0},null,{"$f":"Import!M1304","v":0},null,{"$f":"Import!M1311","v":0},null,{"$f":"Import!M1318","v":0}]
[null,"Mortgage Loans",null,null,null,null,null,null,null,"NAIC Class 2",null,{"$f":"Import!M1298","v":0},null,{"$f":"Import!M1305","v":0},null,{"$f":"Import!M1312","v":0},null,{"$f":"Import!M1319","v":0}]
[null,22,"Insured/Guaranteed Mortgages",{"$f":"Import!M1292","v":0},null,{"$f":"Import!O1292","v":0},null,null,null,"NAIC Class 3",null,{"$f":"Import!M1299","v":0},null,{"$f":"Import!M1306","v":0},null,{"$f":"Import!M1313","v":0},null,{"$f":"Import!M1320","v":0}]
[null,23,"Other Commercial and Farm Mortgages",{"$f":"Import!M1293","v":0},null,{"$f":"Import!O1293","v":0},null,null,null,"NAIC Class 4",null,{"$f":"Import!M1300","v":0},null,{"$f":"Import!M1307","v":0},null,{"$f":"Import!M1314","v":0},null,{"$f":"Import!M1321","v":0}]
[null,24,"Other Residential Mortgages",{"$f":"Import!M1294","v":0},null,{"$f":"Import!O1294","v":0},null,null,null,"NAIC Class 5",null,{"$f":"Import!M1301","v":0},null,{"$f":"Import!M1308","v":0},null,{"$f":"Import!M1315","v":0},null,{"$f":"Import!M1322","v":0}]
[null,25,"Mortgages Not In Good Standing",{"$f":"Import!M1295","v":0},null,{"$f":"Import!O1295","v":0},null,null,null,"NAIC Class 6",null,{"$f":"Import!M1302","v":0},null,{"$f":"Import!M1309","v":0},null,{"$f":"Import!M1316","v":0},null,{"$f":"Import!M1323","v":0}]
[]
[null,26,"Total",{"$f":"SUM(D57:D60)","v":0},null,{"$f":"SUM(F57:F60)","v":0},null,null,null,null,null,{"$f":"SUM(L55:L60)","v":0},null,{"$f":"SUM(N55:N60)","v":0},null,{"$f":"SUM(P55:P60)","v":0},null,{"$f":"SUM(R55:R60)","v":0}]
[]
[null,null,null,"CASH AND CASH EQUIVALENTS"]
[null,null,null,{"$f":"'Form 4EBS'!F6","v":"2023-12-31"},null,{"$f":"'Form 4EBS'!H6","v":"2022-12-31"},null,null,null,{"$f":"IF('Insurer Information'!F9=\"Class C\",HYPERLINK(\"#'Attachments'!G45\",\"Attach file\"),HYPERLINK(\"#'Attachments'!G65\",\"Attach file\"))","v":"Attach file"}]
[null,null,null,{"$f":"CONFIGURATION!$D$12","v":" ('000s)"},null,{"$f":"CONFIGURATION!$D$12","v":" ('000s)"}]
[]
[null,27,"Cash and Cash Equivalents",{"$f":"Import!M1296","v":0},null,{"$f":"Import!O1296","v":0}]
[]
[null,null,null,{"$f":"'Form 4EBS'!F6","v":"2023-12-31"},null,{"$f":"'Form 4EBS'!H6","v":"2022-12-31"}]
[null,null,null,{"$f":"CONFIGURATION!$D$12","v":" ('000s)"},null,{"$f":"CONFIGURATION!$D$12","v":" ('000s)"}]
[null,null,"Total Funds Held by Ceding Reinsurers in Segregated Accounts / Trusts (Lines 10, 21, 26 and 27)"]
[]
[null,{"$f":"B68+1","v":28},null,{"$f":"T22+T44+D62+D68","v":0},null,{"$f":"V22+V44+F62+F68","v":0}]
[]
[null,null,"Please include in the table below any assets, included in this Schedule, for which NAIC ratings were used to map to the BSCR rating classes"]
[null,null,"Information on the use of NAIC ratings\n(for disclosure purposes only)","CORPORATE & SOVEREIGN BONDS",null,"RESIDENTIAL MORTGAGE-BACKED SECURITIES",null,"COMMERCIAL MORTGAGE-BACKED SECURITIES / ASSET-BACKED SECURITIES",null,"BOND MUTUAL FUNDS",null,"MORTGAGE LOANS",null,"PREFERRED STOCKS",null,"OTHER ASSETS"]
[null,null,"NAIC Class 1",{"$f":"Import!M1325","v":0},null,{"$f":"Import!M1332","v":0},null,{"$f":"Import!M1339","v":0},null,{"$f":"Import!M1346","v":0},null,{"$f":"Import!M1353","v":0},null,{"$f":"Import!M1360","v":0},null,{"$f":"Import!M1367","v":0}]
[null,null,"NAIC Class 2",{"$f":"Import!M1326","v":0},null,{"$f":"Import!M1333","v":0},null,{"$f":"Import!M1340","v":0},null,{"$f":"Import!M1347","v":0},null,{"$f":"Import!M1354","v":0},null,{"$f":"Import!M1361","v":0},null,{"$f":"Import!M1368","v":0}]
[null,null,"NAIC Class 3",{"$f":"Import!M1327","v":0},null,{"$f":"Import!M1334","v":0},null,{"$f":"Import!M1341","v":0},null,{"$f":"Import!M1348","v":0},null,{"$f":"Import!M1355","v":0},null,{"$f":"Import!M1362","v":0},null,{"$f":"Import!M1369","v":0}]
[null,null,"NAIC Class 4",{"$f":"Import!M1328","v":0},null,{"$f":"Import!M1335","v":0},null,{"$f":"Import!M1342","v":0},null,{"$f":"Import!M1349","v":0},null,{"$f":"Import!M1356","v":0},null,{"$f":"Import!M1363","v":0},null,{"$f":"Import!M1370","v":0}]
[null,null,"NAIC Class 5",{"$f":"Import!M1329","v":0},null,{"$f":"Import!M1336","v":0},null,{"$f":"Import!M1343","v":0},null,{"$f":"Import!M1350","v":0},null,{"$f":"Import!M1357","v":0},null,{"$f":"Import!M1364","v":0},null,{"$f":"Import!M1371","v":0}]
[null,null,"NAIC Class 6",{"$f":"Import!M1330","v":0},null,{"$f":"Import!M1337","v":0},null,{"$f":"Import!M1344","v":0},null,{"$f":"Import!M1351","v":0},null,{"$f":"Import!M1358","v":0},null,{"$f":"Import!M1365","v":0},null,{"$f":"Import!M1372","v":0}]
[null,null,null,{"$f":"SUM(D78:D83)","v":0},null,{"$f":"SUM(F78:F83)","v":0},null,{"$f":"SUM(H78:H83)","v":0},null,{"$f":"SUM(J78:J83)","v":0},null,{"$f":"SUM(L78:L83)","v":0},null,{"$f":"SUM(N78:N83)","v":0},null,{"$f":"SUM(P78:P83)","v":0}]

{"sheet":"Inv Recon (Original)","index":29,"n_rows":39,"n_cols":18,"rows_kept":39,"cut":false,"hidden":true,"merged":[[0,2,0,8],[1,2,1,7],[2,2,2,8],[5,2,5,9],[7,3,7,5],[7,6,7,17]]}
[null,null,"INVESTMENT RECONCILIATION ",null,null,null,null,null,null,null,null,null,null,null,null,null,null,{"$f":"HYPERLINK(\"#'Index'!A1\",\"Return to Index\")","v":"Return to Index"}]
[null,null,{"$f":"'Insurer Information'!C7","v":"Enter Company Name"}]
[null,null,{"$f":"\"For the year ending \"&TEXT('Insurer Information'!C3,\"MMMM DD, YYYY\")","v":"For the year ending December 31, 2023"}]
[null,null,{"$f":"\"expressed in\"& IF(CONFIGURATION!$B$12>1,\" ['\"&MID(CONFIGURATION!$B$12,2,LEN(CONFIGURATION!$B$12))&\"s]\",\"\")&\" \"&'Form 4EBS'!C4","v":"expressed in ['000s] United States Dollars"}]
[]
[null,null,"A reconciliation of investments reported on Form 4EBS to Schedules IIB, IIC, IID, IIE and IIF"]
[]
[null,null,null,"Amounts as Reported in Balance Sheet",null,null,"Amounts results from Look-Through"]
[null,null,"Adjustment Description","Form 4EBS Balance","Form 4EBS Balance - Amounts Reported under Bonds and Debentures","Form 4EBS Balance - Amounts reported under Equities","Schedule IIB - Interest rate-sensitive investments","Schedule IIB - Investments sensitive to equity prices","Schedule IIC - Interest rate-sensitive investments","Schedule IIC - Investments sensitive to equity prices","Schedule IID - Interest rate-sensitive investments","Schedule IID - Investments sensitive to equity prices","Schedule IIE - Interest rate-sensitive investments","Schedule IIE - Investments sensitive to equity prices","Schedule IIF - Interest rate-sensitive investments","Schedule IIF - Investments sensitive to equity prices","Total - Interest rate-sensitive investments","Total - Investments sensitive to equity prices"]
[null,null,"Form 4EBS Open Balance",null,null,null,{"$f":"'Form 4EBS'!F10+'Form 4EBS'!F13+'Form 4EBS'!F23+'Form 4EBS'!F45","v":0},{"$f":"'Form 4EBS'!F18+'Form 4EBS'!F19+'Form 4EBS'!F28+'Form 4EBS'!F29+'Form 4EBS'!F38","v":0},{"$f":"'Schedule IIA (EBS)'!T22","v":0},{"$f":"'Schedule IIA (EBS)'!T44","v":0},null,null,null,null,null,null,{"$f":"G10+I10+K10+M10+O10","v":0},{"$f":"H10+J10+L10+N10+P10","v":0}]
[null,1,"Cash and Cash Equivalents",null,null,null,null,null,null,null,null,null,null,null,null,null,{"$f":"G11+I11+K11+M11+O11-E11","v":0},{"$f":"H11+J11+L11+N11+P11-F11","v":0}]
[null,{"$f":"B11+1","v":2},"Bonds and Debentures",null,null,null,null,null,null,null,null,null,null,null,null,null,{"$f":"G12+I12+K12+M12+O12-E12","v":0},0]
[null,3,"Equities ",null,null,null,null,null,null,null,null,null,null,null,null,null,0,0]
[null,4,"Real Estate",null,null,null,null,null,null,null,null,null,null,null,null,null,0,0]
[null,5,"Collective Investment Vehicles",null,null,null,null,null,null,null,null,null,null,null,null,null,0,0]
[null,6,"Derivatives",null,null,null,null,null,null,null,null,null,null,null,null,null,0,0]
[null,7,"Funds withheld",null,null,null,null,null,null,null,null,null,null,null,null,null,0,0]
[null,8,"Segregated Accounts Assets",null,null,null,null,null,null,null,null,null,null,null,null,null,0,0]
[null,9,"Deposit Assets",null,null,null,null,null,null,null,null,null,null,null,null,null,0,0]
[null,10,"Other Sundry Assets",null,null,null,null,null,null,null,null,null,null,null,null,null,0,0]
[null,11,"Other Adjustment ",null,null,null,null,null,null,null,null,null,null,null,null,null,0,0]
[null,12,"Other Adjustment ",null,null,null,null,null,null,null,null,null,null,null,null,null,0,0]
[null,13,"Other Adjustment ",null,null,null,null,null,null,null,null,null,null,null,null,null,0,0]
[null,14,"Other Adjustment ",null,null,null,null,null,null,null,null,null,null,null,null,null,0,0]
[null,15,"Other Adjustment ",null,null,null,null,null,null,null,null,null,null,null,null,null,0,0]
[null,null,"Schedule IIB, IIC, IID, IIE & IIF Balances",null,null,null,{"$f":"G10+SUM(G11:G25)-SUM(E11:E25)","v":0},{"$f":"H10+SUM(H11:H25)-SUM(F11:F25)","v":0},{"$f":"SUM(I10:I25)","v":0},0,0,0,0,0,0,0,0,0]
[]
[null,null,null,null,null,null,null,{"$f":"IF(ROUND(('Schedule IIB (EBS)'!X62-H26),0)=0,\"TRUE\",\"FALSE\")","v":"TRUE"},null,{"$f":"IF(ROUND(('Schedule IIC (EBS)'!X62-J26),0)=0,\"TRUE\",\"FALSE\")","v":"TRUE"}]
[]
[null,null,null,null,null,null,null,{"$f":"'Schedule IIB (EBS)'!X62-H26","v":0},null,{"$f":"'Schedule IIC (EBS)'!X62-J26","v":0}]
[]
[null,null,"Interest rate-sensitive investments",null,"Total","Difference"]
[null,null,"Amount after Look-through",null,{"$f":"Q26","v":0}]
[null,null,"Amount in Interest Rate & Liquidity Risk calculation",null,{"$f":"'Interest Rate-Liquidity (Rev.)'!C51","v":0},{"$f":"E34-E33","v":0}]
[]
[]
[null,null,"Investments sensitive to equity prices",null,"Total","Difference"]
[null,null,"Amount after Look-through",null,{"$f":"R26","v":0}]
[null,null,"Amount in Equity Risk calculations",null,{"$f":"'Equity Investments (Revised)'!D48+'Equity Investments (Revised)'!F48+'Equity Investments (Revised)'!H48","v":0},{"$f":"E39-E38","v":0}]

{"sheet":"Investment Reconciliation","index":30,"n_rows":61,"n_cols":18,"rows_kept":61,"cut":false,"hidden":false,"merged":[[33,2,33,11],[0,2,0,8],[1,2,1,7],[2,2,2,8],[5,2,5,9],[7,3,7,5],[7,6,7,17]]}
[null,null,"INVESTMENT RECONCILIATION ",null,null,null,null,null,null,null,null,null,null,null,null,null,null,{"$f":"HYPERLINK(\"#'Index'!A1\",\"Return to Index\")","v":"Return to Index"}]
[null,null,{"$f":"'Insurer Information'!C7","v":"Enter Company Name"}]
[null,null,{"$f":"\"For the year ending \"& TEXT('Insurer Information'!C3,\"D MMMM YYYY\")","v":"For the year ending 31 December 2023"}]
[null,null,{"$f":"\"expressed in\"& IF(CONFIGURATION!$B$12>1,\" ['\"&MID(CONFIGURATION!$B$12,2,LEN(CONFIGURATION!$B$12))&\"s]\",\"\")&\" \"&'Form 4EBS'!C4","v":"expressed in ['000s] United States Dollars"}]
[]
[null,null,"A reconciliation of investments reported on Form 4EBS to Schedules IIB, IIC, IID, IIE and IIF"]
[]
[null,null,null,"Amounts as Reported in Balance Sheet",null,null,"Amounts results from Look-Through"]
[null,null,"Adjustment Description","Form 4EBS Balance","Form 4EBS Balance - Amounts Reported under Bonds and Debentures","Form 4EBS Balance - Amounts reported under Equities","Schedule IIB - Interest rate-sensitive investments","Schedule IIB - Investments sensitive to equity prices","Schedule IIC - Interest rate-sensitive investments","Schedule IIC - Investments sensitive to equity prices","Schedule IID - Interest rate-sensitive investments","Schedule IID - Investments sensitive to equity prices","Schedule IIE - Interest rate-sensitive investments","Schedule IIE - Investments sensitive to equity prices","Schedule IIF - Interest rate-sensitive investments","Schedule IIF - Investments sensitive to equity prices","Total - Interest rate-sensitive investments","Total - Investments sensitive to equity prices"]
[null,1,"Form 4EBS Open Balance",null,null,null,{"$f":"'Form 4EBS'!F13+'Form 4EBS'!F23+'Form 4EBS'!F45","v":0},{"$f":"'Form 4EBS'!F18+'Form 4EBS'!F28+'Form 4EBS'!F19+'Form 4EBS'!F29+'Form 4EBS'!F38+'Form 4EBS'!F52","v":0},{"$f":"'Schedule IIA (EBS)'!T22+'Schedule IIA (EBS)'!D62","v":0},{"$f":"'Schedule IIA (EBS)'!T44","v":0},null,null,null,null,null,{"$f":"'Form 4EBS'!F81+'Form 4EBS'!F83+'Form 4EBS'!F84","v":0},{"$f":"G10+I10+K10+M10+O10","v":0},{"$f":"H10+J10+L10+N10+P10","v":0}]
[null,{"$f":"B10+1","v":2},"Cash and Cash Equivalents",null,null,null,null,null,null,null,null,null,null,null,null,null,{"$f":"G11+I11+K11+M11+O11-E11","v":0},{"$f":"H11+J11+L11+N11+P11-F11","v":0}]
[null,{"$f":"B11+1","v":3},"Bonds and Debentures",null,null,null,null,null,null,null,null,null,null,null,null,null,{"$f":"G12+I12+K12+M12+O12-E12","v":0},0]
[null,4,"Equities ",null,null,null,null,null,null,null,null,null,null,null,null,null,0,0]
[null,5,"Real Estate",null,null,null,null,null,null,null,null,null,null,null,null,null,0,0]
[null,6,"Collective Investment Vehicles",null,null,null,null,null,null,null,null,null,null,null,null,null,0,0]
[null,7,"Derivatives",null,null,null,null,null,null,null,null,null,null,null,null,null,0,0]
[null,8,"Funds withheld",null,null,null,null,null,null,null,null,null,null,null,null,null,0,0]
[null,9,"Segregated Accounts Assets",null,null,null,null,null,null,null,null,null,null,null,null,null,0,0]
[null,10,"Deposit Assets",null,null,null,null,null,null,null,null,null,null,null,null,null,0,0]
[null,11,"Other Sundry Assets",null,null,null,null,null,null,null,null,null,null,null,null,null,0,0]
[null,12,"Other Adjustment ",null,null,null,null,null,null,null,null,null,null,null,null,null,0,0]
[null,13,"Other Adjustment ",null,null,null,null,null,null,null,null,null,null,null,null,null,0,0]
[null,14,"Other Adjustment ",null,null,null,null,null,null,null,null,null,null,null,null,null,0,0]
[null,15,"Other Adjustment ",null,null,null,null,null,null,null,null,null,null,null,null,null,{"$f":"G24+I24+K24+M24+O24-E24","v":0},{"$f":"H24+J24+L24+N24+P24-F24","v":0}]
[null,16,"Other Adjustment ",null,null,null,null,null,null,null,null,null,null,null,null,null,0,0]
[null,17,"Other Adjustment ",null,null,null,null,null,null,null,null,null,null,null,null,null,0,0]
[null,18,"Calculated Balances",null,null,null,{"$f":"G10+SUM(G11:G26)-SUM(E11:E26)","v":0},{"$f":"H10+SUM(H11:H26)-SUM(F11:F26)","v":0},{"$f":"SUM(I10:I26)","v":0},0,0,0,0,0,0,0,0,0]
[null,null,"Balance after Look-Through adjustments",null,null,null,{"$f":"'Schedule IIB (EBS)'!X27","v":0},{"$f":"'Schedule IIB (EBS)'!X62","v":0},{"$f":"'Schedule IIC (EBS)'!X27","v":0},{"$f":"'Schedule IIC (EBS)'!X62","v":0},{"$f":"'Schedule IID (EBS)'!X27","v":0},{"$f":"'Schedule IID (EBS)'!X62","v":0},{"$f":"'Schedule IIE (EBS)'!X27","v":0},{"$f":"'Schedule IIE (EBS)'!X62","v":0},{"$f":"'Schedule IIF (EBS)'!X27","v":0},{"$f":"'Schedule IIF (EBS)'!X62","v":0},{"$f":"G28+I28+K28+M28+O28-E28","v":0},{"$f":"H28+J28+L28+N28+P28-F28","v":0}]
[]
[null,null,null,null,null,null,{"$f":"IF(ROUND((G28-G27),0)=0,\"TRUE\",\"FALSE\")","v":"TRUE"},{"$f":"IF(ROUND((H28-H27),0)=0,\"TRUE\",\"FALSE\")","v":"TRUE"},"TRUE","TRUE","TRUE","TRUE","TRUE","TRUE","TRUE","TRUE","TRUE","TRUE"]
[]
[null,null,null,null,null,null,{"$f":"G27-G28","v":0},{"$f":"H27-H28","v":0},0,0,0,0,0,0,0,0,0,0]
[]
[null,null,"A reconciliation of investments reported on Schedules IIB, IIC, IID, IIE and IIF to exposures in Equity Risk and Interest Rate Risk calculations taking into account look-through"]
[]
[null,null,"Adjustment Description",null,null,null,"Interest rate-sensitive investments","Investments sensitive to equity prices","Interest rate-sensitive investments","Investments sensitive to equity prices","Interest rate-sensitive investments","Investments sensitive to equity prices","Interest rate-sensitive investments","Investments sensitive to equity prices","Interest rate-sensitive investments","Investments sensitive to equity prices","Total - Interest rate-sensitive investments","Total - Investments sensitive to equity prices"]
[null,null,"Schedule IIB, IIC, IID, IIE & IIF Balances",null,null,null,{"$f":"'Schedule IIB (EBS)'!X27","v":0},{"$f":"'Schedule IIB (EBS)'!X62","v":0},{"$f":"'Schedule IIC (EBS)'!X27","v":0},{"$f":"'Schedule IIC (EBS)'!X62","v":0},{"$f":"'Schedule IID (EBS)'!X27","v":0},{"$f":"'Schedule IID (EBS)'!X62","v":0},{"$f":"'Schedule IIE (EBS)'!X27","v":0},{"$f":"'Schedule IIE (EBS)'!X62","v":0},{"$f":"'Schedule IIF (EBS)'!X27","v":0},{"$f":"'Schedule IIF (EBS)'!X62","v":0},{"$f":"G37+I37+K37+M37+O37","v":0},{"$f":"H37+J37+L37+N37+P37","v":0}]
[null,{"$f":"B27+1","v":19},"Cash and Cash Equivalents",null,null,null,null,null,null,null,null,null,null,null,null,null,{"$f":"G38+I38+K38+M38+O38","v":0},0]
[null,{"$f":"B38+1","v":20},"Derivatives not included in Schedules IIB-IIF",null,null,null,null,null,null,null,null,null,null,null,null,null,0,0]
[null,{"$f":"B39+1","v":21},"Other Interest/Equity sensitive items not included in Schedules IIB-IIF",null,null,null,null,null,null,null,null,null,null,null,null,null,0,0]
[null,22,"Other Interest/Equity sensitive items not included in Schedules IIB-IIF",null,null,null,null,null,null,null,null,null,null,null,null,null,0,0]
[null,23,"Other Interest/Equity sensitive items not included in Schedules IIB-IIF",null,null,null,null,null,null,null,null,null,null,null,null,null,0,0]
[null,24,"Other Interest/Equity sensitive items not included in Schedules IIB-IIF",null,null,null,null,null,null,null,null,null,null,null,null,null,0,0]
[null,25,"Other Interest/Equity sensitive items not included in Schedules IIB-IIF",null,null,null,null,null,null,null,null,null,null,null,null,null,0,0]
[null,26,"Other Interest/Equity sensitive items not included in Schedules IIB-IIF",null,null,null,null,null,null,null,null,null,null,null,null,null,0,0]
[null,27,"Other Interest/Equity sensitive items not included in Schedules IIB-IIF",null,null,null,null,null,null,null,null,null,null,null,null,null,0,0]
[null,28,"Other Interest/Equity sensitive items not included in Schedules IIB-IIF",null,null,null,null,null,null,null,null,null,null,null,null,null,0,0]
[null,29,"Other Interest/Equity sensitive items not included in Schedules IIB-IIF",null,null,null,null,null,null,null,null,null,null,null,null,null,0,0]
[null,30,"Other Interest/Equity sensitive items not included in Schedules IIB-IIF",null,null,null,null,null,null,null,null,null,null,null,null,null,0,0]
[null,31,"Exposures after adjustments",null,null,null,{"$f":"SUM(G37:G49)","v":0},{"$f":"SUM(H37:H49)","v":0},0,0,0,0,0,0,0,0,{"$f":"SUM(Q37:Q49)","v":0},{"$f":"SUM(R37:R49)","v":0}]
[null,null,"Total Exposure in Risk calculations",null,null,null,null,null,null,null,null,null,null,null,null,null,{"$f":"'Interest Rate-Liquidity (Rev.)'!C51","v":0},{"$f":"'Equity Investments (Revised)'!D48+'Equity Investments (Revised)'!F48+'Equity Investments (Revised)'!H48","v":0}]
[]
[null,null,null,null,null,null,null,null,null,null,null,null,null,null,null,null,{"$f":"IF(ROUND((Q51-Q50),0)=0,\"TRUE\",\"FALSE\")","v":"TRUE"},{"$f":"IF(ROUND((R51-R50),0)=0,\"TRUE\",\"FALSE\")","v":"TRUE"}]
[null,null,"Interest rate-sensitive investments",null,"Total","Difference"]
[null,null,"Amount after Look-through",null,{"$f":"Q50","v":0},null,null,null,null,null,null,null,null,null,null,null,{"$f":"Q50-Q51","v":0},0]
[null,null,"Amount in Interest Rate & Liquidity Risk calculation",null,{"$f":"'Interest Rate-Liquidity (Rev.)'!C51","v":0},{"$f":"E56-E55","v":0},{"$f":"IF(Summary!E42=\"Shock-Based Approach\",IF(ROUND(F56,0)=0,\"TRUE\",\"FALSE\"),\"N/A\")","v":"N/A"}]
[]
[]
[null,null,"Investments sensitive to equity prices",null,"Total","Difference"]
[null,null,"Amount after Look-through",null,{"$f":"R50","v":0}]
[null,null,"Amount in Equity Risk calculations",null,{"$f":"'Equity Investments (Revised)'!D48+'Equity Investments (Revised)'!F48+'Equity Investments (Revised)'!H48","v":0},{"$f":"E61-E60","v":0},{"$f":"IF(ROUND(F61,0)=0,\"TRUE\",\"FALSE\")","v":"TRUE"}]

{"sheet":"Schedule IIB (EBS)","index":31,"n_rows":107,"n_cols":28,"rows_kept":107,"cut":false,"hidden":false,"merged":[[33,27,34,27],[7,23,7,25],[7,11,7,13],[33,23,34,23],[2,3,2,5],[3,5,3,7],[4,5,4,7],[7,3,7,5],[7,7,7,9],[7,19,7,21],[32,3,32,13],[34,7,34,9],[34,11,34,13],[32,15,32,19],[7,15,7,17],[33,19,34,19],[33,3,34,5],[33,7,33,13],[33,15,34,15],[33,17,34,17],[63,13,63,21],[83,17,84,17],[83,19,84,19],[64,13,64,15],[82,16,82,19],[81,11,81,20],[82,12,82,15],[64,17,64,19],[64,3,64,5],[64,7,64,9],[63,3,63,11],[83,13,84,13],[83,15,84,15]]}
[null,"SCHEDULE OF FIXED INCOME & EQUITY INVESTMENTS BY BSCR RATING",null,null,null,null,null,null,null,null,null,null,null,null,null,null,null,null,null,null,null,null,null,null,null,null,null,{"$f":"HYPERLINK(\"#'Index'!A1\",\"Return to Index\")","v":"Return to Index"}]
[]
[null,null,null,{"$f":"'Insurer Information'!C7","v":"Enter Company Name"}]
[null,null,null,"As at",null,{"$f":" TEXT('Insurer Information'!C3,\"D MMMM YYYY\")","v":"31 December 2023"},null,null,null,null,null,null,null,null,null,null,null,null,null,null,null,null,null,null,null,"SCHEDULE IIB (EBS)"]
[null,null,null,{"$f":"\"Expressed in \" & IF(CONFIGURATION!$B$12>1,\" ['\"&MID(CONFIGURATION!$B$12,2,LEN(CONFIGURATION!$B$12))&\"s]\",\"\")","v":"Expressed in  ['000s]"},null,{"$f":"'Form 4EBS'!C4","v":"United States Dollars"}]
[]
[null,null,null,"(1)",null,"(2)",null,"(3)",null,"(4)",null,"(5)",null,"(6)",null,"(7)",null,"(8)",null,"(9)",null,"(10)",null,"(11)",null,"(12)"]
[null,null,null,"CORPORATE & SOVEREIGN BONDS",null,null,null,"RESIDENTIAL MORTGAGE-BACKED SECURITIES",null,null,null,"COMMERCIAL MORTGAGE-BACKED SECURITIES / ASSET-BACKED SECURITIES",null,null,null,"BOND MUTUAL FUNDS",null,null,null,"MORTGAGE LOANS",null,null,null,"TOTAL\n[ Form 4EBS Lines 2(b) & 3(b)]"]
[null,null,null,{"$f":"'Form 4EBS'!F6","v":"2023-12-31"},null,{"$f":"'Form 4EBS'!H6","v":"2022-12-31"},null,{"$f":"'Form 4EBS'!F6","v":"2023-12-31"},null,{"$f":"'Form 4EBS'!H6","v":"2022-12-31"},null,{"$f":"'Form 4EBS'!F6","v":"2023-12-31"},null,{"$f":"'Form 4EBS'!H6","v":"2022-12-31"},null,{"$f":"'Form 4EBS'!F6","v":"2023-12-31"},null,{"$f":"'Form 4EBS'!H6","v":"2022-12-31"},null,{"$f":"'Form 4EBS'!F6","v":"2023-12-31"},null,{"$f":"'Form 4EBS'!H6","v":"2022-12-31"},null,{"$f":"D9","v":"2023-12-31"},null,{"$f":"F9","v":"2022-12-31"}]
[null,null,null,{"$f":"CONFIGURATION!$D$12","v":" ('000s)"},null,{"$f":"CONFIGURATION!$D$12","v":" ('000s)"},null,{"$f":"CONFIGURATION!$D$12","v":" ('000s)"},null,{"$f":"CONFIGURATION!$D$12","v":" ('000s)"},null,{"$f":"CONFIGURATION!$D$12","v":" ('000s)"},null,{"$f":"CONFIGURATION!$D$12","v":" ('000s)"},null,{"$f":"CONFIGURATION!$D$12","v":" ('000s)"},null,{"$f":"CONFIGURATION!$D$12","v":" ('000s)"},null,{"$f":"CONFIGURATION!$D$12","v":" ('000s)"},null,{"$f":"CONFIGURATION!$D$12","v":" ('000s)"},null,{"$f":"CONFIGURATION!$D$12","v":" ('000s)"},null,{"$f":"CONFIGURATION!$D$12","v":" ('000s)"}]
[null,"Line no. "]
[null,"Quoted and Unquoted Bonds and Debentures"]
[null,1,"BSCR Rating 0",{"$f":"Import!M36685","v":0},null,{"$f":"Import!O36685","v":0},null,null,null,null,null,null,null,null,null,{"$f":"Import!M36710","v":0},null,{"$f":"Import!O36710","v":0},null,null,null,null,null,{"$f":"D13+H13+L13+P13","v":0},null,{"$f":"F13+J13+N13+R13","v":0}]
[null,{"$f":"B13+1","v":2},"BSCR Rating 1",{"$f":"Import!M36686","v":0},null,{"$f":"Import!O36686","v":0},null,{"$f":"Import!M36694","v":0},null,{"$f":"Import!O36694","v":0},null,{"$f":"Import!M36702","v":0},null,{"$f":"Import!O36702","v":0},null,{"$f":"Import!M36711","v":0},null,{"$f":"Import!O36711","v":0},null,null,null,null,null,0,null,0]
[null,{"$f":"B14+1","v":3},"BSCR Rating 2",{"$f":"Import!M36687","v":0},null,{"$f":"Import!O36687","v":0},null,{"$f":"Import!M36695","v":0},null,{"$f":"Import!O36695","v":0},null,{"$f":"Import!M36703","v":0},null,{"$f":"Import!O36703","v":0},null,{"$f":"Import!M36712","v":0},null,{"$f":"Import!O36712","v":0},null,null,null,null,null,0,null,0]
[null,4,"BSCR Rating 3",{"$f":"Import!M36688","v":0},null,{"$f":"Import!O36688","v":0},null,{"$f":"Import!M36696","v":0},null,{"$f":"Import!O36696","v":0},null,{"$f":"Import!M36704","v":0},null,{"$f":"Import!O36704","v":0},null,{"$f":"Import!M36713","v":0},null,{"$f":"Import!O36713","v":0},null,null,null,null,null,0,null,0]
[null,5,"BSCR Rating 4",{"$f":"Import!M36689","v":0},null,{"$f":"Import!O36689","v":0},null,{"$f":"Import!M36697","v":0},null,{"$f":"Import!O36697","v":0},null,{"$f":"Import!M36705","v":0},null,{"$f":"Import!O36705","v":0},null,{"$f":"Import!M36714","v":0},null,{"$f":"Import!O36714","v":0},null,null,null,null,null,0,null,0]
[null,6,"BSCR Rating 5",{"$f":"Import!M36690","v":0},null,{"$f":"Import!O36690","v":0},null,{"$f":"Import!M36698","v":0},null,{"$f":"Import!O36698","v":0},null,{"$f":"Import!M36706","v":0},null,{"$f":"Import!O36706","v":0},null,{"$f":"Import!M36715","v":0},null,{"$f":"Import!O36715","v":0},null,null,null,null,null,0,null,0]
[null,7,"BSCR Rating 6",{"$f":"Import!M36691","v":0},null,{"$f":"Import!O36691","v":0},null,{"$f":"Import!M36699","v":0},null,{"$f":"Import!O36699","v":0},null,{"$f":"Import!M36707","v":0},null,{"$f":"Import!O36707","v":0},null,{"$f":"Import!M36716","v":0},null,{"$f":"Import!O36716","v":0},null,null,null,null,null,0,null,0]
[null,8,"BSCR Rating 7",{"$f":"Import!M36692","v":0},null,{"$f":"Import!O36692","v":0},null,{"$f":"Import!M36700","v":0},null,{"$f":"Import!O36700","v":0},null,{"$f":"Import!M36708","v":0},null,{"$f":"Import!O36708","v":0},null,{"$f":"Import!M36717","v":0},null,{"$f":"Import!O36717","v":0},null,null,null,null,null,0,null,0]
[null,9,"BSCR Rating 8",{"$f":"Import!M36693","v":0},null,{"$f":"Import!O36693","v":0},null,{"$f":"Import!M36701","v":0},null,{"$f":"Import!O36701","v":0},null,{"$f":"Import!M36709","v":0},null,{"$f":"Import!O36709","v":0},null,{"$f":"Import!M36718","v":0},null,{"$f":"Import!O36718","v":0},null,null,null,null,null,{"$f":"D21+H21+L21+P21","v":0},null,{"$f":"F21+J21+N21+R21","v":0}]
[null,10,"Insured/Guaranteed Mortgages",null,null,null,null,null,null,null,null,null,null,null,null,null,null,null,null,{"$f":"Import!M36719","v":0},null,{"$f":"Import!O36719","v":0},null,{"$f":"D22+H22+L22+P22+T22","v":0},null,{"$f":"F22+J22+N22+R22+V22","v":0}]
[null,11,"Other Commercial and Farm Mortgages",null,null,null,null,null,null,null,null,null,null,null,null,null,null,null,null,{"$f":"Import!M36720","v":0},null,{"$f":"Import!O36720","v":0},null,{"$f":"D23+H23+L23+P23+T23","v":0},null,0]
[null,12,"Other Residential Mortgages",null,null,null,null,null,null,null,null,null,null,null,null,null,null,null,null,{"$f":"Import!M36721","v":0},null,{"$f":"Import!O36721","v":0},null,0,null,0]
[null,13,"Mortgages Not In Good Standing",null,null,null,null,null,null,null,null,null,null,null,null,null,null,null,null,{"$f":"Import!M36722","v":0},null,{"$f":"Import!O36722","v":0},null,0,null,0]
[]
[null,{"$f":"B25+1","v":14},"Total",{"$f":"SUM(D13:D21)","v":0},null,{"$f":"SUM(F13:F21)","v":0},null,{"$f":"SUM(H13:H21)","v":0},null,{"$f":"SUM(J13:J21)","v":0},null,{"$f":"SUM(L13:L21)","v":0},null,{"$f":"SUM(N13:N21)","v":0},null,{"$f":"SUM(P12:P21)","v":0},null,{"$f":"SUM(R12:R21)","v":0},null,{"$f":"SUM(T12:T26)","v":0},null,{"$f":"SUM(V12:V26)","v":0},null,{"$f":"SUM(X12:X26)","v":0},null,{"$f":"SUM(Z12:Z26)","v":0}]
[]
[null,null,null,null,null,null,null,null,null,null,null,null,null,null,null,null,null,null,null,null,null,null,null,{"$f":"IF(ROUND((X27-('Form 4EBS'!F13+'Form 4EBS'!F23)),0)=0,TRUE,FALSE)","v":true},null,{"$f":"IF(ROUND((Z27-('Form 4EBS'!H13+'Form 4EBS'!H23)),0)=0,TRUE,FALSE)","v":true}]
[]
[null,null,null,null,null,null,null,null,null,null,null,null,null,null,null,null,null,null,null,null,null,null,null,{"$f":"('Form 4EBS'!F13+'Form 4EBS'!F23)-X27","v":0},null,{"$f":"('Form 4EBS'!H13+'Form 4EBS'!H23)-Z27","v":0}]
[]
[null,null,null,"ASSETS",null,null,null,null,null,null,null,null,null,null,null,"Liabilities"]
[null,null,null,"Long Exposures",null,null,null,"Short Exposures",null,null,null,null,null,null,null,null,null,"Without Management Actions",null,"With Management Actions",null,null,null,"Total Assets Before Shock",null,null,null,"Shocks"]
[null,null,null,null,null,null,null,"Qualifying as Assets held for risk-mitigation purposes",null,null,null,"Not Qualifying as Assets held for risk-mitigation purposes",null,null,null,null,null,null,null,null,null,null,null,null,null,null,null,"Shocks"]
[null,null,null,"Before Shock",null,"After Shock",null,"Before Shock",null,"After Shock",null,"Before Shock",null,"After Shock",null,"Before Shock",null,"After Shock",null,"After Shock"]
[null,null,null,{"$f":"CONFIGURATION!$D$12","v":" ('000s)"},null,{"$f":"CONFIGURATION!$D$12","v":" ('000s)"},null,{"$f":"CONFIGURATION!$D$12","v":" ('000s)"},null,{"$f":"CONFIGURATION!$D$12","v":" ('000s)"},null,{"$f":"CONFIGURATION!$D$12","v":" ('000s)"},null,{"$f":"CONFIGURATION!$D$12","v":" ('000s)"},null,{"$f":"CONFIGURATION!$D$12","v":" ('000s)"},null,{"$f":"CONFIGURATION!$D$12","v":" ('000s)"},null,{"$f":"CONFIGURATION!$D$12","v":" ('000s)"},null,null,null,{"$f":"CONFIGURATION!$D$12","v":" ('000s)"}]
[null,"Equity Holdings "]
[null,{"$f":"B27+1","v":15},"Strategic Holdings - Listed",{"$f":"Import!M36723","v":0},null,{"$f":"IF(OR(Import!M36745=0,Import!M36745=\"\"),(1-$AB39)*D39,Import!M36745)","v":0},null,{"$f":"Import!M36767","v":0},null,{"$f":"IF(OR(Import!M36789=0,Import!M36789=\"\"),(1-$AB39)*H39,Import!M36789)","v":0},null,{"$f":"Import!M36811","v":0},null,{"$f":"IF(OR(Import!M36833=0,Import!M36833=\"\"),(1-$AB39)*L39,Import!M36833)","v":0},null,{"$f":"Import!M36855","v":0},null,{"$f":"IF(OR(Import!M36877=0,Import!M36877=\"\"),P39,Import!M36877)","v":0},null,{"$f":"IF(OR(Import!M36899=0,Import!M36899=\"\"),R39,Import!M36899)","v":0},null,null,null,{"$f":"D39+H39+L39","v":0},null,null,null,0.2]
[null,{"$f":"B39+1","v":16},"Duration Based",{"$f":"Import!M36724","v":0},null,{"$f":"IF(OR(Import!M36746=0,Import!M36746=\"\"),(1-$AB40)*D40,Import!M36746)","v":0},null,{"$f":"Import!M36768","v":0},null,{"$f":"IF(OR(Import!M36790=0,Import!M36790=\"\"),(1-$AB40)*H40,Import!M36790)","v":0},null,{"$f":"Import!M36812","v":0},null,{"$f":"IF(OR(Import!M36834=0,Import!M36834=\"\"),(1-$AB40)*L40,Import!M36834)","v":0},null,{"$f":"Import!M36856","v":0},null,{"$f":"IF(OR(Import!M36878=0,Import!M36878=\"\"),P40,Import!M36878)","v":0},null,{"$f":"IF(OR(Import!M36900=0,Import!M36900=\"\"),R40,Import!M36900)","v":0},null,null,null,{"$f":"D40+H40+L40","v":0},null,null,null,0.2]
[null,17,"Listed Equity Securities in Developed Markets",{"$f":"Import!M36725","v":0},null,{"$f":"IF(OR(Import!M36747=0,Import!M36747=\"\"),(1-$AB41)*D41,Import!M36747)","v":0},null,{"$f":"Import!M36769","v":0},null,{"$f":"IF(OR(Import!M36791=0,Import!M36791=\"\"),(1-$AB41)*H41,Import!M36791)","v":0},null,{"$f":"Import!M36813","v":0},null,{"$f":"IF(OR(Import!M36835=0,Import!M36835=\"\"),(1-$AB41)*L41,Import!M36835)","v":0},null,{"$f":"Import!M36857","v":0},null,{"$f":"IF(OR(Import!M36879=0,Import!M36879=\"\"),P41,Import!M36879)","v":0},null,{"$f":"IF(OR(Import!M36901=0,Import!M36901=\"\"),R41,Import!M36901)","v":0},null,null,null,{"$f":"D41+H41+L41","v":0},null,null,null,0.35]
[null,18,"Preferred Stocks, BSCR Rating 1",{"$f":"Import!M36726","v":0},null,{"$f":"IF(OR(Import!M36748=0,Import!M36748=\"\"),(1-$AB42)*D42,Import!M36748)","v":0},null,{"$f":"Import!M36770","v":0},null,{"$f":"IF(OR(Import!M36792=0,Import!M36792=\"\"),(1-$AB42)*H42,Import!M36792)","v":0},null,{"$f":"Import!M36814","v":0},null,{"$f":"IF(OR(Import!M36836=0,Import!M36836=\"\"),(1-$AB42)*L42,Import!M36836)","v":0},null,{"$f":"Import!M36858","v":0},null,{"$f":"IF(OR(Import!M36880=0,Import!M36880=\"\"),P42,Import!M36880)","v":0},null,{"$f":"IF(OR(Import!M36902=0,Import!M36902=\"\"),R42,Import!M36902)","v":0},null,null,null,0,null,null,null,6.0000000000000001E-3]
[null,19,"Preferred Stocks, BSCR Rating 2",{"$f":"Import!M36727","v":0},null,{"$f":"IF(OR(Import!M36749=0,Import!M36749=\"\"),(1-$AB43)*D43,Import!M36749)","v":0},null,{"$f":"Import!M36771","v":0},null,{"$f":"IF(OR(Import!M36793=0,Import!M36793=\"\"),(1-$AB43)*H43,Import!M36793)","v":0},null,{"$f":"Import!M36815","v":0},null,{"$f":"IF(OR(Import!M36837=0,Import!M36837=\"\"),(1-$AB43)*L43,Import!M36837)","v":0},null,{"$f":"Import!M36859","v":0},null,{"$f":"IF(OR(Import!M36881=0,Import!M36881=\"\"),P43,Import!M36881)","v":0},null,{"$f":"IF(OR(Import!M36903=0,Import!M36903=\"\"),R43,Import!M36903)","v":0},null,null,null,0,null,null,null,1.2E-2]
[null,20,"Preferred Stocks, BSCR Rating 3",{"$f":"Import!M36728","v":0},null,{"$f":"IF(OR(Import!M36750=0,Import!M36750=\"\"),(1-$AB44)*D44,Import!M36750)","v":0},null,{"$f":"Import!M36772","v":0},null,{"$f":"IF(OR(Import!M36794=0,Import!M36794=\"\"),(1-$AB44)*H44,Import!M36794)","v":0},null,{"$f":"Import!M36816","v":0},null,{"$f":"IF(OR(Import!M36838=0,Import!M36838=\"\"),(1-$AB44)*L44,Import!M36838)","v":0},null,{"$f":"Import!M36860","v":0},null,{"$f":"IF(OR(Import!M36882=0,Import!M36882=\"\"),P44,Import!M36882)","v":0},null,{"$f":"IF(OR(Import!M36904=0,Import!M36904=\"\"),R44,Import!M36904)","v":0},null,null,null,0,null,null,null,0.02]
[null,21,"Preferred Stocks, BSCR Rating 4",{"$f":"Import!M36729","v":0},null,{"$f":"IF(OR(Import!M36751=0,Import!M36751=\"\"),(1-$AB45)*D45,Import!M36751)","v":0},null,{"$f":"Import!M36773","v":0},null,{"$f":"IF(OR(Import!M36795=0,Import!M36795=\"\"),(1-$AB45)*H45,Import!M36795)","v":0},null,{"$f":"Import!M36817","v":0},null,{"$f":"IF(OR(Import!M36839=0,Import!M36839=\"\"),(1-$AB45)*L45,Import!M36839)","v":0},null,{"$f":"Import!M36861","v":0},null,{"$f":"IF(OR(Import!M36883=0,Import!M36883=\"\"),P45,Import!M36883)","v":0},null,{"$f":"IF(OR(Import!M36905=0,Import!M36905=\"\"),R45,Import!M36905)","v":0},null,null,null,0,null,null,null,0.04]
[null,22,"Preferred Stocks, BSCR Rating 5",{"$f":"Import!M36730","v":0},null,{"$f":"IF(OR(Import!M36752=0,Import!M36752=\"\"),(1-$AB46)*D46,Import!M36752)","v":0},null,{"$f":"Import!M36774","v":0},null,{"$f":"IF(OR(Import!M36796=0,Import!M36796=\"\"),(1-$AB46)*H46,Import!M36796)","v":0},null,{"$f":"Import!M36818","v":0},null,{"$f":"IF(OR(Import!M36840=0,Import!M36840=\"\"),(1-$AB46)*L46,Import!M36840)","v":0},null,{"$f":"Import!M36862","v":0},null,{"$f":"IF(OR(Import!M36884=0,Import!M36884=\"\"),P46,Import!M36884)","v":0},null,{"$f":"IF(OR(Import!M36906=0,Import!M36906=\"\"),R46,Import!M36906)","v":0},null,null,null,0,null,null,null,0.11]
[null,23,"Preferred Stocks, BSCR Rating 6",{"$f":"Import!M36731","v":0},null,{"$f":"IF(OR(Import!M36753=0,Import!M36753=\"\"),(1-$AB47)*D47,Import!M36753)","v":0},null,{"$f":"Import!M36775","v":0},null,{"$f":"IF(OR(Import!M36797=0,Import!M36797=\"\"),(1-$AB47)*H47,Import!M36797)","v":0},null,{"$f":"Import!M36819","v":0},null,{"$f":"IF(OR(Import!M36841=0,Import!M36841=\"\"),(1-$AB47)*L47,Import!M36841)","v":0},null,{"$f":"Import!M36863","v":0},null,{"$f":"IF(OR(Import!M36885=0,Import!M36885=\"\"),P47,Import!M36885)","v":0},null,{"$f":"IF(OR(Import!M36907=0,Import!M36907=\"\"),R47,Import!M36907)","v":0},null,null,null,0,null,null,null,0.25]
[null,24,"Preferred Stocks, BSCR Rating 7",{"$f":"Import!M36732","v":0},null,{"$f":"IF(OR(Import!M36754=0,Import!M36754=\"\"),(1-$AB48)*D48,Import!M36754)","v":0},null,{"$f":"Import!M36776","v":0},null,{"$f":"IF(OR(Import!M36798=0,Import!M36798=\"\"),(1-$AB48)*H48,Import!M36798)","v":0},null,{"$f":"Import!M36820","v":0},null,{"$f":"IF(OR(Import!M36842=0,Import!M36842=\"\"),(1-$AB48)*L48,Import!M36842)","v":0},null,{"$f":"Import!M36864","v":0},null,{"$f":"IF(OR(Import!M36886=0,Import!M36886=\"\"),P48,Import!M36886)","v":0},null,{"$f":"IF(OR(Import!M36908=0,Import!M36908=\"\"),R48,Import!M36908)","v":0},null,null,null,0,null,null,null,0.35]
[null,25,"Preferred Stocks, BSCR Rating 8",{"$f":"Import!M36733","v":0},null,{"$f":"IF(OR(Import!M36755=0,Import!M36755=\"\"),(1-$AB49)*D49,Import!M36755)","v":0},null,{"$f":"Import!M36777","v":0},null,{"$f":"IF(OR(Import!M36799=0,Import!M36799=\"\"),(1-$AB49)*H49,Import!M36799)","v":0},null,{"$f":"Import!M36821","v":0},null,{"$f":"IF(OR(Import!M36843=0,Import!M36843=\"\"),(1-$AB49)*L49,Import!M36843)","v":0},null,{"$f":"Import!M36865","v":0},null,{"$f":"IF(OR(Import!M36887=0,Import!M36887=\"\"),P49,Import!M36887)","v":0},null,{"$f":"IF(OR(Import!M36909=0,Import!M36909=\"\"),R49,Import!M36909)","v":0},null,null,null,0,null,null,null,0.35]
[null,26,"Equity Derivatives on Type 1 Equities",{"$f":"Import!M36734","v":0},null,{"$f":"Import!M36756","v":0},null,{"$f":"Import!M36778","v":0},null,{"$f":"Import!M36800","v":0},null,{"$f":"Import!M36822","v":0},null,{"$f":"Import!M36844","v":0},null,{"$f":"Import!M36866","v":0},null,{"$f":"IF(OR(Import!M36888=0,Import!M36888=\"\"),P50,Import!M36888)","v":0},null,{"$f":"IF(OR(Import!M36910=0,Import!M36910=\"\"),R50,Import!M36910)","v":0},null,null,null,0,null,null,null,0.35]
[null,27,"Strategic Holdings - Unlisted",{"$f":"Import!M36735","v":0},null,{"$f":"IF(OR(Import!M36757=0,Import!M36757=\"\"),(1-$AB51)*D51,Import!M36757)","v":0},null,{"$f":"Import!M36779","v":0},null,{"$f":"IF(OR(Import!M36801=0,Import!M36801=\"\"),(1-$AB51)*H51,Import!M36801)","v":0},null,{"$f":"Import!M36823","v":0},null,{"$f":"IF(OR(Import!M36845=0,Import!M36845=\"\"),(1-$AB51)*L51,Import!M36845)","v":0},null,{"$f":"Import!M36867","v":0},null,{"$f":"IF(OR(Import!M36889=0,Import!M36889=\"\"),P51,Import!M36889)","v":0},null,{"$f":"IF(OR(Import!M36911=0,Import!M36911=\"\"),R51,Import!M36911)","v":0},null,null,null,0,null,null,null,0.2]
[null,28,"Other Equities / Other Assets",{"$f":"Import!M36736","v":0},null,{"$f":"IF(OR(Import!M36758=0,Import!M36758=\"\"),(1-$AB52)*D52,Import!M36758)","v":0},null,{"$f":"Import!M36780","v":0},null,{"$f":"IF(OR(Import!M36802=0,Import!M36802=\"\"),(1-$AB52)*H52,Import!M36802)","v":0},null,{"$f":"Import!M36824","v":0},null,{"$f":"IF(OR(Import!M36846=0,Import!M36846=\"\"),(1-$AB52)*L52,Import!M36846)","v":0},null,{"$f":"Import!M36868","v":0},null,{"$f":"IF(OR(Import!M36890=0,Import!M36890=\"\"),P52,Import!M36890)","v":0},null,{"$f":"IF(OR(Import!M36912=0,Import!M36912=\"\"),R52,Import!M36912)","v":0},null,null,null,0,null,null,null,0.45]
[null,29,"Letters of Credit",{"$f":"Import!M36737","v":0},null,{"$f":"IF(OR(Import!M36759=0,Import!M36759=\"\"),(1-$AB53)*D53,Import!M36759)","v":0},null,{"$f":"Import!M36781","v":0},null,{"$f":"IF(OR(Import!M36803=0,Import!M36803=\"\"),(1-$AB53)*H53,Import!M36803)","v":0},null,{"$f":"Import!M36825","v":0},null,{"$f":"IF(OR(Import!M36847=0,Import!M36847=\"\"),(1-$AB53)*L53,Import!M36847)","v":0},null,{"$f":"Import!M36869","v":0},null,{"$f":"IF(OR(Import!M36891=0,Import!M36891=\"\"),P53,Import!M36891)","v":0},null,{"$f":"IF(OR(Import!M36913=0,Import!M36913=\"\"),R53,Import!M36913)","v":0},null,null,null,0,null,null,null,0.2]
[null,30,"Intangible assets",{"$f":"Import!M36738","v":0},null,{"$f":"IF(OR(Import!M36760=0,Import!M36760=\"\"),(1-$AB54)*D54,Import!M36760)","v":0},null,{"$f":"Import!M36782","v":0},null,{"$f":"IF(OR(Import!M36804=0,Import!M36804=\"\"),(1-$AB54)*H54,Import!M36804)","v":0},null,{"$f":"Import!M36826","v":0},null,{"$f":"IF(OR(Import!M36848=0,Import!M36848=\"\"),(1-$AB54)*L54,Import!M36848)","v":0},null,{"$f":"Import!M36870","v":0},null,{"$f":"IF(OR(Import!M36892=0,Import!M36892=\"\"),P54,Import!M36892)","v":0},null,{"$f":"IF(OR(Import!M36914=0,Import!M36914=\"\"),R54,Import!M36914)","v":0},null,null,null,0,null,null,null,0.2]
[null,31,"Pension Benefit Surplus",{"$f":"Import!M36739","v":0},null,{"$f":"IF(OR(Import!M36761=0,Import!M36761=\"\"),(1-$AB55)*D55,Import!M36761)","v":0},null,{"$f":"Import!M36783","v":0},null,{"$f":"IF(OR(Import!M36805=0,Import!M36805=\"\"),(1-$AB55)*H55,Import!M36805)","v":0},null,{"$f":"Import!M36827","v":0},null,{"$f":"IF(OR(Import!M36849=0,Import!M36849=\"\"),(1-$AB55)*L55,Import!M36849)","v":0},null,{"$f":"Import!M36871","v":0},null,{"$f":"IF(OR(Import!M36893=0,Import!M36893=\"\"),P55,Import!M36893)","v":0},null,{"$f":"IF(OR(Import!M36915=0,Import!M36915=\"\"),R55,Import!M36915)","v":0},null,null,null,0,null,null,null,0.2]
[null,32,"Equity Derivatives on Type 2 Equities",{"$f":"Import!M36740","v":0},null,{"$f":"Import!M36762","v":0},null,{"$f":"Import!M36784","v":0},null,{"$f":"Import!M36806","v":0},null,{"$f":"Import!M36828","v":0},null,{"$f":"Import!M36850","v":0},null,{"$f":"Import!M36872","v":0},null,{"$f":"IF(OR(Import!M36894=0,Import!M36894=\"\"),P56,Import!M36894)","v":0},null,{"$f":"IF(OR(Import!M36916=0,Import!M36916=\"\"),R56,Import!M36916)","v":0},null,null,null,0,null,null,null,0.45]
[null,33,"Infrastructure",{"$f":"Import!M36741","v":0},null,{"$f":"IF(OR(Import!M36763=0,Import!M36763=\"\"),(1-$AB57)*D57,Import!M36763)","v":0},null,{"$f":"Import!M36785","v":0},null,{"$f":"IF(OR(Import!M36807=0,Import!M36807=\"\"),(1-$AB57)*H57,Import!M36807)","v":0},null,{"$f":"Import!M36829","v":0},null,{"$f":"IF(OR(Import!M36851=0,Import!M36851=\"\"),(1-$AB57)*L57,Import!M36851)","v":0},null,{"$f":"Import!M36873","v":0},null,{"$f":"IF(OR(Import!M36895=0,Import!M36895=\"\"),P57,Import!M36895)","v":0},null,{"$f":"IF(OR(Import!M36917=0,Import!M36917=\"\"),R57,Import!M36917)","v":0},null,null,null,0,null,null,null,0.25]
[null,34,"Derivatives on Infrastructure",{"$f":"Import!M36742","v":0},null,{"$f":"Import!M36764","v":0},null,{"$f":"Import!M36786","v":0},null,{"$f":"Import!M36808","v":0},null,{"$f":"Import!M36830","v":0},null,{"$f":"Import!M36852","v":0},null,{"$f":"Import!M36874","v":0},null,{"$f":"IF(OR(Import!M36896=0,Import!M36896=\"\"),P58,Import!M36896)","v":0},null,{"$f":"IF(OR(Import!M36918=0,Import!M36918=\"\"),R58,Import!M36918)","v":0},null,null,null,0,null,null,null,0.25]
[null,35,"Equity Real Estate 1",{"$f":"Import!M36743","v":0},null,{"$f":"IF(OR(Import!M36765=0,Import!M36765=\"\"),(1-$AB59)*D59,Import!M36765)","v":0},null,{"$f":"Import!M36787","v":0},null,{"$f":"IF(OR(Import!M36809=0,Import!M36809=\"\"),(1-$AB59)*H59,Import!M36809)","v":0},null,{"$f":"Import!M36831","v":0},null,{"$f":"IF(OR(Import!M36853=0,Import!M36853=\"\"),(1-$AB59)*L59,Import!M36853)","v":0},null,{"$f":"Import!M36875","v":0},null,{"$f":"IF(OR(Import!M36897=0,Import!M36897=\"\"),P59,Import!M36897)","v":0},null,{"$f":"IF(OR(Import!M36919=0,Import!M36919=\"\"),R59,Import!M36919)","v":0},null,null,null,0,null,null,null,0.1]
[null,36,"Equity Real Estate 2",{"$f":"Import!M36744","v":0},null,{"$f":"IF(OR(Import!M36766=0,Import!M36766=\"\"),(1-$AB60)*D60,Import!M36766)","v":0},null,{"$f":"Import!M36788","v":0},null,{"$f":"IF(OR(Import!M36810=0,Import!M36810=\"\"),(1-$AB60)*H60,Import!M36810)","v":0},null,{"$f":"Import!M36832","v":0},null,{"$f":"IF(OR(Import!M36854=0,Import!M36854=\"\"),(1-$AB60)*L60,Import!M36854)","v":0},null,{"$f":"Import!M36876","v":0},null,{"$f":"IF(OR(Import!M36898=0,Import!M36898=\"\"),P60,Import!M36898)","v":0},null,{"$f":"IF(OR(Import!M36920=0,Import!M36920=\"\"),R60,Import!M36920)","v":0},null,null,null,0,null,null,null,0.2]
[]
[null,{"$f":"B60+1","v":37},"Total Equity Holdings",{"$f":"SUM(D38:D61)","v":0},null,{"$f":"SUM(F38:F61)","v":0},null,{"$f":"SUM(H38:H61)","v":0},null,{"$f":"SUM(J38:J61)","v":0},null,{"$f":"SUM(L38:L61)","v":0},null,{"$f":"SUM(N38:N61)","v":0},null,{"$f":"SUM(P38:P61)","v":0},null,{"$f":"SUM(R38:R61)","v":0},null,{"$f":"SUM(T38:T61)","v":0},null,null,null,{"$f":"SUM(X38:X61)","v":0}]
[]
[null,null,null,"Spread Up",null,null,null,null,null,null,null,null,null,"Spread Down"]
[null,null,null,"Long Exposures",null,null,null,"Short Exposures",null,null,null,"Shock (bps)",null,"Long Exposures",null,null,null,"Short Exposures",null,null,null,"Shock Rates"]
[null,null,null,"Before Shock",null,"After Shock",null,"Before Shock",null,"After Shock",null,null,null,"Before Shock",null,"Before Shock",null,"After Shock",null,"After Shock"]
[null,null,"Spread Risk for Credit Derivatives"]
[null,{"$f":"B62+1","v":38},"BSCR Rating 0",{"$f":"Import!M36921","v":0},null,{"$f":"Import!M36930","v":0},null,{"$f":"Import!M36939","v":0},null,{"$f":"Import!M36948","v":0},null,0,null,{"$f":"Import!M36957","v":0},null,{"$f":"Import!M36966","v":0},null,{"$f":"Import!M36975","v":0},null,{"$f":"Import!M36984","v":0},null,0]
[null,{"$f":"B68+1","v":39},"BSCR Rating 1",{"$f":"Import!M36922","v":0},null,{"$f":"Import!M36931","v":0},null,{"$f":"Import!M36940","v":0},null,{"$f":"Import!M36949","v":0},null,130,null,{"$f":"Import!M36958","v":0},null,{"$f":"Import!M36967","v":0},null,{"$f":"Import!M36976","v":0},null,{"$f":"Import!M36985","v":0},null,-0.75]
[null,{"$f":"B69+1","v":40},"BSCR Rating 2",{"$f":"Import!M36923","v":0},null,{"$f":"Import!M36932","v":0},null,{"$f":"Import!M36941","v":0},null,{"$f":"Import!M36950","v":0},null,150,null,{"$f":"Import!M36959","v":0},null,{"$f":"Import!M36968","v":0},null,{"$f":"Import!M36977","v":0},null,{"$f":"Import!M36986","v":0},null,-0.75]
[null,41,"BSCR Rating 3",{"$f":"Import!M36924","v":0},null,{"$f":"Import!M36933","v":0},null,{"$f":"Import!M36942","v":0},null,{"$f":"Import!M36951","v":0},null,260,null,{"$f":"Import!M36960","v":0},null,{"$f":"Import!M36969","v":0},null,{"$f":"Import!M36978","v":0},null,{"$f":"Import!M36987","v":0},null,-0.75]
[null,42,"BSCR Rating 4",{"$f":"Import!M36925","v":0},null,{"$f":"Import!M36934","v":0},null,{"$f":"Import!M36943","v":0},null,{"$f":"Import!M36952","v":0},null,450,null,{"$f":"Import!M36961","v":0},null,{"$f":"Import!M36970","v":0},null,{"$f":"Import!M36979","v":0},null,{"$f":"Import!M36988","v":0},null,-0.75]
[null,43,"BSCR Rating 5",{"$f":"Import!M36926","v":0},null,{"$f":"Import!M36935","v":0},null,{"$f":"Import!M36944","v":0},null,{"$f":"Import!M36953","v":0},null,840,null,{"$f":"Import!M36962","v":0},null,{"$f":"Import!M36971","v":0},null,{"$f":"Import!M36980","v":0},null,{"$f":"Import!M36989","v":0},null,-0.75]
[null,44,"BSCR Rating 6",{"$f":"Import!M36927","v":0},null,{"$f":"Import!M36936","v":0},null,{"$f":"Import!M36945","v":0},null,{"$f":"Import!M36954","v":0},null,1620,null,{"$f":"Import!M36963","v":0},null,{"$f":"Import!M36972","v":0},null,{"$f":"Import!M36981","v":0},null,{"$f":"Import!M36990","v":0},null,-0.75]
[null,45,"BSCR Rating 7",{"$f":"Import!M36928","v":0},null,{"$f":"Import!M36937","v":0},null,{"$f":"Import!M36946","v":0},null,{"$f":"Import!M36955","v":0},null,1620,null,{"$f":"Import!M36964","v":0},null,{"$f":"Import!M36973","v":0},null,{"$f":"Import!M36982","v":0},null,{"$f":"Import!M36991","v":0},null,-0.75]
[null,46,"BSCR Rating 8",{"$f":"Import!M36929","v":0},null,{"$f":"Import!M36938","v":0},null,{"$f":"Import!M36947","v":0},null,{"$f":"Import!M36956","v":0},null,1620,null,{"$f":"Import!M36965","v":0},null,{"$f":"Import!M36974","v":0},null,{"$f":"Import!M36983","v":0},null,{"$f":"Import!M36992","v":0},null,-0.75]
[null,47,"Total Spread",{"$f":"SUM(D67:D76)","v":0},null,{"$f":"SUM(F67:F76)","v":0},null,{"$f":"SUM(H67:H76)","v":0},null,{"$f":"SUM(J67:J76)","v":0},null,null,null,{"$f":"SUM(N67:N76)","v":0},null,{"$f":"SUM(P67:P76)","v":0},null,{"$f":"SUM(R67:R76)","v":0},null,{"$f":"SUM(T67:T76)","v":0}]
[]
[null,null,"Spread Risk Check",null,null,null,null,null,null,null,null,null,null,{"$f":"IF(ROUND(D77-N77,0)=0,\"Yes\",\"No\")","v":"Yes"},null,null,null,{"$f":"IF(ROUND(H77-R77,0)=0,\"Yes\",\"No\")","v":"Yes"}]
[null,null,"Difference",null,null,null,null,null,null,null,null,null,null,{"$f":"ROUND(D77-N77,0)","v":0},null,null,null,{"$f":"ROUND(H77-R77,0)","v":0}]
[]
[null,null,null,"Market Value of Derivatives with Positive Market Value",null,"Market Value of Derivatives with Negative Market Value",null,"Market Value of Collateral, Excluding any over-collateralization",null,null,null,"This Section is Only Applicable to Companies that have Mortgage Backed Securities that have been Reclassified in Accordance with the NAIC and that elect to use NAIC reclassifications to map to the BSCR classes"]
[null,null,"Counterparty Default Risk for OTC Derivatives",null,null,null,null,null,null,null,null,null,"VALUES OF RESIDENTIAL MORTGAGE-BACKED SECURITIES",null,null,null,"VALUES OF COMMERCIAL MORTGAGE-BACKED SECURITIES / ASSET-BACKED SECURITIES"]
[null,{"$f":"B77+1","v":48},"BSCR Rating 0",{"$f":"Import!M36993","v":0},null,{"$f":"Import!M37002","v":0},null,{"$f":"Import!M37011","v":0},null,null,null,null,null,"Original Classification",null,"Revised Classification",null,"Original Classification",null,"Revised Classification"]
[null,{"$f":"B84+1","v":49},"BSCR Rating 1",{"$f":"Import!M36994","v":0},null,{"$f":"Import!M37003","v":0},null,{"$f":"Import!M37012","v":0}]
[null,{"$f":"B85+1","v":50},"BSCR Rating 2",{"$f":"Import!M36995","v":0},null,{"$f":"Import!M37004","v":0},null,{"$f":"Import!M37013","v":0},null,null,null,"NAIC Class 1",null,{"$f":"Import!M37021","v":0},null,{"$f":"Import!M37028","v":0},null,{"$f":"Import!M37035","v":0},null,{"$f":"Import!M37042","v":0}]
[null,51,"BSCR Rating 3",{"$f":"Import!M36996","v":0},null,{"$f":"Import!M37005","v":0},null,{"$f":"Import!M37014","v":0},null,null,null,"NAIC Class 2",null,{"$f":"Import!M37022","v":0},null,{"$f":"Import!M37029","v":0},null,{"$f":"Import!M37036","v":0},null,{"$f":"Import!M37043","v":0}]
[null,52,"BSCR Rating 4",{"$f":"Import!M36997","v":0},null,{"$f":"Import!M37006","v":0},null,{"$f":"Import!M37015","v":0},null,null,null,"NAIC Class 3",null,{"$f":"Import!M37023","v":0},null,{"$f":"Import!M37030","v":0},null,{"$f":"Import!M37037","v":0},null,{"$f":"Import!M37044","v":0}]
[null,53,"BSCR Rating 5",{"$f":"Import!M36998","v":0},null,{"$f":"Import!M37007","v":0},null,{"$f":"Import!M37016","v":0},null,null,null,"NAIC Class 4",null,{"$f":"Import!M37024","v":0},null,{"$f":"Import!M37031","v":0},null,{"$f":"Import!M37038","v":0},null,{"$f":"Import!M37045","v":0}]
[null,54,"BSCR Rating 6",{"$f":"Import!M36999","v":0},null,{"$f":"Import!M37008","v":0},null,{"$f":"Import!M37017","v":0},null,null,null,"NAIC Class 5",null,{"$f":"Import!M37025","v":0},null,{"$f":"Import!M37032","v":0},null,{"$f":"Import!M37039","v":0},null,{"$f":"Import!M37046","v":0}]
[null,55,"BSCR Rating 7",{"$f":"Import!M37000","v":0},null,{"$f":"Import!M37009","v":0},null,{"$f":"Import!M37018","v":0},null,null,null,"NAIC Class 6",null,{"$f":"Import!M37026","v":0},null,{"$f":"Import!M37033","v":0},null,{"$f":"Import!M37040","v":0},null,{"$f":"Import!M37047","v":0}]
[null,56,"BSCR Rating 8",{"$f":"Import!M37001","v":0},null,{"$f":"Import!M37010","v":0},null,{"$f":"Import!M37019","v":0},null,null,null,{"$f":"IF('Insurer Information'!E32=\"Class C\",HYPERLINK(\"#'Attachments'!G45\",\"Attach file\"),HYPERLINK(\"#'Attachments'!G65\",\"Attach file\"))","v":"Attach file"},null,{"$f":"SUM(N86:N91)","v":0},null,{"$f":"SUM(P86:P91)","v":0},null,{"$f":"SUM(R86:R91)","v":0},null,{"$f":"SUM(T86:T91)","v":0}]
[null,57,"Total Default Risk for OTC Derivatives ",{"$f":"SUM(D83:D92)","v":0},null,{"$f":"SUM(F83:F92)","v":0},null,{"$f":"SUM(H83:H92)","v":0},null,null,null,null,null,null,{"$f":"SUM(N86:N91)","v":0},null,{"$f":"SUM(P86:P91)","v":0},null,{"$f":"SUM(R86:R91)","v":0}]
[]
[null,{"$f":"B93+1","v":58},"Cash and Cash Equivalents",{"$f":"Import!M37020","v":0}]
[]
[null,{"$f":"B95+1","v":59},"Total Fixed Income & Equity Investments",{"$f":"X27+X62+D77+H77+D93+F93+H93+D95","v":0}]
[]
[null,null,"Please include in the table below any assets, included in this Schedule, for which NAIC ratings were used to map to the BSCR rating classes"]
[null,null,"Information on the use of NAIC ratings\n(for disclosure purposes only)","CORPORATE & SOVEREIGN BONDS",null,"RESIDENTIAL MORTGAGE-BACKED SECURITIES",null,"COMMERCIAL MORTGAGE-BACKED SECURITIES / ASSET-BACKED SECURITIES",null,"BOND MUTUAL FUNDS",null,"MORTGAGE LOANS",null,"PREFERRED STOCKS",null,"OTHER ASSETS"]
[null,null,"NAIC Class 1",{"$f":"Import!M37049","v":0},null,{"$f":"Import!M37056","v":0},null,{"$f":"Import!M37063","v":0},null,{"$f":"Import!M37070","v":0},null,{"$f":"Import!M37077","v":0},null,{"$f":"Import!M37084","v":0},null,{"$f":"Import!M37091","v":0}]
[null,null,"NAIC Class 2",{"$f":"Import!M37050","v":0},null,{"$f":"Import!M37057","v":0},null,{"$f":"Import!M37064","v":0},null,{"$f":"Import!M37071","v":0},null,{"$f":"Import!M37078","v":0},null,{"$f":"Import!M37085","v":0},null,{"$f":"Import!M37092","v":0}]
[null,null,"NAIC Class 3",{"$f":"Import!M37051","v":0},null,{"$f":"Import!M37058","v":0},null,{"$f":"Import!M37065","v":0},null,{"$f":"Import!M37072","v":0},null,{"$f":"Import!M37079","v":0},null,{"$f":"Import!M37086","v":0},null,{"$f":"Import!M37093","v":0}]
[null,null,"NAIC Class 4",{"$f":"Import!M37052","v":0},null,{"$f":"Import!M37059","v":0},null,{"$f":"Import!M37066","v":0},null,{"$f":"Import!M37073","v":0},null,{"$f":"Import!M37080","v":0},null,{"$f":"Import!M37087","v":0},null,{"$f":"Import!M37094","v":0}]
[null,null,"NAIC Class 5",{"$f":"Import!M37053","v":0},null,{"$f":"Import!M37060","v":0},null,{"$f":"Import!M37067","v":0},null,{"$f":"Import!M37074","v":0},null,{"$f":"Import!M37081","v":0},null,{"$f":"Import!M37088","v":0},null,{"$f":"Import!M37095","v":0}]
[null,null,"NAIC Class 6",{"$f":"Import!M37054","v":0},null,{"$f":"Import!M37061","v":0},null,{"$f":"Import!M37068","v":0},null,{"$f":"Import!M37075","v":0},null,{"$f":"Import!M37082","v":0},null,{"$f":"Import!M37089","v":0},null,{"$f":"Import!M37096","v":0}]
[null,null,null,{"$f":"SUM(D101:D106)","v":0},null,{"$f":"SUM(F101:F106)","v":0},null,{"$f":"SUM(H101:H106)","v":0},null,{"$f":"SUM(J101:J106)","v":0},null,{"$f":"SUM(L101:L106)","v":0},null,{"$f":"SUM(N101:N106)","v":0},null,{"$f":"SUM(P101:P106)","v":0}]

{"sheet":"Schedule IIC (EBS)","index":32,"n_rows":107,"n_cols":28,"rows_kept":107,"cut":false,"hidden":false,"merged":[[33,27,34,27],[7,23,7,25],[7,11,7,13],[7,19,7,21],[32,3,32,13],[33,17,34,17],[33,19,34,19],[32,15,32,19],[33,15,34,15],[7,15,7,17],[33,3,34,5],[33,7,33,13],[33,23,34,23],[34,7,34,9],[34,11,34,13],[2,3,2,7],[3,5,3,7],[4,5,4,7],[7,3,7,5],[7,7,7,9],[64,3,64,5],[64,7,64,9],[63,3,63,11],[63,13,63,21],[64,13,64,15],[64,17,64,19]]}
[null,"SCHEDULE OF FUNDS HELD",null,null,null,null,null,null,null,null,null,null,null,null,null,null,null,null,null,null,null,null,null,null,null,null,null,{"$f":"HYPERLINK(\"#'Index'!A1\",\"Return to Index\")","v":"Return to Index"}]
[]
[null,null,null,{"$f":"'Insurer Information'!C7","v":"Enter Company Name"}]
[null,null,null,"As at",null,{"$f":" TEXT('Insurer Information'!C3,\"D MMMM YYYY\")","v":"31 December 2023"},null,null,null,null,null,null,null,null,null,null,null,null,null,null,null,null,null,null,null,"SCHEDULE IIC (EBS)"]
[null,null,null,{"$f":"\"Expressed in \" & IF(CONFIGURATION!$B$12>1,\" ['\"&MID(CONFIGURATION!$B$12,2,LEN(CONFIGURATION!$B$12))&\"s]\",\"\")","v":"Expressed in  ['000s]"},null,{"$f":"'Form 4EBS'!C4","v":"United States Dollars"}]
[]
[null,null,null,"(1)",null,"(2)",null,"(3)",null,"(4)",null,"(5)",null,"(6)",null,"(7)",null,"(8)",null,"(9)",null,"(10)",null,"(11)",null,"(12)"]
[null,null,null,"Corporate & Sovereign Bonds",null,null,null,"Residential Mortgage Backed Securities",null,null,null,"Commercial Mortgage Backed Securities / Asset- Backed Securities",null,null,null,"Bond Mutual Funds",null,null,null,"Mortgage Loans",null,null,null,"TOTAL"]
[null,null,null,{"$f":"'Form 4EBS'!F6","v":"2023-12-31"},null,{"$f":"'Form 4EBS'!H6","v":"2022-12-31"},null,{"$f":"'Form 4EBS'!F6","v":"2023-12-31"},null,{"$f":"'Form 4EBS'!H6","v":"2022-12-31"},null,{"$f":"'Form 4EBS'!F6","v":"2023-12-31"},null,{"$f":"'Form 4EBS'!H6","v":"2022-12-31"},null,{"$f":"'Form 4EBS'!F6","v":"2023-12-31"},null,{"$f":"'Form 4EBS'!H6","v":"2022-12-31"},null,{"$f":"'Form 4EBS'!F6","v":"2023-12-31"},null,{"$f":"'Form 4EBS'!H6","v":"2022-12-31"},null,{"$f":"D9","v":"2023-12-31"},null,{"$f":"F9","v":"2022-12-31"}]
[null,null,null,{"$f":"CONFIGURATION!$D$12","v":" ('000s)"},null,{"$f":"CONFIGURATION!$D$12","v":" ('000s)"},null,{"$f":"CONFIGURATION!$D$12","v":" ('000s)"},null,{"$f":"CONFIGURATION!$D$12","v":" ('000s)"},null,{"$f":"CONFIGURATION!$D$12","v":" ('000s)"},null,{"$f":"CONFIGURATION!$D$12","v":" ('000s)"},null,{"$f":"CONFIGURATION!$D$12","v":" ('000s)"},null,{"$f":"CONFIGURATION!$D$12","v":" ('000s)"},null,{"$f":"CONFIGURATION!$D$12","v":" ('000s)"},null,{"$f":"CONFIGURATION!$D$12","v":" ('000s)"},null,{"$f":"CONFIGURATION!$D$12","v":" ('000s)"},null,{"$f":"CONFIGURATION!$D$12","v":" ('000s)"}]
[null,"Line no. "]
[null,"Quoted and Unquoted Bonds and Debentures"]
[null,1,"BSCR Rating 0",{"$f":"Import!M37099","v":0},null,{"$f":"Import!O37099","v":0},null,null,null,null,null,null,null,null,null,{"$f":"Import!M37124","v":0},null,{"$f":"Import!O37124","v":0},null,null,null,null,null,{"$f":"D13+H13+L13+P13","v":0},null,{"$f":"F13+J13+N13+R13","v":0}]
[null,{"$f":"B13+1","v":2},"BSCR Rating 1",{"$f":"Import!M37100","v":0},null,{"$f":"Import!O37100","v":0},null,{"$f":"Import!M37108","v":0},null,{"$f":"Import!O37108","v":0},null,{"$f":"Import!M37116","v":0},null,{"$f":"Import!O37116","v":0},null,{"$f":"Import!M37125","v":0},null,{"$f":"Import!O37125","v":0},null,null,null,null,null,{"$f":"D14+H14+L14+P14","v":0},null,0]
[null,{"$f":"B14+1","v":3},"BSCR Rating 2",{"$f":"Import!M37101","v":0},null,{"$f":"Import!O37101","v":0},null,{"$f":"Import!M37109","v":0},null,{"$f":"Import!O37109","v":0},null,{"$f":"Import!M37117","v":0},null,{"$f":"Import!O37117","v":0},null,{"$f":"Import!M37126","v":0},null,{"$f":"Import!O37126","v":0},null,null,null,null,null,0,null,0]
[null,4,"BSCR Rating 3",{"$f":"Import!M37102","v":0},null,{"$f":"Import!O37102","v":0},null,{"$f":"Import!M37110","v":0},null,{"$f":"Import!O37110","v":0},null,{"$f":"Import!M37118","v":0},null,{"$f":"Import!O37118","v":0},null,{"$f":"Import!M37127","v":0},null,{"$f":"Import!O37127","v":0},null,null,null,null,null,0,null,0]
[null,5,"BSCR Rating 4",{"$f":"Import!M37103","v":0},null,{"$f":"Import!O37103","v":0},null,{"$f":"Import!M37111","v":0},null,{"$f":"Import!O37111","v":0},null,{"$f":"Import!M37119","v":0},null,{"$f":"Import!O37119","v":0},null,{"$f":"Import!M37128","v":0},null,{"$f":"Import!O37128","v":0},null,null,null,null,null,0,null,0]
[null,6,"BSCR Rating 5",{"$f":"Import!M37104","v":0},null,{"$f":"Import!O37104","v":0},null,{"$f":"Import!M37112","v":0},null,{"$f":"Import!O37112","v":0},null,{"$f":"Import!M37120","v":0},null,{"$f":"Import!O37120","v":0},null,{"$f":"Import!M37129","v":0},null,{"$f":"Import!O37129","v":0},null,null,null,null,null,0,null,0]
[null,7,"BSCR Rating 6",{"$f":"Import!M37105","v":0},null,{"$f":"Import!O37105","v":0},null,{"$f":"Import!M37113","v":0},null,{"$f":"Import!O37113","v":0},null,{"$f":"Import!M37121","v":0},null,{"$f":"Import!O37121","v":0},null,{"$f":"Import!M37130","v":0},null,{"$f":"Import!O37130","v":0},null,null,null,null,null,0,null,0]
[null,8,"BSCR Rating 7",{"$f":"Import!M37106","v":0},null,{"$f":"Import!O37106","v":0},null,{"$f":"Import!M37114","v":0},null,{"$f":"Import!O37114","v":0},null,{"$f":"Import!M37122","v":0},null,{"$f":"Import!O37122","v":0},null,{"$f":"Import!M37131","v":0},null,{"$f":"Import!O37131","v":0},null,null,null,null,null,0,null,0]
[null,9,"BSCR Rating 8",{"$f":"Import!M37107","v":0},null,{"$f":"Import!O37107","v":0},null,{"$f":"Import!M37115","v":0},null,{"$f":"Import!O37115","v":0},null,{"$f":"Import!M37123","v":0},null,{"$f":"Import!O37123","v":0},null,{"$f":"Import!M37132","v":0},null,{"$f":"Import!O37132","v":0},null,null,null,null,null,{"$f":"D21+H21+L21+P21","v":0},null,{"$f":"F21+J21+N21+R21","v":0}]
[null,10,"Insured/Guaranteed Mortgages",null,null,null,null,null,null,null,null,null,null,null,null,null,null,null,null,{"$f":"Import!M37133","v":0},null,{"$f":"Import!O37133","v":0},null,{"$f":"D22+H22+L22+P22+T22","v":0},null,{"$f":"F22+J22+N22+R22+V22","v":0}]
[null,11,"Other Commercial and Farm Mortgages",null,null,null,null,null,null,null,null,null,null,null,null,null,null,null,null,{"$f":"Import!M37134","v":0},null,{"$f":"Import!O37134","v":0},null,{"$f":"D23+H23+L23+P23+T23","v":0},null,0]
[null,12,"Other Residential Mortgages",null,null,null,null,null,null,null,null,null,null,null,null,null,null,null,null,{"$f":"Import!M37135","v":0},null,{"$f":"Import!O37135","v":0},null,0,null,0]
[null,13,"Mortgages Not In Good Standing",null,null,null,null,null,null,null,null,null,null,null,null,null,null,null,null,{"$f":"Import!M37136","v":0},null,{"$f":"Import!O37136","v":0},null,0,null,0]
[]
[null,{"$f":"B25+1","v":14},"Total",{"$f":"SUM(D13:D21)","v":0},null,{"$f":"SUM(F13:F21)","v":0},null,{"$f":"SUM(H13:H21)","v":0},null,{"$f":"SUM(J13:J21)","v":0},null,{"$f":"SUM(L13:L21)","v":0},null,{"$f":"SUM(N13:N21)","v":0},null,{"$f":"SUM(P13:P21)","v":0},null,{"$f":"SUM(R13:R21)","v":0},null,{"$f":"SUM(T13:T25)","v":0},null,{"$f":"SUM(V13:V25)","v":0},null,{"$f":"SUM(X13:X25)","v":0},null,{"$f":"SUM(Z13:Z25)","v":0}]
[]
[]
[]
[]
[]
[null,null,null,"ASSETS",null,null,null,null,null,null,null,null,null,null,null,"Liabilities"]
[null,null,null,"Long Exposures",null,null,null,"Short Exposures",null,null,null,null,null,null,null,null,null,"Without Management Actions",null,"With Management Actions",null,null,null,"Total Assets Before Shock",null,null,null,"Shocks"]
[null,null,null,null,null,null,null,"Qualifying as Assets held for risk-mitigation purposes",null,null,null,"Not Qualifying as Assets held for risk-mitigation purposes",null,null,null,null,null,null,null,null,null,null,null,null,null,null,null,"Shocks"]
[null,null,null,"Before Shock",null,"After Shock",null,"Before Shock",null,"After Shock",null,"Before Shock",null,"After Shock",null,"Before Shock",null,"After Shock",null,"After Shock"]
[null,null,null,{"$f":"CONFIGURATION!$D$12","v":" ('000s)"},null,{"$f":"CONFIGURATION!$D$12","v":" ('000s)"},null,{"$f":"CONFIGURATION!$D$12","v":" ('000s)"},null,{"$f":"CONFIGURATION!$D$12","v":" ('000s)"},null,{"$f":"CONFIGURATION!$D$12","v":" ('000s)"},null,{"$f":"CONFIGURATION!$D$12","v":" ('000s)"},null,{"$f":"CONFIGURATION!$D$12","v":" ('000s)"},null,{"$f":"CONFIGURATION!$D$12","v":" ('000s)"},null,{"$f":"CONFIGURATION!$D$12","v":" ('000s)"},null,null,null,{"$f":"CONFIGURATION!$D$12","v":" ('000s)"}]
[null,"Equity Holdings "]
[null,{"$f":"B27+1","v":15},"Strategic Holdings - Listed",{"$f":"Import!M37137","v":0},null,{"$f":"IF(OR(Import!M37159=0,Import!M37159=\"\"),(1-$AB39)*D39,Import!M37159)","v":0},null,{"$f":"Import!M37181","v":0},null,{"$f":"IF(OR(Import!M37203=0,Import!M37203=\"\"),(1-$AB39)*H39,Import!M37203)","v":0},null,{"$f":"Import!M37225","v":0},null,{"$f":"IF(OR(Import!M37247=0,Import!M37247=\"\"),(1-$AB39)*L39,Import!M37247)","v":0},null,{"$f":"Import!M37269","v":0},null,{"$f":"IF(OR(Import!M37291=0,Import!M37291=\"\"),P39,Import!M37291)","v":0},null,{"$f":"IF(OR(Import!M37313=0,Import!M37313=\"\"),R39,Import!M37313)","v":0},null,null,null,{"$f":"D39+H39+L39","v":0},null,null,null,0.2]
[null,{"$f":"B39+1","v":16},"Duration Based",{"$f":"Import!M37138","v":0},null,{"$f":"IF(OR(Import!M37160=0,Import!M37160=\"\"),(1-$AB40)*D40,Import!M37160)","v":0},null,{"$f":"Import!M37182","v":0},null,{"$f":"IF(OR(Import!M37204=0,Import!M37204=\"\"),(1-$AB40)*H40,Import!M37204)","v":0},null,{"$f":"Import!M37226","v":0},null,{"$f":"IF(OR(Import!M37248=0,Import!M37248=\"\"),(1-$AB40)*L40,Import!M37248)","v":0},null,{"$f":"Import!M37270","v":0},null,{"$f":"IF(OR(Import!M37292=0,Import!M37292=\"\"),P40,Import!M37292)","v":0},null,{"$f":"IF(OR(Import!M37314=0,Import!M37314=\"\"),R40,Import!M37314)","v":0},null,null,null,{"$f":"D40+H40+L40","v":0},null,null,null,0.2]
[null,17,"Listed Equity Securities in Developed Markets",{"$f":"Import!M37139","v":0},null,{"$f":"IF(OR(Import!M37161=0,Import!M37161=\"\"),(1-$AB41)*D41,Import!M37161)","v":0},null,{"$f":"Import!M37183","v":0},null,{"$f":"IF(OR(Import!M37205=0,Import!M37205=\"\"),(1-$AB41)*H41,Import!M37205)","v":0},null,{"$f":"Import!M37227","v":0},null,{"$f":"IF(OR(Import!M37249=0,Import!M37249=\"\"),(1-$AB41)*L41,Import!M37249)","v":0},null,{"$f":"Import!M37271","v":0},null,{"$f":"IF(OR(Import!M37293=0,Import!M37293=\"\"),P41,Import!M37293)","v":0},null,{"$f":"IF(OR(Import!M37315=0,Import!M37315=\"\"),R41,Import!M37315)","v":0},null,null,null,0,null,null,null,0.35]
[null,18,"Preferred Stocks, BSCR Rating 1",{"$f":"Import!M37140","v":0},null,{"$f":"IF(OR(Import!M37162=0,Import!M37162=\"\"),(1-$AB42)*D42,Import!M37162)","v":0},null,{"$f":"Import!M37184","v":0},null,{"$f":"IF(OR(Import!M37206=0,Import!M37206=\"\"),(1-$AB42)*H42,Import!M37206)","v":0},null,{"$f":"Import!M37228","v":0},null,{"$f":"IF(OR(Import!M37250=0,Import!M37250=\"\"),(1-$AB42)*L42,Import!M37250)","v":0},null,{"$f":"Import!M37272","v":0},null,{"$f":"IF(OR(Import!M37294=0,Import!M37294=\"\"),P42,Import!M37294)","v":0},null,{"$f":"IF(OR(Import!M37316=0,Import!M37316=\"\"),R42,Import!M37316)","v":0},null,null,null,0,null,null,null,6.0000000000000001E-3]
[null,19,"Preferred Stocks, BSCR Rating 2",{"$f":"Import!M37141","v":0},null,{"$f":"IF(OR(Import!M37163=0,Import!M37163=\"\"),(1-$AB43)*D43,Import!M37163)","v":0},null,{"$f":"Import!M37185","v":0},null,{"$f":"IF(OR(Import!M37207=0,Import!M37207=\"\"),(1-$AB43)*H43,Import!M37207)","v":0},null,{"$f":"Import!M37229","v":0},null,{"$f":"IF(OR(Import!M37251=0,Import!M37251=\"\"),(1-$AB43)*L43,Import!M37251)","v":0},null,{"$f":"Import!M37273","v":0},null,{"$f":"IF(OR(Import!M37295=0,Import!M37295=\"\"),P43,Import!M37295)","v":0},null,{"$f":"IF(OR(Import!M37317=0,Import!M37317=\"\"),R43,Import!M37317)","v":0},null,null,null,0,null,null,null,1.2E-2]
[null,20,"Preferred Stocks, BSCR Rating 3",{"$f":"Import!M37142","v":0},null,{"$f":"IF(OR(Import!M37164=0,Import!M37164=\"\"),(1-$AB44)*D44,Import!M37164)","v":0},null,{"$f":"Import!M37186","v":0},null,{"$f":"IF(OR(Import!M37208=0,Import!M37208=\"\"),(1-$AB44)*H44,Import!M37208)","v":0},null,{"$f":"Import!M37230","v":0},null,{"$f":"IF(OR(Import!M37252=0,Import!M37252=\"\"),(1-$AB44)*L44,Import!M37252)","v":0},null,{"$f":"Import!M37274","v":0},null,{"$f":"IF(OR(Import!M37296=0,Import!M37296=\"\"),P44,Import!M37296)","v":0},null,{"$f":"IF(OR(Import!M37318=0,Import!M37318=\"\"),R44,Import!M37318)","v":0},null,null,null,0,null,null,null,0.02]
[null,21,"Preferred Stocks, BSCR Rating 4",{"$f":"Import!M37143","v":0},null,{"$f":"IF(OR(Import!M37165=0,Import!M37165=\"\"),(1-$AB45)*D45,Import!M37165)","v":0},null,{"$f":"Import!M37187","v":0},null,{"$f":"IF(OR(Import!M37209=0,Import!M37209=\"\"),(1-$AB45)*H45,Import!M37209)","v":0},null,{"$f":"Import!M37231","v":0},null,{"$f":"IF(OR(Import!M37253=0,Import!M37253=\"\"),(1-$AB45)*L45,Import!M37253)","v":0},null,{"$f":"Import!M37275","v":0},null,{"$f":"IF(OR(Import!M37297=0,Import!M37297=\"\"),P45,Import!M37297)","v":0},null,{"$f":"IF(OR(Import!M37319=0,Import!M37319=\"\"),R45,Import!M37319)","v":0},null,null,null,0,null,null,null,0.04]
[null,22,"Preferred Stocks, BSCR Rating 5",{"$f":"Import!M37144","v":0},null,{"$f":"IF(OR(Import!M37166=0,Import!M37166=\"\"),(1-$AB46)*D46,Import!M37166)","v":0},null,{"$f":"Import!M37188","v":0},null,{"$f":"IF(OR(Import!M37210=0,Import!M37210=\"\"),(1-$AB46)*H46,Import!M37210)","v":0},null,{"$f":"Import!M37232","v":0},null,{"$f":"IF(OR(Import!M37254=0,Import!M37254=\"\"),(1-$AB46)*L46,Import!M37254)","v":0},null,{"$f":"Import!M37276","v":0},null,{"$f":"IF(OR(Import!M37298=0,Import!M37298=\"\"),P46,Import!M37298)","v":0},null,{"$f":"IF(OR(Import!M37320=0,Import!M37320=\"\"),R46,Import!M37320)","v":0},null,null,null,0,null,null,null,0.11]
[null,23,"Preferred Stocks, BSCR Rating 6",{"$f":"Import!M37145","v":0},null,{"$f":"IF(OR(Import!M37167=0,Import!M37167=\"\"),(1-$AB47)*D47,Import!M37167)","v":0},null,{"$f":"Import!M37189","v":0},null,{"$f":"IF(OR(Import!M37211=0,Import!M37211=\"\"),(1-$AB47)*H47,Import!M37211)","v":0},null,{"$f":"Import!M37233","v":0},null,{"$f":"IF(OR(Import!M37255=0,Import!M37255=\"\"),(1-$AB47)*L47,Import!M37255)","v":0},null,{"$f":"Import!M37277","v":0},null,{"$f":"IF(OR(Import!M37299=0,Import!M37299=\"\"),P47,Import!M37299)","v":0},null,{"$f":"IF(OR(Import!M37321=0,Import!M37321=\"\"),R47,Import!M37321)","v":0},null,null,null,0,null,null,null,0.25]
[null,24,"Preferred Stocks, BSCR Rating 7",{"$f":"Import!M37146","v":0},null,{"$f":"IF(OR(Import!M37168=0,Import!M37168=\"\"),(1-$AB48)*D48,Import!M37168)","v":0},null,{"$f":"Import!M37190","v":0},null,{"$f":"IF(OR(Import!M37212=0,Import!M37212=\"\"),(1-$AB48)*H48,Import!M37212)","v":0},null,{"$f":"Import!M37234","v":0},null,{"$f":"IF(OR(Import!M37256=0,Import!M37256=\"\"),(1-$AB48)*L48,Import!M37256)","v":0},null,{"$f":"Import!M37278","v":0},null,{"$f":"IF(OR(Import!M37300=0,Import!M37300=\"\"),P48,Import!M37300)","v":0},null,{"$f":"IF(OR(Import!M37322=0,Import!M37322=\"\"),R48,Import!M37322)","v":0},null,null,null,0,null,null,null,0.35]
[null,25,"Preferred Stocks, BSCR Rating 8",{"$f":"Import!M37147","v":0},null,{"$f":"IF(OR(Import!M37169=0,Import!M37169=\"\"),(1-$AB49)*D49,Import!M37169)","v":0},null,{"$f":"Import!M37191","v":0},null,{"$f":"IF(OR(Import!M37213=0,Import!M37213=\"\"),(1-$AB49)*H49,Import!M37213)","v":0},null,{"$f":"Import!M37235","v":0},null,{"$f":"IF(OR(Import!M37257=0,Import!M37257=\"\"),(1-$AB49)*L49,Import!M37257)","v":0},null,{"$f":"Import!M37279","v":0},null,{"$f":"IF(OR(Import!M37301=0,Import!M37301=\"\"),P49,Import!M37301)","v":0},null,{"$f":"IF(OR(Import!M37323=0,Import!M37323=\"\"),R49,Import!M37323)","v":0},null,null,null,0,null,null,null,0.35]
[null,26,"Equity Derivatives on Type 1 Equities",{"$f":"Import!M37148","v":0},null,{"$f":"Import!M37170","v":0},null,{"$f":"Import!M37192","v":0},null,{"$f":"Import!M37214","v":0},null,{"$f":"Import!M37236","v":0},null,{"$f":"Import!M37258","v":0},null,{"$f":"Import!M37280","v":0},null,{"$f":"IF(OR(Import!M37302=0,Import!M37302=\"\"),P50,Import!M37302)","v":0},null,{"$f":"IF(OR(Import!M37324=0,Import!M37324=\"\"),R50,Import!M37324)","v":0},null,null,null,0,null,null,null,0.35]
[null,27,"Strategic Holdings - Unlisted",{"$f":"Import!M37149","v":0},null,{"$f":"IF(OR(Import!M37171=0,Import!M37171=\"\"),(1-$AB51)*D51,Import!M37171)","v":0},null,{"$f":"Import!M37193","v":0},null,{"$f":"IF(OR(Import!M37215=0,Import!M37215=\"\"),(1-$AB51)*H51,Import!M37215)","v":0},null,{"$f":"Import!M37237","v":0},null,{"$f":"IF(OR(Import!M37259=0,Import!M37259=\"\"),(1-$AB51)*L51,Import!M37259)","v":0},null,{"$f":"Import!M37281","v":0},null,{"$f":"IF(OR(Import!M37303=0,Import!M37303=\"\"),P51,Import!M37303)","v":0},null,{"$f":"IF(OR(Import!M37325=0,Import!M37325=\"\"),R51,Import!M37325)","v":0},null,null,null,0,null,null,null,0.2]
[null,28,"Other Equities / Other Assets",{"$f":"Import!M37150","v":0},null,{"$f":"IF(OR(Import!M37172=0,Import!M37172=\"\"),(1-$AB52)*D52,Import!M37172)","v":0},null,{"$f":"Import!M37194","v":0},null,{"$f":"IF(OR(Import!M37216=0,Import!M37216=\"\"),(1-$AB52)*H52,Import!M37216)","v":0},null,{"$f":"Import!M37238","v":0},null,{"$f":"IF(OR(Import!M37260=0,Import!M37260=\"\"),(1-$AB52)*L52,Import!M37260)","v":0},null,{"$f":"Import!M37282","v":0},null,{"$f":"IF(OR(Import!M37304=0,Import!M37304=\"\"),P52,Import!M37304)","v":0},null,{"$f":"IF(OR(Import!M37326=0,Import!M37326=\"\"),R52,Import!M37326)","v":0},null,null,null,0,null,null,null,0.45]
[null,29,"Letters of Credit",{"$f":"Import!M37151","v":0},null,{"$f":"IF(OR(Import!M37173=0,Import!M37173=\"\"),(1-$AB53)*D53,Import!M37173)","v":0},null,{"$f":"Import!M37195","v":0},null,{"$f":"IF(OR(Import!M37217=0,Import!M37217=\"\"),(1-$AB53)*H53,Import!M37217)","v":0},null,{"$f":"Import!M37239","v":0},null,{"$f":"IF(OR(Import!M37261=0,Import!M37261=\"\"),(1-$AB53)*L53,Import!M37261)","v":0},null,{"$f":"Import!M37283","v":0},null,{"$f":"IF(OR(Import!M37305=0,Import!M37305=\"\"),P53,Import!M37305)","v":0},null,{"$f":"IF(OR(Import!M37327=0,Import!M37327=\"\"),R53,Import!M37327)","v":0},null,null,null,0,null,null,null,0.2]
[null,30,"Intangible assets",{"$f":"Import!M37152","v":0},null,{"$f":"IF(OR(Import!M37174=0,Import!M37174=\"\"),(1-$AB54)*D54,Import!M37174)","v":0},null,{"$f":"Import!M37196","v":0},null,{"$f":"IF(OR(Import!M37218=0,Import!M37218=\"\"),(1-$AB54)*H54,Import!M37218)","v":0},null,{"$f":"Import!M37240","v":0},null,{"$f":"IF(OR(Import!M37262=0,Import!M37262=\"\"),(1-$AB54)*L54,Import!M37262)","v":0},null,{"$f":"Import!M37284","v":0},null,{"$f":"IF(OR(Import!M37306=0,Import!M37306=\"\"),P54,Import!M37306)","v":0},null,{"$f":"IF(OR(Import!M37328=0,Import!M37328=\"\"),R54,Import!M37328)","v":0},null,null,null,0,null,null,null,0.2]
[null,31,"Pension Benefit Surplus",{"$f":"Import!M37153","v":0},null,{"$f":"IF(OR(Import!M37175=0,Import!M37175=\"\"),(1-$AB55)*D55,Import!M37175)","v":0},null,{"$f":"Import!M37197","v":0},null,{"$f":"IF(OR(Import!M37219=0,Import!M37219=\"\"),(1-$AB55)*H55,Import!M37219)","v":0},null,{"$f":"Import!M37241","v":0},null,{"$f":"IF(OR(Import!M37263=0,Import!M37263=\"\"),(1-$AB55)*L55,Import!M37263)","v":0},null,{"$f":"Import!M37285","v":0},null,{"$f":"IF(OR(Import!M37307=0,Import!M37307=\"\"),P55,Import!M37307)","v":0},null,{"$f":"IF(OR(Import!M37329=0,Import!M37329=\"\"),R55,Import!M37329)","v":0},null,null,null,0,null,null,null,0.2]
[null,32,"Equity Derivatives on Type 2 Equities",{"$f":"Import!M37154","v":0},null,{"$f":"Import!M37176","v":0},null,{"$f":"Import!M37198","v":0},null,{"$f":"Import!M37220","v":0},null,{"$f":"Import!M37242","v":0},null,{"$f":"Import!M37264","v":0},null,{"$f":"Import!M37286","v":0},null,{"$f":"IF(OR(Import!M37308=0,Import!M37308=\"\"),P56,Import!M37308)","v":0},null,{"$f":"IF(OR(Import!M37330=0,Import!M37330=\"\"),R56,Import!M37330)","v":0},null,null,null,0,null,null,null,0.45]
[null,33,"Infrastructure",{"$f":"Import!M37155","v":0},null,{"$f":"IF(OR(Import!M37177=0,Import!M37177=\"\"),(1-$AB57)*D57,Import!M37177)","v":0},null,{"$f":"Import!M37199","v":0},null,{"$f":"IF(OR(Import!M37221=0,Import!M37221=\"\"),(1-$AB57)*H57,Import!M37221)","v":0},null,{"$f":"Import!M37243","v":0},null,{"$f":"IF(OR(Import!M37265=0,Import!M37265=\"\"),(1-$AB57)*L57,Import!M37265)","v":0},null,{"$f":"Import!M37287","v":0},null,{"$f":"IF(OR(Import!M37309=0,Import!M37309=\"\"),P57,Import!M37309)","v":0},null,{"$f":"IF(OR(Import!M37331=0,Import!M37331=\"\"),R57,Import!M37331)","v":0},null,null,null,0,null,null,null,0.25]
[null,34,"Derivatives on Infrastructure",{"$f":"Import!M37156","v":0},null,{"$f":"Import!M37178","v":0},null,{"$f":"Import!M37200","v":0},null,{"$f":"Import!M37222","v":0},null,{"$f":"Import!M37244","v":0},null,{"$f":"Import!M37266","v":0},null,{"$f":"Import!M37288","v":0},null,{"$f":"IF(OR(Import!M37310=0,Import!M37310=\"\"),P58,Import!M37310)","v":0},null,{"$f":"IF(OR(Import!M37332=0,Import!M37332=\"\"),R58,Import!M37332)","v":0},null,null,null,0,null,null,null,0.25]
[null,35,"Equity Real Estate 1",{"$f":"Import!M37157","v":0},null,{"$f":"IF(OR(Import!M37179=0,Import!M37179=\"\"),(1-$AB59)*D59,Import!M37179)","v":0},null,{"$f":"Import!M37201","v":0},null,{"$f":"IF(OR(Import!M37223=0,Import!M37223=\"\"),(1-$AB59)*H59,Import!M37223)","v":0},null,{"$f":"Import!M37245","v":0},null,{"$f":"IF(OR(Import!M37267=0,Import!M37267=\"\"),(1-$AB59)*L59,Import!M37267)","v":0},null,{"$f":"Import!M37289","v":0},null,{"$f":"IF(OR(Import!M37311=0,Import!M37311=\"\"),P59,Import!M37311)","v":0},null,{"$f":"IF(OR(Import!M37333=0,Import!M37333=\"\"),R59,Import!M37333)","v":0},null,null,null,0,null,null,null,0.1]
[null,36,"Equity Real Estate 2",{"$f":"Import!M37158","v":0},null,{"$f":"IF(OR(Import!M37180=0,Import!M37180=\"\"),(1-$AB60)*D60,Import!M37180)","v":0},null,{"$f":"Import!M37202","v":0},null,{"$f":"IF(OR(Import!M37224=0,Import!M37224=\"\"),(1-$AB60)*H60,Import!M37224)","v":0},null,{"$f":"Import!M37246","v":0},null,{"$f":"IF(OR(Import!M37268=0,Import!M37268=\"\"),(1-$AB60)*L60,Import!M37268)","v":0},null,{"$f":"Import!M37290","v":0},null,{"$f":"IF(OR(Import!M37312=0,Import!M37312=\"\"),P60,Import!M37312)","v":0},null,{"$f":"IF(OR(Import!M37334=0,Import!M37334=\"\"),R60,Import!M37334)","v":0},null,null,null,0,null,null,null,0.2]
[]
[null,{"$f":"B60+1","v":37},"Total Equity Holdings",{"$f":"SUM(D38:D61)","v":0},null,{"$f":"SUM(F38:F61)","v":0},null,{"$f":"SUM(H38:H61)","v":0},null,{"$f":"SUM(J38:J61)","v":0},null,{"$f":"SUM(L38:L61)","v":0},null,{"$f":"SUM(N38:N61)","v":0},null,{"$f":"SUM(P38:P61)","v":0},null,{"$f":"SUM(R38:R61)","v":0},null,{"$f":"SUM(T38:T61)","v":0},null,null,null,{"$f":"SUM(X38:X61)","v":0}]
[]
[null,null,null,"Spread Up",null,null,null,null,null,null,null,null,null,"Spread Down"]
[null,null,null,"Long Exposures",null,null,null,"Short Exposures",null,null,null,"Shock (bps)",null,"Long Exposures",null,null,null,"Short Exposures",null,null,null,"Shock Rates"]
[null,null,null,"Before Shock",null,"After Shock",null,"Before Shock",null,"After Shock",null,null,null,"Before Shock",null,"Before Shock",null,"After Shock",null,"After Shock"]
[null,null,"Spread Risk for Credit Derivatives"]
[null,{"$f":"B62+1","v":38},"BSCR Rating 0",{"$f":"Import!M37335","v":0},null,{"$f":"Import!M37344","v":0},null,{"$f":"Import!M37353","v":0},null,{"$f":"Import!M37362","v":0},null,0,null,{"$f":"Import!M37371","v":0},null,{"$f":"Import!M37380","v":0},null,{"$f":"Import!M37389","v":0},null,{"$f":"Import!M37398","v":0},null,0]
[null,{"$f":"B68+1","v":39},"BSCR Rating 1",{"$f":"Import!M37336","v":0},null,{"$f":"Import!M37345","v":0},null,{"$f":"Import!M37354","v":0},null,{"$f":"Import!M37363","v":0},null,130,null,{"$f":"Import!M37372","v":0},null,{"$f":"Import!M37381","v":0},null,{"$f":"Import!M37390","v":0},null,{"$f":"Import!M37399","v":0},null,-0.75]
[null,{"$f":"B69+1","v":40},"BSCR Rating 2",{"$f":"Import!M37337","v":0},null,{"$f":"Import!M37346","v":0},null,{"$f":"Import!M37355","v":0},null,{"$f":"Import!M37364","v":0},null,150,null,{"$f":"Import!M37373","v":0},null,{"$f":"Import!M37382","v":0},null,{"$f":"Import!M37391","v":0},null,{"$f":"Import!M37400","v":0},null,-0.75]
[null,41,"BSCR Rating 3",{"$f":"Import!M37338","v":0},null,{"$f":"Import!M37347","v":0},null,{"$f":"Import!M37356","v":0},null,{"$f":"Import!M37365","v":0},null,260,null,{"$f":"Import!M37374","v":0},null,{"$f":"Import!M37383","v":0},null,{"$f":"Import!M37392","v":0},null,{"$f":"Import!M37401","v":0},null,-0.75]
[null,42,"BSCR Rating 4",{"$f":"Import!M37339","v":0},null,{"$f":"Import!M37348","v":0},null,{"$f":"Import!M37357","v":0},null,{"$f":"Import!M37366","v":0},null,450,null,{"$f":"Import!M37375","v":0},null,{"$f":"Import!M37384","v":0},null,{"$f":"Import!M37393","v":0},null,{"$f":"Import!M37402","v":0},null,-0.75]
[null,43,"BSCR Rating 5",{"$f":"Import!M37340","v":0},null,{"$f":"Import!M37349","v":0},null,{"$f":"Import!M37358","v":0},null,{"$f":"Import!M37367","v":0},null,840,null,{"$f":"Import!M37376","v":0},null,{"$f":"Import!M37385","v":0},null,{"$f":"Import!M37394","v":0},null,{"$f":"Import!M37403","v":0},null,-0.75]
[null,44,"BSCR Rating 6",{"$f":"Import!M37341","v":0},null,{"$f":"Import!M37350","v":0},null,{"$f":"Import!M37359","v":0},null,{"$f":"Import!M37368","v":0},null,1620,null,{"$f":"Import!M37377","v":0},null,{"$f":"Import!M37386","v":0},null,{"$f":"Import!M37395","v":0},null,{"$f":"Import!M37404","v":0},null,-0.75]
[null,45,"BSCR Rating 7",{"$f":"Import!M37342","v":0},null,{"$f":"Import!M37351","v":0},null,{"$f":"Import!M37360","v":0},null,{"$f":"Import!M37369","v":0},null,1620,null,{"$f":"Import!M37378","v":0},null,{"$f":"Import!M37387","v":0},null,{"$f":"Import!M37396","v":0},null,{"$f":"Import!M37405","v":0},null,-0.75]
[null,46,"BSCR Rating 8",{"$f":"Import!M37343","v":0},null,{"$f":"Import!M37352","v":0},null,{"$f":"Import!M37361","v":0},null,{"$f":"Import!M37370","v":0},null,1620,null,{"$f":"Import!M37379","v":0},null,{"$f":"Import!M37388","v":0},null,{"$f":"Import!M37397","v":0},null,{"$f":"Import!M37406","v":0},null,-0.75]
[null,47,"Total Spread",{"$f":"SUM(D67:D76)","v":0},null,{"$f":"SUM(F67:F76)","v":0},null,{"$f":"SUM(H67:H76)","v":0},null,{"$f":"SUM(J67:J76)","v":0},null,null,null,{"$f":"SUM(N67:N76)","v":0},null,{"$f":"SUM(P67:P76)","v":0},null,{"$f":"SUM(R67:R76)","v":0},null,{"$f":"SUM(T67:T76)","v":0}]
[]
[null,null,"Spread Risk Check",null,null,null,null,null,null,null,null,null,null,{"$f":"IF(ROUND(D77-N77,0)=0,\"Yes\",\"No\")","v":"Yes"},null,null,null,{"$f":"IF(ROUND(H77-R77,0)=0,\"Yes\",\"No\")","v":"Yes"}]
[null,null,"Difference",null,null,null,null,null,null,null,null,null,null,{"$f":"ROUND(D77-N77,0)","v":0},null,null,null,{"$f":"ROUND(H77-R77,0)","v":0}]
[]
[null,null,null,"Market Value of Derivatives with Positive Market Value",null,"Market Value of Derivatives with Negative Market Value",null,"Market Value of Collateral, Excluding any over-collateralization"]
[null,null,"Counterparty Default Risk for OTC Derivatives"]
[null,{"$f":"B77+1","v":48},"BSCR Rating 0",{"$f":"Import!M37407","v":0},null,{"$f":"Import!M37416","v":0},null,{"$f":"Import!M37425","v":0}]
[null,{"$f":"B84+1","v":49},"BSCR Rating 1",{"$f":"Import!M37408","v":0},null,{"$f":"Import!M37417","v":0},null,{"$f":"Import!M37426","v":0}]
[null,{"$f":"B85+1","v":50},"BSCR Rating 2",{"$f":"Import!M37409","v":0},null,{"$f":"Import!M37418","v":0},null,{"$f":"Import!M37427","v":0}]
[null,51,"BSCR Rating 3",{"$f":"Import!M37410","v":0},null,{"$f":"Import!M37419","v":0},null,{"$f":"Import!M37428","v":0}]
[null,52,"BSCR Rating 4",{"$f":"Import!M37411","v":0},null,{"$f":"Import!M37420","v":0},null,{"$f":"Import!M37429","v":0}]
[null,53,"BSCR Rating 5",{"$f":"Import!M37412","v":0},null,{"$f":"Import!M37421","v":0},null,{"$f":"Import!M37430","v":0}]
[null,54,"BSCR Rating 6",{"$f":"Import!M37413","v":0},null,{"$f":"Import!M37422","v":0},null,{"$f":"Import!M37431","v":0}]
[null,55,"BSCR Rating 7",{"$f":"Import!M37414","v":0},null,{"$f":"Import!M37423","v":0},null,{"$f":"Import!M37432","v":0}]
[null,56,"BSCR Rating 8",{"$f":"Import!M37415","v":0},null,{"$f":"Import!M37424","v":0},null,{"$f":"Import!M37433","v":0}]
[null,57,"Total Default Risk for OTC Derivatives ",{"$f":"SUM(D83:D92)","v":0},null,{"$f":"SUM(F83:F92)","v":0},null,{"$f":"SUM(H83:H92)","v":0}]
[]
[null,{"$f":"B93+1","v":58},"Cash and Cash Equivalents",{"$f":"Import!M37434","v":0}]
[]
[null,{"$f":"B95+1","v":59},"Total Funds Held",{"$f":"X27+X62+D77+H77+D93+F93+H93+D95","v":0}]
[]
[null,null,"Please include in the table below any assets, included in this Schedule, for which NAIC ratings were used to map to the BSCR rating classes"]
[null,null,"Information on the use of NAIC ratings\n(for disclosure purposes only)","CORPORATE & SOVEREIGN BONDS",null,"RESIDENTIAL MORTGAGE-BACKED SECURITIES",null,"COMMERCIAL MORTGAGE-BACKED SECURITIES / ASSET-BACKED SECURITIES",null,"BOND MUTUAL FUNDS",null,"MORTGAGE LOANS",null,"PREFERRED STOCKS",null,"OTHER ASSETS"]
[null,null,"NAIC Class 1",{"$f":"Import!M37435","v":0},null,{"$f":"Import!M37442","v":0},null,{"$f":"Import!M37449","v":0},null,{"$f":"Import!M37456","v":0},null,{"$f":"Import!M37463","v":0},null,{"$f":"Import!M37470","v":0},null,{"$f":"Import!M37477","v":0}]
[null,null,"NAIC Class 2",{"$f":"Import!M37436","v":0},null,{"$f":"Import!M37443","v":0},null,{"$f":"Import!M37450","v":0},null,{"$f":"Import!M37457","v":0},null,{"$f":"Import!M37464","v":0},null,{"$f":"Import!M37471","v":0},null,{"$f":"Import!M37478","v":0}]
[null,null,"NAIC Class 3",{"$f":"Import!M37437","v":0},null,{"$f":"Import!M37444","v":0},null,{"$f":"Import!M37451","v":0},null,{"$f":"Import!M37458","v":0},null,{"$f":"Import!M37465","v":0},null,{"$f":"Import!M37472","v":0},null,{"$f":"Import!M37479","v":0}]
[null,null,"NAIC Class 4",{"$f":"Import!M37438","v":0},null,{"$f":"Import!M37445","v":0},null,{"$f":"Import!M37452","v":0},null,{"$f":"Import!M37459","v":0},null,{"$f":"Import!M37466","v":0},null,{"$f":"Import!M37473","v":0},null,{"$f":"Import!M37480","v":0}]
[null,null,"NAIC Class 5",{"$f":"Import!M37439","v":0},null,{"$f":"Import!M37446","v":0},null,{"$f":"Import!M37453","v":0},null,{"$f":"Import!M37460","v":0},null,{"$f":"Import!M37467","v":0},null,{"$f":"Import!M37474","v":0},null,{"$f":"Import!M37481","v":0}]
[null,null,"NAIC Class 6",{"$f":"Import!M37440","v":0},null,{"$f":"Import!M37447","v":0},null,{"$f":"Import!M37454","v":0},null,{"$f":"Import!M37461","v":0},null,{"$f":"Import!M37468","v":0},null,{"$f":"Import!M37475","v":0},null,{"$f":"Import!M37482","v":0}]
[null,null,null,{"$f":"SUM(D101:D106)","v":0},null,{"$f":"SUM(F101:F106)","v":0},null,{"$f":"SUM(H101:H106)","v":0},null,{"$f":"SUM(J101:J106)","v":0},null,{"$f":"SUM(L101:L106)","v":0},null,{"$f":"SUM(N101:N106)","v":0},null,{"$f":"SUM(P101:P106)","v":0}]

{"sheet":"Schedule IID (EBS)","index":33,"n_rows":107,"n_cols":28,"rows_kept":107,"cut":false,"hidden":false,"merged":[[33,27,34,27],[64,3,64,5],[64,7,64,9],[63,3,63,11],[63,13,63,21],[64,13,64,15],[64,17,64,19],[7,15,7,17],[34,7,34,9],[34,11,34,13],[7,19,7,21],[7,23,7,25],[32,3,32,13],[33,3,34,5],[33,7,33,13],[33,23,34,23],[7,11,7,13],[33,15,34,15],[33,17,34,17],[33,19,34,19],[32,15,32,19],[2,3,2,7],[3,5,3,7],[4,5,4,7],[7,3,7,5],[7,7,7,9]]}
[null,"SEGREGATED ACCOUNTS\n",null,null,null,null,null,null,null,null,null,null,null,null,null,null,null,null,null,null,null,null,null,null,null,null,null,{"$f":"HYPERLINK(\"#'Index'!A1\",\"Return to Index\")","v":"Return to Index"}]
[]
[null,null,null,{"$f":"'Insurer Information'!C7","v":"Enter Company Name"}]
[null,null,null,"As at",null,{"$f":" TEXT('Insurer Information'!C3,\"D MMMM YYYY\")","v":"31 December 2023"},null,null,null,null,null,null,null,null,null,null,null,null,null,null,null,null,null,null,null,"SCHEDULE IIC (EBS)"]
[null,null,null,{"$f":"\"Expressed in \" & IF(CONFIGURATION!$B$12>1,\" ['\"&MID(CONFIGURATION!$B$12,2,LEN(CONFIGURATION!$B$12))&\"s]\",\"\")","v":"Expressed in  ['000s]"},null,{"$f":"'Form 4EBS'!C4","v":"United States Dollars"}]
[]
[null,null,null,"(1)",null,"(2)",null,"(3)",null,"(4)",null,"(5)",null,"(6)",null,"(7)",null,"(8)",null,"(9)",null,"(10)",null,"(11)",null,"(12)"]
[null,null,null,"Corporate & Sovereign Bonds",null,null,null,"Residential Mortgage Backed Securities",null,null,null,"Commercial Mortgage Backed Securities / Asset- Backed Securities",null,null,null,"Bond Mutual Funds",null,null,null,"Mortgage Loans",null,null,null,"TOTAL"]
[null,null,null,"Assets",null,"Liabilities",null,"Assets",null,"Liabilities",null,"Assets",null,"Liabilities",null,"Assets",null,"Liabilities",null,"Assets",null,"Liabilities",null,{"$f":"D9","v":"Assets"},null,{"$f":"F9","v":"Liabilities"}]
[null,null,null,{"$f":"CONFIGURATION!$D$12","v":" ('000s)"},null,{"$f":"CONFIGURATION!$D$12","v":" ('000s)"},null,{"$f":"CONFIGURATION!$D$12","v":" ('000s)"},null,{"$f":"CONFIGURATION!$D$12","v":" ('000s)"},null,{"$f":"CONFIGURATION!$D$12","v":" ('000s)"},null,{"$f":"CONFIGURATION!$D$12","v":" ('000s)"},null,{"$f":"CONFIGURATION!$D$12","v":" ('000s)"},null,{"$f":"CONFIGURATION!$D$12","v":" ('000s)"},null,{"$f":"CONFIGURATION!$D$12","v":" ('000s)"},null,{"$f":"CONFIGURATION!$D$12","v":" ('000s)"},null,{"$f":"CONFIGURATION!$D$12","v":" ('000s)"},null,{"$f":"CONFIGURATION!$D$12","v":" ('000s)"}]
[null,"Line no. "]
[null,"Quoted and Unquoted Bonds and Debentures"]
[null,1,"BSCR Rating 0",{"$f":"Import!M37485","v":0},null,{"$f":"Import!M37494","v":0},null,null,null,null,null,null,null,null,null,{"$f":"Import!M37535","v":0},null,{"$f":"Import!M37544","v":0},null,null,null,null,null,{"$f":"D13+H13+L13+P13","v":0},null,{"$f":"F13+J13+N13+R13","v":0}]
[null,{"$f":"B13+1","v":2},"BSCR Rating 1",{"$f":"Import!M37486","v":0},null,{"$f":"Import!M37495","v":0},null,{"$f":"Import!M37503","v":0},null,{"$f":"Import!M37511","v":0},null,{"$f":"Import!M37519","v":0},null,{"$f":"Import!M37527","v":0},null,{"$f":"Import!M37536","v":0},null,{"$f":"Import!M37545","v":0},null,null,null,null,null,{"$f":"D14+H14+L14+P14","v":0},null,0]
[null,{"$f":"B14+1","v":3},"BSCR Rating 2",{"$f":"Import!M37487","v":0},null,{"$f":"Import!M37496","v":0},null,{"$f":"Import!M37504","v":0},null,{"$f":"Import!M37512","v":0},null,{"$f":"Import!M37520","v":0},null,{"$f":"Import!M37528","v":0},null,{"$f":"Import!M37537","v":0},null,{"$f":"Import!M37546","v":0},null,null,null,null,null,0,null,0]
[null,4,"BSCR Rating 3",{"$f":"Import!M37488","v":0},null,{"$f":"Import!M37497","v":0},null,{"$f":"Import!M37505","v":0},null,{"$f":"Import!M37513","v":0},null,{"$f":"Import!M37521","v":0},null,{"$f":"Import!M37529","v":0},null,{"$f":"Import!M37538","v":0},null,{"$f":"Import!M37547","v":0},null,null,null,null,null,0,null,0]
[null,5,"BSCR Rating 4",{"$f":"Import!M37489","v":0},null,{"$f":"Import!M37498","v":0},null,{"$f":"Import!M37506","v":0},null,{"$f":"Import!M37514","v":0},null,{"$f":"Import!M37522","v":0},null,{"$f":"Import!M37530","v":0},null,{"$f":"Import!M37539","v":0},null,{"$f":"Import!M37548","v":0},null,null,null,null,null,0,null,0]
[null,6,"BSCR Rating 5",{"$f":"Import!M37490","v":0},null,{"$f":"Import!M37499","v":0},null,{"$f":"Import!M37507","v":0},null,{"$f":"Import!M37515","v":0},null,{"$f":"Import!M37523","v":0},null,{"$f":"Import!M37531","v":0},null,{"$f":"Import!M37540","v":0},null,{"$f":"Import!M37549","v":0},null,null,null,null,null,0,null,0]
[null,7,"BSCR Rating 6",{"$f":"Import!M37491","v":0},null,{"$f":"Import!M37500","v":0},null,{"$f":"Import!M37508","v":0},null,{"$f":"Import!M37516","v":0},null,{"$f":"Import!M37524","v":0},null,{"$f":"Import!M37532","v":0},null,{"$f":"Import!M37541","v":0},null,{"$f":"Import!M37550","v":0},null,null,null,null,null,0,null,0]
[null,8,"BSCR Rating 7",{"$f":"Import!M37492","v":0},null,{"$f":"Import!M37501","v":0},null,{"$f":"Import!M37509","v":0},null,{"$f":"Import!M37517","v":0},null,{"$f":"Import!M37525","v":0},null,{"$f":"Import!M37533","v":0},null,{"$f":"Import!M37542","v":0},null,{"$f":"Import!M37551","v":0},null,null,null,null,null,0,null,0]
[null,9,"BSCR Rating 8",{"$f":"Import!M37493","v":0},null,{"$f":"Import!M37502","v":0},null,{"$f":"Import!M37510","v":0},null,{"$f":"Import!M37518","v":0},null,{"$f":"Import!M37526","v":0},null,{"$f":"Import!M37534","v":0},null,{"$f":"Import!M37543","v":0},null,{"$f":"Import!M37552","v":0},null,null,null,null,null,0,null,0]
[null,10,"Insured/Guaranteed Mortgages",null,null,null,null,null,null,null,null,null,null,null,null,null,null,null,null,{"$f":"Import!M37553","v":0},null,{"$f":"Import!M37557","v":0},null,{"$f":"D22+H22+L22+P22+T22","v":0},null,{"$f":"F22+J22+N22+R22+V22","v":0}]
[null,11,"Other Commercial and Farm Mortgages",null,null,null,null,null,null,null,null,null,null,null,null,null,null,null,null,{"$f":"Import!M37554","v":0},null,{"$f":"Import!M37558","v":0},null,{"$f":"D23+H23+L23+P23+T23","v":0},null,0]
[null,12,"Other Residential Mortgages",null,null,null,null,null,null,null,null,null,null,null,null,null,null,null,null,{"$f":"Import!M37555","v":0},null,{"$f":"Import!M37559","v":0},null,0,null,0]
[null,13,"Mortgages Not In Good Standing",null,null,null,null,null,null,null,null,null,null,null,null,null,null,null,null,{"$f":"Import!M37556","v":0},null,{"$f":"Import!M37560","v":0},null,0,null,0]
[]
[null,{"$f":"B25+1","v":14},"Total",{"$f":"SUM(D13:D21)","v":0},null,{"$f":"SUM(F13:F21)","v":0},null,{"$f":"SUM(H13:H21)","v":0},null,{"$f":"SUM(J13:J21)","v":0},null,{"$f":"SUM(L13:L21)","v":0},null,{"$f":"SUM(N13:N21)","v":0},null,{"$f":"SUM(P13:P21)","v":0},null,{"$f":"SUM(R13:R21)","v":0},null,{"$f":"SUM(T13:T25)","v":0},null,{"$f":"SUM(V13:V25)","v":0},null,{"$f":"SUM(X13:X25)","v":0},null,{"$f":"SUM(Z13:Z25)","v":0}]
[]
[]
[]
[]
[]
[null,null,null,"ASSETS",null,null,null,null,null,null,null,null,null,null,null,"Liabilities"]
[null,null,null,"Long Exposures",null,null,null,"Short Exposures",null,null,null,null,null,null,null,null,null,"Without Management Actions",null,"With Management Actions",null,null,null,"Total Assets Before Shock",null,null,null,"Shocks"]
[null,null,null,null,null,null,null,"Qualifying as Assets held for risk-mitigation purposes",null,null,null,"Not Qualifying as Assets held for risk-mitigation purposes",null,null,null,null,null,null,null,null,null,null,null,null,null,null,null,"Shocks"]
[null,null,null,"Before Shock",null,"After Shock",null,"Before Shock",null,"After Shock",null,"Before Shock",null,"After Shock",null,"Before Shock",null,"After Shock",null,"After Shock"]
[null,null,null,{"$f":"CONFIGURATION!$D$12","v":" ('000s)"},null,{"$f":"CONFIGURATION!$D$12","v":" ('000s)"},null,{"$f":"CONFIGURATION!$D$12","v":" ('000s)"},null,{"$f":"CONFIGURATION!$D$12","v":" ('000s)"},null,{"$f":"CONFIGURATION!$D$12","v":" ('000s)"},null,{"$f":"CONFIGURATION!$D$12","v":" ('000s)"},null,{"$f":"CONFIGURATION!$D$12","v":" ('000s)"},null,{"$f":"CONFIGURATION!$D$12","v":" ('000s)"},null,{"$f":"CONFIGURATION!$D$12","v":" ('000s)"},null,null,null,{"$f":"CONFIGURATION!$D$12","v":" ('000s)"}]
[null,"Equity Holdings "]
[null,{"$f":"B27+1","v":15},"Strategic Holdings - Listed",{"$f":"Import!M37561","v":0},null,{"$f":"IF(OR(Import!M37583=0,Import!M37583=\"\"),(1-$AB39)*D39,Import!M37583)","v":0},null,{"$f":"Import!M37605","v":0},null,{"$f":"IF(OR(Import!M37627=0,Import!M37627=\"\"),(1-$AB39)*H39,Import!M37627)","v":0},null,{"$f":"Import!M37649","v":0},null,{"$f":"IF(OR(Import!M37671=0,Import!M37671=\"\"),(1-$AB39)*L39,Import!M37671)","v":0},null,{"$f":"Import!M37693","v":0},null,{"$f":"IF(OR(Import!M37715=0,Import!M37715=\"\"),P39,Import!M37715)","v":0},null,{"$f":"IF(OR(Import!M37737=0,Import!M37737=\"\"),R39,Import!M37737)","v":0},null,null,null,{"$f":"D39+H39+L39","v":0},null,null,null,0.2]
[null,{"$f":"B39+1","v":16},"Duration Based",{"$f":"Import!M37562","v":0},null,{"$f":"IF(OR(Import!M37584=0,Import!M37584=\"\"),(1-$AB40)*D40,Import!M37584)","v":0},null,{"$f":"Import!M37606","v":0},null,{"$f":"IF(OR(Import!M37628=0,Import!M37628=\"\"),(1-$AB40)*H40,Import!M37628)","v":0},null,{"$f":"Import!M37650","v":0},null,{"$f":"IF(OR(Import!M37672=0,Import!M37672=\"\"),(1-$AB40)*L40,Import!M37672)","v":0},null,{"$f":"Import!M37694","v":0},null,{"$f":"IF(OR(Import!M37716=0,Import!M37716=\"\"),P40,Import!M37716)","v":0},null,{"$f":"IF(OR(Import!M37738=0,Import!M37738=\"\"),R40,Import!M37738)","v":0},null,null,null,{"$f":"D40+H40+L40","v":0},null,null,null,0.2]
[null,17,"Listed Equity Securities in Developed Markets",{"$f":"Import!M37563","v":0},null,{"$f":"IF(OR(Import!M37585=0,Import!M37585=\"\"),(1-$AB41)*D41,Import!M37585)","v":0},null,{"$f":"Import!M37607","v":0},null,{"$f":"IF(OR(Import!M37629=0,Import!M37629=\"\"),(1-$AB41)*H41,Import!M37629)","v":0},null,{"$f":"Import!M37651","v":0},null,{"$f":"IF(OR(Import!M37673=0,Import!M37673=\"\"),(1-$AB41)*L41,Import!M37673)","v":0},null,{"$f":"Import!M37695","v":0},null,{"$f":"IF(OR(Import!M37717=0,Import!M37717=\"\"),P41,Import!M37717)","v":0},null,{"$f":"IF(OR(Import!M37739=0,Import!M37739=\"\"),R41,Import!M37739)","v":0},null,null,null,0,null,null,null,0.35]
[null,18,"Preferred Stocks, BSCR Rating 1",{"$f":"Import!M37564","v":0},null,{"$f":"IF(OR(Import!M37586=0,Import!M37586=\"\"),(1-$AB42)*D42,Import!M37586)","v":0},null,{"$f":"Import!M37608","v":0},null,{"$f":"IF(OR(Import!M37630=0,Import!M37630=\"\"),(1-$AB42)*H42,Import!M37630)","v":0},null,{"$f":"Import!M37652","v":0},null,{"$f":"IF(OR(Import!M37674=0,Import!M37674=\"\"),(1-$AB42)*L42,Import!M37674)","v":0},null,{"$f":"Import!M37696","v":0},null,{"$f":"IF(OR(Import!M37718=0,Import!M37718=\"\"),P42,Import!M37718)","v":0},null,{"$f":"IF(OR(Import!M37740=0,Import!M37740=\"\"),R42,Import!M37740)","v":0},null,null,null,0,null,null,null,6.0000000000000001E-3]
[null,19,"Preferred Stocks, BSCR Rating 2",{"$f":"Import!M37565","v":0},null,{"$f":"IF(OR(Import!M37587=0,Import!M37587=\"\"),(1-$AB43)*D43,Import!M37587)","v":0},null,{"$f":"Import!M37609","v":0},null,{"$f":"IF(OR(Import!M37631=0,Import!M37631=\"\"),(1-$AB43)*H43,Import!M37631)","v":0},null,{"$f":"Import!M37653","v":0},null,{"$f":"IF(OR(Import!M37675=0,Import!M37675=\"\"),(1-$AB43)*L43,Import!M37675)","v":0},null,{"$f":"Import!M37697","v":0},null,{"$f":"IF(OR(Import!M37719=0,Import!M37719=\"\"),P43,Import!M37719)","v":0},null,{"$f":"IF(OR(Import!M37741=0,Import!M37741=\"\"),R43,Import!M37741)","v":0},null,null,null,0,null,null,null,1.2E-2]
[null,20,"Preferred Stocks, BSCR Rating 3",{"$f":"Import!M37566","v":0},null,{"$f":"IF(OR(Import!M37588=0,Import!M37588=\"\"),(1-$AB44)*D44,Import!M37588)","v":0},null,{"$f":"Import!M37610","v":0},null,{"$f":"IF(OR(Import!M37632=0,Import!M37632=\"\"),(1-$AB44)*H44,Import!M37632)","v":0},null,{"$f":"Import!M37654","v":0},null,{"$f":"IF(OR(Import!M37676=0,Import!M37676=\"\"),(1-$AB44)*L44,Import!M37676)","v":0},null,{"$f":"Import!M37698","v":0},null,{"$f":"IF(OR(Import!M37720=0,Import!M37720=\"\"),P44,Import!M37720)","v":0},null,{"$f":"IF(OR(Import!M37742=0,Import!M37742=\"\"),R44,Import!M37742)","v":0},null,null,null,0,null,null,null,0.02]
[null,21,"Preferred Stocks, BSCR Rating 4",{"$f":"Import!M37567","v":0},null,{"$f":"IF(OR(Import!M37589=0,Import!M37589=\"\"),(1-$AB45)*D45,Import!M37589)","v":0},null,{"$f":"Import!M37611","v":0},null,{"$f":"IF(OR(Import!M37633=0,Import!M37633=\"\"),(1-$AB45)*H45,Import!M37633)","v":0},null,{"$f":"Import!M37655","v":0},null,{"$f":"IF(OR(Import!M37677=0,Import!M37677=\"\"),(1-$AB45)*L45,Import!M37677)","v":0},null,{"$f":"Import!M37699","v":0},null,{"$f":"IF(OR(Import!M37721=0,Import!M37721=\"\"),P45,Import!M37721)","v":0},null,{"$f":"IF(OR(Import!M37743=0,Import!M37743=\"\"),R45,Import!M37743)","v":0},null,null,null,0,null,null,null,0.04]
[null,22,"Preferred Stocks, BSCR Rating 5",{"$f":"Import!M37568","v":0},null,{"$f":"IF(OR(Import!M37590=0,Import!M37590=\"\"),(1-$AB46)*D46,Import!M37590)","v":0},null,{"$f":"Import!M37612","v":0},null,{"$f":"IF(OR(Import!M37634=0,Import!M37634=\"\"),(1-$AB46)*H46,Import!M37634)","v":0},null,{"$f":"Import!M37656","v":0},null,{"$f":"IF(OR(Import!M37678=0,Import!M37678=\"\"),(1-$AB46)*L46,Import!M37678)","v":0},null,{"$f":"Import!M37700","v":0},null,{"$f":"IF(OR(Import!M37722=0,Import!M37722=\"\"),P46,Import!M37722)","v":0},null,{"$f":"IF(OR(Import!M37744=0,Import!M37744=\"\"),R46,Import!M37744)","v":0},null,null,null,0,null,null,null,0.11]
[null,23,"Preferred Stocks, BSCR Rating 6",{"$f":"Import!M37569","v":0},null,{"$f":"IF(OR(Import!M37591=0,Import!M37591=\"\"),(1-$AB47)*D47,Import!M37591)","v":0},null,{"$f":"Import!M37613","v":0},null,{"$f":"IF(OR(Import!M37635=0,Import!M37635=\"\"),(1-$AB47)*H47,Import!M37635)","v":0},null,{"$f":"Import!M37657","v":0},null,{"$f":"IF(OR(Import!M37679=0,Import!M37679=\"\"),(1-$AB47)*L47,Import!M37679)","v":0},null,{"$f":"Import!M37701","v":0},null,{"$f":"IF(OR(Import!M37723=0,Import!M37723=\"\"),P47,Import!M37723)","v":0},null,{"$f":"IF(OR(Import!M37745=0,Import!M37745=\"\"),R47,Import!M37745)","v":0},null,null,null,0,null,null,null,0.25]
[null,24,"Preferred Stocks, BSCR Rating 7",{"$f":"Import!M37570","v":0},null,{"$f":"IF(OR(Import!M37592=0,Import!M37592=\"\"),(1-$AB48)*D48,Import!M37592)","v":0},null,{"$f":"Import!M37614","v":0},null,{"$f":"IF(OR(Import!M37636=0,Import!M37636=\"\"),(1-$AB48)*H48,Import!M37636)","v":0},null,{"$f":"Import!M37658","v":0},null,{"$f":"IF(OR(Import!M37680=0,Import!M37680=\"\"),(1-$AB48)*L48,Import!M37680)","v":0},null,{"$f":"Import!M37702","v":0},null,{"$f":"IF(OR(Import!M37724=0,Import!M37724=\"\"),P48,Import!M37724)","v":0},null,{"$f":"IF(OR(Import!M37746=0,Import!M37746=\"\"),R48,Import!M37746)","v":0},null,null,null,0,null,null,null,0.35]
[null,25,"Preferred Stocks, BSCR Rating 8",{"$f":"Import!M37571","v":0},null,{"$f":"IF(OR(Import!M37593=0,Import!M37593=\"\"),(1-$AB49)*D49,Import!M37593)","v":0},null,{"$f":"Import!M37615","v":0},null,{"$f":"IF(OR(Import!M37637=0,Import!M37637=\"\"),(1-$AB49)*H49,Import!M37637)","v":0},null,{"$f":"Import!M37659","v":0},null,{"$f":"IF(OR(Import!M37681=0,Import!M37681=\"\"),(1-$AB49)*L49,Import!M37681)","v":0},null,{"$f":"Import!M37703","v":0},null,{"$f":"IF(OR(Import!M37725=0,Import!M37725=\"\"),P49,Import!M37725)","v":0},null,{"$f":"IF(OR(Import!M37747=0,Import!M37747=\"\"),R49,Import!M37747)","v":0},null,null,null,0,null,null,null,0.35]
[null,26,"Equity Derivatives on Type 1 Equities",{"$f":"Import!M37572","v":0},null,{"$f":"Import!M37594","v":0},null,{"$f":"Import!M37616","v":0},null,{"$f":"Import!M37638","v":0},null,{"$f":"Import!M37660","v":0},null,{"$f":"Import!M37682","v":0},null,{"$f":"Import!M37704","v":0},null,{"$f":"IF(OR(Import!M37726=0,Import!M37726=\"\"),P50,Import!M37726)","v":0},null,{"$f":"IF(OR(Import!M37748=0,Import!M37748=\"\"),R50,Import!M37748)","v":0},null,null,null,0,null,null,null,0.35]
[null,27,"Strategic Holdings - Unlisted",{"$f":"Import!M37573","v":0},null,{"$f":"IF(OR(Import!M37595=0,Import!M37595=\"\"),(1-$AB51)*D51,Import!M37595)","v":0},null,{"$f":"Import!M37617","v":0},null,{"$f":"IF(OR(Import!M37639=0,Import!M37639=\"\"),(1-$AB51)*H51,Import!M37639)","v":0},null,{"$f":"Import!M37661","v":0},null,{"$f":"IF(OR(Import!M37683=0,Import!M37683=\"\"),(1-$AB51)*L51,Import!M37683)","v":0},null,{"$f":"Import!M37705","v":0},null,{"$f":"IF(OR(Import!M37727=0,Import!M37727=\"\"),P51,Import!M37727)","v":0},null,{"$f":"IF(OR(Import!M37749=0,Import!M37749=\"\"),R51,Import!M37749)","v":0},null,null,null,0,null,null,null,0.2]
[null,28,"Other Equities / Other Assets",{"$f":"Import!M37574","v":0},null,{"$f":"IF(OR(Import!M37596=0,Import!M37596=\"\"),(1-$AB52)*D52,Import!M37596)","v":0},null,{"$f":"Import!M37618","v":0},null,{"$f":"IF(OR(Import!M37640=0,Import!M37640=\"\"),(1-$AB52)*H52,Import!M37640)","v":0},null,{"$f":"Import!M37662","v":0},null,{"$f":"IF(OR(Import!M37684=0,Import!M37684=\"\"),(1-$AB52)*L52,Import!M37684)","v":0},null,{"$f":"Import!M37706","v":0},null,{"$f":"IF(OR(Import!M37728=0,Import!M37728=\"\"),P52,Import!M37728)","v":0},null,{"$f":"IF(OR(Import!M37750=0,Import!M37750=\"\"),R52,Import!M37750)","v":0},null,null,null,0,null,null,null,0.45]
[null,29,"Letters of Credit",{"$f":"Import!M37575","v":0},null,{"$f":"IF(OR(Import!M37597=0,Import!M37597=\"\"),(1-$AB53)*D53,Import!M37597)","v":0},null,{"$f":"Import!M37619","v":0},null,{"$f":"IF(OR(Import!M37641=0,Import!M37641=\"\"),(1-$AB53)*H53,Import!M37641)","v":0},null,{"$f":"Import!M37663","v":0},null,{"$f":"IF(OR(Import!M37685=0,Import!M37685=\"\"),(1-$AB53)*L53,Import!M37685)","v":0},null,{"$f":"Import!M37707","v":0},null,{"$f":"IF(OR(Import!M37729=0,Import!M37729=\"\"),P53,Import!M37729)","v":0},null,{"$f":"IF(OR(Import!M37751=0,Import!M37751=\"\"),R53,Import!M37751)","v":0},null,null,null,0,null,null,null,0.2]
[null,30,"Intangible assets",{"$f":"Import!M37576","v":0},null,{"$f":"IF(OR(Import!M37598=0,Import!M37598=\"\"),(1-$AB54)*D54,Import!M37598)","v":0},null,{"$f":"Import!M37620","v":0},null,{"$f":"IF(OR(Import!M37642=0,Import!M37642=\"\"),(1-$AB54)*H54,Import!M37642)","v":0},null,{"$f":"Import!M37664","v":0},null,{"$f":"IF(OR(Import!M37686=0,Import!M37686=\"\"),(1-$AB54)*L54,Import!M37686)","v":0},null,{"$f":"Import!M37708","v":0},null,{"$f":"IF(OR(Import!M37730=0,Import!M37730=\"\"),P54,Import!M37730)","v":0},null,{"$f":"IF(OR(Import!M37752=0,Import!M37752=\"\"),R54,Import!M37752)","v":0},null,null,null,0,null,null,null,0.2]
[null,31,"Pension Benefit Surplus",{"$f":"Import!M37577","v":0},null,{"$f":"IF(OR(Import!M37599=0,Import!M37599=\"\"),(1-$AB55)*D55,Import!M37599)","v":0},null,{"$f":"Import!M37621","v":0},null,{"$f":"IF(OR(Import!M37643=0,Import!M37643=\"\"),(1-$AB55)*H55,Import!M37643)","v":0},null,{"$f":"Import!M37665","v":0},null,{"$f":"IF(OR(Import!M37687=0,Import!M37687=\"\"),(1-$AB55)*L55,Import!M37687)","v":0},null,{"$f":"Import!M37709","v":0},null,{"$f":"IF(OR(Import!M37731=0,Import!M37731=\"\"),P55,Import!M37731)","v":0},null,{"$f":"IF(OR(Import!M37753=0,Import!M37753=\"\"),R55,Import!M37753)","v":0},null,null,null,0,null,null,null,0.2]
[null,32,"Equity Derivatives on Type 2 Equities",{"$f":"Import!M37578","v":0},null,{"$f":"Import!M37600","v":0},null,{"$f":"Import!M37622","v":0},null,{"$f":"Import!M37644","v":0},null,{"$f":"Import!M37666","v":0},null,{"$f":"Import!M37688","v":0},null,{"$f":"Import!M37710","v":0},null,{"$f":"IF(OR(Import!M37732=0,Import!M37732=\"\"),P56,Import!M37732)","v":0},null,{"$f":"IF(OR(Import!M37754=0,Import!M37754=\"\"),R56,Import!M37754)","v":0},null,null,null,0,null,null,null,0.45]
[null,33,"Infrastructure",{"$f":"Import!M37579","v":0},null,{"$f":"IF(OR(Import!M37601=0,Import!M37601=\"\"),(1-$AB57)*D57,Import!M37601)","v":0},null,{"$f":"Import!M37623","v":0},null,{"$f":"IF(OR(Import!M37645=0,Import!M37645=\"\"),(1-$AB57)*H57,Import!M37645)","v":0},null,{"$f":"Import!M37667","v":0},null,{"$f":"IF(OR(Import!M37689=0,Import!M37689=\"\"),(1-$AB57)*L57,Import!M37689)","v":0},null,{"$f":"Import!M37711","v":0},null,{"$f":"IF(OR(Import!M37733=0,Import!M37733=\"\"),P57,Import!M37733)","v":0},null,{"$f":"IF(OR(Import!M37755=0,Import!M37755=\"\"),R57,Import!M37755)","v":0},null,null,null,0,null,null,null,0.25]
[null,34,"Derivatives on Infrastructure",{"$f":"Import!M37580","v":0},null,{"$f":"Import!M37602","v":0},null,{"$f":"Import!M37624","v":0},null,{"$f":"Import!M37646","v":0},null,{"$f":"Import!M37668","v":0},null,{"$f":"Import!M37690","v":0},null,{"$f":"Import!M37712","v":0},null,{"$f":"IF(OR(Import!M37734=0,Import!M37734=\"\"),P58,Import!M37734)","v":0},null,{"$f":"IF(OR(Import!M37756=0,Import!M37756=\"\"),R58,Import!M37756)","v":0},null,null,null,0,null,null,null,0.25]
[null,35,"Equity Real Estate 1",{"$f":"Import!M37581","v":0},null,{"$f":"IF(OR(Import!M37603=0,Import!M37603=\"\"),(1-$AB59)*D59,Import!M37603)","v":0},null,{"$f":"Import!M37625","v":0},null,{"$f":"IF(OR(Import!M37647=0,Import!M37647=\"\"),(1-$AB59)*H59,Import!M37647)","v":0},null,{"$f":"Import!M37669","v":0},null,{"$f":"IF(OR(Import!M37691=0,Import!M37691=\"\"),(1-$AB59)*L59,Import!M37691)","v":0},null,{"$f":"Import!M37713","v":0},null,{"$f":"IF(OR(Import!M37735=0,Import!M37735=\"\"),P59,Import!M37735)","v":0},null,{"$f":"IF(OR(Import!M37757=0,Import!M37757=\"\"),R59,Import!M37757)","v":0},null,null,null,0,null,null,null,0.1]
[null,36,"Equity Real Estate 2",{"$f":"Import!M37582","v":0},null,{"$f":"IF(OR(Import!M37604=0,Import!M37604=\"\"),(1-$AB60)*D60,Import!M37604)","v":0},null,{"$f":"Import!M37626","v":0},null,{"$f":"IF(OR(Import!M37648=0,Import!M37648=\"\"),(1-$AB60)*H60,Import!M37648)","v":0},null,{"$f":"Import!M37670","v":0},null,{"$f":"IF(OR(Import!M37692=0,Import!M37692=\"\"),(1-$AB60)*L60,Import!M37692)","v":0},null,{"$f":"Import!M37714","v":0},null,{"$f":"IF(OR(Import!M37736=0,Import!M37736=\"\"),P60,Import!M37736)","v":0},null,{"$f":"IF(OR(Import!M37758=0,Import!M37758=\"\"),R60,Import!M37758)","v":0},null,null,null,0,null,null,null,0.2]
[]
[null,{"$f":"B60+1","v":37},"Total Equity Holdings",{"$f":"SUM(D38:D61)","v":0},null,{"$f":"SUM(F38:F61)","v":0},null,{"$f":"SUM(H38:H61)","v":0},null,{"$f":"SUM(J38:J61)","v":0},null,{"$f":"SUM(L38:L61)","v":0},null,{"$f":"SUM(N38:N61)","v":0},null,{"$f":"SUM(P38:P61)","v":0},null,{"$f":"SUM(R38:R61)","v":0},null,{"$f":"SUM(T38:T61)","v":0},null,null,null,{"$f":"SUM(X38:X61)","v":0}]
[]
[null,null,null,"Spread Up",null,null,null,null,null,null,null,null,null,"Spread Down"]
[null,null,null,"Long Exposures",null,null,null,"Short Exposures",null,null,null,"Shock (bps)",null,"Long Exposures",null,null,null,"Short Exposures",null,null,null,"Shock Rates"]
[null,null,null,"Before Shock",null,"After Shock",null,"Before Shock",null,"After Shock",null,null,null,"Before Shock",null,"Before Shock",null,"After Shock",null,"After Shock"]
[null,null,"Spread Risk for Credit Derivatives"]
[null,{"$f":"B62+1","v":38},"BSCR Rating 0",{"$f":"Import!M37759","v":0},null,{"$f":"Import!M37768","v":0},null,{"$f":"Import!M37777","v":0},null,{"$f":"Import!M37786","v":0},null,0,null,{"$f":"Import!M37795","v":0},null,{"$f":"Import!M37804","v":0},null,{"$f":"Import!M37813","v":0},null,{"$f":"Import!M37822","v":0},null,0]
[null,{"$f":"B68+1","v":39},"BSCR Rating 1",{"$f":"Import!M37760","v":0},null,{"$f":"Import!M37769","v":0},null,{"$f":"Import!M37778","v":0},null,{"$f":"Import!M37787","v":0},null,130,null,{"$f":"Import!M37796","v":0},null,{"$f":"Import!M37805","v":0},null,{"$f":"Import!M37814","v":0},null,{"$f":"Import!M37823","v":0},null,-0.75]
[null,{"$f":"B69+1","v":40},"BSCR Rating 2",{"$f":"Import!M37761","v":0},null,{"$f":"Import!M37770","v":0},null,{"$f":"Import!M37779","v":0},null,{"$f":"Import!M37788","v":0},null,150,null,{"$f":"Import!M37797","v":0},null,{"$f":"Import!M37806","v":0},null,{"$f":"Import!M37815","v":0},null,{"$f":"Import!M37824","v":0},null,-0.75]
[null,41,"BSCR Rating 3",{"$f":"Import!M37762","v":0},null,{"$f":"Import!M37771","v":0},null,{"$f":"Import!M37780","v":0},null,{"$f":"Import!M37789","v":0},null,260,null,{"$f":"Import!M37798","v":0},null,{"$f":"Import!M37807","v":0},null,{"$f":"Import!M37816","v":0},null,{"$f":"Import!M37825","v":0},null,-0.75]
[null,42,"BSCR Rating 4",{"$f":"Import!M37763","v":0},null,{"$f":"Import!M37772","v":0},null,{"$f":"Import!M37781","v":0},null,{"$f":"Import!M37790","v":0},null,450,null,{"$f":"Import!M37799","v":0},null,{"$f":"Import!M37808","v":0},null,{"$f":"Import!M37817","v":0},null,{"$f":"Import!M37826","v":0},null,-0.75]
[null,43,"BSCR Rating 5",{"$f":"Import!M37764","v":0},null,{"$f":"Import!M37773","v":0},null,{"$f":"Import!M37782","v":0},null,{"$f":"Import!M37791","v":0},null,840,null,{"$f":"Import!M37800","v":0},null,{"$f":"Import!M37809","v":0},null,{"$f":"Import!M37818","v":0},null,{"$f":"Import!M37827","v":0},null,-0.75]
[null,44,"BSCR Rating 6",{"$f":"Import!M37765","v":0},null,{"$f":"Import!M37774","v":0},null,{"$f":"Import!M37783","v":0},null,{"$f":"Import!M37792","v":0},null,1620,null,{"$f":"Import!M37801","v":0},null,{"$f":"Import!M37810","v":0},null,{"$f":"Import!M37819","v":0},null,{"$f":"Import!M37828","v":0},null,-0.75]
[null,45,"BSCR Rating 7",{"$f":"Import!M37766","v":0},null,{"$f":"Import!M37775","v":0},null,{"$f":"Import!M37784","v":0},null,{"$f":"Import!M37793","v":0},null,1620,null,{"$f":"Import!M37802","v":0},null,{"$f":"Import!M37811","v":0},null,{"$f":"Import!M37820","v":0},null,{"$f":"Import!M37829","v":0},null,-0.75]
[null,46,"BSCR Rating 8",{"$f":"Import!M37767","v":0},null,{"$f":"Import!M37776","v":0},null,{"$f":"Import!M37785","v":0},null,{"$f":"Import!M37794","v":0},null,1620,null,{"$f":"Import!M37803","v":0},null,{"$f":"Import!M37812","v":0},null,{"$f":"Import!M37821","v":0},null,{"$f":"Import!M37830","v":0},null,-0.75]
[null,47,"Total Spread",{"$f":"SUM(D67:D76)","v":0},null,{"$f":"SUM(F67:F76)","v":0},null,{"$f":"SUM(H67:H76)","v":0},null,{"$f":"SUM(J67:J76)","v":0},null,null,null,{"$f":"SUM(N67:N76)","v":0},null,{"$f":"SUM(P67:P76)","v":0},null,{"$f":"SUM(R67:R76)","v":0},null,{"$f":"SUM(T67:T76)","v":0}]
[]
[null,null,"Spread Risk Check",null,null,null,null,null,null,null,null,null,null,{"$f":"IF(ROUND(D77-N77,0)=0,\"Yes\",\"No\")","v":"Yes"},null,null,null,{"$f":"IF(ROUND(H77-R77,0)=0,\"Yes\",\"No\")","v":"Yes"}]
[null,null,"Difference",null,null,null,null,null,null,null,null,null,null,{"$f":"ROUND(D77-N77,0)","v":0},null,null,null,{"$f":"ROUND(H77-R77,0)","v":0}]
[]
[null,null,null,"Market Value of Derivatives with Positive Market Value",null,"Market Value of Derivatives with Negative Market Value",null,"Market Value of Collateral, Excluding any over-collateralization"]
[null,null,"Counterparty Default Risk for OTC Derivatives"]
[null,{"$f":"B77+1","v":48},"BSCR Rating 0",{"$f":"Import!M37831","v":0},null,{"$f":"Import!M37840","v":0},null,{"$f":"Import!M37849","v":0}]
[null,{"$f":"B84+1","v":49},"BSCR Rating 1",{"$f":"Import!M37832","v":0},null,{"$f":"Import!M37841","v":0},null,{"$f":"Import!M37850","v":0}]
[null,{"$f":"B85+1","v":50},"BSCR Rating 2",{"$f":"Import!M37833","v":0},null,{"$f":"Import!M37842","v":0},null,{"$f":"Import!M37851","v":0}]
[null,51,"BSCR Rating 3",{"$f":"Import!M37834","v":0},null,{"$f":"Import!M37843","v":0},null,{"$f":"Import!M37852","v":0}]
[null,52,"BSCR Rating 4",{"$f":"Import!M37835","v":0},null,{"$f":"Import!M37844","v":0},null,{"$f":"Import!M37853","v":0}]
[null,53,"BSCR Rating 5",{"$f":"Import!M37836","v":0},null,{"$f":"Import!M37845","v":0},null,{"$f":"Import!M37854","v":0}]
[null,54,"BSCR Rating 6",{"$f":"Import!M37837","v":0},null,{"$f":"Import!M37846","v":0},null,{"$f":"Import!M37855","v":0}]
[null,55,"BSCR Rating 7",{"$f":"Import!M37838","v":0},null,{"$f":"Import!M37847","v":0},null,{"$f":"Import!M37856","v":0}]
[null,56,"BSCR Rating 8",{"$f":"Import!M37839","v":0},null,{"$f":"Import!M37848","v":0},null,{"$f":"Import!M37857","v":0}]
[null,57,"Total Default Risk for OTC Derivatives ",{"$f":"SUM(D83:D92)","v":0},null,{"$f":"SUM(F83:F92)","v":0},null,{"$f":"SUM(H83:H92)","v":0}]
[]
[null,{"$f":"B93+1","v":58},"Cash and Cash Equivalents",{"$f":"Import!M37858","v":0}]
[]
[null,{"$f":"B95+1","v":59},"Total Segregated Account Assets",{"$f":"X27+X62+D77+H77+D93+F93+H93+D95","v":0}]
[]
[null,null,"Please include in the table below any assets, included in this Schedule, for which NAIC ratings were used to map to the BSCR rating classes"]
[null,null,"Information on the use of NAIC ratings\n(for disclosure purposes only)","CORPORATE & SOVEREIGN BONDS",null,"RESIDENTIAL MORTGAGE-BACKED SECURITIES",null,"COMMERCIAL MORTGAGE-BACKED SECURITIES / ASSET-BACKED SECURITIES",null,"BOND MUTUAL FUNDS",null,"MORTGAGE LOANS",null,"PREFERRED STOCKS",null,"OTHER ASSETS"]
[null,null,"NAIC Class 1",{"$f":"Import!M37859","v":0},null,{"$f":"Import!M37866","v":0},null,{"$f":"Import!M37873","v":0},null,{"$f":"Import!M37880","v":0},null,{"$f":"Import!M37887","v":0},null,{"$f":"Import!M37894","v":0},null,{"$f":"Import!M37901","v":0}]
[null,null,"NAIC Class 2",{"$f":"Import!M37860","v":0},null,{"$f":"Import!M37867","v":0},null,{"$f":"Import!M37874","v":0},null,{"$f":"Import!M37881","v":0},null,{"$f":"Import!M37888","v":0},null,{"$f":"Import!M37895","v":0},null,{"$f":"Import!M37902","v":0}]
[null,null,"NAIC Class 3",{"$f":"Import!M37861","v":0},null,{"$f":"Import!M37868","v":0},null,{"$f":"Import!M37875","v":0},null,{"$f":"Import!M37882","v":0},null,{"$f":"Import!M37889","v":0},null,{"$f":"Import!M37896","v":0},null,{"$f":"Import!M37903","v":0}]
[null,null,"NAIC Class 4",{"$f":"Import!M37862","v":0},null,{"$f":"Import!M37869","v":0},null,{"$f":"Import!M37876","v":0},null,{"$f":"Import!M37883","v":0},null,{"$f":"Import!M37890","v":0},null,{"$f":"Import!M37897","v":0},null,{"$f":"Import!M37904","v":0}]
[null,null,"NAIC Class 5",{"$f":"Import!M37863","v":0},null,{"$f":"Import!M37870","v":0},null,{"$f":"Import!M37877","v":0},null,{"$f":"Import!M37884","v":0},null,{"$f":"Import!M37891","v":0},null,{"$f":"Import!M37898","v":0},null,{"$f":"Import!M37905","v":0}]
[null,null,"NAIC Class 6",{"$f":"Import!M37864","v":0},null,{"$f":"Import!M37871","v":0},null,{"$f":"Import!M37878","v":0},null,{"$f":"Import!M37885","v":0},null,{"$f":"Import!M37892","v":0},null,{"$f":"Import!M37899","v":0},null,{"$f":"Import!M37906","v":0}]
[null,null,null,{"$f":"SUM(D101:D106)","v":0},null,{"$f":"SUM(F101:F106)","v":0},null,{"$f":"SUM(H101:H106)","v":0},null,{"$f":"SUM(J101:J106)","v":0},null,{"$f":"SUM(L101:L106)","v":0},null,{"$f":"SUM(N101:N106)","v":0},null,{"$f":"SUM(P101:P106)","v":0}]

{"sheet":"Schedule IIE (EBS)","index":34,"n_rows":107,"n_cols":28,"rows_kept":107,"cut":false,"hidden":false,"merged":[[33,27,34,27],[64,3,64,5],[64,7,64,9],[63,3,63,11],[63,13,63,21],[64,13,64,15],[64,17,64,19],[7,15,7,17],[34,7,34,9],[34,11,34,13],[7,19,7,21],[7,23,7,25],[32,3,32,13],[33,3,34,5],[33,7,33,13],[33,23,34,23],[7,11,7,13],[32,15,32,19],[33,15,34,15],[33,17,34,17],[33,19,34,19],[2,3,2,7],[3,5,3,7],[4,5,4,7],[7,3,7,5],[7,7,7,9]]}
[null,"DEPOSIT ASSETS AND LIABILITIES",null,null,null,null,null,null,null,null,null,null,null,null,null,null,null,null,null,null,null,null,null,null,null,null,null,{"$f":"HYPERLINK(\"#'Index'!A1\",\"Return to Index\")","v":"Return to Index"}]
[]
[null,null,null,{"$f":"'Insurer Information'!C7","v":"Enter Company Name"}]
[null,null,null,"As at",null,{"$f":" TEXT('Insurer Information'!C3,\"D MMMM YYYY\")","v":"31 December 2023"},null,null,null,null,null,null,null,null,null,null,null,null,null,null,null,null,null,null,null,"SCHEDULE IIE (EBS)"]
[null,null,null,{"$f":"\"Expressed in \" & IF(CONFIGURATION!$B$12>1,\" ['\"&MID(CONFIGURATION!$B$12,2,LEN(CONFIGURATION!$B$12))&\"s]\",\"\")","v":"Expressed in  ['000s]"},null,{"$f":"'Form 4EBS'!C4","v":"United States Dollars"}]
[]
[null,null,null,"(1)",null,"(2)",null,"(3)",null,"(4)",null,"(5)",null,"(6)",null,"(7)",null,"(8)",null,"(9)",null,"(10)",null,"(11)",null,"(12)"]
[null,null,null,"Corporate & Sovereign Bonds",null,null,null,"Residential Mortgage Backed Securities",null,null,null,"Commercial Mortgage Backed Securities / Asset- Backed Securities",null,null,null,"Bond Mutual Funds",null,null,null,"Mortgage Loans",null,null,null,"TOTAL"]
[null,null,null,{"$f":"'Form 4EBS'!F6","v":"2023-12-31"},null,{"$f":"'Form 4EBS'!H6","v":"2022-12-31"},null,{"$f":"'Form 4EBS'!F6","v":"2023-12-31"},null,{"$f":"'Form 4EBS'!H6","v":"2022-12-31"},null,{"$f":"'Form 4EBS'!F6","v":"2023-12-31"},null,{"$f":"'Form 4EBS'!H6","v":"2022-12-31"},null,{"$f":"'Form 4EBS'!F6","v":"2023-12-31"},null,{"$f":"'Form 4EBS'!H6","v":"2022-12-31"},null,{"$f":"'Form 4EBS'!F6","v":"2023-12-31"},null,{"$f":"'Form 4EBS'!H6","v":"2022-12-31"},null,{"$f":"D9","v":"2023-12-31"},null,{"$f":"F9","v":"2022-12-31"}]
[null,null,null,{"$f":"CONFIGURATION!$D$12","v":" ('000s)"},null,{"$f":"CONFIGURATION!$D$12","v":" ('000s)"},null,{"$f":"CONFIGURATION!$D$12","v":" ('000s)"},null,{"$f":"CONFIGURATION!$D$12","v":" ('000s)"},null,{"$f":"CONFIGURATION!$D$12","v":" ('000s)"},null,{"$f":"CONFIGURATION!$D$12","v":" ('000s)"},null,{"$f":"CONFIGURATION!$D$12","v":" ('000s)"},null,{"$f":"CONFIGURATION!$D$12","v":" ('000s)"},null,{"$f":"CONFIGURATION!$D$12","v":" ('000s)"},null,{"$f":"CONFIGURATION!$D$12","v":" ('000s)"},null,{"$f":"CONFIGURATION!$D$12","v":" ('000s)"},null,{"$f":"CONFIGURATION!$D$12","v":" ('000s)"}]
[null,"Line no. "]
[null,"Quoted and Unquoted Bonds and Debentures"]
[null,1,"BSCR Rating 0",{"$f":"Import!M37909","v":0},null,{"$f":"Import!O37909","v":0},null,null,null,null,null,null,null,null,null,{"$f":"Import!M37934","v":0},null,{"$f":"Import!O37934","v":0},null,null,null,null,null,{"$f":"D13+H13+L13+P13","v":0},null,{"$f":"F13+J13+N13+R13","v":0}]
[null,{"$f":"B13+1","v":2},"BSCR Rating 1",{"$f":"Import!M37910","v":0},null,{"$f":"Import!O37910","v":0},null,{"$f":"Import!M37918","v":0},null,{"$f":"Import!O37918","v":0},null,{"$f":"Import!M37926","v":0},null,{"$f":"Import!O37926","v":0},null,{"$f":"Import!M37935","v":0},null,{"$f":"Import!O37935","v":0},null,null,null,null,null,{"$f":"D14+H14+L14+P14","v":0},null,0]
[null,{"$f":"B14+1","v":3},"BSCR Rating 2",{"$f":"Import!M37911","v":0},null,{"$f":"Import!O37911","v":0},null,{"$f":"Import!M37919","v":0},null,{"$f":"Import!O37919","v":0},null,{"$f":"Import!M37927","v":0},null,{"$f":"Import!O37927","v":0},null,{"$f":"Import!M37936","v":0},null,{"$f":"Import!O37936","v":0},null,null,null,null,null,0,null,0]
[null,4,"BSCR Rating 3",{"$f":"Import!M37912","v":0},null,{"$f":"Import!O37912","v":0},null,{"$f":"Import!M37920","v":0},null,{"$f":"Import!O37920","v":0},null,{"$f":"Import!M37928","v":0},null,{"$f":"Import!O37928","v":0},null,{"$f":"Import!M37937","v":0},null,{"$f":"Import!O37937","v":0},null,null,null,null,null,0,null,0]
[null,5,"BSCR Rating 4",{"$f":"Import!M37913","v":0},null,{"$f":"Import!O37913","v":0},null,{"$f":"Import!M37921","v":0},null,{"$f":"Import!O37921","v":0},null,{"$f":"Import!M37929","v":0},null,{"$f":"Import!O37929","v":0},null,{"$f":"Import!M37938","v":0},null,{"$f":"Import!O37938","v":0},null,null,null,null,null,0,null,0]
[null,6,"BSCR Rating 5",{"$f":"Import!M37914","v":0},null,{"$f":"Import!O37914","v":0},null,{"$f":"Import!M37922","v":0},null,{"$f":"Import!O37922","v":0},null,{"$f":"Import!M37930","v":0},null,{"$f":"Import!O37930","v":0},null,{"$f":"Import!M37939","v":0},null,{"$f":"Import!O37939","v":0},null,null,null,null,null,0,null,0]
[null,7,"BSCR Rating 6",{"$f":"Import!M37915","v":0},null,{"$f":"Import!O37915","v":0},null,{"$f":"Import!M37923","v":0},null,{"$f":"Import!O37923","v":0},null,{"$f":"Import!M37931","v":0},null,{"$f":"Import!O37931","v":0},null,{"$f":"Import!M37940","v":0},null,{"$f":"Import!O37940","v":0},null,null,null,null,null,0,null,0]
[null,8,"BSCR Rating 7",{"$f":"Import!M37916","v":0},null,{"$f":"Import!O37916","v":0},null,{"$f":"Import!M37924","v":0},null,{"$f":"Import!O37924","v":0},null,{"$f":"Import!M37932","v":0},null,{"$f":"Import!O37932","v":0},null,{"$f":"Import!M37941","v":0},null,{"$f":"Import!O37941","v":0},null,null,null,null,null,0,null,0]
[null,9,"BSCR Rating 8",{"$f":"Import!M37917","v":0},null,{"$f":"Import!O37917","v":0},null,{"$f":"Import!M37925","v":0},null,{"$f":"Import!O37925","v":0},null,{"$f":"Import!M37933","v":0},null,{"$f":"Import!O37933","v":0},null,{"$f":"Import!M37942","v":0},null,{"$f":"Import!O37942","v":0},null,null,null,null,null,0,null,0]
[null,10,"Insured/Guaranteed Mortgages",null,null,null,null,null,null,null,null,null,null,null,null,null,null,null,null,{"$f":"Import!M37943","v":0},null,{"$f":"Import!O37943","v":0},null,{"$f":"D22+H22+L22+P22+T22","v":0},null,{"$f":"F22+J22+N22+R22+V22","v":0}]
[null,11,"Other Commercial and Farm Mortgages",null,null,null,null,null,null,null,null,null,null,null,null,null,null,null,null,{"$f":"Import!M37944","v":0},null,{"$f":"Import!O37944","v":0},null,{"$f":"D23+H23+L23+P23+T23","v":0},null,0]
[null,12,"Other Residential Mortgages",null,null,null,null,null,null,null,null,null,null,null,null,null,null,null,null,{"$f":"Import!M37945","v":0},null,{"$f":"Import!O37945","v":0},null,0,null,0]
[null,13,"Mortgages Not In Good Standing",null,null,null,null,null,null,null,null,null,null,null,null,null,null,null,null,{"$f":"Import!M37946","v":0},null,{"$f":"Import!O37946","v":0},null,0,null,0]
[]
[null,{"$f":"B25+1","v":14},"Total",{"$f":"SUM(D13:D21)","v":0},null,{"$f":"SUM(F13:F21)","v":0},null,{"$f":"SUM(H13:H21)","v":0},null,{"$f":"SUM(J13:J21)","v":0},null,{"$f":"SUM(L13:L21)","v":0},null,{"$f":"SUM(N13:N21)","v":0},null,{"$f":"SUM(P13:P21)","v":0},null,{"$f":"SUM(R13:R21)","v":0},null,{"$f":"SUM(T13:T25)","v":0},null,{"$f":"SUM(V13:V25)","v":0},null,{"$f":"SUM(X13:X25)","v":0},null,{"$f":"SUM(Z13:Z25)","v":0}]
[]
[]
[]
[]
[]
[null,null,null,"ASSETS",null,null,null,null,null,null,null,null,null,null,null,"Liabilities"]
[null,null,null,"Long Exposures",null,null,null,"Short Exposures",null,null,null,null,null,null,null,null,null,"Without Management Actions",null,"With Management Actions",null,null,null,"Total Assets Before Shock",null,null,null,"Shocks"]
[null,null,null,null,null,null,null,"Qualifying as Assets held for risk-mitigation purposes",null,null,null,"Not Qualifying as Assets held for risk-mitigation purposes",null,null,null,null,null,null,null,null,null,null,null,null,null,null,null,"Shocks"]
[null,null,null,"Before Shock",null,"After Shock",null,"Before Shock",null,"After Shock",null,"Before Shock",null,"After Shock",null,"Before Shock",null,"After Shock",null,"After Shock"]
[null,null,null,{"$f":"CONFIGURATION!$D$12","v":" ('000s)"},null,{"$f":"CONFIGURATION!$D$12","v":" ('000s)"},null,{"$f":"CONFIGURATION!$D$12","v":" ('000s)"},null,{"$f":"CONFIGURATION!$D$12","v":" ('000s)"},null,{"$f":"CONFIGURATION!$D$12","v":" ('000s)"},null,{"$f":"CONFIGURATION!$D$12","v":" ('000s)"},null,{"$f":"CONFIGURATION!$D$12","v":" ('000s)"},null,{"$f":"CONFIGURATION!$D$12","v":" ('000s)"},null,{"$f":"CONFIGURATION!$D$12","v":" ('000s)"},null,null,null,{"$f":"CONFIGURATION!$D$12","v":" ('000s)"}]
[null,"Equity Holdings "]
[null,{"$f":"B27+1","v":15},"Strategic Holdings - Listed",{"$f":"Import!M37947","v":0},null,{"$f":"IF(OR(Import!M37969=0,Import!M37969=\"\"),(1-$AB39)*D39,Import!M37969)","v":0},null,{"$f":"Import!M37991","v":0},null,{"$f":"IF(OR(Import!M38013=0,Import!M38013=\"\"),(1-$AB39)*H39,Import!M38013)","v":0},null,{"$f":"Import!M38035","v":0},null,{"$f":"IF(OR(Import!M38057=0,Import!M38057=\"\"),(1-$AB39)*L39,Import!M38057)","v":0},null,{"$f":"Import!M38079","v":0},null,{"$f":"IF(OR(Import!M38101=0,Import!M38101=\"\"),P39,Import!M38101)","v":0},null,{"$f":"IF(OR(Import!M38123=0,Import!M38123=\"\"),R39,Import!M38123)","v":0},null,null,null,{"$f":"D39+H39+L39","v":0},null,null,null,0.2]
[null,{"$f":"B39+1","v":16},"Duration Based",{"$f":"Import!M37948","v":0},null,{"$f":"IF(OR(Import!M37970=0,Import!M37970=\"\"),(1-$AB40)*D40,Import!M37970)","v":0},null,{"$f":"Import!M37992","v":0},null,{"$f":"IF(OR(Import!M38014=0,Import!M38014=\"\"),(1-$AB40)*H40,Import!M38014)","v":0},null,{"$f":"Import!M38036","v":0},null,{"$f":"IF(OR(Import!M38058=0,Import!M38058=\"\"),(1-$AB40)*L40,Import!M38058)","v":0},null,{"$f":"Import!M38080","v":0},null,{"$f":"IF(OR(Import!M38102=0,Import!M38102=\"\"),P40,Import!M38102)","v":0},null,{"$f":"IF(OR(Import!M38124=0,Import!M38124=\"\"),R40,Import!M38124)","v":0},null,null,null,{"$f":"D40+H40+L40","v":0},null,null,null,0.2]
[null,17,"Listed Equity Securities in Developed Markets",{"$f":"Import!M37949","v":0},null,{"$f":"IF(OR(Import!M37971=0,Import!M37971=\"\"),(1-$AB41)*D41,Import!M37971)","v":0},null,{"$f":"Import!M37993","v":0},null,{"$f":"IF(OR(Import!M38015=0,Import!M38015=\"\"),(1-$AB41)*H41,Import!M38015)","v":0},null,{"$f":"Import!M38037","v":0},null,{"$f":"IF(OR(Import!M38059=0,Import!M38059=\"\"),(1-$AB41)*L41,Import!M38059)","v":0},null,{"$f":"Import!M38081","v":0},null,{"$f":"IF(OR(Import!M38103=0,Import!M38103=\"\"),P41,Import!M38103)","v":0},null,{"$f":"IF(OR(Import!M38125=0,Import!M38125=\"\"),R41,Import!M38125)","v":0},null,null,null,0,null,null,null,0.35]
[null,18,"Preferred Stocks, BSCR Rating 1",{"$f":"Import!M37950","v":0},null,{"$f":"IF(OR(Import!M37972=0,Import!M37972=\"\"),(1-$AB42)*D42,Import!M37972)","v":0},null,{"$f":"Import!M37994","v":0},null,{"$f":"IF(OR(Import!M38016=0,Import!M38016=\"\"),(1-$AB42)*H42,Import!M38016)","v":0},null,{"$f":"Import!M38038","v":0},null,{"$f":"IF(OR(Import!M38060=0,Import!M38060=\"\"),(1-$AB42)*L42,Import!M38060)","v":0},null,{"$f":"Import!M38082","v":0},null,{"$f":"IF(OR(Import!M38104=0,Import!M38104=\"\"),P42,Import!M38104)","v":0},null,{"$f":"IF(OR(Import!M38126=0,Import!M38126=\"\"),R42,Import!M38126)","v":0},null,null,null,0,null,null,null,6.0000000000000001E-3]
[null,19,"Preferred Stocks, BSCR Rating 2",{"$f":"Import!M37951","v":0},null,{"$f":"IF(OR(Import!M37973=0,Import!M37973=\"\"),(1-$AB43)*D43,Import!M37973)","v":0},null,{"$f":"Import!M37995","v":0},null,{"$f":"IF(OR(Import!M38017=0,Import!M38017=\"\"),(1-$AB43)*H43,Import!M38017)","v":0},null,{"$f":"Import!M38039","v":0},null,{"$f":"IF(OR(Import!M38061=0,Import!M38061=\"\"),(1-$AB43)*L43,Import!M38061)","v":0},null,{"$f":"Import!M38083","v":0},null,{"$f":"IF(OR(Import!M38105=0,Import!M38105=\"\"),P43,Import!M38105)","v":0},null,{"$f":"IF(OR(Import!M38127=0,Import!M38127=\"\"),R43,Import!M38127)","v":0},null,null,null,0,null,null,null,1.2E-2]
[null,20,"Preferred Stocks, BSCR Rating 3",{"$f":"Import!M37952","v":0},null,{"$f":"IF(OR(Import!M37974=0,Import!M37974=\"\"),(1-$AB44)*D44,Import!M37974)","v":0},null,{"$f":"Import!M37996","v":0},null,{"$f":"IF(OR(Import!M38018=0,Import!M38018=\"\"),(1-$AB44)*H44,Import!M38018)","v":0},null,{"$f":"Import!M38040","v":0},null,{"$f":"IF(OR(Import!M38062=0,Import!M38062=\"\"),(1-$AB44)*L44,Import!M38062)","v":0},null,{"$f":"Import!M38084","v":0},null,{"$f":"IF(OR(Import!M38106=0,Import!M38106=\"\"),P44,Import!M38106)","v":0},null,{"$f":"IF(OR(Import!M38128=0,Import!M38128=\"\"),R44,Import!M38128)","v":0},null,null,null,0,null,null,null,0.02]
[null,21,"Preferred Stocks, BSCR Rating 4",{"$f":"Import!M37953","v":0},null,{"$f":"IF(OR(Import!M37975=0,Import!M37975=\"\"),(1-$AB45)*D45,Import!M37975)","v":0},null,{"$f":"Import!M37997","v":0},null,{"$f":"IF(OR(Import!M38019=0,Import!M38019=\"\"),(1-$AB45)*H45,Import!M38019)","v":0},null,{"$f":"Import!M38041","v":0},null,{"$f":"IF(OR(Import!M38063=0,Import!M38063=\"\"),(1-$AB45)*L45,Import!M38063)","v":0},null,{"$f":"Import!M38085","v":0},null,{"$f":"IF(OR(Import!M38107=0,Import!M38107=\"\"),P45,Import!M38107)","v":0},null,{"$f":"IF(OR(Import!M38129=0,Import!M38129=\"\"),R45,Import!M38129)","v":0},null,null,null,0,null,null,null,0.04]
[null,22,"Preferred Stocks, BSCR Rating 5",{"$f":"Import!M37954","v":0},null,{"$f":"IF(OR(Import!M37976=0,Import!M37976=\"\"),(1-$AB46)*D46,Import!M37976)","v":0},null,{"$f":"Import!M37998","v":0},null,{"$f":"IF(OR(Import!M38020=0,Import!M38020=\"\"),(1-$AB46)*H46,Import!M38020)","v":0},null,{"$f":"Import!M38042","v":0},null,{"$f":"IF(OR(Import!M38064=0,Import!M38064=\"\"),(1-$AB46)*L46,Import!M38064)","v":0},null,{"$f":"Import!M38086","v":0},null,{"$f":"IF(OR(Import!M38108=0,Import!M38108=\"\"),P46,Import!M38108)","v":0},null,{"$f":"IF(OR(Import!M38130=0,Import!M38130=\"\"),R46,Import!M38130)","v":0},null,null,null,0,null,null,null,0.11]
[null,23,"Preferred Stocks, BSCR Rating 6",{"$f":"Import!M37955","v":0},null,{"$f":"IF(OR(Import!M37977=0,Import!M37977=\"\"),(1-$AB47)*D47,Import!M37977)","v":0},null,{"$f":"Import!M37999","v":0},null,{"$f":"IF(OR(Import!M38021=0,Import!M38021=\"\"),(1-$AB47)*H47,Import!M38021)","v":0},null,{"$f":"Import!M38043","v":0},null,{"$f":"IF(OR(Import!M38065=0,Import!M38065=\"\"),(1-$AB47)*L47,Import!M38065)","v":0},null,{"$f":"Import!M38087","v":0},null,{"$f":"IF(OR(Import!M38109=0,Import!M38109=\"\"),P47,Import!M38109)","v":0},null,{"$f":"IF(OR(Import!M38131=0,Import!M38131=\"\"),R47,Import!M38131)","v":0},null,null,null,0,null,null,null,0.25]
[null,24,"Preferred Stocks, BSCR Rating 7",{"$f":"Import!M37956","v":0},null,{"$f":"IF(OR(Import!M37978=0,Import!M37978=\"\"),(1-$AB48)*D48,Import!M37978)","v":0},null,{"$f":"Import!M38000","v":0},null,{"$f":"IF(OR(Import!M38022=0,Import!M38022=\"\"),(1-$AB48)*H48,Import!M38022)","v":0},null,{"$f":"Import!M38044","v":0},null,{"$f":"IF(OR(Import!M38066=0,Import!M38066=\"\"),(1-$AB48)*L48,Import!M38066)","v":0},null,{"$f":"Import!M38088","v":0},null,{"$f":"IF(OR(Import!M38110=0,Import!M38110=\"\"),P48,Import!M38110)","v":0},null,{"$f":"IF(OR(Import!M38132=0,Import!M38132=\"\"),R48,Import!M38132)","v":0},null,null,null,0,null,null,null,0.35]
[null,25,"Preferred Stocks, BSCR Rating 8",{"$f":"Import!M37957","v":0},null,{"$f":"IF(OR(Import!M37979=0,Import!M37979=\"\"),(1-$AB49)*D49,Import!M37979)","v":0},null,{"$f":"Import!M38001","v":0},null,{"$f":"IF(OR(Import!M38023=0,Import!M38023=\"\"),(1-$AB49)*H49,Import!M38023)","v":0},null,{"$f":"Import!M38045","v":0},null,{"$f":"IF(OR(Import!M38067=0,Import!M38067=\"\"),(1-$AB49)*L49,Import!M38067)","v":0},null,{"$f":"Import!M38089","v":0},null,{"$f":"IF(OR(Import!M38111=0,Import!M38111=\"\"),P49,Import!M38111)","v":0},null,{"$f":"IF(OR(Import!M38133=0,Import!M38133=\"\"),R49,Import!M38133)","v":0},null,null,null,0,null,null,null,0.35]
[null,26,"Equity Derivatives on Type 1 Equities",{"$f":"Import!M37958","v":0},null,{"$f":"Import!M37980","v":0},null,{"$f":"Import!M38002","v":0},null,{"$f":"Import!M38024","v":0},null,{"$f":"Import!M38046","v":0},null,{"$f":"Import!M38068","v":0},null,{"$f":"Import!M38090","v":0},null,{"$f":"IF(OR(Import!M38112=0,Import!M38112=\"\"),P50,Import!M38112)","v":0},null,{"$f":"IF(OR(Import!M38134=0,Import!M38134=\"\"),R50,Import!M38134)","v":0},null,null,null,0,null,null,null,0.35]
[null,27,"Strategic Holdings - Unlisted",{"$f":"Import!M37959","v":0},null,{"$f":"IF(OR(Import!M37981=0,Import!M37981=\"\"),(1-$AB51)*D51,Import!M37981)","v":0},null,{"$f":"Import!M38003","v":0},null,{"$f":"IF(OR(Import!M38025=0,Import!M38025=\"\"),(1-$AB51)*H51,Import!M38025)","v":0},null,{"$f":"Import!M38047","v":0},null,{"$f":"IF(OR(Import!M38069=0,Import!M38069=\"\"),(1-$AB51)*L51,Import!M38069)","v":0},null,{"$f":"Import!M38091","v":0},null,{"$f":"IF(OR(Import!M38113=0,Import!M38113=\"\"),P51,Import!M38113)","v":0},null,{"$f":"IF(OR(Import!M38135=0,Import!M38135=\"\"),R51,Import!M38135)","v":0},null,null,null,0,null,null,null,0.2]
[null,28,"Other Equities / Other Assets",{"$f":"Import!M37960","v":0},null,{"$f":"IF(OR(Import!M37982=0,Import!M37982=\"\"),(1-$AB52)*D52,Import!M37982)","v":0},null,{"$f":"Import!M38004","v":0},null,{"$f":"IF(OR(Import!M38026=0,Import!M38026=\"\"),(1-$AB52)*H52,Import!M38026)","v":0},null,{"$f":"Import!M38048","v":0},null,{"$f":"IF(OR(Import!M38070=0,Import!M38070=\"\"),(1-$AB52)*L52,Import!M38070)","v":0},null,{"$f":"Import!M38092","v":0},null,{"$f":"IF(OR(Import!M38114=0,Import!M38114=\"\"),P52,Import!M38114)","v":0},null,{"$f":"IF(OR(Import!M38136=0,Import!M38136=\"\"),R52,Import!M38136)","v":0},null,null,null,0,null,null,null,0.45]
[null,29,"Letters of Credit",{"$f":"Import!M37961","v":0},null,{"$f":"IF(OR(Import!M37983=0,Import!M37983=\"\"),(1-$AB53)*D53,Import!M37983)","v":0},null,{"$f":"Import!M38005","v":0},null,{"$f":"IF(OR(Import!M38027=0,Import!M38027=\"\"),(1-$AB53)*H53,Import!M38027)","v":0},null,{"$f":"Import!M38049","v":0},null,{"$f":"IF(OR(Import!M38071=0,Import!M38071=\"\"),(1-$AB53)*L53,Import!M38071)","v":0},null,{"$f":"Import!M38093","v":0},null,{"$f":"IF(OR(Import!M38115=0,Import!M38115=\"\"),P53,Import!M38115)","v":0},null,{"$f":"IF(OR(Import!M38137=0,Import!M38137=\"\"),R53,Import!M38137)","v":0},null,null,null,0,null,null,null,0.2]
[null,30,"Intangible assets",{"$f":"Import!M37962","v":0},null,{"$f":"IF(OR(Import!M37984=0,Import!M37984=\"\"),(1-$AB54)*D54,Import!M37984)","v":0},null,{"$f":"Import!M38006","v":0},null,{"$f":"IF(OR(Import!M38028=0,Import!M38028=\"\"),(1-$AB54)*H54,Import!M38028)","v":0},null,{"$f":"Import!M38050","v":0},null,{"$f":"IF(OR(Import!M38072=0,Import!M38072=\"\"),(1-$AB54)*L54,Import!M38072)","v":0},null,{"$f":"Import!M38094","v":0},null,{"$f":"IF(OR(Import!M38116=0,Import!M38116=\"\"),P54,Import!M38116)","v":0},null,{"$f":"IF(OR(Import!M38138=0,Import!M38138=\"\"),R54,Import!M38138)","v":0},null,null,null,0,null,null,null,0.2]
[null,31,"Pension Benefit Surplus",{"$f":"Import!M37963","v":0},null,{"$f":"IF(OR(Import!M37985=0,Import!M37985=\"\"),(1-$AB55)*D55,Import!M37985)","v":0},null,{"$f":"Import!M38007","v":0},null,{"$f":"IF(OR(Import!M38029=0,Import!M38029=\"\"),(1-$AB55)*H55,Import!M38029)","v":0},null,{"$f":"Import!M38051","v":0},null,{"$f":"IF(OR(Import!M38073=0,Import!M38073=\"\"),(1-$AB55)*L55,Import!M38073)","v":0},null,{"$f":"Import!M38095","v":0},null,{"$f":"IF(OR(Import!M38117=0,Import!M38117=\"\"),P55,Import!M38117)","v":0},null,{"$f":"IF(OR(Import!M38139=0,Import!M38139=\"\"),R55,Import!M38139)","v":0},null,null,null,0,null,null,null,0.2]
[null,32,"Equity Derivatives on Type 2 Equities",{"$f":"Import!M37964","v":0},null,{"$f":"Import!M37986","v":0},null,{"$f":"Import!M38008","v":0},null,{"$f":"Import!M38030","v":0},null,{"$f":"Import!M38052","v":0},null,{"$f":"Import!M38074","v":0},null,{"$f":"Import!M38096","v":0},null,{"$f":"IF(OR(Import!M38118=0,Import!M38118=\"\"),P56,Import!M38118)","v":0},null,{"$f":"IF(OR(Import!M38140=0,Import!M38140=\"\"),R56,Import!M38140)","v":0},null,null,null,0,null,null,null,0.45]
[null,33,"Infrastructure",{"$f":"Import!M37965","v":0},null,{"$f":"IF(OR(Import!M37987=0,Import!M37987=\"\"),(1-$AB57)*D57,Import!M37987)","v":0},null,{"$f":"Import!M38009","v":0},null,{"$f":"IF(OR(Import!M38031=0,Import!M38031=\"\"),(1-$AB57)*H57,Import!M38031)","v":0},null,{"$f":"Import!M38053","v":0},null,{"$f":"IF(OR(Import!M38075=0,Import!M38075=\"\"),(1-$AB57)*L57,Import!M38075)","v":0},null,{"$f":"Import!M38097","v":0},null,{"$f":"IF(OR(Import!M38119=0,Import!M38119=\"\"),P57,Import!M38119)","v":0},null,{"$f":"IF(OR(Import!M38141=0,Import!M38141=\"\"),R57,Import!M38141)","v":0},null,null,null,0,null,null,null,0.25]
[null,34,"Derivatives on Infrastructure",{"$f":"Import!M37966","v":0},null,{"$f":"Import!M37988","v":0},null,{"$f":"Import!M38010","v":0},null,{"$f":"Import!M38032","v":0},null,{"$f":"Import!M38054","v":0},null,{"$f":"Import!M38076","v":0},null,{"$f":"Import!M38098","v":0},null,{"$f":"IF(OR(Import!M38120=0,Import!M38120=\"\"),P58,Import!M38120)","v":0},null,{"$f":"IF(OR(Import!M38142=0,Import!M38142=\"\"),R58,Import!M38142)","v":0},null,null,null,0,null,null,null,0.25]
[null,35,"Equity Real Estate 1",{"$f":"Import!M37967","v":0},null,{"$f":"IF(OR(Import!M37989=0,Import!M37989=\"\"),(1-$AB59)*D59,Import!M37989)","v":0},null,{"$f":"Import!M38011","v":0},null,{"$f":"IF(OR(Import!M38033=0,Import!M38033=\"\"),(1-$AB59)*H59,Import!M38033)","v":0},null,{"$f":"Import!M38055","v":0},null,{"$f":"IF(OR(Import!M38077=0,Import!M38077=\"\"),(1-$AB59)*L59,Import!M38077)","v":0},null,{"$f":"Import!M38099","v":0},null,{"$f":"IF(OR(Import!M38121=0,Import!M38121=\"\"),P59,Import!M38121)","v":0},null,{"$f":"IF(OR(Import!M38143=0,Import!M38143=\"\"),R59,Import!M38143)","v":0},null,null,null,0,null,null,null,0.1]
[null,36,"Equity Real Estate 2",{"$f":"Import!M37968","v":0},null,{"$f":"IF(OR(Import!M37990=0,Import!M37990=\"\"),(1-$AB60)*D60,Import!M37990)","v":0},null,{"$f":"Import!M38012","v":0},null,{"$f":"IF(OR(Import!M38034=0,Import!M38034=\"\"),(1-$AB60)*H60,Import!M38034)","v":0},null,{"$f":"Import!M38056","v":0},null,{"$f":"IF(OR(Import!M38078=0,Import!M38078=\"\"),(1-$AB60)*L60,Import!M38078)","v":0},null,{"$f":"Import!M38100","v":0},null,{"$f":"IF(OR(Import!M38122=0,Import!M38122=\"\"),P60,Import!M38122)","v":0},null,{"$f":"IF(OR(Import!M38144=0,Import!M38144=\"\"),R60,Import!M38144)","v":0},null,null,null,0,null,null,null,0.2]
[]
[null,{"$f":"B60+1","v":37},"Total Equity Holdings",{"$f":"SUM(D38:D61)","v":0},null,{"$f":"SUM(F38:F61)","v":0},null,{"$f":"SUM(H38:H61)","v":0},null,{"$f":"SUM(J38:J61)","v":0},null,{"$f":"SUM(L38:L61)","v":0},null,{"$f":"SUM(N38:N61)","v":0},null,{"$f":"SUM(P38:P61)","v":0},null,{"$f":"SUM(R38:R61)","v":0},null,{"$f":"SUM(T38:T61)","v":0},null,null,null,{"$f":"SUM(X38:X61)","v":0}]
[]
[null,null,null,"Spread Up",null,null,null,null,null,null,null,null,null,"Spread Down"]
[null,null,null,"Long Exposures",null,null,null,"Short Exposures",null,null,null,"Shock (bps)",null,"Long Exposures",null,null,null,"Short Exposures",null,null,null,"Shock Rates"]
[null,null,null,"Before Shock",null,"After Shock",null,"Before Shock",null,"After Shock",null,null,null,"Before Shock",null,"Before Shock",null,"After Shock",null,"After Shock"]
[null,null,"Spread Risk for Credit Derivatives"]
[null,{"$f":"B62+1","v":38},"BSCR Rating 0",{"$f":"Import!M38145","v":0},null,{"$f":"Import!M38154","v":0},null,{"$f":"Import!M38163","v":0},null,{"$f":"Import!M38172","v":0},null,0,null,{"$f":"Import!M38181","v":0},null,{"$f":"Import!M38190","v":0},null,{"$f":"Import!M38199","v":0},null,{"$f":"Import!M38208","v":0},null,0]
[null,{"$f":"B68+1","v":39},"BSCR Rating 1",{"$f":"Import!M38146","v":0},null,{"$f":"Import!M38155","v":0},null,{"$f":"Import!M38164","v":0},null,{"$f":"Import!M38173","v":0},null,130,null,{"$f":"Import!M38182","v":0},null,{"$f":"Import!M38191","v":0},null,{"$f":"Import!M38200","v":0},null,{"$f":"Import!M38209","v":0},null,-0.75]
[null,{"$f":"B69+1","v":40},"BSCR Rating 2",{"$f":"Import!M38147","v":0},null,{"$f":"Import!M38156","v":0},null,{"$f":"Import!M38165","v":0},null,{"$f":"Import!M38174","v":0},null,150,null,{"$f":"Import!M38183","v":0},null,{"$f":"Import!M38192","v":0},null,{"$f":"Import!M38201","v":0},null,{"$f":"Import!M38210","v":0},null,-0.75]
[null,41,"BSCR Rating 3",{"$f":"Import!M38148","v":0},null,{"$f":"Import!M38157","v":0},null,{"$f":"Import!M38166","v":0},null,{"$f":"Import!M38175","v":0},null,260,null,{"$f":"Import!M38184","v":0},null,{"$f":"Import!M38193","v":0},null,{"$f":"Import!M38202","v":0},null,{"$f":"Import!M38211","v":0},null,-0.75]
[null,42,"BSCR Rating 4",{"$f":"Import!M38149","v":0},null,{"$f":"Import!M38158","v":0},null,{"$f":"Import!M38167","v":0},null,{"$f":"Import!M38176","v":0},null,450,null,{"$f":"Import!M38185","v":0},null,{"$f":"Import!M38194","v":0},null,{"$f":"Import!M38203","v":0},null,{"$f":"Import!M38212","v":0},null,-0.75]
[null,43,"BSCR Rating 5",{"$f":"Import!M38150","v":0},null,{"$f":"Import!M38159","v":0},null,{"$f":"Import!M38168","v":0},null,{"$f":"Import!M38177","v":0},null,840,null,{"$f":"Import!M38186","v":0},null,{"$f":"Import!M38195","v":0},null,{"$f":"Import!M38204","v":0},null,{"$f":"Import!M38213","v":0},null,-0.75]
[null,44,"BSCR Rating 6",{"$f":"Import!M38151","v":0},null,{"$f":"Import!M38160","v":0},null,{"$f":"Import!M38169","v":0},null,{"$f":"Import!M38178","v":0},null,1620,null,{"$f":"Import!M38187","v":0},null,{"$f":"Import!M38196","v":0},null,{"$f":"Import!M38205","v":0},null,{"$f":"Import!M38214","v":0},null,-0.75]
[null,45,"BSCR Rating 7",{"$f":"Import!M38152","v":0},null,{"$f":"Import!M38161","v":0},null,{"$f":"Import!M38170","v":0},null,{"$f":"Import!M38179","v":0},null,1620,null,{"$f":"Import!M38188","v":0},null,{"$f":"Import!M38197","v":0},null,{"$f":"Import!M38206","v":0},null,{"$f":"Import!M38215","v":0},null,-0.75]
[null,46,"BSCR Rating 8",{"$f":"Import!M38153","v":0},null,{"$f":"Import!M38162","v":0},null,{"$f":"Import!M38171","v":0},null,{"$f":"Import!M38180","v":0},null,1620,null,{"$f":"Import!M38189","v":0},null,{"$f":"Import!M38198","v":0},null,{"$f":"Import!M38207","v":0},null,{"$f":"Import!M38216","v":0},null,-0.75]
[null,47,"Total Spread",{"$f":"SUM(D67:D76)","v":0},null,{"$f":"SUM(F67:F76)","v":0},null,{"$f":"SUM(H67:H76)","v":0},null,{"$f":"SUM(J67:J76)","v":0},null,null,null,{"$f":"SUM(N67:N76)","v":0},null,{"$f":"SUM(P67:P76)","v":0},null,{"$f":"SUM(R67:R76)","v":0},null,{"$f":"SUM(T67:T76)","v":0}]
[]
[null,null,"Spread Risk Check",null,null,null,null,null,null,null,null,null,null,{"$f":"IF(ROUND(D77-N77,0)=0,\"Yes\",\"No\")","v":"Yes"},null,null,null,{"$f":"IF(ROUND(H77-R77,0)=0,\"Yes\",\"No\")","v":"Yes"}]
[null,null,"Difference",null,null,null,null,null,null,null,null,null,null,{"$f":"ROUND(D77-N77,0)","v":0},null,null,null,{"$f":"ROUND(H77-R77,0)","v":0}]
[]
[null,null,null,"Market Value of Derivatives with Positive Market Value",null,"Market Value of Derivatives with Negative Market Value",null,"Market Value of Collateral, Excluding any over-collateralization"]
[null,null,"Counterparty Default Risk for OTC Derivatives"]
[null,{"$f":"B77+1","v":48},"BSCR Rating 0",{"$f":"Import!M38217","v":0},null,{"$f":"Import!M38226","v":0},null,{"$f":"Import!M38235","v":0}]
[null,{"$f":"B84+1","v":49},"BSCR Rating 1",{"$f":"Import!M38218","v":0},null,{"$f":"Import!M38227","v":0},null,{"$f":"Import!M38236","v":0}]
[null,{"$f":"B85+1","v":50},"BSCR Rating 2",{"$f":"Import!M38219","v":0},null,{"$f":"Import!M38228","v":0},null,{"$f":"Import!M38237","v":0}]
[null,51,"BSCR Rating 3",{"$f":"Import!M38220","v":0},null,{"$f":"Import!M38229","v":0},null,{"$f":"Import!M38238","v":0}]
[null,52,"BSCR Rating 4",{"$f":"Import!M38221","v":0},null,{"$f":"Import!M38230","v":0},null,{"$f":"Import!M38239","v":0}]
[null,53,"BSCR Rating 5",{"$f":"Import!M38222","v":0},null,{"$f":"Import!M38231","v":0},null,{"$f":"Import!M38240","v":0}]
[null,54,"BSCR Rating 6",{"$f":"Import!M38223","v":0},null,{"$f":"Import!M38232","v":0},null,{"$f":"Import!M38241","v":0}]
[null,55,"BSCR Rating 7",{"$f":"Import!M38224","v":0},null,{"$f":"Import!M38233","v":0},null,{"$f":"Import!M38242","v":0}]
[null,56,"BSCR Rating 8",{"$f":"Import!M38225","v":0},null,{"$f":"Import!M38234","v":0},null,{"$f":"Import!M38243","v":0}]
[null,57,"Total Default Risk for OTC Derivatives ",{"$f":"SUM(D83:D92)","v":0},null,{"$f":"SUM(F83:F92)","v":0},null,{"$f":"SUM(H83:H92)","v":0}]
[]
[null,{"$f":"B93+1","v":58},"Cash and Cash Equivalents",{"$f":"Import!M38244","v":0}]
[]
[null,{"$f":"B95+1","v":59},"Total Deposit Assets",{"$f":"X27+X62+D77+H77+D93+F93+H93+D95","v":0}]
[]
[null,null,"Please include in the table below any assets, included in this Schedule, for which NAIC ratings were used to map to the BSCR rating classes"]
[null,null,"Information on the use of NAIC ratings\n(for disclosure purposes only)","CORPORATE & SOVEREIGN BONDS",null,"RESIDENTIAL MORTGAGE-BACKED SECURITIES",null,"COMMERCIAL MORTGAGE-BACKED SECURITIES / ASSET-BACKED SECURITIES",null,"BOND MUTUAL FUNDS",null,"MORTGAGE LOANS",null,"PREFERRED STOCKS",null,"OTHER ASSETS"]
[null,null,"NAIC Class 1",{"$f":"Import!M38245","v":0},null,{"$f":"Import!M38252","v":0},null,{"$f":"Import!M38259","v":0},null,{"$f":"Import!M38266","v":0},null,{"$f":"Import!M38273","v":0},null,{"$f":"Import!M38280","v":0},null,{"$f":"Import!M38287","v":0}]
[null,null,"NAIC Class 2",{"$f":"Import!M38246","v":0},null,{"$f":"Import!M38253","v":0},null,{"$f":"Import!M38260","v":0},null,{"$f":"Import!M38267","v":0},null,{"$f":"Import!M38274","v":0},null,{"$f":"Import!M38281","v":0},null,{"$f":"Import!M38288","v":0}]
[null,null,"NAIC Class 3",{"$f":"Import!M38247","v":0},null,{"$f":"Import!M38254","v":0},null,{"$f":"Import!M38261","v":0},null,{"$f":"Import!M38268","v":0},null,{"$f":"Import!M38275","v":0},null,{"$f":"Import!M38282","v":0},null,{"$f":"Import!M38289","v":0}]
[null,null,"NAIC Class 4",{"$f":"Import!M38248","v":0},null,{"$f":"Import!M38255","v":0},null,{"$f":"Import!M38262","v":0},null,{"$f":"Import!M38269","v":0},null,{"$f":"Import!M38276","v":0},null,{"$f":"Import!M38283","v":0},null,{"$f":"Import!M38290","v":0}]
[null,null,"NAIC Class 5",{"$f":"Import!M38249","v":0},null,{"$f":"Import!M38256","v":0},null,{"$f":"Import!M38263","v":0},null,{"$f":"Import!M38270","v":0},null,{"$f":"Import!M38277","v":0},null,{"$f":"Import!M38284","v":0},null,{"$f":"Import!M38291","v":0}]
[null,null,"NAIC Class 6",{"$f":"Import!M38250","v":0},null,{"$f":"Import!M38257","v":0},null,{"$f":"Import!M38264","v":0},null,{"$f":"Import!M38271","v":0},null,{"$f":"Import!M38278","v":0},null,{"$f":"Import!M38285","v":0},null,{"$f":"Import!M38292","v":0}]
[null,null,null,{"$f":"SUM(D101:D106)","v":0},null,{"$f":"SUM(F101:F106)","v":0},null,{"$f":"SUM(H101:H106)","v":0},null,{"$f":"SUM(J101:J106)","v":0},null,{"$f":"SUM(L101:L106)","v":0},null,{"$f":"SUM(N101:N106)","v":0},null,{"$f":"SUM(P101:P106)","v":0}]

{"sheet":"Schedule IIF (EBS)","index":35,"n_rows":107,"n_cols":28,"rows_kept":107,"cut":false,"hidden":false,"merged":[[33,27,34,27],[64,3,64,5],[64,7,64,9],[63,3,63,11],[63,13,63,21],[64,13,64,15],[64,17,64,19],[7,15,7,17],[34,7,34,9],[34,11,34,13],[7,19,7,21],[7,23,7,25],[32,3,32,13],[33,3,34,5],[33,7,33,13],[33,23,34,23],[7,11,7,13],[32,15,32,19],[33,15,34,15],[33,17,34,17],[33,19,34,19],[2,3,2,7],[3,5,3,7],[4,5,4,7],[7,3,7,5],[7,7,7,9]]}
[null,"OTHER SUNDRY ASSETS AND LIABILITIES",null,null,null,null,null,null,null,null,null,null,null,null,null,null,null,null,null,null,null,null,null,null,null,null,null,{"$f":"HYPERLINK(\"#'Index'!A1\",\"Return to Index\")","v":"Return to Index"}]
[]
[null,null,null,{"$f":"'Insurer Information'!C7","v":"Enter Company Name"}]
[null,null,null,"As at",null,{"$f":" TEXT('Insurer Information'!C3,\"D MMMM YYYY\")","v":"31 December 2023"},null,null,null,null,null,null,null,null,null,null,null,null,null,null,null,null,null,null,null,"SCHEDULE IIF (EBS)"]
[null,null,null,{"$f":"\"Expressed in \" & IF(CONFIGURATION!$B$12>1,\" ['\"&MID(CONFIGURATION!$B$12,2,LEN(CONFIGURATION!$B$12))&\"s]\",\"\")","v":"Expressed in  ['000s]"},null,{"$f":"'Form 4EBS'!C4","v":"United States Dollars"}]
[]
[null,null,null,"(1)",null,"(2)",null,"(3)",null,"(4)",null,"(5)",null,"(6)",null,"(7)",null,"(8)",null,"(9)",null,"(10)",null,"(11)",null,"(12)"]
[null,null,null,"Corporate & Sovereign Bonds",null,null,null,"Residential Mortgage Backed Securities",null,null,null,"Commercial Mortgage Backed Securities / Asset- Backed Securities",null,null,null,"Bond Mutual Funds",null,null,null,"Mortgage Loans",null,null,null,"TOTAL"]
[null,null,null,{"$f":"'Form 4EBS'!F6","v":"2023-12-31"},null,{"$f":"'Form 4EBS'!H6","v":"2022-12-31"},null,{"$f":"'Form 4EBS'!F6","v":"2023-12-31"},null,{"$f":"'Form 4EBS'!H6","v":"2022-12-31"},null,{"$f":"'Form 4EBS'!F6","v":"2023-12-31"},null,{"$f":"'Form 4EBS'!H6","v":"2022-12-31"},null,{"$f":"'Form 4EBS'!F6","v":"2023-12-31"},null,{"$f":"'Form 4EBS'!H6","v":"2022-12-31"},null,{"$f":"'Form 4EBS'!F6","v":"2023-12-31"},null,{"$f":"'Form 4EBS'!H6","v":"2022-12-31"},null,{"$f":"D9","v":"2023-12-31"},null,{"$f":"F9","v":"2022-12-31"}]
[null,null,null,{"$f":"CONFIGURATION!$D$12","v":" ('000s)"},null,{"$f":"CONFIGURATION!$D$12","v":" ('000s)"},null,{"$f":"CONFIGURATION!$D$12","v":" ('000s)"},null,{"$f":"CONFIGURATION!$D$12","v":" ('000s)"},null,{"$f":"CONFIGURATION!$D$12","v":" ('000s)"},null,{"$f":"CONFIGURATION!$D$12","v":" ('000s)"},null,{"$f":"CONFIGURATION!$D$12","v":" ('000s)"},null,{"$f":"CONFIGURATION!$D$12","v":" ('000s)"},null,{"$f":"CONFIGURATION!$D$12","v":" ('000s)"},null,{"$f":"CONFIGURATION!$D$12","v":" ('000s)"},null,{"$f":"CONFIGURATION!$D$12","v":" ('000s)"},null,{"$f":"CONFIGURATION!$D$12","v":" ('000s)"}]
[null,"Line no. "]
[null,"Quoted and Unquoted Bonds and Debentures"]
[null,1,"BSCR Rating 0",{"$f":"Import!M38295","v":0},null,{"$f":"Import!O38295","v":0},null,null,null,null,null,null,null,null,null,{"$f":"Import!M38320","v":0},null,{"$f":"Import!O38320","v":0},null,null,null,null,null,{"$f":"D13+H13+L13+P13","v":0},null,{"$f":"F13+J13+N13+R13","v":0}]
[null,{"$f":"B13+1","v":2},"BSCR Rating 1",{"$f":"Import!M38296","v":0},null,{"$f":"Import!O38296","v":0},null,{"$f":"Import!M38304","v":0},null,{"$f":"Import!O38304","v":0},null,{"$f":"Import!M38312","v":0},null,{"$f":"Import!O38312","v":0},null,{"$f":"Import!M38321","v":0},null,{"$f":"Import!O38321","v":0},null,null,null,null,null,{"$f":"D14+H14+L14+P14","v":0},null,0]
[null,{"$f":"B14+1","v":3},"BSCR Rating 2",{"$f":"Import!M38297","v":0},null,{"$f":"Import!O38297","v":0},null,{"$f":"Import!M38305","v":0},null,{"$f":"Import!O38305","v":0},null,{"$f":"Import!M38313","v":0},null,{"$f":"Import!O38313","v":0},null,{"$f":"Import!M38322","v":0},null,{"$f":"Import!O38322","v":0},null,null,null,null,null,0,null,0]
[null,4,"BSCR Rating 3",{"$f":"Import!M38298","v":0},null,{"$f":"Import!O38298","v":0},null,{"$f":"Import!M38306","v":0},null,{"$f":"Import!O38306","v":0},null,{"$f":"Import!M38314","v":0},null,{"$f":"Import!O38314","v":0},null,{"$f":"Import!M38323","v":0},null,{"$f":"Import!O38323","v":0},null,null,null,null,null,0,null,0]
[null,5,"BSCR Rating 4",{"$f":"Import!M38299","v":0},null,{"$f":"Import!O38299","v":0},null,{"$f":"Import!M38307","v":0},null,{"$f":"Import!O38307","v":0},null,{"$f":"Import!M38315","v":0},null,{"$f":"Import!O38315","v":0},null,{"$f":"Import!M38324","v":0},null,{"$f":"Import!O38324","v":0},null,null,null,null,null,0,null,0]
[null,6,"BSCR Rating 5",{"$f":"Import!M38300","v":0},null,{"$f":"Import!O38300","v":0},null,{"$f":"Import!M38308","v":0},null,{"$f":"Import!O38308","v":0},null,{"$f":"Import!M38316","v":0},null,{"$f":"Import!O38316","v":0},null,{"$f":"Import!M38325","v":0},null,{"$f":"Import!O38325","v":0},null,null,null,null,null,0,null,0]
[null,7,"BSCR Rating 6",{"$f":"Import!M38301","v":0},null,{"$f":"Import!O38301","v":0},null,{"$f":"Import!M38309","v":0},null,{"$f":"Import!O38309","v":0},null,{"$f":"Import!M38317","v":0},null,{"$f":"Import!O38317","v":0},null,{"$f":"Import!M38326","v":0},null,{"$f":"Import!O38326","v":0},null,null,null,null,null,0,null,0]
[null,8,"BSCR Rating 7",{"$f":"Import!M38302","v":0},null,{"$f":"Import!O38302","v":0},null,{"$f":"Import!M38310","v":0},null,{"$f":"Import!O38310","v":0},null,{"$f":"Import!M38318","v":0},null,{"$f":"Import!O38318","v":0},null,{"$f":"Import!M38327","v":0},null,{"$f":"Import!O38327","v":0},null,null,null,null,null,0,null,0]
[null,9,"BSCR Rating 8",{"$f":"Import!M38303","v":0},null,{"$f":"Import!O38303","v":0},null,{"$f":"Import!M38311","v":0},null,{"$f":"Import!O38311","v":0},null,{"$f":"Import!M38319","v":0},null,{"$f":"Import!O38319","v":0},null,{"$f":"Import!M38328","v":0},null,{"$f":"Import!O38328","v":0},null,null,null,null,null,0,null,0]
[null,10,"Insured/Guaranteed Mortgages",null,null,null,null,null,null,null,null,null,null,null,null,null,null,null,null,{"$f":"Import!M38329","v":0},null,{"$f":"Import!O38329","v":0},null,{"$f":"D22+H22+L22+P22+T22","v":0},null,{"$f":"F22+J22+N22+R22+V22","v":0}]
[null,11,"Other Commercial and Farm Mortgages",null,null,null,null,null,null,null,null,null,null,null,null,null,null,null,null,{"$f":"Import!M38330","v":0},null,{"$f":"Import!O38330","v":0},null,{"$f":"D23+H23+L23+P23+T23","v":0},null,0]
[null,12,"Other Residential Mortgages",null,null,null,null,null,null,null,null,null,null,null,null,null,null,null,null,{"$f":"Import!M38331","v":0},null,{"$f":"Import!O38331","v":0},null,0,null,0]
[null,13,"Mortgages Not In Good Standing",null,null,null,null,null,null,null,null,null,null,null,null,null,null,null,null,{"$f":"Import!M38332","v":0},null,{"$f":"Import!O38332","v":0},null,0,null,0]
[]
[null,{"$f":"B25+1","v":14},"Total",{"$f":"SUM(D13:D21)","v":0},null,{"$f":"SUM(F13:F21)","v":0},null,{"$f":"SUM(H13:H21)","v":0},null,{"$f":"SUM(J13:J21)","v":0},null,{"$f":"SUM(L13:L21)","v":0},null,{"$f":"SUM(N13:N21)","v":0},null,{"$f":"SUM(P13:P21)","v":0},null,{"$f":"SUM(R13:R21)","v":0},null,{"$f":"SUM(T13:T25)","v":0},null,{"$f":"SUM(V13:V25)","v":0},null,{"$f":"SUM(X13:X25)","v":0},null,{"$f":"SUM(Z13:Z25)","v":0}]
[]
[]
[]
[]
[]
[null,null,null,"ASSETS",null,null,null,null,null,null,null,null,null,null,null,"Liabilities"]
[null,null,null,"Long Exposures",null,null,null,"Short Exposures",null,null,null,null,null,null,null,null,null,"Without Management Actions",null,"With Management Actions",null,null,null,"Total Assets Before Shock",null,null,null,"Shocks"]
[null,null,null,null,null,null,null,"Qualifying as Assets held for risk-mitigation purposes",null,null,null,"Not Qualifying as Assets held for risk-mitigation purposes",null,null,null,null,null,null,null,null,null,null,null,null,null,null,null,"Shocks"]
[null,null,null,"Before Shock",null,"After Shock",null,"Before Shock",null,"After Shock",null,"Before Shock",null,"After Shock",null,"Before Shock",null,"After Shock",null,"After Shock"]
[null,null,null,{"$f":"CONFIGURATION!$D$12","v":" ('000s)"},null,{"$f":"CONFIGURATION!$D$12","v":" ('000s)"},null,{"$f":"CONFIGURATION!$D$12","v":" ('000s)"},null,{"$f":"CONFIGURATION!$D$12","v":" ('000s)"},null,{"$f":"CONFIGURATION!$D$12","v":" ('000s)"},null,{"$f":"CONFIGURATION!$D$12","v":" ('000s)"},null,{"$f":"CONFIGURATION!$D$12","v":" ('000s)"},null,{"$f":"CONFIGURATION!$D$12","v":" ('000s)"},null,{"$f":"CONFIGURATION!$D$12","v":" ('000s)"},null,null,null,{"$f":"CONFIGURATION!$D$12","v":" ('000s)"}]
[null,"Equity Holdings "]
[null,{"$f":"B27+1","v":15},"Strategic Holdings - Listed",{"$f":"Import!M38333","v":0},null,{"$f":"IF(OR(Import!M38355=0,Import!M38355=\"\"),(1-$AB39)*D39,Import!M38355)","v":0},null,{"$f":"Import!M38377","v":0},null,{"$f":"IF(OR(Import!M38399=0,Import!M38399=\"\"),(1-$AB39)*H39,Import!M38399)","v":0},null,{"$f":"Import!M38421","v":0},null,{"$f":"IF(OR(Import!M38443=0,Import!M38443=\"\"),(1-$AB39)*L39,Import!M38443)","v":0},null,{"$f":"Import!M38465","v":0},null,{"$f":"IF(OR(Import!M38487=0,Import!M38487=\"\"),P39,Import!M38487)","v":0},null,{"$f":"IF(OR(Import!M38509=0,Import!M38509=\"\"),R39,Import!M38509)","v":0},null,null,null,{"$f":"D39+H39+L39","v":0},null,null,null,0.2]
[null,{"$f":"B39+1","v":16},"Duration Based",{"$f":"Import!M38334","v":0},null,{"$f":"IF(OR(Import!M38356=0,Import!M38356=\"\"),(1-$AB40)*D40,Import!M38356)","v":0},null,{"$f":"Import!M38378","v":0},null,{"$f":"IF(OR(Import!M38400=0,Import!M38400=\"\"),(1-$AB40)*H40,Import!M38400)","v":0},null,{"$f":"Import!M38422","v":0},null,{"$f":"IF(OR(Import!M38444=0,Import!M38444=\"\"),(1-$AB40)*L40,Import!M38444)","v":0},null,{"$f":"Import!M38466","v":0},null,{"$f":"IF(OR(Import!M38488=0,Import!M38488=\"\"),P40,Import!M38488)","v":0},null,{"$f":"IF(OR(Import!M38510=0,Import!M38510=\"\"),R40,Import!M38510)","v":0},null,null,null,{"$f":"D40+H40+L40","v":0},null,null,null,0.2]
[null,17,"Listed Equity Securities in Developed Markets",{"$f":"Import!M38335","v":0},null,{"$f":"IF(OR(Import!M38357=0,Import!M38357=\"\"),(1-$AB41)*D41,Import!M38357)","v":0},null,{"$f":"Import!M38379","v":0},null,{"$f":"IF(OR(Import!M38401=0,Import!M38401=\"\"),(1-$AB41)*H41,Import!M38401)","v":0},null,{"$f":"Import!M38423","v":0},null,{"$f":"IF(OR(Import!M38445=0,Import!M38445=\"\"),(1-$AB41)*L41,Import!M38445)","v":0},null,{"$f":"Import!M38467","v":0},null,{"$f":"IF(OR(Import!M38489=0,Import!M38489=\"\"),P41,Import!M38489)","v":0},null,{"$f":"IF(OR(Import!M38511=0,Import!M38511=\"\"),R41,Import!M38511)","v":0},null,null,null,0,null,null,null,0.35]
[null,18,"Preferred Stocks, BSCR Rating 1",{"$f":"Import!M38336","v":0},null,{"$f":"IF(OR(Import!M38358=0,Import!M38358=\"\"),(1-$AB42)*D42,Import!M38358)","v":0},null,{"$f":"Import!M38380","v":0},null,{"$f":"IF(OR(Import!M38402=0,Import!M38402=\"\"),(1-$AB42)*H42,Import!M38402)","v":0},null,{"$f":"Import!M38424","v":0},null,{"$f":"IF(OR(Import!M38446=0,Import!M38446=\"\"),(1-$AB42)*L42,Import!M38446)","v":0},null,{"$f":"Import!M38468","v":0},null,{"$f":"IF(OR(Import!M38490=0,Import!M38490=\"\"),P42,Import!M38490)","v":0},null,{"$f":"IF(OR(Import!M38512=0,Import!M38512=\"\"),R42,Import!M38512)","v":0},null,null,null,0,null,null,null,6.0000000000000001E-3]
[null,19,"Preferred Stocks, BSCR Rating 2",{"$f":"Import!M38337","v":0},null,{"$f":"IF(OR(Import!M38359=0,Import!M38359=\"\"),(1-$AB43)*D43,Import!M38359)","v":0},null,{"$f":"Import!M38381","v":0},null,{"$f":"IF(OR(Import!M38403=0,Import!M38403=\"\"),(1-$AB43)*H43,Import!M38403)","v":0},null,{"$f":"Import!M38425","v":0},null,{"$f":"IF(OR(Import!M38447=0,Import!M38447=\"\"),(1-$AB43)*L43,Import!M38447)","v":0},null,{"$f":"Import!M38469","v":0},null,{"$f":"IF(OR(Import!M38491=0,Import!M38491=\"\"),P43,Import!M38491)","v":0},null,{"$f":"IF(OR(Import!M38513=0,Import!M38513=\"\"),R43,Import!M38513)","v":0},null,null,null,0,null,null,null,1.2E-2]
[null,20,"Preferred Stocks, BSCR Rating 3",{"$f":"Import!M38338","v":0},null,{"$f":"IF(OR(Import!M38360=0,Import!M38360=\"\"),(1-$AB44)*D44,Import!M38360)","v":0},null,{"$f":"Import!M38382","v":0},null,{"$f":"IF(OR(Import!M38404=0,Import!M38404=\"\"),(1-$AB44)*H44,Import!M38404)","v":0},null,{"$f":"Import!M38426","v":0},null,{"$f":"IF(OR(Import!M38448=0,Import!M38448=\"\"),(1-$AB44)*L44,Import!M38448)","v":0},null,{"$f":"Import!M38470","v":0},null,{"$f":"IF(OR(Import!M38492=0,Import!M38492=\"\"),P44,Import!M38492)","v":0},null,{"$f":"IF(OR(Import!M38514=0,Import!M38514=\"\"),R44,Import!M38514)","v":0},null,null,null,0,null,null,null,0.02]
[null,21,"Preferred Stocks, BSCR Rating 4",{"$f":"Import!M38339","v":0},null,{"$f":"IF(OR(Import!M38361=0,Import!M38361=\"\"),(1-$AB45)*D45,Import!M38361)","v":0},null,{"$f":"Import!M38383","v":0},null,{"$f":"IF(OR(Import!M38405=0,Import!M38405=\"\"),(1-$AB45)*H45,Import!M38405)","v":0},null,{"$f":"Import!M38427","v":0},null,{"$f":"IF(OR(Import!M38449=0,Import!M38449=\"\"),(1-$AB45)*L45,Import!M38449)","v":0},null,{"$f":"Import!M38471","v":0},null,{"$f":"IF(OR(Import!M38493=0,Import!M38493=\"\"),P45,Import!M38493)","v":0},null,{"$f":"IF(OR(Import!M38515=0,Import!M38515=\"\"),R45,Import!M38515)","v":0},null,null,null,0,null,null,null,0.04]
[null,22,"Preferred Stocks, BSCR Rating 5",{"$f":"Import!M38340","v":0},null,{"$f":"IF(OR(Import!M38362=0,Import!M38362=\"\"),(1-$AB46)*D46,Import!M38362)","v":0},null,{"$f":"Import!M38384","v":0},null,{"$f":"IF(OR(Import!M38406=0,Import!M38406=\"\"),(1-$AB46)*H46,Import!M38406)","v":0},null,{"$f":"Import!M38428","v":0},null,{"$f":"IF(OR(Import!M38450=0,Import!M38450=\"\"),(1-$AB46)*L46,Import!M38450)","v":0},null,{"$f":"Import!M38472","v":0},null,{"$f":"IF(OR(Import!M38494=0,Import!M38494=\"\"),P46,Import!M38494)","v":0},null,{"$f":"IF(OR(Import!M38516=0,Import!M38516=\"\"),R46,Import!M38516)","v":0},null,null,null,0,null,null,null,0.11]
[null,23,"Preferred Stocks, BSCR Rating 6",{"$f":"Import!M38341","v":0},null,{"$f":"IF(OR(Import!M38363=0,Import!M38363=\"\"),(1-$AB47)*D47,Import!M38363)","v":0},null,{"$f":"Import!M38385","v":0},null,{"$f":"IF(OR(Import!M38407=0,Import!M38407=\"\"),(1-$AB47)*H47,Import!M38407)","v":0},null,{"$f":"Import!M38429","v":0},null,{"$f":"IF(OR(Import!M38451=0,Import!M38451=\"\"),(1-$AB47)*L47,Import!M38451)","v":0},null,{"$f":"Import!M38473","v":0},null,{"$f":"IF(OR(Import!M38495=0,Import!M38495=\"\"),P47,Import!M38495)","v":0},null,{"$f":"IF(OR(Import!M38517=0,Import!M38517=\"\"),R47,Import!M38517)","v":0},null,null,null,0,null,null,null,0.25]
[null,24,"Preferred Stocks, BSCR Rating 7",{"$f":"Import!M38342","v":0},null,{"$f":"IF(OR(Import!M38364=0,Import!M38364=\"\"),(1-$AB48)*D48,Import!M38364)","v":0},null,{"$f":"Import!M38386","v":0},null,{"$f":"IF(OR(Import!M38408=0,Import!M38408=\"\"),(1-$AB48)*H48,Import!M38408)","v":0},null,{"$f":"Import!M38430","v":0},null,{"$f":"IF(OR(Import!M38452=0,Import!M38452=\"\"),(1-$AB48)*L48,Import!M38452)","v":0},null,{"$f":"Import!M38474","v":0},null,{"$f":"IF(OR(Import!M38496=0,Import!M38496=\"\"),P48,Import!M38496)","v":0},null,{"$f":"IF(OR(Import!M38518=0,Import!M38518=\"\"),R48,Import!M38518)","v":0},null,null,null,0,null,null,null,0.35]
[null,25,"Preferred Stocks, BSCR Rating 8",{"$f":"Import!M38343","v":0},null,{"$f":"IF(OR(Import!M38365=0,Import!M38365=\"\"),(1-$AB49)*D49,Import!M38365)","v":0},null,{"$f":"Import!M38387","v":0},null,{"$f":"IF(OR(Import!M38409=0,Import!M38409=\"\"),(1-$AB49)*H49,Import!M38409)","v":0},null,{"$f":"Import!M38431","v":0},null,{"$f":"IF(OR(Import!M38453=0,Import!M38453=\"\"),(1-$AB49)*L49,Import!M38453)","v":0},null,{"$f":"Import!M38475","v":0},null,{"$f":"IF(OR(Import!M38497=0,Import!M38497=\"\"),P49,Import!M38497)","v":0},null,{"$f":"IF(OR(Import!M38519=0,Import!M38519=\"\"),R49,Import!M38519)","v":0},null,null,null,0,null,null,null,0.35]
[null,26,"Equity Derivatives on Type 1 Equities",{"$f":"Import!M38344","v":0},null,{"$f":"Import!M38366","v":0},null,{"$f":"Import!M38388","v":0},null,{"$f":"Import!M38410","v":0},null,{"$f":"Import!M38432","v":0},null,{"$f":"Import!M38454","v":0},null,{"$f":"Import!M38476","v":0},null,{"$f":"IF(OR(Import!M38498=0,Import!M38498=\"\"),P50,Import!M38498)","v":0},null,{"$f":"IF(OR(Import!M38520=0,Import!M38520=\"\"),R50,Import!M38520)","v":0},null,null,null,0,null,null,null,0.35]
[null,27,"Strategic Holdings - Unlisted",{"$f":"Import!M38345","v":0},null,{"$f":"IF(OR(Import!M38367=0,Import!M38367=\"\"),(1-$AB51)*D51,Import!M38367)","v":0},null,{"$f":"Import!M38389","v":0},null,{"$f":"IF(OR(Import!M38411=0,Import!M38411=\"\"),(1-$AB51)*H51,Import!M38411)","v":0},null,{"$f":"Import!M38433","v":0},null,{"$f":"IF(OR(Import!M38455=0,Import!M38455=\"\"),(1-$AB51)*L51,Import!M38455)","v":0},null,{"$f":"Import!M38477","v":0},null,{"$f":"IF(OR(Import!M38499=0,Import!M38499=\"\"),P51,Import!M38499)","v":0},null,{"$f":"IF(OR(Import!M38521=0,Import!M38521=\"\"),R51,Import!M38521)","v":0},null,null,null,0,null,null,null,0.2]
[null,28,"Other Equities / Other Assets",{"$f":"IF(OR(Import!M38346=0,Import!M38346=\"\"),'Form 4EBS'!F84,Import!M38346)","v":0},null,{"$f":"IF(OR(Import!M38368=0,Import!M38368=\"\"),(1-$AB52)*D52,Import!M38368)","v":0},null,{"$f":"Import!M38390","v":0},null,{"$f":"IF(OR(Import!M38412=0,Import!M38412=\"\"),(1-$AB52)*H52,Import!M38412)","v":0},null,{"$f":"Import!M38434","v":0},null,{"$f":"IF(OR(Import!M38456=0,Import!M38456=\"\"),(1-$AB52)*L52,Import!M38456)","v":0},null,{"$f":"Import!M38478","v":0},null,{"$f":"IF(OR(Import!M38500=0,Import!M38500=\"\"),P52,Import!M38500)","v":0},null,{"$f":"IF(OR(Import!M38522=0,Import!M38522=\"\"),R52,Import!M38522)","v":0},null,null,null,0,null,null,null,0.45]
[null,29,"Letters of Credit",{"$f":"IF(OR(Import!M38347=0,Import!M38347=\"\"),'Form 4EBS'!F91,Import!M38347)","v":0},null,{"$f":"IF(OR(Import!M38369=0,Import!M38369=\"\"),(1-$AB53)*D53,Import!M38369)","v":0},null,{"$f":"Import!M38391","v":0},null,{"$f":"IF(OR(Import!M38413=0,Import!M38413=\"\"),(1-$AB53)*H53,Import!M38413)","v":0},null,{"$f":"Import!M38435","v":0},null,{"$f":"IF(OR(Import!M38457=0,Import!M38457=\"\"),(1-$AB53)*L53,Import!M38457)","v":0},null,{"$f":"Import!M38479","v":0},null,{"$f":"IF(OR(Import!M38501=0,Import!M38501=\"\"),P53,Import!M38501)","v":0},null,{"$f":"IF(OR(Import!M38523=0,Import!M38523=\"\"),R53,Import!M38523)","v":0},null,null,null,0,null,null,null,0.2]
[null,30,"Intangible assets",{"$f":"IF(OR(Import!M38348=0,Import!M38348=\"\"),'Form 4EBS'!F81,Import!M38348)","v":0},null,{"$f":"IF(OR(Import!M38370=0,Import!M38370=\"\"),(1-$AB54)*D54,Import!M38370)","v":0},null,{"$f":"Import!M38392","v":0},null,{"$f":"IF(OR(Import!M38414=0,Import!M38414=\"\"),(1-$AB54)*H54,Import!M38414)","v":0},null,{"$f":"Import!M38436","v":0},null,{"$f":"IF(OR(Import!M38458=0,Import!M38458=\"\"),(1-$AB54)*L54,Import!M38458)","v":0},null,{"$f":"Import!M38480","v":0},null,{"$f":"IF(OR(Import!M38502=0,Import!M38502=\"\"),P54,Import!M38502)","v":0},null,{"$f":"IF(OR(Import!M38524=0,Import!M38524=\"\"),R54,Import!M38524)","v":0},null,null,null,0,null,null,null,0.2]
[null,31,"Pension Benefit Surplus",{"$f":"IF(OR(Import!M38349=0,Import!M38349=\"\"),'Form 4EBS'!F83,Import!M38349)","v":0},null,{"$f":"IF(OR(Import!M38371=0,Import!M38371=\"\"),(1-$AB55)*D55,Import!M38371)","v":0},null,{"$f":"Import!M38393","v":0},null,{"$f":"IF(OR(Import!M38415=0,Import!M38415=\"\"),(1-$AB55)*H55,Import!M38415)","v":0},null,{"$f":"Import!M38437","v":0},null,{"$f":"IF(OR(Import!M38459=0,Import!M38459=\"\"),(1-$AB55)*L55,Import!M38459)","v":0},null,{"$f":"Import!M38481","v":0},null,{"$f":"IF(OR(Import!M38503=0,Import!M38503=\"\"),P55,Import!M38503)","v":0},null,{"$f":"IF(OR(Import!M38525=0,Import!M38525=\"\"),R55,Import!M38525)","v":0},null,null,null,0,null,null,null,0.2]
[null,32,"Equity Derivatives on Type 2 Equities",{"$f":"Import!M38350","v":0},null,{"$f":"Import!M38372","v":0},null,{"$f":"Import!M38394","v":0},null,{"$f":"Import!M38416","v":0},null,{"$f":"Import!M38438","v":0},null,{"$f":"Import!M38460","v":0},null,{"$f":"Import!M38482","v":0},null,{"$f":"IF(OR(Import!M38504=0,Import!M38504=\"\"),P56,Import!M38504)","v":0},null,{"$f":"IF(OR(Import!M38526=0,Import!M38526=\"\"),R56,Import!M38526)","v":0},null,null,null,0,null,null,null,0.45]
[null,33,"Infrastructure",{"$f":"Import!M38351","v":0},null,{"$f":"IF(OR(Import!M38373=0,Import!M38373=\"\"),(1-$AB57)*D57,Import!M38373)","v":0},null,{"$f":"Import!M38395","v":0},null,{"$f":"IF(OR(Import!M38417=0,Import!M38417=\"\"),(1-$AB57)*H57,Import!M38417)","v":0},null,{"$f":"Import!M38439","v":0},null,{"$f":"IF(OR(Import!M38461=0,Import!M38461=\"\"),(1-$AB57)*L57,Import!M38461)","v":0},null,{"$f":"Import!M38483","v":0},null,{"$f":"IF(OR(Import!M38505=0,Import!M38505=\"\"),P57,Import!M38505)","v":0},null,{"$f":"IF(OR(Import!M38527=0,Import!M38527=\"\"),R57,Import!M38527)","v":0},null,null,null,0,null,null,null,0.25]
[null,34,"Derivatives on Infrastructure",{"$f":"Import!M38352","v":0},null,{"$f":"Import!M38374","v":0},null,{"$f":"Import!M38396","v":0},null,{"$f":"Import!M38418","v":0},null,{"$f":"Import!M38440","v":0},null,{"$f":"Import!M38462","v":0},null,{"$f":"Import!M38484","v":0},null,{"$f":"IF(OR(Import!M38506=0,Import!M38506=\"\"),P58,Import!M38506)","v":0},null,{"$f":"IF(OR(Import!M38528=0,Import!M38528=\"\"),R58,Import!M38528)","v":0},null,null,null,0,null,null,null,0.25]
[null,35,"Equity Real Estate 1",{"$f":"Import!M38353","v":0},null,{"$f":"IF(OR(Import!M38375=0,Import!M38375=\"\"),(1-$AB59)*D59,Import!M38375)","v":0},null,{"$f":"Import!M38397","v":0},null,{"$f":"IF(OR(Import!M38419=0,Import!M38419=\"\"),(1-$AB59)*H59,Import!M38419)","v":0},null,{"$f":"Import!M38441","v":0},null,{"$f":"IF(OR(Import!M38463=0,Import!M38463=\"\"),(1-$AB59)*L59,Import!M38463)","v":0},null,{"$f":"Import!M38485","v":0},null,{"$f":"IF(OR(Import!M38507=0,Import!M38507=\"\"),P59,Import!M38507)","v":0},null,{"$f":"IF(OR(Import!M38529=0,Import!M38529=\"\"),R59,Import!M38529)","v":0},null,null,null,0,null,null,null,0.1]
[null,36,"Equity Real Estate 2",{"$f":"Import!M38354","v":0},null,{"$f":"IF(OR(Import!M38376=0,Import!M38376=\"\"),(1-$AB60)*D60,Import!M38376)","v":0},null,{"$f":"Import!M38398","v":0},null,{"$f":"IF(OR(Import!M38420=0,Import!M38420=\"\"),(1-$AB60)*H60,Import!M38420)","v":0},null,{"$f":"Import!M38442","v":0},null,{"$f":"IF(OR(Import!M38464=0,Import!M38464=\"\"),(1-$AB60)*L60,Import!M38464)","v":0},null,{"$f":"Import!M38486","v":0},null,{"$f":"IF(OR(Import!M38508=0,Import!M38508=\"\"),P60,Import!M38508)","v":0},null,{"$f":"IF(OR(Import!M38530=0,Import!M38530=\"\"),R60,Import!M38530)","v":0},null,null,null,0,null,null,null,0.2]
[]
[null,{"$f":"B60+1","v":37},"Total Equity Holdings",{"$f":"SUM(D38:D61)","v":0},null,{"$f":"SUM(F38:F61)","v":0},null,{"$f":"SUM(H38:H61)","v":0},null,{"$f":"SUM(J38:J61)","v":0},null,{"$f":"SUM(L38:L61)","v":0},null,{"$f":"SUM(N38:N61)","v":0},null,{"$f":"SUM(P38:P61)","v":0},null,{"$f":"SUM(R38:R61)","v":0},null,{"$f":"SUM(T38:T61)","v":0},null,null,null,{"$f":"SUM(X38:X61)","v":0}]
[]
[null,null,null,"Spread Up",null,null,null,null,null,null,null,null,null,"Spread Down"]
[null,null,null,"Long Exposures",null,null,null,"Short Exposures",null,null,null,"Shock (bps)",null,"Long Exposures",null,null,null,"Short Exposures",null,null,null,"Shock Rates"]
[null,null,null,"Before Shock",null,"After Shock",null,"Before Shock",null,"After Shock",null,null,null,"Before Shock",null,"Before Shock",null,"After Shock",null,"After Shock"]
[null,null,"Spread Risk for Credit Derivatives"]
[null,{"$f":"B62+1","v":38},"BSCR Rating 0",{"$f":"Import!M38531","v":0},null,{"$f":"Import!M38540","v":0},null,{"$f":"Import!M38549","v":0},null,{"$f":"Import!M38558","v":0},null,0,null,{"$f":"Import!M38567","v":0},null,{"$f":"Import!M38576","v":0},null,{"$f":"Import!M38585","v":0},null,{"$f":"Import!M38594","v":0},null,0]
[null,{"$f":"B68+1","v":39},"BSCR Rating 1",{"$f":"Import!M38532","v":0},null,{"$f":"Import!M38541","v":0},null,{"$f":"Import!M38550","v":0},null,{"$f":"Import!M38559","v":0},null,130,null,{"$f":"Import!M38568","v":0},null,{"$f":"Import!M38577","v":0},null,{"$f":"Import!M38586","v":0},null,{"$f":"Import!M38595","v":0},null,-0.75]
[null,{"$f":"B69+1","v":40},"BSCR Rating 2",{"$f":"Import!M38533","v":0},null,{"$f":"Import!M38542","v":0},null,{"$f":"Import!M38551","v":0},null,{"$f":"Import!M38560","v":0},null,150,null,{"$f":"Import!M38569","v":0},null,{"$f":"Import!M38578","v":0},null,{"$f":"Import!M38587","v":0},null,{"$f":"Import!M38596","v":0},null,-0.75]
[null,41,"BSCR Rating 3",{"$f":"Import!M38534","v":0},null,{"$f":"Import!M38543","v":0},null,{"$f":"Import!M38552","v":0},null,{"$f":"Import!M38561","v":0},null,260,null,{"$f":"Import!M38570","v":0},null,{"$f":"Import!M38579","v":0},null,{"$f":"Import!M38588","v":0},null,{"$f":"Import!M38597","v":0},null,-0.75]
[null,42,"BSCR Rating 4",{"$f":"Import!M38535","v":0},null,{"$f":"Import!M38544","v":0},null,{"$f":"Import!M38553","v":0},null,{"$f":"Import!M38562","v":0},null,450,null,{"$f":"Import!M38571","v":0},null,{"$f":"Import!M38580","v":0},null,{"$f":"Import!M38589","v":0},null,{"$f":"Import!M38598","v":0},null,-0.75]
[null,43,"BSCR Rating 5",{"$f":"Import!M38536","v":0},null,{"$f":"Import!M38545","v":0},null,{"$f":"Import!M38554","v":0},null,{"$f":"Import!M38563","v":0},null,840,null,{"$f":"Import!M38572","v":0},null,{"$f":"Import!M38581","v":0},null,{"$f":"Import!M38590","v":0},null,{"$f":"Import!M38599","v":0},null,-0.75]
[null,44,"BSCR Rating 6",{"$f":"Import!M38537","v":0},null,{"$f":"Import!M38546","v":0},null,{"$f":"Import!M38555","v":0},null,{"$f":"Import!M38564","v":0},null,1620,null,{"$f":"Import!M38573","v":0},null,{"$f":"Import!M38582","v":0},null,{"$f":"Import!M38591","v":0},null,{"$f":"Import!M38600","v":0},null,-0.75]
[null,45,"BSCR Rating 7",{"$f":"Import!M38538","v":0},null,{"$f":"Import!M38547","v":0},null,{"$f":"Import!M38556","v":0},null,{"$f":"Import!M38565","v":0},null,1620,null,{"$f":"Import!M38574","v":0},null,{"$f":"Import!M38583","v":0},null,{"$f":"Import!M38592","v":0},null,{"$f":"Import!M38601","v":0},null,-0.75]
[null,46,"BSCR Rating 8",{"$f":"Import!M38539","v":0},null,{"$f":"Import!M38548","v":0},null,{"$f":"Import!M38557","v":0},null,{"$f":"Import!M38566","v":0},null,1620,null,{"$f":"Import!M38575","v":0},null,{"$f":"Import!M38584","v":0},null,{"$f":"Import!M38593","v":0},null,{"$f":"Import!M38602","v":0},null,-0.75]
[null,47,"Total Spread",{"$f":"SUM(D67:D76)","v":0},null,{"$f":"SUM(F67:F76)","v":0},null,{"$f":"SUM(H67:H76)","v":0},null,{"$f":"SUM(J67:J76)","v":0},null,null,null,{"$f":"SUM(N67:N76)","v":0},null,{"$f":"SUM(P67:P76)","v":0},null,{"$f":"SUM(R67:R76)","v":0},null,{"$f":"SUM(T67:T76)","v":0}]
[]
[null,null,"Spread Risk Check",null,null,null,null,null,null,null,null,null,null,{"$f":"IF(ROUND(D77-N77,0)=0,\"Yes\",\"No\")","v":"Yes"},null,null,null,{"$f":"IF(ROUND(H77-R77,0)=0,\"Yes\",\"No\")","v":"Yes"}]
[null,null,"Difference",null,null,null,null,null,null,null,null,null,null,{"$f":"ROUND(D77-N77,0)","v":0},null,null,null,{"$f":"ROUND(H77-R77,0)","v":0}]
[]
[null,null,null,"Market Value of Derivatives with Positive Market Value",null,"Market Value of Derivatives with Negative Market Value",null,"Market Value of Collateral, Excluding any over-collateralization"]
[null,null,"Counterparty Default Risk for OTC Derivatives"]
[null,{"$f":"B77+1","v":48},"BSCR Rating 0",{"$f":"Import!M38603","v":0},null,{"$f":"Import!M38612","v":0},null,{"$f":"Import!M38621","v":0}]
[null,{"$f":"B84+1","v":49},"BSCR Rating 1",{"$f":"Import!M38604","v":0},null,{"$f":"Import!M38613","v":0},null,{"$f":"Import!M38622","v":0}]
[null,{"$f":"B85+1","v":50},"BSCR Rating 2",{"$f":"Import!M38605","v":0},null,{"$f":"Import!M38614","v":0},null,{"$f":"Import!M38623","v":0}]
[null,51,"BSCR Rating 3",{"$f":"Import!M38606","v":0},null,{"$f":"Import!M38615","v":0},null,{"$f":"Import!M38624","v":0}]
[null,52,"BSCR Rating 4",{"$f":"Import!M38607","v":0},null,{"$f":"Import!M38616","v":0},null,{"$f":"Import!M38625","v":0}]
[null,53,"BSCR Rating 5",{"$f":"Import!M38608","v":0},null,{"$f":"Import!M38617","v":0},null,{"$f":"Import!M38626","v":0}]
[null,54,"BSCR Rating 6",{"$f":"Import!M38609","v":0},null,{"$f":"Import!M38618","v":0},null,{"$f":"Import!M38627","v":0}]
[null,55,"BSCR Rating 7",{"$f":"Import!M38610","v":0},null,{"$f":"Import!M38619","v":0},null,{"$f":"Import!M38628","v":0}]
[null,56,"BSCR Rating 8",{"$f":"Import!M38611","v":0},null,{"$f":"Import!M38620","v":0},null,{"$f":"Import!M38629","v":0}]
[null,57,"Total Default Risk for OTC Derivatives ",{"$f":"SUM(D83:D92)","v":0},null,{"$f":"SUM(F83:F92)","v":0},null,{"$f":"SUM(H83:H92)","v":0}]
[]
[null,{"$f":"B93+1","v":58},"Cash and Cash Equivalents",{"$f":"Import!M38630","v":0}]
[]
[null,{"$f":"B95+1","v":59},"Total Other Sundry Assets",{"$f":"X27+X62+D77+H77+D93+F93+H93+D95","v":0}]
[]
[null,null,"Please include in the table below any assets, included in this Schedule, for which NAIC ratings were used to map to the BSCR rating classes"]
[null,null,"Information on the use of NAIC ratings\n(for disclosure purposes only)","CORPORATE & SOVEREIGN BONDS",null,"RESIDENTIAL MORTGAGE-BACKED SECURITIES",null,"COMMERCIAL MORTGAGE-BACKED SECURITIES / ASSET-BACKED SECURITIES",null,"BOND MUTUAL FUNDS",null,"MORTGAGE LOANS",null,"PREFERRED STOCKS",null,"OTHER ASSETS"]
[null,null,"NAIC Class 1",{"$f":"Import!M38631","v":0},null,{"$f":"Import!M38638","v":0},null,{"$f":"Import!M38645","v":0},null,{"$f":"Import!M38652","v":0},null,{"$f":"Import!M38659","v":0},null,{"$f":"Import!M38666","v":0},null,{"$f":"Import!M38673","v":0}]
[null,null,"NAIC Class 2",{"$f":"Import!M38632","v":0},null,{"$f":"Import!M38639","v":0},null,{"$f":"Import!M38646","v":0},null,{"$f":"Import!M38653","v":0},null,{"$f":"Import!M38660","v":0},null,{"$f":"Import!M38667","v":0},null,{"$f":"Import!M38674","v":0}]
[null,null,"NAIC Class 3",{"$f":"Import!M38633","v":0},null,{"$f":"Import!M38640","v":0},null,{"$f":"Import!M38647","v":0},null,{"$f":"Import!M38654","v":0},null,{"$f":"Import!M38661","v":0},null,{"$f":"Import!M38668","v":0},null,{"$f":"Import!M38675","v":0}]
[null,null,"NAIC Class 4",{"$f":"Import!M38634","v":0},null,{"$f":"Import!M38641","v":0},null,{"$f":"Import!M38648","v":0},null,{"$f":"Import!M38655","v":0},null,{"$f":"Import!M38662","v":0},null,{"$f":"Import!M38669","v":0},null,{"$f":"Import!M38676","v":0}]
[null,null,"NAIC Class 5",{"$f":"Import!M38635","v":0},null,{"$f":"Import!M38642","v":0},null,{"$f":"Import!M38649","v":0},null,{"$f":"Import!M38656","v":0},null,{"$f":"Import!M38663","v":0},null,{"$f":"Import!M38670","v":0},null,{"$f":"Import!M38677","v":0}]
[null,null,"NAIC Class 6",{"$f":"Import!M38636","v":0},null,{"$f":"Import!M38643","v":0},null,{"$f":"Import!M38650","v":0},null,{"$f":"Import!M38657","v":0},null,{"$f":"Import!M38664","v":0},null,{"$f":"Import!M38671","v":0},null,{"$f":"Import!M38678","v":0}]
[null,null,null,{"$f":"SUM(D101:D106)","v":0},null,{"$f":"SUM(F101:F106)","v":0},null,{"$f":"SUM(H101:H106)","v":0},null,{"$f":"SUM(J101:J106)","v":0},null,{"$f":"SUM(L101:L106)","v":0},null,{"$f":"SUM(N101:N106)","v":0},null,{"$f":"SUM(P101:P106)","v":0}]

{"sheet":"Grandfathered Equity Part","index":36,"n_rows":51,"n_cols":5,"rows_kept":51,"cut":false,"hidden":false,"merged":[[0,3,0,4],[52,0,52,1]]}
["GRANDFATHERED PORTION OF EQUITY INVESTMENTS",null,null,{"$f":"HYPERLINK(\"#'Index'!A1\",\"Return to Index\")","v":"Return to Index"}]
[{"$f":"'Insurer Information'!C7","v":"Enter Company Name"}]
[{"$f":"\"Grandfathered Equity Investments\"& \" ($\" & IF(CONFIGURATION!$B$12>1,\"'\"&MID(CONFIGURATION!$B$12,2,LEN(CONFIGURATION!$B$12)),\"\") & \")\"","v":"Grandfathered Equity Investments ($'000)"},null,{"$f":" TEXT('Insurer Information'!C3,\"D MMMM YYYY\")","v":"31 December 2023"},"(1)","(2)"]
[]
[]
[null,"TYPE OF ",null,"ASSET","CAPITAL"]
[null,"EQUITY INVESTMENTS",null,"VALUE","FACTOR"]
[]
[null,"(a)  Common Stocks"]
[]
[null,"Non-Affiliated (Quoted)",null,{"$f":"Import!M40351","v":0},0.14399999999999999]
[null,"Non-Affiliated (Unquoted)",null,{"$f":"Import!M40352","v":0},0.14399999999999999]
[null,"Equity mutual funds",null,{"$f":"Import!M40353","v":0},0.14399999999999999]
[]
[null,"(a)  SUBTOTAL - COMMON STOCKS",null,{"$f":"SUM(D11:D13)","v":0}]
[]
[null,"(b)  Preferred Stocks"]
[]
[null,"BSCR Rating"]
[null,1,null,{"$f":"Import!M40354","v":0},6.0000000000000001E-3]
[null,2,null,{"$f":"Import!M40355","v":0},1.2E-2]
[null,3,null,{"$f":"Import!M40356","v":0},0.02]
[null,4,null,{"$f":"Import!M40357","v":0},0.04]
[null,5,null,{"$f":"Import!M40358","v":0},0.11]
[null,6,null,{"$f":"Import!M40359","v":0},0.25]
[null,7,null,{"$f":"Import!M40360","v":0},0.35]
[null,8,null,{"$f":"Import!M40361","v":0},0.35]
[]
[null,"(b)  SUBTOTAL - PREFERRED STOCKS",null,{"$f":"SUM(D19:D27)","v":0}]
[]
[null,"(c)  Other Equity Investments"]
[]
[null,"Real Estate"]
[null,"Company-Occupied Less Encumbrances",null,{"$f":"Import!M40362","v":0},0.1]
[null,"Investments Less Encumbrances",null,{"$f":"Import!M40363","v":0},0.2]
[]
[null,"Other Equity Investments",null,{"$f":"Import!M40364","v":0},0.2]
[null,"Other Tangible Assets (Net of Segregated Accounts Companies)",null,{"$f":"Import!M40365","v":0},0.2]
[]
[null,"(c)  SUBTOTAL - OTHER EQUITY INVESTMENTS",null,{"$f":"SUM(D34:D35,D37:D38)","v":0}]
[]
[null,"(d)  Investments in Affiliates"]
[]
[null,"Unregulated Entities That Conduct Ancillary Services",null,{"$f":"Import!M40366","v":0},0.05]
[null,"Unregulated Non-Financial Operating Entities",null,{"$f":"Import!M40367","v":0},0.2]
[null,"Unregulated Financial Operating Entities",null,{"$f":"Import!M40368","v":0},0.55000000000000004]
[null,"Regulated Insurance Financial Operating Entities",null,{"$f":"Import!M40369","v":0},0.2]
[]
[null,"(d)  SUBTOTAL - INVESTMENTS IN AFFILIATES",null,{"$f":"SUM(D44:D47)","v":0}]
[]
[null,"(e)  TOTAL EQUITY INVESTMENTS [ (a) + (b) + (c) + (d) ]",null,{"$f":"D15+D29+D40+D49","v":0}]

{"sheet":"Non-Grandfathered Equity Part","index":37,"n_rows":38,"n_cols":28,"rows_kept":38,"cut":false,"hidden":false,"merged":[[9,23,10,23],[9,27,10,27],[10,7,10,9],[10,11,10,13],[2,3,2,5],[3,5,3,7],[4,5,4,7],[8,3,8,13],[8,15,8,19],[9,3,10,5],[9,7,9,13],[9,15,10,15],[9,17,10,17],[9,19,10,19]]}
[null,"NON-GRANDFATHERED PORTION OF EQUITY INVESTMENTS (TOTAL EQUITIES - GRANDFATHERED EQUITIES)",null,null,null,null,null,null,null,null,null,null,null,null,null,null,null,null,null,null,null,null,null,null,null,null,null,{"$f":"HYPERLINK(\"#'Index'!A1\",\"Return to Index\")","v":"Return to Index"}]
[]
[null,null,null,{"$f":"'Insurer Information'!C7","v":"Enter Company Name"}]
[null,null,null,"As at",null,{"$f":" TEXT('Insurer Information'!C3,\"D MMMM YYYY\")","v":"31 December 2023"}]
[null,null,null,{"$f":"\"Expressed in \" & IF(CONFIGURATION!$B$12>1,\" ['\"&MID(CONFIGURATION!$B$12,2,LEN(CONFIGURATION!$B$12))&\"s]\",\"\")","v":"Expressed in  ['000s]"},null,{"$f":"'Form 4EBS'!C4","v":"United States Dollars"}]
[]
[null,null,null,"(1)",null,"(2)",null,"(3)",null,"(4)",null,"(5)",null,"(6)",null,"(7)",null,"(8)",null,"(9)",null,"(10)",null,"(11)",null,"(12)"]
[]
[null,null,null,"ASSETS",null,null,null,null,null,null,null,null,null,null,null,"Liabilities"]
[null,null,null,"Long Exposures",null,null,null,"Short Exposures",null,null,null,null,null,null,null,null,null,"Without Management Actions",null,"With Management Actions",null,null,null,"Total Assets Before Shock",null,null,null,"Shocks"]
[null,null,null,null,null,null,null,"Qualifying as Assets held for risk-mitigation purposes",null,null,null,"Not Qualifying as Assets held for risk-mitigation purposes",null,null,null,null,null,null,null,null,null,null,null,null,null,null,null,"Shocks"]
[null,null,null,"Before Shock",null,"After Shock",null,"Before Shock",null,"After Shock",null,"Before Shock",null,"After Shock",null,"Before Shock",null,"After Shock",null,"After Shock"]
[null,null,null,{"$f":"CONFIGURATION!$D$12","v":" ('000s)"},null,{"$f":"CONFIGURATION!$D$12","v":" ('000s)"},null,{"$f":"CONFIGURATION!$D$12","v":" ('000s)"},null,{"$f":"CONFIGURATION!$D$12","v":" ('000s)"},null,{"$f":"CONFIGURATION!$D$12","v":" ('000s)"},null,{"$f":"CONFIGURATION!$D$12","v":" ('000s)"},null,{"$f":"CONFIGURATION!$D$12","v":" ('000s)"},null,{"$f":"CONFIGURATION!$D$12","v":" ('000s)"},null,{"$f":"CONFIGURATION!$D$12","v":" ('000s)"},null,null,null,{"$f":"CONFIGURATION!$D$12","v":" ('000s)"}]
[null,"Equity Holdings "]
[null,1,"Strategic Holdings - Listed",{"$f":"Import!M40152","v":0},null,{"$f":"IF(OR(Import!M40174=0,Import!M40174=\"\"),(1-$AB15)*D15,Import!M40174)","v":0},null,{"$f":"Import!M40196","v":0},null,{"$f":"IF(OR(Import!M40218=0,Import!M40218=\"\"),(1-$AB15)*H15,Import!M40218)","v":0},null,{"$f":"Import!M40240","v":0},null,{"$f":"IF(OR(Import!M40262=0,Import!M40262=\"\"),(1-$AB15)*L15,Import!M40262)","v":0},null,{"$f":"Import!M40284","v":0},null,{"$f":"IF(OR(Import!M40306=0,Import!M40306=\"\"),P15,Import!M40306)","v":0},null,{"$f":"IF(OR(Import!M40328=0,Import!M40328=\"\"),R15,Import!M40328)","v":0},null,null,null,{"$f":"D15+H15+L15","v":0},null,null,null,0.2]
[null,{"$f":"B15+1","v":2},"Duration Based",{"$f":"Import!M40153","v":0},null,{"$f":"IF(OR(Import!M40175=0,Import!M40175=\"\"),(1-$AB16)*D16,Import!M40175)","v":0},null,{"$f":"Import!M40197","v":0},null,{"$f":"IF(OR(Import!M40219=0,Import!M40219=\"\"),(1-$AB16)*H16,Import!M40219)","v":0},null,{"$f":"Import!M40241","v":0},null,{"$f":"IF(OR(Import!M40263=0,Import!M40263=\"\"),(1-$AB16)*L16,Import!M40263)","v":0},null,{"$f":"Import!M40285","v":0},null,{"$f":"IF(OR(Import!M40307=0,Import!M40307=\"\"),P16,Import!M40307)","v":0},null,{"$f":"IF(OR(Import!M40329=0,Import!M40329=\"\"),R16,Import!M40329)","v":0},null,null,null,{"$f":"D16+H16+L16","v":0},null,null,null,0.2]
[null,3,"Listed Equity Securities in Developed Markets",{"$f":"Import!M40154","v":0},null,{"$f":"IF(OR(Import!M40176=0,Import!M40176=\"\"),(1-$AB17)*D17,Import!M40176)","v":0},null,{"$f":"Import!M40198","v":0},null,{"$f":"IF(OR(Import!M40220=0,Import!M40220=\"\"),(1-$AB17)*H17,Import!M40220)","v":0},null,{"$f":"Import!M40242","v":0},null,{"$f":"IF(OR(Import!M40264=0,Import!M40264=\"\"),(1-$AB17)*L17,Import!M40264)","v":0},null,{"$f":"Import!M40286","v":0},null,{"$f":"IF(OR(Import!M40308=0,Import!M40308=\"\"),P17,Import!M40308)","v":0},null,{"$f":"IF(OR(Import!M40330=0,Import!M40330=\"\"),R17,Import!M40330)","v":0},null,null,null,{"$f":"D17+H17+L17","v":0},null,null,null,0.35]
[null,4,"Preferred Stocks, BSCR Rating 1",{"$f":"Import!M40155","v":0},null,{"$f":"IF(OR(Import!M40177=0,Import!M40177=\"\"),(1-$AB18)*D18,Import!M40177)","v":0},null,{"$f":"Import!M40199","v":0},null,{"$f":"IF(OR(Import!M40221=0,Import!M40221=\"\"),(1-$AB18)*H18,Import!M40221)","v":0},null,{"$f":"Import!M40243","v":0},null,{"$f":"IF(OR(Import!M40265=0,Import!M40265=\"\"),(1-$AB18)*L18,Import!M40265)","v":0},null,{"$f":"Import!M40287","v":0},null,{"$f":"IF(OR(Import!M40309=0,Import!M40309=\"\"),P18,Import!M40309)","v":0},null,{"$f":"IF(OR(Import!M40331=0,Import!M40331=\"\"),R18,Import!M40331)","v":0},null,null,null,0,null,null,null,6.0000000000000001E-3]
[null,5,"Preferred Stocks, BSCR Rating 2",{"$f":"Import!M40156","v":0},null,{"$f":"IF(OR(Import!M40178=0,Import!M40178=\"\"),(1-$AB19)*D19,Import!M40178)","v":0},null,{"$f":"Import!M40200","v":0},null,{"$f":"IF(OR(Import!M40222=0,Import!M40222=\"\"),(1-$AB19)*H19,Import!M40222)","v":0},null,{"$f":"Import!M40244","v":0},null,{"$f":"IF(OR(Import!M40266=0,Import!M40266=\"\"),(1-$AB19)*L19,Import!M40266)","v":0},null,{"$f":"Import!M40288","v":0},null,{"$f":"IF(OR(Import!M40310=0,Import!M40310=\"\"),P19,Import!M40310)","v":0},null,{"$f":"IF(OR(Import!M40332=0,Import!M40332=\"\"),R19,Import!M40332)","v":0},null,null,null,0,null,null,null,1.2E-2]
[null,6,"Preferred Stocks, BSCR Rating 3",{"$f":"Import!M40157","v":0},null,{"$f":"IF(OR(Import!M40179=0,Import!M40179=\"\"),(1-$AB20)*D20,Import!M40179)","v":0},null,{"$f":"Import!M40201","v":0},null,{"$f":"IF(OR(Import!M40223=0,Import!M40223=\"\"),(1-$AB20)*H20,Import!M40223)","v":0},null,{"$f":"Import!M40245","v":0},null,{"$f":"IF(OR(Import!M40267=0,Import!M40267=\"\"),(1-$AB20)*L20,Import!M40267)","v":0},null,{"$f":"Import!M40289","v":0},null,{"$f":"IF(OR(Import!M40311=0,Import!M40311=\"\"),P20,Import!M40311)","v":0},null,{"$f":"IF(OR(Import!M40333=0,Import!M40333=\"\"),R20,Import!M40333)","v":0},null,null,null,0,null,null,null,0.02]
[null,7,"Preferred Stocks, BSCR Rating 4",{"$f":"Import!M40158","v":0},null,{"$f":"IF(OR(Import!M40180=0,Import!M40180=\"\"),(1-$AB21)*D21,Import!M40180)","v":0},null,{"$f":"Import!M40202","v":0},null,{"$f":"IF(OR(Import!M40224=0,Import!M40224=\"\"),(1-$AB21)*H21,Import!M40224)","v":0},null,{"$f":"Import!M40246","v":0},null,{"$f":"IF(OR(Import!M40268=0,Import!M40268=\"\"),(1-$AB21)*L21,Import!M40268)","v":0},null,{"$f":"Import!M40290","v":0},null,{"$f":"IF(OR(Import!M40312=0,Import!M40312=\"\"),P21,Import!M40312)","v":0},null,{"$f":"IF(OR(Import!M40334=0,Import!M40334=\"\"),R21,Import!M40334)","v":0},null,null,null,0,null,null,null,0.04]
[null,8,"Preferred Stocks, BSCR Rating 5",{"$f":"Import!M40159","v":0},null,{"$f":"IF(OR(Import!M40181=0,Import!M40181=\"\"),(1-$AB22)*D22,Import!M40181)","v":0},null,{"$f":"Import!M40203","v":0},null,{"$f":"IF(OR(Import!M40225=0,Import!M40225=\"\"),(1-$AB22)*H22,Import!M40225)","v":0},null,{"$f":"Import!M40247","v":0},null,{"$f":"IF(OR(Import!M40269=0,Import!M40269=\"\"),(1-$AB22)*L22,Import!M40269)","v":0},null,{"$f":"Import!M40291","v":0},null,{"$f":"IF(OR(Import!M40313=0,Import!M40313=\"\"),P22,Import!M40313)","v":0},null,{"$f":"IF(OR(Import!M40335=0,Import!M40335=\"\"),R22,Import!M40335)","v":0},null,null,null,0,null,null,null,0.11]
[null,9,"Preferred Stocks, BSCR Rating 6",{"$f":"Import!M40160","v":0},null,{"$f":"IF(OR(Import!M40182=0,Import!M40182=\"\"),(1-$AB23)*D23,Import!M40182)","v":0},null,{"$f":"Import!M40204","v":0},null,{"$f":"IF(OR(Import!M40226=0,Import!M40226=\"\"),(1-$AB23)*H23,Import!M40226)","v":0},null,{"$f":"Import!M40248","v":0},null,{"$f":"IF(OR(Import!M40270=0,Import!M40270=\"\"),(1-$AB23)*L23,Import!M40270)","v":0},null,{"$f":"Import!M40292","v":0},null,{"$f":"IF(OR(Import!M40314=0,Import!M40314=\"\"),P23,Import!M40314)","v":0},null,{"$f":"IF(OR(Import!M40336=0,Import!M40336=\"\"),R23,Import!M40336)","v":0},null,null,null,0,null,null,null,0.25]
[null,10,"Preferred Stocks, BSCR Rating 7",{"$f":"Import!M40161","v":0},null,{"$f":"IF(OR(Import!M40183=0,Import!M40183=\"\"),(1-$AB24)*D24,Import!M40183)","v":0},null,{"$f":"Import!M40205","v":0},null,{"$f":"IF(OR(Import!M40227=0,Import!M40227=\"\"),(1-$AB24)*H24,Import!M40227)","v":0},null,{"$f":"Import!M40249","v":0},null,{"$f":"IF(OR(Import!M40271=0,Import!M40271=\"\"),(1-$AB24)*L24,Import!M40271)","v":0},null,{"$f":"Import!M40293","v":0},null,{"$f":"IF(OR(Import!M40315=0,Import!M40315=\"\"),P24,Import!M40315)","v":0},null,{"$f":"IF(OR(Import!M40337=0,Import!M40337=\"\"),R24,Import!M40337)","v":0},null,null,null,0,null,null,null,0.35]
[null,11,"Preferred Stocks, BSCR Rating 8",{"$f":"Import!M40162","v":0},null,{"$f":"IF(OR(Import!M40184=0,Import!M40184=\"\"),(1-$AB25)*D25,Import!M40184)","v":0},null,{"$f":"Import!M40206","v":0},null,{"$f":"IF(OR(Import!M40228=0,Import!M40228=\"\"),(1-$AB25)*H25,Import!M40228)","v":0},null,{"$f":"Import!M40250","v":0},null,{"$f":"IF(OR(Import!M40272=0,Import!M40272=\"\"),(1-$AB25)*L25,Import!M40272)","v":0},null,{"$f":"Import!M40294","v":0},null,{"$f":"IF(OR(Import!M40316=0,Import!M40316=\"\"),P25,Import!M40316)","v":0},null,{"$f":"IF(OR(Import!M40338=0,Import!M40338=\"\"),R25,Import!M40338)","v":0},null,null,null,0,null,null,null,0.35]
[null,12,"Equity Derivatives on Type 1 Equities",{"$f":"Import!M40163","v":0},null,{"$f":"Import!M40185","v":0},null,{"$f":"Import!M40207","v":0},null,{"$f":"Import!M40229","v":0},null,{"$f":"Import!M40251","v":0},null,{"$f":"Import!M40273","v":0},null,{"$f":"Import!M40295","v":0},null,{"$f":"IF(OR(Import!M40317=0,Import!M40317=\"\"),P26,Import!M40317)","v":0},null,{"$f":"IF(OR(Import!M40339=0,Import!M40339=\"\"),R26,Import!M40339)","v":0},null,null,null,0,null,null,null,0.35]
[null,13,"Strategic Holdings - Unlisted",{"$f":"Import!M40164","v":0},null,{"$f":"IF(OR(Import!M40186=0,Import!M40186=\"\"),(1-$AB27)*D27,Import!M40186)","v":0},null,{"$f":"Import!M40208","v":0},null,{"$f":"IF(OR(Import!M40230=0,Import!M40230=\"\"),(1-$AB27)*H27,Import!M40230)","v":0},null,{"$f":"Import!M40252","v":0},null,{"$f":"IF(OR(Import!M40274=0,Import!M40274=\"\"),(1-$AB27)*L27,Import!M40274)","v":0},null,{"$f":"Import!M40296","v":0},null,{"$f":"IF(OR(Import!M40318=0,Import!M40318=\"\"),P27,Import!M40318)","v":0},null,{"$f":"IF(OR(Import!M40340=0,Import!M40340=\"\"),R27,Import!M40340)","v":0},null,null,null,0,null,null,null,0.2]
[null,14,"Other Equities / Other Assets",{"$f":"Import!M40165","v":0},null,{"$f":"IF(OR(Import!M40187=0,Import!M40187=\"\"),(1-$AB28)*D28,Import!M40187)","v":0},null,{"$f":"Import!M40209","v":0},null,{"$f":"IF(OR(Import!M40231=0,Import!M40231=\"\"),(1-$AB28)*H28,Import!M40231)","v":0},null,{"$f":"Import!M40253","v":0},null,{"$f":"IF(OR(Import!M40275=0,Import!M40275=\"\"),(1-$AB28)*L28,Import!M40275)","v":0},null,{"$f":"Import!M40297","v":0},null,{"$f":"IF(OR(Import!M40319=0,Import!M40319=\"\"),P28,Import!M40319)","v":0},null,{"$f":"IF(OR(Import!M40341=0,Import!M40341=\"\"),R28,Import!M40341)","v":0},null,null,null,0,null,null,null,0.45]
[null,15,"Letters of Credit",{"$f":"Import!M40166","v":0},null,{"$f":"IF(OR(Import!M40188=0,Import!M40188=\"\"),(1-$AB29)*D29,Import!M40188)","v":0},null,{"$f":"Import!M40210","v":0},null,{"$f":"IF(OR(Import!M40232=0,Import!M40232=\"\"),(1-$AB29)*H29,Import!M40232)","v":0},null,{"$f":"Import!M40254","v":0},null,{"$f":"IF(OR(Import!M40276=0,Import!M40276=\"\"),(1-$AB29)*L29,Import!M40276)","v":0},null,{"$f":"Import!M40298","v":0},null,{"$f":"IF(OR(Import!M40320=0,Import!M40320=\"\"),P29,Import!M40320)","v":0},null,{"$f":"IF(OR(Import!M40342=0,Import!M40342=\"\"),R29,Import!M40342)","v":0},null,null,null,0,null,null,null,0.2]
[null,16,"Intangible assets",{"$f":"Import!M40167","v":0},null,{"$f":"IF(OR(Import!M40189=0,Import!M40189=\"\"),(1-$AB30)*D30,Import!M40189)","v":0},null,{"$f":"Import!M40211","v":0},null,{"$f":"IF(OR(Import!M40233=0,Import!M40233=\"\"),(1-$AB30)*H30,Import!M40233)","v":0},null,{"$f":"Import!M40255","v":0},null,{"$f":"IF(OR(Import!M40277=0,Import!M40277=\"\"),(1-$AB30)*L30,Import!M40277)","v":0},null,{"$f":"Import!M40299","v":0},null,{"$f":"IF(OR(Import!M40321=0,Import!M40321=\"\"),P30,Import!M40321)","v":0},null,{"$f":"IF(OR(Import!M40343=0,Import!M40343=\"\"),R30,Import!M40343)","v":0},null,null,null,0,null,null,null,0.2]
[null,17,"Pension Benefit Surplus",{"$f":"Import!M40168","v":0},null,{"$f":"IF(OR(Import!M40190=0,Import!M40190=\"\"),(1-$AB31)*D31,Import!M40190)","v":0},null,{"$f":"Import!M40212","v":0},null,{"$f":"IF(OR(Import!M40234=0,Import!M40234=\"\"),(1-$AB31)*H31,Import!M40234)","v":0},null,{"$f":"Import!M40256","v":0},null,{"$f":"IF(OR(Import!M40278=0,Import!M40278=\"\"),(1-$AB31)*L31,Import!M40278)","v":0},null,{"$f":"Import!M40300","v":0},null,{"$f":"IF(OR(Import!M40322=0,Import!M40322=\"\"),P31,Import!M40322)","v":0},null,{"$f":"IF(OR(Import!M40344=0,Import!M40344=\"\"),R31,Import!M40344)","v":0},null,null,null,0,null,null,null,0.2]
[null,18,"Equity Derivatives on Type 2 Equities",{"$f":"Import!M40169","v":0},null,{"$f":"Import!M40191","v":0},null,{"$f":"Import!M40213","v":0},null,{"$f":"Import!M40235","v":0},null,{"$f":"Import!M40257","v":0},null,{"$f":"Import!M40279","v":0},null,{"$f":"Import!M40301","v":0},null,{"$f":"IF(OR(Import!M40323=0,Import!M40323=\"\"),P32,Import!M40323)","v":0},null,{"$f":"IF(OR(Import!M40345=0,Import!M40345=\"\"),R32,Import!M40345)","v":0},null,null,null,0,null,null,null,0.45]
[null,19,"Infrastructure",{"$f":"Import!M40170","v":0},null,{"$f":"IF(OR(Import!M40192=0,Import!M40192=\"\"),(1-$AB33)*D33,Import!M40192)","v":0},null,{"$f":"Import!M40214","v":0},null,{"$f":"IF(OR(Import!M40236=0,Import!M40236=\"\"),(1-$AB33)*H33,Import!M40236)","v":0},null,{"$f":"Import!M40258","v":0},null,{"$f":"IF(OR(Import!M40280=0,Import!M40280=\"\"),(1-$AB33)*L33,Import!M40280)","v":0},null,{"$f":"Import!M40302","v":0},null,{"$f":"IF(OR(Import!M40324=0,Import!M40324=\"\"),P33,Import!M40324)","v":0},null,{"$f":"IF(OR(Import!M40346=0,Import!M40346=\"\"),R33,Import!M40346)","v":0},null,null,null,0,null,null,null,0.25]
[null,20,"Derivatives on Infrastructure",{"$f":"Import!M40171","v":0},null,{"$f":"Import!M40193","v":0},null,{"$f":"Import!M40215","v":0},null,{"$f":"Import!M40237","v":0},null,{"$f":"Import!M40259","v":0},null,{"$f":"Import!M40281","v":0},null,{"$f":"Import!M40303","v":0},null,{"$f":"IF(OR(Import!M40325=0,Import!M40325=\"\"),P34,Import!M40325)","v":0},null,{"$f":"IF(OR(Import!M40347=0,Import!M40347=\"\"),R34,Import!M40347)","v":0},null,null,null,0,null,null,null,0.25]
[null,21,"Equity Real Estate 1",{"$f":"Import!M40172","v":0},null,{"$f":"IF(OR(Import!M40194=0,Import!M40194=\"\"),(1-$AB35)*D35,Import!M40194)","v":0},null,{"$f":"Import!M40216","v":0},null,{"$f":"IF(OR(Import!M40238=0,Import!M40238=\"\"),(1-$AB35)*H35,Import!M40238)","v":0},null,{"$f":"Import!M40260","v":0},null,{"$f":"IF(OR(Import!M40282=0,Import!M40282=\"\"),(1-$AB35)*L35,Import!M40282)","v":0},null,{"$f":"Import!M40304","v":0},null,{"$f":"IF(OR(Import!M40326=0,Import!M40326=\"\"),P35,Import!M40326)","v":0},null,{"$f":"IF(OR(Import!M40348=0,Import!M40348=\"\"),R35,Import!M40348)","v":0},null,null,null,0,null,null,null,0.1]
[null,22,"Equity Real Estate 2",{"$f":"Import!M40173","v":0},null,{"$f":"IF(OR(Import!M40195=0,Import!M40195=\"\"),(1-$AB36)*D36,Import!M40195)","v":0},null,{"$f":"Import!M40217","v":0},null,{"$f":"IF(OR(Import!M40239=0,Import!M40239=\"\"),(1-$AB36)*H36,Import!M40239)","v":0},null,{"$f":"Import!M40261","v":0},null,{"$f":"IF(OR(Import!M40283=0,Import!M40283=\"\"),(1-$AB36)*L36,Import!M40283)","v":0},null,{"$f":"Import!M40305","v":0},null,{"$f":"IF(OR(Import!M40327=0,Import!M40327=\"\"),P36,Import!M40327)","v":0},null,{"$f":"IF(OR(Import!M40349=0,Import!M40349=\"\"),R36,Import!M40349)","v":0},null,null,null,0,null,null,null,0.2]
[]
[null,{"$f":"B36+1","v":23},"Total Equity Holdings",{"$f":"SUM(D14:D37)","v":0},null,{"$f":"SUM(F14:F37)","v":0},null,{"$f":"SUM(H14:H37)","v":0},null,{"$f":"SUM(J14:J37)","v":0},null,{"$f":"SUM(L14:L37)","v":0},null,{"$f":"SUM(N14:N37)","v":0},null,{"$f":"SUM(P14:P37)","v":0},null,{"$f":"SUM(R14:R37)","v":0},null,{"$f":"SUM(T14:T37)","v":0},null,null,null,{"$f":"SUM(X14:X37)","v":0}]

{"sheet":"Schedule IVB","index":38,"n_rows":37,"n_cols":27,"rows_kept":37,"cut":false,"hidden":false,"merged":[[6,24,7,26],[6,4,7,6],[6,8,7,10],[6,12,7,14],[6,16,7,18],[6,20,7,22],[1,1,1,2],[4,4,4,14],[4,16,4,26],[5,12,5,14],[5,24,5,26]]}
[null,"SCHEDULE OF LONG-TERM BUSINESS PREMIUMS",null,null,null,null,null,null,null,null,null,null,null,null,null,null,null,null,null,null,null,null,null,null,null,null,{"$f":"HYPERLINK(\"#'Index'!A1\",\"Return to Index\")","v":"Return to Index"}]
[null,{"$f":"'Schedule II'!C2","v":"Enter Company Name"}]
[null,"For the year ending",{"$f":" TEXT('Insurer Information'!C3,\"D MMMM YYYY\")","v":"31 December 2023"},null,null,null,null,null,null,null,null,null,null,null,null,null,null,null,null,null,null,null,null,null,null,null,"SCHEDULE IV(A)"]
[null,{"$f":"\"Expressed in \" & IF(CONFIGURATION!$B$12>1,\" ['\"&MID(CONFIGURATION!$B$12,2,LEN(CONFIGURATION!$B$12))&\"s]\",\"\")","v":"Expressed in  ['000s]"},{"$f":"'Schedule II'!D4","v":"United States Dollars"}]
[null,null,null,null,"GROSS PREMIUMS AND OTHER CONSIDERATIONS",null,null,null,null,null,null,null,null,null,null,null,"NET PREMIUMS AND OTHER CONSIDERATIONS"]
[null,null,null,null,null,null,null,null,null,null,null,null,"Form 2SFS, Line 12(c) ",null,null,null,null,null,null,null,null,null,null,null,"Form 2SFS, Line 14(d)"]
[null,null,null,null,"Unrelated",null,null,null,"Related",null,null,null,"Total",null,null,null,"Adjustable / Benefit Period \n<= 2 Years",null,null,null,"Non-Adjustable / Benefit Period \n> 2 Years",null,null,null,"Total "]
[null,"Schedule "]
[null,"Line no. ",null,null,{"$f":"'Form 4EBS'!F6","v":"2023-12-31"},null,{"$f":"'Form 4EBS'!H6","v":"2022-12-31"},null,{"$f":"'Form 4EBS'!F6","v":"2023-12-31"},null,{"$f":"'Form 4EBS'!H6","v":"2022-12-31"},null,{"$f":"'Form 4EBS'!F6","v":"2023-12-31"},null,{"$f":"'Form 4EBS'!H6","v":"2022-12-31"},null,{"$f":"M9","v":"2023-12-31"},null,{"$f":"O9","v":"2022-12-31"},null,{"$f":"Q9","v":"2023-12-31"},null,{"$f":"S9","v":"2022-12-31"},null,{"$f":"'Form 4EBS'!F6","v":"2023-12-31"},null,{"$f":"'Form 4EBS'!H6","v":"2022-12-31"}]
[null,null,null,null,"('000)",null,"('000)",null,"('000)",null,"('000)",null,"('000)",null,"('000)",null,"('000)",null,"('000)",null,"('000)",null,"('000)",null,"('000)",null,"('000)"]
[]
[null,1,"Mortality ",null,{"$f":"Import!E1375","v":0},null,{"$f":"Import!G1375","v":0},null,{"$f":"Import!E1391","v":0},null,{"$f":"Import!G1391","v":0},null,{"$f":"E12+I12","v":0},null,{"$f":"G12+K12","v":0},null,null,null,null,null,null,null,null,null,{"$f":"Import!E1413","v":0},null,{"$f":"Import!G1413","v":0}]
[null,2,"Critical Illness",null,{"$f":"Import!E1376","v":0},null,{"$f":"Import!G1376","v":0},null,{"$f":"Import!E1392","v":0},null,{"$f":"Import!G1392","v":0},null,{"$f":"E13+I13","v":0},null,{"$f":"G13+K13","v":0},null,null,null,null,null,null,null,null,null,{"$f":"Import!E1414","v":0},null,{"$f":"Import!G1414","v":0}]
[null,3,"Longevity",null,{"$f":"Import!E1377","v":0},null,{"$f":"Import!G1377","v":0},null,{"$f":"Import!E1393","v":0},null,{"$f":"Import!G1393","v":0},null,{"$f":"E14+I14","v":0},null,{"$f":"G14+K14","v":0},null,null,null,null,null,null,null,null,null,{"$f":"Import!E1415","v":0},null,{"$f":"Import!G1415","v":0}]
[null,4,"Deferred Annuities",null,{"$f":"Import!E1378","v":0},null,{"$f":"Import!G1378","v":0},null,{"$f":"Import!E1394","v":0},null,{"$f":"Import!G1394","v":0},null,{"$f":"E15+I15","v":0},null,{"$f":"G15+K15","v":0},null,null,null,null,null,null,null,null,null,{"$f":"Import!E1416","v":0},null,{"$f":"Import!G1416","v":0}]
[null,5,"Disability Income: Active lives with premium guarantee of —"]
[null,null,"(i) Less than or equal to 1 year",null,{"$f":"Import!E1379","v":0},null,{"$f":"Import!G1379","v":0},null,{"$f":"Import!E1395","v":0},null,{"$f":"Import!G1395","v":0},null,{"$f":"E17+I17","v":0},null,{"$f":"G17+K17","v":0},null,{"$f":"Import!E1407","v":0},null,{"$f":"Import!G1407","v":0},null,{"$f":"Import!E1410","v":0},null,{"$f":"Import!G1410","v":0}]
[null,null,"(ii) More than 1 year but less than 5 years",null,{"$f":"Import!E1380","v":0},null,{"$f":"Import!G1380","v":0},null,{"$f":"Import!E1396","v":0},null,{"$f":"Import!G1396","v":0},null,{"$f":"E18+I18","v":0},null,0,null,{"$f":"Import!E1408","v":0},null,{"$f":"Import!G1408","v":0},null,{"$f":"Import!E1411","v":0},null,{"$f":"Import!G1411","v":0}]
[null,null,"(iii) Greater than 5 years",null,{"$f":"Import!E1381","v":0},null,{"$f":"Import!G1381","v":0},null,{"$f":"Import!E1397","v":0},null,{"$f":"Import!G1397","v":0},null,{"$f":"E19+I19","v":0},null,0,null,{"$f":"Import!E1409","v":0},null,{"$f":"Import!G1409","v":0},null,{"$f":"Import!E1412","v":0},null,{"$f":"Import!G1412","v":0}]
[null,6,"Disability Income: Actives lives for other ",null,{"$f":"Import!E1382","v":0},null,{"$f":"Import!G1382","v":0},null,{"$f":"Import!E1398","v":0},null,{"$f":"Import!G1398","v":0},null,{"$f":"E20+I20","v":0},null,0,null,null,null,null,null,null,null,null,null,{"$f":"Import!E1417","v":0},null,{"$f":"Import!G1417","v":0}]
[null,null,"accident and sickness"]
[null,7,"Disability Income: Claims in payment ",null,{"$f":"Import!E1383","v":0},null,{"$f":"Import!G1383","v":0},null,{"$f":"Import!E1399","v":0},null,{"$f":"Import!G1399","v":0},null,{"$f":"E22+I22","v":0},null,0,null,null,null,null,null,null,null,null,null,{"$f":"Import!E1418","v":0},null,{"$f":"Import!G1418","v":0}]
[null,8,"Disability Income: Claims in payment for other",null,{"$f":"Import!E1384","v":0},null,{"$f":"Import!G1384","v":0},null,{"$f":"Import!E1400","v":0},null,{"$f":"Import!G1400","v":0},null,{"$f":"E23+I23","v":0},null,0,null,null,null,null,null,null,null,null,null,{"$f":"Import!E1419","v":0},null,{"$f":"Import!G1419","v":0}]
[null,null,"accident and sickness"]
[null,9,"Group Life",null,{"$f":"Import!E1385","v":0},null,{"$f":"Import!G1385","v":0},null,{"$f":"Import!E1401","v":0},null,{"$f":"Import!G1401","v":0},null,{"$f":"E25+I25","v":0},null,0,null,null,null,null,null,null,null,null,null,{"$f":"Import!E1420","v":0},null,{"$f":"Import!G1420","v":0}]
[null,10,"Group Disability",null,{"$f":"Import!E1386","v":0},null,{"$f":"Import!G1386","v":0},null,{"$f":"Import!E1402","v":0},null,{"$f":"Import!G1402","v":0},null,0,null,0,null,null,null,null,null,null,null,null,null,{"$f":"Import!E1421","v":0},null,{"$f":"Import!G1421","v":0}]
[null,11,"Group Health",null,{"$f":"Import!E1387","v":0},null,{"$f":"Import!G1387","v":0},null,{"$f":"Import!E1403","v":0},null,{"$f":"Import!G1403","v":0},null,0,null,0,null,null,null,null,null,null,null,null,null,{"$f":"Import!E1422","v":0},null,{"$f":"Import!G1422","v":0}]
[null,12,"Stop Loss",null,{"$f":"Import!E1388","v":0},null,{"$f":"Import!G1388","v":0},null,{"$f":"Import!E1404","v":0},null,{"$f":"Import!G1404","v":0},null,0,null,0,null,null,null,null,null,null,null,null,null,{"$f":"Import!E1423","v":0},null,{"$f":"Import!G1423","v":0}]
[null,13,"Rider",null,{"$f":"Import!E1389","v":0},null,{"$f":"Import!G1389","v":0},null,{"$f":"Import!E1405","v":0},null,{"$f":"Import!G1405","v":0},null,0,null,0,null,null,null,null,null,null,null,null,null,{"$f":"Import!E1424","v":0},null,{"$f":"Import!G1424","v":0}]
[null,14,"Variable Annuities",null,{"$f":"Import!E1390","v":0},null,{"$f":"Import!G1390","v":0},null,{"$f":"Import!E1406","v":0},null,{"$f":"Import!G1406","v":0},null,0,null,0,null,null,null,null,null,null,null,null,null,{"$f":"Import!E1425","v":0},null,{"$f":"Import!G1425","v":0}]
[null,15,"Total ",null,{"$f":"SUM(E12:E30)","v":0},null,{"$f":"SUM(G12:G30)","v":0},null,{"$f":"SUM(I12:I30)","v":0},null,{"$f":"SUM(K12:K30)","v":0},null,{"$f":"SUM(M12:M30)","v":0},null,{"$f":"SUM(O12:O30)","v":0},null,{"$f":"SUM(Q12:Q30)","v":0},null,{"$f":"SUM(S12:S30)","v":0},null,{"$f":"SUM(U12:U30)","v":0},null,{"$f":"SUM(W12:W30)","v":0},null,{"$f":"SUM(Y12:Y30)","v":0},null,{"$f":"SUM(AA12:AA30)","v":0}]
[]
[null,null,null,null,null,null,null,null,null,null,null,null,{"$f":"IF(M34=\"TRUE\",HYPERLINK(\"#'Form 2SFS'!I43\",\"TRUE\"),HYPERLINK(\"#'Form 2SFS'!I43\",\"FALSE\"))","v":"TRUE"},null,{"$f":"IF(O34=\"TRUE\",HYPERLINK(\"#'Form 2SFS'!K43\",\"TRUE\"),HYPERLINK(\"#'Form 2SFS'!K43\",\"FALSE\"))","v":"TRUE"},null,null,null,null,null,null,null,null,null,{"$f":"IF(Y34=\"TRUE\",HYPERLINK(\"#'Form 2SFS'!I51\",\"TRUE\"),HYPERLINK(\"#'Form 2SFS'!I51\",\"FALSE\"))","v":"TRUE"},null,{"$f":"IF(AA34=\"TRUE\",HYPERLINK(\"#'Form 2SFS'!K51\",\"TRUE\"),HYPERLINK(\"#'Form 2SFS'!K51\",\"FALSE\"))","v":"TRUE"}]
[null,null,null,null,null,null,null,null,null,null,null,null,{"$f":"IF('Insurer Information'!$C$2=\"IFRS\",IF(ROUND((M31-'Form 2ASFS'!E83),0)=0,\"TRUE\",\"FALSE\"),IF(ROUND((M31-'Form 2SFS'!I43),0)=0,\"TRUE\",\"FALSE\"))","v":"TRUE"},null,{"$f":"IF('Insurer Information'!$C$2=\"IFRS\",IF(ROUND((O31-'Form 2ASFS'!G83),0)=0,\"TRUE\",\"FALSE\"),IF(ROUND((O31-'Form 2SFS'!K43),0)=0,\"TRUE\",\"FALSE\"))","v":"TRUE"},null,null,null,null,null,null,null,null,null,{"$f":"IF('Insurer Information'!$C$2=\"IFRS\",IF(ROUND(((Y31+Q31+U31)-'Form 2ASFS'!E85),0)=0,\"TRUE\",\"FALSE\"),IF(ROUND(((Y31+Q31+U31)-'Form 2SFS'!I51),0)=0,\"TRUE\",\"FALSE\"))","v":"TRUE"},null,{"$f":"IF('Insurer Information'!$C$2=\"IFRS\",IF(ROUND(((AA31+S31+W31)-'Form 2ASFS'!G85),0)=0,\"TRUE\",\"FALSE\"),IF(ROUND(((AA31+S31+W31)-'Form 2SFS'!K51),0)=0,\"TRUE\",\"FALSE\"))","v":"TRUE"}]
[null,null,"Difference",null,null,null,null,null,null,null,null,null,{"$f":"IF('Insurer Information'!$C$2=\"IFRS\",ROUND('Form 2ASFS'!E83-M31,0),ROUND('Form 2SFS'!I43-M31,0))","v":0},null,{"$f":"IF('Insurer Information'!$C$2=\"IFRS\",ROUND('Form 2ASFS'!G83-O31,0),ROUND('Form 2SFS'!K43-O31,0))","v":0},null,null,null,null,null,null,null,null,null,{"$f":"IF('Insurer Information'!$C$2=\"IFRS\",ROUND('Form 2ASFS'!E85-(Y31+Q31+U31),0),ROUND('Form 2SFS'!I51-(Y31+Q31+U31),0))","v":0},null,{"$f":"IF('Insurer Information'!$C$2=\"IFRS\",ROUND('Form 2ASFS'!G85-(AA31+S31+W31),0),ROUND('Form 2SFS'!K51-(AA31+S31+W31),0))","v":0}]
[]
[null,null,null,null,null,null,null,null,null,null,null,null,{"$f":"IF(M33=\"False\",\"Does not equal Form 2SFS Line 12(c)\",\"\")","v":""},null,{"$f":"IF(O33=\"False\",\"Does not equal Form 2SFS Line 12(c)\",\"\")","v":""},null,null,null,null,null,null,null,null,null,{"$f":"IF(Y33=\"False\",\"Does not equal Form 2SFS Line 14(d)\",\"\")","v":""},null,{"$f":"IF(AA33=\"False\",\"Does not equal Form 2SFS Line 14(d)\",\"\")","v":""}]

{"sheet":"Schedule IVB (EBS)","index":39,"n_rows":37,"n_cols":27,"rows_kept":37,"cut":false,"hidden":false,"merged":[[1,1,1,2],[5,24,5,26],[4,4,4,14],[4,16,4,26],[6,4,7,6],[6,8,7,10],[6,12,7,14],[6,16,7,18],[6,20,7,22],[6,24,7,26],[5,12,5,14]]}
[null,"SCHEDULE OF LONG-TERM BUSINESS PREMIUMS",null,null,null,null,null,null,null,null,null,null,null,null,null,null,null,null,null,null,null,null,null,null,null,null,{"$f":"HYPERLINK(\"#'Index'!A1\",\"Return to Index\")","v":"Return to Index"}]
[null,{"$f":"'Schedule II (EBS)'!C2","v":"Enter Company Name"}]
[null,"For the year ending",{"$f":" TEXT('Insurer Information'!C3,\"D MMMM YYYY\")","v":"31 December 2023"},null,null,null,null,null,null,null,null,null,null,null,null,null,null,null,null,null,null,null,null,null,null,null,"SCHEDULE IV(B) (EBS)"]
[null,{"$f":"\"Expressed in \" & IF(CONFIGURATION!$B$12>1,\" ['\"&MID(CONFIGURATION!$B$12,2,LEN(CONFIGURATION!$B$12))&\"s]\",\"\")","v":"Expressed in  ['000s]"},{"$f":"'Schedule II (EBS)'!D4","v":"United States Dollars"}]
[null,null,null,null,"GROSS PREMIUMS AND OTHER CONSIDERATIONS",null,null,null,null,null,null,null,null,null,null,null,"NET PREMIUMS AND OTHER CONSIDERATIONS"]
[null,null,null,null,null,null,null,null,null,null,null,null,"Form 2SFS, Line 12(c)",null,null,null,null,null,null,null,null,null,null,null,"Form 2SFS, Line 14(d)"]
[null,null,null,null,"Unrelated",null,null,null,"Related",null,null,null,"Total",null,null,null,"Adjustable / Benefit Period \n<= 2 Years",null,null,null,"Non-Adjustable / Benefit Period \n> 2 Years",null,null,null,"Total "]
[null,"Schedule "]
[null,"Line no. ",null,null,{"$f":"'Form 4EBS'!F6","v":"2023-12-31"},null,{"$f":"'Form 4EBS'!H6","v":"2022-12-31"},null,{"$f":"'Form 4EBS'!F6","v":"2023-12-31"},null,{"$f":"'Form 4EBS'!H6","v":"2022-12-31"},null,{"$f":"'Form 4EBS'!F6","v":"2023-12-31"},null,{"$f":"'Form 4EBS'!H6","v":"2022-12-31"},null,{"$f":"M9","v":"2023-12-31"},null,{"$f":"O9","v":"2022-12-31"},null,{"$f":"Q9","v":"2023-12-31"},null,{"$f":"S9","v":"2022-12-31"},null,{"$f":"'Form 4EBS'!F6","v":"2023-12-31"},null,{"$f":"'Form 4EBS'!H6","v":"2022-12-31"}]
[null,null,null,null,"('000)",null,"('000)",null,"('000)",null,"('000)",null,"('000)",null,"('000)",null,"('000)",null,"('000)",null,"('000)",null,"('000)",null,"('000)",null,"('000)"]
[]
[null,1,"Mortality ",null,{"$f":"Import!I1375","v":0},null,{"$f":"Import!K1375","v":0},null,{"$f":"Import!I1391","v":0},null,{"$f":"Import!K1391","v":0},null,{"$f":"E12+I12","v":0},null,{"$f":"G12+K12","v":0},null,null,null,null,null,null,null,null,null,{"$f":"Import!I1413","v":0},null,{"$f":"Import!K1413","v":0}]
[null,2,"Critical Illness",null,{"$f":"Import!I1376","v":0},null,{"$f":"Import!K1376","v":0},null,{"$f":"Import!I1392","v":0},null,{"$f":"Import!K1392","v":0},null,{"$f":"E13+I13","v":0},null,{"$f":"G13+K13","v":0},null,null,null,null,null,null,null,null,null,{"$f":"Import!I1414","v":0},null,{"$f":"Import!K1414","v":0}]
[null,3,"Longevity",null,{"$f":"Import!I1377","v":0},null,{"$f":"Import!K1377","v":0},null,{"$f":"Import!I1393","v":0},null,{"$f":"Import!K1393","v":0},null,{"$f":"E14+I14","v":0},null,{"$f":"G14+K14","v":0},null,null,null,null,null,null,null,null,null,{"$f":"Import!I1415","v":0},null,{"$f":"Import!K1415","v":0}]
[null,4,"Deferred Annuities",null,{"$f":"Import!I1378","v":0},null,{"$f":"Import!K1378","v":0},null,{"$f":"Import!I1394","v":0},null,{"$f":"Import!K1394","v":0},null,{"$f":"E15+I15","v":0},null,{"$f":"G15+K15","v":0},null,null,null,null,null,null,null,null,null,{"$f":"Import!I1416","v":0},null,{"$f":"Import!K1416","v":0}]
[null,5,"Disability Income: Active lives with premium guarantee of —"]
[null,null,"(i) Less than or equal to 1 year",null,{"$f":"Import!I1379","v":0},null,{"$f":"Import!K1379","v":0},null,{"$f":"Import!I1395","v":0},null,{"$f":"Import!K1395","v":0},null,{"$f":"E17+I17","v":0},null,{"$f":"G17+K17","v":0},null,{"$f":"Import!I1407","v":0},null,{"$f":"Import!K1407","v":0},null,{"$f":"Import!I1410","v":0},null,{"$f":"Import!K1410","v":0}]
[null,null,"(ii) More than 1 year but less than 5 years",null,{"$f":"Import!I1380","v":0},null,{"$f":"Import!K1380","v":0},null,{"$f":"Import!I1396","v":0},null,{"$f":"Import!K1396","v":0},null,{"$f":"E18+I18","v":0},null,0,null,{"$f":"Import!I1408","v":0},null,{"$f":"Import!K1408","v":0},null,{"$f":"Import!I1411","v":0},null,{"$f":"Import!K1411","v":0}]
[null,null,"(iii) Greater than 5 years",null,{"$f":"Import!I1381","v":0},null,{"$f":"Import!K1381","v":0},null,{"$f":"Import!I1397","v":0},null,{"$f":"Import!K1397","v":0},null,{"$f":"E19+I19","v":0},null,0,null,{"$f":"Import!I1409","v":0},null,{"$f":"Import!K1409","v":0},null,{"$f":"Import!I1412","v":0},null,{"$f":"Import!K1412","v":0}]
[null,6,"Disability Income: Actives lives for other ",null,{"$f":"Import!I1382","v":0},null,{"$f":"Import!K1382","v":0},null,{"$f":"Import!I1398","v":0},null,{"$f":"Import!K1398","v":0},null,{"$f":"E20+I20","v":0},null,0,null,null,null,null,null,null,null,null,null,{"$f":"Import!I1417","v":0},null,{"$f":"Import!K1417","v":0}]
[null,null,"accident and sickness"]
[null,7,"Disability Income: Claims in payment ",null,{"$f":"Import!I1383","v":0},null,{"$f":"Import!K1383","v":0},null,{"$f":"Import!I1399","v":0},null,{"$f":"Import!K1399","v":0},null,{"$f":"E22+I22","v":0},null,0,null,null,null,null,null,null,null,null,null,{"$f":"Import!I1418","v":0},null,{"$f":"Import!K1418","v":0}]
[null,8,"Disability Income: Claims in payment for other",null,{"$f":"Import!I1384","v":0},null,{"$f":"Import!K1384","v":0},null,{"$f":"Import!I1400","v":0},null,{"$f":"Import!K1400","v":0},null,{"$f":"E23+I23","v":0},null,0,null,null,null,null,null,null,null,null,null,{"$f":"Import!I1419","v":0},null,{"$f":"Import!K1419","v":0}]
[null,null,"accident and sickness"]
[null,9,"Group Life",null,{"$f":"Import!I1385","v":0},null,{"$f":"Import!K1385","v":0},null,{"$f":"Import!I1401","v":0},null,{"$f":"Import!K1401","v":0},null,{"$f":"E25+I25","v":0},null,0,null,null,null,null,null,null,null,null,null,{"$f":"Import!I1420","v":0},null,{"$f":"Import!K1420","v":0}]
[null,10,"Group Disability",null,{"$f":"Import!I1386","v":0},null,{"$f":"Import!K1386","v":0},null,{"$f":"Import!I1402","v":0},null,{"$f":"Import!K1402","v":0},null,0,null,0,null,null,null,null,null,null,null,null,null,{"$f":"Import!I1421","v":0},null,{"$f":"Import!K1421","v":0}]
[null,11,"Group Health",null,{"$f":"Import!I1387","v":0},null,{"$f":"Import!K1387","v":0},null,{"$f":"Import!I1403","v":0},null,{"$f":"Import!K1403","v":0},null,0,null,0,null,null,null,null,null,null,null,null,null,{"$f":"Import!I1422","v":0},null,{"$f":"Import!K1422","v":0}]
[null,12,"Stop Loss",null,{"$f":"Import!I1388","v":0},null,{"$f":"Import!K1388","v":0},null,{"$f":"Import!I1404","v":0},null,{"$f":"Import!K1404","v":0},null,0,null,0,null,null,null,null,null,null,null,null,null,{"$f":"Import!I1423","v":0},null,{"$f":"Import!K1423","v":0}]
[null,13,"Rider",null,{"$f":"Import!I1389","v":0},null,{"$f":"Import!K1389","v":0},null,{"$f":"Import!I1405","v":0},null,{"$f":"Import!K1405","v":0},null,0,null,0,null,null,null,null,null,null,null,null,null,{"$f":"Import!I1424","v":0},null,{"$f":"Import!K1424","v":0}]
[null,14,"Variable Annuities",null,{"$f":"Import!I1390","v":0},null,{"$f":"Import!K1390","v":0},null,{"$f":"Import!I1406","v":0},null,{"$f":"Import!K1406","v":0},null,0,null,0,null,null,null,null,null,null,null,null,null,{"$f":"Import!I1425","v":0},null,{"$f":"Import!K1425","v":0}]
[null,15,"Total ",null,{"$f":"SUM(E12:E30)","v":0},null,{"$f":"SUM(G12:G30)","v":0},null,{"$f":"SUM(I12:I30)","v":0},null,{"$f":"SUM(K12:K30)","v":0},null,{"$f":"SUM(M12:M30)","v":0},null,{"$f":"SUM(O12:O30)","v":0},null,{"$f":"SUM(Q12:Q30)","v":0},null,{"$f":"SUM(S12:S30)","v":0},null,{"$f":"SUM(U12:U30)","v":0},null,{"$f":"SUM(W12:W30)","v":0},null,{"$f":"SUM(Y12:Y30)","v":0},null,{"$f":"SUM(AA12:AA30)","v":0}]
[]
[null,null,null,null,null,null,null,null,null,null,null,null,{"$f":"IF(M34=\"TRUE\",HYPERLINK(\"#'Form 2SFS'!M43\",\"TRUE\"),HYPERLINK(\"#'Form 2SFS'!M43\",\"FALSE\"))","v":"TRUE"},null,{"$f":"IF(O34=\"TRUE\",HYPERLINK(\"#'Form 2SFS'!O43\",\"TRUE\"),HYPERLINK(\"#'Form 2SFS'!O43\",\"FALSE\"))","v":"TRUE"},null,null,null,null,null,null,null,null,null,{"$f":"IF(Y34=\"TRUE\",HYPERLINK(\"#'Form 2SFS'!M51\",\"TRUE\"),HYPERLINK(\"#'Form 2SFS'!M51\",\"FALSE\"))","v":"TRUE"},null,{"$f":"IF(AA34=\"TRUE\",HYPERLINK(\"#'Form 2SFS'!O51\",\"TRUE\"),HYPERLINK(\"#'Form 2SFS'!O51\",\"FALSE\"))","v":"TRUE"}]
[null,null,null,null,null,null,null,null,null,null,null,null,{"$f":"IF('Insurer Information'!$C$2=\"IFRS\",\nIF('Insurer Information'!$F$2=\"UNCONSOLIDATED BSCR MODEL\",IF(ROUND((M31-'Form 2ASFS'!M83),0)=0,\"TRUE\",\"FALSE\"),IF(ROUND((M31-'Form 2ASFS'!M83),0)=0,\"TRUE\",\"FALSE\")),\nIF('Insurer Information'!$F$2=\"UNCONSOLIDATED BSCR MODEL\",IF(ROUND((M31-'Form 2SFS'!I43),0)=0,\"TRUE\",\"FALSE\"),IF(ROUND((M31-'Form 2SFS'!M43),0)=0,\"TRUE\",\"FALSE\")))","v":"TRUE"},null,{"$f":"IF('Insurer Information'!$C$2=\"IFRS\",\nIF('Insurer Information'!$F$2=\"UNCONSOLIDATED BSCR MODEL\",IF(ROUND((O31-'Form 2ASFS'!O83),0)=0,\"TRUE\",\"FALSE\"),IF(ROUND((O31-'Form 2ASFS'!O83),0)=0,\"TRUE\",\"FALSE\")),\nIF('Insurer Information'!$F$2=\"UNCONSOLIDATED BSCR MODEL\",IF(ROUND((O31-'Form 2SFS'!K43),0)=0,\"TRUE\",\"FALSE\"),IF(ROUND((O31-'Form 2SFS'!O43),0)=0,\"TRUE\",\"FALSE\")))","v":"TRUE"},null,null,null,null,null,null,null,null,null,{"$f":"IF('Insurer Information'!$C$2=\"IFRS\",\nIF('Insurer Information'!$F$2=\"UNCONSOLIDATED BSCR MODEL\",IF(ROUND(((Y31+Q31+U31)-'Form 2ASFS'!M85),0)=0,\"TRUE\",\"FALSE\"),IF(ROUND(((Y31+Q31+U31)-'Form 2ASFS'!M85),0)=0,\"TRUE\",\"FALSE\")),\nIF('Insurer Information'!$F$2=\"UNCONSOLIDATED BSCR MODEL\",IF(ROUND(((Y31+Q31+U31)-'Form 2SFS'!I51),0)=0,\"TRUE\",\"FALSE\"),IF(ROUND(((Y31+Q31+U31)-'Form 2SFS'!M51),0)=0,\"TRUE\",\"FALSE\")))","v":"TRUE"},null,{"$f":"IF('Insurer Information'!$C$2=\"IFRS\",\nIF('Insurer Information'!$F$2=\"UNCONSOLIDATED BSCR MODEL\",IF(ROUND(((AA31+S31+W31)-'Form 2ASFS'!O85),0)=0,\"TRUE\",\"FALSE\"),IF(ROUND(((AA31+S31+W31)-'Form 2ASFS'!O85),0)=0,\"TRUE\",\"FALSE\")),\nIF('Insurer Information'!$F$2=\"UNCONSOLIDATED BSCR MODEL\",IF(ROUND(((AA31+S31+W31)-'Form 2SFS'!K51),0)=0,\"TRUE\",\"FALSE\"),IF(ROUND(((AA31+S31+W31)-'Form 2SFS'!O51),0)=0,\"TRUE\",\"FALSE\")))","v":"TRUE"}]
[null,null,"Difference",null,null,null,null,null,null,null,null,null,{"$f":"IF('Insurer Information'!$C$2=\"IFRS\",\nROUND('Form 2ASFS'!M83-M31,0),\nIF('Insurer Information'!$F$2=\"UNCONSOLIDATED BSCR MODEL\",ROUND(('Form 2SFS'!I43-M31),0),ROUND('Form 2SFS'!M43-M31,0)))","v":0},null,{"$f":"IF('Insurer Information'!$C$2=\"IFRS\",\nROUND('Form 2ASFS'!O83-O31,0),\nIF('Insurer Information'!$F$2=\"UNCONSOLIDATED BSCR MODEL\",ROUND(('Form 2SFS'!K43-O31),0),ROUND('Form 2SFS'!O43-O31,0)))","v":0},null,null,null,null,null,null,null,null,null,{"$f":"IF('Insurer Information'!$C$2=\"IFRS\",\nIF('Insurer Information'!$F$2=\"UNCONSOLIDATED BSCR MODEL\",ROUND(('Form 2ASFS'!M85-Y31-Q31-U31),0),ROUND('Form 2ASFS'!M85-Y31-Q31-U31,0)),\nIF('Insurer Information'!$F$2=\"UNCONSOLIDATED BSCR MODEL\",ROUND(('Form 2SFS'!I51-Y31-Q31-U31),0),ROUND('Form 2SFS'!M51-Y31-Q31-U31,0)))","v":0},null,{"$f":"IF('Insurer Information'!$C$2=\"IFRS\",\nIF('Insurer Information'!$F$2=\"UNCONSOLIDATED BSCR MODEL\",ROUND(('Form 2ASFS'!O85-AA31-S31-W31),0),ROUND('Form 2ASFS'!O85-AA31-S31-W31,0)),\nIF('Insurer Information'!$F$2=\"UNCONSOLIDATED BSCR MODEL\",ROUND(('Form 2SFS'!K51-AA31-S31-W31),0),ROUND('Form 2SFS'!O51-AA31-S31-W31,0)))","v":0}]
[]
[null,null,null,null,null,null,null,null,null,null,null,null,{"$f":"IF(M33=\"False\",\"Does not equal Form 2SFS Line 12(c)\",\"\")","v":""},null,{"$f":"IF(O33=\"False\",\"Does not equal Form 2SFS Line 12(c)\",\"\")","v":""},null,null,null,null,null,null,null,null,null,{"$f":"IF(Y33=\"False\",\"Does not equal Form 2SFS Line 14(d)\",\"\")","v":""},null,{"$f":"IF(AA33=\"False\",\"Does not equal Form 2SFS Line 14(d)\",\"\")","v":""}]

{"sheet":"Schedule IVF","index":40,"n_rows":90,"n_cols":21,"rows_kept":90,"cut":false,"hidden":false,"merged":[[1,1,1,2],[5,3,5,4],[7,1,7,19],[9,4,9,11],[9,12,9,19]]}
[null,"SCHEDULE OF EXPOSURE OF RISK",null,null,null,null,null,null,null,null,null,null,null,null,null,null,null,null,null,null,{"$f":"HYPERLINK(\"#'Index'!A1\",\"Return to Index\")","v":"Return to Index"}]
[null,{"$f":"'Insurer Information'!C7","v":"Enter Company Name"}]
[null,{"$f":"\"For the year ending \"& TEXT('Insurer Information'!C3,\"D MMMM YYYY\")","v":"For the year ending 31 December 2023"}]
[null,{"$f":"\"expressed in\"& IF(CONFIGURATION!$B$12>1,\" ['\"&MID(CONFIGURATION!$B$12,2,LEN(CONFIGURATION!$B$12))&\"s]\",\"\")&\" \"&'Form 4EBS'!C4","v":"expressed in ['000s] United States Dollars"},null,null,null,null,null,null,null,null,null,null,null,null,null,null,null,null,null,null,"Schedule IVF"]
[]
[null,"1. Jurisdiction of Ultimate Parent",null,{"$f":"Import!I38681","v":"Select"},{"$f":"Import!J38681","v":0}]
[]
[null,"2. Financial Activity for the reporting period. Note location is to be based on the location of the risk being underwritten. In the instance that the location of risk being underwriting is not available, insurers can provide the location based on the location of the cedant."]
[]
[null,null,null,"ALL","General Business",null,null,null,null,null,null,null,"Long-Term Business"]
[null,null,null,"Number of Subsidiaries","GPW - Property Catastrophe","GPW - Other Lines other than Property Cat","Reinsurance - Retroceded to Bermuda Cedants","Reinsurance - Retroceded to Other Cedants","Net Premium Written","Gross Incurred Losses - Property Catastrophe","Gross Incurred Losses - Other Lines Other than Property","Gross Reserves at Year-End","Gross Reserve - Mortality Risk","Gross Reserve - Longevity Risk","Gross Reserve - Deferred Accumulation Annuities Business Risk","Gross Reserve - Disability","Gross Reserve - Group","Gross Reserve - Variable Annuities","Gross Reserve - Other Products","Claims and Benefits Paid"]
[null,null,null,null,{"$f":"CONFIGURATION!$D$12","v":" ('000s)"},{"$f":"CONFIGURATION!$D$12","v":" ('000s)"},{"$f":"CONFIGURATION!$D$12","v":" ('000s)"},{"$f":"CONFIGURATION!$D$12","v":" ('000s)"},{"$f":"CONFIGURATION!$D$12","v":" ('000s)"},{"$f":"CONFIGURATION!$D$12","v":" ('000s)"},{"$f":"CONFIGURATION!$D$12","v":" ('000s)"},{"$f":"CONFIGURATION!$D$12","v":" ('000s)"},{"$f":"CONFIGURATION!$D$12","v":" ('000s)"},{"$f":"CONFIGURATION!$D$12","v":" ('000s)"},{"$f":"CONFIGURATION!$D$12","v":" ('000s)"},{"$f":"CONFIGURATION!$D$12","v":" ('000s)"},{"$f":"CONFIGURATION!$D$12","v":" ('000s)"},{"$f":"CONFIGURATION!$D$12","v":" ('000s)"},{"$f":"CONFIGURATION!$D$12","v":" ('000s)"},{"$f":"CONFIGURATION!$D$12","v":" ('000s)"}]
[null,1,"Austria",{"$f":"Import!I38682","v":0},null,null,null,null,{"$f":"E13+F13-G13-H13","v":0},null,null,null,{"$f":"Import!I38721","v":0},{"$f":"Import!I38760","v":0},{"$f":"Import!I38799","v":0},{"$f":"Import!I38838","v":0},{"$f":"Import!I38877","v":0},{"$f":"Import!I38916","v":0},{"$f":"Import!I38955","v":0},{"$f":"Import!I38994","v":0}]
[null,2,"Belgium",{"$f":"Import!I38683","v":0},null,null,null,null,{"$f":"E14+F14-G14-H14","v":0},null,null,null,{"$f":"Import!I38722","v":0},{"$f":"Import!I38761","v":0},{"$f":"Import!I38800","v":0},{"$f":"Import!I38839","v":0},{"$f":"Import!I38878","v":0},{"$f":"Import!I38917","v":0},{"$f":"Import!I38956","v":0},{"$f":"Import!I38995","v":0}]
[null,3,"Bulgaria",{"$f":"Import!I38684","v":0},null,null,null,null,0,null,null,null,{"$f":"Import!I38723","v":0},{"$f":"Import!I38762","v":0},{"$f":"Import!I38801","v":0},{"$f":"Import!I38840","v":0},{"$f":"Import!I38879","v":0},{"$f":"Import!I38918","v":0},{"$f":"Import!I38957","v":0},{"$f":"Import!I38996","v":0}]
[null,4,"Croatia",{"$f":"Import!I38685","v":0},null,null,null,null,0,null,null,null,{"$f":"Import!I38724","v":0},{"$f":"Import!I38763","v":0},{"$f":"Import!I38802","v":0},{"$f":"Import!I38841","v":0},{"$f":"Import!I38880","v":0},{"$f":"Import!I38919","v":0},{"$f":"Import!I38958","v":0},{"$f":"Import!I38997","v":0}]
[null,5,"Cyprus",{"$f":"Import!I38686","v":0},null,null,null,null,0,null,null,null,{"$f":"Import!I38725","v":0},{"$f":"Import!I38764","v":0},{"$f":"Import!I38803","v":0},{"$f":"Import!I38842","v":0},{"$f":"Import!I38881","v":0},{"$f":"Import!I38920","v":0},{"$f":"Import!I38959","v":0},{"$f":"Import!I38998","v":0}]
[null,6,"Czechia",{"$f":"Import!I38687","v":0},null,null,null,null,0,null,null,null,{"$f":"Import!I38726","v":0},{"$f":"Import!I38765","v":0},{"$f":"Import!I38804","v":0},{"$f":"Import!I38843","v":0},{"$f":"Import!I38882","v":0},{"$f":"Import!I38921","v":0},{"$f":"Import!I38960","v":0},{"$f":"Import!I38999","v":0}]
[null,7,"Denmark",{"$f":"Import!I38688","v":0},null,null,null,null,0,null,null,null,{"$f":"Import!I38727","v":0},{"$f":"Import!I38766","v":0},{"$f":"Import!I38805","v":0},{"$f":"Import!I38844","v":0},{"$f":"Import!I38883","v":0},{"$f":"Import!I38922","v":0},{"$f":"Import!I38961","v":0},{"$f":"Import!I39000","v":0}]
[null,8,"Estonia",{"$f":"Import!I38689","v":0},null,null,null,null,0,null,null,null,{"$f":"Import!I38728","v":0},{"$f":"Import!I38767","v":0},{"$f":"Import!I38806","v":0},{"$f":"Import!I38845","v":0},{"$f":"Import!I38884","v":0},{"$f":"Import!I38923","v":0},{"$f":"Import!I38962","v":0},{"$f":"Import!I39001","v":0}]
[null,9,"Finland",{"$f":"Import!I38690","v":0},null,null,null,null,0,null,null,null,{"$f":"Import!I38729","v":0},{"$f":"Import!I38768","v":0},{"$f":"Import!I38807","v":0},{"$f":"Import!I38846","v":0},{"$f":"Import!I38885","v":0},{"$f":"Import!I38924","v":0},{"$f":"Import!I38963","v":0},{"$f":"Import!I39002","v":0}]
[null,10,"France",{"$f":"Import!I38691","v":0},null,null,null,null,0,null,null,null,{"$f":"Import!I38730","v":0},{"$f":"Import!I38769","v":0},{"$f":"Import!I38808","v":0},{"$f":"Import!I38847","v":0},{"$f":"Import!I38886","v":0},{"$f":"Import!I38925","v":0},{"$f":"Import!I38964","v":0},{"$f":"Import!I39003","v":0}]
[null,11,"Germany",{"$f":"Import!I38692","v":0},null,null,null,null,0,null,null,null,{"$f":"Import!I38731","v":0},{"$f":"Import!I38770","v":0},{"$f":"Import!I38809","v":0},{"$f":"Import!I38848","v":0},{"$f":"Import!I38887","v":0},{"$f":"Import!I38926","v":0},{"$f":"Import!I38965","v":0},{"$f":"Import!I39004","v":0}]
[null,12,"Greece",{"$f":"Import!I38693","v":0},null,null,null,null,0,null,null,null,{"$f":"Import!I38732","v":0},{"$f":"Import!I38771","v":0},{"$f":"Import!I38810","v":0},{"$f":"Import!I38849","v":0},{"$f":"Import!I38888","v":0},{"$f":"Import!I38927","v":0},{"$f":"Import!I38966","v":0},{"$f":"Import!I39005","v":0}]
[null,13,"Hungary",{"$f":"Import!I38694","v":0},null,null,null,null,0,null,null,null,{"$f":"Import!I38733","v":0},{"$f":"Import!I38772","v":0},{"$f":"Import!I38811","v":0},{"$f":"Import!I38850","v":0},{"$f":"Import!I38889","v":0},{"$f":"Import!I38928","v":0},{"$f":"Import!I38967","v":0},{"$f":"Import!I39006","v":0}]
[null,14,"Ireland",{"$f":"Import!I38695","v":0},null,null,null,null,0,null,null,null,{"$f":"Import!I38734","v":0},{"$f":"Import!I38773","v":0},{"$f":"Import!I38812","v":0},{"$f":"Import!I38851","v":0},{"$f":"Import!I38890","v":0},{"$f":"Import!I38929","v":0},{"$f":"Import!I38968","v":0},{"$f":"Import!I39007","v":0}]
[null,15,"Italy",{"$f":"Import!I38696","v":0},null,null,null,null,0,null,null,null,{"$f":"Import!I38735","v":0},{"$f":"Import!I38774","v":0},{"$f":"Import!I38813","v":0},{"$f":"Import!I38852","v":0},{"$f":"Import!I38891","v":0},{"$f":"Import!I38930","v":0},{"$f":"Import!I38969","v":0},{"$f":"Import!I39008","v":0}]
[null,16,"Latvia",{"$f":"Import!I38697","v":0},null,null,null,null,0,null,null,null,{"$f":"Import!I38736","v":0},{"$f":"Import!I38775","v":0},{"$f":"Import!I38814","v":0},{"$f":"Import!I38853","v":0},{"$f":"Import!I38892","v":0},{"$f":"Import!I38931","v":0},{"$f":"Import!I38970","v":0},{"$f":"Import!I39009","v":0}]
[null,17,"Lithuania",{"$f":"Import!I38698","v":0},null,null,null,null,0,null,null,null,{"$f":"Import!I38737","v":0},{"$f":"Import!I38776","v":0},{"$f":"Import!I38815","v":0},{"$f":"Import!I38854","v":0},{"$f":"Import!I38893","v":0},{"$f":"Import!I38932","v":0},{"$f":"Import!I38971","v":0},{"$f":"Import!I39010","v":0}]
[null,18,"Luxembourg",{"$f":"Import!I38699","v":0},null,null,null,null,0,null,null,null,{"$f":"Import!I38738","v":0},{"$f":"Import!I38777","v":0},{"$f":"Import!I38816","v":0},{"$f":"Import!I38855","v":0},{"$f":"Import!I38894","v":0},{"$f":"Import!I38933","v":0},{"$f":"Import!I38972","v":0},{"$f":"Import!I39011","v":0}]
[null,19,"Malta",{"$f":"Import!I38700","v":0},null,null,null,null,0,null,null,null,{"$f":"Import!I38739","v":0},{"$f":"Import!I38778","v":0},{"$f":"Import!I38817","v":0},{"$f":"Import!I38856","v":0},{"$f":"Import!I38895","v":0},{"$f":"Import!I38934","v":0},{"$f":"Import!I38973","v":0},{"$f":"Import!I39012","v":0}]
[null,20,"Netherlands",{"$f":"Import!I38701","v":0},null,null,null,null,0,null,null,null,{"$f":"Import!I38740","v":0},{"$f":"Import!I38779","v":0},{"$f":"Import!I38818","v":0},{"$f":"Import!I38857","v":0},{"$f":"Import!I38896","v":0},{"$f":"Import!I38935","v":0},{"$f":"Import!I38974","v":0},{"$f":"Import!I39013","v":0}]
[null,21,"Poland",{"$f":"Import!I38702","v":0},null,null,null,null,0,null,null,null,{"$f":"Import!I38741","v":0},{"$f":"Import!I38780","v":0},{"$f":"Import!I38819","v":0},{"$f":"Import!I38858","v":0},{"$f":"Import!I38897","v":0},{"$f":"Import!I38936","v":0},{"$f":"Import!I38975","v":0},{"$f":"Import!I39014","v":0}]
[null,22,"Portugal",{"$f":"Import!I38703","v":0},null,null,null,null,0,null,null,null,{"$f":"Import!I38742","v":0},{"$f":"Import!I38781","v":0},{"$f":"Import!I38820","v":0},{"$f":"Import!I38859","v":0},{"$f":"Import!I38898","v":0},{"$f":"Import!I38937","v":0},{"$f":"Import!I38976","v":0},{"$f":"Import!I39015","v":0}]
[null,23,"Romania",{"$f":"Import!I38704","v":0},null,null,null,null,0,null,null,null,{"$f":"Import!I38743","v":0},{"$f":"Import!I38782","v":0},{"$f":"Import!I38821","v":0},{"$f":"Import!I38860","v":0},{"$f":"Import!I38899","v":0},{"$f":"Import!I38938","v":0},{"$f":"Import!I38977","v":0},{"$f":"Import!I39016","v":0}]
[null,24,"Slovakia",{"$f":"Import!I38705","v":0},null,null,null,null,0,null,null,null,{"$f":"Import!I38744","v":0},{"$f":"Import!I38783","v":0},{"$f":"Import!I38822","v":0},{"$f":"Import!I38861","v":0},{"$f":"Import!I38900","v":0},{"$f":"Import!I38939","v":0},{"$f":"Import!I38978","v":0},{"$f":"Import!I39017","v":0}]
[null,25,"Slovenia",{"$f":"Import!I38706","v":0},null,null,null,null,0,null,null,null,{"$f":"Import!I38745","v":0},{"$f":"Import!I38784","v":0},{"$f":"Import!I38823","v":0},{"$f":"Import!I38862","v":0},{"$f":"Import!I38901","v":0},{"$f":"Import!I38940","v":0},{"$f":"Import!I38979","v":0},{"$f":"Import!I39018","v":0}]
[null,26,"Spain",{"$f":"Import!I38707","v":0},null,null,null,null,0,null,null,null,{"$f":"Import!I38746","v":0},{"$f":"Import!I38785","v":0},{"$f":"Import!I38824","v":0},{"$f":"Import!I38863","v":0},{"$f":"Import!I38902","v":0},{"$f":"Import!I38941","v":0},{"$f":"Import!I38980","v":0},{"$f":"Import!I39019","v":0}]
[null,27,"Sweden",{"$f":"Import!I38708","v":0},null,null,null,null,0,null,null,null,{"$f":"Import!I38747","v":0},{"$f":"Import!I38786","v":0},{"$f":"Import!I38825","v":0},{"$f":"Import!I38864","v":0},{"$f":"Import!I38903","v":0},{"$f":"Import!I38942","v":0},{"$f":"Import!I38981","v":0},{"$f":"Import!I39020","v":0}]
[null,28,"Sub Total European Union",{"$f":"SUM(D13:D39)","v":0},0,0,0,0,0,0,0,0,0,0,0,0,0,0,0,0]
[]
[null,{"$f":"B40+1","v":29},"Bermuda",{"$f":"Import!I38710","v":0},null,null,null,null,{"$f":"E42+F42-G42-H42","v":0},null,null,null,{"$f":"Import!I38749","v":0},{"$f":"Import!I38788","v":0},{"$f":"Import!I38827","v":0},{"$f":"Import!I38866","v":0},{"$f":"Import!I38905","v":0},{"$f":"Import!I38944","v":0},{"$f":"Import!I38983","v":0},{"$f":"Import!I39022","v":0}]
[null,30,"United Kingdom",{"$f":"Import!I38711","v":0},null,null,null,null,0,null,null,null,{"$f":"Import!I38750","v":0},{"$f":"Import!I38789","v":0},{"$f":"Import!I38828","v":0},{"$f":"Import!I38867","v":0},{"$f":"Import!I38906","v":0},{"$f":"Import!I38945","v":0},{"$f":"Import!I38984","v":0},{"$f":"Import!I39023","v":0}]
[null,31,"Switzerland",{"$f":"Import!I38712","v":0},null,null,null,null,0,null,null,null,{"$f":"Import!I38751","v":0},{"$f":"Import!I38790","v":0},{"$f":"Import!I38829","v":0},{"$f":"Import!I38868","v":0},{"$f":"Import!I38907","v":0},{"$f":"Import!I38946","v":0},{"$f":"Import!I38985","v":0},{"$f":"Import!I39024","v":0}]
[null,32,"United States of America",{"$f":"Import!I38713","v":0},null,null,null,null,0,null,null,null,{"$f":"Import!I38752","v":0},{"$f":"Import!I38791","v":0},{"$f":"Import!I38830","v":0},{"$f":"Import!I38869","v":0},{"$f":"Import!I38908","v":0},{"$f":"Import!I38947","v":0},{"$f":"Import!I38986","v":0},{"$f":"Import!I39025","v":0}]
[null,33,"Canada",{"$f":"Import!I38714","v":0},null,null,null,null,0,null,null,null,{"$f":"Import!I38753","v":0},{"$f":"Import!I38792","v":0},{"$f":"Import!I38831","v":0},{"$f":"Import!I38870","v":0},{"$f":"Import!I38909","v":0},{"$f":"Import!I38948","v":0},{"$f":"Import!I38987","v":0},{"$f":"Import!I39026","v":0}]
[null,34,"China",{"$f":"Import!I38715","v":0},null,null,null,null,0,null,null,null,{"$f":"Import!I38754","v":0},{"$f":"Import!I38793","v":0},{"$f":"Import!I38832","v":0},{"$f":"Import!I38871","v":0},{"$f":"Import!I38910","v":0},{"$f":"Import!I38949","v":0},{"$f":"Import!I38988","v":0},{"$f":"Import!I39027","v":0}]
[null,35,"Japan",{"$f":"Import!I38716","v":0},null,null,null,null,0,null,null,null,{"$f":"Import!I38755","v":0},{"$f":"Import!I38794","v":0},{"$f":"Import!I38833","v":0},{"$f":"Import!I38872","v":0},{"$f":"Import!I38911","v":0},{"$f":"Import!I38950","v":0},{"$f":"Import!I38989","v":0},{"$f":"Import!I39028","v":0}]
[null,36,"Hong Kong",{"$f":"Import!I38717","v":0},null,null,null,null,0,null,null,null,{"$f":"Import!I38756","v":0},{"$f":"Import!I38795","v":0},{"$f":"Import!I38834","v":0},{"$f":"Import!I38873","v":0},{"$f":"Import!I38912","v":0},{"$f":"Import!I38951","v":0},{"$f":"Import!I38990","v":0},{"$f":"Import!I39029","v":0}]
[null,37,"Australia",{"$f":"Import!I38718","v":0},null,null,null,null,0,null,null,null,{"$f":"Import!I38757","v":0},{"$f":"Import!I38796","v":0},{"$f":"Import!I38835","v":0},{"$f":"Import!I38874","v":0},{"$f":"Import!I38913","v":0},{"$f":"Import!I38952","v":0},{"$f":"Import!I38991","v":0},{"$f":"Import!I39030","v":0}]
[null,38,"All Other Locations",{"$f":"Import!I38719","v":0},null,null,null,null,0,null,null,null,{"$f":"Import!I38758","v":0},{"$f":"Import!I38797","v":0},{"$f":"Import!I38836","v":0},{"$f":"Import!I38875","v":0},{"$f":"Import!I38914","v":0},{"$f":"Import!I38953","v":0},{"$f":"Import!I38992","v":0},{"$f":"Import!I39031","v":0}]
[null,39,"Total",{"$f":"D40+SUM(D42:D51)","v":0},0,0,0,0,0,0,0,0,0,0,0,0,0,0,0,0]
[null,null,null,null,null,null,null,null,null,null,null,null,null,null,null,null,null,null,{"$f":"IF(S54=\"TRUE\",HYPERLINK(\"#'Form 1SFS'!F147:M147\",\"TRUE\"),HYPERLINK(\"#'Form 1SFS'!F147:M147\",\"FALSE\"))","v":"TRUE"},{"$f":"IF(T54=\"TRUE\",HYPERLINK(\"#'Form 2SFS'!E75:M75\",\"TRUE\"),HYPERLINK(\"#'Form 2SFS'!E75:M75\",\"FALSE\"))","v":"TRUE"}]
[null,null,null,null,null,null,null,null,null,null,null,null,null,null,null,null,null,null,{"$f":"IF('Insurer Information'!$C$2=\"IFRS\",\"TRUE\",IF('Form 1SFS'!$K147=0,IF(ROUND(((SUM(M52:S52))-'Form 1SFS'!IH47),0)=0,\"TRUE\",\"FALSE\"),IF(ROUND(((SUM(M52:S52))-'Form 1SFS'!$K147),0)=0,\"TRUE\",\"FALSE\")))","v":"TRUE"},{"$f":"IF('Insurer Information'!$C$2=\"IFRS\",\"TRUE\",IF('Form 2SFS'!$M75=0,IF(ROUND((T52-'Form 2SFS'!I75),0)=0,\"TRUE\",\"FALSE\"),IF(ROUND((T52-'Form 2SFS'!$M75),0)=0,\"TRUE\",\"FALSE\")))","v":"TRUE"}]
[null,null,null,null,null,null,null,null,null,null,null,null,null,null,null,null,null,null,{"$f":"IF('Insurer Information'!$C$2=\"IFRS\",\"N/A\",IF('Form 1SFS'!$K147=0,ROUND('Form 1SFS'!H147-(SUM(M52:S52)),0),ROUND('Form 1SFS'!$K147-(SUM(M52:S52)),0)))","v":0},{"$f":"IF('Insurer Information'!$C$2=\"IFRS\",\"N/A\",IF('Form 2SFS'!$M75=0,ROUND('Form 2SFS'!I75-T52,0),ROUND('Form 2SFS'!$M75-T52,0)))","v":0}]
[]
[]
[null,null,"Select"]
[null,null,"Bermuda"]
[null,null,"United Kingdom"]
[null,null,"Switzerland"]
[null,null,"United States of America"]
[null,null,"Austria"]
[null,null,"Belgium"]
[null,null,"Bulgaria"]
[null,null,"Croatia"]
[null,null,"Cyprus"]
[null,null,"Czechia"]
[null,null,"Denmark"]
[null,null,"Estonia"]
[null,null,"Finland"]
[null,null,"France"]
[null,null,"Germany"]
[null,null,"Greece"]
[null,null,"Hungary"]
[null,null,"Ireland"]
[null,null,"Italy"]
[null,null,"Latvia"]
[null,null,"Lithuania"]
[null,null,"Luxembourg"]
[null,null,"Malta"]
[null,null,"Netherlands"]
[null,null,"Poland"]
[null,null,"Portugal"]
[null,null,"Romania"]
[null,null,"Slovakia"]
[null,null,"Slovenia"]
[null,null,"Spain"]
[null,null,"Sweden"]
[null,null,"All Other Locations"]

{"sheet":"Schedule V","index":41,"n_rows":48,"n_cols":9,"rows_kept":48,"cut":false,"hidden":false,"merged":[[4,7,4,8],[19,7,19,8],[29,5,29,6],[33,5,33,6],[28,5,28,6],[21,5,21,6],[6,7,6,8],[8,7,8,8],[10,7,10,8],[12,7,12,8],[14,7,14,8],[14,2,14,5],[15,2,15,5],[15,7,15,8],[47,7,47,8],[31,7,31,8],[35,7,35,8],[43,7,43,8],[38,7,38,8],[39,7,39,8],[40,7,40,8],[41,7,41,8],[45,7,45,8],[45,2,45,4],[47,2,47,4],[2,3,3,5],[39,2,39,4],[38,2,38,4],[37,2,37,4],[40,2,40,4],[41,2,41,4],[10,2,10,4],[12,2,12,4],[33,2,33,4],[29,2,29,4],[43,2,43,4],[25,2,26,5],[27,5,27,6]]}
[null,"SCHEDULE OF RISK MANAGEMENT",null,null,null,null,null,null,{"$f":"HYPERLINK(\"#'Index'!A1\",\"Return to Index\")","v":"Return to Index"}]
[null,{"$f":"'Insurer Information'!C7","v":"Enter Company Name"}]
[null,"For the year ending",{"$f":" TEXT('Insurer Information'!C3,\"D MMMM YYYY\")","v":"31 December 2023"},"Note if an insurer does not have any entities to consolidate, enter EBS Valuation information only \n(This cell is editable for deletion)",null,null,null,null,"SCHEDULE V"]
[null,{"$f":"\"expressed in\"& IF(CONFIGURATION!$B$12>1,\" ['\"&MID(CONFIGURATION!$B$12,2,LEN(CONFIGURATION!$B$12))&\"s]\",\"\")","v":"expressed in ['000s]"},{"$f":"'Form 4EBS'!C4","v":"United States Dollars"}]
[null,null,null,null,null,null,null,"EBS Valuation"]
[]
[null,"(a)","Governance and group structure",null,null,null,null,{"$f":"HYPERLINK(\"#'Schedule V(a)'!b1\",\"Refer to Schedule V(a)\")","v":"Refer to Schedule V(a)"}]
[]
[null,"(b)","Intra-group transactions that the insurer is a party to and the insurer's risk concentrations",null,null,null,null,{"$f":"HYPERLINK(\"#'Schedule V(c)'!b1\",\"Refer to Schedule V(c)\")","v":"Refer to Schedule V(c)"}]
[]
[null,"(d)","Effective duration of assets",null,null,null,null,{"$f":"Import!M1427","v":0}]
[]
[null,"(e)","Effective duration of liabilities",null,null,null,null,{"$f":"Import!M1428","v":0}]
[]
[null,"(f)","Weighted average of the difference in the asset duration and liability duration with Management Action",null,null,null,null,{"$f":"Import!I1429","v":0}]
[null,null,"Weighted average of the difference in the asset duration and liability duration without Management Action",null,null,null,null,{"$f":"Import!I1430","v":0}]
[null,null,null,null,null,null,null,"Doc Name","Page Number"]
[null,"(g)","Description of the effective duration of assets and liabilities calculations and key assumptions",null,null,{"$f":"HYPERLINK(\"#'Attachments'!G95\",\"Attach file\")","v":"Attach file"}]
[]
[null,{"$f":"IF('Insurer Information'!$F$9=\"Class C\",\"(g)\",\"(h)\")","v":"(g)"},"Reserves with known duration as a percentage of total reserves",null,null,null,null,{"$f":"Import!I1431","v":0}]
[null,null,null,null,null,null,null,"Doc Name","Page Number"]
[null,{"$f":"IF('Insurer Information'!$F$9=\"Class C\",\"(h)\",\"(i)\")","v":"(h)"},"Mutual fund disclosures",null,null,{"$f":"HYPERLINK(\"#'Attachments'!G125\",\"Attach file\")","v":"Attach file"}]
[]
[null,{"$f":"IF('Insurer Information'!$F$9=\"Class C\",\"(i)\",\"(j)\")","v":"(i)"},"Summary of projected performance —",null,null,null,null,"Insurer","Group"]
[null,null,"(i) the insurer’s latest estimate of new business premiums written",null,null,null,null,{"$f":"Import!I1432","v":0}]
[null,null,"(ii) The estimated net income or loss for the insurer or on a group basis \nIf Group basis is provided, disclose the estimated percentage of the insurer’s contribution relative to the group;",null,null,null,null,{"$f":"Import!I1434","v":0},{"$f":"Import!M1433","v":0}]
[null,null,null,null,null,null,null,null,{"$f":"Import!I1433","v":0}]
[null,null,"(iii) A qualitative description of the insurer's business and underwriting strategy ",null,null,null,null,"Doc Name","Page Number"]
[null,null,null,null,null,{"$f":"HYPERLINK(\"#'Attachments'!G135\",\"Attach file\")","v":"Attach file"}]
[null,"(k)","Summary of product features and risks",null,null,{"$f":"HYPERLINK(\"#'Attachments'!G145\",\"Attach file\")","v":"Attach file"}]
[]
[null,{"$f":"IF('Insurer Information'!$F$9=\"Class C\",\"(j)\",\"(l)\")","v":"(j)"},"Financial impact and description of stress and scenario tests",null,null,null,null,{"$f":"HYPERLINK(\"#'Schedule V(e)'!b1\",\"Refer to Schedule V(e)\")","v":"Refer to Schedule V(e)"}]
[null,null,null,null,null,null,null,"Doc Name","Page Number"]
[null,"(m)","Investments and derivatives strategies and policy",null,null,{"$f":"HYPERLINK(\"#'Attachments'!G105\",\"Attach file\")","v":"Attach file"}]
[]
[null,{"$f":"IF('Insurer Information'!$F$9=\"Class C\",\"(k)\",\"(n)\")","v":"(k)"},"Modified co-insurance arrangements",null,null,null,null,{"$f":"HYPERLINK(\"#'Schedule V(f)'!b1\",\"Refer to Schedule V(f)\")","v":"Refer to Schedule V(f)"}]
[]
[null,{"$f":"IF('Insurer Information'!$F$9=\"Class C\",\"(l)\",\"(o)\")","v":"(l)"},"Deferred accumulation annuities disclosure"]
[null,null,"(a) Total reserves for deferred accumulation annuities",null,null,null,null,{"$f":"Import!I1435","v":0}]
[null,null,"(b) Total reserves for deferred accumulation annuities with contractual guaranteed annuitisation rates",null,null,null,null,{"$f":"Import!I1436","v":0}]
[null,null,"(c) Total reserves for deferred accumulation annuities annuitised in the past year at contractual guaranteed rates (prior to annuitisation)",null,null,null,null,{"$f":"Import!I1437","v":0}]
[null,null,"(d) Total reserves for deferred accumulation annuities annuitised in the past year at contractual guaranteed rates (post to annuitisation)",null,null,null,null,{"$f":"Import!I1438","v":0}]
[]
[null,{"$f":"IF('Insurer Information'!$F$9=\"Class C\",\"(m)\",\"(p)\")","v":"(m)"},"Reconciliation from Form 1SFS to Form 4EBS",null,null,null,null,{"$f":"HYPERLINK(\"#'Schedule V(g)'!b1\",\"Refer to Schedule V(g)\")","v":"Refer to Schedule V(g)"}]
[]
[null,{"$f":"IF('Insurer Information'!$F$9=\"Class C\",\"(q)\",\"(t)\")","v":"(q)"},"Details of deposit assets and liabilities",null,null,null,null,{"$f":"HYPERLINK(\"#'Schedule V(k)'!b1\",\"Refer to Schedule V(k)\")","v":"Refer to Schedule V(k)"}]
[]
[null,{"$f":"IF('Insurer Information'!$F$9=\"Class C\",\"(r)\",\"(u)\")","v":"(r)"},"Details of segregated accounts",null,null,null,null,{"$f":"HYPERLINK(\"#'Schedule V(l)'!b1\",\"Refer to Schedule V(l)\")","v":"Refer to Schedule V(l)"}]

{"sheet":"Schedule V(a)","index":42,"n_rows":386,"n_cols":10,"rows_kept":386,"cut":false,"hidden":false,"merged":[[34,8,34,9],[61,5,61,6],[68,5,68,6],[76,5,76,6],[71,5,71,6],[72,5,72,6],[73,5,73,6],[74,5,74,6],[75,5,75,6],[65,5,65,6],[66,5,66,6],[67,5,67,6],[50,8,50,9],[51,8,51,9],[52,8,52,9],[53,8,53,9],[54,8,54,9],[51,5,51,6],[52,5,52,6],[53,5,53,6],[54,5,54,6],[69,2,70,3],[69,4,69,6],[70,5,70,6],[55,8,55,9],[62,2,63,3],[62,4,62,6],[63,5,63,6],[64,5,64,6],[55,5,55,6],[35,8,35,9],[36,8,36,9],[37,8,37,9],[38,8,38,9],[39,8,39,9],[40,8,40,9],[41,8,41,9],[42,8,42,9],[43,8,43,9],[44,8,44,9],[45,8,45,9],[46,8,46,9],[47,8,47,9],[48,8,48,9],[50,5,50,6],[45,5,45,6],[46,5,46,6],[47,5,47,6],[48,5,48,6],[49,5,49,6],[49,8,49,9],[40,5,40,6],[41,5,41,6],[42,5,42,6],[43,5,43,6],[44,5,44,6],[35,5,35,6],[36,5,36,6],[37,5,37,6],[38,5,38,6],[39,5,39,6],[26,5,26,6],[27,5,27,6],[28,5,28,6],[29,5,29,6],[30,5,30,6],[21,5,21,6],[22,5,22,6],[23,5,23,6],[24,5,24,6],[25,5,25,6],[16,5,16,6],[17,5,17,6],[18,5,18,6],[19,5,19,6],[20,5,20,6],[11,5,11,6],[12,5,12,6],[13,5,13,6],[14,5,14,6],[15,5,15,6],[95,3,95,7],[0,1,0,4],[2,1,2,2],[3,1,3,2],[141,2,142,9],[69,7,69,9],[112,2,112,5],[113,2,113,5],[66,2,66,3],[122,2,122,5],[123,2,123,5],[124,2,124,5],[109,2,109,5],[110,2,110,5],[111,2,111,5],[10,5,10,6]]}
[null,"SCHEDULE OF RISK MANAGEMENT - GOVERNANCE AND GROUP STRUCTURE",null,null,null,null,null,null,null,{"$f":"HYPERLINK(\"#'Index'!A1\",\"Return to Index\")","v":"Return to Index"}]
[]
[null,{"$f":"'Schedule V'!B2","v":"Enter Company Name"}]
[null,{"$f":" TEXT('Insurer Information'!C3,\"D MMMM YYYY\")","v":"31 December 2023"},null,null,null,null,null,null,null,"SCHEDULE V(a)"]
[]
[]
[null,1,"Structure of the board of directors, including names, role, country of residence and work experience - "]
[null,null," Enter number of Directors",{"$f":"Import!E1440","v":0}]
[]
[]
[null,null,"Name","Board Position","Country of Residence","Work Experience",null,"Status\n(Select from Drop Down)"]
[null,1,{"$f":"Import!E1441","v":0},{"$f":"Import!E1461","v":0},{"$f":"Import!E1481","v":0},{"$f":"Import!E1501","v":0},null,{"$f":"Import!E1521","v":"Select"}]
[null,2,{"$f":"Import!E1442","v":0},{"$f":"Import!E1462","v":0},{"$f":"Import!E1482","v":0},{"$f":"Import!E1502","v":0},null,{"$f":"Import!E1522","v":"Select"}]
[null,3,{"$f":"Import!E1443","v":0},{"$f":"Import!E1463","v":0},{"$f":"Import!E1483","v":0},{"$f":"Import!E1503","v":0},null,{"$f":"Import!E1523","v":"Select"}]
[null,4,{"$f":"Import!E1444","v":0},{"$f":"Import!E1464","v":0},{"$f":"Import!E1484","v":0},{"$f":"Import!E1504","v":0},null,{"$f":"Import!E1524","v":"Select"}]
[null,5,{"$f":"Import!E1445","v":0},{"$f":"Import!E1465","v":0},{"$f":"Import!E1485","v":0},{"$f":"Import!E1505","v":0},null,{"$f":"Import!E1525","v":"Select"}]
[null,6,{"$f":"Import!E1446","v":0},{"$f":"Import!E1466","v":0},{"$f":"Import!E1486","v":0},{"$f":"Import!E1506","v":0},null,{"$f":"Import!E1526","v":"Select"}]
[null,7,{"$f":"Import!E1447","v":0},{"$f":"Import!E1467","v":0},{"$f":"Import!E1487","v":0},{"$f":"Import!E1507","v":0},null,{"$f":"Import!E1527","v":"Select"}]
[null,8,{"$f":"Import!E1448","v":0},{"$f":"Import!E1468","v":0},{"$f":"Import!E1488","v":0},{"$f":"Import!E1508","v":0},null,{"$f":"Import!E1528","v":"Select"}]
[null,9,{"$f":"Import!E1449","v":0},{"$f":"Import!E1469","v":0},{"$f":"Import!E1489","v":0},{"$f":"Import!E1509","v":0},null,{"$f":"Import!E1529","v":"Select"}]
[null,10,{"$f":"Import!E1450","v":0},{"$f":"Import!E1470","v":0},{"$f":"Import!E1490","v":0},{"$f":"Import!E1510","v":0},null,{"$f":"Import!E1530","v":"Select"}]
[null,11,{"$f":"Import!E1451","v":0},{"$f":"Import!E1471","v":0},{"$f":"Import!E1491","v":0},{"$f":"Import!E1511","v":0},null,{"$f":"Import!E1531","v":"Select"}]
[null,12,{"$f":"Import!E1452","v":0},{"$f":"Import!E1472","v":0},{"$f":"Import!E1492","v":0},{"$f":"Import!E1512","v":0},null,{"$f":"Import!E1532","v":"Select"}]
[null,13,{"$f":"Import!E1453","v":0},{"$f":"Import!E1473","v":0},{"$f":"Import!E1493","v":0},{"$f":"Import!E1513","v":0},null,{"$f":"Import!E1533","v":"Select"}]
[null,14,{"$f":"Import!E1454","v":0},{"$f":"Import!E1474","v":0},{"$f":"Import!E1494","v":0},{"$f":"Import!E1514","v":0},null,{"$f":"Import!E1534","v":"Select"}]
[null,15,{"$f":"Import!E1455","v":0},{"$f":"Import!E1475","v":0},{"$f":"Import!E1495","v":0},{"$f":"Import!E1515","v":0},null,{"$f":"Import!E1535","v":"Select"}]
[null,16,{"$f":"Import!E1456","v":0},{"$f":"Import!E1476","v":0},{"$f":"Import!E1496","v":0},{"$f":"Import!E1516","v":0},null,{"$f":"Import!E1536","v":"Select"}]
[null,17,{"$f":"Import!E1457","v":0},{"$f":"Import!E1477","v":0},{"$f":"Import!E1497","v":0},{"$f":"Import!E1517","v":0},null,{"$f":"Import!E1537","v":"Select"}]
[null,18,{"$f":"Import!E1458","v":0},{"$f":"Import!E1478","v":0},{"$f":"Import!E1498","v":0},{"$f":"Import!E1518","v":0},null,{"$f":"Import!E1538","v":"Select"}]
[null,19,{"$f":"Import!E1459","v":0},{"$f":"Import!E1479","v":0},{"$f":"Import!E1499","v":0},{"$f":"Import!E1519","v":0},null,{"$f":"Import!E1539","v":"Select"}]
[null,20,{"$f":"Import!E1460","v":0},{"$f":"Import!E1480","v":0},{"$f":"Import!E1500","v":0},{"$f":"Import!E1520","v":0},null,{"$f":"Import!E1540","v":"Select"}]
[]
[null,2,"Enter number of Officers",{"$f":"Import!E1541","v":0}]
[null,null,"Structure of the chief and senior executive management, including names, roles, country of residence, work experience, employee arrangement and description of responsibilities"]
[]
[null,null,"Name","Chief and Senior Executive Position","Country of Residence","Work Experience",null,"Employee Arrangement (Select from Drop Down)","Description of Responsibilities\n(Select from Drop Down)"]
[null,1,{"$f":"Import!E1542","v":0},{"$f":"Import!E1562","v":0},{"$f":"Import!E1582","v":0},{"$f":"Import!E1602","v":0},null,{"$f":"Import!E1622","v":"Select"},{"$f":"Import!E1642","v":"Select"}]
[null,2,{"$f":"Import!E1543","v":0},{"$f":"Import!E1563","v":0},{"$f":"Import!E1583","v":0},{"$f":"Import!E1603","v":0},null,{"$f":"Import!E1623","v":"Select"},{"$f":"Import!E1643","v":"Select"}]
[null,3,{"$f":"Import!E1544","v":0},{"$f":"Import!E1564","v":0},{"$f":"Import!E1584","v":0},{"$f":"Import!E1604","v":0},null,{"$f":"Import!E1624","v":"Select"},{"$f":"Import!E1644","v":"Select"}]
[null,4,{"$f":"Import!E1545","v":0},{"$f":"Import!E1565","v":0},{"$f":"Import!E1585","v":0},{"$f":"Import!E1605","v":0},null,{"$f":"Import!E1625","v":"Select"},{"$f":"Import!E1645","v":"Select"}]
[null,5,{"$f":"Import!E1546","v":0},{"$f":"Import!E1566","v":0},{"$f":"Import!E1586","v":0},{"$f":"Import!E1606","v":0},null,{"$f":"Import!E1626","v":"Select"},{"$f":"Import!E1646","v":"Select"}]
[null,6,{"$f":"Import!E1547","v":0},{"$f":"Import!E1567","v":0},{"$f":"Import!E1587","v":0},{"$f":"Import!E1607","v":0},null,{"$f":"Import!E1627","v":"Select"},{"$f":"Import!E1647","v":"Select"}]
[null,7,{"$f":"Import!E1548","v":0},{"$f":"Import!E1568","v":0},{"$f":"Import!E1588","v":0},{"$f":"Import!E1608","v":0},null,{"$f":"Import!E1628","v":"Select"},{"$f":"Import!E1648","v":"Select"}]
[null,8,{"$f":"Import!E1549","v":0},{"$f":"Import!E1569","v":0},{"$f":"Import!E1589","v":0},{"$f":"Import!E1609","v":0},null,{"$f":"Import!E1629","v":"Select"},{"$f":"Import!E1649","v":"Select"}]
[null,9,{"$f":"Import!E1550","v":0},{"$f":"Import!E1570","v":0},{"$f":"Import!E1590","v":0},{"$f":"Import!E1610","v":0},null,{"$f":"Import!E1630","v":"Select"},{"$f":"Import!E1650","v":"Select"}]
[null,10,{"$f":"Import!E1551","v":0},{"$f":"Import!E1571","v":0},{"$f":"Import!E1591","v":0},{"$f":"Import!E1611","v":0},null,{"$f":"Import!E1631","v":"Select"},{"$f":"Import!E1651","v":"Select"}]
[null,11,{"$f":"Import!E1552","v":0},{"$f":"Import!E1572","v":0},{"$f":"Import!E1592","v":0},{"$f":"Import!E1612","v":0},null,{"$f":"Import!E1632","v":"Select"},{"$f":"Import!E1652","v":"Select"}]
[null,12,{"$f":"Import!E1553","v":0},{"$f":"Import!E1573","v":0},{"$f":"Import!E1593","v":0},{"$f":"Import!E1613","v":0},null,{"$f":"Import!E1633","v":"Select"},{"$f":"Import!E1653","v":"Select"}]
[null,13,{"$f":"Import!E1554","v":0},{"$f":"Import!E1574","v":0},{"$f":"Import!E1594","v":0},{"$f":"Import!E1614","v":0},null,{"$f":"Import!E1634","v":"Select"},{"$f":"Import!E1654","v":"Select"}]
[null,14,{"$f":"Import!E1555","v":0},{"$f":"Import!E1575","v":0},{"$f":"Import!E1595","v":0},{"$f":"Import!E1615","v":0},null,{"$f":"Import!E1635","v":"Select"},{"$f":"Import!E1655","v":"Select"}]
[null,15,{"$f":"Import!E1556","v":0},{"$f":"Import!E1576","v":0},{"$f":"Import!E1596","v":0},{"$f":"Import!E1616","v":0},null,{"$f":"Import!E1636","v":"Select"},{"$f":"Import!E1656","v":"Select"}]
[null,16,{"$f":"Import!E1557","v":0},{"$f":"Import!E1577","v":0},{"$f":"Import!E1597","v":0},{"$f":"Import!E1617","v":0},null,{"$f":"Import!E1637","v":"Select"},{"$f":"Import!E1657","v":"Select"}]
[null,17,{"$f":"Import!E1558","v":0},{"$f":"Import!E1578","v":0},{"$f":"Import!E1598","v":0},{"$f":"Import!E1618","v":0},null,{"$f":"Import!E1638","v":"Select"},{"$f":"Import!E1658","v":"Select"}]
[null,18,{"$f":"Import!E1559","v":0},{"$f":"Import!E1579","v":0},{"$f":"Import!E1599","v":0},{"$f":"Import!E1619","v":0},null,{"$f":"Import!E1639","v":"Select"},{"$f":"Import!E1659","v":"Select"}]
[null,19,{"$f":"Import!E1560","v":0},{"$f":"Import!E1580","v":0},{"$f":"Import!E1600","v":0},{"$f":"Import!E1620","v":0},null,{"$f":"Import!E1640","v":"Select"},{"$f":"Import!E1660","v":"Select"}]
[null,20,{"$f":"Import!E1561","v":0},{"$f":"Import!E1581","v":0},{"$f":"Import!E1601","v":0},{"$f":"Import!E1621","v":0},null,{"$f":"Import!E1641","v":"Select"},{"$f":"Import!E1661","v":"Select"}]
[null,null,null,null,null,null,null,"Doc Name","Page Number"]
[null,3,"Terms of reference of the board of directors and its sub-committees —",null,null,{"$f":"HYPERLINK(\"#'Attachments'!G65\",\"Attach file\")","v":"Attach file"}]
[]
[null,null,null,null,null,null,null,"Confirmation","Country of Tax Residency"]
[null,"3a","Does your company have tax residency outside of Bermuda, e.g. has made a 953d election",null,null,null,null,{"$f":"Import!E1662","v":"Select Yes/No"},{"$f":"Import!E1663","v":"Select"}]
[]
[null,4,"Jurisdiction(s) where the board of directors of the insurer meet on activities ",null,"Activities Performed in Bermuda?"]
[null,null,null,null,"Yes/No","If no, provide the name of the jurisdiction"]
[null,null,"(a) Setting strategic direction",null,{"$f":"Import!E1664","v":"Select Yes/No"},{"$f":"Import!E1668","v":0}]
[null,null,"(b) Determining the (re)insurer's risk appetite",null,{"$f":"Import!E1665","v":"Select Yes/No"},{"$f":"Import!E1669","v":0}]
[null,null,"(c) Makes strategic decisions about new and/or changes to products, lines of business or markets",null,{"$f":"Import!E1666","v":"Select Yes/No"},{"$f":"Import!E1670","v":0}]
[null,null,"(d)  Assess or manage solvency requirements",null,{"$f":"Import!E1667","v":"Select Yes/No"},{"$f":"Import!E1671","v":0}]
[]
[null,5,"Details of an insurer's operations that include the jurisdiction(s), service type and name ",null,"Operations Performed in Bermuda?",null,null,"Are Services Outsourced?"]
[null,null,null,null,"Yes/No","If no, provide the name of the jurisdiction",null,"Yes/No","Type of Provider","Name of Provider"]
[null,null,"(a) Underwriting (re)insurance policies",null,{"$f":"Import!E1672","v":"Select Yes/No"},{"$f":"Import!E1678","v":0},null,{"$f":"Import!E1684","v":"Select Yes/No"},{"$f":"Import!E1690","v":"Select"},{"$f":"Import!E1696","v":0}]
[null,null,"(b) Risk management decisions/activities",null,{"$f":"Import!E1673","v":"Select Yes/No"},{"$f":"Import!E1679","v":0},null,{"$f":"Import!E1685","v":"Select Yes/No"},{"$f":"Import!E1691","v":"Select"},{"$f":"Import!E1697","v":0}]
[null,null,"(c) Investment strategy",null,{"$f":"Import!E1674","v":"Select Yes/No"},{"$f":"Import!E1680","v":0},null,{"$f":"Import!E1686","v":"Select Yes/No"},{"$f":"Import!E1692","v":"Select"},{"$f":"Import!E1698","v":0}]
[null,null,"(d) Actuarial ",null,{"$f":"Import!E1675","v":"Select Yes/No"},{"$f":"Import!E1681","v":0},null,{"$f":"Import!E1687","v":"Select Yes/No"},{"$f":"Import!E1693","v":"Select"},{"$f":"Import!E1699","v":0}]
[null,null,"(e) Compliance ",null,{"$f":"Import!E1676","v":"Select Yes/No"},{"$f":"Import!E1682","v":0},null,{"$f":"Import!E1688","v":"Select Yes/No"},{"$f":"Import!E1694","v":"Select"},{"$f":"Import!E1700","v":0}]
[null,null,"(f) Internal Audit",null,{"$f":"Import!E1677","v":"Select Yes/No"},{"$f":"Import!E1683","v":0},null,{"$f":"Import!E1689","v":"Select Yes/No"},{"$f":"Import!E1695","v":"Select"},{"$f":"Import!E1701","v":0}]
[]
[null,"5a","Details of the services outsourced and if yes, if the services performed in Bermuda (confirm with the yes/no drop-down box)"]
[null,null,null,null,null,"Services Outsourced","Outsourced Services Performed in Bermuda"]
[null,"(i)","\tPrincipal Representative\r\n",null,null,{"$f":"Import!E1702","v":"Select Yes/No"},{"$f":"Import!E1718","v":"Select Yes/No"}]
[null,"(ii)","Directorships/Board Member",null,null,{"$f":"Import!E1703","v":"Select Yes/No"},{"$f":"Import!E1719","v":"Select Yes/No"}]
[null,"(iii)","Senior Officer",null,null,{"$f":"Import!E1704","v":"Select Yes/No"},{"$f":"Import!E1720","v":"Select Yes/No"}]
[null,"(iv)","Accounting",null,null,{"$f":"Import!E1705","v":"Select Yes/No"},{"$f":"Import!E1721","v":"Select Yes/No"}]
[null,"(vi)","Preparation of Prudential / Statutory Financial Return",null,null,{"$f":"Import!E1706","v":"Select Yes/No"},{"$f":"Import!E1722","v":"Select Yes/No"}]
[null,"(vii)","Underwriting",null,null,{"$f":"Import!E1707","v":"Select Yes/No"},{"$f":"Import!E1723","v":"Select Yes/No"}]
[null,"(viii)","\tClaims Handling\r\n",null,null,{"$f":"Import!E1708","v":"Select Yes/No"},{"$f":"Import!E1724","v":"Select Yes/No"}]
[null,"(ix)","Risk Management",null,null,{"$f":"Import!E1709","v":"Select Yes/No"},{"$f":"Import!E1725","v":"Select Yes/No"}]
[null,"(x)","Investment",null,null,{"$f":"Import!E1710","v":"Select Yes/No"},{"$f":"Import!E1726","v":"Select Yes/No"}]
[null,"(xi)","Treasury",null,null,{"$f":"Import!E1711","v":"Select Yes/No"},{"$f":"Import!E1727","v":"Select Yes/No"}]
[null,"(xii)","Actuarial functions",null,null,{"$f":"Import!E1712","v":"Select Yes/No"},{"$f":"Import!E1728","v":"Select Yes/No"}]
[null,"(xiii)","Internal Audit",null,null,{"$f":"Import!E1713","v":"Select Yes/No"},{"$f":"Import!E1729","v":"Select Yes/No"}]
[null,"(xiv)","\tCompliance\r\n",null,null,{"$f":"Import!E1714","v":"Select Yes/No"},{"$f":"Import!E1730","v":"Select Yes/No"}]
[null,"(xv)","AML/AFT/Sanctions Compliance",null,null,{"$f":"Import!E1715","v":"Select Yes/No"},{"$f":"Import!E1731","v":"Select Yes/No"}]
[null,"(xvi)","Money Laundering Reporting Officer",null,null,{"$f":"Import!E1716","v":"Select Yes/No"},{"$f":"Import!E1732","v":"Select Yes/No"}]
[null,"(xvii)","Other (if other, disclose)",{"$f":"Import!E1717","v":0}]
[]
[null,6,"Number of the employees resident in Bermuda (non-outsourced positions)",null,null,null,{"$f":"Import!E1733","v":0}]
[]
[null,"6a","Number of employees in Bermuda working as:"]
[null,"(i)","Senior Executive",null,null,null,{"$f":"Import!E1734","v":0}]
[null,"(ii)","Senior Manager",null,null,null,{"$f":"Import!E1735","v":0}]
[null,"(iii)","Technical Officer",null,null,null,{"$f":"Import!E1736","v":0}]
[null,"(iv)","Administrative",null,null,null,{"$f":"Import!E1737","v":0}]
[null,null,"Total",null,null,null,{"$f":"SUM(G101:G104)","v":0}]
[]
[null,null,"Check",null,null,null,{"$f":"IF(G98=G105,\"True\",\"False\")","v":"True"}]
[]
[null,7,"Name of the jurisdiction(s) where the group's board of directors primarily deliberates on the following matters —"]
[null,null,"(a) Setting strategic decision",null,null,null,{"$f":"Import!I1738","v":0}]
[null,null,"(b) Determining the group's risk appetite",null,null,null,{"$f":"Import!I1739","v":0}]
[null,null,"(c) Choosing corporate structure, including amalgamations, acquisitions and strategic alliances",null,null,null,{"$f":"Import!I1740","v":0}]
[null,null,"(d) Choosing new lines of business, new products, and marketplace positioning ",null,null,null,{"$f":"Import!I1741","v":0}]
[null,null,"(e) Assessing solvency needs",null,null,null,{"$f":"Import!I1742","v":0}]
[]
[null,8,"Name of the jurisdiction(s) where the group's board of directors and chief and"]
[null,null,"senior executives primarily reside —",null,null,null,{"$f":"Import!I1743","v":0}]
[]
[null,9,"Name of the jurisdiction(s) where the group's central control functions reside "]
[null,null,"(i.e. group finance, actuarial, and risk management) —",null,null,null,{"$f":"Import!I1744","v":0}]
[]
[null,10,"The group's financial position based on its most recent audited general purpose financial statements —"]
[null,null,"(a) Total assets",null,null,null,{"$f":"Import!I1745","v":0}]
[null,null,"(b) Total reserves",null,null,null,{"$f":"Import!I1746","v":0}]
[null,null,"(c) Capital and surplus",null,null,null,{"$f":"Import!I1747","v":0}]
[]
[null,11,"Name of insurers within the group that have the three highest: (i) total asset value, (ii) total insurance reserve value, and (iii) capital and surplus, based on the group's"]
[null,null,"most recent audited general purpose financial statements; and provide the total values for items (a), (b) and (c); and confirm the jurisdiction of incorporation of each insurer; "]
[null,null,"Name of insurer","Jurisdiction","Asset Value","Insurance Reserve Value","Capital and Surplus"]
[null,1,{"$f":"Import!I1748","v":0},{"$f":"Import!I1757","v":0},{"$f":"Import!I1766","v":0},{"$f":"Import!I1775","v":0},{"$f":"Import!I1784","v":0}]
[null,2,{"$f":"Import!I1749","v":0},{"$f":"Import!I1758","v":0},{"$f":"Import!I1767","v":0},{"$f":"Import!I1776","v":0},{"$f":"Import!I1785","v":0}]
[null,3,{"$f":"Import!I1750","v":0},{"$f":"Import!I1759","v":0},{"$f":"Import!I1768","v":0},{"$f":"Import!I1777","v":0},{"$f":"Import!I1786","v":0}]
[null,4,{"$f":"Import!I1751","v":0},{"$f":"Import!I1760","v":0},{"$f":"Import!I1769","v":0},{"$f":"Import!I1778","v":0},{"$f":"Import!I1787","v":0}]
[null,5,{"$f":"Import!I1752","v":0},{"$f":"Import!I1761","v":0},{"$f":"Import!I1770","v":0},{"$f":"Import!I1779","v":0},{"$f":"Import!I1788","v":0}]
[null,6,{"$f":"Import!I1753","v":0},{"$f":"Import!I1762","v":0},{"$f":"Import!I1771","v":0},{"$f":"Import!I1780","v":0},{"$f":"Import!I1789","v":0}]
[null,7,{"$f":"Import!I1754","v":0},{"$f":"Import!I1763","v":0},{"$f":"Import!I1772","v":0},{"$f":"Import!I1781","v":0},{"$f":"Import!I1790","v":0}]
[null,8,{"$f":"Import!I1755","v":0},{"$f":"Import!I1764","v":0},{"$f":"Import!I1773","v":0},{"$f":"Import!I1782","v":0},{"$f":"Import!I1791","v":0}]
[null,9,{"$f":"Import!I1756","v":0},{"$f":"Import!I1765","v":0},{"$f":"Import!I1774","v":0},{"$f":"Import!I1783","v":0},{"$f":"Import!I1792","v":0}]
[]
[null,12,"Explanation of any events which have occurred or decisions made subsequent to the relevant year-end that would, or have, materially changed "]
[null,null,"the information above (e.g. amalgamation, acquisition, or restructuring, etc.) —"]
[null,null,{"$f":"Import!E1793","v":0}]
[]
[null,null,null,null,null,"Doc Name","Page Number"]
[null,13,"A copy of the latest group organizational chart —",null,{"$f":"HYPERLINK(\"#'Attachments'!G75\",\"Attach file\")","v":"Attach file"}]
[]
[]
[null,null,"Select"]
[null,null,"N/A",null,"Select","Select",null,"Select Yes/No",null,"Select"]
[null,null,"United Kingdom",null,"Insurance Manager","Insurer",null,"Yes",null,"Non-executive (Independent)"]
[null,null,"United States of America",null,"Other Third Party","Affiliate",null,"No",null,"Non-executive (Affiliate)"]
[null,null,"Canada",null,"Affiliate","External service provider ",null,null,null,"Non-executive (Service Provider)"]
[null,null,null,null,null,null,null,null,null,"Non-executive (Other)"]
[null,null,"Afghanistan",null,null,null,null,null,null,"Executive"]
[null,null,"Aland Islands",null,null,null,null,null,null,"Select"]
[null,null,"Albania",null,null,null,null,null,null,"A - Has authority to make key strategic, underwriting or investment decisions, etc."]
[null,null,"Algeria",null,null,null,null,null,null,"B - Has authority to make key strategic, underwriting or investments decision, etc., within the risk appetite explicitly set by the Board of Directors."]
[null,null,"American Samoa",null,null,null,null,null,null,"C - Must get key strategic, underwriting, or investment decisions signed-off by Board of Directors before executing."]
[null,null,"Andorra"]
[null,null,"Angola"]
[null,null,"Anguilla"]
[null,null,"Antigua & Barbuda"]
[null,null,"Argentina"]
[null,null,"Armenia"]
[null,null,"Aruba"]
[null,null,"Australia"]
[null,null,"Austria"]
[null,null,"Azerbaijan"]
[null,null,"Bahamas"]
[null,null,"Bahrain"]
[null,null,"Bangladesh"]
[null,null,"Barbados"]
[null,null,"Belarus"]
[null,null,"Belgium"]
[null,null,"Belize"]
[null,null,"Benin"]
[null,null,"Bhutan"]
[null,null,"Bolivia"]
[null,null,"Bosnia and Herzegovina"]
[null,null,"Botswana"]
[null,null,"Brazil"]
[null,null,"British Virgin Islands"]
[null,null,"Brunei Darussalam"]
[null,null,"Bulgaria"]
[null,null,"Burkina Faso"]
[null,null,"Burundi"]
[null,null,"Cambodia"]
[null,null,"Cameroon"]
[null,null,"Cape Verde"]
[null,null,"Cayman Islands"]
[null,null,"Central African Republic"]
[null,null,"Chad"]
[null,null,"Chile"]
[null,null,"China"]
[null,null,"Colombia"]
[null,null,"Comoros"]
[null,null,"Cook Islands"]
[null,null,"Costa Rica"]
[null,null,"Cote d' Ivoire"]
[null,null,"Croatia"]
[null,null,"Cuba"]
[null,null,"Cyprus"]
[null,null,"Czech Republic"]
[null,null,"Democratic Republic of Congo"]
[null,null,"Denmark"]
[null,null,"Djibouti"]
[null,null,"Dominica"]
[null,null,"Dominican Republic"]
[null,null,"Ecuador"]
[null,null,"Egypt"]
[null,null,"El Salvador"]
[null,null,"Equatorial Guinea"]
[null,null,"Eritrea"]
[null,null,"Estonia"]
[null,null,"Ethiopia"]
[null,null,"Faeroe Islands"]
[null,null,"Falkland Islands"]
[null,null,"Fiji"]
[null,null,"Finland"]
[null,null,"France"]
[null,null,"French Guiana"]
[null,null,"French Polynesia"]
[null,null,"fYR of Macedonia"]
[null,null,"Gabon"]
[null,null,"Gambia"]
[null,null,"Georgia"]
[null,null,"Germany"]
[null,null,"Ghana"]
[null,null,"Gibraltar"]
[null,null,"Greece"]
[null,null,"Greenland"]
[null,null,"Grenada"]
[null,null,"Guadeloupe"]
[null,null,"Guam"]
[null,null,"Guatemala"]
[null,null,"Guernsey"]
[null,null,"Guinea"]
[null,null,"Guinea-Bissau"]
[null,null,"Guyana"]
[null,null,"Haiti"]
[null,null,"Honduras"]
[null,null,"Hong Kong"]
[null,null,"Hungary"]
[null,null,"Iceland"]
[null,null,"India"]
[null,null,"Indonesia"]
[null,null,"Iran"]
[null,null,"Iraq"]
[null,null,"Isle of Man"]
[null,null,"Israel"]
[null,null,"Italy"]
[null,null,"Jamica"]
[null,null,"Japan"]
[null,null,"Jersey"]
[null,null,"Jordan"]
[null,null,"Kazakhstan"]
[null,null,"Kenya"]
[null,null,"Kiribati"]
[null,null,"Kuwait"]
[null,null,"Kyrgyzstan"]
[null,null,"Lao PDR"]
[null,null,"Latvia"]
[null,null,"Lebanon"]
[null,null,"Lesotho"]
[null,null,"Liberia"]
[null,null,"Libya"]
[null,null,"Liechtenstein"]
[null,null,"Lithuania"]
[null,null,"Luxembourg"]
[null,null,"Macao"]
[null,null,"Madagascar"]
[null,null,"Malawi"]
[null,null,"Malaysia"]
[null,null,"Maldives"]
[null,null,"Mali"]
[null,null,"Malta"]
[null,null,"Marshall Islands"]
[null,null,"Mauritania"]
[null,null,"Mauritius"]
[null,null,"Mayotte"]
[null,null,"Mexico"]
[null,null,"Micronesia"]
[null,null,"Moldova"]
[null,null,"Monaco"]
[null,null,"Mongolia"]
[null,null,"Montenegro"]
[null,null,"Montserrat"]
[null,null,"Morocco"]
[null,null,"Mozambique"]
[null,null,"Myanmar"]
[null,null,"N. Mariana Islands"]
[null,null,"Namibia"]
[null,null,"Nauru"]
[null,null,"Nepal"]
[null,null,"Netherlands"]
[null,null,"Netherlands Antilles (Curacao and Bonaire)"]
[null,null,"New Caledonia"]
[null,null,"New Zealand"]
[null,null,"Nicaragua"]
[null,null,"Niger"]
[null,null,"Nigeria"]
[null,null,"Niue"]
[null,null,"Norfolk Island"]
[null,null,"North Korea"]
[null,null,"Northern Africa"]
[null,null,"Norway"]
[null,null,"Oman"]
[null,null,"Pakistan"]
[null,null,"Palau"]
[null,null,"Palestinian"]
[null,null,"Panama"]
[null,null,"Papua New Guinea"]
[null,null,"Paraguay"]
[null,null,"Peru"]
[null,null,"Philippines"]
[null,null,"Pitcairn"]
[null,null,"Poland"]
[null,null,"Portugal"]
[null,null,"Puerto Rico"]
[null,null,"Qatar"]
[null,null,"Republic of Congo"]
[null,null,"Republic of Ireland"]
[null,null,"Reunion"]
[null,null,"Romania"]
[null,null,"Russian Federation"]
[null,null,"Rwanda"]
[null,null,"Saint Helena"]
[null,null,"Samoa"]
[null,null,"San Marino"]
[null,null,"Sao Tome & Principe"]
[null,null,"Saudi Arabia"]
[null,null,"Senegal"]
[null,null,"Serbia"]
[null,null,"Seychelles"]
[null,null,"Sierra Leone"]
[null,null,"Singapore"]
[null,null,"Slovakia"]
[null,null,"Slovenia"]
[null,null,"Solomon Islands"]
[null,null,"Somalia"]
[null,null,"South Africa"]
[null,null,"South Korea"]
[null,null,"Spain"]
[null,null,"Sri Lanka"]
[null,null,"St Kitts & Nevis"]
[null,null,"St Lucia"]
[null,null,"St Pierre & Miquelon"]
[null,null,"St. Maarten"]
[null,null,"St. Vincent & the Grenadines"]
[null,null,"St-Barthelemy"]
[null,null,"Sudan"]
[null,null,"Suriname"]
[null,null,"Svalbard, Jan Mayen"]
[null,null,"Swaziland"]
[null,null,"Sweden"]
[null,null,"Switzerland"]
[null,null,"Syria"]
[null,null,"Taiwan"]
[null,null,"Tajikistan"]
[null,null,"Thailand"]
[null,null,"Timor-Leste"]
[null,null,"Togo"]
[null,null,"Tokelau"]
[null,null,"Tonga"]
[null,null,"Trinidad & Tobago"]
[null,null,"Tunisia"]
[null,null,"Turkey"]
[null,null,"Turkmenistan"]
[null,null,"Turks & Caicos Islands"]
[null,null,"Tuvalu"]
[null,null,"Uganda"]
[null,null,"Ukraine"]
[null,null,"United Arab Emirates"]
[null,null,"United Republic of Tanzania"]
[null,null,"Uruguay"]
[null,null,"US Virgin Islands"]
[null,null,"Uzbekistan"]
[null,null,"Vanuatu"]
[null,null,"Vatican City"]
[null,null,"Venezuela"]
[null,null,"Vietnam"]
[null,null,"Wallis & Futuna Islands"]
[null,null,"Western Sahara"]
[null,null,"Yemen"]
[null,null,"Zambia"]
[null,null,"Zimbabwe"]

{"sheet":"Schedule V(c)","index":43,"n_rows":117,"n_cols":12,"rows_kept":117,"cut":false,"hidden":false,"merged":[[87,2,88,7],[46,9,46,10],[47,9,47,10],[48,9,48,10],[49,9,49,10],[50,9,50,10],[41,9,41,10],[42,9,42,10],[43,9,43,10],[44,9,44,10],[45,9,45,10],[74,6,74,8],[75,6,75,8],[76,6,76,8],[77,6,77,8],[78,6,78,8],[43,2,43,5],[44,2,44,5],[45,2,45,5],[84,6,85,11],[36,9,36,10],[37,9,37,10],[38,9,38,10],[39,9,39,10],[40,9,40,10],[31,9,31,10],[32,9,32,10],[33,9,33,10],[34,9,34,10],[35,9,35,10],[26,9,26,10],[27,9,27,10],[28,9,28,10],[29,9,29,10],[30,9,30,10],[21,9,21,10],[22,9,22,10],[23,9,23,10],[24,9,24,10],[25,9,25,10],[16,9,16,10],[17,9,17,10],[18,9,18,10],[19,9,19,10],[20,9,20,10],[10,9,11,10],[12,9,12,10],[13,9,13,10],[14,9,14,10],[15,9,15,10],[116,2,116,10],[2,1,2,2],[3,1,3,2],[68,6,68,8],[59,6,59,8],[60,6,60,8],[38,2,38,5],[56,6,57,8],[58,6,58,8],[40,2,40,5],[41,2,41,5],[30,2,30,5],[10,6,11,6],[47,2,47,5],[48,2,48,5],[46,2,46,5],[18,2,18,5],[23,2,23,5],[24,2,24,5],[25,2,25,5],[26,2,26,5],[19,2,19,5],[81,6,81,8],[73,6,73,8],[0,1,0,10],[10,7,10,8],[11,7,11,8],[87,10,88,11],[17,2,17,5],[87,8,88,9],[65,6,65,8],[66,6,66,8],[67,6,67,8],[56,9,57,9],[63,6,63,8],[64,6,64,8],[61,6,61,8],[62,6,62,8],[1,1,1,5],[49,2,49,5],[50,2,50,5],[16,2,16,5],[79,6,79,8],[80,6,80,8],[69,6,69,8],[70,6,70,8],[71,6,71,8],[72,6,72,8],[10,2,11,5],[12,2,12,5],[13,2,13,5],[14,2,14,5],[15,2,15,5],[20,2,20,5],[21,2,21,5],[22,2,22,5],[42,2,42,5],[27,2,27,5],[28,2,28,5],[34,2,34,5],[35,2,35,5],[36,2,36,5],[37,2,37,5],[33,2,33,5],[29,2,29,5],[31,2,31,5],[32,2,32,5],[39,2,39,5]]}
[null,"SCHEDULE OF RISK MANAGEMENT - INTRA-GROUP TRANSACTIONS THAT THE INSURER IS A PARTY TO AND THE INSURER'S RISK CONCENTRATIONS ",null,null,null,null,null,null,null,null,null,{"$f":"HYPERLINK(\"#'Index'!A1\",\"Return to Index\")","v":"Return to Index"}]
[null,{"$f":"+'Insurer Information'!C7","v":"Enter Company Name"}]
[null,{"$f":" TEXT('Insurer Information'!C3,\"D MMMM YYYY\")","v":"31 December 2023"},null,null,null,null,null,null,null,null,null,"SCHEDULE V(c)"]
[null,{"$f":"'Schedule V'!C4","v":"United States Dollars"}]
[]
[null,1,"Ten largest exposures to unaffiliated counterparties and any other unaffiliated counterparty exposures or series of linked unaffiliated counterparty exposures "]
[null,null,"exceeding 10% of the insurer’s statutory capital and surplus, including—"]
[null,null,"Enter Number of Material Counterparty Exposures"]
[null,null,"Enter information for each exposure",null,{"$f":"Import!E1795","v":0}]
[]
[null,null,"Name of Unaffiliated Counterparty",null,null,null,"Jurisdiction","Exposure Values ",null,"Transaction Type"]
[null,null,null,null,null,null,null,"(Face Value or Market Value)"]
[null,1,{"$f":"Import!E1796","v":0},null,null,null,{"$f":"Import!E1821","v":0},{"$f":"Import!E1846","v":0},{"$f":"Import!E1871","v":0},{"$f":"Import!E1896","v":0}]
[null,2,{"$f":"Import!E1797","v":0},null,null,null,{"$f":"Import!E1822","v":0},{"$f":"Import!E1847","v":0},{"$f":"Import!E1872","v":0},{"$f":"Import!E1897","v":0}]
[null,3,{"$f":"Import!E1798","v":0},null,null,null,{"$f":"Import!E1823","v":0},{"$f":"Import!E1848","v":0},{"$f":"Import!E1873","v":0},{"$f":"Import!E1898","v":0}]
[null,4,{"$f":"Import!E1799","v":0},null,null,null,{"$f":"Import!E1824","v":0},{"$f":"Import!E1849","v":0},{"$f":"Import!E1874","v":0},{"$f":"Import!E1899","v":0}]
[null,5,{"$f":"Import!E1800","v":0},null,null,null,{"$f":"Import!E1825","v":0},{"$f":"Import!E1850","v":0},{"$f":"Import!E1875","v":0},{"$f":"Import!E1900","v":0}]
[null,6,{"$f":"Import!E1801","v":0},null,null,null,{"$f":"Import!E1826","v":0},{"$f":"Import!E1851","v":0},{"$f":"Import!E1876","v":0},{"$f":"Import!E1901","v":0}]
[null,7,{"$f":"Import!E1802","v":0},null,null,null,{"$f":"Import!E1827","v":0},{"$f":"Import!E1852","v":0},{"$f":"Import!E1877","v":0},{"$f":"Import!E1902","v":0}]
[null,8,{"$f":"Import!E1803","v":0},null,null,null,{"$f":"Import!E1828","v":0},{"$f":"Import!E1853","v":0},{"$f":"Import!E1878","v":0},{"$f":"Import!E1903","v":0}]
[null,9,{"$f":"Import!E1804","v":0},null,null,null,{"$f":"Import!E1829","v":0},{"$f":"Import!E1854","v":0},{"$f":"Import!E1879","v":0},{"$f":"Import!E1904","v":0}]
[null,10,{"$f":"Import!E1805","v":0},null,null,null,{"$f":"Import!E1830","v":0},{"$f":"Import!E1855","v":0},{"$f":"Import!E1880","v":0},{"$f":"Import!E1905","v":0}]
[null,11,{"$f":"Import!E1806","v":0},null,null,null,{"$f":"Import!E1831","v":0},{"$f":"Import!E1856","v":0},{"$f":"Import!E1881","v":0},{"$f":"Import!E1906","v":0}]
[null,12,{"$f":"Import!E1807","v":0},null,null,null,{"$f":"Import!E1832","v":0},{"$f":"Import!E1857","v":0},{"$f":"Import!E1882","v":0},{"$f":"Import!E1907","v":0}]
[null,13,{"$f":"Import!E1808","v":0},null,null,null,{"$f":"Import!E1833","v":0},{"$f":"Import!E1858","v":0},{"$f":"Import!E1883","v":0},{"$f":"Import!E1908","v":0}]
[null,14,{"$f":"Import!E1809","v":0},null,null,null,{"$f":"Import!E1834","v":0},{"$f":"Import!E1859","v":0},{"$f":"Import!E1884","v":0},{"$f":"Import!E1909","v":0}]
[null,15,{"$f":"Import!E1810","v":0},null,null,null,{"$f":"Import!E1835","v":0},{"$f":"Import!E1860","v":0},{"$f":"Import!E1885","v":0},{"$f":"Import!E1910","v":0}]
[null,16,{"$f":"Import!E1811","v":0},null,null,null,{"$f":"Import!E1836","v":0},{"$f":"Import!E1861","v":0},{"$f":"Import!E1886","v":0},{"$f":"Import!E1911","v":0}]
[null,17,{"$f":"Import!E1812","v":0},null,null,null,{"$f":"Import!E1837","v":0},{"$f":"Import!E1862","v":0},{"$f":"Import!E1887","v":0},{"$f":"Import!E1912","v":0}]
[null,18,{"$f":"Import!E1813","v":0},null,null,null,{"$f":"Import!E1838","v":0},{"$f":"Import!E1863","v":0},{"$f":"Import!E1888","v":0},{"$f":"Import!E1913","v":0}]
[null,19,{"$f":"Import!E1814","v":0},null,null,null,{"$f":"Import!E1839","v":0},{"$f":"Import!E1864","v":0},{"$f":"Import!E1889","v":0},{"$f":"Import!E1914","v":0}]
[null,20,{"$f":"Import!E1815","v":0},null,null,null,{"$f":"Import!E1840","v":0},{"$f":"Import!E1865","v":0},{"$f":"Import!E1890","v":0},{"$f":"Import!E1915","v":0}]
[null,21,{"$f":"Import!E1816","v":0},null,null,null,{"$f":"Import!E1841","v":0},{"$f":"Import!E1866","v":0},{"$f":"Import!E1891","v":0},{"$f":"Import!E1916","v":0}]
[null,22,{"$f":"Import!E1817","v":0},null,null,null,{"$f":"Import!E1842","v":0},{"$f":"Import!E1867","v":0},{"$f":"Import!E1892","v":0},{"$f":"Import!E1917","v":0}]
[null,23,{"$f":"Import!E1818","v":0},null,null,null,{"$f":"Import!E1843","v":0},{"$f":"Import!E1868","v":0},{"$f":"Import!E1893","v":0},{"$f":"Import!E1918","v":0}]
[null,24,{"$f":"Import!E1819","v":0},null,null,null,{"$f":"Import!E1844","v":0},{"$f":"Import!E1869","v":0},{"$f":"Import!E1894","v":0},{"$f":"Import!E1919","v":0}]
[null,25,{"$f":"Import!E1820","v":0},null,null,null,{"$f":"Import!E1845","v":0},{"$f":"Import!E1870","v":0},{"$f":"Import!E1895","v":0},{"$f":"Import!E1920","v":0}]
[null,26]
[null,27]
[null,28]
[null,29]
[null,30]
[null,31]
[null,32]
[null,33]
[null,34]
[null,35]
[null,36]
[null,37]
[null,38]
[null,39]
[]
[null,2,"Details of material intra-group transactions —"]
[null,null,"Enter Number of Material Intra-Group Transactions"]
[null,null,"Enter information for each transaction",null,{"$f":"Import!E1921","v":0}]
[]
[null,null,"Counterparties Involved",null,null,null,"Transaction Details \n(Purpose, terms, transaction cost, duration and performance trigger)",null,null,"Exposure Value \n(face value or market value)"]
[null,null,"Issuer/Borrower/Debtor","Jurisdiction","Investor/Lender/Creditor","Jurisdiction"]
[null,1,{"$f":"Import!E1922","v":0},{"$f":"Import!E1947","v":0},{"$f":"Import!E1972","v":0},{"$f":"Import!E1997","v":0},{"$f":"Import!E2022","v":0},null,null,{"$f":"Import!E2047","v":0}]
[null,2,{"$f":"Import!E1923","v":0},{"$f":"Import!E1948","v":0},{"$f":"Import!E1973","v":0},{"$f":"Import!E1998","v":0},{"$f":"Import!E2023","v":0},null,null,{"$f":"Import!E2048","v":0}]
[null,3,{"$f":"Import!E1924","v":0},{"$f":"Import!E1949","v":0},{"$f":"Import!E1974","v":0},{"$f":"Import!E1999","v":0},{"$f":"Import!E2024","v":0},null,null,{"$f":"Import!E2049","v":0}]
[null,4,{"$f":"Import!E1925","v":0},{"$f":"Import!E1950","v":0},{"$f":"Import!E1975","v":0},{"$f":"Import!E2000","v":0},{"$f":"Import!E2025","v":0},null,null,{"$f":"Import!E2050","v":0}]
[null,5,{"$f":"Import!E1926","v":0},{"$f":"Import!E1951","v":0},{"$f":"Import!E1976","v":0},{"$f":"Import!E2001","v":0},{"$f":"Import!E2026","v":0},null,null,{"$f":"Import!E2051","v":0}]
[null,6,{"$f":"Import!E1927","v":0},{"$f":"Import!E1952","v":0},{"$f":"Import!E1977","v":0},{"$f":"Import!E2002","v":0},{"$f":"Import!E2027","v":0},null,null,{"$f":"Import!E2052","v":0}]
[null,7,{"$f":"Import!E1928","v":0},{"$f":"Import!E1953","v":0},{"$f":"Import!E1978","v":0},{"$f":"Import!E2003","v":0},{"$f":"Import!E2028","v":0},null,null,{"$f":"Import!E2053","v":0}]
[null,8,{"$f":"Import!E1929","v":0},{"$f":"Import!E1954","v":0},{"$f":"Import!E1979","v":0},{"$f":"Import!E2004","v":0},{"$f":"Import!E2029","v":0},null,null,{"$f":"Import!E2054","v":0}]
[null,9,{"$f":"Import!E1930","v":0},{"$f":"Import!E1955","v":0},{"$f":"Import!E1980","v":0},{"$f":"Import!E2005","v":0},{"$f":"Import!E2030","v":0},null,null,{"$f":"Import!E2055","v":0}]
[null,10,{"$f":"Import!E1931","v":0},{"$f":"Import!E1956","v":0},{"$f":"Import!E1981","v":0},{"$f":"Import!E2006","v":0},{"$f":"Import!E2031","v":0},null,null,{"$f":"Import!E2056","v":0}]
[null,11,{"$f":"Import!E1932","v":0},{"$f":"Import!E1957","v":0},{"$f":"Import!E1982","v":0},{"$f":"Import!E2007","v":0},{"$f":"Import!E2032","v":0},null,null,{"$f":"Import!E2057","v":0}]
[null,12,{"$f":"Import!E1933","v":0},{"$f":"Import!E1958","v":0},{"$f":"Import!E1983","v":0},{"$f":"Import!E2008","v":0},{"$f":"Import!E2033","v":0},null,null,{"$f":"Import!E2058","v":0}]
[null,13,{"$f":"Import!E1934","v":0},{"$f":"Import!E1959","v":0},{"$f":"Import!E1984","v":0},{"$f":"Import!E2009","v":0},{"$f":"Import!E2034","v":0},null,null,{"$f":"Import!E2059","v":0}]
[null,14,{"$f":"Import!E1935","v":0},{"$f":"Import!E1960","v":0},{"$f":"Import!E1985","v":0},{"$f":"Import!E2010","v":0},{"$f":"Import!E2035","v":0},null,null,{"$f":"Import!E2060","v":0}]
[null,15,{"$f":"Import!E1936","v":0},{"$f":"Import!E1961","v":0},{"$f":"Import!E1986","v":0},{"$f":"Import!E2011","v":0},{"$f":"Import!E2036","v":0},null,null,{"$f":"Import!E2061","v":0}]
[null,16,{"$f":"Import!E1937","v":0},{"$f":"Import!E1962","v":0},{"$f":"Import!E1987","v":0},{"$f":"Import!E2012","v":0},{"$f":"Import!E2037","v":0},null,null,{"$f":"Import!E2062","v":0}]
[null,17,{"$f":"Import!E1938","v":0},{"$f":"Import!E1963","v":0},{"$f":"Import!E1988","v":0},{"$f":"Import!E2013","v":0},{"$f":"Import!E2038","v":0},null,null,{"$f":"Import!E2063","v":0}]
[null,18,{"$f":"Import!E1939","v":0},{"$f":"Import!E1964","v":0},{"$f":"Import!E1989","v":0},{"$f":"Import!E2014","v":0},{"$f":"Import!E2039","v":0},null,null,{"$f":"Import!E2064","v":0}]
[null,19,{"$f":"Import!E1940","v":0},{"$f":"Import!E1965","v":0},{"$f":"Import!E1990","v":0},{"$f":"Import!E2015","v":0},{"$f":"Import!E2040","v":0},null,null,{"$f":"Import!E2065","v":0}]
[null,20,{"$f":"Import!E1941","v":0},{"$f":"Import!E1966","v":0},{"$f":"Import!E1991","v":0},{"$f":"Import!E2016","v":0},{"$f":"Import!E2041","v":0},null,null,{"$f":"Import!E2066","v":0}]
[null,21,{"$f":"Import!E1942","v":0},{"$f":"Import!E1967","v":0},{"$f":"Import!E1992","v":0},{"$f":"Import!E2017","v":0},{"$f":"Import!E2042","v":0},null,null,{"$f":"Import!E2067","v":0}]
[null,22,{"$f":"Import!E1943","v":0},{"$f":"Import!E1968","v":0},{"$f":"Import!E1993","v":0},{"$f":"Import!E2018","v":0},{"$f":"Import!E2043","v":0},null,null,{"$f":"Import!E2068","v":0}]
[null,23,{"$f":"Import!E1944","v":0},{"$f":"Import!E1969","v":0},{"$f":"Import!E1994","v":0},{"$f":"Import!E2019","v":0},{"$f":"Import!E2044","v":0},null,null,{"$f":"Import!E2069","v":0}]
[null,24,{"$f":"Import!E1945","v":0},{"$f":"Import!E1970","v":0},{"$f":"Import!E1995","v":0},{"$f":"Import!E2020","v":0},{"$f":"Import!E2045","v":0},null,null,{"$f":"Import!E2070","v":0}]
[]
[null,3,"Details of all intra-group reinsurance and retrocession arrangements —"]
[null,null,"Enter Number of Intra-Group (Re)insurance Arrangements",null,null,null,{"$f":"IF(E86>25,\"Please group arrangements with the same cedent and assuming parties together. Only 25 arrangements can be populated below. Additional arrangements must be provided as an attachment.\",\"\")","v":""}]
[null,null,"Enter information for each arrangement",null,{"$f":"Import!E2072","v":0}]
[]
[null,null,"Counterparties Involved",null,null,null,null,null,"Aggregated values of the exposure limits",null,"Aggregated premium flows"]
[]
[null,null,"Assuming party","Jurisdiction","Rating","Ceding party","Jurisdiction","Rating","Gross","Net","Gross","Net"]
[null,1,{"$f":"Import!E2073","v":0},{"$f":"Import!E2096","v":0},{"$f":"Import!E2119","v":0},{"$f":"Import!E2142","v":0},{"$f":"Import!E2165","v":0},{"$f":"Import!E2188","v":0},{"$f":"Import!E2211","v":0},{"$f":"Import!E2234","v":0},{"$f":"Import!E2257","v":0},{"$f":"Import!E2280","v":0}]
[null,2,{"$f":"Import!E2074","v":0},{"$f":"Import!E2097","v":0},{"$f":"Import!E2120","v":0},{"$f":"Import!E2143","v":0},{"$f":"Import!E2166","v":0},{"$f":"Import!E2189","v":0},{"$f":"Import!E2212","v":0},{"$f":"Import!E2235","v":0},{"$f":"Import!E2258","v":0},{"$f":"Import!E2281","v":0}]
[null,3,{"$f":"Import!E2075","v":0},{"$f":"Import!E2098","v":0},{"$f":"Import!E2121","v":0},{"$f":"Import!E2144","v":0},{"$f":"Import!E2167","v":0},{"$f":"Import!E2190","v":0},{"$f":"Import!E2213","v":0},{"$f":"Import!E2236","v":0},{"$f":"Import!E2259","v":0},{"$f":"Import!E2282","v":0}]
[null,4,{"$f":"Import!E2076","v":0},{"$f":"Import!E2099","v":0},{"$f":"Import!E2122","v":0},{"$f":"Import!E2145","v":0},{"$f":"Import!E2168","v":0},{"$f":"Import!E2191","v":0},{"$f":"Import!E2214","v":0},{"$f":"Import!E2237","v":0},{"$f":"Import!E2260","v":0},{"$f":"Import!E2283","v":0}]
[null,5,{"$f":"Import!E2077","v":0},{"$f":"Import!E2100","v":0},{"$f":"Import!E2123","v":0},{"$f":"Import!E2146","v":0},{"$f":"Import!E2169","v":0},{"$f":"Import!E2192","v":0},{"$f":"Import!E2215","v":0},{"$f":"Import!E2238","v":0},{"$f":"Import!E2261","v":0},{"$f":"Import!E2284","v":0}]
[null,6,{"$f":"Import!E2078","v":0},{"$f":"Import!E2101","v":0},{"$f":"Import!E2124","v":0},{"$f":"Import!E2147","v":0},{"$f":"Import!E2170","v":0},{"$f":"Import!E2193","v":0},{"$f":"Import!E2216","v":0},{"$f":"Import!E2239","v":0},{"$f":"Import!E2262","v":0},{"$f":"Import!E2285","v":0}]
[null,7,{"$f":"Import!E2079","v":0},{"$f":"Import!E2102","v":0},{"$f":"Import!E2125","v":0},{"$f":"Import!E2148","v":0},{"$f":"Import!E2171","v":0},{"$f":"Import!E2194","v":0},{"$f":"Import!E2217","v":0},{"$f":"Import!E2240","v":0},{"$f":"Import!E2263","v":0},{"$f":"Import!E2286","v":0}]
[null,8,{"$f":"Import!E2080","v":0},{"$f":"Import!E2103","v":0},{"$f":"Import!E2126","v":0},{"$f":"Import!E2149","v":0},{"$f":"Import!E2172","v":0},{"$f":"Import!E2195","v":0},{"$f":"Import!E2218","v":0},{"$f":"Import!E2241","v":0},{"$f":"Import!E2264","v":0},{"$f":"Import!E2287","v":0}]
[null,9,{"$f":"Import!E2081","v":0},{"$f":"Import!E2104","v":0},{"$f":"Import!E2127","v":0},{"$f":"Import!E2150","v":0},{"$f":"Import!E2173","v":0},{"$f":"Import!E2196","v":0},{"$f":"Import!E2219","v":0},{"$f":"Import!E2242","v":0},{"$f":"Import!E2265","v":0},{"$f":"Import!E2288","v":0}]
[null,10,{"$f":"Import!E2082","v":0},{"$f":"Import!E2105","v":0},{"$f":"Import!E2128","v":0},{"$f":"Import!E2151","v":0},{"$f":"Import!E2174","v":0},{"$f":"Import!E2197","v":0},{"$f":"Import!E2220","v":0},{"$f":"Import!E2243","v":0},{"$f":"Import!E2266","v":0},{"$f":"Import!E2289","v":0}]
[null,11,{"$f":"Import!E2083","v":0},{"$f":"Import!E2106","v":0},{"$f":"Import!E2129","v":0},{"$f":"Import!E2152","v":0},{"$f":"Import!E2175","v":0},{"$f":"Import!E2198","v":0},{"$f":"Import!E2221","v":0},{"$f":"Import!E2244","v":0},{"$f":"Import!E2267","v":0},{"$f":"Import!E2290","v":0}]
[null,12,{"$f":"Import!E2084","v":0},{"$f":"Import!E2107","v":0},{"$f":"Import!E2130","v":0},{"$f":"Import!E2153","v":0},{"$f":"Import!E2176","v":0},{"$f":"Import!E2199","v":0},{"$f":"Import!E2222","v":0},{"$f":"Import!E2245","v":0},{"$f":"Import!E2268","v":0},{"$f":"Import!E2291","v":0}]
[null,13,{"$f":"Import!E2085","v":0},{"$f":"Import!E2108","v":0},{"$f":"Import!E2131","v":0},{"$f":"Import!E2154","v":0},{"$f":"Import!E2177","v":0},{"$f":"Import!E2200","v":0},{"$f":"Import!E2223","v":0},{"$f":"Import!E2246","v":0},{"$f":"Import!E2269","v":0},{"$f":"Import!E2292","v":0}]
[null,14,{"$f":"Import!E2086","v":0},{"$f":"Import!E2109","v":0},{"$f":"Import!E2132","v":0},{"$f":"Import!E2155","v":0},{"$f":"Import!E2178","v":0},{"$f":"Import!E2201","v":0},{"$f":"Import!E2224","v":0},{"$f":"Import!E2247","v":0},{"$f":"Import!E2270","v":0},{"$f":"Import!E2293","v":0}]
[null,15,{"$f":"Import!E2087","v":0},{"$f":"Import!E2110","v":0},{"$f":"Import!E2133","v":0},{"$f":"Import!E2156","v":0},{"$f":"Import!E2179","v":0},{"$f":"Import!E2202","v":0},{"$f":"Import!E2225","v":0},{"$f":"Import!E2248","v":0},{"$f":"Import!E2271","v":0},{"$f":"Import!E2294","v":0}]
[null,16,{"$f":"Import!E2088","v":0},{"$f":"Import!E2111","v":0},{"$f":"Import!E2134","v":0},{"$f":"Import!E2157","v":0},{"$f":"Import!E2180","v":0},{"$f":"Import!E2203","v":0},{"$f":"Import!E2226","v":0},{"$f":"Import!E2249","v":0},{"$f":"Import!E2272","v":0},{"$f":"Import!E2295","v":0}]
[null,17,{"$f":"Import!E2089","v":0},{"$f":"Import!E2112","v":0},{"$f":"Import!E2135","v":0},{"$f":"Import!E2158","v":0},{"$f":"Import!E2181","v":0},{"$f":"Import!E2204","v":0},{"$f":"Import!E2227","v":0},{"$f":"Import!E2250","v":0},{"$f":"Import!E2273","v":0},{"$f":"Import!E2296","v":0}]
[null,18,{"$f":"Import!E2090","v":0},{"$f":"Import!E2113","v":0},{"$f":"Import!E2136","v":0},{"$f":"Import!E2159","v":0},{"$f":"Import!E2182","v":0},{"$f":"Import!E2205","v":0},{"$f":"Import!E2228","v":0},{"$f":"Import!E2251","v":0},{"$f":"Import!E2274","v":0},{"$f":"Import!E2297","v":0}]
[null,19,{"$f":"Import!E2091","v":0},{"$f":"Import!E2114","v":0},{"$f":"Import!E2137","v":0},{"$f":"Import!E2160","v":0},{"$f":"Import!E2183","v":0},{"$f":"Import!E2206","v":0},{"$f":"Import!E2229","v":0},{"$f":"Import!E2252","v":0},{"$f":"Import!E2275","v":0},{"$f":"Import!E2298","v":0}]
[null,20,{"$f":"Import!E2092","v":0},{"$f":"Import!E2115","v":0},{"$f":"Import!E2138","v":0},{"$f":"Import!E2161","v":0},{"$f":"Import!E2184","v":0},{"$f":"Import!E2207","v":0},{"$f":"Import!E2230","v":0},{"$f":"Import!E2253","v":0},{"$f":"Import!E2276","v":0},{"$f":"Import!E2299","v":0}]
[null,21,{"$f":"Import!E2093","v":0},{"$f":"Import!E2116","v":0},{"$f":"Import!E2139","v":0},{"$f":"Import!E2162","v":0},{"$f":"Import!E2185","v":0},{"$f":"Import!E2208","v":0},{"$f":"Import!E2231","v":0},{"$f":"Import!E2254","v":0},{"$f":"Import!E2277","v":0},{"$f":"Import!E2300","v":0}]
[null,22,{"$f":"Import!E2094","v":0},{"$f":"Import!E2117","v":0},{"$f":"Import!E2140","v":0},{"$f":"Import!E2163","v":0},{"$f":"Import!E2186","v":0},{"$f":"Import!E2209","v":0},{"$f":"Import!E2232","v":0},{"$f":"Import!E2255","v":0},{"$f":"Import!E2278","v":0},{"$f":"Import!E2301","v":0}]
[null,23,{"$f":"Import!E2095","v":0},{"$f":"Import!E2118","v":0},{"$f":"Import!E2141","v":0},{"$f":"Import!E2164","v":0},{"$f":"Import!E2187","v":0},{"$f":"Import!E2210","v":0},{"$f":"Import!E2233","v":0},{"$f":"Import!E2256","v":0},{"$f":"Import!E2279","v":0},{"$f":"Import!E2302","v":0}]
[null,24]
[null,25]
[]
[null,4,"The proportion of the insurer's insurance business covered by internal reinsurance, retrocession and other risk transfer arrangements -\n(in percentage)",null,null,null,null,null,null,null,null,{"$f":"Import!E2303","v":0}]

{"sheet":"Schedule V(e)","index":44,"n_rows":256,"n_cols":12,"rows_kept":256,"cut":false,"hidden":false,"merged":[[0,10,0,11],[2,10,2,11],[121,1,125,11],[131,1,131,2],[12,2,12,3],[17,2,17,3],[11,2,11,3],[13,2,13,3],[1,1,1,2],[2,1,2,2],[3,11,3,12],[14,2,14,3],[3,2,3,3],[18,2,18,3],[37,2,37,3],[38,2,38,3],[15,2,15,3],[16,2,16,3],[39,2,39,3],[40,2,40,3],[41,2,41,3],[42,2,42,3],[43,2,43,3],[26,10,27,10],[135,3,135,4],[133,1,133,2],[131,3,131,4],[139,1,140,2],[19,2,19,3],[20,2,20,3],[179,1,179,7],[165,1,166,11],[160,1,163,11],[164,1,164,11],[141,1,141,2],[22,2,23,3],[127,1,127,4],[119,1,119,2],[25,2,25,3],[26,2,27,3],[26,4,27,4],[30,2,30,3],[33,2,33,3],[34,2,34,3],[35,2,35,3],[36,2,36,3],[141,3,141,4],[142,3,142,4],[187,9,187,11],[188,9,188,11],[189,9,189,11],[114,1,114,2],[115,1,115,2],[116,1,116,2],[117,1,117,2],[133,3,133,4],[155,1,155,4],[144,1,144,2],[144,3,144,4],[148,1,149,2],[148,3,149,11],[150,1,150,2],[150,3,150,4],[146,1,146,4],[139,3,140,11],[135,1,135,2],[142,1,142,2],[130,3,130,4],[132,1,132,2],[132,3,132,4],[137,1,137,4],[190,9,190,11],[191,9,191,11],[192,9,192,11],[198,9,198,11],[230,9,230,11],[218,9,218,11],[210,9,210,11],[229,9,229,11],[151,1,151,2],[151,3,151,4],[153,1,153,2],[153,3,153,4],[26,11,27,11],[28,2,28,3],[29,2,29,3],[26,5,27,5],[26,6,27,6],[26,7,27,7],[26,8,27,8],[26,9,27,9],[28,6,38,6],[28,7,38,7],[31,2,31,3],[32,2,32,3],[28,11,38,11],[51,2,51,3],[52,2,52,3],[53,2,53,3],[54,2,54,3],[55,2,55,3],[44,2,44,3],[45,2,45,3],[47,2,47,3],[48,2,48,3],[50,2,50,3],[60,2,60,3],[60,4,60,9],[61,4,61,5],[61,6,61,7],[61,8,61,9],[57,2,57,5],[58,2,58,3],[58,4,58,5],[69,4,69,5],[69,6,69,7],[69,8,69,9],[71,2,71,3],[72,2,72,3],[63,2,63,3],[64,2,64,3],[65,2,65,3],[68,2,68,3],[68,4,68,9],[79,2,79,3],[80,2,80,3],[81,2,81,3],[84,2,84,3],[84,4,84,9],[73,2,73,3],[76,2,76,3],[76,4,76,9],[77,4,77,5],[77,6,77,7],[77,8,77,9],[89,2,89,3],[92,2,92,3],[93,2,93,3],[94,2,94,3],[95,2,95,3],[85,4,85,5],[85,6,85,7],[85,8,85,9],[87,2,87,3],[88,2,88,3],[92,7,92,8],[93,7,93,8],[94,7,94,8],[96,7,96,8],[107,2,107,3],[107,4,107,5],[101,2,101,3],[102,2,102,3],[103,2,103,3],[106,2,106,3],[106,4,106,5],[96,2,96,3],[97,2,97,3],[98,2,98,3],[99,2,99,3],[100,2,100,3]]}
[null,"SCHEDULE OF RISK MANAGEMENT - STRESS/SCENARIO TESTS",null,null,null,null,null,null,null,null,{"$f":"HYPERLINK(\"#'Index'!A1\",\"Return to Index\")","v":"Return to Index"}]
[null,{"$f":"+'Insurer Information'!C7","v":"Enter Company Name"}]
[null,{"$f":" TEXT('Insurer Information'!C3,\"D MMMM YYYY\")+1","v":"2024-01-01"},null,null,null,null,null,null,null,null,"SCHEDULE V(e)"]
[null,{"$f":"\"expressed in\"& IF(CONFIGURATION!$B$12>1,\" ['\"&MID(CONFIGURATION!$B$12,2,LEN(CONFIGURATION!$B$12))&\"s]\",\"\")","v":"expressed in ['000s]"},{"$f":"'Form 4EBS'!C4","v":"United States Dollars"}]
[null,null,null,null,null,"EBS Assets","EBS Liabilities","EBS Capital & Surplus"]
[null,null,null,null,"Pre-stress/scenario position",{"$f":"'Form 4EBS'!F93","v":0},{"$f":"'Form 4EBS'!F180","v":0},{"$f":"'Form 4EBS'!F186","v":0}]
[]
[null,"Insurer Confirms that Loss Scenarios left blank/omitted, result in no loss exposure"]
[null,null,null,null,null,null,null,"Confirm with \"X\""]
[null,"A. FINANCIAL MARKET SCENARIOS"]
[null,null,null,null,"Loss","EBS Assets","EBS Liabilities","EBS Capital & Surplus"]
[null,"R1.","40% decline in equity prices",null,{"$f":"IF(SUM(F12:G12)=0,0,($F$6-F12)+(G12-$G$6))","v":0},{"$f":"Import!M2305","v":0},{"$f":"Import!M2315","v":0},{"$f":"$H$6-E12","v":0}]
[null,"R2.","Alternative Investments and Real Estate",null,0,{"$f":"Import!M2306","v":0},{"$f":"Import!M2316","v":0},0]
[null,"R3.","Yield Curve Stress",null,0,{"$f":"Import!M2307","v":0},{"$f":"Import!M2317","v":0},0]
[null,"R4.","General widening of credit spreads",null,0,{"$f":"Import!M2308","v":0},{"$f":"Import!M2318","v":0},0]
[null,"R5.","Combined R1, R2, R3 and R4.",null,0,{"$f":"Import!M2309","v":0},{"$f":"Import!M2319","v":0},0]
[null,"R6.","Foreign currency shocks",null,0,{"$f":"Import!M2310","v":0},{"$f":"Import!M2320","v":0},0]
[null,"R7.","Escalation of sovereign risk ",null,0,{"$f":"Import!M2311","v":0},{"$f":"Import!M2321","v":0},0]
[null,"R8.","Inflation and Monetary Policy Risk - Moderate inflation",null,{"$f":"IF(SUM(F19:G19)=0,0,($F$6-F19)+(G19-$G$6))","v":0},{"$f":"Import!M2312","v":0},{"$f":"Import!M2322","v":0},{"$f":"$H$6-E19","v":0}]
[null,"R8.","Inflation and Monetary Policy Risk - Severe inflation",null,0,{"$f":"Import!M2313","v":0},{"$f":"Import!M2323","v":0},0]
[null,"R8.","Inflation and Monetary Policy Risk - Deflation scenario",null,0,{"$f":"Import!M2314","v":0},{"$f":"Import!M2324","v":0},0]
[]
[null,null,"Valuation losses on debt securities and loans issued by creditors in each European state —",null,"Greece","Italy","Portugal","Ukraine","Argentina","Turkey"]
[null,null,null,null,{"$f":"Import!M2325","v":0},{"$f":"Import!M2326","v":0},{"$f":"Import!M2327","v":0},{"$f":"Import!M2328","v":0},{"$f":"Import!M2329","v":0},{"$f":"Import!M2330","v":0}]
[]
[null,"R9.","Long-Term Liquidity Stress Scenario"]
[null,null,"Liquidity Source Type",null,"Tier","Haircut","1 in 20 yield shock","1 in 200 yield shock","Pre-Stress Liquidity Source Amount","Post-Stress Liquidity Source Amount (1 in 20)","Post-Stress Liquidity Source Amount (1 in 200)","Weighted Average Maturity"]
[]
[null,null,"Cash",null,1,0,null,null,{"$f":"Import!M2331","v":0},{"$f":"(1-F29)*$I29","v":0},{"$f":"(1-F29)*$I29","v":0}]
[null,null,"Common Publicly Traded Equity ",null,3,0.65,null,null,{"$f":"Import!M2332","v":0},0,0]
[null,null,"Tier 1 Certificates of Deposit",null,1,0.05,null,null,{"$f":"Import!M2333","v":0},0,0]
[null,null,"Tier 2 Certificates of Deposit",null,2,0.1,null,null,{"$f":"Import!M2334","v":0},0,0]
[null,null,"Tier 3 Certificates of Deposit",null,3,0.6,null,null,{"$f":"Import!M2335","v":0},0,0]
[null,null,"Undrawn Committed Lines",null,3,0.9,null,null,{"$f":"Import!M2336","v":0},0,0]
[null,null,"Qualified Tier 1 Liquid Mutual and MMFs",null,1,0.15,null,null,{"$f":"Import!M2337","v":0},0,0]
[null,null,"Qualified Tier 2 Liquid Mutual and MMFs",null,2,0.4,null,null,{"$f":"Import!M2338","v":0},0,0]
[null,null,"Qualified Tier 3 Liquid Mutual and MMFs",null,3,0.85,null,null,{"$f":"Import!M2339","v":0},0,0]
[null,null,"Investment funds: Liquid ETFs",null,4,0.9,null,null,{"$f":"Import!M2340","v":0},0,0]
[null,null,"All Other Potential Liquidity Sources",null,4,1,null,null,{"$f":"Import!M2341","v":0},{"$f":"(1-F39)*$I39","v":0},0]
[null,null,"Public Corporates rated AA- or better",null,2,null,1.2E-2,2.9000000000000001E-2,{"$f":"Import!M2342","v":0},{"$f":"I40*(1-G40*L40)","v":0},{"$f":"I40*(1-L40*H40)","v":0},{"$f":"Import!M2349","v":0}]
[null,null,"Public Corporates rated between BBB- and AA-",null,2,null,1.2999999999999999E-2,0.03,{"$f":"Import!M2343","v":0},{"$f":"I41*(1-G41*L41)","v":0},{"$f":"I41*(1-L41*H41)","v":0},{"$f":"Import!M2350","v":0}]
[null,null,"Sovereigns rated AA- or better",null,1,null,6.0000000000000001E-3,1.2E-2,{"$f":"Import!M2344","v":0},0,0,{"$f":"Import!M2351","v":0}]
[null,null,"Sovereigns rated  between BBB- and AA-",null,2,null,1.2E-2,2.4E-2,{"$f":"Import!M2345","v":0},0,0,{"$f":"Import!M2352","v":0}]
[null,null,"Covered Bonds rated BBB- or better",null,3,null,1.2E-2,2.6499999999999999E-2,{"$f":"Import!M2346","v":0},0,0,{"$f":"Import!M2353","v":0}]
[null,null,"Mortgage Based Securities rated AAA",null,3,null,1.7000000000000001E-2,3.1E-2,{"$f":"Import!M2347","v":0},{"$f":"I45*(1-G45*L45)","v":0},0,{"$f":"Import!M2354","v":0}]
[null,null,"Other Structured Securities rated AAA",null,3,null,0.02,3.7999999999999999E-2,{"$f":"Import!M2348","v":0},0,0,{"$f":"Import!M2355","v":0}]
[]
[null,null,"Admissible Tier 3 Sources",null,null,null,null,null,null,{"$f":"IFERROR(MIN(SUMIF($E$29:$E$46,\"<3\",J$29:J$46)*3/7,SUMIF($E$29:$E$46,3,J$29:J$46)),\"\")","v":0},{"$f":"IFERROR(MIN(SUMIF($E$29:$E$46,\"<3\",K$29:K$46)*3/7,SUMIF($E$29:$E$46,3,K$29:K$46)),\"\")","v":0}]
[null,null,"Total Liquidity Sources",null,null,null,null,null,{"$f":"SUM(I29:I46)","v":0},{"$f":"SUMIF($E$29:$E$46,\"<3\",J$29:J$46)+J$48","v":0},{"$f":"SUMIF($E$29:$E$46,\"<3\",K$29:K$46)+K$48","v":0}]
[]
[null,null,"Total cash out-flow under the immediate mass lapse shock (see Mass Lapse Shock Table)",null,null,null,null,null,null,{"$f":"Import!M2356","v":0},{"$f":"Import!M2359","v":0}]
[null,null,"1 Week Liquidity Coverage Ratio",null,null,null,null,null,null,{"$f":"IFERROR((SUMIF($E$29:$E$46,1,J$29:J$46)+MIN(SUMIF($E$29:$E$46,2,J$29:J$46),0.5*SUMPRODUCT($E$80:$F$82,$E$88:$F$90)))/SUMPRODUCT($E$80:$F$82,$E$88:$F$90), \"\")","v":""},{"$f":"IFERROR((SUMIF($E$29:$E$46,1,K$29:K$46)+MIN(SUMIF($E$29:$E$46,2,K$29:K$46),0.5*SUMPRODUCT($E$80:$F$82,$E$88:$F$90)))/SUMPRODUCT($E$80:$F$82,$E$88:$F$90),\"\")","v":""}]
[null,null,"Overall Liquidity Coverage Ratio",null,null,null,{"$f":"IFERROR((G49/G51),\"\")","v":""},null,null,{"$f":"IFERROR(J49/MAX(J51,SUMPRODUCT($E$88:$J$90,$E$80:$J$82)), \"\")","v":""},{"$f":"IFERROR(K49/MAX(K51,SUMPRODUCT($E$88:$J$90,$E$80:$J$82)), \"\")","v":""}]
[null,null,"Recalculated Available Capital and Surplus",null,null,null,null,null,{"$f":"H6","v":0},{"$f":"Import!M2357","v":0},{"$f":"Import!M2360","v":0}]
[null,null,"Recalculated Transitory Enhanced Capital Requirement ",null,null,null,null,null,{"$f":"Summary!N96","v":500},{"$f":"Import!M2358","v":0},{"$f":"Import!M2361","v":0}]
[null,null,"Trans. ECR Ratio Pre and Post Stressed Event",null,null,null,null,null,{"$f":"IFERROR(I54/I55,\"\")","v":0},{"$f":"IFERROR(J54/J55,\"\")","v":""},{"$f":"IFERROR(K54/K55,\"\")","v":""}]
[]
[null,null,"Check: Total cash out flow vs cash surrender value x mass lapse shock"]
[null,null,{"$f":"IF(OR(J51<>\"\",K51<>\"\"),IF(OR(SUMPRODUCT($E$80:$J$82,$E$88:$J$90)<>$J$51,SUMPRODUCT($E$80:$J$82,$E$88:$J$90)<>$K$51),\"Cash-outflows under immediate mass lapse shock & total cash surrender x mapse lapse shock don't match. Please explain\",\"\"))","v":""}]
[]
[null,null,"Table: Total Best Estimate Liability by Category",null,"Time Restraint"]
[null,null,null,null,"Low (less than < 1 week)",null,"Medium (between 1 week and < 3 months)",null,"High (more than > 3 months)"]
[null,null,null,null,"Retail","Institutional","Retail","Institutional","Retail","Institutional","Total"]
[null,null,"Low (no economic penalty)",null,{"$f":"Import!M2362","v":0},{"$f":"Import!M2365","v":0},{"$f":"Import!M2368","v":0},{"$f":"Import!M2371","v":0},{"$f":"Import!M2374","v":0},{"$f":"Import!M2377","v":0},{"$f":"SUM(E64:J64)","v":0}]
[null,null,"Medium (less than < 20% economic penalty)",null,{"$f":"Import!M2363","v":0},{"$f":"Import!M2366","v":0},{"$f":"Import!M2369","v":0},{"$f":"Import!M2372","v":0},{"$f":"Import!M2375","v":0},{"$f":"Import!M2378","v":0},{"$f":"SUM(E65:J65)","v":0}]
[null,null,"High (more than 20% economic penalty)",null,{"$f":"Import!M2364","v":0},{"$f":"Import!M2367","v":0},{"$f":"Import!M2370","v":0},{"$f":"Import!M2373","v":0},{"$f":"Import!M2376","v":0},{"$f":"Import!M2379","v":0},0]
[null,null,null,null,{"$f":"SUM(E64:E66)","v":0},{"$f":"SUM(F64:F66)","v":0},0,0,0,0,{"$f":"SUM(K64:K66)","v":0}]
[]
[null,null,"Table: Total Account Value by Category",null,"Time Restraint"]
[null,null,null,null,"Low (less than < 1 week)",null,"Medium (between 1 week and < 3 months)",null,"High (more than > 3 months)"]
[null,null,null,null,"Retail","Institutional","Retail","Institutional","Retail","Institutional","Total"]
[null,null,"Low (no economic penalty)",null,{"$f":"Import!M2380","v":0},{"$f":"Import!M2383","v":0},{"$f":"Import!M2386","v":0},{"$f":"Import!M2389","v":0},{"$f":"Import!M2392","v":0},{"$f":"Import!M2395","v":0},{"$f":"SUM(E72:J72)","v":0}]
[null,null,"Medium (less than < 20% economic penalty)",null,{"$f":"Import!M2381","v":0},{"$f":"Import!M2384","v":0},{"$f":"Import!M2387","v":0},{"$f":"Import!M2390","v":0},{"$f":"Import!M2393","v":0},{"$f":"Import!M2396","v":0},{"$f":"SUM(E73:J73)","v":0}]
[null,null,"High (more than 20% economic penalty)",null,{"$f":"Import!M2382","v":0},{"$f":"Import!M2385","v":0},{"$f":"Import!M2388","v":0},{"$f":"Import!M2391","v":0},{"$f":"Import!M2394","v":0},{"$f":"Import!M2397","v":0},0]
[null,null,null,null,{"$f":"SUM(E72:E74)","v":0},{"$f":"SUM(F72:F74)","v":0},0,0,0,0,{"$f":"SUM(K72:K74)","v":0}]
[]
[null,null,"Table: Total Cash Surrender Value by Category",null,"Time Restraint"]
[null,null,null,null,"Low (less than < 1 week)",null,"Medium (between 1 week and < 3 months)",null,"High (more than > 3 months)"]
[null,null,null,null,"Retail","Institutional","Retail","Institutional","Retail","Institutional","Total"]
[null,null,"Low (no economic penalty)",null,{"$f":"Import!M2398","v":0},{"$f":"Import!M2401","v":0},{"$f":"Import!M2404","v":0},{"$f":"Import!M2407","v":0},{"$f":"Import!M2410","v":0},{"$f":"Import!M2413","v":0},{"$f":"SUM(E80:J80)","v":0}]
[null,null,"Medium (less than < 20% economic penalty)",null,{"$f":"Import!M2399","v":0},{"$f":"Import!M2402","v":0},{"$f":"Import!M2405","v":0},{"$f":"Import!M2408","v":0},{"$f":"Import!M2411","v":0},{"$f":"Import!M2414","v":0},{"$f":"SUM(E81:J81)","v":0}]
[null,null,"High (more than 20% economic penalty)",null,{"$f":"Import!M2400","v":0},{"$f":"Import!M2403","v":0},{"$f":"Import!M2406","v":0},{"$f":"Import!M2409","v":0},{"$f":"Import!M2412","v":0},{"$f":"Import!M2415","v":0},0]
[null,null,null,null,{"$f":"SUM(E80:E82)","v":0},{"$f":"SUM(F80:F82)","v":0},0,0,0,0,{"$f":"SUM(K80:K82)","v":0}]
[]
[null,null,"Table: Mass Lapse Shock",null,"Time Restraint"]
[null,null,null,null,"Low (less than < 1 week)",null,"Medium (between 1 week and < 3 months)",null,"High (more than > 3 months)"]
[null,null,null,null,"Retail","Institutional","Retail","Institutional","Retail","Institutional"]
[null,null,"Low (no economic penalty)",null,0.25,0.5,0.125,0.25,0,0]
[null,null,"Medium (less than < 20% economic penalty)",null,0.125,0.25,6.25E-2,0.125,0,0]
[null,null,"High (more than 20% economic penalty)",null,0,1.2500000000000001E-2,0,0,0,0]
[]
[]
[null,null,"Products Not Exposed To Lapse Risk (i.e., not lapse sensitive or lapse supported)",null,"BEL","Cash Surrender Value",null,"Total Long-Term Insurance Business Technical Provisions",null,{"$f":"'Form 4EBS'!F136","v":0}]
[null,null,{"$f":"Import!M2416","v":0},null,{"$f":"Import!M2426","v":0},{"$f":"Import!M2436","v":0},null,"Less: Long-Term Risk Margin",null,{"$f":"-'Form 4EBS'!F124","v":0}]
[null,null,{"$f":"Import!M2417","v":0},null,{"$f":"Import!M2427","v":0},{"$f":"Import!M2437","v":0},null,"LT Best Estimate Liabilities",null,{"$f":"SUM(J93:J94)","v":0}]
[null,null,{"$f":"Import!M2418","v":0},null,{"$f":"Import!M2428","v":0},{"$f":"Import!M2438","v":0}]
[null,null,{"$f":"Import!M2419","v":0},null,{"$f":"Import!M2429","v":0},{"$f":"Import!M2439","v":0},null,"LT BEL Reconcilation",null,{"$f":"J95-K67-E104","v":0}]
[null,null,{"$f":"Import!M2420","v":0},null,{"$f":"Import!M2430","v":0},{"$f":"Import!M2440","v":0}]
[null,null,{"$f":"Import!M2421","v":0},null,{"$f":"Import!M2431","v":0},{"$f":"Import!M2441","v":0}]
[null,null,{"$f":"Import!M2422","v":0},null,{"$f":"Import!M2432","v":0},{"$f":"Import!M2442","v":0}]
[null,null,{"$f":"Import!M2423","v":0},null,{"$f":"Import!M2433","v":0},{"$f":"Import!M2443","v":0}]
[null,null,{"$f":"Import!M2424","v":0},null,{"$f":"Import!M2434","v":0},{"$f":"Import!M2444","v":0}]
[null,null,{"$f":"Import!M2425","v":0},null,{"$f":"Import!M2435","v":0},{"$f":"Import!M2445","v":0}]
[null,null,"Total",null,{"$f":"IFERROR(SUM(E94:E103),\"\")","v":0},{"$f":"IFERROR(SUM(F94:F103),\"\")","v":0}]
[]
[null,null,"Checks that Total BELs and EBS Liabilities match & Cash Surrenders not captured. Explain (as per table above)"]
[null,null,{"$f":"IF(ROUND(J97,0)=0,\"\",\"Total Unreconciled EBS BEL of \"&J97&\", please explain\")","v":""},null,{"$f":"Import!M2446","v":0}]
[null,null,{"$f":"IF(F104<>\"\",IF(F104<>0,\"Please explain why surrenders are excluded in previous tables\",\"\"),\"\")","v":""},null,{"$f":"Import!M2447","v":0}]
[]
[null,null,"Source: Page 32 of","https://www.iaisweb.org/uploads/2022/11/Level-2-document-Liquidity-Metrics-as-an-ancillary-indicator.pdf"]
[]
[null,"B. UNDERWRITING SCENARIOS"]
[null,"The (re)insurer is to submit the description of three of its own underwriting scenarios and related key assumptions with the impact on the economic balance sheet"]
[]
[null,"Description",null,"Assumptions","Doc Name","Page Number","Gross Loss Impact","EBS Capital & Surplus After Gross Loss","Net Loss Impact","EBS Capital & Surplus After Net Loss"]
[null,{"$f":"Import!M2448","v":0},null,{"$f":"HYPERLINK(\"#'Attachments'!G155\",\"Attach file\")","v":"Attach file"},null,null,{"$f":"Import!M2451","v":0},{"$f":"$H$6-G116","v":0},{"$f":"Import!M2454","v":0},{"$f":"$H$6-I116","v":0}]
[null,{"$f":"Import!M2449","v":0},null,{"$f":"HYPERLINK(\"#'Attachments'!G155\",\"Attach file\")","v":"Attach file"},null,null,{"$f":"Import!M2452","v":0},{"$f":"$H$6-G117","v":0},{"$f":"Import!M2455","v":0},{"$f":"$H$6-I117","v":0}]
[null,{"$f":"Import!M2450","v":0},null,{"$f":"HYPERLINK(\"#'Attachments'!G155\",\"Attach file\")","v":"Attach file"},null,null,{"$f":"Import!M2453","v":0},{"$f":"$H$6-G118","v":0},{"$f":"Import!M2456","v":0},{"$f":"$H$6-I118","v":0}]
[]
[null,"C. RATING DOWNGRADE"]
[null,"The (re)insurer is to submit a detailed disclosure on the impact of a ratings downgrade of its Bermuda legal entity or group by TWO NOTCHES OR BELOW A-, WHICHEVER IS LOWER."]
[null,{"$f":"Import!M2457","v":0}]
[]
[]
[]
[]
[]
[null,"D. WORST-CASE ANNUAL AGGREGATE LOSS SCENARIO"]
[null,"The (re)insurer is to submit the following: (1) and (2)"]
[null,"(1) R4 above and the three other scenarios "]
[null,null,null,"Worst-case "]
[null,"R5",null,{"$f":"E16","v":0}]
[null,"Aggregate of 3 underwriting scenarios",null,{"$f":"SUM(I116:I118)","v":0}]
[null,"Total loss",null,{"$f":"SUM(D132:E133)","v":0}]
[null,null,null,null,null,"Doc Name","Page Number"]
[null,"Assumptions ",null,{"$f":"HYPERLINK(\"#'Attachments'!G155\",\"Attach file\")","v":"Attach file"}]
[]
[null,"(2) (Re)insurer-specific worst-case scenario"]
[null,"The (re)insurer is to submit a description of its own worst-case annual aggregate loss scenario and the underlying assumptions. "]
[null,"Worst-case annual aggregate loss \nscenario description",null,{"$f":"Import!M2458","v":0}]
[]
[null,"Gross loss",null,{"$f":"Import!M2459","v":0}]
[null,"Net loss",null,{"$f":"Import!M2460","v":0}]
[null,null,null,null,null,"Doc Name","Page Number"]
[null,"Underlying assumptions",null,{"$f":"HYPERLINK(\"#'Attachments'!G155\",\"Attach file\")","v":"Attach file"}]
[]
[null,"E. REVERSE STRESS TEST SCENARIO"]
[null,"The (re)insurer is to submit key assumptions and scenarios that would cause business failure as determined by a reverse stress test scenario."]
[null,"Reverse stress test scenario description",null,{"$f":"Import!M2461","v":0}]
[]
[null,"Gross loss",null,{"$f":"Import!M2462","v":0}]
[null,"Net loss",null,{"$f":"Import!M2463","v":0}]
[null,null,null,null,null,"Doc Name","Page Number"]
[null,"Underlying assumptions",null,{"$f":"HYPERLINK(\"#'Attachments'!G155\",\"Attach file\")","v":"Attach file"}]
[]
[null,"F. TECHNOLOGY RISK"]
[]
[null,"b) TECHNOLOGY RISK - (RE)INSURER OWN CYBERSECURITY AND RESILIENCE CAPABILITIES  "]
[null,"Technology Risk Guidance"]
[]
[null,"Technology Risk is a key enterprise risk that entities in the financial sectors regulated by the Authority must manage. The questionnaire below is designed to assess Technology Risk, including Information Security, Data Protection and IT or Cybersecurity. The Authority expects that the board of directors of all licensed entities will have evaluated the aforementioned risks. These risks should be managed as part of an overall Enterprise Risk Management Process. This assessment is designed to assess Technology Risk controls. The IT or Cybersecurity controls are grounded in the \"National Institute of Standards and Technology Cybersecurity Framework\" (NIST). The assessment focuses on several areas, to include: governance, policies and procedures, ongoing training, critical/sensitive asset identification, protective measures, detection of anomalous activity, documented incident response plans, and effective business recovery processes. "]
[]
[]
[]
[]
[null,"The Authority recognises that there is no “one size fits all” approach to addressing these risks, as specific business circumstances may vary greatly from entity to entity. Each entity must assess their risks, create prudent policies and procedures to mitigate known risks, and ensure that the organisation is properly trained and equipped.\n"]
[]
[]
[null,"Select one response from the drop-down list. Where required/applicable, attach the relevant document indicating the document name and identifying the applicable page numbers"]
[]
[null,"SECTION A - BUSINESS SUMMARY QUESTIONS"]
[null,"Geographical details",null,null,null,null,null,null,"Responses","Complete where prompted"]
[1,"Is the company headquartered in Bermuda",null,null,null,null,null,null,{"$f":"Import!E2464","v":"Select Yes/No"}]
[{"$f":"A173+1","v":2},"Number of users located in Bermuda",null,null,null,null,null,null,{"$f":"Import!E2465","v":"Select Amount"}]
[{"$f":"A174+1","v":3},"Number of users Globally ",null,null,null,null,null,null,{"$f":"Import!E2466","v":"Select Amount"}]
[4,"Do you have a data centre in Bermuda to host your servers",null,null,null,null,null,null,{"$f":"Import!E2467","v":"Select Yes/No"}]
[5,"Do you utilise a cloud hosting company to host your servers",null,null,null,null,null,null,{"$f":"Import!E2468","v":"Select Yes/No"}]
[6,"Does the organisation have cybersecurity insurance coverage (i.e. to cover internal risk from security incidents)",null,null,null,null,null,null,{"$f":"Import!E2469","v":"Select Yes/No"}]
[null,"Is the following data type stored/processed"]
[{"$f":"A178+1","v":7},"Do you collect/store/process personally identifiable information (PII) of your customers? examples include but are not limited to: customer name, email address, social security number",null,null,null,null,null,null,{"$f":"Import!E2470","v":"Select Yes/No"}]
[{"$f":"A180+1","v":8},"Payment card data (i.e. credit/debit card)",null,null,null,null,null,null,{"$f":"Import!E2471","v":"Select Yes/No"}]
[{"$f":"A181+1","v":9},"Is customer PII collected/stored/processed by this entity on behalf of other entities ",null,null,null,null,null,null,{"$f":"Import!E2472","v":"Select Yes/No"}]
[null,"Are the following internet facing services in place "]
[{"$f":"A182+1","v":10},"Brochureware (static content only)",null,null,null,null,null,null,{"$f":"Import!E2473","v":"Select Yes/No"}]
[{"$f":"A184+1","v":11},"Web applications",null,null,null,null,null,null,{"$f":"Import!E2474","v":"Select Yes/No"}]
[12,"Web applications that process (query, reference, capture, store, transmit) personal data or payment card data ",null,null,null,null,null,null,{"$f":"Import!E2475","v":"Select Yes/No"}]
[null,"Roles & Responsibilities"]
[{"$f":"A186+1","v":13},"Is there a designated IT Risk Manager, if not which job title holds this responsibility",null,null,null,null,null,null,{"$f":"Import!E2476","v":"Select Yes/No"},{"$f":"Import!E2477","v":"Confirm role holder's name"}]
[{"$f":"A188+1","v":14},"Is there a designated IT Security Manager, if not which job title holds this responsibility",null,null,null,null,null,null,{"$f":"Import!E2478","v":"Select Yes/No"},{"$f":"Import!E2479","v":"Confirm role holder's name"}]
[{"$f":"A189+1","v":15},"Is there a designated IT Disaster Recovery Manager, if not which job title holds this responsibility",null,null,null,null,null,null,{"$f":"Import!E2480","v":"Select Yes/No"},{"$f":"Import!E2481","v":"Confirm role holder's name"}]
[{"$f":"A190+1","v":16},"Is there a designated Business Continuity Manager (BCP) in place, if not which job title holds this responsibility",null,null,null,null,null,null,{"$f":"Import!E2482","v":"Select Yes/No"},{"$f":"Import!E2483","v":"Confirm role holder's name"}]
[{"$f":"A191+1","v":17},"Does the organisation have a designated Data Privacy Officer",null,null,null,null,null,null,{"$f":"Import!E2484","v":"Select Yes/No"},{"$f":"Import!E2485","v":"Confirm role holder's name"}]
[{"$f":"A192+1","v":18},"Is there an annual IT audit plan in place i.e. detailing any IT audit activity for the year ",null,null,null,null,null,null,{"$f":"Import!E2486","v":"Select Yes/No"},{"$f":"Import!E2487","v":"Date of last internal/external IT audit"}]
[]
[null,"SECTION B - NIST CONTROL SUMMARY - Answer YES/NO"]
[null,"Identify",null,null,null,null,null,null,"Responses"]
[1,"Is there a Cyber Risk Management Programme in place (i.e. assessing all IT risk to include IT Security Risk)",null,null,null,null,null,null,{"$f":"Import!E2488","v":"Select Yes/No"}]
[{"$f":"A197+1","v":2},"Is the status of the Cyber Risk Management Programme communicated to the Senior Mgt. team & the Board of Directors on a regular basis",null,null,null,null,null,null,{"$f":"Import!E2489","v":"Select Yes/No"}]
[3,"Has a Cyber Risk Policy (or Cybersecurity Policy) been approved by the Board and is annually updated",null,null,null,null,null,null,{"$f":"Import!E2490","v":"Select Yes/No"},"Specify name of relevant document"]
[4,"Are the roles and responsibilities of each of the three lines of defence clearly defined",null,null,null,null,null,null,{"$f":"Import!E2491","v":"Select Yes/No"}]
[5,"Has the organisation performed an assessment of compliance against Data Protection regulatory requirements ",null,null,null,null,null,null,{"$f":"Import!E2492","v":"Select Yes/No"}]
[6,"Asset Management - are physical devices, information systems, and data within the organisation inventoried",null,null,null,null,null,null,{"$f":"Import!E2493","v":"Select Yes/No"}]
[7,"Has the organisation classified all data ",null,null,null,null,null,null,{"$f":"Import!E2494","v":"Select Yes/No"}]
[8,"Has a third-party security risk assessment been completed during the past year? i.e. to assess IT risks arising from third parties",null,null,null,null,null,null,{"$f":"Import!E2495","v":"Select Yes/No"}]
[null,"Protect"]
[9,"Is data that is classified as critical, encrypted in transit and at rest  ",null,null,null,null,null,null,{"$f":"Import!E2496","v":"Select Yes/No"}]
[{"$f":"A206+1","v":10},"Is there a formal process to ensure maintenance of software and hardware (i.e., patching & managing end-of-life technologies) ",null,null,null,null,null,null,{"$f":"Import!E2497","v":"Select Yes/No"},"Specify name of relevant document"]
[11,"Is there a Logical Access Management Standard defining how systems access is verified, managed, revoked, and audited ",null,null,null,null,null,null,{"$f":"Import!E2498","v":"Select Yes/No"},"Specify name of relevant document"]
[12,"Do all staff complete cybersecurity training annually",null,null,null,null,null,null,{"$f":"Import!E2499","v":"Select Yes/No"}]
[13,"Has a penetration test been completed in the last year",null,null,null,null,null,null,{"$f":"Import!E2500","v":"Select Yes/No"}]
[14,"Has the company segregated the enterprise network into multiple, separate trust zones",null,null,null,null,null,null,{"$f":"Import!E2501","v":"Select Yes/No"},"Specify name of relevant document"]
[15,"Is there a process detailing IT service management controls i.e. change, release & configuration management",null,null,null,null,null,null,{"$f":"Import!E2502","v":"Select Yes/No"}]
[16,"Does the company document and enforce security configuration standards of all network devices",null,null,null,null,null,null,{"$f":"Import!E2503","v":"Select Yes/No"}]
[null,"Detect"]
[{"$f":"A213+1","v":17},"Is there a process enabling the review of threat intelligence & vulnerability alerting data",null,null,null,null,null,null,{"$f":"Import!E2504","v":"Select Yes/No"}]
[{"$f":"A215+1","v":18},"Is there a process in place to monitor information systems and assets to identify cybersecurity events ",null,null,null,null,null,null,{"$f":"Import!E2505","v":"Select Yes/No"}]
[19,"The company centrally stores & archives security event logs",null,null,null,null,null,null,{"$f":"Import!E2506","v":"Select Yes/No"}]
[null,"Respond"]
[{"$f":"A217+1","v":20},"Is there a documented security incident response plan in place, including internal & external communications & crisis management ",null,null,null,null,null,null,{"$f":"Import!E2507","v":"Select Yes/No"},"Specify name of relevant document"]
[{"$f":"A219+1","v":21},"In the event of a major incident, is the company contracted to a \"4th line\" IT security expert service (for example a Managed Security Services Provider - MSSP)  ",null,null,null,null,null,null,{"$f":"Import!E2508","v":"Select Yes/No"}]
[null,"Recover"]
[{"$f":"A220+1","v":22},"Has a test of the Business Continuity and IT Disaster Recovery plans been performed during the past 12 months ",null,null,null,null,null,null,{"$f":"Import!E2509","v":"Select Yes/No"}]
[{"$f":"A222+1","v":23},"Has the organisation been subject to a significant cyber incident during the past 12 months",null,null,null,null,null,null,{"$f":"Import!E2510","v":"Select Yes/No"}]
[]
[null,"SECTION C - Technical Security Controls - Answer YES/NO"]
[null,"Technical controls summary"]
[1,"Antivirus software is installed on all Microsoft Operating System endpoints",null,null,null,null,null,null,{"$f":"Import!E2511","v":"Select Yes/No"}]
[{"$f":"A227+1","v":2},"Is there an endpoint Advanced Persistent Threat (APT) control in place ",null,null,null,null,null,null,{"$f":"Import!E2512","v":"Select Yes/No"}]
[3,"Are Data Loss Prevention (DLP) controls in place i.e.: to prevent unauthorized data leaving the enterprise\n\n",null,null,null,null,null,null,{"$f":"Import!E2513","v":"Select Yes/No"}]
[4,"Is INTERNAL vulnerability scanning conducted (& what is the frequency)",null,null,null,null,null,null,{"$f":"Import!E2514","v":"Select Yes/No"},{"$f":"Import!E2515","v":"Select Frequency"}]
[{"$f":"A230+1","v":5},"Is EXTERNAL vulnerability scanning conducted (& what is the frequency)",null,null,null,null,null,null,{"$f":"Import!E2516","v":"Select Yes/No"},{"$f":"Import!E2517","v":"Select Frequency"}]
[{"$f":"A231+1","v":6},"Are there regular (6 monthly minimum) firewall ruleset reviews",null,null,null,null,null,null,{"$f":"Import!E2518","v":"Select Yes/No"}]
[7,"Is there a network perimeter Intrusion Detection or Prevention (IDS/IPS) control",null,null,null,null,null,null,{"$f":"Import!E2519","v":"Select Yes/No"}]
[8,"Is there DDOS defence in place for internet gateways",null,null,null,null,null,null,{"$f":"Import!E2520","v":"Select Yes/No"}]
[]
[]
[null,null,null,null,null,null,null,null,null,null,null,"Select all from drop down list"]
[null,null,null,null,null,null,null,null,null,null,null,"PCI - payment Card Industry Standard"]
[null,null,null,null,null,null,null,null,null,null,null,"GDPR - General Data Protection Regulation "]
[null,null,null,null,null,null,null,null,null,null,null,"EU U.S. - Privacy Shield Framework "]
[null,null,null,null,null,null,null,null,null,null,null,"PIPA - Personal Information Privacy Act"]
[null,null,null,null,null,null,null,null,null,null,null,"HIPAA - Health Insurance Portability and Accountability Act"]
[null,null,null,null,null,null,null,null,null,null,null,"PIPEDA - Federal Personal Information Protection and Electronic Documents Act"]
[null,null,null,null,null,null,null,null,null,null,null,"SOLVENCY II"]
[null,null,null,null,null,null,null,null,null,null,null,"SEC - U.S. Securities and Exchange Commission"]
[null,null,null,null,null,null,null,null,null,null,null,"SOX - Sarbanes Oxley Act"]
[null,null,null,null,null,null,null,null,null,null,null,"(FISMA) Federal Information Security Management Act of 2002 "]
[null,null,null,null,null,null,null,null,null,null,null,"(GLBA) Gramm Leach Bliley Act"]
[null,null,null,null,null,null,null,null,null,null,null,"other"]
[]
[null,null,null,null,null,null,null,null,null,null,null,"Select all from drop down list"]
[null,null,null,null,null,null,null,null,null,null,null,"COBIT - Control Objectives for Information and Related Technologies"]
[null,null,null,null,null,null,null,null,null,null,null,"NIST - National Institute of Standards and Technology"]
[null,null,null,null,null,null,null,null,null,null,null,"ISO27001 - Information Security Management System "]
[null,null,null,null,null,null,null,null,null,null,null,"ISO27002 - Information Security Standard  "]
[null,null,null,null,null,null,null,null,null,null,null,"ITIL - Information Technology Infrastructure Library"]

{"sheet":"Schedule V(f)","index":45,"n_rows":72,"n_cols":10,"rows_kept":72,"cut":false,"hidden":false,"merged":[[0,2,0,8],[1,2,1,9],[8,2,8,9],[35,2,35,9],[11,2,11,3],[12,2,12,3],[13,2,13,3],[14,2,14,3],[15,2,15,3],[16,2,16,3],[28,2,28,3],[17,2,17,3],[18,2,18,3],[19,2,19,3],[20,2,20,3],[21,2,21,3],[29,2,29,3],[30,2,30,3],[9,2,9,3],[9,5,9,7],[10,5,10,7],[11,5,11,7],[12,5,12,7],[13,5,13,7],[14,5,14,7],[15,5,15,7],[23,2,23,3],[24,2,24,3],[25,2,25,3],[26,2,26,3],[27,2,27,3],[16,5,16,7],[17,5,17,7],[18,5,18,7],[19,5,19,7],[20,5,20,7],[22,2,22,3],[21,5,21,7],[28,5,28,7],[29,5,29,7],[30,5,30,7],[22,5,22,7],[23,5,23,7],[24,5,24,7],[25,5,25,7],[26,5,26,7],[27,5,27,7]]}
[null,null,"SCHEDULE OF LONG-TERM INSURANCE - MODIFIED COINSURANCE ARRANGEMENTS (ON A CONSOLIDATED BASIS)",null,null,null,null,null,null,{"$f":"HYPERLINK(\"#'Index'!A1\",\"Return to Index\")","v":"Return to Index"}]
[null,null,"FOR DISCLOSURE PURPOSES ONLY"]
[]
[null,null,{"$f":"+'Insurer Information'!C7","v":"Enter Company Name"}]
[null,null,{"$f":" TEXT('Insurer Information'!C3,\"D MMMM YYYY\")","v":"31 December 2023"},null,null,null,null,null,null,"SCHEDULE V(f)"]
[null,null,{"$f":"+'Form 4EBS'!B4","v":"Expressed in  ['000s]"}]
[]
[]
[null,null,"Details of Modified Coinsurance Arrangements "]
[null,null,"Name of Ceding Insurer",null,null,"Coverage Type",null,null,null,"Reserve Amount"]
[null,null,null,null,null,"Pick from Drop Down"]
[null,1,{"$f":"Import!E2522","v":0},null,null,{"$f":"Import!E2537","v":"Select from Drop-Down"},null,null,null,{"$f":"Import!E2552","v":0}]
[null,2,{"$f":"Import!E2523","v":0},null,null,{"$f":"Import!E2538","v":"Select from Drop-Down"},null,null,null,{"$f":"Import!E2553","v":0}]
[null,3,{"$f":"Import!E2524","v":0},null,null,{"$f":"Import!E2539","v":"Select from Drop-Down"},null,null,null,{"$f":"Import!E2554","v":0}]
[null,4,{"$f":"Import!E2525","v":0},null,null,{"$f":"Import!E2540","v":"Select from Drop-Down"},null,null,null,{"$f":"Import!E2555","v":0}]
[null,5,{"$f":"Import!E2526","v":0},null,null,{"$f":"Import!E2541","v":"Select from Drop-Down"},null,null,null,{"$f":"Import!E2556","v":0}]
[null,6,{"$f":"Import!E2527","v":0},null,null,{"$f":"Import!E2542","v":"Select from Drop-Down"},null,null,null,{"$f":"Import!E2557","v":0}]
[null,7,{"$f":"Import!E2528","v":0},null,null,{"$f":"Import!E2543","v":"Select from Drop-Down"},null,null,null,{"$f":"Import!E2558","v":0}]
[null,8,{"$f":"Import!E2529","v":0},null,null,{"$f":"Import!E2544","v":"Select from Drop-Down"},null,null,null,{"$f":"Import!E2559","v":0}]
[null,9,{"$f":"Import!E2530","v":0},null,null,{"$f":"Import!E2545","v":"Select from Drop-Down"},null,null,null,{"$f":"Import!E2560","v":0}]
[null,10,{"$f":"Import!E2531","v":0},null,null,{"$f":"Import!E2546","v":"Select from Drop-Down"},null,null,null,{"$f":"Import!E2561","v":0}]
[null,11,{"$f":"Import!E2532","v":0},null,null,{"$f":"Import!E2547","v":"Select from Drop-Down"},null,null,null,{"$f":"Import!E2562","v":0}]
[null,12,{"$f":"Import!E2533","v":0},null,null,{"$f":"Import!E2548","v":"Select from Drop-Down"},null,null,null,{"$f":"Import!E2563","v":0}]
[null,13,{"$f":"Import!E2534","v":0},null,null,{"$f":"Import!E2549","v":"Select from Drop-Down"},null,null,null,{"$f":"Import!E2564","v":0}]
[null,14,{"$f":"Import!E2535","v":0},null,null,{"$f":"Import!E2550","v":"Select from Drop-Down"},null,null,null,{"$f":"Import!E2565","v":0}]
[null,15,{"$f":"Import!E2536","v":0},null,null,{"$f":"Import!E2551","v":"Select from Drop-Down"},null,null,null,{"$f":"Import!E2566","v":0}]
[null,16]
[null,17]
[null,18]
[null,19]
[null,20]
[null,null,null,null,null,null,null,null,null,{"$f":"SUM(J12:J31)","v":0}]
[]
[]
[]
[null,null,"Aggregate Asset Allocation (Book Value)"]
[null,null,null,"Investment Type",null,"Affiliated Cedant",null,"Non-affiliate Cedant"]
[]
[null,null,1,"Cash",null,{"$f":"Import!E2568","v":0},null,{"$f":"Import!E2582","v":0}]
[null,null,2,"Corporate bonds",null,{"$f":"Import!E2569","v":0},null,{"$f":"Import!E2583","v":0}]
[null,null,3,"Sovereign bonds",null,{"$f":"Import!E2570","v":0},null,{"$f":"Import!E2584","v":0}]
[null,null,4,"Mortgage-backed securities",null,{"$f":"Import!E2571","v":0},null,{"$f":"Import!E2585","v":0}]
[null,null,5,"Mortgage loans",null,{"$f":"Import!E2572","v":0},null,{"$f":"Import!E2586","v":0}]
[null,null,6,"Equities",null,{"$f":"Import!E2573","v":0},null,{"$f":"Import!E2587","v":0}]
[null,null,7,"Other (provide description)",null,{"$f":"Import!E2574","v":0},null,{"$f":"Import!E2588","v":0}]
[null,null,8,"Other (provide description)",null,{"$f":"Import!E2575","v":0},null,{"$f":"Import!E2589","v":0}]
[null,null,9,"Other (provide description)",null,{"$f":"Import!E2576","v":0},null,{"$f":"Import!E2590","v":0}]
[null,null,10,"Other (provide description)",null,{"$f":"Import!E2577","v":0},null,{"$f":"Import!E2591","v":0}]
[null,null,11,"Other (provide description)",null,{"$f":"Import!E2578","v":0},null,{"$f":"Import!E2592","v":0}]
[null,null,12,"Other (provide description)",null,{"$f":"Import!E2579","v":0},null,{"$f":"Import!E2593","v":0}]
[null,null,13,"Other (provide description)",null,{"$f":"Import!E2580","v":0},null,{"$f":"Import!E2594","v":0}]
[null,null,14,"Total",null,{"$f":"SUM(F39:F51)","v":0},null,{"$f":"SUM(H39:H51)","v":0}]
[]
[]
[]
[null,null,null,null,null,"Select from Drop-Down"]
[null,null,null,null,null,"Mortality "]
[null,null,null,null,null,"Critical Illness"]
[null,null,null,null,null,"Longevity (Immediate pay-out annutities)"]
[null,null,null,null,null,"Longevity (Deferred pay-out annutities)"]
[null,null,null,null,null,"Annuities certain only"]
[null,null,null,null,null,"Deferred accumulation annuities"]
[null,null,null,null,null,"Disability Income: Active lives with premium guarantee"]
[null,null,null,null,null,"Disability Income: Actives lives for other accident and sickness"]
[null,null,null,null,null,"Disability Income: Claims in payment "]
[null,null,null,null,null,"Disability Income: Claims in payment for other accident and sickness"]
[null,null,null,null,null,"Group Life"]
[null,null,null,null,null,"Group Disability"]
[null,null,null,null,null,"Group Health"]
[null,null,null,null,null,"Stop Loss"]
[null,null,null,null,null,"Rider"]
[null,null,null,null,null,"Variable Annuities"]

{"sheet":"Schedule V(g)","index":46,"n_rows":57,"n_cols":7,"rows_kept":57,"cut":false,"hidden":false,"merged":[[0,2,0,5],[1,2,1,4],[2,2,2,5],[5,2,6,6]]}
[null,null,"SCHEDULE OF RISK MANAGEMENT - FINANCIAL STATEMENT RECONCILIATION",null,null,null,{"$f":"HYPERLINK(\"#'Index'!A1\",\"Return to Index\")","v":"Return to Index"}]
[null,null,{"$f":"'Insurer Information'!C7","v":"Enter Company Name"}]
[null,null,{"$f":"\"For the year ending \"& TEXT('Insurer Information'!C3,\"D MMMM YYYY\")","v":"For the year ending 31 December 2023"}]
[null,null,{"$f":"\"expressed in\"& IF(CONFIGURATION!$B$12>1,\" ['\"&MID(CONFIGURATION!$B$12,2,LEN(CONFIGURATION!$B$12))&\"s]\",\"\")&\" \"&'Form 4EBS'!C4","v":"expressed in ['000s] United States Dollars"},null,null,null,"SCHEDULE V(g)"]
[]
[null,null,"A reconciliation of amounts reported in total assets, total liabilities, net income, and capital and surplus comprised of any adjustments applied to the General Accepted Accounting Principles/International Financial Reporting Standards to Form 1SFS and from Form 1SFS to Form 4EBS"]
[]
[]
[null,null,"Adjustment Description","Assets","Liabilities","Net Income","Capital and Surplus"]
[null,null,"GAAP/IFRS Financial Statements ",{"$f":"Import!E2597","v":0},{"$f":"Import!E2608","v":0},{"$f":"Import!E2619","v":0},{"$f":"Import!E2630","v":0}]
[null,1,"Prepaid Expenses",{"$f":"Import!E2598","v":0},{"$f":"Import!E2609","v":0},{"$f":"Import!E2620","v":0},{"$f":"D11-E11","v":0}]
[null,{"$f":"B11+1","v":2},"Goodwill",{"$f":"Import!E2599","v":0},{"$f":"Import!E2610","v":0},{"$f":"Import!E2621","v":0},0]
[null,3,"Intangible Assets",{"$f":"Import!E2600","v":0},{"$f":"Import!E2611","v":0},{"$f":"Import!E2622","v":0},0]
[null,4,"(Enter other adjustments from Financials Statements to Form 1SFS)",{"$f":"Import!E2601","v":0},{"$f":"Import!E2612","v":0},{"$f":"Import!E2623","v":0},0]
[null,5,"(Enter other adjustments from Financials Statements to Form 1SFS)",{"$f":"Import!E2602","v":0},{"$f":"Import!E2613","v":0},{"$f":"Import!E2624","v":0},0]
[null,6,"(Enter other adjustments from Financials Statements to Form 1SFS)",{"$f":"Import!E2603","v":0},{"$f":"Import!E2614","v":0},{"$f":"Import!E2625","v":0},0]
[null,7,"(Enter other adjustments from Financials Statements to Form 1SFS)",{"$f":"Import!E2604","v":0},{"$f":"Import!E2615","v":0},{"$f":"Import!E2626","v":0},0]
[null,8,"(Enter other adjustments from Financials Statements to Form 1SFS)",{"$f":"Import!E2605","v":0},{"$f":"Import!E2616","v":0},{"$f":"Import!E2627","v":0},0]
[null,9,"(Enter other adjustments from Financials Statements to Form 1SFS)",{"$f":"Import!E2606","v":0},{"$f":"Import!E2617","v":0},{"$f":"Import!E2628","v":0},0]
[null,10,"(Enter other adjustments from Financials Statements to Form 1SFS)",{"$f":"Import!E2607","v":0},{"$f":"Import!E2618","v":0},{"$f":"Import!E2629","v":0},0]
[null,null,{"$f":"IF('Insurer Information'!$C$2=\"IFRS\",\"Form 1ASFS\",\"Form 1SFS\")","v":"Form 1SFS"},{"$f":"SUM(D10:D20)","v":0},{"$f":"SUM(E10:E20)","v":0},{"$f":"SUM(F10:F20)","v":0},{"$f":"SUM(G10:G20)","v":0}]
[]
[null,null,null,{"$f":"IF(D24=\"TRUE\",HYPERLINK(\"#'Form 1SFS'!M100\",\"TRUE\"),HYPERLINK(\"#'Form 1SFS'!M100\",\"FALSE\"))","v":"TRUE"},{"$f":"IF(E24=\"TRUE\",HYPERLINK(\"#'Form 1SFS'!M194\",\"TRUE\"),HYPERLINK(\"#'Form 1SFS'!M194\",\"FALSE\"))","v":"TRUE"},null,{"$f":"IF(G24=\"TRUE\",HYPERLINK(\"#'Form 1SFS'!M198\",\"TRUE\"),HYPERLINK(\"#'Form 1SFS'!M198\",\"FALSE\"))","v":"TRUE"}]
[null,null,null,{"$f":"IF('Insurer Information'!$C$2=\"IFRS\",IF(ROUND(D21-('Form 1ASFS'!E88+'Form 1ASFS'!I88),0)=0,\"TRUE\",\"FALSE\"),\nIF(ROUND((D21-IF('Form 1SFS'!K100=0,('Form 1SFS'!F100+'Form 1SFS'!H100),'Form 1SFS'!K100)),0)=0,\"TRUE\",\"FALSE\"))","v":"TRUE"},{"$f":"IF('Insurer Information'!$C$2=\"IFRS\",IF(ROUND(E21-('Form 1ASFS'!E138+'Form 1ASFS'!I138),0)=0,\"TRUE\",\"FALSE\"),\nIF(ROUND((E21-IF('Form 1SFS'!K194=0,('Form 1SFS'!F194+'Form 1SFS'!H194),'Form 1SFS'!K194)),0)=0,\"TRUE\",\"FALSE\"))","v":"TRUE"},null,{"$f":"IF('Insurer Information'!$C$2=\"IFRS\",IF(ROUND(G21-('Form 1ASFS'!E142+'Form 1ASFS'!I142),0)=0,\"TRUE\",\"FALSE\"),\nIF(ROUND((G21-IF('Form 1SFS'!K198=0,('Form 1SFS'!F198+'Form 1SFS'!H198),'Form 1SFS'!K198)),0)=0,\"TRUE\",\"FALSE\"))","v":"TRUE"}]
[null,null,null,{"$f":"IF('Insurer Information'!$C$2=\"IFRS\",ROUND(D21-('Form 1ASFS'!E88+'Form 1ASFS'!I88),0),\nROUND(D21-IF('Form 1SFS'!K100=0,('Form 1SFS'!F100+'Form 1SFS'!H100),'Form 1SFS'!K100),0))","v":0},{"$f":"IF('Insurer Information'!$C$2=\"IFRS\",ROUND(E21-('Form 1ASFS'!E138+'Form 1ASFS'!I138),0),\nROUND(E21-IF('Form 1SFS'!K194=0,('Form 1SFS'!F194+'Form 1SFS'!H194),'Form 1SFS'!K194),0))","v":0},null,{"$f":"IF('Insurer Information'!$C$2=\"IFRS\",ROUND(G21-('Form 1ASFS'!E142+'Form 1ASFS'!I142),0),\nROUND(G21-IF('Form 1SFS'!K198=0,('Form 1SFS'!F198+'Form 1SFS'!H198),'Form 1SFS'!K198),0))","v":0}]
[]
[null,null,null,{"$f":"IF(D23=\"False\",\"Does not equal Form 1SFS Line 15\",\"\")","v":""},{"$f":"IF(E23=\"False\",\"Does not equal Form 1SFS Line 39\",\"\")","v":""},null,{"$f":"IF(G23=\"False\",\"Does not equal Form 1SFS Line 40\",\"\")","v":""}]
[]
[null,null,"Adjustment Description","Assets","Liabilities","Net Income","Capital and Surplus"]
[null,null,{"$f":"IF('Insurer Information'!$C$2=\"IFRS\",\"Form 1ASFS\",\"Form 1SFS\")","v":"Form 1SFS"},{"$f":"IF('Insurer Information'!$C$2=\"IFRS\",'Form 1ASFS'!E88+'Form 1ASFS'!I88,\nIF('Form 1SFS'!K100=0,('Form 1SFS'!F100+'Form 1SFS'!H100),'Form 1SFS'!K100))","v":0},{"$f":"IF('Insurer Information'!$C$2=\"IFRS\",'Form 1ASFS'!E138+'Form 1ASFS'!I138,\nIF('Form 1SFS'!K194=0,('Form 1SFS'!F194+'Form 1SFS'!H194),'Form 1SFS'!K194))","v":0},{"$f":"IF('Insurer Information'!$C$2=\"IFRS\",'Form 2ASFS'!E52+'Form 2ASFS'!I52,\nIF('Form 2SFS'!M115=0,('Form 2SFS'!E115+'Form 2SFS'!I115),'Form 2SFS'!M115))","v":0},{"$f":"IF('Insurer Information'!$C$2=\"IFRS\",'Form 1ASFS'!E142+'Form 1ASFS'!I142,\nIF('Form 1SFS'!K198=0,('Form 1SFS'!F198+'Form 1SFS'!H198),'Form 1SFS'!K198))","v":0}]
[null,1,"Gross Loss and Loss Expense Provision",{"$f":"Import!E2632","v":0},{"$f":"Import!E2651","v":0},{"$f":"Import!E2670","v":0},{"$f":"D31-E31","v":0}]
[null,{"$f":"B31+1","v":2},"Gross Premium Provisions",{"$f":"Import!E2633","v":0},{"$f":"Import!E2652","v":0},{"$f":"Import!E2671","v":0},0]
[null,{"$f":"B32+1","v":3},"Reinsurance Recoverables",{"$f":"Import!E2634","v":0},{"$f":"Import!E2653","v":0},{"$f":"Import!E2672","v":0},0]
[null,4,"Risk Margin",{"$f":"Import!E2635","v":0},{"$f":"Import!E2654","v":0},{"$f":"Import!E2673","v":0},0]
[null,5,"Contingent Liabilities",{"$f":"Import!E2636","v":0},{"$f":"Import!E2655","v":0},{"$f":"Import!E2674","v":0},0]
[null,6,"Goodwill",{"$f":"Import!E2637","v":0},{"$f":"Import!E2656","v":0},{"$f":"Import!E2675","v":0},0]
[null,7,"Deferred Taxes Valuation",{"$f":"Import!E2638","v":0},{"$f":"Import!E2657","v":0},{"$f":"Import!E2676","v":0},0]
[null,8,"Quoted Investments",{"$f":"Import!E2639","v":0},{"$f":"Import!E2658","v":0},{"$f":"Import!E2677","v":0},0]
[null,9,"Unquoted Investments",{"$f":"Import!E2640","v":0},{"$f":"Import!E2659","v":0},{"$f":"Import!E2678","v":0},0]
[null,10,"Investments in affiliates",{"$f":"Import!E2641","v":0},{"$f":"Import!E2660","v":0},{"$f":"Import!E2679","v":0},0]
[null,11,"Real Estate ",{"$f":"Import!E2642","v":0},{"$f":"Import!E2661","v":0},{"$f":"Import!E2680","v":0},0]
[null,12,"Off Balance Sheet Instruments approved as statutory capital",{"$f":"Import!E2643","v":0},{"$f":"Import!E2662","v":0},{"$f":"Import!E2681","v":0},0]
[null,13,"Debt Instruments approved as statutory Capital ",{"$f":"Import!E2644","v":0},{"$f":"Import!E2663","v":0},{"$f":"Import!E2682","v":0},0]
[null,14,"Other Intangible Assets (Specify)",{"$f":"Import!E2645","v":0},{"$f":"Import!E2664","v":0},{"$f":"Import!E2683","v":0},0]
[null,15,"(Enter other adjustments from 1SFS to Form 4EBS)",{"$f":"Import!E2646","v":0},{"$f":"Import!E2665","v":0},{"$f":"Import!E2684","v":0},0]
[null,16,"(Enter other adjustments from 1SFS to Form 4EBS)",{"$f":"Import!E2647","v":0},{"$f":"Import!E2666","v":0},{"$f":"Import!E2685","v":0},0]
[null,17,"(Enter other adjustments from 1SFS to Form 4EBS)",{"$f":"Import!E2648","v":0},{"$f":"Import!E2667","v":0},{"$f":"Import!E2686","v":0},0]
[null,18,"(Enter other adjustments from 1SFS to Form 4EBS)",null,null,null,0]
[null,19,"(Enter other adjustments from 1SFS to Form 4EBS)",null,null,null,0]
[null,20,"(Enter other adjustments from 1SFS to Form 4EBS)",null,null,null,0]
[null,null,"Form 4 EBS",{"$f":"SUM(D30:D50)","v":0},{"$f":"SUM(E30:E50)","v":0},{"$f":"SUM(F30:F50)","v":0},{"$f":"SUM(G30:G50)","v":0}]
[]
[null,null,null,{"$f":"IF(D54=\"TRUE\",HYPERLINK(\"#'Form 4EBS'!F93\",\"TRUE\"),HYPERLINK(\"#'Form 4EBS'!F93\",\"FALSE\"))","v":"TRUE"},{"$f":"IF(E54=\"TRUE\",HYPERLINK(\"#'Form 4EBS'!F180\",\"TRUE\"),HYPERLINK(\"#'Form 4EBS'!F180\",\"FALSE\"))","v":"TRUE"},null,{"$f":"IF(G54=\"TRUE\",HYPERLINK(\"#'Form 4EBS'!F184\",\"TRUE\"),HYPERLINK(\"#'Form 4EBS'!F184\",\"FALSE\"))","v":"TRUE"}]
[null,null,null,{"$f":"IF(ROUND((D51-'Form 4EBS'!F93),0)=0,\"TRUE\",\"FALSE\")","v":"TRUE"},{"$f":"IF(ROUND((E51-'Form 4EBS'!F180),0)=0,\"TRUE\",\"FALSE\")","v":"TRUE"},null,{"$f":"IF(ROUND((G51-'Form 4EBS'!F184),0)=0,\"TRUE\",\"FALSE\")","v":"TRUE"}]
[null,null,null,{"$f":"ROUND(D51-'Form 4EBS'!F93,0)","v":0},{"$f":"ROUND(E51-'Form 4EBS'!F180,0)","v":0},null,{"$f":"ROUND(G51-'Form 4EBS'!F184,0)","v":0}]
[]
[null,null,null,{"$f":"IF(D53=\"False\",\"Does not equal Form 4EBS Line 15\",\"\")","v":""},{"$f":"IF(E53=\"False\",\"Does not equal Form 4EBS Line 39\",\"\")","v":""},null,{"$f":"IF(G53=\"False\",\"Does not equal Form 4EBS Line 40\",\"\")","v":""}]

{"sheet":"Schedule V(k)","index":47,"n_rows":58,"n_cols":12,"rows_kept":58,"cut":false,"hidden":false,"merged":[[2,1,2,2]]}
[null,null,"Details of Deposit Asset and Liabilities",null,null,null,null,null,null,null,null,{"$f":"HYPERLINK(\"#'Index'!A1\",\"Return to Index\")","v":"Return to Index"}]
[null,{"$f":"+'Insurer Information'!C7","v":"Enter Company Name"}]
[null,{"$f":" TEXT('Insurer Information'!C3,\"D MMMM YYYY\")","v":"31 December 2023"},null,null,{"$f":"Import!E2708","v":0},null,"Enter Number of Rows Required",null,null,null,null,"SCHEDULE V(k)"]
[null,{"$f":"+'Form 4EBS'!B4","v":"Expressed in  ['000s]"}]
[null,null,null,null,"(A)","(B)","(C)","(D)","(E)","(F)","(G)","(H)"]
[null,null,"Name of Exposure",null,"Lines of Business Written","Assets in Trust","Other Collateral","GPW for the Period","NPW for the Period","Limits/Maximum Exposure","Limits at \n99.0 TvaR","Unlimited Exposure Details"]
[]
[null,1,{"$f":"Import!E2709","v":0},null,{"$f":"Import!E2734","v":0},{"$f":"Import!E2759","v":0},{"$f":"Import!E2785","v":0},{"$f":"Import!E2811","v":0},{"$f":"Import!E2837","v":0},{"$f":"Import!E2863","v":0},{"$f":"Import!E2889","v":0},{"$f":"Import!E2915","v":0}]
[null,{"$f":"B8+1","v":2},{"$f":"Import!E2710","v":0},null,{"$f":"Import!E2735","v":0},{"$f":"Import!E2760","v":0},{"$f":"Import!E2786","v":0},{"$f":"Import!E2812","v":0},{"$f":"Import!E2838","v":0},{"$f":"Import!E2864","v":0},{"$f":"Import!E2890","v":0},{"$f":"Import!E2916","v":0}]
[null,{"$f":"B9+1","v":3},{"$f":"Import!E2711","v":0},null,{"$f":"Import!E2736","v":0},{"$f":"Import!E2761","v":0},{"$f":"Import!E2787","v":0},{"$f":"Import!E2813","v":0},{"$f":"Import!E2839","v":0},{"$f":"Import!E2865","v":0},{"$f":"Import!E2891","v":0},{"$f":"Import!E2917","v":0}]
[null,4,{"$f":"Import!E2712","v":0},null,{"$f":"Import!E2737","v":0},{"$f":"Import!E2762","v":0},{"$f":"Import!E2788","v":0},{"$f":"Import!E2814","v":0},{"$f":"Import!E2840","v":0},{"$f":"Import!E2866","v":0},{"$f":"Import!E2892","v":0},{"$f":"Import!E2918","v":0}]
[null,5,{"$f":"Import!E2713","v":0},null,{"$f":"Import!E2738","v":0},{"$f":"Import!E2763","v":0},{"$f":"Import!E2789","v":0},{"$f":"Import!E2815","v":0},{"$f":"Import!E2841","v":0},{"$f":"Import!E2867","v":0},{"$f":"Import!E2893","v":0},{"$f":"Import!E2919","v":0}]
[null,6,{"$f":"Import!E2714","v":0},null,{"$f":"Import!E2739","v":0},{"$f":"Import!E2764","v":0},{"$f":"Import!E2790","v":0},{"$f":"Import!E2816","v":0},{"$f":"Import!E2842","v":0},{"$f":"Import!E2868","v":0},{"$f":"Import!E2894","v":0},{"$f":"Import!E2920","v":0}]
[null,7,{"$f":"Import!E2715","v":0},null,{"$f":"Import!E2740","v":0},{"$f":"Import!E2765","v":0},{"$f":"Import!E2791","v":0},{"$f":"Import!E2817","v":0},{"$f":"Import!E2843","v":0},{"$f":"Import!E2869","v":0},{"$f":"Import!E2895","v":0},{"$f":"Import!E2921","v":0}]
[null,8,{"$f":"Import!E2716","v":0},null,{"$f":"Import!E2741","v":0},{"$f":"Import!E2766","v":0},{"$f":"Import!E2792","v":0},{"$f":"Import!E2818","v":0},{"$f":"Import!E2844","v":0},{"$f":"Import!E2870","v":0},{"$f":"Import!E2896","v":0},{"$f":"Import!E2922","v":0}]
[null,9,{"$f":"Import!E2717","v":0},null,{"$f":"Import!E2742","v":0},{"$f":"Import!E2767","v":0},{"$f":"Import!E2793","v":0},{"$f":"Import!E2819","v":0},{"$f":"Import!E2845","v":0},{"$f":"Import!E2871","v":0},{"$f":"Import!E2897","v":0},{"$f":"Import!E2923","v":0}]
[null,10,{"$f":"Import!E2718","v":0},null,{"$f":"Import!E2743","v":0},{"$f":"Import!E2768","v":0},{"$f":"Import!E2794","v":0},{"$f":"Import!E2820","v":0},{"$f":"Import!E2846","v":0},{"$f":"Import!E2872","v":0},{"$f":"Import!E2898","v":0},{"$f":"Import!E2924","v":0}]
[null,11,{"$f":"Import!E2719","v":0},null,{"$f":"Import!E2744","v":0},{"$f":"Import!E2769","v":0},{"$f":"Import!E2795","v":0},{"$f":"Import!E2821","v":0},{"$f":"Import!E2847","v":0},{"$f":"Import!E2873","v":0},{"$f":"Import!E2899","v":0},{"$f":"Import!E2925","v":0}]
[null,12,{"$f":"Import!E2720","v":0},null,{"$f":"Import!E2745","v":0},{"$f":"Import!E2770","v":0},{"$f":"Import!E2796","v":0},{"$f":"Import!E2822","v":0},{"$f":"Import!E2848","v":0},{"$f":"Import!E2874","v":0},{"$f":"Import!E2900","v":0},{"$f":"Import!E2926","v":0}]
[null,13,{"$f":"Import!E2721","v":0},null,{"$f":"Import!E2746","v":0},{"$f":"Import!E2771","v":0},{"$f":"Import!E2797","v":0},{"$f":"Import!E2823","v":0},{"$f":"Import!E2849","v":0},{"$f":"Import!E2875","v":0},{"$f":"Import!E2901","v":0},{"$f":"Import!E2927","v":0}]
[null,14,{"$f":"Import!E2722","v":0},null,{"$f":"Import!E2747","v":0},{"$f":"Import!E2772","v":0},{"$f":"Import!E2798","v":0},{"$f":"Import!E2824","v":0},{"$f":"Import!E2850","v":0},{"$f":"Import!E2876","v":0},{"$f":"Import!E2902","v":0},{"$f":"Import!E2928","v":0}]
[null,15,{"$f":"Import!E2723","v":0},null,{"$f":"Import!E2748","v":0},{"$f":"Import!E2773","v":0},{"$f":"Import!E2799","v":0},{"$f":"Import!E2825","v":0},{"$f":"Import!E2851","v":0},{"$f":"Import!E2877","v":0},{"$f":"Import!E2903","v":0},{"$f":"Import!E2929","v":0}]
[null,16,{"$f":"Import!E2724","v":0},null,{"$f":"Import!E2749","v":0},{"$f":"Import!E2774","v":0},{"$f":"Import!E2800","v":0},{"$f":"Import!E2826","v":0},{"$f":"Import!E2852","v":0},{"$f":"Import!E2878","v":0},{"$f":"Import!E2904","v":0},{"$f":"Import!E2930","v":0}]
[null,17,{"$f":"Import!E2725","v":0},null,{"$f":"Import!E2750","v":0},{"$f":"Import!E2775","v":0},{"$f":"Import!E2801","v":0},{"$f":"Import!E2827","v":0},{"$f":"Import!E2853","v":0},{"$f":"Import!E2879","v":0},{"$f":"Import!E2905","v":0},{"$f":"Import!E2931","v":0}]
[null,18,{"$f":"Import!E2726","v":0},null,{"$f":"Import!E2751","v":0},{"$f":"Import!E2776","v":0},{"$f":"Import!E2802","v":0},{"$f":"Import!E2828","v":0},{"$f":"Import!E2854","v":0},{"$f":"Import!E2880","v":0},{"$f":"Import!E2906","v":0},{"$f":"Import!E2932","v":0}]
[null,19,{"$f":"Import!E2727","v":0},null,{"$f":"Import!E2752","v":0},{"$f":"Import!E2777","v":0},{"$f":"Import!E2803","v":0},{"$f":"Import!E2829","v":0},{"$f":"Import!E2855","v":0},{"$f":"Import!E2881","v":0},{"$f":"Import!E2907","v":0},{"$f":"Import!E2933","v":0}]
[null,20,{"$f":"Import!E2728","v":0},null,{"$f":"Import!E2753","v":0},{"$f":"Import!E2778","v":0},{"$f":"Import!E2804","v":0},{"$f":"Import!E2830","v":0},{"$f":"Import!E2856","v":0},{"$f":"Import!E2882","v":0},{"$f":"Import!E2908","v":0},{"$f":"Import!E2934","v":0}]
[null,21,{"$f":"Import!E2729","v":0},null,{"$f":"Import!E2754","v":0},{"$f":"Import!E2779","v":0},{"$f":"Import!E2805","v":0},{"$f":"Import!E2831","v":0},{"$f":"Import!E2857","v":0},{"$f":"Import!E2883","v":0},{"$f":"Import!E2909","v":0},{"$f":"Import!E2935","v":0}]
[null,22,{"$f":"Import!E2730","v":0},null,{"$f":"Import!E2755","v":0},{"$f":"Import!E2780","v":0},{"$f":"Import!E2806","v":0},{"$f":"Import!E2832","v":0},{"$f":"Import!E2858","v":0},{"$f":"Import!E2884","v":0},{"$f":"Import!E2910","v":0},{"$f":"Import!E2936","v":0}]
[null,23,{"$f":"Import!E2731","v":0},null,{"$f":"Import!E2756","v":0},{"$f":"Import!E2781","v":0},{"$f":"Import!E2807","v":0},{"$f":"Import!E2833","v":0},{"$f":"Import!E2859","v":0},{"$f":"Import!E2885","v":0},{"$f":"Import!E2911","v":0},{"$f":"Import!E2937","v":0}]
[null,24,{"$f":"Import!E2732","v":0},null,{"$f":"Import!E2757","v":0},{"$f":"Import!E2782","v":0},{"$f":"Import!E2808","v":0},{"$f":"Import!E2834","v":0},{"$f":"Import!E2860","v":0},{"$f":"Import!E2886","v":0},{"$f":"Import!E2912","v":0},{"$f":"Import!E2938","v":0}]
[null,25,{"$f":"Import!E2733","v":0},null,{"$f":"Import!E2758","v":0},{"$f":"Import!E2783","v":0},{"$f":"Import!E2809","v":0},{"$f":"Import!E2835","v":0},{"$f":"Import!E2861","v":0},{"$f":"Import!E2887","v":0},{"$f":"Import!E2913","v":0},{"$f":"Import!E2939","v":0}]
[null,26]
[null,27]
[null,28]
[null,29]
[null,30]
[null,31]
[null,32]
[null,33]
[null,34]
[null,35]
[null,36]
[null,37]
[null,38]
[null,39]
[null,40]
[null,41]
[null,42]
[null,43]
[null,44]
[null,45]
[null,46]
[null,47]
[null,48]
[null,49]
[null,50]
[null,null,"TOTAL ",null,null,{"$f":"SUM(F8:F57)","v":0},{"$f":"SUM(G8:G57)","v":0},{"$f":"SUM(H8:H57)","v":0},null,{"$f":"SUM(J8:J57)","v":0},{"$f":"SUM(K8:K57)","v":0}]

{"sheet":"Schedule V(l)","index":48,"n_rows":239,"n_cols":65,"rows_kept":239,"cut":false,"hidden":false,"merged":[[2,58,5,58],[1,3,1,56]]}
[null,null,"SCHEDULE OF SEGREGATED ACCOUNTS - CELL BY CELL DISCLOSURE (UNCONSOLIDATED BASIS)",null,null,null,null,null,null,null,null,null,null,null,null,null,null,null,null,null,null,null,null,null,null,null,null,null,null,null,null,null,null,null,null,null,null,null,null,null,null,null,null,null,null,null,null,null,null,null,null,null,null,null,null,null,null,null,null,null,null,null,null,null,{"$f":"HYPERLINK(\"#'Index'!A1\",\"Return to Index\")","v":"Return to Index"}]
[null,null,{"$f":"'Insurer Information'!C7","v":"Enter Company Name"},"Ensure that all figures are included  on a statutory basis.  Items that require a balance sheet check should be consistent with the respective Line on Form 1SFS.  Input the value from the financial statements and where  a discrepancy is noted, include a comment explaining the difference.",null,null,null,null,null,null,null,null,null,null,null,null,null,null,null,null,null,null,null,null,null,null,null,null,null,null,null,null,null,null,null,null,null,null,null,null,null,null,null,null,null,null,null,null,null,null,null,null,null,null,null,null,null,null,"SCHEDULE V(l) "]
[null,null,{"$f":" TEXT('Insurer Information'!C3,\"D MMMM YYYY\")","v":"31 December 2023"},null,{"$f":"Import!E2941","v":0},null,"Enter Number of Columns Required (Note only a maximum of 50 cells)",null,null,null,null,null,null,null,null,null,null,null,null,null,null,null,null,null,null,null,null,null,null,null,null,null,null,null,null,null,null,null,null,null,null,null,null,null,null,null,null,null,null,null,null,null,null,null,null,null,null,null,"Grand Total General Account and Total Cells"]
[null,null,{"$f":"'Form 4EBS'!B4","v":"Expressed in  ['000s]"},null,null,null,null,null,null,null,null,null,null,null,null,null,null,null,null,null,null,null,null,null,null,null,null,null,null,null,null,null,null,null,null,null,null,null,null,null,null,null,null,null,null,null,null,null,null,null,null,null,null,null,null,null,"General",null,null,null,"Balance Sheet"]
[null,null,null,"Cell 1","Cell 2","Cell 3","Cell 4","Cell 5","Cell 6","Cell 7","Cell 8","Cell 9","Cell 10","Cell 11","Cell 12","Cell 13","Cell 14","Cell 15","Cell 16","Cell 17","Cell 18","Cell 19","Cell 20","Cell 21","Cell 22","Cell 23","Cell 24","Cell 25","Cell 26","Cell 27","Cell 28","Cell 29","Cell 30","Cell 31","Cell 32","Cell 33","Cell 34","Cell 35","Cell 36","Cell 37","Cell 38","Cell 39","Cell 40","Cell 41","Cell 42","Cell 43","Cell 44","Cell 45","Cell 46","Cell 47","Cell 48","Cell 49","Cell 50",null,"Total of Cells",null,"Account",null,null,null,"Check",null,"Difference",null,"Comment for Discrepancies Noted"]
[null,"(A)","Cell reference number",{"$f":"Import!E2942","v":0},{"$f":"Import!E3011","v":0},{"$f":"Import!E3080","v":0},{"$f":"Import!E3149","v":0},{"$f":"Import!E3218","v":0},{"$f":"Import!E3287","v":0},{"$f":"Import!E3356","v":0},{"$f":"Import!E3425","v":0},{"$f":"Import!E3494","v":0},{"$f":"Import!E3563","v":0},{"$f":"Import!E3632","v":0},{"$f":"Import!E3701","v":0},{"$f":"Import!E3770","v":0},{"$f":"Import!E3839","v":0},{"$f":"Import!E3908","v":0},{"$f":"Import!E3977","v":0},{"$f":"Import!E4046","v":0},{"$f":"Import!E4115","v":0},{"$f":"Import!E4184","v":0},{"$f":"Import!E4253","v":0},{"$f":"Import!E4322","v":0},{"$f":"Import!E4391","v":0},{"$f":"Import!E4460","v":0},{"$f":"Import!E4529","v":0},{"$f":"Import!E4598","v":0}]
[null,"(B)","Cell name",{"$f":"Import!E2943","v":0},{"$f":"Import!E3012","v":0},{"$f":"Import!E3081","v":0},{"$f":"Import!E3150","v":0},{"$f":"Import!E3219","v":0},{"$f":"Import!E3288","v":0},{"$f":"Import!E3357","v":0},{"$f":"Import!E3426","v":0},{"$f":"Import!E3495","v":0},{"$f":"Import!E3564","v":0},{"$f":"Import!E3633","v":0},{"$f":"Import!E3702","v":0},{"$f":"Import!E3771","v":0},{"$f":"Import!E3840","v":0},{"$f":"Import!E3909","v":0},{"$f":"Import!E3978","v":0},{"$f":"Import!E4047","v":0},{"$f":"Import!E4116","v":0},{"$f":"Import!E4185","v":0},{"$f":"Import!E4254","v":0},{"$f":"Import!E4323","v":0},{"$f":"Import!E4392","v":0},{"$f":"Import!E4461","v":0},{"$f":"Import!E4530","v":0},{"$f":"Import!E4599","v":0}]
[null,"(C)","Direct Insurer, Reinsurer or Both",{"$f":"Import!E2944","v":"Select Premiums Written"},{"$f":"Import!E3013","v":"Select Premiums Written"},{"$f":"Import!E3082","v":"Select Premiums Written"},{"$f":"Import!E3151","v":"Select Premiums Written"},{"$f":"Import!E3220","v":"Select Premiums Written"},{"$f":"Import!E3289","v":"Select Premiums Written"},{"$f":"Import!E3358","v":"Select Premiums Written"},{"$f":"Import!E3427","v":"Select Premiums Written"},{"$f":"Import!E3496","v":"Select Premiums Written"},{"$f":"Import!E3565","v":"Select Premiums Written"},{"$f":"Import!E3634","v":"Select Premiums Written"},{"$f":"Import!E3703","v":"Select Premiums Written"},{"$f":"Import!E3772","v":"Select Premiums Written"},{"$f":"Import!E3841","v":"Select Premiums Written"},{"$f":"Import!E3910","v":"Select Premiums Written"},{"$f":"Import!E3979","v":"Select Premiums Written"},{"$f":"Import!E4048","v":"Select Premiums Written"},{"$f":"Import!E4117","v":"Select Premiums Written"},{"$f":"Import!E4186","v":"Select Premiums Written"},{"$f":"Import!E4255","v":"Select Premiums Written"},{"$f":"Import!E4324","v":"Select Premiums Written"},{"$f":"Import!E4393","v":"Select Premiums Written"},{"$f":"Import!E4462","v":"Select Premiums Written"},{"$f":"Import!E4531","v":"Select Premiums Written"},{"$f":"Import!E4600","v":"Select Premiums Written"},"Select Premiums Written","Select Premiums Written","Select Premiums Written","Select Premiums Written","Select Premiums Written","Select Premiums Written","Select Premiums Written","Select Premiums Written","Select Premiums Written","Select Premiums Written","Select Premiums Written","Select Premiums Written","Select Premiums Written","Select Premiums Written","Select Premiums Written","Select Premiums Written","Select Premiums Written","Select Premiums Written","Select Premiums Written","Select Premiums Written","Select Premiums Written","Select Premiums Written","Select Premiums Written","Select Premiums Written","Select Premiums Written"]
[]
[null,null,"ASSETS"]
[null,"(D)","Cash and Time Deposits",{"$f":"Import!E2945","v":0},{"$f":"Import!E3014","v":0},{"$f":"Import!E3083","v":0},{"$f":"Import!E3152","v":0},{"$f":"Import!E3221","v":0},{"$f":"Import!E3290","v":0},{"$f":"Import!E3359","v":0},{"$f":"Import!E3428","v":0},{"$f":"Import!E3497","v":0},{"$f":"Import!E3566","v":0},{"$f":"Import!E3635","v":0},{"$f":"Import!E3704","v":0},{"$f":"Import!E3773","v":0},{"$f":"Import!E3842","v":0},{"$f":"Import!E3911","v":0},{"$f":"Import!E3980","v":0},{"$f":"Import!E4049","v":0},{"$f":"Import!E4118","v":0},{"$f":"Import!E4187","v":0},{"$f":"Import!E4256","v":0},{"$f":"Import!E4325","v":0},{"$f":"Import!E4394","v":0},{"$f":"Import!E4463","v":0},{"$f":"Import!E4532","v":0},{"$f":"Import!E4601","v":0},null,null,null,null,null,null,null,null,null,null,null,null,null,null,null,null,null,null,null,null,null,null,null,null,null,null,{"$f":"SUM(D11:BA11)","v":0},null,{"$f":"Import!E4667","v":0},null,{"$f":"BC11+BE11","v":0},null,{"$f":"IF(('Form 1SFS'!F100+'Form 1SFS'!H100)=0,'Form 1SFS'!K12,'Form 1SFS'!F12+'Form 1SFS'!H12)","v":0},null,{"$f":"IFERROR(ROUND(BG11-BI11,0),0)","v":0},null,{"$f":"Import!E4693","v":0}]
[null,"(E)","Quoted: Bonds and Debentures",{"$f":"Import!E2946","v":0},{"$f":"Import!E3015","v":0},{"$f":"Import!E3084","v":0},{"$f":"Import!E3153","v":0},{"$f":"Import!E3222","v":0},{"$f":"Import!E3291","v":0},{"$f":"Import!E3360","v":0},{"$f":"Import!E3429","v":0},{"$f":"Import!E3498","v":0},{"$f":"Import!E3567","v":0},{"$f":"Import!E3636","v":0},{"$f":"Import!E3705","v":0},{"$f":"Import!E3774","v":0},{"$f":"Import!E3843","v":0},{"$f":"Import!E3912","v":0},{"$f":"Import!E3981","v":0},{"$f":"Import!E4050","v":0},{"$f":"Import!E4119","v":0},{"$f":"Import!E4188","v":0},{"$f":"Import!E4257","v":0},{"$f":"Import!E4326","v":0},{"$f":"Import!E4395","v":0},{"$f":"Import!E4464","v":0},{"$f":"Import!E4533","v":0},{"$f":"Import!E4602","v":0},null,null,null,null,null,null,null,null,null,null,null,null,null,null,null,null,null,null,null,null,null,null,null,null,null,null,0]
[null,"(F)","Quoted: Equities and Other",{"$f":"Import!E2947","v":0},{"$f":"Import!E3016","v":0},{"$f":"Import!E3085","v":0},{"$f":"Import!E3154","v":0},{"$f":"Import!E3223","v":0},{"$f":"Import!E3292","v":0},{"$f":"Import!E3361","v":0},{"$f":"Import!E3430","v":0},{"$f":"Import!E3499","v":0},{"$f":"Import!E3568","v":0},{"$f":"Import!E3637","v":0},{"$f":"Import!E3706","v":0},{"$f":"Import!E3775","v":0},{"$f":"Import!E3844","v":0},{"$f":"Import!E3913","v":0},{"$f":"Import!E3982","v":0},{"$f":"Import!E4051","v":0},{"$f":"Import!E4120","v":0},{"$f":"Import!E4189","v":0},{"$f":"Import!E4258","v":0},{"$f":"Import!E4327","v":0},{"$f":"Import!E4396","v":0},{"$f":"Import!E4465","v":0},{"$f":"Import!E4534","v":0},{"$f":"Import!E4603","v":0},null,null,null,null,null,null,null,null,null,null,null,null,null,null,null,null,null,null,null,null,null,null,null,null,null,null,0]
[null,"(G)","Unquoted: Bonds, and Debentures",{"$f":"Import!E2948","v":0},{"$f":"Import!E3017","v":0},{"$f":"Import!E3086","v":0},{"$f":"Import!E3155","v":0},{"$f":"Import!E3224","v":0},{"$f":"Import!E3293","v":0},{"$f":"Import!E3362","v":0},{"$f":"Import!E3431","v":0},{"$f":"Import!E3500","v":0},{"$f":"Import!E3569","v":0},{"$f":"Import!E3638","v":0},{"$f":"Import!E3707","v":0},{"$f":"Import!E3776","v":0},{"$f":"Import!E3845","v":0},{"$f":"Import!E3914","v":0},{"$f":"Import!E3983","v":0},{"$f":"Import!E4052","v":0},{"$f":"Import!E4121","v":0},{"$f":"Import!E4190","v":0},{"$f":"Import!E4259","v":0},{"$f":"Import!E4328","v":0},{"$f":"Import!E4397","v":0},{"$f":"Import!E4466","v":0},{"$f":"Import!E4535","v":0},{"$f":"Import!E4604","v":0},null,null,null,null,null,null,null,null,null,null,null,null,null,null,null,null,null,null,null,null,null,null,null,null,null,null,0]
[null,"(H)","Investments in and Advances to Affiliates",{"$f":"Import!E2949","v":0},{"$f":"Import!E3018","v":0},{"$f":"Import!E3087","v":0},{"$f":"Import!E3156","v":0},{"$f":"Import!E3225","v":0},{"$f":"Import!E3294","v":0},{"$f":"Import!E3363","v":0},{"$f":"Import!E3432","v":0},{"$f":"Import!E3501","v":0},{"$f":"Import!E3570","v":0},{"$f":"Import!E3639","v":0},{"$f":"Import!E3708","v":0},{"$f":"Import!E3777","v":0},{"$f":"Import!E3846","v":0},{"$f":"Import!E3915","v":0},{"$f":"Import!E3984","v":0},{"$f":"Import!E4053","v":0},{"$f":"Import!E4122","v":0},{"$f":"Import!E4191","v":0},{"$f":"Import!E4260","v":0},{"$f":"Import!E4329","v":0},{"$f":"Import!E4398","v":0},{"$f":"Import!E4467","v":0},{"$f":"Import!E4536","v":0},{"$f":"Import!E4605","v":0},null,null,null,null,null,null,null,null,null,null,null,null,null,null,null,null,null,null,null,null,null,null,null,null,null,null,0]
[null,"(I)","Funds Held by Ceding Reinsurers",{"$f":"Import!E2950","v":0},{"$f":"Import!E3019","v":0},{"$f":"Import!E3088","v":0},{"$f":"Import!E3157","v":0},{"$f":"Import!E3226","v":0},{"$f":"Import!E3295","v":0},{"$f":"Import!E3364","v":0},{"$f":"Import!E3433","v":0},{"$f":"Import!E3502","v":0},{"$f":"Import!E3571","v":0},{"$f":"Import!E3640","v":0},{"$f":"Import!E3709","v":0},{"$f":"Import!E3778","v":0},{"$f":"Import!E3847","v":0},{"$f":"Import!E3916","v":0},{"$f":"Import!E3985","v":0},{"$f":"Import!E4054","v":0},{"$f":"Import!E4123","v":0},{"$f":"Import!E4192","v":0},{"$f":"Import!E4261","v":0},{"$f":"Import!E4330","v":0},{"$f":"Import!E4399","v":0},{"$f":"Import!E4468","v":0},{"$f":"Import!E4537","v":0},{"$f":"Import!E4606","v":0},null,null,null,null,null,null,null,null,null,null,null,null,null,null,null,null,null,null,null,null,null,null,null,null,null,null,0]
[null,"(J)","Other Assets",{"$f":"Import!E2951","v":0},{"$f":"Import!E3020","v":0},{"$f":"Import!E3089","v":0},{"$f":"Import!E3158","v":0},{"$f":"Import!E3227","v":0},{"$f":"Import!E3296","v":0},{"$f":"Import!E3365","v":0},{"$f":"Import!E3434","v":0},{"$f":"Import!E3503","v":0},{"$f":"Import!E3572","v":0},{"$f":"Import!E3641","v":0},{"$f":"Import!E3710","v":0},{"$f":"Import!E3779","v":0},{"$f":"Import!E3848","v":0},{"$f":"Import!E3917","v":0},{"$f":"Import!E3986","v":0},{"$f":"Import!E4055","v":0},{"$f":"Import!E4124","v":0},{"$f":"Import!E4193","v":0},{"$f":"Import!E4262","v":0},{"$f":"Import!E4331","v":0},{"$f":"Import!E4400","v":0},{"$f":"Import!E4469","v":0},{"$f":"Import!E4538","v":0},{"$f":"Import!E4607","v":0},null,null,null,null,null,null,null,null,null,null,null,null,null,null,null,null,null,null,null,null,null,null,null,null,null,null,0]
[null,null,"Total Assets",{"$f":"SUM(D11:D17)","v":0},{"$f":"SUM(E11:E17)","v":0},0,0,0,0,0,0,0,0,0,0,0,0,0,0,0,0,0,0,0,0,0,0,0,0,0,0,0,0,0,0,0,0,0,0,0,0,0,0,0,0,0,0,0,0,0,0,0,0,null,0,null,{"$f":"Import!E4668","v":0},null,{"$f":"BC18+BE18","v":0},null,{"$f":"IF(('Form 1SFS'!F100+'Form 1SFS'!H100)=0,'Form 1SFS'!K100,'Form 1SFS'!F100+'Form 1SFS'!H100)","v":0},null,{"$f":"IFERROR(ROUND(BG18-BI18,0),0)","v":0},null,{"$f":"Import!E4694","v":0}]
[]
[null,null,"LIABILITIES AND SHAREHOLDERS' EQUITY"]
[null,"(K)","Unearned Premiums",{"$f":"Import!E2952","v":0},{"$f":"Import!E3021","v":0},{"$f":"Import!E3090","v":0},{"$f":"Import!E3159","v":0},{"$f":"Import!E3228","v":0},{"$f":"Import!E3297","v":0},{"$f":"Import!E3366","v":0},{"$f":"Import!E3435","v":0},{"$f":"Import!E3504","v":0},{"$f":"Import!E3573","v":0},{"$f":"Import!E3642","v":0},{"$f":"Import!E3711","v":0},{"$f":"Import!E3780","v":0},{"$f":"Import!E3849","v":0},{"$f":"Import!E3918","v":0},{"$f":"Import!E3987","v":0},{"$f":"Import!E4056","v":0},{"$f":"Import!E4125","v":0},{"$f":"Import!E4194","v":0},{"$f":"Import!E4263","v":0},{"$f":"Import!E4332","v":0},{"$f":"Import!E4401","v":0},{"$f":"Import!E4470","v":0},{"$f":"Import!E4539","v":0},{"$f":"Import!E4608","v":0},null,null,null,null,null,null,null,null,null,null,null,null,null,null,null,null,null,null,null,null,null,null,null,null,null,null,{"$f":"SUM(D21:BA21)","v":0}]
[null,"(L)","Net Loss & Loss Expense Provisions",{"$f":"Import!E2953","v":0},{"$f":"Import!E3022","v":0},{"$f":"Import!E3091","v":0},{"$f":"Import!E3160","v":0},{"$f":"Import!E3229","v":0},{"$f":"Import!E3298","v":0},{"$f":"Import!E3367","v":0},{"$f":"Import!E3436","v":0},{"$f":"Import!E3505","v":0},{"$f":"Import!E3574","v":0},{"$f":"Import!E3643","v":0},{"$f":"Import!E3712","v":0},{"$f":"Import!E3781","v":0},{"$f":"Import!E3850","v":0},{"$f":"Import!E3919","v":0},{"$f":"Import!E3988","v":0},{"$f":"Import!E4057","v":0},{"$f":"Import!E4126","v":0},{"$f":"Import!E4195","v":0},{"$f":"Import!E4264","v":0},{"$f":"Import!E4333","v":0},{"$f":"Import!E4402","v":0},{"$f":"Import!E4471","v":0},{"$f":"Import!E4540","v":0},{"$f":"Import!E4609","v":0},null,null,null,null,null,null,null,null,null,null,null,null,null,null,null,null,null,null,null,null,null,null,null,null,null,null,{"$f":"SUM(D22:BA22)","v":0},null,{"$f":"Import!E4669","v":0},null,{"$f":"BC22+BE22","v":0},null,{"$f":"IF(('Form 1SFS'!F100+'Form 1SFS'!H100)=0,'Form 1SFS'!K124+'Form 1SFS'!K154,'Form 1SFS'!F124+'Form 1SFS'!H154)","v":0},null,{"$f":"IFERROR(ROUND(BG22-BI22,0),0)","v":0},null,{"$f":"Import!E4695","v":0}]
[null,"(M)","Other Liabilities",{"$f":"Import!E2954","v":0},{"$f":"Import!E3023","v":0},{"$f":"Import!E3092","v":0},{"$f":"Import!E3161","v":0},{"$f":"Import!E3230","v":0},{"$f":"Import!E3299","v":0},{"$f":"Import!E3368","v":0},{"$f":"Import!E3437","v":0},{"$f":"Import!E3506","v":0},{"$f":"Import!E3575","v":0},{"$f":"Import!E3644","v":0},{"$f":"Import!E3713","v":0},{"$f":"Import!E3782","v":0},{"$f":"Import!E3851","v":0},{"$f":"Import!E3920","v":0},{"$f":"Import!E3989","v":0},{"$f":"Import!E4058","v":0},{"$f":"Import!E4127","v":0},{"$f":"Import!E4196","v":0},{"$f":"Import!E4265","v":0},{"$f":"Import!E4334","v":0},{"$f":"Import!E4403","v":0},{"$f":"Import!E4472","v":0},{"$f":"Import!E4541","v":0},{"$f":"Import!E4610","v":0},null,null,null,null,null,null,null,null,null,null,null,null,null,null,null,null,null,null,null,null,null,null,null,null,null,null,{"$f":"SUM(D23:BA23)","v":0}]
[null,"(N)","Statutory Capital",{"$f":"Import!E2955","v":0},{"$f":"Import!E3024","v":0},{"$f":"Import!E3093","v":0},{"$f":"Import!E3162","v":0},{"$f":"Import!E3231","v":0},{"$f":"Import!E3300","v":0},{"$f":"Import!E3369","v":0},{"$f":"Import!E3438","v":0},{"$f":"Import!E3507","v":0},{"$f":"Import!E3576","v":0},{"$f":"Import!E3645","v":0},{"$f":"Import!E3714","v":0},{"$f":"Import!E3783","v":0},{"$f":"Import!E3852","v":0},{"$f":"Import!E3921","v":0},{"$f":"Import!E3990","v":0},{"$f":"Import!E4059","v":0},{"$f":"Import!E4128","v":0},{"$f":"Import!E4197","v":0},{"$f":"Import!E4266","v":0},{"$f":"Import!E4335","v":0},{"$f":"Import!E4404","v":0},{"$f":"Import!E4473","v":0},{"$f":"Import!E4542","v":0},{"$f":"Import!E4611","v":0},null,null,null,null,null,null,null,null,null,null,null,null,null,null,null,null,null,null,null,null,null,null,null,null,null,null,{"$f":"SUM(D24:BA24)","v":0}]
[null,"(O)","Statutory Surplus",{"$f":"Import!E2956","v":0},{"$f":"Import!E3025","v":0},{"$f":"Import!E3094","v":0},{"$f":"Import!E3163","v":0},{"$f":"Import!E3232","v":0},{"$f":"Import!E3301","v":0},{"$f":"Import!E3370","v":0},{"$f":"Import!E3439","v":0},{"$f":"Import!E3508","v":0},{"$f":"Import!E3577","v":0},{"$f":"Import!E3646","v":0},{"$f":"Import!E3715","v":0},{"$f":"Import!E3784","v":0},{"$f":"Import!E3853","v":0},{"$f":"Import!E3922","v":0},{"$f":"Import!E3991","v":0},{"$f":"Import!E4060","v":0},{"$f":"Import!E4129","v":0},{"$f":"Import!E4198","v":0},{"$f":"Import!E4267","v":0},{"$f":"Import!E4336","v":0},{"$f":"Import!E4405","v":0},{"$f":"Import!E4474","v":0},{"$f":"Import!E4543","v":0},{"$f":"Import!E4612","v":0},null,null,null,null,null,null,null,null,null,null,null,null,null,null,null,null,null,null,null,null,null,null,null,null,null,null,{"$f":"SUM(D25:BA25)","v":0}]
[null,null,"Total Statutory Capital & Surplus",{"$f":"D24+D25","v":0},{"$f":"E24+E25","v":0},0,0,0,0,0,0,0,0,0,0,0,0,0,0,0,0,0,0,0,0,0,0,0,0,0,0,0,0,0,0,0,0,0,0,0,0,0,0,0,0,0,0,0,0,0,0,0,0,null,{"$f":"BC24+BC25","v":0}]
[null,null,"Total Liabilities and Shareholder's Equity",{"$f":"SUM(D21:D25)","v":0},{"$f":"SUM(E21:E25)","v":0},0,0,0,0,0,0,0,0,0,0,0,0,0,0,0,0,0,0,0,0,0,0,0,0,0,0,0,0,0,0,0,0,0,0,0,0,0,0,0,0,0,0,0,0,0,0,0,0,null,{"$f":"SUM(BC21:BC25)","v":0},null,{"$f":"Import!E4670","v":0},null,{"$f":"BC27+BE27","v":0},null,{"$f":"IF(('Form 1SFS'!F100+'Form 1SFS'!H100)=0,'Form 1SFS'!K200,'Form 1SFS'!F200+'Form 1SFS'!H200)","v":0},null,{"$f":"IFERROR(ROUND(BG27-BI27,0),0)","v":0},null,{"$f":"Import!E4696","v":0}]
[null,null,null,{"$f":"IF((D18-D27)=ROUND(0,),0,FALSE)","v":0},{"$f":"IF((E18-E27)=ROUND(0,),0,FALSE)","v":0},0,0,0,0,0,0,0,0,0,0,0,0,0,0,0,0,0,0,0,0,0,0,0,0,0,0,0,0,0,0,0,0,0,0,0,0,0,0,0,0,0,0,0,0,0,0,0,0,null,{"$f":"IF((BC18-BC27)=ROUND(0,),0,FALSE)","v":0},null,{"$f":"IF((BE18-BE27)=ROUND(0,),0,FALSE)","v":0}]
[null,null,"INCOME STATEMENT"]
[null,"(P)","Gross Premiums Written",{"$f":"Import!E2957","v":0},{"$f":"Import!E3026","v":0},{"$f":"Import!E3095","v":0},{"$f":"Import!E3164","v":0},{"$f":"Import!E3233","v":0},{"$f":"Import!E3302","v":0},{"$f":"Import!E3371","v":0},{"$f":"Import!E3440","v":0},{"$f":"Import!E3509","v":0},{"$f":"Import!E3578","v":0},{"$f":"Import!E3647","v":0},{"$f":"Import!E3716","v":0},{"$f":"Import!E3785","v":0},{"$f":"Import!E3854","v":0},{"$f":"Import!E3923","v":0},{"$f":"Import!E3992","v":0},{"$f":"Import!E4061","v":0},{"$f":"Import!E4130","v":0},{"$f":"Import!E4199","v":0},{"$f":"Import!E4268","v":0},{"$f":"Import!E4337","v":0},{"$f":"Import!E4406","v":0},{"$f":"Import!E4475","v":0},{"$f":"Import!E4544","v":0},{"$f":"Import!E4613","v":0},null,null,null,null,null,null,null,null,null,null,null,null,null,null,null,null,null,null,null,null,null,null,null,null,null,null,{"$f":"SUM(D30:BA30)","v":0}]
[null,"(Q)","Net Premiums Written",{"$f":"Import!E2958","v":0},{"$f":"Import!E3027","v":0},{"$f":"Import!E3096","v":0},{"$f":"Import!E3165","v":0},{"$f":"Import!E3234","v":0},{"$f":"Import!E3303","v":0},{"$f":"Import!E3372","v":0},{"$f":"Import!E3441","v":0},{"$f":"Import!E3510","v":0},{"$f":"Import!E3579","v":0},{"$f":"Import!E3648","v":0},{"$f":"Import!E3717","v":0},{"$f":"Import!E3786","v":0},{"$f":"Import!E3855","v":0},{"$f":"Import!E3924","v":0},{"$f":"Import!E3993","v":0},{"$f":"Import!E4062","v":0},{"$f":"Import!E4131","v":0},{"$f":"Import!E4200","v":0},{"$f":"Import!E4269","v":0},{"$f":"Import!E4338","v":0},{"$f":"Import!E4407","v":0},{"$f":"Import!E4476","v":0},{"$f":"Import!E4545","v":0},{"$f":"Import!E4614","v":0},null,null,null,null,null,null,null,null,null,null,null,null,null,null,null,null,null,null,null,null,null,null,null,null,null,null,0]
[null,"(R)","Total Income (Insurance and Other)",{"$f":"Import!E2959","v":0},{"$f":"Import!E3028","v":0},{"$f":"Import!E3097","v":0},{"$f":"Import!E3166","v":0},{"$f":"Import!E3235","v":0},{"$f":"Import!E3304","v":0},{"$f":"Import!E3373","v":0},{"$f":"Import!E3442","v":0},{"$f":"Import!E3511","v":0},{"$f":"Import!E3580","v":0},{"$f":"Import!E3649","v":0},{"$f":"Import!E3718","v":0},{"$f":"Import!E3787","v":0},{"$f":"Import!E3856","v":0},{"$f":"Import!E3925","v":0},{"$f":"Import!E3994","v":0},{"$f":"Import!E4063","v":0},{"$f":"Import!E4132","v":0},{"$f":"Import!E4201","v":0},{"$f":"Import!E4270","v":0},{"$f":"Import!E4339","v":0},{"$f":"Import!E4408","v":0},{"$f":"Import!E4477","v":0},{"$f":"Import!E4546","v":0},{"$f":"Import!E4615","v":0},null,null,null,null,null,null,null,null,null,null,null,null,null,null,null,null,null,null,null,null,null,null,null,null,null,null,0]
[null,"(S) ","Net loss and Loss Expenses Incurred",{"$f":"Import!E2960","v":0},{"$f":"Import!E3029","v":0},{"$f":"Import!E3098","v":0},{"$f":"Import!E3167","v":0},{"$f":"Import!E3236","v":0},{"$f":"Import!E3305","v":0},{"$f":"Import!E3374","v":0},{"$f":"Import!E3443","v":0},{"$f":"Import!E3512","v":0},{"$f":"Import!E3581","v":0},{"$f":"Import!E3650","v":0},{"$f":"Import!E3719","v":0},{"$f":"Import!E3788","v":0},{"$f":"Import!E3857","v":0},{"$f":"Import!E3926","v":0},{"$f":"Import!E3995","v":0},{"$f":"Import!E4064","v":0},{"$f":"Import!E4133","v":0},{"$f":"Import!E4202","v":0},{"$f":"Import!E4271","v":0},{"$f":"Import!E4340","v":0},{"$f":"Import!E4409","v":0},{"$f":"Import!E4478","v":0},{"$f":"Import!E4547","v":0},{"$f":"Import!E4616","v":0},null,null,null,null,null,null,null,null,null,null,null,null,null,null,null,null,null,null,null,null,null,null,null,null,null,null,0]
[null,"(T) ","Commissions and Brokerage",{"$f":"Import!E2961","v":0},{"$f":"Import!E3030","v":0},{"$f":"Import!E3099","v":0},{"$f":"Import!E3168","v":0},{"$f":"Import!E3237","v":0},{"$f":"Import!E3306","v":0},{"$f":"Import!E3375","v":0},{"$f":"Import!E3444","v":0},{"$f":"Import!E3513","v":0},{"$f":"Import!E3582","v":0},{"$f":"Import!E3651","v":0},{"$f":"Import!E3720","v":0},{"$f":"Import!E3789","v":0},{"$f":"Import!E3858","v":0},{"$f":"Import!E3927","v":0},{"$f":"Import!E3996","v":0},{"$f":"Import!E4065","v":0},{"$f":"Import!E4134","v":0},{"$f":"Import!E4203","v":0},{"$f":"Import!E4272","v":0},{"$f":"Import!E4341","v":0},{"$f":"Import!E4410","v":0},{"$f":"Import!E4479","v":0},{"$f":"Import!E4548","v":0},{"$f":"Import!E4617","v":0},null,null,null,null,null,null,null,null,null,null,null,null,null,null,null,null,null,null,null,null,null,null,null,null,null,null,0]
[null,"(U) ","Other Expenses",{"$f":"Import!E2962","v":0},{"$f":"Import!E3031","v":0},{"$f":"Import!E3100","v":0},{"$f":"Import!E3169","v":0},{"$f":"Import!E3238","v":0},{"$f":"Import!E3307","v":0},{"$f":"Import!E3376","v":0},{"$f":"Import!E3445","v":0},{"$f":"Import!E3514","v":0},{"$f":"Import!E3583","v":0},{"$f":"Import!E3652","v":0},{"$f":"Import!E3721","v":0},{"$f":"Import!E3790","v":0},{"$f":"Import!E3859","v":0},{"$f":"Import!E3928","v":0},{"$f":"Import!E3997","v":0},{"$f":"Import!E4066","v":0},{"$f":"Import!E4135","v":0},{"$f":"Import!E4204","v":0},{"$f":"Import!E4273","v":0},{"$f":"Import!E4342","v":0},{"$f":"Import!E4411","v":0},{"$f":"Import!E4480","v":0},{"$f":"Import!E4549","v":0},{"$f":"Import!E4618","v":0},null,null,null,null,null,null,null,null,null,null,null,null,null,null,null,null,null,null,null,null,null,null,null,null,null,null,0]
[null,null,"Net Income",{"$f":"D31+D32+D33+D34+D35","v":0},{"$f":"E31+E32+E33+E34+E35","v":0},0,0,0,0,0,0,0,0,0,0,0,0,0,0,0,0,0,0,0,0,0,0,0,0,0,0,0,0,0,0,0,0,0,0,0,0,0,0,0,0,0,0,0,0,0,0,0,0,null,0,null,{"$f":"Import!E4671","v":0},null,{"$f":"BC36+BE36","v":0},null,{"$f":"IF(('Form 1SFS'!F100+'Form 1SFS'!H100)=0,'Form 2SFS'!M115,'Form 2SFS'!E115+'Form 2SFS'!I115)","v":0},null,{"$f":"IFERROR(ROUND(BG36-BI36,0),0)","v":0}]
[null,"(V) ","Capital Returned & Dividends Paid/Payable",{"$f":"Import!E2963","v":0},{"$f":"Import!E3032","v":0},{"$f":"Import!E3101","v":0},{"$f":"Import!E3170","v":0},{"$f":"Import!E3239","v":0},{"$f":"Import!E3308","v":0},{"$f":"Import!E3377","v":0},{"$f":"Import!E3446","v":0},{"$f":"Import!E3515","v":0},{"$f":"Import!E3584","v":0},{"$f":"Import!E3653","v":0},{"$f":"Import!E3722","v":0},{"$f":"Import!E3791","v":0},{"$f":"Import!E3860","v":0},{"$f":"Import!E3929","v":0},{"$f":"Import!E3998","v":0},{"$f":"Import!E4067","v":0},{"$f":"Import!E4136","v":0},{"$f":"Import!E4205","v":0},{"$f":"Import!E4274","v":0},{"$f":"Import!E4343","v":0},{"$f":"Import!E4412","v":0},{"$f":"Import!E4481","v":0},{"$f":"Import!E4550","v":0},{"$f":"Import!E4619","v":0},null,null,null,null,null,null,null,null,null,null,null,null,null,null,null,null,null,null,null,null,null,null,null,null,null,null,0,null,null,null,{"$f":"BC37+BE37","v":0}]
[]
[null,null,"COLLATERAL"]
[null,"(W) ","Is Collateral required",{"$f":"Import!E2964","v":"Select Yes/No"},{"$f":"Import!E3033","v":"Select Yes/No"},{"$f":"Import!E3102","v":"Select Yes/No"},{"$f":"Import!E3171","v":"Select Yes/No"},{"$f":"Import!E3240","v":"Select Yes/No"},{"$f":"Import!E3309","v":"Select Yes/No"},{"$f":"Import!E3378","v":"Select Yes/No"},{"$f":"Import!E3447","v":"Select Yes/No"},{"$f":"Import!E3516","v":"Select Yes/No"},{"$f":"Import!E3585","v":"Select Yes/No"},{"$f":"Import!E3654","v":"Select Yes/No"},{"$f":"Import!E3723","v":"Select Yes/No"},{"$f":"Import!E3792","v":"Select Yes/No"},{"$f":"Import!E3861","v":"Select Yes/No"},{"$f":"Import!E3930","v":"Select Yes/No"},{"$f":"Import!E3999","v":"Select Yes/No"},{"$f":"Import!E4068","v":"Select Yes/No"},{"$f":"Import!E4137","v":"Select Yes/No"},{"$f":"Import!E4206","v":"Select Yes/No"},{"$f":"Import!E4275","v":"Select Yes/No"},{"$f":"Import!E4344","v":"Select Yes/No"},{"$f":"Import!E4413","v":"Select Yes/No"},{"$f":"Import!E4482","v":"Select Yes/No"},{"$f":"Import!E4551","v":"Select Yes/No"},{"$f":"Import!E4620","v":"Select Yes/No"},"Select Yes/No","Select Yes/No","Select Yes/No","Select Yes/No","Select Yes/No","Select Yes/No","Select Yes/No","Select Yes/No","Select Yes/No","Select Yes/No","Select Yes/No","Select Yes/No","Select Yes/No","Select Yes/No","Select Yes/No","Select Yes/No","Select Yes/No","Select Yes/No","Select Yes/No","Select Yes/No","Select Yes/No","Select Yes/No","Select Yes/No","Select Yes/No","Select Yes/No"]
[null,"(X) ","Collateral required to be posted by Cell/Insurer",{"$f":"Import!E2965","v":0},{"$f":"Import!E3034","v":0},{"$f":"Import!E3103","v":0},{"$f":"Import!E3172","v":0},{"$f":"Import!E3241","v":0},{"$f":"Import!E3310","v":0},{"$f":"Import!E3379","v":0},{"$f":"Import!E3448","v":0},{"$f":"Import!E3517","v":0},{"$f":"Import!E3586","v":0},{"$f":"Import!E3655","v":0},{"$f":"Import!E3724","v":0},{"$f":"Import!E3793","v":0},{"$f":"Import!E3862","v":0},{"$f":"Import!E3931","v":0},{"$f":"Import!E4000","v":0},{"$f":"Import!E4069","v":0},{"$f":"Import!E4138","v":0},{"$f":"Import!E4207","v":0},{"$f":"Import!E4276","v":0},{"$f":"Import!E4345","v":0},{"$f":"Import!E4414","v":0},{"$f":"Import!E4483","v":0},{"$f":"Import!E4552","v":0},{"$f":"Import!E4621","v":0},null,null,null,null,null,null,null,null,null,null,null,null,null,null,null,null,null,null,null,null,null,null,null,null,null,null,{"$f":"SUM(D41:BA41)","v":0},null,null,null,{"$f":"BC41+BE41","v":0}]
[null,"(Y) ","Actual collateral posted by Cell/Insurer",{"$f":"Import!E2966","v":0},{"$f":"Import!E3035","v":0},{"$f":"Import!E3104","v":0},{"$f":"Import!E3173","v":0},{"$f":"Import!E3242","v":0},{"$f":"Import!E3311","v":0},{"$f":"Import!E3380","v":0},{"$f":"Import!E3449","v":0},{"$f":"Import!E3518","v":0},{"$f":"Import!E3587","v":0},{"$f":"Import!E3656","v":0},{"$f":"Import!E3725","v":0},{"$f":"Import!E3794","v":0},{"$f":"Import!E3863","v":0},{"$f":"Import!E3932","v":0},{"$f":"Import!E4001","v":0},{"$f":"Import!E4070","v":0},{"$f":"Import!E4139","v":0},{"$f":"Import!E4208","v":0},{"$f":"Import!E4277","v":0},{"$f":"Import!E4346","v":0},{"$f":"Import!E4415","v":0},{"$f":"Import!E4484","v":0},{"$f":"Import!E4553","v":0},{"$f":"Import!E4622","v":0},null,null,null,null,null,null,null,null,null,null,null,null,null,null,null,null,null,null,null,null,null,null,null,null,null,null,{"$f":"SUM(D42:BA42)","v":0},null,null,null,0]
[null,null,"Excess/(Shortfall) in Collateral",{"$f":"D42-D41","v":0},{"$f":"E42-E41","v":0},0,0,0,0,0,0,0,0,0,0,0,0,0,0,0,0,0,0,0,0,0,0,0,0,0,0,0,0,0,0,0,0,0,0,0,0,0,0,0,0,0,0,0,0,0,0,0,{"$f":"BA42-BA41","v":0},null,{"$f":"SUM(D43:BA43)","v":0},null,null,null,0]
[null,"(Z) ","Primary Cell Funding",{"$f":"Import!E2967","v":"Select Funding"},{"$f":"Import!E3036","v":"Select Funding"},{"$f":"Import!E3105","v":"Select Funding"},{"$f":"Import!E3174","v":"Select Funding"},{"$f":"Import!E3243","v":"Select Funding"},{"$f":"Import!E3312","v":"Select Funding"},{"$f":"Import!E3381","v":"Select Funding"},{"$f":"Import!E3450","v":"Select Funding"},{"$f":"Import!E3519","v":"Select Funding"},{"$f":"Import!E3588","v":"Select Funding"},{"$f":"Import!E3657","v":"Select Funding"},{"$f":"Import!E3726","v":"Select Funding"},{"$f":"Import!E3795","v":"Select Funding"},{"$f":"Import!E3864","v":"Select Funding"},{"$f":"Import!E3933","v":"Select Funding"},{"$f":"Import!E4002","v":"Select Funding"},{"$f":"Import!E4071","v":"Select Funding"},{"$f":"Import!E4140","v":"Select Funding"},{"$f":"Import!E4209","v":"Select Funding"},{"$f":"Import!E4278","v":"Select Funding"},{"$f":"Import!E4347","v":"Select Funding"},{"$f":"Import!E4416","v":"Select Funding"},{"$f":"Import!E4485","v":"Select Funding"},{"$f":"Import!E4554","v":"Select Funding"},{"$f":"Import!E4623","v":"Select Funding"},"Select Funding","Select Funding","Select Funding","Select Funding","Select Funding","Select Funding","Select Funding","Select Funding","Select Funding","Select Funding","Select Funding","Select Funding","Select Funding","Select Funding","Select Funding","Select Funding","Select Funding","Select Funding","Select Funding","Select Funding","Select Funding","Select Funding","Select Funding","Select Funding","Select Funding"]
[null,"(AA) ","Limit of Cell Funding/Collateral",{"$f":"Import!E2968","v":"Confirm Funding / Collateral"},{"$f":"Import!E3037","v":"Confirm Funding / Collateral"},{"$f":"Import!E3106","v":"Confirm Funding / Collateral"},{"$f":"Import!E3175","v":"Confirm Funding / Collateral"},{"$f":"Import!E3244","v":"Confirm Funding / Collateral"},{"$f":"Import!E3313","v":"Confirm Funding / Collateral"},{"$f":"Import!E3382","v":"Confirm Funding / Collateral"},{"$f":"Import!E3451","v":"Confirm Funding / Collateral"},{"$f":"Import!E3520","v":"Confirm Funding / Collateral"},{"$f":"Import!E3589","v":"Confirm Funding / Collateral"},{"$f":"Import!E3658","v":"Confirm Funding / Collateral"},{"$f":"Import!E3727","v":"Confirm Funding / Collateral"},{"$f":"Import!E3796","v":"Confirm Funding / Collateral"},{"$f":"Import!E3865","v":"Confirm Funding / Collateral"},{"$f":"Import!E3934","v":"Confirm Funding / Collateral"},{"$f":"Import!E4003","v":"Confirm Funding / Collateral"},{"$f":"Import!E4072","v":"Confirm Funding / Collateral"},{"$f":"Import!E4141","v":"Confirm Funding / Collateral"},{"$f":"Import!E4210","v":"Confirm Funding / Collateral"},{"$f":"Import!E4279","v":"Confirm Funding / Collateral"},{"$f":"Import!E4348","v":"Confirm Funding / Collateral"},{"$f":"Import!E4417","v":"Confirm Funding / Collateral"},{"$f":"Import!E4486","v":"Confirm Funding / Collateral"},{"$f":"Import!E4555","v":"Confirm Funding / Collateral"},{"$f":"Import!E4624","v":"Confirm Funding / Collateral"},"Confirm Funding / Collateral","Confirm Funding / Collateral","Confirm Funding / Collateral","Confirm Funding / Collateral","Confirm Funding / Collateral","Confirm Funding / Collateral","Confirm Funding / Collateral","Confirm Funding / Collateral","Confirm Funding / Collateral","Confirm Funding / Collateral","Confirm Funding / Collateral","Confirm Funding / Collateral","Confirm Funding / Collateral","Confirm Funding / Collateral","Confirm Funding / Collateral","Confirm Funding / Collateral","Confirm Funding / Collateral","Confirm Funding / Collateral","Confirm Funding / Collateral","Confirm Funding / Collateral","Confirm Funding / Collateral","Confirm Funding / Collateral","Confirm Funding / Collateral","Confirm Funding / Collateral","Confirm Funding / Collateral"]
[null,"(AA.1) ","Aggregate Limit Amount",{"$f":"Import!E2969","v":0},{"$f":"Import!E3038","v":0},{"$f":"Import!E3107","v":0},{"$f":"Import!E3176","v":0},{"$f":"Import!E3245","v":0},{"$f":"Import!E3314","v":0},{"$f":"Import!E3383","v":0},{"$f":"Import!E3452","v":0},{"$f":"Import!E3521","v":0},{"$f":"Import!E3590","v":0},{"$f":"Import!E3659","v":0},{"$f":"Import!E3728","v":0},{"$f":"Import!E3797","v":0},{"$f":"Import!E3866","v":0},{"$f":"Import!E3935","v":0},{"$f":"Import!E4004","v":0},{"$f":"Import!E4073","v":0},{"$f":"Import!E4142","v":0},{"$f":"Import!E4211","v":0},{"$f":"Import!E4280","v":0},{"$f":"Import!E4349","v":0},{"$f":"Import!E4418","v":0},{"$f":"Import!E4487","v":0},{"$f":"Import!E4556","v":0},{"$f":"Import!E4625","v":0},null,null,null,null,null,null,null,null,null,null,null,null,null,null,null,null,null,null,null,null,null,null,null,null,null,null,{"$f":"SUM(D46:BA46)","v":0},null,{"$f":"Import!E4672","v":0},null,{"$f":"BC46+BE46","v":0}]
[null,"(AA.2) ","Limit of Cell Funding/Collateral Details",{"$f":"Import!E2970","v":0},{"$f":"Import!E3039","v":0},{"$f":"Import!E3108","v":0},{"$f":"Import!E3177","v":0},{"$f":"Import!E3246","v":0},{"$f":"Import!E3315","v":0},{"$f":"Import!E3384","v":0},{"$f":"Import!E3453","v":0},{"$f":"Import!E3522","v":0},{"$f":"Import!E3591","v":0},{"$f":"Import!E3660","v":0},{"$f":"Import!E3729","v":0},{"$f":"Import!E3798","v":0},{"$f":"Import!E3867","v":0},{"$f":"Import!E3936","v":0},{"$f":"Import!E4005","v":0},{"$f":"Import!E4074","v":0},{"$f":"Import!E4143","v":0},{"$f":"Import!E4212","v":0},{"$f":"Import!E4281","v":0},{"$f":"Import!E4350","v":0},{"$f":"Import!E4419","v":0},{"$f":"Import!E4488","v":0},{"$f":"Import!E4557","v":0},{"$f":"Import!E4626","v":0}]
[]
[null,null,"CELL ACTIVITY"]
[null,"(AB) ","Cell is in Run-Off",{"$f":"Import!E2971","v":"Select Yes/No"},{"$f":"Import!E3040","v":"Select Yes/No"},{"$f":"Import!E3109","v":"Select Yes/No"},{"$f":"Import!E3178","v":"Select Yes/No"},{"$f":"Import!E3247","v":"Select Yes/No"},{"$f":"Import!E3316","v":"Select Yes/No"},{"$f":"Import!E3385","v":"Select Yes/No"},{"$f":"Import!E3454","v":"Select Yes/No"},{"$f":"Import!E3523","v":"Select Yes/No"},{"$f":"Import!E3592","v":"Select Yes/No"},{"$f":"Import!E3661","v":"Select Yes/No"},{"$f":"Import!E3730","v":"Select Yes/No"},{"$f":"Import!E3799","v":"Select Yes/No"},{"$f":"Import!E3868","v":"Select Yes/No"},{"$f":"Import!E3937","v":"Select Yes/No"},{"$f":"Import!E4006","v":"Select Yes/No"},{"$f":"Import!E4075","v":"Select Yes/No"},{"$f":"Import!E4144","v":"Select Yes/No"},{"$f":"Import!E4213","v":"Select Yes/No"},{"$f":"Import!E4282","v":"Select Yes/No"},{"$f":"Import!E4351","v":"Select Yes/No"},{"$f":"Import!E4420","v":"Select Yes/No"},{"$f":"Import!E4489","v":"Select Yes/No"},{"$f":"Import!E4558","v":"Select Yes/No"},{"$f":"Import!E4627","v":"Select Yes/No"},"Select Yes/No","Select Yes/No","Select Yes/No","Select Yes/No","Select Yes/No","Select Yes/No","Select Yes/No","Select Yes/No","Select Yes/No","Select Yes/No","Select Yes/No","Select Yes/No","Select Yes/No","Select Yes/No","Select Yes/No","Select Yes/No","Select Yes/No","Select Yes/No","Select Yes/No","Select Yes/No","Select Yes/No","Select Yes/No","Select Yes/No","Select Yes/No","Select Yes/No"]
[null,"(AC) ","Currency Used",{"$f":"Import!E2972","v":"Select Currency"},{"$f":"Import!E3041","v":"Select Currency"},{"$f":"Import!E3110","v":"Select Currency"},{"$f":"Import!E3179","v":"Select Currency"},{"$f":"Import!E3248","v":"Select Currency"},{"$f":"Import!E3317","v":"Select Currency"},{"$f":"Import!E3386","v":"Select Currency"},{"$f":"Import!E3455","v":"Select Currency"},{"$f":"Import!E3524","v":"Select Currency"},{"$f":"Import!E3593","v":"Select Currency"},{"$f":"Import!E3662","v":"Select Currency"},{"$f":"Import!E3731","v":"Select Currency"},{"$f":"Import!E3800","v":"Select Currency"},{"$f":"Import!E3869","v":"Select Currency"},{"$f":"Import!E3938","v":"Select Currency"},{"$f":"Import!E4007","v":"Select Currency"},{"$f":"Import!E4076","v":"Select Currency"},{"$f":"Import!E4145","v":"Select Currency"},{"$f":"Import!E4214","v":"Select Currency"},{"$f":"Import!E4283","v":"Select Currency"},{"$f":"Import!E4352","v":"Select Currency"},{"$f":"Import!E4421","v":"Select Currency"},{"$f":"Import!E4490","v":"Select Currency"},{"$f":"Import!E4559","v":"Select Currency"},{"$f":"Import!E4628","v":"Select Currency"},"Select Currency","Select Currency","Select Currency","Select Currency","Select Currency","Select Currency","Select Currency","Select Currency","Select Currency","Select Currency","Select Currency","Select Currency","Select Currency","Select Currency","Select Currency","Select Currency","Select Currency","Select Currency","Select Currency","Select Currency","Select Currency","Select Currency","Select Currency","Select Currency","Select Currency"]
[null,"(AD) ","Cell to Cell Activity ",{"$f":"Import!E2973","v":"Confirm Activity"},{"$f":"Import!E3042","v":"Confirm Activity"},{"$f":"Import!E3111","v":"Confirm Activity"},{"$f":"Import!E3180","v":"Confirm Activity"},{"$f":"Import!E3249","v":"Confirm Activity"},{"$f":"Import!E3318","v":"Confirm Activity"},{"$f":"Import!E3387","v":"Confirm Activity"},{"$f":"Import!E3456","v":"Confirm Activity"},{"$f":"Import!E3525","v":"Confirm Activity"},{"$f":"Import!E3594","v":"Confirm Activity"},{"$f":"Import!E3663","v":"Confirm Activity"},{"$f":"Import!E3732","v":"Confirm Activity"},{"$f":"Import!E3801","v":"Confirm Activity"},{"$f":"Import!E3870","v":"Confirm Activity"},{"$f":"Import!E3939","v":"Confirm Activity"},{"$f":"Import!E4008","v":"Confirm Activity"},{"$f":"Import!E4077","v":"Confirm Activity"},{"$f":"Import!E4146","v":"Confirm Activity"},{"$f":"Import!E4215","v":"Confirm Activity"},{"$f":"Import!E4284","v":"Confirm Activity"},{"$f":"Import!E4353","v":"Confirm Activity"},{"$f":"Import!E4422","v":"Confirm Activity"},{"$f":"Import!E4491","v":"Confirm Activity"},{"$f":"Import!E4560","v":"Confirm Activity"},{"$f":"Import!E4629","v":"Confirm Activity"},"Confirm Activity","Confirm Activity","Confirm Activity","Confirm Activity","Confirm Activity","Confirm Activity","Confirm Activity","Confirm Activity","Confirm Activity","Confirm Activity","Confirm Activity","Confirm Activity","Confirm Activity","Confirm Activity","Confirm Activity","Confirm Activity","Confirm Activity","Confirm Activity","Confirm Activity","Confirm Activity","Confirm Activity","Confirm Activity","Confirm Activity","Confirm Activity","Confirm Activity"]
[null,"(AD.1) ","Cell to Cell Activity Details",{"$f":"Import!E2974","v":0},{"$f":"Import!E3043","v":0},{"$f":"Import!E3112","v":0},{"$f":"Import!E3181","v":0},{"$f":"Import!E3250","v":0},{"$f":"Import!E3319","v":0},{"$f":"Import!E3388","v":0},{"$f":"Import!E3457","v":0},{"$f":"Import!E3526","v":0},{"$f":"Import!E3595","v":0},{"$f":"Import!E3664","v":0},{"$f":"Import!E3733","v":0},{"$f":"Import!E3802","v":0},{"$f":"Import!E3871","v":0},{"$f":"Import!E3940","v":0},{"$f":"Import!E4009","v":0},{"$f":"Import!E4078","v":0},{"$f":"Import!E4147","v":0},{"$f":"Import!E4216","v":0},{"$f":"Import!E4285","v":0},{"$f":"Import!E4354","v":0},{"$f":"Import!E4423","v":0},{"$f":"Import!E4492","v":0},{"$f":"Import!E4561","v":0},{"$f":"Import!E4630","v":0}]
[null,"(AE) ","General Cell to Cell Activity",{"$f":"Import!E2975","v":"Confirm Activity"},{"$f":"Import!E3044","v":"Confirm Activity"},{"$f":"Import!E3113","v":"Confirm Activity"},{"$f":"Import!E3182","v":"Confirm Activity"},{"$f":"Import!E3251","v":"Confirm Activity"},{"$f":"Import!E3320","v":"Confirm Activity"},{"$f":"Import!E3389","v":"Confirm Activity"},{"$f":"Import!E3458","v":"Confirm Activity"},{"$f":"Import!E3527","v":"Confirm Activity"},{"$f":"Import!E3596","v":"Confirm Activity"},{"$f":"Import!E3665","v":"Confirm Activity"},{"$f":"Import!E3734","v":"Confirm Activity"},{"$f":"Import!E3803","v":"Confirm Activity"},{"$f":"Import!E3872","v":"Confirm Activity"},{"$f":"Import!E3941","v":"Confirm Activity"},{"$f":"Import!E4010","v":"Confirm Activity"},{"$f":"Import!E4079","v":"Confirm Activity"},{"$f":"Import!E4148","v":"Confirm Activity"},{"$f":"Import!E4217","v":"Confirm Activity"},{"$f":"Import!E4286","v":"Confirm Activity"},{"$f":"Import!E4355","v":"Confirm Activity"},{"$f":"Import!E4424","v":"Confirm Activity"},{"$f":"Import!E4493","v":"Confirm Activity"},{"$f":"Import!E4562","v":"Confirm Activity"},{"$f":"Import!E4631","v":"Confirm Activity"},"Confirm Activity","Confirm Activity","Confirm Activity","Confirm Activity","Confirm Activity","Confirm Activity","Confirm Activity","Confirm Activity","Confirm Activity","Confirm Activity","Confirm Activity","Confirm Activity","Confirm Activity","Confirm Activity","Confirm Activity","Confirm Activity","Confirm Activity","Confirm Activity","Confirm Activity","Confirm Activity","Confirm Activity","Confirm Activity","Confirm Activity","Confirm Activity","Confirm Activity"]
[null,"(AE.1) ","General Cell to Cell Activity Details",{"$f":"Import!E2976","v":0},{"$f":"Import!E3045","v":0},{"$f":"Import!E3114","v":0},{"$f":"Import!E3183","v":0},{"$f":"Import!E3252","v":0},{"$f":"Import!E3321","v":0},{"$f":"Import!E3390","v":0},{"$f":"Import!E3459","v":0},{"$f":"Import!E3528","v":0},{"$f":"Import!E3597","v":0},{"$f":"Import!E3666","v":0},{"$f":"Import!E3735","v":0},{"$f":"Import!E3804","v":0},{"$f":"Import!E3873","v":0},{"$f":"Import!E3942","v":0},{"$f":"Import!E4011","v":0},{"$f":"Import!E4080","v":0},{"$f":"Import!E4149","v":0},{"$f":"Import!E4218","v":0},{"$f":"Import!E4287","v":0},{"$f":"Import!E4356","v":0},{"$f":"Import!E4425","v":0},{"$f":"Import!E4494","v":0},{"$f":"Import!E4563","v":0},{"$f":"Import!E4632","v":0}]
[null,"(AF) ","Where a cell is in deficit, insolvent or subject to litigation, provide or attach details of remediation actions or update on proceedings",{"$f":"Import!E2977","v":0},{"$f":"Import!E3046","v":0},{"$f":"Import!E3115","v":0},{"$f":"Import!E3184","v":0},{"$f":"Import!E3253","v":0},{"$f":"Import!E3322","v":0},{"$f":"Import!E3391","v":0},{"$f":"Import!E3460","v":0},{"$f":"Import!E3529","v":0},{"$f":"Import!E3598","v":0},{"$f":"Import!E3667","v":0},{"$f":"Import!E3736","v":0},{"$f":"Import!E3805","v":0},{"$f":"Import!E3874","v":0},{"$f":"Import!E3943","v":0},{"$f":"Import!E4012","v":0},{"$f":"Import!E4081","v":0},{"$f":"Import!E4150","v":0},{"$f":"Import!E4219","v":0},{"$f":"Import!E4288","v":0},{"$f":"Import!E4357","v":0},{"$f":"Import!E4426","v":0},{"$f":"Import!E4495","v":0},{"$f":"Import!E4564","v":0},{"$f":"Import!E4633","v":0}]
[null,"(AG) ","Additional Capital Support",{"$f":"Import!E2978","v":"Confirm"},{"$f":"Import!E3047","v":"Confirm"},{"$f":"Import!E3116","v":"Confirm"},{"$f":"Import!E3185","v":"Confirm"},{"$f":"Import!E3254","v":"Confirm"},{"$f":"Import!E3323","v":"Confirm"},{"$f":"Import!E3392","v":"Confirm"},{"$f":"Import!E3461","v":"Confirm"},{"$f":"Import!E3530","v":"Confirm"},{"$f":"Import!E3599","v":"Confirm"},{"$f":"Import!E3668","v":"Confirm"},{"$f":"Import!E3737","v":"Confirm"},{"$f":"Import!E3806","v":"Confirm"},{"$f":"Import!E3875","v":"Confirm"},{"$f":"Import!E3944","v":"Confirm"},{"$f":"Import!E4013","v":"Confirm"},{"$f":"Import!E4082","v":"Confirm"},{"$f":"Import!E4151","v":"Confirm"},{"$f":"Import!E4220","v":"Confirm"},{"$f":"Import!E4289","v":"Confirm"},{"$f":"Import!E4358","v":"Confirm"},{"$f":"Import!E4427","v":"Confirm"},{"$f":"Import!E4496","v":"Confirm"},{"$f":"Import!E4565","v":"Confirm"},{"$f":"Import!E4634","v":"Confirm"},"Confirm","Confirm","Confirm","Confirm","Confirm","Confirm","Confirm","Confirm","Confirm","Confirm","Confirm","Confirm","Confirm","Confirm","Confirm","Confirm","Confirm","Confirm","Confirm","Confirm","Confirm","Confirm","Confirm","Confirm","Confirm"]
[null,"(AG.1) ","Additional Capital Support Details",{"$f":"Import!E2979","v":0},{"$f":"Import!E3048","v":0},{"$f":"Import!E3117","v":0},{"$f":"Import!E3186","v":0},{"$f":"Import!E3255","v":0},{"$f":"Import!E3324","v":0},{"$f":"Import!E3393","v":0},{"$f":"Import!E3462","v":0},{"$f":"Import!E3531","v":0},{"$f":"Import!E3600","v":0},{"$f":"Import!E3669","v":0},{"$f":"Import!E3738","v":0},{"$f":"Import!E3807","v":0},{"$f":"Import!E3876","v":0},{"$f":"Import!E3945","v":0},{"$f":"Import!E4014","v":0},{"$f":"Import!E4083","v":0},{"$f":"Import!E4152","v":0},{"$f":"Import!E4221","v":0},{"$f":"Import!E4290","v":0},{"$f":"Import!E4359","v":0},{"$f":"Import!E4428","v":0},{"$f":"Import!E4497","v":0},{"$f":"Import!E4566","v":0},{"$f":"Import!E4635","v":0}]
[]
[null,null,"BENEFICIAL OWNERSHIP"]
[null,"(AH) ","Details of Beneficial Owners and their relationship to the underlying risk",{"$f":"Import!E2980","v":"Confirm"},{"$f":"Import!E3049","v":"Confirm"},{"$f":"Import!E3118","v":"Confirm"},{"$f":"Import!E3187","v":"Confirm"},{"$f":"Import!E3256","v":"Confirm"},{"$f":"Import!E3325","v":"Confirm"},{"$f":"Import!E3394","v":"Confirm"},{"$f":"Import!E3463","v":"Confirm"},{"$f":"Import!E3532","v":"Confirm"},{"$f":"Import!E3601","v":"Confirm"},{"$f":"Import!E3670","v":"Confirm"},{"$f":"Import!E3739","v":"Confirm"},{"$f":"Import!E3808","v":"Confirm"},{"$f":"Import!E3877","v":"Confirm"},{"$f":"Import!E3946","v":"Confirm"},{"$f":"Import!E4015","v":"Confirm"},{"$f":"Import!E4084","v":"Confirm"},{"$f":"Import!E4153","v":"Confirm"},{"$f":"Import!E4222","v":"Confirm"},{"$f":"Import!E4291","v":"Confirm"},{"$f":"Import!E4360","v":"Confirm"},{"$f":"Import!E4429","v":"Confirm"},{"$f":"Import!E4498","v":"Confirm"},{"$f":"Import!E4567","v":"Confirm"},{"$f":"Import!E4636","v":"Confirm"},"Confirm","Confirm","Confirm","Confirm","Confirm","Confirm","Confirm","Confirm","Confirm","Confirm","Confirm","Confirm","Confirm","Confirm","Confirm","Confirm","Confirm","Confirm","Confirm","Confirm","Confirm","Confirm","Confirm","Confirm","Confirm"]
[null,"(AI) ","Beneficial Owner(s) Relationship to the Segregated Account Company Ownership",{"$f":"Import!E2981","v":"Confirm"},{"$f":"Import!E3050","v":"Confirm"},{"$f":"Import!E3119","v":"Confirm"},{"$f":"Import!E3188","v":"Confirm"},{"$f":"Import!E3257","v":"Confirm"},{"$f":"Import!E3326","v":"Confirm"},{"$f":"Import!E3395","v":"Confirm"},{"$f":"Import!E3464","v":"Confirm"},{"$f":"Import!E3533","v":"Confirm"},{"$f":"Import!E3602","v":"Confirm"},{"$f":"Import!E3671","v":"Confirm"},{"$f":"Import!E3740","v":"Confirm"},{"$f":"Import!E3809","v":"Confirm"},{"$f":"Import!E3878","v":"Confirm"},{"$f":"Import!E3947","v":"Confirm"},{"$f":"Import!E4016","v":"Confirm"},{"$f":"Import!E4085","v":"Confirm"},{"$f":"Import!E4154","v":"Confirm"},{"$f":"Import!E4223","v":"Confirm"},{"$f":"Import!E4292","v":"Confirm"},{"$f":"Import!E4361","v":"Confirm"},{"$f":"Import!E4430","v":"Confirm"},{"$f":"Import!E4499","v":"Confirm"},{"$f":"Import!E4568","v":"Confirm"},{"$f":"Import!E4637","v":"Confirm"},"Confirm","Confirm","Confirm","Confirm","Confirm","Confirm","Confirm","Confirm","Confirm","Confirm","Confirm","Confirm","Confirm","Confirm","Confirm","Confirm","Confirm","Confirm","Confirm","Confirm","Confirm","Confirm","Confirm","Confirm","Confirm"]
[null,"(AJ) ","Beneficial Owner(s)",{"$f":"Import!E2982","v":"Confirm"},{"$f":"Import!E3051","v":"Confirm"},{"$f":"Import!E3120","v":"Confirm"},{"$f":"Import!E3189","v":"Confirm"},{"$f":"Import!E3258","v":"Confirm"},{"$f":"Import!E3327","v":"Confirm"},{"$f":"Import!E3396","v":"Confirm"},{"$f":"Import!E3465","v":"Confirm"},{"$f":"Import!E3534","v":"Confirm"},{"$f":"Import!E3603","v":"Confirm"},{"$f":"Import!E3672","v":"Confirm"},{"$f":"Import!E3741","v":"Confirm"},{"$f":"Import!E3810","v":"Confirm"},{"$f":"Import!E3879","v":"Confirm"},{"$f":"Import!E3948","v":"Confirm"},{"$f":"Import!E4017","v":"Confirm"},{"$f":"Import!E4086","v":"Confirm"},{"$f":"Import!E4155","v":"Confirm"},{"$f":"Import!E4224","v":"Confirm"},{"$f":"Import!E4293","v":"Confirm"},{"$f":"Import!E4362","v":"Confirm"},{"$f":"Import!E4431","v":"Confirm"},{"$f":"Import!E4500","v":"Confirm"},{"$f":"Import!E4569","v":"Confirm"},{"$f":"Import!E4638","v":"Confirm"},"Confirm Beneficial Owner","Confirm Beneficial Owner","Confirm Beneficial Owner","Confirm Beneficial Owner","Confirm Beneficial Owner","Confirm Beneficial Owner","Confirm Beneficial Owner","Confirm Beneficial Owner","Confirm Beneficial Owner","Confirm Beneficial Owner","Confirm Beneficial Owner","Confirm Beneficial Owner","Confirm Beneficial Owner","Confirm Beneficial Owner","Confirm Beneficial Owner","Confirm Beneficial Owner","Confirm Beneficial Owner","Confirm Beneficial Owner","Confirm Beneficial Owner","Confirm Beneficial Owner","Confirm Beneficial Owner","Confirm Beneficial Owner","Confirm Beneficial Owner","Confirm Beneficial Owner","Confirm Beneficial Owner"]
[null,"(AK) ","Beneficial Ownership",{"$f":"Import!E2983","v":"Confirm Ownership"},{"$f":"Import!E3052","v":"Confirm Ownership"},{"$f":"Import!E3121","v":"Confirm Ownership"},{"$f":"Import!E3190","v":"Confirm Ownership"},{"$f":"Import!E3259","v":"Confirm Ownership"},{"$f":"Import!E3328","v":"Confirm Ownership"},{"$f":"Import!E3397","v":"Confirm Ownership"},{"$f":"Import!E3466","v":"Confirm Ownership"},{"$f":"Import!E3535","v":"Confirm Ownership"},{"$f":"Import!E3604","v":"Confirm Ownership"},{"$f":"Import!E3673","v":"Confirm Ownership"},{"$f":"Import!E3742","v":"Confirm Ownership"},{"$f":"Import!E3811","v":"Confirm Ownership"},{"$f":"Import!E3880","v":"Confirm Ownership"},{"$f":"Import!E3949","v":"Confirm Ownership"},{"$f":"Import!E4018","v":"Confirm Ownership"},{"$f":"Import!E4087","v":"Confirm Ownership"},{"$f":"Import!E4156","v":"Confirm Ownership"},{"$f":"Import!E4225","v":"Confirm Ownership"},{"$f":"Import!E4294","v":"Confirm Ownership"},{"$f":"Import!E4363","v":"Confirm Ownership"},{"$f":"Import!E4432","v":"Confirm Ownership"},{"$f":"Import!E4501","v":"Confirm Ownership"},{"$f":"Import!E4570","v":"Confirm Ownership"},{"$f":"Import!E4639","v":"Confirm Ownership"},"Confirm Ownership","Confirm Ownership","Confirm Ownership","Confirm Ownership","Confirm Ownership","Confirm Ownership","Confirm Ownership","Confirm Ownership","Confirm Ownership","Confirm Ownership","Confirm Ownership","Confirm Ownership","Confirm Ownership","Confirm Ownership","Confirm Ownership","Confirm Ownership","Confirm Ownership","Confirm Ownership","Confirm Ownership","Confirm Ownership","Confirm Ownership","Confirm Ownership","Confirm Ownership","Confirm Ownership","Confirm Ownership"]
[null,"(AK.1) ","Beneficial Ownership Details (if other is chosen)",{"$f":"Import!E2984","v":0},{"$f":"Import!E3053","v":0},{"$f":"Import!E3122","v":0},{"$f":"Import!E3191","v":0},{"$f":"Import!E3260","v":0},{"$f":"Import!E3329","v":0},{"$f":"Import!E3398","v":0},{"$f":"Import!E3467","v":0},{"$f":"Import!E3536","v":0},{"$f":"Import!E3605","v":0},{"$f":"Import!E3674","v":0},{"$f":"Import!E3743","v":0},{"$f":"Import!E3812","v":0},{"$f":"Import!E3881","v":0},{"$f":"Import!E3950","v":0},{"$f":"Import!E4019","v":0},{"$f":"Import!E4088","v":0},{"$f":"Import!E4157","v":0},{"$f":"Import!E4226","v":0},{"$f":"Import!E4295","v":0},{"$f":"Import!E4364","v":0},{"$f":"Import!E4433","v":0},{"$f":"Import!E4502","v":0},{"$f":"Import!E4571","v":0},{"$f":"Import!E4640","v":0}]
[null,"(AL) ","Details of the principal jurisdiction of the underlying risk",{"$f":"Import!E2985","v":"Confirm Jurisdiction"},{"$f":"Import!E3054","v":"Confirm Jurisdiction"},{"$f":"Import!E3123","v":"Confirm Jurisdiction"},{"$f":"Import!E3192","v":"Confirm Jurisdiction"},{"$f":"Import!E3261","v":"Confirm Jurisdiction"},{"$f":"Import!E3330","v":"Confirm Jurisdiction"},{"$f":"Import!E3399","v":"Confirm Jurisdiction"},{"$f":"Import!E3468","v":"Confirm Jurisdiction"},{"$f":"Import!E3537","v":"Confirm Jurisdiction"},{"$f":"Import!E3606","v":"Confirm Jurisdiction"},{"$f":"Import!E3675","v":"Confirm Jurisdiction"},{"$f":"Import!E3744","v":"Confirm Jurisdiction"},{"$f":"Import!E3813","v":"Confirm Jurisdiction"},{"$f":"Import!E3882","v":"Confirm Jurisdiction"},{"$f":"Import!E3951","v":"Confirm Jurisdiction"},{"$f":"Import!E4020","v":"Confirm Jurisdiction"},{"$f":"Import!E4089","v":"Confirm Jurisdiction"},{"$f":"Import!E4158","v":"Confirm Jurisdiction"},{"$f":"Import!E4227","v":"Confirm Jurisdiction"},{"$f":"Import!E4296","v":"Confirm Jurisdiction"},{"$f":"Import!E4365","v":"Confirm Jurisdiction"},{"$f":"Import!E4434","v":"Confirm Jurisdiction"},{"$f":"Import!E4503","v":"Confirm Jurisdiction"},{"$f":"Import!E4572","v":"Confirm Jurisdiction"},{"$f":"Import!E4641","v":"Confirm Jurisdiction"},"Confirm Jurisdiction","Confirm Jurisdiction","Confirm Jurisdiction","Confirm Jurisdiction","Confirm Jurisdiction","Confirm Jurisdiction","Confirm Jurisdiction","Confirm Jurisdiction","Confirm Jurisdiction","Confirm Jurisdiction","Confirm Jurisdiction","Confirm Jurisdiction","Confirm Jurisdiction","Confirm Jurisdiction","Confirm Jurisdiction","Confirm Jurisdiction","Confirm Jurisdiction","Confirm Jurisdiction","Confirm Jurisdiction","Confirm Jurisdiction","Confirm Jurisdiction","Confirm Jurisdiction","Confirm Jurisdiction","Confirm Jurisdiction","Confirm Jurisdiction"]
[null,"(AM) ","Beneficial Owner Governing Instrument",{"$f":"Import!E2986","v":"Confirm Instrument"},{"$f":"Import!E3055","v":"Confirm Instrument"},{"$f":"Import!E3124","v":"Confirm Instrument"},{"$f":"Import!E3193","v":"Confirm Instrument"},{"$f":"Import!E3262","v":"Confirm Instrument"},{"$f":"Import!E3331","v":"Confirm Instrument"},{"$f":"Import!E3400","v":"Confirm Instrument"},{"$f":"Import!E3469","v":"Confirm Instrument"},{"$f":"Import!E3538","v":"Confirm Instrument"},{"$f":"Import!E3607","v":"Confirm Instrument"},{"$f":"Import!E3676","v":"Confirm Instrument"},{"$f":"Import!E3745","v":"Confirm Instrument"},{"$f":"Import!E3814","v":"Confirm Instrument"},{"$f":"Import!E3883","v":"Confirm Instrument"},{"$f":"Import!E3952","v":"Confirm Instrument"},{"$f":"Import!E4021","v":"Confirm Instrument"},{"$f":"Import!E4090","v":"Confirm Instrument"},{"$f":"Import!E4159","v":"Confirm Instrument"},{"$f":"Import!E4228","v":"Confirm Instrument"},{"$f":"Import!E4297","v":"Confirm Instrument"},{"$f":"Import!E4366","v":"Confirm Instrument"},{"$f":"Import!E4435","v":"Confirm Instrument"},{"$f":"Import!E4504","v":"Confirm Instrument"},{"$f":"Import!E4573","v":"Confirm Instrument"},{"$f":"Import!E4642","v":"Confirm Instrument"},"Confirm Instrument","Confirm Instrument","Confirm Instrument","Confirm Instrument","Confirm Instrument","Confirm Instrument","Confirm Instrument","Confirm Instrument","Confirm Instrument","Confirm Instrument","Confirm Instrument","Confirm Instrument","Confirm Instrument","Confirm Instrument","Confirm Instrument","Confirm Instrument","Confirm Instrument","Confirm Instrument","Confirm Instrument","Confirm Instrument","Confirm Instrument","Confirm Instrument","Confirm Instrument","Confirm Instrument","Confirm Instrument"]
[null,"(AM.1) ","Beneficial Owner Governing Instrument (if other is chosen)",{"$f":"Import!E2987","v":0},{"$f":"Import!E3056","v":0},{"$f":"Import!E3125","v":0},{"$f":"Import!E3194","v":0},{"$f":"Import!E3263","v":0},{"$f":"Import!E3332","v":0},{"$f":"Import!E3401","v":0},{"$f":"Import!E3470","v":0},{"$f":"Import!E3539","v":0},{"$f":"Import!E3608","v":0},{"$f":"Import!E3677","v":0},{"$f":"Import!E3746","v":0},{"$f":"Import!E3815","v":0},{"$f":"Import!E3884","v":0},{"$f":"Import!E3953","v":0},{"$f":"Import!E4022","v":0},{"$f":"Import!E4091","v":0},{"$f":"Import!E4160","v":0},{"$f":"Import!E4229","v":0},{"$f":"Import!E4298","v":0},{"$f":"Import!E4367","v":0},{"$f":"Import!E4436","v":0},{"$f":"Import!E4505","v":0},{"$f":"Import!E4574","v":0},{"$f":"Import!E4643","v":0}]
[null,"(AN) ","Does Beneficial Owner Governing Instrument Contain Indemnity Provisions",{"$f":"Import!E2988","v":"Select Yes/No"},{"$f":"Import!E3057","v":"Select Yes/No"},{"$f":"Import!E3126","v":"Select Yes/No"},{"$f":"Import!E3195","v":"Select Yes/No"},{"$f":"Import!E3264","v":"Select Yes/No"},{"$f":"Import!E3333","v":"Select Yes/No"},{"$f":"Import!E3402","v":"Select Yes/No"},{"$f":"Import!E3471","v":"Select Yes/No"},{"$f":"Import!E3540","v":"Select Yes/No"},{"$f":"Import!E3609","v":"Select Yes/No"},{"$f":"Import!E3678","v":"Select Yes/No"},{"$f":"Import!E3747","v":"Select Yes/No"},{"$f":"Import!E3816","v":"Select Yes/No"},{"$f":"Import!E3885","v":"Select Yes/No"},{"$f":"Import!E3954","v":"Select Yes/No"},{"$f":"Import!E4023","v":"Select Yes/No"},{"$f":"Import!E4092","v":"Select Yes/No"},{"$f":"Import!E4161","v":"Select Yes/No"},{"$f":"Import!E4230","v":"Select Yes/No"},{"$f":"Import!E4299","v":"Select Yes/No"},{"$f":"Import!E4368","v":"Select Yes/No"},{"$f":"Import!E4437","v":"Select Yes/No"},{"$f":"Import!E4506","v":"Select Yes/No"},{"$f":"Import!E4575","v":"Select Yes/No"},{"$f":"Import!E4644","v":"Select Yes/No"},"Select Yes/No","Select Yes/No","Select Yes/No","Select Yes/No","Select Yes/No","Select Yes/No","Select Yes/No","Select Yes/No","Select Yes/No","Select Yes/No","Select Yes/No","Select Yes/No","Select Yes/No","Select Yes/No","Select Yes/No","Select Yes/No","Select Yes/No","Select Yes/No","Select Yes/No","Select Yes/No","Select Yes/No","Select Yes/No","Select Yes/No","Select Yes/No","Select Yes/No"]
[null,"(AO) ","Does Insurance/Reinsurance Agreement Contain Limited Recourse Language",{"$f":"Import!E2989","v":0},{"$f":"Import!E3058","v":0},{"$f":"Import!E3127","v":0},{"$f":"Import!E3196","v":0},{"$f":"Import!E3265","v":0},{"$f":"Import!E3334","v":0},{"$f":"Import!E3403","v":0},{"$f":"Import!E3472","v":0},{"$f":"Import!E3541","v":0},{"$f":"Import!E3610","v":0},{"$f":"Import!E3679","v":0},{"$f":"Import!E3748","v":0},{"$f":"Import!E3817","v":0},{"$f":"Import!E3886","v":0},{"$f":"Import!E3955","v":0},{"$f":"Import!E4024","v":0},{"$f":"Import!E4093","v":0},{"$f":"Import!E4162","v":0},{"$f":"Import!E4231","v":0},{"$f":"Import!E4300","v":0},{"$f":"Import!E4369","v":0},{"$f":"Import!E4438","v":0},{"$f":"Import!E4507","v":0},{"$f":"Import!E4576","v":0},{"$f":"Import!E4645","v":0},"Select Yes/No","Select Yes/No","Select Yes/No","Select Yes/No","Select Yes/No","Select Yes/No","Select Yes/No","Select Yes/No","Select Yes/No","Select Yes/No","Select Yes/No","Select Yes/No","Select Yes/No","Select Yes/No","Select Yes/No","Select Yes/No","Select Yes/No","Select Yes/No","Select Yes/No","Select Yes/No","Select Yes/No","Select Yes/No","Select Yes/No","Select Yes/No","Select Yes/No"]
[null,"(AP) ","What mitigants are in place with respect to Operational Risk",{"$f":"Import!E2990","v":"Confirm Mitigants & Attach Support"},{"$f":"Import!E3059","v":"Confirm Mitigants & Attach Support"},{"$f":"Import!E3128","v":"Confirm Mitigants & Attach Support"},{"$f":"Import!E3197","v":"Confirm Mitigants & Attach Support"},{"$f":"Import!E3266","v":"Confirm Mitigants & Attach Support"},{"$f":"Import!E3335","v":"Confirm Mitigants & Attach Support"},{"$f":"Import!E3404","v":"Confirm Mitigants & Attach Support"},{"$f":"Import!E3473","v":"Confirm Mitigants & Attach Support"},{"$f":"Import!E3542","v":"Confirm Mitigants & Attach Support"},{"$f":"Import!E3611","v":"Confirm Mitigants & Attach Support"},{"$f":"Import!E3680","v":"Confirm Mitigants & Attach Support"},{"$f":"Import!E3749","v":"Confirm Mitigants & Attach Support"},{"$f":"Import!E3818","v":"Confirm Mitigants & Attach Support"},{"$f":"Import!E3887","v":"Confirm Mitigants & Attach Support"},{"$f":"Import!E3956","v":"Confirm Mitigants & Attach Support"},{"$f":"Import!E4025","v":"Confirm Mitigants & Attach Support"},{"$f":"Import!E4094","v":"Confirm Mitigants & Attach Support"},{"$f":"Import!E4163","v":"Confirm Mitigants & Attach Support"},{"$f":"Import!E4232","v":"Confirm Mitigants & Attach Support"},{"$f":"Import!E4301","v":"Confirm Mitigants & Attach Support"},{"$f":"Import!E4370","v":"Confirm Mitigants & Attach Support"},{"$f":"Import!E4439","v":"Confirm Mitigants & Attach Support"},{"$f":"Import!E4508","v":"Confirm Mitigants & Attach Support"},{"$f":"Import!E4577","v":"Confirm Mitigants & Attach Support"},{"$f":"Import!E4646","v":"Confirm Mitigants & Attach Support"},"Confirm Mitigants & Attach Support","Confirm Mitigants & Attach Support","Confirm Mitigants & Attach Support","Confirm Mitigants & Attach Support","Confirm Mitigants & Attach Support","Confirm Mitigants & Attach Support","Confirm Mitigants & Attach Support","Confirm Mitigants & Attach Support","Confirm Mitigants & Attach Support","Confirm Mitigants & Attach Support","Confirm Mitigants & Attach Support","Confirm Mitigants & Attach Support","Confirm Mitigants & Attach Support","Confirm Mitigants & Attach Support","Confirm Mitigants & Attach Support","Confirm Mitigants & Attach Support","Confirm Mitigants & Attach Support","Confirm Mitigants & Attach Support","Confirm Mitigants & Attach Support","Confirm Mitigants & Attach Support","Confirm Mitigants & Attach Support","Confirm Mitigants & Attach Support","Confirm Mitigants & Attach Support","Confirm Mitigants & Attach Support","Confirm Mitigants & Attach Support"]
[]
[null,"(AQ) ","Lines of Business Written by Premium Written"]
[null,"(i)","Statutory Lines of Business Written ",{"$f":"Import!E2991","v":"Select Line of Business"},{"$f":"Import!E3060","v":"Select Line of Business"},{"$f":"Import!E3129","v":"Select Line of Business"},{"$f":"Import!E3198","v":"Select Line of Business"},{"$f":"Import!E3267","v":"Select Line of Business"},{"$f":"Import!E3336","v":"Select Line of Business"},{"$f":"Import!E3405","v":"Select Line of Business"},{"$f":"Import!E3474","v":"Select Line of Business"},{"$f":"Import!E3543","v":"Select Line of Business"},{"$f":"Import!E3612","v":"Select Line of Business"},{"$f":"Import!E3681","v":"Select Line of Business"},{"$f":"Import!E3750","v":"Select Line of Business"},{"$f":"Import!E3819","v":"Select Line of Business"},{"$f":"Import!E3888","v":"Select Line of Business"},{"$f":"Import!E3957","v":"Select Line of Business"},{"$f":"Import!E4026","v":"Select Line of Business"},{"$f":"Import!E4095","v":"Select Line of Business"},{"$f":"Import!E4164","v":"Select Line of Business"},{"$f":"Import!E4233","v":"Select Line of Business"},{"$f":"Import!E4302","v":"Select Line of Business"},{"$f":"Import!E4371","v":"Select Line of Business"},{"$f":"Import!E4440","v":"Select Line of Business"},{"$f":"Import!E4509","v":"Select Line of Business"},{"$f":"Import!E4578","v":"Select Line of Business"},{"$f":"Import!E4647","v":"Select Line of Business"},"Select Line of Business","Select Line of Business","Select Line of Business","Select Line of Business","Select Line of Business","Select Line of Business","Select Line of Business","Select Line of Business","Select Line of Business","Select Line of Business","Select Line of Business","Select Line of Business","Select Line of Business","Select Line of Business","Select Line of Business","Select Line of Business","Select Line of Business","Select Line of Business","Select Line of Business","Select Line of Business","Select Line of Business","Select Line of Business","Select Line of Business","Select Line of Business","Select Line of Business",null,null,null,{"$f":"Import!E4673","v":"Select Line of Business"}]
[null,null,"Gross Premiums Written",{"$f":"Import!E2992","v":0},{"$f":"Import!E3061","v":0},{"$f":"Import!E3130","v":0},{"$f":"Import!E3199","v":0},{"$f":"Import!E3268","v":0},{"$f":"Import!E3337","v":0},{"$f":"Import!E3406","v":0},{"$f":"Import!E3475","v":0},{"$f":"Import!E3544","v":0},{"$f":"Import!E3613","v":0},{"$f":"Import!E3682","v":0},{"$f":"Import!E3751","v":0},{"$f":"Import!E3820","v":0},{"$f":"Import!E3889","v":0},{"$f":"Import!E3958","v":0},{"$f":"Import!E4027","v":0},{"$f":"Import!E4096","v":0},{"$f":"Import!E4165","v":0},{"$f":"Import!E4234","v":0},{"$f":"Import!E4303","v":0},{"$f":"Import!E4372","v":0},{"$f":"Import!E4441","v":0},{"$f":"Import!E4510","v":0},{"$f":"Import!E4579","v":0},{"$f":"Import!E4648","v":0},null,null,null,null,null,null,null,null,null,null,null,null,null,null,null,null,null,null,null,null,null,null,null,null,null,null,null,null,{"$f":"Import!E4674","v":0}]
[null,null,"Reinsurance Ceded",{"$f":"Import!E2993","v":0},{"$f":"Import!E3062","v":0},{"$f":"Import!E3131","v":0},{"$f":"Import!E3200","v":0},{"$f":"Import!E3269","v":0},{"$f":"Import!E3338","v":0},{"$f":"Import!E3407","v":0},{"$f":"Import!E3476","v":0},{"$f":"Import!E3545","v":0},{"$f":"Import!E3614","v":0},{"$f":"Import!E3683","v":0},{"$f":"Import!E3752","v":0},{"$f":"Import!E3821","v":0},{"$f":"Import!E3890","v":0},{"$f":"Import!E3959","v":0},{"$f":"Import!E4028","v":0},{"$f":"Import!E4097","v":0},{"$f":"Import!E4166","v":0},{"$f":"Import!E4235","v":0},{"$f":"Import!E4304","v":0},{"$f":"Import!E4373","v":0},{"$f":"Import!E4442","v":0},{"$f":"Import!E4511","v":0},{"$f":"Import!E4580","v":0},{"$f":"Import!E4649","v":0},null,null,null,null,null,null,null,null,null,null,null,null,null,null,null,null,null,null,null,null,null,null,null,null,null,null,null,null,{"$f":"Import!E4675","v":0}]
[null,null,"Net Premiums Written",{"$f":"D75-D76","v":0},0,0,0,0,0,0,0,0,0,0,0,0,0,0,0,0,0,0,0,0,0,0,0,0,0,0,0,0,0,0,0,0,0,0,0,0,0,0,0,0,0,0,0,0,0,0,0,0,0,null,null,null,{"$f":"BE75-BE76","v":0}]
[null,"(ii)","Statutory Lines of Business Written ",{"$f":"Import!E2995","v":"Select Line of Business"},{"$f":"Import!E3064","v":"Select Line of Business"},{"$f":"Import!E3133","v":"Select Line of Business"},{"$f":"Import!E3202","v":"Select Line of Business"},{"$f":"Import!E3271","v":"Select Line of Business"},{"$f":"Import!E3340","v":"Select Line of Business"},{"$f":"Import!E3409","v":"Select Line of Business"},{"$f":"Import!E3478","v":"Select Line of Business"},{"$f":"Import!E3547","v":"Select Line of Business"},{"$f":"Import!E3616","v":"Select Line of Business"},{"$f":"Import!E3685","v":"Select Line of Business"},{"$f":"Import!E3754","v":"Select Line of Business"},{"$f":"Import!E3823","v":"Select Line of Business"},{"$f":"Import!E3892","v":"Select Line of Business"},{"$f":"Import!E3961","v":"Select Line of Business"},{"$f":"Import!E4030","v":"Select Line of Business"},{"$f":"Import!E4099","v":"Select Line of Business"},{"$f":"Import!E4168","v":"Select Line of Business"},{"$f":"Import!E4237","v":"Select Line of Business"},{"$f":"Import!E4306","v":"Select Line of Business"},{"$f":"Import!E4375","v":"Select Line of Business"},{"$f":"Import!E4444","v":"Select Line of Business"},{"$f":"Import!E4513","v":"Select Line of Business"},{"$f":"Import!E4582","v":"Select Line of Business"},{"$f":"Import!E4651","v":"Select Line of Business"},"Select Line of Business","Select Line of Business","Select Line of Business","Select Line of Business","Select Line of Business","Select Line of Business","Select Line of Business","Select Line of Business","Select Line of Business","Select Line of Business","Select Line of Business","Select Line of Business","Select Line of Business","Select Line of Business","Select Line of Business","Select Line of Business","Select Line of Business","Select Line of Business","Select Line of Business","Select Line of Business","Select Line of Business","Select Line of Business","Select Line of Business","Select Line of Business","Select Line of Business",null,null,null,{"$f":"Import!E4677","v":"Select Line of Business"}]
[null,null,"Gross Premiums Written",{"$f":"Import!E2996","v":0},{"$f":"Import!E3065","v":0},{"$f":"Import!E3134","v":0},{"$f":"Import!E3203","v":0},{"$f":"Import!E3272","v":0},{"$f":"Import!E3341","v":0},{"$f":"Import!E3410","v":0},{"$f":"Import!E3479","v":0},{"$f":"Import!E3548","v":0},{"$f":"Import!E3617","v":0},{"$f":"Import!E3686","v":0},{"$f":"Import!E3755","v":0},{"$f":"Import!E3824","v":0},{"$f":"Import!E3893","v":0},{"$f":"Import!E3962","v":0},{"$f":"Import!E4031","v":0},{"$f":"Import!E4100","v":0},{"$f":"Import!E4169","v":0},{"$f":"Import!E4238","v":0},{"$f":"Import!E4307","v":0},{"$f":"Import!E4376","v":0},{"$f":"Import!E4445","v":0},{"$f":"Import!E4514","v":0},{"$f":"Import!E4583","v":0},{"$f":"Import!E4652","v":0},null,null,null,null,null,null,null,null,null,null,null,null,null,null,null,null,null,null,null,null,null,null,null,null,null,null,null,null,{"$f":"Import!E4678","v":0}]
[null,null,"Reinsurance Ceded",{"$f":"Import!E2997","v":0},{"$f":"Import!E3066","v":0},{"$f":"Import!E3135","v":0},{"$f":"Import!E3204","v":0},{"$f":"Import!E3273","v":0},{"$f":"Import!E3342","v":0},{"$f":"Import!E3411","v":0},{"$f":"Import!E3480","v":0},{"$f":"Import!E3549","v":0},{"$f":"Import!E3618","v":0},{"$f":"Import!E3687","v":0},{"$f":"Import!E3756","v":0},{"$f":"Import!E3825","v":0},{"$f":"Import!E3894","v":0},{"$f":"Import!E3963","v":0},{"$f":"Import!E4032","v":0},{"$f":"Import!E4101","v":0},{"$f":"Import!E4170","v":0},{"$f":"Import!E4239","v":0},{"$f":"Import!E4308","v":0},{"$f":"Import!E4377","v":0},{"$f":"Import!E4446","v":0},{"$f":"Import!E4515","v":0},{"$f":"Import!E4584","v":0},{"$f":"Import!E4653","v":0},null,null,null,null,null,null,null,null,null,null,null,null,null,null,null,null,null,null,null,null,null,null,null,null,null,null,null,null,{"$f":"Import!E4679","v":0}]
[null,null,"Net Premiums Written",{"$f":"D79-D80","v":0},0,0,0,0,0,0,0,0,0,0,0,0,0,0,0,0,0,0,0,0,0,0,0,0,{"$f":"AC79-AC80","v":0},0,0,0,0,0,0,0,0,0,0,0,0,0,0,0,0,0,0,0,0,0,0,0,0,null,null,null,{"$f":"BE79-BE80","v":0}]
[null,"(iii)","Statutory Lines of Business Written ",{"$f":"Import!E2999","v":"Select Line of Business"},{"$f":"Import!E3068","v":"Select Line of Business"},{"$f":"Import!E3137","v":"Select Line of Business"},{"$f":"Import!E3206","v":"Select Line of Business"},{"$f":"Import!E3275","v":"Select Line of Business"},{"$f":"Import!E3344","v":"Select Line of Business"},{"$f":"Import!E3413","v":"Select Line of Business"},{"$f":"Import!E3482","v":"Select Line of Business"},{"$f":"Import!E3551","v":"Select Line of Business"},{"$f":"Import!E3620","v":"Select Line of Business"},{"$f":"Import!E3689","v":"Select Line of Business"},{"$f":"Import!E3758","v":"Select Line of Business"},{"$f":"Import!E3827","v":"Select Line of Business"},{"$f":"Import!E3896","v":"Select Line of Business"},{"$f":"Import!E3965","v":"Select Line of Business"},{"$f":"Import!E4034","v":"Select Line of Business"},{"$f":"Import!E4103","v":"Select Line of Business"},{"$f":"Import!E4172","v":"Select Line of Business"},{"$f":"Import!E4241","v":"Select Line of Business"},{"$f":"Import!E4310","v":"Select Line of Business"},{"$f":"Import!E4379","v":"Select Line of Business"},{"$f":"Import!E4448","v":"Select Line of Business"},{"$f":"Import!E4517","v":"Select Line of Business"},{"$f":"Import!E4586","v":"Select Line of Business"},{"$f":"Import!E4655","v":"Select Line of Business"},"Select Line of Business","Select Line of Business","Select Line of Business","Select Line of Business","Select Line of Business","Select Line of Business","Select Line of Business","Select Line of Business","Select Line of Business","Select Line of Business","Select Line of Business","Select Line of Business","Select Line of Business","Select Line of Business","Select Line of Business","Select Line of Business","Select Line of Business","Select Line of Business","Select Line of Business","Select Line of Business","Select Line of Business","Select Line of Business","Select Line of Business","Select Line of Business","Select Line of Business",null,null,null,{"$f":"Import!E4681","v":"Select Line of Business"}]
[null,null,"Gross Premiums Written",{"$f":"Import!E3000","v":0},{"$f":"Import!E3069","v":0},{"$f":"Import!E3138","v":0},{"$f":"Import!E3207","v":0},{"$f":"Import!E3276","v":0},{"$f":"Import!E3345","v":0},{"$f":"Import!E3414","v":0},{"$f":"Import!E3483","v":0},{"$f":"Import!E3552","v":0},{"$f":"Import!E3621","v":0},{"$f":"Import!E3690","v":0},{"$f":"Import!E3759","v":0},{"$f":"Import!E3828","v":0},{"$f":"Import!E3897","v":0},{"$f":"Import!E3966","v":0},{"$f":"Import!E4035","v":0},{"$f":"Import!E4104","v":0},{"$f":"Import!E4173","v":0},{"$f":"Import!E4242","v":0},{"$f":"Import!E4311","v":0},{"$f":"Import!E4380","v":0},{"$f":"Import!E4449","v":0},{"$f":"Import!E4518","v":0},{"$f":"Import!E4587","v":0},{"$f":"Import!E4656","v":0},null,null,null,null,null,null,null,null,null,null,null,null,null,null,null,null,null,null,null,null,null,null,null,null,null,null,null,null,{"$f":"Import!E4682","v":0}]
[null,null,"Reinsurance Ceded",{"$f":"Import!E3001","v":0},{"$f":"Import!E3070","v":0},{"$f":"Import!E3139","v":0},{"$f":"Import!E3208","v":0},{"$f":"Import!E3277","v":0},{"$f":"Import!E3346","v":0},{"$f":"Import!E3415","v":0},{"$f":"Import!E3484","v":0},{"$f":"Import!E3553","v":0},{"$f":"Import!E3622","v":0},{"$f":"Import!E3691","v":0},{"$f":"Import!E3760","v":0},{"$f":"Import!E3829","v":0},{"$f":"Import!E3898","v":0},{"$f":"Import!E3967","v":0},{"$f":"Import!E4036","v":0},{"$f":"Import!E4105","v":0},{"$f":"Import!E4174","v":0},{"$f":"Import!E4243","v":0},{"$f":"Import!E4312","v":0},{"$f":"Import!E4381","v":0},{"$f":"Import!E4450","v":0},{"$f":"Import!E4519","v":0},{"$f":"Import!E4588","v":0},{"$f":"Import!E4657","v":0},null,null,null,null,null,null,null,null,null,null,null,null,null,null,null,null,null,null,null,null,null,null,null,null,null,null,null,null,{"$f":"Import!E4683","v":0}]
[null,null,"Net Premiums Written",{"$f":"D83-D84","v":0},0,0,0,0,0,0,0,0,0,0,0,0,0,0,0,0,0,0,0,0,0,0,0,0,{"$f":"AC83-AC84","v":0},0,0,0,0,0,0,0,0,0,0,0,0,0,0,0,0,0,0,0,0,0,0,0,0,null,null,null,{"$f":"BE83-BE84","v":0}]
[null,"(iv)","Statutory Lines of Business Written ",{"$f":"Import!E3003","v":"Select Line of Business"},{"$f":"Import!E3072","v":"Select Line of Business"},{"$f":"Import!E3141","v":"Select Line of Business"},{"$f":"Import!E3210","v":"Select Line of Business"},{"$f":"Import!E3279","v":"Select Line of Business"},{"$f":"Import!E3348","v":"Select Line of Business"},{"$f":"Import!E3417","v":"Select Line of Business"},{"$f":"Import!E3486","v":"Select Line of Business"},{"$f":"Import!E3555","v":"Select Line of Business"},{"$f":"Import!E3624","v":"Select Line of Business"},{"$f":"Import!E3693","v":"Select Line of Business"},{"$f":"Import!E3762","v":"Select Line of Business"},{"$f":"Import!E3831","v":"Select Line of Business"},{"$f":"Import!E3900","v":"Select Line of Business"},{"$f":"Import!E3969","v":"Select Line of Business"},{"$f":"Import!E4038","v":"Select Line of Business"},{"$f":"Import!E4107","v":"Select Line of Business"},{"$f":"Import!E4176","v":"Select Line of Business"},{"$f":"Import!E4245","v":"Select Line of Business"},{"$f":"Import!E4314","v":"Select Line of Business"},{"$f":"Import!E4383","v":"Select Line of Business"},{"$f":"Import!E4452","v":"Select Line of Business"},{"$f":"Import!E4521","v":"Select Line of Business"},{"$f":"Import!E4590","v":"Select Line of Business"},{"$f":"Import!E4659","v":"Select Line of Business"},"Select Line of Business","Select Line of Business","Select Line of Business","Select Line of Business","Select Line of Business","Select Line of Business","Select Line of Business","Select Line of Business","Select Line of Business","Select Line of Business","Select Line of Business","Select Line of Business","Select Line of Business","Select Line of Business","Select Line of Business","Select Line of Business","Select Line of Business","Select Line of Business","Select Line of Business","Select Line of Business","Select Line of Business","Select Line of Business","Select Line of Business","Select Line of Business","Select Line of Business",null,null,null,{"$f":"Import!E4685","v":"Select Line of Business"}]
[null,null,"Gross Premiums Written",{"$f":"Import!E3004","v":0},{"$f":"Import!E3073","v":0},{"$f":"Import!E3142","v":0},{"$f":"Import!E3211","v":0},{"$f":"Import!E3280","v":0},{"$f":"Import!E3349","v":0},{"$f":"Import!E3418","v":0},{"$f":"Import!E3487","v":0},{"$f":"Import!E3556","v":0},{"$f":"Import!E3625","v":0},{"$f":"Import!E3694","v":0},{"$f":"Import!E3763","v":0},{"$f":"Import!E3832","v":0},{"$f":"Import!E3901","v":0},{"$f":"Import!E3970","v":0},{"$f":"Import!E4039","v":0},{"$f":"Import!E4108","v":0},{"$f":"Import!E4177","v":0},{"$f":"Import!E4246","v":0},{"$f":"Import!E4315","v":0},{"$f":"Import!E4384","v":0},{"$f":"Import!E4453","v":0},{"$f":"Import!E4522","v":0},{"$f":"Import!E4591","v":0},{"$f":"Import!E4660","v":0},null,null,null,null,null,null,null,null,null,null,null,null,null,null,null,null,null,null,null,null,null,null,null,null,null,null,null,null,{"$f":"Import!E4686","v":0}]
[null,null,"Reinsurance Ceded",{"$f":"Import!E3005","v":0},{"$f":"Import!E3074","v":0},{"$f":"Import!E3143","v":0},{"$f":"Import!E3212","v":0},{"$f":"Import!E3281","v":0},{"$f":"Import!E3350","v":0},{"$f":"Import!E3419","v":0},{"$f":"Import!E3488","v":0},{"$f":"Import!E3557","v":0},{"$f":"Import!E3626","v":0},{"$f":"Import!E3695","v":0},{"$f":"Import!E3764","v":0},{"$f":"Import!E3833","v":0},{"$f":"Import!E3902","v":0},{"$f":"Import!E3971","v":0},{"$f":"Import!E4040","v":0},{"$f":"Import!E4109","v":0},{"$f":"Import!E4178","v":0},{"$f":"Import!E4247","v":0},{"$f":"Import!E4316","v":0},{"$f":"Import!E4385","v":0},{"$f":"Import!E4454","v":0},{"$f":"Import!E4523","v":0},{"$f":"Import!E4592","v":0},{"$f":"Import!E4661","v":0},null,null,null,null,null,null,null,null,null,null,null,null,null,null,null,null,null,null,null,null,null,null,null,null,null,null,null,null,{"$f":"Import!E4687","v":0}]
[null,null,"Net Premiums Written",{"$f":"D87-D88","v":0},0,0,0,0,0,0,0,0,0,0,0,0,0,0,0,0,0,0,0,0,0,0,0,0,{"$f":"AC87-AC88","v":0},0,0,0,0,0,0,0,0,0,0,0,0,0,0,0,0,0,0,0,0,0,0,0,0,null,null,null,{"$f":"BE87-BE88","v":0}]
[null,"(v)","Statutory Lines of Business Written ",{"$f":"Import!E3007","v":"Select Line of Business"},{"$f":"Import!E3076","v":"Select Line of Business"},{"$f":"Import!E3145","v":"Select Line of Business"},{"$f":"Import!E3214","v":"Select Line of Business"},{"$f":"Import!E3283","v":"Select Line of Business"},{"$f":"Import!E3352","v":"Select Line of Business"},{"$f":"Import!E3421","v":"Select Line of Business"},{"$f":"Import!E3490","v":"Select Line of Business"},{"$f":"Import!E3559","v":"Select Line of Business"},{"$f":"Import!E3628","v":"Select Line of Business"},{"$f":"Import!E3697","v":"Select Line of Business"},{"$f":"Import!E3766","v":"Select Line of Business"},{"$f":"Import!E3835","v":"Select Line of Business"},{"$f":"Import!E3904","v":"Select Line of Business"},{"$f":"Import!E3973","v":"Select Line of Business"},{"$f":"Import!E4042","v":"Select Line of Business"},{"$f":"Import!E4111","v":"Select Line of Business"},{"$f":"Import!E4180","v":"Select Line of Business"},{"$f":"Import!E4249","v":"Select Line of Business"},{"$f":"Import!E4318","v":"Select Line of Business"},{"$f":"Import!E4387","v":"Select Line of Business"},{"$f":"Import!E4456","v":"Select Line of Business"},{"$f":"Import!E4525","v":"Select Line of Business"},{"$f":"Import!E4594","v":"Select Line of Business"},{"$f":"Import!E4663","v":"Select Line of Business"},"Select Line of Business","Select Line of Business","Select Line of Business","Select Line of Business","Select Line of Business","Select Line of Business","Select Line of Business","Select Line of Business","Select Line of Business","Select Line of Business","Select Line of Business","Select Line of Business","Select Line of Business","Select Line of Business","Select Line of Business","Select Line of Business","Select Line of Business","Select Line of Business","Select Line of Business","Select Line of Business","Select Line of Business","Select Line of Business","Select Line of Business","Select Line of Business","Select Line of Business",null,null,null,{"$f":"Import!E4689","v":"Select Line of Business"}]
[null,null,"Gross Premiums Written",{"$f":"Import!E3008","v":0},{"$f":"Import!E3077","v":0},{"$f":"Import!E3146","v":0},{"$f":"Import!E3215","v":0},{"$f":"Import!E3284","v":0},{"$f":"Import!E3353","v":0},{"$f":"Import!E3422","v":0},{"$f":"Import!E3491","v":0},{"$f":"Import!E3560","v":0},{"$f":"Import!E3629","v":0},{"$f":"Import!E3698","v":0},{"$f":"Import!E3767","v":0},{"$f":"Import!E3836","v":0},{"$f":"Import!E3905","v":0},{"$f":"Import!E3974","v":0},{"$f":"Import!E4043","v":0},{"$f":"Import!E4112","v":0},{"$f":"Import!E4181","v":0},{"$f":"Import!E4250","v":0},{"$f":"Import!E4319","v":0},{"$f":"Import!E4388","v":0},{"$f":"Import!E4457","v":0},{"$f":"Import!E4526","v":0},{"$f":"Import!E4595","v":0},{"$f":"Import!E4664","v":0},null,null,null,null,null,null,null,null,null,null,null,null,null,null,null,null,null,null,null,null,null,null,null,null,null,null,null,null,{"$f":"Import!E4690","v":0}]
[null,null,"Reinsurance Ceded",{"$f":"Import!E3009","v":0},{"$f":"Import!E3078","v":0},{"$f":"Import!E3147","v":0},{"$f":"Import!E3216","v":0},{"$f":"Import!E3285","v":0},{"$f":"Import!E3354","v":0},{"$f":"Import!E3423","v":0},{"$f":"Import!E3492","v":0},{"$f":"Import!E3561","v":0},{"$f":"Import!E3630","v":0},{"$f":"Import!E3699","v":0},{"$f":"Import!E3768","v":0},{"$f":"Import!E3837","v":0},{"$f":"Import!E3906","v":0},{"$f":"Import!E3975","v":0},{"$f":"Import!E4044","v":0},{"$f":"Import!E4113","v":0},{"$f":"Import!E4182","v":0},{"$f":"Import!E4251","v":0},{"$f":"Import!E4320","v":0},{"$f":"Import!E4389","v":0},{"$f":"Import!E4458","v":0},{"$f":"Import!E4527","v":0},{"$f":"Import!E4596","v":0},{"$f":"Import!E4665","v":0},null,null,null,null,null,null,null,null,null,null,null,null,null,null,null,null,null,null,null,null,null,null,null,null,null,null,null,null,{"$f":"Import!E4691","v":0}]
[null,null,"Net Premiums Written",{"$f":"D91-D92","v":0},0,0,0,0,0,0,0,0,0,0,0,0,0,0,0,0,0,0,0,0,0,0,{"$f":"AA91-AA92","v":0},{"$f":"AB91-AB92","v":0},{"$f":"AC91-AC92","v":0},0,0,0,0,0,0,0,0,0,0,0,0,0,0,0,0,0,0,0,0,0,0,0,0,null,null,null,{"$f":"BE91-BE92","v":0}]
[null,null,"Total Gross Premiums Written",{"$f":"D75+D79+D83+D87+D91","v":0},{"$f":"E75+E79+E83+E87+E91","v":0},0,0,0,0,0,0,0,0,0,0,0,0,0,0,0,0,0,0,0,0,0,0,0,0,0,0,0,0,0,0,0,0,0,0,0,0,0,0,0,0,0,0,0,0,0,0,0,0,null,{"$f":"SUM(D94:BA94)","v":0},null,{"$f":"BE75+BE79+BE83+BE87+BE91","v":0}]
[null,null,"Total Net Premiums Written",{"$f":"D77+D81+D85+D89+D93","v":0},{"$f":"E77+E81+E85+E89+E93","v":0},0,0,0,0,0,0,0,0,0,0,0,0,0,0,0,0,0,0,0,0,0,0,0,0,0,0,0,0,0,0,0,0,0,0,0,0,0,0,0,0,0,0,0,0,0,0,0,0,null,0,null,{"$f":"BE76+BE80+BE84+BE88+BE92","v":0}]
[]
[null,null,"Check Gross Premiums Written",{"$f":"ROUND((D30-D94),0)","v":0},0,0,0,0,0,0,0,0,0,0,0,0,0,0,0,0,0,0,0,0,0,0,0,0,0,0,0,0,0,0,0,{"$f":"ROUND((AJ30-AJ94),0)","v":0},0,0,0,0,0,0,0,0,0,0,0,0,0,0,0,0,0,null,null,null,{"$f":"ROUND((BE30-BE94),0)","v":0}]
[null,null,"Check Net Premiums Written",{"$f":"ROUND((D31-D95),0)","v":0},0,0,0,0,0,0,0,0,0,0,0,0,0,0,0,0,0,0,0,0,0,0,0,0,0,0,0,0,0,0,0,{"$f":"ROUND((AJ31-AJ95),0)","v":0},0,0,0,0,0,0,0,0,0,0,0,0,0,0,0,0,0,null,null,null,{"$f":"ROUND((BE31-BE95),0)","v":0}]
[]
[null,null,"Notional Minimum Margin of Solvency Test"]
[null,null,"Test A $120,000 (General Account Only)"]
[null,null,"Test B 20% for first $6 Million; 10% of Net Premiums Written in Excess",{"$f":"IF(D95>0,IF(D95>6000,1200+((D95-6000)*10%),D95*20%),\"\")","v":""},{"$f":"IF(E95>0,IF(E95>6000,1200+((E95-6000)*10%),E95*20%),\"\")","v":""},"","","","","","","","","","","","","","","","","","","","","","","","","","","","","","","","","","","","","","","","","","","","","","","","",null,null,null,{"$f":"IF(BE95>0,IF(BE95>6000,1200+((BE95-6000)*10%),BE95*20%),\"\")","v":""}]
[null,null,"Test C 10% of Net Loss Provisions",{"$f":"IF(D22>0,D22*10%,\"\")","v":""},{"$f":"IF(E22>0,E22*10%,\"\")","v":""},"","","","","","","","","","","","","","","","","","","","","","","","","","","","","","","","","","","","","","","","","","","","","","","","",null,null,null,{"$f":"IF(BE22>0,BE22*10%,\"\")","v":""}]
[]
[null,null,"Notional Minimum Margin of Solvency ",{"$f":"MAX(D102,D103)","v":0},{"$f":"MAX(E102,E103)","v":0},0,0,0,0,0,0,0,0,0,0,0,0,0,0,0,0,0,0,0,0,0,0,0,0,0,0,0,0,0,0,0,0,0,0,0,0,0,0,0,0,0,0,0,0,0,0,0,0,null,null,null,0]
[]
[null,null,"Notional Enhanced Capital Requirement"]
[null,null,"Summary - ECR"]
[null,null,"Summary - Minimum Margin of Solvency"]
[null,null,"ECR to Minimum Margin of Solvency"]
[]
[null,null,"Cell Notional ECR Requirement"]
[]
[null,null,"Cell Notional ECR Ratio"]
[]
[]
[]
[]
[]
[null,null,null,"Select Yes/No",null,null,null,null,null,"Agriculture",null,"Zone 3 - South and South-Eastern Asia","Guarantees","Canadian Dollar"]
[null,null,"Select Premiums Written","Yes","Confirm",null,"Confirm Activity","Confirm Funding / Collateral",null,"Asbestos",null,"Zone 4 - Oceania",null,"Euro"]
[null,null,"Direct Insurer","No","LOC ",null,"None","Up to Probable Maximum Loss",null,"Aviation - Hull, Liability and War",null,"Zone 5 - Northern Africa",null,"Japanese Yen"]
[null,null,"Reinsurer",null,"Gurantees",null,"Reinsurance","Up to Aggregate Limit",null,"Construction",null,"Zone 6 - Southern Africa",null,"Pound Sterling"]
[null,null,"Both",null,"Capital Calls",null,"Other (Define) ","Reserves",null,"Credit / Surety",null,"Zone 7 - Eastern Europe",null,"Swiss Franc"]
[null,null,null,null,"Other (Define) ",null,null,"Total Reserves and expenses",null,"Crime and Fidelity",null,"Zone 8 - Northern Europe"]
[null,null,null,null,null,null,null,"Other (define)",null,"Crime and Fraud",null,"Zone 9 - Southern Europe",null,"Afghanistan Afghani"]
[null,null,null,null,null,null,null,null,null,"Cyber Risk",null,"Zone 10 - Western Europe",null,"Albanian Lek"]
[null,null,null,null,"Confirm",null,null,null,null,"Energy - Onshore and offshore",null,"Zone 11 - Northern America (Excluding USA)",null,"Algerian Dinar"]
[null,null,null,null,"Related",null,null,null,null,"Environmental Risk",null,"Zone 12 - Caribbean & Centeral America",null,"Angolan Kwanza"]
[null,null,null,null,"Unrelated",null,null,null,null,"General liability - Public, Products, Umbrella, Product recall",null,"Zone 13 - Eastern South America",null,"Arab Emirates Dirham"]
[null,null,null,null,null,null,null,null,null,"Life and Accident and Health (General Business approval)",null,"Zone 14 - Northern, Southern and Western South America",null,"Argentine Peso"]
[null,null,null,null,"Confirm Beneficial Owner",null,null,null,null,"Marine - P&I, Cargo, Hull and Liability, War",null,"Zone 15 - North-East United States",null,"Armenian Dram"]
[null,null,null,null,"Single",null,null,null,null,"Medical Malpractice",null,"Zone 16 - South-East United States",null,"Aruban Guilder"]
[null,null,null,null,"Multiple",null,null,null,null,"Mortgage",null,"Zone 17 - Mid-West United States",null,"Australian Dollar"]
[null,null,null,null,null,null,null,null,null,"Motor - APD and Liability",null,"Zone 18 - Western United States",null,"Azerbaijan New Manat"]
[null,null,null,null,"Confirm Ownership",null,null,null,null,"Political Risks",null,null,null,"Bahamian Dollar"]
[null,null,null,null,"Management General Agents & Brokers",null,null,null,null,"Professional Liability - Professional Indemnity, D&O, Bankers Blanket, E&O",null,null,null,"Bahraini Dinar"]
[null,null,null,null,"Insurance Company",null,null,null,null,"Property Catastrophe",null,null,null,"Bangladeshi Taka"]
[null,null,null,null,"Reinsurance Company",null,null,null,null,"Property Damage and Business Interruption",null,null,null,"Barbados Dollar"]
[null,null,null,null,"Non-Insurance Company",null,null,null,null,"Property Retro",null,null,null,"Belarussian Ruble"]
[null,null,null,null,"Non-Related Investors",null,"A or better",null,null,"Structured/Finite Reinsurance",null,null,null,"Belize Dollar"]
[null,null,null,null,"Other",null,"BBB or equivalent",null,null,"Terrorism",null,null,null,"Bhutan Ngultrum"]
[null,null,null,null,null,null,"B or better",null,null,"Warranty, Residual Value",null,null,null,"Boliviano"]
[null,null,{"$error":"#VALUE!"},null,null,null,"unrated/other",null,null,"Workers Compensation/Employers Liability",null,null,null,"Botswana Pula"]
[null,null,null,null,"Confirm Instrument",null,null,null,null,null,null,null,null,"Brazilian Real"]
[null,null,{"$error":"#VALUE!"},null,"Non-Voting Preferred Shareholder Agreement",null,null,null,null,"Long Term Business",null,null,null,"Brunei Dollar"]
[null,null,null,null,"Participation Agreement",null,null,null,null,"Mortality",null,null,null,"Burundi Franc"]
[null,null,null,null,"Noteholder Agreement",null,null,null,null,"Critical Illness",null,null,null,"Cape Verde Escudo"]
[null,null,null,null,"Contingent Commission Agreement",null,null,null,null,"Longevity",null,null,null,"Cayman Islands Dollar"]
[null,null,null,null,"Other Agreement",null,null,null,null,"Deferred Annuities",null,null,null,"CFA Franc BCEAO"]
[null,null,null,null,null,null,null,null,null,"Disability Income: Active lives with premium guarantee of -",null,null,null,"CFA Franc BEAC"]
[null,null,null,null,null,null,null,null,null,"Less than or equal to 1 year",null,null,null,"CFP Franc"]
[null,null,null,null,null,null,null,null,null,"More than 1 year but less than 5 years",null,null,null,"Chilean Peso"]
[null,null,null,null,null,null,null,null,null,"Greater than 5 years",null,null,null,"Colombian Peso"]
[null,null,null,null,null,null,null,null,null,"Disability Income: Actives lives for other",null,null,null,"Comoros Franc"]
[null,null,null,null,null,null,null,null,null,"accident and sickness",null,null,null,"Costa Rican Colon"]
[null,null,null,null,null,null,null,null,null,"Disability Income: Claims in payment",null,null,null,"Croatian Kuna"]
[null,null,null,null,null,null,null,null,null,"Disability Income: Claims in payment for other",null,null,null,"Cuban Peso"]
[null,null,null,null,null,null,null,null,null,"accident and sickness",null,null,null,"Czech Koruna"]
[null,null,null,null,null,null,null,null,null,"Group Life",null,null,null,"Danish Krone"]
[null,null,null,null,null,null,null,null,null,"Group Disability",null,null,null,"Denar"]
[null,null,null,null,null,null,null,null,null,"Group Health",null,null,null,"Djibouti Franc"]
[null,null,null,null,null,null,null,null,null,"Stop Loss",null,null,null,"Dominican Peso"]
[null,null,null,null,null,null,null,null,null,"Rider",null,null,null,"East Caribbean Dollar"]
[null,null,null,null,null,null,null,null,null,"Variable Annuities",null,null,null,"Ecuador Sucre"]
[null,null,null,null,null,null,null,null,null,null,null,null,null,"Egyptian Pound"]
[null,null,null,null,null,null,null,null,null,null,null,null,null,"El Salvador Colon"]
[null,null,null,null,null,null,null,null,null,null,null,null,null,"Eritrean Nakfa"]
[null,null,null,null,null,null,null,null,null,null,null,null,null,"Falkland Islands Pound"]
[null,null,null,null,null,null,null,null,null,null,null,null,null,"Fiji Dollar"]
[null,null,null,null,null,null,null,null,null,null,null,null,null,"Francs"]
[null,null,null,null,null,null,null,null,null,null,null,null,null,"Gambian Dalasi"]
[null,null,null,null,null,null,null,null,null,null,null,null,null,"Georgian Lari"]
[null,null,null,null,null,null,null,null,null,null,null,null,null,"Ghanaian Cedi"]
[null,null,null,null,null,null,null,null,null,null,null,null,null,"Gibraltar Pound"]
[null,null,null,null,null,null,null,null,null,null,null,null,null,"Guatemalan Quetzal"]
[null,null,null,null,null,null,null,null,null,null,null,null,null,"Guinea Franc"]
[null,null,null,null,null,null,null,null,null,null,null,null,null,"Guinea-Bissau Peso"]
[null,null,null,null,null,null,null,null,null,null,null,null,null,"Guyana Dollar"]
[null,null,null,null,null,null,null,null,null,null,null,null,null,"Haitian Gourde"]
[null,null,null,null,null,null,null,null,null,null,null,null,null,"Honduran Lempira"]
[null,null,null,null,null,null,null,null,null,null,null,null,null,"Hong Kong Dollar"]
[null,null,null,null,null,null,null,null,null,null,null,null,null,"Hungarian Forint"]
[null,null,null,null,null,null,null,null,null,null,null,null,null,"Iceland Krona"]
[null,null,null,null,null,null,null,null,null,null,null,null,null,"Indian Rupee"]
[null,null,null,null,null,null,null,null,null,null,null,null,null,"Indonesian Rupiah"]
[null,null,null,null,null,null,null,null,null,null,null,null,null,"Iraqi Dinar"]
[null,null,null,null,null,null,null,null,null,null,null,null,null,"Israeli New Shekel"]
[null,null,null,null,null,null,null,null,null,null,null,null,null,"Jamaican Dollar"]
[null,null,null,null,null,null,null,null,null,null,null,null,null,"Jordanian Dinar"]
[null,null,null,null,null,null,null,null,null,null,null,null,null,"Kampuchean Riel"]
[null,null,null,null,null,null,null,null,null,null,null,null,null,"Kazakhstan Tenge"]
[null,null,null,null,null,null,null,null,null,null,null,null,null,"Kenyan Shilling"]
[null,null,null,null,null,null,null,null,null,null,null,null,null,"Korean Won"]
[null,null,null,null,null,null,null,null,null,null,null,null,null,"Kuwaiti Dinar"]
[null,null,null,null,null,null,null,null,null,null,null,null,null,"Lao Kip"]
[null,null,null,null,null,null,null,null,null,null,null,null,null,"Latvian Lats"]
[null,null,null,null,null,null,null,null,null,null,null,null,null,"Lebanese Pound"]
[null,null,null,null,null,null,null,null,null,null,null,null,null,"Lesotho Loti"]
[null,null,null,null,null,null,null,null,null,null,null,null,null,"Liberian Dollar"]
[null,null,null,null,null,null,null,null,null,null,null,null,null,"Libyan Dinar"]
[null,null,null,null,null,null,null,null,null,null,null,null,null,"Lithuanian Litas"]
[null,null,null,null,null,null,null,null,null,null,null,null,null,"Macau Pataca"]
[null,null,null,null,null,null,null,null,null,null,null,null,null,"Malagasy Franc"]
[null,null,null,null,null,null,null,null,null,null,null,null,null,"Malawi Kwacha"]
[null,null,null,null,null,null,null,null,null,null,null,null,null,"Malaysian Ringgit"]
[null,null,null,null,null,null,null,null,null,null,null,null,null,"Maldive Rufiyaa"]
[null,null,null,null,null,null,null,null,null,null,null,null,null,"Manat"]
[null,null,null,null,null,null,null,null,null,null,null,null,"Marka","Marka"]
[null,null,null,null,null,null,null,null,null,null,null,null,"Moroccan Dirham","Moroccan Dirham"]
[null,null,null,null,null,null,null,null,null,null,null,null,"New Zealand Dollar","New Zealand Dollar"]
[null,null,null,null,null,null,null,null,null,null,null,null,"North Korean Won","North Korean Won"]
[null,null,null,null,null,null,null,null,null,null,null,null,"Norwegian Krone","Norwegian Krone"]
[null,null,null,null,null,null,null,null,null,null,null,null,"Norwegian Krone","Norwegian Krone"]
[null,null,null,null,null,null,null,null,null,null,null,null,"Som","Som"]
[null,null,null,null,null,null,null,null,null,null,null,null,"Sri Lanka Rupee","Sri Lanka Rupee"]
[null,null,null,null,null,null,null,null,null,null,null,null,"Sudanese Pound","Sudanese Pound"]
[null,null,null,null,null,null,null,null,null,null,null,null,"Surinam Dollar","Surinam Dollar"]
[null,null,null,null,null,null,null,null,null,null,null,null,"Swaziland Lilangeni","Swaziland Lilangeni"]
[null,null,null,null,null,null,null,null,null,null,null,null,"Swedish Krona","Swedish Krona"]
[null,null,null,null,null,null,null,null,null,null,null,null,"Syrian Pound","Syrian Pound"]
[null,null,null,null,null,null,null,null,null,null,null,null,"Taiwan Dollar","Taiwan Dollar"]
[null,null,null,null,null,null,null,null,null,null,null,null,"Tajik Somoni","Tajik Somoni"]
[null,null,null,null,null,null,null,null,null,null,null,null,"Tanzanian Shilling","Tanzanian Shilling"]
[null,null,null,null,null,null,null,null,null,null,null,null,"Thai Baht","Thai Baht"]
[null,null,null,null,null,null,null,null,null,null,null,null,"Tongan Pa'anga","Tongan Pa'anga"]
[null,null,null,null,null,null,null,null,null,null,null,null,"Trinidad and Tobago Dollar","Trinidad and Tobago Dollar"]
[null,null,null,null,null,null,null,null,null,null,null,null,"Tunisian Dollar","Tunisian Dollar"]
[null,null,null,null,null,null,null,null,null,null,null,null,"Turkish Lira","Turkish Lira"]
[null,null,null,null,null,null,null,null,null,null,null,null,"Uganda Shilling","Uganda Shilling"]
[null,null,null,null,null,null,null,null,null,null,null,null,"Ukraine Hryvnia","Ukraine Hryvnia"]
[null,null,null,null,null,null,null,null,null,null,null,null,"Uruguayan Peso","Uruguayan Peso"]
[null,null,null,null,null,null,null,null,null,null,null,null,"Uzbekistan Sum","Uzbekistan Sum"]
[null,null,null,null,null,null,null,null,null,null,null,null,"Vanuatu Vatu","Vanuatu Vatu"]
[null,null,null,null,null,null,null,null,null,null,null,null,"Venezuelan Bolivar","Venezuelan Bolivar"]
[null,null,null,null,null,null,null,null,null,null,null,null,"Yemeni Rial","Yemeni Rial"]
[null,null,null,null,null,null,null,null,null,null,null,null,"Yuan Renminbi","Yuan Renminbi"]
[null,null,null,null,null,null,null,null,null,null,null,null,"Zambian Kwacha","Zambian Kwacha"]
[null,null,null,null,null,null,null,null,null,null,null,null,"Zimbabwe Dollar","Zimbabwe Dollar"]

{"sheet":"Schedule V(m)","index":49,"n_rows":1566,"n_cols":23,"rows_kept":1566,"cut":false,"hidden":false,"merged":[[1,2,1,3],[2,2,2,3],[3,2,3,3],[8,1,8,4],[1514,1,1520,10]]}
[null,"Alternative Capital Analysis ",null,null,null,null,null,null,null,null,null,null,null,null,null,null,null,null,null,null,null,null,{"$f":"HYPERLINK(\"#'Index'!A1\",\"Return to Index\")","v":"Return to Index"}]
[null,"Name of Insurer:",{"$f":"'Insurer Information'!C7","v":"Enter Company Name"}]
[null,"Structure of the Insurer:",{"$f":"Import!E4699","v":"Select from Drop Down"}]
[null,"For the Year-Ending:",{"$f":" TEXT('Insurer Information'!C3,\"D MMMM YYYY\")","v":"31 December 2023"}]
[]
[null,"Enter Number of Rows required",{"$f":"Import!E4700","v":0}]
[null,"(Maximum of 1,500 Rows available)"]
[null,"A)  Transaction Details"]
[null,"All monetary figures must be reported in Units and in United States Dollars"]
[null,"Name of Cedant","Contract Reference (e.g. Cell Name/Account No.)","Type of coverage","Statutory Line of Business Written","Location of Exposure Covered","Aggregate Maximum Limit as at Inception Date","Net Aggregate Maximum Limit at the end of Financial Year","Inception Date of Cover Period (DD/MM/YYYY)","Effective Date of Contract\n(DD/MM/YYYY)","Expiry Date of Cover Period (DD/MM/YYYY)","Gross Premium Written for the Cover Period","Net Premium Written for the Cover Period","Attachment Point","Aggregate Losses Outstanding at the Beginning of the Financial Year","Aggregate Losses Incurred During the Financial Year","Aggregate Losses Outstanding at the End of the Financial Year","Reserved Buffer Collateral","Currency of Exposure","Nature of Collateral ","Average Collateral Rating ","Amount of Collateral","Additional Comments (Optional/If Necessary)"]
[1,{"$f":"Import!E4701","v":0},{"$f":"Import!E4726","v":0},{"$f":"Import!E4751","v":"Select from Drop Down"},{"$f":"Import!E4776","v":"Select from Drop Down"},{"$f":"Import!E4801","v":"Select from Drop Down"},{"$f":"Import!E4826","v":0},{"$f":"Import!E4852","v":0},{"$f":"IF(Import!E4878=0,\"\",Import!E4878)","v":""},{"$f":"IF(Import!E4903=0,\"\",Import!E4903)","v":""},{"$f":"IF(Import!E4928=0,\"\",Import!E4928)","v":""},{"$f":"Import!E4953","v":0},{"$f":"Import!E4979","v":0},{"$f":"Import!E5005","v":0},{"$f":"Import!E5031","v":0},{"$f":"Import!E5057","v":0},{"$f":"Import!E5083","v":0},{"$f":"Import!E5109","v":0},{"$f":"Import!E5135","v":"Select from Drop Down"},{"$f":"Import!E5160","v":"Select from Drop Down"},{"$f":"Import!E5185","v":"Select from Drop Down"},{"$f":"Import!E5210","v":0},{"$f":"Import!E5236","v":0}]
[{"$f":"A11+1","v":2},{"$f":"Import!E4702","v":0},{"$f":"Import!E4727","v":0},{"$f":"Import!E4752","v":"Select from Drop Down"},{"$f":"Import!E4777","v":"Select from Drop Down"},{"$f":"Import!E4802","v":"Select from Drop Down"},{"$f":"Import!E4827","v":0},{"$f":"Import!E4853","v":0},{"$f":"IF(Import!E4879=0,\"\",Import!E4879)","v":""},{"$f":"IF(Import!E4904=0,\"\",Import!E4904)","v":""},{"$f":"IF(Import!E4929=0,\"\",Import!E4929)","v":""},{"$f":"Import!E4954","v":0},{"$f":"Import!E4980","v":0},{"$f":"Import!E5006","v":0},{"$f":"Import!E5032","v":0},{"$f":"Import!E5058","v":0},{"$f":"Import!E5084","v":0},{"$f":"Import!E5110","v":0},{"$f":"Import!E5136","v":"Select from Drop Down"},{"$f":"Import!E5161","v":"Select from Drop Down"},{"$f":"Import!E5186","v":"Select from Drop Down"},{"$f":"Import!E5211","v":0},{"$f":"Import!E5237","v":0}]
[{"$f":"A12+1","v":3},{"$f":"Import!E4703","v":0},{"$f":"Import!E4728","v":0},{"$f":"Import!E4753","v":"Select from Drop Down"},{"$f":"Import!E4778","v":"Select from Drop Down"},{"$f":"Import!E4803","v":"Select from Drop Down"},{"$f":"Import!E4828","v":0},{"$f":"Import!E4854","v":0},{"$f":"IF(Import!E4880=0,\"\",Import!E4880)","v":""},{"$f":"IF(Import!E4905=0,\"\",Import!E4905)","v":""},{"$f":"IF(Import!E4930=0,\"\",Import!E4930)","v":""},{"$f":"Import!E4955","v":0},{"$f":"Import!E4981","v":0},{"$f":"Import!E5007","v":0},{"$f":"Import!E5033","v":0},{"$f":"Import!E5059","v":0},{"$f":"Import!E5085","v":0},{"$f":"Import!E5111","v":0},{"$f":"Import!E5137","v":"Select from Drop Down"},{"$f":"Import!E5162","v":"Select from Drop Down"},{"$f":"Import!E5187","v":"Select from Drop Down"},{"$f":"Import!E5212","v":0},{"$f":"Import!E5238","v":0}]
[4,{"$f":"Import!E4704","v":0},{"$f":"Import!E4729","v":0},{"$f":"Import!E4754","v":"Select from Drop Down"},{"$f":"Import!E4779","v":"Select from Drop Down"},{"$f":"Import!E4804","v":"Select from Drop Down"},{"$f":"Import!E4829","v":0},{"$f":"Import!E4855","v":0},{"$f":"IF(Import!E4881=0,\"\",Import!E4881)","v":""},{"$f":"IF(Import!E4906=0,\"\",Import!E4906)","v":""},{"$f":"IF(Import!E4931=0,\"\",Import!E4931)","v":""},{"$f":"Import!E4956","v":0},{"$f":"Import!E4982","v":0},{"$f":"Import!E5008","v":0},{"$f":"Import!E5034","v":0},{"$f":"Import!E5060","v":0},{"$f":"Import!E5086","v":0},{"$f":"Import!E5112","v":0},{"$f":"Import!E5138","v":"Select from Drop Down"},{"$f":"Import!E5163","v":"Select from Drop Down"},{"$f":"Import!E5188","v":"Select from Drop Down"},{"$f":"Import!E5213","v":0},{"$f":"Import!E5239","v":0}]
[5,{"$f":"Import!E4705","v":0},{"$f":"Import!E4730","v":0},{"$f":"Import!E4755","v":"Select from Drop Down"},{"$f":"Import!E4780","v":"Select from Drop Down"},{"$f":"Import!E4805","v":"Select from Drop Down"},{"$f":"Import!E4830","v":0},{"$f":"Import!E4856","v":0},{"$f":"IF(Import!E4882=0,\"\",Import!E4882)","v":""},{"$f":"IF(Import!E4907=0,\"\",Import!E4907)","v":""},{"$f":"IF(Import!E4932=0,\"\",Import!E4932)","v":""},{"$f":"Import!E4957","v":0},{"$f":"Import!E4983","v":0},{"$f":"Import!E5009","v":0},{"$f":"Import!E5035","v":0},{"$f":"Import!E5061","v":0},{"$f":"Import!E5087","v":0},{"$f":"Import!E5113","v":0},{"$f":"Import!E5139","v":"Select from Drop Down"},{"$f":"Import!E5164","v":"Select from Drop Down"},{"$f":"Import!E5189","v":"Select from Drop Down"},{"$f":"Import!E5214","v":0},{"$f":"Import!E5240","v":0}]
[6,{"$f":"Import!E4706","v":0},{"$f":"Import!E4731","v":0},{"$f":"Import!E4756","v":"Select from Drop Down"},{"$f":"Import!E4781","v":"Select from Drop Down"},{"$f":"Import!E4806","v":"Select from Drop Down"},{"$f":"Import!E4831","v":0},{"$f":"Import!E4857","v":0},{"$f":"IF(Import!E4883=0,\"\",Import!E4883)","v":""},{"$f":"IF(Import!E4908=0,\"\",Import!E4908)","v":""},{"$f":"IF(Import!E4933=0,\"\",Import!E4933)","v":""},{"$f":"Import!E4958","v":0},{"$f":"Import!E4984","v":0},{"$f":"Import!E5010","v":0},{"$f":"Import!E5036","v":0},{"$f":"Import!E5062","v":0},{"$f":"Import!E5088","v":0},{"$f":"Import!E5114","v":0},{"$f":"Import!E5140","v":"Select from Drop Down"},{"$f":"Import!E5165","v":"Select from Drop Down"},{"$f":"Import!E5190","v":"Select from Drop Down"},{"$f":"Import!E5215","v":0},{"$f":"Import!E5241","v":0}]
[7,{"$f":"Import!E4707","v":0},{"$f":"Import!E4732","v":0},{"$f":"Import!E4757","v":"Select from Drop Down"},{"$f":"Import!E4782","v":"Select from Drop Down"},{"$f":"Import!E4807","v":"Select from Drop Down"},{"$f":"Import!E4832","v":0},{"$f":"Import!E4858","v":0},{"$f":"IF(Import!E4884=0,\"\",Import!E4884)","v":""},{"$f":"IF(Import!E4909=0,\"\",Import!E4909)","v":""},{"$f":"IF(Import!E4934=0,\"\",Import!E4934)","v":""},{"$f":"Import!E4959","v":0},{"$f":"Import!E4985","v":0},{"$f":"Import!E5011","v":0},{"$f":"Import!E5037","v":0},{"$f":"Import!E5063","v":0},{"$f":"Import!E5089","v":0},{"$f":"Import!E5115","v":0},{"$f":"Import!E5141","v":"Select from Drop Down"},{"$f":"Import!E5166","v":"Select from Drop Down"},{"$f":"Import!E5191","v":"Select from Drop Down"},{"$f":"Import!E5216","v":0},{"$f":"Import!E5242","v":0}]
[8,{"$f":"Import!E4708","v":0},{"$f":"Import!E4733","v":0},{"$f":"Import!E4758","v":"Select from Drop Down"},{"$f":"Import!E4783","v":"Select from Drop Down"},{"$f":"Import!E4808","v":"Select from Drop Down"},{"$f":"Import!E4833","v":0},{"$f":"Import!E4859","v":0},{"$f":"IF(Import!E4885=0,\"\",Import!E4885)","v":""},{"$f":"IF(Import!E4910=0,\"\",Import!E4910)","v":""},{"$f":"IF(Import!E4935=0,\"\",Import!E4935)","v":""},{"$f":"Import!E4960","v":0},{"$f":"Import!E4986","v":0},{"$f":"Import!E5012","v":0},{"$f":"Import!E5038","v":0},{"$f":"Import!E5064","v":0},{"$f":"Import!E5090","v":0},{"$f":"Import!E5116","v":0},{"$f":"Import!E5142","v":"Select from Drop Down"},{"$f":"Import!E5167","v":"Select from Drop Down"},{"$f":"Import!E5192","v":"Select from Drop Down"},{"$f":"Import!E5217","v":0},{"$f":"Import!E5243","v":0}]
[9,{"$f":"Import!E4709","v":0},{"$f":"Import!E4734","v":0},{"$f":"Import!E4759","v":"Select from Drop Down"},{"$f":"Import!E4784","v":"Select from Drop Down"},{"$f":"Import!E4809","v":"Select from Drop Down"},{"$f":"Import!E4834","v":0},{"$f":"Import!E4860","v":0},{"$f":"IF(Import!E4886=0,\"\",Import!E4886)","v":""},{"$f":"IF(Import!E4911=0,\"\",Import!E4911)","v":""},{"$f":"IF(Import!E4936=0,\"\",Import!E4936)","v":""},{"$f":"Import!E4961","v":0},{"$f":"Import!E4987","v":0},{"$f":"Import!E5013","v":0},{"$f":"Import!E5039","v":0},{"$f":"Import!E5065","v":0},{"$f":"Import!E5091","v":0},{"$f":"Import!E5117","v":0},{"$f":"Import!E5143","v":"Select from Drop Down"},{"$f":"Import!E5168","v":"Select from Drop Down"},{"$f":"Import!E5193","v":"Select from Drop Down"},{"$f":"Import!E5218","v":0},{"$f":"Import!E5244","v":0}]
[10,{"$f":"Import!E4710","v":0},{"$f":"Import!E4735","v":0},{"$f":"Import!E4760","v":"Select from Drop Down"},{"$f":"Import!E4785","v":"Select from Drop Down"},{"$f":"Import!E4810","v":"Select from Drop Down"},{"$f":"Import!E4835","v":0},{"$f":"Import!E4861","v":0},{"$f":"IF(Import!E4887=0,\"\",Import!E4887)","v":""},{"$f":"IF(Import!E4912=0,\"\",Import!E4912)","v":""},{"$f":"IF(Import!E4937=0,\"\",Import!E4937)","v":""},{"$f":"Import!E4962","v":0},{"$f":"Import!E4988","v":0},{"$f":"Import!E5014","v":0},{"$f":"Import!E5040","v":0},{"$f":"Import!E5066","v":0},{"$f":"Import!E5092","v":0},{"$f":"Import!E5118","v":0},{"$f":"Import!E5144","v":"Select from Drop Down"},{"$f":"Import!E5169","v":"Select from Drop Down"},{"$f":"Import!E5194","v":"Select from Drop Down"},{"$f":"Import!E5219","v":0},{"$f":"Import!E5245","v":0}]
[11,{"$f":"Import!E4711","v":0},{"$f":"Import!E4736","v":0},{"$f":"Import!E4761","v":"Select from Drop Down"},{"$f":"Import!E4786","v":"Select from Drop Down"},{"$f":"Import!E4811","v":"Select from Drop Down"},{"$f":"Import!E4836","v":0},{"$f":"Import!E4862","v":0},{"$f":"IF(Import!E4888=0,\"\",Import!E4888)","v":""},{"$f":"IF(Import!E4913=0,\"\",Import!E4913)","v":""},{"$f":"IF(Import!E4938=0,\"\",Import!E4938)","v":""},{"$f":"Import!E4963","v":0},{"$f":"Import!E4989","v":0},{"$f":"Import!E5015","v":0},{"$f":"Import!E5041","v":0},{"$f":"Import!E5067","v":0},{"$f":"Import!E5093","v":0},{"$f":"Import!E5119","v":0},{"$f":"Import!E5145","v":"Select from Drop Down"},{"$f":"Import!E5170","v":"Select from Drop Down"},{"$f":"Import!E5195","v":"Select from Drop Down"},{"$f":"Import!E5220","v":0},{"$f":"Import!E5246","v":0}]
[12,{"$f":"Import!E4712","v":0},{"$f":"Import!E4737","v":0},{"$f":"Import!E4762","v":"Select from Drop Down"},{"$f":"Import!E4787","v":"Select from Drop Down"},{"$f":"Import!E4812","v":"Select from Drop Down"},{"$f":"Import!E4837","v":0},{"$f":"Import!E4863","v":0},{"$f":"IF(Import!E4889=0,\"\",Import!E4889)","v":""},{"$f":"IF(Import!E4914=0,\"\",Import!E4914)","v":""},{"$f":"IF(Import!E4939=0,\"\",Import!E4939)","v":""},{"$f":"Import!E4964","v":0},{"$f":"Import!E4990","v":0},{"$f":"Import!E5016","v":0},{"$f":"Import!E5042","v":0},{"$f":"Import!E5068","v":0},{"$f":"Import!E5094","v":0},{"$f":"Import!E5120","v":0},{"$f":"Import!E5146","v":"Select from Drop Down"},{"$f":"Import!E5171","v":"Select from Drop Down"},{"$f":"Import!E5196","v":"Select from Drop Down"},{"$f":"Import!E5221","v":0},{"$f":"Import!E5247","v":0}]
[13,{"$f":"Import!E4713","v":0},{"$f":"Import!E4738","v":0},{"$f":"Import!E4763","v":"Select from Drop Down"},{"$f":"Import!E4788","v":"Select from Drop Down"},{"$f":"Import!E4813","v":"Select from Drop Down"},{"$f":"Import!E4838","v":0},{"$f":"Import!E4864","v":0},{"$f":"IF(Import!E4890=0,\"\",Import!E4890)","v":""},{"$f":"IF(Import!E4915=0,\"\",Import!E4915)","v":""},{"$f":"IF(Import!E4940=0,\"\",Import!E4940)","v":""},{"$f":"Import!E4965","v":0},{"$f":"Import!E4991","v":0},{"$f":"Import!E5017","v":0},{"$f":"Import!E5043","v":0},{"$f":"Import!E5069","v":0},{"$f":"Import!E5095","v":0},{"$f":"Import!E5121","v":0},{"$f":"Import!E5147","v":"Select from Drop Down"},{"$f":"Import!E5172","v":"Select from Drop Down"},{"$f":"Import!E5197","v":"Select from Drop Down"},{"$f":"Import!E5222","v":0},{"$f":"Import!E5248","v":0}]
[14,{"$f":"Import!E4714","v":0},{"$f":"Import!E4739","v":0},{"$f":"Import!E4764","v":"Select from Drop Down"},{"$f":"Import!E4789","v":"Select from Drop Down"},{"$f":"Import!E4814","v":"Select from Drop Down"},{"$f":"Import!E4839","v":0},{"$f":"Import!E4865","v":0},{"$f":"IF(Import!E4891=0,\"\",Import!E4891)","v":""},{"$f":"IF(Import!E4916=0,\"\",Import!E4916)","v":""},{"$f":"IF(Import!E4941=0,\"\",Import!E4941)","v":""},{"$f":"Import!E4966","v":0},{"$f":"Import!E4992","v":0},{"$f":"Import!E5018","v":0},{"$f":"Import!E5044","v":0},{"$f":"Import!E5070","v":0},{"$f":"Import!E5096","v":0},{"$f":"Import!E5122","v":0},{"$f":"Import!E5148","v":"Select from Drop Down"},{"$f":"Import!E5173","v":"Select from Drop Down"},{"$f":"Import!E5198","v":"Select from Drop Down"},{"$f":"Import!E5223","v":0},{"$f":"Import!E5249","v":0}]
[15,{"$f":"Import!E4715","v":0},{"$f":"Import!E4740","v":0},{"$f":"Import!E4765","v":"Select from Drop Down"},{"$f":"Import!E4790","v":"Select from Drop Down"},{"$f":"Import!E4815","v":"Select from Drop Down"},{"$f":"Import!E4840","v":0},{"$f":"Import!E4866","v":0},{"$f":"IF(Import!E4892=0,\"\",Import!E4892)","v":""},{"$f":"IF(Import!E4917=0,\"\",Import!E4917)","v":""},{"$f":"IF(Import!E4942=0,\"\",Import!E4942)","v":""},{"$f":"Import!E4967","v":0},{"$f":"Import!E4993","v":0},{"$f":"Import!E5019","v":0},{"$f":"Import!E5045","v":0},{"$f":"Import!E5071","v":0},{"$f":"Import!E5097","v":0},{"$f":"Import!E5123","v":0},{"$f":"Import!E5149","v":"Select from Drop Down"},{"$f":"Import!E5174","v":"Select from Drop Down"},{"$f":"Import!E5199","v":"Select from Drop Down"},{"$f":"Import!E5224","v":0},{"$f":"Import!E5250","v":0}]
[16,{"$f":"Import!E4716","v":0},{"$f":"Import!E4741","v":0},{"$f":"Import!E4766","v":"Select from Drop Down"},{"$f":"Import!E4791","v":"Select from Drop Down"},{"$f":"Import!E4816","v":"Select from Drop Down"},{"$f":"Import!E4841","v":0},{"$f":"Import!E4867","v":0},{"$f":"IF(Import!E4893=0,\"\",Import!E4893)","v":""},{"$f":"IF(Import!E4918=0,\"\",Import!E4918)","v":""},{"$f":"IF(Import!E4943=0,\"\",Import!E4943)","v":""},{"$f":"Import!E4968","v":0},{"$f":"Import!E4994","v":0},{"$f":"Import!E5020","v":0},{"$f":"Import!E5046","v":0},{"$f":"Import!E5072","v":0},{"$f":"Import!E5098","v":0},{"$f":"Import!E5124","v":0},{"$f":"Import!E5150","v":"Select from Drop Down"},{"$f":"Import!E5175","v":"Select from Drop Down"},{"$f":"Import!E5200","v":"Select from Drop Down"},{"$f":"Import!E5225","v":0},{"$f":"Import!E5251","v":0}]
[17,{"$f":"Import!E4717","v":0},{"$f":"Import!E4742","v":0},{"$f":"Import!E4767","v":"Select from Drop Down"},{"$f":"Import!E4792","v":"Select from Drop Down"},{"$f":"Import!E4817","v":"Select from Drop Down"},{"$f":"Import!E4842","v":0},{"$f":"Import!E4868","v":0},{"$f":"IF(Import!E4894=0,\"\",Import!E4894)","v":""},{"$f":"IF(Import!E4919=0,\"\",Import!E4919)","v":""},{"$f":"IF(Import!E4944=0,\"\",Import!E4944)","v":""},{"$f":"Import!E4969","v":0},{"$f":"Import!E4995","v":0},{"$f":"Import!E5021","v":0},{"$f":"Import!E5047","v":0},{"$f":"Import!E5073","v":0},{"$f":"Import!E5099","v":0},{"$f":"Import!E5125","v":0},{"$f":"Import!E5151","v":"Select from Drop Down"},{"$f":"Import!E5176","v":"Select from Drop Down"},{"$f":"Import!E5201","v":"Select from Drop Down"},{"$f":"Import!E5226","v":0},{"$f":"Import!E5252","v":0}]
[18,{"$f":"Import!E4718","v":0},{"$f":"Import!E4743","v":0},{"$f":"Import!E4768","v":"Select from Drop Down"},{"$f":"Import!E4793","v":"Select from Drop Down"},{"$f":"Import!E4818","v":"Select from Drop Down"},{"$f":"Import!E4843","v":0},{"$f":"Import!E4869","v":0},{"$f":"IF(Import!E4895=0,\"\",Import!E4895)","v":""},{"$f":"IF(Import!E4920=0,\"\",Import!E4920)","v":""},{"$f":"IF(Import!E4945=0,\"\",Import!E4945)","v":""},{"$f":"Import!E4970","v":0},{"$f":"Import!E4996","v":0},{"$f":"Import!E5022","v":0},{"$f":"Import!E5048","v":0},{"$f":"Import!E5074","v":0},{"$f":"Import!E5100","v":0},{"$f":"Import!E5126","v":0},{"$f":"Import!E5152","v":"Select from Drop Down"},{"$f":"Import!E5177","v":"Select from Drop Down"},{"$f":"Import!E5202","v":"Select from Drop Down"},{"$f":"Import!E5227","v":0},{"$f":"Import!E5253","v":0}]
[19,{"$f":"Import!E4719","v":0},{"$f":"Import!E4744","v":0},{"$f":"Import!E4769","v":"Select from Drop Down"},{"$f":"Import!E4794","v":"Select from Drop Down"},{"$f":"Import!E4819","v":"Select from Drop Down"},{"$f":"Import!E4844","v":0},{"$f":"Import!E4870","v":0},{"$f":"IF(Import!E4896=0,\"\",Import!E4896)","v":""},{"$f":"IF(Import!E4921=0,\"\",Import!E4921)","v":""},{"$f":"IF(Import!E4946=0,\"\",Import!E4946)","v":""},{"$f":"Import!E4971","v":0},{"$f":"Import!E4997","v":0},{"$f":"Import!E5023","v":0},{"$f":"Import!E5049","v":0},{"$f":"Import!E5075","v":0},{"$f":"Import!E5101","v":0},{"$f":"Import!E5127","v":0},{"$f":"Import!E5153","v":"Select from Drop Down"},{"$f":"Import!E5178","v":"Select from Drop Down"},{"$f":"Import!E5203","v":"Select from Drop Down"},{"$f":"Import!E5228","v":0},{"$f":"Import!E5254","v":0}]
[20,{"$f":"Import!E4720","v":0},{"$f":"Import!E4745","v":0},{"$f":"Import!E4770","v":"Select from Drop Down"},{"$f":"Import!E4795","v":"Select from Drop Down"},{"$f":"Import!E4820","v":"Select from Drop Down"},{"$f":"Import!E4845","v":0},{"$f":"Import!E4871","v":0},{"$f":"IF(Import!E4897=0,\"\",Import!E4897)","v":""},{"$f":"IF(Import!E4922=0,\"\",Import!E4922)","v":""},{"$f":"IF(Import!E4947=0,\"\",Import!E4947)","v":""},{"$f":"Import!E4972","v":0},{"$f":"Import!E4998","v":0},{"$f":"Import!E5024","v":0},{"$f":"Import!E5050","v":0},{"$f":"Import!E5076","v":0},{"$f":"Import!E5102","v":0},{"$f":"Import!E5128","v":0},{"$f":"Import!E5154","v":"Select from Drop Down"},{"$f":"Import!E5179","v":"Select from Drop Down"},{"$f":"Import!E5204","v":"Select from Drop Down"},{"$f":"Import!E5229","v":0},{"$f":"Import!E5255","v":0}]
[21,{"$f":"Import!E4721","v":0},{"$f":"Import!E4746","v":0},{"$f":"Import!E4771","v":"Select from Drop Down"},{"$f":"Import!E4796","v":"Select from Drop Down"},{"$f":"Import!E4821","v":"Select from Drop Down"},{"$f":"Import!E4846","v":0},{"$f":"Import!E4872","v":0},{"$f":"IF(Import!E4898=0,\"\",Import!E4898)","v":""},{"$f":"IF(Import!E4923=0,\"\",Import!E4923)","v":""},{"$f":"IF(Import!E4948=0,\"\",Import!E4948)","v":""},{"$f":"Import!E4973","v":0},{"$f":"Import!E4999","v":0},{"$f":"Import!E5025","v":0},{"$f":"Import!E5051","v":0},{"$f":"Import!E5077","v":0},{"$f":"Import!E5103","v":0},{"$f":"Import!E5129","v":0},{"$f":"Import!E5155","v":"Select from Drop Down"},{"$f":"Import!E5180","v":"Select from Drop Down"},{"$f":"Import!E5205","v":"Select from Drop Down"},{"$f":"Import!E5230","v":0},{"$f":"Import!E5256","v":0}]
[22,{"$f":"Import!E4722","v":0},{"$f":"Import!E4747","v":0},{"$f":"Import!E4772","v":"Select from Drop Down"},{"$f":"Import!E4797","v":"Select from Drop Down"},{"$f":"Import!E4822","v":"Select from Drop Down"},{"$f":"Import!E4847","v":0},{"$f":"Import!E4873","v":0},{"$f":"IF(Import!E4899=0,\"\",Import!E4899)","v":""},{"$f":"IF(Import!E4924=0,\"\",Import!E4924)","v":""},{"$f":"IF(Import!E4949=0,\"\",Import!E4949)","v":""},{"$f":"Import!E4974","v":0},{"$f":"Import!E5000","v":0},{"$f":"Import!E5026","v":0},{"$f":"Import!E5052","v":0},{"$f":"Import!E5078","v":0},{"$f":"Import!E5104","v":0},{"$f":"Import!E5130","v":0},{"$f":"Import!E5156","v":"Select from Drop Down"},{"$f":"Import!E5181","v":"Select from Drop Down"},{"$f":"Import!E5206","v":"Select from Drop Down"},{"$f":"Import!E5231","v":0},{"$f":"Import!E5257","v":0}]
[23,{"$f":"Import!E4723","v":0},{"$f":"Import!E4748","v":0},{"$f":"Import!E4773","v":"Select from Drop Down"},{"$f":"Import!E4798","v":"Select from Drop Down"},{"$f":"Import!E4823","v":"Select from Drop Down"},{"$f":"Import!E4848","v":0},{"$f":"Import!E4874","v":0},{"$f":"IF(Import!E4900=0,\"\",Import!E4900)","v":""},{"$f":"IF(Import!E4925=0,\"\",Import!E4925)","v":""},{"$f":"IF(Import!E4950=0,\"\",Import!E4950)","v":""},{"$f":"Import!E4975","v":0},{"$f":"Import!E5001","v":0},{"$f":"Import!E5027","v":0},{"$f":"Import!E5053","v":0},{"$f":"Import!E5079","v":0},{"$f":"Import!E5105","v":0},{"$f":"Import!E5131","v":0},{"$f":"Import!E5157","v":"Select from Drop Down"},{"$f":"Import!E5182","v":"Select from Drop Down"},{"$f":"Import!E5207","v":"Select from Drop Down"},{"$f":"Import!E5232","v":0},{"$f":"Import!E5258","v":0}]
[24,{"$f":"Import!E4724","v":0},{"$f":"Import!E4749","v":0},{"$f":"Import!E4774","v":"Select from Drop Down"},{"$f":"Import!E4799","v":"Select from Drop Down"},{"$f":"Import!E4824","v":"Select from Drop Down"},{"$f":"Import!E4849","v":0},{"$f":"Import!E4875","v":0},{"$f":"IF(Import!E4901=0,\"\",Import!E4901)","v":""},{"$f":"IF(Import!E4926=0,\"\",Import!E4926)","v":""},{"$f":"IF(Import!E4951=0,\"\",Import!E4951)","v":""},{"$f":"Import!E4976","v":0},{"$f":"Import!E5002","v":0},{"$f":"Import!E5028","v":0},{"$f":"Import!E5054","v":0},{"$f":"Import!E5080","v":0},{"$f":"Import!E5106","v":0},{"$f":"Import!E5132","v":0},{"$f":"Import!E5158","v":"Select from Drop Down"},{"$f":"Import!E5183","v":"Select from Drop Down"},{"$f":"Import!E5208","v":"Select from Drop Down"},{"$f":"Import!E5233","v":0},{"$f":"Import!E5259","v":0}]
[25,{"$f":"Import!E4725","v":0},{"$f":"Import!E4750","v":0},{"$f":"Import!E4775","v":"Select from Drop Down"},{"$f":"Import!E4800","v":"Select from Drop Down"},{"$f":"Import!E4825","v":"Select from Drop Down"},{"$f":"Import!E4850","v":0},{"$f":"Import!E4876","v":0},{"$f":"IF(Import!E4902=0,\"\",Import!E4902)","v":""},{"$f":"IF(Import!E4927=0,\"\",Import!E4927)","v":""},{"$f":"IF(Import!E4952=0,\"\",Import!E4952)","v":""},{"$f":"Import!E4977","v":0},{"$f":"Import!E5003","v":0},{"$f":"Import!E5029","v":0},{"$f":"Import!E5055","v":0},{"$f":"Import!E5081","v":0},{"$f":"Import!E5107","v":0},{"$f":"Import!E5133","v":0},{"$f":"Import!E5159","v":"Select from Drop Down"},{"$f":"Import!E5184","v":"Select from Drop Down"},{"$f":"Import!E5209","v":"Select from Drop Down"},{"$f":"Import!E5234","v":0},{"$f":"Import!E5260","v":0}]
[26,null,null,"Select from Drop Down","Select from Drop Down","Select from Drop Down",null,null,null,null,null,null,null,null,null,null,null,null,"Select from Drop Down","Select from Drop Down","Select from Drop Down"]
[27,null,null,"Select from Drop Down","Select from Drop Down","Select from Drop Down",null,null,null,null,null,null,null,null,null,null,null,null,"Select from Drop Down","Select from Drop Down","Select from Drop Down"]
[28,null,null,"Select from Drop Down","Select from Drop Down","Select from Drop Down",null,null,null,null,null,null,null,null,null,null,null,null,"Select from Drop Down","Select from Drop Down","Select from Drop Down"]
[29,null,null,"Select from Drop Down","Select from Drop Down","Select from Drop Down",null,null,null,null,null,null,null,null,null,null,null,null,"Select from Drop Down","Select from Drop Down","Select from Drop Down"]
[30,null,null,"Select from Drop Down","Select from Drop Down","Select from Drop Down",null,null,null,null,null,null,null,null,null,null,null,null,"Select from Drop Down","Select from Drop Down","Select from Drop Down"]
[31,null,null,"Select from Drop Down","Select from Drop Down","Select from Drop Down",null,null,null,null,null,null,null,null,null,null,null,null,"Select from Drop Down","Select from Drop Down","Select from Drop Down"]
[32,null,null,"Select from Drop Down","Select from Drop Down","Select from Drop Down",null,null,null,null,null,null,null,null,null,null,null,null,"Select from Drop Down","Select from Drop Down","Select from Drop Down"]
[33,null,null,"Select from Drop Down","Select from Drop Down","Select from Drop Down",null,null,null,null,null,null,null,null,null,null,null,null,"Select from Drop Down","Select from Drop Down","Select from Drop Down"]
[34,null,null,"Select from Drop Down","Select from Drop Down","Select from Drop Down",null,null,null,null,null,null,null,null,null,null,null,null,"Select from Drop Down","Select from Drop Down","Select from Drop Down"]
[35,null,null,"Select from Drop Down","Select from Drop Down","Select from Drop Down",null,null,null,null,null,null,null,null,null,null,null,null,"Select from Drop Down","Select from Drop Down","Select from Drop Down"]
[36,null,null,"Select from Drop Down","Select from Drop Down","Select from Drop Down",null,null,null,null,null,null,null,null,null,null,null,null,"Select from Drop Down","Select from Drop Down","Select from Drop Down"]
[37,null,null,"Select from Drop Down","Select from Drop Down","Select from Drop Down",null,null,null,null,null,null,null,null,null,null,null,null,"Select from Drop Down","Select from Drop Down","Select from Drop Down"]
[38,null,null,"Select from Drop Down","Select from Drop Down","Select from Drop Down",null,null,null,null,null,null,null,null,null,null,null,null,"Select from Drop Down","Select from Drop Down","Select from Drop Down"]
[39,null,null,"Select from Drop Down","Select from Drop Down","Select from Drop Down",null,null,null,null,null,null,null,null,null,null,null,null,"Select from Drop Down","Select from Drop Down","Select from Drop Down"]
[40,null,null,"Select from Drop Down","Select from Drop Down","Select from Drop Down",null,null,null,null,null,null,null,null,null,null,null,null,"Select from Drop Down","Select from Drop Down","Select from Drop Down"]
[41,null,null,"Select from Drop Down","Select from Drop Down","Select from Drop Down",null,null,null,null,null,null,null,null,null,null,null,null,"Select from Drop Down","Select from Drop Down","Select from Drop Down"]
[42,null,null,"Select from Drop Down","Select from Drop Down","Select from Drop Down",null,null,null,null,null,null,null,null,null,null,null,null,"Select from Drop Down","Select from Drop Down","Select from Drop Down"]
[43,null,null,"Select from Drop Down","Select from Drop Down","Select from Drop Down",null,null,null,null,null,null,null,null,null,null,null,null,"Select from Drop Down","Select from Drop Down","Select from Drop Down"]
[44,null,null,"Select from Drop Down","Select from Drop Down","Select from Drop Down",null,null,null,null,null,null,null,null,null,null,null,null,"Select from Drop Down","Select from Drop Down","Select from Drop Down"]
[45,null,null,"Select from Drop Down","Select from Drop Down","Select from Drop Down",null,null,null,null,null,null,null,null,null,null,null,null,"Select from Drop Down","Select from Drop Down","Select from Drop Down"]
[46,null,null,"Select from Drop Down","Select from Drop Down","Select from Drop Down",null,null,null,null,null,null,null,null,null,null,null,null,"Select from Drop Down","Select from Drop Down","Select from Drop Down"]
[47,null,null,"Select from Drop Down","Select from Drop Down","Select from Drop Down",null,null,null,null,null,null,null,null,null,null,null,null,"Select from Drop Down","Select from Drop Down","Select from Drop Down"]
[48,null,null,"Select from Drop Down","Select from Drop Down","Select from Drop Down",null,null,null,null,null,null,null,null,null,null,null,null,"Select from Drop Down","Select from Drop Down","Select from Drop Down"]
[49,null,null,"Select from Drop Down","Select from Drop Down","Select from Drop Down",null,null,null,null,null,null,null,null,null,null,null,null,"Select from Drop Down","Select from Drop Down","Select from Drop Down"]
[50,null,null,"Select from Drop Down","Select from Drop Down","Select from Drop Down",null,null,null,null,null,null,null,null,null,null,null,null,"Select from Drop Down","Select from Drop Down","Select from Drop Down"]
[51,null,null,"Select from Drop Down","Select from Drop Down","Select from Drop Down",null,null,null,null,null,null,null,null,null,null,null,null,"Select from Drop Down","Select from Drop Down","Select from Drop Down"]
[52,null,null,"Select from Drop Down","Select from Drop Down","Select from Drop Down",null,null,null,null,null,null,null,null,null,null,null,null,"Select from Drop Down","Select from Drop Down","Select from Drop Down"]
[53,null,null,"Select from Drop Down","Select from Drop Down","Select from Drop Down",null,null,null,null,null,null,null,null,null,null,null,null,"Select from Drop Down","Select from Drop Down","Select from Drop Down"]
[54,null,null,"Select from Drop Down","Select from Drop Down","Select from Drop Down",null,null,null,null,null,null,null,null,null,null,null,null,"Select from Drop Down","Select from Drop Down","Select from Drop Down"]
[55,null,null,"Select from Drop Down","Select from Drop Down","Select from Drop Down",null,null,null,null,null,null,null,null,null,null,null,null,"Select from Drop Down","Select from Drop Down","Select from Drop Down"]
[56,null,null,"Select from Drop Down","Select from Drop Down","Select from Drop Down",null,null,null,null,null,null,null,null,null,null,null,null,"Select from Drop Down","Select from Drop Down","Select from Drop Down"]
[57,null,null,"Select from Drop Down","Select from Drop Down","Select from Drop Down",null,null,null,null,null,null,null,null,null,null,null,null,"Select from Drop Down","Select from Drop Down","Select from Drop Down"]
[58,null,null,"Select from Drop Down","Select from Drop Down","Select from Drop Down",null,null,null,null,null,null,null,null,null,null,null,null,"Select from Drop Down","Select from Drop Down","Select from Drop Down"]
[59,null,null,"Select from Drop Down","Select from Drop Down","Select from Drop Down",null,null,null,null,null,null,null,null,null,null,null,null,"Select from Drop Down","Select from Drop Down","Select from Drop Down"]
[60,null,null,"Select from Drop Down","Select from Drop Down","Select from Drop Down",null,null,null,null,null,null,null,null,null,null,null,null,"Select from Drop Down","Select from Drop Down","Select from Drop Down"]
[61,null,null,"Select from Drop Down","Select from Drop Down","Select from Drop Down",null,null,null,null,null,null,null,null,null,null,null,null,"Select from Drop Down","Select from Drop Down","Select from Drop Down"]
[62,null,null,"Select from Drop Down","Select from Drop Down","Select from Drop Down",null,null,null,null,null,null,null,null,null,null,null,null,"Select from Drop Down","Select from Drop Down","Select from Drop Down"]
[63,null,null,"Select from Drop Down","Select from Drop Down","Select from Drop Down",null,null,null,null,null,null,null,null,null,null,null,null,"Select from Drop Down","Select from Drop Down","Select from Drop Down"]
[64,null,null,"Select from Drop Down","Select from Drop Down","Select from Drop Down",null,null,null,null,null,null,null,null,null,null,null,null,"Select from Drop Down","Select from Drop Down","Select from Drop Down"]
[65,null,null,"Select from Drop Down","Select from Drop Down","Select from Drop Down",null,null,null,null,null,null,null,null,null,null,null,null,"Select from Drop Down","Select from Drop Down","Select from Drop Down"]
[66,null,null,"Select from Drop Down","Select from Drop Down","Select from Drop Down",null,null,null,null,null,null,null,null,null,null,null,null,"Select from Drop Down","Select from Drop Down","Select from Drop Down"]
[{"$f":"A76+1","v":67},null,null,"Select from Drop Down","Select from Drop Down","Select from Drop Down",null,null,null,null,null,null,null,null,null,null,null,null,"Select from Drop Down","Select from Drop Down","Select from Drop Down"]
[68,null,null,"Select from Drop Down","Select from Drop Down","Select from Drop Down",null,null,null,null,null,null,null,null,null,null,null,null,"Select from Drop Down","Select from Drop Down","Select from Drop Down"]
[69,null,null,"Select from Drop Down","Select from Drop Down","Select from Drop Down",null,null,null,null,null,null,null,null,null,null,null,null,"Select from Drop Down","Select from Drop Down","Select from Drop Down"]
[70,null,null,"Select from Drop Down","Select from Drop Down","Select from Drop Down",null,null,null,null,null,null,null,null,null,null,null,null,"Select from Drop Down","Select from Drop Down","Select from Drop Down"]
[71,null,null,"Select from Drop Down","Select from Drop Down","Select from Drop Down",null,null,null,null,null,null,null,null,null,null,null,null,"Select from Drop Down","Select from Drop Down","Select from Drop Down"]
[72,null,null,"Select from Drop Down","Select from Drop Down","Select from Drop Down",null,null,null,null,null,null,null,null,null,null,null,null,"Select from Drop Down","Select from Drop Down","Select from Drop Down"]
[73,null,null,"Select from Drop Down","Select from Drop Down","Select from Drop Down",null,null,null,null,null,null,null,null,null,null,null,null,"Select from Drop Down","Select from Drop Down","Select from Drop Down"]
[74,null,null,"Select from Drop Down","Select from Drop Down","Select from Drop Down",null,null,null,null,null,null,null,null,null,null,null,null,"Select from Drop Down","Select from Drop Down","Select from Drop Down"]
[75,null,null,"Select from Drop Down","Select from Drop Down","Select from Drop Down",null,null,null,null,null,null,null,null,null,null,null,null,"Select from Drop Down","Select from Drop Down","Select from Drop Down"]
[76,null,null,"Select from Drop Down","Select from Drop Down","Select from Drop Down",null,null,null,null,null,null,null,null,null,null,null,null,"Select from Drop Down","Select from Drop Down","Select from Drop Down"]
[77,null,null,"Select from Drop Down","Select from Drop Down","Select from Drop Down",null,null,null,null,null,null,null,null,null,null,null,null,"Select from Drop Down","Select from Drop Down","Select from Drop Down"]
[78,null,null,"Select from Drop Down","Select from Drop Down","Select from Drop Down",null,null,null,null,null,null,null,null,null,null,null,null,"Select from Drop Down","Select from Drop Down","Select from Drop Down"]
[79,null,null,"Select from Drop Down","Select from Drop Down","Select from Drop Down",null,null,null,null,null,null,null,null,null,null,null,null,"Select from Drop Down","Select from Drop Down","Select from Drop Down"]
[80,null,null,"Select from Drop Down","Select from Drop Down","Select from Drop Down",null,null,null,null,null,null,null,null,null,null,null,null,"Select from Drop Down","Select from Drop Down","Select from Drop Down"]
[81,null,null,"Select from Drop Down","Select from Drop Down","Select from Drop Down",null,null,null,null,null,null,null,null,null,null,null,null,"Select from Drop Down","Select from Drop Down","Select from Drop Down"]
[82,null,null,"Select from Drop Down","Select from Drop Down","Select from Drop Down",null,null,null,null,null,null,null,null,null,null,null,null,"Select from Drop Down","Select from Drop Down","Select from Drop Down"]
[83,null,null,"Select from Drop Down","Select from Drop Down","Select from Drop Down",null,null,null,null,null,null,null,null,null,null,null,null,"Select from Drop Down","Select from Drop Down","Select from Drop Down"]
[84,null,null,"Select from Drop Down","Select from Drop Down","Select from Drop Down",null,null,null,null,null,null,null,null,null,null,null,null,"Select from Drop Down","Select from Drop Down","Select from Drop Down"]
[85,null,null,"Select from Drop Down","Select from Drop Down","Select from Drop Down",null,null,null,null,null,null,null,null,null,null,null,null,"Select from Drop Down","Select from Drop Down","Select from Drop Down"]
[86,null,null,"Select from Drop Down","Select from Drop Down","Select from Drop Down",null,null,null,null,null,null,null,null,null,null,null,null,"Select from Drop Down","Select from Drop Down","Select from Drop Down"]
[87,null,null,"Select from Drop Down","Select from Drop Down","Select from Drop Down",null,null,null,null,null,null,null,null,null,null,null,null,"Select from Drop Down","Select from Drop Down","Select from Drop Down"]
[88,null,null,"Select from Drop Down","Select from Drop Down","Select from Drop Down",null,null,null,null,null,null,null,null,null,null,null,null,"Select from Drop Down","Select from Drop Down","Select from Drop Down"]
[89,null,null,"Select from Drop Down","Select from Drop Down","Select from Drop Down",null,null,null,null,null,null,null,null,null,null,null,null,"Select from Drop Down","Select from Drop Down","Select from Drop Down"]
[90,null,null,"Select from Drop Down","Select from Drop Down","Select from Drop Down",null,null,null,null,null,null,null,null,null,null,null,null,"Select from Drop Down","Select from Drop Down","Select from Drop Down"]
[91,null,null,"Select from Drop Down","Select from Drop Down","Select from Drop Down",null,null,null,null,null,null,null,null,null,null,null,null,"Select from Drop Down","Select from Drop Down","Select from Drop Down"]
[92,null,null,"Select from Drop Down","Select from Drop Down","Select from Drop Down",null,null,null,null,null,null,null,null,null,null,null,null,"Select from Drop Down","Select from Drop Down","Select from Drop Down"]
[93,null,null,"Select from Drop Down","Select from Drop Down","Select from Drop Down",null,null,null,null,null,null,null,null,null,null,null,null,"Select from Drop Down","Select from Drop Down","Select from Drop Down"]
[94,null,null,"Select from Drop Down","Select from Drop Down","Select from Drop Down",null,null,null,null,null,null,null,null,null,null,null,null,"Select from Drop Down","Select from Drop Down","Select from Drop Down"]
[95,null,null,"Select from Drop Down","Select from Drop Down","Select from Drop Down",null,null,null,null,null,null,null,null,null,null,null,null,"Select from Drop Down","Select from Drop Down","Select from Drop Down"]
[96,null,null,"Select from Drop Down","Select from Drop Down","Select from Drop Down",null,null,null,null,null,null,null,null,null,null,null,null,"Select from Drop Down","Select from Drop Down","Select from Drop Down"]
[97,null,null,"Select from Drop Down","Select from Drop Down","Select from Drop Down",null,null,null,null,null,null,null,null,null,null,null,null,"Select from Drop Down","Select from Drop Down","Select from Drop Down"]
[98,null,null,"Select from Drop Down","Select from Drop Down","Select from Drop Down",null,null,null,null,null,null,null,null,null,null,null,null,"Select from Drop Down","Select from Drop Down","Select from Drop Down"]
[99,null,null,"Select from Drop Down","Select from Drop Down","Select from Drop Down",null,null,null,null,null,null,null,null,null,null,null,null,"Select from Drop Down","Select from Drop Down","Select from Drop Down"]
[100,null,null,"Select from Drop Down","Select from Drop Down","Select from Drop Down",null,null,null,null,null,null,null,null,null,null,null,null,"Select from Drop Down","Select from Drop Down","Select from Drop Down"]
[101,null,null,"Select from Drop Down","Select from Drop Down","Select from Drop Down",null,null,null,null,null,null,null,null,null,null,null,null,"Select from Drop Down","Select from Drop Down","Select from Drop Down"]
[102,null,null,"Select from Drop Down","Select from Drop Down","Select from Drop Down",null,null,null,null,null,null,null,null,null,null,null,null,"Select from Drop Down","Select from Drop Down","Select from Drop Down"]
[103,null,null,"Select from Drop Down","Select from Drop Down","Select from Drop Down",null,null,null,null,null,null,null,null,null,null,null,null,"Select from Drop Down","Select from Drop Down","Select from Drop Down"]
[104,null,null,"Select from Drop Down","Select from Drop Down","Select from Drop Down",null,null,null,null,null,null,null,null,null,null,null,null,"Select from Drop Down","Select from Drop Down","Select from Drop Down"]
[105,null,null,"Select from Drop Down","Select from Drop Down","Select from Drop Down",null,null,null,null,null,null,null,null,null,null,null,null,"Select from Drop Down","Select from Drop Down","Select from Drop Down"]
[106,null,null,"Select from Drop Down","Select from Drop Down","Select from Drop Down",null,null,null,null,null,null,null,null,null,null,null,null,"Select from Drop Down","Select from Drop Down","Select from Drop Down"]
[107,null,null,"Select from Drop Down","Select from Drop Down","Select from Drop Down",null,null,null,null,null,null,null,null,null,null,null,null,"Select from Drop Down","Select from Drop Down","Select from Drop Down"]
[108,null,null,"Select from Drop Down","Select from Drop Down","Select from Drop Down",null,null,null,null,null,null,null,null,null,null,null,null,"Select from Drop Down","Select from Drop Down","Select from Drop Down"]
[109,null,null,"Select from Drop Down","Select from Drop Down","Select from Drop Down",null,null,null,null,null,null,null,null,null,null,null,null,"Select from Drop Down","Select from Drop Down","Select from Drop Down"]
[110,null,null,"Select from Drop Down","Select from Drop Down","Select from Drop Down",null,null,null,null,null,null,null,null,null,null,null,null,"Select from Drop Down","Select from Drop Down","Select from Drop Down"]
[111,null,null,"Select from Drop Down","Select from Drop Down","Select from Drop Down",null,null,null,null,null,null,null,null,null,null,null,null,"Select from Drop Down","Select from Drop Down","Select from Drop Down"]
[112,null,null,"Select from Drop Down","Select from Drop Down","Select from Drop Down",null,null,null,null,null,null,null,null,null,null,null,null,"Select from Drop Down","Select from Drop Down","Select from Drop Down"]
[113,null,null,"Select from Drop Down","Select from Drop Down","Select from Drop Down",null,null,null,null,null,null,null,null,null,null,null,null,"Select from Drop Down","Select from Drop Down","Select from Drop Down"]
[114,null,null,"Select from Drop Down","Select from Drop Down","Select from Drop Down",null,null,null,null,null,null,null,null,null,null,null,null,"Select from Drop Down","Select from Drop Down","Select from Drop Down"]
[115,null,null,"Select from Drop Down","Select from Drop Down","Select from Drop Down",null,null,null,null,null,null,null,null,null,null,null,null,"Select from Drop Down","Select from Drop Down","Select from Drop Down"]
[116,null,null,"Select from Drop Down","Select from Drop Down","Select from Drop Down",null,null,null,null,null,null,null,null,null,null,null,null,"Select from Drop Down","Select from Drop Down","Select from Drop Down"]
[117,null,null,"Select from Drop Down","Select from Drop Down","Select from Drop Down",null,null,null,null,null,null,null,null,null,null,null,null,"Select from Drop Down","Select from Drop Down","Select from Drop Down"]
[118,null,null,"Select from Drop Down","Select from Drop Down","Select from Drop Down",null,null,null,null,null,null,null,null,null,null,null,null,"Select from Drop Down","Select from Drop Down","Select from Drop Down"]
[119,null,null,"Select from Drop Down","Select from Drop Down","Select from Drop Down",null,null,null,null,null,null,null,null,null,null,null,null,"Select from Drop Down","Select from Drop Down","Select from Drop Down"]
[120,null,null,"Select from Drop Down","Select from Drop Down","Select from Drop Down",null,null,null,null,null,null,null,null,null,null,null,null,"Select from Drop Down","Select from Drop Down","Select from Drop Down"]
[121,null,null,"Select from Drop Down","Select from Drop Down","Select from Drop Down",null,null,null,null,null,null,null,null,null,null,null,null,"Select from Drop Down","Select from Drop Down","Select from Drop Down"]
[122,null,null,"Select from Drop Down","Select from Drop Down","Select from Drop Down",null,null,null,null,null,null,null,null,null,null,null,null,"Select from Drop Down","Select from Drop Down","Select from Drop Down"]
[123,null,null,"Select from Drop Down","Select from Drop Down","Select from Drop Down",null,null,null,null,null,null,null,null,null,null,null,null,"Select from Drop Down","Select from Drop Down","Select from Drop Down"]
[124,null,null,"Select from Drop Down","Select from Drop Down","Select from Drop Down",null,null,null,null,null,null,null,null,null,null,null,null,"Select from Drop Down","Select from Drop Down","Select from Drop Down"]
[125,null,null,"Select from Drop Down","Select from Drop Down","Select from Drop Down",null,null,null,null,null,null,null,null,null,null,null,null,"Select from Drop Down","Select from Drop Down","Select from Drop Down"]
[126,null,null,"Select from Drop Down","Select from Drop Down","Select from Drop Down",null,null,null,null,null,null,null,null,null,null,null,null,"Select from Drop Down","Select from Drop Down","Select from Drop Down"]
[127,null,null,"Select from Drop Down","Select from Drop Down","Select from Drop Down",null,null,null,null,null,null,null,null,null,null,null,null,"Select from Drop Down","Select from Drop Down","Select from Drop Down"]
[128,null,null,"Select from Drop Down","Select from Drop Down","Select from Drop Down",null,null,null,null,null,null,null,null,null,null,null,null,"Select from Drop Down","Select from Drop Down","Select from Drop Down"]
[129,null,null,"Select from Drop Down","Select from Drop Down","Select from Drop Down",null,null,null,null,null,null,null,null,null,null,null,null,"Select from Drop Down","Select from Drop Down","Select from Drop Down"]
[130,null,null,"Select from Drop Down","Select from Drop Down","Select from Drop Down",null,null,null,null,null,null,null,null,null,null,null,null,"Select from Drop Down","Select from Drop Down","Select from Drop Down"]
[{"$f":"A140+1","v":131},null,null,"Select from Drop Down","Select from Drop Down","Select from Drop Down",null,null,null,null,null,null,null,null,null,null,null,null,"Select from Drop Down","Select from Drop Down","Select from Drop Down"]
[132,null,null,"Select from Drop Down","Select from Drop Down","Select from Drop Down",null,null,null,null,null,null,null,null,null,null,null,null,"Select from Drop Down","Select from Drop Down","Select from Drop Down"]
[133,null,null,"Select from Drop Down","Select from Drop Down","Select from Drop Down",null,null,null,null,null,null,null,null,null,null,null,null,"Select from Drop Down","Select from Drop Down","Select from Drop Down"]
[134,null,null,"Select from Drop Down","Select from Drop Down","Select from Drop Down",null,null,null,null,null,null,null,null,null,null,null,null,"Select from Drop Down","Select from Drop Down","Select from Drop Down"]
[135,null,null,"Select from Drop Down","Select from Drop Down","Select from Drop Down",null,null,null,null,null,null,null,null,null,null,null,null,"Select from Drop Down","Select from Drop Down","Select from Drop Down"]
[136,null,null,"Select from Drop Down","Select from Drop Down","Select from Drop Down",null,null,null,null,null,null,null,null,null,null,null,null,"Select from Drop Down","Select from Drop Down","Select from Drop Down"]
[137,null,null,"Select from Drop Down","Select from Drop Down","Select from Drop Down",null,null,null,null,null,null,null,null,null,null,null,null,"Select from Drop Down","Select from Drop Down","Select from Drop Down"]
[138,null,null,"Select from Drop Down","Select from Drop Down","Select from Drop Down",null,null,null,null,null,null,null,null,null,null,null,null,"Select from Drop Down","Select from Drop Down","Select from Drop Down"]
[139,null,null,"Select from Drop Down","Select from Drop Down","Select from Drop Down",null,null,null,null,null,null,null,null,null,null,null,null,"Select from Drop Down","Select from Drop Down","Select from Drop Down"]
[140,null,null,"Select from Drop Down","Select from Drop Down","Select from Drop Down",null,null,null,null,null,null,null,null,null,null,null,null,"Select from Drop Down","Select from Drop Down","Select from Drop Down"]
[141,null,null,"Select from Drop Down","Select from Drop Down","Select from Drop Down",null,null,null,null,null,null,null,null,null,null,null,null,"Select from Drop Down","Select from Drop Down","Select from Drop Down"]
[142,null,null,"Select from Drop Down","Select from Drop Down","Select from Drop Down",null,null,null,null,null,null,null,null,null,null,null,null,"Select from Drop Down","Select from Drop Down","Select from Drop Down"]
[143,null,null,"Select from Drop Down","Select from Drop Down","Select from Drop Down",null,null,null,null,null,null,null,null,null,null,null,null,"Select from Drop Down","Select from Drop Down","Select from Drop Down"]
[144,null,null,"Select from Drop Down","Select from Drop Down","Select from Drop Down",null,null,null,null,null,null,null,null,null,null,null,null,"Select from Drop Down","Select from Drop Down","Select from Drop Down"]
[145,null,null,"Select from Drop Down","Select from Drop Down","Select from Drop Down",null,null,null,null,null,null,null,null,null,null,null,null,"Select from Drop Down","Select from Drop Down","Select from Drop Down"]
[146,null,null,"Select from Drop Down","Select from Drop Down","Select from Drop Down",null,null,null,null,null,null,null,null,null,null,null,null,"Select from Drop Down","Select from Drop Down","Select from Drop Down"]
[147,null,null,"Select from Drop Down","Select from Drop Down","Select from Drop Down",null,null,null,null,null,null,null,null,null,null,null,null,"Select from Drop Down","Select from Drop Down","Select from Drop Down"]
[148,null,null,"Select from Drop Down","Select from Drop Down","Select from Drop Down",null,null,null,null,null,null,null,null,null,null,null,null,"Select from Drop Down","Select from Drop Down","Select from Drop Down"]
[149,null,null,"Select from Drop Down","Select from Drop Down","Select from Drop Down",null,null,null,null,null,null,null,null,null,null,null,null,"Select from Drop Down","Select from Drop Down","Select from Drop Down"]
[150,null,null,"Select from Drop Down","Select from Drop Down","Select from Drop Down",null,null,null,null,null,null,null,null,null,null,null,null,"Select from Drop Down","Select from Drop Down","Select from Drop Down"]
[151,null,null,"Select from Drop Down","Select from Drop Down","Select from Drop Down",null,null,null,null,null,null,null,null,null,null,null,null,"Select from Drop Down","Select from Drop Down","Select from Drop Down"]
[152,null,null,"Select from Drop Down","Select from Drop Down","Select from Drop Down",null,null,null,null,null,null,null,null,null,null,null,null,"Select from Drop Down","Select from Drop Down","Select from Drop Down"]
[153,null,null,"Select from Drop Down","Select from Drop Down","Select from Drop Down",null,null,null,null,null,null,null,null,null,null,null,null,"Select from Drop Down","Select from Drop Down","Select from Drop Down"]
[154,null,null,"Select from Drop Down","Select from Drop Down","Select from Drop Down",null,null,null,null,null,null,null,null,null,null,null,null,"Select from Drop Down","Select from Drop Down","Select from Drop Down"]
[155,null,null,"Select from Drop Down","Select from Drop Down","Select from Drop Down",null,null,null,null,null,null,null,null,null,null,null,null,"Select from Drop Down","Select from Drop Down","Select from Drop Down"]
[156,null,null,"Select from Drop Down","Select from Drop Down","Select from Drop Down",null,null,null,null,null,null,null,null,null,null,null,null,"Select from Drop Down","Select from Drop Down","Select from Drop Down"]
[157,null,null,"Select from Drop Down","Select from Drop Down","Select from Drop Down",null,null,null,null,null,null,null,null,null,null,null,null,"Select from Drop Down","Select from Drop Down","Select from Drop Down"]
[158,null,null,"Select from Drop Down","Select from Drop Down","Select from Drop Down",null,null,null,null,null,null,null,null,null,null,null,null,"Select from Drop Down","Select from Drop Down","Select from Drop Down"]
[159,null,null,"Select from Drop Down","Select from Drop Down","Select from Drop Down",null,null,null,null,null,null,null,null,null,null,null,null,"Select from Drop Down","Select from Drop Down","Select from Drop Down"]
[160,null,null,"Select from Drop Down","Select from Drop Down","Select from Drop Down",null,null,null,null,null,null,null,null,null,null,null,null,"Select from Drop Down","Select from Drop Down","Select from Drop Down"]
[161,null,null,"Select from Drop Down","Select from Drop Down","Select from Drop Down",null,null,null,null,null,null,null,null,null,null,null,null,"Select from Drop Down","Select from Drop Down","Select from Drop Down"]
[162,null,null,"Select from Drop Down","Select from Drop Down","Select from Drop Down",null,null,null,null,null,null,null,null,null,null,null,null,"Select from Drop Down","Select from Drop Down","Select from Drop Down"]
[163,null,null,"Select from Drop Down","Select from Drop Down","Select from Drop Down",null,null,null,null,null,null,null,null,null,null,null,null,"Select from Drop Down","Select from Drop Down","Select from Drop Down"]
[164,null,null,"Select from Drop Down","Select from Drop Down","Select from Drop Down",null,null,null,null,null,null,null,null,null,null,null,null,"Select from Drop Down","Select from Drop Down","Select from Drop Down"]
[165,null,null,"Select from Drop Down","Select from Drop Down","Select from Drop Down",null,null,null,null,null,null,null,null,null,null,null,null,"Select from Drop Down","Select from Drop Down","Select from Drop Down"]
[166,null,null,"Select from Drop Down","Select from Drop Down","Select from Drop Down",null,null,null,null,null,null,null,null,null,null,null,null,"Select from Drop Down","Select from Drop Down","Select from Drop Down"]
[167,null,null,"Select from Drop Down","Select from Drop Down","Select from Drop Down",null,null,null,null,null,null,null,null,null,null,null,null,"Select from Drop Down","Select from Drop Down","Select from Drop Down"]
[168,null,null,"Select from Drop Down","Select from Drop Down","Select from Drop Down",null,null,null,null,null,null,null,null,null,null,null,null,"Select from Drop Down","Select from Drop Down","Select from Drop Down"]
[169,null,null,"Select from Drop Down","Select from Drop Down","Select from Drop Down",null,null,null,null,null,null,null,null,null,null,null,null,"Select from Drop Down","Select from Drop Down","Select from Drop Down"]
[170,null,null,"Select from Drop Down","Select from Drop Down","Select from Drop Down",null,null,null,null,null,null,null,null,null,null,null,null,"Select from Drop Down","Select from Drop Down","Select from Drop Down"]
[171,null,null,"Select from Drop Down","Select from Drop Down","Select from Drop Down",null,null,null,null,null,null,null,null,null,null,null,null,"Select from Drop Down","Select from Drop Down","Select from Drop Down"]
[172,null,null,"Select from Drop Down","Select from Drop Down","Select from Drop Down",null,null,null,null,null,null,null,null,null,null,null,null,"Select from Drop Down","Select from Drop Down","Select from Drop Down"]
[173,null,null,"Select from Drop Down","Select from Drop Down","Select from Drop Down",null,null,null,null,null,null,null,null,null,null,null,null,"Select from Drop Down","Select from Drop Down","Select from Drop Down"]
[174,null,null,"Select from Drop Down","Select from Drop Down","Select from Drop Down",null,null,null,null,null,null,null,null,null,null,null,null,"Select from Drop Down","Select from Drop Down","Select from Drop Down"]
[175,null,null,"Select from Drop Down","Select from Drop Down","Select from Drop Down",null,null,null,null,null,null,null,null,null,null,null,null,"Select from Drop Down","Select from Drop Down","Select from Drop Down"]
[176,null,null,"Select from Drop Down","Select from Drop Down","Select from Drop Down",null,null,null,null,null,null,null,null,null,null,null,null,"Select from Drop Down","Select from Drop Down","Select from Drop Down"]
[177,null,null,"Select from Drop Down","Select from Drop Down","Select from Drop Down",null,null,null,null,null,null,null,null,null,null,null,null,"Select from Drop Down","Select from Drop Down","Select from Drop Down"]
[178,null,null,"Select from Drop Down","Select from Drop Down","Select from Drop Down",null,null,null,null,null,null,null,null,null,null,null,null,"Select from Drop Down","Select from Drop Down","Select from Drop Down"]
[179,null,null,"Select from Drop Down","Select from Drop Down","Select from Drop Down",null,null,null,null,null,null,null,null,null,null,null,null,"Select from Drop Down","Select from Drop Down","Select from Drop Down"]
[180,null,null,"Select from Drop Down","Select from Drop Down","Select from Drop Down",null,null,null,null,null,null,null,null,null,null,null,null,"Select from Drop Down","Select from Drop Down","Select from Drop Down"]
[181,null,null,"Select from Drop Down","Select from Drop Down","Select from Drop Down",null,null,null,null,null,null,null,null,null,null,null,null,"Select from Drop Down","Select from Drop Down","Select from Drop Down"]
[182,null,null,"Select from Drop Down","Select from Drop Down","Select from Drop Down",null,null,null,null,null,null,null,null,null,null,null,null,"Select from Drop Down","Select from Drop Down","Select from Drop Down"]
[183,null,null,"Select from Drop Down","Select from Drop Down","Select from Drop Down",null,null,null,null,null,null,null,null,null,null,null,null,"Select from Drop Down","Select from Drop Down","Select from Drop Down"]
[184,null,null,"Select from Drop Down","Select from Drop Down","Select from Drop Down",null,null,null,null,null,null,null,null,null,null,null,null,"Select from Drop Down","Select from Drop Down","Select from Drop Down"]
[185,null,null,"Select from Drop Down","Select from Drop Down","Select from Drop Down",null,null,null,null,null,null,null,null,null,null,null,null,"Select from Drop Down","Select from Drop Down","Select from Drop Down"]
[186,null,null,"Select from Drop Down","Select from Drop Down","Select from Drop Down",null,null,null,null,null,null,null,null,null,null,null,null,"Select from Drop Down","Select from Drop Down","Select from Drop Down"]
[187,null,null,"Select from Drop Down","Select from Drop Down","Select from Drop Down",null,null,null,null,null,null,null,null,null,null,null,null,"Select from Drop Down","Select from Drop Down","Select from Drop Down"]
[188,null,null,"Select from Drop Down","Select from Drop Down","Select from Drop Down",null,null,null,null,null,null,null,null,null,null,null,null,"Select from Drop Down","Select from Drop Down","Select from Drop Down"]
[189,null,null,"Select from Drop Down","Select from Drop Down","Select from Drop Down",null,null,null,null,null,null,null,null,null,null,null,null,"Select from Drop Down","Select from Drop Down","Select from Drop Down"]
[190,null,null,"Select from Drop Down","Select from Drop Down","Select from Drop Down",null,null,null,null,null,null,null,null,null,null,null,null,"Select from Drop Down","Select from Drop Down","Select from Drop Down"]
[191,null,null,"Select from Drop Down","Select from Drop Down","Select from Drop Down",null,null,null,null,null,null,null,null,null,null,null,null,"Select from Drop Down","Select from Drop Down","Select from Drop Down"]
[192,null,null,"Select from Drop Down","Select from Drop Down","Select from Drop Down",null,null,null,null,null,null,null,null,null,null,null,null,"Select from Drop Down","Select from Drop Down","Select from Drop Down"]
[193,null,null,"Select from Drop Down","Select from Drop Down","Select from Drop Down",null,null,null,null,null,null,null,null,null,null,null,null,"Select from Drop Down","Select from Drop Down","Select from Drop Down"]
[194,null,null,"Select from Drop Down","Select from Drop Down","Select from Drop Down",null,null,null,null,null,null,null,null,null,null,null,null,"Select from Drop Down","Select from Drop Down","Select from Drop Down"]
[{"$f":"A204+1","v":195},null,null,"Select from Drop Down","Select from Drop Down","Select from Drop Down",null,null,null,null,null,null,null,null,null,null,null,null,"Select from Drop Down","Select from Drop Down","Select from Drop Down"]
[196,null,null,"Select from Drop Down","Select from Drop Down","Select from Drop Down",null,null,null,null,null,null,null,null,null,null,null,null,"Select from Drop Down","Select from Drop Down","Select from Drop Down"]
[197,null,null,"Select from Drop Down","Select from Drop Down","Select from Drop Down",null,null,null,null,null,null,null,null,null,null,null,null,"Select from Drop Down","Select from Drop Down","Select from Drop Down"]
[198,null,null,"Select from Drop Down","Select from Drop Down","Select from Drop Down",null,null,null,null,null,null,null,null,null,null,null,null,"Select from Drop Down","Select from Drop Down","Select from Drop Down"]
[199,null,null,"Select from Drop Down","Select from Drop Down","Select from Drop Down",null,null,null,null,null,null,null,null,null,null,null,null,"Select from Drop Down","Select from Drop Down","Select from Drop Down"]
[200,null,null,"Select from Drop Down","Select from Drop Down","Select from Drop Down",null,null,null,null,null,null,null,null,null,null,null,null,"Select from Drop Down","Select from Drop Down","Select from Drop Down"]
[201,null,null,"Select from Drop Down","Select from Drop Down","Select from Drop Down",null,null,null,null,null,null,null,null,null,null,null,null,"Select from Drop Down","Select from Drop Down","Select from Drop Down"]
[202,null,null,"Select from Drop Down","Select from Drop Down","Select from Drop Down",null,null,null,null,null,null,null,null,null,null,null,null,"Select from Drop Down","Select from Drop Down","Select from Drop Down"]
[203,null,null,"Select from Drop Down","Select from Drop Down","Select from Drop Down",null,null,null,null,null,null,null,null,null,null,null,null,"Select from Drop Down","Select from Drop Down","Select from Drop Down"]
[204,null,null,"Select from Drop Down","Select from Drop Down","Select from Drop Down",null,null,null,null,null,null,null,null,null,null,null,null,"Select from Drop Down","Select from Drop Down","Select from Drop Down"]
[205,null,null,"Select from Drop Down","Select from Drop Down","Select from Drop Down",null,null,null,null,null,null,null,null,null,null,null,null,"Select from Drop Down","Select from Drop Down","Select from Drop Down"]
[206,null,null,"Select from Drop Down","Select from Drop Down","Select from Drop Down",null,null,null,null,null,null,null,null,null,null,null,null,"Select from Drop Down","Select from Drop Down","Select from Drop Down"]
[207,null,null,"Select from Drop Down","Select from Drop Down","Select from Drop Down",null,null,null,null,null,null,null,null,null,null,null,null,"Select from Drop Down","Select from Drop Down","Select from Drop Down"]
[208,null,null,"Select from Drop Down","Select from Drop Down","Select from Drop Down",null,null,null,null,null,null,null,null,null,null,null,null,"Select from Drop Down","Select from Drop Down","Select from Drop Down"]
[209,null,null,"Select from Drop Down","Select from Drop Down","Select from Drop Down",null,null,null,null,null,null,null,null,null,null,null,null,"Select from Drop Down","Select from Drop Down","Select from Drop Down"]
[210,null,null,"Select from Drop Down","Select from Drop Down","Select from Drop Down",null,null,null,null,null,null,null,null,null,null,null,null,"Select from Drop Down","Select from Drop Down","Select from Drop Down"]
[211,null,null,"Select from Drop Down","Select from Drop Down","Select from Drop Down",null,null,null,null,null,null,null,null,null,null,null,null,"Select from Drop Down","Select from Drop Down","Select from Drop Down"]
[212,null,null,"Select from Drop Down","Select from Drop Down","Select from Drop Down",null,null,null,null,null,null,null,null,null,null,null,null,"Select from Drop Down","Select from Drop Down","Select from Drop Down"]
[213,null,null,"Select from Drop Down","Select from Drop Down","Select from Drop Down",null,null,null,null,null,null,null,null,null,null,null,null,"Select from Drop Down","Select from Drop Down","Select from Drop Down"]
[214,null,null,"Select from Drop Down","Select from Drop Down","Select from Drop Down",null,null,null,null,null,null,null,null,null,null,null,null,"Select from Drop Down","Select from Drop Down","Select from Drop Down"]
[215,null,null,"Select from Drop Down","Select from Drop Down","Select from Drop Down",null,null,null,null,null,null,null,null,null,null,null,null,"Select from Drop Down","Select from Drop Down","Select from Drop Down"]
[216,null,null,"Select from Drop Down","Select from Drop Down","Select from Drop Down",null,null,null,null,null,null,null,null,null,null,null,null,"Select from Drop Down","Select from Drop Down","Select from Drop Down"]
[217,null,null,"Select from Drop Down","Select from Drop Down","Select from Drop Down",null,null,null,null,null,null,null,null,null,null,null,null,"Select from Drop Down","Select from Drop Down","Select from Drop Down"]
[218,null,null,"Select from Drop Down","Select from Drop Down","Select from Drop Down",null,null,null,null,null,null,null,null,null,null,null,null,"Select from Drop Down","Select from Drop Down","Select from Drop Down"]
[219,null,null,"Select from Drop Down","Select from Drop Down","Select from Drop Down",null,null,null,null,null,null,null,null,null,null,null,null,"Select from Drop Down","Select from Drop Down","Select from Drop Down"]
[220,null,null,"Select from Drop Down","Select from Drop Down","Select from Drop Down",null,null,null,null,null,null,null,null,null,null,null,null,"Select from Drop Down","Select from Drop Down","Select from Drop Down"]
[221,null,null,"Select from Drop Down","Select from Drop Down","Select from Drop Down",null,null,null,null,null,null,null,null,null,null,null,null,"Select from Drop Down","Select from Drop Down","Select from Drop Down"]
[222,null,null,"Select from Drop Down","Select from Drop Down","Select from Drop Down",null,null,null,null,null,null,null,null,null,null,null,null,"Select from Drop Down","Select from Drop Down","Select from Drop Down"]
[223,null,null,"Select from Drop Down","Select from Drop Down","Select from Drop Down",null,null,null,null,null,null,null,null,null,null,null,null,"Select from Drop Down","Select from Drop Down","Select from Drop Down"]
[224,null,null,"Select from Drop Down","Select from Drop Down","Select from Drop Down",null,null,null,null,null,null,null,null,null,null,null,null,"Select from Drop Down","Select from Drop Down","Select from Drop Down"]
[225,null,null,"Select from Drop Down","Select from Drop Down","Select from Drop Down",null,null,null,null,null,null,null,null,null,null,null,null,"Select from Drop Down","Select from Drop Down","Select from Drop Down"]
[226,null,null,"Select from Drop Down","Select from Drop Down","Select from Drop Down",null,null,null,null,null,null,null,null,null,null,null,null,"Select from Drop Down","Select from Drop Down","Select from Drop Down"]
[227,null,null,"Select from Drop Down","Select from Drop Down","Select from Drop Down",null,null,null,null,null,null,null,null,null,null,null,null,"Select from Drop Down","Select from Drop Down","Select from Drop Down"]
[228,null,null,"Select from Drop Down","Select from Drop Down","Select from Drop Down",null,null,null,null,null,null,null,null,null,null,null,null,"Select from Drop Down","Select from Drop Down","Select from Drop Down"]
[229,null,null,"Select from Drop Down","Select from Drop Down","Select from Drop Down",null,null,null,null,null,null,null,null,null,null,null,null,"Select from Drop Down","Select from Drop Down","Select from Drop Down"]
[230,null,null,"Select from Drop Down","Select from Drop Down","Select from Drop Down",null,null,null,null,null,null,null,null,null,null,null,null,"Select from Drop Down","Select from Drop Down","Select from Drop Down"]
[231,null,null,"Select from Drop Down","Select from Drop Down","Select from Drop Down",null,null,null,null,null,null,null,null,null,null,null,null,"Select from Drop Down","Select from Drop Down","Select from Drop Down"]
[232,null,null,"Select from Drop Down","Select from Drop Down","Select from Drop Down",null,null,null,null,null,null,null,null,null,null,null,null,"Select from Drop Down","Select from Drop Down","Select from Drop Down"]
[233,null,null,"Select from Drop Down","Select from Drop Down","Select from Drop Down",null,null,null,null,null,null,null,null,null,null,null,null,"Select from Drop Down","Select from Drop Down","Select from Drop Down"]
[234,null,null,"Select from Drop Down","Select from Drop Down","Select from Drop Down",null,null,null,null,null,null,null,null,null,null,null,null,"Select from Drop Down","Select from Drop Down","Select from Drop Down"]
[235,null,null,"Select from Drop Down","Select from Drop Down","Select from Drop Down",null,null,null,null,null,null,null,null,null,null,null,null,"Select from Drop Down","Select from Drop Down","Select from Drop Down"]
[236,null,null,"Select from Drop Down","Select from Drop Down","Select from Drop Down",null,null,null,null,null,null,null,null,null,null,null,null,"Select from Drop Down","Select from Drop Down","Select from Drop Down"]
[237,null,null,"Select from Drop Down","Select from Drop Down","Select from Drop Down",null,null,null,null,null,null,null,null,null,null,null,null,"Select from Drop Down","Select from Drop Down","Select from Drop Down"]
[238,null,null,"Select from Drop Down","Select from Drop Down","Select from Drop Down",null,null,null,null,null,null,null,null,null,null,null,null,"Select from Drop Down","Select from Drop Down","Select from Drop Down"]
[239,null,null,"Select from Drop Down","Select from Drop Down","Select from Drop Down",null,null,null,null,null,null,null,null,null,null,null,null,"Select from Drop Down","Select from Drop Down","Select from Drop Down"]
[240,null,null,"Select from Drop Down","Select from Drop Down","Select from Drop Down",null,null,null,null,null,null,null,null,null,null,null,null,"Select from Drop Down","Select from Drop Down","Select from Drop Down"]
[241,null,null,"Select from Drop Down","Select from Drop Down","Select from Drop Down",null,null,null,null,null,null,null,null,null,null,null,null,"Select from Drop Down","Select from Drop Down","Select from Drop Down"]
[242,null,null,"Select from Drop Down","Select from Drop Down","Select from Drop Down",null,null,null,null,null,null,null,null,null,null,null,null,"Select from Drop Down","Select from Drop Down","Select from Drop Down"]
[243,null,null,"Select from Drop Down","Select from Drop Down","Select from Drop Down",null,null,null,null,null,null,null,null,null,null,null,null,"Select from Drop Down","Select from Drop Down","Select from Drop Down"]
[244,null,null,"Select from Drop Down","Select from Drop Down","Select from Drop Down",null,null,null,null,null,null,null,null,null,null,null,null,"Select from Drop Down","Select from Drop Down","Select from Drop Down"]
[245,null,null,"Select from Drop Down","Select from Drop Down","Select from Drop Down",null,null,null,null,null,null,null,null,null,null,null,null,"Select from Drop Down","Select from Drop Down","Select from Drop Down"]
[246,null,null,"Select from Drop Down","Select from Drop Down","Select from Drop Down",null,null,null,null,null,null,null,null,null,null,null,null,"Select from Drop Down","Select from Drop Down","Select from Drop Down"]
[247,null,null,"Select from Drop Down","Select from Drop Down","Select from Drop Down",null,null,null,null,null,null,null,null,null,null,null,null,"Select from Drop Down","Select from Drop Down","Select from Drop Down"]
[248,null,null,"Select from Drop Down","Select from Drop Down","Select from Drop Down",null,null,null,null,null,null,null,null,null,null,null,null,"Select from Drop Down","Select from Drop Down","Select from Drop Down"]
[249,null,null,"Select from Drop Down","Select from Drop Down","Select from Drop Down",null,null,null,null,null,null,null,null,null,null,null,null,"Select from Drop Down","Select from Drop Down","Select from Drop Down"]
[250,null,null,"Select from Drop Down","Select from Drop Down","Select from Drop Down",null,null,null,null,null,null,null,null,null,null,null,null,"Select from Drop Down","Select from Drop Down","Select from Drop Down"]
[251,null,null,"Select from Drop Down","Select from Drop Down","Select from Drop Down",null,null,null,null,null,null,null,null,null,null,null,null,"Select from Drop Down","Select from Drop Down","Select from Drop Down"]
[252,null,null,"Select from Drop Down","Select from Drop Down","Select from Drop Down",null,null,null,null,null,null,null,null,null,null,null,null,"Select from Drop Down","Select from Drop Down","Select from Drop Down"]
[253,null,null,"Select from Drop Down","Select from Drop Down","Select from Drop Down",null,null,null,null,null,null,null,null,null,null,null,null,"Select from Drop Down","Select from Drop Down","Select from Drop Down"]
[254,null,null,"Select from Drop Down","Select from Drop Down","Select from Drop Down",null,null,null,null,null,null,null,null,null,null,null,null,"Select from Drop Down","Select from Drop Down","Select from Drop Down"]
[255,null,null,"Select from Drop Down","Select from Drop Down","Select from Drop Down",null,null,null,null,null,null,null,null,null,null,null,null,"Select from Drop Down","Select from Drop Down","Select from Drop Down"]
[256,null,null,"Select from Drop Down","Select from Drop Down","Select from Drop Down",null,null,null,null,null,null,null,null,null,null,null,null,"Select from Drop Down","Select from Drop Down","Select from Drop Down"]
[257,null,null,"Select from Drop Down","Select from Drop Down","Select from Drop Down",null,null,null,null,null,null,null,null,null,null,null,null,"Select from Drop Down","Select from Drop Down","Select from Drop Down"]
[258,null,null,"Select from Drop Down","Select from Drop Down","Select from Drop Down",null,null,null,null,null,null,null,null,null,null,null,null,"Select from Drop Down","Select from Drop Down","Select from Drop Down"]
[{"$f":"A268+1","v":259},null,null,"Select from Drop Down","Select from Drop Down","Select from Drop Down",null,null,null,null,null,null,null,null,null,null,null,null,"Select from Drop Down","Select from Drop Down","Select from Drop Down"]
[260,null,null,"Select from Drop Down","Select from Drop Down","Select from Drop Down",null,null,null,null,null,null,null,null,null,null,null,null,"Select from Drop Down","Select from Drop Down","Select from Drop Down"]
[261,null,null,"Select from Drop Down","Select from Drop Down","Select from Drop Down",null,null,null,null,null,null,null,null,null,null,null,null,"Select from Drop Down","Select from Drop Down","Select from Drop Down"]
[262,null,null,"Select from Drop Down","Select from Drop Down","Select from Drop Down",null,null,null,null,null,null,null,null,null,null,null,null,"Select from Drop Down","Select from Drop Down","Select from Drop Down"]
[263,null,null,"Select from Drop Down","Select from Drop Down","Select from Drop Down",null,null,null,null,null,null,null,null,null,null,null,null,"Select from Drop Down","Select from Drop Down","Select from Drop Down"]
[264,null,null,"Select from Drop Down","Select from Drop Down","Select from Drop Down",null,null,null,null,null,null,null,null,null,null,null,null,"Select from Drop Down","Select from Drop Down","Select from Drop Down"]
[265,null,null,"Select from Drop Down","Select from Drop Down","Select from Drop Down",null,null,null,null,null,null,null,null,null,null,null,null,"Select from Drop Down","Select from Drop Down","Select from Drop Down"]
[266,null,null,"Select from Drop Down","Select from Drop Down","Select from Drop Down",null,null,null,null,null,null,null,null,null,null,null,null,"Select from Drop Down","Select from Drop Down","Select from Drop Down"]
[267,null,null,"Select from Drop Down","Select from Drop Down","Select from Drop Down",null,null,null,null,null,null,null,null,null,null,null,null,"Select from Drop Down","Select from Drop Down","Select from Drop Down"]
[268,null,null,"Select from Drop Down","Select from Drop Down","Select from Drop Down",null,null,null,null,null,null,null,null,null,null,null,null,"Select from Drop Down","Select from Drop Down","Select from Drop Down"]
[269,null,null,"Select from Drop Down","Select from Drop Down","Select from Drop Down",null,null,null,null,null,null,null,null,null,null,null,null,"Select from Drop Down","Select from Drop Down","Select from Drop Down"]
[270,null,null,"Select from Drop Down","Select from Drop Down","Select from Drop Down",null,null,null,null,null,null,null,null,null,null,null,null,"Select from Drop Down","Select from Drop Down","Select from Drop Down"]
[271,null,null,"Select from Drop Down","Select from Drop Down","Select from Drop Down",null,null,null,null,null,null,null,null,null,null,null,null,"Select from Drop Down","Select from Drop Down","Select from Drop Down"]
[272,null,null,"Select from Drop Down","Select from Drop Down","Select from Drop Down",null,null,null,null,null,null,null,null,null,null,null,null,"Select from Drop Down","Select from Drop Down","Select from Drop Down"]
[273,null,null,"Select from Drop Down","Select from Drop Down","Select from Drop Down",null,null,null,null,null,null,null,null,null,null,null,null,"Select from Drop Down","Select from Drop Down","Select from Drop Down"]
[274,null,null,"Select from Drop Down","Select from Drop Down","Select from Drop Down",null,null,null,null,null,null,null,null,null,null,null,null,"Select from Drop Down","Select from Drop Down","Select from Drop Down"]
[275,null,null,"Select from Drop Down","Select from Drop Down","Select from Drop Down",null,null,null,null,null,null,null,null,null,null,null,null,"Select from Drop Down","Select from Drop Down","Select from Drop Down"]
[276,null,null,"Select from Drop Down","Select from Drop Down","Select from Drop Down",null,null,null,null,null,null,null,null,null,null,null,null,"Select from Drop Down","Select from Drop Down","Select from Drop Down"]
[277,null,null,"Select from Drop Down","Select from Drop Down","Select from Drop Down",null,null,null,null,null,null,null,null,null,null,null,null,"Select from Drop Down","Select from Drop Down","Select from Drop Down"]
[278,null,null,"Select from Drop Down","Select from Drop Down","Select from Drop Down",null,null,null,null,null,null,null,null,null,null,null,null,"Select from Drop Down","Select from Drop Down","Select from Drop Down"]
[279,null,null,"Select from Drop Down","Select from Drop Down","Select from Drop Down",null,null,null,null,null,null,null,null,null,null,null,null,"Select from Drop Down","Select from Drop Down","Select from Drop Down"]
[280,null,null,"Select from Drop Down","Select from Drop Down","Select from Drop Down",null,null,null,null,null,null,null,null,null,null,null,null,"Select from Drop Down","Select from Drop Down","Select from Drop Down"]
[281,null,null,"Select from Drop Down","Select from Drop Down","Select from Drop Down",null,null,null,null,null,null,null,null,null,null,null,null,"Select from Drop Down","Select from Drop Down","Select from Drop Down"]
[282,null,null,"Select from Drop Down","Select from Drop Down","Select from Drop Down",null,null,null,null,null,null,null,null,null,null,null,null,"Select from Drop Down","Select from Drop Down","Select from Drop Down"]
[283,null,null,"Select from Drop Down","Select from Drop Down","Select from Drop Down",null,null,null,null,null,null,null,null,null,null,null,null,"Select from Drop Down","Select from Drop Down","Select from Drop Down"]
[284,null,null,"Select from Drop Down","Select from Drop Down","Select from Drop Down",null,null,null,null,null,null,null,null,null,null,null,null,"Select from Drop Down","Select from Drop Down","Select from Drop Down"]
[285,null,null,"Select from Drop Down","Select from Drop Down","Select from Drop Down",null,null,null,null,null,null,null,null,null,null,null,null,"Select from Drop Down","Select from Drop Down","Select from Drop Down"]
[286,null,null,"Select from Drop Down","Select from Drop Down","Select from Drop Down",null,null,null,null,null,null,null,null,null,null,null,null,"Select from Drop Down","Select from Drop Down","Select from Drop Down"]
[287,null,null,"Select from Drop Down","Select from Drop Down","Select from Drop Down",null,null,null,null,null,null,null,null,null,null,null,null,"Select from Drop Down","Select from Drop Down","Select from Drop Down"]
[288,null,null,"Select from Drop Down","Select from Drop Down","Select from Drop Down",null,null,null,null,null,null,null,null,null,null,null,null,"Select from Drop Down","Select from Drop Down","Select from Drop Down"]
[289,null,null,"Select from Drop Down","Select from Drop Down","Select from Drop Down",null,null,null,null,null,null,null,null,null,null,null,null,"Select from Drop Down","Select from Drop Down","Select from Drop Down"]
[290,null,null,"Select from Drop Down","Select from Drop Down","Select from Drop Down",null,null,null,null,null,null,null,null,null,null,null,null,"Select from Drop Down","Select from Drop Down","Select from Drop Down"]
[291,null,null,"Select from Drop Down","Select from Drop Down","Select from Drop Down",null,null,null,null,null,null,null,null,null,null,null,null,"Select from Drop Down","Select from Drop Down","Select from Drop Down"]
[292,null,null,"Select from Drop Down","Select from Drop Down","Select from Drop Down",null,null,null,null,null,null,null,null,null,null,null,null,"Select from Drop Down","Select from Drop Down","Select from Drop Down"]
[293,null,null,"Select from Drop Down","Select from Drop Down","Select from Drop Down",null,null,null,null,null,null,null,null,null,null,null,null,"Select from Drop Down","Select from Drop Down","Select from Drop Down"]
[294,null,null,"Select from Drop Down","Select from Drop Down","Select from Drop Down",null,null,null,null,null,null,null,null,null,null,null,null,"Select from Drop Down","Select from Drop Down","Select from Drop Down"]
[295,null,null,"Select from Drop Down","Select from Drop Down","Select from Drop Down",null,null,null,null,null,null,null,null,null,null,null,null,"Select from Drop Down","Select from Drop Down","Select from Drop Down"]
[296,null,null,"Select from Drop Down","Select from Drop Down","Select from Drop Down",null,null,null,null,null,null,null,null,null,null,null,null,"Select from Drop Down","Select from Drop Down","Select from Drop Down"]
[297,null,null,"Select from Drop Down","Select from Drop Down","Select from Drop Down",null,null,null,null,null,null,null,null,null,null,null,null,"Select from Drop Down","Select from Drop Down","Select from Drop Down"]
[298,null,null,"Select from Drop Down","Select from Drop Down","Select from Drop Down",null,null,null,null,null,null,null,null,null,null,null,null,"Select from Drop Down","Select from Drop Down","Select from Drop Down"]
[299,null,null,"Select from Drop Down","Select from Drop Down","Select from Drop Down",null,null,null,null,null,null,null,null,null,null,null,null,"Select from Drop Down","Select from Drop Down","Select from Drop Down"]
[300,null,null,"Select from Drop Down","Select from Drop Down","Select from Drop Down",null,null,null,null,null,null,null,null,null,null,null,null,"Select from Drop Down","Select from Drop Down","Select from Drop Down"]
[301,null,null,"Select from Drop Down","Select from Drop Down","Select from Drop Down",null,null,null,null,null,null,null,null,null,null,null,null,"Select from Drop Down","Select from Drop Down","Select from Drop Down"]
[302,null,null,"Select from Drop Down","Select from Drop Down","Select from Drop Down",null,null,null,null,null,null,null,null,null,null,null,null,"Select from Drop Down","Select from Drop Down","Select from Drop Down"]
[303,null,null,"Select from Drop Down","Select from Drop Down","Select from Drop Down",null,null,null,null,null,null,null,null,null,null,null,null,"Select from Drop Down","Select from Drop Down","Select from Drop Down"]
[304,null,null,"Select from Drop Down","Select from Drop Down","Select from Drop Down",null,null,null,null,null,null,null,null,null,null,null,null,"Select from Drop Down","Select from Drop Down","Select from Drop Down"]
[305,null,null,"Select from Drop Down","Select from Drop Down","Select from Drop Down",null,null,null,null,null,null,null,null,null,null,null,null,"Select from Drop Down","Select from Drop Down","Select from Drop Down"]
[306,null,null,"Select from Drop Down","Select from Drop Down","Select from Drop Down",null,null,null,null,null,null,null,null,null,null,null,null,"Select from Drop Down","Select from Drop Down","Select from Drop Down"]
[307,null,null,"Select from Drop Down","Select from Drop Down","Select from Drop Down",null,null,null,null,null,null,null,null,null,null,null,null,"Select from Drop Down","Select from Drop Down","Select from Drop Down"]
[308,null,null,"Select from Drop Down","Select from Drop Down","Select from Drop Down",null,null,null,null,null,null,null,null,null,null,null,null,"Select from Drop Down","Select from Drop Down","Select from Drop Down"]
[309,null,null,"Select from Drop Down","Select from Drop Down","Select from Drop Down",null,null,null,null,null,null,null,null,null,null,null,null,"Select from Drop Down","Select from Drop Down","Select from Drop Down"]
[310,null,null,"Select from Drop Down","Select from Drop Down","Select from Drop Down",null,null,null,null,null,null,null,null,null,null,null,null,"Select from Drop Down","Select from Drop Down","Select from Drop Down"]
[311,null,null,"Select from Drop Down","Select from Drop Down","Select from Drop Down",null,null,null,null,null,null,null,null,null,null,null,null,"Select from Drop Down","Select from Drop Down","Select from Drop Down"]
[312,null,null,"Select from Drop Down","Select from Drop Down","Select from Drop Down",null,null,null,null,null,null,null,null,null,null,null,null,"Select from Drop Down","Select from Drop Down","Select from Drop Down"]
[313,null,null,"Select from Drop Down","Select from Drop Down","Select from Drop Down",null,null,null,null,null,null,null,null,null,null,null,null,"Select from Drop Down","Select from Drop Down","Select from Drop Down"]
[314,null,null,"Select from Drop Down","Select from Drop Down","Select from Drop Down",null,null,null,null,null,null,null,null,null,null,null,null,"Select from Drop Down","Select from Drop Down","Select from Drop Down"]
[315,null,null,"Select from Drop Down","Select from Drop Down","Select from Drop Down",null,null,null,null,null,null,null,null,null,null,null,null,"Select from Drop Down","Select from Drop Down","Select from Drop Down"]
[316,null,null,"Select from Drop Down","Select from Drop Down","Select from Drop Down",null,null,null,null,null,null,null,null,null,null,null,null,"Select from Drop Down","Select from Drop Down","Select from Drop Down"]
[317,null,null,"Select from Drop Down","Select from Drop Down","Select from Drop Down",null,null,null,null,null,null,null,null,null,null,null,null,"Select from Drop Down","Select from Drop Down","Select from Drop Down"]
[318,null,null,"Select from Drop Down","Select from Drop Down","Select from Drop Down",null,null,null,null,null,null,null,null,null,null,null,null,"Select from Drop Down","Select from Drop Down","Select from Drop Down"]
[319,null,null,"Select from Drop Down","Select from Drop Down","Select from Drop Down",null,null,null,null,null,null,null,null,null,null,null,null,"Select from Drop Down","Select from Drop Down","Select from Drop Down"]
[320,null,null,"Select from Drop Down","Select from Drop Down","Select from Drop Down",null,null,null,null,null,null,null,null,null,null,null,null,"Select from Drop Down","Select from Drop Down","Select from Drop Down"]
[321,null,null,"Select from Drop Down","Select from Drop Down","Select from Drop Down",null,null,null,null,null,null,null,null,null,null,null,null,"Select from Drop Down","Select from Drop Down","Select from Drop Down"]
[322,null,null,"Select from Drop Down","Select from Drop Down","Select from Drop Down",null,null,null,null,null,null,null,null,null,null,null,null,"Select from Drop Down","Select from Drop Down","Select from Drop Down"]
[{"$f":"A332+1","v":323},null,null,"Select from Drop Down","Select from Drop Down","Select from Drop Down",null,null,null,null,null,null,null,null,null,null,null,null,"Select from Drop Down","Select from Drop Down","Select from Drop Down"]
[324,null,null,"Select from Drop Down","Select from Drop Down","Select from Drop Down",null,null,null,null,null,null,null,null,null,null,null,null,"Select from Drop Down","Select from Drop Down","Select from Drop Down"]
[325,null,null,"Select from Drop Down","Select from Drop Down","Select from Drop Down",null,null,null,null,null,null,null,null,null,null,null,null,"Select from Drop Down","Select from Drop Down","Select from Drop Down"]
[326,null,null,"Select from Drop Down","Select from Drop Down","Select from Drop Down",null,null,null,null,null,null,null,null,null,null,null,null,"Select from Drop Down","Select from Drop Down","Select from Drop Down"]
[327,null,null,"Select from Drop Down","Select from Drop Down","Select from Drop Down",null,null,null,null,null,null,null,null,null,null,null,null,"Select from Drop Down","Select from Drop Down","Select from Drop Down"]
[328,null,null,"Select from Drop Down","Select from Drop Down","Select from Drop Down",null,null,null,null,null,null,null,null,null,null,null,null,"Select from Drop Down","Select from Drop Down","Select from Drop Down"]
[329,null,null,"Select from Drop Down","Select from Drop Down","Select from Drop Down",null,null,null,null,null,null,null,null,null,null,null,null,"Select from Drop Down","Select from Drop Down","Select from Drop Down"]
[330,null,null,"Select from Drop Down","Select from Drop Down","Select from Drop Down",null,null,null,null,null,null,null,null,null,null,null,null,"Select from Drop Down","Select from Drop Down","Select from Drop Down"]
[331,null,null,"Select from Drop Down","Select from Drop Down","Select from Drop Down",null,null,null,null,null,null,null,null,null,null,null,null,"Select from Drop Down","Select from Drop Down","Select from Drop Down"]
[332,null,null,"Select from Drop Down","Select from Drop Down","Select from Drop Down",null,null,null,null,null,null,null,null,null,null,null,null,"Select from Drop Down","Select from Drop Down","Select from Drop Down"]
[333,null,null,"Select from Drop Down","Select from Drop Down","Select from Drop Down",null,null,null,null,null,null,null,null,null,null,null,null,"Select from Drop Down","Select from Drop Down","Select from Drop Down"]
[334,null,null,"Select from Drop Down","Select from Drop Down","Select from Drop Down",null,null,null,null,null,null,null,null,null,null,null,null,"Select from Drop Down","Select from Drop Down","Select from Drop Down"]
[335,null,null,"Select from Drop Down","Select from Drop Down","Select from Drop Down",null,null,null,null,null,null,null,null,null,null,null,null,"Select from Drop Down","Select from Drop Down","Select from Drop Down"]
[336,null,null,"Select from Drop Down","Select from Drop Down","Select from Drop Down",null,null,null,null,null,null,null,null,null,null,null,null,"Select from Drop Down","Select from Drop Down","Select from Drop Down"]
[337,null,null,"Select from Drop Down","Select from Drop Down","Select from Drop Down",null,null,null,null,null,null,null,null,null,null,null,null,"Select from Drop Down","Select from Drop Down","Select from Drop Down"]
[338,null,null,"Select from Drop Down","Select from Drop Down","Select from Drop Down",null,null,null,null,null,null,null,null,null,null,null,null,"Select from Drop Down","Select from Drop Down","Select from Drop Down"]
[339,null,null,"Select from Drop Down","Select from Drop Down","Select from Drop Down",null,null,null,null,null,null,null,null,null,null,null,null,"Select from Drop Down","Select from Drop Down","Select from Drop Down"]
[340,null,null,"Select from Drop Down","Select from Drop Down","Select from Drop Down",null,null,null,null,null,null,null,null,null,null,null,null,"Select from Drop Down","Select from Drop Down","Select from Drop Down"]
[341,null,null,"Select from Drop Down","Select from Drop Down","Select from Drop Down",null,null,null,null,null,null,null,null,null,null,null,null,"Select from Drop Down","Select from Drop Down","Select from Drop Down"]
[342,null,null,"Select from Drop Down","Select from Drop Down","Select from Drop Down",null,null,null,null,null,null,null,null,null,null,null,null,"Select from Drop Down","Select from Drop Down","Select from Drop Down"]
[343,null,null,"Select from Drop Down","Select from Drop Down","Select from Drop Down",null,null,null,null,null,null,null,null,null,null,null,null,"Select from Drop Down","Select from Drop Down","Select from Drop Down"]
[344,null,null,"Select from Drop Down","Select from Drop Down","Select from Drop Down",null,null,null,null,null,null,null,null,null,null,null,null,"Select from Drop Down","Select from Drop Down","Select from Drop Down"]
[345,null,null,"Select from Drop Down","Select from Drop Down","Select from Drop Down",null,null,null,null,null,null,null,null,null,null,null,null,"Select from Drop Down","Select from Drop Down","Select from Drop Down"]
[346,null,null,"Select from Drop Down","Select from Drop Down","Select from Drop Down",null,null,null,null,null,null,null,null,null,null,null,null,"Select from Drop Down","Select from Drop Down","Select from Drop Down"]
[347,null,null,"Select from Drop Down","Select from Drop Down","Select from Drop Down",null,null,null,null,null,null,null,null,null,null,null,null,"Select from Drop Down","Select from Drop Down","Select from Drop Down"]
[348,null,null,"Select from Drop Down","Select from Drop Down","Select from Drop Down",null,null,null,null,null,null,null,null,null,null,null,null,"Select from Drop Down","Select from Drop Down","Select from Drop Down"]
[349,null,null,"Select from Drop Down","Select from Drop Down","Select from Drop Down",null,null,null,null,null,null,null,null,null,null,null,null,"Select from Drop Down","Select from Drop Down","Select from Drop Down"]
[350,null,null,"Select from Drop Down","Select from Drop Down","Select from Drop Down",null,null,null,null,null,null,null,null,null,null,null,null,"Select from Drop Down","Select from Drop Down","Select from Drop Down"]
[351,null,null,"Select from Drop Down","Select from Drop Down","Select from Drop Down",null,null,null,null,null,null,null,null,null,null,null,null,"Select from Drop Down","Select from Drop Down","Select from Drop Down"]
[352,null,null,"Select from Drop Down","Select from Drop Down","Select from Drop Down",null,null,null,null,null,null,null,null,null,null,null,null,"Select from Drop Down","Select from Drop Down","Select from Drop Down"]
[353,null,null,"Select from Drop Down","Select from Drop Down","Select from Drop Down",null,null,null,null,null,null,null,null,null,null,null,null,"Select from Drop Down","Select from Drop Down","Select from Drop Down"]
[354,null,null,"Select from Drop Down","Select from Drop Down","Select from Drop Down",null,null,null,null,null,null,null,null,null,null,null,null,"Select from Drop Down","Select from Drop Down","Select from Drop Down"]
[355,null,null,"Select from Drop Down","Select from Drop Down","Select from Drop Down",null,null,null,null,null,null,null,null,null,null,null,null,"Select from Drop Down","Select from Drop Down","Select from Drop Down"]
[356,null,null,"Select from Drop Down","Select from Drop Down","Select from Drop Down",null,null,null,null,null,null,null,null,null,null,null,null,"Select from Drop Down","Select from Drop Down","Select from Drop Down"]
[357,null,null,"Select from Drop Down","Select from Drop Down","Select from Drop Down",null,null,null,null,null,null,null,null,null,null,null,null,"Select from Drop Down","Select from Drop Down","Select from Drop Down"]
[358,null,null,"Select from Drop Down","Select from Drop Down","Select from Drop Down",null,null,null,null,null,null,null,null,null,null,null,null,"Select from Drop Down","Select from Drop Down","Select from Drop Down"]
[359,null,null,"Select from Drop Down","Select from Drop Down","Select from Drop Down",null,null,null,null,null,null,null,null,null,null,null,null,"Select from Drop Down","Select from Drop Down","Select from Drop Down"]
[360,null,null,"Select from Drop Down","Select from Drop Down","Select from Drop Down",null,null,null,null,null,null,null,null,null,null,null,null,"Select from Drop Down","Select from Drop Down","Select from Drop Down"]
[361,null,null,"Select from Drop Down","Select from Drop Down","Select from Drop Down",null,null,null,null,null,null,null,null,null,null,null,null,"Select from Drop Down","Select from Drop Down","Select from Drop Down"]
[362,null,null,"Select from Drop Down","Select from Drop Down","Select from Drop Down",null,null,null,null,null,null,null,null,null,null,null,null,"Select from Drop Down","Select from Drop Down","Select from Drop Down"]
[363,null,null,"Select from Drop Down","Select from Drop Down","Select from Drop Down",null,null,null,null,null,null,null,null,null,null,null,null,"Select from Drop Down","Select from Drop Down","Select from Drop Down"]
[364,null,null,"Select from Drop Down","Select from Drop Down","Select from Drop Down",null,null,null,null,null,null,null,null,null,null,null,null,"Select from Drop Down","Select from Drop Down","Select from Drop Down"]
[365,null,null,"Select from Drop Down","Select from Drop Down","Select from Drop Down",null,null,null,null,null,null,null,null,null,null,null,null,"Select from Drop Down","Select from Drop Down","Select from Drop Down"]
[366,null,null,"Select from Drop Down","Select from Drop Down","Select from Drop Down",null,null,null,null,null,null,null,null,null,null,null,null,"Select from Drop Down","Select from Drop Down","Select from Drop Down"]
[367,null,null,"Select from Drop Down","Select from Drop Down","Select from Drop Down",null,null,null,null,null,null,null,null,null,null,null,null,"Select from Drop Down","Select from Drop Down","Select from Drop Down"]
[368,null,null,"Select from Drop Down","Select from Drop Down","Select from Drop Down",null,null,null,null,null,null,null,null,null,null,null,null,"Select from Drop Down","Select from Drop Down","Select from Drop Down"]
[369,null,null,"Select from Drop Down","Select from Drop Down","Select from Drop Down",null,null,null,null,null,null,null,null,null,null,null,null,"Select from Drop Down","Select from Drop Down","Select from Drop Down"]
[370,null,null,"Select from Drop Down","Select from Drop Down","Select from Drop Down",null,null,null,null,null,null,null,null,null,null,null,null,"Select from Drop Down","Select from Drop Down","Select from Drop Down"]
[371,null,null,"Select from Drop Down","Select from Drop Down","Select from Drop Down",null,null,null,null,null,null,null,null,null,null,null,null,"Select from Drop Down","Select from Drop Down","Select from Drop Down"]
[372,null,null,"Select from Drop Down","Select from Drop Down","Select from Drop Down",null,null,null,null,null,null,null,null,null,null,null,null,"Select from Drop Down","Select from Drop Down","Select from Drop Down"]
[373,null,null,"Select from Drop Down","Select from Drop Down","Select from Drop Down",null,null,null,null,null,null,null,null,null,null,null,null,"Select from Drop Down","Select from Drop Down","Select from Drop Down"]
[374,null,null,"Select from Drop Down","Select from Drop Down","Select from Drop Down",null,null,null,null,null,null,null,null,null,null,null,null,"Select from Drop Down","Select from Drop Down","Select from Drop Down"]
[375,null,null,"Select from Drop Down","Select from Drop Down","Select from Drop Down",null,null,null,null,null,null,null,null,null,null,null,null,"Select from Drop Down","Select from Drop Down","Select from Drop Down"]
[376,null,null,"Select from Drop Down","Select from Drop Down","Select from Drop Down",null,null,null,null,null,null,null,null,null,null,null,null,"Select from Drop Down","Select from Drop Down","Select from Drop Down"]
[377,null,null,"Select from Drop Down","Select from Drop Down","Select from Drop Down",null,null,null,null,null,null,null,null,null,null,null,null,"Select from Drop Down","Select from Drop Down","Select from Drop Down"]
[378,null,null,"Select from Drop Down","Select from Drop Down","Select from Drop Down",null,null,null,null,null,null,null,null,null,null,null,null,"Select from Drop Down","Select from Drop Down","Select from Drop Down"]
[379,null,null,"Select from Drop Down","Select from Drop Down","Select from Drop Down",null,null,null,null,null,null,null,null,null,null,null,null,"Select from Drop Down","Select from Drop Down","Select from Drop Down"]
[380,null,null,"Select from Drop Down","Select from Drop Down","Select from Drop Down",null,null,null,null,null,null,null,null,null,null,null,null,"Select from Drop Down","Select from Drop Down","Select from Drop Down"]
[381,null,null,"Select from Drop Down","Select from Drop Down","Select from Drop Down",null,null,null,null,null,null,null,null,null,null,null,null,"Select from Drop Down","Select from Drop Down","Select from Drop Down"]
[382,null,null,"Select from Drop Down","Select from Drop Down","Select from Drop Down",null,null,null,null,null,null,null,null,null,null,null,null,"Select from Drop Down","Select from Drop Down","Select from Drop Down"]
[383,null,null,"Select from Drop Down","Select from Drop Down","Select from Drop Down",null,null,null,null,null,null,null,null,null,null,null,null,"Select from Drop Down","Select from Drop Down","Select from Drop Down"]
[384,null,null,"Select from Drop Down","Select from Drop Down","Select from Drop Down",null,null,null,null,null,null,null,null,null,null,null,null,"Select from Drop Down","Select from Drop Down","Select from Drop Down"]
[385,null,null,"Select from Drop Down","Select from Drop Down","Select from Drop Down",null,null,null,null,null,null,null,null,null,null,null,null,"Select from Drop Down","Select from Drop Down","Select from Drop Down"]
[386,null,null,"Select from Drop Down","Select from Drop Down","Select from Drop Down",null,null,null,null,null,null,null,null,null,null,null,null,"Select from Drop Down","Select from Drop Down","Select from Drop Down"]
[{"$f":"A396+1","v":387},null,null,"Select from Drop Down","Select from Drop Down","Select from Drop Down",null,null,null,null,null,null,null,null,null,null,null,null,"Select from Drop Down","Select from Drop Down","Select from Drop Down"]
[388,null,null,"Select from Drop Down","Select from Drop Down","Select from Drop Down",null,null,null,null,null,null,null,null,null,null,null,null,"Select from Drop Down","Select from Drop Down","Select from Drop Down"]
[389,null,null,"Select from Drop Down","Select from Drop Down","Select from Drop Down",null,null,null,null,null,null,null,null,null,null,null,null,"Select from Drop Down","Select from Drop Down","Select from Drop Down"]
[390,null,null,"Select from Drop Down","Select from Drop Down","Select from Drop Down",null,null,null,null,null,null,null,null,null,null,null,null,"Select from Drop Down","Select from Drop Down","Select from Drop Down"]
[391,null,null,"Select from Drop Down","Select from Drop Down","Select from Drop Down",null,null,null,null,null,null,null,null,null,null,null,null,"Select from Drop Down","Select from Drop Down","Select from Drop Down"]
[392,null,null,"Select from Drop Down","Select from Drop Down","Select from Drop Down",null,null,null,null,null,null,null,null,null,null,null,null,"Select from Drop Down","Select from Drop Down","Select from Drop Down"]
[393,null,null,"Select from Drop Down","Select from Drop Down","Select from Drop Down",null,null,null,null,null,null,null,null,null,null,null,null,"Select from Drop Down","Select from Drop Down","Select from Drop Down"]
[394,null,null,"Select from Drop Down","Select from Drop Down","Select from Drop Down",null,null,null,null,null,null,null,null,null,null,null,null,"Select from Drop Down","Select from Drop Down","Select from Drop Down"]
[395,null,null,"Select from Drop Down","Select from Drop Down","Select from Drop Down",null,null,null,null,null,null,null,null,null,null,null,null,"Select from Drop Down","Select from Drop Down","Select from Drop Down"]
[396,null,null,"Select from Drop Down","Select from Drop Down","Select from Drop Down",null,null,null,null,null,null,null,null,null,null,null,null,"Select from Drop Down","Select from Drop Down","Select from Drop Down"]
[397,null,null,"Select from Drop Down","Select from Drop Down","Select from Drop Down",null,null,null,null,null,null,null,null,null,null,null,null,"Select from Drop Down","Select from Drop Down","Select from Drop Down"]
[398,null,null,"Select from Drop Down","Select from Drop Down","Select from Drop Down",null,null,null,null,null,null,null,null,null,null,null,null,"Select from Drop Down","Select from Drop Down","Select from Drop Down"]
[399,null,null,"Select from Drop Down","Select from Drop Down","Select from Drop Down",null,null,null,null,null,null,null,null,null,null,null,null,"Select from Drop Down","Select from Drop Down","Select from Drop Down"]
[400,null,null,"Select from Drop Down","Select from Drop Down","Select from Drop Down",null,null,null,null,null,null,null,null,null,null,null,null,"Select from Drop Down","Select from Drop Down","Select from Drop Down"]
[401,null,null,"Select from Drop Down","Select from Drop Down","Select from Drop Down",null,null,null,null,null,null,null,null,null,null,null,null,"Select from Drop Down","Select from Drop Down","Select from Drop Down"]
[402,null,null,"Select from Drop Down","Select from Drop Down","Select from Drop Down",null,null,null,null,null,null,null,null,null,null,null,null,"Select from Drop Down","Select from Drop Down","Select from Drop Down"]
[403,null,null,"Select from Drop Down","Select from Drop Down","Select from Drop Down",null,null,null,null,null,null,null,null,null,null,null,null,"Select from Drop Down","Select from Drop Down","Select from Drop Down"]
[404,null,null,"Select from Drop Down","Select from Drop Down","Select from Drop Down",null,null,null,null,null,null,null,null,null,null,null,null,"Select from Drop Down","Select from Drop Down","Select from Drop Down"]
[405,null,null,"Select from Drop Down","Select from Drop Down","Select from Drop Down",null,null,null,null,null,null,null,null,null,null,null,null,"Select from Drop Down","Select from Drop Down","Select from Drop Down"]
[406,null,null,"Select from Drop Down","Select from Drop Down","Select from Drop Down",null,null,null,null,null,null,null,null,null,null,null,null,"Select from Drop Down","Select from Drop Down","Select from Drop Down"]
[407,null,null,"Select from Drop Down","Select from Drop Down","Select from Drop Down",null,null,null,null,null,null,null,null,null,null,null,null,"Select from Drop Down","Select from Drop Down","Select from Drop Down"]
[408,null,null,"Select from Drop Down","Select from Drop Down","Select from Drop Down",null,null,null,null,null,null,null,null,null,null,null,null,"Select from Drop Down","Select from Drop Down","Select from Drop Down"]
[409,null,null,"Select from Drop Down","Select from Drop Down","Select from Drop Down",null,null,null,null,null,null,null,null,null,null,null,null,"Select from Drop Down","Select from Drop Down","Select from Drop Down"]
[410,null,null,"Select from Drop Down","Select from Drop Down","Select from Drop Down",null,null,null,null,null,null,null,null,null,null,null,null,"Select from Drop Down","Select from Drop Down","Select from Drop Down"]
[411,null,null,"Select from Drop Down","Select from Drop Down","Select from Drop Down",null,null,null,null,null,null,null,null,null,null,null,null,"Select from Drop Down","Select from Drop Down","Select from Drop Down"]
[412,null,null,"Select from Drop Down","Select from Drop Down","Select from Drop Down",null,null,null,null,null,null,null,null,null,null,null,null,"Select from Drop Down","Select from Drop Down","Select from Drop Down"]
[413,null,null,"Select from Drop Down","Select from Drop Down","Select from Drop Down",null,null,null,null,null,null,null,null,null,null,null,null,"Select from Drop Down","Select from Drop Down","Select from Drop Down"]
[414,null,null,"Select from Drop Down","Select from Drop Down","Select from Drop Down",null,null,null,null,null,null,null,null,null,null,null,null,"Select from Drop Down","Select from Drop Down","Select from Drop Down"]
[415,null,null,"Select from Drop Down","Select from Drop Down","Select from Drop Down",null,null,null,null,null,null,null,null,null,null,null,null,"Select from Drop Down","Select from Drop Down","Select from Drop Down"]
[416,null,null,"Select from Drop Down","Select from Drop Down","Select from Drop Down",null,null,null,null,null,null,null,null,null,null,null,null,"Select from Drop Down","Select from Drop Down","Select from Drop Down"]
[417,null,null,"Select from Drop Down","Select from Drop Down","Select from Drop Down",null,null,null,null,null,null,null,null,null,null,null,null,"Select from Drop Down","Select from Drop Down","Select from Drop Down"]
[418,null,null,"Select from Drop Down","Select from Drop Down","Select from Drop Down",null,null,null,null,null,null,null,null,null,null,null,null,"Select from Drop Down","Select from Drop Down","Select from Drop Down"]
[419,null,null,"Select from Drop Down","Select from Drop Down","Select from Drop Down",null,null,null,null,null,null,null,null,null,null,null,null,"Select from Drop Down","Select from Drop Down","Select from Drop Down"]
[420,null,null,"Select from Drop Down","Select from Drop Down","Select from Drop Down",null,null,null,null,null,null,null,null,null,null,null,null,"Select from Drop Down","Select from Drop Down","Select from Drop Down"]
[421,null,null,"Select from Drop Down","Select from Drop Down","Select from Drop Down",null,null,null,null,null,null,null,null,null,null,null,null,"Select from Drop Down","Select from Drop Down","Select from Drop Down"]
[422,null,null,"Select from Drop Down","Select from Drop Down","Select from Drop Down",null,null,null,null,null,null,null,null,null,null,null,null,"Select from Drop Down","Select from Drop Down","Select from Drop Down"]
[423,null,null,"Select from Drop Down","Select from Drop Down","Select from Drop Down",null,null,null,null,null,null,null,null,null,null,null,null,"Select from Drop Down","Select from Drop Down","Select from Drop Down"]
[424,null,null,"Select from Drop Down","Select from Drop Down","Select from Drop Down",null,null,null,null,null,null,null,null,null,null,null,null,"Select from Drop Down","Select from Drop Down","Select from Drop Down"]
[425,null,null,"Select from Drop Down","Select from Drop Down","Select from Drop Down",null,null,null,null,null,null,null,null,null,null,null,null,"Select from Drop Down","Select from Drop Down","Select from Drop Down"]
[426,null,null,"Select from Drop Down","Select from Drop Down","Select from Drop Down",null,null,null,null,null,null,null,null,null,null,null,null,"Select from Drop Down","Select from Drop Down","Select from Drop Down"]
[427,null,null,"Select from Drop Down","Select from Drop Down","Select from Drop Down",null,null,null,null,null,null,null,null,null,null,null,null,"Select from Drop Down","Select from Drop Down","Select from Drop Down"]
[428,null,null,"Select from Drop Down","Select from Drop Down","Select from Drop Down",null,null,null,null,null,null,null,null,null,null,null,null,"Select from Drop Down","Select from Drop Down","Select from Drop Down"]
[429,null,null,"Select from Drop Down","Select from Drop Down","Select from Drop Down",null,null,null,null,null,null,null,null,null,null,null,null,"Select from Drop Down","Select from Drop Down","Select from Drop Down"]
[430,null,null,"Select from Drop Down","Select from Drop Down","Select from Drop Down",null,null,null,null,null,null,null,null,null,null,null,null,"Select from Drop Down","Select from Drop Down","Select from Drop Down"]
[431,null,null,"Select from Drop Down","Select from Drop Down","Select from Drop Down",null,null,null,null,null,null,null,null,null,null,null,null,"Select from Drop Down","Select from Drop Down","Select from Drop Down"]
[432,null,null,"Select from Drop Down","Select from Drop Down","Select from Drop Down",null,null,null,null,null,null,null,null,null,null,null,null,"Select from Drop Down","Select from Drop Down","Select from Drop Down"]
[433,null,null,"Select from Drop Down","Select from Drop Down","Select from Drop Down",null,null,null,null,null,null,null,null,null,null,null,null,"Select from Drop Down","Select from Drop Down","Select from Drop Down"]
[434,null,null,"Select from Drop Down","Select from Drop Down","Select from Drop Down",null,null,null,null,null,null,null,null,null,null,null,null,"Select from Drop Down","Select from Drop Down","Select from Drop Down"]
[435,null,null,"Select from Drop Down","Select from Drop Down","Select from Drop Down",null,null,null,null,null,null,null,null,null,null,null,null,"Select from Drop Down","Select from Drop Down","Select from Drop Down"]
[436,null,null,"Select from Drop Down","Select from Drop Down","Select from Drop Down",null,null,null,null,null,null,null,null,null,null,null,null,"Select from Drop Down","Select from Drop Down","Select from Drop Down"]
[437,null,null,"Select from Drop Down","Select from Drop Down","Select from Drop Down",null,null,null,null,null,null,null,null,null,null,null,null,"Select from Drop Down","Select from Drop Down","Select from Drop Down"]
[438,null,null,"Select from Drop Down","Select from Drop Down","Select from Drop Down",null,null,null,null,null,null,null,null,null,null,null,null,"Select from Drop Down","Select from Drop Down","Select from Drop Down"]
[439,null,null,"Select from Drop Down","Select from Drop Down","Select from Drop Down",null,null,null,null,null,null,null,null,null,null,null,null,"Select from Drop Down","Select from Drop Down","Select from Drop Down"]
[440,null,null,"Select from Drop Down","Select from Drop Down","Select from Drop Down",null,null,null,null,null,null,null,null,null,null,null,null,"Select from Drop Down","Select from Drop Down","Select from Drop Down"]
[441,null,null,"Select from Drop Down","Select from Drop Down","Select from Drop Down",null,null,null,null,null,null,null,null,null,null,null,null,"Select from Drop Down","Select from Drop Down","Select from Drop Down"]
[442,null,null,"Select from Drop Down","Select from Drop Down","Select from Drop Down",null,null,null,null,null,null,null,null,null,null,null,null,"Select from Drop Down","Select from Drop Down","Select from Drop Down"]
[443,null,null,"Select from Drop Down","Select from Drop Down","Select from Drop Down",null,null,null,null,null,null,null,null,null,null,null,null,"Select from Drop Down","Select from Drop Down","Select from Drop Down"]
[444,null,null,"Select from Drop Down","Select from Drop Down","Select from Drop Down",null,null,null,null,null,null,null,null,null,null,null,null,"Select from Drop Down","Select from Drop Down","Select from Drop Down"]
[445,null,null,"Select from Drop Down","Select from Drop Down","Select from Drop Down",null,null,null,null,null,null,null,null,null,null,null,null,"Select from Drop Down","Select from Drop Down","Select from Drop Down"]
[446,null,null,"Select from Drop Down","Select from Drop Down","Select from Drop Down",null,null,null,null,null,null,null,null,null,null,null,null,"Select from Drop Down","Select from Drop Down","Select from Drop Down"]
[447,null,null,"Select from Drop Down","Select from Drop Down","Select from Drop Down",null,null,null,null,null,null,null,null,null,null,null,null,"Select from Drop Down","Select from Drop Down","Select from Drop Down"]
[448,null,null,"Select from Drop Down","Select from Drop Down","Select from Drop Down",null,null,null,null,null,null,null,null,null,null,null,null,"Select from Drop Down","Select from Drop Down","Select from Drop Down"]
[449,null,null,"Select from Drop Down","Select from Drop Down","Select from Drop Down",null,null,null,null,null,null,null,null,null,null,null,null,"Select from Drop Down","Select from Drop Down","Select from Drop Down"]
[450,null,null,"Select from Drop Down","Select from Drop Down","Select from Drop Down",null,null,null,null,null,null,null,null,null,null,null,null,"Select from Drop Down","Select from Drop Down","Select from Drop Down"]
[{"$f":"A460+1","v":451},null,null,"Select from Drop Down","Select from Drop Down","Select from Drop Down",null,null,null,null,null,null,null,null,null,null,null,null,"Select from Drop Down","Select from Drop Down","Select from Drop Down"]
[452,null,null,"Select from Drop Down","Select from Drop Down","Select from Drop Down",null,null,null,null,null,null,null,null,null,null,null,null,"Select from Drop Down","Select from Drop Down","Select from Drop Down"]
[453,null,null,"Select from Drop Down","Select from Drop Down","Select from Drop Down",null,null,null,null,null,null,null,null,null,null,null,null,"Select from Drop Down","Select from Drop Down","Select from Drop Down"]
[454,null,null,"Select from Drop Down","Select from Drop Down","Select from Drop Down",null,null,null,null,null,null,null,null,null,null,null,null,"Select from Drop Down","Select from Drop Down","Select from Drop Down"]
[455,null,null,"Select from Drop Down","Select from Drop Down","Select from Drop Down",null,null,null,null,null,null,null,null,null,null,null,null,"Select from Drop Down","Select from Drop Down","Select from Drop Down"]
[456,null,null,"Select from Drop Down","Select from Drop Down","Select from Drop Down",null,null,null,null,null,null,null,null,null,null,null,null,"Select from Drop Down","Select from Drop Down","Select from Drop Down"]
[457,null,null,"Select from Drop Down","Select from Drop Down","Select from Drop Down",null,null,null,null,null,null,null,null,null,null,null,null,"Select from Drop Down","Select from Drop Down","Select from Drop Down"]
[458,null,null,"Select from Drop Down","Select from Drop Down","Select from Drop Down",null,null,null,null,null,null,null,null,null,null,null,null,"Select from Drop Down","Select from Drop Down","Select from Drop Down"]
[459,null,null,"Select from Drop Down","Select from Drop Down","Select from Drop Down",null,null,null,null,null,null,null,null,null,null,null,null,"Select from Drop Down","Select from Drop Down","Select from Drop Down"]
[460,null,null,"Select from Drop Down","Select from Drop Down","Select from Drop Down",null,null,null,null,null,null,null,null,null,null,null,null,"Select from Drop Down","Select from Drop Down","Select from Drop Down"]
[461,null,null,"Select from Drop Down","Select from Drop Down","Select from Drop Down",null,null,null,null,null,null,null,null,null,null,null,null,"Select from Drop Down","Select from Drop Down","Select from Drop Down"]
[462,null,null,"Select from Drop Down","Select from Drop Down","Select from Drop Down",null,null,null,null,null,null,null,null,null,null,null,null,"Select from Drop Down","Select from Drop Down","Select from Drop Down"]
[463,null,null,"Select from Drop Down","Select from Drop Down","Select from Drop Down",null,null,null,null,null,null,null,null,null,null,null,null,"Select from Drop Down","Select from Drop Down","Select from Drop Down"]
[464,null,null,"Select from Drop Down","Select from Drop Down","Select from Drop Down",null,null,null,null,null,null,null,null,null,null,null,null,"Select from Drop Down","Select from Drop Down","Select from Drop Down"]
[465,null,null,"Select from Drop Down","Select from Drop Down","Select from Drop Down",null,null,null,null,null,null,null,null,null,null,null,null,"Select from Drop Down","Select from Drop Down","Select from Drop Down"]
[466,null,null,"Select from Drop Down","Select from Drop Down","Select from Drop Down",null,null,null,null,null,null,null,null,null,null,null,null,"Select from Drop Down","Select from Drop Down","Select from Drop Down"]
[467,null,null,"Select from Drop Down","Select from Drop Down","Select from Drop Down",null,null,null,null,null,null,null,null,null,null,null,null,"Select from Drop Down","Select from Drop Down","Select from Drop Down"]
[468,null,null,"Select from Drop Down","Select from Drop Down","Select from Drop Down",null,null,null,null,null,null,null,null,null,null,null,null,"Select from Drop Down","Select from Drop Down","Select from Drop Down"]
[469,null,null,"Select from Drop Down","Select from Drop Down","Select from Drop Down",null,null,null,null,null,null,null,null,null,null,null,null,"Select from Drop Down","Select from Drop Down","Select from Drop Down"]
[470,null,null,"Select from Drop Down","Select from Drop Down","Select from Drop Down",null,null,null,null,null,null,null,null,null,null,null,null,"Select from Drop Down","Select from Drop Down","Select from Drop Down"]
[471,null,null,"Select from Drop Down","Select from Drop Down","Select from Drop Down",null,null,null,null,null,null,null,null,null,null,null,null,"Select from Drop Down","Select from Drop Down","Select from Drop Down"]
[472,null,null,"Select from Drop Down","Select from Drop Down","Select from Drop Down",null,null,null,null,null,null,null,null,null,null,null,null,"Select from Drop Down","Select from Drop Down","Select from Drop Down"]
[473,null,null,"Select from Drop Down","Select from Drop Down","Select from Drop Down",null,null,null,null,null,null,null,null,null,null,null,null,"Select from Drop Down","Select from Drop Down","Select from Drop Down"]
[474,null,null,"Select from Drop Down","Select from Drop Down","Select from Drop Down",null,null,null,null,null,null,null,null,null,null,null,null,"Select from Drop Down","Select from Drop Down","Select from Drop Down"]
[475,null,null,"Select from Drop Down","Select from Drop Down","Select from Drop Down",null,null,null,null,null,null,null,null,null,null,null,null,"Select from Drop Down","Select from Drop Down","Select from Drop Down"]
[476,null,null,"Select from Drop Down","Select from Drop Down","Select from Drop Down",null,null,null,null,null,null,null,null,null,null,null,null,"Select from Drop Down","Select from Drop Down","Select from Drop Down"]
[477,null,null,"Select from Drop Down","Select from Drop Down","Select from Drop Down",null,null,null,null,null,null,null,null,null,null,null,null,"Select from Drop Down","Select from Drop Down","Select from Drop Down"]
[478,null,null,"Select from Drop Down","Select from Drop Down","Select from Drop Down",null,null,null,null,null,null,null,null,null,null,null,null,"Select from Drop Down","Select from Drop Down","Select from Drop Down"]
[479,null,null,"Select from Drop Down","Select from Drop Down","Select from Drop Down",null,null,null,null,null,null,null,null,null,null,null,null,"Select from Drop Down","Select from Drop Down","Select from Drop Down"]
[480,null,null,"Select from Drop Down","Select from Drop Down","Select from Drop Down",null,null,null,null,null,null,null,null,null,null,null,null,"Select from Drop Down","Select from Drop Down","Select from Drop Down"]
[481,null,null,"Select from Drop Down","Select from Drop Down","Select from Drop Down",null,null,null,null,null,null,null,null,null,null,null,null,"Select from Drop Down","Select from Drop Down","Select from Drop Down"]
[482,null,null,"Select from Drop Down","Select from Drop Down","Select from Drop Down",null,null,null,null,null,null,null,null,null,null,null,null,"Select from Drop Down","Select from Drop Down","Select from Drop Down"]
[483,null,null,"Select from Drop Down","Select from Drop Down","Select from Drop Down",null,null,null,null,null,null,null,null,null,null,null,null,"Select from Drop Down","Select from Drop Down","Select from Drop Down"]
[484,null,null,"Select from Drop Down","Select from Drop Down","Select from Drop Down",null,null,null,null,null,null,null,null,null,null,null,null,"Select from Drop Down","Select from Drop Down","Select from Drop Down"]
[485,null,null,"Select from Drop Down","Select from Drop Down","Select from Drop Down",null,null,null,null,null,null,null,null,null,null,null,null,"Select from Drop Down","Select from Drop Down","Select from Drop Down"]
[486,null,null,"Select from Drop Down","Select from Drop Down","Select from Drop Down",null,null,null,null,null,null,null,null,null,null,null,null,"Select from Drop Down","Select from Drop Down","Select from Drop Down"]
[487,null,null,"Select from Drop Down","Select from Drop Down","Select from Drop Down",null,null,null,null,null,null,null,null,null,null,null,null,"Select from Drop Down","Select from Drop Down","Select from Drop Down"]
[488,null,null,"Select from Drop Down","Select from Drop Down","Select from Drop Down",null,null,null,null,null,null,null,null,null,null,null,null,"Select from Drop Down","Select from Drop Down","Select from Drop Down"]
[489,null,null,"Select from Drop Down","Select from Drop Down","Select from Drop Down",null,null,null,null,null,null,null,null,null,null,null,null,"Select from Drop Down","Select from Drop Down","Select from Drop Down"]
[490,null,null,"Select from Drop Down","Select from Drop Down","Select from Drop Down",null,null,null,null,null,null,null,null,null,null,null,null,"Select from Drop Down","Select from Drop Down","Select from Drop Down"]
[491,null,null,"Select from Drop Down","Select from Drop Down","Select from Drop Down",null,null,null,null,null,null,null,null,null,null,null,null,"Select from Drop Down","Select from Drop Down","Select from Drop Down"]
[492,null,null,"Select from Drop Down","Select from Drop Down","Select from Drop Down",null,null,null,null,null,null,null,null,null,null,null,null,"Select from Drop Down","Select from Drop Down","Select from Drop Down"]
[493,null,null,"Select from Drop Down","Select from Drop Down","Select from Drop Down",null,null,null,null,null,null,null,null,null,null,null,null,"Select from Drop Down","Select from Drop Down","Select from Drop Down"]
[494,null,null,"Select from Drop Down","Select from Drop Down","Select from Drop Down",null,null,null,null,null,null,null,null,null,null,null,null,"Select from Drop Down","Select from Drop Down","Select from Drop Down"]
[495,null,null,"Select from Drop Down","Select from Drop Down","Select from Drop Down",null,null,null,null,null,null,null,null,null,null,null,null,"Select from Drop Down","Select from Drop Down","Select from Drop Down"]
[496,null,null,"Select from Drop Down","Select from Drop Down","Select from Drop Down",null,null,null,null,null,null,null,null,null,null,null,null,"Select from Drop Down","Select from Drop Down","Select from Drop Down"]
[497,null,null,"Select from Drop Down","Select from Drop Down","Select from Drop Down",null,null,null,null,null,null,null,null,null,null,null,null,"Select from Drop Down","Select from Drop Down","Select from Drop Down"]
[498,null,null,"Select from Drop Down","Select from Drop Down","Select from Drop Down",null,null,null,null,null,null,null,null,null,null,null,null,"Select from Drop Down","Select from Drop Down","Select from Drop Down"]
[499,null,null,"Select from Drop Down","Select from Drop Down","Select from Drop Down",null,null,null,null,null,null,null,null,null,null,null,null,"Select from Drop Down","Select from Drop Down","Select from Drop Down"]
[500,null,null,"Select from Drop Down","Select from Drop Down","Select from Drop Down",null,null,null,null,null,null,null,null,null,null,null,null,"Select from Drop Down","Select from Drop Down","Select from Drop Down"]
[501,null,null,"Select from Drop Down","Select from Drop Down","Select from Drop Down",null,null,null,null,null,null,null,null,null,null,null,null,"Select from Drop Down","Select from Drop Down","Select from Drop Down"]
[502,null,null,"Select from Drop Down","Select from Drop Down","Select from Drop Down",null,null,null,null,null,null,null,null,null,null,null,null,"Select from Drop Down","Select from Drop Down","Select from Drop Down"]
[503,null,null,"Select from Drop Down","Select from Drop Down","Select from Drop Down",null,null,null,null,null,null,null,null,null,null,null,null,"Select from Drop Down","Select from Drop Down","Select from Drop Down"]
[504,null,null,"Select from Drop Down","Select from Drop Down","Select from Drop Down",null,null,null,null,null,null,null,null,null,null,null,null,"Select from Drop Down","Select from Drop Down","Select from Drop Down"]
[505,null,null,"Select from Drop Down","Select from Drop Down","Select from Drop Down",null,null,null,null,null,null,null,null,null,null,null,null,"Select from Drop Down","Select from Drop Down","Select from Drop Down"]
[506,null,null,"Select from Drop Down","Select from Drop Down","Select from Drop Down",null,null,null,null,null,null,null,null,null,null,null,null,"Select from Drop Down","Select from Drop Down","Select from Drop Down"]
[507,null,null,"Select from Drop Down","Select from Drop Down","Select from Drop Down",null,null,null,null,null,null,null,null,null,null,null,null,"Select from Drop Down","Select from Drop Down","Select from Drop Down"]
[508,null,null,"Select from Drop Down","Select from Drop Down","Select from Drop Down",null,null,null,null,null,null,null,null,null,null,null,null,"Select from Drop Down","Select from Drop Down","Select from Drop Down"]
[509,null,null,"Select from Drop Down","Select from Drop Down","Select from Drop Down",null,null,null,null,null,null,null,null,null,null,null,null,"Select from Drop Down","Select from Drop Down","Select from Drop Down"]
[510,null,null,"Select from Drop Down","Select from Drop Down","Select from Drop Down",null,null,null,null,null,null,null,null,null,null,null,null,"Select from Drop Down","Select from Drop Down","Select from Drop Down"]
[511,null,null,"Select from Drop Down","Select from Drop Down","Select from Drop Down",null,null,null,null,null,null,null,null,null,null,null,null,"Select from Drop Down","Select from Drop Down","Select from Drop Down"]
[512,null,null,"Select from Drop Down","Select from Drop Down","Select from Drop Down",null,null,null,null,null,null,null,null,null,null,null,null,"Select from Drop Down","Select from Drop Down","Select from Drop Down"]
[513,null,null,"Select from Drop Down","Select from Drop Down","Select from Drop Down",null,null,null,null,null,null,null,null,null,null,null,null,"Select from Drop Down","Select from Drop Down","Select from Drop Down"]
[514,null,null,"Select from Drop Down","Select from Drop Down","Select from Drop Down",null,null,null,null,null,null,null,null,null,null,null,null,"Select from Drop Down","Select from Drop Down","Select from Drop Down"]
[{"$f":"A524+1","v":515},null,null,"Select from Drop Down","Select from Drop Down","Select from Drop Down",null,null,null,null,null,null,null,null,null,null,null,null,"Select from Drop Down","Select from Drop Down","Select from Drop Down"]
[516,null,null,"Select from Drop Down","Select from Drop Down","Select from Drop Down",null,null,null,null,null,null,null,null,null,null,null,null,"Select from Drop Down","Select from Drop Down","Select from Drop Down"]
[517,null,null,"Select from Drop Down","Select from Drop Down","Select from Drop Down",null,null,null,null,null,null,null,null,null,null,null,null,"Select from Drop Down","Select from Drop Down","Select from Drop Down"]
[518,null,null,"Select from Drop Down","Select from Drop Down","Select from Drop Down",null,null,null,null,null,null,null,null,null,null,null,null,"Select from Drop Down","Select from Drop Down","Select from Drop Down"]
[519,null,null,"Select from Drop Down","Select from Drop Down","Select from Drop Down",null,null,null,null,null,null,null,null,null,null,null,null,"Select from Drop Down","Select from Drop Down","Select from Drop Down"]
[520,null,null,"Select from Drop Down","Select from Drop Down","Select from Drop Down",null,null,null,null,null,null,null,null,null,null,null,null,"Select from Drop Down","Select from Drop Down","Select from Drop Down"]
[521,null,null,"Select from Drop Down","Select from Drop Down","Select from Drop Down",null,null,null,null,null,null,null,null,null,null,null,null,"Select from Drop Down","Select from Drop Down","Select from Drop Down"]
[522,null,null,"Select from Drop Down","Select from Drop Down","Select from Drop Down",null,null,null,null,null,null,null,null,null,null,null,null,"Select from Drop Down","Select from Drop Down","Select from Drop Down"]
[523,null,null,"Select from Drop Down","Select from Drop Down","Select from Drop Down",null,null,null,null,null,null,null,null,null,null,null,null,"Select from Drop Down","Select from Drop Down","Select from Drop Down"]
[524,null,null,"Select from Drop Down","Select from Drop Down","Select from Drop Down",null,null,null,null,null,null,null,null,null,null,null,null,"Select from Drop Down","Select from Drop Down","Select from Drop Down"]
[525,null,null,"Select from Drop Down","Select from Drop Down","Select from Drop Down",null,null,null,null,null,null,null,null,null,null,null,null,"Select from Drop Down","Select from Drop Down","Select from Drop Down"]
[526,null,null,"Select from Drop Down","Select from Drop Down","Select from Drop Down",null,null,null,null,null,null,null,null,null,null,null,null,"Select from Drop Down","Select from Drop Down","Select from Drop Down"]
[527,null,null,"Select from Drop Down","Select from Drop Down","Select from Drop Down",null,null,null,null,null,null,null,null,null,null,null,null,"Select from Drop Down","Select from Drop Down","Select from Drop Down"]
[528,null,null,"Select from Drop Down","Select from Drop Down","Select from Drop Down",null,null,null,null,null,null,null,null,null,null,null,null,"Select from Drop Down","Select from Drop Down","Select from Drop Down"]
[529,null,null,"Select from Drop Down","Select from Drop Down","Select from Drop Down",null,null,null,null,null,null,null,null,null,null,null,null,"Select from Drop Down","Select from Drop Down","Select from Drop Down"]
[530,null,null,"Select from Drop Down","Select from Drop Down","Select from Drop Down",null,null,null,null,null,null,null,null,null,null,null,null,"Select from Drop Down","Select from Drop Down","Select from Drop Down"]
[531,null,null,"Select from Drop Down","Select from Drop Down","Select from Drop Down",null,null,null,null,null,null,null,null,null,null,null,null,"Select from Drop Down","Select from Drop Down","Select from Drop Down"]
[532,null,null,"Select from Drop Down","Select from Drop Down","Select from Drop Down",null,null,null,null,null,null,null,null,null,null,null,null,"Select from Drop Down","Select from Drop Down","Select from Drop Down"]
[533,null,null,"Select from Drop Down","Select from Drop Down","Select from Drop Down",null,null,null,null,null,null,null,null,null,null,null,null,"Select from Drop Down","Select from Drop Down","Select from Drop Down"]
[534,null,null,"Select from Drop Down","Select from Drop Down","Select from Drop Down",null,null,null,null,null,null,null,null,null,null,null,null,"Select from Drop Down","Select from Drop Down","Select from Drop Down"]
[535,null,null,"Select from Drop Down","Select from Drop Down","Select from Drop Down",null,null,null,null,null,null,null,null,null,null,null,null,"Select from Drop Down","Select from Drop Down","Select from Drop Down"]
[536,null,null,"Select from Drop Down","Select from Drop Down","Select from Drop Down",null,null,null,null,null,null,null,null,null,null,null,null,"Select from Drop Down","Select from Drop Down","Select from Drop Down"]
[537,null,null,"Select from Drop Down","Select from Drop Down","Select from Drop Down",null,null,null,null,null,null,null,null,null,null,null,null,"Select from Drop Down","Select from Drop Down","Select from Drop Down"]
[538,null,null,"Select from Drop Down","Select from Drop Down","Select from Drop Down",null,null,null,null,null,null,null,null,null,null,null,null,"Select from Drop Down","Select from Drop Down","Select from Drop Down"]
[539,null,null,"Select from Drop Down","Select from Drop Down","Select from Drop Down",null,null,null,null,null,null,null,null,null,null,null,null,"Select from Drop Down","Select from Drop Down","Select from Drop Down"]
[540,null,null,"Select from Drop Down","Select from Drop Down","Select from Drop Down",null,null,null,null,null,null,null,null,null,null,null,null,"Select from Drop Down","Select from Drop Down","Select from Drop Down"]
[541,null,null,"Select from Drop Down","Select from Drop Down","Select from Drop Down",null,null,null,null,null,null,null,null,null,null,null,null,"Select from Drop Down","Select from Drop Down","Select from Drop Down"]
[542,null,null,"Select from Drop Down","Select from Drop Down","Select from Drop Down",null,null,null,null,null,null,null,null,null,null,null,null,"Select from Drop Down","Select from Drop Down","Select from Drop Down"]
[543,null,null,"Select from Drop Down","Select from Drop Down","Select from Drop Down",null,null,null,null,null,null,null,null,null,null,null,null,"Select from Drop Down","Select from Drop Down","Select from Drop Down"]
[544,null,null,"Select from Drop Down","Select from Drop Down","Select from Drop Down",null,null,null,null,null,null,null,null,null,null,null,null,"Select from Drop Down","Select from Drop Down","Select from Drop Down"]
[545,null,null,"Select from Drop Down","Select from Drop Down","Select from Drop Down",null,null,null,null,null,null,null,null,null,null,null,null,"Select from Drop Down","Select from Drop Down","Select from Drop Down"]
[546,null,null,"Select from Drop Down","Select from Drop Down","Select from Drop Down",null,null,null,null,null,null,null,null,null,null,null,null,"Select from Drop Down","Select from Drop Down","Select from Drop Down"]
[547,null,null,"Select from Drop Down","Select from Drop Down","Select from Drop Down",null,null,null,null,null,null,null,null,null,null,null,null,"Select from Drop Down","Select from Drop Down","Select from Drop Down"]
[548,null,null,"Select from Drop Down","Select from Drop Down","Select from Drop Down",null,null,null,null,null,null,null,null,null,null,null,null,"Select from Drop Down","Select from Drop Down","Select from Drop Down"]
[549,null,null,"Select from Drop Down","Select from Drop Down","Select from Drop Down",null,null,null,null,null,null,null,null,null,null,null,null,"Select from Drop Down","Select from Drop Down","Select from Drop Down"]
[550,null,null,"Select from Drop Down","Select from Drop Down","Select from Drop Down",null,null,null,null,null,null,null,null,null,null,null,null,"Select from Drop Down","Select from Drop Down","Select from Drop Down"]
[551,null,null,"Select from Drop Down","Select from Drop Down","Select from Drop Down",null,null,null,null,null,null,null,null,null,null,null,null,"Select from Drop Down","Select from Drop Down","Select from Drop Down"]
[552,null,null,"Select from Drop Down","Select from Drop Down","Select from Drop Down",null,null,null,null,null,null,null,null,null,null,null,null,"Select from Drop Down","Select from Drop Down","Select from Drop Down"]
[553,null,null,"Select from Drop Down","Select from Drop Down","Select from Drop Down",null,null,null,null,null,null,null,null,null,null,null,null,"Select from Drop Down","Select from Drop Down","Select from Drop Down"]
[554,null,null,"Select from Drop Down","Select from Drop Down","Select from Drop Down",null,null,null,null,null,null,null,null,null,null,null,null,"Select from Drop Down","Select from Drop Down","Select from Drop Down"]
[555,null,null,"Select from Drop Down","Select from Drop Down","Select from Drop Down",null,null,null,null,null,null,null,null,null,null,null,null,"Select from Drop Down","Select from Drop Down","Select from Drop Down"]
[556,null,null,"Select from Drop Down","Select from Drop Down","Select from Drop Down",null,null,null,null,null,null,null,null,null,null,null,null,"Select from Drop Down","Select from Drop Down","Select from Drop Down"]
[557,null,null,"Select from Drop Down","Select from Drop Down","Select from Drop Down",null,null,null,null,null,null,null,null,null,null,null,null,"Select from Drop Down","Select from Drop Down","Select from Drop Down"]
[558,null,null,"Select from Drop Down","Select from Drop Down","Select from Drop Down",null,null,null,null,null,null,null,null,null,null,null,null,"Select from Drop Down","Select from Drop Down","Select from Drop Down"]
[559,null,null,"Select from Drop Down","Select from Drop Down","Select from Drop Down",null,null,null,null,null,null,null,null,null,null,null,null,"Select from Drop Down","Select from Drop Down","Select from Drop Down"]
[560,null,null,"Select from Drop Down","Select from Drop Down","Select from Drop Down",null,null,null,null,null,null,null,null,null,null,null,null,"Select from Drop Down","Select from Drop Down","Select from Drop Down"]
[561,null,null,"Select from Drop Down","Select from Drop Down","Select from Drop Down",null,null,null,null,null,null,null,null,null,null,null,null,"Select from Drop Down","Select from Drop Down","Select from Drop Down"]
[562,null,null,"Select from Drop Down","Select from Drop Down","Select from Drop Down",null,null,null,null,null,null,null,null,null,null,null,null,"Select from Drop Down","Select from Drop Down","Select from Drop Down"]
[563,null,null,"Select from Drop Down","Select from Drop Down","Select from Drop Down",null,null,null,null,null,null,null,null,null,null,null,null,"Select from Drop Down","Select from Drop Down","Select from Drop Down"]
[564,null,null,"Select from Drop Down","Select from Drop Down","Select from Drop Down",null,null,null,null,null,null,null,null,null,null,null,null,"Select from Drop Down","Select from Drop Down","Select from Drop Down"]
[565,null,null,"Select from Drop Down","Select from Drop Down","Select from Drop Down",null,null,null,null,null,null,null,null,null,null,null,null,"Select from Drop Down","Select from Drop Down","Select from Drop Down"]
[566,null,null,"Select from Drop Down","Select from Drop Down","Select from Drop Down",null,null,null,null,null,null,null,null,null,null,null,null,"Select from Drop Down","Select from Drop Down","Select from Drop Down"]
[567,null,null,"Select from Drop Down","Select from Drop Down","Select from Drop Down",null,null,null,null,null,null,null,null,null,null,null,null,"Select from Drop Down","Select from Drop Down","Select from Drop Down"]
[568,null,null,"Select from Drop Down","Select from Drop Down","Select from Drop Down",null,null,null,null,null,null,null,null,null,null,null,null,"Select from Drop Down","Select from Drop Down","Select from Drop Down"]
[569,null,null,"Select from Drop Down","Select from Drop Down","Select from Drop Down",null,null,null,null,null,null,null,null,null,null,null,null,"Select from Drop Down","Select from Drop Down","Select from Drop Down"]
[570,null,null,"Select from Drop Down","Select from Drop Down","Select from Drop Down",null,null,null,null,null,null,null,null,null,null,null,null,"Select from Drop Down","Select from Drop Down","Select from Drop Down"]
[571,null,null,"Select from Drop Down","Select from Drop Down","Select from Drop Down",null,null,null,null,null,null,null,null,null,null,null,null,"Select from Drop Down","Select from Drop Down","Select from Drop Down"]
[572,null,null,"Select from Drop Down","Select from Drop Down","Select from Drop Down",null,null,null,null,null,null,null,null,null,null,null,null,"Select from Drop Down","Select from Drop Down","Select from Drop Down"]
[573,null,null,"Select from Drop Down","Select from Drop Down","Select from Drop Down",null,null,null,null,null,null,null,null,null,null,null,null,"Select from Drop Down","Select from Drop Down","Select from Drop Down"]
[574,null,null,"Select from Drop Down","Select from Drop Down","Select from Drop Down",null,null,null,null,null,null,null,null,null,null,null,null,"Select from Drop Down","Select from Drop Down","Select from Drop Down"]
[575,null,null,"Select from Drop Down","Select from Drop Down","Select from Drop Down",null,null,null,null,null,null,null,null,null,null,null,null,"Select from Drop Down","Select from Drop Down","Select from Drop Down"]
[576,null,null,"Select from Drop Down","Select from Drop Down","Select from Drop Down",null,null,null,null,null,null,null,null,null,null,null,null,"Select from Drop Down","Select from Drop Down","Select from Drop Down"]
[577,null,null,"Select from Drop Down","Select from Drop Down","Select from Drop Down",null,null,null,null,null,null,null,null,null,null,null,null,"Select from Drop Down","Select from Drop Down","Select from Drop Down"]
[578,null,null,"Select from Drop Down","Select from Drop Down","Select from Drop Down",null,null,null,null,null,null,null,null,null,null,null,null,"Select from Drop Down","Select from Drop Down","Select from Drop Down"]
[{"$f":"A588+1","v":579},null,null,"Select from Drop Down","Select from Drop Down","Select from Drop Down",null,null,null,null,null,null,null,null,null,null,null,null,"Select from Drop Down","Select from Drop Down","Select from Drop Down"]
[580,null,null,"Select from Drop Down","Select from Drop Down","Select from Drop Down",null,null,null,null,null,null,null,null,null,null,null,null,"Select from Drop Down","Select from Drop Down","Select from Drop Down"]
[581,null,null,"Select from Drop Down","Select from Drop Down","Select from Drop Down",null,null,null,null,null,null,null,null,null,null,null,null,"Select from Drop Down","Select from Drop Down","Select from Drop Down"]
[582,null,null,"Select from Drop Down","Select from Drop Down","Select from Drop Down",null,null,null,null,null,null,null,null,null,null,null,null,"Select from Drop Down","Select from Drop Down","Select from Drop Down"]
[583,null,null,"Select from Drop Down","Select from Drop Down","Select from Drop Down",null,null,null,null,null,null,null,null,null,null,null,null,"Select from Drop Down","Select from Drop Down","Select from Drop Down"]
[584,null,null,"Select from Drop Down","Select from Drop Down","Select from Drop Down",null,null,null,null,null,null,null,null,null,null,null,null,"Select from Drop Down","Select from Drop Down","Select from Drop Down"]
[585,null,null,"Select from Drop Down","Select from Drop Down","Select from Drop Down",null,null,null,null,null,null,null,null,null,null,null,null,"Select from Drop Down","Select from Drop Down","Select from Drop Down"]
[586,null,null,"Select from Drop Down","Select from Drop Down","Select from Drop Down",null,null,null,null,null,null,null,null,null,null,null,null,"Select from Drop Down","Select from Drop Down","Select from Drop Down"]
[587,null,null,"Select from Drop Down","Select from Drop Down","Select from Drop Down",null,null,null,null,null,null,null,null,null,null,null,null,"Select from Drop Down","Select from Drop Down","Select from Drop Down"]
[588,null,null,"Select from Drop Down","Select from Drop Down","Select from Drop Down",null,null,null,null,null,null,null,null,null,null,null,null,"Select from Drop Down","Select from Drop Down","Select from Drop Down"]
[589,null,null,"Select from Drop Down","Select from Drop Down","Select from Drop Down",null,null,null,null,null,null,null,null,null,null,null,null,"Select from Drop Down","Select from Drop Down","Select from Drop Down"]
[590,null,null,"Select from Drop Down","Select from Drop Down","Select from Drop Down",null,null,null,null,null,null,null,null,null,null,null,null,"Select from Drop Down","Select from Drop Down","Select from Drop Down"]
[591,null,null,"Select from Drop Down","Select from Drop Down","Select from Drop Down",null,null,null,null,null,null,null,null,null,null,null,null,"Select from Drop Down","Select from Drop Down","Select from Drop Down"]
[592,null,null,"Select from Drop Down","Select from Drop Down","Select from Drop Down",null,null,null,null,null,null,null,null,null,null,null,null,"Select from Drop Down","Select from Drop Down","Select from Drop Down"]
[593,null,null,"Select from Drop Down","Select from Drop Down","Select from Drop Down",null,null,null,null,null,null,null,null,null,null,null,null,"Select from Drop Down","Select from Drop Down","Select from Drop Down"]
[594,null,null,"Select from Drop Down","Select from Drop Down","Select from Drop Down",null,null,null,null,null,null,null,null,null,null,null,null,"Select from Drop Down","Select from Drop Down","Select from Drop Down"]
[595,null,null,"Select from Drop Down","Select from Drop Down","Select from Drop Down",null,null,null,null,null,null,null,null,null,null,null,null,"Select from Drop Down","Select from Drop Down","Select from Drop Down"]
[596,null,null,"Select from Drop Down","Select from Drop Down","Select from Drop Down",null,null,null,null,null,null,null,null,null,null,null,null,"Select from Drop Down","Select from Drop Down","Select from Drop Down"]
[597,null,null,"Select from Drop Down","Select from Drop Down","Select from Drop Down",null,null,null,null,null,null,null,null,null,null,null,null,"Select from Drop Down","Select from Drop Down","Select from Drop Down"]
[598,null,null,"Select from Drop Down","Select from Drop Down","Select from Drop Down",null,null,null,null,null,null,null,null,null,null,null,null,"Select from Drop Down","Select from Drop Down","Select from Drop Down"]
[599,null,null,"Select from Drop Down","Select from Drop Down","Select from Drop Down",null,null,null,null,null,null,null,null,null,null,null,null,"Select from Drop Down","Select from Drop Down","Select from Drop Down"]
[600,null,null,"Select from Drop Down","Select from Drop Down","Select from Drop Down",null,null,null,null,null,null,null,null,null,null,null,null,"Select from Drop Down","Select from Drop Down","Select from Drop Down"]
[601,null,null,"Select from Drop Down","Select from Drop Down","Select from Drop Down",null,null,null,null,null,null,null,null,null,null,null,null,"Select from Drop Down","Select from Drop Down","Select from Drop Down"]
[602,null,null,"Select from Drop Down","Select from Drop Down","Select from Drop Down",null,null,null,null,null,null,null,null,null,null,null,null,"Select from Drop Down","Select from Drop Down","Select from Drop Down"]
[603,null,null,"Select from Drop Down","Select from Drop Down","Select from Drop Down",null,null,null,null,null,null,null,null,null,null,null,null,"Select from Drop Down","Select from Drop Down","Select from Drop Down"]
[604,null,null,"Select from Drop Down","Select from Drop Down","Select from Drop Down",null,null,null,null,null,null,null,null,null,null,null,null,"Select from Drop Down","Select from Drop Down","Select from Drop Down"]
[605,null,null,"Select from Drop Down","Select from Drop Down","Select from Drop Down",null,null,null,null,null,null,null,null,null,null,null,null,"Select from Drop Down","Select from Drop Down","Select from Drop Down"]
[606,null,null,"Select from Drop Down","Select from Drop Down","Select from Drop Down",null,null,null,null,null,null,null,null,null,null,null,null,"Select from Drop Down","Select from Drop Down","Select from Drop Down"]
[607,null,null,"Select from Drop Down","Select from Drop Down","Select from Drop Down",null,null,null,null,null,null,null,null,null,null,null,null,"Select from Drop Down","Select from Drop Down","Select from Drop Down"]
[608,null,null,"Select from Drop Down","Select from Drop Down","Select from Drop Down",null,null,null,null,null,null,null,null,null,null,null,null,"Select from Drop Down","Select from Drop Down","Select from Drop Down"]
[609,null,null,"Select from Drop Down","Select from Drop Down","Select from Drop Down",null,null,null,null,null,null,null,null,null,null,null,null,"Select from Drop Down","Select from Drop Down","Select from Drop Down"]
[610,null,null,"Select from Drop Down","Select from Drop Down","Select from Drop Down",null,null,null,null,null,null,null,null,null,null,null,null,"Select from Drop Down","Select from Drop Down","Select from Drop Down"]
[611,null,null,"Select from Drop Down","Select from Drop Down","Select from Drop Down",null,null,null,null,null,null,null,null,null,null,null,null,"Select from Drop Down","Select from Drop Down","Select from Drop Down"]
[612,null,null,"Select from Drop Down","Select from Drop Down","Select from Drop Down",null,null,null,null,null,null,null,null,null,null,null,null,"Select from Drop Down","Select from Drop Down","Select from Drop Down"]
[613,null,null,"Select from Drop Down","Select from Drop Down","Select from Drop Down",null,null,null,null,null,null,null,null,null,null,null,null,"Select from Drop Down","Select from Drop Down","Select from Drop Down"]
[614,null,null,"Select from Drop Down","Select from Drop Down","Select from Drop Down",null,null,null,null,null,null,null,null,null,null,null,null,"Select from Drop Down","Select from Drop Down","Select from Drop Down"]
[615,null,null,"Select from Drop Down","Select from Drop Down","Select from Drop Down",null,null,null,null,null,null,null,null,null,null,null,null,"Select from Drop Down","Select from Drop Down","Select from Drop Down"]
[616,null,null,"Select from Drop Down","Select from Drop Down","Select from Drop Down",null,null,null,null,null,null,null,null,null,null,null,null,"Select from Drop Down","Select from Drop Down","Select from Drop Down"]
[617,null,null,"Select from Drop Down","Select from Drop Down","Select from Drop Down",null,null,null,null,null,null,null,null,null,null,null,null,"Select from Drop Down","Select from Drop Down","Select from Drop Down"]
[618,null,null,"Select from Drop Down","Select from Drop Down","Select from Drop Down",null,null,null,null,null,null,null,null,null,null,null,null,"Select from Drop Down","Select from Drop Down","Select from Drop Down"]
[619,null,null,"Select from Drop Down","Select from Drop Down","Select from Drop Down",null,null,null,null,null,null,null,null,null,null,null,null,"Select from Drop Down","Select from Drop Down","Select from Drop Down"]
[620,null,null,"Select from Drop Down","Select from Drop Down","Select from Drop Down",null,null,null,null,null,null,null,null,null,null,null,null,"Select from Drop Down","Select from Drop Down","Select from Drop Down"]
[621,null,null,"Select from Drop Down","Select from Drop Down","Select from Drop Down",null,null,null,null,null,null,null,null,null,null,null,null,"Select from Drop Down","Select from Drop Down","Select from Drop Down"]
[622,null,null,"Select from Drop Down","Select from Drop Down","Select from Drop Down",null,null,null,null,null,null,null,null,null,null,null,null,"Select from Drop Down","Select from Drop Down","Select from Drop Down"]
[623,null,null,"Select from Drop Down","Select from Drop Down","Select from Drop Down",null,null,null,null,null,null,null,null,null,null,null,null,"Select from Drop Down","Select from Drop Down","Select from Drop Down"]
[624,null,null,"Select from Drop Down","Select from Drop Down","Select from Drop Down",null,null,null,null,null,null,null,null,null,null,null,null,"Select from Drop Down","Select from Drop Down","Select from Drop Down"]
[625,null,null,"Select from Drop Down","Select from Drop Down","Select from Drop Down",null,null,null,null,null,null,null,null,null,null,null,null,"Select from Drop Down","Select from Drop Down","Select from Drop Down"]
[626,null,null,"Select from Drop Down","Select from Drop Down","Select from Drop Down",null,null,null,null,null,null,null,null,null,null,null,null,"Select from Drop Down","Select from Drop Down","Select from Drop Down"]
[627,null,null,"Select from Drop Down","Select from Drop Down","Select from Drop Down",null,null,null,null,null,null,null,null,null,null,null,null,"Select from Drop Down","Select from Drop Down","Select from Drop Down"]
[628,null,null,"Select from Drop Down","Select from Drop Down","Select from Drop Down",null,null,null,null,null,null,null,null,null,null,null,null,"Select from Drop Down","Select from Drop Down","Select from Drop Down"]
[629,null,null,"Select from Drop Down","Select from Drop Down","Select from Drop Down",null,null,null,null,null,null,null,null,null,null,null,null,"Select from Drop Down","Select from Drop Down","Select from Drop Down"]
[630,null,null,"Select from Drop Down","Select from Drop Down","Select from Drop Down",null,null,null,null,null,null,null,null,null,null,null,null,"Select from Drop Down","Select from Drop Down","Select from Drop Down"]
[631,null,null,"Select from Drop Down","Select from Drop Down","Select from Drop Down",null,null,null,null,null,null,null,null,null,null,null,null,"Select from Drop Down","Select from Drop Down","Select from Drop Down"]
[632,null,null,"Select from Drop Down","Select from Drop Down","Select from Drop Down",null,null,null,null,null,null,null,null,null,null,null,null,"Select from Drop Down","Select from Drop Down","Select from Drop Down"]
[633,null,null,"Select from Drop Down","Select from Drop Down","Select from Drop Down",null,null,null,null,null,null,null,null,null,null,null,null,"Select from Drop Down","Select from Drop Down","Select from Drop Down"]
[634,null,null,"Select from Drop Down","Select from Drop Down","Select from Drop Down",null,null,null,null,null,null,null,null,null,null,null,null,"Select from Drop Down","Select from Drop Down","Select from Drop Down"]
[635,null,null,"Select from Drop Down","Select from Drop Down","Select from Drop Down",null,null,null,null,null,null,null,null,null,null,null,null,"Select from Drop Down","Select from Drop Down","Select from Drop Down"]
[636,null,null,"Select from Drop Down","Select from Drop Down","Select from Drop Down",null,null,null,null,null,null,null,null,null,null,null,null,"Select from Drop Down","Select from Drop Down","Select from Drop Down"]
[637,null,null,"Select from Drop Down","Select from Drop Down","Select from Drop Down",null,null,null,null,null,null,null,null,null,null,null,null,"Select from Drop Down","Select from Drop Down","Select from Drop Down"]
[638,null,null,"Select from Drop Down","Select from Drop Down","Select from Drop Down",null,null,null,null,null,null,null,null,null,null,null,null,"Select from Drop Down","Select from Drop Down","Select from Drop Down"]
[639,null,null,"Select from Drop Down","Select from Drop Down","Select from Drop Down",null,null,null,null,null,null,null,null,null,null,null,null,"Select from Drop Down","Select from Drop Down","Select from Drop Down"]
[640,null,null,"Select from Drop Down","Select from Drop Down","Select from Drop Down",null,null,null,null,null,null,null,null,null,null,null,null,"Select from Drop Down","Select from Drop Down","Select from Drop Down"]
[641,null,null,"Select from Drop Down","Select from Drop Down","Select from Drop Down",null,null,null,null,null,null,null,null,null,null,null,null,"Select from Drop Down","Select from Drop Down","Select from Drop Down"]
[642,null,null,"Select from Drop Down","Select from Drop Down","Select from Drop Down",null,null,null,null,null,null,null,null,null,null,null,null,"Select from Drop Down","Select from Drop Down","Select from Drop Down"]
[{"$f":"A652+1","v":643},null,null,"Select from Drop Down","Select from Drop Down","Select from Drop Down",null,null,null,null,null,null,null,null,null,null,null,null,"Select from Drop Down","Select from Drop Down","Select from Drop Down"]
[644,null,null,"Select from Drop Down","Select from Drop Down","Select from Drop Down",null,null,null,null,null,null,null,null,null,null,null,null,"Select from Drop Down","Select from Drop Down","Select from Drop Down"]
[645,null,null,"Select from Drop Down","Select from Drop Down","Select from Drop Down",null,null,null,null,null,null,null,null,null,null,null,null,"Select from Drop Down","Select from Drop Down","Select from Drop Down"]
[646,null,null,"Select from Drop Down","Select from Drop Down","Select from Drop Down",null,null,null,null,null,null,null,null,null,null,null,null,"Select from Drop Down","Select from Drop Down","Select from Drop Down"]
[647,null,null,"Select from Drop Down","Select from Drop Down","Select from Drop Down",null,null,null,null,null,null,null,null,null,null,null,null,"Select from Drop Down","Select from Drop Down","Select from Drop Down"]
[648,null,null,"Select from Drop Down","Select from Drop Down","Select from Drop Down",null,null,null,null,null,null,null,null,null,null,null,null,"Select from Drop Down","Select from Drop Down","Select from Drop Down"]
[649,null,null,"Select from Drop Down","Select from Drop Down","Select from Drop Down",null,null,null,null,null,null,null,null,null,null,null,null,"Select from Drop Down","Select from Drop Down","Select from Drop Down"]
[650,null,null,"Select from Drop Down","Select from Drop Down","Select from Drop Down",null,null,null,null,null,null,null,null,null,null,null,null,"Select from Drop Down","Select from Drop Down","Select from Drop Down"]
[651,null,null,"Select from Drop Down","Select from Drop Down","Select from Drop Down",null,null,null,null,null,null,null,null,null,null,null,null,"Select from Drop Down","Select from Drop Down","Select from Drop Down"]
[652,null,null,"Select from Drop Down","Select from Drop Down","Select from Drop Down",null,null,null,null,null,null,null,null,null,null,null,null,"Select from Drop Down","Select from Drop Down","Select from Drop Down"]
[653,null,null,"Select from Drop Down","Select from Drop Down","Select from Drop Down",null,null,null,null,null,null,null,null,null,null,null,null,"Select from Drop Down","Select from Drop Down","Select from Drop Down"]
[654,null,null,"Select from Drop Down","Select from Drop Down","Select from Drop Down",null,null,null,null,null,null,null,null,null,null,null,null,"Select from Drop Down","Select from Drop Down","Select from Drop Down"]
[655,null,null,"Select from Drop Down","Select from Drop Down","Select from Drop Down",null,null,null,null,null,null,null,null,null,null,null,null,"Select from Drop Down","Select from Drop Down","Select from Drop Down"]
[656,null,null,"Select from Drop Down","Select from Drop Down","Select from Drop Down",null,null,null,null,null,null,null,null,null,null,null,null,"Select from Drop Down","Select from Drop Down","Select from Drop Down"]
[657,null,null,"Select from Drop Down","Select from Drop Down","Select from Drop Down",null,null,null,null,null,null,null,null,null,null,null,null,"Select from Drop Down","Select from Drop Down","Select from Drop Down"]
[658,null,null,"Select from Drop Down","Select from Drop Down","Select from Drop Down",null,null,null,null,null,null,null,null,null,null,null,null,"Select from Drop Down","Select from Drop Down","Select from Drop Down"]
[659,null,null,"Select from Drop Down","Select from Drop Down","Select from Drop Down",null,null,null,null,null,null,null,null,null,null,null,null,"Select from Drop Down","Select from Drop Down","Select from Drop Down"]
[660,null,null,"Select from Drop Down","Select from Drop Down","Select from Drop Down",null,null,null,null,null,null,null,null,null,null,null,null,"Select from Drop Down","Select from Drop Down","Select from Drop Down"]
[661,null,null,"Select from Drop Down","Select from Drop Down","Select from Drop Down",null,null,null,null,null,null,null,null,null,null,null,null,"Select from Drop Down","Select from Drop Down","Select from Drop Down"]
[662,null,null,"Select from Drop Down","Select from Drop Down","Select from Drop Down",null,null,null,null,null,null,null,null,null,null,null,null,"Select from Drop Down","Select from Drop Down","Select from Drop Down"]
[663,null,null,"Select from Drop Down","Select from Drop Down","Select from Drop Down",null,null,null,null,null,null,null,null,null,null,null,null,"Select from Drop Down","Select from Drop Down","Select from Drop Down"]
[664,null,null,"Select from Drop Down","Select from Drop Down","Select from Drop Down",null,null,null,null,null,null,null,null,null,null,null,null,"Select from Drop Down","Select from Drop Down","Select from Drop Down"]
[665,null,null,"Select from Drop Down","Select from Drop Down","Select from Drop Down",null,null,null,null,null,null,null,null,null,null,null,null,"Select from Drop Down","Select from Drop Down","Select from Drop Down"]
[666,null,null,"Select from Drop Down","Select from Drop Down","Select from Drop Down",null,null,null,null,null,null,null,null,null,null,null,null,"Select from Drop Down","Select from Drop Down","Select from Drop Down"]
[667,null,null,"Select from Drop Down","Select from Drop Down","Select from Drop Down",null,null,null,null,null,null,null,null,null,null,null,null,"Select from Drop Down","Select from Drop Down","Select from Drop Down"]
[668,null,null,"Select from Drop Down","Select from Drop Down","Select from Drop Down",null,null,null,null,null,null,null,null,null,null,null,null,"Select from Drop Down","Select from Drop Down","Select from Drop Down"]
[669,null,null,"Select from Drop Down","Select from Drop Down","Select from Drop Down",null,null,null,null,null,null,null,null,null,null,null,null,"Select from Drop Down","Select from Drop Down","Select from Drop Down"]
[670,null,null,"Select from Drop Down","Select from Drop Down","Select from Drop Down",null,null,null,null,null,null,null,null,null,null,null,null,"Select from Drop Down","Select from Drop Down","Select from Drop Down"]
[671,null,null,"Select from Drop Down","Select from Drop Down","Select from Drop Down",null,null,null,null,null,null,null,null,null,null,null,null,"Select from Drop Down","Select from Drop Down","Select from Drop Down"]
[672,null,null,"Select from Drop Down","Select from Drop Down","Select from Drop Down",null,null,null,null,null,null,null,null,null,null,null,null,"Select from Drop Down","Select from Drop Down","Select from Drop Down"]
[673,null,null,"Select from Drop Down","Select from Drop Down","Select from Drop Down",null,null,null,null,null,null,null,null,null,null,null,null,"Select from Drop Down","Select from Drop Down","Select from Drop Down"]
[674,null,null,"Select from Drop Down","Select from Drop Down","Select from Drop Down",null,null,null,null,null,null,null,null,null,null,null,null,"Select from Drop Down","Select from Drop Down","Select from Drop Down"]
[675,null,null,"Select from Drop Down","Select from Drop Down","Select from Drop Down",null,null,null,null,null,null,null,null,null,null,null,null,"Select from Drop Down","Select from Drop Down","Select from Drop Down"]
[676,null,null,"Select from Drop Down","Select from Drop Down","Select from Drop Down",null,null,null,null,null,null,null,null,null,null,null,null,"Select from Drop Down","Select from Drop Down","Select from Drop Down"]
[677,null,null,"Select from Drop Down","Select from Drop Down","Select from Drop Down",null,null,null,null,null,null,null,null,null,null,null,null,"Select from Drop Down","Select from Drop Down","Select from Drop Down"]
[678,null,null,"Select from Drop Down","Select from Drop Down","Select from Drop Down",null,null,null,null,null,null,null,null,null,null,null,null,"Select from Drop Down","Select from Drop Down","Select from Drop Down"]
[679,null,null,"Select from Drop Down","Select from Drop Down","Select from Drop Down",null,null,null,null,null,null,null,null,null,null,null,null,"Select from Drop Down","Select from Drop Down","Select from Drop Down"]
[680,null,null,"Select from Drop Down","Select from Drop Down","Select from Drop Down",null,null,null,null,null,null,null,null,null,null,null,null,"Select from Drop Down","Select from Drop Down","Select from Drop Down"]
[681,null,null,"Select from Drop Down","Select from Drop Down","Select from Drop Down",null,null,null,null,null,null,null,null,null,null,null,null,"Select from Drop Down","Select from Drop Down","Select from Drop Down"]
[682,null,null,"Select from Drop Down","Select from Drop Down","Select from Drop Down",null,null,null,null,null,null,null,null,null,null,null,null,"Select from Drop Down","Select from Drop Down","Select from Drop Down"]
[683,null,null,"Select from Drop Down","Select from Drop Down","Select from Drop Down",null,null,null,null,null,null,null,null,null,null,null,null,"Select from Drop Down","Select from Drop Down","Select from Drop Down"]
[684,null,null,"Select from Drop Down","Select from Drop Down","Select from Drop Down",null,null,null,null,null,null,null,null,null,null,null,null,"Select from Drop Down","Select from Drop Down","Select from Drop Down"]
[685,null,null,"Select from Drop Down","Select from Drop Down","Select from Drop Down",null,null,null,null,null,null,null,null,null,null,null,null,"Select from Drop Down","Select from Drop Down","Select from Drop Down"]
[686,null,null,"Select from Drop Down","Select from Drop Down","Select from Drop Down",null,null,null,null,null,null,null,null,null,null,null,null,"Select from Drop Down","Select from Drop Down","Select from Drop Down"]
[687,null,null,"Select from Drop Down","Select from Drop Down","Select from Drop Down",null,null,null,null,null,null,null,null,null,null,null,null,"Select from Drop Down","Select from Drop Down","Select from Drop Down"]
[688,null,null,"Select from Drop Down","Select from Drop Down","Select from Drop Down",null,null,null,null,null,null,null,null,null,null,null,null,"Select from Drop Down","Select from Drop Down","Select from Drop Down"]
[689,null,null,"Select from Drop Down","Select from Drop Down","Select from Drop Down",null,null,null,null,null,null,null,null,null,null,null,null,"Select from Drop Down","Select from Drop Down","Select from Drop Down"]
[690,null,null,"Select from Drop Down","Select from Drop Down","Select from Drop Down",null,null,null,null,null,null,null,null,null,null,null,null,"Select from Drop Down","Select from Drop Down","Select from Drop Down"]
[691,null,null,"Select from Drop Down","Select from Drop Down","Select from Drop Down",null,null,null,null,null,null,null,null,null,null,null,null,"Select from Drop Down","Select from Drop Down","Select from Drop Down"]
[692,null,null,"Select from Drop Down","Select from Drop Down","Select from Drop Down",null,null,null,null,null,null,null,null,null,null,null,null,"Select from Drop Down","Select from Drop Down","Select from Drop Down"]
[693,null,null,"Select from Drop Down","Select from Drop Down","Select from Drop Down",null,null,null,null,null,null,null,null,null,null,null,null,"Select from Drop Down","Select from Drop Down","Select from Drop Down"]
[694,null,null,"Select from Drop Down","Select from Drop Down","Select from Drop Down",null,null,null,null,null,null,null,null,null,null,null,null,"Select from Drop Down","Select from Drop Down","Select from Drop Down"]
[695,null,null,"Select from Drop Down","Select from Drop Down","Select from Drop Down",null,null,null,null,null,null,null,null,null,null,null,null,"Select from Drop Down","Select from Drop Down","Select from Drop Down"]
[696,null,null,"Select from Drop Down","Select from Drop Down","Select from Drop Down",null,null,null,null,null,null,null,null,null,null,null,null,"Select from Drop Down","Select from Drop Down","Select from Drop Down"]
[697,null,null,"Select from Drop Down","Select from Drop Down","Select from Drop Down",null,null,null,null,null,null,null,null,null,null,null,null,"Select from Drop Down","Select from Drop Down","Select from Drop Down"]
[698,null,null,"Select from Drop Down","Select from Drop Down","Select from Drop Down",null,null,null,null,null,null,null,null,null,null,null,null,"Select from Drop Down","Select from Drop Down","Select from Drop Down"]
[699,null,null,"Select from Drop Down","Select from Drop Down","Select from Drop Down",null,null,null,null,null,null,null,null,null,null,null,null,"Select from Drop Down","Select from Drop Down","Select from Drop Down"]
[700,null,null,"Select from Drop Down","Select from Drop Down","Select from Drop Down",null,null,null,null,null,null,null,null,null,null,null,null,"Select from Drop Down","Select from Drop Down","Select from Drop Down"]
[701,null,null,"Select from Drop Down","Select from Drop Down","Select from Drop Down",null,null,null,null,null,null,null,null,null,null,null,null,"Select from Drop Down","Select from Drop Down","Select from Drop Down"]
[702,null,null,"Select from Drop Down","Select from Drop Down","Select from Drop Down",null,null,null,null,null,null,null,null,null,null,null,null,"Select from Drop Down","Select from Drop Down","Select from Drop Down"]
[703,null,null,"Select from Drop Down","Select from Drop Down","Select from Drop Down",null,null,null,null,null,null,null,null,null,null,null,null,"Select from Drop Down","Select from Drop Down","Select from Drop Down"]
[704,null,null,"Select from Drop Down","Select from Drop Down","Select from Drop Down",null,null,null,null,null,null,null,null,null,null,null,null,"Select from Drop Down","Select from Drop Down","Select from Drop Down"]
[705,null,null,"Select from Drop Down","Select from Drop Down","Select from Drop Down",null,null,null,null,null,null,null,null,null,null,null,null,"Select from Drop Down","Select from Drop Down","Select from Drop Down"]
[706,null,null,"Select from Drop Down","Select from Drop Down","Select from Drop Down",null,null,null,null,null,null,null,null,null,null,null,null,"Select from Drop Down","Select from Drop Down","Select from Drop Down"]
[{"$f":"A716+1","v":707},null,null,"Select from Drop Down","Select from Drop Down","Select from Drop Down",null,null,null,null,null,null,null,null,null,null,null,null,"Select from Drop Down","Select from Drop Down","Select from Drop Down"]
[708,null,null,"Select from Drop Down","Select from Drop Down","Select from Drop Down",null,null,null,null,null,null,null,null,null,null,null,null,"Select from Drop Down","Select from Drop Down","Select from Drop Down"]
[709,null,null,"Select from Drop Down","Select from Drop Down","Select from Drop Down",null,null,null,null,null,null,null,null,null,null,null,null,"Select from Drop Down","Select from Drop Down","Select from Drop Down"]
[710,null,null,"Select from Drop Down","Select from Drop Down","Select from Drop Down",null,null,null,null,null,null,null,null,null,null,null,null,"Select from Drop Down","Select from Drop Down","Select from Drop Down"]
[711,null,null,"Select from Drop Down","Select from Drop Down","Select from Drop Down",null,null,null,null,null,null,null,null,null,null,null,null,"Select from Drop Down","Select from Drop Down","Select from Drop Down"]
[712,null,null,"Select from Drop Down","Select from Drop Down","Select from Drop Down",null,null,null,null,null,null,null,null,null,null,null,null,"Select from Drop Down","Select from Drop Down","Select from Drop Down"]
[713,null,null,"Select from Drop Down","Select from Drop Down","Select from Drop Down",null,null,null,null,null,null,null,null,null,null,null,null,"Select from Drop Down","Select from Drop Down","Select from Drop Down"]
[714,null,null,"Select from Drop Down","Select from Drop Down","Select from Drop Down",null,null,null,null,null,null,null,null,null,null,null,null,"Select from Drop Down","Select from Drop Down","Select from Drop Down"]
[715,null,null,"Select from Drop Down","Select from Drop Down","Select from Drop Down",null,null,null,null,null,null,null,null,null,null,null,null,"Select from Drop Down","Select from Drop Down","Select from Drop Down"]
[716,null,null,"Select from Drop Down","Select from Drop Down","Select from Drop Down",null,null,null,null,null,null,null,null,null,null,null,null,"Select from Drop Down","Select from Drop Down","Select from Drop Down"]
[717,null,null,"Select from Drop Down","Select from Drop Down","Select from Drop Down",null,null,null,null,null,null,null,null,null,null,null,null,"Select from Drop Down","Select from Drop Down","Select from Drop Down"]
[718,null,null,"Select from Drop Down","Select from Drop Down","Select from Drop Down",null,null,null,null,null,null,null,null,null,null,null,null,"Select from Drop Down","Select from Drop Down","Select from Drop Down"]
[719,null,null,"Select from Drop Down","Select from Drop Down","Select from Drop Down",null,null,null,null,null,null,null,null,null,null,null,null,"Select from Drop Down","Select from Drop Down","Select from Drop Down"]
[720,null,null,"Select from Drop Down","Select from Drop Down","Select from Drop Down",null,null,null,null,null,null,null,null,null,null,null,null,"Select from Drop Down","Select from Drop Down","Select from Drop Down"]
[721,null,null,"Select from Drop Down","Select from Drop Down","Select from Drop Down",null,null,null,null,null,null,null,null,null,null,null,null,"Select from Drop Down","Select from Drop Down","Select from Drop Down"]
[722,null,null,"Select from Drop Down","Select from Drop Down","Select from Drop Down",null,null,null,null,null,null,null,null,null,null,null,null,"Select from Drop Down","Select from Drop Down","Select from Drop Down"]
[723,null,null,"Select from Drop Down","Select from Drop Down","Select from Drop Down",null,null,null,null,null,null,null,null,null,null,null,null,"Select from Drop Down","Select from Drop Down","Select from Drop Down"]
[724,null,null,"Select from Drop Down","Select from Drop Down","Select from Drop Down",null,null,null,null,null,null,null,null,null,null,null,null,"Select from Drop Down","Select from Drop Down","Select from Drop Down"]
[725,null,null,"Select from Drop Down","Select from Drop Down","Select from Drop Down",null,null,null,null,null,null,null,null,null,null,null,null,"Select from Drop Down","Select from Drop Down","Select from Drop Down"]
[726,null,null,"Select from Drop Down","Select from Drop Down","Select from Drop Down",null,null,null,null,null,null,null,null,null,null,null,null,"Select from Drop Down","Select from Drop Down","Select from Drop Down"]
[727,null,null,"Select from Drop Down","Select from Drop Down","Select from Drop Down",null,null,null,null,null,null,null,null,null,null,null,null,"Select from Drop Down","Select from Drop Down","Select from Drop Down"]
[728,null,null,"Select from Drop Down","Select from Drop Down","Select from Drop Down",null,null,null,null,null,null,null,null,null,null,null,null,"Select from Drop Down","Select from Drop Down","Select from Drop Down"]
[729,null,null,"Select from Drop Down","Select from Drop Down","Select from Drop Down",null,null,null,null,null,null,null,null,null,null,null,null,"Select from Drop Down","Select from Drop Down","Select from Drop Down"]
[730,null,null,"Select from Drop Down","Select from Drop Down","Select from Drop Down",null,null,null,null,null,null,null,null,null,null,null,null,"Select from Drop Down","Select from Drop Down","Select from Drop Down"]
[731,null,null,"Select from Drop Down","Select from Drop Down","Select from Drop Down",null,null,null,null,null,null,null,null,null,null,null,null,"Select from Drop Down","Select from Drop Down","Select from Drop Down"]
[732,null,null,"Select from Drop Down","Select from Drop Down","Select from Drop Down",null,null,null,null,null,null,null,null,null,null,null,null,"Select from Drop Down","Select from Drop Down","Select from Drop Down"]
[733,null,null,"Select from Drop Down","Select from Drop Down","Select from Drop Down",null,null,null,null,null,null,null,null,null,null,null,null,"Select from Drop Down","Select from Drop Down","Select from Drop Down"]
[734,null,null,"Select from Drop Down","Select from Drop Down","Select from Drop Down",null,null,null,null,null,null,null,null,null,null,null,null,"Select from Drop Down","Select from Drop Down","Select from Drop Down"]
[735,null,null,"Select from Drop Down","Select from Drop Down","Select from Drop Down",null,null,null,null,null,null,null,null,null,null,null,null,"Select from Drop Down","Select from Drop Down","Select from Drop Down"]
[736,null,null,"Select from Drop Down","Select from Drop Down","Select from Drop Down",null,null,null,null,null,null,null,null,null,null,null,null,"Select from Drop Down","Select from Drop Down","Select from Drop Down"]
[737,null,null,"Select from Drop Down","Select from Drop Down","Select from Drop Down",null,null,null,null,null,null,null,null,null,null,null,null,"Select from Drop Down","Select from Drop Down","Select from Drop Down"]
[738,null,null,"Select from Drop Down","Select from Drop Down","Select from Drop Down",null,null,null,null,null,null,null,null,null,null,null,null,"Select from Drop Down","Select from Drop Down","Select from Drop Down"]
[739,null,null,"Select from Drop Down","Select from Drop Down","Select from Drop Down",null,null,null,null,null,null,null,null,null,null,null,null,"Select from Drop Down","Select from Drop Down","Select from Drop Down"]
[740,null,null,"Select from Drop Down","Select from Drop Down","Select from Drop Down",null,null,null,null,null,null,null,null,null,null,null,null,"Select from Drop Down","Select from Drop Down","Select from Drop Down"]
[741,null,null,"Select from Drop Down","Select from Drop Down","Select from Drop Down",null,null,null,null,null,null,null,null,null,null,null,null,"Select from Drop Down","Select from Drop Down","Select from Drop Down"]
[742,null,null,"Select from Drop Down","Select from Drop Down","Select from Drop Down",null,null,null,null,null,null,null,null,null,null,null,null,"Select from Drop Down","Select from Drop Down","Select from Drop Down"]
[743,null,null,"Select from Drop Down","Select from Drop Down","Select from Drop Down",null,null,null,null,null,null,null,null,null,null,null,null,"Select from Drop Down","Select from Drop Down","Select from Drop Down"]
[744,null,null,"Select from Drop Down","Select from Drop Down","Select from Drop Down",null,null,null,null,null,null,null,null,null,null,null,null,"Select from Drop Down","Select from Drop Down","Select from Drop Down"]
[745,null,null,"Select from Drop Down","Select from Drop Down","Select from Drop Down",null,null,null,null,null,null,null,null,null,null,null,null,"Select from Drop Down","Select from Drop Down","Select from Drop Down"]
[746,null,null,"Select from Drop Down","Select from Drop Down","Select from Drop Down",null,null,null,null,null,null,null,null,null,null,null,null,"Select from Drop Down","Select from Drop Down","Select from Drop Down"]
[747,null,null,"Select from Drop Down","Select from Drop Down","Select from Drop Down",null,null,null,null,null,null,null,null,null,null,null,null,"Select from Drop Down","Select from Drop Down","Select from Drop Down"]
[748,null,null,"Select from Drop Down","Select from Drop Down","Select from Drop Down",null,null,null,null,null,null,null,null,null,null,null,null,"Select from Drop Down","Select from Drop Down","Select from Drop Down"]
[749,null,null,"Select from Drop Down","Select from Drop Down","Select from Drop Down",null,null,null,null,null,null,null,null,null,null,null,null,"Select from Drop Down","Select from Drop Down","Select from Drop Down"]
[750,null,null,"Select from Drop Down","Select from Drop Down","Select from Drop Down",null,null,null,null,null,null,null,null,null,null,null,null,"Select from Drop Down","Select from Drop Down","Select from Drop Down"]
[751,null,null,"Select from Drop Down","Select from Drop Down","Select from Drop Down",null,null,null,null,null,null,null,null,null,null,null,null,"Select from Drop Down","Select from Drop Down","Select from Drop Down"]
[752,null,null,"Select from Drop Down","Select from Drop Down","Select from Drop Down",null,null,null,null,null,null,null,null,null,null,null,null,"Select from Drop Down","Select from Drop Down","Select from Drop Down"]
[753,null,null,"Select from Drop Down","Select from Drop Down","Select from Drop Down",null,null,null,null,null,null,null,null,null,null,null,null,"Select from Drop Down","Select from Drop Down","Select from Drop Down"]
[754,null,null,"Select from Drop Down","Select from Drop Down","Select from Drop Down",null,null,null,null,null,null,null,null,null,null,null,null,"Select from Drop Down","Select from Drop Down","Select from Drop Down"]
[755,null,null,"Select from Drop Down","Select from Drop Down","Select from Drop Down",null,null,null,null,null,null,null,null,null,null,null,null,"Select from Drop Down","Select from Drop Down","Select from Drop Down"]
[756,null,null,"Select from Drop Down","Select from Drop Down","Select from Drop Down",null,null,null,null,null,null,null,null,null,null,null,null,"Select from Drop Down","Select from Drop Down","Select from Drop Down"]
[757,null,null,"Select from Drop Down","Select from Drop Down","Select from Drop Down",null,null,null,null,null,null,null,null,null,null,null,null,"Select from Drop Down","Select from Drop Down","Select from Drop Down"]
[758,null,null,"Select from Drop Down","Select from Drop Down","Select from Drop Down",null,null,null,null,null,null,null,null,null,null,null,null,"Select from Drop Down","Select from Drop Down","Select from Drop Down"]
[759,null,null,"Select from Drop Down","Select from Drop Down","Select from Drop Down",null,null,null,null,null,null,null,null,null,null,null,null,"Select from Drop Down","Select from Drop Down","Select from Drop Down"]
[760,null,null,"Select from Drop Down","Select from Drop Down","Select from Drop Down",null,null,null,null,null,null,null,null,null,null,null,null,"Select from Drop Down","Select from Drop Down","Select from Drop Down"]
[761,null,null,"Select from Drop Down","Select from Drop Down","Select from Drop Down",null,null,null,null,null,null,null,null,null,null,null,null,"Select from Drop Down","Select from Drop Down","Select from Drop Down"]
[762,null,null,"Select from Drop Down","Select from Drop Down","Select from Drop Down",null,null,null,null,null,null,null,null,null,null,null,null,"Select from Drop Down","Select from Drop Down","Select from Drop Down"]
[763,null,null,"Select from Drop Down","Select from Drop Down","Select from Drop Down",null,null,null,null,null,null,null,null,null,null,null,null,"Select from Drop Down","Select from Drop Down","Select from Drop Down"]
[764,null,null,"Select from Drop Down","Select from Drop Down","Select from Drop Down",null,null,null,null,null,null,null,null,null,null,null,null,"Select from Drop Down","Select from Drop Down","Select from Drop Down"]
[765,null,null,"Select from Drop Down","Select from Drop Down","Select from Drop Down",null,null,null,null,null,null,null,null,null,null,null,null,"Select from Drop Down","Select from Drop Down","Select from Drop Down"]
[766,null,null,"Select from Drop Down","Select from Drop Down","Select from Drop Down",null,null,null,null,null,null,null,null,null,null,null,null,"Select from Drop Down","Select from Drop Down","Select from Drop Down"]
[767,null,null,"Select from Drop Down","Select from Drop Down","Select from Drop Down",null,null,null,null,null,null,null,null,null,null,null,null,"Select from Drop Down","Select from Drop Down","Select from Drop Down"]
[768,null,null,"Select from Drop Down","Select from Drop Down","Select from Drop Down",null,null,null,null,null,null,null,null,null,null,null,null,"Select from Drop Down","Select from Drop Down","Select from Drop Down"]
[769,null,null,"Select from Drop Down","Select from Drop Down","Select from Drop Down",null,null,null,null,null,null,null,null,null,null,null,null,"Select from Drop Down","Select from Drop Down","Select from Drop Down"]
[770,null,null,"Select from Drop Down","Select from Drop Down","Select from Drop Down",null,null,null,null,null,null,null,null,null,null,null,null,"Select from Drop Down","Select from Drop Down","Select from Drop Down"]
[{"$f":"A780+1","v":771},null,null,"Select from Drop Down","Select from Drop Down","Select from Drop Down",null,null,null,null,null,null,null,null,null,null,null,null,"Select from Drop Down","Select from Drop Down","Select from Drop Down"]
[772,null,null,"Select from Drop Down","Select from Drop Down","Select from Drop Down",null,null,null,null,null,null,null,null,null,null,null,null,"Select from Drop Down","Select from Drop Down","Select from Drop Down"]
[773,null,null,"Select from Drop Down","Select from Drop Down","Select from Drop Down",null,null,null,null,null,null,null,null,null,null,null,null,"Select from Drop Down","Select from Drop Down","Select from Drop Down"]
[774,null,null,"Select from Drop Down","Select from Drop Down","Select from Drop Down",null,null,null,null,null,null,null,null,null,null,null,null,"Select from Drop Down","Select from Drop Down","Select from Drop Down"]
[775,null,null,"Select from Drop Down","Select from Drop Down","Select from Drop Down",null,null,null,null,null,null,null,null,null,null,null,null,"Select from Drop Down","Select from Drop Down","Select from Drop Down"]
[776,null,null,"Select from Drop Down","Select from Drop Down","Select from Drop Down",null,null,null,null,null,null,null,null,null,null,null,null,"Select from Drop Down","Select from Drop Down","Select from Drop Down"]
[777,null,null,"Select from Drop Down","Select from Drop Down","Select from Drop Down",null,null,null,null,null,null,null,null,null,null,null,null,"Select from Drop Down","Select from Drop Down","Select from Drop Down"]
[778,null,null,"Select from Drop Down","Select from Drop Down","Select from Drop Down",null,null,null,null,null,null,null,null,null,null,null,null,"Select from Drop Down","Select from Drop Down","Select from Drop Down"]
[779,null,null,"Select from Drop Down","Select from Drop Down","Select from Drop Down",null,null,null,null,null,null,null,null,null,null,null,null,"Select from Drop Down","Select from Drop Down","Select from Drop Down"]
[780,null,null,"Select from Drop Down","Select from Drop Down","Select from Drop Down",null,null,null,null,null,null,null,null,null,null,null,null,"Select from Drop Down","Select from Drop Down","Select from Drop Down"]
[781,null,null,"Select from Drop Down","Select from Drop Down","Select from Drop Down",null,null,null,null,null,null,null,null,null,null,null,null,"Select from Drop Down","Select from Drop Down","Select from Drop Down"]
[782,null,null,"Select from Drop Down","Select from Drop Down","Select from Drop Down",null,null,null,null,null,null,null,null,null,null,null,null,"Select from Drop Down","Select from Drop Down","Select from Drop Down"]
[783,null,null,"Select from Drop Down","Select from Drop Down","Select from Drop Down",null,null,null,null,null,null,null,null,null,null,null,null,"Select from Drop Down","Select from Drop Down","Select from Drop Down"]
[784,null,null,"Select from Drop Down","Select from Drop Down","Select from Drop Down",null,null,null,null,null,null,null,null,null,null,null,null,"Select from Drop Down","Select from Drop Down","Select from Drop Down"]
[785,null,null,"Select from Drop Down","Select from Drop Down","Select from Drop Down",null,null,null,null,null,null,null,null,null,null,null,null,"Select from Drop Down","Select from Drop Down","Select from Drop Down"]
[786,null,null,"Select from Drop Down","Select from Drop Down","Select from Drop Down",null,null,null,null,null,null,null,null,null,null,null,null,"Select from Drop Down","Select from Drop Down","Select from Drop Down"]
[787,null,null,"Select from Drop Down","Select from Drop Down","Select from Drop Down",null,null,null,null,null,null,null,null,null,null,null,null,"Select from Drop Down","Select from Drop Down","Select from Drop Down"]
[788,null,null,"Select from Drop Down","Select from Drop Down","Select from Drop Down",null,null,null,null,null,null,null,null,null,null,null,null,"Select from Drop Down","Select from Drop Down","Select from Drop Down"]
[789,null,null,"Select from Drop Down","Select from Drop Down","Select from Drop Down",null,null,null,null,null,null,null,null,null,null,null,null,"Select from Drop Down","Select from Drop Down","Select from Drop Down"]
[790,null,null,"Select from Drop Down","Select from Drop Down","Select from Drop Down",null,null,null,null,null,null,null,null,null,null,null,null,"Select from Drop Down","Select from Drop Down","Select from Drop Down"]
[791,null,null,"Select from Drop Down","Select from Drop Down","Select from Drop Down",null,null,null,null,null,null,null,null,null,null,null,null,"Select from Drop Down","Select from Drop Down","Select from Drop Down"]
[792,null,null,"Select from Drop Down","Select from Drop Down","Select from Drop Down",null,null,null,null,null,null,null,null,null,null,null,null,"Select from Drop Down","Select from Drop Down","Select from Drop Down"]
[793,null,null,"Select from Drop Down","Select from Drop Down","Select from Drop Down",null,null,null,null,null,null,null,null,null,null,null,null,"Select from Drop Down","Select from Drop Down","Select from Drop Down"]
[794,null,null,"Select from Drop Down","Select from Drop Down","Select from Drop Down",null,null,null,null,null,null,null,null,null,null,null,null,"Select from Drop Down","Select from Drop Down","Select from Drop Down"]
[795,null,null,"Select from Drop Down","Select from Drop Down","Select from Drop Down",null,null,null,null,null,null,null,null,null,null,null,null,"Select from Drop Down","Select from Drop Down","Select from Drop Down"]
[796,null,null,"Select from Drop Down","Select from Drop Down","Select from Drop Down",null,null,null,null,null,null,null,null,null,null,null,null,"Select from Drop Down","Select from Drop Down","Select from Drop Down"]
[797,null,null,"Select from Drop Down","Select from Drop Down","Select from Drop Down",null,null,null,null,null,null,null,null,null,null,null,null,"Select from Drop Down","Select from Drop Down","Select from Drop Down"]
[798,null,null,"Select from Drop Down","Select from Drop Down","Select from Drop Down",null,null,null,null,null,null,null,null,null,null,null,null,"Select from Drop Down","Select from Drop Down","Select from Drop Down"]
[799,null,null,"Select from Drop Down","Select from Drop Down","Select from Drop Down",null,null,null,null,null,null,null,null,null,null,null,null,"Select from Drop Down","Select from Drop Down","Select from Drop Down"]
[800,null,null,"Select from Drop Down","Select from Drop Down","Select from Drop Down",null,null,null,null,null,null,null,null,null,null,null,null,"Select from Drop Down","Select from Drop Down","Select from Drop Down"]
[801,null,null,"Select from Drop Down","Select from Drop Down","Select from Drop Down",null,null,null,null,null,null,null,null,null,null,null,null,"Select from Drop Down","Select from Drop Down","Select from Drop Down"]
[802,null,null,"Select from Drop Down","Select from Drop Down","Select from Drop Down",null,null,null,null,null,null,null,null,null,null,null,null,"Select from Drop Down","Select from Drop Down","Select from Drop Down"]
[803,null,null,"Select from Drop Down","Select from Drop Down","Select from Drop Down",null,null,null,null,null,null,null,null,null,null,null,null,"Select from Drop Down","Select from Drop Down","Select from Drop Down"]
[804,null,null,"Select from Drop Down","Select from Drop Down","Select from Drop Down",null,null,null,null,null,null,null,null,null,null,null,null,"Select from Drop Down","Select from Drop Down","Select from Drop Down"]
[805,null,null,"Select from Drop Down","Select from Drop Down","Select from Drop Down",null,null,null,null,null,null,null,null,null,null,null,null,"Select from Drop Down","Select from Drop Down","Select from Drop Down"]
[806,null,null,"Select from Drop Down","Select from Drop Down","Select from Drop Down",null,null,null,null,null,null,null,null,null,null,null,null,"Select from Drop Down","Select from Drop Down","Select from Drop Down"]
[807,null,null,"Select from Drop Down","Select from Drop Down","Select from Drop Down",null,null,null,null,null,null,null,null,null,null,null,null,"Select from Drop Down","Select from Drop Down","Select from Drop Down"]
[808,null,null,"Select from Drop Down","Select from Drop Down","Select from Drop Down",null,null,null,null,null,null,null,null,null,null,null,null,"Select from Drop Down","Select from Drop Down","Select from Drop Down"]
[809,null,null,"Select from Drop Down","Select from Drop Down","Select from Drop Down",null,null,null,null,null,null,null,null,null,null,null,null,"Select from Drop Down","Select from Drop Down","Select from Drop Down"]
[810,null,null,"Select from Drop Down","Select from Drop Down","Select from Drop Down",null,null,null,null,null,null,null,null,null,null,null,null,"Select from Drop Down","Select from Drop Down","Select from Drop Down"]
[811,null,null,"Select from Drop Down","Select from Drop Down","Select from Drop Down",null,null,null,null,null,null,null,null,null,null,null,null,"Select from Drop Down","Select from Drop Down","Select from Drop Down"]
[812,null,null,"Select from Drop Down","Select from Drop Down","Select from Drop Down",null,null,null,null,null,null,null,null,null,null,null,null,"Select from Drop Down","Select from Drop Down","Select from Drop Down"]
[813,null,null,"Select from Drop Down","Select from Drop Down","Select from Drop Down",null,null,null,null,null,null,null,null,null,null,null,null,"Select from Drop Down","Select from Drop Down","Select from Drop Down"]
[814,null,null,"Select from Drop Down","Select from Drop Down","Select from Drop Down",null,null,null,null,null,null,null,null,null,null,null,null,"Select from Drop Down","Select from Drop Down","Select from Drop Down"]
[815,null,null,"Select from Drop Down","Select from Drop Down","Select from Drop Down",null,null,null,null,null,null,null,null,null,null,null,null,"Select from Drop Down","Select from Drop Down","Select from Drop Down"]
[816,null,null,"Select from Drop Down","Select from Drop Down","Select from Drop Down",null,null,null,null,null,null,null,null,null,null,null,null,"Select from Drop Down","Select from Drop Down","Select from Drop Down"]
[817,null,null,"Select from Drop Down","Select from Drop Down","Select from Drop Down",null,null,null,null,null,null,null,null,null,null,null,null,"Select from Drop Down","Select from Drop Down","Select from Drop Down"]
[818,null,null,"Select from Drop Down","Select from Drop Down","Select from Drop Down",null,null,null,null,null,null,null,null,null,null,null,null,"Select from Drop Down","Select from Drop Down","Select from Drop Down"]
[819,null,null,"Select from Drop Down","Select from Drop Down","Select from Drop Down",null,null,null,null,null,null,null,null,null,null,null,null,"Select from Drop Down","Select from Drop Down","Select from Drop Down"]
[820,null,null,"Select from Drop Down","Select from Drop Down","Select from Drop Down",null,null,null,null,null,null,null,null,null,null,null,null,"Select from Drop Down","Select from Drop Down","Select from Drop Down"]
[821,null,null,"Select from Drop Down","Select from Drop Down","Select from Drop Down",null,null,null,null,null,null,null,null,null,null,null,null,"Select from Drop Down","Select from Drop Down","Select from Drop Down"]
[822,null,null,"Select from Drop Down","Select from Drop Down","Select from Drop Down",null,null,null,null,null,null,null,null,null,null,null,null,"Select from Drop Down","Select from Drop Down","Select from Drop Down"]
[823,null,null,"Select from Drop Down","Select from Drop Down","Select from Drop Down",null,null,null,null,null,null,null,null,null,null,null,null,"Select from Drop Down","Select from Drop Down","Select from Drop Down"]
[824,null,null,"Select from Drop Down","Select from Drop Down","Select from Drop Down",null,null,null,null,null,null,null,null,null,null,null,null,"Select from Drop Down","Select from Drop Down","Select from Drop Down"]
[825,null,null,"Select from Drop Down","Select from Drop Down","Select from Drop Down",null,null,null,null,null,null,null,null,null,null,null,null,"Select from Drop Down","Select from Drop Down","Select from Drop Down"]
[826,null,null,"Select from Drop Down","Select from Drop Down","Select from Drop Down",null,null,null,null,null,null,null,null,null,null,null,null,"Select from Drop Down","Select from Drop Down","Select from Drop Down"]
[827,null,null,"Select from Drop Down","Select from Drop Down","Select from Drop Down",null,null,null,null,null,null,null,null,null,null,null,null,"Select from Drop Down","Select from Drop Down","Select from Drop Down"]
[828,null,null,"Select from Drop Down","Select from Drop Down","Select from Drop Down",null,null,null,null,null,null,null,null,null,null,null,null,"Select from Drop Down","Select from Drop Down","Select from Drop Down"]
[829,null,null,"Select from Drop Down","Select from Drop Down","Select from Drop Down",null,null,null,null,null,null,null,null,null,null,null,null,"Select from Drop Down","Select from Drop Down","Select from Drop Down"]
[830,null,null,"Select from Drop Down","Select from Drop Down","Select from Drop Down",null,null,null,null,null,null,null,null,null,null,null,null,"Select from Drop Down","Select from Drop Down","Select from Drop Down"]
[831,null,null,"Select from Drop Down","Select from Drop Down","Select from Drop Down",null,null,null,null,null,null,null,null,null,null,null,null,"Select from Drop Down","Select from Drop Down","Select from Drop Down"]
[832,null,null,"Select from Drop Down","Select from Drop Down","Select from Drop Down",null,null,null,null,null,null,null,null,null,null,null,null,"Select from Drop Down","Select from Drop Down","Select from Drop Down"]
[833,null,null,"Select from Drop Down","Select from Drop Down","Select from Drop Down",null,null,null,null,null,null,null,null,null,null,null,null,"Select from Drop Down","Select from Drop Down","Select from Drop Down"]
[834,null,null,"Select from Drop Down","Select from Drop Down","Select from Drop Down",null,null,null,null,null,null,null,null,null,null,null,null,"Select from Drop Down","Select from Drop Down","Select from Drop Down"]
[{"$f":"A844+1","v":835},null,null,"Select from Drop Down","Select from Drop Down","Select from Drop Down",null,null,null,null,null,null,null,null,null,null,null,null,"Select from Drop Down","Select from Drop Down","Select from Drop Down"]
[836,null,null,"Select from Drop Down","Select from Drop Down","Select from Drop Down",null,null,null,null,null,null,null,null,null,null,null,null,"Select from Drop Down","Select from Drop Down","Select from Drop Down"]
[837,null,null,"Select from Drop Down","Select from Drop Down","Select from Drop Down",null,null,null,null,null,null,null,null,null,null,null,null,"Select from Drop Down","Select from Drop Down","Select from Drop Down"]
[838,null,null,"Select from Drop Down","Select from Drop Down","Select from Drop Down",null,null,null,null,null,null,null,null,null,null,null,null,"Select from Drop Down","Select from Drop Down","Select from Drop Down"]
[839,null,null,"Select from Drop Down","Select from Drop Down","Select from Drop Down",null,null,null,null,null,null,null,null,null,null,null,null,"Select from Drop Down","Select from Drop Down","Select from Drop Down"]
[840,null,null,"Select from Drop Down","Select from Drop Down","Select from Drop Down",null,null,null,null,null,null,null,null,null,null,null,null,"Select from Drop Down","Select from Drop Down","Select from Drop Down"]
[841,null,null,"Select from Drop Down","Select from Drop Down","Select from Drop Down",null,null,null,null,null,null,null,null,null,null,null,null,"Select from Drop Down","Select from Drop Down","Select from Drop Down"]
[842,null,null,"Select from Drop Down","Select from Drop Down","Select from Drop Down",null,null,null,null,null,null,null,null,null,null,null,null,"Select from Drop Down","Select from Drop Down","Select from Drop Down"]
[843,null,null,"Select from Drop Down","Select from Drop Down","Select from Drop Down",null,null,null,null,null,null,null,null,null,null,null,null,"Select from Drop Down","Select from Drop Down","Select from Drop Down"]
[844,null,null,"Select from Drop Down","Select from Drop Down","Select from Drop Down",null,null,null,null,null,null,null,null,null,null,null,null,"Select from Drop Down","Select from Drop Down","Select from Drop Down"]
[845,null,null,"Select from Drop Down","Select from Drop Down","Select from Drop Down",null,null,null,null,null,null,null,null,null,null,null,null,"Select from Drop Down","Select from Drop Down","Select from Drop Down"]
[846,null,null,"Select from Drop Down","Select from Drop Down","Select from Drop Down",null,null,null,null,null,null,null,null,null,null,null,null,"Select from Drop Down","Select from Drop Down","Select from Drop Down"]
[847,null,null,"Select from Drop Down","Select from Drop Down","Select from Drop Down",null,null,null,null,null,null,null,null,null,null,null,null,"Select from Drop Down","Select from Drop Down","Select from Drop Down"]
[848,null,null,"Select from Drop Down","Select from Drop Down","Select from Drop Down",null,null,null,null,null,null,null,null,null,null,null,null,"Select from Drop Down","Select from Drop Down","Select from Drop Down"]
[849,null,null,"Select from Drop Down","Select from Drop Down","Select from Drop Down",null,null,null,null,null,null,null,null,null,null,null,null,"Select from Drop Down","Select from Drop Down","Select from Drop Down"]
[850,null,null,"Select from Drop Down","Select from Drop Down","Select from Drop Down",null,null,null,null,null,null,null,null,null,null,null,null,"Select from Drop Down","Select from Drop Down","Select from Drop Down"]
[851,null,null,"Select from Drop Down","Select from Drop Down","Select from Drop Down",null,null,null,null,null,null,null,null,null,null,null,null,"Select from Drop Down","Select from Drop Down","Select from Drop Down"]
[852,null,null,"Select from Drop Down","Select from Drop Down","Select from Drop Down",null,null,null,null,null,null,null,null,null,null,null,null,"Select from Drop Down","Select from Drop Down","Select from Drop Down"]
[853,null,null,"Select from Drop Down","Select from Drop Down","Select from Drop Down",null,null,null,null,null,null,null,null,null,null,null,null,"Select from Drop Down","Select from Drop Down","Select from Drop Down"]
[854,null,null,"Select from Drop Down","Select from Drop Down","Select from Drop Down",null,null,null,null,null,null,null,null,null,null,null,null,"Select from Drop Down","Select from Drop Down","Select from Drop Down"]
[855,null,null,"Select from Drop Down","Select from Drop Down","Select from Drop Down",null,null,null,null,null,null,null,null,null,null,null,null,"Select from Drop Down","Select from Drop Down","Select from Drop Down"]
[856,null,null,"Select from Drop Down","Select from Drop Down","Select from Drop Down",null,null,null,null,null,null,null,null,null,null,null,null,"Select from Drop Down","Select from Drop Down","Select from Drop Down"]
[857,null,null,"Select from Drop Down","Select from Drop Down","Select from Drop Down",null,null,null,null,null,null,null,null,null,null,null,null,"Select from Drop Down","Select from Drop Down","Select from Drop Down"]
[858,null,null,"Select from Drop Down","Select from Drop Down","Select from Drop Down",null,null,null,null,null,null,null,null,null,null,null,null,"Select from Drop Down","Select from Drop Down","Select from Drop Down"]
[859,null,null,"Select from Drop Down","Select from Drop Down","Select from Drop Down",null,null,null,null,null,null,null,null,null,null,null,null,"Select from Drop Down","Select from Drop Down","Select from Drop Down"]
[860,null,null,"Select from Drop Down","Select from Drop Down","Select from Drop Down",null,null,null,null,null,null,null,null,null,null,null,null,"Select from Drop Down","Select from Drop Down","Select from Drop Down"]
[861,null,null,"Select from Drop Down","Select from Drop Down","Select from Drop Down",null,null,null,null,null,null,null,null,null,null,null,null,"Select from Drop Down","Select from Drop Down","Select from Drop Down"]
[862,null,null,"Select from Drop Down","Select from Drop Down","Select from Drop Down",null,null,null,null,null,null,null,null,null,null,null,null,"Select from Drop Down","Select from Drop Down","Select from Drop Down"]
[863,null,null,"Select from Drop Down","Select from Drop Down","Select from Drop Down",null,null,null,null,null,null,null,null,null,null,null,null,"Select from Drop Down","Select from Drop Down","Select from Drop Down"]
[864,null,null,"Select from Drop Down","Select from Drop Down","Select from Drop Down",null,null,null,null,null,null,null,null,null,null,null,null,"Select from Drop Down","Select from Drop Down","Select from Drop Down"]
[865,null,null,"Select from Drop Down","Select from Drop Down","Select from Drop Down",null,null,null,null,null,null,null,null,null,null,null,null,"Select from Drop Down","Select from Drop Down","Select from Drop Down"]
[866,null,null,"Select from Drop Down","Select from Drop Down","Select from Drop Down",null,null,null,null,null,null,null,null,null,null,null,null,"Select from Drop Down","Select from Drop Down","Select from Drop Down"]
[867,null,null,"Select from Drop Down","Select from Drop Down","Select from Drop Down",null,null,null,null,null,null,null,null,null,null,null,null,"Select from Drop Down","Select from Drop Down","Select from Drop Down"]
[868,null,null,"Select from Drop Down","Select from Drop Down","Select from Drop Down",null,null,null,null,null,null,null,null,null,null,null,null,"Select from Drop Down","Select from Drop Down","Select from Drop Down"]
[869,null,null,"Select from Drop Down","Select from Drop Down","Select from Drop Down",null,null,null,null,null,null,null,null,null,null,null,null,"Select from Drop Down","Select from Drop Down","Select from Drop Down"]
[870,null,null,"Select from Drop Down","Select from Drop Down","Select from Drop Down",null,null,null,null,null,null,null,null,null,null,null,null,"Select from Drop Down","Select from Drop Down","Select from Drop Down"]
[871,null,null,"Select from Drop Down","Select from Drop Down","Select from Drop Down",null,null,null,null,null,null,null,null,null,null,null,null,"Select from Drop Down","Select from Drop Down","Select from Drop Down"]
[872,null,null,"Select from Drop Down","Select from Drop Down","Select from Drop Down",null,null,null,null,null,null,null,null,null,null,null,null,"Select from Drop Down","Select from Drop Down","Select from Drop Down"]
[873,null,null,"Select from Drop Down","Select from Drop Down","Select from Drop Down",null,null,null,null,null,null,null,null,null,null,null,null,"Select from Drop Down","Select from Drop Down","Select from Drop Down"]
[874,null,null,"Select from Drop Down","Select from Drop Down","Select from Drop Down",null,null,null,null,null,null,null,null,null,null,null,null,"Select from Drop Down","Select from Drop Down","Select from Drop Down"]
[875,null,null,"Select from Drop Down","Select from Drop Down","Select from Drop Down",null,null,null,null,null,null,null,null,null,null,null,null,"Select from Drop Down","Select from Drop Down","Select from Drop Down"]
[876,null,null,"Select from Drop Down","Select from Drop Down","Select from Drop Down",null,null,null,null,null,null,null,null,null,null,null,null,"Select from Drop Down","Select from Drop Down","Select from Drop Down"]
[877,null,null,"Select from Drop Down","Select from Drop Down","Select from Drop Down",null,null,null,null,null,null,null,null,null,null,null,null,"Select from Drop Down","Select from Drop Down","Select from Drop Down"]
[878,null,null,"Select from Drop Down","Select from Drop Down","Select from Drop Down",null,null,null,null,null,null,null,null,null,null,null,null,"Select from Drop Down","Select from Drop Down","Select from Drop Down"]
[879,null,null,"Select from Drop Down","Select from Drop Down","Select from Drop Down",null,null,null,null,null,null,null,null,null,null,null,null,"Select from Drop Down","Select from Drop Down","Select from Drop Down"]
[880,null,null,"Select from Drop Down","Select from Drop Down","Select from Drop Down",null,null,null,null,null,null,null,null,null,null,null,null,"Select from Drop Down","Select from Drop Down","Select from Drop Down"]
[881,null,null,"Select from Drop Down","Select from Drop Down","Select from Drop Down",null,null,null,null,null,null,null,null,null,null,null,null,"Select from Drop Down","Select from Drop Down","Select from Drop Down"]
[882,null,null,"Select from Drop Down","Select from Drop Down","Select from Drop Down",null,null,null,null,null,null,null,null,null,null,null,null,"Select from Drop Down","Select from Drop Down","Select from Drop Down"]
[883,null,null,"Select from Drop Down","Select from Drop Down","Select from Drop Down",null,null,null,null,null,null,null,null,null,null,null,null,"Select from Drop Down","Select from Drop Down","Select from Drop Down"]
[884,null,null,"Select from Drop Down","Select from Drop Down","Select from Drop Down",null,null,null,null,null,null,null,null,null,null,null,null,"Select from Drop Down","Select from Drop Down","Select from Drop Down"]
[885,null,null,"Select from Drop Down","Select from Drop Down","Select from Drop Down",null,null,null,null,null,null,null,null,null,null,null,null,"Select from Drop Down","Select from Drop Down","Select from Drop Down"]
[886,null,null,"Select from Drop Down","Select from Drop Down","Select from Drop Down",null,null,null,null,null,null,null,null,null,null,null,null,"Select from Drop Down","Select from Drop Down","Select from Drop Down"]
[887,null,null,"Select from Drop Down","Select from Drop Down","Select from Drop Down",null,null,null,null,null,null,null,null,null,null,null,null,"Select from Drop Down","Select from Drop Down","Select from Drop Down"]
[888,null,null,"Select from Drop Down","Select from Drop Down","Select from Drop Down",null,null,null,null,null,null,null,null,null,null,null,null,"Select from Drop Down","Select from Drop Down","Select from Drop Down"]
[889,null,null,"Select from Drop Down","Select from Drop Down","Select from Drop Down",null,null,null,null,null,null,null,null,null,null,null,null,"Select from Drop Down","Select from Drop Down","Select from Drop Down"]
[890,null,null,"Select from Drop Down","Select from Drop Down","Select from Drop Down",null,null,null,null,null,null,null,null,null,null,null,null,"Select from Drop Down","Select from Drop Down","Select from Drop Down"]
[891,null,null,"Select from Drop Down","Select from Drop Down","Select from Drop Down",null,null,null,null,null,null,null,null,null,null,null,null,"Select from Drop Down","Select from Drop Down","Select from Drop Down"]
[892,null,null,"Select from Drop Down","Select from Drop Down","Select from Drop Down",null,null,null,null,null,null,null,null,null,null,null,null,"Select from Drop Down","Select from Drop Down","Select from Drop Down"]
[893,null,null,"Select from Drop Down","Select from Drop Down","Select from Drop Down",null,null,null,null,null,null,null,null,null,null,null,null,"Select from Drop Down","Select from Drop Down","Select from Drop Down"]
[894,null,null,"Select from Drop Down","Select from Drop Down","Select from Drop Down",null,null,null,null,null,null,null,null,null,null,null,null,"Select from Drop Down","Select from Drop Down","Select from Drop Down"]
[895,null,null,"Select from Drop Down","Select from Drop Down","Select from Drop Down",null,null,null,null,null,null,null,null,null,null,null,null,"Select from Drop Down","Select from Drop Down","Select from Drop Down"]
[896,null,null,"Select from Drop Down","Select from Drop Down","Select from Drop Down",null,null,null,null,null,null,null,null,null,null,null,null,"Select from Drop Down","Select from Drop Down","Select from Drop Down"]
[897,null,null,"Select from Drop Down","Select from Drop Down","Select from Drop Down",null,null,null,null,null,null,null,null,null,null,null,null,"Select from Drop Down","Select from Drop Down","Select from Drop Down"]
[898,null,null,"Select from Drop Down","Select from Drop Down","Select from Drop Down",null,null,null,null,null,null,null,null,null,null,null,null,"Select from Drop Down","Select from Drop Down","Select from Drop Down"]
[{"$f":"A908+1","v":899},null,null,"Select from Drop Down","Select from Drop Down","Select from Drop Down",null,null,null,null,null,null,null,null,null,null,null,null,"Select from Drop Down","Select from Drop Down","Select from Drop Down"]
[900,null,null,"Select from Drop Down","Select from Drop Down","Select from Drop Down",null,null,null,null,null,null,null,null,null,null,null,null,"Select from Drop Down","Select from Drop Down","Select from Drop Down"]
[901,null,null,"Select from Drop Down","Select from Drop Down","Select from Drop Down",null,null,null,null,null,null,null,null,null,null,null,null,"Select from Drop Down","Select from Drop Down","Select from Drop Down"]
[902,null,null,"Select from Drop Down","Select from Drop Down","Select from Drop Down",null,null,null,null,null,null,null,null,null,null,null,null,"Select from Drop Down","Select from Drop Down","Select from Drop Down"]
[903,null,null,"Select from Drop Down","Select from Drop Down","Select from Drop Down",null,null,null,null,null,null,null,null,null,null,null,null,"Select from Drop Down","Select from Drop Down","Select from Drop Down"]
[904,null,null,"Select from Drop Down","Select from Drop Down","Select from Drop Down",null,null,null,null,null,null,null,null,null,null,null,null,"Select from Drop Down","Select from Drop Down","Select from Drop Down"]
[905,null,null,"Select from Drop Down","Select from Drop Down","Select from Drop Down",null,null,null,null,null,null,null,null,null,null,null,null,"Select from Drop Down","Select from Drop Down","Select from Drop Down"]
[906,null,null,"Select from Drop Down","Select from Drop Down","Select from Drop Down",null,null,null,null,null,null,null,null,null,null,null,null,"Select from Drop Down","Select from Drop Down","Select from Drop Down"]
[907,null,null,"Select from Drop Down","Select from Drop Down","Select from Drop Down",null,null,null,null,null,null,null,null,null,null,null,null,"Select from Drop Down","Select from Drop Down","Select from Drop Down"]
[908,null,null,"Select from Drop Down","Select from Drop Down","Select from Drop Down",null,null,null,null,null,null,null,null,null,null,null,null,"Select from Drop Down","Select from Drop Down","Select from Drop Down"]
[909,null,null,"Select from Drop Down","Select from Drop Down","Select from Drop Down",null,null,null,null,null,null,null,null,null,null,null,null,"Select from Drop Down","Select from Drop Down","Select from Drop Down"]
[910,null,null,"Select from Drop Down","Select from Drop Down","Select from Drop Down",null,null,null,null,null,null,null,null,null,null,null,null,"Select from Drop Down","Select from Drop Down","Select from Drop Down"]
[911,null,null,"Select from Drop Down","Select from Drop Down","Select from Drop Down",null,null,null,null,null,null,null,null,null,null,null,null,"Select from Drop Down","Select from Drop Down","Select from Drop Down"]
[912,null,null,"Select from Drop Down","Select from Drop Down","Select from Drop Down",null,null,null,null,null,null,null,null,null,null,null,null,"Select from Drop Down","Select from Drop Down","Select from Drop Down"]
[913,null,null,"Select from Drop Down","Select from Drop Down","Select from Drop Down",null,null,null,null,null,null,null,null,null,null,null,null,"Select from Drop Down","Select from Drop Down","Select from Drop Down"]
[914,null,null,"Select from Drop Down","Select from Drop Down","Select from Drop Down",null,null,null,null,null,null,null,null,null,null,null,null,"Select from Drop Down","Select from Drop Down","Select from Drop Down"]
[915,null,null,"Select from Drop Down","Select from Drop Down","Select from Drop Down",null,null,null,null,null,null,null,null,null,null,null,null,"Select from Drop Down","Select from Drop Down","Select from Drop Down"]
[916,null,null,"Select from Drop Down","Select from Drop Down","Select from Drop Down",null,null,null,null,null,null,null,null,null,null,null,null,"Select from Drop Down","Select from Drop Down","Select from Drop Down"]
[917,null,null,"Select from Drop Down","Select from Drop Down","Select from Drop Down",null,null,null,null,null,null,null,null,null,null,null,null,"Select from Drop Down","Select from Drop Down","Select from Drop Down"]
[918,null,null,"Select from Drop Down","Select from Drop Down","Select from Drop Down",null,null,null,null,null,null,null,null,null,null,null,null,"Select from Drop Down","Select from Drop Down","Select from Drop Down"]
[919,null,null,"Select from Drop Down","Select from Drop Down","Select from Drop Down",null,null,null,null,null,null,null,null,null,null,null,null,"Select from Drop Down","Select from Drop Down","Select from Drop Down"]
[920,null,null,"Select from Drop Down","Select from Drop Down","Select from Drop Down",null,null,null,null,null,null,null,null,null,null,null,null,"Select from Drop Down","Select from Drop Down","Select from Drop Down"]
[921,null,null,"Select from Drop Down","Select from Drop Down","Select from Drop Down",null,null,null,null,null,null,null,null,null,null,null,null,"Select from Drop Down","Select from Drop Down","Select from Drop Down"]
[922,null,null,"Select from Drop Down","Select from Drop Down","Select from Drop Down",null,null,null,null,null,null,null,null,null,null,null,null,"Select from Drop Down","Select from Drop Down","Select from Drop Down"]
[923,null,null,"Select from Drop Down","Select from Drop Down","Select from Drop Down",null,null,null,null,null,null,null,null,null,null,null,null,"Select from Drop Down","Select from Drop Down","Select from Drop Down"]
[924,null,null,"Select from Drop Down","Select from Drop Down","Select from Drop Down",null,null,null,null,null,null,null,null,null,null,null,null,"Select from Drop Down","Select from Drop Down","Select from Drop Down"]
[925,null,null,"Select from Drop Down","Select from Drop Down","Select from Drop Down",null,null,null,null,null,null,null,null,null,null,null,null,"Select from Drop Down","Select from Drop Down","Select from Drop Down"]
[926,null,null,"Select from Drop Down","Select from Drop Down","Select from Drop Down",null,null,null,null,null,null,null,null,null,null,null,null,"Select from Drop Down","Select from Drop Down","Select from Drop Down"]
[927,null,null,"Select from Drop Down","Select from Drop Down","Select from Drop Down",null,null,null,null,null,null,null,null,null,null,null,null,"Select from Drop Down","Select from Drop Down","Select from Drop Down"]
[928,null,null,"Select from Drop Down","Select from Drop Down","Select from Drop Down",null,null,null,null,null,null,null,null,null,null,null,null,"Select from Drop Down","Select from Drop Down","Select from Drop Down"]
[929,null,null,"Select from Drop Down","Select from Drop Down","Select from Drop Down",null,null,null,null,null,null,null,null,null,null,null,null,"Select from Drop Down","Select from Drop Down","Select from Drop Down"]
[930,null,null,"Select from Drop Down","Select from Drop Down","Select from Drop Down",null,null,null,null,null,null,null,null,null,null,null,null,"Select from Drop Down","Select from Drop Down","Select from Drop Down"]
[931,null,null,"Select from Drop Down","Select from Drop Down","Select from Drop Down",null,null,null,null,null,null,null,null,null,null,null,null,"Select from Drop Down","Select from Drop Down","Select from Drop Down"]
[932,null,null,"Select from Drop Down","Select from Drop Down","Select from Drop Down",null,null,null,null,null,null,null,null,null,null,null,null,"Select from Drop Down","Select from Drop Down","Select from Drop Down"]
[933,null,null,"Select from Drop Down","Select from Drop Down","Select from Drop Down",null,null,null,null,null,null,null,null,null,null,null,null,"Select from Drop Down","Select from Drop Down","Select from Drop Down"]
[934,null,null,"Select from Drop Down","Select from Drop Down","Select from Drop Down",null,null,null,null,null,null,null,null,null,null,null,null,"Select from Drop Down","Select from Drop Down","Select from Drop Down"]
[935,null,null,"Select from Drop Down","Select from Drop Down","Select from Drop Down",null,null,null,null,null,null,null,null,null,null,null,null,"Select from Drop Down","Select from Drop Down","Select from Drop Down"]
[936,null,null,"Select from Drop Down","Select from Drop Down","Select from Drop Down",null,null,null,null,null,null,null,null,null,null,null,null,"Select from Drop Down","Select from Drop Down","Select from Drop Down"]
[937,null,null,"Select from Drop Down","Select from Drop Down","Select from Drop Down",null,null,null,null,null,null,null,null,null,null,null,null,"Select from Drop Down","Select from Drop Down","Select from Drop Down"]
[938,null,null,"Select from Drop Down","Select from Drop Down","Select from Drop Down",null,null,null,null,null,null,null,null,null,null,null,null,"Select from Drop Down","Select from Drop Down","Select from Drop Down"]
[939,null,null,"Select from Drop Down","Select from Drop Down","Select from Drop Down",null,null,null,null,null,null,null,null,null,null,null,null,"Select from Drop Down","Select from Drop Down","Select from Drop Down"]
[940,null,null,"Select from Drop Down","Select from Drop Down","Select from Drop Down",null,null,null,null,null,null,null,null,null,null,null,null,"Select from Drop Down","Select from Drop Down","Select from Drop Down"]
[941,null,null,"Select from Drop Down","Select from Drop Down","Select from Drop Down",null,null,null,null,null,null,null,null,null,null,null,null,"Select from Drop Down","Select from Drop Down","Select from Drop Down"]
[942,null,null,"Select from Drop Down","Select from Drop Down","Select from Drop Down",null,null,null,null,null,null,null,null,null,null,null,null,"Select from Drop Down","Select from Drop Down","Select from Drop Down"]
[943,null,null,"Select from Drop Down","Select from Drop Down","Select from Drop Down",null,null,null,null,null,null,null,null,null,null,null,null,"Select from Drop Down","Select from Drop Down","Select from Drop Down"]
[944,null,null,"Select from Drop Down","Select from Drop Down","Select from Drop Down",null,null,null,null,null,null,null,null,null,null,null,null,"Select from Drop Down","Select from Drop Down","Select from Drop Down"]
[945,null,null,"Select from Drop Down","Select from Drop Down","Select from Drop Down",null,null,null,null,null,null,null,null,null,null,null,null,"Select from Drop Down","Select from Drop Down","Select from Drop Down"]
[946,null,null,"Select from Drop Down","Select from Drop Down","Select from Drop Down",null,null,null,null,null,null,null,null,null,null,null,null,"Select from Drop Down","Select from Drop Down","Select from Drop Down"]
[947,null,null,"Select from Drop Down","Select from Drop Down","Select from Drop Down",null,null,null,null,null,null,null,null,null,null,null,null,"Select from Drop Down","Select from Drop Down","Select from Drop Down"]
[948,null,null,"Select from Drop Down","Select from Drop Down","Select from Drop Down",null,null,null,null,null,null,null,null,null,null,null,null,"Select from Drop Down","Select from Drop Down","Select from Drop Down"]
[949,null,null,"Select from Drop Down","Select from Drop Down","Select from Drop Down",null,null,null,null,null,null,null,null,null,null,null,null,"Select from Drop Down","Select from Drop Down","Select from Drop Down"]
[950,null,null,"Select from Drop Down","Select from Drop Down","Select from Drop Down",null,null,null,null,null,null,null,null,null,null,null,null,"Select from Drop Down","Select from Drop Down","Select from Drop Down"]
[951,null,null,"Select from Drop Down","Select from Drop Down","Select from Drop Down",null,null,null,null,null,null,null,null,null,null,null,null,"Select from Drop Down","Select from Drop Down","Select from Drop Down"]
[952,null,null,"Select from Drop Down","Select from Drop Down","Select from Drop Down",null,null,null,null,null,null,null,null,null,null,null,null,"Select from Drop Down","Select from Drop Down","Select from Drop Down"]
[953,null,null,"Select from Drop Down","Select from Drop Down","Select from Drop Down",null,null,null,null,null,null,null,null,null,null,null,null,"Select from Drop Down","Select from Drop Down","Select from Drop Down"]
[954,null,null,"Select from Drop Down","Select from Drop Down","Select from Drop Down",null,null,null,null,null,null,null,null,null,null,null,null,"Select from Drop Down","Select from Drop Down","Select from Drop Down"]
[955,null,null,"Select from Drop Down","Select from Drop Down","Select from Drop Down",null,null,null,null,null,null,null,null,null,null,null,null,"Select from Drop Down","Select from Drop Down","Select from Drop Down"]
[956,null,null,"Select from Drop Down","Select from Drop Down","Select from Drop Down",null,null,null,null,null,null,null,null,null,null,null,null,"Select from Drop Down","Select from Drop Down","Select from Drop Down"]
[957,null,null,"Select from Drop Down","Select from Drop Down","Select from Drop Down",null,null,null,null,null,null,null,null,null,null,null,null,"Select from Drop Down","Select from Drop Down","Select from Drop Down"]
[958,null,null,"Select from Drop Down","Select from Drop Down","Select from Drop Down",null,null,null,null,null,null,null,null,null,null,null,null,"Select from Drop Down","Select from Drop Down","Select from Drop Down"]
[959,null,null,"Select from Drop Down","Select from Drop Down","Select from Drop Down",null,null,null,null,null,null,null,null,null,null,null,null,"Select from Drop Down","Select from Drop Down","Select from Drop Down"]
[960,null,null,"Select from Drop Down","Select from Drop Down","Select from Drop Down",null,null,null,null,null,null,null,null,null,null,null,null,"Select from Drop Down","Select from Drop Down","Select from Drop Down"]
[961,null,null,"Select from Drop Down","Select from Drop Down","Select from Drop Down",null,null,null,null,null,null,null,null,null,null,null,null,"Select from Drop Down","Select from Drop Down","Select from Drop Down"]
[962,null,null,"Select from Drop Down","Select from Drop Down","Select from Drop Down",null,null,null,null,null,null,null,null,null,null,null,null,"Select from Drop Down","Select from Drop Down","Select from Drop Down"]
[{"$f":"A972+1","v":963},null,null,"Select from Drop Down","Select from Drop Down","Select from Drop Down",null,null,null,null,null,null,null,null,null,null,null,null,"Select from Drop Down","Select from Drop Down","Select from Drop Down"]
[964,null,null,"Select from Drop Down","Select from Drop Down","Select from Drop Down",null,null,null,null,null,null,null,null,null,null,null,null,"Select from Drop Down","Select from Drop Down","Select from Drop Down"]
[965,null,null,"Select from Drop Down","Select from Drop Down","Select from Drop Down",null,null,null,null,null,null,null,null,null,null,null,null,"Select from Drop Down","Select from Drop Down","Select from Drop Down"]
[966,null,null,"Select from Drop Down","Select from Drop Down","Select from Drop Down",null,null,null,null,null,null,null,null,null,null,null,null,"Select from Drop Down","Select from Drop Down","Select from Drop Down"]
[967,null,null,"Select from Drop Down","Select from Drop Down","Select from Drop Down",null,null,null,null,null,null,null,null,null,null,null,null,"Select from Drop Down","Select from Drop Down","Select from Drop Down"]
[968,null,null,"Select from Drop Down","Select from Drop Down","Select from Drop Down",null,null,null,null,null,null,null,null,null,null,null,null,"Select from Drop Down","Select from Drop Down","Select from Drop Down"]
[969,null,null,"Select from Drop Down","Select from Drop Down","Select from Drop Down",null,null,null,null,null,null,null,null,null,null,null,null,"Select from Drop Down","Select from Drop Down","Select from Drop Down"]
[970,null,null,"Select from Drop Down","Select from Drop Down","Select from Drop Down",null,null,null,null,null,null,null,null,null,null,null,null,"Select from Drop Down","Select from Drop Down","Select from Drop Down"]
[971,null,null,"Select from Drop Down","Select from Drop Down","Select from Drop Down",null,null,null,null,null,null,null,null,null,null,null,null,"Select from Drop Down","Select from Drop Down","Select from Drop Down"]
[972,null,null,"Select from Drop Down","Select from Drop Down","Select from Drop Down",null,null,null,null,null,null,null,null,null,null,null,null,"Select from Drop Down","Select from Drop Down","Select from Drop Down"]
[973,null,null,"Select from Drop Down","Select from Drop Down","Select from Drop Down",null,null,null,null,null,null,null,null,null,null,null,null,"Select from Drop Down","Select from Drop Down","Select from Drop Down"]
[974,null,null,"Select from Drop Down","Select from Drop Down","Select from Drop Down",null,null,null,null,null,null,null,null,null,null,null,null,"Select from Drop Down","Select from Drop Down","Select from Drop Down"]
[975,null,null,"Select from Drop Down","Select from Drop Down","Select from Drop Down",null,null,null,null,null,null,null,null,null,null,null,null,"Select from Drop Down","Select from Drop Down","Select from Drop Down"]
[976,null,null,"Select from Drop Down","Select from Drop Down","Select from Drop Down",null,null,null,null,null,null,null,null,null,null,null,null,"Select from Drop Down","Select from Drop Down","Select from Drop Down"]
[977,null,null,"Select from Drop Down","Select from Drop Down","Select from Drop Down",null,null,null,null,null,null,null,null,null,null,null,null,"Select from Drop Down","Select from Drop Down","Select from Drop Down"]
[978,null,null,"Select from Drop Down","Select from Drop Down","Select from Drop Down",null,null,null,null,null,null,null,null,null,null,null,null,"Select from Drop Down","Select from Drop Down","Select from Drop Down"]
[979,null,null,"Select from Drop Down","Select from Drop Down","Select from Drop Down",null,null,null,null,null,null,null,null,null,null,null,null,"Select from Drop Down","Select from Drop Down","Select from Drop Down"]
[980,null,null,"Select from Drop Down","Select from Drop Down","Select from Drop Down",null,null,null,null,null,null,null,null,null,null,null,null,"Select from Drop Down","Select from Drop Down","Select from Drop Down"]
[981,null,null,"Select from Drop Down","Select from Drop Down","Select from Drop Down",null,null,null,null,null,null,null,null,null,null,null,null,"Select from Drop Down","Select from Drop Down","Select from Drop Down"]
[982,null,null,"Select from Drop Down","Select from Drop Down","Select from Drop Down",null,null,null,null,null,null,null,null,null,null,null,null,"Select from Drop Down","Select from Drop Down","Select from Drop Down"]
[983,null,null,"Select from Drop Down","Select from Drop Down","Select from Drop Down",null,null,null,null,null,null,null,null,null,null,null,null,"Select from Drop Down","Select from Drop Down","Select from Drop Down"]
[984,null,null,"Select from Drop Down","Select from Drop Down","Select from Drop Down",null,null,null,null,null,null,null,null,null,null,null,null,"Select from Drop Down","Select from Drop Down","Select from Drop Down"]
[985,null,null,"Select from Drop Down","Select from Drop Down","Select from Drop Down",null,null,null,null,null,null,null,null,null,null,null,null,"Select from Drop Down","Select from Drop Down","Select from Drop Down"]
[986,null,null,"Select from Drop Down","Select from Drop Down","Select from Drop Down",null,null,null,null,null,null,null,null,null,null,null,null,"Select from Drop Down","Select from Drop Down","Select from Drop Down"]
[987,null,null,"Select from Drop Down","Select from Drop Down","Select from Drop Down",null,null,null,null,null,null,null,null,null,null,null,null,"Select from Drop Down","Select from Drop Down","Select from Drop Down"]
[988,null,null,"Select from Drop Down","Select from Drop Down","Select from Drop Down",null,null,null,null,null,null,null,null,null,null,null,null,"Select from Drop Down","Select from Drop Down","Select from Drop Down"]
[989,null,null,"Select from Drop Down","Select from Drop Down","Select from Drop Down",null,null,null,null,null,null,null,null,null,null,null,null,"Select from Drop Down","Select from Drop Down","Select from Drop Down"]
[990,null,null,"Select from Drop Down","Select from Drop Down","Select from Drop Down",null,null,null,null,null,null,null,null,null,null,null,null,"Select from Drop Down","Select from Drop Down","Select from Drop Down"]
[991,null,null,"Select from Drop Down","Select from Drop Down","Select from Drop Down",null,null,null,null,null,null,null,null,null,null,null,null,"Select from Drop Down","Select from Drop Down","Select from Drop Down"]
[992,null,null,"Select from Drop Down","Select from Drop Down","Select from Drop Down",null,null,null,null,null,null,null,null,null,null,null,null,"Select from Drop Down","Select from Drop Down","Select from Drop Down"]
[993,null,null,"Select from Drop Down","Select from Drop Down","Select from Drop Down",null,null,null,null,null,null,null,null,null,null,null,null,"Select from Drop Down","Select from Drop Down","Select from Drop Down"]
[994,null,null,"Select from Drop Down","Select from Drop Down","Select from Drop Down",null,null,null,null,null,null,null,null,null,null,null,null,"Select from Drop Down","Select from Drop Down","Select from Drop Down"]
[995,null,null,"Select from Drop Down","Select from Drop Down","Select from Drop Down",null,null,null,null,null,null,null,null,null,null,null,null,"Select from Drop Down","Select from Drop Down","Select from Drop Down"]
[996,null,null,"Select from Drop Down","Select from Drop Down","Select from Drop Down",null,null,null,null,null,null,null,null,null,null,null,null,"Select from Drop Down","Select from Drop Down","Select from Drop Down"]
[997,null,null,"Select from Drop Down","Select from Drop Down","Select from Drop Down",null,null,null,null,null,null,null,null,null,null,null,null,"Select from Drop Down","Select from Drop Down","Select from Drop Down"]
[998,null,null,"Select from Drop Down","Select from Drop Down","Select from Drop Down",null,null,null,null,null,null,null,null,null,null,null,null,"Select from Drop Down","Select from Drop Down","Select from Drop Down"]
[999,null,null,"Select from Drop Down","Select from Drop Down","Select from Drop Down",null,null,null,null,null,null,null,null,null,null,null,null,"Select from Drop Down","Select from Drop Down","Select from Drop Down"]
[1000,null,null,"Select from Drop Down","Select from Drop Down","Select from Drop Down",null,null,null,null,null,null,null,null,null,null,null,null,"Select from Drop Down","Select from Drop Down","Select from Drop Down"]
[1001,null,null,"Select from Drop Down","Select from Drop Down","Select from Drop Down",null,null,null,null,null,null,null,null,null,null,null,null,"Select from Drop Down","Select from Drop Down","Select from Drop Down"]
[1002,null,null,"Select from Drop Down","Select from Drop Down","Select from Drop Down",null,null,null,null,null,null,null,null,null,null,null,null,"Select from Drop Down","Select from Drop Down","Select from Drop Down"]
[1003,null,null,"Select from Drop Down","Select from Drop Down","Select from Drop Down",null,null,null,null,null,null,null,null,null,null,null,null,"Select from Drop Down","Select from Drop Down","Select from Drop Down"]
[1004,null,null,"Select from Drop Down","Select from Drop Down","Select from Drop Down",null,null,null,null,null,null,null,null,null,null,null,null,"Select from Drop Down","Select from Drop Down","Select from Drop Down"]
[1005,null,null,"Select from Drop Down","Select from Drop Down","Select from Drop Down",null,null,null,null,null,null,null,null,null,null,null,null,"Select from Drop Down","Select from Drop Down","Select from Drop Down"]
[1006,null,null,"Select from Drop Down","Select from Drop Down","Select from Drop Down",null,null,null,null,null,null,null,null,null,null,null,null,"Select from Drop Down","Select from Drop Down","Select from Drop Down"]
[1007,null,null,"Select from Drop Down","Select from Drop Down","Select from Drop Down",null,null,null,null,null,null,null,null,null,null,null,null,"Select from Drop Down","Select from Drop Down","Select from Drop Down"]
[1008,null,null,"Select from Drop Down","Select from Drop Down","Select from Drop Down",null,null,null,null,null,null,null,null,null,null,null,null,"Select from Drop Down","Select from Drop Down","Select from Drop Down"]
[1009,null,null,"Select from Drop Down","Select from Drop Down","Select from Drop Down",null,null,null,null,null,null,null,null,null,null,null,null,"Select from Drop Down","Select from Drop Down","Select from Drop Down"]
[1010,null,null,"Select from Drop Down","Select from Drop Down","Select from Drop Down",null,null,null,null,null,null,null,null,null,null,null,null,"Select from Drop Down","Select from Drop Down","Select from Drop Down"]
[1011,null,null,"Select from Drop Down","Select from Drop Down","Select from Drop Down",null,null,null,null,null,null,null,null,null,null,null,null,"Select from Drop Down","Select from Drop Down","Select from Drop Down"]
[1012,null,null,"Select from Drop Down","Select from Drop Down","Select from Drop Down",null,null,null,null,null,null,null,null,null,null,null,null,"Select from Drop Down","Select from Drop Down","Select from Drop Down"]
[1013,null,null,"Select from Drop Down","Select from Drop Down","Select from Drop Down",null,null,null,null,null,null,null,null,null,null,null,null,"Select from Drop Down","Select from Drop Down","Select from Drop Down"]
[1014,null,null,"Select from Drop Down","Select from Drop Down","Select from Drop Down",null,null,null,null,null,null,null,null,null,null,null,null,"Select from Drop Down","Select from Drop Down","Select from Drop Down"]
[1015,null,null,"Select from Drop Down","Select from Drop Down","Select from Drop Down",null,null,null,null,null,null,null,null,null,null,null,null,"Select from Drop Down","Select from Drop Down","Select from Drop Down"]
[1016,null,null,"Select from Drop Down","Select from Drop Down","Select from Drop Down",null,null,null,null,null,null,null,null,null,null,null,null,"Select from Drop Down","Select from Drop Down","Select from Drop Down"]
[1017,null,null,"Select from Drop Down","Select from Drop Down","Select from Drop Down",null,null,null,null,null,null,null,null,null,null,null,null,"Select from Drop Down","Select from Drop Down","Select from Drop Down"]
[1018,null,null,"Select from Drop Down","Select from Drop Down","Select from Drop Down",null,null,null,null,null,null,null,null,null,null,null,null,"Select from Drop Down","Select from Drop Down","Select from Drop Down"]
[1019,null,null,"Select from Drop Down","Select from Drop Down","Select from Drop Down",null,null,null,null,null,null,null,null,null,null,null,null,"Select from Drop Down","Select from Drop Down","Select from Drop Down"]
[1020,null,null,"Select from Drop Down","Select from Drop Down","Select from Drop Down",null,null,null,null,null,null,null,null,null,null,null,null,"Select from Drop Down","Select from Drop Down","Select from Drop Down"]
[1021,null,null,"Select from Drop Down","Select from Drop Down","Select from Drop Down",null,null,null,null,null,null,null,null,null,null,null,null,"Select from Drop Down","Select from Drop Down","Select from Drop Down"]
[1022,null,null,"Select from Drop Down","Select from Drop Down","Select from Drop Down",null,null,null,null,null,null,null,null,null,null,null,null,"Select from Drop Down","Select from Drop Down","Select from Drop Down"]
[1023,null,null,"Select from Drop Down","Select from Drop Down","Select from Drop Down",null,null,null,null,null,null,null,null,null,null,null,null,"Select from Drop Down","Select from Drop Down","Select from Drop Down"]
[1024,null,null,"Select from Drop Down","Select from Drop Down","Select from Drop Down",null,null,null,null,null,null,null,null,null,null,null,null,"Select from Drop Down","Select from Drop Down","Select from Drop Down"]
[1025,null,null,"Select from Drop Down","Select from Drop Down","Select from Drop Down",null,null,null,null,null,null,null,null,null,null,null,null,"Select from Drop Down","Select from Drop Down","Select from Drop Down"]
[1026,null,null,"Select from Drop Down","Select from Drop Down","Select from Drop Down",null,null,null,null,null,null,null,null,null,null,null,null,"Select from Drop Down","Select from Drop Down","Select from Drop Down"]
[{"$f":"A1036+1","v":1027},null,null,"Select from Drop Down","Select from Drop Down","Select from Drop Down",null,null,null,null,null,null,null,null,null,null,null,null,"Select from Drop Down","Select from Drop Down","Select from Drop Down"]
[1028,null,null,"Select from Drop Down","Select from Drop Down","Select from Drop Down",null,null,null,null,null,null,null,null,null,null,null,null,"Select from Drop Down","Select from Drop Down","Select from Drop Down"]
[1029,null,null,"Select from Drop Down","Select from Drop Down","Select from Drop Down",null,null,null,null,null,null,null,null,null,null,null,null,"Select from Drop Down","Select from Drop Down","Select from Drop Down"]
[1030,null,null,"Select from Drop Down","Select from Drop Down","Select from Drop Down",null,null,null,null,null,null,null,null,null,null,null,null,"Select from Drop Down","Select from Drop Down","Select from Drop Down"]
[1031,null,null,"Select from Drop Down","Select from Drop Down","Select from Drop Down",null,null,null,null,null,null,null,null,null,null,null,null,"Select from Drop Down","Select from Drop Down","Select from Drop Down"]
[1032,null,null,"Select from Drop Down","Select from Drop Down","Select from Drop Down",null,null,null,null,null,null,null,null,null,null,null,null,"Select from Drop Down","Select from Drop Down","Select from Drop Down"]
[1033,null,null,"Select from Drop Down","Select from Drop Down","Select from Drop Down",null,null,null,null,null,null,null,null,null,null,null,null,"Select from Drop Down","Select from Drop Down","Select from Drop Down"]
[1034,null,null,"Select from Drop Down","Select from Drop Down","Select from Drop Down",null,null,null,null,null,null,null,null,null,null,null,null,"Select from Drop Down","Select from Drop Down","Select from Drop Down"]
[1035,null,null,"Select from Drop Down","Select from Drop Down","Select from Drop Down",null,null,null,null,null,null,null,null,null,null,null,null,"Select from Drop Down","Select from Drop Down","Select from Drop Down"]
[1036,null,null,"Select from Drop Down","Select from Drop Down","Select from Drop Down",null,null,null,null,null,null,null,null,null,null,null,null,"Select from Drop Down","Select from Drop Down","Select from Drop Down"]
[1037,null,null,"Select from Drop Down","Select from Drop Down","Select from Drop Down",null,null,null,null,null,null,null,null,null,null,null,null,"Select from Drop Down","Select from Drop Down","Select from Drop Down"]
[1038,null,null,"Select from Drop Down","Select from Drop Down","Select from Drop Down",null,null,null,null,null,null,null,null,null,null,null,null,"Select from Drop Down","Select from Drop Down","Select from Drop Down"]
[1039,null,null,"Select from Drop Down","Select from Drop Down","Select from Drop Down",null,null,null,null,null,null,null,null,null,null,null,null,"Select from Drop Down","Select from Drop Down","Select from Drop Down"]
[1040,null,null,"Select from Drop Down","Select from Drop Down","Select from Drop Down",null,null,null,null,null,null,null,null,null,null,null,null,"Select from Drop Down","Select from Drop Down","Select from Drop Down"]
[1041,null,null,"Select from Drop Down","Select from Drop Down","Select from Drop Down",null,null,null,null,null,null,null,null,null,null,null,null,"Select from Drop Down","Select from Drop Down","Select from Drop Down"]
[1042,null,null,"Select from Drop Down","Select from Drop Down","Select from Drop Down",null,null,null,null,null,null,null,null,null,null,null,null,"Select from Drop Down","Select from Drop Down","Select from Drop Down"]
[1043,null,null,"Select from Drop Down","Select from Drop Down","Select from Drop Down",null,null,null,null,null,null,null,null,null,null,null,null,"Select from Drop Down","Select from Drop Down","Select from Drop Down"]
[1044,null,null,"Select from Drop Down","Select from Drop Down","Select from Drop Down",null,null,null,null,null,null,null,null,null,null,null,null,"Select from Drop Down","Select from Drop Down","Select from Drop Down"]
[1045,null,null,"Select from Drop Down","Select from Drop Down","Select from Drop Down",null,null,null,null,null,null,null,null,null,null,null,null,"Select from Drop Down","Select from Drop Down","Select from Drop Down"]
[1046,null,null,"Select from Drop Down","Select from Drop Down","Select from Drop Down",null,null,null,null,null,null,null,null,null,null,null,null,"Select from Drop Down","Select from Drop Down","Select from Drop Down"]
[1047,null,null,"Select from Drop Down","Select from Drop Down","Select from Drop Down",null,null,null,null,null,null,null,null,null,null,null,null,"Select from Drop Down","Select from Drop Down","Select from Drop Down"]
[1048,null,null,"Select from Drop Down","Select from Drop Down","Select from Drop Down",null,null,null,null,null,null,null,null,null,null,null,null,"Select from Drop Down","Select from Drop Down","Select from Drop Down"]
[1049,null,null,"Select from Drop Down","Select from Drop Down","Select from Drop Down",null,null,null,null,null,null,null,null,null,null,null,null,"Select from Drop Down","Select from Drop Down","Select from Drop Down"]
[1050,null,null,"Select from Drop Down","Select from Drop Down","Select from Drop Down",null,null,null,null,null,null,null,null,null,null,null,null,"Select from Drop Down","Select from Drop Down","Select from Drop Down"]
[1051,null,null,"Select from Drop Down","Select from Drop Down","Select from Drop Down",null,null,null,null,null,null,null,null,null,null,null,null,"Select from Drop Down","Select from Drop Down","Select from Drop Down"]
[1052,null,null,"Select from Drop Down","Select from Drop Down","Select from Drop Down",null,null,null,null,null,null,null,null,null,null,null,null,"Select from Drop Down","Select from Drop Down","Select from Drop Down"]
[1053,null,null,"Select from Drop Down","Select from Drop Down","Select from Drop Down",null,null,null,null,null,null,null,null,null,null,null,null,"Select from Drop Down","Select from Drop Down","Select from Drop Down"]
[1054,null,null,"Select from Drop Down","Select from Drop Down","Select from Drop Down",null,null,null,null,null,null,null,null,null,null,null,null,"Select from Drop Down","Select from Drop Down","Select from Drop Down"]
[1055,null,null,"Select from Drop Down","Select from Drop Down","Select from Drop Down",null,null,null,null,null,null,null,null,null,null,null,null,"Select from Drop Down","Select from Drop Down","Select from Drop Down"]
[1056,null,null,"Select from Drop Down","Select from Drop Down","Select from Drop Down",null,null,null,null,null,null,null,null,null,null,null,null,"Select from Drop Down","Select from Drop Down","Select from Drop Down"]
[1057,null,null,"Select from Drop Down","Select from Drop Down","Select from Drop Down",null,null,null,null,null,null,null,null,null,null,null,null,"Select from Drop Down","Select from Drop Down","Select from Drop Down"]
[1058,null,null,"Select from Drop Down","Select from Drop Down","Select from Drop Down",null,null,null,null,null,null,null,null,null,null,null,null,"Select from Drop Down","Select from Drop Down","Select from Drop Down"]
[1059,null,null,"Select from Drop Down","Select from Drop Down","Select from Drop Down",null,null,null,null,null,null,null,null,null,null,null,null,"Select from Drop Down","Select from Drop Down","Select from Drop Down"]
[1060,null,null,"Select from Drop Down","Select from Drop Down","Select from Drop Down",null,null,null,null,null,null,null,null,null,null,null,null,"Select from Drop Down","Select from Drop Down","Select from Drop Down"]
[1061,null,null,"Select from Drop Down","Select from Drop Down","Select from Drop Down",null,null,null,null,null,null,null,null,null,null,null,null,"Select from Drop Down","Select from Drop Down","Select from Drop Down"]
[1062,null,null,"Select from Drop Down","Select from Drop Down","Select from Drop Down",null,null,null,null,null,null,null,null,null,null,null,null,"Select from Drop Down","Select from Drop Down","Select from Drop Down"]
[1063,null,null,"Select from Drop Down","Select from Drop Down","Select from Drop Down",null,null,null,null,null,null,null,null,null,null,null,null,"Select from Drop Down","Select from Drop Down","Select from Drop Down"]
[1064,null,null,"Select from Drop Down","Select from Drop Down","Select from Drop Down",null,null,null,null,null,null,null,null,null,null,null,null,"Select from Drop Down","Select from Drop Down","Select from Drop Down"]
[1065,null,null,"Select from Drop Down","Select from Drop Down","Select from Drop Down",null,null,null,null,null,null,null,null,null,null,null,null,"Select from Drop Down","Select from Drop Down","Select from Drop Down"]
[1066,null,null,"Select from Drop Down","Select from Drop Down","Select from Drop Down",null,null,null,null,null,null,null,null,null,null,null,null,"Select from Drop Down","Select from Drop Down","Select from Drop Down"]
[1067,null,null,"Select from Drop Down","Select from Drop Down","Select from Drop Down",null,null,null,null,null,null,null,null,null,null,null,null,"Select from Drop Down","Select from Drop Down","Select from Drop Down"]
[1068,null,null,"Select from Drop Down","Select from Drop Down","Select from Drop Down",null,null,null,null,null,null,null,null,null,null,null,null,"Select from Drop Down","Select from Drop Down","Select from Drop Down"]
[1069,null,null,"Select from Drop Down","Select from Drop Down","Select from Drop Down",null,null,null,null,null,null,null,null,null,null,null,null,"Select from Drop Down","Select from Drop Down","Select from Drop Down"]
[1070,null,null,"Select from Drop Down","Select from Drop Down","Select from Drop Down",null,null,null,null,null,null,null,null,null,null,null,null,"Select from Drop Down","Select from Drop Down","Select from Drop Down"]
[1071,null,null,"Select from Drop Down","Select from Drop Down","Select from Drop Down",null,null,null,null,null,null,null,null,null,null,null,null,"Select from Drop Down","Select from Drop Down","Select from Drop Down"]
[1072,null,null,"Select from Drop Down","Select from Drop Down","Select from Drop Down",null,null,null,null,null,null,null,null,null,null,null,null,"Select from Drop Down","Select from Drop Down","Select from Drop Down"]
[1073,null,null,"Select from Drop Down","Select from Drop Down","Select from Drop Down",null,null,null,null,null,null,null,null,null,null,null,null,"Select from Drop Down","Select from Drop Down","Select from Drop Down"]
[1074,null,null,"Select from Drop Down","Select from Drop Down","Select from Drop Down",null,null,null,null,null,null,null,null,null,null,null,null,"Select from Drop Down","Select from Drop Down","Select from Drop Down"]
[1075,null,null,"Select from Drop Down","Select from Drop Down","Select from Drop Down",null,null,null,null,null,null,null,null,null,null,null,null,"Select from Drop Down","Select from Drop Down","Select from Drop Down"]
[1076,null,null,"Select from Drop Down","Select from Drop Down","Select from Drop Down",null,null,null,null,null,null,null,null,null,null,null,null,"Select from Drop Down","Select from Drop Down","Select from Drop Down"]
[1077,null,null,"Select from Drop Down","Select from Drop Down","Select from Drop Down",null,null,null,null,null,null,null,null,null,null,null,null,"Select from Drop Down","Select from Drop Down","Select from Drop Down"]
[1078,null,null,"Select from Drop Down","Select from Drop Down","Select from Drop Down",null,null,null,null,null,null,null,null,null,null,null,null,"Select from Drop Down","Select from Drop Down","Select from Drop Down"]
[1079,null,null,"Select from Drop Down","Select from Drop Down","Select from Drop Down",null,null,null,null,null,null,null,null,null,null,null,null,"Select from Drop Down","Select from Drop Down","Select from Drop Down"]
[1080,null,null,"Select from Drop Down","Select from Drop Down","Select from Drop Down",null,null,null,null,null,null,null,null,null,null,null,null,"Select from Drop Down","Select from Drop Down","Select from Drop Down"]
[1081,null,null,"Select from Drop Down","Select from Drop Down","Select from Drop Down",null,null,null,null,null,null,null,null,null,null,null,null,"Select from Drop Down","Select from Drop Down","Select from Drop Down"]
[1082,null,null,"Select from Drop Down","Select from Drop Down","Select from Drop Down",null,null,null,null,null,null,null,null,null,null,null,null,"Select from Drop Down","Select from Drop Down","Select from Drop Down"]
[1083,null,null,"Select from Drop Down","Select from Drop Down","Select from Drop Down",null,null,null,null,null,null,null,null,null,null,null,null,"Select from Drop Down","Select from Drop Down","Select from Drop Down"]
[1084,null,null,"Select from Drop Down","Select from Drop Down","Select from Drop Down",null,null,null,null,null,null,null,null,null,null,null,null,"Select from Drop Down","Select from Drop Down","Select from Drop Down"]
[1085,null,null,"Select from Drop Down","Select from Drop Down","Select from Drop Down",null,null,null,null,null,null,null,null,null,null,null,null,"Select from Drop Down","Select from Drop Down","Select from Drop Down"]
[1086,null,null,"Select from Drop Down","Select from Drop Down","Select from Drop Down",null,null,null,null,null,null,null,null,null,null,null,null,"Select from Drop Down","Select from Drop Down","Select from Drop Down"]
[1087,null,null,"Select from Drop Down","Select from Drop Down","Select from Drop Down",null,null,null,null,null,null,null,null,null,null,null,null,"Select from Drop Down","Select from Drop Down","Select from Drop Down"]
[1088,null,null,"Select from Drop Down","Select from Drop Down","Select from Drop Down",null,null,null,null,null,null,null,null,null,null,null,null,"Select from Drop Down","Select from Drop Down","Select from Drop Down"]
[1089,null,null,"Select from Drop Down","Select from Drop Down","Select from Drop Down",null,null,null,null,null,null,null,null,null,null,null,null,"Select from Drop Down","Select from Drop Down","Select from Drop Down"]
[1090,null,null,"Select from Drop Down","Select from Drop Down","Select from Drop Down",null,null,null,null,null,null,null,null,null,null,null,null,"Select from Drop Down","Select from Drop Down","Select from Drop Down"]
[{"$f":"A1100+1","v":1091},null,null,"Select from Drop Down","Select from Drop Down","Select from Drop Down",null,null,null,null,null,null,null,null,null,null,null,null,"Select from Drop Down","Select from Drop Down","Select from Drop Down"]
[1092,null,null,"Select from Drop Down","Select from Drop Down","Select from Drop Down",null,null,null,null,null,null,null,null,null,null,null,null,"Select from Drop Down","Select from Drop Down","Select from Drop Down"]
[1093,null,null,"Select from Drop Down","Select from Drop Down","Select from Drop Down",null,null,null,null,null,null,null,null,null,null,null,null,"Select from Drop Down","Select from Drop Down","Select from Drop Down"]
[1094,null,null,"Select from Drop Down","Select from Drop Down","Select from Drop Down",null,null,null,null,null,null,null,null,null,null,null,null,"Select from Drop Down","Select from Drop Down","Select from Drop Down"]
[1095,null,null,"Select from Drop Down","Select from Drop Down","Select from Drop Down",null,null,null,null,null,null,null,null,null,null,null,null,"Select from Drop Down","Select from Drop Down","Select from Drop Down"]
[1096,null,null,"Select from Drop Down","Select from Drop Down","Select from Drop Down",null,null,null,null,null,null,null,null,null,null,null,null,"Select from Drop Down","Select from Drop Down","Select from Drop Down"]
[1097,null,null,"Select from Drop Down","Select from Drop Down","Select from Drop Down",null,null,null,null,null,null,null,null,null,null,null,null,"Select from Drop Down","Select from Drop Down","Select from Drop Down"]
[1098,null,null,"Select from Drop Down","Select from Drop Down","Select from Drop Down",null,null,null,null,null,null,null,null,null,null,null,null,"Select from Drop Down","Select from Drop Down","Select from Drop Down"]
[1099,null,null,"Select from Drop Down","Select from Drop Down","Select from Drop Down",null,null,null,null,null,null,null,null,null,null,null,null,"Select from Drop Down","Select from Drop Down","Select from Drop Down"]
[1100,null,null,"Select from Drop Down","Select from Drop Down","Select from Drop Down",null,null,null,null,null,null,null,null,null,null,null,null,"Select from Drop Down","Select from Drop Down","Select from Drop Down"]
[1101,null,null,"Select from Drop Down","Select from Drop Down","Select from Drop Down",null,null,null,null,null,null,null,null,null,null,null,null,"Select from Drop Down","Select from Drop Down","Select from Drop Down"]
[1102,null,null,"Select from Drop Down","Select from Drop Down","Select from Drop Down",null,null,null,null,null,null,null,null,null,null,null,null,"Select from Drop Down","Select from Drop Down","Select from Drop Down"]
[1103,null,null,"Select from Drop Down","Select from Drop Down","Select from Drop Down",null,null,null,null,null,null,null,null,null,null,null,null,"Select from Drop Down","Select from Drop Down","Select from Drop Down"]
[1104,null,null,"Select from Drop Down","Select from Drop Down","Select from Drop Down",null,null,null,null,null,null,null,null,null,null,null,null,"Select from Drop Down","Select from Drop Down","Select from Drop Down"]
[1105,null,null,"Select from Drop Down","Select from Drop Down","Select from Drop Down",null,null,null,null,null,null,null,null,null,null,null,null,"Select from Drop Down","Select from Drop Down","Select from Drop Down"]
[1106,null,null,"Select from Drop Down","Select from Drop Down","Select from Drop Down",null,null,null,null,null,null,null,null,null,null,null,null,"Select from Drop Down","Select from Drop Down","Select from Drop Down"]
[1107,null,null,"Select from Drop Down","Select from Drop Down","Select from Drop Down",null,null,null,null,null,null,null,null,null,null,null,null,"Select from Drop Down","Select from Drop Down","Select from Drop Down"]
[1108,null,null,"Select from Drop Down","Select from Drop Down","Select from Drop Down",null,null,null,null,null,null,null,null,null,null,null,null,"Select from Drop Down","Select from Drop Down","Select from Drop Down"]
[1109,null,null,"Select from Drop Down","Select from Drop Down","Select from Drop Down",null,null,null,null,null,null,null,null,null,null,null,null,"Select from Drop Down","Select from Drop Down","Select from Drop Down"]
[1110,null,null,"Select from Drop Down","Select from Drop Down","Select from Drop Down",null,null,null,null,null,null,null,null,null,null,null,null,"Select from Drop Down","Select from Drop Down","Select from Drop Down"]
[1111,null,null,"Select from Drop Down","Select from Drop Down","Select from Drop Down",null,null,null,null,null,null,null,null,null,null,null,null,"Select from Drop Down","Select from Drop Down","Select from Drop Down"]
[1112,null,null,"Select from Drop Down","Select from Drop Down","Select from Drop Down",null,null,null,null,null,null,null,null,null,null,null,null,"Select from Drop Down","Select from Drop Down","Select from Drop Down"]
[1113,null,null,"Select from Drop Down","Select from Drop Down","Select from Drop Down",null,null,null,null,null,null,null,null,null,null,null,null,"Select from Drop Down","Select from Drop Down","Select from Drop Down"]
[1114,null,null,"Select from Drop Down","Select from Drop Down","Select from Drop Down",null,null,null,null,null,null,null,null,null,null,null,null,"Select from Drop Down","Select from Drop Down","Select from Drop Down"]
[1115,null,null,"Select from Drop Down","Select from Drop Down","Select from Drop Down",null,null,null,null,null,null,null,null,null,null,null,null,"Select from Drop Down","Select from Drop Down","Select from Drop Down"]
[1116,null,null,"Select from Drop Down","Select from Drop Down","Select from Drop Down",null,null,null,null,null,null,null,null,null,null,null,null,"Select from Drop Down","Select from Drop Down","Select from Drop Down"]
[1117,null,null,"Select from Drop Down","Select from Drop Down","Select from Drop Down",null,null,null,null,null,null,null,null,null,null,null,null,"Select from Drop Down","Select from Drop Down","Select from Drop Down"]
[1118,null,null,"Select from Drop Down","Select from Drop Down","Select from Drop Down",null,null,null,null,null,null,null,null,null,null,null,null,"Select from Drop Down","Select from Drop Down","Select from Drop Down"]
[1119,null,null,"Select from Drop Down","Select from Drop Down","Select from Drop Down",null,null,null,null,null,null,null,null,null,null,null,null,"Select from Drop Down","Select from Drop Down","Select from Drop Down"]
[1120,null,null,"Select from Drop Down","Select from Drop Down","Select from Drop Down",null,null,null,null,null,null,null,null,null,null,null,null,"Select from Drop Down","Select from Drop Down","Select from Drop Down"]
[1121,null,null,"Select from Drop Down","Select from Drop Down","Select from Drop Down",null,null,null,null,null,null,null,null,null,null,null,null,"Select from Drop Down","Select from Drop Down","Select from Drop Down"]
[1122,null,null,"Select from Drop Down","Select from Drop Down","Select from Drop Down",null,null,null,null,null,null,null,null,null,null,null,null,"Select from Drop Down","Select from Drop Down","Select from Drop Down"]
[1123,null,null,"Select from Drop Down","Select from Drop Down","Select from Drop Down",null,null,null,null,null,null,null,null,null,null,null,null,"Select from Drop Down","Select from Drop Down","Select from Drop Down"]
[1124,null,null,"Select from Drop Down","Select from Drop Down","Select from Drop Down",null,null,null,null,null,null,null,null,null,null,null,null,"Select from Drop Down","Select from Drop Down","Select from Drop Down"]
[1125,null,null,"Select from Drop Down","Select from Drop Down","Select from Drop Down",null,null,null,null,null,null,null,null,null,null,null,null,"Select from Drop Down","Select from Drop Down","Select from Drop Down"]
[1126,null,null,"Select from Drop Down","Select from Drop Down","Select from Drop Down",null,null,null,null,null,null,null,null,null,null,null,null,"Select from Drop Down","Select from Drop Down","Select from Drop Down"]
[1127,null,null,"Select from Drop Down","Select from Drop Down","Select from Drop Down",null,null,null,null,null,null,null,null,null,null,null,null,"Select from Drop Down","Select from Drop Down","Select from Drop Down"]
[1128,null,null,"Select from Drop Down","Select from Drop Down","Select from Drop Down",null,null,null,null,null,null,null,null,null,null,null,null,"Select from Drop Down","Select from Drop Down","Select from Drop Down"]
[1129,null,null,"Select from Drop Down","Select from Drop Down","Select from Drop Down",null,null,null,null,null,null,null,null,null,null,null,null,"Select from Drop Down","Select from Drop Down","Select from Drop Down"]
[1130,null,null,"Select from Drop Down","Select from Drop Down","Select from Drop Down",null,null,null,null,null,null,null,null,null,null,null,null,"Select from Drop Down","Select from Drop Down","Select from Drop Down"]
[1131,null,null,"Select from Drop Down","Select from Drop Down","Select from Drop Down",null,null,null,null,null,null,null,null,null,null,null,null,"Select from Drop Down","Select from Drop Down","Select from Drop Down"]
[1132,null,null,"Select from Drop Down","Select from Drop Down","Select from Drop Down",null,null,null,null,null,null,null,null,null,null,null,null,"Select from Drop Down","Select from Drop Down","Select from Drop Down"]
[1133,null,null,"Select from Drop Down","Select from Drop Down","Select from Drop Down",null,null,null,null,null,null,null,null,null,null,null,null,"Select from Drop Down","Select from Drop Down","Select from Drop Down"]
[1134,null,null,"Select from Drop Down","Select from Drop Down","Select from Drop Down",null,null,null,null,null,null,null,null,null,null,null,null,"Select from Drop Down","Select from Drop Down","Select from Drop Down"]
[1135,null,null,"Select from Drop Down","Select from Drop Down","Select from Drop Down",null,null,null,null,null,null,null,null,null,null,null,null,"Select from Drop Down","Select from Drop Down","Select from Drop Down"]
[1136,null,null,"Select from Drop Down","Select from Drop Down","Select from Drop Down",null,null,null,null,null,null,null,null,null,null,null,null,"Select from Drop Down","Select from Drop Down","Select from Drop Down"]
[1137,null,null,"Select from Drop Down","Select from Drop Down","Select from Drop Down",null,null,null,null,null,null,null,null,null,null,null,null,"Select from Drop Down","Select from Drop Down","Select from Drop Down"]
[1138,null,null,"Select from Drop Down","Select from Drop Down","Select from Drop Down",null,null,null,null,null,null,null,null,null,null,null,null,"Select from Drop Down","Select from Drop Down","Select from Drop Down"]
[1139,null,null,"Select from Drop Down","Select from Drop Down","Select from Drop Down",null,null,null,null,null,null,null,null,null,null,null,null,"Select from Drop Down","Select from Drop Down","Select from Drop Down"]
[1140,null,null,"Select from Drop Down","Select from Drop Down","Select from Drop Down",null,null,null,null,null,null,null,null,null,null,null,null,"Select from Drop Down","Select from Drop Down","Select from Drop Down"]
[1141,null,null,"Select from Drop Down","Select from Drop Down","Select from Drop Down",null,null,null,null,null,null,null,null,null,null,null,null,"Select from Drop Down","Select from Drop Down","Select from Drop Down"]
[1142,null,null,"Select from Drop Down","Select from Drop Down","Select from Drop Down",null,null,null,null,null,null,null,null,null,null,null,null,"Select from Drop Down","Select from Drop Down","Select from Drop Down"]
[1143,null,null,"Select from Drop Down","Select from Drop Down","Select from Drop Down",null,null,null,null,null,null,null,null,null,null,null,null,"Select from Drop Down","Select from Drop Down","Select from Drop Down"]
[1144,null,null,"Select from Drop Down","Select from Drop Down","Select from Drop Down",null,null,null,null,null,null,null,null,null,null,null,null,"Select from Drop Down","Select from Drop Down","Select from Drop Down"]
[1145,null,null,"Select from Drop Down","Select from Drop Down","Select from Drop Down",null,null,null,null,null,null,null,null,null,null,null,null,"Select from Drop Down","Select from Drop Down","Select from Drop Down"]
[1146,null,null,"Select from Drop Down","Select from Drop Down","Select from Drop Down",null,null,null,null,null,null,null,null,null,null,null,null,"Select from Drop Down","Select from Drop Down","Select from Drop Down"]
[1147,null,null,"Select from Drop Down","Select from Drop Down","Select from Drop Down",null,null,null,null,null,null,null,null,null,null,null,null,"Select from Drop Down","Select from Drop Down","Select from Drop Down"]
[1148,null,null,"Select from Drop Down","Select from Drop Down","Select from Drop Down",null,null,null,null,null,null,null,null,null,null,null,null,"Select from Drop Down","Select from Drop Down","Select from Drop Down"]
[1149,null,null,"Select from Drop Down","Select from Drop Down","Select from Drop Down",null,null,null,null,null,null,null,null,null,null,null,null,"Select from Drop Down","Select from Drop Down","Select from Drop Down"]
[1150,null,null,"Select from Drop Down","Select from Drop Down","Select from Drop Down",null,null,null,null,null,null,null,null,null,null,null,null,"Select from Drop Down","Select from Drop Down","Select from Drop Down"]
[1151,null,null,"Select from Drop Down","Select from Drop Down","Select from Drop Down",null,null,null,null,null,null,null,null,null,null,null,null,"Select from Drop Down","Select from Drop Down","Select from Drop Down"]
[1152,null,null,"Select from Drop Down","Select from Drop Down","Select from Drop Down",null,null,null,null,null,null,null,null,null,null,null,null,"Select from Drop Down","Select from Drop Down","Select from Drop Down"]
[1153,null,null,"Select from Drop Down","Select from Drop Down","Select from Drop Down",null,null,null,null,null,null,null,null,null,null,null,null,"Select from Drop Down","Select from Drop Down","Select from Drop Down"]
[1154,null,null,"Select from Drop Down","Select from Drop Down","Select from Drop Down",null,null,null,null,null,null,null,null,null,null,null,null,"Select from Drop Down","Select from Drop Down","Select from Drop Down"]
[{"$f":"A1164+1","v":1155},null,null,"Select from Drop Down","Select from Drop Down","Select from Drop Down",null,null,null,null,null,null,null,null,null,null,null,null,"Select from Drop Down","Select from Drop Down","Select from Drop Down"]
[1156,null,null,"Select from Drop Down","Select from Drop Down","Select from Drop Down",null,null,null,null,null,null,null,null,null,null,null,null,"Select from Drop Down","Select from Drop Down","Select from Drop Down"]
[1157,null,null,"Select from Drop Down","Select from Drop Down","Select from Drop Down",null,null,null,null,null,null,null,null,null,null,null,null,"Select from Drop Down","Select from Drop Down","Select from Drop Down"]
[1158,null,null,"Select from Drop Down","Select from Drop Down","Select from Drop Down",null,null,null,null,null,null,null,null,null,null,null,null,"Select from Drop Down","Select from Drop Down","Select from Drop Down"]
[1159,null,null,"Select from Drop Down","Select from Drop Down","Select from Drop Down",null,null,null,null,null,null,null,null,null,null,null,null,"Select from Drop Down","Select from Drop Down","Select from Drop Down"]
[1160,null,null,"Select from Drop Down","Select from Drop Down","Select from Drop Down",null,null,null,null,null,null,null,null,null,null,null,null,"Select from Drop Down","Select from Drop Down","Select from Drop Down"]
[1161,null,null,"Select from Drop Down","Select from Drop Down","Select from Drop Down",null,null,null,null,null,null,null,null,null,null,null,null,"Select from Drop Down","Select from Drop Down","Select from Drop Down"]
[1162,null,null,"Select from Drop Down","Select from Drop Down","Select from Drop Down",null,null,null,null,null,null,null,null,null,null,null,null,"Select from Drop Down","Select from Drop Down","Select from Drop Down"]
[1163,null,null,"Select from Drop Down","Select from Drop Down","Select from Drop Down",null,null,null,null,null,null,null,null,null,null,null,null,"Select from Drop Down","Select from Drop Down","Select from Drop Down"]
[1164,null,null,"Select from Drop Down","Select from Drop Down","Select from Drop Down",null,null,null,null,null,null,null,null,null,null,null,null,"Select from Drop Down","Select from Drop Down","Select from Drop Down"]
[1165,null,null,"Select from Drop Down","Select from Drop Down","Select from Drop Down",null,null,null,null,null,null,null,null,null,null,null,null,"Select from Drop Down","Select from Drop Down","Select from Drop Down"]
[1166,null,null,"Select from Drop Down","Select from Drop Down","Select from Drop Down",null,null,null,null,null,null,null,null,null,null,null,null,"Select from Drop Down","Select from Drop Down","Select from Drop Down"]
[1167,null,null,"Select from Drop Down","Select from Drop Down","Select from Drop Down",null,null,null,null,null,null,null,null,null,null,null,null,"Select from Drop Down","Select from Drop Down","Select from Drop Down"]
[1168,null,null,"Select from Drop Down","Select from Drop Down","Select from Drop Down",null,null,null,null,null,null,null,null,null,null,null,null,"Select from Drop Down","Select from Drop Down","Select from Drop Down"]
[1169,null,null,"Select from Drop Down","Select from Drop Down","Select from Drop Down",null,null,null,null,null,null,null,null,null,null,null,null,"Select from Drop Down","Select from Drop Down","Select from Drop Down"]
[1170,null,null,"Select from Drop Down","Select from Drop Down","Select from Drop Down",null,null,null,null,null,null,null,null,null,null,null,null,"Select from Drop Down","Select from Drop Down","Select from Drop Down"]
[1171,null,null,"Select from Drop Down","Select from Drop Down","Select from Drop Down",null,null,null,null,null,null,null,null,null,null,null,null,"Select from Drop Down","Select from Drop Down","Select from Drop Down"]
[1172,null,null,"Select from Drop Down","Select from Drop Down","Select from Drop Down",null,null,null,null,null,null,null,null,null,null,null,null,"Select from Drop Down","Select from Drop Down","Select from Drop Down"]
[1173,null,null,"Select from Drop Down","Select from Drop Down","Select from Drop Down",null,null,null,null,null,null,null,null,null,null,null,null,"Select from Drop Down","Select from Drop Down","Select from Drop Down"]
[1174,null,null,"Select from Drop Down","Select from Drop Down","Select from Drop Down",null,null,null,null,null,null,null,null,null,null,null,null,"Select from Drop Down","Select from Drop Down","Select from Drop Down"]
[1175,null,null,"Select from Drop Down","Select from Drop Down","Select from Drop Down",null,null,null,null,null,null,null,null,null,null,null,null,"Select from Drop Down","Select from Drop Down","Select from Drop Down"]
[1176,null,null,"Select from Drop Down","Select from Drop Down","Select from Drop Down",null,null,null,null,null,null,null,null,null,null,null,null,"Select from Drop Down","Select from Drop Down","Select from Drop Down"]
[1177,null,null,"Select from Drop Down","Select from Drop Down","Select from Drop Down",null,null,null,null,null,null,null,null,null,null,null,null,"Select from Drop Down","Select from Drop Down","Select from Drop Down"]
[1178,null,null,"Select from Drop Down","Select from Drop Down","Select from Drop Down",null,null,null,null,null,null,null,null,null,null,null,null,"Select from Drop Down","Select from Drop Down","Select from Drop Down"]
[1179,null,null,"Select from Drop Down","Select from Drop Down","Select from Drop Down",null,null,null,null,null,null,null,null,null,null,null,null,"Select from Drop Down","Select from Drop Down","Select from Drop Down"]
[1180,null,null,"Select from Drop Down","Select from Drop Down","Select from Drop Down",null,null,null,null,null,null,null,null,null,null,null,null,"Select from Drop Down","Select from Drop Down","Select from Drop Down"]
[1181,null,null,"Select from Drop Down","Select from Drop Down","Select from Drop Down",null,null,null,null,null,null,null,null,null,null,null,null,"Select from Drop Down","Select from Drop Down","Select from Drop Down"]
[1182,null,null,"Select from Drop Down","Select from Drop Down","Select from Drop Down",null,null,null,null,null,null,null,null,null,null,null,null,"Select from Drop Down","Select from Drop Down","Select from Drop Down"]
[1183,null,null,"Select from Drop Down","Select from Drop Down","Select from Drop Down",null,null,null,null,null,null,null,null,null,null,null,null,"Select from Drop Down","Select from Drop Down","Select from Drop Down"]
[1184,null,null,"Select from Drop Down","Select from Drop Down","Select from Drop Down",null,null,null,null,null,null,null,null,null,null,null,null,"Select from Drop Down","Select from Drop Down","Select from Drop Down"]
[1185,null,null,"Select from Drop Down","Select from Drop Down","Select from Drop Down",null,null,null,null,null,null,null,null,null,null,null,null,"Select from Drop Down","Select from Drop Down","Select from Drop Down"]
[1186,null,null,"Select from Drop Down","Select from Drop Down","Select from Drop Down",null,null,null,null,null,null,null,null,null,null,null,null,"Select from Drop Down","Select from Drop Down","Select from Drop Down"]
[1187,null,null,"Select from Drop Down","Select from Drop Down","Select from Drop Down",null,null,null,null,null,null,null,null,null,null,null,null,"Select from Drop Down","Select from Drop Down","Select from Drop Down"]
[1188,null,null,"Select from Drop Down","Select from Drop Down","Select from Drop Down",null,null,null,null,null,null,null,null,null,null,null,null,"Select from Drop Down","Select from Drop Down","Select from Drop Down"]
[1189,null,null,"Select from Drop Down","Select from Drop Down","Select from Drop Down",null,null,null,null,null,null,null,null,null,null,null,null,"Select from Drop Down","Select from Drop Down","Select from Drop Down"]
[1190,null,null,"Select from Drop Down","Select from Drop Down","Select from Drop Down",null,null,null,null,null,null,null,null,null,null,null,null,"Select from Drop Down","Select from Drop Down","Select from Drop Down"]
[1191,null,null,"Select from Drop Down","Select from Drop Down","Select from Drop Down",null,null,null,null,null,null,null,null,null,null,null,null,"Select from Drop Down","Select from Drop Down","Select from Drop Down"]
[1192,null,null,"Select from Drop Down","Select from Drop Down","Select from Drop Down",null,null,null,null,null,null,null,null,null,null,null,null,"Select from Drop Down","Select from Drop Down","Select from Drop Down"]
[1193,null,null,"Select from Drop Down","Select from Drop Down","Select from Drop Down",null,null,null,null,null,null,null,null,null,null,null,null,"Select from Drop Down","Select from Drop Down","Select from Drop Down"]
[1194,null,null,"Select from Drop Down","Select from Drop Down","Select from Drop Down",null,null,null,null,null,null,null,null,null,null,null,null,"Select from Drop Down","Select from Drop Down","Select from Drop Down"]
[1195,null,null,"Select from Drop Down","Select from Drop Down","Select from Drop Down",null,null,null,null,null,null,null,null,null,null,null,null,"Select from Drop Down","Select from Drop Down","Select from Drop Down"]
[1196,null,null,"Select from Drop Down","Select from Drop Down","Select from Drop Down",null,null,null,null,null,null,null,null,null,null,null,null,"Select from Drop Down","Select from Drop Down","Select from Drop Down"]
[1197,null,null,"Select from Drop Down","Select from Drop Down","Select from Drop Down",null,null,null,null,null,null,null,null,null,null,null,null,"Select from Drop Down","Select from Drop Down","Select from Drop Down"]
[1198,null,null,"Select from Drop Down","Select from Drop Down","Select from Drop Down",null,null,null,null,null,null,null,null,null,null,null,null,"Select from Drop Down","Select from Drop Down","Select from Drop Down"]
[1199,null,null,"Select from Drop Down","Select from Drop Down","Select from Drop Down",null,null,null,null,null,null,null,null,null,null,null,null,"Select from Drop Down","Select from Drop Down","Select from Drop Down"]
[1200,null,null,"Select from Drop Down","Select from Drop Down","Select from Drop Down",null,null,null,null,null,null,null,null,null,null,null,null,"Select from Drop Down","Select from Drop Down","Select from Drop Down"]
[1201,null,null,"Select from Drop Down","Select from Drop Down","Select from Drop Down",null,null,null,null,null,null,null,null,null,null,null,null,"Select from Drop Down","Select from Drop Down","Select from Drop Down"]
[1202,null,null,"Select from Drop Down","Select from Drop Down","Select from Drop Down",null,null,null,null,null,null,null,null,null,null,null,null,"Select from Drop Down","Select from Drop Down","Select from Drop Down"]
[1203,null,null,"Select from Drop Down","Select from Drop Down","Select from Drop Down",null,null,null,null,null,null,null,null,null,null,null,null,"Select from Drop Down","Select from Drop Down","Select from Drop Down"]
[1204,null,null,"Select from Drop Down","Select from Drop Down","Select from Drop Down",null,null,null,null,null,null,null,null,null,null,null,null,"Select from Drop Down","Select from Drop Down","Select from Drop Down"]
[1205,null,null,"Select from Drop Down","Select from Drop Down","Select from Drop Down",null,null,null,null,null,null,null,null,null,null,null,null,"Select from Drop Down","Select from Drop Down","Select from Drop Down"]
[1206,null,null,"Select from Drop Down","Select from Drop Down","Select from Drop Down",null,null,null,null,null,null,null,null,null,null,null,null,"Select from Drop Down","Select from Drop Down","Select from Drop Down"]
[1207,null,null,"Select from Drop Down","Select from Drop Down","Select from Drop Down",null,null,null,null,null,null,null,null,null,null,null,null,"Select from Drop Down","Select from Drop Down","Select from Drop Down"]
[1208,null,null,"Select from Drop Down","Select from Drop Down","Select from Drop Down",null,null,null,null,null,null,null,null,null,null,null,null,"Select from Drop Down","Select from Drop Down","Select from Drop Down"]
[1209,null,null,"Select from Drop Down","Select from Drop Down","Select from Drop Down",null,null,null,null,null,null,null,null,null,null,null,null,"Select from Drop Down","Select from Drop Down","Select from Drop Down"]
[1210,null,null,"Select from Drop Down","Select from Drop Down","Select from Drop Down",null,null,null,null,null,null,null,null,null,null,null,null,"Select from Drop Down","Select from Drop Down","Select from Drop Down"]
[1211,null,null,"Select from Drop Down","Select from Drop Down","Select from Drop Down",null,null,null,null,null,null,null,null,null,null,null,null,"Select from Drop Down","Select from Drop Down","Select from Drop Down"]
[1212,null,null,"Select from Drop Down","Select from Drop Down","Select from Drop Down",null,null,null,null,null,null,null,null,null,null,null,null,"Select from Drop Down","Select from Drop Down","Select from Drop Down"]
[1213,null,null,"Select from Drop Down","Select from Drop Down","Select from Drop Down",null,null,null,null,null,null,null,null,null,null,null,null,"Select from Drop Down","Select from Drop Down","Select from Drop Down"]
[1214,null,null,"Select from Drop Down","Select from Drop Down","Select from Drop Down",null,null,null,null,null,null,null,null,null,null,null,null,"Select from Drop Down","Select from Drop Down","Select from Drop Down"]
[1215,null,null,"Select from Drop Down","Select from Drop Down","Select from Drop Down",null,null,null,null,null,null,null,null,null,null,null,null,"Select from Drop Down","Select from Drop Down","Select from Drop Down"]
[1216,null,null,"Select from Drop Down","Select from Drop Down","Select from Drop Down",null,null,null,null,null,null,null,null,null,null,null,null,"Select from Drop Down","Select from Drop Down","Select from Drop Down"]
[1217,null,null,"Select from Drop Down","Select from Drop Down","Select from Drop Down",null,null,null,null,null,null,null,null,null,null,null,null,"Select from Drop Down","Select from Drop Down","Select from Drop Down"]
[1218,null,null,"Select from Drop Down","Select from Drop Down","Select from Drop Down",null,null,null,null,null,null,null,null,null,null,null,null,"Select from Drop Down","Select from Drop Down","Select from Drop Down"]
[{"$f":"A1228+1","v":1219},null,null,"Select from Drop Down","Select from Drop Down","Select from Drop Down",null,null,null,null,null,null,null,null,null,null,null,null,"Select from Drop Down","Select from Drop Down","Select from Drop Down"]
[1220,null,null,"Select from Drop Down","Select from Drop Down","Select from Drop Down",null,null,null,null,null,null,null,null,null,null,null,null,"Select from Drop Down","Select from Drop Down","Select from Drop Down"]
[1221,null,null,"Select from Drop Down","Select from Drop Down","Select from Drop Down",null,null,null,null,null,null,null,null,null,null,null,null,"Select from Drop Down","Select from Drop Down","Select from Drop Down"]
[1222,null,null,"Select from Drop Down","Select from Drop Down","Select from Drop Down",null,null,null,null,null,null,null,null,null,null,null,null,"Select from Drop Down","Select from Drop Down","Select from Drop Down"]
[1223,null,null,"Select from Drop Down","Select from Drop Down","Select from Drop Down",null,null,null,null,null,null,null,null,null,null,null,null,"Select from Drop Down","Select from Drop Down","Select from Drop Down"]
[1224,null,null,"Select from Drop Down","Select from Drop Down","Select from Drop Down",null,null,null,null,null,null,null,null,null,null,null,null,"Select from Drop Down","Select from Drop Down","Select from Drop Down"]
[1225,null,null,"Select from Drop Down","Select from Drop Down","Select from Drop Down",null,null,null,null,null,null,null,null,null,null,null,null,"Select from Drop Down","Select from Drop Down","Select from Drop Down"]
[1226,null,null,"Select from Drop Down","Select from Drop Down","Select from Drop Down",null,null,null,null,null,null,null,null,null,null,null,null,"Select from Drop Down","Select from Drop Down","Select from Drop Down"]
[1227,null,null,"Select from Drop Down","Select from Drop Down","Select from Drop Down",null,null,null,null,null,null,null,null,null,null,null,null,"Select from Drop Down","Select from Drop Down","Select from Drop Down"]
[1228,null,null,"Select from Drop Down","Select from Drop Down","Select from Drop Down",null,null,null,null,null,null,null,null,null,null,null,null,"Select from Drop Down","Select from Drop Down","Select from Drop Down"]
[1229,null,null,"Select from Drop Down","Select from Drop Down","Select from Drop Down",null,null,null,null,null,null,null,null,null,null,null,null,"Select from Drop Down","Select from Drop Down","Select from Drop Down"]
[1230,null,null,"Select from Drop Down","Select from Drop Down","Select from Drop Down",null,null,null,null,null,null,null,null,null,null,null,null,"Select from Drop Down","Select from Drop Down","Select from Drop Down"]
[1231,null,null,"Select from Drop Down","Select from Drop Down","Select from Drop Down",null,null,null,null,null,null,null,null,null,null,null,null,"Select from Drop Down","Select from Drop Down","Select from Drop Down"]
[1232,null,null,"Select from Drop Down","Select from Drop Down","Select from Drop Down",null,null,null,null,null,null,null,null,null,null,null,null,"Select from Drop Down","Select from Drop Down","Select from Drop Down"]
[1233,null,null,"Select from Drop Down","Select from Drop Down","Select from Drop Down",null,null,null,null,null,null,null,null,null,null,null,null,"Select from Drop Down","Select from Drop Down","Select from Drop Down"]
[1234,null,null,"Select from Drop Down","Select from Drop Down","Select from Drop Down",null,null,null,null,null,null,null,null,null,null,null,null,"Select from Drop Down","Select from Drop Down","Select from Drop Down"]
[1235,null,null,"Select from Drop Down","Select from Drop Down","Select from Drop Down",null,null,null,null,null,null,null,null,null,null,null,null,"Select from Drop Down","Select from Drop Down","Select from Drop Down"]
[1236,null,null,"Select from Drop Down","Select from Drop Down","Select from Drop Down",null,null,null,null,null,null,null,null,null,null,null,null,"Select from Drop Down","Select from Drop Down","Select from Drop Down"]
[1237,null,null,"Select from Drop Down","Select from Drop Down","Select from Drop Down",null,null,null,null,null,null,null,null,null,null,null,null,"Select from Drop Down","Select from Drop Down","Select from Drop Down"]
[1238,null,null,"Select from Drop Down","Select from Drop Down","Select from Drop Down",null,null,null,null,null,null,null,null,null,null,null,null,"Select from Drop Down","Select from Drop Down","Select from Drop Down"]
[1239,null,null,"Select from Drop Down","Select from Drop Down","Select from Drop Down",null,null,null,null,null,null,null,null,null,null,null,null,"Select from Drop Down","Select from Drop Down","Select from Drop Down"]
[1240,null,null,"Select from Drop Down","Select from Drop Down","Select from Drop Down",null,null,null,null,null,null,null,null,null,null,null,null,"Select from Drop Down","Select from Drop Down","Select from Drop Down"]
[1241,null,null,"Select from Drop Down","Select from Drop Down","Select from Drop Down",null,null,null,null,null,null,null,null,null,null,null,null,"Select from Drop Down","Select from Drop Down","Select from Drop Down"]
[1242,null,null,"Select from Drop Down","Select from Drop Down","Select from Drop Down",null,null,null,null,null,null,null,null,null,null,null,null,"Select from Drop Down","Select from Drop Down","Select from Drop Down"]
[1243,null,null,"Select from Drop Down","Select from Drop Down","Select from Drop Down",null,null,null,null,null,null,null,null,null,null,null,null,"Select from Drop Down","Select from Drop Down","Select from Drop Down"]
[1244,null,null,"Select from Drop Down","Select from Drop Down","Select from Drop Down",null,null,null,null,null,null,null,null,null,null,null,null,"Select from Drop Down","Select from Drop Down","Select from Drop Down"]
[1245,null,null,"Select from Drop Down","Select from Drop Down","Select from Drop Down",null,null,null,null,null,null,null,null,null,null,null,null,"Select from Drop Down","Select from Drop Down","Select from Drop Down"]
[1246,null,null,"Select from Drop Down","Select from Drop Down","Select from Drop Down",null,null,null,null,null,null,null,null,null,null,null,null,"Select from Drop Down","Select from Drop Down","Select from Drop Down"]
[1247,null,null,"Select from Drop Down","Select from Drop Down","Select from Drop Down",null,null,null,null,null,null,null,null,null,null,null,null,"Select from Drop Down","Select from Drop Down","Select from Drop Down"]
[1248,null,null,"Select from Drop Down","Select from Drop Down","Select from Drop Down",null,null,null,null,null,null,null,null,null,null,null,null,"Select from Drop Down","Select from Drop Down","Select from Drop Down"]
[1249,null,null,"Select from Drop Down","Select from Drop Down","Select from Drop Down",null,null,null,null,null,null,null,null,null,null,null,null,"Select from Drop Down","Select from Drop Down","Select from Drop Down"]
[1250,null,null,"Select from Drop Down","Select from Drop Down","Select from Drop Down",null,null,null,null,null,null,null,null,null,null,null,null,"Select from Drop Down","Select from Drop Down","Select from Drop Down"]
[1251,null,null,"Select from Drop Down","Select from Drop Down","Select from Drop Down",null,null,null,null,null,null,null,null,null,null,null,null,"Select from Drop Down","Select from Drop Down","Select from Drop Down"]
[1252,null,null,"Select from Drop Down","Select from Drop Down","Select from Drop Down",null,null,null,null,null,null,null,null,null,null,null,null,"Select from Drop Down","Select from Drop Down","Select from Drop Down"]
[1253,null,null,"Select from Drop Down","Select from Drop Down","Select from Drop Down",null,null,null,null,null,null,null,null,null,null,null,null,"Select from Drop Down","Select from Drop Down","Select from Drop Down"]
[1254,null,null,"Select from Drop Down","Select from Drop Down","Select from Drop Down",null,null,null,null,null,null,null,null,null,null,null,null,"Select from Drop Down","Select from Drop Down","Select from Drop Down"]
[1255,null,null,"Select from Drop Down","Select from Drop Down","Select from Drop Down",null,null,null,null,null,null,null,null,null,null,null,null,"Select from Drop Down","Select from Drop Down","Select from Drop Down"]
[1256,null,null,"Select from Drop Down","Select from Drop Down","Select from Drop Down",null,null,null,null,null,null,null,null,null,null,null,null,"Select from Drop Down","Select from Drop Down","Select from Drop Down"]
[1257,null,null,"Select from Drop Down","Select from Drop Down","Select from Drop Down",null,null,null,null,null,null,null,null,null,null,null,null,"Select from Drop Down","Select from Drop Down","Select from Drop Down"]
[1258,null,null,"Select from Drop Down","Select from Drop Down","Select from Drop Down",null,null,null,null,null,null,null,null,null,null,null,null,"Select from Drop Down","Select from Drop Down","Select from Drop Down"]
[1259,null,null,"Select from Drop Down","Select from Drop Down","Select from Drop Down",null,null,null,null,null,null,null,null,null,null,null,null,"Select from Drop Down","Select from Drop Down","Select from Drop Down"]
[1260,null,null,"Select from Drop Down","Select from Drop Down","Select from Drop Down",null,null,null,null,null,null,null,null,null,null,null,null,"Select from Drop Down","Select from Drop Down","Select from Drop Down"]
[1261,null,null,"Select from Drop Down","Select from Drop Down","Select from Drop Down",null,null,null,null,null,null,null,null,null,null,null,null,"Select from Drop Down","Select from Drop Down","Select from Drop Down"]
[1262,null,null,"Select from Drop Down","Select from Drop Down","Select from Drop Down",null,null,null,null,null,null,null,null,null,null,null,null,"Select from Drop Down","Select from Drop Down","Select from Drop Down"]
[1263,null,null,"Select from Drop Down","Select from Drop Down","Select from Drop Down",null,null,null,null,null,null,null,null,null,null,null,null,"Select from Drop Down","Select from Drop Down","Select from Drop Down"]
[1264,null,null,"Select from Drop Down","Select from Drop Down","Select from Drop Down",null,null,null,null,null,null,null,null,null,null,null,null,"Select from Drop Down","Select from Drop Down","Select from Drop Down"]
[1265,null,null,"Select from Drop Down","Select from Drop Down","Select from Drop Down",null,null,null,null,null,null,null,null,null,null,null,null,"Select from Drop Down","Select from Drop Down","Select from Drop Down"]
[1266,null,null,"Select from Drop Down","Select from Drop Down","Select from Drop Down",null,null,null,null,null,null,null,null,null,null,null,null,"Select from Drop Down","Select from Drop Down","Select from Drop Down"]
[1267,null,null,"Select from Drop Down","Select from Drop Down","Select from Drop Down",null,null,null,null,null,null,null,null,null,null,null,null,"Select from Drop Down","Select from Drop Down","Select from Drop Down"]
[1268,null,null,"Select from Drop Down","Select from Drop Down","Select from Drop Down",null,null,null,null,null,null,null,null,null,null,null,null,"Select from Drop Down","Select from Drop Down","Select from Drop Down"]
[1269,null,null,"Select from Drop Down","Select from Drop Down","Select from Drop Down",null,null,null,null,null,null,null,null,null,null,null,null,"Select from Drop Down","Select from Drop Down","Select from Drop Down"]
[1270,null,null,"Select from Drop Down","Select from Drop Down","Select from Drop Down",null,null,null,null,null,null,null,null,null,null,null,null,"Select from Drop Down","Select from Drop Down","Select from Drop Down"]
[1271,null,null,"Select from Drop Down","Select from Drop Down","Select from Drop Down",null,null,null,null,null,null,null,null,null,null,null,null,"Select from Drop Down","Select from Drop Down","Select from Drop Down"]
[1272,null,null,"Select from Drop Down","Select from Drop Down","Select from Drop Down",null,null,null,null,null,null,null,null,null,null,null,null,"Select from Drop Down","Select from Drop Down","Select from Drop Down"]
[1273,null,null,"Select from Drop Down","Select from Drop Down","Select from Drop Down",null,null,null,null,null,null,null,null,null,null,null,null,"Select from Drop Down","Select from Drop Down","Select from Drop Down"]
[1274,null,null,"Select from Drop Down","Select from Drop Down","Select from Drop Down",null,null,null,null,null,null,null,null,null,null,null,null,"Select from Drop Down","Select from Drop Down","Select from Drop Down"]
[1275,null,null,"Select from Drop Down","Select from Drop Down","Select from Drop Down",null,null,null,null,null,null,null,null,null,null,null,null,"Select from Drop Down","Select from Drop Down","Select from Drop Down"]
[1276,null,null,"Select from Drop Down","Select from Drop Down","Select from Drop Down",null,null,null,null,null,null,null,null,null,null,null,null,"Select from Drop Down","Select from Drop Down","Select from Drop Down"]
[1277,null,null,"Select from Drop Down","Select from Drop Down","Select from Drop Down",null,null,null,null,null,null,null,null,null,null,null,null,"Select from Drop Down","Select from Drop Down","Select from Drop Down"]
[1278,null,null,"Select from Drop Down","Select from Drop Down","Select from Drop Down",null,null,null,null,null,null,null,null,null,null,null,null,"Select from Drop Down","Select from Drop Down","Select from Drop Down"]
[1279,null,null,"Select from Drop Down","Select from Drop Down","Select from Drop Down",null,null,null,null,null,null,null,null,null,null,null,null,"Select from Drop Down","Select from Drop Down","Select from Drop Down"]
[1280,null,null,"Select from Drop Down","Select from Drop Down","Select from Drop Down",null,null,null,null,null,null,null,null,null,null,null,null,"Select from Drop Down","Select from Drop Down","Select from Drop Down"]
[1281,null,null,"Select from Drop Down","Select from Drop Down","Select from Drop Down",null,null,null,null,null,null,null,null,null,null,null,null,"Select from Drop Down","Select from Drop Down","Select from Drop Down"]
[1282,null,null,"Select from Drop Down","Select from Drop Down","Select from Drop Down",null,null,null,null,null,null,null,null,null,null,null,null,"Select from Drop Down","Select from Drop Down","Select from Drop Down"]
[{"$f":"A1292+1","v":1283},null,null,"Select from Drop Down","Select from Drop Down","Select from Drop Down",null,null,null,null,null,null,null,null,null,null,null,null,"Select from Drop Down","Select from Drop Down","Select from Drop Down"]
[1284,null,null,"Select from Drop Down","Select from Drop Down","Select from Drop Down",null,null,null,null,null,null,null,null,null,null,null,null,"Select from Drop Down","Select from Drop Down","Select from Drop Down"]
[1285,null,null,"Select from Drop Down","Select from Drop Down","Select from Drop Down",null,null,null,null,null,null,null,null,null,null,null,null,"Select from Drop Down","Select from Drop Down","Select from Drop Down"]
[1286,null,null,"Select from Drop Down","Select from Drop Down","Select from Drop Down",null,null,null,null,null,null,null,null,null,null,null,null,"Select from Drop Down","Select from Drop Down","Select from Drop Down"]
[1287,null,null,"Select from Drop Down","Select from Drop Down","Select from Drop Down",null,null,null,null,null,null,null,null,null,null,null,null,"Select from Drop Down","Select from Drop Down","Select from Drop Down"]
[1288,null,null,"Select from Drop Down","Select from Drop Down","Select from Drop Down",null,null,null,null,null,null,null,null,null,null,null,null,"Select from Drop Down","Select from Drop Down","Select from Drop Down"]
[1289,null,null,"Select from Drop Down","Select from Drop Down","Select from Drop Down",null,null,null,null,null,null,null,null,null,null,null,null,"Select from Drop Down","Select from Drop Down","Select from Drop Down"]
[1290,null,null,"Select from Drop Down","Select from Drop Down","Select from Drop Down",null,null,null,null,null,null,null,null,null,null,null,null,"Select from Drop Down","Select from Drop Down","Select from Drop Down"]
[1291,null,null,"Select from Drop Down","Select from Drop Down","Select from Drop Down",null,null,null,null,null,null,null,null,null,null,null,null,"Select from Drop Down","Select from Drop Down","Select from Drop Down"]
[1292,null,null,"Select from Drop Down","Select from Drop Down","Select from Drop Down",null,null,null,null,null,null,null,null,null,null,null,null,"Select from Drop Down","Select from Drop Down","Select from Drop Down"]
[1293,null,null,"Select from Drop Down","Select from Drop Down","Select from Drop Down",null,null,null,null,null,null,null,null,null,null,null,null,"Select from Drop Down","Select from Drop Down","Select from Drop Down"]
[1294,null,null,"Select from Drop Down","Select from Drop Down","Select from Drop Down",null,null,null,null,null,null,null,null,null,null,null,null,"Select from Drop Down","Select from Drop Down","Select from Drop Down"]
[1295,null,null,"Select from Drop Down","Select from Drop Down","Select from Drop Down",null,null,null,null,null,null,null,null,null,null,null,null,"Select from Drop Down","Select from Drop Down","Select from Drop Down"]
[1296,null,null,"Select from Drop Down","Select from Drop Down","Select from Drop Down",null,null,null,null,null,null,null,null,null,null,null,null,"Select from Drop Down","Select from Drop Down","Select from Drop Down"]
[1297,null,null,"Select from Drop Down","Select from Drop Down","Select from Drop Down",null,null,null,null,null,null,null,null,null,null,null,null,"Select from Drop Down","Select from Drop Down","Select from Drop Down"]
[1298,null,null,"Select from Drop Down","Select from Drop Down","Select from Drop Down",null,null,null,null,null,null,null,null,null,null,null,null,"Select from Drop Down","Select from Drop Down","Select from Drop Down"]
[1299,null,null,"Select from Drop Down","Select from Drop Down","Select from Drop Down",null,null,null,null,null,null,null,null,null,null,null,null,"Select from Drop Down","Select from Drop Down","Select from Drop Down"]
[1300,null,null,"Select from Drop Down","Select from Drop Down","Select from Drop Down",null,null,null,null,null,null,null,null,null,null,null,null,"Select from Drop Down","Select from Drop Down","Select from Drop Down"]
[1301,null,null,"Select from Drop Down","Select from Drop Down","Select from Drop Down",null,null,null,null,null,null,null,null,null,null,null,null,"Select from Drop Down","Select from Drop Down","Select from Drop Down"]
[1302,null,null,"Select from Drop Down","Select from Drop Down","Select from Drop Down",null,null,null,null,null,null,null,null,null,null,null,null,"Select from Drop Down","Select from Drop Down","Select from Drop Down"]
[1303,null,null,"Select from Drop Down","Select from Drop Down","Select from Drop Down",null,null,null,null,null,null,null,null,null,null,null,null,"Select from Drop Down","Select from Drop Down","Select from Drop Down"]
[1304,null,null,"Select from Drop Down","Select from Drop Down","Select from Drop Down",null,null,null,null,null,null,null,null,null,null,null,null,"Select from Drop Down","Select from Drop Down","Select from Drop Down"]
[1305,null,null,"Select from Drop Down","Select from Drop Down","Select from Drop Down",null,null,null,null,null,null,null,null,null,null,null,null,"Select from Drop Down","Select from Drop Down","Select from Drop Down"]
[1306,null,null,"Select from Drop Down","Select from Drop Down","Select from Drop Down",null,null,null,null,null,null,null,null,null,null,null,null,"Select from Drop Down","Select from Drop Down","Select from Drop Down"]
[1307,null,null,"Select from Drop Down","Select from Drop Down","Select from Drop Down",null,null,null,null,null,null,null,null,null,null,null,null,"Select from Drop Down","Select from Drop Down","Select from Drop Down"]
[1308,null,null,"Select from Drop Down","Select from Drop Down","Select from Drop Down",null,null,null,null,null,null,null,null,null,null,null,null,"Select from Drop Down","Select from Drop Down","Select from Drop Down"]
[1309,null,null,"Select from Drop Down","Select from Drop Down","Select from Drop Down",null,null,null,null,null,null,null,null,null,null,null,null,"Select from Drop Down","Select from Drop Down","Select from Drop Down"]
[1310,null,null,"Select from Drop Down","Select from Drop Down","Select from Drop Down",null,null,null,null,null,null,null,null,null,null,null,null,"Select from Drop Down","Select from Drop Down","Select from Drop Down"]
[1311,null,null,"Select from Drop Down","Select from Drop Down","Select from Drop Down",null,null,null,null,null,null,null,null,null,null,null,null,"Select from Drop Down","Select from Drop Down","Select from Drop Down"]
[1312,null,null,"Select from Drop Down","Select from Drop Down","Select from Drop Down",null,null,null,null,null,null,null,null,null,null,null,null,"Select from Drop Down","Select from Drop Down","Select from Drop Down"]
[1313,null,null,"Select from Drop Down","Select from Drop Down","Select from Drop Down",null,null,null,null,null,null,null,null,null,null,null,null,"Select from Drop Down","Select from Drop Down","Select from Drop Down"]
[1314,null,null,"Select from Drop Down","Select from Drop Down","Select from Drop Down",null,null,null,null,null,null,null,null,null,null,null,null,"Select from Drop Down","Select from Drop Down","Select from Drop Down"]
[1315,null,null,"Select from Drop Down","Select from Drop Down","Select from Drop Down",null,null,null,null,null,null,null,null,null,null,null,null,"Select from Drop Down","Select from Drop Down","Select from Drop Down"]
[1316,null,null,"Select from Drop Down","Select from Drop Down","Select from Drop Down",null,null,null,null,null,null,null,null,null,null,null,null,"Select from Drop Down","Select from Drop Down","Select from Drop Down"]
[1317,null,null,"Select from Drop Down","Select from Drop Down","Select from Drop Down",null,null,null,null,null,null,null,null,null,null,null,null,"Select from Drop Down","Select from Drop Down","Select from Drop Down"]
[1318,null,null,"Select from Drop Down","Select from Drop Down","Select from Drop Down",null,null,null,null,null,null,null,null,null,null,null,null,"Select from Drop Down","Select from Drop Down","Select from Drop Down"]
[1319,null,null,"Select from Drop Down","Select from Drop Down","Select from Drop Down",null,null,null,null,null,null,null,null,null,null,null,null,"Select from Drop Down","Select from Drop Down","Select from Drop Down"]
[1320,null,null,"Select from Drop Down","Select from Drop Down","Select from Drop Down",null,null,null,null,null,null,null,null,null,null,null,null,"Select from Drop Down","Select from Drop Down","Select from Drop Down"]
[1321,null,null,"Select from Drop Down","Select from Drop Down","Select from Drop Down",null,null,null,null,null,null,null,null,null,null,null,null,"Select from Drop Down","Select from Drop Down","Select from Drop Down"]
[1322,null,null,"Select from Drop Down","Select from Drop Down","Select from Drop Down",null,null,null,null,null,null,null,null,null,null,null,null,"Select from Drop Down","Select from Drop Down","Select from Drop Down"]
[1323,null,null,"Select from Drop Down","Select from Drop Down","Select from Drop Down",null,null,null,null,null,null,null,null,null,null,null,null,"Select from Drop Down","Select from Drop Down","Select from Drop Down"]
[1324,null,null,"Select from Drop Down","Select from Drop Down","Select from Drop Down",null,null,null,null,null,null,null,null,null,null,null,null,"Select from Drop Down","Select from Drop Down","Select from Drop Down"]
[1325,null,null,"Select from Drop Down","Select from Drop Down","Select from Drop Down",null,null,null,null,null,null,null,null,null,null,null,null,"Select from Drop Down","Select from Drop Down","Select from Drop Down"]
[1326,null,null,"Select from Drop Down","Select from Drop Down","Select from Drop Down",null,null,null,null,null,null,null,null,null,null,null,null,"Select from Drop Down","Select from Drop Down","Select from Drop Down"]
[1327,null,null,"Select from Drop Down","Select from Drop Down","Select from Drop Down",null,null,null,null,null,null,null,null,null,null,null,null,"Select from Drop Down","Select from Drop Down","Select from Drop Down"]
[1328,null,null,"Select from Drop Down","Select from Drop Down","Select from Drop Down",null,null,null,null,null,null,null,null,null,null,null,null,"Select from Drop Down","Select from Drop Down","Select from Drop Down"]
[1329,null,null,"Select from Drop Down","Select from Drop Down","Select from Drop Down",null,null,null,null,null,null,null,null,null,null,null,null,"Select from Drop Down","Select from Drop Down","Select from Drop Down"]
[1330,null,null,"Select from Drop Down","Select from Drop Down","Select from Drop Down",null,null,null,null,null,null,null,null,null,null,null,null,"Select from Drop Down","Select from Drop Down","Select from Drop Down"]
[1331,null,null,"Select from Drop Down","Select from Drop Down","Select from Drop Down",null,null,null,null,null,null,null,null,null,null,null,null,"Select from Drop Down","Select from Drop Down","Select from Drop Down"]
[1332,null,null,"Select from Drop Down","Select from Drop Down","Select from Drop Down",null,null,null,null,null,null,null,null,null,null,null,null,"Select from Drop Down","Select from Drop Down","Select from Drop Down"]
[1333,null,null,"Select from Drop Down","Select from Drop Down","Select from Drop Down",null,null,null,null,null,null,null,null,null,null,null,null,"Select from Drop Down","Select from Drop Down","Select from Drop Down"]
[1334,null,null,"Select from Drop Down","Select from Drop Down","Select from Drop Down",null,null,null,null,null,null,null,null,null,null,null,null,"Select from Drop Down","Select from Drop Down","Select from Drop Down"]
[1335,null,null,"Select from Drop Down","Select from Drop Down","Select from Drop Down",null,null,null,null,null,null,null,null,null,null,null,null,"Select from Drop Down","Select from Drop Down","Select from Drop Down"]
[1336,null,null,"Select from Drop Down","Select from Drop Down","Select from Drop Down",null,null,null,null,null,null,null,null,null,null,null,null,"Select from Drop Down","Select from Drop Down","Select from Drop Down"]
[1337,null,null,"Select from Drop Down","Select from Drop Down","Select from Drop Down",null,null,null,null,null,null,null,null,null,null,null,null,"Select from Drop Down","Select from Drop Down","Select from Drop Down"]
[1338,null,null,"Select from Drop Down","Select from Drop Down","Select from Drop Down",null,null,null,null,null,null,null,null,null,null,null,null,"Select from Drop Down","Select from Drop Down","Select from Drop Down"]
[1339,null,null,"Select from Drop Down","Select from Drop Down","Select from Drop Down",null,null,null,null,null,null,null,null,null,null,null,null,"Select from Drop Down","Select from Drop Down","Select from Drop Down"]
[1340,null,null,"Select from Drop Down","Select from Drop Down","Select from Drop Down",null,null,null,null,null,null,null,null,null,null,null,null,"Select from Drop Down","Select from Drop Down","Select from Drop Down"]
[1341,null,null,"Select from Drop Down","Select from Drop Down","Select from Drop Down",null,null,null,null,null,null,null,null,null,null,null,null,"Select from Drop Down","Select from Drop Down","Select from Drop Down"]
[1342,null,null,"Select from Drop Down","Select from Drop Down","Select from Drop Down",null,null,null,null,null,null,null,null,null,null,null,null,"Select from Drop Down","Select from Drop Down","Select from Drop Down"]
[1343,null,null,"Select from Drop Down","Select from Drop Down","Select from Drop Down",null,null,null,null,null,null,null,null,null,null,null,null,"Select from Drop Down","Select from Drop Down","Select from Drop Down"]
[1344,null,null,"Select from Drop Down","Select from Drop Down","Select from Drop Down",null,null,null,null,null,null,null,null,null,null,null,null,"Select from Drop Down","Select from Drop Down","Select from Drop Down"]
[1345,null,null,"Select from Drop Down","Select from Drop Down","Select from Drop Down",null,null,null,null,null,null,null,null,null,null,null,null,"Select from Drop Down","Select from Drop Down","Select from Drop Down"]
[1346,null,null,"Select from Drop Down","Select from Drop Down","Select from Drop Down",null,null,null,null,null,null,null,null,null,null,null,null,"Select from Drop Down","Select from Drop Down","Select from Drop Down"]
[{"$f":"A1356+1","v":1347},null,null,"Select from Drop Down","Select from Drop Down","Select from Drop Down",null,null,null,null,null,null,null,null,null,null,null,null,"Select from Drop Down","Select from Drop Down","Select from Drop Down"]
[1348,null,null,"Select from Drop Down","Select from Drop Down","Select from Drop Down",null,null,null,null,null,null,null,null,null,null,null,null,"Select from Drop Down","Select from Drop Down","Select from Drop Down"]
[1349,null,null,"Select from Drop Down","Select from Drop Down","Select from Drop Down",null,null,null,null,null,null,null,null,null,null,null,null,"Select from Drop Down","Select from Drop Down","Select from Drop Down"]
[1350,null,null,"Select from Drop Down","Select from Drop Down","Select from Drop Down",null,null,null,null,null,null,null,null,null,null,null,null,"Select from Drop Down","Select from Drop Down","Select from Drop Down"]
[1351,null,null,"Select from Drop Down","Select from Drop Down","Select from Drop Down",null,null,null,null,null,null,null,null,null,null,null,null,"Select from Drop Down","Select from Drop Down","Select from Drop Down"]
[1352,null,null,"Select from Drop Down","Select from Drop Down","Select from Drop Down",null,null,null,null,null,null,null,null,null,null,null,null,"Select from Drop Down","Select from Drop Down","Select from Drop Down"]
[1353,null,null,"Select from Drop Down","Select from Drop Down","Select from Drop Down",null,null,null,null,null,null,null,null,null,null,null,null,"Select from Drop Down","Select from Drop Down","Select from Drop Down"]
[1354,null,null,"Select from Drop Down","Select from Drop Down","Select from Drop Down",null,null,null,null,null,null,null,null,null,null,null,null,"Select from Drop Down","Select from Drop Down","Select from Drop Down"]
[1355,null,null,"Select from Drop Down","Select from Drop Down","Select from Drop Down",null,null,null,null,null,null,null,null,null,null,null,null,"Select from Drop Down","Select from Drop Down","Select from Drop Down"]
[1356,null,null,"Select from Drop Down","Select from Drop Down","Select from Drop Down",null,null,null,null,null,null,null,null,null,null,null,null,"Select from Drop Down","Select from Drop Down","Select from Drop Down"]
[1357,null,null,"Select from Drop Down","Select from Drop Down","Select from Drop Down",null,null,null,null,null,null,null,null,null,null,null,null,"Select from Drop Down","Select from Drop Down","Select from Drop Down"]
[1358,null,null,"Select from Drop Down","Select from Drop Down","Select from Drop Down",null,null,null,null,null,null,null,null,null,null,null,null,"Select from Drop Down","Select from Drop Down","Select from Drop Down"]
[1359,null,null,"Select from Drop Down","Select from Drop Down","Select from Drop Down",null,null,null,null,null,null,null,null,null,null,null,null,"Select from Drop Down","Select from Drop Down","Select from Drop Down"]
[1360,null,null,"Select from Drop Down","Select from Drop Down","Select from Drop Down",null,null,null,null,null,null,null,null,null,null,null,null,"Select from Drop Down","Select from Drop Down","Select from Drop Down"]
[1361,null,null,"Select from Drop Down","Select from Drop Down","Select from Drop Down",null,null,null,null,null,null,null,null,null,null,null,null,"Select from Drop Down","Select from Drop Down","Select from Drop Down"]
[1362,null,null,"Select from Drop Down","Select from Drop Down","Select from Drop Down",null,null,null,null,null,null,null,null,null,null,null,null,"Select from Drop Down","Select from Drop Down","Select from Drop Down"]
[1363,null,null,"Select from Drop Down","Select from Drop Down","Select from Drop Down",null,null,null,null,null,null,null,null,null,null,null,null,"Select from Drop Down","Select from Drop Down","Select from Drop Down"]
[1364,null,null,"Select from Drop Down","Select from Drop Down","Select from Drop Down",null,null,null,null,null,null,null,null,null,null,null,null,"Select from Drop Down","Select from Drop Down","Select from Drop Down"]
[1365,null,null,"Select from Drop Down","Select from Drop Down","Select from Drop Down",null,null,null,null,null,null,null,null,null,null,null,null,"Select from Drop Down","Select from Drop Down","Select from Drop Down"]
[1366,null,null,"Select from Drop Down","Select from Drop Down","Select from Drop Down",null,null,null,null,null,null,null,null,null,null,null,null,"Select from Drop Down","Select from Drop Down","Select from Drop Down"]
[1367,null,null,"Select from Drop Down","Select from Drop Down","Select from Drop Down",null,null,null,null,null,null,null,null,null,null,null,null,"Select from Drop Down","Select from Drop Down","Select from Drop Down"]
[1368,null,null,"Select from Drop Down","Select from Drop Down","Select from Drop Down",null,null,null,null,null,null,null,null,null,null,null,null,"Select from Drop Down","Select from Drop Down","Select from Drop Down"]
[1369,null,null,"Select from Drop Down","Select from Drop Down","Select from Drop Down",null,null,null,null,null,null,null,null,null,null,null,null,"Select from Drop Down","Select from Drop Down","Select from Drop Down"]
[1370,null,null,"Select from Drop Down","Select from Drop Down","Select from Drop Down",null,null,null,null,null,null,null,null,null,null,null,null,"Select from Drop Down","Select from Drop Down","Select from Drop Down"]
[1371,null,null,"Select from Drop Down","Select from Drop Down","Select from Drop Down",null,null,null,null,null,null,null,null,null,null,null,null,"Select from Drop Down","Select from Drop Down","Select from Drop Down"]
[1372,null,null,"Select from Drop Down","Select from Drop Down","Select from Drop Down",null,null,null,null,null,null,null,null,null,null,null,null,"Select from Drop Down","Select from Drop Down","Select from Drop Down"]
[1373,null,null,"Select from Drop Down","Select from Drop Down","Select from Drop Down",null,null,null,null,null,null,null,null,null,null,null,null,"Select from Drop Down","Select from Drop Down","Select from Drop Down"]
[1374,null,null,"Select from Drop Down","Select from Drop Down","Select from Drop Down",null,null,null,null,null,null,null,null,null,null,null,null,"Select from Drop Down","Select from Drop Down","Select from Drop Down"]
[1375,null,null,"Select from Drop Down","Select from Drop Down","Select from Drop Down",null,null,null,null,null,null,null,null,null,null,null,null,"Select from Drop Down","Select from Drop Down","Select from Drop Down"]
[1376,null,null,"Select from Drop Down","Select from Drop Down","Select from Drop Down",null,null,null,null,null,null,null,null,null,null,null,null,"Select from Drop Down","Select from Drop Down","Select from Drop Down"]
[1377,null,null,"Select from Drop Down","Select from Drop Down","Select from Drop Down",null,null,null,null,null,null,null,null,null,null,null,null,"Select from Drop Down","Select from Drop Down","Select from Drop Down"]
[1378,null,null,"Select from Drop Down","Select from Drop Down","Select from Drop Down",null,null,null,null,null,null,null,null,null,null,null,null,"Select from Drop Down","Select from Drop Down","Select from Drop Down"]
[1379,null,null,"Select from Drop Down","Select from Drop Down","Select from Drop Down",null,null,null,null,null,null,null,null,null,null,null,null,"Select from Drop Down","Select from Drop Down","Select from Drop Down"]
[1380,null,null,"Select from Drop Down","Select from Drop Down","Select from Drop Down",null,null,null,null,null,null,null,null,null,null,null,null,"Select from Drop Down","Select from Drop Down","Select from Drop Down"]
[1381,null,null,"Select from Drop Down","Select from Drop Down","Select from Drop Down",null,null,null,null,null,null,null,null,null,null,null,null,"Select from Drop Down","Select from Drop Down","Select from Drop Down"]
[1382,null,null,"Select from Drop Down","Select from Drop Down","Select from Drop Down",null,null,null,null,null,null,null,null,null,null,null,null,"Select from Drop Down","Select from Drop Down","Select from Drop Down"]
[1383,null,null,"Select from Drop Down","Select from Drop Down","Select from Drop Down",null,null,null,null,null,null,null,null,null,null,null,null,"Select from Drop Down","Select from Drop Down","Select from Drop Down"]
[1384,null,null,"Select from Drop Down","Select from Drop Down","Select from Drop Down",null,null,null,null,null,null,null,null,null,null,null,null,"Select from Drop Down","Select from Drop Down","Select from Drop Down"]
[1385,null,null,"Select from Drop Down","Select from Drop Down","Select from Drop Down",null,null,null,null,null,null,null,null,null,null,null,null,"Select from Drop Down","Select from Drop Down","Select from Drop Down"]
[1386,null,null,"Select from Drop Down","Select from Drop Down","Select from Drop Down",null,null,null,null,null,null,null,null,null,null,null,null,"Select from Drop Down","Select from Drop Down","Select from Drop Down"]
[1387,null,null,"Select from Drop Down","Select from Drop Down","Select from Drop Down",null,null,null,null,null,null,null,null,null,null,null,null,"Select from Drop Down","Select from Drop Down","Select from Drop Down"]
[1388,null,null,"Select from Drop Down","Select from Drop Down","Select from Drop Down",null,null,null,null,null,null,null,null,null,null,null,null,"Select from Drop Down","Select from Drop Down","Select from Drop Down"]
[1389,null,null,"Select from Drop Down","Select from Drop Down","Select from Drop Down",null,null,null,null,null,null,null,null,null,null,null,null,"Select from Drop Down","Select from Drop Down","Select from Drop Down"]
[1390,null,null,"Select from Drop Down","Select from Drop Down","Select from Drop Down",null,null,null,null,null,null,null,null,null,null,null,null,"Select from Drop Down","Select from Drop Down","Select from Drop Down"]
[1391,null,null,"Select from Drop Down","Select from Drop Down","Select from Drop Down",null,null,null,null,null,null,null,null,null,null,null,null,"Select from Drop Down","Select from Drop Down","Select from Drop Down"]
[1392,null,null,"Select from Drop Down","Select from Drop Down","Select from Drop Down",null,null,null,null,null,null,null,null,null,null,null,null,"Select from Drop Down","Select from Drop Down","Select from Drop Down"]
[1393,null,null,"Select from Drop Down","Select from Drop Down","Select from Drop Down",null,null,null,null,null,null,null,null,null,null,null,null,"Select from Drop Down","Select from Drop Down","Select from Drop Down"]
[1394,null,null,"Select from Drop Down","Select from Drop Down","Select from Drop Down",null,null,null,null,null,null,null,null,null,null,null,null,"Select from Drop Down","Select from Drop Down","Select from Drop Down"]
[1395,null,null,"Select from Drop Down","Select from Drop Down","Select from Drop Down",null,null,null,null,null,null,null,null,null,null,null,null,"Select from Drop Down","Select from Drop Down","Select from Drop Down"]
[1396,null,null,"Select from Drop Down","Select from Drop Down","Select from Drop Down",null,null,null,null,null,null,null,null,null,null,null,null,"Select from Drop Down","Select from Drop Down","Select from Drop Down"]
[1397,null,null,"Select from Drop Down","Select from Drop Down","Select from Drop Down",null,null,null,null,null,null,null,null,null,null,null,null,"Select from Drop Down","Select from Drop Down","Select from Drop Down"]
[1398,null,null,"Select from Drop Down","Select from Drop Down","Select from Drop Down",null,null,null,null,null,null,null,null,null,null,null,null,"Select from Drop Down","Select from Drop Down","Select from Drop Down"]
[1399,null,null,"Select from Drop Down","Select from Drop Down","Select from Drop Down",null,null,null,null,null,null,null,null,null,null,null,null,"Select from Drop Down","Select from Drop Down","Select from Drop Down"]
[1400,null,null,"Select from Drop Down","Select from Drop Down","Select from Drop Down",null,null,null,null,null,null,null,null,null,null,null,null,"Select from Drop Down","Select from Drop Down","Select from Drop Down"]
[1401,null,null,"Select from Drop Down","Select from Drop Down","Select from Drop Down",null,null,null,null,null,null,null,null,null,null,null,null,"Select from Drop Down","Select from Drop Down","Select from Drop Down"]
[1402,null,null,"Select from Drop Down","Select from Drop Down","Select from Drop Down",null,null,null,null,null,null,null,null,null,null,null,null,"Select from Drop Down","Select from Drop Down","Select from Drop Down"]
[1403,null,null,"Select from Drop Down","Select from Drop Down","Select from Drop Down",null,null,null,null,null,null,null,null,null,null,null,null,"Select from Drop Down","Select from Drop Down","Select from Drop Down"]
[1404,null,null,"Select from Drop Down","Select from Drop Down","Select from Drop Down",null,null,null,null,null,null,null,null,null,null,null,null,"Select from Drop Down","Select from Drop Down","Select from Drop Down"]
[1405,null,null,"Select from Drop Down","Select from Drop Down","Select from Drop Down",null,null,null,null,null,null,null,null,null,null,null,null,"Select from Drop Down","Select from Drop Down","Select from Drop Down"]
[1406,null,null,"Select from Drop Down","Select from Drop Down","Select from Drop Down",null,null,null,null,null,null,null,null,null,null,null,null,"Select from Drop Down","Select from Drop Down","Select from Drop Down"]
[1407,null,null,"Select from Drop Down","Select from Drop Down","Select from Drop Down",null,null,null,null,null,null,null,null,null,null,null,null,"Select from Drop Down","Select from Drop Down","Select from Drop Down"]
[1408,null,null,"Select from Drop Down","Select from Drop Down","Select from Drop Down",null,null,null,null,null,null,null,null,null,null,null,null,"Select from Drop Down","Select from Drop Down","Select from Drop Down"]
[1409,null,null,"Select from Drop Down","Select from Drop Down","Select from Drop Down",null,null,null,null,null,null,null,null,null,null,null,null,"Select from Drop Down","Select from Drop Down","Select from Drop Down"]
[1410,null,null,"Select from Drop Down","Select from Drop Down","Select from Drop Down",null,null,null,null,null,null,null,null,null,null,null,null,"Select from Drop Down","Select from Drop Down","Select from Drop Down"]
[{"$f":"A1420+1","v":1411},null,null,"Select from Drop Down","Select from Drop Down","Select from Drop Down",null,null,null,null,null,null,null,null,null,null,null,null,"Select from Drop Down","Select from Drop Down","Select from Drop Down"]
[1412,null,null,"Select from Drop Down","Select from Drop Down","Select from Drop Down",null,null,null,null,null,null,null,null,null,null,null,null,"Select from Drop Down","Select from Drop Down","Select from Drop Down"]
[1413,null,null,"Select from Drop Down","Select from Drop Down","Select from Drop Down",null,null,null,null,null,null,null,null,null,null,null,null,"Select from Drop Down","Select from Drop Down","Select from Drop Down"]
[1414,null,null,"Select from Drop Down","Select from Drop Down","Select from Drop Down",null,null,null,null,null,null,null,null,null,null,null,null,"Select from Drop Down","Select from Drop Down","Select from Drop Down"]
[1415,null,null,"Select from Drop Down","Select from Drop Down","Select from Drop Down",null,null,null,null,null,null,null,null,null,null,null,null,"Select from Drop Down","Select from Drop Down","Select from Drop Down"]
[1416,null,null,"Select from Drop Down","Select from Drop Down","Select from Drop Down",null,null,null,null,null,null,null,null,null,null,null,null,"Select from Drop Down","Select from Drop Down","Select from Drop Down"]
[1417,null,null,"Select from Drop Down","Select from Drop Down","Select from Drop Down",null,null,null,null,null,null,null,null,null,null,null,null,"Select from Drop Down","Select from Drop Down","Select from Drop Down"]
[1418,null,null,"Select from Drop Down","Select from Drop Down","Select from Drop Down",null,null,null,null,null,null,null,null,null,null,null,null,"Select from Drop Down","Select from Drop Down","Select from Drop Down"]
[1419,null,null,"Select from Drop Down","Select from Drop Down","Select from Drop Down",null,null,null,null,null,null,null,null,null,null,null,null,"Select from Drop Down","Select from Drop Down","Select from Drop Down"]
[1420,null,null,"Select from Drop Down","Select from Drop Down","Select from Drop Down",null,null,null,null,null,null,null,null,null,null,null,null,"Select from Drop Down","Select from Drop Down","Select from Drop Down"]
[1421,null,null,"Select from Drop Down","Select from Drop Down","Select from Drop Down",null,null,null,null,null,null,null,null,null,null,null,null,"Select from Drop Down","Select from Drop Down","Select from Drop Down"]
[1422,null,null,"Select from Drop Down","Select from Drop Down","Select from Drop Down",null,null,null,null,null,null,null,null,null,null,null,null,"Select from Drop Down","Select from Drop Down","Select from Drop Down"]
[1423,null,null,"Select from Drop Down","Select from Drop Down","Select from Drop Down",null,null,null,null,null,null,null,null,null,null,null,null,"Select from Drop Down","Select from Drop Down","Select from Drop Down"]
[1424,null,null,"Select from Drop Down","Select from Drop Down","Select from Drop Down",null,null,null,null,null,null,null,null,null,null,null,null,"Select from Drop Down","Select from Drop Down","Select from Drop Down"]
[1425,null,null,"Select from Drop Down","Select from Drop Down","Select from Drop Down",null,null,null,null,null,null,null,null,null,null,null,null,"Select from Drop Down","Select from Drop Down","Select from Drop Down"]
[1426,null,null,"Select from Drop Down","Select from Drop Down","Select from Drop Down",null,null,null,null,null,null,null,null,null,null,null,null,"Select from Drop Down","Select from Drop Down","Select from Drop Down"]
[1427,null,null,"Select from Drop Down","Select from Drop Down","Select from Drop Down",null,null,null,null,null,null,null,null,null,null,null,null,"Select from Drop Down","Select from Drop Down","Select from Drop Down"]
[1428,null,null,"Select from Drop Down","Select from Drop Down","Select from Drop Down",null,null,null,null,null,null,null,null,null,null,null,null,"Select from Drop Down","Select from Drop Down","Select from Drop Down"]
[1429,null,null,"Select from Drop Down","Select from Drop Down","Select from Drop Down",null,null,null,null,null,null,null,null,null,null,null,null,"Select from Drop Down","Select from Drop Down","Select from Drop Down"]
[1430,null,null,"Select from Drop Down","Select from Drop Down","Select from Drop Down",null,null,null,null,null,null,null,null,null,null,null,null,"Select from Drop Down","Select from Drop Down","Select from Drop Down"]
[1431,null,null,"Select from Drop Down","Select from Drop Down","Select from Drop Down",null,null,null,null,null,null,null,null,null,null,null,null,"Select from Drop Down","Select from Drop Down","Select from Drop Down"]
[1432,null,null,"Select from Drop Down","Select from Drop Down","Select from Drop Down",null,null,null,null,null,null,null,null,null,null,null,null,"Select from Drop Down","Select from Drop Down","Select from Drop Down"]
[1433,null,null,"Select from Drop Down","Select from Drop Down","Select from Drop Down",null,null,null,null,null,null,null,null,null,null,null,null,"Select from Drop Down","Select from Drop Down","Select from Drop Down"]
[1434,null,null,"Select from Drop Down","Select from Drop Down","Select from Drop Down",null,null,null,null,null,null,null,null,null,null,null,null,"Select from Drop Down","Select from Drop Down","Select from Drop Down"]
[1435,null,null,"Select from Drop Down","Select from Drop Down","Select from Drop Down",null,null,null,null,null,null,null,null,null,null,null,null,"Select from Drop Down","Select from Drop Down","Select from Drop Down"]
[1436,null,null,"Select from Drop Down","Select from Drop Down","Select from Drop Down",null,null,null,null,null,null,null,null,null,null,null,null,"Select from Drop Down","Select from Drop Down","Select from Drop Down"]
[1437,null,null,"Select from Drop Down","Select from Drop Down","Select from Drop Down",null,null,null,null,null,null,null,null,null,null,null,null,"Select from Drop Down","Select from Drop Down","Select from Drop Down"]
[1438,null,null,"Select from Drop Down","Select from Drop Down","Select from Drop Down",null,null,null,null,null,null,null,null,null,null,null,null,"Select from Drop Down","Select from Drop Down","Select from Drop Down"]
[1439,null,null,"Select from Drop Down","Select from Drop Down","Select from Drop Down",null,null,null,null,null,null,null,null,null,null,null,null,"Select from Drop Down","Select from Drop Down","Select from Drop Down"]
[1440,null,null,"Select from Drop Down","Select from Drop Down","Select from Drop Down",null,null,null,null,null,null,null,null,null,null,null,null,"Select from Drop Down","Select from Drop Down","Select from Drop Down"]
[1441,null,null,"Select from Drop Down","Select from Drop Down","Select from Drop Down",null,null,null,null,null,null,null,null,null,null,null,null,"Select from Drop Down","Select from Drop Down","Select from Drop Down"]
[1442,null,null,"Select from Drop Down","Select from Drop Down","Select from Drop Down",null,null,null,null,null,null,null,null,null,null,null,null,"Select from Drop Down","Select from Drop Down","Select from Drop Down"]
[1443,null,null,"Select from Drop Down","Select from Drop Down","Select from Drop Down",null,null,null,null,null,null,null,null,null,null,null,null,"Select from Drop Down","Select from Drop Down","Select from Drop Down"]
[1444,null,null,"Select from Drop Down","Select from Drop Down","Select from Drop Down",null,null,null,null,null,null,null,null,null,null,null,null,"Select from Drop Down","Select from Drop Down","Select from Drop Down"]
[1445,null,null,"Select from Drop Down","Select from Drop Down","Select from Drop Down",null,null,null,null,null,null,null,null,null,null,null,null,"Select from Drop Down","Select from Drop Down","Select from Drop Down"]
[1446,null,null,"Select from Drop Down","Select from Drop Down","Select from Drop Down",null,null,null,null,null,null,null,null,null,null,null,null,"Select from Drop Down","Select from Drop Down","Select from Drop Down"]
[1447,null,null,"Select from Drop Down","Select from Drop Down","Select from Drop Down",null,null,null,null,null,null,null,null,null,null,null,null,"Select from Drop Down","Select from Drop Down","Select from Drop Down"]
[1448,null,null,"Select from Drop Down","Select from Drop Down","Select from Drop Down",null,null,null,null,null,null,null,null,null,null,null,null,"Select from Drop Down","Select from Drop Down","Select from Drop Down"]
[1449,null,null,"Select from Drop Down","Select from Drop Down","Select from Drop Down",null,null,null,null,null,null,null,null,null,null,null,null,"Select from Drop Down","Select from Drop Down","Select from Drop Down"]
[1450,null,null,"Select from Drop Down","Select from Drop Down","Select from Drop Down",null,null,null,null,null,null,null,null,null,null,null,null,"Select from Drop Down","Select from Drop Down","Select from Drop Down"]
[1451,null,null,"Select from Drop Down","Select from Drop Down","Select from Drop Down",null,null,null,null,null,null,null,null,null,null,null,null,"Select from Drop Down","Select from Drop Down","Select from Drop Down"]
[1452,null,null,"Select from Drop Down","Select from Drop Down","Select from Drop Down",null,null,null,null,null,null,null,null,null,null,null,null,"Select from Drop Down","Select from Drop Down","Select from Drop Down"]
[1453,null,null,"Select from Drop Down","Select from Drop Down","Select from Drop Down",null,null,null,null,null,null,null,null,null,null,null,null,"Select from Drop Down","Select from Drop Down","Select from Drop Down"]
[1454,null,null,"Select from Drop Down","Select from Drop Down","Select from Drop Down",null,null,null,null,null,null,null,null,null,null,null,null,"Select from Drop Down","Select from Drop Down","Select from Drop Down"]
[1455,null,null,"Select from Drop Down","Select from Drop Down","Select from Drop Down",null,null,null,null,null,null,null,null,null,null,null,null,"Select from Drop Down","Select from Drop Down","Select from Drop Down"]
[1456,null,null,"Select from Drop Down","Select from Drop Down","Select from Drop Down",null,null,null,null,null,null,null,null,null,null,null,null,"Select from Drop Down","Select from Drop Down","Select from Drop Down"]
[1457,null,null,"Select from Drop Down","Select from Drop Down","Select from Drop Down",null,null,null,null,null,null,null,null,null,null,null,null,"Select from Drop Down","Select from Drop Down","Select from Drop Down"]
[1458,null,null,"Select from Drop Down","Select from Drop Down","Select from Drop Down",null,null,null,null,null,null,null,null,null,null,null,null,"Select from Drop Down","Select from Drop Down","Select from Drop Down"]
[1459,null,null,"Select from Drop Down","Select from Drop Down","Select from Drop Down",null,null,null,null,null,null,null,null,null,null,null,null,"Select from Drop Down","Select from Drop Down","Select from Drop Down"]
[1460,null,null,"Select from Drop Down","Select from Drop Down","Select from Drop Down",null,null,null,null,null,null,null,null,null,null,null,null,"Select from Drop Down","Select from Drop Down","Select from Drop Down"]
[1461,null,null,"Select from Drop Down","Select from Drop Down","Select from Drop Down",null,null,null,null,null,null,null,null,null,null,null,null,"Select from Drop Down","Select from Drop Down","Select from Drop Down"]
[1462,null,null,"Select from Drop Down","Select from Drop Down","Select from Drop Down",null,null,null,null,null,null,null,null,null,null,null,null,"Select from Drop Down","Select from Drop Down","Select from Drop Down"]
[1463,null,null,"Select from Drop Down","Select from Drop Down","Select from Drop Down",null,null,null,null,null,null,null,null,null,null,null,null,"Select from Drop Down","Select from Drop Down","Select from Drop Down"]
[1464,null,null,"Select from Drop Down","Select from Drop Down","Select from Drop Down",null,null,null,null,null,null,null,null,null,null,null,null,"Select from Drop Down","Select from Drop Down","Select from Drop Down"]
[1465,null,null,"Select from Drop Down","Select from Drop Down","Select from Drop Down",null,null,null,null,null,null,null,null,null,null,null,null,"Select from Drop Down","Select from Drop Down","Select from Drop Down"]
[1466,null,null,"Select from Drop Down","Select from Drop Down","Select from Drop Down",null,null,null,null,null,null,null,null,null,null,null,null,"Select from Drop Down","Select from Drop Down","Select from Drop Down"]
[1467,null,null,"Select from Drop Down","Select from Drop Down","Select from Drop Down",null,null,null,null,null,null,null,null,null,null,null,null,"Select from Drop Down","Select from Drop Down","Select from Drop Down"]
[1468,null,null,"Select from Drop Down","Select from Drop Down","Select from Drop Down",null,null,null,null,null,null,null,null,null,null,null,null,"Select from Drop Down","Select from Drop Down","Select from Drop Down"]
[1469,null,null,"Select from Drop Down","Select from Drop Down","Select from Drop Down",null,null,null,null,null,null,null,null,null,null,null,null,"Select from Drop Down","Select from Drop Down","Select from Drop Down"]
[1470,null,null,"Select from Drop Down","Select from Drop Down","Select from Drop Down",null,null,null,null,null,null,null,null,null,null,null,null,"Select from Drop Down","Select from Drop Down","Select from Drop Down"]
[1471,null,null,"Select from Drop Down","Select from Drop Down","Select from Drop Down",null,null,null,null,null,null,null,null,null,null,null,null,"Select from Drop Down","Select from Drop Down","Select from Drop Down"]
[1472,null,null,"Select from Drop Down","Select from Drop Down","Select from Drop Down",null,null,null,null,null,null,null,null,null,null,null,null,"Select from Drop Down","Select from Drop Down","Select from Drop Down"]
[1473,null,null,"Select from Drop Down","Select from Drop Down","Select from Drop Down",null,null,null,null,null,null,null,null,null,null,null,null,"Select from Drop Down","Select from Drop Down","Select from Drop Down"]
[1474,null,null,"Select from Drop Down","Select from Drop Down","Select from Drop Down",null,null,null,null,null,null,null,null,null,null,null,null,"Select from Drop Down","Select from Drop Down","Select from Drop Down"]
[{"$f":"A1484+1","v":1475},null,null,"Select from Drop Down","Select from Drop Down","Select from Drop Down",null,null,null,null,null,null,null,null,null,null,null,null,"Select from Drop Down","Select from Drop Down","Select from Drop Down"]
[1476,null,null,"Select from Drop Down","Select from Drop Down","Select from Drop Down",null,null,null,null,null,null,null,null,null,null,null,null,"Select from Drop Down","Select from Drop Down","Select from Drop Down"]
[1477,null,null,"Select from Drop Down","Select from Drop Down","Select from Drop Down",null,null,null,null,null,null,null,null,null,null,null,null,"Select from Drop Down","Select from Drop Down","Select from Drop Down"]
[1478,null,null,"Select from Drop Down","Select from Drop Down","Select from Drop Down",null,null,null,null,null,null,null,null,null,null,null,null,"Select from Drop Down","Select from Drop Down","Select from Drop Down"]
[1479,null,null,"Select from Drop Down","Select from Drop Down","Select from Drop Down",null,null,null,null,null,null,null,null,null,null,null,null,"Select from Drop Down","Select from Drop Down","Select from Drop Down"]
[1480,null,null,"Select from Drop Down","Select from Drop Down","Select from Drop Down",null,null,null,null,null,null,null,null,null,null,null,null,"Select from Drop Down","Select from Drop Down","Select from Drop Down"]
[1481,null,null,"Select from Drop Down","Select from Drop Down","Select from Drop Down",null,null,null,null,null,null,null,null,null,null,null,null,"Select from Drop Down","Select from Drop Down","Select from Drop Down"]
[1482,null,null,"Select from Drop Down","Select from Drop Down","Select from Drop Down",null,null,null,null,null,null,null,null,null,null,null,null,"Select from Drop Down","Select from Drop Down","Select from Drop Down"]
[1483,null,null,"Select from Drop Down","Select from Drop Down","Select from Drop Down",null,null,null,null,null,null,null,null,null,null,null,null,"Select from Drop Down","Select from Drop Down","Select from Drop Down"]
[1484,null,null,"Select from Drop Down","Select from Drop Down","Select from Drop Down",null,null,null,null,null,null,null,null,null,null,null,null,"Select from Drop Down","Select from Drop Down","Select from Drop Down"]
[1485,null,null,"Select from Drop Down","Select from Drop Down","Select from Drop Down",null,null,null,null,null,null,null,null,null,null,null,null,"Select from Drop Down","Select from Drop Down","Select from Drop Down"]
[1486,null,null,"Select from Drop Down","Select from Drop Down","Select from Drop Down",null,null,null,null,null,null,null,null,null,null,null,null,"Select from Drop Down","Select from Drop Down","Select from Drop Down"]
[1487,null,null,"Select from Drop Down","Select from Drop Down","Select from Drop Down",null,null,null,null,null,null,null,null,null,null,null,null,"Select from Drop Down","Select from Drop Down","Select from Drop Down"]
[1488,null,null,"Select from Drop Down","Select from Drop Down","Select from Drop Down",null,null,null,null,null,null,null,null,null,null,null,null,"Select from Drop Down","Select from Drop Down","Select from Drop Down"]
[1489,null,null,"Select from Drop Down","Select from Drop Down","Select from Drop Down",null,null,null,null,null,null,null,null,null,null,null,null,"Select from Drop Down","Select from Drop Down","Select from Drop Down"]
[1490,null,null,"Select from Drop Down","Select from Drop Down","Select from Drop Down",null,null,null,null,null,null,null,null,null,null,null,null,"Select from Drop Down","Select from Drop Down","Select from Drop Down"]
[1491,null,null,"Select from Drop Down","Select from Drop Down","Select from Drop Down",null,null,null,null,null,null,null,null,null,null,null,null,"Select from Drop Down","Select from Drop Down","Select from Drop Down"]
[1492,null,null,"Select from Drop Down","Select from Drop Down","Select from Drop Down",null,null,null,null,null,null,null,null,null,null,null,null,"Select from Drop Down","Select from Drop Down","Select from Drop Down"]
[1493,null,null,"Select from Drop Down","Select from Drop Down","Select from Drop Down",null,null,null,null,null,null,null,null,null,null,null,null,"Select from Drop Down","Select from Drop Down","Select from Drop Down"]
[1494,null,null,"Select from Drop Down","Select from Drop Down","Select from Drop Down",null,null,null,null,null,null,null,null,null,null,null,null,"Select from Drop Down","Select from Drop Down","Select from Drop Down"]
[1495,null,null,"Select from Drop Down","Select from Drop Down","Select from Drop Down",null,null,null,null,null,null,null,null,null,null,null,null,"Select from Drop Down","Select from Drop Down","Select from Drop Down"]
[1496,null,null,"Select from Drop Down","Select from Drop Down","Select from Drop Down",null,null,null,null,null,null,null,null,null,null,null,null,"Select from Drop Down","Select from Drop Down","Select from Drop Down"]
[1497,null,null,"Select from Drop Down","Select from Drop Down","Select from Drop Down",null,null,null,null,null,null,null,null,null,null,null,null,"Select from Drop Down","Select from Drop Down","Select from Drop Down"]
[1498,null,null,"Select from Drop Down","Select from Drop Down","Select from Drop Down",null,null,null,null,null,null,null,null,null,null,null,null,"Select from Drop Down","Select from Drop Down","Select from Drop Down"]
[1499,null,null,"Select from Drop Down","Select from Drop Down","Select from Drop Down",null,null,null,null,null,null,null,null,null,null,null,null,"Select from Drop Down","Select from Drop Down","Select from Drop Down"]
[1500,null,null,"Select from Drop Down","Select from Drop Down","Select from Drop Down",null,null,null,null,null,null,null,null,null,null,null,null,"Select from Drop Down","Select from Drop Down","Select from Drop Down"]
[]
[null,"TOTAL",null,null,null,null,{"$f":"SUM(G11:G1510)","v":0},{"$f":"SUM(H11:H1510)","v":0},null,null,null,{"$f":"SUM(L11:L1510)","v":0},0,0,0,0,0,0,null,null,null,{"$f":"SUM(V11:V1510)","v":0}]
[]
[null,"General Comments"]
[null,{"$f":"Import!E5261","v":0}]
[]
[]
[]
[]
[]
[]
[]
[]
[]
[null,null,null,null,null,null,null,null,"Select Yes/No",null,null,null,"Lines of Business",null,null,"Zones",null,null,"Currency",null,"Select from Drop Down","Nature of Collateral"]
[null,null,null,null,null,null,null,null,"Yes",null,null,null,"Select from Drop Down",null,null,"Select from Drop Down",null,null,"Select from Drop Down",null,"AAA","Select from Drop Down"]
[null,null,null,null,null,null,"Select from Drop Down","Select from Drop Down","No",null,null,null,"Property Catastrophe",null,null,"US,",null,null,"USD",null,"AAA-","Money Market Fund"]
[null,null,null,null,null,null,"Indemnity ","Parametric/Industry Loss Warranty",null,"Select from Drop Down",null,null,"Property",null,null,"Europe",null,null,"BP",null,"AA","Letter of Credit "]
[null,null,null,null,null,null,"Excess-of-Loss","Excess-of-Loss",null,"Catastrophe Bond",null,null,"Property Non – Proportional",null,null,"UK",null,null,"Euro",null,"AA-","Funds Withheld"]
[null,null,null,null,null,null,"Industry Loss Warranty","Quota Share",null,"Sidecar",null,null,"Personal Accident",null,null,"Latin America",null,null,"AUD",null,"A","Cash"]
[null,null,null,null,null,null,"Quota Share","Stop Loss",null,"Collateralised Reinsurance",null,null,"Personal Accident Non- Proportional",null,null,"Asia",null,null,"CAD",null,"A-","Sovereign Bonds"]
[null,null,null,null,null,null,"Stop Loss","Index",null,"Mortgage Bond",null,null,"Aviation",null,null,"Africa",null,null,"Yen",null,"BBB","Corporate Bonds"]
[null,null,null,null,null,null,"Other","Ultimate Net Loss ",null,"Other",null,null,"Aviation Non – Proportional",null,null,"Australia",null,null,"Multi Currency",null,"BBB-","IBDR Notes"]
[null,null,null,null,null,null,null,"Other",null,null,null,null,"Credit / Surety ",null,null,"Worldwide",null,null,"Other",null,"BB","Multiple Holdings"]
[null,null,null,null,null,null,null,null,null,null,null,null,"Credit / Surety Non – Proportional",null,null,"Other",null,null,null,null,"BB-","Other"]
[null,null,null,null,null,null,null,null,null,null,null,null,"Energy Offshore / Marine",null,null,null,null,null,null,null,"B"]
[null,null,null,null,null,null,null,null,null,null,null,null,"Energy Offshore / Marine Non - Proportional ",null,null,null,null,null,null,null,"B-"]
[null,null,null,null,null,null,null,null,null,null,null,null,"US Casualty",null,null,null,null,null,null,null,"CCC"]
[null,null,null,null,null,null,null,null,null,null,null,null,"US Casualty Non - Proportional ",null,null,null,null,null,null,null,"CCC or Below"]
[null,null,null,null,null,null,null,null,null,null,null,null,"US Professional"]
[null,null,null,null,null,null,null,null,null,null,null,null,"US Professional Non – Proportional"]
[null,null,null,null,null,null,null,null,null,null,null,null,"US Specialty "]
[null,null,null,null,null,null,null,null,null,null,null,null,"US Specialty Non - Proportional"]
[null,null,null,null,null,null,null,null,null,null,null,null,"International Motor "]
[null,null,null,null,null,null,null,null,null,null,null,null,"International Motor Non – Proportional"]
[null,null,null,null,null,null,null,null,null,null,null,null,"International Casualty Non – Motor "]
[null,null,null,null,null,null,null,null,null,null,null,null,"International Casualty Non Motor Non – Proportional "]
[null,null,null,null,null,null,null,null,null,null,null,null,"Retro Property"]
[null,null,null,null,null,null,null,null,null,null,null,null,"Structured / Finite Reinsurance"]
[null,null,null,null,null,null,null,null,null,null,null,null,"Health"]
[null,null,null,null,null,null,null,null,null,null,null,null,"Weather"]
[]
[null,null,null,null,null,null,null,null,null,null,null,null,"Mortality "]
[null,null,null,null,null,null,null,null,null,null,null,null,"Critical Illness"]
[null,null,null,null,null,null,null,null,null,null,null,null,"Longevity"]
[null,null,null,null,null,null,null,null,null,null,null,null,"Deferred Annuities"]
[null,null,null,null,null,null,null,null,null,null,null,null,"Disability Income: Active lives with premium guarantee"]
[null,null,null,null,null,null,null,null,null,null,null,null,"Disability Income: Actives lives for other accident and sickenss"]
[null,null,null,null,null,null,null,null,null,null,null,null,"Disability Income: Claims in payment "]
[null,null,null,null,null,null,null,null,null,null,null,null,"Disability Income: Claims in payment for other accident and sickness"]
[null,null,null,null,null,null,null,null,null,null,null,null,"Group Life"]
[null,null,null,null,null,null,null,null,null,null,null,null,"Group Disability"]
[null,null,null,null,null,null,null,null,null,null,null,null,"Group Health"]
[null,null,null,null,null,null,null,null,null,null,null,null,"Stop Loss"]
[null,null,null,null,null,null,null,null,null,null,null,null,"Rider"]
[null,null,null,null,null,null,null,null,null,null,null,null,"Variable Annuities"]

{"sheet":"Schedule VI","index":50,"n_rows":2357,"n_cols":18,"rows_kept":2357,"cut":false,"hidden":false,"merged":[[1234,1,1234,2],[1095,1,1095,2],[1098,1,1098,2],[1123,1,1123,2],[1126,1,1126,2],[1231,1,1231,2],[5,1,5,2],[213,1,213,2],[216,1,216,2],[987,1,987,2],[990,1,990,2],[1764,7,1765,7],[1789,1,1789,2],[1763,5,1765,5],[1793,1,1793,2],[1339,1,1339,2],[1342,1,1342,2],[1447,1,1447,2],[1450,1,1450,2],[1555,1,1555,2],[1764,6,1765,6]]}
[null,"SCHEDULE OF ASSETS",null,null,null,null,null,null,null,null,null,null,null,{"$f":"HYPERLINK(\"#'Index'!A1\",\"Return to Index\")","v":"Return to Index"}]
[null,{"$f":"'Insurer Information'!C7","v":"Enter Company Name"}]
[null,"As at",{"$f":"'Insurer Information'!C3","v":"2023-12-31"},null,null,null,null,null,null,null,null,null,null,"Schedule VI"]
[null,"expressed in ['000s]",{"$f":"'Form 1SFS'!C5","v":"United States Dollars"}]
[]
[null,"(A) CASH AND CASH EQUIVALENTS"]
[]
[null,null,"Enter # of Asset Types",{"$f":"Import!E5263","v":0}]
[null,null,null,null,{"$f":"YEAR($C$3)","v":2023},{"$f":"YEAR($C$3)","v":2023}]
[null,"Asset Type","Currency","BSCR Rating","Nominal Amount","Fair Value","Comments"]
[1,{"$f":"Import!E5264","v":"Select"},{"$f":"Import!E5464","v":"Select"},{"$f":"Import!E5664","v":"Select"},{"$f":"Import!E5864","v":0},{"$f":"Import!E6064","v":0},{"$f":"Import!E6264","v":0}]
[{"$f":"A11+1","v":2},{"$f":"Import!E5265","v":"Select"},{"$f":"Import!E5465","v":"Select"},{"$f":"Import!E5665","v":"Select"},{"$f":"Import!E5865","v":0},{"$f":"Import!E6065","v":0},{"$f":"Import!E6265","v":0}]
[{"$f":"A12+1","v":3},{"$f":"Import!E5266","v":"Select"},{"$f":"Import!E5466","v":"Select"},{"$f":"Import!E5666","v":"Select"},{"$f":"Import!E5866","v":0},{"$f":"Import!E6066","v":0},{"$f":"Import!E6266","v":0}]
[4,{"$f":"Import!E5267","v":"Select"},{"$f":"Import!E5467","v":"Select"},{"$f":"Import!E5667","v":"Select"},{"$f":"Import!E5867","v":0},{"$f":"Import!E6067","v":0},{"$f":"Import!E6267","v":0}]
[5,{"$f":"Import!E5268","v":"Select"},{"$f":"Import!E5468","v":"Select"},{"$f":"Import!E5668","v":"Select"},{"$f":"Import!E5868","v":0},{"$f":"Import!E6068","v":0},{"$f":"Import!E6268","v":0}]
[6,{"$f":"Import!E5269","v":"Select"},{"$f":"Import!E5469","v":"Select"},{"$f":"Import!E5669","v":"Select"},{"$f":"Import!E5869","v":0},{"$f":"Import!E6069","v":0},{"$f":"Import!E6269","v":0}]
[7,{"$f":"Import!E5270","v":"Select"},{"$f":"Import!E5470","v":"Select"},{"$f":"Import!E5670","v":"Select"},{"$f":"Import!E5870","v":0},{"$f":"Import!E6070","v":0},{"$f":"Import!E6270","v":0}]
[8,{"$f":"Import!E5271","v":"Select"},{"$f":"Import!E5471","v":"Select"},{"$f":"Import!E5671","v":"Select"},{"$f":"Import!E5871","v":0},{"$f":"Import!E6071","v":0},{"$f":"Import!E6271","v":0}]
[9,{"$f":"Import!E5272","v":"Select"},{"$f":"Import!E5472","v":"Select"},{"$f":"Import!E5672","v":"Select"},{"$f":"Import!E5872","v":0},{"$f":"Import!E6072","v":0},{"$f":"Import!E6272","v":0}]
[10,{"$f":"Import!E5273","v":"Select"},{"$f":"Import!E5473","v":"Select"},{"$f":"Import!E5673","v":"Select"},{"$f":"Import!E5873","v":0},{"$f":"Import!E6073","v":0},{"$f":"Import!E6273","v":0}]
[11,{"$f":"Import!E5274","v":"Select"},{"$f":"Import!E5474","v":"Select"},{"$f":"Import!E5674","v":"Select"},{"$f":"Import!E5874","v":0},{"$f":"Import!E6074","v":0},{"$f":"Import!E6274","v":0}]
[12,{"$f":"Import!E5275","v":"Select"},{"$f":"Import!E5475","v":"Select"},{"$f":"Import!E5675","v":"Select"},{"$f":"Import!E5875","v":0},{"$f":"Import!E6075","v":0},{"$f":"Import!E6275","v":0}]
[13,{"$f":"Import!E5276","v":"Select"},{"$f":"Import!E5476","v":"Select"},{"$f":"Import!E5676","v":"Select"},{"$f":"Import!E5876","v":0},{"$f":"Import!E6076","v":0},{"$f":"Import!E6276","v":0}]
[14,{"$f":"Import!E5277","v":"Select"},{"$f":"Import!E5477","v":"Select"},{"$f":"Import!E5677","v":"Select"},{"$f":"Import!E5877","v":0},{"$f":"Import!E6077","v":0},{"$f":"Import!E6277","v":0}]
[15,{"$f":"Import!E5278","v":"Select"},{"$f":"Import!E5478","v":"Select"},{"$f":"Import!E5678","v":"Select"},{"$f":"Import!E5878","v":0},{"$f":"Import!E6078","v":0},{"$f":"Import!E6278","v":0}]
[16,{"$f":"Import!E5279","v":"Select"},{"$f":"Import!E5479","v":"Select"},{"$f":"Import!E5679","v":"Select"},{"$f":"Import!E5879","v":0},{"$f":"Import!E6079","v":0},{"$f":"Import!E6279","v":0}]
[17,{"$f":"Import!E5280","v":"Select"},{"$f":"Import!E5480","v":"Select"},{"$f":"Import!E5680","v":"Select"},{"$f":"Import!E5880","v":0},{"$f":"Import!E6080","v":0},{"$f":"Import!E6280","v":0}]
[18,{"$f":"Import!E5281","v":"Select"},{"$f":"Import!E5481","v":"Select"},{"$f":"Import!E5681","v":"Select"},{"$f":"Import!E5881","v":0},{"$f":"Import!E6081","v":0},{"$f":"Import!E6281","v":0}]
[19,{"$f":"Import!E5282","v":"Select"},{"$f":"Import!E5482","v":"Select"},{"$f":"Import!E5682","v":"Select"},{"$f":"Import!E5882","v":0},{"$f":"Import!E6082","v":0},{"$f":"Import!E6282","v":0}]
[20,{"$f":"Import!E5283","v":"Select"},{"$f":"Import!E5483","v":"Select"},{"$f":"Import!E5683","v":"Select"},{"$f":"Import!E5883","v":0},{"$f":"Import!E6083","v":0},{"$f":"Import!E6283","v":0}]
[21,{"$f":"Import!E5284","v":"Select"},{"$f":"Import!E5484","v":"Select"},{"$f":"Import!E5684","v":"Select"},{"$f":"Import!E5884","v":0},{"$f":"Import!E6084","v":0},{"$f":"Import!E6284","v":0}]
[22,{"$f":"Import!E5285","v":"Select"},{"$f":"Import!E5485","v":"Select"},{"$f":"Import!E5685","v":"Select"},{"$f":"Import!E5885","v":0},{"$f":"Import!E6085","v":0},{"$f":"Import!E6285","v":0}]
[23,{"$f":"Import!E5286","v":"Select"},{"$f":"Import!E5486","v":"Select"},{"$f":"Import!E5686","v":"Select"},{"$f":"Import!E5886","v":0},{"$f":"Import!E6086","v":0},{"$f":"Import!E6286","v":0}]
[24,{"$f":"Import!E5287","v":"Select"},{"$f":"Import!E5487","v":"Select"},{"$f":"Import!E5687","v":"Select"},{"$f":"Import!E5887","v":0},{"$f":"Import!E6087","v":0},{"$f":"Import!E6287","v":0}]
[25,{"$f":"Import!E5288","v":"Select"},{"$f":"Import!E5488","v":"Select"},{"$f":"Import!E5688","v":"Select"},{"$f":"Import!E5888","v":0},{"$f":"Import!E6088","v":0},{"$f":"Import!E6288","v":0}]
[26,{"$f":"Import!E5289","v":"Select"},{"$f":"Import!E5489","v":"Select"},{"$f":"Import!E5689","v":"Select"},{"$f":"Import!E5889","v":0},{"$f":"Import!E6089","v":0},{"$f":"Import!E6289","v":0}]
[27,{"$f":"Import!E5290","v":"Select"},{"$f":"Import!E5490","v":"Select"},{"$f":"Import!E5690","v":"Select"},{"$f":"Import!E5890","v":0},{"$f":"Import!E6090","v":0},{"$f":"Import!E6290","v":0}]
[28,{"$f":"Import!E5291","v":"Select"},{"$f":"Import!E5491","v":"Select"},{"$f":"Import!E5691","v":"Select"},{"$f":"Import!E5891","v":0},{"$f":"Import!E6091","v":0},{"$f":"Import!E6291","v":0}]
[29,{"$f":"Import!E5292","v":"Select"},{"$f":"Import!E5492","v":"Select"},{"$f":"Import!E5692","v":"Select"},{"$f":"Import!E5892","v":0},{"$f":"Import!E6092","v":0},{"$f":"Import!E6292","v":0}]
[30,{"$f":"Import!E5293","v":"Select"},{"$f":"Import!E5493","v":"Select"},{"$f":"Import!E5693","v":"Select"},{"$f":"Import!E5893","v":0},{"$f":"Import!E6093","v":0},{"$f":"Import!E6293","v":0}]
[31,{"$f":"Import!E5294","v":"Select"},{"$f":"Import!E5494","v":"Select"},{"$f":"Import!E5694","v":"Select"},{"$f":"Import!E5894","v":0},{"$f":"Import!E6094","v":0},{"$f":"Import!E6294","v":0}]
[32,{"$f":"Import!E5295","v":"Select"},{"$f":"Import!E5495","v":"Select"},{"$f":"Import!E5695","v":"Select"},{"$f":"Import!E5895","v":0},{"$f":"Import!E6095","v":0},{"$f":"Import!E6295","v":0}]
[33,{"$f":"Import!E5296","v":"Select"},{"$f":"Import!E5496","v":"Select"},{"$f":"Import!E5696","v":"Select"},{"$f":"Import!E5896","v":0},{"$f":"Import!E6096","v":0},{"$f":"Import!E6296","v":0}]
[34,{"$f":"Import!E5297","v":"Select"},{"$f":"Import!E5497","v":"Select"},{"$f":"Import!E5697","v":"Select"},{"$f":"Import!E5897","v":0},{"$f":"Import!E6097","v":0},{"$f":"Import!E6297","v":0}]
[35,{"$f":"Import!E5298","v":"Select"},{"$f":"Import!E5498","v":"Select"},{"$f":"Import!E5698","v":"Select"},{"$f":"Import!E5898","v":0},{"$f":"Import!E6098","v":0},{"$f":"Import!E6298","v":0}]
[36,{"$f":"Import!E5299","v":"Select"},{"$f":"Import!E5499","v":"Select"},{"$f":"Import!E5699","v":"Select"},{"$f":"Import!E5899","v":0},{"$f":"Import!E6099","v":0},{"$f":"Import!E6299","v":0}]
[37,{"$f":"Import!E5300","v":"Select"},{"$f":"Import!E5500","v":"Select"},{"$f":"Import!E5700","v":"Select"},{"$f":"Import!E5900","v":0},{"$f":"Import!E6100","v":0},{"$f":"Import!E6300","v":0}]
[38,{"$f":"Import!E5301","v":"Select"},{"$f":"Import!E5501","v":"Select"},{"$f":"Import!E5701","v":"Select"},{"$f":"Import!E5901","v":0},{"$f":"Import!E6101","v":0},{"$f":"Import!E6301","v":0}]
[39,{"$f":"Import!E5302","v":"Select"},{"$f":"Import!E5502","v":"Select"},{"$f":"Import!E5702","v":"Select"},{"$f":"Import!E5902","v":0},{"$f":"Import!E6102","v":0},{"$f":"Import!E6302","v":0}]
[40,{"$f":"Import!E5303","v":"Select"},{"$f":"Import!E5503","v":"Select"},{"$f":"Import!E5703","v":"Select"},{"$f":"Import!E5903","v":0},{"$f":"Import!E6103","v":0},{"$f":"Import!E6303","v":0}]
[41,{"$f":"Import!E5304","v":"Select"},{"$f":"Import!E5504","v":"Select"},{"$f":"Import!E5704","v":"Select"},{"$f":"Import!E5904","v":0},{"$f":"Import!E6104","v":0},{"$f":"Import!E6304","v":0}]
[42,{"$f":"Import!E5305","v":"Select"},{"$f":"Import!E5505","v":"Select"},{"$f":"Import!E5705","v":"Select"},{"$f":"Import!E5905","v":0},{"$f":"Import!E6105","v":0},{"$f":"Import!E6305","v":0}]
[43,{"$f":"Import!E5306","v":"Select"},{"$f":"Import!E5506","v":"Select"},{"$f":"Import!E5706","v":"Select"},{"$f":"Import!E5906","v":0},{"$f":"Import!E6106","v":0},{"$f":"Import!E6306","v":0}]
[44,{"$f":"Import!E5307","v":"Select"},{"$f":"Import!E5507","v":"Select"},{"$f":"Import!E5707","v":"Select"},{"$f":"Import!E5907","v":0},{"$f":"Import!E6107","v":0},{"$f":"Import!E6307","v":0}]
[45,{"$f":"Import!E5308","v":"Select"},{"$f":"Import!E5508","v":"Select"},{"$f":"Import!E5708","v":"Select"},{"$f":"Import!E5908","v":0},{"$f":"Import!E6108","v":0},{"$f":"Import!E6308","v":0}]
[46,{"$f":"Import!E5309","v":"Select"},{"$f":"Import!E5509","v":"Select"},{"$f":"Import!E5709","v":"Select"},{"$f":"Import!E5909","v":0},{"$f":"Import!E6109","v":0},{"$f":"Import!E6309","v":0}]
[47,{"$f":"Import!E5310","v":"Select"},{"$f":"Import!E5510","v":"Select"},{"$f":"Import!E5710","v":"Select"},{"$f":"Import!E5910","v":0},{"$f":"Import!E6110","v":0},{"$f":"Import!E6310","v":0}]
[48,{"$f":"Import!E5311","v":"Select"},{"$f":"Import!E5511","v":"Select"},{"$f":"Import!E5711","v":"Select"},{"$f":"Import!E5911","v":0},{"$f":"Import!E6111","v":0},{"$f":"Import!E6311","v":0}]
[49,{"$f":"Import!E5312","v":"Select"},{"$f":"Import!E5512","v":"Select"},{"$f":"Import!E5712","v":"Select"},{"$f":"Import!E5912","v":0},{"$f":"Import!E6112","v":0},{"$f":"Import!E6312","v":0}]
[50,{"$f":"Import!E5313","v":"Select"},{"$f":"Import!E5513","v":"Select"},{"$f":"Import!E5713","v":"Select"},{"$f":"Import!E5913","v":0},{"$f":"Import!E6113","v":0},{"$f":"Import!E6313","v":0}]
[51,{"$f":"Import!E5314","v":"Select"},{"$f":"Import!E5514","v":"Select"},{"$f":"Import!E5714","v":"Select"},{"$f":"Import!E5914","v":0},{"$f":"Import!E6114","v":0},{"$f":"Import!E6314","v":0}]
[52,{"$f":"Import!E5315","v":"Select"},{"$f":"Import!E5515","v":"Select"},{"$f":"Import!E5715","v":"Select"},{"$f":"Import!E5915","v":0},{"$f":"Import!E6115","v":0},{"$f":"Import!E6315","v":0}]
[53,{"$f":"Import!E5316","v":"Select"},{"$f":"Import!E5516","v":"Select"},{"$f":"Import!E5716","v":"Select"},{"$f":"Import!E5916","v":0},{"$f":"Import!E6116","v":0},{"$f":"Import!E6316","v":0}]
[54,{"$f":"Import!E5317","v":"Select"},{"$f":"Import!E5517","v":"Select"},{"$f":"Import!E5717","v":"Select"},{"$f":"Import!E5917","v":0},{"$f":"Import!E6117","v":0},{"$f":"Import!E6317","v":0}]
[55,{"$f":"Import!E5318","v":"Select"},{"$f":"Import!E5518","v":"Select"},{"$f":"Import!E5718","v":"Select"},{"$f":"Import!E5918","v":0},{"$f":"Import!E6118","v":0},{"$f":"Import!E6318","v":0}]
[56,{"$f":"Import!E5319","v":"Select"},{"$f":"Import!E5519","v":"Select"},{"$f":"Import!E5719","v":"Select"},{"$f":"Import!E5919","v":0},{"$f":"Import!E6119","v":0},{"$f":"Import!E6319","v":0}]
[57,{"$f":"Import!E5320","v":"Select"},{"$f":"Import!E5520","v":"Select"},{"$f":"Import!E5720","v":"Select"},{"$f":"Import!E5920","v":0},{"$f":"Import!E6120","v":0},{"$f":"Import!E6320","v":0}]
[58,{"$f":"Import!E5321","v":"Select"},{"$f":"Import!E5521","v":"Select"},{"$f":"Import!E5721","v":"Select"},{"$f":"Import!E5921","v":0},{"$f":"Import!E6121","v":0},{"$f":"Import!E6321","v":0}]
[59,{"$f":"Import!E5322","v":"Select"},{"$f":"Import!E5522","v":"Select"},{"$f":"Import!E5722","v":"Select"},{"$f":"Import!E5922","v":0},{"$f":"Import!E6122","v":0},{"$f":"Import!E6322","v":0}]
[60,{"$f":"Import!E5323","v":"Select"},{"$f":"Import!E5523","v":"Select"},{"$f":"Import!E5723","v":"Select"},{"$f":"Import!E5923","v":0},{"$f":"Import!E6123","v":0},{"$f":"Import!E6323","v":0}]
[61,{"$f":"Import!E5324","v":"Select"},{"$f":"Import!E5524","v":"Select"},{"$f":"Import!E5724","v":"Select"},{"$f":"Import!E5924","v":0},{"$f":"Import!E6124","v":0},{"$f":"Import!E6324","v":0}]
[62,{"$f":"Import!E5325","v":"Select"},{"$f":"Import!E5525","v":"Select"},{"$f":"Import!E5725","v":"Select"},{"$f":"Import!E5925","v":0},{"$f":"Import!E6125","v":0},{"$f":"Import!E6325","v":0}]
[63,{"$f":"Import!E5326","v":"Select"},{"$f":"Import!E5526","v":"Select"},{"$f":"Import!E5726","v":"Select"},{"$f":"Import!E5926","v":0},{"$f":"Import!E6126","v":0},{"$f":"Import!E6326","v":0}]
[64,{"$f":"Import!E5327","v":"Select"},{"$f":"Import!E5527","v":"Select"},{"$f":"Import!E5727","v":"Select"},{"$f":"Import!E5927","v":0},{"$f":"Import!E6127","v":0},{"$f":"Import!E6327","v":0}]
[65,{"$f":"Import!E5328","v":"Select"},{"$f":"Import!E5528","v":"Select"},{"$f":"Import!E5728","v":"Select"},{"$f":"Import!E5928","v":0},{"$f":"Import!E6128","v":0},{"$f":"Import!E6328","v":0}]
[66,{"$f":"Import!E5329","v":"Select"},{"$f":"Import!E5529","v":"Select"},{"$f":"Import!E5729","v":"Select"},{"$f":"Import!E5929","v":0},{"$f":"Import!E6129","v":0},{"$f":"Import!E6329","v":0}]
[{"$f":"A76+1","v":67},{"$f":"Import!E5330","v":"Select"},{"$f":"Import!E5530","v":"Select"},{"$f":"Import!E5730","v":"Select"},{"$f":"Import!E5930","v":0},{"$f":"Import!E6130","v":0},{"$f":"Import!E6330","v":0}]
[68,{"$f":"Import!E5331","v":"Select"},{"$f":"Import!E5531","v":"Select"},{"$f":"Import!E5731","v":"Select"},{"$f":"Import!E5931","v":0},{"$f":"Import!E6131","v":0},{"$f":"Import!E6331","v":0}]
[69,{"$f":"Import!E5332","v":"Select"},{"$f":"Import!E5532","v":"Select"},{"$f":"Import!E5732","v":"Select"},{"$f":"Import!E5932","v":0},{"$f":"Import!E6132","v":0},{"$f":"Import!E6332","v":0}]
[70,{"$f":"Import!E5333","v":"Select"},{"$f":"Import!E5533","v":"Select"},{"$f":"Import!E5733","v":"Select"},{"$f":"Import!E5933","v":0},{"$f":"Import!E6133","v":0},{"$f":"Import!E6333","v":0}]
[71,{"$f":"Import!E5334","v":"Select"},{"$f":"Import!E5534","v":"Select"},{"$f":"Import!E5734","v":"Select"},{"$f":"Import!E5934","v":0},{"$f":"Import!E6134","v":0},{"$f":"Import!E6334","v":0}]
[72,{"$f":"Import!E5335","v":"Select"},{"$f":"Import!E5535","v":"Select"},{"$f":"Import!E5735","v":"Select"},{"$f":"Import!E5935","v":0},{"$f":"Import!E6135","v":0},{"$f":"Import!E6335","v":0}]
[73,{"$f":"Import!E5336","v":"Select"},{"$f":"Import!E5536","v":"Select"},{"$f":"Import!E5736","v":"Select"},{"$f":"Import!E5936","v":0},{"$f":"Import!E6136","v":0},{"$f":"Import!E6336","v":0}]
[74,{"$f":"Import!E5337","v":"Select"},{"$f":"Import!E5537","v":"Select"},{"$f":"Import!E5737","v":"Select"},{"$f":"Import!E5937","v":0},{"$f":"Import!E6137","v":0},{"$f":"Import!E6337","v":0}]
[75,{"$f":"Import!E5338","v":"Select"},{"$f":"Import!E5538","v":"Select"},{"$f":"Import!E5738","v":"Select"},{"$f":"Import!E5938","v":0},{"$f":"Import!E6138","v":0},{"$f":"Import!E6338","v":0}]
[76,{"$f":"Import!E5339","v":"Select"},{"$f":"Import!E5539","v":"Select"},{"$f":"Import!E5739","v":"Select"},{"$f":"Import!E5939","v":0},{"$f":"Import!E6139","v":0},{"$f":"Import!E6339","v":0}]
[77,{"$f":"Import!E5340","v":"Select"},{"$f":"Import!E5540","v":"Select"},{"$f":"Import!E5740","v":"Select"},{"$f":"Import!E5940","v":0},{"$f":"Import!E6140","v":0},{"$f":"Import!E6340","v":0}]
[78,{"$f":"Import!E5341","v":"Select"},{"$f":"Import!E5541","v":"Select"},{"$f":"Import!E5741","v":"Select"},{"$f":"Import!E5941","v":0},{"$f":"Import!E6141","v":0},{"$f":"Import!E6341","v":0}]
[79,{"$f":"Import!E5342","v":"Select"},{"$f":"Import!E5542","v":"Select"},{"$f":"Import!E5742","v":"Select"},{"$f":"Import!E5942","v":0},{"$f":"Import!E6142","v":0},{"$f":"Import!E6342","v":0}]
[80,{"$f":"Import!E5343","v":"Select"},{"$f":"Import!E5543","v":"Select"},{"$f":"Import!E5743","v":"Select"},{"$f":"Import!E5943","v":0},{"$f":"Import!E6143","v":0},{"$f":"Import!E6343","v":0}]
[81,{"$f":"Import!E5344","v":"Select"},{"$f":"Import!E5544","v":"Select"},{"$f":"Import!E5744","v":"Select"},{"$f":"Import!E5944","v":0},{"$f":"Import!E6144","v":0},{"$f":"Import!E6344","v":0}]
[82,{"$f":"Import!E5345","v":"Select"},{"$f":"Import!E5545","v":"Select"},{"$f":"Import!E5745","v":"Select"},{"$f":"Import!E5945","v":0},{"$f":"Import!E6145","v":0},{"$f":"Import!E6345","v":0}]
[83,{"$f":"Import!E5346","v":"Select"},{"$f":"Import!E5546","v":"Select"},{"$f":"Import!E5746","v":"Select"},{"$f":"Import!E5946","v":0},{"$f":"Import!E6146","v":0},{"$f":"Import!E6346","v":0}]
[84,{"$f":"Import!E5347","v":"Select"},{"$f":"Import!E5547","v":"Select"},{"$f":"Import!E5747","v":"Select"},{"$f":"Import!E5947","v":0},{"$f":"Import!E6147","v":0},{"$f":"Import!E6347","v":0}]
[85,{"$f":"Import!E5348","v":"Select"},{"$f":"Import!E5548","v":"Select"},{"$f":"Import!E5748","v":"Select"},{"$f":"Import!E5948","v":0},{"$f":"Import!E6148","v":0},{"$f":"Import!E6348","v":0}]
[86,{"$f":"Import!E5349","v":"Select"},{"$f":"Import!E5549","v":"Select"},{"$f":"Import!E5749","v":"Select"},{"$f":"Import!E5949","v":0},{"$f":"Import!E6149","v":0},{"$f":"Import!E6349","v":0}]
[87,{"$f":"Import!E5350","v":"Select"},{"$f":"Import!E5550","v":"Select"},{"$f":"Import!E5750","v":"Select"},{"$f":"Import!E5950","v":0},{"$f":"Import!E6150","v":0},{"$f":"Import!E6350","v":0}]
[88,{"$f":"Import!E5351","v":"Select"},{"$f":"Import!E5551","v":"Select"},{"$f":"Import!E5751","v":"Select"},{"$f":"Import!E5951","v":0},{"$f":"Import!E6151","v":0},{"$f":"Import!E6351","v":0}]
[89,{"$f":"Import!E5352","v":"Select"},{"$f":"Import!E5552","v":"Select"},{"$f":"Import!E5752","v":"Select"},{"$f":"Import!E5952","v":0},{"$f":"Import!E6152","v":0},{"$f":"Import!E6352","v":0}]
[90,{"$f":"Import!E5353","v":"Select"},{"$f":"Import!E5553","v":"Select"},{"$f":"Import!E5753","v":"Select"},{"$f":"Import!E5953","v":0},{"$f":"Import!E6153","v":0},{"$f":"Import!E6353","v":0}]
[91,{"$f":"Import!E5354","v":"Select"},{"$f":"Import!E5554","v":"Select"},{"$f":"Import!E5754","v":"Select"},{"$f":"Import!E5954","v":0},{"$f":"Import!E6154","v":0},{"$f":"Import!E6354","v":0}]
[92,{"$f":"Import!E5355","v":"Select"},{"$f":"Import!E5555","v":"Select"},{"$f":"Import!E5755","v":"Select"},{"$f":"Import!E5955","v":0},{"$f":"Import!E6155","v":0},{"$f":"Import!E6355","v":0}]
[93,{"$f":"Import!E5356","v":"Select"},{"$f":"Import!E5556","v":"Select"},{"$f":"Import!E5756","v":"Select"},{"$f":"Import!E5956","v":0},{"$f":"Import!E6156","v":0},{"$f":"Import!E6356","v":0}]
[94,{"$f":"Import!E5357","v":"Select"},{"$f":"Import!E5557","v":"Select"},{"$f":"Import!E5757","v":"Select"},{"$f":"Import!E5957","v":0},{"$f":"Import!E6157","v":0},{"$f":"Import!E6357","v":0}]
[95,{"$f":"Import!E5358","v":"Select"},{"$f":"Import!E5558","v":"Select"},{"$f":"Import!E5758","v":"Select"},{"$f":"Import!E5958","v":0},{"$f":"Import!E6158","v":0},{"$f":"Import!E6358","v":0}]
[96,{"$f":"Import!E5359","v":"Select"},{"$f":"Import!E5559","v":"Select"},{"$f":"Import!E5759","v":"Select"},{"$f":"Import!E5959","v":0},{"$f":"Import!E6159","v":0},{"$f":"Import!E6359","v":0}]
[97,{"$f":"Import!E5360","v":"Select"},{"$f":"Import!E5560","v":"Select"},{"$f":"Import!E5760","v":"Select"},{"$f":"Import!E5960","v":0},{"$f":"Import!E6160","v":0},{"$f":"Import!E6360","v":0}]
[98,{"$f":"Import!E5361","v":"Select"},{"$f":"Import!E5561","v":"Select"},{"$f":"Import!E5761","v":"Select"},{"$f":"Import!E5961","v":0},{"$f":"Import!E6161","v":0},{"$f":"Import!E6361","v":0}]
[99,{"$f":"Import!E5362","v":"Select"},{"$f":"Import!E5562","v":"Select"},{"$f":"Import!E5762","v":"Select"},{"$f":"Import!E5962","v":0},{"$f":"Import!E6162","v":0},{"$f":"Import!E6362","v":0}]
[100,{"$f":"Import!E5363","v":"Select"},{"$f":"Import!E5563","v":"Select"},{"$f":"Import!E5763","v":"Select"},{"$f":"Import!E5963","v":0},{"$f":"Import!E6163","v":0},{"$f":"Import!E6363","v":0}]
[101,{"$f":"Import!E5364","v":"Select"},{"$f":"Import!E5564","v":"Select"},{"$f":"Import!E5764","v":"Select"},{"$f":"Import!E5964","v":0},{"$f":"Import!E6164","v":0},{"$f":"Import!E6364","v":0}]
[102,{"$f":"Import!E5365","v":"Select"},{"$f":"Import!E5565","v":"Select"},{"$f":"Import!E5765","v":"Select"},{"$f":"Import!E5965","v":0},{"$f":"Import!E6165","v":0},{"$f":"Import!E6365","v":0}]
[103,{"$f":"Import!E5366","v":"Select"},{"$f":"Import!E5566","v":"Select"},{"$f":"Import!E5766","v":"Select"},{"$f":"Import!E5966","v":0},{"$f":"Import!E6166","v":0},{"$f":"Import!E6366","v":0}]
[104,{"$f":"Import!E5367","v":"Select"},{"$f":"Import!E5567","v":"Select"},{"$f":"Import!E5767","v":"Select"},{"$f":"Import!E5967","v":0},{"$f":"Import!E6167","v":0},{"$f":"Import!E6367","v":0}]
[105,{"$f":"Import!E5368","v":"Select"},{"$f":"Import!E5568","v":"Select"},{"$f":"Import!E5768","v":"Select"},{"$f":"Import!E5968","v":0},{"$f":"Import!E6168","v":0},{"$f":"Import!E6368","v":0}]
[106,{"$f":"Import!E5369","v":"Select"},{"$f":"Import!E5569","v":"Select"},{"$f":"Import!E5769","v":"Select"},{"$f":"Import!E5969","v":0},{"$f":"Import!E6169","v":0},{"$f":"Import!E6369","v":0}]
[107,{"$f":"Import!E5370","v":"Select"},{"$f":"Import!E5570","v":"Select"},{"$f":"Import!E5770","v":"Select"},{"$f":"Import!E5970","v":0},{"$f":"Import!E6170","v":0},{"$f":"Import!E6370","v":0}]
[108,{"$f":"Import!E5371","v":"Select"},{"$f":"Import!E5571","v":"Select"},{"$f":"Import!E5771","v":"Select"},{"$f":"Import!E5971","v":0},{"$f":"Import!E6171","v":0},{"$f":"Import!E6371","v":0}]
[109,{"$f":"Import!E5372","v":"Select"},{"$f":"Import!E5572","v":"Select"},{"$f":"Import!E5772","v":"Select"},{"$f":"Import!E5972","v":0},{"$f":"Import!E6172","v":0},{"$f":"Import!E6372","v":0}]
[110,{"$f":"Import!E5373","v":"Select"},{"$f":"Import!E5573","v":"Select"},{"$f":"Import!E5773","v":"Select"},{"$f":"Import!E5973","v":0},{"$f":"Import!E6173","v":0},{"$f":"Import!E6373","v":0}]
[111,{"$f":"Import!E5374","v":"Select"},{"$f":"Import!E5574","v":"Select"},{"$f":"Import!E5774","v":"Select"},{"$f":"Import!E5974","v":0},{"$f":"Import!E6174","v":0},{"$f":"Import!E6374","v":0}]
[112,{"$f":"Import!E5375","v":"Select"},{"$f":"Import!E5575","v":"Select"},{"$f":"Import!E5775","v":"Select"},{"$f":"Import!E5975","v":0},{"$f":"Import!E6175","v":0},{"$f":"Import!E6375","v":0}]
[113,{"$f":"Import!E5376","v":"Select"},{"$f":"Import!E5576","v":"Select"},{"$f":"Import!E5776","v":"Select"},{"$f":"Import!E5976","v":0},{"$f":"Import!E6176","v":0},{"$f":"Import!E6376","v":0}]
[114,{"$f":"Import!E5377","v":"Select"},{"$f":"Import!E5577","v":"Select"},{"$f":"Import!E5777","v":"Select"},{"$f":"Import!E5977","v":0},{"$f":"Import!E6177","v":0},{"$f":"Import!E6377","v":0}]
[115,{"$f":"Import!E5378","v":"Select"},{"$f":"Import!E5578","v":"Select"},{"$f":"Import!E5778","v":"Select"},{"$f":"Import!E5978","v":0},{"$f":"Import!E6178","v":0},{"$f":"Import!E6378","v":0}]
[116,{"$f":"Import!E5379","v":"Select"},{"$f":"Import!E5579","v":"Select"},{"$f":"Import!E5779","v":"Select"},{"$f":"Import!E5979","v":0},{"$f":"Import!E6179","v":0},{"$f":"Import!E6379","v":0}]
[117,{"$f":"Import!E5380","v":"Select"},{"$f":"Import!E5580","v":"Select"},{"$f":"Import!E5780","v":"Select"},{"$f":"Import!E5980","v":0},{"$f":"Import!E6180","v":0},{"$f":"Import!E6380","v":0}]
[118,{"$f":"Import!E5381","v":"Select"},{"$f":"Import!E5581","v":"Select"},{"$f":"Import!E5781","v":"Select"},{"$f":"Import!E5981","v":0},{"$f":"Import!E6181","v":0},{"$f":"Import!E6381","v":0}]
[119,{"$f":"Import!E5382","v":"Select"},{"$f":"Import!E5582","v":"Select"},{"$f":"Import!E5782","v":"Select"},{"$f":"Import!E5982","v":0},{"$f":"Import!E6182","v":0},{"$f":"Import!E6382","v":0}]
[120,{"$f":"Import!E5383","v":"Select"},{"$f":"Import!E5583","v":"Select"},{"$f":"Import!E5783","v":"Select"},{"$f":"Import!E5983","v":0},{"$f":"Import!E6183","v":0},{"$f":"Import!E6383","v":0}]
[121,{"$f":"Import!E5384","v":"Select"},{"$f":"Import!E5584","v":"Select"},{"$f":"Import!E5784","v":"Select"},{"$f":"Import!E5984","v":0},{"$f":"Import!E6184","v":0},{"$f":"Import!E6384","v":0}]
[122,{"$f":"Import!E5385","v":"Select"},{"$f":"Import!E5585","v":"Select"},{"$f":"Import!E5785","v":"Select"},{"$f":"Import!E5985","v":0},{"$f":"Import!E6185","v":0},{"$f":"Import!E6385","v":0}]
[123,{"$f":"Import!E5386","v":"Select"},{"$f":"Import!E5586","v":"Select"},{"$f":"Import!E5786","v":"Select"},{"$f":"Import!E5986","v":0},{"$f":"Import!E6186","v":0},{"$f":"Import!E6386","v":0}]
[124,{"$f":"Import!E5387","v":"Select"},{"$f":"Import!E5587","v":"Select"},{"$f":"Import!E5787","v":"Select"},{"$f":"Import!E5987","v":0},{"$f":"Import!E6187","v":0},{"$f":"Import!E6387","v":0}]
[125,{"$f":"Import!E5388","v":"Select"},{"$f":"Import!E5588","v":"Select"},{"$f":"Import!E5788","v":"Select"},{"$f":"Import!E5988","v":0},{"$f":"Import!E6188","v":0},{"$f":"Import!E6388","v":0}]
[126,{"$f":"Import!E5389","v":"Select"},{"$f":"Import!E5589","v":"Select"},{"$f":"Import!E5789","v":"Select"},{"$f":"Import!E5989","v":0},{"$f":"Import!E6189","v":0},{"$f":"Import!E6389","v":0}]
[127,{"$f":"Import!E5390","v":"Select"},{"$f":"Import!E5590","v":"Select"},{"$f":"Import!E5790","v":"Select"},{"$f":"Import!E5990","v":0},{"$f":"Import!E6190","v":0},{"$f":"Import!E6390","v":0}]
[128,{"$f":"Import!E5391","v":"Select"},{"$f":"Import!E5591","v":"Select"},{"$f":"Import!E5791","v":"Select"},{"$f":"Import!E5991","v":0},{"$f":"Import!E6191","v":0},{"$f":"Import!E6391","v":0}]
[129,{"$f":"Import!E5392","v":"Select"},{"$f":"Import!E5592","v":"Select"},{"$f":"Import!E5792","v":"Select"},{"$f":"Import!E5992","v":0},{"$f":"Import!E6192","v":0},{"$f":"Import!E6392","v":0}]
[130,{"$f":"Import!E5393","v":"Select"},{"$f":"Import!E5593","v":"Select"},{"$f":"Import!E5793","v":"Select"},{"$f":"Import!E5993","v":0},{"$f":"Import!E6193","v":0},{"$f":"Import!E6393","v":0}]
[{"$f":"A140+1","v":131},{"$f":"Import!E5394","v":"Select"},{"$f":"Import!E5594","v":"Select"},{"$f":"Import!E5794","v":"Select"},{"$f":"Import!E5994","v":0},{"$f":"Import!E6194","v":0},{"$f":"Import!E6394","v":0}]
[132,{"$f":"Import!E5395","v":"Select"},{"$f":"Import!E5595","v":"Select"},{"$f":"Import!E5795","v":"Select"},{"$f":"Import!E5995","v":0},{"$f":"Import!E6195","v":0},{"$f":"Import!E6395","v":0}]
[133,{"$f":"Import!E5396","v":"Select"},{"$f":"Import!E5596","v":"Select"},{"$f":"Import!E5796","v":"Select"},{"$f":"Import!E5996","v":0},{"$f":"Import!E6196","v":0},{"$f":"Import!E6396","v":0}]
[134,{"$f":"Import!E5397","v":"Select"},{"$f":"Import!E5597","v":"Select"},{"$f":"Import!E5797","v":"Select"},{"$f":"Import!E5997","v":0},{"$f":"Import!E6197","v":0},{"$f":"Import!E6397","v":0}]
[135,{"$f":"Import!E5398","v":"Select"},{"$f":"Import!E5598","v":"Select"},{"$f":"Import!E5798","v":"Select"},{"$f":"Import!E5998","v":0},{"$f":"Import!E6198","v":0},{"$f":"Import!E6398","v":0}]
[136,{"$f":"Import!E5399","v":"Select"},{"$f":"Import!E5599","v":"Select"},{"$f":"Import!E5799","v":"Select"},{"$f":"Import!E5999","v":0},{"$f":"Import!E6199","v":0},{"$f":"Import!E6399","v":0}]
[137,{"$f":"Import!E5400","v":"Select"},{"$f":"Import!E5600","v":"Select"},{"$f":"Import!E5800","v":"Select"},{"$f":"Import!E6000","v":0},{"$f":"Import!E6200","v":0},{"$f":"Import!E6400","v":0}]
[138,{"$f":"Import!E5401","v":"Select"},{"$f":"Import!E5601","v":"Select"},{"$f":"Import!E5801","v":"Select"},{"$f":"Import!E6001","v":0},{"$f":"Import!E6201","v":0},{"$f":"Import!E6401","v":0}]
[139,{"$f":"Import!E5402","v":"Select"},{"$f":"Import!E5602","v":"Select"},{"$f":"Import!E5802","v":"Select"},{"$f":"Import!E6002","v":0},{"$f":"Import!E6202","v":0},{"$f":"Import!E6402","v":0}]
[140,{"$f":"Import!E5403","v":"Select"},{"$f":"Import!E5603","v":"Select"},{"$f":"Import!E5803","v":"Select"},{"$f":"Import!E6003","v":0},{"$f":"Import!E6203","v":0},{"$f":"Import!E6403","v":0}]
[141,{"$f":"Import!E5404","v":"Select"},{"$f":"Import!E5604","v":"Select"},{"$f":"Import!E5804","v":"Select"},{"$f":"Import!E6004","v":0},{"$f":"Import!E6204","v":0},{"$f":"Import!E6404","v":0}]
[142,{"$f":"Import!E5405","v":"Select"},{"$f":"Import!E5605","v":"Select"},{"$f":"Import!E5805","v":"Select"},{"$f":"Import!E6005","v":0},{"$f":"Import!E6205","v":0},{"$f":"Import!E6405","v":0}]
[143,{"$f":"Import!E5406","v":"Select"},{"$f":"Import!E5606","v":"Select"},{"$f":"Import!E5806","v":"Select"},{"$f":"Import!E6006","v":0},{"$f":"Import!E6206","v":0},{"$f":"Import!E6406","v":0}]
[144,{"$f":"Import!E5407","v":"Select"},{"$f":"Import!E5607","v":"Select"},{"$f":"Import!E5807","v":"Select"},{"$f":"Import!E6007","v":0},{"$f":"Import!E6207","v":0},{"$f":"Import!E6407","v":0}]
[145,{"$f":"Import!E5408","v":"Select"},{"$f":"Import!E5608","v":"Select"},{"$f":"Import!E5808","v":"Select"},{"$f":"Import!E6008","v":0},{"$f":"Import!E6208","v":0},{"$f":"Import!E6408","v":0}]
[146,{"$f":"Import!E5409","v":"Select"},{"$f":"Import!E5609","v":"Select"},{"$f":"Import!E5809","v":"Select"},{"$f":"Import!E6009","v":0},{"$f":"Import!E6209","v":0},{"$f":"Import!E6409","v":0}]
[147,{"$f":"Import!E5410","v":"Select"},{"$f":"Import!E5610","v":"Select"},{"$f":"Import!E5810","v":"Select"},{"$f":"Import!E6010","v":0},{"$f":"Import!E6210","v":0},{"$f":"Import!E6410","v":0}]
[148,{"$f":"Import!E5411","v":"Select"},{"$f":"Import!E5611","v":"Select"},{"$f":"Import!E5811","v":"Select"},{"$f":"Import!E6011","v":0},{"$f":"Import!E6211","v":0},{"$f":"Import!E6411","v":0}]
[149,{"$f":"Import!E5412","v":"Select"},{"$f":"Import!E5612","v":"Select"},{"$f":"Import!E5812","v":"Select"},{"$f":"Import!E6012","v":0},{"$f":"Import!E6212","v":0},{"$f":"Import!E6412","v":0}]
[150,{"$f":"Import!E5413","v":"Select"},{"$f":"Import!E5613","v":"Select"},{"$f":"Import!E5813","v":"Select"},{"$f":"Import!E6013","v":0},{"$f":"Import!E6213","v":0},{"$f":"Import!E6413","v":0}]
[151,{"$f":"Import!E5414","v":"Select"},{"$f":"Import!E5614","v":"Select"},{"$f":"Import!E5814","v":"Select"},{"$f":"Import!E6014","v":0},{"$f":"Import!E6214","v":0},{"$f":"Import!E6414","v":0}]
[152,{"$f":"Import!E5415","v":"Select"},{"$f":"Import!E5615","v":"Select"},{"$f":"Import!E5815","v":"Select"},{"$f":"Import!E6015","v":0},{"$f":"Import!E6215","v":0},{"$f":"Import!E6415","v":0}]
[153,{"$f":"Import!E5416","v":"Select"},{"$f":"Import!E5616","v":"Select"},{"$f":"Import!E5816","v":"Select"},{"$f":"Import!E6016","v":0},{"$f":"Import!E6216","v":0},{"$f":"Import!E6416","v":0}]
[154,{"$f":"Import!E5417","v":"Select"},{"$f":"Import!E5617","v":"Select"},{"$f":"Import!E5817","v":"Select"},{"$f":"Import!E6017","v":0},{"$f":"Import!E6217","v":0},{"$f":"Import!E6417","v":0}]
[155,{"$f":"Import!E5418","v":"Select"},{"$f":"Import!E5618","v":"Select"},{"$f":"Import!E5818","v":"Select"},{"$f":"Import!E6018","v":0},{"$f":"Import!E6218","v":0},{"$f":"Import!E6418","v":0}]
[156,{"$f":"Import!E5419","v":"Select"},{"$f":"Import!E5619","v":"Select"},{"$f":"Import!E5819","v":"Select"},{"$f":"Import!E6019","v":0},{"$f":"Import!E6219","v":0},{"$f":"Import!E6419","v":0}]
[157,{"$f":"Import!E5420","v":"Select"},{"$f":"Import!E5620","v":"Select"},{"$f":"Import!E5820","v":"Select"},{"$f":"Import!E6020","v":0},{"$f":"Import!E6220","v":0},{"$f":"Import!E6420","v":0}]
[158,{"$f":"Import!E5421","v":"Select"},{"$f":"Import!E5621","v":"Select"},{"$f":"Import!E5821","v":"Select"},{"$f":"Import!E6021","v":0},{"$f":"Import!E6221","v":0},{"$f":"Import!E6421","v":0}]
[159,{"$f":"Import!E5422","v":"Select"},{"$f":"Import!E5622","v":"Select"},{"$f":"Import!E5822","v":"Select"},{"$f":"Import!E6022","v":0},{"$f":"Import!E6222","v":0},{"$f":"Import!E6422","v":0}]
[160,{"$f":"Import!E5423","v":"Select"},{"$f":"Import!E5623","v":"Select"},{"$f":"Import!E5823","v":"Select"},{"$f":"Import!E6023","v":0},{"$f":"Import!E6223","v":0},{"$f":"Import!E6423","v":0}]
[161,{"$f":"Import!E5424","v":"Select"},{"$f":"Import!E5624","v":"Select"},{"$f":"Import!E5824","v":"Select"},{"$f":"Import!E6024","v":0},{"$f":"Import!E6224","v":0},{"$f":"Import!E6424","v":0}]
[162,{"$f":"Import!E5425","v":"Select"},{"$f":"Import!E5625","v":"Select"},{"$f":"Import!E5825","v":"Select"},{"$f":"Import!E6025","v":0},{"$f":"Import!E6225","v":0},{"$f":"Import!E6425","v":0}]
[163,{"$f":"Import!E5426","v":"Select"},{"$f":"Import!E5626","v":"Select"},{"$f":"Import!E5826","v":"Select"},{"$f":"Import!E6026","v":0},{"$f":"Import!E6226","v":0},{"$f":"Import!E6426","v":0}]
[164,{"$f":"Import!E5427","v":"Select"},{"$f":"Import!E5627","v":"Select"},{"$f":"Import!E5827","v":"Select"},{"$f":"Import!E6027","v":0},{"$f":"Import!E6227","v":0},{"$f":"Import!E6427","v":0}]
[165,{"$f":"Import!E5428","v":"Select"},{"$f":"Import!E5628","v":"Select"},{"$f":"Import!E5828","v":"Select"},{"$f":"Import!E6028","v":0},{"$f":"Import!E6228","v":0},{"$f":"Import!E6428","v":0}]
[166,{"$f":"Import!E5429","v":"Select"},{"$f":"Import!E5629","v":"Select"},{"$f":"Import!E5829","v":"Select"},{"$f":"Import!E6029","v":0},{"$f":"Import!E6229","v":0},{"$f":"Import!E6429","v":0}]
[167,{"$f":"Import!E5430","v":"Select"},{"$f":"Import!E5630","v":"Select"},{"$f":"Import!E5830","v":"Select"},{"$f":"Import!E6030","v":0},{"$f":"Import!E6230","v":0},{"$f":"Import!E6430","v":0}]
[168,{"$f":"Import!E5431","v":"Select"},{"$f":"Import!E5631","v":"Select"},{"$f":"Import!E5831","v":"Select"},{"$f":"Import!E6031","v":0},{"$f":"Import!E6231","v":0},{"$f":"Import!E6431","v":0}]
[169,{"$f":"Import!E5432","v":"Select"},{"$f":"Import!E5632","v":"Select"},{"$f":"Import!E5832","v":"Select"},{"$f":"Import!E6032","v":0},{"$f":"Import!E6232","v":0},{"$f":"Import!E6432","v":0}]
[170,{"$f":"Import!E5433","v":"Select"},{"$f":"Import!E5633","v":"Select"},{"$f":"Import!E5833","v":"Select"},{"$f":"Import!E6033","v":0},{"$f":"Import!E6233","v":0},{"$f":"Import!E6433","v":0}]
[171,{"$f":"Import!E5434","v":"Select"},{"$f":"Import!E5634","v":"Select"},{"$f":"Import!E5834","v":"Select"},{"$f":"Import!E6034","v":0},{"$f":"Import!E6234","v":0},{"$f":"Import!E6434","v":0}]
[172,{"$f":"Import!E5435","v":"Select"},{"$f":"Import!E5635","v":"Select"},{"$f":"Import!E5835","v":"Select"},{"$f":"Import!E6035","v":0},{"$f":"Import!E6235","v":0},{"$f":"Import!E6435","v":0}]
[173,{"$f":"Import!E5436","v":"Select"},{"$f":"Import!E5636","v":"Select"},{"$f":"Import!E5836","v":"Select"},{"$f":"Import!E6036","v":0},{"$f":"Import!E6236","v":0},{"$f":"Import!E6436","v":0}]
[174,{"$f":"Import!E5437","v":"Select"},{"$f":"Import!E5637","v":"Select"},{"$f":"Import!E5837","v":"Select"},{"$f":"Import!E6037","v":0},{"$f":"Import!E6237","v":0},{"$f":"Import!E6437","v":0}]
[175,{"$f":"Import!E5438","v":"Select"},{"$f":"Import!E5638","v":"Select"},{"$f":"Import!E5838","v":"Select"},{"$f":"Import!E6038","v":0},{"$f":"Import!E6238","v":0},{"$f":"Import!E6438","v":0}]
[176,{"$f":"Import!E5439","v":"Select"},{"$f":"Import!E5639","v":"Select"},{"$f":"Import!E5839","v":"Select"},{"$f":"Import!E6039","v":0},{"$f":"Import!E6239","v":0},{"$f":"Import!E6439","v":0}]
[177,{"$f":"Import!E5440","v":"Select"},{"$f":"Import!E5640","v":"Select"},{"$f":"Import!E5840","v":"Select"},{"$f":"Import!E6040","v":0},{"$f":"Import!E6240","v":0},{"$f":"Import!E6440","v":0}]
[178,{"$f":"Import!E5441","v":"Select"},{"$f":"Import!E5641","v":"Select"},{"$f":"Import!E5841","v":"Select"},{"$f":"Import!E6041","v":0},{"$f":"Import!E6241","v":0},{"$f":"Import!E6441","v":0}]
[179,{"$f":"Import!E5442","v":"Select"},{"$f":"Import!E5642","v":"Select"},{"$f":"Import!E5842","v":"Select"},{"$f":"Import!E6042","v":0},{"$f":"Import!E6242","v":0},{"$f":"Import!E6442","v":0}]
[180,{"$f":"Import!E5443","v":"Select"},{"$f":"Import!E5643","v":"Select"},{"$f":"Import!E5843","v":"Select"},{"$f":"Import!E6043","v":0},{"$f":"Import!E6243","v":0},{"$f":"Import!E6443","v":0}]
[181,{"$f":"Import!E5444","v":"Select"},{"$f":"Import!E5644","v":"Select"},{"$f":"Import!E5844","v":"Select"},{"$f":"Import!E6044","v":0},{"$f":"Import!E6244","v":0},{"$f":"Import!E6444","v":0}]
[182,{"$f":"Import!E5445","v":"Select"},{"$f":"Import!E5645","v":"Select"},{"$f":"Import!E5845","v":"Select"},{"$f":"Import!E6045","v":0},{"$f":"Import!E6245","v":0},{"$f":"Import!E6445","v":0}]
[183,{"$f":"Import!E5446","v":"Select"},{"$f":"Import!E5646","v":"Select"},{"$f":"Import!E5846","v":"Select"},{"$f":"Import!E6046","v":0},{"$f":"Import!E6246","v":0},{"$f":"Import!E6446","v":0}]
[184,{"$f":"Import!E5447","v":"Select"},{"$f":"Import!E5647","v":"Select"},{"$f":"Import!E5847","v":"Select"},{"$f":"Import!E6047","v":0},{"$f":"Import!E6247","v":0},{"$f":"Import!E6447","v":0}]
[185,{"$f":"Import!E5448","v":"Select"},{"$f":"Import!E5648","v":"Select"},{"$f":"Import!E5848","v":"Select"},{"$f":"Import!E6048","v":0},{"$f":"Import!E6248","v":0},{"$f":"Import!E6448","v":0}]
[186,{"$f":"Import!E5449","v":"Select"},{"$f":"Import!E5649","v":"Select"},{"$f":"Import!E5849","v":"Select"},{"$f":"Import!E6049","v":0},{"$f":"Import!E6249","v":0},{"$f":"Import!E6449","v":0}]
[187,{"$f":"Import!E5450","v":"Select"},{"$f":"Import!E5650","v":"Select"},{"$f":"Import!E5850","v":"Select"},{"$f":"Import!E6050","v":0},{"$f":"Import!E6250","v":0},{"$f":"Import!E6450","v":0}]
[188,{"$f":"Import!E5451","v":"Select"},{"$f":"Import!E5651","v":"Select"},{"$f":"Import!E5851","v":"Select"},{"$f":"Import!E6051","v":0},{"$f":"Import!E6251","v":0},{"$f":"Import!E6451","v":0}]
[189,{"$f":"Import!E5452","v":"Select"},{"$f":"Import!E5652","v":"Select"},{"$f":"Import!E5852","v":"Select"},{"$f":"Import!E6052","v":0},{"$f":"Import!E6252","v":0},{"$f":"Import!E6452","v":0}]
[190,{"$f":"Import!E5453","v":"Select"},{"$f":"Import!E5653","v":"Select"},{"$f":"Import!E5853","v":"Select"},{"$f":"Import!E6053","v":0},{"$f":"Import!E6253","v":0},{"$f":"Import!E6453","v":0}]
[191,{"$f":"Import!E5454","v":"Select"},{"$f":"Import!E5654","v":"Select"},{"$f":"Import!E5854","v":"Select"},{"$f":"Import!E6054","v":0},{"$f":"Import!E6254","v":0},{"$f":"Import!E6454","v":0}]
[192,{"$f":"Import!E5455","v":"Select"},{"$f":"Import!E5655","v":"Select"},{"$f":"Import!E5855","v":"Select"},{"$f":"Import!E6055","v":0},{"$f":"Import!E6255","v":0},{"$f":"Import!E6455","v":0}]
[193,{"$f":"Import!E5456","v":"Select"},{"$f":"Import!E5656","v":"Select"},{"$f":"Import!E5856","v":"Select"},{"$f":"Import!E6056","v":0},{"$f":"Import!E6256","v":0},{"$f":"Import!E6456","v":0}]
[194,{"$f":"Import!E5457","v":"Select"},{"$f":"Import!E5657","v":"Select"},{"$f":"Import!E5857","v":"Select"},{"$f":"Import!E6057","v":0},{"$f":"Import!E6257","v":0},{"$f":"Import!E6457","v":0}]
[{"$f":"A204+1","v":195},{"$f":"Import!E5458","v":"Select"},{"$f":"Import!E5658","v":"Select"},{"$f":"Import!E5858","v":"Select"},{"$f":"Import!E6058","v":0},{"$f":"Import!E6258","v":0},{"$f":"Import!E6458","v":0}]
[196,{"$f":"Import!E5459","v":"Select"},{"$f":"Import!E5659","v":"Select"},{"$f":"Import!E5859","v":"Select"},{"$f":"Import!E6059","v":0},{"$f":"Import!E6259","v":0},{"$f":"Import!E6459","v":0}]
[197,{"$f":"Import!E5460","v":"Select"},{"$f":"Import!E5660","v":"Select"},{"$f":"Import!E5860","v":"Select"},{"$f":"Import!E6060","v":0},{"$f":"Import!E6260","v":0},{"$f":"Import!E6460","v":0}]
[198,{"$f":"Import!E5461","v":"Select"},{"$f":"Import!E5661","v":"Select"},{"$f":"Import!E5861","v":"Select"},{"$f":"Import!E6061","v":0},{"$f":"Import!E6261","v":0},{"$f":"Import!E6461","v":0}]
[199,{"$f":"Import!E5462","v":"Select"},{"$f":"Import!E5662","v":"Select"},{"$f":"Import!E5862","v":"Select"},{"$f":"Import!E6062","v":0},{"$f":"Import!E6262","v":0},{"$f":"Import!E6462","v":0}]
[200,{"$f":"Import!E5463","v":"Select"},{"$f":"Import!E5663","v":"Select"},{"$f":"Import!E5863","v":"Select"},{"$f":"Import!E6063","v":0},{"$f":"Import!E6263","v":0},{"$f":"Import!E6463","v":0}]
[]
[null,"Total Cash and Cash Equivalents",null,null,{"$f":"SUM(E11:E210)","v":0},{"$f":"SUM(F11:F210)","v":0}]
[]
[null,"(B) BONDS AND DEBENTURES"]
[]
[null,null,"Enter # of Asset Types",{"$f":"Import!E6464","v":0}]
[null,null,null,null,{"$f":"YEAR($C$3)","v":2023},2023,"Weighted"]
[null,"Asset Type","Currency","BSCR Rating","Nominal Amount","Fair Value","Average YTM","Effective Duration","Comments"]
[1,{"$f":"Import!E6465","v":"Select"},{"$f":"Import!E6865","v":"Select"},{"$f":"Import!E7265","v":"Select"},{"$f":"Import!E7665","v":0},{"$f":"Import!E8065","v":0},{"$f":"Import!E8465","v":0},{"$f":"Import!E8865","v":0},{"$f":"Import!E9265","v":0}]
[{"$f":"A219+1","v":2},{"$f":"Import!E6466","v":"Select"},{"$f":"Import!E6866","v":"Select"},{"$f":"Import!E7266","v":"Select"},{"$f":"Import!E7666","v":0},{"$f":"Import!E8066","v":0},{"$f":"Import!E8466","v":0},{"$f":"Import!E8866","v":0},{"$f":"Import!E9266","v":0}]
[{"$f":"A220+1","v":3},{"$f":"Import!E6467","v":"Select"},{"$f":"Import!E6867","v":"Select"},{"$f":"Import!E7267","v":"Select"},{"$f":"Import!E7667","v":0},{"$f":"Import!E8067","v":0},{"$f":"Import!E8467","v":0},{"$f":"Import!E8867","v":0},{"$f":"Import!E9267","v":0}]
[4,{"$f":"Import!E6468","v":"Select"},{"$f":"Import!E6868","v":"Select"},{"$f":"Import!E7268","v":"Select"},{"$f":"Import!E7668","v":0},{"$f":"Import!E8068","v":0},{"$f":"Import!E8468","v":0},{"$f":"Import!E8868","v":0},{"$f":"Import!E9268","v":0}]
[5,{"$f":"Import!E6469","v":"Select"},{"$f":"Import!E6869","v":"Select"},{"$f":"Import!E7269","v":"Select"},{"$f":"Import!E7669","v":0},{"$f":"Import!E8069","v":0},{"$f":"Import!E8469","v":0},{"$f":"Import!E8869","v":0},{"$f":"Import!E9269","v":0}]
[6,{"$f":"Import!E6470","v":"Select"},{"$f":"Import!E6870","v":"Select"},{"$f":"Import!E7270","v":"Select"},{"$f":"Import!E7670","v":0},{"$f":"Import!E8070","v":0},{"$f":"Import!E8470","v":0},{"$f":"Import!E8870","v":0},{"$f":"Import!E9270","v":0}]
[7,{"$f":"Import!E6471","v":"Select"},{"$f":"Import!E6871","v":"Select"},{"$f":"Import!E7271","v":"Select"},{"$f":"Import!E7671","v":0},{"$f":"Import!E8071","v":0},{"$f":"Import!E8471","v":0},{"$f":"Import!E8871","v":0},{"$f":"Import!E9271","v":0}]
[8,{"$f":"Import!E6472","v":"Select"},{"$f":"Import!E6872","v":"Select"},{"$f":"Import!E7272","v":"Select"},{"$f":"Import!E7672","v":0},{"$f":"Import!E8072","v":0},{"$f":"Import!E8472","v":0},{"$f":"Import!E8872","v":0},{"$f":"Import!E9272","v":0}]
[9,{"$f":"Import!E6473","v":"Select"},{"$f":"Import!E6873","v":"Select"},{"$f":"Import!E7273","v":"Select"},{"$f":"Import!E7673","v":0},{"$f":"Import!E8073","v":0},{"$f":"Import!E8473","v":0},{"$f":"Import!E8873","v":0},{"$f":"Import!E9273","v":0}]
[10,{"$f":"Import!E6474","v":"Select"},{"$f":"Import!E6874","v":"Select"},{"$f":"Import!E7274","v":"Select"},{"$f":"Import!E7674","v":0},{"$f":"Import!E8074","v":0},{"$f":"Import!E8474","v":0},{"$f":"Import!E8874","v":0},{"$f":"Import!E9274","v":0}]
[11,{"$f":"Import!E6475","v":"Select"},{"$f":"Import!E6875","v":"Select"},{"$f":"Import!E7275","v":"Select"},{"$f":"Import!E7675","v":0},{"$f":"Import!E8075","v":0},{"$f":"Import!E8475","v":0},{"$f":"Import!E8875","v":0},{"$f":"Import!E9275","v":0}]
[12,{"$f":"Import!E6476","v":"Select"},{"$f":"Import!E6876","v":"Select"},{"$f":"Import!E7276","v":"Select"},{"$f":"Import!E7676","v":0},{"$f":"Import!E8076","v":0},{"$f":"Import!E8476","v":0},{"$f":"Import!E8876","v":0},{"$f":"Import!E9276","v":0}]
[13,{"$f":"Import!E6477","v":"Select"},{"$f":"Import!E6877","v":"Select"},{"$f":"Import!E7277","v":"Select"},{"$f":"Import!E7677","v":0},{"$f":"Import!E8077","v":0},{"$f":"Import!E8477","v":0},{"$f":"Import!E8877","v":0},{"$f":"Import!E9277","v":0}]
[14,{"$f":"Import!E6478","v":"Select"},{"$f":"Import!E6878","v":"Select"},{"$f":"Import!E7278","v":"Select"},{"$f":"Import!E7678","v":0},{"$f":"Import!E8078","v":0},{"$f":"Import!E8478","v":0},{"$f":"Import!E8878","v":0},{"$f":"Import!E9278","v":0}]
[15,{"$f":"Import!E6479","v":"Select"},{"$f":"Import!E6879","v":"Select"},{"$f":"Import!E7279","v":"Select"},{"$f":"Import!E7679","v":0},{"$f":"Import!E8079","v":0},{"$f":"Import!E8479","v":0},{"$f":"Import!E8879","v":0},{"$f":"Import!E9279","v":0}]
[16,{"$f":"Import!E6480","v":"Select"},{"$f":"Import!E6880","v":"Select"},{"$f":"Import!E7280","v":"Select"},{"$f":"Import!E7680","v":0},{"$f":"Import!E8080","v":0},{"$f":"Import!E8480","v":0},{"$f":"Import!E8880","v":0},{"$f":"Import!E9280","v":0}]
[17,{"$f":"Import!E6481","v":"Select"},{"$f":"Import!E6881","v":"Select"},{"$f":"Import!E7281","v":"Select"},{"$f":"Import!E7681","v":0},{"$f":"Import!E8081","v":0},{"$f":"Import!E8481","v":0},{"$f":"Import!E8881","v":0},{"$f":"Import!E9281","v":0}]
[18,{"$f":"Import!E6482","v":"Select"},{"$f":"Import!E6882","v":"Select"},{"$f":"Import!E7282","v":"Select"},{"$f":"Import!E7682","v":0},{"$f":"Import!E8082","v":0},{"$f":"Import!E8482","v":0},{"$f":"Import!E8882","v":0},{"$f":"Import!E9282","v":0}]
[19,{"$f":"Import!E6483","v":"Select"},{"$f":"Import!E6883","v":"Select"},{"$f":"Import!E7283","v":"Select"},{"$f":"Import!E7683","v":0},{"$f":"Import!E8083","v":0},{"$f":"Import!E8483","v":0},{"$f":"Import!E8883","v":0},{"$f":"Import!E9283","v":0}]
[20,{"$f":"Import!E6484","v":"Select"},{"$f":"Import!E6884","v":"Select"},{"$f":"Import!E7284","v":"Select"},{"$f":"Import!E7684","v":0},{"$f":"Import!E8084","v":0},{"$f":"Import!E8484","v":0},{"$f":"Import!E8884","v":0},{"$f":"Import!E9284","v":0}]
[21,{"$f":"Import!E6485","v":"Select"},{"$f":"Import!E6885","v":"Select"},{"$f":"Import!E7285","v":"Select"},{"$f":"Import!E7685","v":0},{"$f":"Import!E8085","v":0},{"$f":"Import!E8485","v":0},{"$f":"Import!E8885","v":0},{"$f":"Import!E9285","v":0}]
[22,{"$f":"Import!E6486","v":"Select"},{"$f":"Import!E6886","v":"Select"},{"$f":"Import!E7286","v":"Select"},{"$f":"Import!E7686","v":0},{"$f":"Import!E8086","v":0},{"$f":"Import!E8486","v":0},{"$f":"Import!E8886","v":0},{"$f":"Import!E9286","v":0}]
[23,{"$f":"Import!E6487","v":"Select"},{"$f":"Import!E6887","v":"Select"},{"$f":"Import!E7287","v":"Select"},{"$f":"Import!E7687","v":0},{"$f":"Import!E8087","v":0},{"$f":"Import!E8487","v":0},{"$f":"Import!E8887","v":0},{"$f":"Import!E9287","v":0}]
[24,{"$f":"Import!E6488","v":"Select"},{"$f":"Import!E6888","v":"Select"},{"$f":"Import!E7288","v":"Select"},{"$f":"Import!E7688","v":0},{"$f":"Import!E8088","v":0},{"$f":"Import!E8488","v":0},{"$f":"Import!E8888","v":0},{"$f":"Import!E9288","v":0}]
[25,{"$f":"Import!E6489","v":"Select"},{"$f":"Import!E6889","v":"Select"},{"$f":"Import!E7289","v":"Select"},{"$f":"Import!E7689","v":0},{"$f":"Import!E8089","v":0},{"$f":"Import!E8489","v":0},{"$f":"Import!E8889","v":0},{"$f":"Import!E9289","v":0}]
[26,{"$f":"Import!E6490","v":"Select"},{"$f":"Import!E6890","v":"Select"},{"$f":"Import!E7290","v":"Select"},{"$f":"Import!E7690","v":0},{"$f":"Import!E8090","v":0},{"$f":"Import!E8490","v":0},{"$f":"Import!E8890","v":0},{"$f":"Import!E9290","v":0}]
[27,{"$f":"Import!E6491","v":"Select"},{"$f":"Import!E6891","v":"Select"},{"$f":"Import!E7291","v":"Select"},{"$f":"Import!E7691","v":0},{"$f":"Import!E8091","v":0},{"$f":"Import!E8491","v":0},{"$f":"Import!E8891","v":0},{"$f":"Import!E9291","v":0}]
[28,{"$f":"Import!E6492","v":"Select"},{"$f":"Import!E6892","v":"Select"},{"$f":"Import!E7292","v":"Select"},{"$f":"Import!E7692","v":0},{"$f":"Import!E8092","v":0},{"$f":"Import!E8492","v":0},{"$f":"Import!E8892","v":0},{"$f":"Import!E9292","v":0}]
[29,{"$f":"Import!E6493","v":"Select"},{"$f":"Import!E6893","v":"Select"},{"$f":"Import!E7293","v":"Select"},{"$f":"Import!E7693","v":0},{"$f":"Import!E8093","v":0},{"$f":"Import!E8493","v":0},{"$f":"Import!E8893","v":0},{"$f":"Import!E9293","v":0}]
[30,{"$f":"Import!E6494","v":"Select"},{"$f":"Import!E6894","v":"Select"},{"$f":"Import!E7294","v":"Select"},{"$f":"Import!E7694","v":0},{"$f":"Import!E8094","v":0},{"$f":"Import!E8494","v":0},{"$f":"Import!E8894","v":0},{"$f":"Import!E9294","v":0}]
[31,{"$f":"Import!E6495","v":"Select"},{"$f":"Import!E6895","v":"Select"},{"$f":"Import!E7295","v":"Select"},{"$f":"Import!E7695","v":0},{"$f":"Import!E8095","v":0},{"$f":"Import!E8495","v":0},{"$f":"Import!E8895","v":0},{"$f":"Import!E9295","v":0}]
[32,{"$f":"Import!E6496","v":"Select"},{"$f":"Import!E6896","v":"Select"},{"$f":"Import!E7296","v":"Select"},{"$f":"Import!E7696","v":0},{"$f":"Import!E8096","v":0},{"$f":"Import!E8496","v":0},{"$f":"Import!E8896","v":0},{"$f":"Import!E9296","v":0}]
[33,{"$f":"Import!E6497","v":"Select"},{"$f":"Import!E6897","v":"Select"},{"$f":"Import!E7297","v":"Select"},{"$f":"Import!E7697","v":0},{"$f":"Import!E8097","v":0},{"$f":"Import!E8497","v":0},{"$f":"Import!E8897","v":0},{"$f":"Import!E9297","v":0}]
[34,{"$f":"Import!E6498","v":"Select"},{"$f":"Import!E6898","v":"Select"},{"$f":"Import!E7298","v":"Select"},{"$f":"Import!E7698","v":0},{"$f":"Import!E8098","v":0},{"$f":"Import!E8498","v":0},{"$f":"Import!E8898","v":0},{"$f":"Import!E9298","v":0}]
[35,{"$f":"Import!E6499","v":"Select"},{"$f":"Import!E6899","v":"Select"},{"$f":"Import!E7299","v":"Select"},{"$f":"Import!E7699","v":0},{"$f":"Import!E8099","v":0},{"$f":"Import!E8499","v":0},{"$f":"Import!E8899","v":0},{"$f":"Import!E9299","v":0}]
[36,{"$f":"Import!E6500","v":"Select"},{"$f":"Import!E6900","v":"Select"},{"$f":"Import!E7300","v":"Select"},{"$f":"Import!E7700","v":0},{"$f":"Import!E8100","v":0},{"$f":"Import!E8500","v":0},{"$f":"Import!E8900","v":0},{"$f":"Import!E9300","v":0}]
[37,{"$f":"Import!E6501","v":"Select"},{"$f":"Import!E6901","v":"Select"},{"$f":"Import!E7301","v":"Select"},{"$f":"Import!E7701","v":0},{"$f":"Import!E8101","v":0},{"$f":"Import!E8501","v":0},{"$f":"Import!E8901","v":0},{"$f":"Import!E9301","v":0}]
[38,{"$f":"Import!E6502","v":"Select"},{"$f":"Import!E6902","v":"Select"},{"$f":"Import!E7302","v":"Select"},{"$f":"Import!E7702","v":0},{"$f":"Import!E8102","v":0},{"$f":"Import!E8502","v":0},{"$f":"Import!E8902","v":0},{"$f":"Import!E9302","v":0}]
[39,{"$f":"Import!E6503","v":"Select"},{"$f":"Import!E6903","v":"Select"},{"$f":"Import!E7303","v":"Select"},{"$f":"Import!E7703","v":0},{"$f":"Import!E8103","v":0},{"$f":"Import!E8503","v":0},{"$f":"Import!E8903","v":0},{"$f":"Import!E9303","v":0}]
[40,{"$f":"Import!E6504","v":"Select"},{"$f":"Import!E6904","v":"Select"},{"$f":"Import!E7304","v":"Select"},{"$f":"Import!E7704","v":0},{"$f":"Import!E8104","v":0},{"$f":"Import!E8504","v":0},{"$f":"Import!E8904","v":0},{"$f":"Import!E9304","v":0}]
[41,{"$f":"Import!E6505","v":"Select"},{"$f":"Import!E6905","v":"Select"},{"$f":"Import!E7305","v":"Select"},{"$f":"Import!E7705","v":0},{"$f":"Import!E8105","v":0},{"$f":"Import!E8505","v":0},{"$f":"Import!E8905","v":0},{"$f":"Import!E9305","v":0}]
[42,{"$f":"Import!E6506","v":"Select"},{"$f":"Import!E6906","v":"Select"},{"$f":"Import!E7306","v":"Select"},{"$f":"Import!E7706","v":0},{"$f":"Import!E8106","v":0},{"$f":"Import!E8506","v":0},{"$f":"Import!E8906","v":0},{"$f":"Import!E9306","v":0}]
[43,{"$f":"Import!E6507","v":"Select"},{"$f":"Import!E6907","v":"Select"},{"$f":"Import!E7307","v":"Select"},{"$f":"Import!E7707","v":0},{"$f":"Import!E8107","v":0},{"$f":"Import!E8507","v":0},{"$f":"Import!E8907","v":0},{"$f":"Import!E9307","v":0}]
[44,{"$f":"Import!E6508","v":"Select"},{"$f":"Import!E6908","v":"Select"},{"$f":"Import!E7308","v":"Select"},{"$f":"Import!E7708","v":0},{"$f":"Import!E8108","v":0},{"$f":"Import!E8508","v":0},{"$f":"Import!E8908","v":0},{"$f":"Import!E9308","v":0}]
[45,{"$f":"Import!E6509","v":"Select"},{"$f":"Import!E6909","v":"Select"},{"$f":"Import!E7309","v":"Select"},{"$f":"Import!E7709","v":0},{"$f":"Import!E8109","v":0},{"$f":"Import!E8509","v":0},{"$f":"Import!E8909","v":0},{"$f":"Import!E9309","v":0}]
[46,{"$f":"Import!E6510","v":"Select"},{"$f":"Import!E6910","v":"Select"},{"$f":"Import!E7310","v":"Select"},{"$f":"Import!E7710","v":0},{"$f":"Import!E8110","v":0},{"$f":"Import!E8510","v":0},{"$f":"Import!E8910","v":0},{"$f":"Import!E9310","v":0}]
[47,{"$f":"Import!E6511","v":"Select"},{"$f":"Import!E6911","v":"Select"},{"$f":"Import!E7311","v":"Select"},{"$f":"Import!E7711","v":0},{"$f":"Import!E8111","v":0},{"$f":"Import!E8511","v":0},{"$f":"Import!E8911","v":0},{"$f":"Import!E9311","v":0}]
[48,{"$f":"Import!E6512","v":"Select"},{"$f":"Import!E6912","v":"Select"},{"$f":"Import!E7312","v":"Select"},{"$f":"Import!E7712","v":0},{"$f":"Import!E8112","v":0},{"$f":"Import!E8512","v":0},{"$f":"Import!E8912","v":0},{"$f":"Import!E9312","v":0}]
[49,{"$f":"Import!E6513","v":"Select"},{"$f":"Import!E6913","v":"Select"},{"$f":"Import!E7313","v":"Select"},{"$f":"Import!E7713","v":0},{"$f":"Import!E8113","v":0},{"$f":"Import!E8513","v":0},{"$f":"Import!E8913","v":0},{"$f":"Import!E9313","v":0}]
[50,{"$f":"Import!E6514","v":"Select"},{"$f":"Import!E6914","v":"Select"},{"$f":"Import!E7314","v":"Select"},{"$f":"Import!E7714","v":0},{"$f":"Import!E8114","v":0},{"$f":"Import!E8514","v":0},{"$f":"Import!E8914","v":0},{"$f":"Import!E9314","v":0}]
[51,{"$f":"Import!E6515","v":"Select"},{"$f":"Import!E6915","v":"Select"},{"$f":"Import!E7315","v":"Select"},{"$f":"Import!E7715","v":0},{"$f":"Import!E8115","v":0},{"$f":"Import!E8515","v":0},{"$f":"Import!E8915","v":0},{"$f":"Import!E9315","v":0}]
[52,{"$f":"Import!E6516","v":"Select"},{"$f":"Import!E6916","v":"Select"},{"$f":"Import!E7316","v":"Select"},{"$f":"Import!E7716","v":0},{"$f":"Import!E8116","v":0},{"$f":"Import!E8516","v":0},{"$f":"Import!E8916","v":0},{"$f":"Import!E9316","v":0}]
[53,{"$f":"Import!E6517","v":"Select"},{"$f":"Import!E6917","v":"Select"},{"$f":"Import!E7317","v":"Select"},{"$f":"Import!E7717","v":0},{"$f":"Import!E8117","v":0},{"$f":"Import!E8517","v":0},{"$f":"Import!E8917","v":0},{"$f":"Import!E9317","v":0}]
[54,{"$f":"Import!E6518","v":"Select"},{"$f":"Import!E6918","v":"Select"},{"$f":"Import!E7318","v":"Select"},{"$f":"Import!E7718","v":0},{"$f":"Import!E8118","v":0},{"$f":"Import!E8518","v":0},{"$f":"Import!E8918","v":0},{"$f":"Import!E9318","v":0}]
[55,{"$f":"Import!E6519","v":"Select"},{"$f":"Import!E6919","v":"Select"},{"$f":"Import!E7319","v":"Select"},{"$f":"Import!E7719","v":0},{"$f":"Import!E8119","v":0},{"$f":"Import!E8519","v":0},{"$f":"Import!E8919","v":0},{"$f":"Import!E9319","v":0}]
[56,{"$f":"Import!E6520","v":"Select"},{"$f":"Import!E6920","v":"Select"},{"$f":"Import!E7320","v":"Select"},{"$f":"Import!E7720","v":0},{"$f":"Import!E8120","v":0},{"$f":"Import!E8520","v":0},{"$f":"Import!E8920","v":0},{"$f":"Import!E9320","v":0}]
[57,{"$f":"Import!E6521","v":"Select"},{"$f":"Import!E6921","v":"Select"},{"$f":"Import!E7321","v":"Select"},{"$f":"Import!E7721","v":0},{"$f":"Import!E8121","v":0},{"$f":"Import!E8521","v":0},{"$f":"Import!E8921","v":0},{"$f":"Import!E9321","v":0}]
[58,{"$f":"Import!E6522","v":"Select"},{"$f":"Import!E6922","v":"Select"},{"$f":"Import!E7322","v":"Select"},{"$f":"Import!E7722","v":0},{"$f":"Import!E8122","v":0},{"$f":"Import!E8522","v":0},{"$f":"Import!E8922","v":0},{"$f":"Import!E9322","v":0}]
[59,{"$f":"Import!E6523","v":"Select"},{"$f":"Import!E6923","v":"Select"},{"$f":"Import!E7323","v":"Select"},{"$f":"Import!E7723","v":0},{"$f":"Import!E8123","v":0},{"$f":"Import!E8523","v":0},{"$f":"Import!E8923","v":0},{"$f":"Import!E9323","v":0}]
[60,{"$f":"Import!E6524","v":"Select"},{"$f":"Import!E6924","v":"Select"},{"$f":"Import!E7324","v":"Select"},{"$f":"Import!E7724","v":0},{"$f":"Import!E8124","v":0},{"$f":"Import!E8524","v":0},{"$f":"Import!E8924","v":0},{"$f":"Import!E9324","v":0}]
[61,{"$f":"Import!E6525","v":"Select"},{"$f":"Import!E6925","v":"Select"},{"$f":"Import!E7325","v":"Select"},{"$f":"Import!E7725","v":0},{"$f":"Import!E8125","v":0},{"$f":"Import!E8525","v":0},{"$f":"Import!E8925","v":0},{"$f":"Import!E9325","v":0}]
[62,{"$f":"Import!E6526","v":"Select"},{"$f":"Import!E6926","v":"Select"},{"$f":"Import!E7326","v":"Select"},{"$f":"Import!E7726","v":0},{"$f":"Import!E8126","v":0},{"$f":"Import!E8526","v":0},{"$f":"Import!E8926","v":0},{"$f":"Import!E9326","v":0}]
[63,{"$f":"Import!E6527","v":"Select"},{"$f":"Import!E6927","v":"Select"},{"$f":"Import!E7327","v":"Select"},{"$f":"Import!E7727","v":0},{"$f":"Import!E8127","v":0},{"$f":"Import!E8527","v":0},{"$f":"Import!E8927","v":0},{"$f":"Import!E9327","v":0}]
[64,{"$f":"Import!E6528","v":"Select"},{"$f":"Import!E6928","v":"Select"},{"$f":"Import!E7328","v":"Select"},{"$f":"Import!E7728","v":0},{"$f":"Import!E8128","v":0},{"$f":"Import!E8528","v":0},{"$f":"Import!E8928","v":0},{"$f":"Import!E9328","v":0}]
[65,{"$f":"Import!E6529","v":"Select"},{"$f":"Import!E6929","v":"Select"},{"$f":"Import!E7329","v":"Select"},{"$f":"Import!E7729","v":0},{"$f":"Import!E8129","v":0},{"$f":"Import!E8529","v":0},{"$f":"Import!E8929","v":0},{"$f":"Import!E9329","v":0}]
[66,{"$f":"Import!E6530","v":"Select"},{"$f":"Import!E6930","v":"Select"},{"$f":"Import!E7330","v":"Select"},{"$f":"Import!E7730","v":0},{"$f":"Import!E8130","v":0},{"$f":"Import!E8530","v":0},{"$f":"Import!E8930","v":0},{"$f":"Import!E9330","v":0}]
[{"$f":"A284+1","v":67},{"$f":"Import!E6531","v":"Select"},{"$f":"Import!E6931","v":"Select"},{"$f":"Import!E7331","v":"Select"},{"$f":"Import!E7731","v":0},{"$f":"Import!E8131","v":0},{"$f":"Import!E8531","v":0},{"$f":"Import!E8931","v":0},{"$f":"Import!E9331","v":0}]
[68,{"$f":"Import!E6532","v":"Select"},{"$f":"Import!E6932","v":"Select"},{"$f":"Import!E7332","v":"Select"},{"$f":"Import!E7732","v":0},{"$f":"Import!E8132","v":0},{"$f":"Import!E8532","v":0},{"$f":"Import!E8932","v":0},{"$f":"Import!E9332","v":0}]
[69,{"$f":"Import!E6533","v":"Select"},{"$f":"Import!E6933","v":"Select"},{"$f":"Import!E7333","v":"Select"},{"$f":"Import!E7733","v":0},{"$f":"Import!E8133","v":0},{"$f":"Import!E8533","v":0},{"$f":"Import!E8933","v":0},{"$f":"Import!E9333","v":0}]
[70,{"$f":"Import!E6534","v":"Select"},{"$f":"Import!E6934","v":"Select"},{"$f":"Import!E7334","v":"Select"},{"$f":"Import!E7734","v":0},{"$f":"Import!E8134","v":0},{"$f":"Import!E8534","v":0},{"$f":"Import!E8934","v":0},{"$f":"Import!E9334","v":0}]
[71,{"$f":"Import!E6535","v":"Select"},{"$f":"Import!E6935","v":"Select"},{"$f":"Import!E7335","v":"Select"},{"$f":"Import!E7735","v":0},{"$f":"Import!E8135","v":0},{"$f":"Import!E8535","v":0},{"$f":"Import!E8935","v":0},{"$f":"Import!E9335","v":0}]
[72,{"$f":"Import!E6536","v":"Select"},{"$f":"Import!E6936","v":"Select"},{"$f":"Import!E7336","v":"Select"},{"$f":"Import!E7736","v":0},{"$f":"Import!E8136","v":0},{"$f":"Import!E8536","v":0},{"$f":"Import!E8936","v":0},{"$f":"Import!E9336","v":0}]
[73,{"$f":"Import!E6537","v":"Select"},{"$f":"Import!E6937","v":"Select"},{"$f":"Import!E7337","v":"Select"},{"$f":"Import!E7737","v":0},{"$f":"Import!E8137","v":0},{"$f":"Import!E8537","v":0},{"$f":"Import!E8937","v":0},{"$f":"Import!E9337","v":0}]
[74,{"$f":"Import!E6538","v":"Select"},{"$f":"Import!E6938","v":"Select"},{"$f":"Import!E7338","v":"Select"},{"$f":"Import!E7738","v":0},{"$f":"Import!E8138","v":0},{"$f":"Import!E8538","v":0},{"$f":"Import!E8938","v":0},{"$f":"Import!E9338","v":0}]
[75,{"$f":"Import!E6539","v":"Select"},{"$f":"Import!E6939","v":"Select"},{"$f":"Import!E7339","v":"Select"},{"$f":"Import!E7739","v":0},{"$f":"Import!E8139","v":0},{"$f":"Import!E8539","v":0},{"$f":"Import!E8939","v":0},{"$f":"Import!E9339","v":0}]
[76,{"$f":"Import!E6540","v":"Select"},{"$f":"Import!E6940","v":"Select"},{"$f":"Import!E7340","v":"Select"},{"$f":"Import!E7740","v":0},{"$f":"Import!E8140","v":0},{"$f":"Import!E8540","v":0},{"$f":"Import!E8940","v":0},{"$f":"Import!E9340","v":0}]
[77,{"$f":"Import!E6541","v":"Select"},{"$f":"Import!E6941","v":"Select"},{"$f":"Import!E7341","v":"Select"},{"$f":"Import!E7741","v":0},{"$f":"Import!E8141","v":0},{"$f":"Import!E8541","v":0},{"$f":"Import!E8941","v":0},{"$f":"Import!E9341","v":0}]
[78,{"$f":"Import!E6542","v":"Select"},{"$f":"Import!E6942","v":"Select"},{"$f":"Import!E7342","v":"Select"},{"$f":"Import!E7742","v":0},{"$f":"Import!E8142","v":0},{"$f":"Import!E8542","v":0},{"$f":"Import!E8942","v":0},{"$f":"Import!E9342","v":0}]
[79,{"$f":"Import!E6543","v":"Select"},{"$f":"Import!E6943","v":"Select"},{"$f":"Import!E7343","v":"Select"},{"$f":"Import!E7743","v":0},{"$f":"Import!E8143","v":0},{"$f":"Import!E8543","v":0},{"$f":"Import!E8943","v":0},{"$f":"Import!E9343","v":0}]
[80,{"$f":"Import!E6544","v":"Select"},{"$f":"Import!E6944","v":"Select"},{"$f":"Import!E7344","v":"Select"},{"$f":"Import!E7744","v":0},{"$f":"Import!E8144","v":0},{"$f":"Import!E8544","v":0},{"$f":"Import!E8944","v":0},{"$f":"Import!E9344","v":0}]
[81,{"$f":"Import!E6545","v":"Select"},{"$f":"Import!E6945","v":"Select"},{"$f":"Import!E7345","v":"Select"},{"$f":"Import!E7745","v":0},{"$f":"Import!E8145","v":0},{"$f":"Import!E8545","v":0},{"$f":"Import!E8945","v":0},{"$f":"Import!E9345","v":0}]
[82,{"$f":"Import!E6546","v":"Select"},{"$f":"Import!E6946","v":"Select"},{"$f":"Import!E7346","v":"Select"},{"$f":"Import!E7746","v":0},{"$f":"Import!E8146","v":0},{"$f":"Import!E8546","v":0},{"$f":"Import!E8946","v":0},{"$f":"Import!E9346","v":0}]
[83,{"$f":"Import!E6547","v":"Select"},{"$f":"Import!E6947","v":"Select"},{"$f":"Import!E7347","v":"Select"},{"$f":"Import!E7747","v":0},{"$f":"Import!E8147","v":0},{"$f":"Import!E8547","v":0},{"$f":"Import!E8947","v":0},{"$f":"Import!E9347","v":0}]
[84,{"$f":"Import!E6548","v":"Select"},{"$f":"Import!E6948","v":"Select"},{"$f":"Import!E7348","v":"Select"},{"$f":"Import!E7748","v":0},{"$f":"Import!E8148","v":0},{"$f":"Import!E8548","v":0},{"$f":"Import!E8948","v":0},{"$f":"Import!E9348","v":0}]
[85,{"$f":"Import!E6549","v":"Select"},{"$f":"Import!E6949","v":"Select"},{"$f":"Import!E7349","v":"Select"},{"$f":"Import!E7749","v":0},{"$f":"Import!E8149","v":0},{"$f":"Import!E8549","v":0},{"$f":"Import!E8949","v":0},{"$f":"Import!E9349","v":0}]
[86,{"$f":"Import!E6550","v":"Select"},{"$f":"Import!E6950","v":"Select"},{"$f":"Import!E7350","v":"Select"},{"$f":"Import!E7750","v":0},{"$f":"Import!E8150","v":0},{"$f":"Import!E8550","v":0},{"$f":"Import!E8950","v":0},{"$f":"Import!E9350","v":0}]
[87,{"$f":"Import!E6551","v":"Select"},{"$f":"Import!E6951","v":"Select"},{"$f":"Import!E7351","v":"Select"},{"$f":"Import!E7751","v":0},{"$f":"Import!E8151","v":0},{"$f":"Import!E8551","v":0},{"$f":"Import!E8951","v":0},{"$f":"Import!E9351","v":0}]
[88,{"$f":"Import!E6552","v":"Select"},{"$f":"Import!E6952","v":"Select"},{"$f":"Import!E7352","v":"Select"},{"$f":"Import!E7752","v":0},{"$f":"Import!E8152","v":0},{"$f":"Import!E8552","v":0},{"$f":"Import!E8952","v":0},{"$f":"Import!E9352","v":0}]
[89,{"$f":"Import!E6553","v":"Select"},{"$f":"Import!E6953","v":"Select"},{"$f":"Import!E7353","v":"Select"},{"$f":"Import!E7753","v":0},{"$f":"Import!E8153","v":0},{"$f":"Import!E8553","v":0},{"$f":"Import!E8953","v":0},{"$f":"Import!E9353","v":0}]
[90,{"$f":"Import!E6554","v":"Select"},{"$f":"Import!E6954","v":"Select"},{"$f":"Import!E7354","v":"Select"},{"$f":"Import!E7754","v":0},{"$f":"Import!E8154","v":0},{"$f":"Import!E8554","v":0},{"$f":"Import!E8954","v":0},{"$f":"Import!E9354","v":0}]
[91,{"$f":"Import!E6555","v":"Select"},{"$f":"Import!E6955","v":"Select"},{"$f":"Import!E7355","v":"Select"},{"$f":"Import!E7755","v":0},{"$f":"Import!E8155","v":0},{"$f":"Import!E8555","v":0},{"$f":"Import!E8955","v":0},{"$f":"Import!E9355","v":0}]
[92,{"$f":"Import!E6556","v":"Select"},{"$f":"Import!E6956","v":"Select"},{"$f":"Import!E7356","v":"Select"},{"$f":"Import!E7756","v":0},{"$f":"Import!E8156","v":0},{"$f":"Import!E8556","v":0},{"$f":"Import!E8956","v":0},{"$f":"Import!E9356","v":0}]
[93,{"$f":"Import!E6557","v":"Select"},{"$f":"Import!E6957","v":"Select"},{"$f":"Import!E7357","v":"Select"},{"$f":"Import!E7757","v":0},{"$f":"Import!E8157","v":0},{"$f":"Import!E8557","v":0},{"$f":"Import!E8957","v":0},{"$f":"Import!E9357","v":0}]
[94,{"$f":"Import!E6558","v":"Select"},{"$f":"Import!E6958","v":"Select"},{"$f":"Import!E7358","v":"Select"},{"$f":"Import!E7758","v":0},{"$f":"Import!E8158","v":0},{"$f":"Import!E8558","v":0},{"$f":"Import!E8958","v":0},{"$f":"Import!E9358","v":0}]
[95,{"$f":"Import!E6559","v":"Select"},{"$f":"Import!E6959","v":"Select"},{"$f":"Import!E7359","v":"Select"},{"$f":"Import!E7759","v":0},{"$f":"Import!E8159","v":0},{"$f":"Import!E8559","v":0},{"$f":"Import!E8959","v":0},{"$f":"Import!E9359","v":0}]
[96,{"$f":"Import!E6560","v":"Select"},{"$f":"Import!E6960","v":"Select"},{"$f":"Import!E7360","v":"Select"},{"$f":"Import!E7760","v":0},{"$f":"Import!E8160","v":0},{"$f":"Import!E8560","v":0},{"$f":"Import!E8960","v":0},{"$f":"Import!E9360","v":0}]
[97,{"$f":"Import!E6561","v":"Select"},{"$f":"Import!E6961","v":"Select"},{"$f":"Import!E7361","v":"Select"},{"$f":"Import!E7761","v":0},{"$f":"Import!E8161","v":0},{"$f":"Import!E8561","v":0},{"$f":"Import!E8961","v":0},{"$f":"Import!E9361","v":0}]
[98,{"$f":"Import!E6562","v":"Select"},{"$f":"Import!E6962","v":"Select"},{"$f":"Import!E7362","v":"Select"},{"$f":"Import!E7762","v":0},{"$f":"Import!E8162","v":0},{"$f":"Import!E8562","v":0},{"$f":"Import!E8962","v":0},{"$f":"Import!E9362","v":0}]
[99,{"$f":"Import!E6563","v":"Select"},{"$f":"Import!E6963","v":"Select"},{"$f":"Import!E7363","v":"Select"},{"$f":"Import!E7763","v":0},{"$f":"Import!E8163","v":0},{"$f":"Import!E8563","v":0},{"$f":"Import!E8963","v":0},{"$f":"Import!E9363","v":0}]
[100,{"$f":"Import!E6564","v":"Select"},{"$f":"Import!E6964","v":"Select"},{"$f":"Import!E7364","v":"Select"},{"$f":"Import!E7764","v":0},{"$f":"Import!E8164","v":0},{"$f":"Import!E8564","v":0},{"$f":"Import!E8964","v":0},{"$f":"Import!E9364","v":0}]
[101,{"$f":"Import!E6565","v":"Select"},{"$f":"Import!E6965","v":"Select"},{"$f":"Import!E7365","v":"Select"},{"$f":"Import!E7765","v":0},{"$f":"Import!E8165","v":0},{"$f":"Import!E8565","v":0},{"$f":"Import!E8965","v":0},{"$f":"Import!E9365","v":0}]
[102,{"$f":"Import!E6566","v":"Select"},{"$f":"Import!E6966","v":"Select"},{"$f":"Import!E7366","v":"Select"},{"$f":"Import!E7766","v":0},{"$f":"Import!E8166","v":0},{"$f":"Import!E8566","v":0},{"$f":"Import!E8966","v":0},{"$f":"Import!E9366","v":0}]
[103,{"$f":"Import!E6567","v":"Select"},{"$f":"Import!E6967","v":"Select"},{"$f":"Import!E7367","v":"Select"},{"$f":"Import!E7767","v":0},{"$f":"Import!E8167","v":0},{"$f":"Import!E8567","v":0},{"$f":"Import!E8967","v":0},{"$f":"Import!E9367","v":0}]
[104,{"$f":"Import!E6568","v":"Select"},{"$f":"Import!E6968","v":"Select"},{"$f":"Import!E7368","v":"Select"},{"$f":"Import!E7768","v":0},{"$f":"Import!E8168","v":0},{"$f":"Import!E8568","v":0},{"$f":"Import!E8968","v":0},{"$f":"Import!E9368","v":0}]
[105,{"$f":"Import!E6569","v":"Select"},{"$f":"Import!E6969","v":"Select"},{"$f":"Import!E7369","v":"Select"},{"$f":"Import!E7769","v":0},{"$f":"Import!E8169","v":0},{"$f":"Import!E8569","v":0},{"$f":"Import!E8969","v":0},{"$f":"Import!E9369","v":0}]
[106,{"$f":"Import!E6570","v":"Select"},{"$f":"Import!E6970","v":"Select"},{"$f":"Import!E7370","v":"Select"},{"$f":"Import!E7770","v":0},{"$f":"Import!E8170","v":0},{"$f":"Import!E8570","v":0},{"$f":"Import!E8970","v":0},{"$f":"Import!E9370","v":0}]
[107,{"$f":"Import!E6571","v":"Select"},{"$f":"Import!E6971","v":"Select"},{"$f":"Import!E7371","v":"Select"},{"$f":"Import!E7771","v":0},{"$f":"Import!E8171","v":0},{"$f":"Import!E8571","v":0},{"$f":"Import!E8971","v":0},{"$f":"Import!E9371","v":0}]
[108,{"$f":"Import!E6572","v":"Select"},{"$f":"Import!E6972","v":"Select"},{"$f":"Import!E7372","v":"Select"},{"$f":"Import!E7772","v":0},{"$f":"Import!E8172","v":0},{"$f":"Import!E8572","v":0},{"$f":"Import!E8972","v":0},{"$f":"Import!E9372","v":0}]
[109,{"$f":"Import!E6573","v":"Select"},{"$f":"Import!E6973","v":"Select"},{"$f":"Import!E7373","v":"Select"},{"$f":"Import!E7773","v":0},{"$f":"Import!E8173","v":0},{"$f":"Import!E8573","v":0},{"$f":"Import!E8973","v":0},{"$f":"Import!E9373","v":0}]
[110,{"$f":"Import!E6574","v":"Select"},{"$f":"Import!E6974","v":"Select"},{"$f":"Import!E7374","v":"Select"},{"$f":"Import!E7774","v":0},{"$f":"Import!E8174","v":0},{"$f":"Import!E8574","v":0},{"$f":"Import!E8974","v":0},{"$f":"Import!E9374","v":0}]
[111,{"$f":"Import!E6575","v":"Select"},{"$f":"Import!E6975","v":"Select"},{"$f":"Import!E7375","v":"Select"},{"$f":"Import!E7775","v":0},{"$f":"Import!E8175","v":0},{"$f":"Import!E8575","v":0},{"$f":"Import!E8975","v":0},{"$f":"Import!E9375","v":0}]
[112,{"$f":"Import!E6576","v":"Select"},{"$f":"Import!E6976","v":"Select"},{"$f":"Import!E7376","v":"Select"},{"$f":"Import!E7776","v":0},{"$f":"Import!E8176","v":0},{"$f":"Import!E8576","v":0},{"$f":"Import!E8976","v":0},{"$f":"Import!E9376","v":0}]
[113,{"$f":"Import!E6577","v":"Select"},{"$f":"Import!E6977","v":"Select"},{"$f":"Import!E7377","v":"Select"},{"$f":"Import!E7777","v":0},{"$f":"Import!E8177","v":0},{"$f":"Import!E8577","v":0},{"$f":"Import!E8977","v":0},{"$f":"Import!E9377","v":0}]
[114,{"$f":"Import!E6578","v":"Select"},{"$f":"Import!E6978","v":"Select"},{"$f":"Import!E7378","v":"Select"},{"$f":"Import!E7778","v":0},{"$f":"Import!E8178","v":0},{"$f":"Import!E8578","v":0},{"$f":"Import!E8978","v":0},{"$f":"Import!E9378","v":0}]
[115,{"$f":"Import!E6579","v":"Select"},{"$f":"Import!E6979","v":"Select"},{"$f":"Import!E7379","v":"Select"},{"$f":"Import!E7779","v":0},{"$f":"Import!E8179","v":0},{"$f":"Import!E8579","v":0},{"$f":"Import!E8979","v":0},{"$f":"Import!E9379","v":0}]
[116,{"$f":"Import!E6580","v":"Select"},{"$f":"Import!E6980","v":"Select"},{"$f":"Import!E7380","v":"Select"},{"$f":"Import!E7780","v":0},{"$f":"Import!E8180","v":0},{"$f":"Import!E8580","v":0},{"$f":"Import!E8980","v":0},{"$f":"Import!E9380","v":0}]
[117,{"$f":"Import!E6581","v":"Select"},{"$f":"Import!E6981","v":"Select"},{"$f":"Import!E7381","v":"Select"},{"$f":"Import!E7781","v":0},{"$f":"Import!E8181","v":0},{"$f":"Import!E8581","v":0},{"$f":"Import!E8981","v":0},{"$f":"Import!E9381","v":0}]
[118,{"$f":"Import!E6582","v":"Select"},{"$f":"Import!E6982","v":"Select"},{"$f":"Import!E7382","v":"Select"},{"$f":"Import!E7782","v":0},{"$f":"Import!E8182","v":0},{"$f":"Import!E8582","v":0},{"$f":"Import!E8982","v":0},{"$f":"Import!E9382","v":0}]
[119,{"$f":"Import!E6583","v":"Select"},{"$f":"Import!E6983","v":"Select"},{"$f":"Import!E7383","v":"Select"},{"$f":"Import!E7783","v":0},{"$f":"Import!E8183","v":0},{"$f":"Import!E8583","v":0},{"$f":"Import!E8983","v":0},{"$f":"Import!E9383","v":0}]
[120,{"$f":"Import!E6584","v":"Select"},{"$f":"Import!E6984","v":"Select"},{"$f":"Import!E7384","v":"Select"},{"$f":"Import!E7784","v":0},{"$f":"Import!E8184","v":0},{"$f":"Import!E8584","v":0},{"$f":"Import!E8984","v":0},{"$f":"Import!E9384","v":0}]
[121,{"$f":"Import!E6585","v":"Select"},{"$f":"Import!E6985","v":"Select"},{"$f":"Import!E7385","v":"Select"},{"$f":"Import!E7785","v":0},{"$f":"Import!E8185","v":0},{"$f":"Import!E8585","v":0},{"$f":"Import!E8985","v":0},{"$f":"Import!E9385","v":0}]
[122,{"$f":"Import!E6586","v":"Select"},{"$f":"Import!E6986","v":"Select"},{"$f":"Import!E7386","v":"Select"},{"$f":"Import!E7786","v":0},{"$f":"Import!E8186","v":0},{"$f":"Import!E8586","v":0},{"$f":"Import!E8986","v":0},{"$f":"Import!E9386","v":0}]
[123,{"$f":"Import!E6587","v":"Select"},{"$f":"Import!E6987","v":"Select"},{"$f":"Import!E7387","v":"Select"},{"$f":"Import!E7787","v":0},{"$f":"Import!E8187","v":0},{"$f":"Import!E8587","v":0},{"$f":"Import!E8987","v":0},{"$f":"Import!E9387","v":0}]
[124,{"$f":"Import!E6588","v":"Select"},{"$f":"Import!E6988","v":"Select"},{"$f":"Import!E7388","v":"Select"},{"$f":"Import!E7788","v":0},{"$f":"Import!E8188","v":0},{"$f":"Import!E8588","v":0},{"$f":"Import!E8988","v":0},{"$f":"Import!E9388","v":0}]
[125,{"$f":"Import!E6589","v":"Select"},{"$f":"Import!E6989","v":"Select"},{"$f":"Import!E7389","v":"Select"},{"$f":"Import!E7789","v":0},{"$f":"Import!E8189","v":0},{"$f":"Import!E8589","v":0},{"$f":"Import!E8989","v":0},{"$f":"Import!E9389","v":0}]
[126,{"$f":"Import!E6590","v":"Select"},{"$f":"Import!E6990","v":"Select"},{"$f":"Import!E7390","v":"Select"},{"$f":"Import!E7790","v":0},{"$f":"Import!E8190","v":0},{"$f":"Import!E8590","v":0},{"$f":"Import!E8990","v":0},{"$f":"Import!E9390","v":0}]
[127,{"$f":"Import!E6591","v":"Select"},{"$f":"Import!E6991","v":"Select"},{"$f":"Import!E7391","v":"Select"},{"$f":"Import!E7791","v":0},{"$f":"Import!E8191","v":0},{"$f":"Import!E8591","v":0},{"$f":"Import!E8991","v":0},{"$f":"Import!E9391","v":0}]
[128,{"$f":"Import!E6592","v":"Select"},{"$f":"Import!E6992","v":"Select"},{"$f":"Import!E7392","v":"Select"},{"$f":"Import!E7792","v":0},{"$f":"Import!E8192","v":0},{"$f":"Import!E8592","v":0},{"$f":"Import!E8992","v":0},{"$f":"Import!E9392","v":0}]
[129,{"$f":"Import!E6593","v":"Select"},{"$f":"Import!E6993","v":"Select"},{"$f":"Import!E7393","v":"Select"},{"$f":"Import!E7793","v":0},{"$f":"Import!E8193","v":0},{"$f":"Import!E8593","v":0},{"$f":"Import!E8993","v":0},{"$f":"Import!E9393","v":0}]
[130,{"$f":"Import!E6594","v":"Select"},{"$f":"Import!E6994","v":"Select"},{"$f":"Import!E7394","v":"Select"},{"$f":"Import!E7794","v":0},{"$f":"Import!E8194","v":0},{"$f":"Import!E8594","v":0},{"$f":"Import!E8994","v":0},{"$f":"Import!E9394","v":0}]
[{"$f":"A348+1","v":131},{"$f":"Import!E6595","v":"Select"},{"$f":"Import!E6995","v":"Select"},{"$f":"Import!E7395","v":"Select"},{"$f":"Import!E7795","v":0},{"$f":"Import!E8195","v":0},{"$f":"Import!E8595","v":0},{"$f":"Import!E8995","v":0},{"$f":"Import!E9395","v":0}]
[132,{"$f":"Import!E6596","v":"Select"},{"$f":"Import!E6996","v":"Select"},{"$f":"Import!E7396","v":"Select"},{"$f":"Import!E7796","v":0},{"$f":"Import!E8196","v":0},{"$f":"Import!E8596","v":0},{"$f":"Import!E8996","v":0},{"$f":"Import!E9396","v":0}]
[133,{"$f":"Import!E6597","v":"Select"},{"$f":"Import!E6997","v":"Select"},{"$f":"Import!E7397","v":"Select"},{"$f":"Import!E7797","v":0},{"$f":"Import!E8197","v":0},{"$f":"Import!E8597","v":0},{"$f":"Import!E8997","v":0},{"$f":"Import!E9397","v":0}]
[134,{"$f":"Import!E6598","v":"Select"},{"$f":"Import!E6998","v":"Select"},{"$f":"Import!E7398","v":"Select"},{"$f":"Import!E7798","v":0},{"$f":"Import!E8198","v":0},{"$f":"Import!E8598","v":0},{"$f":"Import!E8998","v":0},{"$f":"Import!E9398","v":0}]
[135,{"$f":"Import!E6599","v":"Select"},{"$f":"Import!E6999","v":"Select"},{"$f":"Import!E7399","v":"Select"},{"$f":"Import!E7799","v":0},{"$f":"Import!E8199","v":0},{"$f":"Import!E8599","v":0},{"$f":"Import!E8999","v":0},{"$f":"Import!E9399","v":0}]
[136,{"$f":"Import!E6600","v":"Select"},{"$f":"Import!E7000","v":"Select"},{"$f":"Import!E7400","v":"Select"},{"$f":"Import!E7800","v":0},{"$f":"Import!E8200","v":0},{"$f":"Import!E8600","v":0},{"$f":"Import!E9000","v":0},{"$f":"Import!E9400","v":0}]
[137,{"$f":"Import!E6601","v":"Select"},{"$f":"Import!E7001","v":"Select"},{"$f":"Import!E7401","v":"Select"},{"$f":"Import!E7801","v":0},{"$f":"Import!E8201","v":0},{"$f":"Import!E8601","v":0},{"$f":"Import!E9001","v":0},{"$f":"Import!E9401","v":0}]
[138,{"$f":"Import!E6602","v":"Select"},{"$f":"Import!E7002","v":"Select"},{"$f":"Import!E7402","v":"Select"},{"$f":"Import!E7802","v":0},{"$f":"Import!E8202","v":0},{"$f":"Import!E8602","v":0},{"$f":"Import!E9002","v":0},{"$f":"Import!E9402","v":0}]
[139,{"$f":"Import!E6603","v":"Select"},{"$f":"Import!E7003","v":"Select"},{"$f":"Import!E7403","v":"Select"},{"$f":"Import!E7803","v":0},{"$f":"Import!E8203","v":0},{"$f":"Import!E8603","v":0},{"$f":"Import!E9003","v":0},{"$f":"Import!E9403","v":0}]
[140,{"$f":"Import!E6604","v":"Select"},{"$f":"Import!E7004","v":"Select"},{"$f":"Import!E7404","v":"Select"},{"$f":"Import!E7804","v":0},{"$f":"Import!E8204","v":0},{"$f":"Import!E8604","v":0},{"$f":"Import!E9004","v":0},{"$f":"Import!E9404","v":0}]
[141,{"$f":"Import!E6605","v":"Select"},{"$f":"Import!E7005","v":"Select"},{"$f":"Import!E7405","v":"Select"},{"$f":"Import!E7805","v":0},{"$f":"Import!E8205","v":0},{"$f":"Import!E8605","v":0},{"$f":"Import!E9005","v":0},{"$f":"Import!E9405","v":0}]
[142,{"$f":"Import!E6606","v":"Select"},{"$f":"Import!E7006","v":"Select"},{"$f":"Import!E7406","v":"Select"},{"$f":"Import!E7806","v":0},{"$f":"Import!E8206","v":0},{"$f":"Import!E8606","v":0},{"$f":"Import!E9006","v":0},{"$f":"Import!E9406","v":0}]
[143,{"$f":"Import!E6607","v":"Select"},{"$f":"Import!E7007","v":"Select"},{"$f":"Import!E7407","v":"Select"},{"$f":"Import!E7807","v":0},{"$f":"Import!E8207","v":0},{"$f":"Import!E8607","v":0},{"$f":"Import!E9007","v":0},{"$f":"Import!E9407","v":0}]
[144,{"$f":"Import!E6608","v":"Select"},{"$f":"Import!E7008","v":"Select"},{"$f":"Import!E7408","v":"Select"},{"$f":"Import!E7808","v":0},{"$f":"Import!E8208","v":0},{"$f":"Import!E8608","v":0},{"$f":"Import!E9008","v":0},{"$f":"Import!E9408","v":0}]
[145,{"$f":"Import!E6609","v":"Select"},{"$f":"Import!E7009","v":"Select"},{"$f":"Import!E7409","v":"Select"},{"$f":"Import!E7809","v":0},{"$f":"Import!E8209","v":0},{"$f":"Import!E8609","v":0},{"$f":"Import!E9009","v":0},{"$f":"Import!E9409","v":0}]
[146,{"$f":"Import!E6610","v":"Select"},{"$f":"Import!E7010","v":"Select"},{"$f":"Import!E7410","v":"Select"},{"$f":"Import!E7810","v":0},{"$f":"Import!E8210","v":0},{"$f":"Import!E8610","v":0},{"$f":"Import!E9010","v":0},{"$f":"Import!E9410","v":0}]
[147,{"$f":"Import!E6611","v":"Select"},{"$f":"Import!E7011","v":"Select"},{"$f":"Import!E7411","v":"Select"},{"$f":"Import!E7811","v":0},{"$f":"Import!E8211","v":0},{"$f":"Import!E8611","v":0},{"$f":"Import!E9011","v":0},{"$f":"Import!E9411","v":0}]
[148,{"$f":"Import!E6612","v":"Select"},{"$f":"Import!E7012","v":"Select"},{"$f":"Import!E7412","v":"Select"},{"$f":"Import!E7812","v":0},{"$f":"Import!E8212","v":0},{"$f":"Import!E8612","v":0},{"$f":"Import!E9012","v":0},{"$f":"Import!E9412","v":0}]
[149,{"$f":"Import!E6613","v":"Select"},{"$f":"Import!E7013","v":"Select"},{"$f":"Import!E7413","v":"Select"},{"$f":"Import!E7813","v":0},{"$f":"Import!E8213","v":0},{"$f":"Import!E8613","v":0},{"$f":"Import!E9013","v":0},{"$f":"Import!E9413","v":0}]
[150,{"$f":"Import!E6614","v":"Select"},{"$f":"Import!E7014","v":"Select"},{"$f":"Import!E7414","v":"Select"},{"$f":"Import!E7814","v":0},{"$f":"Import!E8214","v":0},{"$f":"Import!E8614","v":0},{"$f":"Import!E9014","v":0},{"$f":"Import!E9414","v":0}]
[151,{"$f":"Import!E6615","v":"Select"},{"$f":"Import!E7015","v":"Select"},{"$f":"Import!E7415","v":"Select"},{"$f":"Import!E7815","v":0},{"$f":"Import!E8215","v":0},{"$f":"Import!E8615","v":0},{"$f":"Import!E9015","v":0},{"$f":"Import!E9415","v":0}]
[152,{"$f":"Import!E6616","v":"Select"},{"$f":"Import!E7016","v":"Select"},{"$f":"Import!E7416","v":"Select"},{"$f":"Import!E7816","v":0},{"$f":"Import!E8216","v":0},{"$f":"Import!E8616","v":0},{"$f":"Import!E9016","v":0},{"$f":"Import!E9416","v":0}]
[153,{"$f":"Import!E6617","v":"Select"},{"$f":"Import!E7017","v":"Select"},{"$f":"Import!E7417","v":"Select"},{"$f":"Import!E7817","v":0},{"$f":"Import!E8217","v":0},{"$f":"Import!E8617","v":0},{"$f":"Import!E9017","v":0},{"$f":"Import!E9417","v":0}]
[154,{"$f":"Import!E6618","v":"Select"},{"$f":"Import!E7018","v":"Select"},{"$f":"Import!E7418","v":"Select"},{"$f":"Import!E7818","v":0},{"$f":"Import!E8218","v":0},{"$f":"Import!E8618","v":0},{"$f":"Import!E9018","v":0},{"$f":"Import!E9418","v":0}]
[155,{"$f":"Import!E6619","v":"Select"},{"$f":"Import!E7019","v":"Select"},{"$f":"Import!E7419","v":"Select"},{"$f":"Import!E7819","v":0},{"$f":"Import!E8219","v":0},{"$f":"Import!E8619","v":0},{"$f":"Import!E9019","v":0},{"$f":"Import!E9419","v":0}]
[156,{"$f":"Import!E6620","v":"Select"},{"$f":"Import!E7020","v":"Select"},{"$f":"Import!E7420","v":"Select"},{"$f":"Import!E7820","v":0},{"$f":"Import!E8220","v":0},{"$f":"Import!E8620","v":0},{"$f":"Import!E9020","v":0},{"$f":"Import!E9420","v":0}]
[157,{"$f":"Import!E6621","v":"Select"},{"$f":"Import!E7021","v":"Select"},{"$f":"Import!E7421","v":"Select"},{"$f":"Import!E7821","v":0},{"$f":"Import!E8221","v":0},{"$f":"Import!E8621","v":0},{"$f":"Import!E9021","v":0},{"$f":"Import!E9421","v":0}]
[158,{"$f":"Import!E6622","v":"Select"},{"$f":"Import!E7022","v":"Select"},{"$f":"Import!E7422","v":"Select"},{"$f":"Import!E7822","v":0},{"$f":"Import!E8222","v":0},{"$f":"Import!E8622","v":0},{"$f":"Import!E9022","v":0},{"$f":"Import!E9422","v":0}]
[159,{"$f":"Import!E6623","v":"Select"},{"$f":"Import!E7023","v":"Select"},{"$f":"Import!E7423","v":"Select"},{"$f":"Import!E7823","v":0},{"$f":"Import!E8223","v":0},{"$f":"Import!E8623","v":0},{"$f":"Import!E9023","v":0},{"$f":"Import!E9423","v":0}]
[160,{"$f":"Import!E6624","v":"Select"},{"$f":"Import!E7024","v":"Select"},{"$f":"Import!E7424","v":"Select"},{"$f":"Import!E7824","v":0},{"$f":"Import!E8224","v":0},{"$f":"Import!E8624","v":0},{"$f":"Import!E9024","v":0},{"$f":"Import!E9424","v":0}]
[161,{"$f":"Import!E6625","v":"Select"},{"$f":"Import!E7025","v":"Select"},{"$f":"Import!E7425","v":"Select"},{"$f":"Import!E7825","v":0},{"$f":"Import!E8225","v":0},{"$f":"Import!E8625","v":0},{"$f":"Import!E9025","v":0},{"$f":"Import!E9425","v":0}]
[162,{"$f":"Import!E6626","v":"Select"},{"$f":"Import!E7026","v":"Select"},{"$f":"Import!E7426","v":"Select"},{"$f":"Import!E7826","v":0},{"$f":"Import!E8226","v":0},{"$f":"Import!E8626","v":0},{"$f":"Import!E9026","v":0},{"$f":"Import!E9426","v":0}]
[163,{"$f":"Import!E6627","v":"Select"},{"$f":"Import!E7027","v":"Select"},{"$f":"Import!E7427","v":"Select"},{"$f":"Import!E7827","v":0},{"$f":"Import!E8227","v":0},{"$f":"Import!E8627","v":0},{"$f":"Import!E9027","v":0},{"$f":"Import!E9427","v":0}]
[164,{"$f":"Import!E6628","v":"Select"},{"$f":"Import!E7028","v":"Select"},{"$f":"Import!E7428","v":"Select"},{"$f":"Import!E7828","v":0},{"$f":"Import!E8228","v":0},{"$f":"Import!E8628","v":0},{"$f":"Import!E9028","v":0},{"$f":"Import!E9428","v":0}]
[165,{"$f":"Import!E6629","v":"Select"},{"$f":"Import!E7029","v":"Select"},{"$f":"Import!E7429","v":"Select"},{"$f":"Import!E7829","v":0},{"$f":"Import!E8229","v":0},{"$f":"Import!E8629","v":0},{"$f":"Import!E9029","v":0},{"$f":"Import!E9429","v":0}]
[166,{"$f":"Import!E6630","v":"Select"},{"$f":"Import!E7030","v":"Select"},{"$f":"Import!E7430","v":"Select"},{"$f":"Import!E7830","v":0},{"$f":"Import!E8230","v":0},{"$f":"Import!E8630","v":0},{"$f":"Import!E9030","v":0},{"$f":"Import!E9430","v":0}]
[167,{"$f":"Import!E6631","v":"Select"},{"$f":"Import!E7031","v":"Select"},{"$f":"Import!E7431","v":"Select"},{"$f":"Import!E7831","v":0},{"$f":"Import!E8231","v":0},{"$f":"Import!E8631","v":0},{"$f":"Import!E9031","v":0},{"$f":"Import!E9431","v":0}]
[168,{"$f":"Import!E6632","v":"Select"},{"$f":"Import!E7032","v":"Select"},{"$f":"Import!E7432","v":"Select"},{"$f":"Import!E7832","v":0},{"$f":"Import!E8232","v":0},{"$f":"Import!E8632","v":0},{"$f":"Import!E9032","v":0},{"$f":"Import!E9432","v":0}]
[169,{"$f":"Import!E6633","v":"Select"},{"$f":"Import!E7033","v":"Select"},{"$f":"Import!E7433","v":"Select"},{"$f":"Import!E7833","v":0},{"$f":"Import!E8233","v":0},{"$f":"Import!E8633","v":0},{"$f":"Import!E9033","v":0},{"$f":"Import!E9433","v":0}]
[170,{"$f":"Import!E6634","v":"Select"},{"$f":"Import!E7034","v":"Select"},{"$f":"Import!E7434","v":"Select"},{"$f":"Import!E7834","v":0},{"$f":"Import!E8234","v":0},{"$f":"Import!E8634","v":0},{"$f":"Import!E9034","v":0},{"$f":"Import!E9434","v":0}]
[171,{"$f":"Import!E6635","v":"Select"},{"$f":"Import!E7035","v":"Select"},{"$f":"Import!E7435","v":"Select"},{"$f":"Import!E7835","v":0},{"$f":"Import!E8235","v":0},{"$f":"Import!E8635","v":0},{"$f":"Import!E9035","v":0},{"$f":"Import!E9435","v":0}]
[172,{"$f":"Import!E6636","v":"Select"},{"$f":"Import!E7036","v":"Select"},{"$f":"Import!E7436","v":"Select"},{"$f":"Import!E7836","v":0},{"$f":"Import!E8236","v":0},{"$f":"Import!E8636","v":0},{"$f":"Import!E9036","v":0},{"$f":"Import!E9436","v":0}]
[173,{"$f":"Import!E6637","v":"Select"},{"$f":"Import!E7037","v":"Select"},{"$f":"Import!E7437","v":"Select"},{"$f":"Import!E7837","v":0},{"$f":"Import!E8237","v":0},{"$f":"Import!E8637","v":0},{"$f":"Import!E9037","v":0},{"$f":"Import!E9437","v":0}]
[174,{"$f":"Import!E6638","v":"Select"},{"$f":"Import!E7038","v":"Select"},{"$f":"Import!E7438","v":"Select"},{"$f":"Import!E7838","v":0},{"$f":"Import!E8238","v":0},{"$f":"Import!E8638","v":0},{"$f":"Import!E9038","v":0},{"$f":"Import!E9438","v":0}]
[175,{"$f":"Import!E6639","v":"Select"},{"$f":"Import!E7039","v":"Select"},{"$f":"Import!E7439","v":"Select"},{"$f":"Import!E7839","v":0},{"$f":"Import!E8239","v":0},{"$f":"Import!E8639","v":0},{"$f":"Import!E9039","v":0},{"$f":"Import!E9439","v":0}]
[176,{"$f":"Import!E6640","v":"Select"},{"$f":"Import!E7040","v":"Select"},{"$f":"Import!E7440","v":"Select"},{"$f":"Import!E7840","v":0},{"$f":"Import!E8240","v":0},{"$f":"Import!E8640","v":0},{"$f":"Import!E9040","v":0},{"$f":"Import!E9440","v":0}]
[177,{"$f":"Import!E6641","v":"Select"},{"$f":"Import!E7041","v":"Select"},{"$f":"Import!E7441","v":"Select"},{"$f":"Import!E7841","v":0},{"$f":"Import!E8241","v":0},{"$f":"Import!E8641","v":0},{"$f":"Import!E9041","v":0},{"$f":"Import!E9441","v":0}]
[178,{"$f":"Import!E6642","v":"Select"},{"$f":"Import!E7042","v":"Select"},{"$f":"Import!E7442","v":"Select"},{"$f":"Import!E7842","v":0},{"$f":"Import!E8242","v":0},{"$f":"Import!E8642","v":0},{"$f":"Import!E9042","v":0},{"$f":"Import!E9442","v":0}]
[179,{"$f":"Import!E6643","v":"Select"},{"$f":"Import!E7043","v":"Select"},{"$f":"Import!E7443","v":"Select"},{"$f":"Import!E7843","v":0},{"$f":"Import!E8243","v":0},{"$f":"Import!E8643","v":0},{"$f":"Import!E9043","v":0},{"$f":"Import!E9443","v":0}]
[180,{"$f":"Import!E6644","v":"Select"},{"$f":"Import!E7044","v":"Select"},{"$f":"Import!E7444","v":"Select"},{"$f":"Import!E7844","v":0},{"$f":"Import!E8244","v":0},{"$f":"Import!E8644","v":0},{"$f":"Import!E9044","v":0},{"$f":"Import!E9444","v":0}]
[181,{"$f":"Import!E6645","v":"Select"},{"$f":"Import!E7045","v":"Select"},{"$f":"Import!E7445","v":"Select"},{"$f":"Import!E7845","v":0},{"$f":"Import!E8245","v":0},{"$f":"Import!E8645","v":0},{"$f":"Import!E9045","v":0},{"$f":"Import!E9445","v":0}]
[182,{"$f":"Import!E6646","v":"Select"},{"$f":"Import!E7046","v":"Select"},{"$f":"Import!E7446","v":"Select"},{"$f":"Import!E7846","v":0},{"$f":"Import!E8246","v":0},{"$f":"Import!E8646","v":0},{"$f":"Import!E9046","v":0},{"$f":"Import!E9446","v":0}]
[183,{"$f":"Import!E6647","v":"Select"},{"$f":"Import!E7047","v":"Select"},{"$f":"Import!E7447","v":"Select"},{"$f":"Import!E7847","v":0},{"$f":"Import!E8247","v":0},{"$f":"Import!E8647","v":0},{"$f":"Import!E9047","v":0},{"$f":"Import!E9447","v":0}]
[184,{"$f":"Import!E6648","v":"Select"},{"$f":"Import!E7048","v":"Select"},{"$f":"Import!E7448","v":"Select"},{"$f":"Import!E7848","v":0},{"$f":"Import!E8248","v":0},{"$f":"Import!E8648","v":0},{"$f":"Import!E9048","v":0},{"$f":"Import!E9448","v":0}]
[185,{"$f":"Import!E6649","v":"Select"},{"$f":"Import!E7049","v":"Select"},{"$f":"Import!E7449","v":"Select"},{"$f":"Import!E7849","v":0},{"$f":"Import!E8249","v":0},{"$f":"Import!E8649","v":0},{"$f":"Import!E9049","v":0},{"$f":"Import!E9449","v":0}]
[186,{"$f":"Import!E6650","v":"Select"},{"$f":"Import!E7050","v":"Select"},{"$f":"Import!E7450","v":"Select"},{"$f":"Import!E7850","v":0},{"$f":"Import!E8250","v":0},{"$f":"Import!E8650","v":0},{"$f":"Import!E9050","v":0},{"$f":"Import!E9450","v":0}]
[187,{"$f":"Import!E6651","v":"Select"},{"$f":"Import!E7051","v":"Select"},{"$f":"Import!E7451","v":"Select"},{"$f":"Import!E7851","v":0},{"$f":"Import!E8251","v":0},{"$f":"Import!E8651","v":0},{"$f":"Import!E9051","v":0},{"$f":"Import!E9451","v":0}]
[188,{"$f":"Import!E6652","v":"Select"},{"$f":"Import!E7052","v":"Select"},{"$f":"Import!E7452","v":"Select"},{"$f":"Import!E7852","v":0},{"$f":"Import!E8252","v":0},{"$f":"Import!E8652","v":0},{"$f":"Import!E9052","v":0},{"$f":"Import!E9452","v":0}]
[189,{"$f":"Import!E6653","v":"Select"},{"$f":"Import!E7053","v":"Select"},{"$f":"Import!E7453","v":"Select"},{"$f":"Import!E7853","v":0},{"$f":"Import!E8253","v":0},{"$f":"Import!E8653","v":0},{"$f":"Import!E9053","v":0},{"$f":"Import!E9453","v":0}]
[190,{"$f":"Import!E6654","v":"Select"},{"$f":"Import!E7054","v":"Select"},{"$f":"Import!E7454","v":"Select"},{"$f":"Import!E7854","v":0},{"$f":"Import!E8254","v":0},{"$f":"Import!E8654","v":0},{"$f":"Import!E9054","v":0},{"$f":"Import!E9454","v":0}]
[191,{"$f":"Import!E6655","v":"Select"},{"$f":"Import!E7055","v":"Select"},{"$f":"Import!E7455","v":"Select"},{"$f":"Import!E7855","v":0},{"$f":"Import!E8255","v":0},{"$f":"Import!E8655","v":0},{"$f":"Import!E9055","v":0},{"$f":"Import!E9455","v":0}]
[192,{"$f":"Import!E6656","v":"Select"},{"$f":"Import!E7056","v":"Select"},{"$f":"Import!E7456","v":"Select"},{"$f":"Import!E7856","v":0},{"$f":"Import!E8256","v":0},{"$f":"Import!E8656","v":0},{"$f":"Import!E9056","v":0},{"$f":"Import!E9456","v":0}]
[193,{"$f":"Import!E6657","v":"Select"},{"$f":"Import!E7057","v":"Select"},{"$f":"Import!E7457","v":"Select"},{"$f":"Import!E7857","v":0},{"$f":"Import!E8257","v":0},{"$f":"Import!E8657","v":0},{"$f":"Import!E9057","v":0},{"$f":"Import!E9457","v":0}]
[194,{"$f":"Import!E6658","v":"Select"},{"$f":"Import!E7058","v":"Select"},{"$f":"Import!E7458","v":"Select"},{"$f":"Import!E7858","v":0},{"$f":"Import!E8258","v":0},{"$f":"Import!E8658","v":0},{"$f":"Import!E9058","v":0},{"$f":"Import!E9458","v":0}]
[{"$f":"A412+1","v":195},{"$f":"Import!E6659","v":"Select"},{"$f":"Import!E7059","v":"Select"},{"$f":"Import!E7459","v":"Select"},{"$f":"Import!E7859","v":0},{"$f":"Import!E8259","v":0},{"$f":"Import!E8659","v":0},{"$f":"Import!E9059","v":0},{"$f":"Import!E9459","v":0}]
[196,{"$f":"Import!E6660","v":"Select"},{"$f":"Import!E7060","v":"Select"},{"$f":"Import!E7460","v":"Select"},{"$f":"Import!E7860","v":0},{"$f":"Import!E8260","v":0},{"$f":"Import!E8660","v":0},{"$f":"Import!E9060","v":0},{"$f":"Import!E9460","v":0}]
[197,{"$f":"Import!E6661","v":"Select"},{"$f":"Import!E7061","v":"Select"},{"$f":"Import!E7461","v":"Select"},{"$f":"Import!E7861","v":0},{"$f":"Import!E8261","v":0},{"$f":"Import!E8661","v":0},{"$f":"Import!E9061","v":0},{"$f":"Import!E9461","v":0}]
[198,{"$f":"Import!E6662","v":"Select"},{"$f":"Import!E7062","v":"Select"},{"$f":"Import!E7462","v":"Select"},{"$f":"Import!E7862","v":0},{"$f":"Import!E8262","v":0},{"$f":"Import!E8662","v":0},{"$f":"Import!E9062","v":0},{"$f":"Import!E9462","v":0}]
[199,{"$f":"Import!E6663","v":"Select"},{"$f":"Import!E7063","v":"Select"},{"$f":"Import!E7463","v":"Select"},{"$f":"Import!E7863","v":0},{"$f":"Import!E8263","v":0},{"$f":"Import!E8663","v":0},{"$f":"Import!E9063","v":0},{"$f":"Import!E9463","v":0}]
[200,{"$f":"Import!E6664","v":"Select"},{"$f":"Import!E7064","v":"Select"},{"$f":"Import!E7464","v":"Select"},{"$f":"Import!E7864","v":0},{"$f":"Import!E8264","v":0},{"$f":"Import!E8664","v":0},{"$f":"Import!E9064","v":0},{"$f":"Import!E9464","v":0}]
[201,{"$f":"Import!E6665","v":"Select"},{"$f":"Import!E7065","v":"Select"},{"$f":"Import!E7465","v":"Select"},{"$f":"Import!E7865","v":0},{"$f":"Import!E8265","v":0},{"$f":"Import!E8665","v":0},{"$f":"Import!E9065","v":0},{"$f":"Import!E9465","v":0}]
[202,{"$f":"Import!E6666","v":"Select"},{"$f":"Import!E7066","v":"Select"},{"$f":"Import!E7466","v":"Select"},{"$f":"Import!E7866","v":0},{"$f":"Import!E8266","v":0},{"$f":"Import!E8666","v":0},{"$f":"Import!E9066","v":0},{"$f":"Import!E9466","v":0}]
[203,{"$f":"Import!E6667","v":"Select"},{"$f":"Import!E7067","v":"Select"},{"$f":"Import!E7467","v":"Select"},{"$f":"Import!E7867","v":0},{"$f":"Import!E8267","v":0},{"$f":"Import!E8667","v":0},{"$f":"Import!E9067","v":0},{"$f":"Import!E9467","v":0}]
[204,{"$f":"Import!E6668","v":"Select"},{"$f":"Import!E7068","v":"Select"},{"$f":"Import!E7468","v":"Select"},{"$f":"Import!E7868","v":0},{"$f":"Import!E8268","v":0},{"$f":"Import!E8668","v":0},{"$f":"Import!E9068","v":0},{"$f":"Import!E9468","v":0}]
[205,{"$f":"Import!E6669","v":"Select"},{"$f":"Import!E7069","v":"Select"},{"$f":"Import!E7469","v":"Select"},{"$f":"Import!E7869","v":0},{"$f":"Import!E8269","v":0},{"$f":"Import!E8669","v":0},{"$f":"Import!E9069","v":0},{"$f":"Import!E9469","v":0}]
[206,{"$f":"Import!E6670","v":"Select"},{"$f":"Import!E7070","v":"Select"},{"$f":"Import!E7470","v":"Select"},{"$f":"Import!E7870","v":0},{"$f":"Import!E8270","v":0},{"$f":"Import!E8670","v":0},{"$f":"Import!E9070","v":0},{"$f":"Import!E9470","v":0}]
[207,{"$f":"Import!E6671","v":"Select"},{"$f":"Import!E7071","v":"Select"},{"$f":"Import!E7471","v":"Select"},{"$f":"Import!E7871","v":0},{"$f":"Import!E8271","v":0},{"$f":"Import!E8671","v":0},{"$f":"Import!E9071","v":0},{"$f":"Import!E9471","v":0}]
[208,{"$f":"Import!E6672","v":"Select"},{"$f":"Import!E7072","v":"Select"},{"$f":"Import!E7472","v":"Select"},{"$f":"Import!E7872","v":0},{"$f":"Import!E8272","v":0},{"$f":"Import!E8672","v":0},{"$f":"Import!E9072","v":0},{"$f":"Import!E9472","v":0}]
[209,{"$f":"Import!E6673","v":"Select"},{"$f":"Import!E7073","v":"Select"},{"$f":"Import!E7473","v":"Select"},{"$f":"Import!E7873","v":0},{"$f":"Import!E8273","v":0},{"$f":"Import!E8673","v":0},{"$f":"Import!E9073","v":0},{"$f":"Import!E9473","v":0}]
[210,{"$f":"Import!E6674","v":"Select"},{"$f":"Import!E7074","v":"Select"},{"$f":"Import!E7474","v":"Select"},{"$f":"Import!E7874","v":0},{"$f":"Import!E8274","v":0},{"$f":"Import!E8674","v":0},{"$f":"Import!E9074","v":0},{"$f":"Import!E9474","v":0}]
[211,{"$f":"Import!E6675","v":"Select"},{"$f":"Import!E7075","v":"Select"},{"$f":"Import!E7475","v":"Select"},{"$f":"Import!E7875","v":0},{"$f":"Import!E8275","v":0},{"$f":"Import!E8675","v":0},{"$f":"Import!E9075","v":0},{"$f":"Import!E9475","v":0}]
[212,{"$f":"Import!E6676","v":"Select"},{"$f":"Import!E7076","v":"Select"},{"$f":"Import!E7476","v":"Select"},{"$f":"Import!E7876","v":0},{"$f":"Import!E8276","v":0},{"$f":"Import!E8676","v":0},{"$f":"Import!E9076","v":0},{"$f":"Import!E9476","v":0}]
[213,{"$f":"Import!E6677","v":"Select"},{"$f":"Import!E7077","v":"Select"},{"$f":"Import!E7477","v":"Select"},{"$f":"Import!E7877","v":0},{"$f":"Import!E8277","v":0},{"$f":"Import!E8677","v":0},{"$f":"Import!E9077","v":0},{"$f":"Import!E9477","v":0}]
[214,{"$f":"Import!E6678","v":"Select"},{"$f":"Import!E7078","v":"Select"},{"$f":"Import!E7478","v":"Select"},{"$f":"Import!E7878","v":0},{"$f":"Import!E8278","v":0},{"$f":"Import!E8678","v":0},{"$f":"Import!E9078","v":0},{"$f":"Import!E9478","v":0}]
[215,{"$f":"Import!E6679","v":"Select"},{"$f":"Import!E7079","v":"Select"},{"$f":"Import!E7479","v":"Select"},{"$f":"Import!E7879","v":0},{"$f":"Import!E8279","v":0},{"$f":"Import!E8679","v":0},{"$f":"Import!E9079","v":0},{"$f":"Import!E9479","v":0}]
[216,{"$f":"Import!E6680","v":"Select"},{"$f":"Import!E7080","v":"Select"},{"$f":"Import!E7480","v":"Select"},{"$f":"Import!E7880","v":0},{"$f":"Import!E8280","v":0},{"$f":"Import!E8680","v":0},{"$f":"Import!E9080","v":0},{"$f":"Import!E9480","v":0}]
[217,{"$f":"Import!E6681","v":"Select"},{"$f":"Import!E7081","v":"Select"},{"$f":"Import!E7481","v":"Select"},{"$f":"Import!E7881","v":0},{"$f":"Import!E8281","v":0},{"$f":"Import!E8681","v":0},{"$f":"Import!E9081","v":0},{"$f":"Import!E9481","v":0}]
[218,{"$f":"Import!E6682","v":"Select"},{"$f":"Import!E7082","v":"Select"},{"$f":"Import!E7482","v":"Select"},{"$f":"Import!E7882","v":0},{"$f":"Import!E8282","v":0},{"$f":"Import!E8682","v":0},{"$f":"Import!E9082","v":0},{"$f":"Import!E9482","v":0}]
[219,{"$f":"Import!E6683","v":"Select"},{"$f":"Import!E7083","v":"Select"},{"$f":"Import!E7483","v":"Select"},{"$f":"Import!E7883","v":0},{"$f":"Import!E8283","v":0},{"$f":"Import!E8683","v":0},{"$f":"Import!E9083","v":0},{"$f":"Import!E9483","v":0}]
[220,{"$f":"Import!E6684","v":"Select"},{"$f":"Import!E7084","v":"Select"},{"$f":"Import!E7484","v":"Select"},{"$f":"Import!E7884","v":0},{"$f":"Import!E8284","v":0},{"$f":"Import!E8684","v":0},{"$f":"Import!E9084","v":0},{"$f":"Import!E9484","v":0}]
[221,{"$f":"Import!E6685","v":"Select"},{"$f":"Import!E7085","v":"Select"},{"$f":"Import!E7485","v":"Select"},{"$f":"Import!E7885","v":0},{"$f":"Import!E8285","v":0},{"$f":"Import!E8685","v":0},{"$f":"Import!E9085","v":0},{"$f":"Import!E9485","v":0}]
[222,{"$f":"Import!E6686","v":"Select"},{"$f":"Import!E7086","v":"Select"},{"$f":"Import!E7486","v":"Select"},{"$f":"Import!E7886","v":0},{"$f":"Import!E8286","v":0},{"$f":"Import!E8686","v":0},{"$f":"Import!E9086","v":0},{"$f":"Import!E9486","v":0}]
[223,{"$f":"Import!E6687","v":"Select"},{"$f":"Import!E7087","v":"Select"},{"$f":"Import!E7487","v":"Select"},{"$f":"Import!E7887","v":0},{"$f":"Import!E8287","v":0},{"$f":"Import!E8687","v":0},{"$f":"Import!E9087","v":0},{"$f":"Import!E9487","v":0}]
[224,{"$f":"Import!E6688","v":"Select"},{"$f":"Import!E7088","v":"Select"},{"$f":"Import!E7488","v":"Select"},{"$f":"Import!E7888","v":0},{"$f":"Import!E8288","v":0},{"$f":"Import!E8688","v":0},{"$f":"Import!E9088","v":0},{"$f":"Import!E9488","v":0}]
[225,{"$f":"Import!E6689","v":"Select"},{"$f":"Import!E7089","v":"Select"},{"$f":"Import!E7489","v":"Select"},{"$f":"Import!E7889","v":0},{"$f":"Import!E8289","v":0},{"$f":"Import!E8689","v":0},{"$f":"Import!E9089","v":0},{"$f":"Import!E9489","v":0}]
[226,{"$f":"Import!E6690","v":"Select"},{"$f":"Import!E7090","v":"Select"},{"$f":"Import!E7490","v":"Select"},{"$f":"Import!E7890","v":0},{"$f":"Import!E8290","v":0},{"$f":"Import!E8690","v":0},{"$f":"Import!E9090","v":0},{"$f":"Import!E9490","v":0}]
[227,{"$f":"Import!E6691","v":"Select"},{"$f":"Import!E7091","v":"Select"},{"$f":"Import!E7491","v":"Select"},{"$f":"Import!E7891","v":0},{"$f":"Import!E8291","v":0},{"$f":"Import!E8691","v":0},{"$f":"Import!E9091","v":0},{"$f":"Import!E9491","v":0}]
[228,{"$f":"Import!E6692","v":"Select"},{"$f":"Import!E7092","v":"Select"},{"$f":"Import!E7492","v":"Select"},{"$f":"Import!E7892","v":0},{"$f":"Import!E8292","v":0},{"$f":"Import!E8692","v":0},{"$f":"Import!E9092","v":0},{"$f":"Import!E9492","v":0}]
[229,{"$f":"Import!E6693","v":"Select"},{"$f":"Import!E7093","v":"Select"},{"$f":"Import!E7493","v":"Select"},{"$f":"Import!E7893","v":0},{"$f":"Import!E8293","v":0},{"$f":"Import!E8693","v":0},{"$f":"Import!E9093","v":0},{"$f":"Import!E9493","v":0}]
[230,{"$f":"Import!E6694","v":"Select"},{"$f":"Import!E7094","v":"Select"},{"$f":"Import!E7494","v":"Select"},{"$f":"Import!E7894","v":0},{"$f":"Import!E8294","v":0},{"$f":"Import!E8694","v":0},{"$f":"Import!E9094","v":0},{"$f":"Import!E9494","v":0}]
[231,{"$f":"Import!E6695","v":"Select"},{"$f":"Import!E7095","v":"Select"},{"$f":"Import!E7495","v":"Select"},{"$f":"Import!E7895","v":0},{"$f":"Import!E8295","v":0},{"$f":"Import!E8695","v":0},{"$f":"Import!E9095","v":0},{"$f":"Import!E9495","v":0}]
[232,{"$f":"Import!E6696","v":"Select"},{"$f":"Import!E7096","v":"Select"},{"$f":"Import!E7496","v":"Select"},{"$f":"Import!E7896","v":0},{"$f":"Import!E8296","v":0},{"$f":"Import!E8696","v":0},{"$f":"Import!E9096","v":0},{"$f":"Import!E9496","v":0}]
[233,{"$f":"Import!E6697","v":"Select"},{"$f":"Import!E7097","v":"Select"},{"$f":"Import!E7497","v":"Select"},{"$f":"Import!E7897","v":0},{"$f":"Import!E8297","v":0},{"$f":"Import!E8697","v":0},{"$f":"Import!E9097","v":0},{"$f":"Import!E9497","v":0}]
[234,{"$f":"Import!E6698","v":"Select"},{"$f":"Import!E7098","v":"Select"},{"$f":"Import!E7498","v":"Select"},{"$f":"Import!E7898","v":0},{"$f":"Import!E8298","v":0},{"$f":"Import!E8698","v":0},{"$f":"Import!E9098","v":0},{"$f":"Import!E9498","v":0}]
[235,{"$f":"Import!E6699","v":"Select"},{"$f":"Import!E7099","v":"Select"},{"$f":"Import!E7499","v":"Select"},{"$f":"Import!E7899","v":0},{"$f":"Import!E8299","v":0},{"$f":"Import!E8699","v":0},{"$f":"Import!E9099","v":0},{"$f":"Import!E9499","v":0}]
[236,{"$f":"Import!E6700","v":"Select"},{"$f":"Import!E7100","v":"Select"},{"$f":"Import!E7500","v":"Select"},{"$f":"Import!E7900","v":0},{"$f":"Import!E8300","v":0},{"$f":"Import!E8700","v":0},{"$f":"Import!E9100","v":0},{"$f":"Import!E9500","v":0}]
[237,{"$f":"Import!E6701","v":"Select"},{"$f":"Import!E7101","v":"Select"},{"$f":"Import!E7501","v":"Select"},{"$f":"Import!E7901","v":0},{"$f":"Import!E8301","v":0},{"$f":"Import!E8701","v":0},{"$f":"Import!E9101","v":0},{"$f":"Import!E9501","v":0}]
[238,{"$f":"Import!E6702","v":"Select"},{"$f":"Import!E7102","v":"Select"},{"$f":"Import!E7502","v":"Select"},{"$f":"Import!E7902","v":0},{"$f":"Import!E8302","v":0},{"$f":"Import!E8702","v":0},{"$f":"Import!E9102","v":0},{"$f":"Import!E9502","v":0}]
[239,{"$f":"Import!E6703","v":"Select"},{"$f":"Import!E7103","v":"Select"},{"$f":"Import!E7503","v":"Select"},{"$f":"Import!E7903","v":0},{"$f":"Import!E8303","v":0},{"$f":"Import!E8703","v":0},{"$f":"Import!E9103","v":0},{"$f":"Import!E9503","v":0}]
[240,{"$f":"Import!E6704","v":"Select"},{"$f":"Import!E7104","v":"Select"},{"$f":"Import!E7504","v":"Select"},{"$f":"Import!E7904","v":0},{"$f":"Import!E8304","v":0},{"$f":"Import!E8704","v":0},{"$f":"Import!E9104","v":0},{"$f":"Import!E9504","v":0}]
[241,{"$f":"Import!E6705","v":"Select"},{"$f":"Import!E7105","v":"Select"},{"$f":"Import!E7505","v":"Select"},{"$f":"Import!E7905","v":0},{"$f":"Import!E8305","v":0},{"$f":"Import!E8705","v":0},{"$f":"Import!E9105","v":0},{"$f":"Import!E9505","v":0}]
[242,{"$f":"Import!E6706","v":"Select"},{"$f":"Import!E7106","v":"Select"},{"$f":"Import!E7506","v":"Select"},{"$f":"Import!E7906","v":0},{"$f":"Import!E8306","v":0},{"$f":"Import!E8706","v":0},{"$f":"Import!E9106","v":0},{"$f":"Import!E9506","v":0}]
[243,{"$f":"Import!E6707","v":"Select"},{"$f":"Import!E7107","v":"Select"},{"$f":"Import!E7507","v":"Select"},{"$f":"Import!E7907","v":0},{"$f":"Import!E8307","v":0},{"$f":"Import!E8707","v":0},{"$f":"Import!E9107","v":0},{"$f":"Import!E9507","v":0}]
[244,{"$f":"Import!E6708","v":"Select"},{"$f":"Import!E7108","v":"Select"},{"$f":"Import!E7508","v":"Select"},{"$f":"Import!E7908","v":0},{"$f":"Import!E8308","v":0},{"$f":"Import!E8708","v":0},{"$f":"Import!E9108","v":0},{"$f":"Import!E9508","v":0}]
[245,{"$f":"Import!E6709","v":"Select"},{"$f":"Import!E7109","v":"Select"},{"$f":"Import!E7509","v":"Select"},{"$f":"Import!E7909","v":0},{"$f":"Import!E8309","v":0},{"$f":"Import!E8709","v":0},{"$f":"Import!E9109","v":0},{"$f":"Import!E9509","v":0}]
[246,{"$f":"Import!E6710","v":"Select"},{"$f":"Import!E7110","v":"Select"},{"$f":"Import!E7510","v":"Select"},{"$f":"Import!E7910","v":0},{"$f":"Import!E8310","v":0},{"$f":"Import!E8710","v":0},{"$f":"Import!E9110","v":0},{"$f":"Import!E9510","v":0}]
[247,{"$f":"Import!E6711","v":"Select"},{"$f":"Import!E7111","v":"Select"},{"$f":"Import!E7511","v":"Select"},{"$f":"Import!E7911","v":0},{"$f":"Import!E8311","v":0},{"$f":"Import!E8711","v":0},{"$f":"Import!E9111","v":0},{"$f":"Import!E9511","v":0}]
[248,{"$f":"Import!E6712","v":"Select"},{"$f":"Import!E7112","v":"Select"},{"$f":"Import!E7512","v":"Select"},{"$f":"Import!E7912","v":0},{"$f":"Import!E8312","v":0},{"$f":"Import!E8712","v":0},{"$f":"Import!E9112","v":0},{"$f":"Import!E9512","v":0}]
[249,{"$f":"Import!E6713","v":"Select"},{"$f":"Import!E7113","v":"Select"},{"$f":"Import!E7513","v":"Select"},{"$f":"Import!E7913","v":0},{"$f":"Import!E8313","v":0},{"$f":"Import!E8713","v":0},{"$f":"Import!E9113","v":0},{"$f":"Import!E9513","v":0}]
[250,{"$f":"Import!E6714","v":"Select"},{"$f":"Import!E7114","v":"Select"},{"$f":"Import!E7514","v":"Select"},{"$f":"Import!E7914","v":0},{"$f":"Import!E8314","v":0},{"$f":"Import!E8714","v":0},{"$f":"Import!E9114","v":0},{"$f":"Import!E9514","v":0}]
[251,{"$f":"Import!E6715","v":"Select"},{"$f":"Import!E7115","v":"Select"},{"$f":"Import!E7515","v":"Select"},{"$f":"Import!E7915","v":0},{"$f":"Import!E8315","v":0},{"$f":"Import!E8715","v":0},{"$f":"Import!E9115","v":0},{"$f":"Import!E9515","v":0}]
[252,{"$f":"Import!E6716","v":"Select"},{"$f":"Import!E7116","v":"Select"},{"$f":"Import!E7516","v":"Select"},{"$f":"Import!E7916","v":0},{"$f":"Import!E8316","v":0},{"$f":"Import!E8716","v":0},{"$f":"Import!E9116","v":0},{"$f":"Import!E9516","v":0}]
[253,{"$f":"Import!E6717","v":"Select"},{"$f":"Import!E7117","v":"Select"},{"$f":"Import!E7517","v":"Select"},{"$f":"Import!E7917","v":0},{"$f":"Import!E8317","v":0},{"$f":"Import!E8717","v":0},{"$f":"Import!E9117","v":0},{"$f":"Import!E9517","v":0}]
[254,{"$f":"Import!E6718","v":"Select"},{"$f":"Import!E7118","v":"Select"},{"$f":"Import!E7518","v":"Select"},{"$f":"Import!E7918","v":0},{"$f":"Import!E8318","v":0},{"$f":"Import!E8718","v":0},{"$f":"Import!E9118","v":0},{"$f":"Import!E9518","v":0}]
[255,{"$f":"Import!E6719","v":"Select"},{"$f":"Import!E7119","v":"Select"},{"$f":"Import!E7519","v":"Select"},{"$f":"Import!E7919","v":0},{"$f":"Import!E8319","v":0},{"$f":"Import!E8719","v":0},{"$f":"Import!E9119","v":0},{"$f":"Import!E9519","v":0}]
[256,{"$f":"Import!E6720","v":"Select"},{"$f":"Import!E7120","v":"Select"},{"$f":"Import!E7520","v":"Select"},{"$f":"Import!E7920","v":0},{"$f":"Import!E8320","v":0},{"$f":"Import!E8720","v":0},{"$f":"Import!E9120","v":0},{"$f":"Import!E9520","v":0}]
[257,{"$f":"Import!E6721","v":"Select"},{"$f":"Import!E7121","v":"Select"},{"$f":"Import!E7521","v":"Select"},{"$f":"Import!E7921","v":0},{"$f":"Import!E8321","v":0},{"$f":"Import!E8721","v":0},{"$f":"Import!E9121","v":0},{"$f":"Import!E9521","v":0}]
[258,{"$f":"Import!E6722","v":"Select"},{"$f":"Import!E7122","v":"Select"},{"$f":"Import!E7522","v":"Select"},{"$f":"Import!E7922","v":0},{"$f":"Import!E8322","v":0},{"$f":"Import!E8722","v":0},{"$f":"Import!E9122","v":0},{"$f":"Import!E9522","v":0}]
[{"$f":"A476+1","v":259},{"$f":"Import!E6723","v":"Select"},{"$f":"Import!E7123","v":"Select"},{"$f":"Import!E7523","v":"Select"},{"$f":"Import!E7923","v":0},{"$f":"Import!E8323","v":0},{"$f":"Import!E8723","v":0},{"$f":"Import!E9123","v":0},{"$f":"Import!E9523","v":0}]
[260,{"$f":"Import!E6724","v":"Select"},{"$f":"Import!E7124","v":"Select"},{"$f":"Import!E7524","v":"Select"},{"$f":"Import!E7924","v":0},{"$f":"Import!E8324","v":0},{"$f":"Import!E8724","v":0},{"$f":"Import!E9124","v":0},{"$f":"Import!E9524","v":0}]
[261,{"$f":"Import!E6725","v":"Select"},{"$f":"Import!E7125","v":"Select"},{"$f":"Import!E7525","v":"Select"},{"$f":"Import!E7925","v":0},{"$f":"Import!E8325","v":0},{"$f":"Import!E8725","v":0},{"$f":"Import!E9125","v":0},{"$f":"Import!E9525","v":0}]
[262,{"$f":"Import!E6726","v":"Select"},{"$f":"Import!E7126","v":"Select"},{"$f":"Import!E7526","v":"Select"},{"$f":"Import!E7926","v":0},{"$f":"Import!E8326","v":0},{"$f":"Import!E8726","v":0},{"$f":"Import!E9126","v":0},{"$f":"Import!E9526","v":0}]
[263,{"$f":"Import!E6727","v":"Select"},{"$f":"Import!E7127","v":"Select"},{"$f":"Import!E7527","v":"Select"},{"$f":"Import!E7927","v":0},{"$f":"Import!E8327","v":0},{"$f":"Import!E8727","v":0},{"$f":"Import!E9127","v":0},{"$f":"Import!E9527","v":0}]
[264,{"$f":"Import!E6728","v":"Select"},{"$f":"Import!E7128","v":"Select"},{"$f":"Import!E7528","v":"Select"},{"$f":"Import!E7928","v":0},{"$f":"Import!E8328","v":0},{"$f":"Import!E8728","v":0},{"$f":"Import!E9128","v":0},{"$f":"Import!E9528","v":0}]
[265,{"$f":"Import!E6729","v":"Select"},{"$f":"Import!E7129","v":"Select"},{"$f":"Import!E7529","v":"Select"},{"$f":"Import!E7929","v":0},{"$f":"Import!E8329","v":0},{"$f":"Import!E8729","v":0},{"$f":"Import!E9129","v":0},{"$f":"Import!E9529","v":0}]
[266,{"$f":"Import!E6730","v":"Select"},{"$f":"Import!E7130","v":"Select"},{"$f":"Import!E7530","v":"Select"},{"$f":"Import!E7930","v":0},{"$f":"Import!E8330","v":0},{"$f":"Import!E8730","v":0},{"$f":"Import!E9130","v":0},{"$f":"Import!E9530","v":0}]
[267,{"$f":"Import!E6731","v":"Select"},{"$f":"Import!E7131","v":"Select"},{"$f":"Import!E7531","v":"Select"},{"$f":"Import!E7931","v":0},{"$f":"Import!E8331","v":0},{"$f":"Import!E8731","v":0},{"$f":"Import!E9131","v":0},{"$f":"Import!E9531","v":0}]
[268,{"$f":"Import!E6732","v":"Select"},{"$f":"Import!E7132","v":"Select"},{"$f":"Import!E7532","v":"Select"},{"$f":"Import!E7932","v":0},{"$f":"Import!E8332","v":0},{"$f":"Import!E8732","v":0},{"$f":"Import!E9132","v":0},{"$f":"Import!E9532","v":0}]
[269,{"$f":"Import!E6733","v":"Select"},{"$f":"Import!E7133","v":"Select"},{"$f":"Import!E7533","v":"Select"},{"$f":"Import!E7933","v":0},{"$f":"Import!E8333","v":0},{"$f":"Import!E8733","v":0},{"$f":"Import!E9133","v":0},{"$f":"Import!E9533","v":0}]
[270,{"$f":"Import!E6734","v":"Select"},{"$f":"Import!E7134","v":"Select"},{"$f":"Import!E7534","v":"Select"},{"$f":"Import!E7934","v":0},{"$f":"Import!E8334","v":0},{"$f":"Import!E8734","v":0},{"$f":"Import!E9134","v":0},{"$f":"Import!E9534","v":0}]
[271,{"$f":"Import!E6735","v":"Select"},{"$f":"Import!E7135","v":"Select"},{"$f":"Import!E7535","v":"Select"},{"$f":"Import!E7935","v":0},{"$f":"Import!E8335","v":0},{"$f":"Import!E8735","v":0},{"$f":"Import!E9135","v":0},{"$f":"Import!E9535","v":0}]
[272,{"$f":"Import!E6736","v":"Select"},{"$f":"Import!E7136","v":"Select"},{"$f":"Import!E7536","v":"Select"},{"$f":"Import!E7936","v":0},{"$f":"Import!E8336","v":0},{"$f":"Import!E8736","v":0},{"$f":"Import!E9136","v":0},{"$f":"Import!E9536","v":0}]
[273,{"$f":"Import!E6737","v":"Select"},{"$f":"Import!E7137","v":"Select"},{"$f":"Import!E7537","v":"Select"},{"$f":"Import!E7937","v":0},{"$f":"Import!E8337","v":0},{"$f":"Import!E8737","v":0},{"$f":"Import!E9137","v":0},{"$f":"Import!E9537","v":0}]
[274,{"$f":"Import!E6738","v":"Select"},{"$f":"Import!E7138","v":"Select"},{"$f":"Import!E7538","v":"Select"},{"$f":"Import!E7938","v":0},{"$f":"Import!E8338","v":0},{"$f":"Import!E8738","v":0},{"$f":"Import!E9138","v":0},{"$f":"Import!E9538","v":0}]
[275,{"$f":"Import!E6739","v":"Select"},{"$f":"Import!E7139","v":"Select"},{"$f":"Import!E7539","v":"Select"},{"$f":"Import!E7939","v":0},{"$f":"Import!E8339","v":0},{"$f":"Import!E8739","v":0},{"$f":"Import!E9139","v":0},{"$f":"Import!E9539","v":0}]
[276,{"$f":"Import!E6740","v":"Select"},{"$f":"Import!E7140","v":"Select"},{"$f":"Import!E7540","v":"Select"},{"$f":"Import!E7940","v":0},{"$f":"Import!E8340","v":0},{"$f":"Import!E8740","v":0},{"$f":"Import!E9140","v":0},{"$f":"Import!E9540","v":0}]
[277,{"$f":"Import!E6741","v":"Select"},{"$f":"Import!E7141","v":"Select"},{"$f":"Import!E7541","v":"Select"},{"$f":"Import!E7941","v":0},{"$f":"Import!E8341","v":0},{"$f":"Import!E8741","v":0},{"$f":"Import!E9141","v":0},{"$f":"Import!E9541","v":0}]
[278,{"$f":"Import!E6742","v":"Select"},{"$f":"Import!E7142","v":"Select"},{"$f":"Import!E7542","v":"Select"},{"$f":"Import!E7942","v":0},{"$f":"Import!E8342","v":0},{"$f":"Import!E8742","v":0},{"$f":"Import!E9142","v":0},{"$f":"Import!E9542","v":0}]
[279,{"$f":"Import!E6743","v":"Select"},{"$f":"Import!E7143","v":"Select"},{"$f":"Import!E7543","v":"Select"},{"$f":"Import!E7943","v":0},{"$f":"Import!E8343","v":0},{"$f":"Import!E8743","v":0},{"$f":"Import!E9143","v":0},{"$f":"Import!E9543","v":0}]
[280,{"$f":"Import!E6744","v":"Select"},{"$f":"Import!E7144","v":"Select"},{"$f":"Import!E7544","v":"Select"},{"$f":"Import!E7944","v":0},{"$f":"Import!E8344","v":0},{"$f":"Import!E8744","v":0},{"$f":"Import!E9144","v":0},{"$f":"Import!E9544","v":0}]
[281,{"$f":"Import!E6745","v":"Select"},{"$f":"Import!E7145","v":"Select"},{"$f":"Import!E7545","v":"Select"},{"$f":"Import!E7945","v":0},{"$f":"Import!E8345","v":0},{"$f":"Import!E8745","v":0},{"$f":"Import!E9145","v":0},{"$f":"Import!E9545","v":0}]
[282,{"$f":"Import!E6746","v":"Select"},{"$f":"Import!E7146","v":"Select"},{"$f":"Import!E7546","v":"Select"},{"$f":"Import!E7946","v":0},{"$f":"Import!E8346","v":0},{"$f":"Import!E8746","v":0},{"$f":"Import!E9146","v":0},{"$f":"Import!E9546","v":0}]
[283,{"$f":"Import!E6747","v":"Select"},{"$f":"Import!E7147","v":"Select"},{"$f":"Import!E7547","v":"Select"},{"$f":"Import!E7947","v":0},{"$f":"Import!E8347","v":0},{"$f":"Import!E8747","v":0},{"$f":"Import!E9147","v":0},{"$f":"Import!E9547","v":0}]
[284,{"$f":"Import!E6748","v":"Select"},{"$f":"Import!E7148","v":"Select"},{"$f":"Import!E7548","v":"Select"},{"$f":"Import!E7948","v":0},{"$f":"Import!E8348","v":0},{"$f":"Import!E8748","v":0},{"$f":"Import!E9148","v":0},{"$f":"Import!E9548","v":0}]
[285,{"$f":"Import!E6749","v":"Select"},{"$f":"Import!E7149","v":"Select"},{"$f":"Import!E7549","v":"Select"},{"$f":"Import!E7949","v":0},{"$f":"Import!E8349","v":0},{"$f":"Import!E8749","v":0},{"$f":"Import!E9149","v":0},{"$f":"Import!E9549","v":0}]
[286,{"$f":"Import!E6750","v":"Select"},{"$f":"Import!E7150","v":"Select"},{"$f":"Import!E7550","v":"Select"},{"$f":"Import!E7950","v":0},{"$f":"Import!E8350","v":0},{"$f":"Import!E8750","v":0},{"$f":"Import!E9150","v":0},{"$f":"Import!E9550","v":0}]
[287,{"$f":"Import!E6751","v":"Select"},{"$f":"Import!E7151","v":"Select"},{"$f":"Import!E7551","v":"Select"},{"$f":"Import!E7951","v":0},{"$f":"Import!E8351","v":0},{"$f":"Import!E8751","v":0},{"$f":"Import!E9151","v":0},{"$f":"Import!E9551","v":0}]
[288,{"$f":"Import!E6752","v":"Select"},{"$f":"Import!E7152","v":"Select"},{"$f":"Import!E7552","v":"Select"},{"$f":"Import!E7952","v":0},{"$f":"Import!E8352","v":0},{"$f":"Import!E8752","v":0},{"$f":"Import!E9152","v":0},{"$f":"Import!E9552","v":0}]
[289,{"$f":"Import!E6753","v":"Select"},{"$f":"Import!E7153","v":"Select"},{"$f":"Import!E7553","v":"Select"},{"$f":"Import!E7953","v":0},{"$f":"Import!E8353","v":0},{"$f":"Import!E8753","v":0},{"$f":"Import!E9153","v":0},{"$f":"Import!E9553","v":0}]
[290,{"$f":"Import!E6754","v":"Select"},{"$f":"Import!E7154","v":"Select"},{"$f":"Import!E7554","v":"Select"},{"$f":"Import!E7954","v":0},{"$f":"Import!E8354","v":0},{"$f":"Import!E8754","v":0},{"$f":"Import!E9154","v":0},{"$f":"Import!E9554","v":0}]
[291,{"$f":"Import!E6755","v":"Select"},{"$f":"Import!E7155","v":"Select"},{"$f":"Import!E7555","v":"Select"},{"$f":"Import!E7955","v":0},{"$f":"Import!E8355","v":0},{"$f":"Import!E8755","v":0},{"$f":"Import!E9155","v":0},{"$f":"Import!E9555","v":0}]
[292,{"$f":"Import!E6756","v":"Select"},{"$f":"Import!E7156","v":"Select"},{"$f":"Import!E7556","v":"Select"},{"$f":"Import!E7956","v":0},{"$f":"Import!E8356","v":0},{"$f":"Import!E8756","v":0},{"$f":"Import!E9156","v":0},{"$f":"Import!E9556","v":0}]
[293,{"$f":"Import!E6757","v":"Select"},{"$f":"Import!E7157","v":"Select"},{"$f":"Import!E7557","v":"Select"},{"$f":"Import!E7957","v":0},{"$f":"Import!E8357","v":0},{"$f":"Import!E8757","v":0},{"$f":"Import!E9157","v":0},{"$f":"Import!E9557","v":0}]
[294,{"$f":"Import!E6758","v":"Select"},{"$f":"Import!E7158","v":"Select"},{"$f":"Import!E7558","v":"Select"},{"$f":"Import!E7958","v":0},{"$f":"Import!E8358","v":0},{"$f":"Import!E8758","v":0},{"$f":"Import!E9158","v":0},{"$f":"Import!E9558","v":0}]
[295,{"$f":"Import!E6759","v":"Select"},{"$f":"Import!E7159","v":"Select"},{"$f":"Import!E7559","v":"Select"},{"$f":"Import!E7959","v":0},{"$f":"Import!E8359","v":0},{"$f":"Import!E8759","v":0},{"$f":"Import!E9159","v":0},{"$f":"Import!E9559","v":0}]
[296,{"$f":"Import!E6760","v":"Select"},{"$f":"Import!E7160","v":"Select"},{"$f":"Import!E7560","v":"Select"},{"$f":"Import!E7960","v":0},{"$f":"Import!E8360","v":0},{"$f":"Import!E8760","v":0},{"$f":"Import!E9160","v":0},{"$f":"Import!E9560","v":0}]
[297,{"$f":"Import!E6761","v":"Select"},{"$f":"Import!E7161","v":"Select"},{"$f":"Import!E7561","v":"Select"},{"$f":"Import!E7961","v":0},{"$f":"Import!E8361","v":0},{"$f":"Import!E8761","v":0},{"$f":"Import!E9161","v":0},{"$f":"Import!E9561","v":0}]
[298,{"$f":"Import!E6762","v":"Select"},{"$f":"Import!E7162","v":"Select"},{"$f":"Import!E7562","v":"Select"},{"$f":"Import!E7962","v":0},{"$f":"Import!E8362","v":0},{"$f":"Import!E8762","v":0},{"$f":"Import!E9162","v":0},{"$f":"Import!E9562","v":0}]
[299,{"$f":"Import!E6763","v":"Select"},{"$f":"Import!E7163","v":"Select"},{"$f":"Import!E7563","v":"Select"},{"$f":"Import!E7963","v":0},{"$f":"Import!E8363","v":0},{"$f":"Import!E8763","v":0},{"$f":"Import!E9163","v":0},{"$f":"Import!E9563","v":0}]
[300,{"$f":"Import!E6764","v":"Select"},{"$f":"Import!E7164","v":"Select"},{"$f":"Import!E7564","v":"Select"},{"$f":"Import!E7964","v":0},{"$f":"Import!E8364","v":0},{"$f":"Import!E8764","v":0},{"$f":"Import!E9164","v":0},{"$f":"Import!E9564","v":0}]
[301,{"$f":"Import!E6765","v":"Select"},{"$f":"Import!E7165","v":"Select"},{"$f":"Import!E7565","v":"Select"},{"$f":"Import!E7965","v":0},{"$f":"Import!E8365","v":0},{"$f":"Import!E8765","v":0},{"$f":"Import!E9165","v":0},{"$f":"Import!E9565","v":0}]
[302,{"$f":"Import!E6766","v":"Select"},{"$f":"Import!E7166","v":"Select"},{"$f":"Import!E7566","v":"Select"},{"$f":"Import!E7966","v":0},{"$f":"Import!E8366","v":0},{"$f":"Import!E8766","v":0},{"$f":"Import!E9166","v":0},{"$f":"Import!E9566","v":0}]
[303,{"$f":"Import!E6767","v":"Select"},{"$f":"Import!E7167","v":"Select"},{"$f":"Import!E7567","v":"Select"},{"$f":"Import!E7967","v":0},{"$f":"Import!E8367","v":0},{"$f":"Import!E8767","v":0},{"$f":"Import!E9167","v":0},{"$f":"Import!E9567","v":0}]
[304,{"$f":"Import!E6768","v":"Select"},{"$f":"Import!E7168","v":"Select"},{"$f":"Import!E7568","v":"Select"},{"$f":"Import!E7968","v":0},{"$f":"Import!E8368","v":0},{"$f":"Import!E8768","v":0},{"$f":"Import!E9168","v":0},{"$f":"Import!E9568","v":0}]
[305,{"$f":"Import!E6769","v":"Select"},{"$f":"Import!E7169","v":"Select"},{"$f":"Import!E7569","v":"Select"},{"$f":"Import!E7969","v":0},{"$f":"Import!E8369","v":0},{"$f":"Import!E8769","v":0},{"$f":"Import!E9169","v":0},{"$f":"Import!E9569","v":0}]
[306,{"$f":"Import!E6770","v":"Select"},{"$f":"Import!E7170","v":"Select"},{"$f":"Import!E7570","v":"Select"},{"$f":"Import!E7970","v":0},{"$f":"Import!E8370","v":0},{"$f":"Import!E8770","v":0},{"$f":"Import!E9170","v":0},{"$f":"Import!E9570","v":0}]
[307,{"$f":"Import!E6771","v":"Select"},{"$f":"Import!E7171","v":"Select"},{"$f":"Import!E7571","v":"Select"},{"$f":"Import!E7971","v":0},{"$f":"Import!E8371","v":0},{"$f":"Import!E8771","v":0},{"$f":"Import!E9171","v":0},{"$f":"Import!E9571","v":0}]
[308,{"$f":"Import!E6772","v":"Select"},{"$f":"Import!E7172","v":"Select"},{"$f":"Import!E7572","v":"Select"},{"$f":"Import!E7972","v":0},{"$f":"Import!E8372","v":0},{"$f":"Import!E8772","v":0},{"$f":"Import!E9172","v":0},{"$f":"Import!E9572","v":0}]
[309,{"$f":"Import!E6773","v":"Select"},{"$f":"Import!E7173","v":"Select"},{"$f":"Import!E7573","v":"Select"},{"$f":"Import!E7973","v":0},{"$f":"Import!E8373","v":0},{"$f":"Import!E8773","v":0},{"$f":"Import!E9173","v":0},{"$f":"Import!E9573","v":0}]
[310,{"$f":"Import!E6774","v":"Select"},{"$f":"Import!E7174","v":"Select"},{"$f":"Import!E7574","v":"Select"},{"$f":"Import!E7974","v":0},{"$f":"Import!E8374","v":0},{"$f":"Import!E8774","v":0},{"$f":"Import!E9174","v":0},{"$f":"Import!E9574","v":0}]
[311,{"$f":"Import!E6775","v":"Select"},{"$f":"Import!E7175","v":"Select"},{"$f":"Import!E7575","v":"Select"},{"$f":"Import!E7975","v":0},{"$f":"Import!E8375","v":0},{"$f":"Import!E8775","v":0},{"$f":"Import!E9175","v":0},{"$f":"Import!E9575","v":0}]
[312,{"$f":"Import!E6776","v":"Select"},{"$f":"Import!E7176","v":"Select"},{"$f":"Import!E7576","v":"Select"},{"$f":"Import!E7976","v":0},{"$f":"Import!E8376","v":0},{"$f":"Import!E8776","v":0},{"$f":"Import!E9176","v":0},{"$f":"Import!E9576","v":0}]
[313,{"$f":"Import!E6777","v":"Select"},{"$f":"Import!E7177","v":"Select"},{"$f":"Import!E7577","v":"Select"},{"$f":"Import!E7977","v":0},{"$f":"Import!E8377","v":0},{"$f":"Import!E8777","v":0},{"$f":"Import!E9177","v":0},{"$f":"Import!E9577","v":0}]
[314,{"$f":"Import!E6778","v":"Select"},{"$f":"Import!E7178","v":"Select"},{"$f":"Import!E7578","v":"Select"},{"$f":"Import!E7978","v":0},{"$f":"Import!E8378","v":0},{"$f":"Import!E8778","v":0},{"$f":"Import!E9178","v":0},{"$f":"Import!E9578","v":0}]
[315,{"$f":"Import!E6779","v":"Select"},{"$f":"Import!E7179","v":"Select"},{"$f":"Import!E7579","v":"Select"},{"$f":"Import!E7979","v":0},{"$f":"Import!E8379","v":0},{"$f":"Import!E8779","v":0},{"$f":"Import!E9179","v":0},{"$f":"Import!E9579","v":0}]
[316,{"$f":"Import!E6780","v":"Select"},{"$f":"Import!E7180","v":"Select"},{"$f":"Import!E7580","v":"Select"},{"$f":"Import!E7980","v":0},{"$f":"Import!E8380","v":0},{"$f":"Import!E8780","v":0},{"$f":"Import!E9180","v":0},{"$f":"Import!E9580","v":0}]
[317,{"$f":"Import!E6781","v":"Select"},{"$f":"Import!E7181","v":"Select"},{"$f":"Import!E7581","v":"Select"},{"$f":"Import!E7981","v":0},{"$f":"Import!E8381","v":0},{"$f":"Import!E8781","v":0},{"$f":"Import!E9181","v":0},{"$f":"Import!E9581","v":0}]
[318,{"$f":"Import!E6782","v":"Select"},{"$f":"Import!E7182","v":"Select"},{"$f":"Import!E7582","v":"Select"},{"$f":"Import!E7982","v":0},{"$f":"Import!E8382","v":0},{"$f":"Import!E8782","v":0},{"$f":"Import!E9182","v":0},{"$f":"Import!E9582","v":0}]
[319,{"$f":"Import!E6783","v":"Select"},{"$f":"Import!E7183","v":"Select"},{"$f":"Import!E7583","v":"Select"},{"$f":"Import!E7983","v":0},{"$f":"Import!E8383","v":0},{"$f":"Import!E8783","v":0},{"$f":"Import!E9183","v":0},{"$f":"Import!E9583","v":0}]
[320,{"$f":"Import!E6784","v":"Select"},{"$f":"Import!E7184","v":"Select"},{"$f":"Import!E7584","v":"Select"},{"$f":"Import!E7984","v":0},{"$f":"Import!E8384","v":0},{"$f":"Import!E8784","v":0},{"$f":"Import!E9184","v":0},{"$f":"Import!E9584","v":0}]
[321,{"$f":"Import!E6785","v":"Select"},{"$f":"Import!E7185","v":"Select"},{"$f":"Import!E7585","v":"Select"},{"$f":"Import!E7985","v":0},{"$f":"Import!E8385","v":0},{"$f":"Import!E8785","v":0},{"$f":"Import!E9185","v":0},{"$f":"Import!E9585","v":0}]
[322,{"$f":"Import!E6786","v":"Select"},{"$f":"Import!E7186","v":"Select"},{"$f":"Import!E7586","v":"Select"},{"$f":"Import!E7986","v":0},{"$f":"Import!E8386","v":0},{"$f":"Import!E8786","v":0},{"$f":"Import!E9186","v":0},{"$f":"Import!E9586","v":0}]
[{"$f":"A540+1","v":323},{"$f":"Import!E6787","v":"Select"},{"$f":"Import!E7187","v":"Select"},{"$f":"Import!E7587","v":"Select"},{"$f":"Import!E7987","v":0},{"$f":"Import!E8387","v":0},{"$f":"Import!E8787","v":0},{"$f":"Import!E9187","v":0},{"$f":"Import!E9587","v":0}]
[324,{"$f":"Import!E6788","v":"Select"},{"$f":"Import!E7188","v":"Select"},{"$f":"Import!E7588","v":"Select"},{"$f":"Import!E7988","v":0},{"$f":"Import!E8388","v":0},{"$f":"Import!E8788","v":0},{"$f":"Import!E9188","v":0},{"$f":"Import!E9588","v":0}]
[325,{"$f":"Import!E6789","v":"Select"},{"$f":"Import!E7189","v":"Select"},{"$f":"Import!E7589","v":"Select"},{"$f":"Import!E7989","v":0},{"$f":"Import!E8389","v":0},{"$f":"Import!E8789","v":0},{"$f":"Import!E9189","v":0},{"$f":"Import!E9589","v":0}]
[326,{"$f":"Import!E6790","v":"Select"},{"$f":"Import!E7190","v":"Select"},{"$f":"Import!E7590","v":"Select"},{"$f":"Import!E7990","v":0},{"$f":"Import!E8390","v":0},{"$f":"Import!E8790","v":0},{"$f":"Import!E9190","v":0},{"$f":"Import!E9590","v":0}]
[327,{"$f":"Import!E6791","v":"Select"},{"$f":"Import!E7191","v":"Select"},{"$f":"Import!E7591","v":"Select"},{"$f":"Import!E7991","v":0},{"$f":"Import!E8391","v":0},{"$f":"Import!E8791","v":0},{"$f":"Import!E9191","v":0},{"$f":"Import!E9591","v":0}]
[328,{"$f":"Import!E6792","v":"Select"},{"$f":"Import!E7192","v":"Select"},{"$f":"Import!E7592","v":"Select"},{"$f":"Import!E7992","v":0},{"$f":"Import!E8392","v":0},{"$f":"Import!E8792","v":0},{"$f":"Import!E9192","v":0},{"$f":"Import!E9592","v":0}]
[329,{"$f":"Import!E6793","v":"Select"},{"$f":"Import!E7193","v":"Select"},{"$f":"Import!E7593","v":"Select"},{"$f":"Import!E7993","v":0},{"$f":"Import!E8393","v":0},{"$f":"Import!E8793","v":0},{"$f":"Import!E9193","v":0},{"$f":"Import!E9593","v":0}]
[330,{"$f":"Import!E6794","v":"Select"},{"$f":"Import!E7194","v":"Select"},{"$f":"Import!E7594","v":"Select"},{"$f":"Import!E7994","v":0},{"$f":"Import!E8394","v":0},{"$f":"Import!E8794","v":0},{"$f":"Import!E9194","v":0},{"$f":"Import!E9594","v":0}]
[331,{"$f":"Import!E6795","v":"Select"},{"$f":"Import!E7195","v":"Select"},{"$f":"Import!E7595","v":"Select"},{"$f":"Import!E7995","v":0},{"$f":"Import!E8395","v":0},{"$f":"Import!E8795","v":0},{"$f":"Import!E9195","v":0},{"$f":"Import!E9595","v":0}]
[332,{"$f":"Import!E6796","v":"Select"},{"$f":"Import!E7196","v":"Select"},{"$f":"Import!E7596","v":"Select"},{"$f":"Import!E7996","v":0},{"$f":"Import!E8396","v":0},{"$f":"Import!E8796","v":0},{"$f":"Import!E9196","v":0},{"$f":"Import!E9596","v":0}]
[333,{"$f":"Import!E6797","v":"Select"},{"$f":"Import!E7197","v":"Select"},{"$f":"Import!E7597","v":"Select"},{"$f":"Import!E7997","v":0},{"$f":"Import!E8397","v":0},{"$f":"Import!E8797","v":0},{"$f":"Import!E9197","v":0},{"$f":"Import!E9597","v":0}]
[334,{"$f":"Import!E6798","v":"Select"},{"$f":"Import!E7198","v":"Select"},{"$f":"Import!E7598","v":"Select"},{"$f":"Import!E7998","v":0},{"$f":"Import!E8398","v":0},{"$f":"Import!E8798","v":0},{"$f":"Import!E9198","v":0},{"$f":"Import!E9598","v":0}]
[335,{"$f":"Import!E6799","v":"Select"},{"$f":"Import!E7199","v":"Select"},{"$f":"Import!E7599","v":"Select"},{"$f":"Import!E7999","v":0},{"$f":"Import!E8399","v":0},{"$f":"Import!E8799","v":0},{"$f":"Import!E9199","v":0},{"$f":"Import!E9599","v":0}]
[336,{"$f":"Import!E6800","v":"Select"},{"$f":"Import!E7200","v":"Select"},{"$f":"Import!E7600","v":"Select"},{"$f":"Import!E8000","v":0},{"$f":"Import!E8400","v":0},{"$f":"Import!E8800","v":0},{"$f":"Import!E9200","v":0},{"$f":"Import!E9600","v":0}]
[337,{"$f":"Import!E6801","v":"Select"},{"$f":"Import!E7201","v":"Select"},{"$f":"Import!E7601","v":"Select"},{"$f":"Import!E8001","v":0},{"$f":"Import!E8401","v":0},{"$f":"Import!E8801","v":0},{"$f":"Import!E9201","v":0},{"$f":"Import!E9601","v":0}]
[338,{"$f":"Import!E6802","v":"Select"},{"$f":"Import!E7202","v":"Select"},{"$f":"Import!E7602","v":"Select"},{"$f":"Import!E8002","v":0},{"$f":"Import!E8402","v":0},{"$f":"Import!E8802","v":0},{"$f":"Import!E9202","v":0},{"$f":"Import!E9602","v":0}]
[339,{"$f":"Import!E6803","v":"Select"},{"$f":"Import!E7203","v":"Select"},{"$f":"Import!E7603","v":"Select"},{"$f":"Import!E8003","v":0},{"$f":"Import!E8403","v":0},{"$f":"Import!E8803","v":0},{"$f":"Import!E9203","v":0},{"$f":"Import!E9603","v":0}]
[340,{"$f":"Import!E6804","v":"Select"},{"$f":"Import!E7204","v":"Select"},{"$f":"Import!E7604","v":"Select"},{"$f":"Import!E8004","v":0},{"$f":"Import!E8404","v":0},{"$f":"Import!E8804","v":0},{"$f":"Import!E9204","v":0},{"$f":"Import!E9604","v":0}]
[341,{"$f":"Import!E6805","v":"Select"},{"$f":"Import!E7205","v":"Select"},{"$f":"Import!E7605","v":"Select"},{"$f":"Import!E8005","v":0},{"$f":"Import!E8405","v":0},{"$f":"Import!E8805","v":0},{"$f":"Import!E9205","v":0},{"$f":"Import!E9605","v":0}]
[342,{"$f":"Import!E6806","v":"Select"},{"$f":"Import!E7206","v":"Select"},{"$f":"Import!E7606","v":"Select"},{"$f":"Import!E8006","v":0},{"$f":"Import!E8406","v":0},{"$f":"Import!E8806","v":0},{"$f":"Import!E9206","v":0},{"$f":"Import!E9606","v":0}]
[343,{"$f":"Import!E6807","v":"Select"},{"$f":"Import!E7207","v":"Select"},{"$f":"Import!E7607","v":"Select"},{"$f":"Import!E8007","v":0},{"$f":"Import!E8407","v":0},{"$f":"Import!E8807","v":0},{"$f":"Import!E9207","v":0},{"$f":"Import!E9607","v":0}]
[344,{"$f":"Import!E6808","v":"Select"},{"$f":"Import!E7208","v":"Select"},{"$f":"Import!E7608","v":"Select"},{"$f":"Import!E8008","v":0},{"$f":"Import!E8408","v":0},{"$f":"Import!E8808","v":0},{"$f":"Import!E9208","v":0},{"$f":"Import!E9608","v":0}]
[345,{"$f":"Import!E6809","v":"Select"},{"$f":"Import!E7209","v":"Select"},{"$f":"Import!E7609","v":"Select"},{"$f":"Import!E8009","v":0},{"$f":"Import!E8409","v":0},{"$f":"Import!E8809","v":0},{"$f":"Import!E9209","v":0},{"$f":"Import!E9609","v":0}]
[346,{"$f":"Import!E6810","v":"Select"},{"$f":"Import!E7210","v":"Select"},{"$f":"Import!E7610","v":"Select"},{"$f":"Import!E8010","v":0},{"$f":"Import!E8410","v":0},{"$f":"Import!E8810","v":0},{"$f":"Import!E9210","v":0},{"$f":"Import!E9610","v":0}]
[347,{"$f":"Import!E6811","v":"Select"},{"$f":"Import!E7211","v":"Select"},{"$f":"Import!E7611","v":"Select"},{"$f":"Import!E8011","v":0},{"$f":"Import!E8411","v":0},{"$f":"Import!E8811","v":0},{"$f":"Import!E9211","v":0},{"$f":"Import!E9611","v":0}]
[348,{"$f":"Import!E6812","v":"Select"},{"$f":"Import!E7212","v":"Select"},{"$f":"Import!E7612","v":"Select"},{"$f":"Import!E8012","v":0},{"$f":"Import!E8412","v":0},{"$f":"Import!E8812","v":0},{"$f":"Import!E9212","v":0},{"$f":"Import!E9612","v":0}]
[349,{"$f":"Import!E6813","v":"Select"},{"$f":"Import!E7213","v":"Select"},{"$f":"Import!E7613","v":"Select"},{"$f":"Import!E8013","v":0},{"$f":"Import!E8413","v":0},{"$f":"Import!E8813","v":0},{"$f":"Import!E9213","v":0},{"$f":"Import!E9613","v":0}]
[350,{"$f":"Import!E6814","v":"Select"},{"$f":"Import!E7214","v":"Select"},{"$f":"Import!E7614","v":"Select"},{"$f":"Import!E8014","v":0},{"$f":"Import!E8414","v":0},{"$f":"Import!E8814","v":0},{"$f":"Import!E9214","v":0},{"$f":"Import!E9614","v":0}]
[351,{"$f":"Import!E6815","v":"Select"},{"$f":"Import!E7215","v":"Select"},{"$f":"Import!E7615","v":"Select"},{"$f":"Import!E8015","v":0},{"$f":"Import!E8415","v":0},{"$f":"Import!E8815","v":0},{"$f":"Import!E9215","v":0},{"$f":"Import!E9615","v":0}]
[352,{"$f":"Import!E6816","v":"Select"},{"$f":"Import!E7216","v":"Select"},{"$f":"Import!E7616","v":"Select"},{"$f":"Import!E8016","v":0},{"$f":"Import!E8416","v":0},{"$f":"Import!E8816","v":0},{"$f":"Import!E9216","v":0},{"$f":"Import!E9616","v":0}]
[353,{"$f":"Import!E6817","v":"Select"},{"$f":"Import!E7217","v":"Select"},{"$f":"Import!E7617","v":"Select"},{"$f":"Import!E8017","v":0},{"$f":"Import!E8417","v":0},{"$f":"Import!E8817","v":0},{"$f":"Import!E9217","v":0},{"$f":"Import!E9617","v":0}]
[354,{"$f":"Import!E6818","v":"Select"},{"$f":"Import!E7218","v":"Select"},{"$f":"Import!E7618","v":"Select"},{"$f":"Import!E8018","v":0},{"$f":"Import!E8418","v":0},{"$f":"Import!E8818","v":0},{"$f":"Import!E9218","v":0},{"$f":"Import!E9618","v":0}]
[355,{"$f":"Import!E6819","v":"Select"},{"$f":"Import!E7219","v":"Select"},{"$f":"Import!E7619","v":"Select"},{"$f":"Import!E8019","v":0},{"$f":"Import!E8419","v":0},{"$f":"Import!E8819","v":0},{"$f":"Import!E9219","v":0},{"$f":"Import!E9619","v":0}]
[356,{"$f":"Import!E6820","v":"Select"},{"$f":"Import!E7220","v":"Select"},{"$f":"Import!E7620","v":"Select"},{"$f":"Import!E8020","v":0},{"$f":"Import!E8420","v":0},{"$f":"Import!E8820","v":0},{"$f":"Import!E9220","v":0},{"$f":"Import!E9620","v":0}]
[357,{"$f":"Import!E6821","v":"Select"},{"$f":"Import!E7221","v":"Select"},{"$f":"Import!E7621","v":"Select"},{"$f":"Import!E8021","v":0},{"$f":"Import!E8421","v":0},{"$f":"Import!E8821","v":0},{"$f":"Import!E9221","v":0},{"$f":"Import!E9621","v":0}]
[358,{"$f":"Import!E6822","v":"Select"},{"$f":"Import!E7222","v":"Select"},{"$f":"Import!E7622","v":"Select"},{"$f":"Import!E8022","v":0},{"$f":"Import!E8422","v":0},{"$f":"Import!E8822","v":0},{"$f":"Import!E9222","v":0},{"$f":"Import!E9622","v":0}]
[359,{"$f":"Import!E6823","v":"Select"},{"$f":"Import!E7223","v":"Select"},{"$f":"Import!E7623","v":"Select"},{"$f":"Import!E8023","v":0},{"$f":"Import!E8423","v":0},{"$f":"Import!E8823","v":0},{"$f":"Import!E9223","v":0},{"$f":"Import!E9623","v":0}]
[360,{"$f":"Import!E6824","v":"Select"},{"$f":"Import!E7224","v":"Select"},{"$f":"Import!E7624","v":"Select"},{"$f":"Import!E8024","v":0},{"$f":"Import!E8424","v":0},{"$f":"Import!E8824","v":0},{"$f":"Import!E9224","v":0},{"$f":"Import!E9624","v":0}]
[361,{"$f":"Import!E6825","v":"Select"},{"$f":"Import!E7225","v":"Select"},{"$f":"Import!E7625","v":"Select"},{"$f":"Import!E8025","v":0},{"$f":"Import!E8425","v":0},{"$f":"Import!E8825","v":0},{"$f":"Import!E9225","v":0},{"$f":"Import!E9625","v":0}]
[362,{"$f":"Import!E6826","v":"Select"},{"$f":"Import!E7226","v":"Select"},{"$f":"Import!E7626","v":"Select"},{"$f":"Import!E8026","v":0},{"$f":"Import!E8426","v":0},{"$f":"Import!E8826","v":0},{"$f":"Import!E9226","v":0},{"$f":"Import!E9626","v":0}]
[363,{"$f":"Import!E6827","v":"Select"},{"$f":"Import!E7227","v":"Select"},{"$f":"Import!E7627","v":"Select"},{"$f":"Import!E8027","v":0},{"$f":"Import!E8427","v":0},{"$f":"Import!E8827","v":0},{"$f":"Import!E9227","v":0},{"$f":"Import!E9627","v":0}]
[364,{"$f":"Import!E6828","v":"Select"},{"$f":"Import!E7228","v":"Select"},{"$f":"Import!E7628","v":"Select"},{"$f":"Import!E8028","v":0},{"$f":"Import!E8428","v":0},{"$f":"Import!E8828","v":0},{"$f":"Import!E9228","v":0},{"$f":"Import!E9628","v":0}]
[365,{"$f":"Import!E6829","v":"Select"},{"$f":"Import!E7229","v":"Select"},{"$f":"Import!E7629","v":"Select"},{"$f":"Import!E8029","v":0},{"$f":"Import!E8429","v":0},{"$f":"Import!E8829","v":0},{"$f":"Import!E9229","v":0},{"$f":"Import!E9629","v":0}]
[366,{"$f":"Import!E6830","v":"Select"},{"$f":"Import!E7230","v":"Select"},{"$f":"Import!E7630","v":"Select"},{"$f":"Import!E8030","v":0},{"$f":"Import!E8430","v":0},{"$f":"Import!E8830","v":0},{"$f":"Import!E9230","v":0},{"$f":"Import!E9630","v":0}]
[367,{"$f":"Import!E6831","v":"Select"},{"$f":"Import!E7231","v":"Select"},{"$f":"Import!E7631","v":"Select"},{"$f":"Import!E8031","v":0},{"$f":"Import!E8431","v":0},{"$f":"Import!E8831","v":0},{"$f":"Import!E9231","v":0},{"$f":"Import!E9631","v":0}]
[368,{"$f":"Import!E6832","v":"Select"},{"$f":"Import!E7232","v":"Select"},{"$f":"Import!E7632","v":"Select"},{"$f":"Import!E8032","v":0},{"$f":"Import!E8432","v":0},{"$f":"Import!E8832","v":0},{"$f":"Import!E9232","v":0},{"$f":"Import!E9632","v":0}]
[369,{"$f":"Import!E6833","v":"Select"},{"$f":"Import!E7233","v":"Select"},{"$f":"Import!E7633","v":"Select"},{"$f":"Import!E8033","v":0},{"$f":"Import!E8433","v":0},{"$f":"Import!E8833","v":0},{"$f":"Import!E9233","v":0},{"$f":"Import!E9633","v":0}]
[370,{"$f":"Import!E6834","v":"Select"},{"$f":"Import!E7234","v":"Select"},{"$f":"Import!E7634","v":"Select"},{"$f":"Import!E8034","v":0},{"$f":"Import!E8434","v":0},{"$f":"Import!E8834","v":0},{"$f":"Import!E9234","v":0},{"$f":"Import!E9634","v":0}]
[371,{"$f":"Import!E6835","v":"Select"},{"$f":"Import!E7235","v":"Select"},{"$f":"Import!E7635","v":"Select"},{"$f":"Import!E8035","v":0},{"$f":"Import!E8435","v":0},{"$f":"Import!E8835","v":0},{"$f":"Import!E9235","v":0},{"$f":"Import!E9635","v":0}]
[372,{"$f":"Import!E6836","v":"Select"},{"$f":"Import!E7236","v":"Select"},{"$f":"Import!E7636","v":"Select"},{"$f":"Import!E8036","v":0},{"$f":"Import!E8436","v":0},{"$f":"Import!E8836","v":0},{"$f":"Import!E9236","v":0},{"$f":"Import!E9636","v":0}]
[373,{"$f":"Import!E6837","v":"Select"},{"$f":"Import!E7237","v":"Select"},{"$f":"Import!E7637","v":"Select"},{"$f":"Import!E8037","v":0},{"$f":"Import!E8437","v":0},{"$f":"Import!E8837","v":0},{"$f":"Import!E9237","v":0},{"$f":"Import!E9637","v":0}]
[374,{"$f":"Import!E6838","v":"Select"},{"$f":"Import!E7238","v":"Select"},{"$f":"Import!E7638","v":"Select"},{"$f":"Import!E8038","v":0},{"$f":"Import!E8438","v":0},{"$f":"Import!E8838","v":0},{"$f":"Import!E9238","v":0},{"$f":"Import!E9638","v":0}]
[375,{"$f":"Import!E6839","v":"Select"},{"$f":"Import!E7239","v":"Select"},{"$f":"Import!E7639","v":"Select"},{"$f":"Import!E8039","v":0},{"$f":"Import!E8439","v":0},{"$f":"Import!E8839","v":0},{"$f":"Import!E9239","v":0},{"$f":"Import!E9639","v":0}]
[376,{"$f":"Import!E6840","v":"Select"},{"$f":"Import!E7240","v":"Select"},{"$f":"Import!E7640","v":"Select"},{"$f":"Import!E8040","v":0},{"$f":"Import!E8440","v":0},{"$f":"Import!E8840","v":0},{"$f":"Import!E9240","v":0},{"$f":"Import!E9640","v":0}]
[377,{"$f":"Import!E6841","v":"Select"},{"$f":"Import!E7241","v":"Select"},{"$f":"Import!E7641","v":"Select"},{"$f":"Import!E8041","v":0},{"$f":"Import!E8441","v":0},{"$f":"Import!E8841","v":0},{"$f":"Import!E9241","v":0},{"$f":"Import!E9641","v":0}]
[378,{"$f":"Import!E6842","v":"Select"},{"$f":"Import!E7242","v":"Select"},{"$f":"Import!E7642","v":"Select"},{"$f":"Import!E8042","v":0},{"$f":"Import!E8442","v":0},{"$f":"Import!E8842","v":0},{"$f":"Import!E9242","v":0},{"$f":"Import!E9642","v":0}]
[379,{"$f":"Import!E6843","v":"Select"},{"$f":"Import!E7243","v":"Select"},{"$f":"Import!E7643","v":"Select"},{"$f":"Import!E8043","v":0},{"$f":"Import!E8443","v":0},{"$f":"Import!E8843","v":0},{"$f":"Import!E9243","v":0},{"$f":"Import!E9643","v":0}]
[380,{"$f":"Import!E6844","v":"Select"},{"$f":"Import!E7244","v":"Select"},{"$f":"Import!E7644","v":"Select"},{"$f":"Import!E8044","v":0},{"$f":"Import!E8444","v":0},{"$f":"Import!E8844","v":0},{"$f":"Import!E9244","v":0},{"$f":"Import!E9644","v":0}]
[381,{"$f":"Import!E6845","v":"Select"},{"$f":"Import!E7245","v":"Select"},{"$f":"Import!E7645","v":"Select"},{"$f":"Import!E8045","v":0},{"$f":"Import!E8445","v":0},{"$f":"Import!E8845","v":0},{"$f":"Import!E9245","v":0},{"$f":"Import!E9645","v":0}]
[382,{"$f":"Import!E6846","v":"Select"},{"$f":"Import!E7246","v":"Select"},{"$f":"Import!E7646","v":"Select"},{"$f":"Import!E8046","v":0},{"$f":"Import!E8446","v":0},{"$f":"Import!E8846","v":0},{"$f":"Import!E9246","v":0},{"$f":"Import!E9646","v":0}]
[383,{"$f":"Import!E6847","v":"Select"},{"$f":"Import!E7247","v":"Select"},{"$f":"Import!E7647","v":"Select"},{"$f":"Import!E8047","v":0},{"$f":"Import!E8447","v":0},{"$f":"Import!E8847","v":0},{"$f":"Import!E9247","v":0},{"$f":"Import!E9647","v":0}]
[384,{"$f":"Import!E6848","v":"Select"},{"$f":"Import!E7248","v":"Select"},{"$f":"Import!E7648","v":"Select"},{"$f":"Import!E8048","v":0},{"$f":"Import!E8448","v":0},{"$f":"Import!E8848","v":0},{"$f":"Import!E9248","v":0},{"$f":"Import!E9648","v":0}]
[385,{"$f":"Import!E6849","v":"Select"},{"$f":"Import!E7249","v":"Select"},{"$f":"Import!E7649","v":"Select"},{"$f":"Import!E8049","v":0},{"$f":"Import!E8449","v":0},{"$f":"Import!E8849","v":0},{"$f":"Import!E9249","v":0},{"$f":"Import!E9649","v":0}]
[386,{"$f":"Import!E6850","v":"Select"},{"$f":"Import!E7250","v":"Select"},{"$f":"Import!E7650","v":"Select"},{"$f":"Import!E8050","v":0},{"$f":"Import!E8450","v":0},{"$f":"Import!E8850","v":0},{"$f":"Import!E9250","v":0},{"$f":"Import!E9650","v":0}]
[{"$f":"A604+1","v":387},{"$f":"Import!E6851","v":"Select"},{"$f":"Import!E7251","v":"Select"},{"$f":"Import!E7651","v":"Select"},{"$f":"Import!E8051","v":0},{"$f":"Import!E8451","v":0},{"$f":"Import!E8851","v":0},{"$f":"Import!E9251","v":0},{"$f":"Import!E9651","v":0}]
[388,{"$f":"Import!E6852","v":"Select"},{"$f":"Import!E7252","v":"Select"},{"$f":"Import!E7652","v":"Select"},{"$f":"Import!E8052","v":0},{"$f":"Import!E8452","v":0},{"$f":"Import!E8852","v":0},{"$f":"Import!E9252","v":0},{"$f":"Import!E9652","v":0}]
[389,{"$f":"Import!E6853","v":"Select"},{"$f":"Import!E7253","v":"Select"},{"$f":"Import!E7653","v":"Select"},{"$f":"Import!E8053","v":0},{"$f":"Import!E8453","v":0},{"$f":"Import!E8853","v":0},{"$f":"Import!E9253","v":0},{"$f":"Import!E9653","v":0}]
[390,{"$f":"Import!E6854","v":"Select"},{"$f":"Import!E7254","v":"Select"},{"$f":"Import!E7654","v":"Select"},{"$f":"Import!E8054","v":0},{"$f":"Import!E8454","v":0},{"$f":"Import!E8854","v":0},{"$f":"Import!E9254","v":0},{"$f":"Import!E9654","v":0}]
[391,{"$f":"Import!E6855","v":"Select"},{"$f":"Import!E7255","v":"Select"},{"$f":"Import!E7655","v":"Select"},{"$f":"Import!E8055","v":0},{"$f":"Import!E8455","v":0},{"$f":"Import!E8855","v":0},{"$f":"Import!E9255","v":0},{"$f":"Import!E9655","v":0}]
[392,{"$f":"Import!E6856","v":"Select"},{"$f":"Import!E7256","v":"Select"},{"$f":"Import!E7656","v":"Select"},{"$f":"Import!E8056","v":0},{"$f":"Import!E8456","v":0},{"$f":"Import!E8856","v":0},{"$f":"Import!E9256","v":0},{"$f":"Import!E9656","v":0}]
[393,{"$f":"Import!E6857","v":"Select"},{"$f":"Import!E7257","v":"Select"},{"$f":"Import!E7657","v":"Select"},{"$f":"Import!E8057","v":0},{"$f":"Import!E8457","v":0},{"$f":"Import!E8857","v":0},{"$f":"Import!E9257","v":0},{"$f":"Import!E9657","v":0}]
[394,{"$f":"Import!E6858","v":"Select"},{"$f":"Import!E7258","v":"Select"},{"$f":"Import!E7658","v":"Select"},{"$f":"Import!E8058","v":0},{"$f":"Import!E8458","v":0},{"$f":"Import!E8858","v":0},{"$f":"Import!E9258","v":0},{"$f":"Import!E9658","v":0}]
[395,{"$f":"Import!E6859","v":"Select"},{"$f":"Import!E7259","v":"Select"},{"$f":"Import!E7659","v":"Select"},{"$f":"Import!E8059","v":0},{"$f":"Import!E8459","v":0},{"$f":"Import!E8859","v":0},{"$f":"Import!E9259","v":0},{"$f":"Import!E9659","v":0}]
[396,{"$f":"Import!E6860","v":"Select"},{"$f":"Import!E7260","v":"Select"},{"$f":"Import!E7660","v":"Select"},{"$f":"Import!E8060","v":0},{"$f":"Import!E8460","v":0},{"$f":"Import!E8860","v":0},{"$f":"Import!E9260","v":0},{"$f":"Import!E9660","v":0}]
[397,{"$f":"Import!E6861","v":"Select"},{"$f":"Import!E7261","v":"Select"},{"$f":"Import!E7661","v":"Select"},{"$f":"Import!E8061","v":0},{"$f":"Import!E8461","v":0},{"$f":"Import!E8861","v":0},{"$f":"Import!E9261","v":0},{"$f":"Import!E9661","v":0}]
[398,{"$f":"Import!E6862","v":"Select"},{"$f":"Import!E7262","v":"Select"},{"$f":"Import!E7662","v":"Select"},{"$f":"Import!E8062","v":0},{"$f":"Import!E8462","v":0},{"$f":"Import!E8862","v":0},{"$f":"Import!E9262","v":0},{"$f":"Import!E9662","v":0}]
[399,{"$f":"Import!E6863","v":"Select"},{"$f":"Import!E7263","v":"Select"},{"$f":"Import!E7663","v":"Select"},{"$f":"Import!E8063","v":0},{"$f":"Import!E8463","v":0},{"$f":"Import!E8863","v":0},{"$f":"Import!E9263","v":0},{"$f":"Import!E9663","v":0}]
[400,{"$f":"Import!E6864","v":"Select"},{"$f":"Import!E7264","v":"Select"},{"$f":"Import!E7664","v":"Select"},{"$f":"Import!E8064","v":0},{"$f":"Import!E8464","v":0},{"$f":"Import!E8864","v":0},{"$f":"Import!E9264","v":0},{"$f":"Import!E9664","v":0}]
[]
[null,"Total Bonds and Debentures",null,null,{"$f":"SUM(E219:E618)","v":0},{"$f":"SUM(F219:F618)","v":0},{"$f":"IFERROR(SUMPRODUCT(G219:G618,$F219:$F618)/SUM($F219:$F618),0)","v":0},{"$f":"IFERROR(SUMPRODUCT(H219:H618,$F219:$F618)/SUM($F219:$F618),0)","v":0}]
[]
[null,"- ADDITIONAL INFORMATION ON SOVEREIGN DEBT EXPOSURES"]
[]
[null,null,"Enter # of Asset Types",{"$f":"Import!E9665","v":0}]
[null,null,null,null,null,{"$f":"YEAR($C$3)","v":2023}]
[null,null,"Country","Currency","BSCR Rating","Fair Value","Comments"]
[null,1,{"$f":"Import!E9666","v":"Select"},{"$f":"Import!E9866","v":"Select"},{"$f":"Import!E10066","v":"Select"},{"$f":"Import!E10266","v":0},{"$f":"Import!E10466","v":0}]
[null,{"$f":"B627+1","v":2},{"$f":"Import!E9667","v":"Select"},{"$f":"Import!E9867","v":"Select"},{"$f":"Import!E10067","v":"Select"},{"$f":"Import!E10267","v":0},{"$f":"Import!E10467","v":0}]
[null,{"$f":"B628+1","v":3},{"$f":"Import!E9668","v":"Select"},{"$f":"Import!E9868","v":"Select"},{"$f":"Import!E10068","v":"Select"},{"$f":"Import!E10268","v":0},{"$f":"Import!E10468","v":0}]
[null,4,{"$f":"Import!E9669","v":"Select"},{"$f":"Import!E9869","v":"Select"},{"$f":"Import!E10069","v":"Select"},{"$f":"Import!E10269","v":0},{"$f":"Import!E10469","v":0}]
[null,5,{"$f":"Import!E9670","v":"Select"},{"$f":"Import!E9870","v":"Select"},{"$f":"Import!E10070","v":"Select"},{"$f":"Import!E10270","v":0},{"$f":"Import!E10470","v":0}]
[null,6,{"$f":"Import!E9671","v":"Select"},{"$f":"Import!E9871","v":"Select"},{"$f":"Import!E10071","v":"Select"},{"$f":"Import!E10271","v":0},{"$f":"Import!E10471","v":0}]
[null,7,{"$f":"Import!E9672","v":"Select"},{"$f":"Import!E9872","v":"Select"},{"$f":"Import!E10072","v":"Select"},{"$f":"Import!E10272","v":0},{"$f":"Import!E10472","v":0}]
[null,8,{"$f":"Import!E9673","v":"Select"},{"$f":"Import!E9873","v":"Select"},{"$f":"Import!E10073","v":"Select"},{"$f":"Import!E10273","v":0},{"$f":"Import!E10473","v":0}]
[null,9,{"$f":"Import!E9674","v":"Select"},{"$f":"Import!E9874","v":"Select"},{"$f":"Import!E10074","v":"Select"},{"$f":"Import!E10274","v":0},{"$f":"Import!E10474","v":0}]
[null,10,{"$f":"Import!E9675","v":"Select"},{"$f":"Import!E9875","v":"Select"},{"$f":"Import!E10075","v":"Select"},{"$f":"Import!E10275","v":0},{"$f":"Import!E10475","v":0}]
[null,11,{"$f":"Import!E9676","v":"Select"},{"$f":"Import!E9876","v":"Select"},{"$f":"Import!E10076","v":"Select"},{"$f":"Import!E10276","v":0},{"$f":"Import!E10476","v":0}]
[null,12,{"$f":"Import!E9677","v":"Select"},{"$f":"Import!E9877","v":"Select"},{"$f":"Import!E10077","v":"Select"},{"$f":"Import!E10277","v":0},{"$f":"Import!E10477","v":0}]
[null,13,{"$f":"Import!E9678","v":"Select"},{"$f":"Import!E9878","v":"Select"},{"$f":"Import!E10078","v":"Select"},{"$f":"Import!E10278","v":0},{"$f":"Import!E10478","v":0}]
[null,14,{"$f":"Import!E9679","v":"Select"},{"$f":"Import!E9879","v":"Select"},{"$f":"Import!E10079","v":"Select"},{"$f":"Import!E10279","v":0},{"$f":"Import!E10479","v":0}]
[null,15,{"$f":"Import!E9680","v":"Select"},{"$f":"Import!E9880","v":"Select"},{"$f":"Import!E10080","v":"Select"},{"$f":"Import!E10280","v":0},{"$f":"Import!E10480","v":0}]
[null,16,{"$f":"Import!E9681","v":"Select"},{"$f":"Import!E9881","v":"Select"},{"$f":"Import!E10081","v":"Select"},{"$f":"Import!E10281","v":0},{"$f":"Import!E10481","v":0}]
[null,17,{"$f":"Import!E9682","v":"Select"},{"$f":"Import!E9882","v":"Select"},{"$f":"Import!E10082","v":"Select"},{"$f":"Import!E10282","v":0},{"$f":"Import!E10482","v":0}]
[null,18,{"$f":"Import!E9683","v":"Select"},{"$f":"Import!E9883","v":"Select"},{"$f":"Import!E10083","v":"Select"},{"$f":"Import!E10283","v":0},{"$f":"Import!E10483","v":0}]
[null,19,{"$f":"Import!E9684","v":"Select"},{"$f":"Import!E9884","v":"Select"},{"$f":"Import!E10084","v":"Select"},{"$f":"Import!E10284","v":0},{"$f":"Import!E10484","v":0}]
[null,20,{"$f":"Import!E9685","v":"Select"},{"$f":"Import!E9885","v":"Select"},{"$f":"Import!E10085","v":"Select"},{"$f":"Import!E10285","v":0},{"$f":"Import!E10485","v":0}]
[null,21,{"$f":"Import!E9686","v":"Select"},{"$f":"Import!E9886","v":"Select"},{"$f":"Import!E10086","v":"Select"},{"$f":"Import!E10286","v":0},{"$f":"Import!E10486","v":0}]
[null,22,{"$f":"Import!E9687","v":"Select"},{"$f":"Import!E9887","v":"Select"},{"$f":"Import!E10087","v":"Select"},{"$f":"Import!E10287","v":0},{"$f":"Import!E10487","v":0}]
[null,23,{"$f":"Import!E9688","v":"Select"},{"$f":"Import!E9888","v":"Select"},{"$f":"Import!E10088","v":"Select"},{"$f":"Import!E10288","v":0},{"$f":"Import!E10488","v":0}]
[null,24,{"$f":"Import!E9689","v":"Select"},{"$f":"Import!E9889","v":"Select"},{"$f":"Import!E10089","v":"Select"},{"$f":"Import!E10289","v":0},{"$f":"Import!E10489","v":0}]
[null,25,{"$f":"Import!E9690","v":"Select"},{"$f":"Import!E9890","v":"Select"},{"$f":"Import!E10090","v":"Select"},{"$f":"Import!E10290","v":0},{"$f":"Import!E10490","v":0}]
[null,26,{"$f":"Import!E9691","v":"Select"},{"$f":"Import!E9891","v":"Select"},{"$f":"Import!E10091","v":"Select"},{"$f":"Import!E10291","v":0},{"$f":"Import!E10491","v":0}]
[null,27,{"$f":"Import!E9692","v":"Select"},{"$f":"Import!E9892","v":"Select"},{"$f":"Import!E10092","v":"Select"},{"$f":"Import!E10292","v":0},{"$f":"Import!E10492","v":0}]
[null,28,{"$f":"Import!E9693","v":"Select"},{"$f":"Import!E9893","v":"Select"},{"$f":"Import!E10093","v":"Select"},{"$f":"Import!E10293","v":0},{"$f":"Import!E10493","v":0}]
[null,29,{"$f":"Import!E9694","v":"Select"},{"$f":"Import!E9894","v":"Select"},{"$f":"Import!E10094","v":"Select"},{"$f":"Import!E10294","v":0},{"$f":"Import!E10494","v":0}]
[null,30,{"$f":"Import!E9695","v":"Select"},{"$f":"Import!E9895","v":"Select"},{"$f":"Import!E10095","v":"Select"},{"$f":"Import!E10295","v":0},{"$f":"Import!E10495","v":0}]
[null,31,{"$f":"Import!E9696","v":"Select"},{"$f":"Import!E9896","v":"Select"},{"$f":"Import!E10096","v":"Select"},{"$f":"Import!E10296","v":0},{"$f":"Import!E10496","v":0}]
[null,32,{"$f":"Import!E9697","v":"Select"},{"$f":"Import!E9897","v":"Select"},{"$f":"Import!E10097","v":"Select"},{"$f":"Import!E10297","v":0},{"$f":"Import!E10497","v":0}]
[null,33,{"$f":"Import!E9698","v":"Select"},{"$f":"Import!E9898","v":"Select"},{"$f":"Import!E10098","v":"Select"},{"$f":"Import!E10298","v":0},{"$f":"Import!E10498","v":0}]
[null,34,{"$f":"Import!E9699","v":"Select"},{"$f":"Import!E9899","v":"Select"},{"$f":"Import!E10099","v":"Select"},{"$f":"Import!E10299","v":0},{"$f":"Import!E10499","v":0}]
[null,35,{"$f":"Import!E9700","v":"Select"},{"$f":"Import!E9900","v":"Select"},{"$f":"Import!E10100","v":"Select"},{"$f":"Import!E10300","v":0},{"$f":"Import!E10500","v":0}]
[null,36,{"$f":"Import!E9701","v":"Select"},{"$f":"Import!E9901","v":"Select"},{"$f":"Import!E10101","v":"Select"},{"$f":"Import!E10301","v":0},{"$f":"Import!E10501","v":0}]
[null,37,{"$f":"Import!E9702","v":"Select"},{"$f":"Import!E9902","v":"Select"},{"$f":"Import!E10102","v":"Select"},{"$f":"Import!E10302","v":0},{"$f":"Import!E10502","v":0}]
[null,38,{"$f":"Import!E9703","v":"Select"},{"$f":"Import!E9903","v":"Select"},{"$f":"Import!E10103","v":"Select"},{"$f":"Import!E10303","v":0},{"$f":"Import!E10503","v":0}]
[null,39,{"$f":"Import!E9704","v":"Select"},{"$f":"Import!E9904","v":"Select"},{"$f":"Import!E10104","v":"Select"},{"$f":"Import!E10304","v":0},{"$f":"Import!E10504","v":0}]
[null,40,{"$f":"Import!E9705","v":"Select"},{"$f":"Import!E9905","v":"Select"},{"$f":"Import!E10105","v":"Select"},{"$f":"Import!E10305","v":0},{"$f":"Import!E10505","v":0}]
[null,41,{"$f":"Import!E9706","v":"Select"},{"$f":"Import!E9906","v":"Select"},{"$f":"Import!E10106","v":"Select"},{"$f":"Import!E10306","v":0},{"$f":"Import!E10506","v":0}]
[null,42,{"$f":"Import!E9707","v":"Select"},{"$f":"Import!E9907","v":"Select"},{"$f":"Import!E10107","v":"Select"},{"$f":"Import!E10307","v":0},{"$f":"Import!E10507","v":0}]
[null,43,{"$f":"Import!E9708","v":"Select"},{"$f":"Import!E9908","v":"Select"},{"$f":"Import!E10108","v":"Select"},{"$f":"Import!E10308","v":0},{"$f":"Import!E10508","v":0}]
[null,44,{"$f":"Import!E9709","v":"Select"},{"$f":"Import!E9909","v":"Select"},{"$f":"Import!E10109","v":"Select"},{"$f":"Import!E10309","v":0},{"$f":"Import!E10509","v":0}]
[null,45,{"$f":"Import!E9710","v":"Select"},{"$f":"Import!E9910","v":"Select"},{"$f":"Import!E10110","v":"Select"},{"$f":"Import!E10310","v":0},{"$f":"Import!E10510","v":0}]
[null,46,{"$f":"Import!E9711","v":"Select"},{"$f":"Import!E9911","v":"Select"},{"$f":"Import!E10111","v":"Select"},{"$f":"Import!E10311","v":0},{"$f":"Import!E10511","v":0}]
[null,47,{"$f":"Import!E9712","v":"Select"},{"$f":"Import!E9912","v":"Select"},{"$f":"Import!E10112","v":"Select"},{"$f":"Import!E10312","v":0},{"$f":"Import!E10512","v":0}]
[null,48,{"$f":"Import!E9713","v":"Select"},{"$f":"Import!E9913","v":"Select"},{"$f":"Import!E10113","v":"Select"},{"$f":"Import!E10313","v":0},{"$f":"Import!E10513","v":0}]
[null,49,{"$f":"Import!E9714","v":"Select"},{"$f":"Import!E9914","v":"Select"},{"$f":"Import!E10114","v":"Select"},{"$f":"Import!E10314","v":0},{"$f":"Import!E10514","v":0}]
[null,50,{"$f":"Import!E9715","v":"Select"},{"$f":"Import!E9915","v":"Select"},{"$f":"Import!E10115","v":"Select"},{"$f":"Import!E10315","v":0},{"$f":"Import!E10515","v":0}]
[null,51,{"$f":"Import!E9716","v":"Select"},{"$f":"Import!E9916","v":"Select"},{"$f":"Import!E10116","v":"Select"},{"$f":"Import!E10316","v":0},{"$f":"Import!E10516","v":0}]
[null,52,{"$f":"Import!E9717","v":"Select"},{"$f":"Import!E9917","v":"Select"},{"$f":"Import!E10117","v":"Select"},{"$f":"Import!E10317","v":0},{"$f":"Import!E10517","v":0}]
[null,53,{"$f":"Import!E9718","v":"Select"},{"$f":"Import!E9918","v":"Select"},{"$f":"Import!E10118","v":"Select"},{"$f":"Import!E10318","v":0},{"$f":"Import!E10518","v":0}]
[null,54,{"$f":"Import!E9719","v":"Select"},{"$f":"Import!E9919","v":"Select"},{"$f":"Import!E10119","v":"Select"},{"$f":"Import!E10319","v":0},{"$f":"Import!E10519","v":0}]
[null,55,{"$f":"Import!E9720","v":"Select"},{"$f":"Import!E9920","v":"Select"},{"$f":"Import!E10120","v":"Select"},{"$f":"Import!E10320","v":0},{"$f":"Import!E10520","v":0}]
[null,56,{"$f":"Import!E9721","v":"Select"},{"$f":"Import!E9921","v":"Select"},{"$f":"Import!E10121","v":"Select"},{"$f":"Import!E10321","v":0},{"$f":"Import!E10521","v":0}]
[null,57,{"$f":"Import!E9722","v":"Select"},{"$f":"Import!E9922","v":"Select"},{"$f":"Import!E10122","v":"Select"},{"$f":"Import!E10322","v":0},{"$f":"Import!E10522","v":0}]
[null,58,{"$f":"Import!E9723","v":"Select"},{"$f":"Import!E9923","v":"Select"},{"$f":"Import!E10123","v":"Select"},{"$f":"Import!E10323","v":0},{"$f":"Import!E10523","v":0}]
[null,59,{"$f":"Import!E9724","v":"Select"},{"$f":"Import!E9924","v":"Select"},{"$f":"Import!E10124","v":"Select"},{"$f":"Import!E10324","v":0},{"$f":"Import!E10524","v":0}]
[null,60,{"$f":"Import!E9725","v":"Select"},{"$f":"Import!E9925","v":"Select"},{"$f":"Import!E10125","v":"Select"},{"$f":"Import!E10325","v":0},{"$f":"Import!E10525","v":0}]
[null,61,{"$f":"Import!E9726","v":"Select"},{"$f":"Import!E9926","v":"Select"},{"$f":"Import!E10126","v":"Select"},{"$f":"Import!E10326","v":0},{"$f":"Import!E10526","v":0}]
[null,62,{"$f":"Import!E9727","v":"Select"},{"$f":"Import!E9927","v":"Select"},{"$f":"Import!E10127","v":"Select"},{"$f":"Import!E10327","v":0},{"$f":"Import!E10527","v":0}]
[null,63,{"$f":"Import!E9728","v":"Select"},{"$f":"Import!E9928","v":"Select"},{"$f":"Import!E10128","v":"Select"},{"$f":"Import!E10328","v":0},{"$f":"Import!E10528","v":0}]
[null,64,{"$f":"Import!E9729","v":"Select"},{"$f":"Import!E9929","v":"Select"},{"$f":"Import!E10129","v":"Select"},{"$f":"Import!E10329","v":0},{"$f":"Import!E10529","v":0}]
[null,65,{"$f":"Import!E9730","v":"Select"},{"$f":"Import!E9930","v":"Select"},{"$f":"Import!E10130","v":"Select"},{"$f":"Import!E10330","v":0},{"$f":"Import!E10530","v":0}]
[null,66,{"$f":"Import!E9731","v":"Select"},{"$f":"Import!E9931","v":"Select"},{"$f":"Import!E10131","v":"Select"},{"$f":"Import!E10331","v":0},{"$f":"Import!E10531","v":0}]
[null,{"$f":"B692+1","v":67},{"$f":"Import!E9732","v":"Select"},{"$f":"Import!E9932","v":"Select"},{"$f":"Import!E10132","v":"Select"},{"$f":"Import!E10332","v":0},{"$f":"Import!E10532","v":0}]
[null,68,{"$f":"Import!E9733","v":"Select"},{"$f":"Import!E9933","v":"Select"},{"$f":"Import!E10133","v":"Select"},{"$f":"Import!E10333","v":0},{"$f":"Import!E10533","v":0}]
[null,69,{"$f":"Import!E9734","v":"Select"},{"$f":"Import!E9934","v":"Select"},{"$f":"Import!E10134","v":"Select"},{"$f":"Import!E10334","v":0},{"$f":"Import!E10534","v":0}]
[null,70,{"$f":"Import!E9735","v":"Select"},{"$f":"Import!E9935","v":"Select"},{"$f":"Import!E10135","v":"Select"},{"$f":"Import!E10335","v":0},{"$f":"Import!E10535","v":0}]
[null,71,{"$f":"Import!E9736","v":"Select"},{"$f":"Import!E9936","v":"Select"},{"$f":"Import!E10136","v":"Select"},{"$f":"Import!E10336","v":0},{"$f":"Import!E10536","v":0}]
[null,72,{"$f":"Import!E9737","v":"Select"},{"$f":"Import!E9937","v":"Select"},{"$f":"Import!E10137","v":"Select"},{"$f":"Import!E10337","v":0},{"$f":"Import!E10537","v":0}]
[null,73,{"$f":"Import!E9738","v":"Select"},{"$f":"Import!E9938","v":"Select"},{"$f":"Import!E10138","v":"Select"},{"$f":"Import!E10338","v":0},{"$f":"Import!E10538","v":0}]
[null,74,{"$f":"Import!E9739","v":"Select"},{"$f":"Import!E9939","v":"Select"},{"$f":"Import!E10139","v":"Select"},{"$f":"Import!E10339","v":0},{"$f":"Import!E10539","v":0}]
[null,75,{"$f":"Import!E9740","v":"Select"},{"$f":"Import!E9940","v":"Select"},{"$f":"Import!E10140","v":"Select"},{"$f":"Import!E10340","v":0},{"$f":"Import!E10540","v":0}]
[null,76,{"$f":"Import!E9741","v":"Select"},{"$f":"Import!E9941","v":"Select"},{"$f":"Import!E10141","v":"Select"},{"$f":"Import!E10341","v":0},{"$f":"Import!E10541","v":0}]
[null,77,{"$f":"Import!E9742","v":"Select"},{"$f":"Import!E9942","v":"Select"},{"$f":"Import!E10142","v":"Select"},{"$f":"Import!E10342","v":0},{"$f":"Import!E10542","v":0}]
[null,78,{"$f":"Import!E9743","v":"Select"},{"$f":"Import!E9943","v":"Select"},{"$f":"Import!E10143","v":"Select"},{"$f":"Import!E10343","v":0},{"$f":"Import!E10543","v":0}]
[null,79,{"$f":"Import!E9744","v":"Select"},{"$f":"Import!E9944","v":"Select"},{"$f":"Import!E10144","v":"Select"},{"$f":"Import!E10344","v":0},{"$f":"Import!E10544","v":0}]
[null,80,{"$f":"Import!E9745","v":"Select"},{"$f":"Import!E9945","v":"Select"},{"$f":"Import!E10145","v":"Select"},{"$f":"Import!E10345","v":0},{"$f":"Import!E10545","v":0}]
[null,81,{"$f":"Import!E9746","v":"Select"},{"$f":"Import!E9946","v":"Select"},{"$f":"Import!E10146","v":"Select"},{"$f":"Import!E10346","v":0},{"$f":"Import!E10546","v":0}]
[null,82,{"$f":"Import!E9747","v":"Select"},{"$f":"Import!E9947","v":"Select"},{"$f":"Import!E10147","v":"Select"},{"$f":"Import!E10347","v":0},{"$f":"Import!E10547","v":0}]
[null,83,{"$f":"Import!E9748","v":"Select"},{"$f":"Import!E9948","v":"Select"},{"$f":"Import!E10148","v":"Select"},{"$f":"Import!E10348","v":0},{"$f":"Import!E10548","v":0}]
[null,84,{"$f":"Import!E9749","v":"Select"},{"$f":"Import!E9949","v":"Select"},{"$f":"Import!E10149","v":"Select"},{"$f":"Import!E10349","v":0},{"$f":"Import!E10549","v":0}]
[null,85,{"$f":"Import!E9750","v":"Select"},{"$f":"Import!E9950","v":"Select"},{"$f":"Import!E10150","v":"Select"},{"$f":"Import!E10350","v":0},{"$f":"Import!E10550","v":0}]
[null,86,{"$f":"Import!E9751","v":"Select"},{"$f":"Import!E9951","v":"Select"},{"$f":"Import!E10151","v":"Select"},{"$f":"Import!E10351","v":0},{"$f":"Import!E10551","v":0}]
[null,87,{"$f":"Import!E9752","v":"Select"},{"$f":"Import!E9952","v":"Select"},{"$f":"Import!E10152","v":"Select"},{"$f":"Import!E10352","v":0},{"$f":"Import!E10552","v":0}]
[null,88,{"$f":"Import!E9753","v":"Select"},{"$f":"Import!E9953","v":"Select"},{"$f":"Import!E10153","v":"Select"},{"$f":"Import!E10353","v":0},{"$f":"Import!E10553","v":0}]
[null,89,{"$f":"Import!E9754","v":"Select"},{"$f":"Import!E9954","v":"Select"},{"$f":"Import!E10154","v":"Select"},{"$f":"Import!E10354","v":0},{"$f":"Import!E10554","v":0}]
[null,90,{"$f":"Import!E9755","v":"Select"},{"$f":"Import!E9955","v":"Select"},{"$f":"Import!E10155","v":"Select"},{"$f":"Import!E10355","v":0},{"$f":"Import!E10555","v":0}]
[null,91,{"$f":"Import!E9756","v":"Select"},{"$f":"Import!E9956","v":"Select"},{"$f":"Import!E10156","v":"Select"},{"$f":"Import!E10356","v":0},{"$f":"Import!E10556","v":0}]
[null,92,{"$f":"Import!E9757","v":"Select"},{"$f":"Import!E9957","v":"Select"},{"$f":"Import!E10157","v":"Select"},{"$f":"Import!E10357","v":0},{"$f":"Import!E10557","v":0}]
[null,93,{"$f":"Import!E9758","v":"Select"},{"$f":"Import!E9958","v":"Select"},{"$f":"Import!E10158","v":"Select"},{"$f":"Import!E10358","v":0},{"$f":"Import!E10558","v":0}]
[null,94,{"$f":"Import!E9759","v":"Select"},{"$f":"Import!E9959","v":"Select"},{"$f":"Import!E10159","v":"Select"},{"$f":"Import!E10359","v":0},{"$f":"Import!E10559","v":0}]
[null,95,{"$f":"Import!E9760","v":"Select"},{"$f":"Import!E9960","v":"Select"},{"$f":"Import!E10160","v":"Select"},{"$f":"Import!E10360","v":0},{"$f":"Import!E10560","v":0}]
[null,96,{"$f":"Import!E9761","v":"Select"},{"$f":"Import!E9961","v":"Select"},{"$f":"Import!E10161","v":"Select"},{"$f":"Import!E10361","v":0},{"$f":"Import!E10561","v":0}]
[null,97,{"$f":"Import!E9762","v":"Select"},{"$f":"Import!E9962","v":"Select"},{"$f":"Import!E10162","v":"Select"},{"$f":"Import!E10362","v":0},{"$f":"Import!E10562","v":0}]
[null,98,{"$f":"Import!E9763","v":"Select"},{"$f":"Import!E9963","v":"Select"},{"$f":"Import!E10163","v":"Select"},{"$f":"Import!E10363","v":0},{"$f":"Import!E10563","v":0}]
[null,99,{"$f":"Import!E9764","v":"Select"},{"$f":"Import!E9964","v":"Select"},{"$f":"Import!E10164","v":"Select"},{"$f":"Import!E10364","v":0},{"$f":"Import!E10564","v":0}]
[null,100,{"$f":"Import!E9765","v":"Select"},{"$f":"Import!E9965","v":"Select"},{"$f":"Import!E10165","v":"Select"},{"$f":"Import!E10365","v":0},{"$f":"Import!E10565","v":0}]
[null,101,{"$f":"Import!E9766","v":"Select"},{"$f":"Import!E9966","v":"Select"},{"$f":"Import!E10166","v":"Select"},{"$f":"Import!E10366","v":0},{"$f":"Import!E10566","v":0}]
[null,102,{"$f":"Import!E9767","v":"Select"},{"$f":"Import!E9967","v":"Select"},{"$f":"Import!E10167","v":"Select"},{"$f":"Import!E10367","v":0},{"$f":"Import!E10567","v":0}]
[null,103,{"$f":"Import!E9768","v":"Select"},{"$f":"Import!E9968","v":"Select"},{"$f":"Import!E10168","v":"Select"},{"$f":"Import!E10368","v":0},{"$f":"Import!E10568","v":0}]
[null,104,{"$f":"Import!E9769","v":"Select"},{"$f":"Import!E9969","v":"Select"},{"$f":"Import!E10169","v":"Select"},{"$f":"Import!E10369","v":0},{"$f":"Import!E10569","v":0}]
[null,105,{"$f":"Import!E9770","v":"Select"},{"$f":"Import!E9970","v":"Select"},{"$f":"Import!E10170","v":"Select"},{"$f":"Import!E10370","v":0},{"$f":"Import!E10570","v":0}]
[null,106,{"$f":"Import!E9771","v":"Select"},{"$f":"Import!E9971","v":"Select"},{"$f":"Import!E10171","v":"Select"},{"$f":"Import!E10371","v":0},{"$f":"Import!E10571","v":0}]
[null,107,{"$f":"Import!E9772","v":"Select"},{"$f":"Import!E9972","v":"Select"},{"$f":"Import!E10172","v":"Select"},{"$f":"Import!E10372","v":0},{"$f":"Import!E10572","v":0}]
[null,108,{"$f":"Import!E9773","v":"Select"},{"$f":"Import!E9973","v":"Select"},{"$f":"Import!E10173","v":"Select"},{"$f":"Import!E10373","v":0},{"$f":"Import!E10573","v":0}]
[null,109,{"$f":"Import!E9774","v":"Select"},{"$f":"Import!E9974","v":"Select"},{"$f":"Import!E10174","v":"Select"},{"$f":"Import!E10374","v":0},{"$f":"Import!E10574","v":0}]
[null,110,{"$f":"Import!E9775","v":"Select"},{"$f":"Import!E9975","v":"Select"},{"$f":"Import!E10175","v":"Select"},{"$f":"Import!E10375","v":0},{"$f":"Import!E10575","v":0}]
[null,111,{"$f":"Import!E9776","v":"Select"},{"$f":"Import!E9976","v":"Select"},{"$f":"Import!E10176","v":"Select"},{"$f":"Import!E10376","v":0},{"$f":"Import!E10576","v":0}]
[null,112,{"$f":"Import!E9777","v":"Select"},{"$f":"Import!E9977","v":"Select"},{"$f":"Import!E10177","v":"Select"},{"$f":"Import!E10377","v":0},{"$f":"Import!E10577","v":0}]
[null,113,{"$f":"Import!E9778","v":"Select"},{"$f":"Import!E9978","v":"Select"},{"$f":"Import!E10178","v":"Select"},{"$f":"Import!E10378","v":0},{"$f":"Import!E10578","v":0}]
[null,114,{"$f":"Import!E9779","v":"Select"},{"$f":"Import!E9979","v":"Select"},{"$f":"Import!E10179","v":"Select"},{"$f":"Import!E10379","v":0},{"$f":"Import!E10579","v":0}]
[null,115,{"$f":"Import!E9780","v":"Select"},{"$f":"Import!E9980","v":"Select"},{"$f":"Import!E10180","v":"Select"},{"$f":"Import!E10380","v":0},{"$f":"Import!E10580","v":0}]
[null,116,{"$f":"Import!E9781","v":"Select"},{"$f":"Import!E9981","v":"Select"},{"$f":"Import!E10181","v":"Select"},{"$f":"Import!E10381","v":0},{"$f":"Import!E10581","v":0}]
[null,117,{"$f":"Import!E9782","v":"Select"},{"$f":"Import!E9982","v":"Select"},{"$f":"Import!E10182","v":"Select"},{"$f":"Import!E10382","v":0},{"$f":"Import!E10582","v":0}]
[null,118,{"$f":"Import!E9783","v":"Select"},{"$f":"Import!E9983","v":"Select"},{"$f":"Import!E10183","v":"Select"},{"$f":"Import!E10383","v":0},{"$f":"Import!E10583","v":0}]
[null,119,{"$f":"Import!E9784","v":"Select"},{"$f":"Import!E9984","v":"Select"},{"$f":"Import!E10184","v":"Select"},{"$f":"Import!E10384","v":0},{"$f":"Import!E10584","v":0}]
[null,120,{"$f":"Import!E9785","v":"Select"},{"$f":"Import!E9985","v":"Select"},{"$f":"Import!E10185","v":"Select"},{"$f":"Import!E10385","v":0},{"$f":"Import!E10585","v":0}]
[null,121,{"$f":"Import!E9786","v":"Select"},{"$f":"Import!E9986","v":"Select"},{"$f":"Import!E10186","v":"Select"},{"$f":"Import!E10386","v":0},{"$f":"Import!E10586","v":0}]
[null,122,{"$f":"Import!E9787","v":"Select"},{"$f":"Import!E9987","v":"Select"},{"$f":"Import!E10187","v":"Select"},{"$f":"Import!E10387","v":0},{"$f":"Import!E10587","v":0}]
[null,123,{"$f":"Import!E9788","v":"Select"},{"$f":"Import!E9988","v":"Select"},{"$f":"Import!E10188","v":"Select"},{"$f":"Import!E10388","v":0},{"$f":"Import!E10588","v":0}]
[null,124,{"$f":"Import!E9789","v":"Select"},{"$f":"Import!E9989","v":"Select"},{"$f":"Import!E10189","v":"Select"},{"$f":"Import!E10389","v":0},{"$f":"Import!E10589","v":0}]
[null,125,{"$f":"Import!E9790","v":"Select"},{"$f":"Import!E9990","v":"Select"},{"$f":"Import!E10190","v":"Select"},{"$f":"Import!E10390","v":0},{"$f":"Import!E10590","v":0}]
[null,126,{"$f":"Import!E9791","v":"Select"},{"$f":"Import!E9991","v":"Select"},{"$f":"Import!E10191","v":"Select"},{"$f":"Import!E10391","v":0},{"$f":"Import!E10591","v":0}]
[null,127,{"$f":"Import!E9792","v":"Select"},{"$f":"Import!E9992","v":"Select"},{"$f":"Import!E10192","v":"Select"},{"$f":"Import!E10392","v":0},{"$f":"Import!E10592","v":0}]
[null,128,{"$f":"Import!E9793","v":"Select"},{"$f":"Import!E9993","v":"Select"},{"$f":"Import!E10193","v":"Select"},{"$f":"Import!E10393","v":0},{"$f":"Import!E10593","v":0}]
[null,129,{"$f":"Import!E9794","v":"Select"},{"$f":"Import!E9994","v":"Select"},{"$f":"Import!E10194","v":"Select"},{"$f":"Import!E10394","v":0},{"$f":"Import!E10594","v":0}]
[null,130,{"$f":"Import!E9795","v":"Select"},{"$f":"Import!E9995","v":"Select"},{"$f":"Import!E10195","v":"Select"},{"$f":"Import!E10395","v":0},{"$f":"Import!E10595","v":0}]
[null,{"$f":"B756+1","v":131},{"$f":"Import!E9796","v":"Select"},{"$f":"Import!E9996","v":"Select"},{"$f":"Import!E10196","v":"Select"},{"$f":"Import!E10396","v":0},{"$f":"Import!E10596","v":0}]
[null,132,{"$f":"Import!E9797","v":"Select"},{"$f":"Import!E9997","v":"Select"},{"$f":"Import!E10197","v":"Select"},{"$f":"Import!E10397","v":0},{"$f":"Import!E10597","v":0}]
[null,133,{"$f":"Import!E9798","v":"Select"},{"$f":"Import!E9998","v":"Select"},{"$f":"Import!E10198","v":"Select"},{"$f":"Import!E10398","v":0},{"$f":"Import!E10598","v":0}]
[null,134,{"$f":"Import!E9799","v":"Select"},{"$f":"Import!E9999","v":"Select"},{"$f":"Import!E10199","v":"Select"},{"$f":"Import!E10399","v":0},{"$f":"Import!E10599","v":0}]
[null,135,{"$f":"Import!E9800","v":"Select"},{"$f":"Import!E10000","v":"Select"},{"$f":"Import!E10200","v":"Select"},{"$f":"Import!E10400","v":0},{"$f":"Import!E10600","v":0}]
[null,136,{"$f":"Import!E9801","v":"Select"},{"$f":"Import!E10001","v":"Select"},{"$f":"Import!E10201","v":"Select"},{"$f":"Import!E10401","v":0},{"$f":"Import!E10601","v":0}]
[null,137,{"$f":"Import!E9802","v":"Select"},{"$f":"Import!E10002","v":"Select"},{"$f":"Import!E10202","v":"Select"},{"$f":"Import!E10402","v":0},{"$f":"Import!E10602","v":0}]
[null,138,{"$f":"Import!E9803","v":"Select"},{"$f":"Import!E10003","v":"Select"},{"$f":"Import!E10203","v":"Select"},{"$f":"Import!E10403","v":0},{"$f":"Import!E10603","v":0}]
[null,139,{"$f":"Import!E9804","v":"Select"},{"$f":"Import!E10004","v":"Select"},{"$f":"Import!E10204","v":"Select"},{"$f":"Import!E10404","v":0},{"$f":"Import!E10604","v":0}]
[null,140,{"$f":"Import!E9805","v":"Select"},{"$f":"Import!E10005","v":"Select"},{"$f":"Import!E10205","v":"Select"},{"$f":"Import!E10405","v":0},{"$f":"Import!E10605","v":0}]
[null,141,{"$f":"Import!E9806","v":"Select"},{"$f":"Import!E10006","v":"Select"},{"$f":"Import!E10206","v":"Select"},{"$f":"Import!E10406","v":0},{"$f":"Import!E10606","v":0}]
[null,142,{"$f":"Import!E9807","v":"Select"},{"$f":"Import!E10007","v":"Select"},{"$f":"Import!E10207","v":"Select"},{"$f":"Import!E10407","v":0},{"$f":"Import!E10607","v":0}]
[null,143,{"$f":"Import!E9808","v":"Select"},{"$f":"Import!E10008","v":"Select"},{"$f":"Import!E10208","v":"Select"},{"$f":"Import!E10408","v":0},{"$f":"Import!E10608","v":0}]
[null,144,{"$f":"Import!E9809","v":"Select"},{"$f":"Import!E10009","v":"Select"},{"$f":"Import!E10209","v":"Select"},{"$f":"Import!E10409","v":0},{"$f":"Import!E10609","v":0}]
[null,145,{"$f":"Import!E9810","v":"Select"},{"$f":"Import!E10010","v":"Select"},{"$f":"Import!E10210","v":"Select"},{"$f":"Import!E10410","v":0},{"$f":"Import!E10610","v":0}]
[null,146,{"$f":"Import!E9811","v":"Select"},{"$f":"Import!E10011","v":"Select"},{"$f":"Import!E10211","v":"Select"},{"$f":"Import!E10411","v":0},{"$f":"Import!E10611","v":0}]
[null,147,{"$f":"Import!E9812","v":"Select"},{"$f":"Import!E10012","v":"Select"},{"$f":"Import!E10212","v":"Select"},{"$f":"Import!E10412","v":0},{"$f":"Import!E10612","v":0}]
[null,148,{"$f":"Import!E9813","v":"Select"},{"$f":"Import!E10013","v":"Select"},{"$f":"Import!E10213","v":"Select"},{"$f":"Import!E10413","v":0},{"$f":"Import!E10613","v":0}]
[null,149,{"$f":"Import!E9814","v":"Select"},{"$f":"Import!E10014","v":"Select"},{"$f":"Import!E10214","v":"Select"},{"$f":"Import!E10414","v":0},{"$f":"Import!E10614","v":0}]
[null,150,{"$f":"Import!E9815","v":"Select"},{"$f":"Import!E10015","v":"Select"},{"$f":"Import!E10215","v":"Select"},{"$f":"Import!E10415","v":0},{"$f":"Import!E10615","v":0}]
[null,151,{"$f":"Import!E9816","v":"Select"},{"$f":"Import!E10016","v":"Select"},{"$f":"Import!E10216","v":"Select"},{"$f":"Import!E10416","v":0},{"$f":"Import!E10616","v":0}]
[null,152,{"$f":"Import!E9817","v":"Select"},{"$f":"Import!E10017","v":"Select"},{"$f":"Import!E10217","v":"Select"},{"$f":"Import!E10417","v":0},{"$f":"Import!E10617","v":0}]
[null,153,{"$f":"Import!E9818","v":"Select"},{"$f":"Import!E10018","v":"Select"},{"$f":"Import!E10218","v":"Select"},{"$f":"Import!E10418","v":0},{"$f":"Import!E10618","v":0}]
[null,154,{"$f":"Import!E9819","v":"Select"},{"$f":"Import!E10019","v":"Select"},{"$f":"Import!E10219","v":"Select"},{"$f":"Import!E10419","v":0},{"$f":"Import!E10619","v":0}]
[null,155,{"$f":"Import!E9820","v":"Select"},{"$f":"Import!E10020","v":"Select"},{"$f":"Import!E10220","v":"Select"},{"$f":"Import!E10420","v":0},{"$f":"Import!E10620","v":0}]
[null,156,{"$f":"Import!E9821","v":"Select"},{"$f":"Import!E10021","v":"Select"},{"$f":"Import!E10221","v":"Select"},{"$f":"Import!E10421","v":0},{"$f":"Import!E10621","v":0}]
[null,157,{"$f":"Import!E9822","v":"Select"},{"$f":"Import!E10022","v":"Select"},{"$f":"Import!E10222","v":"Select"},{"$f":"Import!E10422","v":0},{"$f":"Import!E10622","v":0}]
[null,158,{"$f":"Import!E9823","v":"Select"},{"$f":"Import!E10023","v":"Select"},{"$f":"Import!E10223","v":"Select"},{"$f":"Import!E10423","v":0},{"$f":"Import!E10623","v":0}]
[null,159,{"$f":"Import!E9824","v":"Select"},{"$f":"Import!E10024","v":"Select"},{"$f":"Import!E10224","v":"Select"},{"$f":"Import!E10424","v":0},{"$f":"Import!E10624","v":0}]
[null,160,{"$f":"Import!E9825","v":"Select"},{"$f":"Import!E10025","v":"Select"},{"$f":"Import!E10225","v":"Select"},{"$f":"Import!E10425","v":0},{"$f":"Import!E10625","v":0}]
[null,161,{"$f":"Import!E9826","v":"Select"},{"$f":"Import!E10026","v":"Select"},{"$f":"Import!E10226","v":"Select"},{"$f":"Import!E10426","v":0},{"$f":"Import!E10626","v":0}]
[null,162,{"$f":"Import!E9827","v":"Select"},{"$f":"Import!E10027","v":"Select"},{"$f":"Import!E10227","v":"Select"},{"$f":"Import!E10427","v":0},{"$f":"Import!E10627","v":0}]
[null,163,{"$f":"Import!E9828","v":"Select"},{"$f":"Import!E10028","v":"Select"},{"$f":"Import!E10228","v":"Select"},{"$f":"Import!E10428","v":0},{"$f":"Import!E10628","v":0}]
[null,164,{"$f":"Import!E9829","v":"Select"},{"$f":"Import!E10029","v":"Select"},{"$f":"Import!E10229","v":"Select"},{"$f":"Import!E10429","v":0},{"$f":"Import!E10629","v":0}]
[null,165,{"$f":"Import!E9830","v":"Select"},{"$f":"Import!E10030","v":"Select"},{"$f":"Import!E10230","v":"Select"},{"$f":"Import!E10430","v":0},{"$f":"Import!E10630","v":0}]
[null,166,{"$f":"Import!E9831","v":"Select"},{"$f":"Import!E10031","v":"Select"},{"$f":"Import!E10231","v":"Select"},{"$f":"Import!E10431","v":0},{"$f":"Import!E10631","v":0}]
[null,167,{"$f":"Import!E9832","v":"Select"},{"$f":"Import!E10032","v":"Select"},{"$f":"Import!E10232","v":"Select"},{"$f":"Import!E10432","v":0},{"$f":"Import!E10632","v":0}]
[null,168,{"$f":"Import!E9833","v":"Select"},{"$f":"Import!E10033","v":"Select"},{"$f":"Import!E10233","v":"Select"},{"$f":"Import!E10433","v":0},{"$f":"Import!E10633","v":0}]
[null,169,{"$f":"Import!E9834","v":"Select"},{"$f":"Import!E10034","v":"Select"},{"$f":"Import!E10234","v":"Select"},{"$f":"Import!E10434","v":0},{"$f":"Import!E10634","v":0}]
[null,170,{"$f":"Import!E9835","v":"Select"},{"$f":"Import!E10035","v":"Select"},{"$f":"Import!E10235","v":"Select"},{"$f":"Import!E10435","v":0},{"$f":"Import!E10635","v":0}]
[null,171,{"$f":"Import!E9836","v":"Select"},{"$f":"Import!E10036","v":"Select"},{"$f":"Import!E10236","v":"Select"},{"$f":"Import!E10436","v":0},{"$f":"Import!E10636","v":0}]
[null,172,{"$f":"Import!E9837","v":"Select"},{"$f":"Import!E10037","v":"Select"},{"$f":"Import!E10237","v":"Select"},{"$f":"Import!E10437","v":0},{"$f":"Import!E10637","v":0}]
[null,173,{"$f":"Import!E9838","v":"Select"},{"$f":"Import!E10038","v":"Select"},{"$f":"Import!E10238","v":"Select"},{"$f":"Import!E10438","v":0},{"$f":"Import!E10638","v":0}]
[null,174,{"$f":"Import!E9839","v":"Select"},{"$f":"Import!E10039","v":"Select"},{"$f":"Import!E10239","v":"Select"},{"$f":"Import!E10439","v":0},{"$f":"Import!E10639","v":0}]
[null,175,{"$f":"Import!E9840","v":"Select"},{"$f":"Import!E10040","v":"Select"},{"$f":"Import!E10240","v":"Select"},{"$f":"Import!E10440","v":0},{"$f":"Import!E10640","v":0}]
[null,176,{"$f":"Import!E9841","v":"Select"},{"$f":"Import!E10041","v":"Select"},{"$f":"Import!E10241","v":"Select"},{"$f":"Import!E10441","v":0},{"$f":"Import!E10641","v":0}]
[null,177,{"$f":"Import!E9842","v":"Select"},{"$f":"Import!E10042","v":"Select"},{"$f":"Import!E10242","v":"Select"},{"$f":"Import!E10442","v":0},{"$f":"Import!E10642","v":0}]
[null,178,{"$f":"Import!E9843","v":"Select"},{"$f":"Import!E10043","v":"Select"},{"$f":"Import!E10243","v":"Select"},{"$f":"Import!E10443","v":0},{"$f":"Import!E10643","v":0}]
[null,179,{"$f":"Import!E9844","v":"Select"},{"$f":"Import!E10044","v":"Select"},{"$f":"Import!E10244","v":"Select"},{"$f":"Import!E10444","v":0},{"$f":"Import!E10644","v":0}]
[null,180,{"$f":"Import!E9845","v":"Select"},{"$f":"Import!E10045","v":"Select"},{"$f":"Import!E10245","v":"Select"},{"$f":"Import!E10445","v":0},{"$f":"Import!E10645","v":0}]
[null,181,{"$f":"Import!E9846","v":"Select"},{"$f":"Import!E10046","v":"Select"},{"$f":"Import!E10246","v":"Select"},{"$f":"Import!E10446","v":0},{"$f":"Import!E10646","v":0}]
[null,182,{"$f":"Import!E9847","v":"Select"},{"$f":"Import!E10047","v":"Select"},{"$f":"Import!E10247","v":"Select"},{"$f":"Import!E10447","v":0},{"$f":"Import!E10647","v":0}]
[null,183,{"$f":"Import!E9848","v":"Select"},{"$f":"Import!E10048","v":"Select"},{"$f":"Import!E10248","v":"Select"},{"$f":"Import!E10448","v":0},{"$f":"Import!E10648","v":0}]
[null,184,{"$f":"Import!E9849","v":"Select"},{"$f":"Import!E10049","v":"Select"},{"$f":"Import!E10249","v":"Select"},{"$f":"Import!E10449","v":0},{"$f":"Import!E10649","v":0}]
[null,185,{"$f":"Import!E9850","v":"Select"},{"$f":"Import!E10050","v":"Select"},{"$f":"Import!E10250","v":"Select"},{"$f":"Import!E10450","v":0},{"$f":"Import!E10650","v":0}]
[null,186,{"$f":"Import!E9851","v":"Select"},{"$f":"Import!E10051","v":"Select"},{"$f":"Import!E10251","v":"Select"},{"$f":"Import!E10451","v":0},{"$f":"Import!E10651","v":0}]
[null,187,{"$f":"Import!E9852","v":"Select"},{"$f":"Import!E10052","v":"Select"},{"$f":"Import!E10252","v":"Select"},{"$f":"Import!E10452","v":0},{"$f":"Import!E10652","v":0}]
[null,188,{"$f":"Import!E9853","v":"Select"},{"$f":"Import!E10053","v":"Select"},{"$f":"Import!E10253","v":"Select"},{"$f":"Import!E10453","v":0},{"$f":"Import!E10653","v":0}]
[null,189,{"$f":"Import!E9854","v":"Select"},{"$f":"Import!E10054","v":"Select"},{"$f":"Import!E10254","v":"Select"},{"$f":"Import!E10454","v":0},{"$f":"Import!E10654","v":0}]
[null,190,{"$f":"Import!E9855","v":"Select"},{"$f":"Import!E10055","v":"Select"},{"$f":"Import!E10255","v":"Select"},{"$f":"Import!E10455","v":0},{"$f":"Import!E10655","v":0}]
[null,191,{"$f":"Import!E9856","v":"Select"},{"$f":"Import!E10056","v":"Select"},{"$f":"Import!E10256","v":"Select"},{"$f":"Import!E10456","v":0},{"$f":"Import!E10656","v":0}]
[null,192,{"$f":"Import!E9857","v":"Select"},{"$f":"Import!E10057","v":"Select"},{"$f":"Import!E10257","v":"Select"},{"$f":"Import!E10457","v":0},{"$f":"Import!E10657","v":0}]
[null,193,{"$f":"Import!E9858","v":"Select"},{"$f":"Import!E10058","v":"Select"},{"$f":"Import!E10258","v":"Select"},{"$f":"Import!E10458","v":0},{"$f":"Import!E10658","v":0}]
[null,194,{"$f":"Import!E9859","v":"Select"},{"$f":"Import!E10059","v":"Select"},{"$f":"Import!E10259","v":"Select"},{"$f":"Import!E10459","v":0},{"$f":"Import!E10659","v":0}]
[null,{"$f":"B820+1","v":195},{"$f":"Import!E9860","v":"Select"},{"$f":"Import!E10060","v":"Select"},{"$f":"Import!E10260","v":"Select"},{"$f":"Import!E10460","v":0},{"$f":"Import!E10660","v":0}]
[null,196,{"$f":"Import!E9861","v":"Select"},{"$f":"Import!E10061","v":"Select"},{"$f":"Import!E10261","v":"Select"},{"$f":"Import!E10461","v":0},{"$f":"Import!E10661","v":0}]
[null,197,{"$f":"Import!E9862","v":"Select"},{"$f":"Import!E10062","v":"Select"},{"$f":"Import!E10262","v":"Select"},{"$f":"Import!E10462","v":0},{"$f":"Import!E10662","v":0}]
[null,198,{"$f":"Import!E9863","v":"Select"},{"$f":"Import!E10063","v":"Select"},{"$f":"Import!E10263","v":"Select"},{"$f":"Import!E10463","v":0},{"$f":"Import!E10663","v":0}]
[null,199,{"$f":"Import!E9864","v":"Select"},{"$f":"Import!E10064","v":"Select"},{"$f":"Import!E10264","v":"Select"},{"$f":"Import!E10464","v":0},{"$f":"Import!E10664","v":0}]
[null,200,{"$f":"Import!E9865","v":"Select"},{"$f":"Import!E10065","v":"Select"},{"$f":"Import!E10265","v":"Select"},{"$f":"Import!E10465","v":0},{"$f":"Import!E10665","v":0}]
[]
[null,null,null,null,null,{"$f":"SUM(F627:F826)","v":0}]
[]
[null,"(C) ASSET-BACKED AND STRUCTURED SECURITIES"]
[]
[null,null,"Enter # of Asset Types",{"$f":"Import!E10666","v":0}]
[null,null,null,null,{"$f":"YEAR($C$3)","v":2023},2023,"Weighted"]
[null,"Asset Type","Currency","BSCR Rating","Nominal Amount","Fair Value","Average YTM","Effective Duration","Comments"]
[1,{"$f":"Import!E10667","v":"Select"},{"$f":"Import!E10817","v":"Select"},{"$f":"Import!E10967","v":"Select"},{"$f":"Import!E11117","v":0},{"$f":"Import!E11267","v":0},{"$f":"Import!E11417","v":0},{"$f":"Import!E11567","v":0},{"$f":"Import!E11717","v":0}]
[{"$f":"A835+1","v":2},{"$f":"Import!E10668","v":"Select"},{"$f":"Import!E10818","v":"Select"},{"$f":"Import!E10968","v":"Select"},{"$f":"Import!E11118","v":0},{"$f":"Import!E11268","v":0},{"$f":"Import!E11418","v":0},{"$f":"Import!E11568","v":0},{"$f":"Import!E11718","v":0}]
[{"$f":"A836+1","v":3},{"$f":"Import!E10669","v":"Select"},{"$f":"Import!E10819","v":"Select"},{"$f":"Import!E10969","v":"Select"},{"$f":"Import!E11119","v":0},{"$f":"Import!E11269","v":0},{"$f":"Import!E11419","v":0},{"$f":"Import!E11569","v":0},{"$f":"Import!E11719","v":0}]
[4,{"$f":"Import!E10670","v":"Select"},{"$f":"Import!E10820","v":"Select"},{"$f":"Import!E10970","v":"Select"},{"$f":"Import!E11120","v":0},{"$f":"Import!E11270","v":0},{"$f":"Import!E11420","v":0},{"$f":"Import!E11570","v":0},{"$f":"Import!E11720","v":0}]
[5,{"$f":"Import!E10671","v":"Select"},{"$f":"Import!E10821","v":"Select"},{"$f":"Import!E10971","v":"Select"},{"$f":"Import!E11121","v":0},{"$f":"Import!E11271","v":0},{"$f":"Import!E11421","v":0},{"$f":"Import!E11571","v":0},{"$f":"Import!E11721","v":0}]
[6,{"$f":"Import!E10672","v":"Select"},{"$f":"Import!E10822","v":"Select"},{"$f":"Import!E10972","v":"Select"},{"$f":"Import!E11122","v":0},{"$f":"Import!E11272","v":0},{"$f":"Import!E11422","v":0},{"$f":"Import!E11572","v":0},{"$f":"Import!E11722","v":0}]
[7,{"$f":"Import!E10673","v":"Select"},{"$f":"Import!E10823","v":"Select"},{"$f":"Import!E10973","v":"Select"},{"$f":"Import!E11123","v":0},{"$f":"Import!E11273","v":0},{"$f":"Import!E11423","v":0},{"$f":"Import!E11573","v":0},{"$f":"Import!E11723","v":0}]
[8,{"$f":"Import!E10674","v":"Select"},{"$f":"Import!E10824","v":"Select"},{"$f":"Import!E10974","v":"Select"},{"$f":"Import!E11124","v":0},{"$f":"Import!E11274","v":0},{"$f":"Import!E11424","v":0},{"$f":"Import!E11574","v":0},{"$f":"Import!E11724","v":0}]
[9,{"$f":"Import!E10675","v":"Select"},{"$f":"Import!E10825","v":"Select"},{"$f":"Import!E10975","v":"Select"},{"$f":"Import!E11125","v":0},{"$f":"Import!E11275","v":0},{"$f":"Import!E11425","v":0},{"$f":"Import!E11575","v":0},{"$f":"Import!E11725","v":0}]
[10,{"$f":"Import!E10676","v":"Select"},{"$f":"Import!E10826","v":"Select"},{"$f":"Import!E10976","v":"Select"},{"$f":"Import!E11126","v":0},{"$f":"Import!E11276","v":0},{"$f":"Import!E11426","v":0},{"$f":"Import!E11576","v":0},{"$f":"Import!E11726","v":0}]
[11,{"$f":"Import!E10677","v":"Select"},{"$f":"Import!E10827","v":"Select"},{"$f":"Import!E10977","v":"Select"},{"$f":"Import!E11127","v":0},{"$f":"Import!E11277","v":0},{"$f":"Import!E11427","v":0},{"$f":"Import!E11577","v":0},{"$f":"Import!E11727","v":0}]
[12,{"$f":"Import!E10678","v":"Select"},{"$f":"Import!E10828","v":"Select"},{"$f":"Import!E10978","v":"Select"},{"$f":"Import!E11128","v":0},{"$f":"Import!E11278","v":0},{"$f":"Import!E11428","v":0},{"$f":"Import!E11578","v":0},{"$f":"Import!E11728","v":0}]
[13,{"$f":"Import!E10679","v":"Select"},{"$f":"Import!E10829","v":"Select"},{"$f":"Import!E10979","v":"Select"},{"$f":"Import!E11129","v":0},{"$f":"Import!E11279","v":0},{"$f":"Import!E11429","v":0},{"$f":"Import!E11579","v":0},{"$f":"Import!E11729","v":0}]
[14,{"$f":"Import!E10680","v":"Select"},{"$f":"Import!E10830","v":"Select"},{"$f":"Import!E10980","v":"Select"},{"$f":"Import!E11130","v":0},{"$f":"Import!E11280","v":0},{"$f":"Import!E11430","v":0},{"$f":"Import!E11580","v":0},{"$f":"Import!E11730","v":0}]
[15,{"$f":"Import!E10681","v":"Select"},{"$f":"Import!E10831","v":"Select"},{"$f":"Import!E10981","v":"Select"},{"$f":"Import!E11131","v":0},{"$f":"Import!E11281","v":0},{"$f":"Import!E11431","v":0},{"$f":"Import!E11581","v":0},{"$f":"Import!E11731","v":0}]
[16,{"$f":"Import!E10682","v":"Select"},{"$f":"Import!E10832","v":"Select"},{"$f":"Import!E10982","v":"Select"},{"$f":"Import!E11132","v":0},{"$f":"Import!E11282","v":0},{"$f":"Import!E11432","v":0},{"$f":"Import!E11582","v":0},{"$f":"Import!E11732","v":0}]
[17,{"$f":"Import!E10683","v":"Select"},{"$f":"Import!E10833","v":"Select"},{"$f":"Import!E10983","v":"Select"},{"$f":"Import!E11133","v":0},{"$f":"Import!E11283","v":0},{"$f":"Import!E11433","v":0},{"$f":"Import!E11583","v":0},{"$f":"Import!E11733","v":0}]
[18,{"$f":"Import!E10684","v":"Select"},{"$f":"Import!E10834","v":"Select"},{"$f":"Import!E10984","v":"Select"},{"$f":"Import!E11134","v":0},{"$f":"Import!E11284","v":0},{"$f":"Import!E11434","v":0},{"$f":"Import!E11584","v":0},{"$f":"Import!E11734","v":0}]
[19,{"$f":"Import!E10685","v":"Select"},{"$f":"Import!E10835","v":"Select"},{"$f":"Import!E10985","v":"Select"},{"$f":"Import!E11135","v":0},{"$f":"Import!E11285","v":0},{"$f":"Import!E11435","v":0},{"$f":"Import!E11585","v":0},{"$f":"Import!E11735","v":0}]
[20,{"$f":"Import!E10686","v":"Select"},{"$f":"Import!E10836","v":"Select"},{"$f":"Import!E10986","v":"Select"},{"$f":"Import!E11136","v":0},{"$f":"Import!E11286","v":0},{"$f":"Import!E11436","v":0},{"$f":"Import!E11586","v":0},{"$f":"Import!E11736","v":0}]
[21,{"$f":"Import!E10687","v":"Select"},{"$f":"Import!E10837","v":"Select"},{"$f":"Import!E10987","v":"Select"},{"$f":"Import!E11137","v":0},{"$f":"Import!E11287","v":0},{"$f":"Import!E11437","v":0},{"$f":"Import!E11587","v":0},{"$f":"Import!E11737","v":0}]
[22,{"$f":"Import!E10688","v":"Select"},{"$f":"Import!E10838","v":"Select"},{"$f":"Import!E10988","v":"Select"},{"$f":"Import!E11138","v":0},{"$f":"Import!E11288","v":0},{"$f":"Import!E11438","v":0},{"$f":"Import!E11588","v":0},{"$f":"Import!E11738","v":0}]
[23,{"$f":"Import!E10689","v":"Select"},{"$f":"Import!E10839","v":"Select"},{"$f":"Import!E10989","v":"Select"},{"$f":"Import!E11139","v":0},{"$f":"Import!E11289","v":0},{"$f":"Import!E11439","v":0},{"$f":"Import!E11589","v":0},{"$f":"Import!E11739","v":0}]
[24,{"$f":"Import!E10690","v":"Select"},{"$f":"Import!E10840","v":"Select"},{"$f":"Import!E10990","v":"Select"},{"$f":"Import!E11140","v":0},{"$f":"Import!E11290","v":0},{"$f":"Import!E11440","v":0},{"$f":"Import!E11590","v":0},{"$f":"Import!E11740","v":0}]
[25,{"$f":"Import!E10691","v":"Select"},{"$f":"Import!E10841","v":"Select"},{"$f":"Import!E10991","v":"Select"},{"$f":"Import!E11141","v":0},{"$f":"Import!E11291","v":0},{"$f":"Import!E11441","v":0},{"$f":"Import!E11591","v":0},{"$f":"Import!E11741","v":0}]
[26,{"$f":"Import!E10692","v":"Select"},{"$f":"Import!E10842","v":"Select"},{"$f":"Import!E10992","v":"Select"},{"$f":"Import!E11142","v":0},{"$f":"Import!E11292","v":0},{"$f":"Import!E11442","v":0},{"$f":"Import!E11592","v":0},{"$f":"Import!E11742","v":0}]
[27,{"$f":"Import!E10693","v":"Select"},{"$f":"Import!E10843","v":"Select"},{"$f":"Import!E10993","v":"Select"},{"$f":"Import!E11143","v":0},{"$f":"Import!E11293","v":0},{"$f":"Import!E11443","v":0},{"$f":"Import!E11593","v":0},{"$f":"Import!E11743","v":0}]
[28,{"$f":"Import!E10694","v":"Select"},{"$f":"Import!E10844","v":"Select"},{"$f":"Import!E10994","v":"Select"},{"$f":"Import!E11144","v":0},{"$f":"Import!E11294","v":0},{"$f":"Import!E11444","v":0},{"$f":"Import!E11594","v":0},{"$f":"Import!E11744","v":0}]
[29,{"$f":"Import!E10695","v":"Select"},{"$f":"Import!E10845","v":"Select"},{"$f":"Import!E10995","v":"Select"},{"$f":"Import!E11145","v":0},{"$f":"Import!E11295","v":0},{"$f":"Import!E11445","v":0},{"$f":"Import!E11595","v":0},{"$f":"Import!E11745","v":0}]
[30,{"$f":"Import!E10696","v":"Select"},{"$f":"Import!E10846","v":"Select"},{"$f":"Import!E10996","v":"Select"},{"$f":"Import!E11146","v":0},{"$f":"Import!E11296","v":0},{"$f":"Import!E11446","v":0},{"$f":"Import!E11596","v":0},{"$f":"Import!E11746","v":0}]
[31,{"$f":"Import!E10697","v":"Select"},{"$f":"Import!E10847","v":"Select"},{"$f":"Import!E10997","v":"Select"},{"$f":"Import!E11147","v":0},{"$f":"Import!E11297","v":0},{"$f":"Import!E11447","v":0},{"$f":"Import!E11597","v":0},{"$f":"Import!E11747","v":0}]
[32,{"$f":"Import!E10698","v":"Select"},{"$f":"Import!E10848","v":"Select"},{"$f":"Import!E10998","v":"Select"},{"$f":"Import!E11148","v":0},{"$f":"Import!E11298","v":0},{"$f":"Import!E11448","v":0},{"$f":"Import!E11598","v":0},{"$f":"Import!E11748","v":0}]
[33,{"$f":"Import!E10699","v":"Select"},{"$f":"Import!E10849","v":"Select"},{"$f":"Import!E10999","v":"Select"},{"$f":"Import!E11149","v":0},{"$f":"Import!E11299","v":0},{"$f":"Import!E11449","v":0},{"$f":"Import!E11599","v":0},{"$f":"Import!E11749","v":0}]
[34,{"$f":"Import!E10700","v":"Select"},{"$f":"Import!E10850","v":"Select"},{"$f":"Import!E11000","v":"Select"},{"$f":"Import!E11150","v":0},{"$f":"Import!E11300","v":0},{"$f":"Import!E11450","v":0},{"$f":"Import!E11600","v":0},{"$f":"Import!E11750","v":0}]
[35,{"$f":"Import!E10701","v":"Select"},{"$f":"Import!E10851","v":"Select"},{"$f":"Import!E11001","v":"Select"},{"$f":"Import!E11151","v":0},{"$f":"Import!E11301","v":0},{"$f":"Import!E11451","v":0},{"$f":"Import!E11601","v":0},{"$f":"Import!E11751","v":0}]
[36,{"$f":"Import!E10702","v":"Select"},{"$f":"Import!E10852","v":"Select"},{"$f":"Import!E11002","v":"Select"},{"$f":"Import!E11152","v":0},{"$f":"Import!E11302","v":0},{"$f":"Import!E11452","v":0},{"$f":"Import!E11602","v":0},{"$f":"Import!E11752","v":0}]
[37,{"$f":"Import!E10703","v":"Select"},{"$f":"Import!E10853","v":"Select"},{"$f":"Import!E11003","v":"Select"},{"$f":"Import!E11153","v":0},{"$f":"Import!E11303","v":0},{"$f":"Import!E11453","v":0},{"$f":"Import!E11603","v":0},{"$f":"Import!E11753","v":0}]
[38,{"$f":"Import!E10704","v":"Select"},{"$f":"Import!E10854","v":"Select"},{"$f":"Import!E11004","v":"Select"},{"$f":"Import!E11154","v":0},{"$f":"Import!E11304","v":0},{"$f":"Import!E11454","v":0},{"$f":"Import!E11604","v":0},{"$f":"Import!E11754","v":0}]
[39,{"$f":"Import!E10705","v":"Select"},{"$f":"Import!E10855","v":"Select"},{"$f":"Import!E11005","v":"Select"},{"$f":"Import!E11155","v":0},{"$f":"Import!E11305","v":0},{"$f":"Import!E11455","v":0},{"$f":"Import!E11605","v":0},{"$f":"Import!E11755","v":0}]
[40,{"$f":"Import!E10706","v":"Select"},{"$f":"Import!E10856","v":"Select"},{"$f":"Import!E11006","v":"Select"},{"$f":"Import!E11156","v":0},{"$f":"Import!E11306","v":0},{"$f":"Import!E11456","v":0},{"$f":"Import!E11606","v":0},{"$f":"Import!E11756","v":0}]
[41,{"$f":"Import!E10707","v":"Select"},{"$f":"Import!E10857","v":"Select"},{"$f":"Import!E11007","v":"Select"},{"$f":"Import!E11157","v":0},{"$f":"Import!E11307","v":0},{"$f":"Import!E11457","v":0},{"$f":"Import!E11607","v":0},{"$f":"Import!E11757","v":0}]
[42,{"$f":"Import!E10708","v":"Select"},{"$f":"Import!E10858","v":"Select"},{"$f":"Import!E11008","v":"Select"},{"$f":"Import!E11158","v":0},{"$f":"Import!E11308","v":0},{"$f":"Import!E11458","v":0},{"$f":"Import!E11608","v":0},{"$f":"Import!E11758","v":0}]
[43,{"$f":"Import!E10709","v":"Select"},{"$f":"Import!E10859","v":"Select"},{"$f":"Import!E11009","v":"Select"},{"$f":"Import!E11159","v":0},{"$f":"Import!E11309","v":0},{"$f":"Import!E11459","v":0},{"$f":"Import!E11609","v":0},{"$f":"Import!E11759","v":0}]
[44,{"$f":"Import!E10710","v":"Select"},{"$f":"Import!E10860","v":"Select"},{"$f":"Import!E11010","v":"Select"},{"$f":"Import!E11160","v":0},{"$f":"Import!E11310","v":0},{"$f":"Import!E11460","v":0},{"$f":"Import!E11610","v":0},{"$f":"Import!E11760","v":0}]
[45,{"$f":"Import!E10711","v":"Select"},{"$f":"Import!E10861","v":"Select"},{"$f":"Import!E11011","v":"Select"},{"$f":"Import!E11161","v":0},{"$f":"Import!E11311","v":0},{"$f":"Import!E11461","v":0},{"$f":"Import!E11611","v":0},{"$f":"Import!E11761","v":0}]
[46,{"$f":"Import!E10712","v":"Select"},{"$f":"Import!E10862","v":"Select"},{"$f":"Import!E11012","v":"Select"},{"$f":"Import!E11162","v":0},{"$f":"Import!E11312","v":0},{"$f":"Import!E11462","v":0},{"$f":"Import!E11612","v":0},{"$f":"Import!E11762","v":0}]
[47,{"$f":"Import!E10713","v":"Select"},{"$f":"Import!E10863","v":"Select"},{"$f":"Import!E11013","v":"Select"},{"$f":"Import!E11163","v":0},{"$f":"Import!E11313","v":0},{"$f":"Import!E11463","v":0},{"$f":"Import!E11613","v":0},{"$f":"Import!E11763","v":0}]
[48,{"$f":"Import!E10714","v":"Select"},{"$f":"Import!E10864","v":"Select"},{"$f":"Import!E11014","v":"Select"},{"$f":"Import!E11164","v":0},{"$f":"Import!E11314","v":0},{"$f":"Import!E11464","v":0},{"$f":"Import!E11614","v":0},{"$f":"Import!E11764","v":0}]
[49,{"$f":"Import!E10715","v":"Select"},{"$f":"Import!E10865","v":"Select"},{"$f":"Import!E11015","v":"Select"},{"$f":"Import!E11165","v":0},{"$f":"Import!E11315","v":0},{"$f":"Import!E11465","v":0},{"$f":"Import!E11615","v":0},{"$f":"Import!E11765","v":0}]
[50,{"$f":"Import!E10716","v":"Select"},{"$f":"Import!E10866","v":"Select"},{"$f":"Import!E11016","v":"Select"},{"$f":"Import!E11166","v":0},{"$f":"Import!E11316","v":0},{"$f":"Import!E11466","v":0},{"$f":"Import!E11616","v":0},{"$f":"Import!E11766","v":0}]
[51,{"$f":"Import!E10717","v":"Select"},{"$f":"Import!E10867","v":"Select"},{"$f":"Import!E11017","v":"Select"},{"$f":"Import!E11167","v":0},{"$f":"Import!E11317","v":0},{"$f":"Import!E11467","v":0},{"$f":"Import!E11617","v":0},{"$f":"Import!E11767","v":0}]
[52,{"$f":"Import!E10718","v":"Select"},{"$f":"Import!E10868","v":"Select"},{"$f":"Import!E11018","v":"Select"},{"$f":"Import!E11168","v":0},{"$f":"Import!E11318","v":0},{"$f":"Import!E11468","v":0},{"$f":"Import!E11618","v":0},{"$f":"Import!E11768","v":0}]
[53,{"$f":"Import!E10719","v":"Select"},{"$f":"Import!E10869","v":"Select"},{"$f":"Import!E11019","v":"Select"},{"$f":"Import!E11169","v":0},{"$f":"Import!E11319","v":0},{"$f":"Import!E11469","v":0},{"$f":"Import!E11619","v":0},{"$f":"Import!E11769","v":0}]
[54,{"$f":"Import!E10720","v":"Select"},{"$f":"Import!E10870","v":"Select"},{"$f":"Import!E11020","v":"Select"},{"$f":"Import!E11170","v":0},{"$f":"Import!E11320","v":0},{"$f":"Import!E11470","v":0},{"$f":"Import!E11620","v":0},{"$f":"Import!E11770","v":0}]
[55,{"$f":"Import!E10721","v":"Select"},{"$f":"Import!E10871","v":"Select"},{"$f":"Import!E11021","v":"Select"},{"$f":"Import!E11171","v":0},{"$f":"Import!E11321","v":0},{"$f":"Import!E11471","v":0},{"$f":"Import!E11621","v":0},{"$f":"Import!E11771","v":0}]
[56,{"$f":"Import!E10722","v":"Select"},{"$f":"Import!E10872","v":"Select"},{"$f":"Import!E11022","v":"Select"},{"$f":"Import!E11172","v":0},{"$f":"Import!E11322","v":0},{"$f":"Import!E11472","v":0},{"$f":"Import!E11622","v":0},{"$f":"Import!E11772","v":0}]
[57,{"$f":"Import!E10723","v":"Select"},{"$f":"Import!E10873","v":"Select"},{"$f":"Import!E11023","v":"Select"},{"$f":"Import!E11173","v":0},{"$f":"Import!E11323","v":0},{"$f":"Import!E11473","v":0},{"$f":"Import!E11623","v":0},{"$f":"Import!E11773","v":0}]
[58,{"$f":"Import!E10724","v":"Select"},{"$f":"Import!E10874","v":"Select"},{"$f":"Import!E11024","v":"Select"},{"$f":"Import!E11174","v":0},{"$f":"Import!E11324","v":0},{"$f":"Import!E11474","v":0},{"$f":"Import!E11624","v":0},{"$f":"Import!E11774","v":0}]
[59,{"$f":"Import!E10725","v":"Select"},{"$f":"Import!E10875","v":"Select"},{"$f":"Import!E11025","v":"Select"},{"$f":"Import!E11175","v":0},{"$f":"Import!E11325","v":0},{"$f":"Import!E11475","v":0},{"$f":"Import!E11625","v":0},{"$f":"Import!E11775","v":0}]
[60,{"$f":"Import!E10726","v":"Select"},{"$f":"Import!E10876","v":"Select"},{"$f":"Import!E11026","v":"Select"},{"$f":"Import!E11176","v":0},{"$f":"Import!E11326","v":0},{"$f":"Import!E11476","v":0},{"$f":"Import!E11626","v":0},{"$f":"Import!E11776","v":0}]
[61,{"$f":"Import!E10727","v":"Select"},{"$f":"Import!E10877","v":"Select"},{"$f":"Import!E11027","v":"Select"},{"$f":"Import!E11177","v":0},{"$f":"Import!E11327","v":0},{"$f":"Import!E11477","v":0},{"$f":"Import!E11627","v":0},{"$f":"Import!E11777","v":0}]
[62,{"$f":"Import!E10728","v":"Select"},{"$f":"Import!E10878","v":"Select"},{"$f":"Import!E11028","v":"Select"},{"$f":"Import!E11178","v":0},{"$f":"Import!E11328","v":0},{"$f":"Import!E11478","v":0},{"$f":"Import!E11628","v":0},{"$f":"Import!E11778","v":0}]
[63,{"$f":"Import!E10729","v":"Select"},{"$f":"Import!E10879","v":"Select"},{"$f":"Import!E11029","v":"Select"},{"$f":"Import!E11179","v":0},{"$f":"Import!E11329","v":0},{"$f":"Import!E11479","v":0},{"$f":"Import!E11629","v":0},{"$f":"Import!E11779","v":0}]
[64,{"$f":"Import!E10730","v":"Select"},{"$f":"Import!E10880","v":"Select"},{"$f":"Import!E11030","v":"Select"},{"$f":"Import!E11180","v":0},{"$f":"Import!E11330","v":0},{"$f":"Import!E11480","v":0},{"$f":"Import!E11630","v":0},{"$f":"Import!E11780","v":0}]
[65,{"$f":"Import!E10731","v":"Select"},{"$f":"Import!E10881","v":"Select"},{"$f":"Import!E11031","v":"Select"},{"$f":"Import!E11181","v":0},{"$f":"Import!E11331","v":0},{"$f":"Import!E11481","v":0},{"$f":"Import!E11631","v":0},{"$f":"Import!E11781","v":0}]
[66,{"$f":"Import!E10732","v":"Select"},{"$f":"Import!E10882","v":"Select"},{"$f":"Import!E11032","v":"Select"},{"$f":"Import!E11182","v":0},{"$f":"Import!E11332","v":0},{"$f":"Import!E11482","v":0},{"$f":"Import!E11632","v":0},{"$f":"Import!E11782","v":0}]
[{"$f":"A900+1","v":67},{"$f":"Import!E10733","v":"Select"},{"$f":"Import!E10883","v":"Select"},{"$f":"Import!E11033","v":"Select"},{"$f":"Import!E11183","v":0},{"$f":"Import!E11333","v":0},{"$f":"Import!E11483","v":0},{"$f":"Import!E11633","v":0},{"$f":"Import!E11783","v":0}]
[68,{"$f":"Import!E10734","v":"Select"},{"$f":"Import!E10884","v":"Select"},{"$f":"Import!E11034","v":"Select"},{"$f":"Import!E11184","v":0},{"$f":"Import!E11334","v":0},{"$f":"Import!E11484","v":0},{"$f":"Import!E11634","v":0},{"$f":"Import!E11784","v":0}]
[69,{"$f":"Import!E10735","v":"Select"},{"$f":"Import!E10885","v":"Select"},{"$f":"Import!E11035","v":"Select"},{"$f":"Import!E11185","v":0},{"$f":"Import!E11335","v":0},{"$f":"Import!E11485","v":0},{"$f":"Import!E11635","v":0},{"$f":"Import!E11785","v":0}]
[70,{"$f":"Import!E10736","v":"Select"},{"$f":"Import!E10886","v":"Select"},{"$f":"Import!E11036","v":"Select"},{"$f":"Import!E11186","v":0},{"$f":"Import!E11336","v":0},{"$f":"Import!E11486","v":0},{"$f":"Import!E11636","v":0},{"$f":"Import!E11786","v":0}]
[71,{"$f":"Import!E10737","v":"Select"},{"$f":"Import!E10887","v":"Select"},{"$f":"Import!E11037","v":"Select"},{"$f":"Import!E11187","v":0},{"$f":"Import!E11337","v":0},{"$f":"Import!E11487","v":0},{"$f":"Import!E11637","v":0},{"$f":"Import!E11787","v":0}]
[72,{"$f":"Import!E10738","v":"Select"},{"$f":"Import!E10888","v":"Select"},{"$f":"Import!E11038","v":"Select"},{"$f":"Import!E11188","v":0},{"$f":"Import!E11338","v":0},{"$f":"Import!E11488","v":0},{"$f":"Import!E11638","v":0},{"$f":"Import!E11788","v":0}]
[73,{"$f":"Import!E10739","v":"Select"},{"$f":"Import!E10889","v":"Select"},{"$f":"Import!E11039","v":"Select"},{"$f":"Import!E11189","v":0},{"$f":"Import!E11339","v":0},{"$f":"Import!E11489","v":0},{"$f":"Import!E11639","v":0},{"$f":"Import!E11789","v":0}]
[74,{"$f":"Import!E10740","v":"Select"},{"$f":"Import!E10890","v":"Select"},{"$f":"Import!E11040","v":"Select"},{"$f":"Import!E11190","v":0},{"$f":"Import!E11340","v":0},{"$f":"Import!E11490","v":0},{"$f":"Import!E11640","v":0},{"$f":"Import!E11790","v":0}]
[75,{"$f":"Import!E10741","v":"Select"},{"$f":"Import!E10891","v":"Select"},{"$f":"Import!E11041","v":"Select"},{"$f":"Import!E11191","v":0},{"$f":"Import!E11341","v":0},{"$f":"Import!E11491","v":0},{"$f":"Import!E11641","v":0},{"$f":"Import!E11791","v":0}]
[76,{"$f":"Import!E10742","v":"Select"},{"$f":"Import!E10892","v":"Select"},{"$f":"Import!E11042","v":"Select"},{"$f":"Import!E11192","v":0},{"$f":"Import!E11342","v":0},{"$f":"Import!E11492","v":0},{"$f":"Import!E11642","v":0},{"$f":"Import!E11792","v":0}]
[77,{"$f":"Import!E10743","v":"Select"},{"$f":"Import!E10893","v":"Select"},{"$f":"Import!E11043","v":"Select"},{"$f":"Import!E11193","v":0},{"$f":"Import!E11343","v":0},{"$f":"Import!E11493","v":0},{"$f":"Import!E11643","v":0},{"$f":"Import!E11793","v":0}]
[78,{"$f":"Import!E10744","v":"Select"},{"$f":"Import!E10894","v":"Select"},{"$f":"Import!E11044","v":"Select"},{"$f":"Import!E11194","v":0},{"$f":"Import!E11344","v":0},{"$f":"Import!E11494","v":0},{"$f":"Import!E11644","v":0},{"$f":"Import!E11794","v":0}]
[79,{"$f":"Import!E10745","v":"Select"},{"$f":"Import!E10895","v":"Select"},{"$f":"Import!E11045","v":"Select"},{"$f":"Import!E11195","v":0},{"$f":"Import!E11345","v":0},{"$f":"Import!E11495","v":0},{"$f":"Import!E11645","v":0},{"$f":"Import!E11795","v":0}]
[80,{"$f":"Import!E10746","v":"Select"},{"$f":"Import!E10896","v":"Select"},{"$f":"Import!E11046","v":"Select"},{"$f":"Import!E11196","v":0},{"$f":"Import!E11346","v":0},{"$f":"Import!E11496","v":0},{"$f":"Import!E11646","v":0},{"$f":"Import!E11796","v":0}]
[81,{"$f":"Import!E10747","v":"Select"},{"$f":"Import!E10897","v":"Select"},{"$f":"Import!E11047","v":"Select"},{"$f":"Import!E11197","v":0},{"$f":"Import!E11347","v":0},{"$f":"Import!E11497","v":0},{"$f":"Import!E11647","v":0},{"$f":"Import!E11797","v":0}]
[82,{"$f":"Import!E10748","v":"Select"},{"$f":"Import!E10898","v":"Select"},{"$f":"Import!E11048","v":"Select"},{"$f":"Import!E11198","v":0},{"$f":"Import!E11348","v":0},{"$f":"Import!E11498","v":0},{"$f":"Import!E11648","v":0},{"$f":"Import!E11798","v":0}]
[83,{"$f":"Import!E10749","v":"Select"},{"$f":"Import!E10899","v":"Select"},{"$f":"Import!E11049","v":"Select"},{"$f":"Import!E11199","v":0},{"$f":"Import!E11349","v":0},{"$f":"Import!E11499","v":0},{"$f":"Import!E11649","v":0},{"$f":"Import!E11799","v":0}]
[84,{"$f":"Import!E10750","v":"Select"},{"$f":"Import!E10900","v":"Select"},{"$f":"Import!E11050","v":"Select"},{"$f":"Import!E11200","v":0},{"$f":"Import!E11350","v":0},{"$f":"Import!E11500","v":0},{"$f":"Import!E11650","v":0},{"$f":"Import!E11800","v":0}]
[85,{"$f":"Import!E10751","v":"Select"},{"$f":"Import!E10901","v":"Select"},{"$f":"Import!E11051","v":"Select"},{"$f":"Import!E11201","v":0},{"$f":"Import!E11351","v":0},{"$f":"Import!E11501","v":0},{"$f":"Import!E11651","v":0},{"$f":"Import!E11801","v":0}]
[86,{"$f":"Import!E10752","v":"Select"},{"$f":"Import!E10902","v":"Select"},{"$f":"Import!E11052","v":"Select"},{"$f":"Import!E11202","v":0},{"$f":"Import!E11352","v":0},{"$f":"Import!E11502","v":0},{"$f":"Import!E11652","v":0},{"$f":"Import!E11802","v":0}]
[87,{"$f":"Import!E10753","v":"Select"},{"$f":"Import!E10903","v":"Select"},{"$f":"Import!E11053","v":"Select"},{"$f":"Import!E11203","v":0},{"$f":"Import!E11353","v":0},{"$f":"Import!E11503","v":0},{"$f":"Import!E11653","v":0},{"$f":"Import!E11803","v":0}]
[88,{"$f":"Import!E10754","v":"Select"},{"$f":"Import!E10904","v":"Select"},{"$f":"Import!E11054","v":"Select"},{"$f":"Import!E11204","v":0},{"$f":"Import!E11354","v":0},{"$f":"Import!E11504","v":0},{"$f":"Import!E11654","v":0},{"$f":"Import!E11804","v":0}]
[89,{"$f":"Import!E10755","v":"Select"},{"$f":"Import!E10905","v":"Select"},{"$f":"Import!E11055","v":"Select"},{"$f":"Import!E11205","v":0},{"$f":"Import!E11355","v":0},{"$f":"Import!E11505","v":0},{"$f":"Import!E11655","v":0},{"$f":"Import!E11805","v":0}]
[90,{"$f":"Import!E10756","v":"Select"},{"$f":"Import!E10906","v":"Select"},{"$f":"Import!E11056","v":"Select"},{"$f":"Import!E11206","v":0},{"$f":"Import!E11356","v":0},{"$f":"Import!E11506","v":0},{"$f":"Import!E11656","v":0},{"$f":"Import!E11806","v":0}]
[91,{"$f":"Import!E10757","v":"Select"},{"$f":"Import!E10907","v":"Select"},{"$f":"Import!E11057","v":"Select"},{"$f":"Import!E11207","v":0},{"$f":"Import!E11357","v":0},{"$f":"Import!E11507","v":0},{"$f":"Import!E11657","v":0},{"$f":"Import!E11807","v":0}]
[92,{"$f":"Import!E10758","v":"Select"},{"$f":"Import!E10908","v":"Select"},{"$f":"Import!E11058","v":"Select"},{"$f":"Import!E11208","v":0},{"$f":"Import!E11358","v":0},{"$f":"Import!E11508","v":0},{"$f":"Import!E11658","v":0},{"$f":"Import!E11808","v":0}]
[93,{"$f":"Import!E10759","v":"Select"},{"$f":"Import!E10909","v":"Select"},{"$f":"Import!E11059","v":"Select"},{"$f":"Import!E11209","v":0},{"$f":"Import!E11359","v":0},{"$f":"Import!E11509","v":0},{"$f":"Import!E11659","v":0},{"$f":"Import!E11809","v":0}]
[94,{"$f":"Import!E10760","v":"Select"},{"$f":"Import!E10910","v":"Select"},{"$f":"Import!E11060","v":"Select"},{"$f":"Import!E11210","v":0},{"$f":"Import!E11360","v":0},{"$f":"Import!E11510","v":0},{"$f":"Import!E11660","v":0},{"$f":"Import!E11810","v":0}]
[95,{"$f":"Import!E10761","v":"Select"},{"$f":"Import!E10911","v":"Select"},{"$f":"Import!E11061","v":"Select"},{"$f":"Import!E11211","v":0},{"$f":"Import!E11361","v":0},{"$f":"Import!E11511","v":0},{"$f":"Import!E11661","v":0},{"$f":"Import!E11811","v":0}]
[96,{"$f":"Import!E10762","v":"Select"},{"$f":"Import!E10912","v":"Select"},{"$f":"Import!E11062","v":"Select"},{"$f":"Import!E11212","v":0},{"$f":"Import!E11362","v":0},{"$f":"Import!E11512","v":0},{"$f":"Import!E11662","v":0},{"$f":"Import!E11812","v":0}]
[97,{"$f":"Import!E10763","v":"Select"},{"$f":"Import!E10913","v":"Select"},{"$f":"Import!E11063","v":"Select"},{"$f":"Import!E11213","v":0},{"$f":"Import!E11363","v":0},{"$f":"Import!E11513","v":0},{"$f":"Import!E11663","v":0},{"$f":"Import!E11813","v":0}]
[98,{"$f":"Import!E10764","v":"Select"},{"$f":"Import!E10914","v":"Select"},{"$f":"Import!E11064","v":"Select"},{"$f":"Import!E11214","v":0},{"$f":"Import!E11364","v":0},{"$f":"Import!E11514","v":0},{"$f":"Import!E11664","v":0},{"$f":"Import!E11814","v":0}]
[99,{"$f":"Import!E10765","v":"Select"},{"$f":"Import!E10915","v":"Select"},{"$f":"Import!E11065","v":"Select"},{"$f":"Import!E11215","v":0},{"$f":"Import!E11365","v":0},{"$f":"Import!E11515","v":0},{"$f":"Import!E11665","v":0},{"$f":"Import!E11815","v":0}]
[100,{"$f":"Import!E10766","v":"Select"},{"$f":"Import!E10916","v":"Select"},{"$f":"Import!E11066","v":"Select"},{"$f":"Import!E11216","v":0},{"$f":"Import!E11366","v":0},{"$f":"Import!E11516","v":0},{"$f":"Import!E11666","v":0},{"$f":"Import!E11816","v":0}]
[101,{"$f":"Import!E10767","v":"Select"},{"$f":"Import!E10917","v":"Select"},{"$f":"Import!E11067","v":"Select"},{"$f":"Import!E11217","v":0},{"$f":"Import!E11367","v":0},{"$f":"Import!E11517","v":0},{"$f":"Import!E11667","v":0},{"$f":"Import!E11817","v":0}]
[102,{"$f":"Import!E10768","v":"Select"},{"$f":"Import!E10918","v":"Select"},{"$f":"Import!E11068","v":"Select"},{"$f":"Import!E11218","v":0},{"$f":"Import!E11368","v":0},{"$f":"Import!E11518","v":0},{"$f":"Import!E11668","v":0},{"$f":"Import!E11818","v":0}]
[103,{"$f":"Import!E10769","v":"Select"},{"$f":"Import!E10919","v":"Select"},{"$f":"Import!E11069","v":"Select"},{"$f":"Import!E11219","v":0},{"$f":"Import!E11369","v":0},{"$f":"Import!E11519","v":0},{"$f":"Import!E11669","v":0},{"$f":"Import!E11819","v":0}]
[104,{"$f":"Import!E10770","v":"Select"},{"$f":"Import!E10920","v":"Select"},{"$f":"Import!E11070","v":"Select"},{"$f":"Import!E11220","v":0},{"$f":"Import!E11370","v":0},{"$f":"Import!E11520","v":0},{"$f":"Import!E11670","v":0},{"$f":"Import!E11820","v":0}]
[105,{"$f":"Import!E10771","v":"Select"},{"$f":"Import!E10921","v":"Select"},{"$f":"Import!E11071","v":"Select"},{"$f":"Import!E11221","v":0},{"$f":"Import!E11371","v":0},{"$f":"Import!E11521","v":0},{"$f":"Import!E11671","v":0},{"$f":"Import!E11821","v":0}]
[106,{"$f":"Import!E10772","v":"Select"},{"$f":"Import!E10922","v":"Select"},{"$f":"Import!E11072","v":"Select"},{"$f":"Import!E11222","v":0},{"$f":"Import!E11372","v":0},{"$f":"Import!E11522","v":0},{"$f":"Import!E11672","v":0},{"$f":"Import!E11822","v":0}]
[107,{"$f":"Import!E10773","v":"Select"},{"$f":"Import!E10923","v":"Select"},{"$f":"Import!E11073","v":"Select"},{"$f":"Import!E11223","v":0},{"$f":"Import!E11373","v":0},{"$f":"Import!E11523","v":0},{"$f":"Import!E11673","v":0},{"$f":"Import!E11823","v":0}]
[108,{"$f":"Import!E10774","v":"Select"},{"$f":"Import!E10924","v":"Select"},{"$f":"Import!E11074","v":"Select"},{"$f":"Import!E11224","v":0},{"$f":"Import!E11374","v":0},{"$f":"Import!E11524","v":0},{"$f":"Import!E11674","v":0},{"$f":"Import!E11824","v":0}]
[109,{"$f":"Import!E10775","v":"Select"},{"$f":"Import!E10925","v":"Select"},{"$f":"Import!E11075","v":"Select"},{"$f":"Import!E11225","v":0},{"$f":"Import!E11375","v":0},{"$f":"Import!E11525","v":0},{"$f":"Import!E11675","v":0},{"$f":"Import!E11825","v":0}]
[110,{"$f":"Import!E10776","v":"Select"},{"$f":"Import!E10926","v":"Select"},{"$f":"Import!E11076","v":"Select"},{"$f":"Import!E11226","v":0},{"$f":"Import!E11376","v":0},{"$f":"Import!E11526","v":0},{"$f":"Import!E11676","v":0},{"$f":"Import!E11826","v":0}]
[111,{"$f":"Import!E10777","v":"Select"},{"$f":"Import!E10927","v":"Select"},{"$f":"Import!E11077","v":"Select"},{"$f":"Import!E11227","v":0},{"$f":"Import!E11377","v":0},{"$f":"Import!E11527","v":0},{"$f":"Import!E11677","v":0},{"$f":"Import!E11827","v":0}]
[112,{"$f":"Import!E10778","v":"Select"},{"$f":"Import!E10928","v":"Select"},{"$f":"Import!E11078","v":"Select"},{"$f":"Import!E11228","v":0},{"$f":"Import!E11378","v":0},{"$f":"Import!E11528","v":0},{"$f":"Import!E11678","v":0},{"$f":"Import!E11828","v":0}]
[113,{"$f":"Import!E10779","v":"Select"},{"$f":"Import!E10929","v":"Select"},{"$f":"Import!E11079","v":"Select"},{"$f":"Import!E11229","v":0},{"$f":"Import!E11379","v":0},{"$f":"Import!E11529","v":0},{"$f":"Import!E11679","v":0},{"$f":"Import!E11829","v":0}]
[114,{"$f":"Import!E10780","v":"Select"},{"$f":"Import!E10930","v":"Select"},{"$f":"Import!E11080","v":"Select"},{"$f":"Import!E11230","v":0},{"$f":"Import!E11380","v":0},{"$f":"Import!E11530","v":0},{"$f":"Import!E11680","v":0},{"$f":"Import!E11830","v":0}]
[115,{"$f":"Import!E10781","v":"Select"},{"$f":"Import!E10931","v":"Select"},{"$f":"Import!E11081","v":"Select"},{"$f":"Import!E11231","v":0},{"$f":"Import!E11381","v":0},{"$f":"Import!E11531","v":0},{"$f":"Import!E11681","v":0},{"$f":"Import!E11831","v":0}]
[116,{"$f":"Import!E10782","v":"Select"},{"$f":"Import!E10932","v":"Select"},{"$f":"Import!E11082","v":"Select"},{"$f":"Import!E11232","v":0},{"$f":"Import!E11382","v":0},{"$f":"Import!E11532","v":0},{"$f":"Import!E11682","v":0},{"$f":"Import!E11832","v":0}]
[117,{"$f":"Import!E10783","v":"Select"},{"$f":"Import!E10933","v":"Select"},{"$f":"Import!E11083","v":"Select"},{"$f":"Import!E11233","v":0},{"$f":"Import!E11383","v":0},{"$f":"Import!E11533","v":0},{"$f":"Import!E11683","v":0},{"$f":"Import!E11833","v":0}]
[118,{"$f":"Import!E10784","v":"Select"},{"$f":"Import!E10934","v":"Select"},{"$f":"Import!E11084","v":"Select"},{"$f":"Import!E11234","v":0},{"$f":"Import!E11384","v":0},{"$f":"Import!E11534","v":0},{"$f":"Import!E11684","v":0},{"$f":"Import!E11834","v":0}]
[119,{"$f":"Import!E10785","v":"Select"},{"$f":"Import!E10935","v":"Select"},{"$f":"Import!E11085","v":"Select"},{"$f":"Import!E11235","v":0},{"$f":"Import!E11385","v":0},{"$f":"Import!E11535","v":0},{"$f":"Import!E11685","v":0},{"$f":"Import!E11835","v":0}]
[120,{"$f":"Import!E10786","v":"Select"},{"$f":"Import!E10936","v":"Select"},{"$f":"Import!E11086","v":"Select"},{"$f":"Import!E11236","v":0},{"$f":"Import!E11386","v":0},{"$f":"Import!E11536","v":0},{"$f":"Import!E11686","v":0},{"$f":"Import!E11836","v":0}]
[121,{"$f":"Import!E10787","v":"Select"},{"$f":"Import!E10937","v":"Select"},{"$f":"Import!E11087","v":"Select"},{"$f":"Import!E11237","v":0},{"$f":"Import!E11387","v":0},{"$f":"Import!E11537","v":0},{"$f":"Import!E11687","v":0},{"$f":"Import!E11837","v":0}]
[122,{"$f":"Import!E10788","v":"Select"},{"$f":"Import!E10938","v":"Select"},{"$f":"Import!E11088","v":"Select"},{"$f":"Import!E11238","v":0},{"$f":"Import!E11388","v":0},{"$f":"Import!E11538","v":0},{"$f":"Import!E11688","v":0},{"$f":"Import!E11838","v":0}]
[123,{"$f":"Import!E10789","v":"Select"},{"$f":"Import!E10939","v":"Select"},{"$f":"Import!E11089","v":"Select"},{"$f":"Import!E11239","v":0},{"$f":"Import!E11389","v":0},{"$f":"Import!E11539","v":0},{"$f":"Import!E11689","v":0},{"$f":"Import!E11839","v":0}]
[124,{"$f":"Import!E10790","v":"Select"},{"$f":"Import!E10940","v":"Select"},{"$f":"Import!E11090","v":"Select"},{"$f":"Import!E11240","v":0},{"$f":"Import!E11390","v":0},{"$f":"Import!E11540","v":0},{"$f":"Import!E11690","v":0},{"$f":"Import!E11840","v":0}]
[125,{"$f":"Import!E10791","v":"Select"},{"$f":"Import!E10941","v":"Select"},{"$f":"Import!E11091","v":"Select"},{"$f":"Import!E11241","v":0},{"$f":"Import!E11391","v":0},{"$f":"Import!E11541","v":0},{"$f":"Import!E11691","v":0},{"$f":"Import!E11841","v":0}]
[126,{"$f":"Import!E10792","v":"Select"},{"$f":"Import!E10942","v":"Select"},{"$f":"Import!E11092","v":"Select"},{"$f":"Import!E11242","v":0},{"$f":"Import!E11392","v":0},{"$f":"Import!E11542","v":0},{"$f":"Import!E11692","v":0},{"$f":"Import!E11842","v":0}]
[127,{"$f":"Import!E10793","v":"Select"},{"$f":"Import!E10943","v":"Select"},{"$f":"Import!E11093","v":"Select"},{"$f":"Import!E11243","v":0},{"$f":"Import!E11393","v":0},{"$f":"Import!E11543","v":0},{"$f":"Import!E11693","v":0},{"$f":"Import!E11843","v":0}]
[128,{"$f":"Import!E10794","v":"Select"},{"$f":"Import!E10944","v":"Select"},{"$f":"Import!E11094","v":"Select"},{"$f":"Import!E11244","v":0},{"$f":"Import!E11394","v":0},{"$f":"Import!E11544","v":0},{"$f":"Import!E11694","v":0},{"$f":"Import!E11844","v":0}]
[129,{"$f":"Import!E10795","v":"Select"},{"$f":"Import!E10945","v":"Select"},{"$f":"Import!E11095","v":"Select"},{"$f":"Import!E11245","v":0},{"$f":"Import!E11395","v":0},{"$f":"Import!E11545","v":0},{"$f":"Import!E11695","v":0},{"$f":"Import!E11845","v":0}]
[130,{"$f":"Import!E10796","v":"Select"},{"$f":"Import!E10946","v":"Select"},{"$f":"Import!E11096","v":"Select"},{"$f":"Import!E11246","v":0},{"$f":"Import!E11396","v":0},{"$f":"Import!E11546","v":0},{"$f":"Import!E11696","v":0},{"$f":"Import!E11846","v":0}]
[{"$f":"A964+1","v":131},{"$f":"Import!E10797","v":"Select"},{"$f":"Import!E10947","v":"Select"},{"$f":"Import!E11097","v":"Select"},{"$f":"Import!E11247","v":0},{"$f":"Import!E11397","v":0},{"$f":"Import!E11547","v":0},{"$f":"Import!E11697","v":0},{"$f":"Import!E11847","v":0}]
[132,{"$f":"Import!E10798","v":"Select"},{"$f":"Import!E10948","v":"Select"},{"$f":"Import!E11098","v":"Select"},{"$f":"Import!E11248","v":0},{"$f":"Import!E11398","v":0},{"$f":"Import!E11548","v":0},{"$f":"Import!E11698","v":0},{"$f":"Import!E11848","v":0}]
[133,{"$f":"Import!E10799","v":"Select"},{"$f":"Import!E10949","v":"Select"},{"$f":"Import!E11099","v":"Select"},{"$f":"Import!E11249","v":0},{"$f":"Import!E11399","v":0},{"$f":"Import!E11549","v":0},{"$f":"Import!E11699","v":0},{"$f":"Import!E11849","v":0}]
[134,{"$f":"Import!E10800","v":"Select"},{"$f":"Import!E10950","v":"Select"},{"$f":"Import!E11100","v":"Select"},{"$f":"Import!E11250","v":0},{"$f":"Import!E11400","v":0},{"$f":"Import!E11550","v":0},{"$f":"Import!E11700","v":0},{"$f":"Import!E11850","v":0}]
[135,{"$f":"Import!E10801","v":"Select"},{"$f":"Import!E10951","v":"Select"},{"$f":"Import!E11101","v":"Select"},{"$f":"Import!E11251","v":0},{"$f":"Import!E11401","v":0},{"$f":"Import!E11551","v":0},{"$f":"Import!E11701","v":0},{"$f":"Import!E11851","v":0}]
[136,{"$f":"Import!E10802","v":"Select"},{"$f":"Import!E10952","v":"Select"},{"$f":"Import!E11102","v":"Select"},{"$f":"Import!E11252","v":0},{"$f":"Import!E11402","v":0},{"$f":"Import!E11552","v":0},{"$f":"Import!E11702","v":0},{"$f":"Import!E11852","v":0}]
[137,{"$f":"Import!E10803","v":"Select"},{"$f":"Import!E10953","v":"Select"},{"$f":"Import!E11103","v":"Select"},{"$f":"Import!E11253","v":0},{"$f":"Import!E11403","v":0},{"$f":"Import!E11553","v":0},{"$f":"Import!E11703","v":0},{"$f":"Import!E11853","v":0}]
[138,{"$f":"Import!E10804","v":"Select"},{"$f":"Import!E10954","v":"Select"},{"$f":"Import!E11104","v":"Select"},{"$f":"Import!E11254","v":0},{"$f":"Import!E11404","v":0},{"$f":"Import!E11554","v":0},{"$f":"Import!E11704","v":0},{"$f":"Import!E11854","v":0}]
[139,{"$f":"Import!E10805","v":"Select"},{"$f":"Import!E10955","v":"Select"},{"$f":"Import!E11105","v":"Select"},{"$f":"Import!E11255","v":0},{"$f":"Import!E11405","v":0},{"$f":"Import!E11555","v":0},{"$f":"Import!E11705","v":0},{"$f":"Import!E11855","v":0}]
[140,{"$f":"Import!E10806","v":"Select"},{"$f":"Import!E10956","v":"Select"},{"$f":"Import!E11106","v":"Select"},{"$f":"Import!E11256","v":0},{"$f":"Import!E11406","v":0},{"$f":"Import!E11556","v":0},{"$f":"Import!E11706","v":0},{"$f":"Import!E11856","v":0}]
[141,{"$f":"Import!E10807","v":"Select"},{"$f":"Import!E10957","v":"Select"},{"$f":"Import!E11107","v":"Select"},{"$f":"Import!E11257","v":0},{"$f":"Import!E11407","v":0},{"$f":"Import!E11557","v":0},{"$f":"Import!E11707","v":0},{"$f":"Import!E11857","v":0}]
[142,{"$f":"Import!E10808","v":"Select"},{"$f":"Import!E10958","v":"Select"},{"$f":"Import!E11108","v":"Select"},{"$f":"Import!E11258","v":0},{"$f":"Import!E11408","v":0},{"$f":"Import!E11558","v":0},{"$f":"Import!E11708","v":0},{"$f":"Import!E11858","v":0}]
[143,{"$f":"Import!E10809","v":"Select"},{"$f":"Import!E10959","v":"Select"},{"$f":"Import!E11109","v":"Select"},{"$f":"Import!E11259","v":0},{"$f":"Import!E11409","v":0},{"$f":"Import!E11559","v":0},{"$f":"Import!E11709","v":0},{"$f":"Import!E11859","v":0}]
[144,{"$f":"Import!E10810","v":"Select"},{"$f":"Import!E10960","v":"Select"},{"$f":"Import!E11110","v":"Select"},{"$f":"Import!E11260","v":0},{"$f":"Import!E11410","v":0},{"$f":"Import!E11560","v":0},{"$f":"Import!E11710","v":0},{"$f":"Import!E11860","v":0}]
[145,{"$f":"Import!E10811","v":"Select"},{"$f":"Import!E10961","v":"Select"},{"$f":"Import!E11111","v":"Select"},{"$f":"Import!E11261","v":0},{"$f":"Import!E11411","v":0},{"$f":"Import!E11561","v":0},{"$f":"Import!E11711","v":0},{"$f":"Import!E11861","v":0}]
[146,{"$f":"Import!E10812","v":"Select"},{"$f":"Import!E10962","v":"Select"},{"$f":"Import!E11112","v":"Select"},{"$f":"Import!E11262","v":0},{"$f":"Import!E11412","v":0},{"$f":"Import!E11562","v":0},{"$f":"Import!E11712","v":0},{"$f":"Import!E11862","v":0}]
[147,{"$f":"Import!E10813","v":"Select"},{"$f":"Import!E10963","v":"Select"},{"$f":"Import!E11113","v":"Select"},{"$f":"Import!E11263","v":0},{"$f":"Import!E11413","v":0},{"$f":"Import!E11563","v":0},{"$f":"Import!E11713","v":0},{"$f":"Import!E11863","v":0}]
[148,{"$f":"Import!E10814","v":"Select"},{"$f":"Import!E10964","v":"Select"},{"$f":"Import!E11114","v":"Select"},{"$f":"Import!E11264","v":0},{"$f":"Import!E11414","v":0},{"$f":"Import!E11564","v":0},{"$f":"Import!E11714","v":0},{"$f":"Import!E11864","v":0}]
[149,{"$f":"Import!E10815","v":"Select"},{"$f":"Import!E10965","v":"Select"},{"$f":"Import!E11115","v":"Select"},{"$f":"Import!E11265","v":0},{"$f":"Import!E11415","v":0},{"$f":"Import!E11565","v":0},{"$f":"Import!E11715","v":0},{"$f":"Import!E11865","v":0}]
[150,{"$f":"Import!E10816","v":"Select"},{"$f":"Import!E10966","v":"Select"},{"$f":"Import!E11116","v":"Select"},{"$f":"Import!E11266","v":0},{"$f":"Import!E11416","v":0},{"$f":"Import!E11566","v":0},{"$f":"Import!E11716","v":0},{"$f":"Import!E11866","v":0}]
[]
[null,"Total Asset-Backed and Structured Securities",null,null,{"$f":"SUM(E835:E984)","v":0},{"$f":"SUM(F835:F984)","v":0},{"$f":"IFERROR(SUMPRODUCT(G835:G984,$F835:$F984)/SUM($F835:$F984),0)","v":0},{"$f":"IFERROR(SUMPRODUCT(H835:H984,$F835:$F984)/SUM($F835:$F984),0)","v":0}]
[]
[null,"(D) LOANS"]
[]
[null,null,"Enter # of Asset Types",{"$f":"Import!E11867","v":0}]
[null,null,null,null,null,{"$f":"YEAR($C$3)","v":2023},2023,"Weighted"]
[null,"Asset Type","Currency","Country","BSCR Rating","Nominal Amount","Fair Value","Average YTM","Effective Duration","Comments"]
[1,{"$f":"Import!E11868","v":"Select"},{"$f":"Import!E11968","v":"Select"},{"$f":"Import!E12068","v":"Select"},{"$f":"Import!E12168","v":"Select"},{"$f":"Import!E12268","v":0},{"$f":"Import!E12368","v":0},{"$f":"Import!E12468","v":0},{"$f":"Import!E12568","v":0},{"$f":"Import!E12668","v":0}]
[{"$f":"A993+1","v":2},{"$f":"Import!E11869","v":"Select"},{"$f":"Import!E11969","v":"Select"},{"$f":"Import!E12069","v":"Select"},{"$f":"Import!E12169","v":"Select"},{"$f":"Import!E12269","v":0},{"$f":"Import!E12369","v":0},{"$f":"Import!E12469","v":0},{"$f":"Import!E12569","v":0},{"$f":"Import!E12669","v":0}]
[{"$f":"A994+1","v":3},{"$f":"Import!E11870","v":"Select"},{"$f":"Import!E11970","v":"Select"},{"$f":"Import!E12070","v":"Select"},{"$f":"Import!E12170","v":"Select"},{"$f":"Import!E12270","v":0},{"$f":"Import!E12370","v":0},{"$f":"Import!E12470","v":0},{"$f":"Import!E12570","v":0},{"$f":"Import!E12670","v":0}]
[4,{"$f":"Import!E11871","v":"Select"},{"$f":"Import!E11971","v":"Select"},{"$f":"Import!E12071","v":"Select"},{"$f":"Import!E12171","v":"Select"},{"$f":"Import!E12271","v":0},{"$f":"Import!E12371","v":0},{"$f":"Import!E12471","v":0},{"$f":"Import!E12571","v":0},{"$f":"Import!E12671","v":0}]
[5,{"$f":"Import!E11872","v":"Select"},{"$f":"Import!E11972","v":"Select"},{"$f":"Import!E12072","v":"Select"},{"$f":"Import!E12172","v":"Select"},{"$f":"Import!E12272","v":0},{"$f":"Import!E12372","v":0},{"$f":"Import!E12472","v":0},{"$f":"Import!E12572","v":0},{"$f":"Import!E12672","v":0}]
[6,{"$f":"Import!E11873","v":"Select"},{"$f":"Import!E11973","v":"Select"},{"$f":"Import!E12073","v":"Select"},{"$f":"Import!E12173","v":"Select"},{"$f":"Import!E12273","v":0},{"$f":"Import!E12373","v":0},{"$f":"Import!E12473","v":0},{"$f":"Import!E12573","v":0},{"$f":"Import!E12673","v":0}]
[7,{"$f":"Import!E11874","v":"Select"},{"$f":"Import!E11974","v":"Select"},{"$f":"Import!E12074","v":"Select"},{"$f":"Import!E12174","v":"Select"},{"$f":"Import!E12274","v":0},{"$f":"Import!E12374","v":0},{"$f":"Import!E12474","v":0},{"$f":"Import!E12574","v":0},{"$f":"Import!E12674","v":0}]
[8,{"$f":"Import!E11875","v":"Select"},{"$f":"Import!E11975","v":"Select"},{"$f":"Import!E12075","v":"Select"},{"$f":"Import!E12175","v":"Select"},{"$f":"Import!E12275","v":0},{"$f":"Import!E12375","v":0},{"$f":"Import!E12475","v":0},{"$f":"Import!E12575","v":0},{"$f":"Import!E12675","v":0}]
[9,{"$f":"Import!E11876","v":"Select"},{"$f":"Import!E11976","v":"Select"},{"$f":"Import!E12076","v":"Select"},{"$f":"Import!E12176","v":"Select"},{"$f":"Import!E12276","v":0},{"$f":"Import!E12376","v":0},{"$f":"Import!E12476","v":0},{"$f":"Import!E12576","v":0},{"$f":"Import!E12676","v":0}]
[10,{"$f":"Import!E11877","v":"Select"},{"$f":"Import!E11977","v":"Select"},{"$f":"Import!E12077","v":"Select"},{"$f":"Import!E12177","v":"Select"},{"$f":"Import!E12277","v":0},{"$f":"Import!E12377","v":0},{"$f":"Import!E12477","v":0},{"$f":"Import!E12577","v":0},{"$f":"Import!E12677","v":0}]
[11,{"$f":"Import!E11878","v":"Select"},{"$f":"Import!E11978","v":"Select"},{"$f":"Import!E12078","v":"Select"},{"$f":"Import!E12178","v":"Select"},{"$f":"Import!E12278","v":0},{"$f":"Import!E12378","v":0},{"$f":"Import!E12478","v":0},{"$f":"Import!E12578","v":0},{"$f":"Import!E12678","v":0}]
[12,{"$f":"Import!E11879","v":"Select"},{"$f":"Import!E11979","v":"Select"},{"$f":"Import!E12079","v":"Select"},{"$f":"Import!E12179","v":"Select"},{"$f":"Import!E12279","v":0},{"$f":"Import!E12379","v":0},{"$f":"Import!E12479","v":0},{"$f":"Import!E12579","v":0},{"$f":"Import!E12679","v":0}]
[13,{"$f":"Import!E11880","v":"Select"},{"$f":"Import!E11980","v":"Select"},{"$f":"Import!E12080","v":"Select"},{"$f":"Import!E12180","v":"Select"},{"$f":"Import!E12280","v":0},{"$f":"Import!E12380","v":0},{"$f":"Import!E12480","v":0},{"$f":"Import!E12580","v":0},{"$f":"Import!E12680","v":0}]
[14,{"$f":"Import!E11881","v":"Select"},{"$f":"Import!E11981","v":"Select"},{"$f":"Import!E12081","v":"Select"},{"$f":"Import!E12181","v":"Select"},{"$f":"Import!E12281","v":0},{"$f":"Import!E12381","v":0},{"$f":"Import!E12481","v":0},{"$f":"Import!E12581","v":0},{"$f":"Import!E12681","v":0}]
[15,{"$f":"Import!E11882","v":"Select"},{"$f":"Import!E11982","v":"Select"},{"$f":"Import!E12082","v":"Select"},{"$f":"Import!E12182","v":"Select"},{"$f":"Import!E12282","v":0},{"$f":"Import!E12382","v":0},{"$f":"Import!E12482","v":0},{"$f":"Import!E12582","v":0},{"$f":"Import!E12682","v":0}]
[16,{"$f":"Import!E11883","v":"Select"},{"$f":"Import!E11983","v":"Select"},{"$f":"Import!E12083","v":"Select"},{"$f":"Import!E12183","v":"Select"},{"$f":"Import!E12283","v":0},{"$f":"Import!E12383","v":0},{"$f":"Import!E12483","v":0},{"$f":"Import!E12583","v":0},{"$f":"Import!E12683","v":0}]
[17,{"$f":"Import!E11884","v":"Select"},{"$f":"Import!E11984","v":"Select"},{"$f":"Import!E12084","v":"Select"},{"$f":"Import!E12184","v":"Select"},{"$f":"Import!E12284","v":0},{"$f":"Import!E12384","v":0},{"$f":"Import!E12484","v":0},{"$f":"Import!E12584","v":0},{"$f":"Import!E12684","v":0}]
[18,{"$f":"Import!E11885","v":"Select"},{"$f":"Import!E11985","v":"Select"},{"$f":"Import!E12085","v":"Select"},{"$f":"Import!E12185","v":"Select"},{"$f":"Import!E12285","v":0},{"$f":"Import!E12385","v":0},{"$f":"Import!E12485","v":0},{"$f":"Import!E12585","v":0},{"$f":"Import!E12685","v":0}]
[19,{"$f":"Import!E11886","v":"Select"},{"$f":"Import!E11986","v":"Select"},{"$f":"Import!E12086","v":"Select"},{"$f":"Import!E12186","v":"Select"},{"$f":"Import!E12286","v":0},{"$f":"Import!E12386","v":0},{"$f":"Import!E12486","v":0},{"$f":"Import!E12586","v":0},{"$f":"Import!E12686","v":0}]
[20,{"$f":"Import!E11887","v":"Select"},{"$f":"Import!E11987","v":"Select"},{"$f":"Import!E12087","v":"Select"},{"$f":"Import!E12187","v":"Select"},{"$f":"Import!E12287","v":0},{"$f":"Import!E12387","v":0},{"$f":"Import!E12487","v":0},{"$f":"Import!E12587","v":0},{"$f":"Import!E12687","v":0}]
[21,{"$f":"Import!E11888","v":"Select"},{"$f":"Import!E11988","v":"Select"},{"$f":"Import!E12088","v":"Select"},{"$f":"Import!E12188","v":"Select"},{"$f":"Import!E12288","v":0},{"$f":"Import!E12388","v":0},{"$f":"Import!E12488","v":0},{"$f":"Import!E12588","v":0},{"$f":"Import!E12688","v":0}]
[22,{"$f":"Import!E11889","v":"Select"},{"$f":"Import!E11989","v":"Select"},{"$f":"Import!E12089","v":"Select"},{"$f":"Import!E12189","v":"Select"},{"$f":"Import!E12289","v":0},{"$f":"Import!E12389","v":0},{"$f":"Import!E12489","v":0},{"$f":"Import!E12589","v":0},{"$f":"Import!E12689","v":0}]
[23,{"$f":"Import!E11890","v":"Select"},{"$f":"Import!E11990","v":"Select"},{"$f":"Import!E12090","v":"Select"},{"$f":"Import!E12190","v":"Select"},{"$f":"Import!E12290","v":0},{"$f":"Import!E12390","v":0},{"$f":"Import!E12490","v":0},{"$f":"Import!E12590","v":0},{"$f":"Import!E12690","v":0}]
[24,{"$f":"Import!E11891","v":"Select"},{"$f":"Import!E11991","v":"Select"},{"$f":"Import!E12091","v":"Select"},{"$f":"Import!E12191","v":"Select"},{"$f":"Import!E12291","v":0},{"$f":"Import!E12391","v":0},{"$f":"Import!E12491","v":0},{"$f":"Import!E12591","v":0},{"$f":"Import!E12691","v":0}]
[25,{"$f":"Import!E11892","v":"Select"},{"$f":"Import!E11992","v":"Select"},{"$f":"Import!E12092","v":"Select"},{"$f":"Import!E12192","v":"Select"},{"$f":"Import!E12292","v":0},{"$f":"Import!E12392","v":0},{"$f":"Import!E12492","v":0},{"$f":"Import!E12592","v":0},{"$f":"Import!E12692","v":0}]
[26,{"$f":"Import!E11893","v":"Select"},{"$f":"Import!E11993","v":"Select"},{"$f":"Import!E12093","v":"Select"},{"$f":"Import!E12193","v":"Select"},{"$f":"Import!E12293","v":0},{"$f":"Import!E12393","v":0},{"$f":"Import!E12493","v":0},{"$f":"Import!E12593","v":0},{"$f":"Import!E12693","v":0}]
[27,{"$f":"Import!E11894","v":"Select"},{"$f":"Import!E11994","v":"Select"},{"$f":"Import!E12094","v":"Select"},{"$f":"Import!E12194","v":"Select"},{"$f":"Import!E12294","v":0},{"$f":"Import!E12394","v":0},{"$f":"Import!E12494","v":0},{"$f":"Import!E12594","v":0},{"$f":"Import!E12694","v":0}]
[28,{"$f":"Import!E11895","v":"Select"},{"$f":"Import!E11995","v":"Select"},{"$f":"Import!E12095","v":"Select"},{"$f":"Import!E12195","v":"Select"},{"$f":"Import!E12295","v":0},{"$f":"Import!E12395","v":0},{"$f":"Import!E12495","v":0},{"$f":"Import!E12595","v":0},{"$f":"Import!E12695","v":0}]
[29,{"$f":"Import!E11896","v":"Select"},{"$f":"Import!E11996","v":"Select"},{"$f":"Import!E12096","v":"Select"},{"$f":"Import!E12196","v":"Select"},{"$f":"Import!E12296","v":0},{"$f":"Import!E12396","v":0},{"$f":"Import!E12496","v":0},{"$f":"Import!E12596","v":0},{"$f":"Import!E12696","v":0}]
[30,{"$f":"Import!E11897","v":"Select"},{"$f":"Import!E11997","v":"Select"},{"$f":"Import!E12097","v":"Select"},{"$f":"Import!E12197","v":"Select"},{"$f":"Import!E12297","v":0},{"$f":"Import!E12397","v":0},{"$f":"Import!E12497","v":0},{"$f":"Import!E12597","v":0},{"$f":"Import!E12697","v":0}]
[31,{"$f":"Import!E11898","v":"Select"},{"$f":"Import!E11998","v":"Select"},{"$f":"Import!E12098","v":"Select"},{"$f":"Import!E12198","v":"Select"},{"$f":"Import!E12298","v":0},{"$f":"Import!E12398","v":0},{"$f":"Import!E12498","v":0},{"$f":"Import!E12598","v":0},{"$f":"Import!E12698","v":0}]
[32,{"$f":"Import!E11899","v":"Select"},{"$f":"Import!E11999","v":"Select"},{"$f":"Import!E12099","v":"Select"},{"$f":"Import!E12199","v":"Select"},{"$f":"Import!E12299","v":0},{"$f":"Import!E12399","v":0},{"$f":"Import!E12499","v":0},{"$f":"Import!E12599","v":0},{"$f":"Import!E12699","v":0}]
[33,{"$f":"Import!E11900","v":"Select"},{"$f":"Import!E12000","v":"Select"},{"$f":"Import!E12100","v":"Select"},{"$f":"Import!E12200","v":"Select"},{"$f":"Import!E12300","v":0},{"$f":"Import!E12400","v":0},{"$f":"Import!E12500","v":0},{"$f":"Import!E12600","v":0},{"$f":"Import!E12700","v":0}]
[34,{"$f":"Import!E11901","v":"Select"},{"$f":"Import!E12001","v":"Select"},{"$f":"Import!E12101","v":"Select"},{"$f":"Import!E12201","v":"Select"},{"$f":"Import!E12301","v":0},{"$f":"Import!E12401","v":0},{"$f":"Import!E12501","v":0},{"$f":"Import!E12601","v":0},{"$f":"Import!E12701","v":0}]
[35,{"$f":"Import!E11902","v":"Select"},{"$f":"Import!E12002","v":"Select"},{"$f":"Import!E12102","v":"Select"},{"$f":"Import!E12202","v":"Select"},{"$f":"Import!E12302","v":0},{"$f":"Import!E12402","v":0},{"$f":"Import!E12502","v":0},{"$f":"Import!E12602","v":0},{"$f":"Import!E12702","v":0}]
[36,{"$f":"Import!E11903","v":"Select"},{"$f":"Import!E12003","v":"Select"},{"$f":"Import!E12103","v":"Select"},{"$f":"Import!E12203","v":"Select"},{"$f":"Import!E12303","v":0},{"$f":"Import!E12403","v":0},{"$f":"Import!E12503","v":0},{"$f":"Import!E12603","v":0},{"$f":"Import!E12703","v":0}]
[37,{"$f":"Import!E11904","v":"Select"},{"$f":"Import!E12004","v":"Select"},{"$f":"Import!E12104","v":"Select"},{"$f":"Import!E12204","v":"Select"},{"$f":"Import!E12304","v":0},{"$f":"Import!E12404","v":0},{"$f":"Import!E12504","v":0},{"$f":"Import!E12604","v":0},{"$f":"Import!E12704","v":0}]
[38,{"$f":"Import!E11905","v":"Select"},{"$f":"Import!E12005","v":"Select"},{"$f":"Import!E12105","v":"Select"},{"$f":"Import!E12205","v":"Select"},{"$f":"Import!E12305","v":0},{"$f":"Import!E12405","v":0},{"$f":"Import!E12505","v":0},{"$f":"Import!E12605","v":0},{"$f":"Import!E12705","v":0}]
[39,{"$f":"Import!E11906","v":"Select"},{"$f":"Import!E12006","v":"Select"},{"$f":"Import!E12106","v":"Select"},{"$f":"Import!E12206","v":"Select"},{"$f":"Import!E12306","v":0},{"$f":"Import!E12406","v":0},{"$f":"Import!E12506","v":0},{"$f":"Import!E12606","v":0},{"$f":"Import!E12706","v":0}]
[40,{"$f":"Import!E11907","v":"Select"},{"$f":"Import!E12007","v":"Select"},{"$f":"Import!E12107","v":"Select"},{"$f":"Import!E12207","v":"Select"},{"$f":"Import!E12307","v":0},{"$f":"Import!E12407","v":0},{"$f":"Import!E12507","v":0},{"$f":"Import!E12607","v":0},{"$f":"Import!E12707","v":0}]
[41,{"$f":"Import!E11908","v":"Select"},{"$f":"Import!E12008","v":"Select"},{"$f":"Import!E12108","v":"Select"},{"$f":"Import!E12208","v":"Select"},{"$f":"Import!E12308","v":0},{"$f":"Import!E12408","v":0},{"$f":"Import!E12508","v":0},{"$f":"Import!E12608","v":0},{"$f":"Import!E12708","v":0}]
[42,{"$f":"Import!E11909","v":"Select"},{"$f":"Import!E12009","v":"Select"},{"$f":"Import!E12109","v":"Select"},{"$f":"Import!E12209","v":"Select"},{"$f":"Import!E12309","v":0},{"$f":"Import!E12409","v":0},{"$f":"Import!E12509","v":0},{"$f":"Import!E12609","v":0},{"$f":"Import!E12709","v":0}]
[43,{"$f":"Import!E11910","v":"Select"},{"$f":"Import!E12010","v":"Select"},{"$f":"Import!E12110","v":"Select"},{"$f":"Import!E12210","v":"Select"},{"$f":"Import!E12310","v":0},{"$f":"Import!E12410","v":0},{"$f":"Import!E12510","v":0},{"$f":"Import!E12610","v":0},{"$f":"Import!E12710","v":0}]
[44,{"$f":"Import!E11911","v":"Select"},{"$f":"Import!E12011","v":"Select"},{"$f":"Import!E12111","v":"Select"},{"$f":"Import!E12211","v":"Select"},{"$f":"Import!E12311","v":0},{"$f":"Import!E12411","v":0},{"$f":"Import!E12511","v":0},{"$f":"Import!E12611","v":0},{"$f":"Import!E12711","v":0}]
[45,{"$f":"Import!E11912","v":"Select"},{"$f":"Import!E12012","v":"Select"},{"$f":"Import!E12112","v":"Select"},{"$f":"Import!E12212","v":"Select"},{"$f":"Import!E12312","v":0},{"$f":"Import!E12412","v":0},{"$f":"Import!E12512","v":0},{"$f":"Import!E12612","v":0},{"$f":"Import!E12712","v":0}]
[46,{"$f":"Import!E11913","v":"Select"},{"$f":"Import!E12013","v":"Select"},{"$f":"Import!E12113","v":"Select"},{"$f":"Import!E12213","v":"Select"},{"$f":"Import!E12313","v":0},{"$f":"Import!E12413","v":0},{"$f":"Import!E12513","v":0},{"$f":"Import!E12613","v":0},{"$f":"Import!E12713","v":0}]
[47,{"$f":"Import!E11914","v":"Select"},{"$f":"Import!E12014","v":"Select"},{"$f":"Import!E12114","v":"Select"},{"$f":"Import!E12214","v":"Select"},{"$f":"Import!E12314","v":0},{"$f":"Import!E12414","v":0},{"$f":"Import!E12514","v":0},{"$f":"Import!E12614","v":0},{"$f":"Import!E12714","v":0}]
[48,{"$f":"Import!E11915","v":"Select"},{"$f":"Import!E12015","v":"Select"},{"$f":"Import!E12115","v":"Select"},{"$f":"Import!E12215","v":"Select"},{"$f":"Import!E12315","v":0},{"$f":"Import!E12415","v":0},{"$f":"Import!E12515","v":0},{"$f":"Import!E12615","v":0},{"$f":"Import!E12715","v":0}]
[49,{"$f":"Import!E11916","v":"Select"},{"$f":"Import!E12016","v":"Select"},{"$f":"Import!E12116","v":"Select"},{"$f":"Import!E12216","v":"Select"},{"$f":"Import!E12316","v":0},{"$f":"Import!E12416","v":0},{"$f":"Import!E12516","v":0},{"$f":"Import!E12616","v":0},{"$f":"Import!E12716","v":0}]
[50,{"$f":"Import!E11917","v":"Select"},{"$f":"Import!E12017","v":"Select"},{"$f":"Import!E12117","v":"Select"},{"$f":"Import!E12217","v":"Select"},{"$f":"Import!E12317","v":0},{"$f":"Import!E12417","v":0},{"$f":"Import!E12517","v":0},{"$f":"Import!E12617","v":0},{"$f":"Import!E12717","v":0}]
[51,{"$f":"Import!E11918","v":"Select"},{"$f":"Import!E12018","v":"Select"},{"$f":"Import!E12118","v":"Select"},{"$f":"Import!E12218","v":"Select"},{"$f":"Import!E12318","v":0},{"$f":"Import!E12418","v":0},{"$f":"Import!E12518","v":0},{"$f":"Import!E12618","v":0},{"$f":"Import!E12718","v":0}]
[52,{"$f":"Import!E11919","v":"Select"},{"$f":"Import!E12019","v":"Select"},{"$f":"Import!E12119","v":"Select"},{"$f":"Import!E12219","v":"Select"},{"$f":"Import!E12319","v":0},{"$f":"Import!E12419","v":0},{"$f":"Import!E12519","v":0},{"$f":"Import!E12619","v":0},{"$f":"Import!E12719","v":0}]
[53,{"$f":"Import!E11920","v":"Select"},{"$f":"Import!E12020","v":"Select"},{"$f":"Import!E12120","v":"Select"},{"$f":"Import!E12220","v":"Select"},{"$f":"Import!E12320","v":0},{"$f":"Import!E12420","v":0},{"$f":"Import!E12520","v":0},{"$f":"Import!E12620","v":0},{"$f":"Import!E12720","v":0}]
[54,{"$f":"Import!E11921","v":"Select"},{"$f":"Import!E12021","v":"Select"},{"$f":"Import!E12121","v":"Select"},{"$f":"Import!E12221","v":"Select"},{"$f":"Import!E12321","v":0},{"$f":"Import!E12421","v":0},{"$f":"Import!E12521","v":0},{"$f":"Import!E12621","v":0},{"$f":"Import!E12721","v":0}]
[55,{"$f":"Import!E11922","v":"Select"},{"$f":"Import!E12022","v":"Select"},{"$f":"Import!E12122","v":"Select"},{"$f":"Import!E12222","v":"Select"},{"$f":"Import!E12322","v":0},{"$f":"Import!E12422","v":0},{"$f":"Import!E12522","v":0},{"$f":"Import!E12622","v":0},{"$f":"Import!E12722","v":0}]
[56,{"$f":"Import!E11923","v":"Select"},{"$f":"Import!E12023","v":"Select"},{"$f":"Import!E12123","v":"Select"},{"$f":"Import!E12223","v":"Select"},{"$f":"Import!E12323","v":0},{"$f":"Import!E12423","v":0},{"$f":"Import!E12523","v":0},{"$f":"Import!E12623","v":0},{"$f":"Import!E12723","v":0}]
[57,{"$f":"Import!E11924","v":"Select"},{"$f":"Import!E12024","v":"Select"},{"$f":"Import!E12124","v":"Select"},{"$f":"Import!E12224","v":"Select"},{"$f":"Import!E12324","v":0},{"$f":"Import!E12424","v":0},{"$f":"Import!E12524","v":0},{"$f":"Import!E12624","v":0},{"$f":"Import!E12724","v":0}]
[58,{"$f":"Import!E11925","v":"Select"},{"$f":"Import!E12025","v":"Select"},{"$f":"Import!E12125","v":"Select"},{"$f":"Import!E12225","v":"Select"},{"$f":"Import!E12325","v":0},{"$f":"Import!E12425","v":0},{"$f":"Import!E12525","v":0},{"$f":"Import!E12625","v":0},{"$f":"Import!E12725","v":0}]
[59,{"$f":"Import!E11926","v":"Select"},{"$f":"Import!E12026","v":"Select"},{"$f":"Import!E12126","v":"Select"},{"$f":"Import!E12226","v":"Select"},{"$f":"Import!E12326","v":0},{"$f":"Import!E12426","v":0},{"$f":"Import!E12526","v":0},{"$f":"Import!E12626","v":0},{"$f":"Import!E12726","v":0}]
[60,{"$f":"Import!E11927","v":"Select"},{"$f":"Import!E12027","v":"Select"},{"$f":"Import!E12127","v":"Select"},{"$f":"Import!E12227","v":"Select"},{"$f":"Import!E12327","v":0},{"$f":"Import!E12427","v":0},{"$f":"Import!E12527","v":0},{"$f":"Import!E12627","v":0},{"$f":"Import!E12727","v":0}]
[61,{"$f":"Import!E11928","v":"Select"},{"$f":"Import!E12028","v":"Select"},{"$f":"Import!E12128","v":"Select"},{"$f":"Import!E12228","v":"Select"},{"$f":"Import!E12328","v":0},{"$f":"Import!E12428","v":0},{"$f":"Import!E12528","v":0},{"$f":"Import!E12628","v":0},{"$f":"Import!E12728","v":0}]
[62,{"$f":"Import!E11929","v":"Select"},{"$f":"Import!E12029","v":"Select"},{"$f":"Import!E12129","v":"Select"},{"$f":"Import!E12229","v":"Select"},{"$f":"Import!E12329","v":0},{"$f":"Import!E12429","v":0},{"$f":"Import!E12529","v":0},{"$f":"Import!E12629","v":0},{"$f":"Import!E12729","v":0}]
[63,{"$f":"Import!E11930","v":"Select"},{"$f":"Import!E12030","v":"Select"},{"$f":"Import!E12130","v":"Select"},{"$f":"Import!E12230","v":"Select"},{"$f":"Import!E12330","v":0},{"$f":"Import!E12430","v":0},{"$f":"Import!E12530","v":0},{"$f":"Import!E12630","v":0},{"$f":"Import!E12730","v":0}]
[64,{"$f":"Import!E11931","v":"Select"},{"$f":"Import!E12031","v":"Select"},{"$f":"Import!E12131","v":"Select"},{"$f":"Import!E12231","v":"Select"},{"$f":"Import!E12331","v":0},{"$f":"Import!E12431","v":0},{"$f":"Import!E12531","v":0},{"$f":"Import!E12631","v":0},{"$f":"Import!E12731","v":0}]
[65,{"$f":"Import!E11932","v":"Select"},{"$f":"Import!E12032","v":"Select"},{"$f":"Import!E12132","v":"Select"},{"$f":"Import!E12232","v":"Select"},{"$f":"Import!E12332","v":0},{"$f":"Import!E12432","v":0},{"$f":"Import!E12532","v":0},{"$f":"Import!E12632","v":0},{"$f":"Import!E12732","v":0}]
[66,{"$f":"Import!E11933","v":"Select"},{"$f":"Import!E12033","v":"Select"},{"$f":"Import!E12133","v":"Select"},{"$f":"Import!E12233","v":"Select"},{"$f":"Import!E12333","v":0},{"$f":"Import!E12433","v":0},{"$f":"Import!E12533","v":0},{"$f":"Import!E12633","v":0},{"$f":"Import!E12733","v":0}]
[{"$f":"A1058+1","v":67},{"$f":"Import!E11934","v":"Select"},{"$f":"Import!E12034","v":"Select"},{"$f":"Import!E12134","v":"Select"},{"$f":"Import!E12234","v":"Select"},{"$f":"Import!E12334","v":0},{"$f":"Import!E12434","v":0},{"$f":"Import!E12534","v":0},{"$f":"Import!E12634","v":0},{"$f":"Import!E12734","v":0}]
[68,{"$f":"Import!E11935","v":"Select"},{"$f":"Import!E12035","v":"Select"},{"$f":"Import!E12135","v":"Select"},{"$f":"Import!E12235","v":"Select"},{"$f":"Import!E12335","v":0},{"$f":"Import!E12435","v":0},{"$f":"Import!E12535","v":0},{"$f":"Import!E12635","v":0},{"$f":"Import!E12735","v":0}]
[69,{"$f":"Import!E11936","v":"Select"},{"$f":"Import!E12036","v":"Select"},{"$f":"Import!E12136","v":"Select"},{"$f":"Import!E12236","v":"Select"},{"$f":"Import!E12336","v":0},{"$f":"Import!E12436","v":0},{"$f":"Import!E12536","v":0},{"$f":"Import!E12636","v":0},{"$f":"Import!E12736","v":0}]
[70,{"$f":"Import!E11937","v":"Select"},{"$f":"Import!E12037","v":"Select"},{"$f":"Import!E12137","v":"Select"},{"$f":"Import!E12237","v":"Select"},{"$f":"Import!E12337","v":0},{"$f":"Import!E12437","v":0},{"$f":"Import!E12537","v":0},{"$f":"Import!E12637","v":0},{"$f":"Import!E12737","v":0}]
[71,{"$f":"Import!E11938","v":"Select"},{"$f":"Import!E12038","v":"Select"},{"$f":"Import!E12138","v":"Select"},{"$f":"Import!E12238","v":"Select"},{"$f":"Import!E12338","v":0},{"$f":"Import!E12438","v":0},{"$f":"Import!E12538","v":0},{"$f":"Import!E12638","v":0},{"$f":"Import!E12738","v":0}]
[72,{"$f":"Import!E11939","v":"Select"},{"$f":"Import!E12039","v":"Select"},{"$f":"Import!E12139","v":"Select"},{"$f":"Import!E12239","v":"Select"},{"$f":"Import!E12339","v":0},{"$f":"Import!E12439","v":0},{"$f":"Import!E12539","v":0},{"$f":"Import!E12639","v":0},{"$f":"Import!E12739","v":0}]
[73,{"$f":"Import!E11940","v":"Select"},{"$f":"Import!E12040","v":"Select"},{"$f":"Import!E12140","v":"Select"},{"$f":"Import!E12240","v":"Select"},{"$f":"Import!E12340","v":0},{"$f":"Import!E12440","v":0},{"$f":"Import!E12540","v":0},{"$f":"Import!E12640","v":0},{"$f":"Import!E12740","v":0}]
[74,{"$f":"Import!E11941","v":"Select"},{"$f":"Import!E12041","v":"Select"},{"$f":"Import!E12141","v":"Select"},{"$f":"Import!E12241","v":"Select"},{"$f":"Import!E12341","v":0},{"$f":"Import!E12441","v":0},{"$f":"Import!E12541","v":0},{"$f":"Import!E12641","v":0},{"$f":"Import!E12741","v":0}]
[75,{"$f":"Import!E11942","v":"Select"},{"$f":"Import!E12042","v":"Select"},{"$f":"Import!E12142","v":"Select"},{"$f":"Import!E12242","v":"Select"},{"$f":"Import!E12342","v":0},{"$f":"Import!E12442","v":0},{"$f":"Import!E12542","v":0},{"$f":"Import!E12642","v":0},{"$f":"Import!E12742","v":0}]
[76,{"$f":"Import!E11943","v":"Select"},{"$f":"Import!E12043","v":"Select"},{"$f":"Import!E12143","v":"Select"},{"$f":"Import!E12243","v":"Select"},{"$f":"Import!E12343","v":0},{"$f":"Import!E12443","v":0},{"$f":"Import!E12543","v":0},{"$f":"Import!E12643","v":0},{"$f":"Import!E12743","v":0}]
[77,{"$f":"Import!E11944","v":"Select"},{"$f":"Import!E12044","v":"Select"},{"$f":"Import!E12144","v":"Select"},{"$f":"Import!E12244","v":"Select"},{"$f":"Import!E12344","v":0},{"$f":"Import!E12444","v":0},{"$f":"Import!E12544","v":0},{"$f":"Import!E12644","v":0},{"$f":"Import!E12744","v":0}]
[78,{"$f":"Import!E11945","v":"Select"},{"$f":"Import!E12045","v":"Select"},{"$f":"Import!E12145","v":"Select"},{"$f":"Import!E12245","v":"Select"},{"$f":"Import!E12345","v":0},{"$f":"Import!E12445","v":0},{"$f":"Import!E12545","v":0},{"$f":"Import!E12645","v":0},{"$f":"Import!E12745","v":0}]
[79,{"$f":"Import!E11946","v":"Select"},{"$f":"Import!E12046","v":"Select"},{"$f":"Import!E12146","v":"Select"},{"$f":"Import!E12246","v":"Select"},{"$f":"Import!E12346","v":0},{"$f":"Import!E12446","v":0},{"$f":"Import!E12546","v":0},{"$f":"Import!E12646","v":0},{"$f":"Import!E12746","v":0}]
[80,{"$f":"Import!E11947","v":"Select"},{"$f":"Import!E12047","v":"Select"},{"$f":"Import!E12147","v":"Select"},{"$f":"Import!E12247","v":"Select"},{"$f":"Import!E12347","v":0},{"$f":"Import!E12447","v":0},{"$f":"Import!E12547","v":0},{"$f":"Import!E12647","v":0},{"$f":"Import!E12747","v":0}]
[81,{"$f":"Import!E11948","v":"Select"},{"$f":"Import!E12048","v":"Select"},{"$f":"Import!E12148","v":"Select"},{"$f":"Import!E12248","v":"Select"},{"$f":"Import!E12348","v":0},{"$f":"Import!E12448","v":0},{"$f":"Import!E12548","v":0},{"$f":"Import!E12648","v":0},{"$f":"Import!E12748","v":0}]
[82,{"$f":"Import!E11949","v":"Select"},{"$f":"Import!E12049","v":"Select"},{"$f":"Import!E12149","v":"Select"},{"$f":"Import!E12249","v":"Select"},{"$f":"Import!E12349","v":0},{"$f":"Import!E12449","v":0},{"$f":"Import!E12549","v":0},{"$f":"Import!E12649","v":0},{"$f":"Import!E12749","v":0}]
[83,{"$f":"Import!E11950","v":"Select"},{"$f":"Import!E12050","v":"Select"},{"$f":"Import!E12150","v":"Select"},{"$f":"Import!E12250","v":"Select"},{"$f":"Import!E12350","v":0},{"$f":"Import!E12450","v":0},{"$f":"Import!E12550","v":0},{"$f":"Import!E12650","v":0},{"$f":"Import!E12750","v":0}]
[84,{"$f":"Import!E11951","v":"Select"},{"$f":"Import!E12051","v":"Select"},{"$f":"Import!E12151","v":"Select"},{"$f":"Import!E12251","v":"Select"},{"$f":"Import!E12351","v":0},{"$f":"Import!E12451","v":0},{"$f":"Import!E12551","v":0},{"$f":"Import!E12651","v":0},{"$f":"Import!E12751","v":0}]
[85,{"$f":"Import!E11952","v":"Select"},{"$f":"Import!E12052","v":"Select"},{"$f":"Import!E12152","v":"Select"},{"$f":"Import!E12252","v":"Select"},{"$f":"Import!E12352","v":0},{"$f":"Import!E12452","v":0},{"$f":"Import!E12552","v":0},{"$f":"Import!E12652","v":0},{"$f":"Import!E12752","v":0}]
[86,{"$f":"Import!E11953","v":"Select"},{"$f":"Import!E12053","v":"Select"},{"$f":"Import!E12153","v":"Select"},{"$f":"Import!E12253","v":"Select"},{"$f":"Import!E12353","v":0},{"$f":"Import!E12453","v":0},{"$f":"Import!E12553","v":0},{"$f":"Import!E12653","v":0},{"$f":"Import!E12753","v":0}]
[87,{"$f":"Import!E11954","v":"Select"},{"$f":"Import!E12054","v":"Select"},{"$f":"Import!E12154","v":"Select"},{"$f":"Import!E12254","v":"Select"},{"$f":"Import!E12354","v":0},{"$f":"Import!E12454","v":0},{"$f":"Import!E12554","v":0},{"$f":"Import!E12654","v":0},{"$f":"Import!E12754","v":0}]
[88,{"$f":"Import!E11955","v":"Select"},{"$f":"Import!E12055","v":"Select"},{"$f":"Import!E12155","v":"Select"},{"$f":"Import!E12255","v":"Select"},{"$f":"Import!E12355","v":0},{"$f":"Import!E12455","v":0},{"$f":"Import!E12555","v":0},{"$f":"Import!E12655","v":0},{"$f":"Import!E12755","v":0}]
[89,{"$f":"Import!E11956","v":"Select"},{"$f":"Import!E12056","v":"Select"},{"$f":"Import!E12156","v":"Select"},{"$f":"Import!E12256","v":"Select"},{"$f":"Import!E12356","v":0},{"$f":"Import!E12456","v":0},{"$f":"Import!E12556","v":0},{"$f":"Import!E12656","v":0},{"$f":"Import!E12756","v":0}]
[90,{"$f":"Import!E11957","v":"Select"},{"$f":"Import!E12057","v":"Select"},{"$f":"Import!E12157","v":"Select"},{"$f":"Import!E12257","v":"Select"},{"$f":"Import!E12357","v":0},{"$f":"Import!E12457","v":0},{"$f":"Import!E12557","v":0},{"$f":"Import!E12657","v":0},{"$f":"Import!E12757","v":0}]
[91,{"$f":"Import!E11958","v":"Select"},{"$f":"Import!E12058","v":"Select"},{"$f":"Import!E12158","v":"Select"},{"$f":"Import!E12258","v":"Select"},{"$f":"Import!E12358","v":0},{"$f":"Import!E12458","v":0},{"$f":"Import!E12558","v":0},{"$f":"Import!E12658","v":0},{"$f":"Import!E12758","v":0}]
[92,{"$f":"Import!E11959","v":"Select"},{"$f":"Import!E12059","v":"Select"},{"$f":"Import!E12159","v":"Select"},{"$f":"Import!E12259","v":"Select"},{"$f":"Import!E12359","v":0},{"$f":"Import!E12459","v":0},{"$f":"Import!E12559","v":0},{"$f":"Import!E12659","v":0},{"$f":"Import!E12759","v":0}]
[93,{"$f":"Import!E11960","v":"Select"},{"$f":"Import!E12060","v":"Select"},{"$f":"Import!E12160","v":"Select"},{"$f":"Import!E12260","v":"Select"},{"$f":"Import!E12360","v":0},{"$f":"Import!E12460","v":0},{"$f":"Import!E12560","v":0},{"$f":"Import!E12660","v":0},{"$f":"Import!E12760","v":0}]
[94,{"$f":"Import!E11961","v":"Select"},{"$f":"Import!E12061","v":"Select"},{"$f":"Import!E12161","v":"Select"},{"$f":"Import!E12261","v":"Select"},{"$f":"Import!E12361","v":0},{"$f":"Import!E12461","v":0},{"$f":"Import!E12561","v":0},{"$f":"Import!E12661","v":0},{"$f":"Import!E12761","v":0}]
[95,{"$f":"Import!E11962","v":"Select"},{"$f":"Import!E12062","v":"Select"},{"$f":"Import!E12162","v":"Select"},{"$f":"Import!E12262","v":"Select"},{"$f":"Import!E12362","v":0},{"$f":"Import!E12462","v":0},{"$f":"Import!E12562","v":0},{"$f":"Import!E12662","v":0},{"$f":"Import!E12762","v":0}]
[96,{"$f":"Import!E11963","v":"Select"},{"$f":"Import!E12063","v":"Select"},{"$f":"Import!E12163","v":"Select"},{"$f":"Import!E12263","v":"Select"},{"$f":"Import!E12363","v":0},{"$f":"Import!E12463","v":0},{"$f":"Import!E12563","v":0},{"$f":"Import!E12663","v":0},{"$f":"Import!E12763","v":0}]
[97,{"$f":"Import!E11964","v":"Select"},{"$f":"Import!E12064","v":"Select"},{"$f":"Import!E12164","v":"Select"},{"$f":"Import!E12264","v":"Select"},{"$f":"Import!E12364","v":0},{"$f":"Import!E12464","v":0},{"$f":"Import!E12564","v":0},{"$f":"Import!E12664","v":0},{"$f":"Import!E12764","v":0}]
[98,{"$f":"Import!E11965","v":"Select"},{"$f":"Import!E12065","v":"Select"},{"$f":"Import!E12165","v":"Select"},{"$f":"Import!E12265","v":"Select"},{"$f":"Import!E12365","v":0},{"$f":"Import!E12465","v":0},{"$f":"Import!E12565","v":0},{"$f":"Import!E12665","v":0},{"$f":"Import!E12765","v":0}]
[99,{"$f":"Import!E11966","v":"Select"},{"$f":"Import!E12066","v":"Select"},{"$f":"Import!E12166","v":"Select"},{"$f":"Import!E12266","v":"Select"},{"$f":"Import!E12366","v":0},{"$f":"Import!E12466","v":0},{"$f":"Import!E12566","v":0},{"$f":"Import!E12666","v":0},{"$f":"Import!E12766","v":0}]
[100,{"$f":"Import!E11967","v":"Select"},{"$f":"Import!E12067","v":"Select"},{"$f":"Import!E12167","v":"Select"},{"$f":"Import!E12267","v":"Select"},{"$f":"Import!E12367","v":0},{"$f":"Import!E12467","v":0},{"$f":"Import!E12567","v":0},{"$f":"Import!E12667","v":0},{"$f":"Import!E12767","v":0}]
[]
[null,"Total Loans",null,null,null,{"$f":"SUM(F993:F1092)","v":0},{"$f":"SUM(G993:G1092)","v":0},{"$f":"IFERROR(SUMPRODUCT(H993:H1092,$G993:$G1092)/SUM($G993:$G1092),0)","v":0},{"$f":"IFERROR(SUMPRODUCT(I993:I1092,$G993:$G1092)/SUM($G993:$G1092),0)","v":0}]
[]
[null,"- OF WHICH NON-PERFORMING LOANS"]
[]
[null,null,"Enter # of Asset Types",{"$f":"Import!E12768","v":0}]
[null,null,null,null,null,{"$f":"YEAR($C$3)","v":2023},2023]
[null,"Asset Type","Currency","Country","BSCR Rating","Nominal Amount","Fair Value","Comments"]
[1,{"$f":"Import!E12769","v":"Select"},{"$f":"Import!E12789","v":"Select"},{"$f":"Import!E12809","v":"Select"},{"$f":"Import!E12829","v":"Select"},{"$f":"Import!E12849","v":0},{"$f":"Import!E12869","v":0},{"$f":"Import!E12889","v":0}]
[{"$f":"A1101+1","v":2},"Select",{"$f":"Import!E12790","v":"Select"},{"$f":"Import!E12810","v":"Select"},{"$f":"Import!E12830","v":"Select"},{"$f":"Import!E12850","v":0},{"$f":"Import!E12870","v":0},{"$f":"Import!E12890","v":0}]
[{"$f":"A1102+1","v":3},"Select",{"$f":"Import!E12791","v":"Select"},{"$f":"Import!E12811","v":"Select"},{"$f":"Import!E12831","v":"Select"},{"$f":"Import!E12851","v":0},{"$f":"Import!E12871","v":0},{"$f":"Import!E12891","v":0}]
[4,"Select",{"$f":"Import!E12792","v":"Select"},{"$f":"Import!E12812","v":"Select"},{"$f":"Import!E12832","v":"Select"},{"$f":"Import!E12852","v":0},{"$f":"Import!E12872","v":0},{"$f":"Import!E12892","v":0}]
[5,"Select",{"$f":"Import!E12793","v":"Select"},{"$f":"Import!E12813","v":"Select"},{"$f":"Import!E12833","v":"Select"},{"$f":"Import!E12853","v":0},{"$f":"Import!E12873","v":0},{"$f":"Import!E12893","v":0}]
[6,"Select",{"$f":"Import!E12794","v":"Select"},{"$f":"Import!E12814","v":"Select"},{"$f":"Import!E12834","v":"Select"},{"$f":"Import!E12854","v":0},{"$f":"Import!E12874","v":0},{"$f":"Import!E12894","v":0}]
[7,"Select",{"$f":"Import!E12795","v":"Select"},{"$f":"Import!E12815","v":"Select"},{"$f":"Import!E12835","v":"Select"},{"$f":"Import!E12855","v":0},{"$f":"Import!E12875","v":0},{"$f":"Import!E12895","v":0}]
[8,"Select",{"$f":"Import!E12796","v":"Select"},{"$f":"Import!E12816","v":"Select"},{"$f":"Import!E12836","v":"Select"},{"$f":"Import!E12856","v":0},{"$f":"Import!E12876","v":0},{"$f":"Import!E12896","v":0}]
[9,"Select",{"$f":"Import!E12797","v":"Select"},{"$f":"Import!E12817","v":"Select"},{"$f":"Import!E12837","v":"Select"},{"$f":"Import!E12857","v":0},{"$f":"Import!E12877","v":0},{"$f":"Import!E12897","v":0}]
[10,"Select",{"$f":"Import!E12798","v":"Select"},{"$f":"Import!E12818","v":"Select"},{"$f":"Import!E12838","v":"Select"},{"$f":"Import!E12858","v":0},{"$f":"Import!E12878","v":0},{"$f":"Import!E12898","v":0}]
[11,"Select",{"$f":"Import!E12799","v":"Select"},{"$f":"Import!E12819","v":"Select"},{"$f":"Import!E12839","v":"Select"},{"$f":"Import!E12859","v":0},{"$f":"Import!E12879","v":0},{"$f":"Import!E12899","v":0}]
[12,"Select",{"$f":"Import!E12800","v":"Select"},{"$f":"Import!E12820","v":"Select"},{"$f":"Import!E12840","v":"Select"},{"$f":"Import!E12860","v":0},{"$f":"Import!E12880","v":0},{"$f":"Import!E12900","v":0}]
[13,"Select",{"$f":"Import!E12801","v":"Select"},{"$f":"Import!E12821","v":"Select"},{"$f":"Import!E12841","v":"Select"},{"$f":"Import!E12861","v":0},{"$f":"Import!E12881","v":0},{"$f":"Import!E12901","v":0}]
[14,"Select",{"$f":"Import!E12802","v":"Select"},{"$f":"Import!E12822","v":"Select"},{"$f":"Import!E12842","v":"Select"},{"$f":"Import!E12862","v":0},{"$f":"Import!E12882","v":0},{"$f":"Import!E12902","v":0}]
[15,"Select",{"$f":"Import!E12803","v":"Select"},{"$f":"Import!E12823","v":"Select"},{"$f":"Import!E12843","v":"Select"},{"$f":"Import!E12863","v":0},{"$f":"Import!E12883","v":0},{"$f":"Import!E12903","v":0}]
[16,"Select",{"$f":"Import!E12804","v":"Select"},{"$f":"Import!E12824","v":"Select"},{"$f":"Import!E12844","v":"Select"},{"$f":"Import!E12864","v":0},{"$f":"Import!E12884","v":0},{"$f":"Import!E12904","v":0}]
[17,"Select",{"$f":"Import!E12805","v":"Select"},{"$f":"Import!E12825","v":"Select"},{"$f":"Import!E12845","v":"Select"},{"$f":"Import!E12865","v":0},{"$f":"Import!E12885","v":0},{"$f":"Import!E12905","v":0}]
[18,"Select",{"$f":"Import!E12806","v":"Select"},{"$f":"Import!E12826","v":"Select"},{"$f":"Import!E12846","v":"Select"},{"$f":"Import!E12866","v":0},{"$f":"Import!E12886","v":0},{"$f":"Import!E12906","v":0}]
[19,"Select",{"$f":"Import!E12807","v":"Select"},{"$f":"Import!E12827","v":"Select"},{"$f":"Import!E12847","v":"Select"},{"$f":"Import!E12867","v":0},{"$f":"Import!E12887","v":0},{"$f":"Import!E12907","v":0}]
[20,"Select",{"$f":"Import!E12808","v":"Select"},{"$f":"Import!E12828","v":"Select"},{"$f":"Import!E12848","v":"Select"},{"$f":"Import!E12868","v":0},{"$f":"Import!E12888","v":0},{"$f":"Import!E12908","v":0}]
[]
[null,"Total Non-Performing Loans",null,null,null,{"$f":"SUM(F1101:F1120)","v":0},{"$f":"SUM(G1101:G1120)","v":0}]
[]
[null,"(E) PREFERRED EQUITIES"]
[]
[null,null,"Enter # of Asset Types",{"$f":"Import!E12909","v":0}]
[null,null,null,null,{"$f":"YEAR($C$3)","v":2023},2023,"Weighted"]
[null,"Asset Type","Currency","BSCR Rating","Nominal Amount","Fair Value","Average YTM","Effective Duration","Comments"]
[1,{"$f":"Import!E12910","v":"Select"},{"$f":"Import!E13010","v":"Select"},{"$f":"Import!E13110","v":"Select"},{"$f":"Import!E13210","v":0},{"$f":"Import!E13310","v":0},{"$f":"Import!E13410","v":0},{"$f":"Import!E13510","v":0},{"$f":"Import!E13610","v":0}]
[{"$f":"A1129+1","v":2},{"$f":"Import!E12911","v":"Select"},{"$f":"Import!E13011","v":"Select"},{"$f":"Import!E13111","v":"Select"},{"$f":"Import!E13211","v":0},{"$f":"Import!E13311","v":0},{"$f":"Import!E13411","v":0},{"$f":"Import!E13511","v":0},{"$f":"Import!E13611","v":0}]
[{"$f":"A1130+1","v":3},{"$f":"Import!E12912","v":"Select"},{"$f":"Import!E13012","v":"Select"},{"$f":"Import!E13112","v":"Select"},{"$f":"Import!E13212","v":0},{"$f":"Import!E13312","v":0},{"$f":"Import!E13412","v":0},{"$f":"Import!E13512","v":0},{"$f":"Import!E13612","v":0}]
[4,{"$f":"Import!E12913","v":"Select"},{"$f":"Import!E13013","v":"Select"},{"$f":"Import!E13113","v":"Select"},{"$f":"Import!E13213","v":0},{"$f":"Import!E13313","v":0},{"$f":"Import!E13413","v":0},{"$f":"Import!E13513","v":0},{"$f":"Import!E13613","v":0}]
[5,{"$f":"Import!E12914","v":"Select"},{"$f":"Import!E13014","v":"Select"},{"$f":"Import!E13114","v":"Select"},{"$f":"Import!E13214","v":0},{"$f":"Import!E13314","v":0},{"$f":"Import!E13414","v":0},{"$f":"Import!E13514","v":0},{"$f":"Import!E13614","v":0}]
[6,{"$f":"Import!E12915","v":"Select"},{"$f":"Import!E13015","v":"Select"},{"$f":"Import!E13115","v":"Select"},{"$f":"Import!E13215","v":0},{"$f":"Import!E13315","v":0},{"$f":"Import!E13415","v":0},{"$f":"Import!E13515","v":0},{"$f":"Import!E13615","v":0}]
[7,{"$f":"Import!E12916","v":"Select"},{"$f":"Import!E13016","v":"Select"},{"$f":"Import!E13116","v":"Select"},{"$f":"Import!E13216","v":0},{"$f":"Import!E13316","v":0},{"$f":"Import!E13416","v":0},{"$f":"Import!E13516","v":0},{"$f":"Import!E13616","v":0}]
[8,{"$f":"Import!E12917","v":"Select"},{"$f":"Import!E13017","v":"Select"},{"$f":"Import!E13117","v":"Select"},{"$f":"Import!E13217","v":0},{"$f":"Import!E13317","v":0},{"$f":"Import!E13417","v":0},{"$f":"Import!E13517","v":0},{"$f":"Import!E13617","v":0}]
[9,{"$f":"Import!E12918","v":"Select"},{"$f":"Import!E13018","v":"Select"},{"$f":"Import!E13118","v":"Select"},{"$f":"Import!E13218","v":0},{"$f":"Import!E13318","v":0},{"$f":"Import!E13418","v":0},{"$f":"Import!E13518","v":0},{"$f":"Import!E13618","v":0}]
[10,{"$f":"Import!E12919","v":"Select"},{"$f":"Import!E13019","v":"Select"},{"$f":"Import!E13119","v":"Select"},{"$f":"Import!E13219","v":0},{"$f":"Import!E13319","v":0},{"$f":"Import!E13419","v":0},{"$f":"Import!E13519","v":0},{"$f":"Import!E13619","v":0}]
[11,{"$f":"Import!E12920","v":"Select"},{"$f":"Import!E13020","v":"Select"},{"$f":"Import!E13120","v":"Select"},{"$f":"Import!E13220","v":0},{"$f":"Import!E13320","v":0},{"$f":"Import!E13420","v":0},{"$f":"Import!E13520","v":0},{"$f":"Import!E13620","v":0}]
[12,{"$f":"Import!E12921","v":"Select"},{"$f":"Import!E13021","v":"Select"},{"$f":"Import!E13121","v":"Select"},{"$f":"Import!E13221","v":0},{"$f":"Import!E13321","v":0},{"$f":"Import!E13421","v":0},{"$f":"Import!E13521","v":0},{"$f":"Import!E13621","v":0}]
[13,{"$f":"Import!E12922","v":"Select"},{"$f":"Import!E13022","v":"Select"},{"$f":"Import!E13122","v":"Select"},{"$f":"Import!E13222","v":0},{"$f":"Import!E13322","v":0},{"$f":"Import!E13422","v":0},{"$f":"Import!E13522","v":0},{"$f":"Import!E13622","v":0}]
[14,{"$f":"Import!E12923","v":"Select"},{"$f":"Import!E13023","v":"Select"},{"$f":"Import!E13123","v":"Select"},{"$f":"Import!E13223","v":0},{"$f":"Import!E13323","v":0},{"$f":"Import!E13423","v":0},{"$f":"Import!E13523","v":0},{"$f":"Import!E13623","v":0}]
[15,{"$f":"Import!E12924","v":"Select"},{"$f":"Import!E13024","v":"Select"},{"$f":"Import!E13124","v":"Select"},{"$f":"Import!E13224","v":0},{"$f":"Import!E13324","v":0},{"$f":"Import!E13424","v":0},{"$f":"Import!E13524","v":0},{"$f":"Import!E13624","v":0}]
[16,{"$f":"Import!E12925","v":"Select"},{"$f":"Import!E13025","v":"Select"},{"$f":"Import!E13125","v":"Select"},{"$f":"Import!E13225","v":0},{"$f":"Import!E13325","v":0},{"$f":"Import!E13425","v":0},{"$f":"Import!E13525","v":0},{"$f":"Import!E13625","v":0}]
[17,{"$f":"Import!E12926","v":"Select"},{"$f":"Import!E13026","v":"Select"},{"$f":"Import!E13126","v":"Select"},{"$f":"Import!E13226","v":0},{"$f":"Import!E13326","v":0},{"$f":"Import!E13426","v":0},{"$f":"Import!E13526","v":0},{"$f":"Import!E13626","v":0}]
[18,{"$f":"Import!E12927","v":"Select"},{"$f":"Import!E13027","v":"Select"},{"$f":"Import!E13127","v":"Select"},{"$f":"Import!E13227","v":0},{"$f":"Import!E13327","v":0},{"$f":"Import!E13427","v":0},{"$f":"Import!E13527","v":0},{"$f":"Import!E13627","v":0}]
[19,{"$f":"Import!E12928","v":"Select"},{"$f":"Import!E13028","v":"Select"},{"$f":"Import!E13128","v":"Select"},{"$f":"Import!E13228","v":0},{"$f":"Import!E13328","v":0},{"$f":"Import!E13428","v":0},{"$f":"Import!E13528","v":0},{"$f":"Import!E13628","v":0}]
[20,{"$f":"Import!E12929","v":"Select"},{"$f":"Import!E13029","v":"Select"},{"$f":"Import!E13129","v":"Select"},{"$f":"Import!E13229","v":0},{"$f":"Import!E13329","v":0},{"$f":"Import!E13429","v":0},{"$f":"Import!E13529","v":0},{"$f":"Import!E13629","v":0}]
[21,{"$f":"Import!E12930","v":"Select"},{"$f":"Import!E13030","v":"Select"},{"$f":"Import!E13130","v":"Select"},{"$f":"Import!E13230","v":0},{"$f":"Import!E13330","v":0},{"$f":"Import!E13430","v":0},{"$f":"Import!E13530","v":0},{"$f":"Import!E13630","v":0}]
[22,{"$f":"Import!E12931","v":"Select"},{"$f":"Import!E13031","v":"Select"},{"$f":"Import!E13131","v":"Select"},{"$f":"Import!E13231","v":0},{"$f":"Import!E13331","v":0},{"$f":"Import!E13431","v":0},{"$f":"Import!E13531","v":0},{"$f":"Import!E13631","v":0}]
[23,{"$f":"Import!E12932","v":"Select"},{"$f":"Import!E13032","v":"Select"},{"$f":"Import!E13132","v":"Select"},{"$f":"Import!E13232","v":0},{"$f":"Import!E13332","v":0},{"$f":"Import!E13432","v":0},{"$f":"Import!E13532","v":0},{"$f":"Import!E13632","v":0}]
[24,{"$f":"Import!E12933","v":"Select"},{"$f":"Import!E13033","v":"Select"},{"$f":"Import!E13133","v":"Select"},{"$f":"Import!E13233","v":0},{"$f":"Import!E13333","v":0},{"$f":"Import!E13433","v":0},{"$f":"Import!E13533","v":0},{"$f":"Import!E13633","v":0}]
[25,{"$f":"Import!E12934","v":"Select"},{"$f":"Import!E13034","v":"Select"},{"$f":"Import!E13134","v":"Select"},{"$f":"Import!E13234","v":0},{"$f":"Import!E13334","v":0},{"$f":"Import!E13434","v":0},{"$f":"Import!E13534","v":0},{"$f":"Import!E13634","v":0}]
[26,{"$f":"Import!E12935","v":"Select"},{"$f":"Import!E13035","v":"Select"},{"$f":"Import!E13135","v":"Select"},{"$f":"Import!E13235","v":0},{"$f":"Import!E13335","v":0},{"$f":"Import!E13435","v":0},{"$f":"Import!E13535","v":0},{"$f":"Import!E13635","v":0}]
[27,{"$f":"Import!E12936","v":"Select"},{"$f":"Import!E13036","v":"Select"},{"$f":"Import!E13136","v":"Select"},{"$f":"Import!E13236","v":0},{"$f":"Import!E13336","v":0},{"$f":"Import!E13436","v":0},{"$f":"Import!E13536","v":0},{"$f":"Import!E13636","v":0}]
[28,{"$f":"Import!E12937","v":"Select"},{"$f":"Import!E13037","v":"Select"},{"$f":"Import!E13137","v":"Select"},{"$f":"Import!E13237","v":0},{"$f":"Import!E13337","v":0},{"$f":"Import!E13437","v":0},{"$f":"Import!E13537","v":0},{"$f":"Import!E13637","v":0}]
[29,{"$f":"Import!E12938","v":"Select"},{"$f":"Import!E13038","v":"Select"},{"$f":"Import!E13138","v":"Select"},{"$f":"Import!E13238","v":0},{"$f":"Import!E13338","v":0},{"$f":"Import!E13438","v":0},{"$f":"Import!E13538","v":0},{"$f":"Import!E13638","v":0}]
[30,{"$f":"Import!E12939","v":"Select"},{"$f":"Import!E13039","v":"Select"},{"$f":"Import!E13139","v":"Select"},{"$f":"Import!E13239","v":0},{"$f":"Import!E13339","v":0},{"$f":"Import!E13439","v":0},{"$f":"Import!E13539","v":0},{"$f":"Import!E13639","v":0}]
[31,{"$f":"Import!E12940","v":"Select"},{"$f":"Import!E13040","v":"Select"},{"$f":"Import!E13140","v":"Select"},{"$f":"Import!E13240","v":0},{"$f":"Import!E13340","v":0},{"$f":"Import!E13440","v":0},{"$f":"Import!E13540","v":0},{"$f":"Import!E13640","v":0}]
[32,{"$f":"Import!E12941","v":"Select"},{"$f":"Import!E13041","v":"Select"},{"$f":"Import!E13141","v":"Select"},{"$f":"Import!E13241","v":0},{"$f":"Import!E13341","v":0},{"$f":"Import!E13441","v":0},{"$f":"Import!E13541","v":0},{"$f":"Import!E13641","v":0}]
[33,{"$f":"Import!E12942","v":"Select"},{"$f":"Import!E13042","v":"Select"},{"$f":"Import!E13142","v":"Select"},{"$f":"Import!E13242","v":0},{"$f":"Import!E13342","v":0},{"$f":"Import!E13442","v":0},{"$f":"Import!E13542","v":0},{"$f":"Import!E13642","v":0}]
[34,{"$f":"Import!E12943","v":"Select"},{"$f":"Import!E13043","v":"Select"},{"$f":"Import!E13143","v":"Select"},{"$f":"Import!E13243","v":0},{"$f":"Import!E13343","v":0},{"$f":"Import!E13443","v":0},{"$f":"Import!E13543","v":0},{"$f":"Import!E13643","v":0}]
[35,{"$f":"Import!E12944","v":"Select"},{"$f":"Import!E13044","v":"Select"},{"$f":"Import!E13144","v":"Select"},{"$f":"Import!E13244","v":0},{"$f":"Import!E13344","v":0},{"$f":"Import!E13444","v":0},{"$f":"Import!E13544","v":0},{"$f":"Import!E13644","v":0}]
[36,{"$f":"Import!E12945","v":"Select"},{"$f":"Import!E13045","v":"Select"},{"$f":"Import!E13145","v":"Select"},{"$f":"Import!E13245","v":0},{"$f":"Import!E13345","v":0},{"$f":"Import!E13445","v":0},{"$f":"Import!E13545","v":0},{"$f":"Import!E13645","v":0}]
[37,{"$f":"Import!E12946","v":"Select"},{"$f":"Import!E13046","v":"Select"},{"$f":"Import!E13146","v":"Select"},{"$f":"Import!E13246","v":0},{"$f":"Import!E13346","v":0},{"$f":"Import!E13446","v":0},{"$f":"Import!E13546","v":0},{"$f":"Import!E13646","v":0}]
[38,{"$f":"Import!E12947","v":"Select"},{"$f":"Import!E13047","v":"Select"},{"$f":"Import!E13147","v":"Select"},{"$f":"Import!E13247","v":0},{"$f":"Import!E13347","v":0},{"$f":"Import!E13447","v":0},{"$f":"Import!E13547","v":0},{"$f":"Import!E13647","v":0}]
[39,{"$f":"Import!E12948","v":"Select"},{"$f":"Import!E13048","v":"Select"},{"$f":"Import!E13148","v":"Select"},{"$f":"Import!E13248","v":0},{"$f":"Import!E13348","v":0},{"$f":"Import!E13448","v":0},{"$f":"Import!E13548","v":0},{"$f":"Import!E13648","v":0}]
[40,{"$f":"Import!E12949","v":"Select"},{"$f":"Import!E13049","v":"Select"},{"$f":"Import!E13149","v":"Select"},{"$f":"Import!E13249","v":0},{"$f":"Import!E13349","v":0},{"$f":"Import!E13449","v":0},{"$f":"Import!E13549","v":0},{"$f":"Import!E13649","v":0}]
[41,{"$f":"Import!E12950","v":"Select"},{"$f":"Import!E13050","v":"Select"},{"$f":"Import!E13150","v":"Select"},{"$f":"Import!E13250","v":0},{"$f":"Import!E13350","v":0},{"$f":"Import!E13450","v":0},{"$f":"Import!E13550","v":0},{"$f":"Import!E13650","v":0}]
[42,{"$f":"Import!E12951","v":"Select"},{"$f":"Import!E13051","v":"Select"},{"$f":"Import!E13151","v":"Select"},{"$f":"Import!E13251","v":0},{"$f":"Import!E13351","v":0},{"$f":"Import!E13451","v":0},{"$f":"Import!E13551","v":0},{"$f":"Import!E13651","v":0}]
[43,{"$f":"Import!E12952","v":"Select"},{"$f":"Import!E13052","v":"Select"},{"$f":"Import!E13152","v":"Select"},{"$f":"Import!E13252","v":0},{"$f":"Import!E13352","v":0},{"$f":"Import!E13452","v":0},{"$f":"Import!E13552","v":0},{"$f":"Import!E13652","v":0}]
[44,{"$f":"Import!E12953","v":"Select"},{"$f":"Import!E13053","v":"Select"},{"$f":"Import!E13153","v":"Select"},{"$f":"Import!E13253","v":0},{"$f":"Import!E13353","v":0},{"$f":"Import!E13453","v":0},{"$f":"Import!E13553","v":0},{"$f":"Import!E13653","v":0}]
[45,{"$f":"Import!E12954","v":"Select"},{"$f":"Import!E13054","v":"Select"},{"$f":"Import!E13154","v":"Select"},{"$f":"Import!E13254","v":0},{"$f":"Import!E13354","v":0},{"$f":"Import!E13454","v":0},{"$f":"Import!E13554","v":0},{"$f":"Import!E13654","v":0}]
[46,{"$f":"Import!E12955","v":"Select"},{"$f":"Import!E13055","v":"Select"},{"$f":"Import!E13155","v":"Select"},{"$f":"Import!E13255","v":0},{"$f":"Import!E13355","v":0},{"$f":"Import!E13455","v":0},{"$f":"Import!E13555","v":0},{"$f":"Import!E13655","v":0}]
[47,{"$f":"Import!E12956","v":"Select"},{"$f":"Import!E13056","v":"Select"},{"$f":"Import!E13156","v":"Select"},{"$f":"Import!E13256","v":0},{"$f":"Import!E13356","v":0},{"$f":"Import!E13456","v":0},{"$f":"Import!E13556","v":0},{"$f":"Import!E13656","v":0}]
[48,{"$f":"Import!E12957","v":"Select"},{"$f":"Import!E13057","v":"Select"},{"$f":"Import!E13157","v":"Select"},{"$f":"Import!E13257","v":0},{"$f":"Import!E13357","v":0},{"$f":"Import!E13457","v":0},{"$f":"Import!E13557","v":0},{"$f":"Import!E13657","v":0}]
[49,{"$f":"Import!E12958","v":"Select"},{"$f":"Import!E13058","v":"Select"},{"$f":"Import!E13158","v":"Select"},{"$f":"Import!E13258","v":0},{"$f":"Import!E13358","v":0},{"$f":"Import!E13458","v":0},{"$f":"Import!E13558","v":0},{"$f":"Import!E13658","v":0}]
[50,{"$f":"Import!E12959","v":"Select"},{"$f":"Import!E13059","v":"Select"},{"$f":"Import!E13159","v":"Select"},{"$f":"Import!E13259","v":0},{"$f":"Import!E13359","v":0},{"$f":"Import!E13459","v":0},{"$f":"Import!E13559","v":0},{"$f":"Import!E13659","v":0}]
[51,{"$f":"Import!E12960","v":"Select"},{"$f":"Import!E13060","v":"Select"},{"$f":"Import!E13160","v":"Select"},{"$f":"Import!E13260","v":0},{"$f":"Import!E13360","v":0},{"$f":"Import!E13460","v":0},{"$f":"Import!E13560","v":0},{"$f":"Import!E13660","v":0}]
[52,{"$f":"Import!E12961","v":"Select"},{"$f":"Import!E13061","v":"Select"},{"$f":"Import!E13161","v":"Select"},{"$f":"Import!E13261","v":0},{"$f":"Import!E13361","v":0},{"$f":"Import!E13461","v":0},{"$f":"Import!E13561","v":0},{"$f":"Import!E13661","v":0}]
[53,{"$f":"Import!E12962","v":"Select"},{"$f":"Import!E13062","v":"Select"},{"$f":"Import!E13162","v":"Select"},{"$f":"Import!E13262","v":0},{"$f":"Import!E13362","v":0},{"$f":"Import!E13462","v":0},{"$f":"Import!E13562","v":0},{"$f":"Import!E13662","v":0}]
[54,{"$f":"Import!E12963","v":"Select"},{"$f":"Import!E13063","v":"Select"},{"$f":"Import!E13163","v":"Select"},{"$f":"Import!E13263","v":0},{"$f":"Import!E13363","v":0},{"$f":"Import!E13463","v":0},{"$f":"Import!E13563","v":0},{"$f":"Import!E13663","v":0}]
[55,{"$f":"Import!E12964","v":"Select"},{"$f":"Import!E13064","v":"Select"},{"$f":"Import!E13164","v":"Select"},{"$f":"Import!E13264","v":0},{"$f":"Import!E13364","v":0},{"$f":"Import!E13464","v":0},{"$f":"Import!E13564","v":0},{"$f":"Import!E13664","v":0}]
[56,{"$f":"Import!E12965","v":"Select"},{"$f":"Import!E13065","v":"Select"},{"$f":"Import!E13165","v":"Select"},{"$f":"Import!E13265","v":0},{"$f":"Import!E13365","v":0},{"$f":"Import!E13465","v":0},{"$f":"Import!E13565","v":0},{"$f":"Import!E13665","v":0}]
[57,{"$f":"Import!E12966","v":"Select"},{"$f":"Import!E13066","v":"Select"},{"$f":"Import!E13166","v":"Select"},{"$f":"Import!E13266","v":0},{"$f":"Import!E13366","v":0},{"$f":"Import!E13466","v":0},{"$f":"Import!E13566","v":0},{"$f":"Import!E13666","v":0}]
[58,{"$f":"Import!E12967","v":"Select"},{"$f":"Import!E13067","v":"Select"},{"$f":"Import!E13167","v":"Select"},{"$f":"Import!E13267","v":0},{"$f":"Import!E13367","v":0},{"$f":"Import!E13467","v":0},{"$f":"Import!E13567","v":0},{"$f":"Import!E13667","v":0}]
[59,{"$f":"Import!E12968","v":"Select"},{"$f":"Import!E13068","v":"Select"},{"$f":"Import!E13168","v":"Select"},{"$f":"Import!E13268","v":0},{"$f":"Import!E13368","v":0},{"$f":"Import!E13468","v":0},{"$f":"Import!E13568","v":0},{"$f":"Import!E13668","v":0}]
[60,{"$f":"Import!E12969","v":"Select"},{"$f":"Import!E13069","v":"Select"},{"$f":"Import!E13169","v":"Select"},{"$f":"Import!E13269","v":0},{"$f":"Import!E13369","v":0},{"$f":"Import!E13469","v":0},{"$f":"Import!E13569","v":0},{"$f":"Import!E13669","v":0}]
[61,{"$f":"Import!E12970","v":"Select"},{"$f":"Import!E13070","v":"Select"},{"$f":"Import!E13170","v":"Select"},{"$f":"Import!E13270","v":0},{"$f":"Import!E13370","v":0},{"$f":"Import!E13470","v":0},{"$f":"Import!E13570","v":0},{"$f":"Import!E13670","v":0}]
[62,{"$f":"Import!E12971","v":"Select"},{"$f":"Import!E13071","v":"Select"},{"$f":"Import!E13171","v":"Select"},{"$f":"Import!E13271","v":0},{"$f":"Import!E13371","v":0},{"$f":"Import!E13471","v":0},{"$f":"Import!E13571","v":0},{"$f":"Import!E13671","v":0}]
[63,{"$f":"Import!E12972","v":"Select"},{"$f":"Import!E13072","v":"Select"},{"$f":"Import!E13172","v":"Select"},{"$f":"Import!E13272","v":0},{"$f":"Import!E13372","v":0},{"$f":"Import!E13472","v":0},{"$f":"Import!E13572","v":0},{"$f":"Import!E13672","v":0}]
[64,{"$f":"Import!E12973","v":"Select"},{"$f":"Import!E13073","v":"Select"},{"$f":"Import!E13173","v":"Select"},{"$f":"Import!E13273","v":0},{"$f":"Import!E13373","v":0},{"$f":"Import!E13473","v":0},{"$f":"Import!E13573","v":0},{"$f":"Import!E13673","v":0}]
[65,{"$f":"Import!E12974","v":"Select"},{"$f":"Import!E13074","v":"Select"},{"$f":"Import!E13174","v":"Select"},{"$f":"Import!E13274","v":0},{"$f":"Import!E13374","v":0},{"$f":"Import!E13474","v":0},{"$f":"Import!E13574","v":0},{"$f":"Import!E13674","v":0}]
[66,{"$f":"Import!E12975","v":"Select"},{"$f":"Import!E13075","v":"Select"},{"$f":"Import!E13175","v":"Select"},{"$f":"Import!E13275","v":0},{"$f":"Import!E13375","v":0},{"$f":"Import!E13475","v":0},{"$f":"Import!E13575","v":0},{"$f":"Import!E13675","v":0}]
[{"$f":"A1194+1","v":67},{"$f":"Import!E12976","v":"Select"},{"$f":"Import!E13076","v":"Select"},{"$f":"Import!E13176","v":"Select"},{"$f":"Import!E13276","v":0},{"$f":"Import!E13376","v":0},{"$f":"Import!E13476","v":0},{"$f":"Import!E13576","v":0},{"$f":"Import!E13676","v":0}]
[68,{"$f":"Import!E12977","v":"Select"},{"$f":"Import!E13077","v":"Select"},{"$f":"Import!E13177","v":"Select"},{"$f":"Import!E13277","v":0},{"$f":"Import!E13377","v":0},{"$f":"Import!E13477","v":0},{"$f":"Import!E13577","v":0},{"$f":"Import!E13677","v":0}]
[69,{"$f":"Import!E12978","v":"Select"},{"$f":"Import!E13078","v":"Select"},{"$f":"Import!E13178","v":"Select"},{"$f":"Import!E13278","v":0},{"$f":"Import!E13378","v":0},{"$f":"Import!E13478","v":0},{"$f":"Import!E13578","v":0},{"$f":"Import!E13678","v":0}]
[70,{"$f":"Import!E12979","v":"Select"},{"$f":"Import!E13079","v":"Select"},{"$f":"Import!E13179","v":"Select"},{"$f":"Import!E13279","v":0},{"$f":"Import!E13379","v":0},{"$f":"Import!E13479","v":0},{"$f":"Import!E13579","v":0},{"$f":"Import!E13679","v":0}]
[71,{"$f":"Import!E12980","v":"Select"},{"$f":"Import!E13080","v":"Select"},{"$f":"Import!E13180","v":"Select"},{"$f":"Import!E13280","v":0},{"$f":"Import!E13380","v":0},{"$f":"Import!E13480","v":0},{"$f":"Import!E13580","v":0},{"$f":"Import!E13680","v":0}]
[72,{"$f":"Import!E12981","v":"Select"},{"$f":"Import!E13081","v":"Select"},{"$f":"Import!E13181","v":"Select"},{"$f":"Import!E13281","v":0},{"$f":"Import!E13381","v":0},{"$f":"Import!E13481","v":0},{"$f":"Import!E13581","v":0},{"$f":"Import!E13681","v":0}]
[73,{"$f":"Import!E12982","v":"Select"},{"$f":"Import!E13082","v":"Select"},{"$f":"Import!E13182","v":"Select"},{"$f":"Import!E13282","v":0},{"$f":"Import!E13382","v":0},{"$f":"Import!E13482","v":0},{"$f":"Import!E13582","v":0},{"$f":"Import!E13682","v":0}]
[74,{"$f":"Import!E12983","v":"Select"},{"$f":"Import!E13083","v":"Select"},{"$f":"Import!E13183","v":"Select"},{"$f":"Import!E13283","v":0},{"$f":"Import!E13383","v":0},{"$f":"Import!E13483","v":0},{"$f":"Import!E13583","v":0},{"$f":"Import!E13683","v":0}]
[75,{"$f":"Import!E12984","v":"Select"},{"$f":"Import!E13084","v":"Select"},{"$f":"Import!E13184","v":"Select"},{"$f":"Import!E13284","v":0},{"$f":"Import!E13384","v":0},{"$f":"Import!E13484","v":0},{"$f":"Import!E13584","v":0},{"$f":"Import!E13684","v":0}]
[76,{"$f":"Import!E12985","v":"Select"},{"$f":"Import!E13085","v":"Select"},{"$f":"Import!E13185","v":"Select"},{"$f":"Import!E13285","v":0},{"$f":"Import!E13385","v":0},{"$f":"Import!E13485","v":0},{"$f":"Import!E13585","v":0},{"$f":"Import!E13685","v":0}]
[77,{"$f":"Import!E12986","v":"Select"},{"$f":"Import!E13086","v":"Select"},{"$f":"Import!E13186","v":"Select"},{"$f":"Import!E13286","v":0},{"$f":"Import!E13386","v":0},{"$f":"Import!E13486","v":0},{"$f":"Import!E13586","v":0},{"$f":"Import!E13686","v":0}]
[78,{"$f":"Import!E12987","v":"Select"},{"$f":"Import!E13087","v":"Select"},{"$f":"Import!E13187","v":"Select"},{"$f":"Import!E13287","v":0},{"$f":"Import!E13387","v":0},{"$f":"Import!E13487","v":0},{"$f":"Import!E13587","v":0},{"$f":"Import!E13687","v":0}]
[79,{"$f":"Import!E12988","v":"Select"},{"$f":"Import!E13088","v":"Select"},{"$f":"Import!E13188","v":"Select"},{"$f":"Import!E13288","v":0},{"$f":"Import!E13388","v":0},{"$f":"Import!E13488","v":0},{"$f":"Import!E13588","v":0},{"$f":"Import!E13688","v":0}]
[80,{"$f":"Import!E12989","v":"Select"},{"$f":"Import!E13089","v":"Select"},{"$f":"Import!E13189","v":"Select"},{"$f":"Import!E13289","v":0},{"$f":"Import!E13389","v":0},{"$f":"Import!E13489","v":0},{"$f":"Import!E13589","v":0},{"$f":"Import!E13689","v":0}]
[81,{"$f":"Import!E12990","v":"Select"},{"$f":"Import!E13090","v":"Select"},{"$f":"Import!E13190","v":"Select"},{"$f":"Import!E13290","v":0},{"$f":"Import!E13390","v":0},{"$f":"Import!E13490","v":0},{"$f":"Import!E13590","v":0},{"$f":"Import!E13690","v":0}]
[82,{"$f":"Import!E12991","v":"Select"},{"$f":"Import!E13091","v":"Select"},{"$f":"Import!E13191","v":"Select"},{"$f":"Import!E13291","v":0},{"$f":"Import!E13391","v":0},{"$f":"Import!E13491","v":0},{"$f":"Import!E13591","v":0},{"$f":"Import!E13691","v":0}]
[83,{"$f":"Import!E12992","v":"Select"},{"$f":"Import!E13092","v":"Select"},{"$f":"Import!E13192","v":"Select"},{"$f":"Import!E13292","v":0},{"$f":"Import!E13392","v":0},{"$f":"Import!E13492","v":0},{"$f":"Import!E13592","v":0},{"$f":"Import!E13692","v":0}]
[84,{"$f":"Import!E12993","v":"Select"},{"$f":"Import!E13093","v":"Select"},{"$f":"Import!E13193","v":"Select"},{"$f":"Import!E13293","v":0},{"$f":"Import!E13393","v":0},{"$f":"Import!E13493","v":0},{"$f":"Import!E13593","v":0},{"$f":"Import!E13693","v":0}]
[85,{"$f":"Import!E12994","v":"Select"},{"$f":"Import!E13094","v":"Select"},{"$f":"Import!E13194","v":"Select"},{"$f":"Import!E13294","v":0},{"$f":"Import!E13394","v":0},{"$f":"Import!E13494","v":0},{"$f":"Import!E13594","v":0},{"$f":"Import!E13694","v":0}]
[86,{"$f":"Import!E12995","v":"Select"},{"$f":"Import!E13095","v":"Select"},{"$f":"Import!E13195","v":"Select"},{"$f":"Import!E13295","v":0},{"$f":"Import!E13395","v":0},{"$f":"Import!E13495","v":0},{"$f":"Import!E13595","v":0},{"$f":"Import!E13695","v":0}]
[87,{"$f":"Import!E12996","v":"Select"},{"$f":"Import!E13096","v":"Select"},{"$f":"Import!E13196","v":"Select"},{"$f":"Import!E13296","v":0},{"$f":"Import!E13396","v":0},{"$f":"Import!E13496","v":0},{"$f":"Import!E13596","v":0},{"$f":"Import!E13696","v":0}]
[88,{"$f":"Import!E12997","v":"Select"},{"$f":"Import!E13097","v":"Select"},{"$f":"Import!E13197","v":"Select"},{"$f":"Import!E13297","v":0},{"$f":"Import!E13397","v":0},{"$f":"Import!E13497","v":0},{"$f":"Import!E13597","v":0},{"$f":"Import!E13697","v":0}]
[89,{"$f":"Import!E12998","v":"Select"},{"$f":"Import!E13098","v":"Select"},{"$f":"Import!E13198","v":"Select"},{"$f":"Import!E13298","v":0},{"$f":"Import!E13398","v":0},{"$f":"Import!E13498","v":0},{"$f":"Import!E13598","v":0},{"$f":"Import!E13698","v":0}]
[90,{"$f":"Import!E12999","v":"Select"},{"$f":"Import!E13099","v":"Select"},{"$f":"Import!E13199","v":"Select"},{"$f":"Import!E13299","v":0},{"$f":"Import!E13399","v":0},{"$f":"Import!E13499","v":0},{"$f":"Import!E13599","v":0},{"$f":"Import!E13699","v":0}]
[91,{"$f":"Import!E13000","v":"Select"},{"$f":"Import!E13100","v":"Select"},{"$f":"Import!E13200","v":"Select"},{"$f":"Import!E13300","v":0},{"$f":"Import!E13400","v":0},{"$f":"Import!E13500","v":0},{"$f":"Import!E13600","v":0},{"$f":"Import!E13700","v":0}]
[92,{"$f":"Import!E13001","v":"Select"},{"$f":"Import!E13101","v":"Select"},{"$f":"Import!E13201","v":"Select"},{"$f":"Import!E13301","v":0},{"$f":"Import!E13401","v":0},{"$f":"Import!E13501","v":0},{"$f":"Import!E13601","v":0},{"$f":"Import!E13701","v":0}]
[93,{"$f":"Import!E13002","v":"Select"},{"$f":"Import!E13102","v":"Select"},{"$f":"Import!E13202","v":"Select"},{"$f":"Import!E13302","v":0},{"$f":"Import!E13402","v":0},{"$f":"Import!E13502","v":0},{"$f":"Import!E13602","v":0},{"$f":"Import!E13702","v":0}]
[94,{"$f":"Import!E13003","v":"Select"},{"$f":"Import!E13103","v":"Select"},{"$f":"Import!E13203","v":"Select"},{"$f":"Import!E13303","v":0},{"$f":"Import!E13403","v":0},{"$f":"Import!E13503","v":0},{"$f":"Import!E13603","v":0},{"$f":"Import!E13703","v":0}]
[95,{"$f":"Import!E13004","v":"Select"},{"$f":"Import!E13104","v":"Select"},{"$f":"Import!E13204","v":"Select"},{"$f":"Import!E13304","v":0},{"$f":"Import!E13404","v":0},{"$f":"Import!E13504","v":0},{"$f":"Import!E13604","v":0},{"$f":"Import!E13704","v":0}]
[96,{"$f":"Import!E13005","v":"Select"},{"$f":"Import!E13105","v":"Select"},{"$f":"Import!E13205","v":"Select"},{"$f":"Import!E13305","v":0},{"$f":"Import!E13405","v":0},{"$f":"Import!E13505","v":0},{"$f":"Import!E13605","v":0},{"$f":"Import!E13705","v":0}]
[97,{"$f":"Import!E13006","v":"Select"},{"$f":"Import!E13106","v":"Select"},{"$f":"Import!E13206","v":"Select"},{"$f":"Import!E13306","v":0},{"$f":"Import!E13406","v":0},{"$f":"Import!E13506","v":0},{"$f":"Import!E13606","v":0},{"$f":"Import!E13706","v":0}]
[98,{"$f":"Import!E13007","v":"Select"},{"$f":"Import!E13107","v":"Select"},{"$f":"Import!E13207","v":"Select"},{"$f":"Import!E13307","v":0},{"$f":"Import!E13407","v":0},{"$f":"Import!E13507","v":0},{"$f":"Import!E13607","v":0},{"$f":"Import!E13707","v":0}]
[99,{"$f":"Import!E13008","v":"Select"},{"$f":"Import!E13108","v":"Select"},{"$f":"Import!E13208","v":"Select"},{"$f":"Import!E13308","v":0},{"$f":"Import!E13408","v":0},{"$f":"Import!E13508","v":0},{"$f":"Import!E13608","v":0},{"$f":"Import!E13708","v":0}]
[100,{"$f":"Import!E13009","v":"Select"},{"$f":"Import!E13109","v":"Select"},{"$f":"Import!E13209","v":"Select"},{"$f":"Import!E13309","v":0},{"$f":"Import!E13409","v":0},{"$f":"Import!E13509","v":0},{"$f":"Import!E13609","v":0},{"$f":"Import!E13709","v":0}]
[]
[null,"Total Preferred Equities",null,null,{"$f":"SUM(E1129:E1228)","v":0},{"$f":"SUM(F1129:F1228)","v":0},{"$f":"IFERROR(SUMPRODUCT(G1129:G1228,$F1129:$F1228)/SUM($F1129:$F1228),0)","v":0},{"$f":"IFERROR(SUMPRODUCT(H1129:H1228,$F1129:$F1228)/SUM($F1129:$F1228),0)","v":0}]
[]
[null,"(F) COMMON EQUITIES"]
[]
[null,null,"Enter # of Asset Types",{"$f":"Import!E13710","v":0}]
[null,null,null,null,{"$f":"YEAR($C$3)","v":2023}]
[null,"Asset Type","Currency","Country","Fair Value","Comments"]
[1,{"$f":"Import!E13711","v":"Select"},{"$f":"Import!E13811","v":"Select"},{"$f":"Import!E13911","v":"Select"},{"$f":"Import!E14011","v":0},{"$f":"Import!E14111","v":0}]
[{"$f":"A1237+1","v":2},{"$f":"Import!E13712","v":"Select"},{"$f":"Import!E13812","v":"Select"},{"$f":"Import!E13912","v":"Select"},{"$f":"Import!E14012","v":0},{"$f":"Import!E14112","v":0}]
[{"$f":"A1238+1","v":3},{"$f":"Import!E13713","v":"Select"},{"$f":"Import!E13813","v":"Select"},{"$f":"Import!E13913","v":"Select"},{"$f":"Import!E14013","v":0},{"$f":"Import!E14113","v":0}]
[4,{"$f":"Import!E13714","v":"Select"},{"$f":"Import!E13814","v":"Select"},{"$f":"Import!E13914","v":"Select"},{"$f":"Import!E14014","v":0},{"$f":"Import!E14114","v":0}]
[5,{"$f":"Import!E13715","v":"Select"},{"$f":"Import!E13815","v":"Select"},{"$f":"Import!E13915","v":"Select"},{"$f":"Import!E14015","v":0},{"$f":"Import!E14115","v":0}]
[6,{"$f":"Import!E13716","v":"Select"},{"$f":"Import!E13816","v":"Select"},{"$f":"Import!E13916","v":"Select"},{"$f":"Import!E14016","v":0},{"$f":"Import!E14116","v":0}]
[7,{"$f":"Import!E13717","v":"Select"},{"$f":"Import!E13817","v":"Select"},{"$f":"Import!E13917","v":"Select"},{"$f":"Import!E14017","v":0},{"$f":"Import!E14117","v":0}]
[8,{"$f":"Import!E13718","v":"Select"},{"$f":"Import!E13818","v":"Select"},{"$f":"Import!E13918","v":"Select"},{"$f":"Import!E14018","v":0},{"$f":"Import!E14118","v":0}]
[9,{"$f":"Import!E13719","v":"Select"},{"$f":"Import!E13819","v":"Select"},{"$f":"Import!E13919","v":"Select"},{"$f":"Import!E14019","v":0},{"$f":"Import!E14119","v":0}]
[10,{"$f":"Import!E13720","v":"Select"},{"$f":"Import!E13820","v":"Select"},{"$f":"Import!E13920","v":"Select"},{"$f":"Import!E14020","v":0},{"$f":"Import!E14120","v":0}]
[11,{"$f":"Import!E13721","v":"Select"},{"$f":"Import!E13821","v":"Select"},{"$f":"Import!E13921","v":"Select"},{"$f":"Import!E14021","v":0},{"$f":"Import!E14121","v":0}]
[12,{"$f":"Import!E13722","v":"Select"},{"$f":"Import!E13822","v":"Select"},{"$f":"Import!E13922","v":"Select"},{"$f":"Import!E14022","v":0},{"$f":"Import!E14122","v":0}]
[13,{"$f":"Import!E13723","v":"Select"},{"$f":"Import!E13823","v":"Select"},{"$f":"Import!E13923","v":"Select"},{"$f":"Import!E14023","v":0},{"$f":"Import!E14123","v":0}]
[14,{"$f":"Import!E13724","v":"Select"},{"$f":"Import!E13824","v":"Select"},{"$f":"Import!E13924","v":"Select"},{"$f":"Import!E14024","v":0},{"$f":"Import!E14124","v":0}]
[15,{"$f":"Import!E13725","v":"Select"},{"$f":"Import!E13825","v":"Select"},{"$f":"Import!E13925","v":"Select"},{"$f":"Import!E14025","v":0},{"$f":"Import!E14125","v":0}]
[16,{"$f":"Import!E13726","v":"Select"},{"$f":"Import!E13826","v":"Select"},{"$f":"Import!E13926","v":"Select"},{"$f":"Import!E14026","v":0},{"$f":"Import!E14126","v":0}]
[17,{"$f":"Import!E13727","v":"Select"},{"$f":"Import!E13827","v":"Select"},{"$f":"Import!E13927","v":"Select"},{"$f":"Import!E14027","v":0},{"$f":"Import!E14127","v":0}]
[18,{"$f":"Import!E13728","v":"Select"},{"$f":"Import!E13828","v":"Select"},{"$f":"Import!E13928","v":"Select"},{"$f":"Import!E14028","v":0},{"$f":"Import!E14128","v":0}]
[19,{"$f":"Import!E13729","v":"Select"},{"$f":"Import!E13829","v":"Select"},{"$f":"Import!E13929","v":"Select"},{"$f":"Import!E14029","v":0},{"$f":"Import!E14129","v":0}]
[20,{"$f":"Import!E13730","v":"Select"},{"$f":"Import!E13830","v":"Select"},{"$f":"Import!E13930","v":"Select"},{"$f":"Import!E14030","v":0},{"$f":"Import!E14130","v":0}]
[21,{"$f":"Import!E13731","v":"Select"},{"$f":"Import!E13831","v":"Select"},{"$f":"Import!E13931","v":"Select"},{"$f":"Import!E14031","v":0},{"$f":"Import!E14131","v":0}]
[22,{"$f":"Import!E13732","v":"Select"},{"$f":"Import!E13832","v":"Select"},{"$f":"Import!E13932","v":"Select"},{"$f":"Import!E14032","v":0},{"$f":"Import!E14132","v":0}]
[23,{"$f":"Import!E13733","v":"Select"},{"$f":"Import!E13833","v":"Select"},{"$f":"Import!E13933","v":"Select"},{"$f":"Import!E14033","v":0},{"$f":"Import!E14133","v":0}]
[24,{"$f":"Import!E13734","v":"Select"},{"$f":"Import!E13834","v":"Select"},{"$f":"Import!E13934","v":"Select"},{"$f":"Import!E14034","v":0},{"$f":"Import!E14134","v":0}]
[25,{"$f":"Import!E13735","v":"Select"},{"$f":"Import!E13835","v":"Select"},{"$f":"Import!E13935","v":"Select"},{"$f":"Import!E14035","v":0},{"$f":"Import!E14135","v":0}]
[26,{"$f":"Import!E13736","v":"Select"},{"$f":"Import!E13836","v":"Select"},{"$f":"Import!E13936","v":"Select"},{"$f":"Import!E14036","v":0},{"$f":"Import!E14136","v":0}]
[27,{"$f":"Import!E13737","v":"Select"},{"$f":"Import!E13837","v":"Select"},{"$f":"Import!E13937","v":"Select"},{"$f":"Import!E14037","v":0},{"$f":"Import!E14137","v":0}]
[28,{"$f":"Import!E13738","v":"Select"},{"$f":"Import!E13838","v":"Select"},{"$f":"Import!E13938","v":"Select"},{"$f":"Import!E14038","v":0},{"$f":"Import!E14138","v":0}]
[29,{"$f":"Import!E13739","v":"Select"},{"$f":"Import!E13839","v":"Select"},{"$f":"Import!E13939","v":"Select"},{"$f":"Import!E14039","v":0},{"$f":"Import!E14139","v":0}]
[30,{"$f":"Import!E13740","v":"Select"},{"$f":"Import!E13840","v":"Select"},{"$f":"Import!E13940","v":"Select"},{"$f":"Import!E14040","v":0},{"$f":"Import!E14140","v":0}]
[31,{"$f":"Import!E13741","v":"Select"},{"$f":"Import!E13841","v":"Select"},{"$f":"Import!E13941","v":"Select"},{"$f":"Import!E14041","v":0},{"$f":"Import!E14141","v":0}]
[32,{"$f":"Import!E13742","v":"Select"},{"$f":"Import!E13842","v":"Select"},{"$f":"Import!E13942","v":"Select"},{"$f":"Import!E14042","v":0},{"$f":"Import!E14142","v":0}]
[33,{"$f":"Import!E13743","v":"Select"},{"$f":"Import!E13843","v":"Select"},{"$f":"Import!E13943","v":"Select"},{"$f":"Import!E14043","v":0},{"$f":"Import!E14143","v":0}]
[34,{"$f":"Import!E13744","v":"Select"},{"$f":"Import!E13844","v":"Select"},{"$f":"Import!E13944","v":"Select"},{"$f":"Import!E14044","v":0},{"$f":"Import!E14144","v":0}]
[35,{"$f":"Import!E13745","v":"Select"},{"$f":"Import!E13845","v":"Select"},{"$f":"Import!E13945","v":"Select"},{"$f":"Import!E14045","v":0},{"$f":"Import!E14145","v":0}]
[36,{"$f":"Import!E13746","v":"Select"},{"$f":"Import!E13846","v":"Select"},{"$f":"Import!E13946","v":"Select"},{"$f":"Import!E14046","v":0},{"$f":"Import!E14146","v":0}]
[37,{"$f":"Import!E13747","v":"Select"},{"$f":"Import!E13847","v":"Select"},{"$f":"Import!E13947","v":"Select"},{"$f":"Import!E14047","v":0},{"$f":"Import!E14147","v":0}]
[38,{"$f":"Import!E13748","v":"Select"},{"$f":"Import!E13848","v":"Select"},{"$f":"Import!E13948","v":"Select"},{"$f":"Import!E14048","v":0},{"$f":"Import!E14148","v":0}]
[39,{"$f":"Import!E13749","v":"Select"},{"$f":"Import!E13849","v":"Select"},{"$f":"Import!E13949","v":"Select"},{"$f":"Import!E14049","v":0},{"$f":"Import!E14149","v":0}]
[40,{"$f":"Import!E13750","v":"Select"},{"$f":"Import!E13850","v":"Select"},{"$f":"Import!E13950","v":"Select"},{"$f":"Import!E14050","v":0},{"$f":"Import!E14150","v":0}]
[41,{"$f":"Import!E13751","v":"Select"},{"$f":"Import!E13851","v":"Select"},{"$f":"Import!E13951","v":"Select"},{"$f":"Import!E14051","v":0},{"$f":"Import!E14151","v":0}]
[42,{"$f":"Import!E13752","v":"Select"},{"$f":"Import!E13852","v":"Select"},{"$f":"Import!E13952","v":"Select"},{"$f":"Import!E14052","v":0},{"$f":"Import!E14152","v":0}]
[43,{"$f":"Import!E13753","v":"Select"},{"$f":"Import!E13853","v":"Select"},{"$f":"Import!E13953","v":"Select"},{"$f":"Import!E14053","v":0},{"$f":"Import!E14153","v":0}]
[44,{"$f":"Import!E13754","v":"Select"},{"$f":"Import!E13854","v":"Select"},{"$f":"Import!E13954","v":"Select"},{"$f":"Import!E14054","v":0},{"$f":"Import!E14154","v":0}]
[45,{"$f":"Import!E13755","v":"Select"},{"$f":"Import!E13855","v":"Select"},{"$f":"Import!E13955","v":"Select"},{"$f":"Import!E14055","v":0},{"$f":"Import!E14155","v":0}]
[46,{"$f":"Import!E13756","v":"Select"},{"$f":"Import!E13856","v":"Select"},{"$f":"Import!E13956","v":"Select"},{"$f":"Import!E14056","v":0},{"$f":"Import!E14156","v":0}]
[47,{"$f":"Import!E13757","v":"Select"},{"$f":"Import!E13857","v":"Select"},{"$f":"Import!E13957","v":"Select"},{"$f":"Import!E14057","v":0},{"$f":"Import!E14157","v":0}]
[48,{"$f":"Import!E13758","v":"Select"},{"$f":"Import!E13858","v":"Select"},{"$f":"Import!E13958","v":"Select"},{"$f":"Import!E14058","v":0},{"$f":"Import!E14158","v":0}]
[49,{"$f":"Import!E13759","v":"Select"},{"$f":"Import!E13859","v":"Select"},{"$f":"Import!E13959","v":"Select"},{"$f":"Import!E14059","v":0},{"$f":"Import!E14159","v":0}]
[50,{"$f":"Import!E13760","v":"Select"},{"$f":"Import!E13860","v":"Select"},{"$f":"Import!E13960","v":"Select"},{"$f":"Import!E14060","v":0},{"$f":"Import!E14160","v":0}]
[51,{"$f":"Import!E13761","v":"Select"},{"$f":"Import!E13861","v":"Select"},{"$f":"Import!E13961","v":"Select"},{"$f":"Import!E14061","v":0},{"$f":"Import!E14161","v":0}]
[52,{"$f":"Import!E13762","v":"Select"},{"$f":"Import!E13862","v":"Select"},{"$f":"Import!E13962","v":"Select"},{"$f":"Import!E14062","v":0},{"$f":"Import!E14162","v":0}]
[53,{"$f":"Import!E13763","v":"Select"},{"$f":"Import!E13863","v":"Select"},{"$f":"Import!E13963","v":"Select"},{"$f":"Import!E14063","v":0},{"$f":"Import!E14163","v":0}]
[54,{"$f":"Import!E13764","v":"Select"},{"$f":"Import!E13864","v":"Select"},{"$f":"Import!E13964","v":"Select"},{"$f":"Import!E14064","v":0},{"$f":"Import!E14164","v":0}]
[55,{"$f":"Import!E13765","v":"Select"},{"$f":"Import!E13865","v":"Select"},{"$f":"Import!E13965","v":"Select"},{"$f":"Import!E14065","v":0},{"$f":"Import!E14165","v":0}]
[56,{"$f":"Import!E13766","v":"Select"},{"$f":"Import!E13866","v":"Select"},{"$f":"Import!E13966","v":"Select"},{"$f":"Import!E14066","v":0},{"$f":"Import!E14166","v":0}]
[57,{"$f":"Import!E13767","v":"Select"},{"$f":"Import!E13867","v":"Select"},{"$f":"Import!E13967","v":"Select"},{"$f":"Import!E14067","v":0},{"$f":"Import!E14167","v":0}]
[58,{"$f":"Import!E13768","v":"Select"},{"$f":"Import!E13868","v":"Select"},{"$f":"Import!E13968","v":"Select"},{"$f":"Import!E14068","v":0},{"$f":"Import!E14168","v":0}]
[59,{"$f":"Import!E13769","v":"Select"},{"$f":"Import!E13869","v":"Select"},{"$f":"Import!E13969","v":"Select"},{"$f":"Import!E14069","v":0},{"$f":"Import!E14169","v":0}]
[60,{"$f":"Import!E13770","v":"Select"},{"$f":"Import!E13870","v":"Select"},{"$f":"Import!E13970","v":"Select"},{"$f":"Import!E14070","v":0},{"$f":"Import!E14170","v":0}]
[61,{"$f":"Import!E13771","v":"Select"},{"$f":"Import!E13871","v":"Select"},{"$f":"Import!E13971","v":"Select"},{"$f":"Import!E14071","v":0},{"$f":"Import!E14171","v":0}]
[62,{"$f":"Import!E13772","v":"Select"},{"$f":"Import!E13872","v":"Select"},{"$f":"Import!E13972","v":"Select"},{"$f":"Import!E14072","v":0},{"$f":"Import!E14172","v":0}]
[63,{"$f":"Import!E13773","v":"Select"},{"$f":"Import!E13873","v":"Select"},{"$f":"Import!E13973","v":"Select"},{"$f":"Import!E14073","v":0},{"$f":"Import!E14173","v":0}]
[64,{"$f":"Import!E13774","v":"Select"},{"$f":"Import!E13874","v":"Select"},{"$f":"Import!E13974","v":"Select"},{"$f":"Import!E14074","v":0},{"$f":"Import!E14174","v":0}]
[65,{"$f":"Import!E13775","v":"Select"},{"$f":"Import!E13875","v":"Select"},{"$f":"Import!E13975","v":"Select"},{"$f":"Import!E14075","v":0},{"$f":"Import!E14175","v":0}]
[66,{"$f":"Import!E13776","v":"Select"},{"$f":"Import!E13876","v":"Select"},{"$f":"Import!E13976","v":"Select"},{"$f":"Import!E14076","v":0},{"$f":"Import!E14176","v":0}]
[{"$f":"A1302+1","v":67},{"$f":"Import!E13777","v":"Select"},{"$f":"Import!E13877","v":"Select"},{"$f":"Import!E13977","v":"Select"},{"$f":"Import!E14077","v":0},{"$f":"Import!E14177","v":0}]
[68,{"$f":"Import!E13778","v":"Select"},{"$f":"Import!E13878","v":"Select"},{"$f":"Import!E13978","v":"Select"},{"$f":"Import!E14078","v":0},{"$f":"Import!E14178","v":0}]
[69,{"$f":"Import!E13779","v":"Select"},{"$f":"Import!E13879","v":"Select"},{"$f":"Import!E13979","v":"Select"},{"$f":"Import!E14079","v":0},{"$f":"Import!E14179","v":0}]
[70,{"$f":"Import!E13780","v":"Select"},{"$f":"Import!E13880","v":"Select"},{"$f":"Import!E13980","v":"Select"},{"$f":"Import!E14080","v":0},{"$f":"Import!E14180","v":0}]
[71,{"$f":"Import!E13781","v":"Select"},{"$f":"Import!E13881","v":"Select"},{"$f":"Import!E13981","v":"Select"},{"$f":"Import!E14081","v":0},{"$f":"Import!E14181","v":0}]
[72,{"$f":"Import!E13782","v":"Select"},{"$f":"Import!E13882","v":"Select"},{"$f":"Import!E13982","v":"Select"},{"$f":"Import!E14082","v":0},{"$f":"Import!E14182","v":0}]
[73,{"$f":"Import!E13783","v":"Select"},{"$f":"Import!E13883","v":"Select"},{"$f":"Import!E13983","v":"Select"},{"$f":"Import!E14083","v":0},{"$f":"Import!E14183","v":0}]
[74,{"$f":"Import!E13784","v":"Select"},{"$f":"Import!E13884","v":"Select"},{"$f":"Import!E13984","v":"Select"},{"$f":"Import!E14084","v":0},{"$f":"Import!E14184","v":0}]
[75,{"$f":"Import!E13785","v":"Select"},{"$f":"Import!E13885","v":"Select"},{"$f":"Import!E13985","v":"Select"},{"$f":"Import!E14085","v":0},{"$f":"Import!E14185","v":0}]
[76,{"$f":"Import!E13786","v":"Select"},{"$f":"Import!E13886","v":"Select"},{"$f":"Import!E13986","v":"Select"},{"$f":"Import!E14086","v":0},{"$f":"Import!E14186","v":0}]
[77,{"$f":"Import!E13787","v":"Select"},{"$f":"Import!E13887","v":"Select"},{"$f":"Import!E13987","v":"Select"},{"$f":"Import!E14087","v":0},{"$f":"Import!E14187","v":0}]
[78,{"$f":"Import!E13788","v":"Select"},{"$f":"Import!E13888","v":"Select"},{"$f":"Import!E13988","v":"Select"},{"$f":"Import!E14088","v":0},{"$f":"Import!E14188","v":0}]
[79,{"$f":"Import!E13789","v":"Select"},{"$f":"Import!E13889","v":"Select"},{"$f":"Import!E13989","v":"Select"},{"$f":"Import!E14089","v":0},{"$f":"Import!E14189","v":0}]
[80,{"$f":"Import!E13790","v":"Select"},{"$f":"Import!E13890","v":"Select"},{"$f":"Import!E13990","v":"Select"},{"$f":"Import!E14090","v":0},{"$f":"Import!E14190","v":0}]
[81,{"$f":"Import!E13791","v":"Select"},{"$f":"Import!E13891","v":"Select"},{"$f":"Import!E13991","v":"Select"},{"$f":"Import!E14091","v":0},{"$f":"Import!E14191","v":0}]
[82,{"$f":"Import!E13792","v":"Select"},{"$f":"Import!E13892","v":"Select"},{"$f":"Import!E13992","v":"Select"},{"$f":"Import!E14092","v":0},{"$f":"Import!E14192","v":0}]
[83,{"$f":"Import!E13793","v":"Select"},{"$f":"Import!E13893","v":"Select"},{"$f":"Import!E13993","v":"Select"},{"$f":"Import!E14093","v":0},{"$f":"Import!E14193","v":0}]
[84,{"$f":"Import!E13794","v":"Select"},{"$f":"Import!E13894","v":"Select"},{"$f":"Import!E13994","v":"Select"},{"$f":"Import!E14094","v":0},{"$f":"Import!E14194","v":0}]
[85,{"$f":"Import!E13795","v":"Select"},{"$f":"Import!E13895","v":"Select"},{"$f":"Import!E13995","v":"Select"},{"$f":"Import!E14095","v":0},{"$f":"Import!E14195","v":0}]
[86,{"$f":"Import!E13796","v":"Select"},{"$f":"Import!E13896","v":"Select"},{"$f":"Import!E13996","v":"Select"},{"$f":"Import!E14096","v":0},{"$f":"Import!E14196","v":0}]
[87,{"$f":"Import!E13797","v":"Select"},{"$f":"Import!E13897","v":"Select"},{"$f":"Import!E13997","v":"Select"},{"$f":"Import!E14097","v":0},{"$f":"Import!E14197","v":0}]
[88,{"$f":"Import!E13798","v":"Select"},{"$f":"Import!E13898","v":"Select"},{"$f":"Import!E13998","v":"Select"},{"$f":"Import!E14098","v":0},{"$f":"Import!E14198","v":0}]
[89,{"$f":"Import!E13799","v":"Select"},{"$f":"Import!E13899","v":"Select"},{"$f":"Import!E13999","v":"Select"},{"$f":"Import!E14099","v":0},{"$f":"Import!E14199","v":0}]
[90,{"$f":"Import!E13800","v":"Select"},{"$f":"Import!E13900","v":"Select"},{"$f":"Import!E14000","v":"Select"},{"$f":"Import!E14100","v":0},{"$f":"Import!E14200","v":0}]
[91,{"$f":"Import!E13801","v":"Select"},{"$f":"Import!E13901","v":"Select"},{"$f":"Import!E14001","v":"Select"},{"$f":"Import!E14101","v":0},{"$f":"Import!E14201","v":0}]
[92,{"$f":"Import!E13802","v":"Select"},{"$f":"Import!E13902","v":"Select"},{"$f":"Import!E14002","v":"Select"},{"$f":"Import!E14102","v":0},{"$f":"Import!E14202","v":0}]
[93,{"$f":"Import!E13803","v":"Select"},{"$f":"Import!E13903","v":"Select"},{"$f":"Import!E14003","v":"Select"},{"$f":"Import!E14103","v":0},{"$f":"Import!E14203","v":0}]
[94,{"$f":"Import!E13804","v":"Select"},{"$f":"Import!E13904","v":"Select"},{"$f":"Import!E14004","v":"Select"},{"$f":"Import!E14104","v":0},{"$f":"Import!E14204","v":0}]
[95,{"$f":"Import!E13805","v":"Select"},{"$f":"Import!E13905","v":"Select"},{"$f":"Import!E14005","v":"Select"},{"$f":"Import!E14105","v":0},{"$f":"Import!E14205","v":0}]
[96,{"$f":"Import!E13806","v":"Select"},{"$f":"Import!E13906","v":"Select"},{"$f":"Import!E14006","v":"Select"},{"$f":"Import!E14106","v":0},{"$f":"Import!E14206","v":0}]
[97,{"$f":"Import!E13807","v":"Select"},{"$f":"Import!E13907","v":"Select"},{"$f":"Import!E14007","v":"Select"},{"$f":"Import!E14107","v":0},{"$f":"Import!E14207","v":0}]
[98,{"$f":"Import!E13808","v":"Select"},{"$f":"Import!E13908","v":"Select"},{"$f":"Import!E14008","v":"Select"},{"$f":"Import!E14108","v":0},{"$f":"Import!E14208","v":0}]
[99,{"$f":"Import!E13809","v":"Select"},{"$f":"Import!E13909","v":"Select"},{"$f":"Import!E14009","v":"Select"},{"$f":"Import!E14109","v":0},{"$f":"Import!E14209","v":0}]
[100,{"$f":"Import!E13810","v":"Select"},{"$f":"Import!E13910","v":"Select"},{"$f":"Import!E14010","v":"Select"},{"$f":"Import!E14110","v":0},{"$f":"Import!E14210","v":0}]
[]
[null,"Total Common Equities",null,null,{"$f":"SUM(E1237:E1336)","v":0}]
[]
[null,"(G) REAL ESTATE"]
[]
[null,null,"Enter # of Asset Types",{"$f":"Import!E14211","v":0}]
[null,null,null,null,null,{"$f":"YEAR($C$3)","v":2023},2023]
[null,"Asset Type","Currency","Country","Purpose","Cost","Fair Value","Comments"]
[1,{"$f":"Import!E14212","v":"Select"},{"$f":"Import!E14312","v":"Select"},{"$f":"Import!E14412","v":"Select"},{"$f":"Import!E14512","v":"Select"},{"$f":"Import!E14612","v":0},{"$f":"Import!E14712","v":0},{"$f":"Import!E14812","v":0}]
[{"$f":"A1345+1","v":2},{"$f":"Import!E14213","v":"Select"},{"$f":"Import!E14313","v":"Select"},{"$f":"Import!E14413","v":"Select"},"Select",{"$f":"Import!E14613","v":0},{"$f":"Import!E14713","v":0},{"$f":"Import!E14813","v":0}]
[{"$f":"A1346+1","v":3},{"$f":"Import!E14214","v":"Select"},{"$f":"Import!E14314","v":"Select"},{"$f":"Import!E14414","v":"Select"},"Select",{"$f":"Import!E14614","v":0},{"$f":"Import!E14714","v":0},{"$f":"Import!E14814","v":0}]
[4,{"$f":"Import!E14215","v":"Select"},{"$f":"Import!E14315","v":"Select"},{"$f":"Import!E14415","v":"Select"},"Select",{"$f":"Import!E14615","v":0},{"$f":"Import!E14715","v":0},{"$f":"Import!E14815","v":0}]
[5,{"$f":"Import!E14216","v":"Select"},{"$f":"Import!E14316","v":"Select"},{"$f":"Import!E14416","v":"Select"},"Select",{"$f":"Import!E14616","v":0},{"$f":"Import!E14716","v":0},{"$f":"Import!E14816","v":0}]
[6,{"$f":"Import!E14217","v":"Select"},{"$f":"Import!E14317","v":"Select"},{"$f":"Import!E14417","v":"Select"},"Select",{"$f":"Import!E14617","v":0},{"$f":"Import!E14717","v":0},{"$f":"Import!E14817","v":0}]
[7,{"$f":"Import!E14218","v":"Select"},{"$f":"Import!E14318","v":"Select"},{"$f":"Import!E14418","v":"Select"},"Select",{"$f":"Import!E14618","v":0},{"$f":"Import!E14718","v":0},{"$f":"Import!E14818","v":0}]
[8,{"$f":"Import!E14219","v":"Select"},{"$f":"Import!E14319","v":"Select"},{"$f":"Import!E14419","v":"Select"},"Select",{"$f":"Import!E14619","v":0},{"$f":"Import!E14719","v":0},{"$f":"Import!E14819","v":0}]
[9,{"$f":"Import!E14220","v":"Select"},{"$f":"Import!E14320","v":"Select"},{"$f":"Import!E14420","v":"Select"},"Select",{"$f":"Import!E14620","v":0},{"$f":"Import!E14720","v":0},{"$f":"Import!E14820","v":0}]
[10,{"$f":"Import!E14221","v":"Select"},{"$f":"Import!E14321","v":"Select"},{"$f":"Import!E14421","v":"Select"},"Select",{"$f":"Import!E14621","v":0},{"$f":"Import!E14721","v":0},{"$f":"Import!E14821","v":0}]
[11,{"$f":"Import!E14222","v":"Select"},{"$f":"Import!E14322","v":"Select"},{"$f":"Import!E14422","v":"Select"},"Select",{"$f":"Import!E14622","v":0},{"$f":"Import!E14722","v":0},{"$f":"Import!E14822","v":0}]
[12,{"$f":"Import!E14223","v":"Select"},{"$f":"Import!E14323","v":"Select"},{"$f":"Import!E14423","v":"Select"},"Select",{"$f":"Import!E14623","v":0},{"$f":"Import!E14723","v":0},{"$f":"Import!E14823","v":0}]
[13,{"$f":"Import!E14224","v":"Select"},{"$f":"Import!E14324","v":"Select"},{"$f":"Import!E14424","v":"Select"},"Select",{"$f":"Import!E14624","v":0},{"$f":"Import!E14724","v":0},{"$f":"Import!E14824","v":0}]
[14,{"$f":"Import!E14225","v":"Select"},{"$f":"Import!E14325","v":"Select"},{"$f":"Import!E14425","v":"Select"},"Select",{"$f":"Import!E14625","v":0},{"$f":"Import!E14725","v":0},{"$f":"Import!E14825","v":0}]
[15,{"$f":"Import!E14226","v":"Select"},{"$f":"Import!E14326","v":"Select"},{"$f":"Import!E14426","v":"Select"},"Select",{"$f":"Import!E14626","v":0},{"$f":"Import!E14726","v":0},{"$f":"Import!E14826","v":0}]
[16,{"$f":"Import!E14227","v":"Select"},{"$f":"Import!E14327","v":"Select"},{"$f":"Import!E14427","v":"Select"},"Select",{"$f":"Import!E14627","v":0},{"$f":"Import!E14727","v":0},{"$f":"Import!E14827","v":0}]
[17,{"$f":"Import!E14228","v":"Select"},{"$f":"Import!E14328","v":"Select"},{"$f":"Import!E14428","v":"Select"},"Select",{"$f":"Import!E14628","v":0},{"$f":"Import!E14728","v":0},{"$f":"Import!E14828","v":0}]
[18,{"$f":"Import!E14229","v":"Select"},{"$f":"Import!E14329","v":"Select"},{"$f":"Import!E14429","v":"Select"},"Select",{"$f":"Import!E14629","v":0},{"$f":"Import!E14729","v":0},{"$f":"Import!E14829","v":0}]
[19,{"$f":"Import!E14230","v":"Select"},{"$f":"Import!E14330","v":"Select"},{"$f":"Import!E14430","v":"Select"},"Select",{"$f":"Import!E14630","v":0},{"$f":"Import!E14730","v":0},{"$f":"Import!E14830","v":0}]
[20,{"$f":"Import!E14231","v":"Select"},{"$f":"Import!E14331","v":"Select"},{"$f":"Import!E14431","v":"Select"},"Select",{"$f":"Import!E14631","v":0},{"$f":"Import!E14731","v":0},{"$f":"Import!E14831","v":0}]
[21,{"$f":"Import!E14232","v":"Select"},{"$f":"Import!E14332","v":"Select"},{"$f":"Import!E14432","v":"Select"},"Select",{"$f":"Import!E14632","v":0},{"$f":"Import!E14732","v":0},{"$f":"Import!E14832","v":0}]
[22,{"$f":"Import!E14233","v":"Select"},{"$f":"Import!E14333","v":"Select"},{"$f":"Import!E14433","v":"Select"},"Select",{"$f":"Import!E14633","v":0},{"$f":"Import!E14733","v":0},{"$f":"Import!E14833","v":0}]
[23,{"$f":"Import!E14234","v":"Select"},{"$f":"Import!E14334","v":"Select"},{"$f":"Import!E14434","v":"Select"},"Select",{"$f":"Import!E14634","v":0},{"$f":"Import!E14734","v":0},{"$f":"Import!E14834","v":0}]
[24,{"$f":"Import!E14235","v":"Select"},{"$f":"Import!E14335","v":"Select"},{"$f":"Import!E14435","v":"Select"},"Select",{"$f":"Import!E14635","v":0},{"$f":"Import!E14735","v":0},{"$f":"Import!E14835","v":0}]
[25,{"$f":"Import!E14236","v":"Select"},{"$f":"Import!E14336","v":"Select"},{"$f":"Import!E14436","v":"Select"},"Select",{"$f":"Import!E14636","v":0},{"$f":"Import!E14736","v":0},{"$f":"Import!E14836","v":0}]
[26,{"$f":"Import!E14237","v":"Select"},{"$f":"Import!E14337","v":"Select"},{"$f":"Import!E14437","v":"Select"},"Select",{"$f":"Import!E14637","v":0},{"$f":"Import!E14737","v":0},{"$f":"Import!E14837","v":0}]
[27,{"$f":"Import!E14238","v":"Select"},{"$f":"Import!E14338","v":"Select"},{"$f":"Import!E14438","v":"Select"},"Select",{"$f":"Import!E14638","v":0},{"$f":"Import!E14738","v":0},{"$f":"Import!E14838","v":0}]
[28,{"$f":"Import!E14239","v":"Select"},{"$f":"Import!E14339","v":"Select"},{"$f":"Import!E14439","v":"Select"},"Select",{"$f":"Import!E14639","v":0},{"$f":"Import!E14739","v":0},{"$f":"Import!E14839","v":0}]
[29,{"$f":"Import!E14240","v":"Select"},{"$f":"Import!E14340","v":"Select"},{"$f":"Import!E14440","v":"Select"},"Select",{"$f":"Import!E14640","v":0},{"$f":"Import!E14740","v":0},{"$f":"Import!E14840","v":0}]
[30,{"$f":"Import!E14241","v":"Select"},{"$f":"Import!E14341","v":"Select"},{"$f":"Import!E14441","v":"Select"},"Select",{"$f":"Import!E14641","v":0},{"$f":"Import!E14741","v":0},{"$f":"Import!E14841","v":0}]
[31,{"$f":"Import!E14242","v":"Select"},{"$f":"Import!E14342","v":"Select"},{"$f":"Import!E14442","v":"Select"},"Select",{"$f":"Import!E14642","v":0},{"$f":"Import!E14742","v":0},{"$f":"Import!E14842","v":0}]
[32,{"$f":"Import!E14243","v":"Select"},{"$f":"Import!E14343","v":"Select"},{"$f":"Import!E14443","v":"Select"},"Select",{"$f":"Import!E14643","v":0},{"$f":"Import!E14743","v":0},{"$f":"Import!E14843","v":0}]
[33,{"$f":"Import!E14244","v":"Select"},{"$f":"Import!E14344","v":"Select"},{"$f":"Import!E14444","v":"Select"},"Select",{"$f":"Import!E14644","v":0},{"$f":"Import!E14744","v":0},{"$f":"Import!E14844","v":0}]
[34,{"$f":"Import!E14245","v":"Select"},{"$f":"Import!E14345","v":"Select"},{"$f":"Import!E14445","v":"Select"},"Select",{"$f":"Import!E14645","v":0},{"$f":"Import!E14745","v":0},{"$f":"Import!E14845","v":0}]
[35,{"$f":"Import!E14246","v":"Select"},{"$f":"Import!E14346","v":"Select"},{"$f":"Import!E14446","v":"Select"},"Select",{"$f":"Import!E14646","v":0},{"$f":"Import!E14746","v":0},{"$f":"Import!E14846","v":0}]
[36,{"$f":"Import!E14247","v":"Select"},{"$f":"Import!E14347","v":"Select"},{"$f":"Import!E14447","v":"Select"},"Select",{"$f":"Import!E14647","v":0},{"$f":"Import!E14747","v":0},{"$f":"Import!E14847","v":0}]
[37,{"$f":"Import!E14248","v":"Select"},{"$f":"Import!E14348","v":"Select"},{"$f":"Import!E14448","v":"Select"},"Select",{"$f":"Import!E14648","v":0},{"$f":"Import!E14748","v":0},{"$f":"Import!E14848","v":0}]
[38,{"$f":"Import!E14249","v":"Select"},{"$f":"Import!E14349","v":"Select"},{"$f":"Import!E14449","v":"Select"},"Select",{"$f":"Import!E14649","v":0},{"$f":"Import!E14749","v":0},{"$f":"Import!E14849","v":0}]
[39,{"$f":"Import!E14250","v":"Select"},{"$f":"Import!E14350","v":"Select"},{"$f":"Import!E14450","v":"Select"},"Select",{"$f":"Import!E14650","v":0},{"$f":"Import!E14750","v":0},{"$f":"Import!E14850","v":0}]
[40,{"$f":"Import!E14251","v":"Select"},{"$f":"Import!E14351","v":"Select"},{"$f":"Import!E14451","v":"Select"},"Select",{"$f":"Import!E14651","v":0},{"$f":"Import!E14751","v":0},{"$f":"Import!E14851","v":0}]
[41,{"$f":"Import!E14252","v":"Select"},{"$f":"Import!E14352","v":"Select"},{"$f":"Import!E14452","v":"Select"},"Select",{"$f":"Import!E14652","v":0},{"$f":"Import!E14752","v":0},{"$f":"Import!E14852","v":0}]
[42,{"$f":"Import!E14253","v":"Select"},{"$f":"Import!E14353","v":"Select"},{"$f":"Import!E14453","v":"Select"},"Select",{"$f":"Import!E14653","v":0},{"$f":"Import!E14753","v":0},{"$f":"Import!E14853","v":0}]
[43,{"$f":"Import!E14254","v":"Select"},{"$f":"Import!E14354","v":"Select"},{"$f":"Import!E14454","v":"Select"},"Select",{"$f":"Import!E14654","v":0},{"$f":"Import!E14754","v":0},{"$f":"Import!E14854","v":0}]
[44,{"$f":"Import!E14255","v":"Select"},{"$f":"Import!E14355","v":"Select"},{"$f":"Import!E14455","v":"Select"},"Select",{"$f":"Import!E14655","v":0},{"$f":"Import!E14755","v":0},{"$f":"Import!E14855","v":0}]
[45,{"$f":"Import!E14256","v":"Select"},{"$f":"Import!E14356","v":"Select"},{"$f":"Import!E14456","v":"Select"},"Select",{"$f":"Import!E14656","v":0},{"$f":"Import!E14756","v":0},{"$f":"Import!E14856","v":0}]
[46,{"$f":"Import!E14257","v":"Select"},{"$f":"Import!E14357","v":"Select"},{"$f":"Import!E14457","v":"Select"},"Select",{"$f":"Import!E14657","v":0},{"$f":"Import!E14757","v":0},{"$f":"Import!E14857","v":0}]
[47,{"$f":"Import!E14258","v":"Select"},{"$f":"Import!E14358","v":"Select"},{"$f":"Import!E14458","v":"Select"},"Select",{"$f":"Import!E14658","v":0},{"$f":"Import!E14758","v":0},{"$f":"Import!E14858","v":0}]
[48,{"$f":"Import!E14259","v":"Select"},{"$f":"Import!E14359","v":"Select"},{"$f":"Import!E14459","v":"Select"},"Select",{"$f":"Import!E14659","v":0},{"$f":"Import!E14759","v":0},{"$f":"Import!E14859","v":0}]
[49,{"$f":"Import!E14260","v":"Select"},{"$f":"Import!E14360","v":"Select"},{"$f":"Import!E14460","v":"Select"},"Select",{"$f":"Import!E14660","v":0},{"$f":"Import!E14760","v":0},{"$f":"Import!E14860","v":0}]
[50,{"$f":"Import!E14261","v":"Select"},{"$f":"Import!E14361","v":"Select"},{"$f":"Import!E14461","v":"Select"},"Select",{"$f":"Import!E14661","v":0},{"$f":"Import!E14761","v":0},{"$f":"Import!E14861","v":0}]
[51,{"$f":"Import!E14262","v":"Select"},{"$f":"Import!E14362","v":"Select"},{"$f":"Import!E14462","v":"Select"},"Select",{"$f":"Import!E14662","v":0},{"$f":"Import!E14762","v":0},{"$f":"Import!E14862","v":0}]
[52,{"$f":"Import!E14263","v":"Select"},{"$f":"Import!E14363","v":"Select"},{"$f":"Import!E14463","v":"Select"},"Select",{"$f":"Import!E14663","v":0},{"$f":"Import!E14763","v":0},{"$f":"Import!E14863","v":0}]
[53,{"$f":"Import!E14264","v":"Select"},{"$f":"Import!E14364","v":"Select"},{"$f":"Import!E14464","v":"Select"},"Select",{"$f":"Import!E14664","v":0},{"$f":"Import!E14764","v":0},{"$f":"Import!E14864","v":0}]
[54,{"$f":"Import!E14265","v":"Select"},{"$f":"Import!E14365","v":"Select"},{"$f":"Import!E14465","v":"Select"},"Select",{"$f":"Import!E14665","v":0},{"$f":"Import!E14765","v":0},{"$f":"Import!E14865","v":0}]
[55,{"$f":"Import!E14266","v":"Select"},{"$f":"Import!E14366","v":"Select"},{"$f":"Import!E14466","v":"Select"},"Select",{"$f":"Import!E14666","v":0},{"$f":"Import!E14766","v":0},{"$f":"Import!E14866","v":0}]
[56,{"$f":"Import!E14267","v":"Select"},{"$f":"Import!E14367","v":"Select"},{"$f":"Import!E14467","v":"Select"},"Select",{"$f":"Import!E14667","v":0},{"$f":"Import!E14767","v":0},{"$f":"Import!E14867","v":0}]
[57,{"$f":"Import!E14268","v":"Select"},{"$f":"Import!E14368","v":"Select"},{"$f":"Import!E14468","v":"Select"},"Select",{"$f":"Import!E14668","v":0},{"$f":"Import!E14768","v":0},{"$f":"Import!E14868","v":0}]
[58,{"$f":"Import!E14269","v":"Select"},{"$f":"Import!E14369","v":"Select"},{"$f":"Import!E14469","v":"Select"},"Select",{"$f":"Import!E14669","v":0},{"$f":"Import!E14769","v":0},{"$f":"Import!E14869","v":0}]
[59,{"$f":"Import!E14270","v":"Select"},{"$f":"Import!E14370","v":"Select"},{"$f":"Import!E14470","v":"Select"},"Select",{"$f":"Import!E14670","v":0},{"$f":"Import!E14770","v":0},{"$f":"Import!E14870","v":0}]
[60,{"$f":"Import!E14271","v":"Select"},{"$f":"Import!E14371","v":"Select"},{"$f":"Import!E14471","v":"Select"},"Select",{"$f":"Import!E14671","v":0},{"$f":"Import!E14771","v":0},{"$f":"Import!E14871","v":0}]
[61,{"$f":"Import!E14272","v":"Select"},{"$f":"Import!E14372","v":"Select"},{"$f":"Import!E14472","v":"Select"},"Select",{"$f":"Import!E14672","v":0},{"$f":"Import!E14772","v":0},{"$f":"Import!E14872","v":0}]
[62,{"$f":"Import!E14273","v":"Select"},{"$f":"Import!E14373","v":"Select"},{"$f":"Import!E14473","v":"Select"},"Select",{"$f":"Import!E14673","v":0},{"$f":"Import!E14773","v":0},{"$f":"Import!E14873","v":0}]
[63,{"$f":"Import!E14274","v":"Select"},{"$f":"Import!E14374","v":"Select"},{"$f":"Import!E14474","v":"Select"},"Select",{"$f":"Import!E14674","v":0},{"$f":"Import!E14774","v":0},{"$f":"Import!E14874","v":0}]
[64,{"$f":"Import!E14275","v":"Select"},{"$f":"Import!E14375","v":"Select"},{"$f":"Import!E14475","v":"Select"},"Select",{"$f":"Import!E14675","v":0},{"$f":"Import!E14775","v":0},{"$f":"Import!E14875","v":0}]
[65,{"$f":"Import!E14276","v":"Select"},{"$f":"Import!E14376","v":"Select"},{"$f":"Import!E14476","v":"Select"},"Select",{"$f":"Import!E14676","v":0},{"$f":"Import!E14776","v":0},{"$f":"Import!E14876","v":0}]
[66,{"$f":"Import!E14277","v":"Select"},{"$f":"Import!E14377","v":"Select"},{"$f":"Import!E14477","v":"Select"},"Select",{"$f":"Import!E14677","v":0},{"$f":"Import!E14777","v":0},{"$f":"Import!E14877","v":0}]
[{"$f":"A1410+1","v":67},{"$f":"Import!E14278","v":"Select"},{"$f":"Import!E14378","v":"Select"},{"$f":"Import!E14478","v":"Select"},"Select",{"$f":"Import!E14678","v":0},{"$f":"Import!E14778","v":0},{"$f":"Import!E14878","v":0}]
[68,{"$f":"Import!E14279","v":"Select"},{"$f":"Import!E14379","v":"Select"},{"$f":"Import!E14479","v":"Select"},"Select",{"$f":"Import!E14679","v":0},{"$f":"Import!E14779","v":0},{"$f":"Import!E14879","v":0}]
[69,{"$f":"Import!E14280","v":"Select"},{"$f":"Import!E14380","v":"Select"},{"$f":"Import!E14480","v":"Select"},"Select",{"$f":"Import!E14680","v":0},{"$f":"Import!E14780","v":0},{"$f":"Import!E14880","v":0}]
[70,{"$f":"Import!E14281","v":"Select"},{"$f":"Import!E14381","v":"Select"},{"$f":"Import!E14481","v":"Select"},"Select",{"$f":"Import!E14681","v":0},{"$f":"Import!E14781","v":0},{"$f":"Import!E14881","v":0}]
[71,{"$f":"Import!E14282","v":"Select"},{"$f":"Import!E14382","v":"Select"},{"$f":"Import!E14482","v":"Select"},"Select",{"$f":"Import!E14682","v":0},{"$f":"Import!E14782","v":0},{"$f":"Import!E14882","v":0}]
[72,{"$f":"Import!E14283","v":"Select"},{"$f":"Import!E14383","v":"Select"},{"$f":"Import!E14483","v":"Select"},"Select",{"$f":"Import!E14683","v":0},{"$f":"Import!E14783","v":0},{"$f":"Import!E14883","v":0}]
[73,{"$f":"Import!E14284","v":"Select"},{"$f":"Import!E14384","v":"Select"},{"$f":"Import!E14484","v":"Select"},"Select",{"$f":"Import!E14684","v":0},{"$f":"Import!E14784","v":0},{"$f":"Import!E14884","v":0}]
[74,{"$f":"Import!E14285","v":"Select"},{"$f":"Import!E14385","v":"Select"},{"$f":"Import!E14485","v":"Select"},"Select",{"$f":"Import!E14685","v":0},{"$f":"Import!E14785","v":0},{"$f":"Import!E14885","v":0}]
[75,{"$f":"Import!E14286","v":"Select"},{"$f":"Import!E14386","v":"Select"},{"$f":"Import!E14486","v":"Select"},"Select",{"$f":"Import!E14686","v":0},{"$f":"Import!E14786","v":0},{"$f":"Import!E14886","v":0}]
[76,{"$f":"Import!E14287","v":"Select"},{"$f":"Import!E14387","v":"Select"},{"$f":"Import!E14487","v":"Select"},"Select",{"$f":"Import!E14687","v":0},{"$f":"Import!E14787","v":0},{"$f":"Import!E14887","v":0}]
[77,{"$f":"Import!E14288","v":"Select"},{"$f":"Import!E14388","v":"Select"},{"$f":"Import!E14488","v":"Select"},"Select",{"$f":"Import!E14688","v":0},{"$f":"Import!E14788","v":0},{"$f":"Import!E14888","v":0}]
[78,{"$f":"Import!E14289","v":"Select"},{"$f":"Import!E14389","v":"Select"},{"$f":"Import!E14489","v":"Select"},"Select",{"$f":"Import!E14689","v":0},{"$f":"Import!E14789","v":0},{"$f":"Import!E14889","v":0}]
[79,{"$f":"Import!E14290","v":"Select"},{"$f":"Import!E14390","v":"Select"},{"$f":"Import!E14490","v":"Select"},"Select",{"$f":"Import!E14690","v":0},{"$f":"Import!E14790","v":0},{"$f":"Import!E14890","v":0}]
[80,{"$f":"Import!E14291","v":"Select"},{"$f":"Import!E14391","v":"Select"},{"$f":"Import!E14491","v":"Select"},"Select",{"$f":"Import!E14691","v":0},{"$f":"Import!E14791","v":0},{"$f":"Import!E14891","v":0}]
[81,{"$f":"Import!E14292","v":"Select"},{"$f":"Import!E14392","v":"Select"},{"$f":"Import!E14492","v":"Select"},"Select",{"$f":"Import!E14692","v":0},{"$f":"Import!E14792","v":0},{"$f":"Import!E14892","v":0}]
[82,{"$f":"Import!E14293","v":"Select"},{"$f":"Import!E14393","v":"Select"},{"$f":"Import!E14493","v":"Select"},"Select",{"$f":"Import!E14693","v":0},{"$f":"Import!E14793","v":0},{"$f":"Import!E14893","v":0}]
[83,{"$f":"Import!E14294","v":"Select"},{"$f":"Import!E14394","v":"Select"},{"$f":"Import!E14494","v":"Select"},"Select",{"$f":"Import!E14694","v":0},{"$f":"Import!E14794","v":0},{"$f":"Import!E14894","v":0}]
[84,{"$f":"Import!E14295","v":"Select"},{"$f":"Import!E14395","v":"Select"},{"$f":"Import!E14495","v":"Select"},"Select",{"$f":"Import!E14695","v":0},{"$f":"Import!E14795","v":0},{"$f":"Import!E14895","v":0}]
[85,{"$f":"Import!E14296","v":"Select"},{"$f":"Import!E14396","v":"Select"},{"$f":"Import!E14496","v":"Select"},"Select",{"$f":"Import!E14696","v":0},{"$f":"Import!E14796","v":0},{"$f":"Import!E14896","v":0}]
[86,{"$f":"Import!E14297","v":"Select"},{"$f":"Import!E14397","v":"Select"},{"$f":"Import!E14497","v":"Select"},"Select",{"$f":"Import!E14697","v":0},{"$f":"Import!E14797","v":0},{"$f":"Import!E14897","v":0}]
[87,{"$f":"Import!E14298","v":"Select"},{"$f":"Import!E14398","v":"Select"},{"$f":"Import!E14498","v":"Select"},"Select",{"$f":"Import!E14698","v":0},{"$f":"Import!E14798","v":0},{"$f":"Import!E14898","v":0}]
[88,{"$f":"Import!E14299","v":"Select"},{"$f":"Import!E14399","v":"Select"},{"$f":"Import!E14499","v":"Select"},"Select",{"$f":"Import!E14699","v":0},{"$f":"Import!E14799","v":0},{"$f":"Import!E14899","v":0}]
[89,{"$f":"Import!E14300","v":"Select"},{"$f":"Import!E14400","v":"Select"},{"$f":"Import!E14500","v":"Select"},"Select",{"$f":"Import!E14700","v":0},{"$f":"Import!E14800","v":0},{"$f":"Import!E14900","v":0}]
[90,{"$f":"Import!E14301","v":"Select"},{"$f":"Import!E14401","v":"Select"},{"$f":"Import!E14501","v":"Select"},"Select",{"$f":"Import!E14701","v":0},{"$f":"Import!E14801","v":0},{"$f":"Import!E14901","v":0}]
[91,{"$f":"Import!E14302","v":"Select"},{"$f":"Import!E14402","v":"Select"},{"$f":"Import!E14502","v":"Select"},"Select",{"$f":"Import!E14702","v":0},{"$f":"Import!E14802","v":0},{"$f":"Import!E14902","v":0}]
[92,{"$f":"Import!E14303","v":"Select"},{"$f":"Import!E14403","v":"Select"},{"$f":"Import!E14503","v":"Select"},"Select",{"$f":"Import!E14703","v":0},{"$f":"Import!E14803","v":0},{"$f":"Import!E14903","v":0}]
[93,{"$f":"Import!E14304","v":"Select"},{"$f":"Import!E14404","v":"Select"},{"$f":"Import!E14504","v":"Select"},"Select",{"$f":"Import!E14704","v":0},{"$f":"Import!E14804","v":0},{"$f":"Import!E14904","v":0}]
[94,{"$f":"Import!E14305","v":"Select"},{"$f":"Import!E14405","v":"Select"},{"$f":"Import!E14505","v":"Select"},"Select",{"$f":"Import!E14705","v":0},{"$f":"Import!E14805","v":0},{"$f":"Import!E14905","v":0}]
[95,{"$f":"Import!E14306","v":"Select"},{"$f":"Import!E14406","v":"Select"},{"$f":"Import!E14506","v":"Select"},"Select",{"$f":"Import!E14706","v":0},{"$f":"Import!E14806","v":0},{"$f":"Import!E14906","v":0}]
[96,{"$f":"Import!E14307","v":"Select"},{"$f":"Import!E14407","v":"Select"},{"$f":"Import!E14507","v":"Select"},"Select",{"$f":"Import!E14707","v":0},{"$f":"Import!E14807","v":0},{"$f":"Import!E14907","v":0}]
[97,{"$f":"Import!E14308","v":"Select"},{"$f":"Import!E14408","v":"Select"},{"$f":"Import!E14508","v":"Select"},"Select",{"$f":"Import!E14708","v":0},{"$f":"Import!E14808","v":0},{"$f":"Import!E14908","v":0}]
[98,{"$f":"Import!E14309","v":"Select"},{"$f":"Import!E14409","v":"Select"},{"$f":"Import!E14509","v":"Select"},"Select",{"$f":"Import!E14709","v":0},{"$f":"Import!E14809","v":0},{"$f":"Import!E14909","v":0}]
[99,{"$f":"Import!E14310","v":"Select"},{"$f":"Import!E14410","v":"Select"},{"$f":"Import!E14510","v":"Select"},"Select",{"$f":"Import!E14710","v":0},{"$f":"Import!E14810","v":0},{"$f":"Import!E14910","v":0}]
[100,{"$f":"Import!E14311","v":"Select"},{"$f":"Import!E14411","v":"Select"},{"$f":"Import!E14511","v":"Select"},"Select",{"$f":"Import!E14711","v":0},{"$f":"Import!E14811","v":0},{"$f":"Import!E14911","v":0}]
[]
[null,"Total Real Estate",null,null,null,{"$f":"SUM(F1345:F1444)","v":0},{"$f":"SUM(G1345:G1444)","v":0}]
[]
[null,"(H) OTHER ALTERNATIVE INVESTMENTS"]
[]
[null,null,"Enter # of Asset Types",{"$f":"Import!E14912","v":0}]
[null,null,null,null,null,{"$f":"YEAR($C$3)","v":2023},2023,"Weighted"]
[null,"Asset Type","Currency","Country","BSCR Rating","Nominal Amount","Fair Value","Average YTM","Effective Duration","Comments"]
[1,{"$f":"Import!E14913","v":"Select"},{"$f":"Import!E15013","v":"Select"},{"$f":"Import!E15113","v":"Select"},{"$f":"Import!E15213","v":"Select"},{"$f":"Import!E15313","v":0},{"$f":"Import!E15413","v":0},{"$f":"Import!E15513","v":0},{"$f":"Import!E15613","v":0},{"$f":"Import!E15713","v":0}]
[{"$f":"A1453+1","v":2},{"$f":"Import!E14914","v":"Select"},{"$f":"Import!E15014","v":"Select"},{"$f":"Import!E15114","v":"Select"},{"$f":"Import!E15214","v":"Select"},{"$f":"Import!E15314","v":0},{"$f":"Import!E15414","v":0},{"$f":"Import!E15514","v":0},{"$f":"Import!E15614","v":0},{"$f":"Import!E15714","v":0}]
[{"$f":"A1454+1","v":3},{"$f":"Import!E14915","v":"Select"},{"$f":"Import!E15015","v":"Select"},{"$f":"Import!E15115","v":"Select"},{"$f":"Import!E15215","v":"Select"},{"$f":"Import!E15315","v":0},{"$f":"Import!E15415","v":0},{"$f":"Import!E15515","v":0},{"$f":"Import!E15615","v":0},{"$f":"Import!E15715","v":0}]
[4,{"$f":"Import!E14916","v":"Select"},{"$f":"Import!E15016","v":"Select"},{"$f":"Import!E15116","v":"Select"},{"$f":"Import!E15216","v":"Select"},{"$f":"Import!E15316","v":0},{"$f":"Import!E15416","v":0},{"$f":"Import!E15516","v":0},{"$f":"Import!E15616","v":0},{"$f":"Import!E15716","v":0}]
[5,{"$f":"Import!E14917","v":"Select"},{"$f":"Import!E15017","v":"Select"},{"$f":"Import!E15117","v":"Select"},{"$f":"Import!E15217","v":"Select"},{"$f":"Import!E15317","v":0},{"$f":"Import!E15417","v":0},{"$f":"Import!E15517","v":0},{"$f":"Import!E15617","v":0},{"$f":"Import!E15717","v":0}]
[6,{"$f":"Import!E14918","v":"Select"},{"$f":"Import!E15018","v":"Select"},{"$f":"Import!E15118","v":"Select"},{"$f":"Import!E15218","v":"Select"},{"$f":"Import!E15318","v":0},{"$f":"Import!E15418","v":0},{"$f":"Import!E15518","v":0},{"$f":"Import!E15618","v":0},{"$f":"Import!E15718","v":0}]
[7,{"$f":"Import!E14919","v":"Select"},{"$f":"Import!E15019","v":"Select"},{"$f":"Import!E15119","v":"Select"},{"$f":"Import!E15219","v":"Select"},{"$f":"Import!E15319","v":0},{"$f":"Import!E15419","v":0},{"$f":"Import!E15519","v":0},{"$f":"Import!E15619","v":0},{"$f":"Import!E15719","v":0}]
[8,{"$f":"Import!E14920","v":"Select"},{"$f":"Import!E15020","v":"Select"},{"$f":"Import!E15120","v":"Select"},{"$f":"Import!E15220","v":"Select"},{"$f":"Import!E15320","v":0},{"$f":"Import!E15420","v":0},{"$f":"Import!E15520","v":0},{"$f":"Import!E15620","v":0},{"$f":"Import!E15720","v":0}]
[9,{"$f":"Import!E14921","v":"Select"},{"$f":"Import!E15021","v":"Select"},{"$f":"Import!E15121","v":"Select"},{"$f":"Import!E15221","v":"Select"},{"$f":"Import!E15321","v":0},{"$f":"Import!E15421","v":0},{"$f":"Import!E15521","v":0},{"$f":"Import!E15621","v":0},{"$f":"Import!E15721","v":0}]
[10,{"$f":"Import!E14922","v":"Select"},{"$f":"Import!E15022","v":"Select"},{"$f":"Import!E15122","v":"Select"},{"$f":"Import!E15222","v":"Select"},{"$f":"Import!E15322","v":0},{"$f":"Import!E15422","v":0},{"$f":"Import!E15522","v":0},{"$f":"Import!E15622","v":0},{"$f":"Import!E15722","v":0}]
[11,{"$f":"Import!E14923","v":"Select"},{"$f":"Import!E15023","v":"Select"},{"$f":"Import!E15123","v":"Select"},{"$f":"Import!E15223","v":"Select"},{"$f":"Import!E15323","v":0},{"$f":"Import!E15423","v":0},{"$f":"Import!E15523","v":0},{"$f":"Import!E15623","v":0},{"$f":"Import!E15723","v":0}]
[12,{"$f":"Import!E14924","v":"Select"},{"$f":"Import!E15024","v":"Select"},{"$f":"Import!E15124","v":"Select"},{"$f":"Import!E15224","v":"Select"},{"$f":"Import!E15324","v":0},{"$f":"Import!E15424","v":0},{"$f":"Import!E15524","v":0},{"$f":"Import!E15624","v":0},{"$f":"Import!E15724","v":0}]
[13,{"$f":"Import!E14925","v":"Select"},{"$f":"Import!E15025","v":"Select"},{"$f":"Import!E15125","v":"Select"},{"$f":"Import!E15225","v":"Select"},{"$f":"Import!E15325","v":0},{"$f":"Import!E15425","v":0},{"$f":"Import!E15525","v":0},{"$f":"Import!E15625","v":0},{"$f":"Import!E15725","v":0}]
[14,{"$f":"Import!E14926","v":"Select"},{"$f":"Import!E15026","v":"Select"},{"$f":"Import!E15126","v":"Select"},{"$f":"Import!E15226","v":"Select"},{"$f":"Import!E15326","v":0},{"$f":"Import!E15426","v":0},{"$f":"Import!E15526","v":0},{"$f":"Import!E15626","v":0},{"$f":"Import!E15726","v":0}]
[15,{"$f":"Import!E14927","v":"Select"},{"$f":"Import!E15027","v":"Select"},{"$f":"Import!E15127","v":"Select"},{"$f":"Import!E15227","v":"Select"},{"$f":"Import!E15327","v":0},{"$f":"Import!E15427","v":0},{"$f":"Import!E15527","v":0},{"$f":"Import!E15627","v":0},{"$f":"Import!E15727","v":0}]
[16,{"$f":"Import!E14928","v":"Select"},{"$f":"Import!E15028","v":"Select"},{"$f":"Import!E15128","v":"Select"},{"$f":"Import!E15228","v":"Select"},{"$f":"Import!E15328","v":0},{"$f":"Import!E15428","v":0},{"$f":"Import!E15528","v":0},{"$f":"Import!E15628","v":0},{"$f":"Import!E15728","v":0}]
[17,{"$f":"Import!E14929","v":"Select"},{"$f":"Import!E15029","v":"Select"},{"$f":"Import!E15129","v":"Select"},{"$f":"Import!E15229","v":"Select"},{"$f":"Import!E15329","v":0},{"$f":"Import!E15429","v":0},{"$f":"Import!E15529","v":0},{"$f":"Import!E15629","v":0},{"$f":"Import!E15729","v":0}]
[18,{"$f":"Import!E14930","v":"Select"},{"$f":"Import!E15030","v":"Select"},{"$f":"Import!E15130","v":"Select"},{"$f":"Import!E15230","v":"Select"},{"$f":"Import!E15330","v":0},{"$f":"Import!E15430","v":0},{"$f":"Import!E15530","v":0},{"$f":"Import!E15630","v":0},{"$f":"Import!E15730","v":0}]
[19,{"$f":"Import!E14931","v":"Select"},{"$f":"Import!E15031","v":"Select"},{"$f":"Import!E15131","v":"Select"},{"$f":"Import!E15231","v":"Select"},{"$f":"Import!E15331","v":0},{"$f":"Import!E15431","v":0},{"$f":"Import!E15531","v":0},{"$f":"Import!E15631","v":0},{"$f":"Import!E15731","v":0}]
[20,{"$f":"Import!E14932","v":"Select"},{"$f":"Import!E15032","v":"Select"},{"$f":"Import!E15132","v":"Select"},{"$f":"Import!E15232","v":"Select"},{"$f":"Import!E15332","v":0},{"$f":"Import!E15432","v":0},{"$f":"Import!E15532","v":0},{"$f":"Import!E15632","v":0},{"$f":"Import!E15732","v":0}]
[21,{"$f":"Import!E14933","v":"Select"},{"$f":"Import!E15033","v":"Select"},{"$f":"Import!E15133","v":"Select"},{"$f":"Import!E15233","v":"Select"},{"$f":"Import!E15333","v":0},{"$f":"Import!E15433","v":0},{"$f":"Import!E15533","v":0},{"$f":"Import!E15633","v":0},{"$f":"Import!E15733","v":0}]
[22,{"$f":"Import!E14934","v":"Select"},{"$f":"Import!E15034","v":"Select"},{"$f":"Import!E15134","v":"Select"},{"$f":"Import!E15234","v":"Select"},{"$f":"Import!E15334","v":0},{"$f":"Import!E15434","v":0},{"$f":"Import!E15534","v":0},{"$f":"Import!E15634","v":0},{"$f":"Import!E15734","v":0}]
[23,{"$f":"Import!E14935","v":"Select"},{"$f":"Import!E15035","v":"Select"},{"$f":"Import!E15135","v":"Select"},{"$f":"Import!E15235","v":"Select"},{"$f":"Import!E15335","v":0},{"$f":"Import!E15435","v":0},{"$f":"Import!E15535","v":0},{"$f":"Import!E15635","v":0},{"$f":"Import!E15735","v":0}]
[24,{"$f":"Import!E14936","v":"Select"},{"$f":"Import!E15036","v":"Select"},{"$f":"Import!E15136","v":"Select"},{"$f":"Import!E15236","v":"Select"},{"$f":"Import!E15336","v":0},{"$f":"Import!E15436","v":0},{"$f":"Import!E15536","v":0},{"$f":"Import!E15636","v":0},{"$f":"Import!E15736","v":0}]
[25,{"$f":"Import!E14937","v":"Select"},{"$f":"Import!E15037","v":"Select"},{"$f":"Import!E15137","v":"Select"},{"$f":"Import!E15237","v":"Select"},{"$f":"Import!E15337","v":0},{"$f":"Import!E15437","v":0},{"$f":"Import!E15537","v":0},{"$f":"Import!E15637","v":0},{"$f":"Import!E15737","v":0}]
[26,{"$f":"Import!E14938","v":"Select"},{"$f":"Import!E15038","v":"Select"},{"$f":"Import!E15138","v":"Select"},{"$f":"Import!E15238","v":"Select"},{"$f":"Import!E15338","v":0},{"$f":"Import!E15438","v":0},{"$f":"Import!E15538","v":0},{"$f":"Import!E15638","v":0},{"$f":"Import!E15738","v":0}]
[27,{"$f":"Import!E14939","v":"Select"},{"$f":"Import!E15039","v":"Select"},{"$f":"Import!E15139","v":"Select"},{"$f":"Import!E15239","v":"Select"},{"$f":"Import!E15339","v":0},{"$f":"Import!E15439","v":0},{"$f":"Import!E15539","v":0},{"$f":"Import!E15639","v":0},{"$f":"Import!E15739","v":0}]
[28,{"$f":"Import!E14940","v":"Select"},{"$f":"Import!E15040","v":"Select"},{"$f":"Import!E15140","v":"Select"},{"$f":"Import!E15240","v":"Select"},{"$f":"Import!E15340","v":0},{"$f":"Import!E15440","v":0},{"$f":"Import!E15540","v":0},{"$f":"Import!E15640","v":0},{"$f":"Import!E15740","v":0}]
[29,{"$f":"Import!E14941","v":"Select"},{"$f":"Import!E15041","v":"Select"},{"$f":"Import!E15141","v":"Select"},{"$f":"Import!E15241","v":"Select"},{"$f":"Import!E15341","v":0},{"$f":"Import!E15441","v":0},{"$f":"Import!E15541","v":0},{"$f":"Import!E15641","v":0},{"$f":"Import!E15741","v":0}]
[30,{"$f":"Import!E14942","v":"Select"},{"$f":"Import!E15042","v":"Select"},{"$f":"Import!E15142","v":"Select"},{"$f":"Import!E15242","v":"Select"},{"$f":"Import!E15342","v":0},{"$f":"Import!E15442","v":0},{"$f":"Import!E15542","v":0},{"$f":"Import!E15642","v":0},{"$f":"Import!E15742","v":0}]
[31,{"$f":"Import!E14943","v":"Select"},{"$f":"Import!E15043","v":"Select"},{"$f":"Import!E15143","v":"Select"},{"$f":"Import!E15243","v":"Select"},{"$f":"Import!E15343","v":0},{"$f":"Import!E15443","v":0},{"$f":"Import!E15543","v":0},{"$f":"Import!E15643","v":0},{"$f":"Import!E15743","v":0}]
[32,{"$f":"Import!E14944","v":"Select"},{"$f":"Import!E15044","v":"Select"},{"$f":"Import!E15144","v":"Select"},{"$f":"Import!E15244","v":"Select"},{"$f":"Import!E15344","v":0},{"$f":"Import!E15444","v":0},{"$f":"Import!E15544","v":0},{"$f":"Import!E15644","v":0},{"$f":"Import!E15744","v":0}]
[33,{"$f":"Import!E14945","v":"Select"},{"$f":"Import!E15045","v":"Select"},{"$f":"Import!E15145","v":"Select"},{"$f":"Import!E15245","v":"Select"},{"$f":"Import!E15345","v":0},{"$f":"Import!E15445","v":0},{"$f":"Import!E15545","v":0},{"$f":"Import!E15645","v":0},{"$f":"Import!E15745","v":0}]
[34,{"$f":"Import!E14946","v":"Select"},{"$f":"Import!E15046","v":"Select"},{"$f":"Import!E15146","v":"Select"},{"$f":"Import!E15246","v":"Select"},{"$f":"Import!E15346","v":0},{"$f":"Import!E15446","v":0},{"$f":"Import!E15546","v":0},{"$f":"Import!E15646","v":0},{"$f":"Import!E15746","v":0}]
[35,{"$f":"Import!E14947","v":"Select"},{"$f":"Import!E15047","v":"Select"},{"$f":"Import!E15147","v":"Select"},{"$f":"Import!E15247","v":"Select"},{"$f":"Import!E15347","v":0},{"$f":"Import!E15447","v":0},{"$f":"Import!E15547","v":0},{"$f":"Import!E15647","v":0},{"$f":"Import!E15747","v":0}]
[36,{"$f":"Import!E14948","v":"Select"},{"$f":"Import!E15048","v":"Select"},{"$f":"Import!E15148","v":"Select"},{"$f":"Import!E15248","v":"Select"},{"$f":"Import!E15348","v":0},{"$f":"Import!E15448","v":0},{"$f":"Import!E15548","v":0},{"$f":"Import!E15648","v":0},{"$f":"Import!E15748","v":0}]
[37,{"$f":"Import!E14949","v":"Select"},{"$f":"Import!E15049","v":"Select"},{"$f":"Import!E15149","v":"Select"},{"$f":"Import!E15249","v":"Select"},{"$f":"Import!E15349","v":0},{"$f":"Import!E15449","v":0},{"$f":"Import!E15549","v":0},{"$f":"Import!E15649","v":0},{"$f":"Import!E15749","v":0}]
[38,{"$f":"Import!E14950","v":"Select"},{"$f":"Import!E15050","v":"Select"},{"$f":"Import!E15150","v":"Select"},{"$f":"Import!E15250","v":"Select"},{"$f":"Import!E15350","v":0},{"$f":"Import!E15450","v":0},{"$f":"Import!E15550","v":0},{"$f":"Import!E15650","v":0},{"$f":"Import!E15750","v":0}]
[39,{"$f":"Import!E14951","v":"Select"},{"$f":"Import!E15051","v":"Select"},{"$f":"Import!E15151","v":"Select"},{"$f":"Import!E15251","v":"Select"},{"$f":"Import!E15351","v":0},{"$f":"Import!E15451","v":0},{"$f":"Import!E15551","v":0},{"$f":"Import!E15651","v":0},{"$f":"Import!E15751","v":0}]
[40,{"$f":"Import!E14952","v":"Select"},{"$f":"Import!E15052","v":"Select"},{"$f":"Import!E15152","v":"Select"},{"$f":"Import!E15252","v":"Select"},{"$f":"Import!E15352","v":0},{"$f":"Import!E15452","v":0},{"$f":"Import!E15552","v":0},{"$f":"Import!E15652","v":0},{"$f":"Import!E15752","v":0}]
[41,{"$f":"Import!E14953","v":"Select"},{"$f":"Import!E15053","v":"Select"},{"$f":"Import!E15153","v":"Select"},{"$f":"Import!E15253","v":"Select"},{"$f":"Import!E15353","v":0},{"$f":"Import!E15453","v":0},{"$f":"Import!E15553","v":0},{"$f":"Import!E15653","v":0},{"$f":"Import!E15753","v":0}]
[42,{"$f":"Import!E14954","v":"Select"},{"$f":"Import!E15054","v":"Select"},{"$f":"Import!E15154","v":"Select"},{"$f":"Import!E15254","v":"Select"},{"$f":"Import!E15354","v":0},{"$f":"Import!E15454","v":0},{"$f":"Import!E15554","v":0},{"$f":"Import!E15654","v":0},{"$f":"Import!E15754","v":0}]
[43,{"$f":"Import!E14955","v":"Select"},{"$f":"Import!E15055","v":"Select"},{"$f":"Import!E15155","v":"Select"},{"$f":"Import!E15255","v":"Select"},{"$f":"Import!E15355","v":0},{"$f":"Import!E15455","v":0},{"$f":"Import!E15555","v":0},{"$f":"Import!E15655","v":0},{"$f":"Import!E15755","v":0}]
[44,{"$f":"Import!E14956","v":"Select"},{"$f":"Import!E15056","v":"Select"},{"$f":"Import!E15156","v":"Select"},{"$f":"Import!E15256","v":"Select"},{"$f":"Import!E15356","v":0},{"$f":"Import!E15456","v":0},{"$f":"Import!E15556","v":0},{"$f":"Import!E15656","v":0},{"$f":"Import!E15756","v":0}]
[45,{"$f":"Import!E14957","v":"Select"},{"$f":"Import!E15057","v":"Select"},{"$f":"Import!E15157","v":"Select"},{"$f":"Import!E15257","v":"Select"},{"$f":"Import!E15357","v":0},{"$f":"Import!E15457","v":0},{"$f":"Import!E15557","v":0},{"$f":"Import!E15657","v":0},{"$f":"Import!E15757","v":0}]
[46,{"$f":"Import!E14958","v":"Select"},{"$f":"Import!E15058","v":"Select"},{"$f":"Import!E15158","v":"Select"},{"$f":"Import!E15258","v":"Select"},{"$f":"Import!E15358","v":0},{"$f":"Import!E15458","v":0},{"$f":"Import!E15558","v":0},{"$f":"Import!E15658","v":0},{"$f":"Import!E15758","v":0}]
[47,{"$f":"Import!E14959","v":"Select"},{"$f":"Import!E15059","v":"Select"},{"$f":"Import!E15159","v":"Select"},{"$f":"Import!E15259","v":"Select"},{"$f":"Import!E15359","v":0},{"$f":"Import!E15459","v":0},{"$f":"Import!E15559","v":0},{"$f":"Import!E15659","v":0},{"$f":"Import!E15759","v":0}]
[48,{"$f":"Import!E14960","v":"Select"},{"$f":"Import!E15060","v":"Select"},{"$f":"Import!E15160","v":"Select"},{"$f":"Import!E15260","v":"Select"},{"$f":"Import!E15360","v":0},{"$f":"Import!E15460","v":0},{"$f":"Import!E15560","v":0},{"$f":"Import!E15660","v":0},{"$f":"Import!E15760","v":0}]
[49,{"$f":"Import!E14961","v":"Select"},{"$f":"Import!E15061","v":"Select"},{"$f":"Import!E15161","v":"Select"},{"$f":"Import!E15261","v":"Select"},{"$f":"Import!E15361","v":0},{"$f":"Import!E15461","v":0},{"$f":"Import!E15561","v":0},{"$f":"Import!E15661","v":0},{"$f":"Import!E15761","v":0}]
[50,{"$f":"Import!E14962","v":"Select"},{"$f":"Import!E15062","v":"Select"},{"$f":"Import!E15162","v":"Select"},{"$f":"Import!E15262","v":"Select"},{"$f":"Import!E15362","v":0},{"$f":"Import!E15462","v":0},{"$f":"Import!E15562","v":0},{"$f":"Import!E15662","v":0},{"$f":"Import!E15762","v":0}]
[51,{"$f":"Import!E14963","v":"Select"},{"$f":"Import!E15063","v":"Select"},{"$f":"Import!E15163","v":"Select"},{"$f":"Import!E15263","v":"Select"},{"$f":"Import!E15363","v":0},{"$f":"Import!E15463","v":0},{"$f":"Import!E15563","v":0},{"$f":"Import!E15663","v":0},{"$f":"Import!E15763","v":0}]
[52,{"$f":"Import!E14964","v":"Select"},{"$f":"Import!E15064","v":"Select"},{"$f":"Import!E15164","v":"Select"},{"$f":"Import!E15264","v":"Select"},{"$f":"Import!E15364","v":0},{"$f":"Import!E15464","v":0},{"$f":"Import!E15564","v":0},{"$f":"Import!E15664","v":0},{"$f":"Import!E15764","v":0}]
[53,{"$f":"Import!E14965","v":"Select"},{"$f":"Import!E15065","v":"Select"},{"$f":"Import!E15165","v":"Select"},{"$f":"Import!E15265","v":"Select"},{"$f":"Import!E15365","v":0},{"$f":"Import!E15465","v":0},{"$f":"Import!E15565","v":0},{"$f":"Import!E15665","v":0},{"$f":"Import!E15765","v":0}]
[54,{"$f":"Import!E14966","v":"Select"},{"$f":"Import!E15066","v":"Select"},{"$f":"Import!E15166","v":"Select"},{"$f":"Import!E15266","v":"Select"},{"$f":"Import!E15366","v":0},{"$f":"Import!E15466","v":0},{"$f":"Import!E15566","v":0},{"$f":"Import!E15666","v":0},{"$f":"Import!E15766","v":0}]
[55,{"$f":"Import!E14967","v":"Select"},{"$f":"Import!E15067","v":"Select"},{"$f":"Import!E15167","v":"Select"},{"$f":"Import!E15267","v":"Select"},{"$f":"Import!E15367","v":0},{"$f":"Import!E15467","v":0},{"$f":"Import!E15567","v":0},{"$f":"Import!E15667","v":0},{"$f":"Import!E15767","v":0}]
[56,{"$f":"Import!E14968","v":"Select"},{"$f":"Import!E15068","v":"Select"},{"$f":"Import!E15168","v":"Select"},{"$f":"Import!E15268","v":"Select"},{"$f":"Import!E15368","v":0},{"$f":"Import!E15468","v":0},{"$f":"Import!E15568","v":0},{"$f":"Import!E15668","v":0},{"$f":"Import!E15768","v":0}]
[57,{"$f":"Import!E14969","v":"Select"},{"$f":"Import!E15069","v":"Select"},{"$f":"Import!E15169","v":"Select"},{"$f":"Import!E15269","v":"Select"},{"$f":"Import!E15369","v":0},{"$f":"Import!E15469","v":0},{"$f":"Import!E15569","v":0},{"$f":"Import!E15669","v":0},{"$f":"Import!E15769","v":0}]
[58,{"$f":"Import!E14970","v":"Select"},{"$f":"Import!E15070","v":"Select"},{"$f":"Import!E15170","v":"Select"},{"$f":"Import!E15270","v":"Select"},{"$f":"Import!E15370","v":0},{"$f":"Import!E15470","v":0},{"$f":"Import!E15570","v":0},{"$f":"Import!E15670","v":0},{"$f":"Import!E15770","v":0}]
[59,{"$f":"Import!E14971","v":"Select"},{"$f":"Import!E15071","v":"Select"},{"$f":"Import!E15171","v":"Select"},{"$f":"Import!E15271","v":"Select"},{"$f":"Import!E15371","v":0},{"$f":"Import!E15471","v":0},{"$f":"Import!E15571","v":0},{"$f":"Import!E15671","v":0},{"$f":"Import!E15771","v":0}]
[60,{"$f":"Import!E14972","v":"Select"},{"$f":"Import!E15072","v":"Select"},{"$f":"Import!E15172","v":"Select"},{"$f":"Import!E15272","v":"Select"},{"$f":"Import!E15372","v":0},{"$f":"Import!E15472","v":0},{"$f":"Import!E15572","v":0},{"$f":"Import!E15672","v":0},{"$f":"Import!E15772","v":0}]
[61,{"$f":"Import!E14973","v":"Select"},{"$f":"Import!E15073","v":"Select"},{"$f":"Import!E15173","v":"Select"},{"$f":"Import!E15273","v":"Select"},{"$f":"Import!E15373","v":0},{"$f":"Import!E15473","v":0},{"$f":"Import!E15573","v":0},{"$f":"Import!E15673","v":0},{"$f":"Import!E15773","v":0}]
[62,{"$f":"Import!E14974","v":"Select"},{"$f":"Import!E15074","v":"Select"},{"$f":"Import!E15174","v":"Select"},{"$f":"Import!E15274","v":"Select"},{"$f":"Import!E15374","v":0},{"$f":"Import!E15474","v":0},{"$f":"Import!E15574","v":0},{"$f":"Import!E15674","v":0},{"$f":"Import!E15774","v":0}]
[63,{"$f":"Import!E14975","v":"Select"},{"$f":"Import!E15075","v":"Select"},{"$f":"Import!E15175","v":"Select"},{"$f":"Import!E15275","v":"Select"},{"$f":"Import!E15375","v":0},{"$f":"Import!E15475","v":0},{"$f":"Import!E15575","v":0},{"$f":"Import!E15675","v":0},{"$f":"Import!E15775","v":0}]
[64,{"$f":"Import!E14976","v":"Select"},{"$f":"Import!E15076","v":"Select"},{"$f":"Import!E15176","v":"Select"},{"$f":"Import!E15276","v":"Select"},{"$f":"Import!E15376","v":0},{"$f":"Import!E15476","v":0},{"$f":"Import!E15576","v":0},{"$f":"Import!E15676","v":0},{"$f":"Import!E15776","v":0}]
[65,{"$f":"Import!E14977","v":"Select"},{"$f":"Import!E15077","v":"Select"},{"$f":"Import!E15177","v":"Select"},{"$f":"Import!E15277","v":"Select"},{"$f":"Import!E15377","v":0},{"$f":"Import!E15477","v":0},{"$f":"Import!E15577","v":0},{"$f":"Import!E15677","v":0},{"$f":"Import!E15777","v":0}]
[66,{"$f":"Import!E14978","v":"Select"},{"$f":"Import!E15078","v":"Select"},{"$f":"Import!E15178","v":"Select"},{"$f":"Import!E15278","v":"Select"},{"$f":"Import!E15378","v":0},{"$f":"Import!E15478","v":0},{"$f":"Import!E15578","v":0},{"$f":"Import!E15678","v":0},{"$f":"Import!E15778","v":0}]
[{"$f":"A1518+1","v":67},{"$f":"Import!E14979","v":"Select"},{"$f":"Import!E15079","v":"Select"},{"$f":"Import!E15179","v":"Select"},{"$f":"Import!E15279","v":"Select"},{"$f":"Import!E15379","v":0},{"$f":"Import!E15479","v":0},{"$f":"Import!E15579","v":0},{"$f":"Import!E15679","v":0},{"$f":"Import!E15779","v":0}]
[68,{"$f":"Import!E14980","v":"Select"},{"$f":"Import!E15080","v":"Select"},{"$f":"Import!E15180","v":"Select"},{"$f":"Import!E15280","v":"Select"},{"$f":"Import!E15380","v":0},{"$f":"Import!E15480","v":0},{"$f":"Import!E15580","v":0},{"$f":"Import!E15680","v":0},{"$f":"Import!E15780","v":0}]
[69,{"$f":"Import!E14981","v":"Select"},{"$f":"Import!E15081","v":"Select"},{"$f":"Import!E15181","v":"Select"},{"$f":"Import!E15281","v":"Select"},{"$f":"Import!E15381","v":0},{"$f":"Import!E15481","v":0},{"$f":"Import!E15581","v":0},{"$f":"Import!E15681","v":0},{"$f":"Import!E15781","v":0}]
[70,{"$f":"Import!E14982","v":"Select"},{"$f":"Import!E15082","v":"Select"},{"$f":"Import!E15182","v":"Select"},{"$f":"Import!E15282","v":"Select"},{"$f":"Import!E15382","v":0},{"$f":"Import!E15482","v":0},{"$f":"Import!E15582","v":0},{"$f":"Import!E15682","v":0},{"$f":"Import!E15782","v":0}]
[71,{"$f":"Import!E14983","v":"Select"},{"$f":"Import!E15083","v":"Select"},{"$f":"Import!E15183","v":"Select"},{"$f":"Import!E15283","v":"Select"},{"$f":"Import!E15383","v":0},{"$f":"Import!E15483","v":0},{"$f":"Import!E15583","v":0},{"$f":"Import!E15683","v":0},{"$f":"Import!E15783","v":0}]
[72,{"$f":"Import!E14984","v":"Select"},{"$f":"Import!E15084","v":"Select"},{"$f":"Import!E15184","v":"Select"},{"$f":"Import!E15284","v":"Select"},{"$f":"Import!E15384","v":0},{"$f":"Import!E15484","v":0},{"$f":"Import!E15584","v":0},{"$f":"Import!E15684","v":0},{"$f":"Import!E15784","v":0}]
[73,{"$f":"Import!E14985","v":"Select"},{"$f":"Import!E15085","v":"Select"},{"$f":"Import!E15185","v":"Select"},{"$f":"Import!E15285","v":"Select"},{"$f":"Import!E15385","v":0},{"$f":"Import!E15485","v":0},{"$f":"Import!E15585","v":0},{"$f":"Import!E15685","v":0},{"$f":"Import!E15785","v":0}]
[74,{"$f":"Import!E14986","v":"Select"},{"$f":"Import!E15086","v":"Select"},{"$f":"Import!E15186","v":"Select"},{"$f":"Import!E15286","v":"Select"},{"$f":"Import!E15386","v":0},{"$f":"Import!E15486","v":0},{"$f":"Import!E15586","v":0},{"$f":"Import!E15686","v":0},{"$f":"Import!E15786","v":0}]
[75,{"$f":"Import!E14987","v":"Select"},{"$f":"Import!E15087","v":"Select"},{"$f":"Import!E15187","v":"Select"},{"$f":"Import!E15287","v":"Select"},{"$f":"Import!E15387","v":0},{"$f":"Import!E15487","v":0},{"$f":"Import!E15587","v":0},{"$f":"Import!E15687","v":0},{"$f":"Import!E15787","v":0}]
[76,{"$f":"Import!E14988","v":"Select"},{"$f":"Import!E15088","v":"Select"},{"$f":"Import!E15188","v":"Select"},{"$f":"Import!E15288","v":"Select"},{"$f":"Import!E15388","v":0},{"$f":"Import!E15488","v":0},{"$f":"Import!E15588","v":0},{"$f":"Import!E15688","v":0},{"$f":"Import!E15788","v":0}]
[77,{"$f":"Import!E14989","v":"Select"},{"$f":"Import!E15089","v":"Select"},{"$f":"Import!E15189","v":"Select"},{"$f":"Import!E15289","v":"Select"},{"$f":"Import!E15389","v":0},{"$f":"Import!E15489","v":0},{"$f":"Import!E15589","v":0},{"$f":"Import!E15689","v":0},{"$f":"Import!E15789","v":0}]
[78,{"$f":"Import!E14990","v":"Select"},{"$f":"Import!E15090","v":"Select"},{"$f":"Import!E15190","v":"Select"},{"$f":"Import!E15290","v":"Select"},{"$f":"Import!E15390","v":0},{"$f":"Import!E15490","v":0},{"$f":"Import!E15590","v":0},{"$f":"Import!E15690","v":0},{"$f":"Import!E15790","v":0}]
[79,{"$f":"Import!E14991","v":"Select"},{"$f":"Import!E15091","v":"Select"},{"$f":"Import!E15191","v":"Select"},{"$f":"Import!E15291","v":"Select"},{"$f":"Import!E15391","v":0},{"$f":"Import!E15491","v":0},{"$f":"Import!E15591","v":0},{"$f":"Import!E15691","v":0},{"$f":"Import!E15791","v":0}]
[80,{"$f":"Import!E14992","v":"Select"},{"$f":"Import!E15092","v":"Select"},{"$f":"Import!E15192","v":"Select"},{"$f":"Import!E15292","v":"Select"},{"$f":"Import!E15392","v":0},{"$f":"Import!E15492","v":0},{"$f":"Import!E15592","v":0},{"$f":"Import!E15692","v":0},{"$f":"Import!E15792","v":0}]
[81,{"$f":"Import!E14993","v":"Select"},{"$f":"Import!E15093","v":"Select"},{"$f":"Import!E15193","v":"Select"},{"$f":"Import!E15293","v":"Select"},{"$f":"Import!E15393","v":0},{"$f":"Import!E15493","v":0},{"$f":"Import!E15593","v":0},{"$f":"Import!E15693","v":0},{"$f":"Import!E15793","v":0}]
[82,{"$f":"Import!E14994","v":"Select"},{"$f":"Import!E15094","v":"Select"},{"$f":"Import!E15194","v":"Select"},{"$f":"Import!E15294","v":"Select"},{"$f":"Import!E15394","v":0},{"$f":"Import!E15494","v":0},{"$f":"Import!E15594","v":0},{"$f":"Import!E15694","v":0},{"$f":"Import!E15794","v":0}]
[83,{"$f":"Import!E14995","v":"Select"},{"$f":"Import!E15095","v":"Select"},{"$f":"Import!E15195","v":"Select"},{"$f":"Import!E15295","v":"Select"},{"$f":"Import!E15395","v":0},{"$f":"Import!E15495","v":0},{"$f":"Import!E15595","v":0},{"$f":"Import!E15695","v":0},{"$f":"Import!E15795","v":0}]
[84,{"$f":"Import!E14996","v":"Select"},{"$f":"Import!E15096","v":"Select"},{"$f":"Import!E15196","v":"Select"},{"$f":"Import!E15296","v":"Select"},{"$f":"Import!E15396","v":0},{"$f":"Import!E15496","v":0},{"$f":"Import!E15596","v":0},{"$f":"Import!E15696","v":0},{"$f":"Import!E15796","v":0}]
[85,{"$f":"Import!E14997","v":"Select"},{"$f":"Import!E15097","v":"Select"},{"$f":"Import!E15197","v":"Select"},{"$f":"Import!E15297","v":"Select"},{"$f":"Import!E15397","v":0},{"$f":"Import!E15497","v":0},{"$f":"Import!E15597","v":0},{"$f":"Import!E15697","v":0},{"$f":"Import!E15797","v":0}]
[86,{"$f":"Import!E14998","v":"Select"},{"$f":"Import!E15098","v":"Select"},{"$f":"Import!E15198","v":"Select"},{"$f":"Import!E15298","v":"Select"},{"$f":"Import!E15398","v":0},{"$f":"Import!E15498","v":0},{"$f":"Import!E15598","v":0},{"$f":"Import!E15698","v":0},{"$f":"Import!E15798","v":0}]
[87,{"$f":"Import!E14999","v":"Select"},{"$f":"Import!E15099","v":"Select"},{"$f":"Import!E15199","v":"Select"},{"$f":"Import!E15299","v":"Select"},{"$f":"Import!E15399","v":0},{"$f":"Import!E15499","v":0},{"$f":"Import!E15599","v":0},{"$f":"Import!E15699","v":0},{"$f":"Import!E15799","v":0}]
[88,{"$f":"Import!E15000","v":"Select"},{"$f":"Import!E15100","v":"Select"},{"$f":"Import!E15200","v":"Select"},{"$f":"Import!E15300","v":"Select"},{"$f":"Import!E15400","v":0},{"$f":"Import!E15500","v":0},{"$f":"Import!E15600","v":0},{"$f":"Import!E15700","v":0},{"$f":"Import!E15800","v":0}]
[89,{"$f":"Import!E15001","v":"Select"},{"$f":"Import!E15101","v":"Select"},{"$f":"Import!E15201","v":"Select"},{"$f":"Import!E15301","v":"Select"},{"$f":"Import!E15401","v":0},{"$f":"Import!E15501","v":0},{"$f":"Import!E15601","v":0},{"$f":"Import!E15701","v":0},{"$f":"Import!E15801","v":0}]
[90,{"$f":"Import!E15002","v":"Select"},{"$f":"Import!E15102","v":"Select"},{"$f":"Import!E15202","v":"Select"},{"$f":"Import!E15302","v":"Select"},{"$f":"Import!E15402","v":0},{"$f":"Import!E15502","v":0},{"$f":"Import!E15602","v":0},{"$f":"Import!E15702","v":0},{"$f":"Import!E15802","v":0}]
[91,{"$f":"Import!E15003","v":"Select"},{"$f":"Import!E15103","v":"Select"},{"$f":"Import!E15203","v":"Select"},{"$f":"Import!E15303","v":"Select"},{"$f":"Import!E15403","v":0},{"$f":"Import!E15503","v":0},{"$f":"Import!E15603","v":0},{"$f":"Import!E15703","v":0},{"$f":"Import!E15803","v":0}]
[92,{"$f":"Import!E15004","v":"Select"},{"$f":"Import!E15104","v":"Select"},{"$f":"Import!E15204","v":"Select"},{"$f":"Import!E15304","v":"Select"},{"$f":"Import!E15404","v":0},{"$f":"Import!E15504","v":0},{"$f":"Import!E15604","v":0},{"$f":"Import!E15704","v":0},{"$f":"Import!E15804","v":0}]
[93,{"$f":"Import!E15005","v":"Select"},{"$f":"Import!E15105","v":"Select"},{"$f":"Import!E15205","v":"Select"},{"$f":"Import!E15305","v":"Select"},{"$f":"Import!E15405","v":0},{"$f":"Import!E15505","v":0},{"$f":"Import!E15605","v":0},{"$f":"Import!E15705","v":0},{"$f":"Import!E15805","v":0}]
[94,{"$f":"Import!E15006","v":"Select"},{"$f":"Import!E15106","v":"Select"},{"$f":"Import!E15206","v":"Select"},{"$f":"Import!E15306","v":"Select"},{"$f":"Import!E15406","v":0},{"$f":"Import!E15506","v":0},{"$f":"Import!E15606","v":0},{"$f":"Import!E15706","v":0},{"$f":"Import!E15806","v":0}]
[95,{"$f":"Import!E15007","v":"Select"},{"$f":"Import!E15107","v":"Select"},{"$f":"Import!E15207","v":"Select"},{"$f":"Import!E15307","v":"Select"},{"$f":"Import!E15407","v":0},{"$f":"Import!E15507","v":0},{"$f":"Import!E15607","v":0},{"$f":"Import!E15707","v":0},{"$f":"Import!E15807","v":0}]
[96,{"$f":"Import!E15008","v":"Select"},{"$f":"Import!E15108","v":"Select"},{"$f":"Import!E15208","v":"Select"},{"$f":"Import!E15308","v":"Select"},{"$f":"Import!E15408","v":0},{"$f":"Import!E15508","v":0},{"$f":"Import!E15608","v":0},{"$f":"Import!E15708","v":0},{"$f":"Import!E15808","v":0}]
[97,{"$f":"Import!E15009","v":"Select"},{"$f":"Import!E15109","v":"Select"},{"$f":"Import!E15209","v":"Select"},{"$f":"Import!E15309","v":"Select"},{"$f":"Import!E15409","v":0},{"$f":"Import!E15509","v":0},{"$f":"Import!E15609","v":0},{"$f":"Import!E15709","v":0},{"$f":"Import!E15809","v":0}]
[98,{"$f":"Import!E15010","v":"Select"},{"$f":"Import!E15110","v":"Select"},{"$f":"Import!E15210","v":"Select"},{"$f":"Import!E15310","v":"Select"},{"$f":"Import!E15410","v":0},{"$f":"Import!E15510","v":0},{"$f":"Import!E15610","v":0},{"$f":"Import!E15710","v":0},{"$f":"Import!E15810","v":0}]
[99,{"$f":"Import!E15011","v":"Select"},{"$f":"Import!E15111","v":"Select"},{"$f":"Import!E15211","v":"Select"},{"$f":"Import!E15311","v":"Select"},{"$f":"Import!E15411","v":0},{"$f":"Import!E15511","v":0},{"$f":"Import!E15611","v":0},{"$f":"Import!E15711","v":0},{"$f":"Import!E15811","v":0}]
[100,{"$f":"Import!E15012","v":"Select"},{"$f":"Import!E15112","v":"Select"},{"$f":"Import!E15212","v":"Select"},{"$f":"Import!E15312","v":"Select"},{"$f":"Import!E15412","v":0},{"$f":"Import!E15512","v":0},{"$f":"Import!E15612","v":0},{"$f":"Import!E15712","v":0},{"$f":"Import!E15812","v":0}]
[]
[null,"Total Other Alternative Investments",null,null,null,{"$f":"SUM(F1453:F1552)","v":0},{"$f":"SUM(G1453:G1552)","v":0},{"$f":"IFERROR(SUMPRODUCT(H1453:H1552,$G1453:$G1552)/SUM($G1453:$G1552),0)","v":0},{"$f":"IFERROR(SUMPRODUCT(I1453:I1552,$G1453:$G1552)/SUM($G1453:$G1552),0)","v":0}]
[]
[null,"(I) DERIVATIVES"]
[]
[null,null,"Enter # of Derivative Types",{"$f":"Import!E15813","v":0}]
[null,"Derivative Type","Underlying","Currency","Trading Category","Purpose","Position","Confirm line contains only derivatives with:",{"$f":"YEAR($C$3)&\" \nMarket Value\"","v":"2023 \nMarket Value"},"Gross Notional Value","Net Notional Value","Exposure (Dollar Delta, DV01, CS01","Comments"]
[1,{"$f":"Import!E15814","v":"Select"},{"$f":"Import!E16014","v":"Select"},{"$f":"Import!E16214","v":"Select"},{"$f":"Import!E16414","v":"Select"},{"$f":"Import!E16614","v":"Select"},{"$f":"Import!E16814","v":"Select"},{"$f":"Import!E17014","v":"Select"},{"$f":"Import!E17214","v":0},{"$f":"Import!E17414","v":0},{"$f":"Import!E17614","v":0},{"$f":"Import!E17814","v":0},{"$f":"Import!E18014","v":0}]
[{"$f":"A1560+1","v":2},{"$f":"Import!E15815","v":"Select"},{"$f":"Import!E16015","v":"Select"},{"$f":"Import!E16215","v":"Select"},{"$f":"Import!E16415","v":"Select"},{"$f":"Import!E16615","v":"Select"},{"$f":"Import!E16815","v":"Select"},{"$f":"Import!E17015","v":"Select"},{"$f":"Import!E17215","v":0},{"$f":"Import!E17415","v":0},{"$f":"Import!E17615","v":0},{"$f":"Import!E17815","v":0},{"$f":"Import!E18015","v":0}]
[{"$f":"A1561+1","v":3},{"$f":"Import!E15816","v":"Select"},{"$f":"Import!E16016","v":"Select"},{"$f":"Import!E16216","v":"Select"},{"$f":"Import!E16416","v":"Select"},{"$f":"Import!E16616","v":"Select"},{"$f":"Import!E16816","v":"Select"},{"$f":"Import!E17016","v":"Select"},{"$f":"Import!E17216","v":0},{"$f":"Import!E17416","v":0},{"$f":"Import!E17616","v":0},{"$f":"Import!E17816","v":0},{"$f":"Import!E18016","v":0}]
[4,{"$f":"Import!E15817","v":"Select"},{"$f":"Import!E16017","v":"Select"},{"$f":"Import!E16217","v":"Select"},{"$f":"Import!E16417","v":"Select"},{"$f":"Import!E16617","v":"Select"},{"$f":"Import!E16817","v":"Select"},{"$f":"Import!E17017","v":"Select"},{"$f":"Import!E17217","v":0},{"$f":"Import!E17417","v":0},{"$f":"Import!E17617","v":0},{"$f":"Import!E17817","v":0},{"$f":"Import!E18017","v":0}]
[5,{"$f":"Import!E15818","v":"Select"},{"$f":"Import!E16018","v":"Select"},{"$f":"Import!E16218","v":"Select"},{"$f":"Import!E16418","v":"Select"},{"$f":"Import!E16618","v":"Select"},{"$f":"Import!E16818","v":"Select"},{"$f":"Import!E17018","v":"Select"},{"$f":"Import!E17218","v":0},{"$f":"Import!E17418","v":0},{"$f":"Import!E17618","v":0},{"$f":"Import!E17818","v":0},{"$f":"Import!E18018","v":0}]
[6,{"$f":"Import!E15819","v":"Select"},{"$f":"Import!E16019","v":"Select"},{"$f":"Import!E16219","v":"Select"},{"$f":"Import!E16419","v":"Select"},{"$f":"Import!E16619","v":"Select"},{"$f":"Import!E16819","v":"Select"},{"$f":"Import!E17019","v":"Select"},{"$f":"Import!E17219","v":0},{"$f":"Import!E17419","v":0},{"$f":"Import!E17619","v":0},{"$f":"Import!E17819","v":0},{"$f":"Import!E18019","v":0}]
[7,{"$f":"Import!E15820","v":"Select"},{"$f":"Import!E16020","v":"Select"},{"$f":"Import!E16220","v":"Select"},{"$f":"Import!E16420","v":"Select"},{"$f":"Import!E16620","v":"Select"},{"$f":"Import!E16820","v":"Select"},{"$f":"Import!E17020","v":"Select"},{"$f":"Import!E17220","v":0},{"$f":"Import!E17420","v":0},{"$f":"Import!E17620","v":0},{"$f":"Import!E17820","v":0},{"$f":"Import!E18020","v":0}]
[8,{"$f":"Import!E15821","v":"Select"},{"$f":"Import!E16021","v":"Select"},{"$f":"Import!E16221","v":"Select"},{"$f":"Import!E16421","v":"Select"},{"$f":"Import!E16621","v":"Select"},{"$f":"Import!E16821","v":"Select"},{"$f":"Import!E17021","v":"Select"},{"$f":"Import!E17221","v":0},{"$f":"Import!E17421","v":0},{"$f":"Import!E17621","v":0},{"$f":"Import!E17821","v":0},{"$f":"Import!E18021","v":0}]
[9,{"$f":"Import!E15822","v":"Select"},{"$f":"Import!E16022","v":"Select"},{"$f":"Import!E16222","v":"Select"},{"$f":"Import!E16422","v":"Select"},{"$f":"Import!E16622","v":"Select"},{"$f":"Import!E16822","v":"Select"},{"$f":"Import!E17022","v":"Select"},{"$f":"Import!E17222","v":0},{"$f":"Import!E17422","v":0},{"$f":"Import!E17622","v":0},{"$f":"Import!E17822","v":0},{"$f":"Import!E18022","v":0}]
[10,{"$f":"Import!E15823","v":"Select"},{"$f":"Import!E16023","v":"Select"},{"$f":"Import!E16223","v":"Select"},{"$f":"Import!E16423","v":"Select"},{"$f":"Import!E16623","v":"Select"},{"$f":"Import!E16823","v":"Select"},{"$f":"Import!E17023","v":"Select"},{"$f":"Import!E17223","v":0},{"$f":"Import!E17423","v":0},{"$f":"Import!E17623","v":0},{"$f":"Import!E17823","v":0},{"$f":"Import!E18023","v":0}]
[11,{"$f":"Import!E15824","v":"Select"},{"$f":"Import!E16024","v":"Select"},{"$f":"Import!E16224","v":"Select"},{"$f":"Import!E16424","v":"Select"},{"$f":"Import!E16624","v":"Select"},{"$f":"Import!E16824","v":"Select"},{"$f":"Import!E17024","v":"Select"},{"$f":"Import!E17224","v":0},{"$f":"Import!E17424","v":0},{"$f":"Import!E17624","v":0},{"$f":"Import!E17824","v":0},{"$f":"Import!E18024","v":0}]
[12,{"$f":"Import!E15825","v":"Select"},{"$f":"Import!E16025","v":"Select"},{"$f":"Import!E16225","v":"Select"},{"$f":"Import!E16425","v":"Select"},{"$f":"Import!E16625","v":"Select"},{"$f":"Import!E16825","v":"Select"},{"$f":"Import!E17025","v":"Select"},{"$f":"Import!E17225","v":0},{"$f":"Import!E17425","v":0},{"$f":"Import!E17625","v":0},{"$f":"Import!E17825","v":0},{"$f":"Import!E18025","v":0}]
[13,{"$f":"Import!E15826","v":"Select"},{"$f":"Import!E16026","v":"Select"},{"$f":"Import!E16226","v":"Select"},{"$f":"Import!E16426","v":"Select"},{"$f":"Import!E16626","v":"Select"},{"$f":"Import!E16826","v":"Select"},{"$f":"Import!E17026","v":"Select"},{"$f":"Import!E17226","v":0},{"$f":"Import!E17426","v":0},{"$f":"Import!E17626","v":0},{"$f":"Import!E17826","v":0},{"$f":"Import!E18026","v":0}]
[14,{"$f":"Import!E15827","v":"Select"},{"$f":"Import!E16027","v":"Select"},{"$f":"Import!E16227","v":"Select"},{"$f":"Import!E16427","v":"Select"},{"$f":"Import!E16627","v":"Select"},{"$f":"Import!E16827","v":"Select"},{"$f":"Import!E17027","v":"Select"},{"$f":"Import!E17227","v":0},{"$f":"Import!E17427","v":0},{"$f":"Import!E17627","v":0},{"$f":"Import!E17827","v":0},{"$f":"Import!E18027","v":0}]
[15,{"$f":"Import!E15828","v":"Select"},{"$f":"Import!E16028","v":"Select"},{"$f":"Import!E16228","v":"Select"},{"$f":"Import!E16428","v":"Select"},{"$f":"Import!E16628","v":"Select"},{"$f":"Import!E16828","v":"Select"},{"$f":"Import!E17028","v":"Select"},{"$f":"Import!E17228","v":0},{"$f":"Import!E17428","v":0},{"$f":"Import!E17628","v":0},{"$f":"Import!E17828","v":0},{"$f":"Import!E18028","v":0}]
[16,{"$f":"Import!E15829","v":"Select"},{"$f":"Import!E16029","v":"Select"},{"$f":"Import!E16229","v":"Select"},{"$f":"Import!E16429","v":"Select"},{"$f":"Import!E16629","v":"Select"},{"$f":"Import!E16829","v":"Select"},{"$f":"Import!E17029","v":"Select"},{"$f":"Import!E17229","v":0},{"$f":"Import!E17429","v":0},{"$f":"Import!E17629","v":0},{"$f":"Import!E17829","v":0},{"$f":"Import!E18029","v":0}]
[17,{"$f":"Import!E15830","v":"Select"},{"$f":"Import!E16030","v":"Select"},{"$f":"Import!E16230","v":"Select"},{"$f":"Import!E16430","v":"Select"},{"$f":"Import!E16630","v":"Select"},{"$f":"Import!E16830","v":"Select"},{"$f":"Import!E17030","v":"Select"},{"$f":"Import!E17230","v":0},{"$f":"Import!E17430","v":0},{"$f":"Import!E17630","v":0},{"$f":"Import!E17830","v":0},{"$f":"Import!E18030","v":0}]
[18,{"$f":"Import!E15831","v":"Select"},{"$f":"Import!E16031","v":"Select"},{"$f":"Import!E16231","v":"Select"},{"$f":"Import!E16431","v":"Select"},{"$f":"Import!E16631","v":"Select"},{"$f":"Import!E16831","v":"Select"},{"$f":"Import!E17031","v":"Select"},{"$f":"Import!E17231","v":0},{"$f":"Import!E17431","v":0},{"$f":"Import!E17631","v":0},{"$f":"Import!E17831","v":0},{"$f":"Import!E18031","v":0}]
[19,{"$f":"Import!E15832","v":"Select"},{"$f":"Import!E16032","v":"Select"},{"$f":"Import!E16232","v":"Select"},{"$f":"Import!E16432","v":"Select"},{"$f":"Import!E16632","v":"Select"},{"$f":"Import!E16832","v":"Select"},{"$f":"Import!E17032","v":"Select"},{"$f":"Import!E17232","v":0},{"$f":"Import!E17432","v":0},{"$f":"Import!E17632","v":0},{"$f":"Import!E17832","v":0},{"$f":"Import!E18032","v":0}]
[20,{"$f":"Import!E15833","v":"Select"},{"$f":"Import!E16033","v":"Select"},{"$f":"Import!E16233","v":"Select"},{"$f":"Import!E16433","v":"Select"},{"$f":"Import!E16633","v":"Select"},{"$f":"Import!E16833","v":"Select"},{"$f":"Import!E17033","v":"Select"},{"$f":"Import!E17233","v":0},{"$f":"Import!E17433","v":0},{"$f":"Import!E17633","v":0},{"$f":"Import!E17833","v":0},{"$f":"Import!E18033","v":0}]
[21,{"$f":"Import!E15834","v":"Select"},{"$f":"Import!E16034","v":"Select"},{"$f":"Import!E16234","v":"Select"},{"$f":"Import!E16434","v":"Select"},{"$f":"Import!E16634","v":"Select"},{"$f":"Import!E16834","v":"Select"},{"$f":"Import!E17034","v":"Select"},{"$f":"Import!E17234","v":0},{"$f":"Import!E17434","v":0},{"$f":"Import!E17634","v":0},{"$f":"Import!E17834","v":0},{"$f":"Import!E18034","v":0}]
[22,{"$f":"Import!E15835","v":"Select"},{"$f":"Import!E16035","v":"Select"},{"$f":"Import!E16235","v":"Select"},{"$f":"Import!E16435","v":"Select"},{"$f":"Import!E16635","v":"Select"},{"$f":"Import!E16835","v":"Select"},{"$f":"Import!E17035","v":"Select"},{"$f":"Import!E17235","v":0},{"$f":"Import!E17435","v":0},{"$f":"Import!E17635","v":0},{"$f":"Import!E17835","v":0},{"$f":"Import!E18035","v":0}]
[23,{"$f":"Import!E15836","v":"Select"},{"$f":"Import!E16036","v":"Select"},{"$f":"Import!E16236","v":"Select"},{"$f":"Import!E16436","v":"Select"},{"$f":"Import!E16636","v":"Select"},{"$f":"Import!E16836","v":"Select"},{"$f":"Import!E17036","v":"Select"},{"$f":"Import!E17236","v":0},{"$f":"Import!E17436","v":0},{"$f":"Import!E17636","v":0},{"$f":"Import!E17836","v":0},{"$f":"Import!E18036","v":0}]
[24,{"$f":"Import!E15837","v":"Select"},{"$f":"Import!E16037","v":"Select"},{"$f":"Import!E16237","v":"Select"},{"$f":"Import!E16437","v":"Select"},{"$f":"Import!E16637","v":"Select"},{"$f":"Import!E16837","v":"Select"},{"$f":"Import!E17037","v":"Select"},{"$f":"Import!E17237","v":0},{"$f":"Import!E17437","v":0},{"$f":"Import!E17637","v":0},{"$f":"Import!E17837","v":0},{"$f":"Import!E18037","v":0}]
[25,{"$f":"Import!E15838","v":"Select"},{"$f":"Import!E16038","v":"Select"},{"$f":"Import!E16238","v":"Select"},{"$f":"Import!E16438","v":"Select"},{"$f":"Import!E16638","v":"Select"},{"$f":"Import!E16838","v":"Select"},{"$f":"Import!E17038","v":"Select"},{"$f":"Import!E17238","v":0},{"$f":"Import!E17438","v":0},{"$f":"Import!E17638","v":0},{"$f":"Import!E17838","v":0},{"$f":"Import!E18038","v":0}]
[26,{"$f":"Import!E15839","v":"Select"},{"$f":"Import!E16039","v":"Select"},{"$f":"Import!E16239","v":"Select"},{"$f":"Import!E16439","v":"Select"},{"$f":"Import!E16639","v":"Select"},{"$f":"Import!E16839","v":"Select"},{"$f":"Import!E17039","v":"Select"},{"$f":"Import!E17239","v":0},{"$f":"Import!E17439","v":0},{"$f":"Import!E17639","v":0},{"$f":"Import!E17839","v":0},{"$f":"Import!E18039","v":0}]
[27,{"$f":"Import!E15840","v":"Select"},{"$f":"Import!E16040","v":"Select"},{"$f":"Import!E16240","v":"Select"},{"$f":"Import!E16440","v":"Select"},{"$f":"Import!E16640","v":"Select"},{"$f":"Import!E16840","v":"Select"},{"$f":"Import!E17040","v":"Select"},{"$f":"Import!E17240","v":0},{"$f":"Import!E17440","v":0},{"$f":"Import!E17640","v":0},{"$f":"Import!E17840","v":0},{"$f":"Import!E18040","v":0}]
[28,{"$f":"Import!E15841","v":"Select"},{"$f":"Import!E16041","v":"Select"},{"$f":"Import!E16241","v":"Select"},{"$f":"Import!E16441","v":"Select"},{"$f":"Import!E16641","v":"Select"},{"$f":"Import!E16841","v":"Select"},{"$f":"Import!E17041","v":"Select"},{"$f":"Import!E17241","v":0},{"$f":"Import!E17441","v":0},{"$f":"Import!E17641","v":0},{"$f":"Import!E17841","v":0},{"$f":"Import!E18041","v":0}]
[29,{"$f":"Import!E15842","v":"Select"},{"$f":"Import!E16042","v":"Select"},{"$f":"Import!E16242","v":"Select"},{"$f":"Import!E16442","v":"Select"},{"$f":"Import!E16642","v":"Select"},{"$f":"Import!E16842","v":"Select"},{"$f":"Import!E17042","v":"Select"},{"$f":"Import!E17242","v":0},{"$f":"Import!E17442","v":0},{"$f":"Import!E17642","v":0},{"$f":"Import!E17842","v":0},{"$f":"Import!E18042","v":0}]
[30,{"$f":"Import!E15843","v":"Select"},{"$f":"Import!E16043","v":"Select"},{"$f":"Import!E16243","v":"Select"},{"$f":"Import!E16443","v":"Select"},{"$f":"Import!E16643","v":"Select"},{"$f":"Import!E16843","v":"Select"},{"$f":"Import!E17043","v":"Select"},{"$f":"Import!E17243","v":0},{"$f":"Import!E17443","v":0},{"$f":"Import!E17643","v":0},{"$f":"Import!E17843","v":0},{"$f":"Import!E18043","v":0}]
[31,{"$f":"Import!E15844","v":"Select"},{"$f":"Import!E16044","v":"Select"},{"$f":"Import!E16244","v":"Select"},{"$f":"Import!E16444","v":"Select"},{"$f":"Import!E16644","v":"Select"},{"$f":"Import!E16844","v":"Select"},{"$f":"Import!E17044","v":"Select"},{"$f":"Import!E17244","v":0},{"$f":"Import!E17444","v":0},{"$f":"Import!E17644","v":0},{"$f":"Import!E17844","v":0},{"$f":"Import!E18044","v":0}]
[32,{"$f":"Import!E15845","v":"Select"},{"$f":"Import!E16045","v":"Select"},{"$f":"Import!E16245","v":"Select"},{"$f":"Import!E16445","v":"Select"},{"$f":"Import!E16645","v":"Select"},{"$f":"Import!E16845","v":"Select"},{"$f":"Import!E17045","v":"Select"},{"$f":"Import!E17245","v":0},{"$f":"Import!E17445","v":0},{"$f":"Import!E17645","v":0},{"$f":"Import!E17845","v":0},{"$f":"Import!E18045","v":0}]
[33,{"$f":"Import!E15846","v":"Select"},{"$f":"Import!E16046","v":"Select"},{"$f":"Import!E16246","v":"Select"},{"$f":"Import!E16446","v":"Select"},{"$f":"Import!E16646","v":"Select"},{"$f":"Import!E16846","v":"Select"},{"$f":"Import!E17046","v":"Select"},{"$f":"Import!E17246","v":0},{"$f":"Import!E17446","v":0},{"$f":"Import!E17646","v":0},{"$f":"Import!E17846","v":0},{"$f":"Import!E18046","v":0}]
[34,{"$f":"Import!E15847","v":"Select"},{"$f":"Import!E16047","v":"Select"},{"$f":"Import!E16247","v":"Select"},{"$f":"Import!E16447","v":"Select"},{"$f":"Import!E16647","v":"Select"},{"$f":"Import!E16847","v":"Select"},{"$f":"Import!E17047","v":"Select"},{"$f":"Import!E17247","v":0},{"$f":"Import!E17447","v":0},{"$f":"Import!E17647","v":0},{"$f":"Import!E17847","v":0},{"$f":"Import!E18047","v":0}]
[35,{"$f":"Import!E15848","v":"Select"},{"$f":"Import!E16048","v":"Select"},{"$f":"Import!E16248","v":"Select"},{"$f":"Import!E16448","v":"Select"},{"$f":"Import!E16648","v":"Select"},{"$f":"Import!E16848","v":"Select"},{"$f":"Import!E17048","v":"Select"},{"$f":"Import!E17248","v":0},{"$f":"Import!E17448","v":0},{"$f":"Import!E17648","v":0},{"$f":"Import!E17848","v":0},{"$f":"Import!E18048","v":0}]
[36,{"$f":"Import!E15849","v":"Select"},{"$f":"Import!E16049","v":"Select"},{"$f":"Import!E16249","v":"Select"},{"$f":"Import!E16449","v":"Select"},{"$f":"Import!E16649","v":"Select"},{"$f":"Import!E16849","v":"Select"},{"$f":"Import!E17049","v":"Select"},{"$f":"Import!E17249","v":0},{"$f":"Import!E17449","v":0},{"$f":"Import!E17649","v":0},{"$f":"Import!E17849","v":0},{"$f":"Import!E18049","v":0}]
[37,{"$f":"Import!E15850","v":"Select"},{"$f":"Import!E16050","v":"Select"},{"$f":"Import!E16250","v":"Select"},{"$f":"Import!E16450","v":"Select"},{"$f":"Import!E16650","v":"Select"},{"$f":"Import!E16850","v":"Select"},{"$f":"Import!E17050","v":"Select"},{"$f":"Import!E17250","v":0},{"$f":"Import!E17450","v":0},{"$f":"Import!E17650","v":0},{"$f":"Import!E17850","v":0},{"$f":"Import!E18050","v":0}]
[38,{"$f":"Import!E15851","v":"Select"},{"$f":"Import!E16051","v":"Select"},{"$f":"Import!E16251","v":"Select"},{"$f":"Import!E16451","v":"Select"},{"$f":"Import!E16651","v":"Select"},{"$f":"Import!E16851","v":"Select"},{"$f":"Import!E17051","v":"Select"},{"$f":"Import!E17251","v":0},{"$f":"Import!E17451","v":0},{"$f":"Import!E17651","v":0},{"$f":"Import!E17851","v":0},{"$f":"Import!E18051","v":0}]
[39,{"$f":"Import!E15852","v":"Select"},{"$f":"Import!E16052","v":"Select"},{"$f":"Import!E16252","v":"Select"},{"$f":"Import!E16452","v":"Select"},{"$f":"Import!E16652","v":"Select"},{"$f":"Import!E16852","v":"Select"},{"$f":"Import!E17052","v":"Select"},{"$f":"Import!E17252","v":0},{"$f":"Import!E17452","v":0},{"$f":"Import!E17652","v":0},{"$f":"Import!E17852","v":0},{"$f":"Import!E18052","v":0}]
[40,{"$f":"Import!E15853","v":"Select"},{"$f":"Import!E16053","v":"Select"},{"$f":"Import!E16253","v":"Select"},{"$f":"Import!E16453","v":"Select"},{"$f":"Import!E16653","v":"Select"},{"$f":"Import!E16853","v":"Select"},{"$f":"Import!E17053","v":"Select"},{"$f":"Import!E17253","v":0},{"$f":"Import!E17453","v":0},{"$f":"Import!E17653","v":0},{"$f":"Import!E17853","v":0},{"$f":"Import!E18053","v":0}]
[41,{"$f":"Import!E15854","v":"Select"},{"$f":"Import!E16054","v":"Select"},{"$f":"Import!E16254","v":"Select"},{"$f":"Import!E16454","v":"Select"},{"$f":"Import!E16654","v":"Select"},{"$f":"Import!E16854","v":"Select"},{"$f":"Import!E17054","v":"Select"},{"$f":"Import!E17254","v":0},{"$f":"Import!E17454","v":0},{"$f":"Import!E17654","v":0},{"$f":"Import!E17854","v":0},{"$f":"Import!E18054","v":0}]
[42,{"$f":"Import!E15855","v":"Select"},{"$f":"Import!E16055","v":"Select"},{"$f":"Import!E16255","v":"Select"},{"$f":"Import!E16455","v":"Select"},{"$f":"Import!E16655","v":"Select"},{"$f":"Import!E16855","v":"Select"},{"$f":"Import!E17055","v":"Select"},{"$f":"Import!E17255","v":0},{"$f":"Import!E17455","v":0},{"$f":"Import!E17655","v":0},{"$f":"Import!E17855","v":0},{"$f":"Import!E18055","v":0}]
[43,{"$f":"Import!E15856","v":"Select"},{"$f":"Import!E16056","v":"Select"},{"$f":"Import!E16256","v":"Select"},{"$f":"Import!E16456","v":"Select"},{"$f":"Import!E16656","v":"Select"},{"$f":"Import!E16856","v":"Select"},{"$f":"Import!E17056","v":"Select"},{"$f":"Import!E17256","v":0},{"$f":"Import!E17456","v":0},{"$f":"Import!E17656","v":0},{"$f":"Import!E17856","v":0},{"$f":"Import!E18056","v":0}]
[44,{"$f":"Import!E15857","v":"Select"},{"$f":"Import!E16057","v":"Select"},{"$f":"Import!E16257","v":"Select"},{"$f":"Import!E16457","v":"Select"},{"$f":"Import!E16657","v":"Select"},{"$f":"Import!E16857","v":"Select"},{"$f":"Import!E17057","v":"Select"},{"$f":"Import!E17257","v":0},{"$f":"Import!E17457","v":0},{"$f":"Import!E17657","v":0},{"$f":"Import!E17857","v":0},{"$f":"Import!E18057","v":0}]
[45,{"$f":"Import!E15858","v":"Select"},{"$f":"Import!E16058","v":"Select"},{"$f":"Import!E16258","v":"Select"},{"$f":"Import!E16458","v":"Select"},{"$f":"Import!E16658","v":"Select"},{"$f":"Import!E16858","v":"Select"},{"$f":"Import!E17058","v":"Select"},{"$f":"Import!E17258","v":0},{"$f":"Import!E17458","v":0},{"$f":"Import!E17658","v":0},{"$f":"Import!E17858","v":0},{"$f":"Import!E18058","v":0}]
[46,{"$f":"Import!E15859","v":"Select"},{"$f":"Import!E16059","v":"Select"},{"$f":"Import!E16259","v":"Select"},{"$f":"Import!E16459","v":"Select"},{"$f":"Import!E16659","v":"Select"},{"$f":"Import!E16859","v":"Select"},{"$f":"Import!E17059","v":"Select"},{"$f":"Import!E17259","v":0},{"$f":"Import!E17459","v":0},{"$f":"Import!E17659","v":0},{"$f":"Import!E17859","v":0},{"$f":"Import!E18059","v":0}]
[47,{"$f":"Import!E15860","v":"Select"},{"$f":"Import!E16060","v":"Select"},{"$f":"Import!E16260","v":"Select"},{"$f":"Import!E16460","v":"Select"},{"$f":"Import!E16660","v":"Select"},{"$f":"Import!E16860","v":"Select"},{"$f":"Import!E17060","v":"Select"},{"$f":"Import!E17260","v":0},{"$f":"Import!E17460","v":0},{"$f":"Import!E17660","v":0},{"$f":"Import!E17860","v":0},{"$f":"Import!E18060","v":0}]
[48,{"$f":"Import!E15861","v":"Select"},{"$f":"Import!E16061","v":"Select"},{"$f":"Import!E16261","v":"Select"},{"$f":"Import!E16461","v":"Select"},{"$f":"Import!E16661","v":"Select"},{"$f":"Import!E16861","v":"Select"},{"$f":"Import!E17061","v":"Select"},{"$f":"Import!E17261","v":0},{"$f":"Import!E17461","v":0},{"$f":"Import!E17661","v":0},{"$f":"Import!E17861","v":0},{"$f":"Import!E18061","v":0}]
[49,{"$f":"Import!E15862","v":"Select"},{"$f":"Import!E16062","v":"Select"},{"$f":"Import!E16262","v":"Select"},{"$f":"Import!E16462","v":"Select"},{"$f":"Import!E16662","v":"Select"},{"$f":"Import!E16862","v":"Select"},{"$f":"Import!E17062","v":"Select"},{"$f":"Import!E17262","v":0},{"$f":"Import!E17462","v":0},{"$f":"Import!E17662","v":0},{"$f":"Import!E17862","v":0},{"$f":"Import!E18062","v":0}]
[50,{"$f":"Import!E15863","v":"Select"},{"$f":"Import!E16063","v":"Select"},{"$f":"Import!E16263","v":"Select"},{"$f":"Import!E16463","v":"Select"},{"$f":"Import!E16663","v":"Select"},{"$f":"Import!E16863","v":"Select"},{"$f":"Import!E17063","v":"Select"},{"$f":"Import!E17263","v":0},{"$f":"Import!E17463","v":0},{"$f":"Import!E17663","v":0},{"$f":"Import!E17863","v":0},{"$f":"Import!E18063","v":0}]
[51,{"$f":"Import!E15864","v":"Select"},{"$f":"Import!E16064","v":"Select"},{"$f":"Import!E16264","v":"Select"},{"$f":"Import!E16464","v":"Select"},{"$f":"Import!E16664","v":"Select"},{"$f":"Import!E16864","v":"Select"},{"$f":"Import!E17064","v":"Select"},{"$f":"Import!E17264","v":0},{"$f":"Import!E17464","v":0},{"$f":"Import!E17664","v":0},{"$f":"Import!E17864","v":0},{"$f":"Import!E18064","v":0}]
[52,{"$f":"Import!E15865","v":"Select"},{"$f":"Import!E16065","v":"Select"},{"$f":"Import!E16265","v":"Select"},{"$f":"Import!E16465","v":"Select"},{"$f":"Import!E16665","v":"Select"},{"$f":"Import!E16865","v":"Select"},{"$f":"Import!E17065","v":"Select"},{"$f":"Import!E17265","v":0},{"$f":"Import!E17465","v":0},{"$f":"Import!E17665","v":0},{"$f":"Import!E17865","v":0},{"$f":"Import!E18065","v":0}]
[53,{"$f":"Import!E15866","v":"Select"},{"$f":"Import!E16066","v":"Select"},{"$f":"Import!E16266","v":"Select"},{"$f":"Import!E16466","v":"Select"},{"$f":"Import!E16666","v":"Select"},{"$f":"Import!E16866","v":"Select"},{"$f":"Import!E17066","v":"Select"},{"$f":"Import!E17266","v":0},{"$f":"Import!E17466","v":0},{"$f":"Import!E17666","v":0},{"$f":"Import!E17866","v":0},{"$f":"Import!E18066","v":0}]
[54,{"$f":"Import!E15867","v":"Select"},{"$f":"Import!E16067","v":"Select"},{"$f":"Import!E16267","v":"Select"},{"$f":"Import!E16467","v":"Select"},{"$f":"Import!E16667","v":"Select"},{"$f":"Import!E16867","v":"Select"},{"$f":"Import!E17067","v":"Select"},{"$f":"Import!E17267","v":0},{"$f":"Import!E17467","v":0},{"$f":"Import!E17667","v":0},{"$f":"Import!E17867","v":0},{"$f":"Import!E18067","v":0}]
[55,{"$f":"Import!E15868","v":"Select"},{"$f":"Import!E16068","v":"Select"},{"$f":"Import!E16268","v":"Select"},{"$f":"Import!E16468","v":"Select"},{"$f":"Import!E16668","v":"Select"},{"$f":"Import!E16868","v":"Select"},{"$f":"Import!E17068","v":"Select"},{"$f":"Import!E17268","v":0},{"$f":"Import!E17468","v":0},{"$f":"Import!E17668","v":0},{"$f":"Import!E17868","v":0},{"$f":"Import!E18068","v":0}]
[56,{"$f":"Import!E15869","v":"Select"},{"$f":"Import!E16069","v":"Select"},{"$f":"Import!E16269","v":"Select"},{"$f":"Import!E16469","v":"Select"},{"$f":"Import!E16669","v":"Select"},{"$f":"Import!E16869","v":"Select"},{"$f":"Import!E17069","v":"Select"},{"$f":"Import!E17269","v":0},{"$f":"Import!E17469","v":0},{"$f":"Import!E17669","v":0},{"$f":"Import!E17869","v":0},{"$f":"Import!E18069","v":0}]
[57,{"$f":"Import!E15870","v":"Select"},{"$f":"Import!E16070","v":"Select"},{"$f":"Import!E16270","v":"Select"},{"$f":"Import!E16470","v":"Select"},{"$f":"Import!E16670","v":"Select"},{"$f":"Import!E16870","v":"Select"},{"$f":"Import!E17070","v":"Select"},{"$f":"Import!E17270","v":0},{"$f":"Import!E17470","v":0},{"$f":"Import!E17670","v":0},{"$f":"Import!E17870","v":0},{"$f":"Import!E18070","v":0}]
[58,{"$f":"Import!E15871","v":"Select"},{"$f":"Import!E16071","v":"Select"},{"$f":"Import!E16271","v":"Select"},{"$f":"Import!E16471","v":"Select"},{"$f":"Import!E16671","v":"Select"},{"$f":"Import!E16871","v":"Select"},{"$f":"Import!E17071","v":"Select"},{"$f":"Import!E17271","v":0},{"$f":"Import!E17471","v":0},{"$f":"Import!E17671","v":0},{"$f":"Import!E17871","v":0},{"$f":"Import!E18071","v":0}]
[59,{"$f":"Import!E15872","v":"Select"},{"$f":"Import!E16072","v":"Select"},{"$f":"Import!E16272","v":"Select"},{"$f":"Import!E16472","v":"Select"},{"$f":"Import!E16672","v":"Select"},{"$f":"Import!E16872","v":"Select"},{"$f":"Import!E17072","v":"Select"},{"$f":"Import!E17272","v":0},{"$f":"Import!E17472","v":0},{"$f":"Import!E17672","v":0},{"$f":"Import!E17872","v":0},{"$f":"Import!E18072","v":0}]
[60,{"$f":"Import!E15873","v":"Select"},{"$f":"Import!E16073","v":"Select"},{"$f":"Import!E16273","v":"Select"},{"$f":"Import!E16473","v":"Select"},{"$f":"Import!E16673","v":"Select"},{"$f":"Import!E16873","v":"Select"},{"$f":"Import!E17073","v":"Select"},{"$f":"Import!E17273","v":0},{"$f":"Import!E17473","v":0},{"$f":"Import!E17673","v":0},{"$f":"Import!E17873","v":0},{"$f":"Import!E18073","v":0}]
[61,{"$f":"Import!E15874","v":"Select"},{"$f":"Import!E16074","v":"Select"},{"$f":"Import!E16274","v":"Select"},{"$f":"Import!E16474","v":"Select"},{"$f":"Import!E16674","v":"Select"},{"$f":"Import!E16874","v":"Select"},{"$f":"Import!E17074","v":"Select"},{"$f":"Import!E17274","v":0},{"$f":"Import!E17474","v":0},{"$f":"Import!E17674","v":0},{"$f":"Import!E17874","v":0},{"$f":"Import!E18074","v":0}]
[62,{"$f":"Import!E15875","v":"Select"},{"$f":"Import!E16075","v":"Select"},{"$f":"Import!E16275","v":"Select"},{"$f":"Import!E16475","v":"Select"},{"$f":"Import!E16675","v":"Select"},{"$f":"Import!E16875","v":"Select"},{"$f":"Import!E17075","v":"Select"},{"$f":"Import!E17275","v":0},{"$f":"Import!E17475","v":0},{"$f":"Import!E17675","v":0},{"$f":"Import!E17875","v":0},{"$f":"Import!E18075","v":0}]
[63,{"$f":"Import!E15876","v":"Select"},{"$f":"Import!E16076","v":"Select"},{"$f":"Import!E16276","v":"Select"},{"$f":"Import!E16476","v":"Select"},{"$f":"Import!E16676","v":"Select"},{"$f":"Import!E16876","v":"Select"},{"$f":"Import!E17076","v":"Select"},{"$f":"Import!E17276","v":0},{"$f":"Import!E17476","v":0},{"$f":"Import!E17676","v":0},{"$f":"Import!E17876","v":0},{"$f":"Import!E18076","v":0}]
[64,{"$f":"Import!E15877","v":"Select"},{"$f":"Import!E16077","v":"Select"},{"$f":"Import!E16277","v":"Select"},{"$f":"Import!E16477","v":"Select"},{"$f":"Import!E16677","v":"Select"},{"$f":"Import!E16877","v":"Select"},{"$f":"Import!E17077","v":"Select"},{"$f":"Import!E17277","v":0},{"$f":"Import!E17477","v":0},{"$f":"Import!E17677","v":0},{"$f":"Import!E17877","v":0},{"$f":"Import!E18077","v":0}]
[65,{"$f":"Import!E15878","v":"Select"},{"$f":"Import!E16078","v":"Select"},{"$f":"Import!E16278","v":"Select"},{"$f":"Import!E16478","v":"Select"},{"$f":"Import!E16678","v":"Select"},{"$f":"Import!E16878","v":"Select"},{"$f":"Import!E17078","v":"Select"},{"$f":"Import!E17278","v":0},{"$f":"Import!E17478","v":0},{"$f":"Import!E17678","v":0},{"$f":"Import!E17878","v":0},{"$f":"Import!E18078","v":0}]
[66,{"$f":"Import!E15879","v":"Select"},{"$f":"Import!E16079","v":"Select"},{"$f":"Import!E16279","v":"Select"},{"$f":"Import!E16479","v":"Select"},{"$f":"Import!E16679","v":"Select"},{"$f":"Import!E16879","v":"Select"},{"$f":"Import!E17079","v":"Select"},{"$f":"Import!E17279","v":0},{"$f":"Import!E17479","v":0},{"$f":"Import!E17679","v":0},{"$f":"Import!E17879","v":0},{"$f":"Import!E18079","v":0}]
[{"$f":"A1625+1","v":67},{"$f":"Import!E15880","v":"Select"},{"$f":"Import!E16080","v":"Select"},{"$f":"Import!E16280","v":"Select"},{"$f":"Import!E16480","v":"Select"},{"$f":"Import!E16680","v":"Select"},{"$f":"Import!E16880","v":"Select"},{"$f":"Import!E17080","v":"Select"},{"$f":"Import!E17280","v":0},{"$f":"Import!E17480","v":0},{"$f":"Import!E17680","v":0},{"$f":"Import!E17880","v":0},{"$f":"Import!E18080","v":0}]
[68,{"$f":"Import!E15881","v":"Select"},{"$f":"Import!E16081","v":"Select"},{"$f":"Import!E16281","v":"Select"},{"$f":"Import!E16481","v":"Select"},{"$f":"Import!E16681","v":"Select"},{"$f":"Import!E16881","v":"Select"},{"$f":"Import!E17081","v":"Select"},{"$f":"Import!E17281","v":0},{"$f":"Import!E17481","v":0},{"$f":"Import!E17681","v":0},{"$f":"Import!E17881","v":0},{"$f":"Import!E18081","v":0}]
[69,{"$f":"Import!E15882","v":"Select"},{"$f":"Import!E16082","v":"Select"},{"$f":"Import!E16282","v":"Select"},{"$f":"Import!E16482","v":"Select"},{"$f":"Import!E16682","v":"Select"},{"$f":"Import!E16882","v":"Select"},{"$f":"Import!E17082","v":"Select"},{"$f":"Import!E17282","v":0},{"$f":"Import!E17482","v":0},{"$f":"Import!E17682","v":0},{"$f":"Import!E17882","v":0},{"$f":"Import!E18082","v":0}]
[70,{"$f":"Import!E15883","v":"Select"},{"$f":"Import!E16083","v":"Select"},{"$f":"Import!E16283","v":"Select"},{"$f":"Import!E16483","v":"Select"},{"$f":"Import!E16683","v":"Select"},{"$f":"Import!E16883","v":"Select"},{"$f":"Import!E17083","v":"Select"},{"$f":"Import!E17283","v":0},{"$f":"Import!E17483","v":0},{"$f":"Import!E17683","v":0},{"$f":"Import!E17883","v":0},{"$f":"Import!E18083","v":0}]
[71,{"$f":"Import!E15884","v":"Select"},{"$f":"Import!E16084","v":"Select"},{"$f":"Import!E16284","v":"Select"},{"$f":"Import!E16484","v":"Select"},{"$f":"Import!E16684","v":"Select"},{"$f":"Import!E16884","v":"Select"},{"$f":"Import!E17084","v":"Select"},{"$f":"Import!E17284","v":0},{"$f":"Import!E17484","v":0},{"$f":"Import!E17684","v":0},{"$f":"Import!E17884","v":0},{"$f":"Import!E18084","v":0}]
[72,{"$f":"Import!E15885","v":"Select"},{"$f":"Import!E16085","v":"Select"},{"$f":"Import!E16285","v":"Select"},{"$f":"Import!E16485","v":"Select"},{"$f":"Import!E16685","v":"Select"},{"$f":"Import!E16885","v":"Select"},{"$f":"Import!E17085","v":"Select"},{"$f":"Import!E17285","v":0},{"$f":"Import!E17485","v":0},{"$f":"Import!E17685","v":0},{"$f":"Import!E17885","v":0},{"$f":"Import!E18085","v":0}]
[73,{"$f":"Import!E15886","v":"Select"},{"$f":"Import!E16086","v":"Select"},{"$f":"Import!E16286","v":"Select"},{"$f":"Import!E16486","v":"Select"},{"$f":"Import!E16686","v":"Select"},{"$f":"Import!E16886","v":"Select"},{"$f":"Import!E17086","v":"Select"},{"$f":"Import!E17286","v":0},{"$f":"Import!E17486","v":0},{"$f":"Import!E17686","v":0},{"$f":"Import!E17886","v":0},{"$f":"Import!E18086","v":0}]
[74,{"$f":"Import!E15887","v":"Select"},{"$f":"Import!E16087","v":"Select"},{"$f":"Import!E16287","v":"Select"},{"$f":"Import!E16487","v":"Select"},{"$f":"Import!E16687","v":"Select"},{"$f":"Import!E16887","v":"Select"},{"$f":"Import!E17087","v":"Select"},{"$f":"Import!E17287","v":0},{"$f":"Import!E17487","v":0},{"$f":"Import!E17687","v":0},{"$f":"Import!E17887","v":0},{"$f":"Import!E18087","v":0}]
[75,{"$f":"Import!E15888","v":"Select"},{"$f":"Import!E16088","v":"Select"},{"$f":"Import!E16288","v":"Select"},{"$f":"Import!E16488","v":"Select"},{"$f":"Import!E16688","v":"Select"},{"$f":"Import!E16888","v":"Select"},{"$f":"Import!E17088","v":"Select"},{"$f":"Import!E17288","v":0},{"$f":"Import!E17488","v":0},{"$f":"Import!E17688","v":0},{"$f":"Import!E17888","v":0},{"$f":"Import!E18088","v":0}]
[76,{"$f":"Import!E15889","v":"Select"},{"$f":"Import!E16089","v":"Select"},{"$f":"Import!E16289","v":"Select"},{"$f":"Import!E16489","v":"Select"},{"$f":"Import!E16689","v":"Select"},{"$f":"Import!E16889","v":"Select"},{"$f":"Import!E17089","v":"Select"},{"$f":"Import!E17289","v":0},{"$f":"Import!E17489","v":0},{"$f":"Import!E17689","v":0},{"$f":"Import!E17889","v":0},{"$f":"Import!E18089","v":0}]
[77,{"$f":"Import!E15890","v":"Select"},{"$f":"Import!E16090","v":"Select"},{"$f":"Import!E16290","v":"Select"},{"$f":"Import!E16490","v":"Select"},{"$f":"Import!E16690","v":"Select"},{"$f":"Import!E16890","v":"Select"},{"$f":"Import!E17090","v":"Select"},{"$f":"Import!E17290","v":0},{"$f":"Import!E17490","v":0},{"$f":"Import!E17690","v":0},{"$f":"Import!E17890","v":0},{"$f":"Import!E18090","v":0}]
[78,{"$f":"Import!E15891","v":"Select"},{"$f":"Import!E16091","v":"Select"},{"$f":"Import!E16291","v":"Select"},{"$f":"Import!E16491","v":"Select"},{"$f":"Import!E16691","v":"Select"},{"$f":"Import!E16891","v":"Select"},{"$f":"Import!E17091","v":"Select"},{"$f":"Import!E17291","v":0},{"$f":"Import!E17491","v":0},{"$f":"Import!E17691","v":0},{"$f":"Import!E17891","v":0},{"$f":"Import!E18091","v":0}]
[79,{"$f":"Import!E15892","v":"Select"},{"$f":"Import!E16092","v":"Select"},{"$f":"Import!E16292","v":"Select"},{"$f":"Import!E16492","v":"Select"},{"$f":"Import!E16692","v":"Select"},{"$f":"Import!E16892","v":"Select"},{"$f":"Import!E17092","v":"Select"},{"$f":"Import!E17292","v":0},{"$f":"Import!E17492","v":0},{"$f":"Import!E17692","v":0},{"$f":"Import!E17892","v":0},{"$f":"Import!E18092","v":0}]
[80,{"$f":"Import!E15893","v":"Select"},{"$f":"Import!E16093","v":"Select"},{"$f":"Import!E16293","v":"Select"},{"$f":"Import!E16493","v":"Select"},{"$f":"Import!E16693","v":"Select"},{"$f":"Import!E16893","v":"Select"},{"$f":"Import!E17093","v":"Select"},{"$f":"Import!E17293","v":0},{"$f":"Import!E17493","v":0},{"$f":"Import!E17693","v":0},{"$f":"Import!E17893","v":0},{"$f":"Import!E18093","v":0}]
[81,{"$f":"Import!E15894","v":"Select"},{"$f":"Import!E16094","v":"Select"},{"$f":"Import!E16294","v":"Select"},{"$f":"Import!E16494","v":"Select"},{"$f":"Import!E16694","v":"Select"},{"$f":"Import!E16894","v":"Select"},{"$f":"Import!E17094","v":"Select"},{"$f":"Import!E17294","v":0},{"$f":"Import!E17494","v":0},{"$f":"Import!E17694","v":0},{"$f":"Import!E17894","v":0},{"$f":"Import!E18094","v":0}]
[82,{"$f":"Import!E15895","v":"Select"},{"$f":"Import!E16095","v":"Select"},{"$f":"Import!E16295","v":"Select"},{"$f":"Import!E16495","v":"Select"},{"$f":"Import!E16695","v":"Select"},{"$f":"Import!E16895","v":"Select"},{"$f":"Import!E17095","v":"Select"},{"$f":"Import!E17295","v":0},{"$f":"Import!E17495","v":0},{"$f":"Import!E17695","v":0},{"$f":"Import!E17895","v":0},{"$f":"Import!E18095","v":0}]
[83,{"$f":"Import!E15896","v":"Select"},{"$f":"Import!E16096","v":"Select"},{"$f":"Import!E16296","v":"Select"},{"$f":"Import!E16496","v":"Select"},{"$f":"Import!E16696","v":"Select"},{"$f":"Import!E16896","v":"Select"},{"$f":"Import!E17096","v":"Select"},{"$f":"Import!E17296","v":0},{"$f":"Import!E17496","v":0},{"$f":"Import!E17696","v":0},{"$f":"Import!E17896","v":0},{"$f":"Import!E18096","v":0}]
[84,{"$f":"Import!E15897","v":"Select"},{"$f":"Import!E16097","v":"Select"},{"$f":"Import!E16297","v":"Select"},{"$f":"Import!E16497","v":"Select"},{"$f":"Import!E16697","v":"Select"},{"$f":"Import!E16897","v":"Select"},{"$f":"Import!E17097","v":"Select"},{"$f":"Import!E17297","v":0},{"$f":"Import!E17497","v":0},{"$f":"Import!E17697","v":0},{"$f":"Import!E17897","v":0},{"$f":"Import!E18097","v":0}]
[85,{"$f":"Import!E15898","v":"Select"},{"$f":"Import!E16098","v":"Select"},{"$f":"Import!E16298","v":"Select"},{"$f":"Import!E16498","v":"Select"},{"$f":"Import!E16698","v":"Select"},{"$f":"Import!E16898","v":"Select"},{"$f":"Import!E17098","v":"Select"},{"$f":"Import!E17298","v":0},{"$f":"Import!E17498","v":0},{"$f":"Import!E17698","v":0},{"$f":"Import!E17898","v":0},{"$f":"Import!E18098","v":0}]
[86,{"$f":"Import!E15899","v":"Select"},{"$f":"Import!E16099","v":"Select"},{"$f":"Import!E16299","v":"Select"},{"$f":"Import!E16499","v":"Select"},{"$f":"Import!E16699","v":"Select"},{"$f":"Import!E16899","v":"Select"},{"$f":"Import!E17099","v":"Select"},{"$f":"Import!E17299","v":0},{"$f":"Import!E17499","v":0},{"$f":"Import!E17699","v":0},{"$f":"Import!E17899","v":0},{"$f":"Import!E18099","v":0}]
[87,{"$f":"Import!E15900","v":"Select"},{"$f":"Import!E16100","v":"Select"},{"$f":"Import!E16300","v":"Select"},{"$f":"Import!E16500","v":"Select"},{"$f":"Import!E16700","v":"Select"},{"$f":"Import!E16900","v":"Select"},{"$f":"Import!E17100","v":"Select"},{"$f":"Import!E17300","v":0},{"$f":"Import!E17500","v":0},{"$f":"Import!E17700","v":0},{"$f":"Import!E17900","v":0},{"$f":"Import!E18100","v":0}]
[88,{"$f":"Import!E15901","v":"Select"},{"$f":"Import!E16101","v":"Select"},{"$f":"Import!E16301","v":"Select"},{"$f":"Import!E16501","v":"Select"},{"$f":"Import!E16701","v":"Select"},{"$f":"Import!E16901","v":"Select"},{"$f":"Import!E17101","v":"Select"},{"$f":"Import!E17301","v":0},{"$f":"Import!E17501","v":0},{"$f":"Import!E17701","v":0},{"$f":"Import!E17901","v":0},{"$f":"Import!E18101","v":0}]
[89,{"$f":"Import!E15902","v":"Select"},{"$f":"Import!E16102","v":"Select"},{"$f":"Import!E16302","v":"Select"},{"$f":"Import!E16502","v":"Select"},{"$f":"Import!E16702","v":"Select"},{"$f":"Import!E16902","v":"Select"},{"$f":"Import!E17102","v":"Select"},{"$f":"Import!E17302","v":0},{"$f":"Import!E17502","v":0},{"$f":"Import!E17702","v":0},{"$f":"Import!E17902","v":0},{"$f":"Import!E18102","v":0}]
[90,{"$f":"Import!E15903","v":"Select"},{"$f":"Import!E16103","v":"Select"},{"$f":"Import!E16303","v":"Select"},{"$f":"Import!E16503","v":"Select"},{"$f":"Import!E16703","v":"Select"},{"$f":"Import!E16903","v":"Select"},{"$f":"Import!E17103","v":"Select"},{"$f":"Import!E17303","v":0},{"$f":"Import!E17503","v":0},{"$f":"Import!E17703","v":0},{"$f":"Import!E17903","v":0},{"$f":"Import!E18103","v":0}]
[91,{"$f":"Import!E15904","v":"Select"},{"$f":"Import!E16104","v":"Select"},{"$f":"Import!E16304","v":"Select"},{"$f":"Import!E16504","v":"Select"},{"$f":"Import!E16704","v":"Select"},{"$f":"Import!E16904","v":"Select"},{"$f":"Import!E17104","v":"Select"},{"$f":"Import!E17304","v":0},{"$f":"Import!E17504","v":0},{"$f":"Import!E17704","v":0},{"$f":"Import!E17904","v":0},{"$f":"Import!E18104","v":0}]
[92,{"$f":"Import!E15905","v":"Select"},{"$f":"Import!E16105","v":"Select"},{"$f":"Import!E16305","v":"Select"},{"$f":"Import!E16505","v":"Select"},{"$f":"Import!E16705","v":"Select"},{"$f":"Import!E16905","v":"Select"},{"$f":"Import!E17105","v":"Select"},{"$f":"Import!E17305","v":0},{"$f":"Import!E17505","v":0},{"$f":"Import!E17705","v":0},{"$f":"Import!E17905","v":0},{"$f":"Import!E18105","v":0}]
[93,{"$f":"Import!E15906","v":"Select"},{"$f":"Import!E16106","v":"Select"},{"$f":"Import!E16306","v":"Select"},{"$f":"Import!E16506","v":"Select"},{"$f":"Import!E16706","v":"Select"},{"$f":"Import!E16906","v":"Select"},{"$f":"Import!E17106","v":"Select"},{"$f":"Import!E17306","v":0},{"$f":"Import!E17506","v":0},{"$f":"Import!E17706","v":0},{"$f":"Import!E17906","v":0},{"$f":"Import!E18106","v":0}]
[94,{"$f":"Import!E15907","v":"Select"},{"$f":"Import!E16107","v":"Select"},{"$f":"Import!E16307","v":"Select"},{"$f":"Import!E16507","v":"Select"},{"$f":"Import!E16707","v":"Select"},{"$f":"Import!E16907","v":"Select"},{"$f":"Import!E17107","v":"Select"},{"$f":"Import!E17307","v":0},{"$f":"Import!E17507","v":0},{"$f":"Import!E17707","v":0},{"$f":"Import!E17907","v":0},{"$f":"Import!E18107","v":0}]
[95,{"$f":"Import!E15908","v":"Select"},{"$f":"Import!E16108","v":"Select"},{"$f":"Import!E16308","v":"Select"},{"$f":"Import!E16508","v":"Select"},{"$f":"Import!E16708","v":"Select"},{"$f":"Import!E16908","v":"Select"},{"$f":"Import!E17108","v":"Select"},{"$f":"Import!E17308","v":0},{"$f":"Import!E17508","v":0},{"$f":"Import!E17708","v":0},{"$f":"Import!E17908","v":0},{"$f":"Import!E18108","v":0}]
[96,{"$f":"Import!E15909","v":"Select"},{"$f":"Import!E16109","v":"Select"},{"$f":"Import!E16309","v":"Select"},{"$f":"Import!E16509","v":"Select"},{"$f":"Import!E16709","v":"Select"},{"$f":"Import!E16909","v":"Select"},{"$f":"Import!E17109","v":"Select"},{"$f":"Import!E17309","v":0},{"$f":"Import!E17509","v":0},{"$f":"Import!E17709","v":0},{"$f":"Import!E17909","v":0},{"$f":"Import!E18109","v":0}]
[97,{"$f":"Import!E15910","v":"Select"},{"$f":"Import!E16110","v":"Select"},{"$f":"Import!E16310","v":"Select"},{"$f":"Import!E16510","v":"Select"},{"$f":"Import!E16710","v":"Select"},{"$f":"Import!E16910","v":"Select"},{"$f":"Import!E17110","v":"Select"},{"$f":"Import!E17310","v":0},{"$f":"Import!E17510","v":0},{"$f":"Import!E17710","v":0},{"$f":"Import!E17910","v":0},{"$f":"Import!E18110","v":0}]
[98,{"$f":"Import!E15911","v":"Select"},{"$f":"Import!E16111","v":"Select"},{"$f":"Import!E16311","v":"Select"},{"$f":"Import!E16511","v":"Select"},{"$f":"Import!E16711","v":"Select"},{"$f":"Import!E16911","v":"Select"},{"$f":"Import!E17111","v":"Select"},{"$f":"Import!E17311","v":0},{"$f":"Import!E17511","v":0},{"$f":"Import!E17711","v":0},{"$f":"Import!E17911","v":0},{"$f":"Import!E18111","v":0}]
[99,{"$f":"Import!E15912","v":"Select"},{"$f":"Import!E16112","v":"Select"},{"$f":"Import!E16312","v":"Select"},{"$f":"Import!E16512","v":"Select"},{"$f":"Import!E16712","v":"Select"},{"$f":"Import!E16912","v":"Select"},{"$f":"Import!E17112","v":"Select"},{"$f":"Import!E17312","v":0},{"$f":"Import!E17512","v":0},{"$f":"Import!E17712","v":0},{"$f":"Import!E17912","v":0},{"$f":"Import!E18112","v":0}]
[100,{"$f":"Import!E15913","v":"Select"},{"$f":"Import!E16113","v":"Select"},{"$f":"Import!E16313","v":"Select"},{"$f":"Import!E16513","v":"Select"},{"$f":"Import!E16713","v":"Select"},{"$f":"Import!E16913","v":"Select"},{"$f":"Import!E17113","v":"Select"},{"$f":"Import!E17313","v":0},{"$f":"Import!E17513","v":0},{"$f":"Import!E17713","v":0},{"$f":"Import!E17913","v":0},{"$f":"Import!E18113","v":0}]
[101,{"$f":"Import!E15914","v":"Select"},{"$f":"Import!E16114","v":"Select"},{"$f":"Import!E16314","v":"Select"},{"$f":"Import!E16514","v":"Select"},{"$f":"Import!E16714","v":"Select"},{"$f":"Import!E16914","v":"Select"},{"$f":"Import!E17114","v":"Select"},{"$f":"Import!E17314","v":0},{"$f":"Import!E17514","v":0},{"$f":"Import!E17714","v":0},{"$f":"Import!E17914","v":0},{"$f":"Import!E18114","v":0}]
[102,{"$f":"Import!E15915","v":"Select"},{"$f":"Import!E16115","v":"Select"},{"$f":"Import!E16315","v":"Select"},{"$f":"Import!E16515","v":"Select"},{"$f":"Import!E16715","v":"Select"},{"$f":"Import!E16915","v":"Select"},{"$f":"Import!E17115","v":"Select"},{"$f":"Import!E17315","v":0},{"$f":"Import!E17515","v":0},{"$f":"Import!E17715","v":0},{"$f":"Import!E17915","v":0},{"$f":"Import!E18115","v":0}]
[103,{"$f":"Import!E15916","v":"Select"},{"$f":"Import!E16116","v":"Select"},{"$f":"Import!E16316","v":"Select"},{"$f":"Import!E16516","v":"Select"},{"$f":"Import!E16716","v":"Select"},{"$f":"Import!E16916","v":"Select"},{"$f":"Import!E17116","v":"Select"},{"$f":"Import!E17316","v":0},{"$f":"Import!E17516","v":0},{"$f":"Import!E17716","v":0},{"$f":"Import!E17916","v":0},{"$f":"Import!E18116","v":0}]
[104,{"$f":"Import!E15917","v":"Select"},{"$f":"Import!E16117","v":"Select"},{"$f":"Import!E16317","v":"Select"},{"$f":"Import!E16517","v":"Select"},{"$f":"Import!E16717","v":"Select"},{"$f":"Import!E16917","v":"Select"},{"$f":"Import!E17117","v":"Select"},{"$f":"Import!E17317","v":0},{"$f":"Import!E17517","v":0},{"$f":"Import!E17717","v":0},{"$f":"Import!E17917","v":0},{"$f":"Import!E18117","v":0}]
[105,{"$f":"Import!E15918","v":"Select"},{"$f":"Import!E16118","v":"Select"},{"$f":"Import!E16318","v":"Select"},{"$f":"Import!E16518","v":"Select"},{"$f":"Import!E16718","v":"Select"},{"$f":"Import!E16918","v":"Select"},{"$f":"Import!E17118","v":"Select"},{"$f":"Import!E17318","v":0},{"$f":"Import!E17518","v":0},{"$f":"Import!E17718","v":0},{"$f":"Import!E17918","v":0},{"$f":"Import!E18118","v":0}]
[106,{"$f":"Import!E15919","v":"Select"},{"$f":"Import!E16119","v":"Select"},{"$f":"Import!E16319","v":"Select"},{"$f":"Import!E16519","v":"Select"},{"$f":"Import!E16719","v":"Select"},{"$f":"Import!E16919","v":"Select"},{"$f":"Import!E17119","v":"Select"},{"$f":"Import!E17319","v":0},{"$f":"Import!E17519","v":0},{"$f":"Import!E17719","v":0},{"$f":"Import!E17919","v":0},{"$f":"Import!E18119","v":0}]
[107,{"$f":"Import!E15920","v":"Select"},{"$f":"Import!E16120","v":"Select"},{"$f":"Import!E16320","v":"Select"},{"$f":"Import!E16520","v":"Select"},{"$f":"Import!E16720","v":"Select"},{"$f":"Import!E16920","v":"Select"},{"$f":"Import!E17120","v":"Select"},{"$f":"Import!E17320","v":0},{"$f":"Import!E17520","v":0},{"$f":"Import!E17720","v":0},{"$f":"Import!E17920","v":0},{"$f":"Import!E18120","v":0}]
[108,{"$f":"Import!E15921","v":"Select"},{"$f":"Import!E16121","v":"Select"},{"$f":"Import!E16321","v":"Select"},{"$f":"Import!E16521","v":"Select"},{"$f":"Import!E16721","v":"Select"},{"$f":"Import!E16921","v":"Select"},{"$f":"Import!E17121","v":"Select"},{"$f":"Import!E17321","v":0},{"$f":"Import!E17521","v":0},{"$f":"Import!E17721","v":0},{"$f":"Import!E17921","v":0},{"$f":"Import!E18121","v":0}]
[109,{"$f":"Import!E15922","v":"Select"},{"$f":"Import!E16122","v":"Select"},{"$f":"Import!E16322","v":"Select"},{"$f":"Import!E16522","v":"Select"},{"$f":"Import!E16722","v":"Select"},{"$f":"Import!E16922","v":"Select"},{"$f":"Import!E17122","v":"Select"},{"$f":"Import!E17322","v":0},{"$f":"Import!E17522","v":0},{"$f":"Import!E17722","v":0},{"$f":"Import!E17922","v":0},{"$f":"Import!E18122","v":0}]
[110,{"$f":"Import!E15923","v":"Select"},{"$f":"Import!E16123","v":"Select"},{"$f":"Import!E16323","v":"Select"},{"$f":"Import!E16523","v":"Select"},{"$f":"Import!E16723","v":"Select"},{"$f":"Import!E16923","v":"Select"},{"$f":"Import!E17123","v":"Select"},{"$f":"Import!E17323","v":0},{"$f":"Import!E17523","v":0},{"$f":"Import!E17723","v":0},{"$f":"Import!E17923","v":0},{"$f":"Import!E18123","v":0}]
[111,{"$f":"Import!E15924","v":"Select"},{"$f":"Import!E16124","v":"Select"},{"$f":"Import!E16324","v":"Select"},{"$f":"Import!E16524","v":"Select"},{"$f":"Import!E16724","v":"Select"},{"$f":"Import!E16924","v":"Select"},{"$f":"Import!E17124","v":"Select"},{"$f":"Import!E17324","v":0},{"$f":"Import!E17524","v":0},{"$f":"Import!E17724","v":0},{"$f":"Import!E17924","v":0},{"$f":"Import!E18124","v":0}]
[112,{"$f":"Import!E15925","v":"Select"},{"$f":"Import!E16125","v":"Select"},{"$f":"Import!E16325","v":"Select"},{"$f":"Import!E16525","v":"Select"},{"$f":"Import!E16725","v":"Select"},{"$f":"Import!E16925","v":"Select"},{"$f":"Import!E17125","v":"Select"},{"$f":"Import!E17325","v":0},{"$f":"Import!E17525","v":0},{"$f":"Import!E17725","v":0},{"$f":"Import!E17925","v":0},{"$f":"Import!E18125","v":0}]
[113,{"$f":"Import!E15926","v":"Select"},{"$f":"Import!E16126","v":"Select"},{"$f":"Import!E16326","v":"Select"},{"$f":"Import!E16526","v":"Select"},{"$f":"Import!E16726","v":"Select"},{"$f":"Import!E16926","v":"Select"},{"$f":"Import!E17126","v":"Select"},{"$f":"Import!E17326","v":0},{"$f":"Import!E17526","v":0},{"$f":"Import!E17726","v":0},{"$f":"Import!E17926","v":0},{"$f":"Import!E18126","v":0}]
[114,{"$f":"Import!E15927","v":"Select"},{"$f":"Import!E16127","v":"Select"},{"$f":"Import!E16327","v":"Select"},{"$f":"Import!E16527","v":"Select"},{"$f":"Import!E16727","v":"Select"},{"$f":"Import!E16927","v":"Select"},{"$f":"Import!E17127","v":"Select"},{"$f":"Import!E17327","v":0},{"$f":"Import!E17527","v":0},{"$f":"Import!E17727","v":0},{"$f":"Import!E17927","v":0},{"$f":"Import!E18127","v":0}]
[115,{"$f":"Import!E15928","v":"Select"},{"$f":"Import!E16128","v":"Select"},{"$f":"Import!E16328","v":"Select"},{"$f":"Import!E16528","v":"Select"},{"$f":"Import!E16728","v":"Select"},{"$f":"Import!E16928","v":"Select"},{"$f":"Import!E17128","v":"Select"},{"$f":"Import!E17328","v":0},{"$f":"Import!E17528","v":0},{"$f":"Import!E17728","v":0},{"$f":"Import!E17928","v":0},{"$f":"Import!E18128","v":0}]
[116,{"$f":"Import!E15929","v":"Select"},{"$f":"Import!E16129","v":"Select"},{"$f":"Import!E16329","v":"Select"},{"$f":"Import!E16529","v":"Select"},{"$f":"Import!E16729","v":"Select"},{"$f":"Import!E16929","v":"Select"},{"$f":"Import!E17129","v":"Select"},{"$f":"Import!E17329","v":0},{"$f":"Import!E17529","v":0},{"$f":"Import!E17729","v":0},{"$f":"Import!E17929","v":0},{"$f":"Import!E18129","v":0}]
[117,{"$f":"Import!E15930","v":"Select"},{"$f":"Import!E16130","v":"Select"},{"$f":"Import!E16330","v":"Select"},{"$f":"Import!E16530","v":"Select"},{"$f":"Import!E16730","v":"Select"},{"$f":"Import!E16930","v":"Select"},{"$f":"Import!E17130","v":"Select"},{"$f":"Import!E17330","v":0},{"$f":"Import!E17530","v":0},{"$f":"Import!E17730","v":0},{"$f":"Import!E17930","v":0},{"$f":"Import!E18130","v":0}]
[118,{"$f":"Import!E15931","v":"Select"},{"$f":"Import!E16131","v":"Select"},{"$f":"Import!E16331","v":"Select"},{"$f":"Import!E16531","v":"Select"},{"$f":"Import!E16731","v":"Select"},{"$f":"Import!E16931","v":"Select"},{"$f":"Import!E17131","v":"Select"},{"$f":"Import!E17331","v":0},{"$f":"Import!E17531","v":0},{"$f":"Import!E17731","v":0},{"$f":"Import!E17931","v":0},{"$f":"Import!E18131","v":0}]
[119,{"$f":"Import!E15932","v":"Select"},{"$f":"Import!E16132","v":"Select"},{"$f":"Import!E16332","v":"Select"},{"$f":"Import!E16532","v":"Select"},{"$f":"Import!E16732","v":"Select"},{"$f":"Import!E16932","v":"Select"},{"$f":"Import!E17132","v":"Select"},{"$f":"Import!E17332","v":0},{"$f":"Import!E17532","v":0},{"$f":"Import!E17732","v":0},{"$f":"Import!E17932","v":0},{"$f":"Import!E18132","v":0}]
[120,{"$f":"Import!E15933","v":"Select"},{"$f":"Import!E16133","v":"Select"},{"$f":"Import!E16333","v":"Select"},{"$f":"Import!E16533","v":"Select"},{"$f":"Import!E16733","v":"Select"},{"$f":"Import!E16933","v":"Select"},{"$f":"Import!E17133","v":"Select"},{"$f":"Import!E17333","v":0},{"$f":"Import!E17533","v":0},{"$f":"Import!E17733","v":0},{"$f":"Import!E17933","v":0},{"$f":"Import!E18133","v":0}]
[121,{"$f":"Import!E15934","v":"Select"},{"$f":"Import!E16134","v":"Select"},{"$f":"Import!E16334","v":"Select"},{"$f":"Import!E16534","v":"Select"},{"$f":"Import!E16734","v":"Select"},{"$f":"Import!E16934","v":"Select"},{"$f":"Import!E17134","v":"Select"},{"$f":"Import!E17334","v":0},{"$f":"Import!E17534","v":0},{"$f":"Import!E17734","v":0},{"$f":"Import!E17934","v":0},{"$f":"Import!E18134","v":0}]
[122,{"$f":"Import!E15935","v":"Select"},{"$f":"Import!E16135","v":"Select"},{"$f":"Import!E16335","v":"Select"},{"$f":"Import!E16535","v":"Select"},{"$f":"Import!E16735","v":"Select"},{"$f":"Import!E16935","v":"Select"},{"$f":"Import!E17135","v":"Select"},{"$f":"Import!E17335","v":0},{"$f":"Import!E17535","v":0},{"$f":"Import!E17735","v":0},{"$f":"Import!E17935","v":0},{"$f":"Import!E18135","v":0}]
[123,{"$f":"Import!E15936","v":"Select"},{"$f":"Import!E16136","v":"Select"},{"$f":"Import!E16336","v":"Select"},{"$f":"Import!E16536","v":"Select"},{"$f":"Import!E16736","v":"Select"},{"$f":"Import!E16936","v":"Select"},{"$f":"Import!E17136","v":"Select"},{"$f":"Import!E17336","v":0},{"$f":"Import!E17536","v":0},{"$f":"Import!E17736","v":0},{"$f":"Import!E17936","v":0},{"$f":"Import!E18136","v":0}]
[124,{"$f":"Import!E15937","v":"Select"},{"$f":"Import!E16137","v":"Select"},{"$f":"Import!E16337","v":"Select"},{"$f":"Import!E16537","v":"Select"},{"$f":"Import!E16737","v":"Select"},{"$f":"Import!E16937","v":"Select"},{"$f":"Import!E17137","v":"Select"},{"$f":"Import!E17337","v":0},{"$f":"Import!E17537","v":0},{"$f":"Import!E17737","v":0},{"$f":"Import!E17937","v":0},{"$f":"Import!E18137","v":0}]
[125,{"$f":"Import!E15938","v":"Select"},{"$f":"Import!E16138","v":"Select"},{"$f":"Import!E16338","v":"Select"},{"$f":"Import!E16538","v":"Select"},{"$f":"Import!E16738","v":"Select"},{"$f":"Import!E16938","v":"Select"},{"$f":"Import!E17138","v":"Select"},{"$f":"Import!E17338","v":0},{"$f":"Import!E17538","v":0},{"$f":"Import!E17738","v":0},{"$f":"Import!E17938","v":0},{"$f":"Import!E18138","v":0}]
[126,{"$f":"Import!E15939","v":"Select"},{"$f":"Import!E16139","v":"Select"},{"$f":"Import!E16339","v":"Select"},{"$f":"Import!E16539","v":"Select"},{"$f":"Import!E16739","v":"Select"},{"$f":"Import!E16939","v":"Select"},{"$f":"Import!E17139","v":"Select"},{"$f":"Import!E17339","v":0},{"$f":"Import!E17539","v":0},{"$f":"Import!E17739","v":0},{"$f":"Import!E17939","v":0},{"$f":"Import!E18139","v":0}]
[127,{"$f":"Import!E15940","v":"Select"},{"$f":"Import!E16140","v":"Select"},{"$f":"Import!E16340","v":"Select"},{"$f":"Import!E16540","v":"Select"},{"$f":"Import!E16740","v":"Select"},{"$f":"Import!E16940","v":"Select"},{"$f":"Import!E17140","v":"Select"},{"$f":"Import!E17340","v":0},{"$f":"Import!E17540","v":0},{"$f":"Import!E17740","v":0},{"$f":"Import!E17940","v":0},{"$f":"Import!E18140","v":0}]
[128,{"$f":"Import!E15941","v":"Select"},{"$f":"Import!E16141","v":"Select"},{"$f":"Import!E16341","v":"Select"},{"$f":"Import!E16541","v":"Select"},{"$f":"Import!E16741","v":"Select"},{"$f":"Import!E16941","v":"Select"},{"$f":"Import!E17141","v":"Select"},{"$f":"Import!E17341","v":0},{"$f":"Import!E17541","v":0},{"$f":"Import!E17741","v":0},{"$f":"Import!E17941","v":0},{"$f":"Import!E18141","v":0}]
[129,{"$f":"Import!E15942","v":"Select"},{"$f":"Import!E16142","v":"Select"},{"$f":"Import!E16342","v":"Select"},{"$f":"Import!E16542","v":"Select"},{"$f":"Import!E16742","v":"Select"},{"$f":"Import!E16942","v":"Select"},{"$f":"Import!E17142","v":"Select"},{"$f":"Import!E17342","v":0},{"$f":"Import!E17542","v":0},{"$f":"Import!E17742","v":0},{"$f":"Import!E17942","v":0},{"$f":"Import!E18142","v":0}]
[130,{"$f":"Import!E15943","v":"Select"},{"$f":"Import!E16143","v":"Select"},{"$f":"Import!E16343","v":"Select"},{"$f":"Import!E16543","v":"Select"},{"$f":"Import!E16743","v":"Select"},{"$f":"Import!E16943","v":"Select"},{"$f":"Import!E17143","v":"Select"},{"$f":"Import!E17343","v":0},{"$f":"Import!E17543","v":0},{"$f":"Import!E17743","v":0},{"$f":"Import!E17943","v":0},{"$f":"Import!E18143","v":0}]
[{"$f":"A1689+1","v":131},{"$f":"Import!E15944","v":"Select"},{"$f":"Import!E16144","v":"Select"},{"$f":"Import!E16344","v":"Select"},{"$f":"Import!E16544","v":"Select"},{"$f":"Import!E16744","v":"Select"},{"$f":"Import!E16944","v":"Select"},{"$f":"Import!E17144","v":"Select"},{"$f":"Import!E17344","v":0},{"$f":"Import!E17544","v":0},{"$f":"Import!E17744","v":0},{"$f":"Import!E17944","v":0},{"$f":"Import!E18144","v":0}]
[132,{"$f":"Import!E15945","v":"Select"},{"$f":"Import!E16145","v":"Select"},{"$f":"Import!E16345","v":"Select"},{"$f":"Import!E16545","v":"Select"},{"$f":"Import!E16745","v":"Select"},{"$f":"Import!E16945","v":"Select"},{"$f":"Import!E17145","v":"Select"},{"$f":"Import!E17345","v":0},{"$f":"Import!E17545","v":0},{"$f":"Import!E17745","v":0},{"$f":"Import!E17945","v":0},{"$f":"Import!E18145","v":0}]
[133,{"$f":"Import!E15946","v":"Select"},{"$f":"Import!E16146","v":"Select"},{"$f":"Import!E16346","v":"Select"},{"$f":"Import!E16546","v":"Select"},{"$f":"Import!E16746","v":"Select"},{"$f":"Import!E16946","v":"Select"},{"$f":"Import!E17146","v":"Select"},{"$f":"Import!E17346","v":0},{"$f":"Import!E17546","v":0},{"$f":"Import!E17746","v":0},{"$f":"Import!E17946","v":0},{"$f":"Import!E18146","v":0}]
[134,{"$f":"Import!E15947","v":"Select"},{"$f":"Import!E16147","v":"Select"},{"$f":"Import!E16347","v":"Select"},{"$f":"Import!E16547","v":"Select"},{"$f":"Import!E16747","v":"Select"},{"$f":"Import!E16947","v":"Select"},{"$f":"Import!E17147","v":"Select"},{"$f":"Import!E17347","v":0},{"$f":"Import!E17547","v":0},{"$f":"Import!E17747","v":0},{"$f":"Import!E17947","v":0},{"$f":"Import!E18147","v":0}]
[135,{"$f":"Import!E15948","v":"Select"},{"$f":"Import!E16148","v":"Select"},{"$f":"Import!E16348","v":"Select"},{"$f":"Import!E16548","v":"Select"},{"$f":"Import!E16748","v":"Select"},{"$f":"Import!E16948","v":"Select"},{"$f":"Import!E17148","v":"Select"},{"$f":"Import!E17348","v":0},{"$f":"Import!E17548","v":0},{"$f":"Import!E17748","v":0},{"$f":"Import!E17948","v":0},{"$f":"Import!E18148","v":0}]
[136,{"$f":"Import!E15949","v":"Select"},{"$f":"Import!E16149","v":"Select"},{"$f":"Import!E16349","v":"Select"},{"$f":"Import!E16549","v":"Select"},{"$f":"Import!E16749","v":"Select"},{"$f":"Import!E16949","v":"Select"},{"$f":"Import!E17149","v":"Select"},{"$f":"Import!E17349","v":0},{"$f":"Import!E17549","v":0},{"$f":"Import!E17749","v":0},{"$f":"Import!E17949","v":0},{"$f":"Import!E18149","v":0}]
[137,{"$f":"Import!E15950","v":"Select"},{"$f":"Import!E16150","v":"Select"},{"$f":"Import!E16350","v":"Select"},{"$f":"Import!E16550","v":"Select"},{"$f":"Import!E16750","v":"Select"},{"$f":"Import!E16950","v":"Select"},{"$f":"Import!E17150","v":"Select"},{"$f":"Import!E17350","v":0},{"$f":"Import!E17550","v":0},{"$f":"Import!E17750","v":0},{"$f":"Import!E17950","v":0},{"$f":"Import!E18150","v":0}]
[138,{"$f":"Import!E15951","v":"Select"},{"$f":"Import!E16151","v":"Select"},{"$f":"Import!E16351","v":"Select"},{"$f":"Import!E16551","v":"Select"},{"$f":"Import!E16751","v":"Select"},{"$f":"Import!E16951","v":"Select"},{"$f":"Import!E17151","v":"Select"},{"$f":"Import!E17351","v":0},{"$f":"Import!E17551","v":0},{"$f":"Import!E17751","v":0},{"$f":"Import!E17951","v":0},{"$f":"Import!E18151","v":0}]
[139,{"$f":"Import!E15952","v":"Select"},{"$f":"Import!E16152","v":"Select"},{"$f":"Import!E16352","v":"Select"},{"$f":"Import!E16552","v":"Select"},{"$f":"Import!E16752","v":"Select"},{"$f":"Import!E16952","v":"Select"},{"$f":"Import!E17152","v":"Select"},{"$f":"Import!E17352","v":0},{"$f":"Import!E17552","v":0},{"$f":"Import!E17752","v":0},{"$f":"Import!E17952","v":0},{"$f":"Import!E18152","v":0}]
[140,{"$f":"Import!E15953","v":"Select"},{"$f":"Import!E16153","v":"Select"},{"$f":"Import!E16353","v":"Select"},{"$f":"Import!E16553","v":"Select"},{"$f":"Import!E16753","v":"Select"},{"$f":"Import!E16953","v":"Select"},{"$f":"Import!E17153","v":"Select"},{"$f":"Import!E17353","v":0},{"$f":"Import!E17553","v":0},{"$f":"Import!E17753","v":0},{"$f":"Import!E17953","v":0},{"$f":"Import!E18153","v":0}]
[141,{"$f":"Import!E15954","v":"Select"},{"$f":"Import!E16154","v":"Select"},{"$f":"Import!E16354","v":"Select"},{"$f":"Import!E16554","v":"Select"},{"$f":"Import!E16754","v":"Select"},{"$f":"Import!E16954","v":"Select"},{"$f":"Import!E17154","v":"Select"},{"$f":"Import!E17354","v":0},{"$f":"Import!E17554","v":0},{"$f":"Import!E17754","v":0},{"$f":"Import!E17954","v":0},{"$f":"Import!E18154","v":0}]
[142,{"$f":"Import!E15955","v":"Select"},{"$f":"Import!E16155","v":"Select"},{"$f":"Import!E16355","v":"Select"},{"$f":"Import!E16555","v":"Select"},{"$f":"Import!E16755","v":"Select"},{"$f":"Import!E16955","v":"Select"},{"$f":"Import!E17155","v":"Select"},{"$f":"Import!E17355","v":0},{"$f":"Import!E17555","v":0},{"$f":"Import!E17755","v":0},{"$f":"Import!E17955","v":0},{"$f":"Import!E18155","v":0}]
[143,{"$f":"Import!E15956","v":"Select"},{"$f":"Import!E16156","v":"Select"},{"$f":"Import!E16356","v":"Select"},{"$f":"Import!E16556","v":"Select"},{"$f":"Import!E16756","v":"Select"},{"$f":"Import!E16956","v":"Select"},{"$f":"Import!E17156","v":"Select"},{"$f":"Import!E17356","v":0},{"$f":"Import!E17556","v":0},{"$f":"Import!E17756","v":0},{"$f":"Import!E17956","v":0},{"$f":"Import!E18156","v":0}]
[144,{"$f":"Import!E15957","v":"Select"},{"$f":"Import!E16157","v":"Select"},{"$f":"Import!E16357","v":"Select"},{"$f":"Import!E16557","v":"Select"},{"$f":"Import!E16757","v":"Select"},{"$f":"Import!E16957","v":"Select"},{"$f":"Import!E17157","v":"Select"},{"$f":"Import!E17357","v":0},{"$f":"Import!E17557","v":0},{"$f":"Import!E17757","v":0},{"$f":"Import!E17957","v":0},{"$f":"Import!E18157","v":0}]
[145,{"$f":"Import!E15958","v":"Select"},{"$f":"Import!E16158","v":"Select"},{"$f":"Import!E16358","v":"Select"},{"$f":"Import!E16558","v":"Select"},{"$f":"Import!E16758","v":"Select"},{"$f":"Import!E16958","v":"Select"},{"$f":"Import!E17158","v":"Select"},{"$f":"Import!E17358","v":0},{"$f":"Import!E17558","v":0},{"$f":"Import!E17758","v":0},{"$f":"Import!E17958","v":0},{"$f":"Import!E18158","v":0}]
[146,{"$f":"Import!E15959","v":"Select"},{"$f":"Import!E16159","v":"Select"},{"$f":"Import!E16359","v":"Select"},{"$f":"Import!E16559","v":"Select"},{"$f":"Import!E16759","v":"Select"},{"$f":"Import!E16959","v":"Select"},{"$f":"Import!E17159","v":"Select"},{"$f":"Import!E17359","v":0},{"$f":"Import!E17559","v":0},{"$f":"Import!E17759","v":0},{"$f":"Import!E17959","v":0},{"$f":"Import!E18159","v":0}]
[147,{"$f":"Import!E15960","v":"Select"},{"$f":"Import!E16160","v":"Select"},{"$f":"Import!E16360","v":"Select"},{"$f":"Import!E16560","v":"Select"},{"$f":"Import!E16760","v":"Select"},{"$f":"Import!E16960","v":"Select"},{"$f":"Import!E17160","v":"Select"},{"$f":"Import!E17360","v":0},{"$f":"Import!E17560","v":0},{"$f":"Import!E17760","v":0},{"$f":"Import!E17960","v":0},{"$f":"Import!E18160","v":0}]
[148,{"$f":"Import!E15961","v":"Select"},{"$f":"Import!E16161","v":"Select"},{"$f":"Import!E16361","v":"Select"},{"$f":"Import!E16561","v":"Select"},{"$f":"Import!E16761","v":"Select"},{"$f":"Import!E16961","v":"Select"},{"$f":"Import!E17161","v":"Select"},{"$f":"Import!E17361","v":0},{"$f":"Import!E17561","v":0},{"$f":"Import!E17761","v":0},{"$f":"Import!E17961","v":0},{"$f":"Import!E18161","v":0}]
[149,{"$f":"Import!E15962","v":"Select"},{"$f":"Import!E16162","v":"Select"},{"$f":"Import!E16362","v":"Select"},{"$f":"Import!E16562","v":"Select"},{"$f":"Import!E16762","v":"Select"},{"$f":"Import!E16962","v":"Select"},{"$f":"Import!E17162","v":"Select"},{"$f":"Import!E17362","v":0},{"$f":"Import!E17562","v":0},{"$f":"Import!E17762","v":0},{"$f":"Import!E17962","v":0},{"$f":"Import!E18162","v":0}]
[150,{"$f":"Import!E15963","v":"Select"},{"$f":"Import!E16163","v":"Select"},{"$f":"Import!E16363","v":"Select"},{"$f":"Import!E16563","v":"Select"},{"$f":"Import!E16763","v":"Select"},{"$f":"Import!E16963","v":"Select"},{"$f":"Import!E17163","v":"Select"},{"$f":"Import!E17363","v":0},{"$f":"Import!E17563","v":0},{"$f":"Import!E17763","v":0},{"$f":"Import!E17963","v":0},{"$f":"Import!E18163","v":0}]
[151,{"$f":"Import!E15964","v":"Select"},{"$f":"Import!E16164","v":"Select"},{"$f":"Import!E16364","v":"Select"},{"$f":"Import!E16564","v":"Select"},{"$f":"Import!E16764","v":"Select"},{"$f":"Import!E16964","v":"Select"},{"$f":"Import!E17164","v":"Select"},{"$f":"Import!E17364","v":0},{"$f":"Import!E17564","v":0},{"$f":"Import!E17764","v":0},{"$f":"Import!E17964","v":0},{"$f":"Import!E18164","v":0}]
[152,{"$f":"Import!E15965","v":"Select"},{"$f":"Import!E16165","v":"Select"},{"$f":"Import!E16365","v":"Select"},{"$f":"Import!E16565","v":"Select"},{"$f":"Import!E16765","v":"Select"},{"$f":"Import!E16965","v":"Select"},{"$f":"Import!E17165","v":"Select"},{"$f":"Import!E17365","v":0},{"$f":"Import!E17565","v":0},{"$f":"Import!E17765","v":0},{"$f":"Import!E17965","v":0},{"$f":"Import!E18165","v":0}]
[153,{"$f":"Import!E15966","v":"Select"},{"$f":"Import!E16166","v":"Select"},{"$f":"Import!E16366","v":"Select"},{"$f":"Import!E16566","v":"Select"},{"$f":"Import!E16766","v":"Select"},{"$f":"Import!E16966","v":"Select"},{"$f":"Import!E17166","v":"Select"},{"$f":"Import!E17366","v":0},{"$f":"Import!E17566","v":0},{"$f":"Import!E17766","v":0},{"$f":"Import!E17966","v":0},{"$f":"Import!E18166","v":0}]
[154,{"$f":"Import!E15967","v":"Select"},{"$f":"Import!E16167","v":"Select"},{"$f":"Import!E16367","v":"Select"},{"$f":"Import!E16567","v":"Select"},{"$f":"Import!E16767","v":"Select"},{"$f":"Import!E16967","v":"Select"},{"$f":"Import!E17167","v":"Select"},{"$f":"Import!E17367","v":0},{"$f":"Import!E17567","v":0},{"$f":"Import!E17767","v":0},{"$f":"Import!E17967","v":0},{"$f":"Import!E18167","v":0}]
[155,{"$f":"Import!E15968","v":"Select"},{"$f":"Import!E16168","v":"Select"},{"$f":"Import!E16368","v":"Select"},{"$f":"Import!E16568","v":"Select"},{"$f":"Import!E16768","v":"Select"},{"$f":"Import!E16968","v":"Select"},{"$f":"Import!E17168","v":"Select"},{"$f":"Import!E17368","v":0},{"$f":"Import!E17568","v":0},{"$f":"Import!E17768","v":0},{"$f":"Import!E17968","v":0},{"$f":"Import!E18168","v":0}]
[156,{"$f":"Import!E15969","v":"Select"},{"$f":"Import!E16169","v":"Select"},{"$f":"Import!E16369","v":"Select"},{"$f":"Import!E16569","v":"Select"},{"$f":"Import!E16769","v":"Select"},{"$f":"Import!E16969","v":"Select"},{"$f":"Import!E17169","v":"Select"},{"$f":"Import!E17369","v":0},{"$f":"Import!E17569","v":0},{"$f":"Import!E17769","v":0},{"$f":"Import!E17969","v":0},{"$f":"Import!E18169","v":0}]
[157,{"$f":"Import!E15970","v":"Select"},{"$f":"Import!E16170","v":"Select"},{"$f":"Import!E16370","v":"Select"},{"$f":"Import!E16570","v":"Select"},{"$f":"Import!E16770","v":"Select"},{"$f":"Import!E16970","v":"Select"},{"$f":"Import!E17170","v":"Select"},{"$f":"Import!E17370","v":0},{"$f":"Import!E17570","v":0},{"$f":"Import!E17770","v":0},{"$f":"Import!E17970","v":0},{"$f":"Import!E18170","v":0}]
[158,{"$f":"Import!E15971","v":"Select"},{"$f":"Import!E16171","v":"Select"},{"$f":"Import!E16371","v":"Select"},{"$f":"Import!E16571","v":"Select"},{"$f":"Import!E16771","v":"Select"},{"$f":"Import!E16971","v":"Select"},{"$f":"Import!E17171","v":"Select"},{"$f":"Import!E17371","v":0},{"$f":"Import!E17571","v":0},{"$f":"Import!E17771","v":0},{"$f":"Import!E17971","v":0},{"$f":"Import!E18171","v":0}]
[159,{"$f":"Import!E15972","v":"Select"},{"$f":"Import!E16172","v":"Select"},{"$f":"Import!E16372","v":"Select"},{"$f":"Import!E16572","v":"Select"},{"$f":"Import!E16772","v":"Select"},{"$f":"Import!E16972","v":"Select"},{"$f":"Import!E17172","v":"Select"},{"$f":"Import!E17372","v":0},{"$f":"Import!E17572","v":0},{"$f":"Import!E17772","v":0},{"$f":"Import!E17972","v":0},{"$f":"Import!E18172","v":0}]
[160,{"$f":"Import!E15973","v":"Select"},{"$f":"Import!E16173","v":"Select"},{"$f":"Import!E16373","v":"Select"},{"$f":"Import!E16573","v":"Select"},{"$f":"Import!E16773","v":"Select"},{"$f":"Import!E16973","v":"Select"},{"$f":"Import!E17173","v":"Select"},{"$f":"Import!E17373","v":0},{"$f":"Import!E17573","v":0},{"$f":"Import!E17773","v":0},{"$f":"Import!E17973","v":0},{"$f":"Import!E18173","v":0}]
[161,{"$f":"Import!E15974","v":"Select"},{"$f":"Import!E16174","v":"Select"},{"$f":"Import!E16374","v":"Select"},{"$f":"Import!E16574","v":"Select"},{"$f":"Import!E16774","v":"Select"},{"$f":"Import!E16974","v":"Select"},{"$f":"Import!E17174","v":"Select"},{"$f":"Import!E17374","v":0},{"$f":"Import!E17574","v":0},{"$f":"Import!E17774","v":0},{"$f":"Import!E17974","v":0},{"$f":"Import!E18174","v":0}]
[162,{"$f":"Import!E15975","v":"Select"},{"$f":"Import!E16175","v":"Select"},{"$f":"Import!E16375","v":"Select"},{"$f":"Import!E16575","v":"Select"},{"$f":"Import!E16775","v":"Select"},{"$f":"Import!E16975","v":"Select"},{"$f":"Import!E17175","v":"Select"},{"$f":"Import!E17375","v":0},{"$f":"Import!E17575","v":0},{"$f":"Import!E17775","v":0},{"$f":"Import!E17975","v":0},{"$f":"Import!E18175","v":0}]
[163,{"$f":"Import!E15976","v":"Select"},{"$f":"Import!E16176","v":"Select"},{"$f":"Import!E16376","v":"Select"},{"$f":"Import!E16576","v":"Select"},{"$f":"Import!E16776","v":"Select"},{"$f":"Import!E16976","v":"Select"},{"$f":"Import!E17176","v":"Select"},{"$f":"Import!E17376","v":0},{"$f":"Import!E17576","v":0},{"$f":"Import!E17776","v":0},{"$f":"Import!E17976","v":0},{"$f":"Import!E18176","v":0}]
[164,{"$f":"Import!E15977","v":"Select"},{"$f":"Import!E16177","v":"Select"},{"$f":"Import!E16377","v":"Select"},{"$f":"Import!E16577","v":"Select"},{"$f":"Import!E16777","v":"Select"},{"$f":"Import!E16977","v":"Select"},{"$f":"Import!E17177","v":"Select"},{"$f":"Import!E17377","v":0},{"$f":"Import!E17577","v":0},{"$f":"Import!E17777","v":0},{"$f":"Import!E17977","v":0},{"$f":"Import!E18177","v":0}]
[165,{"$f":"Import!E15978","v":"Select"},{"$f":"Import!E16178","v":"Select"},{"$f":"Import!E16378","v":"Select"},{"$f":"Import!E16578","v":"Select"},{"$f":"Import!E16778","v":"Select"},{"$f":"Import!E16978","v":"Select"},{"$f":"Import!E17178","v":"Select"},{"$f":"Import!E17378","v":0},{"$f":"Import!E17578","v":0},{"$f":"Import!E17778","v":0},{"$f":"Import!E17978","v":0},{"$f":"Import!E18178","v":0}]
[166,{"$f":"Import!E15979","v":"Select"},{"$f":"Import!E16179","v":"Select"},{"$f":"Import!E16379","v":"Select"},{"$f":"Import!E16579","v":"Select"},{"$f":"Import!E16779","v":"Select"},{"$f":"Import!E16979","v":"Select"},{"$f":"Import!E17179","v":"Select"},{"$f":"Import!E17379","v":0},{"$f":"Import!E17579","v":0},{"$f":"Import!E17779","v":0},{"$f":"Import!E17979","v":0},{"$f":"Import!E18179","v":0}]
[167,{"$f":"Import!E15980","v":"Select"},{"$f":"Import!E16180","v":"Select"},{"$f":"Import!E16380","v":"Select"},{"$f":"Import!E16580","v":"Select"},{"$f":"Import!E16780","v":"Select"},{"$f":"Import!E16980","v":"Select"},{"$f":"Import!E17180","v":"Select"},{"$f":"Import!E17380","v":0},{"$f":"Import!E17580","v":0},{"$f":"Import!E17780","v":0},{"$f":"Import!E17980","v":0},{"$f":"Import!E18180","v":0}]
[168,{"$f":"Import!E15981","v":"Select"},{"$f":"Import!E16181","v":"Select"},{"$f":"Import!E16381","v":"Select"},{"$f":"Import!E16581","v":"Select"},{"$f":"Import!E16781","v":"Select"},{"$f":"Import!E16981","v":"Select"},{"$f":"Import!E17181","v":"Select"},{"$f":"Import!E17381","v":0},{"$f":"Import!E17581","v":0},{"$f":"Import!E17781","v":0},{"$f":"Import!E17981","v":0},{"$f":"Import!E18181","v":0}]
[169,{"$f":"Import!E15982","v":"Select"},{"$f":"Import!E16182","v":"Select"},{"$f":"Import!E16382","v":"Select"},{"$f":"Import!E16582","v":"Select"},{"$f":"Import!E16782","v":"Select"},{"$f":"Import!E16982","v":"Select"},{"$f":"Import!E17182","v":"Select"},{"$f":"Import!E17382","v":0},{"$f":"Import!E17582","v":0},{"$f":"Import!E17782","v":0},{"$f":"Import!E17982","v":0},{"$f":"Import!E18182","v":0}]
[170,{"$f":"Import!E15983","v":"Select"},{"$f":"Import!E16183","v":"Select"},{"$f":"Import!E16383","v":"Select"},{"$f":"Import!E16583","v":"Select"},{"$f":"Import!E16783","v":"Select"},{"$f":"Import!E16983","v":"Select"},{"$f":"Import!E17183","v":"Select"},{"$f":"Import!E17383","v":0},{"$f":"Import!E17583","v":0},{"$f":"Import!E17783","v":0},{"$f":"Import!E17983","v":0},{"$f":"Import!E18183","v":0}]
[171,{"$f":"Import!E15984","v":"Select"},{"$f":"Import!E16184","v":"Select"},{"$f":"Import!E16384","v":"Select"},{"$f":"Import!E16584","v":"Select"},{"$f":"Import!E16784","v":"Select"},{"$f":"Import!E16984","v":"Select"},{"$f":"Import!E17184","v":"Select"},{"$f":"Import!E17384","v":0},{"$f":"Import!E17584","v":0},{"$f":"Import!E17784","v":0},{"$f":"Import!E17984","v":0},{"$f":"Import!E18184","v":0}]
[172,{"$f":"Import!E15985","v":"Select"},{"$f":"Import!E16185","v":"Select"},{"$f":"Import!E16385","v":"Select"},{"$f":"Import!E16585","v":"Select"},{"$f":"Import!E16785","v":"Select"},{"$f":"Import!E16985","v":"Select"},{"$f":"Import!E17185","v":"Select"},{"$f":"Import!E17385","v":0},{"$f":"Import!E17585","v":0},{"$f":"Import!E17785","v":0},{"$f":"Import!E17985","v":0},{"$f":"Import!E18185","v":0}]
[173,{"$f":"Import!E15986","v":"Select"},{"$f":"Import!E16186","v":"Select"},{"$f":"Import!E16386","v":"Select"},{"$f":"Import!E16586","v":"Select"},{"$f":"Import!E16786","v":"Select"},{"$f":"Import!E16986","v":"Select"},{"$f":"Import!E17186","v":"Select"},{"$f":"Import!E17386","v":0},{"$f":"Import!E17586","v":0},{"$f":"Import!E17786","v":0},{"$f":"Import!E17986","v":0},{"$f":"Import!E18186","v":0}]
[174,{"$f":"Import!E15987","v":"Select"},{"$f":"Import!E16187","v":"Select"},{"$f":"Import!E16387","v":"Select"},{"$f":"Import!E16587","v":"Select"},{"$f":"Import!E16787","v":"Select"},{"$f":"Import!E16987","v":"Select"},{"$f":"Import!E17187","v":"Select"},{"$f":"Import!E17387","v":0},{"$f":"Import!E17587","v":0},{"$f":"Import!E17787","v":0},{"$f":"Import!E17987","v":0},{"$f":"Import!E18187","v":0}]
[175,{"$f":"Import!E15988","v":"Select"},{"$f":"Import!E16188","v":"Select"},{"$f":"Import!E16388","v":"Select"},{"$f":"Import!E16588","v":"Select"},{"$f":"Import!E16788","v":"Select"},{"$f":"Import!E16988","v":"Select"},{"$f":"Import!E17188","v":"Select"},{"$f":"Import!E17388","v":0},{"$f":"Import!E17588","v":0},{"$f":"Import!E17788","v":0},{"$f":"Import!E17988","v":0},{"$f":"Import!E18188","v":0}]
[176,{"$f":"Import!E15989","v":"Select"},{"$f":"Import!E16189","v":"Select"},{"$f":"Import!E16389","v":"Select"},{"$f":"Import!E16589","v":"Select"},{"$f":"Import!E16789","v":"Select"},{"$f":"Import!E16989","v":"Select"},{"$f":"Import!E17189","v":"Select"},{"$f":"Import!E17389","v":0},{"$f":"Import!E17589","v":0},{"$f":"Import!E17789","v":0},{"$f":"Import!E17989","v":0},{"$f":"Import!E18189","v":0}]
[177,{"$f":"Import!E15990","v":"Select"},{"$f":"Import!E16190","v":"Select"},{"$f":"Import!E16390","v":"Select"},{"$f":"Import!E16590","v":"Select"},{"$f":"Import!E16790","v":"Select"},{"$f":"Import!E16990","v":"Select"},{"$f":"Import!E17190","v":"Select"},{"$f":"Import!E17390","v":0},{"$f":"Import!E17590","v":0},{"$f":"Import!E17790","v":0},{"$f":"Import!E17990","v":0},{"$f":"Import!E18190","v":0}]
[178,{"$f":"Import!E15991","v":"Select"},{"$f":"Import!E16191","v":"Select"},{"$f":"Import!E16391","v":"Select"},{"$f":"Import!E16591","v":"Select"},{"$f":"Import!E16791","v":"Select"},{"$f":"Import!E16991","v":"Select"},{"$f":"Import!E17191","v":"Select"},{"$f":"Import!E17391","v":0},{"$f":"Import!E17591","v":0},{"$f":"Import!E17791","v":0},{"$f":"Import!E17991","v":0},{"$f":"Import!E18191","v":0}]
[179,{"$f":"Import!E15992","v":"Select"},{"$f":"Import!E16192","v":"Select"},{"$f":"Import!E16392","v":"Select"},{"$f":"Import!E16592","v":"Select"},{"$f":"Import!E16792","v":"Select"},{"$f":"Import!E16992","v":"Select"},{"$f":"Import!E17192","v":"Select"},{"$f":"Import!E17392","v":0},{"$f":"Import!E17592","v":0},{"$f":"Import!E17792","v":0},{"$f":"Import!E17992","v":0},{"$f":"Import!E18192","v":0}]
[180,{"$f":"Import!E15993","v":"Select"},{"$f":"Import!E16193","v":"Select"},{"$f":"Import!E16393","v":"Select"},{"$f":"Import!E16593","v":"Select"},{"$f":"Import!E16793","v":"Select"},{"$f":"Import!E16993","v":"Select"},{"$f":"Import!E17193","v":"Select"},{"$f":"Import!E17393","v":0},{"$f":"Import!E17593","v":0},{"$f":"Import!E17793","v":0},{"$f":"Import!E17993","v":0},{"$f":"Import!E18193","v":0}]
[181,{"$f":"Import!E15994","v":"Select"},{"$f":"Import!E16194","v":"Select"},{"$f":"Import!E16394","v":"Select"},{"$f":"Import!E16594","v":"Select"},{"$f":"Import!E16794","v":"Select"},{"$f":"Import!E16994","v":"Select"},{"$f":"Import!E17194","v":"Select"},{"$f":"Import!E17394","v":0},{"$f":"Import!E17594","v":0},{"$f":"Import!E17794","v":0},{"$f":"Import!E17994","v":0},{"$f":"Import!E18194","v":0}]
[182,{"$f":"Import!E15995","v":"Select"},{"$f":"Import!E16195","v":"Select"},{"$f":"Import!E16395","v":"Select"},{"$f":"Import!E16595","v":"Select"},{"$f":"Import!E16795","v":"Select"},{"$f":"Import!E16995","v":"Select"},{"$f":"Import!E17195","v":"Select"},{"$f":"Import!E17395","v":0},{"$f":"Import!E17595","v":0},{"$f":"Import!E17795","v":0},{"$f":"Import!E17995","v":0},{"$f":"Import!E18195","v":0}]
[183,{"$f":"Import!E15996","v":"Select"},{"$f":"Import!E16196","v":"Select"},{"$f":"Import!E16396","v":"Select"},{"$f":"Import!E16596","v":"Select"},{"$f":"Import!E16796","v":"Select"},{"$f":"Import!E16996","v":"Select"},{"$f":"Import!E17196","v":"Select"},{"$f":"Import!E17396","v":0},{"$f":"Import!E17596","v":0},{"$f":"Import!E17796","v":0},{"$f":"Import!E17996","v":0},{"$f":"Import!E18196","v":0}]
[184,{"$f":"Import!E15997","v":"Select"},{"$f":"Import!E16197","v":"Select"},{"$f":"Import!E16397","v":"Select"},{"$f":"Import!E16597","v":"Select"},{"$f":"Import!E16797","v":"Select"},{"$f":"Import!E16997","v":"Select"},{"$f":"Import!E17197","v":"Select"},{"$f":"Import!E17397","v":0},{"$f":"Import!E17597","v":0},{"$f":"Import!E17797","v":0},{"$f":"Import!E17997","v":0},{"$f":"Import!E18197","v":0}]
[185,{"$f":"Import!E15998","v":"Select"},{"$f":"Import!E16198","v":"Select"},{"$f":"Import!E16398","v":"Select"},{"$f":"Import!E16598","v":"Select"},{"$f":"Import!E16798","v":"Select"},{"$f":"Import!E16998","v":"Select"},{"$f":"Import!E17198","v":"Select"},{"$f":"Import!E17398","v":0},{"$f":"Import!E17598","v":0},{"$f":"Import!E17798","v":0},{"$f":"Import!E17998","v":0},{"$f":"Import!E18198","v":0}]
[186,{"$f":"Import!E15999","v":"Select"},{"$f":"Import!E16199","v":"Select"},{"$f":"Import!E16399","v":"Select"},{"$f":"Import!E16599","v":"Select"},{"$f":"Import!E16799","v":"Select"},{"$f":"Import!E16999","v":"Select"},{"$f":"Import!E17199","v":"Select"},{"$f":"Import!E17399","v":0},{"$f":"Import!E17599","v":0},{"$f":"Import!E17799","v":0},{"$f":"Import!E17999","v":0},{"$f":"Import!E18199","v":0}]
[187,{"$f":"Import!E16000","v":"Select"},{"$f":"Import!E16200","v":"Select"},{"$f":"Import!E16400","v":"Select"},{"$f":"Import!E16600","v":"Select"},{"$f":"Import!E16800","v":"Select"},{"$f":"Import!E17000","v":"Select"},{"$f":"Import!E17200","v":"Select"},{"$f":"Import!E17400","v":0},{"$f":"Import!E17600","v":0},{"$f":"Import!E17800","v":0},{"$f":"Import!E18000","v":0},{"$f":"Import!E18200","v":0}]
[188,{"$f":"Import!E16001","v":"Select"},{"$f":"Import!E16201","v":"Select"},{"$f":"Import!E16401","v":"Select"},{"$f":"Import!E16601","v":"Select"},{"$f":"Import!E16801","v":"Select"},{"$f":"Import!E17001","v":"Select"},{"$f":"Import!E17201","v":"Select"},{"$f":"Import!E17401","v":0},{"$f":"Import!E17601","v":0},{"$f":"Import!E17801","v":0},{"$f":"Import!E18001","v":0},{"$f":"Import!E18201","v":0}]
[189,{"$f":"Import!E16002","v":"Select"},{"$f":"Import!E16202","v":"Select"},{"$f":"Import!E16402","v":"Select"},{"$f":"Import!E16602","v":"Select"},{"$f":"Import!E16802","v":"Select"},{"$f":"Import!E17002","v":"Select"},{"$f":"Import!E17202","v":"Select"},{"$f":"Import!E17402","v":0},{"$f":"Import!E17602","v":0},{"$f":"Import!E17802","v":0},{"$f":"Import!E18002","v":0},{"$f":"Import!E18202","v":0}]
[190,{"$f":"Import!E16003","v":"Select"},{"$f":"Import!E16203","v":"Select"},{"$f":"Import!E16403","v":"Select"},{"$f":"Import!E16603","v":"Select"},{"$f":"Import!E16803","v":"Select"},{"$f":"Import!E17003","v":"Select"},{"$f":"Import!E17203","v":"Select"},{"$f":"Import!E17403","v":0},{"$f":"Import!E17603","v":0},{"$f":"Import!E17803","v":0},{"$f":"Import!E18003","v":0},{"$f":"Import!E18203","v":0}]
[191,{"$f":"Import!E16004","v":"Select"},{"$f":"Import!E16204","v":"Select"},{"$f":"Import!E16404","v":"Select"},{"$f":"Import!E16604","v":"Select"},{"$f":"Import!E16804","v":"Select"},{"$f":"Import!E17004","v":"Select"},{"$f":"Import!E17204","v":"Select"},{"$f":"Import!E17404","v":0},{"$f":"Import!E17604","v":0},{"$f":"Import!E17804","v":0},{"$f":"Import!E18004","v":0},{"$f":"Import!E18204","v":0}]
[192,{"$f":"Import!E16005","v":"Select"},{"$f":"Import!E16205","v":"Select"},{"$f":"Import!E16405","v":"Select"},{"$f":"Import!E16605","v":"Select"},{"$f":"Import!E16805","v":"Select"},{"$f":"Import!E17005","v":"Select"},{"$f":"Import!E17205","v":"Select"},{"$f":"Import!E17405","v":0},{"$f":"Import!E17605","v":0},{"$f":"Import!E17805","v":0},{"$f":"Import!E18005","v":0},{"$f":"Import!E18205","v":0}]
[193,{"$f":"Import!E16006","v":"Select"},{"$f":"Import!E16206","v":"Select"},{"$f":"Import!E16406","v":"Select"},{"$f":"Import!E16606","v":"Select"},{"$f":"Import!E16806","v":"Select"},{"$f":"Import!E17006","v":"Select"},{"$f":"Import!E17206","v":"Select"},{"$f":"Import!E17406","v":0},{"$f":"Import!E17606","v":0},{"$f":"Import!E17806","v":0},{"$f":"Import!E18006","v":0},{"$f":"Import!E18206","v":0}]
[194,{"$f":"Import!E16007","v":"Select"},{"$f":"Import!E16207","v":"Select"},{"$f":"Import!E16407","v":"Select"},{"$f":"Import!E16607","v":"Select"},{"$f":"Import!E16807","v":"Select"},{"$f":"Import!E17007","v":"Select"},{"$f":"Import!E17207","v":"Select"},{"$f":"Import!E17407","v":0},{"$f":"Import!E17607","v":0},{"$f":"Import!E17807","v":0},{"$f":"Import!E18007","v":0},{"$f":"Import!E18207","v":0}]
[{"$f":"A1753+1","v":195},{"$f":"Import!E16008","v":"Select"},{"$f":"Import!E16208","v":"Select"},{"$f":"Import!E16408","v":"Select"},{"$f":"Import!E16608","v":"Select"},{"$f":"Import!E16808","v":"Select"},{"$f":"Import!E17008","v":"Select"},{"$f":"Import!E17208","v":"Select"},{"$f":"Import!E17408","v":0},{"$f":"Import!E17608","v":0},{"$f":"Import!E17808","v":0},{"$f":"Import!E18008","v":0},{"$f":"Import!E18208","v":0}]
[196,{"$f":"Import!E16009","v":"Select"},{"$f":"Import!E16209","v":"Select"},{"$f":"Import!E16409","v":"Select"},{"$f":"Import!E16609","v":"Select"},{"$f":"Import!E16809","v":"Select"},{"$f":"Import!E17009","v":"Select"},{"$f":"Import!E17209","v":"Select"},{"$f":"Import!E17409","v":0},{"$f":"Import!E17609","v":0},{"$f":"Import!E17809","v":0},{"$f":"Import!E18009","v":0},{"$f":"Import!E18209","v":0}]
[197,{"$f":"Import!E16010","v":"Select"},{"$f":"Import!E16210","v":"Select"},{"$f":"Import!E16410","v":"Select"},{"$f":"Import!E16610","v":"Select"},{"$f":"Import!E16810","v":"Select"},{"$f":"Import!E17010","v":"Select"},{"$f":"Import!E17210","v":"Select"},{"$f":"Import!E17410","v":0},{"$f":"Import!E17610","v":0},{"$f":"Import!E17810","v":0},{"$f":"Import!E18010","v":0},{"$f":"Import!E18210","v":0}]
[198,{"$f":"Import!E16011","v":"Select"},{"$f":"Import!E16211","v":"Select"},{"$f":"Import!E16411","v":"Select"},{"$f":"Import!E16611","v":"Select"},{"$f":"Import!E16811","v":"Select"},{"$f":"Import!E17011","v":"Select"},{"$f":"Import!E17211","v":"Select"},{"$f":"Import!E17411","v":0},{"$f":"Import!E17611","v":0},{"$f":"Import!E17811","v":0},{"$f":"Import!E18011","v":0},{"$f":"Import!E18211","v":0}]
[199,{"$f":"Import!E16012","v":"Select"},{"$f":"Import!E16212","v":"Select"},{"$f":"Import!E16412","v":"Select"},{"$f":"Import!E16612","v":"Select"},{"$f":"Import!E16812","v":"Select"},{"$f":"Import!E17012","v":"Select"},{"$f":"Import!E17212","v":"Select"},{"$f":"Import!E17412","v":0},{"$f":"Import!E17612","v":0},{"$f":"Import!E17812","v":0},{"$f":"Import!E18012","v":0},{"$f":"Import!E18212","v":0}]
[200,{"$f":"Import!E16013","v":"Select"},{"$f":"Import!E16213","v":"Select"},{"$f":"Import!E16413","v":"Select"},{"$f":"Import!E16613","v":"Select"},{"$f":"Import!E16813","v":"Select"},{"$f":"Import!E17013","v":"Select"},{"$f":"Import!E17213","v":"Select"},{"$f":"Import!E17413","v":0},{"$f":"Import!E17613","v":0},{"$f":"Import!E17813","v":0},{"$f":"Import!E18013","v":0},{"$f":"Import!E18213","v":0}]
[]
[null,"Total Derivatives",null,null,null,null,null,null,{"$f":"SUM(I1560:I1759)","v":0},{"$f":"SUM(J1560:J1759)","v":0},{"$f":"SUM(K1560:K1759)","v":0}]
[]
[null,"(J) INFORMATION ON EXPOSURES TO FINANCIAL INSTITUTIONS AND UNLISTED COUNTERPARTIES"]
[null,null,null,null,null,"Commercial Loans and Mortgages"]
[null,null,{"$f":"YEAR($C$3)","v":2023},"Fair Value",null,null,"Securitisations ","Other debt securities"]
[null,"Financial Institutions","Equities","Corporate Bonds","Corporate Loans",null,null,null,null,"Comments"]
[1,"Exposure to Financial Institutions (Banks, Insurance Companies, Other Financials) - Investment Grade, BSCR Rating 1-3",{"$f":"Import!E18214","v":0},{"$f":"Import!E18218","v":0},{"$f":"Import!E18222","v":0},{"$f":"Import!E18226","v":0},{"$f":"Import!E18230","v":0},{"$f":"Import!E18234","v":0},null,{"$f":"Import!E18238","v":0}]
[2,"Exposure to Financial Institutions (Banks, Insurance Companies, Other Financials) - Investment Grade, BSCR Rating 4",{"$f":"Import!E18215","v":0},{"$f":"Import!E18219","v":0},{"$f":"Import!E18223","v":0},{"$f":"Import!E18227","v":0},{"$f":"Import!E18231","v":0},{"$f":"Import!E18235","v":0},null,{"$f":"Import!E18239","v":0}]
[3,"Exposure to Financial Institutions (Banks, Insurance Companies, Other Financials) - Below Investment Grade",{"$f":"Import!E18216","v":0},{"$f":"Import!E18220","v":0},{"$f":"Import!E18224","v":0},{"$f":"Import!E18228","v":0},{"$f":"Import!E18232","v":0},{"$f":"Import!E18236","v":0},null,{"$f":"Import!E18240","v":0}]
[4,"Exposure to Financial Institutions (Banks, Insurance Companies, Other Financials) - Unrated",{"$f":"Import!E18217","v":0},{"$f":"Import!E18221","v":0},{"$f":"Import!E18225","v":0},{"$f":"Import!E18229","v":0},{"$f":"Import!E18233","v":0},{"$f":"Import!E18237","v":0},null,{"$f":"Import!E18241","v":0}]
[]
[null,"Total Exposures to Financial Institutions",{"$f":"SUM(C1767:C1770)","v":0},{"$f":"SUM(D1767:D1770)","v":0},0,0,0,0]
[]
[null,"Of which","Equities","Corporate Bonds","Corporate Loans","Other",null,null,null,"Comments"]
[5,"- exposures to Banks",{"$f":"Import!E18242","v":0},{"$f":"Import!E18245","v":0},{"$f":"Import!E18248","v":0},{"$f":"Import!E18251","v":0},null,null,null,{"$f":"Import!E18254","v":0}]
[6,"- exposures to Insurers",{"$f":"Import!E18243","v":0},{"$f":"Import!E18246","v":0},{"$f":"Import!E18249","v":0},{"$f":"Import!E18252","v":0},null,null,null,{"$f":"Import!E18255","v":0}]
[7,"- exposures to Other Financial Institutions",{"$f":"Import!E18244","v":0},{"$f":"Import!E18247","v":0},{"$f":"Import!E18250","v":0},{"$f":"Import!E18253","v":0},null,null,null,{"$f":"Import!E18256","v":0}]
[]
[null,"Total Exposures",{"$f":"SUM(C1775:C1777)","v":0},{"$f":"SUM(D1775:D1777)","v":0},{"$f":"SUM(E1775:E1777)","v":0},{"$f":"SUM(F1775:F1777)","v":0}]
[]
[null,null,{"$f":"YEAR($C$3)","v":2023},"Fair Value"]
[null,"Unlisted Counterparties","Equities","Corporate Bonds","Corporate Loans","Other",null,null,null,"Comments"]
[8,"Direct Exposure to Unlisted Counterparties - Investment Grade, BSCR Rating 1-3",{"$f":"Import!E18257","v":0},{"$f":"Import!E18261","v":0},{"$f":"Import!E18265","v":0},{"$f":"Import!E18269","v":0},null,null,null,{"$f":"Import!E18273","v":0}]
[9,"Direct Exposure to Unlisted Counterparties - Investment Grade, BSCR Rating 4",{"$f":"Import!E18258","v":0},{"$f":"Import!E18262","v":0},{"$f":"Import!E18266","v":0},{"$f":"Import!E18270","v":0},null,null,null,{"$f":"Import!E18274","v":0}]
[10,"Direct Exposure to Unlisted Counterparties - Below Investment Grade",{"$f":"Import!E18259","v":0},{"$f":"Import!E18263","v":0},{"$f":"Import!E18267","v":0},{"$f":"Import!E18271","v":0},null,null,null,{"$f":"Import!E18275","v":0}]
[11,"Direct Exposure to Unlisted Counterparties - Unrated",{"$f":"Import!E18260","v":0},{"$f":"Import!E18264","v":0},{"$f":"Import!E18268","v":0},{"$f":"Import!E18272","v":0},null,null,null,{"$f":"Import!E18276","v":0}]
[]
[null,"Total Direct Exposures to Unlisted Counterparties",{"$f":"SUM(C1783:C1786)","v":0},{"$f":"SUM(D1783:D1786)","v":0},0,0]
[]
[null,"(K) OTHER ASSETS"]
[]
[null,null,"Enter # of Asset Types",{"$f":"Import!E18277","v":0}]
[]
[null,null,null,null,{"$f":"YEAR($C$3)","v":2023},2023]
[null,"Asset Type","Currency","BSCR Rating","Nominal Amount","Fair Value","Comments"]
[1,{"$f":"Import!E18278","v":"Select"},{"$f":"Import!E18478","v":"Select"},{"$f":"Import!E18678","v":"Select"},{"$f":"Import!E18878","v":0},{"$f":"Import!E19078","v":0},{"$f":"Import!E19278","v":0}]
[{"$f":"A1796+1","v":2},{"$f":"Import!E18279","v":"Select"},{"$f":"Import!E18479","v":"Select"},{"$f":"Import!E18679","v":"Select"},{"$f":"Import!E18879","v":0},{"$f":"Import!E19079","v":0},{"$f":"Import!E19279","v":0}]
[{"$f":"A1797+1","v":3},{"$f":"Import!E18280","v":"Select"},{"$f":"Import!E18480","v":"Select"},{"$f":"Import!E18680","v":"Select"},{"$f":"Import!E18880","v":0},{"$f":"Import!E19080","v":0},{"$f":"Import!E19280","v":0}]
[4,{"$f":"Import!E18281","v":"Select"},{"$f":"Import!E18481","v":"Select"},{"$f":"Import!E18681","v":"Select"},{"$f":"Import!E18881","v":0},{"$f":"Import!E19081","v":0},{"$f":"Import!E19281","v":0}]
[5,{"$f":"Import!E18282","v":"Select"},{"$f":"Import!E18482","v":"Select"},{"$f":"Import!E18682","v":"Select"},{"$f":"Import!E18882","v":0},{"$f":"Import!E19082","v":0},{"$f":"Import!E19282","v":0}]
[6,{"$f":"Import!E18283","v":"Select"},{"$f":"Import!E18483","v":"Select"},{"$f":"Import!E18683","v":"Select"},{"$f":"Import!E18883","v":0},{"$f":"Import!E19083","v":0},{"$f":"Import!E19283","v":0}]
[7,{"$f":"Import!E18284","v":"Select"},{"$f":"Import!E18484","v":"Select"},{"$f":"Import!E18684","v":"Select"},{"$f":"Import!E18884","v":0},{"$f":"Import!E19084","v":0},{"$f":"Import!E19284","v":0}]
[8,{"$f":"Import!E18285","v":"Select"},{"$f":"Import!E18485","v":"Select"},{"$f":"Import!E18685","v":"Select"},{"$f":"Import!E18885","v":0},{"$f":"Import!E19085","v":0},{"$f":"Import!E19285","v":0}]
[9,{"$f":"Import!E18286","v":"Select"},{"$f":"Import!E18486","v":"Select"},{"$f":"Import!E18686","v":"Select"},{"$f":"Import!E18886","v":0},{"$f":"Import!E19086","v":0},{"$f":"Import!E19286","v":0}]
[10,{"$f":"Import!E18287","v":"Select"},{"$f":"Import!E18487","v":"Select"},{"$f":"Import!E18687","v":"Select"},{"$f":"Import!E18887","v":0},{"$f":"Import!E19087","v":0},{"$f":"Import!E19287","v":0}]
[11,{"$f":"Import!E18288","v":"Select"},{"$f":"Import!E18488","v":"Select"},{"$f":"Import!E18688","v":"Select"},{"$f":"Import!E18888","v":0},{"$f":"Import!E19088","v":0},{"$f":"Import!E19288","v":0}]
[12,{"$f":"Import!E18289","v":"Select"},{"$f":"Import!E18489","v":"Select"},{"$f":"Import!E18689","v":"Select"},{"$f":"Import!E18889","v":0},{"$f":"Import!E19089","v":0},{"$f":"Import!E19289","v":0}]
[13,{"$f":"Import!E18290","v":"Select"},{"$f":"Import!E18490","v":"Select"},{"$f":"Import!E18690","v":"Select"},{"$f":"Import!E18890","v":0},{"$f":"Import!E19090","v":0},{"$f":"Import!E19290","v":0}]
[14,{"$f":"Import!E18291","v":"Select"},{"$f":"Import!E18491","v":"Select"},{"$f":"Import!E18691","v":"Select"},{"$f":"Import!E18891","v":0},{"$f":"Import!E19091","v":0},{"$f":"Import!E19291","v":0}]
[15,{"$f":"Import!E18292","v":"Select"},{"$f":"Import!E18492","v":"Select"},{"$f":"Import!E18692","v":"Select"},{"$f":"Import!E18892","v":0},{"$f":"Import!E19092","v":0},{"$f":"Import!E19292","v":0}]
[16,{"$f":"Import!E18293","v":"Select"},{"$f":"Import!E18493","v":"Select"},{"$f":"Import!E18693","v":"Select"},{"$f":"Import!E18893","v":0},{"$f":"Import!E19093","v":0},{"$f":"Import!E19293","v":0}]
[17,{"$f":"Import!E18294","v":"Select"},{"$f":"Import!E18494","v":"Select"},{"$f":"Import!E18694","v":"Select"},{"$f":"Import!E18894","v":0},{"$f":"Import!E19094","v":0},{"$f":"Import!E19294","v":0}]
[18,{"$f":"Import!E18295","v":"Select"},{"$f":"Import!E18495","v":"Select"},{"$f":"Import!E18695","v":"Select"},{"$f":"Import!E18895","v":0},{"$f":"Import!E19095","v":0},{"$f":"Import!E19295","v":0}]
[19,{"$f":"Import!E18296","v":"Select"},{"$f":"Import!E18496","v":"Select"},{"$f":"Import!E18696","v":"Select"},{"$f":"Import!E18896","v":0},{"$f":"Import!E19096","v":0},{"$f":"Import!E19296","v":0}]
[20,{"$f":"Import!E18297","v":"Select"},{"$f":"Import!E18497","v":"Select"},{"$f":"Import!E18697","v":"Select"},{"$f":"Import!E18897","v":0},{"$f":"Import!E19097","v":0},{"$f":"Import!E19297","v":0}]
[21,{"$f":"Import!E18298","v":"Select"},{"$f":"Import!E18498","v":"Select"},{"$f":"Import!E18698","v":"Select"},{"$f":"Import!E18898","v":0},{"$f":"Import!E19098","v":0},{"$f":"Import!E19298","v":0}]
[22,{"$f":"Import!E18299","v":"Select"},{"$f":"Import!E18499","v":"Select"},{"$f":"Import!E18699","v":"Select"},{"$f":"Import!E18899","v":0},{"$f":"Import!E19099","v":0},{"$f":"Import!E19299","v":0}]
[23,{"$f":"Import!E18300","v":"Select"},{"$f":"Import!E18500","v":"Select"},{"$f":"Import!E18700","v":"Select"},{"$f":"Import!E18900","v":0},{"$f":"Import!E19100","v":0},{"$f":"Import!E19300","v":0}]
[24,{"$f":"Import!E18301","v":"Select"},{"$f":"Import!E18501","v":"Select"},{"$f":"Import!E18701","v":"Select"},{"$f":"Import!E18901","v":0},{"$f":"Import!E19101","v":0},{"$f":"Import!E19301","v":0}]
[25,{"$f":"Import!E18302","v":"Select"},{"$f":"Import!E18502","v":"Select"},{"$f":"Import!E18702","v":"Select"},{"$f":"Import!E18902","v":0},{"$f":"Import!E19102","v":0},{"$f":"Import!E19302","v":0}]
[26,{"$f":"Import!E18303","v":"Select"},{"$f":"Import!E18503","v":"Select"},{"$f":"Import!E18703","v":"Select"},{"$f":"Import!E18903","v":0},{"$f":"Import!E19103","v":0},{"$f":"Import!E19303","v":0}]
[27,{"$f":"Import!E18304","v":"Select"},{"$f":"Import!E18504","v":"Select"},{"$f":"Import!E18704","v":"Select"},{"$f":"Import!E18904","v":0},{"$f":"Import!E19104","v":0},{"$f":"Import!E19304","v":0}]
[28,{"$f":"Import!E18305","v":"Select"},{"$f":"Import!E18505","v":"Select"},{"$f":"Import!E18705","v":"Select"},{"$f":"Import!E18905","v":0},{"$f":"Import!E19105","v":0},{"$f":"Import!E19305","v":0}]
[29,{"$f":"Import!E18306","v":"Select"},{"$f":"Import!E18506","v":"Select"},{"$f":"Import!E18706","v":"Select"},{"$f":"Import!E18906","v":0},{"$f":"Import!E19106","v":0},{"$f":"Import!E19306","v":0}]
[30,{"$f":"Import!E18307","v":"Select"},{"$f":"Import!E18507","v":"Select"},{"$f":"Import!E18707","v":"Select"},{"$f":"Import!E18907","v":0},{"$f":"Import!E19107","v":0},{"$f":"Import!E19307","v":0}]
[31,{"$f":"Import!E18308","v":"Select"},{"$f":"Import!E18508","v":"Select"},{"$f":"Import!E18708","v":"Select"},{"$f":"Import!E18908","v":0},{"$f":"Import!E19108","v":0},{"$f":"Import!E19308","v":0}]
[32,{"$f":"Import!E18309","v":"Select"},{"$f":"Import!E18509","v":"Select"},{"$f":"Import!E18709","v":"Select"},{"$f":"Import!E18909","v":0},{"$f":"Import!E19109","v":0},{"$f":"Import!E19309","v":0}]
[33,{"$f":"Import!E18310","v":"Select"},{"$f":"Import!E18510","v":"Select"},{"$f":"Import!E18710","v":"Select"},{"$f":"Import!E18910","v":0},{"$f":"Import!E19110","v":0},{"$f":"Import!E19310","v":0}]
[34,{"$f":"Import!E18311","v":"Select"},{"$f":"Import!E18511","v":"Select"},{"$f":"Import!E18711","v":"Select"},{"$f":"Import!E18911","v":0},{"$f":"Import!E19111","v":0},{"$f":"Import!E19311","v":0}]
[35,{"$f":"Import!E18312","v":"Select"},{"$f":"Import!E18512","v":"Select"},{"$f":"Import!E18712","v":"Select"},{"$f":"Import!E18912","v":0},{"$f":"Import!E19112","v":0},{"$f":"Import!E19312","v":0}]
[36,{"$f":"Import!E18313","v":"Select"},{"$f":"Import!E18513","v":"Select"},{"$f":"Import!E18713","v":"Select"},{"$f":"Import!E18913","v":0},{"$f":"Import!E19113","v":0},{"$f":"Import!E19313","v":0}]
[37,{"$f":"Import!E18314","v":"Select"},{"$f":"Import!E18514","v":"Select"},{"$f":"Import!E18714","v":"Select"},{"$f":"Import!E18914","v":0},{"$f":"Import!E19114","v":0},{"$f":"Import!E19314","v":0}]
[38,{"$f":"Import!E18315","v":"Select"},{"$f":"Import!E18515","v":"Select"},{"$f":"Import!E18715","v":"Select"},{"$f":"Import!E18915","v":0},{"$f":"Import!E19115","v":0},{"$f":"Import!E19315","v":0}]
[39,{"$f":"Import!E18316","v":"Select"},{"$f":"Import!E18516","v":"Select"},{"$f":"Import!E18716","v":"Select"},{"$f":"Import!E18916","v":0},{"$f":"Import!E19116","v":0},{"$f":"Import!E19316","v":0}]
[40,{"$f":"Import!E18317","v":"Select"},{"$f":"Import!E18517","v":"Select"},{"$f":"Import!E18717","v":"Select"},{"$f":"Import!E18917","v":0},{"$f":"Import!E19117","v":0},{"$f":"Import!E19317","v":0}]
[41,{"$f":"Import!E18318","v":"Select"},{"$f":"Import!E18518","v":"Select"},{"$f":"Import!E18718","v":"Select"},{"$f":"Import!E18918","v":0},{"$f":"Import!E19118","v":0},{"$f":"Import!E19318","v":0}]
[42,{"$f":"Import!E18319","v":"Select"},{"$f":"Import!E18519","v":"Select"},{"$f":"Import!E18719","v":"Select"},{"$f":"Import!E18919","v":0},{"$f":"Import!E19119","v":0},{"$f":"Import!E19319","v":0}]
[43,{"$f":"Import!E18320","v":"Select"},{"$f":"Import!E18520","v":"Select"},{"$f":"Import!E18720","v":"Select"},{"$f":"Import!E18920","v":0},{"$f":"Import!E19120","v":0},{"$f":"Import!E19320","v":0}]
[44,{"$f":"Import!E18321","v":"Select"},{"$f":"Import!E18521","v":"Select"},{"$f":"Import!E18721","v":"Select"},{"$f":"Import!E18921","v":0},{"$f":"Import!E19121","v":0},{"$f":"Import!E19321","v":0}]
[45,{"$f":"Import!E18322","v":"Select"},{"$f":"Import!E18522","v":"Select"},{"$f":"Import!E18722","v":"Select"},{"$f":"Import!E18922","v":0},{"$f":"Import!E19122","v":0},{"$f":"Import!E19322","v":0}]
[46,{"$f":"Import!E18323","v":"Select"},{"$f":"Import!E18523","v":"Select"},{"$f":"Import!E18723","v":"Select"},{"$f":"Import!E18923","v":0},{"$f":"Import!E19123","v":0},{"$f":"Import!E19323","v":0}]
[47,{"$f":"Import!E18324","v":"Select"},{"$f":"Import!E18524","v":"Select"},{"$f":"Import!E18724","v":"Select"},{"$f":"Import!E18924","v":0},{"$f":"Import!E19124","v":0},{"$f":"Import!E19324","v":0}]
[48,{"$f":"Import!E18325","v":"Select"},{"$f":"Import!E18525","v":"Select"},{"$f":"Import!E18725","v":"Select"},{"$f":"Import!E18925","v":0},{"$f":"Import!E19125","v":0},{"$f":"Import!E19325","v":0}]
[49,{"$f":"Import!E18326","v":"Select"},{"$f":"Import!E18526","v":"Select"},{"$f":"Import!E18726","v":"Select"},{"$f":"Import!E18926","v":0},{"$f":"Import!E19126","v":0},{"$f":"Import!E19326","v":0}]
[50,{"$f":"Import!E18327","v":"Select"},{"$f":"Import!E18527","v":"Select"},{"$f":"Import!E18727","v":"Select"},{"$f":"Import!E18927","v":0},{"$f":"Import!E19127","v":0},{"$f":"Import!E19327","v":0}]
[51,{"$f":"Import!E18328","v":"Select"},{"$f":"Import!E18528","v":"Select"},{"$f":"Import!E18728","v":"Select"},{"$f":"Import!E18928","v":0},{"$f":"Import!E19128","v":0},{"$f":"Import!E19328","v":0}]
[52,{"$f":"Import!E18329","v":"Select"},{"$f":"Import!E18529","v":"Select"},{"$f":"Import!E18729","v":"Select"},{"$f":"Import!E18929","v":0},{"$f":"Import!E19129","v":0},{"$f":"Import!E19329","v":0}]
[53,{"$f":"Import!E18330","v":"Select"},{"$f":"Import!E18530","v":"Select"},{"$f":"Import!E18730","v":"Select"},{"$f":"Import!E18930","v":0},{"$f":"Import!E19130","v":0},{"$f":"Import!E19330","v":0}]
[54,{"$f":"Import!E18331","v":"Select"},{"$f":"Import!E18531","v":"Select"},{"$f":"Import!E18731","v":"Select"},{"$f":"Import!E18931","v":0},{"$f":"Import!E19131","v":0},{"$f":"Import!E19331","v":0}]
[55,{"$f":"Import!E18332","v":"Select"},{"$f":"Import!E18532","v":"Select"},{"$f":"Import!E18732","v":"Select"},{"$f":"Import!E18932","v":0},{"$f":"Import!E19132","v":0},{"$f":"Import!E19332","v":0}]
[56,{"$f":"Import!E18333","v":"Select"},{"$f":"Import!E18533","v":"Select"},{"$f":"Import!E18733","v":"Select"},{"$f":"Import!E18933","v":0},{"$f":"Import!E19133","v":0},{"$f":"Import!E19333","v":0}]
[57,{"$f":"Import!E18334","v":"Select"},{"$f":"Import!E18534","v":"Select"},{"$f":"Import!E18734","v":"Select"},{"$f":"Import!E18934","v":0},{"$f":"Import!E19134","v":0},{"$f":"Import!E19334","v":0}]
[58,{"$f":"Import!E18335","v":"Select"},{"$f":"Import!E18535","v":"Select"},{"$f":"Import!E18735","v":"Select"},{"$f":"Import!E18935","v":0},{"$f":"Import!E19135","v":0},{"$f":"Import!E19335","v":0}]
[59,{"$f":"Import!E18336","v":"Select"},{"$f":"Import!E18536","v":"Select"},{"$f":"Import!E18736","v":"Select"},{"$f":"Import!E18936","v":0},{"$f":"Import!E19136","v":0},{"$f":"Import!E19336","v":0}]
[60,{"$f":"Import!E18337","v":"Select"},{"$f":"Import!E18537","v":"Select"},{"$f":"Import!E18737","v":"Select"},{"$f":"Import!E18937","v":0},{"$f":"Import!E19137","v":0},{"$f":"Import!E19337","v":0}]
[61,{"$f":"Import!E18338","v":"Select"},{"$f":"Import!E18538","v":"Select"},{"$f":"Import!E18738","v":"Select"},{"$f":"Import!E18938","v":0},{"$f":"Import!E19138","v":0},{"$f":"Import!E19338","v":0}]
[62,{"$f":"Import!E18339","v":"Select"},{"$f":"Import!E18539","v":"Select"},{"$f":"Import!E18739","v":"Select"},{"$f":"Import!E18939","v":0},{"$f":"Import!E19139","v":0},{"$f":"Import!E19339","v":0}]
[63,{"$f":"Import!E18340","v":"Select"},{"$f":"Import!E18540","v":"Select"},{"$f":"Import!E18740","v":"Select"},{"$f":"Import!E18940","v":0},{"$f":"Import!E19140","v":0},{"$f":"Import!E19340","v":0}]
[64,{"$f":"Import!E18341","v":"Select"},{"$f":"Import!E18541","v":"Select"},{"$f":"Import!E18741","v":"Select"},{"$f":"Import!E18941","v":0},{"$f":"Import!E19141","v":0},{"$f":"Import!E19341","v":0}]
[65,{"$f":"Import!E18342","v":"Select"},{"$f":"Import!E18542","v":"Select"},{"$f":"Import!E18742","v":"Select"},{"$f":"Import!E18942","v":0},{"$f":"Import!E19142","v":0},{"$f":"Import!E19342","v":0}]
[66,{"$f":"Import!E18343","v":"Select"},{"$f":"Import!E18543","v":"Select"},{"$f":"Import!E18743","v":"Select"},{"$f":"Import!E18943","v":0},{"$f":"Import!E19143","v":0},{"$f":"Import!E19343","v":0}]
[{"$f":"A1861+1","v":67},{"$f":"Import!E18344","v":"Select"},{"$f":"Import!E18544","v":"Select"},{"$f":"Import!E18744","v":"Select"},{"$f":"Import!E18944","v":0},{"$f":"Import!E19144","v":0},{"$f":"Import!E19344","v":0}]
[68,{"$f":"Import!E18345","v":"Select"},{"$f":"Import!E18545","v":"Select"},{"$f":"Import!E18745","v":"Select"},{"$f":"Import!E18945","v":0},{"$f":"Import!E19145","v":0},{"$f":"Import!E19345","v":0}]
[69,{"$f":"Import!E18346","v":"Select"},{"$f":"Import!E18546","v":"Select"},{"$f":"Import!E18746","v":"Select"},{"$f":"Import!E18946","v":0},{"$f":"Import!E19146","v":0},{"$f":"Import!E19346","v":0}]
[70,{"$f":"Import!E18347","v":"Select"},{"$f":"Import!E18547","v":"Select"},{"$f":"Import!E18747","v":"Select"},{"$f":"Import!E18947","v":0},{"$f":"Import!E19147","v":0},{"$f":"Import!E19347","v":0}]
[71,{"$f":"Import!E18348","v":"Select"},{"$f":"Import!E18548","v":"Select"},{"$f":"Import!E18748","v":"Select"},{"$f":"Import!E18948","v":0},{"$f":"Import!E19148","v":0},{"$f":"Import!E19348","v":0}]
[72,{"$f":"Import!E18349","v":"Select"},{"$f":"Import!E18549","v":"Select"},{"$f":"Import!E18749","v":"Select"},{"$f":"Import!E18949","v":0},{"$f":"Import!E19149","v":0},{"$f":"Import!E19349","v":0}]
[73,{"$f":"Import!E18350","v":"Select"},{"$f":"Import!E18550","v":"Select"},{"$f":"Import!E18750","v":"Select"},{"$f":"Import!E18950","v":0},{"$f":"Import!E19150","v":0},{"$f":"Import!E19350","v":0}]
[74,{"$f":"Import!E18351","v":"Select"},{"$f":"Import!E18551","v":"Select"},{"$f":"Import!E18751","v":"Select"},{"$f":"Import!E18951","v":0},{"$f":"Import!E19151","v":0},{"$f":"Import!E19351","v":0}]
[75,{"$f":"Import!E18352","v":"Select"},{"$f":"Import!E18552","v":"Select"},{"$f":"Import!E18752","v":"Select"},{"$f":"Import!E18952","v":0},{"$f":"Import!E19152","v":0},{"$f":"Import!E19352","v":0}]
[76,{"$f":"Import!E18353","v":"Select"},{"$f":"Import!E18553","v":"Select"},{"$f":"Import!E18753","v":"Select"},{"$f":"Import!E18953","v":0},{"$f":"Import!E19153","v":0},{"$f":"Import!E19353","v":0}]
[77,{"$f":"Import!E18354","v":"Select"},{"$f":"Import!E18554","v":"Select"},{"$f":"Import!E18754","v":"Select"},{"$f":"Import!E18954","v":0},{"$f":"Import!E19154","v":0},{"$f":"Import!E19354","v":0}]
[78,{"$f":"Import!E18355","v":"Select"},{"$f":"Import!E18555","v":"Select"},{"$f":"Import!E18755","v":"Select"},{"$f":"Import!E18955","v":0},{"$f":"Import!E19155","v":0},{"$f":"Import!E19355","v":0}]
[79,{"$f":"Import!E18356","v":"Select"},{"$f":"Import!E18556","v":"Select"},{"$f":"Import!E18756","v":"Select"},{"$f":"Import!E18956","v":0},{"$f":"Import!E19156","v":0},{"$f":"Import!E19356","v":0}]
[80,{"$f":"Import!E18357","v":"Select"},{"$f":"Import!E18557","v":"Select"},{"$f":"Import!E18757","v":"Select"},{"$f":"Import!E18957","v":0},{"$f":"Import!E19157","v":0},{"$f":"Import!E19357","v":0}]
[81,{"$f":"Import!E18358","v":"Select"},{"$f":"Import!E18558","v":"Select"},{"$f":"Import!E18758","v":"Select"},{"$f":"Import!E18958","v":0},{"$f":"Import!E19158","v":0},{"$f":"Import!E19358","v":0}]
[82,{"$f":"Import!E18359","v":"Select"},{"$f":"Import!E18559","v":"Select"},{"$f":"Import!E18759","v":"Select"},{"$f":"Import!E18959","v":0},{"$f":"Import!E19159","v":0},{"$f":"Import!E19359","v":0}]
[83,{"$f":"Import!E18360","v":"Select"},{"$f":"Import!E18560","v":"Select"},{"$f":"Import!E18760","v":"Select"},{"$f":"Import!E18960","v":0},{"$f":"Import!E19160","v":0},{"$f":"Import!E19360","v":0}]
[84,{"$f":"Import!E18361","v":"Select"},{"$f":"Import!E18561","v":"Select"},{"$f":"Import!E18761","v":"Select"},{"$f":"Import!E18961","v":0},{"$f":"Import!E19161","v":0},{"$f":"Import!E19361","v":0}]
[85,{"$f":"Import!E18362","v":"Select"},{"$f":"Import!E18562","v":"Select"},{"$f":"Import!E18762","v":"Select"},{"$f":"Import!E18962","v":0},{"$f":"Import!E19162","v":0},{"$f":"Import!E19362","v":0}]
[86,{"$f":"Import!E18363","v":"Select"},{"$f":"Import!E18563","v":"Select"},{"$f":"Import!E18763","v":"Select"},{"$f":"Import!E18963","v":0},{"$f":"Import!E19163","v":0},{"$f":"Import!E19363","v":0}]
[87,{"$f":"Import!E18364","v":"Select"},{"$f":"Import!E18564","v":"Select"},{"$f":"Import!E18764","v":"Select"},{"$f":"Import!E18964","v":0},{"$f":"Import!E19164","v":0},{"$f":"Import!E19364","v":0}]
[88,{"$f":"Import!E18365","v":"Select"},{"$f":"Import!E18565","v":"Select"},{"$f":"Import!E18765","v":"Select"},{"$f":"Import!E18965","v":0},{"$f":"Import!E19165","v":0},{"$f":"Import!E19365","v":0}]
[89,{"$f":"Import!E18366","v":"Select"},{"$f":"Import!E18566","v":"Select"},{"$f":"Import!E18766","v":"Select"},{"$f":"Import!E18966","v":0},{"$f":"Import!E19166","v":0},{"$f":"Import!E19366","v":0}]
[90,{"$f":"Import!E18367","v":"Select"},{"$f":"Import!E18567","v":"Select"},{"$f":"Import!E18767","v":"Select"},{"$f":"Import!E18967","v":0},{"$f":"Import!E19167","v":0},{"$f":"Import!E19367","v":0}]
[91,{"$f":"Import!E18368","v":"Select"},{"$f":"Import!E18568","v":"Select"},{"$f":"Import!E18768","v":"Select"},{"$f":"Import!E18968","v":0},{"$f":"Import!E19168","v":0},{"$f":"Import!E19368","v":0}]
[92,{"$f":"Import!E18369","v":"Select"},{"$f":"Import!E18569","v":"Select"},{"$f":"Import!E18769","v":"Select"},{"$f":"Import!E18969","v":0},{"$f":"Import!E19169","v":0},{"$f":"Import!E19369","v":0}]
[93,{"$f":"Import!E18370","v":"Select"},{"$f":"Import!E18570","v":"Select"},{"$f":"Import!E18770","v":"Select"},{"$f":"Import!E18970","v":0},{"$f":"Import!E19170","v":0},{"$f":"Import!E19370","v":0}]
[94,{"$f":"Import!E18371","v":"Select"},{"$f":"Import!E18571","v":"Select"},{"$f":"Import!E18771","v":"Select"},{"$f":"Import!E18971","v":0},{"$f":"Import!E19171","v":0},{"$f":"Import!E19371","v":0}]
[95,{"$f":"Import!E18372","v":"Select"},{"$f":"Import!E18572","v":"Select"},{"$f":"Import!E18772","v":"Select"},{"$f":"Import!E18972","v":0},{"$f":"Import!E19172","v":0},{"$f":"Import!E19372","v":0}]
[96,{"$f":"Import!E18373","v":"Select"},{"$f":"Import!E18573","v":"Select"},{"$f":"Import!E18773","v":"Select"},{"$f":"Import!E18973","v":0},{"$f":"Import!E19173","v":0},{"$f":"Import!E19373","v":0}]
[97,{"$f":"Import!E18374","v":"Select"},{"$f":"Import!E18574","v":"Select"},{"$f":"Import!E18774","v":"Select"},{"$f":"Import!E18974","v":0},{"$f":"Import!E19174","v":0},{"$f":"Import!E19374","v":0}]
[98,{"$f":"Import!E18375","v":"Select"},{"$f":"Import!E18575","v":"Select"},{"$f":"Import!E18775","v":"Select"},{"$f":"Import!E18975","v":0},{"$f":"Import!E19175","v":0},{"$f":"Import!E19375","v":0}]
[99,{"$f":"Import!E18376","v":"Select"},{"$f":"Import!E18576","v":"Select"},{"$f":"Import!E18776","v":"Select"},{"$f":"Import!E18976","v":0},{"$f":"Import!E19176","v":0},{"$f":"Import!E19376","v":0}]
[100,{"$f":"Import!E18377","v":"Select"},{"$f":"Import!E18577","v":"Select"},{"$f":"Import!E18777","v":"Select"},{"$f":"Import!E18977","v":0},{"$f":"Import!E19177","v":0},{"$f":"Import!E19377","v":0}]
[101,{"$f":"Import!E18378","v":"Select"},{"$f":"Import!E18578","v":"Select"},{"$f":"Import!E18778","v":"Select"},{"$f":"Import!E18978","v":0},{"$f":"Import!E19178","v":0},{"$f":"Import!E19378","v":0}]
[102,{"$f":"Import!E18379","v":"Select"},{"$f":"Import!E18579","v":"Select"},{"$f":"Import!E18779","v":"Select"},{"$f":"Import!E18979","v":0},{"$f":"Import!E19179","v":0},{"$f":"Import!E19379","v":0}]
[103,{"$f":"Import!E18380","v":"Select"},{"$f":"Import!E18580","v":"Select"},{"$f":"Import!E18780","v":"Select"},{"$f":"Import!E18980","v":0},{"$f":"Import!E19180","v":0},{"$f":"Import!E19380","v":0}]
[104,{"$f":"Import!E18381","v":"Select"},{"$f":"Import!E18581","v":"Select"},{"$f":"Import!E18781","v":"Select"},{"$f":"Import!E18981","v":0},{"$f":"Import!E19181","v":0},{"$f":"Import!E19381","v":0}]
[105,{"$f":"Import!E18382","v":"Select"},{"$f":"Import!E18582","v":"Select"},{"$f":"Import!E18782","v":"Select"},{"$f":"Import!E18982","v":0},{"$f":"Import!E19182","v":0},{"$f":"Import!E19382","v":0}]
[106,{"$f":"Import!E18383","v":"Select"},{"$f":"Import!E18583","v":"Select"},{"$f":"Import!E18783","v":"Select"},{"$f":"Import!E18983","v":0},{"$f":"Import!E19183","v":0},{"$f":"Import!E19383","v":0}]
[107,{"$f":"Import!E18384","v":"Select"},{"$f":"Import!E18584","v":"Select"},{"$f":"Import!E18784","v":"Select"},{"$f":"Import!E18984","v":0},{"$f":"Import!E19184","v":0},{"$f":"Import!E19384","v":0}]
[108,{"$f":"Import!E18385","v":"Select"},{"$f":"Import!E18585","v":"Select"},{"$f":"Import!E18785","v":"Select"},{"$f":"Import!E18985","v":0},{"$f":"Import!E19185","v":0},{"$f":"Import!E19385","v":0}]
[109,{"$f":"Import!E18386","v":"Select"},{"$f":"Import!E18586","v":"Select"},{"$f":"Import!E18786","v":"Select"},{"$f":"Import!E18986","v":0},{"$f":"Import!E19186","v":0},{"$f":"Import!E19386","v":0}]
[110,{"$f":"Import!E18387","v":"Select"},{"$f":"Import!E18587","v":"Select"},{"$f":"Import!E18787","v":"Select"},{"$f":"Import!E18987","v":0},{"$f":"Import!E19187","v":0},{"$f":"Import!E19387","v":0}]
[111,{"$f":"Import!E18388","v":"Select"},{"$f":"Import!E18588","v":"Select"},{"$f":"Import!E18788","v":"Select"},{"$f":"Import!E18988","v":0},{"$f":"Import!E19188","v":0},{"$f":"Import!E19388","v":0}]
[112,{"$f":"Import!E18389","v":"Select"},{"$f":"Import!E18589","v":"Select"},{"$f":"Import!E18789","v":"Select"},{"$f":"Import!E18989","v":0},{"$f":"Import!E19189","v":0},{"$f":"Import!E19389","v":0}]
[113,{"$f":"Import!E18390","v":"Select"},{"$f":"Import!E18590","v":"Select"},{"$f":"Import!E18790","v":"Select"},{"$f":"Import!E18990","v":0},{"$f":"Import!E19190","v":0},{"$f":"Import!E19390","v":0}]
[114,{"$f":"Import!E18391","v":"Select"},{"$f":"Import!E18591","v":"Select"},{"$f":"Import!E18791","v":"Select"},{"$f":"Import!E18991","v":0},{"$f":"Import!E19191","v":0},{"$f":"Import!E19391","v":0}]
[115,{"$f":"Import!E18392","v":"Select"},{"$f":"Import!E18592","v":"Select"},{"$f":"Import!E18792","v":"Select"},{"$f":"Import!E18992","v":0},{"$f":"Import!E19192","v":0},{"$f":"Import!E19392","v":0}]
[116,{"$f":"Import!E18393","v":"Select"},{"$f":"Import!E18593","v":"Select"},{"$f":"Import!E18793","v":"Select"},{"$f":"Import!E18993","v":0},{"$f":"Import!E19193","v":0},{"$f":"Import!E19393","v":0}]
[117,{"$f":"Import!E18394","v":"Select"},{"$f":"Import!E18594","v":"Select"},{"$f":"Import!E18794","v":"Select"},{"$f":"Import!E18994","v":0},{"$f":"Import!E19194","v":0},{"$f":"Import!E19394","v":0}]
[118,{"$f":"Import!E18395","v":"Select"},{"$f":"Import!E18595","v":"Select"},{"$f":"Import!E18795","v":"Select"},{"$f":"Import!E18995","v":0},{"$f":"Import!E19195","v":0},{"$f":"Import!E19395","v":0}]
[119,{"$f":"Import!E18396","v":"Select"},{"$f":"Import!E18596","v":"Select"},{"$f":"Import!E18796","v":"Select"},{"$f":"Import!E18996","v":0},{"$f":"Import!E19196","v":0},{"$f":"Import!E19396","v":0}]
[120,{"$f":"Import!E18397","v":"Select"},{"$f":"Import!E18597","v":"Select"},{"$f":"Import!E18797","v":"Select"},{"$f":"Import!E18997","v":0},{"$f":"Import!E19197","v":0},{"$f":"Import!E19397","v":0}]
[121,{"$f":"Import!E18398","v":"Select"},{"$f":"Import!E18598","v":"Select"},{"$f":"Import!E18798","v":"Select"},{"$f":"Import!E18998","v":0},{"$f":"Import!E19198","v":0},{"$f":"Import!E19398","v":0}]
[122,{"$f":"Import!E18399","v":"Select"},{"$f":"Import!E18599","v":"Select"},{"$f":"Import!E18799","v":"Select"},{"$f":"Import!E18999","v":0},{"$f":"Import!E19199","v":0},{"$f":"Import!E19399","v":0}]
[123,{"$f":"Import!E18400","v":"Select"},{"$f":"Import!E18600","v":"Select"},{"$f":"Import!E18800","v":"Select"},{"$f":"Import!E19000","v":0},{"$f":"Import!E19200","v":0},{"$f":"Import!E19400","v":0}]
[124,{"$f":"Import!E18401","v":"Select"},{"$f":"Import!E18601","v":"Select"},{"$f":"Import!E18801","v":"Select"},{"$f":"Import!E19001","v":0},{"$f":"Import!E19201","v":0},{"$f":"Import!E19401","v":0}]
[125,{"$f":"Import!E18402","v":"Select"},{"$f":"Import!E18602","v":"Select"},{"$f":"Import!E18802","v":"Select"},{"$f":"Import!E19002","v":0},{"$f":"Import!E19202","v":0},{"$f":"Import!E19402","v":0}]
[126,{"$f":"Import!E18403","v":"Select"},{"$f":"Import!E18603","v":"Select"},{"$f":"Import!E18803","v":"Select"},{"$f":"Import!E19003","v":0},{"$f":"Import!E19203","v":0},{"$f":"Import!E19403","v":0}]
[127,{"$f":"Import!E18404","v":"Select"},{"$f":"Import!E18604","v":"Select"},{"$f":"Import!E18804","v":"Select"},{"$f":"Import!E19004","v":0},{"$f":"Import!E19204","v":0},{"$f":"Import!E19404","v":0}]
[128,{"$f":"Import!E18405","v":"Select"},{"$f":"Import!E18605","v":"Select"},{"$f":"Import!E18805","v":"Select"},{"$f":"Import!E19005","v":0},{"$f":"Import!E19205","v":0},{"$f":"Import!E19405","v":0}]
[129,{"$f":"Import!E18406","v":"Select"},{"$f":"Import!E18606","v":"Select"},{"$f":"Import!E18806","v":"Select"},{"$f":"Import!E19006","v":0},{"$f":"Import!E19206","v":0},{"$f":"Import!E19406","v":0}]
[130,{"$f":"Import!E18407","v":"Select"},{"$f":"Import!E18607","v":"Select"},{"$f":"Import!E18807","v":"Select"},{"$f":"Import!E19007","v":0},{"$f":"Import!E19207","v":0},{"$f":"Import!E19407","v":0}]
[{"$f":"A1925+1","v":131},{"$f":"Import!E18408","v":"Select"},{"$f":"Import!E18608","v":"Select"},{"$f":"Import!E18808","v":"Select"},{"$f":"Import!E19008","v":0},{"$f":"Import!E19208","v":0},{"$f":"Import!E19408","v":0}]
[132,{"$f":"Import!E18409","v":"Select"},{"$f":"Import!E18609","v":"Select"},{"$f":"Import!E18809","v":"Select"},{"$f":"Import!E19009","v":0},{"$f":"Import!E19209","v":0},{"$f":"Import!E19409","v":0}]
[133,{"$f":"Import!E18410","v":"Select"},{"$f":"Import!E18610","v":"Select"},{"$f":"Import!E18810","v":"Select"},{"$f":"Import!E19010","v":0},{"$f":"Import!E19210","v":0},{"$f":"Import!E19410","v":0}]
[134,{"$f":"Import!E18411","v":"Select"},{"$f":"Import!E18611","v":"Select"},{"$f":"Import!E18811","v":"Select"},{"$f":"Import!E19011","v":0},{"$f":"Import!E19211","v":0},{"$f":"Import!E19411","v":0}]
[135,{"$f":"Import!E18412","v":"Select"},{"$f":"Import!E18612","v":"Select"},{"$f":"Import!E18812","v":"Select"},{"$f":"Import!E19012","v":0},{"$f":"Import!E19212","v":0},{"$f":"Import!E19412","v":0}]
[136,{"$f":"Import!E18413","v":"Select"},{"$f":"Import!E18613","v":"Select"},{"$f":"Import!E18813","v":"Select"},{"$f":"Import!E19013","v":0},{"$f":"Import!E19213","v":0},{"$f":"Import!E19413","v":0}]
[137,{"$f":"Import!E18414","v":"Select"},{"$f":"Import!E18614","v":"Select"},{"$f":"Import!E18814","v":"Select"},{"$f":"Import!E19014","v":0},{"$f":"Import!E19214","v":0},{"$f":"Import!E19414","v":0}]
[138,{"$f":"Import!E18415","v":"Select"},{"$f":"Import!E18615","v":"Select"},{"$f":"Import!E18815","v":"Select"},{"$f":"Import!E19015","v":0},{"$f":"Import!E19215","v":0},{"$f":"Import!E19415","v":0}]
[139,{"$f":"Import!E18416","v":"Select"},{"$f":"Import!E18616","v":"Select"},{"$f":"Import!E18816","v":"Select"},{"$f":"Import!E19016","v":0},{"$f":"Import!E19216","v":0},{"$f":"Import!E19416","v":0}]
[140,{"$f":"Import!E18417","v":"Select"},{"$f":"Import!E18617","v":"Select"},{"$f":"Import!E18817","v":"Select"},{"$f":"Import!E19017","v":0},{"$f":"Import!E19217","v":0},{"$f":"Import!E19417","v":0}]
[141,{"$f":"Import!E18418","v":"Select"},{"$f":"Import!E18618","v":"Select"},{"$f":"Import!E18818","v":"Select"},{"$f":"Import!E19018","v":0},{"$f":"Import!E19218","v":0},{"$f":"Import!E19418","v":0}]
[142,{"$f":"Import!E18419","v":"Select"},{"$f":"Import!E18619","v":"Select"},{"$f":"Import!E18819","v":"Select"},{"$f":"Import!E19019","v":0},{"$f":"Import!E19219","v":0},{"$f":"Import!E19419","v":0}]
[143,{"$f":"Import!E18420","v":"Select"},{"$f":"Import!E18620","v":"Select"},{"$f":"Import!E18820","v":"Select"},{"$f":"Import!E19020","v":0},{"$f":"Import!E19220","v":0},{"$f":"Import!E19420","v":0}]
[144,{"$f":"Import!E18421","v":"Select"},{"$f":"Import!E18621","v":"Select"},{"$f":"Import!E18821","v":"Select"},{"$f":"Import!E19021","v":0},{"$f":"Import!E19221","v":0},{"$f":"Import!E19421","v":0}]
[145,{"$f":"Import!E18422","v":"Select"},{"$f":"Import!E18622","v":"Select"},{"$f":"Import!E18822","v":"Select"},{"$f":"Import!E19022","v":0},{"$f":"Import!E19222","v":0},{"$f":"Import!E19422","v":0}]
[146,{"$f":"Import!E18423","v":"Select"},{"$f":"Import!E18623","v":"Select"},{"$f":"Import!E18823","v":"Select"},{"$f":"Import!E19023","v":0},{"$f":"Import!E19223","v":0},{"$f":"Import!E19423","v":0}]
[147,{"$f":"Import!E18424","v":"Select"},{"$f":"Import!E18624","v":"Select"},{"$f":"Import!E18824","v":"Select"},{"$f":"Import!E19024","v":0},{"$f":"Import!E19224","v":0},{"$f":"Import!E19424","v":0}]
[148,{"$f":"Import!E18425","v":"Select"},{"$f":"Import!E18625","v":"Select"},{"$f":"Import!E18825","v":"Select"},{"$f":"Import!E19025","v":0},{"$f":"Import!E19225","v":0},{"$f":"Import!E19425","v":0}]
[149,{"$f":"Import!E18426","v":"Select"},{"$f":"Import!E18626","v":"Select"},{"$f":"Import!E18826","v":"Select"},{"$f":"Import!E19026","v":0},{"$f":"Import!E19226","v":0},{"$f":"Import!E19426","v":0}]
[150,{"$f":"Import!E18427","v":"Select"},{"$f":"Import!E18627","v":"Select"},{"$f":"Import!E18827","v":"Select"},{"$f":"Import!E19027","v":0},{"$f":"Import!E19227","v":0},{"$f":"Import!E19427","v":0}]
[151,{"$f":"Import!E18428","v":"Select"},{"$f":"Import!E18628","v":"Select"},{"$f":"Import!E18828","v":"Select"},{"$f":"Import!E19028","v":0},{"$f":"Import!E19228","v":0},{"$f":"Import!E19428","v":0}]
[152,{"$f":"Import!E18429","v":"Select"},{"$f":"Import!E18629","v":"Select"},{"$f":"Import!E18829","v":"Select"},{"$f":"Import!E19029","v":0},{"$f":"Import!E19229","v":0},{"$f":"Import!E19429","v":0}]
[153,{"$f":"Import!E18430","v":"Select"},{"$f":"Import!E18630","v":"Select"},{"$f":"Import!E18830","v":"Select"},{"$f":"Import!E19030","v":0},{"$f":"Import!E19230","v":0},{"$f":"Import!E19430","v":0}]
[154,{"$f":"Import!E18431","v":"Select"},{"$f":"Import!E18631","v":"Select"},{"$f":"Import!E18831","v":"Select"},{"$f":"Import!E19031","v":0},{"$f":"Import!E19231","v":0},{"$f":"Import!E19431","v":0}]
[155,{"$f":"Import!E18432","v":"Select"},{"$f":"Import!E18632","v":"Select"},{"$f":"Import!E18832","v":"Select"},{"$f":"Import!E19032","v":0},{"$f":"Import!E19232","v":0},{"$f":"Import!E19432","v":0}]
[156,{"$f":"Import!E18433","v":"Select"},{"$f":"Import!E18633","v":"Select"},{"$f":"Import!E18833","v":"Select"},{"$f":"Import!E19033","v":0},{"$f":"Import!E19233","v":0},{"$f":"Import!E19433","v":0}]
[157,{"$f":"Import!E18434","v":"Select"},{"$f":"Import!E18634","v":"Select"},{"$f":"Import!E18834","v":"Select"},{"$f":"Import!E19034","v":0},{"$f":"Import!E19234","v":0},{"$f":"Import!E19434","v":0}]
[158,{"$f":"Import!E18435","v":"Select"},{"$f":"Import!E18635","v":"Select"},{"$f":"Import!E18835","v":"Select"},{"$f":"Import!E19035","v":0},{"$f":"Import!E19235","v":0},{"$f":"Import!E19435","v":0}]
[159,{"$f":"Import!E18436","v":"Select"},{"$f":"Import!E18636","v":"Select"},{"$f":"Import!E18836","v":"Select"},{"$f":"Import!E19036","v":0},{"$f":"Import!E19236","v":0},{"$f":"Import!E19436","v":0}]
[160,{"$f":"Import!E18437","v":"Select"},{"$f":"Import!E18637","v":"Select"},{"$f":"Import!E18837","v":"Select"},{"$f":"Import!E19037","v":0},{"$f":"Import!E19237","v":0},{"$f":"Import!E19437","v":0}]
[161,{"$f":"Import!E18438","v":"Select"},{"$f":"Import!E18638","v":"Select"},{"$f":"Import!E18838","v":"Select"},{"$f":"Import!E19038","v":0},{"$f":"Import!E19238","v":0},{"$f":"Import!E19438","v":0}]
[162,{"$f":"Import!E18439","v":"Select"},{"$f":"Import!E18639","v":"Select"},{"$f":"Import!E18839","v":"Select"},{"$f":"Import!E19039","v":0},{"$f":"Import!E19239","v":0},{"$f":"Import!E19439","v":0}]
[163,{"$f":"Import!E18440","v":"Select"},{"$f":"Import!E18640","v":"Select"},{"$f":"Import!E18840","v":"Select"},{"$f":"Import!E19040","v":0},{"$f":"Import!E19240","v":0},{"$f":"Import!E19440","v":0}]
[164,{"$f":"Import!E18441","v":"Select"},{"$f":"Import!E18641","v":"Select"},{"$f":"Import!E18841","v":"Select"},{"$f":"Import!E19041","v":0},{"$f":"Import!E19241","v":0},{"$f":"Import!E19441","v":0}]
[165,{"$f":"Import!E18442","v":"Select"},{"$f":"Import!E18642","v":"Select"},{"$f":"Import!E18842","v":"Select"},{"$f":"Import!E19042","v":0},{"$f":"Import!E19242","v":0},{"$f":"Import!E19442","v":0}]
[166,{"$f":"Import!E18443","v":"Select"},{"$f":"Import!E18643","v":"Select"},{"$f":"Import!E18843","v":"Select"},{"$f":"Import!E19043","v":0},{"$f":"Import!E19243","v":0},{"$f":"Import!E19443","v":0}]
[167,{"$f":"Import!E18444","v":"Select"},{"$f":"Import!E18644","v":"Select"},{"$f":"Import!E18844","v":"Select"},{"$f":"Import!E19044","v":0},{"$f":"Import!E19244","v":0},{"$f":"Import!E19444","v":0}]
[168,{"$f":"Import!E18445","v":"Select"},{"$f":"Import!E18645","v":"Select"},{"$f":"Import!E18845","v":"Select"},{"$f":"Import!E19045","v":0},{"$f":"Import!E19245","v":0},{"$f":"Import!E19445","v":0}]
[169,{"$f":"Import!E18446","v":"Select"},{"$f":"Import!E18646","v":"Select"},{"$f":"Import!E18846","v":"Select"},{"$f":"Import!E19046","v":0},{"$f":"Import!E19246","v":0},{"$f":"Import!E19446","v":0}]
[170,{"$f":"Import!E18447","v":"Select"},{"$f":"Import!E18647","v":"Select"},{"$f":"Import!E18847","v":"Select"},{"$f":"Import!E19047","v":0},{"$f":"Import!E19247","v":0},{"$f":"Import!E19447","v":0}]
[171,{"$f":"Import!E18448","v":"Select"},{"$f":"Import!E18648","v":"Select"},{"$f":"Import!E18848","v":"Select"},{"$f":"Import!E19048","v":0},{"$f":"Import!E19248","v":0},{"$f":"Import!E19448","v":0}]
[172,{"$f":"Import!E18449","v":"Select"},{"$f":"Import!E18649","v":"Select"},{"$f":"Import!E18849","v":"Select"},{"$f":"Import!E19049","v":0},{"$f":"Import!E19249","v":0},{"$f":"Import!E19449","v":0}]
[173,{"$f":"Import!E18450","v":"Select"},{"$f":"Import!E18650","v":"Select"},{"$f":"Import!E18850","v":"Select"},{"$f":"Import!E19050","v":0},{"$f":"Import!E19250","v":0},{"$f":"Import!E19450","v":0}]
[174,{"$f":"Import!E18451","v":"Select"},{"$f":"Import!E18651","v":"Select"},{"$f":"Import!E18851","v":"Select"},{"$f":"Import!E19051","v":0},{"$f":"Import!E19251","v":0},{"$f":"Import!E19451","v":0}]
[175,{"$f":"Import!E18452","v":"Select"},{"$f":"Import!E18652","v":"Select"},{"$f":"Import!E18852","v":"Select"},{"$f":"Import!E19052","v":0},{"$f":"Import!E19252","v":0},{"$f":"Import!E19452","v":0}]
[176,{"$f":"Import!E18453","v":"Select"},{"$f":"Import!E18653","v":"Select"},{"$f":"Import!E18853","v":"Select"},{"$f":"Import!E19053","v":0},{"$f":"Import!E19253","v":0},{"$f":"Import!E19453","v":0}]
[177,{"$f":"Import!E18454","v":"Select"},{"$f":"Import!E18654","v":"Select"},{"$f":"Import!E18854","v":"Select"},{"$f":"Import!E19054","v":0},{"$f":"Import!E19254","v":0},{"$f":"Import!E19454","v":0}]
[178,{"$f":"Import!E18455","v":"Select"},{"$f":"Import!E18655","v":"Select"},{"$f":"Import!E18855","v":"Select"},{"$f":"Import!E19055","v":0},{"$f":"Import!E19255","v":0},{"$f":"Import!E19455","v":0}]
[179,{"$f":"Import!E18456","v":"Select"},{"$f":"Import!E18656","v":"Select"},{"$f":"Import!E18856","v":"Select"},{"$f":"Import!E19056","v":0},{"$f":"Import!E19256","v":0},{"$f":"Import!E19456","v":0}]
[180,{"$f":"Import!E18457","v":"Select"},{"$f":"Import!E18657","v":"Select"},{"$f":"Import!E18857","v":"Select"},{"$f":"Import!E19057","v":0},{"$f":"Import!E19257","v":0},{"$f":"Import!E19457","v":0}]
[181,{"$f":"Import!E18458","v":"Select"},{"$f":"Import!E18658","v":"Select"},{"$f":"Import!E18858","v":"Select"},{"$f":"Import!E19058","v":0},{"$f":"Import!E19258","v":0},{"$f":"Import!E19458","v":0}]
[182,{"$f":"Import!E18459","v":"Select"},{"$f":"Import!E18659","v":"Select"},{"$f":"Import!E18859","v":"Select"},{"$f":"Import!E19059","v":0},{"$f":"Import!E19259","v":0},{"$f":"Import!E19459","v":0}]
[183,{"$f":"Import!E18460","v":"Select"},{"$f":"Import!E18660","v":"Select"},{"$f":"Import!E18860","v":"Select"},{"$f":"Import!E19060","v":0},{"$f":"Import!E19260","v":0},{"$f":"Import!E19460","v":0}]
[184,{"$f":"Import!E18461","v":"Select"},{"$f":"Import!E18661","v":"Select"},{"$f":"Import!E18861","v":"Select"},{"$f":"Import!E19061","v":0},{"$f":"Import!E19261","v":0},{"$f":"Import!E19461","v":0}]
[185,{"$f":"Import!E18462","v":"Select"},{"$f":"Import!E18662","v":"Select"},{"$f":"Import!E18862","v":"Select"},{"$f":"Import!E19062","v":0},{"$f":"Import!E19262","v":0},{"$f":"Import!E19462","v":0}]
[186,{"$f":"Import!E18463","v":"Select"},{"$f":"Import!E18663","v":"Select"},{"$f":"Import!E18863","v":"Select"},{"$f":"Import!E19063","v":0},{"$f":"Import!E19263","v":0},{"$f":"Import!E19463","v":0}]
[187,{"$f":"Import!E18464","v":"Select"},{"$f":"Import!E18664","v":"Select"},{"$f":"Import!E18864","v":"Select"},{"$f":"Import!E19064","v":0},{"$f":"Import!E19264","v":0},{"$f":"Import!E19464","v":0}]
[188,{"$f":"Import!E18465","v":"Select"},{"$f":"Import!E18665","v":"Select"},{"$f":"Import!E18865","v":"Select"},{"$f":"Import!E19065","v":0},{"$f":"Import!E19265","v":0},{"$f":"Import!E19465","v":0}]
[189,{"$f":"Import!E18466","v":"Select"},{"$f":"Import!E18666","v":"Select"},{"$f":"Import!E18866","v":"Select"},{"$f":"Import!E19066","v":0},{"$f":"Import!E19266","v":0},{"$f":"Import!E19466","v":0}]
[190,{"$f":"Import!E18467","v":"Select"},{"$f":"Import!E18667","v":"Select"},{"$f":"Import!E18867","v":"Select"},{"$f":"Import!E19067","v":0},{"$f":"Import!E19267","v":0},{"$f":"Import!E19467","v":0}]
[191,{"$f":"Import!E18468","v":"Select"},{"$f":"Import!E18668","v":"Select"},{"$f":"Import!E18868","v":"Select"},{"$f":"Import!E19068","v":0},{"$f":"Import!E19268","v":0},{"$f":"Import!E19468","v":0}]
[192,{"$f":"Import!E18469","v":"Select"},{"$f":"Import!E18669","v":"Select"},{"$f":"Import!E18869","v":"Select"},{"$f":"Import!E19069","v":0},{"$f":"Import!E19269","v":0},{"$f":"Import!E19469","v":0}]
[193,{"$f":"Import!E18470","v":"Select"},{"$f":"Import!E18670","v":"Select"},{"$f":"Import!E18870","v":"Select"},{"$f":"Import!E19070","v":0},{"$f":"Import!E19270","v":0},{"$f":"Import!E19470","v":0}]
[194,{"$f":"Import!E18471","v":"Select"},{"$f":"Import!E18671","v":"Select"},{"$f":"Import!E18871","v":"Select"},{"$f":"Import!E19071","v":0},{"$f":"Import!E19271","v":0},{"$f":"Import!E19471","v":0}]
[{"$f":"A1989+1","v":195},{"$f":"Import!E18472","v":"Select"},{"$f":"Import!E18672","v":"Select"},{"$f":"Import!E18872","v":"Select"},{"$f":"Import!E19072","v":0},{"$f":"Import!E19272","v":0},{"$f":"Import!E19472","v":0}]
[196,{"$f":"Import!E18473","v":"Select"},{"$f":"Import!E18673","v":"Select"},{"$f":"Import!E18873","v":"Select"},{"$f":"Import!E19073","v":0},{"$f":"Import!E19273","v":0},{"$f":"Import!E19473","v":0}]
[197,{"$f":"Import!E18474","v":"Select"},{"$f":"Import!E18674","v":"Select"},{"$f":"Import!E18874","v":"Select"},{"$f":"Import!E19074","v":0},{"$f":"Import!E19274","v":0},{"$f":"Import!E19474","v":0}]
[198,{"$f":"Import!E18475","v":"Select"},{"$f":"Import!E18675","v":"Select"},{"$f":"Import!E18875","v":"Select"},{"$f":"Import!E19075","v":0},{"$f":"Import!E19275","v":0},{"$f":"Import!E19475","v":0}]
[199,{"$f":"Import!E18476","v":"Select"},{"$f":"Import!E18676","v":"Select"},{"$f":"Import!E18876","v":"Select"},{"$f":"Import!E19076","v":0},{"$f":"Import!E19276","v":0},{"$f":"Import!E19476","v":0}]
[200,{"$f":"Import!E18477","v":"Select"},{"$f":"Import!E18677","v":"Select"},{"$f":"Import!E18877","v":"Select"},{"$f":"Import!E19077","v":0},{"$f":"Import!E19277","v":0},{"$f":"Import!E19477","v":0}]
[]
[null,"Total Other Assets",null,null,null,{"$f":"SUM(F1796:F1995)","v":0}]
[]
[]
[null,"TOTAL ASSETS (Schedules VI and VIA)",null,null,null,{"$f":"F212+F620+F986+G1094+F1230+E1338+G1446+G1554+I1761+F1997+'Schedule VIA'!F2000","v":0}]
[]
[null,{"$f":"IF('Insurer Information'!$C$2=\"IFRS\",\"TOTAL ASSETS (Form 1ASFS Line 15)\",\"TOTAL ASSETS (Form 1SFS Line 15)\")","v":"TOTAL ASSETS (Form 1SFS Line 15)"},null,null,null,{"$f":"IF('Insurer Information'!$C$2=\"IFRS\",\nIF('Insurer Information'!$F$2=\"UNCONSOLIDATED BSCR MODEL\",'Form 1ASFS'!M88,('Form 1ASFS'!E88+'Form 1ASFS'!I88)),\nIF('Insurer Information'!$F$2=\"UNCONSOLIDATED BSCR MODEL\",'Form 1SFS'!K100,('Form 1SFS'!F100+'Form 1SFS'!H100)))","v":0}]
[]
[null,{"$f":"IF('Insurer Information'!$C$2=\"IFRS\",\"Check Form 1ASFS\",\"Check Form 1SFS\")","v":"Check Form 1SFS"},null,null,null,{"$f":"IF(F2006=0,\"TRUE\",\"FALSE\")","v":"TRUE"}]
[]
[null,"Difference",null,null,null,{"$f":"ROUND(F2002-F2000,0)","v":0}]
[]
[null,"(L) INFORMATION ON SECURITIES LENDING AND REPURCHASE TRANSACTIONS"]
[]
[null,null,{"$f":"YEAR($C$3)","v":2023}]
[null,null,"Notional Value","Fair Value",null,"Comments"]
[null,"Securities Lending transactions",{"$f":"Import!E19478","v":0},{"$f":"Import!E19480","v":0},null,{"$f":"Import!E19482","v":0}]
[null,"Repo / Reverse Repo transactions",{"$f":"Import!E19479","v":0},{"$f":"Import!E19481","v":0},null,{"$f":"Import!E19483","v":0}]
[]
[null,"Total",{"$f":"SUM(C2012:C2013)","v":0},{"$f":"SUM(D2012:D2013)","v":0}]
[]
[null,"(M) INFORMATION ON FAIR VALUATION HIERARCHY"]
[]
[null,null,{"$f":"YEAR($C$3)","v":2023},"Fair Value"]
[null,null,"Unaffiliated","Affiliated","Total","Comments"]
[null,"Level 1 Assets (according to Fair Value hierarchy)",{"$f":"Import!E19484","v":0},{"$f":"Import!E19487","v":0},{"$f":"SUM(C2021:D2021)","v":0},{"$f":"Import!E19490","v":0}]
[null,"Level 2 Assets (according to Fair Value hierarchy)",{"$f":"Import!E19485","v":0},{"$f":"Import!E19488","v":0},{"$f":"SUM(C2022:D2022)","v":0},{"$f":"Import!E19491","v":0}]
[null,"Level 3 Assets (according to Fair Value hierarchy)",{"$f":"Import!E19486","v":0},{"$f":"Import!E19489","v":0},{"$f":"SUM(C2023:D2023)","v":0},{"$f":"Import!E19492","v":0}]
[]
[null,"Total",{"$f":"SUM(C2021:C2023)","v":0},{"$f":"SUM(D2021:D2023)","v":0},{"$f":"SUM(E2021:E2023)","v":0}]
[]
[null,"Check Securities Allocated by Levels 1-3",null,null,{"$f":"F212+F620+F986+G1094+F1230+E1338+G1446+G1554","v":0}]
[]
[null,"Difference",null,null,{"$f":"ROUND(E2025-E2027,0)","v":0},{"$f":"IF(E2029=0,\"TRUE\",\"FALSE\")","v":"TRUE"}]
[]
[null,"EFFECTIVE DURATION",null,null,{"$f":"Import!E19493","v":0}]
[]
[null,"EFFECTIVE CONVEXITY",null,null,{"$f":"Import!E19494","v":0}]
[]
[null,"Fair Values",{"$f":"YEAR(C3)","v":2023}]
[null,null,null,null,null,null,null,null,"If Other Rating Agency is used, specify the name of such agency (if applicable)",{"$f":"Import!E19495","v":0},{"$f":"Import!E19496","v":0},{"$f":"Import!E19497","v":0},{"$f":"Import!E19498","v":0}]
[null,"Asset/Rating Category","BSCR Rating","Moody's Investor's Service","Standard and Poor's","Dominion Bond Rating Service","Kroll Bond Rating Agency","Egan Jones Rating Company","Japan Credit Rating Agency","BMA-approved Internal Ratings","Other BMA-approved Rating Agency 1","Other BMA-approved Rating Agency 2","Other BMA-approved Rating Agency 3","Total"]
[null,"Financial institutions, brokers and dealers",1,{"$f":"Import!E19499","v":0},{"$f":"Import!E19540","v":0},{"$f":"Import!E19581","v":0},{"$f":"Import!E19622","v":0},{"$f":"Import!E19663","v":0},{"$f":"Import!E19704","v":0},{"$f":"Import!E19745","v":0},{"$f":"Import!E19786","v":0},{"$f":"Import!E19827","v":0},{"$f":"Import!E19868","v":0},{"$f":"SUM(D2038:M2038)","v":0}]
[null,"Financial institutions, brokers and dealers",2,{"$f":"Import!E19500","v":0},{"$f":"Import!E19541","v":0},{"$f":"Import!E19582","v":0},{"$f":"Import!E19623","v":0},{"$f":"Import!E19664","v":0},{"$f":"Import!E19705","v":0},{"$f":"Import!E19746","v":0},{"$f":"Import!E19787","v":0},{"$f":"Import!E19828","v":0},{"$f":"Import!E19869","v":0},{"$f":"SUM(D2039:M2039)","v":0}]
[null,"Financial institutions, brokers and dealers",3,{"$f":"Import!E19501","v":0},{"$f":"Import!E19542","v":0},{"$f":"Import!E19583","v":0},{"$f":"Import!E19624","v":0},{"$f":"Import!E19665","v":0},{"$f":"Import!E19706","v":0},{"$f":"Import!E19747","v":0},{"$f":"Import!E19788","v":0},{"$f":"Import!E19829","v":0},{"$f":"Import!E19870","v":0},0]
[null,"Financial institutions, brokers and dealers",4,{"$f":"Import!E19502","v":0},{"$f":"Import!E19543","v":0},{"$f":"Import!E19584","v":0},{"$f":"Import!E19625","v":0},{"$f":"Import!E19666","v":0},{"$f":"Import!E19707","v":0},{"$f":"Import!E19748","v":0},{"$f":"Import!E19789","v":0},{"$f":"Import!E19830","v":0},{"$f":"Import!E19871","v":0},0]
[null,"Financial institutions, brokers and dealers",5,{"$f":"Import!E19503","v":0},{"$f":"Import!E19544","v":0},{"$f":"Import!E19585","v":0},{"$f":"Import!E19626","v":0},{"$f":"Import!E19667","v":0},{"$f":"Import!E19708","v":0},{"$f":"Import!E19749","v":0},{"$f":"Import!E19790","v":0},{"$f":"Import!E19831","v":0},{"$f":"Import!E19872","v":0},0]
[null,"Financial institutions, brokers and dealers",6,{"$f":"Import!E19504","v":0},{"$f":"Import!E19545","v":0},{"$f":"Import!E19586","v":0},{"$f":"Import!E19627","v":0},{"$f":"Import!E19668","v":0},{"$f":"Import!E19709","v":0},{"$f":"Import!E19750","v":0},{"$f":"Import!E19791","v":0},{"$f":"Import!E19832","v":0},{"$f":"Import!E19873","v":0},0]
[null,"Financial institutions, brokers and dealers",7,{"$f":"Import!E19505","v":0},{"$f":"Import!E19546","v":0},{"$f":"Import!E19587","v":0},{"$f":"Import!E19628","v":0},{"$f":"Import!E19669","v":0},{"$f":"Import!E19710","v":0},{"$f":"Import!E19751","v":0},{"$f":"Import!E19792","v":0},{"$f":"Import!E19833","v":0},{"$f":"Import!E19874","v":0},0]
[null,"Financial institutions, brokers and dealers",8,{"$f":"Import!E19506","v":0},{"$f":"Import!E19547","v":0},{"$f":"Import!E19588","v":0},{"$f":"Import!E19629","v":0},{"$f":"Import!E19670","v":0},{"$f":"Import!E19711","v":0},{"$f":"Import!E19752","v":0},{"$f":"Import!E19793","v":0},{"$f":"Import!E19834","v":0},{"$f":"Import!E19875","v":0},0]
[null,"Insurance companies",1,{"$f":"Import!E19507","v":0},{"$f":"Import!E19548","v":0},{"$f":"Import!E19589","v":0},{"$f":"Import!E19630","v":0},{"$f":"Import!E19671","v":0},{"$f":"Import!E19712","v":0},{"$f":"Import!E19753","v":0},{"$f":"Import!E19794","v":0},{"$f":"Import!E19835","v":0},{"$f":"Import!E19876","v":0},0]
[null,"Insurance companies",2,{"$f":"Import!E19508","v":0},{"$f":"Import!E19549","v":0},{"$f":"Import!E19590","v":0},{"$f":"Import!E19631","v":0},{"$f":"Import!E19672","v":0},{"$f":"Import!E19713","v":0},{"$f":"Import!E19754","v":0},{"$f":"Import!E19795","v":0},{"$f":"Import!E19836","v":0},{"$f":"Import!E19877","v":0},0]
[null,"Insurance companies",3,{"$f":"Import!E19509","v":0},{"$f":"Import!E19550","v":0},{"$f":"Import!E19591","v":0},{"$f":"Import!E19632","v":0},{"$f":"Import!E19673","v":0},{"$f":"Import!E19714","v":0},{"$f":"Import!E19755","v":0},{"$f":"Import!E19796","v":0},{"$f":"Import!E19837","v":0},{"$f":"Import!E19878","v":0},0]
[null,"Insurance companies",4,{"$f":"Import!E19510","v":0},{"$f":"Import!E19551","v":0},{"$f":"Import!E19592","v":0},{"$f":"Import!E19633","v":0},{"$f":"Import!E19674","v":0},{"$f":"Import!E19715","v":0},{"$f":"Import!E19756","v":0},{"$f":"Import!E19797","v":0},{"$f":"Import!E19838","v":0},{"$f":"Import!E19879","v":0},0]
[null,"Insurance companies",5,{"$f":"Import!E19511","v":0},{"$f":"Import!E19552","v":0},{"$f":"Import!E19593","v":0},{"$f":"Import!E19634","v":0},{"$f":"Import!E19675","v":0},{"$f":"Import!E19716","v":0},{"$f":"Import!E19757","v":0},{"$f":"Import!E19798","v":0},{"$f":"Import!E19839","v":0},{"$f":"Import!E19880","v":0},0]
[null,"Insurance companies",6,{"$f":"Import!E19512","v":0},{"$f":"Import!E19553","v":0},{"$f":"Import!E19594","v":0},{"$f":"Import!E19635","v":0},{"$f":"Import!E19676","v":0},{"$f":"Import!E19717","v":0},{"$f":"Import!E19758","v":0},{"$f":"Import!E19799","v":0},{"$f":"Import!E19840","v":0},{"$f":"Import!E19881","v":0},0]
[null,"Insurance companies",7,{"$f":"Import!E19513","v":0},{"$f":"Import!E19554","v":0},{"$f":"Import!E19595","v":0},{"$f":"Import!E19636","v":0},{"$f":"Import!E19677","v":0},{"$f":"Import!E19718","v":0},{"$f":"Import!E19759","v":0},{"$f":"Import!E19800","v":0},{"$f":"Import!E19841","v":0},{"$f":"Import!E19882","v":0},0]
[null,"Insurance companies",8,{"$f":"Import!E19514","v":0},{"$f":"Import!E19555","v":0},{"$f":"Import!E19596","v":0},{"$f":"Import!E19637","v":0},{"$f":"Import!E19678","v":0},{"$f":"Import!E19719","v":0},{"$f":"Import!E19760","v":0},{"$f":"Import!E19801","v":0},{"$f":"Import!E19842","v":0},{"$f":"Import!E19883","v":0},0]
[null,"Corporate issuers",1,{"$f":"Import!E19515","v":0},{"$f":"Import!E19556","v":0},{"$f":"Import!E19597","v":0},{"$f":"Import!E19638","v":0},{"$f":"Import!E19679","v":0},{"$f":"Import!E19720","v":0},{"$f":"Import!E19761","v":0},{"$f":"Import!E19802","v":0},{"$f":"Import!E19843","v":0},{"$f":"Import!E19884","v":0},0]
[null,"Corporate issuers",2,{"$f":"Import!E19516","v":0},{"$f":"Import!E19557","v":0},{"$f":"Import!E19598","v":0},{"$f":"Import!E19639","v":0},{"$f":"Import!E19680","v":0},{"$f":"Import!E19721","v":0},{"$f":"Import!E19762","v":0},{"$f":"Import!E19803","v":0},{"$f":"Import!E19844","v":0},{"$f":"Import!E19885","v":0},0]
[null,"Corporate issuers",3,{"$f":"Import!E19517","v":0},{"$f":"Import!E19558","v":0},{"$f":"Import!E19599","v":0},{"$f":"Import!E19640","v":0},{"$f":"Import!E19681","v":0},{"$f":"Import!E19722","v":0},{"$f":"Import!E19763","v":0},{"$f":"Import!E19804","v":0},{"$f":"Import!E19845","v":0},{"$f":"Import!E19886","v":0},0]
[null,"Corporate issuers",4,{"$f":"Import!E19518","v":0},{"$f":"Import!E19559","v":0},{"$f":"Import!E19600","v":0},{"$f":"Import!E19641","v":0},{"$f":"Import!E19682","v":0},{"$f":"Import!E19723","v":0},{"$f":"Import!E19764","v":0},{"$f":"Import!E19805","v":0},{"$f":"Import!E19846","v":0},{"$f":"Import!E19887","v":0},0]
[null,"Corporate issuers",5,{"$f":"Import!E19519","v":0},{"$f":"Import!E19560","v":0},{"$f":"Import!E19601","v":0},{"$f":"Import!E19642","v":0},{"$f":"Import!E19683","v":0},{"$f":"Import!E19724","v":0},{"$f":"Import!E19765","v":0},{"$f":"Import!E19806","v":0},{"$f":"Import!E19847","v":0},{"$f":"Import!E19888","v":0},0]
[null,"Corporate issuers",6,{"$f":"Import!E19520","v":0},{"$f":"Import!E19561","v":0},{"$f":"Import!E19602","v":0},{"$f":"Import!E19643","v":0},{"$f":"Import!E19684","v":0},{"$f":"Import!E19725","v":0},{"$f":"Import!E19766","v":0},{"$f":"Import!E19807","v":0},{"$f":"Import!E19848","v":0},{"$f":"Import!E19889","v":0},0]
[null,"Corporate issuers",7,{"$f":"Import!E19521","v":0},{"$f":"Import!E19562","v":0},{"$f":"Import!E19603","v":0},{"$f":"Import!E19644","v":0},{"$f":"Import!E19685","v":0},{"$f":"Import!E19726","v":0},{"$f":"Import!E19767","v":0},{"$f":"Import!E19808","v":0},{"$f":"Import!E19849","v":0},{"$f":"Import!E19890","v":0},0]
[null,"Corporate issuers",8,{"$f":"Import!E19522","v":0},{"$f":"Import!E19563","v":0},{"$f":"Import!E19604","v":0},{"$f":"Import!E19645","v":0},{"$f":"Import!E19686","v":0},{"$f":"Import!E19727","v":0},{"$f":"Import!E19768","v":0},{"$f":"Import!E19809","v":0},{"$f":"Import!E19850","v":0},{"$f":"Import!E19891","v":0},0]
[null,"Issuers of asset-backed securities",1,{"$f":"Import!E19523","v":0},{"$f":"Import!E19564","v":0},{"$f":"Import!E19605","v":0},{"$f":"Import!E19646","v":0},{"$f":"Import!E19687","v":0},{"$f":"Import!E19728","v":0},{"$f":"Import!E19769","v":0},{"$f":"Import!E19810","v":0},{"$f":"Import!E19851","v":0},{"$f":"Import!E19892","v":0},0]
[null,"Issuers of asset-backed securities",2,{"$f":"Import!E19524","v":0},{"$f":"Import!E19565","v":0},{"$f":"Import!E19606","v":0},{"$f":"Import!E19647","v":0},{"$f":"Import!E19688","v":0},{"$f":"Import!E19729","v":0},{"$f":"Import!E19770","v":0},{"$f":"Import!E19811","v":0},{"$f":"Import!E19852","v":0},{"$f":"Import!E19893","v":0},0]
[null,"Issuers of asset-backed securities",3,{"$f":"Import!E19525","v":0},{"$f":"Import!E19566","v":0},{"$f":"Import!E19607","v":0},{"$f":"Import!E19648","v":0},{"$f":"Import!E19689","v":0},{"$f":"Import!E19730","v":0},{"$f":"Import!E19771","v":0},{"$f":"Import!E19812","v":0},{"$f":"Import!E19853","v":0},{"$f":"Import!E19894","v":0},0]
[null,"Issuers of asset-backed securities",4,{"$f":"Import!E19526","v":0},{"$f":"Import!E19567","v":0},{"$f":"Import!E19608","v":0},{"$f":"Import!E19649","v":0},{"$f":"Import!E19690","v":0},{"$f":"Import!E19731","v":0},{"$f":"Import!E19772","v":0},{"$f":"Import!E19813","v":0},{"$f":"Import!E19854","v":0},{"$f":"Import!E19895","v":0},0]
[null,"Issuers of asset-backed securities",5,{"$f":"Import!E19527","v":0},{"$f":"Import!E19568","v":0},{"$f":"Import!E19609","v":0},{"$f":"Import!E19650","v":0},{"$f":"Import!E19691","v":0},{"$f":"Import!E19732","v":0},{"$f":"Import!E19773","v":0},{"$f":"Import!E19814","v":0},{"$f":"Import!E19855","v":0},{"$f":"Import!E19896","v":0},0]
[null,"Issuers of asset-backed securities",6,{"$f":"Import!E19528","v":0},{"$f":"Import!E19569","v":0},{"$f":"Import!E19610","v":0},{"$f":"Import!E19651","v":0},{"$f":"Import!E19692","v":0},{"$f":"Import!E19733","v":0},{"$f":"Import!E19774","v":0},{"$f":"Import!E19815","v":0},{"$f":"Import!E19856","v":0},{"$f":"Import!E19897","v":0},0]
[null,"Issuers of asset-backed securities",7,{"$f":"Import!E19529","v":0},{"$f":"Import!E19570","v":0},{"$f":"Import!E19611","v":0},{"$f":"Import!E19652","v":0},{"$f":"Import!E19693","v":0},{"$f":"Import!E19734","v":0},{"$f":"Import!E19775","v":0},{"$f":"Import!E19816","v":0},{"$f":"Import!E19857","v":0},{"$f":"Import!E19898","v":0},0]
[null,"Issuers of asset-backed securities",8,{"$f":"Import!E19530","v":0},{"$f":"Import!E19571","v":0},{"$f":"Import!E19612","v":0},{"$f":"Import!E19653","v":0},{"$f":"Import!E19694","v":0},{"$f":"Import!E19735","v":0},{"$f":"Import!E19776","v":0},{"$f":"Import!E19817","v":0},{"$f":"Import!E19858","v":0},{"$f":"Import!E19899","v":0},0]
[null,"Government securities, municipal securities, foreign government securities",0,{"$f":"Import!E19531","v":0},{"$f":"Import!E19572","v":0},{"$f":"Import!E19613","v":0},{"$f":"Import!E19654","v":0},{"$f":"Import!E19695","v":0},{"$f":"Import!E19736","v":0},{"$f":"Import!E19777","v":0},{"$f":"Import!E19818","v":0},{"$f":"Import!E19859","v":0},{"$f":"Import!E19900","v":0},0]
[null,"Government securities, municipal securities, foreign government securities",1,{"$f":"Import!E19532","v":0},{"$f":"Import!E19573","v":0},{"$f":"Import!E19614","v":0},{"$f":"Import!E19655","v":0},{"$f":"Import!E19696","v":0},{"$f":"Import!E19737","v":0},{"$f":"Import!E19778","v":0},{"$f":"Import!E19819","v":0},{"$f":"Import!E19860","v":0},{"$f":"Import!E19901","v":0},0]
[null,"Government securities, municipal securities, foreign government securities",2,{"$f":"Import!E19533","v":0},{"$f":"Import!E19574","v":0},{"$f":"Import!E19615","v":0},{"$f":"Import!E19656","v":0},{"$f":"Import!E19697","v":0},{"$f":"Import!E19738","v":0},{"$f":"Import!E19779","v":0},{"$f":"Import!E19820","v":0},{"$f":"Import!E19861","v":0},{"$f":"Import!E19902","v":0},0]
[null,"Government securities, municipal securities, foreign government securities",3,{"$f":"Import!E19534","v":0},{"$f":"Import!E19575","v":0},{"$f":"Import!E19616","v":0},{"$f":"Import!E19657","v":0},{"$f":"Import!E19698","v":0},{"$f":"Import!E19739","v":0},{"$f":"Import!E19780","v":0},{"$f":"Import!E19821","v":0},{"$f":"Import!E19862","v":0},{"$f":"Import!E19903","v":0},0]
[null,"Government securities, municipal securities, foreign government securities",4,{"$f":"Import!E19535","v":0},{"$f":"Import!E19576","v":0},{"$f":"Import!E19617","v":0},{"$f":"Import!E19658","v":0},{"$f":"Import!E19699","v":0},{"$f":"Import!E19740","v":0},{"$f":"Import!E19781","v":0},{"$f":"Import!E19822","v":0},{"$f":"Import!E19863","v":0},{"$f":"Import!E19904","v":0},0]
[null,"Government securities, municipal securities, foreign government securities",5,{"$f":"Import!E19536","v":0},{"$f":"Import!E19577","v":0},{"$f":"Import!E19618","v":0},{"$f":"Import!E19659","v":0},{"$f":"Import!E19700","v":0},{"$f":"Import!E19741","v":0},{"$f":"Import!E19782","v":0},{"$f":"Import!E19823","v":0},{"$f":"Import!E19864","v":0},{"$f":"Import!E19905","v":0},0]
[null,"Government securities, municipal securities, foreign government securities",6,{"$f":"Import!E19537","v":0},{"$f":"Import!E19578","v":0},{"$f":"Import!E19619","v":0},{"$f":"Import!E19660","v":0},{"$f":"Import!E19701","v":0},{"$f":"Import!E19742","v":0},{"$f":"Import!E19783","v":0},{"$f":"Import!E19824","v":0},{"$f":"Import!E19865","v":0},{"$f":"Import!E19906","v":0},0]
[null,"Government securities, municipal securities, foreign government securities",7,{"$f":"Import!E19538","v":0},{"$f":"Import!E19579","v":0},{"$f":"Import!E19620","v":0},{"$f":"Import!E19661","v":0},{"$f":"Import!E19702","v":0},{"$f":"Import!E19743","v":0},{"$f":"Import!E19784","v":0},{"$f":"Import!E19825","v":0},{"$f":"Import!E19866","v":0},{"$f":"Import!E19907","v":0},0]
[null,"Government securities, municipal securities, foreign government securities",8,{"$f":"Import!E19539","v":0},{"$f":"Import!E19580","v":0},{"$f":"Import!E19621","v":0},{"$f":"Import!E19662","v":0},{"$f":"Import!E19703","v":0},{"$f":"Import!E19744","v":0},{"$f":"Import!E19785","v":0},{"$f":"Import!E19826","v":0},{"$f":"Import!E19867","v":0},{"$f":"Import!E19908","v":0},0]
[null,null,null,null,null,null,null,null,null,null,null,null,"Total",{"$f":"SUM(N2038:N2078)","v":0}]
[]
[null,"Total rated assets","BSCR Rating","Moody's Investor's Service","Standard and Poor's","Dominion Bond Rating Service","Kroll Bond Rating Agency","Egan Jones Rating Company","Japan Credit Rating Agency","BMA-approved Internal Ratings","Other BMA-approved Rating Agency 1","Other BMA-approved Rating Agency 2","Other BMA-approved Rating Agency 3","Total"]
[null,"Total rated assets",0,{"$f":"D2070","v":0},{"$f":"E2070","v":0},0,0,0,0,0,0,0,0,{"$f":"SUM(D2082:M2082)","v":0}]
[null,"Total rated assets",1,{"$f":"D2038+D2046+D2054+D2062+D2071","v":0},{"$f":"E2038+E2046+E2054+E2062+E2071","v":0},0,0,0,0,0,0,0,0,{"$f":"SUM(D2083:M2083)","v":0}]
[null,"Total rated assets",2,{"$f":"D2039+D2047+D2055+D2063+D2072","v":0},0,0,0,0,0,0,0,0,0,0]
[null,"Total rated assets",3,0,0,0,0,0,0,0,0,0,0,0]
[null,"Total rated assets",4,0,0,0,0,0,0,0,0,0,0,0]
[null,"Total rated assets",5,0,0,0,0,0,0,0,0,0,0,0]
[null,"Total rated assets",6,0,0,0,0,0,0,0,0,0,0,0]
[null,"Total rated assets",7,0,0,0,0,0,0,0,0,0,0,0]
[null,"Total rated assets",8,0,0,0,0,0,0,0,0,0,0,0]
[null,"Total rated assets","Total",{"$f":"SUM(D2082:D2090)","v":0},{"$f":"SUM(E2082:E2090)","v":0},0,0,0,0,0,0,0,0,0]
[]
[null,"Asset/Rating Category","BSCR Rating","Unrated"]
[null,"Financial institutions, brokers and dealers",8,{"$f":"Import!E19909","v":0}]
[null,"Insurance companies",8,{"$f":"Import!E19910","v":0}]
[null,"Corporate issuers",8,{"$f":"Import!E19911","v":0}]
[null,"Issuers of asset-backed securities",8,{"$f":"Import!E19912","v":0}]
[null,"Government securities, municipal securities, foreign government securities",8,{"$f":"Import!E19913","v":0}]
[null,"Total unrated assets","Total",{"$f":"SUM(D2094:D2098)","v":0}]
[]
[null,"Asset/Rating Category","BSCR Rating","Financial institutions, brokers and dealers","Insurance companies","Corporate issuers","Issuers of asset-backed securities","Government securities, municipal securities, foreign government securities","Total"]
[null,"Total",0,null,null,null,null,{"$f":"N2070","v":0},{"$f":"SUM(H2102)","v":0}]
[null,"Total",1,{"$f":"N2038","v":0},{"$f":"N2046","v":0},{"$f":"N2054","v":0},{"$f":"N2062","v":0},0,{"$f":"SUM(D2103:H2103)","v":0}]
[null,"Total",2,0,0,0,0,0,{"$f":"SUM(D2104:H2104)","v":0}]
[null,"Total",3,0,0,0,0,0,0]
[null,"Total",4,0,0,0,0,0,0]
[null,"Total",5,0,0,0,0,0,0]
[null,"Total",6,0,0,0,0,0,0]
[null,"Total",7,0,0,0,0,0,0]
[null,"Total",8,{"$f":"N2045+D2094","v":0},{"$f":"N2053+D2095","v":0},{"$f":"N2061+D2096","v":0},{"$f":"N2069+D2097","v":0},{"$f":"N2078+D2098","v":0},0]
[null,"Total fixed income assets","Total",{"$f":"SUM(D2103:D2110)","v":0},{"$f":"SUM(E2103:E2110)","v":0},{"$f":"SUM(F2103:F2110)","v":0},{"$f":"SUM(G2103:G2110)","v":0},{"$f":"SUM(H2102:H2110)","v":0},{"$f":"SUM(D2111:H2111)","v":0}]
[null,"Unrated","- of which unrated",{"$f":"D2094","v":0},{"$f":"D2095","v":0},{"$f":"D2096","v":0},{"$f":"D2097","v":0},{"$f":"D2098","v":0},{"$f":"SUM(D2112:H2112)","v":0}]
[]
[]
["Cash","Sovereign Bonds","RMBS - Agency","Listed Preferred Equity - Direct","Hedge Funds","Investment Income Due and Accrued","Energy","Holding Entity","Significant Influence","United States Dollars","Positive market value",null,null,null,null,"Residential Mortgages",null,"United States of America"]
["Certificates of Deposit","Municipals","RMBS - Non-agency","Listed Preferred Equity - ETF","Equity investments in Infrastructure","Accounts and Premiums Receivable","Materials","Operating Entity","Control","Euro","Negative market value",null,null,null,null,"Other Residential Loans",null,"Bermuda"]
["Short-Term Commercial Paper","Supranationals (multilateral development banks and international organizations)","CMBS","Listed Preferred Equity - Mutual Fund","Commodities - Direct","Reinsurance Balance Receivable","Industrial","Branch","Select","Afghanistan Afghanis","Select",null,null,null,null,"Commercial and Farm Mortgages",null,"United Kingdom of Great Britain and Northern Ireland"]
["Money Market Funds","Corporate bonds","CLOs","Private Preferred Equity - Direct","Commodities - ETF","Funds Held by Ceding Reinsurers","Consumer Discretionary","Select",null,"Albania Leke",null,null,null,null,null,"Other Commercial Real Estate Loans",null,"Canada"]
["Other","Private Placements","CDOs",null,"Commodities - Mutual Funds","SAC - long-term business - variable annuities","Consumer Staples",null,null,"Armenia Drams",null,null,null,null,null,"Middle Market Loans"]
["Select","Other - Secured Bonds","Auto Loan ABS","Private Preferred Equity - Fund","Catastrophe Bonds","SAC - long-term business - others","Healthcare",null,null,"Netherlands Antilles Guilders",null,null,null,null,null,"Leveraged Loans",null,"Afghanistan"]
[null,"Other - Unsecured Bonds","Student Loan ABS","Other - Listed Preferred Equity","Other Insurance-Linked Securities","SAC - general business","Financial",null,null,"Angola Kwanza",null,null,null,null,null,"Other Direct Private Lending",null,"Aland Islands"]
[null,"Exchange-Traded Fund - Sovereigns","Credit Card Receivable ABS","Other - Private Preferred Equity","Advances to Affiliates","Deposit assets","Select",null,null,"Argentina Pesos",null,null,null,null,null,"Infrastructure Loans",null,"Albania"]
[null,"Mutual Fund - Sovereigns","Other ABS","Select","Investments in Affiliates","Other Sundry Assets",null,null,null,"Australia Dollars",null,null,null,null,null,"Collateral Loans",null,"Algeria"]
[null,"Exchange-Traded Fund - Corporates","Select",null,"Other","Letter of Credit, Guarantees and Other Instruments",null,null,null,"Aruba Guilders",null,null,null,null,null,"Equity Release / Reverse Mortgages",null,"American Samoa"]
[null,"Mutual Fund - Corporates",null,null,"Select","Other",null,null,null,"Azerbaijan New Manats",null,null,null,null,null,"Policy Loans",null,"Andorra"]
[null,"Other Funds",null,null,null,"Select",null,null,null,"Bosnia and Herzegovina Convertible Marka",null,null,null,null,null,"Other Direct Loans",null,"Angola"]
[null,"Select",null,null,null,null,null,null,null,"Barbados Dollars",null,null,null,null,null,"Mortgage Loan Fund - Residential",null,"Anguilla"]
[null,null,null,null,null,null,null,null,null,"Bangladesh Taka",null,null,null,null,null,"Mortgage Loan Fund - Commercial",null,"Antigua and Barbuda"]
[null,null,null,null,null,null,null,null,null,"Bulgaria Leva",null,null,null,null,null,"Private Credit Fund",null,"Argentina"]
[null,null,null,null,null,null,null,null,null,"Bahrain Dinars",null,null,null,null,null,"Other Loan Fund",null,"Armenia"]
["Listed options","Equity","Hedging","Long / Receive Fixed / Sell Protection","Private Equities","Investment Income Due and Accrued","Direct Real Estate - Residential",null,null,"Burundi Francs",null,null,null,null,null,"Select",null,"Aruba"]
["Futures","Debt","Speculative","Short / Receive Floating / Buy Protection","Investment Funds","Accounts and Premiums Receivable","Direct Real Estate - Commercial",null,null,"Bermuda Dollars",null,null,null,null,null,null,null,"Australia"]
["Forwards","Interest Rate","Select","Select","Hedge Funds","Reinsurance Balance Receivable","Direct Real-Estate - Industrial",null,null,"Brunei Dollars",null,null,null,null,null,"Insured/Guaranteed Mortgages",null,"Austria"]
["Swaps","Inflation",null,null,"Private Credit Funds","SAC - long-term business - variable annuities","Direct Real Estate - Land",null,null,"Bolivia Bolivianos",null,null,null,null,null,"Other Commercial and Farm Mortgages",null,"Azerbaijan"]
["Swaptions","Credit",null,null,"Catastrophe Bonds","SAC - long-term business - others","Real Estate Funds - Residential",null,null,"Brazil Reais",null,null,null,null,null,"Other Residential Mortgages",null,"Bahamas"]
["OTC options","Currencies","Yes","Exchange-traded","Other Insurance-Linked Securities","SAC - general business","Real Estate Funds - Commercial",null,null,"Bahamas Dollars",null,null,null,null,null,"Mortgages Not In Good Standing",null,"Bahrain"]
["Other","Commodities","No","OTC – Centrally-cleared","Infrastructure Debt","Deposit assets","Real-Estate Funds - Industrial",null,null,"Bhutan Ngultrum",null,null,null,null,null,"Collateral Loans",null,"Bangladesh"]
["Select","Other","Select","OTC – Not centrally-cleared","Equity Investments in Infrastructure","Other Sundry Assets","Real Estate Funds - Land",null,null,"Botswana Pulas",null,null,null,null,null,"Middle Market Loans",null,"Barbados"]
[null,"Select",null,"Select","Other","Letter of Credit, Guarantees and Other Instruments","Direct Real Estate - Other",null,null,"Belarus Rubles",null,null,null,null,null,"Other Direct Private Lending",null,"Belarus"]
[null,null,null,null,"Select","Other","Real Estate Funds - Other",null,null,"Belize Dollars",null,null,null,null,null,"Policy Loans",null,"Belgium"]
[null,null,null,null,null,"Select","Select",null,null,"Canada Dollars",null,null,null,null,null,"Other",null,"Belize"]
[null,null,null,null,null,null,null,null,null,"Congo/Kinshasa Francs",null,null,null,null,null,"Select",null,"Benin"]
[null,null,null,null,null,null,null,null,null,"Switzerland Francs",null,null,null,null,null,null,null,"Bhutan"]
["BSCR Rating",null,"Listed Equity - Direct",null,null,null,null,null,null,"Chile Pesos",null,null,null,null,null,null,null,"Bolivia (Plurinational State of)"]
["Select",null,"Listed Equity - ETF",null,null,null,"Investment",null,null,"China Yuan Renminbi",null,null,null,null,null,null,null,"Bonaire, Sint Eustatius and Saba"]
["BSCR Rating 0",null,"Listed Equity - Mutual Fund",null,null,null,"Owner-occupied",null,null,"Colombia Pesos",null,null,null,null,null,null,null,"Bosnia and Herzegovina"]
["BSCR Rating 1",null,"Private Equity - Direct",null,null,null,"Select",null,null,"Costa Rica Colones",null,null,null,null,null,null,null,"Botswana"]
["BSCR Rating 2",null,"Private Equity - Fund",null,null,null,null,null,null,"Cuba Convertible Pesos",null,null,null,null,null,null,null,"Brazil"]
["BSCR Rating 3",null,"Other - Listed Equity",null,null,null,null,null,null,"Cuba Pesos",null,null,null,null,null,null,null,"British Virgin Islands"]
["BSCR Rating 4",null,"Other - Private Equity",null,null,null,null,null,null,"Cape Verde Escudos",null,null,null,null,null,null,null,"Brunei Darussalam"]
["BSCR Rating 5",null,"Select",null,null,null,null,null,null,"Czech Republic Koruny",null,null,null,null,null,null,null,"Bulgaria"]
["BSCR Rating 6",null,null,null,null,null,null,null,null,"Djibouti Francs",null,null,null,null,null,null,null,"Burkina Faso"]
["BSCR Rating 7",null,null,null,null,null,null,null,null,"Denmark Kroner",null,null,null,null,null,null,null,"Burundi"]
["BSCR Rating 8",null,null,null,null,null,null,null,null,"Dominican Republic Pesos",null,null,null,null,null,null,null,"Cabo Verde (Cape Verde)"]
[null,null,null,null,null,null,null,null,null,"Algeria Dinars",null,null,null,null,null,null,null,"Cambodia"]
[null,null,null,null,null,null,null,null,null,"Estonia Krooni",null,null,null,null,null,null,null,"Cameroon"]
[null,null,null,null,null,null,null,null,null,"Egypt Pounds",null,null,null,null,null,null,null,"Cayman Islands"]
[null,null,null,null,null,null,null,null,null,"Eritrea Nakfa",null,null,null,null,null,null,null,"Central African Republic"]
[null,null,null,null,null,null,null,null,null,"Ethiopia Birr",null,null,null,null,null,null,null,"Chad"]
[null,null,null,null,null,null,null,null,null,"Fiji Dollars",null,null,null,null,null,null,null,"Chile"]
[null,null,null,null,null,null,null,null,null,"Falkland Islands Pounds",null,null,null,null,null,null,null,"China"]
[null,null,null,null,null,null,null,null,null,"United Kingdom Pounds",null,null,null,null,null,null,null,"China, Hong Kong SAR"]
[null,null,null,null,null,null,null,null,null,"Georgia Lari",null,null,null,null,null,null,null,"China, Macao SAR "]
[null,null,null,null,null,null,null,null,null,"Guernsey Pounds",null,null,null,null,null,null,null,"Colombia"]
[null,null,null,null,null,null,null,null,null,"Ghana Cedis",null,null,null,null,null,null,null,"Comoros"]
[null,null,null,null,null,null,null,null,null,"Gibraltar Pounds",null,null,null,null,null,null,null,"Congo"]
[null,null,null,null,null,null,null,null,null,"Gambia Dalasi",null,null,null,null,null,null,null,"Cook Islands"]
[null,null,null,null,null,null,null,null,null,"Guinea Francs",null,null,null,null,null,null,null,"Costa Rica"]
[null,null,null,null,null,null,null,null,null,"Guatemala Quetzales",null,null,null,null,null,null,null,"Cote d' Ivoire"]
[null,null,null,null,null,null,null,null,null,"Guyana Dollars",null,null,null,null,null,null,null,"Croatia"]
[null,null,null,null,null,null,null,null,null,"Hong Kong Dollars",null,null,null,null,null,null,null,"Cuba"]
[null,null,null,null,null,null,null,null,null,"Honduras Lempiras",null,null,null,null,null,null,null,"Curacao"]
[null,null,null,null,null,null,null,null,null,"Croatia Kuna",null,null,null,null,null,null,null,"Cyprus"]
[null,null,null,null,null,null,null,null,null,"Haiti Gourdes",null,null,null,null,null,null,null,"Czech Republic"]
[null,null,null,null,null,null,null,null,null,"Hungary Forint",null,null,null,null,null,null,null,"Democratic People's Republic of Korea (North Korea)"]
[null,null,null,null,null,null,null,null,null,"Indonesia Rupiahs",null,null,null,null,null,null,null,"Democratic Republic of the Congo"]
[null,null,null,null,null,null,null,null,null,"Israel New Shekels",null,null,null,null,null,null,null,"Denmark"]
[null,null,null,null,null,null,null,null,null,"Isle of Man Pounds",null,null,null,null,null,null,null,"Djibouti"]
[null,null,null,null,null,null,null,null,null,"India Rupees",null,null,null,null,null,null,null,"Dominica"]
[null,null,null,null,null,null,null,null,null,"Iraq Dinars",null,null,null,null,null,null,null,"Dominican Republic"]
[null,null,null,null,null,null,null,null,null,"Iran Rials",null,null,null,null,null,null,null,"Ecuador"]
[null,null,null,null,null,null,null,null,null,"Iceland Kronur",null,null,null,null,null,null,null,"Egypt"]
[null,null,null,null,null,null,null,null,null,"Jersey Pounds",null,null,null,null,null,null,null,"El Salvador"]
[null,null,null,null,null,null,null,null,null,"Jamaica Dollars",null,null,null,null,null,null,null,"Equatorial Guinea"]
[null,null,null,null,null,null,null,null,null,"Jordan Dinars",null,null,null,null,null,null,null,"Eritrea"]
[null,null,null,null,null,null,null,null,null,"Japan Yen",null,null,null,null,null,null,null,"Estonia"]
[null,null,null,null,null,null,null,null,null,"Kenya Shillings",null,null,null,null,null,null,null,"Eswatini (Kingdom of Swaziland)"]
[null,null,null,null,null,null,null,null,null,"Kyrgyzstan Soms",null,null,null,null,null,null,null,"Ethiopia"]
[null,null,null,null,null,null,null,null,null,"Cambodia Riels",null,null,null,null,null,null,null,"Falkland Islands"]
[null,null,null,null,null,null,null,null,null,"Comoros Francs",null,null,null,null,null,null,null,"Faroe Islands"]
[null,null,null,null,null,null,null,null,null,"North Korea Won",null,null,null,null,null,null,null,"Fiji"]
[null,null,null,null,null,null,null,null,null,"South Korea Won",null,null,null,null,null,null,null,"Finland"]
[null,null,null,null,null,null,null,null,null,"Kuwait Dinars",null,null,null,null,null,null,null,"France"]
[null,null,null,null,null,null,null,null,null,"Cayman Islands Dollars",null,null,null,null,null,null,null,"French Guiana"]
[null,null,null,null,null,null,null,null,null,"Kazakhstan Tenge",null,null,null,null,null,null,null,"French Polynesia"]
[null,null,null,null,null,null,null,null,null,"Laos Kips",null,null,null,null,null,null,null,"Gabon"]
[null,null,null,null,null,null,null,null,null,"Lebanon Pounds",null,null,null,null,null,null,null,"Gambia (Republic of The)"]
[null,null,null,null,null,null,null,null,null,"Sri Lanka Rupees",null,null,null,null,null,null,null,"Georgia"]
[null,null,null,null,null,null,null,null,null,"Liberia Dollars",null,null,null,null,null,null,null,"Germany"]
[null,null,null,null,null,null,null,null,null,"Lesotho Maloti",null,null,null,null,null,null,null,"Ghana"]
[null,null,null,null,null,null,null,null,null,"Lithuania Litai",null,null,null,null,null,null,null,"Gibraltar"]
[null,null,null,null,null,null,null,null,null,"Latvia Lati",null,null,null,null,null,null,null,"Greece"]
[null,null,null,null,null,null,null,null,null,"Libya Dinars",null,null,null,null,null,null,null,"Greenland"]
[null,null,null,null,null,null,null,null,null,"Morocco Dirhams",null,null,null,null,null,null,null,"Grenada"]
[null,null,null,null,null,null,null,null,null,"Moldova Lei",null,null,null,null,null,null,null,"Guadeloupe"]
[null,null,null,null,null,null,null,null,null,"Madagascar Ariary",null,null,null,null,null,null,null,"Guam"]
[null,null,null,null,null,null,null,null,null,"Macedonia Denars",null,null,null,null,null,null,null,"Guatemala"]
[null,null,null,null,null,null,null,null,null,"Myanmar Kyats",null,null,null,null,null,null,null,"Guernsey"]
[null,null,null,null,null,null,null,null,null,"Mongolia Tugriks",null,null,null,null,null,null,null,"Guinea"]
[null,null,null,null,null,null,null,null,null,"Macau Patacas",null,null,null,null,null,null,null,"Guinea-Bissau"]
[null,null,null,null,null,null,null,null,null,"Mauritania Ouguiyas",null,null,null,null,null,null,null,"Guyana"]
[null,null,null,null,null,null,null,null,null,"Mauritius Rupees",null,null,null,null,null,null,null,"Haiti"]
[null,null,null,null,null,null,null,null,null,"Maldives Rufiyaa",null,null,null,null,null,null,null,"Holy See"]
[null,null,null,null,null,null,null,null,null,"Malawi Kwachas",null,null,null,null,null,null,null,"Honduras"]
[null,null,null,null,null,null,null,null,null,"Mexico Pesos",null,null,null,null,null,null,null,"Hungary"]
[null,null,null,null,null,null,null,null,null,"Malaysia Ringgits",null,null,null,null,null,null,null,"Iceland"]
[null,null,null,null,null,null,null,null,null,"Mozambique Meticais",null,null,null,null,null,null,null,"India"]
[null,null,null,null,null,null,null,null,null,"Namibia Dollars",null,null,null,null,null,null,null,"Indonesia"]
[null,null,null,null,null,null,null,null,null,"Nigeria Nairas",null,null,null,null,null,null,null,"Iran (Islamic Republic of)"]
[null,null,null,null,null,null,null,null,null,"Nicaragua Cordobas",null,null,null,null,null,null,null,"Iraq"]
[null,null,null,null,null,null,null,null,null,"Norway Kroner",null,null,null,null,null,null,null,"Ireland"]
[null,null,null,null,null,null,null,null,null,"Nepal Rupees",null,null,null,null,null,null,null,"Isle of Man"]
[null,null,null,null,null,null,null,null,null,"New Zealand Dollars",null,null,null,null,null,null,null,"Israel"]
[null,null,null,null,null,null,null,null,null,"Oman Rials",null,null,null,null,null,null,null,"Italy"]
[null,null,null,null,null,null,null,null,null,"Panama Balboas",null,null,null,null,null,null,null,"Jamaica"]
[null,null,null,null,null,null,null,null,null,"Peru Nuevos Soles",null,null,null,null,null,null,null,"Japan"]
[null,null,null,null,null,null,null,null,null,"Papua New Guinea Kina",null,null,null,null,null,null,null,"Jersey"]
[null,null,null,null,null,null,null,null,null,"Philippines Pesos",null,null,null,null,null,null,null,"Jordan"]
[null,null,null,null,null,null,null,null,null,"Pakistan Rupees",null,null,null,null,null,null,null,"Kazakhstan"]
[null,null,null,null,null,null,null,null,null,"Poland Zlotych",null,null,null,null,null,null,null,"Kenya"]
[null,null,null,null,null,null,null,null,null,"Paraguay Guarani",null,null,null,null,null,null,null,"Kiribati"]
[null,null,null,null,null,null,null,null,null,"Qatar Riyals",null,null,null,null,null,null,null,"Kuwait"]
[null,null,null,null,null,null,null,null,null,"Romania New Lei",null,null,null,null,null,null,null,"Kyrgyzstan"]
[null,null,null,null,null,null,null,null,null,"Serbia Dinars",null,null,null,null,null,null,null,"Lao People's Democratic Republic"]
[null,null,null,null,null,null,null,null,null,"Russia Rubles",null,null,null,null,null,null,null,"Latvia"]
[null,null,null,null,null,null,null,null,null,"Rwanda Francs",null,null,null,null,null,null,null,"Lebanon"]
[null,null,null,null,null,null,null,null,null,"Saudi Arabia Riyals",null,null,null,null,null,null,null,"Lesotho"]
[null,null,null,null,null,null,null,null,null,"Solomon Islands Dollars",null,null,null,null,null,null,null,"Liberia"]
[null,null,null,null,null,null,null,null,null,"Seychelles Rupees",null,null,null,null,null,null,null,"Libya"]
[null,null,null,null,null,null,null,null,null,"Sudan Pounds",null,null,null,null,null,null,null,"Liechtenstein"]
[null,null,null,null,null,null,null,null,null,"Sweden Kronor",null,null,null,null,null,null,null,"Lithuania"]
[null,null,null,null,null,null,null,null,null,"Singapore Dollars",null,null,null,null,null,null,null,"Luxembourg"]
[null,null,null,null,null,null,null,null,null,"Saint Helena Pounds",null,null,null,null,null,null,null,"Madagascar"]
[null,null,null,null,null,null,null,null,null,"Slovakia Koruny",null,null,null,null,null,null,null,"Malawi"]
[null,null,null,null,null,null,null,null,null,"Sierra Leone Leones",null,null,null,null,null,null,null,"Malaysia"]
[null,null,null,null,null,null,null,null,null,"Somalia Shillings",null,null,null,null,null,null,null,"Maldives"]
[null,null,null,null,null,null,null,null,null,"Seborga Luigini",null,null,null,null,null,null,null,"Mali"]
[null,null,null,null,null,null,null,null,null,"Suriname Dollars",null,null,null,null,null,null,null,"Malta"]
[null,null,null,null,null,null,null,null,null,"São Tome and Principe Dobras",null,null,null,null,null,null,null,"Marshall Islands"]
[null,null,null,null,null,null,null,null,null,"El Salvador Colones",null,null,null,null,null,null,null,"Martinique"]
[null,null,null,null,null,null,null,null,null,"Syria Pounds",null,null,null,null,null,null,null,"Mauritania"]
[null,null,null,null,null,null,null,null,null,"Swaziland Emalangeni",null,null,null,null,null,null,null,"Mauritius"]
[null,null,null,null,null,null,null,null,null,"Thailand Baht",null,null,null,null,null,null,null,"Mayotte"]
[null,null,null,null,null,null,null,null,null,"Tajikistan Somoni",null,null,null,null,null,null,null,"Mexico"]
[null,null,null,null,null,null,null,null,null,"Turkmenistan Manats",null,null,null,null,null,null,null,"Micronesia (Federated States of)"]
[null,null,null,null,null,null,null,null,null,"Tunisia Dinars",null,null,null,null,null,null,null,"Monaco"]
[null,null,null,null,null,null,null,null,null,"Tonga Pa'anga",null,null,null,null,null,null,null,"Mongolia"]
[null,null,null,null,null,null,null,null,null,"Turkey New Lira",null,null,null,null,null,null,null,"Montenegro"]
[null,null,null,null,null,null,null,null,null,"Trinidad and Tobago Dollars",null,null,null,null,null,null,null,"Montserrat"]
[null,null,null,null,null,null,null,null,null,"Tuvalu Dollars",null,null,null,null,null,null,null,"Morocco"]
[null,null,null,null,null,null,null,null,null,"Taiwan New Dollars",null,null,null,null,null,null,null,"Mozambique"]
[null,null,null,null,null,null,null,null,null,"Tanzania Shillings",null,null,null,null,null,null,null,"Myanmar"]
[null,null,null,null,null,null,null,null,null,"Ukraine Hryvnia",null,null,null,null,null,null,null,"Namibia"]
[null,null,null,null,null,null,null,null,null,"Uganda Shillings",null,null,null,null,null,null,null,"Nauru"]
[null,null,null,null,null,null,null,null,null,"Uruguay Pesos",null,null,null,null,null,null,null,"Nepal"]
[null,null,null,null,null,null,null,null,null,"Uzbekistan Sums",null,null,null,null,null,null,null,"Netherlands"]
[null,null,null,null,null,null,null,null,null,"Venezuela Bolivares",null,null,null,null,null,null,null,"New Caledonia"]
[null,null,null,null,null,null,null,null,null,"Venezuela Bolivares Fuertes",null,null,null,null,null,null,null,"New Zealand"]
[null,null,null,null,null,null,null,null,null,"Vietnam Dong",null,null,null,null,null,null,null,"Nicaragua"]
[null,null,null,null,null,null,null,null,null,"Vanuatu Vatu",null,null,null,null,null,null,null,"Niger"]
[null,null,null,null,null,null,null,null,null,"Samoa Tala",null,null,null,null,null,null,null,"Nigeria"]
[null,null,null,null,null,null,null,null,null,"Communauté Financière Africaine Francs BEAC",null,null,null,null,null,null,null,"Niue"]
[null,null,null,null,null,null,null,null,null,"Silver Ounces",null,null,null,null,null,null,null,"Norfolk Island"]
[null,null,null,null,null,null,null,null,null,"Gold Ounces",null,null,null,null,null,null,null,"North Macedonia"]
[null,null,null,null,null,null,null,null,null,"East Caribbean Dollars",null,null,null,null,null,null,null,"Northern Mariana Islands"]
[null,null,null,null,null,null,null,null,null,"International Monetary Fund Special Drawing Rights",null,null,null,null,null,null,null,"Norway"]
[null,null,null,null,null,null,null,null,null,"Communauté Financière Africaine Francs BCEAO",null,null,null,null,null,null,null,"Oman"]
[null,null,null,null,null,null,null,null,null,"Palladium Ounces",null,null,null,null,null,null,null,"Pakistan"]
[null,null,null,null,null,null,null,null,null,"Comptoirs Français du Pacifique Francs",null,null,null,null,null,null,null,"Palau"]
[null,null,null,null,null,null,null,null,null,"Platinum Ounces",null,null,null,null,null,null,null,"Panama"]
[null,null,null,null,null,null,null,null,null,"Yemen Rials",null,null,null,null,null,null,null,"Papua New Guinea"]
[null,null,null,null,null,null,null,null,null,"South Africa Rand",null,null,null,null,null,null,null,"Paraguay"]
[null,null,null,null,null,null,null,null,null,"Zambia Kwacha",null,null,null,null,null,null,null,"Peru"]
[null,null,null,null,null,null,null,null,null,"Zimbabwe Dollars",null,null,null,null,null,null,null,"Philippines"]
[null,null,null,null,null,null,null,null,null,null,null,null,null,null,null,null,null,"Pitcairn"]
[null,null,null,null,null,null,null,null,null,null,null,null,null,null,null,null,null,"Poland"]
[null,null,null,null,null,null,null,null,null,null,null,null,null,null,null,null,null,"Portugal"]
[null,null,null,null,null,null,null,null,null,null,null,null,null,null,null,null,null,"Puerto Rico"]
[null,null,null,null,null,null,null,null,null,null,null,null,null,null,null,null,null,"Qatar"]
[null,null,null,null,null,null,null,null,null,null,null,null,null,null,null,null,null,"Republic of Korea (South Korea)"]
[null,null,null,null,null,null,null,null,null,null,null,null,null,null,null,null,null,"Republic of Moldova"]
[null,null,null,null,null,null,null,null,null,null,null,null,null,null,null,null,null,"Reunion"]
[null,null,null,null,null,null,null,null,null,null,null,null,null,null,null,null,null,"Romania"]
[null,null,null,null,null,null,null,null,null,null,null,null,null,null,null,null,null,"Russian Federation"]
[null,null,null,null,null,null,null,null,null,null,null,null,null,null,null,null,null,"Rwanda"]
[null,null,null,null,null,null,null,null,null,null,null,null,null,null,null,null,null,"Saint Barthelemy (St. Barts)"]
[null,null,null,null,null,null,null,null,null,null,null,null,null,null,null,null,null,"Saint Helena"]
[null,null,null,null,null,null,null,null,null,null,null,null,null,null,null,null,null,"Saint Kitts and Nevis"]
[null,null,null,null,null,null,null,null,null,null,null,null,null,null,null,null,null,"Saint Lucia"]
[null,null,null,null,null,null,null,null,null,null,null,null,null,null,null,null,null,"Saint Martin"]
[null,null,null,null,null,null,null,null,null,null,null,null,null,null,null,null,null,"Saint Pierre and Miquelon"]
[null,null,null,null,null,null,null,null,null,null,null,null,null,null,null,null,null,"Saint Vincent and The Grenadines"]
[null,null,null,null,null,null,null,null,null,null,null,null,null,null,null,null,null,"Samoa"]
[null,null,null,null,null,null,null,null,null,null,null,null,null,null,null,null,null,"San Marino"]
[null,null,null,null,null,null,null,null,null,null,null,null,null,null,null,null,null,"Sao Tome and Principe"]
[null,null,null,null,null,null,null,null,null,null,null,null,null,null,null,null,null,"Sark"]
[null,null,null,null,null,null,null,null,null,null,null,null,null,null,null,null,null,"Saudi Arabia"]
[null,null,null,null,null,null,null,null,null,null,null,null,null,null,null,null,null,"Senegal"]
[null,null,null,null,null,null,null,null,null,null,null,null,null,null,null,null,null,"Serbia"]
[null,null,null,null,null,null,null,null,null,null,null,null,null,null,null,null,null,"Seychelles"]
[null,null,null,null,null,null,null,null,null,null,null,null,null,null,null,null,null,"Sierra Leone"]
[null,null,null,null,null,null,null,null,null,null,null,null,null,null,null,null,null,"Singapore"]
[null,null,null,null,null,null,null,null,null,null,null,null,null,null,null,null,null,"Sint Maarten"]
[null,null,null,null,null,null,null,null,null,null,null,null,null,null,null,null,null,"Slovakia"]
[null,null,null,null,null,null,null,null,null,null,null,null,null,null,null,null,null,"Slovenia"]
[null,null,null,null,null,null,null,null,null,null,null,null,null,null,null,null,null,"Solomon Islands"]
[null,null,null,null,null,null,null,null,null,null,null,null,null,null,null,null,null,"Somalia"]
[null,null,null,null,null,null,null,null,null,null,null,null,null,null,null,null,null,"South Africa"]
[null,null,null,null,null,null,null,null,null,null,null,null,null,null,null,null,null,"South Sudan"]
[null,null,null,null,null,null,null,null,null,null,null,null,null,null,null,null,null,"Spain"]
[null,null,null,null,null,null,null,null,null,null,null,null,null,null,null,null,null,"Sri Lanka"]
[null,null,null,null,null,null,null,null,null,null,null,null,null,null,null,null,null,"State of Palestine"]
[null,null,null,null,null,null,null,null,null,null,null,null,null,null,null,null,null,"Sudan"]
[null,null,null,null,null,null,null,null,null,null,null,null,null,null,null,null,null,"Suriname"]
[null,null,null,null,null,null,null,null,null,null,null,null,null,null,null,null,null,"Svalbard, Jan Mayen"]
[null,null,null,null,null,null,null,null,null,null,null,null,null,null,null,null,null,"Sweden"]
[null,null,null,null,null,null,null,null,null,null,null,null,null,null,null,null,null,"Switzerland"]
[null,null,null,null,null,null,null,null,null,null,null,null,null,null,null,null,null,"Syrian Arab Republic"]
[null,null,null,null,null,null,null,null,null,null,null,null,null,null,null,null,null,"Taiwan"]
[null,null,null,null,null,null,null,null,null,null,null,null,null,null,null,null,null,"Tajikistan"]
[null,null,null,null,null,null,null,null,null,null,null,null,null,null,null,null,null,"Thailand"]
[null,null,null,null,null,null,null,null,null,null,null,null,null,null,null,null,null,"Timor-Leste"]
[null,null,null,null,null,null,null,null,null,null,null,null,null,null,null,null,null,"Togo"]
[null,null,null,null,null,null,null,null,null,null,null,null,null,null,null,null,null,"Tokelau"]
[null,null,null,null,null,null,null,null,null,null,null,null,null,null,null,null,null,"Tonga"]
[null,null,null,null,null,null,null,null,null,null,null,null,null,null,null,null,null,"Trinidad and Tobago"]
[null,null,null,null,null,null,null,null,null,null,null,null,null,null,null,null,null,"Tunisia"]
[null,null,null,null,null,null,null,null,null,null,null,null,null,null,null,null,null,"Turkey"]
[null,null,null,null,null,null,null,null,null,null,null,null,null,null,null,null,null,"Turkmenistan"]
[null,null,null,null,null,null,null,null,null,null,null,null,null,null,null,null,null,"Turks & Caicos Islands"]
[null,null,null,null,null,null,null,null,null,null,null,null,null,null,null,null,null,"Tuvalu"]
[null,null,null,null,null,null,null,null,null,null,null,null,null,null,null,null,null,"Uganda"]
[null,null,null,null,null,null,null,null,null,null,null,null,null,null,null,null,null,"Ukraine"]
[null,null,null,null,null,null,null,null,null,null,null,null,null,null,null,null,null,"United Arab Emirates"]
[null,null,null,null,null,null,null,null,null,null,null,null,null,null,null,null,null,"United Republic of Tanzania"]
[null,null,null,null,null,null,null,null,null,null,null,null,null,null,null,null,null,"Uruguay"]
[null,null,null,null,null,null,null,null,null,null,null,null,null,null,null,null,null,"US Virgin Islands"]
[null,null,null,null,null,null,null,null,null,null,null,null,null,null,null,null,null,"Uzbekistan"]
[null,null,null,null,null,null,null,null,null,null,null,null,null,null,null,null,null,"Vanuatu"]
[null,null,null,null,null,null,null,null,null,null,null,null,null,null,null,null,null,"Venezuela, Bolivarian Republic of "]
[null,null,null,null,null,null,null,null,null,null,null,null,null,null,null,null,null,"Vietnam"]
[null,null,null,null,null,null,null,null,null,null,null,null,null,null,null,null,null,"Wallis & Futuna Islands"]
[null,null,null,null,null,null,null,null,null,null,null,null,null,null,null,null,null,"Western Sahara"]
[null,null,null,null,null,null,null,null,null,null,null,null,null,null,null,null,null,"Yemen"]
[null,null,null,null,null,null,null,null,null,null,null,null,null,null,null,null,null,"Zambia"]
[null,null,null,null,null,null,null,null,null,null,null,null,null,null,null,null,null,"Zimbabwe"]
[null,null,null,null,null,null,null,null,null,null,null,null,null,null,null,null,null,"Select"]

{"sheet":"Schedule VIA","index":51,"n_rows":2357,"n_cols":18,"rows_kept":2357,"cut":false,"hidden":false,"merged":[[1764,6,1765,6],[1764,7,1765,7],[1789,1,1789,2],[1793,1,1793,2],[1342,1,1342,2],[1447,1,1447,2],[1450,1,1450,2],[1555,1,1555,2],[1763,5,1765,5],[1339,1,1339,2],[5,1,5,2],[213,1,213,2],[216,1,216,2],[987,1,987,2],[990,1,990,2],[1095,1,1095,2],[1098,1,1098,2],[1123,1,1123,2],[1126,1,1126,2],[1231,1,1231,2],[1234,1,1234,2]]}
[null,"SCHEDULE OF FUNDS HELD BY CEDING REINSURERS",null,null,null,null,null,null,null,null,null,null,null,{"$f":"HYPERLINK(\"#'Index'!A1\",\"Return to Index\")","v":"Return to Index"}]
[null,{"$f":"'Insurer Information'!C7","v":"Enter Company Name"}]
[null,"As at",{"$f":"'Insurer Information'!C3","v":"2023-12-31"},null,null,null,null,null,null,null,null,null,null,"Schedule VIA"]
[null,"expressed in ['000s]",{"$f":"'Form 1SFS'!C5","v":"United States Dollars"}]
[]
[null,"(A) CASH AND CASH EQUIVALENTS"]
[]
[null,null,"Enter # of Asset Types",{"$f":"Import!E19915","v":0}]
[null,null,null,null,{"$f":"YEAR($C$3)","v":2023},{"$f":"YEAR($C$3)","v":2023}]
[null,"Asset Type","Currency","BSCR Rating","Nominal Amount","Fair Value","Comments"]
[1,{"$f":"Import!E19916","v":"Select"},{"$f":"Import!E20116","v":"Select"},{"$f":"Import!E20316","v":"Select"},{"$f":"Import!E20516","v":0},{"$f":"Import!E20716","v":0},{"$f":"Import!E20916","v":0}]
[{"$f":"A11+1","v":2},{"$f":"Import!E19917","v":"Select"},{"$f":"Import!E20117","v":"Select"},{"$f":"Import!E20317","v":"Select"},{"$f":"Import!E20517","v":0},{"$f":"Import!E20717","v":0},{"$f":"Import!E20917","v":0}]
[{"$f":"A12+1","v":3},{"$f":"Import!E19918","v":"Select"},{"$f":"Import!E20118","v":"Select"},{"$f":"Import!E20318","v":"Select"},{"$f":"Import!E20518","v":0},{"$f":"Import!E20718","v":0},{"$f":"Import!E20918","v":0}]
[4,{"$f":"Import!E19919","v":"Select"},{"$f":"Import!E20119","v":"Select"},{"$f":"Import!E20319","v":"Select"},{"$f":"Import!E20519","v":0},{"$f":"Import!E20719","v":0},{"$f":"Import!E20919","v":0}]
[5,{"$f":"Import!E19920","v":"Select"},{"$f":"Import!E20120","v":"Select"},{"$f":"Import!E20320","v":"Select"},{"$f":"Import!E20520","v":0},{"$f":"Import!E20720","v":0},{"$f":"Import!E20920","v":0}]
[6,{"$f":"Import!E19921","v":"Select"},{"$f":"Import!E20121","v":"Select"},{"$f":"Import!E20321","v":"Select"},{"$f":"Import!E20521","v":0},{"$f":"Import!E20721","v":0},{"$f":"Import!E20921","v":0}]
[7,{"$f":"Import!E19922","v":"Select"},{"$f":"Import!E20122","v":"Select"},{"$f":"Import!E20322","v":"Select"},{"$f":"Import!E20522","v":0},{"$f":"Import!E20722","v":0},{"$f":"Import!E20922","v":0}]
[8,{"$f":"Import!E19923","v":"Select"},{"$f":"Import!E20123","v":"Select"},{"$f":"Import!E20323","v":"Select"},{"$f":"Import!E20523","v":0},{"$f":"Import!E20723","v":0},{"$f":"Import!E20923","v":0}]
[9,{"$f":"Import!E19924","v":"Select"},{"$f":"Import!E20124","v":"Select"},{"$f":"Import!E20324","v":"Select"},{"$f":"Import!E20524","v":0},{"$f":"Import!E20724","v":0},{"$f":"Import!E20924","v":0}]
[10,{"$f":"Import!E19925","v":"Select"},{"$f":"Import!E20125","v":"Select"},{"$f":"Import!E20325","v":"Select"},{"$f":"Import!E20525","v":0},{"$f":"Import!E20725","v":0},{"$f":"Import!E20925","v":0}]
[11,{"$f":"Import!E19926","v":"Select"},{"$f":"Import!E20126","v":"Select"},{"$f":"Import!E20326","v":"Select"},{"$f":"Import!E20526","v":0},{"$f":"Import!E20726","v":0},{"$f":"Import!E20926","v":0}]
[12,{"$f":"Import!E19927","v":"Select"},{"$f":"Import!E20127","v":"Select"},{"$f":"Import!E20327","v":"Select"},{"$f":"Import!E20527","v":0},{"$f":"Import!E20727","v":0},{"$f":"Import!E20927","v":0}]
[13,{"$f":"Import!E19928","v":"Select"},{"$f":"Import!E20128","v":"Select"},{"$f":"Import!E20328","v":"Select"},{"$f":"Import!E20528","v":0},{"$f":"Import!E20728","v":0},{"$f":"Import!E20928","v":0}]
[14,{"$f":"Import!E19929","v":"Select"},{"$f":"Import!E20129","v":"Select"},{"$f":"Import!E20329","v":"Select"},{"$f":"Import!E20529","v":0},{"$f":"Import!E20729","v":0},{"$f":"Import!E20929","v":0}]
[15,{"$f":"Import!E19930","v":"Select"},{"$f":"Import!E20130","v":"Select"},{"$f":"Import!E20330","v":"Select"},{"$f":"Import!E20530","v":0},{"$f":"Import!E20730","v":0},{"$f":"Import!E20930","v":0}]
[16,{"$f":"Import!E19931","v":"Select"},{"$f":"Import!E20131","v":"Select"},{"$f":"Import!E20331","v":"Select"},{"$f":"Import!E20531","v":0},{"$f":"Import!E20731","v":0},{"$f":"Import!E20931","v":0}]
[17,{"$f":"Import!E19932","v":"Select"},{"$f":"Import!E20132","v":"Select"},{"$f":"Import!E20332","v":"Select"},{"$f":"Import!E20532","v":0},{"$f":"Import!E20732","v":0},{"$f":"Import!E20932","v":0}]
[18,{"$f":"Import!E19933","v":"Select"},{"$f":"Import!E20133","v":"Select"},{"$f":"Import!E20333","v":"Select"},{"$f":"Import!E20533","v":0},{"$f":"Import!E20733","v":0},{"$f":"Import!E20933","v":0}]
[19,{"$f":"Import!E19934","v":"Select"},{"$f":"Import!E20134","v":"Select"},{"$f":"Import!E20334","v":"Select"},{"$f":"Import!E20534","v":0},{"$f":"Import!E20734","v":0},{"$f":"Import!E20934","v":0}]
[20,{"$f":"Import!E19935","v":"Select"},{"$f":"Import!E20135","v":"Select"},{"$f":"Import!E20335","v":"Select"},{"$f":"Import!E20535","v":0},{"$f":"Import!E20735","v":0},{"$f":"Import!E20935","v":0}]
[21,{"$f":"Import!E19936","v":"Select"},{"$f":"Import!E20136","v":"Select"},{"$f":"Import!E20336","v":"Select"},{"$f":"Import!E20536","v":0},{"$f":"Import!E20736","v":0},{"$f":"Import!E20936","v":0}]
[22,{"$f":"Import!E19937","v":"Select"},{"$f":"Import!E20137","v":"Select"},{"$f":"Import!E20337","v":"Select"},{"$f":"Import!E20537","v":0},{"$f":"Import!E20737","v":0},{"$f":"Import!E20937","v":0}]
[23,{"$f":"Import!E19938","v":"Select"},{"$f":"Import!E20138","v":"Select"},{"$f":"Import!E20338","v":"Select"},{"$f":"Import!E20538","v":0},{"$f":"Import!E20738","v":0},{"$f":"Import!E20938","v":0}]
[24,{"$f":"Import!E19939","v":"Select"},{"$f":"Import!E20139","v":"Select"},{"$f":"Import!E20339","v":"Select"},{"$f":"Import!E20539","v":0},{"$f":"Import!E20739","v":0},{"$f":"Import!E20939","v":0}]
[25,{"$f":"Import!E19940","v":"Select"},{"$f":"Import!E20140","v":"Select"},{"$f":"Import!E20340","v":"Select"},{"$f":"Import!E20540","v":0},{"$f":"Import!E20740","v":0},{"$f":"Import!E20940","v":0}]
[26,{"$f":"Import!E19941","v":"Select"},{"$f":"Import!E20141","v":"Select"},{"$f":"Import!E20341","v":"Select"},{"$f":"Import!E20541","v":0},{"$f":"Import!E20741","v":0},{"$f":"Import!E20941","v":0}]
[27,{"$f":"Import!E19942","v":"Select"},{"$f":"Import!E20142","v":"Select"},{"$f":"Import!E20342","v":"Select"},{"$f":"Import!E20542","v":0},{"$f":"Import!E20742","v":0},{"$f":"Import!E20942","v":0}]
[28,{"$f":"Import!E19943","v":"Select"},{"$f":"Import!E20143","v":"Select"},{"$f":"Import!E20343","v":"Select"},{"$f":"Import!E20543","v":0},{"$f":"Import!E20743","v":0},{"$f":"Import!E20943","v":0}]
[29,{"$f":"Import!E19944","v":"Select"},{"$f":"Import!E20144","v":"Select"},{"$f":"Import!E20344","v":"Select"},{"$f":"Import!E20544","v":0},{"$f":"Import!E20744","v":0},{"$f":"Import!E20944","v":0}]
[30,{"$f":"Import!E19945","v":"Select"},{"$f":"Import!E20145","v":"Select"},{"$f":"Import!E20345","v":"Select"},{"$f":"Import!E20545","v":0},{"$f":"Import!E20745","v":0},{"$f":"Import!E20945","v":0}]
[31,{"$f":"Import!E19946","v":"Select"},{"$f":"Import!E20146","v":"Select"},{"$f":"Import!E20346","v":"Select"},{"$f":"Import!E20546","v":0},{"$f":"Import!E20746","v":0},{"$f":"Import!E20946","v":0}]
[32,{"$f":"Import!E19947","v":"Select"},{"$f":"Import!E20147","v":"Select"},{"$f":"Import!E20347","v":"Select"},{"$f":"Import!E20547","v":0},{"$f":"Import!E20747","v":0},{"$f":"Import!E20947","v":0}]
[33,{"$f":"Import!E19948","v":"Select"},{"$f":"Import!E20148","v":"Select"},{"$f":"Import!E20348","v":"Select"},{"$f":"Import!E20548","v":0},{"$f":"Import!E20748","v":0},{"$f":"Import!E20948","v":0}]
[34,{"$f":"Import!E19949","v":"Select"},{"$f":"Import!E20149","v":"Select"},{"$f":"Import!E20349","v":"Select"},{"$f":"Import!E20549","v":0},{"$f":"Import!E20749","v":0},{"$f":"Import!E20949","v":0}]
[35,{"$f":"Import!E19950","v":"Select"},{"$f":"Import!E20150","v":"Select"},{"$f":"Import!E20350","v":"Select"},{"$f":"Import!E20550","v":0},{"$f":"Import!E20750","v":0},{"$f":"Import!E20950","v":0}]
[36,{"$f":"Import!E19951","v":"Select"},{"$f":"Import!E20151","v":"Select"},{"$f":"Import!E20351","v":"Select"},{"$f":"Import!E20551","v":0},{"$f":"Import!E20751","v":0},{"$f":"Import!E20951","v":0}]
[37,{"$f":"Import!E19952","v":"Select"},{"$f":"Import!E20152","v":"Select"},{"$f":"Import!E20352","v":"Select"},{"$f":"Import!E20552","v":0},{"$f":"Import!E20752","v":0},{"$f":"Import!E20952","v":0}]
[38,{"$f":"Import!E19953","v":"Select"},{"$f":"Import!E20153","v":"Select"},{"$f":"Import!E20353","v":"Select"},{"$f":"Import!E20553","v":0},{"$f":"Import!E20753","v":0},{"$f":"Import!E20953","v":0}]
[39,{"$f":"Import!E19954","v":"Select"},{"$f":"Import!E20154","v":"Select"},{"$f":"Import!E20354","v":"Select"},{"$f":"Import!E20554","v":0},{"$f":"Import!E20754","v":0},{"$f":"Import!E20954","v":0}]
[40,{"$f":"Import!E19955","v":"Select"},{"$f":"Import!E20155","v":"Select"},{"$f":"Import!E20355","v":"Select"},{"$f":"Import!E20555","v":0},{"$f":"Import!E20755","v":0},{"$f":"Import!E20955","v":0}]
[41,{"$f":"Import!E19956","v":"Select"},{"$f":"Import!E20156","v":"Select"},{"$f":"Import!E20356","v":"Select"},{"$f":"Import!E20556","v":0},{"$f":"Import!E20756","v":0},{"$f":"Import!E20956","v":0}]
[42,{"$f":"Import!E19957","v":"Select"},{"$f":"Import!E20157","v":"Select"},{"$f":"Import!E20357","v":"Select"},{"$f":"Import!E20557","v":0},{"$f":"Import!E20757","v":0},{"$f":"Import!E20957","v":0}]
[43,{"$f":"Import!E19958","v":"Select"},{"$f":"Import!E20158","v":"Select"},{"$f":"Import!E20358","v":"Select"},{"$f":"Import!E20558","v":0},{"$f":"Import!E20758","v":0},{"$f":"Import!E20958","v":0}]
[44,{"$f":"Import!E19959","v":"Select"},{"$f":"Import!E20159","v":"Select"},{"$f":"Import!E20359","v":"Select"},{"$f":"Import!E20559","v":0},{"$f":"Import!E20759","v":0},{"$f":"Import!E20959","v":0}]
[45,{"$f":"Import!E19960","v":"Select"},{"$f":"Import!E20160","v":"Select"},{"$f":"Import!E20360","v":"Select"},{"$f":"Import!E20560","v":0},{"$f":"Import!E20760","v":0},{"$f":"Import!E20960","v":0}]
[46,{"$f":"Import!E19961","v":"Select"},{"$f":"Import!E20161","v":"Select"},{"$f":"Import!E20361","v":"Select"},{"$f":"Import!E20561","v":0},{"$f":"Import!E20761","v":0},{"$f":"Import!E20961","v":0}]
[47,{"$f":"Import!E19962","v":"Select"},{"$f":"Import!E20162","v":"Select"},{"$f":"Import!E20362","v":"Select"},{"$f":"Import!E20562","v":0},{"$f":"Import!E20762","v":0},{"$f":"Import!E20962","v":0}]
[48,{"$f":"Import!E19963","v":"Select"},{"$f":"Import!E20163","v":"Select"},{"$f":"Import!E20363","v":"Select"},{"$f":"Import!E20563","v":0},{"$f":"Import!E20763","v":0},{"$f":"Import!E20963","v":0}]
[49,{"$f":"Import!E19964","v":"Select"},{"$f":"Import!E20164","v":"Select"},{"$f":"Import!E20364","v":"Select"},{"$f":"Import!E20564","v":0},{"$f":"Import!E20764","v":0},{"$f":"Import!E20964","v":0}]
[50,{"$f":"Import!E19965","v":"Select"},{"$f":"Import!E20165","v":"Select"},{"$f":"Import!E20365","v":"Select"},{"$f":"Import!E20565","v":0},{"$f":"Import!E20765","v":0},{"$f":"Import!E20965","v":0}]
[51,{"$f":"Import!E19966","v":"Select"},{"$f":"Import!E20166","v":"Select"},{"$f":"Import!E20366","v":"Select"},{"$f":"Import!E20566","v":0},{"$f":"Import!E20766","v":0},{"$f":"Import!E20966","v":0}]
[52,{"$f":"Import!E19967","v":"Select"},{"$f":"Import!E20167","v":"Select"},{"$f":"Import!E20367","v":"Select"},{"$f":"Import!E20567","v":0},{"$f":"Import!E20767","v":0},{"$f":"Import!E20967","v":0}]
[53,{"$f":"Import!E19968","v":"Select"},{"$f":"Import!E20168","v":"Select"},{"$f":"Import!E20368","v":"Select"},{"$f":"Import!E20568","v":0},{"$f":"Import!E20768","v":0},{"$f":"Import!E20968","v":0}]
[54,{"$f":"Import!E19969","v":"Select"},{"$f":"Import!E20169","v":"Select"},{"$f":"Import!E20369","v":"Select"},{"$f":"Import!E20569","v":0},{"$f":"Import!E20769","v":0},{"$f":"Import!E20969","v":0}]
[55,{"$f":"Import!E19970","v":"Select"},{"$f":"Import!E20170","v":"Select"},{"$f":"Import!E20370","v":"Select"},{"$f":"Import!E20570","v":0},{"$f":"Import!E20770","v":0},{"$f":"Import!E20970","v":0}]
[56,{"$f":"Import!E19971","v":"Select"},{"$f":"Import!E20171","v":"Select"},{"$f":"Import!E20371","v":"Select"},{"$f":"Import!E20571","v":0},{"$f":"Import!E20771","v":0},{"$f":"Import!E20971","v":0}]
[57,{"$f":"Import!E19972","v":"Select"},{"$f":"Import!E20172","v":"Select"},{"$f":"Import!E20372","v":"Select"},{"$f":"Import!E20572","v":0},{"$f":"Import!E20772","v":0},{"$f":"Import!E20972","v":0}]
[58,{"$f":"Import!E19973","v":"Select"},{"$f":"Import!E20173","v":"Select"},{"$f":"Import!E20373","v":"Select"},{"$f":"Import!E20573","v":0},{"$f":"Import!E20773","v":0},{"$f":"Import!E20973","v":0}]
[59,{"$f":"Import!E19974","v":"Select"},{"$f":"Import!E20174","v":"Select"},{"$f":"Import!E20374","v":"Select"},{"$f":"Import!E20574","v":0},{"$f":"Import!E20774","v":0},{"$f":"Import!E20974","v":0}]
[60,{"$f":"Import!E19975","v":"Select"},{"$f":"Import!E20175","v":"Select"},{"$f":"Import!E20375","v":"Select"},{"$f":"Import!E20575","v":0},{"$f":"Import!E20775","v":0},{"$f":"Import!E20975","v":0}]
[61,{"$f":"Import!E19976","v":"Select"},{"$f":"Import!E20176","v":"Select"},{"$f":"Import!E20376","v":"Select"},{"$f":"Import!E20576","v":0},{"$f":"Import!E20776","v":0},{"$f":"Import!E20976","v":0}]
[62,{"$f":"Import!E19977","v":"Select"},{"$f":"Import!E20177","v":"Select"},{"$f":"Import!E20377","v":"Select"},{"$f":"Import!E20577","v":0},{"$f":"Import!E20777","v":0},{"$f":"Import!E20977","v":0}]
[63,{"$f":"Import!E19978","v":"Select"},{"$f":"Import!E20178","v":"Select"},{"$f":"Import!E20378","v":"Select"},{"$f":"Import!E20578","v":0},{"$f":"Import!E20778","v":0},{"$f":"Import!E20978","v":0}]
[64,{"$f":"Import!E19979","v":"Select"},{"$f":"Import!E20179","v":"Select"},{"$f":"Import!E20379","v":"Select"},{"$f":"Import!E20579","v":0},{"$f":"Import!E20779","v":0},{"$f":"Import!E20979","v":0}]
[65,{"$f":"Import!E19980","v":"Select"},{"$f":"Import!E20180","v":"Select"},{"$f":"Import!E20380","v":"Select"},{"$f":"Import!E20580","v":0},{"$f":"Import!E20780","v":0},{"$f":"Import!E20980","v":0}]
[66,{"$f":"Import!E19981","v":"Select"},{"$f":"Import!E20181","v":"Select"},{"$f":"Import!E20381","v":"Select"},{"$f":"Import!E20581","v":0},{"$f":"Import!E20781","v":0},{"$f":"Import!E20981","v":0}]
[{"$f":"A76+1","v":67},{"$f":"Import!E19982","v":"Select"},{"$f":"Import!E20182","v":"Select"},{"$f":"Import!E20382","v":"Select"},{"$f":"Import!E20582","v":0},{"$f":"Import!E20782","v":0},{"$f":"Import!E20982","v":0}]
[68,{"$f":"Import!E19983","v":"Select"},{"$f":"Import!E20183","v":"Select"},{"$f":"Import!E20383","v":"Select"},{"$f":"Import!E20583","v":0},{"$f":"Import!E20783","v":0},{"$f":"Import!E20983","v":0}]
[69,{"$f":"Import!E19984","v":"Select"},{"$f":"Import!E20184","v":"Select"},{"$f":"Import!E20384","v":"Select"},{"$f":"Import!E20584","v":0},{"$f":"Import!E20784","v":0},{"$f":"Import!E20984","v":0}]
[70,{"$f":"Import!E19985","v":"Select"},{"$f":"Import!E20185","v":"Select"},{"$f":"Import!E20385","v":"Select"},{"$f":"Import!E20585","v":0},{"$f":"Import!E20785","v":0},{"$f":"Import!E20985","v":0}]
[71,{"$f":"Import!E19986","v":"Select"},{"$f":"Import!E20186","v":"Select"},{"$f":"Import!E20386","v":"Select"},{"$f":"Import!E20586","v":0},{"$f":"Import!E20786","v":0},{"$f":"Import!E20986","v":0}]
[72,{"$f":"Import!E19987","v":"Select"},{"$f":"Import!E20187","v":"Select"},{"$f":"Import!E20387","v":"Select"},{"$f":"Import!E20587","v":0},{"$f":"Import!E20787","v":0},{"$f":"Import!E20987","v":0}]
[73,{"$f":"Import!E19988","v":"Select"},{"$f":"Import!E20188","v":"Select"},{"$f":"Import!E20388","v":"Select"},{"$f":"Import!E20588","v":0},{"$f":"Import!E20788","v":0},{"$f":"Import!E20988","v":0}]
[74,{"$f":"Import!E19989","v":"Select"},{"$f":"Import!E20189","v":"Select"},{"$f":"Import!E20389","v":"Select"},{"$f":"Import!E20589","v":0},{"$f":"Import!E20789","v":0},{"$f":"Import!E20989","v":0}]
[75,{"$f":"Import!E19990","v":"Select"},{"$f":"Import!E20190","v":"Select"},{"$f":"Import!E20390","v":"Select"},{"$f":"Import!E20590","v":0},{"$f":"Import!E20790","v":0},{"$f":"Import!E20990","v":0}]
[76,{"$f":"Import!E19991","v":"Select"},{"$f":"Import!E20191","v":"Select"},{"$f":"Import!E20391","v":"Select"},{"$f":"Import!E20591","v":0},{"$f":"Import!E20791","v":0},{"$f":"Import!E20991","v":0}]
[77,{"$f":"Import!E19992","v":"Select"},{"$f":"Import!E20192","v":"Select"},{"$f":"Import!E20392","v":"Select"},{"$f":"Import!E20592","v":0},{"$f":"Import!E20792","v":0},{"$f":"Import!E20992","v":0}]
[78,{"$f":"Import!E19993","v":"Select"},{"$f":"Import!E20193","v":"Select"},{"$f":"Import!E20393","v":"Select"},{"$f":"Import!E20593","v":0},{"$f":"Import!E20793","v":0},{"$f":"Import!E20993","v":0}]
[79,{"$f":"Import!E19994","v":"Select"},{"$f":"Import!E20194","v":"Select"},{"$f":"Import!E20394","v":"Select"},{"$f":"Import!E20594","v":0},{"$f":"Import!E20794","v":0},{"$f":"Import!E20994","v":0}]
[80,{"$f":"Import!E19995","v":"Select"},{"$f":"Import!E20195","v":"Select"},{"$f":"Import!E20395","v":"Select"},{"$f":"Import!E20595","v":0},{"$f":"Import!E20795","v":0},{"$f":"Import!E20995","v":0}]
[81,{"$f":"Import!E19996","v":"Select"},{"$f":"Import!E20196","v":"Select"},{"$f":"Import!E20396","v":"Select"},{"$f":"Import!E20596","v":0},{"$f":"Import!E20796","v":0},{"$f":"Import!E20996","v":0}]
[82,{"$f":"Import!E19997","v":"Select"},{"$f":"Import!E20197","v":"Select"},{"$f":"Import!E20397","v":"Select"},{"$f":"Import!E20597","v":0},{"$f":"Import!E20797","v":0},{"$f":"Import!E20997","v":0}]
[83,{"$f":"Import!E19998","v":"Select"},{"$f":"Import!E20198","v":"Select"},{"$f":"Import!E20398","v":"Select"},{"$f":"Import!E20598","v":0},{"$f":"Import!E20798","v":0},{"$f":"Import!E20998","v":0}]
[84,{"$f":"Import!E19999","v":"Select"},{"$f":"Import!E20199","v":"Select"},{"$f":"Import!E20399","v":"Select"},{"$f":"Import!E20599","v":0},{"$f":"Import!E20799","v":0},{"$f":"Import!E20999","v":0}]
[85,{"$f":"Import!E20000","v":"Select"},{"$f":"Import!E20200","v":"Select"},{"$f":"Import!E20400","v":"Select"},{"$f":"Import!E20600","v":0},{"$f":"Import!E20800","v":0},{"$f":"Import!E21000","v":0}]
[86,{"$f":"Import!E20001","v":"Select"},{"$f":"Import!E20201","v":"Select"},{"$f":"Import!E20401","v":"Select"},{"$f":"Import!E20601","v":0},{"$f":"Import!E20801","v":0},{"$f":"Import!E21001","v":0}]
[87,{"$f":"Import!E20002","v":"Select"},{"$f":"Import!E20202","v":"Select"},{"$f":"Import!E20402","v":"Select"},{"$f":"Import!E20602","v":0},{"$f":"Import!E20802","v":0},{"$f":"Import!E21002","v":0}]
[88,{"$f":"Import!E20003","v":"Select"},{"$f":"Import!E20203","v":"Select"},{"$f":"Import!E20403","v":"Select"},{"$f":"Import!E20603","v":0},{"$f":"Import!E20803","v":0},{"$f":"Import!E21003","v":0}]
[89,{"$f":"Import!E20004","v":"Select"},{"$f":"Import!E20204","v":"Select"},{"$f":"Import!E20404","v":"Select"},{"$f":"Import!E20604","v":0},{"$f":"Import!E20804","v":0},{"$f":"Import!E21004","v":0}]
[90,{"$f":"Import!E20005","v":"Select"},{"$f":"Import!E20205","v":"Select"},{"$f":"Import!E20405","v":"Select"},{"$f":"Import!E20605","v":0},{"$f":"Import!E20805","v":0},{"$f":"Import!E21005","v":0}]
[91,{"$f":"Import!E20006","v":"Select"},{"$f":"Import!E20206","v":"Select"},{"$f":"Import!E20406","v":"Select"},{"$f":"Import!E20606","v":0},{"$f":"Import!E20806","v":0},{"$f":"Import!E21006","v":0}]
[92,{"$f":"Import!E20007","v":"Select"},{"$f":"Import!E20207","v":"Select"},{"$f":"Import!E20407","v":"Select"},{"$f":"Import!E20607","v":0},{"$f":"Import!E20807","v":0},{"$f":"Import!E21007","v":0}]
[93,{"$f":"Import!E20008","v":"Select"},{"$f":"Import!E20208","v":"Select"},{"$f":"Import!E20408","v":"Select"},{"$f":"Import!E20608","v":0},{"$f":"Import!E20808","v":0},{"$f":"Import!E21008","v":0}]
[94,{"$f":"Import!E20009","v":"Select"},{"$f":"Import!E20209","v":"Select"},{"$f":"Import!E20409","v":"Select"},{"$f":"Import!E20609","v":0},{"$f":"Import!E20809","v":0},{"$f":"Import!E21009","v":0}]
[95,{"$f":"Import!E20010","v":"Select"},{"$f":"Import!E20210","v":"Select"},{"$f":"Import!E20410","v":"Select"},{"$f":"Import!E20610","v":0},{"$f":"Import!E20810","v":0},{"$f":"Import!E21010","v":0}]
[96,{"$f":"Import!E20011","v":"Select"},{"$f":"Import!E20211","v":"Select"},{"$f":"Import!E20411","v":"Select"},{"$f":"Import!E20611","v":0},{"$f":"Import!E20811","v":0},{"$f":"Import!E21011","v":0}]
[97,{"$f":"Import!E20012","v":"Select"},{"$f":"Import!E20212","v":"Select"},{"$f":"Import!E20412","v":"Select"},{"$f":"Import!E20612","v":0},{"$f":"Import!E20812","v":0},{"$f":"Import!E21012","v":0}]
[98,{"$f":"Import!E20013","v":"Select"},{"$f":"Import!E20213","v":"Select"},{"$f":"Import!E20413","v":"Select"},{"$f":"Import!E20613","v":0},{"$f":"Import!E20813","v":0},{"$f":"Import!E21013","v":0}]
[99,{"$f":"Import!E20014","v":"Select"},{"$f":"Import!E20214","v":"Select"},{"$f":"Import!E20414","v":"Select"},{"$f":"Import!E20614","v":0},{"$f":"Import!E20814","v":0},{"$f":"Import!E21014","v":0}]
[100,{"$f":"Import!E20015","v":"Select"},{"$f":"Import!E20215","v":"Select"},{"$f":"Import!E20415","v":"Select"},{"$f":"Import!E20615","v":0},{"$f":"Import!E20815","v":0},{"$f":"Import!E21015","v":0}]
[101,{"$f":"Import!E20016","v":"Select"},{"$f":"Import!E20216","v":"Select"},{"$f":"Import!E20416","v":"Select"},{"$f":"Import!E20616","v":0},{"$f":"Import!E20816","v":0},{"$f":"Import!E21016","v":0}]
[102,{"$f":"Import!E20017","v":"Select"},{"$f":"Import!E20217","v":"Select"},{"$f":"Import!E20417","v":"Select"},{"$f":"Import!E20617","v":0},{"$f":"Import!E20817","v":0},{"$f":"Import!E21017","v":0}]
[103,{"$f":"Import!E20018","v":"Select"},{"$f":"Import!E20218","v":"Select"},{"$f":"Import!E20418","v":"Select"},{"$f":"Import!E20618","v":0},{"$f":"Import!E20818","v":0},{"$f":"Import!E21018","v":0}]
[104,{"$f":"Import!E20019","v":"Select"},{"$f":"Import!E20219","v":"Select"},{"$f":"Import!E20419","v":"Select"},{"$f":"Import!E20619","v":0},{"$f":"Import!E20819","v":0},{"$f":"Import!E21019","v":0}]
[105,{"$f":"Import!E20020","v":"Select"},{"$f":"Import!E20220","v":"Select"},{"$f":"Import!E20420","v":"Select"},{"$f":"Import!E20620","v":0},{"$f":"Import!E20820","v":0},{"$f":"Import!E21020","v":0}]
[106,{"$f":"Import!E20021","v":"Select"},{"$f":"Import!E20221","v":"Select"},{"$f":"Import!E20421","v":"Select"},{"$f":"Import!E20621","v":0},{"$f":"Import!E20821","v":0},{"$f":"Import!E21021","v":0}]
[107,{"$f":"Import!E20022","v":"Select"},{"$f":"Import!E20222","v":"Select"},{"$f":"Import!E20422","v":"Select"},{"$f":"Import!E20622","v":0},{"$f":"Import!E20822","v":0},{"$f":"Import!E21022","v":0}]
[108,{"$f":"Import!E20023","v":"Select"},{"$f":"Import!E20223","v":"Select"},{"$f":"Import!E20423","v":"Select"},{"$f":"Import!E20623","v":0},{"$f":"Import!E20823","v":0},{"$f":"Import!E21023","v":0}]
[109,{"$f":"Import!E20024","v":"Select"},{"$f":"Import!E20224","v":"Select"},{"$f":"Import!E20424","v":"Select"},{"$f":"Import!E20624","v":0},{"$f":"Import!E20824","v":0},{"$f":"Import!E21024","v":0}]
[110,{"$f":"Import!E20025","v":"Select"},{"$f":"Import!E20225","v":"Select"},{"$f":"Import!E20425","v":"Select"},{"$f":"Import!E20625","v":0},{"$f":"Import!E20825","v":0},{"$f":"Import!E21025","v":0}]
[111,{"$f":"Import!E20026","v":"Select"},{"$f":"Import!E20226","v":"Select"},{"$f":"Import!E20426","v":"Select"},{"$f":"Import!E20626","v":0},{"$f":"Import!E20826","v":0},{"$f":"Import!E21026","v":0}]
[112,{"$f":"Import!E20027","v":"Select"},{"$f":"Import!E20227","v":"Select"},{"$f":"Import!E20427","v":"Select"},{"$f":"Import!E20627","v":0},{"$f":"Import!E20827","v":0},{"$f":"Import!E21027","v":0}]
[113,{"$f":"Import!E20028","v":"Select"},{"$f":"Import!E20228","v":"Select"},{"$f":"Import!E20428","v":"Select"},{"$f":"Import!E20628","v":0},{"$f":"Import!E20828","v":0},{"$f":"Import!E21028","v":0}]
[114,{"$f":"Import!E20029","v":"Select"},{"$f":"Import!E20229","v":"Select"},{"$f":"Import!E20429","v":"Select"},{"$f":"Import!E20629","v":0},{"$f":"Import!E20829","v":0},{"$f":"Import!E21029","v":0}]
[115,{"$f":"Import!E20030","v":"Select"},{"$f":"Import!E20230","v":"Select"},{"$f":"Import!E20430","v":"Select"},{"$f":"Import!E20630","v":0},{"$f":"Import!E20830","v":0},{"$f":"Import!E21030","v":0}]
[116,{"$f":"Import!E20031","v":"Select"},{"$f":"Import!E20231","v":"Select"},{"$f":"Import!E20431","v":"Select"},{"$f":"Import!E20631","v":0},{"$f":"Import!E20831","v":0},{"$f":"Import!E21031","v":0}]
[117,{"$f":"Import!E20032","v":"Select"},{"$f":"Import!E20232","v":"Select"},{"$f":"Import!E20432","v":"Select"},{"$f":"Import!E20632","v":0},{"$f":"Import!E20832","v":0},{"$f":"Import!E21032","v":0}]
[118,{"$f":"Import!E20033","v":"Select"},{"$f":"Import!E20233","v":"Select"},{"$f":"Import!E20433","v":"Select"},{"$f":"Import!E20633","v":0},{"$f":"Import!E20833","v":0},{"$f":"Import!E21033","v":0}]
[119,{"$f":"Import!E20034","v":"Select"},{"$f":"Import!E20234","v":"Select"},{"$f":"Import!E20434","v":"Select"},{"$f":"Import!E20634","v":0},{"$f":"Import!E20834","v":0},{"$f":"Import!E21034","v":0}]
[120,{"$f":"Import!E20035","v":"Select"},{"$f":"Import!E20235","v":"Select"},{"$f":"Import!E20435","v":"Select"},{"$f":"Import!E20635","v":0},{"$f":"Import!E20835","v":0},{"$f":"Import!E21035","v":0}]
[121,{"$f":"Import!E20036","v":"Select"},{"$f":"Import!E20236","v":"Select"},{"$f":"Import!E20436","v":"Select"},{"$f":"Import!E20636","v":0},{"$f":"Import!E20836","v":0},{"$f":"Import!E21036","v":0}]
[122,{"$f":"Import!E20037","v":"Select"},{"$f":"Import!E20237","v":"Select"},{"$f":"Import!E20437","v":"Select"},{"$f":"Import!E20637","v":0},{"$f":"Import!E20837","v":0},{"$f":"Import!E21037","v":0}]
[123,{"$f":"Import!E20038","v":"Select"},{"$f":"Import!E20238","v":"Select"},{"$f":"Import!E20438","v":"Select"},{"$f":"Import!E20638","v":0},{"$f":"Import!E20838","v":0},{"$f":"Import!E21038","v":0}]
[124,{"$f":"Import!E20039","v":"Select"},{"$f":"Import!E20239","v":"Select"},{"$f":"Import!E20439","v":"Select"},{"$f":"Import!E20639","v":0},{"$f":"Import!E20839","v":0},{"$f":"Import!E21039","v":0}]
[125,{"$f":"Import!E20040","v":"Select"},{"$f":"Import!E20240","v":"Select"},{"$f":"Import!E20440","v":"Select"},{"$f":"Import!E20640","v":0},{"$f":"Import!E20840","v":0},{"$f":"Import!E21040","v":0}]
[126,{"$f":"Import!E20041","v":"Select"},{"$f":"Import!E20241","v":"Select"},{"$f":"Import!E20441","v":"Select"},{"$f":"Import!E20641","v":0},{"$f":"Import!E20841","v":0},{"$f":"Import!E21041","v":0}]
[127,{"$f":"Import!E20042","v":"Select"},{"$f":"Import!E20242","v":"Select"},{"$f":"Import!E20442","v":"Select"},{"$f":"Import!E20642","v":0},{"$f":"Import!E20842","v":0},{"$f":"Import!E21042","v":0}]
[128,{"$f":"Import!E20043","v":"Select"},{"$f":"Import!E20243","v":"Select"},{"$f":"Import!E20443","v":"Select"},{"$f":"Import!E20643","v":0},{"$f":"Import!E20843","v":0},{"$f":"Import!E21043","v":0}]
[129,{"$f":"Import!E20044","v":"Select"},{"$f":"Import!E20244","v":"Select"},{"$f":"Import!E20444","v":"Select"},{"$f":"Import!E20644","v":0},{"$f":"Import!E20844","v":0},{"$f":"Import!E21044","v":0}]
[130,{"$f":"Import!E20045","v":"Select"},{"$f":"Import!E20245","v":"Select"},{"$f":"Import!E20445","v":"Select"},{"$f":"Import!E20645","v":0},{"$f":"Import!E20845","v":0},{"$f":"Import!E21045","v":0}]
[{"$f":"A140+1","v":131},{"$f":"Import!E20046","v":"Select"},{"$f":"Import!E20246","v":"Select"},{"$f":"Import!E20446","v":"Select"},{"$f":"Import!E20646","v":0},{"$f":"Import!E20846","v":0},{"$f":"Import!E21046","v":0}]
[132,{"$f":"Import!E20047","v":"Select"},{"$f":"Import!E20247","v":"Select"},{"$f":"Import!E20447","v":"Select"},{"$f":"Import!E20647","v":0},{"$f":"Import!E20847","v":0},{"$f":"Import!E21047","v":0}]
[133,{"$f":"Import!E20048","v":"Select"},{"$f":"Import!E20248","v":"Select"},{"$f":"Import!E20448","v":"Select"},{"$f":"Import!E20648","v":0},{"$f":"Import!E20848","v":0},{"$f":"Import!E21048","v":0}]
[134,{"$f":"Import!E20049","v":"Select"},{"$f":"Import!E20249","v":"Select"},{"$f":"Import!E20449","v":"Select"},{"$f":"Import!E20649","v":0},{"$f":"Import!E20849","v":0},{"$f":"Import!E21049","v":0}]
[135,{"$f":"Import!E20050","v":"Select"},{"$f":"Import!E20250","v":"Select"},{"$f":"Import!E20450","v":"Select"},{"$f":"Import!E20650","v":0},{"$f":"Import!E20850","v":0},{"$f":"Import!E21050","v":0}]
[136,{"$f":"Import!E20051","v":"Select"},{"$f":"Import!E20251","v":"Select"},{"$f":"Import!E20451","v":"Select"},{"$f":"Import!E20651","v":0},{"$f":"Import!E20851","v":0},{"$f":"Import!E21051","v":0}]
[137,{"$f":"Import!E20052","v":"Select"},{"$f":"Import!E20252","v":"Select"},{"$f":"Import!E20452","v":"Select"},{"$f":"Import!E20652","v":0},{"$f":"Import!E20852","v":0},{"$f":"Import!E21052","v":0}]
[138,{"$f":"Import!E20053","v":"Select"},{"$f":"Import!E20253","v":"Select"},{"$f":"Import!E20453","v":"Select"},{"$f":"Import!E20653","v":0},{"$f":"Import!E20853","v":0},{"$f":"Import!E21053","v":0}]
[139,{"$f":"Import!E20054","v":"Select"},{"$f":"Import!E20254","v":"Select"},{"$f":"Import!E20454","v":"Select"},{"$f":"Import!E20654","v":0},{"$f":"Import!E20854","v":0},{"$f":"Import!E21054","v":0}]
[140,{"$f":"Import!E20055","v":"Select"},{"$f":"Import!E20255","v":"Select"},{"$f":"Import!E20455","v":"Select"},{"$f":"Import!E20655","v":0},{"$f":"Import!E20855","v":0},{"$f":"Import!E21055","v":0}]
[141,{"$f":"Import!E20056","v":"Select"},{"$f":"Import!E20256","v":"Select"},{"$f":"Import!E20456","v":"Select"},{"$f":"Import!E20656","v":0},{"$f":"Import!E20856","v":0},{"$f":"Import!E21056","v":0}]
[142,{"$f":"Import!E20057","v":"Select"},{"$f":"Import!E20257","v":"Select"},{"$f":"Import!E20457","v":"Select"},{"$f":"Import!E20657","v":0},{"$f":"Import!E20857","v":0},{"$f":"Import!E21057","v":0}]
[143,{"$f":"Import!E20058","v":"Select"},{"$f":"Import!E20258","v":"Select"},{"$f":"Import!E20458","v":"Select"},{"$f":"Import!E20658","v":0},{"$f":"Import!E20858","v":0},{"$f":"Import!E21058","v":0}]
[144,{"$f":"Import!E20059","v":"Select"},{"$f":"Import!E20259","v":"Select"},{"$f":"Import!E20459","v":"Select"},{"$f":"Import!E20659","v":0},{"$f":"Import!E20859","v":0},{"$f":"Import!E21059","v":0}]
[145,{"$f":"Import!E20060","v":"Select"},{"$f":"Import!E20260","v":"Select"},{"$f":"Import!E20460","v":"Select"},{"$f":"Import!E20660","v":0},{"$f":"Import!E20860","v":0},{"$f":"Import!E21060","v":0}]
[146,{"$f":"Import!E20061","v":"Select"},{"$f":"Import!E20261","v":"Select"},{"$f":"Import!E20461","v":"Select"},{"$f":"Import!E20661","v":0},{"$f":"Import!E20861","v":0},{"$f":"Import!E21061","v":0}]
[147,{"$f":"Import!E20062","v":"Select"},{"$f":"Import!E20262","v":"Select"},{"$f":"Import!E20462","v":"Select"},{"$f":"Import!E20662","v":0},{"$f":"Import!E20862","v":0},{"$f":"Import!E21062","v":0}]
[148,{"$f":"Import!E20063","v":"Select"},{"$f":"Import!E20263","v":"Select"},{"$f":"Import!E20463","v":"Select"},{"$f":"Import!E20663","v":0},{"$f":"Import!E20863","v":0},{"$f":"Import!E21063","v":0}]
[149,{"$f":"Import!E20064","v":"Select"},{"$f":"Import!E20264","v":"Select"},{"$f":"Import!E20464","v":"Select"},{"$f":"Import!E20664","v":0},{"$f":"Import!E20864","v":0},{"$f":"Import!E21064","v":0}]
[150,{"$f":"Import!E20065","v":"Select"},{"$f":"Import!E20265","v":"Select"},{"$f":"Import!E20465","v":"Select"},{"$f":"Import!E20665","v":0},{"$f":"Import!E20865","v":0},{"$f":"Import!E21065","v":0}]
[151,{"$f":"Import!E20066","v":"Select"},{"$f":"Import!E20266","v":"Select"},{"$f":"Import!E20466","v":"Select"},{"$f":"Import!E20666","v":0},{"$f":"Import!E20866","v":0},{"$f":"Import!E21066","v":0}]
[152,{"$f":"Import!E20067","v":"Select"},{"$f":"Import!E20267","v":"Select"},{"$f":"Import!E20467","v":"Select"},{"$f":"Import!E20667","v":0},{"$f":"Import!E20867","v":0},{"$f":"Import!E21067","v":0}]
[153,{"$f":"Import!E20068","v":"Select"},{"$f":"Import!E20268","v":"Select"},{"$f":"Import!E20468","v":"Select"},{"$f":"Import!E20668","v":0},{"$f":"Import!E20868","v":0},{"$f":"Import!E21068","v":0}]
[154,{"$f":"Import!E20069","v":"Select"},{"$f":"Import!E20269","v":"Select"},{"$f":"Import!E20469","v":"Select"},{"$f":"Import!E20669","v":0},{"$f":"Import!E20869","v":0},{"$f":"Import!E21069","v":0}]
[155,{"$f":"Import!E20070","v":"Select"},{"$f":"Import!E20270","v":"Select"},{"$f":"Import!E20470","v":"Select"},{"$f":"Import!E20670","v":0},{"$f":"Import!E20870","v":0},{"$f":"Import!E21070","v":0}]
[156,{"$f":"Import!E20071","v":"Select"},{"$f":"Import!E20271","v":"Select"},{"$f":"Import!E20471","v":"Select"},{"$f":"Import!E20671","v":0},{"$f":"Import!E20871","v":0},{"$f":"Import!E21071","v":0}]
[157,{"$f":"Import!E20072","v":"Select"},{"$f":"Import!E20272","v":"Select"},{"$f":"Import!E20472","v":"Select"},{"$f":"Import!E20672","v":0},{"$f":"Import!E20872","v":0},{"$f":"Import!E21072","v":0}]
[158,{"$f":"Import!E20073","v":"Select"},{"$f":"Import!E20273","v":"Select"},{"$f":"Import!E20473","v":"Select"},{"$f":"Import!E20673","v":0},{"$f":"Import!E20873","v":0},{"$f":"Import!E21073","v":0}]
[159,{"$f":"Import!E20074","v":"Select"},{"$f":"Import!E20274","v":"Select"},{"$f":"Import!E20474","v":"Select"},{"$f":"Import!E20674","v":0},{"$f":"Import!E20874","v":0},{"$f":"Import!E21074","v":0}]
[160,{"$f":"Import!E20075","v":"Select"},{"$f":"Import!E20275","v":"Select"},{"$f":"Import!E20475","v":"Select"},{"$f":"Import!E20675","v":0},{"$f":"Import!E20875","v":0},{"$f":"Import!E21075","v":0}]
[161,{"$f":"Import!E20076","v":"Select"},{"$f":"Import!E20276","v":"Select"},{"$f":"Import!E20476","v":"Select"},{"$f":"Import!E20676","v":0},{"$f":"Import!E20876","v":0},{"$f":"Import!E21076","v":0}]
[162,{"$f":"Import!E20077","v":"Select"},{"$f":"Import!E20277","v":"Select"},{"$f":"Import!E20477","v":"Select"},{"$f":"Import!E20677","v":0},{"$f":"Import!E20877","v":0},{"$f":"Import!E21077","v":0}]
[163,{"$f":"Import!E20078","v":"Select"},{"$f":"Import!E20278","v":"Select"},{"$f":"Import!E20478","v":"Select"},{"$f":"Import!E20678","v":0},{"$f":"Import!E20878","v":0},{"$f":"Import!E21078","v":0}]
[164,{"$f":"Import!E20079","v":"Select"},{"$f":"Import!E20279","v":"Select"},{"$f":"Import!E20479","v":"Select"},{"$f":"Import!E20679","v":0},{"$f":"Import!E20879","v":0},{"$f":"Import!E21079","v":0}]
[165,{"$f":"Import!E20080","v":"Select"},{"$f":"Import!E20280","v":"Select"},{"$f":"Import!E20480","v":"Select"},{"$f":"Import!E20680","v":0},{"$f":"Import!E20880","v":0},{"$f":"Import!E21080","v":0}]
[166,{"$f":"Import!E20081","v":"Select"},{"$f":"Import!E20281","v":"Select"},{"$f":"Import!E20481","v":"Select"},{"$f":"Import!E20681","v":0},{"$f":"Import!E20881","v":0},{"$f":"Import!E21081","v":0}]
[167,{"$f":"Import!E20082","v":"Select"},{"$f":"Import!E20282","v":"Select"},{"$f":"Import!E20482","v":"Select"},{"$f":"Import!E20682","v":0},{"$f":"Import!E20882","v":0},{"$f":"Import!E21082","v":0}]
[168,{"$f":"Import!E20083","v":"Select"},{"$f":"Import!E20283","v":"Select"},{"$f":"Import!E20483","v":"Select"},{"$f":"Import!E20683","v":0},{"$f":"Import!E20883","v":0},{"$f":"Import!E21083","v":0}]
[169,{"$f":"Import!E20084","v":"Select"},{"$f":"Import!E20284","v":"Select"},{"$f":"Import!E20484","v":"Select"},{"$f":"Import!E20684","v":0},{"$f":"Import!E20884","v":0},{"$f":"Import!E21084","v":0}]
[170,{"$f":"Import!E20085","v":"Select"},{"$f":"Import!E20285","v":"Select"},{"$f":"Import!E20485","v":"Select"},{"$f":"Import!E20685","v":0},{"$f":"Import!E20885","v":0},{"$f":"Import!E21085","v":0}]
[171,{"$f":"Import!E20086","v":"Select"},{"$f":"Import!E20286","v":"Select"},{"$f":"Import!E20486","v":"Select"},{"$f":"Import!E20686","v":0},{"$f":"Import!E20886","v":0},{"$f":"Import!E21086","v":0}]
[172,{"$f":"Import!E20087","v":"Select"},{"$f":"Import!E20287","v":"Select"},{"$f":"Import!E20487","v":"Select"},{"$f":"Import!E20687","v":0},{"$f":"Import!E20887","v":0},{"$f":"Import!E21087","v":0}]
[173,{"$f":"Import!E20088","v":"Select"},{"$f":"Import!E20288","v":"Select"},{"$f":"Import!E20488","v":"Select"},{"$f":"Import!E20688","v":0},{"$f":"Import!E20888","v":0},{"$f":"Import!E21088","v":0}]
[174,{"$f":"Import!E20089","v":"Select"},{"$f":"Import!E20289","v":"Select"},{"$f":"Import!E20489","v":"Select"},{"$f":"Import!E20689","v":0},{"$f":"Import!E20889","v":0},{"$f":"Import!E21089","v":0}]
[175,{"$f":"Import!E20090","v":"Select"},{"$f":"Import!E20290","v":"Select"},{"$f":"Import!E20490","v":"Select"},{"$f":"Import!E20690","v":0},{"$f":"Import!E20890","v":0},{"$f":"Import!E21090","v":0}]
[176,{"$f":"Import!E20091","v":"Select"},{"$f":"Import!E20291","v":"Select"},{"$f":"Import!E20491","v":"Select"},{"$f":"Import!E20691","v":0},{"$f":"Import!E20891","v":0},{"$f":"Import!E21091","v":0}]
[177,{"$f":"Import!E20092","v":"Select"},{"$f":"Import!E20292","v":"Select"},{"$f":"Import!E20492","v":"Select"},{"$f":"Import!E20692","v":0},{"$f":"Import!E20892","v":0},{"$f":"Import!E21092","v":0}]
[178,{"$f":"Import!E20093","v":"Select"},{"$f":"Import!E20293","v":"Select"},{"$f":"Import!E20493","v":"Select"},{"$f":"Import!E20693","v":0},{"$f":"Import!E20893","v":0},{"$f":"Import!E21093","v":0}]
[179,{"$f":"Import!E20094","v":"Select"},{"$f":"Import!E20294","v":"Select"},{"$f":"Import!E20494","v":"Select"},{"$f":"Import!E20694","v":0},{"$f":"Import!E20894","v":0},{"$f":"Import!E21094","v":0}]
[180,{"$f":"Import!E20095","v":"Select"},{"$f":"Import!E20295","v":"Select"},{"$f":"Import!E20495","v":"Select"},{"$f":"Import!E20695","v":0},{"$f":"Import!E20895","v":0},{"$f":"Import!E21095","v":0}]
[181,{"$f":"Import!E20096","v":"Select"},{"$f":"Import!E20296","v":"Select"},{"$f":"Import!E20496","v":"Select"},{"$f":"Import!E20696","v":0},{"$f":"Import!E20896","v":0},{"$f":"Import!E21096","v":0}]
[182,{"$f":"Import!E20097","v":"Select"},{"$f":"Import!E20297","v":"Select"},{"$f":"Import!E20497","v":"Select"},{"$f":"Import!E20697","v":0},{"$f":"Import!E20897","v":0},{"$f":"Import!E21097","v":0}]
[183,{"$f":"Import!E20098","v":"Select"},{"$f":"Import!E20298","v":"Select"},{"$f":"Import!E20498","v":"Select"},{"$f":"Import!E20698","v":0},{"$f":"Import!E20898","v":0},{"$f":"Import!E21098","v":0}]
[184,{"$f":"Import!E20099","v":"Select"},{"$f":"Import!E20299","v":"Select"},{"$f":"Import!E20499","v":"Select"},{"$f":"Import!E20699","v":0},{"$f":"Import!E20899","v":0},{"$f":"Import!E21099","v":0}]
[185,{"$f":"Import!E20100","v":"Select"},{"$f":"Import!E20300","v":"Select"},{"$f":"Import!E20500","v":"Select"},{"$f":"Import!E20700","v":0},{"$f":"Import!E20900","v":0},{"$f":"Import!E21100","v":0}]
[186,{"$f":"Import!E20101","v":"Select"},{"$f":"Import!E20301","v":"Select"},{"$f":"Import!E20501","v":"Select"},{"$f":"Import!E20701","v":0},{"$f":"Import!E20901","v":0},{"$f":"Import!E21101","v":0}]
[187,{"$f":"Import!E20102","v":"Select"},{"$f":"Import!E20302","v":"Select"},{"$f":"Import!E20502","v":"Select"},{"$f":"Import!E20702","v":0},{"$f":"Import!E20902","v":0},{"$f":"Import!E21102","v":0}]
[188,{"$f":"Import!E20103","v":"Select"},{"$f":"Import!E20303","v":"Select"},{"$f":"Import!E20503","v":"Select"},{"$f":"Import!E20703","v":0},{"$f":"Import!E20903","v":0},{"$f":"Import!E21103","v":0}]
[189,{"$f":"Import!E20104","v":"Select"},{"$f":"Import!E20304","v":"Select"},{"$f":"Import!E20504","v":"Select"},{"$f":"Import!E20704","v":0},{"$f":"Import!E20904","v":0},{"$f":"Import!E21104","v":0}]
[190,{"$f":"Import!E20105","v":"Select"},{"$f":"Import!E20305","v":"Select"},{"$f":"Import!E20505","v":"Select"},{"$f":"Import!E20705","v":0},{"$f":"Import!E20905","v":0},{"$f":"Import!E21105","v":0}]
[191,{"$f":"Import!E20106","v":"Select"},{"$f":"Import!E20306","v":"Select"},{"$f":"Import!E20506","v":"Select"},{"$f":"Import!E20706","v":0},{"$f":"Import!E20906","v":0},{"$f":"Import!E21106","v":0}]
[192,{"$f":"Import!E20107","v":"Select"},{"$f":"Import!E20307","v":"Select"},{"$f":"Import!E20507","v":"Select"},{"$f":"Import!E20707","v":0},{"$f":"Import!E20907","v":0},{"$f":"Import!E21107","v":0}]
[193,{"$f":"Import!E20108","v":"Select"},{"$f":"Import!E20308","v":"Select"},{"$f":"Import!E20508","v":"Select"},{"$f":"Import!E20708","v":0},{"$f":"Import!E20908","v":0},{"$f":"Import!E21108","v":0}]
[194,{"$f":"Import!E20109","v":"Select"},{"$f":"Import!E20309","v":"Select"},{"$f":"Import!E20509","v":"Select"},{"$f":"Import!E20709","v":0},{"$f":"Import!E20909","v":0},{"$f":"Import!E21109","v":0}]
[{"$f":"A204+1","v":195},{"$f":"Import!E20110","v":"Select"},{"$f":"Import!E20310","v":"Select"},{"$f":"Import!E20510","v":"Select"},{"$f":"Import!E20710","v":0},{"$f":"Import!E20910","v":0},{"$f":"Import!E21110","v":0}]
[196,{"$f":"Import!E20111","v":"Select"},{"$f":"Import!E20311","v":"Select"},{"$f":"Import!E20511","v":"Select"},{"$f":"Import!E20711","v":0},{"$f":"Import!E20911","v":0},{"$f":"Import!E21111","v":0}]
[197,{"$f":"Import!E20112","v":"Select"},{"$f":"Import!E20312","v":"Select"},{"$f":"Import!E20512","v":"Select"},{"$f":"Import!E20712","v":0},{"$f":"Import!E20912","v":0},{"$f":"Import!E21112","v":0}]
[198,{"$f":"Import!E20113","v":"Select"},{"$f":"Import!E20313","v":"Select"},{"$f":"Import!E20513","v":"Select"},{"$f":"Import!E20713","v":0},{"$f":"Import!E20913","v":0},{"$f":"Import!E21113","v":0}]
[199,{"$f":"Import!E20114","v":"Select"},{"$f":"Import!E20314","v":"Select"},{"$f":"Import!E20514","v":"Select"},{"$f":"Import!E20714","v":0},{"$f":"Import!E20914","v":0},{"$f":"Import!E21114","v":0}]
[200,{"$f":"Import!E20115","v":"Select"},{"$f":"Import!E20315","v":"Select"},{"$f":"Import!E20515","v":"Select"},{"$f":"Import!E20715","v":0},{"$f":"Import!E20915","v":0},{"$f":"Import!E21115","v":0}]
[]
[null,"Total Cash and Cash Equivalents",null,null,{"$f":"SUM(E11:E210)","v":0},{"$f":"SUM(F11:F210)","v":0}]
[]
[null,"(B) BONDS AND DEBENTURES"]
[]
[null,null,"Enter # of Asset Types",{"$f":"Import!E21116","v":0}]
[null,null,null,null,{"$f":"YEAR($C$3)","v":2023},2023,"Weighted"]
[null,"Asset Type","Currency","BSCR Rating","Nominal Amount","Fair Value","Average YTM","Effective Duration","Comments"]
[1,{"$f":"Import!E21117","v":"Select"},{"$f":"Import!E21517","v":"Select"},{"$f":"Import!E21917","v":"Select"},{"$f":"Import!E22317","v":0},{"$f":"Import!E22717","v":0},{"$f":"Import!E23117","v":0},{"$f":"Import!E23517","v":0},{"$f":"Import!E23917","v":0}]
[{"$f":"A219+1","v":2},{"$f":"Import!E21118","v":"Select"},{"$f":"Import!E21518","v":"Select"},{"$f":"Import!E21918","v":"Select"},{"$f":"Import!E22318","v":0},{"$f":"Import!E22718","v":0},{"$f":"Import!E23118","v":0},{"$f":"Import!E23518","v":0},{"$f":"Import!E23918","v":0}]
[{"$f":"A220+1","v":3},{"$f":"Import!E21119","v":"Select"},{"$f":"Import!E21519","v":"Select"},{"$f":"Import!E21919","v":"Select"},{"$f":"Import!E22319","v":0},{"$f":"Import!E22719","v":0},{"$f":"Import!E23119","v":0},{"$f":"Import!E23519","v":0},{"$f":"Import!E23919","v":0}]
[4,{"$f":"Import!E21120","v":"Select"},{"$f":"Import!E21520","v":"Select"},{"$f":"Import!E21920","v":"Select"},{"$f":"Import!E22320","v":0},{"$f":"Import!E22720","v":0},{"$f":"Import!E23120","v":0},{"$f":"Import!E23520","v":0},{"$f":"Import!E23920","v":0}]
[5,{"$f":"Import!E21121","v":"Select"},{"$f":"Import!E21521","v":"Select"},{"$f":"Import!E21921","v":"Select"},{"$f":"Import!E22321","v":0},{"$f":"Import!E22721","v":0},{"$f":"Import!E23121","v":0},{"$f":"Import!E23521","v":0},{"$f":"Import!E23921","v":0}]
[6,{"$f":"Import!E21122","v":"Select"},{"$f":"Import!E21522","v":"Select"},{"$f":"Import!E21922","v":"Select"},{"$f":"Import!E22322","v":0},{"$f":"Import!E22722","v":0},{"$f":"Import!E23122","v":0},{"$f":"Import!E23522","v":0},{"$f":"Import!E23922","v":0}]
[7,{"$f":"Import!E21123","v":"Select"},{"$f":"Import!E21523","v":"Select"},{"$f":"Import!E21923","v":"Select"},{"$f":"Import!E22323","v":0},{"$f":"Import!E22723","v":0},{"$f":"Import!E23123","v":0},{"$f":"Import!E23523","v":0},{"$f":"Import!E23923","v":0}]
[8,{"$f":"Import!E21124","v":"Select"},{"$f":"Import!E21524","v":"Select"},{"$f":"Import!E21924","v":"Select"},{"$f":"Import!E22324","v":0},{"$f":"Import!E22724","v":0},{"$f":"Import!E23124","v":0},{"$f":"Import!E23524","v":0},{"$f":"Import!E23924","v":0}]
[9,{"$f":"Import!E21125","v":"Select"},{"$f":"Import!E21525","v":"Select"},{"$f":"Import!E21925","v":"Select"},{"$f":"Import!E22325","v":0},{"$f":"Import!E22725","v":0},{"$f":"Import!E23125","v":0},{"$f":"Import!E23525","v":0},{"$f":"Import!E23925","v":0}]
[10,{"$f":"Import!E21126","v":"Select"},{"$f":"Import!E21526","v":"Select"},{"$f":"Import!E21926","v":"Select"},{"$f":"Import!E22326","v":0},{"$f":"Import!E22726","v":0},{"$f":"Import!E23126","v":0},{"$f":"Import!E23526","v":0},{"$f":"Import!E23926","v":0}]
[11,{"$f":"Import!E21127","v":"Select"},{"$f":"Import!E21527","v":"Select"},{"$f":"Import!E21927","v":"Select"},{"$f":"Import!E22327","v":0},{"$f":"Import!E22727","v":0},{"$f":"Import!E23127","v":0},{"$f":"Import!E23527","v":0},{"$f":"Import!E23927","v":0}]
[12,{"$f":"Import!E21128","v":"Select"},{"$f":"Import!E21528","v":"Select"},{"$f":"Import!E21928","v":"Select"},{"$f":"Import!E22328","v":0},{"$f":"Import!E22728","v":0},{"$f":"Import!E23128","v":0},{"$f":"Import!E23528","v":0},{"$f":"Import!E23928","v":0}]
[13,{"$f":"Import!E21129","v":"Select"},{"$f":"Import!E21529","v":"Select"},{"$f":"Import!E21929","v":"Select"},{"$f":"Import!E22329","v":0},{"$f":"Import!E22729","v":0},{"$f":"Import!E23129","v":0},{"$f":"Import!E23529","v":0},{"$f":"Import!E23929","v":0}]
[14,{"$f":"Import!E21130","v":"Select"},{"$f":"Import!E21530","v":"Select"},{"$f":"Import!E21930","v":"Select"},{"$f":"Import!E22330","v":0},{"$f":"Import!E22730","v":0},{"$f":"Import!E23130","v":0},{"$f":"Import!E23530","v":0},{"$f":"Import!E23930","v":0}]
[15,{"$f":"Import!E21131","v":"Select"},{"$f":"Import!E21531","v":"Select"},{"$f":"Import!E21931","v":"Select"},{"$f":"Import!E22331","v":0},{"$f":"Import!E22731","v":0},{"$f":"Import!E23131","v":0},{"$f":"Import!E23531","v":0},{"$f":"Import!E23931","v":0}]
[16,{"$f":"Import!E21132","v":"Select"},{"$f":"Import!E21532","v":"Select"},{"$f":"Import!E21932","v":"Select"},{"$f":"Import!E22332","v":0},{"$f":"Import!E22732","v":0},{"$f":"Import!E23132","v":0},{"$f":"Import!E23532","v":0},{"$f":"Import!E23932","v":0}]
[17,{"$f":"Import!E21133","v":"Select"},{"$f":"Import!E21533","v":"Select"},{"$f":"Import!E21933","v":"Select"},{"$f":"Import!E22333","v":0},{"$f":"Import!E22733","v":0},{"$f":"Import!E23133","v":0},{"$f":"Import!E23533","v":0},{"$f":"Import!E23933","v":0}]
[18,{"$f":"Import!E21134","v":"Select"},{"$f":"Import!E21534","v":"Select"},{"$f":"Import!E21934","v":"Select"},{"$f":"Import!E22334","v":0},{"$f":"Import!E22734","v":0},{"$f":"Import!E23134","v":0},{"$f":"Import!E23534","v":0},{"$f":"Import!E23934","v":0}]
[19,{"$f":"Import!E21135","v":"Select"},{"$f":"Import!E21535","v":"Select"},{"$f":"Import!E21935","v":"Select"},{"$f":"Import!E22335","v":0},{"$f":"Import!E22735","v":0},{"$f":"Import!E23135","v":0},{"$f":"Import!E23535","v":0},{"$f":"Import!E23935","v":0}]
[20,{"$f":"Import!E21136","v":"Select"},{"$f":"Import!E21536","v":"Select"},{"$f":"Import!E21936","v":"Select"},{"$f":"Import!E22336","v":0},{"$f":"Import!E22736","v":0},{"$f":"Import!E23136","v":0},{"$f":"Import!E23536","v":0},{"$f":"Import!E23936","v":0}]
[21,{"$f":"Import!E21137","v":"Select"},{"$f":"Import!E21537","v":"Select"},{"$f":"Import!E21937","v":"Select"},{"$f":"Import!E22337","v":0},{"$f":"Import!E22737","v":0},{"$f":"Import!E23137","v":0},{"$f":"Import!E23537","v":0},{"$f":"Import!E23937","v":0}]
[22,{"$f":"Import!E21138","v":"Select"},{"$f":"Import!E21538","v":"Select"},{"$f":"Import!E21938","v":"Select"},{"$f":"Import!E22338","v":0},{"$f":"Import!E22738","v":0},{"$f":"Import!E23138","v":0},{"$f":"Import!E23538","v":0},{"$f":"Import!E23938","v":0}]
[23,{"$f":"Import!E21139","v":"Select"},{"$f":"Import!E21539","v":"Select"},{"$f":"Import!E21939","v":"Select"},{"$f":"Import!E22339","v":0},{"$f":"Import!E22739","v":0},{"$f":"Import!E23139","v":0},{"$f":"Import!E23539","v":0},{"$f":"Import!E23939","v":0}]
[24,{"$f":"Import!E21140","v":"Select"},{"$f":"Import!E21540","v":"Select"},{"$f":"Import!E21940","v":"Select"},{"$f":"Import!E22340","v":0},{"$f":"Import!E22740","v":0},{"$f":"Import!E23140","v":0},{"$f":"Import!E23540","v":0},{"$f":"Import!E23940","v":0}]
[25,{"$f":"Import!E21141","v":"Select"},{"$f":"Import!E21541","v":"Select"},{"$f":"Import!E21941","v":"Select"},{"$f":"Import!E22341","v":0},{"$f":"Import!E22741","v":0},{"$f":"Import!E23141","v":0},{"$f":"Import!E23541","v":0},{"$f":"Import!E23941","v":0}]
[26,{"$f":"Import!E21142","v":"Select"},{"$f":"Import!E21542","v":"Select"},{"$f":"Import!E21942","v":"Select"},{"$f":"Import!E22342","v":0},{"$f":"Import!E22742","v":0},{"$f":"Import!E23142","v":0},{"$f":"Import!E23542","v":0},{"$f":"Import!E23942","v":0}]
[27,{"$f":"Import!E21143","v":"Select"},{"$f":"Import!E21543","v":"Select"},{"$f":"Import!E21943","v":"Select"},{"$f":"Import!E22343","v":0},{"$f":"Import!E22743","v":0},{"$f":"Import!E23143","v":0},{"$f":"Import!E23543","v":0},{"$f":"Import!E23943","v":0}]
[28,{"$f":"Import!E21144","v":"Select"},{"$f":"Import!E21544","v":"Select"},{"$f":"Import!E21944","v":"Select"},{"$f":"Import!E22344","v":0},{"$f":"Import!E22744","v":0},{"$f":"Import!E23144","v":0},{"$f":"Import!E23544","v":0},{"$f":"Import!E23944","v":0}]
[29,{"$f":"Import!E21145","v":"Select"},{"$f":"Import!E21545","v":"Select"},{"$f":"Import!E21945","v":"Select"},{"$f":"Import!E22345","v":0},{"$f":"Import!E22745","v":0},{"$f":"Import!E23145","v":0},{"$f":"Import!E23545","v":0},{"$f":"Import!E23945","v":0}]
[30,{"$f":"Import!E21146","v":"Select"},{"$f":"Import!E21546","v":"Select"},{"$f":"Import!E21946","v":"Select"},{"$f":"Import!E22346","v":0},{"$f":"Import!E22746","v":0},{"$f":"Import!E23146","v":0},{"$f":"Import!E23546","v":0},{"$f":"Import!E23946","v":0}]
[31,{"$f":"Import!E21147","v":"Select"},{"$f":"Import!E21547","v":"Select"},{"$f":"Import!E21947","v":"Select"},{"$f":"Import!E22347","v":0},{"$f":"Import!E22747","v":0},{"$f":"Import!E23147","v":0},{"$f":"Import!E23547","v":0},{"$f":"Import!E23947","v":0}]
[32,{"$f":"Import!E21148","v":"Select"},{"$f":"Import!E21548","v":"Select"},{"$f":"Import!E21948","v":"Select"},{"$f":"Import!E22348","v":0},{"$f":"Import!E22748","v":0},{"$f":"Import!E23148","v":0},{"$f":"Import!E23548","v":0},{"$f":"Import!E23948","v":0}]
[33,{"$f":"Import!E21149","v":"Select"},{"$f":"Import!E21549","v":"Select"},{"$f":"Import!E21949","v":"Select"},{"$f":"Import!E22349","v":0},{"$f":"Import!E22749","v":0},{"$f":"Import!E23149","v":0},{"$f":"Import!E23549","v":0},{"$f":"Import!E23949","v":0}]
[34,{"$f":"Import!E21150","v":"Select"},{"$f":"Import!E21550","v":"Select"},{"$f":"Import!E21950","v":"Select"},{"$f":"Import!E22350","v":0},{"$f":"Import!E22750","v":0},{"$f":"Import!E23150","v":0},{"$f":"Import!E23550","v":0},{"$f":"Import!E23950","v":0}]
[35,{"$f":"Import!E21151","v":"Select"},{"$f":"Import!E21551","v":"Select"},{"$f":"Import!E21951","v":"Select"},{"$f":"Import!E22351","v":0},{"$f":"Import!E22751","v":0},{"$f":"Import!E23151","v":0},{"$f":"Import!E23551","v":0},{"$f":"Import!E23951","v":0}]
[36,{"$f":"Import!E21152","v":"Select"},{"$f":"Import!E21552","v":"Select"},{"$f":"Import!E21952","v":"Select"},{"$f":"Import!E22352","v":0},{"$f":"Import!E22752","v":0},{"$f":"Import!E23152","v":0},{"$f":"Import!E23552","v":0},{"$f":"Import!E23952","v":0}]
[37,{"$f":"Import!E21153","v":"Select"},{"$f":"Import!E21553","v":"Select"},{"$f":"Import!E21953","v":"Select"},{"$f":"Import!E22353","v":0},{"$f":"Import!E22753","v":0},{"$f":"Import!E23153","v":0},{"$f":"Import!E23553","v":0},{"$f":"Import!E23953","v":0}]
[38,{"$f":"Import!E21154","v":"Select"},{"$f":"Import!E21554","v":"Select"},{"$f":"Import!E21954","v":"Select"},{"$f":"Import!E22354","v":0},{"$f":"Import!E22754","v":0},{"$f":"Import!E23154","v":0},{"$f":"Import!E23554","v":0},{"$f":"Import!E23954","v":0}]
[39,{"$f":"Import!E21155","v":"Select"},{"$f":"Import!E21555","v":"Select"},{"$f":"Import!E21955","v":"Select"},{"$f":"Import!E22355","v":0},{"$f":"Import!E22755","v":0},{"$f":"Import!E23155","v":0},{"$f":"Import!E23555","v":0},{"$f":"Import!E23955","v":0}]
[40,{"$f":"Import!E21156","v":"Select"},{"$f":"Import!E21556","v":"Select"},{"$f":"Import!E21956","v":"Select"},{"$f":"Import!E22356","v":0},{"$f":"Import!E22756","v":0},{"$f":"Import!E23156","v":0},{"$f":"Import!E23556","v":0},{"$f":"Import!E23956","v":0}]
[41,{"$f":"Import!E21157","v":"Select"},{"$f":"Import!E21557","v":"Select"},{"$f":"Import!E21957","v":"Select"},{"$f":"Import!E22357","v":0},{"$f":"Import!E22757","v":0},{"$f":"Import!E23157","v":0},{"$f":"Import!E23557","v":0},{"$f":"Import!E23957","v":0}]
[42,{"$f":"Import!E21158","v":"Select"},{"$f":"Import!E21558","v":"Select"},{"$f":"Import!E21958","v":"Select"},{"$f":"Import!E22358","v":0},{"$f":"Import!E22758","v":0},{"$f":"Import!E23158","v":0},{"$f":"Import!E23558","v":0},{"$f":"Import!E23958","v":0}]
[43,{"$f":"Import!E21159","v":"Select"},{"$f":"Import!E21559","v":"Select"},{"$f":"Import!E21959","v":"Select"},{"$f":"Import!E22359","v":0},{"$f":"Import!E22759","v":0},{"$f":"Import!E23159","v":0},{"$f":"Import!E23559","v":0},{"$f":"Import!E23959","v":0}]
[44,{"$f":"Import!E21160","v":"Select"},{"$f":"Import!E21560","v":"Select"},{"$f":"Import!E21960","v":"Select"},{"$f":"Import!E22360","v":0},{"$f":"Import!E22760","v":0},{"$f":"Import!E23160","v":0},{"$f":"Import!E23560","v":0},{"$f":"Import!E23960","v":0}]
[45,{"$f":"Import!E21161","v":"Select"},{"$f":"Import!E21561","v":"Select"},{"$f":"Import!E21961","v":"Select"},{"$f":"Import!E22361","v":0},{"$f":"Import!E22761","v":0},{"$f":"Import!E23161","v":0},{"$f":"Import!E23561","v":0},{"$f":"Import!E23961","v":0}]
[46,{"$f":"Import!E21162","v":"Select"},{"$f":"Import!E21562","v":"Select"},{"$f":"Import!E21962","v":"Select"},{"$f":"Import!E22362","v":0},{"$f":"Import!E22762","v":0},{"$f":"Import!E23162","v":0},{"$f":"Import!E23562","v":0},{"$f":"Import!E23962","v":0}]
[47,{"$f":"Import!E21163","v":"Select"},{"$f":"Import!E21563","v":"Select"},{"$f":"Import!E21963","v":"Select"},{"$f":"Import!E22363","v":0},{"$f":"Import!E22763","v":0},{"$f":"Import!E23163","v":0},{"$f":"Import!E23563","v":0},{"$f":"Import!E23963","v":0}]
[48,{"$f":"Import!E21164","v":"Select"},{"$f":"Import!E21564","v":"Select"},{"$f":"Import!E21964","v":"Select"},{"$f":"Import!E22364","v":0},{"$f":"Import!E22764","v":0},{"$f":"Import!E23164","v":0},{"$f":"Import!E23564","v":0},{"$f":"Import!E23964","v":0}]
[49,{"$f":"Import!E21165","v":"Select"},{"$f":"Import!E21565","v":"Select"},{"$f":"Import!E21965","v":"Select"},{"$f":"Import!E22365","v":0},{"$f":"Import!E22765","v":0},{"$f":"Import!E23165","v":0},{"$f":"Import!E23565","v":0},{"$f":"Import!E23965","v":0}]
[50,{"$f":"Import!E21166","v":"Select"},{"$f":"Import!E21566","v":"Select"},{"$f":"Import!E21966","v":"Select"},{"$f":"Import!E22366","v":0},{"$f":"Import!E22766","v":0},{"$f":"Import!E23166","v":0},{"$f":"Import!E23566","v":0},{"$f":"Import!E23966","v":0}]
[51,{"$f":"Import!E21167","v":"Select"},{"$f":"Import!E21567","v":"Select"},{"$f":"Import!E21967","v":"Select"},{"$f":"Import!E22367","v":0},{"$f":"Import!E22767","v":0},{"$f":"Import!E23167","v":0},{"$f":"Import!E23567","v":0},{"$f":"Import!E23967","v":0}]
[52,{"$f":"Import!E21168","v":"Select"},{"$f":"Import!E21568","v":"Select"},{"$f":"Import!E21968","v":"Select"},{"$f":"Import!E22368","v":0},{"$f":"Import!E22768","v":0},{"$f":"Import!E23168","v":0},{"$f":"Import!E23568","v":0},{"$f":"Import!E23968","v":0}]
[53,{"$f":"Import!E21169","v":"Select"},{"$f":"Import!E21569","v":"Select"},{"$f":"Import!E21969","v":"Select"},{"$f":"Import!E22369","v":0},{"$f":"Import!E22769","v":0},{"$f":"Import!E23169","v":0},{"$f":"Import!E23569","v":0},{"$f":"Import!E23969","v":0}]
[54,{"$f":"Import!E21170","v":"Select"},{"$f":"Import!E21570","v":"Select"},{"$f":"Import!E21970","v":"Select"},{"$f":"Import!E22370","v":0},{"$f":"Import!E22770","v":0},{"$f":"Import!E23170","v":0},{"$f":"Import!E23570","v":0},{"$f":"Import!E23970","v":0}]
[55,{"$f":"Import!E21171","v":"Select"},{"$f":"Import!E21571","v":"Select"},{"$f":"Import!E21971","v":"Select"},{"$f":"Import!E22371","v":0},{"$f":"Import!E22771","v":0},{"$f":"Import!E23171","v":0},{"$f":"Import!E23571","v":0},{"$f":"Import!E23971","v":0}]
[56,{"$f":"Import!E21172","v":"Select"},{"$f":"Import!E21572","v":"Select"},{"$f":"Import!E21972","v":"Select"},{"$f":"Import!E22372","v":0},{"$f":"Import!E22772","v":0},{"$f":"Import!E23172","v":0},{"$f":"Import!E23572","v":0},{"$f":"Import!E23972","v":0}]
[57,{"$f":"Import!E21173","v":"Select"},{"$f":"Import!E21573","v":"Select"},{"$f":"Import!E21973","v":"Select"},{"$f":"Import!E22373","v":0},{"$f":"Import!E22773","v":0},{"$f":"Import!E23173","v":0},{"$f":"Import!E23573","v":0},{"$f":"Import!E23973","v":0}]
[58,{"$f":"Import!E21174","v":"Select"},{"$f":"Import!E21574","v":"Select"},{"$f":"Import!E21974","v":"Select"},{"$f":"Import!E22374","v":0},{"$f":"Import!E22774","v":0},{"$f":"Import!E23174","v":0},{"$f":"Import!E23574","v":0},{"$f":"Import!E23974","v":0}]
[59,{"$f":"Import!E21175","v":"Select"},{"$f":"Import!E21575","v":"Select"},{"$f":"Import!E21975","v":"Select"},{"$f":"Import!E22375","v":0},{"$f":"Import!E22775","v":0},{"$f":"Import!E23175","v":0},{"$f":"Import!E23575","v":0},{"$f":"Import!E23975","v":0}]
[60,{"$f":"Import!E21176","v":"Select"},{"$f":"Import!E21576","v":"Select"},{"$f":"Import!E21976","v":"Select"},{"$f":"Import!E22376","v":0},{"$f":"Import!E22776","v":0},{"$f":"Import!E23176","v":0},{"$f":"Import!E23576","v":0},{"$f":"Import!E23976","v":0}]
[61,{"$f":"Import!E21177","v":"Select"},{"$f":"Import!E21577","v":"Select"},{"$f":"Import!E21977","v":"Select"},{"$f":"Import!E22377","v":0},{"$f":"Import!E22777","v":0},{"$f":"Import!E23177","v":0},{"$f":"Import!E23577","v":0},{"$f":"Import!E23977","v":0}]
[62,{"$f":"Import!E21178","v":"Select"},{"$f":"Import!E21578","v":"Select"},{"$f":"Import!E21978","v":"Select"},{"$f":"Import!E22378","v":0},{"$f":"Import!E22778","v":0},{"$f":"Import!E23178","v":0},{"$f":"Import!E23578","v":0},{"$f":"Import!E23978","v":0}]
[63,{"$f":"Import!E21179","v":"Select"},{"$f":"Import!E21579","v":"Select"},{"$f":"Import!E21979","v":"Select"},{"$f":"Import!E22379","v":0},{"$f":"Import!E22779","v":0},{"$f":"Import!E23179","v":0},{"$f":"Import!E23579","v":0},{"$f":"Import!E23979","v":0}]
[64,{"$f":"Import!E21180","v":"Select"},{"$f":"Import!E21580","v":"Select"},{"$f":"Import!E21980","v":"Select"},{"$f":"Import!E22380","v":0},{"$f":"Import!E22780","v":0},{"$f":"Import!E23180","v":0},{"$f":"Import!E23580","v":0},{"$f":"Import!E23980","v":0}]
[65,{"$f":"Import!E21181","v":"Select"},{"$f":"Import!E21581","v":"Select"},{"$f":"Import!E21981","v":"Select"},{"$f":"Import!E22381","v":0},{"$f":"Import!E22781","v":0},{"$f":"Import!E23181","v":0},{"$f":"Import!E23581","v":0},{"$f":"Import!E23981","v":0}]
[66,{"$f":"Import!E21182","v":"Select"},{"$f":"Import!E21582","v":"Select"},{"$f":"Import!E21982","v":"Select"},{"$f":"Import!E22382","v":0},{"$f":"Import!E22782","v":0},{"$f":"Import!E23182","v":0},{"$f":"Import!E23582","v":0},{"$f":"Import!E23982","v":0}]
[{"$f":"A284+1","v":67},{"$f":"Import!E21183","v":"Select"},{"$f":"Import!E21583","v":"Select"},{"$f":"Import!E21983","v":"Select"},{"$f":"Import!E22383","v":0},{"$f":"Import!E22783","v":0},{"$f":"Import!E23183","v":0},{"$f":"Import!E23583","v":0},{"$f":"Import!E23983","v":0}]
[68,{"$f":"Import!E21184","v":"Select"},{"$f":"Import!E21584","v":"Select"},{"$f":"Import!E21984","v":"Select"},{"$f":"Import!E22384","v":0},{"$f":"Import!E22784","v":0},{"$f":"Import!E23184","v":0},{"$f":"Import!E23584","v":0},{"$f":"Import!E23984","v":0}]
[69,{"$f":"Import!E21185","v":"Select"},{"$f":"Import!E21585","v":"Select"},{"$f":"Import!E21985","v":"Select"},{"$f":"Import!E22385","v":0},{"$f":"Import!E22785","v":0},{"$f":"Import!E23185","v":0},{"$f":"Import!E23585","v":0},{"$f":"Import!E23985","v":0}]
[70,{"$f":"Import!E21186","v":"Select"},{"$f":"Import!E21586","v":"Select"},{"$f":"Import!E21986","v":"Select"},{"$f":"Import!E22386","v":0},{"$f":"Import!E22786","v":0},{"$f":"Import!E23186","v":0},{"$f":"Import!E23586","v":0},{"$f":"Import!E23986","v":0}]
[71,{"$f":"Import!E21187","v":"Select"},{"$f":"Import!E21587","v":"Select"},{"$f":"Import!E21987","v":"Select"},{"$f":"Import!E22387","v":0},{"$f":"Import!E22787","v":0},{"$f":"Import!E23187","v":0},{"$f":"Import!E23587","v":0},{"$f":"Import!E23987","v":0}]
[72,{"$f":"Import!E21188","v":"Select"},{"$f":"Import!E21588","v":"Select"},{"$f":"Import!E21988","v":"Select"},{"$f":"Import!E22388","v":0},{"$f":"Import!E22788","v":0},{"$f":"Import!E23188","v":0},{"$f":"Import!E23588","v":0},{"$f":"Import!E23988","v":0}]
[73,{"$f":"Import!E21189","v":"Select"},{"$f":"Import!E21589","v":"Select"},{"$f":"Import!E21989","v":"Select"},{"$f":"Import!E22389","v":0},{"$f":"Import!E22789","v":0},{"$f":"Import!E23189","v":0},{"$f":"Import!E23589","v":0},{"$f":"Import!E23989","v":0}]
[74,{"$f":"Import!E21190","v":"Select"},{"$f":"Import!E21590","v":"Select"},{"$f":"Import!E21990","v":"Select"},{"$f":"Import!E22390","v":0},{"$f":"Import!E22790","v":0},{"$f":"Import!E23190","v":0},{"$f":"Import!E23590","v":0},{"$f":"Import!E23990","v":0}]
[75,{"$f":"Import!E21191","v":"Select"},{"$f":"Import!E21591","v":"Select"},{"$f":"Import!E21991","v":"Select"},{"$f":"Import!E22391","v":0},{"$f":"Import!E22791","v":0},{"$f":"Import!E23191","v":0},{"$f":"Import!E23591","v":0},{"$f":"Import!E23991","v":0}]
[76,{"$f":"Import!E21192","v":"Select"},{"$f":"Import!E21592","v":"Select"},{"$f":"Import!E21992","v":"Select"},{"$f":"Import!E22392","v":0},{"$f":"Import!E22792","v":0},{"$f":"Import!E23192","v":0},{"$f":"Import!E23592","v":0},{"$f":"Import!E23992","v":0}]
[77,{"$f":"Import!E21193","v":"Select"},{"$f":"Import!E21593","v":"Select"},{"$f":"Import!E21993","v":"Select"},{"$f":"Import!E22393","v":0},{"$f":"Import!E22793","v":0},{"$f":"Import!E23193","v":0},{"$f":"Import!E23593","v":0},{"$f":"Import!E23993","v":0}]
[78,{"$f":"Import!E21194","v":"Select"},{"$f":"Import!E21594","v":"Select"},{"$f":"Import!E21994","v":"Select"},{"$f":"Import!E22394","v":0},{"$f":"Import!E22794","v":0},{"$f":"Import!E23194","v":0},{"$f":"Import!E23594","v":0},{"$f":"Import!E23994","v":0}]
[79,{"$f":"Import!E21195","v":"Select"},{"$f":"Import!E21595","v":"Select"},{"$f":"Import!E21995","v":"Select"},{"$f":"Import!E22395","v":0},{"$f":"Import!E22795","v":0},{"$f":"Import!E23195","v":0},{"$f":"Import!E23595","v":0},{"$f":"Import!E23995","v":0}]
[80,{"$f":"Import!E21196","v":"Select"},{"$f":"Import!E21596","v":"Select"},{"$f":"Import!E21996","v":"Select"},{"$f":"Import!E22396","v":0},{"$f":"Import!E22796","v":0},{"$f":"Import!E23196","v":0},{"$f":"Import!E23596","v":0},{"$f":"Import!E23996","v":0}]
[81,{"$f":"Import!E21197","v":"Select"},{"$f":"Import!E21597","v":"Select"},{"$f":"Import!E21997","v":"Select"},{"$f":"Import!E22397","v":0},{"$f":"Import!E22797","v":0},{"$f":"Import!E23197","v":0},{"$f":"Import!E23597","v":0},{"$f":"Import!E23997","v":0}]
[82,{"$f":"Import!E21198","v":"Select"},{"$f":"Import!E21598","v":"Select"},{"$f":"Import!E21998","v":"Select"},{"$f":"Import!E22398","v":0},{"$f":"Import!E22798","v":0},{"$f":"Import!E23198","v":0},{"$f":"Import!E23598","v":0},{"$f":"Import!E23998","v":0}]
[83,{"$f":"Import!E21199","v":"Select"},{"$f":"Import!E21599","v":"Select"},{"$f":"Import!E21999","v":"Select"},{"$f":"Import!E22399","v":0},{"$f":"Import!E22799","v":0},{"$f":"Import!E23199","v":0},{"$f":"Import!E23599","v":0},{"$f":"Import!E23999","v":0}]
[84,{"$f":"Import!E21200","v":"Select"},{"$f":"Import!E21600","v":"Select"},{"$f":"Import!E22000","v":"Select"},{"$f":"Import!E22400","v":0},{"$f":"Import!E22800","v":0},{"$f":"Import!E23200","v":0},{"$f":"Import!E23600","v":0},{"$f":"Import!E24000","v":0}]
[85,{"$f":"Import!E21201","v":"Select"},{"$f":"Import!E21601","v":"Select"},{"$f":"Import!E22001","v":"Select"},{"$f":"Import!E22401","v":0},{"$f":"Import!E22801","v":0},{"$f":"Import!E23201","v":0},{"$f":"Import!E23601","v":0},{"$f":"Import!E24001","v":0}]
[86,{"$f":"Import!E21202","v":"Select"},{"$f":"Import!E21602","v":"Select"},{"$f":"Import!E22002","v":"Select"},{"$f":"Import!E22402","v":0},{"$f":"Import!E22802","v":0},{"$f":"Import!E23202","v":0},{"$f":"Import!E23602","v":0},{"$f":"Import!E24002","v":0}]
[87,{"$f":"Import!E21203","v":"Select"},{"$f":"Import!E21603","v":"Select"},{"$f":"Import!E22003","v":"Select"},{"$f":"Import!E22403","v":0},{"$f":"Import!E22803","v":0},{"$f":"Import!E23203","v":0},{"$f":"Import!E23603","v":0},{"$f":"Import!E24003","v":0}]
[88,{"$f":"Import!E21204","v":"Select"},{"$f":"Import!E21604","v":"Select"},{"$f":"Import!E22004","v":"Select"},{"$f":"Import!E22404","v":0},{"$f":"Import!E22804","v":0},{"$f":"Import!E23204","v":0},{"$f":"Import!E23604","v":0},{"$f":"Import!E24004","v":0}]
[89,{"$f":"Import!E21205","v":"Select"},{"$f":"Import!E21605","v":"Select"},{"$f":"Import!E22005","v":"Select"},{"$f":"Import!E22405","v":0},{"$f":"Import!E22805","v":0},{"$f":"Import!E23205","v":0},{"$f":"Import!E23605","v":0},{"$f":"Import!E24005","v":0}]
[90,{"$f":"Import!E21206","v":"Select"},{"$f":"Import!E21606","v":"Select"},{"$f":"Import!E22006","v":"Select"},{"$f":"Import!E22406","v":0},{"$f":"Import!E22806","v":0},{"$f":"Import!E23206","v":0},{"$f":"Import!E23606","v":0},{"$f":"Import!E24006","v":0}]
[91,{"$f":"Import!E21207","v":"Select"},{"$f":"Import!E21607","v":"Select"},{"$f":"Import!E22007","v":"Select"},{"$f":"Import!E22407","v":0},{"$f":"Import!E22807","v":0},{"$f":"Import!E23207","v":0},{"$f":"Import!E23607","v":0},{"$f":"Import!E24007","v":0}]
[92,{"$f":"Import!E21208","v":"Select"},{"$f":"Import!E21608","v":"Select"},{"$f":"Import!E22008","v":"Select"},{"$f":"Import!E22408","v":0},{"$f":"Import!E22808","v":0},{"$f":"Import!E23208","v":0},{"$f":"Import!E23608","v":0},{"$f":"Import!E24008","v":0}]
[93,{"$f":"Import!E21209","v":"Select"},{"$f":"Import!E21609","v":"Select"},{"$f":"Import!E22009","v":"Select"},{"$f":"Import!E22409","v":0},{"$f":"Import!E22809","v":0},{"$f":"Import!E23209","v":0},{"$f":"Import!E23609","v":0},{"$f":"Import!E24009","v":0}]
[94,{"$f":"Import!E21210","v":"Select"},{"$f":"Import!E21610","v":"Select"},{"$f":"Import!E22010","v":"Select"},{"$f":"Import!E22410","v":0},{"$f":"Import!E22810","v":0},{"$f":"Import!E23210","v":0},{"$f":"Import!E23610","v":0},{"$f":"Import!E24010","v":0}]
[95,{"$f":"Import!E21211","v":"Select"},{"$f":"Import!E21611","v":"Select"},{"$f":"Import!E22011","v":"Select"},{"$f":"Import!E22411","v":0},{"$f":"Import!E22811","v":0},{"$f":"Import!E23211","v":0},{"$f":"Import!E23611","v":0},{"$f":"Import!E24011","v":0}]
[96,{"$f":"Import!E21212","v":"Select"},{"$f":"Import!E21612","v":"Select"},{"$f":"Import!E22012","v":"Select"},{"$f":"Import!E22412","v":0},{"$f":"Import!E22812","v":0},{"$f":"Import!E23212","v":0},{"$f":"Import!E23612","v":0},{"$f":"Import!E24012","v":0}]
[97,{"$f":"Import!E21213","v":"Select"},{"$f":"Import!E21613","v":"Select"},{"$f":"Import!E22013","v":"Select"},{"$f":"Import!E22413","v":0},{"$f":"Import!E22813","v":0},{"$f":"Import!E23213","v":0},{"$f":"Import!E23613","v":0},{"$f":"Import!E24013","v":0}]
[98,{"$f":"Import!E21214","v":"Select"},{"$f":"Import!E21614","v":"Select"},{"$f":"Import!E22014","v":"Select"},{"$f":"Import!E22414","v":0},{"$f":"Import!E22814","v":0},{"$f":"Import!E23214","v":0},{"$f":"Import!E23614","v":0},{"$f":"Import!E24014","v":0}]
[99,{"$f":"Import!E21215","v":"Select"},{"$f":"Import!E21615","v":"Select"},{"$f":"Import!E22015","v":"Select"},{"$f":"Import!E22415","v":0},{"$f":"Import!E22815","v":0},{"$f":"Import!E23215","v":0},{"$f":"Import!E23615","v":0},{"$f":"Import!E24015","v":0}]
[100,{"$f":"Import!E21216","v":"Select"},{"$f":"Import!E21616","v":"Select"},{"$f":"Import!E22016","v":"Select"},{"$f":"Import!E22416","v":0},{"$f":"Import!E22816","v":0},{"$f":"Import!E23216","v":0},{"$f":"Import!E23616","v":0},{"$f":"Import!E24016","v":0}]
[101,{"$f":"Import!E21217","v":"Select"},{"$f":"Import!E21617","v":"Select"},{"$f":"Import!E22017","v":"Select"},{"$f":"Import!E22417","v":0},{"$f":"Import!E22817","v":0},{"$f":"Import!E23217","v":0},{"$f":"Import!E23617","v":0},{"$f":"Import!E24017","v":0}]
[102,{"$f":"Import!E21218","v":"Select"},{"$f":"Import!E21618","v":"Select"},{"$f":"Import!E22018","v":"Select"},{"$f":"Import!E22418","v":0},{"$f":"Import!E22818","v":0},{"$f":"Import!E23218","v":0},{"$f":"Import!E23618","v":0},{"$f":"Import!E24018","v":0}]
[103,{"$f":"Import!E21219","v":"Select"},{"$f":"Import!E21619","v":"Select"},{"$f":"Import!E22019","v":"Select"},{"$f":"Import!E22419","v":0},{"$f":"Import!E22819","v":0},{"$f":"Import!E23219","v":0},{"$f":"Import!E23619","v":0},{"$f":"Import!E24019","v":0}]
[104,{"$f":"Import!E21220","v":"Select"},{"$f":"Import!E21620","v":"Select"},{"$f":"Import!E22020","v":"Select"},{"$f":"Import!E22420","v":0},{"$f":"Import!E22820","v":0},{"$f":"Import!E23220","v":0},{"$f":"Import!E23620","v":0},{"$f":"Import!E24020","v":0}]
[105,{"$f":"Import!E21221","v":"Select"},{"$f":"Import!E21621","v":"Select"},{"$f":"Import!E22021","v":"Select"},{"$f":"Import!E22421","v":0},{"$f":"Import!E22821","v":0},{"$f":"Import!E23221","v":0},{"$f":"Import!E23621","v":0},{"$f":"Import!E24021","v":0}]
[106,{"$f":"Import!E21222","v":"Select"},{"$f":"Import!E21622","v":"Select"},{"$f":"Import!E22022","v":"Select"},{"$f":"Import!E22422","v":0},{"$f":"Import!E22822","v":0},{"$f":"Import!E23222","v":0},{"$f":"Import!E23622","v":0},{"$f":"Import!E24022","v":0}]
[107,{"$f":"Import!E21223","v":"Select"},{"$f":"Import!E21623","v":"Select"},{"$f":"Import!E22023","v":"Select"},{"$f":"Import!E22423","v":0},{"$f":"Import!E22823","v":0},{"$f":"Import!E23223","v":0},{"$f":"Import!E23623","v":0},{"$f":"Import!E24023","v":0}]
[108,{"$f":"Import!E21224","v":"Select"},{"$f":"Import!E21624","v":"Select"},{"$f":"Import!E22024","v":"Select"},{"$f":"Import!E22424","v":0},{"$f":"Import!E22824","v":0},{"$f":"Import!E23224","v":0},{"$f":"Import!E23624","v":0},{"$f":"Import!E24024","v":0}]
[109,{"$f":"Import!E21225","v":"Select"},{"$f":"Import!E21625","v":"Select"},{"$f":"Import!E22025","v":"Select"},{"$f":"Import!E22425","v":0},{"$f":"Import!E22825","v":0},{"$f":"Import!E23225","v":0},{"$f":"Import!E23625","v":0},{"$f":"Import!E24025","v":0}]
[110,{"$f":"Import!E21226","v":"Select"},{"$f":"Import!E21626","v":"Select"},{"$f":"Import!E22026","v":"Select"},{"$f":"Import!E22426","v":0},{"$f":"Import!E22826","v":0},{"$f":"Import!E23226","v":0},{"$f":"Import!E23626","v":0},{"$f":"Import!E24026","v":0}]
[111,{"$f":"Import!E21227","v":"Select"},{"$f":"Import!E21627","v":"Select"},{"$f":"Import!E22027","v":"Select"},{"$f":"Import!E22427","v":0},{"$f":"Import!E22827","v":0},{"$f":"Import!E23227","v":0},{"$f":"Import!E23627","v":0},{"$f":"Import!E24027","v":0}]
[112,{"$f":"Import!E21228","v":"Select"},{"$f":"Import!E21628","v":"Select"},{"$f":"Import!E22028","v":"Select"},{"$f":"Import!E22428","v":0},{"$f":"Import!E22828","v":0},{"$f":"Import!E23228","v":0},{"$f":"Import!E23628","v":0},{"$f":"Import!E24028","v":0}]
[113,{"$f":"Import!E21229","v":"Select"},{"$f":"Import!E21629","v":"Select"},{"$f":"Import!E22029","v":"Select"},{"$f":"Import!E22429","v":0},{"$f":"Import!E22829","v":0},{"$f":"Import!E23229","v":0},{"$f":"Import!E23629","v":0},{"$f":"Import!E24029","v":0}]
[114,{"$f":"Import!E21230","v":"Select"},{"$f":"Import!E21630","v":"Select"},{"$f":"Import!E22030","v":"Select"},{"$f":"Import!E22430","v":0},{"$f":"Import!E22830","v":0},{"$f":"Import!E23230","v":0},{"$f":"Import!E23630","v":0},{"$f":"Import!E24030","v":0}]
[115,{"$f":"Import!E21231","v":"Select"},{"$f":"Import!E21631","v":"Select"},{"$f":"Import!E22031","v":"Select"},{"$f":"Import!E22431","v":0},{"$f":"Import!E22831","v":0},{"$f":"Import!E23231","v":0},{"$f":"Import!E23631","v":0},{"$f":"Import!E24031","v":0}]
[116,{"$f":"Import!E21232","v":"Select"},{"$f":"Import!E21632","v":"Select"},{"$f":"Import!E22032","v":"Select"},{"$f":"Import!E22432","v":0},{"$f":"Import!E22832","v":0},{"$f":"Import!E23232","v":0},{"$f":"Import!E23632","v":0},{"$f":"Import!E24032","v":0}]
[117,{"$f":"Import!E21233","v":"Select"},{"$f":"Import!E21633","v":"Select"},{"$f":"Import!E22033","v":"Select"},{"$f":"Import!E22433","v":0},{"$f":"Import!E22833","v":0},{"$f":"Import!E23233","v":0},{"$f":"Import!E23633","v":0},{"$f":"Import!E24033","v":0}]
[118,{"$f":"Import!E21234","v":"Select"},{"$f":"Import!E21634","v":"Select"},{"$f":"Import!E22034","v":"Select"},{"$f":"Import!E22434","v":0},{"$f":"Import!E22834","v":0},{"$f":"Import!E23234","v":0},{"$f":"Import!E23634","v":0},{"$f":"Import!E24034","v":0}]
[119,{"$f":"Import!E21235","v":"Select"},{"$f":"Import!E21635","v":"Select"},{"$f":"Import!E22035","v":"Select"},{"$f":"Import!E22435","v":0},{"$f":"Import!E22835","v":0},{"$f":"Import!E23235","v":0},{"$f":"Import!E23635","v":0},{"$f":"Import!E24035","v":0}]
[120,{"$f":"Import!E21236","v":"Select"},{"$f":"Import!E21636","v":"Select"},{"$f":"Import!E22036","v":"Select"},{"$f":"Import!E22436","v":0},{"$f":"Import!E22836","v":0},{"$f":"Import!E23236","v":0},{"$f":"Import!E23636","v":0},{"$f":"Import!E24036","v":0}]
[121,{"$f":"Import!E21237","v":"Select"},{"$f":"Import!E21637","v":"Select"},{"$f":"Import!E22037","v":"Select"},{"$f":"Import!E22437","v":0},{"$f":"Import!E22837","v":0},{"$f":"Import!E23237","v":0},{"$f":"Import!E23637","v":0},{"$f":"Import!E24037","v":0}]
[122,{"$f":"Import!E21238","v":"Select"},{"$f":"Import!E21638","v":"Select"},{"$f":"Import!E22038","v":"Select"},{"$f":"Import!E22438","v":0},{"$f":"Import!E22838","v":0},{"$f":"Import!E23238","v":0},{"$f":"Import!E23638","v":0},{"$f":"Import!E24038","v":0}]
[123,{"$f":"Import!E21239","v":"Select"},{"$f":"Import!E21639","v":"Select"},{"$f":"Import!E22039","v":"Select"},{"$f":"Import!E22439","v":0},{"$f":"Import!E22839","v":0},{"$f":"Import!E23239","v":0},{"$f":"Import!E23639","v":0},{"$f":"Import!E24039","v":0}]
[124,{"$f":"Import!E21240","v":"Select"},{"$f":"Import!E21640","v":"Select"},{"$f":"Import!E22040","v":"Select"},{"$f":"Import!E22440","v":0},{"$f":"Import!E22840","v":0},{"$f":"Import!E23240","v":0},{"$f":"Import!E23640","v":0},{"$f":"Import!E24040","v":0}]
[125,{"$f":"Import!E21241","v":"Select"},{"$f":"Import!E21641","v":"Select"},{"$f":"Import!E22041","v":"Select"},{"$f":"Import!E22441","v":0},{"$f":"Import!E22841","v":0},{"$f":"Import!E23241","v":0},{"$f":"Import!E23641","v":0},{"$f":"Import!E24041","v":0}]
[126,{"$f":"Import!E21242","v":"Select"},{"$f":"Import!E21642","v":"Select"},{"$f":"Import!E22042","v":"Select"},{"$f":"Import!E22442","v":0},{"$f":"Import!E22842","v":0},{"$f":"Import!E23242","v":0},{"$f":"Import!E23642","v":0},{"$f":"Import!E24042","v":0}]
[127,{"$f":"Import!E21243","v":"Select"},{"$f":"Import!E21643","v":"Select"},{"$f":"Import!E22043","v":"Select"},{"$f":"Import!E22443","v":0},{"$f":"Import!E22843","v":0},{"$f":"Import!E23243","v":0},{"$f":"Import!E23643","v":0},{"$f":"Import!E24043","v":0}]
[128,{"$f":"Import!E21244","v":"Select"},{"$f":"Import!E21644","v":"Select"},{"$f":"Import!E22044","v":"Select"},{"$f":"Import!E22444","v":0},{"$f":"Import!E22844","v":0},{"$f":"Import!E23244","v":0},{"$f":"Import!E23644","v":0},{"$f":"Import!E24044","v":0}]
[129,{"$f":"Import!E21245","v":"Select"},{"$f":"Import!E21645","v":"Select"},{"$f":"Import!E22045","v":"Select"},{"$f":"Import!E22445","v":0},{"$f":"Import!E22845","v":0},{"$f":"Import!E23245","v":0},{"$f":"Import!E23645","v":0},{"$f":"Import!E24045","v":0}]
[130,{"$f":"Import!E21246","v":"Select"},{"$f":"Import!E21646","v":"Select"},{"$f":"Import!E22046","v":"Select"},{"$f":"Import!E22446","v":0},{"$f":"Import!E22846","v":0},{"$f":"Import!E23246","v":0},{"$f":"Import!E23646","v":0},{"$f":"Import!E24046","v":0}]
[{"$f":"A348+1","v":131},{"$f":"Import!E21247","v":"Select"},{"$f":"Import!E21647","v":"Select"},{"$f":"Import!E22047","v":"Select"},{"$f":"Import!E22447","v":0},{"$f":"Import!E22847","v":0},{"$f":"Import!E23247","v":0},{"$f":"Import!E23647","v":0},{"$f":"Import!E24047","v":0}]
[132,{"$f":"Import!E21248","v":"Select"},{"$f":"Import!E21648","v":"Select"},{"$f":"Import!E22048","v":"Select"},{"$f":"Import!E22448","v":0},{"$f":"Import!E22848","v":0},{"$f":"Import!E23248","v":0},{"$f":"Import!E23648","v":0},{"$f":"Import!E24048","v":0}]
[133,{"$f":"Import!E21249","v":"Select"},{"$f":"Import!E21649","v":"Select"},{"$f":"Import!E22049","v":"Select"},{"$f":"Import!E22449","v":0},{"$f":"Import!E22849","v":0},{"$f":"Import!E23249","v":0},{"$f":"Import!E23649","v":0},{"$f":"Import!E24049","v":0}]
[134,{"$f":"Import!E21250","v":"Select"},{"$f":"Import!E21650","v":"Select"},{"$f":"Import!E22050","v":"Select"},{"$f":"Import!E22450","v":0},{"$f":"Import!E22850","v":0},{"$f":"Import!E23250","v":0},{"$f":"Import!E23650","v":0},{"$f":"Import!E24050","v":0}]
[135,{"$f":"Import!E21251","v":"Select"},{"$f":"Import!E21651","v":"Select"},{"$f":"Import!E22051","v":"Select"},{"$f":"Import!E22451","v":0},{"$f":"Import!E22851","v":0},{"$f":"Import!E23251","v":0},{"$f":"Import!E23651","v":0},{"$f":"Import!E24051","v":0}]
[136,{"$f":"Import!E21252","v":"Select"},{"$f":"Import!E21652","v":"Select"},{"$f":"Import!E22052","v":"Select"},{"$f":"Import!E22452","v":0},{"$f":"Import!E22852","v":0},{"$f":"Import!E23252","v":0},{"$f":"Import!E23652","v":0},{"$f":"Import!E24052","v":0}]
[137,{"$f":"Import!E21253","v":"Select"},{"$f":"Import!E21653","v":"Select"},{"$f":"Import!E22053","v":"Select"},{"$f":"Import!E22453","v":0},{"$f":"Import!E22853","v":0},{"$f":"Import!E23253","v":0},{"$f":"Import!E23653","v":0},{"$f":"Import!E24053","v":0}]
[138,{"$f":"Import!E21254","v":"Select"},{"$f":"Import!E21654","v":"Select"},{"$f":"Import!E22054","v":"Select"},{"$f":"Import!E22454","v":0},{"$f":"Import!E22854","v":0},{"$f":"Import!E23254","v":0},{"$f":"Import!E23654","v":0},{"$f":"Import!E24054","v":0}]
[139,{"$f":"Import!E21255","v":"Select"},{"$f":"Import!E21655","v":"Select"},{"$f":"Import!E22055","v":"Select"},{"$f":"Import!E22455","v":0},{"$f":"Import!E22855","v":0},{"$f":"Import!E23255","v":0},{"$f":"Import!E23655","v":0},{"$f":"Import!E24055","v":0}]
[140,{"$f":"Import!E21256","v":"Select"},{"$f":"Import!E21656","v":"Select"},{"$f":"Import!E22056","v":"Select"},{"$f":"Import!E22456","v":0},{"$f":"Import!E22856","v":0},{"$f":"Import!E23256","v":0},{"$f":"Import!E23656","v":0},{"$f":"Import!E24056","v":0}]
[141,{"$f":"Import!E21257","v":"Select"},{"$f":"Import!E21657","v":"Select"},{"$f":"Import!E22057","v":"Select"},{"$f":"Import!E22457","v":0},{"$f":"Import!E22857","v":0},{"$f":"Import!E23257","v":0},{"$f":"Import!E23657","v":0},{"$f":"Import!E24057","v":0}]
[142,{"$f":"Import!E21258","v":"Select"},{"$f":"Import!E21658","v":"Select"},{"$f":"Import!E22058","v":"Select"},{"$f":"Import!E22458","v":0},{"$f":"Import!E22858","v":0},{"$f":"Import!E23258","v":0},{"$f":"Import!E23658","v":0},{"$f":"Import!E24058","v":0}]
[143,{"$f":"Import!E21259","v":"Select"},{"$f":"Import!E21659","v":"Select"},{"$f":"Import!E22059","v":"Select"},{"$f":"Import!E22459","v":0},{"$f":"Import!E22859","v":0},{"$f":"Import!E23259","v":0},{"$f":"Import!E23659","v":0},{"$f":"Import!E24059","v":0}]
[144,{"$f":"Import!E21260","v":"Select"},{"$f":"Import!E21660","v":"Select"},{"$f":"Import!E22060","v":"Select"},{"$f":"Import!E22460","v":0},{"$f":"Import!E22860","v":0},{"$f":"Import!E23260","v":0},{"$f":"Import!E23660","v":0},{"$f":"Import!E24060","v":0}]
[145,{"$f":"Import!E21261","v":"Select"},{"$f":"Import!E21661","v":"Select"},{"$f":"Import!E22061","v":"Select"},{"$f":"Import!E22461","v":0},{"$f":"Import!E22861","v":0},{"$f":"Import!E23261","v":0},{"$f":"Import!E23661","v":0},{"$f":"Import!E24061","v":0}]
[146,{"$f":"Import!E21262","v":"Select"},{"$f":"Import!E21662","v":"Select"},{"$f":"Import!E22062","v":"Select"},{"$f":"Import!E22462","v":0},{"$f":"Import!E22862","v":0},{"$f":"Import!E23262","v":0},{"$f":"Import!E23662","v":0},{"$f":"Import!E24062","v":0}]
[147,{"$f":"Import!E21263","v":"Select"},{"$f":"Import!E21663","v":"Select"},{"$f":"Import!E22063","v":"Select"},{"$f":"Import!E22463","v":0},{"$f":"Import!E22863","v":0},{"$f":"Import!E23263","v":0},{"$f":"Import!E23663","v":0},{"$f":"Import!E24063","v":0}]
[148,{"$f":"Import!E21264","v":"Select"},{"$f":"Import!E21664","v":"Select"},{"$f":"Import!E22064","v":"Select"},{"$f":"Import!E22464","v":0},{"$f":"Import!E22864","v":0},{"$f":"Import!E23264","v":0},{"$f":"Import!E23664","v":0},{"$f":"Import!E24064","v":0}]
[149,{"$f":"Import!E21265","v":"Select"},{"$f":"Import!E21665","v":"Select"},{"$f":"Import!E22065","v":"Select"},{"$f":"Import!E22465","v":0},{"$f":"Import!E22865","v":0},{"$f":"Import!E23265","v":0},{"$f":"Import!E23665","v":0},{"$f":"Import!E24065","v":0}]
[150,{"$f":"Import!E21266","v":"Select"},{"$f":"Import!E21666","v":"Select"},{"$f":"Import!E22066","v":"Select"},{"$f":"Import!E22466","v":0},{"$f":"Import!E22866","v":0},{"$f":"Import!E23266","v":0},{"$f":"Import!E23666","v":0},{"$f":"Import!E24066","v":0}]
[151,{"$f":"Import!E21267","v":"Select"},{"$f":"Import!E21667","v":"Select"},{"$f":"Import!E22067","v":"Select"},{"$f":"Import!E22467","v":0},{"$f":"Import!E22867","v":0},{"$f":"Import!E23267","v":0},{"$f":"Import!E23667","v":0},{"$f":"Import!E24067","v":0}]
[152,{"$f":"Import!E21268","v":"Select"},{"$f":"Import!E21668","v":"Select"},{"$f":"Import!E22068","v":"Select"},{"$f":"Import!E22468","v":0},{"$f":"Import!E22868","v":0},{"$f":"Import!E23268","v":0},{"$f":"Import!E23668","v":0},{"$f":"Import!E24068","v":0}]
[153,{"$f":"Import!E21269","v":"Select"},{"$f":"Import!E21669","v":"Select"},{"$f":"Import!E22069","v":"Select"},{"$f":"Import!E22469","v":0},{"$f":"Import!E22869","v":0},{"$f":"Import!E23269","v":0},{"$f":"Import!E23669","v":0},{"$f":"Import!E24069","v":0}]
[154,{"$f":"Import!E21270","v":"Select"},{"$f":"Import!E21670","v":"Select"},{"$f":"Import!E22070","v":"Select"},{"$f":"Import!E22470","v":0},{"$f":"Import!E22870","v":0},{"$f":"Import!E23270","v":0},{"$f":"Import!E23670","v":0},{"$f":"Import!E24070","v":0}]
[155,{"$f":"Import!E21271","v":"Select"},{"$f":"Import!E21671","v":"Select"},{"$f":"Import!E22071","v":"Select"},{"$f":"Import!E22471","v":0},{"$f":"Import!E22871","v":0},{"$f":"Import!E23271","v":0},{"$f":"Import!E23671","v":0},{"$f":"Import!E24071","v":0}]
[156,{"$f":"Import!E21272","v":"Select"},{"$f":"Import!E21672","v":"Select"},{"$f":"Import!E22072","v":"Select"},{"$f":"Import!E22472","v":0},{"$f":"Import!E22872","v":0},{"$f":"Import!E23272","v":0},{"$f":"Import!E23672","v":0},{"$f":"Import!E24072","v":0}]
[157,{"$f":"Import!E21273","v":"Select"},{"$f":"Import!E21673","v":"Select"},{"$f":"Import!E22073","v":"Select"},{"$f":"Import!E22473","v":0},{"$f":"Import!E22873","v":0},{"$f":"Import!E23273","v":0},{"$f":"Import!E23673","v":0},{"$f":"Import!E24073","v":0}]
[158,{"$f":"Import!E21274","v":"Select"},{"$f":"Import!E21674","v":"Select"},{"$f":"Import!E22074","v":"Select"},{"$f":"Import!E22474","v":0},{"$f":"Import!E22874","v":0},{"$f":"Import!E23274","v":0},{"$f":"Import!E23674","v":0},{"$f":"Import!E24074","v":0}]
[159,{"$f":"Import!E21275","v":"Select"},{"$f":"Import!E21675","v":"Select"},{"$f":"Import!E22075","v":"Select"},{"$f":"Import!E22475","v":0},{"$f":"Import!E22875","v":0},{"$f":"Import!E23275","v":0},{"$f":"Import!E23675","v":0},{"$f":"Import!E24075","v":0}]
[160,{"$f":"Import!E21276","v":"Select"},{"$f":"Import!E21676","v":"Select"},{"$f":"Import!E22076","v":"Select"},{"$f":"Import!E22476","v":0},{"$f":"Import!E22876","v":0},{"$f":"Import!E23276","v":0},{"$f":"Import!E23676","v":0},{"$f":"Import!E24076","v":0}]
[161,{"$f":"Import!E21277","v":"Select"},{"$f":"Import!E21677","v":"Select"},{"$f":"Import!E22077","v":"Select"},{"$f":"Import!E22477","v":0},{"$f":"Import!E22877","v":0},{"$f":"Import!E23277","v":0},{"$f":"Import!E23677","v":0},{"$f":"Import!E24077","v":0}]
[162,{"$f":"Import!E21278","v":"Select"},{"$f":"Import!E21678","v":"Select"},{"$f":"Import!E22078","v":"Select"},{"$f":"Import!E22478","v":0},{"$f":"Import!E22878","v":0},{"$f":"Import!E23278","v":0},{"$f":"Import!E23678","v":0},{"$f":"Import!E24078","v":0}]
[163,{"$f":"Import!E21279","v":"Select"},{"$f":"Import!E21679","v":"Select"},{"$f":"Import!E22079","v":"Select"},{"$f":"Import!E22479","v":0},{"$f":"Import!E22879","v":0},{"$f":"Import!E23279","v":0},{"$f":"Import!E23679","v":0},{"$f":"Import!E24079","v":0}]
[164,{"$f":"Import!E21280","v":"Select"},{"$f":"Import!E21680","v":"Select"},{"$f":"Import!E22080","v":"Select"},{"$f":"Import!E22480","v":0},{"$f":"Import!E22880","v":0},{"$f":"Import!E23280","v":0},{"$f":"Import!E23680","v":0},{"$f":"Import!E24080","v":0}]
[165,{"$f":"Import!E21281","v":"Select"},{"$f":"Import!E21681","v":"Select"},{"$f":"Import!E22081","v":"Select"},{"$f":"Import!E22481","v":0},{"$f":"Import!E22881","v":0},{"$f":"Import!E23281","v":0},{"$f":"Import!E23681","v":0},{"$f":"Import!E24081","v":0}]
[166,{"$f":"Import!E21282","v":"Select"},{"$f":"Import!E21682","v":"Select"},{"$f":"Import!E22082","v":"Select"},{"$f":"Import!E22482","v":0},{"$f":"Import!E22882","v":0},{"$f":"Import!E23282","v":0},{"$f":"Import!E23682","v":0},{"$f":"Import!E24082","v":0}]
[167,{"$f":"Import!E21283","v":"Select"},{"$f":"Import!E21683","v":"Select"},{"$f":"Import!E22083","v":"Select"},{"$f":"Import!E22483","v":0},{"$f":"Import!E22883","v":0},{"$f":"Import!E23283","v":0},{"$f":"Import!E23683","v":0},{"$f":"Import!E24083","v":0}]
[168,{"$f":"Import!E21284","v":"Select"},{"$f":"Import!E21684","v":"Select"},{"$f":"Import!E22084","v":"Select"},{"$f":"Import!E22484","v":0},{"$f":"Import!E22884","v":0},{"$f":"Import!E23284","v":0},{"$f":"Import!E23684","v":0},{"$f":"Import!E24084","v":0}]
[169,{"$f":"Import!E21285","v":"Select"},{"$f":"Import!E21685","v":"Select"},{"$f":"Import!E22085","v":"Select"},{"$f":"Import!E22485","v":0},{"$f":"Import!E22885","v":0},{"$f":"Import!E23285","v":0},{"$f":"Import!E23685","v":0},{"$f":"Import!E24085","v":0}]
[170,{"$f":"Import!E21286","v":"Select"},{"$f":"Import!E21686","v":"Select"},{"$f":"Import!E22086","v":"Select"},{"$f":"Import!E22486","v":0},{"$f":"Import!E22886","v":0},{"$f":"Import!E23286","v":0},{"$f":"Import!E23686","v":0},{"$f":"Import!E24086","v":0}]
[171,{"$f":"Import!E21287","v":"Select"},{"$f":"Import!E21687","v":"Select"},{"$f":"Import!E22087","v":"Select"},{"$f":"Import!E22487","v":0},{"$f":"Import!E22887","v":0},{"$f":"Import!E23287","v":0},{"$f":"Import!E23687","v":0},{"$f":"Import!E24087","v":0}]
[172,{"$f":"Import!E21288","v":"Select"},{"$f":"Import!E21688","v":"Select"},{"$f":"Import!E22088","v":"Select"},{"$f":"Import!E22488","v":0},{"$f":"Import!E22888","v":0},{"$f":"Import!E23288","v":0},{"$f":"Import!E23688","v":0},{"$f":"Import!E24088","v":0}]
[173,{"$f":"Import!E21289","v":"Select"},{"$f":"Import!E21689","v":"Select"},{"$f":"Import!E22089","v":"Select"},{"$f":"Import!E22489","v":0},{"$f":"Import!E22889","v":0},{"$f":"Import!E23289","v":0},{"$f":"Import!E23689","v":0},{"$f":"Import!E24089","v":0}]
[174,{"$f":"Import!E21290","v":"Select"},{"$f":"Import!E21690","v":"Select"},{"$f":"Import!E22090","v":"Select"},{"$f":"Import!E22490","v":0},{"$f":"Import!E22890","v":0},{"$f":"Import!E23290","v":0},{"$f":"Import!E23690","v":0},{"$f":"Import!E24090","v":0}]
[175,{"$f":"Import!E21291","v":"Select"},{"$f":"Import!E21691","v":"Select"},{"$f":"Import!E22091","v":"Select"},{"$f":"Import!E22491","v":0},{"$f":"Import!E22891","v":0},{"$f":"Import!E23291","v":0},{"$f":"Import!E23691","v":0},{"$f":"Import!E24091","v":0}]
[176,{"$f":"Import!E21292","v":"Select"},{"$f":"Import!E21692","v":"Select"},{"$f":"Import!E22092","v":"Select"},{"$f":"Import!E22492","v":0},{"$f":"Import!E22892","v":0},{"$f":"Import!E23292","v":0},{"$f":"Import!E23692","v":0},{"$f":"Import!E24092","v":0}]
[177,{"$f":"Import!E21293","v":"Select"},{"$f":"Import!E21693","v":"Select"},{"$f":"Import!E22093","v":"Select"},{"$f":"Import!E22493","v":0},{"$f":"Import!E22893","v":0},{"$f":"Import!E23293","v":0},{"$f":"Import!E23693","v":0},{"$f":"Import!E24093","v":0}]
[178,{"$f":"Import!E21294","v":"Select"},{"$f":"Import!E21694","v":"Select"},{"$f":"Import!E22094","v":"Select"},{"$f":"Import!E22494","v":0},{"$f":"Import!E22894","v":0},{"$f":"Import!E23294","v":0},{"$f":"Import!E23694","v":0},{"$f":"Import!E24094","v":0}]
[179,{"$f":"Import!E21295","v":"Select"},{"$f":"Import!E21695","v":"Select"},{"$f":"Import!E22095","v":"Select"},{"$f":"Import!E22495","v":0},{"$f":"Import!E22895","v":0},{"$f":"Import!E23295","v":0},{"$f":"Import!E23695","v":0},{"$f":"Import!E24095","v":0}]
[180,{"$f":"Import!E21296","v":"Select"},{"$f":"Import!E21696","v":"Select"},{"$f":"Import!E22096","v":"Select"},{"$f":"Import!E22496","v":0},{"$f":"Import!E22896","v":0},{"$f":"Import!E23296","v":0},{"$f":"Import!E23696","v":0},{"$f":"Import!E24096","v":0}]
[181,{"$f":"Import!E21297","v":"Select"},{"$f":"Import!E21697","v":"Select"},{"$f":"Import!E22097","v":"Select"},{"$f":"Import!E22497","v":0},{"$f":"Import!E22897","v":0},{"$f":"Import!E23297","v":0},{"$f":"Import!E23697","v":0},{"$f":"Import!E24097","v":0}]
[182,{"$f":"Import!E21298","v":"Select"},{"$f":"Import!E21698","v":"Select"},{"$f":"Import!E22098","v":"Select"},{"$f":"Import!E22498","v":0},{"$f":"Import!E22898","v":0},{"$f":"Import!E23298","v":0},{"$f":"Import!E23698","v":0},{"$f":"Import!E24098","v":0}]
[183,{"$f":"Import!E21299","v":"Select"},{"$f":"Import!E21699","v":"Select"},{"$f":"Import!E22099","v":"Select"},{"$f":"Import!E22499","v":0},{"$f":"Import!E22899","v":0},{"$f":"Import!E23299","v":0},{"$f":"Import!E23699","v":0},{"$f":"Import!E24099","v":0}]
[184,{"$f":"Import!E21300","v":"Select"},{"$f":"Import!E21700","v":"Select"},{"$f":"Import!E22100","v":"Select"},{"$f":"Import!E22500","v":0},{"$f":"Import!E22900","v":0},{"$f":"Import!E23300","v":0},{"$f":"Import!E23700","v":0},{"$f":"Import!E24100","v":0}]
[185,{"$f":"Import!E21301","v":"Select"},{"$f":"Import!E21701","v":"Select"},{"$f":"Import!E22101","v":"Select"},{"$f":"Import!E22501","v":0},{"$f":"Import!E22901","v":0},{"$f":"Import!E23301","v":0},{"$f":"Import!E23701","v":0},{"$f":"Import!E24101","v":0}]
[186,{"$f":"Import!E21302","v":"Select"},{"$f":"Import!E21702","v":"Select"},{"$f":"Import!E22102","v":"Select"},{"$f":"Import!E22502","v":0},{"$f":"Import!E22902","v":0},{"$f":"Import!E23302","v":0},{"$f":"Import!E23702","v":0},{"$f":"Import!E24102","v":0}]
[187,{"$f":"Import!E21303","v":"Select"},{"$f":"Import!E21703","v":"Select"},{"$f":"Import!E22103","v":"Select"},{"$f":"Import!E22503","v":0},{"$f":"Import!E22903","v":0},{"$f":"Import!E23303","v":0},{"$f":"Import!E23703","v":0},{"$f":"Import!E24103","v":0}]
[188,{"$f":"Import!E21304","v":"Select"},{"$f":"Import!E21704","v":"Select"},{"$f":"Import!E22104","v":"Select"},{"$f":"Import!E22504","v":0},{"$f":"Import!E22904","v":0},{"$f":"Import!E23304","v":0},{"$f":"Import!E23704","v":0},{"$f":"Import!E24104","v":0}]
[189,{"$f":"Import!E21305","v":"Select"},{"$f":"Import!E21705","v":"Select"},{"$f":"Import!E22105","v":"Select"},{"$f":"Import!E22505","v":0},{"$f":"Import!E22905","v":0},{"$f":"Import!E23305","v":0},{"$f":"Import!E23705","v":0},{"$f":"Import!E24105","v":0}]
[190,{"$f":"Import!E21306","v":"Select"},{"$f":"Import!E21706","v":"Select"},{"$f":"Import!E22106","v":"Select"},{"$f":"Import!E22506","v":0},{"$f":"Import!E22906","v":0},{"$f":"Import!E23306","v":0},{"$f":"Import!E23706","v":0},{"$f":"Import!E24106","v":0}]
[191,{"$f":"Import!E21307","v":"Select"},{"$f":"Import!E21707","v":"Select"},{"$f":"Import!E22107","v":"Select"},{"$f":"Import!E22507","v":0},{"$f":"Import!E22907","v":0},{"$f":"Import!E23307","v":0},{"$f":"Import!E23707","v":0},{"$f":"Import!E24107","v":0}]
[192,{"$f":"Import!E21308","v":"Select"},{"$f":"Import!E21708","v":"Select"},{"$f":"Import!E22108","v":"Select"},{"$f":"Import!E22508","v":0},{"$f":"Import!E22908","v":0},{"$f":"Import!E23308","v":0},{"$f":"Import!E23708","v":0},{"$f":"Import!E24108","v":0}]
[193,{"$f":"Import!E21309","v":"Select"},{"$f":"Import!E21709","v":"Select"},{"$f":"Import!E22109","v":"Select"},{"$f":"Import!E22509","v":0},{"$f":"Import!E22909","v":0},{"$f":"Import!E23309","v":0},{"$f":"Import!E23709","v":0},{"$f":"Import!E24109","v":0}]
[194,{"$f":"Import!E21310","v":"Select"},{"$f":"Import!E21710","v":"Select"},{"$f":"Import!E22110","v":"Select"},{"$f":"Import!E22510","v":0},{"$f":"Import!E22910","v":0},{"$f":"Import!E23310","v":0},{"$f":"Import!E23710","v":0},{"$f":"Import!E24110","v":0}]
[{"$f":"A412+1","v":195},{"$f":"Import!E21311","v":"Select"},{"$f":"Import!E21711","v":"Select"},{"$f":"Import!E22111","v":"Select"},{"$f":"Import!E22511","v":0},{"$f":"Import!E22911","v":0},{"$f":"Import!E23311","v":0},{"$f":"Import!E23711","v":0},{"$f":"Import!E24111","v":0}]
[196,{"$f":"Import!E21312","v":"Select"},{"$f":"Import!E21712","v":"Select"},{"$f":"Import!E22112","v":"Select"},{"$f":"Import!E22512","v":0},{"$f":"Import!E22912","v":0},{"$f":"Import!E23312","v":0},{"$f":"Import!E23712","v":0},{"$f":"Import!E24112","v":0}]
[197,{"$f":"Import!E21313","v":"Select"},{"$f":"Import!E21713","v":"Select"},{"$f":"Import!E22113","v":"Select"},{"$f":"Import!E22513","v":0},{"$f":"Import!E22913","v":0},{"$f":"Import!E23313","v":0},{"$f":"Import!E23713","v":0},{"$f":"Import!E24113","v":0}]
[198,{"$f":"Import!E21314","v":"Select"},{"$f":"Import!E21714","v":"Select"},{"$f":"Import!E22114","v":"Select"},{"$f":"Import!E22514","v":0},{"$f":"Import!E22914","v":0},{"$f":"Import!E23314","v":0},{"$f":"Import!E23714","v":0},{"$f":"Import!E24114","v":0}]
[199,{"$f":"Import!E21315","v":"Select"},{"$f":"Import!E21715","v":"Select"},{"$f":"Import!E22115","v":"Select"},{"$f":"Import!E22515","v":0},{"$f":"Import!E22915","v":0},{"$f":"Import!E23315","v":0},{"$f":"Import!E23715","v":0},{"$f":"Import!E24115","v":0}]
[200,{"$f":"Import!E21316","v":"Select"},{"$f":"Import!E21716","v":"Select"},{"$f":"Import!E22116","v":"Select"},{"$f":"Import!E22516","v":0},{"$f":"Import!E22916","v":0},{"$f":"Import!E23316","v":0},{"$f":"Import!E23716","v":0},{"$f":"Import!E24116","v":0}]
[201,{"$f":"Import!E21317","v":"Select"},{"$f":"Import!E21717","v":"Select"},{"$f":"Import!E22117","v":"Select"},{"$f":"Import!E22517","v":0},{"$f":"Import!E22917","v":0},{"$f":"Import!E23317","v":0},{"$f":"Import!E23717","v":0},{"$f":"Import!E24117","v":0}]
[202,{"$f":"Import!E21318","v":"Select"},{"$f":"Import!E21718","v":"Select"},{"$f":"Import!E22118","v":"Select"},{"$f":"Import!E22518","v":0},{"$f":"Import!E22918","v":0},{"$f":"Import!E23318","v":0},{"$f":"Import!E23718","v":0},{"$f":"Import!E24118","v":0}]
[203,{"$f":"Import!E21319","v":"Select"},{"$f":"Import!E21719","v":"Select"},{"$f":"Import!E22119","v":"Select"},{"$f":"Import!E22519","v":0},{"$f":"Import!E22919","v":0},{"$f":"Import!E23319","v":0},{"$f":"Import!E23719","v":0},{"$f":"Import!E24119","v":0}]
[204,{"$f":"Import!E21320","v":"Select"},{"$f":"Import!E21720","v":"Select"},{"$f":"Import!E22120","v":"Select"},{"$f":"Import!E22520","v":0},{"$f":"Import!E22920","v":0},{"$f":"Import!E23320","v":0},{"$f":"Import!E23720","v":0},{"$f":"Import!E24120","v":0}]
[205,{"$f":"Import!E21321","v":"Select"},{"$f":"Import!E21721","v":"Select"},{"$f":"Import!E22121","v":"Select"},{"$f":"Import!E22521","v":0},{"$f":"Import!E22921","v":0},{"$f":"Import!E23321","v":0},{"$f":"Import!E23721","v":0},{"$f":"Import!E24121","v":0}]
[206,{"$f":"Import!E21322","v":"Select"},{"$f":"Import!E21722","v":"Select"},{"$f":"Import!E22122","v":"Select"},{"$f":"Import!E22522","v":0},{"$f":"Import!E22922","v":0},{"$f":"Import!E23322","v":0},{"$f":"Import!E23722","v":0},{"$f":"Import!E24122","v":0}]
[207,{"$f":"Import!E21323","v":"Select"},{"$f":"Import!E21723","v":"Select"},{"$f":"Import!E22123","v":"Select"},{"$f":"Import!E22523","v":0},{"$f":"Import!E22923","v":0},{"$f":"Import!E23323","v":0},{"$f":"Import!E23723","v":0},{"$f":"Import!E24123","v":0}]
[208,{"$f":"Import!E21324","v":"Select"},{"$f":"Import!E21724","v":"Select"},{"$f":"Import!E22124","v":"Select"},{"$f":"Import!E22524","v":0},{"$f":"Import!E22924","v":0},{"$f":"Import!E23324","v":0},{"$f":"Import!E23724","v":0},{"$f":"Import!E24124","v":0}]
[209,{"$f":"Import!E21325","v":"Select"},{"$f":"Import!E21725","v":"Select"},{"$f":"Import!E22125","v":"Select"},{"$f":"Import!E22525","v":0},{"$f":"Import!E22925","v":0},{"$f":"Import!E23325","v":0},{"$f":"Import!E23725","v":0},{"$f":"Import!E24125","v":0}]
[210,{"$f":"Import!E21326","v":"Select"},{"$f":"Import!E21726","v":"Select"},{"$f":"Import!E22126","v":"Select"},{"$f":"Import!E22526","v":0},{"$f":"Import!E22926","v":0},{"$f":"Import!E23326","v":0},{"$f":"Import!E23726","v":0},{"$f":"Import!E24126","v":0}]
[211,{"$f":"Import!E21327","v":"Select"},{"$f":"Import!E21727","v":"Select"},{"$f":"Import!E22127","v":"Select"},{"$f":"Import!E22527","v":0},{"$f":"Import!E22927","v":0},{"$f":"Import!E23327","v":0},{"$f":"Import!E23727","v":0},{"$f":"Import!E24127","v":0}]
[212,{"$f":"Import!E21328","v":"Select"},{"$f":"Import!E21728","v":"Select"},{"$f":"Import!E22128","v":"Select"},{"$f":"Import!E22528","v":0},{"$f":"Import!E22928","v":0},{"$f":"Import!E23328","v":0},{"$f":"Import!E23728","v":0},{"$f":"Import!E24128","v":0}]
[213,{"$f":"Import!E21329","v":"Select"},{"$f":"Import!E21729","v":"Select"},{"$f":"Import!E22129","v":"Select"},{"$f":"Import!E22529","v":0},{"$f":"Import!E22929","v":0},{"$f":"Import!E23329","v":0},{"$f":"Import!E23729","v":0},{"$f":"Import!E24129","v":0}]
[214,{"$f":"Import!E21330","v":"Select"},{"$f":"Import!E21730","v":"Select"},{"$f":"Import!E22130","v":"Select"},{"$f":"Import!E22530","v":0},{"$f":"Import!E22930","v":0},{"$f":"Import!E23330","v":0},{"$f":"Import!E23730","v":0},{"$f":"Import!E24130","v":0}]
[215,{"$f":"Import!E21331","v":"Select"},{"$f":"Import!E21731","v":"Select"},{"$f":"Import!E22131","v":"Select"},{"$f":"Import!E22531","v":0},{"$f":"Import!E22931","v":0},{"$f":"Import!E23331","v":0},{"$f":"Import!E23731","v":0},{"$f":"Import!E24131","v":0}]
[216,{"$f":"Import!E21332","v":"Select"},{"$f":"Import!E21732","v":"Select"},{"$f":"Import!E22132","v":"Select"},{"$f":"Import!E22532","v":0},{"$f":"Import!E22932","v":0},{"$f":"Import!E23332","v":0},{"$f":"Import!E23732","v":0},{"$f":"Import!E24132","v":0}]
[217,{"$f":"Import!E21333","v":"Select"},{"$f":"Import!E21733","v":"Select"},{"$f":"Import!E22133","v":"Select"},{"$f":"Import!E22533","v":0},{"$f":"Import!E22933","v":0},{"$f":"Import!E23333","v":0},{"$f":"Import!E23733","v":0},{"$f":"Import!E24133","v":0}]
[218,{"$f":"Import!E21334","v":"Select"},{"$f":"Import!E21734","v":"Select"},{"$f":"Import!E22134","v":"Select"},{"$f":"Import!E22534","v":0},{"$f":"Import!E22934","v":0},{"$f":"Import!E23334","v":0},{"$f":"Import!E23734","v":0},{"$f":"Import!E24134","v":0}]
[219,{"$f":"Import!E21335","v":"Select"},{"$f":"Import!E21735","v":"Select"},{"$f":"Import!E22135","v":"Select"},{"$f":"Import!E22535","v":0},{"$f":"Import!E22935","v":0},{"$f":"Import!E23335","v":0},{"$f":"Import!E23735","v":0},{"$f":"Import!E24135","v":0}]
[220,{"$f":"Import!E21336","v":"Select"},{"$f":"Import!E21736","v":"Select"},{"$f":"Import!E22136","v":"Select"},{"$f":"Import!E22536","v":0},{"$f":"Import!E22936","v":0},{"$f":"Import!E23336","v":0},{"$f":"Import!E23736","v":0},{"$f":"Import!E24136","v":0}]
[221,{"$f":"Import!E21337","v":"Select"},{"$f":"Import!E21737","v":"Select"},{"$f":"Import!E22137","v":"Select"},{"$f":"Import!E22537","v":0},{"$f":"Import!E22937","v":0},{"$f":"Import!E23337","v":0},{"$f":"Import!E23737","v":0},{"$f":"Import!E24137","v":0}]
[222,{"$f":"Import!E21338","v":"Select"},{"$f":"Import!E21738","v":"Select"},{"$f":"Import!E22138","v":"Select"},{"$f":"Import!E22538","v":0},{"$f":"Import!E22938","v":0},{"$f":"Import!E23338","v":0},{"$f":"Import!E23738","v":0},{"$f":"Import!E24138","v":0}]
[223,{"$f":"Import!E21339","v":"Select"},{"$f":"Import!E21739","v":"Select"},{"$f":"Import!E22139","v":"Select"},{"$f":"Import!E22539","v":0},{"$f":"Import!E22939","v":0},{"$f":"Import!E23339","v":0},{"$f":"Import!E23739","v":0},{"$f":"Import!E24139","v":0}]
[224,{"$f":"Import!E21340","v":"Select"},{"$f":"Import!E21740","v":"Select"},{"$f":"Import!E22140","v":"Select"},{"$f":"Import!E22540","v":0},{"$f":"Import!E22940","v":0},{"$f":"Import!E23340","v":0},{"$f":"Import!E23740","v":0},{"$f":"Import!E24140","v":0}]
[225,{"$f":"Import!E21341","v":"Select"},{"$f":"Import!E21741","v":"Select"},{"$f":"Import!E22141","v":"Select"},{"$f":"Import!E22541","v":0},{"$f":"Import!E22941","v":0},{"$f":"Import!E23341","v":0},{"$f":"Import!E23741","v":0},{"$f":"Import!E24141","v":0}]
[226,{"$f":"Import!E21342","v":"Select"},{"$f":"Import!E21742","v":"Select"},{"$f":"Import!E22142","v":"Select"},{"$f":"Import!E22542","v":0},{"$f":"Import!E22942","v":0},{"$f":"Import!E23342","v":0},{"$f":"Import!E23742","v":0},{"$f":"Import!E24142","v":0}]
[227,{"$f":"Import!E21343","v":"Select"},{"$f":"Import!E21743","v":"Select"},{"$f":"Import!E22143","v":"Select"},{"$f":"Import!E22543","v":0},{"$f":"Import!E22943","v":0},{"$f":"Import!E23343","v":0},{"$f":"Import!E23743","v":0},{"$f":"Import!E24143","v":0}]
[228,{"$f":"Import!E21344","v":"Select"},{"$f":"Import!E21744","v":"Select"},{"$f":"Import!E22144","v":"Select"},{"$f":"Import!E22544","v":0},{"$f":"Import!E22944","v":0},{"$f":"Import!E23344","v":0},{"$f":"Import!E23744","v":0},{"$f":"Import!E24144","v":0}]
[229,{"$f":"Import!E21345","v":"Select"},{"$f":"Import!E21745","v":"Select"},{"$f":"Import!E22145","v":"Select"},{"$f":"Import!E22545","v":0},{"$f":"Import!E22945","v":0},{"$f":"Import!E23345","v":0},{"$f":"Import!E23745","v":0},{"$f":"Import!E24145","v":0}]
[230,{"$f":"Import!E21346","v":"Select"},{"$f":"Import!E21746","v":"Select"},{"$f":"Import!E22146","v":"Select"},{"$f":"Import!E22546","v":0},{"$f":"Import!E22946","v":0},{"$f":"Import!E23346","v":0},{"$f":"Import!E23746","v":0},{"$f":"Import!E24146","v":0}]
[231,{"$f":"Import!E21347","v":"Select"},{"$f":"Import!E21747","v":"Select"},{"$f":"Import!E22147","v":"Select"},{"$f":"Import!E22547","v":0},{"$f":"Import!E22947","v":0},{"$f":"Import!E23347","v":0},{"$f":"Import!E23747","v":0},{"$f":"Import!E24147","v":0}]
[232,{"$f":"Import!E21348","v":"Select"},{"$f":"Import!E21748","v":"Select"},{"$f":"Import!E22148","v":"Select"},{"$f":"Import!E22548","v":0},{"$f":"Import!E22948","v":0},{"$f":"Import!E23348","v":0},{"$f":"Import!E23748","v":0},{"$f":"Import!E24148","v":0}]
[233,{"$f":"Import!E21349","v":"Select"},{"$f":"Import!E21749","v":"Select"},{"$f":"Import!E22149","v":"Select"},{"$f":"Import!E22549","v":0},{"$f":"Import!E22949","v":0},{"$f":"Import!E23349","v":0},{"$f":"Import!E23749","v":0},{"$f":"Import!E24149","v":0}]
[234,{"$f":"Import!E21350","v":"Select"},{"$f":"Import!E21750","v":"Select"},{"$f":"Import!E22150","v":"Select"},{"$f":"Import!E22550","v":0},{"$f":"Import!E22950","v":0},{"$f":"Import!E23350","v":0},{"$f":"Import!E23750","v":0},{"$f":"Import!E24150","v":0}]
[235,{"$f":"Import!E21351","v":"Select"},{"$f":"Import!E21751","v":"Select"},{"$f":"Import!E22151","v":"Select"},{"$f":"Import!E22551","v":0},{"$f":"Import!E22951","v":0},{"$f":"Import!E23351","v":0},{"$f":"Import!E23751","v":0},{"$f":"Import!E24151","v":0}]
[236,{"$f":"Import!E21352","v":"Select"},{"$f":"Import!E21752","v":"Select"},{"$f":"Import!E22152","v":"Select"},{"$f":"Import!E22552","v":0},{"$f":"Import!E22952","v":0},{"$f":"Import!E23352","v":0},{"$f":"Import!E23752","v":0},{"$f":"Import!E24152","v":0}]
[237,{"$f":"Import!E21353","v":"Select"},{"$f":"Import!E21753","v":"Select"},{"$f":"Import!E22153","v":"Select"},{"$f":"Import!E22553","v":0},{"$f":"Import!E22953","v":0},{"$f":"Import!E23353","v":0},{"$f":"Import!E23753","v":0},{"$f":"Import!E24153","v":0}]
[238,{"$f":"Import!E21354","v":"Select"},{"$f":"Import!E21754","v":"Select"},{"$f":"Import!E22154","v":"Select"},{"$f":"Import!E22554","v":0},{"$f":"Import!E22954","v":0},{"$f":"Import!E23354","v":0},{"$f":"Import!E23754","v":0},{"$f":"Import!E24154","v":0}]
[239,{"$f":"Import!E21355","v":"Select"},{"$f":"Import!E21755","v":"Select"},{"$f":"Import!E22155","v":"Select"},{"$f":"Import!E22555","v":0},{"$f":"Import!E22955","v":0},{"$f":"Import!E23355","v":0},{"$f":"Import!E23755","v":0},{"$f":"Import!E24155","v":0}]
[240,{"$f":"Import!E21356","v":"Select"},{"$f":"Import!E21756","v":"Select"},{"$f":"Import!E22156","v":"Select"},{"$f":"Import!E22556","v":0},{"$f":"Import!E22956","v":0},{"$f":"Import!E23356","v":0},{"$f":"Import!E23756","v":0},{"$f":"Import!E24156","v":0}]
[241,{"$f":"Import!E21357","v":"Select"},{"$f":"Import!E21757","v":"Select"},{"$f":"Import!E22157","v":"Select"},{"$f":"Import!E22557","v":0},{"$f":"Import!E22957","v":0},{"$f":"Import!E23357","v":0},{"$f":"Import!E23757","v":0},{"$f":"Import!E24157","v":0}]
[242,{"$f":"Import!E21358","v":"Select"},{"$f":"Import!E21758","v":"Select"},{"$f":"Import!E22158","v":"Select"},{"$f":"Import!E22558","v":0},{"$f":"Import!E22958","v":0},{"$f":"Import!E23358","v":0},{"$f":"Import!E23758","v":0},{"$f":"Import!E24158","v":0}]
[243,{"$f":"Import!E21359","v":"Select"},{"$f":"Import!E21759","v":"Select"},{"$f":"Import!E22159","v":"Select"},{"$f":"Import!E22559","v":0},{"$f":"Import!E22959","v":0},{"$f":"Import!E23359","v":0},{"$f":"Import!E23759","v":0},{"$f":"Import!E24159","v":0}]
[244,{"$f":"Import!E21360","v":"Select"},{"$f":"Import!E21760","v":"Select"},{"$f":"Import!E22160","v":"Select"},{"$f":"Import!E22560","v":0},{"$f":"Import!E22960","v":0},{"$f":"Import!E23360","v":0},{"$f":"Import!E23760","v":0},{"$f":"Import!E24160","v":0}]
[245,{"$f":"Import!E21361","v":"Select"},{"$f":"Import!E21761","v":"Select"},{"$f":"Import!E22161","v":"Select"},{"$f":"Import!E22561","v":0},{"$f":"Import!E22961","v":0},{"$f":"Import!E23361","v":0},{"$f":"Import!E23761","v":0},{"$f":"Import!E24161","v":0}]
[246,{"$f":"Import!E21362","v":"Select"},{"$f":"Import!E21762","v":"Select"},{"$f":"Import!E22162","v":"Select"},{"$f":"Import!E22562","v":0},{"$f":"Import!E22962","v":0},{"$f":"Import!E23362","v":0},{"$f":"Import!E23762","v":0},{"$f":"Import!E24162","v":0}]
[247,{"$f":"Import!E21363","v":"Select"},{"$f":"Import!E21763","v":"Select"},{"$f":"Import!E22163","v":"Select"},{"$f":"Import!E22563","v":0},{"$f":"Import!E22963","v":0},{"$f":"Import!E23363","v":0},{"$f":"Import!E23763","v":0},{"$f":"Import!E24163","v":0}]
[248,{"$f":"Import!E21364","v":"Select"},{"$f":"Import!E21764","v":"Select"},{"$f":"Import!E22164","v":"Select"},{"$f":"Import!E22564","v":0},{"$f":"Import!E22964","v":0},{"$f":"Import!E23364","v":0},{"$f":"Import!E23764","v":0},{"$f":"Import!E24164","v":0}]
[249,{"$f":"Import!E21365","v":"Select"},{"$f":"Import!E21765","v":"Select"},{"$f":"Import!E22165","v":"Select"},{"$f":"Import!E22565","v":0},{"$f":"Import!E22965","v":0},{"$f":"Import!E23365","v":0},{"$f":"Import!E23765","v":0},{"$f":"Import!E24165","v":0}]
[250,{"$f":"Import!E21366","v":"Select"},{"$f":"Import!E21766","v":"Select"},{"$f":"Import!E22166","v":"Select"},{"$f":"Import!E22566","v":0},{"$f":"Import!E22966","v":0},{"$f":"Import!E23366","v":0},{"$f":"Import!E23766","v":0},{"$f":"Import!E24166","v":0}]
[251,{"$f":"Import!E21367","v":"Select"},{"$f":"Import!E21767","v":"Select"},{"$f":"Import!E22167","v":"Select"},{"$f":"Import!E22567","v":0},{"$f":"Import!E22967","v":0},{"$f":"Import!E23367","v":0},{"$f":"Import!E23767","v":0},{"$f":"Import!E24167","v":0}]
[252,{"$f":"Import!E21368","v":"Select"},{"$f":"Import!E21768","v":"Select"},{"$f":"Import!E22168","v":"Select"},{"$f":"Import!E22568","v":0},{"$f":"Import!E22968","v":0},{"$f":"Import!E23368","v":0},{"$f":"Import!E23768","v":0},{"$f":"Import!E24168","v":0}]
[253,{"$f":"Import!E21369","v":"Select"},{"$f":"Import!E21769","v":"Select"},{"$f":"Import!E22169","v":"Select"},{"$f":"Import!E22569","v":0},{"$f":"Import!E22969","v":0},{"$f":"Import!E23369","v":0},{"$f":"Import!E23769","v":0},{"$f":"Import!E24169","v":0}]
[254,{"$f":"Import!E21370","v":"Select"},{"$f":"Import!E21770","v":"Select"},{"$f":"Import!E22170","v":"Select"},{"$f":"Import!E22570","v":0},{"$f":"Import!E22970","v":0},{"$f":"Import!E23370","v":0},{"$f":"Import!E23770","v":0},{"$f":"Import!E24170","v":0}]
[255,{"$f":"Import!E21371","v":"Select"},{"$f":"Import!E21771","v":"Select"},{"$f":"Import!E22171","v":"Select"},{"$f":"Import!E22571","v":0},{"$f":"Import!E22971","v":0},{"$f":"Import!E23371","v":0},{"$f":"Import!E23771","v":0},{"$f":"Import!E24171","v":0}]
[256,{"$f":"Import!E21372","v":"Select"},{"$f":"Import!E21772","v":"Select"},{"$f":"Import!E22172","v":"Select"},{"$f":"Import!E22572","v":0},{"$f":"Import!E22972","v":0},{"$f":"Import!E23372","v":0},{"$f":"Import!E23772","v":0},{"$f":"Import!E24172","v":0}]
[257,{"$f":"Import!E21373","v":"Select"},{"$f":"Import!E21773","v":"Select"},{"$f":"Import!E22173","v":"Select"},{"$f":"Import!E22573","v":0},{"$f":"Import!E22973","v":0},{"$f":"Import!E23373","v":0},{"$f":"Import!E23773","v":0},{"$f":"Import!E24173","v":0}]
[258,{"$f":"Import!E21374","v":"Select"},{"$f":"Import!E21774","v":"Select"},{"$f":"Import!E22174","v":"Select"},{"$f":"Import!E22574","v":0},{"$f":"Import!E22974","v":0},{"$f":"Import!E23374","v":0},{"$f":"Import!E23774","v":0},{"$f":"Import!E24174","v":0}]
[{"$f":"A476+1","v":259},{"$f":"Import!E21375","v":"Select"},{"$f":"Import!E21775","v":"Select"},{"$f":"Import!E22175","v":"Select"},{"$f":"Import!E22575","v":0},{"$f":"Import!E22975","v":0},{"$f":"Import!E23375","v":0},{"$f":"Import!E23775","v":0},{"$f":"Import!E24175","v":0}]
[260,{"$f":"Import!E21376","v":"Select"},{"$f":"Import!E21776","v":"Select"},{"$f":"Import!E22176","v":"Select"},{"$f":"Import!E22576","v":0},{"$f":"Import!E22976","v":0},{"$f":"Import!E23376","v":0},{"$f":"Import!E23776","v":0},{"$f":"Import!E24176","v":0}]
[261,{"$f":"Import!E21377","v":"Select"},{"$f":"Import!E21777","v":"Select"},{"$f":"Import!E22177","v":"Select"},{"$f":"Import!E22577","v":0},{"$f":"Import!E22977","v":0},{"$f":"Import!E23377","v":0},{"$f":"Import!E23777","v":0},{"$f":"Import!E24177","v":0}]
[262,{"$f":"Import!E21378","v":"Select"},{"$f":"Import!E21778","v":"Select"},{"$f":"Import!E22178","v":"Select"},{"$f":"Import!E22578","v":0},{"$f":"Import!E22978","v":0},{"$f":"Import!E23378","v":0},{"$f":"Import!E23778","v":0},{"$f":"Import!E24178","v":0}]
[263,{"$f":"Import!E21379","v":"Select"},{"$f":"Import!E21779","v":"Select"},{"$f":"Import!E22179","v":"Select"},{"$f":"Import!E22579","v":0},{"$f":"Import!E22979","v":0},{"$f":"Import!E23379","v":0},{"$f":"Import!E23779","v":0},{"$f":"Import!E24179","v":0}]
[264,{"$f":"Import!E21380","v":"Select"},{"$f":"Import!E21780","v":"Select"},{"$f":"Import!E22180","v":"Select"},{"$f":"Import!E22580","v":0},{"$f":"Import!E22980","v":0},{"$f":"Import!E23380","v":0},{"$f":"Import!E23780","v":0},{"$f":"Import!E24180","v":0}]
[265,{"$f":"Import!E21381","v":"Select"},{"$f":"Import!E21781","v":"Select"},{"$f":"Import!E22181","v":"Select"},{"$f":"Import!E22581","v":0},{"$f":"Import!E22981","v":0},{"$f":"Import!E23381","v":0},{"$f":"Import!E23781","v":0},{"$f":"Import!E24181","v":0}]
[266,{"$f":"Import!E21382","v":"Select"},{"$f":"Import!E21782","v":"Select"},{"$f":"Import!E22182","v":"Select"},{"$f":"Import!E22582","v":0},{"$f":"Import!E22982","v":0},{"$f":"Import!E23382","v":0},{"$f":"Import!E23782","v":0},{"$f":"Import!E24182","v":0}]
[267,{"$f":"Import!E21383","v":"Select"},{"$f":"Import!E21783","v":"Select"},{"$f":"Import!E22183","v":"Select"},{"$f":"Import!E22583","v":0},{"$f":"Import!E22983","v":0},{"$f":"Import!E23383","v":0},{"$f":"Import!E23783","v":0},{"$f":"Import!E24183","v":0}]
[268,{"$f":"Import!E21384","v":"Select"},{"$f":"Import!E21784","v":"Select"},{"$f":"Import!E22184","v":"Select"},{"$f":"Import!E22584","v":0},{"$f":"Import!E22984","v":0},{"$f":"Import!E23384","v":0},{"$f":"Import!E23784","v":0},{"$f":"Import!E24184","v":0}]
[269,{"$f":"Import!E21385","v":"Select"},{"$f":"Import!E21785","v":"Select"},{"$f":"Import!E22185","v":"Select"},{"$f":"Import!E22585","v":0},{"$f":"Import!E22985","v":0},{"$f":"Import!E23385","v":0},{"$f":"Import!E23785","v":0},{"$f":"Import!E24185","v":0}]
[270,{"$f":"Import!E21386","v":"Select"},{"$f":"Import!E21786","v":"Select"},{"$f":"Import!E22186","v":"Select"},{"$f":"Import!E22586","v":0},{"$f":"Import!E22986","v":0},{"$f":"Import!E23386","v":0},{"$f":"Import!E23786","v":0},{"$f":"Import!E24186","v":0}]
[271,{"$f":"Import!E21387","v":"Select"},{"$f":"Import!E21787","v":"Select"},{"$f":"Import!E22187","v":"Select"},{"$f":"Import!E22587","v":0},{"$f":"Import!E22987","v":0},{"$f":"Import!E23387","v":0},{"$f":"Import!E23787","v":0},{"$f":"Import!E24187","v":0}]
[272,{"$f":"Import!E21388","v":"Select"},{"$f":"Import!E21788","v":"Select"},{"$f":"Import!E22188","v":"Select"},{"$f":"Import!E22588","v":0},{"$f":"Import!E22988","v":0},{"$f":"Import!E23388","v":0},{"$f":"Import!E23788","v":0},{"$f":"Import!E24188","v":0}]
[273,{"$f":"Import!E21389","v":"Select"},{"$f":"Import!E21789","v":"Select"},{"$f":"Import!E22189","v":"Select"},{"$f":"Import!E22589","v":0},{"$f":"Import!E22989","v":0},{"$f":"Import!E23389","v":0},{"$f":"Import!E23789","v":0},{"$f":"Import!E24189","v":0}]
[274,{"$f":"Import!E21390","v":"Select"},{"$f":"Import!E21790","v":"Select"},{"$f":"Import!E22190","v":"Select"},{"$f":"Import!E22590","v":0},{"$f":"Import!E22990","v":0},{"$f":"Import!E23390","v":0},{"$f":"Import!E23790","v":0},{"$f":"Import!E24190","v":0}]
[275,{"$f":"Import!E21391","v":"Select"},{"$f":"Import!E21791","v":"Select"},{"$f":"Import!E22191","v":"Select"},{"$f":"Import!E22591","v":0},{"$f":"Import!E22991","v":0},{"$f":"Import!E23391","v":0},{"$f":"Import!E23791","v":0},{"$f":"Import!E24191","v":0}]
[276,{"$f":"Import!E21392","v":"Select"},{"$f":"Import!E21792","v":"Select"},{"$f":"Import!E22192","v":"Select"},{"$f":"Import!E22592","v":0},{"$f":"Import!E22992","v":0},{"$f":"Import!E23392","v":0},{"$f":"Import!E23792","v":0},{"$f":"Import!E24192","v":0}]
[277,{"$f":"Import!E21393","v":"Select"},{"$f":"Import!E21793","v":"Select"},{"$f":"Import!E22193","v":"Select"},{"$f":"Import!E22593","v":0},{"$f":"Import!E22993","v":0},{"$f":"Import!E23393","v":0},{"$f":"Import!E23793","v":0},{"$f":"Import!E24193","v":0}]
[278,{"$f":"Import!E21394","v":"Select"},{"$f":"Import!E21794","v":"Select"},{"$f":"Import!E22194","v":"Select"},{"$f":"Import!E22594","v":0},{"$f":"Import!E22994","v":0},{"$f":"Import!E23394","v":0},{"$f":"Import!E23794","v":0},{"$f":"Import!E24194","v":0}]
[279,{"$f":"Import!E21395","v":"Select"},{"$f":"Import!E21795","v":"Select"},{"$f":"Import!E22195","v":"Select"},{"$f":"Import!E22595","v":0},{"$f":"Import!E22995","v":0},{"$f":"Import!E23395","v":0},{"$f":"Import!E23795","v":0},{"$f":"Import!E24195","v":0}]
[280,{"$f":"Import!E21396","v":"Select"},{"$f":"Import!E21796","v":"Select"},{"$f":"Import!E22196","v":"Select"},{"$f":"Import!E22596","v":0},{"$f":"Import!E22996","v":0},{"$f":"Import!E23396","v":0},{"$f":"Import!E23796","v":0},{"$f":"Import!E24196","v":0}]
[281,{"$f":"Import!E21397","v":"Select"},{"$f":"Import!E21797","v":"Select"},{"$f":"Import!E22197","v":"Select"},{"$f":"Import!E22597","v":0},{"$f":"Import!E22997","v":0},{"$f":"Import!E23397","v":0},{"$f":"Import!E23797","v":0},{"$f":"Import!E24197","v":0}]
[282,{"$f":"Import!E21398","v":"Select"},{"$f":"Import!E21798","v":"Select"},{"$f":"Import!E22198","v":"Select"},{"$f":"Import!E22598","v":0},{"$f":"Import!E22998","v":0},{"$f":"Import!E23398","v":0},{"$f":"Import!E23798","v":0},{"$f":"Import!E24198","v":0}]
[283,{"$f":"Import!E21399","v":"Select"},{"$f":"Import!E21799","v":"Select"},{"$f":"Import!E22199","v":"Select"},{"$f":"Import!E22599","v":0},{"$f":"Import!E22999","v":0},{"$f":"Import!E23399","v":0},{"$f":"Import!E23799","v":0},{"$f":"Import!E24199","v":0}]
[284,{"$f":"Import!E21400","v":"Select"},{"$f":"Import!E21800","v":"Select"},{"$f":"Import!E22200","v":"Select"},{"$f":"Import!E22600","v":0},{"$f":"Import!E23000","v":0},{"$f":"Import!E23400","v":0},{"$f":"Import!E23800","v":0},{"$f":"Import!E24200","v":0}]
[285,{"$f":"Import!E21401","v":"Select"},{"$f":"Import!E21801","v":"Select"},{"$f":"Import!E22201","v":"Select"},{"$f":"Import!E22601","v":0},{"$f":"Import!E23001","v":0},{"$f":"Import!E23401","v":0},{"$f":"Import!E23801","v":0},{"$f":"Import!E24201","v":0}]
[286,{"$f":"Import!E21402","v":"Select"},{"$f":"Import!E21802","v":"Select"},{"$f":"Import!E22202","v":"Select"},{"$f":"Import!E22602","v":0},{"$f":"Import!E23002","v":0},{"$f":"Import!E23402","v":0},{"$f":"Import!E23802","v":0},{"$f":"Import!E24202","v":0}]
[287,{"$f":"Import!E21403","v":"Select"},{"$f":"Import!E21803","v":"Select"},{"$f":"Import!E22203","v":"Select"},{"$f":"Import!E22603","v":0},{"$f":"Import!E23003","v":0},{"$f":"Import!E23403","v":0},{"$f":"Import!E23803","v":0},{"$f":"Import!E24203","v":0}]
[288,{"$f":"Import!E21404","v":"Select"},{"$f":"Import!E21804","v":"Select"},{"$f":"Import!E22204","v":"Select"},{"$f":"Import!E22604","v":0},{"$f":"Import!E23004","v":0},{"$f":"Import!E23404","v":0},{"$f":"Import!E23804","v":0},{"$f":"Import!E24204","v":0}]
[289,{"$f":"Import!E21405","v":"Select"},{"$f":"Import!E21805","v":"Select"},{"$f":"Import!E22205","v":"Select"},{"$f":"Import!E22605","v":0},{"$f":"Import!E23005","v":0},{"$f":"Import!E23405","v":0},{"$f":"Import!E23805","v":0},{"$f":"Import!E24205","v":0}]
[290,{"$f":"Import!E21406","v":"Select"},{"$f":"Import!E21806","v":"Select"},{"$f":"Import!E22206","v":"Select"},{"$f":"Import!E22606","v":0},{"$f":"Import!E23006","v":0},{"$f":"Import!E23406","v":0},{"$f":"Import!E23806","v":0},{"$f":"Import!E24206","v":0}]
[291,{"$f":"Import!E21407","v":"Select"},{"$f":"Import!E21807","v":"Select"},{"$f":"Import!E22207","v":"Select"},{"$f":"Import!E22607","v":0},{"$f":"Import!E23007","v":0},{"$f":"Import!E23407","v":0},{"$f":"Import!E23807","v":0},{"$f":"Import!E24207","v":0}]
[292,{"$f":"Import!E21408","v":"Select"},{"$f":"Import!E21808","v":"Select"},{"$f":"Import!E22208","v":"Select"},{"$f":"Import!E22608","v":0},{"$f":"Import!E23008","v":0},{"$f":"Import!E23408","v":0},{"$f":"Import!E23808","v":0},{"$f":"Import!E24208","v":0}]
[293,{"$f":"Import!E21409","v":"Select"},{"$f":"Import!E21809","v":"Select"},{"$f":"Import!E22209","v":"Select"},{"$f":"Import!E22609","v":0},{"$f":"Import!E23009","v":0},{"$f":"Import!E23409","v":0},{"$f":"Import!E23809","v":0},{"$f":"Import!E24209","v":0}]
[294,{"$f":"Import!E21410","v":"Select"},{"$f":"Import!E21810","v":"Select"},{"$f":"Import!E22210","v":"Select"},{"$f":"Import!E22610","v":0},{"$f":"Import!E23010","v":0},{"$f":"Import!E23410","v":0},{"$f":"Import!E23810","v":0},{"$f":"Import!E24210","v":0}]
[295,{"$f":"Import!E21411","v":"Select"},{"$f":"Import!E21811","v":"Select"},{"$f":"Import!E22211","v":"Select"},{"$f":"Import!E22611","v":0},{"$f":"Import!E23011","v":0},{"$f":"Import!E23411","v":0},{"$f":"Import!E23811","v":0},{"$f":"Import!E24211","v":0}]
[296,{"$f":"Import!E21412","v":"Select"},{"$f":"Import!E21812","v":"Select"},{"$f":"Import!E22212","v":"Select"},{"$f":"Import!E22612","v":0},{"$f":"Import!E23012","v":0},{"$f":"Import!E23412","v":0},{"$f":"Import!E23812","v":0},{"$f":"Import!E24212","v":0}]
[297,{"$f":"Import!E21413","v":"Select"},{"$f":"Import!E21813","v":"Select"},{"$f":"Import!E22213","v":"Select"},{"$f":"Import!E22613","v":0},{"$f":"Import!E23013","v":0},{"$f":"Import!E23413","v":0},{"$f":"Import!E23813","v":0},{"$f":"Import!E24213","v":0}]
[298,{"$f":"Import!E21414","v":"Select"},{"$f":"Import!E21814","v":"Select"},{"$f":"Import!E22214","v":"Select"},{"$f":"Import!E22614","v":0},{"$f":"Import!E23014","v":0},{"$f":"Import!E23414","v":0},{"$f":"Import!E23814","v":0},{"$f":"Import!E24214","v":0}]
[299,{"$f":"Import!E21415","v":"Select"},{"$f":"Import!E21815","v":"Select"},{"$f":"Import!E22215","v":"Select"},{"$f":"Import!E22615","v":0},{"$f":"Import!E23015","v":0},{"$f":"Import!E23415","v":0},{"$f":"Import!E23815","v":0},{"$f":"Import!E24215","v":0}]
[300,{"$f":"Import!E21416","v":"Select"},{"$f":"Import!E21816","v":"Select"},{"$f":"Import!E22216","v":"Select"},{"$f":"Import!E22616","v":0},{"$f":"Import!E23016","v":0},{"$f":"Import!E23416","v":0},{"$f":"Import!E23816","v":0},{"$f":"Import!E24216","v":0}]
[301,{"$f":"Import!E21417","v":"Select"},{"$f":"Import!E21817","v":"Select"},{"$f":"Import!E22217","v":"Select"},{"$f":"Import!E22617","v":0},{"$f":"Import!E23017","v":0},{"$f":"Import!E23417","v":0},{"$f":"Import!E23817","v":0},{"$f":"Import!E24217","v":0}]
[302,{"$f":"Import!E21418","v":"Select"},{"$f":"Import!E21818","v":"Select"},{"$f":"Import!E22218","v":"Select"},{"$f":"Import!E22618","v":0},{"$f":"Import!E23018","v":0},{"$f":"Import!E23418","v":0},{"$f":"Import!E23818","v":0},{"$f":"Import!E24218","v":0}]
[303,{"$f":"Import!E21419","v":"Select"},{"$f":"Import!E21819","v":"Select"},{"$f":"Import!E22219","v":"Select"},{"$f":"Import!E22619","v":0},{"$f":"Import!E23019","v":0},{"$f":"Import!E23419","v":0},{"$f":"Import!E23819","v":0},{"$f":"Import!E24219","v":0}]
[304,{"$f":"Import!E21420","v":"Select"},{"$f":"Import!E21820","v":"Select"},{"$f":"Import!E22220","v":"Select"},{"$f":"Import!E22620","v":0},{"$f":"Import!E23020","v":0},{"$f":"Import!E23420","v":0},{"$f":"Import!E23820","v":0},{"$f":"Import!E24220","v":0}]
[305,{"$f":"Import!E21421","v":"Select"},{"$f":"Import!E21821","v":"Select"},{"$f":"Import!E22221","v":"Select"},{"$f":"Import!E22621","v":0},{"$f":"Import!E23021","v":0},{"$f":"Import!E23421","v":0},{"$f":"Import!E23821","v":0},{"$f":"Import!E24221","v":0}]
[306,{"$f":"Import!E21422","v":"Select"},{"$f":"Import!E21822","v":"Select"},{"$f":"Import!E22222","v":"Select"},{"$f":"Import!E22622","v":0},{"$f":"Import!E23022","v":0},{"$f":"Import!E23422","v":0},{"$f":"Import!E23822","v":0},{"$f":"Import!E24222","v":0}]
[307,{"$f":"Import!E21423","v":"Select"},{"$f":"Import!E21823","v":"Select"},{"$f":"Import!E22223","v":"Select"},{"$f":"Import!E22623","v":0},{"$f":"Import!E23023","v":0},{"$f":"Import!E23423","v":0},{"$f":"Import!E23823","v":0},{"$f":"Import!E24223","v":0}]
[308,{"$f":"Import!E21424","v":"Select"},{"$f":"Import!E21824","v":"Select"},{"$f":"Import!E22224","v":"Select"},{"$f":"Import!E22624","v":0},{"$f":"Import!E23024","v":0},{"$f":"Import!E23424","v":0},{"$f":"Import!E23824","v":0},{"$f":"Import!E24224","v":0}]
[309,{"$f":"Import!E21425","v":"Select"},{"$f":"Import!E21825","v":"Select"},{"$f":"Import!E22225","v":"Select"},{"$f":"Import!E22625","v":0},{"$f":"Import!E23025","v":0},{"$f":"Import!E23425","v":0},{"$f":"Import!E23825","v":0},{"$f":"Import!E24225","v":0}]
[310,{"$f":"Import!E21426","v":"Select"},{"$f":"Import!E21826","v":"Select"},{"$f":"Import!E22226","v":"Select"},{"$f":"Import!E22626","v":0},{"$f":"Import!E23026","v":0},{"$f":"Import!E23426","v":0},{"$f":"Import!E23826","v":0},{"$f":"Import!E24226","v":0}]
[311,{"$f":"Import!E21427","v":"Select"},{"$f":"Import!E21827","v":"Select"},{"$f":"Import!E22227","v":"Select"},{"$f":"Import!E22627","v":0},{"$f":"Import!E23027","v":0},{"$f":"Import!E23427","v":0},{"$f":"Import!E23827","v":0},{"$f":"Import!E24227","v":0}]
[312,{"$f":"Import!E21428","v":"Select"},{"$f":"Import!E21828","v":"Select"},{"$f":"Import!E22228","v":"Select"},{"$f":"Import!E22628","v":0},{"$f":"Import!E23028","v":0},{"$f":"Import!E23428","v":0},{"$f":"Import!E23828","v":0},{"$f":"Import!E24228","v":0}]
[313,{"$f":"Import!E21429","v":"Select"},{"$f":"Import!E21829","v":"Select"},{"$f":"Import!E22229","v":"Select"},{"$f":"Import!E22629","v":0},{"$f":"Import!E23029","v":0},{"$f":"Import!E23429","v":0},{"$f":"Import!E23829","v":0},{"$f":"Import!E24229","v":0}]
[314,{"$f":"Import!E21430","v":"Select"},{"$f":"Import!E21830","v":"Select"},{"$f":"Import!E22230","v":"Select"},{"$f":"Import!E22630","v":0},{"$f":"Import!E23030","v":0},{"$f":"Import!E23430","v":0},{"$f":"Import!E23830","v":0},{"$f":"Import!E24230","v":0}]
[315,{"$f":"Import!E21431","v":"Select"},{"$f":"Import!E21831","v":"Select"},{"$f":"Import!E22231","v":"Select"},{"$f":"Import!E22631","v":0},{"$f":"Import!E23031","v":0},{"$f":"Import!E23431","v":0},{"$f":"Import!E23831","v":0},{"$f":"Import!E24231","v":0}]
[316,{"$f":"Import!E21432","v":"Select"},{"$f":"Import!E21832","v":"Select"},{"$f":"Import!E22232","v":"Select"},{"$f":"Import!E22632","v":0},{"$f":"Import!E23032","v":0},{"$f":"Import!E23432","v":0},{"$f":"Import!E23832","v":0},{"$f":"Import!E24232","v":0}]
[317,{"$f":"Import!E21433","v":"Select"},{"$f":"Import!E21833","v":"Select"},{"$f":"Import!E22233","v":"Select"},{"$f":"Import!E22633","v":0},{"$f":"Import!E23033","v":0},{"$f":"Import!E23433","v":0},{"$f":"Import!E23833","v":0},{"$f":"Import!E24233","v":0}]
[318,{"$f":"Import!E21434","v":"Select"},{"$f":"Import!E21834","v":"Select"},{"$f":"Import!E22234","v":"Select"},{"$f":"Import!E22634","v":0},{"$f":"Import!E23034","v":0},{"$f":"Import!E23434","v":0},{"$f":"Import!E23834","v":0},{"$f":"Import!E24234","v":0}]
[319,{"$f":"Import!E21435","v":"Select"},{"$f":"Import!E21835","v":"Select"},{"$f":"Import!E22235","v":"Select"},{"$f":"Import!E22635","v":0},{"$f":"Import!E23035","v":0},{"$f":"Import!E23435","v":0},{"$f":"Import!E23835","v":0},{"$f":"Import!E24235","v":0}]
[320,{"$f":"Import!E21436","v":"Select"},{"$f":"Import!E21836","v":"Select"},{"$f":"Import!E22236","v":"Select"},{"$f":"Import!E22636","v":0},{"$f":"Import!E23036","v":0},{"$f":"Import!E23436","v":0},{"$f":"Import!E23836","v":0},{"$f":"Import!E24236","v":0}]
[321,{"$f":"Import!E21437","v":"Select"},{"$f":"Import!E21837","v":"Select"},{"$f":"Import!E22237","v":"Select"},{"$f":"Import!E22637","v":0},{"$f":"Import!E23037","v":0},{"$f":"Import!E23437","v":0},{"$f":"Import!E23837","v":0},{"$f":"Import!E24237","v":0}]
[322,{"$f":"Import!E21438","v":"Select"},{"$f":"Import!E21838","v":"Select"},{"$f":"Import!E22238","v":"Select"},{"$f":"Import!E22638","v":0},{"$f":"Import!E23038","v":0},{"$f":"Import!E23438","v":0},{"$f":"Import!E23838","v":0},{"$f":"Import!E24238","v":0}]
[{"$f":"A540+1","v":323},{"$f":"Import!E21439","v":"Select"},{"$f":"Import!E21839","v":"Select"},{"$f":"Import!E22239","v":"Select"},{"$f":"Import!E22639","v":0},{"$f":"Import!E23039","v":0},{"$f":"Import!E23439","v":0},{"$f":"Import!E23839","v":0},{"$f":"Import!E24239","v":0}]
[324,{"$f":"Import!E21440","v":"Select"},{"$f":"Import!E21840","v":"Select"},{"$f":"Import!E22240","v":"Select"},{"$f":"Import!E22640","v":0},{"$f":"Import!E23040","v":0},{"$f":"Import!E23440","v":0},{"$f":"Import!E23840","v":0},{"$f":"Import!E24240","v":0}]
[325,{"$f":"Import!E21441","v":"Select"},{"$f":"Import!E21841","v":"Select"},{"$f":"Import!E22241","v":"Select"},{"$f":"Import!E22641","v":0},{"$f":"Import!E23041","v":0},{"$f":"Import!E23441","v":0},{"$f":"Import!E23841","v":0},{"$f":"Import!E24241","v":0}]
[326,{"$f":"Import!E21442","v":"Select"},{"$f":"Import!E21842","v":"Select"},{"$f":"Import!E22242","v":"Select"},{"$f":"Import!E22642","v":0},{"$f":"Import!E23042","v":0},{"$f":"Import!E23442","v":0},{"$f":"Import!E23842","v":0},{"$f":"Import!E24242","v":0}]
[327,{"$f":"Import!E21443","v":"Select"},{"$f":"Import!E21843","v":"Select"},{"$f":"Import!E22243","v":"Select"},{"$f":"Import!E22643","v":0},{"$f":"Import!E23043","v":0},{"$f":"Import!E23443","v":0},{"$f":"Import!E23843","v":0},{"$f":"Import!E24243","v":0}]
[328,{"$f":"Import!E21444","v":"Select"},{"$f":"Import!E21844","v":"Select"},{"$f":"Import!E22244","v":"Select"},{"$f":"Import!E22644","v":0},{"$f":"Import!E23044","v":0},{"$f":"Import!E23444","v":0},{"$f":"Import!E23844","v":0},{"$f":"Import!E24244","v":0}]
[329,{"$f":"Import!E21445","v":"Select"},{"$f":"Import!E21845","v":"Select"},{"$f":"Import!E22245","v":"Select"},{"$f":"Import!E22645","v":0},{"$f":"Import!E23045","v":0},{"$f":"Import!E23445","v":0},{"$f":"Import!E23845","v":0},{"$f":"Import!E24245","v":0}]
[330,{"$f":"Import!E21446","v":"Select"},{"$f":"Import!E21846","v":"Select"},{"$f":"Import!E22246","v":"Select"},{"$f":"Import!E22646","v":0},{"$f":"Import!E23046","v":0},{"$f":"Import!E23446","v":0},{"$f":"Import!E23846","v":0},{"$f":"Import!E24246","v":0}]
[331,{"$f":"Import!E21447","v":"Select"},{"$f":"Import!E21847","v":"Select"},{"$f":"Import!E22247","v":"Select"},{"$f":"Import!E22647","v":0},{"$f":"Import!E23047","v":0},{"$f":"Import!E23447","v":0},{"$f":"Import!E23847","v":0},{"$f":"Import!E24247","v":0}]
[332,{"$f":"Import!E21448","v":"Select"},{"$f":"Import!E21848","v":"Select"},{"$f":"Import!E22248","v":"Select"},{"$f":"Import!E22648","v":0},{"$f":"Import!E23048","v":0},{"$f":"Import!E23448","v":0},{"$f":"Import!E23848","v":0},{"$f":"Import!E24248","v":0}]
[333,{"$f":"Import!E21449","v":"Select"},{"$f":"Import!E21849","v":"Select"},{"$f":"Import!E22249","v":"Select"},{"$f":"Import!E22649","v":0},{"$f":"Import!E23049","v":0},{"$f":"Import!E23449","v":0},{"$f":"Import!E23849","v":0},{"$f":"Import!E24249","v":0}]
[334,{"$f":"Import!E21450","v":"Select"},{"$f":"Import!E21850","v":"Select"},{"$f":"Import!E22250","v":"Select"},{"$f":"Import!E22650","v":0},{"$f":"Import!E23050","v":0},{"$f":"Import!E23450","v":0},{"$f":"Import!E23850","v":0},{"$f":"Import!E24250","v":0}]
[335,{"$f":"Import!E21451","v":"Select"},{"$f":"Import!E21851","v":"Select"},{"$f":"Import!E22251","v":"Select"},{"$f":"Import!E22651","v":0},{"$f":"Import!E23051","v":0},{"$f":"Import!E23451","v":0},{"$f":"Import!E23851","v":0},{"$f":"Import!E24251","v":0}]
[336,{"$f":"Import!E21452","v":"Select"},{"$f":"Import!E21852","v":"Select"},{"$f":"Import!E22252","v":"Select"},{"$f":"Import!E22652","v":0},{"$f":"Import!E23052","v":0},{"$f":"Import!E23452","v":0},{"$f":"Import!E23852","v":0},{"$f":"Import!E24252","v":0}]
[337,{"$f":"Import!E21453","v":"Select"},{"$f":"Import!E21853","v":"Select"},{"$f":"Import!E22253","v":"Select"},{"$f":"Import!E22653","v":0},{"$f":"Import!E23053","v":0},{"$f":"Import!E23453","v":0},{"$f":"Import!E23853","v":0},{"$f":"Import!E24253","v":0}]
[338,{"$f":"Import!E21454","v":"Select"},{"$f":"Import!E21854","v":"Select"},{"$f":"Import!E22254","v":"Select"},{"$f":"Import!E22654","v":0},{"$f":"Import!E23054","v":0},{"$f":"Import!E23454","v":0},{"$f":"Import!E23854","v":0},{"$f":"Import!E24254","v":0}]
[339,{"$f":"Import!E21455","v":"Select"},{"$f":"Import!E21855","v":"Select"},{"$f":"Import!E22255","v":"Select"},{"$f":"Import!E22655","v":0},{"$f":"Import!E23055","v":0},{"$f":"Import!E23455","v":0},{"$f":"Import!E23855","v":0},{"$f":"Import!E24255","v":0}]
[340,{"$f":"Import!E21456","v":"Select"},{"$f":"Import!E21856","v":"Select"},{"$f":"Import!E22256","v":"Select"},{"$f":"Import!E22656","v":0},{"$f":"Import!E23056","v":0},{"$f":"Import!E23456","v":0},{"$f":"Import!E23856","v":0},{"$f":"Import!E24256","v":0}]
[341,{"$f":"Import!E21457","v":"Select"},{"$f":"Import!E21857","v":"Select"},{"$f":"Import!E22257","v":"Select"},{"$f":"Import!E22657","v":0},{"$f":"Import!E23057","v":0},{"$f":"Import!E23457","v":0},{"$f":"Import!E23857","v":0},{"$f":"Import!E24257","v":0}]
[342,{"$f":"Import!E21458","v":"Select"},{"$f":"Import!E21858","v":"Select"},{"$f":"Import!E22258","v":"Select"},{"$f":"Import!E22658","v":0},{"$f":"Import!E23058","v":0},{"$f":"Import!E23458","v":0},{"$f":"Import!E23858","v":0},{"$f":"Import!E24258","v":0}]
[343,{"$f":"Import!E21459","v":"Select"},{"$f":"Import!E21859","v":"Select"},{"$f":"Import!E22259","v":"Select"},{"$f":"Import!E22659","v":0},{"$f":"Import!E23059","v":0},{"$f":"Import!E23459","v":0},{"$f":"Import!E23859","v":0},{"$f":"Import!E24259","v":0}]
[344,{"$f":"Import!E21460","v":"Select"},{"$f":"Import!E21860","v":"Select"},{"$f":"Import!E22260","v":"Select"},{"$f":"Import!E22660","v":0},{"$f":"Import!E23060","v":0},{"$f":"Import!E23460","v":0},{"$f":"Import!E23860","v":0},{"$f":"Import!E24260","v":0}]
[345,{"$f":"Import!E21461","v":"Select"},{"$f":"Import!E21861","v":"Select"},{"$f":"Import!E22261","v":"Select"},{"$f":"Import!E22661","v":0},{"$f":"Import!E23061","v":0},{"$f":"Import!E23461","v":0},{"$f":"Import!E23861","v":0},{"$f":"Import!E24261","v":0}]
[346,{"$f":"Import!E21462","v":"Select"},{"$f":"Import!E21862","v":"Select"},{"$f":"Import!E22262","v":"Select"},{"$f":"Import!E22662","v":0},{"$f":"Import!E23062","v":0},{"$f":"Import!E23462","v":0},{"$f":"Import!E23862","v":0},{"$f":"Import!E24262","v":0}]
[347,{"$f":"Import!E21463","v":"Select"},{"$f":"Import!E21863","v":"Select"},{"$f":"Import!E22263","v":"Select"},{"$f":"Import!E22663","v":0},{"$f":"Import!E23063","v":0},{"$f":"Import!E23463","v":0},{"$f":"Import!E23863","v":0},{"$f":"Import!E24263","v":0}]
[348,{"$f":"Import!E21464","v":"Select"},{"$f":"Import!E21864","v":"Select"},{"$f":"Import!E22264","v":"Select"},{"$f":"Import!E22664","v":0},{"$f":"Import!E23064","v":0},{"$f":"Import!E23464","v":0},{"$f":"Import!E23864","v":0},{"$f":"Import!E24264","v":0}]
[349,{"$f":"Import!E21465","v":"Select"},{"$f":"Import!E21865","v":"Select"},{"$f":"Import!E22265","v":"Select"},{"$f":"Import!E22665","v":0},{"$f":"Import!E23065","v":0},{"$f":"Import!E23465","v":0},{"$f":"Import!E23865","v":0},{"$f":"Import!E24265","v":0}]
[350,{"$f":"Import!E21466","v":"Select"},{"$f":"Import!E21866","v":"Select"},{"$f":"Import!E22266","v":"Select"},{"$f":"Import!E22666","v":0},{"$f":"Import!E23066","v":0},{"$f":"Import!E23466","v":0},{"$f":"Import!E23866","v":0},{"$f":"Import!E24266","v":0}]
[351,{"$f":"Import!E21467","v":"Select"},{"$f":"Import!E21867","v":"Select"},{"$f":"Import!E22267","v":"Select"},{"$f":"Import!E22667","v":0},{"$f":"Import!E23067","v":0},{"$f":"Import!E23467","v":0},{"$f":"Import!E23867","v":0},{"$f":"Import!E24267","v":0}]
[352,{"$f":"Import!E21468","v":"Select"},{"$f":"Import!E21868","v":"Select"},{"$f":"Import!E22268","v":"Select"},{"$f":"Import!E22668","v":0},{"$f":"Import!E23068","v":0},{"$f":"Import!E23468","v":0},{"$f":"Import!E23868","v":0},{"$f":"Import!E24268","v":0}]
[353,{"$f":"Import!E21469","v":"Select"},{"$f":"Import!E21869","v":"Select"},{"$f":"Import!E22269","v":"Select"},{"$f":"Import!E22669","v":0},{"$f":"Import!E23069","v":0},{"$f":"Import!E23469","v":0},{"$f":"Import!E23869","v":0},{"$f":"Import!E24269","v":0}]
[354,{"$f":"Import!E21470","v":"Select"},{"$f":"Import!E21870","v":"Select"},{"$f":"Import!E22270","v":"Select"},{"$f":"Import!E22670","v":0},{"$f":"Import!E23070","v":0},{"$f":"Import!E23470","v":0},{"$f":"Import!E23870","v":0},{"$f":"Import!E24270","v":0}]
[355,{"$f":"Import!E21471","v":"Select"},{"$f":"Import!E21871","v":"Select"},{"$f":"Import!E22271","v":"Select"},{"$f":"Import!E22671","v":0},{"$f":"Import!E23071","v":0},{"$f":"Import!E23471","v":0},{"$f":"Import!E23871","v":0},{"$f":"Import!E24271","v":0}]
[356,{"$f":"Import!E21472","v":"Select"},{"$f":"Import!E21872","v":"Select"},{"$f":"Import!E22272","v":"Select"},{"$f":"Import!E22672","v":0},{"$f":"Import!E23072","v":0},{"$f":"Import!E23472","v":0},{"$f":"Import!E23872","v":0},{"$f":"Import!E24272","v":0}]
[357,{"$f":"Import!E21473","v":"Select"},{"$f":"Import!E21873","v":"Select"},{"$f":"Import!E22273","v":"Select"},{"$f":"Import!E22673","v":0},{"$f":"Import!E23073","v":0},{"$f":"Import!E23473","v":0},{"$f":"Import!E23873","v":0},{"$f":"Import!E24273","v":0}]
[358,{"$f":"Import!E21474","v":"Select"},{"$f":"Import!E21874","v":"Select"},{"$f":"Import!E22274","v":"Select"},{"$f":"Import!E22674","v":0},{"$f":"Import!E23074","v":0},{"$f":"Import!E23474","v":0},{"$f":"Import!E23874","v":0},{"$f":"Import!E24274","v":0}]
[359,{"$f":"Import!E21475","v":"Select"},{"$f":"Import!E21875","v":"Select"},{"$f":"Import!E22275","v":"Select"},{"$f":"Import!E22675","v":0},{"$f":"Import!E23075","v":0},{"$f":"Import!E23475","v":0},{"$f":"Import!E23875","v":0},{"$f":"Import!E24275","v":0}]
[360,{"$f":"Import!E21476","v":"Select"},{"$f":"Import!E21876","v":"Select"},{"$f":"Import!E22276","v":"Select"},{"$f":"Import!E22676","v":0},{"$f":"Import!E23076","v":0},{"$f":"Import!E23476","v":0},{"$f":"Import!E23876","v":0},{"$f":"Import!E24276","v":0}]
[361,{"$f":"Import!E21477","v":"Select"},{"$f":"Import!E21877","v":"Select"},{"$f":"Import!E22277","v":"Select"},{"$f":"Import!E22677","v":0},{"$f":"Import!E23077","v":0},{"$f":"Import!E23477","v":0},{"$f":"Import!E23877","v":0},{"$f":"Import!E24277","v":0}]
[362,{"$f":"Import!E21478","v":"Select"},{"$f":"Import!E21878","v":"Select"},{"$f":"Import!E22278","v":"Select"},{"$f":"Import!E22678","v":0},{"$f":"Import!E23078","v":0},{"$f":"Import!E23478","v":0},{"$f":"Import!E23878","v":0},{"$f":"Import!E24278","v":0}]
[363,{"$f":"Import!E21479","v":"Select"},{"$f":"Import!E21879","v":"Select"},{"$f":"Import!E22279","v":"Select"},{"$f":"Import!E22679","v":0},{"$f":"Import!E23079","v":0},{"$f":"Import!E23479","v":0},{"$f":"Import!E23879","v":0},{"$f":"Import!E24279","v":0}]
[364,{"$f":"Import!E21480","v":"Select"},{"$f":"Import!E21880","v":"Select"},{"$f":"Import!E22280","v":"Select"},{"$f":"Import!E22680","v":0},{"$f":"Import!E23080","v":0},{"$f":"Import!E23480","v":0},{"$f":"Import!E23880","v":0},{"$f":"Import!E24280","v":0}]
[365,{"$f":"Import!E21481","v":"Select"},{"$f":"Import!E21881","v":"Select"},{"$f":"Import!E22281","v":"Select"},{"$f":"Import!E22681","v":0},{"$f":"Import!E23081","v":0},{"$f":"Import!E23481","v":0},{"$f":"Import!E23881","v":0},{"$f":"Import!E24281","v":0}]
[366,{"$f":"Import!E21482","v":"Select"},{"$f":"Import!E21882","v":"Select"},{"$f":"Import!E22282","v":"Select"},{"$f":"Import!E22682","v":0},{"$f":"Import!E23082","v":0},{"$f":"Import!E23482","v":0},{"$f":"Import!E23882","v":0},{"$f":"Import!E24282","v":0}]
[367,{"$f":"Import!E21483","v":"Select"},{"$f":"Import!E21883","v":"Select"},{"$f":"Import!E22283","v":"Select"},{"$f":"Import!E22683","v":0},{"$f":"Import!E23083","v":0},{"$f":"Import!E23483","v":0},{"$f":"Import!E23883","v":0},{"$f":"Import!E24283","v":0}]
[368,{"$f":"Import!E21484","v":"Select"},{"$f":"Import!E21884","v":"Select"},{"$f":"Import!E22284","v":"Select"},{"$f":"Import!E22684","v":0},{"$f":"Import!E23084","v":0},{"$f":"Import!E23484","v":0},{"$f":"Import!E23884","v":0},{"$f":"Import!E24284","v":0}]
[369,{"$f":"Import!E21485","v":"Select"},{"$f":"Import!E21885","v":"Select"},{"$f":"Import!E22285","v":"Select"},{"$f":"Import!E22685","v":0},{"$f":"Import!E23085","v":0},{"$f":"Import!E23485","v":0},{"$f":"Import!E23885","v":0},{"$f":"Import!E24285","v":0}]
[370,{"$f":"Import!E21486","v":"Select"},{"$f":"Import!E21886","v":"Select"},{"$f":"Import!E22286","v":"Select"},{"$f":"Import!E22686","v":0},{"$f":"Import!E23086","v":0},{"$f":"Import!E23486","v":0},{"$f":"Import!E23886","v":0},{"$f":"Import!E24286","v":0}]
[371,{"$f":"Import!E21487","v":"Select"},{"$f":"Import!E21887","v":"Select"},{"$f":"Import!E22287","v":"Select"},{"$f":"Import!E22687","v":0},{"$f":"Import!E23087","v":0},{"$f":"Import!E23487","v":0},{"$f":"Import!E23887","v":0},{"$f":"Import!E24287","v":0}]
[372,{"$f":"Import!E21488","v":"Select"},{"$f":"Import!E21888","v":"Select"},{"$f":"Import!E22288","v":"Select"},{"$f":"Import!E22688","v":0},{"$f":"Import!E23088","v":0},{"$f":"Import!E23488","v":0},{"$f":"Import!E23888","v":0},{"$f":"Import!E24288","v":0}]
[373,{"$f":"Import!E21489","v":"Select"},{"$f":"Import!E21889","v":"Select"},{"$f":"Import!E22289","v":"Select"},{"$f":"Import!E22689","v":0},{"$f":"Import!E23089","v":0},{"$f":"Import!E23489","v":0},{"$f":"Import!E23889","v":0},{"$f":"Import!E24289","v":0}]
[374,{"$f":"Import!E21490","v":"Select"},{"$f":"Import!E21890","v":"Select"},{"$f":"Import!E22290","v":"Select"},{"$f":"Import!E22690","v":0},{"$f":"Import!E23090","v":0},{"$f":"Import!E23490","v":0},{"$f":"Import!E23890","v":0},{"$f":"Import!E24290","v":0}]
[375,{"$f":"Import!E21491","v":"Select"},{"$f":"Import!E21891","v":"Select"},{"$f":"Import!E22291","v":"Select"},{"$f":"Import!E22691","v":0},{"$f":"Import!E23091","v":0},{"$f":"Import!E23491","v":0},{"$f":"Import!E23891","v":0},{"$f":"Import!E24291","v":0}]
[376,{"$f":"Import!E21492","v":"Select"},{"$f":"Import!E21892","v":"Select"},{"$f":"Import!E22292","v":"Select"},{"$f":"Import!E22692","v":0},{"$f":"Import!E23092","v":0},{"$f":"Import!E23492","v":0},{"$f":"Import!E23892","v":0},{"$f":"Import!E24292","v":0}]
[377,{"$f":"Import!E21493","v":"Select"},{"$f":"Import!E21893","v":"Select"},{"$f":"Import!E22293","v":"Select"},{"$f":"Import!E22693","v":0},{"$f":"Import!E23093","v":0},{"$f":"Import!E23493","v":0},{"$f":"Import!E23893","v":0},{"$f":"Import!E24293","v":0}]
[378,{"$f":"Import!E21494","v":"Select"},{"$f":"Import!E21894","v":"Select"},{"$f":"Import!E22294","v":"Select"},{"$f":"Import!E22694","v":0},{"$f":"Import!E23094","v":0},{"$f":"Import!E23494","v":0},{"$f":"Import!E23894","v":0},{"$f":"Import!E24294","v":0}]
[379,{"$f":"Import!E21495","v":"Select"},{"$f":"Import!E21895","v":"Select"},{"$f":"Import!E22295","v":"Select"},{"$f":"Import!E22695","v":0},{"$f":"Import!E23095","v":0},{"$f":"Import!E23495","v":0},{"$f":"Import!E23895","v":0},{"$f":"Import!E24295","v":0}]
[380,{"$f":"Import!E21496","v":"Select"},{"$f":"Import!E21896","v":"Select"},{"$f":"Import!E22296","v":"Select"},{"$f":"Import!E22696","v":0},{"$f":"Import!E23096","v":0},{"$f":"Import!E23496","v":0},{"$f":"Import!E23896","v":0},{"$f":"Import!E24296","v":0}]
[381,{"$f":"Import!E21497","v":"Select"},{"$f":"Import!E21897","v":"Select"},{"$f":"Import!E22297","v":"Select"},{"$f":"Import!E22697","v":0},{"$f":"Import!E23097","v":0},{"$f":"Import!E23497","v":0},{"$f":"Import!E23897","v":0},{"$f":"Import!E24297","v":0}]
[382,{"$f":"Import!E21498","v":"Select"},{"$f":"Import!E21898","v":"Select"},{"$f":"Import!E22298","v":"Select"},{"$f":"Import!E22698","v":0},{"$f":"Import!E23098","v":0},{"$f":"Import!E23498","v":0},{"$f":"Import!E23898","v":0},{"$f":"Import!E24298","v":0}]
[383,{"$f":"Import!E21499","v":"Select"},{"$f":"Import!E21899","v":"Select"},{"$f":"Import!E22299","v":"Select"},{"$f":"Import!E22699","v":0},{"$f":"Import!E23099","v":0},{"$f":"Import!E23499","v":0},{"$f":"Import!E23899","v":0},{"$f":"Import!E24299","v":0}]
[384,{"$f":"Import!E21500","v":"Select"},{"$f":"Import!E21900","v":"Select"},{"$f":"Import!E22300","v":"Select"},{"$f":"Import!E22700","v":0},{"$f":"Import!E23100","v":0},{"$f":"Import!E23500","v":0},{"$f":"Import!E23900","v":0},{"$f":"Import!E24300","v":0}]
[385,{"$f":"Import!E21501","v":"Select"},{"$f":"Import!E21901","v":"Select"},{"$f":"Import!E22301","v":"Select"},{"$f":"Import!E22701","v":0},{"$f":"Import!E23101","v":0},{"$f":"Import!E23501","v":0},{"$f":"Import!E23901","v":0},{"$f":"Import!E24301","v":0}]
[386,{"$f":"Import!E21502","v":"Select"},{"$f":"Import!E21902","v":"Select"},{"$f":"Import!E22302","v":"Select"},{"$f":"Import!E22702","v":0},{"$f":"Import!E23102","v":0},{"$f":"Import!E23502","v":0},{"$f":"Import!E23902","v":0},{"$f":"Import!E24302","v":0}]
[{"$f":"A604+1","v":387},{"$f":"Import!E21503","v":"Select"},{"$f":"Import!E21903","v":"Select"},{"$f":"Import!E22303","v":"Select"},{"$f":"Import!E22703","v":0},{"$f":"Import!E23103","v":0},{"$f":"Import!E23503","v":0},{"$f":"Import!E23903","v":0},{"$f":"Import!E24303","v":0}]
[388,{"$f":"Import!E21504","v":"Select"},{"$f":"Import!E21904","v":"Select"},{"$f":"Import!E22304","v":"Select"},{"$f":"Import!E22704","v":0},{"$f":"Import!E23104","v":0},{"$f":"Import!E23504","v":0},{"$f":"Import!E23904","v":0},{"$f":"Import!E24304","v":0}]
[389,{"$f":"Import!E21505","v":"Select"},{"$f":"Import!E21905","v":"Select"},{"$f":"Import!E22305","v":"Select"},{"$f":"Import!E22705","v":0},{"$f":"Import!E23105","v":0},{"$f":"Import!E23505","v":0},{"$f":"Import!E23905","v":0},{"$f":"Import!E24305","v":0}]
[390,{"$f":"Import!E21506","v":"Select"},{"$f":"Import!E21906","v":"Select"},{"$f":"Import!E22306","v":"Select"},{"$f":"Import!E22706","v":0},{"$f":"Import!E23106","v":0},{"$f":"Import!E23506","v":0},{"$f":"Import!E23906","v":0},{"$f":"Import!E24306","v":0}]
[391,{"$f":"Import!E21507","v":"Select"},{"$f":"Import!E21907","v":"Select"},{"$f":"Import!E22307","v":"Select"},{"$f":"Import!E22707","v":0},{"$f":"Import!E23107","v":0},{"$f":"Import!E23507","v":0},{"$f":"Import!E23907","v":0},{"$f":"Import!E24307","v":0}]
[392,{"$f":"Import!E21508","v":"Select"},{"$f":"Import!E21908","v":"Select"},{"$f":"Import!E22308","v":"Select"},{"$f":"Import!E22708","v":0},{"$f":"Import!E23108","v":0},{"$f":"Import!E23508","v":0},{"$f":"Import!E23908","v":0},{"$f":"Import!E24308","v":0}]
[393,{"$f":"Import!E21509","v":"Select"},{"$f":"Import!E21909","v":"Select"},{"$f":"Import!E22309","v":"Select"},{"$f":"Import!E22709","v":0},{"$f":"Import!E23109","v":0},{"$f":"Import!E23509","v":0},{"$f":"Import!E23909","v":0},{"$f":"Import!E24309","v":0}]
[394,{"$f":"Import!E21510","v":"Select"},{"$f":"Import!E21910","v":"Select"},{"$f":"Import!E22310","v":"Select"},{"$f":"Import!E22710","v":0},{"$f":"Import!E23110","v":0},{"$f":"Import!E23510","v":0},{"$f":"Import!E23910","v":0},{"$f":"Import!E24310","v":0}]
[395,{"$f":"Import!E21511","v":"Select"},{"$f":"Import!E21911","v":"Select"},{"$f":"Import!E22311","v":"Select"},{"$f":"Import!E22711","v":0},{"$f":"Import!E23111","v":0},{"$f":"Import!E23511","v":0},{"$f":"Import!E23911","v":0},{"$f":"Import!E24311","v":0}]
[396,{"$f":"Import!E21512","v":"Select"},{"$f":"Import!E21912","v":"Select"},{"$f":"Import!E22312","v":"Select"},{"$f":"Import!E22712","v":0},{"$f":"Import!E23112","v":0},{"$f":"Import!E23512","v":0},{"$f":"Import!E23912","v":0},{"$f":"Import!E24312","v":0}]
[397,{"$f":"Import!E21513","v":"Select"},{"$f":"Import!E21913","v":"Select"},{"$f":"Import!E22313","v":"Select"},{"$f":"Import!E22713","v":0},{"$f":"Import!E23113","v":0},{"$f":"Import!E23513","v":0},{"$f":"Import!E23913","v":0},{"$f":"Import!E24313","v":0}]
[398,{"$f":"Import!E21514","v":"Select"},{"$f":"Import!E21914","v":"Select"},{"$f":"Import!E22314","v":"Select"},{"$f":"Import!E22714","v":0},{"$f":"Import!E23114","v":0},{"$f":"Import!E23514","v":0},{"$f":"Import!E23914","v":0},{"$f":"Import!E24314","v":0}]
[399,{"$f":"Import!E21515","v":"Select"},{"$f":"Import!E21915","v":"Select"},{"$f":"Import!E22315","v":"Select"},{"$f":"Import!E22715","v":0},{"$f":"Import!E23115","v":0},{"$f":"Import!E23515","v":0},{"$f":"Import!E23915","v":0},{"$f":"Import!E24315","v":0}]
[400,{"$f":"Import!E21516","v":"Select"},{"$f":"Import!E21916","v":"Select"},{"$f":"Import!E22316","v":"Select"},{"$f":"Import!E22716","v":0},{"$f":"Import!E23116","v":0},{"$f":"Import!E23516","v":0},{"$f":"Import!E23916","v":0},{"$f":"Import!E24316","v":0}]
[]
[null,"Total Bonds and Debentures",null,null,{"$f":"SUM(E219:E618)","v":0},{"$f":"SUM(F219:F618)","v":0},{"$f":"IFERROR(SUMPRODUCT(G219:G618,$F219:$F618)/SUM($F219:$F618),0)","v":0},{"$f":"IFERROR(SUMPRODUCT(H219:H618,$F219:$F618)/SUM($F219:$F618),0)","v":0}]
[]
[null,"- ADDITIONAL INFORMATION ON SOVEREIGN DEBT EXPOSURES"]
[]
[null,null,"Enter # of Asset Types",{"$f":"Import!E24317","v":0}]
[null,null,null,null,null,{"$f":"YEAR($C$3)","v":2023}]
[null,null,"Country","Currency","BSCR Rating","Fair Value","Comments"]
[null,1,{"$f":"Import!E24318","v":"Select"},{"$f":"Import!E24518","v":"Select"},{"$f":"Import!E24718","v":"Select"},{"$f":"Import!E24918","v":0},{"$f":"Import!E25118","v":0}]
[null,{"$f":"B627+1","v":2},{"$f":"Import!E24319","v":"Select"},{"$f":"Import!E24519","v":"Select"},{"$f":"Import!E24719","v":"Select"},{"$f":"Import!E24919","v":0},{"$f":"Import!E25119","v":0}]
[null,{"$f":"B628+1","v":3},{"$f":"Import!E24320","v":"Select"},{"$f":"Import!E24520","v":"Select"},{"$f":"Import!E24720","v":"Select"},{"$f":"Import!E24920","v":0},{"$f":"Import!E25120","v":0}]
[null,4,{"$f":"Import!E24321","v":"Select"},{"$f":"Import!E24521","v":"Select"},{"$f":"Import!E24721","v":"Select"},{"$f":"Import!E24921","v":0},{"$f":"Import!E25121","v":0}]
[null,5,{"$f":"Import!E24322","v":"Select"},{"$f":"Import!E24522","v":"Select"},{"$f":"Import!E24722","v":"Select"},{"$f":"Import!E24922","v":0},{"$f":"Import!E25122","v":0}]
[null,6,{"$f":"Import!E24323","v":"Select"},{"$f":"Import!E24523","v":"Select"},{"$f":"Import!E24723","v":"Select"},{"$f":"Import!E24923","v":0},{"$f":"Import!E25123","v":0}]
[null,7,{"$f":"Import!E24324","v":"Select"},{"$f":"Import!E24524","v":"Select"},{"$f":"Import!E24724","v":"Select"},{"$f":"Import!E24924","v":0},{"$f":"Import!E25124","v":0}]
[null,8,{"$f":"Import!E24325","v":"Select"},{"$f":"Import!E24525","v":"Select"},{"$f":"Import!E24725","v":"Select"},{"$f":"Import!E24925","v":0},{"$f":"Import!E25125","v":0}]
[null,9,{"$f":"Import!E24326","v":"Select"},{"$f":"Import!E24526","v":"Select"},{"$f":"Import!E24726","v":"Select"},{"$f":"Import!E24926","v":0},{"$f":"Import!E25126","v":0}]
[null,10,{"$f":"Import!E24327","v":"Select"},{"$f":"Import!E24527","v":"Select"},{"$f":"Import!E24727","v":"Select"},{"$f":"Import!E24927","v":0},{"$f":"Import!E25127","v":0}]
[null,11,{"$f":"Import!E24328","v":"Select"},{"$f":"Import!E24528","v":"Select"},{"$f":"Import!E24728","v":"Select"},{"$f":"Import!E24928","v":0},{"$f":"Import!E25128","v":0}]
[null,12,{"$f":"Import!E24329","v":"Select"},{"$f":"Import!E24529","v":"Select"},{"$f":"Import!E24729","v":"Select"},{"$f":"Import!E24929","v":0},{"$f":"Import!E25129","v":0}]
[null,13,{"$f":"Import!E24330","v":"Select"},{"$f":"Import!E24530","v":"Select"},{"$f":"Import!E24730","v":"Select"},{"$f":"Import!E24930","v":0},{"$f":"Import!E25130","v":0}]
[null,14,{"$f":"Import!E24331","v":"Select"},{"$f":"Import!E24531","v":"Select"},{"$f":"Import!E24731","v":"Select"},{"$f":"Import!E24931","v":0},{"$f":"Import!E25131","v":0}]
[null,15,{"$f":"Import!E24332","v":"Select"},{"$f":"Import!E24532","v":"Select"},{"$f":"Import!E24732","v":"Select"},{"$f":"Import!E24932","v":0},{"$f":"Import!E25132","v":0}]
[null,16,{"$f":"Import!E24333","v":"Select"},{"$f":"Import!E24533","v":"Select"},{"$f":"Import!E24733","v":"Select"},{"$f":"Import!E24933","v":0},{"$f":"Import!E25133","v":0}]
[null,17,{"$f":"Import!E24334","v":"Select"},{"$f":"Import!E24534","v":"Select"},{"$f":"Import!E24734","v":"Select"},{"$f":"Import!E24934","v":0},{"$f":"Import!E25134","v":0}]
[null,18,{"$f":"Import!E24335","v":"Select"},{"$f":"Import!E24535","v":"Select"},{"$f":"Import!E24735","v":"Select"},{"$f":"Import!E24935","v":0},{"$f":"Import!E25135","v":0}]
[null,19,{"$f":"Import!E24336","v":"Select"},{"$f":"Import!E24536","v":"Select"},{"$f":"Import!E24736","v":"Select"},{"$f":"Import!E24936","v":0},{"$f":"Import!E25136","v":0}]
[null,20,{"$f":"Import!E24337","v":"Select"},{"$f":"Import!E24537","v":"Select"},{"$f":"Import!E24737","v":"Select"},{"$f":"Import!E24937","v":0},{"$f":"Import!E25137","v":0}]
[null,21,{"$f":"Import!E24338","v":"Select"},{"$f":"Import!E24538","v":"Select"},{"$f":"Import!E24738","v":"Select"},{"$f":"Import!E24938","v":0},{"$f":"Import!E25138","v":0}]
[null,22,{"$f":"Import!E24339","v":"Select"},{"$f":"Import!E24539","v":"Select"},{"$f":"Import!E24739","v":"Select"},{"$f":"Import!E24939","v":0},{"$f":"Import!E25139","v":0}]
[null,23,{"$f":"Import!E24340","v":"Select"},{"$f":"Import!E24540","v":"Select"},{"$f":"Import!E24740","v":"Select"},{"$f":"Import!E24940","v":0},{"$f":"Import!E25140","v":0}]
[null,24,{"$f":"Import!E24341","v":"Select"},{"$f":"Import!E24541","v":"Select"},{"$f":"Import!E24741","v":"Select"},{"$f":"Import!E24941","v":0},{"$f":"Import!E25141","v":0}]
[null,25,{"$f":"Import!E24342","v":"Select"},{"$f":"Import!E24542","v":"Select"},{"$f":"Import!E24742","v":"Select"},{"$f":"Import!E24942","v":0},{"$f":"Import!E25142","v":0}]
[null,26,{"$f":"Import!E24343","v":"Select"},{"$f":"Import!E24543","v":"Select"},{"$f":"Import!E24743","v":"Select"},{"$f":"Import!E24943","v":0},{"$f":"Import!E25143","v":0}]
[null,27,{"$f":"Import!E24344","v":"Select"},{"$f":"Import!E24544","v":"Select"},{"$f":"Import!E24744","v":"Select"},{"$f":"Import!E24944","v":0},{"$f":"Import!E25144","v":0}]
[null,28,{"$f":"Import!E24345","v":"Select"},{"$f":"Import!E24545","v":"Select"},{"$f":"Import!E24745","v":"Select"},{"$f":"Import!E24945","v":0},{"$f":"Import!E25145","v":0}]
[null,29,{"$f":"Import!E24346","v":"Select"},{"$f":"Import!E24546","v":"Select"},{"$f":"Import!E24746","v":"Select"},{"$f":"Import!E24946","v":0},{"$f":"Import!E25146","v":0}]
[null,30,{"$f":"Import!E24347","v":"Select"},{"$f":"Import!E24547","v":"Select"},{"$f":"Import!E24747","v":"Select"},{"$f":"Import!E24947","v":0},{"$f":"Import!E25147","v":0}]
[null,31,{"$f":"Import!E24348","v":"Select"},{"$f":"Import!E24548","v":"Select"},{"$f":"Import!E24748","v":"Select"},{"$f":"Import!E24948","v":0},{"$f":"Import!E25148","v":0}]
[null,32,{"$f":"Import!E24349","v":"Select"},{"$f":"Import!E24549","v":"Select"},{"$f":"Import!E24749","v":"Select"},{"$f":"Import!E24949","v":0},{"$f":"Import!E25149","v":0}]
[null,33,{"$f":"Import!E24350","v":"Select"},{"$f":"Import!E24550","v":"Select"},{"$f":"Import!E24750","v":"Select"},{"$f":"Import!E24950","v":0},{"$f":"Import!E25150","v":0}]
[null,34,{"$f":"Import!E24351","v":"Select"},{"$f":"Import!E24551","v":"Select"},{"$f":"Import!E24751","v":"Select"},{"$f":"Import!E24951","v":0},{"$f":"Import!E25151","v":0}]
[null,35,{"$f":"Import!E24352","v":"Select"},{"$f":"Import!E24552","v":"Select"},{"$f":"Import!E24752","v":"Select"},{"$f":"Import!E24952","v":0},{"$f":"Import!E25152","v":0}]
[null,36,{"$f":"Import!E24353","v":"Select"},{"$f":"Import!E24553","v":"Select"},{"$f":"Import!E24753","v":"Select"},{"$f":"Import!E24953","v":0},{"$f":"Import!E25153","v":0}]
[null,37,{"$f":"Import!E24354","v":"Select"},{"$f":"Import!E24554","v":"Select"},{"$f":"Import!E24754","v":"Select"},{"$f":"Import!E24954","v":0},{"$f":"Import!E25154","v":0}]
[null,38,{"$f":"Import!E24355","v":"Select"},{"$f":"Import!E24555","v":"Select"},{"$f":"Import!E24755","v":"Select"},{"$f":"Import!E24955","v":0},{"$f":"Import!E25155","v":0}]
[null,39,{"$f":"Import!E24356","v":"Select"},{"$f":"Import!E24556","v":"Select"},{"$f":"Import!E24756","v":"Select"},{"$f":"Import!E24956","v":0},{"$f":"Import!E25156","v":0}]
[null,40,{"$f":"Import!E24357","v":"Select"},{"$f":"Import!E24557","v":"Select"},{"$f":"Import!E24757","v":"Select"},{"$f":"Import!E24957","v":0},{"$f":"Import!E25157","v":0}]
[null,41,{"$f":"Import!E24358","v":"Select"},{"$f":"Import!E24558","v":"Select"},{"$f":"Import!E24758","v":"Select"},{"$f":"Import!E24958","v":0},{"$f":"Import!E25158","v":0}]
[null,42,{"$f":"Import!E24359","v":"Select"},{"$f":"Import!E24559","v":"Select"},{"$f":"Import!E24759","v":"Select"},{"$f":"Import!E24959","v":0},{"$f":"Import!E25159","v":0}]
[null,43,{"$f":"Import!E24360","v":"Select"},{"$f":"Import!E24560","v":"Select"},{"$f":"Import!E24760","v":"Select"},{"$f":"Import!E24960","v":0},{"$f":"Import!E25160","v":0}]
[null,44,{"$f":"Import!E24361","v":"Select"},{"$f":"Import!E24561","v":"Select"},{"$f":"Import!E24761","v":"Select"},{"$f":"Import!E24961","v":0},{"$f":"Import!E25161","v":0}]
[null,45,{"$f":"Import!E24362","v":"Select"},{"$f":"Import!E24562","v":"Select"},{"$f":"Import!E24762","v":"Select"},{"$f":"Import!E24962","v":0},{"$f":"Import!E25162","v":0}]
[null,46,{"$f":"Import!E24363","v":"Select"},{"$f":"Import!E24563","v":"Select"},{"$f":"Import!E24763","v":"Select"},{"$f":"Import!E24963","v":0},{"$f":"Import!E25163","v":0}]
[null,47,{"$f":"Import!E24364","v":"Select"},{"$f":"Import!E24564","v":"Select"},{"$f":"Import!E24764","v":"Select"},{"$f":"Import!E24964","v":0},{"$f":"Import!E25164","v":0}]
[null,48,{"$f":"Import!E24365","v":"Select"},{"$f":"Import!E24565","v":"Select"},{"$f":"Import!E24765","v":"Select"},{"$f":"Import!E24965","v":0},{"$f":"Import!E25165","v":0}]
[null,49,{"$f":"Import!E24366","v":"Select"},{"$f":"Import!E24566","v":"Select"},{"$f":"Import!E24766","v":"Select"},{"$f":"Import!E24966","v":0},{"$f":"Import!E25166","v":0}]
[null,50,{"$f":"Import!E24367","v":"Select"},{"$f":"Import!E24567","v":"Select"},{"$f":"Import!E24767","v":"Select"},{"$f":"Import!E24967","v":0},{"$f":"Import!E25167","v":0}]
[null,51,{"$f":"Import!E24368","v":"Select"},{"$f":"Import!E24568","v":"Select"},{"$f":"Import!E24768","v":"Select"},{"$f":"Import!E24968","v":0},{"$f":"Import!E25168","v":0}]
[null,52,{"$f":"Import!E24369","v":"Select"},{"$f":"Import!E24569","v":"Select"},{"$f":"Import!E24769","v":"Select"},{"$f":"Import!E24969","v":0},{"$f":"Import!E25169","v":0}]
[null,53,{"$f":"Import!E24370","v":"Select"},{"$f":"Import!E24570","v":"Select"},{"$f":"Import!E24770","v":"Select"},{"$f":"Import!E24970","v":0},{"$f":"Import!E25170","v":0}]
[null,54,{"$f":"Import!E24371","v":"Select"},{"$f":"Import!E24571","v":"Select"},{"$f":"Import!E24771","v":"Select"},{"$f":"Import!E24971","v":0},{"$f":"Import!E25171","v":0}]
[null,55,{"$f":"Import!E24372","v":"Select"},{"$f":"Import!E24572","v":"Select"},{"$f":"Import!E24772","v":"Select"},{"$f":"Import!E24972","v":0},{"$f":"Import!E25172","v":0}]
[null,56,{"$f":"Import!E24373","v":"Select"},{"$f":"Import!E24573","v":"Select"},{"$f":"Import!E24773","v":"Select"},{"$f":"Import!E24973","v":0},{"$f":"Import!E25173","v":0}]
[null,57,{"$f":"Import!E24374","v":"Select"},{"$f":"Import!E24574","v":"Select"},{"$f":"Import!E24774","v":"Select"},{"$f":"Import!E24974","v":0},{"$f":"Import!E25174","v":0}]
[null,58,{"$f":"Import!E24375","v":"Select"},{"$f":"Import!E24575","v":"Select"},{"$f":"Import!E24775","v":"Select"},{"$f":"Import!E24975","v":0},{"$f":"Import!E25175","v":0}]
[null,59,{"$f":"Import!E24376","v":"Select"},{"$f":"Import!E24576","v":"Select"},{"$f":"Import!E24776","v":"Select"},{"$f":"Import!E24976","v":0},{"$f":"Import!E25176","v":0}]
[null,60,{"$f":"Import!E24377","v":"Select"},{"$f":"Import!E24577","v":"Select"},{"$f":"Import!E24777","v":"Select"},{"$f":"Import!E24977","v":0},{"$f":"Import!E25177","v":0}]
[null,61,{"$f":"Import!E24378","v":"Select"},{"$f":"Import!E24578","v":"Select"},{"$f":"Import!E24778","v":"Select"},{"$f":"Import!E24978","v":0},{"$f":"Import!E25178","v":0}]
[null,62,{"$f":"Import!E24379","v":"Select"},{"$f":"Import!E24579","v":"Select"},{"$f":"Import!E24779","v":"Select"},{"$f":"Import!E24979","v":0},{"$f":"Import!E25179","v":0}]
[null,63,{"$f":"Import!E24380","v":"Select"},{"$f":"Import!E24580","v":"Select"},{"$f":"Import!E24780","v":"Select"},{"$f":"Import!E24980","v":0},{"$f":"Import!E25180","v":0}]
[null,64,{"$f":"Import!E24381","v":"Select"},{"$f":"Import!E24581","v":"Select"},{"$f":"Import!E24781","v":"Select"},{"$f":"Import!E24981","v":0},{"$f":"Import!E25181","v":0}]
[null,65,{"$f":"Import!E24382","v":"Select"},{"$f":"Import!E24582","v":"Select"},{"$f":"Import!E24782","v":"Select"},{"$f":"Import!E24982","v":0},{"$f":"Import!E25182","v":0}]
[null,66,{"$f":"Import!E24383","v":"Select"},{"$f":"Import!E24583","v":"Select"},{"$f":"Import!E24783","v":"Select"},{"$f":"Import!E24983","v":0},{"$f":"Import!E25183","v":0}]
[null,{"$f":"B692+1","v":67},{"$f":"Import!E24384","v":"Select"},{"$f":"Import!E24584","v":"Select"},{"$f":"Import!E24784","v":"Select"},{"$f":"Import!E24984","v":0},{"$f":"Import!E25184","v":0}]
[null,68,{"$f":"Import!E24385","v":"Select"},{"$f":"Import!E24585","v":"Select"},{"$f":"Import!E24785","v":"Select"},{"$f":"Import!E24985","v":0},{"$f":"Import!E25185","v":0}]
[null,69,{"$f":"Import!E24386","v":"Select"},{"$f":"Import!E24586","v":"Select"},{"$f":"Import!E24786","v":"Select"},{"$f":"Import!E24986","v":0},{"$f":"Import!E25186","v":0}]
[null,70,{"$f":"Import!E24387","v":"Select"},{"$f":"Import!E24587","v":"Select"},{"$f":"Import!E24787","v":"Select"},{"$f":"Import!E24987","v":0},{"$f":"Import!E25187","v":0}]
[null,71,{"$f":"Import!E24388","v":"Select"},{"$f":"Import!E24588","v":"Select"},{"$f":"Import!E24788","v":"Select"},{"$f":"Import!E24988","v":0},{"$f":"Import!E25188","v":0}]
[null,72,{"$f":"Import!E24389","v":"Select"},{"$f":"Import!E24589","v":"Select"},{"$f":"Import!E24789","v":"Select"},{"$f":"Import!E24989","v":0},{"$f":"Import!E25189","v":0}]
[null,73,{"$f":"Import!E24390","v":"Select"},{"$f":"Import!E24590","v":"Select"},{"$f":"Import!E24790","v":"Select"},{"$f":"Import!E24990","v":0},{"$f":"Import!E25190","v":0}]
[null,74,{"$f":"Import!E24391","v":"Select"},{"$f":"Import!E24591","v":"Select"},{"$f":"Import!E24791","v":"Select"},{"$f":"Import!E24991","v":0},{"$f":"Import!E25191","v":0}]
[null,75,{"$f":"Import!E24392","v":"Select"},{"$f":"Import!E24592","v":"Select"},{"$f":"Import!E24792","v":"Select"},{"$f":"Import!E24992","v":0},{"$f":"Import!E25192","v":0}]
[null,76,{"$f":"Import!E24393","v":"Select"},{"$f":"Import!E24593","v":"Select"},{"$f":"Import!E24793","v":"Select"},{"$f":"Import!E24993","v":0},{"$f":"Import!E25193","v":0}]
[null,77,{"$f":"Import!E24394","v":"Select"},{"$f":"Import!E24594","v":"Select"},{"$f":"Import!E24794","v":"Select"},{"$f":"Import!E24994","v":0},{"$f":"Import!E25194","v":0}]
[null,78,{"$f":"Import!E24395","v":"Select"},{"$f":"Import!E24595","v":"Select"},{"$f":"Import!E24795","v":"Select"},{"$f":"Import!E24995","v":0},{"$f":"Import!E25195","v":0}]
[null,79,{"$f":"Import!E24396","v":"Select"},{"$f":"Import!E24596","v":"Select"},{"$f":"Import!E24796","v":"Select"},{"$f":"Import!E24996","v":0},{"$f":"Import!E25196","v":0}]
[null,80,{"$f":"Import!E24397","v":"Select"},{"$f":"Import!E24597","v":"Select"},{"$f":"Import!E24797","v":"Select"},{"$f":"Import!E24997","v":0},{"$f":"Import!E25197","v":0}]
[null,81,{"$f":"Import!E24398","v":"Select"},{"$f":"Import!E24598","v":"Select"},{"$f":"Import!E24798","v":"Select"},{"$f":"Import!E24998","v":0},{"$f":"Import!E25198","v":0}]
[null,82,{"$f":"Import!E24399","v":"Select"},{"$f":"Import!E24599","v":"Select"},{"$f":"Import!E24799","v":"Select"},{"$f":"Import!E24999","v":0},{"$f":"Import!E25199","v":0}]
[null,83,{"$f":"Import!E24400","v":"Select"},{"$f":"Import!E24600","v":"Select"},{"$f":"Import!E24800","v":"Select"},{"$f":"Import!E25000","v":0},{"$f":"Import!E25200","v":0}]
[null,84,{"$f":"Import!E24401","v":"Select"},{"$f":"Import!E24601","v":"Select"},{"$f":"Import!E24801","v":"Select"},{"$f":"Import!E25001","v":0},{"$f":"Import!E25201","v":0}]
[null,85,{"$f":"Import!E24402","v":"Select"},{"$f":"Import!E24602","v":"Select"},{"$f":"Import!E24802","v":"Select"},{"$f":"Import!E25002","v":0},{"$f":"Import!E25202","v":0}]
[null,86,{"$f":"Import!E24403","v":"Select"},{"$f":"Import!E24603","v":"Select"},{"$f":"Import!E24803","v":"Select"},{"$f":"Import!E25003","v":0},{"$f":"Import!E25203","v":0}]
[null,87,{"$f":"Import!E24404","v":"Select"},{"$f":"Import!E24604","v":"Select"},{"$f":"Import!E24804","v":"Select"},{"$f":"Import!E25004","v":0},{"$f":"Import!E25204","v":0}]
[null,88,{"$f":"Import!E24405","v":"Select"},{"$f":"Import!E24605","v":"Select"},{"$f":"Import!E24805","v":"Select"},{"$f":"Import!E25005","v":0},{"$f":"Import!E25205","v":0}]
[null,89,{"$f":"Import!E24406","v":"Select"},{"$f":"Import!E24606","v":"Select"},{"$f":"Import!E24806","v":"Select"},{"$f":"Import!E25006","v":0},{"$f":"Import!E25206","v":0}]
[null,90,{"$f":"Import!E24407","v":"Select"},{"$f":"Import!E24607","v":"Select"},{"$f":"Import!E24807","v":"Select"},{"$f":"Import!E25007","v":0},{"$f":"Import!E25207","v":0}]
[null,91,{"$f":"Import!E24408","v":"Select"},{"$f":"Import!E24608","v":"Select"},{"$f":"Import!E24808","v":"Select"},{"$f":"Import!E25008","v":0},{"$f":"Import!E25208","v":0}]
[null,92,{"$f":"Import!E24409","v":"Select"},{"$f":"Import!E24609","v":"Select"},{"$f":"Import!E24809","v":"Select"},{"$f":"Import!E25009","v":0},{"$f":"Import!E25209","v":0}]
[null,93,{"$f":"Import!E24410","v":"Select"},{"$f":"Import!E24610","v":"Select"},{"$f":"Import!E24810","v":"Select"},{"$f":"Import!E25010","v":0},{"$f":"Import!E25210","v":0}]
[null,94,{"$f":"Import!E24411","v":"Select"},{"$f":"Import!E24611","v":"Select"},{"$f":"Import!E24811","v":"Select"},{"$f":"Import!E25011","v":0},{"$f":"Import!E25211","v":0}]
[null,95,{"$f":"Import!E24412","v":"Select"},{"$f":"Import!E24612","v":"Select"},{"$f":"Import!E24812","v":"Select"},{"$f":"Import!E25012","v":0},{"$f":"Import!E25212","v":0}]
[null,96,{"$f":"Import!E24413","v":"Select"},{"$f":"Import!E24613","v":"Select"},{"$f":"Import!E24813","v":"Select"},{"$f":"Import!E25013","v":0},{"$f":"Import!E25213","v":0}]
[null,97,{"$f":"Import!E24414","v":"Select"},{"$f":"Import!E24614","v":"Select"},{"$f":"Import!E24814","v":"Select"},{"$f":"Import!E25014","v":0},{"$f":"Import!E25214","v":0}]
[null,98,{"$f":"Import!E24415","v":"Select"},{"$f":"Import!E24615","v":"Select"},{"$f":"Import!E24815","v":"Select"},{"$f":"Import!E25015","v":0},{"$f":"Import!E25215","v":0}]
[null,99,{"$f":"Import!E24416","v":"Select"},{"$f":"Import!E24616","v":"Select"},{"$f":"Import!E24816","v":"Select"},{"$f":"Import!E25016","v":0},{"$f":"Import!E25216","v":0}]
[null,100,{"$f":"Import!E24417","v":"Select"},{"$f":"Import!E24617","v":"Select"},{"$f":"Import!E24817","v":"Select"},{"$f":"Import!E25017","v":0},{"$f":"Import!E25217","v":0}]
[null,101,{"$f":"Import!E24418","v":"Select"},{"$f":"Import!E24618","v":"Select"},{"$f":"Import!E24818","v":"Select"},{"$f":"Import!E25018","v":0},{"$f":"Import!E25218","v":0}]
[null,102,{"$f":"Import!E24419","v":"Select"},{"$f":"Import!E24619","v":"Select"},{"$f":"Import!E24819","v":"Select"},{"$f":"Import!E25019","v":0},{"$f":"Import!E25219","v":0}]
[null,103,{"$f":"Import!E24420","v":"Select"},{"$f":"Import!E24620","v":"Select"},{"$f":"Import!E24820","v":"Select"},{"$f":"Import!E25020","v":0},{"$f":"Import!E25220","v":0}]
[null,104,{"$f":"Import!E24421","v":"Select"},{"$f":"Import!E24621","v":"Select"},{"$f":"Import!E24821","v":"Select"},{"$f":"Import!E25021","v":0},{"$f":"Import!E25221","v":0}]
[null,105,{"$f":"Import!E24422","v":"Select"},{"$f":"Import!E24622","v":"Select"},{"$f":"Import!E24822","v":"Select"},{"$f":"Import!E25022","v":0},{"$f":"Import!E25222","v":0}]
[null,106,{"$f":"Import!E24423","v":"Select"},{"$f":"Import!E24623","v":"Select"},{"$f":"Import!E24823","v":"Select"},{"$f":"Import!E25023","v":0},{"$f":"Import!E25223","v":0}]
[null,107,{"$f":"Import!E24424","v":"Select"},{"$f":"Import!E24624","v":"Select"},{"$f":"Import!E24824","v":"Select"},{"$f":"Import!E25024","v":0},{"$f":"Import!E25224","v":0}]
[null,108,{"$f":"Import!E24425","v":"Select"},{"$f":"Import!E24625","v":"Select"},{"$f":"Import!E24825","v":"Select"},{"$f":"Import!E25025","v":0},{"$f":"Import!E25225","v":0}]
[null,109,{"$f":"Import!E24426","v":"Select"},{"$f":"Import!E24626","v":"Select"},{"$f":"Import!E24826","v":"Select"},{"$f":"Import!E25026","v":0},{"$f":"Import!E25226","v":0}]
[null,110,{"$f":"Import!E24427","v":"Select"},{"$f":"Import!E24627","v":"Select"},{"$f":"Import!E24827","v":"Select"},{"$f":"Import!E25027","v":0},{"$f":"Import!E25227","v":0}]
[null,111,{"$f":"Import!E24428","v":"Select"},{"$f":"Import!E24628","v":"Select"},{"$f":"Import!E24828","v":"Select"},{"$f":"Import!E25028","v":0},{"$f":"Import!E25228","v":0}]
[null,112,{"$f":"Import!E24429","v":"Select"},{"$f":"Import!E24629","v":"Select"},{"$f":"Import!E24829","v":"Select"},{"$f":"Import!E25029","v":0},{"$f":"Import!E25229","v":0}]
[null,113,{"$f":"Import!E24430","v":"Select"},{"$f":"Import!E24630","v":"Select"},{"$f":"Import!E24830","v":"Select"},{"$f":"Import!E25030","v":0},{"$f":"Import!E25230","v":0}]
[null,114,{"$f":"Import!E24431","v":"Select"},{"$f":"Import!E24631","v":"Select"},{"$f":"Import!E24831","v":"Select"},{"$f":"Import!E25031","v":0},{"$f":"Import!E25231","v":0}]
[null,115,{"$f":"Import!E24432","v":"Select"},{"$f":"Import!E24632","v":"Select"},{"$f":"Import!E24832","v":"Select"},{"$f":"Import!E25032","v":0},{"$f":"Import!E25232","v":0}]
[null,116,{"$f":"Import!E24433","v":"Select"},{"$f":"Import!E24633","v":"Select"},{"$f":"Import!E24833","v":"Select"},{"$f":"Import!E25033","v":0},{"$f":"Import!E25233","v":0}]
[null,117,{"$f":"Import!E24434","v":"Select"},{"$f":"Import!E24634","v":"Select"},{"$f":"Import!E24834","v":"Select"},{"$f":"Import!E25034","v":0},{"$f":"Import!E25234","v":0}]
[null,118,{"$f":"Import!E24435","v":"Select"},{"$f":"Import!E24635","v":"Select"},{"$f":"Import!E24835","v":"Select"},{"$f":"Import!E25035","v":0},{"$f":"Import!E25235","v":0}]
[null,119,{"$f":"Import!E24436","v":"Select"},{"$f":"Import!E24636","v":"Select"},{"$f":"Import!E24836","v":"Select"},{"$f":"Import!E25036","v":0},{"$f":"Import!E25236","v":0}]
[null,120,{"$f":"Import!E24437","v":"Select"},{"$f":"Import!E24637","v":"Select"},{"$f":"Import!E24837","v":"Select"},{"$f":"Import!E25037","v":0},{"$f":"Import!E25237","v":0}]
[null,121,{"$f":"Import!E24438","v":"Select"},{"$f":"Import!E24638","v":"Select"},{"$f":"Import!E24838","v":"Select"},{"$f":"Import!E25038","v":0},{"$f":"Import!E25238","v":0}]
[null,122,{"$f":"Import!E24439","v":"Select"},{"$f":"Import!E24639","v":"Select"},{"$f":"Import!E24839","v":"Select"},{"$f":"Import!E25039","v":0},{"$f":"Import!E25239","v":0}]
[null,123,{"$f":"Import!E24440","v":"Select"},{"$f":"Import!E24640","v":"Select"},{"$f":"Import!E24840","v":"Select"},{"$f":"Import!E25040","v":0},{"$f":"Import!E25240","v":0}]
[null,124,{"$f":"Import!E24441","v":"Select"},{"$f":"Import!E24641","v":"Select"},{"$f":"Import!E24841","v":"Select"},{"$f":"Import!E25041","v":0},{"$f":"Import!E25241","v":0}]
[null,125,{"$f":"Import!E24442","v":"Select"},{"$f":"Import!E24642","v":"Select"},{"$f":"Import!E24842","v":"Select"},{"$f":"Import!E25042","v":0},{"$f":"Import!E25242","v":0}]
[null,126,{"$f":"Import!E24443","v":"Select"},{"$f":"Import!E24643","v":"Select"},{"$f":"Import!E24843","v":"Select"},{"$f":"Import!E25043","v":0},{"$f":"Import!E25243","v":0}]
[null,127,{"$f":"Import!E24444","v":"Select"},{"$f":"Import!E24644","v":"Select"},{"$f":"Import!E24844","v":"Select"},{"$f":"Import!E25044","v":0},{"$f":"Import!E25244","v":0}]
[null,128,{"$f":"Import!E24445","v":"Select"},{"$f":"Import!E24645","v":"Select"},{"$f":"Import!E24845","v":"Select"},{"$f":"Import!E25045","v":0},{"$f":"Import!E25245","v":0}]
[null,129,{"$f":"Import!E24446","v":"Select"},{"$f":"Import!E24646","v":"Select"},{"$f":"Import!E24846","v":"Select"},{"$f":"Import!E25046","v":0},{"$f":"Import!E25246","v":0}]
[null,130,{"$f":"Import!E24447","v":"Select"},{"$f":"Import!E24647","v":"Select"},{"$f":"Import!E24847","v":"Select"},{"$f":"Import!E25047","v":0},{"$f":"Import!E25247","v":0}]
[null,{"$f":"B756+1","v":131},{"$f":"Import!E24448","v":"Select"},{"$f":"Import!E24648","v":"Select"},{"$f":"Import!E24848","v":"Select"},{"$f":"Import!E25048","v":0},{"$f":"Import!E25248","v":0}]
[null,132,{"$f":"Import!E24449","v":"Select"},{"$f":"Import!E24649","v":"Select"},{"$f":"Import!E24849","v":"Select"},{"$f":"Import!E25049","v":0},{"$f":"Import!E25249","v":0}]
[null,133,{"$f":"Import!E24450","v":"Select"},{"$f":"Import!E24650","v":"Select"},{"$f":"Import!E24850","v":"Select"},{"$f":"Import!E25050","v":0},{"$f":"Import!E25250","v":0}]
[null,134,{"$f":"Import!E24451","v":"Select"},{"$f":"Import!E24651","v":"Select"},{"$f":"Import!E24851","v":"Select"},{"$f":"Import!E25051","v":0},{"$f":"Import!E25251","v":0}]
[null,135,{"$f":"Import!E24452","v":"Select"},{"$f":"Import!E24652","v":"Select"},{"$f":"Import!E24852","v":"Select"},{"$f":"Import!E25052","v":0},{"$f":"Import!E25252","v":0}]
[null,136,{"$f":"Import!E24453","v":"Select"},{"$f":"Import!E24653","v":"Select"},{"$f":"Import!E24853","v":"Select"},{"$f":"Import!E25053","v":0},{"$f":"Import!E25253","v":0}]
[null,137,{"$f":"Import!E24454","v":"Select"},{"$f":"Import!E24654","v":"Select"},{"$f":"Import!E24854","v":"Select"},{"$f":"Import!E25054","v":0},{"$f":"Import!E25254","v":0}]
[null,138,{"$f":"Import!E24455","v":"Select"},{"$f":"Import!E24655","v":"Select"},{"$f":"Import!E24855","v":"Select"},{"$f":"Import!E25055","v":0},{"$f":"Import!E25255","v":0}]
[null,139,{"$f":"Import!E24456","v":"Select"},{"$f":"Import!E24656","v":"Select"},{"$f":"Import!E24856","v":"Select"},{"$f":"Import!E25056","v":0},{"$f":"Import!E25256","v":0}]
[null,140,{"$f":"Import!E24457","v":"Select"},{"$f":"Import!E24657","v":"Select"},{"$f":"Import!E24857","v":"Select"},{"$f":"Import!E25057","v":0},{"$f":"Import!E25257","v":0}]
[null,141,{"$f":"Import!E24458","v":"Select"},{"$f":"Import!E24658","v":"Select"},{"$f":"Import!E24858","v":"Select"},{"$f":"Import!E25058","v":0},{"$f":"Import!E25258","v":0}]
[null,142,{"$f":"Import!E24459","v":"Select"},{"$f":"Import!E24659","v":"Select"},{"$f":"Import!E24859","v":"Select"},{"$f":"Import!E25059","v":0},{"$f":"Import!E25259","v":0}]
[null,143,{"$f":"Import!E24460","v":"Select"},{"$f":"Import!E24660","v":"Select"},{"$f":"Import!E24860","v":"Select"},{"$f":"Import!E25060","v":0},{"$f":"Import!E25260","v":0}]
[null,144,{"$f":"Import!E24461","v":"Select"},{"$f":"Import!E24661","v":"Select"},{"$f":"Import!E24861","v":"Select"},{"$f":"Import!E25061","v":0},{"$f":"Import!E25261","v":0}]
[null,145,{"$f":"Import!E24462","v":"Select"},{"$f":"Import!E24662","v":"Select"},{"$f":"Import!E24862","v":"Select"},{"$f":"Import!E25062","v":0},{"$f":"Import!E25262","v":0}]
[null,146,{"$f":"Import!E24463","v":"Select"},{"$f":"Import!E24663","v":"Select"},{"$f":"Import!E24863","v":"Select"},{"$f":"Import!E25063","v":0},{"$f":"Import!E25263","v":0}]
[null,147,{"$f":"Import!E24464","v":"Select"},{"$f":"Import!E24664","v":"Select"},{"$f":"Import!E24864","v":"Select"},{"$f":"Import!E25064","v":0},{"$f":"Import!E25264","v":0}]
[null,148,{"$f":"Import!E24465","v":"Select"},{"$f":"Import!E24665","v":"Select"},{"$f":"Import!E24865","v":"Select"},{"$f":"Import!E25065","v":0},{"$f":"Import!E25265","v":0}]
[null,149,{"$f":"Import!E24466","v":"Select"},{"$f":"Import!E24666","v":"Select"},{"$f":"Import!E24866","v":"Select"},{"$f":"Import!E25066","v":0},{"$f":"Import!E25266","v":0}]
[null,150,{"$f":"Import!E24467","v":"Select"},{"$f":"Import!E24667","v":"Select"},{"$f":"Import!E24867","v":"Select"},{"$f":"Import!E25067","v":0},{"$f":"Import!E25267","v":0}]
[null,151,{"$f":"Import!E24468","v":"Select"},{"$f":"Import!E24668","v":"Select"},{"$f":"Import!E24868","v":"Select"},{"$f":"Import!E25068","v":0},{"$f":"Import!E25268","v":0}]
[null,152,{"$f":"Import!E24469","v":"Select"},{"$f":"Import!E24669","v":"Select"},{"$f":"Import!E24869","v":"Select"},{"$f":"Import!E25069","v":0},{"$f":"Import!E25269","v":0}]
[null,153,{"$f":"Import!E24470","v":"Select"},{"$f":"Import!E24670","v":"Select"},{"$f":"Import!E24870","v":"Select"},{"$f":"Import!E25070","v":0},{"$f":"Import!E25270","v":0}]
[null,154,{"$f":"Import!E24471","v":"Select"},{"$f":"Import!E24671","v":"Select"},{"$f":"Import!E24871","v":"Select"},{"$f":"Import!E25071","v":0},{"$f":"Import!E25271","v":0}]
[null,155,{"$f":"Import!E24472","v":"Select"},{"$f":"Import!E24672","v":"Select"},{"$f":"Import!E24872","v":"Select"},{"$f":"Import!E25072","v":0},{"$f":"Import!E25272","v":0}]
[null,156,{"$f":"Import!E24473","v":"Select"},{"$f":"Import!E24673","v":"Select"},{"$f":"Import!E24873","v":"Select"},{"$f":"Import!E25073","v":0},{"$f":"Import!E25273","v":0}]
[null,157,{"$f":"Import!E24474","v":"Select"},{"$f":"Import!E24674","v":"Select"},{"$f":"Import!E24874","v":"Select"},{"$f":"Import!E25074","v":0},{"$f":"Import!E25274","v":0}]
[null,158,{"$f":"Import!E24475","v":"Select"},{"$f":"Import!E24675","v":"Select"},{"$f":"Import!E24875","v":"Select"},{"$f":"Import!E25075","v":0},{"$f":"Import!E25275","v":0}]
[null,159,{"$f":"Import!E24476","v":"Select"},{"$f":"Import!E24676","v":"Select"},{"$f":"Import!E24876","v":"Select"},{"$f":"Import!E25076","v":0},{"$f":"Import!E25276","v":0}]
[null,160,{"$f":"Import!E24477","v":"Select"},{"$f":"Import!E24677","v":"Select"},{"$f":"Import!E24877","v":"Select"},{"$f":"Import!E25077","v":0},{"$f":"Import!E25277","v":0}]
[null,161,{"$f":"Import!E24478","v":"Select"},{"$f":"Import!E24678","v":"Select"},{"$f":"Import!E24878","v":"Select"},{"$f":"Import!E25078","v":0},{"$f":"Import!E25278","v":0}]
[null,162,{"$f":"Import!E24479","v":"Select"},{"$f":"Import!E24679","v":"Select"},{"$f":"Import!E24879","v":"Select"},{"$f":"Import!E25079","v":0},{"$f":"Import!E25279","v":0}]
[null,163,{"$f":"Import!E24480","v":"Select"},{"$f":"Import!E24680","v":"Select"},{"$f":"Import!E24880","v":"Select"},{"$f":"Import!E25080","v":0},{"$f":"Import!E25280","v":0}]
[null,164,{"$f":"Import!E24481","v":"Select"},{"$f":"Import!E24681","v":"Select"},{"$f":"Import!E24881","v":"Select"},{"$f":"Import!E25081","v":0},{"$f":"Import!E25281","v":0}]
[null,165,{"$f":"Import!E24482","v":"Select"},{"$f":"Import!E24682","v":"Select"},{"$f":"Import!E24882","v":"Select"},{"$f":"Import!E25082","v":0},{"$f":"Import!E25282","v":0}]
[null,166,{"$f":"Import!E24483","v":"Select"},{"$f":"Import!E24683","v":"Select"},{"$f":"Import!E24883","v":"Select"},{"$f":"Import!E25083","v":0},{"$f":"Import!E25283","v":0}]
[null,167,{"$f":"Import!E24484","v":"Select"},{"$f":"Import!E24684","v":"Select"},{"$f":"Import!E24884","v":"Select"},{"$f":"Import!E25084","v":0},{"$f":"Import!E25284","v":0}]
[null,168,{"$f":"Import!E24485","v":"Select"},{"$f":"Import!E24685","v":"Select"},{"$f":"Import!E24885","v":"Select"},{"$f":"Import!E25085","v":0},{"$f":"Import!E25285","v":0}]
[null,169,{"$f":"Import!E24486","v":"Select"},{"$f":"Import!E24686","v":"Select"},{"$f":"Import!E24886","v":"Select"},{"$f":"Import!E25086","v":0},{"$f":"Import!E25286","v":0}]
[null,170,{"$f":"Import!E24487","v":"Select"},{"$f":"Import!E24687","v":"Select"},{"$f":"Import!E24887","v":"Select"},{"$f":"Import!E25087","v":0},{"$f":"Import!E25287","v":0}]
[null,171,{"$f":"Import!E24488","v":"Select"},{"$f":"Import!E24688","v":"Select"},{"$f":"Import!E24888","v":"Select"},{"$f":"Import!E25088","v":0},{"$f":"Import!E25288","v":0}]
[null,172,{"$f":"Import!E24489","v":"Select"},{"$f":"Import!E24689","v":"Select"},{"$f":"Import!E24889","v":"Select"},{"$f":"Import!E25089","v":0},{"$f":"Import!E25289","v":0}]
[null,173,{"$f":"Import!E24490","v":"Select"},{"$f":"Import!E24690","v":"Select"},{"$f":"Import!E24890","v":"Select"},{"$f":"Import!E25090","v":0},{"$f":"Import!E25290","v":0}]
[null,174,{"$f":"Import!E24491","v":"Select"},{"$f":"Import!E24691","v":"Select"},{"$f":"Import!E24891","v":"Select"},{"$f":"Import!E25091","v":0},{"$f":"Import!E25291","v":0}]
[null,175,{"$f":"Import!E24492","v":"Select"},{"$f":"Import!E24692","v":"Select"},{"$f":"Import!E24892","v":"Select"},{"$f":"Import!E25092","v":0},{"$f":"Import!E25292","v":0}]
[null,176,{"$f":"Import!E24493","v":"Select"},{"$f":"Import!E24693","v":"Select"},{"$f":"Import!E24893","v":"Select"},{"$f":"Import!E25093","v":0},{"$f":"Import!E25293","v":0}]
[null,177,{"$f":"Import!E24494","v":"Select"},{"$f":"Import!E24694","v":"Select"},{"$f":"Import!E24894","v":"Select"},{"$f":"Import!E25094","v":0},{"$f":"Import!E25294","v":0}]
[null,178,{"$f":"Import!E24495","v":"Select"},{"$f":"Import!E24695","v":"Select"},{"$f":"Import!E24895","v":"Select"},{"$f":"Import!E25095","v":0},{"$f":"Import!E25295","v":0}]
[null,179,{"$f":"Import!E24496","v":"Select"},{"$f":"Import!E24696","v":"Select"},{"$f":"Import!E24896","v":"Select"},{"$f":"Import!E25096","v":0},{"$f":"Import!E25296","v":0}]
[null,180,{"$f":"Import!E24497","v":"Select"},{"$f":"Import!E24697","v":"Select"},{"$f":"Import!E24897","v":"Select"},{"$f":"Import!E25097","v":0},{"$f":"Import!E25297","v":0}]
[null,181,{"$f":"Import!E24498","v":"Select"},{"$f":"Import!E24698","v":"Select"},{"$f":"Import!E24898","v":"Select"},{"$f":"Import!E25098","v":0},{"$f":"Import!E25298","v":0}]
[null,182,{"$f":"Import!E24499","v":"Select"},{"$f":"Import!E24699","v":"Select"},{"$f":"Import!E24899","v":"Select"},{"$f":"Import!E25099","v":0},{"$f":"Import!E25299","v":0}]
[null,183,{"$f":"Import!E24500","v":"Select"},{"$f":"Import!E24700","v":"Select"},{"$f":"Import!E24900","v":"Select"},{"$f":"Import!E25100","v":0},{"$f":"Import!E25300","v":0}]
[null,184,{"$f":"Import!E24501","v":"Select"},{"$f":"Import!E24701","v":"Select"},{"$f":"Import!E24901","v":"Select"},{"$f":"Import!E25101","v":0},{"$f":"Import!E25301","v":0}]
[null,185,{"$f":"Import!E24502","v":"Select"},{"$f":"Import!E24702","v":"Select"},{"$f":"Import!E24902","v":"Select"},{"$f":"Import!E25102","v":0},{"$f":"Import!E25302","v":0}]
[null,186,{"$f":"Import!E24503","v":"Select"},{"$f":"Import!E24703","v":"Select"},{"$f":"Import!E24903","v":"Select"},{"$f":"Import!E25103","v":0},{"$f":"Import!E25303","v":0}]
[null,187,{"$f":"Import!E24504","v":"Select"},{"$f":"Import!E24704","v":"Select"},{"$f":"Import!E24904","v":"Select"},{"$f":"Import!E25104","v":0},{"$f":"Import!E25304","v":0}]
[null,188,{"$f":"Import!E24505","v":"Select"},{"$f":"Import!E24705","v":"Select"},{"$f":"Import!E24905","v":"Select"},{"$f":"Import!E25105","v":0},{"$f":"Import!E25305","v":0}]
[null,189,{"$f":"Import!E24506","v":"Select"},{"$f":"Import!E24706","v":"Select"},{"$f":"Import!E24906","v":"Select"},{"$f":"Import!E25106","v":0},{"$f":"Import!E25306","v":0}]
[null,190,{"$f":"Import!E24507","v":"Select"},{"$f":"Import!E24707","v":"Select"},{"$f":"Import!E24907","v":"Select"},{"$f":"Import!E25107","v":0},{"$f":"Import!E25307","v":0}]
[null,191,{"$f":"Import!E24508","v":"Select"},{"$f":"Import!E24708","v":"Select"},{"$f":"Import!E24908","v":"Select"},{"$f":"Import!E25108","v":0},{"$f":"Import!E25308","v":0}]
[null,192,{"$f":"Import!E24509","v":"Select"},{"$f":"Import!E24709","v":"Select"},{"$f":"Import!E24909","v":"Select"},{"$f":"Import!E25109","v":0},{"$f":"Import!E25309","v":0}]
[null,193,{"$f":"Import!E24510","v":"Select"},{"$f":"Import!E24710","v":"Select"},{"$f":"Import!E24910","v":"Select"},{"$f":"Import!E25110","v":0},{"$f":"Import!E25310","v":0}]
[null,194,{"$f":"Import!E24511","v":"Select"},{"$f":"Import!E24711","v":"Select"},{"$f":"Import!E24911","v":"Select"},{"$f":"Import!E25111","v":0},{"$f":"Import!E25311","v":0}]
[null,{"$f":"B820+1","v":195},{"$f":"Import!E24512","v":"Select"},{"$f":"Import!E24712","v":"Select"},{"$f":"Import!E24912","v":"Select"},{"$f":"Import!E25112","v":0},{"$f":"Import!E25312","v":0}]
[null,196,{"$f":"Import!E24513","v":"Select"},{"$f":"Import!E24713","v":"Select"},{"$f":"Import!E24913","v":"Select"},{"$f":"Import!E25113","v":0},{"$f":"Import!E25313","v":0}]
[null,197,{"$f":"Import!E24514","v":"Select"},{"$f":"Import!E24714","v":"Select"},{"$f":"Import!E24914","v":"Select"},{"$f":"Import!E25114","v":0},{"$f":"Import!E25314","v":0}]
[null,198,{"$f":"Import!E24515","v":"Select"},{"$f":"Import!E24715","v":"Select"},{"$f":"Import!E24915","v":"Select"},{"$f":"Import!E25115","v":0},{"$f":"Import!E25315","v":0}]
[null,199,{"$f":"Import!E24516","v":"Select"},{"$f":"Import!E24716","v":"Select"},{"$f":"Import!E24916","v":"Select"},{"$f":"Import!E25116","v":0},{"$f":"Import!E25316","v":0}]
[null,200,{"$f":"Import!E24517","v":"Select"},{"$f":"Import!E24717","v":"Select"},{"$f":"Import!E24917","v":"Select"},{"$f":"Import!E25117","v":0},{"$f":"Import!E25317","v":0}]
[]
[null,null,null,null,null,{"$f":"SUM(F627:F826)","v":0}]
[]
[null,"(C) ASSET-BACKED AND STRUCTURED SECURITIES"]
[]
[null,null,"Enter # of Asset Types",{"$f":"Import!E25318","v":0}]
[null,null,null,null,{"$f":"YEAR($C$3)","v":2023},2023,"Weighted"]
[null,"Asset Type","Currency","BSCR Rating","Nominal Amount","Fair Value","Average YTM","Effective Duration","Comments"]
[1,{"$f":"Import!E25319","v":"Select"},{"$f":"Import!E25469","v":"Select"},{"$f":"Import!E25619","v":"Select"},{"$f":"Import!E25769","v":0},{"$f":"Import!E25919","v":0},{"$f":"Import!E26069","v":0},{"$f":"Import!E26219","v":0},{"$f":"Import!E26369","v":0}]
[{"$f":"A835+1","v":2},{"$f":"Import!E25320","v":"Select"},{"$f":"Import!E25470","v":"Select"},{"$f":"Import!E25620","v":"Select"},{"$f":"Import!E25770","v":0},{"$f":"Import!E25920","v":0},{"$f":"Import!E26070","v":0},{"$f":"Import!E26220","v":0},{"$f":"Import!E26370","v":0}]
[{"$f":"A836+1","v":3},{"$f":"Import!E25321","v":"Select"},{"$f":"Import!E25471","v":"Select"},{"$f":"Import!E25621","v":"Select"},{"$f":"Import!E25771","v":0},{"$f":"Import!E25921","v":0},{"$f":"Import!E26071","v":0},{"$f":"Import!E26221","v":0},{"$f":"Import!E26371","v":0}]
[4,{"$f":"Import!E25322","v":"Select"},{"$f":"Import!E25472","v":"Select"},{"$f":"Import!E25622","v":"Select"},{"$f":"Import!E25772","v":0},{"$f":"Import!E25922","v":0},{"$f":"Import!E26072","v":0},{"$f":"Import!E26222","v":0},{"$f":"Import!E26372","v":0}]
[5,{"$f":"Import!E25323","v":"Select"},{"$f":"Import!E25473","v":"Select"},{"$f":"Import!E25623","v":"Select"},{"$f":"Import!E25773","v":0},{"$f":"Import!E25923","v":0},{"$f":"Import!E26073","v":0},{"$f":"Import!E26223","v":0},{"$f":"Import!E26373","v":0}]
[6,{"$f":"Import!E25324","v":"Select"},{"$f":"Import!E25474","v":"Select"},{"$f":"Import!E25624","v":"Select"},{"$f":"Import!E25774","v":0},{"$f":"Import!E25924","v":0},{"$f":"Import!E26074","v":0},{"$f":"Import!E26224","v":0},{"$f":"Import!E26374","v":0}]
[7,{"$f":"Import!E25325","v":"Select"},{"$f":"Import!E25475","v":"Select"},{"$f":"Import!E25625","v":"Select"},{"$f":"Import!E25775","v":0},{"$f":"Import!E25925","v":0},{"$f":"Import!E26075","v":0},{"$f":"Import!E26225","v":0},{"$f":"Import!E26375","v":0}]
[8,{"$f":"Import!E25326","v":"Select"},{"$f":"Import!E25476","v":"Select"},{"$f":"Import!E25626","v":"Select"},{"$f":"Import!E25776","v":0},{"$f":"Import!E25926","v":0},{"$f":"Import!E26076","v":0},{"$f":"Import!E26226","v":0},{"$f":"Import!E26376","v":0}]
[9,{"$f":"Import!E25327","v":"Select"},{"$f":"Import!E25477","v":"Select"},{"$f":"Import!E25627","v":"Select"},{"$f":"Import!E25777","v":0},{"$f":"Import!E25927","v":0},{"$f":"Import!E26077","v":0},{"$f":"Import!E26227","v":0},{"$f":"Import!E26377","v":0}]
[10,{"$f":"Import!E25328","v":"Select"},{"$f":"Import!E25478","v":"Select"},{"$f":"Import!E25628","v":"Select"},{"$f":"Import!E25778","v":0},{"$f":"Import!E25928","v":0},{"$f":"Import!E26078","v":0},{"$f":"Import!E26228","v":0},{"$f":"Import!E26378","v":0}]
[11,{"$f":"Import!E25329","v":"Select"},{"$f":"Import!E25479","v":"Select"},{"$f":"Import!E25629","v":"Select"},{"$f":"Import!E25779","v":0},{"$f":"Import!E25929","v":0},{"$f":"Import!E26079","v":0},{"$f":"Import!E26229","v":0},{"$f":"Import!E26379","v":0}]
[12,{"$f":"Import!E25330","v":"Select"},{"$f":"Import!E25480","v":"Select"},{"$f":"Import!E25630","v":"Select"},{"$f":"Import!E25780","v":0},{"$f":"Import!E25930","v":0},{"$f":"Import!E26080","v":0},{"$f":"Import!E26230","v":0},{"$f":"Import!E26380","v":0}]
[13,{"$f":"Import!E25331","v":"Select"},{"$f":"Import!E25481","v":"Select"},{"$f":"Import!E25631","v":"Select"},{"$f":"Import!E25781","v":0},{"$f":"Import!E25931","v":0},{"$f":"Import!E26081","v":0},{"$f":"Import!E26231","v":0},{"$f":"Import!E26381","v":0}]
[14,{"$f":"Import!E25332","v":"Select"},{"$f":"Import!E25482","v":"Select"},{"$f":"Import!E25632","v":"Select"},{"$f":"Import!E25782","v":0},{"$f":"Import!E25932","v":0},{"$f":"Import!E26082","v":0},{"$f":"Import!E26232","v":0},{"$f":"Import!E26382","v":0}]
[15,{"$f":"Import!E25333","v":"Select"},{"$f":"Import!E25483","v":"Select"},{"$f":"Import!E25633","v":"Select"},{"$f":"Import!E25783","v":0},{"$f":"Import!E25933","v":0},{"$f":"Import!E26083","v":0},{"$f":"Import!E26233","v":0},{"$f":"Import!E26383","v":0}]
[16,{"$f":"Import!E25334","v":"Select"},{"$f":"Import!E25484","v":"Select"},{"$f":"Import!E25634","v":"Select"},{"$f":"Import!E25784","v":0},{"$f":"Import!E25934","v":0},{"$f":"Import!E26084","v":0},{"$f":"Import!E26234","v":0},{"$f":"Import!E26384","v":0}]
[17,{"$f":"Import!E25335","v":"Select"},{"$f":"Import!E25485","v":"Select"},{"$f":"Import!E25635","v":"Select"},{"$f":"Import!E25785","v":0},{"$f":"Import!E25935","v":0},{"$f":"Import!E26085","v":0},{"$f":"Import!E26235","v":0},{"$f":"Import!E26385","v":0}]
[18,{"$f":"Import!E25336","v":"Select"},{"$f":"Import!E25486","v":"Select"},{"$f":"Import!E25636","v":"Select"},{"$f":"Import!E25786","v":0},{"$f":"Import!E25936","v":0},{"$f":"Import!E26086","v":0},{"$f":"Import!E26236","v":0},{"$f":"Import!E26386","v":0}]
[19,{"$f":"Import!E25337","v":"Select"},{"$f":"Import!E25487","v":"Select"},{"$f":"Import!E25637","v":"Select"},{"$f":"Import!E25787","v":0},{"$f":"Import!E25937","v":0},{"$f":"Import!E26087","v":0},{"$f":"Import!E26237","v":0},{"$f":"Import!E26387","v":0}]
[20,{"$f":"Import!E25338","v":"Select"},{"$f":"Import!E25488","v":"Select"},{"$f":"Import!E25638","v":"Select"},{"$f":"Import!E25788","v":0},{"$f":"Import!E25938","v":0},{"$f":"Import!E26088","v":0},{"$f":"Import!E26238","v":0},{"$f":"Import!E26388","v":0}]
[21,{"$f":"Import!E25339","v":"Select"},{"$f":"Import!E25489","v":"Select"},{"$f":"Import!E25639","v":"Select"},{"$f":"Import!E25789","v":0},{"$f":"Import!E25939","v":0},{"$f":"Import!E26089","v":0},{"$f":"Import!E26239","v":0},{"$f":"Import!E26389","v":0}]
[22,{"$f":"Import!E25340","v":"Select"},{"$f":"Import!E25490","v":"Select"},{"$f":"Import!E25640","v":"Select"},{"$f":"Import!E25790","v":0},{"$f":"Import!E25940","v":0},{"$f":"Import!E26090","v":0},{"$f":"Import!E26240","v":0},{"$f":"Import!E26390","v":0}]
[23,{"$f":"Import!E25341","v":"Select"},{"$f":"Import!E25491","v":"Select"},{"$f":"Import!E25641","v":"Select"},{"$f":"Import!E25791","v":0},{"$f":"Import!E25941","v":0},{"$f":"Import!E26091","v":0},{"$f":"Import!E26241","v":0},{"$f":"Import!E26391","v":0}]
[24,{"$f":"Import!E25342","v":"Select"},{"$f":"Import!E25492","v":"Select"},{"$f":"Import!E25642","v":"Select"},{"$f":"Import!E25792","v":0},{"$f":"Import!E25942","v":0},{"$f":"Import!E26092","v":0},{"$f":"Import!E26242","v":0},{"$f":"Import!E26392","v":0}]
[25,{"$f":"Import!E25343","v":"Select"},{"$f":"Import!E25493","v":"Select"},{"$f":"Import!E25643","v":"Select"},{"$f":"Import!E25793","v":0},{"$f":"Import!E25943","v":0},{"$f":"Import!E26093","v":0},{"$f":"Import!E26243","v":0},{"$f":"Import!E26393","v":0}]
[26,{"$f":"Import!E25344","v":"Select"},{"$f":"Import!E25494","v":"Select"},{"$f":"Import!E25644","v":"Select"},{"$f":"Import!E25794","v":0},{"$f":"Import!E25944","v":0},{"$f":"Import!E26094","v":0},{"$f":"Import!E26244","v":0},{"$f":"Import!E26394","v":0}]
[27,{"$f":"Import!E25345","v":"Select"},{"$f":"Import!E25495","v":"Select"},{"$f":"Import!E25645","v":"Select"},{"$f":"Import!E25795","v":0},{"$f":"Import!E25945","v":0},{"$f":"Import!E26095","v":0},{"$f":"Import!E26245","v":0},{"$f":"Import!E26395","v":0}]
[28,{"$f":"Import!E25346","v":"Select"},{"$f":"Import!E25496","v":"Select"},{"$f":"Import!E25646","v":"Select"},{"$f":"Import!E25796","v":0},{"$f":"Import!E25946","v":0},{"$f":"Import!E26096","v":0},{"$f":"Import!E26246","v":0},{"$f":"Import!E26396","v":0}]
[29,{"$f":"Import!E25347","v":"Select"},{"$f":"Import!E25497","v":"Select"},{"$f":"Import!E25647","v":"Select"},{"$f":"Import!E25797","v":0},{"$f":"Import!E25947","v":0},{"$f":"Import!E26097","v":0},{"$f":"Import!E26247","v":0},{"$f":"Import!E26397","v":0}]
[30,{"$f":"Import!E25348","v":"Select"},{"$f":"Import!E25498","v":"Select"},{"$f":"Import!E25648","v":"Select"},{"$f":"Import!E25798","v":0},{"$f":"Import!E25948","v":0},{"$f":"Import!E26098","v":0},{"$f":"Import!E26248","v":0},{"$f":"Import!E26398","v":0}]
[31,{"$f":"Import!E25349","v":"Select"},{"$f":"Import!E25499","v":"Select"},{"$f":"Import!E25649","v":"Select"},{"$f":"Import!E25799","v":0},{"$f":"Import!E25949","v":0},{"$f":"Import!E26099","v":0},{"$f":"Import!E26249","v":0},{"$f":"Import!E26399","v":0}]
[32,{"$f":"Import!E25350","v":"Select"},{"$f":"Import!E25500","v":"Select"},{"$f":"Import!E25650","v":"Select"},{"$f":"Import!E25800","v":0},{"$f":"Import!E25950","v":0},{"$f":"Import!E26100","v":0},{"$f":"Import!E26250","v":0},{"$f":"Import!E26400","v":0}]
[33,{"$f":"Import!E25351","v":"Select"},{"$f":"Import!E25501","v":"Select"},{"$f":"Import!E25651","v":"Select"},{"$f":"Import!E25801","v":0},{"$f":"Import!E25951","v":0},{"$f":"Import!E26101","v":0},{"$f":"Import!E26251","v":0},{"$f":"Import!E26401","v":0}]
[34,{"$f":"Import!E25352","v":"Select"},{"$f":"Import!E25502","v":"Select"},{"$f":"Import!E25652","v":"Select"},{"$f":"Import!E25802","v":0},{"$f":"Import!E25952","v":0},{"$f":"Import!E26102","v":0},{"$f":"Import!E26252","v":0},{"$f":"Import!E26402","v":0}]
[35,{"$f":"Import!E25353","v":"Select"},{"$f":"Import!E25503","v":"Select"},{"$f":"Import!E25653","v":"Select"},{"$f":"Import!E25803","v":0},{"$f":"Import!E25953","v":0},{"$f":"Import!E26103","v":0},{"$f":"Import!E26253","v":0},{"$f":"Import!E26403","v":0}]
[36,{"$f":"Import!E25354","v":"Select"},{"$f":"Import!E25504","v":"Select"},{"$f":"Import!E25654","v":"Select"},{"$f":"Import!E25804","v":0},{"$f":"Import!E25954","v":0},{"$f":"Import!E26104","v":0},{"$f":"Import!E26254","v":0},{"$f":"Import!E26404","v":0}]
[37,{"$f":"Import!E25355","v":"Select"},{"$f":"Import!E25505","v":"Select"},{"$f":"Import!E25655","v":"Select"},{"$f":"Import!E25805","v":0},{"$f":"Import!E25955","v":0},{"$f":"Import!E26105","v":0},{"$f":"Import!E26255","v":0},{"$f":"Import!E26405","v":0}]
[38,{"$f":"Import!E25356","v":"Select"},{"$f":"Import!E25506","v":"Select"},{"$f":"Import!E25656","v":"Select"},{"$f":"Import!E25806","v":0},{"$f":"Import!E25956","v":0},{"$f":"Import!E26106","v":0},{"$f":"Import!E26256","v":0},{"$f":"Import!E26406","v":0}]
[39,{"$f":"Import!E25357","v":"Select"},{"$f":"Import!E25507","v":"Select"},{"$f":"Import!E25657","v":"Select"},{"$f":"Import!E25807","v":0},{"$f":"Import!E25957","v":0},{"$f":"Import!E26107","v":0},{"$f":"Import!E26257","v":0},{"$f":"Import!E26407","v":0}]
[40,{"$f":"Import!E25358","v":"Select"},{"$f":"Import!E25508","v":"Select"},{"$f":"Import!E25658","v":"Select"},{"$f":"Import!E25808","v":0},{"$f":"Import!E25958","v":0},{"$f":"Import!E26108","v":0},{"$f":"Import!E26258","v":0},{"$f":"Import!E26408","v":0}]
[41,{"$f":"Import!E25359","v":"Select"},{"$f":"Import!E25509","v":"Select"},{"$f":"Import!E25659","v":"Select"},{"$f":"Import!E25809","v":0},{"$f":"Import!E25959","v":0},{"$f":"Import!E26109","v":0},{"$f":"Import!E26259","v":0},{"$f":"Import!E26409","v":0}]
[42,{"$f":"Import!E25360","v":"Select"},{"$f":"Import!E25510","v":"Select"},{"$f":"Import!E25660","v":"Select"},{"$f":"Import!E25810","v":0},{"$f":"Import!E25960","v":0},{"$f":"Import!E26110","v":0},{"$f":"Import!E26260","v":0},{"$f":"Import!E26410","v":0}]
[43,{"$f":"Import!E25361","v":"Select"},{"$f":"Import!E25511","v":"Select"},{"$f":"Import!E25661","v":"Select"},{"$f":"Import!E25811","v":0},{"$f":"Import!E25961","v":0},{"$f":"Import!E26111","v":0},{"$f":"Import!E26261","v":0},{"$f":"Import!E26411","v":0}]
[44,{"$f":"Import!E25362","v":"Select"},{"$f":"Import!E25512","v":"Select"},{"$f":"Import!E25662","v":"Select"},{"$f":"Import!E25812","v":0},{"$f":"Import!E25962","v":0},{"$f":"Import!E26112","v":0},{"$f":"Import!E26262","v":0},{"$f":"Import!E26412","v":0}]
[45,{"$f":"Import!E25363","v":"Select"},{"$f":"Import!E25513","v":"Select"},{"$f":"Import!E25663","v":"Select"},{"$f":"Import!E25813","v":0},{"$f":"Import!E25963","v":0},{"$f":"Import!E26113","v":0},{"$f":"Import!E26263","v":0},{"$f":"Import!E26413","v":0}]
[46,{"$f":"Import!E25364","v":"Select"},{"$f":"Import!E25514","v":"Select"},{"$f":"Import!E25664","v":"Select"},{"$f":"Import!E25814","v":0},{"$f":"Import!E25964","v":0},{"$f":"Import!E26114","v":0},{"$f":"Import!E26264","v":0},{"$f":"Import!E26414","v":0}]
[47,{"$f":"Import!E25365","v":"Select"},{"$f":"Import!E25515","v":"Select"},{"$f":"Import!E25665","v":"Select"},{"$f":"Import!E25815","v":0},{"$f":"Import!E25965","v":0},{"$f":"Import!E26115","v":0},{"$f":"Import!E26265","v":0},{"$f":"Import!E26415","v":0}]
[48,{"$f":"Import!E25366","v":"Select"},{"$f":"Import!E25516","v":"Select"},{"$f":"Import!E25666","v":"Select"},{"$f":"Import!E25816","v":0},{"$f":"Import!E25966","v":0},{"$f":"Import!E26116","v":0},{"$f":"Import!E26266","v":0},{"$f":"Import!E26416","v":0}]
[49,{"$f":"Import!E25367","v":"Select"},{"$f":"Import!E25517","v":"Select"},{"$f":"Import!E25667","v":"Select"},{"$f":"Import!E25817","v":0},{"$f":"Import!E25967","v":0},{"$f":"Import!E26117","v":0},{"$f":"Import!E26267","v":0},{"$f":"Import!E26417","v":0}]
[50,{"$f":"Import!E25368","v":"Select"},{"$f":"Import!E25518","v":"Select"},{"$f":"Import!E25668","v":"Select"},{"$f":"Import!E25818","v":0},{"$f":"Import!E25968","v":0},{"$f":"Import!E26118","v":0},{"$f":"Import!E26268","v":0},{"$f":"Import!E26418","v":0}]
[51,{"$f":"Import!E25369","v":"Select"},{"$f":"Import!E25519","v":"Select"},{"$f":"Import!E25669","v":"Select"},{"$f":"Import!E25819","v":0},{"$f":"Import!E25969","v":0},{"$f":"Import!E26119","v":0},{"$f":"Import!E26269","v":0},{"$f":"Import!E26419","v":0}]
[52,{"$f":"Import!E25370","v":"Select"},{"$f":"Import!E25520","v":"Select"},{"$f":"Import!E25670","v":"Select"},{"$f":"Import!E25820","v":0},{"$f":"Import!E25970","v":0},{"$f":"Import!E26120","v":0},{"$f":"Import!E26270","v":0},{"$f":"Import!E26420","v":0}]
[53,{"$f":"Import!E25371","v":"Select"},{"$f":"Import!E25521","v":"Select"},{"$f":"Import!E25671","v":"Select"},{"$f":"Import!E25821","v":0},{"$f":"Import!E25971","v":0},{"$f":"Import!E26121","v":0},{"$f":"Import!E26271","v":0},{"$f":"Import!E26421","v":0}]
[54,{"$f":"Import!E25372","v":"Select"},{"$f":"Import!E25522","v":"Select"},{"$f":"Import!E25672","v":"Select"},{"$f":"Import!E25822","v":0},{"$f":"Import!E25972","v":0},{"$f":"Import!E26122","v":0},{"$f":"Import!E26272","v":0},{"$f":"Import!E26422","v":0}]
[55,{"$f":"Import!E25373","v":"Select"},{"$f":"Import!E25523","v":"Select"},{"$f":"Import!E25673","v":"Select"},{"$f":"Import!E25823","v":0},{"$f":"Import!E25973","v":0},{"$f":"Import!E26123","v":0},{"$f":"Import!E26273","v":0},{"$f":"Import!E26423","v":0}]
[56,{"$f":"Import!E25374","v":"Select"},{"$f":"Import!E25524","v":"Select"},{"$f":"Import!E25674","v":"Select"},{"$f":"Import!E25824","v":0},{"$f":"Import!E25974","v":0},{"$f":"Import!E26124","v":0},{"$f":"Import!E26274","v":0},{"$f":"Import!E26424","v":0}]
[57,{"$f":"Import!E25375","v":"Select"},{"$f":"Import!E25525","v":"Select"},{"$f":"Import!E25675","v":"Select"},{"$f":"Import!E25825","v":0},{"$f":"Import!E25975","v":0},{"$f":"Import!E26125","v":0},{"$f":"Import!E26275","v":0},{"$f":"Import!E26425","v":0}]
[58,{"$f":"Import!E25376","v":"Select"},{"$f":"Import!E25526","v":"Select"},{"$f":"Import!E25676","v":"Select"},{"$f":"Import!E25826","v":0},{"$f":"Import!E25976","v":0},{"$f":"Import!E26126","v":0},{"$f":"Import!E26276","v":0},{"$f":"Import!E26426","v":0}]
[59,{"$f":"Import!E25377","v":"Select"},{"$f":"Import!E25527","v":"Select"},{"$f":"Import!E25677","v":"Select"},{"$f":"Import!E25827","v":0},{"$f":"Import!E25977","v":0},{"$f":"Import!E26127","v":0},{"$f":"Import!E26277","v":0},{"$f":"Import!E26427","v":0}]
[60,{"$f":"Import!E25378","v":"Select"},{"$f":"Import!E25528","v":"Select"},{"$f":"Import!E25678","v":"Select"},{"$f":"Import!E25828","v":0},{"$f":"Import!E25978","v":0},{"$f":"Import!E26128","v":0},{"$f":"Import!E26278","v":0},{"$f":"Import!E26428","v":0}]
[61,{"$f":"Import!E25379","v":"Select"},{"$f":"Import!E25529","v":"Select"},{"$f":"Import!E25679","v":"Select"},{"$f":"Import!E25829","v":0},{"$f":"Import!E25979","v":0},{"$f":"Import!E26129","v":0},{"$f":"Import!E26279","v":0},{"$f":"Import!E26429","v":0}]
[62,{"$f":"Import!E25380","v":"Select"},{"$f":"Import!E25530","v":"Select"},{"$f":"Import!E25680","v":"Select"},{"$f":"Import!E25830","v":0},{"$f":"Import!E25980","v":0},{"$f":"Import!E26130","v":0},{"$f":"Import!E26280","v":0},{"$f":"Import!E26430","v":0}]
[63,{"$f":"Import!E25381","v":"Select"},{"$f":"Import!E25531","v":"Select"},{"$f":"Import!E25681","v":"Select"},{"$f":"Import!E25831","v":0},{"$f":"Import!E25981","v":0},{"$f":"Import!E26131","v":0},{"$f":"Import!E26281","v":0},{"$f":"Import!E26431","v":0}]
[64,{"$f":"Import!E25382","v":"Select"},{"$f":"Import!E25532","v":"Select"},{"$f":"Import!E25682","v":"Select"},{"$f":"Import!E25832","v":0},{"$f":"Import!E25982","v":0},{"$f":"Import!E26132","v":0},{"$f":"Import!E26282","v":0},{"$f":"Import!E26432","v":0}]
[65,{"$f":"Import!E25383","v":"Select"},{"$f":"Import!E25533","v":"Select"},{"$f":"Import!E25683","v":"Select"},{"$f":"Import!E25833","v":0},{"$f":"Import!E25983","v":0},{"$f":"Import!E26133","v":0},{"$f":"Import!E26283","v":0},{"$f":"Import!E26433","v":0}]
[66,{"$f":"Import!E25384","v":"Select"},{"$f":"Import!E25534","v":"Select"},{"$f":"Import!E25684","v":"Select"},{"$f":"Import!E25834","v":0},{"$f":"Import!E25984","v":0},{"$f":"Import!E26134","v":0},{"$f":"Import!E26284","v":0},{"$f":"Import!E26434","v":0}]
[{"$f":"A900+1","v":67},{"$f":"Import!E25385","v":"Select"},{"$f":"Import!E25535","v":"Select"},{"$f":"Import!E25685","v":"Select"},{"$f":"Import!E25835","v":0},{"$f":"Import!E25985","v":0},{"$f":"Import!E26135","v":0},{"$f":"Import!E26285","v":0},{"$f":"Import!E26435","v":0}]
[68,{"$f":"Import!E25386","v":"Select"},{"$f":"Import!E25536","v":"Select"},{"$f":"Import!E25686","v":"Select"},{"$f":"Import!E25836","v":0},{"$f":"Import!E25986","v":0},{"$f":"Import!E26136","v":0},{"$f":"Import!E26286","v":0},{"$f":"Import!E26436","v":0}]
[69,{"$f":"Import!E25387","v":"Select"},{"$f":"Import!E25537","v":"Select"},{"$f":"Import!E25687","v":"Select"},{"$f":"Import!E25837","v":0},{"$f":"Import!E25987","v":0},{"$f":"Import!E26137","v":0},{"$f":"Import!E26287","v":0},{"$f":"Import!E26437","v":0}]
[70,{"$f":"Import!E25388","v":"Select"},{"$f":"Import!E25538","v":"Select"},{"$f":"Import!E25688","v":"Select"},{"$f":"Import!E25838","v":0},{"$f":"Import!E25988","v":0},{"$f":"Import!E26138","v":0},{"$f":"Import!E26288","v":0},{"$f":"Import!E26438","v":0}]
[71,{"$f":"Import!E25389","v":"Select"},{"$f":"Import!E25539","v":"Select"},{"$f":"Import!E25689","v":"Select"},{"$f":"Import!E25839","v":0},{"$f":"Import!E25989","v":0},{"$f":"Import!E26139","v":0},{"$f":"Import!E26289","v":0},{"$f":"Import!E26439","v":0}]
[72,{"$f":"Import!E25390","v":"Select"},{"$f":"Import!E25540","v":"Select"},{"$f":"Import!E25690","v":"Select"},{"$f":"Import!E25840","v":0},{"$f":"Import!E25990","v":0},{"$f":"Import!E26140","v":0},{"$f":"Import!E26290","v":0},{"$f":"Import!E26440","v":0}]
[73,{"$f":"Import!E25391","v":"Select"},{"$f":"Import!E25541","v":"Select"},{"$f":"Import!E25691","v":"Select"},{"$f":"Import!E25841","v":0},{"$f":"Import!E25991","v":0},{"$f":"Import!E26141","v":0},{"$f":"Import!E26291","v":0},{"$f":"Import!E26441","v":0}]
[74,{"$f":"Import!E25392","v":"Select"},{"$f":"Import!E25542","v":"Select"},{"$f":"Import!E25692","v":"Select"},{"$f":"Import!E25842","v":0},{"$f":"Import!E25992","v":0},{"$f":"Import!E26142","v":0},{"$f":"Import!E26292","v":0},{"$f":"Import!E26442","v":0}]
[75,{"$f":"Import!E25393","v":"Select"},{"$f":"Import!E25543","v":"Select"},{"$f":"Import!E25693","v":"Select"},{"$f":"Import!E25843","v":0},{"$f":"Import!E25993","v":0},{"$f":"Import!E26143","v":0},{"$f":"Import!E26293","v":0},{"$f":"Import!E26443","v":0}]
[76,{"$f":"Import!E25394","v":"Select"},{"$f":"Import!E25544","v":"Select"},{"$f":"Import!E25694","v":"Select"},{"$f":"Import!E25844","v":0},{"$f":"Import!E25994","v":0},{"$f":"Import!E26144","v":0},{"$f":"Import!E26294","v":0},{"$f":"Import!E26444","v":0}]
[77,{"$f":"Import!E25395","v":"Select"},{"$f":"Import!E25545","v":"Select"},{"$f":"Import!E25695","v":"Select"},{"$f":"Import!E25845","v":0},{"$f":"Import!E25995","v":0},{"$f":"Import!E26145","v":0},{"$f":"Import!E26295","v":0},{"$f":"Import!E26445","v":0}]
[78,{"$f":"Import!E25396","v":"Select"},{"$f":"Import!E25546","v":"Select"},{"$f":"Import!E25696","v":"Select"},{"$f":"Import!E25846","v":0},{"$f":"Import!E25996","v":0},{"$f":"Import!E26146","v":0},{"$f":"Import!E26296","v":0},{"$f":"Import!E26446","v":0}]
[79,{"$f":"Import!E25397","v":"Select"},{"$f":"Import!E25547","v":"Select"},{"$f":"Import!E25697","v":"Select"},{"$f":"Import!E25847","v":0},{"$f":"Import!E25997","v":0},{"$f":"Import!E26147","v":0},{"$f":"Import!E26297","v":0},{"$f":"Import!E26447","v":0}]
[80,{"$f":"Import!E25398","v":"Select"},{"$f":"Import!E25548","v":"Select"},{"$f":"Import!E25698","v":"Select"},{"$f":"Import!E25848","v":0},{"$f":"Import!E25998","v":0},{"$f":"Import!E26148","v":0},{"$f":"Import!E26298","v":0},{"$f":"Import!E26448","v":0}]
[81,{"$f":"Import!E25399","v":"Select"},{"$f":"Import!E25549","v":"Select"},{"$f":"Import!E25699","v":"Select"},{"$f":"Import!E25849","v":0},{"$f":"Import!E25999","v":0},{"$f":"Import!E26149","v":0},{"$f":"Import!E26299","v":0},{"$f":"Import!E26449","v":0}]
[82,{"$f":"Import!E25400","v":"Select"},{"$f":"Import!E25550","v":"Select"},{"$f":"Import!E25700","v":"Select"},{"$f":"Import!E25850","v":0},{"$f":"Import!E26000","v":0},{"$f":"Import!E26150","v":0},{"$f":"Import!E26300","v":0},{"$f":"Import!E26450","v":0}]
[83,{"$f":"Import!E25401","v":"Select"},{"$f":"Import!E25551","v":"Select"},{"$f":"Import!E25701","v":"Select"},{"$f":"Import!E25851","v":0},{"$f":"Import!E26001","v":0},{"$f":"Import!E26151","v":0},{"$f":"Import!E26301","v":0},{"$f":"Import!E26451","v":0}]
[84,{"$f":"Import!E25402","v":"Select"},{"$f":"Import!E25552","v":"Select"},{"$f":"Import!E25702","v":"Select"},{"$f":"Import!E25852","v":0},{"$f":"Import!E26002","v":0},{"$f":"Import!E26152","v":0},{"$f":"Import!E26302","v":0},{"$f":"Import!E26452","v":0}]
[85,{"$f":"Import!E25403","v":"Select"},{"$f":"Import!E25553","v":"Select"},{"$f":"Import!E25703","v":"Select"},{"$f":"Import!E25853","v":0},{"$f":"Import!E26003","v":0},{"$f":"Import!E26153","v":0},{"$f":"Import!E26303","v":0},{"$f":"Import!E26453","v":0}]
[86,{"$f":"Import!E25404","v":"Select"},{"$f":"Import!E25554","v":"Select"},{"$f":"Import!E25704","v":"Select"},{"$f":"Import!E25854","v":0},{"$f":"Import!E26004","v":0},{"$f":"Import!E26154","v":0},{"$f":"Import!E26304","v":0},{"$f":"Import!E26454","v":0}]
[87,{"$f":"Import!E25405","v":"Select"},{"$f":"Import!E25555","v":"Select"},{"$f":"Import!E25705","v":"Select"},{"$f":"Import!E25855","v":0},{"$f":"Import!E26005","v":0},{"$f":"Import!E26155","v":0},{"$f":"Import!E26305","v":0},{"$f":"Import!E26455","v":0}]
[88,{"$f":"Import!E25406","v":"Select"},{"$f":"Import!E25556","v":"Select"},{"$f":"Import!E25706","v":"Select"},{"$f":"Import!E25856","v":0},{"$f":"Import!E26006","v":0},{"$f":"Import!E26156","v":0},{"$f":"Import!E26306","v":0},{"$f":"Import!E26456","v":0}]
[89,{"$f":"Import!E25407","v":"Select"},{"$f":"Import!E25557","v":"Select"},{"$f":"Import!E25707","v":"Select"},{"$f":"Import!E25857","v":0},{"$f":"Import!E26007","v":0},{"$f":"Import!E26157","v":0},{"$f":"Import!E26307","v":0},{"$f":"Import!E26457","v":0}]
[90,{"$f":"Import!E25408","v":"Select"},{"$f":"Import!E25558","v":"Select"},{"$f":"Import!E25708","v":"Select"},{"$f":"Import!E25858","v":0},{"$f":"Import!E26008","v":0},{"$f":"Import!E26158","v":0},{"$f":"Import!E26308","v":0},{"$f":"Import!E26458","v":0}]
[91,{"$f":"Import!E25409","v":"Select"},{"$f":"Import!E25559","v":"Select"},{"$f":"Import!E25709","v":"Select"},{"$f":"Import!E25859","v":0},{"$f":"Import!E26009","v":0},{"$f":"Import!E26159","v":0},{"$f":"Import!E26309","v":0},{"$f":"Import!E26459","v":0}]
[92,{"$f":"Import!E25410","v":"Select"},{"$f":"Import!E25560","v":"Select"},{"$f":"Import!E25710","v":"Select"},{"$f":"Import!E25860","v":0},{"$f":"Import!E26010","v":0},{"$f":"Import!E26160","v":0},{"$f":"Import!E26310","v":0},{"$f":"Import!E26460","v":0}]
[93,{"$f":"Import!E25411","v":"Select"},{"$f":"Import!E25561","v":"Select"},{"$f":"Import!E25711","v":"Select"},{"$f":"Import!E25861","v":0},{"$f":"Import!E26011","v":0},{"$f":"Import!E26161","v":0},{"$f":"Import!E26311","v":0},{"$f":"Import!E26461","v":0}]
[94,{"$f":"Import!E25412","v":"Select"},{"$f":"Import!E25562","v":"Select"},{"$f":"Import!E25712","v":"Select"},{"$f":"Import!E25862","v":0},{"$f":"Import!E26012","v":0},{"$f":"Import!E26162","v":0},{"$f":"Import!E26312","v":0},{"$f":"Import!E26462","v":0}]
[95,{"$f":"Import!E25413","v":"Select"},{"$f":"Import!E25563","v":"Select"},{"$f":"Import!E25713","v":"Select"},{"$f":"Import!E25863","v":0},{"$f":"Import!E26013","v":0},{"$f":"Import!E26163","v":0},{"$f":"Import!E26313","v":0},{"$f":"Import!E26463","v":0}]
[96,{"$f":"Import!E25414","v":"Select"},{"$f":"Import!E25564","v":"Select"},{"$f":"Import!E25714","v":"Select"},{"$f":"Import!E25864","v":0},{"$f":"Import!E26014","v":0},{"$f":"Import!E26164","v":0},{"$f":"Import!E26314","v":0},{"$f":"Import!E26464","v":0}]
[97,{"$f":"Import!E25415","v":"Select"},{"$f":"Import!E25565","v":"Select"},{"$f":"Import!E25715","v":"Select"},{"$f":"Import!E25865","v":0},{"$f":"Import!E26015","v":0},{"$f":"Import!E26165","v":0},{"$f":"Import!E26315","v":0},{"$f":"Import!E26465","v":0}]
[98,{"$f":"Import!E25416","v":"Select"},{"$f":"Import!E25566","v":"Select"},{"$f":"Import!E25716","v":"Select"},{"$f":"Import!E25866","v":0},{"$f":"Import!E26016","v":0},{"$f":"Import!E26166","v":0},{"$f":"Import!E26316","v":0},{"$f":"Import!E26466","v":0}]
[99,{"$f":"Import!E25417","v":"Select"},{"$f":"Import!E25567","v":"Select"},{"$f":"Import!E25717","v":"Select"},{"$f":"Import!E25867","v":0},{"$f":"Import!E26017","v":0},{"$f":"Import!E26167","v":0},{"$f":"Import!E26317","v":0},{"$f":"Import!E26467","v":0}]
[100,{"$f":"Import!E25418","v":"Select"},{"$f":"Import!E25568","v":"Select"},{"$f":"Import!E25718","v":"Select"},{"$f":"Import!E25868","v":0},{"$f":"Import!E26018","v":0},{"$f":"Import!E26168","v":0},{"$f":"Import!E26318","v":0},{"$f":"Import!E26468","v":0}]
[101,{"$f":"Import!E25419","v":"Select"},{"$f":"Import!E25569","v":"Select"},{"$f":"Import!E25719","v":"Select"},{"$f":"Import!E25869","v":0},{"$f":"Import!E26019","v":0},{"$f":"Import!E26169","v":0},{"$f":"Import!E26319","v":0},{"$f":"Import!E26469","v":0}]
[102,{"$f":"Import!E25420","v":"Select"},{"$f":"Import!E25570","v":"Select"},{"$f":"Import!E25720","v":"Select"},{"$f":"Import!E25870","v":0},{"$f":"Import!E26020","v":0},{"$f":"Import!E26170","v":0},{"$f":"Import!E26320","v":0},{"$f":"Import!E26470","v":0}]
[103,{"$f":"Import!E25421","v":"Select"},{"$f":"Import!E25571","v":"Select"},{"$f":"Import!E25721","v":"Select"},{"$f":"Import!E25871","v":0},{"$f":"Import!E26021","v":0},{"$f":"Import!E26171","v":0},{"$f":"Import!E26321","v":0},{"$f":"Import!E26471","v":0}]
[104,{"$f":"Import!E25422","v":"Select"},{"$f":"Import!E25572","v":"Select"},{"$f":"Import!E25722","v":"Select"},{"$f":"Import!E25872","v":0},{"$f":"Import!E26022","v":0},{"$f":"Import!E26172","v":0},{"$f":"Import!E26322","v":0},{"$f":"Import!E26472","v":0}]
[105,{"$f":"Import!E25423","v":"Select"},{"$f":"Import!E25573","v":"Select"},{"$f":"Import!E25723","v":"Select"},{"$f":"Import!E25873","v":0},{"$f":"Import!E26023","v":0},{"$f":"Import!E26173","v":0},{"$f":"Import!E26323","v":0},{"$f":"Import!E26473","v":0}]
[106,{"$f":"Import!E25424","v":"Select"},{"$f":"Import!E25574","v":"Select"},{"$f":"Import!E25724","v":"Select"},{"$f":"Import!E25874","v":0},{"$f":"Import!E26024","v":0},{"$f":"Import!E26174","v":0},{"$f":"Import!E26324","v":0},{"$f":"Import!E26474","v":0}]
[107,{"$f":"Import!E25425","v":"Select"},{"$f":"Import!E25575","v":"Select"},{"$f":"Import!E25725","v":"Select"},{"$f":"Import!E25875","v":0},{"$f":"Import!E26025","v":0},{"$f":"Import!E26175","v":0},{"$f":"Import!E26325","v":0},{"$f":"Import!E26475","v":0}]
[108,{"$f":"Import!E25426","v":"Select"},{"$f":"Import!E25576","v":"Select"},{"$f":"Import!E25726","v":"Select"},{"$f":"Import!E25876","v":0},{"$f":"Import!E26026","v":0},{"$f":"Import!E26176","v":0},{"$f":"Import!E26326","v":0},{"$f":"Import!E26476","v":0}]
[109,{"$f":"Import!E25427","v":"Select"},{"$f":"Import!E25577","v":"Select"},{"$f":"Import!E25727","v":"Select"},{"$f":"Import!E25877","v":0},{"$f":"Import!E26027","v":0},{"$f":"Import!E26177","v":0},{"$f":"Import!E26327","v":0},{"$f":"Import!E26477","v":0}]
[110,{"$f":"Import!E25428","v":"Select"},{"$f":"Import!E25578","v":"Select"},{"$f":"Import!E25728","v":"Select"},{"$f":"Import!E25878","v":0},{"$f":"Import!E26028","v":0},{"$f":"Import!E26178","v":0},{"$f":"Import!E26328","v":0},{"$f":"Import!E26478","v":0}]
[111,{"$f":"Import!E25429","v":"Select"},{"$f":"Import!E25579","v":"Select"},{"$f":"Import!E25729","v":"Select"},{"$f":"Import!E25879","v":0},{"$f":"Import!E26029","v":0},{"$f":"Import!E26179","v":0},{"$f":"Import!E26329","v":0},{"$f":"Import!E26479","v":0}]
[112,{"$f":"Import!E25430","v":"Select"},{"$f":"Import!E25580","v":"Select"},{"$f":"Import!E25730","v":"Select"},{"$f":"Import!E25880","v":0},{"$f":"Import!E26030","v":0},{"$f":"Import!E26180","v":0},{"$f":"Import!E26330","v":0},{"$f":"Import!E26480","v":0}]
[113,{"$f":"Import!E25431","v":"Select"},{"$f":"Import!E25581","v":"Select"},{"$f":"Import!E25731","v":"Select"},{"$f":"Import!E25881","v":0},{"$f":"Import!E26031","v":0},{"$f":"Import!E26181","v":0},{"$f":"Import!E26331","v":0},{"$f":"Import!E26481","v":0}]
[114,{"$f":"Import!E25432","v":"Select"},{"$f":"Import!E25582","v":"Select"},{"$f":"Import!E25732","v":"Select"},{"$f":"Import!E25882","v":0},{"$f":"Import!E26032","v":0},{"$f":"Import!E26182","v":0},{"$f":"Import!E26332","v":0},{"$f":"Import!E26482","v":0}]
[115,{"$f":"Import!E25433","v":"Select"},{"$f":"Import!E25583","v":"Select"},{"$f":"Import!E25733","v":"Select"},{"$f":"Import!E25883","v":0},{"$f":"Import!E26033","v":0},{"$f":"Import!E26183","v":0},{"$f":"Import!E26333","v":0},{"$f":"Import!E26483","v":0}]
[116,{"$f":"Import!E25434","v":"Select"},{"$f":"Import!E25584","v":"Select"},{"$f":"Import!E25734","v":"Select"},{"$f":"Import!E25884","v":0},{"$f":"Import!E26034","v":0},{"$f":"Import!E26184","v":0},{"$f":"Import!E26334","v":0},{"$f":"Import!E26484","v":0}]
[117,{"$f":"Import!E25435","v":"Select"},{"$f":"Import!E25585","v":"Select"},{"$f":"Import!E25735","v":"Select"},{"$f":"Import!E25885","v":0},{"$f":"Import!E26035","v":0},{"$f":"Import!E26185","v":0},{"$f":"Import!E26335","v":0},{"$f":"Import!E26485","v":0}]
[118,{"$f":"Import!E25436","v":"Select"},{"$f":"Import!E25586","v":"Select"},{"$f":"Import!E25736","v":"Select"},{"$f":"Import!E25886","v":0},{"$f":"Import!E26036","v":0},{"$f":"Import!E26186","v":0},{"$f":"Import!E26336","v":0},{"$f":"Import!E26486","v":0}]
[119,{"$f":"Import!E25437","v":"Select"},{"$f":"Import!E25587","v":"Select"},{"$f":"Import!E25737","v":"Select"},{"$f":"Import!E25887","v":0},{"$f":"Import!E26037","v":0},{"$f":"Import!E26187","v":0},{"$f":"Import!E26337","v":0},{"$f":"Import!E26487","v":0}]
[120,{"$f":"Import!E25438","v":"Select"},{"$f":"Import!E25588","v":"Select"},{"$f":"Import!E25738","v":"Select"},{"$f":"Import!E25888","v":0},{"$f":"Import!E26038","v":0},{"$f":"Import!E26188","v":0},{"$f":"Import!E26338","v":0},{"$f":"Import!E26488","v":0}]
[121,{"$f":"Import!E25439","v":"Select"},{"$f":"Import!E25589","v":"Select"},{"$f":"Import!E25739","v":"Select"},{"$f":"Import!E25889","v":0},{"$f":"Import!E26039","v":0},{"$f":"Import!E26189","v":0},{"$f":"Import!E26339","v":0},{"$f":"Import!E26489","v":0}]
[122,{"$f":"Import!E25440","v":"Select"},{"$f":"Import!E25590","v":"Select"},{"$f":"Import!E25740","v":"Select"},{"$f":"Import!E25890","v":0},{"$f":"Import!E26040","v":0},{"$f":"Import!E26190","v":0},{"$f":"Import!E26340","v":0},{"$f":"Import!E26490","v":0}]
[123,{"$f":"Import!E25441","v":"Select"},{"$f":"Import!E25591","v":"Select"},{"$f":"Import!E25741","v":"Select"},{"$f":"Import!E25891","v":0},{"$f":"Import!E26041","v":0},{"$f":"Import!E26191","v":0},{"$f":"Import!E26341","v":0},{"$f":"Import!E26491","v":0}]
[124,{"$f":"Import!E25442","v":"Select"},{"$f":"Import!E25592","v":"Select"},{"$f":"Import!E25742","v":"Select"},{"$f":"Import!E25892","v":0},{"$f":"Import!E26042","v":0},{"$f":"Import!E26192","v":0},{"$f":"Import!E26342","v":0},{"$f":"Import!E26492","v":0}]
[125,{"$f":"Import!E25443","v":"Select"},{"$f":"Import!E25593","v":"Select"},{"$f":"Import!E25743","v":"Select"},{"$f":"Import!E25893","v":0},{"$f":"Import!E26043","v":0},{"$f":"Import!E26193","v":0},{"$f":"Import!E26343","v":0},{"$f":"Import!E26493","v":0}]
[126,{"$f":"Import!E25444","v":"Select"},{"$f":"Import!E25594","v":"Select"},{"$f":"Import!E25744","v":"Select"},{"$f":"Import!E25894","v":0},{"$f":"Import!E26044","v":0},{"$f":"Import!E26194","v":0},{"$f":"Import!E26344","v":0},{"$f":"Import!E26494","v":0}]
[127,{"$f":"Import!E25445","v":"Select"},{"$f":"Import!E25595","v":"Select"},{"$f":"Import!E25745","v":"Select"},{"$f":"Import!E25895","v":0},{"$f":"Import!E26045","v":0},{"$f":"Import!E26195","v":0},{"$f":"Import!E26345","v":0},{"$f":"Import!E26495","v":0}]
[128,{"$f":"Import!E25446","v":"Select"},{"$f":"Import!E25596","v":"Select"},{"$f":"Import!E25746","v":"Select"},{"$f":"Import!E25896","v":0},{"$f":"Import!E26046","v":0},{"$f":"Import!E26196","v":0},{"$f":"Import!E26346","v":0},{"$f":"Import!E26496","v":0}]
[129,{"$f":"Import!E25447","v":"Select"},{"$f":"Import!E25597","v":"Select"},{"$f":"Import!E25747","v":"Select"},{"$f":"Import!E25897","v":0},{"$f":"Import!E26047","v":0},{"$f":"Import!E26197","v":0},{"$f":"Import!E26347","v":0},{"$f":"Import!E26497","v":0}]
[130,{"$f":"Import!E25448","v":"Select"},{"$f":"Import!E25598","v":"Select"},{"$f":"Import!E25748","v":"Select"},{"$f":"Import!E25898","v":0},{"$f":"Import!E26048","v":0},{"$f":"Import!E26198","v":0},{"$f":"Import!E26348","v":0},{"$f":"Import!E26498","v":0}]
[{"$f":"A964+1","v":131},{"$f":"Import!E25449","v":"Select"},{"$f":"Import!E25599","v":"Select"},{"$f":"Import!E25749","v":"Select"},{"$f":"Import!E25899","v":0},{"$f":"Import!E26049","v":0},{"$f":"Import!E26199","v":0},{"$f":"Import!E26349","v":0},{"$f":"Import!E26499","v":0}]
[132,{"$f":"Import!E25450","v":"Select"},{"$f":"Import!E25600","v":"Select"},{"$f":"Import!E25750","v":"Select"},{"$f":"Import!E25900","v":0},{"$f":"Import!E26050","v":0},{"$f":"Import!E26200","v":0},{"$f":"Import!E26350","v":0},{"$f":"Import!E26500","v":0}]
[133,{"$f":"Import!E25451","v":"Select"},{"$f":"Import!E25601","v":"Select"},{"$f":"Import!E25751","v":"Select"},{"$f":"Import!E25901","v":0},{"$f":"Import!E26051","v":0},{"$f":"Import!E26201","v":0},{"$f":"Import!E26351","v":0},{"$f":"Import!E26501","v":0}]
[134,{"$f":"Import!E25452","v":"Select"},{"$f":"Import!E25602","v":"Select"},{"$f":"Import!E25752","v":"Select"},{"$f":"Import!E25902","v":0},{"$f":"Import!E26052","v":0},{"$f":"Import!E26202","v":0},{"$f":"Import!E26352","v":0},{"$f":"Import!E26502","v":0}]
[135,{"$f":"Import!E25453","v":"Select"},{"$f":"Import!E25603","v":"Select"},{"$f":"Import!E25753","v":"Select"},{"$f":"Import!E25903","v":0},{"$f":"Import!E26053","v":0},{"$f":"Import!E26203","v":0},{"$f":"Import!E26353","v":0},{"$f":"Import!E26503","v":0}]
[136,{"$f":"Import!E25454","v":"Select"},{"$f":"Import!E25604","v":"Select"},{"$f":"Import!E25754","v":"Select"},{"$f":"Import!E25904","v":0},{"$f":"Import!E26054","v":0},{"$f":"Import!E26204","v":0},{"$f":"Import!E26354","v":0},{"$f":"Import!E26504","v":0}]
[137,{"$f":"Import!E25455","v":"Select"},{"$f":"Import!E25605","v":"Select"},{"$f":"Import!E25755","v":"Select"},{"$f":"Import!E25905","v":0},{"$f":"Import!E26055","v":0},{"$f":"Import!E26205","v":0},{"$f":"Import!E26355","v":0},{"$f":"Import!E26505","v":0}]
[138,{"$f":"Import!E25456","v":"Select"},{"$f":"Import!E25606","v":"Select"},{"$f":"Import!E25756","v":"Select"},{"$f":"Import!E25906","v":0},{"$f":"Import!E26056","v":0},{"$f":"Import!E26206","v":0},{"$f":"Import!E26356","v":0},{"$f":"Import!E26506","v":0}]
[139,{"$f":"Import!E25457","v":"Select"},{"$f":"Import!E25607","v":"Select"},{"$f":"Import!E25757","v":"Select"},{"$f":"Import!E25907","v":0},{"$f":"Import!E26057","v":0},{"$f":"Import!E26207","v":0},{"$f":"Import!E26357","v":0},{"$f":"Import!E26507","v":0}]
[140,{"$f":"Import!E25458","v":"Select"},{"$f":"Import!E25608","v":"Select"},{"$f":"Import!E25758","v":"Select"},{"$f":"Import!E25908","v":0},{"$f":"Import!E26058","v":0},{"$f":"Import!E26208","v":0},{"$f":"Import!E26358","v":0},{"$f":"Import!E26508","v":0}]
[141,{"$f":"Import!E25459","v":"Select"},{"$f":"Import!E25609","v":"Select"},{"$f":"Import!E25759","v":"Select"},{"$f":"Import!E25909","v":0},{"$f":"Import!E26059","v":0},{"$f":"Import!E26209","v":0},{"$f":"Import!E26359","v":0},{"$f":"Import!E26509","v":0}]
[142,{"$f":"Import!E25460","v":"Select"},{"$f":"Import!E25610","v":"Select"},{"$f":"Import!E25760","v":"Select"},{"$f":"Import!E25910","v":0},{"$f":"Import!E26060","v":0},{"$f":"Import!E26210","v":0},{"$f":"Import!E26360","v":0},{"$f":"Import!E26510","v":0}]
[143,{"$f":"Import!E25461","v":"Select"},{"$f":"Import!E25611","v":"Select"},{"$f":"Import!E25761","v":"Select"},{"$f":"Import!E25911","v":0},{"$f":"Import!E26061","v":0},{"$f":"Import!E26211","v":0},{"$f":"Import!E26361","v":0},{"$f":"Import!E26511","v":0}]
[144,{"$f":"Import!E25462","v":"Select"},{"$f":"Import!E25612","v":"Select"},{"$f":"Import!E25762","v":"Select"},{"$f":"Import!E25912","v":0},{"$f":"Import!E26062","v":0},{"$f":"Import!E26212","v":0},{"$f":"Import!E26362","v":0},{"$f":"Import!E26512","v":0}]
[145,{"$f":"Import!E25463","v":"Select"},{"$f":"Import!E25613","v":"Select"},{"$f":"Import!E25763","v":"Select"},{"$f":"Import!E25913","v":0},{"$f":"Import!E26063","v":0},{"$f":"Import!E26213","v":0},{"$f":"Import!E26363","v":0},{"$f":"Import!E26513","v":0}]
[146,{"$f":"Import!E25464","v":"Select"},{"$f":"Import!E25614","v":"Select"},{"$f":"Import!E25764","v":"Select"},{"$f":"Import!E25914","v":0},{"$f":"Import!E26064","v":0},{"$f":"Import!E26214","v":0},{"$f":"Import!E26364","v":0},{"$f":"Import!E26514","v":0}]
[147,{"$f":"Import!E25465","v":"Select"},{"$f":"Import!E25615","v":"Select"},{"$f":"Import!E25765","v":"Select"},{"$f":"Import!E25915","v":0},{"$f":"Import!E26065","v":0},{"$f":"Import!E26215","v":0},{"$f":"Import!E26365","v":0},{"$f":"Import!E26515","v":0}]
[148,{"$f":"Import!E25466","v":"Select"},{"$f":"Import!E25616","v":"Select"},{"$f":"Import!E25766","v":"Select"},{"$f":"Import!E25916","v":0},{"$f":"Import!E26066","v":0},{"$f":"Import!E26216","v":0},{"$f":"Import!E26366","v":0},{"$f":"Import!E26516","v":0}]
[149,{"$f":"Import!E25467","v":"Select"},{"$f":"Import!E25617","v":"Select"},{"$f":"Import!E25767","v":"Select"},{"$f":"Import!E25917","v":0},{"$f":"Import!E26067","v":0},{"$f":"Import!E26217","v":0},{"$f":"Import!E26367","v":0},{"$f":"Import!E26517","v":0}]
[150,{"$f":"Import!E25468","v":"Select"},{"$f":"Import!E25618","v":"Select"},{"$f":"Import!E25768","v":"Select"},{"$f":"Import!E25918","v":0},{"$f":"Import!E26068","v":0},{"$f":"Import!E26218","v":0},{"$f":"Import!E26368","v":0},{"$f":"Import!E26518","v":0}]
[]
[null,"Total Asset-Backed and Structured Securities",null,null,{"$f":"SUM(E835:E984)","v":0},{"$f":"SUM(F835:F984)","v":0},{"$f":"IFERROR(SUMPRODUCT(G835:G984,$F835:$F984)/SUM($F835:$F984),0)","v":0},{"$f":"IFERROR(SUMPRODUCT(H835:H984,$F835:$F984)/SUM($F835:$F984),0)","v":0}]
[]
[null,"(D) LOANS"]
[]
[null,null,"Enter # of Asset Types",{"$f":"Import!E26519","v":0}]
[null,null,null,null,null,{"$f":"YEAR($C$3)","v":2023},2023,"Weighted"]
[null,"Asset Type","Currency","Country","BSCR Rating","Nominal Amount","Fair Value","Average YTM","Effective Duration","Comments"]
[1,{"$f":"Import!E26520","v":"Select"},{"$f":"Import!E26620","v":"Select"},{"$f":"Import!E26720","v":"Select"},{"$f":"Import!E26820","v":"Select"},{"$f":"Import!E26920","v":0},{"$f":"Import!E27020","v":0},{"$f":"Import!E27120","v":0},{"$f":"Import!E27220","v":0},{"$f":"Import!E27320","v":0}]
[{"$f":"A993+1","v":2},{"$f":"Import!E26521","v":"Select"},{"$f":"Import!E26621","v":"Select"},{"$f":"Import!E26721","v":"Select"},{"$f":"Import!E26821","v":"Select"},{"$f":"Import!E26921","v":0},{"$f":"Import!E27021","v":0},{"$f":"Import!E27121","v":0},{"$f":"Import!E27221","v":0},{"$f":"Import!E27321","v":0}]
[{"$f":"A994+1","v":3},{"$f":"Import!E26522","v":"Select"},{"$f":"Import!E26622","v":"Select"},{"$f":"Import!E26722","v":"Select"},{"$f":"Import!E26822","v":"Select"},{"$f":"Import!E26922","v":0},{"$f":"Import!E27022","v":0},{"$f":"Import!E27122","v":0},{"$f":"Import!E27222","v":0},{"$f":"Import!E27322","v":0}]
[4,{"$f":"Import!E26523","v":"Select"},{"$f":"Import!E26623","v":"Select"},{"$f":"Import!E26723","v":"Select"},{"$f":"Import!E26823","v":"Select"},{"$f":"Import!E26923","v":0},{"$f":"Import!E27023","v":0},{"$f":"Import!E27123","v":0},{"$f":"Import!E27223","v":0},{"$f":"Import!E27323","v":0}]
[5,{"$f":"Import!E26524","v":"Select"},{"$f":"Import!E26624","v":"Select"},{"$f":"Import!E26724","v":"Select"},{"$f":"Import!E26824","v":"Select"},{"$f":"Import!E26924","v":0},{"$f":"Import!E27024","v":0},{"$f":"Import!E27124","v":0},{"$f":"Import!E27224","v":0},{"$f":"Import!E27324","v":0}]
[6,{"$f":"Import!E26525","v":"Select"},{"$f":"Import!E26625","v":"Select"},{"$f":"Import!E26725","v":"Select"},{"$f":"Import!E26825","v":"Select"},{"$f":"Import!E26925","v":0},{"$f":"Import!E27025","v":0},{"$f":"Import!E27125","v":0},{"$f":"Import!E27225","v":0},{"$f":"Import!E27325","v":0}]
[7,{"$f":"Import!E26526","v":"Select"},{"$f":"Import!E26626","v":"Select"},{"$f":"Import!E26726","v":"Select"},{"$f":"Import!E26826","v":"Select"},{"$f":"Import!E26926","v":0},{"$f":"Import!E27026","v":0},{"$f":"Import!E27126","v":0},{"$f":"Import!E27226","v":0},{"$f":"Import!E27326","v":0}]
[8,{"$f":"Import!E26527","v":"Select"},{"$f":"Import!E26627","v":"Select"},{"$f":"Import!E26727","v":"Select"},{"$f":"Import!E26827","v":"Select"},{"$f":"Import!E26927","v":0},{"$f":"Import!E27027","v":0},{"$f":"Import!E27127","v":0},{"$f":"Import!E27227","v":0},{"$f":"Import!E27327","v":0}]
[9,{"$f":"Import!E26528","v":"Select"},{"$f":"Import!E26628","v":"Select"},{"$f":"Import!E26728","v":"Select"},{"$f":"Import!E26828","v":"Select"},{"$f":"Import!E26928","v":0},{"$f":"Import!E27028","v":0},{"$f":"Import!E27128","v":0},{"$f":"Import!E27228","v":0},{"$f":"Import!E27328","v":0}]
[10,{"$f":"Import!E26529","v":"Select"},{"$f":"Import!E26629","v":"Select"},{"$f":"Import!E26729","v":"Select"},{"$f":"Import!E26829","v":"Select"},{"$f":"Import!E26929","v":0},{"$f":"Import!E27029","v":0},{"$f":"Import!E27129","v":0},{"$f":"Import!E27229","v":0},{"$f":"Import!E27329","v":0}]
[11,{"$f":"Import!E26530","v":"Select"},{"$f":"Import!E26630","v":"Select"},{"$f":"Import!E26730","v":"Select"},{"$f":"Import!E26830","v":"Select"},{"$f":"Import!E26930","v":0},{"$f":"Import!E27030","v":0},{"$f":"Import!E27130","v":0},{"$f":"Import!E27230","v":0},{"$f":"Import!E27330","v":0}]
[12,{"$f":"Import!E26531","v":"Select"},{"$f":"Import!E26631","v":"Select"},{"$f":"Import!E26731","v":"Select"},{"$f":"Import!E26831","v":"Select"},{"$f":"Import!E26931","v":0},{"$f":"Import!E27031","v":0},{"$f":"Import!E27131","v":0},{"$f":"Import!E27231","v":0},{"$f":"Import!E27331","v":0}]
[13,{"$f":"Import!E26532","v":"Select"},{"$f":"Import!E26632","v":"Select"},{"$f":"Import!E26732","v":"Select"},{"$f":"Import!E26832","v":"Select"},{"$f":"Import!E26932","v":0},{"$f":"Import!E27032","v":0},{"$f":"Import!E27132","v":0},{"$f":"Import!E27232","v":0},{"$f":"Import!E27332","v":0}]
[14,{"$f":"Import!E26533","v":"Select"},{"$f":"Import!E26633","v":"Select"},{"$f":"Import!E26733","v":"Select"},{"$f":"Import!E26833","v":"Select"},{"$f":"Import!E26933","v":0},{"$f":"Import!E27033","v":0},{"$f":"Import!E27133","v":0},{"$f":"Import!E27233","v":0},{"$f":"Import!E27333","v":0}]
[15,{"$f":"Import!E26534","v":"Select"},{"$f":"Import!E26634","v":"Select"},{"$f":"Import!E26734","v":"Select"},{"$f":"Import!E26834","v":"Select"},{"$f":"Import!E26934","v":0},{"$f":"Import!E27034","v":0},{"$f":"Import!E27134","v":0},{"$f":"Import!E27234","v":0},{"$f":"Import!E27334","v":0}]
[16,{"$f":"Import!E26535","v":"Select"},{"$f":"Import!E26635","v":"Select"},{"$f":"Import!E26735","v":"Select"},{"$f":"Import!E26835","v":"Select"},{"$f":"Import!E26935","v":0},{"$f":"Import!E27035","v":0},{"$f":"Import!E27135","v":0},{"$f":"Import!E27235","v":0},{"$f":"Import!E27335","v":0}]
[17,{"$f":"Import!E26536","v":"Select"},{"$f":"Import!E26636","v":"Select"},{"$f":"Import!E26736","v":"Select"},{"$f":"Import!E26836","v":"Select"},{"$f":"Import!E26936","v":0},{"$f":"Import!E27036","v":0},{"$f":"Import!E27136","v":0},{"$f":"Import!E27236","v":0},{"$f":"Import!E27336","v":0}]
[18,{"$f":"Import!E26537","v":"Select"},{"$f":"Import!E26637","v":"Select"},{"$f":"Import!E26737","v":"Select"},{"$f":"Import!E26837","v":"Select"},{"$f":"Import!E26937","v":0},{"$f":"Import!E27037","v":0},{"$f":"Import!E27137","v":0},{"$f":"Import!E27237","v":0},{"$f":"Import!E27337","v":0}]
[19,{"$f":"Import!E26538","v":"Select"},{"$f":"Import!E26638","v":"Select"},{"$f":"Import!E26738","v":"Select"},{"$f":"Import!E26838","v":"Select"},{"$f":"Import!E26938","v":0},{"$f":"Import!E27038","v":0},{"$f":"Import!E27138","v":0},{"$f":"Import!E27238","v":0},{"$f":"Import!E27338","v":0}]
[20,{"$f":"Import!E26539","v":"Select"},{"$f":"Import!E26639","v":"Select"},{"$f":"Import!E26739","v":"Select"},{"$f":"Import!E26839","v":"Select"},{"$f":"Import!E26939","v":0},{"$f":"Import!E27039","v":0},{"$f":"Import!E27139","v":0},{"$f":"Import!E27239","v":0},{"$f":"Import!E27339","v":0}]
[21,{"$f":"Import!E26540","v":"Select"},{"$f":"Import!E26640","v":"Select"},{"$f":"Import!E26740","v":"Select"},{"$f":"Import!E26840","v":"Select"},{"$f":"Import!E26940","v":0},{"$f":"Import!E27040","v":0},{"$f":"Import!E27140","v":0},{"$f":"Import!E27240","v":0},{"$f":"Import!E27340","v":0}]
[22,{"$f":"Import!E26541","v":"Select"},{"$f":"Import!E26641","v":"Select"},{"$f":"Import!E26741","v":"Select"},{"$f":"Import!E26841","v":"Select"},{"$f":"Import!E26941","v":0},{"$f":"Import!E27041","v":0},{"$f":"Import!E27141","v":0},{"$f":"Import!E27241","v":0},{"$f":"Import!E27341","v":0}]
[23,{"$f":"Import!E26542","v":"Select"},{"$f":"Import!E26642","v":"Select"},{"$f":"Import!E26742","v":"Select"},{"$f":"Import!E26842","v":"Select"},{"$f":"Import!E26942","v":0},{"$f":"Import!E27042","v":0},{"$f":"Import!E27142","v":0},{"$f":"Import!E27242","v":0},{"$f":"Import!E27342","v":0}]
[24,{"$f":"Import!E26543","v":"Select"},{"$f":"Import!E26643","v":"Select"},{"$f":"Import!E26743","v":"Select"},{"$f":"Import!E26843","v":"Select"},{"$f":"Import!E26943","v":0},{"$f":"Import!E27043","v":0},{"$f":"Import!E27143","v":0},{"$f":"Import!E27243","v":0},{"$f":"Import!E27343","v":0}]
[25,{"$f":"Import!E26544","v":"Select"},{"$f":"Import!E26644","v":"Select"},{"$f":"Import!E26744","v":"Select"},{"$f":"Import!E26844","v":"Select"},{"$f":"Import!E26944","v":0},{"$f":"Import!E27044","v":0},{"$f":"Import!E27144","v":0},{"$f":"Import!E27244","v":0},{"$f":"Import!E27344","v":0}]
[26,{"$f":"Import!E26545","v":"Select"},{"$f":"Import!E26645","v":"Select"},{"$f":"Import!E26745","v":"Select"},{"$f":"Import!E26845","v":"Select"},{"$f":"Import!E26945","v":0},{"$f":"Import!E27045","v":0},{"$f":"Import!E27145","v":0},{"$f":"Import!E27245","v":0},{"$f":"Import!E27345","v":0}]
[27,{"$f":"Import!E26546","v":"Select"},{"$f":"Import!E26646","v":"Select"},{"$f":"Import!E26746","v":"Select"},{"$f":"Import!E26846","v":"Select"},{"$f":"Import!E26946","v":0},{"$f":"Import!E27046","v":0},{"$f":"Import!E27146","v":0},{"$f":"Import!E27246","v":0},{"$f":"Import!E27346","v":0}]
[28,{"$f":"Import!E26547","v":"Select"},{"$f":"Import!E26647","v":"Select"},{"$f":"Import!E26747","v":"Select"},{"$f":"Import!E26847","v":"Select"},{"$f":"Import!E26947","v":0},{"$f":"Import!E27047","v":0},{"$f":"Import!E27147","v":0},{"$f":"Import!E27247","v":0},{"$f":"Import!E27347","v":0}]
[29,{"$f":"Import!E26548","v":"Select"},{"$f":"Import!E26648","v":"Select"},{"$f":"Import!E26748","v":"Select"},{"$f":"Import!E26848","v":"Select"},{"$f":"Import!E26948","v":0},{"$f":"Import!E27048","v":0},{"$f":"Import!E27148","v":0},{"$f":"Import!E27248","v":0},{"$f":"Import!E27348","v":0}]
[30,{"$f":"Import!E26549","v":"Select"},{"$f":"Import!E26649","v":"Select"},{"$f":"Import!E26749","v":"Select"},{"$f":"Import!E26849","v":"Select"},{"$f":"Import!E26949","v":0},{"$f":"Import!E27049","v":0},{"$f":"Import!E27149","v":0},{"$f":"Import!E27249","v":0},{"$f":"Import!E27349","v":0}]
[31,{"$f":"Import!E26550","v":"Select"},{"$f":"Import!E26650","v":"Select"},{"$f":"Import!E26750","v":"Select"},{"$f":"Import!E26850","v":"Select"},{"$f":"Import!E26950","v":0},{"$f":"Import!E27050","v":0},{"$f":"Import!E27150","v":0},{"$f":"Import!E27250","v":0},{"$f":"Import!E27350","v":0}]
[32,{"$f":"Import!E26551","v":"Select"},{"$f":"Import!E26651","v":"Select"},{"$f":"Import!E26751","v":"Select"},{"$f":"Import!E26851","v":"Select"},{"$f":"Import!E26951","v":0},{"$f":"Import!E27051","v":0},{"$f":"Import!E27151","v":0},{"$f":"Import!E27251","v":0},{"$f":"Import!E27351","v":0}]
[33,{"$f":"Import!E26552","v":"Select"},{"$f":"Import!E26652","v":"Select"},{"$f":"Import!E26752","v":"Select"},{"$f":"Import!E26852","v":"Select"},{"$f":"Import!E26952","v":0},{"$f":"Import!E27052","v":0},{"$f":"Import!E27152","v":0},{"$f":"Import!E27252","v":0},{"$f":"Import!E27352","v":0}]
[34,{"$f":"Import!E26553","v":"Select"},{"$f":"Import!E26653","v":"Select"},{"$f":"Import!E26753","v":"Select"},{"$f":"Import!E26853","v":"Select"},{"$f":"Import!E26953","v":0},{"$f":"Import!E27053","v":0},{"$f":"Import!E27153","v":0},{"$f":"Import!E27253","v":0},{"$f":"Import!E27353","v":0}]
[35,{"$f":"Import!E26554","v":"Select"},{"$f":"Import!E26654","v":"Select"},{"$f":"Import!E26754","v":"Select"},{"$f":"Import!E26854","v":"Select"},{"$f":"Import!E26954","v":0},{"$f":"Import!E27054","v":0},{"$f":"Import!E27154","v":0},{"$f":"Import!E27254","v":0},{"$f":"Import!E27354","v":0}]
[36,{"$f":"Import!E26555","v":"Select"},{"$f":"Import!E26655","v":"Select"},{"$f":"Import!E26755","v":"Select"},{"$f":"Import!E26855","v":"Select"},{"$f":"Import!E26955","v":0},{"$f":"Import!E27055","v":0},{"$f":"Import!E27155","v":0},{"$f":"Import!E27255","v":0},{"$f":"Import!E27355","v":0}]
[37,{"$f":"Import!E26556","v":"Select"},{"$f":"Import!E26656","v":"Select"},{"$f":"Import!E26756","v":"Select"},{"$f":"Import!E26856","v":"Select"},{"$f":"Import!E26956","v":0},{"$f":"Import!E27056","v":0},{"$f":"Import!E27156","v":0},{"$f":"Import!E27256","v":0},{"$f":"Import!E27356","v":0}]
[38,{"$f":"Import!E26557","v":"Select"},{"$f":"Import!E26657","v":"Select"},{"$f":"Import!E26757","v":"Select"},{"$f":"Import!E26857","v":"Select"},{"$f":"Import!E26957","v":0},{"$f":"Import!E27057","v":0},{"$f":"Import!E27157","v":0},{"$f":"Import!E27257","v":0},{"$f":"Import!E27357","v":0}]
[39,{"$f":"Import!E26558","v":"Select"},{"$f":"Import!E26658","v":"Select"},{"$f":"Import!E26758","v":"Select"},{"$f":"Import!E26858","v":"Select"},{"$f":"Import!E26958","v":0},{"$f":"Import!E27058","v":0},{"$f":"Import!E27158","v":0},{"$f":"Import!E27258","v":0},{"$f":"Import!E27358","v":0}]
[40,{"$f":"Import!E26559","v":"Select"},{"$f":"Import!E26659","v":"Select"},{"$f":"Import!E26759","v":"Select"},{"$f":"Import!E26859","v":"Select"},{"$f":"Import!E26959","v":0},{"$f":"Import!E27059","v":0},{"$f":"Import!E27159","v":0},{"$f":"Import!E27259","v":0},{"$f":"Import!E27359","v":0}]
[41,{"$f":"Import!E26560","v":"Select"},{"$f":"Import!E26660","v":"Select"},{"$f":"Import!E26760","v":"Select"},{"$f":"Import!E26860","v":"Select"},{"$f":"Import!E26960","v":0},{"$f":"Import!E27060","v":0},{"$f":"Import!E27160","v":0},{"$f":"Import!E27260","v":0},{"$f":"Import!E27360","v":0}]
[42,{"$f":"Import!E26561","v":"Select"},{"$f":"Import!E26661","v":"Select"},{"$f":"Import!E26761","v":"Select"},{"$f":"Import!E26861","v":"Select"},{"$f":"Import!E26961","v":0},{"$f":"Import!E27061","v":0},{"$f":"Import!E27161","v":0},{"$f":"Import!E27261","v":0},{"$f":"Import!E27361","v":0}]
[43,{"$f":"Import!E26562","v":"Select"},{"$f":"Import!E26662","v":"Select"},{"$f":"Import!E26762","v":"Select"},{"$f":"Import!E26862","v":"Select"},{"$f":"Import!E26962","v":0},{"$f":"Import!E27062","v":0},{"$f":"Import!E27162","v":0},{"$f":"Import!E27262","v":0},{"$f":"Import!E27362","v":0}]
[44,{"$f":"Import!E26563","v":"Select"},{"$f":"Import!E26663","v":"Select"},{"$f":"Import!E26763","v":"Select"},{"$f":"Import!E26863","v":"Select"},{"$f":"Import!E26963","v":0},{"$f":"Import!E27063","v":0},{"$f":"Import!E27163","v":0},{"$f":"Import!E27263","v":0},{"$f":"Import!E27363","v":0}]
[45,{"$f":"Import!E26564","v":"Select"},{"$f":"Import!E26664","v":"Select"},{"$f":"Import!E26764","v":"Select"},{"$f":"Import!E26864","v":"Select"},{"$f":"Import!E26964","v":0},{"$f":"Import!E27064","v":0},{"$f":"Import!E27164","v":0},{"$f":"Import!E27264","v":0},{"$f":"Import!E27364","v":0}]
[46,{"$f":"Import!E26565","v":"Select"},{"$f":"Import!E26665","v":"Select"},{"$f":"Import!E26765","v":"Select"},{"$f":"Import!E26865","v":"Select"},{"$f":"Import!E26965","v":0},{"$f":"Import!E27065","v":0},{"$f":"Import!E27165","v":0},{"$f":"Import!E27265","v":0},{"$f":"Import!E27365","v":0}]
[47,{"$f":"Import!E26566","v":"Select"},{"$f":"Import!E26666","v":"Select"},{"$f":"Import!E26766","v":"Select"},{"$f":"Import!E26866","v":"Select"},{"$f":"Import!E26966","v":0},{"$f":"Import!E27066","v":0},{"$f":"Import!E27166","v":0},{"$f":"Import!E27266","v":0},{"$f":"Import!E27366","v":0}]
[48,{"$f":"Import!E26567","v":"Select"},{"$f":"Import!E26667","v":"Select"},{"$f":"Import!E26767","v":"Select"},{"$f":"Import!E26867","v":"Select"},{"$f":"Import!E26967","v":0},{"$f":"Import!E27067","v":0},{"$f":"Import!E27167","v":0},{"$f":"Import!E27267","v":0},{"$f":"Import!E27367","v":0}]
[49,{"$f":"Import!E26568","v":"Select"},{"$f":"Import!E26668","v":"Select"},{"$f":"Import!E26768","v":"Select"},{"$f":"Import!E26868","v":"Select"},{"$f":"Import!E26968","v":0},{"$f":"Import!E27068","v":0},{"$f":"Import!E27168","v":0},{"$f":"Import!E27268","v":0},{"$f":"Import!E27368","v":0}]
[50,{"$f":"Import!E26569","v":"Select"},{"$f":"Import!E26669","v":"Select"},{"$f":"Import!E26769","v":"Select"},{"$f":"Import!E26869","v":"Select"},{"$f":"Import!E26969","v":0},{"$f":"Import!E27069","v":0},{"$f":"Import!E27169","v":0},{"$f":"Import!E27269","v":0},{"$f":"Import!E27369","v":0}]
[51,{"$f":"Import!E26570","v":"Select"},{"$f":"Import!E26670","v":"Select"},{"$f":"Import!E26770","v":"Select"},{"$f":"Import!E26870","v":"Select"},{"$f":"Import!E26970","v":0},{"$f":"Import!E27070","v":0},{"$f":"Import!E27170","v":0},{"$f":"Import!E27270","v":0},{"$f":"Import!E27370","v":0}]
[52,{"$f":"Import!E26571","v":"Select"},{"$f":"Import!E26671","v":"Select"},{"$f":"Import!E26771","v":"Select"},{"$f":"Import!E26871","v":"Select"},{"$f":"Import!E26971","v":0},{"$f":"Import!E27071","v":0},{"$f":"Import!E27171","v":0},{"$f":"Import!E27271","v":0},{"$f":"Import!E27371","v":0}]
[53,{"$f":"Import!E26572","v":"Select"},{"$f":"Import!E26672","v":"Select"},{"$f":"Import!E26772","v":"Select"},{"$f":"Import!E26872","v":"Select"},{"$f":"Import!E26972","v":0},{"$f":"Import!E27072","v":0},{"$f":"Import!E27172","v":0},{"$f":"Import!E27272","v":0},{"$f":"Import!E27372","v":0}]
[54,{"$f":"Import!E26573","v":"Select"},{"$f":"Import!E26673","v":"Select"},{"$f":"Import!E26773","v":"Select"},{"$f":"Import!E26873","v":"Select"},{"$f":"Import!E26973","v":0},{"$f":"Import!E27073","v":0},{"$f":"Import!E27173","v":0},{"$f":"Import!E27273","v":0},{"$f":"Import!E27373","v":0}]
[55,{"$f":"Import!E26574","v":"Select"},{"$f":"Import!E26674","v":"Select"},{"$f":"Import!E26774","v":"Select"},{"$f":"Import!E26874","v":"Select"},{"$f":"Import!E26974","v":0},{"$f":"Import!E27074","v":0},{"$f":"Import!E27174","v":0},{"$f":"Import!E27274","v":0},{"$f":"Import!E27374","v":0}]
[56,{"$f":"Import!E26575","v":"Select"},{"$f":"Import!E26675","v":"Select"},{"$f":"Import!E26775","v":"Select"},{"$f":"Import!E26875","v":"Select"},{"$f":"Import!E26975","v":0},{"$f":"Import!E27075","v":0},{"$f":"Import!E27175","v":0},{"$f":"Import!E27275","v":0},{"$f":"Import!E27375","v":0}]
[57,{"$f":"Import!E26576","v":"Select"},{"$f":"Import!E26676","v":"Select"},{"$f":"Import!E26776","v":"Select"},{"$f":"Import!E26876","v":"Select"},{"$f":"Import!E26976","v":0},{"$f":"Import!E27076","v":0},{"$f":"Import!E27176","v":0},{"$f":"Import!E27276","v":0},{"$f":"Import!E27376","v":0}]
[58,{"$f":"Import!E26577","v":"Select"},{"$f":"Import!E26677","v":"Select"},{"$f":"Import!E26777","v":"Select"},{"$f":"Import!E26877","v":"Select"},{"$f":"Import!E26977","v":0},{"$f":"Import!E27077","v":0},{"$f":"Import!E27177","v":0},{"$f":"Import!E27277","v":0},{"$f":"Import!E27377","v":0}]
[59,{"$f":"Import!E26578","v":"Select"},{"$f":"Import!E26678","v":"Select"},{"$f":"Import!E26778","v":"Select"},{"$f":"Import!E26878","v":"Select"},{"$f":"Import!E26978","v":0},{"$f":"Import!E27078","v":0},{"$f":"Import!E27178","v":0},{"$f":"Import!E27278","v":0},{"$f":"Import!E27378","v":0}]
[60,{"$f":"Import!E26579","v":"Select"},{"$f":"Import!E26679","v":"Select"},{"$f":"Import!E26779","v":"Select"},{"$f":"Import!E26879","v":"Select"},{"$f":"Import!E26979","v":0},{"$f":"Import!E27079","v":0},{"$f":"Import!E27179","v":0},{"$f":"Import!E27279","v":0},{"$f":"Import!E27379","v":0}]
[61,{"$f":"Import!E26580","v":"Select"},{"$f":"Import!E26680","v":"Select"},{"$f":"Import!E26780","v":"Select"},{"$f":"Import!E26880","v":"Select"},{"$f":"Import!E26980","v":0},{"$f":"Import!E27080","v":0},{"$f":"Import!E27180","v":0},{"$f":"Import!E27280","v":0},{"$f":"Import!E27380","v":0}]
[62,{"$f":"Import!E26581","v":"Select"},{"$f":"Import!E26681","v":"Select"},{"$f":"Import!E26781","v":"Select"},{"$f":"Import!E26881","v":"Select"},{"$f":"Import!E26981","v":0},{"$f":"Import!E27081","v":0},{"$f":"Import!E27181","v":0},{"$f":"Import!E27281","v":0},{"$f":"Import!E27381","v":0}]
[63,{"$f":"Import!E26582","v":"Select"},{"$f":"Import!E26682","v":"Select"},{"$f":"Import!E26782","v":"Select"},{"$f":"Import!E26882","v":"Select"},{"$f":"Import!E26982","v":0},{"$f":"Import!E27082","v":0},{"$f":"Import!E27182","v":0},{"$f":"Import!E27282","v":0},{"$f":"Import!E27382","v":0}]
[64,{"$f":"Import!E26583","v":"Select"},{"$f":"Import!E26683","v":"Select"},{"$f":"Import!E26783","v":"Select"},{"$f":"Import!E26883","v":"Select"},{"$f":"Import!E26983","v":0},{"$f":"Import!E27083","v":0},{"$f":"Import!E27183","v":0},{"$f":"Import!E27283","v":0},{"$f":"Import!E27383","v":0}]
[65,{"$f":"Import!E26584","v":"Select"},{"$f":"Import!E26684","v":"Select"},{"$f":"Import!E26784","v":"Select"},{"$f":"Import!E26884","v":"Select"},{"$f":"Import!E26984","v":0},{"$f":"Import!E27084","v":0},{"$f":"Import!E27184","v":0},{"$f":"Import!E27284","v":0},{"$f":"Import!E27384","v":0}]
[66,{"$f":"Import!E26585","v":"Select"},{"$f":"Import!E26685","v":"Select"},{"$f":"Import!E26785","v":"Select"},{"$f":"Import!E26885","v":"Select"},{"$f":"Import!E26985","v":0},{"$f":"Import!E27085","v":0},{"$f":"Import!E27185","v":0},{"$f":"Import!E27285","v":0},{"$f":"Import!E27385","v":0}]
[{"$f":"A1058+1","v":67},{"$f":"Import!E26586","v":"Select"},{"$f":"Import!E26686","v":"Select"},{"$f":"Import!E26786","v":"Select"},{"$f":"Import!E26886","v":"Select"},{"$f":"Import!E26986","v":0},{"$f":"Import!E27086","v":0},{"$f":"Import!E27186","v":0},{"$f":"Import!E27286","v":0},{"$f":"Import!E27386","v":0}]
[68,{"$f":"Import!E26587","v":"Select"},{"$f":"Import!E26687","v":"Select"},{"$f":"Import!E26787","v":"Select"},{"$f":"Import!E26887","v":"Select"},{"$f":"Import!E26987","v":0},{"$f":"Import!E27087","v":0},{"$f":"Import!E27187","v":0},{"$f":"Import!E27287","v":0},{"$f":"Import!E27387","v":0}]
[69,{"$f":"Import!E26588","v":"Select"},{"$f":"Import!E26688","v":"Select"},{"$f":"Import!E26788","v":"Select"},{"$f":"Import!E26888","v":"Select"},{"$f":"Import!E26988","v":0},{"$f":"Import!E27088","v":0},{"$f":"Import!E27188","v":0},{"$f":"Import!E27288","v":0},{"$f":"Import!E27388","v":0}]
[70,{"$f":"Import!E26589","v":"Select"},{"$f":"Import!E26689","v":"Select"},{"$f":"Import!E26789","v":"Select"},{"$f":"Import!E26889","v":"Select"},{"$f":"Import!E26989","v":0},{"$f":"Import!E27089","v":0},{"$f":"Import!E27189","v":0},{"$f":"Import!E27289","v":0},{"$f":"Import!E27389","v":0}]
[71,{"$f":"Import!E26590","v":"Select"},{"$f":"Import!E26690","v":"Select"},{"$f":"Import!E26790","v":"Select"},{"$f":"Import!E26890","v":"Select"},{"$f":"Import!E26990","v":0},{"$f":"Import!E27090","v":0},{"$f":"Import!E27190","v":0},{"$f":"Import!E27290","v":0},{"$f":"Import!E27390","v":0}]
[72,{"$f":"Import!E26591","v":"Select"},{"$f":"Import!E26691","v":"Select"},{"$f":"Import!E26791","v":"Select"},{"$f":"Import!E26891","v":"Select"},{"$f":"Import!E26991","v":0},{"$f":"Import!E27091","v":0},{"$f":"Import!E27191","v":0},{"$f":"Import!E27291","v":0},{"$f":"Import!E27391","v":0}]
[73,{"$f":"Import!E26592","v":"Select"},{"$f":"Import!E26692","v":"Select"},{"$f":"Import!E26792","v":"Select"},{"$f":"Import!E26892","v":"Select"},{"$f":"Import!E26992","v":0},{"$f":"Import!E27092","v":0},{"$f":"Import!E27192","v":0},{"$f":"Import!E27292","v":0},{"$f":"Import!E27392","v":0}]
[74,{"$f":"Import!E26593","v":"Select"},{"$f":"Import!E26693","v":"Select"},{"$f":"Import!E26793","v":"Select"},{"$f":"Import!E26893","v":"Select"},{"$f":"Import!E26993","v":0},{"$f":"Import!E27093","v":0},{"$f":"Import!E27193","v":0},{"$f":"Import!E27293","v":0},{"$f":"Import!E27393","v":0}]
[75,{"$f":"Import!E26594","v":"Select"},{"$f":"Import!E26694","v":"Select"},{"$f":"Import!E26794","v":"Select"},{"$f":"Import!E26894","v":"Select"},{"$f":"Import!E26994","v":0},{"$f":"Import!E27094","v":0},{"$f":"Import!E27194","v":0},{"$f":"Import!E27294","v":0},{"$f":"Import!E27394","v":0}]
[76,{"$f":"Import!E26595","v":"Select"},{"$f":"Import!E26695","v":"Select"},{"$f":"Import!E26795","v":"Select"},{"$f":"Import!E26895","v":"Select"},{"$f":"Import!E26995","v":0},{"$f":"Import!E27095","v":0},{"$f":"Import!E27195","v":0},{"$f":"Import!E27295","v":0},{"$f":"Import!E27395","v":0}]
[77,{"$f":"Import!E26596","v":"Select"},{"$f":"Import!E26696","v":"Select"},{"$f":"Import!E26796","v":"Select"},{"$f":"Import!E26896","v":"Select"},{"$f":"Import!E26996","v":0},{"$f":"Import!E27096","v":0},{"$f":"Import!E27196","v":0},{"$f":"Import!E27296","v":0},{"$f":"Import!E27396","v":0}]
[78,{"$f":"Import!E26597","v":"Select"},{"$f":"Import!E26697","v":"Select"},{"$f":"Import!E26797","v":"Select"},{"$f":"Import!E26897","v":"Select"},{"$f":"Import!E26997","v":0},{"$f":"Import!E27097","v":0},{"$f":"Import!E27197","v":0},{"$f":"Import!E27297","v":0},{"$f":"Import!E27397","v":0}]
[79,{"$f":"Import!E26598","v":"Select"},{"$f":"Import!E26698","v":"Select"},{"$f":"Import!E26798","v":"Select"},{"$f":"Import!E26898","v":"Select"},{"$f":"Import!E26998","v":0},{"$f":"Import!E27098","v":0},{"$f":"Import!E27198","v":0},{"$f":"Import!E27298","v":0},{"$f":"Import!E27398","v":0}]
[80,{"$f":"Import!E26599","v":"Select"},{"$f":"Import!E26699","v":"Select"},{"$f":"Import!E26799","v":"Select"},{"$f":"Import!E26899","v":"Select"},{"$f":"Import!E26999","v":0},{"$f":"Import!E27099","v":0},{"$f":"Import!E27199","v":0},{"$f":"Import!E27299","v":0},{"$f":"Import!E27399","v":0}]
[81,{"$f":"Import!E26600","v":"Select"},{"$f":"Import!E26700","v":"Select"},{"$f":"Import!E26800","v":"Select"},{"$f":"Import!E26900","v":"Select"},{"$f":"Import!E27000","v":0},{"$f":"Import!E27100","v":0},{"$f":"Import!E27200","v":0},{"$f":"Import!E27300","v":0},{"$f":"Import!E27400","v":0}]
[82,{"$f":"Import!E26601","v":"Select"},{"$f":"Import!E26701","v":"Select"},{"$f":"Import!E26801","v":"Select"},{"$f":"Import!E26901","v":"Select"},{"$f":"Import!E27001","v":0},{"$f":"Import!E27101","v":0},{"$f":"Import!E27201","v":0},{"$f":"Import!E27301","v":0},{"$f":"Import!E27401","v":0}]
[83,{"$f":"Import!E26602","v":"Select"},{"$f":"Import!E26702","v":"Select"},{"$f":"Import!E26802","v":"Select"},{"$f":"Import!E26902","v":"Select"},{"$f":"Import!E27002","v":0},{"$f":"Import!E27102","v":0},{"$f":"Import!E27202","v":0},{"$f":"Import!E27302","v":0},{"$f":"Import!E27402","v":0}]
[84,{"$f":"Import!E26603","v":"Select"},{"$f":"Import!E26703","v":"Select"},{"$f":"Import!E26803","v":"Select"},{"$f":"Import!E26903","v":"Select"},{"$f":"Import!E27003","v":0},{"$f":"Import!E27103","v":0},{"$f":"Import!E27203","v":0},{"$f":"Import!E27303","v":0},{"$f":"Import!E27403","v":0}]
[85,{"$f":"Import!E26604","v":"Select"},{"$f":"Import!E26704","v":"Select"},{"$f":"Import!E26804","v":"Select"},{"$f":"Import!E26904","v":"Select"},{"$f":"Import!E27004","v":0},{"$f":"Import!E27104","v":0},{"$f":"Import!E27204","v":0},{"$f":"Import!E27304","v":0},{"$f":"Import!E27404","v":0}]
[86,{"$f":"Import!E26605","v":"Select"},{"$f":"Import!E26705","v":"Select"},{"$f":"Import!E26805","v":"Select"},{"$f":"Import!E26905","v":"Select"},{"$f":"Import!E27005","v":0},{"$f":"Import!E27105","v":0},{"$f":"Import!E27205","v":0},{"$f":"Import!E27305","v":0},{"$f":"Import!E27405","v":0}]
[87,{"$f":"Import!E26606","v":"Select"},{"$f":"Import!E26706","v":"Select"},{"$f":"Import!E26806","v":"Select"},{"$f":"Import!E26906","v":"Select"},{"$f":"Import!E27006","v":0},{"$f":"Import!E27106","v":0},{"$f":"Import!E27206","v":0},{"$f":"Import!E27306","v":0},{"$f":"Import!E27406","v":0}]
[88,{"$f":"Import!E26607","v":"Select"},{"$f":"Import!E26707","v":"Select"},{"$f":"Import!E26807","v":"Select"},{"$f":"Import!E26907","v":"Select"},{"$f":"Import!E27007","v":0},{"$f":"Import!E27107","v":0},{"$f":"Import!E27207","v":0},{"$f":"Import!E27307","v":0},{"$f":"Import!E27407","v":0}]
[89,{"$f":"Import!E26608","v":"Select"},{"$f":"Import!E26708","v":"Select"},{"$f":"Import!E26808","v":"Select"},{"$f":"Import!E26908","v":"Select"},{"$f":"Import!E27008","v":0},{"$f":"Import!E27108","v":0},{"$f":"Import!E27208","v":0},{"$f":"Import!E27308","v":0},{"$f":"Import!E27408","v":0}]
[90,{"$f":"Import!E26609","v":"Select"},{"$f":"Import!E26709","v":"Select"},{"$f":"Import!E26809","v":"Select"},{"$f":"Import!E26909","v":"Select"},{"$f":"Import!E27009","v":0},{"$f":"Import!E27109","v":0},{"$f":"Import!E27209","v":0},{"$f":"Import!E27309","v":0},{"$f":"Import!E27409","v":0}]
[91,{"$f":"Import!E26610","v":"Select"},{"$f":"Import!E26710","v":"Select"},{"$f":"Import!E26810","v":"Select"},{"$f":"Import!E26910","v":"Select"},{"$f":"Import!E27010","v":0},{"$f":"Import!E27110","v":0},{"$f":"Import!E27210","v":0},{"$f":"Import!E27310","v":0},{"$f":"Import!E27410","v":0}]
[92,{"$f":"Import!E26611","v":"Select"},{"$f":"Import!E26711","v":"Select"},{"$f":"Import!E26811","v":"Select"},{"$f":"Import!E26911","v":"Select"},{"$f":"Import!E27011","v":0},{"$f":"Import!E27111","v":0},{"$f":"Import!E27211","v":0},{"$f":"Import!E27311","v":0},{"$f":"Import!E27411","v":0}]
[93,{"$f":"Import!E26612","v":"Select"},{"$f":"Import!E26712","v":"Select"},{"$f":"Import!E26812","v":"Select"},{"$f":"Import!E26912","v":"Select"},{"$f":"Import!E27012","v":0},{"$f":"Import!E27112","v":0},{"$f":"Import!E27212","v":0},{"$f":"Import!E27312","v":0},{"$f":"Import!E27412","v":0}]
[94,{"$f":"Import!E26613","v":"Select"},{"$f":"Import!E26713","v":"Select"},{"$f":"Import!E26813","v":"Select"},{"$f":"Import!E26913","v":"Select"},{"$f":"Import!E27013","v":0},{"$f":"Import!E27113","v":0},{"$f":"Import!E27213","v":0},{"$f":"Import!E27313","v":0},{"$f":"Import!E27413","v":0}]
[95,{"$f":"Import!E26614","v":"Select"},{"$f":"Import!E26714","v":"Select"},{"$f":"Import!E26814","v":"Select"},{"$f":"Import!E26914","v":"Select"},{"$f":"Import!E27014","v":0},{"$f":"Import!E27114","v":0},{"$f":"Import!E27214","v":0},{"$f":"Import!E27314","v":0},{"$f":"Import!E27414","v":0}]
[96,{"$f":"Import!E26615","v":"Select"},{"$f":"Import!E26715","v":"Select"},{"$f":"Import!E26815","v":"Select"},{"$f":"Import!E26915","v":"Select"},{"$f":"Import!E27015","v":0},{"$f":"Import!E27115","v":0},{"$f":"Import!E27215","v":0},{"$f":"Import!E27315","v":0},{"$f":"Import!E27415","v":0}]
[97,{"$f":"Import!E26616","v":"Select"},{"$f":"Import!E26716","v":"Select"},{"$f":"Import!E26816","v":"Select"},{"$f":"Import!E26916","v":"Select"},{"$f":"Import!E27016","v":0},{"$f":"Import!E27116","v":0},{"$f":"Import!E27216","v":0},{"$f":"Import!E27316","v":0},{"$f":"Import!E27416","v":0}]
[98,{"$f":"Import!E26617","v":"Select"},{"$f":"Import!E26717","v":"Select"},{"$f":"Import!E26817","v":"Select"},{"$f":"Import!E26917","v":"Select"},{"$f":"Import!E27017","v":0},{"$f":"Import!E27117","v":0},{"$f":"Import!E27217","v":0},{"$f":"Import!E27317","v":0},{"$f":"Import!E27417","v":0}]
[99,{"$f":"Import!E26618","v":"Select"},{"$f":"Import!E26718","v":"Select"},{"$f":"Import!E26818","v":"Select"},{"$f":"Import!E26918","v":"Select"},{"$f":"Import!E27018","v":0},{"$f":"Import!E27118","v":0},{"$f":"Import!E27218","v":0},{"$f":"Import!E27318","v":0},{"$f":"Import!E27418","v":0}]
[100,{"$f":"Import!E26619","v":"Select"},{"$f":"Import!E26719","v":"Select"},{"$f":"Import!E26819","v":"Select"},{"$f":"Import!E26919","v":"Select"},{"$f":"Import!E27019","v":0},{"$f":"Import!E27119","v":0},{"$f":"Import!E27219","v":0},{"$f":"Import!E27319","v":0},{"$f":"Import!E27419","v":0}]
[]
[null,"Total Loans",null,null,null,{"$f":"SUM(F993:F1092)","v":0},{"$f":"SUM(G993:G1092)","v":0},{"$f":"IFERROR(SUMPRODUCT(H993:H1092,$G993:$G1092)/SUM($G993:$G1092),0)","v":0},{"$f":"IFERROR(SUMPRODUCT(I993:I1092,$G993:$G1092)/SUM($G993:$G1092),0)","v":0}]
[]
[null,"- OF WHICH NON-PERFORMING LOANS"]
[]
[null,null,"Enter # of Asset Types",{"$f":"Import!E27420","v":0}]
[null,null,null,null,null,{"$f":"YEAR($C$3)","v":2023},2023]
[null,"Asset Type","Currency","Country","BSCR Rating","Nominal Amount","Fair Value","Comments"]
[1,{"$f":"Import!E27421","v":"Select"},{"$f":"Import!E27441","v":"Select"},{"$f":"Import!E27461","v":"Select"},{"$f":"Import!E27481","v":"Select"},{"$f":"Import!E27501","v":0},{"$f":"Import!E27521","v":0},{"$f":"Import!E27541","v":0}]
[{"$f":"A1101+1","v":2},{"$f":"Import!E27422","v":"Select"},{"$f":"Import!E27442","v":"Select"},{"$f":"Import!E27462","v":"Select"},{"$f":"Import!E27482","v":"Select"},{"$f":"Import!E27502","v":0},{"$f":"Import!E27522","v":0},{"$f":"Import!E27542","v":0}]
[{"$f":"A1102+1","v":3},{"$f":"Import!E27423","v":"Select"},{"$f":"Import!E27443","v":"Select"},{"$f":"Import!E27463","v":"Select"},{"$f":"Import!E27483","v":"Select"},{"$f":"Import!E27503","v":0},{"$f":"Import!E27523","v":0},{"$f":"Import!E27543","v":0}]
[4,{"$f":"Import!E27424","v":"Select"},{"$f":"Import!E27444","v":"Select"},{"$f":"Import!E27464","v":"Select"},{"$f":"Import!E27484","v":"Select"},{"$f":"Import!E27504","v":0},{"$f":"Import!E27524","v":0},{"$f":"Import!E27544","v":0}]
[5,{"$f":"Import!E27425","v":"Select"},{"$f":"Import!E27445","v":"Select"},{"$f":"Import!E27465","v":"Select"},{"$f":"Import!E27485","v":"Select"},{"$f":"Import!E27505","v":0},{"$f":"Import!E27525","v":0},{"$f":"Import!E27545","v":0}]
[6,{"$f":"Import!E27426","v":"Select"},{"$f":"Import!E27446","v":"Select"},{"$f":"Import!E27466","v":"Select"},{"$f":"Import!E27486","v":"Select"},{"$f":"Import!E27506","v":0},{"$f":"Import!E27526","v":0},{"$f":"Import!E27546","v":0}]
[7,{"$f":"Import!E27427","v":"Select"},{"$f":"Import!E27447","v":"Select"},{"$f":"Import!E27467","v":"Select"},{"$f":"Import!E27487","v":"Select"},{"$f":"Import!E27507","v":0},{"$f":"Import!E27527","v":0},{"$f":"Import!E27547","v":0}]
[8,{"$f":"Import!E27428","v":"Select"},{"$f":"Import!E27448","v":"Select"},{"$f":"Import!E27468","v":"Select"},{"$f":"Import!E27488","v":"Select"},{"$f":"Import!E27508","v":0},{"$f":"Import!E27528","v":0},{"$f":"Import!E27548","v":0}]
[9,{"$f":"Import!E27429","v":"Select"},{"$f":"Import!E27449","v":"Select"},{"$f":"Import!E27469","v":"Select"},{"$f":"Import!E27489","v":"Select"},{"$f":"Import!E27509","v":0},{"$f":"Import!E27529","v":0},{"$f":"Import!E27549","v":0}]
[10,{"$f":"Import!E27430","v":"Select"},{"$f":"Import!E27450","v":"Select"},{"$f":"Import!E27470","v":"Select"},{"$f":"Import!E27490","v":"Select"},{"$f":"Import!E27510","v":0},{"$f":"Import!E27530","v":0},{"$f":"Import!E27550","v":0}]
[11,{"$f":"Import!E27431","v":"Select"},{"$f":"Import!E27451","v":"Select"},{"$f":"Import!E27471","v":"Select"},{"$f":"Import!E27491","v":"Select"},{"$f":"Import!E27511","v":0},{"$f":"Import!E27531","v":0},{"$f":"Import!E27551","v":0}]
[12,{"$f":"Import!E27432","v":"Select"},{"$f":"Import!E27452","v":"Select"},{"$f":"Import!E27472","v":"Select"},{"$f":"Import!E27492","v":"Select"},{"$f":"Import!E27512","v":0},{"$f":"Import!E27532","v":0},{"$f":"Import!E27552","v":0}]
[13,{"$f":"Import!E27433","v":"Select"},{"$f":"Import!E27453","v":"Select"},{"$f":"Import!E27473","v":"Select"},{"$f":"Import!E27493","v":"Select"},{"$f":"Import!E27513","v":0},{"$f":"Import!E27533","v":0},{"$f":"Import!E27553","v":0}]
[14,{"$f":"Import!E27434","v":"Select"},{"$f":"Import!E27454","v":"Select"},{"$f":"Import!E27474","v":"Select"},{"$f":"Import!E27494","v":"Select"},{"$f":"Import!E27514","v":0},{"$f":"Import!E27534","v":0},{"$f":"Import!E27554","v":0}]
[15,{"$f":"Import!E27435","v":"Select"},{"$f":"Import!E27455","v":"Select"},{"$f":"Import!E27475","v":"Select"},{"$f":"Import!E27495","v":"Select"},{"$f":"Import!E27515","v":0},{"$f":"Import!E27535","v":0},{"$f":"Import!E27555","v":0}]
[16,{"$f":"Import!E27436","v":"Select"},{"$f":"Import!E27456","v":"Select"},{"$f":"Import!E27476","v":"Select"},{"$f":"Import!E27496","v":"Select"},{"$f":"Import!E27516","v":0},{"$f":"Import!E27536","v":0},{"$f":"Import!E27556","v":0}]
[17,{"$f":"Import!E27437","v":"Select"},{"$f":"Import!E27457","v":"Select"},{"$f":"Import!E27477","v":"Select"},{"$f":"Import!E27497","v":"Select"},{"$f":"Import!E27517","v":0},{"$f":"Import!E27537","v":0},{"$f":"Import!E27557","v":0}]
[18,{"$f":"Import!E27438","v":"Select"},{"$f":"Import!E27458","v":"Select"},{"$f":"Import!E27478","v":"Select"},{"$f":"Import!E27498","v":"Select"},{"$f":"Import!E27518","v":0},{"$f":"Import!E27538","v":0},{"$f":"Import!E27558","v":0}]
[19,{"$f":"Import!E27439","v":"Select"},{"$f":"Import!E27459","v":"Select"},{"$f":"Import!E27479","v":"Select"},{"$f":"Import!E27499","v":"Select"},{"$f":"Import!E27519","v":0},{"$f":"Import!E27539","v":0},{"$f":"Import!E27559","v":0}]
[20,{"$f":"Import!E27440","v":"Select"},{"$f":"Import!E27460","v":"Select"},{"$f":"Import!E27480","v":"Select"},{"$f":"Import!E27500","v":"Select"},{"$f":"Import!E27520","v":0},{"$f":"Import!E27540","v":0},{"$f":"Import!E27560","v":0}]
[]
[null,"Total Non-Performing Loans",null,null,null,{"$f":"SUM(F1101:F1120)","v":0},{"$f":"SUM(G1101:G1120)","v":0}]
[]
[null,"(E) PREFERRED EQUITIES"]
[]
[null,null,"Enter # of Asset Types",{"$f":"Import!E27561","v":0}]
[null,null,null,null,{"$f":"YEAR($C$3)","v":2023},2023,"Weighted"]
[null,"Asset Type","Currency","BSCR Rating","Nominal Amount","Fair Value","Average YTM","Effective Duration","Comments"]
[1,{"$f":"Import!E27562","v":"Select"},{"$f":"Import!E27662","v":"Select"},{"$f":"Import!E27762","v":"Select"},{"$f":"Import!E27862","v":0},{"$f":"Import!E27962","v":0},{"$f":"Import!E28062","v":0},{"$f":"Import!E28162","v":0},{"$f":"Import!E28262","v":0}]
[{"$f":"A1129+1","v":2},{"$f":"Import!E27563","v":"Select"},{"$f":"Import!E27663","v":"Select"},{"$f":"Import!E27763","v":"Select"},{"$f":"Import!E27863","v":0},{"$f":"Import!E27963","v":0},{"$f":"Import!E28063","v":0},{"$f":"Import!E28163","v":0},{"$f":"Import!E28263","v":0}]
[{"$f":"A1130+1","v":3},{"$f":"Import!E27564","v":"Select"},{"$f":"Import!E27664","v":"Select"},{"$f":"Import!E27764","v":"Select"},{"$f":"Import!E27864","v":0},{"$f":"Import!E27964","v":0},{"$f":"Import!E28064","v":0},{"$f":"Import!E28164","v":0},{"$f":"Import!E28264","v":0}]
[4,{"$f":"Import!E27565","v":"Select"},{"$f":"Import!E27665","v":"Select"},{"$f":"Import!E27765","v":"Select"},{"$f":"Import!E27865","v":0},{"$f":"Import!E27965","v":0},{"$f":"Import!E28065","v":0},{"$f":"Import!E28165","v":0},{"$f":"Import!E28265","v":0}]
[5,{"$f":"Import!E27566","v":"Select"},{"$f":"Import!E27666","v":"Select"},{"$f":"Import!E27766","v":"Select"},{"$f":"Import!E27866","v":0},{"$f":"Import!E27966","v":0},{"$f":"Import!E28066","v":0},{"$f":"Import!E28166","v":0},{"$f":"Import!E28266","v":0}]
[6,{"$f":"Import!E27567","v":"Select"},{"$f":"Import!E27667","v":"Select"},{"$f":"Import!E27767","v":"Select"},{"$f":"Import!E27867","v":0},{"$f":"Import!E27967","v":0},{"$f":"Import!E28067","v":0},{"$f":"Import!E28167","v":0},{"$f":"Import!E28267","v":0}]
[7,{"$f":"Import!E27568","v":"Select"},{"$f":"Import!E27668","v":"Select"},{"$f":"Import!E27768","v":"Select"},{"$f":"Import!E27868","v":0},{"$f":"Import!E27968","v":0},{"$f":"Import!E28068","v":0},{"$f":"Import!E28168","v":0},{"$f":"Import!E28268","v":0}]
[8,{"$f":"Import!E27569","v":"Select"},{"$f":"Import!E27669","v":"Select"},{"$f":"Import!E27769","v":"Select"},{"$f":"Import!E27869","v":0},{"$f":"Import!E27969","v":0},{"$f":"Import!E28069","v":0},{"$f":"Import!E28169","v":0},{"$f":"Import!E28269","v":0}]
[9,{"$f":"Import!E27570","v":"Select"},{"$f":"Import!E27670","v":"Select"},{"$f":"Import!E27770","v":"Select"},{"$f":"Import!E27870","v":0},{"$f":"Import!E27970","v":0},{"$f":"Import!E28070","v":0},{"$f":"Import!E28170","v":0},{"$f":"Import!E28270","v":0}]
[10,{"$f":"Import!E27571","v":"Select"},{"$f":"Import!E27671","v":"Select"},{"$f":"Import!E27771","v":"Select"},{"$f":"Import!E27871","v":0},{"$f":"Import!E27971","v":0},{"$f":"Import!E28071","v":0},{"$f":"Import!E28171","v":0},{"$f":"Import!E28271","v":0}]
[11,{"$f":"Import!E27572","v":"Select"},{"$f":"Import!E27672","v":"Select"},{"$f":"Import!E27772","v":"Select"},{"$f":"Import!E27872","v":0},{"$f":"Import!E27972","v":0},{"$f":"Import!E28072","v":0},{"$f":"Import!E28172","v":0},{"$f":"Import!E28272","v":0}]
[12,{"$f":"Import!E27573","v":"Select"},{"$f":"Import!E27673","v":"Select"},{"$f":"Import!E27773","v":"Select"},{"$f":"Import!E27873","v":0},{"$f":"Import!E27973","v":0},{"$f":"Import!E28073","v":0},{"$f":"Import!E28173","v":0},{"$f":"Import!E28273","v":0}]
[13,{"$f":"Import!E27574","v":"Select"},{"$f":"Import!E27674","v":"Select"},{"$f":"Import!E27774","v":"Select"},{"$f":"Import!E27874","v":0},{"$f":"Import!E27974","v":0},{"$f":"Import!E28074","v":0},{"$f":"Import!E28174","v":0},{"$f":"Import!E28274","v":0}]
[14,{"$f":"Import!E27575","v":"Select"},{"$f":"Import!E27675","v":"Select"},{"$f":"Import!E27775","v":"Select"},{"$f":"Import!E27875","v":0},{"$f":"Import!E27975","v":0},{"$f":"Import!E28075","v":0},{"$f":"Import!E28175","v":0},{"$f":"Import!E28275","v":0}]
[15,{"$f":"Import!E27576","v":"Select"},{"$f":"Import!E27676","v":"Select"},{"$f":"Import!E27776","v":"Select"},{"$f":"Import!E27876","v":0},{"$f":"Import!E27976","v":0},{"$f":"Import!E28076","v":0},{"$f":"Import!E28176","v":0},{"$f":"Import!E28276","v":0}]
[16,{"$f":"Import!E27577","v":"Select"},{"$f":"Import!E27677","v":"Select"},{"$f":"Import!E27777","v":"Select"},{"$f":"Import!E27877","v":0},{"$f":"Import!E27977","v":0},{"$f":"Import!E28077","v":0},{"$f":"Import!E28177","v":0},{"$f":"Import!E28277","v":0}]
[17,{"$f":"Import!E27578","v":"Select"},{"$f":"Import!E27678","v":"Select"},{"$f":"Import!E27778","v":"Select"},{"$f":"Import!E27878","v":0},{"$f":"Import!E27978","v":0},{"$f":"Import!E28078","v":0},{"$f":"Import!E28178","v":0},{"$f":"Import!E28278","v":0}]
[18,{"$f":"Import!E27579","v":"Select"},{"$f":"Import!E27679","v":"Select"},{"$f":"Import!E27779","v":"Select"},{"$f":"Import!E27879","v":0},{"$f":"Import!E27979","v":0},{"$f":"Import!E28079","v":0},{"$f":"Import!E28179","v":0},{"$f":"Import!E28279","v":0}]
[19,{"$f":"Import!E27580","v":"Select"},{"$f":"Import!E27680","v":"Select"},{"$f":"Import!E27780","v":"Select"},{"$f":"Import!E27880","v":0},{"$f":"Import!E27980","v":0},{"$f":"Import!E28080","v":0},{"$f":"Import!E28180","v":0},{"$f":"Import!E28280","v":0}]
[20,{"$f":"Import!E27581","v":"Select"},{"$f":"Import!E27681","v":"Select"},{"$f":"Import!E27781","v":"Select"},{"$f":"Import!E27881","v":0},{"$f":"Import!E27981","v":0},{"$f":"Import!E28081","v":0},{"$f":"Import!E28181","v":0},{"$f":"Import!E28281","v":0}]
[21,{"$f":"Import!E27582","v":"Select"},{"$f":"Import!E27682","v":"Select"},{"$f":"Import!E27782","v":"Select"},{"$f":"Import!E27882","v":0},{"$f":"Import!E27982","v":0},{"$f":"Import!E28082","v":0},{"$f":"Import!E28182","v":0},{"$f":"Import!E28282","v":0}]
[22,{"$f":"Import!E27583","v":"Select"},{"$f":"Import!E27683","v":"Select"},{"$f":"Import!E27783","v":"Select"},{"$f":"Import!E27883","v":0},{"$f":"Import!E27983","v":0},{"$f":"Import!E28083","v":0},{"$f":"Import!E28183","v":0},{"$f":"Import!E28283","v":0}]
[23,{"$f":"Import!E27584","v":"Select"},{"$f":"Import!E27684","v":"Select"},{"$f":"Import!E27784","v":"Select"},{"$f":"Import!E27884","v":0},{"$f":"Import!E27984","v":0},{"$f":"Import!E28084","v":0},{"$f":"Import!E28184","v":0},{"$f":"Import!E28284","v":0}]
[24,{"$f":"Import!E27585","v":"Select"},{"$f":"Import!E27685","v":"Select"},{"$f":"Import!E27785","v":"Select"},{"$f":"Import!E27885","v":0},{"$f":"Import!E27985","v":0},{"$f":"Import!E28085","v":0},{"$f":"Import!E28185","v":0},{"$f":"Import!E28285","v":0}]
[25,{"$f":"Import!E27586","v":"Select"},{"$f":"Import!E27686","v":"Select"},{"$f":"Import!E27786","v":"Select"},{"$f":"Import!E27886","v":0},{"$f":"Import!E27986","v":0},{"$f":"Import!E28086","v":0},{"$f":"Import!E28186","v":0},{"$f":"Import!E28286","v":0}]
[26,{"$f":"Import!E27587","v":"Select"},{"$f":"Import!E27687","v":"Select"},{"$f":"Import!E27787","v":"Select"},{"$f":"Import!E27887","v":0},{"$f":"Import!E27987","v":0},{"$f":"Import!E28087","v":0},{"$f":"Import!E28187","v":0},{"$f":"Import!E28287","v":0}]
[27,{"$f":"Import!E27588","v":"Select"},{"$f":"Import!E27688","v":"Select"},{"$f":"Import!E27788","v":"Select"},{"$f":"Import!E27888","v":0},{"$f":"Import!E27988","v":0},{"$f":"Import!E28088","v":0},{"$f":"Import!E28188","v":0},{"$f":"Import!E28288","v":0}]
[28,{"$f":"Import!E27589","v":"Select"},{"$f":"Import!E27689","v":"Select"},{"$f":"Import!E27789","v":"Select"},{"$f":"Import!E27889","v":0},{"$f":"Import!E27989","v":0},{"$f":"Import!E28089","v":0},{"$f":"Import!E28189","v":0},{"$f":"Import!E28289","v":0}]
[29,{"$f":"Import!E27590","v":"Select"},{"$f":"Import!E27690","v":"Select"},{"$f":"Import!E27790","v":"Select"},{"$f":"Import!E27890","v":0},{"$f":"Import!E27990","v":0},{"$f":"Import!E28090","v":0},{"$f":"Import!E28190","v":0},{"$f":"Import!E28290","v":0}]
[30,{"$f":"Import!E27591","v":"Select"},{"$f":"Import!E27691","v":"Select"},{"$f":"Import!E27791","v":"Select"},{"$f":"Import!E27891","v":0},{"$f":"Import!E27991","v":0},{"$f":"Import!E28091","v":0},{"$f":"Import!E28191","v":0},{"$f":"Import!E28291","v":0}]
[31,{"$f":"Import!E27592","v":"Select"},{"$f":"Import!E27692","v":"Select"},{"$f":"Import!E27792","v":"Select"},{"$f":"Import!E27892","v":0},{"$f":"Import!E27992","v":0},{"$f":"Import!E28092","v":0},{"$f":"Import!E28192","v":0},{"$f":"Import!E28292","v":0}]
[32,{"$f":"Import!E27593","v":"Select"},{"$f":"Import!E27693","v":"Select"},{"$f":"Import!E27793","v":"Select"},{"$f":"Import!E27893","v":0},{"$f":"Import!E27993","v":0},{"$f":"Import!E28093","v":0},{"$f":"Import!E28193","v":0},{"$f":"Import!E28293","v":0}]
[33,{"$f":"Import!E27594","v":"Select"},{"$f":"Import!E27694","v":"Select"},{"$f":"Import!E27794","v":"Select"},{"$f":"Import!E27894","v":0},{"$f":"Import!E27994","v":0},{"$f":"Import!E28094","v":0},{"$f":"Import!E28194","v":0},{"$f":"Import!E28294","v":0}]
[34,{"$f":"Import!E27595","v":"Select"},{"$f":"Import!E27695","v":"Select"},{"$f":"Import!E27795","v":"Select"},{"$f":"Import!E27895","v":0},{"$f":"Import!E27995","v":0},{"$f":"Import!E28095","v":0},{"$f":"Import!E28195","v":0},{"$f":"Import!E28295","v":0}]
[35,{"$f":"Import!E27596","v":"Select"},{"$f":"Import!E27696","v":"Select"},{"$f":"Import!E27796","v":"Select"},{"$f":"Import!E27896","v":0},{"$f":"Import!E27996","v":0},{"$f":"Import!E28096","v":0},{"$f":"Import!E28196","v":0},{"$f":"Import!E28296","v":0}]
[36,{"$f":"Import!E27597","v":"Select"},{"$f":"Import!E27697","v":"Select"},{"$f":"Import!E27797","v":"Select"},{"$f":"Import!E27897","v":0},{"$f":"Import!E27997","v":0},{"$f":"Import!E28097","v":0},{"$f":"Import!E28197","v":0},{"$f":"Import!E28297","v":0}]
[37,{"$f":"Import!E27598","v":"Select"},{"$f":"Import!E27698","v":"Select"},{"$f":"Import!E27798","v":"Select"},{"$f":"Import!E27898","v":0},{"$f":"Import!E27998","v":0},{"$f":"Import!E28098","v":0},{"$f":"Import!E28198","v":0},{"$f":"Import!E28298","v":0}]
[38,{"$f":"Import!E27599","v":"Select"},{"$f":"Import!E27699","v":"Select"},{"$f":"Import!E27799","v":"Select"},{"$f":"Import!E27899","v":0},{"$f":"Import!E27999","v":0},{"$f":"Import!E28099","v":0},{"$f":"Import!E28199","v":0},{"$f":"Import!E28299","v":0}]
[39,{"$f":"Import!E27600","v":"Select"},{"$f":"Import!E27700","v":"Select"},{"$f":"Import!E27800","v":"Select"},{"$f":"Import!E27900","v":0},{"$f":"Import!E28000","v":0},{"$f":"Import!E28100","v":0},{"$f":"Import!E28200","v":0},{"$f":"Import!E28300","v":0}]
[40,{"$f":"Import!E27601","v":"Select"},{"$f":"Import!E27701","v":"Select"},{"$f":"Import!E27801","v":"Select"},{"$f":"Import!E27901","v":0},{"$f":"Import!E28001","v":0},{"$f":"Import!E28101","v":0},{"$f":"Import!E28201","v":0},{"$f":"Import!E28301","v":0}]
[41,{"$f":"Import!E27602","v":"Select"},{"$f":"Import!E27702","v":"Select"},{"$f":"Import!E27802","v":"Select"},{"$f":"Import!E27902","v":0},{"$f":"Import!E28002","v":0},{"$f":"Import!E28102","v":0},{"$f":"Import!E28202","v":0},{"$f":"Import!E28302","v":0}]
[42,{"$f":"Import!E27603","v":"Select"},{"$f":"Import!E27703","v":"Select"},{"$f":"Import!E27803","v":"Select"},{"$f":"Import!E27903","v":0},{"$f":"Import!E28003","v":0},{"$f":"Import!E28103","v":0},{"$f":"Import!E28203","v":0},{"$f":"Import!E28303","v":0}]
[43,{"$f":"Import!E27604","v":"Select"},{"$f":"Import!E27704","v":"Select"},{"$f":"Import!E27804","v":"Select"},{"$f":"Import!E27904","v":0},{"$f":"Import!E28004","v":0},{"$f":"Import!E28104","v":0},{"$f":"Import!E28204","v":0},{"$f":"Import!E28304","v":0}]
[44,{"$f":"Import!E27605","v":"Select"},{"$f":"Import!E27705","v":"Select"},{"$f":"Import!E27805","v":"Select"},{"$f":"Import!E27905","v":0},{"$f":"Import!E28005","v":0},{"$f":"Import!E28105","v":0},{"$f":"Import!E28205","v":0},{"$f":"Import!E28305","v":0}]
[45,{"$f":"Import!E27606","v":"Select"},{"$f":"Import!E27706","v":"Select"},{"$f":"Import!E27806","v":"Select"},{"$f":"Import!E27906","v":0},{"$f":"Import!E28006","v":0},{"$f":"Import!E28106","v":0},{"$f":"Import!E28206","v":0},{"$f":"Import!E28306","v":0}]
[46,{"$f":"Import!E27607","v":"Select"},{"$f":"Import!E27707","v":"Select"},{"$f":"Import!E27807","v":"Select"},{"$f":"Import!E27907","v":0},{"$f":"Import!E28007","v":0},{"$f":"Import!E28107","v":0},{"$f":"Import!E28207","v":0},{"$f":"Import!E28307","v":0}]
[47,{"$f":"Import!E27608","v":"Select"},{"$f":"Import!E27708","v":"Select"},{"$f":"Import!E27808","v":"Select"},{"$f":"Import!E27908","v":0},{"$f":"Import!E28008","v":0},{"$f":"Import!E28108","v":0},{"$f":"Import!E28208","v":0},{"$f":"Import!E28308","v":0}]
[48,{"$f":"Import!E27609","v":"Select"},{"$f":"Import!E27709","v":"Select"},{"$f":"Import!E27809","v":"Select"},{"$f":"Import!E27909","v":0},{"$f":"Import!E28009","v":0},{"$f":"Import!E28109","v":0},{"$f":"Import!E28209","v":0},{"$f":"Import!E28309","v":0}]
[49,{"$f":"Import!E27610","v":"Select"},{"$f":"Import!E27710","v":"Select"},{"$f":"Import!E27810","v":"Select"},{"$f":"Import!E27910","v":0},{"$f":"Import!E28010","v":0},{"$f":"Import!E28110","v":0},{"$f":"Import!E28210","v":0},{"$f":"Import!E28310","v":0}]
[50,{"$f":"Import!E27611","v":"Select"},{"$f":"Import!E27711","v":"Select"},{"$f":"Import!E27811","v":"Select"},{"$f":"Import!E27911","v":0},{"$f":"Import!E28011","v":0},{"$f":"Import!E28111","v":0},{"$f":"Import!E28211","v":0},{"$f":"Import!E28311","v":0}]
[51,{"$f":"Import!E27612","v":"Select"},{"$f":"Import!E27712","v":"Select"},{"$f":"Import!E27812","v":"Select"},{"$f":"Import!E27912","v":0},{"$f":"Import!E28012","v":0},{"$f":"Import!E28112","v":0},{"$f":"Import!E28212","v":0},{"$f":"Import!E28312","v":0}]
[52,{"$f":"Import!E27613","v":"Select"},{"$f":"Import!E27713","v":"Select"},{"$f":"Import!E27813","v":"Select"},{"$f":"Import!E27913","v":0},{"$f":"Import!E28013","v":0},{"$f":"Import!E28113","v":0},{"$f":"Import!E28213","v":0},{"$f":"Import!E28313","v":0}]
[53,{"$f":"Import!E27614","v":"Select"},{"$f":"Import!E27714","v":"Select"},{"$f":"Import!E27814","v":"Select"},{"$f":"Import!E27914","v":0},{"$f":"Import!E28014","v":0},{"$f":"Import!E28114","v":0},{"$f":"Import!E28214","v":0},{"$f":"Import!E28314","v":0}]
[54,{"$f":"Import!E27615","v":"Select"},{"$f":"Import!E27715","v":"Select"},{"$f":"Import!E27815","v":"Select"},{"$f":"Import!E27915","v":0},{"$f":"Import!E28015","v":0},{"$f":"Import!E28115","v":0},{"$f":"Import!E28215","v":0},{"$f":"Import!E28315","v":0}]
[55,{"$f":"Import!E27616","v":"Select"},{"$f":"Import!E27716","v":"Select"},{"$f":"Import!E27816","v":"Select"},{"$f":"Import!E27916","v":0},{"$f":"Import!E28016","v":0},{"$f":"Import!E28116","v":0},{"$f":"Import!E28216","v":0},{"$f":"Import!E28316","v":0}]
[56,{"$f":"Import!E27617","v":"Select"},{"$f":"Import!E27717","v":"Select"},{"$f":"Import!E27817","v":"Select"},{"$f":"Import!E27917","v":0},{"$f":"Import!E28017","v":0},{"$f":"Import!E28117","v":0},{"$f":"Import!E28217","v":0},{"$f":"Import!E28317","v":0}]
[57,{"$f":"Import!E27618","v":"Select"},{"$f":"Import!E27718","v":"Select"},{"$f":"Import!E27818","v":"Select"},{"$f":"Import!E27918","v":0},{"$f":"Import!E28018","v":0},{"$f":"Import!E28118","v":0},{"$f":"Import!E28218","v":0},{"$f":"Import!E28318","v":0}]
[58,{"$f":"Import!E27619","v":"Select"},{"$f":"Import!E27719","v":"Select"},{"$f":"Import!E27819","v":"Select"},{"$f":"Import!E27919","v":0},{"$f":"Import!E28019","v":0},{"$f":"Import!E28119","v":0},{"$f":"Import!E28219","v":0},{"$f":"Import!E28319","v":0}]
[59,{"$f":"Import!E27620","v":"Select"},{"$f":"Import!E27720","v":"Select"},{"$f":"Import!E27820","v":"Select"},{"$f":"Import!E27920","v":0},{"$f":"Import!E28020","v":0},{"$f":"Import!E28120","v":0},{"$f":"Import!E28220","v":0},{"$f":"Import!E28320","v":0}]
[60,{"$f":"Import!E27621","v":"Select"},{"$f":"Import!E27721","v":"Select"},{"$f":"Import!E27821","v":"Select"},{"$f":"Import!E27921","v":0},{"$f":"Import!E28021","v":0},{"$f":"Import!E28121","v":0},{"$f":"Import!E28221","v":0},{"$f":"Import!E28321","v":0}]
[61,{"$f":"Import!E27622","v":"Select"},{"$f":"Import!E27722","v":"Select"},{"$f":"Import!E27822","v":"Select"},{"$f":"Import!E27922","v":0},{"$f":"Import!E28022","v":0},{"$f":"Import!E28122","v":0},{"$f":"Import!E28222","v":0},{"$f":"Import!E28322","v":0}]
[62,{"$f":"Import!E27623","v":"Select"},{"$f":"Import!E27723","v":"Select"},{"$f":"Import!E27823","v":"Select"},{"$f":"Import!E27923","v":0},{"$f":"Import!E28023","v":0},{"$f":"Import!E28123","v":0},{"$f":"Import!E28223","v":0},{"$f":"Import!E28323","v":0}]
[63,{"$f":"Import!E27624","v":"Select"},{"$f":"Import!E27724","v":"Select"},{"$f":"Import!E27824","v":"Select"},{"$f":"Import!E27924","v":0},{"$f":"Import!E28024","v":0},{"$f":"Import!E28124","v":0},{"$f":"Import!E28224","v":0},{"$f":"Import!E28324","v":0}]
[64,{"$f":"Import!E27625","v":"Select"},{"$f":"Import!E27725","v":"Select"},{"$f":"Import!E27825","v":"Select"},{"$f":"Import!E27925","v":0},{"$f":"Import!E28025","v":0},{"$f":"Import!E28125","v":0},{"$f":"Import!E28225","v":0},{"$f":"Import!E28325","v":0}]
[65,{"$f":"Import!E27626","v":"Select"},{"$f":"Import!E27726","v":"Select"},{"$f":"Import!E27826","v":"Select"},{"$f":"Import!E27926","v":0},{"$f":"Import!E28026","v":0},{"$f":"Import!E28126","v":0},{"$f":"Import!E28226","v":0},{"$f":"Import!E28326","v":0}]
[66,{"$f":"Import!E27627","v":"Select"},{"$f":"Import!E27727","v":"Select"},{"$f":"Import!E27827","v":"Select"},{"$f":"Import!E27927","v":0},{"$f":"Import!E28027","v":0},{"$f":"Import!E28127","v":0},{"$f":"Import!E28227","v":0},{"$f":"Import!E28327","v":0}]
[{"$f":"A1194+1","v":67},{"$f":"Import!E27628","v":"Select"},{"$f":"Import!E27728","v":"Select"},{"$f":"Import!E27828","v":"Select"},{"$f":"Import!E27928","v":0},{"$f":"Import!E28028","v":0},{"$f":"Import!E28128","v":0},{"$f":"Import!E28228","v":0},{"$f":"Import!E28328","v":0}]
[68,{"$f":"Import!E27629","v":"Select"},{"$f":"Import!E27729","v":"Select"},{"$f":"Import!E27829","v":"Select"},{"$f":"Import!E27929","v":0},{"$f":"Import!E28029","v":0},{"$f":"Import!E28129","v":0},{"$f":"Import!E28229","v":0},{"$f":"Import!E28329","v":0}]
[69,{"$f":"Import!E27630","v":"Select"},{"$f":"Import!E27730","v":"Select"},{"$f":"Import!E27830","v":"Select"},{"$f":"Import!E27930","v":0},{"$f":"Import!E28030","v":0},{"$f":"Import!E28130","v":0},{"$f":"Import!E28230","v":0},{"$f":"Import!E28330","v":0}]
[70,{"$f":"Import!E27631","v":"Select"},{"$f":"Import!E27731","v":"Select"},{"$f":"Import!E27831","v":"Select"},{"$f":"Import!E27931","v":0},{"$f":"Import!E28031","v":0},{"$f":"Import!E28131","v":0},{"$f":"Import!E28231","v":0},{"$f":"Import!E28331","v":0}]
[71,{"$f":"Import!E27632","v":"Select"},{"$f":"Import!E27732","v":"Select"},{"$f":"Import!E27832","v":"Select"},{"$f":"Import!E27932","v":0},{"$f":"Import!E28032","v":0},{"$f":"Import!E28132","v":0},{"$f":"Import!E28232","v":0},{"$f":"Import!E28332","v":0}]
[72,{"$f":"Import!E27633","v":"Select"},{"$f":"Import!E27733","v":"Select"},{"$f":"Import!E27833","v":"Select"},{"$f":"Import!E27933","v":0},{"$f":"Import!E28033","v":0},{"$f":"Import!E28133","v":0},{"$f":"Import!E28233","v":0},{"$f":"Import!E28333","v":0}]
[73,{"$f":"Import!E27634","v":"Select"},{"$f":"Import!E27734","v":"Select"},{"$f":"Import!E27834","v":"Select"},{"$f":"Import!E27934","v":0},{"$f":"Import!E28034","v":0},{"$f":"Import!E28134","v":0},{"$f":"Import!E28234","v":0},{"$f":"Import!E28334","v":0}]
[74,{"$f":"Import!E27635","v":"Select"},{"$f":"Import!E27735","v":"Select"},{"$f":"Import!E27835","v":"Select"},{"$f":"Import!E27935","v":0},{"$f":"Import!E28035","v":0},{"$f":"Import!E28135","v":0},{"$f":"Import!E28235","v":0},{"$f":"Import!E28335","v":0}]
[75,{"$f":"Import!E27636","v":"Select"},{"$f":"Import!E27736","v":"Select"},{"$f":"Import!E27836","v":"Select"},{"$f":"Import!E27936","v":0},{"$f":"Import!E28036","v":0},{"$f":"Import!E28136","v":0},{"$f":"Import!E28236","v":0},{"$f":"Import!E28336","v":0}]
[76,{"$f":"Import!E27637","v":"Select"},{"$f":"Import!E27737","v":"Select"},{"$f":"Import!E27837","v":"Select"},{"$f":"Import!E27937","v":0},{"$f":"Import!E28037","v":0},{"$f":"Import!E28137","v":0},{"$f":"Import!E28237","v":0},{"$f":"Import!E28337","v":0}]
[77,{"$f":"Import!E27638","v":"Select"},{"$f":"Import!E27738","v":"Select"},{"$f":"Import!E27838","v":"Select"},{"$f":"Import!E27938","v":0},{"$f":"Import!E28038","v":0},{"$f":"Import!E28138","v":0},{"$f":"Import!E28238","v":0},{"$f":"Import!E28338","v":0}]
[78,{"$f":"Import!E27639","v":"Select"},{"$f":"Import!E27739","v":"Select"},{"$f":"Import!E27839","v":"Select"},{"$f":"Import!E27939","v":0},{"$f":"Import!E28039","v":0},{"$f":"Import!E28139","v":0},{"$f":"Import!E28239","v":0},{"$f":"Import!E28339","v":0}]
[79,{"$f":"Import!E27640","v":"Select"},{"$f":"Import!E27740","v":"Select"},{"$f":"Import!E27840","v":"Select"},{"$f":"Import!E27940","v":0},{"$f":"Import!E28040","v":0},{"$f":"Import!E28140","v":0},{"$f":"Import!E28240","v":0},{"$f":"Import!E28340","v":0}]
[80,{"$f":"Import!E27641","v":"Select"},{"$f":"Import!E27741","v":"Select"},{"$f":"Import!E27841","v":"Select"},{"$f":"Import!E27941","v":0},{"$f":"Import!E28041","v":0},{"$f":"Import!E28141","v":0},{"$f":"Import!E28241","v":0},{"$f":"Import!E28341","v":0}]
[81,{"$f":"Import!E27642","v":"Select"},{"$f":"Import!E27742","v":"Select"},{"$f":"Import!E27842","v":"Select"},{"$f":"Import!E27942","v":0},{"$f":"Import!E28042","v":0},{"$f":"Import!E28142","v":0},{"$f":"Import!E28242","v":0},{"$f":"Import!E28342","v":0}]
[82,{"$f":"Import!E27643","v":"Select"},{"$f":"Import!E27743","v":"Select"},{"$f":"Import!E27843","v":"Select"},{"$f":"Import!E27943","v":0},{"$f":"Import!E28043","v":0},{"$f":"Import!E28143","v":0},{"$f":"Import!E28243","v":0},{"$f":"Import!E28343","v":0}]
[83,{"$f":"Import!E27644","v":"Select"},{"$f":"Import!E27744","v":"Select"},{"$f":"Import!E27844","v":"Select"},{"$f":"Import!E27944","v":0},{"$f":"Import!E28044","v":0},{"$f":"Import!E28144","v":0},{"$f":"Import!E28244","v":0},{"$f":"Import!E28344","v":0}]
[84,{"$f":"Import!E27645","v":"Select"},{"$f":"Import!E27745","v":"Select"},{"$f":"Import!E27845","v":"Select"},{"$f":"Import!E27945","v":0},{"$f":"Import!E28045","v":0},{"$f":"Import!E28145","v":0},{"$f":"Import!E28245","v":0},{"$f":"Import!E28345","v":0}]
[85,{"$f":"Import!E27646","v":"Select"},{"$f":"Import!E27746","v":"Select"},{"$f":"Import!E27846","v":"Select"},{"$f":"Import!E27946","v":0},{"$f":"Import!E28046","v":0},{"$f":"Import!E28146","v":0},{"$f":"Import!E28246","v":0},{"$f":"Import!E28346","v":0}]
[86,{"$f":"Import!E27647","v":"Select"},{"$f":"Import!E27747","v":"Select"},{"$f":"Import!E27847","v":"Select"},{"$f":"Import!E27947","v":0},{"$f":"Import!E28047","v":0},{"$f":"Import!E28147","v":0},{"$f":"Import!E28247","v":0},{"$f":"Import!E28347","v":0}]
[87,{"$f":"Import!E27648","v":"Select"},{"$f":"Import!E27748","v":"Select"},{"$f":"Import!E27848","v":"Select"},{"$f":"Import!E27948","v":0},{"$f":"Import!E28048","v":0},{"$f":"Import!E28148","v":0},{"$f":"Import!E28248","v":0},{"$f":"Import!E28348","v":0}]
[88,{"$f":"Import!E27649","v":"Select"},{"$f":"Import!E27749","v":"Select"},{"$f":"Import!E27849","v":"Select"},{"$f":"Import!E27949","v":0},{"$f":"Import!E28049","v":0},{"$f":"Import!E28149","v":0},{"$f":"Import!E28249","v":0},{"$f":"Import!E28349","v":0}]
[89,{"$f":"Import!E27650","v":"Select"},{"$f":"Import!E27750","v":"Select"},{"$f":"Import!E27850","v":"Select"},{"$f":"Import!E27950","v":0},{"$f":"Import!E28050","v":0},{"$f":"Import!E28150","v":0},{"$f":"Import!E28250","v":0},{"$f":"Import!E28350","v":0}]
[90,{"$f":"Import!E27651","v":"Select"},{"$f":"Import!E27751","v":"Select"},{"$f":"Import!E27851","v":"Select"},{"$f":"Import!E27951","v":0},{"$f":"Import!E28051","v":0},{"$f":"Import!E28151","v":0},{"$f":"Import!E28251","v":0},{"$f":"Import!E28351","v":0}]
[91,{"$f":"Import!E27652","v":"Select"},{"$f":"Import!E27752","v":"Select"},{"$f":"Import!E27852","v":"Select"},{"$f":"Import!E27952","v":0},{"$f":"Import!E28052","v":0},{"$f":"Import!E28152","v":0},{"$f":"Import!E28252","v":0},{"$f":"Import!E28352","v":0}]
[92,{"$f":"Import!E27653","v":"Select"},{"$f":"Import!E27753","v":"Select"},{"$f":"Import!E27853","v":"Select"},{"$f":"Import!E27953","v":0},{"$f":"Import!E28053","v":0},{"$f":"Import!E28153","v":0},{"$f":"Import!E28253","v":0},{"$f":"Import!E28353","v":0}]
[93,{"$f":"Import!E27654","v":"Select"},{"$f":"Import!E27754","v":"Select"},{"$f":"Import!E27854","v":"Select"},{"$f":"Import!E27954","v":0},{"$f":"Import!E28054","v":0},{"$f":"Import!E28154","v":0},{"$f":"Import!E28254","v":0},{"$f":"Import!E28354","v":0}]
[94,{"$f":"Import!E27655","v":"Select"},{"$f":"Import!E27755","v":"Select"},{"$f":"Import!E27855","v":"Select"},{"$f":"Import!E27955","v":0},{"$f":"Import!E28055","v":0},{"$f":"Import!E28155","v":0},{"$f":"Import!E28255","v":0},{"$f":"Import!E28355","v":0}]
[95,{"$f":"Import!E27656","v":"Select"},{"$f":"Import!E27756","v":"Select"},{"$f":"Import!E27856","v":"Select"},{"$f":"Import!E27956","v":0},{"$f":"Import!E28056","v":0},{"$f":"Import!E28156","v":0},{"$f":"Import!E28256","v":0},{"$f":"Import!E28356","v":0}]
[96,{"$f":"Import!E27657","v":"Select"},{"$f":"Import!E27757","v":"Select"},{"$f":"Import!E27857","v":"Select"},{"$f":"Import!E27957","v":0},{"$f":"Import!E28057","v":0},{"$f":"Import!E28157","v":0},{"$f":"Import!E28257","v":0},{"$f":"Import!E28357","v":0}]
[97,{"$f":"Import!E27658","v":"Select"},{"$f":"Import!E27758","v":"Select"},{"$f":"Import!E27858","v":"Select"},{"$f":"Import!E27958","v":0},{"$f":"Import!E28058","v":0},{"$f":"Import!E28158","v":0},{"$f":"Import!E28258","v":0},{"$f":"Import!E28358","v":0}]
[98,{"$f":"Import!E27659","v":"Select"},{"$f":"Import!E27759","v":"Select"},{"$f":"Import!E27859","v":"Select"},{"$f":"Import!E27959","v":0},{"$f":"Import!E28059","v":0},{"$f":"Import!E28159","v":0},{"$f":"Import!E28259","v":0},{"$f":"Import!E28359","v":0}]
[99,{"$f":"Import!E27660","v":"Select"},{"$f":"Import!E27760","v":"Select"},{"$f":"Import!E27860","v":"Select"},{"$f":"Import!E27960","v":0},{"$f":"Import!E28060","v":0},{"$f":"Import!E28160","v":0},{"$f":"Import!E28260","v":0},{"$f":"Import!E28360","v":0}]
[100,{"$f":"Import!E27661","v":"Select"},{"$f":"Import!E27761","v":"Select"},{"$f":"Import!E27861","v":"Select"},{"$f":"Import!E27961","v":0},{"$f":"Import!E28061","v":0},{"$f":"Import!E28161","v":0},{"$f":"Import!E28261","v":0},{"$f":"Import!E28361","v":0}]
[]
[null,"Total Preferred Equities",null,null,{"$f":"SUM(E1129:E1228)","v":0},{"$f":"SUM(F1129:F1228)","v":0},{"$f":"IFERROR(SUMPRODUCT(G1129:G1228,$F1129:$F1228)/SUM($F1129:$F1228),0)","v":0},{"$f":"IFERROR(SUMPRODUCT(H1129:H1228,$F1129:$F1228)/SUM($F1129:$F1228),0)","v":0}]
[]
[null,"(F) COMMON EQUITIES"]
[]
[null,null,"Enter # of Asset Types",{"$f":"Import!E28362","v":0}]
[null,null,null,null,{"$f":"YEAR($C$3)","v":2023}]
[null,"Asset Type","Currency","Country","Fair Value","Comments"]
[1,{"$f":"Import!E28363","v":"Select"},{"$f":"Import!E28463","v":"Select"},{"$f":"Import!E28563","v":"Select"},{"$f":"Import!E28663","v":0},{"$f":"Import!E28763","v":0}]
[{"$f":"A1237+1","v":2},{"$f":"Import!E28364","v":"Select"},{"$f":"Import!E28464","v":"Select"},{"$f":"Import!E28564","v":"Select"},{"$f":"Import!E28664","v":0},{"$f":"Import!E28764","v":0}]
[{"$f":"A1238+1","v":3},{"$f":"Import!E28365","v":"Select"},{"$f":"Import!E28465","v":"Select"},{"$f":"Import!E28565","v":"Select"},{"$f":"Import!E28665","v":0},{"$f":"Import!E28765","v":0}]
[4,{"$f":"Import!E28366","v":"Select"},{"$f":"Import!E28466","v":"Select"},{"$f":"Import!E28566","v":"Select"},{"$f":"Import!E28666","v":0},{"$f":"Import!E28766","v":0}]
[5,{"$f":"Import!E28367","v":"Select"},{"$f":"Import!E28467","v":"Select"},{"$f":"Import!E28567","v":"Select"},{"$f":"Import!E28667","v":0},{"$f":"Import!E28767","v":0}]
[6,{"$f":"Import!E28368","v":"Select"},{"$f":"Import!E28468","v":"Select"},{"$f":"Import!E28568","v":"Select"},{"$f":"Import!E28668","v":0},{"$f":"Import!E28768","v":0}]
[7,{"$f":"Import!E28369","v":"Select"},{"$f":"Import!E28469","v":"Select"},{"$f":"Import!E28569","v":"Select"},{"$f":"Import!E28669","v":0},{"$f":"Import!E28769","v":0}]
[8,{"$f":"Import!E28370","v":"Select"},{"$f":"Import!E28470","v":"Select"},{"$f":"Import!E28570","v":"Select"},{"$f":"Import!E28670","v":0},{"$f":"Import!E28770","v":0}]
[9,{"$f":"Import!E28371","v":"Select"},{"$f":"Import!E28471","v":"Select"},{"$f":"Import!E28571","v":"Select"},{"$f":"Import!E28671","v":0},{"$f":"Import!E28771","v":0}]
[10,{"$f":"Import!E28372","v":"Select"},{"$f":"Import!E28472","v":"Select"},{"$f":"Import!E28572","v":"Select"},{"$f":"Import!E28672","v":0},{"$f":"Import!E28772","v":0}]
[11,{"$f":"Import!E28373","v":"Select"},{"$f":"Import!E28473","v":"Select"},{"$f":"Import!E28573","v":"Select"},{"$f":"Import!E28673","v":0},{"$f":"Import!E28773","v":0}]
[12,{"$f":"Import!E28374","v":"Select"},{"$f":"Import!E28474","v":"Select"},{"$f":"Import!E28574","v":"Select"},{"$f":"Import!E28674","v":0},{"$f":"Import!E28774","v":0}]
[13,{"$f":"Import!E28375","v":"Select"},{"$f":"Import!E28475","v":"Select"},{"$f":"Import!E28575","v":"Select"},{"$f":"Import!E28675","v":0},{"$f":"Import!E28775","v":0}]
[14,{"$f":"Import!E28376","v":"Select"},{"$f":"Import!E28476","v":"Select"},{"$f":"Import!E28576","v":"Select"},{"$f":"Import!E28676","v":0},{"$f":"Import!E28776","v":0}]
[15,{"$f":"Import!E28377","v":"Select"},{"$f":"Import!E28477","v":"Select"},{"$f":"Import!E28577","v":"Select"},{"$f":"Import!E28677","v":0},{"$f":"Import!E28777","v":0}]
[16,{"$f":"Import!E28378","v":"Select"},{"$f":"Import!E28478","v":"Select"},{"$f":"Import!E28578","v":"Select"},{"$f":"Import!E28678","v":0},{"$f":"Import!E28778","v":0}]
[17,{"$f":"Import!E28379","v":"Select"},{"$f":"Import!E28479","v":"Select"},{"$f":"Import!E28579","v":"Select"},{"$f":"Import!E28679","v":0},{"$f":"Import!E28779","v":0}]
[18,{"$f":"Import!E28380","v":"Select"},{"$f":"Import!E28480","v":"Select"},{"$f":"Import!E28580","v":"Select"},{"$f":"Import!E28680","v":0},{"$f":"Import!E28780","v":0}]
[19,{"$f":"Import!E28381","v":"Select"},{"$f":"Import!E28481","v":"Select"},{"$f":"Import!E28581","v":"Select"},{"$f":"Import!E28681","v":0},{"$f":"Import!E28781","v":0}]
[20,{"$f":"Import!E28382","v":"Select"},{"$f":"Import!E28482","v":"Select"},{"$f":"Import!E28582","v":"Select"},{"$f":"Import!E28682","v":0},{"$f":"Import!E28782","v":0}]
[21,{"$f":"Import!E28383","v":"Select"},{"$f":"Import!E28483","v":"Select"},{"$f":"Import!E28583","v":"Select"},{"$f":"Import!E28683","v":0},{"$f":"Import!E28783","v":0}]
[22,{"$f":"Import!E28384","v":"Select"},{"$f":"Import!E28484","v":"Select"},{"$f":"Import!E28584","v":"Select"},{"$f":"Import!E28684","v":0},{"$f":"Import!E28784","v":0}]
[23,{"$f":"Import!E28385","v":"Select"},{"$f":"Import!E28485","v":"Select"},{"$f":"Import!E28585","v":"Select"},{"$f":"Import!E28685","v":0},{"$f":"Import!E28785","v":0}]
[24,{"$f":"Import!E28386","v":"Select"},{"$f":"Import!E28486","v":"Select"},{"$f":"Import!E28586","v":"Select"},{"$f":"Import!E28686","v":0},{"$f":"Import!E28786","v":0}]
[25,{"$f":"Import!E28387","v":"Select"},{"$f":"Import!E28487","v":"Select"},{"$f":"Import!E28587","v":"Select"},{"$f":"Import!E28687","v":0},{"$f":"Import!E28787","v":0}]
[26,{"$f":"Import!E28388","v":"Select"},{"$f":"Import!E28488","v":"Select"},{"$f":"Import!E28588","v":"Select"},{"$f":"Import!E28688","v":0},{"$f":"Import!E28788","v":0}]
[27,{"$f":"Import!E28389","v":"Select"},{"$f":"Import!E28489","v":"Select"},{"$f":"Import!E28589","v":"Select"},{"$f":"Import!E28689","v":0},{"$f":"Import!E28789","v":0}]
[28,{"$f":"Import!E28390","v":"Select"},{"$f":"Import!E28490","v":"Select"},{"$f":"Import!E28590","v":"Select"},{"$f":"Import!E28690","v":0},{"$f":"Import!E28790","v":0}]
[29,{"$f":"Import!E28391","v":"Select"},{"$f":"Import!E28491","v":"Select"},{"$f":"Import!E28591","v":"Select"},{"$f":"Import!E28691","v":0},{"$f":"Import!E28791","v":0}]
[30,{"$f":"Import!E28392","v":"Select"},{"$f":"Import!E28492","v":"Select"},{"$f":"Import!E28592","v":"Select"},{"$f":"Import!E28692","v":0},{"$f":"Import!E28792","v":0}]
[31,{"$f":"Import!E28393","v":"Select"},{"$f":"Import!E28493","v":"Select"},{"$f":"Import!E28593","v":"Select"},{"$f":"Import!E28693","v":0},{"$f":"Import!E28793","v":0}]
[32,{"$f":"Import!E28394","v":"Select"},{"$f":"Import!E28494","v":"Select"},{"$f":"Import!E28594","v":"Select"},{"$f":"Import!E28694","v":0},{"$f":"Import!E28794","v":0}]
[33,{"$f":"Import!E28395","v":"Select"},{"$f":"Import!E28495","v":"Select"},{"$f":"Import!E28595","v":"Select"},{"$f":"Import!E28695","v":0},{"$f":"Import!E28795","v":0}]
[34,{"$f":"Import!E28396","v":"Select"},{"$f":"Import!E28496","v":"Select"},{"$f":"Import!E28596","v":"Select"},{"$f":"Import!E28696","v":0},{"$f":"Import!E28796","v":0}]
[35,{"$f":"Import!E28397","v":"Select"},{"$f":"Import!E28497","v":"Select"},{"$f":"Import!E28597","v":"Select"},{"$f":"Import!E28697","v":0},{"$f":"Import!E28797","v":0}]
[36,{"$f":"Import!E28398","v":"Select"},{"$f":"Import!E28498","v":"Select"},{"$f":"Import!E28598","v":"Select"},{"$f":"Import!E28698","v":0},{"$f":"Import!E28798","v":0}]
[37,{"$f":"Import!E28399","v":"Select"},{"$f":"Import!E28499","v":"Select"},{"$f":"Import!E28599","v":"Select"},{"$f":"Import!E28699","v":0},{"$f":"Import!E28799","v":0}]
[38,{"$f":"Import!E28400","v":"Select"},{"$f":"Import!E28500","v":"Select"},{"$f":"Import!E28600","v":"Select"},{"$f":"Import!E28700","v":0},{"$f":"Import!E28800","v":0}]
[39,{"$f":"Import!E28401","v":"Select"},{"$f":"Import!E28501","v":"Select"},{"$f":"Import!E28601","v":"Select"},{"$f":"Import!E28701","v":0},{"$f":"Import!E28801","v":0}]
[40,{"$f":"Import!E28402","v":"Select"},{"$f":"Import!E28502","v":"Select"},{"$f":"Import!E28602","v":"Select"},{"$f":"Import!E28702","v":0},{"$f":"Import!E28802","v":0}]
[41,{"$f":"Import!E28403","v":"Select"},{"$f":"Import!E28503","v":"Select"},{"$f":"Import!E28603","v":"Select"},{"$f":"Import!E28703","v":0},{"$f":"Import!E28803","v":0}]
[42,{"$f":"Import!E28404","v":"Select"},{"$f":"Import!E28504","v":"Select"},{"$f":"Import!E28604","v":"Select"},{"$f":"Import!E28704","v":0},{"$f":"Import!E28804","v":0}]
[43,{"$f":"Import!E28405","v":"Select"},{"$f":"Import!E28505","v":"Select"},{"$f":"Import!E28605","v":"Select"},{"$f":"Import!E28705","v":0},{"$f":"Import!E28805","v":0}]
[44,{"$f":"Import!E28406","v":"Select"},{"$f":"Import!E28506","v":"Select"},{"$f":"Import!E28606","v":"Select"},{"$f":"Import!E28706","v":0},{"$f":"Import!E28806","v":0}]
[45,{"$f":"Import!E28407","v":"Select"},{"$f":"Import!E28507","v":"Select"},{"$f":"Import!E28607","v":"Select"},{"$f":"Import!E28707","v":0},{"$f":"Import!E28807","v":0}]
[46,{"$f":"Import!E28408","v":"Select"},{"$f":"Import!E28508","v":"Select"},{"$f":"Import!E28608","v":"Select"},{"$f":"Import!E28708","v":0},{"$f":"Import!E28808","v":0}]
[47,{"$f":"Import!E28409","v":"Select"},{"$f":"Import!E28509","v":"Select"},{"$f":"Import!E28609","v":"Select"},{"$f":"Import!E28709","v":0},{"$f":"Import!E28809","v":0}]
[48,{"$f":"Import!E28410","v":"Select"},{"$f":"Import!E28510","v":"Select"},{"$f":"Import!E28610","v":"Select"},{"$f":"Import!E28710","v":0},{"$f":"Import!E28810","v":0}]
[49,{"$f":"Import!E28411","v":"Select"},{"$f":"Import!E28511","v":"Select"},{"$f":"Import!E28611","v":"Select"},{"$f":"Import!E28711","v":0},{"$f":"Import!E28811","v":0}]
[50,{"$f":"Import!E28412","v":"Select"},{"$f":"Import!E28512","v":"Select"},{"$f":"Import!E28612","v":"Select"},{"$f":"Import!E28712","v":0},{"$f":"Import!E28812","v":0}]
[51,{"$f":"Import!E28413","v":"Select"},{"$f":"Import!E28513","v":"Select"},{"$f":"Import!E28613","v":"Select"},{"$f":"Import!E28713","v":0},{"$f":"Import!E28813","v":0}]
[52,{"$f":"Import!E28414","v":"Select"},{"$f":"Import!E28514","v":"Select"},{"$f":"Import!E28614","v":"Select"},{"$f":"Import!E28714","v":0},{"$f":"Import!E28814","v":0}]
[53,{"$f":"Import!E28415","v":"Select"},{"$f":"Import!E28515","v":"Select"},{"$f":"Import!E28615","v":"Select"},{"$f":"Import!E28715","v":0},{"$f":"Import!E28815","v":0}]
[54,{"$f":"Import!E28416","v":"Select"},{"$f":"Import!E28516","v":"Select"},{"$f":"Import!E28616","v":"Select"},{"$f":"Import!E28716","v":0},{"$f":"Import!E28816","v":0}]
[55,{"$f":"Import!E28417","v":"Select"},{"$f":"Import!E28517","v":"Select"},{"$f":"Import!E28617","v":"Select"},{"$f":"Import!E28717","v":0},{"$f":"Import!E28817","v":0}]
[56,{"$f":"Import!E28418","v":"Select"},{"$f":"Import!E28518","v":"Select"},{"$f":"Import!E28618","v":"Select"},{"$f":"Import!E28718","v":0},{"$f":"Import!E28818","v":0}]
[57,{"$f":"Import!E28419","v":"Select"},{"$f":"Import!E28519","v":"Select"},{"$f":"Import!E28619","v":"Select"},{"$f":"Import!E28719","v":0},{"$f":"Import!E28819","v":0}]
[58,{"$f":"Import!E28420","v":"Select"},{"$f":"Import!E28520","v":"Select"},{"$f":"Import!E28620","v":"Select"},{"$f":"Import!E28720","v":0},{"$f":"Import!E28820","v":0}]
[59,{"$f":"Import!E28421","v":"Select"},{"$f":"Import!E28521","v":"Select"},{"$f":"Import!E28621","v":"Select"},{"$f":"Import!E28721","v":0},{"$f":"Import!E28821","v":0}]
[60,{"$f":"Import!E28422","v":"Select"},{"$f":"Import!E28522","v":"Select"},{"$f":"Import!E28622","v":"Select"},{"$f":"Import!E28722","v":0},{"$f":"Import!E28822","v":0}]
[61,{"$f":"Import!E28423","v":"Select"},{"$f":"Import!E28523","v":"Select"},{"$f":"Import!E28623","v":"Select"},{"$f":"Import!E28723","v":0},{"$f":"Import!E28823","v":0}]
[62,{"$f":"Import!E28424","v":"Select"},{"$f":"Import!E28524","v":"Select"},{"$f":"Import!E28624","v":"Select"},{"$f":"Import!E28724","v":0},{"$f":"Import!E28824","v":0}]
[63,{"$f":"Import!E28425","v":"Select"},{"$f":"Import!E28525","v":"Select"},{"$f":"Import!E28625","v":"Select"},{"$f":"Import!E28725","v":0},{"$f":"Import!E28825","v":0}]
[64,{"$f":"Import!E28426","v":"Select"},{"$f":"Import!E28526","v":"Select"},{"$f":"Import!E28626","v":"Select"},{"$f":"Import!E28726","v":0},{"$f":"Import!E28826","v":0}]
[65,{"$f":"Import!E28427","v":"Select"},{"$f":"Import!E28527","v":"Select"},{"$f":"Import!E28627","v":"Select"},{"$f":"Import!E28727","v":0},{"$f":"Import!E28827","v":0}]
[66,{"$f":"Import!E28428","v":"Select"},{"$f":"Import!E28528","v":"Select"},{"$f":"Import!E28628","v":"Select"},{"$f":"Import!E28728","v":0},{"$f":"Import!E28828","v":0}]
[{"$f":"A1302+1","v":67},{"$f":"Import!E28429","v":"Select"},{"$f":"Import!E28529","v":"Select"},{"$f":"Import!E28629","v":"Select"},{"$f":"Import!E28729","v":0},{"$f":"Import!E28829","v":0}]
[68,{"$f":"Import!E28430","v":"Select"},{"$f":"Import!E28530","v":"Select"},{"$f":"Import!E28630","v":"Select"},{"$f":"Import!E28730","v":0},{"$f":"Import!E28830","v":0}]
[69,{"$f":"Import!E28431","v":"Select"},{"$f":"Import!E28531","v":"Select"},{"$f":"Import!E28631","v":"Select"},{"$f":"Import!E28731","v":0},{"$f":"Import!E28831","v":0}]
[70,{"$f":"Import!E28432","v":"Select"},{"$f":"Import!E28532","v":"Select"},{"$f":"Import!E28632","v":"Select"},{"$f":"Import!E28732","v":0},{"$f":"Import!E28832","v":0}]
[71,{"$f":"Import!E28433","v":"Select"},{"$f":"Import!E28533","v":"Select"},{"$f":"Import!E28633","v":"Select"},{"$f":"Import!E28733","v":0},{"$f":"Import!E28833","v":0}]
[72,{"$f":"Import!E28434","v":"Select"},{"$f":"Import!E28534","v":"Select"},{"$f":"Import!E28634","v":"Select"},{"$f":"Import!E28734","v":0},{"$f":"Import!E28834","v":0}]
[73,{"$f":"Import!E28435","v":"Select"},{"$f":"Import!E28535","v":"Select"},{"$f":"Import!E28635","v":"Select"},{"$f":"Import!E28735","v":0},{"$f":"Import!E28835","v":0}]
[74,{"$f":"Import!E28436","v":"Select"},{"$f":"Import!E28536","v":"Select"},{"$f":"Import!E28636","v":"Select"},{"$f":"Import!E28736","v":0},{"$f":"Import!E28836","v":0}]
[75,{"$f":"Import!E28437","v":"Select"},{"$f":"Import!E28537","v":"Select"},{"$f":"Import!E28637","v":"Select"},{"$f":"Import!E28737","v":0},{"$f":"Import!E28837","v":0}]
[76,{"$f":"Import!E28438","v":"Select"},{"$f":"Import!E28538","v":"Select"},{"$f":"Import!E28638","v":"Select"},{"$f":"Import!E28738","v":0},{"$f":"Import!E28838","v":0}]
[77,{"$f":"Import!E28439","v":"Select"},{"$f":"Import!E28539","v":"Select"},{"$f":"Import!E28639","v":"Select"},{"$f":"Import!E28739","v":0},{"$f":"Import!E28839","v":0}]
[78,{"$f":"Import!E28440","v":"Select"},{"$f":"Import!E28540","v":"Select"},{"$f":"Import!E28640","v":"Select"},{"$f":"Import!E28740","v":0},{"$f":"Import!E28840","v":0}]
[79,{"$f":"Import!E28441","v":"Select"},{"$f":"Import!E28541","v":"Select"},{"$f":"Import!E28641","v":"Select"},{"$f":"Import!E28741","v":0},{"$f":"Import!E28841","v":0}]
[80,{"$f":"Import!E28442","v":"Select"},{"$f":"Import!E28542","v":"Select"},{"$f":"Import!E28642","v":"Select"},{"$f":"Import!E28742","v":0},{"$f":"Import!E28842","v":0}]
[81,{"$f":"Import!E28443","v":"Select"},{"$f":"Import!E28543","v":"Select"},{"$f":"Import!E28643","v":"Select"},{"$f":"Import!E28743","v":0},{"$f":"Import!E28843","v":0}]
[82,{"$f":"Import!E28444","v":"Select"},{"$f":"Import!E28544","v":"Select"},{"$f":"Import!E28644","v":"Select"},{"$f":"Import!E28744","v":0},{"$f":"Import!E28844","v":0}]
[83,{"$f":"Import!E28445","v":"Select"},{"$f":"Import!E28545","v":"Select"},{"$f":"Import!E28645","v":"Select"},{"$f":"Import!E28745","v":0},{"$f":"Import!E28845","v":0}]
[84,{"$f":"Import!E28446","v":"Select"},{"$f":"Import!E28546","v":"Select"},{"$f":"Import!E28646","v":"Select"},{"$f":"Import!E28746","v":0},{"$f":"Import!E28846","v":0}]
[85,{"$f":"Import!E28447","v":"Select"},{"$f":"Import!E28547","v":"Select"},{"$f":"Import!E28647","v":"Select"},{"$f":"Import!E28747","v":0},{"$f":"Import!E28847","v":0}]
[86,{"$f":"Import!E28448","v":"Select"},{"$f":"Import!E28548","v":"Select"},{"$f":"Import!E28648","v":"Select"},{"$f":"Import!E28748","v":0},{"$f":"Import!E28848","v":0}]
[87,{"$f":"Import!E28449","v":"Select"},{"$f":"Import!E28549","v":"Select"},{"$f":"Import!E28649","v":"Select"},{"$f":"Import!E28749","v":0},{"$f":"Import!E28849","v":0}]
[88,{"$f":"Import!E28450","v":"Select"},{"$f":"Import!E28550","v":"Select"},{"$f":"Import!E28650","v":"Select"},{"$f":"Import!E28750","v":0},{"$f":"Import!E28850","v":0}]
[89,{"$f":"Import!E28451","v":"Select"},{"$f":"Import!E28551","v":"Select"},{"$f":"Import!E28651","v":"Select"},{"$f":"Import!E28751","v":0},{"$f":"Import!E28851","v":0}]
[90,{"$f":"Import!E28452","v":"Select"},{"$f":"Import!E28552","v":"Select"},{"$f":"Import!E28652","v":"Select"},{"$f":"Import!E28752","v":0},{"$f":"Import!E28852","v":0}]
[91,{"$f":"Import!E28453","v":"Select"},{"$f":"Import!E28553","v":"Select"},{"$f":"Import!E28653","v":"Select"},{"$f":"Import!E28753","v":0},{"$f":"Import!E28853","v":0}]
[92,{"$f":"Import!E28454","v":"Select"},{"$f":"Import!E28554","v":"Select"},{"$f":"Import!E28654","v":"Select"},{"$f":"Import!E28754","v":0},{"$f":"Import!E28854","v":0}]
[93,{"$f":"Import!E28455","v":"Select"},{"$f":"Import!E28555","v":"Select"},{"$f":"Import!E28655","v":"Select"},{"$f":"Import!E28755","v":0},{"$f":"Import!E28855","v":0}]
[94,{"$f":"Import!E28456","v":"Select"},{"$f":"Import!E28556","v":"Select"},{"$f":"Import!E28656","v":"Select"},{"$f":"Import!E28756","v":0},{"$f":"Import!E28856","v":0}]
[95,{"$f":"Import!E28457","v":"Select"},{"$f":"Import!E28557","v":"Select"},{"$f":"Import!E28657","v":"Select"},{"$f":"Import!E28757","v":0},{"$f":"Import!E28857","v":0}]
[96,{"$f":"Import!E28458","v":"Select"},{"$f":"Import!E28558","v":"Select"},{"$f":"Import!E28658","v":"Select"},{"$f":"Import!E28758","v":0},{"$f":"Import!E28858","v":0}]
[97,{"$f":"Import!E28459","v":"Select"},{"$f":"Import!E28559","v":"Select"},{"$f":"Import!E28659","v":"Select"},{"$f":"Import!E28759","v":0},{"$f":"Import!E28859","v":0}]
[98,{"$f":"Import!E28460","v":"Select"},{"$f":"Import!E28560","v":"Select"},{"$f":"Import!E28660","v":"Select"},{"$f":"Import!E28760","v":0},{"$f":"Import!E28860","v":0}]
[99,{"$f":"Import!E28461","v":"Select"},{"$f":"Import!E28561","v":"Select"},{"$f":"Import!E28661","v":"Select"},{"$f":"Import!E28761","v":0},{"$f":"Import!E28861","v":0}]
[100,{"$f":"Import!E28462","v":"Select"},{"$f":"Import!E28562","v":"Select"},{"$f":"Import!E28662","v":"Select"},{"$f":"Import!E28762","v":0},{"$f":"Import!E28862","v":0}]
[]
[null,"Total Common Equities",null,null,{"$f":"SUM(E1237:E1336)","v":0}]
[]
[null,"(G) REAL ESTATE"]
[]
[null,null,"Enter # of Asset Types",{"$f":"Import!E28863","v":0}]
[null,null,null,null,null,{"$f":"YEAR($C$3)","v":2023},2023]
[null,"Asset Type","Currency","Country","Purpose","Cost","Fair Value","Comments"]
[1,{"$f":"Import!E28864","v":"Select"},{"$f":"Import!E28964","v":"Select"},{"$f":"Import!E29064","v":"Select"},{"$f":"Import!E29164","v":"Select"},{"$f":"Import!E29264","v":0},{"$f":"Import!E29364","v":0},{"$f":"Import!E29464","v":0}]
[{"$f":"A1345+1","v":2},{"$f":"Import!E28865","v":"Select"},{"$f":"Import!E28965","v":"Select"},{"$f":"Import!E29065","v":"Select"},{"$f":"Import!E29165","v":"Select"},{"$f":"Import!E29265","v":0},{"$f":"Import!E29365","v":0},{"$f":"Import!E29465","v":0}]
[{"$f":"A1346+1","v":3},{"$f":"Import!E28866","v":"Select"},{"$f":"Import!E28966","v":"Select"},{"$f":"Import!E29066","v":"Select"},{"$f":"Import!E29166","v":"Select"},{"$f":"Import!E29266","v":0},{"$f":"Import!E29366","v":0},{"$f":"Import!E29466","v":0}]
[4,{"$f":"Import!E28867","v":"Select"},{"$f":"Import!E28967","v":"Select"},{"$f":"Import!E29067","v":"Select"},{"$f":"Import!E29167","v":"Select"},{"$f":"Import!E29267","v":0},{"$f":"Import!E29367","v":0},{"$f":"Import!E29467","v":0}]
[5,{"$f":"Import!E28868","v":"Select"},{"$f":"Import!E28968","v":"Select"},{"$f":"Import!E29068","v":"Select"},{"$f":"Import!E29168","v":"Select"},{"$f":"Import!E29268","v":0},{"$f":"Import!E29368","v":0},{"$f":"Import!E29468","v":0}]
[6,{"$f":"Import!E28869","v":"Select"},{"$f":"Import!E28969","v":"Select"},{"$f":"Import!E29069","v":"Select"},{"$f":"Import!E29169","v":"Select"},{"$f":"Import!E29269","v":0},{"$f":"Import!E29369","v":0},{"$f":"Import!E29469","v":0}]
[7,{"$f":"Import!E28870","v":"Select"},{"$f":"Import!E28970","v":"Select"},{"$f":"Import!E29070","v":"Select"},{"$f":"Import!E29170","v":"Select"},{"$f":"Import!E29270","v":0},{"$f":"Import!E29370","v":0},{"$f":"Import!E29470","v":0}]
[8,{"$f":"Import!E28871","v":"Select"},{"$f":"Import!E28971","v":"Select"},{"$f":"Import!E29071","v":"Select"},{"$f":"Import!E29171","v":"Select"},{"$f":"Import!E29271","v":0},{"$f":"Import!E29371","v":0},{"$f":"Import!E29471","v":0}]
[9,{"$f":"Import!E28872","v":"Select"},{"$f":"Import!E28972","v":"Select"},{"$f":"Import!E29072","v":"Select"},{"$f":"Import!E29172","v":"Select"},{"$f":"Import!E29272","v":0},{"$f":"Import!E29372","v":0},{"$f":"Import!E29472","v":0}]
[10,{"$f":"Import!E28873","v":"Select"},{"$f":"Import!E28973","v":"Select"},{"$f":"Import!E29073","v":"Select"},{"$f":"Import!E29173","v":"Select"},{"$f":"Import!E29273","v":0},{"$f":"Import!E29373","v":0},{"$f":"Import!E29473","v":0}]
[11,{"$f":"Import!E28874","v":"Select"},{"$f":"Import!E28974","v":"Select"},{"$f":"Import!E29074","v":"Select"},{"$f":"Import!E29174","v":"Select"},{"$f":"Import!E29274","v":0},{"$f":"Import!E29374","v":0},{"$f":"Import!E29474","v":0}]
[12,{"$f":"Import!E28875","v":"Select"},{"$f":"Import!E28975","v":"Select"},{"$f":"Import!E29075","v":"Select"},{"$f":"Import!E29175","v":"Select"},{"$f":"Import!E29275","v":0},{"$f":"Import!E29375","v":0},{"$f":"Import!E29475","v":0}]
[13,{"$f":"Import!E28876","v":"Select"},{"$f":"Import!E28976","v":"Select"},{"$f":"Import!E29076","v":"Select"},{"$f":"Import!E29176","v":"Select"},{"$f":"Import!E29276","v":0},{"$f":"Import!E29376","v":0},{"$f":"Import!E29476","v":0}]
[14,{"$f":"Import!E28877","v":"Select"},{"$f":"Import!E28977","v":"Select"},{"$f":"Import!E29077","v":"Select"},{"$f":"Import!E29177","v":"Select"},{"$f":"Import!E29277","v":0},{"$f":"Import!E29377","v":0},{"$f":"Import!E29477","v":0}]
[15,{"$f":"Import!E28878","v":"Select"},{"$f":"Import!E28978","v":"Select"},{"$f":"Import!E29078","v":"Select"},{"$f":"Import!E29178","v":"Select"},{"$f":"Import!E29278","v":0},{"$f":"Import!E29378","v":0},{"$f":"Import!E29478","v":0}]
[16,{"$f":"Import!E28879","v":"Select"},{"$f":"Import!E28979","v":"Select"},{"$f":"Import!E29079","v":"Select"},{"$f":"Import!E29179","v":"Select"},{"$f":"Import!E29279","v":0},{"$f":"Import!E29379","v":0},{"$f":"Import!E29479","v":0}]
[17,{"$f":"Import!E28880","v":"Select"},{"$f":"Import!E28980","v":"Select"},{"$f":"Import!E29080","v":"Select"},{"$f":"Import!E29180","v":"Select"},{"$f":"Import!E29280","v":0},{"$f":"Import!E29380","v":0},{"$f":"Import!E29480","v":0}]
[18,{"$f":"Import!E28881","v":"Select"},{"$f":"Import!E28981","v":"Select"},{"$f":"Import!E29081","v":"Select"},{"$f":"Import!E29181","v":"Select"},{"$f":"Import!E29281","v":0},{"$f":"Import!E29381","v":0},{"$f":"Import!E29481","v":0}]
[19,{"$f":"Import!E28882","v":"Select"},{"$f":"Import!E28982","v":"Select"},{"$f":"Import!E29082","v":"Select"},{"$f":"Import!E29182","v":"Select"},{"$f":"Import!E29282","v":0},{"$f":"Import!E29382","v":0},{"$f":"Import!E29482","v":0}]
[20,{"$f":"Import!E28883","v":"Select"},{"$f":"Import!E28983","v":"Select"},{"$f":"Import!E29083","v":"Select"},{"$f":"Import!E29183","v":"Select"},{"$f":"Import!E29283","v":0},{"$f":"Import!E29383","v":0},{"$f":"Import!E29483","v":0}]
[21,{"$f":"Import!E28884","v":"Select"},{"$f":"Import!E28984","v":"Select"},{"$f":"Import!E29084","v":"Select"},{"$f":"Import!E29184","v":"Select"},{"$f":"Import!E29284","v":0},{"$f":"Import!E29384","v":0},{"$f":"Import!E29484","v":0}]
[22,{"$f":"Import!E28885","v":"Select"},{"$f":"Import!E28985","v":"Select"},{"$f":"Import!E29085","v":"Select"},{"$f":"Import!E29185","v":"Select"},{"$f":"Import!E29285","v":0},{"$f":"Import!E29385","v":0},{"$f":"Import!E29485","v":0}]
[23,{"$f":"Import!E28886","v":"Select"},{"$f":"Import!E28986","v":"Select"},{"$f":"Import!E29086","v":"Select"},{"$f":"Import!E29186","v":"Select"},{"$f":"Import!E29286","v":0},{"$f":"Import!E29386","v":0},{"$f":"Import!E29486","v":0}]
[24,{"$f":"Import!E28887","v":"Select"},{"$f":"Import!E28987","v":"Select"},{"$f":"Import!E29087","v":"Select"},{"$f":"Import!E29187","v":"Select"},{"$f":"Import!E29287","v":0},{"$f":"Import!E29387","v":0},{"$f":"Import!E29487","v":0}]
[25,{"$f":"Import!E28888","v":"Select"},{"$f":"Import!E28988","v":"Select"},{"$f":"Import!E29088","v":"Select"},{"$f":"Import!E29188","v":"Select"},{"$f":"Import!E29288","v":0},{"$f":"Import!E29388","v":0},{"$f":"Import!E29488","v":0}]
[26,{"$f":"Import!E28889","v":"Select"},{"$f":"Import!E28989","v":"Select"},{"$f":"Import!E29089","v":"Select"},{"$f":"Import!E29189","v":"Select"},{"$f":"Import!E29289","v":0},{"$f":"Import!E29389","v":0},{"$f":"Import!E29489","v":0}]
[27,{"$f":"Import!E28890","v":"Select"},{"$f":"Import!E28990","v":"Select"},{"$f":"Import!E29090","v":"Select"},{"$f":"Import!E29190","v":"Select"},{"$f":"Import!E29290","v":0},{"$f":"Import!E29390","v":0},{"$f":"Import!E29490","v":0}]
[28,{"$f":"Import!E28891","v":"Select"},{"$f":"Import!E28991","v":"Select"},{"$f":"Import!E29091","v":"Select"},{"$f":"Import!E29191","v":"Select"},{"$f":"Import!E29291","v":0},{"$f":"Import!E29391","v":0},{"$f":"Import!E29491","v":0}]
[29,{"$f":"Import!E28892","v":"Select"},{"$f":"Import!E28992","v":"Select"},{"$f":"Import!E29092","v":"Select"},{"$f":"Import!E29192","v":"Select"},{"$f":"Import!E29292","v":0},{"$f":"Import!E29392","v":0},{"$f":"Import!E29492","v":0}]
[30,{"$f":"Import!E28893","v":"Select"},{"$f":"Import!E28993","v":"Select"},{"$f":"Import!E29093","v":"Select"},{"$f":"Import!E29193","v":"Select"},{"$f":"Import!E29293","v":0},{"$f":"Import!E29393","v":0},{"$f":"Import!E29493","v":0}]
[31,{"$f":"Import!E28894","v":"Select"},{"$f":"Import!E28994","v":"Select"},{"$f":"Import!E29094","v":"Select"},{"$f":"Import!E29194","v":"Select"},{"$f":"Import!E29294","v":0},{"$f":"Import!E29394","v":0},{"$f":"Import!E29494","v":0}]
[32,{"$f":"Import!E28895","v":"Select"},{"$f":"Import!E28995","v":"Select"},{"$f":"Import!E29095","v":"Select"},{"$f":"Import!E29195","v":"Select"},{"$f":"Import!E29295","v":0},{"$f":"Import!E29395","v":0},{"$f":"Import!E29495","v":0}]
[33,{"$f":"Import!E28896","v":"Select"},{"$f":"Import!E28996","v":"Select"},{"$f":"Import!E29096","v":"Select"},{"$f":"Import!E29196","v":"Select"},{"$f":"Import!E29296","v":0},{"$f":"Import!E29396","v":0},{"$f":"Import!E29496","v":0}]
[34,{"$f":"Import!E28897","v":"Select"},{"$f":"Import!E28997","v":"Select"},{"$f":"Import!E29097","v":"Select"},{"$f":"Import!E29197","v":"Select"},{"$f":"Import!E29297","v":0},{"$f":"Import!E29397","v":0},{"$f":"Import!E29497","v":0}]
[35,{"$f":"Import!E28898","v":"Select"},{"$f":"Import!E28998","v":"Select"},{"$f":"Import!E29098","v":"Select"},{"$f":"Import!E29198","v":"Select"},{"$f":"Import!E29298","v":0},{"$f":"Import!E29398","v":0},{"$f":"Import!E29498","v":0}]
[36,{"$f":"Import!E28899","v":"Select"},{"$f":"Import!E28999","v":"Select"},{"$f":"Import!E29099","v":"Select"},{"$f":"Import!E29199","v":"Select"},{"$f":"Import!E29299","v":0},{"$f":"Import!E29399","v":0},{"$f":"Import!E29499","v":0}]
[37,{"$f":"Import!E28900","v":"Select"},{"$f":"Import!E29000","v":"Select"},{"$f":"Import!E29100","v":"Select"},{"$f":"Import!E29200","v":"Select"},{"$f":"Import!E29300","v":0},{"$f":"Import!E29400","v":0},{"$f":"Import!E29500","v":0}]
[38,{"$f":"Import!E28901","v":"Select"},{"$f":"Import!E29001","v":"Select"},{"$f":"Import!E29101","v":"Select"},{"$f":"Import!E29201","v":"Select"},{"$f":"Import!E29301","v":0},{"$f":"Import!E29401","v":0},{"$f":"Import!E29501","v":0}]
[39,{"$f":"Import!E28902","v":"Select"},{"$f":"Import!E29002","v":"Select"},{"$f":"Import!E29102","v":"Select"},{"$f":"Import!E29202","v":"Select"},{"$f":"Import!E29302","v":0},{"$f":"Import!E29402","v":0},{"$f":"Import!E29502","v":0}]
[40,{"$f":"Import!E28903","v":"Select"},{"$f":"Import!E29003","v":"Select"},{"$f":"Import!E29103","v":"Select"},{"$f":"Import!E29203","v":"Select"},{"$f":"Import!E29303","v":0},{"$f":"Import!E29403","v":0},{"$f":"Import!E29503","v":0}]
[41,{"$f":"Import!E28904","v":"Select"},{"$f":"Import!E29004","v":"Select"},{"$f":"Import!E29104","v":"Select"},{"$f":"Import!E29204","v":"Select"},{"$f":"Import!E29304","v":0},{"$f":"Import!E29404","v":0},{"$f":"Import!E29504","v":0}]
[42,{"$f":"Import!E28905","v":"Select"},{"$f":"Import!E29005","v":"Select"},{"$f":"Import!E29105","v":"Select"},{"$f":"Import!E29205","v":"Select"},{"$f":"Import!E29305","v":0},{"$f":"Import!E29405","v":0},{"$f":"Import!E29505","v":0}]
[43,{"$f":"Import!E28906","v":"Select"},{"$f":"Import!E29006","v":"Select"},{"$f":"Import!E29106","v":"Select"},{"$f":"Import!E29206","v":"Select"},{"$f":"Import!E29306","v":0},{"$f":"Import!E29406","v":0},{"$f":"Import!E29506","v":0}]
[44,{"$f":"Import!E28907","v":"Select"},{"$f":"Import!E29007","v":"Select"},{"$f":"Import!E29107","v":"Select"},{"$f":"Import!E29207","v":"Select"},{"$f":"Import!E29307","v":0},{"$f":"Import!E29407","v":0},{"$f":"Import!E29507","v":0}]
[45,{"$f":"Import!E28908","v":"Select"},{"$f":"Import!E29008","v":"Select"},{"$f":"Import!E29108","v":"Select"},{"$f":"Import!E29208","v":"Select"},{"$f":"Import!E29308","v":0},{"$f":"Import!E29408","v":0},{"$f":"Import!E29508","v":0}]
[46,{"$f":"Import!E28909","v":"Select"},{"$f":"Import!E29009","v":"Select"},{"$f":"Import!E29109","v":"Select"},{"$f":"Import!E29209","v":"Select"},{"$f":"Import!E29309","v":0},{"$f":"Import!E29409","v":0},{"$f":"Import!E29509","v":0}]
[47,{"$f":"Import!E28910","v":"Select"},{"$f":"Import!E29010","v":"Select"},{"$f":"Import!E29110","v":"Select"},{"$f":"Import!E29210","v":"Select"},{"$f":"Import!E29310","v":0},{"$f":"Import!E29410","v":0},{"$f":"Import!E29510","v":0}]
[48,{"$f":"Import!E28911","v":"Select"},{"$f":"Import!E29011","v":"Select"},{"$f":"Import!E29111","v":"Select"},{"$f":"Import!E29211","v":"Select"},{"$f":"Import!E29311","v":0},{"$f":"Import!E29411","v":0},{"$f":"Import!E29511","v":0}]
[49,{"$f":"Import!E28912","v":"Select"},{"$f":"Import!E29012","v":"Select"},{"$f":"Import!E29112","v":"Select"},{"$f":"Import!E29212","v":"Select"},{"$f":"Import!E29312","v":0},{"$f":"Import!E29412","v":0},{"$f":"Import!E29512","v":0}]
[50,{"$f":"Import!E28913","v":"Select"},{"$f":"Import!E29013","v":"Select"},{"$f":"Import!E29113","v":"Select"},{"$f":"Import!E29213","v":"Select"},{"$f":"Import!E29313","v":0},{"$f":"Import!E29413","v":0},{"$f":"Import!E29513","v":0}]
[51,{"$f":"Import!E28914","v":"Select"},{"$f":"Import!E29014","v":"Select"},{"$f":"Import!E29114","v":"Select"},{"$f":"Import!E29214","v":"Select"},{"$f":"Import!E29314","v":0},{"$f":"Import!E29414","v":0},{"$f":"Import!E29514","v":0}]
[52,{"$f":"Import!E28915","v":"Select"},{"$f":"Import!E29015","v":"Select"},{"$f":"Import!E29115","v":"Select"},{"$f":"Import!E29215","v":"Select"},{"$f":"Import!E29315","v":0},{"$f":"Import!E29415","v":0},{"$f":"Import!E29515","v":0}]
[53,{"$f":"Import!E28916","v":"Select"},{"$f":"Import!E29016","v":"Select"},{"$f":"Import!E29116","v":"Select"},{"$f":"Import!E29216","v":"Select"},{"$f":"Import!E29316","v":0},{"$f":"Import!E29416","v":0},{"$f":"Import!E29516","v":0}]
[54,{"$f":"Import!E28917","v":"Select"},{"$f":"Import!E29017","v":"Select"},{"$f":"Import!E29117","v":"Select"},{"$f":"Import!E29217","v":"Select"},{"$f":"Import!E29317","v":0},{"$f":"Import!E29417","v":0},{"$f":"Import!E29517","v":0}]
[55,{"$f":"Import!E28918","v":"Select"},{"$f":"Import!E29018","v":"Select"},{"$f":"Import!E29118","v":"Select"},{"$f":"Import!E29218","v":"Select"},{"$f":"Import!E29318","v":0},{"$f":"Import!E29418","v":0},{"$f":"Import!E29518","v":0}]
[56,{"$f":"Import!E28919","v":"Select"},{"$f":"Import!E29019","v":"Select"},{"$f":"Import!E29119","v":"Select"},{"$f":"Import!E29219","v":"Select"},{"$f":"Import!E29319","v":0},{"$f":"Import!E29419","v":0},{"$f":"Import!E29519","v":0}]
[57,{"$f":"Import!E28920","v":"Select"},{"$f":"Import!E29020","v":"Select"},{"$f":"Import!E29120","v":"Select"},{"$f":"Import!E29220","v":"Select"},{"$f":"Import!E29320","v":0},{"$f":"Import!E29420","v":0},{"$f":"Import!E29520","v":0}]
[58,{"$f":"Import!E28921","v":"Select"},{"$f":"Import!E29021","v":"Select"},{"$f":"Import!E29121","v":"Select"},{"$f":"Import!E29221","v":"Select"},{"$f":"Import!E29321","v":0},{"$f":"Import!E29421","v":0},{"$f":"Import!E29521","v":0}]
[59,{"$f":"Import!E28922","v":"Select"},{"$f":"Import!E29022","v":"Select"},{"$f":"Import!E29122","v":"Select"},{"$f":"Import!E29222","v":"Select"},{"$f":"Import!E29322","v":0},{"$f":"Import!E29422","v":0},{"$f":"Import!E29522","v":0}]
[60,{"$f":"Import!E28923","v":"Select"},{"$f":"Import!E29023","v":"Select"},{"$f":"Import!E29123","v":"Select"},{"$f":"Import!E29223","v":"Select"},{"$f":"Import!E29323","v":0},{"$f":"Import!E29423","v":0},{"$f":"Import!E29523","v":0}]
[61,{"$f":"Import!E28924","v":"Select"},{"$f":"Import!E29024","v":"Select"},{"$f":"Import!E29124","v":"Select"},{"$f":"Import!E29224","v":"Select"},{"$f":"Import!E29324","v":0},{"$f":"Import!E29424","v":0},{"$f":"Import!E29524","v":0}]
[62,{"$f":"Import!E28925","v":"Select"},{"$f":"Import!E29025","v":"Select"},{"$f":"Import!E29125","v":"Select"},{"$f":"Import!E29225","v":"Select"},{"$f":"Import!E29325","v":0},{"$f":"Import!E29425","v":0},{"$f":"Import!E29525","v":0}]
[63,{"$f":"Import!E28926","v":"Select"},{"$f":"Import!E29026","v":"Select"},{"$f":"Import!E29126","v":"Select"},{"$f":"Import!E29226","v":"Select"},{"$f":"Import!E29326","v":0},{"$f":"Import!E29426","v":0},{"$f":"Import!E29526","v":0}]
[64,{"$f":"Import!E28927","v":"Select"},{"$f":"Import!E29027","v":"Select"},{"$f":"Import!E29127","v":"Select"},{"$f":"Import!E29227","v":"Select"},{"$f":"Import!E29327","v":0},{"$f":"Import!E29427","v":0},{"$f":"Import!E29527","v":0}]
[65,{"$f":"Import!E28928","v":"Select"},{"$f":"Import!E29028","v":"Select"},{"$f":"Import!E29128","v":"Select"},{"$f":"Import!E29228","v":"Select"},{"$f":"Import!E29328","v":0},{"$f":"Import!E29428","v":0},{"$f":"Import!E29528","v":0}]
[66,{"$f":"Import!E28929","v":"Select"},{"$f":"Import!E29029","v":"Select"},{"$f":"Import!E29129","v":"Select"},{"$f":"Import!E29229","v":"Select"},{"$f":"Import!E29329","v":0},{"$f":"Import!E29429","v":0},{"$f":"Import!E29529","v":0}]
[{"$f":"A1410+1","v":67},{"$f":"Import!E28930","v":"Select"},{"$f":"Import!E29030","v":"Select"},{"$f":"Import!E29130","v":"Select"},{"$f":"Import!E29230","v":"Select"},{"$f":"Import!E29330","v":0},{"$f":"Import!E29430","v":0},{"$f":"Import!E29530","v":0}]
[68,{"$f":"Import!E28931","v":"Select"},{"$f":"Import!E29031","v":"Select"},{"$f":"Import!E29131","v":"Select"},{"$f":"Import!E29231","v":"Select"},{"$f":"Import!E29331","v":0},{"$f":"Import!E29431","v":0},{"$f":"Import!E29531","v":0}]
[69,{"$f":"Import!E28932","v":"Select"},{"$f":"Import!E29032","v":"Select"},{"$f":"Import!E29132","v":"Select"},{"$f":"Import!E29232","v":"Select"},{"$f":"Import!E29332","v":0},{"$f":"Import!E29432","v":0},{"$f":"Import!E29532","v":0}]
[70,{"$f":"Import!E28933","v":"Select"},{"$f":"Import!E29033","v":"Select"},{"$f":"Import!E29133","v":"Select"},{"$f":"Import!E29233","v":"Select"},{"$f":"Import!E29333","v":0},{"$f":"Import!E29433","v":0},{"$f":"Import!E29533","v":0}]
[71,{"$f":"Import!E28934","v":"Select"},{"$f":"Import!E29034","v":"Select"},{"$f":"Import!E29134","v":"Select"},{"$f":"Import!E29234","v":"Select"},{"$f":"Import!E29334","v":0},{"$f":"Import!E29434","v":0},{"$f":"Import!E29534","v":0}]
[72,{"$f":"Import!E28935","v":"Select"},{"$f":"Import!E29035","v":"Select"},{"$f":"Import!E29135","v":"Select"},{"$f":"Import!E29235","v":"Select"},{"$f":"Import!E29335","v":0},{"$f":"Import!E29435","v":0},{"$f":"Import!E29535","v":0}]
[73,{"$f":"Import!E28936","v":"Select"},{"$f":"Import!E29036","v":"Select"},{"$f":"Import!E29136","v":"Select"},{"$f":"Import!E29236","v":"Select"},{"$f":"Import!E29336","v":0},{"$f":"Import!E29436","v":0},{"$f":"Import!E29536","v":0}]
[74,{"$f":"Import!E28937","v":"Select"},{"$f":"Import!E29037","v":"Select"},{"$f":"Import!E29137","v":"Select"},{"$f":"Import!E29237","v":"Select"},{"$f":"Import!E29337","v":0},{"$f":"Import!E29437","v":0},{"$f":"Import!E29537","v":0}]
[75,{"$f":"Import!E28938","v":"Select"},{"$f":"Import!E29038","v":"Select"},{"$f":"Import!E29138","v":"Select"},{"$f":"Import!E29238","v":"Select"},{"$f":"Import!E29338","v":0},{"$f":"Import!E29438","v":0},{"$f":"Import!E29538","v":0}]
[76,{"$f":"Import!E28939","v":"Select"},{"$f":"Import!E29039","v":"Select"},{"$f":"Import!E29139","v":"Select"},{"$f":"Import!E29239","v":"Select"},{"$f":"Import!E29339","v":0},{"$f":"Import!E29439","v":0},{"$f":"Import!E29539","v":0}]
[77,{"$f":"Import!E28940","v":"Select"},{"$f":"Import!E29040","v":"Select"},{"$f":"Import!E29140","v":"Select"},{"$f":"Import!E29240","v":"Select"},{"$f":"Import!E29340","v":0},{"$f":"Import!E29440","v":0},{"$f":"Import!E29540","v":0}]
[78,{"$f":"Import!E28941","v":"Select"},{"$f":"Import!E29041","v":"Select"},{"$f":"Import!E29141","v":"Select"},{"$f":"Import!E29241","v":"Select"},{"$f":"Import!E29341","v":0},{"$f":"Import!E29441","v":0},{"$f":"Import!E29541","v":0}]
[79,{"$f":"Import!E28942","v":"Select"},{"$f":"Import!E29042","v":"Select"},{"$f":"Import!E29142","v":"Select"},{"$f":"Import!E29242","v":"Select"},{"$f":"Import!E29342","v":0},{"$f":"Import!E29442","v":0},{"$f":"Import!E29542","v":0}]
[80,{"$f":"Import!E28943","v":"Select"},{"$f":"Import!E29043","v":"Select"},{"$f":"Import!E29143","v":"Select"},{"$f":"Import!E29243","v":"Select"},{"$f":"Import!E29343","v":0},{"$f":"Import!E29443","v":0},{"$f":"Import!E29543","v":0}]
[81,{"$f":"Import!E28944","v":"Select"},{"$f":"Import!E29044","v":"Select"},{"$f":"Import!E29144","v":"Select"},{"$f":"Import!E29244","v":"Select"},{"$f":"Import!E29344","v":0},{"$f":"Import!E29444","v":0},{"$f":"Import!E29544","v":0}]
[82,{"$f":"Import!E28945","v":"Select"},{"$f":"Import!E29045","v":"Select"},{"$f":"Import!E29145","v":"Select"},{"$f":"Import!E29245","v":"Select"},{"$f":"Import!E29345","v":0},{"$f":"Import!E29445","v":0},{"$f":"Import!E29545","v":0}]
[83,{"$f":"Import!E28946","v":"Select"},{"$f":"Import!E29046","v":"Select"},{"$f":"Import!E29146","v":"Select"},{"$f":"Import!E29246","v":"Select"},{"$f":"Import!E29346","v":0},{"$f":"Import!E29446","v":0},{"$f":"Import!E29546","v":0}]
[84,{"$f":"Import!E28947","v":"Select"},{"$f":"Import!E29047","v":"Select"},{"$f":"Import!E29147","v":"Select"},{"$f":"Import!E29247","v":"Select"},{"$f":"Import!E29347","v":0},{"$f":"Import!E29447","v":0},{"$f":"Import!E29547","v":0}]
[85,{"$f":"Import!E28948","v":"Select"},{"$f":"Import!E29048","v":"Select"},{"$f":"Import!E29148","v":"Select"},{"$f":"Import!E29248","v":"Select"},{"$f":"Import!E29348","v":0},{"$f":"Import!E29448","v":0},{"$f":"Import!E29548","v":0}]
[86,{"$f":"Import!E28949","v":"Select"},{"$f":"Import!E29049","v":"Select"},{"$f":"Import!E29149","v":"Select"},{"$f":"Import!E29249","v":"Select"},{"$f":"Import!E29349","v":0},{"$f":"Import!E29449","v":0},{"$f":"Import!E29549","v":0}]
[87,{"$f":"Import!E28950","v":"Select"},{"$f":"Import!E29050","v":"Select"},{"$f":"Import!E29150","v":"Select"},{"$f":"Import!E29250","v":"Select"},{"$f":"Import!E29350","v":0},{"$f":"Import!E29450","v":0},{"$f":"Import!E29550","v":0}]
[88,{"$f":"Import!E28951","v":"Select"},{"$f":"Import!E29051","v":"Select"},{"$f":"Import!E29151","v":"Select"},{"$f":"Import!E29251","v":"Select"},{"$f":"Import!E29351","v":0},{"$f":"Import!E29451","v":0},{"$f":"Import!E29551","v":0}]
[89,{"$f":"Import!E28952","v":"Select"},{"$f":"Import!E29052","v":"Select"},{"$f":"Import!E29152","v":"Select"},{"$f":"Import!E29252","v":"Select"},{"$f":"Import!E29352","v":0},{"$f":"Import!E29452","v":0},{"$f":"Import!E29552","v":0}]
[90,{"$f":"Import!E28953","v":"Select"},{"$f":"Import!E29053","v":"Select"},{"$f":"Import!E29153","v":"Select"},{"$f":"Import!E29253","v":"Select"},{"$f":"Import!E29353","v":0},{"$f":"Import!E29453","v":0},{"$f":"Import!E29553","v":0}]
[91,{"$f":"Import!E28954","v":"Select"},{"$f":"Import!E29054","v":"Select"},{"$f":"Import!E29154","v":"Select"},{"$f":"Import!E29254","v":"Select"},{"$f":"Import!E29354","v":0},{"$f":"Import!E29454","v":0},{"$f":"Import!E29554","v":0}]
[92,{"$f":"Import!E28955","v":"Select"},{"$f":"Import!E29055","v":"Select"},{"$f":"Import!E29155","v":"Select"},{"$f":"Import!E29255","v":"Select"},{"$f":"Import!E29355","v":0},{"$f":"Import!E29455","v":0},{"$f":"Import!E29555","v":0}]
[93,{"$f":"Import!E28956","v":"Select"},{"$f":"Import!E29056","v":"Select"},{"$f":"Import!E29156","v":"Select"},{"$f":"Import!E29256","v":"Select"},{"$f":"Import!E29356","v":0},{"$f":"Import!E29456","v":0},{"$f":"Import!E29556","v":0}]
[94,{"$f":"Import!E28957","v":"Select"},{"$f":"Import!E29057","v":"Select"},{"$f":"Import!E29157","v":"Select"},{"$f":"Import!E29257","v":"Select"},{"$f":"Import!E29357","v":0},{"$f":"Import!E29457","v":0},{"$f":"Import!E29557","v":0}]
[95,{"$f":"Import!E28958","v":"Select"},{"$f":"Import!E29058","v":"Select"},{"$f":"Import!E29158","v":"Select"},{"$f":"Import!E29258","v":"Select"},{"$f":"Import!E29358","v":0},{"$f":"Import!E29458","v":0},{"$f":"Import!E29558","v":0}]
[96,{"$f":"Import!E28959","v":"Select"},{"$f":"Import!E29059","v":"Select"},{"$f":"Import!E29159","v":"Select"},{"$f":"Import!E29259","v":"Select"},{"$f":"Import!E29359","v":0},{"$f":"Import!E29459","v":0},{"$f":"Import!E29559","v":0}]
[97,{"$f":"Import!E28960","v":"Select"},{"$f":"Import!E29060","v":"Select"},{"$f":"Import!E29160","v":"Select"},{"$f":"Import!E29260","v":"Select"},{"$f":"Import!E29360","v":0},{"$f":"Import!E29460","v":0},{"$f":"Import!E29560","v":0}]
[98,{"$f":"Import!E28961","v":"Select"},{"$f":"Import!E29061","v":"Select"},{"$f":"Import!E29161","v":"Select"},{"$f":"Import!E29261","v":"Select"},{"$f":"Import!E29361","v":0},{"$f":"Import!E29461","v":0},{"$f":"Import!E29561","v":0}]
[99,{"$f":"Import!E28962","v":"Select"},{"$f":"Import!E29062","v":"Select"},{"$f":"Import!E29162","v":"Select"},{"$f":"Import!E29262","v":"Select"},{"$f":"Import!E29362","v":0},{"$f":"Import!E29462","v":0},{"$f":"Import!E29562","v":0}]
[100,{"$f":"Import!E28963","v":"Select"},{"$f":"Import!E29063","v":"Select"},{"$f":"Import!E29163","v":"Select"},{"$f":"Import!E29263","v":"Select"},{"$f":"Import!E29363","v":0},{"$f":"Import!E29463","v":0},{"$f":"Import!E29563","v":0}]
[]
[null,"Total Real Estate",null,null,null,{"$f":"SUM(F1345:F1444)","v":0},{"$f":"SUM(G1345:G1444)","v":0}]
[]
[null,"(H) OTHER ALTERNATIVE INVESTMENTS"]
[]
[null,null,"Enter # of Asset Types",{"$f":"Import!E29564","v":0}]
[null,null,null,null,null,{"$f":"YEAR($C$3)","v":2023},2023,"Weighted"]
[null,"Asset Type","Currency","Country","BSCR Rating","Nominal Amount","Fair Value","Average YTM","Effective Duration","Comments"]
[1,{"$f":"Import!E29565","v":"Select"},{"$f":"Import!E29665","v":"Select"},{"$f":"Import!E29765","v":"Select"},{"$f":"Import!E29865","v":"Select"},{"$f":"Import!E29965","v":0},{"$f":"Import!E30065","v":0},{"$f":"Import!E30165","v":0},{"$f":"Import!E30265","v":0},{"$f":"Import!E30365","v":0}]
[{"$f":"A1453+1","v":2},{"$f":"Import!E29566","v":"Select"},{"$f":"Import!E29666","v":"Select"},{"$f":"Import!E29766","v":"Select"},{"$f":"Import!E29866","v":"Select"},{"$f":"Import!E29966","v":0},{"$f":"Import!E30066","v":0},{"$f":"Import!E30166","v":0},{"$f":"Import!E30266","v":0},{"$f":"Import!E30366","v":0}]
[{"$f":"A1454+1","v":3},{"$f":"Import!E29567","v":"Select"},{"$f":"Import!E29667","v":"Select"},{"$f":"Import!E29767","v":"Select"},{"$f":"Import!E29867","v":"Select"},{"$f":"Import!E29967","v":0},{"$f":"Import!E30067","v":0},{"$f":"Import!E30167","v":0},{"$f":"Import!E30267","v":0},{"$f":"Import!E30367","v":0}]
[4,{"$f":"Import!E29568","v":"Select"},{"$f":"Import!E29668","v":"Select"},{"$f":"Import!E29768","v":"Select"},{"$f":"Import!E29868","v":"Select"},{"$f":"Import!E29968","v":0},{"$f":"Import!E30068","v":0},{"$f":"Import!E30168","v":0},{"$f":"Import!E30268","v":0},{"$f":"Import!E30368","v":0}]
[5,{"$f":"Import!E29569","v":"Select"},{"$f":"Import!E29669","v":"Select"},{"$f":"Import!E29769","v":"Select"},{"$f":"Import!E29869","v":"Select"},{"$f":"Import!E29969","v":0},{"$f":"Import!E30069","v":0},{"$f":"Import!E30169","v":0},{"$f":"Import!E30269","v":0},{"$f":"Import!E30369","v":0}]
[6,{"$f":"Import!E29570","v":"Select"},{"$f":"Import!E29670","v":"Select"},{"$f":"Import!E29770","v":"Select"},{"$f":"Import!E29870","v":"Select"},{"$f":"Import!E29970","v":0},{"$f":"Import!E30070","v":0},{"$f":"Import!E30170","v":0},{"$f":"Import!E30270","v":0},{"$f":"Import!E30370","v":0}]
[7,{"$f":"Import!E29571","v":"Select"},{"$f":"Import!E29671","v":"Select"},{"$f":"Import!E29771","v":"Select"},{"$f":"Import!E29871","v":"Select"},{"$f":"Import!E29971","v":0},{"$f":"Import!E30071","v":0},{"$f":"Import!E30171","v":0},{"$f":"Import!E30271","v":0},{"$f":"Import!E30371","v":0}]
[8,{"$f":"Import!E29572","v":"Select"},{"$f":"Import!E29672","v":"Select"},{"$f":"Import!E29772","v":"Select"},{"$f":"Import!E29872","v":"Select"},{"$f":"Import!E29972","v":0},{"$f":"Import!E30072","v":0},{"$f":"Import!E30172","v":0},{"$f":"Import!E30272","v":0},{"$f":"Import!E30372","v":0}]
[9,{"$f":"Import!E29573","v":"Select"},{"$f":"Import!E29673","v":"Select"},{"$f":"Import!E29773","v":"Select"},{"$f":"Import!E29873","v":"Select"},{"$f":"Import!E29973","v":0},{"$f":"Import!E30073","v":0},{"$f":"Import!E30173","v":0},{"$f":"Import!E30273","v":0},{"$f":"Import!E30373","v":0}]
[10,{"$f":"Import!E29574","v":"Select"},{"$f":"Import!E29674","v":"Select"},{"$f":"Import!E29774","v":"Select"},{"$f":"Import!E29874","v":"Select"},{"$f":"Import!E29974","v":0},{"$f":"Import!E30074","v":0},{"$f":"Import!E30174","v":0},{"$f":"Import!E30274","v":0},{"$f":"Import!E30374","v":0}]
[11,{"$f":"Import!E29575","v":"Select"},{"$f":"Import!E29675","v":"Select"},{"$f":"Import!E29775","v":"Select"},{"$f":"Import!E29875","v":"Select"},{"$f":"Import!E29975","v":0},{"$f":"Import!E30075","v":0},{"$f":"Import!E30175","v":0},{"$f":"Import!E30275","v":0},{"$f":"Import!E30375","v":0}]
[12,{"$f":"Import!E29576","v":"Select"},{"$f":"Import!E29676","v":"Select"},{"$f":"Import!E29776","v":"Select"},{"$f":"Import!E29876","v":"Select"},{"$f":"Import!E29976","v":0},{"$f":"Import!E30076","v":0},{"$f":"Import!E30176","v":0},{"$f":"Import!E30276","v":0},{"$f":"Import!E30376","v":0}]
[13,{"$f":"Import!E29577","v":"Select"},{"$f":"Import!E29677","v":"Select"},{"$f":"Import!E29777","v":"Select"},{"$f":"Import!E29877","v":"Select"},{"$f":"Import!E29977","v":0},{"$f":"Import!E30077","v":0},{"$f":"Import!E30177","v":0},{"$f":"Import!E30277","v":0},{"$f":"Import!E30377","v":0}]
[14,{"$f":"Import!E29578","v":"Select"},{"$f":"Import!E29678","v":"Select"},{"$f":"Import!E29778","v":"Select"},{"$f":"Import!E29878","v":"Select"},{"$f":"Import!E29978","v":0},{"$f":"Import!E30078","v":0},{"$f":"Import!E30178","v":0},{"$f":"Import!E30278","v":0},{"$f":"Import!E30378","v":0}]
[15,{"$f":"Import!E29579","v":"Select"},{"$f":"Import!E29679","v":"Select"},{"$f":"Import!E29779","v":"Select"},{"$f":"Import!E29879","v":"Select"},{"$f":"Import!E29979","v":0},{"$f":"Import!E30079","v":0},{"$f":"Import!E30179","v":0},{"$f":"Import!E30279","v":0},{"$f":"Import!E30379","v":0}]
[16,{"$f":"Import!E29580","v":"Select"},{"$f":"Import!E29680","v":"Select"},{"$f":"Import!E29780","v":"Select"},{"$f":"Import!E29880","v":"Select"},{"$f":"Import!E29980","v":0},{"$f":"Import!E30080","v":0},{"$f":"Import!E30180","v":0},{"$f":"Import!E30280","v":0},{"$f":"Import!E30380","v":0}]
[17,{"$f":"Import!E29581","v":"Select"},{"$f":"Import!E29681","v":"Select"},{"$f":"Import!E29781","v":"Select"},{"$f":"Import!E29881","v":"Select"},{"$f":"Import!E29981","v":0},{"$f":"Import!E30081","v":0},{"$f":"Import!E30181","v":0},{"$f":"Import!E30281","v":0},{"$f":"Import!E30381","v":0}]
[18,{"$f":"Import!E29582","v":"Select"},{"$f":"Import!E29682","v":"Select"},{"$f":"Import!E29782","v":"Select"},{"$f":"Import!E29882","v":"Select"},{"$f":"Import!E29982","v":0},{"$f":"Import!E30082","v":0},{"$f":"Import!E30182","v":0},{"$f":"Import!E30282","v":0},{"$f":"Import!E30382","v":0}]
[19,{"$f":"Import!E29583","v":"Select"},{"$f":"Import!E29683","v":"Select"},{"$f":"Import!E29783","v":"Select"},{"$f":"Import!E29883","v":"Select"},{"$f":"Import!E29983","v":0},{"$f":"Import!E30083","v":0},{"$f":"Import!E30183","v":0},{"$f":"Import!E30283","v":0},{"$f":"Import!E30383","v":0}]
[20,{"$f":"Import!E29584","v":"Select"},{"$f":"Import!E29684","v":"Select"},{"$f":"Import!E29784","v":"Select"},{"$f":"Import!E29884","v":"Select"},{"$f":"Import!E29984","v":0},{"$f":"Import!E30084","v":0},{"$f":"Import!E30184","v":0},{"$f":"Import!E30284","v":0},{"$f":"Import!E30384","v":0}]
[21,{"$f":"Import!E29585","v":"Select"},{"$f":"Import!E29685","v":"Select"},{"$f":"Import!E29785","v":"Select"},{"$f":"Import!E29885","v":"Select"},{"$f":"Import!E29985","v":0},{"$f":"Import!E30085","v":0},{"$f":"Import!E30185","v":0},{"$f":"Import!E30285","v":0},{"$f":"Import!E30385","v":0}]
[22,{"$f":"Import!E29586","v":"Select"},{"$f":"Import!E29686","v":"Select"},{"$f":"Import!E29786","v":"Select"},{"$f":"Import!E29886","v":"Select"},{"$f":"Import!E29986","v":0},{"$f":"Import!E30086","v":0},{"$f":"Import!E30186","v":0},{"$f":"Import!E30286","v":0},{"$f":"Import!E30386","v":0}]
[23,{"$f":"Import!E29587","v":"Select"},{"$f":"Import!E29687","v":"Select"},{"$f":"Import!E29787","v":"Select"},{"$f":"Import!E29887","v":"Select"},{"$f":"Import!E29987","v":0},{"$f":"Import!E30087","v":0},{"$f":"Import!E30187","v":0},{"$f":"Import!E30287","v":0},{"$f":"Import!E30387","v":0}]
[24,{"$f":"Import!E29588","v":"Select"},{"$f":"Import!E29688","v":"Select"},{"$f":"Import!E29788","v":"Select"},{"$f":"Import!E29888","v":"Select"},{"$f":"Import!E29988","v":0},{"$f":"Import!E30088","v":0},{"$f":"Import!E30188","v":0},{"$f":"Import!E30288","v":0},{"$f":"Import!E30388","v":0}]
[25,{"$f":"Import!E29589","v":"Select"},{"$f":"Import!E29689","v":"Select"},{"$f":"Import!E29789","v":"Select"},{"$f":"Import!E29889","v":"Select"},{"$f":"Import!E29989","v":0},{"$f":"Import!E30089","v":0},{"$f":"Import!E30189","v":0},{"$f":"Import!E30289","v":0},{"$f":"Import!E30389","v":0}]
[26,{"$f":"Import!E29590","v":"Select"},{"$f":"Import!E29690","v":"Select"},{"$f":"Import!E29790","v":"Select"},{"$f":"Import!E29890","v":"Select"},{"$f":"Import!E29990","v":0},{"$f":"Import!E30090","v":0},{"$f":"Import!E30190","v":0},{"$f":"Import!E30290","v":0},{"$f":"Import!E30390","v":0}]
[27,{"$f":"Import!E29591","v":"Select"},{"$f":"Import!E29691","v":"Select"},{"$f":"Import!E29791","v":"Select"},{"$f":"Import!E29891","v":"Select"},{"$f":"Import!E29991","v":0},{"$f":"Import!E30091","v":0},{"$f":"Import!E30191","v":0},{"$f":"Import!E30291","v":0},{"$f":"Import!E30391","v":0}]
[28,{"$f":"Import!E29592","v":"Select"},{"$f":"Import!E29692","v":"Select"},{"$f":"Import!E29792","v":"Select"},{"$f":"Import!E29892","v":"Select"},{"$f":"Import!E29992","v":0},{"$f":"Import!E30092","v":0},{"$f":"Import!E30192","v":0},{"$f":"Import!E30292","v":0},{"$f":"Import!E30392","v":0}]
[29,{"$f":"Import!E29593","v":"Select"},{"$f":"Import!E29693","v":"Select"},{"$f":"Import!E29793","v":"Select"},{"$f":"Import!E29893","v":"Select"},{"$f":"Import!E29993","v":0},{"$f":"Import!E30093","v":0},{"$f":"Import!E30193","v":0},{"$f":"Import!E30293","v":0},{"$f":"Import!E30393","v":0}]
[30,{"$f":"Import!E29594","v":"Select"},{"$f":"Import!E29694","v":"Select"},{"$f":"Import!E29794","v":"Select"},{"$f":"Import!E29894","v":"Select"},{"$f":"Import!E29994","v":0},{"$f":"Import!E30094","v":0},{"$f":"Import!E30194","v":0},{"$f":"Import!E30294","v":0},{"$f":"Import!E30394","v":0}]
[31,{"$f":"Import!E29595","v":"Select"},{"$f":"Import!E29695","v":"Select"},{"$f":"Import!E29795","v":"Select"},{"$f":"Import!E29895","v":"Select"},{"$f":"Import!E29995","v":0},{"$f":"Import!E30095","v":0},{"$f":"Import!E30195","v":0},{"$f":"Import!E30295","v":0},{"$f":"Import!E30395","v":0}]
[32,{"$f":"Import!E29596","v":"Select"},{"$f":"Import!E29696","v":"Select"},{"$f":"Import!E29796","v":"Select"},{"$f":"Import!E29896","v":"Select"},{"$f":"Import!E29996","v":0},{"$f":"Import!E30096","v":0},{"$f":"Import!E30196","v":0},{"$f":"Import!E30296","v":0},{"$f":"Import!E30396","v":0}]
[33,{"$f":"Import!E29597","v":"Select"},{"$f":"Import!E29697","v":"Select"},{"$f":"Import!E29797","v":"Select"},{"$f":"Import!E29897","v":"Select"},{"$f":"Import!E29997","v":0},{"$f":"Import!E30097","v":0},{"$f":"Import!E30197","v":0},{"$f":"Import!E30297","v":0},{"$f":"Import!E30397","v":0}]
[34,{"$f":"Import!E29598","v":"Select"},{"$f":"Import!E29698","v":"Select"},{"$f":"Import!E29798","v":"Select"},{"$f":"Import!E29898","v":"Select"},{"$f":"Import!E29998","v":0},{"$f":"Import!E30098","v":0},{"$f":"Import!E30198","v":0},{"$f":"Import!E30298","v":0},{"$f":"Import!E30398","v":0}]
[35,{"$f":"Import!E29599","v":"Select"},{"$f":"Import!E29699","v":"Select"},{"$f":"Import!E29799","v":"Select"},{"$f":"Import!E29899","v":"Select"},{"$f":"Import!E29999","v":0},{"$f":"Import!E30099","v":0},{"$f":"Import!E30199","v":0},{"$f":"Import!E30299","v":0},{"$f":"Import!E30399","v":0}]
[36,{"$f":"Import!E29600","v":"Select"},{"$f":"Import!E29700","v":"Select"},{"$f":"Import!E29800","v":"Select"},{"$f":"Import!E29900","v":"Select"},{"$f":"Import!E30000","v":0},{"$f":"Import!E30100","v":0},{"$f":"Import!E30200","v":0},{"$f":"Import!E30300","v":0},{"$f":"Import!E30400","v":0}]
[37,{"$f":"Import!E29601","v":"Select"},{"$f":"Import!E29701","v":"Select"},{"$f":"Import!E29801","v":"Select"},{"$f":"Import!E29901","v":"Select"},{"$f":"Import!E30001","v":0},{"$f":"Import!E30101","v":0},{"$f":"Import!E30201","v":0},{"$f":"Import!E30301","v":0},{"$f":"Import!E30401","v":0}]
[38,{"$f":"Import!E29602","v":"Select"},{"$f":"Import!E29702","v":"Select"},{"$f":"Import!E29802","v":"Select"},{"$f":"Import!E29902","v":"Select"},{"$f":"Import!E30002","v":0},{"$f":"Import!E30102","v":0},{"$f":"Import!E30202","v":0},{"$f":"Import!E30302","v":0},{"$f":"Import!E30402","v":0}]
[39,{"$f":"Import!E29603","v":"Select"},{"$f":"Import!E29703","v":"Select"},{"$f":"Import!E29803","v":"Select"},{"$f":"Import!E29903","v":"Select"},{"$f":"Import!E30003","v":0},{"$f":"Import!E30103","v":0},{"$f":"Import!E30203","v":0},{"$f":"Import!E30303","v":0},{"$f":"Import!E30403","v":0}]
[40,{"$f":"Import!E29604","v":"Select"},{"$f":"Import!E29704","v":"Select"},{"$f":"Import!E29804","v":"Select"},{"$f":"Import!E29904","v":"Select"},{"$f":"Import!E30004","v":0},{"$f":"Import!E30104","v":0},{"$f":"Import!E30204","v":0},{"$f":"Import!E30304","v":0},{"$f":"Import!E30404","v":0}]
[41,{"$f":"Import!E29605","v":"Select"},{"$f":"Import!E29705","v":"Select"},{"$f":"Import!E29805","v":"Select"},{"$f":"Import!E29905","v":"Select"},{"$f":"Import!E30005","v":0},{"$f":"Import!E30105","v":0},{"$f":"Import!E30205","v":0},{"$f":"Import!E30305","v":0},{"$f":"Import!E30405","v":0}]
[42,{"$f":"Import!E29606","v":"Select"},{"$f":"Import!E29706","v":"Select"},{"$f":"Import!E29806","v":"Select"},{"$f":"Import!E29906","v":"Select"},{"$f":"Import!E30006","v":0},{"$f":"Import!E30106","v":0},{"$f":"Import!E30206","v":0},{"$f":"Import!E30306","v":0},{"$f":"Import!E30406","v":0}]
[43,{"$f":"Import!E29607","v":"Select"},{"$f":"Import!E29707","v":"Select"},{"$f":"Import!E29807","v":"Select"},{"$f":"Import!E29907","v":"Select"},{"$f":"Import!E30007","v":0},{"$f":"Import!E30107","v":0},{"$f":"Import!E30207","v":0},{"$f":"Import!E30307","v":0},{"$f":"Import!E30407","v":0}]
[44,{"$f":"Import!E29608","v":"Select"},{"$f":"Import!E29708","v":"Select"},{"$f":"Import!E29808","v":"Select"},{"$f":"Import!E29908","v":"Select"},{"$f":"Import!E30008","v":0},{"$f":"Import!E30108","v":0},{"$f":"Import!E30208","v":0},{"$f":"Import!E30308","v":0},{"$f":"Import!E30408","v":0}]
[45,{"$f":"Import!E29609","v":"Select"},{"$f":"Import!E29709","v":"Select"},{"$f":"Import!E29809","v":"Select"},{"$f":"Import!E29909","v":"Select"},{"$f":"Import!E30009","v":0},{"$f":"Import!E30109","v":0},{"$f":"Import!E30209","v":0},{"$f":"Import!E30309","v":0},{"$f":"Import!E30409","v":0}]
[46,{"$f":"Import!E29610","v":"Select"},{"$f":"Import!E29710","v":"Select"},{"$f":"Import!E29810","v":"Select"},{"$f":"Import!E29910","v":"Select"},{"$f":"Import!E30010","v":0},{"$f":"Import!E30110","v":0},{"$f":"Import!E30210","v":0},{"$f":"Import!E30310","v":0},{"$f":"Import!E30410","v":0}]
[47,{"$f":"Import!E29611","v":"Select"},{"$f":"Import!E29711","v":"Select"},{"$f":"Import!E29811","v":"Select"},{"$f":"Import!E29911","v":"Select"},{"$f":"Import!E30011","v":0},{"$f":"Import!E30111","v":0},{"$f":"Import!E30211","v":0},{"$f":"Import!E30311","v":0},{"$f":"Import!E30411","v":0}]
[48,{"$f":"Import!E29612","v":"Select"},{"$f":"Import!E29712","v":"Select"},{"$f":"Import!E29812","v":"Select"},{"$f":"Import!E29912","v":"Select"},{"$f":"Import!E30012","v":0},{"$f":"Import!E30112","v":0},{"$f":"Import!E30212","v":0},{"$f":"Import!E30312","v":0},{"$f":"Import!E30412","v":0}]
[49,{"$f":"Import!E29613","v":"Select"},{"$f":"Import!E29713","v":"Select"},{"$f":"Import!E29813","v":"Select"},{"$f":"Import!E29913","v":"Select"},{"$f":"Import!E30013","v":0},{"$f":"Import!E30113","v":0},{"$f":"Import!E30213","v":0},{"$f":"Import!E30313","v":0},{"$f":"Import!E30413","v":0}]
[50,{"$f":"Import!E29614","v":"Select"},{"$f":"Import!E29714","v":"Select"},{"$f":"Import!E29814","v":"Select"},{"$f":"Import!E29914","v":"Select"},{"$f":"Import!E30014","v":0},{"$f":"Import!E30114","v":0},{"$f":"Import!E30214","v":0},{"$f":"Import!E30314","v":0},{"$f":"Import!E30414","v":0}]
[51,{"$f":"Import!E29615","v":"Select"},{"$f":"Import!E29715","v":"Select"},{"$f":"Import!E29815","v":"Select"},{"$f":"Import!E29915","v":"Select"},{"$f":"Import!E30015","v":0},{"$f":"Import!E30115","v":0},{"$f":"Import!E30215","v":0},{"$f":"Import!E30315","v":0},{"$f":"Import!E30415","v":0}]
[52,{"$f":"Import!E29616","v":"Select"},{"$f":"Import!E29716","v":"Select"},{"$f":"Import!E29816","v":"Select"},{"$f":"Import!E29916","v":"Select"},{"$f":"Import!E30016","v":0},{"$f":"Import!E30116","v":0},{"$f":"Import!E30216","v":0},{"$f":"Import!E30316","v":0},{"$f":"Import!E30416","v":0}]
[53,{"$f":"Import!E29617","v":"Select"},{"$f":"Import!E29717","v":"Select"},{"$f":"Import!E29817","v":"Select"},{"$f":"Import!E29917","v":"Select"},{"$f":"Import!E30017","v":0},{"$f":"Import!E30117","v":0},{"$f":"Import!E30217","v":0},{"$f":"Import!E30317","v":0},{"$f":"Import!E30417","v":0}]
[54,{"$f":"Import!E29618","v":"Select"},{"$f":"Import!E29718","v":"Select"},{"$f":"Import!E29818","v":"Select"},{"$f":"Import!E29918","v":"Select"},{"$f":"Import!E30018","v":0},{"$f":"Import!E30118","v":0},{"$f":"Import!E30218","v":0},{"$f":"Import!E30318","v":0},{"$f":"Import!E30418","v":0}]
[55,{"$f":"Import!E29619","v":"Select"},{"$f":"Import!E29719","v":"Select"},{"$f":"Import!E29819","v":"Select"},{"$f":"Import!E29919","v":"Select"},{"$f":"Import!E30019","v":0},{"$f":"Import!E30119","v":0},{"$f":"Import!E30219","v":0},{"$f":"Import!E30319","v":0},{"$f":"Import!E30419","v":0}]
[56,{"$f":"Import!E29620","v":"Select"},{"$f":"Import!E29720","v":"Select"},{"$f":"Import!E29820","v":"Select"},{"$f":"Import!E29920","v":"Select"},{"$f":"Import!E30020","v":0},{"$f":"Import!E30120","v":0},{"$f":"Import!E30220","v":0},{"$f":"Import!E30320","v":0},{"$f":"Import!E30420","v":0}]
[57,{"$f":"Import!E29621","v":"Select"},{"$f":"Import!E29721","v":"Select"},{"$f":"Import!E29821","v":"Select"},{"$f":"Import!E29921","v":"Select"},{"$f":"Import!E30021","v":0},{"$f":"Import!E30121","v":0},{"$f":"Import!E30221","v":0},{"$f":"Import!E30321","v":0},{"$f":"Import!E30421","v":0}]
[58,{"$f":"Import!E29622","v":"Select"},{"$f":"Import!E29722","v":"Select"},{"$f":"Import!E29822","v":"Select"},{"$f":"Import!E29922","v":"Select"},{"$f":"Import!E30022","v":0},{"$f":"Import!E30122","v":0},{"$f":"Import!E30222","v":0},{"$f":"Import!E30322","v":0},{"$f":"Import!E30422","v":0}]
[59,{"$f":"Import!E29623","v":"Select"},{"$f":"Import!E29723","v":"Select"},{"$f":"Import!E29823","v":"Select"},{"$f":"Import!E29923","v":"Select"},{"$f":"Import!E30023","v":0},{"$f":"Import!E30123","v":0},{"$f":"Import!E30223","v":0},{"$f":"Import!E30323","v":0},{"$f":"Import!E30423","v":0}]
[60,{"$f":"Import!E29624","v":"Select"},{"$f":"Import!E29724","v":"Select"},{"$f":"Import!E29824","v":"Select"},{"$f":"Import!E29924","v":"Select"},{"$f":"Import!E30024","v":0},{"$f":"Import!E30124","v":0},{"$f":"Import!E30224","v":0},{"$f":"Import!E30324","v":0},{"$f":"Import!E30424","v":0}]
[61,{"$f":"Import!E29625","v":"Select"},{"$f":"Import!E29725","v":"Select"},{"$f":"Import!E29825","v":"Select"},{"$f":"Import!E29925","v":"Select"},{"$f":"Import!E30025","v":0},{"$f":"Import!E30125","v":0},{"$f":"Import!E30225","v":0},{"$f":"Import!E30325","v":0},{"$f":"Import!E30425","v":0}]
[62,{"$f":"Import!E29626","v":"Select"},{"$f":"Import!E29726","v":"Select"},{"$f":"Import!E29826","v":"Select"},{"$f":"Import!E29926","v":"Select"},{"$f":"Import!E30026","v":0},{"$f":"Import!E30126","v":0},{"$f":"Import!E30226","v":0},{"$f":"Import!E30326","v":0},{"$f":"Import!E30426","v":0}]
[63,{"$f":"Import!E29627","v":"Select"},{"$f":"Import!E29727","v":"Select"},{"$f":"Import!E29827","v":"Select"},{"$f":"Import!E29927","v":"Select"},{"$f":"Import!E30027","v":0},{"$f":"Import!E30127","v":0},{"$f":"Import!E30227","v":0},{"$f":"Import!E30327","v":0},{"$f":"Import!E30427","v":0}]
[64,{"$f":"Import!E29628","v":"Select"},{"$f":"Import!E29728","v":"Select"},{"$f":"Import!E29828","v":"Select"},{"$f":"Import!E29928","v":"Select"},{"$f":"Import!E30028","v":0},{"$f":"Import!E30128","v":0},{"$f":"Import!E30228","v":0},{"$f":"Import!E30328","v":0},{"$f":"Import!E30428","v":0}]
[65,{"$f":"Import!E29629","v":"Select"},{"$f":"Import!E29729","v":"Select"},{"$f":"Import!E29829","v":"Select"},{"$f":"Import!E29929","v":"Select"},{"$f":"Import!E30029","v":0},{"$f":"Import!E30129","v":0},{"$f":"Import!E30229","v":0},{"$f":"Import!E30329","v":0},{"$f":"Import!E30429","v":0}]
[66,{"$f":"Import!E29630","v":"Select"},{"$f":"Import!E29730","v":"Select"},{"$f":"Import!E29830","v":"Select"},{"$f":"Import!E29930","v":"Select"},{"$f":"Import!E30030","v":0},{"$f":"Import!E30130","v":0},{"$f":"Import!E30230","v":0},{"$f":"Import!E30330","v":0},{"$f":"Import!E30430","v":0}]
[{"$f":"A1518+1","v":67},{"$f":"Import!E29631","v":"Select"},{"$f":"Import!E29731","v":"Select"},{"$f":"Import!E29831","v":"Select"},{"$f":"Import!E29931","v":"Select"},{"$f":"Import!E30031","v":0},{"$f":"Import!E30131","v":0},{"$f":"Import!E30231","v":0},{"$f":"Import!E30331","v":0},{"$f":"Import!E30431","v":0}]
[68,{"$f":"Import!E29632","v":"Select"},{"$f":"Import!E29732","v":"Select"},{"$f":"Import!E29832","v":"Select"},{"$f":"Import!E29932","v":"Select"},{"$f":"Import!E30032","v":0},{"$f":"Import!E30132","v":0},{"$f":"Import!E30232","v":0},{"$f":"Import!E30332","v":0},{"$f":"Import!E30432","v":0}]
[69,{"$f":"Import!E29633","v":"Select"},{"$f":"Import!E29733","v":"Select"},{"$f":"Import!E29833","v":"Select"},{"$f":"Import!E29933","v":"Select"},{"$f":"Import!E30033","v":0},{"$f":"Import!E30133","v":0},{"$f":"Import!E30233","v":0},{"$f":"Import!E30333","v":0},{"$f":"Import!E30433","v":0}]
[70,{"$f":"Import!E29634","v":"Select"},{"$f":"Import!E29734","v":"Select"},{"$f":"Import!E29834","v":"Select"},{"$f":"Import!E29934","v":"Select"},{"$f":"Import!E30034","v":0},{"$f":"Import!E30134","v":0},{"$f":"Import!E30234","v":0},{"$f":"Import!E30334","v":0},{"$f":"Import!E30434","v":0}]
[71,{"$f":"Import!E29635","v":"Select"},{"$f":"Import!E29735","v":"Select"},{"$f":"Import!E29835","v":"Select"},{"$f":"Import!E29935","v":"Select"},{"$f":"Import!E30035","v":0},{"$f":"Import!E30135","v":0},{"$f":"Import!E30235","v":0},{"$f":"Import!E30335","v":0},{"$f":"Import!E30435","v":0}]
[72,{"$f":"Import!E29636","v":"Select"},{"$f":"Import!E29736","v":"Select"},{"$f":"Import!E29836","v":"Select"},{"$f":"Import!E29936","v":"Select"},{"$f":"Import!E30036","v":0},{"$f":"Import!E30136","v":0},{"$f":"Import!E30236","v":0},{"$f":"Import!E30336","v":0},{"$f":"Import!E30436","v":0}]
[73,{"$f":"Import!E29637","v":"Select"},{"$f":"Import!E29737","v":"Select"},{"$f":"Import!E29837","v":"Select"},{"$f":"Import!E29937","v":"Select"},{"$f":"Import!E30037","v":0},{"$f":"Import!E30137","v":0},{"$f":"Import!E30237","v":0},{"$f":"Import!E30337","v":0},{"$f":"Import!E30437","v":0}]
[74,{"$f":"Import!E29638","v":"Select"},{"$f":"Import!E29738","v":"Select"},{"$f":"Import!E29838","v":"Select"},{"$f":"Import!E29938","v":"Select"},{"$f":"Import!E30038","v":0},{"$f":"Import!E30138","v":0},{"$f":"Import!E30238","v":0},{"$f":"Import!E30338","v":0},{"$f":"Import!E30438","v":0}]
[75,{"$f":"Import!E29639","v":"Select"},{"$f":"Import!E29739","v":"Select"},{"$f":"Import!E29839","v":"Select"},{"$f":"Import!E29939","v":"Select"},{"$f":"Import!E30039","v":0},{"$f":"Import!E30139","v":0},{"$f":"Import!E30239","v":0},{"$f":"Import!E30339","v":0},{"$f":"Import!E30439","v":0}]
[76,{"$f":"Import!E29640","v":"Select"},{"$f":"Import!E29740","v":"Select"},{"$f":"Import!E29840","v":"Select"},{"$f":"Import!E29940","v":"Select"},{"$f":"Import!E30040","v":0},{"$f":"Import!E30140","v":0},{"$f":"Import!E30240","v":0},{"$f":"Import!E30340","v":0},{"$f":"Import!E30440","v":0}]
[77,{"$f":"Import!E29641","v":"Select"},{"$f":"Import!E29741","v":"Select"},{"$f":"Import!E29841","v":"Select"},{"$f":"Import!E29941","v":"Select"},{"$f":"Import!E30041","v":0},{"$f":"Import!E30141","v":0},{"$f":"Import!E30241","v":0},{"$f":"Import!E30341","v":0},{"$f":"Import!E30441","v":0}]
[78,{"$f":"Import!E29642","v":"Select"},{"$f":"Import!E29742","v":"Select"},{"$f":"Import!E29842","v":"Select"},{"$f":"Import!E29942","v":"Select"},{"$f":"Import!E30042","v":0},{"$f":"Import!E30142","v":0},{"$f":"Import!E30242","v":0},{"$f":"Import!E30342","v":0},{"$f":"Import!E30442","v":0}]
[79,{"$f":"Import!E29643","v":"Select"},{"$f":"Import!E29743","v":"Select"},{"$f":"Import!E29843","v":"Select"},{"$f":"Import!E29943","v":"Select"},{"$f":"Import!E30043","v":0},{"$f":"Import!E30143","v":0},{"$f":"Import!E30243","v":0},{"$f":"Import!E30343","v":0},{"$f":"Import!E30443","v":0}]
[80,{"$f":"Import!E29644","v":"Select"},{"$f":"Import!E29744","v":"Select"},{"$f":"Import!E29844","v":"Select"},{"$f":"Import!E29944","v":"Select"},{"$f":"Import!E30044","v":0},{"$f":"Import!E30144","v":0},{"$f":"Import!E30244","v":0},{"$f":"Import!E30344","v":0},{"$f":"Import!E30444","v":0}]
[81,{"$f":"Import!E29645","v":"Select"},{"$f":"Import!E29745","v":"Select"},{"$f":"Import!E29845","v":"Select"},{"$f":"Import!E29945","v":"Select"},{"$f":"Import!E30045","v":0},{"$f":"Import!E30145","v":0},{"$f":"Import!E30245","v":0},{"$f":"Import!E30345","v":0},{"$f":"Import!E30445","v":0}]
[82,{"$f":"Import!E29646","v":"Select"},{"$f":"Import!E29746","v":"Select"},{"$f":"Import!E29846","v":"Select"},{"$f":"Import!E29946","v":"Select"},{"$f":"Import!E30046","v":0},{"$f":"Import!E30146","v":0},{"$f":"Import!E30246","v":0},{"$f":"Import!E30346","v":0},{"$f":"Import!E30446","v":0}]
[83,{"$f":"Import!E29647","v":"Select"},{"$f":"Import!E29747","v":"Select"},{"$f":"Import!E29847","v":"Select"},{"$f":"Import!E29947","v":"Select"},{"$f":"Import!E30047","v":0},{"$f":"Import!E30147","v":0},{"$f":"Import!E30247","v":0},{"$f":"Import!E30347","v":0},{"$f":"Import!E30447","v":0}]
[84,{"$f":"Import!E29648","v":"Select"},{"$f":"Import!E29748","v":"Select"},{"$f":"Import!E29848","v":"Select"},{"$f":"Import!E29948","v":"Select"},{"$f":"Import!E30048","v":0},{"$f":"Import!E30148","v":0},{"$f":"Import!E30248","v":0},{"$f":"Import!E30348","v":0},{"$f":"Import!E30448","v":0}]
[85,{"$f":"Import!E29649","v":"Select"},{"$f":"Import!E29749","v":"Select"},{"$f":"Import!E29849","v":"Select"},{"$f":"Import!E29949","v":"Select"},{"$f":"Import!E30049","v":0},{"$f":"Import!E30149","v":0},{"$f":"Import!E30249","v":0},{"$f":"Import!E30349","v":0},{"$f":"Import!E30449","v":0}]
[86,{"$f":"Import!E29650","v":"Select"},{"$f":"Import!E29750","v":"Select"},{"$f":"Import!E29850","v":"Select"},{"$f":"Import!E29950","v":"Select"},{"$f":"Import!E30050","v":0},{"$f":"Import!E30150","v":0},{"$f":"Import!E30250","v":0},{"$f":"Import!E30350","v":0},{"$f":"Import!E30450","v":0}]
[87,{"$f":"Import!E29651","v":"Select"},{"$f":"Import!E29751","v":"Select"},{"$f":"Import!E29851","v":"Select"},{"$f":"Import!E29951","v":"Select"},{"$f":"Import!E30051","v":0},{"$f":"Import!E30151","v":0},{"$f":"Import!E30251","v":0},{"$f":"Import!E30351","v":0},{"$f":"Import!E30451","v":0}]
[88,{"$f":"Import!E29652","v":"Select"},{"$f":"Import!E29752","v":"Select"},{"$f":"Import!E29852","v":"Select"},{"$f":"Import!E29952","v":"Select"},{"$f":"Import!E30052","v":0},{"$f":"Import!E30152","v":0},{"$f":"Import!E30252","v":0},{"$f":"Import!E30352","v":0},{"$f":"Import!E30452","v":0}]
[89,{"$f":"Import!E29653","v":"Select"},{"$f":"Import!E29753","v":"Select"},{"$f":"Import!E29853","v":"Select"},{"$f":"Import!E29953","v":"Select"},{"$f":"Import!E30053","v":0},{"$f":"Import!E30153","v":0},{"$f":"Import!E30253","v":0},{"$f":"Import!E30353","v":0},{"$f":"Import!E30453","v":0}]
[90,{"$f":"Import!E29654","v":"Select"},{"$f":"Import!E29754","v":"Select"},{"$f":"Import!E29854","v":"Select"},{"$f":"Import!E29954","v":"Select"},{"$f":"Import!E30054","v":0},{"$f":"Import!E30154","v":0},{"$f":"Import!E30254","v":0},{"$f":"Import!E30354","v":0},{"$f":"Import!E30454","v":0}]
[91,{"$f":"Import!E29655","v":"Select"},{"$f":"Import!E29755","v":"Select"},{"$f":"Import!E29855","v":"Select"},{"$f":"Import!E29955","v":"Select"},{"$f":"Import!E30055","v":0},{"$f":"Import!E30155","v":0},{"$f":"Import!E30255","v":0},{"$f":"Import!E30355","v":0},{"$f":"Import!E30455","v":0}]
[92,{"$f":"Import!E29656","v":"Select"},{"$f":"Import!E29756","v":"Select"},{"$f":"Import!E29856","v":"Select"},{"$f":"Import!E29956","v":"Select"},{"$f":"Import!E30056","v":0},{"$f":"Import!E30156","v":0},{"$f":"Import!E30256","v":0},{"$f":"Import!E30356","v":0},{"$f":"Import!E30456","v":0}]
[93,{"$f":"Import!E29657","v":"Select"},{"$f":"Import!E29757","v":"Select"},{"$f":"Import!E29857","v":"Select"},{"$f":"Import!E29957","v":"Select"},{"$f":"Import!E30057","v":0},{"$f":"Import!E30157","v":0},{"$f":"Import!E30257","v":0},{"$f":"Import!E30357","v":0},{"$f":"Import!E30457","v":0}]
[94,{"$f":"Import!E29658","v":"Select"},{"$f":"Import!E29758","v":"Select"},{"$f":"Import!E29858","v":"Select"},{"$f":"Import!E29958","v":"Select"},{"$f":"Import!E30058","v":0},{"$f":"Import!E30158","v":0},{"$f":"Import!E30258","v":0},{"$f":"Import!E30358","v":0},{"$f":"Import!E30458","v":0}]
[95,{"$f":"Import!E29659","v":"Select"},{"$f":"Import!E29759","v":"Select"},{"$f":"Import!E29859","v":"Select"},{"$f":"Import!E29959","v":"Select"},{"$f":"Import!E30059","v":0},{"$f":"Import!E30159","v":0},{"$f":"Import!E30259","v":0},{"$f":"Import!E30359","v":0},{"$f":"Import!E30459","v":0}]
[96,{"$f":"Import!E29660","v":"Select"},{"$f":"Import!E29760","v":"Select"},{"$f":"Import!E29860","v":"Select"},{"$f":"Import!E29960","v":"Select"},{"$f":"Import!E30060","v":0},{"$f":"Import!E30160","v":0},{"$f":"Import!E30260","v":0},{"$f":"Import!E30360","v":0},{"$f":"Import!E30460","v":0}]
[97,{"$f":"Import!E29661","v":"Select"},{"$f":"Import!E29761","v":"Select"},{"$f":"Import!E29861","v":"Select"},{"$f":"Import!E29961","v":"Select"},{"$f":"Import!E30061","v":0},{"$f":"Import!E30161","v":0},{"$f":"Import!E30261","v":0},{"$f":"Import!E30361","v":0},{"$f":"Import!E30461","v":0}]
[98,{"$f":"Import!E29662","v":"Select"},{"$f":"Import!E29762","v":"Select"},{"$f":"Import!E29862","v":"Select"},{"$f":"Import!E29962","v":"Select"},{"$f":"Import!E30062","v":0},{"$f":"Import!E30162","v":0},{"$f":"Import!E30262","v":0},{"$f":"Import!E30362","v":0},{"$f":"Import!E30462","v":0}]
[99,{"$f":"Import!E29663","v":"Select"},{"$f":"Import!E29763","v":"Select"},{"$f":"Import!E29863","v":"Select"},{"$f":"Import!E29963","v":"Select"},{"$f":"Import!E30063","v":0},{"$f":"Import!E30163","v":0},{"$f":"Import!E30263","v":0},{"$f":"Import!E30363","v":0},{"$f":"Import!E30463","v":0}]
[100,{"$f":"Import!E29664","v":"Select"},{"$f":"Import!E29764","v":"Select"},{"$f":"Import!E29864","v":"Select"},{"$f":"Import!E29964","v":"Select"},{"$f":"Import!E30064","v":0},{"$f":"Import!E30164","v":0},{"$f":"Import!E30264","v":0},{"$f":"Import!E30364","v":0},{"$f":"Import!E30464","v":0}]
[]
[null,"Total Other Alternative Investments",null,null,null,{"$f":"SUM(F1453:F1552)","v":0},{"$f":"SUM(G1453:G1552)","v":0},{"$f":"IFERROR(SUMPRODUCT(H1453:H1552,$G1453:$G1552)/SUM($G1453:$G1552),0)","v":0},{"$f":"IFERROR(SUMPRODUCT(I1453:I1552,$G1453:$G1552)/SUM($G1453:$G1552),0)","v":0}]
[]
[null,"(I) DERIVATIVES"]
[]
[null,null,"Enter # of Derivative Types",{"$f":"Import!E30465","v":0}]
[null,"Derivative Type","Underlying","Currency","Trading Category","Purpose","Position","Confirm line contains only derivatives with:",{"$f":"YEAR($C$3)&\" \nMarket Value\"","v":"2023 \nMarket Value"},"Gross Notional Value","Net Notional Value","Exposure (Dollar Delta, DV01, CS01","Comments"]
[1,{"$f":"Import!E30466","v":"Select"},{"$f":"Import!E30666","v":"Select"},{"$f":"Import!E30866","v":"Select"},{"$f":"Import!E31066","v":"Select"},{"$f":"Import!E31266","v":"Select"},{"$f":"Import!E31466","v":"Select"},{"$f":"Import!E31666","v":"Select"},{"$f":"Import!E31866","v":0},{"$f":"Import!E32066","v":0},{"$f":"Import!E32266","v":0},{"$f":"Import!E32466","v":0},{"$f":"Import!E32666","v":0}]
[{"$f":"A1560+1","v":2},{"$f":"Import!E30467","v":"Select"},{"$f":"Import!E30667","v":"Select"},{"$f":"Import!E30867","v":"Select"},{"$f":"Import!E31067","v":"Select"},{"$f":"Import!E31267","v":"Select"},{"$f":"Import!E31467","v":"Select"},{"$f":"Import!E31667","v":"Select"},{"$f":"Import!E31867","v":0},{"$f":"Import!E32067","v":0},{"$f":"Import!E32267","v":0},{"$f":"Import!E32467","v":0},{"$f":"Import!E32667","v":0}]
[{"$f":"A1561+1","v":3},{"$f":"Import!E30468","v":"Select"},{"$f":"Import!E30668","v":"Select"},{"$f":"Import!E30868","v":"Select"},{"$f":"Import!E31068","v":"Select"},{"$f":"Import!E31268","v":"Select"},{"$f":"Import!E31468","v":"Select"},{"$f":"Import!E31668","v":"Select"},{"$f":"Import!E31868","v":0},{"$f":"Import!E32068","v":0},{"$f":"Import!E32268","v":0},{"$f":"Import!E32468","v":0},{"$f":"Import!E32668","v":0}]
[4,{"$f":"Import!E30469","v":"Select"},{"$f":"Import!E30669","v":"Select"},{"$f":"Import!E30869","v":"Select"},{"$f":"Import!E31069","v":"Select"},{"$f":"Import!E31269","v":"Select"},{"$f":"Import!E31469","v":"Select"},{"$f":"Import!E31669","v":"Select"},{"$f":"Import!E31869","v":0},{"$f":"Import!E32069","v":0},{"$f":"Import!E32269","v":0},{"$f":"Import!E32469","v":0},{"$f":"Import!E32669","v":0}]
[5,{"$f":"Import!E30470","v":"Select"},{"$f":"Import!E30670","v":"Select"},{"$f":"Import!E30870","v":"Select"},{"$f":"Import!E31070","v":"Select"},{"$f":"Import!E31270","v":"Select"},{"$f":"Import!E31470","v":"Select"},{"$f":"Import!E31670","v":"Select"},{"$f":"Import!E31870","v":0},{"$f":"Import!E32070","v":0},{"$f":"Import!E32270","v":0},{"$f":"Import!E32470","v":0},{"$f":"Import!E32670","v":0}]
[6,{"$f":"Import!E30471","v":"Select"},{"$f":"Import!E30671","v":"Select"},{"$f":"Import!E30871","v":"Select"},{"$f":"Import!E31071","v":"Select"},{"$f":"Import!E31271","v":"Select"},{"$f":"Import!E31471","v":"Select"},{"$f":"Import!E31671","v":"Select"},{"$f":"Import!E31871","v":0},{"$f":"Import!E32071","v":0},{"$f":"Import!E32271","v":0},{"$f":"Import!E32471","v":0},{"$f":"Import!E32671","v":0}]
[7,{"$f":"Import!E30472","v":"Select"},{"$f":"Import!E30672","v":"Select"},{"$f":"Import!E30872","v":"Select"},{"$f":"Import!E31072","v":"Select"},{"$f":"Import!E31272","v":"Select"},{"$f":"Import!E31472","v":"Select"},{"$f":"Import!E31672","v":"Select"},{"$f":"Import!E31872","v":0},{"$f":"Import!E32072","v":0},{"$f":"Import!E32272","v":0},{"$f":"Import!E32472","v":0},{"$f":"Import!E32672","v":0}]
[8,{"$f":"Import!E30473","v":"Select"},{"$f":"Import!E30673","v":"Select"},{"$f":"Import!E30873","v":"Select"},{"$f":"Import!E31073","v":"Select"},{"$f":"Import!E31273","v":"Select"},{"$f":"Import!E31473","v":"Select"},{"$f":"Import!E31673","v":"Select"},{"$f":"Import!E31873","v":0},{"$f":"Import!E32073","v":0},{"$f":"Import!E32273","v":0},{"$f":"Import!E32473","v":0},{"$f":"Import!E32673","v":0}]
[9,{"$f":"Import!E30474","v":"Select"},{"$f":"Import!E30674","v":"Select"},{"$f":"Import!E30874","v":"Select"},{"$f":"Import!E31074","v":"Select"},{"$f":"Import!E31274","v":"Select"},{"$f":"Import!E31474","v":"Select"},{"$f":"Import!E31674","v":"Select"},{"$f":"Import!E31874","v":0},{"$f":"Import!E32074","v":0},{"$f":"Import!E32274","v":0},{"$f":"Import!E32474","v":0},{"$f":"Import!E32674","v":0}]
[10,{"$f":"Import!E30475","v":"Select"},{"$f":"Import!E30675","v":"Select"},{"$f":"Import!E30875","v":"Select"},{"$f":"Import!E31075","v":"Select"},{"$f":"Import!E31275","v":"Select"},{"$f":"Import!E31475","v":"Select"},{"$f":"Import!E31675","v":"Select"},{"$f":"Import!E31875","v":0},{"$f":"Import!E32075","v":0},{"$f":"Import!E32275","v":0},{"$f":"Import!E32475","v":0},{"$f":"Import!E32675","v":0}]
[11,{"$f":"Import!E30476","v":"Select"},{"$f":"Import!E30676","v":"Select"},{"$f":"Import!E30876","v":"Select"},{"$f":"Import!E31076","v":"Select"},{"$f":"Import!E31276","v":"Select"},{"$f":"Import!E31476","v":"Select"},{"$f":"Import!E31676","v":"Select"},{"$f":"Import!E31876","v":0},{"$f":"Import!E32076","v":0},{"$f":"Import!E32276","v":0},{"$f":"Import!E32476","v":0},{"$f":"Import!E32676","v":0}]
[12,{"$f":"Import!E30477","v":"Select"},{"$f":"Import!E30677","v":"Select"},{"$f":"Import!E30877","v":"Select"},{"$f":"Import!E31077","v":"Select"},{"$f":"Import!E31277","v":"Select"},{"$f":"Import!E31477","v":"Select"},{"$f":"Import!E31677","v":"Select"},{"$f":"Import!E31877","v":0},{"$f":"Import!E32077","v":0},{"$f":"Import!E32277","v":0},{"$f":"Import!E32477","v":0},{"$f":"Import!E32677","v":0}]
[13,{"$f":"Import!E30478","v":"Select"},{"$f":"Import!E30678","v":"Select"},{"$f":"Import!E30878","v":"Select"},{"$f":"Import!E31078","v":"Select"},{"$f":"Import!E31278","v":"Select"},{"$f":"Import!E31478","v":"Select"},{"$f":"Import!E31678","v":"Select"},{"$f":"Import!E31878","v":0},{"$f":"Import!E32078","v":0},{"$f":"Import!E32278","v":0},{"$f":"Import!E32478","v":0},{"$f":"Import!E32678","v":0}]
[14,{"$f":"Import!E30479","v":"Select"},{"$f":"Import!E30679","v":"Select"},{"$f":"Import!E30879","v":"Select"},{"$f":"Import!E31079","v":"Select"},{"$f":"Import!E31279","v":"Select"},{"$f":"Import!E31479","v":"Select"},{"$f":"Import!E31679","v":"Select"},{"$f":"Import!E31879","v":0},{"$f":"Import!E32079","v":0},{"$f":"Import!E32279","v":0},{"$f":"Import!E32479","v":0},{"$f":"Import!E32679","v":0}]
[15,{"$f":"Import!E30480","v":"Select"},{"$f":"Import!E30680","v":"Select"},{"$f":"Import!E30880","v":"Select"},{"$f":"Import!E31080","v":"Select"},{"$f":"Import!E31280","v":"Select"},{"$f":"Import!E31480","v":"Select"},{"$f":"Import!E31680","v":"Select"},{"$f":"Import!E31880","v":0},{"$f":"Import!E32080","v":0},{"$f":"Import!E32280","v":0},{"$f":"Import!E32480","v":0},{"$f":"Import!E32680","v":0}]
[16,{"$f":"Import!E30481","v":"Select"},{"$f":"Import!E30681","v":"Select"},{"$f":"Import!E30881","v":"Select"},{"$f":"Import!E31081","v":"Select"},{"$f":"Import!E31281","v":"Select"},{"$f":"Import!E31481","v":"Select"},{"$f":"Import!E31681","v":"Select"},{"$f":"Import!E31881","v":0},{"$f":"Import!E32081","v":0},{"$f":"Import!E32281","v":0},{"$f":"Import!E32481","v":0},{"$f":"Import!E32681","v":0}]
[17,{"$f":"Import!E30482","v":"Select"},{"$f":"Import!E30682","v":"Select"},{"$f":"Import!E30882","v":"Select"},{"$f":"Import!E31082","v":"Select"},{"$f":"Import!E31282","v":"Select"},{"$f":"Import!E31482","v":"Select"},{"$f":"Import!E31682","v":"Select"},{"$f":"Import!E31882","v":0},{"$f":"Import!E32082","v":0},{"$f":"Import!E32282","v":0},{"$f":"Import!E32482","v":0},{"$f":"Import!E32682","v":0}]
[18,{"$f":"Import!E30483","v":"Select"},{"$f":"Import!E30683","v":"Select"},{"$f":"Import!E30883","v":"Select"},{"$f":"Import!E31083","v":"Select"},{"$f":"Import!E31283","v":"Select"},{"$f":"Import!E31483","v":"Select"},{"$f":"Import!E31683","v":"Select"},{"$f":"Import!E31883","v":0},{"$f":"Import!E32083","v":0},{"$f":"Import!E32283","v":0},{"$f":"Import!E32483","v":0},{"$f":"Import!E32683","v":0}]
[19,{"$f":"Import!E30484","v":"Select"},{"$f":"Import!E30684","v":"Select"},{"$f":"Import!E30884","v":"Select"},{"$f":"Import!E31084","v":"Select"},{"$f":"Import!E31284","v":"Select"},{"$f":"Import!E31484","v":"Select"},{"$f":"Import!E31684","v":"Select"},{"$f":"Import!E31884","v":0},{"$f":"Import!E32084","v":0},{"$f":"Import!E32284","v":0},{"$f":"Import!E32484","v":0},{"$f":"Import!E32684","v":0}]
[20,{"$f":"Import!E30485","v":"Select"},{"$f":"Import!E30685","v":"Select"},{"$f":"Import!E30885","v":"Select"},{"$f":"Import!E31085","v":"Select"},{"$f":"Import!E31285","v":"Select"},{"$f":"Import!E31485","v":"Select"},{"$f":"Import!E31685","v":"Select"},{"$f":"Import!E31885","v":0},{"$f":"Import!E32085","v":0},{"$f":"Import!E32285","v":0},{"$f":"Import!E32485","v":0},{"$f":"Import!E32685","v":0}]
[21,{"$f":"Import!E30486","v":"Select"},{"$f":"Import!E30686","v":"Select"},{"$f":"Import!E30886","v":"Select"},{"$f":"Import!E31086","v":"Select"},{"$f":"Import!E31286","v":"Select"},{"$f":"Import!E31486","v":"Select"},{"$f":"Import!E31686","v":"Select"},{"$f":"Import!E31886","v":0},{"$f":"Import!E32086","v":0},{"$f":"Import!E32286","v":0},{"$f":"Import!E32486","v":0},{"$f":"Import!E32686","v":0}]
[22,{"$f":"Import!E30487","v":"Select"},{"$f":"Import!E30687","v":"Select"},{"$f":"Import!E30887","v":"Select"},{"$f":"Import!E31087","v":"Select"},{"$f":"Import!E31287","v":"Select"},{"$f":"Import!E31487","v":"Select"},{"$f":"Import!E31687","v":"Select"},{"$f":"Import!E31887","v":0},{"$f":"Import!E32087","v":0},{"$f":"Import!E32287","v":0},{"$f":"Import!E32487","v":0},{"$f":"Import!E32687","v":0}]
[23,{"$f":"Import!E30488","v":"Select"},{"$f":"Import!E30688","v":"Select"},{"$f":"Import!E30888","v":"Select"},{"$f":"Import!E31088","v":"Select"},{"$f":"Import!E31288","v":"Select"},{"$f":"Import!E31488","v":"Select"},{"$f":"Import!E31688","v":"Select"},{"$f":"Import!E31888","v":0},{"$f":"Import!E32088","v":0},{"$f":"Import!E32288","v":0},{"$f":"Import!E32488","v":0},{"$f":"Import!E32688","v":0}]
[24,{"$f":"Import!E30489","v":"Select"},{"$f":"Import!E30689","v":"Select"},{"$f":"Import!E30889","v":"Select"},{"$f":"Import!E31089","v":"Select"},{"$f":"Import!E31289","v":"Select"},{"$f":"Import!E31489","v":"Select"},{"$f":"Import!E31689","v":"Select"},{"$f":"Import!E31889","v":0},{"$f":"Import!E32089","v":0},{"$f":"Import!E32289","v":0},{"$f":"Import!E32489","v":0},{"$f":"Import!E32689","v":0}]
[25,{"$f":"Import!E30490","v":"Select"},{"$f":"Import!E30690","v":"Select"},{"$f":"Import!E30890","v":"Select"},{"$f":"Import!E31090","v":"Select"},{"$f":"Import!E31290","v":"Select"},{"$f":"Import!E31490","v":"Select"},{"$f":"Import!E31690","v":"Select"},{"$f":"Import!E31890","v":0},{"$f":"Import!E32090","v":0},{"$f":"Import!E32290","v":0},{"$f":"Import!E32490","v":0},{"$f":"Import!E32690","v":0}]
[26,{"$f":"Import!E30491","v":"Select"},{"$f":"Import!E30691","v":"Select"},{"$f":"Import!E30891","v":"Select"},{"$f":"Import!E31091","v":"Select"},{"$f":"Import!E31291","v":"Select"},{"$f":"Import!E31491","v":"Select"},{"$f":"Import!E31691","v":"Select"},{"$f":"Import!E31891","v":0},{"$f":"Import!E32091","v":0},{"$f":"Import!E32291","v":0},{"$f":"Import!E32491","v":0},{"$f":"Import!E32691","v":0}]
[27,{"$f":"Import!E30492","v":"Select"},{"$f":"Import!E30692","v":"Select"},{"$f":"Import!E30892","v":"Select"},{"$f":"Import!E31092","v":"Select"},{"$f":"Import!E31292","v":"Select"},{"$f":"Import!E31492","v":"Select"},{"$f":"Import!E31692","v":"Select"},{"$f":"Import!E31892","v":0},{"$f":"Import!E32092","v":0},{"$f":"Import!E32292","v":0},{"$f":"Import!E32492","v":0},{"$f":"Import!E32692","v":0}]
[28,{"$f":"Import!E30493","v":"Select"},{"$f":"Import!E30693","v":"Select"},{"$f":"Import!E30893","v":"Select"},{"$f":"Import!E31093","v":"Select"},{"$f":"Import!E31293","v":"Select"},{"$f":"Import!E31493","v":"Select"},{"$f":"Import!E31693","v":"Select"},{"$f":"Import!E31893","v":0},{"$f":"Import!E32093","v":0},{"$f":"Import!E32293","v":0},{"$f":"Import!E32493","v":0},{"$f":"Import!E32693","v":0}]
[29,{"$f":"Import!E30494","v":"Select"},{"$f":"Import!E30694","v":"Select"},{"$f":"Import!E30894","v":"Select"},{"$f":"Import!E31094","v":"Select"},{"$f":"Import!E31294","v":"Select"},{"$f":"Import!E31494","v":"Select"},{"$f":"Import!E31694","v":"Select"},{"$f":"Import!E31894","v":0},{"$f":"Import!E32094","v":0},{"$f":"Import!E32294","v":0},{"$f":"Import!E32494","v":0},{"$f":"Import!E32694","v":0}]
[30,{"$f":"Import!E30495","v":"Select"},{"$f":"Import!E30695","v":"Select"},{"$f":"Import!E30895","v":"Select"},{"$f":"Import!E31095","v":"Select"},{"$f":"Import!E31295","v":"Select"},{"$f":"Import!E31495","v":"Select"},{"$f":"Import!E31695","v":"Select"},{"$f":"Import!E31895","v":0},{"$f":"Import!E32095","v":0},{"$f":"Import!E32295","v":0},{"$f":"Import!E32495","v":0},{"$f":"Import!E32695","v":0}]
[31,{"$f":"Import!E30496","v":"Select"},{"$f":"Import!E30696","v":"Select"},{"$f":"Import!E30896","v":"Select"},{"$f":"Import!E31096","v":"Select"},{"$f":"Import!E31296","v":"Select"},{"$f":"Import!E31496","v":"Select"},{"$f":"Import!E31696","v":"Select"},{"$f":"Import!E31896","v":0},{"$f":"Import!E32096","v":0},{"$f":"Import!E32296","v":0},{"$f":"Import!E32496","v":0},{"$f":"Import!E32696","v":0}]
[32,{"$f":"Import!E30497","v":"Select"},{"$f":"Import!E30697","v":"Select"},{"$f":"Import!E30897","v":"Select"},{"$f":"Import!E31097","v":"Select"},{"$f":"Import!E31297","v":"Select"},{"$f":"Import!E31497","v":"Select"},{"$f":"Import!E31697","v":"Select"},{"$f":"Import!E31897","v":0},{"$f":"Import!E32097","v":0},{"$f":"Import!E32297","v":0},{"$f":"Import!E32497","v":0},{"$f":"Import!E32697","v":0}]
[33,{"$f":"Import!E30498","v":"Select"},{"$f":"Import!E30698","v":"Select"},{"$f":"Import!E30898","v":"Select"},{"$f":"Import!E31098","v":"Select"},{"$f":"Import!E31298","v":"Select"},{"$f":"Import!E31498","v":"Select"},{"$f":"Import!E31698","v":"Select"},{"$f":"Import!E31898","v":0},{"$f":"Import!E32098","v":0},{"$f":"Import!E32298","v":0},{"$f":"Import!E32498","v":0},{"$f":"Import!E32698","v":0}]
[34,{"$f":"Import!E30499","v":"Select"},{"$f":"Import!E30699","v":"Select"},{"$f":"Import!E30899","v":"Select"},{"$f":"Import!E31099","v":"Select"},{"$f":"Import!E31299","v":"Select"},{"$f":"Import!E31499","v":"Select"},{"$f":"Import!E31699","v":"Select"},{"$f":"Import!E31899","v":0},{"$f":"Import!E32099","v":0},{"$f":"Import!E32299","v":0},{"$f":"Import!E32499","v":0},{"$f":"Import!E32699","v":0}]
[35,{"$f":"Import!E30500","v":"Select"},{"$f":"Import!E30700","v":"Select"},{"$f":"Import!E30900","v":"Select"},{"$f":"Import!E31100","v":"Select"},{"$f":"Import!E31300","v":"Select"},{"$f":"Import!E31500","v":"Select"},{"$f":"Import!E31700","v":"Select"},{"$f":"Import!E31900","v":0},{"$f":"Import!E32100","v":0},{"$f":"Import!E32300","v":0},{"$f":"Import!E32500","v":0},{"$f":"Import!E32700","v":0}]
[36,{"$f":"Import!E30501","v":"Select"},{"$f":"Import!E30701","v":"Select"},{"$f":"Import!E30901","v":"Select"},{"$f":"Import!E31101","v":"Select"},{"$f":"Import!E31301","v":"Select"},{"$f":"Import!E31501","v":"Select"},{"$f":"Import!E31701","v":"Select"},{"$f":"Import!E31901","v":0},{"$f":"Import!E32101","v":0},{"$f":"Import!E32301","v":0},{"$f":"Import!E32501","v":0},{"$f":"Import!E32701","v":0}]
[37,{"$f":"Import!E30502","v":"Select"},{"$f":"Import!E30702","v":"Select"},{"$f":"Import!E30902","v":"Select"},{"$f":"Import!E31102","v":"Select"},{"$f":"Import!E31302","v":"Select"},{"$f":"Import!E31502","v":"Select"},{"$f":"Import!E31702","v":"Select"},{"$f":"Import!E31902","v":0},{"$f":"Import!E32102","v":0},{"$f":"Import!E32302","v":0},{"$f":"Import!E32502","v":0},{"$f":"Import!E32702","v":0}]
[38,{"$f":"Import!E30503","v":"Select"},{"$f":"Import!E30703","v":"Select"},{"$f":"Import!E30903","v":"Select"},{"$f":"Import!E31103","v":"Select"},{"$f":"Import!E31303","v":"Select"},{"$f":"Import!E31503","v":"Select"},{"$f":"Import!E31703","v":"Select"},{"$f":"Import!E31903","v":0},{"$f":"Import!E32103","v":0},{"$f":"Import!E32303","v":0},{"$f":"Import!E32503","v":0},{"$f":"Import!E32703","v":0}]
[39,{"$f":"Import!E30504","v":"Select"},{"$f":"Import!E30704","v":"Select"},{"$f":"Import!E30904","v":"Select"},{"$f":"Import!E31104","v":"Select"},{"$f":"Import!E31304","v":"Select"},{"$f":"Import!E31504","v":"Select"},{"$f":"Import!E31704","v":"Select"},{"$f":"Import!E31904","v":0},{"$f":"Import!E32104","v":0},{"$f":"Import!E32304","v":0},{"$f":"Import!E32504","v":0},{"$f":"Import!E32704","v":0}]
[40,{"$f":"Import!E30505","v":"Select"},{"$f":"Import!E30705","v":"Select"},{"$f":"Import!E30905","v":"Select"},{"$f":"Import!E31105","v":"Select"},{"$f":"Import!E31305","v":"Select"},{"$f":"Import!E31505","v":"Select"},{"$f":"Import!E31705","v":"Select"},{"$f":"Import!E31905","v":0},{"$f":"Import!E32105","v":0},{"$f":"Import!E32305","v":0},{"$f":"Import!E32505","v":0},{"$f":"Import!E32705","v":0}]
[41,{"$f":"Import!E30506","v":"Select"},{"$f":"Import!E30706","v":"Select"},{"$f":"Import!E30906","v":"Select"},{"$f":"Import!E31106","v":"Select"},{"$f":"Import!E31306","v":"Select"},{"$f":"Import!E31506","v":"Select"},{"$f":"Import!E31706","v":"Select"},{"$f":"Import!E31906","v":0},{"$f":"Import!E32106","v":0},{"$f":"Import!E32306","v":0},{"$f":"Import!E32506","v":0},{"$f":"Import!E32706","v":0}]
[42,{"$f":"Import!E30507","v":"Select"},{"$f":"Import!E30707","v":"Select"},{"$f":"Import!E30907","v":"Select"},{"$f":"Import!E31107","v":"Select"},{"$f":"Import!E31307","v":"Select"},{"$f":"Import!E31507","v":"Select"},{"$f":"Import!E31707","v":"Select"},{"$f":"Import!E31907","v":0},{"$f":"Import!E32107","v":0},{"$f":"Import!E32307","v":0},{"$f":"Import!E32507","v":0},{"$f":"Import!E32707","v":0}]
[43,{"$f":"Import!E30508","v":"Select"},{"$f":"Import!E30708","v":"Select"},{"$f":"Import!E30908","v":"Select"},{"$f":"Import!E31108","v":"Select"},{"$f":"Import!E31308","v":"Select"},{"$f":"Import!E31508","v":"Select"},{"$f":"Import!E31708","v":"Select"},{"$f":"Import!E31908","v":0},{"$f":"Import!E32108","v":0},{"$f":"Import!E32308","v":0},{"$f":"Import!E32508","v":0},{"$f":"Import!E32708","v":0}]
[44,{"$f":"Import!E30509","v":"Select"},{"$f":"Import!E30709","v":"Select"},{"$f":"Import!E30909","v":"Select"},{"$f":"Import!E31109","v":"Select"},{"$f":"Import!E31309","v":"Select"},{"$f":"Import!E31509","v":"Select"},{"$f":"Import!E31709","v":"Select"},{"$f":"Import!E31909","v":0},{"$f":"Import!E32109","v":0},{"$f":"Import!E32309","v":0},{"$f":"Import!E32509","v":0},{"$f":"Import!E32709","v":0}]
[45,{"$f":"Import!E30510","v":"Select"},{"$f":"Import!E30710","v":"Select"},{"$f":"Import!E30910","v":"Select"},{"$f":"Import!E31110","v":"Select"},{"$f":"Import!E31310","v":"Select"},{"$f":"Import!E31510","v":"Select"},{"$f":"Import!E31710","v":"Select"},{"$f":"Import!E31910","v":0},{"$f":"Import!E32110","v":0},{"$f":"Import!E32310","v":0},{"$f":"Import!E32510","v":0},{"$f":"Import!E32710","v":0}]
[46,{"$f":"Import!E30511","v":"Select"},{"$f":"Import!E30711","v":"Select"},{"$f":"Import!E30911","v":"Select"},{"$f":"Import!E31111","v":"Select"},{"$f":"Import!E31311","v":"Select"},{"$f":"Import!E31511","v":"Select"},{"$f":"Import!E31711","v":"Select"},{"$f":"Import!E31911","v":0},{"$f":"Import!E32111","v":0},{"$f":"Import!E32311","v":0},{"$f":"Import!E32511","v":0},{"$f":"Import!E32711","v":0}]
[47,{"$f":"Import!E30512","v":"Select"},{"$f":"Import!E30712","v":"Select"},{"$f":"Import!E30912","v":"Select"},{"$f":"Import!E31112","v":"Select"},{"$f":"Import!E31312","v":"Select"},{"$f":"Import!E31512","v":"Select"},{"$f":"Import!E31712","v":"Select"},{"$f":"Import!E31912","v":0},{"$f":"Import!E32112","v":0},{"$f":"Import!E32312","v":0},{"$f":"Import!E32512","v":0},{"$f":"Import!E32712","v":0}]
[48,{"$f":"Import!E30513","v":"Select"},{"$f":"Import!E30713","v":"Select"},{"$f":"Import!E30913","v":"Select"},{"$f":"Import!E31113","v":"Select"},{"$f":"Import!E31313","v":"Select"},{"$f":"Import!E31513","v":"Select"},{"$f":"Import!E31713","v":"Select"},{"$f":"Import!E31913","v":0},{"$f":"Import!E32113","v":0},{"$f":"Import!E32313","v":0},{"$f":"Import!E32513","v":0},{"$f":"Import!E32713","v":0}]
[49,{"$f":"Import!E30514","v":"Select"},{"$f":"Import!E30714","v":"Select"},{"$f":"Import!E30914","v":"Select"},{"$f":"Import!E31114","v":"Select"},{"$f":"Import!E31314","v":"Select"},{"$f":"Import!E31514","v":"Select"},{"$f":"Import!E31714","v":"Select"},{"$f":"Import!E31914","v":0},{"$f":"Import!E32114","v":0},{"$f":"Import!E32314","v":0},{"$f":"Import!E32514","v":0},{"$f":"Import!E32714","v":0}]
[50,{"$f":"Import!E30515","v":"Select"},{"$f":"Import!E30715","v":"Select"},{"$f":"Import!E30915","v":"Select"},{"$f":"Import!E31115","v":"Select"},{"$f":"Import!E31315","v":"Select"},{"$f":"Import!E31515","v":"Select"},{"$f":"Import!E31715","v":"Select"},{"$f":"Import!E31915","v":0},{"$f":"Import!E32115","v":0},{"$f":"Import!E32315","v":0},{"$f":"Import!E32515","v":0},{"$f":"Import!E32715","v":0}]
[51,{"$f":"Import!E30516","v":"Select"},{"$f":"Import!E30716","v":"Select"},{"$f":"Import!E30916","v":"Select"},{"$f":"Import!E31116","v":"Select"},{"$f":"Import!E31316","v":"Select"},{"$f":"Import!E31516","v":"Select"},{"$f":"Import!E31716","v":"Select"},{"$f":"Import!E31916","v":0},{"$f":"Import!E32116","v":0},{"$f":"Import!E32316","v":0},{"$f":"Import!E32516","v":0},{"$f":"Import!E32716","v":0}]
[52,{"$f":"Import!E30517","v":"Select"},{"$f":"Import!E30717","v":"Select"},{"$f":"Import!E30917","v":"Select"},{"$f":"Import!E31117","v":"Select"},{"$f":"Import!E31317","v":"Select"},{"$f":"Import!E31517","v":"Select"},{"$f":"Import!E31717","v":"Select"},{"$f":"Import!E31917","v":0},{"$f":"Import!E32117","v":0},{"$f":"Import!E32317","v":0},{"$f":"Import!E32517","v":0},{"$f":"Import!E32717","v":0}]
[53,{"$f":"Import!E30518","v":"Select"},{"$f":"Import!E30718","v":"Select"},{"$f":"Import!E30918","v":"Select"},{"$f":"Import!E31118","v":"Select"},{"$f":"Import!E31318","v":"Select"},{"$f":"Import!E31518","v":"Select"},{"$f":"Import!E31718","v":"Select"},{"$f":"Import!E31918","v":0},{"$f":"Import!E32118","v":0},{"$f":"Import!E32318","v":0},{"$f":"Import!E32518","v":0},{"$f":"Import!E32718","v":0}]
[54,{"$f":"Import!E30519","v":"Select"},{"$f":"Import!E30719","v":"Select"},{"$f":"Import!E30919","v":"Select"},{"$f":"Import!E31119","v":"Select"},{"$f":"Import!E31319","v":"Select"},{"$f":"Import!E31519","v":"Select"},{"$f":"Import!E31719","v":"Select"},{"$f":"Import!E31919","v":0},{"$f":"Import!E32119","v":0},{"$f":"Import!E32319","v":0},{"$f":"Import!E32519","v":0},{"$f":"Import!E32719","v":0}]
[55,{"$f":"Import!E30520","v":"Select"},{"$f":"Import!E30720","v":"Select"},{"$f":"Import!E30920","v":"Select"},{"$f":"Import!E31120","v":"Select"},{"$f":"Import!E31320","v":"Select"},{"$f":"Import!E31520","v":"Select"},{"$f":"Import!E31720","v":"Select"},{"$f":"Import!E31920","v":0},{"$f":"Import!E32120","v":0},{"$f":"Import!E32320","v":0},{"$f":"Import!E32520","v":0},{"$f":"Import!E32720","v":0}]
[56,{"$f":"Import!E30521","v":"Select"},{"$f":"Import!E30721","v":"Select"},{"$f":"Import!E30921","v":"Select"},{"$f":"Import!E31121","v":"Select"},{"$f":"Import!E31321","v":"Select"},{"$f":"Import!E31521","v":"Select"},{"$f":"Import!E31721","v":"Select"},{"$f":"Import!E31921","v":0},{"$f":"Import!E32121","v":0},{"$f":"Import!E32321","v":0},{"$f":"Import!E32521","v":0},{"$f":"Import!E32721","v":0}]
[57,{"$f":"Import!E30522","v":"Select"},{"$f":"Import!E30722","v":"Select"},{"$f":"Import!E30922","v":"Select"},{"$f":"Import!E31122","v":"Select"},{"$f":"Import!E31322","v":"Select"},{"$f":"Import!E31522","v":"Select"},{"$f":"Import!E31722","v":"Select"},{"$f":"Import!E31922","v":0},{"$f":"Import!E32122","v":0},{"$f":"Import!E32322","v":0},{"$f":"Import!E32522","v":0},{"$f":"Import!E32722","v":0}]
[58,{"$f":"Import!E30523","v":"Select"},{"$f":"Import!E30723","v":"Select"},{"$f":"Import!E30923","v":"Select"},{"$f":"Import!E31123","v":"Select"},{"$f":"Import!E31323","v":"Select"},{"$f":"Import!E31523","v":"Select"},{"$f":"Import!E31723","v":"Select"},{"$f":"Import!E31923","v":0},{"$f":"Import!E32123","v":0},{"$f":"Import!E32323","v":0},{"$f":"Import!E32523","v":0},{"$f":"Import!E32723","v":0}]
[59,{"$f":"Import!E30524","v":"Select"},{"$f":"Import!E30724","v":"Select"},{"$f":"Import!E30924","v":"Select"},{"$f":"Import!E31124","v":"Select"},{"$f":"Import!E31324","v":"Select"},{"$f":"Import!E31524","v":"Select"},{"$f":"Import!E31724","v":"Select"},{"$f":"Import!E31924","v":0},{"$f":"Import!E32124","v":0},{"$f":"Import!E32324","v":0},{"$f":"Import!E32524","v":0},{"$f":"Import!E32724","v":0}]
[60,{"$f":"Import!E30525","v":"Select"},{"$f":"Import!E30725","v":"Select"},{"$f":"Import!E30925","v":"Select"},{"$f":"Import!E31125","v":"Select"},{"$f":"Import!E31325","v":"Select"},{"$f":"Import!E31525","v":"Select"},{"$f":"Import!E31725","v":"Select"},{"$f":"Import!E31925","v":0},{"$f":"Import!E32125","v":0},{"$f":"Import!E32325","v":0},{"$f":"Import!E32525","v":0},{"$f":"Import!E32725","v":0}]
[61,{"$f":"Import!E30526","v":"Select"},{"$f":"Import!E30726","v":"Select"},{"$f":"Import!E30926","v":"Select"},{"$f":"Import!E31126","v":"Select"},{"$f":"Import!E31326","v":"Select"},{"$f":"Import!E31526","v":"Select"},{"$f":"Import!E31726","v":"Select"},{"$f":"Import!E31926","v":0},{"$f":"Import!E32126","v":0},{"$f":"Import!E32326","v":0},{"$f":"Import!E32526","v":0},{"$f":"Import!E32726","v":0}]
[62,{"$f":"Import!E30527","v":"Select"},{"$f":"Import!E30727","v":"Select"},{"$f":"Import!E30927","v":"Select"},{"$f":"Import!E31127","v":"Select"},{"$f":"Import!E31327","v":"Select"},{"$f":"Import!E31527","v":"Select"},{"$f":"Import!E31727","v":"Select"},{"$f":"Import!E31927","v":0},{"$f":"Import!E32127","v":0},{"$f":"Import!E32327","v":0},{"$f":"Import!E32527","v":0},{"$f":"Import!E32727","v":0}]
[63,{"$f":"Import!E30528","v":"Select"},{"$f":"Import!E30728","v":"Select"},{"$f":"Import!E30928","v":"Select"},{"$f":"Import!E31128","v":"Select"},{"$f":"Import!E31328","v":"Select"},{"$f":"Import!E31528","v":"Select"},{"$f":"Import!E31728","v":"Select"},{"$f":"Import!E31928","v":0},{"$f":"Import!E32128","v":0},{"$f":"Import!E32328","v":0},{"$f":"Import!E32528","v":0},{"$f":"Import!E32728","v":0}]
[64,{"$f":"Import!E30529","v":"Select"},{"$f":"Import!E30729","v":"Select"},{"$f":"Import!E30929","v":"Select"},{"$f":"Import!E31129","v":"Select"},{"$f":"Import!E31329","v":"Select"},{"$f":"Import!E31529","v":"Select"},{"$f":"Import!E31729","v":"Select"},{"$f":"Import!E31929","v":0},{"$f":"Import!E32129","v":0},{"$f":"Import!E32329","v":0},{"$f":"Import!E32529","v":0},{"$f":"Import!E32729","v":0}]
[65,{"$f":"Import!E30530","v":"Select"},{"$f":"Import!E30730","v":"Select"},{"$f":"Import!E30930","v":"Select"},{"$f":"Import!E31130","v":"Select"},{"$f":"Import!E31330","v":"Select"},{"$f":"Import!E31530","v":"Select"},{"$f":"Import!E31730","v":"Select"},{"$f":"Import!E31930","v":0},{"$f":"Import!E32130","v":0},{"$f":"Import!E32330","v":0},{"$f":"Import!E32530","v":0},{"$f":"Import!E32730","v":0}]
[66,{"$f":"Import!E30531","v":"Select"},{"$f":"Import!E30731","v":"Select"},{"$f":"Import!E30931","v":"Select"},{"$f":"Import!E31131","v":"Select"},{"$f":"Import!E31331","v":"Select"},{"$f":"Import!E31531","v":"Select"},{"$f":"Import!E31731","v":"Select"},{"$f":"Import!E31931","v":0},{"$f":"Import!E32131","v":0},{"$f":"Import!E32331","v":0},{"$f":"Import!E32531","v":0},{"$f":"Import!E32731","v":0}]
[{"$f":"A1625+1","v":67},{"$f":"Import!E30532","v":"Select"},{"$f":"Import!E30732","v":"Select"},{"$f":"Import!E30932","v":"Select"},{"$f":"Import!E31132","v":"Select"},{"$f":"Import!E31332","v":"Select"},{"$f":"Import!E31532","v":"Select"},{"$f":"Import!E31732","v":"Select"},{"$f":"Import!E31932","v":0},{"$f":"Import!E32132","v":0},{"$f":"Import!E32332","v":0},{"$f":"Import!E32532","v":0},{"$f":"Import!E32732","v":0}]
[68,{"$f":"Import!E30533","v":"Select"},{"$f":"Import!E30733","v":"Select"},{"$f":"Import!E30933","v":"Select"},{"$f":"Import!E31133","v":"Select"},{"$f":"Import!E31333","v":"Select"},{"$f":"Import!E31533","v":"Select"},{"$f":"Import!E31733","v":"Select"},{"$f":"Import!E31933","v":0},{"$f":"Import!E32133","v":0},{"$f":"Import!E32333","v":0},{"$f":"Import!E32533","v":0},{"$f":"Import!E32733","v":0}]
[69,{"$f":"Import!E30534","v":"Select"},{"$f":"Import!E30734","v":"Select"},{"$f":"Import!E30934","v":"Select"},{"$f":"Import!E31134","v":"Select"},{"$f":"Import!E31334","v":"Select"},{"$f":"Import!E31534","v":"Select"},{"$f":"Import!E31734","v":"Select"},{"$f":"Import!E31934","v":0},{"$f":"Import!E32134","v":0},{"$f":"Import!E32334","v":0},{"$f":"Import!E32534","v":0},{"$f":"Import!E32734","v":0}]
[70,{"$f":"Import!E30535","v":"Select"},{"$f":"Import!E30735","v":"Select"},{"$f":"Import!E30935","v":"Select"},{"$f":"Import!E31135","v":"Select"},{"$f":"Import!E31335","v":"Select"},{"$f":"Import!E31535","v":"Select"},{"$f":"Import!E31735","v":"Select"},{"$f":"Import!E31935","v":0},{"$f":"Import!E32135","v":0},{"$f":"Import!E32335","v":0},{"$f":"Import!E32535","v":0},{"$f":"Import!E32735","v":0}]
[71,{"$f":"Import!E30536","v":"Select"},{"$f":"Import!E30736","v":"Select"},{"$f":"Import!E30936","v":"Select"},{"$f":"Import!E31136","v":"Select"},{"$f":"Import!E31336","v":"Select"},{"$f":"Import!E31536","v":"Select"},{"$f":"Import!E31736","v":"Select"},{"$f":"Import!E31936","v":0},{"$f":"Import!E32136","v":0},{"$f":"Import!E32336","v":0},{"$f":"Import!E32536","v":0},{"$f":"Import!E32736","v":0}]
[72,{"$f":"Import!E30537","v":"Select"},{"$f":"Import!E30737","v":"Select"},{"$f":"Import!E30937","v":"Select"},{"$f":"Import!E31137","v":"Select"},{"$f":"Import!E31337","v":"Select"},{"$f":"Import!E31537","v":"Select"},{"$f":"Import!E31737","v":"Select"},{"$f":"Import!E31937","v":0},{"$f":"Import!E32137","v":0},{"$f":"Import!E32337","v":0},{"$f":"Import!E32537","v":0},{"$f":"Import!E32737","v":0}]
[73,{"$f":"Import!E30538","v":"Select"},{"$f":"Import!E30738","v":"Select"},{"$f":"Import!E30938","v":"Select"},{"$f":"Import!E31138","v":"Select"},{"$f":"Import!E31338","v":"Select"},{"$f":"Import!E31538","v":"Select"},{"$f":"Import!E31738","v":"Select"},{"$f":"Import!E31938","v":0},{"$f":"Import!E32138","v":0},{"$f":"Import!E32338","v":0},{"$f":"Import!E32538","v":0},{"$f":"Import!E32738","v":0}]
[74,{"$f":"Import!E30539","v":"Select"},{"$f":"Import!E30739","v":"Select"},{"$f":"Import!E30939","v":"Select"},{"$f":"Import!E31139","v":"Select"},{"$f":"Import!E31339","v":"Select"},{"$f":"Import!E31539","v":"Select"},{"$f":"Import!E31739","v":"Select"},{"$f":"Import!E31939","v":0},{"$f":"Import!E32139","v":0},{"$f":"Import!E32339","v":0},{"$f":"Import!E32539","v":0},{"$f":"Import!E32739","v":0}]
[75,{"$f":"Import!E30540","v":"Select"},{"$f":"Import!E30740","v":"Select"},{"$f":"Import!E30940","v":"Select"},{"$f":"Import!E31140","v":"Select"},{"$f":"Import!E31340","v":"Select"},{"$f":"Import!E31540","v":"Select"},{"$f":"Import!E31740","v":"Select"},{"$f":"Import!E31940","v":0},{"$f":"Import!E32140","v":0},{"$f":"Import!E32340","v":0},{"$f":"Import!E32540","v":0},{"$f":"Import!E32740","v":0}]
[76,{"$f":"Import!E30541","v":"Select"},{"$f":"Import!E30741","v":"Select"},{"$f":"Import!E30941","v":"Select"},{"$f":"Import!E31141","v":"Select"},{"$f":"Import!E31341","v":"Select"},{"$f":"Import!E31541","v":"Select"},{"$f":"Import!E31741","v":"Select"},{"$f":"Import!E31941","v":0},{"$f":"Import!E32141","v":0},{"$f":"Import!E32341","v":0},{"$f":"Import!E32541","v":0},{"$f":"Import!E32741","v":0}]
[77,{"$f":"Import!E30542","v":"Select"},{"$f":"Import!E30742","v":"Select"},{"$f":"Import!E30942","v":"Select"},{"$f":"Import!E31142","v":"Select"},{"$f":"Import!E31342","v":"Select"},{"$f":"Import!E31542","v":"Select"},{"$f":"Import!E31742","v":"Select"},{"$f":"Import!E31942","v":0},{"$f":"Import!E32142","v":0},{"$f":"Import!E32342","v":0},{"$f":"Import!E32542","v":0},{"$f":"Import!E32742","v":0}]
[78,{"$f":"Import!E30543","v":"Select"},{"$f":"Import!E30743","v":"Select"},{"$f":"Import!E30943","v":"Select"},{"$f":"Import!E31143","v":"Select"},{"$f":"Import!E31343","v":"Select"},{"$f":"Import!E31543","v":"Select"},{"$f":"Import!E31743","v":"Select"},{"$f":"Import!E31943","v":0},{"$f":"Import!E32143","v":0},{"$f":"Import!E32343","v":0},{"$f":"Import!E32543","v":0},{"$f":"Import!E32743","v":0}]
[79,{"$f":"Import!E30544","v":"Select"},{"$f":"Import!E30744","v":"Select"},{"$f":"Import!E30944","v":"Select"},{"$f":"Import!E31144","v":"Select"},{"$f":"Import!E31344","v":"Select"},{"$f":"Import!E31544","v":"Select"},{"$f":"Import!E31744","v":"Select"},{"$f":"Import!E31944","v":0},{"$f":"Import!E32144","v":0},{"$f":"Import!E32344","v":0},{"$f":"Import!E32544","v":0},{"$f":"Import!E32744","v":0}]
[80,{"$f":"Import!E30545","v":"Select"},{"$f":"Import!E30745","v":"Select"},{"$f":"Import!E30945","v":"Select"},{"$f":"Import!E31145","v":"Select"},{"$f":"Import!E31345","v":"Select"},{"$f":"Import!E31545","v":"Select"},{"$f":"Import!E31745","v":"Select"},{"$f":"Import!E31945","v":0},{"$f":"Import!E32145","v":0},{"$f":"Import!E32345","v":0},{"$f":"Import!E32545","v":0},{"$f":"Import!E32745","v":0}]
[81,{"$f":"Import!E30546","v":"Select"},{"$f":"Import!E30746","v":"Select"},{"$f":"Import!E30946","v":"Select"},{"$f":"Import!E31146","v":"Select"},{"$f":"Import!E31346","v":"Select"},{"$f":"Import!E31546","v":"Select"},{"$f":"Import!E31746","v":"Select"},{"$f":"Import!E31946","v":0},{"$f":"Import!E32146","v":0},{"$f":"Import!E32346","v":0},{"$f":"Import!E32546","v":0},{"$f":"Import!E32746","v":0}]
[82,{"$f":"Import!E30547","v":"Select"},{"$f":"Import!E30747","v":"Select"},{"$f":"Import!E30947","v":"Select"},{"$f":"Import!E31147","v":"Select"},{"$f":"Import!E31347","v":"Select"},{"$f":"Import!E31547","v":"Select"},{"$f":"Import!E31747","v":"Select"},{"$f":"Import!E31947","v":0},{"$f":"Import!E32147","v":0},{"$f":"Import!E32347","v":0},{"$f":"Import!E32547","v":0},{"$f":"Import!E32747","v":0}]
[83,{"$f":"Import!E30548","v":"Select"},{"$f":"Import!E30748","v":"Select"},{"$f":"Import!E30948","v":"Select"},{"$f":"Import!E31148","v":"Select"},{"$f":"Import!E31348","v":"Select"},{"$f":"Import!E31548","v":"Select"},{"$f":"Import!E31748","v":"Select"},{"$f":"Import!E31948","v":0},{"$f":"Import!E32148","v":0},{"$f":"Import!E32348","v":0},{"$f":"Import!E32548","v":0},{"$f":"Import!E32748","v":0}]
[84,{"$f":"Import!E30549","v":"Select"},{"$f":"Import!E30749","v":"Select"},{"$f":"Import!E30949","v":"Select"},{"$f":"Import!E31149","v":"Select"},{"$f":"Import!E31349","v":"Select"},{"$f":"Import!E31549","v":"Select"},{"$f":"Import!E31749","v":"Select"},{"$f":"Import!E31949","v":0},{"$f":"Import!E32149","v":0},{"$f":"Import!E32349","v":0},{"$f":"Import!E32549","v":0},{"$f":"Import!E32749","v":0}]
[85,{"$f":"Import!E30550","v":"Select"},{"$f":"Import!E30750","v":"Select"},{"$f":"Import!E30950","v":"Select"},{"$f":"Import!E31150","v":"Select"},{"$f":"Import!E31350","v":"Select"},{"$f":"Import!E31550","v":"Select"},{"$f":"Import!E31750","v":"Select"},{"$f":"Import!E31950","v":0},{"$f":"Import!E32150","v":0},{"$f":"Import!E32350","v":0},{"$f":"Import!E32550","v":0},{"$f":"Import!E32750","v":0}]
[86,{"$f":"Import!E30551","v":"Select"},{"$f":"Import!E30751","v":"Select"},{"$f":"Import!E30951","v":"Select"},{"$f":"Import!E31151","v":"Select"},{"$f":"Import!E31351","v":"Select"},{"$f":"Import!E31551","v":"Select"},{"$f":"Import!E31751","v":"Select"},{"$f":"Import!E31951","v":0},{"$f":"Import!E32151","v":0},{"$f":"Import!E32351","v":0},{"$f":"Import!E32551","v":0},{"$f":"Import!E32751","v":0}]
[87,{"$f":"Import!E30552","v":"Select"},{"$f":"Import!E30752","v":"Select"},{"$f":"Import!E30952","v":"Select"},{"$f":"Import!E31152","v":"Select"},{"$f":"Import!E31352","v":"Select"},{"$f":"Import!E31552","v":"Select"},{"$f":"Import!E31752","v":"Select"},{"$f":"Import!E31952","v":0},{"$f":"Import!E32152","v":0},{"$f":"Import!E32352","v":0},{"$f":"Import!E32552","v":0},{"$f":"Import!E32752","v":0}]
[88,{"$f":"Import!E30553","v":"Select"},{"$f":"Import!E30753","v":"Select"},{"$f":"Import!E30953","v":"Select"},{"$f":"Import!E31153","v":"Select"},{"$f":"Import!E31353","v":"Select"},{"$f":"Import!E31553","v":"Select"},{"$f":"Import!E31753","v":"Select"},{"$f":"Import!E31953","v":0},{"$f":"Import!E32153","v":0},{"$f":"Import!E32353","v":0},{"$f":"Import!E32553","v":0},{"$f":"Import!E32753","v":0}]
[89,{"$f":"Import!E30554","v":"Select"},{"$f":"Import!E30754","v":"Select"},{"$f":"Import!E30954","v":"Select"},{"$f":"Import!E31154","v":"Select"},{"$f":"Import!E31354","v":"Select"},{"$f":"Import!E31554","v":"Select"},{"$f":"Import!E31754","v":"Select"},{"$f":"Import!E31954","v":0},{"$f":"Import!E32154","v":0},{"$f":"Import!E32354","v":0},{"$f":"Import!E32554","v":0},{"$f":"Import!E32754","v":0}]
[90,{"$f":"Import!E30555","v":"Select"},{"$f":"Import!E30755","v":"Select"},{"$f":"Import!E30955","v":"Select"},{"$f":"Import!E31155","v":"Select"},{"$f":"Import!E31355","v":"Select"},{"$f":"Import!E31555","v":"Select"},{"$f":"Import!E31755","v":"Select"},{"$f":"Import!E31955","v":0},{"$f":"Import!E32155","v":0},{"$f":"Import!E32355","v":0},{"$f":"Import!E32555","v":0},{"$f":"Import!E32755","v":0}]
[91,{"$f":"Import!E30556","v":"Select"},{"$f":"Import!E30756","v":"Select"},{"$f":"Import!E30956","v":"Select"},{"$f":"Import!E31156","v":"Select"},{"$f":"Import!E31356","v":"Select"},{"$f":"Import!E31556","v":"Select"},{"$f":"Import!E31756","v":"Select"},{"$f":"Import!E31956","v":0},{"$f":"Import!E32156","v":0},{"$f":"Import!E32356","v":0},{"$f":"Import!E32556","v":0},{"$f":"Import!E32756","v":0}]
[92,{"$f":"Import!E30557","v":"Select"},{"$f":"Import!E30757","v":"Select"},{"$f":"Import!E30957","v":"Select"},{"$f":"Import!E31157","v":"Select"},{"$f":"Import!E31357","v":"Select"},{"$f":"Import!E31557","v":"Select"},{"$f":"Import!E31757","v":"Select"},{"$f":"Import!E31957","v":0},{"$f":"Import!E32157","v":0},{"$f":"Import!E32357","v":0},{"$f":"Import!E32557","v":0},{"$f":"Import!E32757","v":0}]
[93,{"$f":"Import!E30558","v":"Select"},{"$f":"Import!E30758","v":"Select"},{"$f":"Import!E30958","v":"Select"},{"$f":"Import!E31158","v":"Select"},{"$f":"Import!E31358","v":"Select"},{"$f":"Import!E31558","v":"Select"},{"$f":"Import!E31758","v":"Select"},{"$f":"Import!E31958","v":0},{"$f":"Import!E32158","v":0},{"$f":"Import!E32358","v":0},{"$f":"Import!E32558","v":0},{"$f":"Import!E32758","v":0}]
[94,{"$f":"Import!E30559","v":"Select"},{"$f":"Import!E30759","v":"Select"},{"$f":"Import!E30959","v":"Select"},{"$f":"Import!E31159","v":"Select"},{"$f":"Import!E31359","v":"Select"},{"$f":"Import!E31559","v":"Select"},{"$f":"Import!E31759","v":"Select"},{"$f":"Import!E31959","v":0},{"$f":"Import!E32159","v":0},{"$f":"Import!E32359","v":0},{"$f":"Import!E32559","v":0},{"$f":"Import!E32759","v":0}]
[95,{"$f":"Import!E30560","v":"Select"},{"$f":"Import!E30760","v":"Select"},{"$f":"Import!E30960","v":"Select"},{"$f":"Import!E31160","v":"Select"},{"$f":"Import!E31360","v":"Select"},{"$f":"Import!E31560","v":"Select"},{"$f":"Import!E31760","v":"Select"},{"$f":"Import!E31960","v":0},{"$f":"Import!E32160","v":0},{"$f":"Import!E32360","v":0},{"$f":"Import!E32560","v":0},{"$f":"Import!E32760","v":0}]
[96,{"$f":"Import!E30561","v":"Select"},{"$f":"Import!E30761","v":"Select"},{"$f":"Import!E30961","v":"Select"},{"$f":"Import!E31161","v":"Select"},{"$f":"Import!E31361","v":"Select"},{"$f":"Import!E31561","v":"Select"},{"$f":"Import!E31761","v":"Select"},{"$f":"Import!E31961","v":0},{"$f":"Import!E32161","v":0},{"$f":"Import!E32361","v":0},{"$f":"Import!E32561","v":0},{"$f":"Import!E32761","v":0}]
[97,{"$f":"Import!E30562","v":"Select"},{"$f":"Import!E30762","v":"Select"},{"$f":"Import!E30962","v":"Select"},{"$f":"Import!E31162","v":"Select"},{"$f":"Import!E31362","v":"Select"},{"$f":"Import!E31562","v":"Select"},{"$f":"Import!E31762","v":"Select"},{"$f":"Import!E31962","v":0},{"$f":"Import!E32162","v":0},{"$f":"Import!E32362","v":0},{"$f":"Import!E32562","v":0},{"$f":"Import!E32762","v":0}]
[98,{"$f":"Import!E30563","v":"Select"},{"$f":"Import!E30763","v":"Select"},{"$f":"Import!E30963","v":"Select"},{"$f":"Import!E31163","v":"Select"},{"$f":"Import!E31363","v":"Select"},{"$f":"Import!E31563","v":"Select"},{"$f":"Import!E31763","v":"Select"},{"$f":"Import!E31963","v":0},{"$f":"Import!E32163","v":0},{"$f":"Import!E32363","v":0},{"$f":"Import!E32563","v":0},{"$f":"Import!E32763","v":0}]
[99,{"$f":"Import!E30564","v":"Select"},{"$f":"Import!E30764","v":"Select"},{"$f":"Import!E30964","v":"Select"},{"$f":"Import!E31164","v":"Select"},{"$f":"Import!E31364","v":"Select"},{"$f":"Import!E31564","v":"Select"},{"$f":"Import!E31764","v":"Select"},{"$f":"Import!E31964","v":0},{"$f":"Import!E32164","v":0},{"$f":"Import!E32364","v":0},{"$f":"Import!E32564","v":0},{"$f":"Import!E32764","v":0}]
[100,{"$f":"Import!E30565","v":"Select"},{"$f":"Import!E30765","v":"Select"},{"$f":"Import!E30965","v":"Select"},{"$f":"Import!E31165","v":"Select"},{"$f":"Import!E31365","v":"Select"},{"$f":"Import!E31565","v":"Select"},{"$f":"Import!E31765","v":"Select"},{"$f":"Import!E31965","v":0},{"$f":"Import!E32165","v":0},{"$f":"Import!E32365","v":0},{"$f":"Import!E32565","v":0},{"$f":"Import!E32765","v":0}]
[101,{"$f":"Import!E30566","v":"Select"},{"$f":"Import!E30766","v":"Select"},{"$f":"Import!E30966","v":"Select"},{"$f":"Import!E31166","v":"Select"},{"$f":"Import!E31366","v":"Select"},{"$f":"Import!E31566","v":"Select"},{"$f":"Import!E31766","v":"Select"},{"$f":"Import!E31966","v":0},{"$f":"Import!E32166","v":0},{"$f":"Import!E32366","v":0},{"$f":"Import!E32566","v":0},{"$f":"Import!E32766","v":0}]
[102,{"$f":"Import!E30567","v":"Select"},{"$f":"Import!E30767","v":"Select"},{"$f":"Import!E30967","v":"Select"},{"$f":"Import!E31167","v":"Select"},{"$f":"Import!E31367","v":"Select"},{"$f":"Import!E31567","v":"Select"},{"$f":"Import!E31767","v":"Select"},{"$f":"Import!E31967","v":0},{"$f":"Import!E32167","v":0},{"$f":"Import!E32367","v":0},{"$f":"Import!E32567","v":0},{"$f":"Import!E32767","v":0}]
[103,{"$f":"Import!E30568","v":"Select"},{"$f":"Import!E30768","v":"Select"},{"$f":"Import!E30968","v":"Select"},{"$f":"Import!E31168","v":"Select"},{"$f":"Import!E31368","v":"Select"},{"$f":"Import!E31568","v":"Select"},{"$f":"Import!E31768","v":"Select"},{"$f":"Import!E31968","v":0},{"$f":"Import!E32168","v":0},{"$f":"Import!E32368","v":0},{"$f":"Import!E32568","v":0},{"$f":"Import!E32768","v":0}]
[104,{"$f":"Import!E30569","v":"Select"},{"$f":"Import!E30769","v":"Select"},{"$f":"Import!E30969","v":"Select"},{"$f":"Import!E31169","v":"Select"},{"$f":"Import!E31369","v":"Select"},{"$f":"Import!E31569","v":"Select"},{"$f":"Import!E31769","v":"Select"},{"$f":"Import!E31969","v":0},{"$f":"Import!E32169","v":0},{"$f":"Import!E32369","v":0},{"$f":"Import!E32569","v":0},{"$f":"Import!E32769","v":0}]
[105,{"$f":"Import!E30570","v":"Select"},{"$f":"Import!E30770","v":"Select"},{"$f":"Import!E30970","v":"Select"},{"$f":"Import!E31170","v":"Select"},{"$f":"Import!E31370","v":"Select"},{"$f":"Import!E31570","v":"Select"},{"$f":"Import!E31770","v":"Select"},{"$f":"Import!E31970","v":0},{"$f":"Import!E32170","v":0},{"$f":"Import!E32370","v":0},{"$f":"Import!E32570","v":0},{"$f":"Import!E32770","v":0}]
[106,{"$f":"Import!E30571","v":"Select"},{"$f":"Import!E30771","v":"Select"},{"$f":"Import!E30971","v":"Select"},{"$f":"Import!E31171","v":"Select"},{"$f":"Import!E31371","v":"Select"},{"$f":"Import!E31571","v":"Select"},{"$f":"Import!E31771","v":"Select"},{"$f":"Import!E31971","v":0},{"$f":"Import!E32171","v":0},{"$f":"Import!E32371","v":0},{"$f":"Import!E32571","v":0},{"$f":"Import!E32771","v":0}]
[107,{"$f":"Import!E30572","v":"Select"},{"$f":"Import!E30772","v":"Select"},{"$f":"Import!E30972","v":"Select"},{"$f":"Import!E31172","v":"Select"},{"$f":"Import!E31372","v":"Select"},{"$f":"Import!E31572","v":"Select"},{"$f":"Import!E31772","v":"Select"},{"$f":"Import!E31972","v":0},{"$f":"Import!E32172","v":0},{"$f":"Import!E32372","v":0},{"$f":"Import!E32572","v":0},{"$f":"Import!E32772","v":0}]
[108,{"$f":"Import!E30573","v":"Select"},{"$f":"Import!E30773","v":"Select"},{"$f":"Import!E30973","v":"Select"},{"$f":"Import!E31173","v":"Select"},{"$f":"Import!E31373","v":"Select"},{"$f":"Import!E31573","v":"Select"},{"$f":"Import!E31773","v":"Select"},{"$f":"Import!E31973","v":0},{"$f":"Import!E32173","v":0},{"$f":"Import!E32373","v":0},{"$f":"Import!E32573","v":0},{"$f":"Import!E32773","v":0}]
[109,{"$f":"Import!E30574","v":"Select"},{"$f":"Import!E30774","v":"Select"},{"$f":"Import!E30974","v":"Select"},{"$f":"Import!E31174","v":"Select"},{"$f":"Import!E31374","v":"Select"},{"$f":"Import!E31574","v":"Select"},{"$f":"Import!E31774","v":"Select"},{"$f":"Import!E31974","v":0},{"$f":"Import!E32174","v":0},{"$f":"Import!E32374","v":0},{"$f":"Import!E32574","v":0},{"$f":"Import!E32774","v":0}]
[110,{"$f":"Import!E30575","v":"Select"},{"$f":"Import!E30775","v":"Select"},{"$f":"Import!E30975","v":"Select"},{"$f":"Import!E31175","v":"Select"},{"$f":"Import!E31375","v":"Select"},{"$f":"Import!E31575","v":"Select"},{"$f":"Import!E31775","v":"Select"},{"$f":"Import!E31975","v":0},{"$f":"Import!E32175","v":0},{"$f":"Import!E32375","v":0},{"$f":"Import!E32575","v":0},{"$f":"Import!E32775","v":0}]
[111,{"$f":"Import!E30576","v":"Select"},{"$f":"Import!E30776","v":"Select"},{"$f":"Import!E30976","v":"Select"},{"$f":"Import!E31176","v":"Select"},{"$f":"Import!E31376","v":"Select"},{"$f":"Import!E31576","v":"Select"},{"$f":"Import!E31776","v":"Select"},{"$f":"Import!E31976","v":0},{"$f":"Import!E32176","v":0},{"$f":"Import!E32376","v":0},{"$f":"Import!E32576","v":0},{"$f":"Import!E32776","v":0}]
[112,{"$f":"Import!E30577","v":"Select"},{"$f":"Import!E30777","v":"Select"},{"$f":"Import!E30977","v":"Select"},{"$f":"Import!E31177","v":"Select"},{"$f":"Import!E31377","v":"Select"},{"$f":"Import!E31577","v":"Select"},{"$f":"Import!E31777","v":"Select"},{"$f":"Import!E31977","v":0},{"$f":"Import!E32177","v":0},{"$f":"Import!E32377","v":0},{"$f":"Import!E32577","v":0},{"$f":"Import!E32777","v":0}]
[113,{"$f":"Import!E30578","v":"Select"},{"$f":"Import!E30778","v":"Select"},{"$f":"Import!E30978","v":"Select"},{"$f":"Import!E31178","v":"Select"},{"$f":"Import!E31378","v":"Select"},{"$f":"Import!E31578","v":"Select"},{"$f":"Import!E31778","v":"Select"},{"$f":"Import!E31978","v":0},{"$f":"Import!E32178","v":0},{"$f":"Import!E32378","v":0},{"$f":"Import!E32578","v":0},{"$f":"Import!E32778","v":0}]
[114,{"$f":"Import!E30579","v":"Select"},{"$f":"Import!E30779","v":"Select"},{"$f":"Import!E30979","v":"Select"},{"$f":"Import!E31179","v":"Select"},{"$f":"Import!E31379","v":"Select"},{"$f":"Import!E31579","v":"Select"},{"$f":"Import!E31779","v":"Select"},{"$f":"Import!E31979","v":0},{"$f":"Import!E32179","v":0},{"$f":"Import!E32379","v":0},{"$f":"Import!E32579","v":0},{"$f":"Import!E32779","v":0}]
[115,{"$f":"Import!E30580","v":"Select"},{"$f":"Import!E30780","v":"Select"},{"$f":"Import!E30980","v":"Select"},{"$f":"Import!E31180","v":"Select"},{"$f":"Import!E31380","v":"Select"},{"$f":"Import!E31580","v":"Select"},{"$f":"Import!E31780","v":"Select"},{"$f":"Import!E31980","v":0},{"$f":"Import!E32180","v":0},{"$f":"Import!E32380","v":0},{"$f":"Import!E32580","v":0},{"$f":"Import!E32780","v":0}]
[116,{"$f":"Import!E30581","v":"Select"},{"$f":"Import!E30781","v":"Select"},{"$f":"Import!E30981","v":"Select"},{"$f":"Import!E31181","v":"Select"},{"$f":"Import!E31381","v":"Select"},{"$f":"Import!E31581","v":"Select"},{"$f":"Import!E31781","v":"Select"},{"$f":"Import!E31981","v":0},{"$f":"Import!E32181","v":0},{"$f":"Import!E32381","v":0},{"$f":"Import!E32581","v":0},{"$f":"Import!E32781","v":0}]
[117,{"$f":"Import!E30582","v":"Select"},{"$f":"Import!E30782","v":"Select"},{"$f":"Import!E30982","v":"Select"},{"$f":"Import!E31182","v":"Select"},{"$f":"Import!E31382","v":"Select"},{"$f":"Import!E31582","v":"Select"},{"$f":"Import!E31782","v":"Select"},{"$f":"Import!E31982","v":0},{"$f":"Import!E32182","v":0},{"$f":"Import!E32382","v":0},{"$f":"Import!E32582","v":0},{"$f":"Import!E32782","v":0}]
[118,{"$f":"Import!E30583","v":"Select"},{"$f":"Import!E30783","v":"Select"},{"$f":"Import!E30983","v":"Select"},{"$f":"Import!E31183","v":"Select"},{"$f":"Import!E31383","v":"Select"},{"$f":"Import!E31583","v":"Select"},{"$f":"Import!E31783","v":"Select"},{"$f":"Import!E31983","v":0},{"$f":"Import!E32183","v":0},{"$f":"Import!E32383","v":0},{"$f":"Import!E32583","v":0},{"$f":"Import!E32783","v":0}]
[119,{"$f":"Import!E30584","v":"Select"},{"$f":"Import!E30784","v":"Select"},{"$f":"Import!E30984","v":"Select"},{"$f":"Import!E31184","v":"Select"},{"$f":"Import!E31384","v":"Select"},{"$f":"Import!E31584","v":"Select"},{"$f":"Import!E31784","v":"Select"},{"$f":"Import!E31984","v":0},{"$f":"Import!E32184","v":0},{"$f":"Import!E32384","v":0},{"$f":"Import!E32584","v":0},{"$f":"Import!E32784","v":0}]
[120,{"$f":"Import!E30585","v":"Select"},{"$f":"Import!E30785","v":"Select"},{"$f":"Import!E30985","v":"Select"},{"$f":"Import!E31185","v":"Select"},{"$f":"Import!E31385","v":"Select"},{"$f":"Import!E31585","v":"Select"},{"$f":"Import!E31785","v":"Select"},{"$f":"Import!E31985","v":0},{"$f":"Import!E32185","v":0},{"$f":"Import!E32385","v":0},{"$f":"Import!E32585","v":0},{"$f":"Import!E32785","v":0}]
[121,{"$f":"Import!E30586","v":"Select"},{"$f":"Import!E30786","v":"Select"},{"$f":"Import!E30986","v":"Select"},{"$f":"Import!E31186","v":"Select"},{"$f":"Import!E31386","v":"Select"},{"$f":"Import!E31586","v":"Select"},{"$f":"Import!E31786","v":"Select"},{"$f":"Import!E31986","v":0},{"$f":"Import!E32186","v":0},{"$f":"Import!E32386","v":0},{"$f":"Import!E32586","v":0},{"$f":"Import!E32786","v":0}]
[122,{"$f":"Import!E30587","v":"Select"},{"$f":"Import!E30787","v":"Select"},{"$f":"Import!E30987","v":"Select"},{"$f":"Import!E31187","v":"Select"},{"$f":"Import!E31387","v":"Select"},{"$f":"Import!E31587","v":"Select"},{"$f":"Import!E31787","v":"Select"},{"$f":"Import!E31987","v":0},{"$f":"Import!E32187","v":0},{"$f":"Import!E32387","v":0},{"$f":"Import!E32587","v":0},{"$f":"Import!E32787","v":0}]
[123,{"$f":"Import!E30588","v":"Select"},{"$f":"Import!E30788","v":"Select"},{"$f":"Import!E30988","v":"Select"},{"$f":"Import!E31188","v":"Select"},{"$f":"Import!E31388","v":"Select"},{"$f":"Import!E31588","v":"Select"},{"$f":"Import!E31788","v":"Select"},{"$f":"Import!E31988","v":0},{"$f":"Import!E32188","v":0},{"$f":"Import!E32388","v":0},{"$f":"Import!E32588","v":0},{"$f":"Import!E32788","v":0}]
[124,{"$f":"Import!E30589","v":"Select"},{"$f":"Import!E30789","v":"Select"},{"$f":"Import!E30989","v":"Select"},{"$f":"Import!E31189","v":"Select"},{"$f":"Import!E31389","v":"Select"},{"$f":"Import!E31589","v":"Select"},{"$f":"Import!E31789","v":"Select"},{"$f":"Import!E31989","v":0},{"$f":"Import!E32189","v":0},{"$f":"Import!E32389","v":0},{"$f":"Import!E32589","v":0},{"$f":"Import!E32789","v":0}]
[125,{"$f":"Import!E30590","v":"Select"},{"$f":"Import!E30790","v":"Select"},{"$f":"Import!E30990","v":"Select"},{"$f":"Import!E31190","v":"Select"},{"$f":"Import!E31390","v":"Select"},{"$f":"Import!E31590","v":"Select"},{"$f":"Import!E31790","v":"Select"},{"$f":"Import!E31990","v":0},{"$f":"Import!E32190","v":0},{"$f":"Import!E32390","v":0},{"$f":"Import!E32590","v":0},{"$f":"Import!E32790","v":0}]
[126,{"$f":"Import!E30591","v":"Select"},{"$f":"Import!E30791","v":"Select"},{"$f":"Import!E30991","v":"Select"},{"$f":"Import!E31191","v":"Select"},{"$f":"Import!E31391","v":"Select"},{"$f":"Import!E31591","v":"Select"},{"$f":"Import!E31791","v":"Select"},{"$f":"Import!E31991","v":0},{"$f":"Import!E32191","v":0},{"$f":"Import!E32391","v":0},{"$f":"Import!E32591","v":0},{"$f":"Import!E32791","v":0}]
[127,{"$f":"Import!E30592","v":"Select"},{"$f":"Import!E30792","v":"Select"},{"$f":"Import!E30992","v":"Select"},{"$f":"Import!E31192","v":"Select"},{"$f":"Import!E31392","v":"Select"},{"$f":"Import!E31592","v":"Select"},{"$f":"Import!E31792","v":"Select"},{"$f":"Import!E31992","v":0},{"$f":"Import!E32192","v":0},{"$f":"Import!E32392","v":0},{"$f":"Import!E32592","v":0},{"$f":"Import!E32792","v":0}]
[128,{"$f":"Import!E30593","v":"Select"},{"$f":"Import!E30793","v":"Select"},{"$f":"Import!E30993","v":"Select"},{"$f":"Import!E31193","v":"Select"},{"$f":"Import!E31393","v":"Select"},{"$f":"Import!E31593","v":"Select"},{"$f":"Import!E31793","v":"Select"},{"$f":"Import!E31993","v":0},{"$f":"Import!E32193","v":0},{"$f":"Import!E32393","v":0},{"$f":"Import!E32593","v":0},{"$f":"Import!E32793","v":0}]
[129,{"$f":"Import!E30594","v":"Select"},{"$f":"Import!E30794","v":"Select"},{"$f":"Import!E30994","v":"Select"},{"$f":"Import!E31194","v":"Select"},{"$f":"Import!E31394","v":"Select"},{"$f":"Import!E31594","v":"Select"},{"$f":"Import!E31794","v":"Select"},{"$f":"Import!E31994","v":0},{"$f":"Import!E32194","v":0},{"$f":"Import!E32394","v":0},{"$f":"Import!E32594","v":0},{"$f":"Import!E32794","v":0}]
[130,{"$f":"Import!E30595","v":"Select"},{"$f":"Import!E30795","v":"Select"},{"$f":"Import!E30995","v":"Select"},{"$f":"Import!E31195","v":"Select"},{"$f":"Import!E31395","v":"Select"},{"$f":"Import!E31595","v":"Select"},{"$f":"Import!E31795","v":"Select"},{"$f":"Import!E31995","v":0},{"$f":"Import!E32195","v":0},{"$f":"Import!E32395","v":0},{"$f":"Import!E32595","v":0},{"$f":"Import!E32795","v":0}]
[{"$f":"A1689+1","v":131},{"$f":"Import!E30596","v":"Select"},{"$f":"Import!E30796","v":"Select"},{"$f":"Import!E30996","v":"Select"},{"$f":"Import!E31196","v":"Select"},{"$f":"Import!E31396","v":"Select"},{"$f":"Import!E31596","v":"Select"},{"$f":"Import!E31796","v":"Select"},{"$f":"Import!E31996","v":0},{"$f":"Import!E32196","v":0},{"$f":"Import!E32396","v":0},{"$f":"Import!E32596","v":0},{"$f":"Import!E32796","v":0}]
[132,{"$f":"Import!E30597","v":"Select"},{"$f":"Import!E30797","v":"Select"},{"$f":"Import!E30997","v":"Select"},{"$f":"Import!E31197","v":"Select"},{"$f":"Import!E31397","v":"Select"},{"$f":"Import!E31597","v":"Select"},{"$f":"Import!E31797","v":"Select"},{"$f":"Import!E31997","v":0},{"$f":"Import!E32197","v":0},{"$f":"Import!E32397","v":0},{"$f":"Import!E32597","v":0},{"$f":"Import!E32797","v":0}]
[133,{"$f":"Import!E30598","v":"Select"},{"$f":"Import!E30798","v":"Select"},{"$f":"Import!E30998","v":"Select"},{"$f":"Import!E31198","v":"Select"},{"$f":"Import!E31398","v":"Select"},{"$f":"Import!E31598","v":"Select"},{"$f":"Import!E31798","v":"Select"},{"$f":"Import!E31998","v":0},{"$f":"Import!E32198","v":0},{"$f":"Import!E32398","v":0},{"$f":"Import!E32598","v":0},{"$f":"Import!E32798","v":0}]
[134,{"$f":"Import!E30599","v":"Select"},{"$f":"Import!E30799","v":"Select"},{"$f":"Import!E30999","v":"Select"},{"$f":"Import!E31199","v":"Select"},{"$f":"Import!E31399","v":"Select"},{"$f":"Import!E31599","v":"Select"},{"$f":"Import!E31799","v":"Select"},{"$f":"Import!E31999","v":0},{"$f":"Import!E32199","v":0},{"$f":"Import!E32399","v":0},{"$f":"Import!E32599","v":0},{"$f":"Import!E32799","v":0}]
[135,{"$f":"Import!E30600","v":"Select"},{"$f":"Import!E30800","v":"Select"},{"$f":"Import!E31000","v":"Select"},{"$f":"Import!E31200","v":"Select"},{"$f":"Import!E31400","v":"Select"},{"$f":"Import!E31600","v":"Select"},{"$f":"Import!E31800","v":"Select"},{"$f":"Import!E32000","v":0},{"$f":"Import!E32200","v":0},{"$f":"Import!E32400","v":0},{"$f":"Import!E32600","v":0},{"$f":"Import!E32800","v":0}]
[136,{"$f":"Import!E30601","v":"Select"},{"$f":"Import!E30801","v":"Select"},{"$f":"Import!E31001","v":"Select"},{"$f":"Import!E31201","v":"Select"},{"$f":"Import!E31401","v":"Select"},{"$f":"Import!E31601","v":"Select"},{"$f":"Import!E31801","v":"Select"},{"$f":"Import!E32001","v":0},{"$f":"Import!E32201","v":0},{"$f":"Import!E32401","v":0},{"$f":"Import!E32601","v":0},{"$f":"Import!E32801","v":0}]
[137,{"$f":"Import!E30602","v":"Select"},{"$f":"Import!E30802","v":"Select"},{"$f":"Import!E31002","v":"Select"},{"$f":"Import!E31202","v":"Select"},{"$f":"Import!E31402","v":"Select"},{"$f":"Import!E31602","v":"Select"},{"$f":"Import!E31802","v":"Select"},{"$f":"Import!E32002","v":0},{"$f":"Import!E32202","v":0},{"$f":"Import!E32402","v":0},{"$f":"Import!E32602","v":0},{"$f":"Import!E32802","v":0}]
[138,{"$f":"Import!E30603","v":"Select"},{"$f":"Import!E30803","v":"Select"},{"$f":"Import!E31003","v":"Select"},{"$f":"Import!E31203","v":"Select"},{"$f":"Import!E31403","v":"Select"},{"$f":"Import!E31603","v":"Select"},{"$f":"Import!E31803","v":"Select"},{"$f":"Import!E32003","v":0},{"$f":"Import!E32203","v":0},{"$f":"Import!E32403","v":0},{"$f":"Import!E32603","v":0},{"$f":"Import!E32803","v":0}]
[139,{"$f":"Import!E30604","v":"Select"},{"$f":"Import!E30804","v":"Select"},{"$f":"Import!E31004","v":"Select"},{"$f":"Import!E31204","v":"Select"},{"$f":"Import!E31404","v":"Select"},{"$f":"Import!E31604","v":"Select"},{"$f":"Import!E31804","v":"Select"},{"$f":"Import!E32004","v":0},{"$f":"Import!E32204","v":0},{"$f":"Import!E32404","v":0},{"$f":"Import!E32604","v":0},{"$f":"Import!E32804","v":0}]
[140,{"$f":"Import!E30605","v":"Select"},{"$f":"Import!E30805","v":"Select"},{"$f":"Import!E31005","v":"Select"},{"$f":"Import!E31205","v":"Select"},{"$f":"Import!E31405","v":"Select"},{"$f":"Import!E31605","v":"Select"},{"$f":"Import!E31805","v":"Select"},{"$f":"Import!E32005","v":0},{"$f":"Import!E32205","v":0},{"$f":"Import!E32405","v":0},{"$f":"Import!E32605","v":0},{"$f":"Import!E32805","v":0}]
[141,{"$f":"Import!E30606","v":"Select"},{"$f":"Import!E30806","v":"Select"},{"$f":"Import!E31006","v":"Select"},{"$f":"Import!E31206","v":"Select"},{"$f":"Import!E31406","v":"Select"},{"$f":"Import!E31606","v":"Select"},{"$f":"Import!E31806","v":"Select"},{"$f":"Import!E32006","v":0},{"$f":"Import!E32206","v":0},{"$f":"Import!E32406","v":0},{"$f":"Import!E32606","v":0},{"$f":"Import!E32806","v":0}]
[142,{"$f":"Import!E30607","v":"Select"},{"$f":"Import!E30807","v":"Select"},{"$f":"Import!E31007","v":"Select"},{"$f":"Import!E31207","v":"Select"},{"$f":"Import!E31407","v":"Select"},{"$f":"Import!E31607","v":"Select"},{"$f":"Import!E31807","v":"Select"},{"$f":"Import!E32007","v":0},{"$f":"Import!E32207","v":0},{"$f":"Import!E32407","v":0},{"$f":"Import!E32607","v":0},{"$f":"Import!E32807","v":0}]
[143,{"$f":"Import!E30608","v":"Select"},{"$f":"Import!E30808","v":"Select"},{"$f":"Import!E31008","v":"Select"},{"$f":"Import!E31208","v":"Select"},{"$f":"Import!E31408","v":"Select"},{"$f":"Import!E31608","v":"Select"},{"$f":"Import!E31808","v":"Select"},{"$f":"Import!E32008","v":0},{"$f":"Import!E32208","v":0},{"$f":"Import!E32408","v":0},{"$f":"Import!E32608","v":0},{"$f":"Import!E32808","v":0}]
[144,{"$f":"Import!E30609","v":"Select"},{"$f":"Import!E30809","v":"Select"},{"$f":"Import!E31009","v":"Select"},{"$f":"Import!E31209","v":"Select"},{"$f":"Import!E31409","v":"Select"},{"$f":"Import!E31609","v":"Select"},{"$f":"Import!E31809","v":"Select"},{"$f":"Import!E32009","v":0},{"$f":"Import!E32209","v":0},{"$f":"Import!E32409","v":0},{"$f":"Import!E32609","v":0},{"$f":"Import!E32809","v":0}]
[145,{"$f":"Import!E30610","v":"Select"},{"$f":"Import!E30810","v":"Select"},{"$f":"Import!E31010","v":"Select"},{"$f":"Import!E31210","v":"Select"},{"$f":"Import!E31410","v":"Select"},{"$f":"Import!E31610","v":"Select"},{"$f":"Import!E31810","v":"Select"},{"$f":"Import!E32010","v":0},{"$f":"Import!E32210","v":0},{"$f":"Import!E32410","v":0},{"$f":"Import!E32610","v":0},{"$f":"Import!E32810","v":0}]
[146,{"$f":"Import!E30611","v":"Select"},{"$f":"Import!E30811","v":"Select"},{"$f":"Import!E31011","v":"Select"},{"$f":"Import!E31211","v":"Select"},{"$f":"Import!E31411","v":"Select"},{"$f":"Import!E31611","v":"Select"},{"$f":"Import!E31811","v":"Select"},{"$f":"Import!E32011","v":0},{"$f":"Import!E32211","v":0},{"$f":"Import!E32411","v":0},{"$f":"Import!E32611","v":0},{"$f":"Import!E32811","v":0}]
[147,{"$f":"Import!E30612","v":"Select"},{"$f":"Import!E30812","v":"Select"},{"$f":"Import!E31012","v":"Select"},{"$f":"Import!E31212","v":"Select"},{"$f":"Import!E31412","v":"Select"},{"$f":"Import!E31612","v":"Select"},{"$f":"Import!E31812","v":"Select"},{"$f":"Import!E32012","v":0},{"$f":"Import!E32212","v":0},{"$f":"Import!E32412","v":0},{"$f":"Import!E32612","v":0},{"$f":"Import!E32812","v":0}]
[148,{"$f":"Import!E30613","v":"Select"},{"$f":"Import!E30813","v":"Select"},{"$f":"Import!E31013","v":"Select"},{"$f":"Import!E31213","v":"Select"},{"$f":"Import!E31413","v":"Select"},{"$f":"Import!E31613","v":"Select"},{"$f":"Import!E31813","v":"Select"},{"$f":"Import!E32013","v":0},{"$f":"Import!E32213","v":0},{"$f":"Import!E32413","v":0},{"$f":"Import!E32613","v":0},{"$f":"Import!E32813","v":0}]
[149,{"$f":"Import!E30614","v":"Select"},{"$f":"Import!E30814","v":"Select"},{"$f":"Import!E31014","v":"Select"},{"$f":"Import!E31214","v":"Select"},{"$f":"Import!E31414","v":"Select"},{"$f":"Import!E31614","v":"Select"},{"$f":"Import!E31814","v":"Select"},{"$f":"Import!E32014","v":0},{"$f":"Import!E32214","v":0},{"$f":"Import!E32414","v":0},{"$f":"Import!E32614","v":0},{"$f":"Import!E32814","v":0}]
[150,{"$f":"Import!E30615","v":"Select"},{"$f":"Import!E30815","v":"Select"},{"$f":"Import!E31015","v":"Select"},{"$f":"Import!E31215","v":"Select"},{"$f":"Import!E31415","v":"Select"},{"$f":"Import!E31615","v":"Select"},{"$f":"Import!E31815","v":"Select"},{"$f":"Import!E32015","v":0},{"$f":"Import!E32215","v":0},{"$f":"Import!E32415","v":0},{"$f":"Import!E32615","v":0},{"$f":"Import!E32815","v":0}]
[151,{"$f":"Import!E30616","v":"Select"},{"$f":"Import!E30816","v":"Select"},{"$f":"Import!E31016","v":"Select"},{"$f":"Import!E31216","v":"Select"},{"$f":"Import!E31416","v":"Select"},{"$f":"Import!E31616","v":"Select"},{"$f":"Import!E31816","v":"Select"},{"$f":"Import!E32016","v":0},{"$f":"Import!E32216","v":0},{"$f":"Import!E32416","v":0},{"$f":"Import!E32616","v":0},{"$f":"Import!E32816","v":0}]
[152,{"$f":"Import!E30617","v":"Select"},{"$f":"Import!E30817","v":"Select"},{"$f":"Import!E31017","v":"Select"},{"$f":"Import!E31217","v":"Select"},{"$f":"Import!E31417","v":"Select"},{"$f":"Import!E31617","v":"Select"},{"$f":"Import!E31817","v":"Select"},{"$f":"Import!E32017","v":0},{"$f":"Import!E32217","v":0},{"$f":"Import!E32417","v":0},{"$f":"Import!E32617","v":0},{"$f":"Import!E32817","v":0}]
[153,{"$f":"Import!E30618","v":"Select"},{"$f":"Import!E30818","v":"Select"},{"$f":"Import!E31018","v":"Select"},{"$f":"Import!E31218","v":"Select"},{"$f":"Import!E31418","v":"Select"},{"$f":"Import!E31618","v":"Select"},{"$f":"Import!E31818","v":"Select"},{"$f":"Import!E32018","v":0},{"$f":"Import!E32218","v":0},{"$f":"Import!E32418","v":0},{"$f":"Import!E32618","v":0},{"$f":"Import!E32818","v":0}]
[154,{"$f":"Import!E30619","v":"Select"},{"$f":"Import!E30819","v":"Select"},{"$f":"Import!E31019","v":"Select"},{"$f":"Import!E31219","v":"Select"},{"$f":"Import!E31419","v":"Select"},{"$f":"Import!E31619","v":"Select"},{"$f":"Import!E31819","v":"Select"},{"$f":"Import!E32019","v":0},{"$f":"Import!E32219","v":0},{"$f":"Import!E32419","v":0},{"$f":"Import!E32619","v":0},{"$f":"Import!E32819","v":0}]
[155,{"$f":"Import!E30620","v":"Select"},{"$f":"Import!E30820","v":"Select"},{"$f":"Import!E31020","v":"Select"},{"$f":"Import!E31220","v":"Select"},{"$f":"Import!E31420","v":"Select"},{"$f":"Import!E31620","v":"Select"},{"$f":"Import!E31820","v":"Select"},{"$f":"Import!E32020","v":0},{"$f":"Import!E32220","v":0},{"$f":"Import!E32420","v":0},{"$f":"Import!E32620","v":0},{"$f":"Import!E32820","v":0}]
[156,{"$f":"Import!E30621","v":"Select"},{"$f":"Import!E30821","v":"Select"},{"$f":"Import!E31021","v":"Select"},{"$f":"Import!E31221","v":"Select"},{"$f":"Import!E31421","v":"Select"},{"$f":"Import!E31621","v":"Select"},{"$f":"Import!E31821","v":"Select"},{"$f":"Import!E32021","v":0},{"$f":"Import!E32221","v":0},{"$f":"Import!E32421","v":0},{"$f":"Import!E32621","v":0},{"$f":"Import!E32821","v":0}]
[157,{"$f":"Import!E30622","v":"Select"},{"$f":"Import!E30822","v":"Select"},{"$f":"Import!E31022","v":"Select"},{"$f":"Import!E31222","v":"Select"},{"$f":"Import!E31422","v":"Select"},{"$f":"Import!E31622","v":"Select"},{"$f":"Import!E31822","v":"Select"},{"$f":"Import!E32022","v":0},{"$f":"Import!E32222","v":0},{"$f":"Import!E32422","v":0},{"$f":"Import!E32622","v":0},{"$f":"Import!E32822","v":0}]
[158,{"$f":"Import!E30623","v":"Select"},{"$f":"Import!E30823","v":"Select"},{"$f":"Import!E31023","v":"Select"},{"$f":"Import!E31223","v":"Select"},{"$f":"Import!E31423","v":"Select"},{"$f":"Import!E31623","v":"Select"},{"$f":"Import!E31823","v":"Select"},{"$f":"Import!E32023","v":0},{"$f":"Import!E32223","v":0},{"$f":"Import!E32423","v":0},{"$f":"Import!E32623","v":0},{"$f":"Import!E32823","v":0}]
[159,{"$f":"Import!E30624","v":"Select"},{"$f":"Import!E30824","v":"Select"},{"$f":"Import!E31024","v":"Select"},{"$f":"Import!E31224","v":"Select"},{"$f":"Import!E31424","v":"Select"},{"$f":"Import!E31624","v":"Select"},{"$f":"Import!E31824","v":"Select"},{"$f":"Import!E32024","v":0},{"$f":"Import!E32224","v":0},{"$f":"Import!E32424","v":0},{"$f":"Import!E32624","v":0},{"$f":"Import!E32824","v":0}]
[160,{"$f":"Import!E30625","v":"Select"},{"$f":"Import!E30825","v":"Select"},{"$f":"Import!E31025","v":"Select"},{"$f":"Import!E31225","v":"Select"},{"$f":"Import!E31425","v":"Select"},{"$f":"Import!E31625","v":"Select"},{"$f":"Import!E31825","v":"Select"},{"$f":"Import!E32025","v":0},{"$f":"Import!E32225","v":0},{"$f":"Import!E32425","v":0},{"$f":"Import!E32625","v":0},{"$f":"Import!E32825","v":0}]
[161,{"$f":"Import!E30626","v":"Select"},{"$f":"Import!E30826","v":"Select"},{"$f":"Import!E31026","v":"Select"},{"$f":"Import!E31226","v":"Select"},{"$f":"Import!E31426","v":"Select"},{"$f":"Import!E31626","v":"Select"},{"$f":"Import!E31826","v":"Select"},{"$f":"Import!E32026","v":0},{"$f":"Import!E32226","v":0},{"$f":"Import!E32426","v":0},{"$f":"Import!E32626","v":0},{"$f":"Import!E32826","v":0}]
[162,{"$f":"Import!E30627","v":"Select"},{"$f":"Import!E30827","v":"Select"},{"$f":"Import!E31027","v":"Select"},{"$f":"Import!E31227","v":"Select"},{"$f":"Import!E31427","v":"Select"},{"$f":"Import!E31627","v":"Select"},{"$f":"Import!E31827","v":"Select"},{"$f":"Import!E32027","v":0},{"$f":"Import!E32227","v":0},{"$f":"Import!E32427","v":0},{"$f":"Import!E32627","v":0},{"$f":"Import!E32827","v":0}]
[163,{"$f":"Import!E30628","v":"Select"},{"$f":"Import!E30828","v":"Select"},{"$f":"Import!E31028","v":"Select"},{"$f":"Import!E31228","v":"Select"},{"$f":"Import!E31428","v":"Select"},{"$f":"Import!E31628","v":"Select"},{"$f":"Import!E31828","v":"Select"},{"$f":"Import!E32028","v":0},{"$f":"Import!E32228","v":0},{"$f":"Import!E32428","v":0},{"$f":"Import!E32628","v":0},{"$f":"Import!E32828","v":0}]
[164,{"$f":"Import!E30629","v":"Select"},{"$f":"Import!E30829","v":"Select"},{"$f":"Import!E31029","v":"Select"},{"$f":"Import!E31229","v":"Select"},{"$f":"Import!E31429","v":"Select"},{"$f":"Import!E31629","v":"Select"},{"$f":"Import!E31829","v":"Select"},{"$f":"Import!E32029","v":0},{"$f":"Import!E32229","v":0},{"$f":"Import!E32429","v":0},{"$f":"Import!E32629","v":0},{"$f":"Import!E32829","v":0}]
[165,{"$f":"Import!E30630","v":"Select"},{"$f":"Import!E30830","v":"Select"},{"$f":"Import!E31030","v":"Select"},{"$f":"Import!E31230","v":"Select"},{"$f":"Import!E31430","v":"Select"},{"$f":"Import!E31630","v":"Select"},{"$f":"Import!E31830","v":"Select"},{"$f":"Import!E32030","v":0},{"$f":"Import!E32230","v":0},{"$f":"Import!E32430","v":0},{"$f":"Import!E32630","v":0},{"$f":"Import!E32830","v":0}]
[166,{"$f":"Import!E30631","v":"Select"},{"$f":"Import!E30831","v":"Select"},{"$f":"Import!E31031","v":"Select"},{"$f":"Import!E31231","v":"Select"},{"$f":"Import!E31431","v":"Select"},{"$f":"Import!E31631","v":"Select"},{"$f":"Import!E31831","v":"Select"},{"$f":"Import!E32031","v":0},{"$f":"Import!E32231","v":0},{"$f":"Import!E32431","v":0},{"$f":"Import!E32631","v":0},{"$f":"Import!E32831","v":0}]
[167,{"$f":"Import!E30632","v":"Select"},{"$f":"Import!E30832","v":"Select"},{"$f":"Import!E31032","v":"Select"},{"$f":"Import!E31232","v":"Select"},{"$f":"Import!E31432","v":"Select"},{"$f":"Import!E31632","v":"Select"},{"$f":"Import!E31832","v":"Select"},{"$f":"Import!E32032","v":0},{"$f":"Import!E32232","v":0},{"$f":"Import!E32432","v":0},{"$f":"Import!E32632","v":0},{"$f":"Import!E32832","v":0}]
[168,{"$f":"Import!E30633","v":"Select"},{"$f":"Import!E30833","v":"Select"},{"$f":"Import!E31033","v":"Select"},{"$f":"Import!E31233","v":"Select"},{"$f":"Import!E31433","v":"Select"},{"$f":"Import!E31633","v":"Select"},{"$f":"Import!E31833","v":"Select"},{"$f":"Import!E32033","v":0},{"$f":"Import!E32233","v":0},{"$f":"Import!E32433","v":0},{"$f":"Import!E32633","v":0},{"$f":"Import!E32833","v":0}]
[169,{"$f":"Import!E30634","v":"Select"},{"$f":"Import!E30834","v":"Select"},{"$f":"Import!E31034","v":"Select"},{"$f":"Import!E31234","v":"Select"},{"$f":"Import!E31434","v":"Select"},{"$f":"Import!E31634","v":"Select"},{"$f":"Import!E31834","v":"Select"},{"$f":"Import!E32034","v":0},{"$f":"Import!E32234","v":0},{"$f":"Import!E32434","v":0},{"$f":"Import!E32634","v":0},{"$f":"Import!E32834","v":0}]
[170,{"$f":"Import!E30635","v":"Select"},{"$f":"Import!E30835","v":"Select"},{"$f":"Import!E31035","v":"Select"},{"$f":"Import!E31235","v":"Select"},{"$f":"Import!E31435","v":"Select"},{"$f":"Import!E31635","v":"Select"},{"$f":"Import!E31835","v":"Select"},{"$f":"Import!E32035","v":0},{"$f":"Import!E32235","v":0},{"$f":"Import!E32435","v":0},{"$f":"Import!E32635","v":0},{"$f":"Import!E32835","v":0}]
[171,{"$f":"Import!E30636","v":"Select"},{"$f":"Import!E30836","v":"Select"},{"$f":"Import!E31036","v":"Select"},{"$f":"Import!E31236","v":"Select"},{"$f":"Import!E31436","v":"Select"},{"$f":"Import!E31636","v":"Select"},{"$f":"Import!E31836","v":"Select"},{"$f":"Import!E32036","v":0},{"$f":"Import!E32236","v":0},{"$f":"Import!E32436","v":0},{"$f":"Import!E32636","v":0},{"$f":"Import!E32836","v":0}]
[172,{"$f":"Import!E30637","v":"Select"},{"$f":"Import!E30837","v":"Select"},{"$f":"Import!E31037","v":"Select"},{"$f":"Import!E31237","v":"Select"},{"$f":"Import!E31437","v":"Select"},{"$f":"Import!E31637","v":"Select"},{"$f":"Import!E31837","v":"Select"},{"$f":"Import!E32037","v":0},{"$f":"Import!E32237","v":0},{"$f":"Import!E32437","v":0},{"$f":"Import!E32637","v":0},{"$f":"Import!E32837","v":0}]
[173,{"$f":"Import!E30638","v":"Select"},{"$f":"Import!E30838","v":"Select"},{"$f":"Import!E31038","v":"Select"},{"$f":"Import!E31238","v":"Select"},{"$f":"Import!E31438","v":"Select"},{"$f":"Import!E31638","v":"Select"},{"$f":"Import!E31838","v":"Select"},{"$f":"Import!E32038","v":0},{"$f":"Import!E32238","v":0},{"$f":"Import!E32438","v":0},{"$f":"Import!E32638","v":0},{"$f":"Import!E32838","v":0}]
[174,{"$f":"Import!E30639","v":"Select"},{"$f":"Import!E30839","v":"Select"},{"$f":"Import!E31039","v":"Select"},{"$f":"Import!E31239","v":"Select"},{"$f":"Import!E31439","v":"Select"},{"$f":"Import!E31639","v":"Select"},{"$f":"Import!E31839","v":"Select"},{"$f":"Import!E32039","v":0},{"$f":"Import!E32239","v":0},{"$f":"Import!E32439","v":0},{"$f":"Import!E32639","v":0},{"$f":"Import!E32839","v":0}]
[175,{"$f":"Import!E30640","v":"Select"},{"$f":"Import!E30840","v":"Select"},{"$f":"Import!E31040","v":"Select"},{"$f":"Import!E31240","v":"Select"},{"$f":"Import!E31440","v":"Select"},{"$f":"Import!E31640","v":"Select"},{"$f":"Import!E31840","v":"Select"},{"$f":"Import!E32040","v":0},{"$f":"Import!E32240","v":0},{"$f":"Import!E32440","v":0},{"$f":"Import!E32640","v":0},{"$f":"Import!E32840","v":0}]
[176,{"$f":"Import!E30641","v":"Select"},{"$f":"Import!E30841","v":"Select"},{"$f":"Import!E31041","v":"Select"},{"$f":"Import!E31241","v":"Select"},{"$f":"Import!E31441","v":"Select"},{"$f":"Import!E31641","v":"Select"},{"$f":"Import!E31841","v":"Select"},{"$f":"Import!E32041","v":0},{"$f":"Import!E32241","v":0},{"$f":"Import!E32441","v":0},{"$f":"Import!E32641","v":0},{"$f":"Import!E32841","v":0}]
[177,{"$f":"Import!E30642","v":"Select"},{"$f":"Import!E30842","v":"Select"},{"$f":"Import!E31042","v":"Select"},{"$f":"Import!E31242","v":"Select"},{"$f":"Import!E31442","v":"Select"},{"$f":"Import!E31642","v":"Select"},{"$f":"Import!E31842","v":"Select"},{"$f":"Import!E32042","v":0},{"$f":"Import!E32242","v":0},{"$f":"Import!E32442","v":0},{"$f":"Import!E32642","v":0},{"$f":"Import!E32842","v":0}]
[178,{"$f":"Import!E30643","v":"Select"},{"$f":"Import!E30843","v":"Select"},{"$f":"Import!E31043","v":"Select"},{"$f":"Import!E31243","v":"Select"},{"$f":"Import!E31443","v":"Select"},{"$f":"Import!E31643","v":"Select"},{"$f":"Import!E31843","v":"Select"},{"$f":"Import!E32043","v":0},{"$f":"Import!E32243","v":0},{"$f":"Import!E32443","v":0},{"$f":"Import!E32643","v":0},{"$f":"Import!E32843","v":0}]
[179,{"$f":"Import!E30644","v":"Select"},{"$f":"Import!E30844","v":"Select"},{"$f":"Import!E31044","v":"Select"},{"$f":"Import!E31244","v":"Select"},{"$f":"Import!E31444","v":"Select"},{"$f":"Import!E31644","v":"Select"},{"$f":"Import!E31844","v":"Select"},{"$f":"Import!E32044","v":0},{"$f":"Import!E32244","v":0},{"$f":"Import!E32444","v":0},{"$f":"Import!E32644","v":0},{"$f":"Import!E32844","v":0}]
[180,{"$f":"Import!E30645","v":"Select"},{"$f":"Import!E30845","v":"Select"},{"$f":"Import!E31045","v":"Select"},{"$f":"Import!E31245","v":"Select"},{"$f":"Import!E31445","v":"Select"},{"$f":"Import!E31645","v":"Select"},{"$f":"Import!E31845","v":"Select"},{"$f":"Import!E32045","v":0},{"$f":"Import!E32245","v":0},{"$f":"Import!E32445","v":0},{"$f":"Import!E32645","v":0},{"$f":"Import!E32845","v":0}]
[181,{"$f":"Import!E30646","v":"Select"},{"$f":"Import!E30846","v":"Select"},{"$f":"Import!E31046","v":"Select"},{"$f":"Import!E31246","v":"Select"},{"$f":"Import!E31446","v":"Select"},{"$f":"Import!E31646","v":"Select"},{"$f":"Import!E31846","v":"Select"},{"$f":"Import!E32046","v":0},{"$f":"Import!E32246","v":0},{"$f":"Import!E32446","v":0},{"$f":"Import!E32646","v":0},{"$f":"Import!E32846","v":0}]
[182,{"$f":"Import!E30647","v":"Select"},{"$f":"Import!E30847","v":"Select"},{"$f":"Import!E31047","v":"Select"},{"$f":"Import!E31247","v":"Select"},{"$f":"Import!E31447","v":"Select"},{"$f":"Import!E31647","v":"Select"},{"$f":"Import!E31847","v":"Select"},{"$f":"Import!E32047","v":0},{"$f":"Import!E32247","v":0},{"$f":"Import!E32447","v":0},{"$f":"Import!E32647","v":0},{"$f":"Import!E32847","v":0}]
[183,{"$f":"Import!E30648","v":"Select"},{"$f":"Import!E30848","v":"Select"},{"$f":"Import!E31048","v":"Select"},{"$f":"Import!E31248","v":"Select"},{"$f":"Import!E31448","v":"Select"},{"$f":"Import!E31648","v":"Select"},{"$f":"Import!E31848","v":"Select"},{"$f":"Import!E32048","v":0},{"$f":"Import!E32248","v":0},{"$f":"Import!E32448","v":0},{"$f":"Import!E32648","v":0},{"$f":"Import!E32848","v":0}]
[184,{"$f":"Import!E30649","v":"Select"},{"$f":"Import!E30849","v":"Select"},{"$f":"Import!E31049","v":"Select"},{"$f":"Import!E31249","v":"Select"},{"$f":"Import!E31449","v":"Select"},{"$f":"Import!E31649","v":"Select"},{"$f":"Import!E31849","v":"Select"},{"$f":"Import!E32049","v":0},{"$f":"Import!E32249","v":0},{"$f":"Import!E32449","v":0},{"$f":"Import!E32649","v":0},{"$f":"Import!E32849","v":0}]
[185,{"$f":"Import!E30650","v":"Select"},{"$f":"Import!E30850","v":"Select"},{"$f":"Import!E31050","v":"Select"},{"$f":"Import!E31250","v":"Select"},{"$f":"Import!E31450","v":"Select"},{"$f":"Import!E31650","v":"Select"},{"$f":"Import!E31850","v":"Select"},{"$f":"Import!E32050","v":0},{"$f":"Import!E32250","v":0},{"$f":"Import!E32450","v":0},{"$f":"Import!E32650","v":0},{"$f":"Import!E32850","v":0}]
[186,{"$f":"Import!E30651","v":"Select"},{"$f":"Import!E30851","v":"Select"},{"$f":"Import!E31051","v":"Select"},{"$f":"Import!E31251","v":"Select"},{"$f":"Import!E31451","v":"Select"},{"$f":"Import!E31651","v":"Select"},{"$f":"Import!E31851","v":"Select"},{"$f":"Import!E32051","v":0},{"$f":"Import!E32251","v":0},{"$f":"Import!E32451","v":0},{"$f":"Import!E32651","v":0},{"$f":"Import!E32851","v":0}]
[187,{"$f":"Import!E30652","v":"Select"},{"$f":"Import!E30852","v":"Select"},{"$f":"Import!E31052","v":"Select"},{"$f":"Import!E31252","v":"Select"},{"$f":"Import!E31452","v":"Select"},{"$f":"Import!E31652","v":"Select"},{"$f":"Import!E31852","v":"Select"},{"$f":"Import!E32052","v":0},{"$f":"Import!E32252","v":0},{"$f":"Import!E32452","v":0},{"$f":"Import!E32652","v":0},{"$f":"Import!E32852","v":0}]
[188,{"$f":"Import!E30653","v":"Select"},{"$f":"Import!E30853","v":"Select"},{"$f":"Import!E31053","v":"Select"},{"$f":"Import!E31253","v":"Select"},{"$f":"Import!E31453","v":"Select"},{"$f":"Import!E31653","v":"Select"},{"$f":"Import!E31853","v":"Select"},{"$f":"Import!E32053","v":0},{"$f":"Import!E32253","v":0},{"$f":"Import!E32453","v":0},{"$f":"Import!E32653","v":0},{"$f":"Import!E32853","v":0}]
[189,{"$f":"Import!E30654","v":"Select"},{"$f":"Import!E30854","v":"Select"},{"$f":"Import!E31054","v":"Select"},{"$f":"Import!E31254","v":"Select"},{"$f":"Import!E31454","v":"Select"},{"$f":"Import!E31654","v":"Select"},{"$f":"Import!E31854","v":"Select"},{"$f":"Import!E32054","v":0},{"$f":"Import!E32254","v":0},{"$f":"Import!E32454","v":0},{"$f":"Import!E32654","v":0},{"$f":"Import!E32854","v":0}]
[190,{"$f":"Import!E30655","v":"Select"},{"$f":"Import!E30855","v":"Select"},{"$f":"Import!E31055","v":"Select"},{"$f":"Import!E31255","v":"Select"},{"$f":"Import!E31455","v":"Select"},{"$f":"Import!E31655","v":"Select"},{"$f":"Import!E31855","v":"Select"},{"$f":"Import!E32055","v":0},{"$f":"Import!E32255","v":0},{"$f":"Import!E32455","v":0},{"$f":"Import!E32655","v":0},{"$f":"Import!E32855","v":0}]
[191,{"$f":"Import!E30656","v":"Select"},{"$f":"Import!E30856","v":"Select"},{"$f":"Import!E31056","v":"Select"},{"$f":"Import!E31256","v":"Select"},{"$f":"Import!E31456","v":"Select"},{"$f":"Import!E31656","v":"Select"},{"$f":"Import!E31856","v":"Select"},{"$f":"Import!E32056","v":0},{"$f":"Import!E32256","v":0},{"$f":"Import!E32456","v":0},{"$f":"Import!E32656","v":0},{"$f":"Import!E32856","v":0}]
[192,{"$f":"Import!E30657","v":"Select"},{"$f":"Import!E30857","v":"Select"},{"$f":"Import!E31057","v":"Select"},{"$f":"Import!E31257","v":"Select"},{"$f":"Import!E31457","v":"Select"},{"$f":"Import!E31657","v":"Select"},{"$f":"Import!E31857","v":"Select"},{"$f":"Import!E32057","v":0},{"$f":"Import!E32257","v":0},{"$f":"Import!E32457","v":0},{"$f":"Import!E32657","v":0},{"$f":"Import!E32857","v":0}]
[193,{"$f":"Import!E30658","v":"Select"},{"$f":"Import!E30858","v":"Select"},{"$f":"Import!E31058","v":"Select"},{"$f":"Import!E31258","v":"Select"},{"$f":"Import!E31458","v":"Select"},{"$f":"Import!E31658","v":"Select"},{"$f":"Import!E31858","v":"Select"},{"$f":"Import!E32058","v":0},{"$f":"Import!E32258","v":0},{"$f":"Import!E32458","v":0},{"$f":"Import!E32658","v":0},{"$f":"Import!E32858","v":0}]
[194,{"$f":"Import!E30659","v":"Select"},{"$f":"Import!E30859","v":"Select"},{"$f":"Import!E31059","v":"Select"},{"$f":"Import!E31259","v":"Select"},{"$f":"Import!E31459","v":"Select"},{"$f":"Import!E31659","v":"Select"},{"$f":"Import!E31859","v":"Select"},{"$f":"Import!E32059","v":0},{"$f":"Import!E32259","v":0},{"$f":"Import!E32459","v":0},{"$f":"Import!E32659","v":0},{"$f":"Import!E32859","v":0}]
[{"$f":"A1753+1","v":195},{"$f":"Import!E30660","v":"Select"},{"$f":"Import!E30860","v":"Select"},{"$f":"Import!E31060","v":"Select"},{"$f":"Import!E31260","v":"Select"},{"$f":"Import!E31460","v":"Select"},{"$f":"Import!E31660","v":"Select"},{"$f":"Import!E31860","v":"Select"},{"$f":"Import!E32060","v":0},{"$f":"Import!E32260","v":0},{"$f":"Import!E32460","v":0},{"$f":"Import!E32660","v":0},{"$f":"Import!E32860","v":0}]
[196,{"$f":"Import!E30661","v":"Select"},{"$f":"Import!E30861","v":"Select"},{"$f":"Import!E31061","v":"Select"},{"$f":"Import!E31261","v":"Select"},{"$f":"Import!E31461","v":"Select"},{"$f":"Import!E31661","v":"Select"},{"$f":"Import!E31861","v":"Select"},{"$f":"Import!E32061","v":0},{"$f":"Import!E32261","v":0},{"$f":"Import!E32461","v":0},{"$f":"Import!E32661","v":0},{"$f":"Import!E32861","v":0}]
[197,{"$f":"Import!E30662","v":"Select"},{"$f":"Import!E30862","v":"Select"},{"$f":"Import!E31062","v":"Select"},{"$f":"Import!E31262","v":"Select"},{"$f":"Import!E31462","v":"Select"},{"$f":"Import!E31662","v":"Select"},{"$f":"Import!E31862","v":"Select"},{"$f":"Import!E32062","v":0},{"$f":"Import!E32262","v":0},{"$f":"Import!E32462","v":0},{"$f":"Import!E32662","v":0},{"$f":"Import!E32862","v":0}]
[198,{"$f":"Import!E30663","v":"Select"},{"$f":"Import!E30863","v":"Select"},{"$f":"Import!E31063","v":"Select"},{"$f":"Import!E31263","v":"Select"},{"$f":"Import!E31463","v":"Select"},{"$f":"Import!E31663","v":"Select"},{"$f":"Import!E31863","v":"Select"},{"$f":"Import!E32063","v":0},{"$f":"Import!E32263","v":0},{"$f":"Import!E32463","v":0},{"$f":"Import!E32663","v":0},{"$f":"Import!E32863","v":0}]
[199,{"$f":"Import!E30664","v":"Select"},{"$f":"Import!E30864","v":"Select"},{"$f":"Import!E31064","v":"Select"},{"$f":"Import!E31264","v":"Select"},{"$f":"Import!E31464","v":"Select"},{"$f":"Import!E31664","v":"Select"},{"$f":"Import!E31864","v":"Select"},{"$f":"Import!E32064","v":0},{"$f":"Import!E32264","v":0},{"$f":"Import!E32464","v":0},{"$f":"Import!E32664","v":0},{"$f":"Import!E32864","v":0}]
[200,{"$f":"Import!E30665","v":"Select"},{"$f":"Import!E30865","v":"Select"},{"$f":"Import!E31065","v":"Select"},{"$f":"Import!E31265","v":"Select"},{"$f":"Import!E31465","v":"Select"},{"$f":"Import!E31665","v":"Select"},{"$f":"Import!E31865","v":"Select"},{"$f":"Import!E32065","v":0},{"$f":"Import!E32265","v":0},{"$f":"Import!E32465","v":0},{"$f":"Import!E32665","v":0},{"$f":"Import!E32865","v":0}]
[]
[null,"Total Derivatives",null,null,null,null,null,null,{"$f":"SUM(I1560:I1759)","v":0},{"$f":"SUM(J1560:J1759)","v":0},{"$f":"SUM(K1560:K1759)","v":0}]
[]
[null,"(J) INFORMATION ON EXPOSURES TO FINANCIAL INSTITUTIONS AND UNLISTED COUNTERPARTIES"]
[null,null,null,null,null,"Commercial Loans and Mortgages"]
[null,null,{"$f":"YEAR($C$3)","v":2023},"Fair Value",null,null,"Securitisations ","Other debt securities"]
[null,"Financial Institutions","Equities","Corporate Bonds","Corporate Loans",null,null,null,null,"Comments"]
[1,"Exposure to Financial Institutions (Banks, Insurance Companies, Other Financials) - Investment Grade, BSCR Rating 1-3",{"$f":"Import!E32866","v":0},{"$f":"Import!E32870","v":0},{"$f":"Import!E32874","v":0},{"$f":"Import!E32878","v":0},{"$f":"Import!E32882","v":0},{"$f":"Import!E32886","v":0},null,{"$f":"Import!E32890","v":0}]
[2,"Exposure to Financial Institutions (Banks, Insurance Companies, Other Financials) - Investment Grade, BSCR Rating 4",{"$f":"Import!E32867","v":0},{"$f":"Import!E32871","v":0},{"$f":"Import!E32875","v":0},{"$f":"Import!E32879","v":0},{"$f":"Import!E32883","v":0},{"$f":"Import!E32887","v":0},null,{"$f":"Import!E32891","v":0}]
[3,"Exposure to Financial Institutions (Banks, Insurance Companies, Other Financials) - Below Investment Grade",{"$f":"Import!E32868","v":0},{"$f":"Import!E32872","v":0},{"$f":"Import!E32876","v":0},{"$f":"Import!E32880","v":0},{"$f":"Import!E32884","v":0},{"$f":"Import!E32888","v":0},null,{"$f":"Import!E32892","v":0}]
[4,"Exposure to Financial Institutions (Banks, Insurance Companies, Other Financials) - Unrated",{"$f":"Import!E32869","v":0},{"$f":"Import!E32873","v":0},{"$f":"Import!E32877","v":0},{"$f":"Import!E32881","v":0},{"$f":"Import!E32885","v":0},{"$f":"Import!E32889","v":0},null,{"$f":"Import!E32893","v":0}]
[]
[null,"Total Exposures to Financial Institutions",{"$f":"SUM(C1767:C1770)","v":0},{"$f":"SUM(D1767:D1770)","v":0},0,0,0,0]
[]
[null,"Of which","Equities","Corporate Bonds","Corporate Loans","Other",null,null,null,"Comments"]
[5,"- exposures to Banks",{"$f":"Import!E32894","v":0},{"$f":"Import!E32897","v":0},{"$f":"Import!E32900","v":0},{"$f":"Import!E32903","v":0},null,null,null,{"$f":"Import!E32906","v":0}]
[6,"- exposures to Insurers",{"$f":"Import!E32895","v":0},{"$f":"Import!E32898","v":0},{"$f":"Import!E32901","v":0},{"$f":"Import!E32904","v":0},null,null,null,{"$f":"Import!E32907","v":0}]
[7,"- exposures to Other Financial Institutions",{"$f":"Import!E32896","v":0},{"$f":"Import!E32899","v":0},{"$f":"Import!E32902","v":0},{"$f":"Import!E32905","v":0},null,null,null,{"$f":"Import!E32908","v":0}]
[]
[null,"Total Exposures",{"$f":"SUM(C1775:C1777)","v":0},{"$f":"SUM(D1775:D1777)","v":0},{"$f":"SUM(E1775:E1777)","v":0},{"$f":"SUM(F1775:F1777)","v":0}]
[]
[null,null,{"$f":"YEAR($C$3)","v":2023},"Fair Value"]
[null,"Unlisted Counterparties","Equities","Corporate Bonds","Corporate Loans","Other",null,null,null,"Comments"]
[8,"Direct Exposure to Unlisted Counterparties - Investment Grade, BSCR Rating 1-3",{"$f":"Import!E32909","v":0},{"$f":"Import!E32913","v":0},{"$f":"Import!E32917","v":0},{"$f":"Import!E32921","v":0},null,null,null,{"$f":"Import!E32925","v":0}]
[9,"Direct Exposure to Unlisted Counterparties - Investment Grade, BSCR Rating 4",{"$f":"Import!E32910","v":0},{"$f":"Import!E32914","v":0},{"$f":"Import!E32918","v":0},{"$f":"Import!E32922","v":0},null,null,null,{"$f":"Import!E32926","v":0}]
[10,"Direct Exposure to Unlisted Counterparties - Below Investment Grade",{"$f":"Import!E32911","v":0},{"$f":"Import!E32915","v":0},{"$f":"Import!E32919","v":0},{"$f":"Import!E32923","v":0},null,null,null,{"$f":"Import!E32927","v":0}]
[11,"Direct Exposure to Unlisted Counterparties - Unrated",{"$f":"Import!E32912","v":0},{"$f":"Import!E32916","v":0},{"$f":"Import!E32920","v":0},{"$f":"Import!E32924","v":0},null,null,null,{"$f":"Import!E32928","v":0}]
[]
[null,"Total Direct Exposures to Unlisted Counterparties",{"$f":"SUM(C1783:C1786)","v":0},{"$f":"SUM(D1783:D1786)","v":0},0,0]
[]
[null,"(K) OTHER ASSETS"]
[]
[null,null,"Enter # of Asset Types",{"$f":"Import!E32929","v":0}]
[]
[null,null,null,null,{"$f":"YEAR($C$3)","v":2023},2023]
[null,"Asset Type","Currency","BSCR Rating","Nominal Amount","Fair Value","Comments"]
[1,{"$f":"Import!E32930","v":"Select"},{"$f":"Import!E33130","v":"Select"},{"$f":"Import!E33330","v":"Select"},{"$f":"Import!E33530","v":0},{"$f":"Import!E33730","v":0},{"$f":"Import!E33930","v":0}]
[{"$f":"A1796+1","v":2},{"$f":"Import!E32931","v":"Select"},{"$f":"Import!E33131","v":"Select"},{"$f":"Import!E33331","v":"Select"},{"$f":"Import!E33531","v":0},{"$f":"Import!E33731","v":0},{"$f":"Import!E33931","v":0}]
[{"$f":"A1797+1","v":3},{"$f":"Import!E32932","v":"Select"},{"$f":"Import!E33132","v":"Select"},{"$f":"Import!E33332","v":"Select"},{"$f":"Import!E33532","v":0},{"$f":"Import!E33732","v":0},{"$f":"Import!E33932","v":0}]
[4,{"$f":"Import!E32933","v":"Select"},{"$f":"Import!E33133","v":"Select"},{"$f":"Import!E33333","v":"Select"},{"$f":"Import!E33533","v":0},{"$f":"Import!E33733","v":0},{"$f":"Import!E33933","v":0}]
[5,{"$f":"Import!E32934","v":"Select"},{"$f":"Import!E33134","v":"Select"},{"$f":"Import!E33334","v":"Select"},{"$f":"Import!E33534","v":0},{"$f":"Import!E33734","v":0},{"$f":"Import!E33934","v":0}]
[6,{"$f":"Import!E32935","v":"Select"},{"$f":"Import!E33135","v":"Select"},{"$f":"Import!E33335","v":"Select"},{"$f":"Import!E33535","v":0},{"$f":"Import!E33735","v":0},{"$f":"Import!E33935","v":0}]
[7,{"$f":"Import!E32936","v":"Select"},{"$f":"Import!E33136","v":"Select"},{"$f":"Import!E33336","v":"Select"},{"$f":"Import!E33536","v":0},{"$f":"Import!E33736","v":0},{"$f":"Import!E33936","v":0}]
[8,{"$f":"Import!E32937","v":"Select"},{"$f":"Import!E33137","v":"Select"},{"$f":"Import!E33337","v":"Select"},{"$f":"Import!E33537","v":0},{"$f":"Import!E33737","v":0},{"$f":"Import!E33937","v":0}]
[9,{"$f":"Import!E32938","v":"Select"},{"$f":"Import!E33138","v":"Select"},{"$f":"Import!E33338","v":"Select"},{"$f":"Import!E33538","v":0},{"$f":"Import!E33738","v":0},{"$f":"Import!E33938","v":0}]
[10,{"$f":"Import!E32939","v":"Select"},{"$f":"Import!E33139","v":"Select"},{"$f":"Import!E33339","v":"Select"},{"$f":"Import!E33539","v":0},{"$f":"Import!E33739","v":0},{"$f":"Import!E33939","v":0}]
[11,{"$f":"Import!E32940","v":"Select"},{"$f":"Import!E33140","v":"Select"},{"$f":"Import!E33340","v":"Select"},{"$f":"Import!E33540","v":0},{"$f":"Import!E33740","v":0},{"$f":"Import!E33940","v":0}]
[12,{"$f":"Import!E32941","v":"Select"},{"$f":"Import!E33141","v":"Select"},{"$f":"Import!E33341","v":"Select"},{"$f":"Import!E33541","v":0},{"$f":"Import!E33741","v":0},{"$f":"Import!E33941","v":0}]
[13,{"$f":"Import!E32942","v":"Select"},{"$f":"Import!E33142","v":"Select"},{"$f":"Import!E33342","v":"Select"},{"$f":"Import!E33542","v":0},{"$f":"Import!E33742","v":0},{"$f":"Import!E33942","v":0}]
[14,{"$f":"Import!E32943","v":"Select"},{"$f":"Import!E33143","v":"Select"},{"$f":"Import!E33343","v":"Select"},{"$f":"Import!E33543","v":0},{"$f":"Import!E33743","v":0},{"$f":"Import!E33943","v":0}]
[15,{"$f":"Import!E32944","v":"Select"},{"$f":"Import!E33144","v":"Select"},{"$f":"Import!E33344","v":"Select"},{"$f":"Import!E33544","v":0},{"$f":"Import!E33744","v":0},{"$f":"Import!E33944","v":0}]
[16,{"$f":"Import!E32945","v":"Select"},{"$f":"Import!E33145","v":"Select"},{"$f":"Import!E33345","v":"Select"},{"$f":"Import!E33545","v":0},{"$f":"Import!E33745","v":0},{"$f":"Import!E33945","v":0}]
[17,{"$f":"Import!E32946","v":"Select"},{"$f":"Import!E33146","v":"Select"},{"$f":"Import!E33346","v":"Select"},{"$f":"Import!E33546","v":0},{"$f":"Import!E33746","v":0},{"$f":"Import!E33946","v":0}]
[18,{"$f":"Import!E32947","v":"Select"},{"$f":"Import!E33147","v":"Select"},{"$f":"Import!E33347","v":"Select"},{"$f":"Import!E33547","v":0},{"$f":"Import!E33747","v":0},{"$f":"Import!E33947","v":0}]
[19,{"$f":"Import!E32948","v":"Select"},{"$f":"Import!E33148","v":"Select"},{"$f":"Import!E33348","v":"Select"},{"$f":"Import!E33548","v":0},{"$f":"Import!E33748","v":0},{"$f":"Import!E33948","v":0}]
[20,{"$f":"Import!E32949","v":"Select"},{"$f":"Import!E33149","v":"Select"},{"$f":"Import!E33349","v":"Select"},{"$f":"Import!E33549","v":0},{"$f":"Import!E33749","v":0},{"$f":"Import!E33949","v":0}]
[21,{"$f":"Import!E32950","v":"Select"},{"$f":"Import!E33150","v":"Select"},{"$f":"Import!E33350","v":"Select"},{"$f":"Import!E33550","v":0},{"$f":"Import!E33750","v":0},{"$f":"Import!E33950","v":0}]
[22,{"$f":"Import!E32951","v":"Select"},{"$f":"Import!E33151","v":"Select"},{"$f":"Import!E33351","v":"Select"},{"$f":"Import!E33551","v":0},{"$f":"Import!E33751","v":0},{"$f":"Import!E33951","v":0}]
[23,{"$f":"Import!E32952","v":"Select"},{"$f":"Import!E33152","v":"Select"},{"$f":"Import!E33352","v":"Select"},{"$f":"Import!E33552","v":0},{"$f":"Import!E33752","v":0},{"$f":"Import!E33952","v":0}]
[24,{"$f":"Import!E32953","v":"Select"},{"$f":"Import!E33153","v":"Select"},{"$f":"Import!E33353","v":"Select"},{"$f":"Import!E33553","v":0},{"$f":"Import!E33753","v":0},{"$f":"Import!E33953","v":0}]
[25,{"$f":"Import!E32954","v":"Select"},{"$f":"Import!E33154","v":"Select"},{"$f":"Import!E33354","v":"Select"},{"$f":"Import!E33554","v":0},{"$f":"Import!E33754","v":0},{"$f":"Import!E33954","v":0}]
[26,{"$f":"Import!E32955","v":"Select"},{"$f":"Import!E33155","v":"Select"},{"$f":"Import!E33355","v":"Select"},{"$f":"Import!E33555","v":0},{"$f":"Import!E33755","v":0},{"$f":"Import!E33955","v":0}]
[27,{"$f":"Import!E32956","v":"Select"},{"$f":"Import!E33156","v":"Select"},{"$f":"Import!E33356","v":"Select"},{"$f":"Import!E33556","v":0},{"$f":"Import!E33756","v":0},{"$f":"Import!E33956","v":0}]
[28,{"$f":"Import!E32957","v":"Select"},{"$f":"Import!E33157","v":"Select"},{"$f":"Import!E33357","v":"Select"},{"$f":"Import!E33557","v":0},{"$f":"Import!E33757","v":0},{"$f":"Import!E33957","v":0}]
[29,{"$f":"Import!E32958","v":"Select"},{"$f":"Import!E33158","v":"Select"},{"$f":"Import!E33358","v":"Select"},{"$f":"Import!E33558","v":0},{"$f":"Import!E33758","v":0},{"$f":"Import!E33958","v":0}]
[30,{"$f":"Import!E32959","v":"Select"},{"$f":"Import!E33159","v":"Select"},{"$f":"Import!E33359","v":"Select"},{"$f":"Import!E33559","v":0},{"$f":"Import!E33759","v":0},{"$f":"Import!E33959","v":0}]
[31,{"$f":"Import!E32960","v":"Select"},{"$f":"Import!E33160","v":"Select"},{"$f":"Import!E33360","v":"Select"},{"$f":"Import!E33560","v":0},{"$f":"Import!E33760","v":0},{"$f":"Import!E33960","v":0}]
[32,{"$f":"Import!E32961","v":"Select"},{"$f":"Import!E33161","v":"Select"},{"$f":"Import!E33361","v":"Select"},{"$f":"Import!E33561","v":0},{"$f":"Import!E33761","v":0},{"$f":"Import!E33961","v":0}]
[33,{"$f":"Import!E32962","v":"Select"},{"$f":"Import!E33162","v":"Select"},{"$f":"Import!E33362","v":"Select"},{"$f":"Import!E33562","v":0},{"$f":"Import!E33762","v":0},{"$f":"Import!E33962","v":0}]
[34,{"$f":"Import!E32963","v":"Select"},{"$f":"Import!E33163","v":"Select"},{"$f":"Import!E33363","v":"Select"},{"$f":"Import!E33563","v":0},{"$f":"Import!E33763","v":0},{"$f":"Import!E33963","v":0}]
[35,{"$f":"Import!E32964","v":"Select"},{"$f":"Import!E33164","v":"Select"},{"$f":"Import!E33364","v":"Select"},{"$f":"Import!E33564","v":0},{"$f":"Import!E33764","v":0},{"$f":"Import!E33964","v":0}]
[36,{"$f":"Import!E32965","v":"Select"},{"$f":"Import!E33165","v":"Select"},{"$f":"Import!E33365","v":"Select"},{"$f":"Import!E33565","v":0},{"$f":"Import!E33765","v":0},{"$f":"Import!E33965","v":0}]
[37,{"$f":"Import!E32966","v":"Select"},{"$f":"Import!E33166","v":"Select"},{"$f":"Import!E33366","v":"Select"},{"$f":"Import!E33566","v":0},{"$f":"Import!E33766","v":0},{"$f":"Import!E33966","v":0}]
[38,{"$f":"Import!E32967","v":"Select"},{"$f":"Import!E33167","v":"Select"},{"$f":"Import!E33367","v":"Select"},{"$f":"Import!E33567","v":0},{"$f":"Import!E33767","v":0},{"$f":"Import!E33967","v":0}]
[39,{"$f":"Import!E32968","v":"Select"},{"$f":"Import!E33168","v":"Select"},{"$f":"Import!E33368","v":"Select"},{"$f":"Import!E33568","v":0},{"$f":"Import!E33768","v":0},{"$f":"Import!E33968","v":0}]
[40,{"$f":"Import!E32969","v":"Select"},{"$f":"Import!E33169","v":"Select"},{"$f":"Import!E33369","v":"Select"},{"$f":"Import!E33569","v":0},{"$f":"Import!E33769","v":0},{"$f":"Import!E33969","v":0}]
[41,{"$f":"Import!E32970","v":"Select"},{"$f":"Import!E33170","v":"Select"},{"$f":"Import!E33370","v":"Select"},{"$f":"Import!E33570","v":0},{"$f":"Import!E33770","v":0},{"$f":"Import!E33970","v":0}]
[42,{"$f":"Import!E32971","v":"Select"},{"$f":"Import!E33171","v":"Select"},{"$f":"Import!E33371","v":"Select"},{"$f":"Import!E33571","v":0},{"$f":"Import!E33771","v":0},{"$f":"Import!E33971","v":0}]
[43,{"$f":"Import!E32972","v":"Select"},{"$f":"Import!E33172","v":"Select"},{"$f":"Import!E33372","v":"Select"},{"$f":"Import!E33572","v":0},{"$f":"Import!E33772","v":0},{"$f":"Import!E33972","v":0}]
[44,{"$f":"Import!E32973","v":"Select"},{"$f":"Import!E33173","v":"Select"},{"$f":"Import!E33373","v":"Select"},{"$f":"Import!E33573","v":0},{"$f":"Import!E33773","v":0},{"$f":"Import!E33973","v":0}]
[45,{"$f":"Import!E32974","v":"Select"},{"$f":"Import!E33174","v":"Select"},{"$f":"Import!E33374","v":"Select"},{"$f":"Import!E33574","v":0},{"$f":"Import!E33774","v":0},{"$f":"Import!E33974","v":0}]
[46,{"$f":"Import!E32975","v":"Select"},{"$f":"Import!E33175","v":"Select"},{"$f":"Import!E33375","v":"Select"},{"$f":"Import!E33575","v":0},{"$f":"Import!E33775","v":0},{"$f":"Import!E33975","v":0}]
[47,{"$f":"Import!E32976","v":"Select"},{"$f":"Import!E33176","v":"Select"},{"$f":"Import!E33376","v":"Select"},{"$f":"Import!E33576","v":0},{"$f":"Import!E33776","v":0},{"$f":"Import!E33976","v":0}]
[48,{"$f":"Import!E32977","v":"Select"},{"$f":"Import!E33177","v":"Select"},{"$f":"Import!E33377","v":"Select"},{"$f":"Import!E33577","v":0},{"$f":"Import!E33777","v":0},{"$f":"Import!E33977","v":0}]
[49,{"$f":"Import!E32978","v":"Select"},{"$f":"Import!E33178","v":"Select"},{"$f":"Import!E33378","v":"Select"},{"$f":"Import!E33578","v":0},{"$f":"Import!E33778","v":0},{"$f":"Import!E33978","v":0}]
[50,{"$f":"Import!E32979","v":"Select"},{"$f":"Import!E33179","v":"Select"},{"$f":"Import!E33379","v":"Select"},{"$f":"Import!E33579","v":0},{"$f":"Import!E33779","v":0},{"$f":"Import!E33979","v":0}]
[51,{"$f":"Import!E32980","v":"Select"},{"$f":"Import!E33180","v":"Select"},{"$f":"Import!E33380","v":"Select"},{"$f":"Import!E33580","v":0},{"$f":"Import!E33780","v":0},{"$f":"Import!E33980","v":0}]
[52,{"$f":"Import!E32981","v":"Select"},{"$f":"Import!E33181","v":"Select"},{"$f":"Import!E33381","v":"Select"},{"$f":"Import!E33581","v":0},{"$f":"Import!E33781","v":0},{"$f":"Import!E33981","v":0}]
[53,{"$f":"Import!E32982","v":"Select"},{"$f":"Import!E33182","v":"Select"},{"$f":"Import!E33382","v":"Select"},{"$f":"Import!E33582","v":0},{"$f":"Import!E33782","v":0},{"$f":"Import!E33982","v":0}]
[54,{"$f":"Import!E32983","v":"Select"},{"$f":"Import!E33183","v":"Select"},{"$f":"Import!E33383","v":"Select"},{"$f":"Import!E33583","v":0},{"$f":"Import!E33783","v":0},{"$f":"Import!E33983","v":0}]
[55,{"$f":"Import!E32984","v":"Select"},{"$f":"Import!E33184","v":"Select"},{"$f":"Import!E33384","v":"Select"},{"$f":"Import!E33584","v":0},{"$f":"Import!E33784","v":0},{"$f":"Import!E33984","v":0}]
[56,{"$f":"Import!E32985","v":"Select"},{"$f":"Import!E33185","v":"Select"},{"$f":"Import!E33385","v":"Select"},{"$f":"Import!E33585","v":0},{"$f":"Import!E33785","v":0},{"$f":"Import!E33985","v":0}]
[57,{"$f":"Import!E32986","v":"Select"},{"$f":"Import!E33186","v":"Select"},{"$f":"Import!E33386","v":"Select"},{"$f":"Import!E33586","v":0},{"$f":"Import!E33786","v":0},{"$f":"Import!E33986","v":0}]
[58,{"$f":"Import!E32987","v":"Select"},{"$f":"Import!E33187","v":"Select"},{"$f":"Import!E33387","v":"Select"},{"$f":"Import!E33587","v":0},{"$f":"Import!E33787","v":0},{"$f":"Import!E33987","v":0}]
[59,{"$f":"Import!E32988","v":"Select"},{"$f":"Import!E33188","v":"Select"},{"$f":"Import!E33388","v":"Select"},{"$f":"Import!E33588","v":0},{"$f":"Import!E33788","v":0},{"$f":"Import!E33988","v":0}]
[60,{"$f":"Import!E32989","v":"Select"},{"$f":"Import!E33189","v":"Select"},{"$f":"Import!E33389","v":"Select"},{"$f":"Import!E33589","v":0},{"$f":"Import!E33789","v":0},{"$f":"Import!E33989","v":0}]
[61,{"$f":"Import!E32990","v":"Select"},{"$f":"Import!E33190","v":"Select"},{"$f":"Import!E33390","v":"Select"},{"$f":"Import!E33590","v":0},{"$f":"Import!E33790","v":0},{"$f":"Import!E33990","v":0}]
[62,{"$f":"Import!E32991","v":"Select"},{"$f":"Import!E33191","v":"Select"},{"$f":"Import!E33391","v":"Select"},{"$f":"Import!E33591","v":0},{"$f":"Import!E33791","v":0},{"$f":"Import!E33991","v":0}]
[63,{"$f":"Import!E32992","v":"Select"},{"$f":"Import!E33192","v":"Select"},{"$f":"Import!E33392","v":"Select"},{"$f":"Import!E33592","v":0},{"$f":"Import!E33792","v":0},{"$f":"Import!E33992","v":0}]
[64,{"$f":"Import!E32993","v":"Select"},{"$f":"Import!E33193","v":"Select"},{"$f":"Import!E33393","v":"Select"},{"$f":"Import!E33593","v":0},{"$f":"Import!E33793","v":0},{"$f":"Import!E33993","v":0}]
[65,{"$f":"Import!E32994","v":"Select"},{"$f":"Import!E33194","v":"Select"},{"$f":"Import!E33394","v":"Select"},{"$f":"Import!E33594","v":0},{"$f":"Import!E33794","v":0},{"$f":"Import!E33994","v":0}]
[66,{"$f":"Import!E32995","v":"Select"},{"$f":"Import!E33195","v":"Select"},{"$f":"Import!E33395","v":"Select"},{"$f":"Import!E33595","v":0},{"$f":"Import!E33795","v":0},{"$f":"Import!E33995","v":0}]
[{"$f":"A1861+1","v":67},{"$f":"Import!E32996","v":"Select"},{"$f":"Import!E33196","v":"Select"},{"$f":"Import!E33396","v":"Select"},{"$f":"Import!E33596","v":0},{"$f":"Import!E33796","v":0},{"$f":"Import!E33996","v":0}]
[68,{"$f":"Import!E32997","v":"Select"},{"$f":"Import!E33197","v":"Select"},{"$f":"Import!E33397","v":"Select"},{"$f":"Import!E33597","v":0},{"$f":"Import!E33797","v":0},{"$f":"Import!E33997","v":0}]
[69,{"$f":"Import!E32998","v":"Select"},{"$f":"Import!E33198","v":"Select"},{"$f":"Import!E33398","v":"Select"},{"$f":"Import!E33598","v":0},{"$f":"Import!E33798","v":0},{"$f":"Import!E33998","v":0}]
[70,{"$f":"Import!E32999","v":"Select"},{"$f":"Import!E33199","v":"Select"},{"$f":"Import!E33399","v":"Select"},{"$f":"Import!E33599","v":0},{"$f":"Import!E33799","v":0},{"$f":"Import!E33999","v":0}]
[71,{"$f":"Import!E33000","v":"Select"},{"$f":"Import!E33200","v":"Select"},{"$f":"Import!E33400","v":"Select"},{"$f":"Import!E33600","v":0},{"$f":"Import!E33800","v":0},{"$f":"Import!E34000","v":0}]
[72,{"$f":"Import!E33001","v":"Select"},{"$f":"Import!E33201","v":"Select"},{"$f":"Import!E33401","v":"Select"},{"$f":"Import!E33601","v":0},{"$f":"Import!E33801","v":0},{"$f":"Import!E34001","v":0}]
[73,{"$f":"Import!E33002","v":"Select"},{"$f":"Import!E33202","v":"Select"},{"$f":"Import!E33402","v":"Select"},{"$f":"Import!E33602","v":0},{"$f":"Import!E33802","v":0},{"$f":"Import!E34002","v":0}]
[74,{"$f":"Import!E33003","v":"Select"},{"$f":"Import!E33203","v":"Select"},{"$f":"Import!E33403","v":"Select"},{"$f":"Import!E33603","v":0},{"$f":"Import!E33803","v":0},{"$f":"Import!E34003","v":0}]
[75,{"$f":"Import!E33004","v":"Select"},{"$f":"Import!E33204","v":"Select"},{"$f":"Import!E33404","v":"Select"},{"$f":"Import!E33604","v":0},{"$f":"Import!E33804","v":0},{"$f":"Import!E34004","v":0}]
[76,{"$f":"Import!E33005","v":"Select"},{"$f":"Import!E33205","v":"Select"},{"$f":"Import!E33405","v":"Select"},{"$f":"Import!E33605","v":0},{"$f":"Import!E33805","v":0},{"$f":"Import!E34005","v":0}]
[77,{"$f":"Import!E33006","v":"Select"},{"$f":"Import!E33206","v":"Select"},{"$f":"Import!E33406","v":"Select"},{"$f":"Import!E33606","v":0},{"$f":"Import!E33806","v":0},{"$f":"Import!E34006","v":0}]
[78,{"$f":"Import!E33007","v":"Select"},{"$f":"Import!E33207","v":"Select"},{"$f":"Import!E33407","v":"Select"},{"$f":"Import!E33607","v":0},{"$f":"Import!E33807","v":0},{"$f":"Import!E34007","v":0}]
[79,{"$f":"Import!E33008","v":"Select"},{"$f":"Import!E33208","v":"Select"},{"$f":"Import!E33408","v":"Select"},{"$f":"Import!E33608","v":0},{"$f":"Import!E33808","v":0},{"$f":"Import!E34008","v":0}]
[80,{"$f":"Import!E33009","v":"Select"},{"$f":"Import!E33209","v":"Select"},{"$f":"Import!E33409","v":"Select"},{"$f":"Import!E33609","v":0},{"$f":"Import!E33809","v":0},{"$f":"Import!E34009","v":0}]
[81,{"$f":"Import!E33010","v":"Select"},{"$f":"Import!E33210","v":"Select"},{"$f":"Import!E33410","v":"Select"},{"$f":"Import!E33610","v":0},{"$f":"Import!E33810","v":0},{"$f":"Import!E34010","v":0}]
[82,{"$f":"Import!E33011","v":"Select"},{"$f":"Import!E33211","v":"Select"},{"$f":"Import!E33411","v":"Select"},{"$f":"Import!E33611","v":0},{"$f":"Import!E33811","v":0},{"$f":"Import!E34011","v":0}]
[83,{"$f":"Import!E33012","v":"Select"},{"$f":"Import!E33212","v":"Select"},{"$f":"Import!E33412","v":"Select"},{"$f":"Import!E33612","v":0},{"$f":"Import!E33812","v":0},{"$f":"Import!E34012","v":0}]
[84,{"$f":"Import!E33013","v":"Select"},{"$f":"Import!E33213","v":"Select"},{"$f":"Import!E33413","v":"Select"},{"$f":"Import!E33613","v":0},{"$f":"Import!E33813","v":0},{"$f":"Import!E34013","v":0}]
[85,{"$f":"Import!E33014","v":"Select"},{"$f":"Import!E33214","v":"Select"},{"$f":"Import!E33414","v":"Select"},{"$f":"Import!E33614","v":0},{"$f":"Import!E33814","v":0},{"$f":"Import!E34014","v":0}]
[86,{"$f":"Import!E33015","v":"Select"},{"$f":"Import!E33215","v":"Select"},{"$f":"Import!E33415","v":"Select"},{"$f":"Import!E33615","v":0},{"$f":"Import!E33815","v":0},{"$f":"Import!E34015","v":0}]
[87,{"$f":"Import!E33016","v":"Select"},{"$f":"Import!E33216","v":"Select"},{"$f":"Import!E33416","v":"Select"},{"$f":"Import!E33616","v":0},{"$f":"Import!E33816","v":0},{"$f":"Import!E34016","v":0}]
[88,{"$f":"Import!E33017","v":"Select"},{"$f":"Import!E33217","v":"Select"},{"$f":"Import!E33417","v":"Select"},{"$f":"Import!E33617","v":0},{"$f":"Import!E33817","v":0},{"$f":"Import!E34017","v":0}]
[89,{"$f":"Import!E33018","v":"Select"},{"$f":"Import!E33218","v":"Select"},{"$f":"Import!E33418","v":"Select"},{"$f":"Import!E33618","v":0},{"$f":"Import!E33818","v":0},{"$f":"Import!E34018","v":0}]
[90,{"$f":"Import!E33019","v":"Select"},{"$f":"Import!E33219","v":"Select"},{"$f":"Import!E33419","v":"Select"},{"$f":"Import!E33619","v":0},{"$f":"Import!E33819","v":0},{"$f":"Import!E34019","v":0}]
[91,{"$f":"Import!E33020","v":"Select"},{"$f":"Import!E33220","v":"Select"},{"$f":"Import!E33420","v":"Select"},{"$f":"Import!E33620","v":0},{"$f":"Import!E33820","v":0},{"$f":"Import!E34020","v":0}]
[92,{"$f":"Import!E33021","v":"Select"},{"$f":"Import!E33221","v":"Select"},{"$f":"Import!E33421","v":"Select"},{"$f":"Import!E33621","v":0},{"$f":"Import!E33821","v":0},{"$f":"Import!E34021","v":0}]
[93,{"$f":"Import!E33022","v":"Select"},{"$f":"Import!E33222","v":"Select"},{"$f":"Import!E33422","v":"Select"},{"$f":"Import!E33622","v":0},{"$f":"Import!E33822","v":0},{"$f":"Import!E34022","v":0}]
[94,{"$f":"Import!E33023","v":"Select"},{"$f":"Import!E33223","v":"Select"},{"$f":"Import!E33423","v":"Select"},{"$f":"Import!E33623","v":0},{"$f":"Import!E33823","v":0},{"$f":"Import!E34023","v":0}]
[95,{"$f":"Import!E33024","v":"Select"},{"$f":"Import!E33224","v":"Select"},{"$f":"Import!E33424","v":"Select"},{"$f":"Import!E33624","v":0},{"$f":"Import!E33824","v":0},{"$f":"Import!E34024","v":0}]
[96,{"$f":"Import!E33025","v":"Select"},{"$f":"Import!E33225","v":"Select"},{"$f":"Import!E33425","v":"Select"},{"$f":"Import!E33625","v":0},{"$f":"Import!E33825","v":0},{"$f":"Import!E34025","v":0}]
[97,{"$f":"Import!E33026","v":"Select"},{"$f":"Import!E33226","v":"Select"},{"$f":"Import!E33426","v":"Select"},{"$f":"Import!E33626","v":0},{"$f":"Import!E33826","v":0},{"$f":"Import!E34026","v":0}]
[98,{"$f":"Import!E33027","v":"Select"},{"$f":"Import!E33227","v":"Select"},{"$f":"Import!E33427","v":"Select"},{"$f":"Import!E33627","v":0},{"$f":"Import!E33827","v":0},{"$f":"Import!E34027","v":0}]
[99,{"$f":"Import!E33028","v":"Select"},{"$f":"Import!E33228","v":"Select"},{"$f":"Import!E33428","v":"Select"},{"$f":"Import!E33628","v":0},{"$f":"Import!E33828","v":0},{"$f":"Import!E34028","v":0}]
[100,{"$f":"Import!E33029","v":"Select"},{"$f":"Import!E33229","v":"Select"},{"$f":"Import!E33429","v":"Select"},{"$f":"Import!E33629","v":0},{"$f":"Import!E33829","v":0},{"$f":"Import!E34029","v":0}]
[101,{"$f":"Import!E33030","v":"Select"},{"$f":"Import!E33230","v":"Select"},{"$f":"Import!E33430","v":"Select"},{"$f":"Import!E33630","v":0},{"$f":"Import!E33830","v":0},{"$f":"Import!E34030","v":0}]
[102,{"$f":"Import!E33031","v":"Select"},{"$f":"Import!E33231","v":"Select"},{"$f":"Import!E33431","v":"Select"},{"$f":"Import!E33631","v":0},{"$f":"Import!E33831","v":0},{"$f":"Import!E34031","v":0}]
[103,{"$f":"Import!E33032","v":"Select"},{"$f":"Import!E33232","v":"Select"},{"$f":"Import!E33432","v":"Select"},{"$f":"Import!E33632","v":0},{"$f":"Import!E33832","v":0},{"$f":"Import!E34032","v":0}]
[104,{"$f":"Import!E33033","v":"Select"},{"$f":"Import!E33233","v":"Select"},{"$f":"Import!E33433","v":"Select"},{"$f":"Import!E33633","v":0},{"$f":"Import!E33833","v":0},{"$f":"Import!E34033","v":0}]
[105,{"$f":"Import!E33034","v":"Select"},{"$f":"Import!E33234","v":"Select"},{"$f":"Import!E33434","v":"Select"},{"$f":"Import!E33634","v":0},{"$f":"Import!E33834","v":0},{"$f":"Import!E34034","v":0}]
[106,{"$f":"Import!E33035","v":"Select"},{"$f":"Import!E33235","v":"Select"},{"$f":"Import!E33435","v":"Select"},{"$f":"Import!E33635","v":0},{"$f":"Import!E33835","v":0},{"$f":"Import!E34035","v":0}]
[107,{"$f":"Import!E33036","v":"Select"},{"$f":"Import!E33236","v":"Select"},{"$f":"Import!E33436","v":"Select"},{"$f":"Import!E33636","v":0},{"$f":"Import!E33836","v":0},{"$f":"Import!E34036","v":0}]
[108,{"$f":"Import!E33037","v":"Select"},{"$f":"Import!E33237","v":"Select"},{"$f":"Import!E33437","v":"Select"},{"$f":"Import!E33637","v":0},{"$f":"Import!E33837","v":0},{"$f":"Import!E34037","v":0}]
[109,{"$f":"Import!E33038","v":"Select"},{"$f":"Import!E33238","v":"Select"},{"$f":"Import!E33438","v":"Select"},{"$f":"Import!E33638","v":0},{"$f":"Import!E33838","v":0},{"$f":"Import!E34038","v":0}]
[110,{"$f":"Import!E33039","v":"Select"},{"$f":"Import!E33239","v":"Select"},{"$f":"Import!E33439","v":"Select"},{"$f":"Import!E33639","v":0},{"$f":"Import!E33839","v":0},{"$f":"Import!E34039","v":0}]
[111,{"$f":"Import!E33040","v":"Select"},{"$f":"Import!E33240","v":"Select"},{"$f":"Import!E33440","v":"Select"},{"$f":"Import!E33640","v":0},{"$f":"Import!E33840","v":0},{"$f":"Import!E34040","v":0}]
[112,{"$f":"Import!E33041","v":"Select"},{"$f":"Import!E33241","v":"Select"},{"$f":"Import!E33441","v":"Select"},{"$f":"Import!E33641","v":0},{"$f":"Import!E33841","v":0},{"$f":"Import!E34041","v":0}]
[113,{"$f":"Import!E33042","v":"Select"},{"$f":"Import!E33242","v":"Select"},{"$f":"Import!E33442","v":"Select"},{"$f":"Import!E33642","v":0},{"$f":"Import!E33842","v":0},{"$f":"Import!E34042","v":0}]
[114,{"$f":"Import!E33043","v":"Select"},{"$f":"Import!E33243","v":"Select"},{"$f":"Import!E33443","v":"Select"},{"$f":"Import!E33643","v":0},{"$f":"Import!E33843","v":0},{"$f":"Import!E34043","v":0}]
[115,{"$f":"Import!E33044","v":"Select"},{"$f":"Import!E33244","v":"Select"},{"$f":"Import!E33444","v":"Select"},{"$f":"Import!E33644","v":0},{"$f":"Import!E33844","v":0},{"$f":"Import!E34044","v":0}]
[116,{"$f":"Import!E33045","v":"Select"},{"$f":"Import!E33245","v":"Select"},{"$f":"Import!E33445","v":"Select"},{"$f":"Import!E33645","v":0},{"$f":"Import!E33845","v":0},{"$f":"Import!E34045","v":0}]
[117,{"$f":"Import!E33046","v":"Select"},{"$f":"Import!E33246","v":"Select"},{"$f":"Import!E33446","v":"Select"},{"$f":"Import!E33646","v":0},{"$f":"Import!E33846","v":0},{"$f":"Import!E34046","v":0}]
[118,{"$f":"Import!E33047","v":"Select"},{"$f":"Import!E33247","v":"Select"},{"$f":"Import!E33447","v":"Select"},{"$f":"Import!E33647","v":0},{"$f":"Import!E33847","v":0},{"$f":"Import!E34047","v":0}]
[119,{"$f":"Import!E33048","v":"Select"},{"$f":"Import!E33248","v":"Select"},{"$f":"Import!E33448","v":"Select"},{"$f":"Import!E33648","v":0},{"$f":"Import!E33848","v":0},{"$f":"Import!E34048","v":0}]
[120,{"$f":"Import!E33049","v":"Select"},{"$f":"Import!E33249","v":"Select"},{"$f":"Import!E33449","v":"Select"},{"$f":"Import!E33649","v":0},{"$f":"Import!E33849","v":0},{"$f":"Import!E34049","v":0}]
[121,{"$f":"Import!E33050","v":"Select"},{"$f":"Import!E33250","v":"Select"},{"$f":"Import!E33450","v":"Select"},{"$f":"Import!E33650","v":0},{"$f":"Import!E33850","v":0},{"$f":"Import!E34050","v":0}]
[122,{"$f":"Import!E33051","v":"Select"},{"$f":"Import!E33251","v":"Select"},{"$f":"Import!E33451","v":"Select"},{"$f":"Import!E33651","v":0},{"$f":"Import!E33851","v":0},{"$f":"Import!E34051","v":0}]
[123,{"$f":"Import!E33052","v":"Select"},{"$f":"Import!E33252","v":"Select"},{"$f":"Import!E33452","v":"Select"},{"$f":"Import!E33652","v":0},{"$f":"Import!E33852","v":0},{"$f":"Import!E34052","v":0}]
[124,{"$f":"Import!E33053","v":"Select"},{"$f":"Import!E33253","v":"Select"},{"$f":"Import!E33453","v":"Select"},{"$f":"Import!E33653","v":0},{"$f":"Import!E33853","v":0},{"$f":"Import!E34053","v":0}]
[125,{"$f":"Import!E33054","v":"Select"},{"$f":"Import!E33254","v":"Select"},{"$f":"Import!E33454","v":"Select"},{"$f":"Import!E33654","v":0},{"$f":"Import!E33854","v":0},{"$f":"Import!E34054","v":0}]
[126,{"$f":"Import!E33055","v":"Select"},{"$f":"Import!E33255","v":"Select"},{"$f":"Import!E33455","v":"Select"},{"$f":"Import!E33655","v":0},{"$f":"Import!E33855","v":0},{"$f":"Import!E34055","v":0}]
[127,{"$f":"Import!E33056","v":"Select"},{"$f":"Import!E33256","v":"Select"},{"$f":"Import!E33456","v":"Select"},{"$f":"Import!E33656","v":0},{"$f":"Import!E33856","v":0},{"$f":"Import!E34056","v":0}]
[128,{"$f":"Import!E33057","v":"Select"},{"$f":"Import!E33257","v":"Select"},{"$f":"Import!E33457","v":"Select"},{"$f":"Import!E33657","v":0},{"$f":"Import!E33857","v":0},{"$f":"Import!E34057","v":0}]
[129,{"$f":"Import!E33058","v":"Select"},{"$f":"Import!E33258","v":"Select"},{"$f":"Import!E33458","v":"Select"},{"$f":"Import!E33658","v":0},{"$f":"Import!E33858","v":0},{"$f":"Import!E34058","v":0}]
[130,{"$f":"Import!E33059","v":"Select"},{"$f":"Import!E33259","v":"Select"},{"$f":"Import!E33459","v":"Select"},{"$f":"Import!E33659","v":0},{"$f":"Import!E33859","v":0},{"$f":"Import!E34059","v":0}]
[{"$f":"A1925+1","v":131},{"$f":"Import!E33060","v":"Select"},{"$f":"Import!E33260","v":"Select"},{"$f":"Import!E33460","v":"Select"},{"$f":"Import!E33660","v":0},{"$f":"Import!E33860","v":0},{"$f":"Import!E34060","v":0}]
[132,{"$f":"Import!E33061","v":"Select"},{"$f":"Import!E33261","v":"Select"},{"$f":"Import!E33461","v":"Select"},{"$f":"Import!E33661","v":0},{"$f":"Import!E33861","v":0},{"$f":"Import!E34061","v":0}]
[133,{"$f":"Import!E33062","v":"Select"},{"$f":"Import!E33262","v":"Select"},{"$f":"Import!E33462","v":"Select"},{"$f":"Import!E33662","v":0},{"$f":"Import!E33862","v":0},{"$f":"Import!E34062","v":0}]
[134,{"$f":"Import!E33063","v":"Select"},{"$f":"Import!E33263","v":"Select"},{"$f":"Import!E33463","v":"Select"},{"$f":"Import!E33663","v":0},{"$f":"Import!E33863","v":0},{"$f":"Import!E34063","v":0}]
[135,{"$f":"Import!E33064","v":"Select"},{"$f":"Import!E33264","v":"Select"},{"$f":"Import!E33464","v":"Select"},{"$f":"Import!E33664","v":0},{"$f":"Import!E33864","v":0},{"$f":"Import!E34064","v":0}]
[136,{"$f":"Import!E33065","v":"Select"},{"$f":"Import!E33265","v":"Select"},{"$f":"Import!E33465","v":"Select"},{"$f":"Import!E33665","v":0},{"$f":"Import!E33865","v":0},{"$f":"Import!E34065","v":0}]
[137,{"$f":"Import!E33066","v":"Select"},{"$f":"Import!E33266","v":"Select"},{"$f":"Import!E33466","v":"Select"},{"$f":"Import!E33666","v":0},{"$f":"Import!E33866","v":0},{"$f":"Import!E34066","v":0}]
[138,{"$f":"Import!E33067","v":"Select"},{"$f":"Import!E33267","v":"Select"},{"$f":"Import!E33467","v":"Select"},{"$f":"Import!E33667","v":0},{"$f":"Import!E33867","v":0},{"$f":"Import!E34067","v":0}]
[139,{"$f":"Import!E33068","v":"Select"},{"$f":"Import!E33268","v":"Select"},{"$f":"Import!E33468","v":"Select"},{"$f":"Import!E33668","v":0},{"$f":"Import!E33868","v":0},{"$f":"Import!E34068","v":0}]
[140,{"$f":"Import!E33069","v":"Select"},{"$f":"Import!E33269","v":"Select"},{"$f":"Import!E33469","v":"Select"},{"$f":"Import!E33669","v":0},{"$f":"Import!E33869","v":0},{"$f":"Import!E34069","v":0}]
[141,{"$f":"Import!E33070","v":"Select"},{"$f":"Import!E33270","v":"Select"},{"$f":"Import!E33470","v":"Select"},{"$f":"Import!E33670","v":0},{"$f":"Import!E33870","v":0},{"$f":"Import!E34070","v":0}]
[142,{"$f":"Import!E33071","v":"Select"},{"$f":"Import!E33271","v":"Select"},{"$f":"Import!E33471","v":"Select"},{"$f":"Import!E33671","v":0},{"$f":"Import!E33871","v":0},{"$f":"Import!E34071","v":0}]
[143,{"$f":"Import!E33072","v":"Select"},{"$f":"Import!E33272","v":"Select"},{"$f":"Import!E33472","v":"Select"},{"$f":"Import!E33672","v":0},{"$f":"Import!E33872","v":0},{"$f":"Import!E34072","v":0}]
[144,{"$f":"Import!E33073","v":"Select"},{"$f":"Import!E33273","v":"Select"},{"$f":"Import!E33473","v":"Select"},{"$f":"Import!E33673","v":0},{"$f":"Import!E33873","v":0},{"$f":"Import!E34073","v":0}]
[145,{"$f":"Import!E33074","v":"Select"},{"$f":"Import!E33274","v":"Select"},{"$f":"Import!E33474","v":"Select"},{"$f":"Import!E33674","v":0},{"$f":"Import!E33874","v":0},{"$f":"Import!E34074","v":0}]
[146,{"$f":"Import!E33075","v":"Select"},{"$f":"Import!E33275","v":"Select"},{"$f":"Import!E33475","v":"Select"},{"$f":"Import!E33675","v":0},{"$f":"Import!E33875","v":0},{"$f":"Import!E34075","v":0}]
[147,{"$f":"Import!E33076","v":"Select"},{"$f":"Import!E33276","v":"Select"},{"$f":"Import!E33476","v":"Select"},{"$f":"Import!E33676","v":0},{"$f":"Import!E33876","v":0},{"$f":"Import!E34076","v":0}]
[148,{"$f":"Import!E33077","v":"Select"},{"$f":"Import!E33277","v":"Select"},{"$f":"Import!E33477","v":"Select"},{"$f":"Import!E33677","v":0},{"$f":"Import!E33877","v":0},{"$f":"Import!E34077","v":0}]
[149,{"$f":"Import!E33078","v":"Select"},{"$f":"Import!E33278","v":"Select"},{"$f":"Import!E33478","v":"Select"},{"$f":"Import!E33678","v":0},{"$f":"Import!E33878","v":0},{"$f":"Import!E34078","v":0}]
[150,{"$f":"Import!E33079","v":"Select"},{"$f":"Import!E33279","v":"Select"},{"$f":"Import!E33479","v":"Select"},{"$f":"Import!E33679","v":0},{"$f":"Import!E33879","v":0},{"$f":"Import!E34079","v":0}]
[151,{"$f":"Import!E33080","v":"Select"},{"$f":"Import!E33280","v":"Select"},{"$f":"Import!E33480","v":"Select"},{"$f":"Import!E33680","v":0},{"$f":"Import!E33880","v":0},{"$f":"Import!E34080","v":0}]
[152,{"$f":"Import!E33081","v":"Select"},{"$f":"Import!E33281","v":"Select"},{"$f":"Import!E33481","v":"Select"},{"$f":"Import!E33681","v":0},{"$f":"Import!E33881","v":0},{"$f":"Import!E34081","v":0}]
[153,{"$f":"Import!E33082","v":"Select"},{"$f":"Import!E33282","v":"Select"},{"$f":"Import!E33482","v":"Select"},{"$f":"Import!E33682","v":0},{"$f":"Import!E33882","v":0},{"$f":"Import!E34082","v":0}]
[154,{"$f":"Import!E33083","v":"Select"},{"$f":"Import!E33283","v":"Select"},{"$f":"Import!E33483","v":"Select"},{"$f":"Import!E33683","v":0},{"$f":"Import!E33883","v":0},{"$f":"Import!E34083","v":0}]
[155,{"$f":"Import!E33084","v":"Select"},{"$f":"Import!E33284","v":"Select"},{"$f":"Import!E33484","v":"Select"},{"$f":"Import!E33684","v":0},{"$f":"Import!E33884","v":0},{"$f":"Import!E34084","v":0}]
[156,{"$f":"Import!E33085","v":"Select"},{"$f":"Import!E33285","v":"Select"},{"$f":"Import!E33485","v":"Select"},{"$f":"Import!E33685","v":0},{"$f":"Import!E33885","v":0},{"$f":"Import!E34085","v":0}]
[157,{"$f":"Import!E33086","v":"Select"},{"$f":"Import!E33286","v":"Select"},{"$f":"Import!E33486","v":"Select"},{"$f":"Import!E33686","v":0},{"$f":"Import!E33886","v":0},{"$f":"Import!E34086","v":0}]
[158,{"$f":"Import!E33087","v":"Select"},{"$f":"Import!E33287","v":"Select"},{"$f":"Import!E33487","v":"Select"},{"$f":"Import!E33687","v":0},{"$f":"Import!E33887","v":0},{"$f":"Import!E34087","v":0}]
[159,{"$f":"Import!E33088","v":"Select"},{"$f":"Import!E33288","v":"Select"},{"$f":"Import!E33488","v":"Select"},{"$f":"Import!E33688","v":0},{"$f":"Import!E33888","v":0},{"$f":"Import!E34088","v":0}]
[160,{"$f":"Import!E33089","v":"Select"},{"$f":"Import!E33289","v":"Select"},{"$f":"Import!E33489","v":"Select"},{"$f":"Import!E33689","v":0},{"$f":"Import!E33889","v":0},{"$f":"Import!E34089","v":0}]
[161,{"$f":"Import!E33090","v":"Select"},{"$f":"Import!E33290","v":"Select"},{"$f":"Import!E33490","v":"Select"},{"$f":"Import!E33690","v":0},{"$f":"Import!E33890","v":0},{"$f":"Import!E34090","v":0}]
[162,{"$f":"Import!E33091","v":"Select"},{"$f":"Import!E33291","v":"Select"},{"$f":"Import!E33491","v":"Select"},{"$f":"Import!E33691","v":0},{"$f":"Import!E33891","v":0},{"$f":"Import!E34091","v":0}]
[163,{"$f":"Import!E33092","v":"Select"},{"$f":"Import!E33292","v":"Select"},{"$f":"Import!E33492","v":"Select"},{"$f":"Import!E33692","v":0},{"$f":"Import!E33892","v":0},{"$f":"Import!E34092","v":0}]
[164,{"$f":"Import!E33093","v":"Select"},{"$f":"Import!E33293","v":"Select"},{"$f":"Import!E33493","v":"Select"},{"$f":"Import!E33693","v":0},{"$f":"Import!E33893","v":0},{"$f":"Import!E34093","v":0}]
[165,{"$f":"Import!E33094","v":"Select"},{"$f":"Import!E33294","v":"Select"},{"$f":"Import!E33494","v":"Select"},{"$f":"Import!E33694","v":0},{"$f":"Import!E33894","v":0},{"$f":"Import!E34094","v":0}]
[166,{"$f":"Import!E33095","v":"Select"},{"$f":"Import!E33295","v":"Select"},{"$f":"Import!E33495","v":"Select"},{"$f":"Import!E33695","v":0},{"$f":"Import!E33895","v":0},{"$f":"Import!E34095","v":0}]
[167,{"$f":"Import!E33096","v":"Select"},{"$f":"Import!E33296","v":"Select"},{"$f":"Import!E33496","v":"Select"},{"$f":"Import!E33696","v":0},{"$f":"Import!E33896","v":0},{"$f":"Import!E34096","v":0}]
[168,{"$f":"Import!E33097","v":"Select"},{"$f":"Import!E33297","v":"Select"},{"$f":"Import!E33497","v":"Select"},{"$f":"Import!E33697","v":0},{"$f":"Import!E33897","v":0},{"$f":"Import!E34097","v":0}]
[169,{"$f":"Import!E33098","v":"Select"},{"$f":"Import!E33298","v":"Select"},{"$f":"Import!E33498","v":"Select"},{"$f":"Import!E33698","v":0},{"$f":"Import!E33898","v":0},{"$f":"Import!E34098","v":0}]
[170,{"$f":"Import!E33099","v":"Select"},{"$f":"Import!E33299","v":"Select"},{"$f":"Import!E33499","v":"Select"},{"$f":"Import!E33699","v":0},{"$f":"Import!E33899","v":0},{"$f":"Import!E34099","v":0}]
[171,{"$f":"Import!E33100","v":"Select"},{"$f":"Import!E33300","v":"Select"},{"$f":"Import!E33500","v":"Select"},{"$f":"Import!E33700","v":0},{"$f":"Import!E33900","v":0},{"$f":"Import!E34100","v":0}]
[172,{"$f":"Import!E33101","v":"Select"},{"$f":"Import!E33301","v":"Select"},{"$f":"Import!E33501","v":"Select"},{"$f":"Import!E33701","v":0},{"$f":"Import!E33901","v":0},{"$f":"Import!E34101","v":0}]
[173,{"$f":"Import!E33102","v":"Select"},{"$f":"Import!E33302","v":"Select"},{"$f":"Import!E33502","v":"Select"},{"$f":"Import!E33702","v":0},{"$f":"Import!E33902","v":0},{"$f":"Import!E34102","v":0}]
[174,{"$f":"Import!E33103","v":"Select"},{"$f":"Import!E33303","v":"Select"},{"$f":"Import!E33503","v":"Select"},{"$f":"Import!E33703","v":0},{"$f":"Import!E33903","v":0},{"$f":"Import!E34103","v":0}]
[175,{"$f":"Import!E33104","v":"Select"},{"$f":"Import!E33304","v":"Select"},{"$f":"Import!E33504","v":"Select"},{"$f":"Import!E33704","v":0},{"$f":"Import!E33904","v":0},{"$f":"Import!E34104","v":0}]
[176,{"$f":"Import!E33105","v":"Select"},{"$f":"Import!E33305","v":"Select"},{"$f":"Import!E33505","v":"Select"},{"$f":"Import!E33705","v":0},{"$f":"Import!E33905","v":0},{"$f":"Import!E34105","v":0}]
[177,{"$f":"Import!E33106","v":"Select"},{"$f":"Import!E33306","v":"Select"},{"$f":"Import!E33506","v":"Select"},{"$f":"Import!E33706","v":0},{"$f":"Import!E33906","v":0},{"$f":"Import!E34106","v":0}]
[178,{"$f":"Import!E33107","v":"Select"},{"$f":"Import!E33307","v":"Select"},{"$f":"Import!E33507","v":"Select"},{"$f":"Import!E33707","v":0},{"$f":"Import!E33907","v":0},{"$f":"Import!E34107","v":0}]
[179,{"$f":"Import!E33108","v":"Select"},{"$f":"Import!E33308","v":"Select"},{"$f":"Import!E33508","v":"Select"},{"$f":"Import!E33708","v":0},{"$f":"Import!E33908","v":0},{"$f":"Import!E34108","v":0}]
[180,{"$f":"Import!E33109","v":"Select"},{"$f":"Import!E33309","v":"Select"},{"$f":"Import!E33509","v":"Select"},{"$f":"Import!E33709","v":0},{"$f":"Import!E33909","v":0},{"$f":"Import!E34109","v":0}]
[181,{"$f":"Import!E33110","v":"Select"},{"$f":"Import!E33310","v":"Select"},{"$f":"Import!E33510","v":"Select"},{"$f":"Import!E33710","v":0},{"$f":"Import!E33910","v":0},{"$f":"Import!E34110","v":0}]
[182,{"$f":"Import!E33111","v":"Select"},{"$f":"Import!E33311","v":"Select"},{"$f":"Import!E33511","v":"Select"},{"$f":"Import!E33711","v":0},{"$f":"Import!E33911","v":0},{"$f":"Import!E34111","v":0}]
[183,{"$f":"Import!E33112","v":"Select"},{"$f":"Import!E33312","v":"Select"},{"$f":"Import!E33512","v":"Select"},{"$f":"Import!E33712","v":0},{"$f":"Import!E33912","v":0},{"$f":"Import!E34112","v":0}]
[184,{"$f":"Import!E33113","v":"Select"},{"$f":"Import!E33313","v":"Select"},{"$f":"Import!E33513","v":"Select"},{"$f":"Import!E33713","v":0},{"$f":"Import!E33913","v":0},{"$f":"Import!E34113","v":0}]
[185,{"$f":"Import!E33114","v":"Select"},{"$f":"Import!E33314","v":"Select"},{"$f":"Import!E33514","v":"Select"},{"$f":"Import!E33714","v":0},{"$f":"Import!E33914","v":0},{"$f":"Import!E34114","v":0}]
[186,{"$f":"Import!E33115","v":"Select"},{"$f":"Import!E33315","v":"Select"},{"$f":"Import!E33515","v":"Select"},{"$f":"Import!E33715","v":0},{"$f":"Import!E33915","v":0},{"$f":"Import!E34115","v":0}]
[187,{"$f":"Import!E33116","v":"Select"},{"$f":"Import!E33316","v":"Select"},{"$f":"Import!E33516","v":"Select"},{"$f":"Import!E33716","v":0},{"$f":"Import!E33916","v":0},{"$f":"Import!E34116","v":0}]
[188,{"$f":"Import!E33117","v":"Select"},{"$f":"Import!E33317","v":"Select"},{"$f":"Import!E33517","v":"Select"},{"$f":"Import!E33717","v":0},{"$f":"Import!E33917","v":0},{"$f":"Import!E34117","v":0}]
[189,{"$f":"Import!E33118","v":"Select"},{"$f":"Import!E33318","v":"Select"},{"$f":"Import!E33518","v":"Select"},{"$f":"Import!E33718","v":0},{"$f":"Import!E33918","v":0},{"$f":"Import!E34118","v":0}]
[190,{"$f":"Import!E33119","v":"Select"},{"$f":"Import!E33319","v":"Select"},{"$f":"Import!E33519","v":"Select"},{"$f":"Import!E33719","v":0},{"$f":"Import!E33919","v":0},{"$f":"Import!E34119","v":0}]
[191,{"$f":"Import!E33120","v":"Select"},{"$f":"Import!E33320","v":"Select"},{"$f":"Import!E33520","v":"Select"},{"$f":"Import!E33720","v":0},{"$f":"Import!E33920","v":0},{"$f":"Import!E34120","v":0}]
[192,{"$f":"Import!E33121","v":"Select"},{"$f":"Import!E33321","v":"Select"},{"$f":"Import!E33521","v":"Select"},{"$f":"Import!E33721","v":0},{"$f":"Import!E33921","v":0},{"$f":"Import!E34121","v":0}]
[193,{"$f":"Import!E33122","v":"Select"},{"$f":"Import!E33322","v":"Select"},{"$f":"Import!E33522","v":"Select"},{"$f":"Import!E33722","v":0},{"$f":"Import!E33922","v":0},{"$f":"Import!E34122","v":0}]
[194,{"$f":"Import!E33123","v":"Select"},{"$f":"Import!E33323","v":"Select"},{"$f":"Import!E33523","v":"Select"},{"$f":"Import!E33723","v":0},{"$f":"Import!E33923","v":0},{"$f":"Import!E34123","v":0}]
[{"$f":"A1989+1","v":195},{"$f":"Import!E33124","v":"Select"},{"$f":"Import!E33324","v":"Select"},{"$f":"Import!E33524","v":"Select"},{"$f":"Import!E33724","v":0},{"$f":"Import!E33924","v":0},{"$f":"Import!E34124","v":0}]
[196,{"$f":"Import!E33125","v":"Select"},{"$f":"Import!E33325","v":"Select"},{"$f":"Import!E33525","v":"Select"},{"$f":"Import!E33725","v":0},{"$f":"Import!E33925","v":0},{"$f":"Import!E34125","v":0}]
[197,{"$f":"Import!E33126","v":"Select"},{"$f":"Import!E33326","v":"Select"},{"$f":"Import!E33526","v":"Select"},{"$f":"Import!E33726","v":0},{"$f":"Import!E33926","v":0},{"$f":"Import!E34126","v":0}]
[198,{"$f":"Import!E33127","v":"Select"},{"$f":"Import!E33327","v":"Select"},{"$f":"Import!E33527","v":"Select"},{"$f":"Import!E33727","v":0},{"$f":"Import!E33927","v":0},{"$f":"Import!E34127","v":0}]
[199,{"$f":"Import!E33128","v":"Select"},{"$f":"Import!E33328","v":"Select"},{"$f":"Import!E33528","v":"Select"},{"$f":"Import!E33728","v":0},{"$f":"Import!E33928","v":0},{"$f":"Import!E34128","v":0}]
[200,{"$f":"Import!E33129","v":"Select"},{"$f":"Import!E33329","v":"Select"},{"$f":"Import!E33529","v":"Select"},{"$f":"Import!E33729","v":0},{"$f":"Import!E33929","v":0},{"$f":"Import!E34129","v":0}]
[]
[null,"Total Other Assets",null,null,null,{"$f":"SUM(F1796:F1995)","v":0}]
[]
[]
[null,"TOTAL ASSETS",null,null,null,{"$f":"F212+F620+F986+G1094+F1230+E1338+G1446+G1554+I1761+F1997","v":0}]
[]
[null,"TOTAL FUNDS HELD BY CEDING REINSURERS (Form 1SFS Line 12)",null,null,null,{"$f":"IF('Insurer Information'!$C$2=\"IFRS\",0,\nIF('Insurer Information'!$F$2=\"UNCONSOLIDATED BSCR MODEL\",'Form 1SFS'!K79,('Form 1SFS'!F79+'Form 1SFS'!H79)))","v":0}]
[]
[null,"Check Form 1SFS (Line 12)",null,null,null,{"$f":"IF(F2006=0,\"TRUE\",\"FALSE\")","v":"TRUE"}]
[]
[null,"Difference",null,null,null,{"$f":"ROUND(F2002-F2000,0)","v":0}]
[]
[null,"(L) INFORMATION ON SECURITIES LENDING AND REPURCHASE TRANSACTIONS"]
[]
[null,null,{"$f":"YEAR($C$3)","v":2023}]
[null,null,"Notional Value","Fair Value",null,"Comments"]
[null,"Securities Lending transactions",{"$f":"Import!M19478","v":0},{"$f":"Import!M19480","v":0},null,{"$f":"Import!M19482","v":0}]
[null,"Repo / Reverse Repo transactions",{"$f":"Import!M19479","v":0},{"$f":"Import!M19481","v":0},null,{"$f":"Import!M19483","v":0}]
[]
[null,"Total",{"$f":"SUM(C2012:C2013)","v":0},{"$f":"SUM(D2012:D2013)","v":0}]
[]
[null,"(M) INFORMATION ON FAIR VALUATION HIERARCHY"]
[]
[null,null,{"$f":"YEAR($C$3)","v":2023},"Fair Value"]
[null,null,"Unaffiliated","Affiliated","Total","Comments"]
[null,"Level 1 Assets (according to Fair Value hierarchy)",{"$f":"Import!M19484","v":0},{"$f":"Import!M19487","v":0},{"$f":"SUM(C2021:D2021)","v":0},{"$f":"Import!M19490","v":0}]
[null,"Level 2 Assets (according to Fair Value hierarchy)",{"$f":"Import!M19485","v":0},{"$f":"Import!M19488","v":0},{"$f":"SUM(C2022:D2022)","v":0},{"$f":"Import!M19491","v":0}]
[null,"Level 3 Assets (according to Fair Value hierarchy)",{"$f":"Import!M19486","v":0},{"$f":"Import!M19489","v":0},{"$f":"SUM(C2023:D2023)","v":0},{"$f":"Import!M19492","v":0}]
[]
[null,"Total",{"$f":"SUM(C2021:C2023)","v":0},{"$f":"SUM(D2021:D2023)","v":0},{"$f":"SUM(E2021:E2023)","v":0}]
[]
[null,"Check Securities Allocated by Levels 1-3",null,null,{"$f":"F212+F620+F986+G1094+F1230+E1338+G1446+G1554","v":0}]
[]
[null,"Difference",null,null,{"$f":"ROUND(E2025-E2027,0)","v":0},{"$f":"IF(E2029=0,\"TRUE\",\"FALSE\")","v":"TRUE"}]
[]
[null,"EFFECTIVE DURATION",null,null,{"$f":"Import!E34145","v":0}]
[]
[null,"EFFECTIVE CONVEXITY",null,null,{"$f":"Import!E34146","v":0}]
[]
[null,"Fair Values",{"$f":"YEAR(C3)","v":2023}]
[null,null,null,null,null,null,null,null,"If Other Rating Agency is used, specify the name of such agency (if applicable)",{"$f":"Import!E34147","v":0},{"$f":"Import!E34148","v":0},{"$f":"Import!E34149","v":0},{"$f":"Import!E34150","v":0}]
[null,"Asset/Rating Category","BSCR Rating","Moody's Investor's Service","Standard and Poor's","Dominion Bond Rating Service","Kroll Bond Rating Agency","Egan Jones Rating Company","Japan Credit Rating Agency","BMA-approved Internal Ratings","Other BMA-approved Rating Agency 1","Other BMA-approved Rating Agency 2","Other BMA-approved Rating Agency 3","Total"]
[null,"Financial institutions, brokers and dealers",1,{"$f":"Import!E34151","v":0},{"$f":"Import!E34192","v":0},{"$f":"Import!E34233","v":0},{"$f":"Import!E34274","v":0},{"$f":"Import!E34315","v":0},{"$f":"Import!E34356","v":0},{"$f":"Import!E34397","v":0},{"$f":"Import!E34438","v":0},{"$f":"Import!E34479","v":0},{"$f":"Import!E34520","v":0},{"$f":"SUM(D2038:M2038)","v":0}]
[null,"Financial institutions, brokers and dealers",2,{"$f":"Import!E34152","v":0},{"$f":"Import!E34193","v":0},{"$f":"Import!E34234","v":0},{"$f":"Import!E34275","v":0},{"$f":"Import!E34316","v":0},{"$f":"Import!E34357","v":0},{"$f":"Import!E34398","v":0},{"$f":"Import!E34439","v":0},{"$f":"Import!E34480","v":0},{"$f":"Import!E34521","v":0},{"$f":"SUM(D2039:M2039)","v":0}]
[null,"Financial institutions, brokers and dealers",3,{"$f":"Import!E34153","v":0},{"$f":"Import!E34194","v":0},{"$f":"Import!E34235","v":0},{"$f":"Import!E34276","v":0},{"$f":"Import!E34317","v":0},{"$f":"Import!E34358","v":0},{"$f":"Import!E34399","v":0},{"$f":"Import!E34440","v":0},{"$f":"Import!E34481","v":0},{"$f":"Import!E34522","v":0},0]
[null,"Financial institutions, brokers and dealers",4,{"$f":"Import!E34154","v":0},{"$f":"Import!E34195","v":0},{"$f":"Import!E34236","v":0},{"$f":"Import!E34277","v":0},{"$f":"Import!E34318","v":0},{"$f":"Import!E34359","v":0},{"$f":"Import!E34400","v":0},{"$f":"Import!E34441","v":0},{"$f":"Import!E34482","v":0},{"$f":"Import!E34523","v":0},0]
[null,"Financial institutions, brokers and dealers",5,{"$f":"Import!E34155","v":0},{"$f":"Import!E34196","v":0},{"$f":"Import!E34237","v":0},{"$f":"Import!E34278","v":0},{"$f":"Import!E34319","v":0},{"$f":"Import!E34360","v":0},{"$f":"Import!E34401","v":0},{"$f":"Import!E34442","v":0},{"$f":"Import!E34483","v":0},{"$f":"Import!E34524","v":0},0]
[null,"Financial institutions, brokers and dealers",6,{"$f":"Import!E34156","v":0},{"$f":"Import!E34197","v":0},{"$f":"Import!E34238","v":0},{"$f":"Import!E34279","v":0},{"$f":"Import!E34320","v":0},{"$f":"Import!E34361","v":0},{"$f":"Import!E34402","v":0},{"$f":"Import!E34443","v":0},{"$f":"Import!E34484","v":0},{"$f":"Import!E34525","v":0},0]
[null,"Financial institutions, brokers and dealers",7,{"$f":"Import!E34157","v":0},{"$f":"Import!E34198","v":0},{"$f":"Import!E34239","v":0},{"$f":"Import!E34280","v":0},{"$f":"Import!E34321","v":0},{"$f":"Import!E34362","v":0},{"$f":"Import!E34403","v":0},{"$f":"Import!E34444","v":0},{"$f":"Import!E34485","v":0},{"$f":"Import!E34526","v":0},0]
[null,"Financial institutions, brokers and dealers",8,{"$f":"Import!E34158","v":0},{"$f":"Import!E34199","v":0},{"$f":"Import!E34240","v":0},{"$f":"Import!E34281","v":0},{"$f":"Import!E34322","v":0},{"$f":"Import!E34363","v":0},{"$f":"Import!E34404","v":0},{"$f":"Import!E34445","v":0},{"$f":"Import!E34486","v":0},{"$f":"Import!E34527","v":0},0]
[null,"Insurance companies",1,{"$f":"Import!E34159","v":0},{"$f":"Import!E34200","v":0},{"$f":"Import!E34241","v":0},{"$f":"Import!E34282","v":0},{"$f":"Import!E34323","v":0},{"$f":"Import!E34364","v":0},{"$f":"Import!E34405","v":0},{"$f":"Import!E34446","v":0},{"$f":"Import!E34487","v":0},{"$f":"Import!E34528","v":0},0]
[null,"Insurance companies",2,{"$f":"Import!E34160","v":0},{"$f":"Import!E34201","v":0},{"$f":"Import!E34242","v":0},{"$f":"Import!E34283","v":0},{"$f":"Import!E34324","v":0},{"$f":"Import!E34365","v":0},{"$f":"Import!E34406","v":0},{"$f":"Import!E34447","v":0},{"$f":"Import!E34488","v":0},{"$f":"Import!E34529","v":0},0]
[null,"Insurance companies",3,{"$f":"Import!E34161","v":0},{"$f":"Import!E34202","v":0},{"$f":"Import!E34243","v":0},{"$f":"Import!E34284","v":0},{"$f":"Import!E34325","v":0},{"$f":"Import!E34366","v":0},{"$f":"Import!E34407","v":0},{"$f":"Import!E34448","v":0},{"$f":"Import!E34489","v":0},{"$f":"Import!E34530","v":0},0]
[null,"Insurance companies",4,{"$f":"Import!E34162","v":0},{"$f":"Import!E34203","v":0},{"$f":"Import!E34244","v":0},{"$f":"Import!E34285","v":0},{"$f":"Import!E34326","v":0},{"$f":"Import!E34367","v":0},{"$f":"Import!E34408","v":0},{"$f":"Import!E34449","v":0},{"$f":"Import!E34490","v":0},{"$f":"Import!E34531","v":0},0]
[null,"Insurance companies",5,{"$f":"Import!E34163","v":0},{"$f":"Import!E34204","v":0},{"$f":"Import!E34245","v":0},{"$f":"Import!E34286","v":0},{"$f":"Import!E34327","v":0},{"$f":"Import!E34368","v":0},{"$f":"Import!E34409","v":0},{"$f":"Import!E34450","v":0},{"$f":"Import!E34491","v":0},{"$f":"Import!E34532","v":0},0]
[null,"Insurance companies",6,{"$f":"Import!E34164","v":0},{"$f":"Import!E34205","v":0},{"$f":"Import!E34246","v":0},{"$f":"Import!E34287","v":0},{"$f":"Import!E34328","v":0},{"$f":"Import!E34369","v":0},{"$f":"Import!E34410","v":0},{"$f":"Import!E34451","v":0},{"$f":"Import!E34492","v":0},{"$f":"Import!E34533","v":0},0]
[null,"Insurance companies",7,{"$f":"Import!E34165","v":0},{"$f":"Import!E34206","v":0},{"$f":"Import!E34247","v":0},{"$f":"Import!E34288","v":0},{"$f":"Import!E34329","v":0},{"$f":"Import!E34370","v":0},{"$f":"Import!E34411","v":0},{"$f":"Import!E34452","v":0},{"$f":"Import!E34493","v":0},{"$f":"Import!E34534","v":0},0]
[null,"Insurance companies",8,{"$f":"Import!E34166","v":0},{"$f":"Import!E34207","v":0},{"$f":"Import!E34248","v":0},{"$f":"Import!E34289","v":0},{"$f":"Import!E34330","v":0},{"$f":"Import!E34371","v":0},{"$f":"Import!E34412","v":0},{"$f":"Import!E34453","v":0},{"$f":"Import!E34494","v":0},{"$f":"Import!E34535","v":0},0]
[null,"Corporate issuers",1,{"$f":"Import!E34167","v":0},{"$f":"Import!E34208","v":0},{"$f":"Import!E34249","v":0},{"$f":"Import!E34290","v":0},{"$f":"Import!E34331","v":0},{"$f":"Import!E34372","v":0},{"$f":"Import!E34413","v":0},{"$f":"Import!E34454","v":0},{"$f":"Import!E34495","v":0},{"$f":"Import!E34536","v":0},0]
[null,"Corporate issuers",2,{"$f":"Import!E34168","v":0},{"$f":"Import!E34209","v":0},{"$f":"Import!E34250","v":0},{"$f":"Import!E34291","v":0},{"$f":"Import!E34332","v":0},{"$f":"Import!E34373","v":0},{"$f":"Import!E34414","v":0},{"$f":"Import!E34455","v":0},{"$f":"Import!E34496","v":0},{"$f":"Import!E34537","v":0},0]
[null,"Corporate issuers",3,{"$f":"Import!E34169","v":0},{"$f":"Import!E34210","v":0},{"$f":"Import!E34251","v":0},{"$f":"Import!E34292","v":0},{"$f":"Import!E34333","v":0},{"$f":"Import!E34374","v":0},{"$f":"Import!E34415","v":0},{"$f":"Import!E34456","v":0},{"$f":"Import!E34497","v":0},{"$f":"Import!E34538","v":0},0]
[null,"Corporate issuers",4,{"$f":"Import!E34170","v":0},{"$f":"Import!E34211","v":0},{"$f":"Import!E34252","v":0},{"$f":"Import!E34293","v":0},{"$f":"Import!E34334","v":0},{"$f":"Import!E34375","v":0},{"$f":"Import!E34416","v":0},{"$f":"Import!E34457","v":0},{"$f":"Import!E34498","v":0},{"$f":"Import!E34539","v":0},0]
[null,"Corporate issuers",5,{"$f":"Import!E34171","v":0},{"$f":"Import!E34212","v":0},{"$f":"Import!E34253","v":0},{"$f":"Import!E34294","v":0},{"$f":"Import!E34335","v":0},{"$f":"Import!E34376","v":0},{"$f":"Import!E34417","v":0},{"$f":"Import!E34458","v":0},{"$f":"Import!E34499","v":0},{"$f":"Import!E34540","v":0},0]
[null,"Corporate issuers",6,{"$f":"Import!E34172","v":0},{"$f":"Import!E34213","v":0},{"$f":"Import!E34254","v":0},{"$f":"Import!E34295","v":0},{"$f":"Import!E34336","v":0},{"$f":"Import!E34377","v":0},{"$f":"Import!E34418","v":0},{"$f":"Import!E34459","v":0},{"$f":"Import!E34500","v":0},{"$f":"Import!E34541","v":0},0]
[null,"Corporate issuers",7,{"$f":"Import!E34173","v":0},{"$f":"Import!E34214","v":0},{"$f":"Import!E34255","v":0},{"$f":"Import!E34296","v":0},{"$f":"Import!E34337","v":0},{"$f":"Import!E34378","v":0},{"$f":"Import!E34419","v":0},{"$f":"Import!E34460","v":0},{"$f":"Import!E34501","v":0},{"$f":"Import!E34542","v":0},0]
[null,"Corporate issuers",8,{"$f":"Import!E34174","v":0},{"$f":"Import!E34215","v":0},{"$f":"Import!E34256","v":0},{"$f":"Import!E34297","v":0},{"$f":"Import!E34338","v":0},{"$f":"Import!E34379","v":0},{"$f":"Import!E34420","v":0},{"$f":"Import!E34461","v":0},{"$f":"Import!E34502","v":0},{"$f":"Import!E34543","v":0},0]
[null,"Issuers of asset-backed securities",1,{"$f":"Import!E34175","v":0},{"$f":"Import!E34216","v":0},{"$f":"Import!E34257","v":0},{"$f":"Import!E34298","v":0},{"$f":"Import!E34339","v":0},{"$f":"Import!E34380","v":0},{"$f":"Import!E34421","v":0},{"$f":"Import!E34462","v":0},{"$f":"Import!E34503","v":0},{"$f":"Import!E34544","v":0},0]
[null,"Issuers of asset-backed securities",2,{"$f":"Import!E34176","v":0},{"$f":"Import!E34217","v":0},{"$f":"Import!E34258","v":0},{"$f":"Import!E34299","v":0},{"$f":"Import!E34340","v":0},{"$f":"Import!E34381","v":0},{"$f":"Import!E34422","v":0},{"$f":"Import!E34463","v":0},{"$f":"Import!E34504","v":0},{"$f":"Import!E34545","v":0},0]
[null,"Issuers of asset-backed securities",3,{"$f":"Import!E34177","v":0},{"$f":"Import!E34218","v":0},{"$f":"Import!E34259","v":0},{"$f":"Import!E34300","v":0},{"$f":"Import!E34341","v":0},{"$f":"Import!E34382","v":0},{"$f":"Import!E34423","v":0},{"$f":"Import!E34464","v":0},{"$f":"Import!E34505","v":0},{"$f":"Import!E34546","v":0},0]
[null,"Issuers of asset-backed securities",4,{"$f":"Import!E34178","v":0},{"$f":"Import!E34219","v":0},{"$f":"Import!E34260","v":0},{"$f":"Import!E34301","v":0},{"$f":"Import!E34342","v":0},{"$f":"Import!E34383","v":0},{"$f":"Import!E34424","v":0},{"$f":"Import!E34465","v":0},{"$f":"Import!E34506","v":0},{"$f":"Import!E34547","v":0},0]
[null,"Issuers of asset-backed securities",5,{"$f":"Import!E34179","v":0},{"$f":"Import!E34220","v":0},{"$f":"Import!E34261","v":0},{"$f":"Import!E34302","v":0},{"$f":"Import!E34343","v":0},{"$f":"Import!E34384","v":0},{"$f":"Import!E34425","v":0},{"$f":"Import!E34466","v":0},{"$f":"Import!E34507","v":0},{"$f":"Import!E34548","v":0},0]
[null,"Issuers of asset-backed securities",6,{"$f":"Import!E34180","v":0},{"$f":"Import!E34221","v":0},{"$f":"Import!E34262","v":0},{"$f":"Import!E34303","v":0},{"$f":"Import!E34344","v":0},{"$f":"Import!E34385","v":0},{"$f":"Import!E34426","v":0},{"$f":"Import!E34467","v":0},{"$f":"Import!E34508","v":0},{"$f":"Import!E34549","v":0},0]
[null,"Issuers of asset-backed securities",7,{"$f":"Import!E34181","v":0},{"$f":"Import!E34222","v":0},{"$f":"Import!E34263","v":0},{"$f":"Import!E34304","v":0},{"$f":"Import!E34345","v":0},{"$f":"Import!E34386","v":0},{"$f":"Import!E34427","v":0},{"$f":"Import!E34468","v":0},{"$f":"Import!E34509","v":0},{"$f":"Import!E34550","v":0},0]
[null,"Issuers of asset-backed securities",8,{"$f":"Import!E34182","v":0},{"$f":"Import!E34223","v":0},{"$f":"Import!E34264","v":0},{"$f":"Import!E34305","v":0},{"$f":"Import!E34346","v":0},{"$f":"Import!E34387","v":0},{"$f":"Import!E34428","v":0},{"$f":"Import!E34469","v":0},{"$f":"Import!E34510","v":0},{"$f":"Import!E34551","v":0},0]
[null,"Government securities, municipal securities, foreign government securities",0,{"$f":"Import!E34183","v":0},{"$f":"Import!E34224","v":0},{"$f":"Import!E34265","v":0},{"$f":"Import!E34306","v":0},{"$f":"Import!E34347","v":0},{"$f":"Import!E34388","v":0},{"$f":"Import!E34429","v":0},{"$f":"Import!E34470","v":0},{"$f":"Import!E34511","v":0},{"$f":"Import!E34552","v":0},0]
[null,"Government securities, municipal securities, foreign government securities",1,{"$f":"Import!E34184","v":0},{"$f":"Import!E34225","v":0},{"$f":"Import!E34266","v":0},{"$f":"Import!E34307","v":0},{"$f":"Import!E34348","v":0},{"$f":"Import!E34389","v":0},{"$f":"Import!E34430","v":0},{"$f":"Import!E34471","v":0},{"$f":"Import!E34512","v":0},{"$f":"Import!E34553","v":0},0]
[null,"Government securities, municipal securities, foreign government securities",2,{"$f":"Import!E34185","v":0},{"$f":"Import!E34226","v":0},{"$f":"Import!E34267","v":0},{"$f":"Import!E34308","v":0},{"$f":"Import!E34349","v":0},{"$f":"Import!E34390","v":0},{"$f":"Import!E34431","v":0},{"$f":"Import!E34472","v":0},{"$f":"Import!E34513","v":0},{"$f":"Import!E34554","v":0},0]
[null,"Government securities, municipal securities, foreign government securities",3,{"$f":"Import!E34186","v":0},{"$f":"Import!E34227","v":0},{"$f":"Import!E34268","v":0},{"$f":"Import!E34309","v":0},{"$f":"Import!E34350","v":0},{"$f":"Import!E34391","v":0},{"$f":"Import!E34432","v":0},{"$f":"Import!E34473","v":0},{"$f":"Import!E34514","v":0},{"$f":"Import!E34555","v":0},0]
[null,"Government securities, municipal securities, foreign government securities",4,{"$f":"Import!E34187","v":0},{"$f":"Import!E34228","v":0},{"$f":"Import!E34269","v":0},{"$f":"Import!E34310","v":0},{"$f":"Import!E34351","v":0},{"$f":"Import!E34392","v":0},{"$f":"Import!E34433","v":0},{"$f":"Import!E34474","v":0},{"$f":"Import!E34515","v":0},{"$f":"Import!E34556","v":0},0]
[null,"Government securities, municipal securities, foreign government securities",5,{"$f":"Import!E34188","v":0},{"$f":"Import!E34229","v":0},{"$f":"Import!E34270","v":0},{"$f":"Import!E34311","v":0},{"$f":"Import!E34352","v":0},{"$f":"Import!E34393","v":0},{"$f":"Import!E34434","v":0},{"$f":"Import!E34475","v":0},{"$f":"Import!E34516","v":0},{"$f":"Import!E34557","v":0},0]
[null,"Government securities, municipal securities, foreign government securities",6,{"$f":"Import!E34189","v":0},{"$f":"Import!E34230","v":0},{"$f":"Import!E34271","v":0},{"$f":"Import!E34312","v":0},{"$f":"Import!E34353","v":0},{"$f":"Import!E34394","v":0},{"$f":"Import!E34435","v":0},{"$f":"Import!E34476","v":0},{"$f":"Import!E34517","v":0},{"$f":"Import!E34558","v":0},0]
[null,"Government securities, municipal securities, foreign government securities",7,{"$f":"Import!E34190","v":0},{"$f":"Import!E34231","v":0},{"$f":"Import!E34272","v":0},{"$f":"Import!E34313","v":0},{"$f":"Import!E34354","v":0},{"$f":"Import!E34395","v":0},{"$f":"Import!E34436","v":0},{"$f":"Import!E34477","v":0},{"$f":"Import!E34518","v":0},{"$f":"Import!E34559","v":0},0]
[null,"Government securities, municipal securities, foreign government securities",8,{"$f":"Import!E34191","v":0},{"$f":"Import!E34232","v":0},{"$f":"Import!E34273","v":0},{"$f":"Import!E34314","v":0},{"$f":"Import!E34355","v":0},{"$f":"Import!E34396","v":0},{"$f":"Import!E34437","v":0},{"$f":"Import!E34478","v":0},{"$f":"Import!E34519","v":0},{"$f":"Import!E34560","v":0},0]
[null,null,null,null,null,null,null,null,null,null,null,null,"Total",{"$f":"SUM(N2038:N2078)","v":0}]
[]
[null,"Total rated assets","BSCR Rating","Moody's Investor's Service","Standard and Poor's","Dominion Bond Rating Service","Kroll Bond Rating Agency","Egan Jones Rating Company","Japan Credit Rating Agency","BMA-approved Internal Ratings","Other BMA-approved Rating Agency 1","Other BMA-approved Rating Agency 2","Other BMA-approved Rating Agency 3","Total"]
[null,"Total rated assets",0,{"$f":"D2070","v":0},{"$f":"E2070","v":0},0,0,0,0,0,0,0,0,{"$f":"SUM(D2082:M2082)","v":0}]
[null,"Total rated assets",1,{"$f":"D2038+D2046+D2054+D2062+D2071","v":0},{"$f":"E2038+E2046+E2054+E2062+E2071","v":0},0,0,0,0,0,0,0,0,{"$f":"SUM(D2083:M2083)","v":0}]
[null,"Total rated assets",2,{"$f":"D2039+D2047+D2055+D2063+D2072","v":0},0,0,0,0,0,0,0,0,0,0]
[null,"Total rated assets",3,0,0,0,0,0,0,0,0,0,0,0]
[null,"Total rated assets",4,0,0,0,0,0,0,0,0,0,0,0]
[null,"Total rated assets",5,0,0,0,0,0,0,0,0,0,0,0]
[null,"Total rated assets",6,0,0,0,0,0,0,0,0,0,0,0]
[null,"Total rated assets",7,0,0,0,0,0,0,0,0,0,0,0]
[null,"Total rated assets",8,0,0,0,0,0,0,0,0,0,0,0]
[null,"Total rated assets","Total",{"$f":"SUM(D2082:D2090)","v":0},{"$f":"SUM(E2082:E2090)","v":0},0,0,0,0,0,0,0,0,0]
[]
[null,"Asset/Rating Category","BSCR Rating","Unrated"]
[null,"Financial institutions, brokers and dealers",8,{"$f":"Import!E34561","v":0}]
[null,"Insurance companies",8,{"$f":"Import!E34562","v":0}]
[null,"Corporate issuers",8,{"$f":"Import!E34563","v":0}]
[null,"Issuers of asset-backed securities",8,{"$f":"Import!E34564","v":0}]
[null,"Government securities, municipal securities, foreign government securities",8,{"$f":"Import!E34565","v":0}]
[null,"Total unrated assets","Total",{"$f":"SUM(D2094:D2098)","v":0}]
[]
[null,"Asset/Rating Category","BSCR Rating","Financial institutions, brokers and dealers","Insurance companies","Corporate issuers","Issuers of asset-backed securities","Government securities, municipal securities, foreign government securities","Total"]
[null,"Total",0,null,null,null,null,{"$f":"N2070","v":0},{"$f":"SUM(H2102)","v":0}]
[null,"Total",1,{"$f":"N2038","v":0},{"$f":"N2046","v":0},{"$f":"N2054","v":0},{"$f":"N2062","v":0},0,{"$f":"SUM(D2103:H2103)","v":0}]
[null,"Total",2,0,0,0,0,0,{"$f":"SUM(D2104:H2104)","v":0}]
[null,"Total",3,0,0,0,0,0,0]
[null,"Total",4,0,0,0,0,0,0]
[null,"Total",5,0,0,0,0,0,0]
[null,"Total",6,0,0,0,0,0,0]
[null,"Total",7,0,0,0,0,0,0]
[null,"Total",8,{"$f":"N2045+D2094","v":0},{"$f":"N2053+D2095","v":0},{"$f":"N2061+D2096","v":0},{"$f":"N2069+D2097","v":0},{"$f":"N2078+D2098","v":0},0]
[null,"Total fixed income assets","Total",{"$f":"SUM(D2103:D2110)","v":0},{"$f":"SUM(E2103:E2110)","v":0},{"$f":"SUM(F2103:F2110)","v":0},{"$f":"SUM(G2103:G2110)","v":0},{"$f":"SUM(H2102:H2110)","v":0},{"$f":"SUM(D2111:H2111)","v":0}]
[null,"Unrated","- of which unrated",{"$f":"D2094","v":0},{"$f":"D2095","v":0},{"$f":"D2096","v":0},{"$f":"D2097","v":0},{"$f":"D2098","v":0},{"$f":"SUM(D2112:H2112)","v":0}]
[]
[]
["Cash","Sovereign Bonds","RMBS - Agency","Listed Preferred Equity - Direct","Hedge Funds","Investment Income Due and Accrued","Energy","Holding Entity","Significant Influence","United States Dollars","Positive market value",null,null,null,null,"Residential Mortgages",null,"United States of America"]
["Certificates of Deposit","Municipals","RMBS - Non-agency","Listed Preferred Equity - ETF","Equity investments in Infrastructure","Accounts and Premiums Receivable","Materials","Operating Entity","Control","Euro","Negative market value",null,null,null,null,"Other Residential Loans",null,"Bermuda"]
["Short-Term Commercial Paper","Supranationals (multilateral development banks and international organizations)","CMBS","Listed Preferred Equity - Mutual Fund","Commodities - Direct","Reinsurance Balance Receivable","Industrial","Branch","Select","Afghanistan Afghanis","Select",null,null,null,null,"Commercial and Farm Mortgages",null,"United Kingdom of Great Britain and Northern Ireland"]
["Money Market Funds","Corporate bonds","CLOs","Private Preferred Equity - Direct","Commodities - ETF","Funds Held by Ceding Reinsurers","Consumer Discretionary","Select",null,"Albania Leke",null,null,null,null,null,"Other Commercial Real Estate Loans",null,"Canada"]
["Other","Private Placements","CDOs","Private Preferred Equity - Fund","Commodities - Mutual Funds","SAC - long-term business - variable annuities","Consumer Staples",null,null,"Armenia Drams",null,null,null,null,null,"Middle Market Loans"]
["Select","Other - Secured Bonds","Auto Loan ABS","Other - Listed Preferred Equity","Catastrophe Bonds","SAC - long-term business - others","Healthcare",null,null,"Netherlands Antilles Guilders",null,null,null,null,null,"Leveraged Loans",null,"Afghanistan"]
[null,"Other - Unsecured Bonds","Student Loan ABS","Other - Private Preferred Equity","Other Insurance-Linked Securities","SAC - general business","Financial",null,null,"Angola Kwanza",null,null,null,null,null,"Other Direct Private Lending",null,"Aland Islands"]
[null,"Exchange-Traded Fund - Sovereigns","Credit Card Receivable ABS","Select","Advances to Affiliates","Deposit assets","Select",null,null,"Argentina Pesos",null,null,null,null,null,"Infrastructure Loans",null,"Albania"]
[null,"Mutual Fund - Sovereigns","Other ABS",null,"Investments in Affiliates","Other Sundry Assets",null,null,null,"Australia Dollars",null,null,null,null,null,"Collateral Loans",null,"Algeria"]
[null,"Exchange-Traded Fund - Corporates","Select",null,"Other","Letter of Credit, Guarantees and Other Instruments",null,null,null,"Aruba Guilders",null,null,null,null,null,"Equity Release / Reverse Mortgages",null,"American Samoa"]
[null,"Mutual Fund - Corporates",null,null,"Select","Other",null,null,null,"Azerbaijan New Manats",null,null,null,null,null,"Policy Loans",null,"Andorra"]
[null,"Other Funds",null,null,null,"Select",null,null,null,"Bosnia and Herzegovina Convertible Marka",null,null,null,null,null,"Other Direct Loans",null,"Angola"]
[null,"Select",null,null,null,null,null,null,null,"Barbados Dollars",null,null,null,null,null,"Mortgage Loan Fund - Residential",null,"Anguilla"]
[null,null,null,null,null,null,null,null,null,"Bangladesh Taka",null,null,null,null,null,"Mortgage Loan Fund - Commercial",null,"Antigua and Barbuda"]
[null,null,null,null,null,null,null,null,null,"Bulgaria Leva",null,null,null,null,null,"Private Credit Fund",null,"Argentina"]
[null,null,null,null,null,null,null,null,null,"Bahrain Dinars",null,null,null,null,null,"Other Loan Fund",null,"Armenia"]
["Listed options","Equity","Hedging","Long / Receive Fixed / Sell Protection","Private Equities","Investment Income Due and Accrued","Direct Real Estate - Residential",null,null,"Burundi Francs",null,null,null,null,null,"Select",null,"Aruba"]
["Futures","Debt","Speculative","Short / Receive Floating / Buy Protection","Investment Funds","Accounts and Premiums Receivable","Direct Real Estate - Commercial",null,null,"Bermuda Dollars",null,null,null,null,null,null,null,"Australia"]
["Forwards","Interest Rate","Select","Select","Hedge Funds","Reinsurance Balance Receivable","Direct Real-Estate - Industrial",null,null,"Brunei Dollars",null,null,null,null,null,"Insured/Guaranteed Mortgages",null,"Austria"]
["Swaps","Inflation",null,null,"Private Credit Funds","SAC - long-term business - variable annuities","Direct Real Estate - Land",null,null,"Bolivia Bolivianos",null,null,null,null,null,"Other Commercial and Farm Mortgages",null,"Azerbaijan"]
["Swaptions","Credit",null,null,"Catastrophe Bonds","SAC - long-term business - others","Real Estate Funds - Residential",null,null,"Brazil Reais",null,null,null,null,null,"Other Residential Mortgages",null,"Bahamas"]
["OTC options","Currencies","Yes","Exchange-traded","Other Insurance-Linked Securities","SAC - general business","Real Estate Funds - Commercial",null,null,"Bahamas Dollars",null,null,null,null,null,"Mortgages Not In Good Standing",null,"Bahrain"]
["Other","Commodities","No","OTC – Centrally-cleared","Infrastructure Debt","Deposit assets","Real-Estate Funds - Industrial",null,null,"Bhutan Ngultrum",null,null,null,null,null,"Collateral Loans",null,"Bangladesh"]
["Select","Other","Select","OTC – Not centrally-cleared","Equity Investments in Infrastructure","Other Sundry Assets","Real Estate Funds - Land",null,null,"Botswana Pulas",null,null,null,null,null,"Middle Market Loans",null,"Barbados"]
[null,"Select",null,"Select","Other","Letter of Credit, Guarantees and Other Instruments","Direct Real Estate - Other",null,null,"Belarus Rubles",null,null,null,null,null,"Other Direct Private Lending",null,"Belarus"]
[null,null,null,null,"Select","Other","Real Estate Funds - Other",null,null,"Belize Dollars",null,null,null,null,null,"Policy Loans",null,"Belgium"]
[null,null,null,null,null,"Select","Select",null,null,"Canada Dollars",null,null,null,null,null,"Other",null,"Belize"]
[null,null,null,null,null,null,null,null,null,"Congo/Kinshasa Francs",null,null,null,null,null,"Select",null,"Benin"]
[null,null,null,null,null,null,null,null,null,"Switzerland Francs",null,null,null,null,null,null,null,"Bhutan"]
["BSCR Rating",null,"Listed Equity - Direct",null,null,null,null,null,null,"Chile Pesos",null,null,null,null,null,null,null,"Bolivia (Plurinational State of)"]
["Select",null,"Listed Equity - ETF",null,null,null,"Investment",null,null,"China Yuan Renminbi",null,null,null,null,null,null,null,"Bonaire, Sint Eustatius and Saba"]
["BSCR Rating 0",null,"Listed Equity - Mutual Fund",null,null,null,"Owner-occupied",null,null,"Colombia Pesos",null,null,null,null,null,null,null,"Bosnia and Herzegovina"]
["BSCR Rating 1",null,"Private Equity - Direct",null,null,null,"Select",null,null,"Costa Rica Colones",null,null,null,null,null,null,null,"Botswana"]
["BSCR Rating 2",null,"Private Equity - Fund",null,null,null,null,null,null,"Cuba Convertible Pesos",null,null,null,null,null,null,null,"Brazil"]
["BSCR Rating 3",null,"Other - Listed Equity",null,null,null,null,null,null,"Cuba Pesos",null,null,null,null,null,null,null,"British Virgin Islands"]
["BSCR Rating 4",null,"Other - Private Equity",null,null,null,null,null,null,"Cape Verde Escudos",null,null,null,null,null,null,null,"Brunei Darussalam"]
["BSCR Rating 5",null,"Select",null,null,null,null,null,null,"Czech Republic Koruny",null,null,null,null,null,null,null,"Bulgaria"]
["BSCR Rating 6",null,null,null,null,null,null,null,null,"Djibouti Francs",null,null,null,null,null,null,null,"Burkina Faso"]
["BSCR Rating 7",null,null,null,null,null,null,null,null,"Denmark Kroner",null,null,null,null,null,null,null,"Burundi"]
["BSCR Rating 8",null,null,null,null,null,null,null,null,"Dominican Republic Pesos",null,null,null,null,null,null,null,"Cabo Verde (Cape Verde)"]
[null,null,null,null,null,null,null,null,null,"Algeria Dinars",null,null,null,null,null,null,null,"Cambodia"]
[null,null,null,null,null,null,null,null,null,"Estonia Krooni",null,null,null,null,null,null,null,"Cameroon"]
[null,null,null,null,null,null,null,null,null,"Egypt Pounds",null,null,null,null,null,null,null,"Cayman Islands"]
[null,null,null,null,null,null,null,null,null,"Eritrea Nakfa",null,null,null,null,null,null,null,"Central African Republic"]
[null,null,null,null,null,null,null,null,null,"Ethiopia Birr",null,null,null,null,null,null,null,"Chad"]
[null,null,null,null,null,null,null,null,null,"Fiji Dollars",null,null,null,null,null,null,null,"Chile"]
[null,null,null,null,null,null,null,null,null,"Falkland Islands Pounds",null,null,null,null,null,null,null,"China"]
[null,null,null,null,null,null,null,null,null,"United Kingdom Pounds",null,null,null,null,null,null,null,"China, Hong Kong SAR"]
[null,null,null,null,null,null,null,null,null,"Georgia Lari",null,null,null,null,null,null,null,"China, Macao SAR "]
[null,null,null,null,null,null,null,null,null,"Guernsey Pounds",null,null,null,null,null,null,null,"Colombia"]
[null,null,null,null,null,null,null,null,null,"Ghana Cedis",null,null,null,null,null,null,null,"Comoros"]
[null,null,null,null,null,null,null,null,null,"Gibraltar Pounds",null,null,null,null,null,null,null,"Congo"]
[null,null,null,null,null,null,null,null,null,"Gambia Dalasi",null,null,null,null,null,null,null,"Cook Islands"]
[null,null,null,null,null,null,null,null,null,"Guinea Francs",null,null,null,null,null,null,null,"Costa Rica"]
[null,null,null,null,null,null,null,null,null,"Guatemala Quetzales",null,null,null,null,null,null,null,"Cote d' Ivoire"]
[null,null,null,null,null,null,null,null,null,"Guyana Dollars",null,null,null,null,null,null,null,"Croatia"]
[null,null,null,null,null,null,null,null,null,"Hong Kong Dollars",null,null,null,null,null,null,null,"Cuba"]
[null,null,null,null,null,null,null,null,null,"Honduras Lempiras",null,null,null,null,null,null,null,"Curacao"]
[null,null,null,null,null,null,null,null,null,"Croatia Kuna",null,null,null,null,null,null,null,"Cyprus"]
[null,null,null,null,null,null,null,null,null,"Haiti Gourdes",null,null,null,null,null,null,null,"Czech Republic"]
[null,null,null,null,null,null,null,null,null,"Hungary Forint",null,null,null,null,null,null,null,"Democratic People's Republic of Korea (North Korea)"]
[null,null,null,null,null,null,null,null,null,"Indonesia Rupiahs",null,null,null,null,null,null,null,"Democratic Republic of the Congo"]
[null,null,null,null,null,null,null,null,null,"Israel New Shekels",null,null,null,null,null,null,null,"Denmark"]
[null,null,null,null,null,null,null,null,null,"Isle of Man Pounds",null,null,null,null,null,null,null,"Djibouti"]
[null,null,null,null,null,null,null,null,null,"India Rupees",null,null,null,null,null,null,null,"Dominica"]
[null,null,null,null,null,null,null,null,null,"Iraq Dinars",null,null,null,null,null,null,null,"Dominican Republic"]
[null,null,null,null,null,null,null,null,null,"Iran Rials",null,null,null,null,null,null,null,"Ecuador"]
[null,null,null,null,null,null,null,null,null,"Iceland Kronur",null,null,null,null,null,null,null,"Egypt"]
[null,null,null,null,null,null,null,null,null,"Jersey Pounds",null,null,null,null,null,null,null,"El Salvador"]
[null,null,null,null,null,null,null,null,null,"Jamaica Dollars",null,null,null,null,null,null,null,"Equatorial Guinea"]
[null,null,null,null,null,null,null,null,null,"Jordan Dinars",null,null,null,null,null,null,null,"Eritrea"]
[null,null,null,null,null,null,null,null,null,"Japan Yen",null,null,null,null,null,null,null,"Estonia"]
[null,null,null,null,null,null,null,null,null,"Kenya Shillings",null,null,null,null,null,null,null,"Eswatini (Kingdom of Swaziland)"]
[null,null,null,null,null,null,null,null,null,"Kyrgyzstan Soms",null,null,null,null,null,null,null,"Ethiopia"]
[null,null,null,null,null,null,null,null,null,"Cambodia Riels",null,null,null,null,null,null,null,"Falkland Islands"]
[null,null,null,null,null,null,null,null,null,"Comoros Francs",null,null,null,null,null,null,null,"Faroe Islands"]
[null,null,null,null,null,null,null,null,null,"North Korea Won",null,null,null,null,null,null,null,"Fiji"]
[null,null,null,null,null,null,null,null,null,"South Korea Won",null,null,null,null,null,null,null,"Finland"]
[null,null,null,null,null,null,null,null,null,"Kuwait Dinars",null,null,null,null,null,null,null,"France"]
[null,null,null,null,null,null,null,null,null,"Cayman Islands Dollars",null,null,null,null,null,null,null,"French Guiana"]
[null,null,null,null,null,null,null,null,null,"Kazakhstan Tenge",null,null,null,null,null,null,null,"French Polynesia"]
[null,null,null,null,null,null,null,null,null,"Laos Kips",null,null,null,null,null,null,null,"Gabon"]
[null,null,null,null,null,null,null,null,null,"Lebanon Pounds",null,null,null,null,null,null,null,"Gambia (Republic of The)"]
[null,null,null,null,null,null,null,null,null,"Sri Lanka Rupees",null,null,null,null,null,null,null,"Georgia"]
[null,null,null,null,null,null,null,null,null,"Liberia Dollars",null,null,null,null,null,null,null,"Germany"]
[null,null,null,null,null,null,null,null,null,"Lesotho Maloti",null,null,null,null,null,null,null,"Ghana"]
[null,null,null,null,null,null,null,null,null,"Lithuania Litai",null,null,null,null,null,null,null,"Gibraltar"]
[null,null,null,null,null,null,null,null,null,"Latvia Lati",null,null,null,null,null,null,null,"Greece"]
[null,null,null,null,null,null,null,null,null,"Libya Dinars",null,null,null,null,null,null,null,"Greenland"]
[null,null,null,null,null,null,null,null,null,"Morocco Dirhams",null,null,null,null,null,null,null,"Grenada"]
[null,null,null,null,null,null,null,null,null,"Moldova Lei",null,null,null,null,null,null,null,"Guadeloupe"]
[null,null,null,null,null,null,null,null,null,"Madagascar Ariary",null,null,null,null,null,null,null,"Guam"]
[null,null,null,null,null,null,null,null,null,"Macedonia Denars",null,null,null,null,null,null,null,"Guatemala"]
[null,null,null,null,null,null,null,null,null,"Myanmar Kyats",null,null,null,null,null,null,null,"Guernsey"]
[null,null,null,null,null,null,null,null,null,"Mongolia Tugriks",null,null,null,null,null,null,null,"Guinea"]
[null,null,null,null,null,null,null,null,null,"Macau Patacas",null,null,null,null,null,null,null,"Guinea-Bissau"]
[null,null,null,null,null,null,null,null,null,"Mauritania Ouguiyas",null,null,null,null,null,null,null,"Guyana"]
[null,null,null,null,null,null,null,null,null,"Mauritius Rupees",null,null,null,null,null,null,null,"Haiti"]
[null,null,null,null,null,null,null,null,null,"Maldives Rufiyaa",null,null,null,null,null,null,null,"Holy See"]
[null,null,null,null,null,null,null,null,null,"Malawi Kwachas",null,null,null,null,null,null,null,"Honduras"]
[null,null,null,null,null,null,null,null,null,"Mexico Pesos",null,null,null,null,null,null,null,"Hungary"]
[null,null,null,null,null,null,null,null,null,"Malaysia Ringgits",null,null,null,null,null,null,null,"Iceland"]
[null,null,null,null,null,null,null,null,null,"Mozambique Meticais",null,null,null,null,null,null,null,"India"]
[null,null,null,null,null,null,null,null,null,"Namibia Dollars",null,null,null,null,null,null,null,"Indonesia"]
[null,null,null,null,null,null,null,null,null,"Nigeria Nairas",null,null,null,null,null,null,null,"Iran (Islamic Republic of)"]
[null,null,null,null,null,null,null,null,null,"Nicaragua Cordobas",null,null,null,null,null,null,null,"Iraq"]
[null,null,null,null,null,null,null,null,null,"Norway Kroner",null,null,null,null,null,null,null,"Ireland"]
[null,null,null,null,null,null,null,null,null,"Nepal Rupees",null,null,null,null,null,null,null,"Isle of Man"]
[null,null,null,null,null,null,null,null,null,"New Zealand Dollars",null,null,null,null,null,null,null,"Israel"]
[null,null,null,null,null,null,null,null,null,"Oman Rials",null,null,null,null,null,null,null,"Italy"]
[null,null,null,null,null,null,null,null,null,"Panama Balboas",null,null,null,null,null,null,null,"Jamaica"]
[null,null,null,null,null,null,null,null,null,"Peru Nuevos Soles",null,null,null,null,null,null,null,"Japan"]
[null,null,null,null,null,null,null,null,null,"Papua New Guinea Kina",null,null,null,null,null,null,null,"Jersey"]
[null,null,null,null,null,null,null,null,null,"Philippines Pesos",null,null,null,null,null,null,null,"Jordan"]
[null,null,null,null,null,null,null,null,null,"Pakistan Rupees",null,null,null,null,null,null,null,"Kazakhstan"]
[null,null,null,null,null,null,null,null,null,"Poland Zlotych",null,null,null,null,null,null,null,"Kenya"]
[null,null,null,null,null,null,null,null,null,"Paraguay Guarani",null,null,null,null,null,null,null,"Kiribati"]
[null,null,null,null,null,null,null,null,null,"Qatar Riyals",null,null,null,null,null,null,null,"Kuwait"]
[null,null,null,null,null,null,null,null,null,"Romania New Lei",null,null,null,null,null,null,null,"Kyrgyzstan"]
[null,null,null,null,null,null,null,null,null,"Serbia Dinars",null,null,null,null,null,null,null,"Lao People's Democratic Republic"]
[null,null,null,null,null,null,null,null,null,"Russia Rubles",null,null,null,null,null,null,null,"Latvia"]
[null,null,null,null,null,null,null,null,null,"Rwanda Francs",null,null,null,null,null,null,null,"Lebanon"]
[null,null,null,null,null,null,null,null,null,"Saudi Arabia Riyals",null,null,null,null,null,null,null,"Lesotho"]
[null,null,null,null,null,null,null,null,null,"Solomon Islands Dollars",null,null,null,null,null,null,null,"Liberia"]
[null,null,null,null,null,null,null,null,null,"Seychelles Rupees",null,null,null,null,null,null,null,"Libya"]
[null,null,null,null,null,null,null,null,null,"Sudan Pounds",null,null,null,null,null,null,null,"Liechtenstein"]
[null,null,null,null,null,null,null,null,null,"Sweden Kronor",null,null,null,null,null,null,null,"Lithuania"]
[null,null,null,null,null,null,null,null,null,"Singapore Dollars",null,null,null,null,null,null,null,"Luxembourg"]
[null,null,null,null,null,null,null,null,null,"Saint Helena Pounds",null,null,null,null,null,null,null,"Madagascar"]
[null,null,null,null,null,null,null,null,null,"Slovakia Koruny",null,null,null,null,null,null,null,"Malawi"]
[null,null,null,null,null,null,null,null,null,"Sierra Leone Leones",null,null,null,null,null,null,null,"Malaysia"]
[null,null,null,null,null,null,null,null,null,"Somalia Shillings",null,null,null,null,null,null,null,"Maldives"]
[null,null,null,null,null,null,null,null,null,"Seborga Luigini",null,null,null,null,null,null,null,"Mali"]
[null,null,null,null,null,null,null,null,null,"Suriname Dollars",null,null,null,null,null,null,null,"Malta"]
[null,null,null,null,null,null,null,null,null,"São Tome and Principe Dobras",null,null,null,null,null,null,null,"Marshall Islands"]
[null,null,null,null,null,null,null,null,null,"El Salvador Colones",null,null,null,null,null,null,null,"Martinique"]
[null,null,null,null,null,null,null,null,null,"Syria Pounds",null,null,null,null,null,null,null,"Mauritania"]
[null,null,null,null,null,null,null,null,null,"Swaziland Emalangeni",null,null,null,null,null,null,null,"Mauritius"]
[null,null,null,null,null,null,null,null,null,"Thailand Baht",null,null,null,null,null,null,null,"Mayotte"]
[null,null,null,null,null,null,null,null,null,"Tajikistan Somoni",null,null,null,null,null,null,null,"Mexico"]
[null,null,null,null,null,null,null,null,null,"Turkmenistan Manats",null,null,null,null,null,null,null,"Micronesia (Federated States of)"]
[null,null,null,null,null,null,null,null,null,"Tunisia Dinars",null,null,null,null,null,null,null,"Monaco"]
[null,null,null,null,null,null,null,null,null,"Tonga Pa'anga",null,null,null,null,null,null,null,"Mongolia"]
[null,null,null,null,null,null,null,null,null,"Turkey New Lira",null,null,null,null,null,null,null,"Montenegro"]
[null,null,null,null,null,null,null,null,null,"Trinidad and Tobago Dollars",null,null,null,null,null,null,null,"Montserrat"]
[null,null,null,null,null,null,null,null,null,"Tuvalu Dollars",null,null,null,null,null,null,null,"Morocco"]
[null,null,null,null,null,null,null,null,null,"Taiwan New Dollars",null,null,null,null,null,null,null,"Mozambique"]
[null,null,null,null,null,null,null,null,null,"Tanzania Shillings",null,null,null,null,null,null,null,"Myanmar"]
[null,null,null,null,null,null,null,null,null,"Ukraine Hryvnia",null,null,null,null,null,null,null,"Namibia"]
[null,null,null,null,null,null,null,null,null,"Uganda Shillings",null,null,null,null,null,null,null,"Nauru"]
[null,null,null,null,null,null,null,null,null,"Uruguay Pesos",null,null,null,null,null,null,null,"Nepal"]
[null,null,null,null,null,null,null,null,null,"Uzbekistan Sums",null,null,null,null,null,null,null,"Netherlands"]
[null,null,null,null,null,null,null,null,null,"Venezuela Bolivares",null,null,null,null,null,null,null,"New Caledonia"]
[null,null,null,null,null,null,null,null,null,"Venezuela Bolivares Fuertes",null,null,null,null,null,null,null,"New Zealand"]
[null,null,null,null,null,null,null,null,null,"Vietnam Dong",null,null,null,null,null,null,null,"Nicaragua"]
[null,null,null,null,null,null,null,null,null,"Vanuatu Vatu",null,null,null,null,null,null,null,"Niger"]
[null,null,null,null,null,null,null,null,null,"Samoa Tala",null,null,null,null,null,null,null,"Nigeria"]
[null,null,null,null,null,null,null,null,null,"Communauté Financière Africaine Francs BEAC",null,null,null,null,null,null,null,"Niue"]
[null,null,null,null,null,null,null,null,null,"Silver Ounces",null,null,null,null,null,null,null,"Norfolk Island"]
[null,null,null,null,null,null,null,null,null,"Gold Ounces",null,null,null,null,null,null,null,"North Macedonia"]
[null,null,null,null,null,null,null,null,null,"East Caribbean Dollars",null,null,null,null,null,null,null,"Northern Mariana Islands"]
[null,null,null,null,null,null,null,null,null,"International Monetary Fund Special Drawing Rights",null,null,null,null,null,null,null,"Norway"]
[null,null,null,null,null,null,null,null,null,"Communauté Financière Africaine Francs BCEAO",null,null,null,null,null,null,null,"Oman"]
[null,null,null,null,null,null,null,null,null,"Palladium Ounces",null,null,null,null,null,null,null,"Pakistan"]
[null,null,null,null,null,null,null,null,null,"Comptoirs Français du Pacifique Francs",null,null,null,null,null,null,null,"Palau"]
[null,null,null,null,null,null,null,null,null,"Platinum Ounces",null,null,null,null,null,null,null,"Panama"]
[null,null,null,null,null,null,null,null,null,"Yemen Rials",null,null,null,null,null,null,null,"Papua New Guinea"]
[null,null,null,null,null,null,null,null,null,"South Africa Rand",null,null,null,null,null,null,null,"Paraguay"]
[null,null,null,null,null,null,null,null,null,"Zambia Kwacha",null,null,null,null,null,null,null,"Peru"]
[null,null,null,null,null,null,null,null,null,"Zimbabwe Dollars",null,null,null,null,null,null,null,"Philippines"]
[null,null,null,null,null,null,null,null,null,null,null,null,null,null,null,null,null,"Pitcairn"]
[null,null,null,null,null,null,null,null,null,null,null,null,null,null,null,null,null,"Poland"]
[null,null,null,null,null,null,null,null,null,null,null,null,null,null,null,null,null,"Portugal"]
[null,null,null,null,null,null,null,null,null,null,null,null,null,null,null,null,null,"Puerto Rico"]
[null,null,null,null,null,null,null,null,null,null,null,null,null,null,null,null,null,"Qatar"]
[null,null,null,null,null,null,null,null,null,null,null,null,null,null,null,null,null,"Republic of Korea (South Korea)"]
[null,null,null,null,null,null,null,null,null,null,null,null,null,null,null,null,null,"Republic of Moldova"]
[null,null,null,null,null,null,null,null,null,null,null,null,null,null,null,null,null,"Reunion"]
[null,null,null,null,null,null,null,null,null,null,null,null,null,null,null,null,null,"Romania"]
[null,null,null,null,null,null,null,null,null,null,null,null,null,null,null,null,null,"Russian Federation"]
[null,null,null,null,null,null,null,null,null,null,null,null,null,null,null,null,null,"Rwanda"]
[null,null,null,null,null,null,null,null,null,null,null,null,null,null,null,null,null,"Saint Barthelemy (St. Barts)"]
[null,null,null,null,null,null,null,null,null,null,null,null,null,null,null,null,null,"Saint Helena"]
[null,null,null,null,null,null,null,null,null,null,null,null,null,null,null,null,null,"Saint Kitts and Nevis"]
[null,null,null,null,null,null,null,null,null,null,null,null,null,null,null,null,null,"Saint Lucia"]
[null,null,null,null,null,null,null,null,null,null,null,null,null,null,null,null,null,"Saint Martin"]
[null,null,null,null,null,null,null,null,null,null,null,null,null,null,null,null,null,"Saint Pierre and Miquelon"]
[null,null,null,null,null,null,null,null,null,null,null,null,null,null,null,null,null,"Saint Vincent and The Grenadines"]
[null,null,null,null,null,null,null,null,null,null,null,null,null,null,null,null,null,"Samoa"]
[null,null,null,null,null,null,null,null,null,null,null,null,null,null,null,null,null,"San Marino"]
[null,null,null,null,null,null,null,null,null,null,null,null,null,null,null,null,null,"Sao Tome and Principe"]
[null,null,null,null,null,null,null,null,null,null,null,null,null,null,null,null,null,"Sark"]
[null,null,null,null,null,null,null,null,null,null,null,null,null,null,null,null,null,"Saudi Arabia"]
[null,null,null,null,null,null,null,null,null,null,null,null,null,null,null,null,null,"Senegal"]
[null,null,null,null,null,null,null,null,null,null,null,null,null,null,null,null,null,"Serbia"]
[null,null,null,null,null,null,null,null,null,null,null,null,null,null,null,null,null,"Seychelles"]
[null,null,null,null,null,null,null,null,null,null,null,null,null,null,null,null,null,"Sierra Leone"]
[null,null,null,null,null,null,null,null,null,null,null,null,null,null,null,null,null,"Singapore"]
[null,null,null,null,null,null,null,null,null,null,null,null,null,null,null,null,null,"Sint Maarten"]
[null,null,null,null,null,null,null,null,null,null,null,null,null,null,null,null,null,"Slovakia"]
[null,null,null,null,null,null,null,null,null,null,null,null,null,null,null,null,null,"Slovenia"]
[null,null,null,null,null,null,null,null,null,null,null,null,null,null,null,null,null,"Solomon Islands"]
[null,null,null,null,null,null,null,null,null,null,null,null,null,null,null,null,null,"Somalia"]
[null,null,null,null,null,null,null,null,null,null,null,null,null,null,null,null,null,"South Africa"]
[null,null,null,null,null,null,null,null,null,null,null,null,null,null,null,null,null,"South Sudan"]
[null,null,null,null,null,null,null,null,null,null,null,null,null,null,null,null,null,"Spain"]
[null,null,null,null,null,null,null,null,null,null,null,null,null,null,null,null,null,"Sri Lanka"]
[null,null,null,null,null,null,null,null,null,null,null,null,null,null,null,null,null,"State of Palestine"]
[null,null,null,null,null,null,null,null,null,null,null,null,null,null,null,null,null,"Sudan"]
[null,null,null,null,null,null,null,null,null,null,null,null,null,null,null,null,null,"Suriname"]
[null,null,null,null,null,null,null,null,null,null,null,null,null,null,null,null,null,"Svalbard, Jan Mayen"]
[null,null,null,null,null,null,null,null,null,null,null,null,null,null,null,null,null,"Sweden"]
[null,null,null,null,null,null,null,null,null,null,null,null,null,null,null,null,null,"Switzerland"]
[null,null,null,null,null,null,null,null,null,null,null,null,null,null,null,null,null,"Syrian Arab Republic"]
[null,null,null,null,null,null,null,null,null,null,null,null,null,null,null,null,null,"Taiwan"]
[null,null,null,null,null,null,null,null,null,null,null,null,null,null,null,null,null,"Tajikistan"]
[null,null,null,null,null,null,null,null,null,null,null,null,null,null,null,null,null,"Thailand"]
[null,null,null,null,null,null,null,null,null,null,null,null,null,null,null,null,null,"Timor-Leste"]
[null,null,null,null,null,null,null,null,null,null,null,null,null,null,null,null,null,"Togo"]
[null,null,null,null,null,null,null,null,null,null,null,null,null,null,null,null,null,"Tokelau"]
[null,null,null,null,null,null,null,null,null,null,null,null,null,null,null,null,null,"Tonga"]
[null,null,null,null,null,null,null,null,null,null,null,null,null,null,null,null,null,"Trinidad and Tobago"]
[null,null,null,null,null,null,null,null,null,null,null,null,null,null,null,null,null,"Tunisia"]
[null,null,null,null,null,null,null,null,null,null,null,null,null,null,null,null,null,"Turkey"]
[null,null,null,null,null,null,null,null,null,null,null,null,null,null,null,null,null,"Turkmenistan"]
[null,null,null,null,null,null,null,null,null,null,null,null,null,null,null,null,null,"Turks & Caicos Islands"]
[null,null,null,null,null,null,null,null,null,null,null,null,null,null,null,null,null,"Tuvalu"]
[null,null,null,null,null,null,null,null,null,null,null,null,null,null,null,null,null,"Uganda"]
[null,null,null,null,null,null,null,null,null,null,null,null,null,null,null,null,null,"Ukraine"]
[null,null,null,null,null,null,null,null,null,null,null,null,null,null,null,null,null,"United Arab Emirates"]
[null,null,null,null,null,null,null,null,null,null,null,null,null,null,null,null,null,"United Republic of Tanzania"]
[null,null,null,null,null,null,null,null,null,null,null,null,null,null,null,null,null,"Uruguay"]
[null,null,null,null,null,null,null,null,null,null,null,null,null,null,null,null,null,"US Virgin Islands"]
[null,null,null,null,null,null,null,null,null,null,null,null,null,null,null,null,null,"Uzbekistan"]
[null,null,null,null,null,null,null,null,null,null,null,null,null,null,null,null,null,"Vanuatu"]
[null,null,null,null,null,null,null,null,null,null,null,null,null,null,null,null,null,"Venezuela, Bolivarian Republic of "]
[null,null,null,null,null,null,null,null,null,null,null,null,null,null,null,null,null,"Vietnam"]
[null,null,null,null,null,null,null,null,null,null,null,null,null,null,null,null,null,"Wallis & Futuna Islands"]
[null,null,null,null,null,null,null,null,null,null,null,null,null,null,null,null,null,"Western Sahara"]
[null,null,null,null,null,null,null,null,null,null,null,null,null,null,null,null,null,"Yemen"]
[null,null,null,null,null,null,null,null,null,null,null,null,null,null,null,null,null,"Zambia"]
[null,null,null,null,null,null,null,null,null,null,null,null,null,null,null,null,null,"Zimbabwe"]
[null,null,null,null,null,null,null,null,null,null,null,null,null,null,null,null,null,"Select"]

{"sheet":"Schedule VI (EBS)","index":52,"n_rows":2357,"n_cols":18,"rows_kept":2357,"cut":false,"hidden":false,"merged":[[1764,6,1765,6],[1764,7,1765,7],[1789,1,1789,2],[1793,1,1793,2],[1342,1,1342,2],[1447,1,1447,2],[1450,1,1450,2],[1555,1,1555,2],[1763,5,1765,5],[1339,1,1339,2],[5,1,5,2],[213,1,213,2],[216,1,216,2],[987,1,987,2],[990,1,990,2],[1095,1,1095,2],[1098,1,1098,2],[1123,1,1123,2],[1126,1,1126,2],[1231,1,1231,2],[1234,1,1234,2]]}
[null,"SCHEDULE OF ASSETS (EBS)",null,null,null,null,null,null,null,null,null,null,null,{"$f":"HYPERLINK(\"#'Index'!A1\",\"Return to Index\")","v":"Return to Index"}]
[null,{"$f":"'Insurer Information'!C7","v":"Enter Company Name"}]
[null,"As at",{"$f":"'Insurer Information'!C3","v":"2023-12-31"},null,null,null,null,null,null,null,null,null,null,"Schedule VI (EBS)"]
[null,"expressed in ['000s]",{"$f":"'Form 1SFS'!C5","v":"United States Dollars"}]
[]
[null,"(A) CASH AND CASH EQUIVALENTS"]
[]
[null,null,"Enter # of Asset Types",{"$f":"Import!M5263","v":0}]
[null,null,null,null,{"$f":"YEAR($C$3)","v":2023},{"$f":"YEAR($C$3)","v":2023}]
[null,"Asset Type","Currency","BSCR Rating","Nominal Amount","Fair Value","Comments"]
[1,{"$f":"Import!M5264","v":"Select"},{"$f":"Import!M5464","v":"Select"},{"$f":"Import!M5664","v":"Select"},{"$f":"Import!M5864","v":0},{"$f":"Import!M6064","v":0},{"$f":"Import!M6264","v":0}]
[{"$f":"A11+1","v":2},{"$f":"Import!M5265","v":"Select"},{"$f":"Import!M5465","v":"Select"},{"$f":"Import!M5665","v":"Select"},{"$f":"Import!M5865","v":0},{"$f":"Import!M6065","v":0},{"$f":"Import!M6265","v":0}]
[{"$f":"A12+1","v":3},{"$f":"Import!M5266","v":"Select"},{"$f":"Import!M5466","v":"Select"},{"$f":"Import!M5666","v":"Select"},{"$f":"Import!M5866","v":0},{"$f":"Import!M6066","v":0},{"$f":"Import!M6266","v":0}]
[4,{"$f":"Import!M5267","v":"Select"},{"$f":"Import!M5467","v":"Select"},{"$f":"Import!M5667","v":"Select"},{"$f":"Import!M5867","v":0},{"$f":"Import!M6067","v":0},{"$f":"Import!M6267","v":0}]
[5,{"$f":"Import!M5268","v":"Select"},{"$f":"Import!M5468","v":"Select"},{"$f":"Import!M5668","v":"Select"},{"$f":"Import!M5868","v":0},{"$f":"Import!M6068","v":0},{"$f":"Import!M6268","v":0}]
[6,{"$f":"Import!M5269","v":"Select"},{"$f":"Import!M5469","v":"Select"},{"$f":"Import!M5669","v":"Select"},{"$f":"Import!M5869","v":0},{"$f":"Import!M6069","v":0},{"$f":"Import!M6269","v":0}]
[7,{"$f":"Import!M5270","v":"Select"},{"$f":"Import!M5470","v":"Select"},{"$f":"Import!M5670","v":"Select"},{"$f":"Import!M5870","v":0},{"$f":"Import!M6070","v":0},{"$f":"Import!M6270","v":0}]
[8,{"$f":"Import!M5271","v":"Select"},{"$f":"Import!M5471","v":"Select"},{"$f":"Import!M5671","v":"Select"},{"$f":"Import!M5871","v":0},{"$f":"Import!M6071","v":0},{"$f":"Import!M6271","v":0}]
[9,{"$f":"Import!M5272","v":"Select"},{"$f":"Import!M5472","v":"Select"},{"$f":"Import!M5672","v":"Select"},{"$f":"Import!M5872","v":0},{"$f":"Import!M6072","v":0},{"$f":"Import!M6272","v":0}]
[10,{"$f":"Import!M5273","v":"Select"},{"$f":"Import!M5473","v":"Select"},{"$f":"Import!M5673","v":"Select"},{"$f":"Import!M5873","v":0},{"$f":"Import!M6073","v":0},{"$f":"Import!M6273","v":0}]
[11,{"$f":"Import!M5274","v":"Select"},{"$f":"Import!M5474","v":"Select"},{"$f":"Import!M5674","v":"Select"},{"$f":"Import!M5874","v":0},{"$f":"Import!M6074","v":0},{"$f":"Import!M6274","v":0}]
[12,{"$f":"Import!M5275","v":"Select"},{"$f":"Import!M5475","v":"Select"},{"$f":"Import!M5675","v":"Select"},{"$f":"Import!M5875","v":0},{"$f":"Import!M6075","v":0},{"$f":"Import!M6275","v":0}]
[13,{"$f":"Import!M5276","v":"Select"},{"$f":"Import!M5476","v":"Select"},{"$f":"Import!M5676","v":"Select"},{"$f":"Import!M5876","v":0},{"$f":"Import!M6076","v":0},{"$f":"Import!M6276","v":0}]
[14,{"$f":"Import!M5277","v":"Select"},{"$f":"Import!M5477","v":"Select"},{"$f":"Import!M5677","v":"Select"},{"$f":"Import!M5877","v":0},{"$f":"Import!M6077","v":0},{"$f":"Import!M6277","v":0}]
[15,{"$f":"Import!M5278","v":"Select"},{"$f":"Import!M5478","v":"Select"},{"$f":"Import!M5678","v":"Select"},{"$f":"Import!M5878","v":0},{"$f":"Import!M6078","v":0},{"$f":"Import!M6278","v":0}]
[16,{"$f":"Import!M5279","v":"Select"},{"$f":"Import!M5479","v":"Select"},{"$f":"Import!M5679","v":"Select"},{"$f":"Import!M5879","v":0},{"$f":"Import!M6079","v":0},{"$f":"Import!M6279","v":0}]
[17,{"$f":"Import!M5280","v":"Select"},{"$f":"Import!M5480","v":"Select"},{"$f":"Import!M5680","v":"Select"},{"$f":"Import!M5880","v":0},{"$f":"Import!M6080","v":0},{"$f":"Import!M6280","v":0}]
[18,{"$f":"Import!M5281","v":"Select"},{"$f":"Import!M5481","v":"Select"},{"$f":"Import!M5681","v":"Select"},{"$f":"Import!M5881","v":0},{"$f":"Import!M6081","v":0},{"$f":"Import!M6281","v":0}]
[19,{"$f":"Import!M5282","v":"Select"},{"$f":"Import!M5482","v":"Select"},{"$f":"Import!M5682","v":"Select"},{"$f":"Import!M5882","v":0},{"$f":"Import!M6082","v":0},{"$f":"Import!M6282","v":0}]
[20,{"$f":"Import!M5283","v":"Select"},{"$f":"Import!M5483","v":"Select"},{"$f":"Import!M5683","v":"Select"},{"$f":"Import!M5883","v":0},{"$f":"Import!M6083","v":0},{"$f":"Import!M6283","v":0}]
[21,{"$f":"Import!M5284","v":"Select"},{"$f":"Import!M5484","v":"Select"},{"$f":"Import!M5684","v":"Select"},{"$f":"Import!M5884","v":0},{"$f":"Import!M6084","v":0},{"$f":"Import!M6284","v":0}]
[22,{"$f":"Import!M5285","v":"Select"},{"$f":"Import!M5485","v":"Select"},{"$f":"Import!M5685","v":"Select"},{"$f":"Import!M5885","v":0},{"$f":"Import!M6085","v":0},{"$f":"Import!M6285","v":0}]
[23,{"$f":"Import!M5286","v":"Select"},{"$f":"Import!M5486","v":"Select"},{"$f":"Import!M5686","v":"Select"},{"$f":"Import!M5886","v":0},{"$f":"Import!M6086","v":0},{"$f":"Import!M6286","v":0}]
[24,{"$f":"Import!M5287","v":"Select"},{"$f":"Import!M5487","v":"Select"},{"$f":"Import!M5687","v":"Select"},{"$f":"Import!M5887","v":0},{"$f":"Import!M6087","v":0},{"$f":"Import!M6287","v":0}]
[25,{"$f":"Import!M5288","v":"Select"},{"$f":"Import!M5488","v":"Select"},{"$f":"Import!M5688","v":"Select"},{"$f":"Import!M5888","v":0},{"$f":"Import!M6088","v":0},{"$f":"Import!M6288","v":0}]
[26,{"$f":"Import!M5289","v":"Select"},{"$f":"Import!M5489","v":"Select"},{"$f":"Import!M5689","v":"Select"},{"$f":"Import!M5889","v":0},{"$f":"Import!M6089","v":0},{"$f":"Import!M6289","v":0}]
[27,{"$f":"Import!M5290","v":"Select"},{"$f":"Import!M5490","v":"Select"},{"$f":"Import!M5690","v":"Select"},{"$f":"Import!M5890","v":0},{"$f":"Import!M6090","v":0},{"$f":"Import!M6290","v":0}]
[28,{"$f":"Import!M5291","v":"Select"},{"$f":"Import!M5491","v":"Select"},{"$f":"Import!M5691","v":"Select"},{"$f":"Import!M5891","v":0},{"$f":"Import!M6091","v":0},{"$f":"Import!M6291","v":0}]
[29,{"$f":"Import!M5292","v":"Select"},{"$f":"Import!M5492","v":"Select"},{"$f":"Import!M5692","v":"Select"},{"$f":"Import!M5892","v":0},{"$f":"Import!M6092","v":0},{"$f":"Import!M6292","v":0}]
[30,{"$f":"Import!M5293","v":"Select"},{"$f":"Import!M5493","v":"Select"},{"$f":"Import!M5693","v":"Select"},{"$f":"Import!M5893","v":0},{"$f":"Import!M6093","v":0},{"$f":"Import!M6293","v":0}]
[31,{"$f":"Import!M5294","v":"Select"},{"$f":"Import!M5494","v":"Select"},{"$f":"Import!M5694","v":"Select"},{"$f":"Import!M5894","v":0},{"$f":"Import!M6094","v":0},{"$f":"Import!M6294","v":0}]
[32,{"$f":"Import!M5295","v":"Select"},{"$f":"Import!M5495","v":"Select"},{"$f":"Import!M5695","v":"Select"},{"$f":"Import!M5895","v":0},{"$f":"Import!M6095","v":0},{"$f":"Import!M6295","v":0}]
[33,{"$f":"Import!M5296","v":"Select"},{"$f":"Import!M5496","v":"Select"},{"$f":"Import!M5696","v":"Select"},{"$f":"Import!M5896","v":0},{"$f":"Import!M6096","v":0},{"$f":"Import!M6296","v":0}]
[34,{"$f":"Import!M5297","v":"Select"},{"$f":"Import!M5497","v":"Select"},{"$f":"Import!M5697","v":"Select"},{"$f":"Import!M5897","v":0},{"$f":"Import!M6097","v":0},{"$f":"Import!M6297","v":0}]
[35,{"$f":"Import!M5298","v":"Select"},{"$f":"Import!M5498","v":"Select"},{"$f":"Import!M5698","v":"Select"},{"$f":"Import!M5898","v":0},{"$f":"Import!M6098","v":0},{"$f":"Import!M6298","v":0}]
[36,{"$f":"Import!M5299","v":"Select"},{"$f":"Import!M5499","v":"Select"},{"$f":"Import!M5699","v":"Select"},{"$f":"Import!M5899","v":0},{"$f":"Import!M6099","v":0},{"$f":"Import!M6299","v":0}]
[37,{"$f":"Import!M5300","v":"Select"},{"$f":"Import!M5500","v":"Select"},{"$f":"Import!M5700","v":"Select"},{"$f":"Import!M5900","v":0},{"$f":"Import!M6100","v":0},{"$f":"Import!M6300","v":0}]
[38,{"$f":"Import!M5301","v":"Select"},{"$f":"Import!M5501","v":"Select"},{"$f":"Import!M5701","v":"Select"},{"$f":"Import!M5901","v":0},{"$f":"Import!M6101","v":0},{"$f":"Import!M6301","v":0}]
[39,{"$f":"Import!M5302","v":"Select"},{"$f":"Import!M5502","v":"Select"},{"$f":"Import!M5702","v":"Select"},{"$f":"Import!M5902","v":0},{"$f":"Import!M6102","v":0},{"$f":"Import!M6302","v":0}]
[40,{"$f":"Import!M5303","v":"Select"},{"$f":"Import!M5503","v":"Select"},{"$f":"Import!M5703","v":"Select"},{"$f":"Import!M5903","v":0},{"$f":"Import!M6103","v":0},{"$f":"Import!M6303","v":0}]
[41,{"$f":"Import!M5304","v":"Select"},{"$f":"Import!M5504","v":"Select"},{"$f":"Import!M5704","v":"Select"},{"$f":"Import!M5904","v":0},{"$f":"Import!M6104","v":0},{"$f":"Import!M6304","v":0}]
[42,{"$f":"Import!M5305","v":"Select"},{"$f":"Import!M5505","v":"Select"},{"$f":"Import!M5705","v":"Select"},{"$f":"Import!M5905","v":0},{"$f":"Import!M6105","v":0},{"$f":"Import!M6305","v":0}]
[43,{"$f":"Import!M5306","v":"Select"},{"$f":"Import!M5506","v":"Select"},{"$f":"Import!M5706","v":"Select"},{"$f":"Import!M5906","v":0},{"$f":"Import!M6106","v":0},{"$f":"Import!M6306","v":0}]
[44,{"$f":"Import!M5307","v":"Select"},{"$f":"Import!M5507","v":"Select"},{"$f":"Import!M5707","v":"Select"},{"$f":"Import!M5907","v":0},{"$f":"Import!M6107","v":0},{"$f":"Import!M6307","v":0}]
[45,{"$f":"Import!M5308","v":"Select"},{"$f":"Import!M5508","v":"Select"},{"$f":"Import!M5708","v":"Select"},{"$f":"Import!M5908","v":0},{"$f":"Import!M6108","v":0},{"$f":"Import!M6308","v":0}]
[46,{"$f":"Import!M5309","v":"Select"},{"$f":"Import!M5509","v":"Select"},{"$f":"Import!M5709","v":"Select"},{"$f":"Import!M5909","v":0},{"$f":"Import!M6109","v":0},{"$f":"Import!M6309","v":0}]
[47,{"$f":"Import!M5310","v":"Select"},{"$f":"Import!M5510","v":"Select"},{"$f":"Import!M5710","v":"Select"},{"$f":"Import!M5910","v":0},{"$f":"Import!M6110","v":0},{"$f":"Import!M6310","v":0}]
[48,{"$f":"Import!M5311","v":"Select"},{"$f":"Import!M5511","v":"Select"},{"$f":"Import!M5711","v":"Select"},{"$f":"Import!M5911","v":0},{"$f":"Import!M6111","v":0},{"$f":"Import!M6311","v":0}]
[49,{"$f":"Import!M5312","v":"Select"},{"$f":"Import!M5512","v":"Select"},{"$f":"Import!M5712","v":"Select"},{"$f":"Import!M5912","v":0},{"$f":"Import!M6112","v":0},{"$f":"Import!M6312","v":0}]
[50,{"$f":"Import!M5313","v":"Select"},{"$f":"Import!M5513","v":"Select"},{"$f":"Import!M5713","v":"Select"},{"$f":"Import!M5913","v":0},{"$f":"Import!M6113","v":0},{"$f":"Import!M6313","v":0}]
[51,{"$f":"Import!M5314","v":"Select"},{"$f":"Import!M5514","v":"Select"},{"$f":"Import!M5714","v":"Select"},{"$f":"Import!M5914","v":0},{"$f":"Import!M6114","v":0},{"$f":"Import!M6314","v":0}]
[52,{"$f":"Import!M5315","v":"Select"},{"$f":"Import!M5515","v":"Select"},{"$f":"Import!M5715","v":"Select"},{"$f":"Import!M5915","v":0},{"$f":"Import!M6115","v":0},{"$f":"Import!M6315","v":0}]
[53,{"$f":"Import!M5316","v":"Select"},{"$f":"Import!M5516","v":"Select"},{"$f":"Import!M5716","v":"Select"},{"$f":"Import!M5916","v":0},{"$f":"Import!M6116","v":0},{"$f":"Import!M6316","v":0}]
[54,{"$f":"Import!M5317","v":"Select"},{"$f":"Import!M5517","v":"Select"},{"$f":"Import!M5717","v":"Select"},{"$f":"Import!M5917","v":0},{"$f":"Import!M6117","v":0},{"$f":"Import!M6317","v":0}]
[55,{"$f":"Import!M5318","v":"Select"},{"$f":"Import!M5518","v":"Select"},{"$f":"Import!M5718","v":"Select"},{"$f":"Import!M5918","v":0},{"$f":"Import!M6118","v":0},{"$f":"Import!M6318","v":0}]
[56,{"$f":"Import!M5319","v":"Select"},{"$f":"Import!M5519","v":"Select"},{"$f":"Import!M5719","v":"Select"},{"$f":"Import!M5919","v":0},{"$f":"Import!M6119","v":0},{"$f":"Import!M6319","v":0}]
[57,{"$f":"Import!M5320","v":"Select"},{"$f":"Import!M5520","v":"Select"},{"$f":"Import!M5720","v":"Select"},{"$f":"Import!M5920","v":0},{"$f":"Import!M6120","v":0},{"$f":"Import!M6320","v":0}]
[58,{"$f":"Import!M5321","v":"Select"},{"$f":"Import!M5521","v":"Select"},{"$f":"Import!M5721","v":"Select"},{"$f":"Import!M5921","v":0},{"$f":"Import!M6121","v":0},{"$f":"Import!M6321","v":0}]
[59,{"$f":"Import!M5322","v":"Select"},{"$f":"Import!M5522","v":"Select"},{"$f":"Import!M5722","v":"Select"},{"$f":"Import!M5922","v":0},{"$f":"Import!M6122","v":0},{"$f":"Import!M6322","v":0}]
[60,{"$f":"Import!M5323","v":"Select"},{"$f":"Import!M5523","v":"Select"},{"$f":"Import!M5723","v":"Select"},{"$f":"Import!M5923","v":0},{"$f":"Import!M6123","v":0},{"$f":"Import!M6323","v":0}]
[61,{"$f":"Import!M5324","v":"Select"},{"$f":"Import!M5524","v":"Select"},{"$f":"Import!M5724","v":"Select"},{"$f":"Import!M5924","v":0},{"$f":"Import!M6124","v":0},{"$f":"Import!M6324","v":0}]
[62,{"$f":"Import!M5325","v":"Select"},{"$f":"Import!M5525","v":"Select"},{"$f":"Import!M5725","v":"Select"},{"$f":"Import!M5925","v":0},{"$f":"Import!M6125","v":0},{"$f":"Import!M6325","v":0}]
[63,{"$f":"Import!M5326","v":"Select"},{"$f":"Import!M5526","v":"Select"},{"$f":"Import!M5726","v":"Select"},{"$f":"Import!M5926","v":0},{"$f":"Import!M6126","v":0},{"$f":"Import!M6326","v":0}]
[64,{"$f":"Import!M5327","v":"Select"},{"$f":"Import!M5527","v":"Select"},{"$f":"Import!M5727","v":"Select"},{"$f":"Import!M5927","v":0},{"$f":"Import!M6127","v":0},{"$f":"Import!M6327","v":0}]
[65,{"$f":"Import!M5328","v":"Select"},{"$f":"Import!M5528","v":"Select"},{"$f":"Import!M5728","v":"Select"},{"$f":"Import!M5928","v":0},{"$f":"Import!M6128","v":0},{"$f":"Import!M6328","v":0}]
[66,{"$f":"Import!M5329","v":"Select"},{"$f":"Import!M5529","v":"Select"},{"$f":"Import!M5729","v":"Select"},{"$f":"Import!M5929","v":0},{"$f":"Import!M6129","v":0},{"$f":"Import!M6329","v":0}]
[{"$f":"A76+1","v":67},{"$f":"Import!M5330","v":"Select"},{"$f":"Import!M5530","v":"Select"},{"$f":"Import!M5730","v":"Select"},{"$f":"Import!M5930","v":0},{"$f":"Import!M6130","v":0},{"$f":"Import!M6330","v":0}]
[68,{"$f":"Import!M5331","v":"Select"},{"$f":"Import!M5531","v":"Select"},{"$f":"Import!M5731","v":"Select"},{"$f":"Import!M5931","v":0},{"$f":"Import!M6131","v":0},{"$f":"Import!M6331","v":0}]
[69,{"$f":"Import!M5332","v":"Select"},{"$f":"Import!M5532","v":"Select"},{"$f":"Import!M5732","v":"Select"},{"$f":"Import!M5932","v":0},{"$f":"Import!M6132","v":0},{"$f":"Import!M6332","v":0}]
[70,{"$f":"Import!M5333","v":"Select"},{"$f":"Import!M5533","v":"Select"},{"$f":"Import!M5733","v":"Select"},{"$f":"Import!M5933","v":0},{"$f":"Import!M6133","v":0},{"$f":"Import!M6333","v":0}]
[71,{"$f":"Import!M5334","v":"Select"},{"$f":"Import!M5534","v":"Select"},{"$f":"Import!M5734","v":"Select"},{"$f":"Import!M5934","v":0},{"$f":"Import!M6134","v":0},{"$f":"Import!M6334","v":0}]
[72,{"$f":"Import!M5335","v":"Select"},{"$f":"Import!M5535","v":"Select"},{"$f":"Import!M5735","v":"Select"},{"$f":"Import!M5935","v":0},{"$f":"Import!M6135","v":0},{"$f":"Import!M6335","v":0}]
[73,{"$f":"Import!M5336","v":"Select"},{"$f":"Import!M5536","v":"Select"},{"$f":"Import!M5736","v":"Select"},{"$f":"Import!M5936","v":0},{"$f":"Import!M6136","v":0},{"$f":"Import!M6336","v":0}]
[74,{"$f":"Import!M5337","v":"Select"},{"$f":"Import!M5537","v":"Select"},{"$f":"Import!M5737","v":"Select"},{"$f":"Import!M5937","v":0},{"$f":"Import!M6137","v":0},{"$f":"Import!M6337","v":0}]
[75,{"$f":"Import!M5338","v":"Select"},{"$f":"Import!M5538","v":"Select"},{"$f":"Import!M5738","v":"Select"},{"$f":"Import!M5938","v":0},{"$f":"Import!M6138","v":0},{"$f":"Import!M6338","v":0}]
[76,{"$f":"Import!M5339","v":"Select"},{"$f":"Import!M5539","v":"Select"},{"$f":"Import!M5739","v":"Select"},{"$f":"Import!M5939","v":0},{"$f":"Import!M6139","v":0},{"$f":"Import!M6339","v":0}]
[77,{"$f":"Import!M5340","v":"Select"},{"$f":"Import!M5540","v":"Select"},{"$f":"Import!M5740","v":"Select"},{"$f":"Import!M5940","v":0},{"$f":"Import!M6140","v":0},{"$f":"Import!M6340","v":0}]
[78,{"$f":"Import!M5341","v":"Select"},{"$f":"Import!M5541","v":"Select"},{"$f":"Import!M5741","v":"Select"},{"$f":"Import!M5941","v":0},{"$f":"Import!M6141","v":0},{"$f":"Import!M6341","v":0}]
[79,{"$f":"Import!M5342","v":"Select"},{"$f":"Import!M5542","v":"Select"},{"$f":"Import!M5742","v":"Select"},{"$f":"Import!M5942","v":0},{"$f":"Import!M6142","v":0},{"$f":"Import!M6342","v":0}]
[80,{"$f":"Import!M5343","v":"Select"},{"$f":"Import!M5543","v":"Select"},{"$f":"Import!M5743","v":"Select"},{"$f":"Import!M5943","v":0},{"$f":"Import!M6143","v":0},{"$f":"Import!M6343","v":0}]
[81,{"$f":"Import!M5344","v":"Select"},{"$f":"Import!M5544","v":"Select"},{"$f":"Import!M5744","v":"Select"},{"$f":"Import!M5944","v":0},{"$f":"Import!M6144","v":0},{"$f":"Import!M6344","v":0}]
[82,{"$f":"Import!M5345","v":"Select"},{"$f":"Import!M5545","v":"Select"},{"$f":"Import!M5745","v":"Select"},{"$f":"Import!M5945","v":0},{"$f":"Import!M6145","v":0},{"$f":"Import!M6345","v":0}]
[83,{"$f":"Import!M5346","v":"Select"},{"$f":"Import!M5546","v":"Select"},{"$f":"Import!M5746","v":"Select"},{"$f":"Import!M5946","v":0},{"$f":"Import!M6146","v":0},{"$f":"Import!M6346","v":0}]
[84,{"$f":"Import!M5347","v":"Select"},{"$f":"Import!M5547","v":"Select"},{"$f":"Import!M5747","v":"Select"},{"$f":"Import!M5947","v":0},{"$f":"Import!M6147","v":0},{"$f":"Import!M6347","v":0}]
[85,{"$f":"Import!M5348","v":"Select"},{"$f":"Import!M5548","v":"Select"},{"$f":"Import!M5748","v":"Select"},{"$f":"Import!M5948","v":0},{"$f":"Import!M6148","v":0},{"$f":"Import!M6348","v":0}]
[86,{"$f":"Import!M5349","v":"Select"},{"$f":"Import!M5549","v":"Select"},{"$f":"Import!M5749","v":"Select"},{"$f":"Import!M5949","v":0},{"$f":"Import!M6149","v":0},{"$f":"Import!M6349","v":0}]
[87,{"$f":"Import!M5350","v":"Select"},{"$f":"Import!M5550","v":"Select"},{"$f":"Import!M5750","v":"Select"},{"$f":"Import!M5950","v":0},{"$f":"Import!M6150","v":0},{"$f":"Import!M6350","v":0}]
[88,{"$f":"Import!M5351","v":"Select"},{"$f":"Import!M5551","v":"Select"},{"$f":"Import!M5751","v":"Select"},{"$f":"Import!M5951","v":0},{"$f":"Import!M6151","v":0},{"$f":"Import!M6351","v":0}]
[89,{"$f":"Import!M5352","v":"Select"},{"$f":"Import!M5552","v":"Select"},{"$f":"Import!M5752","v":"Select"},{"$f":"Import!M5952","v":0},{"$f":"Import!M6152","v":0},{"$f":"Import!M6352","v":0}]
[90,{"$f":"Import!M5353","v":"Select"},{"$f":"Import!M5553","v":"Select"},{"$f":"Import!M5753","v":"Select"},{"$f":"Import!M5953","v":0},{"$f":"Import!M6153","v":0},{"$f":"Import!M6353","v":0}]
[91,{"$f":"Import!M5354","v":"Select"},{"$f":"Import!M5554","v":"Select"},{"$f":"Import!M5754","v":"Select"},{"$f":"Import!M5954","v":0},{"$f":"Import!M6154","v":0},{"$f":"Import!M6354","v":0}]
[92,{"$f":"Import!M5355","v":"Select"},{"$f":"Import!M5555","v":"Select"},{"$f":"Import!M5755","v":"Select"},{"$f":"Import!M5955","v":0},{"$f":"Import!M6155","v":0},{"$f":"Import!M6355","v":0}]
[93,{"$f":"Import!M5356","v":"Select"},{"$f":"Import!M5556","v":"Select"},{"$f":"Import!M5756","v":"Select"},{"$f":"Import!M5956","v":0},{"$f":"Import!M6156","v":0},{"$f":"Import!M6356","v":0}]
[94,{"$f":"Import!M5357","v":"Select"},{"$f":"Import!M5557","v":"Select"},{"$f":"Import!M5757","v":"Select"},{"$f":"Import!M5957","v":0},{"$f":"Import!M6157","v":0},{"$f":"Import!M6357","v":0}]
[95,{"$f":"Import!M5358","v":"Select"},{"$f":"Import!M5558","v":"Select"},{"$f":"Import!M5758","v":"Select"},{"$f":"Import!M5958","v":0},{"$f":"Import!M6158","v":0},{"$f":"Import!M6358","v":0}]
[96,{"$f":"Import!M5359","v":"Select"},{"$f":"Import!M5559","v":"Select"},{"$f":"Import!M5759","v":"Select"},{"$f":"Import!M5959","v":0},{"$f":"Import!M6159","v":0},{"$f":"Import!M6359","v":0}]
[97,{"$f":"Import!M5360","v":"Select"},{"$f":"Import!M5560","v":"Select"},{"$f":"Import!M5760","v":"Select"},{"$f":"Import!M5960","v":0},{"$f":"Import!M6160","v":0},{"$f":"Import!M6360","v":0}]
[98,{"$f":"Import!M5361","v":"Select"},{"$f":"Import!M5561","v":"Select"},{"$f":"Import!M5761","v":"Select"},{"$f":"Import!M5961","v":0},{"$f":"Import!M6161","v":0},{"$f":"Import!M6361","v":0}]
[99,{"$f":"Import!M5362","v":"Select"},{"$f":"Import!M5562","v":"Select"},{"$f":"Import!M5762","v":"Select"},{"$f":"Import!M5962","v":0},{"$f":"Import!M6162","v":0},{"$f":"Import!M6362","v":0}]
[100,{"$f":"Import!M5363","v":"Select"},{"$f":"Import!M5563","v":"Select"},{"$f":"Import!M5763","v":"Select"},{"$f":"Import!M5963","v":0},{"$f":"Import!M6163","v":0},{"$f":"Import!M6363","v":0}]
[101,{"$f":"Import!M5364","v":"Select"},{"$f":"Import!M5564","v":"Select"},{"$f":"Import!M5764","v":"Select"},{"$f":"Import!M5964","v":0},{"$f":"Import!M6164","v":0},{"$f":"Import!M6364","v":0}]
[102,{"$f":"Import!M5365","v":"Select"},{"$f":"Import!M5565","v":"Select"},{"$f":"Import!M5765","v":"Select"},{"$f":"Import!M5965","v":0},{"$f":"Import!M6165","v":0},{"$f":"Import!M6365","v":0}]
[103,{"$f":"Import!M5366","v":"Select"},{"$f":"Import!M5566","v":"Select"},{"$f":"Import!M5766","v":"Select"},{"$f":"Import!M5966","v":0},{"$f":"Import!M6166","v":0},{"$f":"Import!M6366","v":0}]
[104,{"$f":"Import!M5367","v":"Select"},{"$f":"Import!M5567","v":"Select"},{"$f":"Import!M5767","v":"Select"},{"$f":"Import!M5967","v":0},{"$f":"Import!M6167","v":0},{"$f":"Import!M6367","v":0}]
[105,{"$f":"Import!M5368","v":"Select"},{"$f":"Import!M5568","v":"Select"},{"$f":"Import!M5768","v":"Select"},{"$f":"Import!M5968","v":0},{"$f":"Import!M6168","v":0},{"$f":"Import!M6368","v":0}]
[106,{"$f":"Import!M5369","v":"Select"},{"$f":"Import!M5569","v":"Select"},{"$f":"Import!M5769","v":"Select"},{"$f":"Import!M5969","v":0},{"$f":"Import!M6169","v":0},{"$f":"Import!M6369","v":0}]
[107,{"$f":"Import!M5370","v":"Select"},{"$f":"Import!M5570","v":"Select"},{"$f":"Import!M5770","v":"Select"},{"$f":"Import!M5970","v":0},{"$f":"Import!M6170","v":0},{"$f":"Import!M6370","v":0}]
[108,{"$f":"Import!M5371","v":"Select"},{"$f":"Import!M5571","v":"Select"},{"$f":"Import!M5771","v":"Select"},{"$f":"Import!M5971","v":0},{"$f":"Import!M6171","v":0},{"$f":"Import!M6371","v":0}]
[109,{"$f":"Import!M5372","v":"Select"},{"$f":"Import!M5572","v":"Select"},{"$f":"Import!M5772","v":"Select"},{"$f":"Import!M5972","v":0},{"$f":"Import!M6172","v":0},{"$f":"Import!M6372","v":0}]
[110,{"$f":"Import!M5373","v":"Select"},{"$f":"Import!M5573","v":"Select"},{"$f":"Import!M5773","v":"Select"},{"$f":"Import!M5973","v":0},{"$f":"Import!M6173","v":0},{"$f":"Import!M6373","v":0}]
[111,{"$f":"Import!M5374","v":"Select"},{"$f":"Import!M5574","v":"Select"},{"$f":"Import!M5774","v":"Select"},{"$f":"Import!M5974","v":0},{"$f":"Import!M6174","v":0},{"$f":"Import!M6374","v":0}]
[112,{"$f":"Import!M5375","v":"Select"},{"$f":"Import!M5575","v":"Select"},{"$f":"Import!M5775","v":"Select"},{"$f":"Import!M5975","v":0},{"$f":"Import!M6175","v":0},{"$f":"Import!M6375","v":0}]
[113,{"$f":"Import!M5376","v":"Select"},{"$f":"Import!M5576","v":"Select"},{"$f":"Import!M5776","v":"Select"},{"$f":"Import!M5976","v":0},{"$f":"Import!M6176","v":0},{"$f":"Import!M6376","v":0}]
[114,{"$f":"Import!M5377","v":"Select"},{"$f":"Import!M5577","v":"Select"},{"$f":"Import!M5777","v":"Select"},{"$f":"Import!M5977","v":0},{"$f":"Import!M6177","v":0},{"$f":"Import!M6377","v":0}]
[115,{"$f":"Import!M5378","v":"Select"},{"$f":"Import!M5578","v":"Select"},{"$f":"Import!M5778","v":"Select"},{"$f":"Import!M5978","v":0},{"$f":"Import!M6178","v":0},{"$f":"Import!M6378","v":0}]
[116,{"$f":"Import!M5379","v":"Select"},{"$f":"Import!M5579","v":"Select"},{"$f":"Import!M5779","v":"Select"},{"$f":"Import!M5979","v":0},{"$f":"Import!M6179","v":0},{"$f":"Import!M6379","v":0}]
[117,{"$f":"Import!M5380","v":"Select"},{"$f":"Import!M5580","v":"Select"},{"$f":"Import!M5780","v":"Select"},{"$f":"Import!M5980","v":0},{"$f":"Import!M6180","v":0},{"$f":"Import!M6380","v":0}]
[118,{"$f":"Import!M5381","v":"Select"},{"$f":"Import!M5581","v":"Select"},{"$f":"Import!M5781","v":"Select"},{"$f":"Import!M5981","v":0},{"$f":"Import!M6181","v":0},{"$f":"Import!M6381","v":0}]
[119,{"$f":"Import!M5382","v":"Select"},{"$f":"Import!M5582","v":"Select"},{"$f":"Import!M5782","v":"Select"},{"$f":"Import!M5982","v":0},{"$f":"Import!M6182","v":0},{"$f":"Import!M6382","v":0}]
[120,{"$f":"Import!M5383","v":"Select"},{"$f":"Import!M5583","v":"Select"},{"$f":"Import!M5783","v":"Select"},{"$f":"Import!M5983","v":0},{"$f":"Import!M6183","v":0},{"$f":"Import!M6383","v":0}]
[121,{"$f":"Import!M5384","v":"Select"},{"$f":"Import!M5584","v":"Select"},{"$f":"Import!M5784","v":"Select"},{"$f":"Import!M5984","v":0},{"$f":"Import!M6184","v":0},{"$f":"Import!M6384","v":0}]
[122,{"$f":"Import!M5385","v":"Select"},{"$f":"Import!M5585","v":"Select"},{"$f":"Import!M5785","v":"Select"},{"$f":"Import!M5985","v":0},{"$f":"Import!M6185","v":0},{"$f":"Import!M6385","v":0}]
[123,{"$f":"Import!M5386","v":"Select"},{"$f":"Import!M5586","v":"Select"},{"$f":"Import!M5786","v":"Select"},{"$f":"Import!M5986","v":0},{"$f":"Import!M6186","v":0},{"$f":"Import!M6386","v":0}]
[124,{"$f":"Import!M5387","v":"Select"},{"$f":"Import!M5587","v":"Select"},{"$f":"Import!M5787","v":"Select"},{"$f":"Import!M5987","v":0},{"$f":"Import!M6187","v":0},{"$f":"Import!M6387","v":0}]
[125,{"$f":"Import!M5388","v":"Select"},{"$f":"Import!M5588","v":"Select"},{"$f":"Import!M5788","v":"Select"},{"$f":"Import!M5988","v":0},{"$f":"Import!M6188","v":0},{"$f":"Import!M6388","v":0}]
[126,{"$f":"Import!M5389","v":"Select"},{"$f":"Import!M5589","v":"Select"},{"$f":"Import!M5789","v":"Select"},{"$f":"Import!M5989","v":0},{"$f":"Import!M6189","v":0},{"$f":"Import!M6389","v":0}]
[127,{"$f":"Import!M5390","v":"Select"},{"$f":"Import!M5590","v":"Select"},{"$f":"Import!M5790","v":"Select"},{"$f":"Import!M5990","v":0},{"$f":"Import!M6190","v":0},{"$f":"Import!M6390","v":0}]
[128,{"$f":"Import!M5391","v":"Select"},{"$f":"Import!M5591","v":"Select"},{"$f":"Import!M5791","v":"Select"},{"$f":"Import!M5991","v":0},{"$f":"Import!M6191","v":0},{"$f":"Import!M6391","v":0}]
[129,{"$f":"Import!M5392","v":"Select"},{"$f":"Import!M5592","v":"Select"},{"$f":"Import!M5792","v":"Select"},{"$f":"Import!M5992","v":0},{"$f":"Import!M6192","v":0},{"$f":"Import!M6392","v":0}]
[130,{"$f":"Import!M5393","v":"Select"},{"$f":"Import!M5593","v":"Select"},{"$f":"Import!M5793","v":"Select"},{"$f":"Import!M5993","v":0},{"$f":"Import!M6193","v":0},{"$f":"Import!M6393","v":0}]
[{"$f":"A140+1","v":131},{"$f":"Import!M5394","v":"Select"},{"$f":"Import!M5594","v":"Select"},{"$f":"Import!M5794","v":"Select"},{"$f":"Import!M5994","v":0},{"$f":"Import!M6194","v":0},{"$f":"Import!M6394","v":0}]
[132,{"$f":"Import!M5395","v":"Select"},{"$f":"Import!M5595","v":"Select"},{"$f":"Import!M5795","v":"Select"},{"$f":"Import!M5995","v":0},{"$f":"Import!M6195","v":0},{"$f":"Import!M6395","v":0}]
[133,{"$f":"Import!M5396","v":"Select"},{"$f":"Import!M5596","v":"Select"},{"$f":"Import!M5796","v":"Select"},{"$f":"Import!M5996","v":0},{"$f":"Import!M6196","v":0},{"$f":"Import!M6396","v":0}]
[134,{"$f":"Import!M5397","v":"Select"},{"$f":"Import!M5597","v":"Select"},{"$f":"Import!M5797","v":"Select"},{"$f":"Import!M5997","v":0},{"$f":"Import!M6197","v":0},{"$f":"Import!M6397","v":0}]
[135,{"$f":"Import!M5398","v":"Select"},{"$f":"Import!M5598","v":"Select"},{"$f":"Import!M5798","v":"Select"},{"$f":"Import!M5998","v":0},{"$f":"Import!M6198","v":0},{"$f":"Import!M6398","v":0}]
[136,{"$f":"Import!M5399","v":"Select"},{"$f":"Import!M5599","v":"Select"},{"$f":"Import!M5799","v":"Select"},{"$f":"Import!M5999","v":0},{"$f":"Import!M6199","v":0},{"$f":"Import!M6399","v":0}]
[137,{"$f":"Import!M5400","v":"Select"},{"$f":"Import!M5600","v":"Select"},{"$f":"Import!M5800","v":"Select"},{"$f":"Import!M6000","v":0},{"$f":"Import!M6200","v":0},{"$f":"Import!M6400","v":0}]
[138,{"$f":"Import!M5401","v":"Select"},{"$f":"Import!M5601","v":"Select"},{"$f":"Import!M5801","v":"Select"},{"$f":"Import!M6001","v":0},{"$f":"Import!M6201","v":0},{"$f":"Import!M6401","v":0}]
[139,{"$f":"Import!M5402","v":"Select"},{"$f":"Import!M5602","v":"Select"},{"$f":"Import!M5802","v":"Select"},{"$f":"Import!M6002","v":0},{"$f":"Import!M6202","v":0},{"$f":"Import!M6402","v":0}]
[140,{"$f":"Import!M5403","v":"Select"},{"$f":"Import!M5603","v":"Select"},{"$f":"Import!M5803","v":"Select"},{"$f":"Import!M6003","v":0},{"$f":"Import!M6203","v":0},{"$f":"Import!M6403","v":0}]
[141,{"$f":"Import!M5404","v":"Select"},{"$f":"Import!M5604","v":"Select"},{"$f":"Import!M5804","v":"Select"},{"$f":"Import!M6004","v":0},{"$f":"Import!M6204","v":0},{"$f":"Import!M6404","v":0}]
[142,{"$f":"Import!M5405","v":"Select"},{"$f":"Import!M5605","v":"Select"},{"$f":"Import!M5805","v":"Select"},{"$f":"Import!M6005","v":0},{"$f":"Import!M6205","v":0},{"$f":"Import!M6405","v":0}]
[143,{"$f":"Import!M5406","v":"Select"},{"$f":"Import!M5606","v":"Select"},{"$f":"Import!M5806","v":"Select"},{"$f":"Import!M6006","v":0},{"$f":"Import!M6206","v":0},{"$f":"Import!M6406","v":0}]
[144,{"$f":"Import!M5407","v":"Select"},{"$f":"Import!M5607","v":"Select"},{"$f":"Import!M5807","v":"Select"},{"$f":"Import!M6007","v":0},{"$f":"Import!M6207","v":0},{"$f":"Import!M6407","v":0}]
[145,{"$f":"Import!M5408","v":"Select"},{"$f":"Import!M5608","v":"Select"},{"$f":"Import!M5808","v":"Select"},{"$f":"Import!M6008","v":0},{"$f":"Import!M6208","v":0},{"$f":"Import!M6408","v":0}]
[146,{"$f":"Import!M5409","v":"Select"},{"$f":"Import!M5609","v":"Select"},{"$f":"Import!M5809","v":"Select"},{"$f":"Import!M6009","v":0},{"$f":"Import!M6209","v":0},{"$f":"Import!M6409","v":0}]
[147,{"$f":"Import!M5410","v":"Select"},{"$f":"Import!M5610","v":"Select"},{"$f":"Import!M5810","v":"Select"},{"$f":"Import!M6010","v":0},{"$f":"Import!M6210","v":0},{"$f":"Import!M6410","v":0}]
[148,{"$f":"Import!M5411","v":"Select"},{"$f":"Import!M5611","v":"Select"},{"$f":"Import!M5811","v":"Select"},{"$f":"Import!M6011","v":0},{"$f":"Import!M6211","v":0},{"$f":"Import!M6411","v":0}]
[149,{"$f":"Import!M5412","v":"Select"},{"$f":"Import!M5612","v":"Select"},{"$f":"Import!M5812","v":"Select"},{"$f":"Import!M6012","v":0},{"$f":"Import!M6212","v":0},{"$f":"Import!M6412","v":0}]
[150,{"$f":"Import!M5413","v":"Select"},{"$f":"Import!M5613","v":"Select"},{"$f":"Import!M5813","v":"Select"},{"$f":"Import!M6013","v":0},{"$f":"Import!M6213","v":0},{"$f":"Import!M6413","v":0}]
[151,{"$f":"Import!M5414","v":"Select"},{"$f":"Import!M5614","v":"Select"},{"$f":"Import!M5814","v":"Select"},{"$f":"Import!M6014","v":0},{"$f":"Import!M6214","v":0},{"$f":"Import!M6414","v":0}]
[152,{"$f":"Import!M5415","v":"Select"},{"$f":"Import!M5615","v":"Select"},{"$f":"Import!M5815","v":"Select"},{"$f":"Import!M6015","v":0},{"$f":"Import!M6215","v":0},{"$f":"Import!M6415","v":0}]
[153,{"$f":"Import!M5416","v":"Select"},{"$f":"Import!M5616","v":"Select"},{"$f":"Import!M5816","v":"Select"},{"$f":"Import!M6016","v":0},{"$f":"Import!M6216","v":0},{"$f":"Import!M6416","v":0}]
[154,{"$f":"Import!M5417","v":"Select"},{"$f":"Import!M5617","v":"Select"},{"$f":"Import!M5817","v":"Select"},{"$f":"Import!M6017","v":0},{"$f":"Import!M6217","v":0},{"$f":"Import!M6417","v":0}]
[155,{"$f":"Import!M5418","v":"Select"},{"$f":"Import!M5618","v":"Select"},{"$f":"Import!M5818","v":"Select"},{"$f":"Import!M6018","v":0},{"$f":"Import!M6218","v":0},{"$f":"Import!M6418","v":0}]
[156,{"$f":"Import!M5419","v":"Select"},{"$f":"Import!M5619","v":"Select"},{"$f":"Import!M5819","v":"Select"},{"$f":"Import!M6019","v":0},{"$f":"Import!M6219","v":0},{"$f":"Import!M6419","v":0}]
[157,{"$f":"Import!M5420","v":"Select"},{"$f":"Import!M5620","v":"Select"},{"$f":"Import!M5820","v":"Select"},{"$f":"Import!M6020","v":0},{"$f":"Import!M6220","v":0},{"$f":"Import!M6420","v":0}]
[158,{"$f":"Import!M5421","v":"Select"},{"$f":"Import!M5621","v":"Select"},{"$f":"Import!M5821","v":"Select"},{"$f":"Import!M6021","v":0},{"$f":"Import!M6221","v":0},{"$f":"Import!M6421","v":0}]
[159,{"$f":"Import!M5422","v":"Select"},{"$f":"Import!M5622","v":"Select"},{"$f":"Import!M5822","v":"Select"},{"$f":"Import!M6022","v":0},{"$f":"Import!M6222","v":0},{"$f":"Import!M6422","v":0}]
[160,{"$f":"Import!M5423","v":"Select"},{"$f":"Import!M5623","v":"Select"},{"$f":"Import!M5823","v":"Select"},{"$f":"Import!M6023","v":0},{"$f":"Import!M6223","v":0},{"$f":"Import!M6423","v":0}]
[161,{"$f":"Import!M5424","v":"Select"},{"$f":"Import!M5624","v":"Select"},{"$f":"Import!M5824","v":"Select"},{"$f":"Import!M6024","v":0},{"$f":"Import!M6224","v":0},{"$f":"Import!M6424","v":0}]
[162,{"$f":"Import!M5425","v":"Select"},{"$f":"Import!M5625","v":"Select"},{"$f":"Import!M5825","v":"Select"},{"$f":"Import!M6025","v":0},{"$f":"Import!M6225","v":0},{"$f":"Import!M6425","v":0}]
[163,{"$f":"Import!M5426","v":"Select"},{"$f":"Import!M5626","v":"Select"},{"$f":"Import!M5826","v":"Select"},{"$f":"Import!M6026","v":0},{"$f":"Import!M6226","v":0},{"$f":"Import!M6426","v":0}]
[164,{"$f":"Import!M5427","v":"Select"},{"$f":"Import!M5627","v":"Select"},{"$f":"Import!M5827","v":"Select"},{"$f":"Import!M6027","v":0},{"$f":"Import!M6227","v":0},{"$f":"Import!M6427","v":0}]
[165,{"$f":"Import!M5428","v":"Select"},{"$f":"Import!M5628","v":"Select"},{"$f":"Import!M5828","v":"Select"},{"$f":"Import!M6028","v":0},{"$f":"Import!M6228","v":0},{"$f":"Import!M6428","v":0}]
[166,{"$f":"Import!M5429","v":"Select"},{"$f":"Import!M5629","v":"Select"},{"$f":"Import!M5829","v":"Select"},{"$f":"Import!M6029","v":0},{"$f":"Import!M6229","v":0},{"$f":"Import!M6429","v":0}]
[167,{"$f":"Import!M5430","v":"Select"},{"$f":"Import!M5630","v":"Select"},{"$f":"Import!M5830","v":"Select"},{"$f":"Import!M6030","v":0},{"$f":"Import!M6230","v":0},{"$f":"Import!M6430","v":0}]
[168,{"$f":"Import!M5431","v":"Select"},{"$f":"Import!M5631","v":"Select"},{"$f":"Import!M5831","v":"Select"},{"$f":"Import!M6031","v":0},{"$f":"Import!M6231","v":0},{"$f":"Import!M6431","v":0}]
[169,{"$f":"Import!M5432","v":"Select"},{"$f":"Import!M5632","v":"Select"},{"$f":"Import!M5832","v":"Select"},{"$f":"Import!M6032","v":0},{"$f":"Import!M6232","v":0},{"$f":"Import!M6432","v":0}]
[170,{"$f":"Import!M5433","v":"Select"},{"$f":"Import!M5633","v":"Select"},{"$f":"Import!M5833","v":"Select"},{"$f":"Import!M6033","v":0},{"$f":"Import!M6233","v":0},{"$f":"Import!M6433","v":0}]
[171,{"$f":"Import!M5434","v":"Select"},{"$f":"Import!M5634","v":"Select"},{"$f":"Import!M5834","v":"Select"},{"$f":"Import!M6034","v":0},{"$f":"Import!M6234","v":0},{"$f":"Import!M6434","v":0}]
[172,{"$f":"Import!M5435","v":"Select"},{"$f":"Import!M5635","v":"Select"},{"$f":"Import!M5835","v":"Select"},{"$f":"Import!M6035","v":0},{"$f":"Import!M6235","v":0},{"$f":"Import!M6435","v":0}]
[173,{"$f":"Import!M5436","v":"Select"},{"$f":"Import!M5636","v":"Select"},{"$f":"Import!M5836","v":"Select"},{"$f":"Import!M6036","v":0},{"$f":"Import!M6236","v":0},{"$f":"Import!M6436","v":0}]
[174,{"$f":"Import!M5437","v":"Select"},{"$f":"Import!M5637","v":"Select"},{"$f":"Import!M5837","v":"Select"},{"$f":"Import!M6037","v":0},{"$f":"Import!M6237","v":0},{"$f":"Import!M6437","v":0}]
[175,{"$f":"Import!M5438","v":"Select"},{"$f":"Import!M5638","v":"Select"},{"$f":"Import!M5838","v":"Select"},{"$f":"Import!M6038","v":0},{"$f":"Import!M6238","v":0},{"$f":"Import!M6438","v":0}]
[176,{"$f":"Import!M5439","v":"Select"},{"$f":"Import!M5639","v":"Select"},{"$f":"Import!M5839","v":"Select"},{"$f":"Import!M6039","v":0},{"$f":"Import!M6239","v":0},{"$f":"Import!M6439","v":0}]
[177,{"$f":"Import!M5440","v":"Select"},{"$f":"Import!M5640","v":"Select"},{"$f":"Import!M5840","v":"Select"},{"$f":"Import!M6040","v":0},{"$f":"Import!M6240","v":0},{"$f":"Import!M6440","v":0}]
[178,{"$f":"Import!M5441","v":"Select"},{"$f":"Import!M5641","v":"Select"},{"$f":"Import!M5841","v":"Select"},{"$f":"Import!M6041","v":0},{"$f":"Import!M6241","v":0},{"$f":"Import!M6441","v":0}]
[179,{"$f":"Import!M5442","v":"Select"},{"$f":"Import!M5642","v":"Select"},{"$f":"Import!M5842","v":"Select"},{"$f":"Import!M6042","v":0},{"$f":"Import!M6242","v":0},{"$f":"Import!M6442","v":0}]
[180,{"$f":"Import!M5443","v":"Select"},{"$f":"Import!M5643","v":"Select"},{"$f":"Import!M5843","v":"Select"},{"$f":"Import!M6043","v":0},{"$f":"Import!M6243","v":0},{"$f":"Import!M6443","v":0}]
[181,{"$f":"Import!M5444","v":"Select"},{"$f":"Import!M5644","v":"Select"},{"$f":"Import!M5844","v":"Select"},{"$f":"Import!M6044","v":0},{"$f":"Import!M6244","v":0},{"$f":"Import!M6444","v":0}]
[182,{"$f":"Import!M5445","v":"Select"},{"$f":"Import!M5645","v":"Select"},{"$f":"Import!M5845","v":"Select"},{"$f":"Import!M6045","v":0},{"$f":"Import!M6245","v":0},{"$f":"Import!M6445","v":0}]
[183,{"$f":"Import!M5446","v":"Select"},{"$f":"Import!M5646","v":"Select"},{"$f":"Import!M5846","v":"Select"},{"$f":"Import!M6046","v":0},{"$f":"Import!M6246","v":0},{"$f":"Import!M6446","v":0}]
[184,{"$f":"Import!M5447","v":"Select"},{"$f":"Import!M5647","v":"Select"},{"$f":"Import!M5847","v":"Select"},{"$f":"Import!M6047","v":0},{"$f":"Import!M6247","v":0},{"$f":"Import!M6447","v":0}]
[185,{"$f":"Import!M5448","v":"Select"},{"$f":"Import!M5648","v":"Select"},{"$f":"Import!M5848","v":"Select"},{"$f":"Import!M6048","v":0},{"$f":"Import!M6248","v":0},{"$f":"Import!M6448","v":0}]
[186,{"$f":"Import!M5449","v":"Select"},{"$f":"Import!M5649","v":"Select"},{"$f":"Import!M5849","v":"Select"},{"$f":"Import!M6049","v":0},{"$f":"Import!M6249","v":0},{"$f":"Import!M6449","v":0}]
[187,{"$f":"Import!M5450","v":"Select"},{"$f":"Import!M5650","v":"Select"},{"$f":"Import!M5850","v":"Select"},{"$f":"Import!M6050","v":0},{"$f":"Import!M6250","v":0},{"$f":"Import!M6450","v":0}]
[188,{"$f":"Import!M5451","v":"Select"},{"$f":"Import!M5651","v":"Select"},{"$f":"Import!M5851","v":"Select"},{"$f":"Import!M6051","v":0},{"$f":"Import!M6251","v":0},{"$f":"Import!M6451","v":0}]
[189,{"$f":"Import!M5452","v":"Select"},{"$f":"Import!M5652","v":"Select"},{"$f":"Import!M5852","v":"Select"},{"$f":"Import!M6052","v":0},{"$f":"Import!M6252","v":0},{"$f":"Import!M6452","v":0}]
[190,{"$f":"Import!M5453","v":"Select"},{"$f":"Import!M5653","v":"Select"},{"$f":"Import!M5853","v":"Select"},{"$f":"Import!M6053","v":0},{"$f":"Import!M6253","v":0},{"$f":"Import!M6453","v":0}]
[191,{"$f":"Import!M5454","v":"Select"},{"$f":"Import!M5654","v":"Select"},{"$f":"Import!M5854","v":"Select"},{"$f":"Import!M6054","v":0},{"$f":"Import!M6254","v":0},{"$f":"Import!M6454","v":0}]
[192,{"$f":"Import!M5455","v":"Select"},{"$f":"Import!M5655","v":"Select"},{"$f":"Import!M5855","v":"Select"},{"$f":"Import!M6055","v":0},{"$f":"Import!M6255","v":0},{"$f":"Import!M6455","v":0}]
[193,{"$f":"Import!M5456","v":"Select"},{"$f":"Import!M5656","v":"Select"},{"$f":"Import!M5856","v":"Select"},{"$f":"Import!M6056","v":0},{"$f":"Import!M6256","v":0},{"$f":"Import!M6456","v":0}]
[194,{"$f":"Import!M5457","v":"Select"},{"$f":"Import!M5657","v":"Select"},{"$f":"Import!M5857","v":"Select"},{"$f":"Import!M6057","v":0},{"$f":"Import!M6257","v":0},{"$f":"Import!M6457","v":0}]
[{"$f":"A204+1","v":195},{"$f":"Import!M5458","v":"Select"},{"$f":"Import!M5658","v":"Select"},{"$f":"Import!M5858","v":"Select"},{"$f":"Import!M6058","v":0},{"$f":"Import!M6258","v":0},{"$f":"Import!M6458","v":0}]
[196,{"$f":"Import!M5459","v":"Select"},{"$f":"Import!M5659","v":"Select"},{"$f":"Import!M5859","v":"Select"},{"$f":"Import!M6059","v":0},{"$f":"Import!M6259","v":0},{"$f":"Import!M6459","v":0}]
[197,{"$f":"Import!M5460","v":"Select"},{"$f":"Import!M5660","v":"Select"},{"$f":"Import!M5860","v":"Select"},{"$f":"Import!M6060","v":0},{"$f":"Import!M6260","v":0},{"$f":"Import!M6460","v":0}]
[198,{"$f":"Import!M5461","v":"Select"},{"$f":"Import!M5661","v":"Select"},{"$f":"Import!M5861","v":"Select"},{"$f":"Import!M6061","v":0},{"$f":"Import!M6261","v":0},{"$f":"Import!M6461","v":0}]
[199,{"$f":"Import!M5462","v":"Select"},{"$f":"Import!M5662","v":"Select"},{"$f":"Import!M5862","v":"Select"},{"$f":"Import!M6062","v":0},{"$f":"Import!M6262","v":0},{"$f":"Import!M6462","v":0}]
[200,{"$f":"Import!M5463","v":"Select"},{"$f":"Import!M5663","v":"Select"},{"$f":"Import!M5863","v":"Select"},{"$f":"Import!M6063","v":0},{"$f":"Import!M6263","v":0},{"$f":"Import!M6463","v":0}]
[]
[null,"Total Cash and Cash Equivalents",null,null,{"$f":"SUM(E11:E210)","v":0},{"$f":"SUM(F11:F210)","v":0}]
[]
[null,"(B) BONDS AND DEBENTURES"]
[]
[null,null,"Enter # of Asset Types",{"$f":"Import!M6464","v":0}]
[null,null,null,null,{"$f":"YEAR($C$3)","v":2023},2023,"Weighted"]
[null,"Asset Type","Currency","BSCR Rating","Nominal Amount","Fair Value","Average YTM","Effective Duration","Comments"]
[1,{"$f":"Import!M6465","v":"Select"},{"$f":"Import!M6865","v":"Select"},{"$f":"Import!M7265","v":"Select"},{"$f":"Import!M7665","v":0},{"$f":"Import!M8065","v":0},{"$f":"Import!M8465","v":0},{"$f":"Import!M8865","v":0},{"$f":"Import!M9265","v":0}]
[{"$f":"A219+1","v":2},{"$f":"Import!M6466","v":"Select"},{"$f":"Import!M6866","v":"Select"},{"$f":"Import!M7266","v":"Select"},{"$f":"Import!M7666","v":0},{"$f":"Import!M8066","v":0},{"$f":"Import!M8466","v":0},{"$f":"Import!M8866","v":0},{"$f":"Import!M9266","v":0}]
[{"$f":"A220+1","v":3},{"$f":"Import!M6467","v":"Select"},{"$f":"Import!M6867","v":"Select"},{"$f":"Import!M7267","v":"Select"},{"$f":"Import!M7667","v":0},{"$f":"Import!M8067","v":0},{"$f":"Import!M8467","v":0},{"$f":"Import!M8867","v":0},{"$f":"Import!M9267","v":0}]
[4,{"$f":"Import!M6468","v":"Select"},{"$f":"Import!M6868","v":"Select"},{"$f":"Import!M7268","v":"Select"},{"$f":"Import!M7668","v":0},{"$f":"Import!M8068","v":0},{"$f":"Import!M8468","v":0},{"$f":"Import!M8868","v":0},{"$f":"Import!M9268","v":0}]
[5,{"$f":"Import!M6469","v":"Select"},{"$f":"Import!M6869","v":"Select"},{"$f":"Import!M7269","v":"Select"},{"$f":"Import!M7669","v":0},{"$f":"Import!M8069","v":0},{"$f":"Import!M8469","v":0},{"$f":"Import!M8869","v":0},{"$f":"Import!M9269","v":0}]
[6,{"$f":"Import!M6470","v":"Select"},{"$f":"Import!M6870","v":"Select"},{"$f":"Import!M7270","v":"Select"},{"$f":"Import!M7670","v":0},{"$f":"Import!M8070","v":0},{"$f":"Import!M8470","v":0},{"$f":"Import!M8870","v":0},{"$f":"Import!M9270","v":0}]
[7,{"$f":"Import!M6471","v":"Select"},{"$f":"Import!M6871","v":"Select"},{"$f":"Import!M7271","v":"Select"},{"$f":"Import!M7671","v":0},{"$f":"Import!M8071","v":0},{"$f":"Import!M8471","v":0},{"$f":"Import!M8871","v":0},{"$f":"Import!M9271","v":0}]
[8,{"$f":"Import!M6472","v":"Select"},{"$f":"Import!M6872","v":"Select"},{"$f":"Import!M7272","v":"Select"},{"$f":"Import!M7672","v":0},{"$f":"Import!M8072","v":0},{"$f":"Import!M8472","v":0},{"$f":"Import!M8872","v":0},{"$f":"Import!M9272","v":0}]
[9,{"$f":"Import!M6473","v":"Select"},{"$f":"Import!M6873","v":"Select"},{"$f":"Import!M7273","v":"Select"},{"$f":"Import!M7673","v":0},{"$f":"Import!M8073","v":0},{"$f":"Import!M8473","v":0},{"$f":"Import!M8873","v":0},{"$f":"Import!M9273","v":0}]
[10,{"$f":"Import!M6474","v":"Select"},{"$f":"Import!M6874","v":"Select"},{"$f":"Import!M7274","v":"Select"},{"$f":"Import!M7674","v":0},{"$f":"Import!M8074","v":0},{"$f":"Import!M8474","v":0},{"$f":"Import!M8874","v":0},{"$f":"Import!M9274","v":0}]
[11,{"$f":"Import!M6475","v":"Select"},{"$f":"Import!M6875","v":"Select"},{"$f":"Import!M7275","v":"Select"},{"$f":"Import!M7675","v":0},{"$f":"Import!M8075","v":0},{"$f":"Import!M8475","v":0},{"$f":"Import!M8875","v":0},{"$f":"Import!M9275","v":0}]
[12,{"$f":"Import!M6476","v":"Select"},{"$f":"Import!M6876","v":"Select"},{"$f":"Import!M7276","v":"Select"},{"$f":"Import!M7676","v":0},{"$f":"Import!M8076","v":0},{"$f":"Import!M8476","v":0},{"$f":"Import!M8876","v":0},{"$f":"Import!M9276","v":0}]
[13,{"$f":"Import!M6477","v":"Select"},{"$f":"Import!M6877","v":"Select"},{"$f":"Import!M7277","v":"Select"},{"$f":"Import!M7677","v":0},{"$f":"Import!M8077","v":0},{"$f":"Import!M8477","v":0},{"$f":"Import!M8877","v":0},{"$f":"Import!M9277","v":0}]
[14,{"$f":"Import!M6478","v":"Select"},{"$f":"Import!M6878","v":"Select"},{"$f":"Import!M7278","v":"Select"},{"$f":"Import!M7678","v":0},{"$f":"Import!M8078","v":0},{"$f":"Import!M8478","v":0},{"$f":"Import!M8878","v":0},{"$f":"Import!M9278","v":0}]
[15,{"$f":"Import!M6479","v":"Select"},{"$f":"Import!M6879","v":"Select"},{"$f":"Import!M7279","v":"Select"},{"$f":"Import!M7679","v":0},{"$f":"Import!M8079","v":0},{"$f":"Import!M8479","v":0},{"$f":"Import!M8879","v":0},{"$f":"Import!M9279","v":0}]
[16,{"$f":"Import!M6480","v":"Select"},{"$f":"Import!M6880","v":"Select"},{"$f":"Import!M7280","v":"Select"},{"$f":"Import!M7680","v":0},{"$f":"Import!M8080","v":0},{"$f":"Import!M8480","v":0},{"$f":"Import!M8880","v":0},{"$f":"Import!M9280","v":0}]
[17,{"$f":"Import!M6481","v":"Select"},{"$f":"Import!M6881","v":"Select"},{"$f":"Import!M7281","v":"Select"},{"$f":"Import!M7681","v":0},{"$f":"Import!M8081","v":0},{"$f":"Import!M8481","v":0},{"$f":"Import!M8881","v":0},{"$f":"Import!M9281","v":0}]
[18,{"$f":"Import!M6482","v":"Select"},{"$f":"Import!M6882","v":"Select"},{"$f":"Import!M7282","v":"Select"},{"$f":"Import!M7682","v":0},{"$f":"Import!M8082","v":0},{"$f":"Import!M8482","v":0},{"$f":"Import!M8882","v":0},{"$f":"Import!M9282","v":0}]
[19,{"$f":"Import!M6483","v":"Select"},{"$f":"Import!M6883","v":"Select"},{"$f":"Import!M7283","v":"Select"},{"$f":"Import!M7683","v":0},{"$f":"Import!M8083","v":0},{"$f":"Import!M8483","v":0},{"$f":"Import!M8883","v":0},{"$f":"Import!M9283","v":0}]
[20,{"$f":"Import!M6484","v":"Select"},{"$f":"Import!M6884","v":"Select"},{"$f":"Import!M7284","v":"Select"},{"$f":"Import!M7684","v":0},{"$f":"Import!M8084","v":0},{"$f":"Import!M8484","v":0},{"$f":"Import!M8884","v":0},{"$f":"Import!M9284","v":0}]
[21,{"$f":"Import!M6485","v":"Select"},{"$f":"Import!M6885","v":"Select"},{"$f":"Import!M7285","v":"Select"},{"$f":"Import!M7685","v":0},{"$f":"Import!M8085","v":0},{"$f":"Import!M8485","v":0},{"$f":"Import!M8885","v":0},{"$f":"Import!M9285","v":0}]
[22,{"$f":"Import!M6486","v":"Select"},{"$f":"Import!M6886","v":"Select"},{"$f":"Import!M7286","v":"Select"},{"$f":"Import!M7686","v":0},{"$f":"Import!M8086","v":0},{"$f":"Import!M8486","v":0},{"$f":"Import!M8886","v":0},{"$f":"Import!M9286","v":0}]
[23,{"$f":"Import!M6487","v":"Select"},{"$f":"Import!M6887","v":"Select"},{"$f":"Import!M7287","v":"Select"},{"$f":"Import!M7687","v":0},{"$f":"Import!M8087","v":0},{"$f":"Import!M8487","v":0},{"$f":"Import!M8887","v":0},{"$f":"Import!M9287","v":0}]
[24,{"$f":"Import!M6488","v":"Select"},{"$f":"Import!M6888","v":"Select"},{"$f":"Import!M7288","v":"Select"},{"$f":"Import!M7688","v":0},{"$f":"Import!M8088","v":0},{"$f":"Import!M8488","v":0},{"$f":"Import!M8888","v":0},{"$f":"Import!M9288","v":0}]
[25,{"$f":"Import!M6489","v":"Select"},{"$f":"Import!M6889","v":"Select"},{"$f":"Import!M7289","v":"Select"},{"$f":"Import!M7689","v":0},{"$f":"Import!M8089","v":0},{"$f":"Import!M8489","v":0},{"$f":"Import!M8889","v":0},{"$f":"Import!M9289","v":0}]
[26,{"$f":"Import!M6490","v":"Select"},{"$f":"Import!M6890","v":"Select"},{"$f":"Import!M7290","v":"Select"},{"$f":"Import!M7690","v":0},{"$f":"Import!M8090","v":0},{"$f":"Import!M8490","v":0},{"$f":"Import!M8890","v":0},{"$f":"Import!M9290","v":0}]
[27,{"$f":"Import!M6491","v":"Select"},{"$f":"Import!M6891","v":"Select"},{"$f":"Import!M7291","v":"Select"},{"$f":"Import!M7691","v":0},{"$f":"Import!M8091","v":0},{"$f":"Import!M8491","v":0},{"$f":"Import!M8891","v":0},{"$f":"Import!M9291","v":0}]
[28,{"$f":"Import!M6492","v":"Select"},{"$f":"Import!M6892","v":"Select"},{"$f":"Import!M7292","v":"Select"},{"$f":"Import!M7692","v":0},{"$f":"Import!M8092","v":0},{"$f":"Import!M8492","v":0},{"$f":"Import!M8892","v":0},{"$f":"Import!M9292","v":0}]
[29,{"$f":"Import!M6493","v":"Select"},{"$f":"Import!M6893","v":"Select"},{"$f":"Import!M7293","v":"Select"},{"$f":"Import!M7693","v":0},{"$f":"Import!M8093","v":0},{"$f":"Import!M8493","v":0},{"$f":"Import!M8893","v":0},{"$f":"Import!M9293","v":0}]
[30,{"$f":"Import!M6494","v":"Select"},{"$f":"Import!M6894","v":"Select"},{"$f":"Import!M7294","v":"Select"},{"$f":"Import!M7694","v":0},{"$f":"Import!M8094","v":0},{"$f":"Import!M8494","v":0},{"$f":"Import!M8894","v":0},{"$f":"Import!M9294","v":0}]
[31,{"$f":"Import!M6495","v":"Select"},{"$f":"Import!M6895","v":"Select"},{"$f":"Import!M7295","v":"Select"},{"$f":"Import!M7695","v":0},{"$f":"Import!M8095","v":0},{"$f":"Import!M8495","v":0},{"$f":"Import!M8895","v":0},{"$f":"Import!M9295","v":0}]
[32,{"$f":"Import!M6496","v":"Select"},{"$f":"Import!M6896","v":"Select"},{"$f":"Import!M7296","v":"Select"},{"$f":"Import!M7696","v":0},{"$f":"Import!M8096","v":0},{"$f":"Import!M8496","v":0},{"$f":"Import!M8896","v":0},{"$f":"Import!M9296","v":0}]
[33,{"$f":"Import!M6497","v":"Select"},{"$f":"Import!M6897","v":"Select"},{"$f":"Import!M7297","v":"Select"},{"$f":"Import!M7697","v":0},{"$f":"Import!M8097","v":0},{"$f":"Import!M8497","v":0},{"$f":"Import!M8897","v":0},{"$f":"Import!M9297","v":0}]
[34,{"$f":"Import!M6498","v":"Select"},{"$f":"Import!M6898","v":"Select"},{"$f":"Import!M7298","v":"Select"},{"$f":"Import!M7698","v":0},{"$f":"Import!M8098","v":0},{"$f":"Import!M8498","v":0},{"$f":"Import!M8898","v":0},{"$f":"Import!M9298","v":0}]
[35,{"$f":"Import!M6499","v":"Select"},{"$f":"Import!M6899","v":"Select"},{"$f":"Import!M7299","v":"Select"},{"$f":"Import!M7699","v":0},{"$f":"Import!M8099","v":0},{"$f":"Import!M8499","v":0},{"$f":"Import!M8899","v":0},{"$f":"Import!M9299","v":0}]
[36,{"$f":"Import!M6500","v":"Select"},{"$f":"Import!M6900","v":"Select"},{"$f":"Import!M7300","v":"Select"},{"$f":"Import!M7700","v":0},{"$f":"Import!M8100","v":0},{"$f":"Import!M8500","v":0},{"$f":"Import!M8900","v":0},{"$f":"Import!M9300","v":0}]
[37,{"$f":"Import!M6501","v":"Select"},{"$f":"Import!M6901","v":"Select"},{"$f":"Import!M7301","v":"Select"},{"$f":"Import!M7701","v":0},{"$f":"Import!M8101","v":0},{"$f":"Import!M8501","v":0},{"$f":"Import!M8901","v":0},{"$f":"Import!M9301","v":0}]
[38,{"$f":"Import!M6502","v":"Select"},{"$f":"Import!M6902","v":"Select"},{"$f":"Import!M7302","v":"Select"},{"$f":"Import!M7702","v":0},{"$f":"Import!M8102","v":0},{"$f":"Import!M8502","v":0},{"$f":"Import!M8902","v":0},{"$f":"Import!M9302","v":0}]
[39,{"$f":"Import!M6503","v":"Select"},{"$f":"Import!M6903","v":"Select"},{"$f":"Import!M7303","v":"Select"},{"$f":"Import!M7703","v":0},{"$f":"Import!M8103","v":0},{"$f":"Import!M8503","v":0},{"$f":"Import!M8903","v":0},{"$f":"Import!M9303","v":0}]
[40,{"$f":"Import!M6504","v":"Select"},{"$f":"Import!M6904","v":"Select"},{"$f":"Import!M7304","v":"Select"},{"$f":"Import!M7704","v":0},{"$f":"Import!M8104","v":0},{"$f":"Import!M8504","v":0},{"$f":"Import!M8904","v":0},{"$f":"Import!M9304","v":0}]
[41,{"$f":"Import!M6505","v":"Select"},{"$f":"Import!M6905","v":"Select"},{"$f":"Import!M7305","v":"Select"},{"$f":"Import!M7705","v":0},{"$f":"Import!M8105","v":0},{"$f":"Import!M8505","v":0},{"$f":"Import!M8905","v":0},{"$f":"Import!M9305","v":0}]
[42,{"$f":"Import!M6506","v":"Select"},{"$f":"Import!M6906","v":"Select"},{"$f":"Import!M7306","v":"Select"},{"$f":"Import!M7706","v":0},{"$f":"Import!M8106","v":0},{"$f":"Import!M8506","v":0},{"$f":"Import!M8906","v":0},{"$f":"Import!M9306","v":0}]
[43,{"$f":"Import!M6507","v":"Select"},{"$f":"Import!M6907","v":"Select"},{"$f":"Import!M7307","v":"Select"},{"$f":"Import!M7707","v":0},{"$f":"Import!M8107","v":0},{"$f":"Import!M8507","v":0},{"$f":"Import!M8907","v":0},{"$f":"Import!M9307","v":0}]
[44,{"$f":"Import!M6508","v":"Select"},{"$f":"Import!M6908","v":"Select"},{"$f":"Import!M7308","v":"Select"},{"$f":"Import!M7708","v":0},{"$f":"Import!M8108","v":0},{"$f":"Import!M8508","v":0},{"$f":"Import!M8908","v":0},{"$f":"Import!M9308","v":0}]
[45,{"$f":"Import!M6509","v":"Select"},{"$f":"Import!M6909","v":"Select"},{"$f":"Import!M7309","v":"Select"},{"$f":"Import!M7709","v":0},{"$f":"Import!M8109","v":0},{"$f":"Import!M8509","v":0},{"$f":"Import!M8909","v":0},{"$f":"Import!M9309","v":0}]
[46,{"$f":"Import!M6510","v":"Select"},{"$f":"Import!M6910","v":"Select"},{"$f":"Import!M7310","v":"Select"},{"$f":"Import!M7710","v":0},{"$f":"Import!M8110","v":0},{"$f":"Import!M8510","v":0},{"$f":"Import!M8910","v":0},{"$f":"Import!M9310","v":0}]
[47,{"$f":"Import!M6511","v":"Select"},{"$f":"Import!M6911","v":"Select"},{"$f":"Import!M7311","v":"Select"},{"$f":"Import!M7711","v":0},{"$f":"Import!M8111","v":0},{"$f":"Import!M8511","v":0},{"$f":"Import!M8911","v":0},{"$f":"Import!M9311","v":0}]
[48,{"$f":"Import!M6512","v":"Select"},{"$f":"Import!M6912","v":"Select"},{"$f":"Import!M7312","v":"Select"},{"$f":"Import!M7712","v":0},{"$f":"Import!M8112","v":0},{"$f":"Import!M8512","v":0},{"$f":"Import!M8912","v":0},{"$f":"Import!M9312","v":0}]
[49,{"$f":"Import!M6513","v":"Select"},{"$f":"Import!M6913","v":"Select"},{"$f":"Import!M7313","v":"Select"},{"$f":"Import!M7713","v":0},{"$f":"Import!M8113","v":0},{"$f":"Import!M8513","v":0},{"$f":"Import!M8913","v":0},{"$f":"Import!M9313","v":0}]
[50,{"$f":"Import!M6514","v":"Select"},{"$f":"Import!M6914","v":"Select"},{"$f":"Import!M7314","v":"Select"},{"$f":"Import!M7714","v":0},{"$f":"Import!M8114","v":0},{"$f":"Import!M8514","v":0},{"$f":"Import!M8914","v":0},{"$f":"Import!M9314","v":0}]
[51,{"$f":"Import!M6515","v":"Select"},{"$f":"Import!M6915","v":"Select"},{"$f":"Import!M7315","v":"Select"},{"$f":"Import!M7715","v":0},{"$f":"Import!M8115","v":0},{"$f":"Import!M8515","v":0},{"$f":"Import!M8915","v":0},{"$f":"Import!M9315","v":0}]
[52,{"$f":"Import!M6516","v":"Select"},{"$f":"Import!M6916","v":"Select"},{"$f":"Import!M7316","v":"Select"},{"$f":"Import!M7716","v":0},{"$f":"Import!M8116","v":0},{"$f":"Import!M8516","v":0},{"$f":"Import!M8916","v":0},{"$f":"Import!M9316","v":0}]
[53,{"$f":"Import!M6517","v":"Select"},{"$f":"Import!M6917","v":"Select"},{"$f":"Import!M7317","v":"Select"},{"$f":"Import!M7717","v":0},{"$f":"Import!M8117","v":0},{"$f":"Import!M8517","v":0},{"$f":"Import!M8917","v":0},{"$f":"Import!M9317","v":0}]
[54,{"$f":"Import!M6518","v":"Select"},{"$f":"Import!M6918","v":"Select"},{"$f":"Import!M7318","v":"Select"},{"$f":"Import!M7718","v":0},{"$f":"Import!M8118","v":0},{"$f":"Import!M8518","v":0},{"$f":"Import!M8918","v":0},{"$f":"Import!M9318","v":0}]
[55,{"$f":"Import!M6519","v":"Select"},{"$f":"Import!M6919","v":"Select"},{"$f":"Import!M7319","v":"Select"},{"$f":"Import!M7719","v":0},{"$f":"Import!M8119","v":0},{"$f":"Import!M8519","v":0},{"$f":"Import!M8919","v":0},{"$f":"Import!M9319","v":0}]
[56,{"$f":"Import!M6520","v":"Select"},{"$f":"Import!M6920","v":"Select"},{"$f":"Import!M7320","v":"Select"},{"$f":"Import!M7720","v":0},{"$f":"Import!M8120","v":0},{"$f":"Import!M8520","v":0},{"$f":"Import!M8920","v":0},{"$f":"Import!M9320","v":0}]
[57,{"$f":"Import!M6521","v":"Select"},{"$f":"Import!M6921","v":"Select"},{"$f":"Import!M7321","v":"Select"},{"$f":"Import!M7721","v":0},{"$f":"Import!M8121","v":0},{"$f":"Import!M8521","v":0},{"$f":"Import!M8921","v":0},{"$f":"Import!M9321","v":0}]
[58,{"$f":"Import!M6522","v":"Select"},{"$f":"Import!M6922","v":"Select"},{"$f":"Import!M7322","v":"Select"},{"$f":"Import!M7722","v":0},{"$f":"Import!M8122","v":0},{"$f":"Import!M8522","v":0},{"$f":"Import!M8922","v":0},{"$f":"Import!M9322","v":0}]
[59,{"$f":"Import!M6523","v":"Select"},{"$f":"Import!M6923","v":"Select"},{"$f":"Import!M7323","v":"Select"},{"$f":"Import!M7723","v":0},{"$f":"Import!M8123","v":0},{"$f":"Import!M8523","v":0},{"$f":"Import!M8923","v":0},{"$f":"Import!M9323","v":0}]
[60,{"$f":"Import!M6524","v":"Select"},{"$f":"Import!M6924","v":"Select"},{"$f":"Import!M7324","v":"Select"},{"$f":"Import!M7724","v":0},{"$f":"Import!M8124","v":0},{"$f":"Import!M8524","v":0},{"$f":"Import!M8924","v":0},{"$f":"Import!M9324","v":0}]
[61,{"$f":"Import!M6525","v":"Select"},{"$f":"Import!M6925","v":"Select"},{"$f":"Import!M7325","v":"Select"},{"$f":"Import!M7725","v":0},{"$f":"Import!M8125","v":0},{"$f":"Import!M8525","v":0},{"$f":"Import!M8925","v":0},{"$f":"Import!M9325","v":0}]
[62,{"$f":"Import!M6526","v":"Select"},{"$f":"Import!M6926","v":"Select"},{"$f":"Import!M7326","v":"Select"},{"$f":"Import!M7726","v":0},{"$f":"Import!M8126","v":0},{"$f":"Import!M8526","v":0},{"$f":"Import!M8926","v":0},{"$f":"Import!M9326","v":0}]
[63,{"$f":"Import!M6527","v":"Select"},{"$f":"Import!M6927","v":"Select"},{"$f":"Import!M7327","v":"Select"},{"$f":"Import!M7727","v":0},{"$f":"Import!M8127","v":0},{"$f":"Import!M8527","v":0},{"$f":"Import!M8927","v":0},{"$f":"Import!M9327","v":0}]
[64,{"$f":"Import!M6528","v":"Select"},{"$f":"Import!M6928","v":"Select"},{"$f":"Import!M7328","v":"Select"},{"$f":"Import!M7728","v":0},{"$f":"Import!M8128","v":0},{"$f":"Import!M8528","v":0},{"$f":"Import!M8928","v":0},{"$f":"Import!M9328","v":0}]
[65,{"$f":"Import!M6529","v":"Select"},{"$f":"Import!M6929","v":"Select"},{"$f":"Import!M7329","v":"Select"},{"$f":"Import!M7729","v":0},{"$f":"Import!M8129","v":0},{"$f":"Import!M8529","v":0},{"$f":"Import!M8929","v":0},{"$f":"Import!M9329","v":0}]
[66,{"$f":"Import!M6530","v":"Select"},{"$f":"Import!M6930","v":"Select"},{"$f":"Import!M7330","v":"Select"},{"$f":"Import!M7730","v":0},{"$f":"Import!M8130","v":0},{"$f":"Import!M8530","v":0},{"$f":"Import!M8930","v":0},{"$f":"Import!M9330","v":0}]
[{"$f":"A284+1","v":67},{"$f":"Import!M6531","v":"Select"},{"$f":"Import!M6931","v":"Select"},{"$f":"Import!M7331","v":"Select"},{"$f":"Import!M7731","v":0},{"$f":"Import!M8131","v":0},{"$f":"Import!M8531","v":0},{"$f":"Import!M8931","v":0},{"$f":"Import!M9331","v":0}]
[68,{"$f":"Import!M6532","v":"Select"},{"$f":"Import!M6932","v":"Select"},{"$f":"Import!M7332","v":"Select"},{"$f":"Import!M7732","v":0},{"$f":"Import!M8132","v":0},{"$f":"Import!M8532","v":0},{"$f":"Import!M8932","v":0},{"$f":"Import!M9332","v":0}]
[69,{"$f":"Import!M6533","v":"Select"},{"$f":"Import!M6933","v":"Select"},{"$f":"Import!M7333","v":"Select"},{"$f":"Import!M7733","v":0},{"$f":"Import!M8133","v":0},{"$f":"Import!M8533","v":0},{"$f":"Import!M8933","v":0},{"$f":"Import!M9333","v":0}]
[70,{"$f":"Import!M6534","v":"Select"},{"$f":"Import!M6934","v":"Select"},{"$f":"Import!M7334","v":"Select"},{"$f":"Import!M7734","v":0},{"$f":"Import!M8134","v":0},{"$f":"Import!M8534","v":0},{"$f":"Import!M8934","v":0},{"$f":"Import!M9334","v":0}]
[71,{"$f":"Import!M6535","v":"Select"},{"$f":"Import!M6935","v":"Select"},{"$f":"Import!M7335","v":"Select"},{"$f":"Import!M7735","v":0},{"$f":"Import!M8135","v":0},{"$f":"Import!M8535","v":0},{"$f":"Import!M8935","v":0},{"$f":"Import!M9335","v":0}]
[72,{"$f":"Import!M6536","v":"Select"},{"$f":"Import!M6936","v":"Select"},{"$f":"Import!M7336","v":"Select"},{"$f":"Import!M7736","v":0},{"$f":"Import!M8136","v":0},{"$f":"Import!M8536","v":0},{"$f":"Import!M8936","v":0},{"$f":"Import!M9336","v":0}]
[73,{"$f":"Import!M6537","v":"Select"},{"$f":"Import!M6937","v":"Select"},{"$f":"Import!M7337","v":"Select"},{"$f":"Import!M7737","v":0},{"$f":"Import!M8137","v":0},{"$f":"Import!M8537","v":0},{"$f":"Import!M8937","v":0},{"$f":"Import!M9337","v":0}]
[74,{"$f":"Import!M6538","v":"Select"},{"$f":"Import!M6938","v":"Select"},{"$f":"Import!M7338","v":"Select"},{"$f":"Import!M7738","v":0},{"$f":"Import!M8138","v":0},{"$f":"Import!M8538","v":0},{"$f":"Import!M8938","v":0},{"$f":"Import!M9338","v":0}]
[75,{"$f":"Import!M6539","v":"Select"},{"$f":"Import!M6939","v":"Select"},{"$f":"Import!M7339","v":"Select"},{"$f":"Import!M7739","v":0},{"$f":"Import!M8139","v":0},{"$f":"Import!M8539","v":0},{"$f":"Import!M8939","v":0},{"$f":"Import!M9339","v":0}]
[76,{"$f":"Import!M6540","v":"Select"},{"$f":"Import!M6940","v":"Select"},{"$f":"Import!M7340","v":"Select"},{"$f":"Import!M7740","v":0},{"$f":"Import!M8140","v":0},{"$f":"Import!M8540","v":0},{"$f":"Import!M8940","v":0},{"$f":"Import!M9340","v":0}]
[77,{"$f":"Import!M6541","v":"Select"},{"$f":"Import!M6941","v":"Select"},{"$f":"Import!M7341","v":"Select"},{"$f":"Import!M7741","v":0},{"$f":"Import!M8141","v":0},{"$f":"Import!M8541","v":0},{"$f":"Import!M8941","v":0},{"$f":"Import!M9341","v":0}]
[78,{"$f":"Import!M6542","v":"Select"},{"$f":"Import!M6942","v":"Select"},{"$f":"Import!M7342","v":"Select"},{"$f":"Import!M7742","v":0},{"$f":"Import!M8142","v":0},{"$f":"Import!M8542","v":0},{"$f":"Import!M8942","v":0},{"$f":"Import!M9342","v":0}]
[79,{"$f":"Import!M6543","v":"Select"},{"$f":"Import!M6943","v":"Select"},{"$f":"Import!M7343","v":"Select"},{"$f":"Import!M7743","v":0},{"$f":"Import!M8143","v":0},{"$f":"Import!M8543","v":0},{"$f":"Import!M8943","v":0},{"$f":"Import!M9343","v":0}]
[80,{"$f":"Import!M6544","v":"Select"},{"$f":"Import!M6944","v":"Select"},{"$f":"Import!M7344","v":"Select"},{"$f":"Import!M7744","v":0},{"$f":"Import!M8144","v":0},{"$f":"Import!M8544","v":0},{"$f":"Import!M8944","v":0},{"$f":"Import!M9344","v":0}]
[81,{"$f":"Import!M6545","v":"Select"},{"$f":"Import!M6945","v":"Select"},{"$f":"Import!M7345","v":"Select"},{"$f":"Import!M7745","v":0},{"$f":"Import!M8145","v":0},{"$f":"Import!M8545","v":0},{"$f":"Import!M8945","v":0},{"$f":"Import!M9345","v":0}]
[82,{"$f":"Import!M6546","v":"Select"},{"$f":"Import!M6946","v":"Select"},{"$f":"Import!M7346","v":"Select"},{"$f":"Import!M7746","v":0},{"$f":"Import!M8146","v":0},{"$f":"Import!M8546","v":0},{"$f":"Import!M8946","v":0},{"$f":"Import!M9346","v":0}]
[83,{"$f":"Import!M6547","v":"Select"},{"$f":"Import!M6947","v":"Select"},{"$f":"Import!M7347","v":"Select"},{"$f":"Import!M7747","v":0},{"$f":"Import!M8147","v":0},{"$f":"Import!M8547","v":0},{"$f":"Import!M8947","v":0},{"$f":"Import!M9347","v":0}]
[84,{"$f":"Import!M6548","v":"Select"},{"$f":"Import!M6948","v":"Select"},{"$f":"Import!M7348","v":"Select"},{"$f":"Import!M7748","v":0},{"$f":"Import!M8148","v":0},{"$f":"Import!M8548","v":0},{"$f":"Import!M8948","v":0},{"$f":"Import!M9348","v":0}]
[85,{"$f":"Import!M6549","v":"Select"},{"$f":"Import!M6949","v":"Select"},{"$f":"Import!M7349","v":"Select"},{"$f":"Import!M7749","v":0},{"$f":"Import!M8149","v":0},{"$f":"Import!M8549","v":0},{"$f":"Import!M8949","v":0},{"$f":"Import!M9349","v":0}]
[86,{"$f":"Import!M6550","v":"Select"},{"$f":"Import!M6950","v":"Select"},{"$f":"Import!M7350","v":"Select"},{"$f":"Import!M7750","v":0},{"$f":"Import!M8150","v":0},{"$f":"Import!M8550","v":0},{"$f":"Import!M8950","v":0},{"$f":"Import!M9350","v":0}]
[87,{"$f":"Import!M6551","v":"Select"},{"$f":"Import!M6951","v":"Select"},{"$f":"Import!M7351","v":"Select"},{"$f":"Import!M7751","v":0},{"$f":"Import!M8151","v":0},{"$f":"Import!M8551","v":0},{"$f":"Import!M8951","v":0},{"$f":"Import!M9351","v":0}]
[88,{"$f":"Import!M6552","v":"Select"},{"$f":"Import!M6952","v":"Select"},{"$f":"Import!M7352","v":"Select"},{"$f":"Import!M7752","v":0},{"$f":"Import!M8152","v":0},{"$f":"Import!M8552","v":0},{"$f":"Import!M8952","v":0},{"$f":"Import!M9352","v":0}]
[89,{"$f":"Import!M6553","v":"Select"},{"$f":"Import!M6953","v":"Select"},{"$f":"Import!M7353","v":"Select"},{"$f":"Import!M7753","v":0},{"$f":"Import!M8153","v":0},{"$f":"Import!M8553","v":0},{"$f":"Import!M8953","v":0},{"$f":"Import!M9353","v":0}]
[90,{"$f":"Import!M6554","v":"Select"},{"$f":"Import!M6954","v":"Select"},{"$f":"Import!M7354","v":"Select"},{"$f":"Import!M7754","v":0},{"$f":"Import!M8154","v":0},{"$f":"Import!M8554","v":0},{"$f":"Import!M8954","v":0},{"$f":"Import!M9354","v":0}]
[91,{"$f":"Import!M6555","v":"Select"},{"$f":"Import!M6955","v":"Select"},{"$f":"Import!M7355","v":"Select"},{"$f":"Import!M7755","v":0},{"$f":"Import!M8155","v":0},{"$f":"Import!M8555","v":0},{"$f":"Import!M8955","v":0},{"$f":"Import!M9355","v":0}]
[92,{"$f":"Import!M6556","v":"Select"},{"$f":"Import!M6956","v":"Select"},{"$f":"Import!M7356","v":"Select"},{"$f":"Import!M7756","v":0},{"$f":"Import!M8156","v":0},{"$f":"Import!M8556","v":0},{"$f":"Import!M8956","v":0},{"$f":"Import!M9356","v":0}]
[93,{"$f":"Import!M6557","v":"Select"},{"$f":"Import!M6957","v":"Select"},{"$f":"Import!M7357","v":"Select"},{"$f":"Import!M7757","v":0},{"$f":"Import!M8157","v":0},{"$f":"Import!M8557","v":0},{"$f":"Import!M8957","v":0},{"$f":"Import!M9357","v":0}]
[94,{"$f":"Import!M6558","v":"Select"},{"$f":"Import!M6958","v":"Select"},{"$f":"Import!M7358","v":"Select"},{"$f":"Import!M7758","v":0},{"$f":"Import!M8158","v":0},{"$f":"Import!M8558","v":0},{"$f":"Import!M8958","v":0},{"$f":"Import!M9358","v":0}]
[95,{"$f":"Import!M6559","v":"Select"},{"$f":"Import!M6959","v":"Select"},{"$f":"Import!M7359","v":"Select"},{"$f":"Import!M7759","v":0},{"$f":"Import!M8159","v":0},{"$f":"Import!M8559","v":0},{"$f":"Import!M8959","v":0},{"$f":"Import!M9359","v":0}]
[96,{"$f":"Import!M6560","v":"Select"},{"$f":"Import!M6960","v":"Select"},{"$f":"Import!M7360","v":"Select"},{"$f":"Import!M7760","v":0},{"$f":"Import!M8160","v":0},{"$f":"Import!M8560","v":0},{"$f":"Import!M8960","v":0},{"$f":"Import!M9360","v":0}]
[97,{"$f":"Import!M6561","v":"Select"},{"$f":"Import!M6961","v":"Select"},{"$f":"Import!M7361","v":"Select"},{"$f":"Import!M7761","v":0},{"$f":"Import!M8161","v":0},{"$f":"Import!M8561","v":0},{"$f":"Import!M8961","v":0},{"$f":"Import!M9361","v":0}]
[98,{"$f":"Import!M6562","v":"Select"},{"$f":"Import!M6962","v":"Select"},{"$f":"Import!M7362","v":"Select"},{"$f":"Import!M7762","v":0},{"$f":"Import!M8162","v":0},{"$f":"Import!M8562","v":0},{"$f":"Import!M8962","v":0},{"$f":"Import!M9362","v":0}]
[99,{"$f":"Import!M6563","v":"Select"},{"$f":"Import!M6963","v":"Select"},{"$f":"Import!M7363","v":"Select"},{"$f":"Import!M7763","v":0},{"$f":"Import!M8163","v":0},{"$f":"Import!M8563","v":0},{"$f":"Import!M8963","v":0},{"$f":"Import!M9363","v":0}]
[100,{"$f":"Import!M6564","v":"Select"},{"$f":"Import!M6964","v":"Select"},{"$f":"Import!M7364","v":"Select"},{"$f":"Import!M7764","v":0},{"$f":"Import!M8164","v":0},{"$f":"Import!M8564","v":0},{"$f":"Import!M8964","v":0},{"$f":"Import!M9364","v":0}]
[101,{"$f":"Import!M6565","v":"Select"},{"$f":"Import!M6965","v":"Select"},{"$f":"Import!M7365","v":"Select"},{"$f":"Import!M7765","v":0},{"$f":"Import!M8165","v":0},{"$f":"Import!M8565","v":0},{"$f":"Import!M8965","v":0},{"$f":"Import!M9365","v":0}]
[102,{"$f":"Import!M6566","v":"Select"},{"$f":"Import!M6966","v":"Select"},{"$f":"Import!M7366","v":"Select"},{"$f":"Import!M7766","v":0},{"$f":"Import!M8166","v":0},{"$f":"Import!M8566","v":0},{"$f":"Import!M8966","v":0},{"$f":"Import!M9366","v":0}]
[103,{"$f":"Import!M6567","v":"Select"},{"$f":"Import!M6967","v":"Select"},{"$f":"Import!M7367","v":"Select"},{"$f":"Import!M7767","v":0},{"$f":"Import!M8167","v":0},{"$f":"Import!M8567","v":0},{"$f":"Import!M8967","v":0},{"$f":"Import!M9367","v":0}]
[104,{"$f":"Import!M6568","v":"Select"},{"$f":"Import!M6968","v":"Select"},{"$f":"Import!M7368","v":"Select"},{"$f":"Import!M7768","v":0},{"$f":"Import!M8168","v":0},{"$f":"Import!M8568","v":0},{"$f":"Import!M8968","v":0},{"$f":"Import!M9368","v":0}]
[105,{"$f":"Import!M6569","v":"Select"},{"$f":"Import!M6969","v":"Select"},{"$f":"Import!M7369","v":"Select"},{"$f":"Import!M7769","v":0},{"$f":"Import!M8169","v":0},{"$f":"Import!M8569","v":0},{"$f":"Import!M8969","v":0},{"$f":"Import!M9369","v":0}]
[106,{"$f":"Import!M6570","v":"Select"},{"$f":"Import!M6970","v":"Select"},{"$f":"Import!M7370","v":"Select"},{"$f":"Import!M7770","v":0},{"$f":"Import!M8170","v":0},{"$f":"Import!M8570","v":0},{"$f":"Import!M8970","v":0},{"$f":"Import!M9370","v":0}]
[107,{"$f":"Import!M6571","v":"Select"},{"$f":"Import!M6971","v":"Select"},{"$f":"Import!M7371","v":"Select"},{"$f":"Import!M7771","v":0},{"$f":"Import!M8171","v":0},{"$f":"Import!M8571","v":0},{"$f":"Import!M8971","v":0},{"$f":"Import!M9371","v":0}]
[108,{"$f":"Import!M6572","v":"Select"},{"$f":"Import!M6972","v":"Select"},{"$f":"Import!M7372","v":"Select"},{"$f":"Import!M7772","v":0},{"$f":"Import!M8172","v":0},{"$f":"Import!M8572","v":0},{"$f":"Import!M8972","v":0},{"$f":"Import!M9372","v":0}]
[109,{"$f":"Import!M6573","v":"Select"},{"$f":"Import!M6973","v":"Select"},{"$f":"Import!M7373","v":"Select"},{"$f":"Import!M7773","v":0},{"$f":"Import!M8173","v":0},{"$f":"Import!M8573","v":0},{"$f":"Import!M8973","v":0},{"$f":"Import!M9373","v":0}]
[110,{"$f":"Import!M6574","v":"Select"},{"$f":"Import!M6974","v":"Select"},{"$f":"Import!M7374","v":"Select"},{"$f":"Import!M7774","v":0},{"$f":"Import!M8174","v":0},{"$f":"Import!M8574","v":0},{"$f":"Import!M8974","v":0},{"$f":"Import!M9374","v":0}]
[111,{"$f":"Import!M6575","v":"Select"},{"$f":"Import!M6975","v":"Select"},{"$f":"Import!M7375","v":"Select"},{"$f":"Import!M7775","v":0},{"$f":"Import!M8175","v":0},{"$f":"Import!M8575","v":0},{"$f":"Import!M8975","v":0},{"$f":"Import!M9375","v":0}]
[112,{"$f":"Import!M6576","v":"Select"},{"$f":"Import!M6976","v":"Select"},{"$f":"Import!M7376","v":"Select"},{"$f":"Import!M7776","v":0},{"$f":"Import!M8176","v":0},{"$f":"Import!M8576","v":0},{"$f":"Import!M8976","v":0},{"$f":"Import!M9376","v":0}]
[113,{"$f":"Import!M6577","v":"Select"},{"$f":"Import!M6977","v":"Select"},{"$f":"Import!M7377","v":"Select"},{"$f":"Import!M7777","v":0},{"$f":"Import!M8177","v":0},{"$f":"Import!M8577","v":0},{"$f":"Import!M8977","v":0},{"$f":"Import!M9377","v":0}]
[114,{"$f":"Import!M6578","v":"Select"},{"$f":"Import!M6978","v":"Select"},{"$f":"Import!M7378","v":"Select"},{"$f":"Import!M7778","v":0},{"$f":"Import!M8178","v":0},{"$f":"Import!M8578","v":0},{"$f":"Import!M8978","v":0},{"$f":"Import!M9378","v":0}]
[115,{"$f":"Import!M6579","v":"Select"},{"$f":"Import!M6979","v":"Select"},{"$f":"Import!M7379","v":"Select"},{"$f":"Import!M7779","v":0},{"$f":"Import!M8179","v":0},{"$f":"Import!M8579","v":0},{"$f":"Import!M8979","v":0},{"$f":"Import!M9379","v":0}]
[116,{"$f":"Import!M6580","v":"Select"},{"$f":"Import!M6980","v":"Select"},{"$f":"Import!M7380","v":"Select"},{"$f":"Import!M7780","v":0},{"$f":"Import!M8180","v":0},{"$f":"Import!M8580","v":0},{"$f":"Import!M8980","v":0},{"$f":"Import!M9380","v":0}]
[117,{"$f":"Import!M6581","v":"Select"},{"$f":"Import!M6981","v":"Select"},{"$f":"Import!M7381","v":"Select"},{"$f":"Import!M7781","v":0},{"$f":"Import!M8181","v":0},{"$f":"Import!M8581","v":0},{"$f":"Import!M8981","v":0},{"$f":"Import!M9381","v":0}]
[118,{"$f":"Import!M6582","v":"Select"},{"$f":"Import!M6982","v":"Select"},{"$f":"Import!M7382","v":"Select"},{"$f":"Import!M7782","v":0},{"$f":"Import!M8182","v":0},{"$f":"Import!M8582","v":0},{"$f":"Import!M8982","v":0},{"$f":"Import!M9382","v":0}]
[119,{"$f":"Import!M6583","v":"Select"},{"$f":"Import!M6983","v":"Select"},{"$f":"Import!M7383","v":"Select"},{"$f":"Import!M7783","v":0},{"$f":"Import!M8183","v":0},{"$f":"Import!M8583","v":0},{"$f":"Import!M8983","v":0},{"$f":"Import!M9383","v":0}]
[120,{"$f":"Import!M6584","v":"Select"},{"$f":"Import!M6984","v":"Select"},{"$f":"Import!M7384","v":"Select"},{"$f":"Import!M7784","v":0},{"$f":"Import!M8184","v":0},{"$f":"Import!M8584","v":0},{"$f":"Import!M8984","v":0},{"$f":"Import!M9384","v":0}]
[121,{"$f":"Import!M6585","v":"Select"},{"$f":"Import!M6985","v":"Select"},{"$f":"Import!M7385","v":"Select"},{"$f":"Import!M7785","v":0},{"$f":"Import!M8185","v":0},{"$f":"Import!M8585","v":0},{"$f":"Import!M8985","v":0},{"$f":"Import!M9385","v":0}]
[122,{"$f":"Import!M6586","v":"Select"},{"$f":"Import!M6986","v":"Select"},{"$f":"Import!M7386","v":"Select"},{"$f":"Import!M7786","v":0},{"$f":"Import!M8186","v":0},{"$f":"Import!M8586","v":0},{"$f":"Import!M8986","v":0},{"$f":"Import!M9386","v":0}]
[123,{"$f":"Import!M6587","v":"Select"},{"$f":"Import!M6987","v":"Select"},{"$f":"Import!M7387","v":"Select"},{"$f":"Import!M7787","v":0},{"$f":"Import!M8187","v":0},{"$f":"Import!M8587","v":0},{"$f":"Import!M8987","v":0},{"$f":"Import!M9387","v":0}]
[124,{"$f":"Import!M6588","v":"Select"},{"$f":"Import!M6988","v":"Select"},{"$f":"Import!M7388","v":"Select"},{"$f":"Import!M7788","v":0},{"$f":"Import!M8188","v":0},{"$f":"Import!M8588","v":0},{"$f":"Import!M8988","v":0},{"$f":"Import!M9388","v":0}]
[125,{"$f":"Import!M6589","v":"Select"},{"$f":"Import!M6989","v":"Select"},{"$f":"Import!M7389","v":"Select"},{"$f":"Import!M7789","v":0},{"$f":"Import!M8189","v":0},{"$f":"Import!M8589","v":0},{"$f":"Import!M8989","v":0},{"$f":"Import!M9389","v":0}]
[126,{"$f":"Import!M6590","v":"Select"},{"$f":"Import!M6990","v":"Select"},{"$f":"Import!M7390","v":"Select"},{"$f":"Import!M7790","v":0},{"$f":"Import!M8190","v":0},{"$f":"Import!M8590","v":0},{"$f":"Import!M8990","v":0},{"$f":"Import!M9390","v":0}]
[127,{"$f":"Import!M6591","v":"Select"},{"$f":"Import!M6991","v":"Select"},{"$f":"Import!M7391","v":"Select"},{"$f":"Import!M7791","v":0},{"$f":"Import!M8191","v":0},{"$f":"Import!M8591","v":0},{"$f":"Import!M8991","v":0},{"$f":"Import!M9391","v":0}]
[128,{"$f":"Import!M6592","v":"Select"},{"$f":"Import!M6992","v":"Select"},{"$f":"Import!M7392","v":"Select"},{"$f":"Import!M7792","v":0},{"$f":"Import!M8192","v":0},{"$f":"Import!M8592","v":0},{"$f":"Import!M8992","v":0},{"$f":"Import!M9392","v":0}]
[129,{"$f":"Import!M6593","v":"Select"},{"$f":"Import!M6993","v":"Select"},{"$f":"Import!M7393","v":"Select"},{"$f":"Import!M7793","v":0},{"$f":"Import!M8193","v":0},{"$f":"Import!M8593","v":0},{"$f":"Import!M8993","v":0},{"$f":"Import!M9393","v":0}]
[130,{"$f":"Import!M6594","v":"Select"},{"$f":"Import!M6994","v":"Select"},{"$f":"Import!M7394","v":"Select"},{"$f":"Import!M7794","v":0},{"$f":"Import!M8194","v":0},{"$f":"Import!M8594","v":0},{"$f":"Import!M8994","v":0},{"$f":"Import!M9394","v":0}]
[{"$f":"A348+1","v":131},{"$f":"Import!M6595","v":"Select"},{"$f":"Import!M6995","v":"Select"},{"$f":"Import!M7395","v":"Select"},{"$f":"Import!M7795","v":0},{"$f":"Import!M8195","v":0},{"$f":"Import!M8595","v":0},{"$f":"Import!M8995","v":0},{"$f":"Import!M9395","v":0}]
[132,{"$f":"Import!M6596","v":"Select"},{"$f":"Import!M6996","v":"Select"},{"$f":"Import!M7396","v":"Select"},{"$f":"Import!M7796","v":0},{"$f":"Import!M8196","v":0},{"$f":"Import!M8596","v":0},{"$f":"Import!M8996","v":0},{"$f":"Import!M9396","v":0}]
[133,{"$f":"Import!M6597","v":"Select"},{"$f":"Import!M6997","v":"Select"},{"$f":"Import!M7397","v":"Select"},{"$f":"Import!M7797","v":0},{"$f":"Import!M8197","v":0},{"$f":"Import!M8597","v":0},{"$f":"Import!M8997","v":0},{"$f":"Import!M9397","v":0}]
[134,{"$f":"Import!M6598","v":"Select"},{"$f":"Import!M6998","v":"Select"},{"$f":"Import!M7398","v":"Select"},{"$f":"Import!M7798","v":0},{"$f":"Import!M8198","v":0},{"$f":"Import!M8598","v":0},{"$f":"Import!M8998","v":0},{"$f":"Import!M9398","v":0}]
[135,{"$f":"Import!M6599","v":"Select"},{"$f":"Import!M6999","v":"Select"},{"$f":"Import!M7399","v":"Select"},{"$f":"Import!M7799","v":0},{"$f":"Import!M8199","v":0},{"$f":"Import!M8599","v":0},{"$f":"Import!M8999","v":0},{"$f":"Import!M9399","v":0}]
[136,{"$f":"Import!M6600","v":"Select"},{"$f":"Import!M7000","v":"Select"},{"$f":"Import!M7400","v":"Select"},{"$f":"Import!M7800","v":0},{"$f":"Import!M8200","v":0},{"$f":"Import!M8600","v":0},{"$f":"Import!M9000","v":0},{"$f":"Import!M9400","v":0}]
[137,{"$f":"Import!M6601","v":"Select"},{"$f":"Import!M7001","v":"Select"},{"$f":"Import!M7401","v":"Select"},{"$f":"Import!M7801","v":0},{"$f":"Import!M8201","v":0},{"$f":"Import!M8601","v":0},{"$f":"Import!M9001","v":0},{"$f":"Import!M9401","v":0}]
[138,{"$f":"Import!M6602","v":"Select"},{"$f":"Import!M7002","v":"Select"},{"$f":"Import!M7402","v":"Select"},{"$f":"Import!M7802","v":0},{"$f":"Import!M8202","v":0},{"$f":"Import!M8602","v":0},{"$f":"Import!M9002","v":0},{"$f":"Import!M9402","v":0}]
[139,{"$f":"Import!M6603","v":"Select"},{"$f":"Import!M7003","v":"Select"},{"$f":"Import!M7403","v":"Select"},{"$f":"Import!M7803","v":0},{"$f":"Import!M8203","v":0},{"$f":"Import!M8603","v":0},{"$f":"Import!M9003","v":0},{"$f":"Import!M9403","v":0}]
[140,{"$f":"Import!M6604","v":"Select"},{"$f":"Import!M7004","v":"Select"},{"$f":"Import!M7404","v":"Select"},{"$f":"Import!M7804","v":0},{"$f":"Import!M8204","v":0},{"$f":"Import!M8604","v":0},{"$f":"Import!M9004","v":0},{"$f":"Import!M9404","v":0}]
[141,{"$f":"Import!M6605","v":"Select"},{"$f":"Import!M7005","v":"Select"},{"$f":"Import!M7405","v":"Select"},{"$f":"Import!M7805","v":0},{"$f":"Import!M8205","v":0},{"$f":"Import!M8605","v":0},{"$f":"Import!M9005","v":0},{"$f":"Import!M9405","v":0}]
[142,{"$f":"Import!M6606","v":"Select"},{"$f":"Import!M7006","v":"Select"},{"$f":"Import!M7406","v":"Select"},{"$f":"Import!M7806","v":0},{"$f":"Import!M8206","v":0},{"$f":"Import!M8606","v":0},{"$f":"Import!M9006","v":0},{"$f":"Import!M9406","v":0}]
[143,{"$f":"Import!M6607","v":"Select"},{"$f":"Import!M7007","v":"Select"},{"$f":"Import!M7407","v":"Select"},{"$f":"Import!M7807","v":0},{"$f":"Import!M8207","v":0},{"$f":"Import!M8607","v":0},{"$f":"Import!M9007","v":0},{"$f":"Import!M9407","v":0}]
[144,{"$f":"Import!M6608","v":"Select"},{"$f":"Import!M7008","v":"Select"},{"$f":"Import!M7408","v":"Select"},{"$f":"Import!M7808","v":0},{"$f":"Import!M8208","v":0},{"$f":"Import!M8608","v":0},{"$f":"Import!M9008","v":0},{"$f":"Import!M9408","v":0}]
[145,{"$f":"Import!M6609","v":"Select"},{"$f":"Import!M7009","v":"Select"},{"$f":"Import!M7409","v":"Select"},{"$f":"Import!M7809","v":0},{"$f":"Import!M8209","v":0},{"$f":"Import!M8609","v":0},{"$f":"Import!M9009","v":0},{"$f":"Import!M9409","v":0}]
[146,{"$f":"Import!M6610","v":"Select"},{"$f":"Import!M7010","v":"Select"},{"$f":"Import!M7410","v":"Select"},{"$f":"Import!M7810","v":0},{"$f":"Import!M8210","v":0},{"$f":"Import!M8610","v":0},{"$f":"Import!M9010","v":0},{"$f":"Import!M9410","v":0}]
[147,{"$f":"Import!M6611","v":"Select"},{"$f":"Import!M7011","v":"Select"},{"$f":"Import!M7411","v":"Select"},{"$f":"Import!M7811","v":0},{"$f":"Import!M8211","v":0},{"$f":"Import!M8611","v":0},{"$f":"Import!M9011","v":0},{"$f":"Import!M9411","v":0}]
[148,{"$f":"Import!M6612","v":"Select"},{"$f":"Import!M7012","v":"Select"},{"$f":"Import!M7412","v":"Select"},{"$f":"Import!M7812","v":0},{"$f":"Import!M8212","v":0},{"$f":"Import!M8612","v":0},{"$f":"Import!M9012","v":0},{"$f":"Import!M9412","v":0}]
[149,{"$f":"Import!M6613","v":"Select"},{"$f":"Import!M7013","v":"Select"},{"$f":"Import!M7413","v":"Select"},{"$f":"Import!M7813","v":0},{"$f":"Import!M8213","v":0},{"$f":"Import!M8613","v":0},{"$f":"Import!M9013","v":0},{"$f":"Import!M9413","v":0}]
[150,{"$f":"Import!M6614","v":"Select"},{"$f":"Import!M7014","v":"Select"},{"$f":"Import!M7414","v":"Select"},{"$f":"Import!M7814","v":0},{"$f":"Import!M8214","v":0},{"$f":"Import!M8614","v":0},{"$f":"Import!M9014","v":0},{"$f":"Import!M9414","v":0}]
[151,{"$f":"Import!M6615","v":"Select"},{"$f":"Import!M7015","v":"Select"},{"$f":"Import!M7415","v":"Select"},{"$f":"Import!M7815","v":0},{"$f":"Import!M8215","v":0},{"$f":"Import!M8615","v":0},{"$f":"Import!M9015","v":0},{"$f":"Import!M9415","v":0}]
[152,{"$f":"Import!M6616","v":"Select"},{"$f":"Import!M7016","v":"Select"},{"$f":"Import!M7416","v":"Select"},{"$f":"Import!M7816","v":0},{"$f":"Import!M8216","v":0},{"$f":"Import!M8616","v":0},{"$f":"Import!M9016","v":0},{"$f":"Import!M9416","v":0}]
[153,{"$f":"Import!M6617","v":"Select"},{"$f":"Import!M7017","v":"Select"},{"$f":"Import!M7417","v":"Select"},{"$f":"Import!M7817","v":0},{"$f":"Import!M8217","v":0},{"$f":"Import!M8617","v":0},{"$f":"Import!M9017","v":0},{"$f":"Import!M9417","v":0}]
[154,{"$f":"Import!M6618","v":"Select"},{"$f":"Import!M7018","v":"Select"},{"$f":"Import!M7418","v":"Select"},{"$f":"Import!M7818","v":0},{"$f":"Import!M8218","v":0},{"$f":"Import!M8618","v":0},{"$f":"Import!M9018","v":0},{"$f":"Import!M9418","v":0}]
[155,{"$f":"Import!M6619","v":"Select"},{"$f":"Import!M7019","v":"Select"},{"$f":"Import!M7419","v":"Select"},{"$f":"Import!M7819","v":0},{"$f":"Import!M8219","v":0},{"$f":"Import!M8619","v":0},{"$f":"Import!M9019","v":0},{"$f":"Import!M9419","v":0}]
[156,{"$f":"Import!M6620","v":"Select"},{"$f":"Import!M7020","v":"Select"},{"$f":"Import!M7420","v":"Select"},{"$f":"Import!M7820","v":0},{"$f":"Import!M8220","v":0},{"$f":"Import!M8620","v":0},{"$f":"Import!M9020","v":0},{"$f":"Import!M9420","v":0}]
[157,{"$f":"Import!M6621","v":"Select"},{"$f":"Import!M7021","v":"Select"},{"$f":"Import!M7421","v":"Select"},{"$f":"Import!M7821","v":0},{"$f":"Import!M8221","v":0},{"$f":"Import!M8621","v":0},{"$f":"Import!M9021","v":0},{"$f":"Import!M9421","v":0}]
[158,{"$f":"Import!M6622","v":"Select"},{"$f":"Import!M7022","v":"Select"},{"$f":"Import!M7422","v":"Select"},{"$f":"Import!M7822","v":0},{"$f":"Import!M8222","v":0},{"$f":"Import!M8622","v":0},{"$f":"Import!M9022","v":0},{"$f":"Import!M9422","v":0}]
[159,{"$f":"Import!M6623","v":"Select"},{"$f":"Import!M7023","v":"Select"},{"$f":"Import!M7423","v":"Select"},{"$f":"Import!M7823","v":0},{"$f":"Import!M8223","v":0},{"$f":"Import!M8623","v":0},{"$f":"Import!M9023","v":0},{"$f":"Import!M9423","v":0}]
[160,{"$f":"Import!M6624","v":"Select"},{"$f":"Import!M7024","v":"Select"},{"$f":"Import!M7424","v":"Select"},{"$f":"Import!M7824","v":0},{"$f":"Import!M8224","v":0},{"$f":"Import!M8624","v":0},{"$f":"Import!M9024","v":0},{"$f":"Import!M9424","v":0}]
[161,{"$f":"Import!M6625","v":"Select"},{"$f":"Import!M7025","v":"Select"},{"$f":"Import!M7425","v":"Select"},{"$f":"Import!M7825","v":0},{"$f":"Import!M8225","v":0},{"$f":"Import!M8625","v":0},{"$f":"Import!M9025","v":0},{"$f":"Import!M9425","v":0}]
[162,{"$f":"Import!M6626","v":"Select"},{"$f":"Import!M7026","v":"Select"},{"$f":"Import!M7426","v":"Select"},{"$f":"Import!M7826","v":0},{"$f":"Import!M8226","v":0},{"$f":"Import!M8626","v":0},{"$f":"Import!M9026","v":0},{"$f":"Import!M9426","v":0}]
[163,{"$f":"Import!M6627","v":"Select"},{"$f":"Import!M7027","v":"Select"},{"$f":"Import!M7427","v":"Select"},{"$f":"Import!M7827","v":0},{"$f":"Import!M8227","v":0},{"$f":"Import!M8627","v":0},{"$f":"Import!M9027","v":0},{"$f":"Import!M9427","v":0}]
[164,{"$f":"Import!M6628","v":"Select"},{"$f":"Import!M7028","v":"Select"},{"$f":"Import!M7428","v":"Select"},{"$f":"Import!M7828","v":0},{"$f":"Import!M8228","v":0},{"$f":"Import!M8628","v":0},{"$f":"Import!M9028","v":0},{"$f":"Import!M9428","v":0}]
[165,{"$f":"Import!M6629","v":"Select"},{"$f":"Import!M7029","v":"Select"},{"$f":"Import!M7429","v":"Select"},{"$f":"Import!M7829","v":0},{"$f":"Import!M8229","v":0},{"$f":"Import!M8629","v":0},{"$f":"Import!M9029","v":0},{"$f":"Import!M9429","v":0}]
[166,{"$f":"Import!M6630","v":"Select"},{"$f":"Import!M7030","v":"Select"},{"$f":"Import!M7430","v":"Select"},{"$f":"Import!M7830","v":0},{"$f":"Import!M8230","v":0},{"$f":"Import!M8630","v":0},{"$f":"Import!M9030","v":0},{"$f":"Import!M9430","v":0}]
[167,{"$f":"Import!M6631","v":"Select"},{"$f":"Import!M7031","v":"Select"},{"$f":"Import!M7431","v":"Select"},{"$f":"Import!M7831","v":0},{"$f":"Import!M8231","v":0},{"$f":"Import!M8631","v":0},{"$f":"Import!M9031","v":0},{"$f":"Import!M9431","v":0}]
[168,{"$f":"Import!M6632","v":"Select"},{"$f":"Import!M7032","v":"Select"},{"$f":"Import!M7432","v":"Select"},{"$f":"Import!M7832","v":0},{"$f":"Import!M8232","v":0},{"$f":"Import!M8632","v":0},{"$f":"Import!M9032","v":0},{"$f":"Import!M9432","v":0}]
[169,{"$f":"Import!M6633","v":"Select"},{"$f":"Import!M7033","v":"Select"},{"$f":"Import!M7433","v":"Select"},{"$f":"Import!M7833","v":0},{"$f":"Import!M8233","v":0},{"$f":"Import!M8633","v":0},{"$f":"Import!M9033","v":0},{"$f":"Import!M9433","v":0}]
[170,{"$f":"Import!M6634","v":"Select"},{"$f":"Import!M7034","v":"Select"},{"$f":"Import!M7434","v":"Select"},{"$f":"Import!M7834","v":0},{"$f":"Import!M8234","v":0},{"$f":"Import!M8634","v":0},{"$f":"Import!M9034","v":0},{"$f":"Import!M9434","v":0}]
[171,{"$f":"Import!M6635","v":"Select"},{"$f":"Import!M7035","v":"Select"},{"$f":"Import!M7435","v":"Select"},{"$f":"Import!M7835","v":0},{"$f":"Import!M8235","v":0},{"$f":"Import!M8635","v":0},{"$f":"Import!M9035","v":0},{"$f":"Import!M9435","v":0}]
[172,{"$f":"Import!M6636","v":"Select"},{"$f":"Import!M7036","v":"Select"},{"$f":"Import!M7436","v":"Select"},{"$f":"Import!M7836","v":0},{"$f":"Import!M8236","v":0},{"$f":"Import!M8636","v":0},{"$f":"Import!M9036","v":0},{"$f":"Import!M9436","v":0}]
[173,{"$f":"Import!M6637","v":"Select"},{"$f":"Import!M7037","v":"Select"},{"$f":"Import!M7437","v":"Select"},{"$f":"Import!M7837","v":0},{"$f":"Import!M8237","v":0},{"$f":"Import!M8637","v":0},{"$f":"Import!M9037","v":0},{"$f":"Import!M9437","v":0}]
[174,{"$f":"Import!M6638","v":"Select"},{"$f":"Import!M7038","v":"Select"},{"$f":"Import!M7438","v":"Select"},{"$f":"Import!M7838","v":0},{"$f":"Import!M8238","v":0},{"$f":"Import!M8638","v":0},{"$f":"Import!M9038","v":0},{"$f":"Import!M9438","v":0}]
[175,{"$f":"Import!M6639","v":"Select"},{"$f":"Import!M7039","v":"Select"},{"$f":"Import!M7439","v":"Select"},{"$f":"Import!M7839","v":0},{"$f":"Import!M8239","v":0},{"$f":"Import!M8639","v":0},{"$f":"Import!M9039","v":0},{"$f":"Import!M9439","v":0}]
[176,{"$f":"Import!M6640","v":"Select"},{"$f":"Import!M7040","v":"Select"},{"$f":"Import!M7440","v":"Select"},{"$f":"Import!M7840","v":0},{"$f":"Import!M8240","v":0},{"$f":"Import!M8640","v":0},{"$f":"Import!M9040","v":0},{"$f":"Import!M9440","v":0}]
[177,{"$f":"Import!M6641","v":"Select"},{"$f":"Import!M7041","v":"Select"},{"$f":"Import!M7441","v":"Select"},{"$f":"Import!M7841","v":0},{"$f":"Import!M8241","v":0},{"$f":"Import!M8641","v":0},{"$f":"Import!M9041","v":0},{"$f":"Import!M9441","v":0}]
[178,{"$f":"Import!M6642","v":"Select"},{"$f":"Import!M7042","v":"Select"},{"$f":"Import!M7442","v":"Select"},{"$f":"Import!M7842","v":0},{"$f":"Import!M8242","v":0},{"$f":"Import!M8642","v":0},{"$f":"Import!M9042","v":0},{"$f":"Import!M9442","v":0}]
[179,{"$f":"Import!M6643","v":"Select"},{"$f":"Import!M7043","v":"Select"},{"$f":"Import!M7443","v":"Select"},{"$f":"Import!M7843","v":0},{"$f":"Import!M8243","v":0},{"$f":"Import!M8643","v":0},{"$f":"Import!M9043","v":0},{"$f":"Import!M9443","v":0}]
[180,{"$f":"Import!M6644","v":"Select"},{"$f":"Import!M7044","v":"Select"},{"$f":"Import!M7444","v":"Select"},{"$f":"Import!M7844","v":0},{"$f":"Import!M8244","v":0},{"$f":"Import!M8644","v":0},{"$f":"Import!M9044","v":0},{"$f":"Import!M9444","v":0}]
[181,{"$f":"Import!M6645","v":"Select"},{"$f":"Import!M7045","v":"Select"},{"$f":"Import!M7445","v":"Select"},{"$f":"Import!M7845","v":0},{"$f":"Import!M8245","v":0},{"$f":"Import!M8645","v":0},{"$f":"Import!M9045","v":0},{"$f":"Import!M9445","v":0}]
[182,{"$f":"Import!M6646","v":"Select"},{"$f":"Import!M7046","v":"Select"},{"$f":"Import!M7446","v":"Select"},{"$f":"Import!M7846","v":0},{"$f":"Import!M8246","v":0},{"$f":"Import!M8646","v":0},{"$f":"Import!M9046","v":0},{"$f":"Import!M9446","v":0}]
[183,{"$f":"Import!M6647","v":"Select"},{"$f":"Import!M7047","v":"Select"},{"$f":"Import!M7447","v":"Select"},{"$f":"Import!M7847","v":0},{"$f":"Import!M8247","v":0},{"$f":"Import!M8647","v":0},{"$f":"Import!M9047","v":0},{"$f":"Import!M9447","v":0}]
[184,{"$f":"Import!M6648","v":"Select"},{"$f":"Import!M7048","v":"Select"},{"$f":"Import!M7448","v":"Select"},{"$f":"Import!M7848","v":0},{"$f":"Import!M8248","v":0},{"$f":"Import!M8648","v":0},{"$f":"Import!M9048","v":0},{"$f":"Import!M9448","v":0}]
[185,{"$f":"Import!M6649","v":"Select"},{"$f":"Import!M7049","v":"Select"},{"$f":"Import!M7449","v":"Select"},{"$f":"Import!M7849","v":0},{"$f":"Import!M8249","v":0},{"$f":"Import!M8649","v":0},{"$f":"Import!M9049","v":0},{"$f":"Import!M9449","v":0}]
[186,{"$f":"Import!M6650","v":"Select"},{"$f":"Import!M7050","v":"Select"},{"$f":"Import!M7450","v":"Select"},{"$f":"Import!M7850","v":0},{"$f":"Import!M8250","v":0},{"$f":"Import!M8650","v":0},{"$f":"Import!M9050","v":0},{"$f":"Import!M9450","v":0}]
[187,{"$f":"Import!M6651","v":"Select"},{"$f":"Import!M7051","v":"Select"},{"$f":"Import!M7451","v":"Select"},{"$f":"Import!M7851","v":0},{"$f":"Import!M8251","v":0},{"$f":"Import!M8651","v":0},{"$f":"Import!M9051","v":0},{"$f":"Import!M9451","v":0}]
[188,{"$f":"Import!M6652","v":"Select"},{"$f":"Import!M7052","v":"Select"},{"$f":"Import!M7452","v":"Select"},{"$f":"Import!M7852","v":0},{"$f":"Import!M8252","v":0},{"$f":"Import!M8652","v":0},{"$f":"Import!M9052","v":0},{"$f":"Import!M9452","v":0}]
[189,{"$f":"Import!M6653","v":"Select"},{"$f":"Import!M7053","v":"Select"},{"$f":"Import!M7453","v":"Select"},{"$f":"Import!M7853","v":0},{"$f":"Import!M8253","v":0},{"$f":"Import!M8653","v":0},{"$f":"Import!M9053","v":0},{"$f":"Import!M9453","v":0}]
[190,{"$f":"Import!M6654","v":"Select"},{"$f":"Import!M7054","v":"Select"},{"$f":"Import!M7454","v":"Select"},{"$f":"Import!M7854","v":0},{"$f":"Import!M8254","v":0},{"$f":"Import!M8654","v":0},{"$f":"Import!M9054","v":0},{"$f":"Import!M9454","v":0}]
[191,{"$f":"Import!M6655","v":"Select"},{"$f":"Import!M7055","v":"Select"},{"$f":"Import!M7455","v":"Select"},{"$f":"Import!M7855","v":0},{"$f":"Import!M8255","v":0},{"$f":"Import!M8655","v":0},{"$f":"Import!M9055","v":0},{"$f":"Import!M9455","v":0}]
[192,{"$f":"Import!M6656","v":"Select"},{"$f":"Import!M7056","v":"Select"},{"$f":"Import!M7456","v":"Select"},{"$f":"Import!M7856","v":0},{"$f":"Import!M8256","v":0},{"$f":"Import!M8656","v":0},{"$f":"Import!M9056","v":0},{"$f":"Import!M9456","v":0}]
[193,{"$f":"Import!M6657","v":"Select"},{"$f":"Import!M7057","v":"Select"},{"$f":"Import!M7457","v":"Select"},{"$f":"Import!M7857","v":0},{"$f":"Import!M8257","v":0},{"$f":"Import!M8657","v":0},{"$f":"Import!M9057","v":0},{"$f":"Import!M9457","v":0}]
[194,{"$f":"Import!M6658","v":"Select"},{"$f":"Import!M7058","v":"Select"},{"$f":"Import!M7458","v":"Select"},{"$f":"Import!M7858","v":0},{"$f":"Import!M8258","v":0},{"$f":"Import!M8658","v":0},{"$f":"Import!M9058","v":0},{"$f":"Import!M9458","v":0}]
[{"$f":"A412+1","v":195},{"$f":"Import!M6659","v":"Select"},{"$f":"Import!M7059","v":"Select"},{"$f":"Import!M7459","v":"Select"},{"$f":"Import!M7859","v":0},{"$f":"Import!M8259","v":0},{"$f":"Import!M8659","v":0},{"$f":"Import!M9059","v":0},{"$f":"Import!M9459","v":0}]
[196,{"$f":"Import!M6660","v":"Select"},{"$f":"Import!M7060","v":"Select"},{"$f":"Import!M7460","v":"Select"},{"$f":"Import!M7860","v":0},{"$f":"Import!M8260","v":0},{"$f":"Import!M8660","v":0},{"$f":"Import!M9060","v":0},{"$f":"Import!M9460","v":0}]
[197,{"$f":"Import!M6661","v":"Select"},{"$f":"Import!M7061","v":"Select"},{"$f":"Import!M7461","v":"Select"},{"$f":"Import!M7861","v":0},{"$f":"Import!M8261","v":0},{"$f":"Import!M8661","v":0},{"$f":"Import!M9061","v":0},{"$f":"Import!M9461","v":0}]
[198,{"$f":"Import!M6662","v":"Select"},{"$f":"Import!M7062","v":"Select"},{"$f":"Import!M7462","v":"Select"},{"$f":"Import!M7862","v":0},{"$f":"Import!M8262","v":0},{"$f":"Import!M8662","v":0},{"$f":"Import!M9062","v":0},{"$f":"Import!M9462","v":0}]
[199,{"$f":"Import!M6663","v":"Select"},{"$f":"Import!M7063","v":"Select"},{"$f":"Import!M7463","v":"Select"},{"$f":"Import!M7863","v":0},{"$f":"Import!M8263","v":0},{"$f":"Import!M8663","v":0},{"$f":"Import!M9063","v":0},{"$f":"Import!M9463","v":0}]
[200,{"$f":"Import!M6664","v":"Select"},{"$f":"Import!M7064","v":"Select"},{"$f":"Import!M7464","v":"Select"},{"$f":"Import!M7864","v":0},{"$f":"Import!M8264","v":0},{"$f":"Import!M8664","v":0},{"$f":"Import!M9064","v":0},{"$f":"Import!M9464","v":0}]
[201,{"$f":"Import!M6665","v":"Select"},{"$f":"Import!M7065","v":"Select"},{"$f":"Import!M7465","v":"Select"},{"$f":"Import!M7865","v":0},{"$f":"Import!M8265","v":0},{"$f":"Import!M8665","v":0},{"$f":"Import!M9065","v":0},{"$f":"Import!M9465","v":0}]
[202,{"$f":"Import!M6666","v":"Select"},{"$f":"Import!M7066","v":"Select"},{"$f":"Import!M7466","v":"Select"},{"$f":"Import!M7866","v":0},{"$f":"Import!M8266","v":0},{"$f":"Import!M8666","v":0},{"$f":"Import!M9066","v":0},{"$f":"Import!M9466","v":0}]
[203,{"$f":"Import!M6667","v":"Select"},{"$f":"Import!M7067","v":"Select"},{"$f":"Import!M7467","v":"Select"},{"$f":"Import!M7867","v":0},{"$f":"Import!M8267","v":0},{"$f":"Import!M8667","v":0},{"$f":"Import!M9067","v":0},{"$f":"Import!M9467","v":0}]
[204,{"$f":"Import!M6668","v":"Select"},{"$f":"Import!M7068","v":"Select"},{"$f":"Import!M7468","v":"Select"},{"$f":"Import!M7868","v":0},{"$f":"Import!M8268","v":0},{"$f":"Import!M8668","v":0},{"$f":"Import!M9068","v":0},{"$f":"Import!M9468","v":0}]
[205,{"$f":"Import!M6669","v":"Select"},{"$f":"Import!M7069","v":"Select"},{"$f":"Import!M7469","v":"Select"},{"$f":"Import!M7869","v":0},{"$f":"Import!M8269","v":0},{"$f":"Import!M8669","v":0},{"$f":"Import!M9069","v":0},{"$f":"Import!M9469","v":0}]
[206,{"$f":"Import!M6670","v":"Select"},{"$f":"Import!M7070","v":"Select"},{"$f":"Import!M7470","v":"Select"},{"$f":"Import!M7870","v":0},{"$f":"Import!M8270","v":0},{"$f":"Import!M8670","v":0},{"$f":"Import!M9070","v":0},{"$f":"Import!M9470","v":0}]
[207,{"$f":"Import!M6671","v":"Select"},{"$f":"Import!M7071","v":"Select"},{"$f":"Import!M7471","v":"Select"},{"$f":"Import!M7871","v":0},{"$f":"Import!M8271","v":0},{"$f":"Import!M8671","v":0},{"$f":"Import!M9071","v":0},{"$f":"Import!M9471","v":0}]
[208,{"$f":"Import!M6672","v":"Select"},{"$f":"Import!M7072","v":"Select"},{"$f":"Import!M7472","v":"Select"},{"$f":"Import!M7872","v":0},{"$f":"Import!M8272","v":0},{"$f":"Import!M8672","v":0},{"$f":"Import!M9072","v":0},{"$f":"Import!M9472","v":0}]
[209,{"$f":"Import!M6673","v":"Select"},{"$f":"Import!M7073","v":"Select"},{"$f":"Import!M7473","v":"Select"},{"$f":"Import!M7873","v":0},{"$f":"Import!M8273","v":0},{"$f":"Import!M8673","v":0},{"$f":"Import!M9073","v":0},{"$f":"Import!M9473","v":0}]
[210,{"$f":"Import!M6674","v":"Select"},{"$f":"Import!M7074","v":"Select"},{"$f":"Import!M7474","v":"Select"},{"$f":"Import!M7874","v":0},{"$f":"Import!M8274","v":0},{"$f":"Import!M8674","v":0},{"$f":"Import!M9074","v":0},{"$f":"Import!M9474","v":0}]
[211,{"$f":"Import!M6675","v":"Select"},{"$f":"Import!M7075","v":"Select"},{"$f":"Import!M7475","v":"Select"},{"$f":"Import!M7875","v":0},{"$f":"Import!M8275","v":0},{"$f":"Import!M8675","v":0},{"$f":"Import!M9075","v":0},{"$f":"Import!M9475","v":0}]
[212,{"$f":"Import!M6676","v":"Select"},{"$f":"Import!M7076","v":"Select"},{"$f":"Import!M7476","v":"Select"},{"$f":"Import!M7876","v":0},{"$f":"Import!M8276","v":0},{"$f":"Import!M8676","v":0},{"$f":"Import!M9076","v":0},{"$f":"Import!M9476","v":0}]
[213,{"$f":"Import!M6677","v":"Select"},{"$f":"Import!M7077","v":"Select"},{"$f":"Import!M7477","v":"Select"},{"$f":"Import!M7877","v":0},{"$f":"Import!M8277","v":0},{"$f":"Import!M8677","v":0},{"$f":"Import!M9077","v":0},{"$f":"Import!M9477","v":0}]
[214,{"$f":"Import!M6678","v":"Select"},{"$f":"Import!M7078","v":"Select"},{"$f":"Import!M7478","v":"Select"},{"$f":"Import!M7878","v":0},{"$f":"Import!M8278","v":0},{"$f":"Import!M8678","v":0},{"$f":"Import!M9078","v":0},{"$f":"Import!M9478","v":0}]
[215,{"$f":"Import!M6679","v":"Select"},{"$f":"Import!M7079","v":"Select"},{"$f":"Import!M7479","v":"Select"},{"$f":"Import!M7879","v":0},{"$f":"Import!M8279","v":0},{"$f":"Import!M8679","v":0},{"$f":"Import!M9079","v":0},{"$f":"Import!M9479","v":0}]
[216,{"$f":"Import!M6680","v":"Select"},{"$f":"Import!M7080","v":"Select"},{"$f":"Import!M7480","v":"Select"},{"$f":"Import!M7880","v":0},{"$f":"Import!M8280","v":0},{"$f":"Import!M8680","v":0},{"$f":"Import!M9080","v":0},{"$f":"Import!M9480","v":0}]
[217,{"$f":"Import!M6681","v":"Select"},{"$f":"Import!M7081","v":"Select"},{"$f":"Import!M7481","v":"Select"},{"$f":"Import!M7881","v":0},{"$f":"Import!M8281","v":0},{"$f":"Import!M8681","v":0},{"$f":"Import!M9081","v":0},{"$f":"Import!M9481","v":0}]
[218,{"$f":"Import!M6682","v":"Select"},{"$f":"Import!M7082","v":"Select"},{"$f":"Import!M7482","v":"Select"},{"$f":"Import!M7882","v":0},{"$f":"Import!M8282","v":0},{"$f":"Import!M8682","v":0},{"$f":"Import!M9082","v":0},{"$f":"Import!M9482","v":0}]
[219,{"$f":"Import!M6683","v":"Select"},{"$f":"Import!M7083","v":"Select"},{"$f":"Import!M7483","v":"Select"},{"$f":"Import!M7883","v":0},{"$f":"Import!M8283","v":0},{"$f":"Import!M8683","v":0},{"$f":"Import!M9083","v":0},{"$f":"Import!M9483","v":0}]
[220,{"$f":"Import!M6684","v":"Select"},{"$f":"Import!M7084","v":"Select"},{"$f":"Import!M7484","v":"Select"},{"$f":"Import!M7884","v":0},{"$f":"Import!M8284","v":0},{"$f":"Import!M8684","v":0},{"$f":"Import!M9084","v":0},{"$f":"Import!M9484","v":0}]
[221,{"$f":"Import!M6685","v":"Select"},{"$f":"Import!M7085","v":"Select"},{"$f":"Import!M7485","v":"Select"},{"$f":"Import!M7885","v":0},{"$f":"Import!M8285","v":0},{"$f":"Import!M8685","v":0},{"$f":"Import!M9085","v":0},{"$f":"Import!M9485","v":0}]
[222,{"$f":"Import!M6686","v":"Select"},{"$f":"Import!M7086","v":"Select"},{"$f":"Import!M7486","v":"Select"},{"$f":"Import!M7886","v":0},{"$f":"Import!M8286","v":0},{"$f":"Import!M8686","v":0},{"$f":"Import!M9086","v":0},{"$f":"Import!M9486","v":0}]
[223,{"$f":"Import!M6687","v":"Select"},{"$f":"Import!M7087","v":"Select"},{"$f":"Import!M7487","v":"Select"},{"$f":"Import!M7887","v":0},{"$f":"Import!M8287","v":0},{"$f":"Import!M8687","v":0},{"$f":"Import!M9087","v":0},{"$f":"Import!M9487","v":0}]
[224,{"$f":"Import!M6688","v":"Select"},{"$f":"Import!M7088","v":"Select"},{"$f":"Import!M7488","v":"Select"},{"$f":"Import!M7888","v":0},{"$f":"Import!M8288","v":0},{"$f":"Import!M8688","v":0},{"$f":"Import!M9088","v":0},{"$f":"Import!M9488","v":0}]
[225,{"$f":"Import!M6689","v":"Select"},{"$f":"Import!M7089","v":"Select"},{"$f":"Import!M7489","v":"Select"},{"$f":"Import!M7889","v":0},{"$f":"Import!M8289","v":0},{"$f":"Import!M8689","v":0},{"$f":"Import!M9089","v":0},{"$f":"Import!M9489","v":0}]
[226,{"$f":"Import!M6690","v":"Select"},{"$f":"Import!M7090","v":"Select"},{"$f":"Import!M7490","v":"Select"},{"$f":"Import!M7890","v":0},{"$f":"Import!M8290","v":0},{"$f":"Import!M8690","v":0},{"$f":"Import!M9090","v":0},{"$f":"Import!M9490","v":0}]
[227,{"$f":"Import!M6691","v":"Select"},{"$f":"Import!M7091","v":"Select"},{"$f":"Import!M7491","v":"Select"},{"$f":"Import!M7891","v":0},{"$f":"Import!M8291","v":0},{"$f":"Import!M8691","v":0},{"$f":"Import!M9091","v":0},{"$f":"Import!M9491","v":0}]
[228,{"$f":"Import!M6692","v":"Select"},{"$f":"Import!M7092","v":"Select"},{"$f":"Import!M7492","v":"Select"},{"$f":"Import!M7892","v":0},{"$f":"Import!M8292","v":0},{"$f":"Import!M8692","v":0},{"$f":"Import!M9092","v":0},{"$f":"Import!M9492","v":0}]
[229,{"$f":"Import!M6693","v":"Select"},{"$f":"Import!M7093","v":"Select"},{"$f":"Import!M7493","v":"Select"},{"$f":"Import!M7893","v":0},{"$f":"Import!M8293","v":0},{"$f":"Import!M8693","v":0},{"$f":"Import!M9093","v":0},{"$f":"Import!M9493","v":0}]
[230,{"$f":"Import!M6694","v":"Select"},{"$f":"Import!M7094","v":"Select"},{"$f":"Import!M7494","v":"Select"},{"$f":"Import!M7894","v":0},{"$f":"Import!M8294","v":0},{"$f":"Import!M8694","v":0},{"$f":"Import!M9094","v":0},{"$f":"Import!M9494","v":0}]
[231,{"$f":"Import!M6695","v":"Select"},{"$f":"Import!M7095","v":"Select"},{"$f":"Import!M7495","v":"Select"},{"$f":"Import!M7895","v":0},{"$f":"Import!M8295","v":0},{"$f":"Import!M8695","v":0},{"$f":"Import!M9095","v":0},{"$f":"Import!M9495","v":0}]
[232,{"$f":"Import!M6696","v":"Select"},{"$f":"Import!M7096","v":"Select"},{"$f":"Import!M7496","v":"Select"},{"$f":"Import!M7896","v":0},{"$f":"Import!M8296","v":0},{"$f":"Import!M8696","v":0},{"$f":"Import!M9096","v":0},{"$f":"Import!M9496","v":0}]
[233,{"$f":"Import!M6697","v":"Select"},{"$f":"Import!M7097","v":"Select"},{"$f":"Import!M7497","v":"Select"},{"$f":"Import!M7897","v":0},{"$f":"Import!M8297","v":0},{"$f":"Import!M8697","v":0},{"$f":"Import!M9097","v":0},{"$f":"Import!M9497","v":0}]
[234,{"$f":"Import!M6698","v":"Select"},{"$f":"Import!M7098","v":"Select"},{"$f":"Import!M7498","v":"Select"},{"$f":"Import!M7898","v":0},{"$f":"Import!M8298","v":0},{"$f":"Import!M8698","v":0},{"$f":"Import!M9098","v":0},{"$f":"Import!M9498","v":0}]
[235,{"$f":"Import!M6699","v":"Select"},{"$f":"Import!M7099","v":"Select"},{"$f":"Import!M7499","v":"Select"},{"$f":"Import!M7899","v":0},{"$f":"Import!M8299","v":0},{"$f":"Import!M8699","v":0},{"$f":"Import!M9099","v":0},{"$f":"Import!M9499","v":0}]
[236,{"$f":"Import!M6700","v":"Select"},{"$f":"Import!M7100","v":"Select"},{"$f":"Import!M7500","v":"Select"},{"$f":"Import!M7900","v":0},{"$f":"Import!M8300","v":0},{"$f":"Import!M8700","v":0},{"$f":"Import!M9100","v":0},{"$f":"Import!M9500","v":0}]
[237,{"$f":"Import!M6701","v":"Select"},{"$f":"Import!M7101","v":"Select"},{"$f":"Import!M7501","v":"Select"},{"$f":"Import!M7901","v":0},{"$f":"Import!M8301","v":0},{"$f":"Import!M8701","v":0},{"$f":"Import!M9101","v":0},{"$f":"Import!M9501","v":0}]
[238,{"$f":"Import!M6702","v":"Select"},{"$f":"Import!M7102","v":"Select"},{"$f":"Import!M7502","v":"Select"},{"$f":"Import!M7902","v":0},{"$f":"Import!M8302","v":0},{"$f":"Import!M8702","v":0},{"$f":"Import!M9102","v":0},{"$f":"Import!M9502","v":0}]
[239,{"$f":"Import!M6703","v":"Select"},{"$f":"Import!M7103","v":"Select"},{"$f":"Import!M7503","v":"Select"},{"$f":"Import!M7903","v":0},{"$f":"Import!M8303","v":0},{"$f":"Import!M8703","v":0},{"$f":"Import!M9103","v":0},{"$f":"Import!M9503","v":0}]
[240,{"$f":"Import!M6704","v":"Select"},{"$f":"Import!M7104","v":"Select"},{"$f":"Import!M7504","v":"Select"},{"$f":"Import!M7904","v":0},{"$f":"Import!M8304","v":0},{"$f":"Import!M8704","v":0},{"$f":"Import!M9104","v":0},{"$f":"Import!M9504","v":0}]
[241,{"$f":"Import!M6705","v":"Select"},{"$f":"Import!M7105","v":"Select"},{"$f":"Import!M7505","v":"Select"},{"$f":"Import!M7905","v":0},{"$f":"Import!M8305","v":0},{"$f":"Import!M8705","v":0},{"$f":"Import!M9105","v":0},{"$f":"Import!M9505","v":0}]
[242,{"$f":"Import!M6706","v":"Select"},{"$f":"Import!M7106","v":"Select"},{"$f":"Import!M7506","v":"Select"},{"$f":"Import!M7906","v":0},{"$f":"Import!M8306","v":0},{"$f":"Import!M8706","v":0},{"$f":"Import!M9106","v":0},{"$f":"Import!M9506","v":0}]
[243,{"$f":"Import!M6707","v":"Select"},{"$f":"Import!M7107","v":"Select"},{"$f":"Import!M7507","v":"Select"},{"$f":"Import!M7907","v":0},{"$f":"Import!M8307","v":0},{"$f":"Import!M8707","v":0},{"$f":"Import!M9107","v":0},{"$f":"Import!M9507","v":0}]
[244,{"$f":"Import!M6708","v":"Select"},{"$f":"Import!M7108","v":"Select"},{"$f":"Import!M7508","v":"Select"},{"$f":"Import!M7908","v":0},{"$f":"Import!M8308","v":0},{"$f":"Import!M8708","v":0},{"$f":"Import!M9108","v":0},{"$f":"Import!M9508","v":0}]
[245,{"$f":"Import!M6709","v":"Select"},{"$f":"Import!M7109","v":"Select"},{"$f":"Import!M7509","v":"Select"},{"$f":"Import!M7909","v":0},{"$f":"Import!M8309","v":0},{"$f":"Import!M8709","v":0},{"$f":"Import!M9109","v":0},{"$f":"Import!M9509","v":0}]
[246,{"$f":"Import!M6710","v":"Select"},{"$f":"Import!M7110","v":"Select"},{"$f":"Import!M7510","v":"Select"},{"$f":"Import!M7910","v":0},{"$f":"Import!M8310","v":0},{"$f":"Import!M8710","v":0},{"$f":"Import!M9110","v":0},{"$f":"Import!M9510","v":0}]
[247,{"$f":"Import!M6711","v":"Select"},{"$f":"Import!M7111","v":"Select"},{"$f":"Import!M7511","v":"Select"},{"$f":"Import!M7911","v":0},{"$f":"Import!M8311","v":0},{"$f":"Import!M8711","v":0},{"$f":"Import!M9111","v":0},{"$f":"Import!M9511","v":0}]
[248,{"$f":"Import!M6712","v":"Select"},{"$f":"Import!M7112","v":"Select"},{"$f":"Import!M7512","v":"Select"},{"$f":"Import!M7912","v":0},{"$f":"Import!M8312","v":0},{"$f":"Import!M8712","v":0},{"$f":"Import!M9112","v":0},{"$f":"Import!M9512","v":0}]
[249,{"$f":"Import!M6713","v":"Select"},{"$f":"Import!M7113","v":"Select"},{"$f":"Import!M7513","v":"Select"},{"$f":"Import!M7913","v":0},{"$f":"Import!M8313","v":0},{"$f":"Import!M8713","v":0},{"$f":"Import!M9113","v":0},{"$f":"Import!M9513","v":0}]
[250,{"$f":"Import!M6714","v":"Select"},{"$f":"Import!M7114","v":"Select"},{"$f":"Import!M7514","v":"Select"},{"$f":"Import!M7914","v":0},{"$f":"Import!M8314","v":0},{"$f":"Import!M8714","v":0},{"$f":"Import!M9114","v":0},{"$f":"Import!M9514","v":0}]
[251,{"$f":"Import!M6715","v":"Select"},{"$f":"Import!M7115","v":"Select"},{"$f":"Import!M7515","v":"Select"},{"$f":"Import!M7915","v":0},{"$f":"Import!M8315","v":0},{"$f":"Import!M8715","v":0},{"$f":"Import!M9115","v":0},{"$f":"Import!M9515","v":0}]
[252,{"$f":"Import!M6716","v":"Select"},{"$f":"Import!M7116","v":"Select"},{"$f":"Import!M7516","v":"Select"},{"$f":"Import!M7916","v":0},{"$f":"Import!M8316","v":0},{"$f":"Import!M8716","v":0},{"$f":"Import!M9116","v":0},{"$f":"Import!M9516","v":0}]
[253,{"$f":"Import!M6717","v":"Select"},{"$f":"Import!M7117","v":"Select"},{"$f":"Import!M7517","v":"Select"},{"$f":"Import!M7917","v":0},{"$f":"Import!M8317","v":0},{"$f":"Import!M8717","v":0},{"$f":"Import!M9117","v":0},{"$f":"Import!M9517","v":0}]
[254,{"$f":"Import!M6718","v":"Select"},{"$f":"Import!M7118","v":"Select"},{"$f":"Import!M7518","v":"Select"},{"$f":"Import!M7918","v":0},{"$f":"Import!M8318","v":0},{"$f":"Import!M8718","v":0},{"$f":"Import!M9118","v":0},{"$f":"Import!M9518","v":0}]
[255,{"$f":"Import!M6719","v":"Select"},{"$f":"Import!M7119","v":"Select"},{"$f":"Import!M7519","v":"Select"},{"$f":"Import!M7919","v":0},{"$f":"Import!M8319","v":0},{"$f":"Import!M8719","v":0},{"$f":"Import!M9119","v":0},{"$f":"Import!M9519","v":0}]
[256,{"$f":"Import!M6720","v":"Select"},{"$f":"Import!M7120","v":"Select"},{"$f":"Import!M7520","v":"Select"},{"$f":"Import!M7920","v":0},{"$f":"Import!M8320","v":0},{"$f":"Import!M8720","v":0},{"$f":"Import!M9120","v":0},{"$f":"Import!M9520","v":0}]
[257,{"$f":"Import!M6721","v":"Select"},{"$f":"Import!M7121","v":"Select"},{"$f":"Import!M7521","v":"Select"},{"$f":"Import!M7921","v":0},{"$f":"Import!M8321","v":0},{"$f":"Import!M8721","v":0},{"$f":"Import!M9121","v":0},{"$f":"Import!M9521","v":0}]
[258,{"$f":"Import!M6722","v":"Select"},{"$f":"Import!M7122","v":"Select"},{"$f":"Import!M7522","v":"Select"},{"$f":"Import!M7922","v":0},{"$f":"Import!M8322","v":0},{"$f":"Import!M8722","v":0},{"$f":"Import!M9122","v":0},{"$f":"Import!M9522","v":0}]
[{"$f":"A476+1","v":259},{"$f":"Import!M6723","v":"Select"},{"$f":"Import!M7123","v":"Select"},{"$f":"Import!M7523","v":"Select"},{"$f":"Import!M7923","v":0},{"$f":"Import!M8323","v":0},{"$f":"Import!M8723","v":0},{"$f":"Import!M9123","v":0},{"$f":"Import!M9523","v":0}]
[260,{"$f":"Import!M6724","v":"Select"},{"$f":"Import!M7124","v":"Select"},{"$f":"Import!M7524","v":"Select"},{"$f":"Import!M7924","v":0},{"$f":"Import!M8324","v":0},{"$f":"Import!M8724","v":0},{"$f":"Import!M9124","v":0},{"$f":"Import!M9524","v":0}]
[261,{"$f":"Import!M6725","v":"Select"},{"$f":"Import!M7125","v":"Select"},{"$f":"Import!M7525","v":"Select"},{"$f":"Import!M7925","v":0},{"$f":"Import!M8325","v":0},{"$f":"Import!M8725","v":0},{"$f":"Import!M9125","v":0},{"$f":"Import!M9525","v":0}]
[262,{"$f":"Import!M6726","v":"Select"},{"$f":"Import!M7126","v":"Select"},{"$f":"Import!M7526","v":"Select"},{"$f":"Import!M7926","v":0},{"$f":"Import!M8326","v":0},{"$f":"Import!M8726","v":0},{"$f":"Import!M9126","v":0},{"$f":"Import!M9526","v":0}]
[263,{"$f":"Import!M6727","v":"Select"},{"$f":"Import!M7127","v":"Select"},{"$f":"Import!M7527","v":"Select"},{"$f":"Import!M7927","v":0},{"$f":"Import!M8327","v":0},{"$f":"Import!M8727","v":0},{"$f":"Import!M9127","v":0},{"$f":"Import!M9527","v":0}]
[264,{"$f":"Import!M6728","v":"Select"},{"$f":"Import!M7128","v":"Select"},{"$f":"Import!M7528","v":"Select"},{"$f":"Import!M7928","v":0},{"$f":"Import!M8328","v":0},{"$f":"Import!M8728","v":0},{"$f":"Import!M9128","v":0},{"$f":"Import!M9528","v":0}]
[265,{"$f":"Import!M6729","v":"Select"},{"$f":"Import!M7129","v":"Select"},{"$f":"Import!M7529","v":"Select"},{"$f":"Import!M7929","v":0},{"$f":"Import!M8329","v":0},{"$f":"Import!M8729","v":0},{"$f":"Import!M9129","v":0},{"$f":"Import!M9529","v":0}]
[266,{"$f":"Import!M6730","v":"Select"},{"$f":"Import!M7130","v":"Select"},{"$f":"Import!M7530","v":"Select"},{"$f":"Import!M7930","v":0},{"$f":"Import!M8330","v":0},{"$f":"Import!M8730","v":0},{"$f":"Import!M9130","v":0},{"$f":"Import!M9530","v":0}]
[267,{"$f":"Import!M6731","v":"Select"},{"$f":"Import!M7131","v":"Select"},{"$f":"Import!M7531","v":"Select"},{"$f":"Import!M7931","v":0},{"$f":"Import!M8331","v":0},{"$f":"Import!M8731","v":0},{"$f":"Import!M9131","v":0},{"$f":"Import!M9531","v":0}]
[268,{"$f":"Import!M6732","v":"Select"},{"$f":"Import!M7132","v":"Select"},{"$f":"Import!M7532","v":"Select"},{"$f":"Import!M7932","v":0},{"$f":"Import!M8332","v":0},{"$f":"Import!M8732","v":0},{"$f":"Import!M9132","v":0},{"$f":"Import!M9532","v":0}]
[269,{"$f":"Import!M6733","v":"Select"},{"$f":"Import!M7133","v":"Select"},{"$f":"Import!M7533","v":"Select"},{"$f":"Import!M7933","v":0},{"$f":"Import!M8333","v":0},{"$f":"Import!M8733","v":0},{"$f":"Import!M9133","v":0},{"$f":"Import!M9533","v":0}]
[270,{"$f":"Import!M6734","v":"Select"},{"$f":"Import!M7134","v":"Select"},{"$f":"Import!M7534","v":"Select"},{"$f":"Import!M7934","v":0},{"$f":"Import!M8334","v":0},{"$f":"Import!M8734","v":0},{"$f":"Import!M9134","v":0},{"$f":"Import!M9534","v":0}]
[271,{"$f":"Import!M6735","v":"Select"},{"$f":"Import!M7135","v":"Select"},{"$f":"Import!M7535","v":"Select"},{"$f":"Import!M7935","v":0},{"$f":"Import!M8335","v":0},{"$f":"Import!M8735","v":0},{"$f":"Import!M9135","v":0},{"$f":"Import!M9535","v":0}]
[272,{"$f":"Import!M6736","v":"Select"},{"$f":"Import!M7136","v":"Select"},{"$f":"Import!M7536","v":"Select"},{"$f":"Import!M7936","v":0},{"$f":"Import!M8336","v":0},{"$f":"Import!M8736","v":0},{"$f":"Import!M9136","v":0},{"$f":"Import!M9536","v":0}]
[273,{"$f":"Import!M6737","v":"Select"},{"$f":"Import!M7137","v":"Select"},{"$f":"Import!M7537","v":"Select"},{"$f":"Import!M7937","v":0},{"$f":"Import!M8337","v":0},{"$f":"Import!M8737","v":0},{"$f":"Import!M9137","v":0},{"$f":"Import!M9537","v":0}]
[274,{"$f":"Import!M6738","v":"Select"},{"$f":"Import!M7138","v":"Select"},{"$f":"Import!M7538","v":"Select"},{"$f":"Import!M7938","v":0},{"$f":"Import!M8338","v":0},{"$f":"Import!M8738","v":0},{"$f":"Import!M9138","v":0},{"$f":"Import!M9538","v":0}]
[275,{"$f":"Import!M6739","v":"Select"},{"$f":"Import!M7139","v":"Select"},{"$f":"Import!M7539","v":"Select"},{"$f":"Import!M7939","v":0},{"$f":"Import!M8339","v":0},{"$f":"Import!M8739","v":0},{"$f":"Import!M9139","v":0},{"$f":"Import!M9539","v":0}]
[276,{"$f":"Import!M6740","v":"Select"},{"$f":"Import!M7140","v":"Select"},{"$f":"Import!M7540","v":"Select"},{"$f":"Import!M7940","v":0},{"$f":"Import!M8340","v":0},{"$f":"Import!M8740","v":0},{"$f":"Import!M9140","v":0},{"$f":"Import!M9540","v":0}]
[277,{"$f":"Import!M6741","v":"Select"},{"$f":"Import!M7141","v":"Select"},{"$f":"Import!M7541","v":"Select"},{"$f":"Import!M7941","v":0},{"$f":"Import!M8341","v":0},{"$f":"Import!M8741","v":0},{"$f":"Import!M9141","v":0},{"$f":"Import!M9541","v":0}]
[278,{"$f":"Import!M6742","v":"Select"},{"$f":"Import!M7142","v":"Select"},{"$f":"Import!M7542","v":"Select"},{"$f":"Import!M7942","v":0},{"$f":"Import!M8342","v":0},{"$f":"Import!M8742","v":0},{"$f":"Import!M9142","v":0},{"$f":"Import!M9542","v":0}]
[279,{"$f":"Import!M6743","v":"Select"},{"$f":"Import!M7143","v":"Select"},{"$f":"Import!M7543","v":"Select"},{"$f":"Import!M7943","v":0},{"$f":"Import!M8343","v":0},{"$f":"Import!M8743","v":0},{"$f":"Import!M9143","v":0},{"$f":"Import!M9543","v":0}]
[280,{"$f":"Import!M6744","v":"Select"},{"$f":"Import!M7144","v":"Select"},{"$f":"Import!M7544","v":"Select"},{"$f":"Import!M7944","v":0},{"$f":"Import!M8344","v":0},{"$f":"Import!M8744","v":0},{"$f":"Import!M9144","v":0},{"$f":"Import!M9544","v":0}]
[281,{"$f":"Import!M6745","v":"Select"},{"$f":"Import!M7145","v":"Select"},{"$f":"Import!M7545","v":"Select"},{"$f":"Import!M7945","v":0},{"$f":"Import!M8345","v":0},{"$f":"Import!M8745","v":0},{"$f":"Import!M9145","v":0},{"$f":"Import!M9545","v":0}]
[282,{"$f":"Import!M6746","v":"Select"},{"$f":"Import!M7146","v":"Select"},{"$f":"Import!M7546","v":"Select"},{"$f":"Import!M7946","v":0},{"$f":"Import!M8346","v":0},{"$f":"Import!M8746","v":0},{"$f":"Import!M9146","v":0},{"$f":"Import!M9546","v":0}]
[283,{"$f":"Import!M6747","v":"Select"},{"$f":"Import!M7147","v":"Select"},{"$f":"Import!M7547","v":"Select"},{"$f":"Import!M7947","v":0},{"$f":"Import!M8347","v":0},{"$f":"Import!M8747","v":0},{"$f":"Import!M9147","v":0},{"$f":"Import!M9547","v":0}]
[284,{"$f":"Import!M6748","v":"Select"},{"$f":"Import!M7148","v":"Select"},{"$f":"Import!M7548","v":"Select"},{"$f":"Import!M7948","v":0},{"$f":"Import!M8348","v":0},{"$f":"Import!M8748","v":0},{"$f":"Import!M9148","v":0},{"$f":"Import!M9548","v":0}]
[285,{"$f":"Import!M6749","v":"Select"},{"$f":"Import!M7149","v":"Select"},{"$f":"Import!M7549","v":"Select"},{"$f":"Import!M7949","v":0},{"$f":"Import!M8349","v":0},{"$f":"Import!M8749","v":0},{"$f":"Import!M9149","v":0},{"$f":"Import!M9549","v":0}]
[286,{"$f":"Import!M6750","v":"Select"},{"$f":"Import!M7150","v":"Select"},{"$f":"Import!M7550","v":"Select"},{"$f":"Import!M7950","v":0},{"$f":"Import!M8350","v":0},{"$f":"Import!M8750","v":0},{"$f":"Import!M9150","v":0},{"$f":"Import!M9550","v":0}]
[287,{"$f":"Import!M6751","v":"Select"},{"$f":"Import!M7151","v":"Select"},{"$f":"Import!M7551","v":"Select"},{"$f":"Import!M7951","v":0},{"$f":"Import!M8351","v":0},{"$f":"Import!M8751","v":0},{"$f":"Import!M9151","v":0},{"$f":"Import!M9551","v":0}]
[288,{"$f":"Import!M6752","v":"Select"},{"$f":"Import!M7152","v":"Select"},{"$f":"Import!M7552","v":"Select"},{"$f":"Import!M7952","v":0},{"$f":"Import!M8352","v":0},{"$f":"Import!M8752","v":0},{"$f":"Import!M9152","v":0},{"$f":"Import!M9552","v":0}]
[289,{"$f":"Import!M6753","v":"Select"},{"$f":"Import!M7153","v":"Select"},{"$f":"Import!M7553","v":"Select"},{"$f":"Import!M7953","v":0},{"$f":"Import!M8353","v":0},{"$f":"Import!M8753","v":0},{"$f":"Import!M9153","v":0},{"$f":"Import!M9553","v":0}]
[290,{"$f":"Import!M6754","v":"Select"},{"$f":"Import!M7154","v":"Select"},{"$f":"Import!M7554","v":"Select"},{"$f":"Import!M7954","v":0},{"$f":"Import!M8354","v":0},{"$f":"Import!M8754","v":0},{"$f":"Import!M9154","v":0},{"$f":"Import!M9554","v":0}]
[291,{"$f":"Import!M6755","v":"Select"},{"$f":"Import!M7155","v":"Select"},{"$f":"Import!M7555","v":"Select"},{"$f":"Import!M7955","v":0},{"$f":"Import!M8355","v":0},{"$f":"Import!M8755","v":0},{"$f":"Import!M9155","v":0},{"$f":"Import!M9555","v":0}]
[292,{"$f":"Import!M6756","v":"Select"},{"$f":"Import!M7156","v":"Select"},{"$f":"Import!M7556","v":"Select"},{"$f":"Import!M7956","v":0},{"$f":"Import!M8356","v":0},{"$f":"Import!M8756","v":0},{"$f":"Import!M9156","v":0},{"$f":"Import!M9556","v":0}]
[293,{"$f":"Import!M6757","v":"Select"},{"$f":"Import!M7157","v":"Select"},{"$f":"Import!M7557","v":"Select"},{"$f":"Import!M7957","v":0},{"$f":"Import!M8357","v":0},{"$f":"Import!M8757","v":0},{"$f":"Import!M9157","v":0},{"$f":"Import!M9557","v":0}]
[294,{"$f":"Import!M6758","v":"Select"},{"$f":"Import!M7158","v":"Select"},{"$f":"Import!M7558","v":"Select"},{"$f":"Import!M7958","v":0},{"$f":"Import!M8358","v":0},{"$f":"Import!M8758","v":0},{"$f":"Import!M9158","v":0},{"$f":"Import!M9558","v":0}]
[295,{"$f":"Import!M6759","v":"Select"},{"$f":"Import!M7159","v":"Select"},{"$f":"Import!M7559","v":"Select"},{"$f":"Import!M7959","v":0},{"$f":"Import!M8359","v":0},{"$f":"Import!M8759","v":0},{"$f":"Import!M9159","v":0},{"$f":"Import!M9559","v":0}]
[296,{"$f":"Import!M6760","v":"Select"},{"$f":"Import!M7160","v":"Select"},{"$f":"Import!M7560","v":"Select"},{"$f":"Import!M7960","v":0},{"$f":"Import!M8360","v":0},{"$f":"Import!M8760","v":0},{"$f":"Import!M9160","v":0},{"$f":"Import!M9560","v":0}]
[297,{"$f":"Import!M6761","v":"Select"},{"$f":"Import!M7161","v":"Select"},{"$f":"Import!M7561","v":"Select"},{"$f":"Import!M7961","v":0},{"$f":"Import!M8361","v":0},{"$f":"Import!M8761","v":0},{"$f":"Import!M9161","v":0},{"$f":"Import!M9561","v":0}]
[298,{"$f":"Import!M6762","v":"Select"},{"$f":"Import!M7162","v":"Select"},{"$f":"Import!M7562","v":"Select"},{"$f":"Import!M7962","v":0},{"$f":"Import!M8362","v":0},{"$f":"Import!M8762","v":0},{"$f":"Import!M9162","v":0},{"$f":"Import!M9562","v":0}]
[299,{"$f":"Import!M6763","v":"Select"},{"$f":"Import!M7163","v":"Select"},{"$f":"Import!M7563","v":"Select"},{"$f":"Import!M7963","v":0},{"$f":"Import!M8363","v":0},{"$f":"Import!M8763","v":0},{"$f":"Import!M9163","v":0},{"$f":"Import!M9563","v":0}]
[300,{"$f":"Import!M6764","v":"Select"},{"$f":"Import!M7164","v":"Select"},{"$f":"Import!M7564","v":"Select"},{"$f":"Import!M7964","v":0},{"$f":"Import!M8364","v":0},{"$f":"Import!M8764","v":0},{"$f":"Import!M9164","v":0},{"$f":"Import!M9564","v":0}]
[301,{"$f":"Import!M6765","v":"Select"},{"$f":"Import!M7165","v":"Select"},{"$f":"Import!M7565","v":"Select"},{"$f":"Import!M7965","v":0},{"$f":"Import!M8365","v":0},{"$f":"Import!M8765","v":0},{"$f":"Import!M9165","v":0},{"$f":"Import!M9565","v":0}]
[302,{"$f":"Import!M6766","v":"Select"},{"$f":"Import!M7166","v":"Select"},{"$f":"Import!M7566","v":"Select"},{"$f":"Import!M7966","v":0},{"$f":"Import!M8366","v":0},{"$f":"Import!M8766","v":0},{"$f":"Import!M9166","v":0},{"$f":"Import!M9566","v":0}]
[303,{"$f":"Import!M6767","v":"Select"},{"$f":"Import!M7167","v":"Select"},{"$f":"Import!M7567","v":"Select"},{"$f":"Import!M7967","v":0},{"$f":"Import!M8367","v":0},{"$f":"Import!M8767","v":0},{"$f":"Import!M9167","v":0},{"$f":"Import!M9567","v":0}]
[304,{"$f":"Import!M6768","v":"Select"},{"$f":"Import!M7168","v":"Select"},{"$f":"Import!M7568","v":"Select"},{"$f":"Import!M7968","v":0},{"$f":"Import!M8368","v":0},{"$f":"Import!M8768","v":0},{"$f":"Import!M9168","v":0},{"$f":"Import!M9568","v":0}]
[305,{"$f":"Import!M6769","v":"Select"},{"$f":"Import!M7169","v":"Select"},{"$f":"Import!M7569","v":"Select"},{"$f":"Import!M7969","v":0},{"$f":"Import!M8369","v":0},{"$f":"Import!M8769","v":0},{"$f":"Import!M9169","v":0},{"$f":"Import!M9569","v":0}]
[306,{"$f":"Import!M6770","v":"Select"},{"$f":"Import!M7170","v":"Select"},{"$f":"Import!M7570","v":"Select"},{"$f":"Import!M7970","v":0},{"$f":"Import!M8370","v":0},{"$f":"Import!M8770","v":0},{"$f":"Import!M9170","v":0},{"$f":"Import!M9570","v":0}]
[307,{"$f":"Import!M6771","v":"Select"},{"$f":"Import!M7171","v":"Select"},{"$f":"Import!M7571","v":"Select"},{"$f":"Import!M7971","v":0},{"$f":"Import!M8371","v":0},{"$f":"Import!M8771","v":0},{"$f":"Import!M9171","v":0},{"$f":"Import!M9571","v":0}]
[308,{"$f":"Import!M6772","v":"Select"},{"$f":"Import!M7172","v":"Select"},{"$f":"Import!M7572","v":"Select"},{"$f":"Import!M7972","v":0},{"$f":"Import!M8372","v":0},{"$f":"Import!M8772","v":0},{"$f":"Import!M9172","v":0},{"$f":"Import!M9572","v":0}]
[309,{"$f":"Import!M6773","v":"Select"},{"$f":"Import!M7173","v":"Select"},{"$f":"Import!M7573","v":"Select"},{"$f":"Import!M7973","v":0},{"$f":"Import!M8373","v":0},{"$f":"Import!M8773","v":0},{"$f":"Import!M9173","v":0},{"$f":"Import!M9573","v":0}]
[310,{"$f":"Import!M6774","v":"Select"},{"$f":"Import!M7174","v":"Select"},{"$f":"Import!M7574","v":"Select"},{"$f":"Import!M7974","v":0},{"$f":"Import!M8374","v":0},{"$f":"Import!M8774","v":0},{"$f":"Import!M9174","v":0},{"$f":"Import!M9574","v":0}]
[311,{"$f":"Import!M6775","v":"Select"},{"$f":"Import!M7175","v":"Select"},{"$f":"Import!M7575","v":"Select"},{"$f":"Import!M7975","v":0},{"$f":"Import!M8375","v":0},{"$f":"Import!M8775","v":0},{"$f":"Import!M9175","v":0},{"$f":"Import!M9575","v":0}]
[312,{"$f":"Import!M6776","v":"Select"},{"$f":"Import!M7176","v":"Select"},{"$f":"Import!M7576","v":"Select"},{"$f":"Import!M7976","v":0},{"$f":"Import!M8376","v":0},{"$f":"Import!M8776","v":0},{"$f":"Import!M9176","v":0},{"$f":"Import!M9576","v":0}]
[313,{"$f":"Import!M6777","v":"Select"},{"$f":"Import!M7177","v":"Select"},{"$f":"Import!M7577","v":"Select"},{"$f":"Import!M7977","v":0},{"$f":"Import!M8377","v":0},{"$f":"Import!M8777","v":0},{"$f":"Import!M9177","v":0},{"$f":"Import!M9577","v":0}]
[314,{"$f":"Import!M6778","v":"Select"},{"$f":"Import!M7178","v":"Select"},{"$f":"Import!M7578","v":"Select"},{"$f":"Import!M7978","v":0},{"$f":"Import!M8378","v":0},{"$f":"Import!M8778","v":0},{"$f":"Import!M9178","v":0},{"$f":"Import!M9578","v":0}]
[315,{"$f":"Import!M6779","v":"Select"},{"$f":"Import!M7179","v":"Select"},{"$f":"Import!M7579","v":"Select"},{"$f":"Import!M7979","v":0},{"$f":"Import!M8379","v":0},{"$f":"Import!M8779","v":0},{"$f":"Import!M9179","v":0},{"$f":"Import!M9579","v":0}]
[316,{"$f":"Import!M6780","v":"Select"},{"$f":"Import!M7180","v":"Select"},{"$f":"Import!M7580","v":"Select"},{"$f":"Import!M7980","v":0},{"$f":"Import!M8380","v":0},{"$f":"Import!M8780","v":0},{"$f":"Import!M9180","v":0},{"$f":"Import!M9580","v":0}]
[317,{"$f":"Import!M6781","v":"Select"},{"$f":"Import!M7181","v":"Select"},{"$f":"Import!M7581","v":"Select"},{"$f":"Import!M7981","v":0},{"$f":"Import!M8381","v":0},{"$f":"Import!M8781","v":0},{"$f":"Import!M9181","v":0},{"$f":"Import!M9581","v":0}]
[318,{"$f":"Import!M6782","v":"Select"},{"$f":"Import!M7182","v":"Select"},{"$f":"Import!M7582","v":"Select"},{"$f":"Import!M7982","v":0},{"$f":"Import!M8382","v":0},{"$f":"Import!M8782","v":0},{"$f":"Import!M9182","v":0},{"$f":"Import!M9582","v":0}]
[319,{"$f":"Import!M6783","v":"Select"},{"$f":"Import!M7183","v":"Select"},{"$f":"Import!M7583","v":"Select"},{"$f":"Import!M7983","v":0},{"$f":"Import!M8383","v":0},{"$f":"Import!M8783","v":0},{"$f":"Import!M9183","v":0},{"$f":"Import!M9583","v":0}]
[320,{"$f":"Import!M6784","v":"Select"},{"$f":"Import!M7184","v":"Select"},{"$f":"Import!M7584","v":"Select"},{"$f":"Import!M7984","v":0},{"$f":"Import!M8384","v":0},{"$f":"Import!M8784","v":0},{"$f":"Import!M9184","v":0},{"$f":"Import!M9584","v":0}]
[321,{"$f":"Import!M6785","v":"Select"},{"$f":"Import!M7185","v":"Select"},{"$f":"Import!M7585","v":"Select"},{"$f":"Import!M7985","v":0},{"$f":"Import!M8385","v":0},{"$f":"Import!M8785","v":0},{"$f":"Import!M9185","v":0},{"$f":"Import!M9585","v":0}]
[322,{"$f":"Import!M6786","v":"Select"},{"$f":"Import!M7186","v":"Select"},{"$f":"Import!M7586","v":"Select"},{"$f":"Import!M7986","v":0},{"$f":"Import!M8386","v":0},{"$f":"Import!M8786","v":0},{"$f":"Import!M9186","v":0},{"$f":"Import!M9586","v":0}]
[{"$f":"A540+1","v":323},{"$f":"Import!M6787","v":"Select"},{"$f":"Import!M7187","v":"Select"},{"$f":"Import!M7587","v":"Select"},{"$f":"Import!M7987","v":0},{"$f":"Import!M8387","v":0},{"$f":"Import!M8787","v":0},{"$f":"Import!M9187","v":0},{"$f":"Import!M9587","v":0}]
[324,{"$f":"Import!M6788","v":"Select"},{"$f":"Import!M7188","v":"Select"},{"$f":"Import!M7588","v":"Select"},{"$f":"Import!M7988","v":0},{"$f":"Import!M8388","v":0},{"$f":"Import!M8788","v":0},{"$f":"Import!M9188","v":0},{"$f":"Import!M9588","v":0}]
[325,{"$f":"Import!M6789","v":"Select"},{"$f":"Import!M7189","v":"Select"},{"$f":"Import!M7589","v":"Select"},{"$f":"Import!M7989","v":0},{"$f":"Import!M8389","v":0},{"$f":"Import!M8789","v":0},{"$f":"Import!M9189","v":0},{"$f":"Import!M9589","v":0}]
[326,{"$f":"Import!M6790","v":"Select"},{"$f":"Import!M7190","v":"Select"},{"$f":"Import!M7590","v":"Select"},{"$f":"Import!M7990","v":0},{"$f":"Import!M8390","v":0},{"$f":"Import!M8790","v":0},{"$f":"Import!M9190","v":0},{"$f":"Import!M9590","v":0}]
[327,{"$f":"Import!M6791","v":"Select"},{"$f":"Import!M7191","v":"Select"},{"$f":"Import!M7591","v":"Select"},{"$f":"Import!M7991","v":0},{"$f":"Import!M8391","v":0},{"$f":"Import!M8791","v":0},{"$f":"Import!M9191","v":0},{"$f":"Import!M9591","v":0}]
[328,{"$f":"Import!M6792","v":"Select"},{"$f":"Import!M7192","v":"Select"},{"$f":"Import!M7592","v":"Select"},{"$f":"Import!M7992","v":0},{"$f":"Import!M8392","v":0},{"$f":"Import!M8792","v":0},{"$f":"Import!M9192","v":0},{"$f":"Import!M9592","v":0}]
[329,{"$f":"Import!M6793","v":"Select"},{"$f":"Import!M7193","v":"Select"},{"$f":"Import!M7593","v":"Select"},{"$f":"Import!M7993","v":0},{"$f":"Import!M8393","v":0},{"$f":"Import!M8793","v":0},{"$f":"Import!M9193","v":0},{"$f":"Import!M9593","v":0}]
[330,{"$f":"Import!M6794","v":"Select"},{"$f":"Import!M7194","v":"Select"},{"$f":"Import!M7594","v":"Select"},{"$f":"Import!M7994","v":0},{"$f":"Import!M8394","v":0},{"$f":"Import!M8794","v":0},{"$f":"Import!M9194","v":0},{"$f":"Import!M9594","v":0}]
[331,{"$f":"Import!M6795","v":"Select"},{"$f":"Import!M7195","v":"Select"},{"$f":"Import!M7595","v":"Select"},{"$f":"Import!M7995","v":0},{"$f":"Import!M8395","v":0},{"$f":"Import!M8795","v":0},{"$f":"Import!M9195","v":0},{"$f":"Import!M9595","v":0}]
[332,{"$f":"Import!M6796","v":"Select"},{"$f":"Import!M7196","v":"Select"},{"$f":"Import!M7596","v":"Select"},{"$f":"Import!M7996","v":0},{"$f":"Import!M8396","v":0},{"$f":"Import!M8796","v":0},{"$f":"Import!M9196","v":0},{"$f":"Import!M9596","v":0}]
[333,{"$f":"Import!M6797","v":"Select"},{"$f":"Import!M7197","v":"Select"},{"$f":"Import!M7597","v":"Select"},{"$f":"Import!M7997","v":0},{"$f":"Import!M8397","v":0},{"$f":"Import!M8797","v":0},{"$f":"Import!M9197","v":0},{"$f":"Import!M9597","v":0}]
[334,{"$f":"Import!M6798","v":"Select"},{"$f":"Import!M7198","v":"Select"},{"$f":"Import!M7598","v":"Select"},{"$f":"Import!M7998","v":0},{"$f":"Import!M8398","v":0},{"$f":"Import!M8798","v":0},{"$f":"Import!M9198","v":0},{"$f":"Import!M9598","v":0}]
[335,{"$f":"Import!M6799","v":"Select"},{"$f":"Import!M7199","v":"Select"},{"$f":"Import!M7599","v":"Select"},{"$f":"Import!M7999","v":0},{"$f":"Import!M8399","v":0},{"$f":"Import!M8799","v":0},{"$f":"Import!M9199","v":0},{"$f":"Import!M9599","v":0}]
[336,{"$f":"Import!M6800","v":"Select"},{"$f":"Import!M7200","v":"Select"},{"$f":"Import!M7600","v":"Select"},{"$f":"Import!M8000","v":0},{"$f":"Import!M8400","v":0},{"$f":"Import!M8800","v":0},{"$f":"Import!M9200","v":0},{"$f":"Import!M9600","v":0}]
[337,{"$f":"Import!M6801","v":"Select"},{"$f":"Import!M7201","v":"Select"},{"$f":"Import!M7601","v":"Select"},{"$f":"Import!M8001","v":0},{"$f":"Import!M8401","v":0},{"$f":"Import!M8801","v":0},{"$f":"Import!M9201","v":0},{"$f":"Import!M9601","v":0}]
[338,{"$f":"Import!M6802","v":"Select"},{"$f":"Import!M7202","v":"Select"},{"$f":"Import!M7602","v":"Select"},{"$f":"Import!M8002","v":0},{"$f":"Import!M8402","v":0},{"$f":"Import!M8802","v":0},{"$f":"Import!M9202","v":0},{"$f":"Import!M9602","v":0}]
[339,{"$f":"Import!M6803","v":"Select"},{"$f":"Import!M7203","v":"Select"},{"$f":"Import!M7603","v":"Select"},{"$f":"Import!M8003","v":0},{"$f":"Import!M8403","v":0},{"$f":"Import!M8803","v":0},{"$f":"Import!M9203","v":0},{"$f":"Import!M9603","v":0}]
[340,{"$f":"Import!M6804","v":"Select"},{"$f":"Import!M7204","v":"Select"},{"$f":"Import!M7604","v":"Select"},{"$f":"Import!M8004","v":0},{"$f":"Import!M8404","v":0},{"$f":"Import!M8804","v":0},{"$f":"Import!M9204","v":0},{"$f":"Import!M9604","v":0}]
[341,{"$f":"Import!M6805","v":"Select"},{"$f":"Import!M7205","v":"Select"},{"$f":"Import!M7605","v":"Select"},{"$f":"Import!M8005","v":0},{"$f":"Import!M8405","v":0},{"$f":"Import!M8805","v":0},{"$f":"Import!M9205","v":0},{"$f":"Import!M9605","v":0}]
[342,{"$f":"Import!M6806","v":"Select"},{"$f":"Import!M7206","v":"Select"},{"$f":"Import!M7606","v":"Select"},{"$f":"Import!M8006","v":0},{"$f":"Import!M8406","v":0},{"$f":"Import!M8806","v":0},{"$f":"Import!M9206","v":0},{"$f":"Import!M9606","v":0}]
[343,{"$f":"Import!M6807","v":"Select"},{"$f":"Import!M7207","v":"Select"},{"$f":"Import!M7607","v":"Select"},{"$f":"Import!M8007","v":0},{"$f":"Import!M8407","v":0},{"$f":"Import!M8807","v":0},{"$f":"Import!M9207","v":0},{"$f":"Import!M9607","v":0}]
[344,{"$f":"Import!M6808","v":"Select"},{"$f":"Import!M7208","v":"Select"},{"$f":"Import!M7608","v":"Select"},{"$f":"Import!M8008","v":0},{"$f":"Import!M8408","v":0},{"$f":"Import!M8808","v":0},{"$f":"Import!M9208","v":0},{"$f":"Import!M9608","v":0}]
[345,{"$f":"Import!M6809","v":"Select"},{"$f":"Import!M7209","v":"Select"},{"$f":"Import!M7609","v":"Select"},{"$f":"Import!M8009","v":0},{"$f":"Import!M8409","v":0},{"$f":"Import!M8809","v":0},{"$f":"Import!M9209","v":0},{"$f":"Import!M9609","v":0}]
[346,{"$f":"Import!M6810","v":"Select"},{"$f":"Import!M7210","v":"Select"},{"$f":"Import!M7610","v":"Select"},{"$f":"Import!M8010","v":0},{"$f":"Import!M8410","v":0},{"$f":"Import!M8810","v":0},{"$f":"Import!M9210","v":0},{"$f":"Import!M9610","v":0}]
[347,{"$f":"Import!M6811","v":"Select"},{"$f":"Import!M7211","v":"Select"},{"$f":"Import!M7611","v":"Select"},{"$f":"Import!M8011","v":0},{"$f":"Import!M8411","v":0},{"$f":"Import!M8811","v":0},{"$f":"Import!M9211","v":0},{"$f":"Import!M9611","v":0}]
[348,{"$f":"Import!M6812","v":"Select"},{"$f":"Import!M7212","v":"Select"},{"$f":"Import!M7612","v":"Select"},{"$f":"Import!M8012","v":0},{"$f":"Import!M8412","v":0},{"$f":"Import!M8812","v":0},{"$f":"Import!M9212","v":0},{"$f":"Import!M9612","v":0}]
[349,{"$f":"Import!M6813","v":"Select"},{"$f":"Import!M7213","v":"Select"},{"$f":"Import!M7613","v":"Select"},{"$f":"Import!M8013","v":0},{"$f":"Import!M8413","v":0},{"$f":"Import!M8813","v":0},{"$f":"Import!M9213","v":0},{"$f":"Import!M9613","v":0}]
[350,{"$f":"Import!M6814","v":"Select"},{"$f":"Import!M7214","v":"Select"},{"$f":"Import!M7614","v":"Select"},{"$f":"Import!M8014","v":0},{"$f":"Import!M8414","v":0},{"$f":"Import!M8814","v":0},{"$f":"Import!M9214","v":0},{"$f":"Import!M9614","v":0}]
[351,{"$f":"Import!M6815","v":"Select"},{"$f":"Import!M7215","v":"Select"},{"$f":"Import!M7615","v":"Select"},{"$f":"Import!M8015","v":0},{"$f":"Import!M8415","v":0},{"$f":"Import!M8815","v":0},{"$f":"Import!M9215","v":0},{"$f":"Import!M9615","v":0}]
[352,{"$f":"Import!M6816","v":"Select"},{"$f":"Import!M7216","v":"Select"},{"$f":"Import!M7616","v":"Select"},{"$f":"Import!M8016","v":0},{"$f":"Import!M8416","v":0},{"$f":"Import!M8816","v":0},{"$f":"Import!M9216","v":0},{"$f":"Import!M9616","v":0}]
[353,{"$f":"Import!M6817","v":"Select"},{"$f":"Import!M7217","v":"Select"},{"$f":"Import!M7617","v":"Select"},{"$f":"Import!M8017","v":0},{"$f":"Import!M8417","v":0},{"$f":"Import!M8817","v":0},{"$f":"Import!M9217","v":0},{"$f":"Import!M9617","v":0}]
[354,{"$f":"Import!M6818","v":"Select"},{"$f":"Import!M7218","v":"Select"},{"$f":"Import!M7618","v":"Select"},{"$f":"Import!M8018","v":0},{"$f":"Import!M8418","v":0},{"$f":"Import!M8818","v":0},{"$f":"Import!M9218","v":0},{"$f":"Import!M9618","v":0}]
[355,{"$f":"Import!M6819","v":"Select"},{"$f":"Import!M7219","v":"Select"},{"$f":"Import!M7619","v":"Select"},{"$f":"Import!M8019","v":0},{"$f":"Import!M8419","v":0},{"$f":"Import!M8819","v":0},{"$f":"Import!M9219","v":0},{"$f":"Import!M9619","v":0}]
[356,{"$f":"Import!M6820","v":"Select"},{"$f":"Import!M7220","v":"Select"},{"$f":"Import!M7620","v":"Select"},{"$f":"Import!M8020","v":0},{"$f":"Import!M8420","v":0},{"$f":"Import!M8820","v":0},{"$f":"Import!M9220","v":0},{"$f":"Import!M9620","v":0}]
[357,{"$f":"Import!M6821","v":"Select"},{"$f":"Import!M7221","v":"Select"},{"$f":"Import!M7621","v":"Select"},{"$f":"Import!M8021","v":0},{"$f":"Import!M8421","v":0},{"$f":"Import!M8821","v":0},{"$f":"Import!M9221","v":0},{"$f":"Import!M9621","v":0}]
[358,{"$f":"Import!M6822","v":"Select"},{"$f":"Import!M7222","v":"Select"},{"$f":"Import!M7622","v":"Select"},{"$f":"Import!M8022","v":0},{"$f":"Import!M8422","v":0},{"$f":"Import!M8822","v":0},{"$f":"Import!M9222","v":0},{"$f":"Import!M9622","v":0}]
[359,{"$f":"Import!M6823","v":"Select"},{"$f":"Import!M7223","v":"Select"},{"$f":"Import!M7623","v":"Select"},{"$f":"Import!M8023","v":0},{"$f":"Import!M8423","v":0},{"$f":"Import!M8823","v":0},{"$f":"Import!M9223","v":0},{"$f":"Import!M9623","v":0}]
[360,{"$f":"Import!M6824","v":"Select"},{"$f":"Import!M7224","v":"Select"},{"$f":"Import!M7624","v":"Select"},{"$f":"Import!M8024","v":0},{"$f":"Import!M8424","v":0},{"$f":"Import!M8824","v":0},{"$f":"Import!M9224","v":0},{"$f":"Import!M9624","v":0}]
[361,{"$f":"Import!M6825","v":"Select"},{"$f":"Import!M7225","v":"Select"},{"$f":"Import!M7625","v":"Select"},{"$f":"Import!M8025","v":0},{"$f":"Import!M8425","v":0},{"$f":"Import!M8825","v":0},{"$f":"Import!M9225","v":0},{"$f":"Import!M9625","v":0}]
[362,{"$f":"Import!M6826","v":"Select"},{"$f":"Import!M7226","v":"Select"},{"$f":"Import!M7626","v":"Select"},{"$f":"Import!M8026","v":0},{"$f":"Import!M8426","v":0},{"$f":"Import!M8826","v":0},{"$f":"Import!M9226","v":0},{"$f":"Import!M9626","v":0}]
[363,{"$f":"Import!M6827","v":"Select"},{"$f":"Import!M7227","v":"Select"},{"$f":"Import!M7627","v":"Select"},{"$f":"Import!M8027","v":0},{"$f":"Import!M8427","v":0},{"$f":"Import!M8827","v":0},{"$f":"Import!M9227","v":0},{"$f":"Import!M9627","v":0}]
[364,{"$f":"Import!M6828","v":"Select"},{"$f":"Import!M7228","v":"Select"},{"$f":"Import!M7628","v":"Select"},{"$f":"Import!M8028","v":0},{"$f":"Import!M8428","v":0},{"$f":"Import!M8828","v":0},{"$f":"Import!M9228","v":0},{"$f":"Import!M9628","v":0}]
[365,{"$f":"Import!M6829","v":"Select"},{"$f":"Import!M7229","v":"Select"},{"$f":"Import!M7629","v":"Select"},{"$f":"Import!M8029","v":0},{"$f":"Import!M8429","v":0},{"$f":"Import!M8829","v":0},{"$f":"Import!M9229","v":0},{"$f":"Import!M9629","v":0}]
[366,{"$f":"Import!M6830","v":"Select"},{"$f":"Import!M7230","v":"Select"},{"$f":"Import!M7630","v":"Select"},{"$f":"Import!M8030","v":0},{"$f":"Import!M8430","v":0},{"$f":"Import!M8830","v":0},{"$f":"Import!M9230","v":0},{"$f":"Import!M9630","v":0}]
[367,{"$f":"Import!M6831","v":"Select"},{"$f":"Import!M7231","v":"Select"},{"$f":"Import!M7631","v":"Select"},{"$f":"Import!M8031","v":0},{"$f":"Import!M8431","v":0},{"$f":"Import!M8831","v":0},{"$f":"Import!M9231","v":0},{"$f":"Import!M9631","v":0}]
[368,{"$f":"Import!M6832","v":"Select"},{"$f":"Import!M7232","v":"Select"},{"$f":"Import!M7632","v":"Select"},{"$f":"Import!M8032","v":0},{"$f":"Import!M8432","v":0},{"$f":"Import!M8832","v":0},{"$f":"Import!M9232","v":0},{"$f":"Import!M9632","v":0}]
[369,{"$f":"Import!M6833","v":"Select"},{"$f":"Import!M7233","v":"Select"},{"$f":"Import!M7633","v":"Select"},{"$f":"Import!M8033","v":0},{"$f":"Import!M8433","v":0},{"$f":"Import!M8833","v":0},{"$f":"Import!M9233","v":0},{"$f":"Import!M9633","v":0}]
[370,{"$f":"Import!M6834","v":"Select"},{"$f":"Import!M7234","v":"Select"},{"$f":"Import!M7634","v":"Select"},{"$f":"Import!M8034","v":0},{"$f":"Import!M8434","v":0},{"$f":"Import!M8834","v":0},{"$f":"Import!M9234","v":0},{"$f":"Import!M9634","v":0}]
[371,{"$f":"Import!M6835","v":"Select"},{"$f":"Import!M7235","v":"Select"},{"$f":"Import!M7635","v":"Select"},{"$f":"Import!M8035","v":0},{"$f":"Import!M8435","v":0},{"$f":"Import!M8835","v":0},{"$f":"Import!M9235","v":0},{"$f":"Import!M9635","v":0}]
[372,{"$f":"Import!M6836","v":"Select"},{"$f":"Import!M7236","v":"Select"},{"$f":"Import!M7636","v":"Select"},{"$f":"Import!M8036","v":0},{"$f":"Import!M8436","v":0},{"$f":"Import!M8836","v":0},{"$f":"Import!M9236","v":0},{"$f":"Import!M9636","v":0}]
[373,{"$f":"Import!M6837","v":"Select"},{"$f":"Import!M7237","v":"Select"},{"$f":"Import!M7637","v":"Select"},{"$f":"Import!M8037","v":0},{"$f":"Import!M8437","v":0},{"$f":"Import!M8837","v":0},{"$f":"Import!M9237","v":0},{"$f":"Import!M9637","v":0}]
[374,{"$f":"Import!M6838","v":"Select"},{"$f":"Import!M7238","v":"Select"},{"$f":"Import!M7638","v":"Select"},{"$f":"Import!M8038","v":0},{"$f":"Import!M8438","v":0},{"$f":"Import!M8838","v":0},{"$f":"Import!M9238","v":0},{"$f":"Import!M9638","v":0}]
[375,{"$f":"Import!M6839","v":"Select"},{"$f":"Import!M7239","v":"Select"},{"$f":"Import!M7639","v":"Select"},{"$f":"Import!M8039","v":0},{"$f":"Import!M8439","v":0},{"$f":"Import!M8839","v":0},{"$f":"Import!M9239","v":0},{"$f":"Import!M9639","v":0}]
[376,{"$f":"Import!M6840","v":"Select"},{"$f":"Import!M7240","v":"Select"},{"$f":"Import!M7640","v":"Select"},{"$f":"Import!M8040","v":0},{"$f":"Import!M8440","v":0},{"$f":"Import!M8840","v":0},{"$f":"Import!M9240","v":0},{"$f":"Import!M9640","v":0}]
[377,{"$f":"Import!M6841","v":"Select"},{"$f":"Import!M7241","v":"Select"},{"$f":"Import!M7641","v":"Select"},{"$f":"Import!M8041","v":0},{"$f":"Import!M8441","v":0},{"$f":"Import!M8841","v":0},{"$f":"Import!M9241","v":0},{"$f":"Import!M9641","v":0}]
[378,{"$f":"Import!M6842","v":"Select"},{"$f":"Import!M7242","v":"Select"},{"$f":"Import!M7642","v":"Select"},{"$f":"Import!M8042","v":0},{"$f":"Import!M8442","v":0},{"$f":"Import!M8842","v":0},{"$f":"Import!M9242","v":0},{"$f":"Import!M9642","v":0}]
[379,{"$f":"Import!M6843","v":"Select"},{"$f":"Import!M7243","v":"Select"},{"$f":"Import!M7643","v":"Select"},{"$f":"Import!M8043","v":0},{"$f":"Import!M8443","v":0},{"$f":"Import!M8843","v":0},{"$f":"Import!M9243","v":0},{"$f":"Import!M9643","v":0}]
[380,{"$f":"Import!M6844","v":"Select"},{"$f":"Import!M7244","v":"Select"},{"$f":"Import!M7644","v":"Select"},{"$f":"Import!M8044","v":0},{"$f":"Import!M8444","v":0},{"$f":"Import!M8844","v":0},{"$f":"Import!M9244","v":0},{"$f":"Import!M9644","v":0}]
[381,{"$f":"Import!M6845","v":"Select"},{"$f":"Import!M7245","v":"Select"},{"$f":"Import!M7645","v":"Select"},{"$f":"Import!M8045","v":0},{"$f":"Import!M8445","v":0},{"$f":"Import!M8845","v":0},{"$f":"Import!M9245","v":0},{"$f":"Import!M9645","v":0}]
[382,{"$f":"Import!M6846","v":"Select"},{"$f":"Import!M7246","v":"Select"},{"$f":"Import!M7646","v":"Select"},{"$f":"Import!M8046","v":0},{"$f":"Import!M8446","v":0},{"$f":"Import!M8846","v":0},{"$f":"Import!M9246","v":0},{"$f":"Import!M9646","v":0}]
[383,{"$f":"Import!M6847","v":"Select"},{"$f":"Import!M7247","v":"Select"},{"$f":"Import!M7647","v":"Select"},{"$f":"Import!M8047","v":0},{"$f":"Import!M8447","v":0},{"$f":"Import!M8847","v":0},{"$f":"Import!M9247","v":0},{"$f":"Import!M9647","v":0}]
[384,{"$f":"Import!M6848","v":"Select"},{"$f":"Import!M7248","v":"Select"},{"$f":"Import!M7648","v":"Select"},{"$f":"Import!M8048","v":0},{"$f":"Import!M8448","v":0},{"$f":"Import!M8848","v":0},{"$f":"Import!M9248","v":0},{"$f":"Import!M9648","v":0}]
[385,{"$f":"Import!M6849","v":"Select"},{"$f":"Import!M7249","v":"Select"},{"$f":"Import!M7649","v":"Select"},{"$f":"Import!M8049","v":0},{"$f":"Import!M8449","v":0},{"$f":"Import!M8849","v":0},{"$f":"Import!M9249","v":0},{"$f":"Import!M9649","v":0}]
[386,{"$f":"Import!M6850","v":"Select"},{"$f":"Import!M7250","v":"Select"},{"$f":"Import!M7650","v":"Select"},{"$f":"Import!M8050","v":0},{"$f":"Import!M8450","v":0},{"$f":"Import!M8850","v":0},{"$f":"Import!M9250","v":0},{"$f":"Import!M9650","v":0}]
[{"$f":"A604+1","v":387},{"$f":"Import!M6851","v":"Select"},{"$f":"Import!M7251","v":"Select"},{"$f":"Import!M7651","v":"Select"},{"$f":"Import!M8051","v":0},{"$f":"Import!M8451","v":0},{"$f":"Import!M8851","v":0},{"$f":"Import!M9251","v":0},{"$f":"Import!M9651","v":0}]
[388,{"$f":"Import!M6852","v":"Select"},{"$f":"Import!M7252","v":"Select"},{"$f":"Import!M7652","v":"Select"},{"$f":"Import!M8052","v":0},{"$f":"Import!M8452","v":0},{"$f":"Import!M8852","v":0},{"$f":"Import!M9252","v":0},{"$f":"Import!M9652","v":0}]
[389,{"$f":"Import!M6853","v":"Select"},{"$f":"Import!M7253","v":"Select"},{"$f":"Import!M7653","v":"Select"},{"$f":"Import!M8053","v":0},{"$f":"Import!M8453","v":0},{"$f":"Import!M8853","v":0},{"$f":"Import!M9253","v":0},{"$f":"Import!M9653","v":0}]
[390,{"$f":"Import!M6854","v":"Select"},{"$f":"Import!M7254","v":"Select"},{"$f":"Import!M7654","v":"Select"},{"$f":"Import!M8054","v":0},{"$f":"Import!M8454","v":0},{"$f":"Import!M8854","v":0},{"$f":"Import!M9254","v":0},{"$f":"Import!M9654","v":0}]
[391,{"$f":"Import!M6855","v":"Select"},{"$f":"Import!M7255","v":"Select"},{"$f":"Import!M7655","v":"Select"},{"$f":"Import!M8055","v":0},{"$f":"Import!M8455","v":0},{"$f":"Import!M8855","v":0},{"$f":"Import!M9255","v":0},{"$f":"Import!M9655","v":0}]
[392,{"$f":"Import!M6856","v":"Select"},{"$f":"Import!M7256","v":"Select"},{"$f":"Import!M7656","v":"Select"},{"$f":"Import!M8056","v":0},{"$f":"Import!M8456","v":0},{"$f":"Import!M8856","v":0},{"$f":"Import!M9256","v":0},{"$f":"Import!M9656","v":0}]
[393,{"$f":"Import!M6857","v":"Select"},{"$f":"Import!M7257","v":"Select"},{"$f":"Import!M7657","v":"Select"},{"$f":"Import!M8057","v":0},{"$f":"Import!M8457","v":0},{"$f":"Import!M8857","v":0},{"$f":"Import!M9257","v":0},{"$f":"Import!M9657","v":0}]
[394,{"$f":"Import!M6858","v":"Select"},{"$f":"Import!M7258","v":"Select"},{"$f":"Import!M7658","v":"Select"},{"$f":"Import!M8058","v":0},{"$f":"Import!M8458","v":0},{"$f":"Import!M8858","v":0},{"$f":"Import!M9258","v":0},{"$f":"Import!M9658","v":0}]
[395,{"$f":"Import!M6859","v":"Select"},{"$f":"Import!M7259","v":"Select"},{"$f":"Import!M7659","v":"Select"},{"$f":"Import!M8059","v":0},{"$f":"Import!M8459","v":0},{"$f":"Import!M8859","v":0},{"$f":"Import!M9259","v":0},{"$f":"Import!M9659","v":0}]
[396,{"$f":"Import!M6860","v":"Select"},{"$f":"Import!M7260","v":"Select"},{"$f":"Import!M7660","v":"Select"},{"$f":"Import!M8060","v":0},{"$f":"Import!M8460","v":0},{"$f":"Import!M8860","v":0},{"$f":"Import!M9260","v":0},{"$f":"Import!M9660","v":0}]
[397,{"$f":"Import!M6861","v":"Select"},{"$f":"Import!M7261","v":"Select"},{"$f":"Import!M7661","v":"Select"},{"$f":"Import!M8061","v":0},{"$f":"Import!M8461","v":0},{"$f":"Import!M8861","v":0},{"$f":"Import!M9261","v":0},{"$f":"Import!M9661","v":0}]
[398,{"$f":"Import!M6862","v":"Select"},{"$f":"Import!M7262","v":"Select"},{"$f":"Import!M7662","v":"Select"},{"$f":"Import!M8062","v":0},{"$f":"Import!M8462","v":0},{"$f":"Import!M8862","v":0},{"$f":"Import!M9262","v":0},{"$f":"Import!M9662","v":0}]
[399,{"$f":"Import!M6863","v":"Select"},{"$f":"Import!M7263","v":"Select"},{"$f":"Import!M7663","v":"Select"},{"$f":"Import!M8063","v":0},{"$f":"Import!M8463","v":0},{"$f":"Import!M8863","v":0},{"$f":"Import!M9263","v":0},{"$f":"Import!M9663","v":0}]
[400,{"$f":"Import!M6864","v":"Select"},{"$f":"Import!M7264","v":"Select"},{"$f":"Import!M7664","v":"Select"},{"$f":"Import!M8064","v":0},{"$f":"Import!M8464","v":0},{"$f":"Import!M8864","v":0},{"$f":"Import!M9264","v":0},{"$f":"Import!M9664","v":0}]
[]
[null,"Total Bonds and Debentures",null,null,{"$f":"SUM(E219:E618)","v":0},{"$f":"SUM(F219:F618)","v":0},{"$f":"IFERROR(SUMPRODUCT(G219:G618,$F219:$F618)/SUM($F219:$F618),0)","v":0},{"$f":"IFERROR(SUMPRODUCT(H219:H618,$F219:$F618)/SUM($F219:$F618),0)","v":0}]
[]
[null,"- ADDITIONAL INFORMATION ON SOVEREIGN DEBT EXPOSURES"]
[]
[null,null,"Enter # of Asset Types",{"$f":"Import!M9665","v":0}]
[null,null,null,null,null,{"$f":"YEAR($C$3)","v":2023}]
[null,null,"Country","Currency","BSCR Rating","Fair Value","Comments"]
[null,1,{"$f":"Import!M9666","v":"Select"},{"$f":"Import!M9866","v":"Select"},{"$f":"Import!M10066","v":"Select"},{"$f":"Import!M10266","v":0},{"$f":"Import!M10466","v":0}]
[null,{"$f":"B627+1","v":2},{"$f":"Import!M9667","v":"Select"},{"$f":"Import!M9867","v":"Select"},{"$f":"Import!M10067","v":"Select"},{"$f":"Import!M10267","v":0},{"$f":"Import!M10467","v":0}]
[null,{"$f":"B628+1","v":3},{"$f":"Import!M9668","v":"Select"},{"$f":"Import!M9868","v":"Select"},{"$f":"Import!M10068","v":"Select"},{"$f":"Import!M10268","v":0},{"$f":"Import!M10468","v":0}]
[null,4,{"$f":"Import!M9669","v":"Select"},{"$f":"Import!M9869","v":"Select"},{"$f":"Import!M10069","v":"Select"},{"$f":"Import!M10269","v":0},{"$f":"Import!M10469","v":0}]
[null,5,{"$f":"Import!M9670","v":"Select"},{"$f":"Import!M9870","v":"Select"},{"$f":"Import!M10070","v":"Select"},{"$f":"Import!M10270","v":0},{"$f":"Import!M10470","v":0}]
[null,6,{"$f":"Import!M9671","v":"Select"},{"$f":"Import!M9871","v":"Select"},{"$f":"Import!M10071","v":"Select"},{"$f":"Import!M10271","v":0},{"$f":"Import!M10471","v":0}]
[null,7,{"$f":"Import!M9672","v":"Select"},{"$f":"Import!M9872","v":"Select"},{"$f":"Import!M10072","v":"Select"},{"$f":"Import!M10272","v":0},{"$f":"Import!M10472","v":0}]
[null,8,{"$f":"Import!M9673","v":"Select"},{"$f":"Import!M9873","v":"Select"},{"$f":"Import!M10073","v":"Select"},{"$f":"Import!M10273","v":0},{"$f":"Import!M10473","v":0}]
[null,9,{"$f":"Import!M9674","v":"Select"},{"$f":"Import!M9874","v":"Select"},{"$f":"Import!M10074","v":"Select"},{"$f":"Import!M10274","v":0},{"$f":"Import!M10474","v":0}]
[null,10,{"$f":"Import!M9675","v":"Select"},{"$f":"Import!M9875","v":"Select"},{"$f":"Import!M10075","v":"Select"},{"$f":"Import!M10275","v":0},{"$f":"Import!M10475","v":0}]
[null,11,{"$f":"Import!M9676","v":"Select"},{"$f":"Import!M9876","v":"Select"},{"$f":"Import!M10076","v":"Select"},{"$f":"Import!M10276","v":0},{"$f":"Import!M10476","v":0}]
[null,12,{"$f":"Import!M9677","v":"Select"},{"$f":"Import!M9877","v":"Select"},{"$f":"Import!M10077","v":"Select"},{"$f":"Import!M10277","v":0},{"$f":"Import!M10477","v":0}]
[null,13,{"$f":"Import!M9678","v":"Select"},{"$f":"Import!M9878","v":"Select"},{"$f":"Import!M10078","v":"Select"},{"$f":"Import!M10278","v":0},{"$f":"Import!M10478","v":0}]
[null,14,{"$f":"Import!M9679","v":"Select"},{"$f":"Import!M9879","v":"Select"},{"$f":"Import!M10079","v":"Select"},{"$f":"Import!M10279","v":0},{"$f":"Import!M10479","v":0}]
[null,15,{"$f":"Import!M9680","v":"Select"},{"$f":"Import!M9880","v":"Select"},{"$f":"Import!M10080","v":"Select"},{"$f":"Import!M10280","v":0},{"$f":"Import!M10480","v":0}]
[null,16,{"$f":"Import!M9681","v":"Select"},{"$f":"Import!M9881","v":"Select"},{"$f":"Import!M10081","v":"Select"},{"$f":"Import!M10281","v":0},{"$f":"Import!M10481","v":0}]
[null,17,{"$f":"Import!M9682","v":"Select"},{"$f":"Import!M9882","v":"Select"},{"$f":"Import!M10082","v":"Select"},{"$f":"Import!M10282","v":0},{"$f":"Import!M10482","v":0}]
[null,18,{"$f":"Import!M9683","v":"Select"},{"$f":"Import!M9883","v":"Select"},{"$f":"Import!M10083","v":"Select"},{"$f":"Import!M10283","v":0},{"$f":"Import!M10483","v":0}]
[null,19,{"$f":"Import!M9684","v":"Select"},{"$f":"Import!M9884","v":"Select"},{"$f":"Import!M10084","v":"Select"},{"$f":"Import!M10284","v":0},{"$f":"Import!M10484","v":0}]
[null,20,{"$f":"Import!M9685","v":"Select"},{"$f":"Import!M9885","v":"Select"},{"$f":"Import!M10085","v":"Select"},{"$f":"Import!M10285","v":0},{"$f":"Import!M10485","v":0}]
[null,21,{"$f":"Import!M9686","v":"Select"},{"$f":"Import!M9886","v":"Select"},{"$f":"Import!M10086","v":"Select"},{"$f":"Import!M10286","v":0},{"$f":"Import!M10486","v":0}]
[null,22,{"$f":"Import!M9687","v":"Select"},{"$f":"Import!M9887","v":"Select"},{"$f":"Import!M10087","v":"Select"},{"$f":"Import!M10287","v":0},{"$f":"Import!M10487","v":0}]
[null,23,{"$f":"Import!M9688","v":"Select"},{"$f":"Import!M9888","v":"Select"},{"$f":"Import!M10088","v":"Select"},{"$f":"Import!M10288","v":0},{"$f":"Import!M10488","v":0}]
[null,24,{"$f":"Import!M9689","v":"Select"},{"$f":"Import!M9889","v":"Select"},{"$f":"Import!M10089","v":"Select"},{"$f":"Import!M10289","v":0},{"$f":"Import!M10489","v":0}]
[null,25,{"$f":"Import!M9690","v":"Select"},{"$f":"Import!M9890","v":"Select"},{"$f":"Import!M10090","v":"Select"},{"$f":"Import!M10290","v":0},{"$f":"Import!M10490","v":0}]
[null,26,{"$f":"Import!M9691","v":"Select"},{"$f":"Import!M9891","v":"Select"},{"$f":"Import!M10091","v":"Select"},{"$f":"Import!M10291","v":0},{"$f":"Import!M10491","v":0}]
[null,27,{"$f":"Import!M9692","v":"Select"},{"$f":"Import!M9892","v":"Select"},{"$f":"Import!M10092","v":"Select"},{"$f":"Import!M10292","v":0},{"$f":"Import!M10492","v":0}]
[null,28,{"$f":"Import!M9693","v":"Select"},{"$f":"Import!M9893","v":"Select"},{"$f":"Import!M10093","v":"Select"},{"$f":"Import!M10293","v":0},{"$f":"Import!M10493","v":0}]
[null,29,{"$f":"Import!M9694","v":"Select"},{"$f":"Import!M9894","v":"Select"},{"$f":"Import!M10094","v":"Select"},{"$f":"Import!M10294","v":0},{"$f":"Import!M10494","v":0}]
[null,30,{"$f":"Import!M9695","v":"Select"},{"$f":"Import!M9895","v":"Select"},{"$f":"Import!M10095","v":"Select"},{"$f":"Import!M10295","v":0},{"$f":"Import!M10495","v":0}]
[null,31,{"$f":"Import!M9696","v":"Select"},{"$f":"Import!M9896","v":"Select"},{"$f":"Import!M10096","v":"Select"},{"$f":"Import!M10296","v":0},{"$f":"Import!M10496","v":0}]
[null,32,{"$f":"Import!M9697","v":"Select"},{"$f":"Import!M9897","v":"Select"},{"$f":"Import!M10097","v":"Select"},{"$f":"Import!M10297","v":0},{"$f":"Import!M10497","v":0}]
[null,33,{"$f":"Import!M9698","v":"Select"},{"$f":"Import!M9898","v":"Select"},{"$f":"Import!M10098","v":"Select"},{"$f":"Import!M10298","v":0},{"$f":"Import!M10498","v":0}]
[null,34,{"$f":"Import!M9699","v":"Select"},{"$f":"Import!M9899","v":"Select"},{"$f":"Import!M10099","v":"Select"},{"$f":"Import!M10299","v":0},{"$f":"Import!M10499","v":0}]
[null,35,{"$f":"Import!M9700","v":"Select"},{"$f":"Import!M9900","v":"Select"},{"$f":"Import!M10100","v":"Select"},{"$f":"Import!M10300","v":0},{"$f":"Import!M10500","v":0}]
[null,36,{"$f":"Import!M9701","v":"Select"},{"$f":"Import!M9901","v":"Select"},{"$f":"Import!M10101","v":"Select"},{"$f":"Import!M10301","v":0},{"$f":"Import!M10501","v":0}]
[null,37,{"$f":"Import!M9702","v":"Select"},{"$f":"Import!M9902","v":"Select"},{"$f":"Import!M10102","v":"Select"},{"$f":"Import!M10302","v":0},{"$f":"Import!M10502","v":0}]
[null,38,{"$f":"Import!M9703","v":"Select"},{"$f":"Import!M9903","v":"Select"},{"$f":"Import!M10103","v":"Select"},{"$f":"Import!M10303","v":0},{"$f":"Import!M10503","v":0}]
[null,39,{"$f":"Import!M9704","v":"Select"},{"$f":"Import!M9904","v":"Select"},{"$f":"Import!M10104","v":"Select"},{"$f":"Import!M10304","v":0},{"$f":"Import!M10504","v":0}]
[null,40,{"$f":"Import!M9705","v":"Select"},{"$f":"Import!M9905","v":"Select"},{"$f":"Import!M10105","v":"Select"},{"$f":"Import!M10305","v":0},{"$f":"Import!M10505","v":0}]
[null,41,{"$f":"Import!M9706","v":"Select"},{"$f":"Import!M9906","v":"Select"},{"$f":"Import!M10106","v":"Select"},{"$f":"Import!M10306","v":0},{"$f":"Import!M10506","v":0}]
[null,42,{"$f":"Import!M9707","v":"Select"},{"$f":"Import!M9907","v":"Select"},{"$f":"Import!M10107","v":"Select"},{"$f":"Import!M10307","v":0},{"$f":"Import!M10507","v":0}]
[null,43,{"$f":"Import!M9708","v":"Select"},{"$f":"Import!M9908","v":"Select"},{"$f":"Import!M10108","v":"Select"},{"$f":"Import!M10308","v":0},{"$f":"Import!M10508","v":0}]
[null,44,{"$f":"Import!M9709","v":"Select"},{"$f":"Import!M9909","v":"Select"},{"$f":"Import!M10109","v":"Select"},{"$f":"Import!M10309","v":0},{"$f":"Import!M10509","v":0}]
[null,45,{"$f":"Import!M9710","v":"Select"},{"$f":"Import!M9910","v":"Select"},{"$f":"Import!M10110","v":"Select"},{"$f":"Import!M10310","v":0},{"$f":"Import!M10510","v":0}]
[null,46,{"$f":"Import!M9711","v":"Select"},{"$f":"Import!M9911","v":"Select"},{"$f":"Import!M10111","v":"Select"},{"$f":"Import!M10311","v":0},{"$f":"Import!M10511","v":0}]
[null,47,{"$f":"Import!M9712","v":"Select"},{"$f":"Import!M9912","v":"Select"},{"$f":"Import!M10112","v":"Select"},{"$f":"Import!M10312","v":0},{"$f":"Import!M10512","v":0}]
[null,48,{"$f":"Import!M9713","v":"Select"},{"$f":"Import!M9913","v":"Select"},{"$f":"Import!M10113","v":"Select"},{"$f":"Import!M10313","v":0},{"$f":"Import!M10513","v":0}]
[null,49,{"$f":"Import!M9714","v":"Select"},{"$f":"Import!M9914","v":"Select"},{"$f":"Import!M10114","v":"Select"},{"$f":"Import!M10314","v":0},{"$f":"Import!M10514","v":0}]
[null,50,{"$f":"Import!M9715","v":"Select"},{"$f":"Import!M9915","v":"Select"},{"$f":"Import!M10115","v":"Select"},{"$f":"Import!M10315","v":0},{"$f":"Import!M10515","v":0}]
[null,51,{"$f":"Import!M9716","v":"Select"},{"$f":"Import!M9916","v":"Select"},{"$f":"Import!M10116","v":"Select"},{"$f":"Import!M10316","v":0},{"$f":"Import!M10516","v":0}]
[null,52,{"$f":"Import!M9717","v":"Select"},{"$f":"Import!M9917","v":"Select"},{"$f":"Import!M10117","v":"Select"},{"$f":"Import!M10317","v":0},{"$f":"Import!M10517","v":0}]
[null,53,{"$f":"Import!M9718","v":"Select"},{"$f":"Import!M9918","v":"Select"},{"$f":"Import!M10118","v":"Select"},{"$f":"Import!M10318","v":0},{"$f":"Import!M10518","v":0}]
[null,54,{"$f":"Import!M9719","v":"Select"},{"$f":"Import!M9919","v":"Select"},{"$f":"Import!M10119","v":"Select"},{"$f":"Import!M10319","v":0},{"$f":"Import!M10519","v":0}]
[null,55,{"$f":"Import!M9720","v":"Select"},{"$f":"Import!M9920","v":"Select"},{"$f":"Import!M10120","v":"Select"},{"$f":"Import!M10320","v":0},{"$f":"Import!M10520","v":0}]
[null,56,{"$f":"Import!M9721","v":"Select"},{"$f":"Import!M9921","v":"Select"},{"$f":"Import!M10121","v":"Select"},{"$f":"Import!M10321","v":0},{"$f":"Import!M10521","v":0}]
[null,57,{"$f":"Import!M9722","v":"Select"},{"$f":"Import!M9922","v":"Select"},{"$f":"Import!M10122","v":"Select"},{"$f":"Import!M10322","v":0},{"$f":"Import!M10522","v":0}]
[null,58,{"$f":"Import!M9723","v":"Select"},{"$f":"Import!M9923","v":"Select"},{"$f":"Import!M10123","v":"Select"},{"$f":"Import!M10323","v":0},{"$f":"Import!M10523","v":0}]
[null,59,{"$f":"Import!M9724","v":"Select"},{"$f":"Import!M9924","v":"Select"},{"$f":"Import!M10124","v":"Select"},{"$f":"Import!M10324","v":0},{"$f":"Import!M10524","v":0}]
[null,60,{"$f":"Import!M9725","v":"Select"},{"$f":"Import!M9925","v":"Select"},{"$f":"Import!M10125","v":"Select"},{"$f":"Import!M10325","v":0},{"$f":"Import!M10525","v":0}]
[null,61,{"$f":"Import!M9726","v":"Select"},{"$f":"Import!M9926","v":"Select"},{"$f":"Import!M10126","v":"Select"},{"$f":"Import!M10326","v":0},{"$f":"Import!M10526","v":0}]
[null,62,{"$f":"Import!M9727","v":"Select"},{"$f":"Import!M9927","v":"Select"},{"$f":"Import!M10127","v":"Select"},{"$f":"Import!M10327","v":0},{"$f":"Import!M10527","v":0}]
[null,63,{"$f":"Import!M9728","v":"Select"},{"$f":"Import!M9928","v":"Select"},{"$f":"Import!M10128","v":"Select"},{"$f":"Import!M10328","v":0},{"$f":"Import!M10528","v":0}]
[null,64,{"$f":"Import!M9729","v":"Select"},{"$f":"Import!M9929","v":"Select"},{"$f":"Import!M10129","v":"Select"},{"$f":"Import!M10329","v":0},{"$f":"Import!M10529","v":0}]
[null,65,{"$f":"Import!M9730","v":"Select"},{"$f":"Import!M9930","v":"Select"},{"$f":"Import!M10130","v":"Select"},{"$f":"Import!M10330","v":0},{"$f":"Import!M10530","v":0}]
[null,66,{"$f":"Import!M9731","v":"Select"},{"$f":"Import!M9931","v":"Select"},{"$f":"Import!M10131","v":"Select"},{"$f":"Import!M10331","v":0},{"$f":"Import!M10531","v":0}]
[null,{"$f":"B692+1","v":67},{"$f":"Import!M9732","v":"Select"},{"$f":"Import!M9932","v":"Select"},{"$f":"Import!M10132","v":"Select"},{"$f":"Import!M10332","v":0},{"$f":"Import!M10532","v":0}]
[null,68,{"$f":"Import!M9733","v":"Select"},{"$f":"Import!M9933","v":"Select"},{"$f":"Import!M10133","v":"Select"},{"$f":"Import!M10333","v":0},{"$f":"Import!M10533","v":0}]
[null,69,{"$f":"Import!M9734","v":"Select"},{"$f":"Import!M9934","v":"Select"},{"$f":"Import!M10134","v":"Select"},{"$f":"Import!M10334","v":0},{"$f":"Import!M10534","v":0}]
[null,70,{"$f":"Import!M9735","v":"Select"},{"$f":"Import!M9935","v":"Select"},{"$f":"Import!M10135","v":"Select"},{"$f":"Import!M10335","v":0},{"$f":"Import!M10535","v":0}]
[null,71,{"$f":"Import!M9736","v":"Select"},{"$f":"Import!M9936","v":"Select"},{"$f":"Import!M10136","v":"Select"},{"$f":"Import!M10336","v":0},{"$f":"Import!M10536","v":0}]
[null,72,{"$f":"Import!M9737","v":"Select"},{"$f":"Import!M9937","v":"Select"},{"$f":"Import!M10137","v":"Select"},{"$f":"Import!M10337","v":0},{"$f":"Import!M10537","v":0}]
[null,73,{"$f":"Import!M9738","v":"Select"},{"$f":"Import!M9938","v":"Select"},{"$f":"Import!M10138","v":"Select"},{"$f":"Import!M10338","v":0},{"$f":"Import!M10538","v":0}]
[null,74,{"$f":"Import!M9739","v":"Select"},{"$f":"Import!M9939","v":"Select"},{"$f":"Import!M10139","v":"Select"},{"$f":"Import!M10339","v":0},{"$f":"Import!M10539","v":0}]
[null,75,{"$f":"Import!M9740","v":"Select"},{"$f":"Import!M9940","v":"Select"},{"$f":"Import!M10140","v":"Select"},{"$f":"Import!M10340","v":0},{"$f":"Import!M10540","v":0}]
[null,76,{"$f":"Import!M9741","v":"Select"},{"$f":"Import!M9941","v":"Select"},{"$f":"Import!M10141","v":"Select"},{"$f":"Import!M10341","v":0},{"$f":"Import!M10541","v":0}]
[null,77,{"$f":"Import!M9742","v":"Select"},{"$f":"Import!M9942","v":"Select"},{"$f":"Import!M10142","v":"Select"},{"$f":"Import!M10342","v":0},{"$f":"Import!M10542","v":0}]
[null,78,{"$f":"Import!M9743","v":"Select"},{"$f":"Import!M9943","v":"Select"},{"$f":"Import!M10143","v":"Select"},{"$f":"Import!M10343","v":0},{"$f":"Import!M10543","v":0}]
[null,79,{"$f":"Import!M9744","v":"Select"},{"$f":"Import!M9944","v":"Select"},{"$f":"Import!M10144","v":"Select"},{"$f":"Import!M10344","v":0},{"$f":"Import!M10544","v":0}]
[null,80,{"$f":"Import!M9745","v":"Select"},{"$f":"Import!M9945","v":"Select"},{"$f":"Import!M10145","v":"Select"},{"$f":"Import!M10345","v":0},{"$f":"Import!M10545","v":0}]
[null,81,{"$f":"Import!M9746","v":"Select"},{"$f":"Import!M9946","v":"Select"},{"$f":"Import!M10146","v":"Select"},{"$f":"Import!M10346","v":0},{"$f":"Import!M10546","v":0}]
[null,82,{"$f":"Import!M9747","v":"Select"},{"$f":"Import!M9947","v":"Select"},{"$f":"Import!M10147","v":"Select"},{"$f":"Import!M10347","v":0},{"$f":"Import!M10547","v":0}]
[null,83,{"$f":"Import!M9748","v":"Select"},{"$f":"Import!M9948","v":"Select"},{"$f":"Import!M10148","v":"Select"},{"$f":"Import!M10348","v":0},{"$f":"Import!M10548","v":0}]
[null,84,{"$f":"Import!M9749","v":"Select"},{"$f":"Import!M9949","v":"Select"},{"$f":"Import!M10149","v":"Select"},{"$f":"Import!M10349","v":0},{"$f":"Import!M10549","v":0}]
[null,85,{"$f":"Import!M9750","v":"Select"},{"$f":"Import!M9950","v":"Select"},{"$f":"Import!M10150","v":"Select"},{"$f":"Import!M10350","v":0},{"$f":"Import!M10550","v":0}]
[null,86,{"$f":"Import!M9751","v":"Select"},{"$f":"Import!M9951","v":"Select"},{"$f":"Import!M10151","v":"Select"},{"$f":"Import!M10351","v":0},{"$f":"Import!M10551","v":0}]
[null,87,{"$f":"Import!M9752","v":"Select"},{"$f":"Import!M9952","v":"Select"},{"$f":"Import!M10152","v":"Select"},{"$f":"Import!M10352","v":0},{"$f":"Import!M10552","v":0}]
[null,88,{"$f":"Import!M9753","v":"Select"},{"$f":"Import!M9953","v":"Select"},{"$f":"Import!M10153","v":"Select"},{"$f":"Import!M10353","v":0},{"$f":"Import!M10553","v":0}]
[null,89,{"$f":"Import!M9754","v":"Select"},{"$f":"Import!M9954","v":"Select"},{"$f":"Import!M10154","v":"Select"},{"$f":"Import!M10354","v":0},{"$f":"Import!M10554","v":0}]
[null,90,{"$f":"Import!M9755","v":"Select"},{"$f":"Import!M9955","v":"Select"},{"$f":"Import!M10155","v":"Select"},{"$f":"Import!M10355","v":0},{"$f":"Import!M10555","v":0}]
[null,91,{"$f":"Import!M9756","v":"Select"},{"$f":"Import!M9956","v":"Select"},{"$f":"Import!M10156","v":"Select"},{"$f":"Import!M10356","v":0},{"$f":"Import!M10556","v":0}]
[null,92,{"$f":"Import!M9757","v":"Select"},{"$f":"Import!M9957","v":"Select"},{"$f":"Import!M10157","v":"Select"},{"$f":"Import!M10357","v":0},{"$f":"Import!M10557","v":0}]
[null,93,{"$f":"Import!M9758","v":"Select"},{"$f":"Import!M9958","v":"Select"},{"$f":"Import!M10158","v":"Select"},{"$f":"Import!M10358","v":0},{"$f":"Import!M10558","v":0}]
[null,94,{"$f":"Import!M9759","v":"Select"},{"$f":"Import!M9959","v":"Select"},{"$f":"Import!M10159","v":"Select"},{"$f":"Import!M10359","v":0},{"$f":"Import!M10559","v":0}]
[null,95,{"$f":"Import!M9760","v":"Select"},{"$f":"Import!M9960","v":"Select"},{"$f":"Import!M10160","v":"Select"},{"$f":"Import!M10360","v":0},{"$f":"Import!M10560","v":0}]
[null,96,{"$f":"Import!M9761","v":"Select"},{"$f":"Import!M9961","v":"Select"},{"$f":"Import!M10161","v":"Select"},{"$f":"Import!M10361","v":0},{"$f":"Import!M10561","v":0}]
[null,97,{"$f":"Import!M9762","v":"Select"},{"$f":"Import!M9962","v":"Select"},{"$f":"Import!M10162","v":"Select"},{"$f":"Import!M10362","v":0},{"$f":"Import!M10562","v":0}]
[null,98,{"$f":"Import!M9763","v":"Select"},{"$f":"Import!M9963","v":"Select"},{"$f":"Import!M10163","v":"Select"},{"$f":"Import!M10363","v":0},{"$f":"Import!M10563","v":0}]
[null,99,{"$f":"Import!M9764","v":"Select"},{"$f":"Import!M9964","v":"Select"},{"$f":"Import!M10164","v":"Select"},{"$f":"Import!M10364","v":0},{"$f":"Import!M10564","v":0}]
[null,100,{"$f":"Import!M9765","v":"Select"},{"$f":"Import!M9965","v":"Select"},{"$f":"Import!M10165","v":"Select"},{"$f":"Import!M10365","v":0},{"$f":"Import!M10565","v":0}]
[null,101,{"$f":"Import!M9766","v":"Select"},{"$f":"Import!M9966","v":"Select"},{"$f":"Import!M10166","v":"Select"},{"$f":"Import!M10366","v":0},{"$f":"Import!M10566","v":0}]
[null,102,{"$f":"Import!M9767","v":"Select"},{"$f":"Import!M9967","v":"Select"},{"$f":"Import!M10167","v":"Select"},{"$f":"Import!M10367","v":0},{"$f":"Import!M10567","v":0}]
[null,103,{"$f":"Import!M9768","v":"Select"},{"$f":"Import!M9968","v":"Select"},{"$f":"Import!M10168","v":"Select"},{"$f":"Import!M10368","v":0},{"$f":"Import!M10568","v":0}]
[null,104,{"$f":"Import!M9769","v":"Select"},{"$f":"Import!M9969","v":"Select"},{"$f":"Import!M10169","v":"Select"},{"$f":"Import!M10369","v":0},{"$f":"Import!M10569","v":0}]
[null,105,{"$f":"Import!M9770","v":"Select"},{"$f":"Import!M9970","v":"Select"},{"$f":"Import!M10170","v":"Select"},{"$f":"Import!M10370","v":0},{"$f":"Import!M10570","v":0}]
[null,106,{"$f":"Import!M9771","v":"Select"},{"$f":"Import!M9971","v":"Select"},{"$f":"Import!M10171","v":"Select"},{"$f":"Import!M10371","v":0},{"$f":"Import!M10571","v":0}]
[null,107,{"$f":"Import!M9772","v":"Select"},{"$f":"Import!M9972","v":"Select"},{"$f":"Import!M10172","v":"Select"},{"$f":"Import!M10372","v":0},{"$f":"Import!M10572","v":0}]
[null,108,{"$f":"Import!M9773","v":"Select"},{"$f":"Import!M9973","v":"Select"},{"$f":"Import!M10173","v":"Select"},{"$f":"Import!M10373","v":0},{"$f":"Import!M10573","v":0}]
[null,109,{"$f":"Import!M9774","v":"Select"},{"$f":"Import!M9974","v":"Select"},{"$f":"Import!M10174","v":"Select"},{"$f":"Import!M10374","v":0},{"$f":"Import!M10574","v":0}]
[null,110,{"$f":"Import!M9775","v":"Select"},{"$f":"Import!M9975","v":"Select"},{"$f":"Import!M10175","v":"Select"},{"$f":"Import!M10375","v":0},{"$f":"Import!M10575","v":0}]
[null,111,{"$f":"Import!M9776","v":"Select"},{"$f":"Import!M9976","v":"Select"},{"$f":"Import!M10176","v":"Select"},{"$f":"Import!M10376","v":0},{"$f":"Import!M10576","v":0}]
[null,112,{"$f":"Import!M9777","v":"Select"},{"$f":"Import!M9977","v":"Select"},{"$f":"Import!M10177","v":"Select"},{"$f":"Import!M10377","v":0},{"$f":"Import!M10577","v":0}]
[null,113,{"$f":"Import!M9778","v":"Select"},{"$f":"Import!M9978","v":"Select"},{"$f":"Import!M10178","v":"Select"},{"$f":"Import!M10378","v":0},{"$f":"Import!M10578","v":0}]
[null,114,{"$f":"Import!M9779","v":"Select"},{"$f":"Import!M9979","v":"Select"},{"$f":"Import!M10179","v":"Select"},{"$f":"Import!M10379","v":0},{"$f":"Import!M10579","v":0}]
[null,115,{"$f":"Import!M9780","v":"Select"},{"$f":"Import!M9980","v":"Select"},{"$f":"Import!M10180","v":"Select"},{"$f":"Import!M10380","v":0},{"$f":"Import!M10580","v":0}]
[null,116,{"$f":"Import!M9781","v":"Select"},{"$f":"Import!M9981","v":"Select"},{"$f":"Import!M10181","v":"Select"},{"$f":"Import!M10381","v":0},{"$f":"Import!M10581","v":0}]
[null,117,{"$f":"Import!M9782","v":"Select"},{"$f":"Import!M9982","v":"Select"},{"$f":"Import!M10182","v":"Select"},{"$f":"Import!M10382","v":0},{"$f":"Import!M10582","v":0}]
[null,118,{"$f":"Import!M9783","v":"Select"},{"$f":"Import!M9983","v":"Select"},{"$f":"Import!M10183","v":"Select"},{"$f":"Import!M10383","v":0},{"$f":"Import!M10583","v":0}]
[null,119,{"$f":"Import!M9784","v":"Select"},{"$f":"Import!M9984","v":"Select"},{"$f":"Import!M10184","v":"Select"},{"$f":"Import!M10384","v":0},{"$f":"Import!M10584","v":0}]
[null,120,{"$f":"Import!M9785","v":"Select"},{"$f":"Import!M9985","v":"Select"},{"$f":"Import!M10185","v":"Select"},{"$f":"Import!M10385","v":0},{"$f":"Import!M10585","v":0}]
[null,121,{"$f":"Import!M9786","v":"Select"},{"$f":"Import!M9986","v":"Select"},{"$f":"Import!M10186","v":"Select"},{"$f":"Import!M10386","v":0},{"$f":"Import!M10586","v":0}]
[null,122,{"$f":"Import!M9787","v":"Select"},{"$f":"Import!M9987","v":"Select"},{"$f":"Import!M10187","v":"Select"},{"$f":"Import!M10387","v":0},{"$f":"Import!M10587","v":0}]
[null,123,{"$f":"Import!M9788","v":"Select"},{"$f":"Import!M9988","v":"Select"},{"$f":"Import!M10188","v":"Select"},{"$f":"Import!M10388","v":0},{"$f":"Import!M10588","v":0}]
[null,124,{"$f":"Import!M9789","v":"Select"},{"$f":"Import!M9989","v":"Select"},{"$f":"Import!M10189","v":"Select"},{"$f":"Import!M10389","v":0},{"$f":"Import!M10589","v":0}]
[null,125,{"$f":"Import!M9790","v":"Select"},{"$f":"Import!M9990","v":"Select"},{"$f":"Import!M10190","v":"Select"},{"$f":"Import!M10390","v":0},{"$f":"Import!M10590","v":0}]
[null,126,{"$f":"Import!M9791","v":"Select"},{"$f":"Import!M9991","v":"Select"},{"$f":"Import!M10191","v":"Select"},{"$f":"Import!M10391","v":0},{"$f":"Import!M10591","v":0}]
[null,127,{"$f":"Import!M9792","v":"Select"},{"$f":"Import!M9992","v":"Select"},{"$f":"Import!M10192","v":"Select"},{"$f":"Import!M10392","v":0},{"$f":"Import!M10592","v":0}]
[null,128,{"$f":"Import!M9793","v":"Select"},{"$f":"Import!M9993","v":"Select"},{"$f":"Import!M10193","v":"Select"},{"$f":"Import!M10393","v":0},{"$f":"Import!M10593","v":0}]
[null,129,{"$f":"Import!M9794","v":"Select"},{"$f":"Import!M9994","v":"Select"},{"$f":"Import!M10194","v":"Select"},{"$f":"Import!M10394","v":0},{"$f":"Import!M10594","v":0}]
[null,130,{"$f":"Import!M9795","v":"Select"},{"$f":"Import!M9995","v":"Select"},{"$f":"Import!M10195","v":"Select"},{"$f":"Import!M10395","v":0},{"$f":"Import!M10595","v":0}]
[null,{"$f":"B756+1","v":131},{"$f":"Import!M9796","v":"Select"},{"$f":"Import!M9996","v":"Select"},{"$f":"Import!M10196","v":"Select"},{"$f":"Import!M10396","v":0},{"$f":"Import!M10596","v":0}]
[null,132,{"$f":"Import!M9797","v":"Select"},{"$f":"Import!M9997","v":"Select"},{"$f":"Import!M10197","v":"Select"},{"$f":"Import!M10397","v":0},{"$f":"Import!M10597","v":0}]
[null,133,{"$f":"Import!M9798","v":"Select"},{"$f":"Import!M9998","v":"Select"},{"$f":"Import!M10198","v":"Select"},{"$f":"Import!M10398","v":0},{"$f":"Import!M10598","v":0}]
[null,134,{"$f":"Import!M9799","v":"Select"},{"$f":"Import!M9999","v":"Select"},{"$f":"Import!M10199","v":"Select"},{"$f":"Import!M10399","v":0},{"$f":"Import!M10599","v":0}]
[null,135,{"$f":"Import!M9800","v":"Select"},{"$f":"Import!M10000","v":"Select"},{"$f":"Import!M10200","v":"Select"},{"$f":"Import!M10400","v":0},{"$f":"Import!M10600","v":0}]
[null,136,{"$f":"Import!M9801","v":"Select"},{"$f":"Import!M10001","v":"Select"},{"$f":"Import!M10201","v":"Select"},{"$f":"Import!M10401","v":0},{"$f":"Import!M10601","v":0}]
[null,137,{"$f":"Import!M9802","v":"Select"},{"$f":"Import!M10002","v":"Select"},{"$f":"Import!M10202","v":"Select"},{"$f":"Import!M10402","v":0},{"$f":"Import!M10602","v":0}]
[null,138,{"$f":"Import!M9803","v":"Select"},{"$f":"Import!M10003","v":"Select"},{"$f":"Import!M10203","v":"Select"},{"$f":"Import!M10403","v":0},{"$f":"Import!M10603","v":0}]
[null,139,{"$f":"Import!M9804","v":"Select"},{"$f":"Import!M10004","v":"Select"},{"$f":"Import!M10204","v":"Select"},{"$f":"Import!M10404","v":0},{"$f":"Import!M10604","v":0}]
[null,140,{"$f":"Import!M9805","v":"Select"},{"$f":"Import!M10005","v":"Select"},{"$f":"Import!M10205","v":"Select"},{"$f":"Import!M10405","v":0},{"$f":"Import!M10605","v":0}]
[null,141,{"$f":"Import!M9806","v":"Select"},{"$f":"Import!M10006","v":"Select"},{"$f":"Import!M10206","v":"Select"},{"$f":"Import!M10406","v":0},{"$f":"Import!M10606","v":0}]
[null,142,{"$f":"Import!M9807","v":"Select"},{"$f":"Import!M10007","v":"Select"},{"$f":"Import!M10207","v":"Select"},{"$f":"Import!M10407","v":0},{"$f":"Import!M10607","v":0}]
[null,143,{"$f":"Import!M9808","v":"Select"},{"$f":"Import!M10008","v":"Select"},{"$f":"Import!M10208","v":"Select"},{"$f":"Import!M10408","v":0},{"$f":"Import!M10608","v":0}]
[null,144,{"$f":"Import!M9809","v":"Select"},{"$f":"Import!M10009","v":"Select"},{"$f":"Import!M10209","v":"Select"},{"$f":"Import!M10409","v":0},{"$f":"Import!M10609","v":0}]
[null,145,{"$f":"Import!M9810","v":"Select"},{"$f":"Import!M10010","v":"Select"},{"$f":"Import!M10210","v":"Select"},{"$f":"Import!M10410","v":0},{"$f":"Import!M10610","v":0}]
[null,146,{"$f":"Import!M9811","v":"Select"},{"$f":"Import!M10011","v":"Select"},{"$f":"Import!M10211","v":"Select"},{"$f":"Import!M10411","v":0},{"$f":"Import!M10611","v":0}]
[null,147,{"$f":"Import!M9812","v":"Select"},{"$f":"Import!M10012","v":"Select"},{"$f":"Import!M10212","v":"Select"},{"$f":"Import!M10412","v":0},{"$f":"Import!M10612","v":0}]
[null,148,{"$f":"Import!M9813","v":"Select"},{"$f":"Import!M10013","v":"Select"},{"$f":"Import!M10213","v":"Select"},{"$f":"Import!M10413","v":0},{"$f":"Import!M10613","v":0}]
[null,149,{"$f":"Import!M9814","v":"Select"},{"$f":"Import!M10014","v":"Select"},{"$f":"Import!M10214","v":"Select"},{"$f":"Import!M10414","v":0},{"$f":"Import!M10614","v":0}]
[null,150,{"$f":"Import!M9815","v":"Select"},{"$f":"Import!M10015","v":"Select"},{"$f":"Import!M10215","v":"Select"},{"$f":"Import!M10415","v":0},{"$f":"Import!M10615","v":0}]
[null,151,{"$f":"Import!M9816","v":"Select"},{"$f":"Import!M10016","v":"Select"},{"$f":"Import!M10216","v":"Select"},{"$f":"Import!M10416","v":0},{"$f":"Import!M10616","v":0}]
[null,152,{"$f":"Import!M9817","v":"Select"},{"$f":"Import!M10017","v":"Select"},{"$f":"Import!M10217","v":"Select"},{"$f":"Import!M10417","v":0},{"$f":"Import!M10617","v":0}]
[null,153,{"$f":"Import!M9818","v":"Select"},{"$f":"Import!M10018","v":"Select"},{"$f":"Import!M10218","v":"Select"},{"$f":"Import!M10418","v":0},{"$f":"Import!M10618","v":0}]
[null,154,{"$f":"Import!M9819","v":"Select"},{"$f":"Import!M10019","v":"Select"},{"$f":"Import!M10219","v":"Select"},{"$f":"Import!M10419","v":0},{"$f":"Import!M10619","v":0}]
[null,155,{"$f":"Import!M9820","v":"Select"},{"$f":"Import!M10020","v":"Select"},{"$f":"Import!M10220","v":"Select"},{"$f":"Import!M10420","v":0},{"$f":"Import!M10620","v":0}]
[null,156,{"$f":"Import!M9821","v":"Select"},{"$f":"Import!M10021","v":"Select"},{"$f":"Import!M10221","v":"Select"},{"$f":"Import!M10421","v":0},{"$f":"Import!M10621","v":0}]
[null,157,{"$f":"Import!M9822","v":"Select"},{"$f":"Import!M10022","v":"Select"},{"$f":"Import!M10222","v":"Select"},{"$f":"Import!M10422","v":0},{"$f":"Import!M10622","v":0}]
[null,158,{"$f":"Import!M9823","v":"Select"},{"$f":"Import!M10023","v":"Select"},{"$f":"Import!M10223","v":"Select"},{"$f":"Import!M10423","v":0},{"$f":"Import!M10623","v":0}]
[null,159,{"$f":"Import!M9824","v":"Select"},{"$f":"Import!M10024","v":"Select"},{"$f":"Import!M10224","v":"Select"},{"$f":"Import!M10424","v":0},{"$f":"Import!M10624","v":0}]
[null,160,{"$f":"Import!M9825","v":"Select"},{"$f":"Import!M10025","v":"Select"},{"$f":"Import!M10225","v":"Select"},{"$f":"Import!M10425","v":0},{"$f":"Import!M10625","v":0}]
[null,161,{"$f":"Import!M9826","v":"Select"},{"$f":"Import!M10026","v":"Select"},{"$f":"Import!M10226","v":"Select"},{"$f":"Import!M10426","v":0},{"$f":"Import!M10626","v":0}]
[null,162,{"$f":"Import!M9827","v":"Select"},{"$f":"Import!M10027","v":"Select"},{"$f":"Import!M10227","v":"Select"},{"$f":"Import!M10427","v":0},{"$f":"Import!M10627","v":0}]
[null,163,{"$f":"Import!M9828","v":"Select"},{"$f":"Import!M10028","v":"Select"},{"$f":"Import!M10228","v":"Select"},{"$f":"Import!M10428","v":0},{"$f":"Import!M10628","v":0}]
[null,164,{"$f":"Import!M9829","v":"Select"},{"$f":"Import!M10029","v":"Select"},{"$f":"Import!M10229","v":"Select"},{"$f":"Import!M10429","v":0},{"$f":"Import!M10629","v":0}]
[null,165,{"$f":"Import!M9830","v":"Select"},{"$f":"Import!M10030","v":"Select"},{"$f":"Import!M10230","v":"Select"},{"$f":"Import!M10430","v":0},{"$f":"Import!M10630","v":0}]
[null,166,{"$f":"Import!M9831","v":"Select"},{"$f":"Import!M10031","v":"Select"},{"$f":"Import!M10231","v":"Select"},{"$f":"Import!M10431","v":0},{"$f":"Import!M10631","v":0}]
[null,167,{"$f":"Import!M9832","v":"Select"},{"$f":"Import!M10032","v":"Select"},{"$f":"Import!M10232","v":"Select"},{"$f":"Import!M10432","v":0},{"$f":"Import!M10632","v":0}]
[null,168,{"$f":"Import!M9833","v":"Select"},{"$f":"Import!M10033","v":"Select"},{"$f":"Import!M10233","v":"Select"},{"$f":"Import!M10433","v":0},{"$f":"Import!M10633","v":0}]
[null,169,{"$f":"Import!M9834","v":"Select"},{"$f":"Import!M10034","v":"Select"},{"$f":"Import!M10234","v":"Select"},{"$f":"Import!M10434","v":0},{"$f":"Import!M10634","v":0}]
[null,170,{"$f":"Import!M9835","v":"Select"},{"$f":"Import!M10035","v":"Select"},{"$f":"Import!M10235","v":"Select"},{"$f":"Import!M10435","v":0},{"$f":"Import!M10635","v":0}]
[null,171,{"$f":"Import!M9836","v":"Select"},{"$f":"Import!M10036","v":"Select"},{"$f":"Import!M10236","v":"Select"},{"$f":"Import!M10436","v":0},{"$f":"Import!M10636","v":0}]
[null,172,{"$f":"Import!M9837","v":"Select"},{"$f":"Import!M10037","v":"Select"},{"$f":"Import!M10237","v":"Select"},{"$f":"Import!M10437","v":0},{"$f":"Import!M10637","v":0}]
[null,173,{"$f":"Import!M9838","v":"Select"},{"$f":"Import!M10038","v":"Select"},{"$f":"Import!M10238","v":"Select"},{"$f":"Import!M10438","v":0},{"$f":"Import!M10638","v":0}]
[null,174,{"$f":"Import!M9839","v":"Select"},{"$f":"Import!M10039","v":"Select"},{"$f":"Import!M10239","v":"Select"},{"$f":"Import!M10439","v":0},{"$f":"Import!M10639","v":0}]
[null,175,{"$f":"Import!M9840","v":"Select"},{"$f":"Import!M10040","v":"Select"},{"$f":"Import!M10240","v":"Select"},{"$f":"Import!M10440","v":0},{"$f":"Import!M10640","v":0}]
[null,176,{"$f":"Import!M9841","v":"Select"},{"$f":"Import!M10041","v":"Select"},{"$f":"Import!M10241","v":"Select"},{"$f":"Import!M10441","v":0},{"$f":"Import!M10641","v":0}]
[null,177,{"$f":"Import!M9842","v":"Select"},{"$f":"Import!M10042","v":"Select"},{"$f":"Import!M10242","v":"Select"},{"$f":"Import!M10442","v":0},{"$f":"Import!M10642","v":0}]
[null,178,{"$f":"Import!M9843","v":"Select"},{"$f":"Import!M10043","v":"Select"},{"$f":"Import!M10243","v":"Select"},{"$f":"Import!M10443","v":0},{"$f":"Import!M10643","v":0}]
[null,179,{"$f":"Import!M9844","v":"Select"},{"$f":"Import!M10044","v":"Select"},{"$f":"Import!M10244","v":"Select"},{"$f":"Import!M10444","v":0},{"$f":"Import!M10644","v":0}]
[null,180,{"$f":"Import!M9845","v":"Select"},{"$f":"Import!M10045","v":"Select"},{"$f":"Import!M10245","v":"Select"},{"$f":"Import!M10445","v":0},{"$f":"Import!M10645","v":0}]
[null,181,{"$f":"Import!M9846","v":"Select"},{"$f":"Import!M10046","v":"Select"},{"$f":"Import!M10246","v":"Select"},{"$f":"Import!M10446","v":0},{"$f":"Import!M10646","v":0}]
[null,182,{"$f":"Import!M9847","v":"Select"},{"$f":"Import!M10047","v":"Select"},{"$f":"Import!M10247","v":"Select"},{"$f":"Import!M10447","v":0},{"$f":"Import!M10647","v":0}]
[null,183,{"$f":"Import!M9848","v":"Select"},{"$f":"Import!M10048","v":"Select"},{"$f":"Import!M10248","v":"Select"},{"$f":"Import!M10448","v":0},{"$f":"Import!M10648","v":0}]
[null,184,{"$f":"Import!M9849","v":"Select"},{"$f":"Import!M10049","v":"Select"},{"$f":"Import!M10249","v":"Select"},{"$f":"Import!M10449","v":0},{"$f":"Import!M10649","v":0}]
[null,185,{"$f":"Import!M9850","v":"Select"},{"$f":"Import!M10050","v":"Select"},{"$f":"Import!M10250","v":"Select"},{"$f":"Import!M10450","v":0},{"$f":"Import!M10650","v":0}]
[null,186,{"$f":"Import!M9851","v":"Select"},{"$f":"Import!M10051","v":"Select"},{"$f":"Import!M10251","v":"Select"},{"$f":"Import!M10451","v":0},{"$f":"Import!M10651","v":0}]
[null,187,{"$f":"Import!M9852","v":"Select"},{"$f":"Import!M10052","v":"Select"},{"$f":"Import!M10252","v":"Select"},{"$f":"Import!M10452","v":0},{"$f":"Import!M10652","v":0}]
[null,188,{"$f":"Import!M9853","v":"Select"},{"$f":"Import!M10053","v":"Select"},{"$f":"Import!M10253","v":"Select"},{"$f":"Import!M10453","v":0},{"$f":"Import!M10653","v":0}]
[null,189,{"$f":"Import!M9854","v":"Select"},{"$f":"Import!M10054","v":"Select"},{"$f":"Import!M10254","v":"Select"},{"$f":"Import!M10454","v":0},{"$f":"Import!M10654","v":0}]
[null,190,{"$f":"Import!M9855","v":"Select"},{"$f":"Import!M10055","v":"Select"},{"$f":"Import!M10255","v":"Select"},{"$f":"Import!M10455","v":0},{"$f":"Import!M10655","v":0}]
[null,191,{"$f":"Import!M9856","v":"Select"},{"$f":"Import!M10056","v":"Select"},{"$f":"Import!M10256","v":"Select"},{"$f":"Import!M10456","v":0},{"$f":"Import!M10656","v":0}]
[null,192,{"$f":"Import!M9857","v":"Select"},{"$f":"Import!M10057","v":"Select"},{"$f":"Import!M10257","v":"Select"},{"$f":"Import!M10457","v":0},{"$f":"Import!M10657","v":0}]
[null,193,{"$f":"Import!M9858","v":"Select"},{"$f":"Import!M10058","v":"Select"},{"$f":"Import!M10258","v":"Select"},{"$f":"Import!M10458","v":0},{"$f":"Import!M10658","v":0}]
[null,194,{"$f":"Import!M9859","v":"Select"},{"$f":"Import!M10059","v":"Select"},{"$f":"Import!M10259","v":"Select"},{"$f":"Import!M10459","v":0},{"$f":"Import!M10659","v":0}]
[null,{"$f":"B820+1","v":195},{"$f":"Import!M9860","v":"Select"},{"$f":"Import!M10060","v":"Select"},{"$f":"Import!M10260","v":"Select"},{"$f":"Import!M10460","v":0},{"$f":"Import!M10660","v":0}]
[null,196,{"$f":"Import!M9861","v":"Select"},{"$f":"Import!M10061","v":"Select"},{"$f":"Import!M10261","v":"Select"},{"$f":"Import!M10461","v":0},{"$f":"Import!M10661","v":0}]
[null,197,{"$f":"Import!M9862","v":"Select"},{"$f":"Import!M10062","v":"Select"},{"$f":"Import!M10262","v":"Select"},{"$f":"Import!M10462","v":0},{"$f":"Import!M10662","v":0}]
[null,198,{"$f":"Import!M9863","v":"Select"},{"$f":"Import!M10063","v":"Select"},{"$f":"Import!M10263","v":"Select"},{"$f":"Import!M10463","v":0},{"$f":"Import!M10663","v":0}]
[null,199,{"$f":"Import!M9864","v":"Select"},{"$f":"Import!M10064","v":"Select"},{"$f":"Import!M10264","v":"Select"},{"$f":"Import!M10464","v":0},{"$f":"Import!M10664","v":0}]
[null,200,{"$f":"Import!M9865","v":"Select"},{"$f":"Import!M10065","v":"Select"},{"$f":"Import!M10265","v":"Select"},{"$f":"Import!M10465","v":0},{"$f":"Import!M10665","v":0}]
[]
[null,null,null,null,null,{"$f":"SUM(F627:F826)","v":0}]
[]
[null,"(C) ASSET-BACKED AND STRUCTURED SECURITIES"]
[]
[null,null,"Enter # of Asset Types",{"$f":"Import!M10666","v":0}]
[null,null,null,null,{"$f":"YEAR($C$3)","v":2023},2023,"Weighted"]
[null,"Asset Type","Currency","BSCR Rating","Nominal Amount","Fair Value","Average YTM","Effective Duration","Comments"]
[1,{"$f":"Import!M10667","v":"Select"},{"$f":"Import!M10817","v":"Select"},{"$f":"Import!M10967","v":"Select"},{"$f":"Import!M11117","v":0},{"$f":"Import!M11267","v":0},{"$f":"Import!M11417","v":0},{"$f":"Import!M11567","v":0},{"$f":"Import!M11717","v":0}]
[{"$f":"A835+1","v":2},{"$f":"Import!M10668","v":"Select"},{"$f":"Import!M10818","v":"Select"},{"$f":"Import!M10968","v":"Select"},{"$f":"Import!M11118","v":0},{"$f":"Import!M11268","v":0},{"$f":"Import!M11418","v":0},{"$f":"Import!M11568","v":0},{"$f":"Import!M11718","v":0}]
[{"$f":"A836+1","v":3},{"$f":"Import!M10669","v":"Select"},{"$f":"Import!M10819","v":"Select"},{"$f":"Import!M10969","v":"Select"},{"$f":"Import!M11119","v":0},{"$f":"Import!M11269","v":0},{"$f":"Import!M11419","v":0},{"$f":"Import!M11569","v":0},{"$f":"Import!M11719","v":0}]
[4,{"$f":"Import!M10670","v":"Select"},{"$f":"Import!M10820","v":"Select"},{"$f":"Import!M10970","v":"Select"},{"$f":"Import!M11120","v":0},{"$f":"Import!M11270","v":0},{"$f":"Import!M11420","v":0},{"$f":"Import!M11570","v":0},{"$f":"Import!M11720","v":0}]
[5,{"$f":"Import!M10671","v":"Select"},{"$f":"Import!M10821","v":"Select"},{"$f":"Import!M10971","v":"Select"},{"$f":"Import!M11121","v":0},{"$f":"Import!M11271","v":0},{"$f":"Import!M11421","v":0},{"$f":"Import!M11571","v":0},{"$f":"Import!M11721","v":0}]
[6,{"$f":"Import!M10672","v":"Select"},{"$f":"Import!M10822","v":"Select"},{"$f":"Import!M10972","v":"Select"},{"$f":"Import!M11122","v":0},{"$f":"Import!M11272","v":0},{"$f":"Import!M11422","v":0},{"$f":"Import!M11572","v":0},{"$f":"Import!M11722","v":0}]
[7,{"$f":"Import!M10673","v":"Select"},{"$f":"Import!M10823","v":"Select"},{"$f":"Import!M10973","v":"Select"},{"$f":"Import!M11123","v":0},{"$f":"Import!M11273","v":0},{"$f":"Import!M11423","v":0},{"$f":"Import!M11573","v":0},{"$f":"Import!M11723","v":0}]
[8,{"$f":"Import!M10674","v":"Select"},{"$f":"Import!M10824","v":"Select"},{"$f":"Import!M10974","v":"Select"},{"$f":"Import!M11124","v":0},{"$f":"Import!M11274","v":0},{"$f":"Import!M11424","v":0},{"$f":"Import!M11574","v":0},{"$f":"Import!M11724","v":0}]
[9,{"$f":"Import!M10675","v":"Select"},{"$f":"Import!M10825","v":"Select"},{"$f":"Import!M10975","v":"Select"},{"$f":"Import!M11125","v":0},{"$f":"Import!M11275","v":0},{"$f":"Import!M11425","v":0},{"$f":"Import!M11575","v":0},{"$f":"Import!M11725","v":0}]
[10,{"$f":"Import!M10676","v":"Select"},{"$f":"Import!M10826","v":"Select"},{"$f":"Import!M10976","v":"Select"},{"$f":"Import!M11126","v":0},{"$f":"Import!M11276","v":0},{"$f":"Import!M11426","v":0},{"$f":"Import!M11576","v":0},{"$f":"Import!M11726","v":0}]
[11,{"$f":"Import!M10677","v":"Select"},{"$f":"Import!M10827","v":"Select"},{"$f":"Import!M10977","v":"Select"},{"$f":"Import!M11127","v":0},{"$f":"Import!M11277","v":0},{"$f":"Import!M11427","v":0},{"$f":"Import!M11577","v":0},{"$f":"Import!M11727","v":0}]
[12,{"$f":"Import!M10678","v":"Select"},{"$f":"Import!M10828","v":"Select"},{"$f":"Import!M10978","v":"Select"},{"$f":"Import!M11128","v":0},{"$f":"Import!M11278","v":0},{"$f":"Import!M11428","v":0},{"$f":"Import!M11578","v":0},{"$f":"Import!M11728","v":0}]
[13,{"$f":"Import!M10679","v":"Select"},{"$f":"Import!M10829","v":"Select"},{"$f":"Import!M10979","v":"Select"},{"$f":"Import!M11129","v":0},{"$f":"Import!M11279","v":0},{"$f":"Import!M11429","v":0},{"$f":"Import!M11579","v":0},{"$f":"Import!M11729","v":0}]
[14,{"$f":"Import!M10680","v":"Select"},{"$f":"Import!M10830","v":"Select"},{"$f":"Import!M10980","v":"Select"},{"$f":"Import!M11130","v":0},{"$f":"Import!M11280","v":0},{"$f":"Import!M11430","v":0},{"$f":"Import!M11580","v":0},{"$f":"Import!M11730","v":0}]
[15,{"$f":"Import!M10681","v":"Select"},{"$f":"Import!M10831","v":"Select"},{"$f":"Import!M10981","v":"Select"},{"$f":"Import!M11131","v":0},{"$f":"Import!M11281","v":0},{"$f":"Import!M11431","v":0},{"$f":"Import!M11581","v":0},{"$f":"Import!M11731","v":0}]
[16,{"$f":"Import!M10682","v":"Select"},{"$f":"Import!M10832","v":"Select"},{"$f":"Import!M10982","v":"Select"},{"$f":"Import!M11132","v":0},{"$f":"Import!M11282","v":0},{"$f":"Import!M11432","v":0},{"$f":"Import!M11582","v":0},{"$f":"Import!M11732","v":0}]
[17,{"$f":"Import!M10683","v":"Select"},{"$f":"Import!M10833","v":"Select"},{"$f":"Import!M10983","v":"Select"},{"$f":"Import!M11133","v":0},{"$f":"Import!M11283","v":0},{"$f":"Import!M11433","v":0},{"$f":"Import!M11583","v":0},{"$f":"Import!M11733","v":0}]
[18,{"$f":"Import!M10684","v":"Select"},{"$f":"Import!M10834","v":"Select"},{"$f":"Import!M10984","v":"Select"},{"$f":"Import!M11134","v":0},{"$f":"Import!M11284","v":0},{"$f":"Import!M11434","v":0},{"$f":"Import!M11584","v":0},{"$f":"Import!M11734","v":0}]
[19,{"$f":"Import!M10685","v":"Select"},{"$f":"Import!M10835","v":"Select"},{"$f":"Import!M10985","v":"Select"},{"$f":"Import!M11135","v":0},{"$f":"Import!M11285","v":0},{"$f":"Import!M11435","v":0},{"$f":"Import!M11585","v":0},{"$f":"Import!M11735","v":0}]
[20,{"$f":"Import!M10686","v":"Select"},{"$f":"Import!M10836","v":"Select"},{"$f":"Import!M10986","v":"Select"},{"$f":"Import!M11136","v":0},{"$f":"Import!M11286","v":0},{"$f":"Import!M11436","v":0},{"$f":"Import!M11586","v":0},{"$f":"Import!M11736","v":0}]
[21,{"$f":"Import!M10687","v":"Select"},{"$f":"Import!M10837","v":"Select"},{"$f":"Import!M10987","v":"Select"},{"$f":"Import!M11137","v":0},{"$f":"Import!M11287","v":0},{"$f":"Import!M11437","v":0},{"$f":"Import!M11587","v":0},{"$f":"Import!M11737","v":0}]
[22,{"$f":"Import!M10688","v":"Select"},{"$f":"Import!M10838","v":"Select"},{"$f":"Import!M10988","v":"Select"},{"$f":"Import!M11138","v":0},{"$f":"Import!M11288","v":0},{"$f":"Import!M11438","v":0},{"$f":"Import!M11588","v":0},{"$f":"Import!M11738","v":0}]
[23,{"$f":"Import!M10689","v":"Select"},{"$f":"Import!M10839","v":"Select"},{"$f":"Import!M10989","v":"Select"},{"$f":"Import!M11139","v":0},{"$f":"Import!M11289","v":0},{"$f":"Import!M11439","v":0},{"$f":"Import!M11589","v":0},{"$f":"Import!M11739","v":0}]
[24,{"$f":"Import!M10690","v":"Select"},{"$f":"Import!M10840","v":"Select"},{"$f":"Import!M10990","v":"Select"},{"$f":"Import!M11140","v":0},{"$f":"Import!M11290","v":0},{"$f":"Import!M11440","v":0},{"$f":"Import!M11590","v":0},{"$f":"Import!M11740","v":0}]
[25,{"$f":"Import!M10691","v":"Select"},{"$f":"Import!M10841","v":"Select"},{"$f":"Import!M10991","v":"Select"},{"$f":"Import!M11141","v":0},{"$f":"Import!M11291","v":0},{"$f":"Import!M11441","v":0},{"$f":"Import!M11591","v":0},{"$f":"Import!M11741","v":0}]
[26,{"$f":"Import!M10692","v":"Select"},{"$f":"Import!M10842","v":"Select"},{"$f":"Import!M10992","v":"Select"},{"$f":"Import!M11142","v":0},{"$f":"Import!M11292","v":0},{"$f":"Import!M11442","v":0},{"$f":"Import!M11592","v":0},{"$f":"Import!M11742","v":0}]
[27,{"$f":"Import!M10693","v":"Select"},{"$f":"Import!M10843","v":"Select"},{"$f":"Import!M10993","v":"Select"},{"$f":"Import!M11143","v":0},{"$f":"Import!M11293","v":0},{"$f":"Import!M11443","v":0},{"$f":"Import!M11593","v":0},{"$f":"Import!M11743","v":0}]
[28,{"$f":"Import!M10694","v":"Select"},{"$f":"Import!M10844","v":"Select"},{"$f":"Import!M10994","v":"Select"},{"$f":"Import!M11144","v":0},{"$f":"Import!M11294","v":0},{"$f":"Import!M11444","v":0},{"$f":"Import!M11594","v":0},{"$f":"Import!M11744","v":0}]
[29,{"$f":"Import!M10695","v":"Select"},{"$f":"Import!M10845","v":"Select"},{"$f":"Import!M10995","v":"Select"},{"$f":"Import!M11145","v":0},{"$f":"Import!M11295","v":0},{"$f":"Import!M11445","v":0},{"$f":"Import!M11595","v":0},{"$f":"Import!M11745","v":0}]
[30,{"$f":"Import!M10696","v":"Select"},{"$f":"Import!M10846","v":"Select"},{"$f":"Import!M10996","v":"Select"},{"$f":"Import!M11146","v":0},{"$f":"Import!M11296","v":0},{"$f":"Import!M11446","v":0},{"$f":"Import!M11596","v":0},{"$f":"Import!M11746","v":0}]
[31,{"$f":"Import!M10697","v":"Select"},{"$f":"Import!M10847","v":"Select"},{"$f":"Import!M10997","v":"Select"},{"$f":"Import!M11147","v":0},{"$f":"Import!M11297","v":0},{"$f":"Import!M11447","v":0},{"$f":"Import!M11597","v":0},{"$f":"Import!M11747","v":0}]
[32,{"$f":"Import!M10698","v":"Select"},{"$f":"Import!M10848","v":"Select"},{"$f":"Import!M10998","v":"Select"},{"$f":"Import!M11148","v":0},{"$f":"Import!M11298","v":0},{"$f":"Import!M11448","v":0},{"$f":"Import!M11598","v":0},{"$f":"Import!M11748","v":0}]
[33,{"$f":"Import!M10699","v":"Select"},{"$f":"Import!M10849","v":"Select"},{"$f":"Import!M10999","v":"Select"},{"$f":"Import!M11149","v":0},{"$f":"Import!M11299","v":0},{"$f":"Import!M11449","v":0},{"$f":"Import!M11599","v":0},{"$f":"Import!M11749","v":0}]
[34,{"$f":"Import!M10700","v":"Select"},{"$f":"Import!M10850","v":"Select"},{"$f":"Import!M11000","v":"Select"},{"$f":"Import!M11150","v":0},{"$f":"Import!M11300","v":0},{"$f":"Import!M11450","v":0},{"$f":"Import!M11600","v":0},{"$f":"Import!M11750","v":0}]
[35,{"$f":"Import!M10701","v":"Select"},{"$f":"Import!M10851","v":"Select"},{"$f":"Import!M11001","v":"Select"},{"$f":"Import!M11151","v":0},{"$f":"Import!M11301","v":0},{"$f":"Import!M11451","v":0},{"$f":"Import!M11601","v":0},{"$f":"Import!M11751","v":0}]
[36,{"$f":"Import!M10702","v":"Select"},{"$f":"Import!M10852","v":"Select"},{"$f":"Import!M11002","v":"Select"},{"$f":"Import!M11152","v":0},{"$f":"Import!M11302","v":0},{"$f":"Import!M11452","v":0},{"$f":"Import!M11602","v":0},{"$f":"Import!M11752","v":0}]
[37,{"$f":"Import!M10703","v":"Select"},{"$f":"Import!M10853","v":"Select"},{"$f":"Import!M11003","v":"Select"},{"$f":"Import!M11153","v":0},{"$f":"Import!M11303","v":0},{"$f":"Import!M11453","v":0},{"$f":"Import!M11603","v":0},{"$f":"Import!M11753","v":0}]
[38,{"$f":"Import!M10704","v":"Select"},{"$f":"Import!M10854","v":"Select"},{"$f":"Import!M11004","v":"Select"},{"$f":"Import!M11154","v":0},{"$f":"Import!M11304","v":0},{"$f":"Import!M11454","v":0},{"$f":"Import!M11604","v":0},{"$f":"Import!M11754","v":0}]
[39,{"$f":"Import!M10705","v":"Select"},{"$f":"Import!M10855","v":"Select"},{"$f":"Import!M11005","v":"Select"},{"$f":"Import!M11155","v":0},{"$f":"Import!M11305","v":0},{"$f":"Import!M11455","v":0},{"$f":"Import!M11605","v":0},{"$f":"Import!M11755","v":0}]
[40,{"$f":"Import!M10706","v":"Select"},{"$f":"Import!M10856","v":"Select"},{"$f":"Import!M11006","v":"Select"},{"$f":"Import!M11156","v":0},{"$f":"Import!M11306","v":0},{"$f":"Import!M11456","v":0},{"$f":"Import!M11606","v":0},{"$f":"Import!M11756","v":0}]
[41,{"$f":"Import!M10707","v":"Select"},{"$f":"Import!M10857","v":"Select"},{"$f":"Import!M11007","v":"Select"},{"$f":"Import!M11157","v":0},{"$f":"Import!M11307","v":0},{"$f":"Import!M11457","v":0},{"$f":"Import!M11607","v":0},{"$f":"Import!M11757","v":0}]
[42,{"$f":"Import!M10708","v":"Select"},{"$f":"Import!M10858","v":"Select"},{"$f":"Import!M11008","v":"Select"},{"$f":"Import!M11158","v":0},{"$f":"Import!M11308","v":0},{"$f":"Import!M11458","v":0},{"$f":"Import!M11608","v":0},{"$f":"Import!M11758","v":0}]
[43,{"$f":"Import!M10709","v":"Select"},{"$f":"Import!M10859","v":"Select"},{"$f":"Import!M11009","v":"Select"},{"$f":"Import!M11159","v":0},{"$f":"Import!M11309","v":0},{"$f":"Import!M11459","v":0},{"$f":"Import!M11609","v":0},{"$f":"Import!M11759","v":0}]
[44,{"$f":"Import!M10710","v":"Select"},{"$f":"Import!M10860","v":"Select"},{"$f":"Import!M11010","v":"Select"},{"$f":"Import!M11160","v":0},{"$f":"Import!M11310","v":0},{"$f":"Import!M11460","v":0},{"$f":"Import!M11610","v":0},{"$f":"Import!M11760","v":0}]
[45,{"$f":"Import!M10711","v":"Select"},{"$f":"Import!M10861","v":"Select"},{"$f":"Import!M11011","v":"Select"},{"$f":"Import!M11161","v":0},{"$f":"Import!M11311","v":0},{"$f":"Import!M11461","v":0},{"$f":"Import!M11611","v":0},{"$f":"Import!M11761","v":0}]
[46,{"$f":"Import!M10712","v":"Select"},{"$f":"Import!M10862","v":"Select"},{"$f":"Import!M11012","v":"Select"},{"$f":"Import!M11162","v":0},{"$f":"Import!M11312","v":0},{"$f":"Import!M11462","v":0},{"$f":"Import!M11612","v":0},{"$f":"Import!M11762","v":0}]
[47,{"$f":"Import!M10713","v":"Select"},{"$f":"Import!M10863","v":"Select"},{"$f":"Import!M11013","v":"Select"},{"$f":"Import!M11163","v":0},{"$f":"Import!M11313","v":0},{"$f":"Import!M11463","v":0},{"$f":"Import!M11613","v":0},{"$f":"Import!M11763","v":0}]
[48,{"$f":"Import!M10714","v":"Select"},{"$f":"Import!M10864","v":"Select"},{"$f":"Import!M11014","v":"Select"},{"$f":"Import!M11164","v":0},{"$f":"Import!M11314","v":0},{"$f":"Import!M11464","v":0},{"$f":"Import!M11614","v":0},{"$f":"Import!M11764","v":0}]
[49,{"$f":"Import!M10715","v":"Select"},{"$f":"Import!M10865","v":"Select"},{"$f":"Import!M11015","v":"Select"},{"$f":"Import!M11165","v":0},{"$f":"Import!M11315","v":0},{"$f":"Import!M11465","v":0},{"$f":"Import!M11615","v":0},{"$f":"Import!M11765","v":0}]
[50,{"$f":"Import!M10716","v":"Select"},{"$f":"Import!M10866","v":"Select"},{"$f":"Import!M11016","v":"Select"},{"$f":"Import!M11166","v":0},{"$f":"Import!M11316","v":0},{"$f":"Import!M11466","v":0},{"$f":"Import!M11616","v":0},{"$f":"Import!M11766","v":0}]
[51,{"$f":"Import!M10717","v":"Select"},{"$f":"Import!M10867","v":"Select"},{"$f":"Import!M11017","v":"Select"},{"$f":"Import!M11167","v":0},{"$f":"Import!M11317","v":0},{"$f":"Import!M11467","v":0},{"$f":"Import!M11617","v":0},{"$f":"Import!M11767","v":0}]
[52,{"$f":"Import!M10718","v":"Select"},{"$f":"Import!M10868","v":"Select"},{"$f":"Import!M11018","v":"Select"},{"$f":"Import!M11168","v":0},{"$f":"Import!M11318","v":0},{"$f":"Import!M11468","v":0},{"$f":"Import!M11618","v":0},{"$f":"Import!M11768","v":0}]
[53,{"$f":"Import!M10719","v":"Select"},{"$f":"Import!M10869","v":"Select"},{"$f":"Import!M11019","v":"Select"},{"$f":"Import!M11169","v":0},{"$f":"Import!M11319","v":0},{"$f":"Import!M11469","v":0},{"$f":"Import!M11619","v":0},{"$f":"Import!M11769","v":0}]
[54,{"$f":"Import!M10720","v":"Select"},{"$f":"Import!M10870","v":"Select"},{"$f":"Import!M11020","v":"Select"},{"$f":"Import!M11170","v":0},{"$f":"Import!M11320","v":0},{"$f":"Import!M11470","v":0},{"$f":"Import!M11620","v":0},{"$f":"Import!M11770","v":0}]
[55,{"$f":"Import!M10721","v":"Select"},{"$f":"Import!M10871","v":"Select"},{"$f":"Import!M11021","v":"Select"},{"$f":"Import!M11171","v":0},{"$f":"Import!M11321","v":0},{"$f":"Import!M11471","v":0},{"$f":"Import!M11621","v":0},{"$f":"Import!M11771","v":0}]
[56,{"$f":"Import!M10722","v":"Select"},{"$f":"Import!M10872","v":"Select"},{"$f":"Import!M11022","v":"Select"},{"$f":"Import!M11172","v":0},{"$f":"Import!M11322","v":0},{"$f":"Import!M11472","v":0},{"$f":"Import!M11622","v":0},{"$f":"Import!M11772","v":0}]
[57,{"$f":"Import!M10723","v":"Select"},{"$f":"Import!M10873","v":"Select"},{"$f":"Import!M11023","v":"Select"},{"$f":"Import!M11173","v":0},{"$f":"Import!M11323","v":0},{"$f":"Import!M11473","v":0},{"$f":"Import!M11623","v":0},{"$f":"Import!M11773","v":0}]
[58,{"$f":"Import!M10724","v":"Select"},{"$f":"Import!M10874","v":"Select"},{"$f":"Import!M11024","v":"Select"},{"$f":"Import!M11174","v":0},{"$f":"Import!M11324","v":0},{"$f":"Import!M11474","v":0},{"$f":"Import!M11624","v":0},{"$f":"Import!M11774","v":0}]
[59,{"$f":"Import!M10725","v":"Select"},{"$f":"Import!M10875","v":"Select"},{"$f":"Import!M11025","v":"Select"},{"$f":"Import!M11175","v":0},{"$f":"Import!M11325","v":0},{"$f":"Import!M11475","v":0},{"$f":"Import!M11625","v":0},{"$f":"Import!M11775","v":0}]
[60,{"$f":"Import!M10726","v":"Select"},{"$f":"Import!M10876","v":"Select"},{"$f":"Import!M11026","v":"Select"},{"$f":"Import!M11176","v":0},{"$f":"Import!M11326","v":0},{"$f":"Import!M11476","v":0},{"$f":"Import!M11626","v":0},{"$f":"Import!M11776","v":0}]
[61,{"$f":"Import!M10727","v":"Select"},{"$f":"Import!M10877","v":"Select"},{"$f":"Import!M11027","v":"Select"},{"$f":"Import!M11177","v":0},{"$f":"Import!M11327","v":0},{"$f":"Import!M11477","v":0},{"$f":"Import!M11627","v":0},{"$f":"Import!M11777","v":0}]
[62,{"$f":"Import!M10728","v":"Select"},{"$f":"Import!M10878","v":"Select"},{"$f":"Import!M11028","v":"Select"},{"$f":"Import!M11178","v":0},{"$f":"Import!M11328","v":0},{"$f":"Import!M11478","v":0},{"$f":"Import!M11628","v":0},{"$f":"Import!M11778","v":0}]
[63,{"$f":"Import!M10729","v":"Select"},{"$f":"Import!M10879","v":"Select"},{"$f":"Import!M11029","v":"Select"},{"$f":"Import!M11179","v":0},{"$f":"Import!M11329","v":0},{"$f":"Import!M11479","v":0},{"$f":"Import!M11629","v":0},{"$f":"Import!M11779","v":0}]
[64,{"$f":"Import!M10730","v":"Select"},{"$f":"Import!M10880","v":"Select"},{"$f":"Import!M11030","v":"Select"},{"$f":"Import!M11180","v":0},{"$f":"Import!M11330","v":0},{"$f":"Import!M11480","v":0},{"$f":"Import!M11630","v":0},{"$f":"Import!M11780","v":0}]
[65,{"$f":"Import!M10731","v":"Select"},{"$f":"Import!M10881","v":"Select"},{"$f":"Import!M11031","v":"Select"},{"$f":"Import!M11181","v":0},{"$f":"Import!M11331","v":0},{"$f":"Import!M11481","v":0},{"$f":"Import!M11631","v":0},{"$f":"Import!M11781","v":0}]
[66,{"$f":"Import!M10732","v":"Select"},{"$f":"Import!M10882","v":"Select"},{"$f":"Import!M11032","v":"Select"},{"$f":"Import!M11182","v":0},{"$f":"Import!M11332","v":0},{"$f":"Import!M11482","v":0},{"$f":"Import!M11632","v":0},{"$f":"Import!M11782","v":0}]
[{"$f":"A900+1","v":67},{"$f":"Import!M10733","v":"Select"},{"$f":"Import!M10883","v":"Select"},{"$f":"Import!M11033","v":"Select"},{"$f":"Import!M11183","v":0},{"$f":"Import!M11333","v":0},{"$f":"Import!M11483","v":0},{"$f":"Import!M11633","v":0},{"$f":"Import!M11783","v":0}]
[68,{"$f":"Import!M10734","v":"Select"},{"$f":"Import!M10884","v":"Select"},{"$f":"Import!M11034","v":"Select"},{"$f":"Import!M11184","v":0},{"$f":"Import!M11334","v":0},{"$f":"Import!M11484","v":0},{"$f":"Import!M11634","v":0},{"$f":"Import!M11784","v":0}]
[69,{"$f":"Import!M10735","v":"Select"},{"$f":"Import!M10885","v":"Select"},{"$f":"Import!M11035","v":"Select"},{"$f":"Import!M11185","v":0},{"$f":"Import!M11335","v":0},{"$f":"Import!M11485","v":0},{"$f":"Import!M11635","v":0},{"$f":"Import!M11785","v":0}]
[70,{"$f":"Import!M10736","v":"Select"},{"$f":"Import!M10886","v":"Select"},{"$f":"Import!M11036","v":"Select"},{"$f":"Import!M11186","v":0},{"$f":"Import!M11336","v":0},{"$f":"Import!M11486","v":0},{"$f":"Import!M11636","v":0},{"$f":"Import!M11786","v":0}]
[71,{"$f":"Import!M10737","v":"Select"},{"$f":"Import!M10887","v":"Select"},{"$f":"Import!M11037","v":"Select"},{"$f":"Import!M11187","v":0},{"$f":"Import!M11337","v":0},{"$f":"Import!M11487","v":0},{"$f":"Import!M11637","v":0},{"$f":"Import!M11787","v":0}]
[72,{"$f":"Import!M10738","v":"Select"},{"$f":"Import!M10888","v":"Select"},{"$f":"Import!M11038","v":"Select"},{"$f":"Import!M11188","v":0},{"$f":"Import!M11338","v":0},{"$f":"Import!M11488","v":0},{"$f":"Import!M11638","v":0},{"$f":"Import!M11788","v":0}]
[73,{"$f":"Import!M10739","v":"Select"},{"$f":"Import!M10889","v":"Select"},{"$f":"Import!M11039","v":"Select"},{"$f":"Import!M11189","v":0},{"$f":"Import!M11339","v":0},{"$f":"Import!M11489","v":0},{"$f":"Import!M11639","v":0},{"$f":"Import!M11789","v":0}]
[74,{"$f":"Import!M10740","v":"Select"},{"$f":"Import!M10890","v":"Select"},{"$f":"Import!M11040","v":"Select"},{"$f":"Import!M11190","v":0},{"$f":"Import!M11340","v":0},{"$f":"Import!M11490","v":0},{"$f":"Import!M11640","v":0},{"$f":"Import!M11790","v":0}]
[75,{"$f":"Import!M10741","v":"Select"},{"$f":"Import!M10891","v":"Select"},{"$f":"Import!M11041","v":"Select"},{"$f":"Import!M11191","v":0},{"$f":"Import!M11341","v":0},{"$f":"Import!M11491","v":0},{"$f":"Import!M11641","v":0},{"$f":"Import!M11791","v":0}]
[76,{"$f":"Import!M10742","v":"Select"},{"$f":"Import!M10892","v":"Select"},{"$f":"Import!M11042","v":"Select"},{"$f":"Import!M11192","v":0},{"$f":"Import!M11342","v":0},{"$f":"Import!M11492","v":0},{"$f":"Import!M11642","v":0},{"$f":"Import!M11792","v":0}]
[77,{"$f":"Import!M10743","v":"Select"},{"$f":"Import!M10893","v":"Select"},{"$f":"Import!M11043","v":"Select"},{"$f":"Import!M11193","v":0},{"$f":"Import!M11343","v":0},{"$f":"Import!M11493","v":0},{"$f":"Import!M11643","v":0},{"$f":"Import!M11793","v":0}]
[78,{"$f":"Import!M10744","v":"Select"},{"$f":"Import!M10894","v":"Select"},{"$f":"Import!M11044","v":"Select"},{"$f":"Import!M11194","v":0},{"$f":"Import!M11344","v":0},{"$f":"Import!M11494","v":0},{"$f":"Import!M11644","v":0},{"$f":"Import!M11794","v":0}]
[79,{"$f":"Import!M10745","v":"Select"},{"$f":"Import!M10895","v":"Select"},{"$f":"Import!M11045","v":"Select"},{"$f":"Import!M11195","v":0},{"$f":"Import!M11345","v":0},{"$f":"Import!M11495","v":0},{"$f":"Import!M11645","v":0},{"$f":"Import!M11795","v":0}]
[80,{"$f":"Import!M10746","v":"Select"},{"$f":"Import!M10896","v":"Select"},{"$f":"Import!M11046","v":"Select"},{"$f":"Import!M11196","v":0},{"$f":"Import!M11346","v":0},{"$f":"Import!M11496","v":0},{"$f":"Import!M11646","v":0},{"$f":"Import!M11796","v":0}]
[81,{"$f":"Import!M10747","v":"Select"},{"$f":"Import!M10897","v":"Select"},{"$f":"Import!M11047","v":"Select"},{"$f":"Import!M11197","v":0},{"$f":"Import!M11347","v":0},{"$f":"Import!M11497","v":0},{"$f":"Import!M11647","v":0},{"$f":"Import!M11797","v":0}]
[82,{"$f":"Import!M10748","v":"Select"},{"$f":"Import!M10898","v":"Select"},{"$f":"Import!M11048","v":"Select"},{"$f":"Import!M11198","v":0},{"$f":"Import!M11348","v":0},{"$f":"Import!M11498","v":0},{"$f":"Import!M11648","v":0},{"$f":"Import!M11798","v":0}]
[83,{"$f":"Import!M10749","v":"Select"},{"$f":"Import!M10899","v":"Select"},{"$f":"Import!M11049","v":"Select"},{"$f":"Import!M11199","v":0},{"$f":"Import!M11349","v":0},{"$f":"Import!M11499","v":0},{"$f":"Import!M11649","v":0},{"$f":"Import!M11799","v":0}]
[84,{"$f":"Import!M10750","v":"Select"},{"$f":"Import!M10900","v":"Select"},{"$f":"Import!M11050","v":"Select"},{"$f":"Import!M11200","v":0},{"$f":"Import!M11350","v":0},{"$f":"Import!M11500","v":0},{"$f":"Import!M11650","v":0},{"$f":"Import!M11800","v":0}]
[85,{"$f":"Import!M10751","v":"Select"},{"$f":"Import!M10901","v":"Select"},{"$f":"Import!M11051","v":"Select"},{"$f":"Import!M11201","v":0},{"$f":"Import!M11351","v":0},{"$f":"Import!M11501","v":0},{"$f":"Import!M11651","v":0},{"$f":"Import!M11801","v":0}]
[86,{"$f":"Import!M10752","v":"Select"},{"$f":"Import!M10902","v":"Select"},{"$f":"Import!M11052","v":"Select"},{"$f":"Import!M11202","v":0},{"$f":"Import!M11352","v":0},{"$f":"Import!M11502","v":0},{"$f":"Import!M11652","v":0},{"$f":"Import!M11802","v":0}]
[87,{"$f":"Import!M10753","v":"Select"},{"$f":"Import!M10903","v":"Select"},{"$f":"Import!M11053","v":"Select"},{"$f":"Import!M11203","v":0},{"$f":"Import!M11353","v":0},{"$f":"Import!M11503","v":0},{"$f":"Import!M11653","v":0},{"$f":"Import!M11803","v":0}]
[88,{"$f":"Import!M10754","v":"Select"},{"$f":"Import!M10904","v":"Select"},{"$f":"Import!M11054","v":"Select"},{"$f":"Import!M11204","v":0},{"$f":"Import!M11354","v":0},{"$f":"Import!M11504","v":0},{"$f":"Import!M11654","v":0},{"$f":"Import!M11804","v":0}]
[89,{"$f":"Import!M10755","v":"Select"},{"$f":"Import!M10905","v":"Select"},{"$f":"Import!M11055","v":"Select"},{"$f":"Import!M11205","v":0},{"$f":"Import!M11355","v":0},{"$f":"Import!M11505","v":0},{"$f":"Import!M11655","v":0},{"$f":"Import!M11805","v":0}]
[90,{"$f":"Import!M10756","v":"Select"},{"$f":"Import!M10906","v":"Select"},{"$f":"Import!M11056","v":"Select"},{"$f":"Import!M11206","v":0},{"$f":"Import!M11356","v":0},{"$f":"Import!M11506","v":0},{"$f":"Import!M11656","v":0},{"$f":"Import!M11806","v":0}]
[91,{"$f":"Import!M10757","v":"Select"},{"$f":"Import!M10907","v":"Select"},{"$f":"Import!M11057","v":"Select"},{"$f":"Import!M11207","v":0},{"$f":"Import!M11357","v":0},{"$f":"Import!M11507","v":0},{"$f":"Import!M11657","v":0},{"$f":"Import!M11807","v":0}]
[92,{"$f":"Import!M10758","v":"Select"},{"$f":"Import!M10908","v":"Select"},{"$f":"Import!M11058","v":"Select"},{"$f":"Import!M11208","v":0},{"$f":"Import!M11358","v":0},{"$f":"Import!M11508","v":0},{"$f":"Import!M11658","v":0},{"$f":"Import!M11808","v":0}]
[93,{"$f":"Import!M10759","v":"Select"},{"$f":"Import!M10909","v":"Select"},{"$f":"Import!M11059","v":"Select"},{"$f":"Import!M11209","v":0},{"$f":"Import!M11359","v":0},{"$f":"Import!M11509","v":0},{"$f":"Import!M11659","v":0},{"$f":"Import!M11809","v":0}]
[94,{"$f":"Import!M10760","v":"Select"},{"$f":"Import!M10910","v":"Select"},{"$f":"Import!M11060","v":"Select"},{"$f":"Import!M11210","v":0},{"$f":"Import!M11360","v":0},{"$f":"Import!M11510","v":0},{"$f":"Import!M11660","v":0},{"$f":"Import!M11810","v":0}]
[95,{"$f":"Import!M10761","v":"Select"},{"$f":"Import!M10911","v":"Select"},{"$f":"Import!M11061","v":"Select"},{"$f":"Import!M11211","v":0},{"$f":"Import!M11361","v":0},{"$f":"Import!M11511","v":0},{"$f":"Import!M11661","v":0},{"$f":"Import!M11811","v":0}]
[96,{"$f":"Import!M10762","v":"Select"},{"$f":"Import!M10912","v":"Select"},{"$f":"Import!M11062","v":"Select"},{"$f":"Import!M11212","v":0},{"$f":"Import!M11362","v":0},{"$f":"Import!M11512","v":0},{"$f":"Import!M11662","v":0},{"$f":"Import!M11812","v":0}]
[97,{"$f":"Import!M10763","v":"Select"},{"$f":"Import!M10913","v":"Select"},{"$f":"Import!M11063","v":"Select"},{"$f":"Import!M11213","v":0},{"$f":"Import!M11363","v":0},{"$f":"Import!M11513","v":0},{"$f":"Import!M11663","v":0},{"$f":"Import!M11813","v":0}]
[98,{"$f":"Import!M10764","v":"Select"},{"$f":"Import!M10914","v":"Select"},{"$f":"Import!M11064","v":"Select"},{"$f":"Import!M11214","v":0},{"$f":"Import!M11364","v":0},{"$f":"Import!M11514","v":0},{"$f":"Import!M11664","v":0},{"$f":"Import!M11814","v":0}]
[99,{"$f":"Import!M10765","v":"Select"},{"$f":"Import!M10915","v":"Select"},{"$f":"Import!M11065","v":"Select"},{"$f":"Import!M11215","v":0},{"$f":"Import!M11365","v":0},{"$f":"Import!M11515","v":0},{"$f":"Import!M11665","v":0},{"$f":"Import!M11815","v":0}]
[100,{"$f":"Import!M10766","v":"Select"},{"$f":"Import!M10916","v":"Select"},{"$f":"Import!M11066","v":"Select"},{"$f":"Import!M11216","v":0},{"$f":"Import!M11366","v":0},{"$f":"Import!M11516","v":0},{"$f":"Import!M11666","v":0},{"$f":"Import!M11816","v":0}]
[101,{"$f":"Import!M10767","v":"Select"},{"$f":"Import!M10917","v":"Select"},{"$f":"Import!M11067","v":"Select"},{"$f":"Import!M11217","v":0},{"$f":"Import!M11367","v":0},{"$f":"Import!M11517","v":0},{"$f":"Import!M11667","v":0},{"$f":"Import!M11817","v":0}]
[102,{"$f":"Import!M10768","v":"Select"},{"$f":"Import!M10918","v":"Select"},{"$f":"Import!M11068","v":"Select"},{"$f":"Import!M11218","v":0},{"$f":"Import!M11368","v":0},{"$f":"Import!M11518","v":0},{"$f":"Import!M11668","v":0},{"$f":"Import!M11818","v":0}]
[103,{"$f":"Import!M10769","v":"Select"},{"$f":"Import!M10919","v":"Select"},{"$f":"Import!M11069","v":"Select"},{"$f":"Import!M11219","v":0},{"$f":"Import!M11369","v":0},{"$f":"Import!M11519","v":0},{"$f":"Import!M11669","v":0},{"$f":"Import!M11819","v":0}]
[104,{"$f":"Import!M10770","v":"Select"},{"$f":"Import!M10920","v":"Select"},{"$f":"Import!M11070","v":"Select"},{"$f":"Import!M11220","v":0},{"$f":"Import!M11370","v":0},{"$f":"Import!M11520","v":0},{"$f":"Import!M11670","v":0},{"$f":"Import!M11820","v":0}]
[105,{"$f":"Import!M10771","v":"Select"},{"$f":"Import!M10921","v":"Select"},{"$f":"Import!M11071","v":"Select"},{"$f":"Import!M11221","v":0},{"$f":"Import!M11371","v":0},{"$f":"Import!M11521","v":0},{"$f":"Import!M11671","v":0},{"$f":"Import!M11821","v":0}]
[106,{"$f":"Import!M10772","v":"Select"},{"$f":"Import!M10922","v":"Select"},{"$f":"Import!M11072","v":"Select"},{"$f":"Import!M11222","v":0},{"$f":"Import!M11372","v":0},{"$f":"Import!M11522","v":0},{"$f":"Import!M11672","v":0},{"$f":"Import!M11822","v":0}]
[107,{"$f":"Import!M10773","v":"Select"},{"$f":"Import!M10923","v":"Select"},{"$f":"Import!M11073","v":"Select"},{"$f":"Import!M11223","v":0},{"$f":"Import!M11373","v":0},{"$f":"Import!M11523","v":0},{"$f":"Import!M11673","v":0},{"$f":"Import!M11823","v":0}]
[108,{"$f":"Import!M10774","v":"Select"},{"$f":"Import!M10924","v":"Select"},{"$f":"Import!M11074","v":"Select"},{"$f":"Import!M11224","v":0},{"$f":"Import!M11374","v":0},{"$f":"Import!M11524","v":0},{"$f":"Import!M11674","v":0},{"$f":"Import!M11824","v":0}]
[109,{"$f":"Import!M10775","v":"Select"},{"$f":"Import!M10925","v":"Select"},{"$f":"Import!M11075","v":"Select"},{"$f":"Import!M11225","v":0},{"$f":"Import!M11375","v":0},{"$f":"Import!M11525","v":0},{"$f":"Import!M11675","v":0},{"$f":"Import!M11825","v":0}]
[110,{"$f":"Import!M10776","v":"Select"},{"$f":"Import!M10926","v":"Select"},{"$f":"Import!M11076","v":"Select"},{"$f":"Import!M11226","v":0},{"$f":"Import!M11376","v":0},{"$f":"Import!M11526","v":0},{"$f":"Import!M11676","v":0},{"$f":"Import!M11826","v":0}]
[111,{"$f":"Import!M10777","v":"Select"},{"$f":"Import!M10927","v":"Select"},{"$f":"Import!M11077","v":"Select"},{"$f":"Import!M11227","v":0},{"$f":"Import!M11377","v":0},{"$f":"Import!M11527","v":0},{"$f":"Import!M11677","v":0},{"$f":"Import!M11827","v":0}]
[112,{"$f":"Import!M10778","v":"Select"},{"$f":"Import!M10928","v":"Select"},{"$f":"Import!M11078","v":"Select"},{"$f":"Import!M11228","v":0},{"$f":"Import!M11378","v":0},{"$f":"Import!M11528","v":0},{"$f":"Import!M11678","v":0},{"$f":"Import!M11828","v":0}]
[113,{"$f":"Import!M10779","v":"Select"},{"$f":"Import!M10929","v":"Select"},{"$f":"Import!M11079","v":"Select"},{"$f":"Import!M11229","v":0},{"$f":"Import!M11379","v":0},{"$f":"Import!M11529","v":0},{"$f":"Import!M11679","v":0},{"$f":"Import!M11829","v":0}]
[114,{"$f":"Import!M10780","v":"Select"},{"$f":"Import!M10930","v":"Select"},{"$f":"Import!M11080","v":"Select"},{"$f":"Import!M11230","v":0},{"$f":"Import!M11380","v":0},{"$f":"Import!M11530","v":0},{"$f":"Import!M11680","v":0},{"$f":"Import!M11830","v":0}]
[115,{"$f":"Import!M10781","v":"Select"},{"$f":"Import!M10931","v":"Select"},{"$f":"Import!M11081","v":"Select"},{"$f":"Import!M11231","v":0},{"$f":"Import!M11381","v":0},{"$f":"Import!M11531","v":0},{"$f":"Import!M11681","v":0},{"$f":"Import!M11831","v":0}]
[116,{"$f":"Import!M10782","v":"Select"},{"$f":"Import!M10932","v":"Select"},{"$f":"Import!M11082","v":"Select"},{"$f":"Import!M11232","v":0},{"$f":"Import!M11382","v":0},{"$f":"Import!M11532","v":0},{"$f":"Import!M11682","v":0},{"$f":"Import!M11832","v":0}]
[117,{"$f":"Import!M10783","v":"Select"},{"$f":"Import!M10933","v":"Select"},{"$f":"Import!M11083","v":"Select"},{"$f":"Import!M11233","v":0},{"$f":"Import!M11383","v":0},{"$f":"Import!M11533","v":0},{"$f":"Import!M11683","v":0},{"$f":"Import!M11833","v":0}]
[118,{"$f":"Import!M10784","v":"Select"},{"$f":"Import!M10934","v":"Select"},{"$f":"Import!M11084","v":"Select"},{"$f":"Import!M11234","v":0},{"$f":"Import!M11384","v":0},{"$f":"Import!M11534","v":0},{"$f":"Import!M11684","v":0},{"$f":"Import!M11834","v":0}]
[119,{"$f":"Import!M10785","v":"Select"},{"$f":"Import!M10935","v":"Select"},{"$f":"Import!M11085","v":"Select"},{"$f":"Import!M11235","v":0},{"$f":"Import!M11385","v":0},{"$f":"Import!M11535","v":0},{"$f":"Import!M11685","v":0},{"$f":"Import!M11835","v":0}]
[120,{"$f":"Import!M10786","v":"Select"},{"$f":"Import!M10936","v":"Select"},{"$f":"Import!M11086","v":"Select"},{"$f":"Import!M11236","v":0},{"$f":"Import!M11386","v":0},{"$f":"Import!M11536","v":0},{"$f":"Import!M11686","v":0},{"$f":"Import!M11836","v":0}]
[121,{"$f":"Import!M10787","v":"Select"},{"$f":"Import!M10937","v":"Select"},{"$f":"Import!M11087","v":"Select"},{"$f":"Import!M11237","v":0},{"$f":"Import!M11387","v":0},{"$f":"Import!M11537","v":0},{"$f":"Import!M11687","v":0},{"$f":"Import!M11837","v":0}]
[122,{"$f":"Import!M10788","v":"Select"},{"$f":"Import!M10938","v":"Select"},{"$f":"Import!M11088","v":"Select"},{"$f":"Import!M11238","v":0},{"$f":"Import!M11388","v":0},{"$f":"Import!M11538","v":0},{"$f":"Import!M11688","v":0},{"$f":"Import!M11838","v":0}]
[123,{"$f":"Import!M10789","v":"Select"},{"$f":"Import!M10939","v":"Select"},{"$f":"Import!M11089","v":"Select"},{"$f":"Import!M11239","v":0},{"$f":"Import!M11389","v":0},{"$f":"Import!M11539","v":0},{"$f":"Import!M11689","v":0},{"$f":"Import!M11839","v":0}]
[124,{"$f":"Import!M10790","v":"Select"},{"$f":"Import!M10940","v":"Select"},{"$f":"Import!M11090","v":"Select"},{"$f":"Import!M11240","v":0},{"$f":"Import!M11390","v":0},{"$f":"Import!M11540","v":0},{"$f":"Import!M11690","v":0},{"$f":"Import!M11840","v":0}]
[125,{"$f":"Import!M10791","v":"Select"},{"$f":"Import!M10941","v":"Select"},{"$f":"Import!M11091","v":"Select"},{"$f":"Import!M11241","v":0},{"$f":"Import!M11391","v":0},{"$f":"Import!M11541","v":0},{"$f":"Import!M11691","v":0},{"$f":"Import!M11841","v":0}]
[126,{"$f":"Import!M10792","v":"Select"},{"$f":"Import!M10942","v":"Select"},{"$f":"Import!M11092","v":"Select"},{"$f":"Import!M11242","v":0},{"$f":"Import!M11392","v":0},{"$f":"Import!M11542","v":0},{"$f":"Import!M11692","v":0},{"$f":"Import!M11842","v":0}]
[127,{"$f":"Import!M10793","v":"Select"},{"$f":"Import!M10943","v":"Select"},{"$f":"Import!M11093","v":"Select"},{"$f":"Import!M11243","v":0},{"$f":"Import!M11393","v":0},{"$f":"Import!M11543","v":0},{"$f":"Import!M11693","v":0},{"$f":"Import!M11843","v":0}]
[128,{"$f":"Import!M10794","v":"Select"},{"$f":"Import!M10944","v":"Select"},{"$f":"Import!M11094","v":"Select"},{"$f":"Import!M11244","v":0},{"$f":"Import!M11394","v":0},{"$f":"Import!M11544","v":0},{"$f":"Import!M11694","v":0},{"$f":"Import!M11844","v":0}]
[129,{"$f":"Import!M10795","v":"Select"},{"$f":"Import!M10945","v":"Select"},{"$f":"Import!M11095","v":"Select"},{"$f":"Import!M11245","v":0},{"$f":"Import!M11395","v":0},{"$f":"Import!M11545","v":0},{"$f":"Import!M11695","v":0},{"$f":"Import!M11845","v":0}]
[130,{"$f":"Import!M10796","v":"Select"},{"$f":"Import!M10946","v":"Select"},{"$f":"Import!M11096","v":"Select"},{"$f":"Import!M11246","v":0},{"$f":"Import!M11396","v":0},{"$f":"Import!M11546","v":0},{"$f":"Import!M11696","v":0},{"$f":"Import!M11846","v":0}]
[{"$f":"A964+1","v":131},{"$f":"Import!M10797","v":"Select"},{"$f":"Import!M10947","v":"Select"},{"$f":"Import!M11097","v":"Select"},{"$f":"Import!M11247","v":0},{"$f":"Import!M11397","v":0},{"$f":"Import!M11547","v":0},{"$f":"Import!M11697","v":0},{"$f":"Import!M11847","v":0}]
[132,{"$f":"Import!M10798","v":"Select"},{"$f":"Import!M10948","v":"Select"},{"$f":"Import!M11098","v":"Select"},{"$f":"Import!M11248","v":0},{"$f":"Import!M11398","v":0},{"$f":"Import!M11548","v":0},{"$f":"Import!M11698","v":0},{"$f":"Import!M11848","v":0}]
[133,{"$f":"Import!M10799","v":"Select"},{"$f":"Import!M10949","v":"Select"},{"$f":"Import!M11099","v":"Select"},{"$f":"Import!M11249","v":0},{"$f":"Import!M11399","v":0},{"$f":"Import!M11549","v":0},{"$f":"Import!M11699","v":0},{"$f":"Import!M11849","v":0}]
[134,{"$f":"Import!M10800","v":"Select"},{"$f":"Import!M10950","v":"Select"},{"$f":"Import!M11100","v":"Select"},{"$f":"Import!M11250","v":0},{"$f":"Import!M11400","v":0},{"$f":"Import!M11550","v":0},{"$f":"Import!M11700","v":0},{"$f":"Import!M11850","v":0}]
[135,{"$f":"Import!M10801","v":"Select"},{"$f":"Import!M10951","v":"Select"},{"$f":"Import!M11101","v":"Select"},{"$f":"Import!M11251","v":0},{"$f":"Import!M11401","v":0},{"$f":"Import!M11551","v":0},{"$f":"Import!M11701","v":0},{"$f":"Import!M11851","v":0}]
[136,{"$f":"Import!M10802","v":"Select"},{"$f":"Import!M10952","v":"Select"},{"$f":"Import!M11102","v":"Select"},{"$f":"Import!M11252","v":0},{"$f":"Import!M11402","v":0},{"$f":"Import!M11552","v":0},{"$f":"Import!M11702","v":0},{"$f":"Import!M11852","v":0}]
[137,{"$f":"Import!M10803","v":"Select"},{"$f":"Import!M10953","v":"Select"},{"$f":"Import!M11103","v":"Select"},{"$f":"Import!M11253","v":0},{"$f":"Import!M11403","v":0},{"$f":"Import!M11553","v":0},{"$f":"Import!M11703","v":0},{"$f":"Import!M11853","v":0}]
[138,{"$f":"Import!M10804","v":"Select"},{"$f":"Import!M10954","v":"Select"},{"$f":"Import!M11104","v":"Select"},{"$f":"Import!M11254","v":0},{"$f":"Import!M11404","v":0},{"$f":"Import!M11554","v":0},{"$f":"Import!M11704","v":0},{"$f":"Import!M11854","v":0}]
[139,{"$f":"Import!M10805","v":"Select"},{"$f":"Import!M10955","v":"Select"},{"$f":"Import!M11105","v":"Select"},{"$f":"Import!M11255","v":0},{"$f":"Import!M11405","v":0},{"$f":"Import!M11555","v":0},{"$f":"Import!M11705","v":0},{"$f":"Import!M11855","v":0}]
[140,{"$f":"Import!M10806","v":"Select"},{"$f":"Import!M10956","v":"Select"},{"$f":"Import!M11106","v":"Select"},{"$f":"Import!M11256","v":0},{"$f":"Import!M11406","v":0},{"$f":"Import!M11556","v":0},{"$f":"Import!M11706","v":0},{"$f":"Import!M11856","v":0}]
[141,{"$f":"Import!M10807","v":"Select"},{"$f":"Import!M10957","v":"Select"},{"$f":"Import!M11107","v":"Select"},{"$f":"Import!M11257","v":0},{"$f":"Import!M11407","v":0},{"$f":"Import!M11557","v":0},{"$f":"Import!M11707","v":0},{"$f":"Import!M11857","v":0}]
[142,{"$f":"Import!M10808","v":"Select"},{"$f":"Import!M10958","v":"Select"},{"$f":"Import!M11108","v":"Select"},{"$f":"Import!M11258","v":0},{"$f":"Import!M11408","v":0},{"$f":"Import!M11558","v":0},{"$f":"Import!M11708","v":0},{"$f":"Import!M11858","v":0}]
[143,{"$f":"Import!M10809","v":"Select"},{"$f":"Import!M10959","v":"Select"},{"$f":"Import!M11109","v":"Select"},{"$f":"Import!M11259","v":0},{"$f":"Import!M11409","v":0},{"$f":"Import!M11559","v":0},{"$f":"Import!M11709","v":0},{"$f":"Import!M11859","v":0}]
[144,{"$f":"Import!M10810","v":"Select"},{"$f":"Import!M10960","v":"Select"},{"$f":"Import!M11110","v":"Select"},{"$f":"Import!M11260","v":0},{"$f":"Import!M11410","v":0},{"$f":"Import!M11560","v":0},{"$f":"Import!M11710","v":0},{"$f":"Import!M11860","v":0}]
[145,{"$f":"Import!M10811","v":"Select"},{"$f":"Import!M10961","v":"Select"},{"$f":"Import!M11111","v":"Select"},{"$f":"Import!M11261","v":0},{"$f":"Import!M11411","v":0},{"$f":"Import!M11561","v":0},{"$f":"Import!M11711","v":0},{"$f":"Import!M11861","v":0}]
[146,{"$f":"Import!M10812","v":"Select"},{"$f":"Import!M10962","v":"Select"},{"$f":"Import!M11112","v":"Select"},{"$f":"Import!M11262","v":0},{"$f":"Import!M11412","v":0},{"$f":"Import!M11562","v":0},{"$f":"Import!M11712","v":0},{"$f":"Import!M11862","v":0}]
[147,{"$f":"Import!M10813","v":"Select"},{"$f":"Import!M10963","v":"Select"},{"$f":"Import!M11113","v":"Select"},{"$f":"Import!M11263","v":0},{"$f":"Import!M11413","v":0},{"$f":"Import!M11563","v":0},{"$f":"Import!M11713","v":0},{"$f":"Import!M11863","v":0}]
[148,{"$f":"Import!M10814","v":"Select"},{"$f":"Import!M10964","v":"Select"},{"$f":"Import!M11114","v":"Select"},{"$f":"Import!M11264","v":0},{"$f":"Import!M11414","v":0},{"$f":"Import!M11564","v":0},{"$f":"Import!M11714","v":0},{"$f":"Import!M11864","v":0}]
[149,{"$f":"Import!M10815","v":"Select"},{"$f":"Import!M10965","v":"Select"},{"$f":"Import!M11115","v":"Select"},{"$f":"Import!M11265","v":0},{"$f":"Import!M11415","v":0},{"$f":"Import!M11565","v":0},{"$f":"Import!M11715","v":0},{"$f":"Import!M11865","v":0}]
[150,{"$f":"Import!M10816","v":"Select"},{"$f":"Import!M10966","v":"Select"},{"$f":"Import!M11116","v":"Select"},{"$f":"Import!M11266","v":0},{"$f":"Import!M11416","v":0},{"$f":"Import!M11566","v":0},{"$f":"Import!M11716","v":0},{"$f":"Import!M11866","v":0}]
[]
[null,"Total Asset-Backed and Structured Securities",null,null,{"$f":"SUM(E835:E984)","v":0},{"$f":"SUM(F835:F984)","v":0},{"$f":"IFERROR(SUMPRODUCT(G835:G984,$F835:$F984)/SUM($F835:$F984),0)","v":0},{"$f":"IFERROR(SUMPRODUCT(H835:H984,$F835:$F984)/SUM($F835:$F984),0)","v":0}]
[]
[null,"(D) LOANS"]
[]
[null,null,"Enter # of Asset Types",{"$f":"Import!M11867","v":0}]
[null,null,null,null,null,{"$f":"YEAR($C$3)","v":2023},2023,"Weighted"]
[null,"Asset Type","Currency","Country","BSCR Rating","Nominal Amount","Fair Value","Average YTM","Effective Duration","Comments"]
[1,{"$f":"Import!M11868","v":"Select"},{"$f":"Import!M11968","v":"Select"},{"$f":"Import!M12068","v":"Select"},{"$f":"Import!M12168","v":"Select"},{"$f":"Import!M12268","v":0},{"$f":"Import!M12368","v":0},{"$f":"Import!M12468","v":0},{"$f":"Import!M12568","v":0},{"$f":"Import!M12668","v":0}]
[{"$f":"A993+1","v":2},{"$f":"Import!M11869","v":"Select"},{"$f":"Import!M11969","v":"Select"},{"$f":"Import!M12069","v":"Select"},{"$f":"Import!M12169","v":"Select"},{"$f":"Import!M12269","v":0},{"$f":"Import!M12369","v":0},{"$f":"Import!M12469","v":0},{"$f":"Import!M12569","v":0},{"$f":"Import!M12669","v":0}]
[{"$f":"A994+1","v":3},{"$f":"Import!M11870","v":"Select"},{"$f":"Import!M11970","v":"Select"},{"$f":"Import!M12070","v":"Select"},{"$f":"Import!M12170","v":"Select"},{"$f":"Import!M12270","v":0},{"$f":"Import!M12370","v":0},{"$f":"Import!M12470","v":0},{"$f":"Import!M12570","v":0},{"$f":"Import!M12670","v":0}]
[4,{"$f":"Import!M11871","v":"Select"},{"$f":"Import!M11971","v":"Select"},{"$f":"Import!M12071","v":"Select"},{"$f":"Import!M12171","v":"Select"},{"$f":"Import!M12271","v":0},{"$f":"Import!M12371","v":0},{"$f":"Import!M12471","v":0},{"$f":"Import!M12571","v":0},{"$f":"Import!M12671","v":0}]
[5,{"$f":"Import!M11872","v":"Select"},{"$f":"Import!M11972","v":"Select"},{"$f":"Import!M12072","v":"Select"},{"$f":"Import!M12172","v":"Select"},{"$f":"Import!M12272","v":0},{"$f":"Import!M12372","v":0},{"$f":"Import!M12472","v":0},{"$f":"Import!M12572","v":0},{"$f":"Import!M12672","v":0}]
[6,{"$f":"Import!M11873","v":"Select"},{"$f":"Import!M11973","v":"Select"},{"$f":"Import!M12073","v":"Select"},{"$f":"Import!M12173","v":"Select"},{"$f":"Import!M12273","v":0},{"$f":"Import!M12373","v":0},{"$f":"Import!M12473","v":0},{"$f":"Import!M12573","v":0},{"$f":"Import!M12673","v":0}]
[7,{"$f":"Import!M11874","v":"Select"},{"$f":"Import!M11974","v":"Select"},{"$f":"Import!M12074","v":"Select"},{"$f":"Import!M12174","v":"Select"},{"$f":"Import!M12274","v":0},{"$f":"Import!M12374","v":0},{"$f":"Import!M12474","v":0},{"$f":"Import!M12574","v":0},{"$f":"Import!M12674","v":0}]
[8,{"$f":"Import!M11875","v":"Select"},{"$f":"Import!M11975","v":"Select"},{"$f":"Import!M12075","v":"Select"},{"$f":"Import!M12175","v":"Select"},{"$f":"Import!M12275","v":0},{"$f":"Import!M12375","v":0},{"$f":"Import!M12475","v":0},{"$f":"Import!M12575","v":0},{"$f":"Import!M12675","v":0}]
[9,{"$f":"Import!M11876","v":"Select"},{"$f":"Import!M11976","v":"Select"},{"$f":"Import!M12076","v":"Select"},{"$f":"Import!M12176","v":"Select"},{"$f":"Import!M12276","v":0},{"$f":"Import!M12376","v":0},{"$f":"Import!M12476","v":0},{"$f":"Import!M12576","v":0},{"$f":"Import!M12676","v":0}]
[10,{"$f":"Import!M11877","v":"Select"},{"$f":"Import!M11977","v":"Select"},{"$f":"Import!M12077","v":"Select"},{"$f":"Import!M12177","v":"Select"},{"$f":"Import!M12277","v":0},{"$f":"Import!M12377","v":0},{"$f":"Import!M12477","v":0},{"$f":"Import!M12577","v":0},{"$f":"Import!M12677","v":0}]
[11,{"$f":"Import!M11878","v":"Select"},{"$f":"Import!M11978","v":"Select"},{"$f":"Import!M12078","v":"Select"},{"$f":"Import!M12178","v":"Select"},{"$f":"Import!M12278","v":0},{"$f":"Import!M12378","v":0},{"$f":"Import!M12478","v":0},{"$f":"Import!M12578","v":0},{"$f":"Import!M12678","v":0}]
[12,{"$f":"Import!M11879","v":"Select"},{"$f":"Import!M11979","v":"Select"},{"$f":"Import!M12079","v":"Select"},{"$f":"Import!M12179","v":"Select"},{"$f":"Import!M12279","v":0},{"$f":"Import!M12379","v":0},{"$f":"Import!M12479","v":0},{"$f":"Import!M12579","v":0},{"$f":"Import!M12679","v":0}]
[13,{"$f":"Import!M11880","v":"Select"},{"$f":"Import!M11980","v":"Select"},{"$f":"Import!M12080","v":"Select"},{"$f":"Import!M12180","v":"Select"},{"$f":"Import!M12280","v":0},{"$f":"Import!M12380","v":0},{"$f":"Import!M12480","v":0},{"$f":"Import!M12580","v":0},{"$f":"Import!M12680","v":0}]
[14,{"$f":"Import!M11881","v":"Select"},{"$f":"Import!M11981","v":"Select"},{"$f":"Import!M12081","v":"Select"},{"$f":"Import!M12181","v":"Select"},{"$f":"Import!M12281","v":0},{"$f":"Import!M12381","v":0},{"$f":"Import!M12481","v":0},{"$f":"Import!M12581","v":0},{"$f":"Import!M12681","v":0}]
[15,{"$f":"Import!M11882","v":"Select"},{"$f":"Import!M11982","v":"Select"},{"$f":"Import!M12082","v":"Select"},{"$f":"Import!M12182","v":"Select"},{"$f":"Import!M12282","v":0},{"$f":"Import!M12382","v":0},{"$f":"Import!M12482","v":0},{"$f":"Import!M12582","v":0},{"$f":"Import!M12682","v":0}]
[16,{"$f":"Import!M11883","v":"Select"},{"$f":"Import!M11983","v":"Select"},{"$f":"Import!M12083","v":"Select"},{"$f":"Import!M12183","v":"Select"},{"$f":"Import!M12283","v":0},{"$f":"Import!M12383","v":0},{"$f":"Import!M12483","v":0},{"$f":"Import!M12583","v":0},{"$f":"Import!M12683","v":0}]
[17,{"$f":"Import!M11884","v":"Select"},{"$f":"Import!M11984","v":"Select"},{"$f":"Import!M12084","v":"Select"},{"$f":"Import!M12184","v":"Select"},{"$f":"Import!M12284","v":0},{"$f":"Import!M12384","v":0},{"$f":"Import!M12484","v":0},{"$f":"Import!M12584","v":0},{"$f":"Import!M12684","v":0}]
[18,{"$f":"Import!M11885","v":"Select"},{"$f":"Import!M11985","v":"Select"},{"$f":"Import!M12085","v":"Select"},{"$f":"Import!M12185","v":"Select"},{"$f":"Import!M12285","v":0},{"$f":"Import!M12385","v":0},{"$f":"Import!M12485","v":0},{"$f":"Import!M12585","v":0},{"$f":"Import!M12685","v":0}]
[19,{"$f":"Import!M11886","v":"Select"},{"$f":"Import!M11986","v":"Select"},{"$f":"Import!M12086","v":"Select"},{"$f":"Import!M12186","v":"Select"},{"$f":"Import!M12286","v":0},{"$f":"Import!M12386","v":0},{"$f":"Import!M12486","v":0},{"$f":"Import!M12586","v":0},{"$f":"Import!M12686","v":0}]
[20,{"$f":"Import!M11887","v":"Select"},{"$f":"Import!M11987","v":"Select"},{"$f":"Import!M12087","v":"Select"},{"$f":"Import!M12187","v":"Select"},{"$f":"Import!M12287","v":0},{"$f":"Import!M12387","v":0},{"$f":"Import!M12487","v":0},{"$f":"Import!M12587","v":0},{"$f":"Import!M12687","v":0}]
[21,{"$f":"Import!M11888","v":"Select"},{"$f":"Import!M11988","v":"Select"},{"$f":"Import!M12088","v":"Select"},{"$f":"Import!M12188","v":"Select"},{"$f":"Import!M12288","v":0},{"$f":"Import!M12388","v":0},{"$f":"Import!M12488","v":0},{"$f":"Import!M12588","v":0},{"$f":"Import!M12688","v":0}]
[22,{"$f":"Import!M11889","v":"Select"},{"$f":"Import!M11989","v":"Select"},{"$f":"Import!M12089","v":"Select"},{"$f":"Import!M12189","v":"Select"},{"$f":"Import!M12289","v":0},{"$f":"Import!M12389","v":0},{"$f":"Import!M12489","v":0},{"$f":"Import!M12589","v":0},{"$f":"Import!M12689","v":0}]
[23,{"$f":"Import!M11890","v":"Select"},{"$f":"Import!M11990","v":"Select"},{"$f":"Import!M12090","v":"Select"},{"$f":"Import!M12190","v":"Select"},{"$f":"Import!M12290","v":0},{"$f":"Import!M12390","v":0},{"$f":"Import!M12490","v":0},{"$f":"Import!M12590","v":0},{"$f":"Import!M12690","v":0}]
[24,{"$f":"Import!M11891","v":"Select"},{"$f":"Import!M11991","v":"Select"},{"$f":"Import!M12091","v":"Select"},{"$f":"Import!M12191","v":"Select"},{"$f":"Import!M12291","v":0},{"$f":"Import!M12391","v":0},{"$f":"Import!M12491","v":0},{"$f":"Import!M12591","v":0},{"$f":"Import!M12691","v":0}]
[25,{"$f":"Import!M11892","v":"Select"},{"$f":"Import!M11992","v":"Select"},{"$f":"Import!M12092","v":"Select"},{"$f":"Import!M12192","v":"Select"},{"$f":"Import!M12292","v":0},{"$f":"Import!M12392","v":0},{"$f":"Import!M12492","v":0},{"$f":"Import!M12592","v":0},{"$f":"Import!M12692","v":0}]
[26,{"$f":"Import!M11893","v":"Select"},{"$f":"Import!M11993","v":"Select"},{"$f":"Import!M12093","v":"Select"},{"$f":"Import!M12193","v":"Select"},{"$f":"Import!M12293","v":0},{"$f":"Import!M12393","v":0},{"$f":"Import!M12493","v":0},{"$f":"Import!M12593","v":0},{"$f":"Import!M12693","v":0}]
[27,{"$f":"Import!M11894","v":"Select"},{"$f":"Import!M11994","v":"Select"},{"$f":"Import!M12094","v":"Select"},{"$f":"Import!M12194","v":"Select"},{"$f":"Import!M12294","v":0},{"$f":"Import!M12394","v":0},{"$f":"Import!M12494","v":0},{"$f":"Import!M12594","v":0},{"$f":"Import!M12694","v":0}]
[28,{"$f":"Import!M11895","v":"Select"},{"$f":"Import!M11995","v":"Select"},{"$f":"Import!M12095","v":"Select"},{"$f":"Import!M12195","v":"Select"},{"$f":"Import!M12295","v":0},{"$f":"Import!M12395","v":0},{"$f":"Import!M12495","v":0},{"$f":"Import!M12595","v":0},{"$f":"Import!M12695","v":0}]
[29,{"$f":"Import!M11896","v":"Select"},{"$f":"Import!M11996","v":"Select"},{"$f":"Import!M12096","v":"Select"},{"$f":"Import!M12196","v":"Select"},{"$f":"Import!M12296","v":0},{"$f":"Import!M12396","v":0},{"$f":"Import!M12496","v":0},{"$f":"Import!M12596","v":0},{"$f":"Import!M12696","v":0}]
[30,{"$f":"Import!M11897","v":"Select"},{"$f":"Import!M11997","v":"Select"},{"$f":"Import!M12097","v":"Select"},{"$f":"Import!M12197","v":"Select"},{"$f":"Import!M12297","v":0},{"$f":"Import!M12397","v":0},{"$f":"Import!M12497","v":0},{"$f":"Import!M12597","v":0},{"$f":"Import!M12697","v":0}]
[31,{"$f":"Import!M11898","v":"Select"},{"$f":"Import!M11998","v":"Select"},{"$f":"Import!M12098","v":"Select"},{"$f":"Import!M12198","v":"Select"},{"$f":"Import!M12298","v":0},{"$f":"Import!M12398","v":0},{"$f":"Import!M12498","v":0},{"$f":"Import!M12598","v":0},{"$f":"Import!M12698","v":0}]
[32,{"$f":"Import!M11899","v":"Select"},{"$f":"Import!M11999","v":"Select"},{"$f":"Import!M12099","v":"Select"},{"$f":"Import!M12199","v":"Select"},{"$f":"Import!M12299","v":0},{"$f":"Import!M12399","v":0},{"$f":"Import!M12499","v":0},{"$f":"Import!M12599","v":0},{"$f":"Import!M12699","v":0}]
[33,{"$f":"Import!M11900","v":"Select"},{"$f":"Import!M12000","v":"Select"},{"$f":"Import!M12100","v":"Select"},{"$f":"Import!M12200","v":"Select"},{"$f":"Import!M12300","v":0},{"$f":"Import!M12400","v":0},{"$f":"Import!M12500","v":0},{"$f":"Import!M12600","v":0},{"$f":"Import!M12700","v":0}]
[34,{"$f":"Import!M11901","v":"Select"},{"$f":"Import!M12001","v":"Select"},{"$f":"Import!M12101","v":"Select"},{"$f":"Import!M12201","v":"Select"},{"$f":"Import!M12301","v":0},{"$f":"Import!M12401","v":0},{"$f":"Import!M12501","v":0},{"$f":"Import!M12601","v":0},{"$f":"Import!M12701","v":0}]
[35,{"$f":"Import!M11902","v":"Select"},{"$f":"Import!M12002","v":"Select"},{"$f":"Import!M12102","v":"Select"},{"$f":"Import!M12202","v":"Select"},{"$f":"Import!M12302","v":0},{"$f":"Import!M12402","v":0},{"$f":"Import!M12502","v":0},{"$f":"Import!M12602","v":0},{"$f":"Import!M12702","v":0}]
[36,{"$f":"Import!M11903","v":"Select"},{"$f":"Import!M12003","v":"Select"},{"$f":"Import!M12103","v":"Select"},{"$f":"Import!M12203","v":"Select"},{"$f":"Import!M12303","v":0},{"$f":"Import!M12403","v":0},{"$f":"Import!M12503","v":0},{"$f":"Import!M12603","v":0},{"$f":"Import!M12703","v":0}]
[37,{"$f":"Import!M11904","v":"Select"},{"$f":"Import!M12004","v":"Select"},{"$f":"Import!M12104","v":"Select"},{"$f":"Import!M12204","v":"Select"},{"$f":"Import!M12304","v":0},{"$f":"Import!M12404","v":0},{"$f":"Import!M12504","v":0},{"$f":"Import!M12604","v":0},{"$f":"Import!M12704","v":0}]
[38,{"$f":"Import!M11905","v":"Select"},{"$f":"Import!M12005","v":"Select"},{"$f":"Import!M12105","v":"Select"},{"$f":"Import!M12205","v":"Select"},{"$f":"Import!M12305","v":0},{"$f":"Import!M12405","v":0},{"$f":"Import!M12505","v":0},{"$f":"Import!M12605","v":0},{"$f":"Import!M12705","v":0}]
[39,{"$f":"Import!M11906","v":"Select"},{"$f":"Import!M12006","v":"Select"},{"$f":"Import!M12106","v":"Select"},{"$f":"Import!M12206","v":"Select"},{"$f":"Import!M12306","v":0},{"$f":"Import!M12406","v":0},{"$f":"Import!M12506","v":0},{"$f":"Import!M12606","v":0},{"$f":"Import!M12706","v":0}]
[40,{"$f":"Import!M11907","v":"Select"},{"$f":"Import!M12007","v":"Select"},{"$f":"Import!M12107","v":"Select"},{"$f":"Import!M12207","v":"Select"},{"$f":"Import!M12307","v":0},{"$f":"Import!M12407","v":0},{"$f":"Import!M12507","v":0},{"$f":"Import!M12607","v":0},{"$f":"Import!M12707","v":0}]
[41,{"$f":"Import!M11908","v":"Select"},{"$f":"Import!M12008","v":"Select"},{"$f":"Import!M12108","v":"Select"},{"$f":"Import!M12208","v":"Select"},{"$f":"Import!M12308","v":0},{"$f":"Import!M12408","v":0},{"$f":"Import!M12508","v":0},{"$f":"Import!M12608","v":0},{"$f":"Import!M12708","v":0}]
[42,{"$f":"Import!M11909","v":"Select"},{"$f":"Import!M12009","v":"Select"},{"$f":"Import!M12109","v":"Select"},{"$f":"Import!M12209","v":"Select"},{"$f":"Import!M12309","v":0},{"$f":"Import!M12409","v":0},{"$f":"Import!M12509","v":0},{"$f":"Import!M12609","v":0},{"$f":"Import!M12709","v":0}]
[43,{"$f":"Import!M11910","v":"Select"},{"$f":"Import!M12010","v":"Select"},{"$f":"Import!M12110","v":"Select"},{"$f":"Import!M12210","v":"Select"},{"$f":"Import!M12310","v":0},{"$f":"Import!M12410","v":0},{"$f":"Import!M12510","v":0},{"$f":"Import!M12610","v":0},{"$f":"Import!M12710","v":0}]
[44,{"$f":"Import!M11911","v":"Select"},{"$f":"Import!M12011","v":"Select"},{"$f":"Import!M12111","v":"Select"},{"$f":"Import!M12211","v":"Select"},{"$f":"Import!M12311","v":0},{"$f":"Import!M12411","v":0},{"$f":"Import!M12511","v":0},{"$f":"Import!M12611","v":0},{"$f":"Import!M12711","v":0}]
[45,{"$f":"Import!M11912","v":"Select"},{"$f":"Import!M12012","v":"Select"},{"$f":"Import!M12112","v":"Select"},{"$f":"Import!M12212","v":"Select"},{"$f":"Import!M12312","v":0},{"$f":"Import!M12412","v":0},{"$f":"Import!M12512","v":0},{"$f":"Import!M12612","v":0},{"$f":"Import!M12712","v":0}]
[46,{"$f":"Import!M11913","v":"Select"},{"$f":"Import!M12013","v":"Select"},{"$f":"Import!M12113","v":"Select"},{"$f":"Import!M12213","v":"Select"},{"$f":"Import!M12313","v":0},{"$f":"Import!M12413","v":0},{"$f":"Import!M12513","v":0},{"$f":"Import!M12613","v":0},{"$f":"Import!M12713","v":0}]
[47,{"$f":"Import!M11914","v":"Select"},{"$f":"Import!M12014","v":"Select"},{"$f":"Import!M12114","v":"Select"},{"$f":"Import!M12214","v":"Select"},{"$f":"Import!M12314","v":0},{"$f":"Import!M12414","v":0},{"$f":"Import!M12514","v":0},{"$f":"Import!M12614","v":0},{"$f":"Import!M12714","v":0}]
[48,{"$f":"Import!M11915","v":"Select"},{"$f":"Import!M12015","v":"Select"},{"$f":"Import!M12115","v":"Select"},{"$f":"Import!M12215","v":"Select"},{"$f":"Import!M12315","v":0},{"$f":"Import!M12415","v":0},{"$f":"Import!M12515","v":0},{"$f":"Import!M12615","v":0},{"$f":"Import!M12715","v":0}]
[49,{"$f":"Import!M11916","v":"Select"},{"$f":"Import!M12016","v":"Select"},{"$f":"Import!M12116","v":"Select"},{"$f":"Import!M12216","v":"Select"},{"$f":"Import!M12316","v":0},{"$f":"Import!M12416","v":0},{"$f":"Import!M12516","v":0},{"$f":"Import!M12616","v":0},{"$f":"Import!M12716","v":0}]
[50,{"$f":"Import!M11917","v":"Select"},{"$f":"Import!M12017","v":"Select"},{"$f":"Import!M12117","v":"Select"},{"$f":"Import!M12217","v":"Select"},{"$f":"Import!M12317","v":0},{"$f":"Import!M12417","v":0},{"$f":"Import!M12517","v":0},{"$f":"Import!M12617","v":0},{"$f":"Import!M12717","v":0}]
[51,{"$f":"Import!M11918","v":"Select"},{"$f":"Import!M12018","v":"Select"},{"$f":"Import!M12118","v":"Select"},{"$f":"Import!M12218","v":"Select"},{"$f":"Import!M12318","v":0},{"$f":"Import!M12418","v":0},{"$f":"Import!M12518","v":0},{"$f":"Import!M12618","v":0},{"$f":"Import!M12718","v":0}]
[52,{"$f":"Import!M11919","v":"Select"},{"$f":"Import!M12019","v":"Select"},{"$f":"Import!M12119","v":"Select"},{"$f":"Import!M12219","v":"Select"},{"$f":"Import!M12319","v":0},{"$f":"Import!M12419","v":0},{"$f":"Import!M12519","v":0},{"$f":"Import!M12619","v":0},{"$f":"Import!M12719","v":0}]
[53,{"$f":"Import!M11920","v":"Select"},{"$f":"Import!M12020","v":"Select"},{"$f":"Import!M12120","v":"Select"},{"$f":"Import!M12220","v":"Select"},{"$f":"Import!M12320","v":0},{"$f":"Import!M12420","v":0},{"$f":"Import!M12520","v":0},{"$f":"Import!M12620","v":0},{"$f":"Import!M12720","v":0}]
[54,{"$f":"Import!M11921","v":"Select"},{"$f":"Import!M12021","v":"Select"},{"$f":"Import!M12121","v":"Select"},{"$f":"Import!M12221","v":"Select"},{"$f":"Import!M12321","v":0},{"$f":"Import!M12421","v":0},{"$f":"Import!M12521","v":0},{"$f":"Import!M12621","v":0},{"$f":"Import!M12721","v":0}]
[55,{"$f":"Import!M11922","v":"Select"},{"$f":"Import!M12022","v":"Select"},{"$f":"Import!M12122","v":"Select"},{"$f":"Import!M12222","v":"Select"},{"$f":"Import!M12322","v":0},{"$f":"Import!M12422","v":0},{"$f":"Import!M12522","v":0},{"$f":"Import!M12622","v":0},{"$f":"Import!M12722","v":0}]
[56,{"$f":"Import!M11923","v":"Select"},{"$f":"Import!M12023","v":"Select"},{"$f":"Import!M12123","v":"Select"},{"$f":"Import!M12223","v":"Select"},{"$f":"Import!M12323","v":0},{"$f":"Import!M12423","v":0},{"$f":"Import!M12523","v":0},{"$f":"Import!M12623","v":0},{"$f":"Import!M12723","v":0}]
[57,{"$f":"Import!M11924","v":"Select"},{"$f":"Import!M12024","v":"Select"},{"$f":"Import!M12124","v":"Select"},{"$f":"Import!M12224","v":"Select"},{"$f":"Import!M12324","v":0},{"$f":"Import!M12424","v":0},{"$f":"Import!M12524","v":0},{"$f":"Import!M12624","v":0},{"$f":"Import!M12724","v":0}]
[58,{"$f":"Import!M11925","v":"Select"},{"$f":"Import!M12025","v":"Select"},{"$f":"Import!M12125","v":"Select"},{"$f":"Import!M12225","v":"Select"},{"$f":"Import!M12325","v":0},{"$f":"Import!M12425","v":0},{"$f":"Import!M12525","v":0},{"$f":"Import!M12625","v":0},{"$f":"Import!M12725","v":0}]
[59,{"$f":"Import!M11926","v":"Select"},{"$f":"Import!M12026","v":"Select"},{"$f":"Import!M12126","v":"Select"},{"$f":"Import!M12226","v":"Select"},{"$f":"Import!M12326","v":0},{"$f":"Import!M12426","v":0},{"$f":"Import!M12526","v":0},{"$f":"Import!M12626","v":0},{"$f":"Import!M12726","v":0}]
[60,{"$f":"Import!M11927","v":"Select"},{"$f":"Import!M12027","v":"Select"},{"$f":"Import!M12127","v":"Select"},{"$f":"Import!M12227","v":"Select"},{"$f":"Import!M12327","v":0},{"$f":"Import!M12427","v":0},{"$f":"Import!M12527","v":0},{"$f":"Import!M12627","v":0},{"$f":"Import!M12727","v":0}]
[61,{"$f":"Import!M11928","v":"Select"},{"$f":"Import!M12028","v":"Select"},{"$f":"Import!M12128","v":"Select"},{"$f":"Import!M12228","v":"Select"},{"$f":"Import!M12328","v":0},{"$f":"Import!M12428","v":0},{"$f":"Import!M12528","v":0},{"$f":"Import!M12628","v":0},{"$f":"Import!M12728","v":0}]
[62,{"$f":"Import!M11929","v":"Select"},{"$f":"Import!M12029","v":"Select"},{"$f":"Import!M12129","v":"Select"},{"$f":"Import!M12229","v":"Select"},{"$f":"Import!M12329","v":0},{"$f":"Import!M12429","v":0},{"$f":"Import!M12529","v":0},{"$f":"Import!M12629","v":0},{"$f":"Import!M12729","v":0}]
[63,{"$f":"Import!M11930","v":"Select"},{"$f":"Import!M12030","v":"Select"},{"$f":"Import!M12130","v":"Select"},{"$f":"Import!M12230","v":"Select"},{"$f":"Import!M12330","v":0},{"$f":"Import!M12430","v":0},{"$f":"Import!M12530","v":0},{"$f":"Import!M12630","v":0},{"$f":"Import!M12730","v":0}]
[64,{"$f":"Import!M11931","v":"Select"},{"$f":"Import!M12031","v":"Select"},{"$f":"Import!M12131","v":"Select"},{"$f":"Import!M12231","v":"Select"},{"$f":"Import!M12331","v":0},{"$f":"Import!M12431","v":0},{"$f":"Import!M12531","v":0},{"$f":"Import!M12631","v":0},{"$f":"Import!M12731","v":0}]
[65,{"$f":"Import!M11932","v":"Select"},{"$f":"Import!M12032","v":"Select"},{"$f":"Import!M12132","v":"Select"},{"$f":"Import!M12232","v":"Select"},{"$f":"Import!M12332","v":0},{"$f":"Import!M12432","v":0},{"$f":"Import!M12532","v":0},{"$f":"Import!M12632","v":0},{"$f":"Import!M12732","v":0}]
[66,{"$f":"Import!M11933","v":"Select"},{"$f":"Import!M12033","v":"Select"},{"$f":"Import!M12133","v":"Select"},{"$f":"Import!M12233","v":"Select"},{"$f":"Import!M12333","v":0},{"$f":"Import!M12433","v":0},{"$f":"Import!M12533","v":0},{"$f":"Import!M12633","v":0},{"$f":"Import!M12733","v":0}]
[{"$f":"A1058+1","v":67},{"$f":"Import!M11934","v":"Select"},{"$f":"Import!M12034","v":"Select"},{"$f":"Import!M12134","v":"Select"},{"$f":"Import!M12234","v":"Select"},{"$f":"Import!M12334","v":0},{"$f":"Import!M12434","v":0},{"$f":"Import!M12534","v":0},{"$f":"Import!M12634","v":0},{"$f":"Import!M12734","v":0}]
[68,{"$f":"Import!M11935","v":"Select"},{"$f":"Import!M12035","v":"Select"},{"$f":"Import!M12135","v":"Select"},{"$f":"Import!M12235","v":"Select"},{"$f":"Import!M12335","v":0},{"$f":"Import!M12435","v":0},{"$f":"Import!M12535","v":0},{"$f":"Import!M12635","v":0},{"$f":"Import!M12735","v":0}]
[69,{"$f":"Import!M11936","v":"Select"},{"$f":"Import!M12036","v":"Select"},{"$f":"Import!M12136","v":"Select"},{"$f":"Import!M12236","v":"Select"},{"$f":"Import!M12336","v":0},{"$f":"Import!M12436","v":0},{"$f":"Import!M12536","v":0},{"$f":"Import!M12636","v":0},{"$f":"Import!M12736","v":0}]
[70,{"$f":"Import!M11937","v":"Select"},{"$f":"Import!M12037","v":"Select"},{"$f":"Import!M12137","v":"Select"},{"$f":"Import!M12237","v":"Select"},{"$f":"Import!M12337","v":0},{"$f":"Import!M12437","v":0},{"$f":"Import!M12537","v":0},{"$f":"Import!M12637","v":0},{"$f":"Import!M12737","v":0}]
[71,{"$f":"Import!M11938","v":"Select"},{"$f":"Import!M12038","v":"Select"},{"$f":"Import!M12138","v":"Select"},{"$f":"Import!M12238","v":"Select"},{"$f":"Import!M12338","v":0},{"$f":"Import!M12438","v":0},{"$f":"Import!M12538","v":0},{"$f":"Import!M12638","v":0},{"$f":"Import!M12738","v":0}]
[72,{"$f":"Import!M11939","v":"Select"},{"$f":"Import!M12039","v":"Select"},{"$f":"Import!M12139","v":"Select"},{"$f":"Import!M12239","v":"Select"},{"$f":"Import!M12339","v":0},{"$f":"Import!M12439","v":0},{"$f":"Import!M12539","v":0},{"$f":"Import!M12639","v":0},{"$f":"Import!M12739","v":0}]
[73,{"$f":"Import!M11940","v":"Select"},{"$f":"Import!M12040","v":"Select"},{"$f":"Import!M12140","v":"Select"},{"$f":"Import!M12240","v":"Select"},{"$f":"Import!M12340","v":0},{"$f":"Import!M12440","v":0},{"$f":"Import!M12540","v":0},{"$f":"Import!M12640","v":0},{"$f":"Import!M12740","v":0}]
[74,{"$f":"Import!M11941","v":"Select"},{"$f":"Import!M12041","v":"Select"},{"$f":"Import!M12141","v":"Select"},{"$f":"Import!M12241","v":"Select"},{"$f":"Import!M12341","v":0},{"$f":"Import!M12441","v":0},{"$f":"Import!M12541","v":0},{"$f":"Import!M12641","v":0},{"$f":"Import!M12741","v":0}]
[75,{"$f":"Import!M11942","v":"Select"},{"$f":"Import!M12042","v":"Select"},{"$f":"Import!M12142","v":"Select"},{"$f":"Import!M12242","v":"Select"},{"$f":"Import!M12342","v":0},{"$f":"Import!M12442","v":0},{"$f":"Import!M12542","v":0},{"$f":"Import!M12642","v":0},{"$f":"Import!M12742","v":0}]
[76,{"$f":"Import!M11943","v":"Select"},{"$f":"Import!M12043","v":"Select"},{"$f":"Import!M12143","v":"Select"},{"$f":"Import!M12243","v":"Select"},{"$f":"Import!M12343","v":0},{"$f":"Import!M12443","v":0},{"$f":"Import!M12543","v":0},{"$f":"Import!M12643","v":0},{"$f":"Import!M12743","v":0}]
[77,{"$f":"Import!M11944","v":"Select"},{"$f":"Import!M12044","v":"Select"},{"$f":"Import!M12144","v":"Select"},{"$f":"Import!M12244","v":"Select"},{"$f":"Import!M12344","v":0},{"$f":"Import!M12444","v":0},{"$f":"Import!M12544","v":0},{"$f":"Import!M12644","v":0},{"$f":"Import!M12744","v":0}]
[78,{"$f":"Import!M11945","v":"Select"},{"$f":"Import!M12045","v":"Select"},{"$f":"Import!M12145","v":"Select"},{"$f":"Import!M12245","v":"Select"},{"$f":"Import!M12345","v":0},{"$f":"Import!M12445","v":0},{"$f":"Import!M12545","v":0},{"$f":"Import!M12645","v":0},{"$f":"Import!M12745","v":0}]
[79,{"$f":"Import!M11946","v":"Select"},{"$f":"Import!M12046","v":"Select"},{"$f":"Import!M12146","v":"Select"},{"$f":"Import!M12246","v":"Select"},{"$f":"Import!M12346","v":0},{"$f":"Import!M12446","v":0},{"$f":"Import!M12546","v":0},{"$f":"Import!M12646","v":0},{"$f":"Import!M12746","v":0}]
[80,{"$f":"Import!M11947","v":"Select"},{"$f":"Import!M12047","v":"Select"},{"$f":"Import!M12147","v":"Select"},{"$f":"Import!M12247","v":"Select"},{"$f":"Import!M12347","v":0},{"$f":"Import!M12447","v":0},{"$f":"Import!M12547","v":0},{"$f":"Import!M12647","v":0},{"$f":"Import!M12747","v":0}]
[81,{"$f":"Import!M11948","v":"Select"},{"$f":"Import!M12048","v":"Select"},{"$f":"Import!M12148","v":"Select"},{"$f":"Import!M12248","v":"Select"},{"$f":"Import!M12348","v":0},{"$f":"Import!M12448","v":0},{"$f":"Import!M12548","v":0},{"$f":"Import!M12648","v":0},{"$f":"Import!M12748","v":0}]
[82,{"$f":"Import!M11949","v":"Select"},{"$f":"Import!M12049","v":"Select"},{"$f":"Import!M12149","v":"Select"},{"$f":"Import!M12249","v":"Select"},{"$f":"Import!M12349","v":0},{"$f":"Import!M12449","v":0},{"$f":"Import!M12549","v":0},{"$f":"Import!M12649","v":0},{"$f":"Import!M12749","v":0}]
[83,{"$f":"Import!M11950","v":"Select"},{"$f":"Import!M12050","v":"Select"},{"$f":"Import!M12150","v":"Select"},{"$f":"Import!M12250","v":"Select"},{"$f":"Import!M12350","v":0},{"$f":"Import!M12450","v":0},{"$f":"Import!M12550","v":0},{"$f":"Import!M12650","v":0},{"$f":"Import!M12750","v":0}]
[84,{"$f":"Import!M11951","v":"Select"},{"$f":"Import!M12051","v":"Select"},{"$f":"Import!M12151","v":"Select"},{"$f":"Import!M12251","v":"Select"},{"$f":"Import!M12351","v":0},{"$f":"Import!M12451","v":0},{"$f":"Import!M12551","v":0},{"$f":"Import!M12651","v":0},{"$f":"Import!M12751","v":0}]
[85,{"$f":"Import!M11952","v":"Select"},{"$f":"Import!M12052","v":"Select"},{"$f":"Import!M12152","v":"Select"},{"$f":"Import!M12252","v":"Select"},{"$f":"Import!M12352","v":0},{"$f":"Import!M12452","v":0},{"$f":"Import!M12552","v":0},{"$f":"Import!M12652","v":0},{"$f":"Import!M12752","v":0}]
[86,{"$f":"Import!M11953","v":"Select"},{"$f":"Import!M12053","v":"Select"},{"$f":"Import!M12153","v":"Select"},{"$f":"Import!M12253","v":"Select"},{"$f":"Import!M12353","v":0},{"$f":"Import!M12453","v":0},{"$f":"Import!M12553","v":0},{"$f":"Import!M12653","v":0},{"$f":"Import!M12753","v":0}]
[87,{"$f":"Import!M11954","v":"Select"},{"$f":"Import!M12054","v":"Select"},{"$f":"Import!M12154","v":"Select"},{"$f":"Import!M12254","v":"Select"},{"$f":"Import!M12354","v":0},{"$f":"Import!M12454","v":0},{"$f":"Import!M12554","v":0},{"$f":"Import!M12654","v":0},{"$f":"Import!M12754","v":0}]
[88,{"$f":"Import!M11955","v":"Select"},{"$f":"Import!M12055","v":"Select"},{"$f":"Import!M12155","v":"Select"},{"$f":"Import!M12255","v":"Select"},{"$f":"Import!M12355","v":0},{"$f":"Import!M12455","v":0},{"$f":"Import!M12555","v":0},{"$f":"Import!M12655","v":0},{"$f":"Import!M12755","v":0}]
[89,{"$f":"Import!M11956","v":"Select"},{"$f":"Import!M12056","v":"Select"},{"$f":"Import!M12156","v":"Select"},{"$f":"Import!M12256","v":"Select"},{"$f":"Import!M12356","v":0},{"$f":"Import!M12456","v":0},{"$f":"Import!M12556","v":0},{"$f":"Import!M12656","v":0},{"$f":"Import!M12756","v":0}]
[90,{"$f":"Import!M11957","v":"Select"},{"$f":"Import!M12057","v":"Select"},{"$f":"Import!M12157","v":"Select"},{"$f":"Import!M12257","v":"Select"},{"$f":"Import!M12357","v":0},{"$f":"Import!M12457","v":0},{"$f":"Import!M12557","v":0},{"$f":"Import!M12657","v":0},{"$f":"Import!M12757","v":0}]
[91,{"$f":"Import!M11958","v":"Select"},{"$f":"Import!M12058","v":"Select"},{"$f":"Import!M12158","v":"Select"},{"$f":"Import!M12258","v":"Select"},{"$f":"Import!M12358","v":0},{"$f":"Import!M12458","v":0},{"$f":"Import!M12558","v":0},{"$f":"Import!M12658","v":0},{"$f":"Import!M12758","v":0}]
[92,{"$f":"Import!M11959","v":"Select"},{"$f":"Import!M12059","v":"Select"},{"$f":"Import!M12159","v":"Select"},{"$f":"Import!M12259","v":"Select"},{"$f":"Import!M12359","v":0},{"$f":"Import!M12459","v":0},{"$f":"Import!M12559","v":0},{"$f":"Import!M12659","v":0},{"$f":"Import!M12759","v":0}]
[93,{"$f":"Import!M11960","v":"Select"},{"$f":"Import!M12060","v":"Select"},{"$f":"Import!M12160","v":"Select"},{"$f":"Import!M12260","v":"Select"},{"$f":"Import!M12360","v":0},{"$f":"Import!M12460","v":0},{"$f":"Import!M12560","v":0},{"$f":"Import!M12660","v":0},{"$f":"Import!M12760","v":0}]
[94,{"$f":"Import!M11961","v":"Select"},{"$f":"Import!M12061","v":"Select"},{"$f":"Import!M12161","v":"Select"},{"$f":"Import!M12261","v":"Select"},{"$f":"Import!M12361","v":0},{"$f":"Import!M12461","v":0},{"$f":"Import!M12561","v":0},{"$f":"Import!M12661","v":0},{"$f":"Import!M12761","v":0}]
[95,{"$f":"Import!M11962","v":"Select"},{"$f":"Import!M12062","v":"Select"},{"$f":"Import!M12162","v":"Select"},{"$f":"Import!M12262","v":"Select"},{"$f":"Import!M12362","v":0},{"$f":"Import!M12462","v":0},{"$f":"Import!M12562","v":0},{"$f":"Import!M12662","v":0},{"$f":"Import!M12762","v":0}]
[96,{"$f":"Import!M11963","v":"Select"},{"$f":"Import!M12063","v":"Select"},{"$f":"Import!M12163","v":"Select"},{"$f":"Import!M12263","v":"Select"},{"$f":"Import!M12363","v":0},{"$f":"Import!M12463","v":0},{"$f":"Import!M12563","v":0},{"$f":"Import!M12663","v":0},{"$f":"Import!M12763","v":0}]
[97,{"$f":"Import!M11964","v":"Select"},{"$f":"Import!M12064","v":"Select"},{"$f":"Import!M12164","v":"Select"},{"$f":"Import!M12264","v":"Select"},{"$f":"Import!M12364","v":0},{"$f":"Import!M12464","v":0},{"$f":"Import!M12564","v":0},{"$f":"Import!M12664","v":0},{"$f":"Import!M12764","v":0}]
[98,{"$f":"Import!M11965","v":"Select"},{"$f":"Import!M12065","v":"Select"},{"$f":"Import!M12165","v":"Select"},{"$f":"Import!M12265","v":"Select"},{"$f":"Import!M12365","v":0},{"$f":"Import!M12465","v":0},{"$f":"Import!M12565","v":0},{"$f":"Import!M12665","v":0},{"$f":"Import!M12765","v":0}]
[99,{"$f":"Import!M11966","v":"Select"},{"$f":"Import!M12066","v":"Select"},{"$f":"Import!M12166","v":"Select"},{"$f":"Import!M12266","v":"Select"},{"$f":"Import!M12366","v":0},{"$f":"Import!M12466","v":0},{"$f":"Import!M12566","v":0},{"$f":"Import!M12666","v":0},{"$f":"Import!M12766","v":0}]
[100,{"$f":"Import!M11967","v":"Select"},{"$f":"Import!M12067","v":"Select"},{"$f":"Import!M12167","v":"Select"},{"$f":"Import!M12267","v":"Select"},{"$f":"Import!M12367","v":0},{"$f":"Import!M12467","v":0},{"$f":"Import!M12567","v":0},{"$f":"Import!M12667","v":0},{"$f":"Import!M12767","v":0}]
[]
[null,"Total Loans",null,null,null,{"$f":"SUM(F993:F1092)","v":0},{"$f":"SUM(G993:G1092)","v":0},{"$f":"IFERROR(SUMPRODUCT(H993:H1092,$G993:$G1092)/SUM($G993:$G1092),0)","v":0},{"$f":"IFERROR(SUMPRODUCT(I993:I1092,$G993:$G1092)/SUM($G993:$G1092),0)","v":0}]
[]
[null,"- OF WHICH NON-PERFORMING LOANS"]
[]
[null,null,"Enter # of Asset Types",{"$f":"Import!M12768","v":0}]
[null,null,null,null,null,{"$f":"YEAR($C$3)","v":2023},2023]
[null,"Asset Type","Currency","Country","BSCR Rating","Nominal Amount","Fair Value","Comments"]
[1,{"$f":"Import!M12769","v":"Select"},{"$f":"Import!M12789","v":"Select"},{"$f":"Import!M12809","v":"Select"},{"$f":"Import!M12829","v":"Select"},{"$f":"Import!M12849","v":0},{"$f":"Import!M12869","v":0},{"$f":"Import!M12889","v":0}]
[{"$f":"A1101+1","v":2},{"$f":"Import!M12770","v":"Select"},{"$f":"Import!M12790","v":"Select"},{"$f":"Import!M12810","v":"Select"},{"$f":"Import!M12830","v":"Select"},{"$f":"Import!M12850","v":0},{"$f":"Import!M12870","v":0},{"$f":"Import!M12890","v":0}]
[{"$f":"A1102+1","v":3},{"$f":"Import!M12771","v":"Select"},{"$f":"Import!M12791","v":"Select"},{"$f":"Import!M12811","v":"Select"},{"$f":"Import!M12831","v":"Select"},{"$f":"Import!M12851","v":0},{"$f":"Import!M12871","v":0},{"$f":"Import!M12891","v":0}]
[4,{"$f":"Import!M12772","v":"Select"},{"$f":"Import!M12792","v":"Select"},{"$f":"Import!M12812","v":"Select"},{"$f":"Import!M12832","v":"Select"},{"$f":"Import!M12852","v":0},{"$f":"Import!M12872","v":0},{"$f":"Import!M12892","v":0}]
[5,{"$f":"Import!M12773","v":"Select"},{"$f":"Import!M12793","v":"Select"},{"$f":"Import!M12813","v":"Select"},{"$f":"Import!M12833","v":"Select"},{"$f":"Import!M12853","v":0},{"$f":"Import!M12873","v":0},{"$f":"Import!M12893","v":0}]
[6,{"$f":"Import!M12774","v":"Select"},{"$f":"Import!M12794","v":"Select"},{"$f":"Import!M12814","v":"Select"},{"$f":"Import!M12834","v":"Select"},{"$f":"Import!M12854","v":0},{"$f":"Import!M12874","v":0},{"$f":"Import!M12894","v":0}]
[7,{"$f":"Import!M12775","v":"Select"},{"$f":"Import!M12795","v":"Select"},{"$f":"Import!M12815","v":"Select"},{"$f":"Import!M12835","v":"Select"},{"$f":"Import!M12855","v":0},{"$f":"Import!M12875","v":0},{"$f":"Import!M12895","v":0}]
[8,{"$f":"Import!M12776","v":"Select"},{"$f":"Import!M12796","v":"Select"},{"$f":"Import!M12816","v":"Select"},{"$f":"Import!M12836","v":"Select"},{"$f":"Import!M12856","v":0},{"$f":"Import!M12876","v":0},{"$f":"Import!M12896","v":0}]
[9,{"$f":"Import!M12777","v":"Select"},{"$f":"Import!M12797","v":"Select"},{"$f":"Import!M12817","v":"Select"},{"$f":"Import!M12837","v":"Select"},{"$f":"Import!M12857","v":0},{"$f":"Import!M12877","v":0},{"$f":"Import!M12897","v":0}]
[10,{"$f":"Import!M12778","v":"Select"},{"$f":"Import!M12798","v":"Select"},{"$f":"Import!M12818","v":"Select"},{"$f":"Import!M12838","v":"Select"},{"$f":"Import!M12858","v":0},{"$f":"Import!M12878","v":0},{"$f":"Import!M12898","v":0}]
[11,{"$f":"Import!M12779","v":"Select"},{"$f":"Import!M12799","v":"Select"},{"$f":"Import!M12819","v":"Select"},{"$f":"Import!M12839","v":"Select"},{"$f":"Import!M12859","v":0},{"$f":"Import!M12879","v":0},{"$f":"Import!M12899","v":0}]
[12,{"$f":"Import!M12780","v":"Select"},{"$f":"Import!M12800","v":"Select"},{"$f":"Import!M12820","v":"Select"},{"$f":"Import!M12840","v":"Select"},{"$f":"Import!M12860","v":0},{"$f":"Import!M12880","v":0},{"$f":"Import!M12900","v":0}]
[13,{"$f":"Import!M12781","v":"Select"},{"$f":"Import!M12801","v":"Select"},{"$f":"Import!M12821","v":"Select"},{"$f":"Import!M12841","v":"Select"},{"$f":"Import!M12861","v":0},{"$f":"Import!M12881","v":0},{"$f":"Import!M12901","v":0}]
[14,{"$f":"Import!M12782","v":"Select"},{"$f":"Import!M12802","v":"Select"},{"$f":"Import!M12822","v":"Select"},{"$f":"Import!M12842","v":"Select"},{"$f":"Import!M12862","v":0},{"$f":"Import!M12882","v":0},{"$f":"Import!M12902","v":0}]
[15,{"$f":"Import!M12783","v":"Select"},{"$f":"Import!M12803","v":"Select"},{"$f":"Import!M12823","v":"Select"},{"$f":"Import!M12843","v":"Select"},{"$f":"Import!M12863","v":0},{"$f":"Import!M12883","v":0},{"$f":"Import!M12903","v":0}]
[16,{"$f":"Import!M12784","v":"Select"},{"$f":"Import!M12804","v":"Select"},{"$f":"Import!M12824","v":"Select"},{"$f":"Import!M12844","v":"Select"},{"$f":"Import!M12864","v":0},{"$f":"Import!M12884","v":0},{"$f":"Import!M12904","v":0}]
[17,{"$f":"Import!M12785","v":"Select"},{"$f":"Import!M12805","v":"Select"},{"$f":"Import!M12825","v":"Select"},{"$f":"Import!M12845","v":"Select"},{"$f":"Import!M12865","v":0},{"$f":"Import!M12885","v":0},{"$f":"Import!M12905","v":0}]
[18,{"$f":"Import!M12786","v":"Select"},{"$f":"Import!M12806","v":"Select"},{"$f":"Import!M12826","v":"Select"},{"$f":"Import!M12846","v":"Select"},{"$f":"Import!M12866","v":0},{"$f":"Import!M12886","v":0},{"$f":"Import!M12906","v":0}]
[19,{"$f":"Import!M12787","v":"Select"},{"$f":"Import!M12807","v":"Select"},{"$f":"Import!M12827","v":"Select"},{"$f":"Import!M12847","v":"Select"},{"$f":"Import!M12867","v":0},{"$f":"Import!M12887","v":0},{"$f":"Import!M12907","v":0}]
[20,{"$f":"Import!M12788","v":"Select"},{"$f":"Import!M12808","v":"Select"},{"$f":"Import!M12828","v":"Select"},{"$f":"Import!M12848","v":"Select"},{"$f":"Import!M12868","v":0},{"$f":"Import!M12888","v":0},{"$f":"Import!M12908","v":0}]
[]
[null,"Total Non-Performing Loans",null,null,null,{"$f":"SUM(F1101:F1120)","v":0},{"$f":"SUM(G1101:G1120)","v":0}]
[]
[null,"(E) PREFERRED EQUITIES"]
[]
[null,null,"Enter # of Asset Types",{"$f":"Import!M12909","v":0}]
[null,null,null,null,{"$f":"YEAR($C$3)","v":2023},2023,"Weighted"]
[null,"Asset Type","Currency","BSCR Rating","Nominal Amount","Fair Value","Average YTM","Effective Duration","Comments"]
[1,{"$f":"Import!M12910","v":"Select"},{"$f":"Import!M13010","v":"Select"},{"$f":"Import!M13110","v":"Select"},{"$f":"Import!M13210","v":0},{"$f":"Import!M13310","v":0},{"$f":"Import!M13410","v":0},{"$f":"Import!M13510","v":0},{"$f":"Import!M13610","v":0}]
[{"$f":"A1129+1","v":2},{"$f":"Import!M12911","v":"Select"},{"$f":"Import!M13011","v":"Select"},{"$f":"Import!M13111","v":"Select"},{"$f":"Import!M13211","v":0},{"$f":"Import!M13311","v":0},{"$f":"Import!M13411","v":0},{"$f":"Import!M13511","v":0},{"$f":"Import!M13611","v":0}]
[{"$f":"A1130+1","v":3},{"$f":"Import!M12912","v":"Select"},{"$f":"Import!M13012","v":"Select"},{"$f":"Import!M13112","v":"Select"},{"$f":"Import!M13212","v":0},{"$f":"Import!M13312","v":0},{"$f":"Import!M13412","v":0},{"$f":"Import!M13512","v":0},{"$f":"Import!M13612","v":0}]
[4,{"$f":"Import!M12913","v":"Select"},{"$f":"Import!M13013","v":"Select"},{"$f":"Import!M13113","v":"Select"},{"$f":"Import!M13213","v":0},{"$f":"Import!M13313","v":0},{"$f":"Import!M13413","v":0},{"$f":"Import!M13513","v":0},{"$f":"Import!M13613","v":0}]
[5,{"$f":"Import!M12914","v":"Select"},{"$f":"Import!M13014","v":"Select"},{"$f":"Import!M13114","v":"Select"},{"$f":"Import!M13214","v":0},{"$f":"Import!M13314","v":0},{"$f":"Import!M13414","v":0},{"$f":"Import!M13514","v":0},{"$f":"Import!M13614","v":0}]
[6,{"$f":"Import!M12915","v":"Select"},{"$f":"Import!M13015","v":"Select"},{"$f":"Import!M13115","v":"Select"},{"$f":"Import!M13215","v":0},{"$f":"Import!M13315","v":0},{"$f":"Import!M13415","v":0},{"$f":"Import!M13515","v":0},{"$f":"Import!M13615","v":0}]
[7,{"$f":"Import!M12916","v":"Select"},{"$f":"Import!M13016","v":"Select"},{"$f":"Import!M13116","v":"Select"},{"$f":"Import!M13216","v":0},{"$f":"Import!M13316","v":0},{"$f":"Import!M13416","v":0},{"$f":"Import!M13516","v":0},{"$f":"Import!M13616","v":0}]
[8,{"$f":"Import!M12917","v":"Select"},{"$f":"Import!M13017","v":"Select"},{"$f":"Import!M13117","v":"Select"},{"$f":"Import!M13217","v":0},{"$f":"Import!M13317","v":0},{"$f":"Import!M13417","v":0},{"$f":"Import!M13517","v":0},{"$f":"Import!M13617","v":0}]
[9,{"$f":"Import!M12918","v":"Select"},{"$f":"Import!M13018","v":"Select"},{"$f":"Import!M13118","v":"Select"},{"$f":"Import!M13218","v":0},{"$f":"Import!M13318","v":0},{"$f":"Import!M13418","v":0},{"$f":"Import!M13518","v":0},{"$f":"Import!M13618","v":0}]
[10,{"$f":"Import!M12919","v":"Select"},{"$f":"Import!M13019","v":"Select"},{"$f":"Import!M13119","v":"Select"},{"$f":"Import!M13219","v":0},{"$f":"Import!M13319","v":0},{"$f":"Import!M13419","v":0},{"$f":"Import!M13519","v":0},{"$f":"Import!M13619","v":0}]
[11,{"$f":"Import!M12920","v":"Select"},{"$f":"Import!M13020","v":"Select"},{"$f":"Import!M13120","v":"Select"},{"$f":"Import!M13220","v":0},{"$f":"Import!M13320","v":0},{"$f":"Import!M13420","v":0},{"$f":"Import!M13520","v":0},{"$f":"Import!M13620","v":0}]
[12,{"$f":"Import!M12921","v":"Select"},{"$f":"Import!M13021","v":"Select"},{"$f":"Import!M13121","v":"Select"},{"$f":"Import!M13221","v":0},{"$f":"Import!M13321","v":0},{"$f":"Import!M13421","v":0},{"$f":"Import!M13521","v":0},{"$f":"Import!M13621","v":0}]
[13,{"$f":"Import!M12922","v":"Select"},{"$f":"Import!M13022","v":"Select"},{"$f":"Import!M13122","v":"Select"},{"$f":"Import!M13222","v":0},{"$f":"Import!M13322","v":0},{"$f":"Import!M13422","v":0},{"$f":"Import!M13522","v":0},{"$f":"Import!M13622","v":0}]
[14,{"$f":"Import!M12923","v":"Select"},{"$f":"Import!M13023","v":"Select"},{"$f":"Import!M13123","v":"Select"},{"$f":"Import!M13223","v":0},{"$f":"Import!M13323","v":0},{"$f":"Import!M13423","v":0},{"$f":"Import!M13523","v":0},{"$f":"Import!M13623","v":0}]
[15,{"$f":"Import!M12924","v":"Select"},{"$f":"Import!M13024","v":"Select"},{"$f":"Import!M13124","v":"Select"},{"$f":"Import!M13224","v":0},{"$f":"Import!M13324","v":0},{"$f":"Import!M13424","v":0},{"$f":"Import!M13524","v":0},{"$f":"Import!M13624","v":0}]
[16,{"$f":"Import!M12925","v":"Select"},{"$f":"Import!M13025","v":"Select"},{"$f":"Import!M13125","v":"Select"},{"$f":"Import!M13225","v":0},{"$f":"Import!M13325","v":0},{"$f":"Import!M13425","v":0},{"$f":"Import!M13525","v":0},{"$f":"Import!M13625","v":0}]
[17,{"$f":"Import!M12926","v":"Select"},{"$f":"Import!M13026","v":"Select"},{"$f":"Import!M13126","v":"Select"},{"$f":"Import!M13226","v":0},{"$f":"Import!M13326","v":0},{"$f":"Import!M13426","v":0},{"$f":"Import!M13526","v":0},{"$f":"Import!M13626","v":0}]
[18,{"$f":"Import!M12927","v":"Select"},{"$f":"Import!M13027","v":"Select"},{"$f":"Import!M13127","v":"Select"},{"$f":"Import!M13227","v":0},{"$f":"Import!M13327","v":0},{"$f":"Import!M13427","v":0},{"$f":"Import!M13527","v":0},{"$f":"Import!M13627","v":0}]
[19,{"$f":"Import!M12928","v":"Select"},{"$f":"Import!M13028","v":"Select"},{"$f":"Import!M13128","v":"Select"},{"$f":"Import!M13228","v":0},{"$f":"Import!M13328","v":0},{"$f":"Import!M13428","v":0},{"$f":"Import!M13528","v":0},{"$f":"Import!M13628","v":0}]
[20,{"$f":"Import!M12929","v":"Select"},{"$f":"Import!M13029","v":"Select"},{"$f":"Import!M13129","v":"Select"},{"$f":"Import!M13229","v":0},{"$f":"Import!M13329","v":0},{"$f":"Import!M13429","v":0},{"$f":"Import!M13529","v":0},{"$f":"Import!M13629","v":0}]
[21,{"$f":"Import!M12930","v":"Select"},{"$f":"Import!M13030","v":"Select"},{"$f":"Import!M13130","v":"Select"},{"$f":"Import!M13230","v":0},{"$f":"Import!M13330","v":0},{"$f":"Import!M13430","v":0},{"$f":"Import!M13530","v":0},{"$f":"Import!M13630","v":0}]
[22,{"$f":"Import!M12931","v":"Select"},{"$f":"Import!M13031","v":"Select"},{"$f":"Import!M13131","v":"Select"},{"$f":"Import!M13231","v":0},{"$f":"Import!M13331","v":0},{"$f":"Import!M13431","v":0},{"$f":"Import!M13531","v":0},{"$f":"Import!M13631","v":0}]
[23,{"$f":"Import!M12932","v":"Select"},{"$f":"Import!M13032","v":"Select"},{"$f":"Import!M13132","v":"Select"},{"$f":"Import!M13232","v":0},{"$f":"Import!M13332","v":0},{"$f":"Import!M13432","v":0},{"$f":"Import!M13532","v":0},{"$f":"Import!M13632","v":0}]
[24,{"$f":"Import!M12933","v":"Select"},{"$f":"Import!M13033","v":"Select"},{"$f":"Import!M13133","v":"Select"},{"$f":"Import!M13233","v":0},{"$f":"Import!M13333","v":0},{"$f":"Import!M13433","v":0},{"$f":"Import!M13533","v":0},{"$f":"Import!M13633","v":0}]
[25,{"$f":"Import!M12934","v":"Select"},{"$f":"Import!M13034","v":"Select"},{"$f":"Import!M13134","v":"Select"},{"$f":"Import!M13234","v":0},{"$f":"Import!M13334","v":0},{"$f":"Import!M13434","v":0},{"$f":"Import!M13534","v":0},{"$f":"Import!M13634","v":0}]
[26,{"$f":"Import!M12935","v":"Select"},{"$f":"Import!M13035","v":"Select"},{"$f":"Import!M13135","v":"Select"},{"$f":"Import!M13235","v":0},{"$f":"Import!M13335","v":0},{"$f":"Import!M13435","v":0},{"$f":"Import!M13535","v":0},{"$f":"Import!M13635","v":0}]
[27,{"$f":"Import!M12936","v":"Select"},{"$f":"Import!M13036","v":"Select"},{"$f":"Import!M13136","v":"Select"},{"$f":"Import!M13236","v":0},{"$f":"Import!M13336","v":0},{"$f":"Import!M13436","v":0},{"$f":"Import!M13536","v":0},{"$f":"Import!M13636","v":0}]
[28,{"$f":"Import!M12937","v":"Select"},{"$f":"Import!M13037","v":"Select"},{"$f":"Import!M13137","v":"Select"},{"$f":"Import!M13237","v":0},{"$f":"Import!M13337","v":0},{"$f":"Import!M13437","v":0},{"$f":"Import!M13537","v":0},{"$f":"Import!M13637","v":0}]
[29,{"$f":"Import!M12938","v":"Select"},{"$f":"Import!M13038","v":"Select"},{"$f":"Import!M13138","v":"Select"},{"$f":"Import!M13238","v":0},{"$f":"Import!M13338","v":0},{"$f":"Import!M13438","v":0},{"$f":"Import!M13538","v":0},{"$f":"Import!M13638","v":0}]
[30,{"$f":"Import!M12939","v":"Select"},{"$f":"Import!M13039","v":"Select"},{"$f":"Import!M13139","v":"Select"},{"$f":"Import!M13239","v":0},{"$f":"Import!M13339","v":0},{"$f":"Import!M13439","v":0},{"$f":"Import!M13539","v":0},{"$f":"Import!M13639","v":0}]
[31,{"$f":"Import!M12940","v":"Select"},{"$f":"Import!M13040","v":"Select"},{"$f":"Import!M13140","v":"Select"},{"$f":"Import!M13240","v":0},{"$f":"Import!M13340","v":0},{"$f":"Import!M13440","v":0},{"$f":"Import!M13540","v":0},{"$f":"Import!M13640","v":0}]
[32,{"$f":"Import!M12941","v":"Select"},{"$f":"Import!M13041","v":"Select"},{"$f":"Import!M13141","v":"Select"},{"$f":"Import!M13241","v":0},{"$f":"Import!M13341","v":0},{"$f":"Import!M13441","v":0},{"$f":"Import!M13541","v":0},{"$f":"Import!M13641","v":0}]
[33,{"$f":"Import!M12942","v":"Select"},{"$f":"Import!M13042","v":"Select"},{"$f":"Import!M13142","v":"Select"},{"$f":"Import!M13242","v":0},{"$f":"Import!M13342","v":0},{"$f":"Import!M13442","v":0},{"$f":"Import!M13542","v":0},{"$f":"Import!M13642","v":0}]
[34,{"$f":"Import!M12943","v":"Select"},{"$f":"Import!M13043","v":"Select"},{"$f":"Import!M13143","v":"Select"},{"$f":"Import!M13243","v":0},{"$f":"Import!M13343","v":0},{"$f":"Import!M13443","v":0},{"$f":"Import!M13543","v":0},{"$f":"Import!M13643","v":0}]
[35,{"$f":"Import!M12944","v":"Select"},{"$f":"Import!M13044","v":"Select"},{"$f":"Import!M13144","v":"Select"},{"$f":"Import!M13244","v":0},{"$f":"Import!M13344","v":0},{"$f":"Import!M13444","v":0},{"$f":"Import!M13544","v":0},{"$f":"Import!M13644","v":0}]
[36,{"$f":"Import!M12945","v":"Select"},{"$f":"Import!M13045","v":"Select"},{"$f":"Import!M13145","v":"Select"},{"$f":"Import!M13245","v":0},{"$f":"Import!M13345","v":0},{"$f":"Import!M13445","v":0},{"$f":"Import!M13545","v":0},{"$f":"Import!M13645","v":0}]
[37,{"$f":"Import!M12946","v":"Select"},{"$f":"Import!M13046","v":"Select"},{"$f":"Import!M13146","v":"Select"},{"$f":"Import!M13246","v":0},{"$f":"Import!M13346","v":0},{"$f":"Import!M13446","v":0},{"$f":"Import!M13546","v":0},{"$f":"Import!M13646","v":0}]
[38,{"$f":"Import!M12947","v":"Select"},{"$f":"Import!M13047","v":"Select"},{"$f":"Import!M13147","v":"Select"},{"$f":"Import!M13247","v":0},{"$f":"Import!M13347","v":0},{"$f":"Import!M13447","v":0},{"$f":"Import!M13547","v":0},{"$f":"Import!M13647","v":0}]
[39,{"$f":"Import!M12948","v":"Select"},{"$f":"Import!M13048","v":"Select"},{"$f":"Import!M13148","v":"Select"},{"$f":"Import!M13248","v":0},{"$f":"Import!M13348","v":0},{"$f":"Import!M13448","v":0},{"$f":"Import!M13548","v":0},{"$f":"Import!M13648","v":0}]
[40,{"$f":"Import!M12949","v":"Select"},{"$f":"Import!M13049","v":"Select"},{"$f":"Import!M13149","v":"Select"},{"$f":"Import!M13249","v":0},{"$f":"Import!M13349","v":0},{"$f":"Import!M13449","v":0},{"$f":"Import!M13549","v":0},{"$f":"Import!M13649","v":0}]
[41,{"$f":"Import!M12950","v":"Select"},{"$f":"Import!M13050","v":"Select"},{"$f":"Import!M13150","v":"Select"},{"$f":"Import!M13250","v":0},{"$f":"Import!M13350","v":0},{"$f":"Import!M13450","v":0},{"$f":"Import!M13550","v":0},{"$f":"Import!M13650","v":0}]
[42,{"$f":"Import!M12951","v":"Select"},{"$f":"Import!M13051","v":"Select"},{"$f":"Import!M13151","v":"Select"},{"$f":"Import!M13251","v":0},{"$f":"Import!M13351","v":0},{"$f":"Import!M13451","v":0},{"$f":"Import!M13551","v":0},{"$f":"Import!M13651","v":0}]
[43,{"$f":"Import!M12952","v":"Select"},{"$f":"Import!M13052","v":"Select"},{"$f":"Import!M13152","v":"Select"},{"$f":"Import!M13252","v":0},{"$f":"Import!M13352","v":0},{"$f":"Import!M13452","v":0},{"$f":"Import!M13552","v":0},{"$f":"Import!M13652","v":0}]
[44,{"$f":"Import!M12953","v":"Select"},{"$f":"Import!M13053","v":"Select"},{"$f":"Import!M13153","v":"Select"},{"$f":"Import!M13253","v":0},{"$f":"Import!M13353","v":0},{"$f":"Import!M13453","v":0},{"$f":"Import!M13553","v":0},{"$f":"Import!M13653","v":0}]
[45,{"$f":"Import!M12954","v":"Select"},{"$f":"Import!M13054","v":"Select"},{"$f":"Import!M13154","v":"Select"},{"$f":"Import!M13254","v":0},{"$f":"Import!M13354","v":0},{"$f":"Import!M13454","v":0},{"$f":"Import!M13554","v":0},{"$f":"Import!M13654","v":0}]
[46,{"$f":"Import!M12955","v":"Select"},{"$f":"Import!M13055","v":"Select"},{"$f":"Import!M13155","v":"Select"},{"$f":"Import!M13255","v":0},{"$f":"Import!M13355","v":0},{"$f":"Import!M13455","v":0},{"$f":"Import!M13555","v":0},{"$f":"Import!M13655","v":0}]
[47,{"$f":"Import!M12956","v":"Select"},{"$f":"Import!M13056","v":"Select"},{"$f":"Import!M13156","v":"Select"},{"$f":"Import!M13256","v":0},{"$f":"Import!M13356","v":0},{"$f":"Import!M13456","v":0},{"$f":"Import!M13556","v":0},{"$f":"Import!M13656","v":0}]
[48,{"$f":"Import!M12957","v":"Select"},{"$f":"Import!M13057","v":"Select"},{"$f":"Import!M13157","v":"Select"},{"$f":"Import!M13257","v":0},{"$f":"Import!M13357","v":0},{"$f":"Import!M13457","v":0},{"$f":"Import!M13557","v":0},{"$f":"Import!M13657","v":0}]
[49,{"$f":"Import!M12958","v":"Select"},{"$f":"Import!M13058","v":"Select"},{"$f":"Import!M13158","v":"Select"},{"$f":"Import!M13258","v":0},{"$f":"Import!M13358","v":0},{"$f":"Import!M13458","v":0},{"$f":"Import!M13558","v":0},{"$f":"Import!M13658","v":0}]
[50,{"$f":"Import!M12959","v":"Select"},{"$f":"Import!M13059","v":"Select"},{"$f":"Import!M13159","v":"Select"},{"$f":"Import!M13259","v":0},{"$f":"Import!M13359","v":0},{"$f":"Import!M13459","v":0},{"$f":"Import!M13559","v":0},{"$f":"Import!M13659","v":0}]
[51,{"$f":"Import!M12960","v":"Select"},{"$f":"Import!M13060","v":"Select"},{"$f":"Import!M13160","v":"Select"},{"$f":"Import!M13260","v":0},{"$f":"Import!M13360","v":0},{"$f":"Import!M13460","v":0},{"$f":"Import!M13560","v":0},{"$f":"Import!M13660","v":0}]
[52,{"$f":"Import!M12961","v":"Select"},{"$f":"Import!M13061","v":"Select"},{"$f":"Import!M13161","v":"Select"},{"$f":"Import!M13261","v":0},{"$f":"Import!M13361","v":0},{"$f":"Import!M13461","v":0},{"$f":"Import!M13561","v":0},{"$f":"Import!M13661","v":0}]
[53,{"$f":"Import!M12962","v":"Select"},{"$f":"Import!M13062","v":"Select"},{"$f":"Import!M13162","v":"Select"},{"$f":"Import!M13262","v":0},{"$f":"Import!M13362","v":0},{"$f":"Import!M13462","v":0},{"$f":"Import!M13562","v":0},{"$f":"Import!M13662","v":0}]
[54,{"$f":"Import!M12963","v":"Select"},{"$f":"Import!M13063","v":"Select"},{"$f":"Import!M13163","v":"Select"},{"$f":"Import!M13263","v":0},{"$f":"Import!M13363","v":0},{"$f":"Import!M13463","v":0},{"$f":"Import!M13563","v":0},{"$f":"Import!M13663","v":0}]
[55,{"$f":"Import!M12964","v":"Select"},{"$f":"Import!M13064","v":"Select"},{"$f":"Import!M13164","v":"Select"},{"$f":"Import!M13264","v":0},{"$f":"Import!M13364","v":0},{"$f":"Import!M13464","v":0},{"$f":"Import!M13564","v":0},{"$f":"Import!M13664","v":0}]
[56,{"$f":"Import!M12965","v":"Select"},{"$f":"Import!M13065","v":"Select"},{"$f":"Import!M13165","v":"Select"},{"$f":"Import!M13265","v":0},{"$f":"Import!M13365","v":0},{"$f":"Import!M13465","v":0},{"$f":"Import!M13565","v":0},{"$f":"Import!M13665","v":0}]
[57,{"$f":"Import!M12966","v":"Select"},{"$f":"Import!M13066","v":"Select"},{"$f":"Import!M13166","v":"Select"},{"$f":"Import!M13266","v":0},{"$f":"Import!M13366","v":0},{"$f":"Import!M13466","v":0},{"$f":"Import!M13566","v":0},{"$f":"Import!M13666","v":0}]
[58,{"$f":"Import!M12967","v":"Select"},{"$f":"Import!M13067","v":"Select"},{"$f":"Import!M13167","v":"Select"},{"$f":"Import!M13267","v":0},{"$f":"Import!M13367","v":0},{"$f":"Import!M13467","v":0},{"$f":"Import!M13567","v":0},{"$f":"Import!M13667","v":0}]
[59,{"$f":"Import!M12968","v":"Select"},{"$f":"Import!M13068","v":"Select"},{"$f":"Import!M13168","v":"Select"},{"$f":"Import!M13268","v":0},{"$f":"Import!M13368","v":0},{"$f":"Import!M13468","v":0},{"$f":"Import!M13568","v":0},{"$f":"Import!M13668","v":0}]
[60,{"$f":"Import!M12969","v":"Select"},{"$f":"Import!M13069","v":"Select"},{"$f":"Import!M13169","v":"Select"},{"$f":"Import!M13269","v":0},{"$f":"Import!M13369","v":0},{"$f":"Import!M13469","v":0},{"$f":"Import!M13569","v":0},{"$f":"Import!M13669","v":0}]
[61,{"$f":"Import!M12970","v":"Select"},{"$f":"Import!M13070","v":"Select"},{"$f":"Import!M13170","v":"Select"},{"$f":"Import!M13270","v":0},{"$f":"Import!M13370","v":0},{"$f":"Import!M13470","v":0},{"$f":"Import!M13570","v":0},{"$f":"Import!M13670","v":0}]
[62,{"$f":"Import!M12971","v":"Select"},{"$f":"Import!M13071","v":"Select"},{"$f":"Import!M13171","v":"Select"},{"$f":"Import!M13271","v":0},{"$f":"Import!M13371","v":0},{"$f":"Import!M13471","v":0},{"$f":"Import!M13571","v":0},{"$f":"Import!M13671","v":0}]
[63,{"$f":"Import!M12972","v":"Select"},{"$f":"Import!M13072","v":"Select"},{"$f":"Import!M13172","v":"Select"},{"$f":"Import!M13272","v":0},{"$f":"Import!M13372","v":0},{"$f":"Import!M13472","v":0},{"$f":"Import!M13572","v":0},{"$f":"Import!M13672","v":0}]
[64,{"$f":"Import!M12973","v":"Select"},{"$f":"Import!M13073","v":"Select"},{"$f":"Import!M13173","v":"Select"},{"$f":"Import!M13273","v":0},{"$f":"Import!M13373","v":0},{"$f":"Import!M13473","v":0},{"$f":"Import!M13573","v":0},{"$f":"Import!M13673","v":0}]
[65,{"$f":"Import!M12974","v":"Select"},{"$f":"Import!M13074","v":"Select"},{"$f":"Import!M13174","v":"Select"},{"$f":"Import!M13274","v":0},{"$f":"Import!M13374","v":0},{"$f":"Import!M13474","v":0},{"$f":"Import!M13574","v":0},{"$f":"Import!M13674","v":0}]
[66,{"$f":"Import!M12975","v":"Select"},{"$f":"Import!M13075","v":"Select"},{"$f":"Import!M13175","v":"Select"},{"$f":"Import!M13275","v":0},{"$f":"Import!M13375","v":0},{"$f":"Import!M13475","v":0},{"$f":"Import!M13575","v":0},{"$f":"Import!M13675","v":0}]
[{"$f":"A1194+1","v":67},{"$f":"Import!M12976","v":"Select"},{"$f":"Import!M13076","v":"Select"},{"$f":"Import!M13176","v":"Select"},{"$f":"Import!M13276","v":0},{"$f":"Import!M13376","v":0},{"$f":"Import!M13476","v":0},{"$f":"Import!M13576","v":0},{"$f":"Import!M13676","v":0}]
[68,{"$f":"Import!M12977","v":"Select"},{"$f":"Import!M13077","v":"Select"},{"$f":"Import!M13177","v":"Select"},{"$f":"Import!M13277","v":0},{"$f":"Import!M13377","v":0},{"$f":"Import!M13477","v":0},{"$f":"Import!M13577","v":0},{"$f":"Import!M13677","v":0}]
[69,{"$f":"Import!M12978","v":"Select"},{"$f":"Import!M13078","v":"Select"},{"$f":"Import!M13178","v":"Select"},{"$f":"Import!M13278","v":0},{"$f":"Import!M13378","v":0},{"$f":"Import!M13478","v":0},{"$f":"Import!M13578","v":0},{"$f":"Import!M13678","v":0}]
[70,{"$f":"Import!M12979","v":"Select"},{"$f":"Import!M13079","v":"Select"},{"$f":"Import!M13179","v":"Select"},{"$f":"Import!M13279","v":0},{"$f":"Import!M13379","v":0},{"$f":"Import!M13479","v":0},{"$f":"Import!M13579","v":0},{"$f":"Import!M13679","v":0}]
[71,{"$f":"Import!M12980","v":"Select"},{"$f":"Import!M13080","v":"Select"},{"$f":"Import!M13180","v":"Select"},{"$f":"Import!M13280","v":0},{"$f":"Import!M13380","v":0},{"$f":"Import!M13480","v":0},{"$f":"Import!M13580","v":0},{"$f":"Import!M13680","v":0}]
[72,{"$f":"Import!M12981","v":"Select"},{"$f":"Import!M13081","v":"Select"},{"$f":"Import!M13181","v":"Select"},{"$f":"Import!M13281","v":0},{"$f":"Import!M13381","v":0},{"$f":"Import!M13481","v":0},{"$f":"Import!M13581","v":0},{"$f":"Import!M13681","v":0}]
[73,{"$f":"Import!M12982","v":"Select"},{"$f":"Import!M13082","v":"Select"},{"$f":"Import!M13182","v":"Select"},{"$f":"Import!M13282","v":0},{"$f":"Import!M13382","v":0},{"$f":"Import!M13482","v":0},{"$f":"Import!M13582","v":0},{"$f":"Import!M13682","v":0}]
[74,{"$f":"Import!M12983","v":"Select"},{"$f":"Import!M13083","v":"Select"},{"$f":"Import!M13183","v":"Select"},{"$f":"Import!M13283","v":0},{"$f":"Import!M13383","v":0},{"$f":"Import!M13483","v":0},{"$f":"Import!M13583","v":0},{"$f":"Import!M13683","v":0}]
[75,{"$f":"Import!M12984","v":"Select"},{"$f":"Import!M13084","v":"Select"},{"$f":"Import!M13184","v":"Select"},{"$f":"Import!M13284","v":0},{"$f":"Import!M13384","v":0},{"$f":"Import!M13484","v":0},{"$f":"Import!M13584","v":0},{"$f":"Import!M13684","v":0}]
[76,{"$f":"Import!M12985","v":"Select"},{"$f":"Import!M13085","v":"Select"},{"$f":"Import!M13185","v":"Select"},{"$f":"Import!M13285","v":0},{"$f":"Import!M13385","v":0},{"$f":"Import!M13485","v":0},{"$f":"Import!M13585","v":0},{"$f":"Import!M13685","v":0}]
[77,{"$f":"Import!M12986","v":"Select"},{"$f":"Import!M13086","v":"Select"},{"$f":"Import!M13186","v":"Select"},{"$f":"Import!M13286","v":0},{"$f":"Import!M13386","v":0},{"$f":"Import!M13486","v":0},{"$f":"Import!M13586","v":0},{"$f":"Import!M13686","v":0}]
[78,{"$f":"Import!M12987","v":"Select"},{"$f":"Import!M13087","v":"Select"},{"$f":"Import!M13187","v":"Select"},{"$f":"Import!M13287","v":0},{"$f":"Import!M13387","v":0},{"$f":"Import!M13487","v":0},{"$f":"Import!M13587","v":0},{"$f":"Import!M13687","v":0}]
[79,{"$f":"Import!M12988","v":"Select"},{"$f":"Import!M13088","v":"Select"},{"$f":"Import!M13188","v":"Select"},{"$f":"Import!M13288","v":0},{"$f":"Import!M13388","v":0},{"$f":"Import!M13488","v":0},{"$f":"Import!M13588","v":0},{"$f":"Import!M13688","v":0}]
[80,{"$f":"Import!M12989","v":"Select"},{"$f":"Import!M13089","v":"Select"},{"$f":"Import!M13189","v":"Select"},{"$f":"Import!M13289","v":0},{"$f":"Import!M13389","v":0},{"$f":"Import!M13489","v":0},{"$f":"Import!M13589","v":0},{"$f":"Import!M13689","v":0}]
[81,{"$f":"Import!M12990","v":"Select"},{"$f":"Import!M13090","v":"Select"},{"$f":"Import!M13190","v":"Select"},{"$f":"Import!M13290","v":0},{"$f":"Import!M13390","v":0},{"$f":"Import!M13490","v":0},{"$f":"Import!M13590","v":0},{"$f":"Import!M13690","v":0}]
[82,{"$f":"Import!M12991","v":"Select"},{"$f":"Import!M13091","v":"Select"},{"$f":"Import!M13191","v":"Select"},{"$f":"Import!M13291","v":0},{"$f":"Import!M13391","v":0},{"$f":"Import!M13491","v":0},{"$f":"Import!M13591","v":0},{"$f":"Import!M13691","v":0}]
[83,{"$f":"Import!M12992","v":"Select"},{"$f":"Import!M13092","v":"Select"},{"$f":"Import!M13192","v":"Select"},{"$f":"Import!M13292","v":0},{"$f":"Import!M13392","v":0},{"$f":"Import!M13492","v":0},{"$f":"Import!M13592","v":0},{"$f":"Import!M13692","v":0}]
[84,{"$f":"Import!M12993","v":"Select"},{"$f":"Import!M13093","v":"Select"},{"$f":"Import!M13193","v":"Select"},{"$f":"Import!M13293","v":0},{"$f":"Import!M13393","v":0},{"$f":"Import!M13493","v":0},{"$f":"Import!M13593","v":0},{"$f":"Import!M13693","v":0}]
[85,{"$f":"Import!M12994","v":"Select"},{"$f":"Import!M13094","v":"Select"},{"$f":"Import!M13194","v":"Select"},{"$f":"Import!M13294","v":0},{"$f":"Import!M13394","v":0},{"$f":"Import!M13494","v":0},{"$f":"Import!M13594","v":0},{"$f":"Import!M13694","v":0}]
[86,{"$f":"Import!M12995","v":"Select"},{"$f":"Import!M13095","v":"Select"},{"$f":"Import!M13195","v":"Select"},{"$f":"Import!M13295","v":0},{"$f":"Import!M13395","v":0},{"$f":"Import!M13495","v":0},{"$f":"Import!M13595","v":0},{"$f":"Import!M13695","v":0}]
[87,{"$f":"Import!M12996","v":"Select"},{"$f":"Import!M13096","v":"Select"},{"$f":"Import!M13196","v":"Select"},{"$f":"Import!M13296","v":0},{"$f":"Import!M13396","v":0},{"$f":"Import!M13496","v":0},{"$f":"Import!M13596","v":0},{"$f":"Import!M13696","v":0}]
[88,{"$f":"Import!M12997","v":"Select"},{"$f":"Import!M13097","v":"Select"},{"$f":"Import!M13197","v":"Select"},{"$f":"Import!M13297","v":0},{"$f":"Import!M13397","v":0},{"$f":"Import!M13497","v":0},{"$f":"Import!M13597","v":0},{"$f":"Import!M13697","v":0}]
[89,{"$f":"Import!M12998","v":"Select"},{"$f":"Import!M13098","v":"Select"},{"$f":"Import!M13198","v":"Select"},{"$f":"Import!M13298","v":0},{"$f":"Import!M13398","v":0},{"$f":"Import!M13498","v":0},{"$f":"Import!M13598","v":0},{"$f":"Import!M13698","v":0}]
[90,{"$f":"Import!M12999","v":"Select"},{"$f":"Import!M13099","v":"Select"},{"$f":"Import!M13199","v":"Select"},{"$f":"Import!M13299","v":0},{"$f":"Import!M13399","v":0},{"$f":"Import!M13499","v":0},{"$f":"Import!M13599","v":0},{"$f":"Import!M13699","v":0}]
[91,{"$f":"Import!M13000","v":"Select"},{"$f":"Import!M13100","v":"Select"},{"$f":"Import!M13200","v":"Select"},{"$f":"Import!M13300","v":0},{"$f":"Import!M13400","v":0},{"$f":"Import!M13500","v":0},{"$f":"Import!M13600","v":0},{"$f":"Import!M13700","v":0}]
[92,{"$f":"Import!M13001","v":"Select"},{"$f":"Import!M13101","v":"Select"},{"$f":"Import!M13201","v":"Select"},{"$f":"Import!M13301","v":0},{"$f":"Import!M13401","v":0},{"$f":"Import!M13501","v":0},{"$f":"Import!M13601","v":0},{"$f":"Import!M13701","v":0}]
[93,{"$f":"Import!M13002","v":"Select"},{"$f":"Import!M13102","v":"Select"},{"$f":"Import!M13202","v":"Select"},{"$f":"Import!M13302","v":0},{"$f":"Import!M13402","v":0},{"$f":"Import!M13502","v":0},{"$f":"Import!M13602","v":0},{"$f":"Import!M13702","v":0}]
[94,{"$f":"Import!M13003","v":"Select"},{"$f":"Import!M13103","v":"Select"},{"$f":"Import!M13203","v":"Select"},{"$f":"Import!M13303","v":0},{"$f":"Import!M13403","v":0},{"$f":"Import!M13503","v":0},{"$f":"Import!M13603","v":0},{"$f":"Import!M13703","v":0}]
[95,{"$f":"Import!M13004","v":"Select"},{"$f":"Import!M13104","v":"Select"},{"$f":"Import!M13204","v":"Select"},{"$f":"Import!M13304","v":0},{"$f":"Import!M13404","v":0},{"$f":"Import!M13504","v":0},{"$f":"Import!M13604","v":0},{"$f":"Import!M13704","v":0}]
[96,{"$f":"Import!M13005","v":"Select"},{"$f":"Import!M13105","v":"Select"},{"$f":"Import!M13205","v":"Select"},{"$f":"Import!M13305","v":0},{"$f":"Import!M13405","v":0},{"$f":"Import!M13505","v":0},{"$f":"Import!M13605","v":0},{"$f":"Import!M13705","v":0}]
[97,{"$f":"Import!M13006","v":"Select"},{"$f":"Import!M13106","v":"Select"},{"$f":"Import!M13206","v":"Select"},{"$f":"Import!M13306","v":0},{"$f":"Import!M13406","v":0},{"$f":"Import!M13506","v":0},{"$f":"Import!M13606","v":0},{"$f":"Import!M13706","v":0}]
[98,{"$f":"Import!M13007","v":"Select"},{"$f":"Import!M13107","v":"Select"},{"$f":"Import!M13207","v":"Select"},{"$f":"Import!M13307","v":0},{"$f":"Import!M13407","v":0},{"$f":"Import!M13507","v":0},{"$f":"Import!M13607","v":0},{"$f":"Import!M13707","v":0}]
[99,{"$f":"Import!M13008","v":"Select"},{"$f":"Import!M13108","v":"Select"},{"$f":"Import!M13208","v":"Select"},{"$f":"Import!M13308","v":0},{"$f":"Import!M13408","v":0},{"$f":"Import!M13508","v":0},{"$f":"Import!M13608","v":0},{"$f":"Import!M13708","v":0}]
[100,{"$f":"Import!M13009","v":"Select"},{"$f":"Import!M13109","v":"Select"},{"$f":"Import!M13209","v":"Select"},{"$f":"Import!M13309","v":0},{"$f":"Import!M13409","v":0},{"$f":"Import!M13509","v":0},{"$f":"Import!M13609","v":0},{"$f":"Import!M13709","v":0}]
[]
[null,"Total Preferred Equities",null,null,{"$f":"SUM(E1129:E1228)","v":0},{"$f":"SUM(F1129:F1228)","v":0},{"$f":"IFERROR(SUMPRODUCT(G1129:G1228,$F1129:$F1228)/SUM($F1129:$F1228),0)","v":0},{"$f":"IFERROR(SUMPRODUCT(H1129:H1228,$F1129:$F1228)/SUM($F1129:$F1228),0)","v":0}]
[]
[null,"(F) COMMON EQUITIES"]
[]
[null,null,"Enter # of Asset Types",{"$f":"Import!M13710","v":0}]
[null,null,null,null,{"$f":"YEAR($C$3)","v":2023}]
[null,"Asset Type","Currency","Country","Fair Value","Comments"]
[1,{"$f":"Import!M13711","v":"Select"},{"$f":"Import!M13811","v":"Select"},{"$f":"Import!M13911","v":"Select"},{"$f":"Import!M14011","v":0},{"$f":"Import!M14111","v":0}]
[{"$f":"A1237+1","v":2},{"$f":"Import!M13712","v":"Select"},{"$f":"Import!M13812","v":"Select"},{"$f":"Import!M13912","v":"Select"},{"$f":"Import!M14012","v":0},{"$f":"Import!M14112","v":0}]
[{"$f":"A1238+1","v":3},{"$f":"Import!M13713","v":"Select"},{"$f":"Import!M13813","v":"Select"},{"$f":"Import!M13913","v":"Select"},{"$f":"Import!M14013","v":0},{"$f":"Import!M14113","v":0}]
[4,{"$f":"Import!M13714","v":"Select"},{"$f":"Import!M13814","v":"Select"},{"$f":"Import!M13914","v":"Select"},{"$f":"Import!M14014","v":0},{"$f":"Import!M14114","v":0}]
[5,{"$f":"Import!M13715","v":"Select"},{"$f":"Import!M13815","v":"Select"},{"$f":"Import!M13915","v":"Select"},{"$f":"Import!M14015","v":0},{"$f":"Import!M14115","v":0}]
[6,{"$f":"Import!M13716","v":"Select"},{"$f":"Import!M13816","v":"Select"},{"$f":"Import!M13916","v":"Select"},{"$f":"Import!M14016","v":0},{"$f":"Import!M14116","v":0}]
[7,{"$f":"Import!M13717","v":"Select"},{"$f":"Import!M13817","v":"Select"},{"$f":"Import!M13917","v":"Select"},{"$f":"Import!M14017","v":0},{"$f":"Import!M14117","v":0}]
[8,{"$f":"Import!M13718","v":"Select"},{"$f":"Import!M13818","v":"Select"},{"$f":"Import!M13918","v":"Select"},{"$f":"Import!M14018","v":0},{"$f":"Import!M14118","v":0}]
[9,{"$f":"Import!M13719","v":"Select"},{"$f":"Import!M13819","v":"Select"},{"$f":"Import!M13919","v":"Select"},{"$f":"Import!M14019","v":0},{"$f":"Import!M14119","v":0}]
[10,{"$f":"Import!M13720","v":"Select"},{"$f":"Import!M13820","v":"Select"},{"$f":"Import!M13920","v":"Select"},{"$f":"Import!M14020","v":0},{"$f":"Import!M14120","v":0}]
[11,{"$f":"Import!M13721","v":"Select"},{"$f":"Import!M13821","v":"Select"},{"$f":"Import!M13921","v":"Select"},{"$f":"Import!M14021","v":0},{"$f":"Import!M14121","v":0}]
[12,{"$f":"Import!M13722","v":"Select"},{"$f":"Import!M13822","v":"Select"},{"$f":"Import!M13922","v":"Select"},{"$f":"Import!M14022","v":0},{"$f":"Import!M14122","v":0}]
[13,{"$f":"Import!M13723","v":"Select"},{"$f":"Import!M13823","v":"Select"},{"$f":"Import!M13923","v":"Select"},{"$f":"Import!M14023","v":0},{"$f":"Import!M14123","v":0}]
[14,{"$f":"Import!M13724","v":"Select"},{"$f":"Import!M13824","v":"Select"},{"$f":"Import!M13924","v":"Select"},{"$f":"Import!M14024","v":0},{"$f":"Import!M14124","v":0}]
[15,{"$f":"Import!M13725","v":"Select"},{"$f":"Import!M13825","v":"Select"},{"$f":"Import!M13925","v":"Select"},{"$f":"Import!M14025","v":0},{"$f":"Import!M14125","v":0}]
[16,{"$f":"Import!M13726","v":"Select"},{"$f":"Import!M13826","v":"Select"},{"$f":"Import!M13926","v":"Select"},{"$f":"Import!M14026","v":0},{"$f":"Import!M14126","v":0}]
[17,{"$f":"Import!M13727","v":"Select"},{"$f":"Import!M13827","v":"Select"},{"$f":"Import!M13927","v":"Select"},{"$f":"Import!M14027","v":0},{"$f":"Import!M14127","v":0}]
[18,{"$f":"Import!M13728","v":"Select"},{"$f":"Import!M13828","v":"Select"},{"$f":"Import!M13928","v":"Select"},{"$f":"Import!M14028","v":0},{"$f":"Import!M14128","v":0}]
[19,{"$f":"Import!M13729","v":"Select"},{"$f":"Import!M13829","v":"Select"},{"$f":"Import!M13929","v":"Select"},{"$f":"Import!M14029","v":0},{"$f":"Import!M14129","v":0}]
[20,{"$f":"Import!M13730","v":"Select"},{"$f":"Import!M13830","v":"Select"},{"$f":"Import!M13930","v":"Select"},{"$f":"Import!M14030","v":0},{"$f":"Import!M14130","v":0}]
[21,{"$f":"Import!M13731","v":"Select"},{"$f":"Import!M13831","v":"Select"},{"$f":"Import!M13931","v":"Select"},{"$f":"Import!M14031","v":0},{"$f":"Import!M14131","v":0}]
[22,{"$f":"Import!M13732","v":"Select"},{"$f":"Import!M13832","v":"Select"},{"$f":"Import!M13932","v":"Select"},{"$f":"Import!M14032","v":0},{"$f":"Import!M14132","v":0}]
[23,{"$f":"Import!M13733","v":"Select"},{"$f":"Import!M13833","v":"Select"},{"$f":"Import!M13933","v":"Select"},{"$f":"Import!M14033","v":0},{"$f":"Import!M14133","v":0}]
[24,{"$f":"Import!M13734","v":"Select"},{"$f":"Import!M13834","v":"Select"},{"$f":"Import!M13934","v":"Select"},{"$f":"Import!M14034","v":0},{"$f":"Import!M14134","v":0}]
[25,{"$f":"Import!M13735","v":"Select"},{"$f":"Import!M13835","v":"Select"},{"$f":"Import!M13935","v":"Select"},{"$f":"Import!M14035","v":0},{"$f":"Import!M14135","v":0}]
[26,{"$f":"Import!M13736","v":"Select"},{"$f":"Import!M13836","v":"Select"},{"$f":"Import!M13936","v":"Select"},{"$f":"Import!M14036","v":0},{"$f":"Import!M14136","v":0}]
[27,{"$f":"Import!M13737","v":"Select"},{"$f":"Import!M13837","v":"Select"},{"$f":"Import!M13937","v":"Select"},{"$f":"Import!M14037","v":0},{"$f":"Import!M14137","v":0}]
[28,{"$f":"Import!M13738","v":"Select"},{"$f":"Import!M13838","v":"Select"},{"$f":"Import!M13938","v":"Select"},{"$f":"Import!M14038","v":0},{"$f":"Import!M14138","v":0}]
[29,{"$f":"Import!M13739","v":"Select"},{"$f":"Import!M13839","v":"Select"},{"$f":"Import!M13939","v":"Select"},{"$f":"Import!M14039","v":0},{"$f":"Import!M14139","v":0}]
[30,{"$f":"Import!M13740","v":"Select"},{"$f":"Import!M13840","v":"Select"},{"$f":"Import!M13940","v":"Select"},{"$f":"Import!M14040","v":0},{"$f":"Import!M14140","v":0}]
[31,{"$f":"Import!M13741","v":"Select"},{"$f":"Import!M13841","v":"Select"},{"$f":"Import!M13941","v":"Select"},{"$f":"Import!M14041","v":0},{"$f":"Import!M14141","v":0}]
[32,{"$f":"Import!M13742","v":"Select"},{"$f":"Import!M13842","v":"Select"},{"$f":"Import!M13942","v":"Select"},{"$f":"Import!M14042","v":0},{"$f":"Import!M14142","v":0}]
[33,{"$f":"Import!M13743","v":"Select"},{"$f":"Import!M13843","v":"Select"},{"$f":"Import!M13943","v":"Select"},{"$f":"Import!M14043","v":0},{"$f":"Import!M14143","v":0}]
[34,{"$f":"Import!M13744","v":"Select"},{"$f":"Import!M13844","v":"Select"},{"$f":"Import!M13944","v":"Select"},{"$f":"Import!M14044","v":0},{"$f":"Import!M14144","v":0}]
[35,{"$f":"Import!M13745","v":"Select"},{"$f":"Import!M13845","v":"Select"},{"$f":"Import!M13945","v":"Select"},{"$f":"Import!M14045","v":0},{"$f":"Import!M14145","v":0}]
[36,{"$f":"Import!M13746","v":"Select"},{"$f":"Import!M13846","v":"Select"},{"$f":"Import!M13946","v":"Select"},{"$f":"Import!M14046","v":0},{"$f":"Import!M14146","v":0}]
[37,{"$f":"Import!M13747","v":"Select"},{"$f":"Import!M13847","v":"Select"},{"$f":"Import!M13947","v":"Select"},{"$f":"Import!M14047","v":0},{"$f":"Import!M14147","v":0}]
[38,{"$f":"Import!M13748","v":"Select"},{"$f":"Import!M13848","v":"Select"},{"$f":"Import!M13948","v":"Select"},{"$f":"Import!M14048","v":0},{"$f":"Import!M14148","v":0}]
[39,{"$f":"Import!M13749","v":"Select"},{"$f":"Import!M13849","v":"Select"},{"$f":"Import!M13949","v":"Select"},{"$f":"Import!M14049","v":0},{"$f":"Import!M14149","v":0}]
[40,{"$f":"Import!M13750","v":"Select"},{"$f":"Import!M13850","v":"Select"},{"$f":"Import!M13950","v":"Select"},{"$f":"Import!M14050","v":0},{"$f":"Import!M14150","v":0}]
[41,{"$f":"Import!M13751","v":"Select"},{"$f":"Import!M13851","v":"Select"},{"$f":"Import!M13951","v":"Select"},{"$f":"Import!M14051","v":0},{"$f":"Import!M14151","v":0}]
[42,{"$f":"Import!M13752","v":"Select"},{"$f":"Import!M13852","v":"Select"},{"$f":"Import!M13952","v":"Select"},{"$f":"Import!M14052","v":0},{"$f":"Import!M14152","v":0}]
[43,{"$f":"Import!M13753","v":"Select"},{"$f":"Import!M13853","v":"Select"},{"$f":"Import!M13953","v":"Select"},{"$f":"Import!M14053","v":0},{"$f":"Import!M14153","v":0}]
[44,{"$f":"Import!M13754","v":"Select"},{"$f":"Import!M13854","v":"Select"},{"$f":"Import!M13954","v":"Select"},{"$f":"Import!M14054","v":0},{"$f":"Import!M14154","v":0}]
[45,{"$f":"Import!M13755","v":"Select"},{"$f":"Import!M13855","v":"Select"},{"$f":"Import!M13955","v":"Select"},{"$f":"Import!M14055","v":0},{"$f":"Import!M14155","v":0}]
[46,{"$f":"Import!M13756","v":"Select"},{"$f":"Import!M13856","v":"Select"},{"$f":"Import!M13956","v":"Select"},{"$f":"Import!M14056","v":0},{"$f":"Import!M14156","v":0}]
[47,{"$f":"Import!M13757","v":"Select"},{"$f":"Import!M13857","v":"Select"},{"$f":"Import!M13957","v":"Select"},{"$f":"Import!M14057","v":0},{"$f":"Import!M14157","v":0}]
[48,{"$f":"Import!M13758","v":"Select"},{"$f":"Import!M13858","v":"Select"},{"$f":"Import!M13958","v":"Select"},{"$f":"Import!M14058","v":0},{"$f":"Import!M14158","v":0}]
[49,{"$f":"Import!M13759","v":"Select"},{"$f":"Import!M13859","v":"Select"},{"$f":"Import!M13959","v":"Select"},{"$f":"Import!M14059","v":0},{"$f":"Import!M14159","v":0}]
[50,{"$f":"Import!M13760","v":"Select"},{"$f":"Import!M13860","v":"Select"},{"$f":"Import!M13960","v":"Select"},{"$f":"Import!M14060","v":0},{"$f":"Import!M14160","v":0}]
[51,{"$f":"Import!M13761","v":"Select"},{"$f":"Import!M13861","v":"Select"},{"$f":"Import!M13961","v":"Select"},{"$f":"Import!M14061","v":0},{"$f":"Import!M14161","v":0}]
[52,{"$f":"Import!M13762","v":"Select"},{"$f":"Import!M13862","v":"Select"},{"$f":"Import!M13962","v":"Select"},{"$f":"Import!M14062","v":0},{"$f":"Import!M14162","v":0}]
[53,{"$f":"Import!M13763","v":"Select"},{"$f":"Import!M13863","v":"Select"},{"$f":"Import!M13963","v":"Select"},{"$f":"Import!M14063","v":0},{"$f":"Import!M14163","v":0}]
[54,{"$f":"Import!M13764","v":"Select"},{"$f":"Import!M13864","v":"Select"},{"$f":"Import!M13964","v":"Select"},{"$f":"Import!M14064","v":0},{"$f":"Import!M14164","v":0}]
[55,{"$f":"Import!M13765","v":"Select"},{"$f":"Import!M13865","v":"Select"},{"$f":"Import!M13965","v":"Select"},{"$f":"Import!M14065","v":0},{"$f":"Import!M14165","v":0}]
[56,{"$f":"Import!M13766","v":"Select"},{"$f":"Import!M13866","v":"Select"},{"$f":"Import!M13966","v":"Select"},{"$f":"Import!M14066","v":0},{"$f":"Import!M14166","v":0}]
[57,{"$f":"Import!M13767","v":"Select"},{"$f":"Import!M13867","v":"Select"},{"$f":"Import!M13967","v":"Select"},{"$f":"Import!M14067","v":0},{"$f":"Import!M14167","v":0}]
[58,{"$f":"Import!M13768","v":"Select"},{"$f":"Import!M13868","v":"Select"},{"$f":"Import!M13968","v":"Select"},{"$f":"Import!M14068","v":0},{"$f":"Import!M14168","v":0}]
[59,{"$f":"Import!M13769","v":"Select"},{"$f":"Import!M13869","v":"Select"},{"$f":"Import!M13969","v":"Select"},{"$f":"Import!M14069","v":0},{"$f":"Import!M14169","v":0}]
[60,{"$f":"Import!M13770","v":"Select"},{"$f":"Import!M13870","v":"Select"},{"$f":"Import!M13970","v":"Select"},{"$f":"Import!M14070","v":0},{"$f":"Import!M14170","v":0}]
[61,{"$f":"Import!M13771","v":"Select"},{"$f":"Import!M13871","v":"Select"},{"$f":"Import!M13971","v":"Select"},{"$f":"Import!M14071","v":0},{"$f":"Import!M14171","v":0}]
[62,{"$f":"Import!M13772","v":"Select"},{"$f":"Import!M13872","v":"Select"},{"$f":"Import!M13972","v":"Select"},{"$f":"Import!M14072","v":0},{"$f":"Import!M14172","v":0}]
[63,{"$f":"Import!M13773","v":"Select"},{"$f":"Import!M13873","v":"Select"},{"$f":"Import!M13973","v":"Select"},{"$f":"Import!M14073","v":0},{"$f":"Import!M14173","v":0}]
[64,{"$f":"Import!M13774","v":"Select"},{"$f":"Import!M13874","v":"Select"},{"$f":"Import!M13974","v":"Select"},{"$f":"Import!M14074","v":0},{"$f":"Import!M14174","v":0}]
[65,{"$f":"Import!M13775","v":"Select"},{"$f":"Import!M13875","v":"Select"},{"$f":"Import!M13975","v":"Select"},{"$f":"Import!M14075","v":0},{"$f":"Import!M14175","v":0}]
[66,{"$f":"Import!M13776","v":"Select"},{"$f":"Import!M13876","v":"Select"},{"$f":"Import!M13976","v":"Select"},{"$f":"Import!M14076","v":0},{"$f":"Import!M14176","v":0}]
[{"$f":"A1302+1","v":67},{"$f":"Import!M13777","v":"Select"},{"$f":"Import!M13877","v":"Select"},{"$f":"Import!M13977","v":"Select"},{"$f":"Import!M14077","v":0},{"$f":"Import!M14177","v":0}]
[68,{"$f":"Import!M13778","v":"Select"},{"$f":"Import!M13878","v":"Select"},{"$f":"Import!M13978","v":"Select"},{"$f":"Import!M14078","v":0},{"$f":"Import!M14178","v":0}]
[69,{"$f":"Import!M13779","v":"Select"},{"$f":"Import!M13879","v":"Select"},{"$f":"Import!M13979","v":"Select"},{"$f":"Import!M14079","v":0},{"$f":"Import!M14179","v":0}]
[70,{"$f":"Import!M13780","v":"Select"},{"$f":"Import!M13880","v":"Select"},{"$f":"Import!M13980","v":"Select"},{"$f":"Import!M14080","v":0},{"$f":"Import!M14180","v":0}]
[71,{"$f":"Import!M13781","v":"Select"},{"$f":"Import!M13881","v":"Select"},{"$f":"Import!M13981","v":"Select"},{"$f":"Import!M14081","v":0},{"$f":"Import!M14181","v":0}]
[72,{"$f":"Import!M13782","v":"Select"},{"$f":"Import!M13882","v":"Select"},{"$f":"Import!M13982","v":"Select"},{"$f":"Import!M14082","v":0},{"$f":"Import!M14182","v":0}]
[73,{"$f":"Import!M13783","v":"Select"},{"$f":"Import!M13883","v":"Select"},{"$f":"Import!M13983","v":"Select"},{"$f":"Import!M14083","v":0},{"$f":"Import!M14183","v":0}]
[74,{"$f":"Import!M13784","v":"Select"},{"$f":"Import!M13884","v":"Select"},{"$f":"Import!M13984","v":"Select"},{"$f":"Import!M14084","v":0},{"$f":"Import!M14184","v":0}]
[75,{"$f":"Import!M13785","v":"Select"},{"$f":"Import!M13885","v":"Select"},{"$f":"Import!M13985","v":"Select"},{"$f":"Import!M14085","v":0},{"$f":"Import!M14185","v":0}]
[76,{"$f":"Import!M13786","v":"Select"},{"$f":"Import!M13886","v":"Select"},{"$f":"Import!M13986","v":"Select"},{"$f":"Import!M14086","v":0},{"$f":"Import!M14186","v":0}]
[77,{"$f":"Import!M13787","v":"Select"},{"$f":"Import!M13887","v":"Select"},{"$f":"Import!M13987","v":"Select"},{"$f":"Import!M14087","v":0},{"$f":"Import!M14187","v":0}]
[78,{"$f":"Import!M13788","v":"Select"},{"$f":"Import!M13888","v":"Select"},{"$f":"Import!M13988","v":"Select"},{"$f":"Import!M14088","v":0},{"$f":"Import!M14188","v":0}]
[79,{"$f":"Import!M13789","v":"Select"},{"$f":"Import!M13889","v":"Select"},{"$f":"Import!M13989","v":"Select"},{"$f":"Import!M14089","v":0},{"$f":"Import!M14189","v":0}]
[80,{"$f":"Import!M13790","v":"Select"},{"$f":"Import!M13890","v":"Select"},{"$f":"Import!M13990","v":"Select"},{"$f":"Import!M14090","v":0},{"$f":"Import!M14190","v":0}]
[81,{"$f":"Import!M13791","v":"Select"},{"$f":"Import!M13891","v":"Select"},{"$f":"Import!M13991","v":"Select"},{"$f":"Import!M14091","v":0},{"$f":"Import!M14191","v":0}]
[82,{"$f":"Import!M13792","v":"Select"},{"$f":"Import!M13892","v":"Select"},{"$f":"Import!M13992","v":"Select"},{"$f":"Import!M14092","v":0},{"$f":"Import!M14192","v":0}]
[83,{"$f":"Import!M13793","v":"Select"},{"$f":"Import!M13893","v":"Select"},{"$f":"Import!M13993","v":"Select"},{"$f":"Import!M14093","v":0},{"$f":"Import!M14193","v":0}]
[84,{"$f":"Import!M13794","v":"Select"},{"$f":"Import!M13894","v":"Select"},{"$f":"Import!M13994","v":"Select"},{"$f":"Import!M14094","v":0},{"$f":"Import!M14194","v":0}]
[85,{"$f":"Import!M13795","v":"Select"},{"$f":"Import!M13895","v":"Select"},{"$f":"Import!M13995","v":"Select"},{"$f":"Import!M14095","v":0},{"$f":"Import!M14195","v":0}]
[86,{"$f":"Import!M13796","v":"Select"},{"$f":"Import!M13896","v":"Select"},{"$f":"Import!M13996","v":"Select"},{"$f":"Import!M14096","v":0},{"$f":"Import!M14196","v":0}]
[87,{"$f":"Import!M13797","v":"Select"},{"$f":"Import!M13897","v":"Select"},{"$f":"Import!M13997","v":"Select"},{"$f":"Import!M14097","v":0},{"$f":"Import!M14197","v":0}]
[88,{"$f":"Import!M13798","v":"Select"},{"$f":"Import!M13898","v":"Select"},{"$f":"Import!M13998","v":"Select"},{"$f":"Import!M14098","v":0},{"$f":"Import!M14198","v":0}]
[89,{"$f":"Import!M13799","v":"Select"},{"$f":"Import!M13899","v":"Select"},{"$f":"Import!M13999","v":"Select"},{"$f":"Import!M14099","v":0},{"$f":"Import!M14199","v":0}]
[90,{"$f":"Import!M13800","v":"Select"},{"$f":"Import!M13900","v":"Select"},{"$f":"Import!M14000","v":"Select"},{"$f":"Import!M14100","v":0},{"$f":"Import!M14200","v":0}]
[91,{"$f":"Import!M13801","v":"Select"},{"$f":"Import!M13901","v":"Select"},{"$f":"Import!M14001","v":"Select"},{"$f":"Import!M14101","v":0},{"$f":"Import!M14201","v":0}]
[92,{"$f":"Import!M13802","v":"Select"},{"$f":"Import!M13902","v":"Select"},{"$f":"Import!M14002","v":"Select"},{"$f":"Import!M14102","v":0},{"$f":"Import!M14202","v":0}]
[93,{"$f":"Import!M13803","v":"Select"},{"$f":"Import!M13903","v":"Select"},{"$f":"Import!M14003","v":"Select"},{"$f":"Import!M14103","v":0},{"$f":"Import!M14203","v":0}]
[94,{"$f":"Import!M13804","v":"Select"},{"$f":"Import!M13904","v":"Select"},{"$f":"Import!M14004","v":"Select"},{"$f":"Import!M14104","v":0},{"$f":"Import!M14204","v":0}]
[95,{"$f":"Import!M13805","v":"Select"},{"$f":"Import!M13905","v":"Select"},{"$f":"Import!M14005","v":"Select"},{"$f":"Import!M14105","v":0},{"$f":"Import!M14205","v":0}]
[96,{"$f":"Import!M13806","v":"Select"},{"$f":"Import!M13906","v":"Select"},{"$f":"Import!M14006","v":"Select"},{"$f":"Import!M14106","v":0},{"$f":"Import!M14206","v":0}]
[97,{"$f":"Import!M13807","v":"Select"},{"$f":"Import!M13907","v":"Select"},{"$f":"Import!M14007","v":"Select"},{"$f":"Import!M14107","v":0},{"$f":"Import!M14207","v":0}]
[98,{"$f":"Import!M13808","v":"Select"},{"$f":"Import!M13908","v":"Select"},{"$f":"Import!M14008","v":"Select"},{"$f":"Import!M14108","v":0},{"$f":"Import!M14208","v":0}]
[99,{"$f":"Import!M13809","v":"Select"},{"$f":"Import!M13909","v":"Select"},{"$f":"Import!M14009","v":"Select"},{"$f":"Import!M14109","v":0},{"$f":"Import!M14209","v":0}]
[100,{"$f":"Import!M13810","v":"Select"},{"$f":"Import!M13910","v":"Select"},{"$f":"Import!M14010","v":"Select"},{"$f":"Import!M14110","v":0},{"$f":"Import!M14210","v":0}]
[]
[null,"Total Common Equities",null,null,{"$f":"SUM(E1237:E1336)","v":0}]
[]
[null,"(G) REAL ESTATE"]
[]
[null,null,"Enter # of Asset Types",{"$f":"Import!M14211","v":0}]
[null,null,null,null,null,{"$f":"YEAR($C$3)","v":2023},2023]
[null,"Asset Type","Currency","Country","Purpose","Cost","Fair Value","Comments"]
[1,{"$f":"Import!M14212","v":"Select"},{"$f":"Import!M14312","v":"Select"},{"$f":"Import!M14412","v":"Select"},{"$f":"Import!M14512","v":"Select"},{"$f":"Import!M14612","v":0},{"$f":"Import!M14712","v":0},{"$f":"Import!M14812","v":0}]
[{"$f":"A1345+1","v":2},{"$f":"Import!M14213","v":"Select"},{"$f":"Import!M14313","v":"Select"},{"$f":"Import!M14413","v":"Select"},{"$f":"Import!M14513","v":"Select"},{"$f":"Import!M14613","v":0},{"$f":"Import!M14713","v":0},{"$f":"Import!M14813","v":0}]
[{"$f":"A1346+1","v":3},{"$f":"Import!M14214","v":"Select"},{"$f":"Import!M14314","v":"Select"},{"$f":"Import!M14414","v":"Select"},{"$f":"Import!M14514","v":"Select"},{"$f":"Import!M14614","v":0},{"$f":"Import!M14714","v":0},{"$f":"Import!M14814","v":0}]
[4,{"$f":"Import!M14215","v":"Select"},{"$f":"Import!M14315","v":"Select"},{"$f":"Import!M14415","v":"Select"},{"$f":"Import!M14515","v":"Select"},{"$f":"Import!M14615","v":0},{"$f":"Import!M14715","v":0},{"$f":"Import!M14815","v":0}]
[5,{"$f":"Import!M14216","v":"Select"},{"$f":"Import!M14316","v":"Select"},{"$f":"Import!M14416","v":"Select"},{"$f":"Import!M14516","v":"Select"},{"$f":"Import!M14616","v":0},{"$f":"Import!M14716","v":0},{"$f":"Import!M14816","v":0}]
[6,{"$f":"Import!M14217","v":"Select"},{"$f":"Import!M14317","v":"Select"},{"$f":"Import!M14417","v":"Select"},{"$f":"Import!M14517","v":"Select"},{"$f":"Import!M14617","v":0},{"$f":"Import!M14717","v":0},{"$f":"Import!M14817","v":0}]
[7,{"$f":"Import!M14218","v":"Select"},{"$f":"Import!M14318","v":"Select"},{"$f":"Import!M14418","v":"Select"},{"$f":"Import!M14518","v":"Select"},{"$f":"Import!M14618","v":0},{"$f":"Import!M14718","v":0},{"$f":"Import!M14818","v":0}]
[8,{"$f":"Import!M14219","v":"Select"},{"$f":"Import!M14319","v":"Select"},{"$f":"Import!M14419","v":"Select"},{"$f":"Import!M14519","v":"Select"},{"$f":"Import!M14619","v":0},{"$f":"Import!M14719","v":0},{"$f":"Import!M14819","v":0}]
[9,{"$f":"Import!M14220","v":"Select"},{"$f":"Import!M14320","v":"Select"},{"$f":"Import!M14420","v":"Select"},{"$f":"Import!M14520","v":"Select"},{"$f":"Import!M14620","v":0},{"$f":"Import!M14720","v":0},{"$f":"Import!M14820","v":0}]
[10,{"$f":"Import!M14221","v":"Select"},{"$f":"Import!M14321","v":"Select"},{"$f":"Import!M14421","v":"Select"},{"$f":"Import!M14521","v":"Select"},{"$f":"Import!M14621","v":0},{"$f":"Import!M14721","v":0},{"$f":"Import!M14821","v":0}]
[11,{"$f":"Import!M14222","v":"Select"},{"$f":"Import!M14322","v":"Select"},{"$f":"Import!M14422","v":"Select"},{"$f":"Import!M14522","v":"Select"},{"$f":"Import!M14622","v":0},{"$f":"Import!M14722","v":0},{"$f":"Import!M14822","v":0}]
[12,{"$f":"Import!M14223","v":"Select"},{"$f":"Import!M14323","v":"Select"},{"$f":"Import!M14423","v":"Select"},{"$f":"Import!M14523","v":"Select"},{"$f":"Import!M14623","v":0},{"$f":"Import!M14723","v":0},{"$f":"Import!M14823","v":0}]
[13,{"$f":"Import!M14224","v":"Select"},{"$f":"Import!M14324","v":"Select"},{"$f":"Import!M14424","v":"Select"},{"$f":"Import!M14524","v":"Select"},{"$f":"Import!M14624","v":0},{"$f":"Import!M14724","v":0},{"$f":"Import!M14824","v":0}]
[14,{"$f":"Import!M14225","v":"Select"},{"$f":"Import!M14325","v":"Select"},{"$f":"Import!M14425","v":"Select"},{"$f":"Import!M14525","v":"Select"},{"$f":"Import!M14625","v":0},{"$f":"Import!M14725","v":0},{"$f":"Import!M14825","v":0}]
[15,{"$f":"Import!M14226","v":"Select"},{"$f":"Import!M14326","v":"Select"},{"$f":"Import!M14426","v":"Select"},{"$f":"Import!M14526","v":"Select"},{"$f":"Import!M14626","v":0},{"$f":"Import!M14726","v":0},{"$f":"Import!M14826","v":0}]
[16,{"$f":"Import!M14227","v":"Select"},{"$f":"Import!M14327","v":"Select"},{"$f":"Import!M14427","v":"Select"},{"$f":"Import!M14527","v":"Select"},{"$f":"Import!M14627","v":0},{"$f":"Import!M14727","v":0},{"$f":"Import!M14827","v":0}]
[17,{"$f":"Import!M14228","v":"Select"},{"$f":"Import!M14328","v":"Select"},{"$f":"Import!M14428","v":"Select"},{"$f":"Import!M14528","v":"Select"},{"$f":"Import!M14628","v":0},{"$f":"Import!M14728","v":0},{"$f":"Import!M14828","v":0}]
[18,{"$f":"Import!M14229","v":"Select"},{"$f":"Import!M14329","v":"Select"},{"$f":"Import!M14429","v":"Select"},{"$f":"Import!M14529","v":"Select"},{"$f":"Import!M14629","v":0},{"$f":"Import!M14729","v":0},{"$f":"Import!M14829","v":0}]
[19,{"$f":"Import!M14230","v":"Select"},{"$f":"Import!M14330","v":"Select"},{"$f":"Import!M14430","v":"Select"},{"$f":"Import!M14530","v":"Select"},{"$f":"Import!M14630","v":0},{"$f":"Import!M14730","v":0},{"$f":"Import!M14830","v":0}]
[20,{"$f":"Import!M14231","v":"Select"},{"$f":"Import!M14331","v":"Select"},{"$f":"Import!M14431","v":"Select"},{"$f":"Import!M14531","v":"Select"},{"$f":"Import!M14631","v":0},{"$f":"Import!M14731","v":0},{"$f":"Import!M14831","v":0}]
[21,{"$f":"Import!M14232","v":"Select"},{"$f":"Import!M14332","v":"Select"},{"$f":"Import!M14432","v":"Select"},{"$f":"Import!M14532","v":"Select"},{"$f":"Import!M14632","v":0},{"$f":"Import!M14732","v":0},{"$f":"Import!M14832","v":0}]
[22,{"$f":"Import!M14233","v":"Select"},{"$f":"Import!M14333","v":"Select"},{"$f":"Import!M14433","v":"Select"},{"$f":"Import!M14533","v":"Select"},{"$f":"Import!M14633","v":0},{"$f":"Import!M14733","v":0},{"$f":"Import!M14833","v":0}]
[23,{"$f":"Import!M14234","v":"Select"},{"$f":"Import!M14334","v":"Select"},{"$f":"Import!M14434","v":"Select"},{"$f":"Import!M14534","v":"Select"},{"$f":"Import!M14634","v":0},{"$f":"Import!M14734","v":0},{"$f":"Import!M14834","v":0}]
[24,{"$f":"Import!M14235","v":"Select"},{"$f":"Import!M14335","v":"Select"},{"$f":"Import!M14435","v":"Select"},{"$f":"Import!M14535","v":"Select"},{"$f":"Import!M14635","v":0},{"$f":"Import!M14735","v":0},{"$f":"Import!M14835","v":0}]
[25,{"$f":"Import!M14236","v":"Select"},{"$f":"Import!M14336","v":"Select"},{"$f":"Import!M14436","v":"Select"},{"$f":"Import!M14536","v":"Select"},{"$f":"Import!M14636","v":0},{"$f":"Import!M14736","v":0},{"$f":"Import!M14836","v":0}]
[26,{"$f":"Import!M14237","v":"Select"},{"$f":"Import!M14337","v":"Select"},{"$f":"Import!M14437","v":"Select"},{"$f":"Import!M14537","v":"Select"},{"$f":"Import!M14637","v":0},{"$f":"Import!M14737","v":0},{"$f":"Import!M14837","v":0}]
[27,{"$f":"Import!M14238","v":"Select"},{"$f":"Import!M14338","v":"Select"},{"$f":"Import!M14438","v":"Select"},{"$f":"Import!M14538","v":"Select"},{"$f":"Import!M14638","v":0},{"$f":"Import!M14738","v":0},{"$f":"Import!M14838","v":0}]
[28,{"$f":"Import!M14239","v":"Select"},{"$f":"Import!M14339","v":"Select"},{"$f":"Import!M14439","v":"Select"},{"$f":"Import!M14539","v":"Select"},{"$f":"Import!M14639","v":0},{"$f":"Import!M14739","v":0},{"$f":"Import!M14839","v":0}]
[29,{"$f":"Import!M14240","v":"Select"},{"$f":"Import!M14340","v":"Select"},{"$f":"Import!M14440","v":"Select"},{"$f":"Import!M14540","v":"Select"},{"$f":"Import!M14640","v":0},{"$f":"Import!M14740","v":0},{"$f":"Import!M14840","v":0}]
[30,{"$f":"Import!M14241","v":"Select"},{"$f":"Import!M14341","v":"Select"},{"$f":"Import!M14441","v":"Select"},{"$f":"Import!M14541","v":"Select"},{"$f":"Import!M14641","v":0},{"$f":"Import!M14741","v":0},{"$f":"Import!M14841","v":0}]
[31,{"$f":"Import!M14242","v":"Select"},{"$f":"Import!M14342","v":"Select"},{"$f":"Import!M14442","v":"Select"},{"$f":"Import!M14542","v":"Select"},{"$f":"Import!M14642","v":0},{"$f":"Import!M14742","v":0},{"$f":"Import!M14842","v":0}]
[32,{"$f":"Import!M14243","v":"Select"},{"$f":"Import!M14343","v":"Select"},{"$f":"Import!M14443","v":"Select"},{"$f":"Import!M14543","v":"Select"},{"$f":"Import!M14643","v":0},{"$f":"Import!M14743","v":0},{"$f":"Import!M14843","v":0}]
[33,{"$f":"Import!M14244","v":"Select"},{"$f":"Import!M14344","v":"Select"},{"$f":"Import!M14444","v":"Select"},{"$f":"Import!M14544","v":"Select"},{"$f":"Import!M14644","v":0},{"$f":"Import!M14744","v":0},{"$f":"Import!M14844","v":0}]
[34,{"$f":"Import!M14245","v":"Select"},{"$f":"Import!M14345","v":"Select"},{"$f":"Import!M14445","v":"Select"},{"$f":"Import!M14545","v":"Select"},{"$f":"Import!M14645","v":0},{"$f":"Import!M14745","v":0},{"$f":"Import!M14845","v":0}]
[35,{"$f":"Import!M14246","v":"Select"},{"$f":"Import!M14346","v":"Select"},{"$f":"Import!M14446","v":"Select"},{"$f":"Import!M14546","v":"Select"},{"$f":"Import!M14646","v":0},{"$f":"Import!M14746","v":0},{"$f":"Import!M14846","v":0}]
[36,{"$f":"Import!M14247","v":"Select"},{"$f":"Import!M14347","v":"Select"},{"$f":"Import!M14447","v":"Select"},{"$f":"Import!M14547","v":"Select"},{"$f":"Import!M14647","v":0},{"$f":"Import!M14747","v":0},{"$f":"Import!M14847","v":0}]
[37,{"$f":"Import!M14248","v":"Select"},{"$f":"Import!M14348","v":"Select"},{"$f":"Import!M14448","v":"Select"},{"$f":"Import!M14548","v":"Select"},{"$f":"Import!M14648","v":0},{"$f":"Import!M14748","v":0},{"$f":"Import!M14848","v":0}]
[38,{"$f":"Import!M14249","v":"Select"},{"$f":"Import!M14349","v":"Select"},{"$f":"Import!M14449","v":"Select"},{"$f":"Import!M14549","v":"Select"},{"$f":"Import!M14649","v":0},{"$f":"Import!M14749","v":0},{"$f":"Import!M14849","v":0}]
[39,{"$f":"Import!M14250","v":"Select"},{"$f":"Import!M14350","v":"Select"},{"$f":"Import!M14450","v":"Select"},{"$f":"Import!M14550","v":"Select"},{"$f":"Import!M14650","v":0},{"$f":"Import!M14750","v":0},{"$f":"Import!M14850","v":0}]
[40,{"$f":"Import!M14251","v":"Select"},{"$f":"Import!M14351","v":"Select"},{"$f":"Import!M14451","v":"Select"},{"$f":"Import!M14551","v":"Select"},{"$f":"Import!M14651","v":0},{"$f":"Import!M14751","v":0},{"$f":"Import!M14851","v":0}]
[41,{"$f":"Import!M14252","v":"Select"},{"$f":"Import!M14352","v":"Select"},{"$f":"Import!M14452","v":"Select"},{"$f":"Import!M14552","v":"Select"},{"$f":"Import!M14652","v":0},{"$f":"Import!M14752","v":0},{"$f":"Import!M14852","v":0}]
[42,{"$f":"Import!M14253","v":"Select"},{"$f":"Import!M14353","v":"Select"},{"$f":"Import!M14453","v":"Select"},{"$f":"Import!M14553","v":"Select"},{"$f":"Import!M14653","v":0},{"$f":"Import!M14753","v":0},{"$f":"Import!M14853","v":0}]
[43,{"$f":"Import!M14254","v":"Select"},{"$f":"Import!M14354","v":"Select"},{"$f":"Import!M14454","v":"Select"},{"$f":"Import!M14554","v":"Select"},{"$f":"Import!M14654","v":0},{"$f":"Import!M14754","v":0},{"$f":"Import!M14854","v":0}]
[44,{"$f":"Import!M14255","v":"Select"},{"$f":"Import!M14355","v":"Select"},{"$f":"Import!M14455","v":"Select"},{"$f":"Import!M14555","v":"Select"},{"$f":"Import!M14655","v":0},{"$f":"Import!M14755","v":0},{"$f":"Import!M14855","v":0}]
[45,{"$f":"Import!M14256","v":"Select"},{"$f":"Import!M14356","v":"Select"},{"$f":"Import!M14456","v":"Select"},{"$f":"Import!M14556","v":"Select"},{"$f":"Import!M14656","v":0},{"$f":"Import!M14756","v":0},{"$f":"Import!M14856","v":0}]
[46,{"$f":"Import!M14257","v":"Select"},{"$f":"Import!M14357","v":"Select"},{"$f":"Import!M14457","v":"Select"},{"$f":"Import!M14557","v":"Select"},{"$f":"Import!M14657","v":0},{"$f":"Import!M14757","v":0},{"$f":"Import!M14857","v":0}]
[47,{"$f":"Import!M14258","v":"Select"},{"$f":"Import!M14358","v":"Select"},{"$f":"Import!M14458","v":"Select"},{"$f":"Import!M14558","v":"Select"},{"$f":"Import!M14658","v":0},{"$f":"Import!M14758","v":0},{"$f":"Import!M14858","v":0}]
[48,{"$f":"Import!M14259","v":"Select"},{"$f":"Import!M14359","v":"Select"},{"$f":"Import!M14459","v":"Select"},{"$f":"Import!M14559","v":"Select"},{"$f":"Import!M14659","v":0},{"$f":"Import!M14759","v":0},{"$f":"Import!M14859","v":0}]
[49,{"$f":"Import!M14260","v":"Select"},{"$f":"Import!M14360","v":"Select"},{"$f":"Import!M14460","v":"Select"},{"$f":"Import!M14560","v":"Select"},{"$f":"Import!M14660","v":0},{"$f":"Import!M14760","v":0},{"$f":"Import!M14860","v":0}]
[50,{"$f":"Import!M14261","v":"Select"},{"$f":"Import!M14361","v":"Select"},{"$f":"Import!M14461","v":"Select"},{"$f":"Import!M14561","v":"Select"},{"$f":"Import!M14661","v":0},{"$f":"Import!M14761","v":0},{"$f":"Import!M14861","v":0}]
[51,{"$f":"Import!M14262","v":"Select"},{"$f":"Import!M14362","v":"Select"},{"$f":"Import!M14462","v":"Select"},{"$f":"Import!M14562","v":"Select"},{"$f":"Import!M14662","v":0},{"$f":"Import!M14762","v":0},{"$f":"Import!M14862","v":0}]
[52,{"$f":"Import!M14263","v":"Select"},{"$f":"Import!M14363","v":"Select"},{"$f":"Import!M14463","v":"Select"},{"$f":"Import!M14563","v":"Select"},{"$f":"Import!M14663","v":0},{"$f":"Import!M14763","v":0},{"$f":"Import!M14863","v":0}]
[53,{"$f":"Import!M14264","v":"Select"},{"$f":"Import!M14364","v":"Select"},{"$f":"Import!M14464","v":"Select"},{"$f":"Import!M14564","v":"Select"},{"$f":"Import!M14664","v":0},{"$f":"Import!M14764","v":0},{"$f":"Import!M14864","v":0}]
[54,{"$f":"Import!M14265","v":"Select"},{"$f":"Import!M14365","v":"Select"},{"$f":"Import!M14465","v":"Select"},{"$f":"Import!M14565","v":"Select"},{"$f":"Import!M14665","v":0},{"$f":"Import!M14765","v":0},{"$f":"Import!M14865","v":0}]
[55,{"$f":"Import!M14266","v":"Select"},{"$f":"Import!M14366","v":"Select"},{"$f":"Import!M14466","v":"Select"},{"$f":"Import!M14566","v":"Select"},{"$f":"Import!M14666","v":0},{"$f":"Import!M14766","v":0},{"$f":"Import!M14866","v":0}]
[56,{"$f":"Import!M14267","v":"Select"},{"$f":"Import!M14367","v":"Select"},{"$f":"Import!M14467","v":"Select"},{"$f":"Import!M14567","v":"Select"},{"$f":"Import!M14667","v":0},{"$f":"Import!M14767","v":0},{"$f":"Import!M14867","v":0}]
[57,{"$f":"Import!M14268","v":"Select"},{"$f":"Import!M14368","v":"Select"},{"$f":"Import!M14468","v":"Select"},{"$f":"Import!M14568","v":"Select"},{"$f":"Import!M14668","v":0},{"$f":"Import!M14768","v":0},{"$f":"Import!M14868","v":0}]
[58,{"$f":"Import!M14269","v":"Select"},{"$f":"Import!M14369","v":"Select"},{"$f":"Import!M14469","v":"Select"},{"$f":"Import!M14569","v":"Select"},{"$f":"Import!M14669","v":0},{"$f":"Import!M14769","v":0},{"$f":"Import!M14869","v":0}]
[59,{"$f":"Import!M14270","v":"Select"},{"$f":"Import!M14370","v":"Select"},{"$f":"Import!M14470","v":"Select"},{"$f":"Import!M14570","v":"Select"},{"$f":"Import!M14670","v":0},{"$f":"Import!M14770","v":0},{"$f":"Import!M14870","v":0}]
[60,{"$f":"Import!M14271","v":"Select"},{"$f":"Import!M14371","v":"Select"},{"$f":"Import!M14471","v":"Select"},{"$f":"Import!M14571","v":"Select"},{"$f":"Import!M14671","v":0},{"$f":"Import!M14771","v":0},{"$f":"Import!M14871","v":0}]
[61,{"$f":"Import!M14272","v":"Select"},{"$f":"Import!M14372","v":"Select"},{"$f":"Import!M14472","v":"Select"},{"$f":"Import!M14572","v":"Select"},{"$f":"Import!M14672","v":0},{"$f":"Import!M14772","v":0},{"$f":"Import!M14872","v":0}]
[62,{"$f":"Import!M14273","v":"Select"},{"$f":"Import!M14373","v":"Select"},{"$f":"Import!M14473","v":"Select"},{"$f":"Import!M14573","v":"Select"},{"$f":"Import!M14673","v":0},{"$f":"Import!M14773","v":0},{"$f":"Import!M14873","v":0}]
[63,{"$f":"Import!M14274","v":"Select"},{"$f":"Import!M14374","v":"Select"},{"$f":"Import!M14474","v":"Select"},{"$f":"Import!M14574","v":"Select"},{"$f":"Import!M14674","v":0},{"$f":"Import!M14774","v":0},{"$f":"Import!M14874","v":0}]
[64,{"$f":"Import!M14275","v":"Select"},{"$f":"Import!M14375","v":"Select"},{"$f":"Import!M14475","v":"Select"},{"$f":"Import!M14575","v":"Select"},{"$f":"Import!M14675","v":0},{"$f":"Import!M14775","v":0},{"$f":"Import!M14875","v":0}]
[65,{"$f":"Import!M14276","v":"Select"},{"$f":"Import!M14376","v":"Select"},{"$f":"Import!M14476","v":"Select"},{"$f":"Import!M14576","v":"Select"},{"$f":"Import!M14676","v":0},{"$f":"Import!M14776","v":0},{"$f":"Import!M14876","v":0}]
[66,{"$f":"Import!M14277","v":"Select"},{"$f":"Import!M14377","v":"Select"},{"$f":"Import!M14477","v":"Select"},{"$f":"Import!M14577","v":"Select"},{"$f":"Import!M14677","v":0},{"$f":"Import!M14777","v":0},{"$f":"Import!M14877","v":0}]
[{"$f":"A1410+1","v":67},{"$f":"Import!M14278","v":"Select"},{"$f":"Import!M14378","v":"Select"},{"$f":"Import!M14478","v":"Select"},{"$f":"Import!M14578","v":"Select"},{"$f":"Import!M14678","v":0},{"$f":"Import!M14778","v":0},{"$f":"Import!M14878","v":0}]
[68,{"$f":"Import!M14279","v":"Select"},{"$f":"Import!M14379","v":"Select"},{"$f":"Import!M14479","v":"Select"},{"$f":"Import!M14579","v":"Select"},{"$f":"Import!M14679","v":0},{"$f":"Import!M14779","v":0},{"$f":"Import!M14879","v":0}]
[69,{"$f":"Import!M14280","v":"Select"},{"$f":"Import!M14380","v":"Select"},{"$f":"Import!M14480","v":"Select"},{"$f":"Import!M14580","v":"Select"},{"$f":"Import!M14680","v":0},{"$f":"Import!M14780","v":0},{"$f":"Import!M14880","v":0}]
[70,{"$f":"Import!M14281","v":"Select"},{"$f":"Import!M14381","v":"Select"},{"$f":"Import!M14481","v":"Select"},{"$f":"Import!M14581","v":"Select"},{"$f":"Import!M14681","v":0},{"$f":"Import!M14781","v":0},{"$f":"Import!M14881","v":0}]
[71,{"$f":"Import!M14282","v":"Select"},{"$f":"Import!M14382","v":"Select"},{"$f":"Import!M14482","v":"Select"},{"$f":"Import!M14582","v":"Select"},{"$f":"Import!M14682","v":0},{"$f":"Import!M14782","v":0},{"$f":"Import!M14882","v":0}]
[72,{"$f":"Import!M14283","v":"Select"},{"$f":"Import!M14383","v":"Select"},{"$f":"Import!M14483","v":"Select"},{"$f":"Import!M14583","v":"Select"},{"$f":"Import!M14683","v":0},{"$f":"Import!M14783","v":0},{"$f":"Import!M14883","v":0}]
[73,{"$f":"Import!M14284","v":"Select"},{"$f":"Import!M14384","v":"Select"},{"$f":"Import!M14484","v":"Select"},{"$f":"Import!M14584","v":"Select"},{"$f":"Import!M14684","v":0},{"$f":"Import!M14784","v":0},{"$f":"Import!M14884","v":0}]
[74,{"$f":"Import!M14285","v":"Select"},{"$f":"Import!M14385","v":"Select"},{"$f":"Import!M14485","v":"Select"},{"$f":"Import!M14585","v":"Select"},{"$f":"Import!M14685","v":0},{"$f":"Import!M14785","v":0},{"$f":"Import!M14885","v":0}]
[75,{"$f":"Import!M14286","v":"Select"},{"$f":"Import!M14386","v":"Select"},{"$f":"Import!M14486","v":"Select"},{"$f":"Import!M14586","v":"Select"},{"$f":"Import!M14686","v":0},{"$f":"Import!M14786","v":0},{"$f":"Import!M14886","v":0}]
[76,{"$f":"Import!M14287","v":"Select"},{"$f":"Import!M14387","v":"Select"},{"$f":"Import!M14487","v":"Select"},{"$f":"Import!M14587","v":"Select"},{"$f":"Import!M14687","v":0},{"$f":"Import!M14787","v":0},{"$f":"Import!M14887","v":0}]
[77,{"$f":"Import!M14288","v":"Select"},{"$f":"Import!M14388","v":"Select"},{"$f":"Import!M14488","v":"Select"},{"$f":"Import!M14588","v":"Select"},{"$f":"Import!M14688","v":0},{"$f":"Import!M14788","v":0},{"$f":"Import!M14888","v":0}]
[78,{"$f":"Import!M14289","v":"Select"},{"$f":"Import!M14389","v":"Select"},{"$f":"Import!M14489","v":"Select"},{"$f":"Import!M14589","v":"Select"},{"$f":"Import!M14689","v":0},{"$f":"Import!M14789","v":0},{"$f":"Import!M14889","v":0}]
[79,{"$f":"Import!M14290","v":"Select"},{"$f":"Import!M14390","v":"Select"},{"$f":"Import!M14490","v":"Select"},{"$f":"Import!M14590","v":"Select"},{"$f":"Import!M14690","v":0},{"$f":"Import!M14790","v":0},{"$f":"Import!M14890","v":0}]
[80,{"$f":"Import!M14291","v":"Select"},{"$f":"Import!M14391","v":"Select"},{"$f":"Import!M14491","v":"Select"},{"$f":"Import!M14591","v":"Select"},{"$f":"Import!M14691","v":0},{"$f":"Import!M14791","v":0},{"$f":"Import!M14891","v":0}]
[81,{"$f":"Import!M14292","v":"Select"},{"$f":"Import!M14392","v":"Select"},{"$f":"Import!M14492","v":"Select"},{"$f":"Import!M14592","v":"Select"},{"$f":"Import!M14692","v":0},{"$f":"Import!M14792","v":0},{"$f":"Import!M14892","v":0}]
[82,{"$f":"Import!M14293","v":"Select"},{"$f":"Import!M14393","v":"Select"},{"$f":"Import!M14493","v":"Select"},{"$f":"Import!M14593","v":"Select"},{"$f":"Import!M14693","v":0},{"$f":"Import!M14793","v":0},{"$f":"Import!M14893","v":0}]
[83,{"$f":"Import!M14294","v":"Select"},{"$f":"Import!M14394","v":"Select"},{"$f":"Import!M14494","v":"Select"},{"$f":"Import!M14594","v":"Select"},{"$f":"Import!M14694","v":0},{"$f":"Import!M14794","v":0},{"$f":"Import!M14894","v":0}]
[84,{"$f":"Import!M14295","v":"Select"},{"$f":"Import!M14395","v":"Select"},{"$f":"Import!M14495","v":"Select"},{"$f":"Import!M14595","v":"Select"},{"$f":"Import!M14695","v":0},{"$f":"Import!M14795","v":0},{"$f":"Import!M14895","v":0}]
[85,{"$f":"Import!M14296","v":"Select"},{"$f":"Import!M14396","v":"Select"},{"$f":"Import!M14496","v":"Select"},{"$f":"Import!M14596","v":"Select"},{"$f":"Import!M14696","v":0},{"$f":"Import!M14796","v":0},{"$f":"Import!M14896","v":0}]
[86,{"$f":"Import!M14297","v":"Select"},{"$f":"Import!M14397","v":"Select"},{"$f":"Import!M14497","v":"Select"},{"$f":"Import!M14597","v":"Select"},{"$f":"Import!M14697","v":0},{"$f":"Import!M14797","v":0},{"$f":"Import!M14897","v":0}]
[87,{"$f":"Import!M14298","v":"Select"},{"$f":"Import!M14398","v":"Select"},{"$f":"Import!M14498","v":"Select"},{"$f":"Import!M14598","v":"Select"},{"$f":"Import!M14698","v":0},{"$f":"Import!M14798","v":0},{"$f":"Import!M14898","v":0}]
[88,{"$f":"Import!M14299","v":"Select"},{"$f":"Import!M14399","v":"Select"},{"$f":"Import!M14499","v":"Select"},{"$f":"Import!M14599","v":"Select"},{"$f":"Import!M14699","v":0},{"$f":"Import!M14799","v":0},{"$f":"Import!M14899","v":0}]
[89,{"$f":"Import!M14300","v":"Select"},{"$f":"Import!M14400","v":"Select"},{"$f":"Import!M14500","v":"Select"},{"$f":"Import!M14600","v":"Select"},{"$f":"Import!M14700","v":0},{"$f":"Import!M14800","v":0},{"$f":"Import!M14900","v":0}]
[90,{"$f":"Import!M14301","v":"Select"},{"$f":"Import!M14401","v":"Select"},{"$f":"Import!M14501","v":"Select"},{"$f":"Import!M14601","v":"Select"},{"$f":"Import!M14701","v":0},{"$f":"Import!M14801","v":0},{"$f":"Import!M14901","v":0}]
[91,{"$f":"Import!M14302","v":"Select"},{"$f":"Import!M14402","v":"Select"},{"$f":"Import!M14502","v":"Select"},{"$f":"Import!M14602","v":"Select"},{"$f":"Import!M14702","v":0},{"$f":"Import!M14802","v":0},{"$f":"Import!M14902","v":0}]
[92,{"$f":"Import!M14303","v":"Select"},{"$f":"Import!M14403","v":"Select"},{"$f":"Import!M14503","v":"Select"},{"$f":"Import!M14603","v":"Select"},{"$f":"Import!M14703","v":0},{"$f":"Import!M14803","v":0},{"$f":"Import!M14903","v":0}]
[93,{"$f":"Import!M14304","v":"Select"},{"$f":"Import!M14404","v":"Select"},{"$f":"Import!M14504","v":"Select"},{"$f":"Import!M14604","v":"Select"},{"$f":"Import!M14704","v":0},{"$f":"Import!M14804","v":0},{"$f":"Import!M14904","v":0}]
[94,{"$f":"Import!M14305","v":"Select"},{"$f":"Import!M14405","v":"Select"},{"$f":"Import!M14505","v":"Select"},{"$f":"Import!M14605","v":"Select"},{"$f":"Import!M14705","v":0},{"$f":"Import!M14805","v":0},{"$f":"Import!M14905","v":0}]
[95,{"$f":"Import!M14306","v":"Select"},{"$f":"Import!M14406","v":"Select"},{"$f":"Import!M14506","v":"Select"},{"$f":"Import!M14606","v":"Select"},{"$f":"Import!M14706","v":0},{"$f":"Import!M14806","v":0},{"$f":"Import!M14906","v":0}]
[96,{"$f":"Import!M14307","v":"Select"},{"$f":"Import!M14407","v":"Select"},{"$f":"Import!M14507","v":"Select"},{"$f":"Import!M14607","v":"Select"},{"$f":"Import!M14707","v":0},{"$f":"Import!M14807","v":0},{"$f":"Import!M14907","v":0}]
[97,{"$f":"Import!M14308","v":"Select"},{"$f":"Import!M14408","v":"Select"},{"$f":"Import!M14508","v":"Select"},{"$f":"Import!M14608","v":"Select"},{"$f":"Import!M14708","v":0},{"$f":"Import!M14808","v":0},{"$f":"Import!M14908","v":0}]
[98,{"$f":"Import!M14309","v":"Select"},{"$f":"Import!M14409","v":"Select"},{"$f":"Import!M14509","v":"Select"},{"$f":"Import!M14609","v":"Select"},{"$f":"Import!M14709","v":0},{"$f":"Import!M14809","v":0},{"$f":"Import!M14909","v":0}]
[99,{"$f":"Import!M14310","v":"Select"},{"$f":"Import!M14410","v":"Select"},{"$f":"Import!M14510","v":"Select"},{"$f":"Import!M14610","v":"Select"},{"$f":"Import!M14710","v":0},{"$f":"Import!M14810","v":0},{"$f":"Import!M14910","v":0}]
[100,{"$f":"Import!M14311","v":"Select"},{"$f":"Import!M14411","v":"Select"},{"$f":"Import!M14511","v":"Select"},{"$f":"Import!M14611","v":"Select"},{"$f":"Import!M14711","v":0},{"$f":"Import!M14811","v":0},{"$f":"Import!M14911","v":0}]
[]
[null,"Total Real Estate",null,null,null,{"$f":"SUM(F1345:F1444)","v":0},{"$f":"SUM(G1345:G1444)","v":0}]
[]
[null,"(H) OTHER ALTERNATIVE INVESTMENTS"]
[]
[null,null,"Enter # of Asset Types",{"$f":"Import!M14912","v":0}]
[null,null,null,null,null,{"$f":"YEAR($C$3)","v":2023},2023,"Weighted"]
[null,"Asset Type","Currency","Country","BSCR Rating","Nominal Amount","Fair Value","Average YTM","Effective Duration","Comments"]
[1,{"$f":"Import!M14913","v":"Select"},{"$f":"Import!M15013","v":"Select"},{"$f":"Import!M15113","v":"Select"},{"$f":"Import!M15213","v":"Select"},{"$f":"Import!M15313","v":0},{"$f":"Import!M15413","v":0},{"$f":"Import!M15513","v":0},{"$f":"Import!M15613","v":0},{"$f":"Import!M15713","v":0}]
[{"$f":"A1453+1","v":2},{"$f":"Import!M14914","v":"Select"},{"$f":"Import!M15014","v":"Select"},{"$f":"Import!M15114","v":"Select"},{"$f":"Import!M15214","v":"Select"},{"$f":"Import!M15314","v":0},{"$f":"Import!M15414","v":0},{"$f":"Import!M15514","v":0},{"$f":"Import!M15614","v":0},{"$f":"Import!M15714","v":0}]
[{"$f":"A1454+1","v":3},{"$f":"Import!M14915","v":"Select"},{"$f":"Import!M15015","v":"Select"},{"$f":"Import!M15115","v":"Select"},{"$f":"Import!M15215","v":"Select"},{"$f":"Import!M15315","v":0},{"$f":"Import!M15415","v":0},{"$f":"Import!M15515","v":0},{"$f":"Import!M15615","v":0},{"$f":"Import!M15715","v":0}]
[4,{"$f":"Import!M14916","v":"Select"},{"$f":"Import!M15016","v":"Select"},{"$f":"Import!M15116","v":"Select"},{"$f":"Import!M15216","v":"Select"},{"$f":"Import!M15316","v":0},{"$f":"Import!M15416","v":0},{"$f":"Import!M15516","v":0},{"$f":"Import!M15616","v":0},{"$f":"Import!M15716","v":0}]
[5,{"$f":"Import!M14917","v":"Select"},{"$f":"Import!M15017","v":"Select"},{"$f":"Import!M15117","v":"Select"},{"$f":"Import!M15217","v":"Select"},{"$f":"Import!M15317","v":0},{"$f":"Import!M15417","v":0},{"$f":"Import!M15517","v":0},{"$f":"Import!M15617","v":0},{"$f":"Import!M15717","v":0}]
[6,{"$f":"Import!M14918","v":"Select"},{"$f":"Import!M15018","v":"Select"},{"$f":"Import!M15118","v":"Select"},{"$f":"Import!M15218","v":"Select"},{"$f":"Import!M15318","v":0},{"$f":"Import!M15418","v":0},{"$f":"Import!M15518","v":0},{"$f":"Import!M15618","v":0},{"$f":"Import!M15718","v":0}]
[7,{"$f":"Import!M14919","v":"Select"},{"$f":"Import!M15019","v":"Select"},{"$f":"Import!M15119","v":"Select"},{"$f":"Import!M15219","v":"Select"},{"$f":"Import!M15319","v":0},{"$f":"Import!M15419","v":0},{"$f":"Import!M15519","v":0},{"$f":"Import!M15619","v":0},{"$f":"Import!M15719","v":0}]
[8,{"$f":"Import!M14920","v":"Select"},{"$f":"Import!M15020","v":"Select"},{"$f":"Import!M15120","v":"Select"},{"$f":"Import!M15220","v":"Select"},{"$f":"Import!M15320","v":0},{"$f":"Import!M15420","v":0},{"$f":"Import!M15520","v":0},{"$f":"Import!M15620","v":0},{"$f":"Import!M15720","v":0}]
[9,{"$f":"Import!M14921","v":"Select"},{"$f":"Import!M15021","v":"Select"},{"$f":"Import!M15121","v":"Select"},{"$f":"Import!M15221","v":"Select"},{"$f":"Import!M15321","v":0},{"$f":"Import!M15421","v":0},{"$f":"Import!M15521","v":0},{"$f":"Import!M15621","v":0},{"$f":"Import!M15721","v":0}]
[10,{"$f":"Import!M14922","v":"Select"},{"$f":"Import!M15022","v":"Select"},{"$f":"Import!M15122","v":"Select"},{"$f":"Import!M15222","v":"Select"},{"$f":"Import!M15322","v":0},{"$f":"Import!M15422","v":0},{"$f":"Import!M15522","v":0},{"$f":"Import!M15622","v":0},{"$f":"Import!M15722","v":0}]
[11,{"$f":"Import!M14923","v":"Select"},{"$f":"Import!M15023","v":"Select"},{"$f":"Import!M15123","v":"Select"},{"$f":"Import!M15223","v":"Select"},{"$f":"Import!M15323","v":0},{"$f":"Import!M15423","v":0},{"$f":"Import!M15523","v":0},{"$f":"Import!M15623","v":0},{"$f":"Import!M15723","v":0}]
[12,{"$f":"Import!M14924","v":"Select"},{"$f":"Import!M15024","v":"Select"},{"$f":"Import!M15124","v":"Select"},{"$f":"Import!M15224","v":"Select"},{"$f":"Import!M15324","v":0},{"$f":"Import!M15424","v":0},{"$f":"Import!M15524","v":0},{"$f":"Import!M15624","v":0},{"$f":"Import!M15724","v":0}]
[13,{"$f":"Import!M14925","v":"Select"},{"$f":"Import!M15025","v":"Select"},{"$f":"Import!M15125","v":"Select"},{"$f":"Import!M15225","v":"Select"},{"$f":"Import!M15325","v":0},{"$f":"Import!M15425","v":0},{"$f":"Import!M15525","v":0},{"$f":"Import!M15625","v":0},{"$f":"Import!M15725","v":0}]
[14,{"$f":"Import!M14926","v":"Select"},{"$f":"Import!M15026","v":"Select"},{"$f":"Import!M15126","v":"Select"},{"$f":"Import!M15226","v":"Select"},{"$f":"Import!M15326","v":0},{"$f":"Import!M15426","v":0},{"$f":"Import!M15526","v":0},{"$f":"Import!M15626","v":0},{"$f":"Import!M15726","v":0}]
[15,{"$f":"Import!M14927","v":"Select"},{"$f":"Import!M15027","v":"Select"},{"$f":"Import!M15127","v":"Select"},{"$f":"Import!M15227","v":"Select"},{"$f":"Import!M15327","v":0},{"$f":"Import!M15427","v":0},{"$f":"Import!M15527","v":0},{"$f":"Import!M15627","v":0},{"$f":"Import!M15727","v":0}]
[16,{"$f":"Import!M14928","v":"Select"},{"$f":"Import!M15028","v":"Select"},{"$f":"Import!M15128","v":"Select"},{"$f":"Import!M15228","v":"Select"},{"$f":"Import!M15328","v":0},{"$f":"Import!M15428","v":0},{"$f":"Import!M15528","v":0},{"$f":"Import!M15628","v":0},{"$f":"Import!M15728","v":0}]
[17,{"$f":"Import!M14929","v":"Select"},{"$f":"Import!M15029","v":"Select"},{"$f":"Import!M15129","v":"Select"},{"$f":"Import!M15229","v":"Select"},{"$f":"Import!M15329","v":0},{"$f":"Import!M15429","v":0},{"$f":"Import!M15529","v":0},{"$f":"Import!M15629","v":0},{"$f":"Import!M15729","v":0}]
[18,{"$f":"Import!M14930","v":"Select"},{"$f":"Import!M15030","v":"Select"},{"$f":"Import!M15130","v":"Select"},{"$f":"Import!M15230","v":"Select"},{"$f":"Import!M15330","v":0},{"$f":"Import!M15430","v":0},{"$f":"Import!M15530","v":0},{"$f":"Import!M15630","v":0},{"$f":"Import!M15730","v":0}]
[19,{"$f":"Import!M14931","v":"Select"},{"$f":"Import!M15031","v":"Select"},{"$f":"Import!M15131","v":"Select"},{"$f":"Import!M15231","v":"Select"},{"$f":"Import!M15331","v":0},{"$f":"Import!M15431","v":0},{"$f":"Import!M15531","v":0},{"$f":"Import!M15631","v":0},{"$f":"Import!M15731","v":0}]
[20,{"$f":"Import!M14932","v":"Select"},{"$f":"Import!M15032","v":"Select"},{"$f":"Import!M15132","v":"Select"},{"$f":"Import!M15232","v":"Select"},{"$f":"Import!M15332","v":0},{"$f":"Import!M15432","v":0},{"$f":"Import!M15532","v":0},{"$f":"Import!M15632","v":0},{"$f":"Import!M15732","v":0}]
[21,{"$f":"Import!M14933","v":"Select"},{"$f":"Import!M15033","v":"Select"},{"$f":"Import!M15133","v":"Select"},{"$f":"Import!M15233","v":"Select"},{"$f":"Import!M15333","v":0},{"$f":"Import!M15433","v":0},{"$f":"Import!M15533","v":0},{"$f":"Import!M15633","v":0},{"$f":"Import!M15733","v":0}]
[22,{"$f":"Import!M14934","v":"Select"},{"$f":"Import!M15034","v":"Select"},{"$f":"Import!M15134","v":"Select"},{"$f":"Import!M15234","v":"Select"},{"$f":"Import!M15334","v":0},{"$f":"Import!M15434","v":0},{"$f":"Import!M15534","v":0},{"$f":"Import!M15634","v":0},{"$f":"Import!M15734","v":0}]
[23,{"$f":"Import!M14935","v":"Select"},{"$f":"Import!M15035","v":"Select"},{"$f":"Import!M15135","v":"Select"},{"$f":"Import!M15235","v":"Select"},{"$f":"Import!M15335","v":0},{"$f":"Import!M15435","v":0},{"$f":"Import!M15535","v":0},{"$f":"Import!M15635","v":0},{"$f":"Import!M15735","v":0}]
[24,{"$f":"Import!M14936","v":"Select"},{"$f":"Import!M15036","v":"Select"},{"$f":"Import!M15136","v":"Select"},{"$f":"Import!M15236","v":"Select"},{"$f":"Import!M15336","v":0},{"$f":"Import!M15436","v":0},{"$f":"Import!M15536","v":0},{"$f":"Import!M15636","v":0},{"$f":"Import!M15736","v":0}]
[25,{"$f":"Import!M14937","v":"Select"},{"$f":"Import!M15037","v":"Select"},{"$f":"Import!M15137","v":"Select"},{"$f":"Import!M15237","v":"Select"},{"$f":"Import!M15337","v":0},{"$f":"Import!M15437","v":0},{"$f":"Import!M15537","v":0},{"$f":"Import!M15637","v":0},{"$f":"Import!M15737","v":0}]
[26,{"$f":"Import!M14938","v":"Select"},{"$f":"Import!M15038","v":"Select"},{"$f":"Import!M15138","v":"Select"},{"$f":"Import!M15238","v":"Select"},{"$f":"Import!M15338","v":0},{"$f":"Import!M15438","v":0},{"$f":"Import!M15538","v":0},{"$f":"Import!M15638","v":0},{"$f":"Import!M15738","v":0}]
[27,{"$f":"Import!M14939","v":"Select"},{"$f":"Import!M15039","v":"Select"},{"$f":"Import!M15139","v":"Select"},{"$f":"Import!M15239","v":"Select"},{"$f":"Import!M15339","v":0},{"$f":"Import!M15439","v":0},{"$f":"Import!M15539","v":0},{"$f":"Import!M15639","v":0},{"$f":"Import!M15739","v":0}]
[28,{"$f":"Import!M14940","v":"Select"},{"$f":"Import!M15040","v":"Select"},{"$f":"Import!M15140","v":"Select"},{"$f":"Import!M15240","v":"Select"},{"$f":"Import!M15340","v":0},{"$f":"Import!M15440","v":0},{"$f":"Import!M15540","v":0},{"$f":"Import!M15640","v":0},{"$f":"Import!M15740","v":0}]
[29,{"$f":"Import!M14941","v":"Select"},{"$f":"Import!M15041","v":"Select"},{"$f":"Import!M15141","v":"Select"},{"$f":"Import!M15241","v":"Select"},{"$f":"Import!M15341","v":0},{"$f":"Import!M15441","v":0},{"$f":"Import!M15541","v":0},{"$f":"Import!M15641","v":0},{"$f":"Import!M15741","v":0}]
[30,{"$f":"Import!M14942","v":"Select"},{"$f":"Import!M15042","v":"Select"},{"$f":"Import!M15142","v":"Select"},{"$f":"Import!M15242","v":"Select"},{"$f":"Import!M15342","v":0},{"$f":"Import!M15442","v":0},{"$f":"Import!M15542","v":0},{"$f":"Import!M15642","v":0},{"$f":"Import!M15742","v":0}]
[31,{"$f":"Import!M14943","v":"Select"},{"$f":"Import!M15043","v":"Select"},{"$f":"Import!M15143","v":"Select"},{"$f":"Import!M15243","v":"Select"},{"$f":"Import!M15343","v":0},{"$f":"Import!M15443","v":0},{"$f":"Import!M15543","v":0},{"$f":"Import!M15643","v":0},{"$f":"Import!M15743","v":0}]
[32,{"$f":"Import!M14944","v":"Select"},{"$f":"Import!M15044","v":"Select"},{"$f":"Import!M15144","v":"Select"},{"$f":"Import!M15244","v":"Select"},{"$f":"Import!M15344","v":0},{"$f":"Import!M15444","v":0},{"$f":"Import!M15544","v":0},{"$f":"Import!M15644","v":0},{"$f":"Import!M15744","v":0}]
[33,{"$f":"Import!M14945","v":"Select"},{"$f":"Import!M15045","v":"Select"},{"$f":"Import!M15145","v":"Select"},{"$f":"Import!M15245","v":"Select"},{"$f":"Import!M15345","v":0},{"$f":"Import!M15445","v":0},{"$f":"Import!M15545","v":0},{"$f":"Import!M15645","v":0},{"$f":"Import!M15745","v":0}]
[34,{"$f":"Import!M14946","v":"Select"},{"$f":"Import!M15046","v":"Select"},{"$f":"Import!M15146","v":"Select"},{"$f":"Import!M15246","v":"Select"},{"$f":"Import!M15346","v":0},{"$f":"Import!M15446","v":0},{"$f":"Import!M15546","v":0},{"$f":"Import!M15646","v":0},{"$f":"Import!M15746","v":0}]
[35,{"$f":"Import!M14947","v":"Select"},{"$f":"Import!M15047","v":"Select"},{"$f":"Import!M15147","v":"Select"},{"$f":"Import!M15247","v":"Select"},{"$f":"Import!M15347","v":0},{"$f":"Import!M15447","v":0},{"$f":"Import!M15547","v":0},{"$f":"Import!M15647","v":0},{"$f":"Import!M15747","v":0}]
[36,{"$f":"Import!M14948","v":"Select"},{"$f":"Import!M15048","v":"Select"},{"$f":"Import!M15148","v":"Select"},{"$f":"Import!M15248","v":"Select"},{"$f":"Import!M15348","v":0},{"$f":"Import!M15448","v":0},{"$f":"Import!M15548","v":0},{"$f":"Import!M15648","v":0},{"$f":"Import!M15748","v":0}]
[37,{"$f":"Import!M14949","v":"Select"},{"$f":"Import!M15049","v":"Select"},{"$f":"Import!M15149","v":"Select"},{"$f":"Import!M15249","v":"Select"},{"$f":"Import!M15349","v":0},{"$f":"Import!M15449","v":0},{"$f":"Import!M15549","v":0},{"$f":"Import!M15649","v":0},{"$f":"Import!M15749","v":0}]
[38,{"$f":"Import!M14950","v":"Select"},{"$f":"Import!M15050","v":"Select"},{"$f":"Import!M15150","v":"Select"},{"$f":"Import!M15250","v":"Select"},{"$f":"Import!M15350","v":0},{"$f":"Import!M15450","v":0},{"$f":"Import!M15550","v":0},{"$f":"Import!M15650","v":0},{"$f":"Import!M15750","v":0}]
[39,{"$f":"Import!M14951","v":"Select"},{"$f":"Import!M15051","v":"Select"},{"$f":"Import!M15151","v":"Select"},{"$f":"Import!M15251","v":"Select"},{"$f":"Import!M15351","v":0},{"$f":"Import!M15451","v":0},{"$f":"Import!M15551","v":0},{"$f":"Import!M15651","v":0},{"$f":"Import!M15751","v":0}]
[40,{"$f":"Import!M14952","v":"Select"},{"$f":"Import!M15052","v":"Select"},{"$f":"Import!M15152","v":"Select"},{"$f":"Import!M15252","v":"Select"},{"$f":"Import!M15352","v":0},{"$f":"Import!M15452","v":0},{"$f":"Import!M15552","v":0},{"$f":"Import!M15652","v":0},{"$f":"Import!M15752","v":0}]
[41,{"$f":"Import!M14953","v":"Select"},{"$f":"Import!M15053","v":"Select"},{"$f":"Import!M15153","v":"Select"},{"$f":"Import!M15253","v":"Select"},{"$f":"Import!M15353","v":0},{"$f":"Import!M15453","v":0},{"$f":"Import!M15553","v":0},{"$f":"Import!M15653","v":0},{"$f":"Import!M15753","v":0}]
[42,{"$f":"Import!M14954","v":"Select"},{"$f":"Import!M15054","v":"Select"},{"$f":"Import!M15154","v":"Select"},{"$f":"Import!M15254","v":"Select"},{"$f":"Import!M15354","v":0},{"$f":"Import!M15454","v":0},{"$f":"Import!M15554","v":0},{"$f":"Import!M15654","v":0},{"$f":"Import!M15754","v":0}]
[43,{"$f":"Import!M14955","v":"Select"},{"$f":"Import!M15055","v":"Select"},{"$f":"Import!M15155","v":"Select"},{"$f":"Import!M15255","v":"Select"},{"$f":"Import!M15355","v":0},{"$f":"Import!M15455","v":0},{"$f":"Import!M15555","v":0},{"$f":"Import!M15655","v":0},{"$f":"Import!M15755","v":0}]
[44,{"$f":"Import!M14956","v":"Select"},{"$f":"Import!M15056","v":"Select"},{"$f":"Import!M15156","v":"Select"},{"$f":"Import!M15256","v":"Select"},{"$f":"Import!M15356","v":0},{"$f":"Import!M15456","v":0},{"$f":"Import!M15556","v":0},{"$f":"Import!M15656","v":0},{"$f":"Import!M15756","v":0}]
[45,{"$f":"Import!M14957","v":"Select"},{"$f":"Import!M15057","v":"Select"},{"$f":"Import!M15157","v":"Select"},{"$f":"Import!M15257","v":"Select"},{"$f":"Import!M15357","v":0},{"$f":"Import!M15457","v":0},{"$f":"Import!M15557","v":0},{"$f":"Import!M15657","v":0},{"$f":"Import!M15757","v":0}]
[46,{"$f":"Import!M14958","v":"Select"},{"$f":"Import!M15058","v":"Select"},{"$f":"Import!M15158","v":"Select"},{"$f":"Import!M15258","v":"Select"},{"$f":"Import!M15358","v":0},{"$f":"Import!M15458","v":0},{"$f":"Import!M15558","v":0},{"$f":"Import!M15658","v":0},{"$f":"Import!M15758","v":0}]
[47,{"$f":"Import!M14959","v":"Select"},{"$f":"Import!M15059","v":"Select"},{"$f":"Import!M15159","v":"Select"},{"$f":"Import!M15259","v":"Select"},{"$f":"Import!M15359","v":0},{"$f":"Import!M15459","v":0},{"$f":"Import!M15559","v":0},{"$f":"Import!M15659","v":0},{"$f":"Import!M15759","v":0}]
[48,{"$f":"Import!M14960","v":"Select"},{"$f":"Import!M15060","v":"Select"},{"$f":"Import!M15160","v":"Select"},{"$f":"Import!M15260","v":"Select"},{"$f":"Import!M15360","v":0},{"$f":"Import!M15460","v":0},{"$f":"Import!M15560","v":0},{"$f":"Import!M15660","v":0},{"$f":"Import!M15760","v":0}]
[49,{"$f":"Import!M14961","v":"Select"},{"$f":"Import!M15061","v":"Select"},{"$f":"Import!M15161","v":"Select"},{"$f":"Import!M15261","v":"Select"},{"$f":"Import!M15361","v":0},{"$f":"Import!M15461","v":0},{"$f":"Import!M15561","v":0},{"$f":"Import!M15661","v":0},{"$f":"Import!M15761","v":0}]
[50,{"$f":"Import!M14962","v":"Select"},{"$f":"Import!M15062","v":"Select"},{"$f":"Import!M15162","v":"Select"},{"$f":"Import!M15262","v":"Select"},{"$f":"Import!M15362","v":0},{"$f":"Import!M15462","v":0},{"$f":"Import!M15562","v":0},{"$f":"Import!M15662","v":0},{"$f":"Import!M15762","v":0}]
[51,{"$f":"Import!M14963","v":"Select"},{"$f":"Import!M15063","v":"Select"},{"$f":"Import!M15163","v":"Select"},{"$f":"Import!M15263","v":"Select"},{"$f":"Import!M15363","v":0},{"$f":"Import!M15463","v":0},{"$f":"Import!M15563","v":0},{"$f":"Import!M15663","v":0},{"$f":"Import!M15763","v":0}]
[52,{"$f":"Import!M14964","v":"Select"},{"$f":"Import!M15064","v":"Select"},{"$f":"Import!M15164","v":"Select"},{"$f":"Import!M15264","v":"Select"},{"$f":"Import!M15364","v":0},{"$f":"Import!M15464","v":0},{"$f":"Import!M15564","v":0},{"$f":"Import!M15664","v":0},{"$f":"Import!M15764","v":0}]
[53,{"$f":"Import!M14965","v":"Select"},{"$f":"Import!M15065","v":"Select"},{"$f":"Import!M15165","v":"Select"},{"$f":"Import!M15265","v":"Select"},{"$f":"Import!M15365","v":0},{"$f":"Import!M15465","v":0},{"$f":"Import!M15565","v":0},{"$f":"Import!M15665","v":0},{"$f":"Import!M15765","v":0}]
[54,{"$f":"Import!M14966","v":"Select"},{"$f":"Import!M15066","v":"Select"},{"$f":"Import!M15166","v":"Select"},{"$f":"Import!M15266","v":"Select"},{"$f":"Import!M15366","v":0},{"$f":"Import!M15466","v":0},{"$f":"Import!M15566","v":0},{"$f":"Import!M15666","v":0},{"$f":"Import!M15766","v":0}]
[55,{"$f":"Import!M14967","v":"Select"},{"$f":"Import!M15067","v":"Select"},{"$f":"Import!M15167","v":"Select"},{"$f":"Import!M15267","v":"Select"},{"$f":"Import!M15367","v":0},{"$f":"Import!M15467","v":0},{"$f":"Import!M15567","v":0},{"$f":"Import!M15667","v":0},{"$f":"Import!M15767","v":0}]
[56,{"$f":"Import!M14968","v":"Select"},{"$f":"Import!M15068","v":"Select"},{"$f":"Import!M15168","v":"Select"},{"$f":"Import!M15268","v":"Select"},{"$f":"Import!M15368","v":0},{"$f":"Import!M15468","v":0},{"$f":"Import!M15568","v":0},{"$f":"Import!M15668","v":0},{"$f":"Import!M15768","v":0}]
[57,{"$f":"Import!M14969","v":"Select"},{"$f":"Import!M15069","v":"Select"},{"$f":"Import!M15169","v":"Select"},{"$f":"Import!M15269","v":"Select"},{"$f":"Import!M15369","v":0},{"$f":"Import!M15469","v":0},{"$f":"Import!M15569","v":0},{"$f":"Import!M15669","v":0},{"$f":"Import!M15769","v":0}]
[58,{"$f":"Import!M14970","v":"Select"},{"$f":"Import!M15070","v":"Select"},{"$f":"Import!M15170","v":"Select"},{"$f":"Import!M15270","v":"Select"},{"$f":"Import!M15370","v":0},{"$f":"Import!M15470","v":0},{"$f":"Import!M15570","v":0},{"$f":"Import!M15670","v":0},{"$f":"Import!M15770","v":0}]
[59,{"$f":"Import!M14971","v":"Select"},{"$f":"Import!M15071","v":"Select"},{"$f":"Import!M15171","v":"Select"},{"$f":"Import!M15271","v":"Select"},{"$f":"Import!M15371","v":0},{"$f":"Import!M15471","v":0},{"$f":"Import!M15571","v":0},{"$f":"Import!M15671","v":0},{"$f":"Import!M15771","v":0}]
[60,{"$f":"Import!M14972","v":"Select"},{"$f":"Import!M15072","v":"Select"},{"$f":"Import!M15172","v":"Select"},{"$f":"Import!M15272","v":"Select"},{"$f":"Import!M15372","v":0},{"$f":"Import!M15472","v":0},{"$f":"Import!M15572","v":0},{"$f":"Import!M15672","v":0},{"$f":"Import!M15772","v":0}]
[61,{"$f":"Import!M14973","v":"Select"},{"$f":"Import!M15073","v":"Select"},{"$f":"Import!M15173","v":"Select"},{"$f":"Import!M15273","v":"Select"},{"$f":"Import!M15373","v":0},{"$f":"Import!M15473","v":0},{"$f":"Import!M15573","v":0},{"$f":"Import!M15673","v":0},{"$f":"Import!M15773","v":0}]
[62,{"$f":"Import!M14974","v":"Select"},{"$f":"Import!M15074","v":"Select"},{"$f":"Import!M15174","v":"Select"},{"$f":"Import!M15274","v":"Select"},{"$f":"Import!M15374","v":0},{"$f":"Import!M15474","v":0},{"$f":"Import!M15574","v":0},{"$f":"Import!M15674","v":0},{"$f":"Import!M15774","v":0}]
[63,{"$f":"Import!M14975","v":"Select"},{"$f":"Import!M15075","v":"Select"},{"$f":"Import!M15175","v":"Select"},{"$f":"Import!M15275","v":"Select"},{"$f":"Import!M15375","v":0},{"$f":"Import!M15475","v":0},{"$f":"Import!M15575","v":0},{"$f":"Import!M15675","v":0},{"$f":"Import!M15775","v":0}]
[64,{"$f":"Import!M14976","v":"Select"},{"$f":"Import!M15076","v":"Select"},{"$f":"Import!M15176","v":"Select"},{"$f":"Import!M15276","v":"Select"},{"$f":"Import!M15376","v":0},{"$f":"Import!M15476","v":0},{"$f":"Import!M15576","v":0},{"$f":"Import!M15676","v":0},{"$f":"Import!M15776","v":0}]
[65,{"$f":"Import!M14977","v":"Select"},{"$f":"Import!M15077","v":"Select"},{"$f":"Import!M15177","v":"Select"},{"$f":"Import!M15277","v":"Select"},{"$f":"Import!M15377","v":0},{"$f":"Import!M15477","v":0},{"$f":"Import!M15577","v":0},{"$f":"Import!M15677","v":0},{"$f":"Import!M15777","v":0}]
[66,{"$f":"Import!M14978","v":"Select"},{"$f":"Import!M15078","v":"Select"},{"$f":"Import!M15178","v":"Select"},{"$f":"Import!M15278","v":"Select"},{"$f":"Import!M15378","v":0},{"$f":"Import!M15478","v":0},{"$f":"Import!M15578","v":0},{"$f":"Import!M15678","v":0},{"$f":"Import!M15778","v":0}]
[{"$f":"A1518+1","v":67},{"$f":"Import!M14979","v":"Select"},{"$f":"Import!M15079","v":"Select"},{"$f":"Import!M15179","v":"Select"},{"$f":"Import!M15279","v":"Select"},{"$f":"Import!M15379","v":0},{"$f":"Import!M15479","v":0},{"$f":"Import!M15579","v":0},{"$f":"Import!M15679","v":0},{"$f":"Import!M15779","v":0}]
[68,{"$f":"Import!M14980","v":"Select"},{"$f":"Import!M15080","v":"Select"},{"$f":"Import!M15180","v":"Select"},{"$f":"Import!M15280","v":"Select"},{"$f":"Import!M15380","v":0},{"$f":"Import!M15480","v":0},{"$f":"Import!M15580","v":0},{"$f":"Import!M15680","v":0},{"$f":"Import!M15780","v":0}]
[69,{"$f":"Import!M14981","v":"Select"},{"$f":"Import!M15081","v":"Select"},{"$f":"Import!M15181","v":"Select"},{"$f":"Import!M15281","v":"Select"},{"$f":"Import!M15381","v":0},{"$f":"Import!M15481","v":0},{"$f":"Import!M15581","v":0},{"$f":"Import!M15681","v":0},{"$f":"Import!M15781","v":0}]
[70,{"$f":"Import!M14982","v":"Select"},{"$f":"Import!M15082","v":"Select"},{"$f":"Import!M15182","v":"Select"},{"$f":"Import!M15282","v":"Select"},{"$f":"Import!M15382","v":0},{"$f":"Import!M15482","v":0},{"$f":"Import!M15582","v":0},{"$f":"Import!M15682","v":0},{"$f":"Import!M15782","v":0}]
[71,{"$f":"Import!M14983","v":"Select"},{"$f":"Import!M15083","v":"Select"},{"$f":"Import!M15183","v":"Select"},{"$f":"Import!M15283","v":"Select"},{"$f":"Import!M15383","v":0},{"$f":"Import!M15483","v":0},{"$f":"Import!M15583","v":0},{"$f":"Import!M15683","v":0},{"$f":"Import!M15783","v":0}]
[72,{"$f":"Import!M14984","v":"Select"},{"$f":"Import!M15084","v":"Select"},{"$f":"Import!M15184","v":"Select"},{"$f":"Import!M15284","v":"Select"},{"$f":"Import!M15384","v":0},{"$f":"Import!M15484","v":0},{"$f":"Import!M15584","v":0},{"$f":"Import!M15684","v":0},{"$f":"Import!M15784","v":0}]
[73,{"$f":"Import!M14985","v":"Select"},{"$f":"Import!M15085","v":"Select"},{"$f":"Import!M15185","v":"Select"},{"$f":"Import!M15285","v":"Select"},{"$f":"Import!M15385","v":0},{"$f":"Import!M15485","v":0},{"$f":"Import!M15585","v":0},{"$f":"Import!M15685","v":0},{"$f":"Import!M15785","v":0}]
[74,{"$f":"Import!M14986","v":"Select"},{"$f":"Import!M15086","v":"Select"},{"$f":"Import!M15186","v":"Select"},{"$f":"Import!M15286","v":"Select"},{"$f":"Import!M15386","v":0},{"$f":"Import!M15486","v":0},{"$f":"Import!M15586","v":0},{"$f":"Import!M15686","v":0},{"$f":"Import!M15786","v":0}]
[75,{"$f":"Import!M14987","v":"Select"},{"$f":"Import!M15087","v":"Select"},{"$f":"Import!M15187","v":"Select"},{"$f":"Import!M15287","v":"Select"},{"$f":"Import!M15387","v":0},{"$f":"Import!M15487","v":0},{"$f":"Import!M15587","v":0},{"$f":"Import!M15687","v":0},{"$f":"Import!M15787","v":0}]
[76,{"$f":"Import!M14988","v":"Select"},{"$f":"Import!M15088","v":"Select"},{"$f":"Import!M15188","v":"Select"},{"$f":"Import!M15288","v":"Select"},{"$f":"Import!M15388","v":0},{"$f":"Import!M15488","v":0},{"$f":"Import!M15588","v":0},{"$f":"Import!M15688","v":0},{"$f":"Import!M15788","v":0}]
[77,{"$f":"Import!M14989","v":"Select"},{"$f":"Import!M15089","v":"Select"},{"$f":"Import!M15189","v":"Select"},{"$f":"Import!M15289","v":"Select"},{"$f":"Import!M15389","v":0},{"$f":"Import!M15489","v":0},{"$f":"Import!M15589","v":0},{"$f":"Import!M15689","v":0},{"$f":"Import!M15789","v":0}]
[78,{"$f":"Import!M14990","v":"Select"},{"$f":"Import!M15090","v":"Select"},{"$f":"Import!M15190","v":"Select"},{"$f":"Import!M15290","v":"Select"},{"$f":"Import!M15390","v":0},{"$f":"Import!M15490","v":0},{"$f":"Import!M15590","v":0},{"$f":"Import!M15690","v":0},{"$f":"Import!M15790","v":0}]
[79,{"$f":"Import!M14991","v":"Select"},{"$f":"Import!M15091","v":"Select"},{"$f":"Import!M15191","v":"Select"},{"$f":"Import!M15291","v":"Select"},{"$f":"Import!M15391","v":0},{"$f":"Import!M15491","v":0},{"$f":"Import!M15591","v":0},{"$f":"Import!M15691","v":0},{"$f":"Import!M15791","v":0}]
[80,{"$f":"Import!M14992","v":"Select"},{"$f":"Import!M15092","v":"Select"},{"$f":"Import!M15192","v":"Select"},{"$f":"Import!M15292","v":"Select"},{"$f":"Import!M15392","v":0},{"$f":"Import!M15492","v":0},{"$f":"Import!M15592","v":0},{"$f":"Import!M15692","v":0},{"$f":"Import!M15792","v":0}]
[81,{"$f":"Import!M14993","v":"Select"},{"$f":"Import!M15093","v":"Select"},{"$f":"Import!M15193","v":"Select"},{"$f":"Import!M15293","v":"Select"},{"$f":"Import!M15393","v":0},{"$f":"Import!M15493","v":0},{"$f":"Import!M15593","v":0},{"$f":"Import!M15693","v":0},{"$f":"Import!M15793","v":0}]
[82,{"$f":"Import!M14994","v":"Select"},{"$f":"Import!M15094","v":"Select"},{"$f":"Import!M15194","v":"Select"},{"$f":"Import!M15294","v":"Select"},{"$f":"Import!M15394","v":0},{"$f":"Import!M15494","v":0},{"$f":"Import!M15594","v":0},{"$f":"Import!M15694","v":0},{"$f":"Import!M15794","v":0}]
[83,{"$f":"Import!M14995","v":"Select"},{"$f":"Import!M15095","v":"Select"},{"$f":"Import!M15195","v":"Select"},{"$f":"Import!M15295","v":"Select"},{"$f":"Import!M15395","v":0},{"$f":"Import!M15495","v":0},{"$f":"Import!M15595","v":0},{"$f":"Import!M15695","v":0},{"$f":"Import!M15795","v":0}]
[84,{"$f":"Import!M14996","v":"Select"},{"$f":"Import!M15096","v":"Select"},{"$f":"Import!M15196","v":"Select"},{"$f":"Import!M15296","v":"Select"},{"$f":"Import!M15396","v":0},{"$f":"Import!M15496","v":0},{"$f":"Import!M15596","v":0},{"$f":"Import!M15696","v":0},{"$f":"Import!M15796","v":0}]
[85,{"$f":"Import!M14997","v":"Select"},{"$f":"Import!M15097","v":"Select"},{"$f":"Import!M15197","v":"Select"},{"$f":"Import!M15297","v":"Select"},{"$f":"Import!M15397","v":0},{"$f":"Import!M15497","v":0},{"$f":"Import!M15597","v":0},{"$f":"Import!M15697","v":0},{"$f":"Import!M15797","v":0}]
[86,{"$f":"Import!M14998","v":"Select"},{"$f":"Import!M15098","v":"Select"},{"$f":"Import!M15198","v":"Select"},{"$f":"Import!M15298","v":"Select"},{"$f":"Import!M15398","v":0},{"$f":"Import!M15498","v":0},{"$f":"Import!M15598","v":0},{"$f":"Import!M15698","v":0},{"$f":"Import!M15798","v":0}]
[87,{"$f":"Import!M14999","v":"Select"},{"$f":"Import!M15099","v":"Select"},{"$f":"Import!M15199","v":"Select"},{"$f":"Import!M15299","v":"Select"},{"$f":"Import!M15399","v":0},{"$f":"Import!M15499","v":0},{"$f":"Import!M15599","v":0},{"$f":"Import!M15699","v":0},{"$f":"Import!M15799","v":0}]
[88,{"$f":"Import!M15000","v":"Select"},{"$f":"Import!M15100","v":"Select"},{"$f":"Import!M15200","v":"Select"},{"$f":"Import!M15300","v":"Select"},{"$f":"Import!M15400","v":0},{"$f":"Import!M15500","v":0},{"$f":"Import!M15600","v":0},{"$f":"Import!M15700","v":0},{"$f":"Import!M15800","v":0}]
[89,{"$f":"Import!M15001","v":"Select"},{"$f":"Import!M15101","v":"Select"},{"$f":"Import!M15201","v":"Select"},{"$f":"Import!M15301","v":"Select"},{"$f":"Import!M15401","v":0},{"$f":"Import!M15501","v":0},{"$f":"Import!M15601","v":0},{"$f":"Import!M15701","v":0},{"$f":"Import!M15801","v":0}]
[90,{"$f":"Import!M15002","v":"Select"},{"$f":"Import!M15102","v":"Select"},{"$f":"Import!M15202","v":"Select"},{"$f":"Import!M15302","v":"Select"},{"$f":"Import!M15402","v":0},{"$f":"Import!M15502","v":0},{"$f":"Import!M15602","v":0},{"$f":"Import!M15702","v":0},{"$f":"Import!M15802","v":0}]
[91,{"$f":"Import!M15003","v":"Select"},{"$f":"Import!M15103","v":"Select"},{"$f":"Import!M15203","v":"Select"},{"$f":"Import!M15303","v":"Select"},{"$f":"Import!M15403","v":0},{"$f":"Import!M15503","v":0},{"$f":"Import!M15603","v":0},{"$f":"Import!M15703","v":0},{"$f":"Import!M15803","v":0}]
[92,{"$f":"Import!M15004","v":"Select"},{"$f":"Import!M15104","v":"Select"},{"$f":"Import!M15204","v":"Select"},{"$f":"Import!M15304","v":"Select"},{"$f":"Import!M15404","v":0},{"$f":"Import!M15504","v":0},{"$f":"Import!M15604","v":0},{"$f":"Import!M15704","v":0},{"$f":"Import!M15804","v":0}]
[93,{"$f":"Import!M15005","v":"Select"},{"$f":"Import!M15105","v":"Select"},{"$f":"Import!M15205","v":"Select"},{"$f":"Import!M15305","v":"Select"},{"$f":"Import!M15405","v":0},{"$f":"Import!M15505","v":0},{"$f":"Import!M15605","v":0},{"$f":"Import!M15705","v":0},{"$f":"Import!M15805","v":0}]
[94,{"$f":"Import!M15006","v":"Select"},{"$f":"Import!M15106","v":"Select"},{"$f":"Import!M15206","v":"Select"},{"$f":"Import!M15306","v":"Select"},{"$f":"Import!M15406","v":0},{"$f":"Import!M15506","v":0},{"$f":"Import!M15606","v":0},{"$f":"Import!M15706","v":0},{"$f":"Import!M15806","v":0}]
[95,{"$f":"Import!M15007","v":"Select"},{"$f":"Import!M15107","v":"Select"},{"$f":"Import!M15207","v":"Select"},{"$f":"Import!M15307","v":"Select"},{"$f":"Import!M15407","v":0},{"$f":"Import!M15507","v":0},{"$f":"Import!M15607","v":0},{"$f":"Import!M15707","v":0},{"$f":"Import!M15807","v":0}]
[96,{"$f":"Import!M15008","v":"Select"},{"$f":"Import!M15108","v":"Select"},{"$f":"Import!M15208","v":"Select"},{"$f":"Import!M15308","v":"Select"},{"$f":"Import!M15408","v":0},{"$f":"Import!M15508","v":0},{"$f":"Import!M15608","v":0},{"$f":"Import!M15708","v":0},{"$f":"Import!M15808","v":0}]
[97,{"$f":"Import!M15009","v":"Select"},{"$f":"Import!M15109","v":"Select"},{"$f":"Import!M15209","v":"Select"},{"$f":"Import!M15309","v":"Select"},{"$f":"Import!M15409","v":0},{"$f":"Import!M15509","v":0},{"$f":"Import!M15609","v":0},{"$f":"Import!M15709","v":0},{"$f":"Import!M15809","v":0}]
[98,{"$f":"Import!M15010","v":"Select"},{"$f":"Import!M15110","v":"Select"},{"$f":"Import!M15210","v":"Select"},{"$f":"Import!M15310","v":"Select"},{"$f":"Import!M15410","v":0},{"$f":"Import!M15510","v":0},{"$f":"Import!M15610","v":0},{"$f":"Import!M15710","v":0},{"$f":"Import!M15810","v":0}]
[99,{"$f":"Import!M15011","v":"Select"},{"$f":"Import!M15111","v":"Select"},{"$f":"Import!M15211","v":"Select"},{"$f":"Import!M15311","v":"Select"},{"$f":"Import!M15411","v":0},{"$f":"Import!M15511","v":0},{"$f":"Import!M15611","v":0},{"$f":"Import!M15711","v":0},{"$f":"Import!M15811","v":0}]
[100,{"$f":"Import!M15012","v":"Select"},{"$f":"Import!M15112","v":"Select"},{"$f":"Import!M15212","v":"Select"},{"$f":"Import!M15312","v":"Select"},{"$f":"Import!M15412","v":0},{"$f":"Import!M15512","v":0},{"$f":"Import!M15612","v":0},{"$f":"Import!M15712","v":0},{"$f":"Import!M15812","v":0}]
[]
[null,"Total Other Alternative Investments",null,null,null,{"$f":"SUM(F1453:F1552)","v":0},{"$f":"SUM(G1453:G1552)","v":0},{"$f":"IFERROR(SUMPRODUCT(H1453:H1552,$G1453:$G1552)/SUM($G1453:$G1552),0)","v":0},{"$f":"IFERROR(SUMPRODUCT(I1453:I1552,$G1453:$G1552)/SUM($G1453:$G1552),0)","v":0}]
[]
[null,"(I) DERIVATIVES"]
[]
[null,null,"Enter # of Derivative Types",{"$f":"Import!M15813","v":0}]
[null,"Derivative Type","Underlying","Currency","Trading Category","Purpose","Position","Confirm line contains only derivatives with:",{"$f":"YEAR($C$3)&\" \nMarket Value\"","v":"2023 \nMarket Value"},"Gross Notional Value","Net Notional Value","Exposure (Dollar Delta, DV01, CS01","Comments"]
[1,{"$f":"Import!M15814","v":"Select"},{"$f":"Import!M16014","v":"Select"},{"$f":"Import!M16214","v":"Select"},{"$f":"Import!M16414","v":"Select"},{"$f":"Import!M16614","v":"Select"},{"$f":"Import!M16814","v":"Select"},{"$f":"Import!M17014","v":"Select"},{"$f":"Import!M17214","v":0},{"$f":"Import!M17414","v":0},{"$f":"Import!M17614","v":0},{"$f":"Import!M17814","v":0},{"$f":"Import!M18014","v":0}]
[{"$f":"A1560+1","v":2},{"$f":"Import!M15815","v":"Select"},{"$f":"Import!M16015","v":"Select"},{"$f":"Import!M16215","v":"Select"},{"$f":"Import!M16415","v":"Select"},{"$f":"Import!M16615","v":"Select"},{"$f":"Import!M16815","v":"Select"},{"$f":"Import!M17015","v":"Select"},{"$f":"Import!M17215","v":0},{"$f":"Import!M17415","v":0},{"$f":"Import!M17615","v":0},{"$f":"Import!M17815","v":0},{"$f":"Import!M18015","v":0}]
[{"$f":"A1561+1","v":3},{"$f":"Import!M15816","v":"Select"},{"$f":"Import!M16016","v":"Select"},{"$f":"Import!M16216","v":"Select"},{"$f":"Import!M16416","v":"Select"},{"$f":"Import!M16616","v":"Select"},{"$f":"Import!M16816","v":"Select"},{"$f":"Import!M17016","v":"Select"},{"$f":"Import!M17216","v":0},{"$f":"Import!M17416","v":0},{"$f":"Import!M17616","v":0},{"$f":"Import!M17816","v":0},{"$f":"Import!M18016","v":0}]
[4,{"$f":"Import!M15817","v":"Select"},{"$f":"Import!M16017","v":"Select"},{"$f":"Import!M16217","v":"Select"},{"$f":"Import!M16417","v":"Select"},{"$f":"Import!M16617","v":"Select"},{"$f":"Import!M16817","v":"Select"},{"$f":"Import!M17017","v":"Select"},{"$f":"Import!M17217","v":0},{"$f":"Import!M17417","v":0},{"$f":"Import!M17617","v":0},{"$f":"Import!M17817","v":0},{"$f":"Import!M18017","v":0}]
[5,{"$f":"Import!M15818","v":"Select"},{"$f":"Import!M16018","v":"Select"},{"$f":"Import!M16218","v":"Select"},{"$f":"Import!M16418","v":"Select"},{"$f":"Import!M16618","v":"Select"},{"$f":"Import!M16818","v":"Select"},{"$f":"Import!M17018","v":"Select"},{"$f":"Import!M17218","v":0},{"$f":"Import!M17418","v":0},{"$f":"Import!M17618","v":0},{"$f":"Import!M17818","v":0},{"$f":"Import!M18018","v":0}]
[6,{"$f":"Import!M15819","v":"Select"},{"$f":"Import!M16019","v":"Select"},{"$f":"Import!M16219","v":"Select"},{"$f":"Import!M16419","v":"Select"},{"$f":"Import!M16619","v":"Select"},{"$f":"Import!M16819","v":"Select"},{"$f":"Import!M17019","v":"Select"},{"$f":"Import!M17219","v":0},{"$f":"Import!M17419","v":0},{"$f":"Import!M17619","v":0},{"$f":"Import!M17819","v":0},{"$f":"Import!M18019","v":0}]
[7,{"$f":"Import!M15820","v":"Select"},{"$f":"Import!M16020","v":"Select"},{"$f":"Import!M16220","v":"Select"},{"$f":"Import!M16420","v":"Select"},{"$f":"Import!M16620","v":"Select"},{"$f":"Import!M16820","v":"Select"},{"$f":"Import!M17020","v":"Select"},{"$f":"Import!M17220","v":0},{"$f":"Import!M17420","v":0},{"$f":"Import!M17620","v":0},{"$f":"Import!M17820","v":0},{"$f":"Import!M18020","v":0}]
[8,{"$f":"Import!M15821","v":"Select"},{"$f":"Import!M16021","v":"Select"},{"$f":"Import!M16221","v":"Select"},{"$f":"Import!M16421","v":"Select"},{"$f":"Import!M16621","v":"Select"},{"$f":"Import!M16821","v":"Select"},{"$f":"Import!M17021","v":"Select"},{"$f":"Import!M17221","v":0},{"$f":"Import!M17421","v":0},{"$f":"Import!M17621","v":0},{"$f":"Import!M17821","v":0},{"$f":"Import!M18021","v":0}]
[9,{"$f":"Import!M15822","v":"Select"},{"$f":"Import!M16022","v":"Select"},{"$f":"Import!M16222","v":"Select"},{"$f":"Import!M16422","v":"Select"},{"$f":"Import!M16622","v":"Select"},{"$f":"Import!M16822","v":"Select"},{"$f":"Import!M17022","v":"Select"},{"$f":"Import!M17222","v":0},{"$f":"Import!M17422","v":0},{"$f":"Import!M17622","v":0},{"$f":"Import!M17822","v":0},{"$f":"Import!M18022","v":0}]
[10,{"$f":"Import!M15823","v":"Select"},{"$f":"Import!M16023","v":"Select"},{"$f":"Import!M16223","v":"Select"},{"$f":"Import!M16423","v":"Select"},{"$f":"Import!M16623","v":"Select"},{"$f":"Import!M16823","v":"Select"},{"$f":"Import!M17023","v":"Select"},{"$f":"Import!M17223","v":0},{"$f":"Import!M17423","v":0},{"$f":"Import!M17623","v":0},{"$f":"Import!M17823","v":0},{"$f":"Import!M18023","v":0}]
[11,{"$f":"Import!M15824","v":"Select"},{"$f":"Import!M16024","v":"Select"},{"$f":"Import!M16224","v":"Select"},{"$f":"Import!M16424","v":"Select"},{"$f":"Import!M16624","v":"Select"},{"$f":"Import!M16824","v":"Select"},{"$f":"Import!M17024","v":"Select"},{"$f":"Import!M17224","v":0},{"$f":"Import!M17424","v":0},{"$f":"Import!M17624","v":0},{"$f":"Import!M17824","v":0},{"$f":"Import!M18024","v":0}]
[12,{"$f":"Import!M15825","v":"Select"},{"$f":"Import!M16025","v":"Select"},{"$f":"Import!M16225","v":"Select"},{"$f":"Import!M16425","v":"Select"},{"$f":"Import!M16625","v":"Select"},{"$f":"Import!M16825","v":"Select"},{"$f":"Import!M17025","v":"Select"},{"$f":"Import!M17225","v":0},{"$f":"Import!M17425","v":0},{"$f":"Import!M17625","v":0},{"$f":"Import!M17825","v":0},{"$f":"Import!M18025","v":0}]
[13,{"$f":"Import!M15826","v":"Select"},{"$f":"Import!M16026","v":"Select"},{"$f":"Import!M16226","v":"Select"},{"$f":"Import!M16426","v":"Select"},{"$f":"Import!M16626","v":"Select"},{"$f":"Import!M16826","v":"Select"},{"$f":"Import!M17026","v":"Select"},{"$f":"Import!M17226","v":0},{"$f":"Import!M17426","v":0},{"$f":"Import!M17626","v":0},{"$f":"Import!M17826","v":0},{"$f":"Import!M18026","v":0}]
[14,{"$f":"Import!M15827","v":"Select"},{"$f":"Import!M16027","v":"Select"},{"$f":"Import!M16227","v":"Select"},{"$f":"Import!M16427","v":"Select"},{"$f":"Import!M16627","v":"Select"},{"$f":"Import!M16827","v":"Select"},{"$f":"Import!M17027","v":"Select"},{"$f":"Import!M17227","v":0},{"$f":"Import!M17427","v":0},{"$f":"Import!M17627","v":0},{"$f":"Import!M17827","v":0},{"$f":"Import!M18027","v":0}]
[15,{"$f":"Import!M15828","v":"Select"},{"$f":"Import!M16028","v":"Select"},{"$f":"Import!M16228","v":"Select"},{"$f":"Import!M16428","v":"Select"},{"$f":"Import!M16628","v":"Select"},{"$f":"Import!M16828","v":"Select"},{"$f":"Import!M17028","v":"Select"},{"$f":"Import!M17228","v":0},{"$f":"Import!M17428","v":0},{"$f":"Import!M17628","v":0},{"$f":"Import!M17828","v":0},{"$f":"Import!M18028","v":0}]
[16,{"$f":"Import!M15829","v":"Select"},{"$f":"Import!M16029","v":"Select"},{"$f":"Import!M16229","v":"Select"},{"$f":"Import!M16429","v":"Select"},{"$f":"Import!M16629","v":"Select"},{"$f":"Import!M16829","v":"Select"},{"$f":"Import!M17029","v":"Select"},{"$f":"Import!M17229","v":0},{"$f":"Import!M17429","v":0},{"$f":"Import!M17629","v":0},{"$f":"Import!M17829","v":0},{"$f":"Import!M18029","v":0}]
[17,{"$f":"Import!M15830","v":"Select"},{"$f":"Import!M16030","v":"Select"},{"$f":"Import!M16230","v":"Select"},{"$f":"Import!M16430","v":"Select"},{"$f":"Import!M16630","v":"Select"},{"$f":"Import!M16830","v":"Select"},{"$f":"Import!M17030","v":"Select"},{"$f":"Import!M17230","v":0},{"$f":"Import!M17430","v":0},{"$f":"Import!M17630","v":0},{"$f":"Import!M17830","v":0},{"$f":"Import!M18030","v":0}]
[18,{"$f":"Import!M15831","v":"Select"},{"$f":"Import!M16031","v":"Select"},{"$f":"Import!M16231","v":"Select"},{"$f":"Import!M16431","v":"Select"},{"$f":"Import!M16631","v":"Select"},{"$f":"Import!M16831","v":"Select"},{"$f":"Import!M17031","v":"Select"},{"$f":"Import!M17231","v":0},{"$f":"Import!M17431","v":0},{"$f":"Import!M17631","v":0},{"$f":"Import!M17831","v":0},{"$f":"Import!M18031","v":0}]
[19,{"$f":"Import!M15832","v":"Select"},{"$f":"Import!M16032","v":"Select"},{"$f":"Import!M16232","v":"Select"},{"$f":"Import!M16432","v":"Select"},{"$f":"Import!M16632","v":"Select"},{"$f":"Import!M16832","v":"Select"},{"$f":"Import!M17032","v":"Select"},{"$f":"Import!M17232","v":0},{"$f":"Import!M17432","v":0},{"$f":"Import!M17632","v":0},{"$f":"Import!M17832","v":0},{"$f":"Import!M18032","v":0}]
[20,{"$f":"Import!M15833","v":"Select"},{"$f":"Import!M16033","v":"Select"},{"$f":"Import!M16233","v":"Select"},{"$f":"Import!M16433","v":"Select"},{"$f":"Import!M16633","v":"Select"},{"$f":"Import!M16833","v":"Select"},{"$f":"Import!M17033","v":"Select"},{"$f":"Import!M17233","v":0},{"$f":"Import!M17433","v":0},{"$f":"Import!M17633","v":0},{"$f":"Import!M17833","v":0},{"$f":"Import!M18033","v":0}]
[21,{"$f":"Import!M15834","v":"Select"},{"$f":"Import!M16034","v":"Select"},{"$f":"Import!M16234","v":"Select"},{"$f":"Import!M16434","v":"Select"},{"$f":"Import!M16634","v":"Select"},{"$f":"Import!M16834","v":"Select"},{"$f":"Import!M17034","v":"Select"},{"$f":"Import!M17234","v":0},{"$f":"Import!M17434","v":0},{"$f":"Import!M17634","v":0},{"$f":"Import!M17834","v":0},{"$f":"Import!M18034","v":0}]
[22,{"$f":"Import!M15835","v":"Select"},{"$f":"Import!M16035","v":"Select"},{"$f":"Import!M16235","v":"Select"},{"$f":"Import!M16435","v":"Select"},{"$f":"Import!M16635","v":"Select"},{"$f":"Import!M16835","v":"Select"},{"$f":"Import!M17035","v":"Select"},{"$f":"Import!M17235","v":0},{"$f":"Import!M17435","v":0},{"$f":"Import!M17635","v":0},{"$f":"Import!M17835","v":0},{"$f":"Import!M18035","v":0}]
[23,{"$f":"Import!M15836","v":"Select"},{"$f":"Import!M16036","v":"Select"},{"$f":"Import!M16236","v":"Select"},{"$f":"Import!M16436","v":"Select"},{"$f":"Import!M16636","v":"Select"},{"$f":"Import!M16836","v":"Select"},{"$f":"Import!M17036","v":"Select"},{"$f":"Import!M17236","v":0},{"$f":"Import!M17436","v":0},{"$f":"Import!M17636","v":0},{"$f":"Import!M17836","v":0},{"$f":"Import!M18036","v":0}]
[24,{"$f":"Import!M15837","v":"Select"},{"$f":"Import!M16037","v":"Select"},{"$f":"Import!M16237","v":"Select"},{"$f":"Import!M16437","v":"Select"},{"$f":"Import!M16637","v":"Select"},{"$f":"Import!M16837","v":"Select"},{"$f":"Import!M17037","v":"Select"},{"$f":"Import!M17237","v":0},{"$f":"Import!M17437","v":0},{"$f":"Import!M17637","v":0},{"$f":"Import!M17837","v":0},{"$f":"Import!M18037","v":0}]
[25,{"$f":"Import!M15838","v":"Select"},{"$f":"Import!M16038","v":"Select"},{"$f":"Import!M16238","v":"Select"},{"$f":"Import!M16438","v":"Select"},{"$f":"Import!M16638","v":"Select"},{"$f":"Import!M16838","v":"Select"},{"$f":"Import!M17038","v":"Select"},{"$f":"Import!M17238","v":0},{"$f":"Import!M17438","v":0},{"$f":"Import!M17638","v":0},{"$f":"Import!M17838","v":0},{"$f":"Import!M18038","v":0}]
[26,{"$f":"Import!M15839","v":"Select"},{"$f":"Import!M16039","v":"Select"},{"$f":"Import!M16239","v":"Select"},{"$f":"Import!M16439","v":"Select"},{"$f":"Import!M16639","v":"Select"},{"$f":"Import!M16839","v":"Select"},{"$f":"Import!M17039","v":"Select"},{"$f":"Import!M17239","v":0},{"$f":"Import!M17439","v":0},{"$f":"Import!M17639","v":0},{"$f":"Import!M17839","v":0},{"$f":"Import!M18039","v":0}]
[27,{"$f":"Import!M15840","v":"Select"},{"$f":"Import!M16040","v":"Select"},{"$f":"Import!M16240","v":"Select"},{"$f":"Import!M16440","v":"Select"},{"$f":"Import!M16640","v":"Select"},{"$f":"Import!M16840","v":"Select"},{"$f":"Import!M17040","v":"Select"},{"$f":"Import!M17240","v":0},{"$f":"Import!M17440","v":0},{"$f":"Import!M17640","v":0},{"$f":"Import!M17840","v":0},{"$f":"Import!M18040","v":0}]
[28,{"$f":"Import!M15841","v":"Select"},{"$f":"Import!M16041","v":"Select"},{"$f":"Import!M16241","v":"Select"},{"$f":"Import!M16441","v":"Select"},{"$f":"Import!M16641","v":"Select"},{"$f":"Import!M16841","v":"Select"},{"$f":"Import!M17041","v":"Select"},{"$f":"Import!M17241","v":0},{"$f":"Import!M17441","v":0},{"$f":"Import!M17641","v":0},{"$f":"Import!M17841","v":0},{"$f":"Import!M18041","v":0}]
[29,{"$f":"Import!M15842","v":"Select"},{"$f":"Import!M16042","v":"Select"},{"$f":"Import!M16242","v":"Select"},{"$f":"Import!M16442","v":"Select"},{"$f":"Import!M16642","v":"Select"},{"$f":"Import!M16842","v":"Select"},{"$f":"Import!M17042","v":"Select"},{"$f":"Import!M17242","v":0},{"$f":"Import!M17442","v":0},{"$f":"Import!M17642","v":0},{"$f":"Import!M17842","v":0},{"$f":"Import!M18042","v":0}]
[30,{"$f":"Import!M15843","v":"Select"},{"$f":"Import!M16043","v":"Select"},{"$f":"Import!M16243","v":"Select"},{"$f":"Import!M16443","v":"Select"},{"$f":"Import!M16643","v":"Select"},{"$f":"Import!M16843","v":"Select"},{"$f":"Import!M17043","v":"Select"},{"$f":"Import!M17243","v":0},{"$f":"Import!M17443","v":0},{"$f":"Import!M17643","v":0},{"$f":"Import!M17843","v":0},{"$f":"Import!M18043","v":0}]
[31,{"$f":"Import!M15844","v":"Select"},{"$f":"Import!M16044","v":"Select"},{"$f":"Import!M16244","v":"Select"},{"$f":"Import!M16444","v":"Select"},{"$f":"Import!M16644","v":"Select"},{"$f":"Import!M16844","v":"Select"},{"$f":"Import!M17044","v":"Select"},{"$f":"Import!M17244","v":0},{"$f":"Import!M17444","v":0},{"$f":"Import!M17644","v":0},{"$f":"Import!M17844","v":0},{"$f":"Import!M18044","v":0}]
[32,{"$f":"Import!M15845","v":"Select"},{"$f":"Import!M16045","v":"Select"},{"$f":"Import!M16245","v":"Select"},{"$f":"Import!M16445","v":"Select"},{"$f":"Import!M16645","v":"Select"},{"$f":"Import!M16845","v":"Select"},{"$f":"Import!M17045","v":"Select"},{"$f":"Import!M17245","v":0},{"$f":"Import!M17445","v":0},{"$f":"Import!M17645","v":0},{"$f":"Import!M17845","v":0},{"$f":"Import!M18045","v":0}]
[33,{"$f":"Import!M15846","v":"Select"},{"$f":"Import!M16046","v":"Select"},{"$f":"Import!M16246","v":"Select"},{"$f":"Import!M16446","v":"Select"},{"$f":"Import!M16646","v":"Select"},{"$f":"Import!M16846","v":"Select"},{"$f":"Import!M17046","v":"Select"},{"$f":"Import!M17246","v":0},{"$f":"Import!M17446","v":0},{"$f":"Import!M17646","v":0},{"$f":"Import!M17846","v":0},{"$f":"Import!M18046","v":0}]
[34,{"$f":"Import!M15847","v":"Select"},{"$f":"Import!M16047","v":"Select"},{"$f":"Import!M16247","v":"Select"},{"$f":"Import!M16447","v":"Select"},{"$f":"Import!M16647","v":"Select"},{"$f":"Import!M16847","v":"Select"},{"$f":"Import!M17047","v":"Select"},{"$f":"Import!M17247","v":0},{"$f":"Import!M17447","v":0},{"$f":"Import!M17647","v":0},{"$f":"Import!M17847","v":0},{"$f":"Import!M18047","v":0}]
[35,{"$f":"Import!M15848","v":"Select"},{"$f":"Import!M16048","v":"Select"},{"$f":"Import!M16248","v":"Select"},{"$f":"Import!M16448","v":"Select"},{"$f":"Import!M16648","v":"Select"},{"$f":"Import!M16848","v":"Select"},{"$f":"Import!M17048","v":"Select"},{"$f":"Import!M17248","v":0},{"$f":"Import!M17448","v":0},{"$f":"Import!M17648","v":0},{"$f":"Import!M17848","v":0},{"$f":"Import!M18048","v":0}]
[36,{"$f":"Import!M15849","v":"Select"},{"$f":"Import!M16049","v":"Select"},{"$f":"Import!M16249","v":"Select"},{"$f":"Import!M16449","v":"Select"},{"$f":"Import!M16649","v":"Select"},{"$f":"Import!M16849","v":"Select"},{"$f":"Import!M17049","v":"Select"},{"$f":"Import!M17249","v":0},{"$f":"Import!M17449","v":0},{"$f":"Import!M17649","v":0},{"$f":"Import!M17849","v":0},{"$f":"Import!M18049","v":0}]
[37,{"$f":"Import!M15850","v":"Select"},{"$f":"Import!M16050","v":"Select"},{"$f":"Import!M16250","v":"Select"},{"$f":"Import!M16450","v":"Select"},{"$f":"Import!M16650","v":"Select"},{"$f":"Import!M16850","v":"Select"},{"$f":"Import!M17050","v":"Select"},{"$f":"Import!M17250","v":0},{"$f":"Import!M17450","v":0},{"$f":"Import!M17650","v":0},{"$f":"Import!M17850","v":0},{"$f":"Import!M18050","v":0}]
[38,{"$f":"Import!M15851","v":"Select"},{"$f":"Import!M16051","v":"Select"},{"$f":"Import!M16251","v":"Select"},{"$f":"Import!M16451","v":"Select"},{"$f":"Import!M16651","v":"Select"},{"$f":"Import!M16851","v":"Select"},{"$f":"Import!M17051","v":"Select"},{"$f":"Import!M17251","v":0},{"$f":"Import!M17451","v":0},{"$f":"Import!M17651","v":0},{"$f":"Import!M17851","v":0},{"$f":"Import!M18051","v":0}]
[39,{"$f":"Import!M15852","v":"Select"},{"$f":"Import!M16052","v":"Select"},{"$f":"Import!M16252","v":"Select"},{"$f":"Import!M16452","v":"Select"},{"$f":"Import!M16652","v":"Select"},{"$f":"Import!M16852","v":"Select"},{"$f":"Import!M17052","v":"Select"},{"$f":"Import!M17252","v":0},{"$f":"Import!M17452","v":0},{"$f":"Import!M17652","v":0},{"$f":"Import!M17852","v":0},{"$f":"Import!M18052","v":0}]
[40,{"$f":"Import!M15853","v":"Select"},{"$f":"Import!M16053","v":"Select"},{"$f":"Import!M16253","v":"Select"},{"$f":"Import!M16453","v":"Select"},{"$f":"Import!M16653","v":"Select"},{"$f":"Import!M16853","v":"Select"},{"$f":"Import!M17053","v":"Select"},{"$f":"Import!M17253","v":0},{"$f":"Import!M17453","v":0},{"$f":"Import!M17653","v":0},{"$f":"Import!M17853","v":0},{"$f":"Import!M18053","v":0}]
[41,{"$f":"Import!M15854","v":"Select"},{"$f":"Import!M16054","v":"Select"},{"$f":"Import!M16254","v":"Select"},{"$f":"Import!M16454","v":"Select"},{"$f":"Import!M16654","v":"Select"},{"$f":"Import!M16854","v":"Select"},{"$f":"Import!M17054","v":"Select"},{"$f":"Import!M17254","v":0},{"$f":"Import!M17454","v":0},{"$f":"Import!M17654","v":0},{"$f":"Import!M17854","v":0},{"$f":"Import!M18054","v":0}]
[42,{"$f":"Import!M15855","v":"Select"},{"$f":"Import!M16055","v":"Select"},{"$f":"Import!M16255","v":"Select"},{"$f":"Import!M16455","v":"Select"},{"$f":"Import!M16655","v":"Select"},{"$f":"Import!M16855","v":"Select"},{"$f":"Import!M17055","v":"Select"},{"$f":"Import!M17255","v":0},{"$f":"Import!M17455","v":0},{"$f":"Import!M17655","v":0},{"$f":"Import!M17855","v":0},{"$f":"Import!M18055","v":0}]
[43,{"$f":"Import!M15856","v":"Select"},{"$f":"Import!M16056","v":"Select"},{"$f":"Import!M16256","v":"Select"},{"$f":"Import!M16456","v":"Select"},{"$f":"Import!M16656","v":"Select"},{"$f":"Import!M16856","v":"Select"},{"$f":"Import!M17056","v":"Select"},{"$f":"Import!M17256","v":0},{"$f":"Import!M17456","v":0},{"$f":"Import!M17656","v":0},{"$f":"Import!M17856","v":0},{"$f":"Import!M18056","v":0}]
[44,{"$f":"Import!M15857","v":"Select"},{"$f":"Import!M16057","v":"Select"},{"$f":"Import!M16257","v":"Select"},{"$f":"Import!M16457","v":"Select"},{"$f":"Import!M16657","v":"Select"},{"$f":"Import!M16857","v":"Select"},{"$f":"Import!M17057","v":"Select"},{"$f":"Import!M17257","v":0},{"$f":"Import!M17457","v":0},{"$f":"Import!M17657","v":0},{"$f":"Import!M17857","v":0},{"$f":"Import!M18057","v":0}]
[45,{"$f":"Import!M15858","v":"Select"},{"$f":"Import!M16058","v":"Select"},{"$f":"Import!M16258","v":"Select"},{"$f":"Import!M16458","v":"Select"},{"$f":"Import!M16658","v":"Select"},{"$f":"Import!M16858","v":"Select"},{"$f":"Import!M17058","v":"Select"},{"$f":"Import!M17258","v":0},{"$f":"Import!M17458","v":0},{"$f":"Import!M17658","v":0},{"$f":"Import!M17858","v":0},{"$f":"Import!M18058","v":0}]
[46,{"$f":"Import!M15859","v":"Select"},{"$f":"Import!M16059","v":"Select"},{"$f":"Import!M16259","v":"Select"},{"$f":"Import!M16459","v":"Select"},{"$f":"Import!M16659","v":"Select"},{"$f":"Import!M16859","v":"Select"},{"$f":"Import!M17059","v":"Select"},{"$f":"Import!M17259","v":0},{"$f":"Import!M17459","v":0},{"$f":"Import!M17659","v":0},{"$f":"Import!M17859","v":0},{"$f":"Import!M18059","v":0}]
[47,{"$f":"Import!M15860","v":"Select"},{"$f":"Import!M16060","v":"Select"},{"$f":"Import!M16260","v":"Select"},{"$f":"Import!M16460","v":"Select"},{"$f":"Import!M16660","v":"Select"},{"$f":"Import!M16860","v":"Select"},{"$f":"Import!M17060","v":"Select"},{"$f":"Import!M17260","v":0},{"$f":"Import!M17460","v":0},{"$f":"Import!M17660","v":0},{"$f":"Import!M17860","v":0},{"$f":"Import!M18060","v":0}]
[48,{"$f":"Import!M15861","v":"Select"},{"$f":"Import!M16061","v":"Select"},{"$f":"Import!M16261","v":"Select"},{"$f":"Import!M16461","v":"Select"},{"$f":"Import!M16661","v":"Select"},{"$f":"Import!M16861","v":"Select"},{"$f":"Import!M17061","v":"Select"},{"$f":"Import!M17261","v":0},{"$f":"Import!M17461","v":0},{"$f":"Import!M17661","v":0},{"$f":"Import!M17861","v":0},{"$f":"Import!M18061","v":0}]
[49,{"$f":"Import!M15862","v":"Select"},{"$f":"Import!M16062","v":"Select"},{"$f":"Import!M16262","v":"Select"},{"$f":"Import!M16462","v":"Select"},{"$f":"Import!M16662","v":"Select"},{"$f":"Import!M16862","v":"Select"},{"$f":"Import!M17062","v":"Select"},{"$f":"Import!M17262","v":0},{"$f":"Import!M17462","v":0},{"$f":"Import!M17662","v":0},{"$f":"Import!M17862","v":0},{"$f":"Import!M18062","v":0}]
[50,{"$f":"Import!M15863","v":"Select"},{"$f":"Import!M16063","v":"Select"},{"$f":"Import!M16263","v":"Select"},{"$f":"Import!M16463","v":"Select"},{"$f":"Import!M16663","v":"Select"},{"$f":"Import!M16863","v":"Select"},{"$f":"Import!M17063","v":"Select"},{"$f":"Import!M17263","v":0},{"$f":"Import!M17463","v":0},{"$f":"Import!M17663","v":0},{"$f":"Import!M17863","v":0},{"$f":"Import!M18063","v":0}]
[51,{"$f":"Import!M15864","v":"Select"},{"$f":"Import!M16064","v":"Select"},{"$f":"Import!M16264","v":"Select"},{"$f":"Import!M16464","v":"Select"},{"$f":"Import!M16664","v":"Select"},{"$f":"Import!M16864","v":"Select"},{"$f":"Import!M17064","v":"Select"},{"$f":"Import!M17264","v":0},{"$f":"Import!M17464","v":0},{"$f":"Import!M17664","v":0},{"$f":"Import!M17864","v":0},{"$f":"Import!M18064","v":0}]
[52,{"$f":"Import!M15865","v":"Select"},{"$f":"Import!M16065","v":"Select"},{"$f":"Import!M16265","v":"Select"},{"$f":"Import!M16465","v":"Select"},{"$f":"Import!M16665","v":"Select"},{"$f":"Import!M16865","v":"Select"},{"$f":"Import!M17065","v":"Select"},{"$f":"Import!M17265","v":0},{"$f":"Import!M17465","v":0},{"$f":"Import!M17665","v":0},{"$f":"Import!M17865","v":0},{"$f":"Import!M18065","v":0}]
[53,{"$f":"Import!M15866","v":"Select"},{"$f":"Import!M16066","v":"Select"},{"$f":"Import!M16266","v":"Select"},{"$f":"Import!M16466","v":"Select"},{"$f":"Import!M16666","v":"Select"},{"$f":"Import!M16866","v":"Select"},{"$f":"Import!M17066","v":"Select"},{"$f":"Import!M17266","v":0},{"$f":"Import!M17466","v":0},{"$f":"Import!M17666","v":0},{"$f":"Import!M17866","v":0},{"$f":"Import!M18066","v":0}]
[54,{"$f":"Import!M15867","v":"Select"},{"$f":"Import!M16067","v":"Select"},{"$f":"Import!M16267","v":"Select"},{"$f":"Import!M16467","v":"Select"},{"$f":"Import!M16667","v":"Select"},{"$f":"Import!M16867","v":"Select"},{"$f":"Import!M17067","v":"Select"},{"$f":"Import!M17267","v":0},{"$f":"Import!M17467","v":0},{"$f":"Import!M17667","v":0},{"$f":"Import!M17867","v":0},{"$f":"Import!M18067","v":0}]
[55,{"$f":"Import!M15868","v":"Select"},{"$f":"Import!M16068","v":"Select"},{"$f":"Import!M16268","v":"Select"},{"$f":"Import!M16468","v":"Select"},{"$f":"Import!M16668","v":"Select"},{"$f":"Import!M16868","v":"Select"},{"$f":"Import!M17068","v":"Select"},{"$f":"Import!M17268","v":0},{"$f":"Import!M17468","v":0},{"$f":"Import!M17668","v":0},{"$f":"Import!M17868","v":0},{"$f":"Import!M18068","v":0}]
[56,{"$f":"Import!M15869","v":"Select"},{"$f":"Import!M16069","v":"Select"},{"$f":"Import!M16269","v":"Select"},{"$f":"Import!M16469","v":"Select"},{"$f":"Import!M16669","v":"Select"},{"$f":"Import!M16869","v":"Select"},{"$f":"Import!M17069","v":"Select"},{"$f":"Import!M17269","v":0},{"$f":"Import!M17469","v":0},{"$f":"Import!M17669","v":0},{"$f":"Import!M17869","v":0},{"$f":"Import!M18069","v":0}]
[57,{"$f":"Import!M15870","v":"Select"},{"$f":"Import!M16070","v":"Select"},{"$f":"Import!M16270","v":"Select"},{"$f":"Import!M16470","v":"Select"},{"$f":"Import!M16670","v":"Select"},{"$f":"Import!M16870","v":"Select"},{"$f":"Import!M17070","v":"Select"},{"$f":"Import!M17270","v":0},{"$f":"Import!M17470","v":0},{"$f":"Import!M17670","v":0},{"$f":"Import!M17870","v":0},{"$f":"Import!M18070","v":0}]
[58,{"$f":"Import!M15871","v":"Select"},{"$f":"Import!M16071","v":"Select"},{"$f":"Import!M16271","v":"Select"},{"$f":"Import!M16471","v":"Select"},{"$f":"Import!M16671","v":"Select"},{"$f":"Import!M16871","v":"Select"},{"$f":"Import!M17071","v":"Select"},{"$f":"Import!M17271","v":0},{"$f":"Import!M17471","v":0},{"$f":"Import!M17671","v":0},{"$f":"Import!M17871","v":0},{"$f":"Import!M18071","v":0}]
[59,{"$f":"Import!M15872","v":"Select"},{"$f":"Import!M16072","v":"Select"},{"$f":"Import!M16272","v":"Select"},{"$f":"Import!M16472","v":"Select"},{"$f":"Import!M16672","v":"Select"},{"$f":"Import!M16872","v":"Select"},{"$f":"Import!M17072","v":"Select"},{"$f":"Import!M17272","v":0},{"$f":"Import!M17472","v":0},{"$f":"Import!M17672","v":0},{"$f":"Import!M17872","v":0},{"$f":"Import!M18072","v":0}]
[60,{"$f":"Import!M15873","v":"Select"},{"$f":"Import!M16073","v":"Select"},{"$f":"Import!M16273","v":"Select"},{"$f":"Import!M16473","v":"Select"},{"$f":"Import!M16673","v":"Select"},{"$f":"Import!M16873","v":"Select"},{"$f":"Import!M17073","v":"Select"},{"$f":"Import!M17273","v":0},{"$f":"Import!M17473","v":0},{"$f":"Import!M17673","v":0},{"$f":"Import!M17873","v":0},{"$f":"Import!M18073","v":0}]
[61,{"$f":"Import!M15874","v":"Select"},{"$f":"Import!M16074","v":"Select"},{"$f":"Import!M16274","v":"Select"},{"$f":"Import!M16474","v":"Select"},{"$f":"Import!M16674","v":"Select"},{"$f":"Import!M16874","v":"Select"},{"$f":"Import!M17074","v":"Select"},{"$f":"Import!M17274","v":0},{"$f":"Import!M17474","v":0},{"$f":"Import!M17674","v":0},{"$f":"Import!M17874","v":0},{"$f":"Import!M18074","v":0}]
[62,{"$f":"Import!M15875","v":"Select"},{"$f":"Import!M16075","v":"Select"},{"$f":"Import!M16275","v":"Select"},{"$f":"Import!M16475","v":"Select"},{"$f":"Import!M16675","v":"Select"},{"$f":"Import!M16875","v":"Select"},{"$f":"Import!M17075","v":"Select"},{"$f":"Import!M17275","v":0},{"$f":"Import!M17475","v":0},{"$f":"Import!M17675","v":0},{"$f":"Import!M17875","v":0},{"$f":"Import!M18075","v":0}]
[63,{"$f":"Import!M15876","v":"Select"},{"$f":"Import!M16076","v":"Select"},{"$f":"Import!M16276","v":"Select"},{"$f":"Import!M16476","v":"Select"},{"$f":"Import!M16676","v":"Select"},{"$f":"Import!M16876","v":"Select"},{"$f":"Import!M17076","v":"Select"},{"$f":"Import!M17276","v":0},{"$f":"Import!M17476","v":0},{"$f":"Import!M17676","v":0},{"$f":"Import!M17876","v":0},{"$f":"Import!M18076","v":0}]
[64,{"$f":"Import!M15877","v":"Select"},{"$f":"Import!M16077","v":"Select"},{"$f":"Import!M16277","v":"Select"},{"$f":"Import!M16477","v":"Select"},{"$f":"Import!M16677","v":"Select"},{"$f":"Import!M16877","v":"Select"},{"$f":"Import!M17077","v":"Select"},{"$f":"Import!M17277","v":0},{"$f":"Import!M17477","v":0},{"$f":"Import!M17677","v":0},{"$f":"Import!M17877","v":0},{"$f":"Import!M18077","v":0}]
[65,{"$f":"Import!M15878","v":"Select"},{"$f":"Import!M16078","v":"Select"},{"$f":"Import!M16278","v":"Select"},{"$f":"Import!M16478","v":"Select"},{"$f":"Import!M16678","v":"Select"},{"$f":"Import!M16878","v":"Select"},{"$f":"Import!M17078","v":"Select"},{"$f":"Import!M17278","v":0},{"$f":"Import!M17478","v":0},{"$f":"Import!M17678","v":0},{"$f":"Import!M17878","v":0},{"$f":"Import!M18078","v":0}]
[66,{"$f":"Import!M15879","v":"Select"},{"$f":"Import!M16079","v":"Select"},{"$f":"Import!M16279","v":"Select"},{"$f":"Import!M16479","v":"Select"},{"$f":"Import!M16679","v":"Select"},{"$f":"Import!M16879","v":"Select"},{"$f":"Import!M17079","v":"Select"},{"$f":"Import!M17279","v":0},{"$f":"Import!M17479","v":0},{"$f":"Import!M17679","v":0},{"$f":"Import!M17879","v":0},{"$f":"Import!M18079","v":0}]
[{"$f":"A1625+1","v":67},{"$f":"Import!M15880","v":"Select"},{"$f":"Import!M16080","v":"Select"},{"$f":"Import!M16280","v":"Select"},{"$f":"Import!M16480","v":"Select"},{"$f":"Import!M16680","v":"Select"},{"$f":"Import!M16880","v":"Select"},{"$f":"Import!M17080","v":"Select"},{"$f":"Import!M17280","v":0},{"$f":"Import!M17480","v":0},{"$f":"Import!M17680","v":0},{"$f":"Import!M17880","v":0},{"$f":"Import!M18080","v":0}]
[68,{"$f":"Import!M15881","v":"Select"},{"$f":"Import!M16081","v":"Select"},{"$f":"Import!M16281","v":"Select"},{"$f":"Import!M16481","v":"Select"},{"$f":"Import!M16681","v":"Select"},{"$f":"Import!M16881","v":"Select"},{"$f":"Import!M17081","v":"Select"},{"$f":"Import!M17281","v":0},{"$f":"Import!M17481","v":0},{"$f":"Import!M17681","v":0},{"$f":"Import!M17881","v":0},{"$f":"Import!M18081","v":0}]
[69,{"$f":"Import!M15882","v":"Select"},{"$f":"Import!M16082","v":"Select"},{"$f":"Import!M16282","v":"Select"},{"$f":"Import!M16482","v":"Select"},{"$f":"Import!M16682","v":"Select"},{"$f":"Import!M16882","v":"Select"},{"$f":"Import!M17082","v":"Select"},{"$f":"Import!M17282","v":0},{"$f":"Import!M17482","v":0},{"$f":"Import!M17682","v":0},{"$f":"Import!M17882","v":0},{"$f":"Import!M18082","v":0}]
[70,{"$f":"Import!M15883","v":"Select"},{"$f":"Import!M16083","v":"Select"},{"$f":"Import!M16283","v":"Select"},{"$f":"Import!M16483","v":"Select"},{"$f":"Import!M16683","v":"Select"},{"$f":"Import!M16883","v":"Select"},{"$f":"Import!M17083","v":"Select"},{"$f":"Import!M17283","v":0},{"$f":"Import!M17483","v":0},{"$f":"Import!M17683","v":0},{"$f":"Import!M17883","v":0},{"$f":"Import!M18083","v":0}]
[71,{"$f":"Import!M15884","v":"Select"},{"$f":"Import!M16084","v":"Select"},{"$f":"Import!M16284","v":"Select"},{"$f":"Import!M16484","v":"Select"},{"$f":"Import!M16684","v":"Select"},{"$f":"Import!M16884","v":"Select"},{"$f":"Import!M17084","v":"Select"},{"$f":"Import!M17284","v":0},{"$f":"Import!M17484","v":0},{"$f":"Import!M17684","v":0},{"$f":"Import!M17884","v":0},{"$f":"Import!M18084","v":0}]
[72,{"$f":"Import!M15885","v":"Select"},{"$f":"Import!M16085","v":"Select"},{"$f":"Import!M16285","v":"Select"},{"$f":"Import!M16485","v":"Select"},{"$f":"Import!M16685","v":"Select"},{"$f":"Import!M16885","v":"Select"},{"$f":"Import!M17085","v":"Select"},{"$f":"Import!M17285","v":0},{"$f":"Import!M17485","v":0},{"$f":"Import!M17685","v":0},{"$f":"Import!M17885","v":0},{"$f":"Import!M18085","v":0}]
[73,{"$f":"Import!M15886","v":"Select"},{"$f":"Import!M16086","v":"Select"},{"$f":"Import!M16286","v":"Select"},{"$f":"Import!M16486","v":"Select"},{"$f":"Import!M16686","v":"Select"},{"$f":"Import!M16886","v":"Select"},{"$f":"Import!M17086","v":"Select"},{"$f":"Import!M17286","v":0},{"$f":"Import!M17486","v":0},{"$f":"Import!M17686","v":0},{"$f":"Import!M17886","v":0},{"$f":"Import!M18086","v":0}]
[74,{"$f":"Import!M15887","v":"Select"},{"$f":"Import!M16087","v":"Select"},{"$f":"Import!M16287","v":"Select"},{"$f":"Import!M16487","v":"Select"},{"$f":"Import!M16687","v":"Select"},{"$f":"Import!M16887","v":"Select"},{"$f":"Import!M17087","v":"Select"},{"$f":"Import!M17287","v":0},{"$f":"Import!M17487","v":0},{"$f":"Import!M17687","v":0},{"$f":"Import!M17887","v":0},{"$f":"Import!M18087","v":0}]
[75,{"$f":"Import!M15888","v":"Select"},{"$f":"Import!M16088","v":"Select"},{"$f":"Import!M16288","v":"Select"},{"$f":"Import!M16488","v":"Select"},{"$f":"Import!M16688","v":"Select"},{"$f":"Import!M16888","v":"Select"},{"$f":"Import!M17088","v":"Select"},{"$f":"Import!M17288","v":0},{"$f":"Import!M17488","v":0},{"$f":"Import!M17688","v":0},{"$f":"Import!M17888","v":0},{"$f":"Import!M18088","v":0}]
[76,{"$f":"Import!M15889","v":"Select"},{"$f":"Import!M16089","v":"Select"},{"$f":"Import!M16289","v":"Select"},{"$f":"Import!M16489","v":"Select"},{"$f":"Import!M16689","v":"Select"},{"$f":"Import!M16889","v":"Select"},{"$f":"Import!M17089","v":"Select"},{"$f":"Import!M17289","v":0},{"$f":"Import!M17489","v":0},{"$f":"Import!M17689","v":0},{"$f":"Import!M17889","v":0},{"$f":"Import!M18089","v":0}]
[77,{"$f":"Import!M15890","v":"Select"},{"$f":"Import!M16090","v":"Select"},{"$f":"Import!M16290","v":"Select"},{"$f":"Import!M16490","v":"Select"},{"$f":"Import!M16690","v":"Select"},{"$f":"Import!M16890","v":"Select"},{"$f":"Import!M17090","v":"Select"},{"$f":"Import!M17290","v":0},{"$f":"Import!M17490","v":0},{"$f":"Import!M17690","v":0},{"$f":"Import!M17890","v":0},{"$f":"Import!M18090","v":0}]
[78,{"$f":"Import!M15891","v":"Select"},{"$f":"Import!M16091","v":"Select"},{"$f":"Import!M16291","v":"Select"},{"$f":"Import!M16491","v":"Select"},{"$f":"Import!M16691","v":"Select"},{"$f":"Import!M16891","v":"Select"},{"$f":"Import!M17091","v":"Select"},{"$f":"Import!M17291","v":0},{"$f":"Import!M17491","v":0},{"$f":"Import!M17691","v":0},{"$f":"Import!M17891","v":0},{"$f":"Import!M18091","v":0}]
[79,{"$f":"Import!M15892","v":"Select"},{"$f":"Import!M16092","v":"Select"},{"$f":"Import!M16292","v":"Select"},{"$f":"Import!M16492","v":"Select"},{"$f":"Import!M16692","v":"Select"},{"$f":"Import!M16892","v":"Select"},{"$f":"Import!M17092","v":"Select"},{"$f":"Import!M17292","v":0},{"$f":"Import!M17492","v":0},{"$f":"Import!M17692","v":0},{"$f":"Import!M17892","v":0},{"$f":"Import!M18092","v":0}]
[80,{"$f":"Import!M15893","v":"Select"},{"$f":"Import!M16093","v":"Select"},{"$f":"Import!M16293","v":"Select"},{"$f":"Import!M16493","v":"Select"},{"$f":"Import!M16693","v":"Select"},{"$f":"Import!M16893","v":"Select"},{"$f":"Import!M17093","v":"Select"},{"$f":"Import!M17293","v":0},{"$f":"Import!M17493","v":0},{"$f":"Import!M17693","v":0},{"$f":"Import!M17893","v":0},{"$f":"Import!M18093","v":0}]
[81,{"$f":"Import!M15894","v":"Select"},{"$f":"Import!M16094","v":"Select"},{"$f":"Import!M16294","v":"Select"},{"$f":"Import!M16494","v":"Select"},{"$f":"Import!M16694","v":"Select"},{"$f":"Import!M16894","v":"Select"},{"$f":"Import!M17094","v":"Select"},{"$f":"Import!M17294","v":0},{"$f":"Import!M17494","v":0},{"$f":"Import!M17694","v":0},{"$f":"Import!M17894","v":0},{"$f":"Import!M18094","v":0}]
[82,{"$f":"Import!M15895","v":"Select"},{"$f":"Import!M16095","v":"Select"},{"$f":"Import!M16295","v":"Select"},{"$f":"Import!M16495","v":"Select"},{"$f":"Import!M16695","v":"Select"},{"$f":"Import!M16895","v":"Select"},{"$f":"Import!M17095","v":"Select"},{"$f":"Import!M17295","v":0},{"$f":"Import!M17495","v":0},{"$f":"Import!M17695","v":0},{"$f":"Import!M17895","v":0},{"$f":"Import!M18095","v":0}]
[83,{"$f":"Import!M15896","v":"Select"},{"$f":"Import!M16096","v":"Select"},{"$f":"Import!M16296","v":"Select"},{"$f":"Import!M16496","v":"Select"},{"$f":"Import!M16696","v":"Select"},{"$f":"Import!M16896","v":"Select"},{"$f":"Import!M17096","v":"Select"},{"$f":"Import!M17296","v":0},{"$f":"Import!M17496","v":0},{"$f":"Import!M17696","v":0},{"$f":"Import!M17896","v":0},{"$f":"Import!M18096","v":0}]
[84,{"$f":"Import!M15897","v":"Select"},{"$f":"Import!M16097","v":"Select"},{"$f":"Import!M16297","v":"Select"},{"$f":"Import!M16497","v":"Select"},{"$f":"Import!M16697","v":"Select"},{"$f":"Import!M16897","v":"Select"},{"$f":"Import!M17097","v":"Select"},{"$f":"Import!M17297","v":0},{"$f":"Import!M17497","v":0},{"$f":"Import!M17697","v":0},{"$f":"Import!M17897","v":0},{"$f":"Import!M18097","v":0}]
[85,{"$f":"Import!M15898","v":"Select"},{"$f":"Import!M16098","v":"Select"},{"$f":"Import!M16298","v":"Select"},{"$f":"Import!M16498","v":"Select"},{"$f":"Import!M16698","v":"Select"},{"$f":"Import!M16898","v":"Select"},{"$f":"Import!M17098","v":"Select"},{"$f":"Import!M17298","v":0},{"$f":"Import!M17498","v":0},{"$f":"Import!M17698","v":0},{"$f":"Import!M17898","v":0},{"$f":"Import!M18098","v":0}]
[86,{"$f":"Import!M15899","v":"Select"},{"$f":"Import!M16099","v":"Select"},{"$f":"Import!M16299","v":"Select"},{"$f":"Import!M16499","v":"Select"},{"$f":"Import!M16699","v":"Select"},{"$f":"Import!M16899","v":"Select"},{"$f":"Import!M17099","v":"Select"},{"$f":"Import!M17299","v":0},{"$f":"Import!M17499","v":0},{"$f":"Import!M17699","v":0},{"$f":"Import!M17899","v":0},{"$f":"Import!M18099","v":0}]
[87,{"$f":"Import!M15900","v":"Select"},{"$f":"Import!M16100","v":"Select"},{"$f":"Import!M16300","v":"Select"},{"$f":"Import!M16500","v":"Select"},{"$f":"Import!M16700","v":"Select"},{"$f":"Import!M16900","v":"Select"},{"$f":"Import!M17100","v":"Select"},{"$f":"Import!M17300","v":0},{"$f":"Import!M17500","v":0},{"$f":"Import!M17700","v":0},{"$f":"Import!M17900","v":0},{"$f":"Import!M18100","v":0}]
[88,{"$f":"Import!M15901","v":"Select"},{"$f":"Import!M16101","v":"Select"},{"$f":"Import!M16301","v":"Select"},{"$f":"Import!M16501","v":"Select"},{"$f":"Import!M16701","v":"Select"},{"$f":"Import!M16901","v":"Select"},{"$f":"Import!M17101","v":"Select"},{"$f":"Import!M17301","v":0},{"$f":"Import!M17501","v":0},{"$f":"Import!M17701","v":0},{"$f":"Import!M17901","v":0},{"$f":"Import!M18101","v":0}]
[89,{"$f":"Import!M15902","v":"Select"},{"$f":"Import!M16102","v":"Select"},{"$f":"Import!M16302","v":"Select"},{"$f":"Import!M16502","v":"Select"},{"$f":"Import!M16702","v":"Select"},{"$f":"Import!M16902","v":"Select"},{"$f":"Import!M17102","v":"Select"},{"$f":"Import!M17302","v":0},{"$f":"Import!M17502","v":0},{"$f":"Import!M17702","v":0},{"$f":"Import!M17902","v":0},{"$f":"Import!M18102","v":0}]
[90,{"$f":"Import!M15903","v":"Select"},{"$f":"Import!M16103","v":"Select"},{"$f":"Import!M16303","v":"Select"},{"$f":"Import!M16503","v":"Select"},{"$f":"Import!M16703","v":"Select"},{"$f":"Import!M16903","v":"Select"},{"$f":"Import!M17103","v":"Select"},{"$f":"Import!M17303","v":0},{"$f":"Import!M17503","v":0},{"$f":"Import!M17703","v":0},{"$f":"Import!M17903","v":0},{"$f":"Import!M18103","v":0}]
[91,{"$f":"Import!M15904","v":"Select"},{"$f":"Import!M16104","v":"Select"},{"$f":"Import!M16304","v":"Select"},{"$f":"Import!M16504","v":"Select"},{"$f":"Import!M16704","v":"Select"},{"$f":"Import!M16904","v":"Select"},{"$f":"Import!M17104","v":"Select"},{"$f":"Import!M17304","v":0},{"$f":"Import!M17504","v":0},{"$f":"Import!M17704","v":0},{"$f":"Import!M17904","v":0},{"$f":"Import!M18104","v":0}]
[92,{"$f":"Import!M15905","v":"Select"},{"$f":"Import!M16105","v":"Select"},{"$f":"Import!M16305","v":"Select"},{"$f":"Import!M16505","v":"Select"},{"$f":"Import!M16705","v":"Select"},{"$f":"Import!M16905","v":"Select"},{"$f":"Import!M17105","v":"Select"},{"$f":"Import!M17305","v":0},{"$f":"Import!M17505","v":0},{"$f":"Import!M17705","v":0},{"$f":"Import!M17905","v":0},{"$f":"Import!M18105","v":0}]
[93,{"$f":"Import!M15906","v":"Select"},{"$f":"Import!M16106","v":"Select"},{"$f":"Import!M16306","v":"Select"},{"$f":"Import!M16506","v":"Select"},{"$f":"Import!M16706","v":"Select"},{"$f":"Import!M16906","v":"Select"},{"$f":"Import!M17106","v":"Select"},{"$f":"Import!M17306","v":0},{"$f":"Import!M17506","v":0},{"$f":"Import!M17706","v":0},{"$f":"Import!M17906","v":0},{"$f":"Import!M18106","v":0}]
[94,{"$f":"Import!M15907","v":"Select"},{"$f":"Import!M16107","v":"Select"},{"$f":"Import!M16307","v":"Select"},{"$f":"Import!M16507","v":"Select"},{"$f":"Import!M16707","v":"Select"},{"$f":"Import!M16907","v":"Select"},{"$f":"Import!M17107","v":"Select"},{"$f":"Import!M17307","v":0},{"$f":"Import!M17507","v":0},{"$f":"Import!M17707","v":0},{"$f":"Import!M17907","v":0},{"$f":"Import!M18107","v":0}]
[95,{"$f":"Import!M15908","v":"Select"},{"$f":"Import!M16108","v":"Select"},{"$f":"Import!M16308","v":"Select"},{"$f":"Import!M16508","v":"Select"},{"$f":"Import!M16708","v":"Select"},{"$f":"Import!M16908","v":"Select"},{"$f":"Import!M17108","v":"Select"},{"$f":"Import!M17308","v":0},{"$f":"Import!M17508","v":0},{"$f":"Import!M17708","v":0},{"$f":"Import!M17908","v":0},{"$f":"Import!M18108","v":0}]
[96,{"$f":"Import!M15909","v":"Select"},{"$f":"Import!M16109","v":"Select"},{"$f":"Import!M16309","v":"Select"},{"$f":"Import!M16509","v":"Select"},{"$f":"Import!M16709","v":"Select"},{"$f":"Import!M16909","v":"Select"},{"$f":"Import!M17109","v":"Select"},{"$f":"Import!M17309","v":0},{"$f":"Import!M17509","v":0},{"$f":"Import!M17709","v":0},{"$f":"Import!M17909","v":0},{"$f":"Import!M18109","v":0}]
[97,{"$f":"Import!M15910","v":"Select"},{"$f":"Import!M16110","v":"Select"},{"$f":"Import!M16310","v":"Select"},{"$f":"Import!M16510","v":"Select"},{"$f":"Import!M16710","v":"Select"},{"$f":"Import!M16910","v":"Select"},{"$f":"Import!M17110","v":"Select"},{"$f":"Import!M17310","v":0},{"$f":"Import!M17510","v":0},{"$f":"Import!M17710","v":0},{"$f":"Import!M17910","v":0},{"$f":"Import!M18110","v":0}]
[98,{"$f":"Import!M15911","v":"Select"},{"$f":"Import!M16111","v":"Select"},{"$f":"Import!M16311","v":"Select"},{"$f":"Import!M16511","v":"Select"},{"$f":"Import!M16711","v":"Select"},{"$f":"Import!M16911","v":"Select"},{"$f":"Import!M17111","v":"Select"},{"$f":"Import!M17311","v":0},{"$f":"Import!M17511","v":0},{"$f":"Import!M17711","v":0},{"$f":"Import!M17911","v":0},{"$f":"Import!M18111","v":0}]
[99,{"$f":"Import!M15912","v":"Select"},{"$f":"Import!M16112","v":"Select"},{"$f":"Import!M16312","v":"Select"},{"$f":"Import!M16512","v":"Select"},{"$f":"Import!M16712","v":"Select"},{"$f":"Import!M16912","v":"Select"},{"$f":"Import!M17112","v":"Select"},{"$f":"Import!M17312","v":0},{"$f":"Import!M17512","v":0},{"$f":"Import!M17712","v":0},{"$f":"Import!M17912","v":0},{"$f":"Import!M18112","v":0}]
[100,{"$f":"Import!M15913","v":"Select"},{"$f":"Import!M16113","v":"Select"},{"$f":"Import!M16313","v":"Select"},{"$f":"Import!M16513","v":"Select"},{"$f":"Import!M16713","v":"Select"},{"$f":"Import!M16913","v":"Select"},{"$f":"Import!M17113","v":"Select"},{"$f":"Import!M17313","v":0},{"$f":"Import!M17513","v":0},{"$f":"Import!M17713","v":0},{"$f":"Import!M17913","v":0},{"$f":"Import!M18113","v":0}]
[101,{"$f":"Import!M15914","v":"Select"},{"$f":"Import!M16114","v":"Select"},{"$f":"Import!M16314","v":"Select"},{"$f":"Import!M16514","v":"Select"},{"$f":"Import!M16714","v":"Select"},{"$f":"Import!M16914","v":"Select"},{"$f":"Import!M17114","v":"Select"},{"$f":"Import!M17314","v":0},{"$f":"Import!M17514","v":0},{"$f":"Import!M17714","v":0},{"$f":"Import!M17914","v":0},{"$f":"Import!M18114","v":0}]
[102,{"$f":"Import!M15915","v":"Select"},{"$f":"Import!M16115","v":"Select"},{"$f":"Import!M16315","v":"Select"},{"$f":"Import!M16515","v":"Select"},{"$f":"Import!M16715","v":"Select"},{"$f":"Import!M16915","v":"Select"},{"$f":"Import!M17115","v":"Select"},{"$f":"Import!M17315","v":0},{"$f":"Import!M17515","v":0},{"$f":"Import!M17715","v":0},{"$f":"Import!M17915","v":0},{"$f":"Import!M18115","v":0}]
[103,{"$f":"Import!M15916","v":"Select"},{"$f":"Import!M16116","v":"Select"},{"$f":"Import!M16316","v":"Select"},{"$f":"Import!M16516","v":"Select"},{"$f":"Import!M16716","v":"Select"},{"$f":"Import!M16916","v":"Select"},{"$f":"Import!M17116","v":"Select"},{"$f":"Import!M17316","v":0},{"$f":"Import!M17516","v":0},{"$f":"Import!M17716","v":0},{"$f":"Import!M17916","v":0},{"$f":"Import!M18116","v":0}]
[104,{"$f":"Import!M15917","v":"Select"},{"$f":"Import!M16117","v":"Select"},{"$f":"Import!M16317","v":"Select"},{"$f":"Import!M16517","v":"Select"},{"$f":"Import!M16717","v":"Select"},{"$f":"Import!M16917","v":"Select"},{"$f":"Import!M17117","v":"Select"},{"$f":"Import!M17317","v":0},{"$f":"Import!M17517","v":0},{"$f":"Import!M17717","v":0},{"$f":"Import!M17917","v":0},{"$f":"Import!M18117","v":0}]
[105,{"$f":"Import!M15918","v":"Select"},{"$f":"Import!M16118","v":"Select"},{"$f":"Import!M16318","v":"Select"},{"$f":"Import!M16518","v":"Select"},{"$f":"Import!M16718","v":"Select"},{"$f":"Import!M16918","v":"Select"},{"$f":"Import!M17118","v":"Select"},{"$f":"Import!M17318","v":0},{"$f":"Import!M17518","v":0},{"$f":"Import!M17718","v":0},{"$f":"Import!M17918","v":0},{"$f":"Import!M18118","v":0}]
[106,{"$f":"Import!M15919","v":"Select"},{"$f":"Import!M16119","v":"Select"},{"$f":"Import!M16319","v":"Select"},{"$f":"Import!M16519","v":"Select"},{"$f":"Import!M16719","v":"Select"},{"$f":"Import!M16919","v":"Select"},{"$f":"Import!M17119","v":"Select"},{"$f":"Import!M17319","v":0},{"$f":"Import!M17519","v":0},{"$f":"Import!M17719","v":0},{"$f":"Import!M17919","v":0},{"$f":"Import!M18119","v":0}]
[107,{"$f":"Import!M15920","v":"Select"},{"$f":"Import!M16120","v":"Select"},{"$f":"Import!M16320","v":"Select"},{"$f":"Import!M16520","v":"Select"},{"$f":"Import!M16720","v":"Select"},{"$f":"Import!M16920","v":"Select"},{"$f":"Import!M17120","v":"Select"},{"$f":"Import!M17320","v":0},{"$f":"Import!M17520","v":0},{"$f":"Import!M17720","v":0},{"$f":"Import!M17920","v":0},{"$f":"Import!M18120","v":0}]
[108,{"$f":"Import!M15921","v":"Select"},{"$f":"Import!M16121","v":"Select"},{"$f":"Import!M16321","v":"Select"},{"$f":"Import!M16521","v":"Select"},{"$f":"Import!M16721","v":"Select"},{"$f":"Import!M16921","v":"Select"},{"$f":"Import!M17121","v":"Select"},{"$f":"Import!M17321","v":0},{"$f":"Import!M17521","v":0},{"$f":"Import!M17721","v":0},{"$f":"Import!M17921","v":0},{"$f":"Import!M18121","v":0}]
[109,{"$f":"Import!M15922","v":"Select"},{"$f":"Import!M16122","v":"Select"},{"$f":"Import!M16322","v":"Select"},{"$f":"Import!M16522","v":"Select"},{"$f":"Import!M16722","v":"Select"},{"$f":"Import!M16922","v":"Select"},{"$f":"Import!M17122","v":"Select"},{"$f":"Import!M17322","v":0},{"$f":"Import!M17522","v":0},{"$f":"Import!M17722","v":0},{"$f":"Import!M17922","v":0},{"$f":"Import!M18122","v":0}]
[110,{"$f":"Import!M15923","v":"Select"},{"$f":"Import!M16123","v":"Select"},{"$f":"Import!M16323","v":"Select"},{"$f":"Import!M16523","v":"Select"},{"$f":"Import!M16723","v":"Select"},{"$f":"Import!M16923","v":"Select"},{"$f":"Import!M17123","v":"Select"},{"$f":"Import!M17323","v":0},{"$f":"Import!M17523","v":0},{"$f":"Import!M17723","v":0},{"$f":"Import!M17923","v":0},{"$f":"Import!M18123","v":0}]
[111,{"$f":"Import!M15924","v":"Select"},{"$f":"Import!M16124","v":"Select"},{"$f":"Import!M16324","v":"Select"},{"$f":"Import!M16524","v":"Select"},{"$f":"Import!M16724","v":"Select"},{"$f":"Import!M16924","v":"Select"},{"$f":"Import!M17124","v":"Select"},{"$f":"Import!M17324","v":0},{"$f":"Import!M17524","v":0},{"$f":"Import!M17724","v":0},{"$f":"Import!M17924","v":0},{"$f":"Import!M18124","v":0}]
[112,{"$f":"Import!M15925","v":"Select"},{"$f":"Import!M16125","v":"Select"},{"$f":"Import!M16325","v":"Select"},{"$f":"Import!M16525","v":"Select"},{"$f":"Import!M16725","v":"Select"},{"$f":"Import!M16925","v":"Select"},{"$f":"Import!M17125","v":"Select"},{"$f":"Import!M17325","v":0},{"$f":"Import!M17525","v":0},{"$f":"Import!M17725","v":0},{"$f":"Import!M17925","v":0},{"$f":"Import!M18125","v":0}]
[113,{"$f":"Import!M15926","v":"Select"},{"$f":"Import!M16126","v":"Select"},{"$f":"Import!M16326","v":"Select"},{"$f":"Import!M16526","v":"Select"},{"$f":"Import!M16726","v":"Select"},{"$f":"Import!M16926","v":"Select"},{"$f":"Import!M17126","v":"Select"},{"$f":"Import!M17326","v":0},{"$f":"Import!M17526","v":0},{"$f":"Import!M17726","v":0},{"$f":"Import!M17926","v":0},{"$f":"Import!M18126","v":0}]
[114,{"$f":"Import!M15927","v":"Select"},{"$f":"Import!M16127","v":"Select"},{"$f":"Import!M16327","v":"Select"},{"$f":"Import!M16527","v":"Select"},{"$f":"Import!M16727","v":"Select"},{"$f":"Import!M16927","v":"Select"},{"$f":"Import!M17127","v":"Select"},{"$f":"Import!M17327","v":0},{"$f":"Import!M17527","v":0},{"$f":"Import!M17727","v":0},{"$f":"Import!M17927","v":0},{"$f":"Import!M18127","v":0}]
[115,{"$f":"Import!M15928","v":"Select"},{"$f":"Import!M16128","v":"Select"},{"$f":"Import!M16328","v":"Select"},{"$f":"Import!M16528","v":"Select"},{"$f":"Import!M16728","v":"Select"},{"$f":"Import!M16928","v":"Select"},{"$f":"Import!M17128","v":"Select"},{"$f":"Import!M17328","v":0},{"$f":"Import!M17528","v":0},{"$f":"Import!M17728","v":0},{"$f":"Import!M17928","v":0},{"$f":"Import!M18128","v":0}]
[116,{"$f":"Import!M15929","v":"Select"},{"$f":"Import!M16129","v":"Select"},{"$f":"Import!M16329","v":"Select"},{"$f":"Import!M16529","v":"Select"},{"$f":"Import!M16729","v":"Select"},{"$f":"Import!M16929","v":"Select"},{"$f":"Import!M17129","v":"Select"},{"$f":"Import!M17329","v":0},{"$f":"Import!M17529","v":0},{"$f":"Import!M17729","v":0},{"$f":"Import!M17929","v":0},{"$f":"Import!M18129","v":0}]
[117,{"$f":"Import!M15930","v":"Select"},{"$f":"Import!M16130","v":"Select"},{"$f":"Import!M16330","v":"Select"},{"$f":"Import!M16530","v":"Select"},{"$f":"Import!M16730","v":"Select"},{"$f":"Import!M16930","v":"Select"},{"$f":"Import!M17130","v":"Select"},{"$f":"Import!M17330","v":0},{"$f":"Import!M17530","v":0},{"$f":"Import!M17730","v":0},{"$f":"Import!M17930","v":0},{"$f":"Import!M18130","v":0}]
[118,{"$f":"Import!M15931","v":"Select"},{"$f":"Import!M16131","v":"Select"},{"$f":"Import!M16331","v":"Select"},{"$f":"Import!M16531","v":"Select"},{"$f":"Import!M16731","v":"Select"},{"$f":"Import!M16931","v":"Select"},{"$f":"Import!M17131","v":"Select"},{"$f":"Import!M17331","v":0},{"$f":"Import!M17531","v":0},{"$f":"Import!M17731","v":0},{"$f":"Import!M17931","v":0},{"$f":"Import!M18131","v":0}]
[119,{"$f":"Import!M15932","v":"Select"},{"$f":"Import!M16132","v":"Select"},{"$f":"Import!M16332","v":"Select"},{"$f":"Import!M16532","v":"Select"},{"$f":"Import!M16732","v":"Select"},{"$f":"Import!M16932","v":"Select"},{"$f":"Import!M17132","v":"Select"},{"$f":"Import!M17332","v":0},{"$f":"Import!M17532","v":0},{"$f":"Import!M17732","v":0},{"$f":"Import!M17932","v":0},{"$f":"Import!M18132","v":0}]
[120,{"$f":"Import!M15933","v":"Select"},{"$f":"Import!M16133","v":"Select"},{"$f":"Import!M16333","v":"Select"},{"$f":"Import!M16533","v":"Select"},{"$f":"Import!M16733","v":"Select"},{"$f":"Import!M16933","v":"Select"},{"$f":"Import!M17133","v":"Select"},{"$f":"Import!M17333","v":0},{"$f":"Import!M17533","v":0},{"$f":"Import!M17733","v":0},{"$f":"Import!M17933","v":0},{"$f":"Import!M18133","v":0}]
[121,{"$f":"Import!M15934","v":"Select"},{"$f":"Import!M16134","v":"Select"},{"$f":"Import!M16334","v":"Select"},{"$f":"Import!M16534","v":"Select"},{"$f":"Import!M16734","v":"Select"},{"$f":"Import!M16934","v":"Select"},{"$f":"Import!M17134","v":"Select"},{"$f":"Import!M17334","v":0},{"$f":"Import!M17534","v":0},{"$f":"Import!M17734","v":0},{"$f":"Import!M17934","v":0},{"$f":"Import!M18134","v":0}]
[122,{"$f":"Import!M15935","v":"Select"},{"$f":"Import!M16135","v":"Select"},{"$f":"Import!M16335","v":"Select"},{"$f":"Import!M16535","v":"Select"},{"$f":"Import!M16735","v":"Select"},{"$f":"Import!M16935","v":"Select"},{"$f":"Import!M17135","v":"Select"},{"$f":"Import!M17335","v":0},{"$f":"Import!M17535","v":0},{"$f":"Import!M17735","v":0},{"$f":"Import!M17935","v":0},{"$f":"Import!M18135","v":0}]
[123,{"$f":"Import!M15936","v":"Select"},{"$f":"Import!M16136","v":"Select"},{"$f":"Import!M16336","v":"Select"},{"$f":"Import!M16536","v":"Select"},{"$f":"Import!M16736","v":"Select"},{"$f":"Import!M16936","v":"Select"},{"$f":"Import!M17136","v":"Select"},{"$f":"Import!M17336","v":0},{"$f":"Import!M17536","v":0},{"$f":"Import!M17736","v":0},{"$f":"Import!M17936","v":0},{"$f":"Import!M18136","v":0}]
[124,{"$f":"Import!M15937","v":"Select"},{"$f":"Import!M16137","v":"Select"},{"$f":"Import!M16337","v":"Select"},{"$f":"Import!M16537","v":"Select"},{"$f":"Import!M16737","v":"Select"},{"$f":"Import!M16937","v":"Select"},{"$f":"Import!M17137","v":"Select"},{"$f":"Import!M17337","v":0},{"$f":"Import!M17537","v":0},{"$f":"Import!M17737","v":0},{"$f":"Import!M17937","v":0},{"$f":"Import!M18137","v":0}]
[125,{"$f":"Import!M15938","v":"Select"},{"$f":"Import!M16138","v":"Select"},{"$f":"Import!M16338","v":"Select"},{"$f":"Import!M16538","v":"Select"},{"$f":"Import!M16738","v":"Select"},{"$f":"Import!M16938","v":"Select"},{"$f":"Import!M17138","v":"Select"},{"$f":"Import!M17338","v":0},{"$f":"Import!M17538","v":0},{"$f":"Import!M17738","v":0},{"$f":"Import!M17938","v":0},{"$f":"Import!M18138","v":0}]
[126,{"$f":"Import!M15939","v":"Select"},{"$f":"Import!M16139","v":"Select"},{"$f":"Import!M16339","v":"Select"},{"$f":"Import!M16539","v":"Select"},{"$f":"Import!M16739","v":"Select"},{"$f":"Import!M16939","v":"Select"},{"$f":"Import!M17139","v":"Select"},{"$f":"Import!M17339","v":0},{"$f":"Import!M17539","v":0},{"$f":"Import!M17739","v":0},{"$f":"Import!M17939","v":0},{"$f":"Import!M18139","v":0}]
[127,{"$f":"Import!M15940","v":"Select"},{"$f":"Import!M16140","v":"Select"},{"$f":"Import!M16340","v":"Select"},{"$f":"Import!M16540","v":"Select"},{"$f":"Import!M16740","v":"Select"},{"$f":"Import!M16940","v":"Select"},{"$f":"Import!M17140","v":"Select"},{"$f":"Import!M17340","v":0},{"$f":"Import!M17540","v":0},{"$f":"Import!M17740","v":0},{"$f":"Import!M17940","v":0},{"$f":"Import!M18140","v":0}]
[128,{"$f":"Import!M15941","v":"Select"},{"$f":"Import!M16141","v":"Select"},{"$f":"Import!M16341","v":"Select"},{"$f":"Import!M16541","v":"Select"},{"$f":"Import!M16741","v":"Select"},{"$f":"Import!M16941","v":"Select"},{"$f":"Import!M17141","v":"Select"},{"$f":"Import!M17341","v":0},{"$f":"Import!M17541","v":0},{"$f":"Import!M17741","v":0},{"$f":"Import!M17941","v":0},{"$f":"Import!M18141","v":0}]
[129,{"$f":"Import!M15942","v":"Select"},{"$f":"Import!M16142","v":"Select"},{"$f":"Import!M16342","v":"Select"},{"$f":"Import!M16542","v":"Select"},{"$f":"Import!M16742","v":"Select"},{"$f":"Import!M16942","v":"Select"},{"$f":"Import!M17142","v":"Select"},{"$f":"Import!M17342","v":0},{"$f":"Import!M17542","v":0},{"$f":"Import!M17742","v":0},{"$f":"Import!M17942","v":0},{"$f":"Import!M18142","v":0}]
[130,{"$f":"Import!M15943","v":"Select"},{"$f":"Import!M16143","v":"Select"},{"$f":"Import!M16343","v":"Select"},{"$f":"Import!M16543","v":"Select"},{"$f":"Import!M16743","v":"Select"},{"$f":"Import!M16943","v":"Select"},{"$f":"Import!M17143","v":"Select"},{"$f":"Import!M17343","v":0},{"$f":"Import!M17543","v":0},{"$f":"Import!M17743","v":0},{"$f":"Import!M17943","v":0},{"$f":"Import!M18143","v":0}]
[{"$f":"A1689+1","v":131},{"$f":"Import!M15944","v":"Select"},{"$f":"Import!M16144","v":"Select"},{"$f":"Import!M16344","v":"Select"},{"$f":"Import!M16544","v":"Select"},{"$f":"Import!M16744","v":"Select"},{"$f":"Import!M16944","v":"Select"},{"$f":"Import!M17144","v":"Select"},{"$f":"Import!M17344","v":0},{"$f":"Import!M17544","v":0},{"$f":"Import!M17744","v":0},{"$f":"Import!M17944","v":0},{"$f":"Import!M18144","v":0}]
[132,{"$f":"Import!M15945","v":"Select"},{"$f":"Import!M16145","v":"Select"},{"$f":"Import!M16345","v":"Select"},{"$f":"Import!M16545","v":"Select"},{"$f":"Import!M16745","v":"Select"},{"$f":"Import!M16945","v":"Select"},{"$f":"Import!M17145","v":"Select"},{"$f":"Import!M17345","v":0},{"$f":"Import!M17545","v":0},{"$f":"Import!M17745","v":0},{"$f":"Import!M17945","v":0},{"$f":"Import!M18145","v":0}]
[133,{"$f":"Import!M15946","v":"Select"},{"$f":"Import!M16146","v":"Select"},{"$f":"Import!M16346","v":"Select"},{"$f":"Import!M16546","v":"Select"},{"$f":"Import!M16746","v":"Select"},{"$f":"Import!M16946","v":"Select"},{"$f":"Import!M17146","v":"Select"},{"$f":"Import!M17346","v":0},{"$f":"Import!M17546","v":0},{"$f":"Import!M17746","v":0},{"$f":"Import!M17946","v":0},{"$f":"Import!M18146","v":0}]
[134,{"$f":"Import!M15947","v":"Select"},{"$f":"Import!M16147","v":"Select"},{"$f":"Import!M16347","v":"Select"},{"$f":"Import!M16547","v":"Select"},{"$f":"Import!M16747","v":"Select"},{"$f":"Import!M16947","v":"Select"},{"$f":"Import!M17147","v":"Select"},{"$f":"Import!M17347","v":0},{"$f":"Import!M17547","v":0},{"$f":"Import!M17747","v":0},{"$f":"Import!M17947","v":0},{"$f":"Import!M18147","v":0}]
[135,{"$f":"Import!M15948","v":"Select"},{"$f":"Import!M16148","v":"Select"},{"$f":"Import!M16348","v":"Select"},{"$f":"Import!M16548","v":"Select"},{"$f":"Import!M16748","v":"Select"},{"$f":"Import!M16948","v":"Select"},{"$f":"Import!M17148","v":"Select"},{"$f":"Import!M17348","v":0},{"$f":"Import!M17548","v":0},{"$f":"Import!M17748","v":0},{"$f":"Import!M17948","v":0},{"$f":"Import!M18148","v":0}]
[136,{"$f":"Import!M15949","v":"Select"},{"$f":"Import!M16149","v":"Select"},{"$f":"Import!M16349","v":"Select"},{"$f":"Import!M16549","v":"Select"},{"$f":"Import!M16749","v":"Select"},{"$f":"Import!M16949","v":"Select"},{"$f":"Import!M17149","v":"Select"},{"$f":"Import!M17349","v":0},{"$f":"Import!M17549","v":0},{"$f":"Import!M17749","v":0},{"$f":"Import!M17949","v":0},{"$f":"Import!M18149","v":0}]
[137,{"$f":"Import!M15950","v":"Select"},{"$f":"Import!M16150","v":"Select"},{"$f":"Import!M16350","v":"Select"},{"$f":"Import!M16550","v":"Select"},{"$f":"Import!M16750","v":"Select"},{"$f":"Import!M16950","v":"Select"},{"$f":"Import!M17150","v":"Select"},{"$f":"Import!M17350","v":0},{"$f":"Import!M17550","v":0},{"$f":"Import!M17750","v":0},{"$f":"Import!M17950","v":0},{"$f":"Import!M18150","v":0}]
[138,{"$f":"Import!M15951","v":"Select"},{"$f":"Import!M16151","v":"Select"},{"$f":"Import!M16351","v":"Select"},{"$f":"Import!M16551","v":"Select"},{"$f":"Import!M16751","v":"Select"},{"$f":"Import!M16951","v":"Select"},{"$f":"Import!M17151","v":"Select"},{"$f":"Import!M17351","v":0},{"$f":"Import!M17551","v":0},{"$f":"Import!M17751","v":0},{"$f":"Import!M17951","v":0},{"$f":"Import!M18151","v":0}]
[139,{"$f":"Import!M15952","v":"Select"},{"$f":"Import!M16152","v":"Select"},{"$f":"Import!M16352","v":"Select"},{"$f":"Import!M16552","v":"Select"},{"$f":"Import!M16752","v":"Select"},{"$f":"Import!M16952","v":"Select"},{"$f":"Import!M17152","v":"Select"},{"$f":"Import!M17352","v":0},{"$f":"Import!M17552","v":0},{"$f":"Import!M17752","v":0},{"$f":"Import!M17952","v":0},{"$f":"Import!M18152","v":0}]
[140,{"$f":"Import!M15953","v":"Select"},{"$f":"Import!M16153","v":"Select"},{"$f":"Import!M16353","v":"Select"},{"$f":"Import!M16553","v":"Select"},{"$f":"Import!M16753","v":"Select"},{"$f":"Import!M16953","v":"Select"},{"$f":"Import!M17153","v":"Select"},{"$f":"Import!M17353","v":0},{"$f":"Import!M17553","v":0},{"$f":"Import!M17753","v":0},{"$f":"Import!M17953","v":0},{"$f":"Import!M18153","v":0}]
[141,{"$f":"Import!M15954","v":"Select"},{"$f":"Import!M16154","v":"Select"},{"$f":"Import!M16354","v":"Select"},{"$f":"Import!M16554","v":"Select"},{"$f":"Import!M16754","v":"Select"},{"$f":"Import!M16954","v":"Select"},{"$f":"Import!M17154","v":"Select"},{"$f":"Import!M17354","v":0},{"$f":"Import!M17554","v":0},{"$f":"Import!M17754","v":0},{"$f":"Import!M17954","v":0},{"$f":"Import!M18154","v":0}]
[142,{"$f":"Import!M15955","v":"Select"},{"$f":"Import!M16155","v":"Select"},{"$f":"Import!M16355","v":"Select"},{"$f":"Import!M16555","v":"Select"},{"$f":"Import!M16755","v":"Select"},{"$f":"Import!M16955","v":"Select"},{"$f":"Import!M17155","v":"Select"},{"$f":"Import!M17355","v":0},{"$f":"Import!M17555","v":0},{"$f":"Import!M17755","v":0},{"$f":"Import!M17955","v":0},{"$f":"Import!M18155","v":0}]
[143,{"$f":"Import!M15956","v":"Select"},{"$f":"Import!M16156","v":"Select"},{"$f":"Import!M16356","v":"Select"},{"$f":"Import!M16556","v":"Select"},{"$f":"Import!M16756","v":"Select"},{"$f":"Import!M16956","v":"Select"},{"$f":"Import!M17156","v":"Select"},{"$f":"Import!M17356","v":0},{"$f":"Import!M17556","v":0},{"$f":"Import!M17756","v":0},{"$f":"Import!M17956","v":0},{"$f":"Import!M18156","v":0}]
[144,{"$f":"Import!M15957","v":"Select"},{"$f":"Import!M16157","v":"Select"},{"$f":"Import!M16357","v":"Select"},{"$f":"Import!M16557","v":"Select"},{"$f":"Import!M16757","v":"Select"},{"$f":"Import!M16957","v":"Select"},{"$f":"Import!M17157","v":"Select"},{"$f":"Import!M17357","v":0},{"$f":"Import!M17557","v":0},{"$f":"Import!M17757","v":0},{"$f":"Import!M17957","v":0},{"$f":"Import!M18157","v":0}]
[145,{"$f":"Import!M15958","v":"Select"},{"$f":"Import!M16158","v":"Select"},{"$f":"Import!M16358","v":"Select"},{"$f":"Import!M16558","v":"Select"},{"$f":"Import!M16758","v":"Select"},{"$f":"Import!M16958","v":"Select"},{"$f":"Import!M17158","v":"Select"},{"$f":"Import!M17358","v":0},{"$f":"Import!M17558","v":0},{"$f":"Import!M17758","v":0},{"$f":"Import!M17958","v":0},{"$f":"Import!M18158","v":0}]
[146,{"$f":"Import!M15959","v":"Select"},{"$f":"Import!M16159","v":"Select"},{"$f":"Import!M16359","v":"Select"},{"$f":"Import!M16559","v":"Select"},{"$f":"Import!M16759","v":"Select"},{"$f":"Import!M16959","v":"Select"},{"$f":"Import!M17159","v":"Select"},{"$f":"Import!M17359","v":0},{"$f":"Import!M17559","v":0},{"$f":"Import!M17759","v":0},{"$f":"Import!M17959","v":0},{"$f":"Import!M18159","v":0}]
[147,{"$f":"Import!M15960","v":"Select"},{"$f":"Import!M16160","v":"Select"},{"$f":"Import!M16360","v":"Select"},{"$f":"Import!M16560","v":"Select"},{"$f":"Import!M16760","v":"Select"},{"$f":"Import!M16960","v":"Select"},{"$f":"Import!M17160","v":"Select"},{"$f":"Import!M17360","v":0},{"$f":"Import!M17560","v":0},{"$f":"Import!M17760","v":0},{"$f":"Import!M17960","v":0},{"$f":"Import!M18160","v":0}]
[148,{"$f":"Import!M15961","v":"Select"},{"$f":"Import!M16161","v":"Select"},{"$f":"Import!M16361","v":"Select"},{"$f":"Import!M16561","v":"Select"},{"$f":"Import!M16761","v":"Select"},{"$f":"Import!M16961","v":"Select"},{"$f":"Import!M17161","v":"Select"},{"$f":"Import!M17361","v":0},{"$f":"Import!M17561","v":0},{"$f":"Import!M17761","v":0},{"$f":"Import!M17961","v":0},{"$f":"Import!M18161","v":0}]
[149,{"$f":"Import!M15962","v":"Select"},{"$f":"Import!M16162","v":"Select"},{"$f":"Import!M16362","v":"Select"},{"$f":"Import!M16562","v":"Select"},{"$f":"Import!M16762","v":"Select"},{"$f":"Import!M16962","v":"Select"},{"$f":"Import!M17162","v":"Select"},{"$f":"Import!M17362","v":0},{"$f":"Import!M17562","v":0},{"$f":"Import!M17762","v":0},{"$f":"Import!M17962","v":0},{"$f":"Import!M18162","v":0}]
[150,{"$f":"Import!M15963","v":"Select"},{"$f":"Import!M16163","v":"Select"},{"$f":"Import!M16363","v":"Select"},{"$f":"Import!M16563","v":"Select"},{"$f":"Import!M16763","v":"Select"},{"$f":"Import!M16963","v":"Select"},{"$f":"Import!M17163","v":"Select"},{"$f":"Import!M17363","v":0},{"$f":"Import!M17563","v":0},{"$f":"Import!M17763","v":0},{"$f":"Import!M17963","v":0},{"$f":"Import!M18163","v":0}]
[151,{"$f":"Import!M15964","v":"Select"},{"$f":"Import!M16164","v":"Select"},{"$f":"Import!M16364","v":"Select"},{"$f":"Import!M16564","v":"Select"},{"$f":"Import!M16764","v":"Select"},{"$f":"Import!M16964","v":"Select"},{"$f":"Import!M17164","v":"Select"},{"$f":"Import!M17364","v":0},{"$f":"Import!M17564","v":0},{"$f":"Import!M17764","v":0},{"$f":"Import!M17964","v":0},{"$f":"Import!M18164","v":0}]
[152,{"$f":"Import!M15965","v":"Select"},{"$f":"Import!M16165","v":"Select"},{"$f":"Import!M16365","v":"Select"},{"$f":"Import!M16565","v":"Select"},{"$f":"Import!M16765","v":"Select"},{"$f":"Import!M16965","v":"Select"},{"$f":"Import!M17165","v":"Select"},{"$f":"Import!M17365","v":0},{"$f":"Import!M17565","v":0},{"$f":"Import!M17765","v":0},{"$f":"Import!M17965","v":0},{"$f":"Import!M18165","v":0}]
[153,{"$f":"Import!M15966","v":"Select"},{"$f":"Import!M16166","v":"Select"},{"$f":"Import!M16366","v":"Select"},{"$f":"Import!M16566","v":"Select"},{"$f":"Import!M16766","v":"Select"},{"$f":"Import!M16966","v":"Select"},{"$f":"Import!M17166","v":"Select"},{"$f":"Import!M17366","v":0},{"$f":"Import!M17566","v":0},{"$f":"Import!M17766","v":0},{"$f":"Import!M17966","v":0},{"$f":"Import!M18166","v":0}]
[154,{"$f":"Import!M15967","v":"Select"},{"$f":"Import!M16167","v":"Select"},{"$f":"Import!M16367","v":"Select"},{"$f":"Import!M16567","v":"Select"},{"$f":"Import!M16767","v":"Select"},{"$f":"Import!M16967","v":"Select"},{"$f":"Import!M17167","v":"Select"},{"$f":"Import!M17367","v":0},{"$f":"Import!M17567","v":0},{"$f":"Import!M17767","v":0},{"$f":"Import!M17967","v":0},{"$f":"Import!M18167","v":0}]
[155,{"$f":"Import!M15968","v":"Select"},{"$f":"Import!M16168","v":"Select"},{"$f":"Import!M16368","v":"Select"},{"$f":"Import!M16568","v":"Select"},{"$f":"Import!M16768","v":"Select"},{"$f":"Import!M16968","v":"Select"},{"$f":"Import!M17168","v":"Select"},{"$f":"Import!M17368","v":0},{"$f":"Import!M17568","v":0},{"$f":"Import!M17768","v":0},{"$f":"Import!M17968","v":0},{"$f":"Import!M18168","v":0}]
[156,{"$f":"Import!M15969","v":"Select"},{"$f":"Import!M16169","v":"Select"},{"$f":"Import!M16369","v":"Select"},{"$f":"Import!M16569","v":"Select"},{"$f":"Import!M16769","v":"Select"},{"$f":"Import!M16969","v":"Select"},{"$f":"Import!M17169","v":"Select"},{"$f":"Import!M17369","v":0},{"$f":"Import!M17569","v":0},{"$f":"Import!M17769","v":0},{"$f":"Import!M17969","v":0},{"$f":"Import!M18169","v":0}]
[157,{"$f":"Import!M15970","v":"Select"},{"$f":"Import!M16170","v":"Select"},{"$f":"Import!M16370","v":"Select"},{"$f":"Import!M16570","v":"Select"},{"$f":"Import!M16770","v":"Select"},{"$f":"Import!M16970","v":"Select"},{"$f":"Import!M17170","v":"Select"},{"$f":"Import!M17370","v":0},{"$f":"Import!M17570","v":0},{"$f":"Import!M17770","v":0},{"$f":"Import!M17970","v":0},{"$f":"Import!M18170","v":0}]
[158,{"$f":"Import!M15971","v":"Select"},{"$f":"Import!M16171","v":"Select"},{"$f":"Import!M16371","v":"Select"},{"$f":"Import!M16571","v":"Select"},{"$f":"Import!M16771","v":"Select"},{"$f":"Import!M16971","v":"Select"},{"$f":"Import!M17171","v":"Select"},{"$f":"Import!M17371","v":0},{"$f":"Import!M17571","v":0},{"$f":"Import!M17771","v":0},{"$f":"Import!M17971","v":0},{"$f":"Import!M18171","v":0}]
[159,{"$f":"Import!M15972","v":"Select"},{"$f":"Import!M16172","v":"Select"},{"$f":"Import!M16372","v":"Select"},{"$f":"Import!M16572","v":"Select"},{"$f":"Import!M16772","v":"Select"},{"$f":"Import!M16972","v":"Select"},{"$f":"Import!M17172","v":"Select"},{"$f":"Import!M17372","v":0},{"$f":"Import!M17572","v":0},{"$f":"Import!M17772","v":0},{"$f":"Import!M17972","v":0},{"$f":"Import!M18172","v":0}]
[160,{"$f":"Import!M15973","v":"Select"},{"$f":"Import!M16173","v":"Select"},{"$f":"Import!M16373","v":"Select"},{"$f":"Import!M16573","v":"Select"},{"$f":"Import!M16773","v":"Select"},{"$f":"Import!M16973","v":"Select"},{"$f":"Import!M17173","v":"Select"},{"$f":"Import!M17373","v":0},{"$f":"Import!M17573","v":0},{"$f":"Import!M17773","v":0},{"$f":"Import!M17973","v":0},{"$f":"Import!M18173","v":0}]
[161,{"$f":"Import!M15974","v":"Select"},{"$f":"Import!M16174","v":"Select"},{"$f":"Import!M16374","v":"Select"},{"$f":"Import!M16574","v":"Select"},{"$f":"Import!M16774","v":"Select"},{"$f":"Import!M16974","v":"Select"},{"$f":"Import!M17174","v":"Select"},{"$f":"Import!M17374","v":0},{"$f":"Import!M17574","v":0},{"$f":"Import!M17774","v":0},{"$f":"Import!M17974","v":0},{"$f":"Import!M18174","v":0}]
[162,{"$f":"Import!M15975","v":"Select"},{"$f":"Import!M16175","v":"Select"},{"$f":"Import!M16375","v":"Select"},{"$f":"Import!M16575","v":"Select"},{"$f":"Import!M16775","v":"Select"},{"$f":"Import!M16975","v":"Select"},{"$f":"Import!M17175","v":"Select"},{"$f":"Import!M17375","v":0},{"$f":"Import!M17575","v":0},{"$f":"Import!M17775","v":0},{"$f":"Import!M17975","v":0},{"$f":"Import!M18175","v":0}]
[163,{"$f":"Import!M15976","v":"Select"},{"$f":"Import!M16176","v":"Select"},{"$f":"Import!M16376","v":"Select"},{"$f":"Import!M16576","v":"Select"},{"$f":"Import!M16776","v":"Select"},{"$f":"Import!M16976","v":"Select"},{"$f":"Import!M17176","v":"Select"},{"$f":"Import!M17376","v":0},{"$f":"Import!M17576","v":0},{"$f":"Import!M17776","v":0},{"$f":"Import!M17976","v":0},{"$f":"Import!M18176","v":0}]
[164,{"$f":"Import!M15977","v":"Select"},{"$f":"Import!M16177","v":"Select"},{"$f":"Import!M16377","v":"Select"},{"$f":"Import!M16577","v":"Select"},{"$f":"Import!M16777","v":"Select"},{"$f":"Import!M16977","v":"Select"},{"$f":"Import!M17177","v":"Select"},{"$f":"Import!M17377","v":0},{"$f":"Import!M17577","v":0},{"$f":"Import!M17777","v":0},{"$f":"Import!M17977","v":0},{"$f":"Import!M18177","v":0}]
[165,{"$f":"Import!M15978","v":"Select"},{"$f":"Import!M16178","v":"Select"},{"$f":"Import!M16378","v":"Select"},{"$f":"Import!M16578","v":"Select"},{"$f":"Import!M16778","v":"Select"},{"$f":"Import!M16978","v":"Select"},{"$f":"Import!M17178","v":"Select"},{"$f":"Import!M17378","v":0},{"$f":"Import!M17578","v":0},{"$f":"Import!M17778","v":0},{"$f":"Import!M17978","v":0},{"$f":"Import!M18178","v":0}]
[166,{"$f":"Import!M15979","v":"Select"},{"$f":"Import!M16179","v":"Select"},{"$f":"Import!M16379","v":"Select"},{"$f":"Import!M16579","v":"Select"},{"$f":"Import!M16779","v":"Select"},{"$f":"Import!M16979","v":"Select"},{"$f":"Import!M17179","v":"Select"},{"$f":"Import!M17379","v":0},{"$f":"Import!M17579","v":0},{"$f":"Import!M17779","v":0},{"$f":"Import!M17979","v":0},{"$f":"Import!M18179","v":0}]
[167,{"$f":"Import!M15980","v":"Select"},{"$f":"Import!M16180","v":"Select"},{"$f":"Import!M16380","v":"Select"},{"$f":"Import!M16580","v":"Select"},{"$f":"Import!M16780","v":"Select"},{"$f":"Import!M16980","v":"Select"},{"$f":"Import!M17180","v":"Select"},{"$f":"Import!M17380","v":0},{"$f":"Import!M17580","v":0},{"$f":"Import!M17780","v":0},{"$f":"Import!M17980","v":0},{"$f":"Import!M18180","v":0}]
[168,{"$f":"Import!M15981","v":"Select"},{"$f":"Import!M16181","v":"Select"},{"$f":"Import!M16381","v":"Select"},{"$f":"Import!M16581","v":"Select"},{"$f":"Import!M16781","v":"Select"},{"$f":"Import!M16981","v":"Select"},{"$f":"Import!M17181","v":"Select"},{"$f":"Import!M17381","v":0},{"$f":"Import!M17581","v":0},{"$f":"Import!M17781","v":0},{"$f":"Import!M17981","v":0},{"$f":"Import!M18181","v":0}]
[169,{"$f":"Import!M15982","v":"Select"},{"$f":"Import!M16182","v":"Select"},{"$f":"Import!M16382","v":"Select"},{"$f":"Import!M16582","v":"Select"},{"$f":"Import!M16782","v":"Select"},{"$f":"Import!M16982","v":"Select"},{"$f":"Import!M17182","v":"Select"},{"$f":"Import!M17382","v":0},{"$f":"Import!M17582","v":0},{"$f":"Import!M17782","v":0},{"$f":"Import!M17982","v":0},{"$f":"Import!M18182","v":0}]
[170,{"$f":"Import!M15983","v":"Select"},{"$f":"Import!M16183","v":"Select"},{"$f":"Import!M16383","v":"Select"},{"$f":"Import!M16583","v":"Select"},{"$f":"Import!M16783","v":"Select"},{"$f":"Import!M16983","v":"Select"},{"$f":"Import!M17183","v":"Select"},{"$f":"Import!M17383","v":0},{"$f":"Import!M17583","v":0},{"$f":"Import!M17783","v":0},{"$f":"Import!M17983","v":0},{"$f":"Import!M18183","v":0}]
[171,{"$f":"Import!M15984","v":"Select"},{"$f":"Import!M16184","v":"Select"},{"$f":"Import!M16384","v":"Select"},{"$f":"Import!M16584","v":"Select"},{"$f":"Import!M16784","v":"Select"},{"$f":"Import!M16984","v":"Select"},{"$f":"Import!M17184","v":"Select"},{"$f":"Import!M17384","v":0},{"$f":"Import!M17584","v":0},{"$f":"Import!M17784","v":0},{"$f":"Import!M17984","v":0},{"$f":"Import!M18184","v":0}]
[172,{"$f":"Import!M15985","v":"Select"},{"$f":"Import!M16185","v":"Select"},{"$f":"Import!M16385","v":"Select"},{"$f":"Import!M16585","v":"Select"},{"$f":"Import!M16785","v":"Select"},{"$f":"Import!M16985","v":"Select"},{"$f":"Import!M17185","v":"Select"},{"$f":"Import!M17385","v":0},{"$f":"Import!M17585","v":0},{"$f":"Import!M17785","v":0},{"$f":"Import!M17985","v":0},{"$f":"Import!M18185","v":0}]
[173,{"$f":"Import!M15986","v":"Select"},{"$f":"Import!M16186","v":"Select"},{"$f":"Import!M16386","v":"Select"},{"$f":"Import!M16586","v":"Select"},{"$f":"Import!M16786","v":"Select"},{"$f":"Import!M16986","v":"Select"},{"$f":"Import!M17186","v":"Select"},{"$f":"Import!M17386","v":0},{"$f":"Import!M17586","v":0},{"$f":"Import!M17786","v":0},{"$f":"Import!M17986","v":0},{"$f":"Import!M18186","v":0}]
[174,{"$f":"Import!M15987","v":"Select"},{"$f":"Import!M16187","v":"Select"},{"$f":"Import!M16387","v":"Select"},{"$f":"Import!M16587","v":"Select"},{"$f":"Import!M16787","v":"Select"},{"$f":"Import!M16987","v":"Select"},{"$f":"Import!M17187","v":"Select"},{"$f":"Import!M17387","v":0},{"$f":"Import!M17587","v":0},{"$f":"Import!M17787","v":0},{"$f":"Import!M17987","v":0},{"$f":"Import!M18187","v":0}]
[175,{"$f":"Import!M15988","v":"Select"},{"$f":"Import!M16188","v":"Select"},{"$f":"Import!M16388","v":"Select"},{"$f":"Import!M16588","v":"Select"},{"$f":"Import!M16788","v":"Select"},{"$f":"Import!M16988","v":"Select"},{"$f":"Import!M17188","v":"Select"},{"$f":"Import!M17388","v":0},{"$f":"Import!M17588","v":0},{"$f":"Import!M17788","v":0},{"$f":"Import!M17988","v":0},{"$f":"Import!M18188","v":0}]
[176,{"$f":"Import!M15989","v":"Select"},{"$f":"Import!M16189","v":"Select"},{"$f":"Import!M16389","v":"Select"},{"$f":"Import!M16589","v":"Select"},{"$f":"Import!M16789","v":"Select"},{"$f":"Import!M16989","v":"Select"},{"$f":"Import!M17189","v":"Select"},{"$f":"Import!M17389","v":0},{"$f":"Import!M17589","v":0},{"$f":"Import!M17789","v":0},{"$f":"Import!M17989","v":0},{"$f":"Import!M18189","v":0}]
[177,{"$f":"Import!M15990","v":"Select"},{"$f":"Import!M16190","v":"Select"},{"$f":"Import!M16390","v":"Select"},{"$f":"Import!M16590","v":"Select"},{"$f":"Import!M16790","v":"Select"},{"$f":"Import!M16990","v":"Select"},{"$f":"Import!M17190","v":"Select"},{"$f":"Import!M17390","v":0},{"$f":"Import!M17590","v":0},{"$f":"Import!M17790","v":0},{"$f":"Import!M17990","v":0},{"$f":"Import!M18190","v":0}]
[178,{"$f":"Import!M15991","v":"Select"},{"$f":"Import!M16191","v":"Select"},{"$f":"Import!M16391","v":"Select"},{"$f":"Import!M16591","v":"Select"},{"$f":"Import!M16791","v":"Select"},{"$f":"Import!M16991","v":"Select"},{"$f":"Import!M17191","v":"Select"},{"$f":"Import!M17391","v":0},{"$f":"Import!M17591","v":0},{"$f":"Import!M17791","v":0},{"$f":"Import!M17991","v":0},{"$f":"Import!M18191","v":0}]
[179,{"$f":"Import!M15992","v":"Select"},{"$f":"Import!M16192","v":"Select"},{"$f":"Import!M16392","v":"Select"},{"$f":"Import!M16592","v":"Select"},{"$f":"Import!M16792","v":"Select"},{"$f":"Import!M16992","v":"Select"},{"$f":"Import!M17192","v":"Select"},{"$f":"Import!M17392","v":0},{"$f":"Import!M17592","v":0},{"$f":"Import!M17792","v":0},{"$f":"Import!M17992","v":0},{"$f":"Import!M18192","v":0}]
[180,{"$f":"Import!M15993","v":"Select"},{"$f":"Import!M16193","v":"Select"},{"$f":"Import!M16393","v":"Select"},{"$f":"Import!M16593","v":"Select"},{"$f":"Import!M16793","v":"Select"},{"$f":"Import!M16993","v":"Select"},{"$f":"Import!M17193","v":"Select"},{"$f":"Import!M17393","v":0},{"$f":"Import!M17593","v":0},{"$f":"Import!M17793","v":0},{"$f":"Import!M17993","v":0},{"$f":"Import!M18193","v":0}]
[181,{"$f":"Import!M15994","v":"Select"},{"$f":"Import!M16194","v":"Select"},{"$f":"Import!M16394","v":"Select"},{"$f":"Import!M16594","v":"Select"},{"$f":"Import!M16794","v":"Select"},{"$f":"Import!M16994","v":"Select"},{"$f":"Import!M17194","v":"Select"},{"$f":"Import!M17394","v":0},{"$f":"Import!M17594","v":0},{"$f":"Import!M17794","v":0},{"$f":"Import!M17994","v":0},{"$f":"Import!M18194","v":0}]
[182,{"$f":"Import!M15995","v":"Select"},{"$f":"Import!M16195","v":"Select"},{"$f":"Import!M16395","v":"Select"},{"$f":"Import!M16595","v":"Select"},{"$f":"Import!M16795","v":"Select"},{"$f":"Import!M16995","v":"Select"},{"$f":"Import!M17195","v":"Select"},{"$f":"Import!M17395","v":0},{"$f":"Import!M17595","v":0},{"$f":"Import!M17795","v":0},{"$f":"Import!M17995","v":0},{"$f":"Import!M18195","v":0}]
[183,{"$f":"Import!M15996","v":"Select"},{"$f":"Import!M16196","v":"Select"},{"$f":"Import!M16396","v":"Select"},{"$f":"Import!M16596","v":"Select"},{"$f":"Import!M16796","v":"Select"},{"$f":"Import!M16996","v":"Select"},{"$f":"Import!M17196","v":"Select"},{"$f":"Import!M17396","v":0},{"$f":"Import!M17596","v":0},{"$f":"Import!M17796","v":0},{"$f":"Import!M17996","v":0},{"$f":"Import!M18196","v":0}]
[184,{"$f":"Import!M15997","v":"Select"},{"$f":"Import!M16197","v":"Select"},{"$f":"Import!M16397","v":"Select"},{"$f":"Import!M16597","v":"Select"},{"$f":"Import!M16797","v":"Select"},{"$f":"Import!M16997","v":"Select"},{"$f":"Import!M17197","v":"Select"},{"$f":"Import!M17397","v":0},{"$f":"Import!M17597","v":0},{"$f":"Import!M17797","v":0},{"$f":"Import!M17997","v":0},{"$f":"Import!M18197","v":0}]
[185,{"$f":"Import!M15998","v":"Select"},{"$f":"Import!M16198","v":"Select"},{"$f":"Import!M16398","v":"Select"},{"$f":"Import!M16598","v":"Select"},{"$f":"Import!M16798","v":"Select"},{"$f":"Import!M16998","v":"Select"},{"$f":"Import!M17198","v":"Select"},{"$f":"Import!M17398","v":0},{"$f":"Import!M17598","v":0},{"$f":"Import!M17798","v":0},{"$f":"Import!M17998","v":0},{"$f":"Import!M18198","v":0}]
[186,{"$f":"Import!M15999","v":"Select"},{"$f":"Import!M16199","v":"Select"},{"$f":"Import!M16399","v":"Select"},{"$f":"Import!M16599","v":"Select"},{"$f":"Import!M16799","v":"Select"},{"$f":"Import!M16999","v":"Select"},{"$f":"Import!M17199","v":"Select"},{"$f":"Import!M17399","v":0},{"$f":"Import!M17599","v":0},{"$f":"Import!M17799","v":0},{"$f":"Import!M17999","v":0},{"$f":"Import!M18199","v":0}]
[187,{"$f":"Import!M16000","v":"Select"},{"$f":"Import!M16200","v":"Select"},{"$f":"Import!M16400","v":"Select"},{"$f":"Import!M16600","v":"Select"},{"$f":"Import!M16800","v":"Select"},{"$f":"Import!M17000","v":"Select"},{"$f":"Import!M17200","v":"Select"},{"$f":"Import!M17400","v":0},{"$f":"Import!M17600","v":0},{"$f":"Import!M17800","v":0},{"$f":"Import!M18000","v":0},{"$f":"Import!M18200","v":0}]
[188,{"$f":"Import!M16001","v":"Select"},{"$f":"Import!M16201","v":"Select"},{"$f":"Import!M16401","v":"Select"},{"$f":"Import!M16601","v":"Select"},{"$f":"Import!M16801","v":"Select"},{"$f":"Import!M17001","v":"Select"},{"$f":"Import!M17201","v":"Select"},{"$f":"Import!M17401","v":0},{"$f":"Import!M17601","v":0},{"$f":"Import!M17801","v":0},{"$f":"Import!M18001","v":0},{"$f":"Import!M18201","v":0}]
[189,{"$f":"Import!M16002","v":"Select"},{"$f":"Import!M16202","v":"Select"},{"$f":"Import!M16402","v":"Select"},{"$f":"Import!M16602","v":"Select"},{"$f":"Import!M16802","v":"Select"},{"$f":"Import!M17002","v":"Select"},{"$f":"Import!M17202","v":"Select"},{"$f":"Import!M17402","v":0},{"$f":"Import!M17602","v":0},{"$f":"Import!M17802","v":0},{"$f":"Import!M18002","v":0},{"$f":"Import!M18202","v":0}]
[190,{"$f":"Import!M16003","v":"Select"},{"$f":"Import!M16203","v":"Select"},{"$f":"Import!M16403","v":"Select"},{"$f":"Import!M16603","v":"Select"},{"$f":"Import!M16803","v":"Select"},{"$f":"Import!M17003","v":"Select"},{"$f":"Import!M17203","v":"Select"},{"$f":"Import!M17403","v":0},{"$f":"Import!M17603","v":0},{"$f":"Import!M17803","v":0},{"$f":"Import!M18003","v":0},{"$f":"Import!M18203","v":0}]
[191,{"$f":"Import!M16004","v":"Select"},{"$f":"Import!M16204","v":"Select"},{"$f":"Import!M16404","v":"Select"},{"$f":"Import!M16604","v":"Select"},{"$f":"Import!M16804","v":"Select"},{"$f":"Import!M17004","v":"Select"},{"$f":"Import!M17204","v":"Select"},{"$f":"Import!M17404","v":0},{"$f":"Import!M17604","v":0},{"$f":"Import!M17804","v":0},{"$f":"Import!M18004","v":0},{"$f":"Import!M18204","v":0}]
[192,{"$f":"Import!M16005","v":"Select"},{"$f":"Import!M16205","v":"Select"},{"$f":"Import!M16405","v":"Select"},{"$f":"Import!M16605","v":"Select"},{"$f":"Import!M16805","v":"Select"},{"$f":"Import!M17005","v":"Select"},{"$f":"Import!M17205","v":"Select"},{"$f":"Import!M17405","v":0},{"$f":"Import!M17605","v":0},{"$f":"Import!M17805","v":0},{"$f":"Import!M18005","v":0},{"$f":"Import!M18205","v":0}]
[193,{"$f":"Import!M16006","v":"Select"},{"$f":"Import!M16206","v":"Select"},{"$f":"Import!M16406","v":"Select"},{"$f":"Import!M16606","v":"Select"},{"$f":"Import!M16806","v":"Select"},{"$f":"Import!M17006","v":"Select"},{"$f":"Import!M17206","v":"Select"},{"$f":"Import!M17406","v":0},{"$f":"Import!M17606","v":0},{"$f":"Import!M17806","v":0},{"$f":"Import!M18006","v":0},{"$f":"Import!M18206","v":0}]
[194,{"$f":"Import!M16007","v":"Select"},{"$f":"Import!M16207","v":"Select"},{"$f":"Import!M16407","v":"Select"},{"$f":"Import!M16607","v":"Select"},{"$f":"Import!M16807","v":"Select"},{"$f":"Import!M17007","v":"Select"},{"$f":"Import!M17207","v":"Select"},{"$f":"Import!M17407","v":0},{"$f":"Import!M17607","v":0},{"$f":"Import!M17807","v":0},{"$f":"Import!M18007","v":0},{"$f":"Import!M18207","v":0}]
[{"$f":"A1753+1","v":195},{"$f":"Import!M16008","v":"Select"},{"$f":"Import!M16208","v":"Select"},{"$f":"Import!M16408","v":"Select"},{"$f":"Import!M16608","v":"Select"},{"$f":"Import!M16808","v":"Select"},{"$f":"Import!M17008","v":"Select"},{"$f":"Import!M17208","v":"Select"},{"$f":"Import!M17408","v":0},{"$f":"Import!M17608","v":0},{"$f":"Import!M17808","v":0},{"$f":"Import!M18008","v":0},{"$f":"Import!M18208","v":0}]
[196,{"$f":"Import!M16009","v":"Select"},{"$f":"Import!M16209","v":"Select"},{"$f":"Import!M16409","v":"Select"},{"$f":"Import!M16609","v":"Select"},{"$f":"Import!M16809","v":"Select"},{"$f":"Import!M17009","v":"Select"},{"$f":"Import!M17209","v":"Select"},{"$f":"Import!M17409","v":0},{"$f":"Import!M17609","v":0},{"$f":"Import!M17809","v":0},{"$f":"Import!M18009","v":0},{"$f":"Import!M18209","v":0}]
[197,{"$f":"Import!M16010","v":"Select"},{"$f":"Import!M16210","v":"Select"},{"$f":"Import!M16410","v":"Select"},{"$f":"Import!M16610","v":"Select"},{"$f":"Import!M16810","v":"Select"},{"$f":"Import!M17010","v":"Select"},{"$f":"Import!M17210","v":"Select"},{"$f":"Import!M17410","v":0},{"$f":"Import!M17610","v":0},{"$f":"Import!M17810","v":0},{"$f":"Import!M18010","v":0},{"$f":"Import!M18210","v":0}]
[198,{"$f":"Import!M16011","v":"Select"},{"$f":"Import!M16211","v":"Select"},{"$f":"Import!M16411","v":"Select"},{"$f":"Import!M16611","v":"Select"},{"$f":"Import!M16811","v":"Select"},{"$f":"Import!M17011","v":"Select"},{"$f":"Import!M17211","v":"Select"},{"$f":"Import!M17411","v":0},{"$f":"Import!M17611","v":0},{"$f":"Import!M17811","v":0},{"$f":"Import!M18011","v":0},{"$f":"Import!M18211","v":0}]
[199,{"$f":"Import!M16012","v":"Select"},{"$f":"Import!M16212","v":"Select"},{"$f":"Import!M16412","v":"Select"},{"$f":"Import!M16612","v":"Select"},{"$f":"Import!M16812","v":"Select"},{"$f":"Import!M17012","v":"Select"},{"$f":"Import!M17212","v":"Select"},{"$f":"Import!M17412","v":0},{"$f":"Import!M17612","v":0},{"$f":"Import!M17812","v":0},{"$f":"Import!M18012","v":0},{"$f":"Import!M18212","v":0}]
[200,{"$f":"Import!M16013","v":"Select"},{"$f":"Import!M16213","v":"Select"},{"$f":"Import!M16413","v":"Select"},{"$f":"Import!M16613","v":"Select"},{"$f":"Import!M16813","v":"Select"},{"$f":"Import!M17013","v":"Select"},{"$f":"Import!M17213","v":"Select"},{"$f":"Import!M17413","v":0},{"$f":"Import!M17613","v":0},{"$f":"Import!M17813","v":0},{"$f":"Import!M18013","v":0},{"$f":"Import!M18213","v":0}]
[]
[null,"Total Derivatives",null,null,null,null,null,null,{"$f":"SUM(I1560:I1759)","v":0},{"$f":"SUM(J1560:J1759)","v":0},{"$f":"SUM(K1560:K1759)","v":0}]
[]
[null,"(J) INFORMATION ON EXPOSURES TO FINANCIAL INSTITUTIONS AND UNLISTED COUNTERPARTIES"]
[null,null,null,null,null,"Commercial Loans and Mortgages"]
[null,null,{"$f":"YEAR($C$3)","v":2023},"Fair Value",null,null,"Securitisations ","Other debt securities"]
[null,"Financial Institutions","Equities","Corporate Bonds","Corporate Loans",null,null,null,null,"Comments"]
[1,"Exposure to Financial Institutions (Banks, Insurance Companies, Other Financials) - Investment Grade, BSCR Rating 1-3",{"$f":"Import!M18214","v":0},{"$f":"Import!M18218","v":0},{"$f":"Import!M18222","v":0},{"$f":"Import!M18226","v":0},{"$f":"Import!M18230","v":0},{"$f":"Import!M18234","v":0},null,{"$f":"Import!M18238","v":0}]
[2,"Exposure to Financial Institutions (Banks, Insurance Companies, Other Financials) - Investment Grade, BSCR Rating 4",{"$f":"Import!M18215","v":0},{"$f":"Import!M18219","v":0},{"$f":"Import!M18223","v":0},{"$f":"Import!M18227","v":0},{"$f":"Import!M18231","v":0},{"$f":"Import!M18235","v":0},null,{"$f":"Import!M18239","v":0}]
[3,"Exposure to Financial Institutions (Banks, Insurance Companies, Other Financials) - Below Investment Grade",{"$f":"Import!M18216","v":0},{"$f":"Import!M18220","v":0},{"$f":"Import!M18224","v":0},{"$f":"Import!M18228","v":0},{"$f":"Import!M18232","v":0},{"$f":"Import!M18236","v":0},null,{"$f":"Import!M18240","v":0}]
[4,"Exposure to Financial Institutions (Banks, Insurance Companies, Other Financials) - Unrated",{"$f":"Import!M18217","v":0},{"$f":"Import!M18221","v":0},{"$f":"Import!M18225","v":0},{"$f":"Import!M18229","v":0},{"$f":"Import!M18233","v":0},{"$f":"Import!M18237","v":0},null,{"$f":"Import!M18241","v":0}]
[]
[null,"Total Exposures to Financial Institutions",{"$f":"SUM(C1767:C1770)","v":0},{"$f":"SUM(D1767:D1770)","v":0},0,0,0,0]
[]
[null,"Of which","Equities","Corporate Bonds","Corporate Loans","Other",null,null,null,"Comments"]
[5,"- exposures to Banks",{"$f":"Import!M18242","v":0},{"$f":"Import!M18245","v":0},{"$f":"Import!M18248","v":0},{"$f":"Import!M18251","v":0},null,null,null,{"$f":"Import!M18254","v":0}]
[6,"- exposures to Insurers",{"$f":"Import!M18243","v":0},{"$f":"Import!M18246","v":0},{"$f":"Import!M18249","v":0},{"$f":"Import!M18252","v":0},null,null,null,{"$f":"Import!M18255","v":0}]
[7,"- exposures to Other Financial Institutions",{"$f":"Import!M18244","v":0},{"$f":"Import!M18247","v":0},{"$f":"Import!M18250","v":0},{"$f":"Import!M18253","v":0},null,null,null,{"$f":"Import!M18256","v":0}]
[]
[null,"Total Exposures",{"$f":"SUM(C1775:C1777)","v":0},{"$f":"SUM(D1775:D1777)","v":0},{"$f":"SUM(E1775:E1777)","v":0},{"$f":"SUM(F1775:F1777)","v":0}]
[]
[null,null,{"$f":"YEAR($C$3)","v":2023},"Fair Value"]
[null,"Unlisted Counterparties","Equities","Corporate Bonds","Corporate Loans","Other",null,null,null,"Comments"]
[8,"Direct Exposure to Unlisted Counterparties - Investment Grade, BSCR Rating 1-3",{"$f":"Import!M18257","v":0},{"$f":"Import!M18261","v":0},{"$f":"Import!M18265","v":0},{"$f":"Import!M18269","v":0},null,null,null,{"$f":"Import!M18273","v":0}]
[9,"Direct Exposure to Unlisted Counterparties - Investment Grade, BSCR Rating 4",{"$f":"Import!M18258","v":0},{"$f":"Import!M18262","v":0},{"$f":"Import!M18266","v":0},{"$f":"Import!M18270","v":0},null,null,null,{"$f":"Import!M18274","v":0}]
[10,"Direct Exposure to Unlisted Counterparties - Below Investment Grade",{"$f":"Import!M18259","v":0},{"$f":"Import!M18263","v":0},{"$f":"Import!M18267","v":0},{"$f":"Import!M18271","v":0},null,null,null,{"$f":"Import!M18275","v":0}]
[11,"Direct Exposure to Unlisted Counterparties - Unrated",{"$f":"Import!M18260","v":0},{"$f":"Import!M18264","v":0},{"$f":"Import!M18268","v":0},{"$f":"Import!M18272","v":0},null,null,null,{"$f":"Import!M18276","v":0}]
[]
[null,"Total Direct Exposures to Unlisted Counterparties",{"$f":"SUM(C1783:C1786)","v":0},{"$f":"SUM(D1783:D1786)","v":0},0,0]
[]
[null,"(K) OTHER ASSETS"]
[]
[null,null,"Enter # of Asset Types",{"$f":"Import!M18277","v":0}]
[]
[null,null,null,null,{"$f":"YEAR($C$3)","v":2023},2023]
[null,"Asset Type","Currency","BSCR Rating","Nominal Amount","Fair Value","Comments"]
[1,{"$f":"Import!M18278","v":"Select"},{"$f":"Import!M18478","v":"Select"},{"$f":"Import!M18678","v":"Select"},{"$f":"Import!M18878","v":0},{"$f":"Import!M19078","v":0},{"$f":"Import!M19278","v":0}]
[{"$f":"A1796+1","v":2},{"$f":"Import!M18279","v":"Select"},{"$f":"Import!M18479","v":"Select"},{"$f":"Import!M18679","v":"Select"},{"$f":"Import!M18879","v":0},{"$f":"Import!M19079","v":0},{"$f":"Import!M19279","v":0}]
[{"$f":"A1797+1","v":3},{"$f":"Import!M18280","v":"Select"},{"$f":"Import!M18480","v":"Select"},{"$f":"Import!M18680","v":"Select"},{"$f":"Import!M18880","v":0},{"$f":"Import!M19080","v":0},{"$f":"Import!M19280","v":0}]
[4,{"$f":"Import!M18281","v":"Select"},{"$f":"Import!M18481","v":"Select"},{"$f":"Import!M18681","v":"Select"},{"$f":"Import!M18881","v":0},{"$f":"Import!M19081","v":0},{"$f":"Import!M19281","v":0}]
[5,{"$f":"Import!M18282","v":"Select"},{"$f":"Import!M18482","v":"Select"},{"$f":"Import!M18682","v":"Select"},{"$f":"Import!M18882","v":0},{"$f":"Import!M19082","v":0},{"$f":"Import!M19282","v":0}]
[6,{"$f":"Import!M18283","v":"Select"},{"$f":"Import!M18483","v":"Select"},{"$f":"Import!M18683","v":"Select"},{"$f":"Import!M18883","v":0},{"$f":"Import!M19083","v":0},{"$f":"Import!M19283","v":0}]
[7,{"$f":"Import!M18284","v":"Select"},{"$f":"Import!M18484","v":"Select"},{"$f":"Import!M18684","v":"Select"},{"$f":"Import!M18884","v":0},{"$f":"Import!M19084","v":0},{"$f":"Import!M19284","v":0}]
[8,{"$f":"Import!M18285","v":"Select"},{"$f":"Import!M18485","v":"Select"},{"$f":"Import!M18685","v":"Select"},{"$f":"Import!M18885","v":0},{"$f":"Import!M19085","v":0},{"$f":"Import!M19285","v":0}]
[9,{"$f":"Import!M18286","v":"Select"},{"$f":"Import!M18486","v":"Select"},{"$f":"Import!M18686","v":"Select"},{"$f":"Import!M18886","v":0},{"$f":"Import!M19086","v":0},{"$f":"Import!M19286","v":0}]
[10,{"$f":"Import!M18287","v":"Select"},{"$f":"Import!M18487","v":"Select"},{"$f":"Import!M18687","v":"Select"},{"$f":"Import!M18887","v":0},{"$f":"Import!M19087","v":0},{"$f":"Import!M19287","v":0}]
[11,{"$f":"Import!M18288","v":"Select"},{"$f":"Import!M18488","v":"Select"},{"$f":"Import!M18688","v":"Select"},{"$f":"Import!M18888","v":0},{"$f":"Import!M19088","v":0},{"$f":"Import!M19288","v":0}]
[12,{"$f":"Import!M18289","v":"Select"},{"$f":"Import!M18489","v":"Select"},{"$f":"Import!M18689","v":"Select"},{"$f":"Import!M18889","v":0},{"$f":"Import!M19089","v":0},{"$f":"Import!M19289","v":0}]
[13,{"$f":"Import!M18290","v":"Select"},{"$f":"Import!M18490","v":"Select"},{"$f":"Import!M18690","v":"Select"},{"$f":"Import!M18890","v":0},{"$f":"Import!M19090","v":0},{"$f":"Import!M19290","v":0}]
[14,{"$f":"Import!M18291","v":"Select"},{"$f":"Import!M18491","v":"Select"},{"$f":"Import!M18691","v":"Select"},{"$f":"Import!M18891","v":0},{"$f":"Import!M19091","v":0},{"$f":"Import!M19291","v":0}]
[15,{"$f":"Import!M18292","v":"Select"},{"$f":"Import!M18492","v":"Select"},{"$f":"Import!M18692","v":"Select"},{"$f":"Import!M18892","v":0},{"$f":"Import!M19092","v":0},{"$f":"Import!M19292","v":0}]
[16,{"$f":"Import!M18293","v":"Select"},{"$f":"Import!M18493","v":"Select"},{"$f":"Import!M18693","v":"Select"},{"$f":"Import!M18893","v":0},{"$f":"Import!M19093","v":0},{"$f":"Import!M19293","v":0}]
[17,{"$f":"Import!M18294","v":"Select"},{"$f":"Import!M18494","v":"Select"},{"$f":"Import!M18694","v":"Select"},{"$f":"Import!M18894","v":0},{"$f":"Import!M19094","v":0},{"$f":"Import!M19294","v":0}]
[18,{"$f":"Import!M18295","v":"Select"},{"$f":"Import!M18495","v":"Select"},{"$f":"Import!M18695","v":"Select"},{"$f":"Import!M18895","v":0},{"$f":"Import!M19095","v":0},{"$f":"Import!M19295","v":0}]
[19,{"$f":"Import!M18296","v":"Select"},{"$f":"Import!M18496","v":"Select"},{"$f":"Import!M18696","v":"Select"},{"$f":"Import!M18896","v":0},{"$f":"Import!M19096","v":0},{"$f":"Import!M19296","v":0}]
[20,{"$f":"Import!M18297","v":"Select"},{"$f":"Import!M18497","v":"Select"},{"$f":"Import!M18697","v":"Select"},{"$f":"Import!M18897","v":0},{"$f":"Import!M19097","v":0},{"$f":"Import!M19297","v":0}]
[21,{"$f":"Import!M18298","v":"Select"},{"$f":"Import!M18498","v":"Select"},{"$f":"Import!M18698","v":"Select"},{"$f":"Import!M18898","v":0},{"$f":"Import!M19098","v":0},{"$f":"Import!M19298","v":0}]
[22,{"$f":"Import!M18299","v":"Select"},{"$f":"Import!M18499","v":"Select"},{"$f":"Import!M18699","v":"Select"},{"$f":"Import!M18899","v":0},{"$f":"Import!M19099","v":0},{"$f":"Import!M19299","v":0}]
[23,{"$f":"Import!M18300","v":"Select"},{"$f":"Import!M18500","v":"Select"},{"$f":"Import!M18700","v":"Select"},{"$f":"Import!M18900","v":0},{"$f":"Import!M19100","v":0},{"$f":"Import!M19300","v":0}]
[24,{"$f":"Import!M18301","v":"Select"},{"$f":"Import!M18501","v":"Select"},{"$f":"Import!M18701","v":"Select"},{"$f":"Import!M18901","v":0},{"$f":"Import!M19101","v":0},{"$f":"Import!M19301","v":0}]
[25,{"$f":"Import!M18302","v":"Select"},{"$f":"Import!M18502","v":"Select"},{"$f":"Import!M18702","v":"Select"},{"$f":"Import!M18902","v":0},{"$f":"Import!M19102","v":0},{"$f":"Import!M19302","v":0}]
[26,{"$f":"Import!M18303","v":"Select"},{"$f":"Import!M18503","v":"Select"},{"$f":"Import!M18703","v":"Select"},{"$f":"Import!M18903","v":0},{"$f":"Import!M19103","v":0},{"$f":"Import!M19303","v":0}]
[27,{"$f":"Import!M18304","v":"Select"},{"$f":"Import!M18504","v":"Select"},{"$f":"Import!M18704","v":"Select"},{"$f":"Import!M18904","v":0},{"$f":"Import!M19104","v":0},{"$f":"Import!M19304","v":0}]
[28,{"$f":"Import!M18305","v":"Select"},{"$f":"Import!M18505","v":"Select"},{"$f":"Import!M18705","v":"Select"},{"$f":"Import!M18905","v":0},{"$f":"Import!M19105","v":0},{"$f":"Import!M19305","v":0}]
[29,{"$f":"Import!M18306","v":"Select"},{"$f":"Import!M18506","v":"Select"},{"$f":"Import!M18706","v":"Select"},{"$f":"Import!M18906","v":0},{"$f":"Import!M19106","v":0},{"$f":"Import!M19306","v":0}]
[30,{"$f":"Import!M18307","v":"Select"},{"$f":"Import!M18507","v":"Select"},{"$f":"Import!M18707","v":"Select"},{"$f":"Import!M18907","v":0},{"$f":"Import!M19107","v":0},{"$f":"Import!M19307","v":0}]
[31,{"$f":"Import!M18308","v":"Select"},{"$f":"Import!M18508","v":"Select"},{"$f":"Import!M18708","v":"Select"},{"$f":"Import!M18908","v":0},{"$f":"Import!M19108","v":0},{"$f":"Import!M19308","v":0}]
[32,{"$f":"Import!M18309","v":"Select"},{"$f":"Import!M18509","v":"Select"},{"$f":"Import!M18709","v":"Select"},{"$f":"Import!M18909","v":0},{"$f":"Import!M19109","v":0},{"$f":"Import!M19309","v":0}]
[33,{"$f":"Import!M18310","v":"Select"},{"$f":"Import!M18510","v":"Select"},{"$f":"Import!M18710","v":"Select"},{"$f":"Import!M18910","v":0},{"$f":"Import!M19110","v":0},{"$f":"Import!M19310","v":0}]
[34,{"$f":"Import!M18311","v":"Select"},{"$f":"Import!M18511","v":"Select"},{"$f":"Import!M18711","v":"Select"},{"$f":"Import!M18911","v":0},{"$f":"Import!M19111","v":0},{"$f":"Import!M19311","v":0}]
[35,{"$f":"Import!M18312","v":"Select"},{"$f":"Import!M18512","v":"Select"},{"$f":"Import!M18712","v":"Select"},{"$f":"Import!M18912","v":0},{"$f":"Import!M19112","v":0},{"$f":"Import!M19312","v":0}]
[36,{"$f":"Import!M18313","v":"Select"},{"$f":"Import!M18513","v":"Select"},{"$f":"Import!M18713","v":"Select"},{"$f":"Import!M18913","v":0},{"$f":"Import!M19113","v":0},{"$f":"Import!M19313","v":0}]
[37,{"$f":"Import!M18314","v":"Select"},{"$f":"Import!M18514","v":"Select"},{"$f":"Import!M18714","v":"Select"},{"$f":"Import!M18914","v":0},{"$f":"Import!M19114","v":0},{"$f":"Import!M19314","v":0}]
[38,{"$f":"Import!M18315","v":"Select"},{"$f":"Import!M18515","v":"Select"},{"$f":"Import!M18715","v":"Select"},{"$f":"Import!M18915","v":0},{"$f":"Import!M19115","v":0},{"$f":"Import!M19315","v":0}]
[39,{"$f":"Import!M18316","v":"Select"},{"$f":"Import!M18516","v":"Select"},{"$f":"Import!M18716","v":"Select"},{"$f":"Import!M18916","v":0},{"$f":"Import!M19116","v":0},{"$f":"Import!M19316","v":0}]
[40,{"$f":"Import!M18317","v":"Select"},{"$f":"Import!M18517","v":"Select"},{"$f":"Import!M18717","v":"Select"},{"$f":"Import!M18917","v":0},{"$f":"Import!M19117","v":0},{"$f":"Import!M19317","v":0}]
[41,{"$f":"Import!M18318","v":"Select"},{"$f":"Import!M18518","v":"Select"},{"$f":"Import!M18718","v":"Select"},{"$f":"Import!M18918","v":0},{"$f":"Import!M19118","v":0},{"$f":"Import!M19318","v":0}]
[42,{"$f":"Import!M18319","v":"Select"},{"$f":"Import!M18519","v":"Select"},{"$f":"Import!M18719","v":"Select"},{"$f":"Import!M18919","v":0},{"$f":"Import!M19119","v":0},{"$f":"Import!M19319","v":0}]
[43,{"$f":"Import!M18320","v":"Select"},{"$f":"Import!M18520","v":"Select"},{"$f":"Import!M18720","v":"Select"},{"$f":"Import!M18920","v":0},{"$f":"Import!M19120","v":0},{"$f":"Import!M19320","v":0}]
[44,{"$f":"Import!M18321","v":"Select"},{"$f":"Import!M18521","v":"Select"},{"$f":"Import!M18721","v":"Select"},{"$f":"Import!M18921","v":0},{"$f":"Import!M19121","v":0},{"$f":"Import!M19321","v":0}]
[45,{"$f":"Import!M18322","v":"Select"},{"$f":"Import!M18522","v":"Select"},{"$f":"Import!M18722","v":"Select"},{"$f":"Import!M18922","v":0},{"$f":"Import!M19122","v":0},{"$f":"Import!M19322","v":0}]
[46,{"$f":"Import!M18323","v":"Select"},{"$f":"Import!M18523","v":"Select"},{"$f":"Import!M18723","v":"Select"},{"$f":"Import!M18923","v":0},{"$f":"Import!M19123","v":0},{"$f":"Import!M19323","v":0}]
[47,{"$f":"Import!M18324","v":"Select"},{"$f":"Import!M18524","v":"Select"},{"$f":"Import!M18724","v":"Select"},{"$f":"Import!M18924","v":0},{"$f":"Import!M19124","v":0},{"$f":"Import!M19324","v":0}]
[48,{"$f":"Import!M18325","v":"Select"},{"$f":"Import!M18525","v":"Select"},{"$f":"Import!M18725","v":"Select"},{"$f":"Import!M18925","v":0},{"$f":"Import!M19125","v":0},{"$f":"Import!M19325","v":0}]
[49,{"$f":"Import!M18326","v":"Select"},{"$f":"Import!M18526","v":"Select"},{"$f":"Import!M18726","v":"Select"},{"$f":"Import!M18926","v":0},{"$f":"Import!M19126","v":0},{"$f":"Import!M19326","v":0}]
[50,{"$f":"Import!M18327","v":"Select"},{"$f":"Import!M18527","v":"Select"},{"$f":"Import!M18727","v":"Select"},{"$f":"Import!M18927","v":0},{"$f":"Import!M19127","v":0},{"$f":"Import!M19327","v":0}]
[51,{"$f":"Import!M18328","v":"Select"},{"$f":"Import!M18528","v":"Select"},{"$f":"Import!M18728","v":"Select"},{"$f":"Import!M18928","v":0},{"$f":"Import!M19128","v":0},{"$f":"Import!M19328","v":0}]
[52,{"$f":"Import!M18329","v":"Select"},{"$f":"Import!M18529","v":"Select"},{"$f":"Import!M18729","v":"Select"},{"$f":"Import!M18929","v":0},{"$f":"Import!M19129","v":0},{"$f":"Import!M19329","v":0}]
[53,{"$f":"Import!M18330","v":"Select"},{"$f":"Import!M18530","v":"Select"},{"$f":"Import!M18730","v":"Select"},{"$f":"Import!M18930","v":0},{"$f":"Import!M19130","v":0},{"$f":"Import!M19330","v":0}]
[54,{"$f":"Import!M18331","v":"Select"},{"$f":"Import!M18531","v":"Select"},{"$f":"Import!M18731","v":"Select"},{"$f":"Import!M18931","v":0},{"$f":"Import!M19131","v":0},{"$f":"Import!M19331","v":0}]
[55,{"$f":"Import!M18332","v":"Select"},{"$f":"Import!M18532","v":"Select"},{"$f":"Import!M18732","v":"Select"},{"$f":"Import!M18932","v":0},{"$f":"Import!M19132","v":0},{"$f":"Import!M19332","v":0}]
[56,{"$f":"Import!M18333","v":"Select"},{"$f":"Import!M18533","v":"Select"},{"$f":"Import!M18733","v":"Select"},{"$f":"Import!M18933","v":0},{"$f":"Import!M19133","v":0},{"$f":"Import!M19333","v":0}]
[57,{"$f":"Import!M18334","v":"Select"},{"$f":"Import!M18534","v":"Select"},{"$f":"Import!M18734","v":"Select"},{"$f":"Import!M18934","v":0},{"$f":"Import!M19134","v":0},{"$f":"Import!M19334","v":0}]
[58,{"$f":"Import!M18335","v":"Select"},{"$f":"Import!M18535","v":"Select"},{"$f":"Import!M18735","v":"Select"},{"$f":"Import!M18935","v":0},{"$f":"Import!M19135","v":0},{"$f":"Import!M19335","v":0}]
[59,{"$f":"Import!M18336","v":"Select"},{"$f":"Import!M18536","v":"Select"},{"$f":"Import!M18736","v":"Select"},{"$f":"Import!M18936","v":0},{"$f":"Import!M19136","v":0},{"$f":"Import!M19336","v":0}]
[60,{"$f":"Import!M18337","v":"Select"},{"$f":"Import!M18537","v":"Select"},{"$f":"Import!M18737","v":"Select"},{"$f":"Import!M18937","v":0},{"$f":"Import!M19137","v":0},{"$f":"Import!M19337","v":0}]
[61,{"$f":"Import!M18338","v":"Select"},{"$f":"Import!M18538","v":"Select"},{"$f":"Import!M18738","v":"Select"},{"$f":"Import!M18938","v":0},{"$f":"Import!M19138","v":0},{"$f":"Import!M19338","v":0}]
[62,{"$f":"Import!M18339","v":"Select"},{"$f":"Import!M18539","v":"Select"},{"$f":"Import!M18739","v":"Select"},{"$f":"Import!M18939","v":0},{"$f":"Import!M19139","v":0},{"$f":"Import!M19339","v":0}]
[63,{"$f":"Import!M18340","v":"Select"},{"$f":"Import!M18540","v":"Select"},{"$f":"Import!M18740","v":"Select"},{"$f":"Import!M18940","v":0},{"$f":"Import!M19140","v":0},{"$f":"Import!M19340","v":0}]
[64,{"$f":"Import!M18341","v":"Select"},{"$f":"Import!M18541","v":"Select"},{"$f":"Import!M18741","v":"Select"},{"$f":"Import!M18941","v":0},{"$f":"Import!M19141","v":0},{"$f":"Import!M19341","v":0}]
[65,{"$f":"Import!M18342","v":"Select"},{"$f":"Import!M18542","v":"Select"},{"$f":"Import!M18742","v":"Select"},{"$f":"Import!M18942","v":0},{"$f":"Import!M19142","v":0},{"$f":"Import!M19342","v":0}]
[66,{"$f":"Import!M18343","v":"Select"},{"$f":"Import!M18543","v":"Select"},{"$f":"Import!M18743","v":"Select"},{"$f":"Import!M18943","v":0},{"$f":"Import!M19143","v":0},{"$f":"Import!M19343","v":0}]
[{"$f":"A1861+1","v":67},{"$f":"Import!M18344","v":"Select"},{"$f":"Import!M18544","v":"Select"},{"$f":"Import!M18744","v":"Select"},{"$f":"Import!M18944","v":0},{"$f":"Import!M19144","v":0},{"$f":"Import!M19344","v":0}]
[68,{"$f":"Import!M18345","v":"Select"},{"$f":"Import!M18545","v":"Select"},{"$f":"Import!M18745","v":"Select"},{"$f":"Import!M18945","v":0},{"$f":"Import!M19145","v":0},{"$f":"Import!M19345","v":0}]
[69,{"$f":"Import!M18346","v":"Select"},{"$f":"Import!M18546","v":"Select"},{"$f":"Import!M18746","v":"Select"},{"$f":"Import!M18946","v":0},{"$f":"Import!M19146","v":0},{"$f":"Import!M19346","v":0}]
[70,{"$f":"Import!M18347","v":"Select"},{"$f":"Import!M18547","v":"Select"},{"$f":"Import!M18747","v":"Select"},{"$f":"Import!M18947","v":0},{"$f":"Import!M19147","v":0},{"$f":"Import!M19347","v":0}]
[71,{"$f":"Import!M18348","v":"Select"},{"$f":"Import!M18548","v":"Select"},{"$f":"Import!M18748","v":"Select"},{"$f":"Import!M18948","v":0},{"$f":"Import!M19148","v":0},{"$f":"Import!M19348","v":0}]
[72,{"$f":"Import!M18349","v":"Select"},{"$f":"Import!M18549","v":"Select"},{"$f":"Import!M18749","v":"Select"},{"$f":"Import!M18949","v":0},{"$f":"Import!M19149","v":0},{"$f":"Import!M19349","v":0}]
[73,{"$f":"Import!M18350","v":"Select"},{"$f":"Import!M18550","v":"Select"},{"$f":"Import!M18750","v":"Select"},{"$f":"Import!M18950","v":0},{"$f":"Import!M19150","v":0},{"$f":"Import!M19350","v":0}]
[74,{"$f":"Import!M18351","v":"Select"},{"$f":"Import!M18551","v":"Select"},{"$f":"Import!M18751","v":"Select"},{"$f":"Import!M18951","v":0},{"$f":"Import!M19151","v":0},{"$f":"Import!M19351","v":0}]
[75,{"$f":"Import!M18352","v":"Select"},{"$f":"Import!M18552","v":"Select"},{"$f":"Import!M18752","v":"Select"},{"$f":"Import!M18952","v":0},{"$f":"Import!M19152","v":0},{"$f":"Import!M19352","v":0}]
[76,{"$f":"Import!M18353","v":"Select"},{"$f":"Import!M18553","v":"Select"},{"$f":"Import!M18753","v":"Select"},{"$f":"Import!M18953","v":0},{"$f":"Import!M19153","v":0},{"$f":"Import!M19353","v":0}]
[77,{"$f":"Import!M18354","v":"Select"},{"$f":"Import!M18554","v":"Select"},{"$f":"Import!M18754","v":"Select"},{"$f":"Import!M18954","v":0},{"$f":"Import!M19154","v":0},{"$f":"Import!M19354","v":0}]
[78,{"$f":"Import!M18355","v":"Select"},{"$f":"Import!M18555","v":"Select"},{"$f":"Import!M18755","v":"Select"},{"$f":"Import!M18955","v":0},{"$f":"Import!M19155","v":0},{"$f":"Import!M19355","v":0}]
[79,{"$f":"Import!M18356","v":"Select"},{"$f":"Import!M18556","v":"Select"},{"$f":"Import!M18756","v":"Select"},{"$f":"Import!M18956","v":0},{"$f":"Import!M19156","v":0},{"$f":"Import!M19356","v":0}]
[80,{"$f":"Import!M18357","v":"Select"},{"$f":"Import!M18557","v":"Select"},{"$f":"Import!M18757","v":"Select"},{"$f":"Import!M18957","v":0},{"$f":"Import!M19157","v":0},{"$f":"Import!M19357","v":0}]
[81,{"$f":"Import!M18358","v":"Select"},{"$f":"Import!M18558","v":"Select"},{"$f":"Import!M18758","v":"Select"},{"$f":"Import!M18958","v":0},{"$f":"Import!M19158","v":0},{"$f":"Import!M19358","v":0}]
[82,{"$f":"Import!M18359","v":"Select"},{"$f":"Import!M18559","v":"Select"},{"$f":"Import!M18759","v":"Select"},{"$f":"Import!M18959","v":0},{"$f":"Import!M19159","v":0},{"$f":"Import!M19359","v":0}]
[83,{"$f":"Import!M18360","v":"Select"},{"$f":"Import!M18560","v":"Select"},{"$f":"Import!M18760","v":"Select"},{"$f":"Import!M18960","v":0},{"$f":"Import!M19160","v":0},{"$f":"Import!M19360","v":0}]
[84,{"$f":"Import!M18361","v":"Select"},{"$f":"Import!M18561","v":"Select"},{"$f":"Import!M18761","v":"Select"},{"$f":"Import!M18961","v":0},{"$f":"Import!M19161","v":0},{"$f":"Import!M19361","v":0}]
[85,{"$f":"Import!M18362","v":"Select"},{"$f":"Import!M18562","v":"Select"},{"$f":"Import!M18762","v":"Select"},{"$f":"Import!M18962","v":0},{"$f":"Import!M19162","v":0},{"$f":"Import!M19362","v":0}]
[86,{"$f":"Import!M18363","v":"Select"},{"$f":"Import!M18563","v":"Select"},{"$f":"Import!M18763","v":"Select"},{"$f":"Import!M18963","v":0},{"$f":"Import!M19163","v":0},{"$f":"Import!M19363","v":0}]
[87,{"$f":"Import!M18364","v":"Select"},{"$f":"Import!M18564","v":"Select"},{"$f":"Import!M18764","v":"Select"},{"$f":"Import!M18964","v":0},{"$f":"Import!M19164","v":0},{"$f":"Import!M19364","v":0}]
[88,{"$f":"Import!M18365","v":"Select"},{"$f":"Import!M18565","v":"Select"},{"$f":"Import!M18765","v":"Select"},{"$f":"Import!M18965","v":0},{"$f":"Import!M19165","v":0},{"$f":"Import!M19365","v":0}]
[89,{"$f":"Import!M18366","v":"Select"},{"$f":"Import!M18566","v":"Select"},{"$f":"Import!M18766","v":"Select"},{"$f":"Import!M18966","v":0},{"$f":"Import!M19166","v":0},{"$f":"Import!M19366","v":0}]
[90,{"$f":"Import!M18367","v":"Select"},{"$f":"Import!M18567","v":"Select"},{"$f":"Import!M18767","v":"Select"},{"$f":"Import!M18967","v":0},{"$f":"Import!M19167","v":0},{"$f":"Import!M19367","v":0}]
[91,{"$f":"Import!M18368","v":"Select"},{"$f":"Import!M18568","v":"Select"},{"$f":"Import!M18768","v":"Select"},{"$f":"Import!M18968","v":0},{"$f":"Import!M19168","v":0},{"$f":"Import!M19368","v":0}]
[92,{"$f":"Import!M18369","v":"Select"},{"$f":"Import!M18569","v":"Select"},{"$f":"Import!M18769","v":"Select"},{"$f":"Import!M18969","v":0},{"$f":"Import!M19169","v":0},{"$f":"Import!M19369","v":0}]
[93,{"$f":"Import!M18370","v":"Select"},{"$f":"Import!M18570","v":"Select"},{"$f":"Import!M18770","v":"Select"},{"$f":"Import!M18970","v":0},{"$f":"Import!M19170","v":0},{"$f":"Import!M19370","v":0}]
[94,{"$f":"Import!M18371","v":"Select"},{"$f":"Import!M18571","v":"Select"},{"$f":"Import!M18771","v":"Select"},{"$f":"Import!M18971","v":0},{"$f":"Import!M19171","v":0},{"$f":"Import!M19371","v":0}]
[95,{"$f":"Import!M18372","v":"Select"},{"$f":"Import!M18572","v":"Select"},{"$f":"Import!M18772","v":"Select"},{"$f":"Import!M18972","v":0},{"$f":"Import!M19172","v":0},{"$f":"Import!M19372","v":0}]
[96,{"$f":"Import!M18373","v":"Select"},{"$f":"Import!M18573","v":"Select"},{"$f":"Import!M18773","v":"Select"},{"$f":"Import!M18973","v":0},{"$f":"Import!M19173","v":0},{"$f":"Import!M19373","v":0}]
[97,{"$f":"Import!M18374","v":"Select"},{"$f":"Import!M18574","v":"Select"},{"$f":"Import!M18774","v":"Select"},{"$f":"Import!M18974","v":0},{"$f":"Import!M19174","v":0},{"$f":"Import!M19374","v":0}]
[98,{"$f":"Import!M18375","v":"Select"},{"$f":"Import!M18575","v":"Select"},{"$f":"Import!M18775","v":"Select"},{"$f":"Import!M18975","v":0},{"$f":"Import!M19175","v":0},{"$f":"Import!M19375","v":0}]
[99,{"$f":"Import!M18376","v":"Select"},{"$f":"Import!M18576","v":"Select"},{"$f":"Import!M18776","v":"Select"},{"$f":"Import!M18976","v":0},{"$f":"Import!M19176","v":0},{"$f":"Import!M19376","v":0}]
[100,{"$f":"Import!M18377","v":"Select"},{"$f":"Import!M18577","v":"Select"},{"$f":"Import!M18777","v":"Select"},{"$f":"Import!M18977","v":0},{"$f":"Import!M19177","v":0},{"$f":"Import!M19377","v":0}]
[101,{"$f":"Import!M18378","v":"Select"},{"$f":"Import!M18578","v":"Select"},{"$f":"Import!M18778","v":"Select"},{"$f":"Import!M18978","v":0},{"$f":"Import!M19178","v":0},{"$f":"Import!M19378","v":0}]
[102,{"$f":"Import!M18379","v":"Select"},{"$f":"Import!M18579","v":"Select"},{"$f":"Import!M18779","v":"Select"},{"$f":"Import!M18979","v":0},{"$f":"Import!M19179","v":0},{"$f":"Import!M19379","v":0}]
[103,{"$f":"Import!M18380","v":"Select"},{"$f":"Import!M18580","v":"Select"},{"$f":"Import!M18780","v":"Select"},{"$f":"Import!M18980","v":0},{"$f":"Import!M19180","v":0},{"$f":"Import!M19380","v":0}]
[104,{"$f":"Import!M18381","v":"Select"},{"$f":"Import!M18581","v":"Select"},{"$f":"Import!M18781","v":"Select"},{"$f":"Import!M18981","v":0},{"$f":"Import!M19181","v":0},{"$f":"Import!M19381","v":0}]
[105,{"$f":"Import!M18382","v":"Select"},{"$f":"Import!M18582","v":"Select"},{"$f":"Import!M18782","v":"Select"},{"$f":"Import!M18982","v":0},{"$f":"Import!M19182","v":0},{"$f":"Import!M19382","v":0}]
[106,{"$f":"Import!M18383","v":"Select"},{"$f":"Import!M18583","v":"Select"},{"$f":"Import!M18783","v":"Select"},{"$f":"Import!M18983","v":0},{"$f":"Import!M19183","v":0},{"$f":"Import!M19383","v":0}]
[107,{"$f":"Import!M18384","v":"Select"},{"$f":"Import!M18584","v":"Select"},{"$f":"Import!M18784","v":"Select"},{"$f":"Import!M18984","v":0},{"$f":"Import!M19184","v":0},{"$f":"Import!M19384","v":0}]
[108,{"$f":"Import!M18385","v":"Select"},{"$f":"Import!M18585","v":"Select"},{"$f":"Import!M18785","v":"Select"},{"$f":"Import!M18985","v":0},{"$f":"Import!M19185","v":0},{"$f":"Import!M19385","v":0}]
[109,{"$f":"Import!M18386","v":"Select"},{"$f":"Import!M18586","v":"Select"},{"$f":"Import!M18786","v":"Select"},{"$f":"Import!M18986","v":0},{"$f":"Import!M19186","v":0},{"$f":"Import!M19386","v":0}]
[110,{"$f":"Import!M18387","v":"Select"},{"$f":"Import!M18587","v":"Select"},{"$f":"Import!M18787","v":"Select"},{"$f":"Import!M18987","v":0},{"$f":"Import!M19187","v":0},{"$f":"Import!M19387","v":0}]
[111,{"$f":"Import!M18388","v":"Select"},{"$f":"Import!M18588","v":"Select"},{"$f":"Import!M18788","v":"Select"},{"$f":"Import!M18988","v":0},{"$f":"Import!M19188","v":0},{"$f":"Import!M19388","v":0}]
[112,{"$f":"Import!M18389","v":"Select"},{"$f":"Import!M18589","v":"Select"},{"$f":"Import!M18789","v":"Select"},{"$f":"Import!M18989","v":0},{"$f":"Import!M19189","v":0},{"$f":"Import!M19389","v":0}]
[113,{"$f":"Import!M18390","v":"Select"},{"$f":"Import!M18590","v":"Select"},{"$f":"Import!M18790","v":"Select"},{"$f":"Import!M18990","v":0},{"$f":"Import!M19190","v":0},{"$f":"Import!M19390","v":0}]
[114,{"$f":"Import!M18391","v":"Select"},{"$f":"Import!M18591","v":"Select"},{"$f":"Import!M18791","v":"Select"},{"$f":"Import!M18991","v":0},{"$f":"Import!M19191","v":0},{"$f":"Import!M19391","v":0}]
[115,{"$f":"Import!M18392","v":"Select"},{"$f":"Import!M18592","v":"Select"},{"$f":"Import!M18792","v":"Select"},{"$f":"Import!M18992","v":0},{"$f":"Import!M19192","v":0},{"$f":"Import!M19392","v":0}]
[116,{"$f":"Import!M18393","v":"Select"},{"$f":"Import!M18593","v":"Select"},{"$f":"Import!M18793","v":"Select"},{"$f":"Import!M18993","v":0},{"$f":"Import!M19193","v":0},{"$f":"Import!M19393","v":0}]
[117,{"$f":"Import!M18394","v":"Select"},{"$f":"Import!M18594","v":"Select"},{"$f":"Import!M18794","v":"Select"},{"$f":"Import!M18994","v":0},{"$f":"Import!M19194","v":0},{"$f":"Import!M19394","v":0}]
[118,{"$f":"Import!M18395","v":"Select"},{"$f":"Import!M18595","v":"Select"},{"$f":"Import!M18795","v":"Select"},{"$f":"Import!M18995","v":0},{"$f":"Import!M19195","v":0},{"$f":"Import!M19395","v":0}]
[119,{"$f":"Import!M18396","v":"Select"},{"$f":"Import!M18596","v":"Select"},{"$f":"Import!M18796","v":"Select"},{"$f":"Import!M18996","v":0},{"$f":"Import!M19196","v":0},{"$f":"Import!M19396","v":0}]
[120,{"$f":"Import!M18397","v":"Select"},{"$f":"Import!M18597","v":"Select"},{"$f":"Import!M18797","v":"Select"},{"$f":"Import!M18997","v":0},{"$f":"Import!M19197","v":0},{"$f":"Import!M19397","v":0}]
[121,{"$f":"Import!M18398","v":"Select"},{"$f":"Import!M18598","v":"Select"},{"$f":"Import!M18798","v":"Select"},{"$f":"Import!M18998","v":0},{"$f":"Import!M19198","v":0},{"$f":"Import!M19398","v":0}]
[122,{"$f":"Import!M18399","v":"Select"},{"$f":"Import!M18599","v":"Select"},{"$f":"Import!M18799","v":"Select"},{"$f":"Import!M18999","v":0},{"$f":"Import!M19199","v":0},{"$f":"Import!M19399","v":0}]
[123,{"$f":"Import!M18400","v":"Select"},{"$f":"Import!M18600","v":"Select"},{"$f":"Import!M18800","v":"Select"},{"$f":"Import!M19000","v":0},{"$f":"Import!M19200","v":0},{"$f":"Import!M19400","v":0}]
[124,{"$f":"Import!M18401","v":"Select"},{"$f":"Import!M18601","v":"Select"},{"$f":"Import!M18801","v":"Select"},{"$f":"Import!M19001","v":0},{"$f":"Import!M19201","v":0},{"$f":"Import!M19401","v":0}]
[125,{"$f":"Import!M18402","v":"Select"},{"$f":"Import!M18602","v":"Select"},{"$f":"Import!M18802","v":"Select"},{"$f":"Import!M19002","v":0},{"$f":"Import!M19202","v":0},{"$f":"Import!M19402","v":0}]
[126,{"$f":"Import!M18403","v":"Select"},{"$f":"Import!M18603","v":"Select"},{"$f":"Import!M18803","v":"Select"},{"$f":"Import!M19003","v":0},{"$f":"Import!M19203","v":0},{"$f":"Import!M19403","v":0}]
[127,{"$f":"Import!M18404","v":"Select"},{"$f":"Import!M18604","v":"Select"},{"$f":"Import!M18804","v":"Select"},{"$f":"Import!M19004","v":0},{"$f":"Import!M19204","v":0},{"$f":"Import!M19404","v":0}]
[128,{"$f":"Import!M18405","v":"Select"},{"$f":"Import!M18605","v":"Select"},{"$f":"Import!M18805","v":"Select"},{"$f":"Import!M19005","v":0},{"$f":"Import!M19205","v":0},{"$f":"Import!M19405","v":0}]
[129,{"$f":"Import!M18406","v":"Select"},{"$f":"Import!M18606","v":"Select"},{"$f":"Import!M18806","v":"Select"},{"$f":"Import!M19006","v":0},{"$f":"Import!M19206","v":0},{"$f":"Import!M19406","v":0}]
[130,{"$f":"Import!M18407","v":"Select"},{"$f":"Import!M18607","v":"Select"},{"$f":"Import!M18807","v":"Select"},{"$f":"Import!M19007","v":0},{"$f":"Import!M19207","v":0},{"$f":"Import!M19407","v":0}]
[{"$f":"A1925+1","v":131},{"$f":"Import!M18408","v":"Select"},{"$f":"Import!M18608","v":"Select"},{"$f":"Import!M18808","v":"Select"},{"$f":"Import!M19008","v":0},{"$f":"Import!M19208","v":0},{"$f":"Import!M19408","v":0}]
[132,{"$f":"Import!M18409","v":"Select"},{"$f":"Import!M18609","v":"Select"},{"$f":"Import!M18809","v":"Select"},{"$f":"Import!M19009","v":0},{"$f":"Import!M19209","v":0},{"$f":"Import!M19409","v":0}]
[133,{"$f":"Import!M18410","v":"Select"},{"$f":"Import!M18610","v":"Select"},{"$f":"Import!M18810","v":"Select"},{"$f":"Import!M19010","v":0},{"$f":"Import!M19210","v":0},{"$f":"Import!M19410","v":0}]
[134,{"$f":"Import!M18411","v":"Select"},{"$f":"Import!M18611","v":"Select"},{"$f":"Import!M18811","v":"Select"},{"$f":"Import!M19011","v":0},{"$f":"Import!M19211","v":0},{"$f":"Import!M19411","v":0}]
[135,{"$f":"Import!M18412","v":"Select"},{"$f":"Import!M18612","v":"Select"},{"$f":"Import!M18812","v":"Select"},{"$f":"Import!M19012","v":0},{"$f":"Import!M19212","v":0},{"$f":"Import!M19412","v":0}]
[136,{"$f":"Import!M18413","v":"Select"},{"$f":"Import!M18613","v":"Select"},{"$f":"Import!M18813","v":"Select"},{"$f":"Import!M19013","v":0},{"$f":"Import!M19213","v":0},{"$f":"Import!M19413","v":0}]
[137,{"$f":"Import!M18414","v":"Select"},{"$f":"Import!M18614","v":"Select"},{"$f":"Import!M18814","v":"Select"},{"$f":"Import!M19014","v":0},{"$f":"Import!M19214","v":0},{"$f":"Import!M19414","v":0}]
[138,{"$f":"Import!M18415","v":"Select"},{"$f":"Import!M18615","v":"Select"},{"$f":"Import!M18815","v":"Select"},{"$f":"Import!M19015","v":0},{"$f":"Import!M19215","v":0},{"$f":"Import!M19415","v":0}]
[139,{"$f":"Import!M18416","v":"Select"},{"$f":"Import!M18616","v":"Select"},{"$f":"Import!M18816","v":"Select"},{"$f":"Import!M19016","v":0},{"$f":"Import!M19216","v":0},{"$f":"Import!M19416","v":0}]
[140,{"$f":"Import!M18417","v":"Select"},{"$f":"Import!M18617","v":"Select"},{"$f":"Import!M18817","v":"Select"},{"$f":"Import!M19017","v":0},{"$f":"Import!M19217","v":0},{"$f":"Import!M19417","v":0}]
[141,{"$f":"Import!M18418","v":"Select"},{"$f":"Import!M18618","v":"Select"},{"$f":"Import!M18818","v":"Select"},{"$f":"Import!M19018","v":0},{"$f":"Import!M19218","v":0},{"$f":"Import!M19418","v":0}]
[142,{"$f":"Import!M18419","v":"Select"},{"$f":"Import!M18619","v":"Select"},{"$f":"Import!M18819","v":"Select"},{"$f":"Import!M19019","v":0},{"$f":"Import!M19219","v":0},{"$f":"Import!M19419","v":0}]
[143,{"$f":"Import!M18420","v":"Select"},{"$f":"Import!M18620","v":"Select"},{"$f":"Import!M18820","v":"Select"},{"$f":"Import!M19020","v":0},{"$f":"Import!M19220","v":0},{"$f":"Import!M19420","v":0}]
[144,{"$f":"Import!M18421","v":"Select"},{"$f":"Import!M18621","v":"Select"},{"$f":"Import!M18821","v":"Select"},{"$f":"Import!M19021","v":0},{"$f":"Import!M19221","v":0},{"$f":"Import!M19421","v":0}]
[145,{"$f":"Import!M18422","v":"Select"},{"$f":"Import!M18622","v":"Select"},{"$f":"Import!M18822","v":"Select"},{"$f":"Import!M19022","v":0},{"$f":"Import!M19222","v":0},{"$f":"Import!M19422","v":0}]
[146,{"$f":"Import!M18423","v":"Select"},{"$f":"Import!M18623","v":"Select"},{"$f":"Import!M18823","v":"Select"},{"$f":"Import!M19023","v":0},{"$f":"Import!M19223","v":0},{"$f":"Import!M19423","v":0}]
[147,{"$f":"Import!M18424","v":"Select"},{"$f":"Import!M18624","v":"Select"},{"$f":"Import!M18824","v":"Select"},{"$f":"Import!M19024","v":0},{"$f":"Import!M19224","v":0},{"$f":"Import!M19424","v":0}]
[148,{"$f":"Import!M18425","v":"Select"},{"$f":"Import!M18625","v":"Select"},{"$f":"Import!M18825","v":"Select"},{"$f":"Import!M19025","v":0},{"$f":"Import!M19225","v":0},{"$f":"Import!M19425","v":0}]
[149,{"$f":"Import!M18426","v":"Select"},{"$f":"Import!M18626","v":"Select"},{"$f":"Import!M18826","v":"Select"},{"$f":"Import!M19026","v":0},{"$f":"Import!M19226","v":0},{"$f":"Import!M19426","v":0}]
[150,{"$f":"Import!M18427","v":"Select"},{"$f":"Import!M18627","v":"Select"},{"$f":"Import!M18827","v":"Select"},{"$f":"Import!M19027","v":0},{"$f":"Import!M19227","v":0},{"$f":"Import!M19427","v":0}]
[151,{"$f":"Import!M18428","v":"Select"},{"$f":"Import!M18628","v":"Select"},{"$f":"Import!M18828","v":"Select"},{"$f":"Import!M19028","v":0},{"$f":"Import!M19228","v":0},{"$f":"Import!M19428","v":0}]
[152,{"$f":"Import!M18429","v":"Select"},{"$f":"Import!M18629","v":"Select"},{"$f":"Import!M18829","v":"Select"},{"$f":"Import!M19029","v":0},{"$f":"Import!M19229","v":0},{"$f":"Import!M19429","v":0}]
[153,{"$f":"Import!M18430","v":"Select"},{"$f":"Import!M18630","v":"Select"},{"$f":"Import!M18830","v":"Select"},{"$f":"Import!M19030","v":0},{"$f":"Import!M19230","v":0},{"$f":"Import!M19430","v":0}]
[154,{"$f":"Import!M18431","v":"Select"},{"$f":"Import!M18631","v":"Select"},{"$f":"Import!M18831","v":"Select"},{"$f":"Import!M19031","v":0},{"$f":"Import!M19231","v":0},{"$f":"Import!M19431","v":0}]
[155,{"$f":"Import!M18432","v":"Select"},{"$f":"Import!M18632","v":"Select"},{"$f":"Import!M18832","v":"Select"},{"$f":"Import!M19032","v":0},{"$f":"Import!M19232","v":0},{"$f":"Import!M19432","v":0}]
[156,{"$f":"Import!M18433","v":"Select"},{"$f":"Import!M18633","v":"Select"},{"$f":"Import!M18833","v":"Select"},{"$f":"Import!M19033","v":0},{"$f":"Import!M19233","v":0},{"$f":"Import!M19433","v":0}]
[157,{"$f":"Import!M18434","v":"Select"},{"$f":"Import!M18634","v":"Select"},{"$f":"Import!M18834","v":"Select"},{"$f":"Import!M19034","v":0},{"$f":"Import!M19234","v":0},{"$f":"Import!M19434","v":0}]
[158,{"$f":"Import!M18435","v":"Select"},{"$f":"Import!M18635","v":"Select"},{"$f":"Import!M18835","v":"Select"},{"$f":"Import!M19035","v":0},{"$f":"Import!M19235","v":0},{"$f":"Import!M19435","v":0}]
[159,{"$f":"Import!M18436","v":"Select"},{"$f":"Import!M18636","v":"Select"},{"$f":"Import!M18836","v":"Select"},{"$f":"Import!M19036","v":0},{"$f":"Import!M19236","v":0},{"$f":"Import!M19436","v":0}]
[160,{"$f":"Import!M18437","v":"Select"},{"$f":"Import!M18637","v":"Select"},{"$f":"Import!M18837","v":"Select"},{"$f":"Import!M19037","v":0},{"$f":"Import!M19237","v":0},{"$f":"Import!M19437","v":0}]
[161,{"$f":"Import!M18438","v":"Select"},{"$f":"Import!M18638","v":"Select"},{"$f":"Import!M18838","v":"Select"},{"$f":"Import!M19038","v":0},{"$f":"Import!M19238","v":0},{"$f":"Import!M19438","v":0}]
[162,{"$f":"Import!M18439","v":"Select"},{"$f":"Import!M18639","v":"Select"},{"$f":"Import!M18839","v":"Select"},{"$f":"Import!M19039","v":0},{"$f":"Import!M19239","v":0},{"$f":"Import!M19439","v":0}]
[163,{"$f":"Import!M18440","v":"Select"},{"$f":"Import!M18640","v":"Select"},{"$f":"Import!M18840","v":"Select"},{"$f":"Import!M19040","v":0},{"$f":"Import!M19240","v":0},{"$f":"Import!M19440","v":0}]
[164,{"$f":"Import!M18441","v":"Select"},{"$f":"Import!M18641","v":"Select"},{"$f":"Import!M18841","v":"Select"},{"$f":"Import!M19041","v":0},{"$f":"Import!M19241","v":0},{"$f":"Import!M19441","v":0}]
[165,{"$f":"Import!M18442","v":"Select"},{"$f":"Import!M18642","v":"Select"},{"$f":"Import!M18842","v":"Select"},{"$f":"Import!M19042","v":0},{"$f":"Import!M19242","v":0},{"$f":"Import!M19442","v":0}]
[166,{"$f":"Import!M18443","v":"Select"},{"$f":"Import!M18643","v":"Select"},{"$f":"Import!M18843","v":"Select"},{"$f":"Import!M19043","v":0},{"$f":"Import!M19243","v":0},{"$f":"Import!M19443","v":0}]
[167,{"$f":"Import!M18444","v":"Select"},{"$f":"Import!M18644","v":"Select"},{"$f":"Import!M18844","v":"Select"},{"$f":"Import!M19044","v":0},{"$f":"Import!M19244","v":0},{"$f":"Import!M19444","v":0}]
[168,{"$f":"Import!M18445","v":"Select"},{"$f":"Import!M18645","v":"Select"},{"$f":"Import!M18845","v":"Select"},{"$f":"Import!M19045","v":0},{"$f":"Import!M19245","v":0},{"$f":"Import!M19445","v":0}]
[169,{"$f":"Import!M18446","v":"Select"},{"$f":"Import!M18646","v":"Select"},{"$f":"Import!M18846","v":"Select"},{"$f":"Import!M19046","v":0},{"$f":"Import!M19246","v":0},{"$f":"Import!M19446","v":0}]
[170,{"$f":"Import!M18447","v":"Select"},{"$f":"Import!M18647","v":"Select"},{"$f":"Import!M18847","v":"Select"},{"$f":"Import!M19047","v":0},{"$f":"Import!M19247","v":0},{"$f":"Import!M19447","v":0}]
[171,{"$f":"Import!M18448","v":"Select"},{"$f":"Import!M18648","v":"Select"},{"$f":"Import!M18848","v":"Select"},{"$f":"Import!M19048","v":0},{"$f":"Import!M19248","v":0},{"$f":"Import!M19448","v":0}]
[172,{"$f":"Import!M18449","v":"Select"},{"$f":"Import!M18649","v":"Select"},{"$f":"Import!M18849","v":"Select"},{"$f":"Import!M19049","v":0},{"$f":"Import!M19249","v":0},{"$f":"Import!M19449","v":0}]
[173,{"$f":"Import!M18450","v":"Select"},{"$f":"Import!M18650","v":"Select"},{"$f":"Import!M18850","v":"Select"},{"$f":"Import!M19050","v":0},{"$f":"Import!M19250","v":0},{"$f":"Import!M19450","v":0}]
[174,{"$f":"Import!M18451","v":"Select"},{"$f":"Import!M18651","v":"Select"},{"$f":"Import!M18851","v":"Select"},{"$f":"Import!M19051","v":0},{"$f":"Import!M19251","v":0},{"$f":"Import!M19451","v":0}]
[175,{"$f":"Import!M18452","v":"Select"},{"$f":"Import!M18652","v":"Select"},{"$f":"Import!M18852","v":"Select"},{"$f":"Import!M19052","v":0},{"$f":"Import!M19252","v":0},{"$f":"Import!M19452","v":0}]
[176,{"$f":"Import!M18453","v":"Select"},{"$f":"Import!M18653","v":"Select"},{"$f":"Import!M18853","v":"Select"},{"$f":"Import!M19053","v":0},{"$f":"Import!M19253","v":0},{"$f":"Import!M19453","v":0}]
[177,{"$f":"Import!M18454","v":"Select"},{"$f":"Import!M18654","v":"Select"},{"$f":"Import!M18854","v":"Select"},{"$f":"Import!M19054","v":0},{"$f":"Import!M19254","v":0},{"$f":"Import!M19454","v":0}]
[178,{"$f":"Import!M18455","v":"Select"},{"$f":"Import!M18655","v":"Select"},{"$f":"Import!M18855","v":"Select"},{"$f":"Import!M19055","v":0},{"$f":"Import!M19255","v":0},{"$f":"Import!M19455","v":0}]
[179,{"$f":"Import!M18456","v":"Select"},{"$f":"Import!M18656","v":"Select"},{"$f":"Import!M18856","v":"Select"},{"$f":"Import!M19056","v":0},{"$f":"Import!M19256","v":0},{"$f":"Import!M19456","v":0}]
[180,{"$f":"Import!M18457","v":"Select"},{"$f":"Import!M18657","v":"Select"},{"$f":"Import!M18857","v":"Select"},{"$f":"Import!M19057","v":0},{"$f":"Import!M19257","v":0},{"$f":"Import!M19457","v":0}]
[181,{"$f":"Import!M18458","v":"Select"},{"$f":"Import!M18658","v":"Select"},{"$f":"Import!M18858","v":"Select"},{"$f":"Import!M19058","v":0},{"$f":"Import!M19258","v":0},{"$f":"Import!M19458","v":0}]
[182,{"$f":"Import!M18459","v":"Select"},{"$f":"Import!M18659","v":"Select"},{"$f":"Import!M18859","v":"Select"},{"$f":"Import!M19059","v":0},{"$f":"Import!M19259","v":0},{"$f":"Import!M19459","v":0}]
[183,{"$f":"Import!M18460","v":"Select"},{"$f":"Import!M18660","v":"Select"},{"$f":"Import!M18860","v":"Select"},{"$f":"Import!M19060","v":0},{"$f":"Import!M19260","v":0},{"$f":"Import!M19460","v":0}]
[184,{"$f":"Import!M18461","v":"Select"},{"$f":"Import!M18661","v":"Select"},{"$f":"Import!M18861","v":"Select"},{"$f":"Import!M19061","v":0},{"$f":"Import!M19261","v":0},{"$f":"Import!M19461","v":0}]
[185,{"$f":"Import!M18462","v":"Select"},{"$f":"Import!M18662","v":"Select"},{"$f":"Import!M18862","v":"Select"},{"$f":"Import!M19062","v":0},{"$f":"Import!M19262","v":0},{"$f":"Import!M19462","v":0}]
[186,{"$f":"Import!M18463","v":"Select"},{"$f":"Import!M18663","v":"Select"},{"$f":"Import!M18863","v":"Select"},{"$f":"Import!M19063","v":0},{"$f":"Import!M19263","v":0},{"$f":"Import!M19463","v":0}]
[187,{"$f":"Import!M18464","v":"Select"},{"$f":"Import!M18664","v":"Select"},{"$f":"Import!M18864","v":"Select"},{"$f":"Import!M19064","v":0},{"$f":"Import!M19264","v":0},{"$f":"Import!M19464","v":0}]
[188,{"$f":"Import!M18465","v":"Select"},{"$f":"Import!M18665","v":"Select"},{"$f":"Import!M18865","v":"Select"},{"$f":"Import!M19065","v":0},{"$f":"Import!M19265","v":0},{"$f":"Import!M19465","v":0}]
[189,{"$f":"Import!M18466","v":"Select"},{"$f":"Import!M18666","v":"Select"},{"$f":"Import!M18866","v":"Select"},{"$f":"Import!M19066","v":0},{"$f":"Import!M19266","v":0},{"$f":"Import!M19466","v":0}]
[190,{"$f":"Import!M18467","v":"Select"},{"$f":"Import!M18667","v":"Select"},{"$f":"Import!M18867","v":"Select"},{"$f":"Import!M19067","v":0},{"$f":"Import!M19267","v":0},{"$f":"Import!M19467","v":0}]
[191,{"$f":"Import!M18468","v":"Select"},{"$f":"Import!M18668","v":"Select"},{"$f":"Import!M18868","v":"Select"},{"$f":"Import!M19068","v":0},{"$f":"Import!M19268","v":0},{"$f":"Import!M19468","v":0}]
[192,{"$f":"Import!M18469","v":"Select"},{"$f":"Import!M18669","v":"Select"},{"$f":"Import!M18869","v":"Select"},{"$f":"Import!M19069","v":0},{"$f":"Import!M19269","v":0},{"$f":"Import!M19469","v":0}]
[193,{"$f":"Import!M18470","v":"Select"},{"$f":"Import!M18670","v":"Select"},{"$f":"Import!M18870","v":"Select"},{"$f":"Import!M19070","v":0},{"$f":"Import!M19270","v":0},{"$f":"Import!M19470","v":0}]
[194,{"$f":"Import!M18471","v":"Select"},{"$f":"Import!M18671","v":"Select"},{"$f":"Import!M18871","v":"Select"},{"$f":"Import!M19071","v":0},{"$f":"Import!M19271","v":0},{"$f":"Import!M19471","v":0}]
[{"$f":"A1989+1","v":195},{"$f":"Import!M18472","v":"Select"},{"$f":"Import!M18672","v":"Select"},{"$f":"Import!M18872","v":"Select"},{"$f":"Import!M19072","v":0},{"$f":"Import!M19272","v":0},{"$f":"Import!M19472","v":0}]
[196,{"$f":"Import!M18473","v":"Select"},{"$f":"Import!M18673","v":"Select"},{"$f":"Import!M18873","v":"Select"},{"$f":"Import!M19073","v":0},{"$f":"Import!M19273","v":0},{"$f":"Import!M19473","v":0}]
[197,{"$f":"Import!M18474","v":"Select"},{"$f":"Import!M18674","v":"Select"},{"$f":"Import!M18874","v":"Select"},{"$f":"Import!M19074","v":0},{"$f":"Import!M19274","v":0},{"$f":"Import!M19474","v":0}]
[198,{"$f":"Import!M18475","v":"Select"},{"$f":"Import!M18675","v":"Select"},{"$f":"Import!M18875","v":"Select"},{"$f":"Import!M19075","v":0},{"$f":"Import!M19275","v":0},{"$f":"Import!M19475","v":0}]
[199,{"$f":"Import!M18476","v":"Select"},{"$f":"Import!M18676","v":"Select"},{"$f":"Import!M18876","v":"Select"},{"$f":"Import!M19076","v":0},{"$f":"Import!M19276","v":0},{"$f":"Import!M19476","v":0}]
[200,{"$f":"Import!M18477","v":"Select"},{"$f":"Import!M18677","v":"Select"},{"$f":"Import!M18877","v":"Select"},{"$f":"Import!M19077","v":0},{"$f":"Import!M19277","v":0},{"$f":"Import!M19477","v":0}]
[]
[null,"Total Other Assets",null,null,null,{"$f":"SUM(F1796:F1995)","v":0}]
[]
[]
[null,"TOTAL ASSETS (Schedule VI (EBS) and Schedule VIA (EBS))",null,null,null,{"$f":"F212+F620+F986+G1094+F1230+E1338+G1446+G1554+I1761+F1997+'Schedule VIA (EBS)'!F2000","v":0}]
[]
[null,"TOTAL ASSETS (Form 4EBS Line 15)",null,null,null,{"$f":"'Form 4EBS'!F93","v":0}]
[]
[null,"Check Form 4EBS",null,null,null,{"$f":"IF(F2006=0,\"TRUE\",\"FALSE\")","v":"TRUE"}]
[]
[null,"Difference",null,null,null,{"$f":"ROUND(F2002-F2000,0)","v":0}]
[]
[null,"(L) INFORMATION ON SECURITIES LENDING AND REPURCHASE TRANSACTIONS"]
[]
[null,null,{"$f":"YEAR($C$3)","v":2023}]
[null,null,"Notional Value","Fair Value",null,"Comments"]
[null,"Securities Lending transactions"]
[null,"Repo / Reverse Repo transactions"]
[]
[null,"Total",{"$f":"SUM(C2012:C2013)","v":0},{"$f":"SUM(D2012:D2013)","v":0}]
[]
[null,"(M) INFORMATION ON FAIR VALUATION HIERARCHY"]
[]
[null,null,{"$f":"YEAR($C$3)","v":2023},"Fair Value"]
[null,null,"Unaffiliated","Affiliated","Total","Comments"]
[null,"Level 1 Assets (according to Fair Value hierarchy)",null,null,{"$f":"SUM(C2021:D2021)","v":0}]
[null,"Level 2 Assets (according to Fair Value hierarchy)",null,null,{"$f":"SUM(C2022:D2022)","v":0}]
[null,"Level 3 Assets (according to Fair Value hierarchy)",null,null,{"$f":"SUM(C2023:D2023)","v":0}]
[]
[null,"Total",{"$f":"SUM(C2021:C2023)","v":0},{"$f":"SUM(D2021:D2023)","v":0},{"$f":"SUM(E2021:E2023)","v":0}]
[]
[null,"Check Securities Allocated by Levels 1-3",null,null,{"$f":"F212+F620+F986+G1094+F1230+E1338+G1446+G1554","v":0}]
[]
[null,"Difference",null,null,{"$f":"ROUND(E2025-E2027,0)","v":0},{"$f":"IF(E2029=0,\"TRUE\",\"FALSE\")","v":"TRUE"}]
[]
[null,"EFFECTIVE DURATION",null,null,{"$f":"Import!M19493","v":0}]
[]
[null,"EFFECTIVE CONVEXITY",null,null,{"$f":"Import!M19494","v":0}]
[]
[null,"Fair Values",{"$f":"YEAR(C3)","v":2023}]
[null,null,null,null,null,null,null,null,"If Other Rating Agency is used, specify the name of such agency (if applicable)",{"$f":"Import!M19495","v":0},{"$f":"Import!M19496","v":0},{"$f":"Import!M19497","v":0},{"$f":"Import!M19498","v":0}]
[null,"Asset/Rating Category","BSCR Rating","Moody's Investor's Service","Standard and Poor's","Dominion Bond Rating Service","Kroll Bond Rating Agency","Egan Jones Rating Company","Japan Credit Rating Agency","BMA-approved Internal Ratings","Other BMA-approved Rating Agency 1","Other BMA-approved Rating Agency 2","Other BMA-approved Rating Agency 3","Total"]
[null,"Financial institutions, brokers and dealers",1,{"$f":"Import!M19499","v":0},{"$f":"Import!M19540","v":0},{"$f":"Import!M19581","v":0},{"$f":"Import!M19622","v":0},{"$f":"Import!M19663","v":0},{"$f":"Import!M19704","v":0},{"$f":"Import!M19745","v":0},{"$f":"Import!M19786","v":0},{"$f":"Import!M19827","v":0},{"$f":"Import!M19868","v":0},{"$f":"SUM(D2038:M2038)","v":0}]
[null,"Financial institutions, brokers and dealers",2,{"$f":"Import!M19500","v":0},{"$f":"Import!M19541","v":0},{"$f":"Import!M19582","v":0},{"$f":"Import!M19623","v":0},{"$f":"Import!M19664","v":0},{"$f":"Import!M19705","v":0},{"$f":"Import!M19746","v":0},{"$f":"Import!M19787","v":0},{"$f":"Import!M19828","v":0},{"$f":"Import!M19869","v":0},{"$f":"SUM(D2039:M2039)","v":0}]
[null,"Financial institutions, brokers and dealers",3,{"$f":"Import!M19501","v":0},{"$f":"Import!M19542","v":0},{"$f":"Import!M19583","v":0},{"$f":"Import!M19624","v":0},{"$f":"Import!M19665","v":0},{"$f":"Import!M19706","v":0},{"$f":"Import!M19747","v":0},{"$f":"Import!M19788","v":0},{"$f":"Import!M19829","v":0},{"$f":"Import!M19870","v":0},0]
[null,"Financial institutions, brokers and dealers",4,{"$f":"Import!M19502","v":0},{"$f":"Import!M19543","v":0},{"$f":"Import!M19584","v":0},{"$f":"Import!M19625","v":0},{"$f":"Import!M19666","v":0},{"$f":"Import!M19707","v":0},{"$f":"Import!M19748","v":0},{"$f":"Import!M19789","v":0},{"$f":"Import!M19830","v":0},{"$f":"Import!M19871","v":0},0]
[null,"Financial institutions, brokers and dealers",5,{"$f":"Import!M19503","v":0},{"$f":"Import!M19544","v":0},{"$f":"Import!M19585","v":0},{"$f":"Import!M19626","v":0},{"$f":"Import!M19667","v":0},{"$f":"Import!M19708","v":0},{"$f":"Import!M19749","v":0},{"$f":"Import!M19790","v":0},{"$f":"Import!M19831","v":0},{"$f":"Import!M19872","v":0},0]
[null,"Financial institutions, brokers and dealers",6,{"$f":"Import!M19504","v":0},{"$f":"Import!M19545","v":0},{"$f":"Import!M19586","v":0},{"$f":"Import!M19627","v":0},{"$f":"Import!M19668","v":0},{"$f":"Import!M19709","v":0},{"$f":"Import!M19750","v":0},{"$f":"Import!M19791","v":0},{"$f":"Import!M19832","v":0},{"$f":"Import!M19873","v":0},0]
[null,"Financial institutions, brokers and dealers",7,{"$f":"Import!M19505","v":0},{"$f":"Import!M19546","v":0},{"$f":"Import!M19587","v":0},{"$f":"Import!M19628","v":0},{"$f":"Import!M19669","v":0},{"$f":"Import!M19710","v":0},{"$f":"Import!M19751","v":0},{"$f":"Import!M19792","v":0},{"$f":"Import!M19833","v":0},{"$f":"Import!M19874","v":0},0]
[null,"Financial institutions, brokers and dealers",8,{"$f":"Import!M19506","v":0},{"$f":"Import!M19547","v":0},{"$f":"Import!M19588","v":0},{"$f":"Import!M19629","v":0},{"$f":"Import!M19670","v":0},{"$f":"Import!M19711","v":0},{"$f":"Import!M19752","v":0},{"$f":"Import!M19793","v":0},{"$f":"Import!M19834","v":0},{"$f":"Import!M19875","v":0},0]
[null,"Insurance companies",1,{"$f":"Import!M19507","v":0},{"$f":"Import!M19548","v":0},{"$f":"Import!M19589","v":0},{"$f":"Import!M19630","v":0},{"$f":"Import!M19671","v":0},{"$f":"Import!M19712","v":0},{"$f":"Import!M19753","v":0},{"$f":"Import!M19794","v":0},{"$f":"Import!M19835","v":0},{"$f":"Import!M19876","v":0},0]
[null,"Insurance companies",2,{"$f":"Import!M19508","v":0},{"$f":"Import!M19549","v":0},{"$f":"Import!M19590","v":0},{"$f":"Import!M19631","v":0},{"$f":"Import!M19672","v":0},{"$f":"Import!M19713","v":0},{"$f":"Import!M19754","v":0},{"$f":"Import!M19795","v":0},{"$f":"Import!M19836","v":0},{"$f":"Import!M19877","v":0},0]
[null,"Insurance companies",3,{"$f":"Import!M19509","v":0},{"$f":"Import!M19550","v":0},{"$f":"Import!M19591","v":0},{"$f":"Import!M19632","v":0},{"$f":"Import!M19673","v":0},{"$f":"Import!M19714","v":0},{"$f":"Import!M19755","v":0},{"$f":"Import!M19796","v":0},{"$f":"Import!M19837","v":0},{"$f":"Import!M19878","v":0},0]
[null,"Insurance companies",4,{"$f":"Import!M19510","v":0},{"$f":"Import!M19551","v":0},{"$f":"Import!M19592","v":0},{"$f":"Import!M19633","v":0},{"$f":"Import!M19674","v":0},{"$f":"Import!M19715","v":0},{"$f":"Import!M19756","v":0},{"$f":"Import!M19797","v":0},{"$f":"Import!M19838","v":0},{"$f":"Import!M19879","v":0},0]
[null,"Insurance companies",5,{"$f":"Import!M19511","v":0},{"$f":"Import!M19552","v":0},{"$f":"Import!M19593","v":0},{"$f":"Import!M19634","v":0},{"$f":"Import!M19675","v":0},{"$f":"Import!M19716","v":0},{"$f":"Import!M19757","v":0},{"$f":"Import!M19798","v":0},{"$f":"Import!M19839","v":0},{"$f":"Import!M19880","v":0},0]
[null,"Insurance companies",6,{"$f":"Import!M19512","v":0},{"$f":"Import!M19553","v":0},{"$f":"Import!M19594","v":0},{"$f":"Import!M19635","v":0},{"$f":"Import!M19676","v":0},{"$f":"Import!M19717","v":0},{"$f":"Import!M19758","v":0},{"$f":"Import!M19799","v":0},{"$f":"Import!M19840","v":0},{"$f":"Import!M19881","v":0},0]
[null,"Insurance companies",7,{"$f":"Import!M19513","v":0},{"$f":"Import!M19554","v":0},{"$f":"Import!M19595","v":0},{"$f":"Import!M19636","v":0},{"$f":"Import!M19677","v":0},{"$f":"Import!M19718","v":0},{"$f":"Import!M19759","v":0},{"$f":"Import!M19800","v":0},{"$f":"Import!M19841","v":0},{"$f":"Import!M19882","v":0},0]
[null,"Insurance companies",8,{"$f":"Import!M19514","v":0},{"$f":"Import!M19555","v":0},{"$f":"Import!M19596","v":0},{"$f":"Import!M19637","v":0},{"$f":"Import!M19678","v":0},{"$f":"Import!M19719","v":0},{"$f":"Import!M19760","v":0},{"$f":"Import!M19801","v":0},{"$f":"Import!M19842","v":0},{"$f":"Import!M19883","v":0},0]
[null,"Corporate issuers",1,{"$f":"Import!M19515","v":0},{"$f":"Import!M19556","v":0},{"$f":"Import!M19597","v":0},{"$f":"Import!M19638","v":0},{"$f":"Import!M19679","v":0},{"$f":"Import!M19720","v":0},{"$f":"Import!M19761","v":0},{"$f":"Import!M19802","v":0},{"$f":"Import!M19843","v":0},{"$f":"Import!M19884","v":0},0]
[null,"Corporate issuers",2,{"$f":"Import!M19516","v":0},{"$f":"Import!M19557","v":0},{"$f":"Import!M19598","v":0},{"$f":"Import!M19639","v":0},{"$f":"Import!M19680","v":0},{"$f":"Import!M19721","v":0},{"$f":"Import!M19762","v":0},{"$f":"Import!M19803","v":0},{"$f":"Import!M19844","v":0},{"$f":"Import!M19885","v":0},0]
[null,"Corporate issuers",3,{"$f":"Import!M19517","v":0},{"$f":"Import!M19558","v":0},{"$f":"Import!M19599","v":0},{"$f":"Import!M19640","v":0},{"$f":"Import!M19681","v":0},{"$f":"Import!M19722","v":0},{"$f":"Import!M19763","v":0},{"$f":"Import!M19804","v":0},{"$f":"Import!M19845","v":0},{"$f":"Import!M19886","v":0},0]
[null,"Corporate issuers",4,{"$f":"Import!M19518","v":0},{"$f":"Import!M19559","v":0},{"$f":"Import!M19600","v":0},{"$f":"Import!M19641","v":0},{"$f":"Import!M19682","v":0},{"$f":"Import!M19723","v":0},{"$f":"Import!M19764","v":0},{"$f":"Import!M19805","v":0},{"$f":"Import!M19846","v":0},{"$f":"Import!M19887","v":0},0]
[null,"Corporate issuers",5,{"$f":"Import!M19519","v":0},{"$f":"Import!M19560","v":0},{"$f":"Import!M19601","v":0},{"$f":"Import!M19642","v":0},{"$f":"Import!M19683","v":0},{"$f":"Import!M19724","v":0},{"$f":"Import!M19765","v":0},{"$f":"Import!M19806","v":0},{"$f":"Import!M19847","v":0},{"$f":"Import!M19888","v":0},0]
[null,"Corporate issuers",6,{"$f":"Import!M19520","v":0},{"$f":"Import!M19561","v":0},{"$f":"Import!M19602","v":0},{"$f":"Import!M19643","v":0},{"$f":"Import!M19684","v":0},{"$f":"Import!M19725","v":0},{"$f":"Import!M19766","v":0},{"$f":"Import!M19807","v":0},{"$f":"Import!M19848","v":0},{"$f":"Import!M19889","v":0},0]
[null,"Corporate issuers",7,{"$f":"Import!M19521","v":0},{"$f":"Import!M19562","v":0},{"$f":"Import!M19603","v":0},{"$f":"Import!M19644","v":0},{"$f":"Import!M19685","v":0},{"$f":"Import!M19726","v":0},{"$f":"Import!M19767","v":0},{"$f":"Import!M19808","v":0},{"$f":"Import!M19849","v":0},{"$f":"Import!M19890","v":0},0]
[null,"Corporate issuers",8,{"$f":"Import!M19522","v":0},{"$f":"Import!M19563","v":0},{"$f":"Import!M19604","v":0},{"$f":"Import!M19645","v":0},{"$f":"Import!M19686","v":0},{"$f":"Import!M19727","v":0},{"$f":"Import!M19768","v":0},{"$f":"Import!M19809","v":0},{"$f":"Import!M19850","v":0},{"$f":"Import!M19891","v":0},0]
[null,"Issuers of asset-backed securities",1,{"$f":"Import!M19523","v":0},{"$f":"Import!M19564","v":0},{"$f":"Import!M19605","v":0},{"$f":"Import!M19646","v":0},{"$f":"Import!M19687","v":0},{"$f":"Import!M19728","v":0},{"$f":"Import!M19769","v":0},{"$f":"Import!M19810","v":0},{"$f":"Import!M19851","v":0},{"$f":"Import!M19892","v":0},0]
[null,"Issuers of asset-backed securities",2,{"$f":"Import!M19524","v":0},{"$f":"Import!M19565","v":0},{"$f":"Import!M19606","v":0},{"$f":"Import!M19647","v":0},{"$f":"Import!M19688","v":0},{"$f":"Import!M19729","v":0},{"$f":"Import!M19770","v":0},{"$f":"Import!M19811","v":0},{"$f":"Import!M19852","v":0},{"$f":"Import!M19893","v":0},0]
[null,"Issuers of asset-backed securities",3,{"$f":"Import!M19525","v":0},{"$f":"Import!M19566","v":0},{"$f":"Import!M19607","v":0},{"$f":"Import!M19648","v":0},{"$f":"Import!M19689","v":0},{"$f":"Import!M19730","v":0},{"$f":"Import!M19771","v":0},{"$f":"Import!M19812","v":0},{"$f":"Import!M19853","v":0},{"$f":"Import!M19894","v":0},0]
[null,"Issuers of asset-backed securities",4,{"$f":"Import!M19526","v":0},{"$f":"Import!M19567","v":0},{"$f":"Import!M19608","v":0},{"$f":"Import!M19649","v":0},{"$f":"Import!M19690","v":0},{"$f":"Import!M19731","v":0},{"$f":"Import!M19772","v":0},{"$f":"Import!M19813","v":0},{"$f":"Import!M19854","v":0},{"$f":"Import!M19895","v":0},0]
[null,"Issuers of asset-backed securities",5,{"$f":"Import!M19527","v":0},{"$f":"Import!M19568","v":0},{"$f":"Import!M19609","v":0},{"$f":"Import!M19650","v":0},{"$f":"Import!M19691","v":0},{"$f":"Import!M19732","v":0},{"$f":"Import!M19773","v":0},{"$f":"Import!M19814","v":0},{"$f":"Import!M19855","v":0},{"$f":"Import!M19896","v":0},0]
[null,"Issuers of asset-backed securities",6,{"$f":"Import!M19528","v":0},{"$f":"Import!M19569","v":0},{"$f":"Import!M19610","v":0},{"$f":"Import!M19651","v":0},{"$f":"Import!M19692","v":0},{"$f":"Import!M19733","v":0},{"$f":"Import!M19774","v":0},{"$f":"Import!M19815","v":0},{"$f":"Import!M19856","v":0},{"$f":"Import!M19897","v":0},0]
[null,"Issuers of asset-backed securities",7,{"$f":"Import!M19529","v":0},{"$f":"Import!M19570","v":0},{"$f":"Import!M19611","v":0},{"$f":"Import!M19652","v":0},{"$f":"Import!M19693","v":0},{"$f":"Import!M19734","v":0},{"$f":"Import!M19775","v":0},{"$f":"Import!M19816","v":0},{"$f":"Import!M19857","v":0},{"$f":"Import!M19898","v":0},0]
[null,"Issuers of asset-backed securities",8,{"$f":"Import!M19530","v":0},{"$f":"Import!M19571","v":0},{"$f":"Import!M19612","v":0},{"$f":"Import!M19653","v":0},{"$f":"Import!M19694","v":0},{"$f":"Import!M19735","v":0},{"$f":"Import!M19776","v":0},{"$f":"Import!M19817","v":0},{"$f":"Import!M19858","v":0},{"$f":"Import!M19899","v":0},0]
[null,"Government securities, municipal securities, foreign government securities",0,{"$f":"Import!M19531","v":0},{"$f":"Import!M19572","v":0},{"$f":"Import!M19613","v":0},{"$f":"Import!M19654","v":0},{"$f":"Import!M19695","v":0},{"$f":"Import!M19736","v":0},{"$f":"Import!M19777","v":0},{"$f":"Import!M19818","v":0},{"$f":"Import!M19859","v":0},{"$f":"Import!M19900","v":0},0]
[null,"Government securities, municipal securities, foreign government securities",1,{"$f":"Import!M19532","v":0},{"$f":"Import!M19573","v":0},{"$f":"Import!M19614","v":0},{"$f":"Import!M19655","v":0},{"$f":"Import!M19696","v":0},{"$f":"Import!M19737","v":0},{"$f":"Import!M19778","v":0},{"$f":"Import!M19819","v":0},{"$f":"Import!M19860","v":0},{"$f":"Import!M19901","v":0},0]
[null,"Government securities, municipal securities, foreign government securities",2,{"$f":"Import!M19533","v":0},{"$f":"Import!M19574","v":0},{"$f":"Import!M19615","v":0},{"$f":"Import!M19656","v":0},{"$f":"Import!M19697","v":0},{"$f":"Import!M19738","v":0},{"$f":"Import!M19779","v":0},{"$f":"Import!M19820","v":0},{"$f":"Import!M19861","v":0},{"$f":"Import!M19902","v":0},0]
[null,"Government securities, municipal securities, foreign government securities",3,{"$f":"Import!M19534","v":0},{"$f":"Import!M19575","v":0},{"$f":"Import!M19616","v":0},{"$f":"Import!M19657","v":0},{"$f":"Import!M19698","v":0},{"$f":"Import!M19739","v":0},{"$f":"Import!M19780","v":0},{"$f":"Import!M19821","v":0},{"$f":"Import!M19862","v":0},{"$f":"Import!M19903","v":0},0]
[null,"Government securities, municipal securities, foreign government securities",4,{"$f":"Import!M19535","v":0},{"$f":"Import!M19576","v":0},{"$f":"Import!M19617","v":0},{"$f":"Import!M19658","v":0},{"$f":"Import!M19699","v":0},{"$f":"Import!M19740","v":0},{"$f":"Import!M19781","v":0},{"$f":"Import!M19822","v":0},{"$f":"Import!M19863","v":0},{"$f":"Import!M19904","v":0},0]
[null,"Government securities, municipal securities, foreign government securities",5,{"$f":"Import!M19536","v":0},{"$f":"Import!M19577","v":0},{"$f":"Import!M19618","v":0},{"$f":"Import!M19659","v":0},{"$f":"Import!M19700","v":0},{"$f":"Import!M19741","v":0},{"$f":"Import!M19782","v":0},{"$f":"Import!M19823","v":0},{"$f":"Import!M19864","v":0},{"$f":"Import!M19905","v":0},0]
[null,"Government securities, municipal securities, foreign government securities",6,{"$f":"Import!M19537","v":0},{"$f":"Import!M19578","v":0},{"$f":"Import!M19619","v":0},{"$f":"Import!M19660","v":0},{"$f":"Import!M19701","v":0},{"$f":"Import!M19742","v":0},{"$f":"Import!M19783","v":0},{"$f":"Import!M19824","v":0},{"$f":"Import!M19865","v":0},{"$f":"Import!M19906","v":0},0]
[null,"Government securities, municipal securities, foreign government securities",7,{"$f":"Import!M19538","v":0},{"$f":"Import!M19579","v":0},{"$f":"Import!M19620","v":0},{"$f":"Import!M19661","v":0},{"$f":"Import!M19702","v":0},{"$f":"Import!M19743","v":0},{"$f":"Import!M19784","v":0},{"$f":"Import!M19825","v":0},{"$f":"Import!M19866","v":0},{"$f":"Import!M19907","v":0},0]
[null,"Government securities, municipal securities, foreign government securities",8,{"$f":"Import!M19539","v":0},{"$f":"Import!M19580","v":0},{"$f":"Import!M19621","v":0},{"$f":"Import!M19662","v":0},{"$f":"Import!M19703","v":0},{"$f":"Import!M19744","v":0},{"$f":"Import!M19785","v":0},{"$f":"Import!M19826","v":0},{"$f":"Import!M19867","v":0},{"$f":"Import!M19908","v":0},0]
[null,null,null,null,null,null,null,null,null,null,null,null,"Total",{"$f":"SUM(N2038:N2078)","v":0}]
[]
[null,"Total rated assets","BSCR Rating","Moody's Investor's Service","Standard and Poor's","Dominion Bond Rating Service","Kroll Bond Rating Agency","Egan Jones Rating Company","Japan Credit Rating Agency","BMA-approved Internal Ratings","Other BMA-approved Rating Agency 1","Other BMA-approved Rating Agency 2","Other BMA-approved Rating Agency 3","Total"]
[null,"Total rated assets",0,{"$f":"D2070","v":0},{"$f":"E2070","v":0},0,0,0,0,0,0,0,0,{"$f":"SUM(D2082:M2082)","v":0}]
[null,"Total rated assets",1,{"$f":"D2038+D2046+D2054+D2062+D2071","v":0},{"$f":"E2038+E2046+E2054+E2062+E2071","v":0},0,0,0,0,0,0,0,0,{"$f":"SUM(D2083:M2083)","v":0}]
[null,"Total rated assets",2,{"$f":"D2039+D2047+D2055+D2063+D2072","v":0},0,0,0,0,0,0,0,0,0,0]
[null,"Total rated assets",3,0,0,0,0,0,0,0,0,0,0,0]
[null,"Total rated assets",4,0,0,0,0,0,0,0,0,0,0,0]
[null,"Total rated assets",5,0,0,0,0,0,0,0,0,0,0,0]
[null,"Total rated assets",6,0,0,0,0,0,0,0,0,0,0,0]
[null,"Total rated assets",7,0,0,0,0,0,0,0,0,0,0,0]
[null,"Total rated assets",8,0,0,0,0,0,0,0,0,0,0,0]
[null,"Total rated assets","Total",{"$f":"SUM(D2082:D2090)","v":0},{"$f":"SUM(E2082:E2090)","v":0},0,0,0,0,0,0,0,0,0]
[]
[null,"Asset/Rating Category","BSCR Rating","Unrated"]
[null,"Financial institutions, brokers and dealers",8,{"$f":"Import!M19909","v":0}]
[null,"Insurance companies",8,{"$f":"Import!M19910","v":0}]
[null,"Corporate issuers",8,{"$f":"Import!M19911","v":0}]
[null,"Issuers of asset-backed securities",8,{"$f":"Import!M19912","v":0}]
[null,"Government securities, municipal securities, foreign government securities",8,{"$f":"Import!M19913","v":0}]
[null,"Total unrated assets","Total",{"$f":"SUM(D2094:D2098)","v":0}]
[]
[null,"Asset/Rating Category","BSCR Rating","Financial institutions, brokers and dealers","Insurance companies","Corporate issuers","Issuers of asset-backed securities","Government securities, municipal securities, foreign government securities","Total"]
[null,"Total",0,null,null,null,null,{"$f":"N2070","v":0},{"$f":"SUM(H2102)","v":0}]
[null,"Total",1,{"$f":"N2038","v":0},{"$f":"N2046","v":0},{"$f":"N2054","v":0},{"$f":"N2062","v":0},0,{"$f":"SUM(D2103:H2103)","v":0}]
[null,"Total",2,0,0,0,0,0,{"$f":"SUM(D2104:H2104)","v":0}]
[null,"Total",3,0,0,0,0,0,0]
[null,"Total",4,0,0,0,0,0,0]
[null,"Total",5,0,0,0,0,0,0]
[null,"Total",6,0,0,0,0,0,0]
[null,"Total",7,0,0,0,0,0,0]
[null,"Total",8,{"$f":"N2045+D2094","v":0},{"$f":"N2053+D2095","v":0},{"$f":"N2061+D2096","v":0},{"$f":"N2069+D2097","v":0},{"$f":"N2078+D2098","v":0},0]
[null,"Total fixed income assets","Total",{"$f":"SUM(D2103:D2110)","v":0},{"$f":"SUM(E2103:E2110)","v":0},{"$f":"SUM(F2103:F2110)","v":0},{"$f":"SUM(G2103:G2110)","v":0},{"$f":"SUM(H2102:H2110)","v":0},{"$f":"SUM(D2111:H2111)","v":0}]
[null,"Unrated","- of which unrated",{"$f":"D2094","v":0},{"$f":"D2095","v":0},{"$f":"D2096","v":0},{"$f":"D2097","v":0},{"$f":"D2098","v":0},{"$f":"SUM(D2112:H2112)","v":0}]
[]
[]
["Cash","Sovereign Bonds","RMBS - Agency","Listed Preferred Equity - Direct","Hedge Funds","Investment Income Due and Accrued","Energy","Holding Entity","Significant Influence","United States Dollars","Positive market value",null,null,null,null,"Residential Mortgages",null,"United States of America"]
["Certificates of Deposit","Municipals","RMBS - Non-agency","Listed Preferred Equity - ETF","Equity investments in Infrastructure","Accounts and Premiums Receivable","Materials","Operating Entity","Control","Euro","Negative market value",null,null,null,null,"Other Residential Loans",null,"Bermuda"]
["Short-Term Commercial Paper","Supranationals (multilateral development banks and international organizations)","CMBS","Listed Preferred Equity - Mutual Fund","Commodities - Direct","Reinsurance Balance Receivable","Industrial","Branch","Select","Afghanistan Afghanis","Select",null,null,null,null,"Commercial and Farm Mortgages",null,"United Kingdom of Great Britain and Northern Ireland"]
["Money Market Funds","Corporate bonds","CLOs","Private Preferred Equity - Direct","Commodities - ETF","Funds Held by Ceding Reinsurers","Consumer Discretionary","Select",null,"Albania Leke",null,null,null,null,null,"Other Commercial Real Estate Loans",null,"Canada"]
["Other","Private Placements","CDOs","Private Preferred Equity - Fund","Commodities - Mutual Funds","SAC - long-term business - variable annuities","Consumer Staples",null,null,"Armenia Drams",null,null,null,null,null,"Middle Market Loans"]
["Select","Other - Secured Bonds","Auto Loan ABS","Other - Listed Preferred Equity","Catastrophe Bonds","SAC - long-term business - others","Healthcare",null,null,"Netherlands Antilles Guilders",null,null,null,null,null,"Leveraged Loans",null,"Afghanistan"]
[null,"Other - Unsecured Bonds","Student Loan ABS","Other - Private Preferred Equity","Other Insurance-Linked Securities","SAC - general business","Financial",null,null,"Angola Kwanza",null,null,null,null,null,"Other Direct Private Lending",null,"Aland Islands"]
[null,"Exchange-Traded Fund - Sovereigns","Credit Card Receivable ABS","Select","Advances to Affiliates","Deposit assets","Select",null,null,"Argentina Pesos",null,null,null,null,null,"Infrastructure Loans",null,"Albania"]
[null,"Mutual Fund - Sovereigns","Other ABS",null,"Investments in Affiliates","Other Sundry Assets",null,null,null,"Australia Dollars",null,null,null,null,null,"Collateral Loans",null,"Algeria"]
[null,"Exchange-Traded Fund - Corporates","Select",null,"Other","Letter of Credit, Guarantees and Other Instruments",null,null,null,"Aruba Guilders",null,null,null,null,null,"Equity Release / Reverse Mortgages",null,"American Samoa"]
[null,"Mutual Fund - Corporates",null,null,"Select","Other",null,null,null,"Azerbaijan New Manats",null,null,null,null,null,"Policy Loans",null,"Andorra"]
[null,"Other Funds",null,null,null,"Select",null,null,null,"Bosnia and Herzegovina Convertible Marka",null,null,null,null,null,"Other Direct Loans",null,"Angola"]
[null,"Select",null,null,null,null,null,null,null,"Barbados Dollars",null,null,null,null,null,"Mortgage Loan Fund - Residential",null,"Anguilla"]
[null,null,null,null,null,null,null,null,null,"Bangladesh Taka",null,null,null,null,null,"Mortgage Loan Fund - Commercial",null,"Antigua and Barbuda"]
[null,null,null,null,null,null,null,null,null,"Bulgaria Leva",null,null,null,null,null,"Private Credit Fund",null,"Argentina"]
[null,null,null,null,null,null,null,null,null,"Bahrain Dinars",null,null,null,null,null,"Other Loan Fund",null,"Armenia"]
["Listed options","Equity","Hedging","Long / Receive Fixed / Sell Protection","Private Equities","Investment Income Due and Accrued","Direct Real Estate - Residential",null,null,"Burundi Francs",null,null,null,null,null,"Select",null,"Aruba"]
["Futures","Debt","Speculative","Short / Receive Floating / Buy Protection","Investment Funds","Accounts and Premiums Receivable","Direct Real Estate - Commercial",null,null,"Bermuda Dollars",null,null,null,null,null,null,null,"Australia"]
["Forwards","Interest Rate","Select","Select","Hedge Funds","Reinsurance Balance Receivable","Direct Real-Estate - Industrial",null,null,"Brunei Dollars",null,null,null,null,null,"Insured/Guaranteed Mortgages",null,"Austria"]
["Swaps","Inflation",null,null,"Private Credit Funds","SAC - long-term business - variable annuities","Direct Real Estate - Land",null,null,"Bolivia Bolivianos",null,null,null,null,null,"Other Commercial and Farm Mortgages",null,"Azerbaijan"]
["Swaptions","Credit",null,null,"Catastrophe Bonds","SAC - long-term business - others","Real Estate Funds - Residential",null,null,"Brazil Reais",null,null,null,null,null,"Other Residential Mortgages",null,"Bahamas"]
["OTC options","Currencies","Yes","Exchange-traded","Other Insurance-Linked Securities","SAC - general business","Real Estate Funds - Commercial",null,null,"Bahamas Dollars",null,null,null,null,null,"Mortgages Not In Good Standing",null,"Bahrain"]
["Other","Commodities","No","OTC – Centrally-cleared","Infrastructure Debt","Deposit assets","Real-Estate Funds - Industrial",null,null,"Bhutan Ngultrum",null,null,null,null,null,"Collateral Loans",null,"Bangladesh"]
["Select","Other","Select","OTC – Not centrally-cleared","Equity Investments in Infrastructure","Other Sundry Assets","Real Estate Funds - Land",null,null,"Botswana Pulas",null,null,null,null,null,"Middle Market Loans",null,"Barbados"]
[null,"Select",null,"Select","Other","Letter of Credit, Guarantees and Other Instruments","Direct Real Estate - Other",null,null,"Belarus Rubles",null,null,null,null,null,"Other Direct Private Lending",null,"Belarus"]
[null,null,null,null,"Select","Other","Real Estate Funds - Other",null,null,"Belize Dollars",null,null,null,null,null,"Policy Loans",null,"Belgium"]
[null,null,null,null,null,"Select","Select",null,null,"Canada Dollars",null,null,null,null,null,"Other",null,"Belize"]
[null,null,null,null,null,null,null,null,null,"Congo/Kinshasa Francs",null,null,null,null,null,"Select",null,"Benin"]
[null,null,null,null,null,null,null,null,null,"Switzerland Francs",null,null,null,null,null,null,null,"Bhutan"]
["BSCR Rating",null,"Listed Equity - Direct",null,null,null,null,null,null,"Chile Pesos",null,null,null,null,null,null,null,"Bolivia (Plurinational State of)"]
["Select",null,"Listed Equity - ETF",null,null,null,"Investment",null,null,"China Yuan Renminbi",null,null,null,null,null,null,null,"Bonaire, Sint Eustatius and Saba"]
["BSCR Rating 0",null,"Listed Equity - Mutual Fund",null,null,null,"Owner-occupied",null,null,"Colombia Pesos",null,null,null,null,null,null,null,"Bosnia and Herzegovina"]
["BSCR Rating 1",null,"Private Equity - Direct",null,null,null,"Select",null,null,"Costa Rica Colones",null,null,null,null,null,null,null,"Botswana"]
["BSCR Rating 2",null,"Private Equity - Fund",null,null,null,null,null,null,"Cuba Convertible Pesos",null,null,null,null,null,null,null,"Brazil"]
["BSCR Rating 3",null,"Other - Listed Equity",null,null,null,null,null,null,"Cuba Pesos",null,null,null,null,null,null,null,"British Virgin Islands"]
["BSCR Rating 4",null,"Other - Private Equity",null,null,null,null,null,null,"Cape Verde Escudos",null,null,null,null,null,null,null,"Brunei Darussalam"]
["BSCR Rating 5",null,"Select",null,null,null,null,null,null,"Czech Republic Koruny",null,null,null,null,null,null,null,"Bulgaria"]
["BSCR Rating 6",null,null,null,null,null,null,null,null,"Djibouti Francs",null,null,null,null,null,null,null,"Burkina Faso"]
["BSCR Rating 7",null,null,null,null,null,null,null,null,"Denmark Kroner",null,null,null,null,null,null,null,"Burundi"]
["BSCR Rating 8",null,null,null,null,null,null,null,null,"Dominican Republic Pesos",null,null,null,null,null,null,null,"Cabo Verde (Cape Verde)"]
[null,null,null,null,null,null,null,null,null,"Algeria Dinars",null,null,null,null,null,null,null,"Cambodia"]
[null,null,null,null,null,null,null,null,null,"Estonia Krooni",null,null,null,null,null,null,null,"Cameroon"]
[null,null,null,null,null,null,null,null,null,"Egypt Pounds",null,null,null,null,null,null,null,"Cayman Islands"]
[null,null,null,null,null,null,null,null,null,"Eritrea Nakfa",null,null,null,null,null,null,null,"Central African Republic"]
[null,null,null,null,null,null,null,null,null,"Ethiopia Birr",null,null,null,null,null,null,null,"Chad"]
[null,null,null,null,null,null,null,null,null,"Fiji Dollars",null,null,null,null,null,null,null,"Chile"]
[null,null,null,null,null,null,null,null,null,"Falkland Islands Pounds",null,null,null,null,null,null,null,"China"]
[null,null,null,null,null,null,null,null,null,"United Kingdom Pounds",null,null,null,null,null,null,null,"China, Hong Kong SAR"]
[null,null,null,null,null,null,null,null,null,"Georgia Lari",null,null,null,null,null,null,null,"China, Macao SAR "]
[null,null,null,null,null,null,null,null,null,"Guernsey Pounds",null,null,null,null,null,null,null,"Colombia"]
[null,null,null,null,null,null,null,null,null,"Ghana Cedis",null,null,null,null,null,null,null,"Comoros"]
[null,null,null,null,null,null,null,null,null,"Gibraltar Pounds",null,null,null,null,null,null,null,"Congo"]
[null,null,null,null,null,null,null,null,null,"Gambia Dalasi",null,null,null,null,null,null,null,"Cook Islands"]
[null,null,null,null,null,null,null,null,null,"Guinea Francs",null,null,null,null,null,null,null,"Costa Rica"]
[null,null,null,null,null,null,null,null,null,"Guatemala Quetzales",null,null,null,null,null,null,null,"Cote d' Ivoire"]
[null,null,null,null,null,null,null,null,null,"Guyana Dollars",null,null,null,null,null,null,null,"Croatia"]
[null,null,null,null,null,null,null,null,null,"Hong Kong Dollars",null,null,null,null,null,null,null,"Cuba"]
[null,null,null,null,null,null,null,null,null,"Honduras Lempiras",null,null,null,null,null,null,null,"Curacao"]
[null,null,null,null,null,null,null,null,null,"Croatia Kuna",null,null,null,null,null,null,null,"Cyprus"]
[null,null,null,null,null,null,null,null,null,"Haiti Gourdes",null,null,null,null,null,null,null,"Czech Republic"]
[null,null,null,null,null,null,null,null,null,"Hungary Forint",null,null,null,null,null,null,null,"Democratic People's Republic of Korea (North Korea)"]
[null,null,null,null,null,null,null,null,null,"Indonesia Rupiahs",null,null,null,null,null,null,null,"Democratic Republic of the Congo"]
[null,null,null,null,null,null,null,null,null,"Israel New Shekels",null,null,null,null,null,null,null,"Denmark"]
[null,null,null,null,null,null,null,null,null,"Isle of Man Pounds",null,null,null,null,null,null,null,"Djibouti"]
[null,null,null,null,null,null,null,null,null,"India Rupees",null,null,null,null,null,null,null,"Dominica"]
[null,null,null,null,null,null,null,null,null,"Iraq Dinars",null,null,null,null,null,null,null,"Dominican Republic"]
[null,null,null,null,null,null,null,null,null,"Iran Rials",null,null,null,null,null,null,null,"Ecuador"]
[null,null,null,null,null,null,null,null,null,"Iceland Kronur",null,null,null,null,null,null,null,"Egypt"]
[null,null,null,null,null,null,null,null,null,"Jersey Pounds",null,null,null,null,null,null,null,"El Salvador"]
[null,null,null,null,null,null,null,null,null,"Jamaica Dollars",null,null,null,null,null,null,null,"Equatorial Guinea"]
[null,null,null,null,null,null,null,null,null,"Jordan Dinars",null,null,null,null,null,null,null,"Eritrea"]
[null,null,null,null,null,null,null,null,null,"Japan Yen",null,null,null,null,null,null,null,"Estonia"]
[null,null,null,null,null,null,null,null,null,"Kenya Shillings",null,null,null,null,null,null,null,"Eswatini (Kingdom of Swaziland)"]
[null,null,null,null,null,null,null,null,null,"Kyrgyzstan Soms",null,null,null,null,null,null,null,"Ethiopia"]
[null,null,null,null,null,null,null,null,null,"Cambodia Riels",null,null,null,null,null,null,null,"Falkland Islands"]
[null,null,null,null,null,null,null,null,null,"Comoros Francs",null,null,null,null,null,null,null,"Faroe Islands"]
[null,null,null,null,null,null,null,null,null,"North Korea Won",null,null,null,null,null,null,null,"Fiji"]
[null,null,null,null,null,null,null,null,null,"South Korea Won",null,null,null,null,null,null,null,"Finland"]
[null,null,null,null,null,null,null,null,null,"Kuwait Dinars",null,null,null,null,null,null,null,"France"]
[null,null,null,null,null,null,null,null,null,"Cayman Islands Dollars",null,null,null,null,null,null,null,"French Guiana"]
[null,null,null,null,null,null,null,null,null,"Kazakhstan Tenge",null,null,null,null,null,null,null,"French Polynesia"]
[null,null,null,null,null,null,null,null,null,"Laos Kips",null,null,null,null,null,null,null,"Gabon"]
[null,null,null,null,null,null,null,null,null,"Lebanon Pounds",null,null,null,null,null,null,null,"Gambia (Republic of The)"]
[null,null,null,null,null,null,null,null,null,"Sri Lanka Rupees",null,null,null,null,null,null,null,"Georgia"]
[null,null,null,null,null,null,null,null,null,"Liberia Dollars",null,null,null,null,null,null,null,"Germany"]
[null,null,null,null,null,null,null,null,null,"Lesotho Maloti",null,null,null,null,null,null,null,"Ghana"]
[null,null,null,null,null,null,null,null,null,"Lithuania Litai",null,null,null,null,null,null,null,"Gibraltar"]
[null,null,null,null,null,null,null,null,null,"Latvia Lati",null,null,null,null,null,null,null,"Greece"]
[null,null,null,null,null,null,null,null,null,"Libya Dinars",null,null,null,null,null,null,null,"Greenland"]
[null,null,null,null,null,null,null,null,null,"Morocco Dirhams",null,null,null,null,null,null,null,"Grenada"]
[null,null,null,null,null,null,null,null,null,"Moldova Lei",null,null,null,null,null,null,null,"Guadeloupe"]
[null,null,null,null,null,null,null,null,null,"Madagascar Ariary",null,null,null,null,null,null,null,"Guam"]
[null,null,null,null,null,null,null,null,null,"Macedonia Denars",null,null,null,null,null,null,null,"Guatemala"]
[null,null,null,null,null,null,null,null,null,"Myanmar Kyats",null,null,null,null,null,null,null,"Guernsey"]
[null,null,null,null,null,null,null,null,null,"Mongolia Tugriks",null,null,null,null,null,null,null,"Guinea"]
[null,null,null,null,null,null,null,null,null,"Macau Patacas",null,null,null,null,null,null,null,"Guinea-Bissau"]
[null,null,null,null,null,null,null,null,null,"Mauritania Ouguiyas",null,null,null,null,null,null,null,"Guyana"]
[null,null,null,null,null,null,null,null,null,"Mauritius Rupees",null,null,null,null,null,null,null,"Haiti"]
[null,null,null,null,null,null,null,null,null,"Maldives Rufiyaa",null,null,null,null,null,null,null,"Holy See"]
[null,null,null,null,null,null,null,null,null,"Malawi Kwachas",null,null,null,null,null,null,null,"Honduras"]
[null,null,null,null,null,null,null,null,null,"Mexico Pesos",null,null,null,null,null,null,null,"Hungary"]
[null,null,null,null,null,null,null,null,null,"Malaysia Ringgits",null,null,null,null,null,null,null,"Iceland"]
[null,null,null,null,null,null,null,null,null,"Mozambique Meticais",null,null,null,null,null,null,null,"India"]
[null,null,null,null,null,null,null,null,null,"Namibia Dollars",null,null,null,null,null,null,null,"Indonesia"]
[null,null,null,null,null,null,null,null,null,"Nigeria Nairas",null,null,null,null,null,null,null,"Iran (Islamic Republic of)"]
[null,null,null,null,null,null,null,null,null,"Nicaragua Cordobas",null,null,null,null,null,null,null,"Iraq"]
[null,null,null,null,null,null,null,null,null,"Norway Kroner",null,null,null,null,null,null,null,"Ireland"]
[null,null,null,null,null,null,null,null,null,"Nepal Rupees",null,null,null,null,null,null,null,"Isle of Man"]
[null,null,null,null,null,null,null,null,null,"New Zealand Dollars",null,null,null,null,null,null,null,"Israel"]
[null,null,null,null,null,null,null,null,null,"Oman Rials",null,null,null,null,null,null,null,"Italy"]
[null,null,null,null,null,null,null,null,null,"Panama Balboas",null,null,null,null,null,null,null,"Jamaica"]
[null,null,null,null,null,null,null,null,null,"Peru Nuevos Soles",null,null,null,null,null,null,null,"Japan"]
[null,null,null,null,null,null,null,null,null,"Papua New Guinea Kina",null,null,null,null,null,null,null,"Jersey"]
[null,null,null,null,null,null,null,null,null,"Philippines Pesos",null,null,null,null,null,null,null,"Jordan"]
[null,null,null,null,null,null,null,null,null,"Pakistan Rupees",null,null,null,null,null,null,null,"Kazakhstan"]
[null,null,null,null,null,null,null,null,null,"Poland Zlotych",null,null,null,null,null,null,null,"Kenya"]
[null,null,null,null,null,null,null,null,null,"Paraguay Guarani",null,null,null,null,null,null,null,"Kiribati"]
[null,null,null,null,null,null,null,null,null,"Qatar Riyals",null,null,null,null,null,null,null,"Kuwait"]
[null,null,null,null,null,null,null,null,null,"Romania New Lei",null,null,null,null,null,null,null,"Kyrgyzstan"]
[null,null,null,null,null,null,null,null,null,"Serbia Dinars",null,null,null,null,null,null,null,"Lao People's Democratic Republic"]
[null,null,null,null,null,null,null,null,null,"Russia Rubles",null,null,null,null,null,null,null,"Latvia"]
[null,null,null,null,null,null,null,null,null,"Rwanda Francs",null,null,null,null,null,null,null,"Lebanon"]
[null,null,null,null,null,null,null,null,null,"Saudi Arabia Riyals",null,null,null,null,null,null,null,"Lesotho"]
[null,null,null,null,null,null,null,null,null,"Solomon Islands Dollars",null,null,null,null,null,null,null,"Liberia"]
[null,null,null,null,null,null,null,null,null,"Seychelles Rupees",null,null,null,null,null,null,null,"Libya"]
[null,null,null,null,null,null,null,null,null,"Sudan Pounds",null,null,null,null,null,null,null,"Liechtenstein"]
[null,null,null,null,null,null,null,null,null,"Sweden Kronor",null,null,null,null,null,null,null,"Lithuania"]
[null,null,null,null,null,null,null,null,null,"Singapore Dollars",null,null,null,null,null,null,null,"Luxembourg"]
[null,null,null,null,null,null,null,null,null,"Saint Helena Pounds",null,null,null,null,null,null,null,"Madagascar"]
[null,null,null,null,null,null,null,null,null,"Slovakia Koruny",null,null,null,null,null,null,null,"Malawi"]
[null,null,null,null,null,null,null,null,null,"Sierra Leone Leones",null,null,null,null,null,null,null,"Malaysia"]
[null,null,null,null,null,null,null,null,null,"Somalia Shillings",null,null,null,null,null,null,null,"Maldives"]
[null,null,null,null,null,null,null,null,null,"Seborga Luigini",null,null,null,null,null,null,null,"Mali"]
[null,null,null,null,null,null,null,null,null,"Suriname Dollars",null,null,null,null,null,null,null,"Malta"]
[null,null,null,null,null,null,null,null,null,"São Tome and Principe Dobras",null,null,null,null,null,null,null,"Marshall Islands"]
[null,null,null,null,null,null,null,null,null,"El Salvador Colones",null,null,null,null,null,null,null,"Martinique"]
[null,null,null,null,null,null,null,null,null,"Syria Pounds",null,null,null,null,null,null,null,"Mauritania"]
[null,null,null,null,null,null,null,null,null,"Swaziland Emalangeni",null,null,null,null,null,null,null,"Mauritius"]
[null,null,null,null,null,null,null,null,null,"Thailand Baht",null,null,null,null,null,null,null,"Mayotte"]
[null,null,null,null,null,null,null,null,null,"Tajikistan Somoni",null,null,null,null,null,null,null,"Mexico"]
[null,null,null,null,null,null,null,null,null,"Turkmenistan Manats",null,null,null,null,null,null,null,"Micronesia (Federated States of)"]
[null,null,null,null,null,null,null,null,null,"Tunisia Dinars",null,null,null,null,null,null,null,"Monaco"]
[null,null,null,null,null,null,null,null,null,"Tonga Pa'anga",null,null,null,null,null,null,null,"Mongolia"]
[null,null,null,null,null,null,null,null,null,"Turkey New Lira",null,null,null,null,null,null,null,"Montenegro"]
[null,null,null,null,null,null,null,null,null,"Trinidad and Tobago Dollars",null,null,null,null,null,null,null,"Montserrat"]
[null,null,null,null,null,null,null,null,null,"Tuvalu Dollars",null,null,null,null,null,null,null,"Morocco"]
[null,null,null,null,null,null,null,null,null,"Taiwan New Dollars",null,null,null,null,null,null,null,"Mozambique"]
[null,null,null,null,null,null,null,null,null,"Tanzania Shillings",null,null,null,null,null,null,null,"Myanmar"]
[null,null,null,null,null,null,null,null,null,"Ukraine Hryvnia",null,null,null,null,null,null,null,"Namibia"]
[null,null,null,null,null,null,null,null,null,"Uganda Shillings",null,null,null,null,null,null,null,"Nauru"]
[null,null,null,null,null,null,null,null,null,"Uruguay Pesos",null,null,null,null,null,null,null,"Nepal"]
[null,null,null,null,null,null,null,null,null,"Uzbekistan Sums",null,null,null,null,null,null,null,"Netherlands"]
[null,null,null,null,null,null,null,null,null,"Venezuela Bolivares",null,null,null,null,null,null,null,"New Caledonia"]
[null,null,null,null,null,null,null,null,null,"Venezuela Bolivares Fuertes",null,null,null,null,null,null,null,"New Zealand"]
[null,null,null,null,null,null,null,null,null,"Vietnam Dong",null,null,null,null,null,null,null,"Nicaragua"]
[null,null,null,null,null,null,null,null,null,"Vanuatu Vatu",null,null,null,null,null,null,null,"Niger"]
[null,null,null,null,null,null,null,null,null,"Samoa Tala",null,null,null,null,null,null,null,"Nigeria"]
[null,null,null,null,null,null,null,null,null,"Communauté Financière Africaine Francs BEAC",null,null,null,null,null,null,null,"Niue"]
[null,null,null,null,null,null,null,null,null,"Silver Ounces",null,null,null,null,null,null,null,"Norfolk Island"]
[null,null,null,null,null,null,null,null,null,"Gold Ounces",null,null,null,null,null,null,null,"North Macedonia"]
[null,null,null,null,null,null,null,null,null,"East Caribbean Dollars",null,null,null,null,null,null,null,"Northern Mariana Islands"]
[null,null,null,null,null,null,null,null,null,"International Monetary Fund Special Drawing Rights",null,null,null,null,null,null,null,"Norway"]
[null,null,null,null,null,null,null,null,null,"Communauté Financière Africaine Francs BCEAO",null,null,null,null,null,null,null,"Oman"]
[null,null,null,null,null,null,null,null,null,"Palladium Ounces",null,null,null,null,null,null,null,"Pakistan"]
[null,null,null,null,null,null,null,null,null,"Comptoirs Français du Pacifique Francs",null,null,null,null,null,null,null,"Palau"]
[null,null,null,null,null,null,null,null,null,"Platinum Ounces",null,null,null,null,null,null,null,"Panama"]
[null,null,null,null,null,null,null,null,null,"Yemen Rials",null,null,null,null,null,null,null,"Papua New Guinea"]
[null,null,null,null,null,null,null,null,null,"South Africa Rand",null,null,null,null,null,null,null,"Paraguay"]
[null,null,null,null,null,null,null,null,null,"Zambia Kwacha",null,null,null,null,null,null,null,"Peru"]
[null,null,null,null,null,null,null,null,null,"Zimbabwe Dollars",null,null,null,null,null,null,null,"Philippines"]
[null,null,null,null,null,null,null,null,null,null,null,null,null,null,null,null,null,"Pitcairn"]
[null,null,null,null,null,null,null,null,null,null,null,null,null,null,null,null,null,"Poland"]
[null,null,null,null,null,null,null,null,null,null,null,null,null,null,null,null,null,"Portugal"]
[null,null,null,null,null,null,null,null,null,null,null,null,null,null,null,null,null,"Puerto Rico"]
[null,null,null,null,null,null,null,null,null,null,null,null,null,null,null,null,null,"Qatar"]
[null,null,null,null,null,null,null,null,null,null,null,null,null,null,null,null,null,"Republic of Korea (South Korea)"]
[null,null,null,null,null,null,null,null,null,null,null,null,null,null,null,null,null,"Republic of Moldova"]
[null,null,null,null,null,null,null,null,null,null,null,null,null,null,null,null,null,"Reunion"]
[null,null,null,null,null,null,null,null,null,null,null,null,null,null,null,null,null,"Romania"]
[null,null,null,null,null,null,null,null,null,null,null,null,null,null,null,null,null,"Russian Federation"]
[null,null,null,null,null,null,null,null,null,null,null,null,null,null,null,null,null,"Rwanda"]
[null,null,null,null,null,null,null,null,null,null,null,null,null,null,null,null,null,"Saint Barthelemy (St. Barts)"]
[null,null,null,null,null,null,null,null,null,null,null,null,null,null,null,null,null,"Saint Helena"]
[null,null,null,null,null,null,null,null,null,null,null,null,null,null,null,null,null,"Saint Kitts and Nevis"]
[null,null,null,null,null,null,null,null,null,null,null,null,null,null,null,null,null,"Saint Lucia"]
[null,null,null,null,null,null,null,null,null,null,null,null,null,null,null,null,null,"Saint Martin"]
[null,null,null,null,null,null,null,null,null,null,null,null,null,null,null,null,null,"Saint Pierre and Miquelon"]
[null,null,null,null,null,null,null,null,null,null,null,null,null,null,null,null,null,"Saint Vincent and The Grenadines"]
[null,null,null,null,null,null,null,null,null,null,null,null,null,null,null,null,null,"Samoa"]
[null,null,null,null,null,null,null,null,null,null,null,null,null,null,null,null,null,"San Marino"]
[null,null,null,null,null,null,null,null,null,null,null,null,null,null,null,null,null,"Sao Tome and Principe"]
[null,null,null,null,null,null,null,null,null,null,null,null,null,null,null,null,null,"Sark"]
[null,null,null,null,null,null,null,null,null,null,null,null,null,null,null,null,null,"Saudi Arabia"]
[null,null,null,null,null,null,null,null,null,null,null,null,null,null,null,null,null,"Senegal"]
[null,null,null,null,null,null,null,null,null,null,null,null,null,null,null,null,null,"Serbia"]
[null,null,null,null,null,null,null,null,null,null,null,null,null,null,null,null,null,"Seychelles"]
[null,null,null,null,null,null,null,null,null,null,null,null,null,null,null,null,null,"Sierra Leone"]
[null,null,null,null,null,null,null,null,null,null,null,null,null,null,null,null,null,"Singapore"]
[null,null,null,null,null,null,null,null,null,null,null,null,null,null,null,null,null,"Sint Maarten"]
[null,null,null,null,null,null,null,null,null,null,null,null,null,null,null,null,null,"Slovakia"]
[null,null,null,null,null,null,null,null,null,null,null,null,null,null,null,null,null,"Slovenia"]
[null,null,null,null,null,null,null,null,null,null,null,null,null,null,null,null,null,"Solomon Islands"]
[null,null,null,null,null,null,null,null,null,null,null,null,null,null,null,null,null,"Somalia"]
[null,null,null,null,null,null,null,null,null,null,null,null,null,null,null,null,null,"South Africa"]
[null,null,null,null,null,null,null,null,null,null,null,null,null,null,null,null,null,"South Sudan"]
[null,null,null,null,null,null,null,null,null,null,null,null,null,null,null,null,null,"Spain"]
[null,null,null,null,null,null,null,null,null,null,null,null,null,null,null,null,null,"Sri Lanka"]
[null,null,null,null,null,null,null,null,null,null,null,null,null,null,null,null,null,"State of Palestine"]
[null,null,null,null,null,null,null,null,null,null,null,null,null,null,null,null,null,"Sudan"]
[null,null,null,null,null,null,null,null,null,null,null,null,null,null,null,null,null,"Suriname"]
[null,null,null,null,null,null,null,null,null,null,null,null,null,null,null,null,null,"Svalbard, Jan Mayen"]
[null,null,null,null,null,null,null,null,null,null,null,null,null,null,null,null,null,"Sweden"]
[null,null,null,null,null,null,null,null,null,null,null,null,null,null,null,null,null,"Switzerland"]
[null,null,null,null,null,null,null,null,null,null,null,null,null,null,null,null,null,"Syrian Arab Republic"]
[null,null,null,null,null,null,null,null,null,null,null,null,null,null,null,null,null,"Taiwan"]
[null,null,null,null,null,null,null,null,null,null,null,null,null,null,null,null,null,"Tajikistan"]
[null,null,null,null,null,null,null,null,null,null,null,null,null,null,null,null,null,"Thailand"]
[null,null,null,null,null,null,null,null,null,null,null,null,null,null,null,null,null,"Timor-Leste"]
[null,null,null,null,null,null,null,null,null,null,null,null,null,null,null,null,null,"Togo"]
[null,null,null,null,null,null,null,null,null,null,null,null,null,null,null,null,null,"Tokelau"]
[null,null,null,null,null,null,null,null,null,null,null,null,null,null,null,null,null,"Tonga"]
[null,null,null,null,null,null,null,null,null,null,null,null,null,null,null,null,null,"Trinidad and Tobago"]
[null,null,null,null,null,null,null,null,null,null,null,null,null,null,null,null,null,"Tunisia"]
[null,null,null,null,null,null,null,null,null,null,null,null,null,null,null,null,null,"Turkey"]
[null,null,null,null,null,null,null,null,null,null,null,null,null,null,null,null,null,"Turkmenistan"]
[null,null,null,null,null,null,null,null,null,null,null,null,null,null,null,null,null,"Turks & Caicos Islands"]
[null,null,null,null,null,null,null,null,null,null,null,null,null,null,null,null,null,"Tuvalu"]
[null,null,null,null,null,null,null,null,null,null,null,null,null,null,null,null,null,"Uganda"]
[null,null,null,null,null,null,null,null,null,null,null,null,null,null,null,null,null,"Ukraine"]
[null,null,null,null,null,null,null,null,null,null,null,null,null,null,null,null,null,"United Arab Emirates"]
[null,null,null,null,null,null,null,null,null,null,null,null,null,null,null,null,null,"United Republic of Tanzania"]
[null,null,null,null,null,null,null,null,null,null,null,null,null,null,null,null,null,"Uruguay"]
[null,null,null,null,null,null,null,null,null,null,null,null,null,null,null,null,null,"US Virgin Islands"]
[null,null,null,null,null,null,null,null,null,null,null,null,null,null,null,null,null,"Uzbekistan"]
[null,null,null,null,null,null,null,null,null,null,null,null,null,null,null,null,null,"Vanuatu"]
[null,null,null,null,null,null,null,null,null,null,null,null,null,null,null,null,null,"Venezuela, Bolivarian Republic of "]
[null,null,null,null,null,null,null,null,null,null,null,null,null,null,null,null,null,"Vietnam"]
[null,null,null,null,null,null,null,null,null,null,null,null,null,null,null,null,null,"Wallis & Futuna Islands"]
[null,null,null,null,null,null,null,null,null,null,null,null,null,null,null,null,null,"Western Sahara"]
[null,null,null,null,null,null,null,null,null,null,null,null,null,null,null,null,null,"Yemen"]
[null,null,null,null,null,null,null,null,null,null,null,null,null,null,null,null,null,"Zambia"]
[null,null,null,null,null,null,null,null,null,null,null,null,null,null,null,null,null,"Zimbabwe"]
[null,null,null,null,null,null,null,null,null,null,null,null,null,null,null,null,null,"Select"]

{"sheet":"Schedule VIA (EBS)","index":53,"n_rows":2357,"n_cols":18,"rows_kept":2357,"cut":false,"hidden":false,"merged":[[1764,6,1765,6],[1764,7,1765,7],[1789,1,1789,2],[1793,1,1793,2],[1342,1,1342,2],[1447,1,1447,2],[1450,1,1450,2],[1555,1,1555,2],[1763,5,1765,5],[1339,1,1339,2],[5,1,5,2],[213,1,213,2],[216,1,216,2],[987,1,987,2],[990,1,990,2],[1095,1,1095,2],[1098,1,1098,2],[1123,1,1123,2],[1126,1,1126,2],[1231,1,1231,2],[1234,1,1234,2]]}
[null,"SCHEDULE OF FUNDS HELD BY CEDING REINSURERS (EBS)",null,null,null,null,null,null,null,null,null,null,null,{"$f":"HYPERLINK(\"#'Index'!A1\",\"Return to Index\")","v":"Return to Index"}]
[null,{"$f":"'Insurer Information'!C7","v":"Enter Company Name"}]
[null,"As at",{"$f":"'Insurer Information'!C3","v":"2023-12-31"},null,null,null,null,null,null,null,null,null,null,"Schedule VIA (EBS)"]
[null,"expressed in ['000s]",{"$f":"'Form 1SFS'!C5","v":"United States Dollars"}]
[]
[null,"(A) CASH AND CASH EQUIVALENTS"]
[]
[null,null,"Enter # of Asset Types",{"$f":"Import!M19915","v":0}]
[null,null,null,null,{"$f":"YEAR($C$3)","v":2023},{"$f":"YEAR($C$3)","v":2023}]
[null,"Asset Type","Currency","BSCR Rating","Nominal Amount","Fair Value","Comments"]
[1,{"$f":"Import!M19916","v":"Select"},{"$f":"Import!M20116","v":"Select"},{"$f":"Import!M20316","v":"Select"},{"$f":"Import!M20516","v":0},{"$f":"Import!M20716","v":0},{"$f":"Import!M20916","v":0}]
[{"$f":"A11+1","v":2},{"$f":"Import!M19917","v":"Select"},{"$f":"Import!M20117","v":"Select"},{"$f":"Import!M20317","v":"Select"},{"$f":"Import!M20517","v":0},{"$f":"Import!M20717","v":0},{"$f":"Import!M20917","v":0}]
[{"$f":"A12+1","v":3},{"$f":"Import!M19918","v":"Select"},{"$f":"Import!M20118","v":"Select"},{"$f":"Import!M20318","v":"Select"},{"$f":"Import!M20518","v":0},{"$f":"Import!M20718","v":0},{"$f":"Import!M20918","v":0}]
[4,{"$f":"Import!M19919","v":"Select"},{"$f":"Import!M20119","v":"Select"},{"$f":"Import!M20319","v":"Select"},{"$f":"Import!M20519","v":0},{"$f":"Import!M20719","v":0},{"$f":"Import!M20919","v":0}]
[5,{"$f":"Import!M19920","v":"Select"},{"$f":"Import!M20120","v":"Select"},{"$f":"Import!M20320","v":"Select"},{"$f":"Import!M20520","v":0},{"$f":"Import!M20720","v":0},{"$f":"Import!M20920","v":0}]
[6,{"$f":"Import!M19921","v":"Select"},{"$f":"Import!M20121","v":"Select"},{"$f":"Import!M20321","v":"Select"},{"$f":"Import!M20521","v":0},{"$f":"Import!M20721","v":0},{"$f":"Import!M20921","v":0}]
[7,{"$f":"Import!M19922","v":"Select"},{"$f":"Import!M20122","v":"Select"},{"$f":"Import!M20322","v":"Select"},{"$f":"Import!M20522","v":0},{"$f":"Import!M20722","v":0},{"$f":"Import!M20922","v":0}]
[8,{"$f":"Import!M19923","v":"Select"},{"$f":"Import!M20123","v":"Select"},{"$f":"Import!M20323","v":"Select"},{"$f":"Import!M20523","v":0},{"$f":"Import!M20723","v":0},{"$f":"Import!M20923","v":0}]
[9,{"$f":"Import!M19924","v":"Select"},{"$f":"Import!M20124","v":"Select"},{"$f":"Import!M20324","v":"Select"},{"$f":"Import!M20524","v":0},{"$f":"Import!M20724","v":0},{"$f":"Import!M20924","v":0}]
[10,{"$f":"Import!M19925","v":"Select"},{"$f":"Import!M20125","v":"Select"},{"$f":"Import!M20325","v":"Select"},{"$f":"Import!M20525","v":0},{"$f":"Import!M20725","v":0},{"$f":"Import!M20925","v":0}]
[11,{"$f":"Import!M19926","v":"Select"},{"$f":"Import!M20126","v":"Select"},{"$f":"Import!M20326","v":"Select"},{"$f":"Import!M20526","v":0},{"$f":"Import!M20726","v":0},{"$f":"Import!M20926","v":0}]
[12,{"$f":"Import!M19927","v":"Select"},{"$f":"Import!M20127","v":"Select"},{"$f":"Import!M20327","v":"Select"},{"$f":"Import!M20527","v":0},{"$f":"Import!M20727","v":0},{"$f":"Import!M20927","v":0}]
[13,{"$f":"Import!M19928","v":"Select"},{"$f":"Import!M20128","v":"Select"},{"$f":"Import!M20328","v":"Select"},{"$f":"Import!M20528","v":0},{"$f":"Import!M20728","v":0},{"$f":"Import!M20928","v":0}]
[14,{"$f":"Import!M19929","v":"Select"},{"$f":"Import!M20129","v":"Select"},{"$f":"Import!M20329","v":"Select"},{"$f":"Import!M20529","v":0},{"$f":"Import!M20729","v":0},{"$f":"Import!M20929","v":0}]
[15,{"$f":"Import!M19930","v":"Select"},{"$f":"Import!M20130","v":"Select"},{"$f":"Import!M20330","v":"Select"},{"$f":"Import!M20530","v":0},{"$f":"Import!M20730","v":0},{"$f":"Import!M20930","v":0}]
[16,{"$f":"Import!M19931","v":"Select"},{"$f":"Import!M20131","v":"Select"},{"$f":"Import!M20331","v":"Select"},{"$f":"Import!M20531","v":0},{"$f":"Import!M20731","v":0},{"$f":"Import!M20931","v":0}]
[17,{"$f":"Import!M19932","v":"Select"},{"$f":"Import!M20132","v":"Select"},{"$f":"Import!M20332","v":"Select"},{"$f":"Import!M20532","v":0},{"$f":"Import!M20732","v":0},{"$f":"Import!M20932","v":0}]
[18,{"$f":"Import!M19933","v":"Select"},{"$f":"Import!M20133","v":"Select"},{"$f":"Import!M20333","v":"Select"},{"$f":"Import!M20533","v":0},{"$f":"Import!M20733","v":0},{"$f":"Import!M20933","v":0}]
[19,{"$f":"Import!M19934","v":"Select"},{"$f":"Import!M20134","v":"Select"},{"$f":"Import!M20334","v":"Select"},{"$f":"Import!M20534","v":0},{"$f":"Import!M20734","v":0},{"$f":"Import!M20934","v":0}]
[20,{"$f":"Import!M19935","v":"Select"},{"$f":"Import!M20135","v":"Select"},{"$f":"Import!M20335","v":"Select"},{"$f":"Import!M20535","v":0},{"$f":"Import!M20735","v":0},{"$f":"Import!M20935","v":0}]
[21,{"$f":"Import!M19936","v":"Select"},{"$f":"Import!M20136","v":"Select"},{"$f":"Import!M20336","v":"Select"},{"$f":"Import!M20536","v":0},{"$f":"Import!M20736","v":0},{"$f":"Import!M20936","v":0}]
[22,{"$f":"Import!M19937","v":"Select"},{"$f":"Import!M20137","v":"Select"},{"$f":"Import!M20337","v":"Select"},{"$f":"Import!M20537","v":0},{"$f":"Import!M20737","v":0},{"$f":"Import!M20937","v":0}]
[23,{"$f":"Import!M19938","v":"Select"},{"$f":"Import!M20138","v":"Select"},{"$f":"Import!M20338","v":"Select"},{"$f":"Import!M20538","v":0},{"$f":"Import!M20738","v":0},{"$f":"Import!M20938","v":0}]
[24,{"$f":"Import!M19939","v":"Select"},{"$f":"Import!M20139","v":"Select"},{"$f":"Import!M20339","v":"Select"},{"$f":"Import!M20539","v":0},{"$f":"Import!M20739","v":0},{"$f":"Import!M20939","v":0}]
[25,{"$f":"Import!M19940","v":"Select"},{"$f":"Import!M20140","v":"Select"},{"$f":"Import!M20340","v":"Select"},{"$f":"Import!M20540","v":0},{"$f":"Import!M20740","v":0},{"$f":"Import!M20940","v":0}]
[26,{"$f":"Import!M19941","v":"Select"},{"$f":"Import!M20141","v":"Select"},{"$f":"Import!M20341","v":"Select"},{"$f":"Import!M20541","v":0},{"$f":"Import!M20741","v":0},{"$f":"Import!M20941","v":0}]
[27,{"$f":"Import!M19942","v":"Select"},{"$f":"Import!M20142","v":"Select"},{"$f":"Import!M20342","v":"Select"},{"$f":"Import!M20542","v":0},{"$f":"Import!M20742","v":0},{"$f":"Import!M20942","v":0}]
[28,{"$f":"Import!M19943","v":"Select"},{"$f":"Import!M20143","v":"Select"},{"$f":"Import!M20343","v":"Select"},{"$f":"Import!M20543","v":0},{"$f":"Import!M20743","v":0},{"$f":"Import!M20943","v":0}]
[29,{"$f":"Import!M19944","v":"Select"},{"$f":"Import!M20144","v":"Select"},{"$f":"Import!M20344","v":"Select"},{"$f":"Import!M20544","v":0},{"$f":"Import!M20744","v":0},{"$f":"Import!M20944","v":0}]
[30,{"$f":"Import!M19945","v":"Select"},{"$f":"Import!M20145","v":"Select"},{"$f":"Import!M20345","v":"Select"},{"$f":"Import!M20545","v":0},{"$f":"Import!M20745","v":0},{"$f":"Import!M20945","v":0}]
[31,{"$f":"Import!M19946","v":"Select"},{"$f":"Import!M20146","v":"Select"},{"$f":"Import!M20346","v":"Select"},{"$f":"Import!M20546","v":0},{"$f":"Import!M20746","v":0},{"$f":"Import!M20946","v":0}]
[32,{"$f":"Import!M19947","v":"Select"},{"$f":"Import!M20147","v":"Select"},{"$f":"Import!M20347","v":"Select"},{"$f":"Import!M20547","v":0},{"$f":"Import!M20747","v":0},{"$f":"Import!M20947","v":0}]
[33,{"$f":"Import!M19948","v":"Select"},{"$f":"Import!M20148","v":"Select"},{"$f":"Import!M20348","v":"Select"},{"$f":"Import!M20548","v":0},{"$f":"Import!M20748","v":0},{"$f":"Import!M20948","v":0}]
[34,{"$f":"Import!M19949","v":"Select"},{"$f":"Import!M20149","v":"Select"},{"$f":"Import!M20349","v":"Select"},{"$f":"Import!M20549","v":0},{"$f":"Import!M20749","v":0},{"$f":"Import!M20949","v":0}]
[35,{"$f":"Import!M19950","v":"Select"},{"$f":"Import!M20150","v":"Select"},{"$f":"Import!M20350","v":"Select"},{"$f":"Import!M20550","v":0},{"$f":"Import!M20750","v":0},{"$f":"Import!M20950","v":0}]
[36,{"$f":"Import!M19951","v":"Select"},{"$f":"Import!M20151","v":"Select"},{"$f":"Import!M20351","v":"Select"},{"$f":"Import!M20551","v":0},{"$f":"Import!M20751","v":0},{"$f":"Import!M20951","v":0}]
[37,{"$f":"Import!M19952","v":"Select"},{"$f":"Import!M20152","v":"Select"},{"$f":"Import!M20352","v":"Select"},{"$f":"Import!M20552","v":0},{"$f":"Import!M20752","v":0},{"$f":"Import!M20952","v":0}]
[38,{"$f":"Import!M19953","v":"Select"},{"$f":"Import!M20153","v":"Select"},{"$f":"Import!M20353","v":"Select"},{"$f":"Import!M20553","v":0},{"$f":"Import!M20753","v":0},{"$f":"Import!M20953","v":0}]
[39,{"$f":"Import!M19954","v":"Select"},{"$f":"Import!M20154","v":"Select"},{"$f":"Import!M20354","v":"Select"},{"$f":"Import!M20554","v":0},{"$f":"Import!M20754","v":0},{"$f":"Import!M20954","v":0}]
[40,{"$f":"Import!M19955","v":"Select"},{"$f":"Import!M20155","v":"Select"},{"$f":"Import!M20355","v":"Select"},{"$f":"Import!M20555","v":0},{"$f":"Import!M20755","v":0},{"$f":"Import!M20955","v":0}]
[41,{"$f":"Import!M19956","v":"Select"},{"$f":"Import!M20156","v":"Select"},{"$f":"Import!M20356","v":"Select"},{"$f":"Import!M20556","v":0},{"$f":"Import!M20756","v":0},{"$f":"Import!M20956","v":0}]
[42,{"$f":"Import!M19957","v":"Select"},{"$f":"Import!M20157","v":"Select"},{"$f":"Import!M20357","v":"Select"},{"$f":"Import!M20557","v":0},{"$f":"Import!M20757","v":0},{"$f":"Import!M20957","v":0}]
[43,{"$f":"Import!M19958","v":"Select"},{"$f":"Import!M20158","v":"Select"},{"$f":"Import!M20358","v":"Select"},{"$f":"Import!M20558","v":0},{"$f":"Import!M20758","v":0},{"$f":"Import!M20958","v":0}]
[44,{"$f":"Import!M19959","v":"Select"},{"$f":"Import!M20159","v":"Select"},{"$f":"Import!M20359","v":"Select"},{"$f":"Import!M20559","v":0},{"$f":"Import!M20759","v":0},{"$f":"Import!M20959","v":0}]
[45,{"$f":"Import!M19960","v":"Select"},{"$f":"Import!M20160","v":"Select"},{"$f":"Import!M20360","v":"Select"},{"$f":"Import!M20560","v":0},{"$f":"Import!M20760","v":0},{"$f":"Import!M20960","v":0}]
[46,{"$f":"Import!M19961","v":"Select"},{"$f":"Import!M20161","v":"Select"},{"$f":"Import!M20361","v":"Select"},{"$f":"Import!M20561","v":0},{"$f":"Import!M20761","v":0},{"$f":"Import!M20961","v":0}]
[47,{"$f":"Import!M19962","v":"Select"},{"$f":"Import!M20162","v":"Select"},{"$f":"Import!M20362","v":"Select"},{"$f":"Import!M20562","v":0},{"$f":"Import!M20762","v":0},{"$f":"Import!M20962","v":0}]
[48,{"$f":"Import!M19963","v":"Select"},{"$f":"Import!M20163","v":"Select"},{"$f":"Import!M20363","v":"Select"},{"$f":"Import!M20563","v":0},{"$f":"Import!M20763","v":0},{"$f":"Import!M20963","v":0}]
[49,{"$f":"Import!M19964","v":"Select"},{"$f":"Import!M20164","v":"Select"},{"$f":"Import!M20364","v":"Select"},{"$f":"Import!M20564","v":0},{"$f":"Import!M20764","v":0},{"$f":"Import!M20964","v":0}]
[50,{"$f":"Import!M19965","v":"Select"},{"$f":"Import!M20165","v":"Select"},{"$f":"Import!M20365","v":"Select"},{"$f":"Import!M20565","v":0},{"$f":"Import!M20765","v":0},{"$f":"Import!M20965","v":0}]
[51,{"$f":"Import!M19966","v":"Select"},{"$f":"Import!M20166","v":"Select"},{"$f":"Import!M20366","v":"Select"},{"$f":"Import!M20566","v":0},{"$f":"Import!M20766","v":0},{"$f":"Import!M20966","v":0}]
[52,{"$f":"Import!M19967","v":"Select"},{"$f":"Import!M20167","v":"Select"},{"$f":"Import!M20367","v":"Select"},{"$f":"Import!M20567","v":0},{"$f":"Import!M20767","v":0},{"$f":"Import!M20967","v":0}]
[53,{"$f":"Import!M19968","v":"Select"},{"$f":"Import!M20168","v":"Select"},{"$f":"Import!M20368","v":"Select"},{"$f":"Import!M20568","v":0},{"$f":"Import!M20768","v":0},{"$f":"Import!M20968","v":0}]
[54,{"$f":"Import!M19969","v":"Select"},{"$f":"Import!M20169","v":"Select"},{"$f":"Import!M20369","v":"Select"},{"$f":"Import!M20569","v":0},{"$f":"Import!M20769","v":0},{"$f":"Import!M20969","v":0}]
[55,{"$f":"Import!M19970","v":"Select"},{"$f":"Import!M20170","v":"Select"},{"$f":"Import!M20370","v":"Select"},{"$f":"Import!M20570","v":0},{"$f":"Import!M20770","v":0},{"$f":"Import!M20970","v":0}]
[56,{"$f":"Import!M19971","v":"Select"},{"$f":"Import!M20171","v":"Select"},{"$f":"Import!M20371","v":"Select"},{"$f":"Import!M20571","v":0},{"$f":"Import!M20771","v":0},{"$f":"Import!M20971","v":0}]
[57,{"$f":"Import!M19972","v":"Select"},{"$f":"Import!M20172","v":"Select"},{"$f":"Import!M20372","v":"Select"},{"$f":"Import!M20572","v":0},{"$f":"Import!M20772","v":0},{"$f":"Import!M20972","v":0}]
[58,{"$f":"Import!M19973","v":"Select"},{"$f":"Import!M20173","v":"Select"},{"$f":"Import!M20373","v":"Select"},{"$f":"Import!M20573","v":0},{"$f":"Import!M20773","v":0},{"$f":"Import!M20973","v":0}]
[59,{"$f":"Import!M19974","v":"Select"},{"$f":"Import!M20174","v":"Select"},{"$f":"Import!M20374","v":"Select"},{"$f":"Import!M20574","v":0},{"$f":"Import!M20774","v":0},{"$f":"Import!M20974","v":0}]
[60,{"$f":"Import!M19975","v":"Select"},{"$f":"Import!M20175","v":"Select"},{"$f":"Import!M20375","v":"Select"},{"$f":"Import!M20575","v":0},{"$f":"Import!M20775","v":0},{"$f":"Import!M20975","v":0}]
[61,{"$f":"Import!M19976","v":"Select"},{"$f":"Import!M20176","v":"Select"},{"$f":"Import!M20376","v":"Select"},{"$f":"Import!M20576","v":0},{"$f":"Import!M20776","v":0},{"$f":"Import!M20976","v":0}]
[62,{"$f":"Import!M19977","v":"Select"},{"$f":"Import!M20177","v":"Select"},{"$f":"Import!M20377","v":"Select"},{"$f":"Import!M20577","v":0},{"$f":"Import!M20777","v":0},{"$f":"Import!M20977","v":0}]
[63,{"$f":"Import!M19978","v":"Select"},{"$f":"Import!M20178","v":"Select"},{"$f":"Import!M20378","v":"Select"},{"$f":"Import!M20578","v":0},{"$f":"Import!M20778","v":0},{"$f":"Import!M20978","v":0}]
[64,{"$f":"Import!M19979","v":"Select"},{"$f":"Import!M20179","v":"Select"},{"$f":"Import!M20379","v":"Select"},{"$f":"Import!M20579","v":0},{"$f":"Import!M20779","v":0},{"$f":"Import!M20979","v":0}]
[65,{"$f":"Import!M19980","v":"Select"},{"$f":"Import!M20180","v":"Select"},{"$f":"Import!M20380","v":"Select"},{"$f":"Import!M20580","v":0},{"$f":"Import!M20780","v":0},{"$f":"Import!M20980","v":0}]
[66,{"$f":"Import!M19981","v":"Select"},{"$f":"Import!M20181","v":"Select"},{"$f":"Import!M20381","v":"Select"},{"$f":"Import!M20581","v":0},{"$f":"Import!M20781","v":0},{"$f":"Import!M20981","v":0}]
[{"$f":"A76+1","v":67},{"$f":"Import!M19982","v":"Select"},{"$f":"Import!M20182","v":"Select"},{"$f":"Import!M20382","v":"Select"},{"$f":"Import!M20582","v":0},{"$f":"Import!M20782","v":0},{"$f":"Import!M20982","v":0}]
[68,{"$f":"Import!M19983","v":"Select"},{"$f":"Import!M20183","v":"Select"},{"$f":"Import!M20383","v":"Select"},{"$f":"Import!M20583","v":0},{"$f":"Import!M20783","v":0},{"$f":"Import!M20983","v":0}]
[69,{"$f":"Import!M19984","v":"Select"},{"$f":"Import!M20184","v":"Select"},{"$f":"Import!M20384","v":"Select"},{"$f":"Import!M20584","v":0},{"$f":"Import!M20784","v":0},{"$f":"Import!M20984","v":0}]
[70,{"$f":"Import!M19985","v":"Select"},{"$f":"Import!M20185","v":"Select"},{"$f":"Import!M20385","v":"Select"},{"$f":"Import!M20585","v":0},{"$f":"Import!M20785","v":0},{"$f":"Import!M20985","v":0}]
[71,{"$f":"Import!M19986","v":"Select"},{"$f":"Import!M20186","v":"Select"},{"$f":"Import!M20386","v":"Select"},{"$f":"Import!M20586","v":0},{"$f":"Import!M20786","v":0},{"$f":"Import!M20986","v":0}]
[72,{"$f":"Import!M19987","v":"Select"},{"$f":"Import!M20187","v":"Select"},{"$f":"Import!M20387","v":"Select"},{"$f":"Import!M20587","v":0},{"$f":"Import!M20787","v":0},{"$f":"Import!M20987","v":0}]
[73,{"$f":"Import!M19988","v":"Select"},{"$f":"Import!M20188","v":"Select"},{"$f":"Import!M20388","v":"Select"},{"$f":"Import!M20588","v":0},{"$f":"Import!M20788","v":0},{"$f":"Import!M20988","v":0}]
[74,{"$f":"Import!M19989","v":"Select"},{"$f":"Import!M20189","v":"Select"},{"$f":"Import!M20389","v":"Select"},{"$f":"Import!M20589","v":0},{"$f":"Import!M20789","v":0},{"$f":"Import!M20989","v":0}]
[75,{"$f":"Import!M19990","v":"Select"},{"$f":"Import!M20190","v":"Select"},{"$f":"Import!M20390","v":"Select"},{"$f":"Import!M20590","v":0},{"$f":"Import!M20790","v":0},{"$f":"Import!M20990","v":0}]
[76,{"$f":"Import!M19991","v":"Select"},{"$f":"Import!M20191","v":"Select"},{"$f":"Import!M20391","v":"Select"},{"$f":"Import!M20591","v":0},{"$f":"Import!M20791","v":0},{"$f":"Import!M20991","v":0}]
[77,{"$f":"Import!M19992","v":"Select"},{"$f":"Import!M20192","v":"Select"},{"$f":"Import!M20392","v":"Select"},{"$f":"Import!M20592","v":0},{"$f":"Import!M20792","v":0},{"$f":"Import!M20992","v":0}]
[78,{"$f":"Import!M19993","v":"Select"},{"$f":"Import!M20193","v":"Select"},{"$f":"Import!M20393","v":"Select"},{"$f":"Import!M20593","v":0},{"$f":"Import!M20793","v":0},{"$f":"Import!M20993","v":0}]
[79,{"$f":"Import!M19994","v":"Select"},{"$f":"Import!M20194","v":"Select"},{"$f":"Import!M20394","v":"Select"},{"$f":"Import!M20594","v":0},{"$f":"Import!M20794","v":0},{"$f":"Import!M20994","v":0}]
[80,{"$f":"Import!M19995","v":"Select"},{"$f":"Import!M20195","v":"Select"},{"$f":"Import!M20395","v":"Select"},{"$f":"Import!M20595","v":0},{"$f":"Import!M20795","v":0},{"$f":"Import!M20995","v":0}]
[81,{"$f":"Import!M19996","v":"Select"},{"$f":"Import!M20196","v":"Select"},{"$f":"Import!M20396","v":"Select"},{"$f":"Import!M20596","v":0},{"$f":"Import!M20796","v":0},{"$f":"Import!M20996","v":0}]
[82,{"$f":"Import!M19997","v":"Select"},{"$f":"Import!M20197","v":"Select"},{"$f":"Import!M20397","v":"Select"},{"$f":"Import!M20597","v":0},{"$f":"Import!M20797","v":0},{"$f":"Import!M20997","v":0}]
[83,{"$f":"Import!M19998","v":"Select"},{"$f":"Import!M20198","v":"Select"},{"$f":"Import!M20398","v":"Select"},{"$f":"Import!M20598","v":0},{"$f":"Import!M20798","v":0},{"$f":"Import!M20998","v":0}]
[84,{"$f":"Import!M19999","v":"Select"},{"$f":"Import!M20199","v":"Select"},{"$f":"Import!M20399","v":"Select"},{"$f":"Import!M20599","v":0},{"$f":"Import!M20799","v":0},{"$f":"Import!M20999","v":0}]
[85,{"$f":"Import!M20000","v":"Select"},{"$f":"Import!M20200","v":"Select"},{"$f":"Import!M20400","v":"Select"},{"$f":"Import!M20600","v":0},{"$f":"Import!M20800","v":0},{"$f":"Import!M21000","v":0}]
[86,{"$f":"Import!M20001","v":"Select"},{"$f":"Import!M20201","v":"Select"},{"$f":"Import!M20401","v":"Select"},{"$f":"Import!M20601","v":0},{"$f":"Import!M20801","v":0},{"$f":"Import!M21001","v":0}]
[87,{"$f":"Import!M20002","v":"Select"},{"$f":"Import!M20202","v":"Select"},{"$f":"Import!M20402","v":"Select"},{"$f":"Import!M20602","v":0},{"$f":"Import!M20802","v":0},{"$f":"Import!M21002","v":0}]
[88,{"$f":"Import!M20003","v":"Select"},{"$f":"Import!M20203","v":"Select"},{"$f":"Import!M20403","v":"Select"},{"$f":"Import!M20603","v":0},{"$f":"Import!M20803","v":0},{"$f":"Import!M21003","v":0}]
[89,{"$f":"Import!M20004","v":"Select"},{"$f":"Import!M20204","v":"Select"},{"$f":"Import!M20404","v":"Select"},{"$f":"Import!M20604","v":0},{"$f":"Import!M20804","v":0},{"$f":"Import!M21004","v":0}]
[90,{"$f":"Import!M20005","v":"Select"},{"$f":"Import!M20205","v":"Select"},{"$f":"Import!M20405","v":"Select"},{"$f":"Import!M20605","v":0},{"$f":"Import!M20805","v":0},{"$f":"Import!M21005","v":0}]
[91,{"$f":"Import!M20006","v":"Select"},{"$f":"Import!M20206","v":"Select"},{"$f":"Import!M20406","v":"Select"},{"$f":"Import!M20606","v":0},{"$f":"Import!M20806","v":0},{"$f":"Import!M21006","v":0}]
[92,{"$f":"Import!M20007","v":"Select"},{"$f":"Import!M20207","v":"Select"},{"$f":"Import!M20407","v":"Select"},{"$f":"Import!M20607","v":0},{"$f":"Import!M20807","v":0},{"$f":"Import!M21007","v":0}]
[93,{"$f":"Import!M20008","v":"Select"},{"$f":"Import!M20208","v":"Select"},{"$f":"Import!M20408","v":"Select"},{"$f":"Import!M20608","v":0},{"$f":"Import!M20808","v":0},{"$f":"Import!M21008","v":0}]
[94,{"$f":"Import!M20009","v":"Select"},{"$f":"Import!M20209","v":"Select"},{"$f":"Import!M20409","v":"Select"},{"$f":"Import!M20609","v":0},{"$f":"Import!M20809","v":0},{"$f":"Import!M21009","v":0}]
[95,{"$f":"Import!M20010","v":"Select"},{"$f":"Import!M20210","v":"Select"},{"$f":"Import!M20410","v":"Select"},{"$f":"Import!M20610","v":0},{"$f":"Import!M20810","v":0},{"$f":"Import!M21010","v":0}]
[96,{"$f":"Import!M20011","v":"Select"},{"$f":"Import!M20211","v":"Select"},{"$f":"Import!M20411","v":"Select"},{"$f":"Import!M20611","v":0},{"$f":"Import!M20811","v":0},{"$f":"Import!M21011","v":0}]
[97,{"$f":"Import!M20012","v":"Select"},{"$f":"Import!M20212","v":"Select"},{"$f":"Import!M20412","v":"Select"},{"$f":"Import!M20612","v":0},{"$f":"Import!M20812","v":0},{"$f":"Import!M21012","v":0}]
[98,{"$f":"Import!M20013","v":"Select"},{"$f":"Import!M20213","v":"Select"},{"$f":"Import!M20413","v":"Select"},{"$f":"Import!M20613","v":0},{"$f":"Import!M20813","v":0},{"$f":"Import!M21013","v":0}]
[99,{"$f":"Import!M20014","v":"Select"},{"$f":"Import!M20214","v":"Select"},{"$f":"Import!M20414","v":"Select"},{"$f":"Import!M20614","v":0},{"$f":"Import!M20814","v":0},{"$f":"Import!M21014","v":0}]
[100,{"$f":"Import!M20015","v":"Select"},{"$f":"Import!M20215","v":"Select"},{"$f":"Import!M20415","v":"Select"},{"$f":"Import!M20615","v":0},{"$f":"Import!M20815","v":0},{"$f":"Import!M21015","v":0}]
[101,{"$f":"Import!M20016","v":"Select"},{"$f":"Import!M20216","v":"Select"},{"$f":"Import!M20416","v":"Select"},{"$f":"Import!M20616","v":0},{"$f":"Import!M20816","v":0},{"$f":"Import!M21016","v":0}]
[102,{"$f":"Import!M20017","v":"Select"},{"$f":"Import!M20217","v":"Select"},{"$f":"Import!M20417","v":"Select"},{"$f":"Import!M20617","v":0},{"$f":"Import!M20817","v":0},{"$f":"Import!M21017","v":0}]
[103,{"$f":"Import!M20018","v":"Select"},{"$f":"Import!M20218","v":"Select"},{"$f":"Import!M20418","v":"Select"},{"$f":"Import!M20618","v":0},{"$f":"Import!M20818","v":0},{"$f":"Import!M21018","v":0}]
[104,{"$f":"Import!M20019","v":"Select"},{"$f":"Import!M20219","v":"Select"},{"$f":"Import!M20419","v":"Select"},{"$f":"Import!M20619","v":0},{"$f":"Import!M20819","v":0},{"$f":"Import!M21019","v":0}]
[105,{"$f":"Import!M20020","v":"Select"},{"$f":"Import!M20220","v":"Select"},{"$f":"Import!M20420","v":"Select"},{"$f":"Import!M20620","v":0},{"$f":"Import!M20820","v":0},{"$f":"Import!M21020","v":0}]
[106,{"$f":"Import!M20021","v":"Select"},{"$f":"Import!M20221","v":"Select"},{"$f":"Import!M20421","v":"Select"},{"$f":"Import!M20621","v":0},{"$f":"Import!M20821","v":0},{"$f":"Import!M21021","v":0}]
[107,{"$f":"Import!M20022","v":"Select"},{"$f":"Import!M20222","v":"Select"},{"$f":"Import!M20422","v":"Select"},{"$f":"Import!M20622","v":0},{"$f":"Import!M20822","v":0},{"$f":"Import!M21022","v":0}]
[108,{"$f":"Import!M20023","v":"Select"},{"$f":"Import!M20223","v":"Select"},{"$f":"Import!M20423","v":"Select"},{"$f":"Import!M20623","v":0},{"$f":"Import!M20823","v":0},{"$f":"Import!M21023","v":0}]
[109,{"$f":"Import!M20024","v":"Select"},{"$f":"Import!M20224","v":"Select"},{"$f":"Import!M20424","v":"Select"},{"$f":"Import!M20624","v":0},{"$f":"Import!M20824","v":0},{"$f":"Import!M21024","v":0}]
[110,{"$f":"Import!M20025","v":"Select"},{"$f":"Import!M20225","v":"Select"},{"$f":"Import!M20425","v":"Select"},{"$f":"Import!M20625","v":0},{"$f":"Import!M20825","v":0},{"$f":"Import!M21025","v":0}]
[111,{"$f":"Import!M20026","v":"Select"},{"$f":"Import!M20226","v":"Select"},{"$f":"Import!M20426","v":"Select"},{"$f":"Import!M20626","v":0},{"$f":"Import!M20826","v":0},{"$f":"Import!M21026","v":0}]
[112,{"$f":"Import!M20027","v":"Select"},{"$f":"Import!M20227","v":"Select"},{"$f":"Import!M20427","v":"Select"},{"$f":"Import!M20627","v":0},{"$f":"Import!M20827","v":0},{"$f":"Import!M21027","v":0}]
[113,{"$f":"Import!M20028","v":"Select"},{"$f":"Import!M20228","v":"Select"},{"$f":"Import!M20428","v":"Select"},{"$f":"Import!M20628","v":0},{"$f":"Import!M20828","v":0},{"$f":"Import!M21028","v":0}]
[114,{"$f":"Import!M20029","v":"Select"},{"$f":"Import!M20229","v":"Select"},{"$f":"Import!M20429","v":"Select"},{"$f":"Import!M20629","v":0},{"$f":"Import!M20829","v":0},{"$f":"Import!M21029","v":0}]
[115,{"$f":"Import!M20030","v":"Select"},{"$f":"Import!M20230","v":"Select"},{"$f":"Import!M20430","v":"Select"},{"$f":"Import!M20630","v":0},{"$f":"Import!M20830","v":0},{"$f":"Import!M21030","v":0}]
[116,{"$f":"Import!M20031","v":"Select"},{"$f":"Import!M20231","v":"Select"},{"$f":"Import!M20431","v":"Select"},{"$f":"Import!M20631","v":0},{"$f":"Import!M20831","v":0},{"$f":"Import!M21031","v":0}]
[117,{"$f":"Import!M20032","v":"Select"},{"$f":"Import!M20232","v":"Select"},{"$f":"Import!M20432","v":"Select"},{"$f":"Import!M20632","v":0},{"$f":"Import!M20832","v":0},{"$f":"Import!M21032","v":0}]
[118,{"$f":"Import!M20033","v":"Select"},{"$f":"Import!M20233","v":"Select"},{"$f":"Import!M20433","v":"Select"},{"$f":"Import!M20633","v":0},{"$f":"Import!M20833","v":0},{"$f":"Import!M21033","v":0}]
[119,{"$f":"Import!M20034","v":"Select"},{"$f":"Import!M20234","v":"Select"},{"$f":"Import!M20434","v":"Select"},{"$f":"Import!M20634","v":0},{"$f":"Import!M20834","v":0},{"$f":"Import!M21034","v":0}]
[120,{"$f":"Import!M20035","v":"Select"},{"$f":"Import!M20235","v":"Select"},{"$f":"Import!M20435","v":"Select"},{"$f":"Import!M20635","v":0},{"$f":"Import!M20835","v":0},{"$f":"Import!M21035","v":0}]
[121,{"$f":"Import!M20036","v":"Select"},{"$f":"Import!M20236","v":"Select"},{"$f":"Import!M20436","v":"Select"},{"$f":"Import!M20636","v":0},{"$f":"Import!M20836","v":0},{"$f":"Import!M21036","v":0}]
[122,{"$f":"Import!M20037","v":"Select"},{"$f":"Import!M20237","v":"Select"},{"$f":"Import!M20437","v":"Select"},{"$f":"Import!M20637","v":0},{"$f":"Import!M20837","v":0},{"$f":"Import!M21037","v":0}]
[123,{"$f":"Import!M20038","v":"Select"},{"$f":"Import!M20238","v":"Select"},{"$f":"Import!M20438","v":"Select"},{"$f":"Import!M20638","v":0},{"$f":"Import!M20838","v":0},{"$f":"Import!M21038","v":0}]
[124,{"$f":"Import!M20039","v":"Select"},{"$f":"Import!M20239","v":"Select"},{"$f":"Import!M20439","v":"Select"},{"$f":"Import!M20639","v":0},{"$f":"Import!M20839","v":0},{"$f":"Import!M21039","v":0}]
[125,{"$f":"Import!M20040","v":"Select"},{"$f":"Import!M20240","v":"Select"},{"$f":"Import!M20440","v":"Select"},{"$f":"Import!M20640","v":0},{"$f":"Import!M20840","v":0},{"$f":"Import!M21040","v":0}]
[126,{"$f":"Import!M20041","v":"Select"},{"$f":"Import!M20241","v":"Select"},{"$f":"Import!M20441","v":"Select"},{"$f":"Import!M20641","v":0},{"$f":"Import!M20841","v":0},{"$f":"Import!M21041","v":0}]
[127,{"$f":"Import!M20042","v":"Select"},{"$f":"Import!M20242","v":"Select"},{"$f":"Import!M20442","v":"Select"},{"$f":"Import!M20642","v":0},{"$f":"Import!M20842","v":0},{"$f":"Import!M21042","v":0}]
[128,{"$f":"Import!M20043","v":"Select"},{"$f":"Import!M20243","v":"Select"},{"$f":"Import!M20443","v":"Select"},{"$f":"Import!M20643","v":0},{"$f":"Import!M20843","v":0},{"$f":"Import!M21043","v":0}]
[129,{"$f":"Import!M20044","v":"Select"},{"$f":"Import!M20244","v":"Select"},{"$f":"Import!M20444","v":"Select"},{"$f":"Import!M20644","v":0},{"$f":"Import!M20844","v":0},{"$f":"Import!M21044","v":0}]
[130,{"$f":"Import!M20045","v":"Select"},{"$f":"Import!M20245","v":"Select"},{"$f":"Import!M20445","v":"Select"},{"$f":"Import!M20645","v":0},{"$f":"Import!M20845","v":0},{"$f":"Import!M21045","v":0}]
[{"$f":"A140+1","v":131},{"$f":"Import!M20046","v":"Select"},{"$f":"Import!M20246","v":"Select"},{"$f":"Import!M20446","v":"Select"},{"$f":"Import!M20646","v":0},{"$f":"Import!M20846","v":0},{"$f":"Import!M21046","v":0}]
[132,{"$f":"Import!M20047","v":"Select"},{"$f":"Import!M20247","v":"Select"},{"$f":"Import!M20447","v":"Select"},{"$f":"Import!M20647","v":0},{"$f":"Import!M20847","v":0},{"$f":"Import!M21047","v":0}]
[133,{"$f":"Import!M20048","v":"Select"},{"$f":"Import!M20248","v":"Select"},{"$f":"Import!M20448","v":"Select"},{"$f":"Import!M20648","v":0},{"$f":"Import!M20848","v":0},{"$f":"Import!M21048","v":0}]
[134,{"$f":"Import!M20049","v":"Select"},{"$f":"Import!M20249","v":"Select"},{"$f":"Import!M20449","v":"Select"},{"$f":"Import!M20649","v":0},{"$f":"Import!M20849","v":0},{"$f":"Import!M21049","v":0}]
[135,{"$f":"Import!M20050","v":"Select"},{"$f":"Import!M20250","v":"Select"},{"$f":"Import!M20450","v":"Select"},{"$f":"Import!M20650","v":0},{"$f":"Import!M20850","v":0},{"$f":"Import!M21050","v":0}]
[136,{"$f":"Import!M20051","v":"Select"},{"$f":"Import!M20251","v":"Select"},{"$f":"Import!M20451","v":"Select"},{"$f":"Import!M20651","v":0},{"$f":"Import!M20851","v":0},{"$f":"Import!M21051","v":0}]
[137,{"$f":"Import!M20052","v":"Select"},{"$f":"Import!M20252","v":"Select"},{"$f":"Import!M20452","v":"Select"},{"$f":"Import!M20652","v":0},{"$f":"Import!M20852","v":0},{"$f":"Import!M21052","v":0}]
[138,{"$f":"Import!M20053","v":"Select"},{"$f":"Import!M20253","v":"Select"},{"$f":"Import!M20453","v":"Select"},{"$f":"Import!M20653","v":0},{"$f":"Import!M20853","v":0},{"$f":"Import!M21053","v":0}]
[139,{"$f":"Import!M20054","v":"Select"},{"$f":"Import!M20254","v":"Select"},{"$f":"Import!M20454","v":"Select"},{"$f":"Import!M20654","v":0},{"$f":"Import!M20854","v":0},{"$f":"Import!M21054","v":0}]
[140,{"$f":"Import!M20055","v":"Select"},{"$f":"Import!M20255","v":"Select"},{"$f":"Import!M20455","v":"Select"},{"$f":"Import!M20655","v":0},{"$f":"Import!M20855","v":0},{"$f":"Import!M21055","v":0}]
[141,{"$f":"Import!M20056","v":"Select"},{"$f":"Import!M20256","v":"Select"},{"$f":"Import!M20456","v":"Select"},{"$f":"Import!M20656","v":0},{"$f":"Import!M20856","v":0},{"$f":"Import!M21056","v":0}]
[142,{"$f":"Import!M20057","v":"Select"},{"$f":"Import!M20257","v":"Select"},{"$f":"Import!M20457","v":"Select"},{"$f":"Import!M20657","v":0},{"$f":"Import!M20857","v":0},{"$f":"Import!M21057","v":0}]
[143,{"$f":"Import!M20058","v":"Select"},{"$f":"Import!M20258","v":"Select"},{"$f":"Import!M20458","v":"Select"},{"$f":"Import!M20658","v":0},{"$f":"Import!M20858","v":0},{"$f":"Import!M21058","v":0}]
[144,{"$f":"Import!M20059","v":"Select"},{"$f":"Import!M20259","v":"Select"},{"$f":"Import!M20459","v":"Select"},{"$f":"Import!M20659","v":0},{"$f":"Import!M20859","v":0},{"$f":"Import!M21059","v":0}]
[145,{"$f":"Import!M20060","v":"Select"},{"$f":"Import!M20260","v":"Select"},{"$f":"Import!M20460","v":"Select"},{"$f":"Import!M20660","v":0},{"$f":"Import!M20860","v":0},{"$f":"Import!M21060","v":0}]
[146,{"$f":"Import!M20061","v":"Select"},{"$f":"Import!M20261","v":"Select"},{"$f":"Import!M20461","v":"Select"},{"$f":"Import!M20661","v":0},{"$f":"Import!M20861","v":0},{"$f":"Import!M21061","v":0}]
[147,{"$f":"Import!M20062","v":"Select"},{"$f":"Import!M20262","v":"Select"},{"$f":"Import!M20462","v":"Select"},{"$f":"Import!M20662","v":0},{"$f":"Import!M20862","v":0},{"$f":"Import!M21062","v":0}]
[148,{"$f":"Import!M20063","v":"Select"},{"$f":"Import!M20263","v":"Select"},{"$f":"Import!M20463","v":"Select"},{"$f":"Import!M20663","v":0},{"$f":"Import!M20863","v":0},{"$f":"Import!M21063","v":0}]
[149,{"$f":"Import!M20064","v":"Select"},{"$f":"Import!M20264","v":"Select"},{"$f":"Import!M20464","v":"Select"},{"$f":"Import!M20664","v":0},{"$f":"Import!M20864","v":0},{"$f":"Import!M21064","v":0}]
[150,{"$f":"Import!M20065","v":"Select"},{"$f":"Import!M20265","v":"Select"},{"$f":"Import!M20465","v":"Select"},{"$f":"Import!M20665","v":0},{"$f":"Import!M20865","v":0},{"$f":"Import!M21065","v":0}]
[151,{"$f":"Import!M20066","v":"Select"},{"$f":"Import!M20266","v":"Select"},{"$f":"Import!M20466","v":"Select"},{"$f":"Import!M20666","v":0},{"$f":"Import!M20866","v":0},{"$f":"Import!M21066","v":0}]
[152,{"$f":"Import!M20067","v":"Select"},{"$f":"Import!M20267","v":"Select"},{"$f":"Import!M20467","v":"Select"},{"$f":"Import!M20667","v":0},{"$f":"Import!M20867","v":0},{"$f":"Import!M21067","v":0}]
[153,{"$f":"Import!M20068","v":"Select"},{"$f":"Import!M20268","v":"Select"},{"$f":"Import!M20468","v":"Select"},{"$f":"Import!M20668","v":0},{"$f":"Import!M20868","v":0},{"$f":"Import!M21068","v":0}]
[154,{"$f":"Import!M20069","v":"Select"},{"$f":"Import!M20269","v":"Select"},{"$f":"Import!M20469","v":"Select"},{"$f":"Import!M20669","v":0},{"$f":"Import!M20869","v":0},{"$f":"Import!M21069","v":0}]
[155,{"$f":"Import!M20070","v":"Select"},{"$f":"Import!M20270","v":"Select"},{"$f":"Import!M20470","v":"Select"},{"$f":"Import!M20670","v":0},{"$f":"Import!M20870","v":0},{"$f":"Import!M21070","v":0}]
[156,{"$f":"Import!M20071","v":"Select"},{"$f":"Import!M20271","v":"Select"},{"$f":"Import!M20471","v":"Select"},{"$f":"Import!M20671","v":0},{"$f":"Import!M20871","v":0},{"$f":"Import!M21071","v":0}]
[157,{"$f":"Import!M20072","v":"Select"},{"$f":"Import!M20272","v":"Select"},{"$f":"Import!M20472","v":"Select"},{"$f":"Import!M20672","v":0},{"$f":"Import!M20872","v":0},{"$f":"Import!M21072","v":0}]
[158,{"$f":"Import!M20073","v":"Select"},{"$f":"Import!M20273","v":"Select"},{"$f":"Import!M20473","v":"Select"},{"$f":"Import!M20673","v":0},{"$f":"Import!M20873","v":0},{"$f":"Import!M21073","v":0}]
[159,{"$f":"Import!M20074","v":"Select"},{"$f":"Import!M20274","v":"Select"},{"$f":"Import!M20474","v":"Select"},{"$f":"Import!M20674","v":0},{"$f":"Import!M20874","v":0},{"$f":"Import!M21074","v":0}]
[160,{"$f":"Import!M20075","v":"Select"},{"$f":"Import!M20275","v":"Select"},{"$f":"Import!M20475","v":"Select"},{"$f":"Import!M20675","v":0},{"$f":"Import!M20875","v":0},{"$f":"Import!M21075","v":0}]
[161,{"$f":"Import!M20076","v":"Select"},{"$f":"Import!M20276","v":"Select"},{"$f":"Import!M20476","v":"Select"},{"$f":"Import!M20676","v":0},{"$f":"Import!M20876","v":0},{"$f":"Import!M21076","v":0}]
[162,{"$f":"Import!M20077","v":"Select"},{"$f":"Import!M20277","v":"Select"},{"$f":"Import!M20477","v":"Select"},{"$f":"Import!M20677","v":0},{"$f":"Import!M20877","v":0},{"$f":"Import!M21077","v":0}]
[163,{"$f":"Import!M20078","v":"Select"},{"$f":"Import!M20278","v":"Select"},{"$f":"Import!M20478","v":"Select"},{"$f":"Import!M20678","v":0},{"$f":"Import!M20878","v":0},{"$f":"Import!M21078","v":0}]
[164,{"$f":"Import!M20079","v":"Select"},{"$f":"Import!M20279","v":"Select"},{"$f":"Import!M20479","v":"Select"},{"$f":"Import!M20679","v":0},{"$f":"Import!M20879","v":0},{"$f":"Import!M21079","v":0}]
[165,{"$f":"Import!M20080","v":"Select"},{"$f":"Import!M20280","v":"Select"},{"$f":"Import!M20480","v":"Select"},{"$f":"Import!M20680","v":0},{"$f":"Import!M20880","v":0},{"$f":"Import!M21080","v":0}]
[166,{"$f":"Import!M20081","v":"Select"},{"$f":"Import!M20281","v":"Select"},{"$f":"Import!M20481","v":"Select"},{"$f":"Import!M20681","v":0},{"$f":"Import!M20881","v":0},{"$f":"Import!M21081","v":0}]
[167,{"$f":"Import!M20082","v":"Select"},{"$f":"Import!M20282","v":"Select"},{"$f":"Import!M20482","v":"Select"},{"$f":"Import!M20682","v":0},{"$f":"Import!M20882","v":0},{"$f":"Import!M21082","v":0}]
[168,{"$f":"Import!M20083","v":"Select"},{"$f":"Import!M20283","v":"Select"},{"$f":"Import!M20483","v":"Select"},{"$f":"Import!M20683","v":0},{"$f":"Import!M20883","v":0},{"$f":"Import!M21083","v":0}]
[169,{"$f":"Import!M20084","v":"Select"},{"$f":"Import!M20284","v":"Select"},{"$f":"Import!M20484","v":"Select"},{"$f":"Import!M20684","v":0},{"$f":"Import!M20884","v":0},{"$f":"Import!M21084","v":0}]
[170,{"$f":"Import!M20085","v":"Select"},{"$f":"Import!M20285","v":"Select"},{"$f":"Import!M20485","v":"Select"},{"$f":"Import!M20685","v":0},{"$f":"Import!M20885","v":0},{"$f":"Import!M21085","v":0}]
[171,{"$f":"Import!M20086","v":"Select"},{"$f":"Import!M20286","v":"Select"},{"$f":"Import!M20486","v":"Select"},{"$f":"Import!M20686","v":0},{"$f":"Import!M20886","v":0},{"$f":"Import!M21086","v":0}]
[172,{"$f":"Import!M20087","v":"Select"},{"$f":"Import!M20287","v":"Select"},{"$f":"Import!M20487","v":"Select"},{"$f":"Import!M20687","v":0},{"$f":"Import!M20887","v":0},{"$f":"Import!M21087","v":0}]
[173,{"$f":"Import!M20088","v":"Select"},{"$f":"Import!M20288","v":"Select"},{"$f":"Import!M20488","v":"Select"},{"$f":"Import!M20688","v":0},{"$f":"Import!M20888","v":0},{"$f":"Import!M21088","v":0}]
[174,{"$f":"Import!M20089","v":"Select"},{"$f":"Import!M20289","v":"Select"},{"$f":"Import!M20489","v":"Select"},{"$f":"Import!M20689","v":0},{"$f":"Import!M20889","v":0},{"$f":"Import!M21089","v":0}]
[175,{"$f":"Import!M20090","v":"Select"},{"$f":"Import!M20290","v":"Select"},{"$f":"Import!M20490","v":"Select"},{"$f":"Import!M20690","v":0},{"$f":"Import!M20890","v":0},{"$f":"Import!M21090","v":0}]
[176,{"$f":"Import!M20091","v":"Select"},{"$f":"Import!M20291","v":"Select"},{"$f":"Import!M20491","v":"Select"},{"$f":"Import!M20691","v":0},{"$f":"Import!M20891","v":0},{"$f":"Import!M21091","v":0}]
[177,{"$f":"Import!M20092","v":"Select"},{"$f":"Import!M20292","v":"Select"},{"$f":"Import!M20492","v":"Select"},{"$f":"Import!M20692","v":0},{"$f":"Import!M20892","v":0},{"$f":"Import!M21092","v":0}]
[178,{"$f":"Import!M20093","v":"Select"},{"$f":"Import!M20293","v":"Select"},{"$f":"Import!M20493","v":"Select"},{"$f":"Import!M20693","v":0},{"$f":"Import!M20893","v":0},{"$f":"Import!M21093","v":0}]
[179,{"$f":"Import!M20094","v":"Select"},{"$f":"Import!M20294","v":"Select"},{"$f":"Import!M20494","v":"Select"},{"$f":"Import!M20694","v":0},{"$f":"Import!M20894","v":0},{"$f":"Import!M21094","v":0}]
[180,{"$f":"Import!M20095","v":"Select"},{"$f":"Import!M20295","v":"Select"},{"$f":"Import!M20495","v":"Select"},{"$f":"Import!M20695","v":0},{"$f":"Import!M20895","v":0},{"$f":"Import!M21095","v":0}]
[181,{"$f":"Import!M20096","v":"Select"},{"$f":"Import!M20296","v":"Select"},{"$f":"Import!M20496","v":"Select"},{"$f":"Import!M20696","v":0},{"$f":"Import!M20896","v":0},{"$f":"Import!M21096","v":0}]
[182,{"$f":"Import!M20097","v":"Select"},{"$f":"Import!M20297","v":"Select"},{"$f":"Import!M20497","v":"Select"},{"$f":"Import!M20697","v":0},{"$f":"Import!M20897","v":0},{"$f":"Import!M21097","v":0}]
[183,{"$f":"Import!M20098","v":"Select"},{"$f":"Import!M20298","v":"Select"},{"$f":"Import!M20498","v":"Select"},{"$f":"Import!M20698","v":0},{"$f":"Import!M20898","v":0},{"$f":"Import!M21098","v":0}]
[184,{"$f":"Import!M20099","v":"Select"},{"$f":"Import!M20299","v":"Select"},{"$f":"Import!M20499","v":"Select"},{"$f":"Import!M20699","v":0},{"$f":"Import!M20899","v":0},{"$f":"Import!M21099","v":0}]
[185,{"$f":"Import!M20100","v":"Select"},{"$f":"Import!M20300","v":"Select"},{"$f":"Import!M20500","v":"Select"},{"$f":"Import!M20700","v":0},{"$f":"Import!M20900","v":0},{"$f":"Import!M21100","v":0}]
[186,{"$f":"Import!M20101","v":"Select"},{"$f":"Import!M20301","v":"Select"},{"$f":"Import!M20501","v":"Select"},{"$f":"Import!M20701","v":0},{"$f":"Import!M20901","v":0},{"$f":"Import!M21101","v":0}]
[187,{"$f":"Import!M20102","v":"Select"},{"$f":"Import!M20302","v":"Select"},{"$f":"Import!M20502","v":"Select"},{"$f":"Import!M20702","v":0},{"$f":"Import!M20902","v":0},{"$f":"Import!M21102","v":0}]
[188,{"$f":"Import!M20103","v":"Select"},{"$f":"Import!M20303","v":"Select"},{"$f":"Import!M20503","v":"Select"},{"$f":"Import!M20703","v":0},{"$f":"Import!M20903","v":0},{"$f":"Import!M21103","v":0}]
[189,{"$f":"Import!M20104","v":"Select"},{"$f":"Import!M20304","v":"Select"},{"$f":"Import!M20504","v":"Select"},{"$f":"Import!M20704","v":0},{"$f":"Import!M20904","v":0},{"$f":"Import!M21104","v":0}]
[190,{"$f":"Import!M20105","v":"Select"},{"$f":"Import!M20305","v":"Select"},{"$f":"Import!M20505","v":"Select"},{"$f":"Import!M20705","v":0},{"$f":"Import!M20905","v":0},{"$f":"Import!M21105","v":0}]
[191,{"$f":"Import!M20106","v":"Select"},{"$f":"Import!M20306","v":"Select"},{"$f":"Import!M20506","v":"Select"},{"$f":"Import!M20706","v":0},{"$f":"Import!M20906","v":0},{"$f":"Import!M21106","v":0}]
[192,{"$f":"Import!M20107","v":"Select"},{"$f":"Import!M20307","v":"Select"},{"$f":"Import!M20507","v":"Select"},{"$f":"Import!M20707","v":0},{"$f":"Import!M20907","v":0},{"$f":"Import!M21107","v":0}]
[193,{"$f":"Import!M20108","v":"Select"},{"$f":"Import!M20308","v":"Select"},{"$f":"Import!M20508","v":"Select"},{"$f":"Import!M20708","v":0},{"$f":"Import!M20908","v":0},{"$f":"Import!M21108","v":0}]
[194,{"$f":"Import!M20109","v":"Select"},{"$f":"Import!M20309","v":"Select"},{"$f":"Import!M20509","v":"Select"},{"$f":"Import!M20709","v":0},{"$f":"Import!M20909","v":0},{"$f":"Import!M21109","v":0}]
[{"$f":"A204+1","v":195},{"$f":"Import!M20110","v":"Select"},{"$f":"Import!M20310","v":"Select"},{"$f":"Import!M20510","v":"Select"},{"$f":"Import!M20710","v":0},{"$f":"Import!M20910","v":0},{"$f":"Import!M21110","v":0}]
[196,{"$f":"Import!M20111","v":"Select"},{"$f":"Import!M20311","v":"Select"},{"$f":"Import!M20511","v":"Select"},{"$f":"Import!M20711","v":0},{"$f":"Import!M20911","v":0},{"$f":"Import!M21111","v":0}]
[197,{"$f":"Import!M20112","v":"Select"},{"$f":"Import!M20312","v":"Select"},{"$f":"Import!M20512","v":"Select"},{"$f":"Import!M20712","v":0},{"$f":"Import!M20912","v":0},{"$f":"Import!M21112","v":0}]
[198,{"$f":"Import!M20113","v":"Select"},{"$f":"Import!M20313","v":"Select"},{"$f":"Import!M20513","v":"Select"},{"$f":"Import!M20713","v":0},{"$f":"Import!M20913","v":0},{"$f":"Import!M21113","v":0}]
[199,{"$f":"Import!M20114","v":"Select"},{"$f":"Import!M20314","v":"Select"},{"$f":"Import!M20514","v":"Select"},{"$f":"Import!M20714","v":0},{"$f":"Import!M20914","v":0},{"$f":"Import!M21114","v":0}]
[200,{"$f":"Import!M20115","v":"Select"},{"$f":"Import!M20315","v":"Select"},{"$f":"Import!M20515","v":"Select"},{"$f":"Import!M20715","v":0},{"$f":"Import!M20915","v":0},{"$f":"Import!M21115","v":0}]
[]
[null,"Total Cash and Cash Equivalents",null,null,{"$f":"SUM(E11:E210)","v":0},{"$f":"SUM(F11:F210)","v":0}]
[]
[null,"(B) BONDS AND DEBENTURES"]
[]
[null,null,"Enter # of Asset Types",{"$f":"Import!M21116","v":0}]
[null,null,null,null,{"$f":"YEAR($C$3)","v":2023},2023,"Weighted"]
[null,"Asset Type","Currency","BSCR Rating","Nominal Amount","Fair Value","Average YTM","Effective Duration","Comments"]
[1,{"$f":"Import!M21117","v":"Select"},{"$f":"Import!M21517","v":"Select"},{"$f":"Import!M21917","v":"Select"},{"$f":"Import!M22317","v":0},{"$f":"Import!M22717","v":0},{"$f":"Import!M23117","v":0},{"$f":"Import!M23517","v":0},{"$f":"Import!M23917","v":0}]
[{"$f":"A219+1","v":2},{"$f":"Import!M21118","v":"Select"},{"$f":"Import!M21518","v":"Select"},{"$f":"Import!M21918","v":"Select"},{"$f":"Import!M22318","v":0},{"$f":"Import!M22718","v":0},{"$f":"Import!M23118","v":0},{"$f":"Import!M23518","v":0},{"$f":"Import!M23918","v":0}]
[{"$f":"A220+1","v":3},{"$f":"Import!M21119","v":"Select"},{"$f":"Import!M21519","v":"Select"},{"$f":"Import!M21919","v":"Select"},{"$f":"Import!M22319","v":0},{"$f":"Import!M22719","v":0},{"$f":"Import!M23119","v":0},{"$f":"Import!M23519","v":0},{"$f":"Import!M23919","v":0}]
[4,{"$f":"Import!M21120","v":"Select"},{"$f":"Import!M21520","v":"Select"},{"$f":"Import!M21920","v":"Select"},{"$f":"Import!M22320","v":0},{"$f":"Import!M22720","v":0},{"$f":"Import!M23120","v":0},{"$f":"Import!M23520","v":0},{"$f":"Import!M23920","v":0}]
[5,{"$f":"Import!M21121","v":"Select"},{"$f":"Import!M21521","v":"Select"},{"$f":"Import!M21921","v":"Select"},{"$f":"Import!M22321","v":0},{"$f":"Import!M22721","v":0},{"$f":"Import!M23121","v":0},{"$f":"Import!M23521","v":0},{"$f":"Import!M23921","v":0}]
[6,{"$f":"Import!M21122","v":"Select"},{"$f":"Import!M21522","v":"Select"},{"$f":"Import!M21922","v":"Select"},{"$f":"Import!M22322","v":0},{"$f":"Import!M22722","v":0},{"$f":"Import!M23122","v":0},{"$f":"Import!M23522","v":0},{"$f":"Import!M23922","v":0}]
[7,{"$f":"Import!M21123","v":"Select"},{"$f":"Import!M21523","v":"Select"},{"$f":"Import!M21923","v":"Select"},{"$f":"Import!M22323","v":0},{"$f":"Import!M22723","v":0},{"$f":"Import!M23123","v":0},{"$f":"Import!M23523","v":0},{"$f":"Import!M23923","v":0}]
[8,{"$f":"Import!M21124","v":"Select"},{"$f":"Import!M21524","v":"Select"},{"$f":"Import!M21924","v":"Select"},{"$f":"Import!M22324","v":0},{"$f":"Import!M22724","v":0},{"$f":"Import!M23124","v":0},{"$f":"Import!M23524","v":0},{"$f":"Import!M23924","v":0}]
[9,{"$f":"Import!M21125","v":"Select"},{"$f":"Import!M21525","v":"Select"},{"$f":"Import!M21925","v":"Select"},{"$f":"Import!M22325","v":0},{"$f":"Import!M22725","v":0},{"$f":"Import!M23125","v":0},{"$f":"Import!M23525","v":0},{"$f":"Import!M23925","v":0}]
[10,{"$f":"Import!M21126","v":"Select"},{"$f":"Import!M21526","v":"Select"},{"$f":"Import!M21926","v":"Select"},{"$f":"Import!M22326","v":0},{"$f":"Import!M22726","v":0},{"$f":"Import!M23126","v":0},{"$f":"Import!M23526","v":0},{"$f":"Import!M23926","v":0}]
[11,{"$f":"Import!M21127","v":"Select"},{"$f":"Import!M21527","v":"Select"},{"$f":"Import!M21927","v":"Select"},{"$f":"Import!M22327","v":0},{"$f":"Import!M22727","v":0},{"$f":"Import!M23127","v":0},{"$f":"Import!M23527","v":0},{"$f":"Import!M23927","v":0}]
[12,{"$f":"Import!M21128","v":"Select"},{"$f":"Import!M21528","v":"Select"},{"$f":"Import!M21928","v":"Select"},{"$f":"Import!M22328","v":0},{"$f":"Import!M22728","v":0},{"$f":"Import!M23128","v":0},{"$f":"Import!M23528","v":0},{"$f":"Import!M23928","v":0}]
[13,{"$f":"Import!M21129","v":"Select"},{"$f":"Import!M21529","v":"Select"},{"$f":"Import!M21929","v":"Select"},{"$f":"Import!M22329","v":0},{"$f":"Import!M22729","v":0},{"$f":"Import!M23129","v":0},{"$f":"Import!M23529","v":0},{"$f":"Import!M23929","v":0}]
[14,{"$f":"Import!M21130","v":"Select"},{"$f":"Import!M21530","v":"Select"},{"$f":"Import!M21930","v":"Select"},{"$f":"Import!M22330","v":0},{"$f":"Import!M22730","v":0},{"$f":"Import!M23130","v":0},{"$f":"Import!M23530","v":0},{"$f":"Import!M23930","v":0}]
[15,{"$f":"Import!M21131","v":"Select"},{"$f":"Import!M21531","v":"Select"},{"$f":"Import!M21931","v":"Select"},{"$f":"Import!M22331","v":0},{"$f":"Import!M22731","v":0},{"$f":"Import!M23131","v":0},{"$f":"Import!M23531","v":0},{"$f":"Import!M23931","v":0}]
[16,{"$f":"Import!M21132","v":"Select"},{"$f":"Import!M21532","v":"Select"},{"$f":"Import!M21932","v":"Select"},{"$f":"Import!M22332","v":0},{"$f":"Import!M22732","v":0},{"$f":"Import!M23132","v":0},{"$f":"Import!M23532","v":0},{"$f":"Import!M23932","v":0}]
[17,{"$f":"Import!M21133","v":"Select"},{"$f":"Import!M21533","v":"Select"},{"$f":"Import!M21933","v":"Select"},{"$f":"Import!M22333","v":0},{"$f":"Import!M22733","v":0},{"$f":"Import!M23133","v":0},{"$f":"Import!M23533","v":0},{"$f":"Import!M23933","v":0}]
[18,{"$f":"Import!M21134","v":"Select"},{"$f":"Import!M21534","v":"Select"},{"$f":"Import!M21934","v":"Select"},{"$f":"Import!M22334","v":0},{"$f":"Import!M22734","v":0},{"$f":"Import!M23134","v":0},{"$f":"Import!M23534","v":0},{"$f":"Import!M23934","v":0}]
[19,{"$f":"Import!M21135","v":"Select"},{"$f":"Import!M21535","v":"Select"},{"$f":"Import!M21935","v":"Select"},{"$f":"Import!M22335","v":0},{"$f":"Import!M22735","v":0},{"$f":"Import!M23135","v":0},{"$f":"Import!M23535","v":0},{"$f":"Import!M23935","v":0}]
[20,{"$f":"Import!M21136","v":"Select"},{"$f":"Import!M21536","v":"Select"},{"$f":"Import!M21936","v":"Select"},{"$f":"Import!M22336","v":0},{"$f":"Import!M22736","v":0},{"$f":"Import!M23136","v":0},{"$f":"Import!M23536","v":0},{"$f":"Import!M23936","v":0}]
[21,{"$f":"Import!M21137","v":"Select"},{"$f":"Import!M21537","v":"Select"},{"$f":"Import!M21937","v":"Select"},{"$f":"Import!M22337","v":0},{"$f":"Import!M22737","v":0},{"$f":"Import!M23137","v":0},{"$f":"Import!M23537","v":0},{"$f":"Import!M23937","v":0}]
[22,{"$f":"Import!M21138","v":"Select"},{"$f":"Import!M21538","v":"Select"},{"$f":"Import!M21938","v":"Select"},{"$f":"Import!M22338","v":0},{"$f":"Import!M22738","v":0},{"$f":"Import!M23138","v":0},{"$f":"Import!M23538","v":0},{"$f":"Import!M23938","v":0}]
[23,{"$f":"Import!M21139","v":"Select"},{"$f":"Import!M21539","v":"Select"},{"$f":"Import!M21939","v":"Select"},{"$f":"Import!M22339","v":0},{"$f":"Import!M22739","v":0},{"$f":"Import!M23139","v":0},{"$f":"Import!M23539","v":0},{"$f":"Import!M23939","v":0}]
[24,{"$f":"Import!M21140","v":"Select"},{"$f":"Import!M21540","v":"Select"},{"$f":"Import!M21940","v":"Select"},{"$f":"Import!M22340","v":0},{"$f":"Import!M22740","v":0},{"$f":"Import!M23140","v":0},{"$f":"Import!M23540","v":0},{"$f":"Import!M23940","v":0}]
[25,{"$f":"Import!M21141","v":"Select"},{"$f":"Import!M21541","v":"Select"},{"$f":"Import!M21941","v":"Select"},{"$f":"Import!M22341","v":0},{"$f":"Import!M22741","v":0},{"$f":"Import!M23141","v":0},{"$f":"Import!M23541","v":0},{"$f":"Import!M23941","v":0}]
[26,{"$f":"Import!M21142","v":"Select"},{"$f":"Import!M21542","v":"Select"},{"$f":"Import!M21942","v":"Select"},{"$f":"Import!M22342","v":0},{"$f":"Import!M22742","v":0},{"$f":"Import!M23142","v":0},{"$f":"Import!M23542","v":0},{"$f":"Import!M23942","v":0}]
[27,{"$f":"Import!M21143","v":"Select"},{"$f":"Import!M21543","v":"Select"},{"$f":"Import!M21943","v":"Select"},{"$f":"Import!M22343","v":0},{"$f":"Import!M22743","v":0},{"$f":"Import!M23143","v":0},{"$f":"Import!M23543","v":0},{"$f":"Import!M23943","v":0}]
[28,{"$f":"Import!M21144","v":"Select"},{"$f":"Import!M21544","v":"Select"},{"$f":"Import!M21944","v":"Select"},{"$f":"Import!M22344","v":0},{"$f":"Import!M22744","v":0},{"$f":"Import!M23144","v":0},{"$f":"Import!M23544","v":0},{"$f":"Import!M23944","v":0}]
[29,{"$f":"Import!M21145","v":"Select"},{"$f":"Import!M21545","v":"Select"},{"$f":"Import!M21945","v":"Select"},{"$f":"Import!M22345","v":0},{"$f":"Import!M22745","v":0},{"$f":"Import!M23145","v":0},{"$f":"Import!M23545","v":0},{"$f":"Import!M23945","v":0}]
[30,{"$f":"Import!M21146","v":"Select"},{"$f":"Import!M21546","v":"Select"},{"$f":"Import!M21946","v":"Select"},{"$f":"Import!M22346","v":0},{"$f":"Import!M22746","v":0},{"$f":"Import!M23146","v":0},{"$f":"Import!M23546","v":0},{"$f":"Import!M23946","v":0}]
[31,{"$f":"Import!M21147","v":"Select"},{"$f":"Import!M21547","v":"Select"},{"$f":"Import!M21947","v":"Select"},{"$f":"Import!M22347","v":0},{"$f":"Import!M22747","v":0},{"$f":"Import!M23147","v":0},{"$f":"Import!M23547","v":0},{"$f":"Import!M23947","v":0}]
[32,{"$f":"Import!M21148","v":"Select"},{"$f":"Import!M21548","v":"Select"},{"$f":"Import!M21948","v":"Select"},{"$f":"Import!M22348","v":0},{"$f":"Import!M22748","v":0},{"$f":"Import!M23148","v":0},{"$f":"Import!M23548","v":0},{"$f":"Import!M23948","v":0}]
[33,{"$f":"Import!M21149","v":"Select"},{"$f":"Import!M21549","v":"Select"},{"$f":"Import!M21949","v":"Select"},{"$f":"Import!M22349","v":0},{"$f":"Import!M22749","v":0},{"$f":"Import!M23149","v":0},{"$f":"Import!M23549","v":0},{"$f":"Import!M23949","v":0}]
[34,{"$f":"Import!M21150","v":"Select"},{"$f":"Import!M21550","v":"Select"},{"$f":"Import!M21950","v":"Select"},{"$f":"Import!M22350","v":0},{"$f":"Import!M22750","v":0},{"$f":"Import!M23150","v":0},{"$f":"Import!M23550","v":0},{"$f":"Import!M23950","v":0}]
[35,{"$f":"Import!M21151","v":"Select"},{"$f":"Import!M21551","v":"Select"},{"$f":"Import!M21951","v":"Select"},{"$f":"Import!M22351","v":0},{"$f":"Import!M22751","v":0},{"$f":"Import!M23151","v":0},{"$f":"Import!M23551","v":0},{"$f":"Import!M23951","v":0}]
[36,{"$f":"Import!M21152","v":"Select"},{"$f":"Import!M21552","v":"Select"},{"$f":"Import!M21952","v":"Select"},{"$f":"Import!M22352","v":0},{"$f":"Import!M22752","v":0},{"$f":"Import!M23152","v":0},{"$f":"Import!M23552","v":0},{"$f":"Import!M23952","v":0}]
[37,{"$f":"Import!M21153","v":"Select"},{"$f":"Import!M21553","v":"Select"},{"$f":"Import!M21953","v":"Select"},{"$f":"Import!M22353","v":0},{"$f":"Import!M22753","v":0},{"$f":"Import!M23153","v":0},{"$f":"Import!M23553","v":0},{"$f":"Import!M23953","v":0}]
[38,{"$f":"Import!M21154","v":"Select"},{"$f":"Import!M21554","v":"Select"},{"$f":"Import!M21954","v":"Select"},{"$f":"Import!M22354","v":0},{"$f":"Import!M22754","v":0},{"$f":"Import!M23154","v":0},{"$f":"Import!M23554","v":0},{"$f":"Import!M23954","v":0}]
[39,{"$f":"Import!M21155","v":"Select"},{"$f":"Import!M21555","v":"Select"},{"$f":"Import!M21955","v":"Select"},{"$f":"Import!M22355","v":0},{"$f":"Import!M22755","v":0},{"$f":"Import!M23155","v":0},{"$f":"Import!M23555","v":0},{"$f":"Import!M23955","v":0}]
[40,{"$f":"Import!M21156","v":"Select"},{"$f":"Import!M21556","v":"Select"},{"$f":"Import!M21956","v":"Select"},{"$f":"Import!M22356","v":0},{"$f":"Import!M22756","v":0},{"$f":"Import!M23156","v":0},{"$f":"Import!M23556","v":0},{"$f":"Import!M23956","v":0}]
[41,{"$f":"Import!M21157","v":"Select"},{"$f":"Import!M21557","v":"Select"},{"$f":"Import!M21957","v":"Select"},{"$f":"Import!M22357","v":0},{"$f":"Import!M22757","v":0},{"$f":"Import!M23157","v":0},{"$f":"Import!M23557","v":0},{"$f":"Import!M23957","v":0}]
[42,{"$f":"Import!M21158","v":"Select"},{"$f":"Import!M21558","v":"Select"},{"$f":"Import!M21958","v":"Select"},{"$f":"Import!M22358","v":0},{"$f":"Import!M22758","v":0},{"$f":"Import!M23158","v":0},{"$f":"Import!M23558","v":0},{"$f":"Import!M23958","v":0}]
[43,{"$f":"Import!M21159","v":"Select"},{"$f":"Import!M21559","v":"Select"},{"$f":"Import!M21959","v":"Select"},{"$f":"Import!M22359","v":0},{"$f":"Import!M22759","v":0},{"$f":"Import!M23159","v":0},{"$f":"Import!M23559","v":0},{"$f":"Import!M23959","v":0}]
[44,{"$f":"Import!M21160","v":"Select"},{"$f":"Import!M21560","v":"Select"},{"$f":"Import!M21960","v":"Select"},{"$f":"Import!M22360","v":0},{"$f":"Import!M22760","v":0},{"$f":"Import!M23160","v":0},{"$f":"Import!M23560","v":0},{"$f":"Import!M23960","v":0}]
[45,{"$f":"Import!M21161","v":"Select"},{"$f":"Import!M21561","v":"Select"},{"$f":"Import!M21961","v":"Select"},{"$f":"Import!M22361","v":0},{"$f":"Import!M22761","v":0},{"$f":"Import!M23161","v":0},{"$f":"Import!M23561","v":0},{"$f":"Import!M23961","v":0}]
[46,{"$f":"Import!M21162","v":"Select"},{"$f":"Import!M21562","v":"Select"},{"$f":"Import!M21962","v":"Select"},{"$f":"Import!M22362","v":0},{"$f":"Import!M22762","v":0},{"$f":"Import!M23162","v":0},{"$f":"Import!M23562","v":0},{"$f":"Import!M23962","v":0}]
[47,{"$f":"Import!M21163","v":"Select"},{"$f":"Import!M21563","v":"Select"},{"$f":"Import!M21963","v":"Select"},{"$f":"Import!M22363","v":0},{"$f":"Import!M22763","v":0},{"$f":"Import!M23163","v":0},{"$f":"Import!M23563","v":0},{"$f":"Import!M23963","v":0}]
[48,{"$f":"Import!M21164","v":"Select"},{"$f":"Import!M21564","v":"Select"},{"$f":"Import!M21964","v":"Select"},{"$f":"Import!M22364","v":0},{"$f":"Import!M22764","v":0},{"$f":"Import!M23164","v":0},{"$f":"Import!M23564","v":0},{"$f":"Import!M23964","v":0}]
[49,{"$f":"Import!M21165","v":"Select"},{"$f":"Import!M21565","v":"Select"},{"$f":"Import!M21965","v":"Select"},{"$f":"Import!M22365","v":0},{"$f":"Import!M22765","v":0},{"$f":"Import!M23165","v":0},{"$f":"Import!M23565","v":0},{"$f":"Import!M23965","v":0}]
[50,{"$f":"Import!M21166","v":"Select"},{"$f":"Import!M21566","v":"Select"},{"$f":"Import!M21966","v":"Select"},{"$f":"Import!M22366","v":0},{"$f":"Import!M22766","v":0},{"$f":"Import!M23166","v":0},{"$f":"Import!M23566","v":0},{"$f":"Import!M23966","v":0}]
[51,{"$f":"Import!M21167","v":"Select"},{"$f":"Import!M21567","v":"Select"},{"$f":"Import!M21967","v":"Select"},{"$f":"Import!M22367","v":0},{"$f":"Import!M22767","v":0},{"$f":"Import!M23167","v":0},{"$f":"Import!M23567","v":0},{"$f":"Import!M23967","v":0}]
[52,{"$f":"Import!M21168","v":"Select"},{"$f":"Import!M21568","v":"Select"},{"$f":"Import!M21968","v":"Select"},{"$f":"Import!M22368","v":0},{"$f":"Import!M22768","v":0},{"$f":"Import!M23168","v":0},{"$f":"Import!M23568","v":0},{"$f":"Import!M23968","v":0}]
[53,{"$f":"Import!M21169","v":"Select"},{"$f":"Import!M21569","v":"Select"},{"$f":"Import!M21969","v":"Select"},{"$f":"Import!M22369","v":0},{"$f":"Import!M22769","v":0},{"$f":"Import!M23169","v":0},{"$f":"Import!M23569","v":0},{"$f":"Import!M23969","v":0}]
[54,{"$f":"Import!M21170","v":"Select"},{"$f":"Import!M21570","v":"Select"},{"$f":"Import!M21970","v":"Select"},{"$f":"Import!M22370","v":0},{"$f":"Import!M22770","v":0},{"$f":"Import!M23170","v":0},{"$f":"Import!M23570","v":0},{"$f":"Import!M23970","v":0}]
[55,{"$f":"Import!M21171","v":"Select"},{"$f":"Import!M21571","v":"Select"},{"$f":"Import!M21971","v":"Select"},{"$f":"Import!M22371","v":0},{"$f":"Import!M22771","v":0},{"$f":"Import!M23171","v":0},{"$f":"Import!M23571","v":0},{"$f":"Import!M23971","v":0}]
[56,{"$f":"Import!M21172","v":"Select"},{"$f":"Import!M21572","v":"Select"},{"$f":"Import!M21972","v":"Select"},{"$f":"Import!M22372","v":0},{"$f":"Import!M22772","v":0},{"$f":"Import!M23172","v":0},{"$f":"Import!M23572","v":0},{"$f":"Import!M23972","v":0}]
[57,{"$f":"Import!M21173","v":"Select"},{"$f":"Import!M21573","v":"Select"},{"$f":"Import!M21973","v":"Select"},{"$f":"Import!M22373","v":0},{"$f":"Import!M22773","v":0},{"$f":"Import!M23173","v":0},{"$f":"Import!M23573","v":0},{"$f":"Import!M23973","v":0}]
[58,{"$f":"Import!M21174","v":"Select"},{"$f":"Import!M21574","v":"Select"},{"$f":"Import!M21974","v":"Select"},{"$f":"Import!M22374","v":0},{"$f":"Import!M22774","v":0},{"$f":"Import!M23174","v":0},{"$f":"Import!M23574","v":0},{"$f":"Import!M23974","v":0}]
[59,{"$f":"Import!M21175","v":"Select"},{"$f":"Import!M21575","v":"Select"},{"$f":"Import!M21975","v":"Select"},{"$f":"Import!M22375","v":0},{"$f":"Import!M22775","v":0},{"$f":"Import!M23175","v":0},{"$f":"Import!M23575","v":0},{"$f":"Import!M23975","v":0}]
[60,{"$f":"Import!M21176","v":"Select"},{"$f":"Import!M21576","v":"Select"},{"$f":"Import!M21976","v":"Select"},{"$f":"Import!M22376","v":0},{"$f":"Import!M22776","v":0},{"$f":"Import!M23176","v":0},{"$f":"Import!M23576","v":0},{"$f":"Import!M23976","v":0}]
[61,{"$f":"Import!M21177","v":"Select"},{"$f":"Import!M21577","v":"Select"},{"$f":"Import!M21977","v":"Select"},{"$f":"Import!M22377","v":0},{"$f":"Import!M22777","v":0},{"$f":"Import!M23177","v":0},{"$f":"Import!M23577","v":0},{"$f":"Import!M23977","v":0}]
[62,{"$f":"Import!M21178","v":"Select"},{"$f":"Import!M21578","v":"Select"},{"$f":"Import!M21978","v":"Select"},{"$f":"Import!M22378","v":0},{"$f":"Import!M22778","v":0},{"$f":"Import!M23178","v":0},{"$f":"Import!M23578","v":0},{"$f":"Import!M23978","v":0}]
[63,{"$f":"Import!M21179","v":"Select"},{"$f":"Import!M21579","v":"Select"},{"$f":"Import!M21979","v":"Select"},{"$f":"Import!M22379","v":0},{"$f":"Import!M22779","v":0},{"$f":"Import!M23179","v":0},{"$f":"Import!M23579","v":0},{"$f":"Import!M23979","v":0}]
[64,{"$f":"Import!M21180","v":"Select"},{"$f":"Import!M21580","v":"Select"},{"$f":"Import!M21980","v":"Select"},{"$f":"Import!M22380","v":0},{"$f":"Import!M22780","v":0},{"$f":"Import!M23180","v":0},{"$f":"Import!M23580","v":0},{"$f":"Import!M23980","v":0}]
[65,{"$f":"Import!M21181","v":"Select"},{"$f":"Import!M21581","v":"Select"},{"$f":"Import!M21981","v":"Select"},{"$f":"Import!M22381","v":0},{"$f":"Import!M22781","v":0},{"$f":"Import!M23181","v":0},{"$f":"Import!M23581","v":0},{"$f":"Import!M23981","v":0}]
[66,{"$f":"Import!M21182","v":"Select"},{"$f":"Import!M21582","v":"Select"},{"$f":"Import!M21982","v":"Select"},{"$f":"Import!M22382","v":0},{"$f":"Import!M22782","v":0},{"$f":"Import!M23182","v":0},{"$f":"Import!M23582","v":0},{"$f":"Import!M23982","v":0}]
[{"$f":"A284+1","v":67},{"$f":"Import!M21183","v":"Select"},{"$f":"Import!M21583","v":"Select"},{"$f":"Import!M21983","v":"Select"},{"$f":"Import!M22383","v":0},{"$f":"Import!M22783","v":0},{"$f":"Import!M23183","v":0},{"$f":"Import!M23583","v":0},{"$f":"Import!M23983","v":0}]
[68,{"$f":"Import!M21184","v":"Select"},{"$f":"Import!M21584","v":"Select"},{"$f":"Import!M21984","v":"Select"},{"$f":"Import!M22384","v":0},{"$f":"Import!M22784","v":0},{"$f":"Import!M23184","v":0},{"$f":"Import!M23584","v":0},{"$f":"Import!M23984","v":0}]
[69,{"$f":"Import!M21185","v":"Select"},{"$f":"Import!M21585","v":"Select"},{"$f":"Import!M21985","v":"Select"},{"$f":"Import!M22385","v":0},{"$f":"Import!M22785","v":0},{"$f":"Import!M23185","v":0},{"$f":"Import!M23585","v":0},{"$f":"Import!M23985","v":0}]
[70,{"$f":"Import!M21186","v":"Select"},{"$f":"Import!M21586","v":"Select"},{"$f":"Import!M21986","v":"Select"},{"$f":"Import!M22386","v":0},{"$f":"Import!M22786","v":0},{"$f":"Import!M23186","v":0},{"$f":"Import!M23586","v":0},{"$f":"Import!M23986","v":0}]
[71,{"$f":"Import!M21187","v":"Select"},{"$f":"Import!M21587","v":"Select"},{"$f":"Import!M21987","v":"Select"},{"$f":"Import!M22387","v":0},{"$f":"Import!M22787","v":0},{"$f":"Import!M23187","v":0},{"$f":"Import!M23587","v":0},{"$f":"Import!M23987","v":0}]
[72,{"$f":"Import!M21188","v":"Select"},{"$f":"Import!M21588","v":"Select"},{"$f":"Import!M21988","v":"Select"},{"$f":"Import!M22388","v":0},{"$f":"Import!M22788","v":0},{"$f":"Import!M23188","v":0},{"$f":"Import!M23588","v":0},{"$f":"Import!M23988","v":0}]
[73,{"$f":"Import!M21189","v":"Select"},{"$f":"Import!M21589","v":"Select"},{"$f":"Import!M21989","v":"Select"},{"$f":"Import!M22389","v":0},{"$f":"Import!M22789","v":0},{"$f":"Import!M23189","v":0},{"$f":"Import!M23589","v":0},{"$f":"Import!M23989","v":0}]
[74,{"$f":"Import!M21190","v":"Select"},{"$f":"Import!M21590","v":"Select"},{"$f":"Import!M21990","v":"Select"},{"$f":"Import!M22390","v":0},{"$f":"Import!M22790","v":0},{"$f":"Import!M23190","v":0},{"$f":"Import!M23590","v":0},{"$f":"Import!M23990","v":0}]
[75,{"$f":"Import!M21191","v":"Select"},{"$f":"Import!M21591","v":"Select"},{"$f":"Import!M21991","v":"Select"},{"$f":"Import!M22391","v":0},{"$f":"Import!M22791","v":0},{"$f":"Import!M23191","v":0},{"$f":"Import!M23591","v":0},{"$f":"Import!M23991","v":0}]
[76,{"$f":"Import!M21192","v":"Select"},{"$f":"Import!M21592","v":"Select"},{"$f":"Import!M21992","v":"Select"},{"$f":"Import!M22392","v":0},{"$f":"Import!M22792","v":0},{"$f":"Import!M23192","v":0},{"$f":"Import!M23592","v":0},{"$f":"Import!M23992","v":0}]
[77,{"$f":"Import!M21193","v":"Select"},{"$f":"Import!M21593","v":"Select"},{"$f":"Import!M21993","v":"Select"},{"$f":"Import!M22393","v":0},{"$f":"Import!M22793","v":0},{"$f":"Import!M23193","v":0},{"$f":"Import!M23593","v":0},{"$f":"Import!M23993","v":0}]
[78,{"$f":"Import!M21194","v":"Select"},{"$f":"Import!M21594","v":"Select"},{"$f":"Import!M21994","v":"Select"},{"$f":"Import!M22394","v":0},{"$f":"Import!M22794","v":0},{"$f":"Import!M23194","v":0},{"$f":"Import!M23594","v":0},{"$f":"Import!M23994","v":0}]
[79,{"$f":"Import!M21195","v":"Select"},{"$f":"Import!M21595","v":"Select"},{"$f":"Import!M21995","v":"Select"},{"$f":"Import!M22395","v":0},{"$f":"Import!M22795","v":0},{"$f":"Import!M23195","v":0},{"$f":"Import!M23595","v":0},{"$f":"Import!M23995","v":0}]
[80,{"$f":"Import!M21196","v":"Select"},{"$f":"Import!M21596","v":"Select"},{"$f":"Import!M21996","v":"Select"},{"$f":"Import!M22396","v":0},{"$f":"Import!M22796","v":0},{"$f":"Import!M23196","v":0},{"$f":"Import!M23596","v":0},{"$f":"Import!M23996","v":0}]
[81,{"$f":"Import!M21197","v":"Select"},{"$f":"Import!M21597","v":"Select"},{"$f":"Import!M21997","v":"Select"},{"$f":"Import!M22397","v":0},{"$f":"Import!M22797","v":0},{"$f":"Import!M23197","v":0},{"$f":"Import!M23597","v":0},{"$f":"Import!M23997","v":0}]
[82,{"$f":"Import!M21198","v":"Select"},{"$f":"Import!M21598","v":"Select"},{"$f":"Import!M21998","v":"Select"},{"$f":"Import!M22398","v":0},{"$f":"Import!M22798","v":0},{"$f":"Import!M23198","v":0},{"$f":"Import!M23598","v":0},{"$f":"Import!M23998","v":0}]
[83,{"$f":"Import!M21199","v":"Select"},{"$f":"Import!M21599","v":"Select"},{"$f":"Import!M21999","v":"Select"},{"$f":"Import!M22399","v":0},{"$f":"Import!M22799","v":0},{"$f":"Import!M23199","v":0},{"$f":"Import!M23599","v":0},{"$f":"Import!M23999","v":0}]
[84,{"$f":"Import!M21200","v":"Select"},{"$f":"Import!M21600","v":"Select"},{"$f":"Import!M22000","v":"Select"},{"$f":"Import!M22400","v":0},{"$f":"Import!M22800","v":0},{"$f":"Import!M23200","v":0},{"$f":"Import!M23600","v":0},{"$f":"Import!M24000","v":0}]
[85,{"$f":"Import!M21201","v":"Select"},{"$f":"Import!M21601","v":"Select"},{"$f":"Import!M22001","v":"Select"},{"$f":"Import!M22401","v":0},{"$f":"Import!M22801","v":0},{"$f":"Import!M23201","v":0},{"$f":"Import!M23601","v":0},{"$f":"Import!M24001","v":0}]
[86,{"$f":"Import!M21202","v":"Select"},{"$f":"Import!M21602","v":"Select"},{"$f":"Import!M22002","v":"Select"},{"$f":"Import!M22402","v":0},{"$f":"Import!M22802","v":0},{"$f":"Import!M23202","v":0},{"$f":"Import!M23602","v":0},{"$f":"Import!M24002","v":0}]
[87,{"$f":"Import!M21203","v":"Select"},{"$f":"Import!M21603","v":"Select"},{"$f":"Import!M22003","v":"Select"},{"$f":"Import!M22403","v":0},{"$f":"Import!M22803","v":0},{"$f":"Import!M23203","v":0},{"$f":"Import!M23603","v":0},{"$f":"Import!M24003","v":0}]
[88,{"$f":"Import!M21204","v":"Select"},{"$f":"Import!M21604","v":"Select"},{"$f":"Import!M22004","v":"Select"},{"$f":"Import!M22404","v":0},{"$f":"Import!M22804","v":0},{"$f":"Import!M23204","v":0},{"$f":"Import!M23604","v":0},{"$f":"Import!M24004","v":0}]
[89,{"$f":"Import!M21205","v":"Select"},{"$f":"Import!M21605","v":"Select"},{"$f":"Import!M22005","v":"Select"},{"$f":"Import!M22405","v":0},{"$f":"Import!M22805","v":0},{"$f":"Import!M23205","v":0},{"$f":"Import!M23605","v":0},{"$f":"Import!M24005","v":0}]
[90,{"$f":"Import!M21206","v":"Select"},{"$f":"Import!M21606","v":"Select"},{"$f":"Import!M22006","v":"Select"},{"$f":"Import!M22406","v":0},{"$f":"Import!M22806","v":0},{"$f":"Import!M23206","v":0},{"$f":"Import!M23606","v":0},{"$f":"Import!M24006","v":0}]
[91,{"$f":"Import!M21207","v":"Select"},{"$f":"Import!M21607","v":"Select"},{"$f":"Import!M22007","v":"Select"},{"$f":"Import!M22407","v":0},{"$f":"Import!M22807","v":0},{"$f":"Import!M23207","v":0},{"$f":"Import!M23607","v":0},{"$f":"Import!M24007","v":0}]
[92,{"$f":"Import!M21208","v":"Select"},{"$f":"Import!M21608","v":"Select"},{"$f":"Import!M22008","v":"Select"},{"$f":"Import!M22408","v":0},{"$f":"Import!M22808","v":0},{"$f":"Import!M23208","v":0},{"$f":"Import!M23608","v":0},{"$f":"Import!M24008","v":0}]
[93,{"$f":"Import!M21209","v":"Select"},{"$f":"Import!M21609","v":"Select"},{"$f":"Import!M22009","v":"Select"},{"$f":"Import!M22409","v":0},{"$f":"Import!M22809","v":0},{"$f":"Import!M23209","v":0},{"$f":"Import!M23609","v":0},{"$f":"Import!M24009","v":0}]
[94,{"$f":"Import!M21210","v":"Select"},{"$f":"Import!M21610","v":"Select"},{"$f":"Import!M22010","v":"Select"},{"$f":"Import!M22410","v":0},{"$f":"Import!M22810","v":0},{"$f":"Import!M23210","v":0},{"$f":"Import!M23610","v":0},{"$f":"Import!M24010","v":0}]
[95,{"$f":"Import!M21211","v":"Select"},{"$f":"Import!M21611","v":"Select"},{"$f":"Import!M22011","v":"Select"},{"$f":"Import!M22411","v":0},{"$f":"Import!M22811","v":0},{"$f":"Import!M23211","v":0},{"$f":"Import!M23611","v":0},{"$f":"Import!M24011","v":0}]
[96,{"$f":"Import!M21212","v":"Select"},{"$f":"Import!M21612","v":"Select"},{"$f":"Import!M22012","v":"Select"},{"$f":"Import!M22412","v":0},{"$f":"Import!M22812","v":0},{"$f":"Import!M23212","v":0},{"$f":"Import!M23612","v":0},{"$f":"Import!M24012","v":0}]
[97,{"$f":"Import!M21213","v":"Select"},{"$f":"Import!M21613","v":"Select"},{"$f":"Import!M22013","v":"Select"},{"$f":"Import!M22413","v":0},{"$f":"Import!M22813","v":0},{"$f":"Import!M23213","v":0},{"$f":"Import!M23613","v":0},{"$f":"Import!M24013","v":0}]
[98,{"$f":"Import!M21214","v":"Select"},{"$f":"Import!M21614","v":"Select"},{"$f":"Import!M22014","v":"Select"},{"$f":"Import!M22414","v":0},{"$f":"Import!M22814","v":0},{"$f":"Import!M23214","v":0},{"$f":"Import!M23614","v":0},{"$f":"Import!M24014","v":0}]
[99,{"$f":"Import!M21215","v":"Select"},{"$f":"Import!M21615","v":"Select"},{"$f":"Import!M22015","v":"Select"},{"$f":"Import!M22415","v":0},{"$f":"Import!M22815","v":0},{"$f":"Import!M23215","v":0},{"$f":"Import!M23615","v":0},{"$f":"Import!M24015","v":0}]
[100,{"$f":"Import!M21216","v":"Select"},{"$f":"Import!M21616","v":"Select"},{"$f":"Import!M22016","v":"Select"},{"$f":"Import!M22416","v":0},{"$f":"Import!M22816","v":0},{"$f":"Import!M23216","v":0},{"$f":"Import!M23616","v":0},{"$f":"Import!M24016","v":0}]
[101,{"$f":"Import!M21217","v":"Select"},{"$f":"Import!M21617","v":"Select"},{"$f":"Import!M22017","v":"Select"},{"$f":"Import!M22417","v":0},{"$f":"Import!M22817","v":0},{"$f":"Import!M23217","v":0},{"$f":"Import!M23617","v":0},{"$f":"Import!M24017","v":0}]
[102,{"$f":"Import!M21218","v":"Select"},{"$f":"Import!M21618","v":"Select"},{"$f":"Import!M22018","v":"Select"},{"$f":"Import!M22418","v":0},{"$f":"Import!M22818","v":0},{"$f":"Import!M23218","v":0},{"$f":"Import!M23618","v":0},{"$f":"Import!M24018","v":0}]
[103,{"$f":"Import!M21219","v":"Select"},{"$f":"Import!M21619","v":"Select"},{"$f":"Import!M22019","v":"Select"},{"$f":"Import!M22419","v":0},{"$f":"Import!M22819","v":0},{"$f":"Import!M23219","v":0},{"$f":"Import!M23619","v":0},{"$f":"Import!M24019","v":0}]
[104,{"$f":"Import!M21220","v":"Select"},{"$f":"Import!M21620","v":"Select"},{"$f":"Import!M22020","v":"Select"},{"$f":"Import!M22420","v":0},{"$f":"Import!M22820","v":0},{"$f":"Import!M23220","v":0},{"$f":"Import!M23620","v":0},{"$f":"Import!M24020","v":0}]
[105,{"$f":"Import!M21221","v":"Select"},{"$f":"Import!M21621","v":"Select"},{"$f":"Import!M22021","v":"Select"},{"$f":"Import!M22421","v":0},{"$f":"Import!M22821","v":0},{"$f":"Import!M23221","v":0},{"$f":"Import!M23621","v":0},{"$f":"Import!M24021","v":0}]
[106,{"$f":"Import!M21222","v":"Select"},{"$f":"Import!M21622","v":"Select"},{"$f":"Import!M22022","v":"Select"},{"$f":"Import!M22422","v":0},{"$f":"Import!M22822","v":0},{"$f":"Import!M23222","v":0},{"$f":"Import!M23622","v":0},{"$f":"Import!M24022","v":0}]
[107,{"$f":"Import!M21223","v":"Select"},{"$f":"Import!M21623","v":"Select"},{"$f":"Import!M22023","v":"Select"},{"$f":"Import!M22423","v":0},{"$f":"Import!M22823","v":0},{"$f":"Import!M23223","v":0},{"$f":"Import!M23623","v":0},{"$f":"Import!M24023","v":0}]
[108,{"$f":"Import!M21224","v":"Select"},{"$f":"Import!M21624","v":"Select"},{"$f":"Import!M22024","v":"Select"},{"$f":"Import!M22424","v":0},{"$f":"Import!M22824","v":0},{"$f":"Import!M23224","v":0},{"$f":"Import!M23624","v":0},{"$f":"Import!M24024","v":0}]
[109,{"$f":"Import!M21225","v":"Select"},{"$f":"Import!M21625","v":"Select"},{"$f":"Import!M22025","v":"Select"},{"$f":"Import!M22425","v":0},{"$f":"Import!M22825","v":0},{"$f":"Import!M23225","v":0},{"$f":"Import!M23625","v":0},{"$f":"Import!M24025","v":0}]
[110,{"$f":"Import!M21226","v":"Select"},{"$f":"Import!M21626","v":"Select"},{"$f":"Import!M22026","v":"Select"},{"$f":"Import!M22426","v":0},{"$f":"Import!M22826","v":0},{"$f":"Import!M23226","v":0},{"$f":"Import!M23626","v":0},{"$f":"Import!M24026","v":0}]
[111,{"$f":"Import!M21227","v":"Select"},{"$f":"Import!M21627","v":"Select"},{"$f":"Import!M22027","v":"Select"},{"$f":"Import!M22427","v":0},{"$f":"Import!M22827","v":0},{"$f":"Import!M23227","v":0},{"$f":"Import!M23627","v":0},{"$f":"Import!M24027","v":0}]
[112,{"$f":"Import!M21228","v":"Select"},{"$f":"Import!M21628","v":"Select"},{"$f":"Import!M22028","v":"Select"},{"$f":"Import!M22428","v":0},{"$f":"Import!M22828","v":0},{"$f":"Import!M23228","v":0},{"$f":"Import!M23628","v":0},{"$f":"Import!M24028","v":0}]
[113,{"$f":"Import!M21229","v":"Select"},{"$f":"Import!M21629","v":"Select"},{"$f":"Import!M22029","v":"Select"},{"$f":"Import!M22429","v":0},{"$f":"Import!M22829","v":0},{"$f":"Import!M23229","v":0},{"$f":"Import!M23629","v":0},{"$f":"Import!M24029","v":0}]
[114,{"$f":"Import!M21230","v":"Select"},{"$f":"Import!M21630","v":"Select"},{"$f":"Import!M22030","v":"Select"},{"$f":"Import!M22430","v":0},{"$f":"Import!M22830","v":0},{"$f":"Import!M23230","v":0},{"$f":"Import!M23630","v":0},{"$f":"Import!M24030","v":0}]
[115,{"$f":"Import!M21231","v":"Select"},{"$f":"Import!M21631","v":"Select"},{"$f":"Import!M22031","v":"Select"},{"$f":"Import!M22431","v":0},{"$f":"Import!M22831","v":0},{"$f":"Import!M23231","v":0},{"$f":"Import!M23631","v":0},{"$f":"Import!M24031","v":0}]
[116,{"$f":"Import!M21232","v":"Select"},{"$f":"Import!M21632","v":"Select"},{"$f":"Import!M22032","v":"Select"},{"$f":"Import!M22432","v":0},{"$f":"Import!M22832","v":0},{"$f":"Import!M23232","v":0},{"$f":"Import!M23632","v":0},{"$f":"Import!M24032","v":0}]
[117,{"$f":"Import!M21233","v":"Select"},{"$f":"Import!M21633","v":"Select"},{"$f":"Import!M22033","v":"Select"},{"$f":"Import!M22433","v":0},{"$f":"Import!M22833","v":0},{"$f":"Import!M23233","v":0},{"$f":"Import!M23633","v":0},{"$f":"Import!M24033","v":0}]
[118,{"$f":"Import!M21234","v":"Select"},{"$f":"Import!M21634","v":"Select"},{"$f":"Import!M22034","v":"Select"},{"$f":"Import!M22434","v":0},{"$f":"Import!M22834","v":0},{"$f":"Import!M23234","v":0},{"$f":"Import!M23634","v":0},{"$f":"Import!M24034","v":0}]
[119,{"$f":"Import!M21235","v":"Select"},{"$f":"Import!M21635","v":"Select"},{"$f":"Import!M22035","v":"Select"},{"$f":"Import!M22435","v":0},{"$f":"Import!M22835","v":0},{"$f":"Import!M23235","v":0},{"$f":"Import!M23635","v":0},{"$f":"Import!M24035","v":0}]
[120,{"$f":"Import!M21236","v":"Select"},{"$f":"Import!M21636","v":"Select"},{"$f":"Import!M22036","v":"Select"},{"$f":"Import!M22436","v":0},{"$f":"Import!M22836","v":0},{"$f":"Import!M23236","v":0},{"$f":"Import!M23636","v":0},{"$f":"Import!M24036","v":0}]
[121,{"$f":"Import!M21237","v":"Select"},{"$f":"Import!M21637","v":"Select"},{"$f":"Import!M22037","v":"Select"},{"$f":"Import!M22437","v":0},{"$f":"Import!M22837","v":0},{"$f":"Import!M23237","v":0},{"$f":"Import!M23637","v":0},{"$f":"Import!M24037","v":0}]
[122,{"$f":"Import!M21238","v":"Select"},{"$f":"Import!M21638","v":"Select"},{"$f":"Import!M22038","v":"Select"},{"$f":"Import!M22438","v":0},{"$f":"Import!M22838","v":0},{"$f":"Import!M23238","v":0},{"$f":"Import!M23638","v":0},{"$f":"Import!M24038","v":0}]
[123,{"$f":"Import!M21239","v":"Select"},{"$f":"Import!M21639","v":"Select"},{"$f":"Import!M22039","v":"Select"},{"$f":"Import!M22439","v":0},{"$f":"Import!M22839","v":0},{"$f":"Import!M23239","v":0},{"$f":"Import!M23639","v":0},{"$f":"Import!M24039","v":0}]
[124,{"$f":"Import!M21240","v":"Select"},{"$f":"Import!M21640","v":"Select"},{"$f":"Import!M22040","v":"Select"},{"$f":"Import!M22440","v":0},{"$f":"Import!M22840","v":0},{"$f":"Import!M23240","v":0},{"$f":"Import!M23640","v":0},{"$f":"Import!M24040","v":0}]
[125,{"$f":"Import!M21241","v":"Select"},{"$f":"Import!M21641","v":"Select"},{"$f":"Import!M22041","v":"Select"},{"$f":"Import!M22441","v":0},{"$f":"Import!M22841","v":0},{"$f":"Import!M23241","v":0},{"$f":"Import!M23641","v":0},{"$f":"Import!M24041","v":0}]
[126,{"$f":"Import!M21242","v":"Select"},{"$f":"Import!M21642","v":"Select"},{"$f":"Import!M22042","v":"Select"},{"$f":"Import!M22442","v":0},{"$f":"Import!M22842","v":0},{"$f":"Import!M23242","v":0},{"$f":"Import!M23642","v":0},{"$f":"Import!M24042","v":0}]
[127,{"$f":"Import!M21243","v":"Select"},{"$f":"Import!M21643","v":"Select"},{"$f":"Import!M22043","v":"Select"},{"$f":"Import!M22443","v":0},{"$f":"Import!M22843","v":0},{"$f":"Import!M23243","v":0},{"$f":"Import!M23643","v":0},{"$f":"Import!M24043","v":0}]
[128,{"$f":"Import!M21244","v":"Select"},{"$f":"Import!M21644","v":"Select"},{"$f":"Import!M22044","v":"Select"},{"$f":"Import!M22444","v":0},{"$f":"Import!M22844","v":0},{"$f":"Import!M23244","v":0},{"$f":"Import!M23644","v":0},{"$f":"Import!M24044","v":0}]
[129,{"$f":"Import!M21245","v":"Select"},{"$f":"Import!M21645","v":"Select"},{"$f":"Import!M22045","v":"Select"},{"$f":"Import!M22445","v":0},{"$f":"Import!M22845","v":0},{"$f":"Import!M23245","v":0},{"$f":"Import!M23645","v":0},{"$f":"Import!M24045","v":0}]
[130,{"$f":"Import!M21246","v":"Select"},{"$f":"Import!M21646","v":"Select"},{"$f":"Import!M22046","v":"Select"},{"$f":"Import!M22446","v":0},{"$f":"Import!M22846","v":0},{"$f":"Import!M23246","v":0},{"$f":"Import!M23646","v":0},{"$f":"Import!M24046","v":0}]
[{"$f":"A348+1","v":131},{"$f":"Import!M21247","v":"Select"},{"$f":"Import!M21647","v":"Select"},{"$f":"Import!M22047","v":"Select"},{"$f":"Import!M22447","v":0},{"$f":"Import!M22847","v":0},{"$f":"Import!M23247","v":0},{"$f":"Import!M23647","v":0},{"$f":"Import!M24047","v":0}]
[132,{"$f":"Import!M21248","v":"Select"},{"$f":"Import!M21648","v":"Select"},{"$f":"Import!M22048","v":"Select"},{"$f":"Import!M22448","v":0},{"$f":"Import!M22848","v":0},{"$f":"Import!M23248","v":0},{"$f":"Import!M23648","v":0},{"$f":"Import!M24048","v":0}]
[133,{"$f":"Import!M21249","v":"Select"},{"$f":"Import!M21649","v":"Select"},{"$f":"Import!M22049","v":"Select"},{"$f":"Import!M22449","v":0},{"$f":"Import!M22849","v":0},{"$f":"Import!M23249","v":0},{"$f":"Import!M23649","v":0},{"$f":"Import!M24049","v":0}]
[134,{"$f":"Import!M21250","v":"Select"},{"$f":"Import!M21650","v":"Select"},{"$f":"Import!M22050","v":"Select"},{"$f":"Import!M22450","v":0},{"$f":"Import!M22850","v":0},{"$f":"Import!M23250","v":0},{"$f":"Import!M23650","v":0},{"$f":"Import!M24050","v":0}]
[135,{"$f":"Import!M21251","v":"Select"},{"$f":"Import!M21651","v":"Select"},{"$f":"Import!M22051","v":"Select"},{"$f":"Import!M22451","v":0},{"$f":"Import!M22851","v":0},{"$f":"Import!M23251","v":0},{"$f":"Import!M23651","v":0},{"$f":"Import!M24051","v":0}]
[136,{"$f":"Import!M21252","v":"Select"},{"$f":"Import!M21652","v":"Select"},{"$f":"Import!M22052","v":"Select"},{"$f":"Import!M22452","v":0},{"$f":"Import!M22852","v":0},{"$f":"Import!M23252","v":0},{"$f":"Import!M23652","v":0},{"$f":"Import!M24052","v":0}]
[137,{"$f":"Import!M21253","v":"Select"},{"$f":"Import!M21653","v":"Select"},{"$f":"Import!M22053","v":"Select"},{"$f":"Import!M22453","v":0},{"$f":"Import!M22853","v":0},{"$f":"Import!M23253","v":0},{"$f":"Import!M23653","v":0},{"$f":"Import!M24053","v":0}]
[138,{"$f":"Import!M21254","v":"Select"},{"$f":"Import!M21654","v":"Select"},{"$f":"Import!M22054","v":"Select"},{"$f":"Import!M22454","v":0},{"$f":"Import!M22854","v":0},{"$f":"Import!M23254","v":0},{"$f":"Import!M23654","v":0},{"$f":"Import!M24054","v":0}]
[139,{"$f":"Import!M21255","v":"Select"},{"$f":"Import!M21655","v":"Select"},{"$f":"Import!M22055","v":"Select"},{"$f":"Import!M22455","v":0},{"$f":"Import!M22855","v":0},{"$f":"Import!M23255","v":0},{"$f":"Import!M23655","v":0},{"$f":"Import!M24055","v":0}]
[140,{"$f":"Import!M21256","v":"Select"},{"$f":"Import!M21656","v":"Select"},{"$f":"Import!M22056","v":"Select"},{"$f":"Import!M22456","v":0},{"$f":"Import!M22856","v":0},{"$f":"Import!M23256","v":0},{"$f":"Import!M23656","v":0},{"$f":"Import!M24056","v":0}]
[141,{"$f":"Import!M21257","v":"Select"},{"$f":"Import!M21657","v":"Select"},{"$f":"Import!M22057","v":"Select"},{"$f":"Import!M22457","v":0},{"$f":"Import!M22857","v":0},{"$f":"Import!M23257","v":0},{"$f":"Import!M23657","v":0},{"$f":"Import!M24057","v":0}]
[142,{"$f":"Import!M21258","v":"Select"},{"$f":"Import!M21658","v":"Select"},{"$f":"Import!M22058","v":"Select"},{"$f":"Import!M22458","v":0},{"$f":"Import!M22858","v":0},{"$f":"Import!M23258","v":0},{"$f":"Import!M23658","v":0},{"$f":"Import!M24058","v":0}]
[143,{"$f":"Import!M21259","v":"Select"},{"$f":"Import!M21659","v":"Select"},{"$f":"Import!M22059","v":"Select"},{"$f":"Import!M22459","v":0},{"$f":"Import!M22859","v":0},{"$f":"Import!M23259","v":0},{"$f":"Import!M23659","v":0},{"$f":"Import!M24059","v":0}]
[144,{"$f":"Import!M21260","v":"Select"},{"$f":"Import!M21660","v":"Select"},{"$f":"Import!M22060","v":"Select"},{"$f":"Import!M22460","v":0},{"$f":"Import!M22860","v":0},{"$f":"Import!M23260","v":0},{"$f":"Import!M23660","v":0},{"$f":"Import!M24060","v":0}]
[145,{"$f":"Import!M21261","v":"Select"},{"$f":"Import!M21661","v":"Select"},{"$f":"Import!M22061","v":"Select"},{"$f":"Import!M22461","v":0},{"$f":"Import!M22861","v":0},{"$f":"Import!M23261","v":0},{"$f":"Import!M23661","v":0},{"$f":"Import!M24061","v":0}]
[146,{"$f":"Import!M21262","v":"Select"},{"$f":"Import!M21662","v":"Select"},{"$f":"Import!M22062","v":"Select"},{"$f":"Import!M22462","v":0},{"$f":"Import!M22862","v":0},{"$f":"Import!M23262","v":0},{"$f":"Import!M23662","v":0},{"$f":"Import!M24062","v":0}]
[147,{"$f":"Import!M21263","v":"Select"},{"$f":"Import!M21663","v":"Select"},{"$f":"Import!M22063","v":"Select"},{"$f":"Import!M22463","v":0},{"$f":"Import!M22863","v":0},{"$f":"Import!M23263","v":0},{"$f":"Import!M23663","v":0},{"$f":"Import!M24063","v":0}]
[148,{"$f":"Import!M21264","v":"Select"},{"$f":"Import!M21664","v":"Select"},{"$f":"Import!M22064","v":"Select"},{"$f":"Import!M22464","v":0},{"$f":"Import!M22864","v":0},{"$f":"Import!M23264","v":0},{"$f":"Import!M23664","v":0},{"$f":"Import!M24064","v":0}]
[149,{"$f":"Import!M21265","v":"Select"},{"$f":"Import!M21665","v":"Select"},{"$f":"Import!M22065","v":"Select"},{"$f":"Import!M22465","v":0},{"$f":"Import!M22865","v":0},{"$f":"Import!M23265","v":0},{"$f":"Import!M23665","v":0},{"$f":"Import!M24065","v":0}]
[150,{"$f":"Import!M21266","v":"Select"},{"$f":"Import!M21666","v":"Select"},{"$f":"Import!M22066","v":"Select"},{"$f":"Import!M22466","v":0},{"$f":"Import!M22866","v":0},{"$f":"Import!M23266","v":0},{"$f":"Import!M23666","v":0},{"$f":"Import!M24066","v":0}]
[151,{"$f":"Import!M21267","v":"Select"},{"$f":"Import!M21667","v":"Select"},{"$f":"Import!M22067","v":"Select"},{"$f":"Import!M22467","v":0},{"$f":"Import!M22867","v":0},{"$f":"Import!M23267","v":0},{"$f":"Import!M23667","v":0},{"$f":"Import!M24067","v":0}]
[152,{"$f":"Import!M21268","v":"Select"},{"$f":"Import!M21668","v":"Select"},{"$f":"Import!M22068","v":"Select"},{"$f":"Import!M22468","v":0},{"$f":"Import!M22868","v":0},{"$f":"Import!M23268","v":0},{"$f":"Import!M23668","v":0},{"$f":"Import!M24068","v":0}]
[153,{"$f":"Import!M21269","v":"Select"},{"$f":"Import!M21669","v":"Select"},{"$f":"Import!M22069","v":"Select"},{"$f":"Import!M22469","v":0},{"$f":"Import!M22869","v":0},{"$f":"Import!M23269","v":0},{"$f":"Import!M23669","v":0},{"$f":"Import!M24069","v":0}]
[154,{"$f":"Import!M21270","v":"Select"},{"$f":"Import!M21670","v":"Select"},{"$f":"Import!M22070","v":"Select"},{"$f":"Import!M22470","v":0},{"$f":"Import!M22870","v":0},{"$f":"Import!M23270","v":0},{"$f":"Import!M23670","v":0},{"$f":"Import!M24070","v":0}]
[155,{"$f":"Import!M21271","v":"Select"},{"$f":"Import!M21671","v":"Select"},{"$f":"Import!M22071","v":"Select"},{"$f":"Import!M22471","v":0},{"$f":"Import!M22871","v":0},{"$f":"Import!M23271","v":0},{"$f":"Import!M23671","v":0},{"$f":"Import!M24071","v":0}]
[156,{"$f":"Import!M21272","v":"Select"},{"$f":"Import!M21672","v":"Select"},{"$f":"Import!M22072","v":"Select"},{"$f":"Import!M22472","v":0},{"$f":"Import!M22872","v":0},{"$f":"Import!M23272","v":0},{"$f":"Import!M23672","v":0},{"$f":"Import!M24072","v":0}]
[157,{"$f":"Import!M21273","v":"Select"},{"$f":"Import!M21673","v":"Select"},{"$f":"Import!M22073","v":"Select"},{"$f":"Import!M22473","v":0},{"$f":"Import!M22873","v":0},{"$f":"Import!M23273","v":0},{"$f":"Import!M23673","v":0},{"$f":"Import!M24073","v":0}]
[158,{"$f":"Import!M21274","v":"Select"},{"$f":"Import!M21674","v":"Select"},{"$f":"Import!M22074","v":"Select"},{"$f":"Import!M22474","v":0},{"$f":"Import!M22874","v":0},{"$f":"Import!M23274","v":0},{"$f":"Import!M23674","v":0},{"$f":"Import!M24074","v":0}]
[159,{"$f":"Import!M21275","v":"Select"},{"$f":"Import!M21675","v":"Select"},{"$f":"Import!M22075","v":"Select"},{"$f":"Import!M22475","v":0},{"$f":"Import!M22875","v":0},{"$f":"Import!M23275","v":0},{"$f":"Import!M23675","v":0},{"$f":"Import!M24075","v":0}]
[160,{"$f":"Import!M21276","v":"Select"},{"$f":"Import!M21676","v":"Select"},{"$f":"Import!M22076","v":"Select"},{"$f":"Import!M22476","v":0},{"$f":"Import!M22876","v":0},{"$f":"Import!M23276","v":0},{"$f":"Import!M23676","v":0},{"$f":"Import!M24076","v":0}]
[161,{"$f":"Import!M21277","v":"Select"},{"$f":"Import!M21677","v":"Select"},{"$f":"Import!M22077","v":"Select"},{"$f":"Import!M22477","v":0},{"$f":"Import!M22877","v":0},{"$f":"Import!M23277","v":0},{"$f":"Import!M23677","v":0},{"$f":"Import!M24077","v":0}]
[162,{"$f":"Import!M21278","v":"Select"},{"$f":"Import!M21678","v":"Select"},{"$f":"Import!M22078","v":"Select"},{"$f":"Import!M22478","v":0},{"$f":"Import!M22878","v":0},{"$f":"Import!M23278","v":0},{"$f":"Import!M23678","v":0},{"$f":"Import!M24078","v":0}]
[163,{"$f":"Import!M21279","v":"Select"},{"$f":"Import!M21679","v":"Select"},{"$f":"Import!M22079","v":"Select"},{"$f":"Import!M22479","v":0},{"$f":"Import!M22879","v":0},{"$f":"Import!M23279","v":0},{"$f":"Import!M23679","v":0},{"$f":"Import!M24079","v":0}]
[164,{"$f":"Import!M21280","v":"Select"},{"$f":"Import!M21680","v":"Select"},{"$f":"Import!M22080","v":"Select"},{"$f":"Import!M22480","v":0},{"$f":"Import!M22880","v":0},{"$f":"Import!M23280","v":0},{"$f":"Import!M23680","v":0},{"$f":"Import!M24080","v":0}]
[165,{"$f":"Import!M21281","v":"Select"},{"$f":"Import!M21681","v":"Select"},{"$f":"Import!M22081","v":"Select"},{"$f":"Import!M22481","v":0},{"$f":"Import!M22881","v":0},{"$f":"Import!M23281","v":0},{"$f":"Import!M23681","v":0},{"$f":"Import!M24081","v":0}]
[166,{"$f":"Import!M21282","v":"Select"},{"$f":"Import!M21682","v":"Select"},{"$f":"Import!M22082","v":"Select"},{"$f":"Import!M22482","v":0},{"$f":"Import!M22882","v":0},{"$f":"Import!M23282","v":0},{"$f":"Import!M23682","v":0},{"$f":"Import!M24082","v":0}]
[167,{"$f":"Import!M21283","v":"Select"},{"$f":"Import!M21683","v":"Select"},{"$f":"Import!M22083","v":"Select"},{"$f":"Import!M22483","v":0},{"$f":"Import!M22883","v":0},{"$f":"Import!M23283","v":0},{"$f":"Import!M23683","v":0},{"$f":"Import!M24083","v":0}]
[168,{"$f":"Import!M21284","v":"Select"},{"$f":"Import!M21684","v":"Select"},{"$f":"Import!M22084","v":"Select"},{"$f":"Import!M22484","v":0},{"$f":"Import!M22884","v":0},{"$f":"Import!M23284","v":0},{"$f":"Import!M23684","v":0},{"$f":"Import!M24084","v":0}]
[169,{"$f":"Import!M21285","v":"Select"},{"$f":"Import!M21685","v":"Select"},{"$f":"Import!M22085","v":"Select"},{"$f":"Import!M22485","v":0},{"$f":"Import!M22885","v":0},{"$f":"Import!M23285","v":0},{"$f":"Import!M23685","v":0},{"$f":"Import!M24085","v":0}]
[170,{"$f":"Import!M21286","v":"Select"},{"$f":"Import!M21686","v":"Select"},{"$f":"Import!M22086","v":"Select"},{"$f":"Import!M22486","v":0},{"$f":"Import!M22886","v":0},{"$f":"Import!M23286","v":0},{"$f":"Import!M23686","v":0},{"$f":"Import!M24086","v":0}]
[171,{"$f":"Import!M21287","v":"Select"},{"$f":"Import!M21687","v":"Select"},{"$f":"Import!M22087","v":"Select"},{"$f":"Import!M22487","v":0},{"$f":"Import!M22887","v":0},{"$f":"Import!M23287","v":0},{"$f":"Import!M23687","v":0},{"$f":"Import!M24087","v":0}]
[172,{"$f":"Import!M21288","v":"Select"},{"$f":"Import!M21688","v":"Select"},{"$f":"Import!M22088","v":"Select"},{"$f":"Import!M22488","v":0},{"$f":"Import!M22888","v":0},{"$f":"Import!M23288","v":0},{"$f":"Import!M23688","v":0},{"$f":"Import!M24088","v":0}]
[173,{"$f":"Import!M21289","v":"Select"},{"$f":"Import!M21689","v":"Select"},{"$f":"Import!M22089","v":"Select"},{"$f":"Import!M22489","v":0},{"$f":"Import!M22889","v":0},{"$f":"Import!M23289","v":0},{"$f":"Import!M23689","v":0},{"$f":"Import!M24089","v":0}]
[174,{"$f":"Import!M21290","v":"Select"},{"$f":"Import!M21690","v":"Select"},{"$f":"Import!M22090","v":"Select"},{"$f":"Import!M22490","v":0},{"$f":"Import!M22890","v":0},{"$f":"Import!M23290","v":0},{"$f":"Import!M23690","v":0},{"$f":"Import!M24090","v":0}]
[175,{"$f":"Import!M21291","v":"Select"},{"$f":"Import!M21691","v":"Select"},{"$f":"Import!M22091","v":"Select"},{"$f":"Import!M22491","v":0},{"$f":"Import!M22891","v":0},{"$f":"Import!M23291","v":0},{"$f":"Import!M23691","v":0},{"$f":"Import!M24091","v":0}]
[176,{"$f":"Import!M21292","v":"Select"},{"$f":"Import!M21692","v":"Select"},{"$f":"Import!M22092","v":"Select"},{"$f":"Import!M22492","v":0},{"$f":"Import!M22892","v":0},{"$f":"Import!M23292","v":0},{"$f":"Import!M23692","v":0},{"$f":"Import!M24092","v":0}]
[177,{"$f":"Import!M21293","v":"Select"},{"$f":"Import!M21693","v":"Select"},{"$f":"Import!M22093","v":"Select"},{"$f":"Import!M22493","v":0},{"$f":"Import!M22893","v":0},{"$f":"Import!M23293","v":0},{"$f":"Import!M23693","v":0},{"$f":"Import!M24093","v":0}]
[178,{"$f":"Import!M21294","v":"Select"},{"$f":"Import!M21694","v":"Select"},{"$f":"Import!M22094","v":"Select"},{"$f":"Import!M22494","v":0},{"$f":"Import!M22894","v":0},{"$f":"Import!M23294","v":0},{"$f":"Import!M23694","v":0},{"$f":"Import!M24094","v":0}]
[179,{"$f":"Import!M21295","v":"Select"},{"$f":"Import!M21695","v":"Select"},{"$f":"Import!M22095","v":"Select"},{"$f":"Import!M22495","v":0},{"$f":"Import!M22895","v":0},{"$f":"Import!M23295","v":0},{"$f":"Import!M23695","v":0},{"$f":"Import!M24095","v":0}]
[180,{"$f":"Import!M21296","v":"Select"},{"$f":"Import!M21696","v":"Select"},{"$f":"Import!M22096","v":"Select"},{"$f":"Import!M22496","v":0},{"$f":"Import!M22896","v":0},{"$f":"Import!M23296","v":0},{"$f":"Import!M23696","v":0},{"$f":"Import!M24096","v":0}]
[181,{"$f":"Import!M21297","v":"Select"},{"$f":"Import!M21697","v":"Select"},{"$f":"Import!M22097","v":"Select"},{"$f":"Import!M22497","v":0},{"$f":"Import!M22897","v":0},{"$f":"Import!M23297","v":0},{"$f":"Import!M23697","v":0},{"$f":"Import!M24097","v":0}]
[182,{"$f":"Import!M21298","v":"Select"},{"$f":"Import!M21698","v":"Select"},{"$f":"Import!M22098","v":"Select"},{"$f":"Import!M22498","v":0},{"$f":"Import!M22898","v":0},{"$f":"Import!M23298","v":0},{"$f":"Import!M23698","v":0},{"$f":"Import!M24098","v":0}]
[183,{"$f":"Import!M21299","v":"Select"},{"$f":"Import!M21699","v":"Select"},{"$f":"Import!M22099","v":"Select"},{"$f":"Import!M22499","v":0},{"$f":"Import!M22899","v":0},{"$f":"Import!M23299","v":0},{"$f":"Import!M23699","v":0},{"$f":"Import!M24099","v":0}]
[184,{"$f":"Import!M21300","v":"Select"},{"$f":"Import!M21700","v":"Select"},{"$f":"Import!M22100","v":"Select"},{"$f":"Import!M22500","v":0},{"$f":"Import!M22900","v":0},{"$f":"Import!M23300","v":0},{"$f":"Import!M23700","v":0},{"$f":"Import!M24100","v":0}]
[185,{"$f":"Import!M21301","v":"Select"},{"$f":"Import!M21701","v":"Select"},{"$f":"Import!M22101","v":"Select"},{"$f":"Import!M22501","v":0},{"$f":"Import!M22901","v":0},{"$f":"Import!M23301","v":0},{"$f":"Import!M23701","v":0},{"$f":"Import!M24101","v":0}]
[186,{"$f":"Import!M21302","v":"Select"},{"$f":"Import!M21702","v":"Select"},{"$f":"Import!M22102","v":"Select"},{"$f":"Import!M22502","v":0},{"$f":"Import!M22902","v":0},{"$f":"Import!M23302","v":0},{"$f":"Import!M23702","v":0},{"$f":"Import!M24102","v":0}]
[187,{"$f":"Import!M21303","v":"Select"},{"$f":"Import!M21703","v":"Select"},{"$f":"Import!M22103","v":"Select"},{"$f":"Import!M22503","v":0},{"$f":"Import!M22903","v":0},{"$f":"Import!M23303","v":0},{"$f":"Import!M23703","v":0},{"$f":"Import!M24103","v":0}]
[188,{"$f":"Import!M21304","v":"Select"},{"$f":"Import!M21704","v":"Select"},{"$f":"Import!M22104","v":"Select"},{"$f":"Import!M22504","v":0},{"$f":"Import!M22904","v":0},{"$f":"Import!M23304","v":0},{"$f":"Import!M23704","v":0},{"$f":"Import!M24104","v":0}]
[189,{"$f":"Import!M21305","v":"Select"},{"$f":"Import!M21705","v":"Select"},{"$f":"Import!M22105","v":"Select"},{"$f":"Import!M22505","v":0},{"$f":"Import!M22905","v":0},{"$f":"Import!M23305","v":0},{"$f":"Import!M23705","v":0},{"$f":"Import!M24105","v":0}]
[190,{"$f":"Import!M21306","v":"Select"},{"$f":"Import!M21706","v":"Select"},{"$f":"Import!M22106","v":"Select"},{"$f":"Import!M22506","v":0},{"$f":"Import!M22906","v":0},{"$f":"Import!M23306","v":0},{"$f":"Import!M23706","v":0},{"$f":"Import!M24106","v":0}]
[191,{"$f":"Import!M21307","v":"Select"},{"$f":"Import!M21707","v":"Select"},{"$f":"Import!M22107","v":"Select"},{"$f":"Import!M22507","v":0},{"$f":"Import!M22907","v":0},{"$f":"Import!M23307","v":0},{"$f":"Import!M23707","v":0},{"$f":"Import!M24107","v":0}]
[192,{"$f":"Import!M21308","v":"Select"},{"$f":"Import!M21708","v":"Select"},{"$f":"Import!M22108","v":"Select"},{"$f":"Import!M22508","v":0},{"$f":"Import!M22908","v":0},{"$f":"Import!M23308","v":0},{"$f":"Import!M23708","v":0},{"$f":"Import!M24108","v":0}]
[193,{"$f":"Import!M21309","v":"Select"},{"$f":"Import!M21709","v":"Select"},{"$f":"Import!M22109","v":"Select"},{"$f":"Import!M22509","v":0},{"$f":"Import!M22909","v":0},{"$f":"Import!M23309","v":0},{"$f":"Import!M23709","v":0},{"$f":"Import!M24109","v":0}]
[194,{"$f":"Import!M21310","v":"Select"},{"$f":"Import!M21710","v":"Select"},{"$f":"Import!M22110","v":"Select"},{"$f":"Import!M22510","v":0},{"$f":"Import!M22910","v":0},{"$f":"Import!M23310","v":0},{"$f":"Import!M23710","v":0},{"$f":"Import!M24110","v":0}]
[{"$f":"A412+1","v":195},{"$f":"Import!M21311","v":"Select"},{"$f":"Import!M21711","v":"Select"},{"$f":"Import!M22111","v":"Select"},{"$f":"Import!M22511","v":0},{"$f":"Import!M22911","v":0},{"$f":"Import!M23311","v":0},{"$f":"Import!M23711","v":0},{"$f":"Import!M24111","v":0}]
[196,{"$f":"Import!M21312","v":"Select"},{"$f":"Import!M21712","v":"Select"},{"$f":"Import!M22112","v":"Select"},{"$f":"Import!M22512","v":0},{"$f":"Import!M22912","v":0},{"$f":"Import!M23312","v":0},{"$f":"Import!M23712","v":0},{"$f":"Import!M24112","v":0}]
[197,{"$f":"Import!M21313","v":"Select"},{"$f":"Import!M21713","v":"Select"},{"$f":"Import!M22113","v":"Select"},{"$f":"Import!M22513","v":0},{"$f":"Import!M22913","v":0},{"$f":"Import!M23313","v":0},{"$f":"Import!M23713","v":0},{"$f":"Import!M24113","v":0}]
[198,{"$f":"Import!M21314","v":"Select"},{"$f":"Import!M21714","v":"Select"},{"$f":"Import!M22114","v":"Select"},{"$f":"Import!M22514","v":0},{"$f":"Import!M22914","v":0},{"$f":"Import!M23314","v":0},{"$f":"Import!M23714","v":0},{"$f":"Import!M24114","v":0}]
[199,{"$f":"Import!M21315","v":"Select"},{"$f":"Import!M21715","v":"Select"},{"$f":"Import!M22115","v":"Select"},{"$f":"Import!M22515","v":0},{"$f":"Import!M22915","v":0},{"$f":"Import!M23315","v":0},{"$f":"Import!M23715","v":0},{"$f":"Import!M24115","v":0}]
[200,{"$f":"Import!M21316","v":"Select"},{"$f":"Import!M21716","v":"Select"},{"$f":"Import!M22116","v":"Select"},{"$f":"Import!M22516","v":0},{"$f":"Import!M22916","v":0},{"$f":"Import!M23316","v":0},{"$f":"Import!M23716","v":0},{"$f":"Import!M24116","v":0}]
[201,{"$f":"Import!M21317","v":"Select"},{"$f":"Import!M21717","v":"Select"},{"$f":"Import!M22117","v":"Select"},{"$f":"Import!M22517","v":0},{"$f":"Import!M22917","v":0},{"$f":"Import!M23317","v":0},{"$f":"Import!M23717","v":0},{"$f":"Import!M24117","v":0}]
[202,{"$f":"Import!M21318","v":"Select"},{"$f":"Import!M21718","v":"Select"},{"$f":"Import!M22118","v":"Select"},{"$f":"Import!M22518","v":0},{"$f":"Import!M22918","v":0},{"$f":"Import!M23318","v":0},{"$f":"Import!M23718","v":0},{"$f":"Import!M24118","v":0}]
[203,{"$f":"Import!M21319","v":"Select"},{"$f":"Import!M21719","v":"Select"},{"$f":"Import!M22119","v":"Select"},{"$f":"Import!M22519","v":0},{"$f":"Import!M22919","v":0},{"$f":"Import!M23319","v":0},{"$f":"Import!M23719","v":0},{"$f":"Import!M24119","v":0}]
[204,{"$f":"Import!M21320","v":"Select"},{"$f":"Import!M21720","v":"Select"},{"$f":"Import!M22120","v":"Select"},{"$f":"Import!M22520","v":0},{"$f":"Import!M22920","v":0},{"$f":"Import!M23320","v":0},{"$f":"Import!M23720","v":0},{"$f":"Import!M24120","v":0}]
[205,{"$f":"Import!M21321","v":"Select"},{"$f":"Import!M21721","v":"Select"},{"$f":"Import!M22121","v":"Select"},{"$f":"Import!M22521","v":0},{"$f":"Import!M22921","v":0},{"$f":"Import!M23321","v":0},{"$f":"Import!M23721","v":0},{"$f":"Import!M24121","v":0}]
[206,{"$f":"Import!M21322","v":"Select"},{"$f":"Import!M21722","v":"Select"},{"$f":"Import!M22122","v":"Select"},{"$f":"Import!M22522","v":0},{"$f":"Import!M22922","v":0},{"$f":"Import!M23322","v":0},{"$f":"Import!M23722","v":0},{"$f":"Import!M24122","v":0}]
[207,{"$f":"Import!M21323","v":"Select"},{"$f":"Import!M21723","v":"Select"},{"$f":"Import!M22123","v":"Select"},{"$f":"Import!M22523","v":0},{"$f":"Import!M22923","v":0},{"$f":"Import!M23323","v":0},{"$f":"Import!M23723","v":0},{"$f":"Import!M24123","v":0}]
[208,{"$f":"Import!M21324","v":"Select"},{"$f":"Import!M21724","v":"Select"},{"$f":"Import!M22124","v":"Select"},{"$f":"Import!M22524","v":0},{"$f":"Import!M22924","v":0},{"$f":"Import!M23324","v":0},{"$f":"Import!M23724","v":0},{"$f":"Import!M24124","v":0}]
[209,{"$f":"Import!M21325","v":"Select"},{"$f":"Import!M21725","v":"Select"},{"$f":"Import!M22125","v":"Select"},{"$f":"Import!M22525","v":0},{"$f":"Import!M22925","v":0},{"$f":"Import!M23325","v":0},{"$f":"Import!M23725","v":0},{"$f":"Import!M24125","v":0}]
[210,{"$f":"Import!M21326","v":"Select"},{"$f":"Import!M21726","v":"Select"},{"$f":"Import!M22126","v":"Select"},{"$f":"Import!M22526","v":0},{"$f":"Import!M22926","v":0},{"$f":"Import!M23326","v":0},{"$f":"Import!M23726","v":0},{"$f":"Import!M24126","v":0}]
[211,{"$f":"Import!M21327","v":"Select"},{"$f":"Import!M21727","v":"Select"},{"$f":"Import!M22127","v":"Select"},{"$f":"Import!M22527","v":0},{"$f":"Import!M22927","v":0},{"$f":"Import!M23327","v":0},{"$f":"Import!M23727","v":0},{"$f":"Import!M24127","v":0}]
[212,{"$f":"Import!M21328","v":"Select"},{"$f":"Import!M21728","v":"Select"},{"$f":"Import!M22128","v":"Select"},{"$f":"Import!M22528","v":0},{"$f":"Import!M22928","v":0},{"$f":"Import!M23328","v":0},{"$f":"Import!M23728","v":0},{"$f":"Import!M24128","v":0}]
[213,{"$f":"Import!M21329","v":"Select"},{"$f":"Import!M21729","v":"Select"},{"$f":"Import!M22129","v":"Select"},{"$f":"Import!M22529","v":0},{"$f":"Import!M22929","v":0},{"$f":"Import!M23329","v":0},{"$f":"Import!M23729","v":0},{"$f":"Import!M24129","v":0}]
[214,{"$f":"Import!M21330","v":"Select"},{"$f":"Import!M21730","v":"Select"},{"$f":"Import!M22130","v":"Select"},{"$f":"Import!M22530","v":0},{"$f":"Import!M22930","v":0},{"$f":"Import!M23330","v":0},{"$f":"Import!M23730","v":0},{"$f":"Import!M24130","v":0}]
[215,{"$f":"Import!M21331","v":"Select"},{"$f":"Import!M21731","v":"Select"},{"$f":"Import!M22131","v":"Select"},{"$f":"Import!M22531","v":0},{"$f":"Import!M22931","v":0},{"$f":"Import!M23331","v":0},{"$f":"Import!M23731","v":0},{"$f":"Import!M24131","v":0}]
[216,{"$f":"Import!M21332","v":"Select"},{"$f":"Import!M21732","v":"Select"},{"$f":"Import!M22132","v":"Select"},{"$f":"Import!M22532","v":0},{"$f":"Import!M22932","v":0},{"$f":"Import!M23332","v":0},{"$f":"Import!M23732","v":0},{"$f":"Import!M24132","v":0}]
[217,{"$f":"Import!M21333","v":"Select"},{"$f":"Import!M21733","v":"Select"},{"$f":"Import!M22133","v":"Select"},{"$f":"Import!M22533","v":0},{"$f":"Import!M22933","v":0},{"$f":"Import!M23333","v":0},{"$f":"Import!M23733","v":0},{"$f":"Import!M24133","v":0}]
[218,{"$f":"Import!M21334","v":"Select"},{"$f":"Import!M21734","v":"Select"},{"$f":"Import!M22134","v":"Select"},{"$f":"Import!M22534","v":0},{"$f":"Import!M22934","v":0},{"$f":"Import!M23334","v":0},{"$f":"Import!M23734","v":0},{"$f":"Import!M24134","v":0}]
[219,{"$f":"Import!M21335","v":"Select"},{"$f":"Import!M21735","v":"Select"},{"$f":"Import!M22135","v":"Select"},{"$f":"Import!M22535","v":0},{"$f":"Import!M22935","v":0},{"$f":"Import!M23335","v":0},{"$f":"Import!M23735","v":0},{"$f":"Import!M24135","v":0}]
[220,{"$f":"Import!M21336","v":"Select"},{"$f":"Import!M21736","v":"Select"},{"$f":"Import!M22136","v":"Select"},{"$f":"Import!M22536","v":0},{"$f":"Import!M22936","v":0},{"$f":"Import!M23336","v":0},{"$f":"Import!M23736","v":0},{"$f":"Import!M24136","v":0}]
[221,{"$f":"Import!M21337","v":"Select"},{"$f":"Import!M21737","v":"Select"},{"$f":"Import!M22137","v":"Select"},{"$f":"Import!M22537","v":0},{"$f":"Import!M22937","v":0},{"$f":"Import!M23337","v":0},{"$f":"Import!M23737","v":0},{"$f":"Import!M24137","v":0}]
[222,{"$f":"Import!M21338","v":"Select"},{"$f":"Import!M21738","v":"Select"},{"$f":"Import!M22138","v":"Select"},{"$f":"Import!M22538","v":0},{"$f":"Import!M22938","v":0},{"$f":"Import!M23338","v":0},{"$f":"Import!M23738","v":0},{"$f":"Import!M24138","v":0}]
[223,{"$f":"Import!M21339","v":"Select"},{"$f":"Import!M21739","v":"Select"},{"$f":"Import!M22139","v":"Select"},{"$f":"Import!M22539","v":0},{"$f":"Import!M22939","v":0},{"$f":"Import!M23339","v":0},{"$f":"Import!M23739","v":0},{"$f":"Import!M24139","v":0}]
[224,{"$f":"Import!M21340","v":"Select"},{"$f":"Import!M21740","v":"Select"},{"$f":"Import!M22140","v":"Select"},{"$f":"Import!M22540","v":0},{"$f":"Import!M22940","v":0},{"$f":"Import!M23340","v":0},{"$f":"Import!M23740","v":0},{"$f":"Import!M24140","v":0}]
[225,{"$f":"Import!M21341","v":"Select"},{"$f":"Import!M21741","v":"Select"},{"$f":"Import!M22141","v":"Select"},{"$f":"Import!M22541","v":0},{"$f":"Import!M22941","v":0},{"$f":"Import!M23341","v":0},{"$f":"Import!M23741","v":0},{"$f":"Import!M24141","v":0}]
[226,{"$f":"Import!M21342","v":"Select"},{"$f":"Import!M21742","v":"Select"},{"$f":"Import!M22142","v":"Select"},{"$f":"Import!M22542","v":0},{"$f":"Import!M22942","v":0},{"$f":"Import!M23342","v":0},{"$f":"Import!M23742","v":0},{"$f":"Import!M24142","v":0}]
[227,{"$f":"Import!M21343","v":"Select"},{"$f":"Import!M21743","v":"Select"},{"$f":"Import!M22143","v":"Select"},{"$f":"Import!M22543","v":0},{"$f":"Import!M22943","v":0},{"$f":"Import!M23343","v":0},{"$f":"Import!M23743","v":0},{"$f":"Import!M24143","v":0}]
[228,{"$f":"Import!M21344","v":"Select"},{"$f":"Import!M21744","v":"Select"},{"$f":"Import!M22144","v":"Select"},{"$f":"Import!M22544","v":0},{"$f":"Import!M22944","v":0},{"$f":"Import!M23344","v":0},{"$f":"Import!M23744","v":0},{"$f":"Import!M24144","v":0}]
[229,{"$f":"Import!M21345","v":"Select"},{"$f":"Import!M21745","v":"Select"},{"$f":"Import!M22145","v":"Select"},{"$f":"Import!M22545","v":0},{"$f":"Import!M22945","v":0},{"$f":"Import!M23345","v":0},{"$f":"Import!M23745","v":0},{"$f":"Import!M24145","v":0}]
[230,{"$f":"Import!M21346","v":"Select"},{"$f":"Import!M21746","v":"Select"},{"$f":"Import!M22146","v":"Select"},{"$f":"Import!M22546","v":0},{"$f":"Import!M22946","v":0},{"$f":"Import!M23346","v":0},{"$f":"Import!M23746","v":0},{"$f":"Import!M24146","v":0}]
[231,{"$f":"Import!M21347","v":"Select"},{"$f":"Import!M21747","v":"Select"},{"$f":"Import!M22147","v":"Select"},{"$f":"Import!M22547","v":0},{"$f":"Import!M22947","v":0},{"$f":"Import!M23347","v":0},{"$f":"Import!M23747","v":0},{"$f":"Import!M24147","v":0}]
[232,{"$f":"Import!M21348","v":"Select"},{"$f":"Import!M21748","v":"Select"},{"$f":"Import!M22148","v":"Select"},{"$f":"Import!M22548","v":0},{"$f":"Import!M22948","v":0},{"$f":"Import!M23348","v":0},{"$f":"Import!M23748","v":0},{"$f":"Import!M24148","v":0}]
[233,{"$f":"Import!M21349","v":"Select"},{"$f":"Import!M21749","v":"Select"},{"$f":"Import!M22149","v":"Select"},{"$f":"Import!M22549","v":0},{"$f":"Import!M22949","v":0},{"$f":"Import!M23349","v":0},{"$f":"Import!M23749","v":0},{"$f":"Import!M24149","v":0}]
[234,{"$f":"Import!M21350","v":"Select"},{"$f":"Import!M21750","v":"Select"},{"$f":"Import!M22150","v":"Select"},{"$f":"Import!M22550","v":0},{"$f":"Import!M22950","v":0},{"$f":"Import!M23350","v":0},{"$f":"Import!M23750","v":0},{"$f":"Import!M24150","v":0}]
[235,{"$f":"Import!M21351","v":"Select"},{"$f":"Import!M21751","v":"Select"},{"$f":"Import!M22151","v":"Select"},{"$f":"Import!M22551","v":0},{"$f":"Import!M22951","v":0},{"$f":"Import!M23351","v":0},{"$f":"Import!M23751","v":0},{"$f":"Import!M24151","v":0}]
[236,{"$f":"Import!M21352","v":"Select"},{"$f":"Import!M21752","v":"Select"},{"$f":"Import!M22152","v":"Select"},{"$f":"Import!M22552","v":0},{"$f":"Import!M22952","v":0},{"$f":"Import!M23352","v":0},{"$f":"Import!M23752","v":0},{"$f":"Import!M24152","v":0}]
[237,{"$f":"Import!M21353","v":"Select"},{"$f":"Import!M21753","v":"Select"},{"$f":"Import!M22153","v":"Select"},{"$f":"Import!M22553","v":0},{"$f":"Import!M22953","v":0},{"$f":"Import!M23353","v":0},{"$f":"Import!M23753","v":0},{"$f":"Import!M24153","v":0}]
[238,{"$f":"Import!M21354","v":"Select"},{"$f":"Import!M21754","v":"Select"},{"$f":"Import!M22154","v":"Select"},{"$f":"Import!M22554","v":0},{"$f":"Import!M22954","v":0},{"$f":"Import!M23354","v":0},{"$f":"Import!M23754","v":0},{"$f":"Import!M24154","v":0}]
[239,{"$f":"Import!M21355","v":"Select"},{"$f":"Import!M21755","v":"Select"},{"$f":"Import!M22155","v":"Select"},{"$f":"Import!M22555","v":0},{"$f":"Import!M22955","v":0},{"$f":"Import!M23355","v":0},{"$f":"Import!M23755","v":0},{"$f":"Import!M24155","v":0}]
[240,{"$f":"Import!M21356","v":"Select"},{"$f":"Import!M21756","v":"Select"},{"$f":"Import!M22156","v":"Select"},{"$f":"Import!M22556","v":0},{"$f":"Import!M22956","v":0},{"$f":"Import!M23356","v":0},{"$f":"Import!M23756","v":0},{"$f":"Import!M24156","v":0}]
[241,{"$f":"Import!M21357","v":"Select"},{"$f":"Import!M21757","v":"Select"},{"$f":"Import!M22157","v":"Select"},{"$f":"Import!M22557","v":0},{"$f":"Import!M22957","v":0},{"$f":"Import!M23357","v":0},{"$f":"Import!M23757","v":0},{"$f":"Import!M24157","v":0}]
[242,{"$f":"Import!M21358","v":"Select"},{"$f":"Import!M21758","v":"Select"},{"$f":"Import!M22158","v":"Select"},{"$f":"Import!M22558","v":0},{"$f":"Import!M22958","v":0},{"$f":"Import!M23358","v":0},{"$f":"Import!M23758","v":0},{"$f":"Import!M24158","v":0}]
[243,{"$f":"Import!M21359","v":"Select"},{"$f":"Import!M21759","v":"Select"},{"$f":"Import!M22159","v":"Select"},{"$f":"Import!M22559","v":0},{"$f":"Import!M22959","v":0},{"$f":"Import!M23359","v":0},{"$f":"Import!M23759","v":0},{"$f":"Import!M24159","v":0}]
[244,{"$f":"Import!M21360","v":"Select"},{"$f":"Import!M21760","v":"Select"},{"$f":"Import!M22160","v":"Select"},{"$f":"Import!M22560","v":0},{"$f":"Import!M22960","v":0},{"$f":"Import!M23360","v":0},{"$f":"Import!M23760","v":0},{"$f":"Import!M24160","v":0}]
[245,{"$f":"Import!M21361","v":"Select"},{"$f":"Import!M21761","v":"Select"},{"$f":"Import!M22161","v":"Select"},{"$f":"Import!M22561","v":0},{"$f":"Import!M22961","v":0},{"$f":"Import!M23361","v":0},{"$f":"Import!M23761","v":0},{"$f":"Import!M24161","v":0}]
[246,{"$f":"Import!M21362","v":"Select"},{"$f":"Import!M21762","v":"Select"},{"$f":"Import!M22162","v":"Select"},{"$f":"Import!M22562","v":0},{"$f":"Import!M22962","v":0},{"$f":"Import!M23362","v":0},{"$f":"Import!M23762","v":0},{"$f":"Import!M24162","v":0}]
[247,{"$f":"Import!M21363","v":"Select"},{"$f":"Import!M21763","v":"Select"},{"$f":"Import!M22163","v":"Select"},{"$f":"Import!M22563","v":0},{"$f":"Import!M22963","v":0},{"$f":"Import!M23363","v":0},{"$f":"Import!M23763","v":0},{"$f":"Import!M24163","v":0}]
[248,{"$f":"Import!M21364","v":"Select"},{"$f":"Import!M21764","v":"Select"},{"$f":"Import!M22164","v":"Select"},{"$f":"Import!M22564","v":0},{"$f":"Import!M22964","v":0},{"$f":"Import!M23364","v":0},{"$f":"Import!M23764","v":0},{"$f":"Import!M24164","v":0}]
[249,{"$f":"Import!M21365","v":"Select"},{"$f":"Import!M21765","v":"Select"},{"$f":"Import!M22165","v":"Select"},{"$f":"Import!M22565","v":0},{"$f":"Import!M22965","v":0},{"$f":"Import!M23365","v":0},{"$f":"Import!M23765","v":0},{"$f":"Import!M24165","v":0}]
[250,{"$f":"Import!M21366","v":"Select"},{"$f":"Import!M21766","v":"Select"},{"$f":"Import!M22166","v":"Select"},{"$f":"Import!M22566","v":0},{"$f":"Import!M22966","v":0},{"$f":"Import!M23366","v":0},{"$f":"Import!M23766","v":0},{"$f":"Import!M24166","v":0}]
[251,{"$f":"Import!M21367","v":"Select"},{"$f":"Import!M21767","v":"Select"},{"$f":"Import!M22167","v":"Select"},{"$f":"Import!M22567","v":0},{"$f":"Import!M22967","v":0},{"$f":"Import!M23367","v":0},{"$f":"Import!M23767","v":0},{"$f":"Import!M24167","v":0}]
[252,{"$f":"Import!M21368","v":"Select"},{"$f":"Import!M21768","v":"Select"},{"$f":"Import!M22168","v":"Select"},{"$f":"Import!M22568","v":0},{"$f":"Import!M22968","v":0},{"$f":"Import!M23368","v":0},{"$f":"Import!M23768","v":0},{"$f":"Import!M24168","v":0}]
[253,{"$f":"Import!M21369","v":"Select"},{"$f":"Import!M21769","v":"Select"},{"$f":"Import!M22169","v":"Select"},{"$f":"Import!M22569","v":0},{"$f":"Import!M22969","v":0},{"$f":"Import!M23369","v":0},{"$f":"Import!M23769","v":0},{"$f":"Import!M24169","v":0}]
[254,{"$f":"Import!M21370","v":"Select"},{"$f":"Import!M21770","v":"Select"},{"$f":"Import!M22170","v":"Select"},{"$f":"Import!M22570","v":0},{"$f":"Import!M22970","v":0},{"$f":"Import!M23370","v":0},{"$f":"Import!M23770","v":0},{"$f":"Import!M24170","v":0}]
[255,{"$f":"Import!M21371","v":"Select"},{"$f":"Import!M21771","v":"Select"},{"$f":"Import!M22171","v":"Select"},{"$f":"Import!M22571","v":0},{"$f":"Import!M22971","v":0},{"$f":"Import!M23371","v":0},{"$f":"Import!M23771","v":0},{"$f":"Import!M24171","v":0}]
[256,{"$f":"Import!M21372","v":"Select"},{"$f":"Import!M21772","v":"Select"},{"$f":"Import!M22172","v":"Select"},{"$f":"Import!M22572","v":0},{"$f":"Import!M22972","v":0},{"$f":"Import!M23372","v":0},{"$f":"Import!M23772","v":0},{"$f":"Import!M24172","v":0}]
[257,{"$f":"Import!M21373","v":"Select"},{"$f":"Import!M21773","v":"Select"},{"$f":"Import!M22173","v":"Select"},{"$f":"Import!M22573","v":0},{"$f":"Import!M22973","v":0},{"$f":"Import!M23373","v":0},{"$f":"Import!M23773","v":0},{"$f":"Import!M24173","v":0}]
[258,{"$f":"Import!M21374","v":"Select"},{"$f":"Import!M21774","v":"Select"},{"$f":"Import!M22174","v":"Select"},{"$f":"Import!M22574","v":0},{"$f":"Import!M22974","v":0},{"$f":"Import!M23374","v":0},{"$f":"Import!M23774","v":0},{"$f":"Import!M24174","v":0}]
[{"$f":"A476+1","v":259},{"$f":"Import!M21375","v":"Select"},{"$f":"Import!M21775","v":"Select"},{"$f":"Import!M22175","v":"Select"},{"$f":"Import!M22575","v":0},{"$f":"Import!M22975","v":0},{"$f":"Import!M23375","v":0},{"$f":"Import!M23775","v":0},{"$f":"Import!M24175","v":0}]
[260,{"$f":"Import!M21376","v":"Select"},{"$f":"Import!M21776","v":"Select"},{"$f":"Import!M22176","v":"Select"},{"$f":"Import!M22576","v":0},{"$f":"Import!M22976","v":0},{"$f":"Import!M23376","v":0},{"$f":"Import!M23776","v":0},{"$f":"Import!M24176","v":0}]
[261,{"$f":"Import!M21377","v":"Select"},{"$f":"Import!M21777","v":"Select"},{"$f":"Import!M22177","v":"Select"},{"$f":"Import!M22577","v":0},{"$f":"Import!M22977","v":0},{"$f":"Import!M23377","v":0},{"$f":"Import!M23777","v":0},{"$f":"Import!M24177","v":0}]
[262,{"$f":"Import!M21378","v":"Select"},{"$f":"Import!M21778","v":"Select"},{"$f":"Import!M22178","v":"Select"},{"$f":"Import!M22578","v":0},{"$f":"Import!M22978","v":0},{"$f":"Import!M23378","v":0},{"$f":"Import!M23778","v":0},{"$f":"Import!M24178","v":0}]
[263,{"$f":"Import!M21379","v":"Select"},{"$f":"Import!M21779","v":"Select"},{"$f":"Import!M22179","v":"Select"},{"$f":"Import!M22579","v":0},{"$f":"Import!M22979","v":0},{"$f":"Import!M23379","v":0},{"$f":"Import!M23779","v":0},{"$f":"Import!M24179","v":0}]
[264,{"$f":"Import!M21380","v":"Select"},{"$f":"Import!M21780","v":"Select"},{"$f":"Import!M22180","v":"Select"},{"$f":"Import!M22580","v":0},{"$f":"Import!M22980","v":0},{"$f":"Import!M23380","v":0},{"$f":"Import!M23780","v":0},{"$f":"Import!M24180","v":0}]
[265,{"$f":"Import!M21381","v":"Select"},{"$f":"Import!M21781","v":"Select"},{"$f":"Import!M22181","v":"Select"},{"$f":"Import!M22581","v":0},{"$f":"Import!M22981","v":0},{"$f":"Import!M23381","v":0},{"$f":"Import!M23781","v":0},{"$f":"Import!M24181","v":0}]
[266,{"$f":"Import!M21382","v":"Select"},{"$f":"Import!M21782","v":"Select"},{"$f":"Import!M22182","v":"Select"},{"$f":"Import!M22582","v":0},{"$f":"Import!M22982","v":0},{"$f":"Import!M23382","v":0},{"$f":"Import!M23782","v":0},{"$f":"Import!M24182","v":0}]
[267,{"$f":"Import!M21383","v":"Select"},{"$f":"Import!M21783","v":"Select"},{"$f":"Import!M22183","v":"Select"},{"$f":"Import!M22583","v":0},{"$f":"Import!M22983","v":0},{"$f":"Import!M23383","v":0},{"$f":"Import!M23783","v":0},{"$f":"Import!M24183","v":0}]
[268,{"$f":"Import!M21384","v":"Select"},{"$f":"Import!M21784","v":"Select"},{"$f":"Import!M22184","v":"Select"},{"$f":"Import!M22584","v":0},{"$f":"Import!M22984","v":0},{"$f":"Import!M23384","v":0},{"$f":"Import!M23784","v":0},{"$f":"Import!M24184","v":0}]
[269,{"$f":"Import!M21385","v":"Select"},{"$f":"Import!M21785","v":"Select"},{"$f":"Import!M22185","v":"Select"},{"$f":"Import!M22585","v":0},{"$f":"Import!M22985","v":0},{"$f":"Import!M23385","v":0},{"$f":"Import!M23785","v":0},{"$f":"Import!M24185","v":0}]
[270,{"$f":"Import!M21386","v":"Select"},{"$f":"Import!M21786","v":"Select"},{"$f":"Import!M22186","v":"Select"},{"$f":"Import!M22586","v":0},{"$f":"Import!M22986","v":0},{"$f":"Import!M23386","v":0},{"$f":"Import!M23786","v":0},{"$f":"Import!M24186","v":0}]
[271,{"$f":"Import!M21387","v":"Select"},{"$f":"Import!M21787","v":"Select"},{"$f":"Import!M22187","v":"Select"},{"$f":"Import!M22587","v":0},{"$f":"Import!M22987","v":0},{"$f":"Import!M23387","v":0},{"$f":"Import!M23787","v":0},{"$f":"Import!M24187","v":0}]
[272,{"$f":"Import!M21388","v":"Select"},{"$f":"Import!M21788","v":"Select"},{"$f":"Import!M22188","v":"Select"},{"$f":"Import!M22588","v":0},{"$f":"Import!M22988","v":0},{"$f":"Import!M23388","v":0},{"$f":"Import!M23788","v":0},{"$f":"Import!M24188","v":0}]
[273,{"$f":"Import!M21389","v":"Select"},{"$f":"Import!M21789","v":"Select"},{"$f":"Import!M22189","v":"Select"},{"$f":"Import!M22589","v":0},{"$f":"Import!M22989","v":0},{"$f":"Import!M23389","v":0},{"$f":"Import!M23789","v":0},{"$f":"Import!M24189","v":0}]
[274,{"$f":"Import!M21390","v":"Select"},{"$f":"Import!M21790","v":"Select"},{"$f":"Import!M22190","v":"Select"},{"$f":"Import!M22590","v":0},{"$f":"Import!M22990","v":0},{"$f":"Import!M23390","v":0},{"$f":"Import!M23790","v":0},{"$f":"Import!M24190","v":0}]
[275,{"$f":"Import!M21391","v":"Select"},{"$f":"Import!M21791","v":"Select"},{"$f":"Import!M22191","v":"Select"},{"$f":"Import!M22591","v":0},{"$f":"Import!M22991","v":0},{"$f":"Import!M23391","v":0},{"$f":"Import!M23791","v":0},{"$f":"Import!M24191","v":0}]
[276,{"$f":"Import!M21392","v":"Select"},{"$f":"Import!M21792","v":"Select"},{"$f":"Import!M22192","v":"Select"},{"$f":"Import!M22592","v":0},{"$f":"Import!M22992","v":0},{"$f":"Import!M23392","v":0},{"$f":"Import!M23792","v":0},{"$f":"Import!M24192","v":0}]
[277,{"$f":"Import!M21393","v":"Select"},{"$f":"Import!M21793","v":"Select"},{"$f":"Import!M22193","v":"Select"},{"$f":"Import!M22593","v":0},{"$f":"Import!M22993","v":0},{"$f":"Import!M23393","v":0},{"$f":"Import!M23793","v":0},{"$f":"Import!M24193","v":0}]
[278,{"$f":"Import!M21394","v":"Select"},{"$f":"Import!M21794","v":"Select"},{"$f":"Import!M22194","v":"Select"},{"$f":"Import!M22594","v":0},{"$f":"Import!M22994","v":0},{"$f":"Import!M23394","v":0},{"$f":"Import!M23794","v":0},{"$f":"Import!M24194","v":0}]
[279,{"$f":"Import!M21395","v":"Select"},{"$f":"Import!M21795","v":"Select"},{"$f":"Import!M22195","v":"Select"},{"$f":"Import!M22595","v":0},{"$f":"Import!M22995","v":0},{"$f":"Import!M23395","v":0},{"$f":"Import!M23795","v":0},{"$f":"Import!M24195","v":0}]
[280,{"$f":"Import!M21396","v":"Select"},{"$f":"Import!M21796","v":"Select"},{"$f":"Import!M22196","v":"Select"},{"$f":"Import!M22596","v":0},{"$f":"Import!M22996","v":0},{"$f":"Import!M23396","v":0},{"$f":"Import!M23796","v":0},{"$f":"Import!M24196","v":0}]
[281,{"$f":"Import!M21397","v":"Select"},{"$f":"Import!M21797","v":"Select"},{"$f":"Import!M22197","v":"Select"},{"$f":"Import!M22597","v":0},{"$f":"Import!M22997","v":0},{"$f":"Import!M23397","v":0},{"$f":"Import!M23797","v":0},{"$f":"Import!M24197","v":0}]
[282,{"$f":"Import!M21398","v":"Select"},{"$f":"Import!M21798","v":"Select"},{"$f":"Import!M22198","v":"Select"},{"$f":"Import!M22598","v":0},{"$f":"Import!M22998","v":0},{"$f":"Import!M23398","v":0},{"$f":"Import!M23798","v":0},{"$f":"Import!M24198","v":0}]
[283,{"$f":"Import!M21399","v":"Select"},{"$f":"Import!M21799","v":"Select"},{"$f":"Import!M22199","v":"Select"},{"$f":"Import!M22599","v":0},{"$f":"Import!M22999","v":0},{"$f":"Import!M23399","v":0},{"$f":"Import!M23799","v":0},{"$f":"Import!M24199","v":0}]
[284,{"$f":"Import!M21400","v":"Select"},{"$f":"Import!M21800","v":"Select"},{"$f":"Import!M22200","v":"Select"},{"$f":"Import!M22600","v":0},{"$f":"Import!M23000","v":0},{"$f":"Import!M23400","v":0},{"$f":"Import!M23800","v":0},{"$f":"Import!M24200","v":0}]
[285,{"$f":"Import!M21401","v":"Select"},{"$f":"Import!M21801","v":"Select"},{"$f":"Import!M22201","v":"Select"},{"$f":"Import!M22601","v":0},{"$f":"Import!M23001","v":0},{"$f":"Import!M23401","v":0},{"$f":"Import!M23801","v":0},{"$f":"Import!M24201","v":0}]
[286,{"$f":"Import!M21402","v":"Select"},{"$f":"Import!M21802","v":"Select"},{"$f":"Import!M22202","v":"Select"},{"$f":"Import!M22602","v":0},{"$f":"Import!M23002","v":0},{"$f":"Import!M23402","v":0},{"$f":"Import!M23802","v":0},{"$f":"Import!M24202","v":0}]
[287,{"$f":"Import!M21403","v":"Select"},{"$f":"Import!M21803","v":"Select"},{"$f":"Import!M22203","v":"Select"},{"$f":"Import!M22603","v":0},{"$f":"Import!M23003","v":0},{"$f":"Import!M23403","v":0},{"$f":"Import!M23803","v":0},{"$f":"Import!M24203","v":0}]
[288,{"$f":"Import!M21404","v":"Select"},{"$f":"Import!M21804","v":"Select"},{"$f":"Import!M22204","v":"Select"},{"$f":"Import!M22604","v":0},{"$f":"Import!M23004","v":0},{"$f":"Import!M23404","v":0},{"$f":"Import!M23804","v":0},{"$f":"Import!M24204","v":0}]
[289,{"$f":"Import!M21405","v":"Select"},{"$f":"Import!M21805","v":"Select"},{"$f":"Import!M22205","v":"Select"},{"$f":"Import!M22605","v":0},{"$f":"Import!M23005","v":0},{"$f":"Import!M23405","v":0},{"$f":"Import!M23805","v":0},{"$f":"Import!M24205","v":0}]
[290,{"$f":"Import!M21406","v":"Select"},{"$f":"Import!M21806","v":"Select"},{"$f":"Import!M22206","v":"Select"},{"$f":"Import!M22606","v":0},{"$f":"Import!M23006","v":0},{"$f":"Import!M23406","v":0},{"$f":"Import!M23806","v":0},{"$f":"Import!M24206","v":0}]
[291,{"$f":"Import!M21407","v":"Select"},{"$f":"Import!M21807","v":"Select"},{"$f":"Import!M22207","v":"Select"},{"$f":"Import!M22607","v":0},{"$f":"Import!M23007","v":0},{"$f":"Import!M23407","v":0},{"$f":"Import!M23807","v":0},{"$f":"Import!M24207","v":0}]
[292,{"$f":"Import!M21408","v":"Select"},{"$f":"Import!M21808","v":"Select"},{"$f":"Import!M22208","v":"Select"},{"$f":"Import!M22608","v":0},{"$f":"Import!M23008","v":0},{"$f":"Import!M23408","v":0},{"$f":"Import!M23808","v":0},{"$f":"Import!M24208","v":0}]
[293,{"$f":"Import!M21409","v":"Select"},{"$f":"Import!M21809","v":"Select"},{"$f":"Import!M22209","v":"Select"},{"$f":"Import!M22609","v":0},{"$f":"Import!M23009","v":0},{"$f":"Import!M23409","v":0},{"$f":"Import!M23809","v":0},{"$f":"Import!M24209","v":0}]
[294,{"$f":"Import!M21410","v":"Select"},{"$f":"Import!M21810","v":"Select"},{"$f":"Import!M22210","v":"Select"},{"$f":"Import!M22610","v":0},{"$f":"Import!M23010","v":0},{"$f":"Import!M23410","v":0},{"$f":"Import!M23810","v":0},{"$f":"Import!M24210","v":0}]
[295,{"$f":"Import!M21411","v":"Select"},{"$f":"Import!M21811","v":"Select"},{"$f":"Import!M22211","v":"Select"},{"$f":"Import!M22611","v":0},{"$f":"Import!M23011","v":0},{"$f":"Import!M23411","v":0},{"$f":"Import!M23811","v":0},{"$f":"Import!M24211","v":0}]
[296,{"$f":"Import!M21412","v":"Select"},{"$f":"Import!M21812","v":"Select"},{"$f":"Import!M22212","v":"Select"},{"$f":"Import!M22612","v":0},{"$f":"Import!M23012","v":0},{"$f":"Import!M23412","v":0},{"$f":"Import!M23812","v":0},{"$f":"Import!M24212","v":0}]
[297,{"$f":"Import!M21413","v":"Select"},{"$f":"Import!M21813","v":"Select"},{"$f":"Import!M22213","v":"Select"},{"$f":"Import!M22613","v":0},{"$f":"Import!M23013","v":0},{"$f":"Import!M23413","v":0},{"$f":"Import!M23813","v":0},{"$f":"Import!M24213","v":0}]
[298,{"$f":"Import!M21414","v":"Select"},{"$f":"Import!M21814","v":"Select"},{"$f":"Import!M22214","v":"Select"},{"$f":"Import!M22614","v":0},{"$f":"Import!M23014","v":0},{"$f":"Import!M23414","v":0},{"$f":"Import!M23814","v":0},{"$f":"Import!M24214","v":0}]
[299,{"$f":"Import!M21415","v":"Select"},{"$f":"Import!M21815","v":"Select"},{"$f":"Import!M22215","v":"Select"},{"$f":"Import!M22615","v":0},{"$f":"Import!M23015","v":0},{"$f":"Import!M23415","v":0},{"$f":"Import!M23815","v":0},{"$f":"Import!M24215","v":0}]
[300,{"$f":"Import!M21416","v":"Select"},{"$f":"Import!M21816","v":"Select"},{"$f":"Import!M22216","v":"Select"},{"$f":"Import!M22616","v":0},{"$f":"Import!M23016","v":0},{"$f":"Import!M23416","v":0},{"$f":"Import!M23816","v":0},{"$f":"Import!M24216","v":0}]
[301,{"$f":"Import!M21417","v":"Select"},{"$f":"Import!M21817","v":"Select"},{"$f":"Import!M22217","v":"Select"},{"$f":"Import!M22617","v":0},{"$f":"Import!M23017","v":0},{"$f":"Import!M23417","v":0},{"$f":"Import!M23817","v":0},{"$f":"Import!M24217","v":0}]
[302,{"$f":"Import!M21418","v":"Select"},{"$f":"Import!M21818","v":"Select"},{"$f":"Import!M22218","v":"Select"},{"$f":"Import!M22618","v":0},{"$f":"Import!M23018","v":0},{"$f":"Import!M23418","v":0},{"$f":"Import!M23818","v":0},{"$f":"Import!M24218","v":0}]
[303,{"$f":"Import!M21419","v":"Select"},{"$f":"Import!M21819","v":"Select"},{"$f":"Import!M22219","v":"Select"},{"$f":"Import!M22619","v":0},{"$f":"Import!M23019","v":0},{"$f":"Import!M23419","v":0},{"$f":"Import!M23819","v":0},{"$f":"Import!M24219","v":0}]
[304,{"$f":"Import!M21420","v":"Select"},{"$f":"Import!M21820","v":"Select"},{"$f":"Import!M22220","v":"Select"},{"$f":"Import!M22620","v":0},{"$f":"Import!M23020","v":0},{"$f":"Import!M23420","v":0},{"$f":"Import!M23820","v":0},{"$f":"Import!M24220","v":0}]
[305,{"$f":"Import!M21421","v":"Select"},{"$f":"Import!M21821","v":"Select"},{"$f":"Import!M22221","v":"Select"},{"$f":"Import!M22621","v":0},{"$f":"Import!M23021","v":0},{"$f":"Import!M23421","v":0},{"$f":"Import!M23821","v":0},{"$f":"Import!M24221","v":0}]
[306,{"$f":"Import!M21422","v":"Select"},{"$f":"Import!M21822","v":"Select"},{"$f":"Import!M22222","v":"Select"},{"$f":"Import!M22622","v":0},{"$f":"Import!M23022","v":0},{"$f":"Import!M23422","v":0},{"$f":"Import!M23822","v":0},{"$f":"Import!M24222","v":0}]
[307,{"$f":"Import!M21423","v":"Select"},{"$f":"Import!M21823","v":"Select"},{"$f":"Import!M22223","v":"Select"},{"$f":"Import!M22623","v":0},{"$f":"Import!M23023","v":0},{"$f":"Import!M23423","v":0},{"$f":"Import!M23823","v":0},{"$f":"Import!M24223","v":0}]
[308,{"$f":"Import!M21424","v":"Select"},{"$f":"Import!M21824","v":"Select"},{"$f":"Import!M22224","v":"Select"},{"$f":"Import!M22624","v":0},{"$f":"Import!M23024","v":0},{"$f":"Import!M23424","v":0},{"$f":"Import!M23824","v":0},{"$f":"Import!M24224","v":0}]
[309,{"$f":"Import!M21425","v":"Select"},{"$f":"Import!M21825","v":"Select"},{"$f":"Import!M22225","v":"Select"},{"$f":"Import!M22625","v":0},{"$f":"Import!M23025","v":0},{"$f":"Import!M23425","v":0},{"$f":"Import!M23825","v":0},{"$f":"Import!M24225","v":0}]
[310,{"$f":"Import!M21426","v":"Select"},{"$f":"Import!M21826","v":"Select"},{"$f":"Import!M22226","v":"Select"},{"$f":"Import!M22626","v":0},{"$f":"Import!M23026","v":0},{"$f":"Import!M23426","v":0},{"$f":"Import!M23826","v":0},{"$f":"Import!M24226","v":0}]
[311,{"$f":"Import!M21427","v":"Select"},{"$f":"Import!M21827","v":"Select"},{"$f":"Import!M22227","v":"Select"},{"$f":"Import!M22627","v":0},{"$f":"Import!M23027","v":0},{"$f":"Import!M23427","v":0},{"$f":"Import!M23827","v":0},{"$f":"Import!M24227","v":0}]
[312,{"$f":"Import!M21428","v":"Select"},{"$f":"Import!M21828","v":"Select"},{"$f":"Import!M22228","v":"Select"},{"$f":"Import!M22628","v":0},{"$f":"Import!M23028","v":0},{"$f":"Import!M23428","v":0},{"$f":"Import!M23828","v":0},{"$f":"Import!M24228","v":0}]
[313,{"$f":"Import!M21429","v":"Select"},{"$f":"Import!M21829","v":"Select"},{"$f":"Import!M22229","v":"Select"},{"$f":"Import!M22629","v":0},{"$f":"Import!M23029","v":0},{"$f":"Import!M23429","v":0},{"$f":"Import!M23829","v":0},{"$f":"Import!M24229","v":0}]
[314,{"$f":"Import!M21430","v":"Select"},{"$f":"Import!M21830","v":"Select"},{"$f":"Import!M22230","v":"Select"},{"$f":"Import!M22630","v":0},{"$f":"Import!M23030","v":0},{"$f":"Import!M23430","v":0},{"$f":"Import!M23830","v":0},{"$f":"Import!M24230","v":0}]
[315,{"$f":"Import!M21431","v":"Select"},{"$f":"Import!M21831","v":"Select"},{"$f":"Import!M22231","v":"Select"},{"$f":"Import!M22631","v":0},{"$f":"Import!M23031","v":0},{"$f":"Import!M23431","v":0},{"$f":"Import!M23831","v":0},{"$f":"Import!M24231","v":0}]
[316,{"$f":"Import!M21432","v":"Select"},{"$f":"Import!M21832","v":"Select"},{"$f":"Import!M22232","v":"Select"},{"$f":"Import!M22632","v":0},{"$f":"Import!M23032","v":0},{"$f":"Import!M23432","v":0},{"$f":"Import!M23832","v":0},{"$f":"Import!M24232","v":0}]
[317,{"$f":"Import!M21433","v":"Select"},{"$f":"Import!M21833","v":"Select"},{"$f":"Import!M22233","v":"Select"},{"$f":"Import!M22633","v":0},{"$f":"Import!M23033","v":0},{"$f":"Import!M23433","v":0},{"$f":"Import!M23833","v":0},{"$f":"Import!M24233","v":0}]
[318,{"$f":"Import!M21434","v":"Select"},{"$f":"Import!M21834","v":"Select"},{"$f":"Import!M22234","v":"Select"},{"$f":"Import!M22634","v":0},{"$f":"Import!M23034","v":0},{"$f":"Import!M23434","v":0},{"$f":"Import!M23834","v":0},{"$f":"Import!M24234","v":0}]
[319,{"$f":"Import!M21435","v":"Select"},{"$f":"Import!M21835","v":"Select"},{"$f":"Import!M22235","v":"Select"},{"$f":"Import!M22635","v":0},{"$f":"Import!M23035","v":0},{"$f":"Import!M23435","v":0},{"$f":"Import!M23835","v":0},{"$f":"Import!M24235","v":0}]
[320,{"$f":"Import!M21436","v":"Select"},{"$f":"Import!M21836","v":"Select"},{"$f":"Import!M22236","v":"Select"},{"$f":"Import!M22636","v":0},{"$f":"Import!M23036","v":0},{"$f":"Import!M23436","v":0},{"$f":"Import!M23836","v":0},{"$f":"Import!M24236","v":0}]
[321,{"$f":"Import!M21437","v":"Select"},{"$f":"Import!M21837","v":"Select"},{"$f":"Import!M22237","v":"Select"},{"$f":"Import!M22637","v":0},{"$f":"Import!M23037","v":0},{"$f":"Import!M23437","v":0},{"$f":"Import!M23837","v":0},{"$f":"Import!M24237","v":0}]
[322,{"$f":"Import!M21438","v":"Select"},{"$f":"Import!M21838","v":"Select"},{"$f":"Import!M22238","v":"Select"},{"$f":"Import!M22638","v":0},{"$f":"Import!M23038","v":0},{"$f":"Import!M23438","v":0},{"$f":"Import!M23838","v":0},{"$f":"Import!M24238","v":0}]
[{"$f":"A540+1","v":323},{"$f":"Import!M21439","v":"Select"},{"$f":"Import!M21839","v":"Select"},{"$f":"Import!M22239","v":"Select"},{"$f":"Import!M22639","v":0},{"$f":"Import!M23039","v":0},{"$f":"Import!M23439","v":0},{"$f":"Import!M23839","v":0},{"$f":"Import!M24239","v":0}]
[324,{"$f":"Import!M21440","v":"Select"},{"$f":"Import!M21840","v":"Select"},{"$f":"Import!M22240","v":"Select"},{"$f":"Import!M22640","v":0},{"$f":"Import!M23040","v":0},{"$f":"Import!M23440","v":0},{"$f":"Import!M23840","v":0},{"$f":"Import!M24240","v":0}]
[325,{"$f":"Import!M21441","v":"Select"},{"$f":"Import!M21841","v":"Select"},{"$f":"Import!M22241","v":"Select"},{"$f":"Import!M22641","v":0},{"$f":"Import!M23041","v":0},{"$f":"Import!M23441","v":0},{"$f":"Import!M23841","v":0},{"$f":"Import!M24241","v":0}]
[326,{"$f":"Import!M21442","v":"Select"},{"$f":"Import!M21842","v":"Select"},{"$f":"Import!M22242","v":"Select"},{"$f":"Import!M22642","v":0},{"$f":"Import!M23042","v":0},{"$f":"Import!M23442","v":0},{"$f":"Import!M23842","v":0},{"$f":"Import!M24242","v":0}]
[327,{"$f":"Import!M21443","v":"Select"},{"$f":"Import!M21843","v":"Select"},{"$f":"Import!M22243","v":"Select"},{"$f":"Import!M22643","v":0},{"$f":"Import!M23043","v":0},{"$f":"Import!M23443","v":0},{"$f":"Import!M23843","v":0},{"$f":"Import!M24243","v":0}]
[328,{"$f":"Import!M21444","v":"Select"},{"$f":"Import!M21844","v":"Select"},{"$f":"Import!M22244","v":"Select"},{"$f":"Import!M22644","v":0},{"$f":"Import!M23044","v":0},{"$f":"Import!M23444","v":0},{"$f":"Import!M23844","v":0},{"$f":"Import!M24244","v":0}]
[329,{"$f":"Import!M21445","v":"Select"},{"$f":"Import!M21845","v":"Select"},{"$f":"Import!M22245","v":"Select"},{"$f":"Import!M22645","v":0},{"$f":"Import!M23045","v":0},{"$f":"Import!M23445","v":0},{"$f":"Import!M23845","v":0},{"$f":"Import!M24245","v":0}]
[330,{"$f":"Import!M21446","v":"Select"},{"$f":"Import!M21846","v":"Select"},{"$f":"Import!M22246","v":"Select"},{"$f":"Import!M22646","v":0},{"$f":"Import!M23046","v":0},{"$f":"Import!M23446","v":0},{"$f":"Import!M23846","v":0},{"$f":"Import!M24246","v":0}]
[331,{"$f":"Import!M21447","v":"Select"},{"$f":"Import!M21847","v":"Select"},{"$f":"Import!M22247","v":"Select"},{"$f":"Import!M22647","v":0},{"$f":"Import!M23047","v":0},{"$f":"Import!M23447","v":0},{"$f":"Import!M23847","v":0},{"$f":"Import!M24247","v":0}]
[332,{"$f":"Import!M21448","v":"Select"},{"$f":"Import!M21848","v":"Select"},{"$f":"Import!M22248","v":"Select"},{"$f":"Import!M22648","v":0},{"$f":"Import!M23048","v":0},{"$f":"Import!M23448","v":0},{"$f":"Import!M23848","v":0},{"$f":"Import!M24248","v":0}]
[333,{"$f":"Import!M21449","v":"Select"},{"$f":"Import!M21849","v":"Select"},{"$f":"Import!M22249","v":"Select"},{"$f":"Import!M22649","v":0},{"$f":"Import!M23049","v":0},{"$f":"Import!M23449","v":0},{"$f":"Import!M23849","v":0},{"$f":"Import!M24249","v":0}]
[334,{"$f":"Import!M21450","v":"Select"},{"$f":"Import!M21850","v":"Select"},{"$f":"Import!M22250","v":"Select"},{"$f":"Import!M22650","v":0},{"$f":"Import!M23050","v":0},{"$f":"Import!M23450","v":0},{"$f":"Import!M23850","v":0},{"$f":"Import!M24250","v":0}]
[335,{"$f":"Import!M21451","v":"Select"},{"$f":"Import!M21851","v":"Select"},{"$f":"Import!M22251","v":"Select"},{"$f":"Import!M22651","v":0},{"$f":"Import!M23051","v":0},{"$f":"Import!M23451","v":0},{"$f":"Import!M23851","v":0},{"$f":"Import!M24251","v":0}]
[336,{"$f":"Import!M21452","v":"Select"},{"$f":"Import!M21852","v":"Select"},{"$f":"Import!M22252","v":"Select"},{"$f":"Import!M22652","v":0},{"$f":"Import!M23052","v":0},{"$f":"Import!M23452","v":0},{"$f":"Import!M23852","v":0},{"$f":"Import!M24252","v":0}]
[337,{"$f":"Import!M21453","v":"Select"},{"$f":"Import!M21853","v":"Select"},{"$f":"Import!M22253","v":"Select"},{"$f":"Import!M22653","v":0},{"$f":"Import!M23053","v":0},{"$f":"Import!M23453","v":0},{"$f":"Import!M23853","v":0},{"$f":"Import!M24253","v":0}]
[338,{"$f":"Import!M21454","v":"Select"},{"$f":"Import!M21854","v":"Select"},{"$f":"Import!M22254","v":"Select"},{"$f":"Import!M22654","v":0},{"$f":"Import!M23054","v":0},{"$f":"Import!M23454","v":0},{"$f":"Import!M23854","v":0},{"$f":"Import!M24254","v":0}]
[339,{"$f":"Import!M21455","v":"Select"},{"$f":"Import!M21855","v":"Select"},{"$f":"Import!M22255","v":"Select"},{"$f":"Import!M22655","v":0},{"$f":"Import!M23055","v":0},{"$f":"Import!M23455","v":0},{"$f":"Import!M23855","v":0},{"$f":"Import!M24255","v":0}]
[340,{"$f":"Import!M21456","v":"Select"},{"$f":"Import!M21856","v":"Select"},{"$f":"Import!M22256","v":"Select"},{"$f":"Import!M22656","v":0},{"$f":"Import!M23056","v":0},{"$f":"Import!M23456","v":0},{"$f":"Import!M23856","v":0},{"$f":"Import!M24256","v":0}]
[341,{"$f":"Import!M21457","v":"Select"},{"$f":"Import!M21857","v":"Select"},{"$f":"Import!M22257","v":"Select"},{"$f":"Import!M22657","v":0},{"$f":"Import!M23057","v":0},{"$f":"Import!M23457","v":0},{"$f":"Import!M23857","v":0},{"$f":"Import!M24257","v":0}]
[342,{"$f":"Import!M21458","v":"Select"},{"$f":"Import!M21858","v":"Select"},{"$f":"Import!M22258","v":"Select"},{"$f":"Import!M22658","v":0},{"$f":"Import!M23058","v":0},{"$f":"Import!M23458","v":0},{"$f":"Import!M23858","v":0},{"$f":"Import!M24258","v":0}]
[343,{"$f":"Import!M21459","v":"Select"},{"$f":"Import!M21859","v":"Select"},{"$f":"Import!M22259","v":"Select"},{"$f":"Import!M22659","v":0},{"$f":"Import!M23059","v":0},{"$f":"Import!M23459","v":0},{"$f":"Import!M23859","v":0},{"$f":"Import!M24259","v":0}]
[344,{"$f":"Import!M21460","v":"Select"},{"$f":"Import!M21860","v":"Select"},{"$f":"Import!M22260","v":"Select"},{"$f":"Import!M22660","v":0},{"$f":"Import!M23060","v":0},{"$f":"Import!M23460","v":0},{"$f":"Import!M23860","v":0},{"$f":"Import!M24260","v":0}]
[345,{"$f":"Import!M21461","v":"Select"},{"$f":"Import!M21861","v":"Select"},{"$f":"Import!M22261","v":"Select"},{"$f":"Import!M22661","v":0},{"$f":"Import!M23061","v":0},{"$f":"Import!M23461","v":0},{"$f":"Import!M23861","v":0},{"$f":"Import!M24261","v":0}]
[346,{"$f":"Import!M21462","v":"Select"},{"$f":"Import!M21862","v":"Select"},{"$f":"Import!M22262","v":"Select"},{"$f":"Import!M22662","v":0},{"$f":"Import!M23062","v":0},{"$f":"Import!M23462","v":0},{"$f":"Import!M23862","v":0},{"$f":"Import!M24262","v":0}]
[347,{"$f":"Import!M21463","v":"Select"},{"$f":"Import!M21863","v":"Select"},{"$f":"Import!M22263","v":"Select"},{"$f":"Import!M22663","v":0},{"$f":"Import!M23063","v":0},{"$f":"Import!M23463","v":0},{"$f":"Import!M23863","v":0},{"$f":"Import!M24263","v":0}]
[348,{"$f":"Import!M21464","v":"Select"},{"$f":"Import!M21864","v":"Select"},{"$f":"Import!M22264","v":"Select"},{"$f":"Import!M22664","v":0},{"$f":"Import!M23064","v":0},{"$f":"Import!M23464","v":0},{"$f":"Import!M23864","v":0},{"$f":"Import!M24264","v":0}]
[349,{"$f":"Import!M21465","v":"Select"},{"$f":"Import!M21865","v":"Select"},{"$f":"Import!M22265","v":"Select"},{"$f":"Import!M22665","v":0},{"$f":"Import!M23065","v":0},{"$f":"Import!M23465","v":0},{"$f":"Import!M23865","v":0},{"$f":"Import!M24265","v":0}]
[350,{"$f":"Import!M21466","v":"Select"},{"$f":"Import!M21866","v":"Select"},{"$f":"Import!M22266","v":"Select"},{"$f":"Import!M22666","v":0},{"$f":"Import!M23066","v":0},{"$f":"Import!M23466","v":0},{"$f":"Import!M23866","v":0},{"$f":"Import!M24266","v":0}]
[351,{"$f":"Import!M21467","v":"Select"},{"$f":"Import!M21867","v":"Select"},{"$f":"Import!M22267","v":"Select"},{"$f":"Import!M22667","v":0},{"$f":"Import!M23067","v":0},{"$f":"Import!M23467","v":0},{"$f":"Import!M23867","v":0},{"$f":"Import!M24267","v":0}]
[352,{"$f":"Import!M21468","v":"Select"},{"$f":"Import!M21868","v":"Select"},{"$f":"Import!M22268","v":"Select"},{"$f":"Import!M22668","v":0},{"$f":"Import!M23068","v":0},{"$f":"Import!M23468","v":0},{"$f":"Import!M23868","v":0},{"$f":"Import!M24268","v":0}]
[353,{"$f":"Import!M21469","v":"Select"},{"$f":"Import!M21869","v":"Select"},{"$f":"Import!M22269","v":"Select"},{"$f":"Import!M22669","v":0},{"$f":"Import!M23069","v":0},{"$f":"Import!M23469","v":0},{"$f":"Import!M23869","v":0},{"$f":"Import!M24269","v":0}]
[354,{"$f":"Import!M21470","v":"Select"},{"$f":"Import!M21870","v":"Select"},{"$f":"Import!M22270","v":"Select"},{"$f":"Import!M22670","v":0},{"$f":"Import!M23070","v":0},{"$f":"Import!M23470","v":0},{"$f":"Import!M23870","v":0},{"$f":"Import!M24270","v":0}]
[355,{"$f":"Import!M21471","v":"Select"},{"$f":"Import!M21871","v":"Select"},{"$f":"Import!M22271","v":"Select"},{"$f":"Import!M22671","v":0},{"$f":"Import!M23071","v":0},{"$f":"Import!M23471","v":0},{"$f":"Import!M23871","v":0},{"$f":"Import!M24271","v":0}]
[356,{"$f":"Import!M21472","v":"Select"},{"$f":"Import!M21872","v":"Select"},{"$f":"Import!M22272","v":"Select"},{"$f":"Import!M22672","v":0},{"$f":"Import!M23072","v":0},{"$f":"Import!M23472","v":0},{"$f":"Import!M23872","v":0},{"$f":"Import!M24272","v":0}]
[357,{"$f":"Import!M21473","v":"Select"},{"$f":"Import!M21873","v":"Select"},{"$f":"Import!M22273","v":"Select"},{"$f":"Import!M22673","v":0},{"$f":"Import!M23073","v":0},{"$f":"Import!M23473","v":0},{"$f":"Import!M23873","v":0},{"$f":"Import!M24273","v":0}]
[358,{"$f":"Import!M21474","v":"Select"},{"$f":"Import!M21874","v":"Select"},{"$f":"Import!M22274","v":"Select"},{"$f":"Import!M22674","v":0},{"$f":"Import!M23074","v":0},{"$f":"Import!M23474","v":0},{"$f":"Import!M23874","v":0},{"$f":"Import!M24274","v":0}]
[359,{"$f":"Import!M21475","v":"Select"},{"$f":"Import!M21875","v":"Select"},{"$f":"Import!M22275","v":"Select"},{"$f":"Import!M22675","v":0},{"$f":"Import!M23075","v":0},{"$f":"Import!M23475","v":0},{"$f":"Import!M23875","v":0},{"$f":"Import!M24275","v":0}]
[360,{"$f":"Import!M21476","v":"Select"},{"$f":"Import!M21876","v":"Select"},{"$f":"Import!M22276","v":"Select"},{"$f":"Import!M22676","v":0},{"$f":"Import!M23076","v":0},{"$f":"Import!M23476","v":0},{"$f":"Import!M23876","v":0},{"$f":"Import!M24276","v":0}]
[361,{"$f":"Import!M21477","v":"Select"},{"$f":"Import!M21877","v":"Select"},{"$f":"Import!M22277","v":"Select"},{"$f":"Import!M22677","v":0},{"$f":"Import!M23077","v":0},{"$f":"Import!M23477","v":0},{"$f":"Import!M23877","v":0},{"$f":"Import!M24277","v":0}]
[362,{"$f":"Import!M21478","v":"Select"},{"$f":"Import!M21878","v":"Select"},{"$f":"Import!M22278","v":"Select"},{"$f":"Import!M22678","v":0},{"$f":"Import!M23078","v":0},{"$f":"Import!M23478","v":0},{"$f":"Import!M23878","v":0},{"$f":"Import!M24278","v":0}]
[363,{"$f":"Import!M21479","v":"Select"},{"$f":"Import!M21879","v":"Select"},{"$f":"Import!M22279","v":"Select"},{"$f":"Import!M22679","v":0},{"$f":"Import!M23079","v":0},{"$f":"Import!M23479","v":0},{"$f":"Import!M23879","v":0},{"$f":"Import!M24279","v":0}]
[364,{"$f":"Import!M21480","v":"Select"},{"$f":"Import!M21880","v":"Select"},{"$f":"Import!M22280","v":"Select"},{"$f":"Import!M22680","v":0},{"$f":"Import!M23080","v":0},{"$f":"Import!M23480","v":0},{"$f":"Import!M23880","v":0},{"$f":"Import!M24280","v":0}]
[365,{"$f":"Import!M21481","v":"Select"},{"$f":"Import!M21881","v":"Select"},{"$f":"Import!M22281","v":"Select"},{"$f":"Import!M22681","v":0},{"$f":"Import!M23081","v":0},{"$f":"Import!M23481","v":0},{"$f":"Import!M23881","v":0},{"$f":"Import!M24281","v":0}]
[366,{"$f":"Import!M21482","v":"Select"},{"$f":"Import!M21882","v":"Select"},{"$f":"Import!M22282","v":"Select"},{"$f":"Import!M22682","v":0},{"$f":"Import!M23082","v":0},{"$f":"Import!M23482","v":0},{"$f":"Import!M23882","v":0},{"$f":"Import!M24282","v":0}]
[367,{"$f":"Import!M21483","v":"Select"},{"$f":"Import!M21883","v":"Select"},{"$f":"Import!M22283","v":"Select"},{"$f":"Import!M22683","v":0},{"$f":"Import!M23083","v":0},{"$f":"Import!M23483","v":0},{"$f":"Import!M23883","v":0},{"$f":"Import!M24283","v":0}]
[368,{"$f":"Import!M21484","v":"Select"},{"$f":"Import!M21884","v":"Select"},{"$f":"Import!M22284","v":"Select"},{"$f":"Import!M22684","v":0},{"$f":"Import!M23084","v":0},{"$f":"Import!M23484","v":0},{"$f":"Import!M23884","v":0},{"$f":"Import!M24284","v":0}]
[369,{"$f":"Import!M21485","v":"Select"},{"$f":"Import!M21885","v":"Select"},{"$f":"Import!M22285","v":"Select"},{"$f":"Import!M22685","v":0},{"$f":"Import!M23085","v":0},{"$f":"Import!M23485","v":0},{"$f":"Import!M23885","v":0},{"$f":"Import!M24285","v":0}]
[370,{"$f":"Import!M21486","v":"Select"},{"$f":"Import!M21886","v":"Select"},{"$f":"Import!M22286","v":"Select"},{"$f":"Import!M22686","v":0},{"$f":"Import!M23086","v":0},{"$f":"Import!M23486","v":0},{"$f":"Import!M23886","v":0},{"$f":"Import!M24286","v":0}]
[371,{"$f":"Import!M21487","v":"Select"},{"$f":"Import!M21887","v":"Select"},{"$f":"Import!M22287","v":"Select"},{"$f":"Import!M22687","v":0},{"$f":"Import!M23087","v":0},{"$f":"Import!M23487","v":0},{"$f":"Import!M23887","v":0},{"$f":"Import!M24287","v":0}]
[372,{"$f":"Import!M21488","v":"Select"},{"$f":"Import!M21888","v":"Select"},{"$f":"Import!M22288","v":"Select"},{"$f":"Import!M22688","v":0},{"$f":"Import!M23088","v":0},{"$f":"Import!M23488","v":0},{"$f":"Import!M23888","v":0},{"$f":"Import!M24288","v":0}]
[373,{"$f":"Import!M21489","v":"Select"},{"$f":"Import!M21889","v":"Select"},{"$f":"Import!M22289","v":"Select"},{"$f":"Import!M22689","v":0},{"$f":"Import!M23089","v":0},{"$f":"Import!M23489","v":0},{"$f":"Import!M23889","v":0},{"$f":"Import!M24289","v":0}]
[374,{"$f":"Import!M21490","v":"Select"},{"$f":"Import!M21890","v":"Select"},{"$f":"Import!M22290","v":"Select"},{"$f":"Import!M22690","v":0},{"$f":"Import!M23090","v":0},{"$f":"Import!M23490","v":0},{"$f":"Import!M23890","v":0},{"$f":"Import!M24290","v":0}]
[375,{"$f":"Import!M21491","v":"Select"},{"$f":"Import!M21891","v":"Select"},{"$f":"Import!M22291","v":"Select"},{"$f":"Import!M22691","v":0},{"$f":"Import!M23091","v":0},{"$f":"Import!M23491","v":0},{"$f":"Import!M23891","v":0},{"$f":"Import!M24291","v":0}]
[376,{"$f":"Import!M21492","v":"Select"},{"$f":"Import!M21892","v":"Select"},{"$f":"Import!M22292","v":"Select"},{"$f":"Import!M22692","v":0},{"$f":"Import!M23092","v":0},{"$f":"Import!M23492","v":0},{"$f":"Import!M23892","v":0},{"$f":"Import!M24292","v":0}]
[377,{"$f":"Import!M21493","v":"Select"},{"$f":"Import!M21893","v":"Select"},{"$f":"Import!M22293","v":"Select"},{"$f":"Import!M22693","v":0},{"$f":"Import!M23093","v":0},{"$f":"Import!M23493","v":0},{"$f":"Import!M23893","v":0},{"$f":"Import!M24293","v":0}]
[378,{"$f":"Import!M21494","v":"Select"},{"$f":"Import!M21894","v":"Select"},{"$f":"Import!M22294","v":"Select"},{"$f":"Import!M22694","v":0},{"$f":"Import!M23094","v":0},{"$f":"Import!M23494","v":0},{"$f":"Import!M23894","v":0},{"$f":"Import!M24294","v":0}]
[379,{"$f":"Import!M21495","v":"Select"},{"$f":"Import!M21895","v":"Select"},{"$f":"Import!M22295","v":"Select"},{"$f":"Import!M22695","v":0},{"$f":"Import!M23095","v":0},{"$f":"Import!M23495","v":0},{"$f":"Import!M23895","v":0},{"$f":"Import!M24295","v":0}]
[380,{"$f":"Import!M21496","v":"Select"},{"$f":"Import!M21896","v":"Select"},{"$f":"Import!M22296","v":"Select"},{"$f":"Import!M22696","v":0},{"$f":"Import!M23096","v":0},{"$f":"Import!M23496","v":0},{"$f":"Import!M23896","v":0},{"$f":"Import!M24296","v":0}]
[381,{"$f":"Import!M21497","v":"Select"},{"$f":"Import!M21897","v":"Select"},{"$f":"Import!M22297","v":"Select"},{"$f":"Import!M22697","v":0},{"$f":"Import!M23097","v":0},{"$f":"Import!M23497","v":0},{"$f":"Import!M23897","v":0},{"$f":"Import!M24297","v":0}]
[382,{"$f":"Import!M21498","v":"Select"},{"$f":"Import!M21898","v":"Select"},{"$f":"Import!M22298","v":"Select"},{"$f":"Import!M22698","v":0},{"$f":"Import!M23098","v":0},{"$f":"Import!M23498","v":0},{"$f":"Import!M23898","v":0},{"$f":"Import!M24298","v":0}]
[383,{"$f":"Import!M21499","v":"Select"},{"$f":"Import!M21899","v":"Select"},{"$f":"Import!M22299","v":"Select"},{"$f":"Import!M22699","v":0},{"$f":"Import!M23099","v":0},{"$f":"Import!M23499","v":0},{"$f":"Import!M23899","v":0},{"$f":"Import!M24299","v":0}]
[384,{"$f":"Import!M21500","v":"Select"},{"$f":"Import!M21900","v":"Select"},{"$f":"Import!M22300","v":"Select"},{"$f":"Import!M22700","v":0},{"$f":"Import!M23100","v":0},{"$f":"Import!M23500","v":0},{"$f":"Import!M23900","v":0},{"$f":"Import!M24300","v":0}]
[385,{"$f":"Import!M21501","v":"Select"},{"$f":"Import!M21901","v":"Select"},{"$f":"Import!M22301","v":"Select"},{"$f":"Import!M22701","v":0},{"$f":"Import!M23101","v":0},{"$f":"Import!M23501","v":0},{"$f":"Import!M23901","v":0},{"$f":"Import!M24301","v":0}]
[386,{"$f":"Import!M21502","v":"Select"},{"$f":"Import!M21902","v":"Select"},{"$f":"Import!M22302","v":"Select"},{"$f":"Import!M22702","v":0},{"$f":"Import!M23102","v":0},{"$f":"Import!M23502","v":0},{"$f":"Import!M23902","v":0},{"$f":"Import!M24302","v":0}]
[{"$f":"A604+1","v":387},{"$f":"Import!M21503","v":"Select"},{"$f":"Import!M21903","v":"Select"},{"$f":"Import!M22303","v":"Select"},{"$f":"Import!M22703","v":0},{"$f":"Import!M23103","v":0},{"$f":"Import!M23503","v":0},{"$f":"Import!M23903","v":0},{"$f":"Import!M24303","v":0}]
[388,{"$f":"Import!M21504","v":"Select"},{"$f":"Import!M21904","v":"Select"},{"$f":"Import!M22304","v":"Select"},{"$f":"Import!M22704","v":0},{"$f":"Import!M23104","v":0},{"$f":"Import!M23504","v":0},{"$f":"Import!M23904","v":0},{"$f":"Import!M24304","v":0}]
[389,{"$f":"Import!M21505","v":"Select"},{"$f":"Import!M21905","v":"Select"},{"$f":"Import!M22305","v":"Select"},{"$f":"Import!M22705","v":0},{"$f":"Import!M23105","v":0},{"$f":"Import!M23505","v":0},{"$f":"Import!M23905","v":0},{"$f":"Import!M24305","v":0}]
[390,{"$f":"Import!M21506","v":"Select"},{"$f":"Import!M21906","v":"Select"},{"$f":"Import!M22306","v":"Select"},{"$f":"Import!M22706","v":0},{"$f":"Import!M23106","v":0},{"$f":"Import!M23506","v":0},{"$f":"Import!M23906","v":0},{"$f":"Import!M24306","v":0}]
[391,{"$f":"Import!M21507","v":"Select"},{"$f":"Import!M21907","v":"Select"},{"$f":"Import!M22307","v":"Select"},{"$f":"Import!M22707","v":0},{"$f":"Import!M23107","v":0},{"$f":"Import!M23507","v":0},{"$f":"Import!M23907","v":0},{"$f":"Import!M24307","v":0}]
[392,{"$f":"Import!M21508","v":"Select"},{"$f":"Import!M21908","v":"Select"},{"$f":"Import!M22308","v":"Select"},{"$f":"Import!M22708","v":0},{"$f":"Import!M23108","v":0},{"$f":"Import!M23508","v":0},{"$f":"Import!M23908","v":0},{"$f":"Import!M24308","v":0}]
[393,{"$f":"Import!M21509","v":"Select"},{"$f":"Import!M21909","v":"Select"},{"$f":"Import!M22309","v":"Select"},{"$f":"Import!M22709","v":0},{"$f":"Import!M23109","v":0},{"$f":"Import!M23509","v":0},{"$f":"Import!M23909","v":0},{"$f":"Import!M24309","v":0}]
[394,{"$f":"Import!M21510","v":"Select"},{"$f":"Import!M21910","v":"Select"},{"$f":"Import!M22310","v":"Select"},{"$f":"Import!M22710","v":0},{"$f":"Import!M23110","v":0},{"$f":"Import!M23510","v":0},{"$f":"Import!M23910","v":0},{"$f":"Import!M24310","v":0}]
[395,{"$f":"Import!M21511","v":"Select"},{"$f":"Import!M21911","v":"Select"},{"$f":"Import!M22311","v":"Select"},{"$f":"Import!M22711","v":0},{"$f":"Import!M23111","v":0},{"$f":"Import!M23511","v":0},{"$f":"Import!M23911","v":0},{"$f":"Import!M24311","v":0}]
[396,{"$f":"Import!M21512","v":"Select"},{"$f":"Import!M21912","v":"Select"},{"$f":"Import!M22312","v":"Select"},{"$f":"Import!M22712","v":0},{"$f":"Import!M23112","v":0},{"$f":"Import!M23512","v":0},{"$f":"Import!M23912","v":0},{"$f":"Import!M24312","v":0}]
[397,{"$f":"Import!M21513","v":"Select"},{"$f":"Import!M21913","v":"Select"},{"$f":"Import!M22313","v":"Select"},{"$f":"Import!M22713","v":0},{"$f":"Import!M23113","v":0},{"$f":"Import!M23513","v":0},{"$f":"Import!M23913","v":0},{"$f":"Import!M24313","v":0}]
[398,{"$f":"Import!M21514","v":"Select"},{"$f":"Import!M21914","v":"Select"},{"$f":"Import!M22314","v":"Select"},{"$f":"Import!M22714","v":0},{"$f":"Import!M23114","v":0},{"$f":"Import!M23514","v":0},{"$f":"Import!M23914","v":0},{"$f":"Import!M24314","v":0}]
[399,{"$f":"Import!M21515","v":"Select"},{"$f":"Import!M21915","v":"Select"},{"$f":"Import!M22315","v":"Select"},{"$f":"Import!M22715","v":0},{"$f":"Import!M23115","v":0},{"$f":"Import!M23515","v":0},{"$f":"Import!M23915","v":0},{"$f":"Import!M24315","v":0}]
[400,{"$f":"Import!M21516","v":"Select"},{"$f":"Import!M21916","v":"Select"},{"$f":"Import!M22316","v":"Select"},{"$f":"Import!M22716","v":0},{"$f":"Import!M23116","v":0},{"$f":"Import!M23516","v":0},{"$f":"Import!M23916","v":0},{"$f":"Import!M24316","v":0}]
[]
[null,"Total Bonds and Debentures",null,null,{"$f":"SUM(E219:E618)","v":0},{"$f":"SUM(F219:F618)","v":0},{"$f":"IFERROR(SUMPRODUCT(G219:G618,$F219:$F618)/SUM($F219:$F618),0)","v":0},{"$f":"IFERROR(SUMPRODUCT(H219:H618,$F219:$F618)/SUM($F219:$F618),0)","v":0}]
[]
[null,"- ADDITIONAL INFORMATION ON SOVEREIGN DEBT EXPOSURES"]
[]
[null,null,"Enter # of Asset Types",{"$f":"Import!M24317","v":0}]
[null,null,null,null,null,{"$f":"YEAR($C$3)","v":2023}]
[null,null,"Country","Currency","BSCR Rating","Fair Value","Comments"]
[null,1,{"$f":"Import!M24318","v":"Select"},{"$f":"Import!M24518","v":"Select"},{"$f":"Import!M24718","v":"Select"},{"$f":"Import!M24918","v":0},{"$f":"Import!M25118","v":0}]
[null,{"$f":"B627+1","v":2},{"$f":"Import!M24319","v":"Select"},{"$f":"Import!M24519","v":"Select"},{"$f":"Import!M24719","v":"Select"},{"$f":"Import!M24919","v":0},{"$f":"Import!M25119","v":0}]
[null,{"$f":"B628+1","v":3},{"$f":"Import!M24320","v":"Select"},{"$f":"Import!M24520","v":"Select"},{"$f":"Import!M24720","v":"Select"},{"$f":"Import!M24920","v":0},{"$f":"Import!M25120","v":0}]
[null,4,{"$f":"Import!M24321","v":"Select"},{"$f":"Import!M24521","v":"Select"},{"$f":"Import!M24721","v":"Select"},{"$f":"Import!M24921","v":0},{"$f":"Import!M25121","v":0}]
[null,5,{"$f":"Import!M24322","v":"Select"},{"$f":"Import!M24522","v":"Select"},{"$f":"Import!M24722","v":"Select"},{"$f":"Import!M24922","v":0},{"$f":"Import!M25122","v":0}]
[null,6,{"$f":"Import!M24323","v":"Select"},{"$f":"Import!M24523","v":"Select"},{"$f":"Import!M24723","v":"Select"},{"$f":"Import!M24923","v":0},{"$f":"Import!M25123","v":0}]
[null,7,{"$f":"Import!M24324","v":"Select"},{"$f":"Import!M24524","v":"Select"},{"$f":"Import!M24724","v":"Select"},{"$f":"Import!M24924","v":0},{"$f":"Import!M25124","v":0}]
[null,8,{"$f":"Import!M24325","v":"Select"},{"$f":"Import!M24525","v":"Select"},{"$f":"Import!M24725","v":"Select"},{"$f":"Import!M24925","v":0},{"$f":"Import!M25125","v":0}]
[null,9,{"$f":"Import!M24326","v":"Select"},{"$f":"Import!M24526","v":"Select"},{"$f":"Import!M24726","v":"Select"},{"$f":"Import!M24926","v":0},{"$f":"Import!M25126","v":0}]
[null,10,{"$f":"Import!M24327","v":"Select"},{"$f":"Import!M24527","v":"Select"},{"$f":"Import!M24727","v":"Select"},{"$f":"Import!M24927","v":0},{"$f":"Import!M25127","v":0}]
[null,11,{"$f":"Import!M24328","v":"Select"},{"$f":"Import!M24528","v":"Select"},{"$f":"Import!M24728","v":"Select"},{"$f":"Import!M24928","v":0},{"$f":"Import!M25128","v":0}]
[null,12,{"$f":"Import!M24329","v":"Select"},{"$f":"Import!M24529","v":"Select"},{"$f":"Import!M24729","v":"Select"},{"$f":"Import!M24929","v":0},{"$f":"Import!M25129","v":0}]
[null,13,{"$f":"Import!M24330","v":"Select"},{"$f":"Import!M24530","v":"Select"},{"$f":"Import!M24730","v":"Select"},{"$f":"Import!M24930","v":0},{"$f":"Import!M25130","v":0}]
[null,14,{"$f":"Import!M24331","v":"Select"},{"$f":"Import!M24531","v":"Select"},{"$f":"Import!M24731","v":"Select"},{"$f":"Import!M24931","v":0},{"$f":"Import!M25131","v":0}]
[null,15,{"$f":"Import!M24332","v":"Select"},{"$f":"Import!M24532","v":"Select"},{"$f":"Import!M24732","v":"Select"},{"$f":"Import!M24932","v":0},{"$f":"Import!M25132","v":0}]
[null,16,{"$f":"Import!M24333","v":"Select"},{"$f":"Import!M24533","v":"Select"},{"$f":"Import!M24733","v":"Select"},{"$f":"Import!M24933","v":0},{"$f":"Import!M25133","v":0}]
[null,17,{"$f":"Import!M24334","v":"Select"},{"$f":"Import!M24534","v":"Select"},{"$f":"Import!M24734","v":"Select"},{"$f":"Import!M24934","v":0},{"$f":"Import!M25134","v":0}]
[null,18,{"$f":"Import!M24335","v":"Select"},{"$f":"Import!M24535","v":"Select"},{"$f":"Import!M24735","v":"Select"},{"$f":"Import!M24935","v":0},{"$f":"Import!M25135","v":0}]
[null,19,{"$f":"Import!M24336","v":"Select"},{"$f":"Import!M24536","v":"Select"},{"$f":"Import!M24736","v":"Select"},{"$f":"Import!M24936","v":0},{"$f":"Import!M25136","v":0}]
[null,20,{"$f":"Import!M24337","v":"Select"},{"$f":"Import!M24537","v":"Select"},{"$f":"Import!M24737","v":"Select"},{"$f":"Import!M24937","v":0},{"$f":"Import!M25137","v":0}]
[null,21,{"$f":"Import!M24338","v":"Select"},{"$f":"Import!M24538","v":"Select"},{"$f":"Import!M24738","v":"Select"},{"$f":"Import!M24938","v":0},{"$f":"Import!M25138","v":0}]
[null,22,{"$f":"Import!M24339","v":"Select"},{"$f":"Import!M24539","v":"Select"},{"$f":"Import!M24739","v":"Select"},{"$f":"Import!M24939","v":0},{"$f":"Import!M25139","v":0}]
[null,23,{"$f":"Import!M24340","v":"Select"},{"$f":"Import!M24540","v":"Select"},{"$f":"Import!M24740","v":"Select"},{"$f":"Import!M24940","v":0},{"$f":"Import!M25140","v":0}]
[null,24,{"$f":"Import!M24341","v":"Select"},{"$f":"Import!M24541","v":"Select"},{"$f":"Import!M24741","v":"Select"},{"$f":"Import!M24941","v":0},{"$f":"Import!M25141","v":0}]
[null,25,{"$f":"Import!M24342","v":"Select"},{"$f":"Import!M24542","v":"Select"},{"$f":"Import!M24742","v":"Select"},{"$f":"Import!M24942","v":0},{"$f":"Import!M25142","v":0}]
[null,26,{"$f":"Import!M24343","v":"Select"},{"$f":"Import!M24543","v":"Select"},{"$f":"Import!M24743","v":"Select"},{"$f":"Import!M24943","v":0},{"$f":"Import!M25143","v":0}]
[null,27,{"$f":"Import!M24344","v":"Select"},{"$f":"Import!M24544","v":"Select"},{"$f":"Import!M24744","v":"Select"},{"$f":"Import!M24944","v":0},{"$f":"Import!M25144","v":0}]
[null,28,{"$f":"Import!M24345","v":"Select"},{"$f":"Import!M24545","v":"Select"},{"$f":"Import!M24745","v":"Select"},{"$f":"Import!M24945","v":0},{"$f":"Import!M25145","v":0}]
[null,29,{"$f":"Import!M24346","v":"Select"},{"$f":"Import!M24546","v":"Select"},{"$f":"Import!M24746","v":"Select"},{"$f":"Import!M24946","v":0},{"$f":"Import!M25146","v":0}]
[null,30,{"$f":"Import!M24347","v":"Select"},{"$f":"Import!M24547","v":"Select"},{"$f":"Import!M24747","v":"Select"},{"$f":"Import!M24947","v":0},{"$f":"Import!M25147","v":0}]
[null,31,{"$f":"Import!M24348","v":"Select"},{"$f":"Import!M24548","v":"Select"},{"$f":"Import!M24748","v":"Select"},{"$f":"Import!M24948","v":0},{"$f":"Import!M25148","v":0}]
[null,32,{"$f":"Import!M24349","v":"Select"},{"$f":"Import!M24549","v":"Select"},{"$f":"Import!M24749","v":"Select"},{"$f":"Import!M24949","v":0},{"$f":"Import!M25149","v":0}]
[null,33,{"$f":"Import!M24350","v":"Select"},{"$f":"Import!M24550","v":"Select"},{"$f":"Import!M24750","v":"Select"},{"$f":"Import!M24950","v":0},{"$f":"Import!M25150","v":0}]
[null,34,{"$f":"Import!M24351","v":"Select"},{"$f":"Import!M24551","v":"Select"},{"$f":"Import!M24751","v":"Select"},{"$f":"Import!M24951","v":0},{"$f":"Import!M25151","v":0}]
[null,35,{"$f":"Import!M24352","v":"Select"},{"$f":"Import!M24552","v":"Select"},{"$f":"Import!M24752","v":"Select"},{"$f":"Import!M24952","v":0},{"$f":"Import!M25152","v":0}]
[null,36,{"$f":"Import!M24353","v":"Select"},{"$f":"Import!M24553","v":"Select"},{"$f":"Import!M24753","v":"Select"},{"$f":"Import!M24953","v":0},{"$f":"Import!M25153","v":0}]
[null,37,{"$f":"Import!M24354","v":"Select"},{"$f":"Import!M24554","v":"Select"},{"$f":"Import!M24754","v":"Select"},{"$f":"Import!M24954","v":0},{"$f":"Import!M25154","v":0}]
[null,38,{"$f":"Import!M24355","v":"Select"},{"$f":"Import!M24555","v":"Select"},{"$f":"Import!M24755","v":"Select"},{"$f":"Import!M24955","v":0},{"$f":"Import!M25155","v":0}]
[null,39,{"$f":"Import!M24356","v":"Select"},{"$f":"Import!M24556","v":"Select"},{"$f":"Import!M24756","v":"Select"},{"$f":"Import!M24956","v":0},{"$f":"Import!M25156","v":0}]
[null,40,{"$f":"Import!M24357","v":"Select"},{"$f":"Import!M24557","v":"Select"},{"$f":"Import!M24757","v":"Select"},{"$f":"Import!M24957","v":0},{"$f":"Import!M25157","v":0}]
[null,41,{"$f":"Import!M24358","v":"Select"},{"$f":"Import!M24558","v":"Select"},{"$f":"Import!M24758","v":"Select"},{"$f":"Import!M24958","v":0},{"$f":"Import!M25158","v":0}]
[null,42,{"$f":"Import!M24359","v":"Select"},{"$f":"Import!M24559","v":"Select"},{"$f":"Import!M24759","v":"Select"},{"$f":"Import!M24959","v":0},{"$f":"Import!M25159","v":0}]
[null,43,{"$f":"Import!M24360","v":"Select"},{"$f":"Import!M24560","v":"Select"},{"$f":"Import!M24760","v":"Select"},{"$f":"Import!M24960","v":0},{"$f":"Import!M25160","v":0}]
[null,44,{"$f":"Import!M24361","v":"Select"},{"$f":"Import!M24561","v":"Select"},{"$f":"Import!M24761","v":"Select"},{"$f":"Import!M24961","v":0},{"$f":"Import!M25161","v":0}]
[null,45,{"$f":"Import!M24362","v":"Select"},{"$f":"Import!M24562","v":"Select"},{"$f":"Import!M24762","v":"Select"},{"$f":"Import!M24962","v":0},{"$f":"Import!M25162","v":0}]
[null,46,{"$f":"Import!M24363","v":"Select"},{"$f":"Import!M24563","v":"Select"},{"$f":"Import!M24763","v":"Select"},{"$f":"Import!M24963","v":0},{"$f":"Import!M25163","v":0}]
[null,47,{"$f":"Import!M24364","v":"Select"},{"$f":"Import!M24564","v":"Select"},{"$f":"Import!M24764","v":"Select"},{"$f":"Import!M24964","v":0},{"$f":"Import!M25164","v":0}]
[null,48,{"$f":"Import!M24365","v":"Select"},{"$f":"Import!M24565","v":"Select"},{"$f":"Import!M24765","v":"Select"},{"$f":"Import!M24965","v":0},{"$f":"Import!M25165","v":0}]
[null,49,{"$f":"Import!M24366","v":"Select"},{"$f":"Import!M24566","v":"Select"},{"$f":"Import!M24766","v":"Select"},{"$f":"Import!M24966","v":0},{"$f":"Import!M25166","v":0}]
[null,50,{"$f":"Import!M24367","v":"Select"},{"$f":"Import!M24567","v":"Select"},{"$f":"Import!M24767","v":"Select"},{"$f":"Import!M24967","v":0},{"$f":"Import!M25167","v":0}]
[null,51,{"$f":"Import!M24368","v":"Select"},{"$f":"Import!M24568","v":"Select"},{"$f":"Import!M24768","v":"Select"},{"$f":"Import!M24968","v":0},{"$f":"Import!M25168","v":0}]
[null,52,{"$f":"Import!M24369","v":"Select"},{"$f":"Import!M24569","v":"Select"},{"$f":"Import!M24769","v":"Select"},{"$f":"Import!M24969","v":0},{"$f":"Import!M25169","v":0}]
[null,53,{"$f":"Import!M24370","v":"Select"},{"$f":"Import!M24570","v":"Select"},{"$f":"Import!M24770","v":"Select"},{"$f":"Import!M24970","v":0},{"$f":"Import!M25170","v":0}]
[null,54,{"$f":"Import!M24371","v":"Select"},{"$f":"Import!M24571","v":"Select"},{"$f":"Import!M24771","v":"Select"},{"$f":"Import!M24971","v":0},{"$f":"Import!M25171","v":0}]
[null,55,{"$f":"Import!M24372","v":"Select"},{"$f":"Import!M24572","v":"Select"},{"$f":"Import!M24772","v":"Select"},{"$f":"Import!M24972","v":0},{"$f":"Import!M25172","v":0}]
[null,56,{"$f":"Import!M24373","v":"Select"},{"$f":"Import!M24573","v":"Select"},{"$f":"Import!M24773","v":"Select"},{"$f":"Import!M24973","v":0},{"$f":"Import!M25173","v":0}]
[null,57,{"$f":"Import!M24374","v":"Select"},{"$f":"Import!M24574","v":"Select"},{"$f":"Import!M24774","v":"Select"},{"$f":"Import!M24974","v":0},{"$f":"Import!M25174","v":0}]
[null,58,{"$f":"Import!M24375","v":"Select"},{"$f":"Import!M24575","v":"Select"},{"$f":"Import!M24775","v":"Select"},{"$f":"Import!M24975","v":0},{"$f":"Import!M25175","v":0}]
[null,59,{"$f":"Import!M24376","v":"Select"},{"$f":"Import!M24576","v":"Select"},{"$f":"Import!M24776","v":"Select"},{"$f":"Import!M24976","v":0},{"$f":"Import!M25176","v":0}]
[null,60,{"$f":"Import!M24377","v":"Select"},{"$f":"Import!M24577","v":"Select"},{"$f":"Import!M24777","v":"Select"},{"$f":"Import!M24977","v":0},{"$f":"Import!M25177","v":0}]
[null,61,{"$f":"Import!M24378","v":"Select"},{"$f":"Import!M24578","v":"Select"},{"$f":"Import!M24778","v":"Select"},{"$f":"Import!M24978","v":0},{"$f":"Import!M25178","v":0}]
[null,62,{"$f":"Import!M24379","v":"Select"},{"$f":"Import!M24579","v":"Select"},{"$f":"Import!M24779","v":"Select"},{"$f":"Import!M24979","v":0},{"$f":"Import!M25179","v":0}]
[null,63,{"$f":"Import!M24380","v":"Select"},{"$f":"Import!M24580","v":"Select"},{"$f":"Import!M24780","v":"Select"},{"$f":"Import!M24980","v":0},{"$f":"Import!M25180","v":0}]
[null,64,{"$f":"Import!M24381","v":"Select"},{"$f":"Import!M24581","v":"Select"},{"$f":"Import!M24781","v":"Select"},{"$f":"Import!M24981","v":0},{"$f":"Import!M25181","v":0}]
[null,65,{"$f":"Import!M24382","v":"Select"},{"$f":"Import!M24582","v":"Select"},{"$f":"Import!M24782","v":"Select"},{"$f":"Import!M24982","v":0},{"$f":"Import!M25182","v":0}]
[null,66,{"$f":"Import!M24383","v":"Select"},{"$f":"Import!M24583","v":"Select"},{"$f":"Import!M24783","v":"Select"},{"$f":"Import!M24983","v":0},{"$f":"Import!M25183","v":0}]
[null,{"$f":"B692+1","v":67},{"$f":"Import!M24384","v":"Select"},{"$f":"Import!M24584","v":"Select"},{"$f":"Import!M24784","v":"Select"},{"$f":"Import!M24984","v":0},{"$f":"Import!M25184","v":0}]
[null,68,{"$f":"Import!M24385","v":"Select"},{"$f":"Import!M24585","v":"Select"},{"$f":"Import!M24785","v":"Select"},{"$f":"Import!M24985","v":0},{"$f":"Import!M25185","v":0}]
[null,69,{"$f":"Import!M24386","v":"Select"},{"$f":"Import!M24586","v":"Select"},{"$f":"Import!M24786","v":"Select"},{"$f":"Import!M24986","v":0},{"$f":"Import!M25186","v":0}]
[null,70,{"$f":"Import!M24387","v":"Select"},{"$f":"Import!M24587","v":"Select"},{"$f":"Import!M24787","v":"Select"},{"$f":"Import!M24987","v":0},{"$f":"Import!M25187","v":0}]
[null,71,{"$f":"Import!M24388","v":"Select"},{"$f":"Import!M24588","v":"Select"},{"$f":"Import!M24788","v":"Select"},{"$f":"Import!M24988","v":0},{"$f":"Import!M25188","v":0}]
[null,72,{"$f":"Import!M24389","v":"Select"},{"$f":"Import!M24589","v":"Select"},{"$f":"Import!M24789","v":"Select"},{"$f":"Import!M24989","v":0},{"$f":"Import!M25189","v":0}]
[null,73,{"$f":"Import!M24390","v":"Select"},{"$f":"Import!M24590","v":"Select"},{"$f":"Import!M24790","v":"Select"},{"$f":"Import!M24990","v":0},{"$f":"Import!M25190","v":0}]
[null,74,{"$f":"Import!M24391","v":"Select"},{"$f":"Import!M24591","v":"Select"},{"$f":"Import!M24791","v":"Select"},{"$f":"Import!M24991","v":0},{"$f":"Import!M25191","v":0}]
[null,75,{"$f":"Import!M24392","v":"Select"},{"$f":"Import!M24592","v":"Select"},{"$f":"Import!M24792","v":"Select"},{"$f":"Import!M24992","v":0},{"$f":"Import!M25192","v":0}]
[null,76,{"$f":"Import!M24393","v":"Select"},{"$f":"Import!M24593","v":"Select"},{"$f":"Import!M24793","v":"Select"},{"$f":"Import!M24993","v":0},{"$f":"Import!M25193","v":0}]
[null,77,{"$f":"Import!M24394","v":"Select"},{"$f":"Import!M24594","v":"Select"},{"$f":"Import!M24794","v":"Select"},{"$f":"Import!M24994","v":0},{"$f":"Import!M25194","v":0}]
[null,78,{"$f":"Import!M24395","v":"Select"},{"$f":"Import!M24595","v":"Select"},{"$f":"Import!M24795","v":"Select"},{"$f":"Import!M24995","v":0},{"$f":"Import!M25195","v":0}]
[null,79,{"$f":"Import!M24396","v":"Select"},{"$f":"Import!M24596","v":"Select"},{"$f":"Import!M24796","v":"Select"},{"$f":"Import!M24996","v":0},{"$f":"Import!M25196","v":0}]
[null,80,{"$f":"Import!M24397","v":"Select"},{"$f":"Import!M24597","v":"Select"},{"$f":"Import!M24797","v":"Select"},{"$f":"Import!M24997","v":0},{"$f":"Import!M25197","v":0}]
[null,81,{"$f":"Import!M24398","v":"Select"},{"$f":"Import!M24598","v":"Select"},{"$f":"Import!M24798","v":"Select"},{"$f":"Import!M24998","v":0},{"$f":"Import!M25198","v":0}]
[null,82,{"$f":"Import!M24399","v":"Select"},{"$f":"Import!M24599","v":"Select"},{"$f":"Import!M24799","v":"Select"},{"$f":"Import!M24999","v":0},{"$f":"Import!M25199","v":0}]
[null,83,{"$f":"Import!M24400","v":"Select"},{"$f":"Import!M24600","v":"Select"},{"$f":"Import!M24800","v":"Select"},{"$f":"Import!M25000","v":0},{"$f":"Import!M25200","v":0}]
[null,84,{"$f":"Import!M24401","v":"Select"},{"$f":"Import!M24601","v":"Select"},{"$f":"Import!M24801","v":"Select"},{"$f":"Import!M25001","v":0},{"$f":"Import!M25201","v":0}]
[null,85,{"$f":"Import!M24402","v":"Select"},{"$f":"Import!M24602","v":"Select"},{"$f":"Import!M24802","v":"Select"},{"$f":"Import!M25002","v":0},{"$f":"Import!M25202","v":0}]
[null,86,{"$f":"Import!M24403","v":"Select"},{"$f":"Import!M24603","v":"Select"},{"$f":"Import!M24803","v":"Select"},{"$f":"Import!M25003","v":0},{"$f":"Import!M25203","v":0}]
[null,87,{"$f":"Import!M24404","v":"Select"},{"$f":"Import!M24604","v":"Select"},{"$f":"Import!M24804","v":"Select"},{"$f":"Import!M25004","v":0},{"$f":"Import!M25204","v":0}]
[null,88,{"$f":"Import!M24405","v":"Select"},{"$f":"Import!M24605","v":"Select"},{"$f":"Import!M24805","v":"Select"},{"$f":"Import!M25005","v":0},{"$f":"Import!M25205","v":0}]
[null,89,{"$f":"Import!M24406","v":"Select"},{"$f":"Import!M24606","v":"Select"},{"$f":"Import!M24806","v":"Select"},{"$f":"Import!M25006","v":0},{"$f":"Import!M25206","v":0}]
[null,90,{"$f":"Import!M24407","v":"Select"},{"$f":"Import!M24607","v":"Select"},{"$f":"Import!M24807","v":"Select"},{"$f":"Import!M25007","v":0},{"$f":"Import!M25207","v":0}]
[null,91,{"$f":"Import!M24408","v":"Select"},{"$f":"Import!M24608","v":"Select"},{"$f":"Import!M24808","v":"Select"},{"$f":"Import!M25008","v":0},{"$f":"Import!M25208","v":0}]
[null,92,{"$f":"Import!M24409","v":"Select"},{"$f":"Import!M24609","v":"Select"},{"$f":"Import!M24809","v":"Select"},{"$f":"Import!M25009","v":0},{"$f":"Import!M25209","v":0}]
[null,93,{"$f":"Import!M24410","v":"Select"},{"$f":"Import!M24610","v":"Select"},{"$f":"Import!M24810","v":"Select"},{"$f":"Import!M25010","v":0},{"$f":"Import!M25210","v":0}]
[null,94,{"$f":"Import!M24411","v":"Select"},{"$f":"Import!M24611","v":"Select"},{"$f":"Import!M24811","v":"Select"},{"$f":"Import!M25011","v":0},{"$f":"Import!M25211","v":0}]
[null,95,{"$f":"Import!M24412","v":"Select"},{"$f":"Import!M24612","v":"Select"},{"$f":"Import!M24812","v":"Select"},{"$f":"Import!M25012","v":0},{"$f":"Import!M25212","v":0}]
[null,96,{"$f":"Import!M24413","v":"Select"},{"$f":"Import!M24613","v":"Select"},{"$f":"Import!M24813","v":"Select"},{"$f":"Import!M25013","v":0},{"$f":"Import!M25213","v":0}]
[null,97,{"$f":"Import!M24414","v":"Select"},{"$f":"Import!M24614","v":"Select"},{"$f":"Import!M24814","v":"Select"},{"$f":"Import!M25014","v":0},{"$f":"Import!M25214","v":0}]
[null,98,{"$f":"Import!M24415","v":"Select"},{"$f":"Import!M24615","v":"Select"},{"$f":"Import!M24815","v":"Select"},{"$f":"Import!M25015","v":0},{"$f":"Import!M25215","v":0}]
[null,99,{"$f":"Import!M24416","v":"Select"},{"$f":"Import!M24616","v":"Select"},{"$f":"Import!M24816","v":"Select"},{"$f":"Import!M25016","v":0},{"$f":"Import!M25216","v":0}]
[null,100,{"$f":"Import!M24417","v":"Select"},{"$f":"Import!M24617","v":"Select"},{"$f":"Import!M24817","v":"Select"},{"$f":"Import!M25017","v":0},{"$f":"Import!M25217","v":0}]
[null,101,{"$f":"Import!M24418","v":"Select"},{"$f":"Import!M24618","v":"Select"},{"$f":"Import!M24818","v":"Select"},{"$f":"Import!M25018","v":0},{"$f":"Import!M25218","v":0}]
[null,102,{"$f":"Import!M24419","v":"Select"},{"$f":"Import!M24619","v":"Select"},{"$f":"Import!M24819","v":"Select"},{"$f":"Import!M25019","v":0},{"$f":"Import!M25219","v":0}]
[null,103,{"$f":"Import!M24420","v":"Select"},{"$f":"Import!M24620","v":"Select"},{"$f":"Import!M24820","v":"Select"},{"$f":"Import!M25020","v":0},{"$f":"Import!M25220","v":0}]
[null,104,{"$f":"Import!M24421","v":"Select"},{"$f":"Import!M24621","v":"Select"},{"$f":"Import!M24821","v":"Select"},{"$f":"Import!M25021","v":0},{"$f":"Import!M25221","v":0}]
[null,105,{"$f":"Import!M24422","v":"Select"},{"$f":"Import!M24622","v":"Select"},{"$f":"Import!M24822","v":"Select"},{"$f":"Import!M25022","v":0},{"$f":"Import!M25222","v":0}]
[null,106,{"$f":"Import!M24423","v":"Select"},{"$f":"Import!M24623","v":"Select"},{"$f":"Import!M24823","v":"Select"},{"$f":"Import!M25023","v":0},{"$f":"Import!M25223","v":0}]
[null,107,{"$f":"Import!M24424","v":"Select"},{"$f":"Import!M24624","v":"Select"},{"$f":"Import!M24824","v":"Select"},{"$f":"Import!M25024","v":0},{"$f":"Import!M25224","v":0}]
[null,108,{"$f":"Import!M24425","v":"Select"},{"$f":"Import!M24625","v":"Select"},{"$f":"Import!M24825","v":"Select"},{"$f":"Import!M25025","v":0},{"$f":"Import!M25225","v":0}]
[null,109,{"$f":"Import!M24426","v":"Select"},{"$f":"Import!M24626","v":"Select"},{"$f":"Import!M24826","v":"Select"},{"$f":"Import!M25026","v":0},{"$f":"Import!M25226","v":0}]
[null,110,{"$f":"Import!M24427","v":"Select"},{"$f":"Import!M24627","v":"Select"},{"$f":"Import!M24827","v":"Select"},{"$f":"Import!M25027","v":0},{"$f":"Import!M25227","v":0}]
[null,111,{"$f":"Import!M24428","v":"Select"},{"$f":"Import!M24628","v":"Select"},{"$f":"Import!M24828","v":"Select"},{"$f":"Import!M25028","v":0},{"$f":"Import!M25228","v":0}]
[null,112,{"$f":"Import!M24429","v":"Select"},{"$f":"Import!M24629","v":"Select"},{"$f":"Import!M24829","v":"Select"},{"$f":"Import!M25029","v":0},{"$f":"Import!M25229","v":0}]
[null,113,{"$f":"Import!M24430","v":"Select"},{"$f":"Import!M24630","v":"Select"},{"$f":"Import!M24830","v":"Select"},{"$f":"Import!M25030","v":0},{"$f":"Import!M25230","v":0}]
[null,114,{"$f":"Import!M24431","v":"Select"},{"$f":"Import!M24631","v":"Select"},{"$f":"Import!M24831","v":"Select"},{"$f":"Import!M25031","v":0},{"$f":"Import!M25231","v":0}]
[null,115,{"$f":"Import!M24432","v":"Select"},{"$f":"Import!M24632","v":"Select"},{"$f":"Import!M24832","v":"Select"},{"$f":"Import!M25032","v":0},{"$f":"Import!M25232","v":0}]
[null,116,{"$f":"Import!M24433","v":"Select"},{"$f":"Import!M24633","v":"Select"},{"$f":"Import!M24833","v":"Select"},{"$f":"Import!M25033","v":0},{"$f":"Import!M25233","v":0}]
[null,117,{"$f":"Import!M24434","v":"Select"},{"$f":"Import!M24634","v":"Select"},{"$f":"Import!M24834","v":"Select"},{"$f":"Import!M25034","v":0},{"$f":"Import!M25234","v":0}]
[null,118,{"$f":"Import!M24435","v":"Select"},{"$f":"Import!M24635","v":"Select"},{"$f":"Import!M24835","v":"Select"},{"$f":"Import!M25035","v":0},{"$f":"Import!M25235","v":0}]
[null,119,{"$f":"Import!M24436","v":"Select"},{"$f":"Import!M24636","v":"Select"},{"$f":"Import!M24836","v":"Select"},{"$f":"Import!M25036","v":0},{"$f":"Import!M25236","v":0}]
[null,120,{"$f":"Import!M24437","v":"Select"},{"$f":"Import!M24637","v":"Select"},{"$f":"Import!M24837","v":"Select"},{"$f":"Import!M25037","v":0},{"$f":"Import!M25237","v":0}]
[null,121,{"$f":"Import!M24438","v":"Select"},{"$f":"Import!M24638","v":"Select"},{"$f":"Import!M24838","v":"Select"},{"$f":"Import!M25038","v":0},{"$f":"Import!M25238","v":0}]
[null,122,{"$f":"Import!M24439","v":"Select"},{"$f":"Import!M24639","v":"Select"},{"$f":"Import!M24839","v":"Select"},{"$f":"Import!M25039","v":0},{"$f":"Import!M25239","v":0}]
[null,123,{"$f":"Import!M24440","v":"Select"},{"$f":"Import!M24640","v":"Select"},{"$f":"Import!M24840","v":"Select"},{"$f":"Import!M25040","v":0},{"$f":"Import!M25240","v":0}]
[null,124,{"$f":"Import!M24441","v":"Select"},{"$f":"Import!M24641","v":"Select"},{"$f":"Import!M24841","v":"Select"},{"$f":"Import!M25041","v":0},{"$f":"Import!M25241","v":0}]
[null,125,{"$f":"Import!M24442","v":"Select"},{"$f":"Import!M24642","v":"Select"},{"$f":"Import!M24842","v":"Select"},{"$f":"Import!M25042","v":0},{"$f":"Import!M25242","v":0}]
[null,126,{"$f":"Import!M24443","v":"Select"},{"$f":"Import!M24643","v":"Select"},{"$f":"Import!M24843","v":"Select"},{"$f":"Import!M25043","v":0},{"$f":"Import!M25243","v":0}]
[null,127,{"$f":"Import!M24444","v":"Select"},{"$f":"Import!M24644","v":"Select"},{"$f":"Import!M24844","v":"Select"},{"$f":"Import!M25044","v":0},{"$f":"Import!M25244","v":0}]
[null,128,{"$f":"Import!M24445","v":"Select"},{"$f":"Import!M24645","v":"Select"},{"$f":"Import!M24845","v":"Select"},{"$f":"Import!M25045","v":0},{"$f":"Import!M25245","v":0}]
[null,129,{"$f":"Import!M24446","v":"Select"},{"$f":"Import!M24646","v":"Select"},{"$f":"Import!M24846","v":"Select"},{"$f":"Import!M25046","v":0},{"$f":"Import!M25246","v":0}]
[null,130,{"$f":"Import!M24447","v":"Select"},{"$f":"Import!M24647","v":"Select"},{"$f":"Import!M24847","v":"Select"},{"$f":"Import!M25047","v":0},{"$f":"Import!M25247","v":0}]
[null,{"$f":"B756+1","v":131},{"$f":"Import!M24448","v":"Select"},{"$f":"Import!M24648","v":"Select"},{"$f":"Import!M24848","v":"Select"},{"$f":"Import!M25048","v":0},{"$f":"Import!M25248","v":0}]
[null,132,{"$f":"Import!M24449","v":"Select"},{"$f":"Import!M24649","v":"Select"},{"$f":"Import!M24849","v":"Select"},{"$f":"Import!M25049","v":0},{"$f":"Import!M25249","v":0}]
[null,133,{"$f":"Import!M24450","v":"Select"},{"$f":"Import!M24650","v":"Select"},{"$f":"Import!M24850","v":"Select"},{"$f":"Import!M25050","v":0},{"$f":"Import!M25250","v":0}]
[null,134,{"$f":"Import!M24451","v":"Select"},{"$f":"Import!M24651","v":"Select"},{"$f":"Import!M24851","v":"Select"},{"$f":"Import!M25051","v":0},{"$f":"Import!M25251","v":0}]
[null,135,{"$f":"Import!M24452","v":"Select"},{"$f":"Import!M24652","v":"Select"},{"$f":"Import!M24852","v":"Select"},{"$f":"Import!M25052","v":0},{"$f":"Import!M25252","v":0}]
[null,136,{"$f":"Import!M24453","v":"Select"},{"$f":"Import!M24653","v":"Select"},{"$f":"Import!M24853","v":"Select"},{"$f":"Import!M25053","v":0},{"$f":"Import!M25253","v":0}]
[null,137,{"$f":"Import!M24454","v":"Select"},{"$f":"Import!M24654","v":"Select"},{"$f":"Import!M24854","v":"Select"},{"$f":"Import!M25054","v":0},{"$f":"Import!M25254","v":0}]
[null,138,{"$f":"Import!M24455","v":"Select"},{"$f":"Import!M24655","v":"Select"},{"$f":"Import!M24855","v":"Select"},{"$f":"Import!M25055","v":0},{"$f":"Import!M25255","v":0}]
[null,139,{"$f":"Import!M24456","v":"Select"},{"$f":"Import!M24656","v":"Select"},{"$f":"Import!M24856","v":"Select"},{"$f":"Import!M25056","v":0},{"$f":"Import!M25256","v":0}]
[null,140,{"$f":"Import!M24457","v":"Select"},{"$f":"Import!M24657","v":"Select"},{"$f":"Import!M24857","v":"Select"},{"$f":"Import!M25057","v":0},{"$f":"Import!M25257","v":0}]
[null,141,{"$f":"Import!M24458","v":"Select"},{"$f":"Import!M24658","v":"Select"},{"$f":"Import!M24858","v":"Select"},{"$f":"Import!M25058","v":0},{"$f":"Import!M25258","v":0}]
[null,142,{"$f":"Import!M24459","v":"Select"},{"$f":"Import!M24659","v":"Select"},{"$f":"Import!M24859","v":"Select"},{"$f":"Import!M25059","v":0},{"$f":"Import!M25259","v":0}]
[null,143,{"$f":"Import!M24460","v":"Select"},{"$f":"Import!M24660","v":"Select"},{"$f":"Import!M24860","v":"Select"},{"$f":"Import!M25060","v":0},{"$f":"Import!M25260","v":0}]
[null,144,{"$f":"Import!M24461","v":"Select"},{"$f":"Import!M24661","v":"Select"},{"$f":"Import!M24861","v":"Select"},{"$f":"Import!M25061","v":0},{"$f":"Import!M25261","v":0}]
[null,145,{"$f":"Import!M24462","v":"Select"},{"$f":"Import!M24662","v":"Select"},{"$f":"Import!M24862","v":"Select"},{"$f":"Import!M25062","v":0},{"$f":"Import!M25262","v":0}]
[null,146,{"$f":"Import!M24463","v":"Select"},{"$f":"Import!M24663","v":"Select"},{"$f":"Import!M24863","v":"Select"},{"$f":"Import!M25063","v":0},{"$f":"Import!M25263","v":0}]
[null,147,{"$f":"Import!M24464","v":"Select"},{"$f":"Import!M24664","v":"Select"},{"$f":"Import!M24864","v":"Select"},{"$f":"Import!M25064","v":0},{"$f":"Import!M25264","v":0}]
[null,148,{"$f":"Import!M24465","v":"Select"},{"$f":"Import!M24665","v":"Select"},{"$f":"Import!M24865","v":"Select"},{"$f":"Import!M25065","v":0},{"$f":"Import!M25265","v":0}]
[null,149,{"$f":"Import!M24466","v":"Select"},{"$f":"Import!M24666","v":"Select"},{"$f":"Import!M24866","v":"Select"},{"$f":"Import!M25066","v":0},{"$f":"Import!M25266","v":0}]
[null,150,{"$f":"Import!M24467","v":"Select"},{"$f":"Import!M24667","v":"Select"},{"$f":"Import!M24867","v":"Select"},{"$f":"Import!M25067","v":0},{"$f":"Import!M25267","v":0}]
[null,151,{"$f":"Import!M24468","v":"Select"},{"$f":"Import!M24668","v":"Select"},{"$f":"Import!M24868","v":"Select"},{"$f":"Import!M25068","v":0},{"$f":"Import!M25268","v":0}]
[null,152,{"$f":"Import!M24469","v":"Select"},{"$f":"Import!M24669","v":"Select"},{"$f":"Import!M24869","v":"Select"},{"$f":"Import!M25069","v":0},{"$f":"Import!M25269","v":0}]
[null,153,{"$f":"Import!M24470","v":"Select"},{"$f":"Import!M24670","v":"Select"},{"$f":"Import!M24870","v":"Select"},{"$f":"Import!M25070","v":0},{"$f":"Import!M25270","v":0}]
[null,154,{"$f":"Import!M24471","v":"Select"},{"$f":"Import!M24671","v":"Select"},{"$f":"Import!M24871","v":"Select"},{"$f":"Import!M25071","v":0},{"$f":"Import!M25271","v":0}]
[null,155,{"$f":"Import!M24472","v":"Select"},{"$f":"Import!M24672","v":"Select"},{"$f":"Import!M24872","v":"Select"},{"$f":"Import!M25072","v":0},{"$f":"Import!M25272","v":0}]
[null,156,{"$f":"Import!M24473","v":"Select"},{"$f":"Import!M24673","v":"Select"},{"$f":"Import!M24873","v":"Select"},{"$f":"Import!M25073","v":0},{"$f":"Import!M25273","v":0}]
[null,157,{"$f":"Import!M24474","v":"Select"},{"$f":"Import!M24674","v":"Select"},{"$f":"Import!M24874","v":"Select"},{"$f":"Import!M25074","v":0},{"$f":"Import!M25274","v":0}]
[null,158,{"$f":"Import!M24475","v":"Select"},{"$f":"Import!M24675","v":"Select"},{"$f":"Import!M24875","v":"Select"},{"$f":"Import!M25075","v":0},{"$f":"Import!M25275","v":0}]
[null,159,{"$f":"Import!M24476","v":"Select"},{"$f":"Import!M24676","v":"Select"},{"$f":"Import!M24876","v":"Select"},{"$f":"Import!M25076","v":0},{"$f":"Import!M25276","v":0}]
[null,160,{"$f":"Import!M24477","v":"Select"},{"$f":"Import!M24677","v":"Select"},{"$f":"Import!M24877","v":"Select"},{"$f":"Import!M25077","v":0},{"$f":"Import!M25277","v":0}]
[null,161,{"$f":"Import!M24478","v":"Select"},{"$f":"Import!M24678","v":"Select"},{"$f":"Import!M24878","v":"Select"},{"$f":"Import!M25078","v":0},{"$f":"Import!M25278","v":0}]
[null,162,{"$f":"Import!M24479","v":"Select"},{"$f":"Import!M24679","v":"Select"},{"$f":"Import!M24879","v":"Select"},{"$f":"Import!M25079","v":0},{"$f":"Import!M25279","v":0}]
[null,163,{"$f":"Import!M24480","v":"Select"},{"$f":"Import!M24680","v":"Select"},{"$f":"Import!M24880","v":"Select"},{"$f":"Import!M25080","v":0},{"$f":"Import!M25280","v":0}]
[null,164,{"$f":"Import!M24481","v":"Select"},{"$f":"Import!M24681","v":"Select"},{"$f":"Import!M24881","v":"Select"},{"$f":"Import!M25081","v":0},{"$f":"Import!M25281","v":0}]
[null,165,{"$f":"Import!M24482","v":"Select"},{"$f":"Import!M24682","v":"Select"},{"$f":"Import!M24882","v":"Select"},{"$f":"Import!M25082","v":0},{"$f":"Import!M25282","v":0}]
[null,166,{"$f":"Import!M24483","v":"Select"},{"$f":"Import!M24683","v":"Select"},{"$f":"Import!M24883","v":"Select"},{"$f":"Import!M25083","v":0},{"$f":"Import!M25283","v":0}]
[null,167,{"$f":"Import!M24484","v":"Select"},{"$f":"Import!M24684","v":"Select"},{"$f":"Import!M24884","v":"Select"},{"$f":"Import!M25084","v":0},{"$f":"Import!M25284","v":0}]
[null,168,{"$f":"Import!M24485","v":"Select"},{"$f":"Import!M24685","v":"Select"},{"$f":"Import!M24885","v":"Select"},{"$f":"Import!M25085","v":0},{"$f":"Import!M25285","v":0}]
[null,169,{"$f":"Import!M24486","v":"Select"},{"$f":"Import!M24686","v":"Select"},{"$f":"Import!M24886","v":"Select"},{"$f":"Import!M25086","v":0},{"$f":"Import!M25286","v":0}]
[null,170,{"$f":"Import!M24487","v":"Select"},{"$f":"Import!M24687","v":"Select"},{"$f":"Import!M24887","v":"Select"},{"$f":"Import!M25087","v":0},{"$f":"Import!M25287","v":0}]
[null,171,{"$f":"Import!M24488","v":"Select"},{"$f":"Import!M24688","v":"Select"},{"$f":"Import!M24888","v":"Select"},{"$f":"Import!M25088","v":0},{"$f":"Import!M25288","v":0}]
[null,172,{"$f":"Import!M24489","v":"Select"},{"$f":"Import!M24689","v":"Select"},{"$f":"Import!M24889","v":"Select"},{"$f":"Import!M25089","v":0},{"$f":"Import!M25289","v":0}]
[null,173,{"$f":"Import!M24490","v":"Select"},{"$f":"Import!M24690","v":"Select"},{"$f":"Import!M24890","v":"Select"},{"$f":"Import!M25090","v":0},{"$f":"Import!M25290","v":0}]
[null,174,{"$f":"Import!M24491","v":"Select"},{"$f":"Import!M24691","v":"Select"},{"$f":"Import!M24891","v":"Select"},{"$f":"Import!M25091","v":0},{"$f":"Import!M25291","v":0}]
[null,175,{"$f":"Import!M24492","v":"Select"},{"$f":"Import!M24692","v":"Select"},{"$f":"Import!M24892","v":"Select"},{"$f":"Import!M25092","v":0},{"$f":"Import!M25292","v":0}]
[null,176,{"$f":"Import!M24493","v":"Select"},{"$f":"Import!M24693","v":"Select"},{"$f":"Import!M24893","v":"Select"},{"$f":"Import!M25093","v":0},{"$f":"Import!M25293","v":0}]
[null,177,{"$f":"Import!M24494","v":"Select"},{"$f":"Import!M24694","v":"Select"},{"$f":"Import!M24894","v":"Select"},{"$f":"Import!M25094","v":0},{"$f":"Import!M25294","v":0}]
[null,178,{"$f":"Import!M24495","v":"Select"},{"$f":"Import!M24695","v":"Select"},{"$f":"Import!M24895","v":"Select"},{"$f":"Import!M25095","v":0},{"$f":"Import!M25295","v":0}]
[null,179,{"$f":"Import!M24496","v":"Select"},{"$f":"Import!M24696","v":"Select"},{"$f":"Import!M24896","v":"Select"},{"$f":"Import!M25096","v":0},{"$f":"Import!M25296","v":0}]
[null,180,{"$f":"Import!M24497","v":"Select"},{"$f":"Import!M24697","v":"Select"},{"$f":"Import!M24897","v":"Select"},{"$f":"Import!M25097","v":0},{"$f":"Import!M25297","v":0}]
[null,181,{"$f":"Import!M24498","v":"Select"},{"$f":"Import!M24698","v":"Select"},{"$f":"Import!M24898","v":"Select"},{"$f":"Import!M25098","v":0},{"$f":"Import!M25298","v":0}]
[null,182,{"$f":"Import!M24499","v":"Select"},{"$f":"Import!M24699","v":"Select"},{"$f":"Import!M24899","v":"Select"},{"$f":"Import!M25099","v":0},{"$f":"Import!M25299","v":0}]
[null,183,{"$f":"Import!M24500","v":"Select"},{"$f":"Import!M24700","v":"Select"},{"$f":"Import!M24900","v":"Select"},{"$f":"Import!M25100","v":0},{"$f":"Import!M25300","v":0}]
[null,184,{"$f":"Import!M24501","v":"Select"},{"$f":"Import!M24701","v":"Select"},{"$f":"Import!M24901","v":"Select"},{"$f":"Import!M25101","v":0},{"$f":"Import!M25301","v":0}]
[null,185,{"$f":"Import!M24502","v":"Select"},{"$f":"Import!M24702","v":"Select"},{"$f":"Import!M24902","v":"Select"},{"$f":"Import!M25102","v":0},{"$f":"Import!M25302","v":0}]
[null,186,{"$f":"Import!M24503","v":"Select"},{"$f":"Import!M24703","v":"Select"},{"$f":"Import!M24903","v":"Select"},{"$f":"Import!M25103","v":0},{"$f":"Import!M25303","v":0}]
[null,187,{"$f":"Import!M24504","v":"Select"},{"$f":"Import!M24704","v":"Select"},{"$f":"Import!M24904","v":"Select"},{"$f":"Import!M25104","v":0},{"$f":"Import!M25304","v":0}]
[null,188,{"$f":"Import!M24505","v":"Select"},{"$f":"Import!M24705","v":"Select"},{"$f":"Import!M24905","v":"Select"},{"$f":"Import!M25105","v":0},{"$f":"Import!M25305","v":0}]
[null,189,{"$f":"Import!M24506","v":"Select"},{"$f":"Import!M24706","v":"Select"},{"$f":"Import!M24906","v":"Select"},{"$f":"Import!M25106","v":0},{"$f":"Import!M25306","v":0}]
[null,190,{"$f":"Import!M24507","v":"Select"},{"$f":"Import!M24707","v":"Select"},{"$f":"Import!M24907","v":"Select"},{"$f":"Import!M25107","v":0},{"$f":"Import!M25307","v":0}]
[null,191,{"$f":"Import!M24508","v":"Select"},{"$f":"Import!M24708","v":"Select"},{"$f":"Import!M24908","v":"Select"},{"$f":"Import!M25108","v":0},{"$f":"Import!M25308","v":0}]
[null,192,{"$f":"Import!M24509","v":"Select"},{"$f":"Import!M24709","v":"Select"},{"$f":"Import!M24909","v":"Select"},{"$f":"Import!M25109","v":0},{"$f":"Import!M25309","v":0}]
[null,193,{"$f":"Import!M24510","v":"Select"},{"$f":"Import!M24710","v":"Select"},{"$f":"Import!M24910","v":"Select"},{"$f":"Import!M25110","v":0},{"$f":"Import!M25310","v":0}]
[null,194,{"$f":"Import!M24511","v":"Select"},{"$f":"Import!M24711","v":"Select"},{"$f":"Import!M24911","v":"Select"},{"$f":"Import!M25111","v":0},{"$f":"Import!M25311","v":0}]
[null,{"$f":"B820+1","v":195},{"$f":"Import!M24512","v":"Select"},{"$f":"Import!M24712","v":"Select"},{"$f":"Import!M24912","v":"Select"},{"$f":"Import!M25112","v":0},{"$f":"Import!M25312","v":0}]
[null,196,{"$f":"Import!M24513","v":"Select"},{"$f":"Import!M24713","v":"Select"},{"$f":"Import!M24913","v":"Select"},{"$f":"Import!M25113","v":0},{"$f":"Import!M25313","v":0}]
[null,197,{"$f":"Import!M24514","v":"Select"},{"$f":"Import!M24714","v":"Select"},{"$f":"Import!M24914","v":"Select"},{"$f":"Import!M25114","v":0},{"$f":"Import!M25314","v":0}]
[null,198,{"$f":"Import!M24515","v":"Select"},{"$f":"Import!M24715","v":"Select"},{"$f":"Import!M24915","v":"Select"},{"$f":"Import!M25115","v":0},{"$f":"Import!M25315","v":0}]
[null,199,{"$f":"Import!M24516","v":"Select"},{"$f":"Import!M24716","v":"Select"},{"$f":"Import!M24916","v":"Select"},{"$f":"Import!M25116","v":0},{"$f":"Import!M25316","v":0}]
[null,200,{"$f":"Import!M24517","v":"Select"},{"$f":"Import!M24717","v":"Select"},{"$f":"Import!M24917","v":"Select"},{"$f":"Import!M25117","v":0},{"$f":"Import!M25317","v":0}]
[]
[null,null,null,null,null,{"$f":"SUM(F627:F826)","v":0}]
[]
[null,"(C) ASSET-BACKED AND STRUCTURED SECURITIES"]
[]
[null,null,"Enter # of Asset Types",{"$f":"Import!M25318","v":0}]
[null,null,null,null,{"$f":"YEAR($C$3)","v":2023},2023,"Weighted"]
[null,"Asset Type","Currency","BSCR Rating","Nominal Amount","Fair Value","Average YTM","Effective Duration","Comments"]
[1,{"$f":"Import!M25319","v":"Select"},{"$f":"Import!M25469","v":"Select"},{"$f":"Import!M25619","v":"Select"},{"$f":"Import!M25769","v":0},{"$f":"Import!M25919","v":0},{"$f":"Import!M26069","v":0},{"$f":"Import!M26219","v":0},{"$f":"Import!M26369","v":0}]
[{"$f":"A835+1","v":2},{"$f":"Import!M25320","v":"Select"},{"$f":"Import!M25470","v":"Select"},{"$f":"Import!M25620","v":"Select"},{"$f":"Import!M25770","v":0},{"$f":"Import!M25920","v":0},{"$f":"Import!M26070","v":0},{"$f":"Import!M26220","v":0},{"$f":"Import!M26370","v":0}]
[{"$f":"A836+1","v":3},{"$f":"Import!M25321","v":"Select"},{"$f":"Import!M25471","v":"Select"},{"$f":"Import!M25621","v":"Select"},{"$f":"Import!M25771","v":0},{"$f":"Import!M25921","v":0},{"$f":"Import!M26071","v":0},{"$f":"Import!M26221","v":0},{"$f":"Import!M26371","v":0}]
[4,{"$f":"Import!M25322","v":"Select"},{"$f":"Import!M25472","v":"Select"},{"$f":"Import!M25622","v":"Select"},{"$f":"Import!M25772","v":0},{"$f":"Import!M25922","v":0},{"$f":"Import!M26072","v":0},{"$f":"Import!M26222","v":0},{"$f":"Import!M26372","v":0}]
[5,{"$f":"Import!M25323","v":"Select"},{"$f":"Import!M25473","v":"Select"},{"$f":"Import!M25623","v":"Select"},{"$f":"Import!M25773","v":0},{"$f":"Import!M25923","v":0},{"$f":"Import!M26073","v":0},{"$f":"Import!M26223","v":0},{"$f":"Import!M26373","v":0}]
[6,{"$f":"Import!M25324","v":"Select"},{"$f":"Import!M25474","v":"Select"},{"$f":"Import!M25624","v":"Select"},{"$f":"Import!M25774","v":0},{"$f":"Import!M25924","v":0},{"$f":"Import!M26074","v":0},{"$f":"Import!M26224","v":0},{"$f":"Import!M26374","v":0}]
[7,{"$f":"Import!M25325","v":"Select"},{"$f":"Import!M25475","v":"Select"},{"$f":"Import!M25625","v":"Select"},{"$f":"Import!M25775","v":0},{"$f":"Import!M25925","v":0},{"$f":"Import!M26075","v":0},{"$f":"Import!M26225","v":0},{"$f":"Import!M26375","v":0}]
[8,{"$f":"Import!M25326","v":"Select"},{"$f":"Import!M25476","v":"Select"},{"$f":"Import!M25626","v":"Select"},{"$f":"Import!M25776","v":0},{"$f":"Import!M25926","v":0},{"$f":"Import!M26076","v":0},{"$f":"Import!M26226","v":0},{"$f":"Import!M26376","v":0}]
[9,{"$f":"Import!M25327","v":"Select"},{"$f":"Import!M25477","v":"Select"},{"$f":"Import!M25627","v":"Select"},{"$f":"Import!M25777","v":0},{"$f":"Import!M25927","v":0},{"$f":"Import!M26077","v":0},{"$f":"Import!M26227","v":0},{"$f":"Import!M26377","v":0}]
[10,{"$f":"Import!M25328","v":"Select"},{"$f":"Import!M25478","v":"Select"},{"$f":"Import!M25628","v":"Select"},{"$f":"Import!M25778","v":0},{"$f":"Import!M25928","v":0},{"$f":"Import!M26078","v":0},{"$f":"Import!M26228","v":0},{"$f":"Import!M26378","v":0}]
[11,{"$f":"Import!M25329","v":"Select"},{"$f":"Import!M25479","v":"Select"},{"$f":"Import!M25629","v":"Select"},{"$f":"Import!M25779","v":0},{"$f":"Import!M25929","v":0},{"$f":"Import!M26079","v":0},{"$f":"Import!M26229","v":0},{"$f":"Import!M26379","v":0}]
[12,{"$f":"Import!M25330","v":"Select"},{"$f":"Import!M25480","v":"Select"},{"$f":"Import!M25630","v":"Select"},{"$f":"Import!M25780","v":0},{"$f":"Import!M25930","v":0},{"$f":"Import!M26080","v":0},{"$f":"Import!M26230","v":0},{"$f":"Import!M26380","v":0}]
[13,{"$f":"Import!M25331","v":"Select"},{"$f":"Import!M25481","v":"Select"},{"$f":"Import!M25631","v":"Select"},{"$f":"Import!M25781","v":0},{"$f":"Import!M25931","v":0},{"$f":"Import!M26081","v":0},{"$f":"Import!M26231","v":0},{"$f":"Import!M26381","v":0}]
[14,{"$f":"Import!M25332","v":"Select"},{"$f":"Import!M25482","v":"Select"},{"$f":"Import!M25632","v":"Select"},{"$f":"Import!M25782","v":0},{"$f":"Import!M25932","v":0},{"$f":"Import!M26082","v":0},{"$f":"Import!M26232","v":0},{"$f":"Import!M26382","v":0}]
[15,{"$f":"Import!M25333","v":"Select"},{"$f":"Import!M25483","v":"Select"},{"$f":"Import!M25633","v":"Select"},{"$f":"Import!M25783","v":0},{"$f":"Import!M25933","v":0},{"$f":"Import!M26083","v":0},{"$f":"Import!M26233","v":0},{"$f":"Import!M26383","v":0}]
[16,{"$f":"Import!M25334","v":"Select"},{"$f":"Import!M25484","v":"Select"},{"$f":"Import!M25634","v":"Select"},{"$f":"Import!M25784","v":0},{"$f":"Import!M25934","v":0},{"$f":"Import!M26084","v":0},{"$f":"Import!M26234","v":0},{"$f":"Import!M26384","v":0}]
[17,{"$f":"Import!M25335","v":"Select"},{"$f":"Import!M25485","v":"Select"},{"$f":"Import!M25635","v":"Select"},{"$f":"Import!M25785","v":0},{"$f":"Import!M25935","v":0},{"$f":"Import!M26085","v":0},{"$f":"Import!M26235","v":0},{"$f":"Import!M26385","v":0}]
[18,{"$f":"Import!M25336","v":"Select"},{"$f":"Import!M25486","v":"Select"},{"$f":"Import!M25636","v":"Select"},{"$f":"Import!M25786","v":0},{"$f":"Import!M25936","v":0},{"$f":"Import!M26086","v":0},{"$f":"Import!M26236","v":0},{"$f":"Import!M26386","v":0}]
[19,{"$f":"Import!M25337","v":"Select"},{"$f":"Import!M25487","v":"Select"},{"$f":"Import!M25637","v":"Select"},{"$f":"Import!M25787","v":0},{"$f":"Import!M25937","v":0},{"$f":"Import!M26087","v":0},{"$f":"Import!M26237","v":0},{"$f":"Import!M26387","v":0}]
[20,{"$f":"Import!M25338","v":"Select"},{"$f":"Import!M25488","v":"Select"},{"$f":"Import!M25638","v":"Select"},{"$f":"Import!M25788","v":0},{"$f":"Import!M25938","v":0},{"$f":"Import!M26088","v":0},{"$f":"Import!M26238","v":0},{"$f":"Import!M26388","v":0}]
[21,{"$f":"Import!M25339","v":"Select"},{"$f":"Import!M25489","v":"Select"},{"$f":"Import!M25639","v":"Select"},{"$f":"Import!M25789","v":0},{"$f":"Import!M25939","v":0},{"$f":"Import!M26089","v":0},{"$f":"Import!M26239","v":0},{"$f":"Import!M26389","v":0}]
[22,{"$f":"Import!M25340","v":"Select"},{"$f":"Import!M25490","v":"Select"},{"$f":"Import!M25640","v":"Select"},{"$f":"Import!M25790","v":0},{"$f":"Import!M25940","v":0},{"$f":"Import!M26090","v":0},{"$f":"Import!M26240","v":0},{"$f":"Import!M26390","v":0}]
[23,{"$f":"Import!M25341","v":"Select"},{"$f":"Import!M25491","v":"Select"},{"$f":"Import!M25641","v":"Select"},{"$f":"Import!M25791","v":0},{"$f":"Import!M25941","v":0},{"$f":"Import!M26091","v":0},{"$f":"Import!M26241","v":0},{"$f":"Import!M26391","v":0}]
[24,{"$f":"Import!M25342","v":"Select"},{"$f":"Import!M25492","v":"Select"},{"$f":"Import!M25642","v":"Select"},{"$f":"Import!M25792","v":0},{"$f":"Import!M25942","v":0},{"$f":"Import!M26092","v":0},{"$f":"Import!M26242","v":0},{"$f":"Import!M26392","v":0}]
[25,{"$f":"Import!M25343","v":"Select"},{"$f":"Import!M25493","v":"Select"},{"$f":"Import!M25643","v":"Select"},{"$f":"Import!M25793","v":0},{"$f":"Import!M25943","v":0},{"$f":"Import!M26093","v":0},{"$f":"Import!M26243","v":0},{"$f":"Import!M26393","v":0}]
[26,{"$f":"Import!M25344","v":"Select"},{"$f":"Import!M25494","v":"Select"},{"$f":"Import!M25644","v":"Select"},{"$f":"Import!M25794","v":0},{"$f":"Import!M25944","v":0},{"$f":"Import!M26094","v":0},{"$f":"Import!M26244","v":0},{"$f":"Import!M26394","v":0}]
[27,{"$f":"Import!M25345","v":"Select"},{"$f":"Import!M25495","v":"Select"},{"$f":"Import!M25645","v":"Select"},{"$f":"Import!M25795","v":0},{"$f":"Import!M25945","v":0},{"$f":"Import!M26095","v":0},{"$f":"Import!M26245","v":0},{"$f":"Import!M26395","v":0}]
[28,{"$f":"Import!M25346","v":"Select"},{"$f":"Import!M25496","v":"Select"},{"$f":"Import!M25646","v":"Select"},{"$f":"Import!M25796","v":0},{"$f":"Import!M25946","v":0},{"$f":"Import!M26096","v":0},{"$f":"Import!M26246","v":0},{"$f":"Import!M26396","v":0}]
[29,{"$f":"Import!M25347","v":"Select"},{"$f":"Import!M25497","v":"Select"},{"$f":"Import!M25647","v":"Select"},{"$f":"Import!M25797","v":0},{"$f":"Import!M25947","v":0},{"$f":"Import!M26097","v":0},{"$f":"Import!M26247","v":0},{"$f":"Import!M26397","v":0}]
[30,{"$f":"Import!M25348","v":"Select"},{"$f":"Import!M25498","v":"Select"},{"$f":"Import!M25648","v":"Select"},{"$f":"Import!M25798","v":0},{"$f":"Import!M25948","v":0},{"$f":"Import!M26098","v":0},{"$f":"Import!M26248","v":0},{"$f":"Import!M26398","v":0}]
[31,{"$f":"Import!M25349","v":"Select"},{"$f":"Import!M25499","v":"Select"},{"$f":"Import!M25649","v":"Select"},{"$f":"Import!M25799","v":0},{"$f":"Import!M25949","v":0},{"$f":"Import!M26099","v":0},{"$f":"Import!M26249","v":0},{"$f":"Import!M26399","v":0}]
[32,{"$f":"Import!M25350","v":"Select"},{"$f":"Import!M25500","v":"Select"},{"$f":"Import!M25650","v":"Select"},{"$f":"Import!M25800","v":0},{"$f":"Import!M25950","v":0},{"$f":"Import!M26100","v":0},{"$f":"Import!M26250","v":0},{"$f":"Import!M26400","v":0}]
[33,{"$f":"Import!M25351","v":"Select"},{"$f":"Import!M25501","v":"Select"},{"$f":"Import!M25651","v":"Select"},{"$f":"Import!M25801","v":0},{"$f":"Import!M25951","v":0},{"$f":"Import!M26101","v":0},{"$f":"Import!M26251","v":0},{"$f":"Import!M26401","v":0}]
[34,{"$f":"Import!M25352","v":"Select"},{"$f":"Import!M25502","v":"Select"},{"$f":"Import!M25652","v":"Select"},{"$f":"Import!M25802","v":0},{"$f":"Import!M25952","v":0},{"$f":"Import!M26102","v":0},{"$f":"Import!M26252","v":0},{"$f":"Import!M26402","v":0}]
[35,{"$f":"Import!M25353","v":"Select"},{"$f":"Import!M25503","v":"Select"},{"$f":"Import!M25653","v":"Select"},{"$f":"Import!M25803","v":0},{"$f":"Import!M25953","v":0},{"$f":"Import!M26103","v":0},{"$f":"Import!M26253","v":0},{"$f":"Import!M26403","v":0}]
[36,{"$f":"Import!M25354","v":"Select"},{"$f":"Import!M25504","v":"Select"},{"$f":"Import!M25654","v":"Select"},{"$f":"Import!M25804","v":0},{"$f":"Import!M25954","v":0},{"$f":"Import!M26104","v":0},{"$f":"Import!M26254","v":0},{"$f":"Import!M26404","v":0}]
[37,{"$f":"Import!M25355","v":"Select"},{"$f":"Import!M25505","v":"Select"},{"$f":"Import!M25655","v":"Select"},{"$f":"Import!M25805","v":0},{"$f":"Import!M25955","v":0},{"$f":"Import!M26105","v":0},{"$f":"Import!M26255","v":0},{"$f":"Import!M26405","v":0}]
[38,{"$f":"Import!M25356","v":"Select"},{"$f":"Import!M25506","v":"Select"},{"$f":"Import!M25656","v":"Select"},{"$f":"Import!M25806","v":0},{"$f":"Import!M25956","v":0},{"$f":"Import!M26106","v":0},{"$f":"Import!M26256","v":0},{"$f":"Import!M26406","v":0}]
[39,{"$f":"Import!M25357","v":"Select"},{"$f":"Import!M25507","v":"Select"},{"$f":"Import!M25657","v":"Select"},{"$f":"Import!M25807","v":0},{"$f":"Import!M25957","v":0},{"$f":"Import!M26107","v":0},{"$f":"Import!M26257","v":0},{"$f":"Import!M26407","v":0}]
[40,{"$f":"Import!M25358","v":"Select"},{"$f":"Import!M25508","v":"Select"},{"$f":"Import!M25658","v":"Select"},{"$f":"Import!M25808","v":0},{"$f":"Import!M25958","v":0},{"$f":"Import!M26108","v":0},{"$f":"Import!M26258","v":0},{"$f":"Import!M26408","v":0}]
[41,{"$f":"Import!M25359","v":"Select"},{"$f":"Import!M25509","v":"Select"},{"$f":"Import!M25659","v":"Select"},{"$f":"Import!M25809","v":0},{"$f":"Import!M25959","v":0},{"$f":"Import!M26109","v":0},{"$f":"Import!M26259","v":0},{"$f":"Import!M26409","v":0}]
[42,{"$f":"Import!M25360","v":"Select"},{"$f":"Import!M25510","v":"Select"},{"$f":"Import!M25660","v":"Select"},{"$f":"Import!M25810","v":0},{"$f":"Import!M25960","v":0},{"$f":"Import!M26110","v":0},{"$f":"Import!M26260","v":0},{"$f":"Import!M26410","v":0}]
[43,{"$f":"Import!M25361","v":"Select"},{"$f":"Import!M25511","v":"Select"},{"$f":"Import!M25661","v":"Select"},{"$f":"Import!M25811","v":0},{"$f":"Import!M25961","v":0},{"$f":"Import!M26111","v":0},{"$f":"Import!M26261","v":0},{"$f":"Import!M26411","v":0}]
[44,{"$f":"Import!M25362","v":"Select"},{"$f":"Import!M25512","v":"Select"},{"$f":"Import!M25662","v":"Select"},{"$f":"Import!M25812","v":0},{"$f":"Import!M25962","v":0},{"$f":"Import!M26112","v":0},{"$f":"Import!M26262","v":0},{"$f":"Import!M26412","v":0}]
[45,{"$f":"Import!M25363","v":"Select"},{"$f":"Import!M25513","v":"Select"},{"$f":"Import!M25663","v":"Select"},{"$f":"Import!M25813","v":0},{"$f":"Import!M25963","v":0},{"$f":"Import!M26113","v":0},{"$f":"Import!M26263","v":0},{"$f":"Import!M26413","v":0}]
[46,{"$f":"Import!M25364","v":"Select"},{"$f":"Import!M25514","v":"Select"},{"$f":"Import!M25664","v":"Select"},{"$f":"Import!M25814","v":0},{"$f":"Import!M25964","v":0},{"$f":"Import!M26114","v":0},{"$f":"Import!M26264","v":0},{"$f":"Import!M26414","v":0}]
[47,{"$f":"Import!M25365","v":"Select"},{"$f":"Import!M25515","v":"Select"},{"$f":"Import!M25665","v":"Select"},{"$f":"Import!M25815","v":0},{"$f":"Import!M25965","v":0},{"$f":"Import!M26115","v":0},{"$f":"Import!M26265","v":0},{"$f":"Import!M26415","v":0}]
[48,{"$f":"Import!M25366","v":"Select"},{"$f":"Import!M25516","v":"Select"},{"$f":"Import!M25666","v":"Select"},{"$f":"Import!M25816","v":0},{"$f":"Import!M25966","v":0},{"$f":"Import!M26116","v":0},{"$f":"Import!M26266","v":0},{"$f":"Import!M26416","v":0}]
[49,{"$f":"Import!M25367","v":"Select"},{"$f":"Import!M25517","v":"Select"},{"$f":"Import!M25667","v":"Select"},{"$f":"Import!M25817","v":0},{"$f":"Import!M25967","v":0},{"$f":"Import!M26117","v":0},{"$f":"Import!M26267","v":0},{"$f":"Import!M26417","v":0}]
[50,{"$f":"Import!M25368","v":"Select"},{"$f":"Import!M25518","v":"Select"},{"$f":"Import!M25668","v":"Select"},{"$f":"Import!M25818","v":0},{"$f":"Import!M25968","v":0},{"$f":"Import!M26118","v":0},{"$f":"Import!M26268","v":0},{"$f":"Import!M26418","v":0}]
[51,{"$f":"Import!M25369","v":"Select"},{"$f":"Import!M25519","v":"Select"},{"$f":"Import!M25669","v":"Select"},{"$f":"Import!M25819","v":0},{"$f":"Import!M25969","v":0},{"$f":"Import!M26119","v":0},{"$f":"Import!M26269","v":0},{"$f":"Import!M26419","v":0}]
[52,{"$f":"Import!M25370","v":"Select"},{"$f":"Import!M25520","v":"Select"},{"$f":"Import!M25670","v":"Select"},{"$f":"Import!M25820","v":0},{"$f":"Import!M25970","v":0},{"$f":"Import!M26120","v":0},{"$f":"Import!M26270","v":0},{"$f":"Import!M26420","v":0}]
[53,{"$f":"Import!M25371","v":"Select"},{"$f":"Import!M25521","v":"Select"},{"$f":"Import!M25671","v":"Select"},{"$f":"Import!M25821","v":0},{"$f":"Import!M25971","v":0},{"$f":"Import!M26121","v":0},{"$f":"Import!M26271","v":0},{"$f":"Import!M26421","v":0}]
[54,{"$f":"Import!M25372","v":"Select"},{"$f":"Import!M25522","v":"Select"},{"$f":"Import!M25672","v":"Select"},{"$f":"Import!M25822","v":0},{"$f":"Import!M25972","v":0},{"$f":"Import!M26122","v":0},{"$f":"Import!M26272","v":0},{"$f":"Import!M26422","v":0}]
[55,{"$f":"Import!M25373","v":"Select"},{"$f":"Import!M25523","v":"Select"},{"$f":"Import!M25673","v":"Select"},{"$f":"Import!M25823","v":0},{"$f":"Import!M25973","v":0},{"$f":"Import!M26123","v":0},{"$f":"Import!M26273","v":0},{"$f":"Import!M26423","v":0}]
[56,{"$f":"Import!M25374","v":"Select"},{"$f":"Import!M25524","v":"Select"},{"$f":"Import!M25674","v":"Select"},{"$f":"Import!M25824","v":0},{"$f":"Import!M25974","v":0},{"$f":"Import!M26124","v":0},{"$f":"Import!M26274","v":0},{"$f":"Import!M26424","v":0}]
[57,{"$f":"Import!M25375","v":"Select"},{"$f":"Import!M25525","v":"Select"},{"$f":"Import!M25675","v":"Select"},{"$f":"Import!M25825","v":0},{"$f":"Import!M25975","v":0},{"$f":"Import!M26125","v":0},{"$f":"Import!M26275","v":0},{"$f":"Import!M26425","v":0}]
[58,{"$f":"Import!M25376","v":"Select"},{"$f":"Import!M25526","v":"Select"},{"$f":"Import!M25676","v":"Select"},{"$f":"Import!M25826","v":0},{"$f":"Import!M25976","v":0},{"$f":"Import!M26126","v":0},{"$f":"Import!M26276","v":0},{"$f":"Import!M26426","v":0}]
[59,{"$f":"Import!M25377","v":"Select"},{"$f":"Import!M25527","v":"Select"},{"$f":"Import!M25677","v":"Select"},{"$f":"Import!M25827","v":0},{"$f":"Import!M25977","v":0},{"$f":"Import!M26127","v":0},{"$f":"Import!M26277","v":0},{"$f":"Import!M26427","v":0}]
[60,{"$f":"Import!M25378","v":"Select"},{"$f":"Import!M25528","v":"Select"},{"$f":"Import!M25678","v":"Select"},{"$f":"Import!M25828","v":0},{"$f":"Import!M25978","v":0},{"$f":"Import!M26128","v":0},{"$f":"Import!M26278","v":0},{"$f":"Import!M26428","v":0}]
[61,{"$f":"Import!M25379","v":"Select"},{"$f":"Import!M25529","v":"Select"},{"$f":"Import!M25679","v":"Select"},{"$f":"Import!M25829","v":0},{"$f":"Import!M25979","v":0},{"$f":"Import!M26129","v":0},{"$f":"Import!M26279","v":0},{"$f":"Import!M26429","v":0}]
[62,{"$f":"Import!M25380","v":"Select"},{"$f":"Import!M25530","v":"Select"},{"$f":"Import!M25680","v":"Select"},{"$f":"Import!M25830","v":0},{"$f":"Import!M25980","v":0},{"$f":"Import!M26130","v":0},{"$f":"Import!M26280","v":0},{"$f":"Import!M26430","v":0}]
[63,{"$f":"Import!M25381","v":"Select"},{"$f":"Import!M25531","v":"Select"},{"$f":"Import!M25681","v":"Select"},{"$f":"Import!M25831","v":0},{"$f":"Import!M25981","v":0},{"$f":"Import!M26131","v":0},{"$f":"Import!M26281","v":0},{"$f":"Import!M26431","v":0}]
[64,{"$f":"Import!M25382","v":"Select"},{"$f":"Import!M25532","v":"Select"},{"$f":"Import!M25682","v":"Select"},{"$f":"Import!M25832","v":0},{"$f":"Import!M25982","v":0},{"$f":"Import!M26132","v":0},{"$f":"Import!M26282","v":0},{"$f":"Import!M26432","v":0}]
[65,{"$f":"Import!M25383","v":"Select"},{"$f":"Import!M25533","v":"Select"},{"$f":"Import!M25683","v":"Select"},{"$f":"Import!M25833","v":0},{"$f":"Import!M25983","v":0},{"$f":"Import!M26133","v":0},{"$f":"Import!M26283","v":0},{"$f":"Import!M26433","v":0}]
[66,{"$f":"Import!M25384","v":"Select"},{"$f":"Import!M25534","v":"Select"},{"$f":"Import!M25684","v":"Select"},{"$f":"Import!M25834","v":0},{"$f":"Import!M25984","v":0},{"$f":"Import!M26134","v":0},{"$f":"Import!M26284","v":0},{"$f":"Import!M26434","v":0}]
[{"$f":"A900+1","v":67},{"$f":"Import!M25385","v":"Select"},{"$f":"Import!M25535","v":"Select"},{"$f":"Import!M25685","v":"Select"},{"$f":"Import!M25835","v":0},{"$f":"Import!M25985","v":0},{"$f":"Import!M26135","v":0},{"$f":"Import!M26285","v":0},{"$f":"Import!M26435","v":0}]
[68,{"$f":"Import!M25386","v":"Select"},{"$f":"Import!M25536","v":"Select"},{"$f":"Import!M25686","v":"Select"},{"$f":"Import!M25836","v":0},{"$f":"Import!M25986","v":0},{"$f":"Import!M26136","v":0},{"$f":"Import!M26286","v":0},{"$f":"Import!M26436","v":0}]
[69,{"$f":"Import!M25387","v":"Select"},{"$f":"Import!M25537","v":"Select"},{"$f":"Import!M25687","v":"Select"},{"$f":"Import!M25837","v":0},{"$f":"Import!M25987","v":0},{"$f":"Import!M26137","v":0},{"$f":"Import!M26287","v":0},{"$f":"Import!M26437","v":0}]
[70,{"$f":"Import!M25388","v":"Select"},{"$f":"Import!M25538","v":"Select"},{"$f":"Import!M25688","v":"Select"},{"$f":"Import!M25838","v":0},{"$f":"Import!M25988","v":0},{"$f":"Import!M26138","v":0},{"$f":"Import!M26288","v":0},{"$f":"Import!M26438","v":0}]
[71,{"$f":"Import!M25389","v":"Select"},{"$f":"Import!M25539","v":"Select"},{"$f":"Import!M25689","v":"Select"},{"$f":"Import!M25839","v":0},{"$f":"Import!M25989","v":0},{"$f":"Import!M26139","v":0},{"$f":"Import!M26289","v":0},{"$f":"Import!M26439","v":0}]
[72,{"$f":"Import!M25390","v":"Select"},{"$f":"Import!M25540","v":"Select"},{"$f":"Import!M25690","v":"Select"},{"$f":"Import!M25840","v":0},{"$f":"Import!M25990","v":0},{"$f":"Import!M26140","v":0},{"$f":"Import!M26290","v":0},{"$f":"Import!M26440","v":0}]
[73,{"$f":"Import!M25391","v":"Select"},{"$f":"Import!M25541","v":"Select"},{"$f":"Import!M25691","v":"Select"},{"$f":"Import!M25841","v":0},{"$f":"Import!M25991","v":0},{"$f":"Import!M26141","v":0},{"$f":"Import!M26291","v":0},{"$f":"Import!M26441","v":0}]
[74,{"$f":"Import!M25392","v":"Select"},{"$f":"Import!M25542","v":"Select"},{"$f":"Import!M25692","v":"Select"},{"$f":"Import!M25842","v":0},{"$f":"Import!M25992","v":0},{"$f":"Import!M26142","v":0},{"$f":"Import!M26292","v":0},{"$f":"Import!M26442","v":0}]
[75,{"$f":"Import!M25393","v":"Select"},{"$f":"Import!M25543","v":"Select"},{"$f":"Import!M25693","v":"Select"},{"$f":"Import!M25843","v":0},{"$f":"Import!M25993","v":0},{"$f":"Import!M26143","v":0},{"$f":"Import!M26293","v":0},{"$f":"Import!M26443","v":0}]
[76,{"$f":"Import!M25394","v":"Select"},{"$f":"Import!M25544","v":"Select"},{"$f":"Import!M25694","v":"Select"},{"$f":"Import!M25844","v":0},{"$f":"Import!M25994","v":0},{"$f":"Import!M26144","v":0},{"$f":"Import!M26294","v":0},{"$f":"Import!M26444","v":0}]
[77,{"$f":"Import!M25395","v":"Select"},{"$f":"Import!M25545","v":"Select"},{"$f":"Import!M25695","v":"Select"},{"$f":"Import!M25845","v":0},{"$f":"Import!M25995","v":0},{"$f":"Import!M26145","v":0},{"$f":"Import!M26295","v":0},{"$f":"Import!M26445","v":0}]
[78,{"$f":"Import!M25396","v":"Select"},{"$f":"Import!M25546","v":"Select"},{"$f":"Import!M25696","v":"Select"},{"$f":"Import!M25846","v":0},{"$f":"Import!M25996","v":0},{"$f":"Import!M26146","v":0},{"$f":"Import!M26296","v":0},{"$f":"Import!M26446","v":0}]
[79,{"$f":"Import!M25397","v":"Select"},{"$f":"Import!M25547","v":"Select"},{"$f":"Import!M25697","v":"Select"},{"$f":"Import!M25847","v":0},{"$f":"Import!M25997","v":0},{"$f":"Import!M26147","v":0},{"$f":"Import!M26297","v":0},{"$f":"Import!M26447","v":0}]
[80,{"$f":"Import!M25398","v":"Select"},{"$f":"Import!M25548","v":"Select"},{"$f":"Import!M25698","v":"Select"},{"$f":"Import!M25848","v":0},{"$f":"Import!M25998","v":0},{"$f":"Import!M26148","v":0},{"$f":"Import!M26298","v":0},{"$f":"Import!M26448","v":0}]
[81,{"$f":"Import!M25399","v":"Select"},{"$f":"Import!M25549","v":"Select"},{"$f":"Import!M25699","v":"Select"},{"$f":"Import!M25849","v":0},{"$f":"Import!M25999","v":0},{"$f":"Import!M26149","v":0},{"$f":"Import!M26299","v":0},{"$f":"Import!M26449","v":0}]
[82,{"$f":"Import!M25400","v":"Select"},{"$f":"Import!M25550","v":"Select"},{"$f":"Import!M25700","v":"Select"},{"$f":"Import!M25850","v":0},{"$f":"Import!M26000","v":0},{"$f":"Import!M26150","v":0},{"$f":"Import!M26300","v":0},{"$f":"Import!M26450","v":0}]
[83,{"$f":"Import!M25401","v":"Select"},{"$f":"Import!M25551","v":"Select"},{"$f":"Import!M25701","v":"Select"},{"$f":"Import!M25851","v":0},{"$f":"Import!M26001","v":0},{"$f":"Import!M26151","v":0},{"$f":"Import!M26301","v":0},{"$f":"Import!M26451","v":0}]
[84,{"$f":"Import!M25402","v":"Select"},{"$f":"Import!M25552","v":"Select"},{"$f":"Import!M25702","v":"Select"},{"$f":"Import!M25852","v":0},{"$f":"Import!M26002","v":0},{"$f":"Import!M26152","v":0},{"$f":"Import!M26302","v":0},{"$f":"Import!M26452","v":0}]
[85,{"$f":"Import!M25403","v":"Select"},{"$f":"Import!M25553","v":"Select"},{"$f":"Import!M25703","v":"Select"},{"$f":"Import!M25853","v":0},{"$f":"Import!M26003","v":0},{"$f":"Import!M26153","v":0},{"$f":"Import!M26303","v":0},{"$f":"Import!M26453","v":0}]
[86,{"$f":"Import!M25404","v":"Select"},{"$f":"Import!M25554","v":"Select"},{"$f":"Import!M25704","v":"Select"},{"$f":"Import!M25854","v":0},{"$f":"Import!M26004","v":0},{"$f":"Import!M26154","v":0},{"$f":"Import!M26304","v":0},{"$f":"Import!M26454","v":0}]
[87,{"$f":"Import!M25405","v":"Select"},{"$f":"Import!M25555","v":"Select"},{"$f":"Import!M25705","v":"Select"},{"$f":"Import!M25855","v":0},{"$f":"Import!M26005","v":0},{"$f":"Import!M26155","v":0},{"$f":"Import!M26305","v":0},{"$f":"Import!M26455","v":0}]
[88,{"$f":"Import!M25406","v":"Select"},{"$f":"Import!M25556","v":"Select"},{"$f":"Import!M25706","v":"Select"},{"$f":"Import!M25856","v":0},{"$f":"Import!M26006","v":0},{"$f":"Import!M26156","v":0},{"$f":"Import!M26306","v":0},{"$f":"Import!M26456","v":0}]
[89,{"$f":"Import!M25407","v":"Select"},{"$f":"Import!M25557","v":"Select"},{"$f":"Import!M25707","v":"Select"},{"$f":"Import!M25857","v":0},{"$f":"Import!M26007","v":0},{"$f":"Import!M26157","v":0},{"$f":"Import!M26307","v":0},{"$f":"Import!M26457","v":0}]
[90,{"$f":"Import!M25408","v":"Select"},{"$f":"Import!M25558","v":"Select"},{"$f":"Import!M25708","v":"Select"},{"$f":"Import!M25858","v":0},{"$f":"Import!M26008","v":0},{"$f":"Import!M26158","v":0},{"$f":"Import!M26308","v":0},{"$f":"Import!M26458","v":0}]
[91,{"$f":"Import!M25409","v":"Select"},{"$f":"Import!M25559","v":"Select"},{"$f":"Import!M25709","v":"Select"},{"$f":"Import!M25859","v":0},{"$f":"Import!M26009","v":0},{"$f":"Import!M26159","v":0},{"$f":"Import!M26309","v":0},{"$f":"Import!M26459","v":0}]
[92,{"$f":"Import!M25410","v":"Select"},{"$f":"Import!M25560","v":"Select"},{"$f":"Import!M25710","v":"Select"},{"$f":"Import!M25860","v":0},{"$f":"Import!M26010","v":0},{"$f":"Import!M26160","v":0},{"$f":"Import!M26310","v":0},{"$f":"Import!M26460","v":0}]
[93,{"$f":"Import!M25411","v":"Select"},{"$f":"Import!M25561","v":"Select"},{"$f":"Import!M25711","v":"Select"},{"$f":"Import!M25861","v":0},{"$f":"Import!M26011","v":0},{"$f":"Import!M26161","v":0},{"$f":"Import!M26311","v":0},{"$f":"Import!M26461","v":0}]
[94,{"$f":"Import!M25412","v":"Select"},{"$f":"Import!M25562","v":"Select"},{"$f":"Import!M25712","v":"Select"},{"$f":"Import!M25862","v":0},{"$f":"Import!M26012","v":0},{"$f":"Import!M26162","v":0},{"$f":"Import!M26312","v":0},{"$f":"Import!M26462","v":0}]
[95,{"$f":"Import!M25413","v":"Select"},{"$f":"Import!M25563","v":"Select"},{"$f":"Import!M25713","v":"Select"},{"$f":"Import!M25863","v":0},{"$f":"Import!M26013","v":0},{"$f":"Import!M26163","v":0},{"$f":"Import!M26313","v":0},{"$f":"Import!M26463","v":0}]
[96,{"$f":"Import!M25414","v":"Select"},{"$f":"Import!M25564","v":"Select"},{"$f":"Import!M25714","v":"Select"},{"$f":"Import!M25864","v":0},{"$f":"Import!M26014","v":0},{"$f":"Import!M26164","v":0},{"$f":"Import!M26314","v":0},{"$f":"Import!M26464","v":0}]
[97,{"$f":"Import!M25415","v":"Select"},{"$f":"Import!M25565","v":"Select"},{"$f":"Import!M25715","v":"Select"},{"$f":"Import!M25865","v":0},{"$f":"Import!M26015","v":0},{"$f":"Import!M26165","v":0},{"$f":"Import!M26315","v":0},{"$f":"Import!M26465","v":0}]
[98,{"$f":"Import!M25416","v":"Select"},{"$f":"Import!M25566","v":"Select"},{"$f":"Import!M25716","v":"Select"},{"$f":"Import!M25866","v":0},{"$f":"Import!M26016","v":0},{"$f":"Import!M26166","v":0},{"$f":"Import!M26316","v":0},{"$f":"Import!M26466","v":0}]
[99,{"$f":"Import!M25417","v":"Select"},{"$f":"Import!M25567","v":"Select"},{"$f":"Import!M25717","v":"Select"},{"$f":"Import!M25867","v":0},{"$f":"Import!M26017","v":0},{"$f":"Import!M26167","v":0},{"$f":"Import!M26317","v":0},{"$f":"Import!M26467","v":0}]
[100,{"$f":"Import!M25418","v":"Select"},{"$f":"Import!M25568","v":"Select"},{"$f":"Import!M25718","v":"Select"},{"$f":"Import!M25868","v":0},{"$f":"Import!M26018","v":0},{"$f":"Import!M26168","v":0},{"$f":"Import!M26318","v":0},{"$f":"Import!M26468","v":0}]
[101,{"$f":"Import!M25419","v":"Select"},{"$f":"Import!M25569","v":"Select"},{"$f":"Import!M25719","v":"Select"},{"$f":"Import!M25869","v":0},{"$f":"Import!M26019","v":0},{"$f":"Import!M26169","v":0},{"$f":"Import!M26319","v":0},{"$f":"Import!M26469","v":0}]
[102,{"$f":"Import!M25420","v":"Select"},{"$f":"Import!M25570","v":"Select"},{"$f":"Import!M25720","v":"Select"},{"$f":"Import!M25870","v":0},{"$f":"Import!M26020","v":0},{"$f":"Import!M26170","v":0},{"$f":"Import!M26320","v":0},{"$f":"Import!M26470","v":0}]
[103,{"$f":"Import!M25421","v":"Select"},{"$f":"Import!M25571","v":"Select"},{"$f":"Import!M25721","v":"Select"},{"$f":"Import!M25871","v":0},{"$f":"Import!M26021","v":0},{"$f":"Import!M26171","v":0},{"$f":"Import!M26321","v":0},{"$f":"Import!M26471","v":0}]
[104,{"$f":"Import!M25422","v":"Select"},{"$f":"Import!M25572","v":"Select"},{"$f":"Import!M25722","v":"Select"},{"$f":"Import!M25872","v":0},{"$f":"Import!M26022","v":0},{"$f":"Import!M26172","v":0},{"$f":"Import!M26322","v":0},{"$f":"Import!M26472","v":0}]
[105,{"$f":"Import!M25423","v":"Select"},{"$f":"Import!M25573","v":"Select"},{"$f":"Import!M25723","v":"Select"},{"$f":"Import!M25873","v":0},{"$f":"Import!M26023","v":0},{"$f":"Import!M26173","v":0},{"$f":"Import!M26323","v":0},{"$f":"Import!M26473","v":0}]
[106,{"$f":"Import!M25424","v":"Select"},{"$f":"Import!M25574","v":"Select"},{"$f":"Import!M25724","v":"Select"},{"$f":"Import!M25874","v":0},{"$f":"Import!M26024","v":0},{"$f":"Import!M26174","v":0},{"$f":"Import!M26324","v":0},{"$f":"Import!M26474","v":0}]
[107,{"$f":"Import!M25425","v":"Select"},{"$f":"Import!M25575","v":"Select"},{"$f":"Import!M25725","v":"Select"},{"$f":"Import!M25875","v":0},{"$f":"Import!M26025","v":0},{"$f":"Import!M26175","v":0},{"$f":"Import!M26325","v":0},{"$f":"Import!M26475","v":0}]
[108,{"$f":"Import!M25426","v":"Select"},{"$f":"Import!M25576","v":"Select"},{"$f":"Import!M25726","v":"Select"},{"$f":"Import!M25876","v":0},{"$f":"Import!M26026","v":0},{"$f":"Import!M26176","v":0},{"$f":"Import!M26326","v":0},{"$f":"Import!M26476","v":0}]
[109,{"$f":"Import!M25427","v":"Select"},{"$f":"Import!M25577","v":"Select"},{"$f":"Import!M25727","v":"Select"},{"$f":"Import!M25877","v":0},{"$f":"Import!M26027","v":0},{"$f":"Import!M26177","v":0},{"$f":"Import!M26327","v":0},{"$f":"Import!M26477","v":0}]
[110,{"$f":"Import!M25428","v":"Select"},{"$f":"Import!M25578","v":"Select"},{"$f":"Import!M25728","v":"Select"},{"$f":"Import!M25878","v":0},{"$f":"Import!M26028","v":0},{"$f":"Import!M26178","v":0},{"$f":"Import!M26328","v":0},{"$f":"Import!M26478","v":0}]
[111,{"$f":"Import!M25429","v":"Select"},{"$f":"Import!M25579","v":"Select"},{"$f":"Import!M25729","v":"Select"},{"$f":"Import!M25879","v":0},{"$f":"Import!M26029","v":0},{"$f":"Import!M26179","v":0},{"$f":"Import!M26329","v":0},{"$f":"Import!M26479","v":0}]
[112,{"$f":"Import!M25430","v":"Select"},{"$f":"Import!M25580","v":"Select"},{"$f":"Import!M25730","v":"Select"},{"$f":"Import!M25880","v":0},{"$f":"Import!M26030","v":0},{"$f":"Import!M26180","v":0},{"$f":"Import!M26330","v":0},{"$f":"Import!M26480","v":0}]
[113,{"$f":"Import!M25431","v":"Select"},{"$f":"Import!M25581","v":"Select"},{"$f":"Import!M25731","v":"Select"},{"$f":"Import!M25881","v":0},{"$f":"Import!M26031","v":0},{"$f":"Import!M26181","v":0},{"$f":"Import!M26331","v":0},{"$f":"Import!M26481","v":0}]
[114,{"$f":"Import!M25432","v":"Select"},{"$f":"Import!M25582","v":"Select"},{"$f":"Import!M25732","v":"Select"},{"$f":"Import!M25882","v":0},{"$f":"Import!M26032","v":0},{"$f":"Import!M26182","v":0},{"$f":"Import!M26332","v":0},{"$f":"Import!M26482","v":0}]
[115,{"$f":"Import!M25433","v":"Select"},{"$f":"Import!M25583","v":"Select"},{"$f":"Import!M25733","v":"Select"},{"$f":"Import!M25883","v":0},{"$f":"Import!M26033","v":0},{"$f":"Import!M26183","v":0},{"$f":"Import!M26333","v":0},{"$f":"Import!M26483","v":0}]
[116,{"$f":"Import!M25434","v":"Select"},{"$f":"Import!M25584","v":"Select"},{"$f":"Import!M25734","v":"Select"},{"$f":"Import!M25884","v":0},{"$f":"Import!M26034","v":0},{"$f":"Import!M26184","v":0},{"$f":"Import!M26334","v":0},{"$f":"Import!M26484","v":0}]
[117,{"$f":"Import!M25435","v":"Select"},{"$f":"Import!M25585","v":"Select"},{"$f":"Import!M25735","v":"Select"},{"$f":"Import!M25885","v":0},{"$f":"Import!M26035","v":0},{"$f":"Import!M26185","v":0},{"$f":"Import!M26335","v":0},{"$f":"Import!M26485","v":0}]
[118,{"$f":"Import!M25436","v":"Select"},{"$f":"Import!M25586","v":"Select"},{"$f":"Import!M25736","v":"Select"},{"$f":"Import!M25886","v":0},{"$f":"Import!M26036","v":0},{"$f":"Import!M26186","v":0},{"$f":"Import!M26336","v":0},{"$f":"Import!M26486","v":0}]
[119,{"$f":"Import!M25437","v":"Select"},{"$f":"Import!M25587","v":"Select"},{"$f":"Import!M25737","v":"Select"},{"$f":"Import!M25887","v":0},{"$f":"Import!M26037","v":0},{"$f":"Import!M26187","v":0},{"$f":"Import!M26337","v":0},{"$f":"Import!M26487","v":0}]
[120,{"$f":"Import!M25438","v":"Select"},{"$f":"Import!M25588","v":"Select"},{"$f":"Import!M25738","v":"Select"},{"$f":"Import!M25888","v":0},{"$f":"Import!M26038","v":0},{"$f":"Import!M26188","v":0},{"$f":"Import!M26338","v":0},{"$f":"Import!M26488","v":0}]
[121,{"$f":"Import!M25439","v":"Select"},{"$f":"Import!M25589","v":"Select"},{"$f":"Import!M25739","v":"Select"},{"$f":"Import!M25889","v":0},{"$f":"Import!M26039","v":0},{"$f":"Import!M26189","v":0},{"$f":"Import!M26339","v":0},{"$f":"Import!M26489","v":0}]
[122,{"$f":"Import!M25440","v":"Select"},{"$f":"Import!M25590","v":"Select"},{"$f":"Import!M25740","v":"Select"},{"$f":"Import!M25890","v":0},{"$f":"Import!M26040","v":0},{"$f":"Import!M26190","v":0},{"$f":"Import!M26340","v":0},{"$f":"Import!M26490","v":0}]
[123,{"$f":"Import!M25441","v":"Select"},{"$f":"Import!M25591","v":"Select"},{"$f":"Import!M25741","v":"Select"},{"$f":"Import!M25891","v":0},{"$f":"Import!M26041","v":0},{"$f":"Import!M26191","v":0},{"$f":"Import!M26341","v":0},{"$f":"Import!M26491","v":0}]
[124,{"$f":"Import!M25442","v":"Select"},{"$f":"Import!M25592","v":"Select"},{"$f":"Import!M25742","v":"Select"},{"$f":"Import!M25892","v":0},{"$f":"Import!M26042","v":0},{"$f":"Import!M26192","v":0},{"$f":"Import!M26342","v":0},{"$f":"Import!M26492","v":0}]
[125,{"$f":"Import!M25443","v":"Select"},{"$f":"Import!M25593","v":"Select"},{"$f":"Import!M25743","v":"Select"},{"$f":"Import!M25893","v":0},{"$f":"Import!M26043","v":0},{"$f":"Import!M26193","v":0},{"$f":"Import!M26343","v":0},{"$f":"Import!M26493","v":0}]
[126,{"$f":"Import!M25444","v":"Select"},{"$f":"Import!M25594","v":"Select"},{"$f":"Import!M25744","v":"Select"},{"$f":"Import!M25894","v":0},{"$f":"Import!M26044","v":0},{"$f":"Import!M26194","v":0},{"$f":"Import!M26344","v":0},{"$f":"Import!M26494","v":0}]
[127,{"$f":"Import!M25445","v":"Select"},{"$f":"Import!M25595","v":"Select"},{"$f":"Import!M25745","v":"Select"},{"$f":"Import!M25895","v":0},{"$f":"Import!M26045","v":0},{"$f":"Import!M26195","v":0},{"$f":"Import!M26345","v":0},{"$f":"Import!M26495","v":0}]
[128,{"$f":"Import!M25446","v":"Select"},{"$f":"Import!M25596","v":"Select"},{"$f":"Import!M25746","v":"Select"},{"$f":"Import!M25896","v":0},{"$f":"Import!M26046","v":0},{"$f":"Import!M26196","v":0},{"$f":"Import!M26346","v":0},{"$f":"Import!M26496","v":0}]
[129,{"$f":"Import!M25447","v":"Select"},{"$f":"Import!M25597","v":"Select"},{"$f":"Import!M25747","v":"Select"},{"$f":"Import!M25897","v":0},{"$f":"Import!M26047","v":0},{"$f":"Import!M26197","v":0},{"$f":"Import!M26347","v":0},{"$f":"Import!M26497","v":0}]
[130,{"$f":"Import!M25448","v":"Select"},{"$f":"Import!M25598","v":"Select"},{"$f":"Import!M25748","v":"Select"},{"$f":"Import!M25898","v":0},{"$f":"Import!M26048","v":0},{"$f":"Import!M26198","v":0},{"$f":"Import!M26348","v":0},{"$f":"Import!M26498","v":0}]
[{"$f":"A964+1","v":131},{"$f":"Import!M25449","v":"Select"},{"$f":"Import!M25599","v":"Select"},{"$f":"Import!M25749","v":"Select"},{"$f":"Import!M25899","v":0},{"$f":"Import!M26049","v":0},{"$f":"Import!M26199","v":0},{"$f":"Import!M26349","v":0},{"$f":"Import!M26499","v":0}]
[132,{"$f":"Import!M25450","v":"Select"},{"$f":"Import!M25600","v":"Select"},{"$f":"Import!M25750","v":"Select"},{"$f":"Import!M25900","v":0},{"$f":"Import!M26050","v":0},{"$f":"Import!M26200","v":0},{"$f":"Import!M26350","v":0},{"$f":"Import!M26500","v":0}]
[133,{"$f":"Import!M25451","v":"Select"},{"$f":"Import!M25601","v":"Select"},{"$f":"Import!M25751","v":"Select"},{"$f":"Import!M25901","v":0},{"$f":"Import!M26051","v":0},{"$f":"Import!M26201","v":0},{"$f":"Import!M26351","v":0},{"$f":"Import!M26501","v":0}]
[134,{"$f":"Import!M25452","v":"Select"},{"$f":"Import!M25602","v":"Select"},{"$f":"Import!M25752","v":"Select"},{"$f":"Import!M25902","v":0},{"$f":"Import!M26052","v":0},{"$f":"Import!M26202","v":0},{"$f":"Import!M26352","v":0},{"$f":"Import!M26502","v":0}]
[135,{"$f":"Import!M25453","v":"Select"},{"$f":"Import!M25603","v":"Select"},{"$f":"Import!M25753","v":"Select"},{"$f":"Import!M25903","v":0},{"$f":"Import!M26053","v":0},{"$f":"Import!M26203","v":0},{"$f":"Import!M26353","v":0},{"$f":"Import!M26503","v":0}]
[136,{"$f":"Import!M25454","v":"Select"},{"$f":"Import!M25604","v":"Select"},{"$f":"Import!M25754","v":"Select"},{"$f":"Import!M25904","v":0},{"$f":"Import!M26054","v":0},{"$f":"Import!M26204","v":0},{"$f":"Import!M26354","v":0},{"$f":"Import!M26504","v":0}]
[137,{"$f":"Import!M25455","v":"Select"},{"$f":"Import!M25605","v":"Select"},{"$f":"Import!M25755","v":"Select"},{"$f":"Import!M25905","v":0},{"$f":"Import!M26055","v":0},{"$f":"Import!M26205","v":0},{"$f":"Import!M26355","v":0},{"$f":"Import!M26505","v":0}]
[138,{"$f":"Import!M25456","v":"Select"},{"$f":"Import!M25606","v":"Select"},{"$f":"Import!M25756","v":"Select"},{"$f":"Import!M25906","v":0},{"$f":"Import!M26056","v":0},{"$f":"Import!M26206","v":0},{"$f":"Import!M26356","v":0},{"$f":"Import!M26506","v":0}]
[139,{"$f":"Import!M25457","v":"Select"},{"$f":"Import!M25607","v":"Select"},{"$f":"Import!M25757","v":"Select"},{"$f":"Import!M25907","v":0},{"$f":"Import!M26057","v":0},{"$f":"Import!M26207","v":0},{"$f":"Import!M26357","v":0},{"$f":"Import!M26507","v":0}]
[140,{"$f":"Import!M25458","v":"Select"},{"$f":"Import!M25608","v":"Select"},{"$f":"Import!M25758","v":"Select"},{"$f":"Import!M25908","v":0},{"$f":"Import!M26058","v":0},{"$f":"Import!M26208","v":0},{"$f":"Import!M26358","v":0},{"$f":"Import!M26508","v":0}]
[141,{"$f":"Import!M25459","v":"Select"},{"$f":"Import!M25609","v":"Select"},{"$f":"Import!M25759","v":"Select"},{"$f":"Import!M25909","v":0},{"$f":"Import!M26059","v":0},{"$f":"Import!M26209","v":0},{"$f":"Import!M26359","v":0},{"$f":"Import!M26509","v":0}]
[142,{"$f":"Import!M25460","v":"Select"},{"$f":"Import!M25610","v":"Select"},{"$f":"Import!M25760","v":"Select"},{"$f":"Import!M25910","v":0},{"$f":"Import!M26060","v":0},{"$f":"Import!M26210","v":0},{"$f":"Import!M26360","v":0},{"$f":"Import!M26510","v":0}]
[143,{"$f":"Import!M25461","v":"Select"},{"$f":"Import!M25611","v":"Select"},{"$f":"Import!M25761","v":"Select"},{"$f":"Import!M25911","v":0},{"$f":"Import!M26061","v":0},{"$f":"Import!M26211","v":0},{"$f":"Import!M26361","v":0},{"$f":"Import!M26511","v":0}]
[144,{"$f":"Import!M25462","v":"Select"},{"$f":"Import!M25612","v":"Select"},{"$f":"Import!M25762","v":"Select"},{"$f":"Import!M25912","v":0},{"$f":"Import!M26062","v":0},{"$f":"Import!M26212","v":0},{"$f":"Import!M26362","v":0},{"$f":"Import!M26512","v":0}]
[145,{"$f":"Import!M25463","v":"Select"},{"$f":"Import!M25613","v":"Select"},{"$f":"Import!M25763","v":"Select"},{"$f":"Import!M25913","v":0},{"$f":"Import!M26063","v":0},{"$f":"Import!M26213","v":0},{"$f":"Import!M26363","v":0},{"$f":"Import!M26513","v":0}]
[146,{"$f":"Import!M25464","v":"Select"},{"$f":"Import!M25614","v":"Select"},{"$f":"Import!M25764","v":"Select"},{"$f":"Import!M25914","v":0},{"$f":"Import!M26064","v":0},{"$f":"Import!M26214","v":0},{"$f":"Import!M26364","v":0},{"$f":"Import!M26514","v":0}]
[147,{"$f":"Import!M25465","v":"Select"},{"$f":"Import!M25615","v":"Select"},{"$f":"Import!M25765","v":"Select"},{"$f":"Import!M25915","v":0},{"$f":"Import!M26065","v":0},{"$f":"Import!M26215","v":0},{"$f":"Import!M26365","v":0},{"$f":"Import!M26515","v":0}]
[148,{"$f":"Import!M25466","v":"Select"},{"$f":"Import!M25616","v":"Select"},{"$f":"Import!M25766","v":"Select"},{"$f":"Import!M25916","v":0},{"$f":"Import!M26066","v":0},{"$f":"Import!M26216","v":0},{"$f":"Import!M26366","v":0},{"$f":"Import!M26516","v":0}]
[149,{"$f":"Import!M25467","v":"Select"},{"$f":"Import!M25617","v":"Select"},{"$f":"Import!M25767","v":"Select"},{"$f":"Import!M25917","v":0},{"$f":"Import!M26067","v":0},{"$f":"Import!M26217","v":0},{"$f":"Import!M26367","v":0},{"$f":"Import!M26517","v":0}]
[150,{"$f":"Import!M25468","v":"Select"},{"$f":"Import!M25618","v":"Select"},{"$f":"Import!M25768","v":"Select"},{"$f":"Import!M25918","v":0},{"$f":"Import!M26068","v":0},{"$f":"Import!M26218","v":0},{"$f":"Import!M26368","v":0},{"$f":"Import!M26518","v":0}]
[]
[null,"Total Asset-Backed and Structured Securities",null,null,{"$f":"SUM(E835:E984)","v":0},{"$f":"SUM(F835:F984)","v":0},{"$f":"IFERROR(SUMPRODUCT(G835:G984,$F835:$F984)/SUM($F835:$F984),0)","v":0},{"$f":"IFERROR(SUMPRODUCT(H835:H984,$F835:$F984)/SUM($F835:$F984),0)","v":0}]
[]
[null,"(D) LOANS"]
[]
[null,null,"Enter # of Asset Types",{"$f":"Import!M26519","v":0}]
[null,null,null,null,null,{"$f":"YEAR($C$3)","v":2023},2023,"Weighted"]
[null,"Asset Type","Currency","Country","BSCR Rating","Nominal Amount","Fair Value","Average YTM","Effective Duration","Comments"]
[1,{"$f":"Import!M26520","v":"Select"},{"$f":"Import!M26620","v":"Select"},{"$f":"Import!M26720","v":"Select"},{"$f":"Import!M26820","v":"Select"},{"$f":"Import!M26920","v":0},{"$f":"Import!M27020","v":0},{"$f":"Import!M27120","v":0},{"$f":"Import!M27220","v":0},{"$f":"Import!M27320","v":0}]
[{"$f":"A993+1","v":2},{"$f":"Import!M26521","v":"Select"},{"$f":"Import!M26621","v":"Select"},{"$f":"Import!M26721","v":"Select"},{"$f":"Import!M26821","v":"Select"},{"$f":"Import!M26921","v":0},{"$f":"Import!M27021","v":0},{"$f":"Import!M27121","v":0},{"$f":"Import!M27221","v":0},{"$f":"Import!M27321","v":0}]
[{"$f":"A994+1","v":3},{"$f":"Import!M26522","v":"Select"},{"$f":"Import!M26622","v":"Select"},{"$f":"Import!M26722","v":"Select"},{"$f":"Import!M26822","v":"Select"},{"$f":"Import!M26922","v":0},{"$f":"Import!M27022","v":0},{"$f":"Import!M27122","v":0},{"$f":"Import!M27222","v":0},{"$f":"Import!M27322","v":0}]
[4,{"$f":"Import!M26523","v":"Select"},{"$f":"Import!M26623","v":"Select"},{"$f":"Import!M26723","v":"Select"},{"$f":"Import!M26823","v":"Select"},{"$f":"Import!M26923","v":0},{"$f":"Import!M27023","v":0},{"$f":"Import!M27123","v":0},{"$f":"Import!M27223","v":0},{"$f":"Import!M27323","v":0}]
[5,{"$f":"Import!M26524","v":"Select"},{"$f":"Import!M26624","v":"Select"},{"$f":"Import!M26724","v":"Select"},{"$f":"Import!M26824","v":"Select"},{"$f":"Import!M26924","v":0},{"$f":"Import!M27024","v":0},{"$f":"Import!M27124","v":0},{"$f":"Import!M27224","v":0},{"$f":"Import!M27324","v":0}]
[6,{"$f":"Import!M26525","v":"Select"},{"$f":"Import!M26625","v":"Select"},{"$f":"Import!M26725","v":"Select"},{"$f":"Import!M26825","v":"Select"},{"$f":"Import!M26925","v":0},{"$f":"Import!M27025","v":0},{"$f":"Import!M27125","v":0},{"$f":"Import!M27225","v":0},{"$f":"Import!M27325","v":0}]
[7,{"$f":"Import!M26526","v":"Select"},{"$f":"Import!M26626","v":"Select"},{"$f":"Import!M26726","v":"Select"},{"$f":"Import!M26826","v":"Select"},{"$f":"Import!M26926","v":0},{"$f":"Import!M27026","v":0},{"$f":"Import!M27126","v":0},{"$f":"Import!M27226","v":0},{"$f":"Import!M27326","v":0}]
[8,{"$f":"Import!M26527","v":"Select"},{"$f":"Import!M26627","v":"Select"},{"$f":"Import!M26727","v":"Select"},{"$f":"Import!M26827","v":"Select"},{"$f":"Import!M26927","v":0},{"$f":"Import!M27027","v":0},{"$f":"Import!M27127","v":0},{"$f":"Import!M27227","v":0},{"$f":"Import!M27327","v":0}]
[9,{"$f":"Import!M26528","v":"Select"},{"$f":"Import!M26628","v":"Select"},{"$f":"Import!M26728","v":"Select"},{"$f":"Import!M26828","v":"Select"},{"$f":"Import!M26928","v":0},{"$f":"Import!M27028","v":0},{"$f":"Import!M27128","v":0},{"$f":"Import!M27228","v":0},{"$f":"Import!M27328","v":0}]
[10,{"$f":"Import!M26529","v":"Select"},{"$f":"Import!M26629","v":"Select"},{"$f":"Import!M26729","v":"Select"},{"$f":"Import!M26829","v":"Select"},{"$f":"Import!M26929","v":0},{"$f":"Import!M27029","v":0},{"$f":"Import!M27129","v":0},{"$f":"Import!M27229","v":0},{"$f":"Import!M27329","v":0}]
[11,{"$f":"Import!M26530","v":"Select"},{"$f":"Import!M26630","v":"Select"},{"$f":"Import!M26730","v":"Select"},{"$f":"Import!M26830","v":"Select"},{"$f":"Import!M26930","v":0},{"$f":"Import!M27030","v":0},{"$f":"Import!M27130","v":0},{"$f":"Import!M27230","v":0},{"$f":"Import!M27330","v":0}]
[12,{"$f":"Import!M26531","v":"Select"},{"$f":"Import!M26631","v":"Select"},{"$f":"Import!M26731","v":"Select"},{"$f":"Import!M26831","v":"Select"},{"$f":"Import!M26931","v":0},{"$f":"Import!M27031","v":0},{"$f":"Import!M27131","v":0},{"$f":"Import!M27231","v":0},{"$f":"Import!M27331","v":0}]
[13,{"$f":"Import!M26532","v":"Select"},{"$f":"Import!M26632","v":"Select"},{"$f":"Import!M26732","v":"Select"},{"$f":"Import!M26832","v":"Select"},{"$f":"Import!M26932","v":0},{"$f":"Import!M27032","v":0},{"$f":"Import!M27132","v":0},{"$f":"Import!M27232","v":0},{"$f":"Import!M27332","v":0}]
[14,{"$f":"Import!M26533","v":"Select"},{"$f":"Import!M26633","v":"Select"},{"$f":"Import!M26733","v":"Select"},{"$f":"Import!M26833","v":"Select"},{"$f":"Import!M26933","v":0},{"$f":"Import!M27033","v":0},{"$f":"Import!M27133","v":0},{"$f":"Import!M27233","v":0},{"$f":"Import!M27333","v":0}]
[15,{"$f":"Import!M26534","v":"Select"},{"$f":"Import!M26634","v":"Select"},{"$f":"Import!M26734","v":"Select"},{"$f":"Import!M26834","v":"Select"},{"$f":"Import!M26934","v":0},{"$f":"Import!M27034","v":0},{"$f":"Import!M27134","v":0},{"$f":"Import!M27234","v":0},{"$f":"Import!M27334","v":0}]
[16,{"$f":"Import!M26535","v":"Select"},{"$f":"Import!M26635","v":"Select"},{"$f":"Import!M26735","v":"Select"},{"$f":"Import!M26835","v":"Select"},{"$f":"Import!M26935","v":0},{"$f":"Import!M27035","v":0},{"$f":"Import!M27135","v":0},{"$f":"Import!M27235","v":0},{"$f":"Import!M27335","v":0}]
[17,{"$f":"Import!M26536","v":"Select"},{"$f":"Import!M26636","v":"Select"},{"$f":"Import!M26736","v":"Select"},{"$f":"Import!M26836","v":"Select"},{"$f":"Import!M26936","v":0},{"$f":"Import!M27036","v":0},{"$f":"Import!M27136","v":0},{"$f":"Import!M27236","v":0},{"$f":"Import!M27336","v":0}]
[18,{"$f":"Import!M26537","v":"Select"},{"$f":"Import!M26637","v":"Select"},{"$f":"Import!M26737","v":"Select"},{"$f":"Import!M26837","v":"Select"},{"$f":"Import!M26937","v":0},{"$f":"Import!M27037","v":0},{"$f":"Import!M27137","v":0},{"$f":"Import!M27237","v":0},{"$f":"Import!M27337","v":0}]
[19,{"$f":"Import!M26538","v":"Select"},{"$f":"Import!M26638","v":"Select"},{"$f":"Import!M26738","v":"Select"},{"$f":"Import!M26838","v":"Select"},{"$f":"Import!M26938","v":0},{"$f":"Import!M27038","v":0},{"$f":"Import!M27138","v":0},{"$f":"Import!M27238","v":0},{"$f":"Import!M27338","v":0}]
[20,{"$f":"Import!M26539","v":"Select"},{"$f":"Import!M26639","v":"Select"},{"$f":"Import!M26739","v":"Select"},{"$f":"Import!M26839","v":"Select"},{"$f":"Import!M26939","v":0},{"$f":"Import!M27039","v":0},{"$f":"Import!M27139","v":0},{"$f":"Import!M27239","v":0},{"$f":"Import!M27339","v":0}]
[21,{"$f":"Import!M26540","v":"Select"},{"$f":"Import!M26640","v":"Select"},{"$f":"Import!M26740","v":"Select"},{"$f":"Import!M26840","v":"Select"},{"$f":"Import!M26940","v":0},{"$f":"Import!M27040","v":0},{"$f":"Import!M27140","v":0},{"$f":"Import!M27240","v":0},{"$f":"Import!M27340","v":0}]
[22,{"$f":"Import!M26541","v":"Select"},{"$f":"Import!M26641","v":"Select"},{"$f":"Import!M26741","v":"Select"},{"$f":"Import!M26841","v":"Select"},{"$f":"Import!M26941","v":0},{"$f":"Import!M27041","v":0},{"$f":"Import!M27141","v":0},{"$f":"Import!M27241","v":0},{"$f":"Import!M27341","v":0}]
[23,{"$f":"Import!M26542","v":"Select"},{"$f":"Import!M26642","v":"Select"},{"$f":"Import!M26742","v":"Select"},{"$f":"Import!M26842","v":"Select"},{"$f":"Import!M26942","v":0},{"$f":"Import!M27042","v":0},{"$f":"Import!M27142","v":0},{"$f":"Import!M27242","v":0},{"$f":"Import!M27342","v":0}]
[24,{"$f":"Import!M26543","v":"Select"},{"$f":"Import!M26643","v":"Select"},{"$f":"Import!M26743","v":"Select"},{"$f":"Import!M26843","v":"Select"},{"$f":"Import!M26943","v":0},{"$f":"Import!M27043","v":0},{"$f":"Import!M27143","v":0},{"$f":"Import!M27243","v":0},{"$f":"Import!M27343","v":0}]
[25,{"$f":"Import!M26544","v":"Select"},{"$f":"Import!M26644","v":"Select"},{"$f":"Import!M26744","v":"Select"},{"$f":"Import!M26844","v":"Select"},{"$f":"Import!M26944","v":0},{"$f":"Import!M27044","v":0},{"$f":"Import!M27144","v":0},{"$f":"Import!M27244","v":0},{"$f":"Import!M27344","v":0}]
[26,{"$f":"Import!M26545","v":"Select"},{"$f":"Import!M26645","v":"Select"},{"$f":"Import!M26745","v":"Select"},{"$f":"Import!M26845","v":"Select"},{"$f":"Import!M26945","v":0},{"$f":"Import!M27045","v":0},{"$f":"Import!M27145","v":0},{"$f":"Import!M27245","v":0},{"$f":"Import!M27345","v":0}]
[27,{"$f":"Import!M26546","v":"Select"},{"$f":"Import!M26646","v":"Select"},{"$f":"Import!M26746","v":"Select"},{"$f":"Import!M26846","v":"Select"},{"$f":"Import!M26946","v":0},{"$f":"Import!M27046","v":0},{"$f":"Import!M27146","v":0},{"$f":"Import!M27246","v":0},{"$f":"Import!M27346","v":0}]
[28,{"$f":"Import!M26547","v":"Select"},{"$f":"Import!M26647","v":"Select"},{"$f":"Import!M26747","v":"Select"},{"$f":"Import!M26847","v":"Select"},{"$f":"Import!M26947","v":0},{"$f":"Import!M27047","v":0},{"$f":"Import!M27147","v":0},{"$f":"Import!M27247","v":0},{"$f":"Import!M27347","v":0}]
[29,{"$f":"Import!M26548","v":"Select"},{"$f":"Import!M26648","v":"Select"},{"$f":"Import!M26748","v":"Select"},{"$f":"Import!M26848","v":"Select"},{"$f":"Import!M26948","v":0},{"$f":"Import!M27048","v":0},{"$f":"Import!M27148","v":0},{"$f":"Import!M27248","v":0},{"$f":"Import!M27348","v":0}]
[30,{"$f":"Import!M26549","v":"Select"},{"$f":"Import!M26649","v":"Select"},{"$f":"Import!M26749","v":"Select"},{"$f":"Import!M26849","v":"Select"},{"$f":"Import!M26949","v":0},{"$f":"Import!M27049","v":0},{"$f":"Import!M27149","v":0},{"$f":"Import!M27249","v":0},{"$f":"Import!M27349","v":0}]
[31,{"$f":"Import!M26550","v":"Select"},{"$f":"Import!M26650","v":"Select"},{"$f":"Import!M26750","v":"Select"},{"$f":"Import!M26850","v":"Select"},{"$f":"Import!M26950","v":0},{"$f":"Import!M27050","v":0},{"$f":"Import!M27150","v":0},{"$f":"Import!M27250","v":0},{"$f":"Import!M27350","v":0}]
[32,{"$f":"Import!M26551","v":"Select"},{"$f":"Import!M26651","v":"Select"},{"$f":"Import!M26751","v":"Select"},{"$f":"Import!M26851","v":"Select"},{"$f":"Import!M26951","v":0},{"$f":"Import!M27051","v":0},{"$f":"Import!M27151","v":0},{"$f":"Import!M27251","v":0},{"$f":"Import!M27351","v":0}]
[33,{"$f":"Import!M26552","v":"Select"},{"$f":"Import!M26652","v":"Select"},{"$f":"Import!M26752","v":"Select"},{"$f":"Import!M26852","v":"Select"},{"$f":"Import!M26952","v":0},{"$f":"Import!M27052","v":0},{"$f":"Import!M27152","v":0},{"$f":"Import!M27252","v":0},{"$f":"Import!M27352","v":0}]
[34,{"$f":"Import!M26553","v":"Select"},{"$f":"Import!M26653","v":"Select"},{"$f":"Import!M26753","v":"Select"},{"$f":"Import!M26853","v":"Select"},{"$f":"Import!M26953","v":0},{"$f":"Import!M27053","v":0},{"$f":"Import!M27153","v":0},{"$f":"Import!M27253","v":0},{"$f":"Import!M27353","v":0}]
[35,{"$f":"Import!M26554","v":"Select"},{"$f":"Import!M26654","v":"Select"},{"$f":"Import!M26754","v":"Select"},{"$f":"Import!M26854","v":"Select"},{"$f":"Import!M26954","v":0},{"$f":"Import!M27054","v":0},{"$f":"Import!M27154","v":0},{"$f":"Import!M27254","v":0},{"$f":"Import!M27354","v":0}]
[36,{"$f":"Import!M26555","v":"Select"},{"$f":"Import!M26655","v":"Select"},{"$f":"Import!M26755","v":"Select"},{"$f":"Import!M26855","v":"Select"},{"$f":"Import!M26955","v":0},{"$f":"Import!M27055","v":0},{"$f":"Import!M27155","v":0},{"$f":"Import!M27255","v":0},{"$f":"Import!M27355","v":0}]
[37,{"$f":"Import!M26556","v":"Select"},{"$f":"Import!M26656","v":"Select"},{"$f":"Import!M26756","v":"Select"},{"$f":"Import!M26856","v":"Select"},{"$f":"Import!M26956","v":0},{"$f":"Import!M27056","v":0},{"$f":"Import!M27156","v":0},{"$f":"Import!M27256","v":0},{"$f":"Import!M27356","v":0}]
[38,{"$f":"Import!M26557","v":"Select"},{"$f":"Import!M26657","v":"Select"},{"$f":"Import!M26757","v":"Select"},{"$f":"Import!M26857","v":"Select"},{"$f":"Import!M26957","v":0},{"$f":"Import!M27057","v":0},{"$f":"Import!M27157","v":0},{"$f":"Import!M27257","v":0},{"$f":"Import!M27357","v":0}]
[39,{"$f":"Import!M26558","v":"Select"},{"$f":"Import!M26658","v":"Select"},{"$f":"Import!M26758","v":"Select"},{"$f":"Import!M26858","v":"Select"},{"$f":"Import!M26958","v":0},{"$f":"Import!M27058","v":0},{"$f":"Import!M27158","v":0},{"$f":"Import!M27258","v":0},{"$f":"Import!M27358","v":0}]
[40,{"$f":"Import!M26559","v":"Select"},{"$f":"Import!M26659","v":"Select"},{"$f":"Import!M26759","v":"Select"},{"$f":"Import!M26859","v":"Select"},{"$f":"Import!M26959","v":0},{"$f":"Import!M27059","v":0},{"$f":"Import!M27159","v":0},{"$f":"Import!M27259","v":0},{"$f":"Import!M27359","v":0}]
[41,{"$f":"Import!M26560","v":"Select"},{"$f":"Import!M26660","v":"Select"},{"$f":"Import!M26760","v":"Select"},{"$f":"Import!M26860","v":"Select"},{"$f":"Import!M26960","v":0},{"$f":"Import!M27060","v":0},{"$f":"Import!M27160","v":0},{"$f":"Import!M27260","v":0},{"$f":"Import!M27360","v":0}]
[42,{"$f":"Import!M26561","v":"Select"},{"$f":"Import!M26661","v":"Select"},{"$f":"Import!M26761","v":"Select"},{"$f":"Import!M26861","v":"Select"},{"$f":"Import!M26961","v":0},{"$f":"Import!M27061","v":0},{"$f":"Import!M27161","v":0},{"$f":"Import!M27261","v":0},{"$f":"Import!M27361","v":0}]
[43,{"$f":"Import!M26562","v":"Select"},{"$f":"Import!M26662","v":"Select"},{"$f":"Import!M26762","v":"Select"},{"$f":"Import!M26862","v":"Select"},{"$f":"Import!M26962","v":0},{"$f":"Import!M27062","v":0},{"$f":"Import!M27162","v":0},{"$f":"Import!M27262","v":0},{"$f":"Import!M27362","v":0}]
[44,{"$f":"Import!M26563","v":"Select"},{"$f":"Import!M26663","v":"Select"},{"$f":"Import!M26763","v":"Select"},{"$f":"Import!M26863","v":"Select"},{"$f":"Import!M26963","v":0},{"$f":"Import!M27063","v":0},{"$f":"Import!M27163","v":0},{"$f":"Import!M27263","v":0},{"$f":"Import!M27363","v":0}]
[45,{"$f":"Import!M26564","v":"Select"},{"$f":"Import!M26664","v":"Select"},{"$f":"Import!M26764","v":"Select"},{"$f":"Import!M26864","v":"Select"},{"$f":"Import!M26964","v":0},{"$f":"Import!M27064","v":0},{"$f":"Import!M27164","v":0},{"$f":"Import!M27264","v":0},{"$f":"Import!M27364","v":0}]
[46,{"$f":"Import!M26565","v":"Select"},{"$f":"Import!M26665","v":"Select"},{"$f":"Import!M26765","v":"Select"},{"$f":"Import!M26865","v":"Select"},{"$f":"Import!M26965","v":0},{"$f":"Import!M27065","v":0},{"$f":"Import!M27165","v":0},{"$f":"Import!M27265","v":0},{"$f":"Import!M27365","v":0}]
[47,{"$f":"Import!M26566","v":"Select"},{"$f":"Import!M26666","v":"Select"},{"$f":"Import!M26766","v":"Select"},{"$f":"Import!M26866","v":"Select"},{"$f":"Import!M26966","v":0},{"$f":"Import!M27066","v":0},{"$f":"Import!M27166","v":0},{"$f":"Import!M27266","v":0},{"$f":"Import!M27366","v":0}]
[48,{"$f":"Import!M26567","v":"Select"},{"$f":"Import!M26667","v":"Select"},{"$f":"Import!M26767","v":"Select"},{"$f":"Import!M26867","v":"Select"},{"$f":"Import!M26967","v":0},{"$f":"Import!M27067","v":0},{"$f":"Import!M27167","v":0},{"$f":"Import!M27267","v":0},{"$f":"Import!M27367","v":0}]
[49,{"$f":"Import!M26568","v":"Select"},{"$f":"Import!M26668","v":"Select"},{"$f":"Import!M26768","v":"Select"},{"$f":"Import!M26868","v":"Select"},{"$f":"Import!M26968","v":0},{"$f":"Import!M27068","v":0},{"$f":"Import!M27168","v":0},{"$f":"Import!M27268","v":0},{"$f":"Import!M27368","v":0}]
[50,{"$f":"Import!M26569","v":"Select"},{"$f":"Import!M26669","v":"Select"},{"$f":"Import!M26769","v":"Select"},{"$f":"Import!M26869","v":"Select"},{"$f":"Import!M26969","v":0},{"$f":"Import!M27069","v":0},{"$f":"Import!M27169","v":0},{"$f":"Import!M27269","v":0},{"$f":"Import!M27369","v":0}]
[51,{"$f":"Import!M26570","v":"Select"},{"$f":"Import!M26670","v":"Select"},{"$f":"Import!M26770","v":"Select"},{"$f":"Import!M26870","v":"Select"},{"$f":"Import!M26970","v":0},{"$f":"Import!M27070","v":0},{"$f":"Import!M27170","v":0},{"$f":"Import!M27270","v":0},{"$f":"Import!M27370","v":0}]
[52,{"$f":"Import!M26571","v":"Select"},{"$f":"Import!M26671","v":"Select"},{"$f":"Import!M26771","v":"Select"},{"$f":"Import!M26871","v":"Select"},{"$f":"Import!M26971","v":0},{"$f":"Import!M27071","v":0},{"$f":"Import!M27171","v":0},{"$f":"Import!M27271","v":0},{"$f":"Import!M27371","v":0}]
[53,{"$f":"Import!M26572","v":"Select"},{"$f":"Import!M26672","v":"Select"},{"$f":"Import!M26772","v":"Select"},{"$f":"Import!M26872","v":"Select"},{"$f":"Import!M26972","v":0},{"$f":"Import!M27072","v":0},{"$f":"Import!M27172","v":0},{"$f":"Import!M27272","v":0},{"$f":"Import!M27372","v":0}]
[54,{"$f":"Import!M26573","v":"Select"},{"$f":"Import!M26673","v":"Select"},{"$f":"Import!M26773","v":"Select"},{"$f":"Import!M26873","v":"Select"},{"$f":"Import!M26973","v":0},{"$f":"Import!M27073","v":0},{"$f":"Import!M27173","v":0},{"$f":"Import!M27273","v":0},{"$f":"Import!M27373","v":0}]
[55,{"$f":"Import!M26574","v":"Select"},{"$f":"Import!M26674","v":"Select"},{"$f":"Import!M26774","v":"Select"},{"$f":"Import!M26874","v":"Select"},{"$f":"Import!M26974","v":0},{"$f":"Import!M27074","v":0},{"$f":"Import!M27174","v":0},{"$f":"Import!M27274","v":0},{"$f":"Import!M27374","v":0}]
[56,{"$f":"Import!M26575","v":"Select"},{"$f":"Import!M26675","v":"Select"},{"$f":"Import!M26775","v":"Select"},{"$f":"Import!M26875","v":"Select"},{"$f":"Import!M26975","v":0},{"$f":"Import!M27075","v":0},{"$f":"Import!M27175","v":0},{"$f":"Import!M27275","v":0},{"$f":"Import!M27375","v":0}]
[57,{"$f":"Import!M26576","v":"Select"},{"$f":"Import!M26676","v":"Select"},{"$f":"Import!M26776","v":"Select"},{"$f":"Import!M26876","v":"Select"},{"$f":"Import!M26976","v":0},{"$f":"Import!M27076","v":0},{"$f":"Import!M27176","v":0},{"$f":"Import!M27276","v":0},{"$f":"Import!M27376","v":0}]
[58,{"$f":"Import!M26577","v":"Select"},{"$f":"Import!M26677","v":"Select"},{"$f":"Import!M26777","v":"Select"},{"$f":"Import!M26877","v":"Select"},{"$f":"Import!M26977","v":0},{"$f":"Import!M27077","v":0},{"$f":"Import!M27177","v":0},{"$f":"Import!M27277","v":0},{"$f":"Import!M27377","v":0}]
[59,{"$f":"Import!M26578","v":"Select"},{"$f":"Import!M26678","v":"Select"},{"$f":"Import!M26778","v":"Select"},{"$f":"Import!M26878","v":"Select"},{"$f":"Import!M26978","v":0},{"$f":"Import!M27078","v":0},{"$f":"Import!M27178","v":0},{"$f":"Import!M27278","v":0},{"$f":"Import!M27378","v":0}]
[60,{"$f":"Import!M26579","v":"Select"},{"$f":"Import!M26679","v":"Select"},{"$f":"Import!M26779","v":"Select"},{"$f":"Import!M26879","v":"Select"},{"$f":"Import!M26979","v":0},{"$f":"Import!M27079","v":0},{"$f":"Import!M27179","v":0},{"$f":"Import!M27279","v":0},{"$f":"Import!M27379","v":0}]
[61,{"$f":"Import!M26580","v":"Select"},{"$f":"Import!M26680","v":"Select"},{"$f":"Import!M26780","v":"Select"},{"$f":"Import!M26880","v":"Select"},{"$f":"Import!M26980","v":0},{"$f":"Import!M27080","v":0},{"$f":"Import!M27180","v":0},{"$f":"Import!M27280","v":0},{"$f":"Import!M27380","v":0}]
[62,{"$f":"Import!M26581","v":"Select"},{"$f":"Import!M26681","v":"Select"},{"$f":"Import!M26781","v":"Select"},{"$f":"Import!M26881","v":"Select"},{"$f":"Import!M26981","v":0},{"$f":"Import!M27081","v":0},{"$f":"Import!M27181","v":0},{"$f":"Import!M27281","v":0},{"$f":"Import!M27381","v":0}]
[63,{"$f":"Import!M26582","v":"Select"},{"$f":"Import!M26682","v":"Select"},{"$f":"Import!M26782","v":"Select"},{"$f":"Import!M26882","v":"Select"},{"$f":"Import!M26982","v":0},{"$f":"Import!M27082","v":0},{"$f":"Import!M27182","v":0},{"$f":"Import!M27282","v":0},{"$f":"Import!M27382","v":0}]
[64,{"$f":"Import!M26583","v":"Select"},{"$f":"Import!M26683","v":"Select"},{"$f":"Import!M26783","v":"Select"},{"$f":"Import!M26883","v":"Select"},{"$f":"Import!M26983","v":0},{"$f":"Import!M27083","v":0},{"$f":"Import!M27183","v":0},{"$f":"Import!M27283","v":0},{"$f":"Import!M27383","v":0}]
[65,{"$f":"Import!M26584","v":"Select"},{"$f":"Import!M26684","v":"Select"},{"$f":"Import!M26784","v":"Select"},{"$f":"Import!M26884","v":"Select"},{"$f":"Import!M26984","v":0},{"$f":"Import!M27084","v":0},{"$f":"Import!M27184","v":0},{"$f":"Import!M27284","v":0},{"$f":"Import!M27384","v":0}]
[66,{"$f":"Import!M26585","v":"Select"},{"$f":"Import!M26685","v":"Select"},{"$f":"Import!M26785","v":"Select"},{"$f":"Import!M26885","v":"Select"},{"$f":"Import!M26985","v":0},{"$f":"Import!M27085","v":0},{"$f":"Import!M27185","v":0},{"$f":"Import!M27285","v":0},{"$f":"Import!M27385","v":0}]
[{"$f":"A1058+1","v":67},{"$f":"Import!M26586","v":"Select"},{"$f":"Import!M26686","v":"Select"},{"$f":"Import!M26786","v":"Select"},{"$f":"Import!M26886","v":"Select"},{"$f":"Import!M26986","v":0},{"$f":"Import!M27086","v":0},{"$f":"Import!M27186","v":0},{"$f":"Import!M27286","v":0},{"$f":"Import!M27386","v":0}]
[68,{"$f":"Import!M26587","v":"Select"},{"$f":"Import!M26687","v":"Select"},{"$f":"Import!M26787","v":"Select"},{"$f":"Import!M26887","v":"Select"},{"$f":"Import!M26987","v":0},{"$f":"Import!M27087","v":0},{"$f":"Import!M27187","v":0},{"$f":"Import!M27287","v":0},{"$f":"Import!M27387","v":0}]
[69,{"$f":"Import!M26588","v":"Select"},{"$f":"Import!M26688","v":"Select"},{"$f":"Import!M26788","v":"Select"},{"$f":"Import!M26888","v":"Select"},{"$f":"Import!M26988","v":0},{"$f":"Import!M27088","v":0},{"$f":"Import!M27188","v":0},{"$f":"Import!M27288","v":0},{"$f":"Import!M27388","v":0}]
[70,{"$f":"Import!M26589","v":"Select"},{"$f":"Import!M26689","v":"Select"},{"$f":"Import!M26789","v":"Select"},{"$f":"Import!M26889","v":"Select"},{"$f":"Import!M26989","v":0},{"$f":"Import!M27089","v":0},{"$f":"Import!M27189","v":0},{"$f":"Import!M27289","v":0},{"$f":"Import!M27389","v":0}]
[71,{"$f":"Import!M26590","v":"Select"},{"$f":"Import!M26690","v":"Select"},{"$f":"Import!M26790","v":"Select"},{"$f":"Import!M26890","v":"Select"},{"$f":"Import!M26990","v":0},{"$f":"Import!M27090","v":0},{"$f":"Import!M27190","v":0},{"$f":"Import!M27290","v":0},{"$f":"Import!M27390","v":0}]
[72,{"$f":"Import!M26591","v":"Select"},{"$f":"Import!M26691","v":"Select"},{"$f":"Import!M26791","v":"Select"},{"$f":"Import!M26891","v":"Select"},{"$f":"Import!M26991","v":0},{"$f":"Import!M27091","v":0},{"$f":"Import!M27191","v":0},{"$f":"Import!M27291","v":0},{"$f":"Import!M27391","v":0}]
[73,{"$f":"Import!M26592","v":"Select"},{"$f":"Import!M26692","v":"Select"},{"$f":"Import!M26792","v":"Select"},{"$f":"Import!M26892","v":"Select"},{"$f":"Import!M26992","v":0},{"$f":"Import!M27092","v":0},{"$f":"Import!M27192","v":0},{"$f":"Import!M27292","v":0},{"$f":"Import!M27392","v":0}]
[74,{"$f":"Import!M26593","v":"Select"},{"$f":"Import!M26693","v":"Select"},{"$f":"Import!M26793","v":"Select"},{"$f":"Import!M26893","v":"Select"},{"$f":"Import!M26993","v":0},{"$f":"Import!M27093","v":0},{"$f":"Import!M27193","v":0},{"$f":"Import!M27293","v":0},{"$f":"Import!M27393","v":0}]
[75,{"$f":"Import!M26594","v":"Select"},{"$f":"Import!M26694","v":"Select"},{"$f":"Import!M26794","v":"Select"},{"$f":"Import!M26894","v":"Select"},{"$f":"Import!M26994","v":0},{"$f":"Import!M27094","v":0},{"$f":"Import!M27194","v":0},{"$f":"Import!M27294","v":0},{"$f":"Import!M27394","v":0}]
[76,{"$f":"Import!M26595","v":"Select"},{"$f":"Import!M26695","v":"Select"},{"$f":"Import!M26795","v":"Select"},{"$f":"Import!M26895","v":"Select"},{"$f":"Import!M26995","v":0},{"$f":"Import!M27095","v":0},{"$f":"Import!M27195","v":0},{"$f":"Import!M27295","v":0},{"$f":"Import!M27395","v":0}]
[77,{"$f":"Import!M26596","v":"Select"},{"$f":"Import!M26696","v":"Select"},{"$f":"Import!M26796","v":"Select"},{"$f":"Import!M26896","v":"Select"},{"$f":"Import!M26996","v":0},{"$f":"Import!M27096","v":0},{"$f":"Import!M27196","v":0},{"$f":"Import!M27296","v":0},{"$f":"Import!M27396","v":0}]
[78,{"$f":"Import!M26597","v":"Select"},{"$f":"Import!M26697","v":"Select"},{"$f":"Import!M26797","v":"Select"},{"$f":"Import!M26897","v":"Select"},{"$f":"Import!M26997","v":0},{"$f":"Import!M27097","v":0},{"$f":"Import!M27197","v":0},{"$f":"Import!M27297","v":0},{"$f":"Import!M27397","v":0}]
[79,{"$f":"Import!M26598","v":"Select"},{"$f":"Import!M26698","v":"Select"},{"$f":"Import!M26798","v":"Select"},{"$f":"Import!M26898","v":"Select"},{"$f":"Import!M26998","v":0},{"$f":"Import!M27098","v":0},{"$f":"Import!M27198","v":0},{"$f":"Import!M27298","v":0},{"$f":"Import!M27398","v":0}]
[80,{"$f":"Import!M26599","v":"Select"},{"$f":"Import!M26699","v":"Select"},{"$f":"Import!M26799","v":"Select"},{"$f":"Import!M26899","v":"Select"},{"$f":"Import!M26999","v":0},{"$f":"Import!M27099","v":0},{"$f":"Import!M27199","v":0},{"$f":"Import!M27299","v":0},{"$f":"Import!M27399","v":0}]
[81,{"$f":"Import!M26600","v":"Select"},{"$f":"Import!M26700","v":"Select"},{"$f":"Import!M26800","v":"Select"},{"$f":"Import!M26900","v":"Select"},{"$f":"Import!M27000","v":0},{"$f":"Import!M27100","v":0},{"$f":"Import!M27200","v":0},{"$f":"Import!M27300","v":0},{"$f":"Import!M27400","v":0}]
[82,{"$f":"Import!M26601","v":"Select"},{"$f":"Import!M26701","v":"Select"},{"$f":"Import!M26801","v":"Select"},{"$f":"Import!M26901","v":"Select"},{"$f":"Import!M27001","v":0},{"$f":"Import!M27101","v":0},{"$f":"Import!M27201","v":0},{"$f":"Import!M27301","v":0},{"$f":"Import!M27401","v":0}]
[83,{"$f":"Import!M26602","v":"Select"},{"$f":"Import!M26702","v":"Select"},{"$f":"Import!M26802","v":"Select"},{"$f":"Import!M26902","v":"Select"},{"$f":"Import!M27002","v":0},{"$f":"Import!M27102","v":0},{"$f":"Import!M27202","v":0},{"$f":"Import!M27302","v":0},{"$f":"Import!M27402","v":0}]
[84,{"$f":"Import!M26603","v":"Select"},{"$f":"Import!M26703","v":"Select"},{"$f":"Import!M26803","v":"Select"},{"$f":"Import!M26903","v":"Select"},{"$f":"Import!M27003","v":0},{"$f":"Import!M27103","v":0},{"$f":"Import!M27203","v":0},{"$f":"Import!M27303","v":0},{"$f":"Import!M27403","v":0}]
[85,{"$f":"Import!M26604","v":"Select"},{"$f":"Import!M26704","v":"Select"},{"$f":"Import!M26804","v":"Select"},{"$f":"Import!M26904","v":"Select"},{"$f":"Import!M27004","v":0},{"$f":"Import!M27104","v":0},{"$f":"Import!M27204","v":0},{"$f":"Import!M27304","v":0},{"$f":"Import!M27404","v":0}]
[86,{"$f":"Import!M26605","v":"Select"},{"$f":"Import!M26705","v":"Select"},{"$f":"Import!M26805","v":"Select"},{"$f":"Import!M26905","v":"Select"},{"$f":"Import!M27005","v":0},{"$f":"Import!M27105","v":0},{"$f":"Import!M27205","v":0},{"$f":"Import!M27305","v":0},{"$f":"Import!M27405","v":0}]
[87,{"$f":"Import!M26606","v":"Select"},{"$f":"Import!M26706","v":"Select"},{"$f":"Import!M26806","v":"Select"},{"$f":"Import!M26906","v":"Select"},{"$f":"Import!M27006","v":0},{"$f":"Import!M27106","v":0},{"$f":"Import!M27206","v":0},{"$f":"Import!M27306","v":0},{"$f":"Import!M27406","v":0}]
[88,{"$f":"Import!M26607","v":"Select"},{"$f":"Import!M26707","v":"Select"},{"$f":"Import!M26807","v":"Select"},{"$f":"Import!M26907","v":"Select"},{"$f":"Import!M27007","v":0},{"$f":"Import!M27107","v":0},{"$f":"Import!M27207","v":0},{"$f":"Import!M27307","v":0},{"$f":"Import!M27407","v":0}]
[89,{"$f":"Import!M26608","v":"Select"},{"$f":"Import!M26708","v":"Select"},{"$f":"Import!M26808","v":"Select"},{"$f":"Import!M26908","v":"Select"},{"$f":"Import!M27008","v":0},{"$f":"Import!M27108","v":0},{"$f":"Import!M27208","v":0},{"$f":"Import!M27308","v":0},{"$f":"Import!M27408","v":0}]
[90,{"$f":"Import!M26609","v":"Select"},{"$f":"Import!M26709","v":"Select"},{"$f":"Import!M26809","v":"Select"},{"$f":"Import!M26909","v":"Select"},{"$f":"Import!M27009","v":0},{"$f":"Import!M27109","v":0},{"$f":"Import!M27209","v":0},{"$f":"Import!M27309","v":0},{"$f":"Import!M27409","v":0}]
[91,{"$f":"Import!M26610","v":"Select"},{"$f":"Import!M26710","v":"Select"},{"$f":"Import!M26810","v":"Select"},{"$f":"Import!M26910","v":"Select"},{"$f":"Import!M27010","v":0},{"$f":"Import!M27110","v":0},{"$f":"Import!M27210","v":0},{"$f":"Import!M27310","v":0},{"$f":"Import!M27410","v":0}]
[92,{"$f":"Import!M26611","v":"Select"},{"$f":"Import!M26711","v":"Select"},{"$f":"Import!M26811","v":"Select"},{"$f":"Import!M26911","v":"Select"},{"$f":"Import!M27011","v":0},{"$f":"Import!M27111","v":0},{"$f":"Import!M27211","v":0},{"$f":"Import!M27311","v":0},{"$f":"Import!M27411","v":0}]
[93,{"$f":"Import!M26612","v":"Select"},{"$f":"Import!M26712","v":"Select"},{"$f":"Import!M26812","v":"Select"},{"$f":"Import!M26912","v":"Select"},{"$f":"Import!M27012","v":0},{"$f":"Import!M27112","v":0},{"$f":"Import!M27212","v":0},{"$f":"Import!M27312","v":0},{"$f":"Import!M27412","v":0}]
[94,{"$f":"Import!M26613","v":"Select"},{"$f":"Import!M26713","v":"Select"},{"$f":"Import!M26813","v":"Select"},{"$f":"Import!M26913","v":"Select"},{"$f":"Import!M27013","v":0},{"$f":"Import!M27113","v":0},{"$f":"Import!M27213","v":0},{"$f":"Import!M27313","v":0},{"$f":"Import!M27413","v":0}]
[95,{"$f":"Import!M26614","v":"Select"},{"$f":"Import!M26714","v":"Select"},{"$f":"Import!M26814","v":"Select"},{"$f":"Import!M26914","v":"Select"},{"$f":"Import!M27014","v":0},{"$f":"Import!M27114","v":0},{"$f":"Import!M27214","v":0},{"$f":"Import!M27314","v":0},{"$f":"Import!M27414","v":0}]
[96,{"$f":"Import!M26615","v":"Select"},{"$f":"Import!M26715","v":"Select"},{"$f":"Import!M26815","v":"Select"},{"$f":"Import!M26915","v":"Select"},{"$f":"Import!M27015","v":0},{"$f":"Import!M27115","v":0},{"$f":"Import!M27215","v":0},{"$f":"Import!M27315","v":0},{"$f":"Import!M27415","v":0}]
[97,{"$f":"Import!M26616","v":"Select"},{"$f":"Import!M26716","v":"Select"},{"$f":"Import!M26816","v":"Select"},{"$f":"Import!M26916","v":"Select"},{"$f":"Import!M27016","v":0},{"$f":"Import!M27116","v":0},{"$f":"Import!M27216","v":0},{"$f":"Import!M27316","v":0},{"$f":"Import!M27416","v":0}]
[98,{"$f":"Import!M26617","v":"Select"},{"$f":"Import!M26717","v":"Select"},{"$f":"Import!M26817","v":"Select"},{"$f":"Import!M26917","v":"Select"},{"$f":"Import!M27017","v":0},{"$f":"Import!M27117","v":0},{"$f":"Import!M27217","v":0},{"$f":"Import!M27317","v":0},{"$f":"Import!M27417","v":0}]
[99,{"$f":"Import!M26618","v":"Select"},{"$f":"Import!M26718","v":"Select"},{"$f":"Import!M26818","v":"Select"},{"$f":"Import!M26918","v":"Select"},{"$f":"Import!M27018","v":0},{"$f":"Import!M27118","v":0},{"$f":"Import!M27218","v":0},{"$f":"Import!M27318","v":0},{"$f":"Import!M27418","v":0}]
[100,{"$f":"Import!M26619","v":"Select"},{"$f":"Import!M26719","v":"Select"},{"$f":"Import!M26819","v":"Select"},{"$f":"Import!M26919","v":"Select"},{"$f":"Import!M27019","v":0},{"$f":"Import!M27119","v":0},{"$f":"Import!M27219","v":0},{"$f":"Import!M27319","v":0},{"$f":"Import!M27419","v":0}]
[]
[null,"Total Loans",null,null,null,{"$f":"SUM(F993:F1092)","v":0},{"$f":"SUM(G993:G1092)","v":0},{"$f":"IFERROR(SUMPRODUCT(H993:H1092,$G993:$G1092)/SUM($G993:$G1092),0)","v":0},{"$f":"IFERROR(SUMPRODUCT(I993:I1092,$G993:$G1092)/SUM($G993:$G1092),0)","v":0}]
[]
[null,"- OF WHICH NON-PERFORMING LOANS"]
[]
[null,null,"Enter # of Asset Types",{"$f":"Import!M27420","v":0}]
[null,null,null,null,null,{"$f":"YEAR($C$3)","v":2023},2023]
[null,"Asset Type","Currency","Country","BSCR Rating","Nominal Amount","Fair Value","Comments"]
[1,{"$f":"Import!M27421","v":"Select"},{"$f":"Import!M27441","v":"Select"},{"$f":"Import!M27461","v":"Select"},{"$f":"Import!M27481","v":"Select"},{"$f":"Import!M27501","v":0},{"$f":"Import!M27521","v":0},{"$f":"Import!M27541","v":0}]
[{"$f":"A1101+1","v":2},{"$f":"Import!M27422","v":"Select"},{"$f":"Import!M27442","v":"Select"},{"$f":"Import!M27462","v":"Select"},{"$f":"Import!M27482","v":"Select"},{"$f":"Import!M27502","v":0},{"$f":"Import!M27522","v":0},{"$f":"Import!M27542","v":0}]
[{"$f":"A1102+1","v":3},{"$f":"Import!M27423","v":"Select"},{"$f":"Import!M27443","v":"Select"},{"$f":"Import!M27463","v":"Select"},{"$f":"Import!M27483","v":"Select"},{"$f":"Import!M27503","v":0},{"$f":"Import!M27523","v":0},{"$f":"Import!M27543","v":0}]
[4,{"$f":"Import!M27424","v":"Select"},{"$f":"Import!M27444","v":"Select"},{"$f":"Import!M27464","v":"Select"},{"$f":"Import!M27484","v":"Select"},{"$f":"Import!M27504","v":0},{"$f":"Import!M27524","v":0},{"$f":"Import!M27544","v":0}]
[5,{"$f":"Import!M27425","v":"Select"},{"$f":"Import!M27445","v":"Select"},{"$f":"Import!M27465","v":"Select"},{"$f":"Import!M27485","v":"Select"},{"$f":"Import!M27505","v":0},{"$f":"Import!M27525","v":0},{"$f":"Import!M27545","v":0}]
[6,{"$f":"Import!M27426","v":"Select"},{"$f":"Import!M27446","v":"Select"},{"$f":"Import!M27466","v":"Select"},{"$f":"Import!M27486","v":"Select"},{"$f":"Import!M27506","v":0},{"$f":"Import!M27526","v":0},{"$f":"Import!M27546","v":0}]
[7,{"$f":"Import!M27427","v":"Select"},{"$f":"Import!M27447","v":"Select"},{"$f":"Import!M27467","v":"Select"},{"$f":"Import!M27487","v":"Select"},{"$f":"Import!M27507","v":0},{"$f":"Import!M27527","v":0},{"$f":"Import!M27547","v":0}]
[8,{"$f":"Import!M27428","v":"Select"},{"$f":"Import!M27448","v":"Select"},{"$f":"Import!M27468","v":"Select"},{"$f":"Import!M27488","v":"Select"},{"$f":"Import!M27508","v":0},{"$f":"Import!M27528","v":0},{"$f":"Import!M27548","v":0}]
[9,{"$f":"Import!M27429","v":"Select"},{"$f":"Import!M27449","v":"Select"},{"$f":"Import!M27469","v":"Select"},{"$f":"Import!M27489","v":"Select"},{"$f":"Import!M27509","v":0},{"$f":"Import!M27529","v":0},{"$f":"Import!M27549","v":0}]
[10,{"$f":"Import!M27430","v":"Select"},{"$f":"Import!M27450","v":"Select"},{"$f":"Import!M27470","v":"Select"},{"$f":"Import!M27490","v":"Select"},{"$f":"Import!M27510","v":0},{"$f":"Import!M27530","v":0},{"$f":"Import!M27550","v":0}]
[11,{"$f":"Import!M27431","v":"Select"},{"$f":"Import!M27451","v":"Select"},{"$f":"Import!M27471","v":"Select"},{"$f":"Import!M27491","v":"Select"},{"$f":"Import!M27511","v":0},{"$f":"Import!M27531","v":0},{"$f":"Import!M27551","v":0}]
[12,{"$f":"Import!M27432","v":"Select"},{"$f":"Import!M27452","v":"Select"},{"$f":"Import!M27472","v":"Select"},{"$f":"Import!M27492","v":"Select"},{"$f":"Import!M27512","v":0},{"$f":"Import!M27532","v":0},{"$f":"Import!M27552","v":0}]
[13,{"$f":"Import!M27433","v":"Select"},{"$f":"Import!M27453","v":"Select"},{"$f":"Import!M27473","v":"Select"},{"$f":"Import!M27493","v":"Select"},{"$f":"Import!M27513","v":0},{"$f":"Import!M27533","v":0},{"$f":"Import!M27553","v":0}]
[14,{"$f":"Import!M27434","v":"Select"},{"$f":"Import!M27454","v":"Select"},{"$f":"Import!M27474","v":"Select"},{"$f":"Import!M27494","v":"Select"},{"$f":"Import!M27514","v":0},{"$f":"Import!M27534","v":0},{"$f":"Import!M27554","v":0}]
[15,{"$f":"Import!M27435","v":"Select"},{"$f":"Import!M27455","v":"Select"},{"$f":"Import!M27475","v":"Select"},{"$f":"Import!M27495","v":"Select"},{"$f":"Import!M27515","v":0},{"$f":"Import!M27535","v":0},{"$f":"Import!M27555","v":0}]
[16,{"$f":"Import!M27436","v":"Select"},{"$f":"Import!M27456","v":"Select"},{"$f":"Import!M27476","v":"Select"},{"$f":"Import!M27496","v":"Select"},{"$f":"Import!M27516","v":0},{"$f":"Import!M27536","v":0},{"$f":"Import!M27556","v":0}]
[17,{"$f":"Import!M27437","v":"Select"},{"$f":"Import!M27457","v":"Select"},{"$f":"Import!M27477","v":"Select"},{"$f":"Import!M27497","v":"Select"},{"$f":"Import!M27517","v":0},{"$f":"Import!M27537","v":0},{"$f":"Import!M27557","v":0}]
[18,{"$f":"Import!M27438","v":"Select"},{"$f":"Import!M27458","v":"Select"},{"$f":"Import!M27478","v":"Select"},{"$f":"Import!M27498","v":"Select"},{"$f":"Import!M27518","v":0},{"$f":"Import!M27538","v":0},{"$f":"Import!M27558","v":0}]
[19,{"$f":"Import!M27439","v":"Select"},{"$f":"Import!M27459","v":"Select"},{"$f":"Import!M27479","v":"Select"},{"$f":"Import!M27499","v":"Select"},{"$f":"Import!M27519","v":0},{"$f":"Import!M27539","v":0},{"$f":"Import!M27559","v":0}]
[20,{"$f":"Import!M27440","v":"Select"},{"$f":"Import!M27460","v":"Select"},{"$f":"Import!M27480","v":"Select"},{"$f":"Import!M27500","v":"Select"},{"$f":"Import!M27520","v":0},{"$f":"Import!M27540","v":0},{"$f":"Import!M27560","v":0}]
[]
[null,"Total Non-Performing Loans",null,null,null,{"$f":"SUM(F1101:F1120)","v":0},{"$f":"SUM(G1101:G1120)","v":0}]
[]
[null,"(E) PREFERRED EQUITIES"]
[]
[null,null,"Enter # of Asset Types",{"$f":"Import!M27561","v":0}]
[null,null,null,null,{"$f":"YEAR($C$3)","v":2023},2023,"Weighted"]
[null,"Asset Type","Currency","BSCR Rating","Nominal Amount","Fair Value","Average YTM","Effective Duration","Comments"]
[1,{"$f":"Import!M27562","v":"Select"},{"$f":"Import!M27662","v":"Select"},{"$f":"Import!M27762","v":"Select"},{"$f":"Import!M27862","v":0},{"$f":"Import!M27962","v":0},{"$f":"Import!M28062","v":0},{"$f":"Import!M28162","v":0},{"$f":"Import!M28262","v":0}]
[{"$f":"A1129+1","v":2},{"$f":"Import!M27563","v":"Select"},{"$f":"Import!M27663","v":"Select"},{"$f":"Import!M27763","v":"Select"},{"$f":"Import!M27863","v":0},{"$f":"Import!M27963","v":0},{"$f":"Import!M28063","v":0},{"$f":"Import!M28163","v":0},{"$f":"Import!M28263","v":0}]
[{"$f":"A1130+1","v":3},{"$f":"Import!M27564","v":"Select"},{"$f":"Import!M27664","v":"Select"},{"$f":"Import!M27764","v":"Select"},{"$f":"Import!M27864","v":0},{"$f":"Import!M27964","v":0},{"$f":"Import!M28064","v":0},{"$f":"Import!M28164","v":0},{"$f":"Import!M28264","v":0}]
[4,{"$f":"Import!M27565","v":"Select"},{"$f":"Import!M27665","v":"Select"},{"$f":"Import!M27765","v":"Select"},{"$f":"Import!M27865","v":0},{"$f":"Import!M27965","v":0},{"$f":"Import!M28065","v":0},{"$f":"Import!M28165","v":0},{"$f":"Import!M28265","v":0}]
[5,{"$f":"Import!M27566","v":"Select"},{"$f":"Import!M27666","v":"Select"},{"$f":"Import!M27766","v":"Select"},{"$f":"Import!M27866","v":0},{"$f":"Import!M27966","v":0},{"$f":"Import!M28066","v":0},{"$f":"Import!M28166","v":0},{"$f":"Import!M28266","v":0}]
[6,{"$f":"Import!M27567","v":"Select"},{"$f":"Import!M27667","v":"Select"},{"$f":"Import!M27767","v":"Select"},{"$f":"Import!M27867","v":0},{"$f":"Import!M27967","v":0},{"$f":"Import!M28067","v":0},{"$f":"Import!M28167","v":0},{"$f":"Import!M28267","v":0}]
[7,{"$f":"Import!M27568","v":"Select"},{"$f":"Import!M27668","v":"Select"},{"$f":"Import!M27768","v":"Select"},{"$f":"Import!M27868","v":0},{"$f":"Import!M27968","v":0},{"$f":"Import!M28068","v":0},{"$f":"Import!M28168","v":0},{"$f":"Import!M28268","v":0}]
[8,{"$f":"Import!M27569","v":"Select"},{"$f":"Import!M27669","v":"Select"},{"$f":"Import!M27769","v":"Select"},{"$f":"Import!M27869","v":0},{"$f":"Import!M27969","v":0},{"$f":"Import!M28069","v":0},{"$f":"Import!M28169","v":0},{"$f":"Import!M28269","v":0}]
[9,{"$f":"Import!M27570","v":"Select"},{"$f":"Import!M27670","v":"Select"},{"$f":"Import!M27770","v":"Select"},{"$f":"Import!M27870","v":0},{"$f":"Import!M27970","v":0},{"$f":"Import!M28070","v":0},{"$f":"Import!M28170","v":0},{"$f":"Import!M28270","v":0}]
[10,{"$f":"Import!M27571","v":"Select"},{"$f":"Import!M27671","v":"Select"},{"$f":"Import!M27771","v":"Select"},{"$f":"Import!M27871","v":0},{"$f":"Import!M27971","v":0},{"$f":"Import!M28071","v":0},{"$f":"Import!M28171","v":0},{"$f":"Import!M28271","v":0}]
[11,{"$f":"Import!M27572","v":"Select"},{"$f":"Import!M27672","v":"Select"},{"$f":"Import!M27772","v":"Select"},{"$f":"Import!M27872","v":0},{"$f":"Import!M27972","v":0},{"$f":"Import!M28072","v":0},{"$f":"Import!M28172","v":0},{"$f":"Import!M28272","v":0}]
[12,{"$f":"Import!M27573","v":"Select"},{"$f":"Import!M27673","v":"Select"},{"$f":"Import!M27773","v":"Select"},{"$f":"Import!M27873","v":0},{"$f":"Import!M27973","v":0},{"$f":"Import!M28073","v":0},{"$f":"Import!M28173","v":0},{"$f":"Import!M28273","v":0}]
[13,{"$f":"Import!M27574","v":"Select"},{"$f":"Import!M27674","v":"Select"},{"$f":"Import!M27774","v":"Select"},{"$f":"Import!M27874","v":0},{"$f":"Import!M27974","v":0},{"$f":"Import!M28074","v":0},{"$f":"Import!M28174","v":0},{"$f":"Import!M28274","v":0}]
[14,{"$f":"Import!M27575","v":"Select"},{"$f":"Import!M27675","v":"Select"},{"$f":"Import!M27775","v":"Select"},{"$f":"Import!M27875","v":0},{"$f":"Import!M27975","v":0},{"$f":"Import!M28075","v":0},{"$f":"Import!M28175","v":0},{"$f":"Import!M28275","v":0}]
[15,{"$f":"Import!M27576","v":"Select"},{"$f":"Import!M27676","v":"Select"},{"$f":"Import!M27776","v":"Select"},{"$f":"Import!M27876","v":0},{"$f":"Import!M27976","v":0},{"$f":"Import!M28076","v":0},{"$f":"Import!M28176","v":0},{"$f":"Import!M28276","v":0}]
[16,{"$f":"Import!M27577","v":"Select"},{"$f":"Import!M27677","v":"Select"},{"$f":"Import!M27777","v":"Select"},{"$f":"Import!M27877","v":0},{"$f":"Import!M27977","v":0},{"$f":"Import!M28077","v":0},{"$f":"Import!M28177","v":0},{"$f":"Import!M28277","v":0}]
[17,{"$f":"Import!M27578","v":"Select"},{"$f":"Import!M27678","v":"Select"},{"$f":"Import!M27778","v":"Select"},{"$f":"Import!M27878","v":0},{"$f":"Import!M27978","v":0},{"$f":"Import!M28078","v":0},{"$f":"Import!M28178","v":0},{"$f":"Import!M28278","v":0}]
[18,{"$f":"Import!M27579","v":"Select"},{"$f":"Import!M27679","v":"Select"},{"$f":"Import!M27779","v":"Select"},{"$f":"Import!M27879","v":0},{"$f":"Import!M27979","v":0},{"$f":"Import!M28079","v":0},{"$f":"Import!M28179","v":0},{"$f":"Import!M28279","v":0}]
[19,{"$f":"Import!M27580","v":"Select"},{"$f":"Import!M27680","v":"Select"},{"$f":"Import!M27780","v":"Select"},{"$f":"Import!M27880","v":0},{"$f":"Import!M27980","v":0},{"$f":"Import!M28080","v":0},{"$f":"Import!M28180","v":0},{"$f":"Import!M28280","v":0}]
[20,{"$f":"Import!M27581","v":"Select"},{"$f":"Import!M27681","v":"Select"},{"$f":"Import!M27781","v":"Select"},{"$f":"Import!M27881","v":0},{"$f":"Import!M27981","v":0},{"$f":"Import!M28081","v":0},{"$f":"Import!M28181","v":0},{"$f":"Import!M28281","v":0}]
[21,{"$f":"Import!M27582","v":"Select"},{"$f":"Import!M27682","v":"Select"},{"$f":"Import!M27782","v":"Select"},{"$f":"Import!M27882","v":0},{"$f":"Import!M27982","v":0},{"$f":"Import!M28082","v":0},{"$f":"Import!M28182","v":0},{"$f":"Import!M28282","v":0}]
[22,{"$f":"Import!M27583","v":"Select"},{"$f":"Import!M27683","v":"Select"},{"$f":"Import!M27783","v":"Select"},{"$f":"Import!M27883","v":0},{"$f":"Import!M27983","v":0},{"$f":"Import!M28083","v":0},{"$f":"Import!M28183","v":0},{"$f":"Import!M28283","v":0}]
[23,{"$f":"Import!M27584","v":"Select"},{"$f":"Import!M27684","v":"Select"},{"$f":"Import!M27784","v":"Select"},{"$f":"Import!M27884","v":0},{"$f":"Import!M27984","v":0},{"$f":"Import!M28084","v":0},{"$f":"Import!M28184","v":0},{"$f":"Import!M28284","v":0}]
[24,{"$f":"Import!M27585","v":"Select"},{"$f":"Import!M27685","v":"Select"},{"$f":"Import!M27785","v":"Select"},{"$f":"Import!M27885","v":0},{"$f":"Import!M27985","v":0},{"$f":"Import!M28085","v":0},{"$f":"Import!M28185","v":0},{"$f":"Import!M28285","v":0}]
[25,{"$f":"Import!M27586","v":"Select"},{"$f":"Import!M27686","v":"Select"},{"$f":"Import!M27786","v":"Select"},{"$f":"Import!M27886","v":0},{"$f":"Import!M27986","v":0},{"$f":"Import!M28086","v":0},{"$f":"Import!M28186","v":0},{"$f":"Import!M28286","v":0}]
[26,{"$f":"Import!M27587","v":"Select"},{"$f":"Import!M27687","v":"Select"},{"$f":"Import!M27787","v":"Select"},{"$f":"Import!M27887","v":0},{"$f":"Import!M27987","v":0},{"$f":"Import!M28087","v":0},{"$f":"Import!M28187","v":0},{"$f":"Import!M28287","v":0}]
[27,{"$f":"Import!M27588","v":"Select"},{"$f":"Import!M27688","v":"Select"},{"$f":"Import!M27788","v":"Select"},{"$f":"Import!M27888","v":0},{"$f":"Import!M27988","v":0},{"$f":"Import!M28088","v":0},{"$f":"Import!M28188","v":0},{"$f":"Import!M28288","v":0}]
[28,{"$f":"Import!M27589","v":"Select"},{"$f":"Import!M27689","v":"Select"},{"$f":"Import!M27789","v":"Select"},{"$f":"Import!M27889","v":0},{"$f":"Import!M27989","v":0},{"$f":"Import!M28089","v":0},{"$f":"Import!M28189","v":0},{"$f":"Import!M28289","v":0}]
[29,{"$f":"Import!M27590","v":"Select"},{"$f":"Import!M27690","v":"Select"},{"$f":"Import!M27790","v":"Select"},{"$f":"Import!M27890","v":0},{"$f":"Import!M27990","v":0},{"$f":"Import!M28090","v":0},{"$f":"Import!M28190","v":0},{"$f":"Import!M28290","v":0}]
[30,{"$f":"Import!M27591","v":"Select"},{"$f":"Import!M27691","v":"Select"},{"$f":"Import!M27791","v":"Select"},{"$f":"Import!M27891","v":0},{"$f":"Import!M27991","v":0},{"$f":"Import!M28091","v":0},{"$f":"Import!M28191","v":0},{"$f":"Import!M28291","v":0}]
[31,{"$f":"Import!M27592","v":"Select"},{"$f":"Import!M27692","v":"Select"},{"$f":"Import!M27792","v":"Select"},{"$f":"Import!M27892","v":0},{"$f":"Import!M27992","v":0},{"$f":"Import!M28092","v":0},{"$f":"Import!M28192","v":0},{"$f":"Import!M28292","v":0}]
[32,{"$f":"Import!M27593","v":"Select"},{"$f":"Import!M27693","v":"Select"},{"$f":"Import!M27793","v":"Select"},{"$f":"Import!M27893","v":0},{"$f":"Import!M27993","v":0},{"$f":"Import!M28093","v":0},{"$f":"Import!M28193","v":0},{"$f":"Import!M28293","v":0}]
[33,{"$f":"Import!M27594","v":"Select"},{"$f":"Import!M27694","v":"Select"},{"$f":"Import!M27794","v":"Select"},{"$f":"Import!M27894","v":0},{"$f":"Import!M27994","v":0},{"$f":"Import!M28094","v":0},{"$f":"Import!M28194","v":0},{"$f":"Import!M28294","v":0}]
[34,{"$f":"Import!M27595","v":"Select"},{"$f":"Import!M27695","v":"Select"},{"$f":"Import!M27795","v":"Select"},{"$f":"Import!M27895","v":0},{"$f":"Import!M27995","v":0},{"$f":"Import!M28095","v":0},{"$f":"Import!M28195","v":0},{"$f":"Import!M28295","v":0}]
[35,{"$f":"Import!M27596","v":"Select"},{"$f":"Import!M27696","v":"Select"},{"$f":"Import!M27796","v":"Select"},{"$f":"Import!M27896","v":0},{"$f":"Import!M27996","v":0},{"$f":"Import!M28096","v":0},{"$f":"Import!M28196","v":0},{"$f":"Import!M28296","v":0}]
[36,{"$f":"Import!M27597","v":"Select"},{"$f":"Import!M27697","v":"Select"},{"$f":"Import!M27797","v":"Select"},{"$f":"Import!M27897","v":0},{"$f":"Import!M27997","v":0},{"$f":"Import!M28097","v":0},{"$f":"Import!M28197","v":0},{"$f":"Import!M28297","v":0}]
[37,{"$f":"Import!M27598","v":"Select"},{"$f":"Import!M27698","v":"Select"},{"$f":"Import!M27798","v":"Select"},{"$f":"Import!M27898","v":0},{"$f":"Import!M27998","v":0},{"$f":"Import!M28098","v":0},{"$f":"Import!M28198","v":0},{"$f":"Import!M28298","v":0}]
[38,{"$f":"Import!M27599","v":"Select"},{"$f":"Import!M27699","v":"Select"},{"$f":"Import!M27799","v":"Select"},{"$f":"Import!M27899","v":0},{"$f":"Import!M27999","v":0},{"$f":"Import!M28099","v":0},{"$f":"Import!M28199","v":0},{"$f":"Import!M28299","v":0}]
[39,{"$f":"Import!M27600","v":"Select"},{"$f":"Import!M27700","v":"Select"},{"$f":"Import!M27800","v":"Select"},{"$f":"Import!M27900","v":0},{"$f":"Import!M28000","v":0},{"$f":"Import!M28100","v":0},{"$f":"Import!M28200","v":0},{"$f":"Import!M28300","v":0}]
[40,{"$f":"Import!M27601","v":"Select"},{"$f":"Import!M27701","v":"Select"},{"$f":"Import!M27801","v":"Select"},{"$f":"Import!M27901","v":0},{"$f":"Import!M28001","v":0},{"$f":"Import!M28101","v":0},{"$f":"Import!M28201","v":0},{"$f":"Import!M28301","v":0}]
[41,{"$f":"Import!M27602","v":"Select"},{"$f":"Import!M27702","v":"Select"},{"$f":"Import!M27802","v":"Select"},{"$f":"Import!M27902","v":0},{"$f":"Import!M28002","v":0},{"$f":"Import!M28102","v":0},{"$f":"Import!M28202","v":0},{"$f":"Import!M28302","v":0}]
[42,{"$f":"Import!M27603","v":"Select"},{"$f":"Import!M27703","v":"Select"},{"$f":"Import!M27803","v":"Select"},{"$f":"Import!M27903","v":0},{"$f":"Import!M28003","v":0},{"$f":"Import!M28103","v":0},{"$f":"Import!M28203","v":0},{"$f":"Import!M28303","v":0}]
[43,{"$f":"Import!M27604","v":"Select"},{"$f":"Import!M27704","v":"Select"},{"$f":"Import!M27804","v":"Select"},{"$f":"Import!M27904","v":0},{"$f":"Import!M28004","v":0},{"$f":"Import!M28104","v":0},{"$f":"Import!M28204","v":0},{"$f":"Import!M28304","v":0}]
[44,{"$f":"Import!M27605","v":"Select"},{"$f":"Import!M27705","v":"Select"},{"$f":"Import!M27805","v":"Select"},{"$f":"Import!M27905","v":0},{"$f":"Import!M28005","v":0},{"$f":"Import!M28105","v":0},{"$f":"Import!M28205","v":0},{"$f":"Import!M28305","v":0}]
[45,{"$f":"Import!M27606","v":"Select"},{"$f":"Import!M27706","v":"Select"},{"$f":"Import!M27806","v":"Select"},{"$f":"Import!M27906","v":0},{"$f":"Import!M28006","v":0},{"$f":"Import!M28106","v":0},{"$f":"Import!M28206","v":0},{"$f":"Import!M28306","v":0}]
[46,{"$f":"Import!M27607","v":"Select"},{"$f":"Import!M27707","v":"Select"},{"$f":"Import!M27807","v":"Select"},{"$f":"Import!M27907","v":0},{"$f":"Import!M28007","v":0},{"$f":"Import!M28107","v":0},{"$f":"Import!M28207","v":0},{"$f":"Import!M28307","v":0}]
[47,{"$f":"Import!M27608","v":"Select"},{"$f":"Import!M27708","v":"Select"},{"$f":"Import!M27808","v":"Select"},{"$f":"Import!M27908","v":0},{"$f":"Import!M28008","v":0},{"$f":"Import!M28108","v":0},{"$f":"Import!M28208","v":0},{"$f":"Import!M28308","v":0}]
[48,{"$f":"Import!M27609","v":"Select"},{"$f":"Import!M27709","v":"Select"},{"$f":"Import!M27809","v":"Select"},{"$f":"Import!M27909","v":0},{"$f":"Import!M28009","v":0},{"$f":"Import!M28109","v":0},{"$f":"Import!M28209","v":0},{"$f":"Import!M28309","v":0}]
[49,{"$f":"Import!M27610","v":"Select"},{"$f":"Import!M27710","v":"Select"},{"$f":"Import!M27810","v":"Select"},{"$f":"Import!M27910","v":0},{"$f":"Import!M28010","v":0},{"$f":"Import!M28110","v":0},{"$f":"Import!M28210","v":0},{"$f":"Import!M28310","v":0}]
[50,{"$f":"Import!M27611","v":"Select"},{"$f":"Import!M27711","v":"Select"},{"$f":"Import!M27811","v":"Select"},{"$f":"Import!M27911","v":0},{"$f":"Import!M28011","v":0},{"$f":"Import!M28111","v":0},{"$f":"Import!M28211","v":0},{"$f":"Import!M28311","v":0}]
[51,{"$f":"Import!M27612","v":"Select"},{"$f":"Import!M27712","v":"Select"},{"$f":"Import!M27812","v":"Select"},{"$f":"Import!M27912","v":0},{"$f":"Import!M28012","v":0},{"$f":"Import!M28112","v":0},{"$f":"Import!M28212","v":0},{"$f":"Import!M28312","v":0}]
[52,{"$f":"Import!M27613","v":"Select"},{"$f":"Import!M27713","v":"Select"},{"$f":"Import!M27813","v":"Select"},{"$f":"Import!M27913","v":0},{"$f":"Import!M28013","v":0},{"$f":"Import!M28113","v":0},{"$f":"Import!M28213","v":0},{"$f":"Import!M28313","v":0}]
[53,{"$f":"Import!M27614","v":"Select"},{"$f":"Import!M27714","v":"Select"},{"$f":"Import!M27814","v":"Select"},{"$f":"Import!M27914","v":0},{"$f":"Import!M28014","v":0},{"$f":"Import!M28114","v":0},{"$f":"Import!M28214","v":0},{"$f":"Import!M28314","v":0}]
[54,{"$f":"Import!M27615","v":"Select"},{"$f":"Import!M27715","v":"Select"},{"$f":"Import!M27815","v":"Select"},{"$f":"Import!M27915","v":0},{"$f":"Import!M28015","v":0},{"$f":"Import!M28115","v":0},{"$f":"Import!M28215","v":0},{"$f":"Import!M28315","v":0}]
[55,{"$f":"Import!M27616","v":"Select"},{"$f":"Import!M27716","v":"Select"},{"$f":"Import!M27816","v":"Select"},{"$f":"Import!M27916","v":0},{"$f":"Import!M28016","v":0},{"$f":"Import!M28116","v":0},{"$f":"Import!M28216","v":0},{"$f":"Import!M28316","v":0}]
[56,{"$f":"Import!M27617","v":"Select"},{"$f":"Import!M27717","v":"Select"},{"$f":"Import!M27817","v":"Select"},{"$f":"Import!M27917","v":0},{"$f":"Import!M28017","v":0},{"$f":"Import!M28117","v":0},{"$f":"Import!M28217","v":0},{"$f":"Import!M28317","v":0}]
[57,{"$f":"Import!M27618","v":"Select"},{"$f":"Import!M27718","v":"Select"},{"$f":"Import!M27818","v":"Select"},{"$f":"Import!M27918","v":0},{"$f":"Import!M28018","v":0},{"$f":"Import!M28118","v":0},{"$f":"Import!M28218","v":0},{"$f":"Import!M28318","v":0}]
[58,{"$f":"Import!M27619","v":"Select"},{"$f":"Import!M27719","v":"Select"},{"$f":"Import!M27819","v":"Select"},{"$f":"Import!M27919","v":0},{"$f":"Import!M28019","v":0},{"$f":"Import!M28119","v":0},{"$f":"Import!M28219","v":0},{"$f":"Import!M28319","v":0}]
[59,{"$f":"Import!M27620","v":"Select"},{"$f":"Import!M27720","v":"Select"},{"$f":"Import!M27820","v":"Select"},{"$f":"Import!M27920","v":0},{"$f":"Import!M28020","v":0},{"$f":"Import!M28120","v":0},{"$f":"Import!M28220","v":0},{"$f":"Import!M28320","v":0}]
[60,{"$f":"Import!M27621","v":"Select"},{"$f":"Import!M27721","v":"Select"},{"$f":"Import!M27821","v":"Select"},{"$f":"Import!M27921","v":0},{"$f":"Import!M28021","v":0},{"$f":"Import!M28121","v":0},{"$f":"Import!M28221","v":0},{"$f":"Import!M28321","v":0}]
[61,{"$f":"Import!M27622","v":"Select"},{"$f":"Import!M27722","v":"Select"},{"$f":"Import!M27822","v":"Select"},{"$f":"Import!M27922","v":0},{"$f":"Import!M28022","v":0},{"$f":"Import!M28122","v":0},{"$f":"Import!M28222","v":0},{"$f":"Import!M28322","v":0}]
[62,{"$f":"Import!M27623","v":"Select"},{"$f":"Import!M27723","v":"Select"},{"$f":"Import!M27823","v":"Select"},{"$f":"Import!M27923","v":0},{"$f":"Import!M28023","v":0},{"$f":"Import!M28123","v":0},{"$f":"Import!M28223","v":0},{"$f":"Import!M28323","v":0}]
[63,{"$f":"Import!M27624","v":"Select"},{"$f":"Import!M27724","v":"Select"},{"$f":"Import!M27824","v":"Select"},{"$f":"Import!M27924","v":0},{"$f":"Import!M28024","v":0},{"$f":"Import!M28124","v":0},{"$f":"Import!M28224","v":0},{"$f":"Import!M28324","v":0}]
[64,{"$f":"Import!M27625","v":"Select"},{"$f":"Import!M27725","v":"Select"},{"$f":"Import!M27825","v":"Select"},{"$f":"Import!M27925","v":0},{"$f":"Import!M28025","v":0},{"$f":"Import!M28125","v":0},{"$f":"Import!M28225","v":0},{"$f":"Import!M28325","v":0}]
[65,{"$f":"Import!M27626","v":"Select"},{"$f":"Import!M27726","v":"Select"},{"$f":"Import!M27826","v":"Select"},{"$f":"Import!M27926","v":0},{"$f":"Import!M28026","v":0},{"$f":"Import!M28126","v":0},{"$f":"Import!M28226","v":0},{"$f":"Import!M28326","v":0}]
[66,{"$f":"Import!M27627","v":"Select"},{"$f":"Import!M27727","v":"Select"},{"$f":"Import!M27827","v":"Select"},{"$f":"Import!M27927","v":0},{"$f":"Import!M28027","v":0},{"$f":"Import!M28127","v":0},{"$f":"Import!M28227","v":0},{"$f":"Import!M28327","v":0}]
[{"$f":"A1194+1","v":67},{"$f":"Import!M27628","v":"Select"},{"$f":"Import!M27728","v":"Select"},{"$f":"Import!M27828","v":"Select"},{"$f":"Import!M27928","v":0},{"$f":"Import!M28028","v":0},{"$f":"Import!M28128","v":0},{"$f":"Import!M28228","v":0},{"$f":"Import!M28328","v":0}]
[68,{"$f":"Import!M27629","v":"Select"},{"$f":"Import!M27729","v":"Select"},{"$f":"Import!M27829","v":"Select"},{"$f":"Import!M27929","v":0},{"$f":"Import!M28029","v":0},{"$f":"Import!M28129","v":0},{"$f":"Import!M28229","v":0},{"$f":"Import!M28329","v":0}]
[69,{"$f":"Import!M27630","v":"Select"},{"$f":"Import!M27730","v":"Select"},{"$f":"Import!M27830","v":"Select"},{"$f":"Import!M27930","v":0},{"$f":"Import!M28030","v":0},{"$f":"Import!M28130","v":0},{"$f":"Import!M28230","v":0},{"$f":"Import!M28330","v":0}]
[70,{"$f":"Import!M27631","v":"Select"},{"$f":"Import!M27731","v":"Select"},{"$f":"Import!M27831","v":"Select"},{"$f":"Import!M27931","v":0},{"$f":"Import!M28031","v":0},{"$f":"Import!M28131","v":0},{"$f":"Import!M28231","v":0},{"$f":"Import!M28331","v":0}]
[71,{"$f":"Import!M27632","v":"Select"},{"$f":"Import!M27732","v":"Select"},{"$f":"Import!M27832","v":"Select"},{"$f":"Import!M27932","v":0},{"$f":"Import!M28032","v":0},{"$f":"Import!M28132","v":0},{"$f":"Import!M28232","v":0},{"$f":"Import!M28332","v":0}]
[72,{"$f":"Import!M27633","v":"Select"},{"$f":"Import!M27733","v":"Select"},{"$f":"Import!M27833","v":"Select"},{"$f":"Import!M27933","v":0},{"$f":"Import!M28033","v":0},{"$f":"Import!M28133","v":0},{"$f":"Import!M28233","v":0},{"$f":"Import!M28333","v":0}]
[73,{"$f":"Import!M27634","v":"Select"},{"$f":"Import!M27734","v":"Select"},{"$f":"Import!M27834","v":"Select"},{"$f":"Import!M27934","v":0},{"$f":"Import!M28034","v":0},{"$f":"Import!M28134","v":0},{"$f":"Import!M28234","v":0},{"$f":"Import!M28334","v":0}]
[74,{"$f":"Import!M27635","v":"Select"},{"$f":"Import!M27735","v":"Select"},{"$f":"Import!M27835","v":"Select"},{"$f":"Import!M27935","v":0},{"$f":"Import!M28035","v":0},{"$f":"Import!M28135","v":0},{"$f":"Import!M28235","v":0},{"$f":"Import!M28335","v":0}]
[75,{"$f":"Import!M27636","v":"Select"},{"$f":"Import!M27736","v":"Select"},{"$f":"Import!M27836","v":"Select"},{"$f":"Import!M27936","v":0},{"$f":"Import!M28036","v":0},{"$f":"Import!M28136","v":0},{"$f":"Import!M28236","v":0},{"$f":"Import!M28336","v":0}]
[76,{"$f":"Import!M27637","v":"Select"},{"$f":"Import!M27737","v":"Select"},{"$f":"Import!M27837","v":"Select"},{"$f":"Import!M27937","v":0},{"$f":"Import!M28037","v":0},{"$f":"Import!M28137","v":0},{"$f":"Import!M28237","v":0},{"$f":"Import!M28337","v":0}]
[77,{"$f":"Import!M27638","v":"Select"},{"$f":"Import!M27738","v":"Select"},{"$f":"Import!M27838","v":"Select"},{"$f":"Import!M27938","v":0},{"$f":"Import!M28038","v":0},{"$f":"Import!M28138","v":0},{"$f":"Import!M28238","v":0},{"$f":"Import!M28338","v":0}]
[78,{"$f":"Import!M27639","v":"Select"},{"$f":"Import!M27739","v":"Select"},{"$f":"Import!M27839","v":"Select"},{"$f":"Import!M27939","v":0},{"$f":"Import!M28039","v":0},{"$f":"Import!M28139","v":0},{"$f":"Import!M28239","v":0},{"$f":"Import!M28339","v":0}]
[79,{"$f":"Import!M27640","v":"Select"},{"$f":"Import!M27740","v":"Select"},{"$f":"Import!M27840","v":"Select"},{"$f":"Import!M27940","v":0},{"$f":"Import!M28040","v":0},{"$f":"Import!M28140","v":0},{"$f":"Import!M28240","v":0},{"$f":"Import!M28340","v":0}]
[80,{"$f":"Import!M27641","v":"Select"},{"$f":"Import!M27741","v":"Select"},{"$f":"Import!M27841","v":"Select"},{"$f":"Import!M27941","v":0},{"$f":"Import!M28041","v":0},{"$f":"Import!M28141","v":0},{"$f":"Import!M28241","v":0},{"$f":"Import!M28341","v":0}]
[81,{"$f":"Import!M27642","v":"Select"},{"$f":"Import!M27742","v":"Select"},{"$f":"Import!M27842","v":"Select"},{"$f":"Import!M27942","v":0},{"$f":"Import!M28042","v":0},{"$f":"Import!M28142","v":0},{"$f":"Import!M28242","v":0},{"$f":"Import!M28342","v":0}]
[82,{"$f":"Import!M27643","v":"Select"},{"$f":"Import!M27743","v":"Select"},{"$f":"Import!M27843","v":"Select"},{"$f":"Import!M27943","v":0},{"$f":"Import!M28043","v":0},{"$f":"Import!M28143","v":0},{"$f":"Import!M28243","v":0},{"$f":"Import!M28343","v":0}]
[83,{"$f":"Import!M27644","v":"Select"},{"$f":"Import!M27744","v":"Select"},{"$f":"Import!M27844","v":"Select"},{"$f":"Import!M27944","v":0},{"$f":"Import!M28044","v":0},{"$f":"Import!M28144","v":0},{"$f":"Import!M28244","v":0},{"$f":"Import!M28344","v":0}]
[84,{"$f":"Import!M27645","v":"Select"},{"$f":"Import!M27745","v":"Select"},{"$f":"Import!M27845","v":"Select"},{"$f":"Import!M27945","v":0},{"$f":"Import!M28045","v":0},{"$f":"Import!M28145","v":0},{"$f":"Import!M28245","v":0},{"$f":"Import!M28345","v":0}]
[85,{"$f":"Import!M27646","v":"Select"},{"$f":"Import!M27746","v":"Select"},{"$f":"Import!M27846","v":"Select"},{"$f":"Import!M27946","v":0},{"$f":"Import!M28046","v":0},{"$f":"Import!M28146","v":0},{"$f":"Import!M28246","v":0},{"$f":"Import!M28346","v":0}]
[86,{"$f":"Import!M27647","v":"Select"},{"$f":"Import!M27747","v":"Select"},{"$f":"Import!M27847","v":"Select"},{"$f":"Import!M27947","v":0},{"$f":"Import!M28047","v":0},{"$f":"Import!M28147","v":0},{"$f":"Import!M28247","v":0},{"$f":"Import!M28347","v":0}]
[87,{"$f":"Import!M27648","v":"Select"},{"$f":"Import!M27748","v":"Select"},{"$f":"Import!M27848","v":"Select"},{"$f":"Import!M27948","v":0},{"$f":"Import!M28048","v":0},{"$f":"Import!M28148","v":0},{"$f":"Import!M28248","v":0},{"$f":"Import!M28348","v":0}]
[88,{"$f":"Import!M27649","v":"Select"},{"$f":"Import!M27749","v":"Select"},{"$f":"Import!M27849","v":"Select"},{"$f":"Import!M27949","v":0},{"$f":"Import!M28049","v":0},{"$f":"Import!M28149","v":0},{"$f":"Import!M28249","v":0},{"$f":"Import!M28349","v":0}]
[89,{"$f":"Import!M27650","v":"Select"},{"$f":"Import!M27750","v":"Select"},{"$f":"Import!M27850","v":"Select"},{"$f":"Import!M27950","v":0},{"$f":"Import!M28050","v":0},{"$f":"Import!M28150","v":0},{"$f":"Import!M28250","v":0},{"$f":"Import!M28350","v":0}]
[90,{"$f":"Import!M27651","v":"Select"},{"$f":"Import!M27751","v":"Select"},{"$f":"Import!M27851","v":"Select"},{"$f":"Import!M27951","v":0},{"$f":"Import!M28051","v":0},{"$f":"Import!M28151","v":0},{"$f":"Import!M28251","v":0},{"$f":"Import!M28351","v":0}]
[91,{"$f":"Import!M27652","v":"Select"},{"$f":"Import!M27752","v":"Select"},{"$f":"Import!M27852","v":"Select"},{"$f":"Import!M27952","v":0},{"$f":"Import!M28052","v":0},{"$f":"Import!M28152","v":0},{"$f":"Import!M28252","v":0},{"$f":"Import!M28352","v":0}]
[92,{"$f":"Import!M27653","v":"Select"},{"$f":"Import!M27753","v":"Select"},{"$f":"Import!M27853","v":"Select"},{"$f":"Import!M27953","v":0},{"$f":"Import!M28053","v":0},{"$f":"Import!M28153","v":0},{"$f":"Import!M28253","v":0},{"$f":"Import!M28353","v":0}]
[93,{"$f":"Import!M27654","v":"Select"},{"$f":"Import!M27754","v":"Select"},{"$f":"Import!M27854","v":"Select"},{"$f":"Import!M27954","v":0},{"$f":"Import!M28054","v":0},{"$f":"Import!M28154","v":0},{"$f":"Import!M28254","v":0},{"$f":"Import!M28354","v":0}]
[94,{"$f":"Import!M27655","v":"Select"},{"$f":"Import!M27755","v":"Select"},{"$f":"Import!M27855","v":"Select"},{"$f":"Import!M27955","v":0},{"$f":"Import!M28055","v":0},{"$f":"Import!M28155","v":0},{"$f":"Import!M28255","v":0},{"$f":"Import!M28355","v":0}]
[95,{"$f":"Import!M27656","v":"Select"},{"$f":"Import!M27756","v":"Select"},{"$f":"Import!M27856","v":"Select"},{"$f":"Import!M27956","v":0},{"$f":"Import!M28056","v":0},{"$f":"Import!M28156","v":0},{"$f":"Import!M28256","v":0},{"$f":"Import!M28356","v":0}]
[96,{"$f":"Import!M27657","v":"Select"},{"$f":"Import!M27757","v":"Select"},{"$f":"Import!M27857","v":"Select"},{"$f":"Import!M27957","v":0},{"$f":"Import!M28057","v":0},{"$f":"Import!M28157","v":0},{"$f":"Import!M28257","v":0},{"$f":"Import!M28357","v":0}]
[97,{"$f":"Import!M27658","v":"Select"},{"$f":"Import!M27758","v":"Select"},{"$f":"Import!M27858","v":"Select"},{"$f":"Import!M27958","v":0},{"$f":"Import!M28058","v":0},{"$f":"Import!M28158","v":0},{"$f":"Import!M28258","v":0},{"$f":"Import!M28358","v":0}]
[98,{"$f":"Import!M27659","v":"Select"},{"$f":"Import!M27759","v":"Select"},{"$f":"Import!M27859","v":"Select"},{"$f":"Import!M27959","v":0},{"$f":"Import!M28059","v":0},{"$f":"Import!M28159","v":0},{"$f":"Import!M28259","v":0},{"$f":"Import!M28359","v":0}]
[99,{"$f":"Import!M27660","v":"Select"},{"$f":"Import!M27760","v":"Select"},{"$f":"Import!M27860","v":"Select"},{"$f":"Import!M27960","v":0},{"$f":"Import!M28060","v":0},{"$f":"Import!M28160","v":0},{"$f":"Import!M28260","v":0},{"$f":"Import!M28360","v":0}]
[100,{"$f":"Import!M27661","v":"Select"},{"$f":"Import!M27761","v":"Select"},{"$f":"Import!M27861","v":"Select"},{"$f":"Import!M27961","v":0},{"$f":"Import!M28061","v":0},{"$f":"Import!M28161","v":0},{"$f":"Import!M28261","v":0},{"$f":"Import!M28361","v":0}]
[]
[null,"Total Preferred Equities",null,null,{"$f":"SUM(E1129:E1228)","v":0},{"$f":"SUM(F1129:F1228)","v":0},{"$f":"IFERROR(SUMPRODUCT(G1129:G1228,$F1129:$F1228)/SUM($F1129:$F1228),0)","v":0},{"$f":"IFERROR(SUMPRODUCT(H1129:H1228,$F1129:$F1228)/SUM($F1129:$F1228),0)","v":0}]
[]
[null,"(F) COMMON EQUITIES"]
[]
[null,null,"Enter # of Asset Types",{"$f":"Import!M28362","v":0}]
[null,null,null,null,{"$f":"YEAR($C$3)","v":2023}]
[null,"Asset Type","Currency","Country","Fair Value","Comments"]
[1,{"$f":"Import!M28363","v":"Select"},{"$f":"Import!M28463","v":"Select"},{"$f":"Import!M28563","v":"Select"},{"$f":"Import!M28663","v":0},{"$f":"Import!M28763","v":0}]
[{"$f":"A1237+1","v":2},{"$f":"Import!M28364","v":"Select"},{"$f":"Import!M28464","v":"Select"},{"$f":"Import!M28564","v":"Select"},{"$f":"Import!M28664","v":0},{"$f":"Import!M28764","v":0}]
[{"$f":"A1238+1","v":3},{"$f":"Import!M28365","v":"Select"},{"$f":"Import!M28465","v":"Select"},{"$f":"Import!M28565","v":"Select"},{"$f":"Import!M28665","v":0},{"$f":"Import!M28765","v":0}]
[4,{"$f":"Import!M28366","v":"Select"},{"$f":"Import!M28466","v":"Select"},{"$f":"Import!M28566","v":"Select"},{"$f":"Import!M28666","v":0},{"$f":"Import!M28766","v":0}]
[5,{"$f":"Import!M28367","v":"Select"},{"$f":"Import!M28467","v":"Select"},{"$f":"Import!M28567","v":"Select"},{"$f":"Import!M28667","v":0},{"$f":"Import!M28767","v":0}]
[6,{"$f":"Import!M28368","v":"Select"},{"$f":"Import!M28468","v":"Select"},{"$f":"Import!M28568","v":"Select"},{"$f":"Import!M28668","v":0},{"$f":"Import!M28768","v":0}]
[7,{"$f":"Import!M28369","v":"Select"},{"$f":"Import!M28469","v":"Select"},{"$f":"Import!M28569","v":"Select"},{"$f":"Import!M28669","v":0},{"$f":"Import!M28769","v":0}]
[8,{"$f":"Import!M28370","v":"Select"},{"$f":"Import!M28470","v":"Select"},{"$f":"Import!M28570","v":"Select"},{"$f":"Import!M28670","v":0},{"$f":"Import!M28770","v":0}]
[9,{"$f":"Import!M28371","v":"Select"},{"$f":"Import!M28471","v":"Select"},{"$f":"Import!M28571","v":"Select"},{"$f":"Import!M28671","v":0},{"$f":"Import!M28771","v":0}]
[10,{"$f":"Import!M28372","v":"Select"},{"$f":"Import!M28472","v":"Select"},{"$f":"Import!M28572","v":"Select"},{"$f":"Import!M28672","v":0},{"$f":"Import!M28772","v":0}]
[11,{"$f":"Import!M28373","v":"Select"},{"$f":"Import!M28473","v":"Select"},{"$f":"Import!M28573","v":"Select"},{"$f":"Import!M28673","v":0},{"$f":"Import!M28773","v":0}]
[12,{"$f":"Import!M28374","v":"Select"},{"$f":"Import!M28474","v":"Select"},{"$f":"Import!M28574","v":"Select"},{"$f":"Import!M28674","v":0},{"$f":"Import!M28774","v":0}]
[13,{"$f":"Import!M28375","v":"Select"},{"$f":"Import!M28475","v":"Select"},{"$f":"Import!M28575","v":"Select"},{"$f":"Import!M28675","v":0},{"$f":"Import!M28775","v":0}]
[14,{"$f":"Import!M28376","v":"Select"},{"$f":"Import!M28476","v":"Select"},{"$f":"Import!M28576","v":"Select"},{"$f":"Import!M28676","v":0},{"$f":"Import!M28776","v":0}]
[15,{"$f":"Import!M28377","v":"Select"},{"$f":"Import!M28477","v":"Select"},{"$f":"Import!M28577","v":"Select"},{"$f":"Import!M28677","v":0},{"$f":"Import!M28777","v":0}]
[16,{"$f":"Import!M28378","v":"Select"},{"$f":"Import!M28478","v":"Select"},{"$f":"Import!M28578","v":"Select"},{"$f":"Import!M28678","v":0},{"$f":"Import!M28778","v":0}]
[17,{"$f":"Import!M28379","v":"Select"},{"$f":"Import!M28479","v":"Select"},{"$f":"Import!M28579","v":"Select"},{"$f":"Import!M28679","v":0},{"$f":"Import!M28779","v":0}]
[18,{"$f":"Import!M28380","v":"Select"},{"$f":"Import!M28480","v":"Select"},{"$f":"Import!M28580","v":"Select"},{"$f":"Import!M28680","v":0},{"$f":"Import!M28780","v":0}]
[19,{"$f":"Import!M28381","v":"Select"},{"$f":"Import!M28481","v":"Select"},{"$f":"Import!M28581","v":"Select"},{"$f":"Import!M28681","v":0},{"$f":"Import!M28781","v":0}]
[20,{"$f":"Import!M28382","v":"Select"},{"$f":"Import!M28482","v":"Select"},{"$f":"Import!M28582","v":"Select"},{"$f":"Import!M28682","v":0},{"$f":"Import!M28782","v":0}]
[21,{"$f":"Import!M28383","v":"Select"},{"$f":"Import!M28483","v":"Select"},{"$f":"Import!M28583","v":"Select"},{"$f":"Import!M28683","v":0},{"$f":"Import!M28783","v":0}]
[22,{"$f":"Import!M28384","v":"Select"},{"$f":"Import!M28484","v":"Select"},{"$f":"Import!M28584","v":"Select"},{"$f":"Import!M28684","v":0},{"$f":"Import!M28784","v":0}]
[23,{"$f":"Import!M28385","v":"Select"},{"$f":"Import!M28485","v":"Select"},{"$f":"Import!M28585","v":"Select"},{"$f":"Import!M28685","v":0},{"$f":"Import!M28785","v":0}]
[24,{"$f":"Import!M28386","v":"Select"},{"$f":"Import!M28486","v":"Select"},{"$f":"Import!M28586","v":"Select"},{"$f":"Import!M28686","v":0},{"$f":"Import!M28786","v":0}]
[25,{"$f":"Import!M28387","v":"Select"},{"$f":"Import!M28487","v":"Select"},{"$f":"Import!M28587","v":"Select"},{"$f":"Import!M28687","v":0},{"$f":"Import!M28787","v":0}]
[26,{"$f":"Import!M28388","v":"Select"},{"$f":"Import!M28488","v":"Select"},{"$f":"Import!M28588","v":"Select"},{"$f":"Import!M28688","v":0},{"$f":"Import!M28788","v":0}]
[27,{"$f":"Import!M28389","v":"Select"},{"$f":"Import!M28489","v":"Select"},{"$f":"Import!M28589","v":"Select"},{"$f":"Import!M28689","v":0},{"$f":"Import!M28789","v":0}]
[28,{"$f":"Import!M28390","v":"Select"},{"$f":"Import!M28490","v":"Select"},{"$f":"Import!M28590","v":"Select"},{"$f":"Import!M28690","v":0},{"$f":"Import!M28790","v":0}]
[29,{"$f":"Import!M28391","v":"Select"},{"$f":"Import!M28491","v":"Select"},{"$f":"Import!M28591","v":"Select"},{"$f":"Import!M28691","v":0},{"$f":"Import!M28791","v":0}]
[30,{"$f":"Import!M28392","v":"Select"},{"$f":"Import!M28492","v":"Select"},{"$f":"Import!M28592","v":"Select"},{"$f":"Import!M28692","v":0},{"$f":"Import!M28792","v":0}]
[31,{"$f":"Import!M28393","v":"Select"},{"$f":"Import!M28493","v":"Select"},{"$f":"Import!M28593","v":"Select"},{"$f":"Import!M28693","v":0},{"$f":"Import!M28793","v":0}]
[32,{"$f":"Import!M28394","v":"Select"},{"$f":"Import!M28494","v":"Select"},{"$f":"Import!M28594","v":"Select"},{"$f":"Import!M28694","v":0},{"$f":"Import!M28794","v":0}]
[33,{"$f":"Import!M28395","v":"Select"},{"$f":"Import!M28495","v":"Select"},{"$f":"Import!M28595","v":"Select"},{"$f":"Import!M28695","v":0},{"$f":"Import!M28795","v":0}]
[34,{"$f":"Import!M28396","v":"Select"},{"$f":"Import!M28496","v":"Select"},{"$f":"Import!M28596","v":"Select"},{"$f":"Import!M28696","v":0},{"$f":"Import!M28796","v":0}]
[35,{"$f":"Import!M28397","v":"Select"},{"$f":"Import!M28497","v":"Select"},{"$f":"Import!M28597","v":"Select"},{"$f":"Import!M28697","v":0},{"$f":"Import!M28797","v":0}]
[36,{"$f":"Import!M28398","v":"Select"},{"$f":"Import!M28498","v":"Select"},{"$f":"Import!M28598","v":"Select"},{"$f":"Import!M28698","v":0},{"$f":"Import!M28798","v":0}]
[37,{"$f":"Import!M28399","v":"Select"},{"$f":"Import!M28499","v":"Select"},{"$f":"Import!M28599","v":"Select"},{"$f":"Import!M28699","v":0},{"$f":"Import!M28799","v":0}]
[38,{"$f":"Import!M28400","v":"Select"},{"$f":"Import!M28500","v":"Select"},{"$f":"Import!M28600","v":"Select"},{"$f":"Import!M28700","v":0},{"$f":"Import!M28800","v":0}]
[39,{"$f":"Import!M28401","v":"Select"},{"$f":"Import!M28501","v":"Select"},{"$f":"Import!M28601","v":"Select"},{"$f":"Import!M28701","v":0},{"$f":"Import!M28801","v":0}]
[40,{"$f":"Import!M28402","v":"Select"},{"$f":"Import!M28502","v":"Select"},{"$f":"Import!M28602","v":"Select"},{"$f":"Import!M28702","v":0},{"$f":"Import!M28802","v":0}]
[41,{"$f":"Import!M28403","v":"Select"},{"$f":"Import!M28503","v":"Select"},{"$f":"Import!M28603","v":"Select"},{"$f":"Import!M28703","v":0},{"$f":"Import!M28803","v":0}]
[42,{"$f":"Import!M28404","v":"Select"},{"$f":"Import!M28504","v":"Select"},{"$f":"Import!M28604","v":"Select"},{"$f":"Import!M28704","v":0},{"$f":"Import!M28804","v":0}]
[43,{"$f":"Import!M28405","v":"Select"},{"$f":"Import!M28505","v":"Select"},{"$f":"Import!M28605","v":"Select"},{"$f":"Import!M28705","v":0},{"$f":"Import!M28805","v":0}]
[44,{"$f":"Import!M28406","v":"Select"},{"$f":"Import!M28506","v":"Select"},{"$f":"Import!M28606","v":"Select"},{"$f":"Import!M28706","v":0},{"$f":"Import!M28806","v":0}]
[45,{"$f":"Import!M28407","v":"Select"},{"$f":"Import!M28507","v":"Select"},{"$f":"Import!M28607","v":"Select"},{"$f":"Import!M28707","v":0},{"$f":"Import!M28807","v":0}]
[46,{"$f":"Import!M28408","v":"Select"},{"$f":"Import!M28508","v":"Select"},{"$f":"Import!M28608","v":"Select"},{"$f":"Import!M28708","v":0},{"$f":"Import!M28808","v":0}]
[47,{"$f":"Import!M28409","v":"Select"},{"$f":"Import!M28509","v":"Select"},{"$f":"Import!M28609","v":"Select"},{"$f":"Import!M28709","v":0},{"$f":"Import!M28809","v":0}]
[48,{"$f":"Import!M28410","v":"Select"},{"$f":"Import!M28510","v":"Select"},{"$f":"Import!M28610","v":"Select"},{"$f":"Import!M28710","v":0},{"$f":"Import!M28810","v":0}]
[49,{"$f":"Import!M28411","v":"Select"},{"$f":"Import!M28511","v":"Select"},{"$f":"Import!M28611","v":"Select"},{"$f":"Import!M28711","v":0},{"$f":"Import!M28811","v":0}]
[50,{"$f":"Import!M28412","v":"Select"},{"$f":"Import!M28512","v":"Select"},{"$f":"Import!M28612","v":"Select"},{"$f":"Import!M28712","v":0},{"$f":"Import!M28812","v":0}]
[51,{"$f":"Import!M28413","v":"Select"},{"$f":"Import!M28513","v":"Select"},{"$f":"Import!M28613","v":"Select"},{"$f":"Import!M28713","v":0},{"$f":"Import!M28813","v":0}]
[52,{"$f":"Import!M28414","v":"Select"},{"$f":"Import!M28514","v":"Select"},{"$f":"Import!M28614","v":"Select"},{"$f":"Import!M28714","v":0},{"$f":"Import!M28814","v":0}]
[53,{"$f":"Import!M28415","v":"Select"},{"$f":"Import!M28515","v":"Select"},{"$f":"Import!M28615","v":"Select"},{"$f":"Import!M28715","v":0},{"$f":"Import!M28815","v":0}]
[54,{"$f":"Import!M28416","v":"Select"},{"$f":"Import!M28516","v":"Select"},{"$f":"Import!M28616","v":"Select"},{"$f":"Import!M28716","v":0},{"$f":"Import!M28816","v":0}]
[55,{"$f":"Import!M28417","v":"Select"},{"$f":"Import!M28517","v":"Select"},{"$f":"Import!M28617","v":"Select"},{"$f":"Import!M28717","v":0},{"$f":"Import!M28817","v":0}]
[56,{"$f":"Import!M28418","v":"Select"},{"$f":"Import!M28518","v":"Select"},{"$f":"Import!M28618","v":"Select"},{"$f":"Import!M28718","v":0},{"$f":"Import!M28818","v":0}]
[57,{"$f":"Import!M28419","v":"Select"},{"$f":"Import!M28519","v":"Select"},{"$f":"Import!M28619","v":"Select"},{"$f":"Import!M28719","v":0},{"$f":"Import!M28819","v":0}]
[58,{"$f":"Import!M28420","v":"Select"},{"$f":"Import!M28520","v":"Select"},{"$f":"Import!M28620","v":"Select"},{"$f":"Import!M28720","v":0},{"$f":"Import!M28820","v":0}]
[59,{"$f":"Import!M28421","v":"Select"},{"$f":"Import!M28521","v":"Select"},{"$f":"Import!M28621","v":"Select"},{"$f":"Import!M28721","v":0},{"$f":"Import!M28821","v":0}]
[60,{"$f":"Import!M28422","v":"Select"},{"$f":"Import!M28522","v":"Select"},{"$f":"Import!M28622","v":"Select"},{"$f":"Import!M28722","v":0},{"$f":"Import!M28822","v":0}]
[61,{"$f":"Import!M28423","v":"Select"},{"$f":"Import!M28523","v":"Select"},{"$f":"Import!M28623","v":"Select"},{"$f":"Import!M28723","v":0},{"$f":"Import!M28823","v":0}]
[62,{"$f":"Import!M28424","v":"Select"},{"$f":"Import!M28524","v":"Select"},{"$f":"Import!M28624","v":"Select"},{"$f":"Import!M28724","v":0},{"$f":"Import!M28824","v":0}]
[63,{"$f":"Import!M28425","v":"Select"},{"$f":"Import!M28525","v":"Select"},{"$f":"Import!M28625","v":"Select"},{"$f":"Import!M28725","v":0},{"$f":"Import!M28825","v":0}]
[64,{"$f":"Import!M28426","v":"Select"},{"$f":"Import!M28526","v":"Select"},{"$f":"Import!M28626","v":"Select"},{"$f":"Import!M28726","v":0},{"$f":"Import!M28826","v":0}]
[65,{"$f":"Import!M28427","v":"Select"},{"$f":"Import!M28527","v":"Select"},{"$f":"Import!M28627","v":"Select"},{"$f":"Import!M28727","v":0},{"$f":"Import!M28827","v":0}]
[66,{"$f":"Import!M28428","v":"Select"},{"$f":"Import!M28528","v":"Select"},{"$f":"Import!M28628","v":"Select"},{"$f":"Import!M28728","v":0},{"$f":"Import!M28828","v":0}]
[{"$f":"A1302+1","v":67},{"$f":"Import!M28429","v":"Select"},{"$f":"Import!M28529","v":"Select"},{"$f":"Import!M28629","v":"Select"},{"$f":"Import!M28729","v":0},{"$f":"Import!M28829","v":0}]
[68,{"$f":"Import!M28430","v":"Select"},{"$f":"Import!M28530","v":"Select"},{"$f":"Import!M28630","v":"Select"},{"$f":"Import!M28730","v":0},{"$f":"Import!M28830","v":0}]
[69,{"$f":"Import!M28431","v":"Select"},{"$f":"Import!M28531","v":"Select"},{"$f":"Import!M28631","v":"Select"},{"$f":"Import!M28731","v":0},{"$f":"Import!M28831","v":0}]
[70,{"$f":"Import!M28432","v":"Select"},{"$f":"Import!M28532","v":"Select"},{"$f":"Import!M28632","v":"Select"},{"$f":"Import!M28732","v":0},{"$f":"Import!M28832","v":0}]
[71,{"$f":"Import!M28433","v":"Select"},{"$f":"Import!M28533","v":"Select"},{"$f":"Import!M28633","v":"Select"},{"$f":"Import!M28733","v":0},{"$f":"Import!M28833","v":0}]
[72,{"$f":"Import!M28434","v":"Select"},{"$f":"Import!M28534","v":"Select"},{"$f":"Import!M28634","v":"Select"},{"$f":"Import!M28734","v":0},{"$f":"Import!M28834","v":0}]
[73,{"$f":"Import!M28435","v":"Select"},{"$f":"Import!M28535","v":"Select"},{"$f":"Import!M28635","v":"Select"},{"$f":"Import!M28735","v":0},{"$f":"Import!M28835","v":0}]
[74,{"$f":"Import!M28436","v":"Select"},{"$f":"Import!M28536","v":"Select"},{"$f":"Import!M28636","v":"Select"},{"$f":"Import!M28736","v":0},{"$f":"Import!M28836","v":0}]
[75,{"$f":"Import!M28437","v":"Select"},{"$f":"Import!M28537","v":"Select"},{"$f":"Import!M28637","v":"Select"},{"$f":"Import!M28737","v":0},{"$f":"Import!M28837","v":0}]
[76,{"$f":"Import!M28438","v":"Select"},{"$f":"Import!M28538","v":"Select"},{"$f":"Import!M28638","v":"Select"},{"$f":"Import!M28738","v":0},{"$f":"Import!M28838","v":0}]
[77,{"$f":"Import!M28439","v":"Select"},{"$f":"Import!M28539","v":"Select"},{"$f":"Import!M28639","v":"Select"},{"$f":"Import!M28739","v":0},{"$f":"Import!M28839","v":0}]
[78,{"$f":"Import!M28440","v":"Select"},{"$f":"Import!M28540","v":"Select"},{"$f":"Import!M28640","v":"Select"},{"$f":"Import!M28740","v":0},{"$f":"Import!M28840","v":0}]
[79,{"$f":"Import!M28441","v":"Select"},{"$f":"Import!M28541","v":"Select"},{"$f":"Import!M28641","v":"Select"},{"$f":"Import!M28741","v":0},{"$f":"Import!M28841","v":0}]
[80,{"$f":"Import!M28442","v":"Select"},{"$f":"Import!M28542","v":"Select"},{"$f":"Import!M28642","v":"Select"},{"$f":"Import!M28742","v":0},{"$f":"Import!M28842","v":0}]
[81,{"$f":"Import!M28443","v":"Select"},{"$f":"Import!M28543","v":"Select"},{"$f":"Import!M28643","v":"Select"},{"$f":"Import!M28743","v":0},{"$f":"Import!M28843","v":0}]
[82,{"$f":"Import!M28444","v":"Select"},{"$f":"Import!M28544","v":"Select"},{"$f":"Import!M28644","v":"Select"},{"$f":"Import!M28744","v":0},{"$f":"Import!M28844","v":0}]
[83,{"$f":"Import!M28445","v":"Select"},{"$f":"Import!M28545","v":"Select"},{"$f":"Import!M28645","v":"Select"},{"$f":"Import!M28745","v":0},{"$f":"Import!M28845","v":0}]
[84,{"$f":"Import!M28446","v":"Select"},{"$f":"Import!M28546","v":"Select"},{"$f":"Import!M28646","v":"Select"},{"$f":"Import!M28746","v":0},{"$f":"Import!M28846","v":0}]
[85,{"$f":"Import!M28447","v":"Select"},{"$f":"Import!M28547","v":"Select"},{"$f":"Import!M28647","v":"Select"},{"$f":"Import!M28747","v":0},{"$f":"Import!M28847","v":0}]
[86,{"$f":"Import!M28448","v":"Select"},{"$f":"Import!M28548","v":"Select"},{"$f":"Import!M28648","v":"Select"},{"$f":"Import!M28748","v":0},{"$f":"Import!M28848","v":0}]
[87,{"$f":"Import!M28449","v":"Select"},{"$f":"Import!M28549","v":"Select"},{"$f":"Import!M28649","v":"Select"},{"$f":"Import!M28749","v":0},{"$f":"Import!M28849","v":0}]
[88,{"$f":"Import!M28450","v":"Select"},{"$f":"Import!M28550","v":"Select"},{"$f":"Import!M28650","v":"Select"},{"$f":"Import!M28750","v":0},{"$f":"Import!M28850","v":0}]
[89,{"$f":"Import!M28451","v":"Select"},{"$f":"Import!M28551","v":"Select"},{"$f":"Import!M28651","v":"Select"},{"$f":"Import!M28751","v":0},{"$f":"Import!M28851","v":0}]
[90,{"$f":"Import!M28452","v":"Select"},{"$f":"Import!M28552","v":"Select"},{"$f":"Import!M28652","v":"Select"},{"$f":"Import!M28752","v":0},{"$f":"Import!M28852","v":0}]
[91,{"$f":"Import!M28453","v":"Select"},{"$f":"Import!M28553","v":"Select"},{"$f":"Import!M28653","v":"Select"},{"$f":"Import!M28753","v":0},{"$f":"Import!M28853","v":0}]
[92,{"$f":"Import!M28454","v":"Select"},{"$f":"Import!M28554","v":"Select"},{"$f":"Import!M28654","v":"Select"},{"$f":"Import!M28754","v":0},{"$f":"Import!M28854","v":0}]
[93,{"$f":"Import!M28455","v":"Select"},{"$f":"Import!M28555","v":"Select"},{"$f":"Import!M28655","v":"Select"},{"$f":"Import!M28755","v":0},{"$f":"Import!M28855","v":0}]
[94,{"$f":"Import!M28456","v":"Select"},{"$f":"Import!M28556","v":"Select"},{"$f":"Import!M28656","v":"Select"},{"$f":"Import!M28756","v":0},{"$f":"Import!M28856","v":0}]
[95,{"$f":"Import!M28457","v":"Select"},{"$f":"Import!M28557","v":"Select"},{"$f":"Import!M28657","v":"Select"},{"$f":"Import!M28757","v":0},{"$f":"Import!M28857","v":0}]
[96,{"$f":"Import!M28458","v":"Select"},{"$f":"Import!M28558","v":"Select"},{"$f":"Import!M28658","v":"Select"},{"$f":"Import!M28758","v":0},{"$f":"Import!M28858","v":0}]
[97,{"$f":"Import!M28459","v":"Select"},{"$f":"Import!M28559","v":"Select"},{"$f":"Import!M28659","v":"Select"},{"$f":"Import!M28759","v":0},{"$f":"Import!M28859","v":0}]
[98,{"$f":"Import!M28460","v":"Select"},{"$f":"Import!M28560","v":"Select"},{"$f":"Import!M28660","v":"Select"},{"$f":"Import!M28760","v":0},{"$f":"Import!M28860","v":0}]
[99,{"$f":"Import!M28461","v":"Select"},{"$f":"Import!M28561","v":"Select"},{"$f":"Import!M28661","v":"Select"},{"$f":"Import!M28761","v":0},{"$f":"Import!M28861","v":0}]
[100,{"$f":"Import!M28462","v":"Select"},{"$f":"Import!M28562","v":"Select"},{"$f":"Import!M28662","v":"Select"},{"$f":"Import!M28762","v":0},{"$f":"Import!M28862","v":0}]
[]
[null,"Total Common Equities",null,null,{"$f":"SUM(E1237:E1336)","v":0}]
[]
[null,"(G) REAL ESTATE"]
[]
[null,null,"Enter # of Asset Types",{"$f":"Import!M28863","v":0}]
[null,null,null,null,null,{"$f":"YEAR($C$3)","v":2023},2023]
[null,"Asset Type","Currency","Country","Purpose","Cost","Fair Value","Comments"]
[1,{"$f":"Import!M28864","v":"Select"},{"$f":"Import!M28964","v":"Select"},{"$f":"Import!M29064","v":"Select"},{"$f":"Import!M29164","v":"Select"},{"$f":"Import!M29264","v":0},{"$f":"Import!M29364","v":0},{"$f":"Import!M29464","v":0}]
[{"$f":"A1345+1","v":2},{"$f":"Import!M28865","v":"Select"},{"$f":"Import!M28965","v":"Select"},{"$f":"Import!M29065","v":"Select"},{"$f":"Import!M29165","v":"Select"},{"$f":"Import!M29265","v":0},{"$f":"Import!M29365","v":0},{"$f":"Import!M29465","v":0}]
[{"$f":"A1346+1","v":3},{"$f":"Import!M28866","v":"Select"},{"$f":"Import!M28966","v":"Select"},{"$f":"Import!M29066","v":"Select"},{"$f":"Import!M29166","v":"Select"},{"$f":"Import!M29266","v":0},{"$f":"Import!M29366","v":0},{"$f":"Import!M29466","v":0}]
[4,{"$f":"Import!M28867","v":"Select"},{"$f":"Import!M28967","v":"Select"},{"$f":"Import!M29067","v":"Select"},{"$f":"Import!M29167","v":"Select"},{"$f":"Import!M29267","v":0},{"$f":"Import!M29367","v":0},{"$f":"Import!M29467","v":0}]
[5,{"$f":"Import!M28868","v":"Select"},{"$f":"Import!M28968","v":"Select"},{"$f":"Import!M29068","v":"Select"},{"$f":"Import!M29168","v":"Select"},{"$f":"Import!M29268","v":0},{"$f":"Import!M29368","v":0},{"$f":"Import!M29468","v":0}]
[6,{"$f":"Import!M28869","v":"Select"},{"$f":"Import!M28969","v":"Select"},{"$f":"Import!M29069","v":"Select"},{"$f":"Import!M29169","v":"Select"},{"$f":"Import!M29269","v":0},{"$f":"Import!M29369","v":0},{"$f":"Import!M29469","v":0}]
[7,{"$f":"Import!M28870","v":"Select"},{"$f":"Import!M28970","v":"Select"},{"$f":"Import!M29070","v":"Select"},{"$f":"Import!M29170","v":"Select"},{"$f":"Import!M29270","v":0},{"$f":"Import!M29370","v":0},{"$f":"Import!M29470","v":0}]
[8,{"$f":"Import!M28871","v":"Select"},{"$f":"Import!M28971","v":"Select"},{"$f":"Import!M29071","v":"Select"},{"$f":"Import!M29171","v":"Select"},{"$f":"Import!M29271","v":0},{"$f":"Import!M29371","v":0},{"$f":"Import!M29471","v":0}]
[9,{"$f":"Import!M28872","v":"Select"},{"$f":"Import!M28972","v":"Select"},{"$f":"Import!M29072","v":"Select"},{"$f":"Import!M29172","v":"Select"},{"$f":"Import!M29272","v":0},{"$f":"Import!M29372","v":0},{"$f":"Import!M29472","v":0}]
[10,{"$f":"Import!M28873","v":"Select"},{"$f":"Import!M28973","v":"Select"},{"$f":"Import!M29073","v":"Select"},{"$f":"Import!M29173","v":"Select"},{"$f":"Import!M29273","v":0},{"$f":"Import!M29373","v":0},{"$f":"Import!M29473","v":0}]
[11,{"$f":"Import!M28874","v":"Select"},{"$f":"Import!M28974","v":"Select"},{"$f":"Import!M29074","v":"Select"},{"$f":"Import!M29174","v":"Select"},{"$f":"Import!M29274","v":0},{"$f":"Import!M29374","v":0},{"$f":"Import!M29474","v":0}]
[12,{"$f":"Import!M28875","v":"Select"},{"$f":"Import!M28975","v":"Select"},{"$f":"Import!M29075","v":"Select"},{"$f":"Import!M29175","v":"Select"},{"$f":"Import!M29275","v":0},{"$f":"Import!M29375","v":0},{"$f":"Import!M29475","v":0}]
[13,{"$f":"Import!M28876","v":"Select"},{"$f":"Import!M28976","v":"Select"},{"$f":"Import!M29076","v":"Select"},{"$f":"Import!M29176","v":"Select"},{"$f":"Import!M29276","v":0},{"$f":"Import!M29376","v":0},{"$f":"Import!M29476","v":0}]
[14,{"$f":"Import!M28877","v":"Select"},{"$f":"Import!M28977","v":"Select"},{"$f":"Import!M29077","v":"Select"},{"$f":"Import!M29177","v":"Select"},{"$f":"Import!M29277","v":0},{"$f":"Import!M29377","v":0},{"$f":"Import!M29477","v":0}]
[15,{"$f":"Import!M28878","v":"Select"},{"$f":"Import!M28978","v":"Select"},{"$f":"Import!M29078","v":"Select"},{"$f":"Import!M29178","v":"Select"},{"$f":"Import!M29278","v":0},{"$f":"Import!M29378","v":0},{"$f":"Import!M29478","v":0}]
[16,{"$f":"Import!M28879","v":"Select"},{"$f":"Import!M28979","v":"Select"},{"$f":"Import!M29079","v":"Select"},{"$f":"Import!M29179","v":"Select"},{"$f":"Import!M29279","v":0},{"$f":"Import!M29379","v":0},{"$f":"Import!M29479","v":0}]
[17,{"$f":"Import!M28880","v":"Select"},{"$f":"Import!M28980","v":"Select"},{"$f":"Import!M29080","v":"Select"},{"$f":"Import!M29180","v":"Select"},{"$f":"Import!M29280","v":0},{"$f":"Import!M29380","v":0},{"$f":"Import!M29480","v":0}]
[18,{"$f":"Import!M28881","v":"Select"},{"$f":"Import!M28981","v":"Select"},{"$f":"Import!M29081","v":"Select"},{"$f":"Import!M29181","v":"Select"},{"$f":"Import!M29281","v":0},{"$f":"Import!M29381","v":0},{"$f":"Import!M29481","v":0}]
[19,{"$f":"Import!M28882","v":"Select"},{"$f":"Import!M28982","v":"Select"},{"$f":"Import!M29082","v":"Select"},{"$f":"Import!M29182","v":"Select"},{"$f":"Import!M29282","v":0},{"$f":"Import!M29382","v":0},{"$f":"Import!M29482","v":0}]
[20,{"$f":"Import!M28883","v":"Select"},{"$f":"Import!M28983","v":"Select"},{"$f":"Import!M29083","v":"Select"},{"$f":"Import!M29183","v":"Select"},{"$f":"Import!M29283","v":0},{"$f":"Import!M29383","v":0},{"$f":"Import!M29483","v":0}]
[21,{"$f":"Import!M28884","v":"Select"},{"$f":"Import!M28984","v":"Select"},{"$f":"Import!M29084","v":"Select"},{"$f":"Import!M29184","v":"Select"},{"$f":"Import!M29284","v":0},{"$f":"Import!M29384","v":0},{"$f":"Import!M29484","v":0}]
[22,{"$f":"Import!M28885","v":"Select"},{"$f":"Import!M28985","v":"Select"},{"$f":"Import!M29085","v":"Select"},{"$f":"Import!M29185","v":"Select"},{"$f":"Import!M29285","v":0},{"$f":"Import!M29385","v":0},{"$f":"Import!M29485","v":0}]
[23,{"$f":"Import!M28886","v":"Select"},{"$f":"Import!M28986","v":"Select"},{"$f":"Import!M29086","v":"Select"},{"$f":"Import!M29186","v":"Select"},{"$f":"Import!M29286","v":0},{"$f":"Import!M29386","v":0},{"$f":"Import!M29486","v":0}]
[24,{"$f":"Import!M28887","v":"Select"},{"$f":"Import!M28987","v":"Select"},{"$f":"Import!M29087","v":"Select"},{"$f":"Import!M29187","v":"Select"},{"$f":"Import!M29287","v":0},{"$f":"Import!M29387","v":0},{"$f":"Import!M29487","v":0}]
[25,{"$f":"Import!M28888","v":"Select"},{"$f":"Import!M28988","v":"Select"},{"$f":"Import!M29088","v":"Select"},{"$f":"Import!M29188","v":"Select"},{"$f":"Import!M29288","v":0},{"$f":"Import!M29388","v":0},{"$f":"Import!M29488","v":0}]
[26,{"$f":"Import!M28889","v":"Select"},{"$f":"Import!M28989","v":"Select"},{"$f":"Import!M29089","v":"Select"},{"$f":"Import!M29189","v":"Select"},{"$f":"Import!M29289","v":0},{"$f":"Import!M29389","v":0},{"$f":"Import!M29489","v":0}]
[27,{"$f":"Import!M28890","v":"Select"},{"$f":"Import!M28990","v":"Select"},{"$f":"Import!M29090","v":"Select"},{"$f":"Import!M29190","v":"Select"},{"$f":"Import!M29290","v":0},{"$f":"Import!M29390","v":0},{"$f":"Import!M29490","v":0}]
[28,{"$f":"Import!M28891","v":"Select"},{"$f":"Import!M28991","v":"Select"},{"$f":"Import!M29091","v":"Select"},{"$f":"Import!M29191","v":"Select"},{"$f":"Import!M29291","v":0},{"$f":"Import!M29391","v":0},{"$f":"Import!M29491","v":0}]
[29,{"$f":"Import!M28892","v":"Select"},{"$f":"Import!M28992","v":"Select"},{"$f":"Import!M29092","v":"Select"},{"$f":"Import!M29192","v":"Select"},{"$f":"Import!M29292","v":0},{"$f":"Import!M29392","v":0},{"$f":"Import!M29492","v":0}]
[30,{"$f":"Import!M28893","v":"Select"},{"$f":"Import!M28993","v":"Select"},{"$f":"Import!M29093","v":"Select"},{"$f":"Import!M29193","v":"Select"},{"$f":"Import!M29293","v":0},{"$f":"Import!M29393","v":0},{"$f":"Import!M29493","v":0}]
[31,{"$f":"Import!M28894","v":"Select"},{"$f":"Import!M28994","v":"Select"},{"$f":"Import!M29094","v":"Select"},{"$f":"Import!M29194","v":"Select"},{"$f":"Import!M29294","v":0},{"$f":"Import!M29394","v":0},{"$f":"Import!M29494","v":0}]
[32,{"$f":"Import!M28895","v":"Select"},{"$f":"Import!M28995","v":"Select"},{"$f":"Import!M29095","v":"Select"},{"$f":"Import!M29195","v":"Select"},{"$f":"Import!M29295","v":0},{"$f":"Import!M29395","v":0},{"$f":"Import!M29495","v":0}]
[33,{"$f":"Import!M28896","v":"Select"},{"$f":"Import!M28996","v":"Select"},{"$f":"Import!M29096","v":"Select"},{"$f":"Import!M29196","v":"Select"},{"$f":"Import!M29296","v":0},{"$f":"Import!M29396","v":0},{"$f":"Import!M29496","v":0}]
[34,{"$f":"Import!M28897","v":"Select"},{"$f":"Import!M28997","v":"Select"},{"$f":"Import!M29097","v":"Select"},{"$f":"Import!M29197","v":"Select"},{"$f":"Import!M29297","v":0},{"$f":"Import!M29397","v":0},{"$f":"Import!M29497","v":0}]
[35,{"$f":"Import!M28898","v":"Select"},{"$f":"Import!M28998","v":"Select"},{"$f":"Import!M29098","v":"Select"},{"$f":"Import!M29198","v":"Select"},{"$f":"Import!M29298","v":0},{"$f":"Import!M29398","v":0},{"$f":"Import!M29498","v":0}]
[36,{"$f":"Import!M28899","v":"Select"},{"$f":"Import!M28999","v":"Select"},{"$f":"Import!M29099","v":"Select"},{"$f":"Import!M29199","v":"Select"},{"$f":"Import!M29299","v":0},{"$f":"Import!M29399","v":0},{"$f":"Import!M29499","v":0}]
[37,{"$f":"Import!M28900","v":"Select"},{"$f":"Import!M29000","v":"Select"},{"$f":"Import!M29100","v":"Select"},{"$f":"Import!M29200","v":"Select"},{"$f":"Import!M29300","v":0},{"$f":"Import!M29400","v":0},{"$f":"Import!M29500","v":0}]
[38,{"$f":"Import!M28901","v":"Select"},{"$f":"Import!M29001","v":"Select"},{"$f":"Import!M29101","v":"Select"},{"$f":"Import!M29201","v":"Select"},{"$f":"Import!M29301","v":0},{"$f":"Import!M29401","v":0},{"$f":"Import!M29501","v":0}]
[39,{"$f":"Import!M28902","v":"Select"},{"$f":"Import!M29002","v":"Select"},{"$f":"Import!M29102","v":"Select"},{"$f":"Import!M29202","v":"Select"},{"$f":"Import!M29302","v":0},{"$f":"Import!M29402","v":0},{"$f":"Import!M29502","v":0}]
[40,{"$f":"Import!M28903","v":"Select"},{"$f":"Import!M29003","v":"Select"},{"$f":"Import!M29103","v":"Select"},{"$f":"Import!M29203","v":"Select"},{"$f":"Import!M29303","v":0},{"$f":"Import!M29403","v":0},{"$f":"Import!M29503","v":0}]
[41,{"$f":"Import!M28904","v":"Select"},{"$f":"Import!M29004","v":"Select"},{"$f":"Import!M29104","v":"Select"},{"$f":"Import!M29204","v":"Select"},{"$f":"Import!M29304","v":0},{"$f":"Import!M29404","v":0},{"$f":"Import!M29504","v":0}]
[42,{"$f":"Import!M28905","v":"Select"},{"$f":"Import!M29005","v":"Select"},{"$f":"Import!M29105","v":"Select"},{"$f":"Import!M29205","v":"Select"},{"$f":"Import!M29305","v":0},{"$f":"Import!M29405","v":0},{"$f":"Import!M29505","v":0}]
[43,{"$f":"Import!M28906","v":"Select"},{"$f":"Import!M29006","v":"Select"},{"$f":"Import!M29106","v":"Select"},{"$f":"Import!M29206","v":"Select"},{"$f":"Import!M29306","v":0},{"$f":"Import!M29406","v":0},{"$f":"Import!M29506","v":0}]
[44,{"$f":"Import!M28907","v":"Select"},{"$f":"Import!M29007","v":"Select"},{"$f":"Import!M29107","v":"Select"},{"$f":"Import!M29207","v":"Select"},{"$f":"Import!M29307","v":0},{"$f":"Import!M29407","v":0},{"$f":"Import!M29507","v":0}]
[45,{"$f":"Import!M28908","v":"Select"},{"$f":"Import!M29008","v":"Select"},{"$f":"Import!M29108","v":"Select"},{"$f":"Import!M29208","v":"Select"},{"$f":"Import!M29308","v":0},{"$f":"Import!M29408","v":0},{"$f":"Import!M29508","v":0}]
[46,{"$f":"Import!M28909","v":"Select"},{"$f":"Import!M29009","v":"Select"},{"$f":"Import!M29109","v":"Select"},{"$f":"Import!M29209","v":"Select"},{"$f":"Import!M29309","v":0},{"$f":"Import!M29409","v":0},{"$f":"Import!M29509","v":0}]
[47,{"$f":"Import!M28910","v":"Select"},{"$f":"Import!M29010","v":"Select"},{"$f":"Import!M29110","v":"Select"},{"$f":"Import!M29210","v":"Select"},{"$f":"Import!M29310","v":0},{"$f":"Import!M29410","v":0},{"$f":"Import!M29510","v":0}]
[48,{"$f":"Import!M28911","v":"Select"},{"$f":"Import!M29011","v":"Select"},{"$f":"Import!M29111","v":"Select"},{"$f":"Import!M29211","v":"Select"},{"$f":"Import!M29311","v":0},{"$f":"Import!M29411","v":0},{"$f":"Import!M29511","v":0}]
[49,{"$f":"Import!M28912","v":"Select"},{"$f":"Import!M29012","v":"Select"},{"$f":"Import!M29112","v":"Select"},{"$f":"Import!M29212","v":"Select"},{"$f":"Import!M29312","v":0},{"$f":"Import!M29412","v":0},{"$f":"Import!M29512","v":0}]
[50,{"$f":"Import!M28913","v":"Select"},{"$f":"Import!M29013","v":"Select"},{"$f":"Import!M29113","v":"Select"},{"$f":"Import!M29213","v":"Select"},{"$f":"Import!M29313","v":0},{"$f":"Import!M29413","v":0},{"$f":"Import!M29513","v":0}]
[51,{"$f":"Import!M28914","v":"Select"},{"$f":"Import!M29014","v":"Select"},{"$f":"Import!M29114","v":"Select"},{"$f":"Import!M29214","v":"Select"},{"$f":"Import!M29314","v":0},{"$f":"Import!M29414","v":0},{"$f":"Import!M29514","v":0}]
[52,{"$f":"Import!M28915","v":"Select"},{"$f":"Import!M29015","v":"Select"},{"$f":"Import!M29115","v":"Select"},{"$f":"Import!M29215","v":"Select"},{"$f":"Import!M29315","v":0},{"$f":"Import!M29415","v":0},{"$f":"Import!M29515","v":0}]
[53,{"$f":"Import!M28916","v":"Select"},{"$f":"Import!M29016","v":"Select"},{"$f":"Import!M29116","v":"Select"},{"$f":"Import!M29216","v":"Select"},{"$f":"Import!M29316","v":0},{"$f":"Import!M29416","v":0},{"$f":"Import!M29516","v":0}]
[54,{"$f":"Import!M28917","v":"Select"},{"$f":"Import!M29017","v":"Select"},{"$f":"Import!M29117","v":"Select"},{"$f":"Import!M29217","v":"Select"},{"$f":"Import!M29317","v":0},{"$f":"Import!M29417","v":0},{"$f":"Import!M29517","v":0}]
[55,{"$f":"Import!M28918","v":"Select"},{"$f":"Import!M29018","v":"Select"},{"$f":"Import!M29118","v":"Select"},{"$f":"Import!M29218","v":"Select"},{"$f":"Import!M29318","v":0},{"$f":"Import!M29418","v":0},{"$f":"Import!M29518","v":0}]
[56,{"$f":"Import!M28919","v":"Select"},{"$f":"Import!M29019","v":"Select"},{"$f":"Import!M29119","v":"Select"},{"$f":"Import!M29219","v":"Select"},{"$f":"Import!M29319","v":0},{"$f":"Import!M29419","v":0},{"$f":"Import!M29519","v":0}]
[57,{"$f":"Import!M28920","v":"Select"},{"$f":"Import!M29020","v":"Select"},{"$f":"Import!M29120","v":"Select"},{"$f":"Import!M29220","v":"Select"},{"$f":"Import!M29320","v":0},{"$f":"Import!M29420","v":0},{"$f":"Import!M29520","v":0}]
[58,{"$f":"Import!M28921","v":"Select"},{"$f":"Import!M29021","v":"Select"},{"$f":"Import!M29121","v":"Select"},{"$f":"Import!M29221","v":"Select"},{"$f":"Import!M29321","v":0},{"$f":"Import!M29421","v":0},{"$f":"Import!M29521","v":0}]
[59,{"$f":"Import!M28922","v":"Select"},{"$f":"Import!M29022","v":"Select"},{"$f":"Import!M29122","v":"Select"},{"$f":"Import!M29222","v":"Select"},{"$f":"Import!M29322","v":0},{"$f":"Import!M29422","v":0},{"$f":"Import!M29522","v":0}]
[60,{"$f":"Import!M28923","v":"Select"},{"$f":"Import!M29023","v":"Select"},{"$f":"Import!M29123","v":"Select"},{"$f":"Import!M29223","v":"Select"},{"$f":"Import!M29323","v":0},{"$f":"Import!M29423","v":0},{"$f":"Import!M29523","v":0}]
[61,{"$f":"Import!M28924","v":"Select"},{"$f":"Import!M29024","v":"Select"},{"$f":"Import!M29124","v":"Select"},{"$f":"Import!M29224","v":"Select"},{"$f":"Import!M29324","v":0},{"$f":"Import!M29424","v":0},{"$f":"Import!M29524","v":0}]
[62,{"$f":"Import!M28925","v":"Select"},{"$f":"Import!M29025","v":"Select"},{"$f":"Import!M29125","v":"Select"},{"$f":"Import!M29225","v":"Select"},{"$f":"Import!M29325","v":0},{"$f":"Import!M29425","v":0},{"$f":"Import!M29525","v":0}]
[63,{"$f":"Import!M28926","v":"Select"},{"$f":"Import!M29026","v":"Select"},{"$f":"Import!M29126","v":"Select"},{"$f":"Import!M29226","v":"Select"},{"$f":"Import!M29326","v":0},{"$f":"Import!M29426","v":0},{"$f":"Import!M29526","v":0}]
[64,{"$f":"Import!M28927","v":"Select"},{"$f":"Import!M29027","v":"Select"},{"$f":"Import!M29127","v":"Select"},{"$f":"Import!M29227","v":"Select"},{"$f":"Import!M29327","v":0},{"$f":"Import!M29427","v":0},{"$f":"Import!M29527","v":0}]
[65,{"$f":"Import!M28928","v":"Select"},{"$f":"Import!M29028","v":"Select"},{"$f":"Import!M29128","v":"Select"},{"$f":"Import!M29228","v":"Select"},{"$f":"Import!M29328","v":0},{"$f":"Import!M29428","v":0},{"$f":"Import!M29528","v":0}]
[66,{"$f":"Import!M28929","v":"Select"},{"$f":"Import!M29029","v":"Select"},{"$f":"Import!M29129","v":"Select"},{"$f":"Import!M29229","v":"Select"},{"$f":"Import!M29329","v":0},{"$f":"Import!M29429","v":0},{"$f":"Import!M29529","v":0}]
[{"$f":"A1410+1","v":67},{"$f":"Import!M28930","v":"Select"},{"$f":"Import!M29030","v":"Select"},{"$f":"Import!M29130","v":"Select"},{"$f":"Import!M29230","v":"Select"},{"$f":"Import!M29330","v":0},{"$f":"Import!M29430","v":0},{"$f":"Import!M29530","v":0}]
[68,{"$f":"Import!M28931","v":"Select"},{"$f":"Import!M29031","v":"Select"},{"$f":"Import!M29131","v":"Select"},{"$f":"Import!M29231","v":"Select"},{"$f":"Import!M29331","v":0},{"$f":"Import!M29431","v":0},{"$f":"Import!M29531","v":0}]
[69,{"$f":"Import!M28932","v":"Select"},{"$f":"Import!M29032","v":"Select"},{"$f":"Import!M29132","v":"Select"},{"$f":"Import!M29232","v":"Select"},{"$f":"Import!M29332","v":0},{"$f":"Import!M29432","v":0},{"$f":"Import!M29532","v":0}]
[70,{"$f":"Import!M28933","v":"Select"},{"$f":"Import!M29033","v":"Select"},{"$f":"Import!M29133","v":"Select"},{"$f":"Import!M29233","v":"Select"},{"$f":"Import!M29333","v":0},{"$f":"Import!M29433","v":0},{"$f":"Import!M29533","v":0}]
[71,{"$f":"Import!M28934","v":"Select"},{"$f":"Import!M29034","v":"Select"},{"$f":"Import!M29134","v":"Select"},{"$f":"Import!M29234","v":"Select"},{"$f":"Import!M29334","v":0},{"$f":"Import!M29434","v":0},{"$f":"Import!M29534","v":0}]
[72,{"$f":"Import!M28935","v":"Select"},{"$f":"Import!M29035","v":"Select"},{"$f":"Import!M29135","v":"Select"},{"$f":"Import!M29235","v":"Select"},{"$f":"Import!M29335","v":0},{"$f":"Import!M29435","v":0},{"$f":"Import!M29535","v":0}]
[73,{"$f":"Import!M28936","v":"Select"},{"$f":"Import!M29036","v":"Select"},{"$f":"Import!M29136","v":"Select"},{"$f":"Import!M29236","v":"Select"},{"$f":"Import!M29336","v":0},{"$f":"Import!M29436","v":0},{"$f":"Import!M29536","v":0}]
[74,{"$f":"Import!M28937","v":"Select"},{"$f":"Import!M29037","v":"Select"},{"$f":"Import!M29137","v":"Select"},{"$f":"Import!M29237","v":"Select"},{"$f":"Import!M29337","v":0},{"$f":"Import!M29437","v":0},{"$f":"Import!M29537","v":0}]
[75,{"$f":"Import!M28938","v":"Select"},{"$f":"Import!M29038","v":"Select"},{"$f":"Import!M29138","v":"Select"},{"$f":"Import!M29238","v":"Select"},{"$f":"Import!M29338","v":0},{"$f":"Import!M29438","v":0},{"$f":"Import!M29538","v":0}]
[76,{"$f":"Import!M28939","v":"Select"},{"$f":"Import!M29039","v":"Select"},{"$f":"Import!M29139","v":"Select"},{"$f":"Import!M29239","v":"Select"},{"$f":"Import!M29339","v":0},{"$f":"Import!M29439","v":0},{"$f":"Import!M29539","v":0}]
[77,{"$f":"Import!M28940","v":"Select"},{"$f":"Import!M29040","v":"Select"},{"$f":"Import!M29140","v":"Select"},{"$f":"Import!M29240","v":"Select"},{"$f":"Import!M29340","v":0},{"$f":"Import!M29440","v":0},{"$f":"Import!M29540","v":0}]
[78,{"$f":"Import!M28941","v":"Select"},{"$f":"Import!M29041","v":"Select"},{"$f":"Import!M29141","v":"Select"},{"$f":"Import!M29241","v":"Select"},{"$f":"Import!M29341","v":0},{"$f":"Import!M29441","v":0},{"$f":"Import!M29541","v":0}]
[79,{"$f":"Import!M28942","v":"Select"},{"$f":"Import!M29042","v":"Select"},{"$f":"Import!M29142","v":"Select"},{"$f":"Import!M29242","v":"Select"},{"$f":"Import!M29342","v":0},{"$f":"Import!M29442","v":0},{"$f":"Import!M29542","v":0}]
[80,{"$f":"Import!M28943","v":"Select"},{"$f":"Import!M29043","v":"Select"},{"$f":"Import!M29143","v":"Select"},{"$f":"Import!M29243","v":"Select"},{"$f":"Import!M29343","v":0},{"$f":"Import!M29443","v":0},{"$f":"Import!M29543","v":0}]
[81,{"$f":"Import!M28944","v":"Select"},{"$f":"Import!M29044","v":"Select"},{"$f":"Import!M29144","v":"Select"},{"$f":"Import!M29244","v":"Select"},{"$f":"Import!M29344","v":0},{"$f":"Import!M29444","v":0},{"$f":"Import!M29544","v":0}]
[82,{"$f":"Import!M28945","v":"Select"},{"$f":"Import!M29045","v":"Select"},{"$f":"Import!M29145","v":"Select"},{"$f":"Import!M29245","v":"Select"},{"$f":"Import!M29345","v":0},{"$f":"Import!M29445","v":0},{"$f":"Import!M29545","v":0}]
[83,{"$f":"Import!M28946","v":"Select"},{"$f":"Import!M29046","v":"Select"},{"$f":"Import!M29146","v":"Select"},{"$f":"Import!M29246","v":"Select"},{"$f":"Import!M29346","v":0},{"$f":"Import!M29446","v":0},{"$f":"Import!M29546","v":0}]
[84,{"$f":"Import!M28947","v":"Select"},{"$f":"Import!M29047","v":"Select"},{"$f":"Import!M29147","v":"Select"},{"$f":"Import!M29247","v":"Select"},{"$f":"Import!M29347","v":0},{"$f":"Import!M29447","v":0},{"$f":"Import!M29547","v":0}]
[85,{"$f":"Import!M28948","v":"Select"},{"$f":"Import!M29048","v":"Select"},{"$f":"Import!M29148","v":"Select"},{"$f":"Import!M29248","v":"Select"},{"$f":"Import!M29348","v":0},{"$f":"Import!M29448","v":0},{"$f":"Import!M29548","v":0}]
[86,{"$f":"Import!M28949","v":"Select"},{"$f":"Import!M29049","v":"Select"},{"$f":"Import!M29149","v":"Select"},{"$f":"Import!M29249","v":"Select"},{"$f":"Import!M29349","v":0},{"$f":"Import!M29449","v":0},{"$f":"Import!M29549","v":0}]
[87,{"$f":"Import!M28950","v":"Select"},{"$f":"Import!M29050","v":"Select"},{"$f":"Import!M29150","v":"Select"},{"$f":"Import!M29250","v":"Select"},{"$f":"Import!M29350","v":0},{"$f":"Import!M29450","v":0},{"$f":"Import!M29550","v":0}]
[88,{"$f":"Import!M28951","v":"Select"},{"$f":"Import!M29051","v":"Select"},{"$f":"Import!M29151","v":"Select"},{"$f":"Import!M29251","v":"Select"},{"$f":"Import!M29351","v":0},{"$f":"Import!M29451","v":0},{"$f":"Import!M29551","v":0}]
[89,{"$f":"Import!M28952","v":"Select"},{"$f":"Import!M29052","v":"Select"},{"$f":"Import!M29152","v":"Select"},{"$f":"Import!M29252","v":"Select"},{"$f":"Import!M29352","v":0},{"$f":"Import!M29452","v":0},{"$f":"Import!M29552","v":0}]
[90,{"$f":"Import!M28953","v":"Select"},{"$f":"Import!M29053","v":"Select"},{"$f":"Import!M29153","v":"Select"},{"$f":"Import!M29253","v":"Select"},{"$f":"Import!M29353","v":0},{"$f":"Import!M29453","v":0},{"$f":"Import!M29553","v":0}]
[91,{"$f":"Import!M28954","v":"Select"},{"$f":"Import!M29054","v":"Select"},{"$f":"Import!M29154","v":"Select"},{"$f":"Import!M29254","v":"Select"},{"$f":"Import!M29354","v":0},{"$f":"Import!M29454","v":0},{"$f":"Import!M29554","v":0}]
[92,{"$f":"Import!M28955","v":"Select"},{"$f":"Import!M29055","v":"Select"},{"$f":"Import!M29155","v":"Select"},{"$f":"Import!M29255","v":"Select"},{"$f":"Import!M29355","v":0},{"$f":"Import!M29455","v":0},{"$f":"Import!M29555","v":0}]
[93,{"$f":"Import!M28956","v":"Select"},{"$f":"Import!M29056","v":"Select"},{"$f":"Import!M29156","v":"Select"},{"$f":"Import!M29256","v":"Select"},{"$f":"Import!M29356","v":0},{"$f":"Import!M29456","v":0},{"$f":"Import!M29556","v":0}]
[94,{"$f":"Import!M28957","v":"Select"},{"$f":"Import!M29057","v":"Select"},{"$f":"Import!M29157","v":"Select"},{"$f":"Import!M29257","v":"Select"},{"$f":"Import!M29357","v":0},{"$f":"Import!M29457","v":0},{"$f":"Import!M29557","v":0}]
[95,{"$f":"Import!M28958","v":"Select"},{"$f":"Import!M29058","v":"Select"},{"$f":"Import!M29158","v":"Select"},{"$f":"Import!M29258","v":"Select"},{"$f":"Import!M29358","v":0},{"$f":"Import!M29458","v":0},{"$f":"Import!M29558","v":0}]
[96,{"$f":"Import!M28959","v":"Select"},{"$f":"Import!M29059","v":"Select"},{"$f":"Import!M29159","v":"Select"},{"$f":"Import!M29259","v":"Select"},{"$f":"Import!M29359","v":0},{"$f":"Import!M29459","v":0},{"$f":"Import!M29559","v":0}]
[97,{"$f":"Import!M28960","v":"Select"},{"$f":"Import!M29060","v":"Select"},{"$f":"Import!M29160","v":"Select"},{"$f":"Import!M29260","v":"Select"},{"$f":"Import!M29360","v":0},{"$f":"Import!M29460","v":0},{"$f":"Import!M29560","v":0}]
[98,{"$f":"Import!M28961","v":"Select"},{"$f":"Import!M29061","v":"Select"},{"$f":"Import!M29161","v":"Select"},{"$f":"Import!M29261","v":"Select"},{"$f":"Import!M29361","v":0},{"$f":"Import!M29461","v":0},{"$f":"Import!M29561","v":0}]
[99,{"$f":"Import!M28962","v":"Select"},{"$f":"Import!M29062","v":"Select"},{"$f":"Import!M29162","v":"Select"},{"$f":"Import!M29262","v":"Select"},{"$f":"Import!M29362","v":0},{"$f":"Import!M29462","v":0},{"$f":"Import!M29562","v":0}]
[100,{"$f":"Import!M28963","v":"Select"},{"$f":"Import!M29063","v":"Select"},{"$f":"Import!M29163","v":"Select"},{"$f":"Import!M29263","v":"Select"},{"$f":"Import!M29363","v":0},{"$f":"Import!M29463","v":0},{"$f":"Import!M29563","v":0}]
[]
[null,"Total Real Estate",null,null,null,{"$f":"SUM(F1345:F1444)","v":0},{"$f":"SUM(G1345:G1444)","v":0}]
[]
[null,"(H) OTHER ALTERNATIVE INVESTMENTS"]
[]
[null,null,"Enter # of Asset Types",{"$f":"Import!M29564","v":0}]
[null,null,null,null,null,{"$f":"YEAR($C$3)","v":2023},2023,"Weighted"]
[null,"Asset Type","Currency","Country","BSCR Rating","Nominal Amount","Fair Value","Average YTM","Effective Duration","Comments"]
[1,{"$f":"Import!M29565","v":"Select"},{"$f":"Import!M29665","v":"Select"},{"$f":"Import!M29765","v":"Select"},{"$f":"Import!M29865","v":"Select"},{"$f":"Import!M29965","v":0},{"$f":"Import!M30065","v":0},{"$f":"Import!M30165","v":0},{"$f":"Import!M30265","v":0},{"$f":"Import!M30365","v":0}]
[{"$f":"A1453+1","v":2},{"$f":"Import!M29566","v":"Select"},{"$f":"Import!M29666","v":"Select"},{"$f":"Import!M29766","v":"Select"},{"$f":"Import!M29866","v":"Select"},{"$f":"Import!M29966","v":0},{"$f":"Import!M30066","v":0},{"$f":"Import!M30166","v":0},{"$f":"Import!M30266","v":0},{"$f":"Import!M30366","v":0}]
[{"$f":"A1454+1","v":3},{"$f":"Import!M29567","v":"Select"},{"$f":"Import!M29667","v":"Select"},{"$f":"Import!M29767","v":"Select"},{"$f":"Import!M29867","v":"Select"},{"$f":"Import!M29967","v":0},{"$f":"Import!M30067","v":0},{"$f":"Import!M30167","v":0},{"$f":"Import!M30267","v":0},{"$f":"Import!M30367","v":0}]
[4,{"$f":"Import!M29568","v":"Select"},{"$f":"Import!M29668","v":"Select"},{"$f":"Import!M29768","v":"Select"},{"$f":"Import!M29868","v":"Select"},{"$f":"Import!M29968","v":0},{"$f":"Import!M30068","v":0},{"$f":"Import!M30168","v":0},{"$f":"Import!M30268","v":0},{"$f":"Import!M30368","v":0}]
[5,{"$f":"Import!M29569","v":"Select"},{"$f":"Import!M29669","v":"Select"},{"$f":"Import!M29769","v":"Select"},{"$f":"Import!M29869","v":"Select"},{"$f":"Import!M29969","v":0},{"$f":"Import!M30069","v":0},{"$f":"Import!M30169","v":0},{"$f":"Import!M30269","v":0},{"$f":"Import!M30369","v":0}]
[6,{"$f":"Import!M29570","v":"Select"},{"$f":"Import!M29670","v":"Select"},{"$f":"Import!M29770","v":"Select"},{"$f":"Import!M29870","v":"Select"},{"$f":"Import!M29970","v":0},{"$f":"Import!M30070","v":0},{"$f":"Import!M30170","v":0},{"$f":"Import!M30270","v":0},{"$f":"Import!M30370","v":0}]
[7,{"$f":"Import!M29571","v":"Select"},{"$f":"Import!M29671","v":"Select"},{"$f":"Import!M29771","v":"Select"},{"$f":"Import!M29871","v":"Select"},{"$f":"Import!M29971","v":0},{"$f":"Import!M30071","v":0},{"$f":"Import!M30171","v":0},{"$f":"Import!M30271","v":0},{"$f":"Import!M30371","v":0}]
[8,{"$f":"Import!M29572","v":"Select"},{"$f":"Import!M29672","v":"Select"},{"$f":"Import!M29772","v":"Select"},{"$f":"Import!M29872","v":"Select"},{"$f":"Import!M29972","v":0},{"$f":"Import!M30072","v":0},{"$f":"Import!M30172","v":0},{"$f":"Import!M30272","v":0},{"$f":"Import!M30372","v":0}]
[9,{"$f":"Import!M29573","v":"Select"},{"$f":"Import!M29673","v":"Select"},{"$f":"Import!M29773","v":"Select"},{"$f":"Import!M29873","v":"Select"},{"$f":"Import!M29973","v":0},{"$f":"Import!M30073","v":0},{"$f":"Import!M30173","v":0},{"$f":"Import!M30273","v":0},{"$f":"Import!M30373","v":0}]
[10,{"$f":"Import!M29574","v":"Select"},{"$f":"Import!M29674","v":"Select"},{"$f":"Import!M29774","v":"Select"},{"$f":"Import!M29874","v":"Select"},{"$f":"Import!M29974","v":0},{"$f":"Import!M30074","v":0},{"$f":"Import!M30174","v":0},{"$f":"Import!M30274","v":0},{"$f":"Import!M30374","v":0}]
[11,{"$f":"Import!M29575","v":"Select"},{"$f":"Import!M29675","v":"Select"},{"$f":"Import!M29775","v":"Select"},{"$f":"Import!M29875","v":"Select"},{"$f":"Import!M29975","v":0},{"$f":"Import!M30075","v":0},{"$f":"Import!M30175","v":0},{"$f":"Import!M30275","v":0},{"$f":"Import!M30375","v":0}]
[12,{"$f":"Import!M29576","v":"Select"},{"$f":"Import!M29676","v":"Select"},{"$f":"Import!M29776","v":"Select"},{"$f":"Import!M29876","v":"Select"},{"$f":"Import!M29976","v":0},{"$f":"Import!M30076","v":0},{"$f":"Import!M30176","v":0},{"$f":"Import!M30276","v":0},{"$f":"Import!M30376","v":0}]
[13,{"$f":"Import!M29577","v":"Select"},{"$f":"Import!M29677","v":"Select"},{"$f":"Import!M29777","v":"Select"},{"$f":"Import!M29877","v":"Select"},{"$f":"Import!M29977","v":0},{"$f":"Import!M30077","v":0},{"$f":"Import!M30177","v":0},{"$f":"Import!M30277","v":0},{"$f":"Import!M30377","v":0}]
[14,{"$f":"Import!M29578","v":"Select"},{"$f":"Import!M29678","v":"Select"},{"$f":"Import!M29778","v":"Select"},{"$f":"Import!M29878","v":"Select"},{"$f":"Import!M29978","v":0},{"$f":"Import!M30078","v":0},{"$f":"Import!M30178","v":0},{"$f":"Import!M30278","v":0},{"$f":"Import!M30378","v":0}]
[15,{"$f":"Import!M29579","v":"Select"},{"$f":"Import!M29679","v":"Select"},{"$f":"Import!M29779","v":"Select"},{"$f":"Import!M29879","v":"Select"},{"$f":"Import!M29979","v":0},{"$f":"Import!M30079","v":0},{"$f":"Import!M30179","v":0},{"$f":"Import!M30279","v":0},{"$f":"Import!M30379","v":0}]
[16,{"$f":"Import!M29580","v":"Select"},{"$f":"Import!M29680","v":"Select"},{"$f":"Import!M29780","v":"Select"},{"$f":"Import!M29880","v":"Select"},{"$f":"Import!M29980","v":0},{"$f":"Import!M30080","v":0},{"$f":"Import!M30180","v":0},{"$f":"Import!M30280","v":0},{"$f":"Import!M30380","v":0}]
[17,{"$f":"Import!M29581","v":"Select"},{"$f":"Import!M29681","v":"Select"},{"$f":"Import!M29781","v":"Select"},{"$f":"Import!M29881","v":"Select"},{"$f":"Import!M29981","v":0},{"$f":"Import!M30081","v":0},{"$f":"Import!M30181","v":0},{"$f":"Import!M30281","v":0},{"$f":"Import!M30381","v":0}]
[18,{"$f":"Import!M29582","v":"Select"},{"$f":"Import!M29682","v":"Select"},{"$f":"Import!M29782","v":"Select"},{"$f":"Import!M29882","v":"Select"},{"$f":"Import!M29982","v":0},{"$f":"Import!M30082","v":0},{"$f":"Import!M30182","v":0},{"$f":"Import!M30282","v":0},{"$f":"Import!M30382","v":0}]
[19,{"$f":"Import!M29583","v":"Select"},{"$f":"Import!M29683","v":"Select"},{"$f":"Import!M29783","v":"Select"},{"$f":"Import!M29883","v":"Select"},{"$f":"Import!M29983","v":0},{"$f":"Import!M30083","v":0},{"$f":"Import!M30183","v":0},{"$f":"Import!M30283","v":0},{"$f":"Import!M30383","v":0}]
[20,{"$f":"Import!M29584","v":"Select"},{"$f":"Import!M29684","v":"Select"},{"$f":"Import!M29784","v":"Select"},{"$f":"Import!M29884","v":"Select"},{"$f":"Import!M29984","v":0},{"$f":"Import!M30084","v":0},{"$f":"Import!M30184","v":0},{"$f":"Import!M30284","v":0},{"$f":"Import!M30384","v":0}]
[21,{"$f":"Import!M29585","v":"Select"},{"$f":"Import!M29685","v":"Select"},{"$f":"Import!M29785","v":"Select"},{"$f":"Import!M29885","v":"Select"},{"$f":"Import!M29985","v":0},{"$f":"Import!M30085","v":0},{"$f":"Import!M30185","v":0},{"$f":"Import!M30285","v":0},{"$f":"Import!M30385","v":0}]
[22,{"$f":"Import!M29586","v":"Select"},{"$f":"Import!M29686","v":"Select"},{"$f":"Import!M29786","v":"Select"},{"$f":"Import!M29886","v":"Select"},{"$f":"Import!M29986","v":0},{"$f":"Import!M30086","v":0},{"$f":"Import!M30186","v":0},{"$f":"Import!M30286","v":0},{"$f":"Import!M30386","v":0}]
[23,{"$f":"Import!M29587","v":"Select"},{"$f":"Import!M29687","v":"Select"},{"$f":"Import!M29787","v":"Select"},{"$f":"Import!M29887","v":"Select"},{"$f":"Import!M29987","v":0},{"$f":"Import!M30087","v":0},{"$f":"Import!M30187","v":0},{"$f":"Import!M30287","v":0},{"$f":"Import!M30387","v":0}]
[24,{"$f":"Import!M29588","v":"Select"},{"$f":"Import!M29688","v":"Select"},{"$f":"Import!M29788","v":"Select"},{"$f":"Import!M29888","v":"Select"},{"$f":"Import!M29988","v":0},{"$f":"Import!M30088","v":0},{"$f":"Import!M30188","v":0},{"$f":"Import!M30288","v":0},{"$f":"Import!M30388","v":0}]
[25,{"$f":"Import!M29589","v":"Select"},{"$f":"Import!M29689","v":"Select"},{"$f":"Import!M29789","v":"Select"},{"$f":"Import!M29889","v":"Select"},{"$f":"Import!M29989","v":0},{"$f":"Import!M30089","v":0},{"$f":"Import!M30189","v":0},{"$f":"Import!M30289","v":0},{"$f":"Import!M30389","v":0}]
[26,{"$f":"Import!M29590","v":"Select"},{"$f":"Import!M29690","v":"Select"},{"$f":"Import!M29790","v":"Select"},{"$f":"Import!M29890","v":"Select"},{"$f":"Import!M29990","v":0},{"$f":"Import!M30090","v":0},{"$f":"Import!M30190","v":0},{"$f":"Import!M30290","v":0},{"$f":"Import!M30390","v":0}]
[27,{"$f":"Import!M29591","v":"Select"},{"$f":"Import!M29691","v":"Select"},{"$f":"Import!M29791","v":"Select"},{"$f":"Import!M29891","v":"Select"},{"$f":"Import!M29991","v":0},{"$f":"Import!M30091","v":0},{"$f":"Import!M30191","v":0},{"$f":"Import!M30291","v":0},{"$f":"Import!M30391","v":0}]
[28,{"$f":"Import!M29592","v":"Select"},{"$f":"Import!M29692","v":"Select"},{"$f":"Import!M29792","v":"Select"},{"$f":"Import!M29892","v":"Select"},{"$f":"Import!M29992","v":0},{"$f":"Import!M30092","v":0},{"$f":"Import!M30192","v":0},{"$f":"Import!M30292","v":0},{"$f":"Import!M30392","v":0}]
[29,{"$f":"Import!M29593","v":"Select"},{"$f":"Import!M29693","v":"Select"},{"$f":"Import!M29793","v":"Select"},{"$f":"Import!M29893","v":"Select"},{"$f":"Import!M29993","v":0},{"$f":"Import!M30093","v":0},{"$f":"Import!M30193","v":0},{"$f":"Import!M30293","v":0},{"$f":"Import!M30393","v":0}]
[30,{"$f":"Import!M29594","v":"Select"},{"$f":"Import!M29694","v":"Select"},{"$f":"Import!M29794","v":"Select"},{"$f":"Import!M29894","v":"Select"},{"$f":"Import!M29994","v":0},{"$f":"Import!M30094","v":0},{"$f":"Import!M30194","v":0},{"$f":"Import!M30294","v":0},{"$f":"Import!M30394","v":0}]
[31,{"$f":"Import!M29595","v":"Select"},{"$f":"Import!M29695","v":"Select"},{"$f":"Import!M29795","v":"Select"},{"$f":"Import!M29895","v":"Select"},{"$f":"Import!M29995","v":0},{"$f":"Import!M30095","v":0},{"$f":"Import!M30195","v":0},{"$f":"Import!M30295","v":0},{"$f":"Import!M30395","v":0}]
[32,{"$f":"Import!M29596","v":"Select"},{"$f":"Import!M29696","v":"Select"},{"$f":"Import!M29796","v":"Select"},{"$f":"Import!M29896","v":"Select"},{"$f":"Import!M29996","v":0},{"$f":"Import!M30096","v":0},{"$f":"Import!M30196","v":0},{"$f":"Import!M30296","v":0},{"$f":"Import!M30396","v":0}]
[33,{"$f":"Import!M29597","v":"Select"},{"$f":"Import!M29697","v":"Select"},{"$f":"Import!M29797","v":"Select"},{"$f":"Import!M29897","v":"Select"},{"$f":"Import!M29997","v":0},{"$f":"Import!M30097","v":0},{"$f":"Import!M30197","v":0},{"$f":"Import!M30297","v":0},{"$f":"Import!M30397","v":0}]
[34,{"$f":"Import!M29598","v":"Select"},{"$f":"Import!M29698","v":"Select"},{"$f":"Import!M29798","v":"Select"},{"$f":"Import!M29898","v":"Select"},{"$f":"Import!M29998","v":0},{"$f":"Import!M30098","v":0},{"$f":"Import!M30198","v":0},{"$f":"Import!M30298","v":0},{"$f":"Import!M30398","v":0}]
[35,{"$f":"Import!M29599","v":"Select"},{"$f":"Import!M29699","v":"Select"},{"$f":"Import!M29799","v":"Select"},{"$f":"Import!M29899","v":"Select"},{"$f":"Import!M29999","v":0},{"$f":"Import!M30099","v":0},{"$f":"Import!M30199","v":0},{"$f":"Import!M30299","v":0},{"$f":"Import!M30399","v":0}]
[36,{"$f":"Import!M29600","v":"Select"},{"$f":"Import!M29700","v":"Select"},{"$f":"Import!M29800","v":"Select"},{"$f":"Import!M29900","v":"Select"},{"$f":"Import!M30000","v":0},{"$f":"Import!M30100","v":0},{"$f":"Import!M30200","v":0},{"$f":"Import!M30300","v":0},{"$f":"Import!M30400","v":0}]
[37,{"$f":"Import!M29601","v":"Select"},{"$f":"Import!M29701","v":"Select"},{"$f":"Import!M29801","v":"Select"},{"$f":"Import!M29901","v":"Select"},{"$f":"Import!M30001","v":0},{"$f":"Import!M30101","v":0},{"$f":"Import!M30201","v":0},{"$f":"Import!M30301","v":0},{"$f":"Import!M30401","v":0}]
[38,{"$f":"Import!M29602","v":"Select"},{"$f":"Import!M29702","v":"Select"},{"$f":"Import!M29802","v":"Select"},{"$f":"Import!M29902","v":"Select"},{"$f":"Import!M30002","v":0},{"$f":"Import!M30102","v":0},{"$f":"Import!M30202","v":0},{"$f":"Import!M30302","v":0},{"$f":"Import!M30402","v":0}]
[39,{"$f":"Import!M29603","v":"Select"},{"$f":"Import!M29703","v":"Select"},{"$f":"Import!M29803","v":"Select"},{"$f":"Import!M29903","v":"Select"},{"$f":"Import!M30003","v":0},{"$f":"Import!M30103","v":0},{"$f":"Import!M30203","v":0},{"$f":"Import!M30303","v":0},{"$f":"Import!M30403","v":0}]
[40,{"$f":"Import!M29604","v":"Select"},{"$f":"Import!M29704","v":"Select"},{"$f":"Import!M29804","v":"Select"},{"$f":"Import!M29904","v":"Select"},{"$f":"Import!M30004","v":0},{"$f":"Import!M30104","v":0},{"$f":"Import!M30204","v":0},{"$f":"Import!M30304","v":0},{"$f":"Import!M30404","v":0}]
[41,{"$f":"Import!M29605","v":"Select"},{"$f":"Import!M29705","v":"Select"},{"$f":"Import!M29805","v":"Select"},{"$f":"Import!M29905","v":"Select"},{"$f":"Import!M30005","v":0},{"$f":"Import!M30105","v":0},{"$f":"Import!M30205","v":0},{"$f":"Import!M30305","v":0},{"$f":"Import!M30405","v":0}]
[42,{"$f":"Import!M29606","v":"Select"},{"$f":"Import!M29706","v":"Select"},{"$f":"Import!M29806","v":"Select"},{"$f":"Import!M29906","v":"Select"},{"$f":"Import!M30006","v":0},{"$f":"Import!M30106","v":0},{"$f":"Import!M30206","v":0},{"$f":"Import!M30306","v":0},{"$f":"Import!M30406","v":0}]
[43,{"$f":"Import!M29607","v":"Select"},{"$f":"Import!M29707","v":"Select"},{"$f":"Import!M29807","v":"Select"},{"$f":"Import!M29907","v":"Select"},{"$f":"Import!M30007","v":0},{"$f":"Import!M30107","v":0},{"$f":"Import!M30207","v":0},{"$f":"Import!M30307","v":0},{"$f":"Import!M30407","v":0}]
[44,{"$f":"Import!M29608","v":"Select"},{"$f":"Import!M29708","v":"Select"},{"$f":"Import!M29808","v":"Select"},{"$f":"Import!M29908","v":"Select"},{"$f":"Import!M30008","v":0},{"$f":"Import!M30108","v":0},{"$f":"Import!M30208","v":0},{"$f":"Import!M30308","v":0},{"$f":"Import!M30408","v":0}]
[45,{"$f":"Import!M29609","v":"Select"},{"$f":"Import!M29709","v":"Select"},{"$f":"Import!M29809","v":"Select"},{"$f":"Import!M29909","v":"Select"},{"$f":"Import!M30009","v":0},{"$f":"Import!M30109","v":0},{"$f":"Import!M30209","v":0},{"$f":"Import!M30309","v":0},{"$f":"Import!M30409","v":0}]
[46,{"$f":"Import!M29610","v":"Select"},{"$f":"Import!M29710","v":"Select"},{"$f":"Import!M29810","v":"Select"},{"$f":"Import!M29910","v":"Select"},{"$f":"Import!M30010","v":0},{"$f":"Import!M30110","v":0},{"$f":"Import!M30210","v":0},{"$f":"Import!M30310","v":0},{"$f":"Import!M30410","v":0}]
[47,{"$f":"Import!M29611","v":"Select"},{"$f":"Import!M29711","v":"Select"},{"$f":"Import!M29811","v":"Select"},{"$f":"Import!M29911","v":"Select"},{"$f":"Import!M30011","v":0},{"$f":"Import!M30111","v":0},{"$f":"Import!M30211","v":0},{"$f":"Import!M30311","v":0},{"$f":"Import!M30411","v":0}]
[48,{"$f":"Import!M29612","v":"Select"},{"$f":"Import!M29712","v":"Select"},{"$f":"Import!M29812","v":"Select"},{"$f":"Import!M29912","v":"Select"},{"$f":"Import!M30012","v":0},{"$f":"Import!M30112","v":0},{"$f":"Import!M30212","v":0},{"$f":"Import!M30312","v":0},{"$f":"Import!M30412","v":0}]
[49,{"$f":"Import!M29613","v":"Select"},{"$f":"Import!M29713","v":"Select"},{"$f":"Import!M29813","v":"Select"},{"$f":"Import!M29913","v":"Select"},{"$f":"Import!M30013","v":0},{"$f":"Import!M30113","v":0},{"$f":"Import!M30213","v":0},{"$f":"Import!M30313","v":0},{"$f":"Import!M30413","v":0}]
[50,{"$f":"Import!M29614","v":"Select"},{"$f":"Import!M29714","v":"Select"},{"$f":"Import!M29814","v":"Select"},{"$f":"Import!M29914","v":"Select"},{"$f":"Import!M30014","v":0},{"$f":"Import!M30114","v":0},{"$f":"Import!M30214","v":0},{"$f":"Import!M30314","v":0},{"$f":"Import!M30414","v":0}]
[51,{"$f":"Import!M29615","v":"Select"},{"$f":"Import!M29715","v":"Select"},{"$f":"Import!M29815","v":"Select"},{"$f":"Import!M29915","v":"Select"},{"$f":"Import!M30015","v":0},{"$f":"Import!M30115","v":0},{"$f":"Import!M30215","v":0},{"$f":"Import!M30315","v":0},{"$f":"Import!M30415","v":0}]
[52,{"$f":"Import!M29616","v":"Select"},{"$f":"Import!M29716","v":"Select"},{"$f":"Import!M29816","v":"Select"},{"$f":"Import!M29916","v":"Select"},{"$f":"Import!M30016","v":0},{"$f":"Import!M30116","v":0},{"$f":"Import!M30216","v":0},{"$f":"Import!M30316","v":0},{"$f":"Import!M30416","v":0}]
[53,{"$f":"Import!M29617","v":"Select"},{"$f":"Import!M29717","v":"Select"},{"$f":"Import!M29817","v":"Select"},{"$f":"Import!M29917","v":"Select"},{"$f":"Import!M30017","v":0},{"$f":"Import!M30117","v":0},{"$f":"Import!M30217","v":0},{"$f":"Import!M30317","v":0},{"$f":"Import!M30417","v":0}]
[54,{"$f":"Import!M29618","v":"Select"},{"$f":"Import!M29718","v":"Select"},{"$f":"Import!M29818","v":"Select"},{"$f":"Import!M29918","v":"Select"},{"$f":"Import!M30018","v":0},{"$f":"Import!M30118","v":0},{"$f":"Import!M30218","v":0},{"$f":"Import!M30318","v":0},{"$f":"Import!M30418","v":0}]
[55,{"$f":"Import!M29619","v":"Select"},{"$f":"Import!M29719","v":"Select"},{"$f":"Import!M29819","v":"Select"},{"$f":"Import!M29919","v":"Select"},{"$f":"Import!M30019","v":0},{"$f":"Import!M30119","v":0},{"$f":"Import!M30219","v":0},{"$f":"Import!M30319","v":0},{"$f":"Import!M30419","v":0}]
[56,{"$f":"Import!M29620","v":"Select"},{"$f":"Import!M29720","v":"Select"},{"$f":"Import!M29820","v":"Select"},{"$f":"Import!M29920","v":"Select"},{"$f":"Import!M30020","v":0},{"$f":"Import!M30120","v":0},{"$f":"Import!M30220","v":0},{"$f":"Import!M30320","v":0},{"$f":"Import!M30420","v":0}]
[57,{"$f":"Import!M29621","v":"Select"},{"$f":"Import!M29721","v":"Select"},{"$f":"Import!M29821","v":"Select"},{"$f":"Import!M29921","v":"Select"},{"$f":"Import!M30021","v":0},{"$f":"Import!M30121","v":0},{"$f":"Import!M30221","v":0},{"$f":"Import!M30321","v":0},{"$f":"Import!M30421","v":0}]
[58,{"$f":"Import!M29622","v":"Select"},{"$f":"Import!M29722","v":"Select"},{"$f":"Import!M29822","v":"Select"},{"$f":"Import!M29922","v":"Select"},{"$f":"Import!M30022","v":0},{"$f":"Import!M30122","v":0},{"$f":"Import!M30222","v":0},{"$f":"Import!M30322","v":0},{"$f":"Import!M30422","v":0}]
[59,{"$f":"Import!M29623","v":"Select"},{"$f":"Import!M29723","v":"Select"},{"$f":"Import!M29823","v":"Select"},{"$f":"Import!M29923","v":"Select"},{"$f":"Import!M30023","v":0},{"$f":"Import!M30123","v":0},{"$f":"Import!M30223","v":0},{"$f":"Import!M30323","v":0},{"$f":"Import!M30423","v":0}]
[60,{"$f":"Import!M29624","v":"Select"},{"$f":"Import!M29724","v":"Select"},{"$f":"Import!M29824","v":"Select"},{"$f":"Import!M29924","v":"Select"},{"$f":"Import!M30024","v":0},{"$f":"Import!M30124","v":0},{"$f":"Import!M30224","v":0},{"$f":"Import!M30324","v":0},{"$f":"Import!M30424","v":0}]
[61,{"$f":"Import!M29625","v":"Select"},{"$f":"Import!M29725","v":"Select"},{"$f":"Import!M29825","v":"Select"},{"$f":"Import!M29925","v":"Select"},{"$f":"Import!M30025","v":0},{"$f":"Import!M30125","v":0},{"$f":"Import!M30225","v":0},{"$f":"Import!M30325","v":0},{"$f":"Import!M30425","v":0}]
[62,{"$f":"Import!M29626","v":"Select"},{"$f":"Import!M29726","v":"Select"},{"$f":"Import!M29826","v":"Select"},{"$f":"Import!M29926","v":"Select"},{"$f":"Import!M30026","v":0},{"$f":"Import!M30126","v":0},{"$f":"Import!M30226","v":0},{"$f":"Import!M30326","v":0},{"$f":"Import!M30426","v":0}]
[63,{"$f":"Import!M29627","v":"Select"},{"$f":"Import!M29727","v":"Select"},{"$f":"Import!M29827","v":"Select"},{"$f":"Import!M29927","v":"Select"},{"$f":"Import!M30027","v":0},{"$f":"Import!M30127","v":0},{"$f":"Import!M30227","v":0},{"$f":"Import!M30327","v":0},{"$f":"Import!M30427","v":0}]
[64,{"$f":"Import!M29628","v":"Select"},{"$f":"Import!M29728","v":"Select"},{"$f":"Import!M29828","v":"Select"},{"$f":"Import!M29928","v":"Select"},{"$f":"Import!M30028","v":0},{"$f":"Import!M30128","v":0},{"$f":"Import!M30228","v":0},{"$f":"Import!M30328","v":0},{"$f":"Import!M30428","v":0}]
[65,{"$f":"Import!M29629","v":"Select"},{"$f":"Import!M29729","v":"Select"},{"$f":"Import!M29829","v":"Select"},{"$f":"Import!M29929","v":"Select"},{"$f":"Import!M30029","v":0},{"$f":"Import!M30129","v":0},{"$f":"Import!M30229","v":0},{"$f":"Import!M30329","v":0},{"$f":"Import!M30429","v":0}]
[66,{"$f":"Import!M29630","v":"Select"},{"$f":"Import!M29730","v":"Select"},{"$f":"Import!M29830","v":"Select"},{"$f":"Import!M29930","v":"Select"},{"$f":"Import!M30030","v":0},{"$f":"Import!M30130","v":0},{"$f":"Import!M30230","v":0},{"$f":"Import!M30330","v":0},{"$f":"Import!M30430","v":0}]
[{"$f":"A1518+1","v":67},{"$f":"Import!M29631","v":"Select"},{"$f":"Import!M29731","v":"Select"},{"$f":"Import!M29831","v":"Select"},{"$f":"Import!M29931","v":"Select"},{"$f":"Import!M30031","v":0},{"$f":"Import!M30131","v":0},{"$f":"Import!M30231","v":0},{"$f":"Import!M30331","v":0},{"$f":"Import!M30431","v":0}]
[68,{"$f":"Import!M29632","v":"Select"},{"$f":"Import!M29732","v":"Select"},{"$f":"Import!M29832","v":"Select"},{"$f":"Import!M29932","v":"Select"},{"$f":"Import!M30032","v":0},{"$f":"Import!M30132","v":0},{"$f":"Import!M30232","v":0},{"$f":"Import!M30332","v":0},{"$f":"Import!M30432","v":0}]
[69,{"$f":"Import!M29633","v":"Select"},{"$f":"Import!M29733","v":"Select"},{"$f":"Import!M29833","v":"Select"},{"$f":"Import!M29933","v":"Select"},{"$f":"Import!M30033","v":0},{"$f":"Import!M30133","v":0},{"$f":"Import!M30233","v":0},{"$f":"Import!M30333","v":0},{"$f":"Import!M30433","v":0}]
[70,{"$f":"Import!M29634","v":"Select"},{"$f":"Import!M29734","v":"Select"},{"$f":"Import!M29834","v":"Select"},{"$f":"Import!M29934","v":"Select"},{"$f":"Import!M30034","v":0},{"$f":"Import!M30134","v":0},{"$f":"Import!M30234","v":0},{"$f":"Import!M30334","v":0},{"$f":"Import!M30434","v":0}]
[71,{"$f":"Import!M29635","v":"Select"},{"$f":"Import!M29735","v":"Select"},{"$f":"Import!M29835","v":"Select"},{"$f":"Import!M29935","v":"Select"},{"$f":"Import!M30035","v":0},{"$f":"Import!M30135","v":0},{"$f":"Import!M30235","v":0},{"$f":"Import!M30335","v":0},{"$f":"Import!M30435","v":0}]
[72,{"$f":"Import!M29636","v":"Select"},{"$f":"Import!M29736","v":"Select"},{"$f":"Import!M29836","v":"Select"},{"$f":"Import!M29936","v":"Select"},{"$f":"Import!M30036","v":0},{"$f":"Import!M30136","v":0},{"$f":"Import!M30236","v":0},{"$f":"Import!M30336","v":0},{"$f":"Import!M30436","v":0}]
[73,{"$f":"Import!M29637","v":"Select"},{"$f":"Import!M29737","v":"Select"},{"$f":"Import!M29837","v":"Select"},{"$f":"Import!M29937","v":"Select"},{"$f":"Import!M30037","v":0},{"$f":"Import!M30137","v":0},{"$f":"Import!M30237","v":0},{"$f":"Import!M30337","v":0},{"$f":"Import!M30437","v":0}]
[74,{"$f":"Import!M29638","v":"Select"},{"$f":"Import!M29738","v":"Select"},{"$f":"Import!M29838","v":"Select"},{"$f":"Import!M29938","v":"Select"},{"$f":"Import!M30038","v":0},{"$f":"Import!M30138","v":0},{"$f":"Import!M30238","v":0},{"$f":"Import!M30338","v":0},{"$f":"Import!M30438","v":0}]
[75,{"$f":"Import!M29639","v":"Select"},{"$f":"Import!M29739","v":"Select"},{"$f":"Import!M29839","v":"Select"},{"$f":"Import!M29939","v":"Select"},{"$f":"Import!M30039","v":0},{"$f":"Import!M30139","v":0},{"$f":"Import!M30239","v":0},{"$f":"Import!M30339","v":0},{"$f":"Import!M30439","v":0}]
[76,{"$f":"Import!M29640","v":"Select"},{"$f":"Import!M29740","v":"Select"},{"$f":"Import!M29840","v":"Select"},{"$f":"Import!M29940","v":"Select"},{"$f":"Import!M30040","v":0},{"$f":"Import!M30140","v":0},{"$f":"Import!M30240","v":0},{"$f":"Import!M30340","v":0},{"$f":"Import!M30440","v":0}]
[77,{"$f":"Import!M29641","v":"Select"},{"$f":"Import!M29741","v":"Select"},{"$f":"Import!M29841","v":"Select"},{"$f":"Import!M29941","v":"Select"},{"$f":"Import!M30041","v":0},{"$f":"Import!M30141","v":0},{"$f":"Import!M30241","v":0},{"$f":"Import!M30341","v":0},{"$f":"Import!M30441","v":0}]
[78,{"$f":"Import!M29642","v":"Select"},{"$f":"Import!M29742","v":"Select"},{"$f":"Import!M29842","v":"Select"},{"$f":"Import!M29942","v":"Select"},{"$f":"Import!M30042","v":0},{"$f":"Import!M30142","v":0},{"$f":"Import!M30242","v":0},{"$f":"Import!M30342","v":0},{"$f":"Import!M30442","v":0}]
[79,{"$f":"Import!M29643","v":"Select"},{"$f":"Import!M29743","v":"Select"},{"$f":"Import!M29843","v":"Select"},{"$f":"Import!M29943","v":"Select"},{"$f":"Import!M30043","v":0},{"$f":"Import!M30143","v":0},{"$f":"Import!M30243","v":0},{"$f":"Import!M30343","v":0},{"$f":"Import!M30443","v":0}]
[80,{"$f":"Import!M29644","v":"Select"},{"$f":"Import!M29744","v":"Select"},{"$f":"Import!M29844","v":"Select"},{"$f":"Import!M29944","v":"Select"},{"$f":"Import!M30044","v":0},{"$f":"Import!M30144","v":0},{"$f":"Import!M30244","v":0},{"$f":"Import!M30344","v":0},{"$f":"Import!M30444","v":0}]
[81,{"$f":"Import!M29645","v":"Select"},{"$f":"Import!M29745","v":"Select"},{"$f":"Import!M29845","v":"Select"},{"$f":"Import!M29945","v":"Select"},{"$f":"Import!M30045","v":0},{"$f":"Import!M30145","v":0},{"$f":"Import!M30245","v":0},{"$f":"Import!M30345","v":0},{"$f":"Import!M30445","v":0}]
[82,{"$f":"Import!M29646","v":"Select"},{"$f":"Import!M29746","v":"Select"},{"$f":"Import!M29846","v":"Select"},{"$f":"Import!M29946","v":"Select"},{"$f":"Import!M30046","v":0},{"$f":"Import!M30146","v":0},{"$f":"Import!M30246","v":0},{"$f":"Import!M30346","v":0},{"$f":"Import!M30446","v":0}]
[83,{"$f":"Import!M29647","v":"Select"},{"$f":"Import!M29747","v":"Select"},{"$f":"Import!M29847","v":"Select"},{"$f":"Import!M29947","v":"Select"},{"$f":"Import!M30047","v":0},{"$f":"Import!M30147","v":0},{"$f":"Import!M30247","v":0},{"$f":"Import!M30347","v":0},{"$f":"Import!M30447","v":0}]
[84,{"$f":"Import!M29648","v":"Select"},{"$f":"Import!M29748","v":"Select"},{"$f":"Import!M29848","v":"Select"},{"$f":"Import!M29948","v":"Select"},{"$f":"Import!M30048","v":0},{"$f":"Import!M30148","v":0},{"$f":"Import!M30248","v":0},{"$f":"Import!M30348","v":0},{"$f":"Import!M30448","v":0}]
[85,{"$f":"Import!M29649","v":"Select"},{"$f":"Import!M29749","v":"Select"},{"$f":"Import!M29849","v":"Select"},{"$f":"Import!M29949","v":"Select"},{"$f":"Import!M30049","v":0},{"$f":"Import!M30149","v":0},{"$f":"Import!M30249","v":0},{"$f":"Import!M30349","v":0},{"$f":"Import!M30449","v":0}]
[86,{"$f":"Import!M29650","v":"Select"},{"$f":"Import!M29750","v":"Select"},{"$f":"Import!M29850","v":"Select"},{"$f":"Import!M29950","v":"Select"},{"$f":"Import!M30050","v":0},{"$f":"Import!M30150","v":0},{"$f":"Import!M30250","v":0},{"$f":"Import!M30350","v":0},{"$f":"Import!M30450","v":0}]
[87,{"$f":"Import!M29651","v":"Select"},{"$f":"Import!M29751","v":"Select"},{"$f":"Import!M29851","v":"Select"},{"$f":"Import!M29951","v":"Select"},{"$f":"Import!M30051","v":0},{"$f":"Import!M30151","v":0},{"$f":"Import!M30251","v":0},{"$f":"Import!M30351","v":0},{"$f":"Import!M30451","v":0}]
[88,{"$f":"Import!M29652","v":"Select"},{"$f":"Import!M29752","v":"Select"},{"$f":"Import!M29852","v":"Select"},{"$f":"Import!M29952","v":"Select"},{"$f":"Import!M30052","v":0},{"$f":"Import!M30152","v":0},{"$f":"Import!M30252","v":0},{"$f":"Import!M30352","v":0},{"$f":"Import!M30452","v":0}]
[89,{"$f":"Import!M29653","v":"Select"},{"$f":"Import!M29753","v":"Select"},{"$f":"Import!M29853","v":"Select"},{"$f":"Import!M29953","v":"Select"},{"$f":"Import!M30053","v":0},{"$f":"Import!M30153","v":0},{"$f":"Import!M30253","v":0},{"$f":"Import!M30353","v":0},{"$f":"Import!M30453","v":0}]
[90,{"$f":"Import!M29654","v":"Select"},{"$f":"Import!M29754","v":"Select"},{"$f":"Import!M29854","v":"Select"},{"$f":"Import!M29954","v":"Select"},{"$f":"Import!M30054","v":0},{"$f":"Import!M30154","v":0},{"$f":"Import!M30254","v":0},{"$f":"Import!M30354","v":0},{"$f":"Import!M30454","v":0}]
[91,{"$f":"Import!M29655","v":"Select"},{"$f":"Import!M29755","v":"Select"},{"$f":"Import!M29855","v":"Select"},{"$f":"Import!M29955","v":"Select"},{"$f":"Import!M30055","v":0},{"$f":"Import!M30155","v":0},{"$f":"Import!M30255","v":0},{"$f":"Import!M30355","v":0},{"$f":"Import!M30455","v":0}]
[92,{"$f":"Import!M29656","v":"Select"},{"$f":"Import!M29756","v":"Select"},{"$f":"Import!M29856","v":"Select"},{"$f":"Import!M29956","v":"Select"},{"$f":"Import!M30056","v":0},{"$f":"Import!M30156","v":0},{"$f":"Import!M30256","v":0},{"$f":"Import!M30356","v":0},{"$f":"Import!M30456","v":0}]
[93,{"$f":"Import!M29657","v":"Select"},{"$f":"Import!M29757","v":"Select"},{"$f":"Import!M29857","v":"Select"},{"$f":"Import!M29957","v":"Select"},{"$f":"Import!M30057","v":0},{"$f":"Import!M30157","v":0},{"$f":"Import!M30257","v":0},{"$f":"Import!M30357","v":0},{"$f":"Import!M30457","v":0}]
[94,{"$f":"Import!M29658","v":"Select"},{"$f":"Import!M29758","v":"Select"},{"$f":"Import!M29858","v":"Select"},{"$f":"Import!M29958","v":"Select"},{"$f":"Import!M30058","v":0},{"$f":"Import!M30158","v":0},{"$f":"Import!M30258","v":0},{"$f":"Import!M30358","v":0},{"$f":"Import!M30458","v":0}]
[95,{"$f":"Import!M29659","v":"Select"},{"$f":"Import!M29759","v":"Select"},{"$f":"Import!M29859","v":"Select"},{"$f":"Import!M29959","v":"Select"},{"$f":"Import!M30059","v":0},{"$f":"Import!M30159","v":0},{"$f":"Import!M30259","v":0},{"$f":"Import!M30359","v":0},{"$f":"Import!M30459","v":0}]
[96,{"$f":"Import!M29660","v":"Select"},{"$f":"Import!M29760","v":"Select"},{"$f":"Import!M29860","v":"Select"},{"$f":"Import!M29960","v":"Select"},{"$f":"Import!M30060","v":0},{"$f":"Import!M30160","v":0},{"$f":"Import!M30260","v":0},{"$f":"Import!M30360","v":0},{"$f":"Import!M30460","v":0}]
[97,{"$f":"Import!M29661","v":"Select"},{"$f":"Import!M29761","v":"Select"},{"$f":"Import!M29861","v":"Select"},{"$f":"Import!M29961","v":"Select"},{"$f":"Import!M30061","v":0},{"$f":"Import!M30161","v":0},{"$f":"Import!M30261","v":0},{"$f":"Import!M30361","v":0},{"$f":"Import!M30461","v":0}]
[98,{"$f":"Import!M29662","v":"Select"},{"$f":"Import!M29762","v":"Select"},{"$f":"Import!M29862","v":"Select"},{"$f":"Import!M29962","v":"Select"},{"$f":"Import!M30062","v":0},{"$f":"Import!M30162","v":0},{"$f":"Import!M30262","v":0},{"$f":"Import!M30362","v":0},{"$f":"Import!M30462","v":0}]
[99,{"$f":"Import!M29663","v":"Select"},{"$f":"Import!M29763","v":"Select"},{"$f":"Import!M29863","v":"Select"},{"$f":"Import!M29963","v":"Select"},{"$f":"Import!M30063","v":0},{"$f":"Import!M30163","v":0},{"$f":"Import!M30263","v":0},{"$f":"Import!M30363","v":0},{"$f":"Import!M30463","v":0}]
[100,{"$f":"Import!M29664","v":"Select"},{"$f":"Import!M29764","v":"Select"},{"$f":"Import!M29864","v":"Select"},{"$f":"Import!M29964","v":"Select"},{"$f":"Import!M30064","v":0},{"$f":"Import!M30164","v":0},{"$f":"Import!M30264","v":0},{"$f":"Import!M30364","v":0},{"$f":"Import!M30464","v":0}]
[]
[null,"Total Other Alternative Investments",null,null,null,{"$f":"SUM(F1453:F1552)","v":0},{"$f":"SUM(G1453:G1552)","v":0},{"$f":"IFERROR(SUMPRODUCT(H1453:H1552,$G1453:$G1552)/SUM($G1453:$G1552),0)","v":0},{"$f":"IFERROR(SUMPRODUCT(I1453:I1552,$G1453:$G1552)/SUM($G1453:$G1552),0)","v":0}]
[]
[null,"(I) DERIVATIVES"]
[]
[null,null,"Enter # of Derivative Types",{"$f":"Import!M30465","v":0}]
[null,"Derivative Type","Underlying","Currency","Trading Category","Purpose","Position","Confirm line contains only derivatives with:",{"$f":"YEAR($C$3)&\" \nMarket Value\"","v":"2023 \nMarket Value"},"Gross Notional Value","Net Notional Value","Exposure (Dollar Delta, DV01, CS01","Comments"]
[1,{"$f":"Import!M30466","v":"Select"},{"$f":"Import!M30666","v":"Select"},{"$f":"Import!M30866","v":"Select"},{"$f":"Import!M31066","v":"Select"},{"$f":"Import!M31266","v":"Select"},{"$f":"Import!M31466","v":"Select"},{"$f":"Import!M31666","v":"Select"},{"$f":"Import!M31866","v":0},{"$f":"Import!M32066","v":0},{"$f":"Import!M32266","v":0},{"$f":"Import!M32466","v":0},{"$f":"Import!M32666","v":0}]
[{"$f":"A1560+1","v":2},{"$f":"Import!M30467","v":"Select"},{"$f":"Import!M30667","v":"Select"},{"$f":"Import!M30867","v":"Select"},{"$f":"Import!M31067","v":"Select"},{"$f":"Import!M31267","v":"Select"},{"$f":"Import!M31467","v":"Select"},{"$f":"Import!M31667","v":"Select"},{"$f":"Import!M31867","v":0},{"$f":"Import!M32067","v":0},{"$f":"Import!M32267","v":0},{"$f":"Import!M32467","v":0},{"$f":"Import!M32667","v":0}]
[{"$f":"A1561+1","v":3},{"$f":"Import!M30468","v":"Select"},{"$f":"Import!M30668","v":"Select"},{"$f":"Import!M30868","v":"Select"},{"$f":"Import!M31068","v":"Select"},{"$f":"Import!M31268","v":"Select"},{"$f":"Import!M31468","v":"Select"},{"$f":"Import!M31668","v":"Select"},{"$f":"Import!M31868","v":0},{"$f":"Import!M32068","v":0},{"$f":"Import!M32268","v":0},{"$f":"Import!M32468","v":0},{"$f":"Import!M32668","v":0}]
[4,{"$f":"Import!M30469","v":"Select"},{"$f":"Import!M30669","v":"Select"},{"$f":"Import!M30869","v":"Select"},{"$f":"Import!M31069","v":"Select"},{"$f":"Import!M31269","v":"Select"},{"$f":"Import!M31469","v":"Select"},{"$f":"Import!M31669","v":"Select"},{"$f":"Import!M31869","v":0},{"$f":"Import!M32069","v":0},{"$f":"Import!M32269","v":0},{"$f":"Import!M32469","v":0},{"$f":"Import!M32669","v":0}]
[5,{"$f":"Import!M30470","v":"Select"},{"$f":"Import!M30670","v":"Select"},{"$f":"Import!M30870","v":"Select"},{"$f":"Import!M31070","v":"Select"},{"$f":"Import!M31270","v":"Select"},{"$f":"Import!M31470","v":"Select"},{"$f":"Import!M31670","v":"Select"},{"$f":"Import!M31870","v":0},{"$f":"Import!M32070","v":0},{"$f":"Import!M32270","v":0},{"$f":"Import!M32470","v":0},{"$f":"Import!M32670","v":0}]
[6,{"$f":"Import!M30471","v":"Select"},{"$f":"Import!M30671","v":"Select"},{"$f":"Import!M30871","v":"Select"},{"$f":"Import!M31071","v":"Select"},{"$f":"Import!M31271","v":"Select"},{"$f":"Import!M31471","v":"Select"},{"$f":"Import!M31671","v":"Select"},{"$f":"Import!M31871","v":0},{"$f":"Import!M32071","v":0},{"$f":"Import!M32271","v":0},{"$f":"Import!M32471","v":0},{"$f":"Import!M32671","v":0}]
[7,{"$f":"Import!M30472","v":"Select"},{"$f":"Import!M30672","v":"Select"},{"$f":"Import!M30872","v":"Select"},{"$f":"Import!M31072","v":"Select"},{"$f":"Import!M31272","v":"Select"},{"$f":"Import!M31472","v":"Select"},{"$f":"Import!M31672","v":"Select"},{"$f":"Import!M31872","v":0},{"$f":"Import!M32072","v":0},{"$f":"Import!M32272","v":0},{"$f":"Import!M32472","v":0},{"$f":"Import!M32672","v":0}]
[8,{"$f":"Import!M30473","v":"Select"},{"$f":"Import!M30673","v":"Select"},{"$f":"Import!M30873","v":"Select"},{"$f":"Import!M31073","v":"Select"},{"$f":"Import!M31273","v":"Select"},{"$f":"Import!M31473","v":"Select"},{"$f":"Import!M31673","v":"Select"},{"$f":"Import!M31873","v":0},{"$f":"Import!M32073","v":0},{"$f":"Import!M32273","v":0},{"$f":"Import!M32473","v":0},{"$f":"Import!M32673","v":0}]
[9,{"$f":"Import!M30474","v":"Select"},{"$f":"Import!M30674","v":"Select"},{"$f":"Import!M30874","v":"Select"},{"$f":"Import!M31074","v":"Select"},{"$f":"Import!M31274","v":"Select"},{"$f":"Import!M31474","v":"Select"},{"$f":"Import!M31674","v":"Select"},{"$f":"Import!M31874","v":0},{"$f":"Import!M32074","v":0},{"$f":"Import!M32274","v":0},{"$f":"Import!M32474","v":0},{"$f":"Import!M32674","v":0}]
[10,{"$f":"Import!M30475","v":"Select"},{"$f":"Import!M30675","v":"Select"},{"$f":"Import!M30875","v":"Select"},{"$f":"Import!M31075","v":"Select"},{"$f":"Import!M31275","v":"Select"},{"$f":"Import!M31475","v":"Select"},{"$f":"Import!M31675","v":"Select"},{"$f":"Import!M31875","v":0},{"$f":"Import!M32075","v":0},{"$f":"Import!M32275","v":0},{"$f":"Import!M32475","v":0},{"$f":"Import!M32675","v":0}]
[11,{"$f":"Import!M30476","v":"Select"},{"$f":"Import!M30676","v":"Select"},{"$f":"Import!M30876","v":"Select"},{"$f":"Import!M31076","v":"Select"},{"$f":"Import!M31276","v":"Select"},{"$f":"Import!M31476","v":"Select"},{"$f":"Import!M31676","v":"Select"},{"$f":"Import!M31876","v":0},{"$f":"Import!M32076","v":0},{"$f":"Import!M32276","v":0},{"$f":"Import!M32476","v":0},{"$f":"Import!M32676","v":0}]
[12,{"$f":"Import!M30477","v":"Select"},{"$f":"Import!M30677","v":"Select"},{"$f":"Import!M30877","v":"Select"},{"$f":"Import!M31077","v":"Select"},{"$f":"Import!M31277","v":"Select"},{"$f":"Import!M31477","v":"Select"},{"$f":"Import!M31677","v":"Select"},{"$f":"Import!M31877","v":0},{"$f":"Import!M32077","v":0},{"$f":"Import!M32277","v":0},{"$f":"Import!M32477","v":0},{"$f":"Import!M32677","v":0}]
[13,{"$f":"Import!M30478","v":"Select"},{"$f":"Import!M30678","v":"Select"},{"$f":"Import!M30878","v":"Select"},{"$f":"Import!M31078","v":"Select"},{"$f":"Import!M31278","v":"Select"},{"$f":"Import!M31478","v":"Select"},{"$f":"Import!M31678","v":"Select"},{"$f":"Import!M31878","v":0},{"$f":"Import!M32078","v":0},{"$f":"Import!M32278","v":0},{"$f":"Import!M32478","v":0},{"$f":"Import!M32678","v":0}]
[14,{"$f":"Import!M30479","v":"Select"},{"$f":"Import!M30679","v":"Select"},{"$f":"Import!M30879","v":"Select"},{"$f":"Import!M31079","v":"Select"},{"$f":"Import!M31279","v":"Select"},{"$f":"Import!M31479","v":"Select"},{"$f":"Import!M31679","v":"Select"},{"$f":"Import!M31879","v":0},{"$f":"Import!M32079","v":0},{"$f":"Import!M32279","v":0},{"$f":"Import!M32479","v":0},{"$f":"Import!M32679","v":0}]
[15,{"$f":"Import!M30480","v":"Select"},{"$f":"Import!M30680","v":"Select"},{"$f":"Import!M30880","v":"Select"},{"$f":"Import!M31080","v":"Select"},{"$f":"Import!M31280","v":"Select"},{"$f":"Import!M31480","v":"Select"},{"$f":"Import!M31680","v":"Select"},{"$f":"Import!M31880","v":0},{"$f":"Import!M32080","v":0},{"$f":"Import!M32280","v":0},{"$f":"Import!M32480","v":0},{"$f":"Import!M32680","v":0}]
[16,{"$f":"Import!M30481","v":"Select"},{"$f":"Import!M30681","v":"Select"},{"$f":"Import!M30881","v":"Select"},{"$f":"Import!M31081","v":"Select"},{"$f":"Import!M31281","v":"Select"},{"$f":"Import!M31481","v":"Select"},{"$f":"Import!M31681","v":"Select"},{"$f":"Import!M31881","v":0},{"$f":"Import!M32081","v":0},{"$f":"Import!M32281","v":0},{"$f":"Import!M32481","v":0},{"$f":"Import!M32681","v":0}]
[17,{"$f":"Import!M30482","v":"Select"},{"$f":"Import!M30682","v":"Select"},{"$f":"Import!M30882","v":"Select"},{"$f":"Import!M31082","v":"Select"},{"$f":"Import!M31282","v":"Select"},{"$f":"Import!M31482","v":"Select"},{"$f":"Import!M31682","v":"Select"},{"$f":"Import!M31882","v":0},{"$f":"Import!M32082","v":0},{"$f":"Import!M32282","v":0},{"$f":"Import!M32482","v":0},{"$f":"Import!M32682","v":0}]
[18,{"$f":"Import!M30483","v":"Select"},{"$f":"Import!M30683","v":"Select"},{"$f":"Import!M30883","v":"Select"},{"$f":"Import!M31083","v":"Select"},{"$f":"Import!M31283","v":"Select"},{"$f":"Import!M31483","v":"Select"},{"$f":"Import!M31683","v":"Select"},{"$f":"Import!M31883","v":0},{"$f":"Import!M32083","v":0},{"$f":"Import!M32283","v":0},{"$f":"Import!M32483","v":0},{"$f":"Import!M32683","v":0}]
[19,{"$f":"Import!M30484","v":"Select"},{"$f":"Import!M30684","v":"Select"},{"$f":"Import!M30884","v":"Select"},{"$f":"Import!M31084","v":"Select"},{"$f":"Import!M31284","v":"Select"},{"$f":"Import!M31484","v":"Select"},{"$f":"Import!M31684","v":"Select"},{"$f":"Import!M31884","v":0},{"$f":"Import!M32084","v":0},{"$f":"Import!M32284","v":0},{"$f":"Import!M32484","v":0},{"$f":"Import!M32684","v":0}]
[20,{"$f":"Import!M30485","v":"Select"},{"$f":"Import!M30685","v":"Select"},{"$f":"Import!M30885","v":"Select"},{"$f":"Import!M31085","v":"Select"},{"$f":"Import!M31285","v":"Select"},{"$f":"Import!M31485","v":"Select"},{"$f":"Import!M31685","v":"Select"},{"$f":"Import!M31885","v":0},{"$f":"Import!M32085","v":0},{"$f":"Import!M32285","v":0},{"$f":"Import!M32485","v":0},{"$f":"Import!M32685","v":0}]
[21,{"$f":"Import!M30486","v":"Select"},{"$f":"Import!M30686","v":"Select"},{"$f":"Import!M30886","v":"Select"},{"$f":"Import!M31086","v":"Select"},{"$f":"Import!M31286","v":"Select"},{"$f":"Import!M31486","v":"Select"},{"$f":"Import!M31686","v":"Select"},{"$f":"Import!M31886","v":0},{"$f":"Import!M32086","v":0},{"$f":"Import!M32286","v":0},{"$f":"Import!M32486","v":0},{"$f":"Import!M32686","v":0}]
[22,{"$f":"Import!M30487","v":"Select"},{"$f":"Import!M30687","v":"Select"},{"$f":"Import!M30887","v":"Select"},{"$f":"Import!M31087","v":"Select"},{"$f":"Import!M31287","v":"Select"},{"$f":"Import!M31487","v":"Select"},{"$f":"Import!M31687","v":"Select"},{"$f":"Import!M31887","v":0},{"$f":"Import!M32087","v":0},{"$f":"Import!M32287","v":0},{"$f":"Import!M32487","v":0},{"$f":"Import!M32687","v":0}]
[23,{"$f":"Import!M30488","v":"Select"},{"$f":"Import!M30688","v":"Select"},{"$f":"Import!M30888","v":"Select"},{"$f":"Import!M31088","v":"Select"},{"$f":"Import!M31288","v":"Select"},{"$f":"Import!M31488","v":"Select"},{"$f":"Import!M31688","v":"Select"},{"$f":"Import!M31888","v":0},{"$f":"Import!M32088","v":0},{"$f":"Import!M32288","v":0},{"$f":"Import!M32488","v":0},{"$f":"Import!M32688","v":0}]
[24,{"$f":"Import!M30489","v":"Select"},{"$f":"Import!M30689","v":"Select"},{"$f":"Import!M30889","v":"Select"},{"$f":"Import!M31089","v":"Select"},{"$f":"Import!M31289","v":"Select"},{"$f":"Import!M31489","v":"Select"},{"$f":"Import!M31689","v":"Select"},{"$f":"Import!M31889","v":0},{"$f":"Import!M32089","v":0},{"$f":"Import!M32289","v":0},{"$f":"Import!M32489","v":0},{"$f":"Import!M32689","v":0}]
[25,{"$f":"Import!M30490","v":"Select"},{"$f":"Import!M30690","v":"Select"},{"$f":"Import!M30890","v":"Select"},{"$f":"Import!M31090","v":"Select"},{"$f":"Import!M31290","v":"Select"},{"$f":"Import!M31490","v":"Select"},{"$f":"Import!M31690","v":"Select"},{"$f":"Import!M31890","v":0},{"$f":"Import!M32090","v":0},{"$f":"Import!M32290","v":0},{"$f":"Import!M32490","v":0},{"$f":"Import!M32690","v":0}]
[26,{"$f":"Import!M30491","v":"Select"},{"$f":"Import!M30691","v":"Select"},{"$f":"Import!M30891","v":"Select"},{"$f":"Import!M31091","v":"Select"},{"$f":"Import!M31291","v":"Select"},{"$f":"Import!M31491","v":"Select"},{"$f":"Import!M31691","v":"Select"},{"$f":"Import!M31891","v":0},{"$f":"Import!M32091","v":0},{"$f":"Import!M32291","v":0},{"$f":"Import!M32491","v":0},{"$f":"Import!M32691","v":0}]
[27,{"$f":"Import!M30492","v":"Select"},{"$f":"Import!M30692","v":"Select"},{"$f":"Import!M30892","v":"Select"},{"$f":"Import!M31092","v":"Select"},{"$f":"Import!M31292","v":"Select"},{"$f":"Import!M31492","v":"Select"},{"$f":"Import!M31692","v":"Select"},{"$f":"Import!M31892","v":0},{"$f":"Import!M32092","v":0},{"$f":"Import!M32292","v":0},{"$f":"Import!M32492","v":0},{"$f":"Import!M32692","v":0}]
[28,{"$f":"Import!M30493","v":"Select"},{"$f":"Import!M30693","v":"Select"},{"$f":"Import!M30893","v":"Select"},{"$f":"Import!M31093","v":"Select"},{"$f":"Import!M31293","v":"Select"},{"$f":"Import!M31493","v":"Select"},{"$f":"Import!M31693","v":"Select"},{"$f":"Import!M31893","v":0},{"$f":"Import!M32093","v":0},{"$f":"Import!M32293","v":0},{"$f":"Import!M32493","v":0},{"$f":"Import!M32693","v":0}]
[29,{"$f":"Import!M30494","v":"Select"},{"$f":"Import!M30694","v":"Select"},{"$f":"Import!M30894","v":"Select"},{"$f":"Import!M31094","v":"Select"},{"$f":"Import!M31294","v":"Select"},{"$f":"Import!M31494","v":"Select"},{"$f":"Import!M31694","v":"Select"},{"$f":"Import!M31894","v":0},{"$f":"Import!M32094","v":0},{"$f":"Import!M32294","v":0},{"$f":"Import!M32494","v":0},{"$f":"Import!M32694","v":0}]
[30,{"$f":"Import!M30495","v":"Select"},{"$f":"Import!M30695","v":"Select"},{"$f":"Import!M30895","v":"Select"},{"$f":"Import!M31095","v":"Select"},{"$f":"Import!M31295","v":"Select"},{"$f":"Import!M31495","v":"Select"},{"$f":"Import!M31695","v":"Select"},{"$f":"Import!M31895","v":0},{"$f":"Import!M32095","v":0},{"$f":"Import!M32295","v":0},{"$f":"Import!M32495","v":0},{"$f":"Import!M32695","v":0}]
[31,{"$f":"Import!M30496","v":"Select"},{"$f":"Import!M30696","v":"Select"},{"$f":"Import!M30896","v":"Select"},{"$f":"Import!M31096","v":"Select"},{"$f":"Import!M31296","v":"Select"},{"$f":"Import!M31496","v":"Select"},{"$f":"Import!M31696","v":"Select"},{"$f":"Import!M31896","v":0},{"$f":"Import!M32096","v":0},{"$f":"Import!M32296","v":0},{"$f":"Import!M32496","v":0},{"$f":"Import!M32696","v":0}]
[32,{"$f":"Import!M30497","v":"Select"},{"$f":"Import!M30697","v":"Select"},{"$f":"Import!M30897","v":"Select"},{"$f":"Import!M31097","v":"Select"},{"$f":"Import!M31297","v":"Select"},{"$f":"Import!M31497","v":"Select"},{"$f":"Import!M31697","v":"Select"},{"$f":"Import!M31897","v":0},{"$f":"Import!M32097","v":0},{"$f":"Import!M32297","v":0},{"$f":"Import!M32497","v":0},{"$f":"Import!M32697","v":0}]
[33,{"$f":"Import!M30498","v":"Select"},{"$f":"Import!M30698","v":"Select"},{"$f":"Import!M30898","v":"Select"},{"$f":"Import!M31098","v":"Select"},{"$f":"Import!M31298","v":"Select"},{"$f":"Import!M31498","v":"Select"},{"$f":"Import!M31698","v":"Select"},{"$f":"Import!M31898","v":0},{"$f":"Import!M32098","v":0},{"$f":"Import!M32298","v":0},{"$f":"Import!M32498","v":0},{"$f":"Import!M32698","v":0}]
[34,{"$f":"Import!M30499","v":"Select"},{"$f":"Import!M30699","v":"Select"},{"$f":"Import!M30899","v":"Select"},{"$f":"Import!M31099","v":"Select"},{"$f":"Import!M31299","v":"Select"},{"$f":"Import!M31499","v":"Select"},{"$f":"Import!M31699","v":"Select"},{"$f":"Import!M31899","v":0},{"$f":"Import!M32099","v":0},{"$f":"Import!M32299","v":0},{"$f":"Import!M32499","v":0},{"$f":"Import!M32699","v":0}]
[35,{"$f":"Import!M30500","v":"Select"},{"$f":"Import!M30700","v":"Select"},{"$f":"Import!M30900","v":"Select"},{"$f":"Import!M31100","v":"Select"},{"$f":"Import!M31300","v":"Select"},{"$f":"Import!M31500","v":"Select"},{"$f":"Import!M31700","v":"Select"},{"$f":"Import!M31900","v":0},{"$f":"Import!M32100","v":0},{"$f":"Import!M32300","v":0},{"$f":"Import!M32500","v":0},{"$f":"Import!M32700","v":0}]
[36,{"$f":"Import!M30501","v":"Select"},{"$f":"Import!M30701","v":"Select"},{"$f":"Import!M30901","v":"Select"},{"$f":"Import!M31101","v":"Select"},{"$f":"Import!M31301","v":"Select"},{"$f":"Import!M31501","v":"Select"},{"$f":"Import!M31701","v":"Select"},{"$f":"Import!M31901","v":0},{"$f":"Import!M32101","v":0},{"$f":"Import!M32301","v":0},{"$f":"Import!M32501","v":0},{"$f":"Import!M32701","v":0}]
[37,{"$f":"Import!M30502","v":"Select"},{"$f":"Import!M30702","v":"Select"},{"$f":"Import!M30902","v":"Select"},{"$f":"Import!M31102","v":"Select"},{"$f":"Import!M31302","v":"Select"},{"$f":"Import!M31502","v":"Select"},{"$f":"Import!M31702","v":"Select"},{"$f":"Import!M31902","v":0},{"$f":"Import!M32102","v":0},{"$f":"Import!M32302","v":0},{"$f":"Import!M32502","v":0},{"$f":"Import!M32702","v":0}]
[38,{"$f":"Import!M30503","v":"Select"},{"$f":"Import!M30703","v":"Select"},{"$f":"Import!M30903","v":"Select"},{"$f":"Import!M31103","v":"Select"},{"$f":"Import!M31303","v":"Select"},{"$f":"Import!M31503","v":"Select"},{"$f":"Import!M31703","v":"Select"},{"$f":"Import!M31903","v":0},{"$f":"Import!M32103","v":0},{"$f":"Import!M32303","v":0},{"$f":"Import!M32503","v":0},{"$f":"Import!M32703","v":0}]
[39,{"$f":"Import!M30504","v":"Select"},{"$f":"Import!M30704","v":"Select"},{"$f":"Import!M30904","v":"Select"},{"$f":"Import!M31104","v":"Select"},{"$f":"Import!M31304","v":"Select"},{"$f":"Import!M31504","v":"Select"},{"$f":"Import!M31704","v":"Select"},{"$f":"Import!M31904","v":0},{"$f":"Import!M32104","v":0},{"$f":"Import!M32304","v":0},{"$f":"Import!M32504","v":0},{"$f":"Import!M32704","v":0}]
[40,{"$f":"Import!M30505","v":"Select"},{"$f":"Import!M30705","v":"Select"},{"$f":"Import!M30905","v":"Select"},{"$f":"Import!M31105","v":"Select"},{"$f":"Import!M31305","v":"Select"},{"$f":"Import!M31505","v":"Select"},{"$f":"Import!M31705","v":"Select"},{"$f":"Import!M31905","v":0},{"$f":"Import!M32105","v":0},{"$f":"Import!M32305","v":0},{"$f":"Import!M32505","v":0},{"$f":"Import!M32705","v":0}]
[41,{"$f":"Import!M30506","v":"Select"},{"$f":"Import!M30706","v":"Select"},{"$f":"Import!M30906","v":"Select"},{"$f":"Import!M31106","v":"Select"},{"$f":"Import!M31306","v":"Select"},{"$f":"Import!M31506","v":"Select"},{"$f":"Import!M31706","v":"Select"},{"$f":"Import!M31906","v":0},{"$f":"Import!M32106","v":0},{"$f":"Import!M32306","v":0},{"$f":"Import!M32506","v":0},{"$f":"Import!M32706","v":0}]
[42,{"$f":"Import!M30507","v":"Select"},{"$f":"Import!M30707","v":"Select"},{"$f":"Import!M30907","v":"Select"},{"$f":"Import!M31107","v":"Select"},{"$f":"Import!M31307","v":"Select"},{"$f":"Import!M31507","v":"Select"},{"$f":"Import!M31707","v":"Select"},{"$f":"Import!M31907","v":0},{"$f":"Import!M32107","v":0},{"$f":"Import!M32307","v":0},{"$f":"Import!M32507","v":0},{"$f":"Import!M32707","v":0}]
[43,{"$f":"Import!M30508","v":"Select"},{"$f":"Import!M30708","v":"Select"},{"$f":"Import!M30908","v":"Select"},{"$f":"Import!M31108","v":"Select"},{"$f":"Import!M31308","v":"Select"},{"$f":"Import!M31508","v":"Select"},{"$f":"Import!M31708","v":"Select"},{"$f":"Import!M31908","v":0},{"$f":"Import!M32108","v":0},{"$f":"Import!M32308","v":0},{"$f":"Import!M32508","v":0},{"$f":"Import!M32708","v":0}]
[44,{"$f":"Import!M30509","v":"Select"},{"$f":"Import!M30709","v":"Select"},{"$f":"Import!M30909","v":"Select"},{"$f":"Import!M31109","v":"Select"},{"$f":"Import!M31309","v":"Select"},{"$f":"Import!M31509","v":"Select"},{"$f":"Import!M31709","v":"Select"},{"$f":"Import!M31909","v":0},{"$f":"Import!M32109","v":0},{"$f":"Import!M32309","v":0},{"$f":"Import!M32509","v":0},{"$f":"Import!M32709","v":0}]
[45,{"$f":"Import!M30510","v":"Select"},{"$f":"Import!M30710","v":"Select"},{"$f":"Import!M30910","v":"Select"},{"$f":"Import!M31110","v":"Select"},{"$f":"Import!M31310","v":"Select"},{"$f":"Import!M31510","v":"Select"},{"$f":"Import!M31710","v":"Select"},{"$f":"Import!M31910","v":0},{"$f":"Import!M32110","v":0},{"$f":"Import!M32310","v":0},{"$f":"Import!M32510","v":0},{"$f":"Import!M32710","v":0}]
[46,{"$f":"Import!M30511","v":"Select"},{"$f":"Import!M30711","v":"Select"},{"$f":"Import!M30911","v":"Select"},{"$f":"Import!M31111","v":"Select"},{"$f":"Import!M31311","v":"Select"},{"$f":"Import!M31511","v":"Select"},{"$f":"Import!M31711","v":"Select"},{"$f":"Import!M31911","v":0},{"$f":"Import!M32111","v":0},{"$f":"Import!M32311","v":0},{"$f":"Import!M32511","v":0},{"$f":"Import!M32711","v":0}]
[47,{"$f":"Import!M30512","v":"Select"},{"$f":"Import!M30712","v":"Select"},{"$f":"Import!M30912","v":"Select"},{"$f":"Import!M31112","v":"Select"},{"$f":"Import!M31312","v":"Select"},{"$f":"Import!M31512","v":"Select"},{"$f":"Import!M31712","v":"Select"},{"$f":"Import!M31912","v":0},{"$f":"Import!M32112","v":0},{"$f":"Import!M32312","v":0},{"$f":"Import!M32512","v":0},{"$f":"Import!M32712","v":0}]
[48,{"$f":"Import!M30513","v":"Select"},{"$f":"Import!M30713","v":"Select"},{"$f":"Import!M30913","v":"Select"},{"$f":"Import!M31113","v":"Select"},{"$f":"Import!M31313","v":"Select"},{"$f":"Import!M31513","v":"Select"},{"$f":"Import!M31713","v":"Select"},{"$f":"Import!M31913","v":0},{"$f":"Import!M32113","v":0},{"$f":"Import!M32313","v":0},{"$f":"Import!M32513","v":0},{"$f":"Import!M32713","v":0}]
[49,{"$f":"Import!M30514","v":"Select"},{"$f":"Import!M30714","v":"Select"},{"$f":"Import!M30914","v":"Select"},{"$f":"Import!M31114","v":"Select"},{"$f":"Import!M31314","v":"Select"},{"$f":"Import!M31514","v":"Select"},{"$f":"Import!M31714","v":"Select"},{"$f":"Import!M31914","v":0},{"$f":"Import!M32114","v":0},{"$f":"Import!M32314","v":0},{"$f":"Import!M32514","v":0},{"$f":"Import!M32714","v":0}]
[50,{"$f":"Import!M30515","v":"Select"},{"$f":"Import!M30715","v":"Select"},{"$f":"Import!M30915","v":"Select"},{"$f":"Import!M31115","v":"Select"},{"$f":"Import!M31315","v":"Select"},{"$f":"Import!M31515","v":"Select"},{"$f":"Import!M31715","v":"Select"},{"$f":"Import!M31915","v":0},{"$f":"Import!M32115","v":0},{"$f":"Import!M32315","v":0},{"$f":"Import!M32515","v":0},{"$f":"Import!M32715","v":0}]
[51,{"$f":"Import!M30516","v":"Select"},{"$f":"Import!M30716","v":"Select"},{"$f":"Import!M30916","v":"Select"},{"$f":"Import!M31116","v":"Select"},{"$f":"Import!M31316","v":"Select"},{"$f":"Import!M31516","v":"Select"},{"$f":"Import!M31716","v":"Select"},{"$f":"Import!M31916","v":0},{"$f":"Import!M32116","v":0},{"$f":"Import!M32316","v":0},{"$f":"Import!M32516","v":0},{"$f":"Import!M32716","v":0}]
[52,{"$f":"Import!M30517","v":"Select"},{"$f":"Import!M30717","v":"Select"},{"$f":"Import!M30917","v":"Select"},{"$f":"Import!M31117","v":"Select"},{"$f":"Import!M31317","v":"Select"},{"$f":"Import!M31517","v":"Select"},{"$f":"Import!M31717","v":"Select"},{"$f":"Import!M31917","v":0},{"$f":"Import!M32117","v":0},{"$f":"Import!M32317","v":0},{"$f":"Import!M32517","v":0},{"$f":"Import!M32717","v":0}]
[53,{"$f":"Import!M30518","v":"Select"},{"$f":"Import!M30718","v":"Select"},{"$f":"Import!M30918","v":"Select"},{"$f":"Import!M31118","v":"Select"},{"$f":"Import!M31318","v":"Select"},{"$f":"Import!M31518","v":"Select"},{"$f":"Import!M31718","v":"Select"},{"$f":"Import!M31918","v":0},{"$f":"Import!M32118","v":0},{"$f":"Import!M32318","v":0},{"$f":"Import!M32518","v":0},{"$f":"Import!M32718","v":0}]
[54,{"$f":"Import!M30519","v":"Select"},{"$f":"Import!M30719","v":"Select"},{"$f":"Import!M30919","v":"Select"},{"$f":"Import!M31119","v":"Select"},{"$f":"Import!M31319","v":"Select"},{"$f":"Import!M31519","v":"Select"},{"$f":"Import!M31719","v":"Select"},{"$f":"Import!M31919","v":0},{"$f":"Import!M32119","v":0},{"$f":"Import!M32319","v":0},{"$f":"Import!M32519","v":0},{"$f":"Import!M32719","v":0}]
[55,{"$f":"Import!M30520","v":"Select"},{"$f":"Import!M30720","v":"Select"},{"$f":"Import!M30920","v":"Select"},{"$f":"Import!M31120","v":"Select"},{"$f":"Import!M31320","v":"Select"},{"$f":"Import!M31520","v":"Select"},{"$f":"Import!M31720","v":"Select"},{"$f":"Import!M31920","v":0},{"$f":"Import!M32120","v":0},{"$f":"Import!M32320","v":0},{"$f":"Import!M32520","v":0},{"$f":"Import!M32720","v":0}]
[56,{"$f":"Import!M30521","v":"Select"},{"$f":"Import!M30721","v":"Select"},{"$f":"Import!M30921","v":"Select"},{"$f":"Import!M31121","v":"Select"},{"$f":"Import!M31321","v":"Select"},{"$f":"Import!M31521","v":"Select"},{"$f":"Import!M31721","v":"Select"},{"$f":"Import!M31921","v":0},{"$f":"Import!M32121","v":0},{"$f":"Import!M32321","v":0},{"$f":"Import!M32521","v":0},{"$f":"Import!M32721","v":0}]
[57,{"$f":"Import!M30522","v":"Select"},{"$f":"Import!M30722","v":"Select"},{"$f":"Import!M30922","v":"Select"},{"$f":"Import!M31122","v":"Select"},{"$f":"Import!M31322","v":"Select"},{"$f":"Import!M31522","v":"Select"},{"$f":"Import!M31722","v":"Select"},{"$f":"Import!M31922","v":0},{"$f":"Import!M32122","v":0},{"$f":"Import!M32322","v":0},{"$f":"Import!M32522","v":0},{"$f":"Import!M32722","v":0}]
[58,{"$f":"Import!M30523","v":"Select"},{"$f":"Import!M30723","v":"Select"},{"$f":"Import!M30923","v":"Select"},{"$f":"Import!M31123","v":"Select"},{"$f":"Import!M31323","v":"Select"},{"$f":"Import!M31523","v":"Select"},{"$f":"Import!M31723","v":"Select"},{"$f":"Import!M31923","v":0},{"$f":"Import!M32123","v":0},{"$f":"Import!M32323","v":0},{"$f":"Import!M32523","v":0},{"$f":"Import!M32723","v":0}]
[59,{"$f":"Import!M30524","v":"Select"},{"$f":"Import!M30724","v":"Select"},{"$f":"Import!M30924","v":"Select"},{"$f":"Import!M31124","v":"Select"},{"$f":"Import!M31324","v":"Select"},{"$f":"Import!M31524","v":"Select"},{"$f":"Import!M31724","v":"Select"},{"$f":"Import!M31924","v":0},{"$f":"Import!M32124","v":0},{"$f":"Import!M32324","v":0},{"$f":"Import!M32524","v":0},{"$f":"Import!M32724","v":0}]
[60,{"$f":"Import!M30525","v":"Select"},{"$f":"Import!M30725","v":"Select"},{"$f":"Import!M30925","v":"Select"},{"$f":"Import!M31125","v":"Select"},{"$f":"Import!M31325","v":"Select"},{"$f":"Import!M31525","v":"Select"},{"$f":"Import!M31725","v":"Select"},{"$f":"Import!M31925","v":0},{"$f":"Import!M32125","v":0},{"$f":"Import!M32325","v":0},{"$f":"Import!M32525","v":0},{"$f":"Import!M32725","v":0}]
[61,{"$f":"Import!M30526","v":"Select"},{"$f":"Import!M30726","v":"Select"},{"$f":"Import!M30926","v":"Select"},{"$f":"Import!M31126","v":"Select"},{"$f":"Import!M31326","v":"Select"},{"$f":"Import!M31526","v":"Select"},{"$f":"Import!M31726","v":"Select"},{"$f":"Import!M31926","v":0},{"$f":"Import!M32126","v":0},{"$f":"Import!M32326","v":0},{"$f":"Import!M32526","v":0},{"$f":"Import!M32726","v":0}]
[62,{"$f":"Import!M30527","v":"Select"},{"$f":"Import!M30727","v":"Select"},{"$f":"Import!M30927","v":"Select"},{"$f":"Import!M31127","v":"Select"},{"$f":"Import!M31327","v":"Select"},{"$f":"Import!M31527","v":"Select"},{"$f":"Import!M31727","v":"Select"},{"$f":"Import!M31927","v":0},{"$f":"Import!M32127","v":0},{"$f":"Import!M32327","v":0},{"$f":"Import!M32527","v":0},{"$f":"Import!M32727","v":0}]
[63,{"$f":"Import!M30528","v":"Select"},{"$f":"Import!M30728","v":"Select"},{"$f":"Import!M30928","v":"Select"},{"$f":"Import!M31128","v":"Select"},{"$f":"Import!M31328","v":"Select"},{"$f":"Import!M31528","v":"Select"},{"$f":"Import!M31728","v":"Select"},{"$f":"Import!M31928","v":0},{"$f":"Import!M32128","v":0},{"$f":"Import!M32328","v":0},{"$f":"Import!M32528","v":0},{"$f":"Import!M32728","v":0}]
[64,{"$f":"Import!M30529","v":"Select"},{"$f":"Import!M30729","v":"Select"},{"$f":"Import!M30929","v":"Select"},{"$f":"Import!M31129","v":"Select"},{"$f":"Import!M31329","v":"Select"},{"$f":"Import!M31529","v":"Select"},{"$f":"Import!M31729","v":"Select"},{"$f":"Import!M31929","v":0},{"$f":"Import!M32129","v":0},{"$f":"Import!M32329","v":0},{"$f":"Import!M32529","v":0},{"$f":"Import!M32729","v":0}]
[65,{"$f":"Import!M30530","v":"Select"},{"$f":"Import!M30730","v":"Select"},{"$f":"Import!M30930","v":"Select"},{"$f":"Import!M31130","v":"Select"},{"$f":"Import!M31330","v":"Select"},{"$f":"Import!M31530","v":"Select"},{"$f":"Import!M31730","v":"Select"},{"$f":"Import!M31930","v":0},{"$f":"Import!M32130","v":0},{"$f":"Import!M32330","v":0},{"$f":"Import!M32530","v":0},{"$f":"Import!M32730","v":0}]
[66,{"$f":"Import!M30531","v":"Select"},{"$f":"Import!M30731","v":"Select"},{"$f":"Import!M30931","v":"Select"},{"$f":"Import!M31131","v":"Select"},{"$f":"Import!M31331","v":"Select"},{"$f":"Import!M31531","v":"Select"},{"$f":"Import!M31731","v":"Select"},{"$f":"Import!M31931","v":0},{"$f":"Import!M32131","v":0},{"$f":"Import!M32331","v":0},{"$f":"Import!M32531","v":0},{"$f":"Import!M32731","v":0}]
[{"$f":"A1625+1","v":67},{"$f":"Import!M30532","v":"Select"},{"$f":"Import!M30732","v":"Select"},{"$f":"Import!M30932","v":"Select"},{"$f":"Import!M31132","v":"Select"},{"$f":"Import!M31332","v":"Select"},{"$f":"Import!M31532","v":"Select"},{"$f":"Import!M31732","v":"Select"},{"$f":"Import!M31932","v":0},{"$f":"Import!M32132","v":0},{"$f":"Import!M32332","v":0},{"$f":"Import!M32532","v":0},{"$f":"Import!M32732","v":0}]
[68,{"$f":"Import!M30533","v":"Select"},{"$f":"Import!M30733","v":"Select"},{"$f":"Import!M30933","v":"Select"},{"$f":"Import!M31133","v":"Select"},{"$f":"Import!M31333","v":"Select"},{"$f":"Import!M31533","v":"Select"},{"$f":"Import!M31733","v":"Select"},{"$f":"Import!M31933","v":0},{"$f":"Import!M32133","v":0},{"$f":"Import!M32333","v":0},{"$f":"Import!M32533","v":0},{"$f":"Import!M32733","v":0}]
[69,{"$f":"Import!M30534","v":"Select"},{"$f":"Import!M30734","v":"Select"},{"$f":"Import!M30934","v":"Select"},{"$f":"Import!M31134","v":"Select"},{"$f":"Import!M31334","v":"Select"},{"$f":"Import!M31534","v":"Select"},{"$f":"Import!M31734","v":"Select"},{"$f":"Import!M31934","v":0},{"$f":"Import!M32134","v":0},{"$f":"Import!M32334","v":0},{"$f":"Import!M32534","v":0},{"$f":"Import!M32734","v":0}]
[70,{"$f":"Import!M30535","v":"Select"},{"$f":"Import!M30735","v":"Select"},{"$f":"Import!M30935","v":"Select"},{"$f":"Import!M31135","v":"Select"},{"$f":"Import!M31335","v":"Select"},{"$f":"Import!M31535","v":"Select"},{"$f":"Import!M31735","v":"Select"},{"$f":"Import!M31935","v":0},{"$f":"Import!M32135","v":0},{"$f":"Import!M32335","v":0},{"$f":"Import!M32535","v":0},{"$f":"Import!M32735","v":0}]
[71,{"$f":"Import!M30536","v":"Select"},{"$f":"Import!M30736","v":"Select"},{"$f":"Import!M30936","v":"Select"},{"$f":"Import!M31136","v":"Select"},{"$f":"Import!M31336","v":"Select"},{"$f":"Import!M31536","v":"Select"},{"$f":"Import!M31736","v":"Select"},{"$f":"Import!M31936","v":0},{"$f":"Import!M32136","v":0},{"$f":"Import!M32336","v":0},{"$f":"Import!M32536","v":0},{"$f":"Import!M32736","v":0}]
[72,{"$f":"Import!M30537","v":"Select"},{"$f":"Import!M30737","v":"Select"},{"$f":"Import!M30937","v":"Select"},{"$f":"Import!M31137","v":"Select"},{"$f":"Import!M31337","v":"Select"},{"$f":"Import!M31537","v":"Select"},{"$f":"Import!M31737","v":"Select"},{"$f":"Import!M31937","v":0},{"$f":"Import!M32137","v":0},{"$f":"Import!M32337","v":0},{"$f":"Import!M32537","v":0},{"$f":"Import!M32737","v":0}]
[73,{"$f":"Import!M30538","v":"Select"},{"$f":"Import!M30738","v":"Select"},{"$f":"Import!M30938","v":"Select"},{"$f":"Import!M31138","v":"Select"},{"$f":"Import!M31338","v":"Select"},{"$f":"Import!M31538","v":"Select"},{"$f":"Import!M31738","v":"Select"},{"$f":"Import!M31938","v":0},{"$f":"Import!M32138","v":0},{"$f":"Import!M32338","v":0},{"$f":"Import!M32538","v":0},{"$f":"Import!M32738","v":0}]
[74,{"$f":"Import!M30539","v":"Select"},{"$f":"Import!M30739","v":"Select"},{"$f":"Import!M30939","v":"Select"},{"$f":"Import!M31139","v":"Select"},{"$f":"Import!M31339","v":"Select"},{"$f":"Import!M31539","v":"Select"},{"$f":"Import!M31739","v":"Select"},{"$f":"Import!M31939","v":0},{"$f":"Import!M32139","v":0},{"$f":"Import!M32339","v":0},{"$f":"Import!M32539","v":0},{"$f":"Import!M32739","v":0}]
[75,{"$f":"Import!M30540","v":"Select"},{"$f":"Import!M30740","v":"Select"},{"$f":"Import!M30940","v":"Select"},{"$f":"Import!M31140","v":"Select"},{"$f":"Import!M31340","v":"Select"},{"$f":"Import!M31540","v":"Select"},{"$f":"Import!M31740","v":"Select"},{"$f":"Import!M31940","v":0},{"$f":"Import!M32140","v":0},{"$f":"Import!M32340","v":0},{"$f":"Import!M32540","v":0},{"$f":"Import!M32740","v":0}]
[76,{"$f":"Import!M30541","v":"Select"},{"$f":"Import!M30741","v":"Select"},{"$f":"Import!M30941","v":"Select"},{"$f":"Import!M31141","v":"Select"},{"$f":"Import!M31341","v":"Select"},{"$f":"Import!M31541","v":"Select"},{"$f":"Import!M31741","v":"Select"},{"$f":"Import!M31941","v":0},{"$f":"Import!M32141","v":0},{"$f":"Import!M32341","v":0},{"$f":"Import!M32541","v":0},{"$f":"Import!M32741","v":0}]
[77,{"$f":"Import!M30542","v":"Select"},{"$f":"Import!M30742","v":"Select"},{"$f":"Import!M30942","v":"Select"},{"$f":"Import!M31142","v":"Select"},{"$f":"Import!M31342","v":"Select"},{"$f":"Import!M31542","v":"Select"},{"$f":"Import!M31742","v":"Select"},{"$f":"Import!M31942","v":0},{"$f":"Import!M32142","v":0},{"$f":"Import!M32342","v":0},{"$f":"Import!M32542","v":0},{"$f":"Import!M32742","v":0}]
[78,{"$f":"Import!M30543","v":"Select"},{"$f":"Import!M30743","v":"Select"},{"$f":"Import!M30943","v":"Select"},{"$f":"Import!M31143","v":"Select"},{"$f":"Import!M31343","v":"Select"},{"$f":"Import!M31543","v":"Select"},{"$f":"Import!M31743","v":"Select"},{"$f":"Import!M31943","v":0},{"$f":"Import!M32143","v":0},{"$f":"Import!M32343","v":0},{"$f":"Import!M32543","v":0},{"$f":"Import!M32743","v":0}]
[79,{"$f":"Import!M30544","v":"Select"},{"$f":"Import!M30744","v":"Select"},{"$f":"Import!M30944","v":"Select"},{"$f":"Import!M31144","v":"Select"},{"$f":"Import!M31344","v":"Select"},{"$f":"Import!M31544","v":"Select"},{"$f":"Import!M31744","v":"Select"},{"$f":"Import!M31944","v":0},{"$f":"Import!M32144","v":0},{"$f":"Import!M32344","v":0},{"$f":"Import!M32544","v":0},{"$f":"Import!M32744","v":0}]
[80,{"$f":"Import!M30545","v":"Select"},{"$f":"Import!M30745","v":"Select"},{"$f":"Import!M30945","v":"Select"},{"$f":"Import!M31145","v":"Select"},{"$f":"Import!M31345","v":"Select"},{"$f":"Import!M31545","v":"Select"},{"$f":"Import!M31745","v":"Select"},{"$f":"Import!M31945","v":0},{"$f":"Import!M32145","v":0},{"$f":"Import!M32345","v":0},{"$f":"Import!M32545","v":0},{"$f":"Import!M32745","v":0}]
[81,{"$f":"Import!M30546","v":"Select"},{"$f":"Import!M30746","v":"Select"},{"$f":"Import!M30946","v":"Select"},{"$f":"Import!M31146","v":"Select"},{"$f":"Import!M31346","v":"Select"},{"$f":"Import!M31546","v":"Select"},{"$f":"Import!M31746","v":"Select"},{"$f":"Import!M31946","v":0},{"$f":"Import!M32146","v":0},{"$f":"Import!M32346","v":0},{"$f":"Import!M32546","v":0},{"$f":"Import!M32746","v":0}]
[82,{"$f":"Import!M30547","v":"Select"},{"$f":"Import!M30747","v":"Select"},{"$f":"Import!M30947","v":"Select"},{"$f":"Import!M31147","v":"Select"},{"$f":"Import!M31347","v":"Select"},{"$f":"Import!M31547","v":"Select"},{"$f":"Import!M31747","v":"Select"},{"$f":"Import!M31947","v":0},{"$f":"Import!M32147","v":0},{"$f":"Import!M32347","v":0},{"$f":"Import!M32547","v":0},{"$f":"Import!M32747","v":0}]
[83,{"$f":"Import!M30548","v":"Select"},{"$f":"Import!M30748","v":"Select"},{"$f":"Import!M30948","v":"Select"},{"$f":"Import!M31148","v":"Select"},{"$f":"Import!M31348","v":"Select"},{"$f":"Import!M31548","v":"Select"},{"$f":"Import!M31748","v":"Select"},{"$f":"Import!M31948","v":0},{"$f":"Import!M32148","v":0},{"$f":"Import!M32348","v":0},{"$f":"Import!M32548","v":0},{"$f":"Import!M32748","v":0}]
[84,{"$f":"Import!M30549","v":"Select"},{"$f":"Import!M30749","v":"Select"},{"$f":"Import!M30949","v":"Select"},{"$f":"Import!M31149","v":"Select"},{"$f":"Import!M31349","v":"Select"},{"$f":"Import!M31549","v":"Select"},{"$f":"Import!M31749","v":"Select"},{"$f":"Import!M31949","v":0},{"$f":"Import!M32149","v":0},{"$f":"Import!M32349","v":0},{"$f":"Import!M32549","v":0},{"$f":"Import!M32749","v":0}]
[85,{"$f":"Import!M30550","v":"Select"},{"$f":"Import!M30750","v":"Select"},{"$f":"Import!M30950","v":"Select"},{"$f":"Import!M31150","v":"Select"},{"$f":"Import!M31350","v":"Select"},{"$f":"Import!M31550","v":"Select"},{"$f":"Import!M31750","v":"Select"},{"$f":"Import!M31950","v":0},{"$f":"Import!M32150","v":0},{"$f":"Import!M32350","v":0},{"$f":"Import!M32550","v":0},{"$f":"Import!M32750","v":0}]
[86,{"$f":"Import!M30551","v":"Select"},{"$f":"Import!M30751","v":"Select"},{"$f":"Import!M30951","v":"Select"},{"$f":"Import!M31151","v":"Select"},{"$f":"Import!M31351","v":"Select"},{"$f":"Import!M31551","v":"Select"},{"$f":"Import!M31751","v":"Select"},{"$f":"Import!M31951","v":0},{"$f":"Import!M32151","v":0},{"$f":"Import!M32351","v":0},{"$f":"Import!M32551","v":0},{"$f":"Import!M32751","v":0}]
[87,{"$f":"Import!M30552","v":"Select"},{"$f":"Import!M30752","v":"Select"},{"$f":"Import!M30952","v":"Select"},{"$f":"Import!M31152","v":"Select"},{"$f":"Import!M31352","v":"Select"},{"$f":"Import!M31552","v":"Select"},{"$f":"Import!M31752","v":"Select"},{"$f":"Import!M31952","v":0},{"$f":"Import!M32152","v":0},{"$f":"Import!M32352","v":0},{"$f":"Import!M32552","v":0},{"$f":"Import!M32752","v":0}]
[88,{"$f":"Import!M30553","v":"Select"},{"$f":"Import!M30753","v":"Select"},{"$f":"Import!M30953","v":"Select"},{"$f":"Import!M31153","v":"Select"},{"$f":"Import!M31353","v":"Select"},{"$f":"Import!M31553","v":"Select"},{"$f":"Import!M31753","v":"Select"},{"$f":"Import!M31953","v":0},{"$f":"Import!M32153","v":0},{"$f":"Import!M32353","v":0},{"$f":"Import!M32553","v":0},{"$f":"Import!M32753","v":0}]
[89,{"$f":"Import!M30554","v":"Select"},{"$f":"Import!M30754","v":"Select"},{"$f":"Import!M30954","v":"Select"},{"$f":"Import!M31154","v":"Select"},{"$f":"Import!M31354","v":"Select"},{"$f":"Import!M31554","v":"Select"},{"$f":"Import!M31754","v":"Select"},{"$f":"Import!M31954","v":0},{"$f":"Import!M32154","v":0},{"$f":"Import!M32354","v":0},{"$f":"Import!M32554","v":0},{"$f":"Import!M32754","v":0}]
[90,{"$f":"Import!M30555","v":"Select"},{"$f":"Import!M30755","v":"Select"},{"$f":"Import!M30955","v":"Select"},{"$f":"Import!M31155","v":"Select"},{"$f":"Import!M31355","v":"Select"},{"$f":"Import!M31555","v":"Select"},{"$f":"Import!M31755","v":"Select"},{"$f":"Import!M31955","v":0},{"$f":"Import!M32155","v":0},{"$f":"Import!M32355","v":0},{"$f":"Import!M32555","v":0},{"$f":"Import!M32755","v":0}]
[91,{"$f":"Import!M30556","v":"Select"},{"$f":"Import!M30756","v":"Select"},{"$f":"Import!M30956","v":"Select"},{"$f":"Import!M31156","v":"Select"},{"$f":"Import!M31356","v":"Select"},{"$f":"Import!M31556","v":"Select"},{"$f":"Import!M31756","v":"Select"},{"$f":"Import!M31956","v":0},{"$f":"Import!M32156","v":0},{"$f":"Import!M32356","v":0},{"$f":"Import!M32556","v":0},{"$f":"Import!M32756","v":0}]
[92,{"$f":"Import!M30557","v":"Select"},{"$f":"Import!M30757","v":"Select"},{"$f":"Import!M30957","v":"Select"},{"$f":"Import!M31157","v":"Select"},{"$f":"Import!M31357","v":"Select"},{"$f":"Import!M31557","v":"Select"},{"$f":"Import!M31757","v":"Select"},{"$f":"Import!M31957","v":0},{"$f":"Import!M32157","v":0},{"$f":"Import!M32357","v":0},{"$f":"Import!M32557","v":0},{"$f":"Import!M32757","v":0}]
[93,{"$f":"Import!M30558","v":"Select"},{"$f":"Import!M30758","v":"Select"},{"$f":"Import!M30958","v":"Select"},{"$f":"Import!M31158","v":"Select"},{"$f":"Import!M31358","v":"Select"},{"$f":"Import!M31558","v":"Select"},{"$f":"Import!M31758","v":"Select"},{"$f":"Import!M31958","v":0},{"$f":"Import!M32158","v":0},{"$f":"Import!M32358","v":0},{"$f":"Import!M32558","v":0},{"$f":"Import!M32758","v":0}]
[94,{"$f":"Import!M30559","v":"Select"},{"$f":"Import!M30759","v":"Select"},{"$f":"Import!M30959","v":"Select"},{"$f":"Import!M31159","v":"Select"},{"$f":"Import!M31359","v":"Select"},{"$f":"Import!M31559","v":"Select"},{"$f":"Import!M31759","v":"Select"},{"$f":"Import!M31959","v":0},{"$f":"Import!M32159","v":0},{"$f":"Import!M32359","v":0},{"$f":"Import!M32559","v":0},{"$f":"Import!M32759","v":0}]
[95,{"$f":"Import!M30560","v":"Select"},{"$f":"Import!M30760","v":"Select"},{"$f":"Import!M30960","v":"Select"},{"$f":"Import!M31160","v":"Select"},{"$f":"Import!M31360","v":"Select"},{"$f":"Import!M31560","v":"Select"},{"$f":"Import!M31760","v":"Select"},{"$f":"Import!M31960","v":0},{"$f":"Import!M32160","v":0},{"$f":"Import!M32360","v":0},{"$f":"Import!M32560","v":0},{"$f":"Import!M32760","v":0}]
[96,{"$f":"Import!M30561","v":"Select"},{"$f":"Import!M30761","v":"Select"},{"$f":"Import!M30961","v":"Select"},{"$f":"Import!M31161","v":"Select"},{"$f":"Import!M31361","v":"Select"},{"$f":"Import!M31561","v":"Select"},{"$f":"Import!M31761","v":"Select"},{"$f":"Import!M31961","v":0},{"$f":"Import!M32161","v":0},{"$f":"Import!M32361","v":0},{"$f":"Import!M32561","v":0},{"$f":"Import!M32761","v":0}]
[97,{"$f":"Import!M30562","v":"Select"},{"$f":"Import!M30762","v":"Select"},{"$f":"Import!M30962","v":"Select"},{"$f":"Import!M31162","v":"Select"},{"$f":"Import!M31362","v":"Select"},{"$f":"Import!M31562","v":"Select"},{"$f":"Import!M31762","v":"Select"},{"$f":"Import!M31962","v":0},{"$f":"Import!M32162","v":0},{"$f":"Import!M32362","v":0},{"$f":"Import!M32562","v":0},{"$f":"Import!M32762","v":0}]
[98,{"$f":"Import!M30563","v":"Select"},{"$f":"Import!M30763","v":"Select"},{"$f":"Import!M30963","v":"Select"},{"$f":"Import!M31163","v":"Select"},{"$f":"Import!M31363","v":"Select"},{"$f":"Import!M31563","v":"Select"},{"$f":"Import!M31763","v":"Select"},{"$f":"Import!M31963","v":0},{"$f":"Import!M32163","v":0},{"$f":"Import!M32363","v":0},{"$f":"Import!M32563","v":0},{"$f":"Import!M32763","v":0}]
[99,{"$f":"Import!M30564","v":"Select"},{"$f":"Import!M30764","v":"Select"},{"$f":"Import!M30964","v":"Select"},{"$f":"Import!M31164","v":"Select"},{"$f":"Import!M31364","v":"Select"},{"$f":"Import!M31564","v":"Select"},{"$f":"Import!M31764","v":"Select"},{"$f":"Import!M31964","v":0},{"$f":"Import!M32164","v":0},{"$f":"Import!M32364","v":0},{"$f":"Import!M32564","v":0},{"$f":"Import!M32764","v":0}]
[100,{"$f":"Import!M30565","v":"Select"},{"$f":"Import!M30765","v":"Select"},{"$f":"Import!M30965","v":"Select"},{"$f":"Import!M31165","v":"Select"},{"$f":"Import!M31365","v":"Select"},{"$f":"Import!M31565","v":"Select"},{"$f":"Import!M31765","v":"Select"},{"$f":"Import!M31965","v":0},{"$f":"Import!M32165","v":0},{"$f":"Import!M32365","v":0},{"$f":"Import!M32565","v":0},{"$f":"Import!M32765","v":0}]
[101,{"$f":"Import!M30566","v":"Select"},{"$f":"Import!M30766","v":"Select"},{"$f":"Import!M30966","v":"Select"},{"$f":"Import!M31166","v":"Select"},{"$f":"Import!M31366","v":"Select"},{"$f":"Import!M31566","v":"Select"},{"$f":"Import!M31766","v":"Select"},{"$f":"Import!M31966","v":0},{"$f":"Import!M32166","v":0},{"$f":"Import!M32366","v":0},{"$f":"Import!M32566","v":0},{"$f":"Import!M32766","v":0}]
[102,{"$f":"Import!M30567","v":"Select"},{"$f":"Import!M30767","v":"Select"},{"$f":"Import!M30967","v":"Select"},{"$f":"Import!M31167","v":"Select"},{"$f":"Import!M31367","v":"Select"},{"$f":"Import!M31567","v":"Select"},{"$f":"Import!M31767","v":"Select"},{"$f":"Import!M31967","v":0},{"$f":"Import!M32167","v":0},{"$f":"Import!M32367","v":0},{"$f":"Import!M32567","v":0},{"$f":"Import!M32767","v":0}]
[103,{"$f":"Import!M30568","v":"Select"},{"$f":"Import!M30768","v":"Select"},{"$f":"Import!M30968","v":"Select"},{"$f":"Import!M31168","v":"Select"},{"$f":"Import!M31368","v":"Select"},{"$f":"Import!M31568","v":"Select"},{"$f":"Import!M31768","v":"Select"},{"$f":"Import!M31968","v":0},{"$f":"Import!M32168","v":0},{"$f":"Import!M32368","v":0},{"$f":"Import!M32568","v":0},{"$f":"Import!M32768","v":0}]
[104,{"$f":"Import!M30569","v":"Select"},{"$f":"Import!M30769","v":"Select"},{"$f":"Import!M30969","v":"Select"},{"$f":"Import!M31169","v":"Select"},{"$f":"Import!M31369","v":"Select"},{"$f":"Import!M31569","v":"Select"},{"$f":"Import!M31769","v":"Select"},{"$f":"Import!M31969","v":0},{"$f":"Import!M32169","v":0},{"$f":"Import!M32369","v":0},{"$f":"Import!M32569","v":0},{"$f":"Import!M32769","v":0}]
[105,{"$f":"Import!M30570","v":"Select"},{"$f":"Import!M30770","v":"Select"},{"$f":"Import!M30970","v":"Select"},{"$f":"Import!M31170","v":"Select"},{"$f":"Import!M31370","v":"Select"},{"$f":"Import!M31570","v":"Select"},{"$f":"Import!M31770","v":"Select"},{"$f":"Import!M31970","v":0},{"$f":"Import!M32170","v":0},{"$f":"Import!M32370","v":0},{"$f":"Import!M32570","v":0},{"$f":"Import!M32770","v":0}]
[106,{"$f":"Import!M30571","v":"Select"},{"$f":"Import!M30771","v":"Select"},{"$f":"Import!M30971","v":"Select"},{"$f":"Import!M31171","v":"Select"},{"$f":"Import!M31371","v":"Select"},{"$f":"Import!M31571","v":"Select"},{"$f":"Import!M31771","v":"Select"},{"$f":"Import!M31971","v":0},{"$f":"Import!M32171","v":0},{"$f":"Import!M32371","v":0},{"$f":"Import!M32571","v":0},{"$f":"Import!M32771","v":0}]
[107,{"$f":"Import!M30572","v":"Select"},{"$f":"Import!M30772","v":"Select"},{"$f":"Import!M30972","v":"Select"},{"$f":"Import!M31172","v":"Select"},{"$f":"Import!M31372","v":"Select"},{"$f":"Import!M31572","v":"Select"},{"$f":"Import!M31772","v":"Select"},{"$f":"Import!M31972","v":0},{"$f":"Import!M32172","v":0},{"$f":"Import!M32372","v":0},{"$f":"Import!M32572","v":0},{"$f":"Import!M32772","v":0}]
[108,{"$f":"Import!M30573","v":"Select"},{"$f":"Import!M30773","v":"Select"},{"$f":"Import!M30973","v":"Select"},{"$f":"Import!M31173","v":"Select"},{"$f":"Import!M31373","v":"Select"},{"$f":"Import!M31573","v":"Select"},{"$f":"Import!M31773","v":"Select"},{"$f":"Import!M31973","v":0},{"$f":"Import!M32173","v":0},{"$f":"Import!M32373","v":0},{"$f":"Import!M32573","v":0},{"$f":"Import!M32773","v":0}]
[109,{"$f":"Import!M30574","v":"Select"},{"$f":"Import!M30774","v":"Select"},{"$f":"Import!M30974","v":"Select"},{"$f":"Import!M31174","v":"Select"},{"$f":"Import!M31374","v":"Select"},{"$f":"Import!M31574","v":"Select"},{"$f":"Import!M31774","v":"Select"},{"$f":"Import!M31974","v":0},{"$f":"Import!M32174","v":0},{"$f":"Import!M32374","v":0},{"$f":"Import!M32574","v":0},{"$f":"Import!M32774","v":0}]
[110,{"$f":"Import!M30575","v":"Select"},{"$f":"Import!M30775","v":"Select"},{"$f":"Import!M30975","v":"Select"},{"$f":"Import!M31175","v":"Select"},{"$f":"Import!M31375","v":"Select"},{"$f":"Import!M31575","v":"Select"},{"$f":"Import!M31775","v":"Select"},{"$f":"Import!M31975","v":0},{"$f":"Import!M32175","v":0},{"$f":"Import!M32375","v":0},{"$f":"Import!M32575","v":0},{"$f":"Import!M32775","v":0}]
[111,{"$f":"Import!M30576","v":"Select"},{"$f":"Import!M30776","v":"Select"},{"$f":"Import!M30976","v":"Select"},{"$f":"Import!M31176","v":"Select"},{"$f":"Import!M31376","v":"Select"},{"$f":"Import!M31576","v":"Select"},{"$f":"Import!M31776","v":"Select"},{"$f":"Import!M31976","v":0},{"$f":"Import!M32176","v":0},{"$f":"Import!M32376","v":0},{"$f":"Import!M32576","v":0},{"$f":"Import!M32776","v":0}]
[112,{"$f":"Import!M30577","v":"Select"},{"$f":"Import!M30777","v":"Select"},{"$f":"Import!M30977","v":"Select"},{"$f":"Import!M31177","v":"Select"},{"$f":"Import!M31377","v":"Select"},{"$f":"Import!M31577","v":"Select"},{"$f":"Import!M31777","v":"Select"},{"$f":"Import!M31977","v":0},{"$f":"Import!M32177","v":0},{"$f":"Import!M32377","v":0},{"$f":"Import!M32577","v":0},{"$f":"Import!M32777","v":0}]
[113,{"$f":"Import!M30578","v":"Select"},{"$f":"Import!M30778","v":"Select"},{"$f":"Import!M30978","v":"Select"},{"$f":"Import!M31178","v":"Select"},{"$f":"Import!M31378","v":"Select"},{"$f":"Import!M31578","v":"Select"},{"$f":"Import!M31778","v":"Select"},{"$f":"Import!M31978","v":0},{"$f":"Import!M32178","v":0},{"$f":"Import!M32378","v":0},{"$f":"Import!M32578","v":0},{"$f":"Import!M32778","v":0}]
[114,{"$f":"Import!M30579","v":"Select"},{"$f":"Import!M30779","v":"Select"},{"$f":"Import!M30979","v":"Select"},{"$f":"Import!M31179","v":"Select"},{"$f":"Import!M31379","v":"Select"},{"$f":"Import!M31579","v":"Select"},{"$f":"Import!M31779","v":"Select"},{"$f":"Import!M31979","v":0},{"$f":"Import!M32179","v":0},{"$f":"Import!M32379","v":0},{"$f":"Import!M32579","v":0},{"$f":"Import!M32779","v":0}]
[115,{"$f":"Import!M30580","v":"Select"},{"$f":"Import!M30780","v":"Select"},{"$f":"Import!M30980","v":"Select"},{"$f":"Import!M31180","v":"Select"},{"$f":"Import!M31380","v":"Select"},{"$f":"Import!M31580","v":"Select"},{"$f":"Import!M31780","v":"Select"},{"$f":"Import!M31980","v":0},{"$f":"Import!M32180","v":0},{"$f":"Import!M32380","v":0},{"$f":"Import!M32580","v":0},{"$f":"Import!M32780","v":0}]
[116,{"$f":"Import!M30581","v":"Select"},{"$f":"Import!M30781","v":"Select"},{"$f":"Import!M30981","v":"Select"},{"$f":"Import!M31181","v":"Select"},{"$f":"Import!M31381","v":"Select"},{"$f":"Import!M31581","v":"Select"},{"$f":"Import!M31781","v":"Select"},{"$f":"Import!M31981","v":0},{"$f":"Import!M32181","v":0},{"$f":"Import!M32381","v":0},{"$f":"Import!M32581","v":0},{"$f":"Import!M32781","v":0}]
[117,{"$f":"Import!M30582","v":"Select"},{"$f":"Import!M30782","v":"Select"},{"$f":"Import!M30982","v":"Select"},{"$f":"Import!M31182","v":"Select"},{"$f":"Import!M31382","v":"Select"},{"$f":"Import!M31582","v":"Select"},{"$f":"Import!M31782","v":"Select"},{"$f":"Import!M31982","v":0},{"$f":"Import!M32182","v":0},{"$f":"Import!M32382","v":0},{"$f":"Import!M32582","v":0},{"$f":"Import!M32782","v":0}]
[118,{"$f":"Import!M30583","v":"Select"},{"$f":"Import!M30783","v":"Select"},{"$f":"Import!M30983","v":"Select"},{"$f":"Import!M31183","v":"Select"},{"$f":"Import!M31383","v":"Select"},{"$f":"Import!M31583","v":"Select"},{"$f":"Import!M31783","v":"Select"},{"$f":"Import!M31983","v":0},{"$f":"Import!M32183","v":0},{"$f":"Import!M32383","v":0},{"$f":"Import!M32583","v":0},{"$f":"Import!M32783","v":0}]
[119,{"$f":"Import!M30584","v":"Select"},{"$f":"Import!M30784","v":"Select"},{"$f":"Import!M30984","v":"Select"},{"$f":"Import!M31184","v":"Select"},{"$f":"Import!M31384","v":"Select"},{"$f":"Import!M31584","v":"Select"},{"$f":"Import!M31784","v":"Select"},{"$f":"Import!M31984","v":0},{"$f":"Import!M32184","v":0},{"$f":"Import!M32384","v":0},{"$f":"Import!M32584","v":0},{"$f":"Import!M32784","v":0}]
[120,{"$f":"Import!M30585","v":"Select"},{"$f":"Import!M30785","v":"Select"},{"$f":"Import!M30985","v":"Select"},{"$f":"Import!M31185","v":"Select"},{"$f":"Import!M31385","v":"Select"},{"$f":"Import!M31585","v":"Select"},{"$f":"Import!M31785","v":"Select"},{"$f":"Import!M31985","v":0},{"$f":"Import!M32185","v":0},{"$f":"Import!M32385","v":0},{"$f":"Import!M32585","v":0},{"$f":"Import!M32785","v":0}]
[121,{"$f":"Import!M30586","v":"Select"},{"$f":"Import!M30786","v":"Select"},{"$f":"Import!M30986","v":"Select"},{"$f":"Import!M31186","v":"Select"},{"$f":"Import!M31386","v":"Select"},{"$f":"Import!M31586","v":"Select"},{"$f":"Import!M31786","v":"Select"},{"$f":"Import!M31986","v":0},{"$f":"Import!M32186","v":0},{"$f":"Import!M32386","v":0},{"$f":"Import!M32586","v":0},{"$f":"Import!M32786","v":0}]
[122,{"$f":"Import!M30587","v":"Select"},{"$f":"Import!M30787","v":"Select"},{"$f":"Import!M30987","v":"Select"},{"$f":"Import!M31187","v":"Select"},{"$f":"Import!M31387","v":"Select"},{"$f":"Import!M31587","v":"Select"},{"$f":"Import!M31787","v":"Select"},{"$f":"Import!M31987","v":0},{"$f":"Import!M32187","v":0},{"$f":"Import!M32387","v":0},{"$f":"Import!M32587","v":0},{"$f":"Import!M32787","v":0}]
[123,{"$f":"Import!M30588","v":"Select"},{"$f":"Import!M30788","v":"Select"},{"$f":"Import!M30988","v":"Select"},{"$f":"Import!M31188","v":"Select"},{"$f":"Import!M31388","v":"Select"},{"$f":"Import!M31588","v":"Select"},{"$f":"Import!M31788","v":"Select"},{"$f":"Import!M31988","v":0},{"$f":"Import!M32188","v":0},{"$f":"Import!M32388","v":0},{"$f":"Import!M32588","v":0},{"$f":"Import!M32788","v":0}]
[124,{"$f":"Import!M30589","v":"Select"},{"$f":"Import!M30789","v":"Select"},{"$f":"Import!M30989","v":"Select"},{"$f":"Import!M31189","v":"Select"},{"$f":"Import!M31389","v":"Select"},{"$f":"Import!M31589","v":"Select"},{"$f":"Import!M31789","v":"Select"},{"$f":"Import!M31989","v":0},{"$f":"Import!M32189","v":0},{"$f":"Import!M32389","v":0},{"$f":"Import!M32589","v":0},{"$f":"Import!M32789","v":0}]
[125,{"$f":"Import!M30590","v":"Select"},{"$f":"Import!M30790","v":"Select"},{"$f":"Import!M30990","v":"Select"},{"$f":"Import!M31190","v":"Select"},{"$f":"Import!M31390","v":"Select"},{"$f":"Import!M31590","v":"Select"},{"$f":"Import!M31790","v":"Select"},{"$f":"Import!M31990","v":0},{"$f":"Import!M32190","v":0},{"$f":"Import!M32390","v":0},{"$f":"Import!M32590","v":0},{"$f":"Import!M32790","v":0}]
[126,{"$f":"Import!M30591","v":"Select"},{"$f":"Import!M30791","v":"Select"},{"$f":"Import!M30991","v":"Select"},{"$f":"Import!M31191","v":"Select"},{"$f":"Import!M31391","v":"Select"},{"$f":"Import!M31591","v":"Select"},{"$f":"Import!M31791","v":"Select"},{"$f":"Import!M31991","v":0},{"$f":"Import!M32191","v":0},{"$f":"Import!M32391","v":0},{"$f":"Import!M32591","v":0},{"$f":"Import!M32791","v":0}]
[127,{"$f":"Import!M30592","v":"Select"},{"$f":"Import!M30792","v":"Select"},{"$f":"Import!M30992","v":"Select"},{"$f":"Import!M31192","v":"Select"},{"$f":"Import!M31392","v":"Select"},{"$f":"Import!M31592","v":"Select"},{"$f":"Import!M31792","v":"Select"},{"$f":"Import!M31992","v":0},{"$f":"Import!M32192","v":0},{"$f":"Import!M32392","v":0},{"$f":"Import!M32592","v":0},{"$f":"Import!M32792","v":0}]
[128,{"$f":"Import!M30593","v":"Select"},{"$f":"Import!M30793","v":"Select"},{"$f":"Import!M30993","v":"Select"},{"$f":"Import!M31193","v":"Select"},{"$f":"Import!M31393","v":"Select"},{"$f":"Import!M31593","v":"Select"},{"$f":"Import!M31793","v":"Select"},{"$f":"Import!M31993","v":0},{"$f":"Import!M32193","v":0},{"$f":"Import!M32393","v":0},{"$f":"Import!M32593","v":0},{"$f":"Import!M32793","v":0}]
[129,{"$f":"Import!M30594","v":"Select"},{"$f":"Import!M30794","v":"Select"},{"$f":"Import!M30994","v":"Select"},{"$f":"Import!M31194","v":"Select"},{"$f":"Import!M31394","v":"Select"},{"$f":"Import!M31594","v":"Select"},{"$f":"Import!M31794","v":"Select"},{"$f":"Import!M31994","v":0},{"$f":"Import!M32194","v":0},{"$f":"Import!M32394","v":0},{"$f":"Import!M32594","v":0},{"$f":"Import!M32794","v":0}]
[130,{"$f":"Import!M30595","v":"Select"},{"$f":"Import!M30795","v":"Select"},{"$f":"Import!M30995","v":"Select"},{"$f":"Import!M31195","v":"Select"},{"$f":"Import!M31395","v":"Select"},{"$f":"Import!M31595","v":"Select"},{"$f":"Import!M31795","v":"Select"},{"$f":"Import!M31995","v":0},{"$f":"Import!M32195","v":0},{"$f":"Import!M32395","v":0},{"$f":"Import!M32595","v":0},{"$f":"Import!M32795","v":0}]
[{"$f":"A1689+1","v":131},{"$f":"Import!M30596","v":"Select"},{"$f":"Import!M30796","v":"Select"},{"$f":"Import!M30996","v":"Select"},{"$f":"Import!M31196","v":"Select"},{"$f":"Import!M31396","v":"Select"},{"$f":"Import!M31596","v":"Select"},{"$f":"Import!M31796","v":"Select"},{"$f":"Import!M31996","v":0},{"$f":"Import!M32196","v":0},{"$f":"Import!M32396","v":0},{"$f":"Import!M32596","v":0},{"$f":"Import!M32796","v":0}]
[132,{"$f":"Import!M30597","v":"Select"},{"$f":"Import!M30797","v":"Select"},{"$f":"Import!M30997","v":"Select"},{"$f":"Import!M31197","v":"Select"},{"$f":"Import!M31397","v":"Select"},{"$f":"Import!M31597","v":"Select"},{"$f":"Import!M31797","v":"Select"},{"$f":"Import!M31997","v":0},{"$f":"Import!M32197","v":0},{"$f":"Import!M32397","v":0},{"$f":"Import!M32597","v":0},{"$f":"Import!M32797","v":0}]
[133,{"$f":"Import!M30598","v":"Select"},{"$f":"Import!M30798","v":"Select"},{"$f":"Import!M30998","v":"Select"},{"$f":"Import!M31198","v":"Select"},{"$f":"Import!M31398","v":"Select"},{"$f":"Import!M31598","v":"Select"},{"$f":"Import!M31798","v":"Select"},{"$f":"Import!M31998","v":0},{"$f":"Import!M32198","v":0},{"$f":"Import!M32398","v":0},{"$f":"Import!M32598","v":0},{"$f":"Import!M32798","v":0}]
[134,{"$f":"Import!M30599","v":"Select"},{"$f":"Import!M30799","v":"Select"},{"$f":"Import!M30999","v":"Select"},{"$f":"Import!M31199","v":"Select"},{"$f":"Import!M31399","v":"Select"},{"$f":"Import!M31599","v":"Select"},{"$f":"Import!M31799","v":"Select"},{"$f":"Import!M31999","v":0},{"$f":"Import!M32199","v":0},{"$f":"Import!M32399","v":0},{"$f":"Import!M32599","v":0},{"$f":"Import!M32799","v":0}]
[135,{"$f":"Import!M30600","v":"Select"},{"$f":"Import!M30800","v":"Select"},{"$f":"Import!M31000","v":"Select"},{"$f":"Import!M31200","v":"Select"},{"$f":"Import!M31400","v":"Select"},{"$f":"Import!M31600","v":"Select"},{"$f":"Import!M31800","v":"Select"},{"$f":"Import!M32000","v":0},{"$f":"Import!M32200","v":0},{"$f":"Import!M32400","v":0},{"$f":"Import!M32600","v":0},{"$f":"Import!M32800","v":0}]
[136,{"$f":"Import!M30601","v":"Select"},{"$f":"Import!M30801","v":"Select"},{"$f":"Import!M31001","v":"Select"},{"$f":"Import!M31201","v":"Select"},{"$f":"Import!M31401","v":"Select"},{"$f":"Import!M31601","v":"Select"},{"$f":"Import!M31801","v":"Select"},{"$f":"Import!M32001","v":0},{"$f":"Import!M32201","v":0},{"$f":"Import!M32401","v":0},{"$f":"Import!M32601","v":0},{"$f":"Import!M32801","v":0}]
[137,{"$f":"Import!M30602","v":"Select"},{"$f":"Import!M30802","v":"Select"},{"$f":"Import!M31002","v":"Select"},{"$f":"Import!M31202","v":"Select"},{"$f":"Import!M31402","v":"Select"},{"$f":"Import!M31602","v":"Select"},{"$f":"Import!M31802","v":"Select"},{"$f":"Import!M32002","v":0},{"$f":"Import!M32202","v":0},{"$f":"Import!M32402","v":0},{"$f":"Import!M32602","v":0},{"$f":"Import!M32802","v":0}]
[138,{"$f":"Import!M30603","v":"Select"},{"$f":"Import!M30803","v":"Select"},{"$f":"Import!M31003","v":"Select"},{"$f":"Import!M31203","v":"Select"},{"$f":"Import!M31403","v":"Select"},{"$f":"Import!M31603","v":"Select"},{"$f":"Import!M31803","v":"Select"},{"$f":"Import!M32003","v":0},{"$f":"Import!M32203","v":0},{"$f":"Import!M32403","v":0},{"$f":"Import!M32603","v":0},{"$f":"Import!M32803","v":0}]
[139,{"$f":"Import!M30604","v":"Select"},{"$f":"Import!M30804","v":"Select"},{"$f":"Import!M31004","v":"Select"},{"$f":"Import!M31204","v":"Select"},{"$f":"Import!M31404","v":"Select"},{"$f":"Import!M31604","v":"Select"},{"$f":"Import!M31804","v":"Select"},{"$f":"Import!M32004","v":0},{"$f":"Import!M32204","v":0},{"$f":"Import!M32404","v":0},{"$f":"Import!M32604","v":0},{"$f":"Import!M32804","v":0}]
[140,{"$f":"Import!M30605","v":"Select"},{"$f":"Import!M30805","v":"Select"},{"$f":"Import!M31005","v":"Select"},{"$f":"Import!M31205","v":"Select"},{"$f":"Import!M31405","v":"Select"},{"$f":"Import!M31605","v":"Select"},{"$f":"Import!M31805","v":"Select"},{"$f":"Import!M32005","v":0},{"$f":"Import!M32205","v":0},{"$f":"Import!M32405","v":0},{"$f":"Import!M32605","v":0},{"$f":"Import!M32805","v":0}]
[141,{"$f":"Import!M30606","v":"Select"},{"$f":"Import!M30806","v":"Select"},{"$f":"Import!M31006","v":"Select"},{"$f":"Import!M31206","v":"Select"},{"$f":"Import!M31406","v":"Select"},{"$f":"Import!M31606","v":"Select"},{"$f":"Import!M31806","v":"Select"},{"$f":"Import!M32006","v":0},{"$f":"Import!M32206","v":0},{"$f":"Import!M32406","v":0},{"$f":"Import!M32606","v":0},{"$f":"Import!M32806","v":0}]
[142,{"$f":"Import!M30607","v":"Select"},{"$f":"Import!M30807","v":"Select"},{"$f":"Import!M31007","v":"Select"},{"$f":"Import!M31207","v":"Select"},{"$f":"Import!M31407","v":"Select"},{"$f":"Import!M31607","v":"Select"},{"$f":"Import!M31807","v":"Select"},{"$f":"Import!M32007","v":0},{"$f":"Import!M32207","v":0},{"$f":"Import!M32407","v":0},{"$f":"Import!M32607","v":0},{"$f":"Import!M32807","v":0}]
[143,{"$f":"Import!M30608","v":"Select"},{"$f":"Import!M30808","v":"Select"},{"$f":"Import!M31008","v":"Select"},{"$f":"Import!M31208","v":"Select"},{"$f":"Import!M31408","v":"Select"},{"$f":"Import!M31608","v":"Select"},{"$f":"Import!M31808","v":"Select"},{"$f":"Import!M32008","v":0},{"$f":"Import!M32208","v":0},{"$f":"Import!M32408","v":0},{"$f":"Import!M32608","v":0},{"$f":"Import!M32808","v":0}]
[144,{"$f":"Import!M30609","v":"Select"},{"$f":"Import!M30809","v":"Select"},{"$f":"Import!M31009","v":"Select"},{"$f":"Import!M31209","v":"Select"},{"$f":"Import!M31409","v":"Select"},{"$f":"Import!M31609","v":"Select"},{"$f":"Import!M31809","v":"Select"},{"$f":"Import!M32009","v":0},{"$f":"Import!M32209","v":0},{"$f":"Import!M32409","v":0},{"$f":"Import!M32609","v":0},{"$f":"Import!M32809","v":0}]
[145,{"$f":"Import!M30610","v":"Select"},{"$f":"Import!M30810","v":"Select"},{"$f":"Import!M31010","v":"Select"},{"$f":"Import!M31210","v":"Select"},{"$f":"Import!M31410","v":"Select"},{"$f":"Import!M31610","v":"Select"},{"$f":"Import!M31810","v":"Select"},{"$f":"Import!M32010","v":0},{"$f":"Import!M32210","v":0},{"$f":"Import!M32410","v":0},{"$f":"Import!M32610","v":0},{"$f":"Import!M32810","v":0}]
[146,{"$f":"Import!M30611","v":"Select"},{"$f":"Import!M30811","v":"Select"},{"$f":"Import!M31011","v":"Select"},{"$f":"Import!M31211","v":"Select"},{"$f":"Import!M31411","v":"Select"},{"$f":"Import!M31611","v":"Select"},{"$f":"Import!M31811","v":"Select"},{"$f":"Import!M32011","v":0},{"$f":"Import!M32211","v":0},{"$f":"Import!M32411","v":0},{"$f":"Import!M32611","v":0},{"$f":"Import!M32811","v":0}]
[147,{"$f":"Import!M30612","v":"Select"},{"$f":"Import!M30812","v":"Select"},{"$f":"Import!M31012","v":"Select"},{"$f":"Import!M31212","v":"Select"},{"$f":"Import!M31412","v":"Select"},{"$f":"Import!M31612","v":"Select"},{"$f":"Import!M31812","v":"Select"},{"$f":"Import!M32012","v":0},{"$f":"Import!M32212","v":0},{"$f":"Import!M32412","v":0},{"$f":"Import!M32612","v":0},{"$f":"Import!M32812","v":0}]
[148,{"$f":"Import!M30613","v":"Select"},{"$f":"Import!M30813","v":"Select"},{"$f":"Import!M31013","v":"Select"},{"$f":"Import!M31213","v":"Select"},{"$f":"Import!M31413","v":"Select"},{"$f":"Import!M31613","v":"Select"},{"$f":"Import!M31813","v":"Select"},{"$f":"Import!M32013","v":0},{"$f":"Import!M32213","v":0},{"$f":"Import!M32413","v":0},{"$f":"Import!M32613","v":0},{"$f":"Import!M32813","v":0}]
[149,{"$f":"Import!M30614","v":"Select"},{"$f":"Import!M30814","v":"Select"},{"$f":"Import!M31014","v":"Select"},{"$f":"Import!M31214","v":"Select"},{"$f":"Import!M31414","v":"Select"},{"$f":"Import!M31614","v":"Select"},{"$f":"Import!M31814","v":"Select"},{"$f":"Import!M32014","v":0},{"$f":"Import!M32214","v":0},{"$f":"Import!M32414","v":0},{"$f":"Import!M32614","v":0},{"$f":"Import!M32814","v":0}]
[150,{"$f":"Import!M30615","v":"Select"},{"$f":"Import!M30815","v":"Select"},{"$f":"Import!M31015","v":"Select"},{"$f":"Import!M31215","v":"Select"},{"$f":"Import!M31415","v":"Select"},{"$f":"Import!M31615","v":"Select"},{"$f":"Import!M31815","v":"Select"},{"$f":"Import!M32015","v":0},{"$f":"Import!M32215","v":0},{"$f":"Import!M32415","v":0},{"$f":"Import!M32615","v":0},{"$f":"Import!M32815","v":0}]
[151,{"$f":"Import!M30616","v":"Select"},{"$f":"Import!M30816","v":"Select"},{"$f":"Import!M31016","v":"Select"},{"$f":"Import!M31216","v":"Select"},{"$f":"Import!M31416","v":"Select"},{"$f":"Import!M31616","v":"Select"},{"$f":"Import!M31816","v":"Select"},{"$f":"Import!M32016","v":0},{"$f":"Import!M32216","v":0},{"$f":"Import!M32416","v":0},{"$f":"Import!M32616","v":0},{"$f":"Import!M32816","v":0}]
[152,{"$f":"Import!M30617","v":"Select"},{"$f":"Import!M30817","v":"Select"},{"$f":"Import!M31017","v":"Select"},{"$f":"Import!M31217","v":"Select"},{"$f":"Import!M31417","v":"Select"},{"$f":"Import!M31617","v":"Select"},{"$f":"Import!M31817","v":"Select"},{"$f":"Import!M32017","v":0},{"$f":"Import!M32217","v":0},{"$f":"Import!M32417","v":0},{"$f":"Import!M32617","v":0},{"$f":"Import!M32817","v":0}]
[153,{"$f":"Import!M30618","v":"Select"},{"$f":"Import!M30818","v":"Select"},{"$f":"Import!M31018","v":"Select"},{"$f":"Import!M31218","v":"Select"},{"$f":"Import!M31418","v":"Select"},{"$f":"Import!M31618","v":"Select"},{"$f":"Import!M31818","v":"Select"},{"$f":"Import!M32018","v":0},{"$f":"Import!M32218","v":0},{"$f":"Import!M32418","v":0},{"$f":"Import!M32618","v":0},{"$f":"Import!M32818","v":0}]
[154,{"$f":"Import!M30619","v":"Select"},{"$f":"Import!M30819","v":"Select"},{"$f":"Import!M31019","v":"Select"},{"$f":"Import!M31219","v":"Select"},{"$f":"Import!M31419","v":"Select"},{"$f":"Import!M31619","v":"Select"},{"$f":"Import!M31819","v":"Select"},{"$f":"Import!M32019","v":0},{"$f":"Import!M32219","v":0},{"$f":"Import!M32419","v":0},{"$f":"Import!M32619","v":0},{"$f":"Import!M32819","v":0}]
[155,{"$f":"Import!M30620","v":"Select"},{"$f":"Import!M30820","v":"Select"},{"$f":"Import!M31020","v":"Select"},{"$f":"Import!M31220","v":"Select"},{"$f":"Import!M31420","v":"Select"},{"$f":"Import!M31620","v":"Select"},{"$f":"Import!M31820","v":"Select"},{"$f":"Import!M32020","v":0},{"$f":"Import!M32220","v":0},{"$f":"Import!M32420","v":0},{"$f":"Import!M32620","v":0},{"$f":"Import!M32820","v":0}]
[156,{"$f":"Import!M30621","v":"Select"},{"$f":"Import!M30821","v":"Select"},{"$f":"Import!M31021","v":"Select"},{"$f":"Import!M31221","v":"Select"},{"$f":"Import!M31421","v":"Select"},{"$f":"Import!M31621","v":"Select"},{"$f":"Import!M31821","v":"Select"},{"$f":"Import!M32021","v":0},{"$f":"Import!M32221","v":0},{"$f":"Import!M32421","v":0},{"$f":"Import!M32621","v":0},{"$f":"Import!M32821","v":0}]
[157,{"$f":"Import!M30622","v":"Select"},{"$f":"Import!M30822","v":"Select"},{"$f":"Import!M31022","v":"Select"},{"$f":"Import!M31222","v":"Select"},{"$f":"Import!M31422","v":"Select"},{"$f":"Import!M31622","v":"Select"},{"$f":"Import!M31822","v":"Select"},{"$f":"Import!M32022","v":0},{"$f":"Import!M32222","v":0},{"$f":"Import!M32422","v":0},{"$f":"Import!M32622","v":0},{"$f":"Import!M32822","v":0}]
[158,{"$f":"Import!M30623","v":"Select"},{"$f":"Import!M30823","v":"Select"},{"$f":"Import!M31023","v":"Select"},{"$f":"Import!M31223","v":"Select"},{"$f":"Import!M31423","v":"Select"},{"$f":"Import!M31623","v":"Select"},{"$f":"Import!M31823","v":"Select"},{"$f":"Import!M32023","v":0},{"$f":"Import!M32223","v":0},{"$f":"Import!M32423","v":0},{"$f":"Import!M32623","v":0},{"$f":"Import!M32823","v":0}]
[159,{"$f":"Import!M30624","v":"Select"},{"$f":"Import!M30824","v":"Select"},{"$f":"Import!M31024","v":"Select"},{"$f":"Import!M31224","v":"Select"},{"$f":"Import!M31424","v":"Select"},{"$f":"Import!M31624","v":"Select"},{"$f":"Import!M31824","v":"Select"},{"$f":"Import!M32024","v":0},{"$f":"Import!M32224","v":0},{"$f":"Import!M32424","v":0},{"$f":"Import!M32624","v":0},{"$f":"Import!M32824","v":0}]
[160,{"$f":"Import!M30625","v":"Select"},{"$f":"Import!M30825","v":"Select"},{"$f":"Import!M31025","v":"Select"},{"$f":"Import!M31225","v":"Select"},{"$f":"Import!M31425","v":"Select"},{"$f":"Import!M31625","v":"Select"},{"$f":"Import!M31825","v":"Select"},{"$f":"Import!M32025","v":0},{"$f":"Import!M32225","v":0},{"$f":"Import!M32425","v":0},{"$f":"Import!M32625","v":0},{"$f":"Import!M32825","v":0}]
[161,{"$f":"Import!M30626","v":"Select"},{"$f":"Import!M30826","v":"Select"},{"$f":"Import!M31026","v":"Select"},{"$f":"Import!M31226","v":"Select"},{"$f":"Import!M31426","v":"Select"},{"$f":"Import!M31626","v":"Select"},{"$f":"Import!M31826","v":"Select"},{"$f":"Import!M32026","v":0},{"$f":"Import!M32226","v":0},{"$f":"Import!M32426","v":0},{"$f":"Import!M32626","v":0},{"$f":"Import!M32826","v":0}]
[162,{"$f":"Import!M30627","v":"Select"},{"$f":"Import!M30827","v":"Select"},{"$f":"Import!M31027","v":"Select"},{"$f":"Import!M31227","v":"Select"},{"$f":"Import!M31427","v":"Select"},{"$f":"Import!M31627","v":"Select"},{"$f":"Import!M31827","v":"Select"},{"$f":"Import!M32027","v":0},{"$f":"Import!M32227","v":0},{"$f":"Import!M32427","v":0},{"$f":"Import!M32627","v":0},{"$f":"Import!M32827","v":0}]
[163,{"$f":"Import!M30628","v":"Select"},{"$f":"Import!M30828","v":"Select"},{"$f":"Import!M31028","v":"Select"},{"$f":"Import!M31228","v":"Select"},{"$f":"Import!M31428","v":"Select"},{"$f":"Import!M31628","v":"Select"},{"$f":"Import!M31828","v":"Select"},{"$f":"Import!M32028","v":0},{"$f":"Import!M32228","v":0},{"$f":"Import!M32428","v":0},{"$f":"Import!M32628","v":0},{"$f":"Import!M32828","v":0}]
[164,{"$f":"Import!M30629","v":"Select"},{"$f":"Import!M30829","v":"Select"},{"$f":"Import!M31029","v":"Select"},{"$f":"Import!M31229","v":"Select"},{"$f":"Import!M31429","v":"Select"},{"$f":"Import!M31629","v":"Select"},{"$f":"Import!M31829","v":"Select"},{"$f":"Import!M32029","v":0},{"$f":"Import!M32229","v":0},{"$f":"Import!M32429","v":0},{"$f":"Import!M32629","v":0},{"$f":"Import!M32829","v":0}]
[165,{"$f":"Import!M30630","v":"Select"},{"$f":"Import!M30830","v":"Select"},{"$f":"Import!M31030","v":"Select"},{"$f":"Import!M31230","v":"Select"},{"$f":"Import!M31430","v":"Select"},{"$f":"Import!M31630","v":"Select"},{"$f":"Import!M31830","v":"Select"},{"$f":"Import!M32030","v":0},{"$f":"Import!M32230","v":0},{"$f":"Import!M32430","v":0},{"$f":"Import!M32630","v":0},{"$f":"Import!M32830","v":0}]
[166,{"$f":"Import!M30631","v":"Select"},{"$f":"Import!M30831","v":"Select"},{"$f":"Import!M31031","v":"Select"},{"$f":"Import!M31231","v":"Select"},{"$f":"Import!M31431","v":"Select"},{"$f":"Import!M31631","v":"Select"},{"$f":"Import!M31831","v":"Select"},{"$f":"Import!M32031","v":0},{"$f":"Import!M32231","v":0},{"$f":"Import!M32431","v":0},{"$f":"Import!M32631","v":0},{"$f":"Import!M32831","v":0}]
[167,{"$f":"Import!M30632","v":"Select"},{"$f":"Import!M30832","v":"Select"},{"$f":"Import!M31032","v":"Select"},{"$f":"Import!M31232","v":"Select"},{"$f":"Import!M31432","v":"Select"},{"$f":"Import!M31632","v":"Select"},{"$f":"Import!M31832","v":"Select"},{"$f":"Import!M32032","v":0},{"$f":"Import!M32232","v":0},{"$f":"Import!M32432","v":0},{"$f":"Import!M32632","v":0},{"$f":"Import!M32832","v":0}]
[168,{"$f":"Import!M30633","v":"Select"},{"$f":"Import!M30833","v":"Select"},{"$f":"Import!M31033","v":"Select"},{"$f":"Import!M31233","v":"Select"},{"$f":"Import!M31433","v":"Select"},{"$f":"Import!M31633","v":"Select"},{"$f":"Import!M31833","v":"Select"},{"$f":"Import!M32033","v":0},{"$f":"Import!M32233","v":0},{"$f":"Import!M32433","v":0},{"$f":"Import!M32633","v":0},{"$f":"Import!M32833","v":0}]
[169,{"$f":"Import!M30634","v":"Select"},{"$f":"Import!M30834","v":"Select"},{"$f":"Import!M31034","v":"Select"},{"$f":"Import!M31234","v":"Select"},{"$f":"Import!M31434","v":"Select"},{"$f":"Import!M31634","v":"Select"},{"$f":"Import!M31834","v":"Select"},{"$f":"Import!M32034","v":0},{"$f":"Import!M32234","v":0},{"$f":"Import!M32434","v":0},{"$f":"Import!M32634","v":0},{"$f":"Import!M32834","v":0}]
[170,{"$f":"Import!M30635","v":"Select"},{"$f":"Import!M30835","v":"Select"},{"$f":"Import!M31035","v":"Select"},{"$f":"Import!M31235","v":"Select"},{"$f":"Import!M31435","v":"Select"},{"$f":"Import!M31635","v":"Select"},{"$f":"Import!M31835","v":"Select"},{"$f":"Import!M32035","v":0},{"$f":"Import!M32235","v":0},{"$f":"Import!M32435","v":0},{"$f":"Import!M32635","v":0},{"$f":"Import!M32835","v":0}]
[171,{"$f":"Import!M30636","v":"Select"},{"$f":"Import!M30836","v":"Select"},{"$f":"Import!M31036","v":"Select"},{"$f":"Import!M31236","v":"Select"},{"$f":"Import!M31436","v":"Select"},{"$f":"Import!M31636","v":"Select"},{"$f":"Import!M31836","v":"Select"},{"$f":"Import!M32036","v":0},{"$f":"Import!M32236","v":0},{"$f":"Import!M32436","v":0},{"$f":"Import!M32636","v":0},{"$f":"Import!M32836","v":0}]
[172,{"$f":"Import!M30637","v":"Select"},{"$f":"Import!M30837","v":"Select"},{"$f":"Import!M31037","v":"Select"},{"$f":"Import!M31237","v":"Select"},{"$f":"Import!M31437","v":"Select"},{"$f":"Import!M31637","v":"Select"},{"$f":"Import!M31837","v":"Select"},{"$f":"Import!M32037","v":0},{"$f":"Import!M32237","v":0},{"$f":"Import!M32437","v":0},{"$f":"Import!M32637","v":0},{"$f":"Import!M32837","v":0}]
[173,{"$f":"Import!M30638","v":"Select"},{"$f":"Import!M30838","v":"Select"},{"$f":"Import!M31038","v":"Select"},{"$f":"Import!M31238","v":"Select"},{"$f":"Import!M31438","v":"Select"},{"$f":"Import!M31638","v":"Select"},{"$f":"Import!M31838","v":"Select"},{"$f":"Import!M32038","v":0},{"$f":"Import!M32238","v":0},{"$f":"Import!M32438","v":0},{"$f":"Import!M32638","v":0},{"$f":"Import!M32838","v":0}]
[174,{"$f":"Import!M30639","v":"Select"},{"$f":"Import!M30839","v":"Select"},{"$f":"Import!M31039","v":"Select"},{"$f":"Import!M31239","v":"Select"},{"$f":"Import!M31439","v":"Select"},{"$f":"Import!M31639","v":"Select"},{"$f":"Import!M31839","v":"Select"},{"$f":"Import!M32039","v":0},{"$f":"Import!M32239","v":0},{"$f":"Import!M32439","v":0},{"$f":"Import!M32639","v":0},{"$f":"Import!M32839","v":0}]
[175,{"$f":"Import!M30640","v":"Select"},{"$f":"Import!M30840","v":"Select"},{"$f":"Import!M31040","v":"Select"},{"$f":"Import!M31240","v":"Select"},{"$f":"Import!M31440","v":"Select"},{"$f":"Import!M31640","v":"Select"},{"$f":"Import!M31840","v":"Select"},{"$f":"Import!M32040","v":0},{"$f":"Import!M32240","v":0},{"$f":"Import!M32440","v":0},{"$f":"Import!M32640","v":0},{"$f":"Import!M32840","v":0}]
[176,{"$f":"Import!M30641","v":"Select"},{"$f":"Import!M30841","v":"Select"},{"$f":"Import!M31041","v":"Select"},{"$f":"Import!M31241","v":"Select"},{"$f":"Import!M31441","v":"Select"},{"$f":"Import!M31641","v":"Select"},{"$f":"Import!M31841","v":"Select"},{"$f":"Import!M32041","v":0},{"$f":"Import!M32241","v":0},{"$f":"Import!M32441","v":0},{"$f":"Import!M32641","v":0},{"$f":"Import!M32841","v":0}]
[177,{"$f":"Import!M30642","v":"Select"},{"$f":"Import!M30842","v":"Select"},{"$f":"Import!M31042","v":"Select"},{"$f":"Import!M31242","v":"Select"},{"$f":"Import!M31442","v":"Select"},{"$f":"Import!M31642","v":"Select"},{"$f":"Import!M31842","v":"Select"},{"$f":"Import!M32042","v":0},{"$f":"Import!M32242","v":0},{"$f":"Import!M32442","v":0},{"$f":"Import!M32642","v":0},{"$f":"Import!M32842","v":0}]
[178,{"$f":"Import!M30643","v":"Select"},{"$f":"Import!M30843","v":"Select"},{"$f":"Import!M31043","v":"Select"},{"$f":"Import!M31243","v":"Select"},{"$f":"Import!M31443","v":"Select"},{"$f":"Import!M31643","v":"Select"},{"$f":"Import!M31843","v":"Select"},{"$f":"Import!M32043","v":0},{"$f":"Import!M32243","v":0},{"$f":"Import!M32443","v":0},{"$f":"Import!M32643","v":0},{"$f":"Import!M32843","v":0}]
[179,{"$f":"Import!M30644","v":"Select"},{"$f":"Import!M30844","v":"Select"},{"$f":"Import!M31044","v":"Select"},{"$f":"Import!M31244","v":"Select"},{"$f":"Import!M31444","v":"Select"},{"$f":"Import!M31644","v":"Select"},{"$f":"Import!M31844","v":"Select"},{"$f":"Import!M32044","v":0},{"$f":"Import!M32244","v":0},{"$f":"Import!M32444","v":0},{"$f":"Import!M32644","v":0},{"$f":"Import!M32844","v":0}]
[180,{"$f":"Import!M30645","v":"Select"},{"$f":"Import!M30845","v":"Select"},{"$f":"Import!M31045","v":"Select"},{"$f":"Import!M31245","v":"Select"},{"$f":"Import!M31445","v":"Select"},{"$f":"Import!M31645","v":"Select"},{"$f":"Import!M31845","v":"Select"},{"$f":"Import!M32045","v":0},{"$f":"Import!M32245","v":0},{"$f":"Import!M32445","v":0},{"$f":"Import!M32645","v":0},{"$f":"Import!M32845","v":0}]
[181,{"$f":"Import!M30646","v":"Select"},{"$f":"Import!M30846","v":"Select"},{"$f":"Import!M31046","v":"Select"},{"$f":"Import!M31246","v":"Select"},{"$f":"Import!M31446","v":"Select"},{"$f":"Import!M31646","v":"Select"},{"$f":"Import!M31846","v":"Select"},{"$f":"Import!M32046","v":0},{"$f":"Import!M32246","v":0},{"$f":"Import!M32446","v":0},{"$f":"Import!M32646","v":0},{"$f":"Import!M32846","v":0}]
[182,{"$f":"Import!M30647","v":"Select"},{"$f":"Import!M30847","v":"Select"},{"$f":"Import!M31047","v":"Select"},{"$f":"Import!M31247","v":"Select"},{"$f":"Import!M31447","v":"Select"},{"$f":"Import!M31647","v":"Select"},{"$f":"Import!M31847","v":"Select"},{"$f":"Import!M32047","v":0},{"$f":"Import!M32247","v":0},{"$f":"Import!M32447","v":0},{"$f":"Import!M32647","v":0},{"$f":"Import!M32847","v":0}]
[183,{"$f":"Import!M30648","v":"Select"},{"$f":"Import!M30848","v":"Select"},{"$f":"Import!M31048","v":"Select"},{"$f":"Import!M31248","v":"Select"},{"$f":"Import!M31448","v":"Select"},{"$f":"Import!M31648","v":"Select"},{"$f":"Import!M31848","v":"Select"},{"$f":"Import!M32048","v":0},{"$f":"Import!M32248","v":0},{"$f":"Import!M32448","v":0},{"$f":"Import!M32648","v":0},{"$f":"Import!M32848","v":0}]
[184,{"$f":"Import!M30649","v":"Select"},{"$f":"Import!M30849","v":"Select"},{"$f":"Import!M31049","v":"Select"},{"$f":"Import!M31249","v":"Select"},{"$f":"Import!M31449","v":"Select"},{"$f":"Import!M31649","v":"Select"},{"$f":"Import!M31849","v":"Select"},{"$f":"Import!M32049","v":0},{"$f":"Import!M32249","v":0},{"$f":"Import!M32449","v":0},{"$f":"Import!M32649","v":0},{"$f":"Import!M32849","v":0}]
[185,{"$f":"Import!M30650","v":"Select"},{"$f":"Import!M30850","v":"Select"},{"$f":"Import!M31050","v":"Select"},{"$f":"Import!M31250","v":"Select"},{"$f":"Import!M31450","v":"Select"},{"$f":"Import!M31650","v":"Select"},{"$f":"Import!M31850","v":"Select"},{"$f":"Import!M32050","v":0},{"$f":"Import!M32250","v":0},{"$f":"Import!M32450","v":0},{"$f":"Import!M32650","v":0},{"$f":"Import!M32850","v":0}]
[186,{"$f":"Import!M30651","v":"Select"},{"$f":"Import!M30851","v":"Select"},{"$f":"Import!M31051","v":"Select"},{"$f":"Import!M31251","v":"Select"},{"$f":"Import!M31451","v":"Select"},{"$f":"Import!M31651","v":"Select"},{"$f":"Import!M31851","v":"Select"},{"$f":"Import!M32051","v":0},{"$f":"Import!M32251","v":0},{"$f":"Import!M32451","v":0},{"$f":"Import!M32651","v":0},{"$f":"Import!M32851","v":0}]
[187,{"$f":"Import!M30652","v":"Select"},{"$f":"Import!M30852","v":"Select"},{"$f":"Import!M31052","v":"Select"},{"$f":"Import!M31252","v":"Select"},{"$f":"Import!M31452","v":"Select"},{"$f":"Import!M31652","v":"Select"},{"$f":"Import!M31852","v":"Select"},{"$f":"Import!M32052","v":0},{"$f":"Import!M32252","v":0},{"$f":"Import!M32452","v":0},{"$f":"Import!M32652","v":0},{"$f":"Import!M32852","v":0}]
[188,{"$f":"Import!M30653","v":"Select"},{"$f":"Import!M30853","v":"Select"},{"$f":"Import!M31053","v":"Select"},{"$f":"Import!M31253","v":"Select"},{"$f":"Import!M31453","v":"Select"},{"$f":"Import!M31653","v":"Select"},{"$f":"Import!M31853","v":"Select"},{"$f":"Import!M32053","v":0},{"$f":"Import!M32253","v":0},{"$f":"Import!M32453","v":0},{"$f":"Import!M32653","v":0},{"$f":"Import!M32853","v":0}]
[189,{"$f":"Import!M30654","v":"Select"},{"$f":"Import!M30854","v":"Select"},{"$f":"Import!M31054","v":"Select"},{"$f":"Import!M31254","v":"Select"},{"$f":"Import!M31454","v":"Select"},{"$f":"Import!M31654","v":"Select"},{"$f":"Import!M31854","v":"Select"},{"$f":"Import!M32054","v":0},{"$f":"Import!M32254","v":0},{"$f":"Import!M32454","v":0},{"$f":"Import!M32654","v":0},{"$f":"Import!M32854","v":0}]
[190,{"$f":"Import!M30655","v":"Select"},{"$f":"Import!M30855","v":"Select"},{"$f":"Import!M31055","v":"Select"},{"$f":"Import!M31255","v":"Select"},{"$f":"Import!M31455","v":"Select"},{"$f":"Import!M31655","v":"Select"},{"$f":"Import!M31855","v":"Select"},{"$f":"Import!M32055","v":0},{"$f":"Import!M32255","v":0},{"$f":"Import!M32455","v":0},{"$f":"Import!M32655","v":0},{"$f":"Import!M32855","v":0}]
[191,{"$f":"Import!M30656","v":"Select"},{"$f":"Import!M30856","v":"Select"},{"$f":"Import!M31056","v":"Select"},{"$f":"Import!M31256","v":"Select"},{"$f":"Import!M31456","v":"Select"},{"$f":"Import!M31656","v":"Select"},{"$f":"Import!M31856","v":"Select"},{"$f":"Import!M32056","v":0},{"$f":"Import!M32256","v":0},{"$f":"Import!M32456","v":0},{"$f":"Import!M32656","v":0},{"$f":"Import!M32856","v":0}]
[192,{"$f":"Import!M30657","v":"Select"},{"$f":"Import!M30857","v":"Select"},{"$f":"Import!M31057","v":"Select"},{"$f":"Import!M31257","v":"Select"},{"$f":"Import!M31457","v":"Select"},{"$f":"Import!M31657","v":"Select"},{"$f":"Import!M31857","v":"Select"},{"$f":"Import!M32057","v":0},{"$f":"Import!M32257","v":0},{"$f":"Import!M32457","v":0},{"$f":"Import!M32657","v":0},{"$f":"Import!M32857","v":0}]
[193,{"$f":"Import!M30658","v":"Select"},{"$f":"Import!M30858","v":"Select"},{"$f":"Import!M31058","v":"Select"},{"$f":"Import!M31258","v":"Select"},{"$f":"Import!M31458","v":"Select"},{"$f":"Import!M31658","v":"Select"},{"$f":"Import!M31858","v":"Select"},{"$f":"Import!M32058","v":0},{"$f":"Import!M32258","v":0},{"$f":"Import!M32458","v":0},{"$f":"Import!M32658","v":0},{"$f":"Import!M32858","v":0}]
[194,{"$f":"Import!M30659","v":"Select"},{"$f":"Import!M30859","v":"Select"},{"$f":"Import!M31059","v":"Select"},{"$f":"Import!M31259","v":"Select"},{"$f":"Import!M31459","v":"Select"},{"$f":"Import!M31659","v":"Select"},{"$f":"Import!M31859","v":"Select"},{"$f":"Import!M32059","v":0},{"$f":"Import!M32259","v":0},{"$f":"Import!M32459","v":0},{"$f":"Import!M32659","v":0},{"$f":"Import!M32859","v":0}]
[{"$f":"A1753+1","v":195},{"$f":"Import!M30660","v":"Select"},{"$f":"Import!M30860","v":"Select"},{"$f":"Import!M31060","v":"Select"},{"$f":"Import!M31260","v":"Select"},{"$f":"Import!M31460","v":"Select"},{"$f":"Import!M31660","v":"Select"},{"$f":"Import!M31860","v":"Select"},{"$f":"Import!M32060","v":0},{"$f":"Import!M32260","v":0},{"$f":"Import!M32460","v":0},{"$f":"Import!M32660","v":0},{"$f":"Import!M32860","v":0}]
[196,{"$f":"Import!M30661","v":"Select"},{"$f":"Import!M30861","v":"Select"},{"$f":"Import!M31061","v":"Select"},{"$f":"Import!M31261","v":"Select"},{"$f":"Import!M31461","v":"Select"},{"$f":"Import!M31661","v":"Select"},{"$f":"Import!M31861","v":"Select"},{"$f":"Import!M32061","v":0},{"$f":"Import!M32261","v":0},{"$f":"Import!M32461","v":0},{"$f":"Import!M32661","v":0},{"$f":"Import!M32861","v":0}]
[197,{"$f":"Import!M30662","v":"Select"},{"$f":"Import!M30862","v":"Select"},{"$f":"Import!M31062","v":"Select"},{"$f":"Import!M31262","v":"Select"},{"$f":"Import!M31462","v":"Select"},{"$f":"Import!M31662","v":"Select"},{"$f":"Import!M31862","v":"Select"},{"$f":"Import!M32062","v":0},{"$f":"Import!M32262","v":0},{"$f":"Import!M32462","v":0},{"$f":"Import!M32662","v":0},{"$f":"Import!M32862","v":0}]
[198,{"$f":"Import!M30663","v":"Select"},{"$f":"Import!M30863","v":"Select"},{"$f":"Import!M31063","v":"Select"},{"$f":"Import!M31263","v":"Select"},{"$f":"Import!M31463","v":"Select"},{"$f":"Import!M31663","v":"Select"},{"$f":"Import!M31863","v":"Select"},{"$f":"Import!M32063","v":0},{"$f":"Import!M32263","v":0},{"$f":"Import!M32463","v":0},{"$f":"Import!M32663","v":0},{"$f":"Import!M32863","v":0}]
[199,{"$f":"Import!M30664","v":"Select"},{"$f":"Import!M30864","v":"Select"},{"$f":"Import!M31064","v":"Select"},{"$f":"Import!M31264","v":"Select"},{"$f":"Import!M31464","v":"Select"},{"$f":"Import!M31664","v":"Select"},{"$f":"Import!M31864","v":"Select"},{"$f":"Import!M32064","v":0},{"$f":"Import!M32264","v":0},{"$f":"Import!M32464","v":0},{"$f":"Import!M32664","v":0},{"$f":"Import!M32864","v":0}]
[200,{"$f":"Import!M30665","v":"Select"},{"$f":"Import!M30865","v":"Select"},{"$f":"Import!M31065","v":"Select"},{"$f":"Import!M31265","v":"Select"},{"$f":"Import!M31465","v":"Select"},{"$f":"Import!M31665","v":"Select"},{"$f":"Import!M31865","v":"Select"},{"$f":"Import!M32065","v":0},{"$f":"Import!M32265","v":0},{"$f":"Import!M32465","v":0},{"$f":"Import!M32665","v":0},{"$f":"Import!M32865","v":0}]
[]
[null,"Total Derivatives",null,null,null,null,null,null,{"$f":"SUM(I1560:I1759)","v":0},{"$f":"SUM(J1560:J1759)","v":0},{"$f":"SUM(K1560:K1759)","v":0}]
[]
[null,"(J) INFORMATION ON EXPOSURES TO FINANCIAL INSTITUTIONS AND UNLISTED COUNTERPARTIES"]
[null,null,null,null,null,"Commercial Loans and Mortgages"]
[null,null,{"$f":"YEAR($C$3)","v":2023},"Fair Value",null,null,"Securitisations ","Other debt securities"]
[null,"Financial Institutions","Equities","Corporate Bonds","Corporate Loans",null,null,null,null,"Comments"]
[1,"Exposure to Financial Institutions (Banks, Insurance Companies, Other Financials) - Investment Grade, BSCR Rating 1-3",{"$f":"Import!M32866","v":0},{"$f":"Import!M32870","v":0},{"$f":"Import!M32874","v":0},{"$f":"Import!M32878","v":0},{"$f":"Import!M32882","v":0},{"$f":"Import!M32886","v":0},null,{"$f":"Import!M32890","v":0}]
[2,"Exposure to Financial Institutions (Banks, Insurance Companies, Other Financials) - Investment Grade, BSCR Rating 4",{"$f":"Import!M32867","v":0},{"$f":"Import!M32871","v":0},{"$f":"Import!M32875","v":0},{"$f":"Import!M32879","v":0},{"$f":"Import!M32883","v":0},{"$f":"Import!M32887","v":0},null,{"$f":"Import!M32891","v":0}]
[3,"Exposure to Financial Institutions (Banks, Insurance Companies, Other Financials) - Below Investment Grade",{"$f":"Import!M32868","v":0},{"$f":"Import!M32872","v":0},{"$f":"Import!M32876","v":0},{"$f":"Import!M32880","v":0},{"$f":"Import!M32884","v":0},{"$f":"Import!M32888","v":0},null,{"$f":"Import!M32892","v":0}]
[4,"Exposure to Financial Institutions (Banks, Insurance Companies, Other Financials) - Unrated",{"$f":"Import!M32869","v":0},{"$f":"Import!M32873","v":0},{"$f":"Import!M32877","v":0},{"$f":"Import!M32881","v":0},{"$f":"Import!M32885","v":0},{"$f":"Import!M32889","v":0},null,{"$f":"Import!M32893","v":0}]
[]
[null,"Total Exposures to Financial Institutions",{"$f":"SUM(C1767:C1770)","v":0},{"$f":"SUM(D1767:D1770)","v":0},0,0,0,0]
[]
[null,"Of which","Equities","Corporate Bonds","Corporate Loans","Other",null,null,null,"Comments"]
[5,"- exposures to Banks",{"$f":"Import!M32894","v":0},{"$f":"Import!M32897","v":0},{"$f":"Import!M32900","v":0},{"$f":"Import!M32903","v":0},null,null,null,{"$f":"Import!M32906","v":0}]
[6,"- exposures to Insurers",{"$f":"Import!M32895","v":0},{"$f":"Import!M32898","v":0},{"$f":"Import!M32901","v":0},{"$f":"Import!M32904","v":0},null,null,null,{"$f":"Import!M32907","v":0}]
[7,"- exposures to Other Financial Institutions",{"$f":"Import!M32896","v":0},{"$f":"Import!M32899","v":0},{"$f":"Import!M32902","v":0},{"$f":"Import!M32905","v":0},null,null,null,{"$f":"Import!M32908","v":0}]
[]
[null,"Total Exposures",{"$f":"SUM(C1775:C1777)","v":0},{"$f":"SUM(D1775:D1777)","v":0},{"$f":"SUM(E1775:E1777)","v":0},{"$f":"SUM(F1775:F1777)","v":0}]
[]
[null,null,{"$f":"YEAR($C$3)","v":2023},"Fair Value"]
[null,"Unlisted Counterparties","Equities","Corporate Bonds","Corporate Loans","Other",null,null,null,"Comments"]
[8,"Direct Exposure to Unlisted Counterparties - Investment Grade, BSCR Rating 1-3",{"$f":"Import!M32909","v":0},{"$f":"Import!M32913","v":0},{"$f":"Import!M32917","v":0},{"$f":"Import!M32921","v":0},null,null,null,{"$f":"Import!M32925","v":0}]
[9,"Direct Exposure to Unlisted Counterparties - Investment Grade, BSCR Rating 4",{"$f":"Import!M32910","v":0},{"$f":"Import!M32914","v":0},{"$f":"Import!M32918","v":0},{"$f":"Import!M32922","v":0},null,null,null,{"$f":"Import!M32926","v":0}]
[10,"Direct Exposure to Unlisted Counterparties - Below Investment Grade",{"$f":"Import!M32911","v":0},{"$f":"Import!M32915","v":0},{"$f":"Import!M32919","v":0},{"$f":"Import!M32923","v":0},null,null,null,{"$f":"Import!M32927","v":0}]
[11,"Direct Exposure to Unlisted Counterparties - Unrated",{"$f":"Import!M32912","v":0},{"$f":"Import!M32916","v":0},{"$f":"Import!M32920","v":0},{"$f":"Import!M32924","v":0},null,null,null,{"$f":"Import!M32928","v":0}]
[]
[null,"Total Direct Exposures to Unlisted Counterparties",{"$f":"SUM(C1783:C1786)","v":0},{"$f":"SUM(D1783:D1786)","v":0},0,0]
[]
[null,"(K) OTHER ASSETS"]
[]
[null,null,"Enter # of Asset Types",{"$f":"Import!M32929","v":0}]
[]
[null,null,null,null,{"$f":"YEAR($C$3)","v":2023},2023]
[null,"Asset Type","Currency","BSCR Rating","Nominal Amount","Fair Value","Comments"]
[1,{"$f":"Import!M32930","v":"Select"},{"$f":"Import!M33130","v":"Select"},{"$f":"Import!M33330","v":"Select"},{"$f":"Import!M33530","v":0},{"$f":"Import!M33730","v":0},{"$f":"Import!M33930","v":0}]
[{"$f":"A1796+1","v":2},{"$f":"Import!M32931","v":"Select"},{"$f":"Import!M33131","v":"Select"},{"$f":"Import!M33331","v":"Select"},{"$f":"Import!M33531","v":0},{"$f":"Import!M33731","v":0},{"$f":"Import!M33931","v":0}]
[{"$f":"A1797+1","v":3},{"$f":"Import!M32932","v":"Select"},{"$f":"Import!M33132","v":"Select"},{"$f":"Import!M33332","v":"Select"},{"$f":"Import!M33532","v":0},{"$f":"Import!M33732","v":0},{"$f":"Import!M33932","v":0}]
[4,{"$f":"Import!M32933","v":"Select"},{"$f":"Import!M33133","v":"Select"},{"$f":"Import!M33333","v":"Select"},{"$f":"Import!M33533","v":0},{"$f":"Import!M33733","v":0},{"$f":"Import!M33933","v":0}]
[5,{"$f":"Import!M32934","v":"Select"},{"$f":"Import!M33134","v":"Select"},{"$f":"Import!M33334","v":"Select"},{"$f":"Import!M33534","v":0},{"$f":"Import!M33734","v":0},{"$f":"Import!M33934","v":0}]
[6,{"$f":"Import!M32935","v":"Select"},{"$f":"Import!M33135","v":"Select"},{"$f":"Import!M33335","v":"Select"},{"$f":"Import!M33535","v":0},{"$f":"Import!M33735","v":0},{"$f":"Import!M33935","v":0}]
[7,{"$f":"Import!M32936","v":"Select"},{"$f":"Import!M33136","v":"Select"},{"$f":"Import!M33336","v":"Select"},{"$f":"Import!M33536","v":0},{"$f":"Import!M33736","v":0},{"$f":"Import!M33936","v":0}]
[8,{"$f":"Import!M32937","v":"Select"},{"$f":"Import!M33137","v":"Select"},{"$f":"Import!M33337","v":"Select"},{"$f":"Import!M33537","v":0},{"$f":"Import!M33737","v":0},{"$f":"Import!M33937","v":0}]
[9,{"$f":"Import!M32938","v":"Select"},{"$f":"Import!M33138","v":"Select"},{"$f":"Import!M33338","v":"Select"},{"$f":"Import!M33538","v":0},{"$f":"Import!M33738","v":0},{"$f":"Import!M33938","v":0}]
[10,{"$f":"Import!M32939","v":"Select"},{"$f":"Import!M33139","v":"Select"},{"$f":"Import!M33339","v":"Select"},{"$f":"Import!M33539","v":0},{"$f":"Import!M33739","v":0},{"$f":"Import!M33939","v":0}]
[11,{"$f":"Import!M32940","v":"Select"},{"$f":"Import!M33140","v":"Select"},{"$f":"Import!M33340","v":"Select"},{"$f":"Import!M33540","v":0},{"$f":"Import!M33740","v":0},{"$f":"Import!M33940","v":0}]
[12,{"$f":"Import!M32941","v":"Select"},{"$f":"Import!M33141","v":"Select"},{"$f":"Import!M33341","v":"Select"},{"$f":"Import!M33541","v":0},{"$f":"Import!M33741","v":0},{"$f":"Import!M33941","v":0}]
[13,{"$f":"Import!M32942","v":"Select"},{"$f":"Import!M33142","v":"Select"},{"$f":"Import!M33342","v":"Select"},{"$f":"Import!M33542","v":0},{"$f":"Import!M33742","v":0},{"$f":"Import!M33942","v":0}]
[14,{"$f":"Import!M32943","v":"Select"},{"$f":"Import!M33143","v":"Select"},{"$f":"Import!M33343","v":"Select"},{"$f":"Import!M33543","v":0},{"$f":"Import!M33743","v":0},{"$f":"Import!M33943","v":0}]
[15,{"$f":"Import!M32944","v":"Select"},{"$f":"Import!M33144","v":"Select"},{"$f":"Import!M33344","v":"Select"},{"$f":"Import!M33544","v":0},{"$f":"Import!M33744","v":0},{"$f":"Import!M33944","v":0}]
[16,{"$f":"Import!M32945","v":"Select"},{"$f":"Import!M33145","v":"Select"},{"$f":"Import!M33345","v":"Select"},{"$f":"Import!M33545","v":0},{"$f":"Import!M33745","v":0},{"$f":"Import!M33945","v":0}]
[17,{"$f":"Import!M32946","v":"Select"},{"$f":"Import!M33146","v":"Select"},{"$f":"Import!M33346","v":"Select"},{"$f":"Import!M33546","v":0},{"$f":"Import!M33746","v":0},{"$f":"Import!M33946","v":0}]
[18,{"$f":"Import!M32947","v":"Select"},{"$f":"Import!M33147","v":"Select"},{"$f":"Import!M33347","v":"Select"},{"$f":"Import!M33547","v":0},{"$f":"Import!M33747","v":0},{"$f":"Import!M33947","v":0}]
[19,{"$f":"Import!M32948","v":"Select"},{"$f":"Import!M33148","v":"Select"},{"$f":"Import!M33348","v":"Select"},{"$f":"Import!M33548","v":0},{"$f":"Import!M33748","v":0},{"$f":"Import!M33948","v":0}]
[20,{"$f":"Import!M32949","v":"Select"},{"$f":"Import!M33149","v":"Select"},{"$f":"Import!M33349","v":"Select"},{"$f":"Import!M33549","v":0},{"$f":"Import!M33749","v":0},{"$f":"Import!M33949","v":0}]
[21,{"$f":"Import!M32950","v":"Select"},{"$f":"Import!M33150","v":"Select"},{"$f":"Import!M33350","v":"Select"},{"$f":"Import!M33550","v":0},{"$f":"Import!M33750","v":0},{"$f":"Import!M33950","v":0}]
[22,{"$f":"Import!M32951","v":"Select"},{"$f":"Import!M33151","v":"Select"},{"$f":"Import!M33351","v":"Select"},{"$f":"Import!M33551","v":0},{"$f":"Import!M33751","v":0},{"$f":"Import!M33951","v":0}]
[23,{"$f":"Import!M32952","v":"Select"},{"$f":"Import!M33152","v":"Select"},{"$f":"Import!M33352","v":"Select"},{"$f":"Import!M33552","v":0},{"$f":"Import!M33752","v":0},{"$f":"Import!M33952","v":0}]
[24,{"$f":"Import!M32953","v":"Select"},{"$f":"Import!M33153","v":"Select"},{"$f":"Import!M33353","v":"Select"},{"$f":"Import!M33553","v":0},{"$f":"Import!M33753","v":0},{"$f":"Import!M33953","v":0}]
[25,{"$f":"Import!M32954","v":"Select"},{"$f":"Import!M33154","v":"Select"},{"$f":"Import!M33354","v":"Select"},{"$f":"Import!M33554","v":0},{"$f":"Import!M33754","v":0},{"$f":"Import!M33954","v":0}]
[26,{"$f":"Import!M32955","v":"Select"},{"$f":"Import!M33155","v":"Select"},{"$f":"Import!M33355","v":"Select"},{"$f":"Import!M33555","v":0},{"$f":"Import!M33755","v":0},{"$f":"Import!M33955","v":0}]
[27,{"$f":"Import!M32956","v":"Select"},{"$f":"Import!M33156","v":"Select"},{"$f":"Import!M33356","v":"Select"},{"$f":"Import!M33556","v":0},{"$f":"Import!M33756","v":0},{"$f":"Import!M33956","v":0}]
[28,{"$f":"Import!M32957","v":"Select"},{"$f":"Import!M33157","v":"Select"},{"$f":"Import!M33357","v":"Select"},{"$f":"Import!M33557","v":0},{"$f":"Import!M33757","v":0},{"$f":"Import!M33957","v":0}]
[29,{"$f":"Import!M32958","v":"Select"},{"$f":"Import!M33158","v":"Select"},{"$f":"Import!M33358","v":"Select"},{"$f":"Import!M33558","v":0},{"$f":"Import!M33758","v":0},{"$f":"Import!M33958","v":0}]
[30,{"$f":"Import!M32959","v":"Select"},{"$f":"Import!M33159","v":"Select"},{"$f":"Import!M33359","v":"Select"},{"$f":"Import!M33559","v":0},{"$f":"Import!M33759","v":0},{"$f":"Import!M33959","v":0}]
[31,{"$f":"Import!M32960","v":"Select"},{"$f":"Import!M33160","v":"Select"},{"$f":"Import!M33360","v":"Select"},{"$f":"Import!M33560","v":0},{"$f":"Import!M33760","v":0},{"$f":"Import!M33960","v":0}]
[32,{"$f":"Import!M32961","v":"Select"},{"$f":"Import!M33161","v":"Select"},{"$f":"Import!M33361","v":"Select"},{"$f":"Import!M33561","v":0},{"$f":"Import!M33761","v":0},{"$f":"Import!M33961","v":0}]
[33,{"$f":"Import!M32962","v":"Select"},{"$f":"Import!M33162","v":"Select"},{"$f":"Import!M33362","v":"Select"},{"$f":"Import!M33562","v":0},{"$f":"Import!M33762","v":0},{"$f":"Import!M33962","v":0}]
[34,{"$f":"Import!M32963","v":"Select"},{"$f":"Import!M33163","v":"Select"},{"$f":"Import!M33363","v":"Select"},{"$f":"Import!M33563","v":0},{"$f":"Import!M33763","v":0},{"$f":"Import!M33963","v":0}]
[35,{"$f":"Import!M32964","v":"Select"},{"$f":"Import!M33164","v":"Select"},{"$f":"Import!M33364","v":"Select"},{"$f":"Import!M33564","v":0},{"$f":"Import!M33764","v":0},{"$f":"Import!M33964","v":0}]
[36,{"$f":"Import!M32965","v":"Select"},{"$f":"Import!M33165","v":"Select"},{"$f":"Import!M33365","v":"Select"},{"$f":"Import!M33565","v":0},{"$f":"Import!M33765","v":0},{"$f":"Import!M33965","v":0}]
[37,{"$f":"Import!M32966","v":"Select"},{"$f":"Import!M33166","v":"Select"},{"$f":"Import!M33366","v":"Select"},{"$f":"Import!M33566","v":0},{"$f":"Import!M33766","v":0},{"$f":"Import!M33966","v":0}]
[38,{"$f":"Import!M32967","v":"Select"},{"$f":"Import!M33167","v":"Select"},{"$f":"Import!M33367","v":"Select"},{"$f":"Import!M33567","v":0},{"$f":"Import!M33767","v":0},{"$f":"Import!M33967","v":0}]
[39,{"$f":"Import!M32968","v":"Select"},{"$f":"Import!M33168","v":"Select"},{"$f":"Import!M33368","v":"Select"},{"$f":"Import!M33568","v":0},{"$f":"Import!M33768","v":0},{"$f":"Import!M33968","v":0}]
[40,{"$f":"Import!M32969","v":"Select"},{"$f":"Import!M33169","v":"Select"},{"$f":"Import!M33369","v":"Select"},{"$f":"Import!M33569","v":0},{"$f":"Import!M33769","v":0},{"$f":"Import!M33969","v":0}]
[41,{"$f":"Import!M32970","v":"Select"},{"$f":"Import!M33170","v":"Select"},{"$f":"Import!M33370","v":"Select"},{"$f":"Import!M33570","v":0},{"$f":"Import!M33770","v":0},{"$f":"Import!M33970","v":0}]
[42,{"$f":"Import!M32971","v":"Select"},{"$f":"Import!M33171","v":"Select"},{"$f":"Import!M33371","v":"Select"},{"$f":"Import!M33571","v":0},{"$f":"Import!M33771","v":0},{"$f":"Import!M33971","v":0}]
[43,{"$f":"Import!M32972","v":"Select"},{"$f":"Import!M33172","v":"Select"},{"$f":"Import!M33372","v":"Select"},{"$f":"Import!M33572","v":0},{"$f":"Import!M33772","v":0},{"$f":"Import!M33972","v":0}]
[44,{"$f":"Import!M32973","v":"Select"},{"$f":"Import!M33173","v":"Select"},{"$f":"Import!M33373","v":"Select"},{"$f":"Import!M33573","v":0},{"$f":"Import!M33773","v":0},{"$f":"Import!M33973","v":0}]
[45,{"$f":"Import!M32974","v":"Select"},{"$f":"Import!M33174","v":"Select"},{"$f":"Import!M33374","v":"Select"},{"$f":"Import!M33574","v":0},{"$f":"Import!M33774","v":0},{"$f":"Import!M33974","v":0}]
[46,{"$f":"Import!M32975","v":"Select"},{"$f":"Import!M33175","v":"Select"},{"$f":"Import!M33375","v":"Select"},{"$f":"Import!M33575","v":0},{"$f":"Import!M33775","v":0},{"$f":"Import!M33975","v":0}]
[47,{"$f":"Import!M32976","v":"Select"},{"$f":"Import!M33176","v":"Select"},{"$f":"Import!M33376","v":"Select"},{"$f":"Import!M33576","v":0},{"$f":"Import!M33776","v":0},{"$f":"Import!M33976","v":0}]
[48,{"$f":"Import!M32977","v":"Select"},{"$f":"Import!M33177","v":"Select"},{"$f":"Import!M33377","v":"Select"},{"$f":"Import!M33577","v":0},{"$f":"Import!M33777","v":0},{"$f":"Import!M33977","v":0}]
[49,{"$f":"Import!M32978","v":"Select"},{"$f":"Import!M33178","v":"Select"},{"$f":"Import!M33378","v":"Select"},{"$f":"Import!M33578","v":0},{"$f":"Import!M33778","v":0},{"$f":"Import!M33978","v":0}]
[50,{"$f":"Import!M32979","v":"Select"},{"$f":"Import!M33179","v":"Select"},{"$f":"Import!M33379","v":"Select"},{"$f":"Import!M33579","v":0},{"$f":"Import!M33779","v":0},{"$f":"Import!M33979","v":0}]
[51,{"$f":"Import!M32980","v":"Select"},{"$f":"Import!M33180","v":"Select"},{"$f":"Import!M33380","v":"Select"},{"$f":"Import!M33580","v":0},{"$f":"Import!M33780","v":0},{"$f":"Import!M33980","v":0}]
[52,{"$f":"Import!M32981","v":"Select"},{"$f":"Import!M33181","v":"Select"},{"$f":"Import!M33381","v":"Select"},{"$f":"Import!M33581","v":0},{"$f":"Import!M33781","v":0},{"$f":"Import!M33981","v":0}]
[53,{"$f":"Import!M32982","v":"Select"},{"$f":"Import!M33182","v":"Select"},{"$f":"Import!M33382","v":"Select"},{"$f":"Import!M33582","v":0},{"$f":"Import!M33782","v":0},{"$f":"Import!M33982","v":0}]
[54,{"$f":"Import!M32983","v":"Select"},{"$f":"Import!M33183","v":"Select"},{"$f":"Import!M33383","v":"Select"},{"$f":"Import!M33583","v":0},{"$f":"Import!M33783","v":0},{"$f":"Import!M33983","v":0}]
[55,{"$f":"Import!M32984","v":"Select"},{"$f":"Import!M33184","v":"Select"},{"$f":"Import!M33384","v":"Select"},{"$f":"Import!M33584","v":0},{"$f":"Import!M33784","v":0},{"$f":"Import!M33984","v":0}]
[56,{"$f":"Import!M32985","v":"Select"},{"$f":"Import!M33185","v":"Select"},{"$f":"Import!M33385","v":"Select"},{"$f":"Import!M33585","v":0},{"$f":"Import!M33785","v":0},{"$f":"Import!M33985","v":0}]
[57,{"$f":"Import!M32986","v":"Select"},{"$f":"Import!M33186","v":"Select"},{"$f":"Import!M33386","v":"Select"},{"$f":"Import!M33586","v":0},{"$f":"Import!M33786","v":0},{"$f":"Import!M33986","v":0}]
[58,{"$f":"Import!M32987","v":"Select"},{"$f":"Import!M33187","v":"Select"},{"$f":"Import!M33387","v":"Select"},{"$f":"Import!M33587","v":0},{"$f":"Import!M33787","v":0},{"$f":"Import!M33987","v":0}]
[59,{"$f":"Import!M32988","v":"Select"},{"$f":"Import!M33188","v":"Select"},{"$f":"Import!M33388","v":"Select"},{"$f":"Import!M33588","v":0},{"$f":"Import!M33788","v":0},{"$f":"Import!M33988","v":0}]
[60,{"$f":"Import!M32989","v":"Select"},{"$f":"Import!M33189","v":"Select"},{"$f":"Import!M33389","v":"Select"},{"$f":"Import!M33589","v":0},{"$f":"Import!M33789","v":0},{"$f":"Import!M33989","v":0}]
[61,{"$f":"Import!M32990","v":"Select"},{"$f":"Import!M33190","v":"Select"},{"$f":"Import!M33390","v":"Select"},{"$f":"Import!M33590","v":0},{"$f":"Import!M33790","v":0},{"$f":"Import!M33990","v":0}]
[62,{"$f":"Import!M32991","v":"Select"},{"$f":"Import!M33191","v":"Select"},{"$f":"Import!M33391","v":"Select"},{"$f":"Import!M33591","v":0},{"$f":"Import!M33791","v":0},{"$f":"Import!M33991","v":0}]
[63,{"$f":"Import!M32992","v":"Select"},{"$f":"Import!M33192","v":"Select"},{"$f":"Import!M33392","v":"Select"},{"$f":"Import!M33592","v":0},{"$f":"Import!M33792","v":0},{"$f":"Import!M33992","v":0}]
[64,{"$f":"Import!M32993","v":"Select"},{"$f":"Import!M33193","v":"Select"},{"$f":"Import!M33393","v":"Select"},{"$f":"Import!M33593","v":0},{"$f":"Import!M33793","v":0},{"$f":"Import!M33993","v":0}]
[65,{"$f":"Import!M32994","v":"Select"},{"$f":"Import!M33194","v":"Select"},{"$f":"Import!M33394","v":"Select"},{"$f":"Import!M33594","v":0},{"$f":"Import!M33794","v":0},{"$f":"Import!M33994","v":0}]
[66,{"$f":"Import!M32995","v":"Select"},{"$f":"Import!M33195","v":"Select"},{"$f":"Import!M33395","v":"Select"},{"$f":"Import!M33595","v":0},{"$f":"Import!M33795","v":0},{"$f":"Import!M33995","v":0}]
[{"$f":"A1861+1","v":67},{"$f":"Import!M32996","v":"Select"},{"$f":"Import!M33196","v":"Select"},{"$f":"Import!M33396","v":"Select"},{"$f":"Import!M33596","v":0},{"$f":"Import!M33796","v":0},{"$f":"Import!M33996","v":0}]
[68,{"$f":"Import!M32997","v":"Select"},{"$f":"Import!M33197","v":"Select"},{"$f":"Import!M33397","v":"Select"},{"$f":"Import!M33597","v":0},{"$f":"Import!M33797","v":0},{"$f":"Import!M33997","v":0}]
[69,{"$f":"Import!M32998","v":"Select"},{"$f":"Import!M33198","v":"Select"},{"$f":"Import!M33398","v":"Select"},{"$f":"Import!M33598","v":0},{"$f":"Import!M33798","v":0},{"$f":"Import!M33998","v":0}]
[70,{"$f":"Import!M32999","v":"Select"},{"$f":"Import!M33199","v":"Select"},{"$f":"Import!M33399","v":"Select"},{"$f":"Import!M33599","v":0},{"$f":"Import!M33799","v":0},{"$f":"Import!M33999","v":0}]
[71,{"$f":"Import!M33000","v":"Select"},{"$f":"Import!M33200","v":"Select"},{"$f":"Import!M33400","v":"Select"},{"$f":"Import!M33600","v":0},{"$f":"Import!M33800","v":0},{"$f":"Import!M34000","v":0}]
[72,{"$f":"Import!M33001","v":"Select"},{"$f":"Import!M33201","v":"Select"},{"$f":"Import!M33401","v":"Select"},{"$f":"Import!M33601","v":0},{"$f":"Import!M33801","v":0},{"$f":"Import!M34001","v":0}]
[73,{"$f":"Import!M33002","v":"Select"},{"$f":"Import!M33202","v":"Select"},{"$f":"Import!M33402","v":"Select"},{"$f":"Import!M33602","v":0},{"$f":"Import!M33802","v":0},{"$f":"Import!M34002","v":0}]
[74,{"$f":"Import!M33003","v":"Select"},{"$f":"Import!M33203","v":"Select"},{"$f":"Import!M33403","v":"Select"},{"$f":"Import!M33603","v":0},{"$f":"Import!M33803","v":0},{"$f":"Import!M34003","v":0}]
[75,{"$f":"Import!M33004","v":"Select"},{"$f":"Import!M33204","v":"Select"},{"$f":"Import!M33404","v":"Select"},{"$f":"Import!M33604","v":0},{"$f":"Import!M33804","v":0},{"$f":"Import!M34004","v":0}]
[76,{"$f":"Import!M33005","v":"Select"},{"$f":"Import!M33205","v":"Select"},{"$f":"Import!M33405","v":"Select"},{"$f":"Import!M33605","v":0},{"$f":"Import!M33805","v":0},{"$f":"Import!M34005","v":0}]
[77,{"$f":"Import!M33006","v":"Select"},{"$f":"Import!M33206","v":"Select"},{"$f":"Import!M33406","v":"Select"},{"$f":"Import!M33606","v":0},{"$f":"Import!M33806","v":0},{"$f":"Import!M34006","v":0}]
[78,{"$f":"Import!M33007","v":"Select"},{"$f":"Import!M33207","v":"Select"},{"$f":"Import!M33407","v":"Select"},{"$f":"Import!M33607","v":0},{"$f":"Import!M33807","v":0},{"$f":"Import!M34007","v":0}]
[79,{"$f":"Import!M33008","v":"Select"},{"$f":"Import!M33208","v":"Select"},{"$f":"Import!M33408","v":"Select"},{"$f":"Import!M33608","v":0},{"$f":"Import!M33808","v":0},{"$f":"Import!M34008","v":0}]
[80,{"$f":"Import!M33009","v":"Select"},{"$f":"Import!M33209","v":"Select"},{"$f":"Import!M33409","v":"Select"},{"$f":"Import!M33609","v":0},{"$f":"Import!M33809","v":0},{"$f":"Import!M34009","v":0}]
[81,{"$f":"Import!M33010","v":"Select"},{"$f":"Import!M33210","v":"Select"},{"$f":"Import!M33410","v":"Select"},{"$f":"Import!M33610","v":0},{"$f":"Import!M33810","v":0},{"$f":"Import!M34010","v":0}]
[82,{"$f":"Import!M33011","v":"Select"},{"$f":"Import!M33211","v":"Select"},{"$f":"Import!M33411","v":"Select"},{"$f":"Import!M33611","v":0},{"$f":"Import!M33811","v":0},{"$f":"Import!M34011","v":0}]
[83,{"$f":"Import!M33012","v":"Select"},{"$f":"Import!M33212","v":"Select"},{"$f":"Import!M33412","v":"Select"},{"$f":"Import!M33612","v":0},{"$f":"Import!M33812","v":0},{"$f":"Import!M34012","v":0}]
[84,{"$f":"Import!M33013","v":"Select"},{"$f":"Import!M33213","v":"Select"},{"$f":"Import!M33413","v":"Select"},{"$f":"Import!M33613","v":0},{"$f":"Import!M33813","v":0},{"$f":"Import!M34013","v":0}]
[85,{"$f":"Import!M33014","v":"Select"},{"$f":"Import!M33214","v":"Select"},{"$f":"Import!M33414","v":"Select"},{"$f":"Import!M33614","v":0},{"$f":"Import!M33814","v":0},{"$f":"Import!M34014","v":0}]
[86,{"$f":"Import!M33015","v":"Select"},{"$f":"Import!M33215","v":"Select"},{"$f":"Import!M33415","v":"Select"},{"$f":"Import!M33615","v":0},{"$f":"Import!M33815","v":0},{"$f":"Import!M34015","v":0}]
[87,{"$f":"Import!M33016","v":"Select"},{"$f":"Import!M33216","v":"Select"},{"$f":"Import!M33416","v":"Select"},{"$f":"Import!M33616","v":0},{"$f":"Import!M33816","v":0},{"$f":"Import!M34016","v":0}]
[88,{"$f":"Import!M33017","v":"Select"},{"$f":"Import!M33217","v":"Select"},{"$f":"Import!M33417","v":"Select"},{"$f":"Import!M33617","v":0},{"$f":"Import!M33817","v":0},{"$f":"Import!M34017","v":0}]
[89,{"$f":"Import!M33018","v":"Select"},{"$f":"Import!M33218","v":"Select"},{"$f":"Import!M33418","v":"Select"},{"$f":"Import!M33618","v":0},{"$f":"Import!M33818","v":0},{"$f":"Import!M34018","v":0}]
[90,{"$f":"Import!M33019","v":"Select"},{"$f":"Import!M33219","v":"Select"},{"$f":"Import!M33419","v":"Select"},{"$f":"Import!M33619","v":0},{"$f":"Import!M33819","v":0},{"$f":"Import!M34019","v":0}]
[91,{"$f":"Import!M33020","v":"Select"},{"$f":"Import!M33220","v":"Select"},{"$f":"Import!M33420","v":"Select"},{"$f":"Import!M33620","v":0},{"$f":"Import!M33820","v":0},{"$f":"Import!M34020","v":0}]
[92,{"$f":"Import!M33021","v":"Select"},{"$f":"Import!M33221","v":"Select"},{"$f":"Import!M33421","v":"Select"},{"$f":"Import!M33621","v":0},{"$f":"Import!M33821","v":0},{"$f":"Import!M34021","v":0}]
[93,{"$f":"Import!M33022","v":"Select"},{"$f":"Import!M33222","v":"Select"},{"$f":"Import!M33422","v":"Select"},{"$f":"Import!M33622","v":0},{"$f":"Import!M33822","v":0},{"$f":"Import!M34022","v":0}]
[94,{"$f":"Import!M33023","v":"Select"},{"$f":"Import!M33223","v":"Select"},{"$f":"Import!M33423","v":"Select"},{"$f":"Import!M33623","v":0},{"$f":"Import!M33823","v":0},{"$f":"Import!M34023","v":0}]
[95,{"$f":"Import!M33024","v":"Select"},{"$f":"Import!M33224","v":"Select"},{"$f":"Import!M33424","v":"Select"},{"$f":"Import!M33624","v":0},{"$f":"Import!M33824","v":0},{"$f":"Import!M34024","v":0}]
[96,{"$f":"Import!M33025","v":"Select"},{"$f":"Import!M33225","v":"Select"},{"$f":"Import!M33425","v":"Select"},{"$f":"Import!M33625","v":0},{"$f":"Import!M33825","v":0},{"$f":"Import!M34025","v":0}]
[97,{"$f":"Import!M33026","v":"Select"},{"$f":"Import!M33226","v":"Select"},{"$f":"Import!M33426","v":"Select"},{"$f":"Import!M33626","v":0},{"$f":"Import!M33826","v":0},{"$f":"Import!M34026","v":0}]
[98,{"$f":"Import!M33027","v":"Select"},{"$f":"Import!M33227","v":"Select"},{"$f":"Import!M33427","v":"Select"},{"$f":"Import!M33627","v":0},{"$f":"Import!M33827","v":0},{"$f":"Import!M34027","v":0}]
[99,{"$f":"Import!M33028","v":"Select"},{"$f":"Import!M33228","v":"Select"},{"$f":"Import!M33428","v":"Select"},{"$f":"Import!M33628","v":0},{"$f":"Import!M33828","v":0},{"$f":"Import!M34028","v":0}]
[100,{"$f":"Import!M33029","v":"Select"},{"$f":"Import!M33229","v":"Select"},{"$f":"Import!M33429","v":"Select"},{"$f":"Import!M33629","v":0},{"$f":"Import!M33829","v":0},{"$f":"Import!M34029","v":0}]
[101,{"$f":"Import!M33030","v":"Select"},{"$f":"Import!M33230","v":"Select"},{"$f":"Import!M33430","v":"Select"},{"$f":"Import!M33630","v":0},{"$f":"Import!M33830","v":0},{"$f":"Import!M34030","v":0}]
[102,{"$f":"Import!M33031","v":"Select"},{"$f":"Import!M33231","v":"Select"},{"$f":"Import!M33431","v":"Select"},{"$f":"Import!M33631","v":0},{"$f":"Import!M33831","v":0},{"$f":"Import!M34031","v":0}]
[103,{"$f":"Import!M33032","v":"Select"},{"$f":"Import!M33232","v":"Select"},{"$f":"Import!M33432","v":"Select"},{"$f":"Import!M33632","v":0},{"$f":"Import!M33832","v":0},{"$f":"Import!M34032","v":0}]
[104,{"$f":"Import!M33033","v":"Select"},{"$f":"Import!M33233","v":"Select"},{"$f":"Import!M33433","v":"Select"},{"$f":"Import!M33633","v":0},{"$f":"Import!M33833","v":0},{"$f":"Import!M34033","v":0}]
[105,{"$f":"Import!M33034","v":"Select"},{"$f":"Import!M33234","v":"Select"},{"$f":"Import!M33434","v":"Select"},{"$f":"Import!M33634","v":0},{"$f":"Import!M33834","v":0},{"$f":"Import!M34034","v":0}]
[106,{"$f":"Import!M33035","v":"Select"},{"$f":"Import!M33235","v":"Select"},{"$f":"Import!M33435","v":"Select"},{"$f":"Import!M33635","v":0},{"$f":"Import!M33835","v":0},{"$f":"Import!M34035","v":0}]
[107,{"$f":"Import!M33036","v":"Select"},{"$f":"Import!M33236","v":"Select"},{"$f":"Import!M33436","v":"Select"},{"$f":"Import!M33636","v":0},{"$f":"Import!M33836","v":0},{"$f":"Import!M34036","v":0}]
[108,{"$f":"Import!M33037","v":"Select"},{"$f":"Import!M33237","v":"Select"},{"$f":"Import!M33437","v":"Select"},{"$f":"Import!M33637","v":0},{"$f":"Import!M33837","v":0},{"$f":"Import!M34037","v":0}]
[109,{"$f":"Import!M33038","v":"Select"},{"$f":"Import!M33238","v":"Select"},{"$f":"Import!M33438","v":"Select"},{"$f":"Import!M33638","v":0},{"$f":"Import!M33838","v":0},{"$f":"Import!M34038","v":0}]
[110,{"$f":"Import!M33039","v":"Select"},{"$f":"Import!M33239","v":"Select"},{"$f":"Import!M33439","v":"Select"},{"$f":"Import!M33639","v":0},{"$f":"Import!M33839","v":0},{"$f":"Import!M34039","v":0}]
[111,{"$f":"Import!M33040","v":"Select"},{"$f":"Import!M33240","v":"Select"},{"$f":"Import!M33440","v":"Select"},{"$f":"Import!M33640","v":0},{"$f":"Import!M33840","v":0},{"$f":"Import!M34040","v":0}]
[112,{"$f":"Import!M33041","v":"Select"},{"$f":"Import!M33241","v":"Select"},{"$f":"Import!M33441","v":"Select"},{"$f":"Import!M33641","v":0},{"$f":"Import!M33841","v":0},{"$f":"Import!M34041","v":0}]
[113,{"$f":"Import!M33042","v":"Select"},{"$f":"Import!M33242","v":"Select"},{"$f":"Import!M33442","v":"Select"},{"$f":"Import!M33642","v":0},{"$f":"Import!M33842","v":0},{"$f":"Import!M34042","v":0}]
[114,{"$f":"Import!M33043","v":"Select"},{"$f":"Import!M33243","v":"Select"},{"$f":"Import!M33443","v":"Select"},{"$f":"Import!M33643","v":0},{"$f":"Import!M33843","v":0},{"$f":"Import!M34043","v":0}]
[115,{"$f":"Import!M33044","v":"Select"},{"$f":"Import!M33244","v":"Select"},{"$f":"Import!M33444","v":"Select"},{"$f":"Import!M33644","v":0},{"$f":"Import!M33844","v":0},{"$f":"Import!M34044","v":0}]
[116,{"$f":"Import!M33045","v":"Select"},{"$f":"Import!M33245","v":"Select"},{"$f":"Import!M33445","v":"Select"},{"$f":"Import!M33645","v":0},{"$f":"Import!M33845","v":0},{"$f":"Import!M34045","v":0}]
[117,{"$f":"Import!M33046","v":"Select"},{"$f":"Import!M33246","v":"Select"},{"$f":"Import!M33446","v":"Select"},{"$f":"Import!M33646","v":0},{"$f":"Import!M33846","v":0},{"$f":"Import!M34046","v":0}]
[118,{"$f":"Import!M33047","v":"Select"},{"$f":"Import!M33247","v":"Select"},{"$f":"Import!M33447","v":"Select"},{"$f":"Import!M33647","v":0},{"$f":"Import!M33847","v":0},{"$f":"Import!M34047","v":0}]
[119,{"$f":"Import!M33048","v":"Select"},{"$f":"Import!M33248","v":"Select"},{"$f":"Import!M33448","v":"Select"},{"$f":"Import!M33648","v":0},{"$f":"Import!M33848","v":0},{"$f":"Import!M34048","v":0}]
[120,{"$f":"Import!M33049","v":"Select"},{"$f":"Import!M33249","v":"Select"},{"$f":"Import!M33449","v":"Select"},{"$f":"Import!M33649","v":0},{"$f":"Import!M33849","v":0},{"$f":"Import!M34049","v":0}]
[121,{"$f":"Import!M33050","v":"Select"},{"$f":"Import!M33250","v":"Select"},{"$f":"Import!M33450","v":"Select"},{"$f":"Import!M33650","v":0},{"$f":"Import!M33850","v":0},{"$f":"Import!M34050","v":0}]
[122,{"$f":"Import!M33051","v":"Select"},{"$f":"Import!M33251","v":"Select"},{"$f":"Import!M33451","v":"Select"},{"$f":"Import!M33651","v":0},{"$f":"Import!M33851","v":0},{"$f":"Import!M34051","v":0}]
[123,{"$f":"Import!M33052","v":"Select"},{"$f":"Import!M33252","v":"Select"},{"$f":"Import!M33452","v":"Select"},{"$f":"Import!M33652","v":0},{"$f":"Import!M33852","v":0},{"$f":"Import!M34052","v":0}]
[124,{"$f":"Import!M33053","v":"Select"},{"$f":"Import!M33253","v":"Select"},{"$f":"Import!M33453","v":"Select"},{"$f":"Import!M33653","v":0},{"$f":"Import!M33853","v":0},{"$f":"Import!M34053","v":0}]
[125,{"$f":"Import!M33054","v":"Select"},{"$f":"Import!M33254","v":"Select"},{"$f":"Import!M33454","v":"Select"},{"$f":"Import!M33654","v":0},{"$f":"Import!M33854","v":0},{"$f":"Import!M34054","v":0}]
[126,{"$f":"Import!M33055","v":"Select"},{"$f":"Import!M33255","v":"Select"},{"$f":"Import!M33455","v":"Select"},{"$f":"Import!M33655","v":0},{"$f":"Import!M33855","v":0},{"$f":"Import!M34055","v":0}]
[127,{"$f":"Import!M33056","v":"Select"},{"$f":"Import!M33256","v":"Select"},{"$f":"Import!M33456","v":"Select"},{"$f":"Import!M33656","v":0},{"$f":"Import!M33856","v":0},{"$f":"Import!M34056","v":0}]
[128,{"$f":"Import!M33057","v":"Select"},{"$f":"Import!M33257","v":"Select"},{"$f":"Import!M33457","v":"Select"},{"$f":"Import!M33657","v":0},{"$f":"Import!M33857","v":0},{"$f":"Import!M34057","v":0}]
[129,{"$f":"Import!M33058","v":"Select"},{"$f":"Import!M33258","v":"Select"},{"$f":"Import!M33458","v":"Select"},{"$f":"Import!M33658","v":0},{"$f":"Import!M33858","v":0},{"$f":"Import!M34058","v":0}]
[130,{"$f":"Import!M33059","v":"Select"},{"$f":"Import!M33259","v":"Select"},{"$f":"Import!M33459","v":"Select"},{"$f":"Import!M33659","v":0},{"$f":"Import!M33859","v":0},{"$f":"Import!M34059","v":0}]
[{"$f":"A1925+1","v":131},{"$f":"Import!M33060","v":"Select"},{"$f":"Import!M33260","v":"Select"},{"$f":"Import!M33460","v":"Select"},{"$f":"Import!M33660","v":0},{"$f":"Import!M33860","v":0},{"$f":"Import!M34060","v":0}]
[132,{"$f":"Import!M33061","v":"Select"},{"$f":"Import!M33261","v":"Select"},{"$f":"Import!M33461","v":"Select"},{"$f":"Import!M33661","v":0},{"$f":"Import!M33861","v":0},{"$f":"Import!M34061","v":0}]
[133,{"$f":"Import!M33062","v":"Select"},{"$f":"Import!M33262","v":"Select"},{"$f":"Import!M33462","v":"Select"},{"$f":"Import!M33662","v":0},{"$f":"Import!M33862","v":0},{"$f":"Import!M34062","v":0}]
[134,{"$f":"Import!M33063","v":"Select"},{"$f":"Import!M33263","v":"Select"},{"$f":"Import!M33463","v":"Select"},{"$f":"Import!M33663","v":0},{"$f":"Import!M33863","v":0},{"$f":"Import!M34063","v":0}]
[135,{"$f":"Import!M33064","v":"Select"},{"$f":"Import!M33264","v":"Select"},{"$f":"Import!M33464","v":"Select"},{"$f":"Import!M33664","v":0},{"$f":"Import!M33864","v":0},{"$f":"Import!M34064","v":0}]
[136,{"$f":"Import!M33065","v":"Select"},{"$f":"Import!M33265","v":"Select"},{"$f":"Import!M33465","v":"Select"},{"$f":"Import!M33665","v":0},{"$f":"Import!M33865","v":0},{"$f":"Import!M34065","v":0}]
[137,{"$f":"Import!M33066","v":"Select"},{"$f":"Import!M33266","v":"Select"},{"$f":"Import!M33466","v":"Select"},{"$f":"Import!M33666","v":0},{"$f":"Import!M33866","v":0},{"$f":"Import!M34066","v":0}]
[138,{"$f":"Import!M33067","v":"Select"},{"$f":"Import!M33267","v":"Select"},{"$f":"Import!M33467","v":"Select"},{"$f":"Import!M33667","v":0},{"$f":"Import!M33867","v":0},{"$f":"Import!M34067","v":0}]
[139,{"$f":"Import!M33068","v":"Select"},{"$f":"Import!M33268","v":"Select"},{"$f":"Import!M33468","v":"Select"},{"$f":"Import!M33668","v":0},{"$f":"Import!M33868","v":0},{"$f":"Import!M34068","v":0}]
[140,{"$f":"Import!M33069","v":"Select"},{"$f":"Import!M33269","v":"Select"},{"$f":"Import!M33469","v":"Select"},{"$f":"Import!M33669","v":0},{"$f":"Import!M33869","v":0},{"$f":"Import!M34069","v":0}]
[141,{"$f":"Import!M33070","v":"Select"},{"$f":"Import!M33270","v":"Select"},{"$f":"Import!M33470","v":"Select"},{"$f":"Import!M33670","v":0},{"$f":"Import!M33870","v":0},{"$f":"Import!M34070","v":0}]
[142,{"$f":"Import!M33071","v":"Select"},{"$f":"Import!M33271","v":"Select"},{"$f":"Import!M33471","v":"Select"},{"$f":"Import!M33671","v":0},{"$f":"Import!M33871","v":0},{"$f":"Import!M34071","v":0}]
[143,{"$f":"Import!M33072","v":"Select"},{"$f":"Import!M33272","v":"Select"},{"$f":"Import!M33472","v":"Select"},{"$f":"Import!M33672","v":0},{"$f":"Import!M33872","v":0},{"$f":"Import!M34072","v":0}]
[144,{"$f":"Import!M33073","v":"Select"},{"$f":"Import!M33273","v":"Select"},{"$f":"Import!M33473","v":"Select"},{"$f":"Import!M33673","v":0},{"$f":"Import!M33873","v":0},{"$f":"Import!M34073","v":0}]
[145,{"$f":"Import!M33074","v":"Select"},{"$f":"Import!M33274","v":"Select"},{"$f":"Import!M33474","v":"Select"},{"$f":"Import!M33674","v":0},{"$f":"Import!M33874","v":0},{"$f":"Import!M34074","v":0}]
[146,{"$f":"Import!M33075","v":"Select"},{"$f":"Import!M33275","v":"Select"},{"$f":"Import!M33475","v":"Select"},{"$f":"Import!M33675","v":0},{"$f":"Import!M33875","v":0},{"$f":"Import!M34075","v":0}]
[147,{"$f":"Import!M33076","v":"Select"},{"$f":"Import!M33276","v":"Select"},{"$f":"Import!M33476","v":"Select"},{"$f":"Import!M33676","v":0},{"$f":"Import!M33876","v":0},{"$f":"Import!M34076","v":0}]
[148,{"$f":"Import!M33077","v":"Select"},{"$f":"Import!M33277","v":"Select"},{"$f":"Import!M33477","v":"Select"},{"$f":"Import!M33677","v":0},{"$f":"Import!M33877","v":0},{"$f":"Import!M34077","v":0}]
[149,{"$f":"Import!M33078","v":"Select"},{"$f":"Import!M33278","v":"Select"},{"$f":"Import!M33478","v":"Select"},{"$f":"Import!M33678","v":0},{"$f":"Import!M33878","v":0},{"$f":"Import!M34078","v":0}]
[150,{"$f":"Import!M33079","v":"Select"},{"$f":"Import!M33279","v":"Select"},{"$f":"Import!M33479","v":"Select"},{"$f":"Import!M33679","v":0},{"$f":"Import!M33879","v":0},{"$f":"Import!M34079","v":0}]
[151,{"$f":"Import!M33080","v":"Select"},{"$f":"Import!M33280","v":"Select"},{"$f":"Import!M33480","v":"Select"},{"$f":"Import!M33680","v":0},{"$f":"Import!M33880","v":0},{"$f":"Import!M34080","v":0}]
[152,{"$f":"Import!M33081","v":"Select"},{"$f":"Import!M33281","v":"Select"},{"$f":"Import!M33481","v":"Select"},{"$f":"Import!M33681","v":0},{"$f":"Import!M33881","v":0},{"$f":"Import!M34081","v":0}]
[153,{"$f":"Import!M33082","v":"Select"},{"$f":"Import!M33282","v":"Select"},{"$f":"Import!M33482","v":"Select"},{"$f":"Import!M33682","v":0},{"$f":"Import!M33882","v":0},{"$f":"Import!M34082","v":0}]
[154,{"$f":"Import!M33083","v":"Select"},{"$f":"Import!M33283","v":"Select"},{"$f":"Import!M33483","v":"Select"},{"$f":"Import!M33683","v":0},{"$f":"Import!M33883","v":0},{"$f":"Import!M34083","v":0}]
[155,{"$f":"Import!M33084","v":"Select"},{"$f":"Import!M33284","v":"Select"},{"$f":"Import!M33484","v":"Select"},{"$f":"Import!M33684","v":0},{"$f":"Import!M33884","v":0},{"$f":"Import!M34084","v":0}]
[156,{"$f":"Import!M33085","v":"Select"},{"$f":"Import!M33285","v":"Select"},{"$f":"Import!M33485","v":"Select"},{"$f":"Import!M33685","v":0},{"$f":"Import!M33885","v":0},{"$f":"Import!M34085","v":0}]
[157,{"$f":"Import!M33086","v":"Select"},{"$f":"Import!M33286","v":"Select"},{"$f":"Import!M33486","v":"Select"},{"$f":"Import!M33686","v":0},{"$f":"Import!M33886","v":0},{"$f":"Import!M34086","v":0}]
[158,{"$f":"Import!M33087","v":"Select"},{"$f":"Import!M33287","v":"Select"},{"$f":"Import!M33487","v":"Select"},{"$f":"Import!M33687","v":0},{"$f":"Import!M33887","v":0},{"$f":"Import!M34087","v":0}]
[159,{"$f":"Import!M33088","v":"Select"},{"$f":"Import!M33288","v":"Select"},{"$f":"Import!M33488","v":"Select"},{"$f":"Import!M33688","v":0},{"$f":"Import!M33888","v":0},{"$f":"Import!M34088","v":0}]
[160,{"$f":"Import!M33089","v":"Select"},{"$f":"Import!M33289","v":"Select"},{"$f":"Import!M33489","v":"Select"},{"$f":"Import!M33689","v":0},{"$f":"Import!M33889","v":0},{"$f":"Import!M34089","v":0}]
[161,{"$f":"Import!M33090","v":"Select"},{"$f":"Import!M33290","v":"Select"},{"$f":"Import!M33490","v":"Select"},{"$f":"Import!M33690","v":0},{"$f":"Import!M33890","v":0},{"$f":"Import!M34090","v":0}]
[162,{"$f":"Import!M33091","v":"Select"},{"$f":"Import!M33291","v":"Select"},{"$f":"Import!M33491","v":"Select"},{"$f":"Import!M33691","v":0},{"$f":"Import!M33891","v":0},{"$f":"Import!M34091","v":0}]
[163,{"$f":"Import!M33092","v":"Select"},{"$f":"Import!M33292","v":"Select"},{"$f":"Import!M33492","v":"Select"},{"$f":"Import!M33692","v":0},{"$f":"Import!M33892","v":0},{"$f":"Import!M34092","v":0}]
[164,{"$f":"Import!M33093","v":"Select"},{"$f":"Import!M33293","v":"Select"},{"$f":"Import!M33493","v":"Select"},{"$f":"Import!M33693","v":0},{"$f":"Import!M33893","v":0},{"$f":"Import!M34093","v":0}]
[165,{"$f":"Import!M33094","v":"Select"},{"$f":"Import!M33294","v":"Select"},{"$f":"Import!M33494","v":"Select"},{"$f":"Import!M33694","v":0},{"$f":"Import!M33894","v":0},{"$f":"Import!M34094","v":0}]
[166,{"$f":"Import!M33095","v":"Select"},{"$f":"Import!M33295","v":"Select"},{"$f":"Import!M33495","v":"Select"},{"$f":"Import!M33695","v":0},{"$f":"Import!M33895","v":0},{"$f":"Import!M34095","v":0}]
[167,{"$f":"Import!M33096","v":"Select"},{"$f":"Import!M33296","v":"Select"},{"$f":"Import!M33496","v":"Select"},{"$f":"Import!M33696","v":0},{"$f":"Import!M33896","v":0},{"$f":"Import!M34096","v":0}]
[168,{"$f":"Import!M33097","v":"Select"},{"$f":"Import!M33297","v":"Select"},{"$f":"Import!M33497","v":"Select"},{"$f":"Import!M33697","v":0},{"$f":"Import!M33897","v":0},{"$f":"Import!M34097","v":0}]
[169,{"$f":"Import!M33098","v":"Select"},{"$f":"Import!M33298","v":"Select"},{"$f":"Import!M33498","v":"Select"},{"$f":"Import!M33698","v":0},{"$f":"Import!M33898","v":0},{"$f":"Import!M34098","v":0}]
[170,{"$f":"Import!M33099","v":"Select"},{"$f":"Import!M33299","v":"Select"},{"$f":"Import!M33499","v":"Select"},{"$f":"Import!M33699","v":0},{"$f":"Import!M33899","v":0},{"$f":"Import!M34099","v":0}]
[171,{"$f":"Import!M33100","v":"Select"},{"$f":"Import!M33300","v":"Select"},{"$f":"Import!M33500","v":"Select"},{"$f":"Import!M33700","v":0},{"$f":"Import!M33900","v":0},{"$f":"Import!M34100","v":0}]
[172,{"$f":"Import!M33101","v":"Select"},{"$f":"Import!M33301","v":"Select"},{"$f":"Import!M33501","v":"Select"},{"$f":"Import!M33701","v":0},{"$f":"Import!M33901","v":0},{"$f":"Import!M34101","v":0}]
[173,{"$f":"Import!M33102","v":"Select"},{"$f":"Import!M33302","v":"Select"},{"$f":"Import!M33502","v":"Select"},{"$f":"Import!M33702","v":0},{"$f":"Import!M33902","v":0},{"$f":"Import!M34102","v":0}]
[174,{"$f":"Import!M33103","v":"Select"},{"$f":"Import!M33303","v":"Select"},{"$f":"Import!M33503","v":"Select"},{"$f":"Import!M33703","v":0},{"$f":"Import!M33903","v":0},{"$f":"Import!M34103","v":0}]
[175,{"$f":"Import!M33104","v":"Select"},{"$f":"Import!M33304","v":"Select"},{"$f":"Import!M33504","v":"Select"},{"$f":"Import!M33704","v":0},{"$f":"Import!M33904","v":0},{"$f":"Import!M34104","v":0}]
[176,{"$f":"Import!M33105","v":"Select"},{"$f":"Import!M33305","v":"Select"},{"$f":"Import!M33505","v":"Select"},{"$f":"Import!M33705","v":0},{"$f":"Import!M33905","v":0},{"$f":"Import!M34105","v":0}]
[177,{"$f":"Import!M33106","v":"Select"},{"$f":"Import!M33306","v":"Select"},{"$f":"Import!M33506","v":"Select"},{"$f":"Import!M33706","v":0},{"$f":"Import!M33906","v":0},{"$f":"Import!M34106","v":0}]
[178,{"$f":"Import!M33107","v":"Select"},{"$f":"Import!M33307","v":"Select"},{"$f":"Import!M33507","v":"Select"},{"$f":"Import!M33707","v":0},{"$f":"Import!M33907","v":0},{"$f":"Import!M34107","v":0}]
[179,{"$f":"Import!M33108","v":"Select"},{"$f":"Import!M33308","v":"Select"},{"$f":"Import!M33508","v":"Select"},{"$f":"Import!M33708","v":0},{"$f":"Import!M33908","v":0},{"$f":"Import!M34108","v":0}]
[180,{"$f":"Import!M33109","v":"Select"},{"$f":"Import!M33309","v":"Select"},{"$f":"Import!M33509","v":"Select"},{"$f":"Import!M33709","v":0},{"$f":"Import!M33909","v":0},{"$f":"Import!M34109","v":0}]
[181,{"$f":"Import!M33110","v":"Select"},{"$f":"Import!M33310","v":"Select"},{"$f":"Import!M33510","v":"Select"},{"$f":"Import!M33710","v":0},{"$f":"Import!M33910","v":0},{"$f":"Import!M34110","v":0}]
[182,{"$f":"Import!M33111","v":"Select"},{"$f":"Import!M33311","v":"Select"},{"$f":"Import!M33511","v":"Select"},{"$f":"Import!M33711","v":0},{"$f":"Import!M33911","v":0},{"$f":"Import!M34111","v":0}]
[183,{"$f":"Import!M33112","v":"Select"},{"$f":"Import!M33312","v":"Select"},{"$f":"Import!M33512","v":"Select"},{"$f":"Import!M33712","v":0},{"$f":"Import!M33912","v":0},{"$f":"Import!M34112","v":0}]
[184,{"$f":"Import!M33113","v":"Select"},{"$f":"Import!M33313","v":"Select"},{"$f":"Import!M33513","v":"Select"},{"$f":"Import!M33713","v":0},{"$f":"Import!M33913","v":0},{"$f":"Import!M34113","v":0}]
[185,{"$f":"Import!M33114","v":"Select"},{"$f":"Import!M33314","v":"Select"},{"$f":"Import!M33514","v":"Select"},{"$f":"Import!M33714","v":0},{"$f":"Import!M33914","v":0},{"$f":"Import!M34114","v":0}]
[186,{"$f":"Import!M33115","v":"Select"},{"$f":"Import!M33315","v":"Select"},{"$f":"Import!M33515","v":"Select"},{"$f":"Import!M33715","v":0},{"$f":"Import!M33915","v":0},{"$f":"Import!M34115","v":0}]
[187,{"$f":"Import!M33116","v":"Select"},{"$f":"Import!M33316","v":"Select"},{"$f":"Import!M33516","v":"Select"},{"$f":"Import!M33716","v":0},{"$f":"Import!M33916","v":0},{"$f":"Import!M34116","v":0}]
[188,{"$f":"Import!M33117","v":"Select"},{"$f":"Import!M33317","v":"Select"},{"$f":"Import!M33517","v":"Select"},{"$f":"Import!M33717","v":0},{"$f":"Import!M33917","v":0},{"$f":"Import!M34117","v":0}]
[189,{"$f":"Import!M33118","v":"Select"},{"$f":"Import!M33318","v":"Select"},{"$f":"Import!M33518","v":"Select"},{"$f":"Import!M33718","v":0},{"$f":"Import!M33918","v":0},{"$f":"Import!M34118","v":0}]
[190,{"$f":"Import!M33119","v":"Select"},{"$f":"Import!M33319","v":"Select"},{"$f":"Import!M33519","v":"Select"},{"$f":"Import!M33719","v":0},{"$f":"Import!M33919","v":0},{"$f":"Import!M34119","v":0}]
[191,{"$f":"Import!M33120","v":"Select"},{"$f":"Import!M33320","v":"Select"},{"$f":"Import!M33520","v":"Select"},{"$f":"Import!M33720","v":0},{"$f":"Import!M33920","v":0},{"$f":"Import!M34120","v":0}]
[192,{"$f":"Import!M33121","v":"Select"},{"$f":"Import!M33321","v":"Select"},{"$f":"Import!M33521","v":"Select"},{"$f":"Import!M33721","v":0},{"$f":"Import!M33921","v":0},{"$f":"Import!M34121","v":0}]
[193,{"$f":"Import!M33122","v":"Select"},{"$f":"Import!M33322","v":"Select"},{"$f":"Import!M33522","v":"Select"},{"$f":"Import!M33722","v":0},{"$f":"Import!M33922","v":0},{"$f":"Import!M34122","v":0}]
[194,{"$f":"Import!M33123","v":"Select"},{"$f":"Import!M33323","v":"Select"},{"$f":"Import!M33523","v":"Select"},{"$f":"Import!M33723","v":0},{"$f":"Import!M33923","v":0},{"$f":"Import!M34123","v":0}]
[{"$f":"A1989+1","v":195},{"$f":"Import!M33124","v":"Select"},{"$f":"Import!M33324","v":"Select"},{"$f":"Import!M33524","v":"Select"},{"$f":"Import!M33724","v":0},{"$f":"Import!M33924","v":0},{"$f":"Import!M34124","v":0}]
[196,{"$f":"Import!M33125","v":"Select"},{"$f":"Import!M33325","v":"Select"},{"$f":"Import!M33525","v":"Select"},{"$f":"Import!M33725","v":0},{"$f":"Import!M33925","v":0},{"$f":"Import!M34125","v":0}]
[197,{"$f":"Import!M33126","v":"Select"},{"$f":"Import!M33326","v":"Select"},{"$f":"Import!M33526","v":"Select"},{"$f":"Import!M33726","v":0},{"$f":"Import!M33926","v":0},{"$f":"Import!M34126","v":0}]
[198,{"$f":"Import!M33127","v":"Select"},{"$f":"Import!M33327","v":"Select"},{"$f":"Import!M33527","v":"Select"},{"$f":"Import!M33727","v":0},{"$f":"Import!M33927","v":0},{"$f":"Import!M34127","v":0}]
[199,{"$f":"Import!M33128","v":"Select"},{"$f":"Import!M33328","v":"Select"},{"$f":"Import!M33528","v":"Select"},{"$f":"Import!M33728","v":0},{"$f":"Import!M33928","v":0},{"$f":"Import!M34128","v":0}]
[200,{"$f":"Import!M33129","v":"Select"},{"$f":"Import!M33329","v":"Select"},{"$f":"Import!M33529","v":"Select"},{"$f":"Import!M33729","v":0},{"$f":"Import!M33929","v":0},{"$f":"Import!M34129","v":0}]
[]
[null,"Total Other Assets",null,null,null,{"$f":"SUM(F1796:F1995)","v":0}]
[]
[]
[null,"TOTAL ASSETS",null,null,null,{"$f":"F212+F620+F986+G1094+F1230+E1338+G1446+G1554+I1761+F1997","v":0}]
[]
[null,"TOTAL FUNDS HELD BY CEDING REINSURERS (Form 4EBS Line 12)",null,null,null,{"$f":"'Form 4EBS'!F73","v":0}]
[]
[null,"Check Form 4EBS (Line 12)",null,null,null,{"$f":"IF(F2006=0,\"TRUE\",\"FALSE\")","v":"TRUE"}]
[]
[null,"Difference",null,null,null,{"$f":"ROUND(F2002-F2000,0)","v":0}]
[]
[null,"(L) INFORMATION ON SECURITIES LENDING AND REPURCHASE TRANSACTIONS"]
[]
[null,null,{"$f":"YEAR($C$3)","v":2023}]
[null,null,"Notional Value","Fair Value",null,"Comments"]
[null,"Securities Lending transactions",{"$f":"Import!M34130","v":0},{"$f":"Import!M34132","v":0},null,{"$f":"Import!M34134","v":0}]
[null,"Repo / Reverse Repo transactions",{"$f":"Import!M34131","v":0},{"$f":"Import!M34133","v":0},null,{"$f":"Import!M34135","v":0}]
[]
[null,"Total",{"$f":"SUM(C2012:C2013)","v":0},{"$f":"SUM(D2012:D2013)","v":0}]
[]
[null,"(M) INFORMATION ON FAIR VALUATION HIERARCHY"]
[]
[null,null,{"$f":"YEAR($C$3)","v":2023},"Fair Value"]
[null,null,"Unaffiliated","Affiliated","Total","Comments"]
[null,"Level 1 Assets (according to Fair Value hierarchy)",{"$f":"Import!M34136","v":0},{"$f":"Import!M34139","v":0},{"$f":"SUM(C2021:D2021)","v":0},{"$f":"Import!M34142","v":0}]
[null,"Level 2 Assets (according to Fair Value hierarchy)",{"$f":"Import!M34137","v":0},{"$f":"Import!M34140","v":0},{"$f":"SUM(C2022:D2022)","v":0},{"$f":"Import!M34143","v":0}]
[null,"Level 3 Assets (according to Fair Value hierarchy)",{"$f":"Import!M34138","v":0},{"$f":"Import!M34141","v":0},{"$f":"SUM(C2023:D2023)","v":0},{"$f":"Import!M34144","v":0}]
[]
[null,"Total",{"$f":"SUM(C2021:C2023)","v":0},{"$f":"SUM(D2021:D2023)","v":0},{"$f":"SUM(E2021:E2023)","v":0}]
[]
[null,"Check Securities Allocated by Levels 1-3",null,null,{"$f":"F212+F620+F986+G1094+F1230+E1338+G1446+G1554","v":0}]
[]
[null,"Difference",null,null,{"$f":"ROUND(E2025-E2027,0)","v":0},{"$f":"IF(E2029=0,\"TRUE\",\"FALSE\")","v":"TRUE"}]
[]
[null,"EFFECTIVE DURATION",null,null,{"$f":"Import!M34145","v":0}]
[]
[null,"EFFECTIVE CONVEXITY",null,null,{"$f":"Import!M34146","v":0}]
[]
[null,"Fair Values",{"$f":"YEAR(C3)","v":2023}]
[null,null,null,null,null,null,null,null,"If Other Rating Agency is used, specify the name of such agency (if applicable)",{"$f":"Import!M34147","v":0},{"$f":"Import!M34148","v":0},{"$f":"Import!M34149","v":0},{"$f":"Import!M34150","v":0}]
[null,"Asset/Rating Category","BSCR Rating","Moody's Investor's Service","Standard and Poor's","Dominion Bond Rating Service","Kroll Bond Rating Agency","Egan Jones Rating Company","Japan Credit Rating Agency","BMA-approved Internal Ratings","Other BMA-approved Rating Agency 1","Other BMA-approved Rating Agency 2","Other BMA-approved Rating Agency 3","Total"]
[null,"Financial institutions, brokers and dealers",1,{"$f":"Import!M34151","v":0},{"$f":"Import!M34192","v":0},{"$f":"Import!M34233","v":0},{"$f":"Import!M34274","v":0},{"$f":"Import!M34315","v":0},{"$f":"Import!M34356","v":0},{"$f":"Import!M34397","v":0},{"$f":"Import!M34438","v":0},{"$f":"Import!M34479","v":0},{"$f":"Import!M34520","v":0},{"$f":"SUM(D2038:M2038)","v":0}]
[null,"Financial institutions, brokers and dealers",2,{"$f":"Import!M34152","v":0},{"$f":"Import!M34193","v":0},{"$f":"Import!M34234","v":0},{"$f":"Import!M34275","v":0},{"$f":"Import!M34316","v":0},{"$f":"Import!M34357","v":0},{"$f":"Import!M34398","v":0},{"$f":"Import!M34439","v":0},{"$f":"Import!M34480","v":0},{"$f":"Import!M34521","v":0},{"$f":"SUM(D2039:M2039)","v":0}]
[null,"Financial institutions, brokers and dealers",3,{"$f":"Import!M34153","v":0},{"$f":"Import!M34194","v":0},{"$f":"Import!M34235","v":0},{"$f":"Import!M34276","v":0},{"$f":"Import!M34317","v":0},{"$f":"Import!M34358","v":0},{"$f":"Import!M34399","v":0},{"$f":"Import!M34440","v":0},{"$f":"Import!M34481","v":0},{"$f":"Import!M34522","v":0},0]
[null,"Financial institutions, brokers and dealers",4,{"$f":"Import!M34154","v":0},{"$f":"Import!M34195","v":0},{"$f":"Import!M34236","v":0},{"$f":"Import!M34277","v":0},{"$f":"Import!M34318","v":0},{"$f":"Import!M34359","v":0},{"$f":"Import!M34400","v":0},{"$f":"Import!M34441","v":0},{"$f":"Import!M34482","v":0},{"$f":"Import!M34523","v":0},0]
[null,"Financial institutions, brokers and dealers",5,{"$f":"Import!M34155","v":0},{"$f":"Import!M34196","v":0},{"$f":"Import!M34237","v":0},{"$f":"Import!M34278","v":0},{"$f":"Import!M34319","v":0},{"$f":"Import!M34360","v":0},{"$f":"Import!M34401","v":0},{"$f":"Import!M34442","v":0},{"$f":"Import!M34483","v":0},{"$f":"Import!M34524","v":0},0]
[null,"Financial institutions, brokers and dealers",6,{"$f":"Import!M34156","v":0},{"$f":"Import!M34197","v":0},{"$f":"Import!M34238","v":0},{"$f":"Import!M34279","v":0},{"$f":"Import!M34320","v":0},{"$f":"Import!M34361","v":0},{"$f":"Import!M34402","v":0},{"$f":"Import!M34443","v":0},{"$f":"Import!M34484","v":0},{"$f":"Import!M34525","v":0},0]
[null,"Financial institutions, brokers and dealers",7,{"$f":"Import!M34157","v":0},{"$f":"Import!M34198","v":0},{"$f":"Import!M34239","v":0},{"$f":"Import!M34280","v":0},{"$f":"Import!M34321","v":0},{"$f":"Import!M34362","v":0},{"$f":"Import!M34403","v":0},{"$f":"Import!M34444","v":0},{"$f":"Import!M34485","v":0},{"$f":"Import!M34526","v":0},0]
[null,"Financial institutions, brokers and dealers",8,{"$f":"Import!M34158","v":0},{"$f":"Import!M34199","v":0},{"$f":"Import!M34240","v":0},{"$f":"Import!M34281","v":0},{"$f":"Import!M34322","v":0},{"$f":"Import!M34363","v":0},{"$f":"Import!M34404","v":0},{"$f":"Import!M34445","v":0},{"$f":"Import!M34486","v":0},{"$f":"Import!M34527","v":0},0]
[null,"Insurance companies",1,{"$f":"Import!M34159","v":0},{"$f":"Import!M34200","v":0},{"$f":"Import!M34241","v":0},{"$f":"Import!M34282","v":0},{"$f":"Import!M34323","v":0},{"$f":"Import!M34364","v":0},{"$f":"Import!M34405","v":0},{"$f":"Import!M34446","v":0},{"$f":"Import!M34487","v":0},{"$f":"Import!M34528","v":0},0]
[null,"Insurance companies",2,{"$f":"Import!M34160","v":0},{"$f":"Import!M34201","v":0},{"$f":"Import!M34242","v":0},{"$f":"Import!M34283","v":0},{"$f":"Import!M34324","v":0},{"$f":"Import!M34365","v":0},{"$f":"Import!M34406","v":0},{"$f":"Import!M34447","v":0},{"$f":"Import!M34488","v":0},{"$f":"Import!M34529","v":0},0]
[null,"Insurance companies",3,{"$f":"Import!M34161","v":0},{"$f":"Import!M34202","v":0},{"$f":"Import!M34243","v":0},{"$f":"Import!M34284","v":0},{"$f":"Import!M34325","v":0},{"$f":"Import!M34366","v":0},{"$f":"Import!M34407","v":0},{"$f":"Import!M34448","v":0},{"$f":"Import!M34489","v":0},{"$f":"Import!M34530","v":0},0]
[null,"Insurance companies",4,{"$f":"Import!M34162","v":0},{"$f":"Import!M34203","v":0},{"$f":"Import!M34244","v":0},{"$f":"Import!M34285","v":0},{"$f":"Import!M34326","v":0},{"$f":"Import!M34367","v":0},{"$f":"Import!M34408","v":0},{"$f":"Import!M34449","v":0},{"$f":"Import!M34490","v":0},{"$f":"Import!M34531","v":0},0]
[null,"Insurance companies",5,{"$f":"Import!M34163","v":0},{"$f":"Import!M34204","v":0},{"$f":"Import!M34245","v":0},{"$f":"Import!M34286","v":0},{"$f":"Import!M34327","v":0},{"$f":"Import!M34368","v":0},{"$f":"Import!M34409","v":0},{"$f":"Import!M34450","v":0},{"$f":"Import!M34491","v":0},{"$f":"Import!M34532","v":0},0]
[null,"Insurance companies",6,{"$f":"Import!M34164","v":0},{"$f":"Import!M34205","v":0},{"$f":"Import!M34246","v":0},{"$f":"Import!M34287","v":0},{"$f":"Import!M34328","v":0},{"$f":"Import!M34369","v":0},{"$f":"Import!M34410","v":0},{"$f":"Import!M34451","v":0},{"$f":"Import!M34492","v":0},{"$f":"Import!M34533","v":0},0]
[null,"Insurance companies",7,{"$f":"Import!M34165","v":0},{"$f":"Import!M34206","v":0},{"$f":"Import!M34247","v":0},{"$f":"Import!M34288","v":0},{"$f":"Import!M34329","v":0},{"$f":"Import!M34370","v":0},{"$f":"Import!M34411","v":0},{"$f":"Import!M34452","v":0},{"$f":"Import!M34493","v":0},{"$f":"Import!M34534","v":0},0]
[null,"Insurance companies",8,{"$f":"Import!M34166","v":0},{"$f":"Import!M34207","v":0},{"$f":"Import!M34248","v":0},{"$f":"Import!M34289","v":0},{"$f":"Import!M34330","v":0},{"$f":"Import!M34371","v":0},{"$f":"Import!M34412","v":0},{"$f":"Import!M34453","v":0},{"$f":"Import!M34494","v":0},{"$f":"Import!M34535","v":0},0]
[null,"Corporate issuers",1,{"$f":"Import!M34167","v":0},{"$f":"Import!M34208","v":0},{"$f":"Import!M34249","v":0},{"$f":"Import!M34290","v":0},{"$f":"Import!M34331","v":0},{"$f":"Import!M34372","v":0},{"$f":"Import!M34413","v":0},{"$f":"Import!M34454","v":0},{"$f":"Import!M34495","v":0},{"$f":"Import!M34536","v":0},0]
[null,"Corporate issuers",2,{"$f":"Import!M34168","v":0},{"$f":"Import!M34209","v":0},{"$f":"Import!M34250","v":0},{"$f":"Import!M34291","v":0},{"$f":"Import!M34332","v":0},{"$f":"Import!M34373","v":0},{"$f":"Import!M34414","v":0},{"$f":"Import!M34455","v":0},{"$f":"Import!M34496","v":0},{"$f":"Import!M34537","v":0},0]
[null,"Corporate issuers",3,{"$f":"Import!M34169","v":0},{"$f":"Import!M34210","v":0},{"$f":"Import!M34251","v":0},{"$f":"Import!M34292","v":0},{"$f":"Import!M34333","v":0},{"$f":"Import!M34374","v":0},{"$f":"Import!M34415","v":0},{"$f":"Import!M34456","v":0},{"$f":"Import!M34497","v":0},{"$f":"Import!M34538","v":0},0]
[null,"Corporate issuers",4,{"$f":"Import!M34170","v":0},{"$f":"Import!M34211","v":0},{"$f":"Import!M34252","v":0},{"$f":"Import!M34293","v":0},{"$f":"Import!M34334","v":0},{"$f":"Import!M34375","v":0},{"$f":"Import!M34416","v":0},{"$f":"Import!M34457","v":0},{"$f":"Import!M34498","v":0},{"$f":"Import!M34539","v":0},0]
[null,"Corporate issuers",5,{"$f":"Import!M34171","v":0},{"$f":"Import!M34212","v":0},{"$f":"Import!M34253","v":0},{"$f":"Import!M34294","v":0},{"$f":"Import!M34335","v":0},{"$f":"Import!M34376","v":0},{"$f":"Import!M34417","v":0},{"$f":"Import!M34458","v":0},{"$f":"Import!M34499","v":0},{"$f":"Import!M34540","v":0},0]
[null,"Corporate issuers",6,{"$f":"Import!M34172","v":0},{"$f":"Import!M34213","v":0},{"$f":"Import!M34254","v":0},{"$f":"Import!M34295","v":0},{"$f":"Import!M34336","v":0},{"$f":"Import!M34377","v":0},{"$f":"Import!M34418","v":0},{"$f":"Import!M34459","v":0},{"$f":"Import!M34500","v":0},{"$f":"Import!M34541","v":0},0]
[null,"Corporate issuers",7,{"$f":"Import!M34173","v":0},{"$f":"Import!M34214","v":0},{"$f":"Import!M34255","v":0},{"$f":"Import!M34296","v":0},{"$f":"Import!M34337","v":0},{"$f":"Import!M34378","v":0},{"$f":"Import!M34419","v":0},{"$f":"Import!M34460","v":0},{"$f":"Import!M34501","v":0},{"$f":"Import!M34542","v":0},0]
[null,"Corporate issuers",8,{"$f":"Import!M34174","v":0},{"$f":"Import!M34215","v":0},{"$f":"Import!M34256","v":0},{"$f":"Import!M34297","v":0},{"$f":"Import!M34338","v":0},{"$f":"Import!M34379","v":0},{"$f":"Import!M34420","v":0},{"$f":"Import!M34461","v":0},{"$f":"Import!M34502","v":0},{"$f":"Import!M34543","v":0},0]
[null,"Issuers of asset-backed securities",1,{"$f":"Import!M34175","v":0},{"$f":"Import!M34216","v":0},{"$f":"Import!M34257","v":0},{"$f":"Import!M34298","v":0},{"$f":"Import!M34339","v":0},{"$f":"Import!M34380","v":0},{"$f":"Import!M34421","v":0},{"$f":"Import!M34462","v":0},{"$f":"Import!M34503","v":0},{"$f":"Import!M34544","v":0},0]
[null,"Issuers of asset-backed securities",2,{"$f":"Import!M34176","v":0},{"$f":"Import!M34217","v":0},{"$f":"Import!M34258","v":0},{"$f":"Import!M34299","v":0},{"$f":"Import!M34340","v":0},{"$f":"Import!M34381","v":0},{"$f":"Import!M34422","v":0},{"$f":"Import!M34463","v":0},{"$f":"Import!M34504","v":0},{"$f":"Import!M34545","v":0},0]
[null,"Issuers of asset-backed securities",3,{"$f":"Import!M34177","v":0},{"$f":"Import!M34218","v":0},{"$f":"Import!M34259","v":0},{"$f":"Import!M34300","v":0},{"$f":"Import!M34341","v":0},{"$f":"Import!M34382","v":0},{"$f":"Import!M34423","v":0},{"$f":"Import!M34464","v":0},{"$f":"Import!M34505","v":0},{"$f":"Import!M34546","v":0},0]
[null,"Issuers of asset-backed securities",4,{"$f":"Import!M34178","v":0},{"$f":"Import!M34219","v":0},{"$f":"Import!M34260","v":0},{"$f":"Import!M34301","v":0},{"$f":"Import!M34342","v":0},{"$f":"Import!M34383","v":0},{"$f":"Import!M34424","v":0},{"$f":"Import!M34465","v":0},{"$f":"Import!M34506","v":0},{"$f":"Import!M34547","v":0},0]
[null,"Issuers of asset-backed securities",5,{"$f":"Import!M34179","v":0},{"$f":"Import!M34220","v":0},{"$f":"Import!M34261","v":0},{"$f":"Import!M34302","v":0},{"$f":"Import!M34343","v":0},{"$f":"Import!M34384","v":0},{"$f":"Import!M34425","v":0},{"$f":"Import!M34466","v":0},{"$f":"Import!M34507","v":0},{"$f":"Import!M34548","v":0},0]
[null,"Issuers of asset-backed securities",6,{"$f":"Import!M34180","v":0},{"$f":"Import!M34221","v":0},{"$f":"Import!M34262","v":0},{"$f":"Import!M34303","v":0},{"$f":"Import!M34344","v":0},{"$f":"Import!M34385","v":0},{"$f":"Import!M34426","v":0},{"$f":"Import!M34467","v":0},{"$f":"Import!M34508","v":0},{"$f":"Import!M34549","v":0},0]
[null,"Issuers of asset-backed securities",7,{"$f":"Import!M34181","v":0},{"$f":"Import!M34222","v":0},{"$f":"Import!M34263","v":0},{"$f":"Import!M34304","v":0},{"$f":"Import!M34345","v":0},{"$f":"Import!M34386","v":0},{"$f":"Import!M34427","v":0},{"$f":"Import!M34468","v":0},{"$f":"Import!M34509","v":0},{"$f":"Import!M34550","v":0},0]
[null,"Issuers of asset-backed securities",8,{"$f":"Import!M34182","v":0},{"$f":"Import!M34223","v":0},{"$f":"Import!M34264","v":0},{"$f":"Import!M34305","v":0},{"$f":"Import!M34346","v":0},{"$f":"Import!M34387","v":0},{"$f":"Import!M34428","v":0},{"$f":"Import!M34469","v":0},{"$f":"Import!M34510","v":0},{"$f":"Import!M34551","v":0},0]
[null,"Government securities, municipal securities, foreign government securities",0,{"$f":"Import!M34183","v":0},{"$f":"Import!M34224","v":0},{"$f":"Import!M34265","v":0},{"$f":"Import!M34306","v":0},{"$f":"Import!M34347","v":0},{"$f":"Import!M34388","v":0},{"$f":"Import!M34429","v":0},{"$f":"Import!M34470","v":0},{"$f":"Import!M34511","v":0},{"$f":"Import!M34552","v":0},0]
[null,"Government securities, municipal securities, foreign government securities",1,{"$f":"Import!M34184","v":0},{"$f":"Import!M34225","v":0},{"$f":"Import!M34266","v":0},{"$f":"Import!M34307","v":0},{"$f":"Import!M34348","v":0},{"$f":"Import!M34389","v":0},{"$f":"Import!M34430","v":0},{"$f":"Import!M34471","v":0},{"$f":"Import!M34512","v":0},{"$f":"Import!M34553","v":0},0]
[null,"Government securities, municipal securities, foreign government securities",2,{"$f":"Import!M34185","v":0},{"$f":"Import!M34226","v":0},{"$f":"Import!M34267","v":0},{"$f":"Import!M34308","v":0},{"$f":"Import!M34349","v":0},{"$f":"Import!M34390","v":0},{"$f":"Import!M34431","v":0},{"$f":"Import!M34472","v":0},{"$f":"Import!M34513","v":0},{"$f":"Import!M34554","v":0},0]
[null,"Government securities, municipal securities, foreign government securities",3,{"$f":"Import!M34186","v":0},{"$f":"Import!M34227","v":0},{"$f":"Import!M34268","v":0},{"$f":"Import!M34309","v":0},{"$f":"Import!M34350","v":0},{"$f":"Import!M34391","v":0},{"$f":"Import!M34432","v":0},{"$f":"Import!M34473","v":0},{"$f":"Import!M34514","v":0},{"$f":"Import!M34555","v":0},0]
[null,"Government securities, municipal securities, foreign government securities",4,{"$f":"Import!M34187","v":0},{"$f":"Import!M34228","v":0},{"$f":"Import!M34269","v":0},{"$f":"Import!M34310","v":0},{"$f":"Import!M34351","v":0},{"$f":"Import!M34392","v":0},{"$f":"Import!M34433","v":0},{"$f":"Import!M34474","v":0},{"$f":"Import!M34515","v":0},{"$f":"Import!M34556","v":0},0]
[null,"Government securities, municipal securities, foreign government securities",5,{"$f":"Import!M34188","v":0},{"$f":"Import!M34229","v":0},{"$f":"Import!M34270","v":0},{"$f":"Import!M34311","v":0},{"$f":"Import!M34352","v":0},{"$f":"Import!M34393","v":0},{"$f":"Import!M34434","v":0},{"$f":"Import!M34475","v":0},{"$f":"Import!M34516","v":0},{"$f":"Import!M34557","v":0},0]
[null,"Government securities, municipal securities, foreign government securities",6,{"$f":"Import!M34189","v":0},{"$f":"Import!M34230","v":0},{"$f":"Import!M34271","v":0},{"$f":"Import!M34312","v":0},{"$f":"Import!M34353","v":0},{"$f":"Import!M34394","v":0},{"$f":"Import!M34435","v":0},{"$f":"Import!M34476","v":0},{"$f":"Import!M34517","v":0},{"$f":"Import!M34558","v":0},0]
[null,"Government securities, municipal securities, foreign government securities",7,{"$f":"Import!M34190","v":0},{"$f":"Import!M34231","v":0},{"$f":"Import!M34272","v":0},{"$f":"Import!M34313","v":0},{"$f":"Import!M34354","v":0},{"$f":"Import!M34395","v":0},{"$f":"Import!M34436","v":0},{"$f":"Import!M34477","v":0},{"$f":"Import!M34518","v":0},{"$f":"Import!M34559","v":0},0]
[null,"Government securities, municipal securities, foreign government securities",8,{"$f":"Import!M34191","v":0},{"$f":"Import!M34232","v":0},{"$f":"Import!M34273","v":0},{"$f":"Import!M34314","v":0},{"$f":"Import!M34355","v":0},{"$f":"Import!M34396","v":0},{"$f":"Import!M34437","v":0},{"$f":"Import!M34478","v":0},{"$f":"Import!M34519","v":0},{"$f":"Import!M34560","v":0},0]
[null,null,null,null,null,null,null,null,null,null,null,null,"Total",{"$f":"SUM(N2038:N2078)","v":0}]
[]
[null,"Total rated assets","BSCR Rating","Moody's Investor's Service","Standard and Poor's","Dominion Bond Rating Service","Kroll Bond Rating Agency","Egan Jones Rating Company","Japan Credit Rating Agency","BMA-approved Internal Ratings","Other BMA-approved Rating Agency 1","Other BMA-approved Rating Agency 2","Other BMA-approved Rating Agency 3","Total"]
[null,"Total rated assets",0,{"$f":"D2070","v":0},{"$f":"E2070","v":0},0,0,0,0,0,0,0,0,{"$f":"SUM(D2082:M2082)","v":0}]
[null,"Total rated assets",1,{"$f":"D2038+D2046+D2054+D2062+D2071","v":0},{"$f":"E2038+E2046+E2054+E2062+E2071","v":0},0,0,0,0,0,0,0,0,{"$f":"SUM(D2083:M2083)","v":0}]
[null,"Total rated assets",2,{"$f":"D2039+D2047+D2055+D2063+D2072","v":0},0,0,0,0,0,0,0,0,0,0]
[null,"Total rated assets",3,0,0,0,0,0,0,0,0,0,0,0]
[null,"Total rated assets",4,0,0,0,0,0,0,0,0,0,0,0]
[null,"Total rated assets",5,0,0,0,0,0,0,0,0,0,0,0]
[null,"Total rated assets",6,0,0,0,0,0,0,0,0,0,0,0]
[null,"Total rated assets",7,0,0,0,0,0,0,0,0,0,0,0]
[null,"Total rated assets",8,0,0,0,0,0,0,0,0,0,0,0]
[null,"Total rated assets","Total",{"$f":"SUM(D2082:D2090)","v":0},{"$f":"SUM(E2082:E2090)","v":0},0,0,0,0,0,0,0,0,0]
[]
[null,"Asset/Rating Category","BSCR Rating","Unrated"]
[null,"Financial institutions, brokers and dealers",8,{"$f":"Import!M34561","v":0}]
[null,"Insurance companies",8,{"$f":"Import!M34562","v":0}]
[null,"Corporate issuers",8,{"$f":"Import!M34563","v":0}]
[null,"Issuers of asset-backed securities",8,{"$f":"Import!M34564","v":0}]
[null,"Government securities, municipal securities, foreign government securities",8,{"$f":"Import!M34565","v":0}]
[null,"Total unrated assets","Total",{"$f":"SUM(D2094:D2098)","v":0}]
[]
[null,"Asset/Rating Category","BSCR Rating","Financial institutions, brokers and dealers","Insurance companies","Corporate issuers","Issuers of asset-backed securities","Government securities, municipal securities, foreign government securities","Total"]
[null,"Total",0,null,null,null,null,{"$f":"N2070","v":0},{"$f":"SUM(H2102)","v":0}]
[null,"Total",1,{"$f":"N2038","v":0},{"$f":"N2046","v":0},{"$f":"N2054","v":0},{"$f":"N2062","v":0},0,{"$f":"SUM(D2103:H2103)","v":0}]
[null,"Total",2,0,0,0,0,0,{"$f":"SUM(D2104:H2104)","v":0}]
[null,"Total",3,0,0,0,0,0,0]
[null,"Total",4,0,0,0,0,0,0]
[null,"Total",5,0,0,0,0,0,0]
[null,"Total",6,0,0,0,0,0,0]
[null,"Total",7,0,0,0,0,0,0]
[null,"Total",8,{"$f":"N2045+D2094","v":0},{"$f":"N2053+D2095","v":0},{"$f":"N2061+D2096","v":0},{"$f":"N2069+D2097","v":0},{"$f":"N2078+D2098","v":0},0]
[null,"Total fixed income assets","Total",{"$f":"SUM(D2103:D2110)","v":0},{"$f":"SUM(E2103:E2110)","v":0},{"$f":"SUM(F2103:F2110)","v":0},{"$f":"SUM(G2103:G2110)","v":0},{"$f":"SUM(H2102:H2110)","v":0},{"$f":"SUM(D2111:H2111)","v":0}]
[null,"Unrated","- of which unrated",{"$f":"D2094","v":0},{"$f":"D2095","v":0},{"$f":"D2096","v":0},{"$f":"D2097","v":0},{"$f":"D2098","v":0},{"$f":"SUM(D2112:H2112)","v":0}]
[]
[]
["Cash","Sovereign Bonds","RMBS - Agency","Listed Preferred Equity - Direct","Hedge Funds","Investment Income Due and Accrued","Energy","Holding Entity","Significant Influence","United States Dollars","Positive market value",null,null,null,null,"Residential Mortgages",null,"United States of America"]
["Certificates of Deposit","Municipals","RMBS - Non-agency","Listed Preferred Equity - ETF","Equity investments in Infrastructure","Accounts and Premiums Receivable","Materials","Operating Entity","Control","Euro","Negative market value",null,null,null,null,"Other Residential Loans",null,"Bermuda"]
["Short-Term Commercial Paper","Supranationals (multilateral development banks and international organizations)","CMBS","Listed Preferred Equity - Mutual Fund","Commodities - Direct","Reinsurance Balance Receivable","Industrial","Branch","Select","Afghanistan Afghanis","Select",null,null,null,null,"Commercial and Farm Mortgages",null,"United Kingdom of Great Britain and Northern Ireland"]
["Money Market Funds","Corporate bonds","CLOs","Private Preferred Equity - Direct","Commodities - ETF","Funds Held by Ceding Reinsurers","Consumer Discretionary","Select",null,"Albania Leke",null,null,null,null,null,"Other Commercial Real Estate Loans",null,"Canada"]
["Other","Private Placements","CDOs","Private Preferred Equity - Fund","Commodities - Mutual Funds","SAC - long-term business - variable annuities","Consumer Staples",null,null,"Armenia Drams",null,null,null,null,null,"Middle Market Loans"]
["Select","Other - Secured Bonds","Auto Loan ABS","Other - Listed Preferred Equity","Catastrophe Bonds","SAC - long-term business - others","Healthcare",null,null,"Netherlands Antilles Guilders",null,null,null,null,null,"Leveraged Loans",null,"Afghanistan"]
[null,"Other - Unsecured Bonds","Student Loan ABS","Other - Private Preferred Equity","Other Insurance-Linked Securities","SAC - general business","Financial",null,null,"Angola Kwanza",null,null,null,null,null,"Other Direct Private Lending",null,"Aland Islands"]
[null,"Exchange-Traded Fund - Sovereigns","Credit Card Receivable ABS","Select","Advances to Affiliates","Deposit assets","Select",null,null,"Argentina Pesos",null,null,null,null,null,"Infrastructure Loans",null,"Albania"]
[null,"Mutual Fund - Sovereigns","Other ABS",null,"Investments in Affiliates","Other Sundry Assets",null,null,null,"Australia Dollars",null,null,null,null,null,"Collateral Loans",null,"Algeria"]
[null,"Exchange-Traded Fund - Corporates","Select",null,"Other","Letter of Credit, Guarantees and Other Instruments",null,null,null,"Aruba Guilders",null,null,null,null,null,"Equity Release / Reverse Mortgages",null,"American Samoa"]
[null,"Mutual Fund - Corporates",null,null,"Select","Other",null,null,null,"Azerbaijan New Manats",null,null,null,null,null,"Policy Loans",null,"Andorra"]
[null,"Other Funds",null,null,null,"Select",null,null,null,"Bosnia and Herzegovina Convertible Marka",null,null,null,null,null,"Other Direct Loans",null,"Angola"]
[null,"Select",null,null,null,null,null,null,null,"Barbados Dollars",null,null,null,null,null,"Mortgage Loan Fund - Residential",null,"Anguilla"]
[null,null,null,null,null,null,null,null,null,"Bangladesh Taka",null,null,null,null,null,"Mortgage Loan Fund - Commercial",null,"Antigua and Barbuda"]
[null,null,null,null,null,null,null,null,null,"Bulgaria Leva",null,null,null,null,null,"Private Credit Fund",null,"Argentina"]
[null,null,null,null,null,null,null,null,null,"Bahrain Dinars",null,null,null,null,null,"Other Loan Fund",null,"Armenia"]
["Listed options","Equity","Hedging","Long / Receive Fixed / Sell Protection","Private Equities","Investment Income Due and Accrued","Direct Real Estate - Residential",null,null,"Burundi Francs",null,null,null,null,null,"Select",null,"Aruba"]
["Futures","Debt","Speculative","Short / Receive Floating / Buy Protection","Investment Funds","Accounts and Premiums Receivable","Direct Real Estate - Commercial",null,null,"Bermuda Dollars",null,null,null,null,null,null,null,"Australia"]
["Forwards","Interest Rate","Select","Select","Hedge Funds","Reinsurance Balance Receivable","Direct Real-Estate - Industrial",null,null,"Brunei Dollars",null,null,null,null,null,"Insured/Guaranteed Mortgages",null,"Austria"]
["Swaps","Inflation",null,null,"Private Credit Funds","SAC - long-term business - variable annuities","Direct Real Estate - Land",null,null,"Bolivia Bolivianos",null,null,null,null,null,"Other Commercial and Farm Mortgages",null,"Azerbaijan"]
["Swaptions","Credit",null,null,"Catastrophe Bonds","SAC - long-term business - others","Real Estate Funds - Residential",null,null,"Brazil Reais",null,null,null,null,null,"Other Residential Mortgages",null,"Bahamas"]
["OTC options","Currencies","Yes","Exchange-traded","Other Insurance-Linked Securities","SAC - general business","Real Estate Funds - Commercial",null,null,"Bahamas Dollars",null,null,null,null,null,"Mortgages Not In Good Standing",null,"Bahrain"]
["Other","Commodities","No","OTC – Centrally-cleared","Infrastructure Debt","Deposit assets","Real-Estate Funds - Industrial",null,null,"Bhutan Ngultrum",null,null,null,null,null,"Collateral Loans",null,"Bangladesh"]
["Select","Other","Select","OTC – Not centrally-cleared","Equity Investments in Infrastructure","Other Sundry Assets","Real Estate Funds - Land",null,null,"Botswana Pulas",null,null,null,null,null,"Middle Market Loans",null,"Barbados"]
[null,"Select",null,"Select","Other","Letter of Credit, Guarantees and Other Instruments","Direct Real Estate - Other",null,null,"Belarus Rubles",null,null,null,null,null,"Other Direct Private Lending",null,"Belarus"]
[null,null,null,null,"Select","Other","Real Estate Funds - Other",null,null,"Belize Dollars",null,null,null,null,null,"Policy Loans",null,"Belgium"]
[null,null,null,null,null,"Select","Select",null,null,"Canada Dollars",null,null,null,null,null,"Other",null,"Belize"]
[null,null,null,null,null,null,null,null,null,"Congo/Kinshasa Francs",null,null,null,null,null,"Select",null,"Benin"]
[null,null,null,null,null,null,null,null,null,"Switzerland Francs",null,null,null,null,null,null,null,"Bhutan"]
["BSCR Rating",null,"Listed Equity - Direct",null,null,null,null,null,null,"Chile Pesos",null,null,null,null,null,null,null,"Bolivia (Plurinational State of)"]
["Select",null,"Listed Equity - ETF",null,null,null,"Investment",null,null,"China Yuan Renminbi",null,null,null,null,null,null,null,"Bonaire, Sint Eustatius and Saba"]
["BSCR Rating 0",null,"Listed Equity - Mutual Fund",null,null,null,"Owner-occupied",null,null,"Colombia Pesos",null,null,null,null,null,null,null,"Bosnia and Herzegovina"]
["BSCR Rating 1",null,"Private Equity - Direct",null,null,null,"Select",null,null,"Costa Rica Colones",null,null,null,null,null,null,null,"Botswana"]
["BSCR Rating 2",null,"Private Equity - Fund",null,null,null,null,null,null,"Cuba Convertible Pesos",null,null,null,null,null,null,null,"Brazil"]
["BSCR Rating 3",null,"Other - Listed Equity",null,null,null,null,null,null,"Cuba Pesos",null,null,null,null,null,null,null,"British Virgin Islands"]
["BSCR Rating 4",null,"Other - Private Equity",null,null,null,null,null,null,"Cape Verde Escudos",null,null,null,null,null,null,null,"Brunei Darussalam"]
["BSCR Rating 5",null,"Select",null,null,null,null,null,null,"Czech Republic Koruny",null,null,null,null,null,null,null,"Bulgaria"]
["BSCR Rating 6",null,null,null,null,null,null,null,null,"Djibouti Francs",null,null,null,null,null,null,null,"Burkina Faso"]
["BSCR Rating 7",null,null,null,null,null,null,null,null,"Denmark Kroner",null,null,null,null,null,null,null,"Burundi"]
["BSCR Rating 8",null,null,null,null,null,null,null,null,"Dominican Republic Pesos",null,null,null,null,null,null,null,"Cabo Verde (Cape Verde)"]
[null,null,null,null,null,null,null,null,null,"Algeria Dinars",null,null,null,null,null,null,null,"Cambodia"]
[null,null,null,null,null,null,null,null,null,"Estonia Krooni",null,null,null,null,null,null,null,"Cameroon"]
[null,null,null,null,null,null,null,null,null,"Egypt Pounds",null,null,null,null,null,null,null,"Cayman Islands"]
[null,null,null,null,null,null,null,null,null,"Eritrea Nakfa",null,null,null,null,null,null,null,"Central African Republic"]
[null,null,null,null,null,null,null,null,null,"Ethiopia Birr",null,null,null,null,null,null,null,"Chad"]
[null,null,null,null,null,null,null,null,null,"Fiji Dollars",null,null,null,null,null,null,null,"Chile"]
[null,null,null,null,null,null,null,null,null,"Falkland Islands Pounds",null,null,null,null,null,null,null,"China"]
[null,null,null,null,null,null,null,null,null,"United Kingdom Pounds",null,null,null,null,null,null,null,"China, Hong Kong SAR"]
[null,null,null,null,null,null,null,null,null,"Georgia Lari",null,null,null,null,null,null,null,"China, Macao SAR "]
[null,null,null,null,null,null,null,null,null,"Guernsey Pounds",null,null,null,null,null,null,null,"Colombia"]
[null,null,null,null,null,null,null,null,null,"Ghana Cedis",null,null,null,null,null,null,null,"Comoros"]
[null,null,null,null,null,null,null,null,null,"Gibraltar Pounds",null,null,null,null,null,null,null,"Congo"]
[null,null,null,null,null,null,null,null,null,"Gambia Dalasi",null,null,null,null,null,null,null,"Cook Islands"]
[null,null,null,null,null,null,null,null,null,"Guinea Francs",null,null,null,null,null,null,null,"Costa Rica"]
[null,null,null,null,null,null,null,null,null,"Guatemala Quetzales",null,null,null,null,null,null,null,"Cote d' Ivoire"]
[null,null,null,null,null,null,null,null,null,"Guyana Dollars",null,null,null,null,null,null,null,"Croatia"]
[null,null,null,null,null,null,null,null,null,"Hong Kong Dollars",null,null,null,null,null,null,null,"Cuba"]
[null,null,null,null,null,null,null,null,null,"Honduras Lempiras",null,null,null,null,null,null,null,"Curacao"]
[null,null,null,null,null,null,null,null,null,"Croatia Kuna",null,null,null,null,null,null,null,"Cyprus"]
[null,null,null,null,null,null,null,null,null,"Haiti Gourdes",null,null,null,null,null,null,null,"Czech Republic"]
[null,null,null,null,null,null,null,null,null,"Hungary Forint",null,null,null,null,null,null,null,"Democratic People's Republic of Korea (North Korea)"]
[null,null,null,null,null,null,null,null,null,"Indonesia Rupiahs",null,null,null,null,null,null,null,"Democratic Republic of the Congo"]
[null,null,null,null,null,null,null,null,null,"Israel New Shekels",null,null,null,null,null,null,null,"Denmark"]
[null,null,null,null,null,null,null,null,null,"Isle of Man Pounds",null,null,null,null,null,null,null,"Djibouti"]
[null,null,null,null,null,null,null,null,null,"India Rupees",null,null,null,null,null,null,null,"Dominica"]
[null,null,null,null,null,null,null,null,null,"Iraq Dinars",null,null,null,null,null,null,null,"Dominican Republic"]
[null,null,null,null,null,null,null,null,null,"Iran Rials",null,null,null,null,null,null,null,"Ecuador"]
[null,null,null,null,null,null,null,null,null,"Iceland Kronur",null,null,null,null,null,null,null,"Egypt"]
[null,null,null,null,null,null,null,null,null,"Jersey Pounds",null,null,null,null,null,null,null,"El Salvador"]
[null,null,null,null,null,null,null,null,null,"Jamaica Dollars",null,null,null,null,null,null,null,"Equatorial Guinea"]
[null,null,null,null,null,null,null,null,null,"Jordan Dinars",null,null,null,null,null,null,null,"Eritrea"]
[null,null,null,null,null,null,null,null,null,"Japan Yen",null,null,null,null,null,null,null,"Estonia"]
[null,null,null,null,null,null,null,null,null,"Kenya Shillings",null,null,null,null,null,null,null,"Eswatini (Kingdom of Swaziland)"]
[null,null,null,null,null,null,null,null,null,"Kyrgyzstan Soms",null,null,null,null,null,null,null,"Ethiopia"]
[null,null,null,null,null,null,null,null,null,"Cambodia Riels",null,null,null,null,null,null,null,"Falkland Islands"]
[null,null,null,null,null,null,null,null,null,"Comoros Francs",null,null,null,null,null,null,null,"Faroe Islands"]
[null,null,null,null,null,null,null,null,null,"North Korea Won",null,null,null,null,null,null,null,"Fiji"]
[null,null,null,null,null,null,null,null,null,"South Korea Won",null,null,null,null,null,null,null,"Finland"]
[null,null,null,null,null,null,null,null,null,"Kuwait Dinars",null,null,null,null,null,null,null,"France"]
[null,null,null,null,null,null,null,null,null,"Cayman Islands Dollars",null,null,null,null,null,null,null,"French Guiana"]
[null,null,null,null,null,null,null,null,null,"Kazakhstan Tenge",null,null,null,null,null,null,null,"French Polynesia"]
[null,null,null,null,null,null,null,null,null,"Laos Kips",null,null,null,null,null,null,null,"Gabon"]
[null,null,null,null,null,null,null,null,null,"Lebanon Pounds",null,null,null,null,null,null,null,"Gambia (Republic of The)"]
[null,null,null,null,null,null,null,null,null,"Sri Lanka Rupees",null,null,null,null,null,null,null,"Georgia"]
[null,null,null,null,null,null,null,null,null,"Liberia Dollars",null,null,null,null,null,null,null,"Germany"]
[null,null,null,null,null,null,null,null,null,"Lesotho Maloti",null,null,null,null,null,null,null,"Ghana"]
[null,null,null,null,null,null,null,null,null,"Lithuania Litai",null,null,null,null,null,null,null,"Gibraltar"]
[null,null,null,null,null,null,null,null,null,"Latvia Lati",null,null,null,null,null,null,null,"Greece"]
[null,null,null,null,null,null,null,null,null,"Libya Dinars",null,null,null,null,null,null,null,"Greenland"]
[null,null,null,null,null,null,null,null,null,"Morocco Dirhams",null,null,null,null,null,null,null,"Grenada"]
[null,null,null,null,null,null,null,null,null,"Moldova Lei",null,null,null,null,null,null,null,"Guadeloupe"]
[null,null,null,null,null,null,null,null,null,"Madagascar Ariary",null,null,null,null,null,null,null,"Guam"]
[null,null,null,null,null,null,null,null,null,"Macedonia Denars",null,null,null,null,null,null,null,"Guatemala"]
[null,null,null,null,null,null,null,null,null,"Myanmar Kyats",null,null,null,null,null,null,null,"Guernsey"]
[null,null,null,null,null,null,null,null,null,"Mongolia Tugriks",null,null,null,null,null,null,null,"Guinea"]
[null,null,null,null,null,null,null,null,null,"Macau Patacas",null,null,null,null,null,null,null,"Guinea-Bissau"]
[null,null,null,null,null,null,null,null,null,"Mauritania Ouguiyas",null,null,null,null,null,null,null,"Guyana"]
[null,null,null,null,null,null,null,null,null,"Mauritius Rupees",null,null,null,null,null,null,null,"Haiti"]
[null,null,null,null,null,null,null,null,null,"Maldives Rufiyaa",null,null,null,null,null,null,null,"Holy See"]
[null,null,null,null,null,null,null,null,null,"Malawi Kwachas",null,null,null,null,null,null,null,"Honduras"]
[null,null,null,null,null,null,null,null,null,"Mexico Pesos",null,null,null,null,null,null,null,"Hungary"]
[null,null,null,null,null,null,null,null,null,"Malaysia Ringgits",null,null,null,null,null,null,null,"Iceland"]
[null,null,null,null,null,null,null,null,null,"Mozambique Meticais",null,null,null,null,null,null,null,"India"]
[null,null,null,null,null,null,null,null,null,"Namibia Dollars",null,null,null,null,null,null,null,"Indonesia"]
[null,null,null,null,null,null,null,null,null,"Nigeria Nairas",null,null,null,null,null,null,null,"Iran (Islamic Republic of)"]
[null,null,null,null,null,null,null,null,null,"Nicaragua Cordobas",null,null,null,null,null,null,null,"Iraq"]
[null,null,null,null,null,null,null,null,null,"Norway Kroner",null,null,null,null,null,null,null,"Ireland"]
[null,null,null,null,null,null,null,null,null,"Nepal Rupees",null,null,null,null,null,null,null,"Isle of Man"]
[null,null,null,null,null,null,null,null,null,"New Zealand Dollars",null,null,null,null,null,null,null,"Israel"]
[null,null,null,null,null,null,null,null,null,"Oman Rials",null,null,null,null,null,null,null,"Italy"]
[null,null,null,null,null,null,null,null,null,"Panama Balboas",null,null,null,null,null,null,null,"Jamaica"]
[null,null,null,null,null,null,null,null,null,"Peru Nuevos Soles",null,null,null,null,null,null,null,"Japan"]
[null,null,null,null,null,null,null,null,null,"Papua New Guinea Kina",null,null,null,null,null,null,null,"Jersey"]
[null,null,null,null,null,null,null,null,null,"Philippines Pesos",null,null,null,null,null,null,null,"Jordan"]
[null,null,null,null,null,null,null,null,null,"Pakistan Rupees",null,null,null,null,null,null,null,"Kazakhstan"]
[null,null,null,null,null,null,null,null,null,"Poland Zlotych",null,null,null,null,null,null,null,"Kenya"]
[null,null,null,null,null,null,null,null,null,"Paraguay Guarani",null,null,null,null,null,null,null,"Kiribati"]
[null,null,null,null,null,null,null,null,null,"Qatar Riyals",null,null,null,null,null,null,null,"Kuwait"]
[null,null,null,null,null,null,null,null,null,"Romania New Lei",null,null,null,null,null,null,null,"Kyrgyzstan"]
[null,null,null,null,null,null,null,null,null,"Serbia Dinars",null,null,null,null,null,null,null,"Lao People's Democratic Republic"]
[null,null,null,null,null,null,null,null,null,"Russia Rubles",null,null,null,null,null,null,null,"Latvia"]
[null,null,null,null,null,null,null,null,null,"Rwanda Francs",null,null,null,null,null,null,null,"Lebanon"]
[null,null,null,null,null,null,null,null,null,"Saudi Arabia Riyals",null,null,null,null,null,null,null,"Lesotho"]
[null,null,null,null,null,null,null,null,null,"Solomon Islands Dollars",null,null,null,null,null,null,null,"Liberia"]
[null,null,null,null,null,null,null,null,null,"Seychelles Rupees",null,null,null,null,null,null,null,"Libya"]
[null,null,null,null,null,null,null,null,null,"Sudan Pounds",null,null,null,null,null,null,null,"Liechtenstein"]
[null,null,null,null,null,null,null,null,null,"Sweden Kronor",null,null,null,null,null,null,null,"Lithuania"]
[null,null,null,null,null,null,null,null,null,"Singapore Dollars",null,null,null,null,null,null,null,"Luxembourg"]
[null,null,null,null,null,null,null,null,null,"Saint Helena Pounds",null,null,null,null,null,null,null,"Madagascar"]
[null,null,null,null,null,null,null,null,null,"Slovakia Koruny",null,null,null,null,null,null,null,"Malawi"]
[null,null,null,null,null,null,null,null,null,"Sierra Leone Leones",null,null,null,null,null,null,null,"Malaysia"]
[null,null,null,null,null,null,null,null,null,"Somalia Shillings",null,null,null,null,null,null,null,"Maldives"]
[null,null,null,null,null,null,null,null,null,"Seborga Luigini",null,null,null,null,null,null,null,"Mali"]
[null,null,null,null,null,null,null,null,null,"Suriname Dollars",null,null,null,null,null,null,null,"Malta"]
[null,null,null,null,null,null,null,null,null,"São Tome and Principe Dobras",null,null,null,null,null,null,null,"Marshall Islands"]
[null,null,null,null,null,null,null,null,null,"El Salvador Colones",null,null,null,null,null,null,null,"Martinique"]
[null,null,null,null,null,null,null,null,null,"Syria Pounds",null,null,null,null,null,null,null,"Mauritania"]
[null,null,null,null,null,null,null,null,null,"Swaziland Emalangeni",null,null,null,null,null,null,null,"Mauritius"]
[null,null,null,null,null,null,null,null,null,"Thailand Baht",null,null,null,null,null,null,null,"Mayotte"]
[null,null,null,null,null,null,null,null,null,"Tajikistan Somoni",null,null,null,null,null,null,null,"Mexico"]
[null,null,null,null,null,null,null,null,null,"Turkmenistan Manats",null,null,null,null,null,null,null,"Micronesia (Federated States of)"]
[null,null,null,null,null,null,null,null,null,"Tunisia Dinars",null,null,null,null,null,null,null,"Monaco"]
[null,null,null,null,null,null,null,null,null,"Tonga Pa'anga",null,null,null,null,null,null,null,"Mongolia"]
[null,null,null,null,null,null,null,null,null,"Turkey New Lira",null,null,null,null,null,null,null,"Montenegro"]
[null,null,null,null,null,null,null,null,null,"Trinidad and Tobago Dollars",null,null,null,null,null,null,null,"Montserrat"]
[null,null,null,null,null,null,null,null,null,"Tuvalu Dollars",null,null,null,null,null,null,null,"Morocco"]
[null,null,null,null,null,null,null,null,null,"Taiwan New Dollars",null,null,null,null,null,null,null,"Mozambique"]
[null,null,null,null,null,null,null,null,null,"Tanzania Shillings",null,null,null,null,null,null,null,"Myanmar"]
[null,null,null,null,null,null,null,null,null,"Ukraine Hryvnia",null,null,null,null,null,null,null,"Namibia"]
[null,null,null,null,null,null,null,null,null,"Uganda Shillings",null,null,null,null,null,null,null,"Nauru"]
[null,null,null,null,null,null,null,null,null,"Uruguay Pesos",null,null,null,null,null,null,null,"Nepal"]
[null,null,null,null,null,null,null,null,null,"Uzbekistan Sums",null,null,null,null,null,null,null,"Netherlands"]
[null,null,null,null,null,null,null,null,null,"Venezuela Bolivares",null,null,null,null,null,null,null,"New Caledonia"]
[null,null,null,null,null,null,null,null,null,"Venezuela Bolivares Fuertes",null,null,null,null,null,null,null,"New Zealand"]
[null,null,null,null,null,null,null,null,null,"Vietnam Dong",null,null,null,null,null,null,null,"Nicaragua"]
[null,null,null,null,null,null,null,null,null,"Vanuatu Vatu",null,null,null,null,null,null,null,"Niger"]
[null,null,null,null,null,null,null,null,null,"Samoa Tala",null,null,null,null,null,null,null,"Nigeria"]
[null,null,null,null,null,null,null,null,null,"Communauté Financière Africaine Francs BEAC",null,null,null,null,null,null,null,"Niue"]
[null,null,null,null,null,null,null,null,null,"Silver Ounces",null,null,null,null,null,null,null,"Norfolk Island"]
[null,null,null,null,null,null,null,null,null,"Gold Ounces",null,null,null,null,null,null,null,"North Macedonia"]
[null,null,null,null,null,null,null,null,null,"East Caribbean Dollars",null,null,null,null,null,null,null,"Northern Mariana Islands"]
[null,null,null,null,null,null,null,null,null,"International Monetary Fund Special Drawing Rights",null,null,null,null,null,null,null,"Norway"]
[null,null,null,null,null,null,null,null,null,"Communauté Financière Africaine Francs BCEAO",null,null,null,null,null,null,null,"Oman"]
[null,null,null,null,null,null,null,null,null,"Palladium Ounces",null,null,null,null,null,null,null,"Pakistan"]
[null,null,null,null,null,null,null,null,null,"Comptoirs Français du Pacifique Francs",null,null,null,null,null,null,null,"Palau"]
[null,null,null,null,null,null,null,null,null,"Platinum Ounces",null,null,null,null,null,null,null,"Panama"]
[null,null,null,null,null,null,null,null,null,"Yemen Rials",null,null,null,null,null,null,null,"Papua New Guinea"]
[null,null,null,null,null,null,null,null,null,"South Africa Rand",null,null,null,null,null,null,null,"Paraguay"]
[null,null,null,null,null,null,null,null,null,"Zambia Kwacha",null,null,null,null,null,null,null,"Peru"]
[null,null,null,null,null,null,null,null,null,"Zimbabwe Dollars",null,null,null,null,null,null,null,"Philippines"]
[null,null,null,null,null,null,null,null,null,null,null,null,null,null,null,null,null,"Pitcairn"]
[null,null,null,null,null,null,null,null,null,null,null,null,null,null,null,null,null,"Poland"]
[null,null,null,null,null,null,null,null,null,null,null,null,null,null,null,null,null,"Portugal"]
[null,null,null,null,null,null,null,null,null,null,null,null,null,null,null,null,null,"Puerto Rico"]
[null,null,null,null,null,null,null,null,null,null,null,null,null,null,null,null,null,"Qatar"]
[null,null,null,null,null,null,null,null,null,null,null,null,null,null,null,null,null,"Republic of Korea (South Korea)"]
[null,null,null,null,null,null,null,null,null,null,null,null,null,null,null,null,null,"Republic of Moldova"]
[null,null,null,null,null,null,null,null,null,null,null,null,null,null,null,null,null,"Reunion"]
[null,null,null,null,null,null,null,null,null,null,null,null,null,null,null,null,null,"Romania"]
[null,null,null,null,null,null,null,null,null,null,null,null,null,null,null,null,null,"Russian Federation"]
[null,null,null,null,null,null,null,null,null,null,null,null,null,null,null,null,null,"Rwanda"]
[null,null,null,null,null,null,null,null,null,null,null,null,null,null,null,null,null,"Saint Barthelemy (St. Barts)"]
[null,null,null,null,null,null,null,null,null,null,null,null,null,null,null,null,null,"Saint Helena"]
[null,null,null,null,null,null,null,null,null,null,null,null,null,null,null,null,null,"Saint Kitts and Nevis"]
[null,null,null,null,null,null,null,null,null,null,null,null,null,null,null,null,null,"Saint Lucia"]
[null,null,null,null,null,null,null,null,null,null,null,null,null,null,null,null,null,"Saint Martin"]
[null,null,null,null,null,null,null,null,null,null,null,null,null,null,null,null,null,"Saint Pierre and Miquelon"]
[null,null,null,null,null,null,null,null,null,null,null,null,null,null,null,null,null,"Saint Vincent and The Grenadines"]
[null,null,null,null,null,null,null,null,null,null,null,null,null,null,null,null,null,"Samoa"]
[null,null,null,null,null,null,null,null,null,null,null,null,null,null,null,null,null,"San Marino"]
[null,null,null,null,null,null,null,null,null,null,null,null,null,null,null,null,null,"Sao Tome and Principe"]
[null,null,null,null,null,null,null,null,null,null,null,null,null,null,null,null,null,"Sark"]
[null,null,null,null,null,null,null,null,null,null,null,null,null,null,null,null,null,"Saudi Arabia"]
[null,null,null,null,null,null,null,null,null,null,null,null,null,null,null,null,null,"Senegal"]
[null,null,null,null,null,null,null,null,null,null,null,null,null,null,null,null,null,"Serbia"]
[null,null,null,null,null,null,null,null,null,null,null,null,null,null,null,null,null,"Seychelles"]
[null,null,null,null,null,null,null,null,null,null,null,null,null,null,null,null,null,"Sierra Leone"]
[null,null,null,null,null,null,null,null,null,null,null,null,null,null,null,null,null,"Singapore"]
[null,null,null,null,null,null,null,null,null,null,null,null,null,null,null,null,null,"Sint Maarten"]
[null,null,null,null,null,null,null,null,null,null,null,null,null,null,null,null,null,"Slovakia"]
[null,null,null,null,null,null,null,null,null,null,null,null,null,null,null,null,null,"Slovenia"]
[null,null,null,null,null,null,null,null,null,null,null,null,null,null,null,null,null,"Solomon Islands"]
[null,null,null,null,null,null,null,null,null,null,null,null,null,null,null,null,null,"Somalia"]
[null,null,null,null,null,null,null,null,null,null,null,null,null,null,null,null,null,"South Africa"]
[null,null,null,null,null,null,null,null,null,null,null,null,null,null,null,null,null,"South Sudan"]
[null,null,null,null,null,null,null,null,null,null,null,null,null,null,null,null,null,"Spain"]
[null,null,null,null,null,null,null,null,null,null,null,null,null,null,null,null,null,"Sri Lanka"]
[null,null,null,null,null,null,null,null,null,null,null,null,null,null,null,null,null,"State of Palestine"]
[null,null,null,null,null,null,null,null,null,null,null,null,null,null,null,null,null,"Sudan"]
[null,null,null,null,null,null,null,null,null,null,null,null,null,null,null,null,null,"Suriname"]
[null,null,null,null,null,null,null,null,null,null,null,null,null,null,null,null,null,"Svalbard, Jan Mayen"]
[null,null,null,null,null,null,null,null,null,null,null,null,null,null,null,null,null,"Sweden"]
[null,null,null,null,null,null,null,null,null,null,null,null,null,null,null,null,null,"Switzerland"]
[null,null,null,null,null,null,null,null,null,null,null,null,null,null,null,null,null,"Syrian Arab Republic"]
[null,null,null,null,null,null,null,null,null,null,null,null,null,null,null,null,null,"Taiwan"]
[null,null,null,null,null,null,null,null,null,null,null,null,null,null,null,null,null,"Tajikistan"]
[null,null,null,null,null,null,null,null,null,null,null,null,null,null,null,null,null,"Thailand"]
[null,null,null,null,null,null,null,null,null,null,null,null,null,null,null,null,null,"Timor-Leste"]
[null,null,null,null,null,null,null,null,null,null,null,null,null,null,null,null,null,"Togo"]
[null,null,null,null,null,null,null,null,null,null,null,null,null,null,null,null,null,"Tokelau"]
[null,null,null,null,null,null,null,null,null,null,null,null,null,null,null,null,null,"Tonga"]
[null,null,null,null,null,null,null,null,null,null,null,null,null,null,null,null,null,"Trinidad and Tobago"]
[null,null,null,null,null,null,null,null,null,null,null,null,null,null,null,null,null,"Tunisia"]
[null,null,null,null,null,null,null,null,null,null,null,null,null,null,null,null,null,"Turkey"]
[null,null,null,null,null,null,null,null,null,null,null,null,null,null,null,null,null,"Turkmenistan"]
[null,null,null,null,null,null,null,null,null,null,null,null,null,null,null,null,null,"Turks & Caicos Islands"]
[null,null,null,null,null,null,null,null,null,null,null,null,null,null,null,null,null,"Tuvalu"]
[null,null,null,null,null,null,null,null,null,null,null,null,null,null,null,null,null,"Uganda"]
[null,null,null,null,null,null,null,null,null,null,null,null,null,null,null,null,null,"Ukraine"]
[null,null,null,null,null,null,null,null,null,null,null,null,null,null,null,null,null,"United Arab Emirates"]
[null,null,null,null,null,null,null,null,null,null,null,null,null,null,null,null,null,"United Republic of Tanzania"]
[null,null,null,null,null,null,null,null,null,null,null,null,null,null,null,null,null,"Uruguay"]
[null,null,null,null,null,null,null,null,null,null,null,null,null,null,null,null,null,"US Virgin Islands"]
[null,null,null,null,null,null,null,null,null,null,null,null,null,null,null,null,null,"Uzbekistan"]
[null,null,null,null,null,null,null,null,null,null,null,null,null,null,null,null,null,"Vanuatu"]
[null,null,null,null,null,null,null,null,null,null,null,null,null,null,null,null,null,"Venezuela, Bolivarian Republic of "]
[null,null,null,null,null,null,null,null,null,null,null,null,null,null,null,null,null,"Vietnam"]
[null,null,null,null,null,null,null,null,null,null,null,null,null,null,null,null,null,"Wallis & Futuna Islands"]
[null,null,null,null,null,null,null,null,null,null,null,null,null,null,null,null,null,"Western Sahara"]
[null,null,null,null,null,null,null,null,null,null,null,null,null,null,null,null,null,"Yemen"]
[null,null,null,null,null,null,null,null,null,null,null,null,null,null,null,null,null,"Zambia"]
[null,null,null,null,null,null,null,null,null,null,null,null,null,null,null,null,null,"Zimbabwe"]
[null,null,null,null,null,null,null,null,null,null,null,null,null,null,null,null,null,"Select"]

{"sheet":"Schedule VI PY","index":54,"n_rows":38,"n_cols":17,"rows_kept":38,"cut":false,"hidden":true,"merged":[[0,14,0,16],[1,2,1,3],[2,2,2,3],[2,14,2,16],[3,2,3,3],[3,14,3,16]]}
[null,null,"SCHEDULE OF FIXED INCOME SECURITIES",null,null,null,null,null,null,null,null,null,null,null,{"$f":"HYPERLINK(\"#'Index'!A1\",\"Return to Index\")","v":"Return to Index"}]
[null,null,{"$f":"'Schedule V'!B2","v":"Enter Company Name"}]
[null,null,{"$f":" TEXT('Insurer Information'!C3,\"D MMMM YYYY\")","v":"31 December 2023"},null,null,null,null,null,null,null,null,null,null,null,"SCHEDULE VI"]
[null,null,{"$f":"'Schedule V(e)'!C4:D4","v":"United States Dollars"}]
[]
[null,null,"Security Type",null,"Amount per Form 1SFS, Lines 2(b) and 3(b)",null,"Face Value",null,"Fair Value",null,"Average YTM",null,"Average Rating",null,"Effective Duration",null,"Effective Convexity"]
[]
[null,1,"U.S. Government "]
[null,null,"(a) U.S. Government Federal"]
[null,null,"(b) U.S. Government Agency - mortgage-backed securities"]
[null,null,"(c) U.S. Government Agency - other"]
[null,2,"Non-U.S. Government"]
[null,3,"States, Municipalities, and Political Subdivision"]
[null,4,"Corporate Securities"]
[null,null,"(a) U.S. Government-backed Corporate"]
[null,null,"(b) Non-U.S. Government-backed Corporate"]
[null,null,"(c) FDIC Guaranteed Corporate"]
[null,null,"(d) Other Corporate"]
[null,5,"Asset-backed Securities"]
[null,6,"Mortgage-backed Securities"]
[null,null,"(a) Residential Subprime"]
[null,null,"(b) Residential Non-subprime"]
[null,null,"(c) Commercial"]
[null,7,"Mutual Funds"]
[null,8,"Bank Loans"]
[null,9,"Catastrophe Bonds and Insurance-Linked Securities"]
[null,10,"Others (Briefly describe)"]
[null,null,"TOTAL PORTFOLIO",null,{"$f":"SUM(E9:E27)","v":0},null,{"$f":"SUM(G9:G27)","v":0},null,{"$f":"SUM(I9:I27)","v":0}]
[]
[null,null,null,null,{"$f":"IF(E31=\"TRUE\",HYPERLINK(\"#'Form 1SFS'!F16:K30\",\"TRUE\"),HYPERLINK(\"#'Form 1SFS'!F16:K30\",\"FALSE\"))","v":"TRUE"}]
[null,null,null,null,{"$f":"IF((ROUND(E28-('Form 1SFS'!F18+'Form 1SFS'!H18+'Form 1SFS'!F31+'Form 1SFS'!H31),0))=0,\"TRUE\",\"FALSE\")","v":"TRUE"}]
[null,null,"Difference",null,{"$f":"ROUND(E28-('Form 1SFS'!F18+'Form 1SFS'!H18+'Form 1SFS'!F31+'Form 1SFS'!H31),0)","v":0}]
[]
[null,null,null,null,{"$f":"IF(E30=\"False\",\"Does not equal Form 1SFS Lines 2(b) & 3(b)\",\"\")","v":""}]
[]
[null,null,"Effective duration of the portfolio"]
[]
[null,null,"Effective convexity of the portfolio"]

{"sheet":"Schedule VI (EBS) PY","index":55,"n_rows":38,"n_cols":17,"rows_kept":38,"cut":false,"hidden":true,"merged":[[0,14,0,16],[2,14,2,16],[1,2,1,3],[2,2,2,3],[3,2,3,3]]}
[null,null,"SCHEDULE OF FIXED INCOME SECURITIES",null,null,null,null,null,null,null,null,null,null,null,{"$f":"HYPERLINK(\"#'Index'!A1\",\"Return to Index\")","v":"Return to Index"}]
[null,null,{"$f":"'Schedule V'!B2","v":"Enter Company Name"}]
[null,null,{"$f":" TEXT('Insurer Information'!C3,\"D MMMM YYYY\")","v":"31 December 2023"},null,null,null,null,null,null,null,null,null,null,null,"SCHEDULE VI (EBS)"]
[null,null,{"$f":"'Schedule V(e)'!C4:D4","v":"United States Dollars"}]
[]
[null,null,"Security Type",null,"Amount per Form 4EBS, Lines 2(b) and 3(b)",null,"Face Value",null,"Fair Value",null,"Average YTM",null,"Average Rating",null,"Effective Duration",null,"Effective Convexity"]
[]
[null,1,"U.S. Government "]
[null,null,"(a) U.S. Government Federal"]
[null,null,"(b) U.S. Government Agency - mortgage-backed securities"]
[null,null,"(c) U.S. Government Agency - other"]
[null,2,"Non-U.S. Government"]
[null,3,"States, Municipalities, and Political Subdivision"]
[null,4,"Corporate Securities"]
[null,null,"(a) U.S. Government-backed Corporate"]
[null,null,"(b) Non-U.S. Government-backed Corporate"]
[null,null,"(c) FDIC Guaranteed Corporate"]
[null,null,"(d) Other Corporate"]
[null,5,"Asset-backed Securities"]
[null,6,"Mortgage-backed Securities"]
[null,null,"(a) Residential Subprime"]
[null,null,"(b) Residential Non-subprime"]
[null,null,"(c) Commercial"]
[null,7,"Mutual Funds"]
[null,8,"Bank Loans"]
[null,9,"Catastrophe Bonds and Insurance-Linked Securities"]
[null,10,"Others (Briefly describe)"]
[null,null,"TOTAL PORTFOLIO",null,{"$f":"SUM(E9:E27)","v":0},null,{"$f":"SUM(G9:G27)","v":0},null,{"$f":"SUM(I9:I27)","v":0}]
[]
[null,null,null,null,{"$f":"IF(E31=\"TRUE\",HYPERLINK(\"#'Form 4EBS'!F13:F23\",\"TRUE\"),HYPERLINK(\"#'Form 4EBS'!F13:F23\",\"FALSE\"))","v":"TRUE"}]
[null,null,null,null,{"$f":"IF(ROUND((E28-('Form 4EBS'!F13+'Form 4EBS'!F23)),0)=0,\"TRUE\",\"FALSE\")","v":"TRUE"}]
[null,null,"Difference",null,{"$f":"ROUND(E28-('Form 4EBS'!F13+'Form 4EBS'!F23),0)","v":0}]
[]
[null,null,null,null,{"$f":"IF(E30=\"False\",\"Does not equal Form 4EBS Lines 2(b) & 3(b)\",\"\")","v":""}]
[]
[null,null,"Effective duration of the portfolio"]
[]
[null,null,"Effective convexity of the portfolio"]

{"sheet":"Schedule VI (New)","index":56,"n_rows":425,"n_cols":12,"rows_kept":425,"cut":false,"hidden":true,"merged":[[211,1,211,2],[5,1,5,2],[35,1,35,2],[36,1,36,2],[61,1,61,2],[91,1,91,2],[92,1,92,2],[121,1,121,2],[122,1,122,2],[151,1,151,2],[152,1,152,2],[210,1,210,2]]}
[null,"DRAFT UNCONSOLIDATED SCHEDULE OF ASSETS",null,null,null,null,null,null,{"$f":"HYPERLINK(\"#'Index'!A1\",\"Return to Index\")","v":"Return to Index"}]
[null,{"$f":"'Form 1SFS'!$B$3","v":"Enter Company Name"}]
[null,"As at",{"$f":"'Form 1SFS'!$C$4","v":"2023-12-31"}]
[null,"expressed in ['000s]",{"$f":"'Form 1SFS'!$C$5","v":"United States Dollars"}]
[]
[null,"(A) CASH AND CASH EQUIVALENTS",null,"Enter # of Asset Types"]
[null,null,null,null,{"$f":"YEAR($C$3)","v":2023},{"$f":"YEAR($C$3)","v":2023}]
[null,"Asset Type","Jurisdiction","BSCR Rating ","Face Value","Fair Value"]
[1,"Select",null,"Select"]
[2,"Select",null,"Select"]
[3,"Select",null,"Select"]
[4,"Select",null,"Select"]
[5,"Select",null,"Select"]
[6,"Select",null,"Select"]
[7,"Select",null,"Select"]
[8,"Select",null,"Select"]
[9,"Select",null,"Select"]
[10,"Select",null,"Select"]
[11,"Select",null,"Select"]
[12,"Select",null,"Select"]
[13,"Select",null,"Select"]
[14,"Select",null,"Select"]
[15,"Select",null,"Select"]
[16,"Select",null,"Select"]
[17,"Select",null,"Select"]
[18,"Select",null,"Select"]
[19,"Select",null,"Select"]
[20,"Select",null,"Select"]
[]
[null,"Total Cash & Cash Equivalents",null,null,{"$f":"SUM(E9:E28)","v":0},{"$f":"SUM(F9:F28)","v":0}]
[]
[null,"Form 1SFS Line 1 Cash and Cash Equivalents",null,null,null,{"$f":"IF(('Form 1SFS'!$F$100+'Form 1SFS'!$H$100)=0,'Form 1SFS'!K12,'Form 1SFS'!F12+'Form 1SFS'!H12)","v":0}]
[]
[null,"Check Section A",null,null,null,{"$f":"ROUND((F30-F32),0)","v":0},{"$f":"IF(F34=0,\"TRUE\",\"FALSE\")","v":"TRUE"}]
[]
[null,"(B) BONDS AND DEBENTURES",null,"Enter # of Asset Types"]
[null,null,null,null,{"$f":"YEAR($C$3)","v":2023},{"$f":"YEAR($C$3)","v":2023}]
[null,"Asset Type","Jurisdiction","BSCR Rating ","Face Value","Fair Value","Average YTM","Effective Duration","Effective Convexity"]
[1,"Select",0,"Select",0,0,0,0,0]
[2,"Select",0,"Select",0,0,0,0,0]
[3,"Select",0,"Select",0,0,0,0,0]
[4,"Select",0,"Select",0,0,0,0,0]
[5,"Select",0,"Select",0,0,0,0,0]
[6,"Select",0,"Select",0,0,0,0,0]
[7,"Select",0,"Select",0,0,0,0,0]
[8,"Select",0,"Select",0,0,0,0,0]
[9,"Select",0,"Select",0,0,0,0,0]
[10,"Select",0,"Select",0,0,0,0,0]
[11,"Select",0,"Select",0,0,0,0,0]
[12,"Select",0,"Select",0,0,0,0,0]
[13,"Select",0,"Select",0,0,0,0,0]
[14,"Select",0,"Select",0,0,0,0,0]
[15,"Select",0,"Select",0,0,0,0,0]
[16,"Select",0,"Select",0,0,0,0,0]
[17,"Select",0,"Select",0,0,0,0,0]
[18,"Select",0,"Select",0,0,0,0,0]
[19,"Select",0,"Select",0,0,0,0,0]
[20,"Select",0,"Select",0,0,0,0,0]
[]
[null,"Total Bonds & Debentures",null,null,{"$f":"SUM(E39:E58)","v":0},{"$f":"SUM(F39:F58)","v":0},0,0,0]
[]
[null,"(C) SECURITIES/ASSET-BASED SECURITIES",null,"Enter # of Asset Types"]
[null,null,null,null,{"$f":"YEAR($C$3)","v":2023},{"$f":"YEAR($C$3)","v":2023}]
[null,"Asset Type","Jurisdiction","BSCR Rating ","Face Value","Fair Value","Average YTM","Effective Duration","Effective Convexity"]
[1,"Select",0,"Select",0,0,0,0,0]
[2,"Select",0,"Select",0,0,0,0,0]
[3,"Select",0,"Select",0,0,0,0,0]
[4,"Select",0,"Select",0,0,0,0,0]
[5,"Select",0,"Select",0,0,0,0,0]
[6,"Select",0,"Select",0,0,0,0,0]
[7,"Select",0,"Select",0,0,0,0,0]
[8,"Select",0,"Select",0,0,0,0,0]
[9,"Select",0,"Select",0,0,0,0,0]
[10,"Select",0,"Select",0,0,0,0,0]
[11,"Select",0,"Select",0,0,0,0,0]
[12,"Select",0,"Select",0,0,0,0,0]
[13,"Select",0,"Select",0,0,0,0,0]
[14,"Select",0,"Select",0,0,0,0,0]
[15,"Select",0,"Select",0,0,0,0,0]
[16,"Select",0,"Select",0,0,0,0,0]
[17,"Select",0,"Select",0,0,0,0,0]
[18,"Select",0,"Select",0,0,0,0,0]
[19,"Select",0,"Select",0,0,0,0,0]
[20,"Select",0,"Select",0,0,0,0,0]
[]
[null,"Total Securities/Asset-Backed Securities",null,null,{"$f":"SUM(E65:E84)","v":0},{"$f":"SUM(F65:F84)","v":0},0,0,0]
[]
[null,"Form 1SFS Lines 2(b) & 3(b) Bonds & Debentures",null,null,null,{"$f":"IF(('Form 1SFS'!$F$100+'Form 1SFS'!$H$100)=0,'Form 1SFS'!K18+'Form 1SFS'!K31,'Form 1SFS'!F31+'Form 1SFS'!H31+'Form 1SFS'!F18+'Form 1SFS'!H18)","v":0}]
[]
[null,"Check Sections B & C",null,null,null,{"$f":"ROUND(((F86+F60)-F88),0)","v":0},{"$f":"IF(F90=0,\"TRUE\",\"FALSE\")","v":"TRUE"}]
[]
[null,"(D) LISTED EQUITIES AND PREFERENCE SHARES",null,"Enter # of Asset Types"]
[null,null,null,null,{"$f":"YEAR($C$3)","v":2023},{"$f":"YEAR($C$3)","v":2023}]
[null,"Asset Type","Stock Exchange","BSCR Rating ","Face Value","Fair Value"]
[1,"Select",0,"Select",0,0]
[2,"Select",0,"Select",0,0]
[3,"Select",0,"Select",0,0]
[4,"Select",0,"Select",0,0]
[5,"Select",0,"Select",0,0]
[6,"Select",0,"Select",0,0]
[7,"Select",0,"Select",0,0]
[8,"Select",0,"Select",0,0]
[9,"Select",0,"Select",0,0]
[10,"Select",0,"Select",0,0]
[11,"Select",0,"Select",0,0]
[12,"Select",0,"Select",0,0]
[13,"Select",0,"Select",0,0]
[14,"Select",0,"Select",0,0]
[15,"Select",0,"Select",0,0]
[16,"Select",0,"Select",0,0]
[17,"Select",0,"Select",0,0]
[18,"Select",0,"Select",0,0]
[19,"Select",0,"Select",0,0]
[20,"Select",0,"Select",0,0]
[]
[null,"Total Listed Equities & Preference Shares",null,null,{"$f":"SUM(E95:E114)","v":0},{"$f":"SUM(F95:F114)","v":0}]
[]
[null,"Form 1SFS Lines 2(d) & 3(d) Equities & Preference Shares",null,null,null,{"$f":"IF(('Form 1SFS'!$F$100+'Form 1SFS'!$H$100)=0,'Form 1SFS'!K23+'Form 1SFS'!K36,'Form 1SFS'!F23+'Form 1SFS'!H23+'Form 1SFS'!F36+'Form 1SFS'!H36)","v":0}]
[]
[null,"Check Section D",null,null,null,{"$f":"ROUND((F116-F118),0)","v":0},{"$f":"IF(F120=0,\"TRUE\",\"FALSE\")","v":"TRUE"}]
[]
[null,"(E) ALTERNATIVE INVESTMENTS",null,"Enter # of Asset Types"]
[null,null,null,null,{"$f":"YEAR($C$3)","v":2023},{"$f":"YEAR($C$3)","v":2023}]
[null,"Asset Type","Jurisdiction","BSCR Rating ","Face Value","Fair Value","Average YTM","Effective Duration","Effective Convexity"]
[1,"Select",0,"Select",0,0,0,0,0]
[2,"Select",0,"Select",0,0,0,0,0]
[3,"Select",0,"Select",0,0,0,0,0]
[4,"Select",0,"Select",0,0,0,0,0]
[5,"Select",0,"Select",0,0,0,0,0]
[6,"Select",0,"Select",0,0,0,0,0]
[7,"Select",0,"Select",0,0,0,0,0]
[8,"Select",0,"Select",0,0,0,0,0]
[9,"Select",0,"Select",0,0,0,0,0]
[10,"Select",0,"Select",0,0,0,0,0]
[11,"Select",0,"Select",0,0,0,0,0]
[12,"Select",0,"Select",0,0,0,0,0]
[13,"Select",0,"Select",0,0,0,0,0]
[14,"Select",0,"Select",0,0,0,0,0]
[15,"Select",0,"Select",0,0,0,0,0]
[16,"Select",0,"Select",0,0,0,0,0]
[17,"Select",0,"Select",0,0,0,0,0]
[18,"Select",0,"Select",0,0,0,0,0]
[19,"Select",0,"Select",0,0,0,0,0]
[20,"Select",0,"Select",0,0,0,0,0]
[]
[null,"Total Alternative Investments",null,null,{"$f":"SUM(E125:E144)","v":0},{"$f":"SUM(F125:F144)","v":0},0,0,0]
[]
[null,"Form 1SFS Lines 2(e) & 3(e) Alternative Investments",null,null,null,{"$f":"IF(('Form 1SFS'!$F$100+'Form 1SFS'!$H$100)=0,'Form 1SFS'!K24+'Form 1SFS'!K37,'Form 1SFS'!F24+'Form 1SFS'!H24+'Form 1SFS'!F37+'Form 1SFS'!H37)","v":0}]
[]
[null,"Check Section E",null,null,null,{"$f":"ROUND((F146-F148),0)","v":0},{"$f":"IF(F150=0,\"TRUE\",\"FALSE\")","v":"TRUE"}]
[]
[null,"(F) LOANS",null,"Enter # of Asset Types"]
[null,null,null,null,{"$f":"YEAR($C$3)","v":2023},{"$f":"YEAR($C$3)","v":2023}]
[null,"Asset Type","Jurisdiction","BSCR Rating ","Face Value","Fair Value","Average YTM","Effective Duration","Effective Convexity"]
[1,"Select",0,"Select",0,0,0,0,0]
[2,"Select",0,"Select",0,0,0,0,0]
[3,"Select",0,"Select",0,0,0,0,0]
[4,"Select",0,"Select",0,0,0,0,0]
[5,"Select",0,"Select",0,0,0,0,0]
[6,"Select",0,"Select",0,0,0,0,0]
[7,"Select",0,"Select",0,0,0,0,0]
[8,"Select",0,"Select",0,0,0,0,0]
[9,"Select",0,"Select",0,0,0,0,0]
[10,"Select",0,"Select",0,0,0,0,0]
[11,"Select",0,"Select",0,0,0,0,0]
[12,"Select",0,"Select",0,0,0,0,0]
[13,"Select",0,"Select",0,0,0,0,0]
[14,"Select",0,"Select",0,0,0,0,0]
[15,"Select",0,"Select",0,0,0,0,0]
[16,"Select",0,"Select",0,0,0,0,0]
[17,"Select",0,"Select",0,0,0,0,0]
[18,"Select",0,"Select",0,0,0,0,0]
[19,"Select",0,"Select",0,0,0,0,0]
[20,"Select",0,"Select",0,0,0,0,0]
[]
[null,"Total Loans",null,null,{"$f":"SUM(E155:E174)","v":0},{"$f":"SUM(F155:F174)","v":0},0,0,0]
[]
[null,"Form 1SFS Line 5(c) Mortgage Loans",null,null,null,{"$f":"IF(('Form 1SFS'!$F$100+'Form 1SFS'!$H$100)=0,'Form 1SFS'!K53,'Form 1SFS'!F53+'Form 1SFS'!H53)","v":0}]
[]
[null,"Check Section F",null,null,null,{"$f":"ROUND((F176-F178),0)","v":0},{"$f":"IF(F180=0,\"TRUE\",\"FALSE\")","v":"TRUE"}]
[]
[null,"(G) DERIVATIVES",null,"Enter # of Derivative Types"]
[null,"Derivative Type","Underlying","Purpose","Position",{"$f":"YEAR($C$3)&\" Market Value\"","v":"2023 Market Value"},"Centrally Cleared","Notional Value","Exposure (Dollar Delta, DV01, CS01"]
[1,"Select","Select","Select","Select",0,"Select",0,0]
[2,"Select","Select","Select","Select",0,"Select",0,0]
[3,"Select","Select","Select","Select",0,"Select",0,0]
[4,"Select","Select","Select","Select",0,"Select",0,0]
[5,"Select","Select","Select","Select",0,"Select",0,0]
[6,"Select","Select","Select","Select",0,"Select",0,0]
[7,"Select","Select","Select","Select",0,"Select",0,0]
[8,"Select","Select","Select","Select",0,"Select",0,0]
[9,"Select","Select","Select","Select",0,"Select",0,0]
[10,"Select","Select","Select","Select",0,"Select",0,0]
[11,"Select","Select","Select","Select",0,"Select",0,0]
[12,"Select","Select","Select","Select",0,"Select",0,0]
[13,"Select","Select","Select","Select",0,"Select",0,0]
[14,"Select","Select","Select","Select",0,"Select",0,0]
[15,"Select","Select","Select","Select",0,"Select",0,0]
[16,"Select","Select","Select","Select",0,"Select",0,0]
[17,"Select","Select","Select","Select",0,"Select",0,0]
[18,"Select","Select","Select","Select",0,"Select",0,0]
[19,"Select","Select","Select","Select",0,"Select",0,0]
[20,"Select","Select","Select","Select",0,"Select",0,0]
[]
[null,"Total Derivatives",null,null,null,{"$f":"SUM(F184:F203)","v":0},null,{"$f":"SUM(H184:H203)","v":0},{"$f":"SUM(I184:I203)","v":0}]
[]
[null,"Form 1SFS Line 13(a) Derivatives",null,null,null,{"$f":"IF(('Form 1SFS'!$F$100+'Form 1SFS'!$H$100)=0,'Form 1SFS'!K82,'Form 1SFS'!F82+'Form 1SFS'!H82)","v":0}]
[]
[null,"Check Section G",null,null,null,{"$f":"ROUND((F205-F207),0)","v":0},{"$f":"IF(F209=0,\"TRUE\",\"FALSE\")","v":"TRUE"}]
[]
[null,"(H) OTHER ASSETS",null,"Enter # of Asset Types"]
[null,null,null,null,{"$f":"YEAR($C$3)","v":2023},{"$f":"YEAR($C$3)","v":2023}]
[null,"Asset Type","Jurisdiction","BSCR Rating ","Face Value","Fair Value","Average YTM","Effective Duration","Effective Convexity"]
[1,"Select",0,"Select",0,0,0,0,0]
[2,"Select",0,"Select",0,0,0,0,0]
[3,"Select",0,"Select",0,0,0,0,0]
[4,"Select",0,"Select",0,0,0,0,0]
[5,"Select",0,"Select",0,0,0,0,0]
[6,"Select",0,"Select",0,0,0,0,0]
[7,"Select",0,"Select",0,0,0,0,0]
[8,"Select",0,"Select",0,0,0,0,0]
[9,"Select",0,"Select",0,0,0,0,0]
[10,"Select",0,"Select",0,0,0,0,0]
[11,"Select",0,"Select",0,0,0,0,0]
[12,"Select",0,"Select",0,0,0,0,0]
[13,"Select",0,"Select",0,0,0,0,0]
[14,"Select",0,"Select",0,0,0,0,0]
[15,"Select",0,"Select",0,0,0,0,0]
[16,"Select",0,"Select",0,0,0,0,0]
[17,"Select",0,"Select",0,0,0,0,0]
[18,"Select",0,"Select",0,0,0,0,0]
[19,"Select",0,"Select",0,0,0,0,0]
[20,"Select",0,"Select",0,0,0,0,0]
[]
[null,"Total Other Assets",null,null,null,{"$f":"SUM(F214:F233)","v":0},0,0,0]
[]
[null,"Form 1SFS Lines X(x) Other Assets",null,null,null,{"$f":"IF(('Form 1SFS'!$F$100+'Form 1SFS'!$H$100)=0,0,0+0)","v":0}]
[]
[null,"Check Section G",null,null,null,{"$f":"ROUND((F235-F237),0)","v":0},{"$f":"IF(F239=0,\"TRUE\",\"FALSE\")","v":"TRUE"}]
[]
[null,"TOTAL ASSETS",null,null,null,{"$f":"F30+F60+F116+F86+F146+F235+F205+F176","v":0}]
[]
[null,"TOTAL ASSETS (Form 1SFS Line 15)",null,null,null,{"$f":"F34+F90+F120+F150+F180+F209+F239","v":0}]
[]
[null,"Check Form 1SFS",null,null,null,{"$f":"IF(F247=0,\"TRUE\",\"FALSE\")","v":"TRUE"}]
[null,null,null,null,null,{"$f":"IF(ROUND((F241-(0)),0)=0,\"TRUE\",\"FALSE\")","v":"TRUE"}]
[null,"Difference",null,null,null,{"$f":"ROUND((F243-F241),0)","v":0}]
[]
[null,"EFFECTIVE DURATION",null,null,0]
[]
[null,"EFFECTIVE CONVEXITY",null,null,0]
[]
[]
[]
["Select","Select","Select","Select","Select","Select","Select","Select","Select","Select","Select","Select"]
["Cash ","Sovereign Bonds","RMBS - Agency","Public Equities","Private Equity","Investment Income Due and Accrued","Energy","Holding Entity","Significant Influence",null,"Insured/Guaranteed Mortgages"]
["Certificates of Deposit","Municipals","RMBS - Non-agency","Public Preferred Stock","Investment Funds","Accounts and Premiums Receivable","Materials","Operating Entity","Control",null,"Other Commercial and Farm Mortgages"]
["Money Market Funds","Supranationals (multilateral development banks and international organizations)","CMBS","Exchange Traded Funds","Hedge Funds","Reinsurance Balance Receivable","Industrial","Branch",null,null,"Other Residential Mortgages"]
["Other ","Corporate bonds","CLOs","Other","Private Credit Funds","Funds Held by Ceding Reinsurers","Consumer Discretionary","Select",null,null,"Mortgages Not In Good Standing"]
[null,"Mutual Funds","CDOs",null,"Catastrophe Bonds","Sundry Assets","Consumer Staples",null,null,null,"Collateral Loans"]
[null,"Other - Secured Bonds","Auto Loan ABS",null,"Other Insurance-Linked Securities","Letter of Credit, Guarantees and Other Instruments","Healthcare",null,null,null,"Middle Market Loans"]
[null,"Other - Unsecured Bonds","Student Loan ABS",null,"Infrastructure Debt","Other","Financial",null,null,null,"Other Direct Private Lending"]
[null,"Other ","Credit Card Receivable ABS",null,"Equity Investments in Infrastructure",null,null,null,null,null,"Policy Loans"]
[null,null,"Other Asset Backed Securities",null,"Investment in Affiliates",null,null,null,null,null,"Other"]
[null,null,null,null,"Advances to Affiliates"]
[null,null,null,null,"Equity Release / Reverse Mortgages"]
[null,null,null,null,"Other "]
[]
[]
[]
["Select","Select","Select","Select","Select","Select",null,"Select"]
["Listed options","Equity","Hedging","Long / Receive Fixed / Sell Protection","Private Equity","Investment Income Due and Accrued",null,"BSCR Rating 0"]
["Futures","Debt","Speculative","Short / Receive Floating / Buy Protection","Investment Funds","Accounts and Premiums Receivable",null,"BSCR Rating 1",null,null,"Select"]
["Forwards","Interest Rate",null,null,"Hedge Funds","Reinsurance Balance Receivable",null,"BSCR Rating 2",null,null,"Insured/Guaranteed Mortgages"]
["Swaps","Inflation",null,null,"Private Credit Funds","Sundry Assets",null,"BSCR Rating 3",null,null,"Other Commercial and Farm Mortgages"]
["Swaptions","Credit","Select",null,"Catastrophe Bonds","Letter of Credit, Guarantees and Other Instruments",null,"BSCR Rating 4",null,null,"Other Residential Mortgages"]
["OTC options","Currencies","Yes",null,"Other Insurance-Linked Securities","Other",null,"BSCR Rating 5",null,null,"Mortgages Not In Good Standing"]
["Other","Commodities","No",null,"Advances to Affiliates",null,null,"BSCR Rating 6",null,null,"Collateral Loans"]
[null,"Other",null,null,"Infrastructure Debt",null,null,"BSCR Rating 7",null,null,"Middle Market Loans"]
[null,null,null,null,"Equity Investments in Infrastructure",null,null,"BSCR Rating 8",null,null,"Other Direct Private Lending"]
[null,null,null,null,"Equity Release / Reverse Mortgages",null,null,null,null,null,"Policy Loans"]
[null,null,null,null,"Other ",null,null,null,null,null,"Other"]
[]
[null,null,null,null,null,null,null,null,"Switzerland Francs"]
[null,null,null,null,null,null,null,null,"Chile Pesos"]
[null,null,null,null,null,null,null,null,"China Yuan Renminbi"]
[null,null,null,null,null,null,null,null,"Colombia Pesos"]
[null,null,null,null,null,null,null,null,"Costa Rica Colones"]
[null,null,null,null,null,null,null,null,"Cuba Convertible Pesos"]
[null,null,null,null,null,null,null,null,"Cuba Pesos"]
[null,null,null,null,null,null,null,null,"Cape Verde Escudos"]
[null,null,null,null,null,null,null,null,"Czech Republic Koruny"]
[null,null,null,null,null,null,null,null,"Djibouti Francs"]
[null,null,null,null,null,null,null,null,"Denmark Kroner"]
[null,null,null,null,null,null,null,null,"Dominican Republic Pesos"]
[null,null,null,null,null,null,null,null,"Algeria Dinars"]
[null,null,null,null,null,null,null,null,"Estonia Krooni"]
[null,null,null,null,null,null,null,null,"Egypt Pounds"]
[null,null,null,null,null,null,null,null,"Eritrea Nakfa"]
[null,null,null,null,null,null,null,null,"Ethiopia Birr"]
[null,null,null,null,null,null,null,null,"Fiji Dollars"]
[null,null,null,null,null,null,null,null,"Falkland Islands Pounds"]
[null,null,null,null,null,null,null,null,"United Kingdom Pounds"]
[null,null,null,null,null,null,null,null,"Georgia Lari"]
[null,null,null,null,null,null,null,null,"Guernsey Pounds"]
[null,null,null,null,null,null,null,null,"Ghana Cedis"]
[null,null,null,null,null,null,null,null,"Gibraltar Pounds"]
[null,null,null,null,null,null,null,null,"Gambia Dalasi"]
[null,null,null,null,null,null,null,null,"Guinea Francs"]
[null,null,null,null,null,null,null,null,"Guatemala Quetzales"]
[null,null,null,null,null,null,null,null,"Guyana Dollars"]
[null,null,null,null,null,null,null,null,"Hong Kong Dollars"]
[null,null,null,null,null,null,null,null,"Honduras Lempiras"]
[null,null,null,null,null,null,null,null,"Croatia Kuna"]
[null,null,null,null,null,null,null,null,"Haiti Gourdes"]
[null,null,null,null,null,null,null,null,"Hungary Forint"]
[null,null,null,null,null,null,null,null,"Indonesia Rupiahs"]
[null,null,null,null,null,null,null,null,"Israel New Shekels"]
[null,null,null,null,null,null,null,null,"Isle of Man Pounds"]
[null,null,null,null,null,null,null,null,"India Rupees"]
[null,null,null,null,null,null,null,null,"Iraq Dinars"]
[null,null,null,null,null,null,null,null,"Iran Rials"]
[null,null,null,null,null,null,null,null,"Iceland Kronur"]
[null,null,null,null,null,null,null,null,"Jersey Pounds"]
[null,null,null,null,null,null,null,null,"Jamaica Dollars"]
[null,null,null,null,null,null,null,null,"Jordan Dinars"]
[null,null,null,null,null,null,null,null,"Japan Yen"]
[null,null,null,null,null,null,null,null,"Kenya Shillings"]
[null,null,null,null,null,null,null,null,"Kyrgyzstan Soms"]
[null,null,null,null,null,null,null,null,"Cambodia Riels"]
[null,null,null,null,null,null,null,null,"Comoros Francs"]
[null,null,null,null,null,null,null,null,"North Korea Won"]
[null,null,null,null,null,null,null,null,"South Korea Won"]
[null,null,null,null,null,null,null,null,"Kuwait Dinars"]
[null,null,null,null,null,null,null,null,"Cayman Islands Dollars"]
[null,null,null,null,null,null,null,null,"Kazakhstan Tenge"]
[null,null,null,null,null,null,null,null,"Laos Kips"]
[null,null,null,null,null,null,null,null,"Lebanon Pounds"]
[null,null,null,null,null,null,null,null,"Sri Lanka Rupees"]
[null,null,null,null,null,null,null,null,"Liberia Dollars"]
[null,null,null,null,null,null,null,null,"Lesotho Maloti"]
[null,null,null,null,null,null,null,null,"Lithuania Litai"]
[null,null,null,null,null,null,null,null,"Latvia Lati"]
[null,null,null,null,null,null,null,null,"Libya Dinars"]
[null,null,null,null,null,null,null,null,"Morocco Dirhams"]
[null,null,null,null,null,null,null,null,"Moldova Lei"]
[null,null,null,null,null,null,null,null,"Madagascar Ariary"]
[null,null,null,null,null,null,null,null,"Macedonia Denars"]
[null,null,null,null,null,null,null,null,"Myanmar Kyats"]
[null,null,null,null,null,null,null,null,"Mongolia Tugriks"]
[null,null,null,null,null,null,null,null,"Macau Patacas"]
[null,null,null,null,null,null,null,null,"Mauritania Ouguiyas"]
[null,null,null,null,null,null,null,null,"Mauritius Rupees"]
[null,null,null,null,null,null,null,null,"Maldives Rufiyaa"]
[null,null,null,null,null,null,null,null,"Malawi Kwachas"]
[null,null,null,null,null,null,null,null,"Mexico Pesos"]
[null,null,null,null,null,null,null,null,"Malaysia Ringgits"]
[null,null,null,null,null,null,null,null,"Mozambique Meticais"]
[null,null,null,null,null,null,null,null,"Namibia Dollars"]
[null,null,null,null,null,null,null,null,"Nigeria Nairas"]
[null,null,null,null,null,null,null,null,"Nicaragua Cordobas"]
[null,null,null,null,null,null,null,null,"Norway Kroner"]
[null,null,null,null,null,null,null,null,"Nepal Rupees"]
[null,null,null,null,null,null,null,null,"New Zealand Dollars"]
[null,null,null,null,null,null,null,null,"Oman Rials"]
[null,null,null,null,null,null,null,null,"Panama Balboas"]
[null,null,null,null,null,null,null,null,"Peru Nuevos Soles"]
[null,null,null,null,null,null,null,null,"Papua New Guinea Kina"]
[null,null,null,null,null,null,null,null,"Philippines Pesos"]
[null,null,null,null,null,null,null,null,"Pakistan Rupees"]
[null,null,null,null,null,null,null,null,"Poland Zlotych"]
[null,null,null,null,null,null,null,null,"Paraguay Guarani"]
[null,null,null,null,null,null,null,null,"Qatar Riyals"]
[null,null,null,null,null,null,null,null,"Romania New Lei"]
[null,null,null,null,null,null,null,null,"Serbia Dinars"]
[null,null,null,null,null,null,null,null,"Russia Rubles"]
[null,null,null,null,null,null,null,null,"Rwanda Francs"]
[null,null,null,null,null,null,null,null,"Saudi Arabia Riyals"]
[null,null,null,null,null,null,null,null,"Solomon Islands Dollars"]
[null,null,null,null,null,null,null,null,"Seychelles Rupees"]
[null,null,null,null,null,null,null,null,"Sudan Pounds"]
[null,null,null,null,null,null,null,null,"Sweden Kronor"]
[null,null,null,null,null,null,null,null,"Singapore Dollars"]
[null,null,null,null,null,null,null,null,"Saint Helena Pounds"]
[null,null,null,null,null,null,null,null,"Slovakia Koruny"]
[null,null,null,null,null,null,null,null,"Sierra Leone Leones"]
[null,null,null,null,null,null,null,null,"Somalia Shillings"]
[null,null,null,null,null,null,null,null,"Seborga Luigini"]
[null,null,null,null,null,null,null,null,"Suriname Dollars"]
[null,null,null,null,null,null,null,null,"São Tome and Principe Dobras"]
[null,null,null,null,null,null,null,null,"El Salvador Colones"]
[null,null,null,null,null,null,null,null,"Syria Pounds"]
[null,null,null,null,null,null,null,null,"Swaziland Emalangeni"]
[null,null,null,null,null,null,null,null,"Thailand Baht"]
[null,null,null,null,null,null,null,null,"Tajikistan Somoni"]
[null,null,null,null,null,null,null,null,"Turkmenistan Manats"]
[null,null,null,null,null,null,null,null,"Tunisia Dinars"]
[null,null,null,null,null,null,null,null,"Tonga Pa'anga"]
[null,null,null,null,null,null,null,null,"Turkey New Lira"]
[null,null,null,null,null,null,null,null,"Trinidad and Tobago Dollars"]
[null,null,null,null,null,null,null,null,"Tuvalu Dollars"]
[null,null,null,null,null,null,null,null,"Taiwan New Dollars"]
[null,null,null,null,null,null,null,null,"Tanzania Shillings"]
[null,null,null,null,null,null,null,null,"Ukraine Hryvnia"]
[null,null,null,null,null,null,null,null,"Uganda Shillings"]
[null,null,null,null,null,null,null,null,"Uruguay Pesos"]
[null,null,null,null,null,null,null,null,"Uzbekistan Sums"]
[null,null,null,null,null,null,null,null,"Venezuela Bolivares"]
[null,null,null,null,null,null,null,null,"Venezuela Bolivares Fuertes"]
[null,null,null,null,null,null,null,null,"Vietnam Dong"]
[null,null,null,null,null,null,null,null,"Vanuatu Vatu"]
[null,null,null,null,null,null,null,null,"Samoa Tala"]
[null,null,null,null,null,null,null,null,"Communauté Financière Africaine Francs BEAC"]
[null,null,null,null,null,null,null,null,"Silver Ounces"]
[null,null,null,null,null,null,null,null,"Gold Ounces"]
[null,null,null,null,null,null,null,null,"East Caribbean Dollars"]
[null,null,null,null,null,null,null,null,"International Monetary Fund Special Drawing Rights"]
[null,null,null,null,null,null,null,null,"Communauté Financière Africaine Francs BCEAO"]
[null,null,null,null,null,null,null,null,"Palladium Ounces"]
[null,null,null,null,null,null,null,null,"Comptoirs Français du Pacifique Francs"]
[null,null,null,null,null,null,null,null,"Platinum Ounces"]
[null,null,null,null,null,null,null,null,"Yemen Rials"]
[null,null,null,null,null,null,null,null,"South Africa Rand"]
[null,null,null,null,null,null,null,null,"Zambia Kwacha"]
[null,null,null,null,null,null,null,null,"Zimbabwe Dollars"]

{"sheet":"Schedule VIA (New)","index":57,"n_rows":425,"n_cols":12,"rows_kept":425,"cut":false,"hidden":true,"merged":[[211,1,211,2],[5,1,5,2],[35,1,35,2],[36,1,36,2],[61,1,61,2],[91,1,91,2],[92,1,92,2],[121,1,121,2],[122,1,122,2],[151,1,151,2],[152,1,152,2],[210,1,210,2]]}
[null,"DRAFT UNCONSOLIDATED SCHEDULE OF FUNDS HELD BY CEDING REINSURERS",null,null,null,null,null,null,{"$f":"HYPERLINK(\"#'Index'!A1\",\"Return to Index\")","v":"Return to Index"}]
[null,{"$f":"'Form 1SFS'!$B$3","v":"Enter Company Name"}]
[null,"As at",{"$f":"'Form 1SFS'!$C$4","v":"2023-12-31"}]
[null,"expressed in ['000s]",{"$f":"'Form 1SFS'!$C$5","v":"United States Dollars"}]
[]
[null,"(A) CASH AND CASH EQUIVALENTS",null,"Enter # of Asset Types"]
[null,null,null,null,{"$f":"YEAR($C$3)","v":2023},{"$f":"YEAR($C$3)","v":2023}]
[null,"Asset Type","Jurisdiction","BSCR Rating ","Face Value","Fair Value"]
[1,"Select",null,"Select"]
[2,"Select",null,"Select"]
[3,"Select",null,"Select"]
[4,"Select",null,"Select"]
[5,"Select",null,"Select"]
[6,"Select",null,"Select"]
[7,"Select",null,"Select"]
[8,"Select",null,"Select"]
[9,"Select",null,"Select"]
[10,"Select",null,"Select"]
[11,"Select",null,"Select"]
[12,"Select",null,"Select"]
[13,"Select",null,"Select"]
[14,"Select",null,"Select"]
[15,"Select",null,"Select"]
[16,"Select",null,"Select"]
[17,"Select",null,"Select"]
[18,"Select",null,"Select"]
[19,"Select",null,"Select"]
[20,"Select",null,"Select"]
[]
[null,"Total Cash & Cash Equivalents",null,null,{"$f":"SUM(E9:E28)","v":0},{"$f":"SUM(F9:F28)","v":0}]
[]
[null,"Form 1SFS Line 1 Cash and Cash Equivalents"]
[]
[null,"Check Section A",null,null,null,{"$f":"ROUND((F30-F32),0)","v":0},{"$f":"IF(F34=0,\"TRUE\",\"FALSE\")","v":"TRUE"}]
[]
[null,"(B) BONDS AND DEBENTURES",null,"Enter # of Asset Types"]
[null,null,null,null,{"$f":"YEAR($C$3)","v":2023},{"$f":"YEAR($C$3)","v":2023}]
[null,"Asset Type","Jurisdiction","BSCR Rating ","Face Value","Fair Value","Average YTM","Effective Duration","Effective Convexity"]
[1,"Select",0,"Select",0,0,0,0,0]
[2,"Select",0,"Select",0,0,0,0,0]
[3,"Select",0,"Select",0,0,0,0,0]
[4,"Select",0,"Select",0,0,0,0,0]
[5,"Select",0,"Select",0,0,0,0,0]
[6,"Select",0,"Select",0,0,0,0,0]
[7,"Select",0,"Select",0,0,0,0,0]
[8,"Select",0,"Select",0,0,0,0,0]
[9,"Select",0,"Select",0,0,0,0,0]
[10,"Select",0,"Select",0,0,0,0,0]
[11,"Select",0,"Select",0,0,0,0,0]
[12,"Select",0,"Select",0,0,0,0,0]
[13,"Select",0,"Select",0,0,0,0,0]
[14,"Select",0,"Select",0,0,0,0,0]
[15,"Select",0,"Select",0,0,0,0,0]
[16,"Select",0,"Select",0,0,0,0,0]
[17,"Select",0,"Select",0,0,0,0,0]
[18,"Select",0,"Select",0,0,0,0,0]
[19,"Select",0,"Select",0,0,0,0,0]
[20,"Select",0,"Select",0,0,0,0,0]
[]
[null,"Total Bonds & Debentures",null,null,{"$f":"SUM(E39:E58)","v":0},{"$f":"SUM(F39:F58)","v":0},0,0,0]
[]
[null,"(C) SECURITIES/ASSET-BASED SECURITIES",null,"Enter # of Asset Types"]
[null,null,null,null,{"$f":"YEAR($C$3)","v":2023},{"$f":"YEAR($C$3)","v":2023}]
[null,"Asset Type","Jurisdiction","BSCR Rating ","Face Value","Fair Value","Average YTM","Effective Duration","Effective Convexity"]
[1,"Select",0,"Select",0,0,0,0,0]
[2,"Select",0,"Select",0,0,0,0,0]
[3,"Select",0,"Select",0,0,0,0,0]
[4,"Select",0,"Select",0,0,0,0,0]
[5,"Select",0,"Select",0,0,0,0,0]
[6,"Select",0,"Select",0,0,0,0,0]
[7,"Select",0,"Select",0,0,0,0,0]
[8,"Select",0,"Select",0,0,0,0,0]
[9,"Select",0,"Select",0,0,0,0,0]
[10,"Select",0,"Select",0,0,0,0,0]
[11,"Select",0,"Select",0,0,0,0,0]
[12,"Select",0,"Select",0,0,0,0,0]
[13,"Select",0,"Select",0,0,0,0,0]
[14,"Select",0,"Select",0,0,0,0,0]
[15,"Select",0,"Select",0,0,0,0,0]
[16,"Select",0,"Select",0,0,0,0,0]
[17,"Select",0,"Select",0,0,0,0,0]
[18,"Select",0,"Select",0,0,0,0,0]
[19,"Select",0,"Select",0,0,0,0,0]
[20,"Select",0,"Select",0,0,0,0,0]
[]
[null,"Total Securities/Asset-Backed Securities",null,null,{"$f":"SUM(E65:E84)","v":0},{"$f":"SUM(F65:F84)","v":0},0,0,0]
[]
[null,"Form 1SFS Lines 2(b) & 3(b) Bonds & Debentures"]
[]
[null,"Check Sections B & C",null,null,null,{"$f":"ROUND(((F86+F60)-F88),0)","v":0},{"$f":"IF(F90=0,\"TRUE\",\"FALSE\")","v":"TRUE"}]
[]
[null,"(D) LISTED EQUITIES AND PREFERENCE SHARES",null,"Enter # of Asset Types"]
[null,null,null,null,{"$f":"YEAR($C$3)","v":2023},{"$f":"YEAR($C$3)","v":2023}]
[null,"Asset Type","Stock Exchange","BSCR Rating ","Face Value","Fair Value"]
[1,"Select",0,"Select",0,0]
[2,"Select",0,"Select",0,0]
[3,"Select",0,"Select",0,0]
[4,"Select",0,"Select",0,0]
[5,"Select",0,"Select",0,0]
[6,"Select",0,"Select",0,0]
[7,"Select",0,"Select",0,0]
[8,"Select",0,"Select",0,0]
[9,"Select",0,"Select",0,0]
[10,"Select",0,"Select",0,0]
[11,"Select",0,"Select",0,0]
[12,"Select",0,"Select",0,0]
[13,"Select",0,"Select",0,0]
[14,"Select",0,"Select",0,0]
[15,"Select",0,"Select",0,0]
[16,"Select",0,"Select",0,0]
[17,"Select",0,"Select",0,0]
[18,"Select",0,"Select",0,0]
[19,"Select",0,"Select",0,0]
[20,"Select",0,"Select",0,0]
[]
[null,"Total Listed Equities & Preference Shares",null,null,{"$f":"SUM(E95:E114)","v":0},{"$f":"SUM(F95:F114)","v":0}]
[]
[null,"Form 1SFS Lines 2(d) & 3(d) Bonds & Debentures"]
[]
[null,"Check Section D",null,null,null,{"$f":"ROUND((F116-F118),0)","v":0},{"$f":"IF(F120=0,\"TRUE\",\"FALSE\")","v":"TRUE"}]
[]
[null,"(E) ALTERNATIVE INVESTMENTS",null,"Enter # of Asset Types"]
[null,null,null,null,{"$f":"YEAR($C$3)","v":2023},{"$f":"YEAR($C$3)","v":2023}]
[null,"Asset Type","Jurisdiction","BSCR Rating ","Face Value","Fair Value","Average YTM","Effective Duration","Effective Convexity"]
[1,"Select",0,"Select",0,0,0,0,0]
[2,"Select",0,"Select",0,0,0,0,0]
[3,"Select",0,"Select",0,0,0,0,0]
[4,"Select",0,"Select",0,0,0,0,0]
[5,"Select",0,"Select",0,0,0,0,0]
[6,"Select",0,"Select",0,0,0,0,0]
[7,"Select",0,"Select",0,0,0,0,0]
[8,"Select",0,"Select",0,0,0,0,0]
[9,"Select",0,"Select",0,0,0,0,0]
[10,"Select",0,"Select",0,0,0,0,0]
[11,"Select",0,"Select",0,0,0,0,0]
[12,"Select",0,"Select",0,0,0,0,0]
[13,"Select",0,"Select",0,0,0,0,0]
[14,"Select",0,"Select",0,0,0,0,0]
[15,"Select",0,"Select",0,0,0,0,0]
[16,"Select",0,"Select",0,0,0,0,0]
[17,"Select",0,"Select",0,0,0,0,0]
[18,"Select",0,"Select",0,0,0,0,0]
[19,"Select",0,"Select",0,0,0,0,0]
[20,"Select",0,"Select",0,0,0,0,0]
[]
[null,"Total Alternative Investments",null,null,{"$f":"SUM(E125:E144)","v":0},{"$f":"SUM(F125:F144)","v":0},0,0,0]
[]
[null,"Form 1SFS Lines 2(e) & 3(e) Alternative Investments"]
[]
[null,"Check Section E",null,null,null,{"$f":"ROUND((F146-F148),0)","v":0},{"$f":"IF(F150=0,\"TRUE\",\"FALSE\")","v":"TRUE"}]
[]
[null,"(F) LOANS",null,"Enter # of Asset Types"]
[null,null,null,null,{"$f":"YEAR($C$3)","v":2023},{"$f":"YEAR($C$3)","v":2023}]
[null,"Asset Type","Jurisdiction","BSCR Rating ","Face Value","Fair Value","Average YTM","Effective Duration","Effective Convexity"]
[1,"Select",0,"Select",0,0,0,0,0]
[2,"Select",0,"Select",0,0,0,0,0]
[3,"Select",0,"Select",0,0,0,0,0]
[4,"Select",0,"Select",0,0,0,0,0]
[5,"Select",0,"Select",0,0,0,0,0]
[6,"Select",0,"Select",0,0,0,0,0]
[7,"Select",0,"Select",0,0,0,0,0]
[8,"Select",0,"Select",0,0,0,0,0]
[9,"Select",0,"Select",0,0,0,0,0]
[10,"Select",0,"Select",0,0,0,0,0]
[11,"Select",0,"Select",0,0,0,0,0]
[12,"Select",0,"Select",0,0,0,0,0]
[13,"Select",0,"Select",0,0,0,0,0]
[14,"Select",0,"Select",0,0,0,0,0]
[15,"Select",0,"Select",0,0,0,0,0]
[16,"Select",0,"Select",0,0,0,0,0]
[17,"Select",0,"Select",0,0,0,0,0]
[18,"Select",0,"Select",0,0,0,0,0]
[19,"Select",0,"Select",0,0,0,0,0]
[20,"Select",0,"Select",0,0,0,0,0]
[]
[null,"Total Loans",null,null,{"$f":"SUM(E155:E174)","v":0},{"$f":"SUM(F155:F174)","v":0},0,0,0]
[]
[null,"Form 1SFS Line 5(c) Mortgage Loans"]
[]
[null,"Check Section F",null,null,null,{"$f":"ROUND((F176-F178),0)","v":0},{"$f":"IF(F180=0,\"TRUE\",\"FALSE\")","v":"TRUE"}]
[]
[null,"(G) DERIVATIVES",null,"Enter # of Derivative Types"]
[null,"Derivative Type","Underlying","Purpose","Position",{"$f":"YEAR($C$3)&\" Market Value\"","v":"2023 Market Value"},"Centrally Cleared","Notional Value","Exposure (Dollar Delta, DV01, CS01"]
[1,"Select","Select","Select","Select",0,"Select",0,0]
[2,"Select","Select","Select","Select",0,"Select",0,0]
[3,"Select","Select","Select","Select",0,"Select",0,0]
[4,"Select","Select","Select","Select",0,"Select",0,0]
[5,"Select","Select","Select","Select",0,"Select",0,0]
[6,"Select","Select","Select","Select",0,"Select",0,0]
[7,"Select","Select","Select","Select",0,"Select",0,0]
[8,"Select","Select","Select","Select",0,"Select",0,0]
[9,"Select","Select","Select","Select",0,"Select",0,0]
[10,"Select","Select","Select","Select",0,"Select",0,0]
[11,"Select","Select","Select","Select",0,"Select",0,0]
[12,"Select","Select","Select","Select",0,"Select",0,0]
[13,"Select","Select","Select","Select",0,"Select",0,0]
[14,"Select","Select","Select","Select",0,"Select",0,0]
[15,"Select","Select","Select","Select",0,"Select",0,0]
[16,"Select","Select","Select","Select",0,"Select",0,0]
[17,"Select","Select","Select","Select",0,"Select",0,0]
[18,"Select","Select","Select","Select",0,"Select",0,0]
[19,"Select","Select","Select","Select",0,"Select",0,0]
[20,"Select","Select","Select","Select",0,"Select",0,0]
[]
[null,"Total Derivatives",null,null,null,{"$f":"SUM(F184:F203)","v":0},null,{"$f":"SUM(H184:H203)","v":0},{"$f":"SUM(I184:I203)","v":0}]
[]
[null,"Form 1SFS Line 13(a) Derivatives"]
[]
[null,"Check Section G",null,null,null,{"$f":"ROUND((F205-F207),0)","v":0},{"$f":"IF(F209=0,\"TRUE\",\"FALSE\")","v":"TRUE"}]
[]
[null,"(H) OTHER ASSETS",null,"Enter # of Asset Types"]
[null,null,null,null,{"$f":"YEAR($C$3)","v":2023},{"$f":"YEAR($C$3)","v":2023}]
[null,"Asset Type","Jurisdiction","BSCR Rating ","Face Value","Fair Value","Average YTM","Effective Duration","Effective Convexity"]
[1,"Select",0,"Select",0,0,0,0,0]
[2,"Select",0,"Select",0,0,0,0,0]
[3,"Select",0,"Select",0,0,0,0,0]
[4,"Select",0,"Select",0,0,0,0,0]
[5,"Select",0,"Select",0,0,0,0,0]
[6,"Select",0,"Select",0,0,0,0,0]
[7,"Select",0,"Select",0,0,0,0,0]
[8,"Select",0,"Select",0,0,0,0,0]
[9,"Select",0,"Select",0,0,0,0,0]
[10,"Select",0,"Select",0,0,0,0,0]
[11,"Select",0,"Select",0,0,0,0,0]
[12,"Select",0,"Select",0,0,0,0,0]
[13,"Select",0,"Select",0,0,0,0,0]
[14,"Select",0,"Select",0,0,0,0,0]
[15,"Select",0,"Select",0,0,0,0,0]
[16,"Select",0,"Select",0,0,0,0,0]
[17,"Select",0,"Select",0,0,0,0,0]
[18,"Select",0,"Select",0,0,0,0,0]
[19,"Select",0,"Select",0,0,0,0,0]
[20,"Select",0,"Select",0,0,0,0,0]
[]
[null,"Total Other Assets",null,null,null,{"$f":"SUM(F214:F233)","v":0},0,0,0]
[]
[null,"Form 1SFS Lines X(x) Other Assets"]
[]
[null,"Check Section G",null,null,null,{"$f":"ROUND((F235-F237),0)","v":0},{"$f":"IF(F239=0,\"TRUE\",\"FALSE\")","v":"TRUE"}]
[]
[null,"TOTAL ASSETS",null,null,null,{"$f":"F30+F60+F116+F86+F146+F235+F205+F176","v":0}]
[]
[null,"TOTAL ASSETS (Form 1SFS Line 15)",null,null,null,{"$f":"F34+F90+F120+F150+F180+F209+F239","v":0}]
[]
[null,"Check Form 1SFS",null,null,null,{"$f":"IF(F247=0,\"TRUE\",\"FALSE\")","v":"TRUE"}]
[null,null,null,null,null,{"$f":"IF(ROUND((F241-(0)),0)=0,\"TRUE\",\"FALSE\")","v":"TRUE"}]
[null,"Difference",null,null,null,{"$f":"ROUND((F243-F241),0)","v":0}]
[]
[null,"EFFECTIVE DURATION",null,null,0]
[]
[null,"EFFECTIVE CONVEXITY",null,null,0]
[]
[]
[]
["Select","Select","Select","Select","Select","Select","Select","Select","Select","Select","Select","Select"]
["Cash ","Sovereign Bonds","RMBS - Agency","Public Equities","Private Equity","Investment Income Due and Accrued","Energy","Holding Entity","Significant Influence",null,"Insured/Guaranteed Mortgages"]
["Certificates of Deposit","Municipals","RMBS - Non-agency","Public Preferred Stock","Investment Funds","Accounts and Premiums Receivable","Materials","Operating Entity","Control",null,"Other Commercial and Farm Mortgages"]
["Money Market Funds","Supranationals (multilateral development banks and international organizations)","CMBS","Exchange Traded Funds","Hedge Funds","Reinsurance Balance Receivable","Industrial","Branch",null,null,"Other Residential Mortgages"]
["Other ","Corporate bonds","CLOs","Other","Private Credit Funds","Funds Held by Ceding Reinsurers","Consumer Discretionary","Select",null,null,"Mortgages Not In Good Standing"]
[null,"Mutual Funds","CDOs",null,"Catastrophe Bonds","Sundry Assets","Consumer Staples",null,null,null,"Collateral Loans"]
[null,"Other - Secured Bonds","Auto Loan ABS",null,"Other Insurance-Linked Securities","Letter of Credit, Guarantees and Other Instruments","Healthcare",null,null,null,"Middle Market Loans"]
[null,"Other - Unsecured Bonds","Student Loan ABS",null,"Infrastructure Debt","Other","Financial",null,null,null,"Other Direct Private Lending"]
[null,"Other ","Credit Card Receivable ABS",null,"Equity Investments in Infrastructure",null,null,null,null,null,"Policy Loans"]
[null,null,"Other Asset Backed Securities",null,"Investment in Affiliates",null,null,null,null,null,"Other"]
[null,null,null,null,"Advances to Affiliates"]
[null,null,null,null,"Equity Release / Reverse Mortgages"]
[null,null,null,null,"Other "]
[]
[]
[]
["Select","Select","Select","Select","Select","Select",null,"Select"]
["Listed options","Equity","Hedging","Long / Receive Fixed / Sell Protection","Private Equity","Investment Income Due and Accrued",null,"BSCR Rating 0"]
["Futures","Debt","Speculative","Short / Receive Floating / Buy Protection","Investment Funds","Accounts and Premiums Receivable",null,"BSCR Rating 1",null,null,"Select"]
["Forwards","Interest Rate",null,null,"Hedge Funds","Reinsurance Balance Receivable",null,"BSCR Rating 2",null,null,"Insured/Guaranteed Mortgages"]
["Swaps","Inflation",null,null,"Private Credit Funds","Sundry Assets",null,"BSCR Rating 3",null,null,"Other Commercial and Farm Mortgages"]
["Swaptions","Credit","Select",null,"Catastrophe Bonds","Letter of Credit, Guarantees and Other Instruments",null,"BSCR Rating 4",null,null,"Other Residential Mortgages"]
["OTC options","Currencies","Yes",null,"Other Insurance-Linked Securities","Other",null,"BSCR Rating 5",null,null,"Mortgages Not In Good Standing"]
["Other","Commodities","No",null,"Advances to Affiliates",null,null,"BSCR Rating 6",null,null,"Collateral Loans"]
[null,"Other",null,null,"Infrastructure Debt",null,null,"BSCR Rating 7",null,null,"Middle Market Loans"]
[null,null,null,null,"Equity Investments in Infrastructure",null,null,"BSCR Rating 8",null,null,"Other Direct Private Lending"]
[null,null,null,null,"Equity Release / Reverse Mortgages",null,null,null,null,null,"Policy Loans"]
[null,null,null,null,"Other ",null,null,null,null,null,"Other"]
[]
[null,null,null,null,null,null,null,null,"Switzerland Francs"]
[null,null,null,null,null,null,null,null,"Chile Pesos"]
[null,null,null,null,null,null,null,null,"China Yuan Renminbi"]
[null,null,null,null,null,null,null,null,"Colombia Pesos"]
[null,null,null,null,null,null,null,null,"Costa Rica Colones"]
[null,null,null,null,null,null,null,null,"Cuba Convertible Pesos"]
[null,null,null,null,null,null,null,null,"Cuba Pesos"]
[null,null,null,null,null,null,null,null,"Cape Verde Escudos"]
[null,null,null,null,null,null,null,null,"Czech Republic Koruny"]
[null,null,null,null,null,null,null,null,"Djibouti Francs"]
[null,null,null,null,null,null,null,null,"Denmark Kroner"]
[null,null,null,null,null,null,null,null,"Dominican Republic Pesos"]
[null,null,null,null,null,null,null,null,"Algeria Dinars"]
[null,null,null,null,null,null,null,null,"Estonia Krooni"]
[null,null,null,null,null,null,null,null,"Egypt Pounds"]
[null,null,null,null,null,null,null,null,"Eritrea Nakfa"]
[null,null,null,null,null,null,null,null,"Ethiopia Birr"]
[null,null,null,null,null,null,null,null,"Fiji Dollars"]
[null,null,null,null,null,null,null,null,"Falkland Islands Pounds"]
[null,null,null,null,null,null,null,null,"United Kingdom Pounds"]
[null,null,null,null,null,null,null,null,"Georgia Lari"]
[null,null,null,null,null,null,null,null,"Guernsey Pounds"]
[null,null,null,null,null,null,null,null,"Ghana Cedis"]
[null,null,null,null,null,null,null,null,"Gibraltar Pounds"]
[null,null,null,null,null,null,null,null,"Gambia Dalasi"]
[null,null,null,null,null,null,null,null,"Guinea Francs"]
[null,null,null,null,null,null,null,null,"Guatemala Quetzales"]
[null,null,null,null,null,null,null,null,"Guyana Dollars"]
[null,null,null,null,null,null,null,null,"Hong Kong Dollars"]
[null,null,null,null,null,null,null,null,"Honduras Lempiras"]
[null,null,null,null,null,null,null,null,"Croatia Kuna"]
[null,null,null,null,null,null,null,null,"Haiti Gourdes"]
[null,null,null,null,null,null,null,null,"Hungary Forint"]
[null,null,null,null,null,null,null,null,"Indonesia Rupiahs"]
[null,null,null,null,null,null,null,null,"Israel New Shekels"]
[null,null,null,null,null,null,null,null,"Isle of Man Pounds"]
[null,null,null,null,null,null,null,null,"India Rupees"]
[null,null,null,null,null,null,null,null,"Iraq Dinars"]
[null,null,null,null,null,null,null,null,"Iran Rials"]
[null,null,null,null,null,null,null,null,"Iceland Kronur"]
[null,null,null,null,null,null,null,null,"Jersey Pounds"]
[null,null,null,null,null,null,null,null,"Jamaica Dollars"]
[null,null,null,null,null,null,null,null,"Jordan Dinars"]
[null,null,null,null,null,null,null,null,"Japan Yen"]
[null,null,null,null,null,null,null,null,"Kenya Shillings"]
[null,null,null,null,null,null,null,null,"Kyrgyzstan Soms"]
[null,null,null,null,null,null,null,null,"Cambodia Riels"]
[null,null,null,null,null,null,null,null,"Comoros Francs"]
[null,null,null,null,null,null,null,null,"North Korea Won"]
[null,null,null,null,null,null,null,null,"South Korea Won"]
[null,null,null,null,null,null,null,null,"Kuwait Dinars"]
[null,null,null,null,null,null,null,null,"Cayman Islands Dollars"]
[null,null,null,null,null,null,null,null,"Kazakhstan Tenge"]
[null,null,null,null,null,null,null,null,"Laos Kips"]
[null,null,null,null,null,null,null,null,"Lebanon Pounds"]
[null,null,null,null,null,null,null,null,"Sri Lanka Rupees"]
[null,null,null,null,null,null,null,null,"Liberia Dollars"]
[null,null,null,null,null,null,null,null,"Lesotho Maloti"]
[null,null,null,null,null,null,null,null,"Lithuania Litai"]
[null,null,null,null,null,null,null,null,"Latvia Lati"]
[null,null,null,null,null,null,null,null,"Libya Dinars"]
[null,null,null,null,null,null,null,null,"Morocco Dirhams"]
[null,null,null,null,null,null,null,null,"Moldova Lei"]
[null,null,null,null,null,null,null,null,"Madagascar Ariary"]
[null,null,null,null,null,null,null,null,"Macedonia Denars"]
[null,null,null,null,null,null,null,null,"Myanmar Kyats"]
[null,null,null,null,null,null,null,null,"Mongolia Tugriks"]
[null,null,null,null,null,null,null,null,"Macau Patacas"]
[null,null,null,null,null,null,null,null,"Mauritania Ouguiyas"]
[null,null,null,null,null,null,null,null,"Mauritius Rupees"]
[null,null,null,null,null,null,null,null,"Maldives Rufiyaa"]
[null,null,null,null,null,null,null,null,"Malawi Kwachas"]
[null,null,null,null,null,null,null,null,"Mexico Pesos"]
[null,null,null,null,null,null,null,null,"Malaysia Ringgits"]
[null,null,null,null,null,null,null,null,"Mozambique Meticais"]
[null,null,null,null,null,null,null,null,"Namibia Dollars"]
[null,null,null,null,null,null,null,null,"Nigeria Nairas"]
[null,null,null,null,null,null,null,null,"Nicaragua Cordobas"]
[null,null,null,null,null,null,null,null,"Norway Kroner"]
[null,null,null,null,null,null,null,null,"Nepal Rupees"]
[null,null,null,null,null,null,null,null,"New Zealand Dollars"]
[null,null,null,null,null,null,null,null,"Oman Rials"]
[null,null,null,null,null,null,null,null,"Panama Balboas"]
[null,null,null,null,null,null,null,null,"Peru Nuevos Soles"]
[null,null,null,null,null,null,null,null,"Papua New Guinea Kina"]
[null,null,null,null,null,null,null,null,"Philippines Pesos"]
[null,null,null,null,null,null,null,null,"Pakistan Rupees"]
[null,null,null,null,null,null,null,null,"Poland Zlotych"]
[null,null,null,null,null,null,null,null,"Paraguay Guarani"]
[null,null,null,null,null,null,null,null,"Qatar Riyals"]
[null,null,null,null,null,null,null,null,"Romania New Lei"]
[null,null,null,null,null,null,null,null,"Serbia Dinars"]
[null,null,null,null,null,null,null,null,"Russia Rubles"]
[null,null,null,null,null,null,null,null,"Rwanda Francs"]
[null,null,null,null,null,null,null,null,"Saudi Arabia Riyals"]
[null,null,null,null,null,null,null,null,"Solomon Islands Dollars"]
[null,null,null,null,null,null,null,null,"Seychelles Rupees"]
[null,null,null,null,null,null,null,null,"Sudan Pounds"]
[null,null,null,null,null,null,null,null,"Sweden Kronor"]
[null,null,null,null,null,null,null,null,"Singapore Dollars"]
[null,null,null,null,null,null,null,null,"Saint Helena Pounds"]
[null,null,null,null,null,null,null,null,"Slovakia Koruny"]
[null,null,null,null,null,null,null,null,"Sierra Leone Leones"]
[null,null,null,null,null,null,null,null,"Somalia Shillings"]
[null,null,null,null,null,null,null,null,"Seborga Luigini"]
[null,null,null,null,null,null,null,null,"Suriname Dollars"]
[null,null,null,null,null,null,null,null,"São Tome and Principe Dobras"]
[null,null,null,null,null,null,null,null,"El Salvador Colones"]
[null,null,null,null,null,null,null,null,"Syria Pounds"]
[null,null,null,null,null,null,null,null,"Swaziland Emalangeni"]
[null,null,null,null,null,null,null,null,"Thailand Baht"]
[null,null,null,null,null,null,null,null,"Tajikistan Somoni"]
[null,null,null,null,null,null,null,null,"Turkmenistan Manats"]
[null,null,null,null,null,null,null,null,"Tunisia Dinars"]
[null,null,null,null,null,null,null,null,"Tonga Pa'anga"]
[null,null,null,null,null,null,null,null,"Turkey New Lira"]
[null,null,null,null,null,null,null,null,"Trinidad and Tobago Dollars"]
[null,null,null,null,null,null,null,null,"Tuvalu Dollars"]
[null,null,null,null,null,null,null,null,"Taiwan New Dollars"]
[null,null,null,null,null,null,null,null,"Tanzania Shillings"]
[null,null,null,null,null,null,null,null,"Ukraine Hryvnia"]
[null,null,null,null,null,null,null,null,"Uganda Shillings"]
[null,null,null,null,null,null,null,null,"Uruguay Pesos"]
[null,null,null,null,null,null,null,null,"Uzbekistan Sums"]
[null,null,null,null,null,null,null,null,"Venezuela Bolivares"]
[null,null,null,null,null,null,null,null,"Venezuela Bolivares Fuertes"]
[null,null,null,null,null,null,null,null,"Vietnam Dong"]
[null,null,null,null,null,null,null,null,"Vanuatu Vatu"]
[null,null,null,null,null,null,null,null,"Samoa Tala"]
[null,null,null,null,null,null,null,null,"Communauté Financière Africaine Francs BEAC"]
[null,null,null,null,null,null,null,null,"Silver Ounces"]
[null,null,null,null,null,null,null,null,"Gold Ounces"]
[null,null,null,null,null,null,null,null,"East Caribbean Dollars"]
[null,null,null,null,null,null,null,null,"International Monetary Fund Special Drawing Rights"]
[null,null,null,null,null,null,null,null,"Communauté Financière Africaine Francs BCEAO"]
[null,null,null,null,null,null,null,null,"Palladium Ounces"]
[null,null,null,null,null,null,null,null,"Comptoirs Français du Pacifique Francs"]
[null,null,null,null,null,null,null,null,"Platinum Ounces"]
[null,null,null,null,null,null,null,null,"Yemen Rials"]
[null,null,null,null,null,null,null,null,"South Africa Rand"]
[null,null,null,null,null,null,null,null,"Zambia Kwacha"]
[null,null,null,null,null,null,null,null,"Zimbabwe Dollars"]

{"sheet":"Schedule VI (EBS) (New)","index":58,"n_rows":425,"n_cols":12,"rows_kept":425,"cut":false,"hidden":true,"merged":[[211,1,211,2],[5,1,5,2],[35,1,35,2],[36,1,36,2],[61,1,61,2],[91,1,91,2],[92,1,92,2],[121,1,121,2],[122,1,122,2],[151,1,151,2],[152,1,152,2],[210,1,210,2]]}
[null,"DRAFT EBS SCHEDULE OF ASSETS",null,null,null,null,null,null,{"$f":"HYPERLINK(\"#'Index'!A1\",\"Return to Index\")","v":"Return to Index"}]
[null,{"$f":"'Form 1SFS'!$B$3","v":"Enter Company Name"}]
[null,"As at",{"$f":"'Form 1SFS'!$C$4","v":"2023-12-31"}]
[null,"expressed in ['000s]",{"$f":"'Form 1SFS'!$C$5","v":"United States Dollars"}]
[]
[null,"(A) CASH AND CASH EQUIVALENTS",null,"Enter # of Asset Types"]
[null,null,null,null,{"$f":"YEAR($C$3)","v":2023},{"$f":"YEAR($C$3)","v":2023}]
[null,"Asset Type","Jurisdiction","BSCR Rating ","Face Value","Fair Value"]
[1,"Select",null,"Select"]
[2,"Select",null,"Select"]
[3,"Select",null,"Select"]
[4,"Select",null,"Select"]
[5,"Select",null,"Select"]
[6,"Select",null,"Select"]
[7,"Select",null,"Select"]
[8,"Select",null,"Select"]
[9,"Select",null,"Select"]
[10,"Select",null,"Select"]
[11,"Select",null,"Select"]
[12,"Select",null,"Select"]
[13,"Select",null,"Select"]
[14,"Select",null,"Select"]
[15,"Select",null,"Select"]
[16,"Select",null,"Select"]
[17,"Select",null,"Select"]
[18,"Select",null,"Select"]
[19,"Select",null,"Select"]
[20,"Select",null,"Select"]
[]
[null,"Total Cash & Cash Equivalents",null,null,{"$f":"SUM(E9:E28)","v":0},{"$f":"SUM(F9:F28)","v":0}]
[]
[null,"Form 4EBS Line 1 Cash and Cash Equivalents",null,null,null,{"$f":"'Form 4EBS'!F10","v":0}]
[]
[null,"Check Section A",null,null,null,{"$f":"ROUND((F30-F32),0)","v":0},{"$f":"IF(F34=0,\"TRUE\",\"FALSE\")","v":"TRUE"}]
[]
[null,"(B) BONDS AND DEBENTURES",null,"Enter # of Asset Types"]
[null,null,null,null,{"$f":"YEAR($C$3)","v":2023},{"$f":"YEAR($C$3)","v":2023}]
[null,"Asset Type","Jurisdiction","BSCR Rating ","Face Value","Fair Value","Average YTM","Effective Duration","Effective Convexity"]
[1,"Select",0,"Select",0,0,0,0,0]
[2,"Select",0,"Select",0,0,0,0,0]
[3,"Select",0,"Select",0,0,0,0,0]
[4,"Select",0,"Select",0,0,0,0,0]
[5,"Select",0,"Select",0,0,0,0,0]
[6,"Select",0,"Select",0,0,0,0,0]
[7,"Select",0,"Select",0,0,0,0,0]
[8,"Select",0,"Select",0,0,0,0,0]
[9,"Select",0,"Select",0,0,0,0,0]
[10,"Select",0,"Select",0,0,0,0,0]
[11,"Select",0,"Select",0,0,0,0,0]
[12,"Select",0,"Select",0,0,0,0,0]
[13,"Select",0,"Select",0,0,0,0,0]
[14,"Select",0,"Select",0,0,0,0,0]
[15,"Select",0,"Select",0,0,0,0,0]
[16,"Select",0,"Select",0,0,0,0,0]
[17,"Select",0,"Select",0,0,0,0,0]
[18,"Select",0,"Select",0,0,0,0,0]
[19,"Select",0,"Select",0,0,0,0,0]
[20,"Select",0,"Select",0,0,0,0,0]
[]
[null,"Total Bonds & Debentures",null,null,{"$f":"SUM(E39:E58)","v":0},{"$f":"SUM(F39:F58)","v":0},0,0,0]
[]
[null,"(C) SECURITIES/ASSET-BASED SECURITIES",null,"Enter # of Asset Types"]
[null,null,null,null,{"$f":"YEAR($C$3)","v":2023},{"$f":"YEAR($C$3)","v":2023}]
[null,"Asset Type","Jurisdiction","BSCR Rating ","Face Value","Fair Value","Average YTM","Effective Duration","Effective Convexity"]
[1,"Select",0,"Select",0,0,0,0,0]
[2,"Select",0,"Select",0,0,0,0,0]
[3,"Select",0,"Select",0,0,0,0,0]
[4,"Select",0,"Select",0,0,0,0,0]
[5,"Select",0,"Select",0,0,0,0,0]
[6,"Select",0,"Select",0,0,0,0,0]
[7,"Select",0,"Select",0,0,0,0,0]
[8,"Select",0,"Select",0,0,0,0,0]
[9,"Select",0,"Select",0,0,0,0,0]
[10,"Select",0,"Select",0,0,0,0,0]
[11,"Select",0,"Select",0,0,0,0,0]
[12,"Select",0,"Select",0,0,0,0,0]
[13,"Select",0,"Select",0,0,0,0,0]
[14,"Select",0,"Select",0,0,0,0,0]
[15,"Select",0,"Select",0,0,0,0,0]
[16,"Select",0,"Select",0,0,0,0,0]
[17,"Select",0,"Select",0,0,0,0,0]
[18,"Select",0,"Select",0,0,0,0,0]
[19,"Select",0,"Select",0,0,0,0,0]
[20,"Select",0,"Select",0,0,0,0,0]
[]
[null,"Total Securities/Asset-Backed Securities",null,null,{"$f":"SUM(E65:E84)","v":0},{"$f":"SUM(F65:F84)","v":0},0,0,0]
[]
[null,"Form 4EBS Lines 2(b) & 3(b) Bonds & Debentures",null,null,null,{"$f":"'Form 4EBS'!F13+'Form 4EBS'!F23","v":0}]
[]
[null,"Check Sections B & C",null,null,null,{"$f":"ROUND(((F86+F60)-F88),0)","v":0},{"$f":"IF(F90=0,\"TRUE\",\"FALSE\")","v":"TRUE"}]
[]
[null,"(D) LISTED EQUITIES AND PREFERENCE SHARES",null,"Enter # of Asset Types"]
[null,null,null,null,{"$f":"YEAR($C$3)","v":2023},{"$f":"YEAR($C$3)","v":2023}]
[null,"Asset Type","Stock Exchange","BSCR Rating ","Face Value","Fair Value"]
[1,"Select",0,"Select",0,0]
[2,"Select",0,"Select",0,0]
[3,"Select",0,"Select",0,0]
[4,"Select",0,"Select",0,0]
[5,"Select",0,"Select",0,0]
[6,"Select",0,"Select",0,0]
[7,"Select",0,"Select",0,0]
[8,"Select",0,"Select",0,0]
[9,"Select",0,"Select",0,0]
[10,"Select",0,"Select",0,0]
[11,"Select",0,"Select",0,0]
[12,"Select",0,"Select",0,0]
[13,"Select",0,"Select",0,0]
[14,"Select",0,"Select",0,0]
[15,"Select",0,"Select",0,0]
[16,"Select",0,"Select",0,0]
[17,"Select",0,"Select",0,0]
[18,"Select",0,"Select",0,0]
[19,"Select",0,"Select",0,0]
[20,"Select",0,"Select",0,0]
[]
[null,"Total Listed Equities & Preference Shares",null,null,{"$f":"SUM(E95:E114)","v":0},{"$f":"SUM(F95:F114)","v":0}]
[]
[null,"Form 4EBS Lines 2(d) & 3(d) Equities & Preference Shares",null,null,null,{"$f":"'Form 4EBS'!F18+'Form 4EBS'!F28","v":0}]
[]
[null,"Check Section D",null,null,null,{"$f":"ROUND((F116-F118),0)","v":0},{"$f":"IF(F120=0,\"TRUE\",\"FALSE\")","v":"TRUE"}]
[]
[null,"(E) ALTERNATIVE INVESTMENTS",null,"Enter # of Asset Types"]
[null,null,null,null,{"$f":"YEAR($C$3)","v":2023},{"$f":"YEAR($C$3)","v":2023}]
[null,"Asset Type","Jurisdiction","BSCR Rating ","Face Value","Fair Value","Average YTM","Effective Duration","Effective Convexity"]
[1,"Select",0,"Select",0,0,0,0,0]
[2,"Select",0,"Select",0,0,0,0,0]
[3,"Select",0,"Select",0,0,0,0,0]
[4,"Select",0,"Select",0,0,0,0,0]
[5,"Select",0,"Select",0,0,0,0,0]
[6,"Select",0,"Select",0,0,0,0,0]
[7,"Select",0,"Select",0,0,0,0,0]
[8,"Select",0,"Select",0,0,0,0,0]
[9,"Select",0,"Select",0,0,0,0,0]
[10,"Select",0,"Select",0,0,0,0,0]
[11,"Select",0,"Select",0,0,0,0,0]
[12,"Select",0,"Select",0,0,0,0,0]
[13,"Select",0,"Select",0,0,0,0,0]
[14,"Select",0,"Select",0,0,0,0,0]
[15,"Select",0,"Select",0,0,0,0,0]
[16,"Select",0,"Select",0,0,0,0,0]
[17,"Select",0,"Select",0,0,0,0,0]
[18,"Select",0,"Select",0,0,0,0,0]
[19,"Select",0,"Select",0,0,0,0,0]
[20,"Select",0,"Select",0,0,0,0,0]
[]
[null,"Total Alternative Investments",null,null,{"$f":"SUM(E125:E144)","v":0},{"$f":"SUM(F125:F144)","v":0},0,0,0]
[]
[null,"Form 4EBS Lines 2(e) & 3(e) Alternative Investments",null,null,null,{"$f":"'Form 4EBS'!F19+'Form 4EBS'!F29","v":0}]
[]
[null,"Check Section E",null,null,null,{"$f":"ROUND((F146-F148),0)","v":0},{"$f":"IF(F150=0,\"TRUE\",\"FALSE\")","v":"TRUE"}]
[]
[null,"(F) LOANS",null,"Enter # of Asset Types"]
[null,null,null,null,{"$f":"YEAR($C$3)","v":2023},{"$f":"YEAR($C$3)","v":2023}]
[null,"Asset Type","Jurisdiction","BSCR Rating ","Face Value","Fair Value","Average YTM","Effective Duration","Effective Convexity"]
[1,"Select",0,"Select",0,0,0,0,0]
[2,"Select",0,"Select",0,0,0,0,0]
[3,"Select",0,"Select",0,0,0,0,0]
[4,"Select",0,"Select",0,0,0,0,0]
[5,"Select",0,"Select",0,0,0,0,0]
[6,"Select",0,"Select",0,0,0,0,0]
[7,"Select",0,"Select",0,0,0,0,0]
[8,"Select",0,"Select",0,0,0,0,0]
[9,"Select",0,"Select",0,0,0,0,0]
[10,"Select",0,"Select",0,0,0,0,0]
[11,"Select",0,"Select",0,0,0,0,0]
[12,"Select",0,"Select",0,0,0,0,0]
[13,"Select",0,"Select",0,0,0,0,0]
[14,"Select",0,"Select",0,0,0,0,0]
[15,"Select",0,"Select",0,0,0,0,0]
[16,"Select",0,"Select",0,0,0,0,0]
[17,"Select",0,"Select",0,0,0,0,0]
[18,"Select",0,"Select",0,0,0,0,0]
[19,"Select",0,"Select",0,0,0,0,0]
[20,"Select",0,"Select",0,0,0,0,0]
[]
[null,"Total Loans",null,null,{"$f":"SUM(E155:E174)","v":0},{"$f":"SUM(F155:F174)","v":0},0,0,0]
[]
[null,"Form 4EBS Line 5(c) Mortgage Loans",null,null,null,{"$f":"'Form 4EBS'!F45","v":0}]
[]
[null,"Check Section F",null,null,null,{"$f":"ROUND((F176-F178),0)","v":0},{"$f":"IF(F180=0,\"TRUE\",\"FALSE\")","v":"TRUE"}]
[]
[null,"(G) DERIVATIVES",null,"Enter # of Derivative Types"]
[null,"Derivative Type","Underlying","Purpose","Position",{"$f":"YEAR($C$3)&\" Market Value\"","v":"2023 Market Value"},"Centrally Cleared","Notional Value","Exposure (Dollar Delta, DV01, CS01"]
[1,"Select","Select","Select","Select",0,"Select",0,0]
[2,"Select","Select","Select","Select",0,"Select",0,0]
[3,"Select","Select","Select","Select",0,"Select",0,0]
[4,"Select","Select","Select","Select",0,"Select",0,0]
[5,"Select","Select","Select","Select",0,"Select",0,0]
[6,"Select","Select","Select","Select",0,"Select",0,0]
[7,"Select","Select","Select","Select",0,"Select",0,0]
[8,"Select","Select","Select","Select",0,"Select",0,0]
[9,"Select","Select","Select","Select",0,"Select",0,0]
[10,"Select","Select","Select","Select",0,"Select",0,0]
[11,"Select","Select","Select","Select",0,"Select",0,0]
[12,"Select","Select","Select","Select",0,"Select",0,0]
[13,"Select","Select","Select","Select",0,"Select",0,0]
[14,"Select","Select","Select","Select",0,"Select",0,0]
[15,"Select","Select","Select","Select",0,"Select",0,0]
[16,"Select","Select","Select","Select",0,"Select",0,0]
[17,"Select","Select","Select","Select",0,"Select",0,0]
[18,"Select","Select","Select","Select",0,"Select",0,0]
[19,"Select","Select","Select","Select",0,"Select",0,0]
[20,"Select","Select","Select","Select",0,"Select",0,0]
[]
[null,"Total Derivatives",null,null,null,{"$f":"SUM(F184:F203)","v":0},null,{"$f":"SUM(H184:H203)","v":0},{"$f":"SUM(I184:I203)","v":0}]
[]
[null,"Form 4EBS Line 13(a) Derivatives",null,null,null,{"$f":"'Form 4EBS'!F76","v":0}]
[]
[null,"Check Section G",null,null,null,{"$f":"ROUND((F205-F207),0)","v":0},{"$f":"IF(F209=0,\"TRUE\",\"FALSE\")","v":"TRUE"}]
[]
[null,"(H) OTHER ASSETS",null,"Enter # of Asset Types"]
[null,null,null,null,{"$f":"YEAR($C$3)","v":2023},{"$f":"YEAR($C$3)","v":2023}]
[null,"Asset Type","Jurisdiction","BSCR Rating ","Face Value","Fair Value","Average YTM","Effective Duration","Effective Convexity"]
[1,"Select",0,"Select",0,0,0,0,0]
[2,"Select",0,"Select",0,0,0,0,0]
[3,"Select",0,"Select",0,0,0,0,0]
[4,"Select",0,"Select",0,0,0,0,0]
[5,"Select",0,"Select",0,0,0,0,0]
[6,"Select",0,"Select",0,0,0,0,0]
[7,"Select",0,"Select",0,0,0,0,0]
[8,"Select",0,"Select",0,0,0,0,0]
[9,"Select",0,"Select",0,0,0,0,0]
[10,"Select",0,"Select",0,0,0,0,0]
[11,"Select",0,"Select",0,0,0,0,0]
[12,"Select",0,"Select",0,0,0,0,0]
[13,"Select",0,"Select",0,0,0,0,0]
[14,"Select",0,"Select",0,0,0,0,0]
[15,"Select",0,"Select",0,0,0,0,0]
[16,"Select",0,"Select",0,0,0,0,0]
[17,"Select",0,"Select",0,0,0,0,0]
[18,"Select",0,"Select",0,0,0,0,0]
[19,"Select",0,"Select",0,0,0,0,0]
[20,"Select",0,"Select",0,0,0,0,0]
[]
[null,"Total Other Assets",null,null,null,{"$f":"SUM(F214:F233)","v":0},0,0,0]
[]
[null,"Form 4EBS Lines X(x) Other Assets",null,null,null,0]
[]
[null,"Check Section G",null,null,null,{"$f":"ROUND((F235-F237),0)","v":0},{"$f":"IF(F239=0,\"TRUE\",\"FALSE\")","v":"TRUE"}]
[]
[null,"TOTAL ASSETS",null,null,null,{"$f":"F30+F60+F116+F86+F146+F235+F205+F176","v":0}]
[]
[null,"TOTAL ASSETS (Form 4EBS Line 15)",null,null,null,{"$f":"F34+F90+F120+F150+F180+F209+F239","v":0}]
[]
[null,"Check Form 4EBS",null,null,null,{"$f":"IF(F247=0,\"TRUE\",\"FALSE\")","v":"TRUE"}]
[null,null,null,null,null,{"$f":"IF(ROUND((F241-(0)),0)=0,\"TRUE\",\"FALSE\")","v":"TRUE"}]
[null,"Difference",null,null,null,{"$f":"ROUND((F243-F241),0)","v":0}]
[]
[null,"EFFECTIVE DURATION",null,null,0]
[]
[null,"EFFECTIVE CONVEXITY",null,null,0]
[]
[]
[]
["Select","Select","Select","Select","Select","Select","Select","Select","Select","Select","Select","Select"]
["Cash ","Sovereign Bonds","RMBS - Agency","Public Equities","Private Equity","Investment Income Due and Accrued","Energy","Holding Entity","Significant Influence",null,"Insured/Guaranteed Mortgages"]
["Certificates of Deposit","Municipals","RMBS - Non-agency","Public Preferred Stock","Investment Funds","Accounts and Premiums Receivable","Materials","Operating Entity","Control",null,"Other Commercial and Farm Mortgages"]
["Money Market Funds","Supranationals (multilateral development banks and international organizations)","CMBS","Exchange Traded Funds","Hedge Funds","Reinsurance Balance Receivable","Industrial","Branch",null,null,"Other Residential Mortgages"]
["Other ","Corporate bonds","CLOs","Other","Private Credit Funds","Funds Held by Ceding Reinsurers","Consumer Discretionary","Select",null,null,"Mortgages Not In Good Standing"]
[null,"Mutual Funds","CDOs",null,"Catastrophe Bonds","Sundry Assets","Consumer Staples",null,null,null,"Collateral Loans"]
[null,"Other - Secured Bonds","Auto Loan ABS",null,"Other Insurance-Linked Securities","Letter of Credit, Guarantees and Other Instruments","Healthcare",null,null,null,"Middle Market Loans"]
[null,"Other - Unsecured Bonds","Student Loan ABS",null,"Infrastructure Debt","Other","Financial",null,null,null,"Other Direct Private Lending"]
[null,"Other ","Credit Card Receivable ABS",null,"Equity Investments in Infrastructure",null,null,null,null,null,"Policy Loans"]
[null,null,"Other Asset Backed Securities",null,"Investment in Affiliates",null,null,null,null,null,"Other"]
[null,null,null,null,"Advances to Affiliates"]
[null,null,null,null,"Equity Release / Reverse Mortgages"]
[null,null,null,null,"Other "]
[]
[]
[]
["Select","Select","Select","Select","Select","Select",null,"Select"]
["Listed options","Equity","Hedging","Long / Receive Fixed / Sell Protection","Private Equity","Investment Income Due and Accrued",null,"BSCR Rating 0"]
["Futures","Debt","Speculative","Short / Receive Floating / Buy Protection","Investment Funds","Accounts and Premiums Receivable",null,"BSCR Rating 1",null,null,"Select"]
["Forwards","Interest Rate",null,null,"Hedge Funds","Reinsurance Balance Receivable",null,"BSCR Rating 2",null,null,"Insured/Guaranteed Mortgages"]
["Swaps","Inflation",null,null,"Private Credit Funds","Sundry Assets",null,"BSCR Rating 3",null,null,"Other Commercial and Farm Mortgages"]
["Swaptions","Credit","Select",null,"Catastrophe Bonds","Letter of Credit, Guarantees and Other Instruments",null,"BSCR Rating 4",null,null,"Other Residential Mortgages"]
["OTC options","Currencies","Yes",null,"Other Insurance-Linked Securities","Other",null,"BSCR Rating 5",null,null,"Mortgages Not In Good Standing"]
["Other","Commodities","No",null,"Advances to Affiliates",null,null,"BSCR Rating 6",null,null,"Collateral Loans"]
[null,"Other",null,null,"Infrastructure Debt",null,null,"BSCR Rating 7",null,null,"Middle Market Loans"]
[null,null,null,null,"Equity Investments in Infrastructure",null,null,"BSCR Rating 8",null,null,"Other Direct Private Lending"]
[null,null,null,null,"Equity Release / Reverse Mortgages",null,null,null,null,null,"Policy Loans"]
[null,null,null,null,"Other ",null,null,null,null,null,"Other"]
[]
[null,null,null,null,null,null,null,null,"Switzerland Francs"]
[null,null,null,null,null,null,null,null,"Chile Pesos"]
[null,null,null,null,null,null,null,null,"China Yuan Renminbi"]
[null,null,null,null,null,null,null,null,"Colombia Pesos"]
[null,null,null,null,null,null,null,null,"Costa Rica Colones"]
[null,null,null,null,null,null,null,null,"Cuba Convertible Pesos"]
[null,null,null,null,null,null,null,null,"Cuba Pesos"]
[null,null,null,null,null,null,null,null,"Cape Verde Escudos"]
[null,null,null,null,null,null,null,null,"Czech Republic Koruny"]
[null,null,null,null,null,null,null,null,"Djibouti Francs"]
[null,null,null,null,null,null,null,null,"Denmark Kroner"]
[null,null,null,null,null,null,null,null,"Dominican Republic Pesos"]
[null,null,null,null,null,null,null,null,"Algeria Dinars"]
[null,null,null,null,null,null,null,null,"Estonia Krooni"]
[null,null,null,null,null,null,null,null,"Egypt Pounds"]
[null,null,null,null,null,null,null,null,"Eritrea Nakfa"]
[null,null,null,null,null,null,null,null,"Ethiopia Birr"]
[null,null,null,null,null,null,null,null,"Fiji Dollars"]
[null,null,null,null,null,null,null,null,"Falkland Islands Pounds"]
[null,null,null,null,null,null,null,null,"United Kingdom Pounds"]
[null,null,null,null,null,null,null,null,"Georgia Lari"]
[null,null,null,null,null,null,null,null,"Guernsey Pounds"]
[null,null,null,null,null,null,null,null,"Ghana Cedis"]
[null,null,null,null,null,null,null,null,"Gibraltar Pounds"]
[null,null,null,null,null,null,null,null,"Gambia Dalasi"]
[null,null,null,null,null,null,null,null,"Guinea Francs"]
[null,null,null,null,null,null,null,null,"Guatemala Quetzales"]
[null,null,null,null,null,null,null,null,"Guyana Dollars"]
[null,null,null,null,null,null,null,null,"Hong Kong Dollars"]
[null,null,null,null,null,null,null,null,"Honduras Lempiras"]
[null,null,null,null,null,null,null,null,"Croatia Kuna"]
[null,null,null,null,null,null,null,null,"Haiti Gourdes"]
[null,null,null,null,null,null,null,null,"Hungary Forint"]
[null,null,null,null,null,null,null,null,"Indonesia Rupiahs"]
[null,null,null,null,null,null,null,null,"Israel New Shekels"]
[null,null,null,null,null,null,null,null,"Isle of Man Pounds"]
[null,null,null,null,null,null,null,null,"India Rupees"]
[null,null,null,null,null,null,null,null,"Iraq Dinars"]
[null,null,null,null,null,null,null,null,"Iran Rials"]
[null,null,null,null,null,null,null,null,"Iceland Kronur"]
[null,null,null,null,null,null,null,null,"Jersey Pounds"]
[null,null,null,null,null,null,null,null,"Jamaica Dollars"]
[null,null,null,null,null,null,null,null,"Jordan Dinars"]
[null,null,null,null,null,null,null,null,"Japan Yen"]
[null,null,null,null,null,null,null,null,"Kenya Shillings"]
[null,null,null,null,null,null,null,null,"Kyrgyzstan Soms"]
[null,null,null,null,null,null,null,null,"Cambodia Riels"]
[null,null,null,null,null,null,null,null,"Comoros Francs"]
[null,null,null,null,null,null,null,null,"North Korea Won"]
[null,null,null,null,null,null,null,null,"South Korea Won"]
[null,null,null,null,null,null,null,null,"Kuwait Dinars"]
[null,null,null,null,null,null,null,null,"Cayman Islands Dollars"]
[null,null,null,null,null,null,null,null,"Kazakhstan Tenge"]
[null,null,null,null,null,null,null,null,"Laos Kips"]
[null,null,null,null,null,null,null,null,"Lebanon Pounds"]
[null,null,null,null,null,null,null,null,"Sri Lanka Rupees"]
[null,null,null,null,null,null,null,null,"Liberia Dollars"]
[null,null,null,null,null,null,null,null,"Lesotho Maloti"]
[null,null,null,null,null,null,null,null,"Lithuania Litai"]
[null,null,null,null,null,null,null,null,"Latvia Lati"]
[null,null,null,null,null,null,null,null,"Libya Dinars"]
[null,null,null,null,null,null,null,null,"Morocco Dirhams"]
[null,null,null,null,null,null,null,null,"Moldova Lei"]
[null,null,null,null,null,null,null,null,"Madagascar Ariary"]
[null,null,null,null,null,null,null,null,"Macedonia Denars"]
[null,null,null,null,null,null,null,null,"Myanmar Kyats"]
[null,null,null,null,null,null,null,null,"Mongolia Tugriks"]
[null,null,null,null,null,null,null,null,"Macau Patacas"]
[null,null,null,null,null,null,null,null,"Mauritania Ouguiyas"]
[null,null,null,null,null,null,null,null,"Mauritius Rupees"]
[null,null,null,null,null,null,null,null,"Maldives Rufiyaa"]
[null,null,null,null,null,null,null,null,"Malawi Kwachas"]
[null,null,null,null,null,null,null,null,"Mexico Pesos"]
[null,null,null,null,null,null,null,null,"Malaysia Ringgits"]
[null,null,null,null,null,null,null,null,"Mozambique Meticais"]
[null,null,null,null,null,null,null,null,"Namibia Dollars"]
[null,null,null,null,null,null,null,null,"Nigeria Nairas"]
[null,null,null,null,null,null,null,null,"Nicaragua Cordobas"]
[null,null,null,null,null,null,null,null,"Norway Kroner"]
[null,null,null,null,null,null,null,null,"Nepal Rupees"]
[null,null,null,null,null,null,null,null,"New Zealand Dollars"]
[null,null,null,null,null,null,null,null,"Oman Rials"]
[null,null,null,null,null,null,null,null,"Panama Balboas"]
[null,null,null,null,null,null,null,null,"Peru Nuevos Soles"]
[null,null,null,null,null,null,null,null,"Papua New Guinea Kina"]
[null,null,null,null,null,null,null,null,"Philippines Pesos"]
[null,null,null,null,null,null,null,null,"Pakistan Rupees"]
[null,null,null,null,null,null,null,null,"Poland Zlotych"]
[null,null,null,null,null,null,null,null,"Paraguay Guarani"]
[null,null,null,null,null,null,null,null,"Qatar Riyals"]
[null,null,null,null,null,null,null,null,"Romania New Lei"]
[null,null,null,null,null,null,null,null,"Serbia Dinars"]
[null,null,null,null,null,null,null,null,"Russia Rubles"]
[null,null,null,null,null,null,null,null,"Rwanda Francs"]
[null,null,null,null,null,null,null,null,"Saudi Arabia Riyals"]
[null,null,null,null,null,null,null,null,"Solomon Islands Dollars"]
[null,null,null,null,null,null,null,null,"Seychelles Rupees"]
[null,null,null,null,null,null,null,null,"Sudan Pounds"]
[null,null,null,null,null,null,null,null,"Sweden Kronor"]
[null,null,null,null,null,null,null,null,"Singapore Dollars"]
[null,null,null,null,null,null,null,null,"Saint Helena Pounds"]
[null,null,null,null,null,null,null,null,"Slovakia Koruny"]
[null,null,null,null,null,null,null,null,"Sierra Leone Leones"]
[null,null,null,null,null,null,null,null,"Somalia Shillings"]
[null,null,null,null,null,null,null,null,"Seborga Luigini"]
[null,null,null,null,null,null,null,null,"Suriname Dollars"]
[null,null,null,null,null,null,null,null,"São Tome and Principe Dobras"]
[null,null,null,null,null,null,null,null,"El Salvador Colones"]
[null,null,null,null,null,null,null,null,"Syria Pounds"]
[null,null,null,null,null,null,null,null,"Swaziland Emalangeni"]
[null,null,null,null,null,null,null,null,"Thailand Baht"]
[null,null,null,null,null,null,null,null,"Tajikistan Somoni"]
[null,null,null,null,null,null,null,null,"Turkmenistan Manats"]
[null,null,null,null,null,null,null,null,"Tunisia Dinars"]
[null,null,null,null,null,null,null,null,"Tonga Pa'anga"]
[null,null,null,null,null,null,null,null,"Turkey New Lira"]
[null,null,null,null,null,null,null,null,"Trinidad and Tobago Dollars"]
[null,null,null,null,null,null,null,null,"Tuvalu Dollars"]
[null,null,null,null,null,null,null,null,"Taiwan New Dollars"]
[null,null,null,null,null,null,null,null,"Tanzania Shillings"]
[null,null,null,null,null,null,null,null,"Ukraine Hryvnia"]
[null,null,null,null,null,null,null,null,"Uganda Shillings"]
[null,null,null,null,null,null,null,null,"Uruguay Pesos"]
[null,null,null,null,null,null,null,null,"Uzbekistan Sums"]
[null,null,null,null,null,null,null,null,"Venezuela Bolivares"]
[null,null,null,null,null,null,null,null,"Venezuela Bolivares Fuertes"]
[null,null,null,null,null,null,null,null,"Vietnam Dong"]
[null,null,null,null,null,null,null,null,"Vanuatu Vatu"]
[null,null,null,null,null,null,null,null,"Samoa Tala"]
[null,null,null,null,null,null,null,null,"Communauté Financière Africaine Francs BEAC"]
[null,null,null,null,null,null,null,null,"Silver Ounces"]
[null,null,null,null,null,null,null,null,"Gold Ounces"]
[null,null,null,null,null,null,null,null,"East Caribbean Dollars"]
[null,null,null,null,null,null,null,null,"International Monetary Fund Special Drawing Rights"]
[null,null,null,null,null,null,null,null,"Communauté Financière Africaine Francs BCEAO"]
[null,null,null,null,null,null,null,null,"Palladium Ounces"]
[null,null,null,null,null,null,null,null,"Comptoirs Français du Pacifique Francs"]
[null,null,null,null,null,null,null,null,"Platinum Ounces"]
[null,null,null,null,null,null,null,null,"Yemen Rials"]
[null,null,null,null,null,null,null,null,"South Africa Rand"]
[null,null,null,null,null,null,null,null,"Zambia Kwacha"]
[null,null,null,null,null,null,null,null,"Zimbabwe Dollars"]

{"sheet":"Schedule VIA (EBS) (New)","index":59,"n_rows":425,"n_cols":12,"rows_kept":425,"cut":false,"hidden":true,"merged":[[211,1,211,2],[5,1,5,2],[35,1,35,2],[36,1,36,2],[61,1,61,2],[91,1,91,2],[92,1,92,2],[121,1,121,2],[122,1,122,2],[151,1,151,2],[152,1,152,2],[210,1,210,2]]}
[null,"DRAFT EBS SCHEDULE OF FUNDS HELD BY CEDING REINSURERS",null,null,null,null,null,null,{"$f":"HYPERLINK(\"#'Index'!A1\",\"Return to Index\")","v":"Return to Index"}]
[null,{"$f":"'Form 1SFS'!$B$3","v":"Enter Company Name"}]
[null,"As at",{"$f":"'Form 1SFS'!$C$4","v":"2023-12-31"}]
[null,"expressed in ['000s]",{"$f":"'Form 1SFS'!$C$5","v":"United States Dollars"}]
[]
[null,"(A) CASH AND CASH EQUIVALENTS",null,"Enter # of Asset Types"]
[null,null,null,null,{"$f":"YEAR($C$3)","v":2023},{"$f":"YEAR($C$3)","v":2023}]
[null,"Asset Type","Jurisdiction","BSCR Rating ","Face Value","Fair Value"]
[1,"Select",null,"Select"]
[2,"Select",null,"Select"]
[3,"Select",null,"Select"]
[4,"Select",null,"Select"]
[5,"Select",null,"Select"]
[6,"Select",null,"Select"]
[7,"Select",null,"Select"]
[8,"Select",null,"Select"]
[9,"Select",null,"Select"]
[10,"Select",null,"Select"]
[11,"Select",null,"Select"]
[12,"Select",null,"Select"]
[13,"Select",null,"Select"]
[14,"Select",null,"Select"]
[15,"Select",null,"Select"]
[16,"Select",null,"Select"]
[17,"Select",null,"Select"]
[18,"Select",null,"Select"]
[19,"Select",null,"Select"]
[20,"Select",null,"Select"]
[]
[null,"Total Cash & Cash Equivalents",null,null,{"$f":"SUM(E9:E28)","v":0},{"$f":"SUM(F9:F28)","v":0}]
[]
[null,"Form 1EBS Line 1 Cash and Cash Equivalents"]
[]
[null,"Check Section A",null,null,null,{"$f":"ROUND((F30-F32),0)","v":0},{"$f":"IF(F34=0,\"TRUE\",\"FALSE\")","v":"TRUE"}]
[]
[null,"(B) BONDS AND DEBENTURES",null,"Enter # of Asset Types"]
[null,null,null,null,{"$f":"YEAR($C$3)","v":2023},{"$f":"YEAR($C$3)","v":2023}]
[null,"Asset Type","Jurisdiction","BSCR Rating ","Face Value","Fair Value","Average YTM","Effective Duration","Effective Convexity"]
[1,"Select",0,"Select",0,0,0,0,0]
[2,"Select",0,"Select",0,0,0,0,0]
[3,"Select",0,"Select",0,0,0,0,0]
[4,"Select",0,"Select",0,0,0,0,0]
[5,"Select",0,"Select",0,0,0,0,0]
[6,"Select",0,"Select",0,0,0,0,0]
[7,"Select",0,"Select",0,0,0,0,0]
[8,"Select",0,"Select",0,0,0,0,0]
[9,"Select",0,"Select",0,0,0,0,0]
[10,"Select",0,"Select",0,0,0,0,0]
[11,"Select",0,"Select",0,0,0,0,0]
[12,"Select",0,"Select",0,0,0,0,0]
[13,"Select",0,"Select",0,0,0,0,0]
[14,"Select",0,"Select",0,0,0,0,0]
[15,"Select",0,"Select",0,0,0,0,0]
[16,"Select",0,"Select",0,0,0,0,0]
[17,"Select",0,"Select",0,0,0,0,0]
[18,"Select",0,"Select",0,0,0,0,0]
[19,"Select",0,"Select",0,0,0,0,0]
[20,"Select",0,"Select",0,0,0,0,0]
[]
[null,"Total Bonds & Debentures",null,null,{"$f":"SUM(E39:E58)","v":0},{"$f":"SUM(F39:F58)","v":0},0,0,0]
[]
[null,"(C) SECURITIES/ASSET-BASED SECURITIES",null,"Enter # of Asset Types"]
[null,null,null,null,{"$f":"YEAR($C$3)","v":2023},{"$f":"YEAR($C$3)","v":2023}]
[null,"Asset Type","Jurisdiction","BSCR Rating ","Face Value","Fair Value","Average YTM","Effective Duration","Effective Convexity"]
[1,"Select",0,"Select",0,0,0,0,0]
[2,"Select",0,"Select",0,0,0,0,0]
[3,"Select",0,"Select",0,0,0,0,0]
[4,"Select",0,"Select",0,0,0,0,0]
[5,"Select",0,"Select",0,0,0,0,0]
[6,"Select",0,"Select",0,0,0,0,0]
[7,"Select",0,"Select",0,0,0,0,0]
[8,"Select",0,"Select",0,0,0,0,0]
[9,"Select",0,"Select",0,0,0,0,0]
[10,"Select",0,"Select",0,0,0,0,0]
[11,"Select",0,"Select",0,0,0,0,0]
[12,"Select",0,"Select",0,0,0,0,0]
[13,"Select",0,"Select",0,0,0,0,0]
[14,"Select",0,"Select",0,0,0,0,0]
[15,"Select",0,"Select",0,0,0,0,0]
[16,"Select",0,"Select",0,0,0,0,0]
[17,"Select",0,"Select",0,0,0,0,0]
[18,"Select",0,"Select",0,0,0,0,0]
[19,"Select",0,"Select",0,0,0,0,0]
[20,"Select",0,"Select",0,0,0,0,0]
[]
[null,"Total Securities/Asset-Backed Securities",null,null,{"$f":"SUM(E65:E84)","v":0},{"$f":"SUM(F65:F84)","v":0},0,0,0]
[]
[null,"Form 1EBS Lines 2(b) & 3(b) Bonds & Debentures"]
[]
[null,"Check Sections B & C",null,null,null,{"$f":"ROUND(((F86+F60)-F88),0)","v":0},{"$f":"IF(F90=0,\"TRUE\",\"FALSE\")","v":"TRUE"}]
[]
[null,"(D) LISTED EQUITIES AND PREFERENCE SHARES",null,"Enter # of Asset Types"]
[null,null,null,null,{"$f":"YEAR($C$3)","v":2023},{"$f":"YEAR($C$3)","v":2023}]
[null,"Asset Type","Stock Exchange","BSCR Rating ","Face Value","Fair Value"]
[1,"Select",0,"Select",0,0]
[2,"Select",0,"Select",0,0]
[3,"Select",0,"Select",0,0]
[4,"Select",0,"Select",0,0]
[5,"Select",0,"Select",0,0]
[6,"Select",0,"Select",0,0]
[7,"Select",0,"Select",0,0]
[8,"Select",0,"Select",0,0]
[9,"Select",0,"Select",0,0]
[10,"Select",0,"Select",0,0]
[11,"Select",0,"Select",0,0]
[12,"Select",0,"Select",0,0]
[13,"Select",0,"Select",0,0]
[14,"Select",0,"Select",0,0]
[15,"Select",0,"Select",0,0]
[16,"Select",0,"Select",0,0]
[17,"Select",0,"Select",0,0]
[18,"Select",0,"Select",0,0]
[19,"Select",0,"Select",0,0]
[20,"Select",0,"Select",0,0]
[]
[null,"Total Listed Equities & Preference Shares",null,null,{"$f":"SUM(E95:E114)","v":0},{"$f":"SUM(F95:F114)","v":0}]
[]
[null,"Form 1EBS Lines 2(d) & 3(d) Bonds & Debentures"]
[]
[null,"Check Section D",null,null,null,{"$f":"ROUND((F116-F118),0)","v":0},{"$f":"IF(F120=0,\"TRUE\",\"FALSE\")","v":"TRUE"}]
[]
[null,"(E) ALTERNATIVE INVESTMENTS",null,"Enter # of Asset Types"]
[null,null,null,null,{"$f":"YEAR($C$3)","v":2023},{"$f":"YEAR($C$3)","v":2023}]
[null,"Asset Type","Jurisdiction","BSCR Rating ","Face Value","Fair Value","Average YTM","Effective Duration","Effective Convexity"]
[1,"Select",0,"Select",0,0,0,0,0]
[2,"Select",0,"Select",0,0,0,0,0]
[3,"Select",0,"Select",0,0,0,0,0]
[4,"Select",0,"Select",0,0,0,0,0]
[5,"Select",0,"Select",0,0,0,0,0]
[6,"Select",0,"Select",0,0,0,0,0]
[7,"Select",0,"Select",0,0,0,0,0]
[8,"Select",0,"Select",0,0,0,0,0]
[9,"Select",0,"Select",0,0,0,0,0]
[10,"Select",0,"Select",0,0,0,0,0]
[11,"Select",0,"Select",0,0,0,0,0]
[12,"Select",0,"Select",0,0,0,0,0]
[13,"Select",0,"Select",0,0,0,0,0]
[14,"Select",0,"Select",0,0,0,0,0]
[15,"Select",0,"Select",0,0,0,0,0]
[16,"Select",0,"Select",0,0,0,0,0]
[17,"Select",0,"Select",0,0,0,0,0]
[18,"Select",0,"Select",0,0,0,0,0]
[19,"Select",0,"Select",0,0,0,0,0]
[20,"Select",0,"Select",0,0,0,0,0]
[]
[null,"Total Alternative Investments",null,null,{"$f":"SUM(E125:E144)","v":0},{"$f":"SUM(F125:F144)","v":0},0,0,0]
[]
[null,"Form 1EBS Lines 2(e) & 3(e) Alternative Investments"]
[]
[null,"Check Section E",null,null,null,{"$f":"ROUND((F146-F148),0)","v":0},{"$f":"IF(F150=0,\"TRUE\",\"FALSE\")","v":"TRUE"}]
[]
[null,"(F) LOANS",null,"Enter # of Asset Types"]
[null,null,null,null,{"$f":"YEAR($C$3)","v":2023},{"$f":"YEAR($C$3)","v":2023}]
[null,"Asset Type","Jurisdiction","BSCR Rating ","Face Value","Fair Value","Average YTM","Effective Duration","Effective Convexity"]
[1,"Select",0,"Select",0,0,0,0,0]
[2,"Select",0,"Select",0,0,0,0,0]
[3,"Select",0,"Select",0,0,0,0,0]
[4,"Select",0,"Select",0,0,0,0,0]
[5,"Select",0,"Select",0,0,0,0,0]
[6,"Select",0,"Select",0,0,0,0,0]
[7,"Select",0,"Select",0,0,0,0,0]
[8,"Select",0,"Select",0,0,0,0,0]
[9,"Select",0,"Select",0,0,0,0,0]
[10,"Select",0,"Select",0,0,0,0,0]
[11,"Select",0,"Select",0,0,0,0,0]
[12,"Select",0,"Select",0,0,0,0,0]
[13,"Select",0,"Select",0,0,0,0,0]
[14,"Select",0,"Select",0,0,0,0,0]
[15,"Select",0,"Select",0,0,0,0,0]
[16,"Select",0,"Select",0,0,0,0,0]
[17,"Select",0,"Select",0,0,0,0,0]
[18,"Select",0,"Select",0,0,0,0,0]
[19,"Select",0,"Select",0,0,0,0,0]
[20,"Select",0,"Select",0,0,0,0,0]
[]
[null,"Total Loans",null,null,{"$f":"SUM(E155:E174)","v":0},{"$f":"SUM(F155:F174)","v":0},0,0,0]
[]
[null,"Form 1EBS Line 5(c) Mortgage Loans"]
[]
[null,"Check Section F",null,null,null,{"$f":"ROUND((F176-F178),0)","v":0},{"$f":"IF(F180=0,\"TRUE\",\"FALSE\")","v":"TRUE"}]
[]
[null,"(G) DERIVATIVES",null,"Enter # of Derivative Types"]
[null,"Derivative Type","Underlying","Purpose","Position",{"$f":"YEAR($C$3)&\" Market Value\"","v":"2023 Market Value"},"Centrally Cleared","Notional Value","Exposure (Dollar Delta, DV01, CS01"]
[1,"Select","Select","Select","Select",0,"Select",0,0]
[2,"Select","Select","Select","Select",0,"Select",0,0]
[3,"Select","Select","Select","Select",0,"Select",0,0]
[4,"Select","Select","Select","Select",0,"Select",0,0]
[5,"Select","Select","Select","Select",0,"Select",0,0]
[6,"Select","Select","Select","Select",0,"Select",0,0]
[7,"Select","Select","Select","Select",0,"Select",0,0]
[8,"Select","Select","Select","Select",0,"Select",0,0]
[9,"Select","Select","Select","Select",0,"Select",0,0]
[10,"Select","Select","Select","Select",0,"Select",0,0]
[11,"Select","Select","Select","Select",0,"Select",0,0]
[12,"Select","Select","Select","Select",0,"Select",0,0]
[13,"Select","Select","Select","Select",0,"Select",0,0]
[14,"Select","Select","Select","Select",0,"Select",0,0]
[15,"Select","Select","Select","Select",0,"Select",0,0]
[16,"Select","Select","Select","Select",0,"Select",0,0]
[17,"Select","Select","Select","Select",0,"Select",0,0]
[18,"Select","Select","Select","Select",0,"Select",0,0]
[19,"Select","Select","Select","Select",0,"Select",0,0]
[20,"Select","Select","Select","Select",0,"Select",0,0]
[]
[null,"Total Derivatives",null,null,null,{"$f":"SUM(F184:F203)","v":0},null,{"$f":"SUM(H184:H203)","v":0},{"$f":"SUM(I184:I203)","v":0}]
[]
[null,"Form 1EBS Line 13(a) Derivatives"]
[]
[null,"Check Section G",null,null,null,{"$f":"ROUND((F205-F207),0)","v":0},{"$f":"IF(F209=0,\"TRUE\",\"FALSE\")","v":"TRUE"}]
[]
[null,"(H) OTHER ASSETS",null,"Enter # of Asset Types"]
[null,null,null,null,{"$f":"YEAR($C$3)","v":2023},{"$f":"YEAR($C$3)","v":2023}]
[null,"Asset Type","Jurisdiction","BSCR Rating ","Face Value","Fair Value","Average YTM","Effective Duration","Effective Convexity"]
[1,"Select",0,"Select",0,0,0,0,0]
[2,"Select",0,"Select",0,0,0,0,0]
[3,"Select",0,"Select",0,0,0,0,0]
[4,"Select",0,"Select",0,0,0,0,0]
[5,"Select",0,"Select",0,0,0,0,0]
[6,"Select",0,"Select",0,0,0,0,0]
[7,"Select",0,"Select",0,0,0,0,0]
[8,"Select",0,"Select",0,0,0,0,0]
[9,"Select",0,"Select",0,0,0,0,0]
[10,"Select",0,"Select",0,0,0,0,0]
[11,"Select",0,"Select",0,0,0,0,0]
[12,"Select",0,"Select",0,0,0,0,0]
[13,"Select",0,"Select",0,0,0,0,0]
[14,"Select",0,"Select",0,0,0,0,0]
[15,"Select",0,"Select",0,0,0,0,0]
[16,"Select",0,"Select",0,0,0,0,0]
[17,"Select",0,"Select",0,0,0,0,0]
[18,"Select",0,"Select",0,0,0,0,0]
[19,"Select",0,"Select",0,0,0,0,0]
[20,"Select",0,"Select",0,0,0,0,0]
[]
[null,"Total Other Assets",null,null,null,{"$f":"SUM(F214:F233)","v":0},0,0,0]
[]
[null,"Form 1EBS Lines X(x) Other Assets"]
[]
[null,"Check Section G",null,null,null,{"$f":"ROUND((F235-F237),0)","v":0},{"$f":"IF(F239=0,\"TRUE\",\"FALSE\")","v":"TRUE"}]
[]
[null,"TOTAL ASSETS",null,null,null,{"$f":"F30+F60+F116+F86+F146+F235+F205+F176","v":0}]
[]
[null,"TOTAL ASSETS (Form 1EBS Line 15)",null,null,null,{"$f":"F34+F90+F120+F150+F180+F209+F239","v":0}]
[]
[null,"Check Form 1EBS",null,null,null,{"$f":"IF(F247=0,\"TRUE\",\"FALSE\")","v":"TRUE"}]
[null,null,null,null,null,{"$f":"IF(ROUND((F241-(0)),0)=0,\"TRUE\",\"FALSE\")","v":"TRUE"}]
[null,"Difference",null,null,null,{"$f":"ROUND((F243-F241),0)","v":0}]
[]
[null,"EFFECTIVE DURATION",null,null,0]
[]
[null,"EFFECTIVE CONVEXITY",null,null,0]
[]
[]
[]
["Select","Select","Select","Select","Select","Select","Select","Select","Select","Select","Select","Select"]
["Cash ","Sovereign Bonds","RMBS - Agency","Public Equities","Private Equity","Investment Income Due and Accrued","Energy","Holding Entity","Significant Influence",null,"Insured/Guaranteed Mortgages"]
["Certificates of Deposit","Municipals","RMBS - Non-agency","Public Preferred Stock","Investment Funds","Accounts and Premiums Receivable","Materials","Operating Entity","Control",null,"Other Commercial and Farm Mortgages"]
["Money Market Funds","Supranationals (multilateral development banks and international organizations)","CMBS","Exchange Traded Funds","Hedge Funds","Reinsurance Balance Receivable","Industrial","Branch",null,null,"Other Residential Mortgages"]
["Other ","Corporate bonds","CLOs","Other","Private Credit Funds","Funds Held by Ceding Reinsurers","Consumer Discretionary","Select",null,null,"Mortgages Not In Good Standing"]
[null,"Mutual Funds","CDOs",null,"Catastrophe Bonds","Sundry Assets","Consumer Staples",null,null,null,"Collateral Loans"]
[null,"Other - Secured Bonds","Auto Loan ABS",null,"Other Insurance-Linked Securities","Letter of Credit, Guarantees and Other Instruments","Healthcare",null,null,null,"Middle Market Loans"]
[null,"Other - Unsecured Bonds","Student Loan ABS",null,"Infrastructure Debt","Other","Financial",null,null,null,"Other Direct Private Lending"]
[null,"Other ","Credit Card Receivable ABS",null,"Equity Investments in Infrastructure",null,null,null,null,null,"Policy Loans"]
[null,null,"Other Asset Backed Securities",null,"Investment in Affiliates",null,null,null,null,null,"Other"]
[null,null,null,null,"Advances to Affiliates"]
[null,null,null,null,"Equity Release / Reverse Mortgages"]
[null,null,null,null,"Other "]
[]
[]
[]
["Select","Select","Select","Select","Select","Select",null,"Select"]
["Listed options","Equity","Hedging","Long / Receive Fixed / Sell Protection","Private Equity","Investment Income Due and Accrued",null,"BSCR Rating 0"]
["Futures","Debt","Speculative","Short / Receive Floating / Buy Protection","Investment Funds","Accounts and Premiums Receivable",null,"BSCR Rating 1",null,null,"Select"]
["Forwards","Interest Rate",null,null,"Hedge Funds","Reinsurance Balance Receivable",null,"BSCR Rating 2",null,null,"Insured/Guaranteed Mortgages"]
["Swaps","Inflation",null,null,"Private Credit Funds","Sundry Assets",null,"BSCR Rating 3",null,null,"Other Commercial and Farm Mortgages"]
["Swaptions","Credit","Select",null,"Catastrophe Bonds","Letter of Credit, Guarantees and Other Instruments",null,"BSCR Rating 4",null,null,"Other Residential Mortgages"]
["OTC options","Currencies","Yes",null,"Other Insurance-Linked Securities","Other",null,"BSCR Rating 5",null,null,"Mortgages Not In Good Standing"]
["Other","Commodities","No",null,"Advances to Affiliates",null,null,"BSCR Rating 6",null,null,"Collateral Loans"]
[null,"Other",null,null,"Infrastructure Debt",null,null,"BSCR Rating 7",null,null,"Middle Market Loans"]
[null,null,null,null,"Equity Investments in Infrastructure",null,null,"BSCR Rating 8",null,null,"Other Direct Private Lending"]
[null,null,null,null,"Equity Release / Reverse Mortgages",null,null,null,null,null,"Policy Loans"]
[null,null,null,null,"Other ",null,null,null,null,null,"Other"]
[]
[null,null,null,null,null,null,null,null,"Switzerland Francs"]
[null,null,null,null,null,null,null,null,"Chile Pesos"]
[null,null,null,null,null,null,null,null,"China Yuan Renminbi"]
[null,null,null,null,null,null,null,null,"Colombia Pesos"]
[null,null,null,null,null,null,null,null,"Costa Rica Colones"]
[null,null,null,null,null,null,null,null,"Cuba Convertible Pesos"]
[null,null,null,null,null,null,null,null,"Cuba Pesos"]
[null,null,null,null,null,null,null,null,"Cape Verde Escudos"]
[null,null,null,null,null,null,null,null,"Czech Republic Koruny"]
[null,null,null,null,null,null,null,null,"Djibouti Francs"]
[null,null,null,null,null,null,null,null,"Denmark Kroner"]
[null,null,null,null,null,null,null,null,"Dominican Republic Pesos"]
[null,null,null,null,null,null,null,null,"Algeria Dinars"]
[null,null,null,null,null,null,null,null,"Estonia Krooni"]
[null,null,null,null,null,null,null,null,"Egypt Pounds"]
[null,null,null,null,null,null,null,null,"Eritrea Nakfa"]
[null,null,null,null,null,null,null,null,"Ethiopia Birr"]
[null,null,null,null,null,null,null,null,"Fiji Dollars"]
[null,null,null,null,null,null,null,null,"Falkland Islands Pounds"]
[null,null,null,null,null,null,null,null,"United Kingdom Pounds"]
[null,null,null,null,null,null,null,null,"Georgia Lari"]
[null,null,null,null,null,null,null,null,"Guernsey Pounds"]
[null,null,null,null,null,null,null,null,"Ghana Cedis"]
[null,null,null,null,null,null,null,null,"Gibraltar Pounds"]
[null,null,null,null,null,null,null,null,"Gambia Dalasi"]
[null,null,null,null,null,null,null,null,"Guinea Francs"]
[null,null,null,null,null,null,null,null,"Guatemala Quetzales"]
[null,null,null,null,null,null,null,null,"Guyana Dollars"]
[null,null,null,null,null,null,null,null,"Hong Kong Dollars"]
[null,null,null,null,null,null,null,null,"Honduras Lempiras"]
[null,null,null,null,null,null,null,null,"Croatia Kuna"]
[null,null,null,null,null,null,null,null,"Haiti Gourdes"]
[null,null,null,null,null,null,null,null,"Hungary Forint"]
[null,null,null,null,null,null,null,null,"Indonesia Rupiahs"]
[null,null,null,null,null,null,null,null,"Israel New Shekels"]
[null,null,null,null,null,null,null,null,"Isle of Man Pounds"]
[null,null,null,null,null,null,null,null,"India Rupees"]
[null,null,null,null,null,null,null,null,"Iraq Dinars"]
[null,null,null,null,null,null,null,null,"Iran Rials"]
[null,null,null,null,null,null,null,null,"Iceland Kronur"]
[null,null,null,null,null,null,null,null,"Jersey Pounds"]
[null,null,null,null,null,null,null,null,"Jamaica Dollars"]
[null,null,null,null,null,null,null,null,"Jordan Dinars"]
[null,null,null,null,null,null,null,null,"Japan Yen"]
[null,null,null,null,null,null,null,null,"Kenya Shillings"]
[null,null,null,null,null,null,null,null,"Kyrgyzstan Soms"]
[null,null,null,null,null,null,null,null,"Cambodia Riels"]
[null,null,null,null,null,null,null,null,"Comoros Francs"]
[null,null,null,null,null,null,null,null,"North Korea Won"]
[null,null,null,null,null,null,null,null,"South Korea Won"]
[null,null,null,null,null,null,null,null,"Kuwait Dinars"]
[null,null,null,null,null,null,null,null,"Cayman Islands Dollars"]
[null,null,null,null,null,null,null,null,"Kazakhstan Tenge"]
[null,null,null,null,null,null,null,null,"Laos Kips"]
[null,null,null,null,null,null,null,null,"Lebanon Pounds"]
[null,null,null,null,null,null,null,null,"Sri Lanka Rupees"]
[null,null,null,null,null,null,null,null,"Liberia Dollars"]
[null,null,null,null,null,null,null,null,"Lesotho Maloti"]
[null,null,null,null,null,null,null,null,"Lithuania Litai"]
[null,null,null,null,null,null,null,null,"Latvia Lati"]
[null,null,null,null,null,null,null,null,"Libya Dinars"]
[null,null,null,null,null,null,null,null,"Morocco Dirhams"]
[null,null,null,null,null,null,null,null,"Moldova Lei"]
[null,null,null,null,null,null,null,null,"Madagascar Ariary"]
[null,null,null,null,null,null,null,null,"Macedonia Denars"]
[null,null,null,null,null,null,null,null,"Myanmar Kyats"]
[null,null,null,null,null,null,null,null,"Mongolia Tugriks"]
[null,null,null,null,null,null,null,null,"Macau Patacas"]
[null,null,null,null,null,null,null,null,"Mauritania Ouguiyas"]
[null,null,null,null,null,null,null,null,"Mauritius Rupees"]
[null,null,null,null,null,null,null,null,"Maldives Rufiyaa"]
[null,null,null,null,null,null,null,null,"Malawi Kwachas"]
[null,null,null,null,null,null,null,null,"Mexico Pesos"]
[null,null,null,null,null,null,null,null,"Malaysia Ringgits"]
[null,null,null,null,null,null,null,null,"Mozambique Meticais"]
[null,null,null,null,null,null,null,null,"Namibia Dollars"]
[null,null,null,null,null,null,null,null,"Nigeria Nairas"]
[null,null,null,null,null,null,null,null,"Nicaragua Cordobas"]
[null,null,null,null,null,null,null,null,"Norway Kroner"]
[null,null,null,null,null,null,null,null,"Nepal Rupees"]
[null,null,null,null,null,null,null,null,"New Zealand Dollars"]
[null,null,null,null,null,null,null,null,"Oman Rials"]
[null,null,null,null,null,null,null,null,"Panama Balboas"]
[null,null,null,null,null,null,null,null,"Peru Nuevos Soles"]
[null,null,null,null,null,null,null,null,"Papua New Guinea Kina"]
[null,null,null,null,null,null,null,null,"Philippines Pesos"]
[null,null,null,null,null,null,null,null,"Pakistan Rupees"]
[null,null,null,null,null,null,null,null,"Poland Zlotych"]
[null,null,null,null,null,null,null,null,"Paraguay Guarani"]
[null,null,null,null,null,null,null,null,"Qatar Riyals"]
[null,null,null,null,null,null,null,null,"Romania New Lei"]
[null,null,null,null,null,null,null,null,"Serbia Dinars"]
[null,null,null,null,null,null,null,null,"Russia Rubles"]
[null,null,null,null,null,null,null,null,"Rwanda Francs"]
[null,null,null,null,null,null,null,null,"Saudi Arabia Riyals"]
[null,null,null,null,null,null,null,null,"Solomon Islands Dollars"]
[null,null,null,null,null,null,null,null,"Seychelles Rupees"]
[null,null,null,null,null,null,null,null,"Sudan Pounds"]
[null,null,null,null,null,null,null,null,"Sweden Kronor"]
[null,null,null,null,null,null,null,null,"Singapore Dollars"]
[null,null,null,null,null,null,null,null,"Saint Helena Pounds"]
[null,null,null,null,null,null,null,null,"Slovakia Koruny"]
[null,null,null,null,null,null,null,null,"Sierra Leone Leones"]
[null,null,null,null,null,null,null,null,"Somalia Shillings"]
[null,null,null,null,null,null,null,null,"Seborga Luigini"]
[null,null,null,null,null,null,null,null,"Suriname Dollars"]
[null,null,null,null,null,null,null,null,"São Tome and Principe Dobras"]
[null,null,null,null,null,null,null,null,"El Salvador Colones"]
[null,null,null,null,null,null,null,null,"Syria Pounds"]
[null,null,null,null,null,null,null,null,"Swaziland Emalangeni"]
[null,null,null,null,null,null,null,null,"Thailand Baht"]
[null,null,null,null,null,null,null,null,"Tajikistan Somoni"]
[null,null,null,null,null,null,null,null,"Turkmenistan Manats"]
[null,null,null,null,null,null,null,null,"Tunisia Dinars"]
[null,null,null,null,null,null,null,null,"Tonga Pa'anga"]
[null,null,null,null,null,null,null,null,"Turkey New Lira"]
[null,null,null,null,null,null,null,null,"Trinidad and Tobago Dollars"]
[null,null,null,null,null,null,null,null,"Tuvalu Dollars"]
[null,null,null,null,null,null,null,null,"Taiwan New Dollars"]
[null,null,null,null,null,null,null,null,"Tanzania Shillings"]
[null,null,null,null,null,null,null,null,"Ukraine Hryvnia"]
[null,null,null,null,null,null,null,null,"Uganda Shillings"]
[null,null,null,null,null,null,null,null,"Uruguay Pesos"]
[null,null,null,null,null,null,null,null,"Uzbekistan Sums"]
[null,null,null,null,null,null,null,null,"Venezuela Bolivares"]
[null,null,null,null,null,null,null,null,"Venezuela Bolivares Fuertes"]
[null,null,null,null,null,null,null,null,"Vietnam Dong"]
[null,null,null,null,null,null,null,null,"Vanuatu Vatu"]
[null,null,null,null,null,null,null,null,"Samoa Tala"]
[null,null,null,null,null,null,null,null,"Communauté Financière Africaine Francs BEAC"]
[null,null,null,null,null,null,null,null,"Silver Ounces"]
[null,null,null,null,null,null,null,null,"Gold Ounces"]
[null,null,null,null,null,null,null,null,"East Caribbean Dollars"]
[null,null,null,null,null,null,null,null,"International Monetary Fund Special Drawing Rights"]
[null,null,null,null,null,null,null,null,"Communauté Financière Africaine Francs BCEAO"]
[null,null,null,null,null,null,null,null,"Palladium Ounces"]
[null,null,null,null,null,null,null,null,"Comptoirs Français du Pacifique Francs"]
[null,null,null,null,null,null,null,null,"Platinum Ounces"]
[null,null,null,null,null,null,null,null,"Yemen Rials"]
[null,null,null,null,null,null,null,null,"South Africa Rand"]
[null,null,null,null,null,null,null,null,"Zambia Kwacha"]
[null,null,null,null,null,null,null,null,"Zimbabwe Dollars"]

{"sheet":"Schedule VII","index":60,"n_rows":54,"n_cols":16,"rows_kept":54,"cut":false,"hidden":false,"merged":[[6,9,7,9],[39,15,41,15],[6,3,7,3],[6,11,7,11],[6,13,6,15],[26,13,26,15],[30,13,31,13],[30,14,31,14],[30,15,31,15],[6,4,7,4],[6,5,7,5],[6,10,7,10]]}
[null,null,"SCHEDULE OF LONG-TERM INSURANCE",null,null,null,null,null,null,null,null,null,null,null,null,{"$f":"HYPERLINK(\"#'Index'!A1\",\"Return to Index\")","v":"Return to Index"}]
[null,null,{"$f":"'Insurer Information'!C7","v":"Enter Company Name"}]
[null,null,{"$f":" TEXT('Insurer Information'!C3,\"D MMMM YYYY\")","v":"31 December 2023"},null,null,null,null,null,null,null,null,null,null,null,null,"SCHEDULE VII"]
[null,null,{"$f":"'Form 4EBS'!C4","v":"United States Dollars"}]
[null,"SCHEDULE OF LONG-TERM INSURANCE DATA"]
[null,null,null,"(1)","(2)","(3)","(4)","(5)",null,"(6)","(7)","(8)",null,"(9)","(10)","(11)"]
[null,null,null,"Bermuda Statutory Reserve\n","Reported \nDAC \n(if any)","Value of Business Acquired",null,null,null,"Net Reserve\n(1) - (2) - (3) - (4) ","BSCR Adjusted Reserve Greater of (1) and Zero","Margins in Reserves If (5) not blank, then Excess of (6) over (5)",null,"Net Amount at Risk"]
[null,null,null,null,null,null,"Present Value of Future Profits","Best Estimate Reserve",null,null,null,null,null,"Adjustable \nproduct/\ntreaty","Non-adjustable\nproduct/\ntreaty","Total"]
[null,null,null,{"$f":"CONFIGURATION!$D$12","v":" ('000s)"},{"$f":"CONFIGURATION!$D$12","v":" ('000s)"},{"$f":"CONFIGURATION!$D$12","v":" ('000s)"},{"$f":"CONFIGURATION!$D$12","v":" ('000s)"},{"$f":"CONFIGURATION!$D$12","v":" ('000s)"},null,{"$f":"CONFIGURATION!$D$12","v":" ('000s)"},{"$f":"CONFIGURATION!$D$12","v":" ('000s)"},{"$f":"CONFIGURATION!$D$12","v":" ('000s)"},null,{"$f":"CONFIGURATION!$D$12","v":" ('000s)"},{"$f":"CONFIGURATION!$D$12","v":" ('000s)"},{"$f":"CONFIGURATION!$D$12","v":" ('000s)"}]
[null,"1.","Mortality (term assurance, whole life, universal life)",{"$f":"Import!E34567","v":0},{"$f":"Import!E34596","v":0},{"$f":"Import!E34625","v":0},{"$f":"Import!E34654","v":0},{"$f":"Import!E34683","v":0},null,{"$f":"D10-E10-F10-G10","v":0},{"$f":"IF(J10>0,J10,0)","v":0},{"$f":"IF(H10=0,0,J10-H10)","v":0},null,{"$f":"Import!E34712","v":0},{"$f":"Import!E34714","v":0},{"$f":"N10+O10","v":0}]
[null,"2.","Critical Illness (including accelerated critical illness products)",{"$f":"Import!E34568","v":0},{"$f":"Import!E34597","v":0},{"$f":"Import!E34626","v":0},{"$f":"Import!E34655","v":0},{"$f":"Import!E34684","v":0},null,{"$f":"D11-E11-F11-G11","v":0},{"$f":"IF(J11>0,J11,0)","v":0},{"$f":"IF(H11=0,0,J11-H11)","v":0},null,{"$f":"Import!E34713","v":0},{"$f":"Import!E34715","v":0},{"$f":"N11+O11","v":0}]
[null,"3.","Longevity (immediate pay-out annuities, contingent annuities, pension pay-outs)"]
[null,null,"Attained age of Annuitant"]
[null,null,"(a) 0 - 55",{"$f":"Import!E34569","v":0},{"$f":"Import!E34598","v":0},{"$f":"Import!E34627","v":0},{"$f":"Import!E34656","v":0},{"$f":"Import!E34685","v":0},null,{"$f":"D14-E14-F14-G14","v":0},{"$f":"IF(J14>0,J14,0)","v":0},{"$f":"IF(H14=0,0,J14-H14)","v":0}]
[null,null,"(b) 56 - 65",{"$f":"Import!E34570","v":0},{"$f":"Import!E34599","v":0},{"$f":"Import!E34628","v":0},{"$f":"Import!E34657","v":0},{"$f":"Import!E34686","v":0},null,0,0,0]
[null,null,"(c) 66 - 70",{"$f":"Import!E34571","v":0},{"$f":"Import!E34600","v":0},{"$f":"Import!E34629","v":0},{"$f":"Import!E34658","v":0},{"$f":"Import!E34687","v":0},null,0,0,0]
[null,null,"(d) 71 - 80",{"$f":"Import!E34572","v":0},{"$f":"Import!E34601","v":0},{"$f":"Import!E34630","v":0},{"$f":"Import!E34659","v":0},{"$f":"Import!E34688","v":0},null,0,0,0]
[null,null,"(e) 81+",{"$f":"Import!E34573","v":0},{"$f":"Import!E34602","v":0},{"$f":"Import!E34631","v":0},{"$f":"Import!E34660","v":0},{"$f":"Import!E34689","v":0},null,0,0,0]
[null,null,"(f) Total",{"$f":"SUM(D14:D18)","v":0},{"$f":"SUM(E14:E18)","v":0},{"$f":"SUM(F14:F18)","v":0},{"$f":"SUM(G14:G18)","v":0},{"$f":"SUM(H14:H18)","v":0},null,{"$f":"SUM(J14:J18)","v":0},{"$f":"SUM(K14:K18)","v":0},{"$f":"SUM(L14:L18)","v":0}]
[null,"4.","Longevity (deferred pay-out annuities, future contingent annuities, future pension pay-outs)"]
[null,null,"Age at which Annuity Benefits Commence"]
[null,null,"(a) 0 - 55",{"$f":"Import!E34575","v":0},{"$f":"Import!E34604","v":0},{"$f":"Import!E34633","v":0},{"$f":"Import!E34662","v":0},{"$f":"Import!E34691","v":0},null,{"$f":"D22-E22-F22-G22","v":0},{"$f":"IF(J22>0,J22,0)","v":0},{"$f":"IF(H22=0,0,J22-H22)","v":0}]
[null,null,"(b) 56 - 60",{"$f":"Import!E34576","v":0},{"$f":"Import!E34605","v":0},{"$f":"Import!E34634","v":0},{"$f":"Import!E34663","v":0},{"$f":"Import!E34692","v":0},null,0,0,0]
[null,null,"(c) 61 - 65",{"$f":"Import!E34577","v":0},{"$f":"Import!E34606","v":0},{"$f":"Import!E34635","v":0},{"$f":"Import!E34664","v":0},{"$f":"Import!E34693","v":0},null,0,0,0]
[null,null,"(d) 66 - 70",{"$f":"Import!E34578","v":0},{"$f":"Import!E34607","v":0},{"$f":"Import!E34636","v":0},{"$f":"Import!E34665","v":0},{"$f":"Import!E34694","v":0},null,0,0,0]
[null,null,"(e) 71 - 75",{"$f":"Import!E34579","v":0},{"$f":"Import!E34608","v":0},{"$f":"Import!E34637","v":0},{"$f":"Import!E34666","v":0},{"$f":"Import!E34695","v":0},null,0,0,0]
[null,null,"(f) 76+",{"$f":"Import!E34580","v":0},{"$f":"Import!E34609","v":0},{"$f":"Import!E34638","v":0},{"$f":"Import!E34667","v":0},{"$f":"Import!E34696","v":0},null,0,0,0,null,"Net Annual Premium"]
[null,null,"(g) Total",{"$f":"SUM(D22:D27)","v":0},{"$f":"SUM(E22:E27)","v":0},0,0,0,null,0,{"$f":"SUM(K22:K27)","v":0},{"$f":"SUM(L22:L27)","v":0}]
[null,"5.","Annuities certain only",{"$f":"Import!E34582","v":0},{"$f":"Import!E34611","v":0},{"$f":"Import!E34640","v":0},{"$f":"Import!E34669","v":0},{"$f":"Import!E34698","v":0},null,{"$f":"D29-E29-F29-G29","v":0},{"$f":"IF(J29>0,J29,0)","v":0},{"$f":"IF(H29=0,0,J29-H29)","v":0}]
[null,"6.","Deferred accumulation annuities",{"$f":"Import!E34583","v":0},{"$f":"Import!E34612","v":0},{"$f":"Import!E34641","v":0},{"$f":"Import!E34670","v":0},{"$f":"Import!E34699","v":0},null,0,0,0]
[null,"7.","Disability Income: active lives - including waiver of premium and long-term care",null,null,null,null,null,null,null,null,null,null,"Benefit Period \n<= 2 years","Benefit period \n>2 years","Total"]
[null,null,"Length of Premium Guarantee"]
[null,null,"(a) <= 1 year",null,null,null,null,null,null,null,null,null,null,{"$f":"+'Schedule IVB'!Q17","v":0},{"$f":"+'Schedule IVB'!U17","v":0},{"$f":"N33+O33","v":0}]
[null,null,"(b) 1-5 years",null,null,null,null,null,null,null,null,null,null,{"$f":"+'Schedule IVB'!Q18","v":0},{"$f":"+'Schedule IVB'!U18","v":0},{"$f":"N34+O34","v":0}]
[null,null,"(c) >5 years",null,null,null,null,null,null,null,null,null,null,{"$f":"+'Schedule IVB'!Q19","v":0},{"$f":"+'Schedule IVB'!U19","v":0},{"$f":"N35+O35","v":0}]
[null,null,"(d) Total",{"$f":"Import!E34584","v":0},{"$f":"Import!E34613","v":0},{"$f":"Import!E34642","v":0},{"$f":"Import!E34671","v":0},{"$f":"Import!E34700","v":0},null,{"$f":"D36-E36-F36-G36","v":0},{"$f":"IF(J36>0,J36,0)","v":0},{"$f":"IF(H36=0,0,J36-H36)","v":0},null,null,null,{"$f":"SUM(P33:P35)","v":0}]
[null,"8.","Disability income: active lives - other accident and sickness",{"$f":"Import!E34585","v":0},{"$f":"Import!E34614","v":0},{"$f":"Import!E34643","v":0},{"$f":"Import!E34672","v":0},{"$f":"Import!E34701","v":0},null,0,0,0,null,null,null,{"$f":"+'Schedule IVB'!Y20","v":0}]
[null,"9.","Disability income: claims in payment - including waiver of premium and long-term care",{"$f":"Import!E34586","v":0},{"$f":"Import!E34615","v":0},{"$f":"Import!E34644","v":0},{"$f":"Import!E34673","v":0},{"$f":"Import!E34702","v":0},null,0,0,0]
[null,"10.","Disability income: claims in payment - other accident and sickness",{"$f":"Import!E34587","v":0},{"$f":"Import!E34616","v":0},{"$f":"Import!E34645","v":0},{"$f":"Import!E34674","v":0},{"$f":"Import!E34703","v":0},null,0,0,0]
[null,"11.","Group Life",{"$f":"Import!E34588","v":0},{"$f":"Import!E34617","v":0},{"$f":"Import!E34646","v":0},{"$f":"Import!E34675","v":0},{"$f":"Import!E34704","v":0},null,0,0,0,null,null,null,"Total Annual Premiums"]
[null,"12.","Group Disability",{"$f":"Import!E34589","v":0},{"$f":"Import!E34618","v":0},{"$f":"Import!E34647","v":0},{"$f":"Import!E34676","v":0},{"$f":"Import!E34705","v":0},null,0,0,0]
[null,"13.","Group Health",{"$f":"Import!E34590","v":0},{"$f":"Import!E34619","v":0},{"$f":"Import!E34648","v":0},{"$f":"Import!E34677","v":0},{"$f":"Import!E34706","v":0},null,0,0,0]
[null,"14.","Stop Loss",{"$f":"Import!E34591","v":0},{"$f":"Import!E34620","v":0},{"$f":"Import!E34649","v":0},{"$f":"Import!E34678","v":0},{"$f":"Import!E34707","v":0},null,0,0,0,null,null,null,{"$f":"+'Schedule IVB'!Y28","v":0}]
[null,"15.","Rider (other product riders not included above)",{"$f":"Import!E34592","v":0},{"$f":"Import!E34621","v":0},{"$f":"Import!E34650","v":0},{"$f":"Import!E34679","v":0},{"$f":"Import!E34708","v":0},null,0,0,0,null,null,null,{"$f":"+'Schedule IVB'!Y29","v":0}]
[]
[null,"16.","Total (excluding variable annuities)",{"$f":"SUM(D10:D11,D14:D18,D29:D30,D22:D27,D36:D44)","v":0},{"$f":"SUM(E10:E11,E14:E18,E29:E30,E22:E27,E36:E44)","v":0},{"$f":"SUM(F10:F11,F14:F18,F29:F30,F22:F27,F36:F44)","v":0},{"$f":"SUM(G10:G11,G14:G18,G29:G30,G22:G27,G36:G44)","v":0},{"$f":"SUM(H10:H11,H14:H18,H29:H30,H22:H27,H36:H44)","v":0},null,{"$f":"SUM(J10:J11,J14:J18,J29:J30,J22:J27,J36:J44)","v":0},{"$f":"SUM(K10:K11,K14:K18,K29:K30,K22:K27,K36:K44)","v":0},{"$f":"SUM(L10:L11,L14:L18,L29:L30,L22:L27,L36:L44)","v":0}]
[null,"17.","Total - Variable Annuities",{"$f":"Import!E34594","v":0},{"$f":"Import!E34623","v":0},{"$f":"Import!E34652","v":0},{"$f":"Import!E34681","v":0},{"$f":"Import!E34710","v":0},null,{"$f":"D47-E47-F47-G47","v":0},{"$f":"IF(J47>0,J47,0)","v":0},{"$f":"IF(H47=0,0,J47-H47)","v":0}]
[null,"18.","Total with Variable Annuities",{"$f":"D46+D47","v":0},{"$f":"E46+E47","v":0},{"$f":"F46+F47","v":0},{"$f":"G46+G47","v":0},{"$f":"H46+H47","v":0},null,{"$f":"J46+J47","v":0},{"$f":"K46+K47","v":0},{"$f":"L46+L47","v":0}]
[]
[null,null,"Total Net Long-Term Business Insurance Reserves",{"$f":"'Form 4EBS'!F122","v":0}]
[]
[null,null,"Check",{"$f":"IF((D48-D50)=0,\"TRUE\",\"FALSE\")","v":"TRUE"}]
[]
[null,null,"Difference",{"$f":"D50-D48","v":0}]

{"sheet":"Schedule VII (EBS)","index":61,"n_rows":61,"n_cols":20,"rows_kept":61,"cut":false,"hidden":false,"merged":[[4,11,4,19],[6,11,7,11],[6,12,7,12],[6,13,7,13],[6,14,7,14],[6,15,7,15],[6,16,7,16],[6,17,7,17],[6,18,7,18],[6,19,7,19],[39,9,41,9],[6,5,7,5],[6,3,7,3],[26,7,26,9],[6,7,6,9],[30,7,31,7],[30,8,31,8],[30,9,31,9]]}
[null,null,"SCHEDULE OF LONG-TERM INSURANCE",null,null,null,null,null,null,null,null,null,null,null,null,null,null,null,null,{"$f":"HYPERLINK(\"#'Index'!A1\",\"Return to Index\")","v":"Return to Index"}]
[null,null,{"$f":"'Insurer Information'!C7","v":"Enter Company Name"}]
[null,null,{"$f":" TEXT('Insurer Information'!C3,\"D MMMM YYYY\")","v":"31 December 2023"},null,null,null,null,null,null,null,null,null,null,null,null,null,null,null,null,"SCHEDULE VII (EBS)"]
[null,null,{"$f":"'Form 4EBS'!C4","v":"United States Dollars"}]
[null,"SCHEDULE OF LONG-TERM INSURANCE DATA",null,null,null,null,null,null,null,null,null,"Supplemental Notes to Long-Term Best Estimate Provisions"]
[null,null,null,"(1)",null,"(7)",null,"(9)","(10)","(11)",null,"(12)","(13)","(14)","(15)","(16)","(17)","(18)","(19)","(20)"]
[null,null,null,"Bermuda EBS Best Estimate Provisions\n\n",null,"BSCR Adjusted Reserve Greater of (1) and Zero",null,"Net Amount at Risk",null,null,null,"Bound But Not Incepted (BBNI) Premium ","Best Estimate Provision In Respect to BBNI","Best Estimate Provision Using Transitional Arrangements","Equivalent of Column (14) if Transitional Arrangements were not used","Scenario Based approach Best Estimate For Technical Provisions ","Equivalent of column (16) if the Scenario based approach were not used","Equivalent of column (16) if the Base Scenario were used","BBNI Premium ","Best Estimate Provision In Respect to BBNI"]
[null,null,null,null,null,null,null,"Adjustable \nproduct/\ntreaty","Non-adjustable\nproduct/\ntreaty","Total"]
[null,null,null,{"$f":"CONFIGURATION!$D$12","v":" ('000s)"},null,{"$f":"CONFIGURATION!$D$12","v":" ('000s)"},null,{"$f":"CONFIGURATION!$D$12","v":" ('000s)"},{"$f":"CONFIGURATION!$D$12","v":" ('000s)"},{"$f":"CONFIGURATION!$D$12","v":" ('000s)"},null,"[Form 4EBS, note Line 27(d)-(i)]","[Form 4EBS, note Line 27(d)-(ii)]","[Form 4EBS, note Line 27(d)-(iii)]","[Form 4EBS, note Line 27(d)-(iv)]","[Form 4EBS, note Line 27(d)-(v)]","[Form 4EBS, note Line 27(d)-(vi)]","[Form 4EBS, note Line 27(d)-(vii)]","[Form 4EBS, note Line 27B(d)-(i)]","[Form 4EBS, note Line 27B(d)-(ii)]"]
[null,"1.","Mortality (term assurance, whole life, universal life)",{"$f":"Import!M34683","v":0},null,{"$f":"IF(D10>0,D10,0)","v":0},null,{"$f":"Import!M34712","v":0},{"$f":"Import!M34714","v":0},{"$f":"H10+I10","v":0},null,{"$f":"Import!M34716","v":0},{"$f":"Import!M34734","v":0},{"$f":"Import!M34752","v":0},{"$f":"Import!M34770","v":0},{"$f":"Import!M34788","v":0},{"$f":"Import!M34806","v":0},{"$f":"Import!M34824","v":0},{"$f":"Import!M34842","v":0},{"$f":"Import!M34860","v":0}]
[null,"2.","Critical Illness (including accelerated critical illness products)",{"$f":"Import!M34684","v":0},null,{"$f":"IF(D11>0,D11,0)","v":0},null,{"$f":"Import!M34713","v":0},{"$f":"Import!M34715","v":0},{"$f":"H11+I11","v":0},null,{"$f":"Import!M34717","v":0},{"$f":"Import!M34735","v":0},{"$f":"Import!M34753","v":0},{"$f":"Import!M34771","v":0},{"$f":"Import!M34789","v":0},{"$f":"Import!M34807","v":0},{"$f":"Import!M34825","v":0},{"$f":"Import!M34843","v":0},{"$f":"Import!M34861","v":0}]
[null,"3.","Longevity (immediate pay-out annuities, contingent annuities, pension pay-outs)"]
[null,null,"Attained age of Annuitant"]
[null,null,"(a) 0 - 55",{"$f":"Import!M34685","v":0},null,{"$f":"IF(D14>0,D14,0)","v":0}]
[null,null,"(b) 56 - 65",{"$f":"Import!M34686","v":0},null,{"$f":"IF(D15>0,D15,0)","v":0}]
[null,null,"(c) 66 - 70",{"$f":"Import!M34687","v":0},null,{"$f":"IF(D16>0,D16,0)","v":0}]
[null,null,"(d) 71 - 80",{"$f":"Import!M34688","v":0},null,{"$f":"IF(D17>0,D17,0)","v":0}]
[null,null,"(e) 81+",{"$f":"Import!M34689","v":0},null,{"$f":"IF(D18>0,D18,0)","v":0}]
[null,null,"(f) Total",{"$f":"SUM(D14:D18)","v":0},null,{"$f":"SUM(F14:F18)","v":0},null,null,null,null,null,{"$f":"Import!M34718","v":0},{"$f":"Import!M34736","v":0},{"$f":"Import!M34754","v":0},{"$f":"Import!M34772","v":0},{"$f":"Import!M34790","v":0},{"$f":"Import!M34808","v":0},{"$f":"Import!M34826","v":0},{"$f":"Import!M34844","v":0},{"$f":"Import!M34862","v":0}]
[null,"4.","Longevity (deferred pay-out annuities, future contingent annuities, future pension pay-outs)"]
[null,null,"Age at which Annuity Benefits Commence"]
[null,null,"(a) 0 - 55",{"$f":"Import!M34691","v":0},null,{"$f":"IF(D22>0,D22,0)","v":0}]
[null,null,"(b) 56 - 60",{"$f":"Import!M34692","v":0},null,0]
[null,null,"(c) 61 - 65",{"$f":"Import!M34693","v":0},null,0]
[null,null,"(d) 66 - 70",{"$f":"Import!M34694","v":0},null,0]
[null,null,"(e) 71 - 75",{"$f":"Import!M34695","v":0},null,0]
[null,null,"(f) 76+",{"$f":"Import!M34696","v":0},null,0,null,"Net Annual Premium"]
[null,null,"(g) Total",{"$f":"SUM(D22:D27)","v":0},null,{"$f":"SUM(F22:F27)","v":0},null,null,null,null,null,{"$f":"Import!M34719","v":0},{"$f":"Import!M34737","v":0},{"$f":"Import!M34755","v":0},{"$f":"Import!M34773","v":0},{"$f":"Import!M34791","v":0},{"$f":"Import!M34809","v":0},{"$f":"Import!M34827","v":0},{"$f":"Import!M34845","v":0},{"$f":"Import!M34863","v":0}]
[null,"5.","Annuities certain only",{"$f":"Import!M34698","v":0},null,{"$f":"IF(D29>0,D29,0)","v":0},null,null,null,null,null,{"$f":"Import!M34720","v":0},{"$f":"Import!M34738","v":0},{"$f":"Import!M34756","v":0},{"$f":"Import!M34774","v":0},{"$f":"Import!M34792","v":0},{"$f":"Import!M34810","v":0},{"$f":"Import!M34828","v":0},{"$f":"Import!M34846","v":0},{"$f":"Import!M34864","v":0}]
[null,"6.","Deferred accumulation annuities",{"$f":"Import!M34699","v":0},null,{"$f":"IF(D30>0,D30,0)","v":0},null,null,null,null,null,{"$f":"Import!M34721","v":0},{"$f":"Import!M34739","v":0},{"$f":"Import!M34757","v":0},{"$f":"Import!M34775","v":0},{"$f":"Import!M34793","v":0},{"$f":"Import!M34811","v":0},{"$f":"Import!M34829","v":0},{"$f":"Import!M34847","v":0},{"$f":"Import!M34865","v":0}]
[null,"7.","Disability Income: active lives - including waiver of premium and long-term care",null,null,null,null,"Benefit Period \n<= 2 years","Benefit period \n>2 years","Total"]
[null,null,"Length of Premium Guarantee"]
[null,null,"(a) <= 1 year",null,null,null,null,{"$f":"+'Schedule IVB (EBS)'!Q17","v":0},{"$f":"+'Schedule IVB (EBS)'!U17","v":0},{"$f":"H33+I33","v":0}]
[null,null,"(b) 1-5 years",null,null,null,null,{"$f":"+'Schedule IVB (EBS)'!Q18","v":0},{"$f":"+'Schedule IVB (EBS)'!U18","v":0},{"$f":"H34+I34","v":0}]
[null,null,"(c) >5 years",null,null,null,null,{"$f":"+'Schedule IVB (EBS)'!Q19","v":0},{"$f":"+'Schedule IVB (EBS)'!U19","v":0},{"$f":"H35+I35","v":0}]
[null,null,"(d) Total",{"$f":"Import!M34700","v":0},null,{"$f":"IF(D36>0,D36,0)","v":0},null,null,null,{"$f":"SUM(J33:J35)","v":0},null,{"$f":"Import!M34722","v":0},{"$f":"Import!M34740","v":0},{"$f":"Import!M34758","v":0},{"$f":"Import!M34776","v":0},{"$f":"Import!M34794","v":0},{"$f":"Import!M34812","v":0},{"$f":"Import!M34830","v":0},{"$f":"Import!M34848","v":0},{"$f":"Import!M34866","v":0}]
[null,"8.","Disability income: active lives - other accident and sickness",{"$f":"Import!M34701","v":0},null,0,null,null,null,{"$f":"+'Schedule IVB (EBS)'!Y20","v":0},null,{"$f":"Import!M34723","v":0},{"$f":"Import!M34741","v":0},{"$f":"Import!M34759","v":0},{"$f":"Import!M34777","v":0},{"$f":"Import!M34795","v":0},{"$f":"Import!M34813","v":0},{"$f":"Import!M34831","v":0},{"$f":"Import!M34849","v":0},{"$f":"Import!M34867","v":0}]
[null,"9.","Disability income: claims in payment - including waiver of premium and long-term care",{"$f":"Import!M34702","v":0},null,0,null,null,null,null,null,{"$f":"Import!M34724","v":0},{"$f":"Import!M34742","v":0},{"$f":"Import!M34760","v":0},{"$f":"Import!M34778","v":0},{"$f":"Import!M34796","v":0},{"$f":"Import!M34814","v":0},{"$f":"Import!M34832","v":0},{"$f":"Import!M34850","v":0},{"$f":"Import!M34868","v":0}]
[null,"10.","Disability income: claims in payment - other accident and sickness",{"$f":"Import!M34703","v":0},null,0,null,null,null,null,null,{"$f":"Import!M34725","v":0},{"$f":"Import!M34743","v":0},{"$f":"Import!M34761","v":0},{"$f":"Import!M34779","v":0},{"$f":"Import!M34797","v":0},{"$f":"Import!M34815","v":0},{"$f":"Import!M34833","v":0},{"$f":"Import!M34851","v":0},{"$f":"Import!M34869","v":0}]
[null,"11.","Group Life",{"$f":"Import!M34704","v":0},null,0,null,null,null,"Total Annual Premiums",null,{"$f":"Import!M34726","v":0},{"$f":"Import!M34744","v":0},{"$f":"Import!M34762","v":0},{"$f":"Import!M34780","v":0},{"$f":"Import!M34798","v":0},{"$f":"Import!M34816","v":0},{"$f":"Import!M34834","v":0},{"$f":"Import!M34852","v":0},{"$f":"Import!M34870","v":0}]
[null,"12.","Group Disability",{"$f":"Import!M34705","v":0},null,0,null,null,null,null,null,{"$f":"Import!M34727","v":0},{"$f":"Import!M34745","v":0},{"$f":"Import!M34763","v":0},{"$f":"Import!M34781","v":0},{"$f":"Import!M34799","v":0},{"$f":"Import!M34817","v":0},{"$f":"Import!M34835","v":0},{"$f":"Import!M34853","v":0},{"$f":"Import!M34871","v":0}]
[null,"13.","Group Health",{"$f":"Import!M34706","v":0},null,0,null,null,null,null,null,{"$f":"Import!M34728","v":0},{"$f":"Import!M34746","v":0},{"$f":"Import!M34764","v":0},{"$f":"Import!M34782","v":0},{"$f":"Import!M34800","v":0},{"$f":"Import!M34818","v":0},{"$f":"Import!M34836","v":0},{"$f":"Import!M34854","v":0},{"$f":"Import!M34872","v":0}]
[null,"14.","Stop Loss",{"$f":"Import!M34707","v":0},null,0,null,null,null,{"$f":"+'Schedule IVB (EBS)'!Y28","v":0},null,{"$f":"Import!M34729","v":0},{"$f":"Import!M34747","v":0},{"$f":"Import!M34765","v":0},{"$f":"Import!M34783","v":0},{"$f":"Import!M34801","v":0},{"$f":"Import!M34819","v":0},{"$f":"Import!M34837","v":0},{"$f":"Import!M34855","v":0},{"$f":"Import!M34873","v":0}]
[null,"15.","Rider (other product riders not included above)",{"$f":"Import!M34708","v":0},null,0,null,null,null,{"$f":"+'Schedule IVB (EBS)'!Y29","v":0},null,{"$f":"Import!M34730","v":0},{"$f":"Import!M34748","v":0},{"$f":"Import!M34766","v":0},{"$f":"Import!M34784","v":0},{"$f":"Import!M34802","v":0},{"$f":"Import!M34820","v":0},{"$f":"Import!M34838","v":0},{"$f":"Import!M34856","v":0},{"$f":"Import!M34874","v":0}]
[]
[null,"16.","Total (excluding variable annuities)",{"$f":"SUM(D10:D11,D14:D18,D29:D30,D22:D27,D36:D44)","v":0},null,{"$f":"SUM(F10:F11,F14:F18,F29:F30,F22:F27,F36:F44)","v":0},null,null,null,null,null,{"$f":"SUM(L10:L44)","v":0},{"$f":"SUM(M10:M44)","v":0},0,0,0,0,0,0,0]
[null,"17.","Total - Variable Annuities",{"$f":"Import!M34710","v":0},null,{"$f":"IF(D47>0,D47,0)","v":0},null,null,null,null,null,{"$f":"Import!M34732","v":0},{"$f":"Import!M34750","v":0},{"$f":"Import!M34768","v":0},{"$f":"Import!M34786","v":0},{"$f":"Import!M34804","v":0},{"$f":"Import!M34822","v":0},{"$f":"Import!M34840","v":0},{"$f":"Import!M34858","v":0},{"$f":"Import!M34876","v":0}]
[null,"18.","Total with Variable Annuities",{"$f":"D46+D47","v":0},null,{"$f":"F46+F47","v":0},null,null,null,null,null,{"$f":"L46+L47","v":0},{"$f":"M46+M47","v":0},0,0,0,0,0,0,0]
[]
[null,null,"Total Net Long-Term Business Insurance Reserves",{"$f":"'Form 4EBS'!F122","v":0}]
[]
[null,null,"Check",{"$f":"IF((D48-D50)=0,\"TRUE\",\"FALSE\")","v":"TRUE"}]
[]
[null,null,"Difference",{"$f":"D50-D48","v":0}]
[]
[]
[null,null,null,null,null,null,null,null,null,null,null,{"$f":"+'Form 4EBS'!F229","v":0},{"$f":"+'Form 4EBS'!F230","v":0},{"$f":"+'Form 4EBS'!F231","v":0},{"$f":"+'Form 4EBS'!F232","v":0},{"$f":"+'Form 4EBS'!F233","v":0},{"$f":"+'Form 4EBS'!F234","v":0},{"$f":"+'Form 4EBS'!F235","v":0},{"$f":"+'Form 4EBS'!F237","v":0},{"$f":"+'Form 4EBS'!F238","v":0}]
[]
[null,null,null,null,null,null,null,null,null,null,null,{"$f":"IF((L57-L48)=0,\"TRUE\",FALSE)","v":"TRUE"},"TRUE","TRUE","TRUE","TRUE","TRUE","TRUE","TRUE","TRUE"]
[]
[null,null,null,null,null,null,null,null,null,null,null,{"$f":"L57-L48","v":0},{"$f":"M57-M48","v":0},0,0,0,0,0,0,0]

{"sheet":"Schedule VIII","index":62,"n_rows":67,"n_cols":18,"rows_kept":67,"cut":false,"hidden":false,"merged":[[31,2,31,4],[51,2,51,4],[56,3,56,13],[7,5,8,5],[7,7,7,11],[7,13,7,17],[12,2,12,4],[13,2,13,4],[30,2,30,4]]}
[null,null,"SCHEDULE OF LONG-TERM VARIABLE ANNUITY",null,null,null,null,null,null,null,null,null,null,null,null,null,null,{"$f":"HYPERLINK(\"#'Index'!A1\",\"Return to Index\")","v":"Return to Index"}]
[null,null,{"$f":"'Insurer Information'!C7","v":"Enter Company Name"}]
[null,null,{"$f":" TEXT('Insurer Information'!C3,\"D MMMM YYYY\")","v":"31 December 2023"},null,null,null,null,null,null,null,null,null,null,null,null,null,null,"SCHEDULE VIII"]
[null,null,{"$f":"'Form 4EBS'!C4","v":"United States Dollars"}]
[]
[null,"SCHEDULE OF LONG-TERM VARIABLE ANNUITY GUARANTEES"]
[null,null,null,null,null,"(1)",null,"(2)",null,"(3)",null,"(4)",null,"(5)",null,"(6)",null,"(7)"]
[null,null,null,null,null,"Bermuda Statutory Reserve",null,"Guaranteed Value 4",null,null,null,null,null,"Net Amount at Risk"]
[null,null,null,null,null,null,null,"Volatility (0% - 10.0%]",null,"Volatility (10.0% - 15.0%]",null,"Volatility >15.0%",null,"Volatility (0% - 10.0%]",null,"Volatility (10.0% - 15.0%]",null,"Volatility >15.0%"]
[null,null,null,null,null,{"$f":"CONFIGURATION!$D$12","v":" ('000s)"},null,{"$f":"CONFIGURATION!$D$12","v":" ('000s)"},null,{"$f":"CONFIGURATION!$D$12","v":" ('000s)"},null,{"$f":"CONFIGURATION!$D$12","v":" ('000s)"},null,{"$f":"CONFIGURATION!$D$12","v":" ('000s)"},null,{"$f":"CONFIGURATION!$D$12","v":" ('000s)"},null,{"$f":"CONFIGURATION!$D$12","v":" ('000s)"}]
[]
[null,null,"In-the-Money "]
[null,1,"Guaranteed Minimum Death Benefit: Return of Premium, Ratchet and Reset 2.",null,null,{"$f":"Import!E34879","v":0},null,{"$f":"Import!E34910","v":0},null,{"$f":"Import!E34941","v":0},null,{"$f":"Import!E34972","v":0},null,{"$f":"Import!E35003","v":0},null,{"$f":"Import!E35019","v":0},null,{"$f":"Import!E35035","v":0}]
[null,2,"Guaranteed Minimum Death Benefit: Enhanced Benefits (Roll up) 2.",null,null,{"$f":"Import!E34880","v":0},null,{"$f":"Import!E34911","v":0},null,{"$f":"Import!E34942","v":0},null,{"$f":"Import!E34973","v":0},null,{"$f":"Import!E35004","v":0},null,{"$f":"Import!E35020","v":0},null,{"$f":"Import!E35036","v":0}]
[null,3,"Guaranteed Minimum Income Benefit",null,null,{"$f":"Import!E34881","v":0},null,{"$f":"Import!E34912","v":0},null,{"$f":"Import!E34943","v":0},null,{"$f":"Import!E34974","v":0},null,{"$f":"Import!E35005","v":0},null,{"$f":"Import!E35021","v":0},null,{"$f":"Import!E35037","v":0}]
[null,4,"Guaranteed Minimum Withdrawal Benefit",null,null,{"$f":"Import!E34882","v":0},null,{"$f":"Import!E34913","v":0},null,{"$f":"Import!E34944","v":0},null,{"$f":"Import!E34975","v":0},null,{"$f":"Import!E35006","v":0},null,{"$f":"Import!E35022","v":0},null,{"$f":"Import!E35038","v":0}]
[null,5,"Guaranteed Enhanced Earnings Benefit",null,null,{"$f":"Import!E34883","v":0},null,{"$f":"Import!E34914","v":0},null,{"$f":"Import!E34945","v":0},null,{"$f":"Import!E34976","v":0},null,{"$f":"Import!E35007","v":0},null,{"$f":"Import!E35023","v":0},null,{"$f":"Import!E35039","v":0}]
[null,null,"Guaranteed Minimum Accumulation Benefit: "]
[null,6,"Time To Maturity - 0-1 Year",null,null,{"$f":"Import!E34884","v":0},null,{"$f":"Import!E34915","v":0},null,{"$f":"Import!E34946","v":0},null,{"$f":"Import!E34977","v":0},null,{"$f":"Import!E35008","v":0},null,{"$f":"Import!E35024","v":0},null,{"$f":"Import!E35040","v":0}]
[null,7,"Time To Maturity - 1-2 Years",null,null,{"$f":"Import!E34885","v":0},null,{"$f":"Import!E34916","v":0},null,{"$f":"Import!E34947","v":0},null,{"$f":"Import!E34978","v":0},null,{"$f":"Import!E35009","v":0},null,{"$f":"Import!E35025","v":0},null,{"$f":"Import!E35041","v":0}]
[null,8,"Time To Maturity - 2-3 Years",null,null,{"$f":"Import!E34886","v":0},null,{"$f":"Import!E34917","v":0},null,{"$f":"Import!E34948","v":0},null,{"$f":"Import!E34979","v":0},null,{"$f":"Import!E35010","v":0},null,{"$f":"Import!E35026","v":0},null,{"$f":"Import!E35042","v":0}]
[null,9,"Time To Maturity - 3-4 Years",null,null,{"$f":"Import!E34887","v":0},null,{"$f":"Import!E34918","v":0},null,{"$f":"Import!E34949","v":0},null,{"$f":"Import!E34980","v":0},null,{"$f":"Import!E35011","v":0},null,{"$f":"Import!E35027","v":0},null,{"$f":"Import!E35043","v":0}]
[null,10,"Time To Maturity - 4-5 Years",null,null,{"$f":"Import!E34888","v":0},null,{"$f":"Import!E34919","v":0},null,{"$f":"Import!E34950","v":0},null,{"$f":"Import!E34981","v":0},null,{"$f":"Import!E35012","v":0},null,{"$f":"Import!E35028","v":0},null,{"$f":"Import!E35044","v":0}]
[null,11,"Time To Maturity - 5-6 Years",null,null,{"$f":"Import!E34889","v":0},null,{"$f":"Import!E34920","v":0},null,{"$f":"Import!E34951","v":0},null,{"$f":"Import!E34982","v":0},null,{"$f":"Import!E35013","v":0},null,{"$f":"Import!E35029","v":0},null,{"$f":"Import!E35045","v":0}]
[null,12,"Time To Maturity - 6-7 Years",null,null,{"$f":"Import!E34890","v":0},null,{"$f":"Import!E34921","v":0},null,{"$f":"Import!E34952","v":0},null,{"$f":"Import!E34983","v":0},null,{"$f":"Import!E35014","v":0},null,{"$f":"Import!E35030","v":0},null,{"$f":"Import!E35046","v":0}]
[null,13,"Time To Maturity - 7-8 Years",null,null,{"$f":"Import!E34891","v":0},null,{"$f":"Import!E34922","v":0},null,{"$f":"Import!E34953","v":0},null,{"$f":"Import!E34984","v":0},null,{"$f":"Import!E35015","v":0},null,{"$f":"Import!E35031","v":0},null,{"$f":"Import!E35047","v":0}]
[null,14,"Time To Maturity - 8-9 Years",null,null,{"$f":"Import!E34892","v":0},null,{"$f":"Import!E34923","v":0},null,{"$f":"Import!E34954","v":0},null,{"$f":"Import!E34985","v":0},null,{"$f":"Import!E35016","v":0},null,{"$f":"Import!E35032","v":0},null,{"$f":"Import!E35048","v":0}]
[null,15,"Time To Maturity - >9 Years",null,null,{"$f":"Import!E34893","v":0},null,{"$f":"Import!E34924","v":0},null,{"$f":"Import!E34955","v":0},null,{"$f":"Import!E34986","v":0},null,{"$f":"Import!E35017","v":0},null,{"$f":"Import!E35033","v":0},null,{"$f":"Import!E35049","v":0}]
[]
[null,null,"Out-of-the-Money "]
[null,16,"Guaranteed Minimum Death Benefit: Return of Premium, Ratchet and Reset 2.",null,null,{"$f":"Import!E34894","v":0},null,{"$f":"Import!E34925","v":0},null,{"$f":"Import!E34956","v":0},null,{"$f":"Import!E34987","v":0}]
[null,17,"Guaranteed Minimum Death Benefit: Enhanced Benefits (Roll up) 2.",null,null,{"$f":"Import!E34895","v":0},null,{"$f":"Import!E34926","v":0},null,{"$f":"Import!E34957","v":0},null,{"$f":"Import!E34988","v":0}]
[null,18,"Guaranteed Minimum Income Benefit",null,null,{"$f":"Import!E34896","v":0},null,{"$f":"Import!E34927","v":0},null,{"$f":"Import!E34958","v":0},null,{"$f":"Import!E34989","v":0}]
[null,19,"Guaranteed Minimum Withdrawal Benefit",null,null,{"$f":"Import!E34897","v":0},null,{"$f":"Import!E34928","v":0},null,{"$f":"Import!E34959","v":0},null,{"$f":"Import!E34990","v":0}]
[null,20,"Guaranteed Enhanced Earnings Benefit",null,null,{"$f":"Import!E34898","v":0},null,{"$f":"Import!E34929","v":0},null,{"$f":"Import!E34960","v":0},null,{"$f":"Import!E34991","v":0}]
[null,null,"Guaranteed Minimum Accumulation Benefit: "]
[null,21,"Time To Maturity - 0-1 Year",null,null,{"$f":"Import!E34899","v":0},null,{"$f":"Import!E34930","v":0},null,{"$f":"Import!E34961","v":0},null,{"$f":"Import!E34992","v":0}]
[null,22,"Time To Maturity - 1-2 Years",null,null,{"$f":"Import!E34900","v":0},null,{"$f":"Import!E34931","v":0},null,{"$f":"Import!E34962","v":0},null,{"$f":"Import!E34993","v":0}]
[null,23,"Time To Maturity - 2-3 Years",null,null,{"$f":"Import!E34901","v":0},null,{"$f":"Import!E34932","v":0},null,{"$f":"Import!E34963","v":0},null,{"$f":"Import!E34994","v":0}]
[null,24,"Time To Maturity - 3-4 Years",null,null,{"$f":"Import!E34902","v":0},null,{"$f":"Import!E34933","v":0},null,{"$f":"Import!E34964","v":0},null,{"$f":"Import!E34995","v":0}]
[null,25,"Time To Maturity - 4-5 Years",null,null,{"$f":"Import!E34903","v":0},null,{"$f":"Import!E34934","v":0},null,{"$f":"Import!E34965","v":0},null,{"$f":"Import!E34996","v":0}]
[null,26,"Time To Maturity - 5-6 Years",null,null,{"$f":"Import!E34904","v":0},null,{"$f":"Import!E34935","v":0},null,{"$f":"Import!E34966","v":0},null,{"$f":"Import!E34997","v":0}]
[null,27,"Time To Maturity - 6-7 Years",null,null,{"$f":"Import!E34905","v":0},null,{"$f":"Import!E34936","v":0},null,{"$f":"Import!E34967","v":0},null,{"$f":"Import!E34998","v":0}]
[null,28,"Time To Maturity - 7-8 Years",null,null,{"$f":"Import!E34906","v":0},null,{"$f":"Import!E34937","v":0},null,{"$f":"Import!E34968","v":0},null,{"$f":"Import!E34999","v":0}]
[null,29,"Time To Maturity - 8-9 Years",null,null,{"$f":"Import!E34907","v":0},null,{"$f":"Import!E34938","v":0},null,{"$f":"Import!E34969","v":0},null,{"$f":"Import!E35000","v":0}]
[null,30,"Time To Maturity - >9 Years",null,null,{"$f":"Import!E34908","v":0},null,{"$f":"Import!E34939","v":0},null,{"$f":"Import!E34970","v":0},null,{"$f":"Import!E35001","v":0}]
[]
[null,31,"Total (Variable Annuities)",null,null,{"$f":"SUM(F13:F47)","v":0},null,{"$f":"SUM(H13:H47)","v":0},null,{"$f":"SUM(J13:J47)","v":0},null,{"$f":"SUM(L13:L47)","v":0},null,{"$f":"SUM(N13:N47)","v":0},null,{"$f":"SUM(P13:P47)","v":0},null,{"$f":"SUM(R13:R47)","v":0}]
[]
[null,32,"Percentage of Guaranteed Minimum Death Benefit with Multiple Guarantees",null,null,null,null,null,null,null,null,{"$f":"Import!E35051","v":0}]
[]
[]
[null,"Notes"]
[null,"1.  Factors should be applied to Net Amount at Risk (NAR) defined as:"]
[null,null,"GMAB","Total claim payable if all contracts mature immediately"]
[null,null,"GMDB","Total claim amount payable upon immediate death of all policyholders"]
[null,null,"GMIB","Total claim payable upon full and immediate annuitisation of all policies using an 80% factor applied to the GV (the 80% represents the ratio between current market annuitisation factors and the guaranteed annuitisation factors)"]
[null,null,"GMWB","Total claim payable if 100% of the guaranteed withdrawal benefit base in excess of the current account value is withdrawn immediately"]
[null,null,"GEEB","Total guaranteed enhanced payments upon immediate death of all policyholders"]
[]
[null,"2. Where ratchets, resets and roll-ups exist, please use the roll-up category."]
[]
[null,"3.  NAR is net of reinsurance."]
[]
[null,"4.  The proportion used for the account value under reinsurance is the proportion used for NAR."]
[]
[null,"5.  Volatility is defined as the annual volatility of the fund.  In the case where there is no, or limited, history of the fund, use the volatility of the benchmark."]

{"sheet":"Schedule VIII (EBS)","index":63,"n_rows":69,"n_cols":18,"rows_kept":69,"cut":false,"hidden":false,"merged":[[56,3,56,13],[7,13,7,17],[12,2,12,4],[13,2,13,4],[30,2,30,4],[31,2,31,4],[7,5,8,5],[7,7,7,11],[51,2,51,4]]}
[null,null,"SCHEDULE OF LONG-TERM VARIABLE ANNUITY",null,null,null,null,null,null,null,null,null,null,null,null,null,null,{"$f":"HYPERLINK(\"#'Index'!A1\",\"Return to Index\")","v":"Return to Index"}]
[null,null,{"$f":"'Insurer Information'!C7","v":"Enter Company Name"}]
[null,null,{"$f":" TEXT('Insurer Information'!C3,\"D MMMM YYYY\")","v":"31 December 2023"},null,null,null,null,null,null,null,null,null,null,null,null,null,null,"SCHEDULE VIII (EBS)"]
[null,null,{"$f":"'Form 4EBS'!C4","v":"United States Dollars"}]
[]
[null,"SCHEDULE OF LONG-TERM VARIABLE ANNUITY GUARANTEES"]
[null,null,null,null,null,"(1)",null,"(2)",null,"(3)",null,"(4)",null,"(5)",null,"(6)",null,"(7)"]
[null,null,null,null,null,"Bermuda EBS Best Estimate Provisions",null,"Guaranteed Value 4",null,null,null,null,null,"Net Amount at Risk"]
[null,null,null,null,null,null,null,"Volatility (0% - 10.0%]",null,"Volatility (10.0% - 15.0%]",null,"Volatility >15.0%",null,"Volatility (0% - 10.0%]",null,"Volatility (10.0% - 15.0%]",null,"Volatility >15.0%"]
[null,null,null,null,null,{"$f":"CONFIGURATION!$D$12","v":" ('000s)"},null,{"$f":"CONFIGURATION!$D$12","v":" ('000s)"},null,{"$f":"CONFIGURATION!$D$12","v":" ('000s)"},null,{"$f":"CONFIGURATION!$D$12","v":" ('000s)"},null,{"$f":"CONFIGURATION!$D$12","v":" ('000s)"},null,{"$f":"CONFIGURATION!$D$12","v":" ('000s)"},null,{"$f":"CONFIGURATION!$D$12","v":" ('000s)"}]
[]
[null,null,"In-the-Money "]
[null,1,"Guaranteed Minimum Death Benefit: Return of Premium, Ratchet and Reset 2.",null,null,{"$f":"Import!M34879","v":0},null,{"$f":"Import!M34910","v":0},null,{"$f":"Import!M34941","v":0},null,{"$f":"Import!M34972","v":0},null,{"$f":"Import!M35003","v":0},null,{"$f":"Import!M35019","v":0},null,{"$f":"Import!M35035","v":0}]
[null,2,"Guaranteed Minimum Death Benefit: Enhanced Benefits (Roll up) 2.",null,null,{"$f":"Import!M34880","v":0},null,{"$f":"Import!M34911","v":0},null,{"$f":"Import!M34942","v":0},null,{"$f":"Import!M34973","v":0},null,{"$f":"Import!M35004","v":0},null,{"$f":"Import!M35020","v":0},null,{"$f":"Import!M35036","v":0}]
[null,3,"Guaranteed Minimum Income Benefit",null,null,{"$f":"Import!M34881","v":0},null,{"$f":"Import!M34912","v":0},null,{"$f":"Import!M34943","v":0},null,{"$f":"Import!M34974","v":0},null,{"$f":"Import!M35005","v":0},null,{"$f":"Import!M35021","v":0},null,{"$f":"Import!M35037","v":0}]
[null,4,"Guaranteed Minimum Withdrawal Benefit",null,null,{"$f":"Import!M34882","v":0},null,{"$f":"Import!M34913","v":0},null,{"$f":"Import!M34944","v":0},null,{"$f":"Import!M34975","v":0},null,{"$f":"Import!M35006","v":0},null,{"$f":"Import!M35022","v":0},null,{"$f":"Import!M35038","v":0}]
[null,5,"Guaranteed Enhanced Earnings Benefit",null,null,{"$f":"Import!M34883","v":0},null,{"$f":"Import!M34914","v":0},null,{"$f":"Import!M34945","v":0},null,{"$f":"Import!M34976","v":0},null,{"$f":"Import!M35007","v":0},null,{"$f":"Import!M35023","v":0},null,{"$f":"Import!M35039","v":0}]
[null,null,"Guaranteed Minimum Accumulation Benefit: "]
[null,6,"Time To Maturity - 0-1 Year",null,null,{"$f":"Import!M34884","v":0},null,{"$f":"Import!M34915","v":0},null,{"$f":"Import!M34946","v":0},null,{"$f":"Import!M34977","v":0},null,{"$f":"Import!M35008","v":0},null,{"$f":"Import!M35024","v":0},null,{"$f":"Import!M35040","v":0}]
[null,7,"Time To Maturity - 1-2 Years",null,null,{"$f":"Import!M34885","v":0},null,{"$f":"Import!M34916","v":0},null,{"$f":"Import!M34947","v":0},null,{"$f":"Import!M34978","v":0},null,{"$f":"Import!M35009","v":0},null,{"$f":"Import!M35025","v":0},null,{"$f":"Import!M35041","v":0}]
[null,8,"Time To Maturity - 2-3 Years",null,null,{"$f":"Import!M34886","v":0},null,{"$f":"Import!M34917","v":0},null,{"$f":"Import!M34948","v":0},null,{"$f":"Import!M34979","v":0},null,{"$f":"Import!M35010","v":0},null,{"$f":"Import!M35026","v":0},null,{"$f":"Import!M35042","v":0}]
[null,9,"Time To Maturity - 3-4 Years",null,null,{"$f":"Import!M34887","v":0},null,{"$f":"Import!M34918","v":0},null,{"$f":"Import!M34949","v":0},null,{"$f":"Import!M34980","v":0},null,{"$f":"Import!M35011","v":0},null,{"$f":"Import!M35027","v":0},null,{"$f":"Import!M35043","v":0}]
[null,10,"Time To Maturity - 4-5 Years",null,null,{"$f":"Import!M34888","v":0},null,{"$f":"Import!M34919","v":0},null,{"$f":"Import!M34950","v":0},null,{"$f":"Import!M34981","v":0},null,{"$f":"Import!M35012","v":0},null,{"$f":"Import!M35028","v":0},null,{"$f":"Import!M35044","v":0}]
[null,11,"Time To Maturity - 5-6 Years",null,null,{"$f":"Import!M34889","v":0},null,{"$f":"Import!M34920","v":0},null,{"$f":"Import!M34951","v":0},null,{"$f":"Import!M34982","v":0},null,{"$f":"Import!M35013","v":0},null,{"$f":"Import!M35029","v":0},null,{"$f":"Import!M35045","v":0}]
[null,12,"Time To Maturity - 6-7 Years",null,null,{"$f":"Import!M34890","v":0},null,{"$f":"Import!M34921","v":0},null,{"$f":"Import!M34952","v":0},null,{"$f":"Import!M34983","v":0},null,{"$f":"Import!M35014","v":0},null,{"$f":"Import!M35030","v":0},null,{"$f":"Import!M35046","v":0}]
[null,13,"Time To Maturity - 7-8 Years",null,null,{"$f":"Import!M34891","v":0},null,{"$f":"Import!M34922","v":0},null,{"$f":"Import!M34953","v":0},null,{"$f":"Import!M34984","v":0},null,{"$f":"Import!M35015","v":0},null,{"$f":"Import!M35031","v":0},null,{"$f":"Import!M35047","v":0}]
[null,14,"Time To Maturity - 8-9 Years",null,null,{"$f":"Import!M34892","v":0},null,{"$f":"Import!M34923","v":0},null,{"$f":"Import!M34954","v":0},null,{"$f":"Import!M34985","v":0},null,{"$f":"Import!M35016","v":0},null,{"$f":"Import!M35032","v":0},null,{"$f":"Import!M35048","v":0}]
[null,15,"Time To Maturity - >9 Years",null,null,{"$f":"Import!M34893","v":0},null,{"$f":"Import!M34924","v":0},null,{"$f":"Import!M34955","v":0},null,{"$f":"Import!M34986","v":0},null,{"$f":"Import!M35017","v":0},null,{"$f":"Import!M35033","v":0},null,{"$f":"Import!M35049","v":0}]
[]
[null,null,"Out-of-the-Money "]
[null,16,"Guaranteed Minimum Death Benefit: Return of Premium, Ratchet and Reset 2.",null,null,{"$f":"Import!M34894","v":0},null,{"$f":"Import!M34925","v":0},null,{"$f":"Import!M34956","v":0},null,{"$f":"Import!M34987","v":0}]
[null,17,"Guaranteed Minimum Death Benefit: Enhanced Benefits (Roll up) 2.",null,null,{"$f":"Import!M34895","v":0},null,{"$f":"Import!M34926","v":0},null,{"$f":"Import!M34957","v":0},null,{"$f":"Import!M34988","v":0}]
[null,18,"Guaranteed Minimum Income Benefit",null,null,{"$f":"Import!M34896","v":0},null,{"$f":"Import!M34927","v":0},null,{"$f":"Import!M34958","v":0},null,{"$f":"Import!M34989","v":0}]
[null,19,"Guaranteed Minimum Withdrawal Benefit",null,null,{"$f":"Import!M34897","v":0},null,{"$f":"Import!M34928","v":0},null,{"$f":"Import!M34959","v":0},null,{"$f":"Import!M34990","v":0}]
[null,20,"Guaranteed Enhanced Earnings Benefit",null,null,{"$f":"Import!M34898","v":0},null,{"$f":"Import!M34929","v":0},null,{"$f":"Import!M34960","v":0},null,{"$f":"Import!M34991","v":0}]
[null,null,"Guaranteed Minimum Accumulation Benefit: "]
[null,21,"Time To Maturity - 0-1 Year",null,null,{"$f":"Import!M34899","v":0},null,{"$f":"Import!M34930","v":0},null,{"$f":"Import!M34961","v":0},null,{"$f":"Import!M34992","v":0}]
[null,22,"Time To Maturity - 1-2 Years",null,null,{"$f":"Import!M34900","v":0},null,{"$f":"Import!M34931","v":0},null,{"$f":"Import!M34962","v":0},null,{"$f":"Import!M34993","v":0}]
[null,23,"Time To Maturity - 2-3 Years",null,null,{"$f":"Import!M34901","v":0},null,{"$f":"Import!M34932","v":0},null,{"$f":"Import!M34963","v":0},null,{"$f":"Import!M34994","v":0}]
[null,24,"Time To Maturity - 3-4 Years",null,null,{"$f":"Import!M34902","v":0},null,{"$f":"Import!M34933","v":0},null,{"$f":"Import!M34964","v":0},null,{"$f":"Import!M34995","v":0}]
[null,25,"Time To Maturity - 4-5 Years",null,null,{"$f":"Import!M34903","v":0},null,{"$f":"Import!M34934","v":0},null,{"$f":"Import!M34965","v":0},null,{"$f":"Import!M34996","v":0}]
[null,26,"Time To Maturity - 5-6 Years",null,null,{"$f":"Import!M34904","v":0},null,{"$f":"Import!M34935","v":0},null,{"$f":"Import!M34966","v":0},null,{"$f":"Import!M34997","v":0}]
[null,27,"Time To Maturity - 6-7 Years",null,null,{"$f":"Import!M34905","v":0},null,{"$f":"Import!M34936","v":0},null,{"$f":"Import!M34967","v":0},null,{"$f":"Import!M34998","v":0}]
[null,28,"Time To Maturity - 7-8 Years",null,null,{"$f":"Import!M34906","v":0},null,{"$f":"Import!M34937","v":0},null,{"$f":"Import!M34968","v":0},null,{"$f":"Import!M34999","v":0}]
[null,29,"Time To Maturity - 8-9 Years",null,null,{"$f":"Import!M34907","v":0},null,{"$f":"Import!M34938","v":0},null,{"$f":"Import!M34969","v":0},null,{"$f":"Import!M35000","v":0}]
[null,30,"Time To Maturity - >9 Years",null,null,{"$f":"Import!M34908","v":0},null,{"$f":"Import!M34939","v":0},null,{"$f":"Import!M34970","v":0},null,{"$f":"Import!M35001","v":0}]
[]
[null,31,"Total (Variable Annuities)",null,null,{"$f":"SUM(F13:F47)","v":0},null,{"$f":"SUM(H13:H47)","v":0},null,{"$f":"SUM(J13:J47)","v":0},null,{"$f":"SUM(L13:L47)","v":0},null,{"$f":"SUM(N13:N47)","v":0},null,{"$f":"SUM(P13:P47)","v":0},null,{"$f":"SUM(R13:R47)","v":0}]
[]
[null,32,"Percentage of Guaranteed Minimum Death Benefit with Multiple Guarantees",null,null,null,null,null,null,null,null,{"$f":"Import!M35051","v":0}]
[]
[]
[null,"Notes"]
[null,"1.  Factors should be applied to Net Amount at Risk (NAR) defined as:"]
[null,null,"GMAB","Total claim payable if all contracts mature immediately"]
[null,null,"GMDB","Total claim amount payable upon immediate death of all policyholders"]
[null,null,"GMIB","Total claim payable upon full and immediate annuitisation of all policies using an 80% factor applied to the GV (the 80% represents the ratio between current market annuitisation factors and the guaranteed annuitisation factors)"]
[null,null,"GMWB","Total claim payable if 100% of the guaranteed withdrawal benefit base in excess of the current account value is withdrawn immediately"]
[null,null,"GEEB","Total guaranteed enhanced payments upon immediate death of all policyholders"]
[]
[null,"2. Where ratchets, resets and roll-ups exist, please use the roll-up category."]
[]
[null,"3.  NAR is net of reinsurance."]
[]
[null,"4.  The proportion used for the account value under reinsurance is the proportion used for NAR."]
[]
[null,"5.  Volatility is defined as the annual volatility of the fund.  In the case where there is no, or limited, history of the fund, use the volatility of the benchmark."]
[]
[null,"6. Bermuda EBS best estimate provisions are to be calculated in accordance with Economic Balance Sheet valuation principals under Schedule XIV."]

{"sheet":"Schedule VIIIA","index":64,"n_rows":102,"n_cols":19,"rows_kept":102,"cut":false,"hidden":false,"merged":[[91,3,91,18],[70,3,71,3],[70,5,71,5],[70,7,71,7],[70,9,71,9],[70,11,71,11],[85,2,85,5],[61,3,62,3],[61,5,62,5],[61,7,62,7],[61,9,62,9],[61,11,62,11],[50,3,51,3],[50,5,51,5],[50,7,51,7],[50,9,51,9],[50,11,51,11],[18,14,18,18],[27,3,28,3],[27,5,28,5],[27,7,28,7],[27,9,28,9],[27,11,28,11],[3,11,4,18],[6,1,6,12],[6,13,6,19],[8,3,9,3],[8,5,9,5],[8,7,9,7],[8,9,9,9],[8,11,9,11],[8,16,9,16],[8,18,9,18]]}
[null,null,"SCHEDULE OF LONG-TERM VARIABLE ANNUITY - INTERNAL CAPITAL MODEL",null,null,null,null,null,null,null,null,null,null,null,null,null,null,null,{"$f":"HYPERLINK(\"#'Index'!A1\",\"Return to Index\")","v":"Return to Index"}]
[null,null,{"$f":"'Insurer Information'!C7","v":"Enter Company Name"},null,null,null,null,null,null,null,null,null,null,null,null,null,null,null,"SCHEDULE VIII(a)"]
[null,null,{"$f":" TEXT('Insurer Information'!C3,\"D MMMM YYYY\")","v":"31 December 2023"}]
[null,null,{"$f":"'Form 4EBS'!C4","v":"United States Dollars"},null,null,null,null,null,null,null,null,{"$f":"HYPERLINK(\"#'Attachments'!A55\",\"Details of Internal Variable Annuity Guarantees (IE Actuarial Memorandum and Distribution of Cumulative Losses) are to be included in the attachments section 6.\")","v":"Details of Internal Variable Annuity Guarantees (IE Actuarial Memorandum and Distribution of Cumulative Losses) are to be included in the attachments section 6."}]
[]
[]
[null,"SCHEDULE OF LONG-TERM VARIABLE ANNUITY GUARANTEES",null,null,null,null,null,null,null,null,null,null,null,"TOTAL CAPITAL REQUIREMENT BASED ON INTERNAL MODEL RESULTS"]
[null,null,null,"(1)",null,"(2)",null,"(3)",null,"(4)",null,"(5)",null,null,null,null,"(6)",null,"(7)"]
[null,null,null,"Bermuda Statutory Reserve",null,"Policy Count",null,"Account Value",null,"Guarantee Value",null,"Net Amount At Risk",null,null,null,null,"Without Hedging",null,"With Hedging"]
[]
[null,null,"Policy Type",{"$f":"CONFIGURATION!$D$12","v":" ('000s)"},null,null,null,{"$f":"CONFIGURATION!$D$12","v":" ('000s)"},null,{"$f":"CONFIGURATION!$D$12","v":" ('000s)"},null,{"$f":"CONFIGURATION!$D$12","v":" ('000s)"}]
[null,null,"Guaranteed Minimum Death Benefit: Return of Premium",{"$f":"Import!E35073","v":0},null,{"$f":"Import!E35087","v":0},null,{"$f":"Import!E35101","v":0},null,{"$f":"Import!E35115","v":0},null,{"$f":"Import!E35129","v":0},null,"1.","Internal Model-Based Capital Requirement",null,{"$f":"Import!E35053","v":0},null,{"$f":"Import!E35061","v":0}]
[null,null,"Guaranteed Minimum Death Benefit: Ratchet ",{"$f":"Import!E35074","v":0},null,{"$f":"Import!E35088","v":0},null,{"$f":"Import!E35102","v":0},null,{"$f":"Import!E35116","v":0},null,{"$f":"Import!E35130","v":0}]
[null,null,"Guaranteed Minimum Death Benefit: Roll-up",{"$f":"Import!E35075","v":0},null,{"$f":"Import!E35089","v":0},null,{"$f":"Import!E35103","v":0},null,{"$f":"Import!E35117","v":0},null,{"$f":"Import!E35131","v":0},null,"2.","Prescribed Stress Tests:"]
[null,null,"Guaranteed Minimum Death Benefit: With Compound Guarantees",{"$f":"Import!E35076","v":0},null,{"$f":"Import!E35090","v":0},null,{"$f":"Import!E35104","v":0},null,{"$f":"Import!E35118","v":0},null,{"$f":"Import!E35132","v":0},null,null,"a. Equity - Immediate shock of 20% to separate account funds",null,{"$f":"Import!E35054","v":0},null,{"$f":"Import!E35062","v":0}]
[null,null,"Guaranteed Minimum Income Benefit: Return of Premium",{"$f":"Import!E35077","v":0},null,{"$f":"Import!E35091","v":0},null,{"$f":"Import!E35105","v":0},null,{"$f":"Import!E35119","v":0},null,{"$f":"Import!E35133","v":0},null,null,"   b. Absolute immediate increase of 10% in implied volatility",null,{"$f":"Import!E35055","v":0},null,{"$f":"Import!E35063","v":0}]
[null,null,"Guaranteed Minimum Income Benefit: Ratchet",{"$f":"Import!E35078","v":0},null,{"$f":"Import!E35092","v":0},null,{"$f":"Import!E35106","v":0},null,{"$f":"Import!E35120","v":0},null,{"$f":"Import!E35134","v":0},null,null,"   c. Interest rates - Immediate parallel shift up/down by 100 bps",null,{"$f":"Import!E35056","v":0},null,{"$f":"Import!E35064","v":0}]
[null,null,"Guaranteed Minimum Income Benefit: Roll-up",{"$f":"Import!E35079","v":0},null,{"$f":"Import!E35093","v":0},null,{"$f":"Import!E35107","v":0},null,{"$f":"Import!E35121","v":0},null,{"$f":"Import!E35135","v":0}]
[null,null,"Guaranteed Minimum Income Benefit: With Compound Guarantees",{"$f":"Import!E35080","v":0},null,{"$f":"Import!E35094","v":0},null,{"$f":"Import!E35108","v":0},null,{"$f":"Import!E35122","v":0},null,{"$f":"Import!E35136","v":0},null,"3.","Stresses to Actuarial Assumptions for Mortality and Policyholder behaviour:"]
[null,null,"Enhanced Earnings Benefit",{"$f":"Import!E35081","v":0},null,{"$f":"Import!E35095","v":0},null,{"$f":"Import!E35109","v":0},null,{"$f":"Import!E35123","v":0},null,{"$f":"Import!E35137","v":0},null,"a.",{"$f":"Import!E35069","v":0},null,{"$f":"Import!E35057","v":0},null,{"$f":"Import!E35065","v":0}]
[null,null,"Guaranteed Minimum Withdrawal Benefit",{"$f":"Import!E35082","v":0},null,{"$f":"Import!E35096","v":0},null,{"$f":"Import!E35110","v":0},null,{"$f":"Import!E35124","v":0},null,{"$f":"Import!E35138","v":0},null,"b.",{"$f":"Import!E35070","v":0},null,{"$f":"Import!E35058","v":0},null,{"$f":"Import!E35066","v":0}]
[null,null,"Guaranteed Minimum Withdrawal for Life",{"$f":"Import!E35083","v":0},null,{"$f":"Import!E35097","v":0},null,{"$f":"Import!E35111","v":0},null,{"$f":"Import!E35125","v":0},null,{"$f":"Import!E35139","v":0},null,"c.",{"$f":"Import!E35071","v":0},null,{"$f":"Import!E35059","v":0},null,{"$f":"Import!E35067","v":0}]
[null,null,"Guaranteed Minimum Accumulation Benefit: ",{"$f":"Import!E35084","v":0},null,{"$f":"Import!E35098","v":0},null,{"$f":"Import!E35112","v":0},null,{"$f":"Import!E35126","v":0},null,{"$f":"Import!E35140","v":0},null,"d.",{"$f":"Import!E35072","v":0},null,{"$f":"Import!E35060","v":0},null,{"$f":"Import!E35068","v":0}]
[null,null,"Guaranteed Minimum Accumulation Benefit: With Compound Guarantees",{"$f":"Import!E35085","v":0},null,{"$f":"Import!E35099","v":0},null,{"$f":"Import!E35113","v":0},null,{"$f":"Import!E35127","v":0},null,{"$f":"Import!E35141","v":0}]
[null,null,"Total (Variable Annuities)",{"$f":"SUM(D12:D24)","v":0},null,{"$f":"SUM(F12:F24)","v":0},null,{"$f":"SUM(H12:H24)","v":0},null,{"$f":"SUM(J12:J24)","v":0},null,{"$f":"SUM(L12:L24)","v":0}]
[]
[]
[null,null,null,"Bermuda Statutory Reserve",null,"Policy Count",null,"Account Value",null,"Guarantee Value",null,"Net Amount At Risk"]
[]
[null,null,"Years Since Issue",{"$f":"CONFIGURATION!$D$12","v":" ('000s)"},null,null,null,{"$f":"CONFIGURATION!$D$12","v":" ('000s)"},null,{"$f":"CONFIGURATION!$D$12","v":" ('000s)"},null,{"$f":"CONFIGURATION!$D$12","v":" ('000s)"}]
[null,null,0,{"$f":"Import!E35143","v":0},null,{"$f":"Import!E35161","v":0},null,{"$f":"Import!E35179","v":0},null,{"$f":"Import!E35197","v":0},null,{"$f":"Import!E35215","v":0}]
[null,null,1,{"$f":"Import!E35144","v":0},null,{"$f":"Import!E35162","v":0},null,{"$f":"Import!E35180","v":0},null,{"$f":"Import!E35198","v":0},null,{"$f":"Import!E35216","v":0}]
[null,null,2,{"$f":"Import!E35145","v":0},null,{"$f":"Import!E35163","v":0},null,{"$f":"Import!E35181","v":0},null,{"$f":"Import!E35199","v":0},null,{"$f":"Import!E35217","v":0}]
[null,null,3,{"$f":"Import!E35146","v":0},null,{"$f":"Import!E35164","v":0},null,{"$f":"Import!E35182","v":0},null,{"$f":"Import!E35200","v":0},null,{"$f":"Import!E35218","v":0}]
[null,null,4,{"$f":"Import!E35147","v":0},null,{"$f":"Import!E35165","v":0},null,{"$f":"Import!E35183","v":0},null,{"$f":"Import!E35201","v":0},null,{"$f":"Import!E35219","v":0}]
[null,null,5,{"$f":"Import!E35148","v":0},null,{"$f":"Import!E35166","v":0},null,{"$f":"Import!E35184","v":0},null,{"$f":"Import!E35202","v":0},null,{"$f":"Import!E35220","v":0}]
[null,null,6,{"$f":"Import!E35149","v":0},null,{"$f":"Import!E35167","v":0},null,{"$f":"Import!E35185","v":0},null,{"$f":"Import!E35203","v":0},null,{"$f":"Import!E35221","v":0}]
[" ",null,7,{"$f":"Import!E35150","v":0},null,{"$f":"Import!E35168","v":0},null,{"$f":"Import!E35186","v":0},null,{"$f":"Import!E35204","v":0},null,{"$f":"Import!E35222","v":0}]
[null,null,8,{"$f":"Import!E35151","v":0},null,{"$f":"Import!E35169","v":0},null,{"$f":"Import!E35187","v":0},null,{"$f":"Import!E35205","v":0},null,{"$f":"Import!E35223","v":0}]
[null,null,9,{"$f":"Import!E35152","v":0},null,{"$f":"Import!E35170","v":0},null,{"$f":"Import!E35188","v":0},null,{"$f":"Import!E35206","v":0},null,{"$f":"Import!E35224","v":0}]
[null,null,10,{"$f":"Import!E35153","v":0},null,{"$f":"Import!E35171","v":0},null,{"$f":"Import!E35189","v":0},null,{"$f":"Import!E35207","v":0},null,{"$f":"Import!E35225","v":0}]
[null,null,11,{"$f":"Import!E35154","v":0},null,{"$f":"Import!E35172","v":0},null,{"$f":"Import!E35190","v":0},null,{"$f":"Import!E35208","v":0},null,{"$f":"Import!E35226","v":0}]
[null,null,12,{"$f":"Import!E35155","v":0},null,{"$f":"Import!E35173","v":0},null,{"$f":"Import!E35191","v":0},null,{"$f":"Import!E35209","v":0},null,{"$f":"Import!E35227","v":0}]
[null,null,13,{"$f":"Import!E35156","v":0},null,{"$f":"Import!E35174","v":0},null,{"$f":"Import!E35192","v":0},null,{"$f":"Import!E35210","v":0},null,{"$f":"Import!E35228","v":0}]
[null,null,14,{"$f":"Import!E35157","v":0},null,{"$f":"Import!E35175","v":0},null,{"$f":"Import!E35193","v":0},null,{"$f":"Import!E35211","v":0},null,{"$f":"Import!E35229","v":0}]
[null,null,15,{"$f":"Import!E35158","v":0},null,{"$f":"Import!E35176","v":0},null,{"$f":"Import!E35194","v":0},null,{"$f":"Import!E35212","v":0},null,{"$f":"Import!E35230","v":0}]
[null,null,">15",{"$f":"Import!E35159","v":0},null,{"$f":"Import!E35177","v":0},null,{"$f":"Import!E35195","v":0},null,{"$f":"Import!E35213","v":0},null,{"$f":"Import!E35231","v":0}]
[null,null,null,{"$f":"SUM(D31:D47)","v":0},null,{"$f":"SUM(F31:F47)","v":0},null,{"$f":"SUM(H31:H47)","v":0},null,{"$f":"SUM(J31:J47)","v":0},null,{"$f":"SUM(L31:L47)","v":0}]
[]
[]
[null,null,null,"Bermuda Statutory Reserve",null,"Policy Count",null,"Account Value",null,"Guarantee Value",null,"Net Amount At Risk"]
[]
[null,null,"In/Out of the Money",{"$f":"CONFIGURATION!$D$12","v":" ('000s)"},null,null,null,{"$f":"CONFIGURATION!$D$12","v":" ('000s)"},null,{"$f":"CONFIGURATION!$D$12","v":" ('000s)"},null,{"$f":"CONFIGURATION!$D$12","v":" ('000s)"}]
[null,null,"<-15%",{"$f":"Import!E35233","v":0},null,{"$f":"Import!E35239","v":0},null,{"$f":"Import!E35245","v":0},null,{"$f":"Import!E35251","v":0},null,{"$f":"Import!E35257","v":0}]
[null,null,"(-15%) - (-5%)",{"$f":"Import!E35234","v":0},null,{"$f":"Import!E35240","v":0},null,{"$f":"Import!E35246","v":0},null,{"$f":"Import!E35252","v":0},null,{"$f":"Import!E35258","v":0}]
[null,null,"(-5%) - (+5%)",{"$f":"Import!E35235","v":0},null,{"$f":"Import!E35241","v":0},null,{"$f":"Import!E35247","v":0},null,{"$f":"Import!E35253","v":0},null,{"$f":"Import!E35259","v":0}]
[null,null,"(+5%) - (+15%)",{"$f":"Import!E35236","v":0},null,{"$f":"Import!E35242","v":0},null,{"$f":"Import!E35248","v":0},null,{"$f":"Import!E35254","v":0},null,{"$f":"Import!E35260","v":0}]
[null,null,">+15%",{"$f":"Import!E35237","v":0},null,{"$f":"Import!E35243","v":0},null,{"$f":"Import!E35249","v":0},null,{"$f":"Import!E35255","v":0},null,{"$f":"Import!E35261","v":0}]
[null,null,null,{"$f":"SUM(D54:D58)","v":0},null,{"$f":"SUM(F54:F58)","v":0},null,{"$f":"SUM(H54:H58)","v":0},null,{"$f":"SUM(J54:J58)","v":0},null,{"$f":"SUM(L54:L58)","v":0}]
[]
[]
[null,null,null,"Bermuda Statutory Reserve",null,"Policy Count",null,"Account Value",null,"Guarantee Value",null,"Net Amount At Risk"]
[]
[null,null,"Fund Volatility",{"$f":"CONFIGURATION!$D$12","v":" ('000s)"},null,null,null,{"$f":"CONFIGURATION!$D$12","v":" ('000s)"},null,{"$f":"CONFIGURATION!$D$12","v":" ('000s)"},null,{"$f":"CONFIGURATION!$D$12","v":" ('000s)"}]
[null,null," 0-10% ",{"$f":"Import!E35263","v":0},null,{"$f":"Import!E35267","v":0},null,{"$f":"Import!E35271","v":0},null,{"$f":"Import!E35275","v":0},null,{"$f":"Import!E35279","v":0}]
[null,null," 10-20% ",{"$f":"Import!E35264","v":0},null,{"$f":"Import!E35268","v":0},null,{"$f":"Import!E35272","v":0},null,{"$f":"Import!E35276","v":0},null,{"$f":"Import!E35280","v":0}]
[null,null," 20%+ ",{"$f":"Import!E35265","v":0},null,{"$f":"Import!E35269","v":0},null,{"$f":"Import!E35273","v":0},null,{"$f":"Import!E35277","v":0},null,{"$f":"Import!E35281","v":0}]
[null,null,null,{"$f":"SUM(D65:D67)","v":0},null,{"$f":"SUM(F65:F67)","v":0},null,{"$f":"SUM(H65:H67)","v":0},null,{"$f":"SUM(J65:J67)","v":0},null,{"$f":"SUM(L65:L67)","v":0}]
[]
[]
[null,null,null,"Bermuda Statutory Reserve",null,"Policy Count",null,"Account Value",null,"Guarantee Value",null,"Net Amount At Risk"]
[]
[null,null,"Years to Next Maturity (GMAB Only)",{"$f":"CONFIGURATION!$D$12","v":" ('000s)"},null,null,null,{"$f":"CONFIGURATION!$D$12","v":" ('000s)"},null,{"$f":"CONFIGURATION!$D$12","v":" ('000s)"},null,{"$f":"CONFIGURATION!$D$12","v":" ('000s)"}]
[null,null,0,{"$f":"Import!E35283","v":0},null,{"$f":"Import!E35295","v":0},null,{"$f":"Import!E35307","v":0},null,{"$f":"Import!E35319","v":0},null,{"$f":"Import!E35331","v":0}]
[null,null,1,{"$f":"Import!E35284","v":0},null,{"$f":"Import!E35296","v":0},null,{"$f":"Import!E35308","v":0},null,{"$f":"Import!E35320","v":0},null,{"$f":"Import!E35332","v":0}]
[null,null,2,{"$f":"Import!E35285","v":0},null,{"$f":"Import!E35297","v":0},null,{"$f":"Import!E35309","v":0},null,{"$f":"Import!E35321","v":0},null,{"$f":"Import!E35333","v":0}]
[null,null,3,{"$f":"Import!E35286","v":0},null,{"$f":"Import!E35298","v":0},null,{"$f":"Import!E35310","v":0},null,{"$f":"Import!E35322","v":0},null,{"$f":"Import!E35334","v":0}]
[null,null,4,{"$f":"Import!E35287","v":0},null,{"$f":"Import!E35299","v":0},null,{"$f":"Import!E35311","v":0},null,{"$f":"Import!E35323","v":0},null,{"$f":"Import!E35335","v":0}]
[null,null,5,{"$f":"Import!E35288","v":0},null,{"$f":"Import!E35300","v":0},null,{"$f":"Import!E35312","v":0},null,{"$f":"Import!E35324","v":0},null,{"$f":"Import!E35336","v":0}]
[null,null,6,{"$f":"Import!E35289","v":0},null,{"$f":"Import!E35301","v":0},null,{"$f":"Import!E35313","v":0},null,{"$f":"Import!E35325","v":0},null,{"$f":"Import!E35337","v":0}]
[" ",null,7,{"$f":"Import!E35290","v":0},null,{"$f":"Import!E35302","v":0},null,{"$f":"Import!E35314","v":0},null,{"$f":"Import!E35326","v":0},null,{"$f":"Import!E35338","v":0}]
[null,null,8,{"$f":"Import!E35291","v":0},null,{"$f":"Import!E35303","v":0},null,{"$f":"Import!E35315","v":0},null,{"$f":"Import!E35327","v":0},null,{"$f":"Import!E35339","v":0}]
[null,null,9,{"$f":"Import!E35292","v":0},null,{"$f":"Import!E35304","v":0},null,{"$f":"Import!E35316","v":0},null,{"$f":"Import!E35328","v":0},null,{"$f":"Import!E35340","v":0}]
[null,null,">10",{"$f":"Import!E35293","v":0},null,{"$f":"Import!E35305","v":0},null,{"$f":"Import!E35317","v":0},null,{"$f":"Import!E35329","v":0},null,{"$f":"Import!E35341","v":0}]
[null,null,null,{"$f":"SUM(D74:D84)","v":0},null,{"$f":"SUM(F74:F84)","v":0},null,{"$f":"SUM(H74:H84)","v":0},null,{"$f":"SUM(J74:J84)","v":0},null,{"$f":"SUM(L74:L84)","v":0}]
[]
[]
[null,"Notes"]
[null,"1.  Factors should be applied to Net Amount at Risk (NAR) defined as:"]
[null,null,"GMAB","Total claim payable if all contracts mature immediately"]
[null,null,"GMDB","Total claim amount payable upon immediate death of all policyholders"]
[null,null,"GMIB","Total claim payable upon full and immediate annuitisation of all policies using an 80% factor applied to the GV (the 80% represents the ratio between current market annuitisation factors and the guaranteed annuitisation factors)"]
[null,null,"GMWB","Total claim payable if 100% of the guaranteed withdrawal benefit base in excess of the current account value is withdrawn immediately"]
[null,null,"GEEB","Total guaranteed enhanced payments upon immediate death of all policyholders"]
[]
[null,"2. Where ratchets, resets and roll-ups exist, please use the roll-up category."]
[]
[null,"3.  NAR is net of reinsurance."]
[]
[null,"4.  The proportion used for the account value under reinsurance is the proportion used for NAR."]
[]
[null,"5.  Volatility is defined as the annual volatility of the fund.  In the case where there is no, or limited, history of the fund, use the volatility of the benchmark."]

{"sheet":"Schedule VIIIA (EBS)","index":65,"n_rows":104,"n_cols":19,"rows_kept":104,"cut":false,"hidden":false,"merged":[[91,3,91,18],[27,3,28,3],[27,5,28,5],[70,3,71,3],[70,5,71,5],[70,7,71,7],[70,9,71,9],[61,7,62,7],[61,9,62,9],[70,11,71,11],[61,11,62,11],[85,2,85,5],[50,3,51,3],[50,5,51,5],[50,7,51,7],[27,11,28,11],[50,11,51,11],[61,3,62,3],[61,5,62,5],[27,7,28,7],[50,9,51,9],[27,9,28,9],[3,11,4,18],[18,14,18,18],[6,13,6,19],[8,3,9,3],[8,5,9,5],[8,7,9,7],[8,9,9,9],[8,11,9,11],[6,1,6,12],[8,16,9,16],[8,18,9,18]]}
[null,null,"SCHEDULE OF LONG-TERM VARIABLE ANNUITY - INTERNAL CAPITAL MODEL",null,null,null,null,null,null,null,null,null,null,null,null,null,null,null,{"$f":"HYPERLINK(\"#'Index'!A1\",\"Return to Index\")","v":"Return to Index"}]
[null,null,{"$f":"'Insurer Information'!C7","v":"Enter Company Name"},null,null,null,null,null,null,null,null,null,null,null,null,null,null,null,"SCHEDULE VIII(a) (EBS)"]
[null,null,{"$f":" TEXT('Insurer Information'!C3,\"D MMMM YYYY\")","v":"31 December 2023"}]
[null,null,{"$f":"'Form 4EBS'!C4","v":"United States Dollars"},null,null,null,null,null,null,null,null,{"$f":"HYPERLINK(\"#'Attachments'!A55\",\"Details of Internal Variable Annuity Guarantees (IE Actuarial Memorandum and Distribution of Cumulative Losses) are to be included in the attachments section 6.\")","v":"Details of Internal Variable Annuity Guarantees (IE Actuarial Memorandum and Distribution of Cumulative Losses) are to be included in the attachments section 6."}]
[]
[]
[null,"SCHEDULE OF LONG-TERM VARIABLE ANNUITY GUARANTEES",null,null,null,null,null,null,null,null,null,null,null,"TOTAL CAPITAL REQUIREMENT BASED ON INTERNAL MODEL RESULTS"]
[null,null,null,"(1)",null,"(2)",null,"(3)",null,"(4)",null,"(5)",null,null,null,null,"(6)",null,"(7)"]
[null,null,null,"Bermuda EBS Best Estimate Provisions",null,"Policy Count",null,"Account Value",null,"Guarantee Value",null,"Net Amount At Risk",null,null,null,null,"Without Hedging",null,"With Hedging"]
[]
[null,null,"Policy Type",{"$f":"CONFIGURATION!$D$12","v":" ('000s)"},null,null,null,{"$f":"CONFIGURATION!$D$12","v":" ('000s)"},null,{"$f":"CONFIGURATION!$D$12","v":" ('000s)"},null,{"$f":"CONFIGURATION!$D$12","v":" ('000s)"}]
[null,null,"Guaranteed Minimum Death Benefit: Return of Premium",{"$f":"Import!M35073","v":0},null,{"$f":"Import!M35087","v":0},null,{"$f":"Import!M35101","v":0},null,{"$f":"Import!M35115","v":0},null,{"$f":"Import!M35129","v":0},null,"1.","Internal Model-Based Capital Requirement",null,{"$f":"Import!M35053","v":0},null,{"$f":"Import!M35061","v":0}]
[null,null,"Guaranteed Minimum Death Benefit: Ratchet ",{"$f":"Import!M35074","v":0},null,{"$f":"Import!M35088","v":0},null,{"$f":"Import!M35102","v":0},null,{"$f":"Import!M35116","v":0},null,{"$f":"Import!M35130","v":0}]
[null,null,"Guaranteed Minimum Death Benefit: Roll-up",{"$f":"Import!M35075","v":0},null,{"$f":"Import!M35089","v":0},null,{"$f":"Import!M35103","v":0},null,{"$f":"Import!M35117","v":0},null,{"$f":"Import!M35131","v":0},null,"2.","Prescribed Stress Tests:"]
[null,null,"Guaranteed Minimum Death Benefit: With Compound Guarantees",{"$f":"Import!M35076","v":0},null,{"$f":"Import!M35090","v":0},null,{"$f":"Import!M35104","v":0},null,{"$f":"Import!M35118","v":0},null,{"$f":"Import!M35132","v":0},null,null,"a. Equity - Immediate shock of 20% to separate account funds",null,{"$f":"Import!M35054","v":0},null,{"$f":"Import!M35062","v":0}]
[null,null,"Guaranteed Minimum Income Benefit: Return of Premium",{"$f":"Import!M35077","v":0},null,{"$f":"Import!M35091","v":0},null,{"$f":"Import!M35105","v":0},null,{"$f":"Import!M35119","v":0},null,{"$f":"Import!M35133","v":0},null,null,"   b. Absolute immediate increase of 10% in implied volatility",null,{"$f":"Import!M35055","v":0},null,{"$f":"Import!M35063","v":0}]
[null,null,"Guaranteed Minimum Income Benefit: Ratchet",{"$f":"Import!M35078","v":0},null,{"$f":"Import!M35092","v":0},null,{"$f":"Import!M35106","v":0},null,{"$f":"Import!M35120","v":0},null,{"$f":"Import!M35134","v":0},null,null,"   c. Interest rates - Immediate parallel shift up/down by 100 bps",null,{"$f":"Import!M35056","v":0},null,{"$f":"Import!M35064","v":0}]
[null,null,"Guaranteed Minimum Income Benefit: Roll-up",{"$f":"Import!M35079","v":0},null,{"$f":"Import!M35093","v":0},null,{"$f":"Import!M35107","v":0},null,{"$f":"Import!M35121","v":0},null,{"$f":"Import!M35135","v":0}]
[null,null,"Guaranteed Minimum Income Benefit: With Compound Guarantees",{"$f":"Import!M35080","v":0},null,{"$f":"Import!M35094","v":0},null,{"$f":"Import!M35108","v":0},null,{"$f":"Import!M35122","v":0},null,{"$f":"Import!M35136","v":0},null,"3.","Stresses to Actuarial Assumptions for Mortality and Policyholder behaviour:"]
[null,null,"Enhanced Earnings Benefit",{"$f":"Import!M35081","v":0},null,{"$f":"Import!M35095","v":0},null,{"$f":"Import!M35109","v":0},null,{"$f":"Import!M35123","v":0},null,{"$f":"Import!M35137","v":0},null,"a.",{"$f":"Import!M35069","v":0},null,{"$f":"Import!M35057","v":0},null,{"$f":"Import!M35065","v":0}]
[null,null,"Guaranteed Minimum Withdrawal Benefit",{"$f":"Import!M35082","v":0},null,{"$f":"Import!M35096","v":0},null,{"$f":"Import!M35110","v":0},null,{"$f":"Import!M35124","v":0},null,{"$f":"Import!M35138","v":0},null,"b.",{"$f":"Import!M35070","v":0},null,{"$f":"Import!M35058","v":0},null,{"$f":"Import!M35066","v":0}]
[null,null,"Guaranteed Minimum Withdrawal for Life",{"$f":"Import!M35083","v":0},null,{"$f":"Import!M35097","v":0},null,{"$f":"Import!M35111","v":0},null,{"$f":"Import!M35125","v":0},null,{"$f":"Import!M35139","v":0},null,"c.",{"$f":"Import!M35071","v":0},null,{"$f":"Import!M35059","v":0},null,{"$f":"Import!M35067","v":0}]
[null,null,"Guaranteed Minimum Accumulation Benefit: ",{"$f":"Import!M35084","v":0},null,{"$f":"Import!M35098","v":0},null,{"$f":"Import!M35112","v":0},null,{"$f":"Import!M35126","v":0},null,{"$f":"Import!M35140","v":0},null,"d.",{"$f":"Import!M35072","v":0},null,{"$f":"Import!M35060","v":0},null,{"$f":"Import!M35068","v":0}]
[null,null,"Guaranteed Minimum Accumulation Benefit: With Compound Guarantees",{"$f":"Import!M35085","v":0},null,{"$f":"Import!M35099","v":0},null,{"$f":"Import!M35113","v":0},null,{"$f":"Import!M35127","v":0},null,{"$f":"Import!M35141","v":0}]
[null,null,"Total (Variable Annuities)",{"$f":"SUM(D12:D24)","v":0},null,{"$f":"SUM(F12:F24)","v":0},null,{"$f":"SUM(H12:H24)","v":0},null,{"$f":"SUM(J12:J24)","v":0},null,{"$f":"SUM(L12:L24)","v":0}]
[]
[]
[null,null,null,"Bermuda EBS Best Estimate Provisions",null,"Policy Count",null,"Account Value",null,"Guarantee Value",null,"Net Amount At Risk"]
[]
[null,null,"Years Since Issue",{"$f":"CONFIGURATION!$D$12","v":" ('000s)"},null,null,null,{"$f":"CONFIGURATION!$D$12","v":" ('000s)"},null,{"$f":"CONFIGURATION!$D$12","v":" ('000s)"},null,{"$f":"CONFIGURATION!$D$12","v":" ('000s)"}]
[null,null,0,{"$f":"Import!M35143","v":0},null,{"$f":"Import!M35161","v":0},null,{"$f":"Import!M35179","v":0},null,{"$f":"Import!M35197","v":0},null,{"$f":"Import!M35215","v":0}]
[null,null,1,{"$f":"Import!M35144","v":0},null,{"$f":"Import!M35162","v":0},null,{"$f":"Import!M35180","v":0},null,{"$f":"Import!M35198","v":0},null,{"$f":"Import!M35216","v":0}]
[null,null,2,{"$f":"Import!M35145","v":0},null,{"$f":"Import!M35163","v":0},null,{"$f":"Import!M35181","v":0},null,{"$f":"Import!M35199","v":0},null,{"$f":"Import!M35217","v":0}]
[null,null,3,{"$f":"Import!M35146","v":0},null,{"$f":"Import!M35164","v":0},null,{"$f":"Import!M35182","v":0},null,{"$f":"Import!M35200","v":0},null,{"$f":"Import!M35218","v":0}]
[null,null,4,{"$f":"Import!M35147","v":0},null,{"$f":"Import!M35165","v":0},null,{"$f":"Import!M35183","v":0},null,{"$f":"Import!M35201","v":0},null,{"$f":"Import!M35219","v":0}]
[null,null,5,{"$f":"Import!M35148","v":0},null,{"$f":"Import!M35166","v":0},null,{"$f":"Import!M35184","v":0},null,{"$f":"Import!M35202","v":0},null,{"$f":"Import!M35220","v":0}]
[null,null,6,{"$f":"Import!M35149","v":0},null,{"$f":"Import!M35167","v":0},null,{"$f":"Import!M35185","v":0},null,{"$f":"Import!M35203","v":0},null,{"$f":"Import!M35221","v":0}]
[" ",null,7,{"$f":"Import!M35150","v":0},null,{"$f":"Import!M35168","v":0},null,{"$f":"Import!M35186","v":0},null,{"$f":"Import!M35204","v":0},null,{"$f":"Import!M35222","v":0}]
[null,null,8,{"$f":"Import!M35151","v":0},null,{"$f":"Import!M35169","v":0},null,{"$f":"Import!M35187","v":0},null,{"$f":"Import!M35205","v":0},null,{"$f":"Import!M35223","v":0}]
[null,null,9,{"$f":"Import!M35152","v":0},null,{"$f":"Import!M35170","v":0},null,{"$f":"Import!M35188","v":0},null,{"$f":"Import!M35206","v":0},null,{"$f":"Import!M35224","v":0}]
[null,null,10,{"$f":"Import!M35153","v":0},null,{"$f":"Import!M35171","v":0},null,{"$f":"Import!M35189","v":0},null,{"$f":"Import!M35207","v":0},null,{"$f":"Import!M35225","v":0}]
[null,null,11,{"$f":"Import!M35154","v":0},null,{"$f":"Import!M35172","v":0},null,{"$f":"Import!M35190","v":0},null,{"$f":"Import!M35208","v":0},null,{"$f":"Import!M35226","v":0}]
[null,null,12,{"$f":"Import!M35155","v":0},null,{"$f":"Import!M35173","v":0},null,{"$f":"Import!M35191","v":0},null,{"$f":"Import!M35209","v":0},null,{"$f":"Import!M35227","v":0}]
[null,null,13,{"$f":"Import!M35156","v":0},null,{"$f":"Import!M35174","v":0},null,{"$f":"Import!M35192","v":0},null,{"$f":"Import!M35210","v":0},null,{"$f":"Import!M35228","v":0}]
[null,null,14,{"$f":"Import!M35157","v":0},null,{"$f":"Import!M35175","v":0},null,{"$f":"Import!M35193","v":0},null,{"$f":"Import!M35211","v":0},null,{"$f":"Import!M35229","v":0}]
[null,null,15,{"$f":"Import!M35158","v":0},null,{"$f":"Import!M35176","v":0},null,{"$f":"Import!M35194","v":0},null,{"$f":"Import!M35212","v":0},null,{"$f":"Import!M35230","v":0}]
[null,null,">15",{"$f":"Import!M35159","v":0},null,{"$f":"Import!M35177","v":0},null,{"$f":"Import!M35195","v":0},null,{"$f":"Import!M35213","v":0},null,{"$f":"Import!M35231","v":0}]
[null,null,null,{"$f":"SUM(D31:D47)","v":0},null,{"$f":"SUM(F31:F47)","v":0},null,{"$f":"SUM(H31:H47)","v":0},null,{"$f":"SUM(J31:J47)","v":0},null,{"$f":"SUM(L31:L47)","v":0}]
[]
[]
[null,null,null,"Bermuda EBS Best Estimate Provisions ",null,"Policy Count",null,"Account Value",null,"Guarantee Value",null,"Net Amount At Risk"]
[]
[null,null,"In/Out of the Money",{"$f":"CONFIGURATION!$D$12","v":" ('000s)"},null,null,null,{"$f":"CONFIGURATION!$D$12","v":" ('000s)"},null,{"$f":"CONFIGURATION!$D$12","v":" ('000s)"},null,{"$f":"CONFIGURATION!$D$12","v":" ('000s)"}]
[null,null,"<-15%",{"$f":"Import!M35233","v":0},null,{"$f":"Import!M35239","v":0},null,{"$f":"Import!M35245","v":0},null,{"$f":"Import!M35251","v":0},null,{"$f":"Import!M35257","v":0}]
[null,null,"(-15%) - (-5%)",{"$f":"Import!M35234","v":0},null,{"$f":"Import!M35240","v":0},null,{"$f":"Import!M35246","v":0},null,{"$f":"Import!M35252","v":0},null,{"$f":"Import!M35258","v":0}]
[null,null,"(-5%) - (+5%)",{"$f":"Import!M35235","v":0},null,{"$f":"Import!M35241","v":0},null,{"$f":"Import!M35247","v":0},null,{"$f":"Import!M35253","v":0},null,{"$f":"Import!M35259","v":0}]
[null,null,"(+5%) - (+15%)",{"$f":"Import!M35236","v":0},null,{"$f":"Import!M35242","v":0},null,{"$f":"Import!M35248","v":0},null,{"$f":"Import!M35254","v":0},null,{"$f":"Import!M35260","v":0}]
[null,null,">+15%",{"$f":"Import!M35237","v":0},null,{"$f":"Import!M35243","v":0},null,{"$f":"Import!M35249","v":0},null,{"$f":"Import!M35255","v":0},null,{"$f":"Import!M35261","v":0}]
[null,null,null,{"$f":"SUM(D54:D58)","v":0},null,{"$f":"SUM(F54:F58)","v":0},null,{"$f":"SUM(H54:H58)","v":0},null,{"$f":"SUM(J54:J58)","v":0},null,{"$f":"SUM(L54:L58)","v":0}]
[]
[]
[null,null,null,"Bermuda EBS Best Estimate Provisions ",null,"Policy Count",null,"Account Value",null,"Guarantee Value",null,"Net Amount At Risk"]
[]
[null,null,"Fund Volatility",{"$f":"CONFIGURATION!$D$12","v":" ('000s)"},null,null,null,{"$f":"CONFIGURATION!$D$12","v":" ('000s)"},null,{"$f":"CONFIGURATION!$D$12","v":" ('000s)"},null,{"$f":"CONFIGURATION!$D$12","v":" ('000s)"}]
[null,null," 0-10% ",{"$f":"Import!M35263","v":0},null,{"$f":"Import!M35267","v":0},null,{"$f":"Import!M35271","v":0},null,{"$f":"Import!M35275","v":0},null,{"$f":"Import!M35279","v":0}]
[null,null," 10-20% ",{"$f":"Import!M35264","v":0},null,{"$f":"Import!M35268","v":0},null,{"$f":"Import!M35272","v":0},null,{"$f":"Import!M35276","v":0},null,{"$f":"Import!M35280","v":0}]
[null,null," 20%+ ",{"$f":"Import!M35265","v":0},null,{"$f":"Import!M35269","v":0},null,{"$f":"Import!M35273","v":0},null,{"$f":"Import!M35277","v":0},null,{"$f":"Import!M35281","v":0}]
[null,null,null,{"$f":"SUM(D65:D67)","v":0},null,{"$f":"SUM(F65:F67)","v":0},null,{"$f":"SUM(H65:H67)","v":0},null,{"$f":"SUM(J65:J67)","v":0},null,{"$f":"SUM(L65:L67)","v":0}]
[]
[]
[null,null,null,"Bermuda EBS Best Estimate Provisions",null,"Policy Count",null,"Account Value",null,"Guarantee Value",null,"Net Amount At Risk"]
[]
[null,null,"Years to Next Maturity (GMAB Only)",{"$f":"CONFIGURATION!$D$12","v":" ('000s)"},null,null,null,{"$f":"CONFIGURATION!$D$12","v":" ('000s)"},null,{"$f":"CONFIGURATION!$D$12","v":" ('000s)"},null,{"$f":"CONFIGURATION!$D$12","v":" ('000s)"}]
[null,null,0,{"$f":"Import!M35283","v":0},null,{"$f":"Import!M35295","v":0},null,{"$f":"Import!M35307","v":0},null,{"$f":"Import!M35319","v":0},null,{"$f":"Import!M35331","v":0}]
[null,null,1,{"$f":"Import!M35284","v":0},null,{"$f":"Import!M35296","v":0},null,{"$f":"Import!M35308","v":0},null,{"$f":"Import!M35320","v":0},null,{"$f":"Import!M35332","v":0}]
[null,null,2,{"$f":"Import!M35285","v":0},null,{"$f":"Import!M35297","v":0},null,{"$f":"Import!M35309","v":0},null,{"$f":"Import!M35321","v":0},null,{"$f":"Import!M35333","v":0}]
[null,null,3,{"$f":"Import!M35286","v":0},null,{"$f":"Import!M35298","v":0},null,{"$f":"Import!M35310","v":0},null,{"$f":"Import!M35322","v":0},null,{"$f":"Import!M35334","v":0}]
[null,null,4,{"$f":"Import!M35287","v":0},null,{"$f":"Import!M35299","v":0},null,{"$f":"Import!M35311","v":0},null,{"$f":"Import!M35323","v":0},null,{"$f":"Import!M35335","v":0}]
[null,null,5,{"$f":"Import!M35288","v":0},null,{"$f":"Import!M35300","v":0},null,{"$f":"Import!M35312","v":0},null,{"$f":"Import!M35324","v":0},null,{"$f":"Import!M35336","v":0}]
[null,null,6,{"$f":"Import!M35289","v":0},null,{"$f":"Import!M35301","v":0},null,{"$f":"Import!M35313","v":0},null,{"$f":"Import!M35325","v":0},null,{"$f":"Import!M35337","v":0}]
[" ",null,7,{"$f":"Import!M35290","v":0},null,{"$f":"Import!M35302","v":0},null,{"$f":"Import!M35314","v":0},null,{"$f":"Import!M35326","v":0},null,{"$f":"Import!M35338","v":0}]
[null,null,8,{"$f":"Import!M35291","v":0},null,{"$f":"Import!M35303","v":0},null,{"$f":"Import!M35315","v":0},null,{"$f":"Import!M35327","v":0},null,{"$f":"Import!M35339","v":0}]
[null,null,9,{"$f":"Import!M35292","v":0},null,{"$f":"Import!M35304","v":0},null,{"$f":"Import!M35316","v":0},null,{"$f":"Import!M35328","v":0},null,{"$f":"Import!M35340","v":0}]
[null,null,">10",{"$f":"Import!M35293","v":0},null,{"$f":"Import!M35305","v":0},null,{"$f":"Import!M35317","v":0},null,{"$f":"Import!M35329","v":0},null,{"$f":"Import!M35341","v":0}]
[null,null,null,{"$f":"SUM(D74:D84)","v":0},null,{"$f":"SUM(F74:F84)","v":0},null,{"$f":"SUM(H74:H84)","v":0},null,{"$f":"SUM(J74:J84)","v":0},null,{"$f":"SUM(L74:L84)","v":0}]
[]
[]
[null,"Notes"]
[null,"1.  Factors should be applied to Net Amount at Risk (NAR) defined as:"]
[null,null,"GMAB","Total claim payable if all contracts mature immediately"]
[null,null,"GMDB","Total claim amount payable upon immediate death of all policyholders"]
[null,null,"GMIB","Total claim payable upon full and immediate annuitisation of all policies using an 80% factor applied to the GV (the 80% represents the ratio between current market annuitisation factors and the guaranteed annuitisation factors)"]
[null,null,"GMWB","Total claim payable if 100% of the guaranteed withdrawal benefit base in excess of the current account value is withdrawn immediately"]
[null,null,"GEEB","Total guaranteed enhanced payments upon immediate death of all policyholders"]
[]
[null,"2. Where ratchets, resets and roll-ups exist, please use the roll-up category."]
[]
[null,"3.  NAR is net of reinsurance."]
[]
[null,"4.  The proportion used for the account value under reinsurance is the proportion used for NAR."]
[]
[null,"5.  Volatility is defined as the annual volatility of the fund.  In the case where there is no, or limited, history of the fund, use the volatility of the benchmark."]
[]
[null,"6 Bermuda EBS best estimate provisions are to be calculated in accordance with Economic Balance Sheet valuation principals under Schedule XIV\n"]

{"sheet":"Schedule IX(a)","index":66,"n_rows":125,"n_cols":7,"rows_kept":125,"cut":false,"hidden":false,"merged":[[84,1,84,6],[80,1,80,6],[76,1,76,6],[0,1,0,5],[108,1,108,3],[20,1,20,3],[33,1,33,6],[35,1,35,6],[39,1,39,6],[1,1,1,2]]}
[null,"SCHEDULE OF COMMERCIAL INSURER'S SOLVENCY SELF ASSESSMENT (CISSA)\nCAPITAL SUMMARY (TABLE 8)",null,null,null,null,{"$f":"HYPERLINK(\"#'Index'!A1\",\"Return to Index\")","v":"Return to Index"}]
[null,{"$f":"+'Insurer Information'!C7","v":"Enter Company Name"}]
[null,{"$f":" TEXT('Insurer Information'!C3,\"D MMMM YYYY\")","v":"31 December 2023"},null,null,null,null,"SCHEDULE IX(a)"]
[null,"expressed in ",null,{"$f":"IF(CONFIGURATION!$B$12>1,\" ['\"&MID(CONFIGURATION!$B$12,2,LEN(CONFIGURATION!$B$12))&\"s]\",\"\") &\" (currency used (vide Reg. 10(2))\"","v":" ['000s] (currency used (vide Reg. 10(2))"}]
[]
[null,"Note: Documents supporting the CISSA filing should be retained for such period as specified in the [Rules]"]
[]
[null,"Risk Categories",null,null,"CISSA Capital",null,"Regulatory Capital"]
[]
[null,{"$f":"IF('Insurer Information'!$F$9=\"Class C\",\"Insurance risk\",\"Insurance risk - mortality\")","v":"Insurance risk"},null,null,{"$f":"Import!M35344","v":0},null,{"$f":"IF('Insurer Information'!$F$9=\"Class C\",'CSP (Revised)'!L725+'CSP (Revised)'!L726+'CSP (Revised)'!L727+'CSP (Revised)'!L728+'CSP (Revised)'!L729+'CSP (Revised)'!L730+'CSP (Revised)'!L731,'CSP (Revised)'!L725)","v":0}]
[null,"Insurance risk - longevity",null,null,{"$f":"Import!M35345","v":0},null,{"$f":"IF('Insurer Information'!$F$9=\"Class C\",0,'CSP (Revised)'!L729)","v":0}]
[null,"Insurance risk - morbidity",null,null,{"$f":"Import!M35346","v":0},null,{"$f":"IF('Insurer Information'!$F$9=\"Class C\",0,'CSP (Revised)'!L728)","v":0}]
[null,"Insurance risk - variable annuity guarantees",null,null,{"$f":"Import!M35347","v":0},null,{"$f":"IF('Insurer Information'!$F$9=\"Class C\",0,'CSP (Revised)'!L730)","v":0}]
[null,"Insurance risk - other",null,null,{"$f":"Import!M35348","v":0},null,{"$f":"IF('Insurer Information'!$F$9=\"Class C\",0,'CSP (Revised)'!L731)","v":0}]
[null,"Insurance risk - stop loss",null,null,{"$f":"Import!M35349","v":0},null,{"$f":"IF('Insurer Information'!$F$9=\"Class C\",0,'CSP (Revised)'!L726)","v":0}]
[null,"Insurance risk - rider",null,null,{"$f":"Import!M35350","v":0},null,{"$f":"IF('Insurer Information'!$F$9=\"Class C\",0,'CSP (Revised)'!L727)","v":0}]
[null,"Market risk",null,null,{"$f":"Import!M35351","v":0},null,{"$f":"'CSP (Revised)'!K719+'CSP (Revised)'!K720+'CSP (Revised)'!K722","v":0}]
[null,"Credit risk",null,null,{"$f":"Import!M35352","v":0},null,{"$f":"'CSP (Revised)'!L724","v":0}]
[null,"Interest Rate and Liquidity risk",null,null,{"$f":"Import!M35353","v":0},null,{"$f":"'CSP (Revised)'!K721","v":0}]
[null,"Group, Concentration, Reputational and Strategic risk",null,null,{"$f":"Import!M35354","v":0},null,{"$f":"'CSP (Revised)'!K723","v":0}]
[null,"Other (specify)",null,null,{"$f":"Import!M35355","v":0},null,0]
[]
[null,"Total capital pre-diversification between risk categories",null,null,{"$f":"SUM(E10:E21)","v":0},null,{"$f":"SUM(G10:G21)","v":0}]
[]
[null,"Diversification credit between risk categories",null,null,{"$f":"Import!M35357","v":0},null,{"$f":"G23-G27","v":0}]
[]
[null,"Total capital after diversification before operational risk ",null,null,{"$f":"E23-E25","v":0},null,{"$f":"Summary!N74-Summary!N64","v":0}]
[]
[null,"Operational risk",null,null,{"$f":"Import!M35359","v":0},null,{"$f":"'CSP (Revised)'!L739","v":0}]
[]
[null,"Total capital after diversification and opertional risk",null,null,{"$f":"E27+E29","v":0},null,{"$f":"G27+G29","v":0}]
[]
[null,"Where:"]
["a)","CISSA Capital is the amount of capital the insurer has determined, that is required to achieve its strategic goals upon undertaking an assessment of all material (reasonably foreseeable) risks arising from its operations or operational environment."]
[]
["b)","Regulatory capital as determined by the Bermuda Solvency Capital Requirement (\"BSCR\") as described in the Insurance Prudential Standards (Class D and Class E Solvency Requirement) Order or regulatory capital determined from an approved internal model for regulatory purposes at 99% TVaR."]
[]
[null,"ADDITIONAL INFORMATION"]
[]
[null,"The insurer should review the following statements and select from the drop-down list as applicable and/or provide a brief description or an attachment.  Where an attachment is provided, include references (e.g. page number, paragraph number) of where the information is located in the comments box in the attachments tab."]
[]
[1,"What is the primary reason(s) (select multiple responses where applicable) for aiming at the disclosed CISSA Capital amount? (select all that apply by choosing Yes/No )"]
[]
[null,{"$f":"Import!E35361","v":"Select Yes/No"}," Target agency rating (e.g. \"A-\", \"AA\", etc) "]
[null,{"$f":"Import!E35362","v":"Select Yes/No"}," Market share "]
[null,{"$f":"Import!E35363","v":"Select Yes/No"}," Business expansion "]
[null,{"$f":"Import!E35364","v":"Select Yes/No"}," Nature of product(s) (e.g. risk characteristics) "]
[null,{"$f":"Import!E35365","v":"Select Yes/No"}," Manage downgrade risk"]
[null,{"$f":"Import!E35366","v":"Select Yes/No"}," Regulatory capital requirements"]
[null,{"$f":"Import!E35367","v":"Select Yes/No"}," Others ","(Briefly Describe)"]
[]
[2,"What methodology is used to aggregate the risk categories? (select all that apply by choosing Yes/No)"]
[]
[null,{"$f":"Import!E35368","v":"Select Yes/No"}," Correlation matrix"]
[null,{"$f":"Import!E35369","v":"Select Yes/No"}," Linear correlations"]
[null,{"$f":"Import!E35370","v":"Select Yes/No"}," T copulas"]
[null,{"$f":"Import!E35371","v":"Select Yes/No"}," Gumbel copulas"]
[null,{"$f":"Import!E35372","v":"Select Yes/No"}," Clayton copulas"]
[null,{"$f":"Import!E35373","v":"Select Yes/No"}," Causal drivers approach e.g. inflation, cycles"]
[null,{"$f":"Import!E35374","v":"Select Yes/No"}," Others","(Briefly Describe)"]
[]
[3,"What contingency plans are in place for raising additional capital under stress situations?  (select all that apply by choosing Yes/No)"]
[]
[null,{"$f":"Import!E35375","v":"Select Yes/No"}," Parental guarantees"]
[null,{"$f":"Import!E35376","v":"Select Yes/No"}," Revolving letters of credit"]
[null,{"$f":"Import!E35377","v":"Select Yes/No"}," Issue subordinated debt"]
[null,{"$f":"Import!E35378","v":"Select Yes/No"}," Issue preference shares"]
[null,{"$f":"Import!E35379","v":"Select Yes/No"}," Float additional shares"]
[null,{"$f":"Import!E35380","v":"Select Yes/No"}," Capital injections from parent"]
[null,{"$f":"Import!E35381","v":"Select Yes/No"}," Contingent surplus notes"]
[null,{"$f":"Import!E35382","v":"Select Yes/No"}," Catastrophe derivatives (e.g. bonds, swaps and options)"]
[null,{"$f":"Import!E35383","v":"Select Yes/No"},"Others ","(Briefly Describe)"]
[]
[4,"Does the insurer have arrangements / contractual commitments to provide support, including forward purchase arrangements or guarantees, to affiliates/other ",null,null,null,null,{"$f":"Import!E35384","v":"Select Yes/No"}]
[null,"companies in stressed situations? (Yes or No)"]
[null,"If yes, briefly describe the arrangement(s) and the aggregate exposure."]
[null,{"$f":"Import!E35385","v":0}]
[]
[5,"Has the insurer down streamed debt to establish equity positions (participations), or engaged in double or multiple gearing? (Yes or No)",null,null,null,null,{"$f":"Import!E35386","v":"Select Yes/No"}]
[null,"If yes, provide details and amount of capital."]
[null,{"$f":"Import!E35387","v":0}]
[]
[6,"Has debt been down streamed to establish equity positions in the insurer, or is the insurer using capital that is double or multiple geared? (Yes or No)",null,null,null,null,{"$f":"Import!E35388","v":"Select Yes/No"}]
[null,"If yes, provide details and amount of capital."]
[null,{"$f":"Import!E35389","v":0}]
[]
[7,"Are there any assets of a subsidiary of the insurer that are restricted for use that cannot be transferred to another subsidiary or the insurer, that were not included in ",null,null,null,null,{"$f":"Import!E35390","v":"Select Yes/No"}]
[null,"the encumbered assets (for both policyholders obligations and not policyholder obligations) reported in the Schedule of Eligible Capital? (Yes or No)"]
[null,{"$f":"HYPERLINK(\"#'Attachments'!G1\",\"Provide details in the CISSA Attachments section if there are any restrictions of movement of assets/payment of dividends\")","v":"Provide details in the CISSA Attachments section if there are any restrictions of movement of assets/payment of dividends"}]
[null,null,null,null,null,"Total restricted assets",{"$f":"Import!E35391","v":0}]
[null,null,null,null,null,"Less: Regulatory capital requirements for members for which the assets pertain",{"$f":"Import!E35392","v":0}]
[null,null,null,null,null,"Restricted assets in excess of capital requirements to the extent that these amounts are not "]
[null,null,null,null,null,"included in the encumbered assets reported in the Schedule of Eligible Capital",{"$f":"G90-G91","v":0}]
[]
[]
[null,null,null,null,"Contingency plans for additional capital"]
[]
[null,null,null,null,"Parental guarantees"]
[null,null,null,null,"revolving letters of credit"]
[null,null,null,null,"Contingent capital arrangements"]
[null,null,null,null,"Issue subordinated debt"]
[null,null,null,null,"Issue preference shares"]
[null,null,null,null,"Float additional shares"]
[null,null,null,null,"Capital injections from parent"]
[]
[]
[null,null,null,null,"Correlation matrix "]
[null,null,null,null,"Linear correlations"]
[null,null,null,null,"T copulas"]
[null,null,null,null,"Gumbel copulas"]
[null,null,null,null,"Clayton copulas"]
[null,null,null,null,"Causal drivers approach e.g. inflation, cycles"]
[null,null,null,null,"Other"]
[]
[]
[null,null,null,null,"Not applicable"]
[]
[]
[]
[]
[]
[]
[]
[null,null,null,null,"Yes"]
[null,null,null,null,"No"]

{"sheet":"Schedule IX(b)","index":67,"n_rows":70,"n_cols":6,"rows_kept":70,"cut":false,"hidden":false,"merged":[[38,1,38,5],[32,1,32,3],[16,1,16,4],[17,1,17,4],[18,1,18,4],[30,1,30,4],[19,1,19,4],[20,1,20,4],[21,1,21,4],[25,1,25,4],[34,1,34,4],[28,1,28,4],[0,1,0,4],[26,1,26,4],[10,1,10,4],[11,1,11,4],[4,1,4,5],[12,1,12,4],[13,1,13,4],[14,1,14,4],[15,1,15,4],[6,1,6,4],[22,1,22,4],[23,1,23,4],[24,1,24,4]]}
[null,"SCHEDULE OF COMMERCIAL INSURER'S SOLVENCY SELF ASSESSMENT (CISSA) GENERAL QUESTIONS (TABLE 8A)",null,null,null,{"$f":"HYPERLINK(\"#'Index'!A1\",\"Return to Index\")","v":"Return to Index"}]
[null,{"$f":"'Insurer Information'!C7","v":"Enter Company Name"}]
[null,{"$f":" TEXT('Insurer Information'!C3,\"D MMMM YYYY\")","v":"31 December 2023"},null,null,null,"SCHEDULE IX(b)"]
[]
[null,"The insurer should review the following statements and select from the drop-down list as applicable and/or provide a brief description or an attachment. Where an attachment is provided, include references (e.g. page number, paragraph number) of where the information is located in the comments box in the attachments tab."]
[]
[1,"Is the CISSA and its underlying information integrated (i.e. considered when making key strategic decisions) into the insurer's strategic and risk management decision-making processes? (Yes or No)",null,null,null,{"$f":"Import!E35395","v":"Select Yes/No"}]
[]
[null,"If Yes, how is the CISSA and its underlying information used? (select all that apply by choosing Yes/No )"]
[]
[null,"Strategic planning",null,null,null,{"$f":"Import!E35396","v":"Select Yes/No"}]
[null,"Annual business planning",null,null,null,{"$f":"Import!E35397","v":"Select Yes/No"}]
[null,"Setting risk limits",null,null,null,{"$f":"Import!E35398","v":"Select Yes/No"}]
[null,"Defining risk appetite",null,null,null,{"$f":"Import!E35399","v":"Select Yes/No"}]
[null,"Evaluation of capital adequacy",null,null,null,{"$f":"Import!E35400","v":"Select Yes/No"}]
[null,"Allocation of capital to business segments and lines of business",null,null,null,{"$f":"Import!E35401","v":"Select Yes/No"}]
[null,"Capital management",null,null,null,{"$f":"Import!E35402","v":"Select Yes/No"}]
[null,"Determination of rates of return for pricing and underwriting guidelines",null,null,null,{"$f":"Import!E35403","v":"Select Yes/No"}]
[null,"Reinsurance purchase",null,null,null,{"$f":"Import!E35404","v":"Select Yes/No"}]
[null,"Determination of investment policies and strategies",null,null,null,{"$f":"Import!E35405","v":"Select Yes/No"}]
[null,"Meeting regulatory requirements",null,null,null,{"$f":"Import!E35406","v":"Select Yes/No"}]
[null,"Improving credit rating",null,null,null,{"$f":"Import!E35407","v":"Select Yes/No"}]
[null,"Improving investor relations",null,null,null,{"$f":"Import!E35408","v":"Select Yes/No"}]
[null,"Assessing risk-adjusted product profitability",null,null,null,{"$f":"Import!E35409","v":"Select Yes/No"}]
[null,"Performance measurement and assessment",null,null,null,{"$f":"Import!E35410","v":"Select Yes/No"}]
[null,"Improving merger and acquisition decisions",null,null,null,{"$f":"Import!E35411","v":"Select Yes/No"}]
[null,"Others",null,null,null,{"$f":"Import!E35412","v":"Select Yes/No"}]
[]
[2,"Has the insurer applied reverse stress testing to identify both the scenarios that could cause business failure and the required actions to manage such situations? (Yes or No)",null,null,null,{"$f":"Import!E35414","v":"Select Yes/No"}]
[]
[3,"Is the CISSA process clearly documented and regularly amended for changes in strategic direction, risk management framework, and market developments? (Yes or No)",null,null,null,{"$f":"Import!E35415","v":"Select Yes/No"}]
[]
[4,"How often is the information underlying CISSA discussed and reviewed by the Board and chief and senior executives?",null,null,null,{"$f":"Import!E35416","v":"Select"}]
[]
[5,"Has the Board of Directors and chief and senior executives ensured that an appropriate oversight process is in place, including an appropriate level of independent verification, whereby material deficiencies are reported on a timely basis and suitable actions taken? (Yes or No)",null,null,null,{"$f":"Import!E35417","v":"Select Yes/No"}]
[]
[null,"Optionally, the insurer may provide brief comments."]
[]
[null,{"$f":"Import!E35418","v":0}]
[]
[]
[]
[]
[]
[]
[]
[]
[]
[]
[]
[null,null,null,null,"Select Yes/No"]
[null,null,null,null,"Yes"]
[null,null,null,null,"No"]
[null,null,null,null,"Select"]
[null,null,null,null,"Annually"]
[null,null,null,null,"Semi-annually"]
[null,null,null,null,"Quarterly"]
[null,null,null,null,"Monthly"]
[null,null,null,null,"Bi-monthly"]
[null,null,null,null,"Ad-hoc"]
[null,null,null,null,"Other"]
[null,null,null,null,"Select"]
[null,null,null,null,"Strong"]
[null,null,null,null,"Moderate"]
[null,null,null,null,"Weak"]
[]
[null,null,null,null,"Select"]
[null,null,null,null,"Fully documented"]
[null,null,null,null,"Partially documented"]
[null,null,null,null,"Other"]

{"sheet":"Schedule IX(c)","index":68,"n_rows":155,"n_cols":8,"rows_kept":155,"cut":false,"hidden":false,"merged":[[78,1,78,3],[79,1,79,3],[80,1,80,3],[81,4,81,5],[80,4,80,5],[81,1,81,3],[0,1,0,4],[64,13,64,15],[65,13,65,15],[4,1,5,5],[61,1,61,5],[63,1,63,4],[7,2,8,5],[59,2,59,5],[19,1,19,5],[11,1,11,5],[13,1,13,5],[27,1,27,5],[29,1,29,5],[65,1,65,3],[33,1,33,5],[57,2,57,5],[75,1,75,3],[76,1,76,3],[77,1,77,3],[71,1,71,3],[72,1,72,3],[73,1,73,3],[74,1,74,3],[69,1,69,3],[66,1,66,3],[67,1,67,3],[68,1,68,3],[70,1,70,3]]}
[null,"SCHEDULE OF COMMERCIAL INSURER'S SOLVENCY SELF ASSESSMENT (CISSA) ASSESSMENT OF MATERIAL RISKS OF THE COMPANY (TABLE 13B)",null,null,null,null,null,{"$f":"HYPERLINK(\"#'Index'!A1\",\"Return to Index\")","v":"Return to Index"}]
[null,{"$f":"'Insurer Information'!C7","v":"Enter Company Name"}]
[null,{"$f":" TEXT('Insurer Information'!C3,\"D MMMM YYYY\")","v":"31 December 2023"},null,null,null,null,null,"SCHEDULE IX(c)"]
[]
[null,"The board must review policies, processes, and procedures to assess its material risks and self-determine the capital requirement it would need to support its insurance undertaking, at least annually. Minimally, the assessment should:"]
[]
[null,"•","Be an integral part of the insurer's risk management framework"]
[null,"•","Be clearly documented, reviewed, and evaluated regularly by the board and the chief and senior executives to ensure continual advancement in light of changes in the strategic direction, risk management framework, and market developments; and"]
[]
[null,"•","Ensure an appropriate oversight process whereby material deficiencies are reported on a timely basis and suitable actions taken."]
[]
[null,"The insurer must undertake and file with the Authority an assessment of the insurer’s most recent report (\"insurer-specific report\") comprising a solvency self-assessment of the insurer's material risks and the determination of both the quality (types of capital) and quantity of CISSA Capital required to cover these risks, while remaining solvent and achieving the insurer’s business goals.",null,null,null,null,"Doc. No","Page. No"]
[]
[null,"Minimally, the assessment should include:"]
[]
[1,"The date the assessment was completed."]
[]
[2,"A description of the insurer’s business and strategy."]
[]
[3,"The identification and assessment of all reasonably foreseeable material risks, (i.e. insurance underwriting risk; investment, liquidity and concentration risk; market risk; operational risk; strategic risk; reputational risk and legal risk)."]
[]
[4,"The identification of the relationships of the material risks with one another, and the quantity and type of capital required to cover the risks."]
[]
[5,"A description of the insurer's risk appetite, including limits imposed and how they are enforced."]
[]
[6,"Assumptions and methodology used to assess and aggregate risks."]
[]
[7,"A forward looking analysis of the risks faced by the insurer over its planning horizon and an analysis demonstrating the ability to manage its business and capital needs in adverse circumstances and still meet regulatory capital requirements."]
[]
[8,"An evaluation of whether the insurer has sufficient capital and liquidity available, including an assessment of whether capital is fungible and assets are transferrable, to achieve its strategic goals over its planning horizon and any potential adverse consequences if insufficient."]
[]
[9,"A description of business continuity and disaster plans."]
[]
[10,"A description of how the results of the self-assessment are integrated into the management and strategic decision making process."]
[]
[11,"The risk measure, time horizon and confidence level (if any) used to determine the CISSA capital."]
[]
[12,"Approval and signed declaration of the CISSA assessment by two members of the Board of directors."]
[]
[11,{"$f":"IF('Insurer Information'!$F$9=\"Class C\",\"The risk measure, time horizon and confidence level (if any) used to determine the CISSA capital.\",\"For each material risk identified the submission should minimally include:\")","v":"The risk measure, time horizon and confidence level (if any) used to determine the CISSA capital."}]
[]
[null,"a)","Identification of the risk owner, qualifications and responsibilities;"]
[]
[null,"b) ","The risk drivers (e.g. for catastrophe risk the drivers could be epidemic, medical advancements, etc.);"]
[]
[null,"c)","The primary model(s)/tool(s) used to calculate the CISSA Capital for the risk, where applicable;"]
[]
[null,"d) ","The primary sources of data used as inputs to the model(s)/tool(s);"]
[]
[null,"e)","The key assumptions used in the assessment of the risk;"]
[]
[null,"f)","A description and quantitative impact of stress and scenarios test on capital (if any) including key assumptions;"]
[]
[null,"g)","A description of measures taken to transfer or otherwise mitigate the risk;"]
[]
[null,"h)","Quantification of the risk if the insurer is holding capital against it both pre- and post- diversification; and"]
[]
[null,"i)","An explanation of the primary reasons for any material deviations between the CISSA capital as it pertains to the risk and the associated capital (if holding capital against the risk) and the regulatory capital charge for the risk, the deviation is greater than 15%."]
[]
[null,null,"Where attachments are submitted, include references (e.g page number, paragraph number) of where the information is located within the attachment."]
[]
[null,"The insurer shall review the following statements and select from the drop-down list as applicable and/or provide a brief description or an attachment. Where the insurer provides an attachment, include references(e.g. page number, paragraph number) of where the information is located within the attachment."]
[]
[12,"Model(s)/tool(s) used to calculate the CISSA capital "]
[]
[null,"Governance",null,null,"Select","Comments"]
["a)","Does the Board of Directors, chief and senior executives approve the design, maintenance and use of the model(s)/tool(s)?",null,null,{"$f":"Import!E35420","v":"Select Yes/No"},{"$f":"Import!E35431","v":0}]
["b)","How often does the Board or relevant Board committees review outputs, changes and issues arising from the model(s)/tool(s) (review should be documented  e.g.  minutes, presentations etc)?",null,null,{"$f":"Import!E35421","v":"Select"},{"$f":"Import!E35432","v":0}]
["c)","Does the Board and chief and senior executives have a  general understanding of the key assumptions/elements and the implications of the outputs (including limitations) of the model(s)/tool(s)?",null,null,{"$f":"Import!E35422","v":"Select Yes/No"},{"$f":"Import!E35433","v":0}]
[null,"Validation",null,null,"Select","Comments"]
["d)","Is the model(s)/tool(s) subject to a regular cycle of validation, which includes the monitoring of performance, reviewing appropriateness of model specifications and testing of forecast results against actual results?",null,null,{"$f":"Import!E35423","v":"Select Yes/No"},{"$f":"Import!E35434","v":0}]
["e)","How often is the validation of the model(s)/tool(s) performed?",null,null,{"$f":"Import!E35424","v":"Select"},{"$f":"Import!E35435","v":0}]
["f)","Does the validation process demonstrate that the model(s)/tool(s) remains suitable during changing conditions (e.g. changes in inflation, interest rate, etc)? If no, provide comments.",null,null,{"$f":"Import!E35425","v":"Select Yes/No"},{"$f":"Import!E35436","v":0}]
[null,"Documentation",null,null,"Select","Comments"]
["g)","Does the insurer have formal documentation of the structure, design, operational details, input assumptions, parameters, governance process and controls of the model(s)/tool(s)?",null,null,{"$f":"Import!E35426","v":"Select Yes/No"},{"$f":"Import!E35437","v":0}]
["h)","If yes, to what extent is the model(s)/tool(s) documented such that it can be used by new personnel with limited user experience? (include comments for partial or no documentations)",null,null,{"$f":"Import!E35427","v":"Select"},{"$f":"Import!E35438","v":0}]
["i)","How often does the Board of Directors or chief and senior executives review and approve the model/input documentation?",null,null,{"$f":"Import!E35428","v":"Select"},{"$f":"Import!E35439","v":0}]
[null,"Internal controls",null,null,"Select","Comments"]
["j)","How does the insurer rate the effectiveness of the controls in place to monitor and evaluate the operation and maintenance of the model(s)/tool(s)?",null,null,{"$f":"Import!E35429","v":"Select"},{"$f":"Import!E35440","v":0}]
["k)","Are there strict protocols in place restricting access to the model(s)/tool(s) and ability to make adjustments thereto?",null,null,{"$f":"Import!E35430","v":"Select Yes/No"},{"$f":"Import!E35441","v":0}]
[null,"Others",null,null,"List"]
["l)","What is the risk measure (VaR,TVaR etc), confidence interval (95%, 99.95% etc)  and time horizon (1 year, 3 years etc) used to derive CISSA capital?",null,null,{"$f":"Import!E35442","v":0}]
[]
[]
[]
[]
[]
[]
[]
[]
[]
[null,null,null,null,"Select Yes/No"]
[null,null,null,null,"Yes"]
[null,null,null,null,"No"]
[null,null,null,null,"Select"]
[null,null,null,null,"Annually"]
[null,null,null,null,"Semi-annually"]
[null,null,null,null,"Quarterly"]
[null,null,null,null,"Monthly"]
[null,null,null,null,"Bi-monthly"]
[null,null,null,null,"Ad-hoc"]
[null,null,null,null,"Other"]
[null,null,null,null,"Select"]
[null,null,null,null,"Strong"]
[null,null,null,null,"Moderate"]
[null,null,null,null,"Weak"]
[]
[null,null,null,null,"Select"]
[null,null,null,null,"Fully documented"]
[null,null,null,null,"Partially documented"]
[null,null,null,null,"Other"]
[]
[]
[]
[]
[]
[]
[]
[]
[]
[]
[]
[]
[]
[]
[]
[]
[]
[]
[]
[]
[]
[]
[]
[]
[]
[]
[]
[]
[]
[]
[]
[]
[]
[]
[]
[]
[]
[]
[]
[]
[]
[null,null,null,null,null,"No"]
[null,null,null,null,null,"Yes"]
[null,null,null,null,null,"N/A"]

{"sheet":"Schedule XII(a)","index":69,"n_rows":127,"n_cols":12,"rows_kept":127,"cut":false,"hidden":false,"merged":[[84,8,84,9],[16,4,16,7],[38,3,38,7],[39,3,39,7],[51,2,52,7],[59,4,59,6]]}
[null,"SCHEDULE OF ELIGIBLE CAPITAL",null,null,null,null,null,null,null,{"$f":"HYPERLINK(\"#'Index'!A1\",\"Return to Index\")","v":"Return to Index"}]
[null,{"$f":"'Insurer Information'!C7","v":"Enter Company Name"}]
[null,"For the year ending",null,null,{"$f":" TEXT('Insurer Information'!C3,\"D MMMM YYYY\")","v":"31 December 2023"},null,null,null,null,"SCHEDULE XII(a) (EBS)"]
[null,{"$f":"\"expressed in\"& IF(CONFIGURATION!$B$12>1,\" ['\"&MID(CONFIGURATION!$B$12,2,LEN(CONFIGURATION!$B$12))&\"s]\",\"\")","v":"expressed in ['000s]"},null,null,{"$f":"'Form 4EBS'!C4","v":"United States Dollars"}]
[]
[null,"Total statutory economic capital and surplus (Form 4EBS, line 40 plus applicable adjustments)",null,null,null,null,null,null,null,{"$f":"+Summary!N86","v":0}]
[null," ","Less: Encumbered assets not securing policyholder obligations (Notes to Form 4EBS, STMT Line 15) - Note 1",null,null,null,null,null,{"$f":"+'Form 4EBS'!F220","v":0}]
[null,null,"            Less: relative liability or contingent liability (included on Form 4EBS) for which the encumbered assets are held ",null,null,null,null,null,{"$f":"Import!M35444","v":0},{"$f":"MAX(0,I7-I8)","v":0}]
[null,null,"Subtotal:",null,null,null,null,null,null,{"$f":"J6-J8","v":0}]
[]
[null,"TIER 1 BASIC CAPITAL"]
[null," ","(a) Fully paid common shares (Form 8SFS/8ASFS, STMT LINE 1(a)(i))",null,null,null,null,null,null,{"$f":"IF('Insurer Information'!$C$2=\"IFRS\",'Form 8ASFS'!O12,\nIF('Form 8SFS'!O12=0,('Form 8SFS'!G11+'Form 8SFS'!K11),'Form 8SFS'!O12))","v":0}]
[null," ","(b) Contributed surplus or share premium (Form 8SFS/8ASFS, STMT LINE 1(b))",null,null,null,null,null,null,{"$f":"IF('Insurer Information'!$C$2=\"IFRS\",'Form 8ASFS'!O29,\nIF('Form 8SFS'!O29=0,('Form 8SFS'!G29+'Form 8SFS'!K29),'Form 8SFS'!O29))","v":0}]
[null," ","(c) Statutory economic surplus – End of Year (Form 4EBS, line 40 less Form 8SFS/8ASFS, line 1(d))",null,null,null,null,null,null,{"$f":"IF('Insurer Information'!$C$2=\"IFRS\",'Form 4EBS'!F184-'Form 8ASFS'!O36,\nIF(SUM('Form 1SFS'!$F$100,'Form 1SFS'!$H$100)=0,'Form 4EBS'!F184-'Form 8SFS'!K36,'Form 4EBS'!F184-'Form 8SFS'!O36))","v":0}]
[null,null,"(d) Capital adjustments",null,null,null,null,null,null,{"$f":"Import!M35446","v":0}]
[null,null,"(e) Hybrid capital instruments: Perpetual or fixed term preference shares (Form 8SFS/8ASFS, STMT LINE 1a(ii))",null,null,null,null,null,null,{"$f":"Import!M35447","v":0}]
[null,null,"(f) Other:",null,null,null,null,null,null,{"$f":"Import!M35448","v":0}]
[null,null,"(g) Less: Treasury shares (Form 8SFS/8ASFS, STMT LINE 1(a)(iii))",null,null,null,null,null,null,{"$f":"IF('Insurer Information'!$C$2=\"IFRS\",'Form 8ASFS'!O25,'Form 8SFS'!O25)","v":0}]
[null,null,"(h) Less: Difference between encumbered assets for policyholder obligations and policyholder obligations, calculated as follows:"]
[]
[null,null,null,null,null,null,"(A)","(B)"]
[null,null,null,null,null,null,"Policyholder","Encumbered"]
[null,null,null,null,null,null,"obligations","(pledged) assets"]
[null,null,"(i)","Contracts where pledged assets exceed the policyholder obligations",null,null,{"$f":"Import!M35449","v":0},{"$f":"Import!M35454","v":0}]
[null,null,"(ii)","Contracts where pledged assets are equal to the policyholder obligations",null,null,{"$f":"Import!M35450","v":0},{"$f":"Import!M35455","v":0}]
[null,null,"(iii)","Contracts where pledged assets are less than the policyholder obligations",null,null,{"$f":"Import!M35451","v":0},{"$f":"Import!M35456","v":0}]
[null,null,"(iv)","Contracts where policyholder obligations are not collateralized",null,null,{"$f":"Import!M35452","v":0}]
[null,null,"(v)","Total",null,null,{"$f":"SUM(G24:G27)","v":0},{"$f":"SUM(H24:H27)","v":0}]
[]
[null,null,null,"Form 4EBS Line 27(a) for policyholder obligations",null,null,null,{"$f":"+'Form 4EBS'!F115","v":0}]
[]
[null,null,null,"Difference",null,null,null,{"$f":"ROUND(H30-G28,0)","v":0}]
[]
[null,null,null,"Notes to Form 4EBS Line 15 encumbered assets for policyholder obligations",null,null,null,{"$f":"'Form 4EBS'!F211","v":0}]
[]
[null,null,null,"Difference",null,null,null,{"$f":"ROUND(H34-H28,0)","v":0}]
[]
[null,null,"(vi)","Excess encumbered assets i.e. Contracts where pledged assets exceed the policyholder obligations ((B)(i)-(A)(i))",null,null,null,null,{"$f":"H24-G24","v":0},null,null,{"$f":"H24-G24","v":0}]
[null,null,"(vii)","Capital requirement applicable to the encumbered assets under (i) above (equal to the contribution of the pledged assets to the ECR)",null,null,null,null,{"$f":"Import!M35458","v":0},null,null,{"$f":"IF(J89=0,0,I39*J88/J89)","v":0}]
[null,null,"(viii)","Capital requirement applicable to the policyholder obligations under (i) above (equal to the contribution of the policyholder obligations to the ECR)",null,null,null,null,{"$f":"Import!M35459","v":0},null,null,{"$f":"IF(J89=0,0,I40*J88/J89)","v":0}]
[null,null,"(ix)"," Excess encumbered assets transferrable to Tier 2 ((vi) - (vii) - (viii))",null,null,null,null,{"$f":"MAX(0,(I38-I39-I40))","v":0},null,null,{"$f":"MAX(0,(L38-L39-L40))","v":0}]
[]
[null,null,"(x)","Policyholder obligations that are fully collateralized ((A)(i) + (A)(ii) + (B)(iii))",null,null,null,null,{"$f":"G24+G25+H26","v":0},null,null,{"$f":"G24+G25+H26","v":0}]
[null,null,"(xi)","Total Policyholder obligations ((A)(v))",null,null,null,null,{"$f":"G28","v":0},null,null,{"$f":"G28","v":0}]
[]
[null,null,"(xii)","Proportion of policyholder obligations that are NOT collateralized (1-(x)/(xi))",null,null,null,null,{"$f":"IF(I44=0,0,1-I43/I44)","v":0},null,null,{"$f":"IF(L44=0,0,1-L43/L44)","v":0}]
[]
[null,null,"(xiii)","Excess encumbered assets transferred to Tier 2 ((ix) x (xii))",null,null,null,null,null,{"$f":"(I41*I46)+'Schedule IX(a)'!G93","v":0},null,{"$f":"L46*L41","v":0}]
[]
[null,null,"(i) Encumbered assets not securing policyholder obligations (Notes to Form 4EBS, STMT LINE 15)"]
[null,null,"    Less: relative liability or contingent liability (Form 4EBS) for which the encumbered assets are held ",null,null,null,null,null,null,{"$f":"J8","v":0}]
[null,null,"(j) Less: Restricted assets in excess of capital requirements, reported in CISSA, to the extent that these amounts are not included in the encumbered assets for policyholder obligations and not for securing policyholder obligations"]
[null,null,null,null,null,null,null,null,null,{"$f":"Import!M35460","v":0}]
[null,"TIER 1 ANCILLARY CAPITAL"]
[null,null,"Perpetual or fixed term subordinated debt (Form 8, STMT LINE 1(c)(i))",null,null,null,null,null,null,{"$f":"Import!M35461","v":0}]
[null,"TOTAL TIER 1 AVAILABLE CAPITAL",null,null,null,null,null,null,null,{"$f":"J12+J13+J14+J15+J16+J17-J18-J48-J51-J53+J55","v":0}," ",{"$f":"J12+J13+J14+J15+J16+J17-J18-L48-J51-J53+J55","v":0}]
[]
[null,"TIER 2 BASIC CAPITAL"]
[null,null,"(a) Hybrid capital instruments: Perpetual or fixed term preference shares (Form 8, STMT LINE 1(a)(ii))",null,null,null,null,null,null,{"$f":"Import!M35463","v":0}]
[null,null,"(b) Other: ",null,{"$f":"Import!M35464","v":0},null,null,null,null,{"$f":"Import!M35465","v":0}]
[null,null,"(c) Add: Difference between encumbered assets for policyholder obligations and policyholder obligations deducted from Tier 1",null,null,null,null,null,null,{"$f":"+J48","v":0},null,{"$f":"+L48","v":0}]
[null,"TIER 2 ANCILLARY CAPITAL"]
[null,null,"(a) Unpaid and callable common shares  (Form 8, STMT LINE 1 (c)(i))",null,null,null,null,null,null,{"$f":"Import!M35466","v":0}]
[null,null,"(b) Qualifying unpaid and callable hybrid capital (Form 8, STMT LINE (c)(i))",null,null,null,null,null,null,{"$f":"Import!M35467","v":0}]
[null,null,"(c) Qualifying unpaid and callable perpetual or fixed term preference shares (Form 8, STMT LINE 1(c) (i))",null,null,null,null,null,null,{"$f":"Import!M35468","v":0}]
[null,null,"(d) Perpetual or fixed term subordinated debt (Form 8, STMT LINE 1 (c)(i))",null,null,null,null,null,null,{"$f":"Import!M35469","v":0}]
[null,null,"(e) Approved letters of credit (Form 8, STMT Line 1(c)(ii))",null,null,null,null,null,null,{"$f":"Import!M35470","v":0}]
[null,null,"(f) Approved guarantees (Form 8, Line 1(c)(ii))",null,null,null,null,null,null,{"$f":"Import!M35471","v":0}]
[null,"TOTAL TIER 2 AVAILABLE CAPITAL",null,null,null,null,null,null,null,{"$f":"J59+J63+J60+J61+J64+J65+J66+J67+J68","v":0}," ",{"$f":"J59+J63+J60+L61+J64+J65+J66+J67+J68","v":0}]
[]
[null,"TIER 3 BASIC CAPITAL"]
[null,null,"Short-term hybrid capital instruments: Perpetual or fixed term preference shares (Form 8, STMT Line 1(a)(ii))",null,null,null,null,null,null,{"$f":"Import!M35473","v":0}]
[null,"TIER 3 ANCILLARY CAPITAL"]
[null,null,"(a) Short-term subordinated debt (Form 8, STMT LINE 1(c)(i))",null,null,null,null,null,null,{"$f":"Import!M35474","v":0}]
[null,null,"(b) Approved letters of credit (Form 8, STMT LINE 1(c)(i))",null,null,null,null,null,null,{"$f":"Import!M35475","v":0}]
[null,null,"(c) Approved guarantees (Form 8, STMT Line 1(c)(ii))",null,null,null,null,null,null,{"$f":"Import!M35476","v":0}]
[null,"TOTAL TIER 3 AVAILABLE CAPITAL",null,null,null,null,null,null,null,{"$f":"J72+J74+J75+J76","v":0}," "]
[]
[null,"TOTAL ELIGIBLE CAPITAL",null,null,null,null,null,null,null,{"$f":"J56+J69+J77","v":0}," "]
[]
[null,null,null,null,null,null,null,null,null,{"$f":"IF(J82=\"TRUE\",HYPERLINK(\"#'Schedule XII(a)'!J9\",\"TRUE\"),HYPERLINK(\"#'Schedule XII(a)'!J9\",\"FALSE\"))","v":"TRUE"}]
[null,null,null,null,null,null,null,null,null,{"$f":"IF(ROUND((J9-J79),0)=0,\"TRUE\",\"FALSE\")","v":"TRUE"}]
[null,null,null,null,null,null,null,null,null,{"$f":"ROUND(J9-J79,0)","v":0}]
[]
[null,null,null,null,null,null,null,null,{"$f":"IF(J81=\"False\",\"Reconciliation does not equal Total Eligible Capital\",\"\")","v":""}]
[]
[null,"REGULATORY CAPITAL LEVELS"]
[null,null,"Minimum Margin of Solvency ",null,null,null,null,null,null,{"$f":"Summary!N92","v":500}]
[null,null,"Enhanced Capital Requirement - Transitory",null,null,null,null,null,null,{"$f":"Summary!N96","v":500}]
[null,null,"Enhanced Capital Requirement",null,null,null,null,null,null,{"$f":"Summary!N98","v":500}]
[]
[null,null,null,"Limits","MSM","ECR","Applied to MSM","Met - Y/N","Applied to ECR","Met - Y/N"]
[null,null,"Tier 1","min",0.8,0.5,{"$f":"MAX(0,(IF(I40<G24,J56,L56)))","v":0},{"$f":"IF(J56>=E93*J88,\"Yes\",\"No\")","v":"No"},{"$f":"MAX(0,J56)","v":0},{"$f":"IF(J56>=F93*J89,\"Yes\",\"No\")","v":"No"}]
[null,null,"Tier 2 ","max",0.25,0.5,{"$f":"MAX(0,(IF(I40<G24,MIN(J69,G93*0.25),MIN(L69,G93*0.25))))","v":0},null,{"$f":"MIN(J69,I93)","v":0}]
[null,null,"Tier 3 ",null,null,0.17649999999999999,null,null,{"$f":"MAX(0,MIN(J77,((I93+I94)*0.1765)))","v":0}]
[null,null,"Eligible Capital",null,null,null,{"$f":"SUM(G93:G95)","v":0},{"$f":"IF(G96>=J88,\"Yes\",\"No\")","v":"No"},{"$f":"SUM(I93:I95)","v":0},{"$f":"IF(I96>=J89,\"Yes\",\"No\")","v":"No"}]
[]
[null,null,"Note 1 - No deduction from Tier 1 would be required where an insurer can demonstrate that the assets are encumbered for its own risk management purposes."]
[]
[]
[]
[]
[]
[]
[]
[]
[]
[]
[]
[]
[]
[]
[]
[]
[]
[]
[]
[]
[]
[]
[]
[]
[]
[]
[]
[]
[null,"*¹"]

{"sheet":"Schedule XII(b)","index":70,"n_rows":219,"n_cols":7,"rows_kept":219,"cut":false,"hidden":false,"merged":[]}
[null,"SCHEDULE OF ELIGIBLE CAPITAL- ADDITIONAL DETAILS",null,null,null,null,{"$f":"HYPERLINK(\"#'Index'!A1\",\"Return to Index\")","v":"Return to Index"}]
[]
[null,{"$f":"'Insurer Information'!C7","v":"Enter Company Name"}]
[null,"For the year ending",{"$f":" TEXT('Insurer Information'!C3,\"D MMMM YYYY\")","v":"31 December 2023"},null,null,null,"SCHEDULE XII(b)"]
[null,{"$f":"\"expressed in\"& IF(CONFIGURATION!$B$12>1,\" ['\"&MID(CONFIGURATION!$B$12,2,LEN(CONFIGURATION!$B$12))&\"s]\",\"\")","v":"expressed in ['000s]"},{"$f":"'Form 4EBS'!C4","v":"United States Dollars"}]
[]
[null,"1) Enter number of capital instruments ",{"$f":"Import!E35479","v":0}]
[null,"2) Enter description of each capital instrument"]
[]
[null,"Description of capital instrument","Date of issue","Maturity date (as applicable)","Date approved by the authority","Eligible Capital value of instrument","Eligible capital tier"]
[1,{"$f":"Import!E35480","v":0},{"$f":"Import!E35500","v":"00:00:00"},{"$f":"Import!E35520","v":"00:00:00"},{"$f":"Import!E35540","v":"00:00:00"},{"$f":"Import!E35560","v":0},{"$f":"Import!E35580","v":0}]
[2,{"$f":"Import!E35481","v":0},{"$f":"Import!E35501","v":"00:00:00"},{"$f":"Import!E35521","v":"00:00:00"},{"$f":"Import!E35541","v":"00:00:00"},{"$f":"Import!E35561","v":0},{"$f":"Import!E35581","v":0}]
[3,{"$f":"Import!E35482","v":0},{"$f":"Import!E35502","v":"00:00:00"},{"$f":"Import!E35522","v":"00:00:00"},{"$f":"Import!E35542","v":"00:00:00"},{"$f":"Import!E35562","v":0},{"$f":"Import!E35582","v":0}]
[4,{"$f":"Import!E35483","v":0},{"$f":"Import!E35503","v":"00:00:00"},{"$f":"Import!E35523","v":"00:00:00"},{"$f":"Import!E35543","v":"00:00:00"},{"$f":"Import!E35563","v":0},{"$f":"Import!E35583","v":0}]
[5,{"$f":"Import!E35484","v":0},{"$f":"Import!E35504","v":"00:00:00"},{"$f":"Import!E35524","v":"00:00:00"},{"$f":"Import!E35544","v":"00:00:00"},{"$f":"Import!E35564","v":0},{"$f":"Import!E35584","v":0}]
[6,{"$f":"Import!E35485","v":0},{"$f":"Import!E35505","v":"00:00:00"},{"$f":"Import!E35525","v":"00:00:00"},{"$f":"Import!E35545","v":"00:00:00"},{"$f":"Import!E35565","v":0},{"$f":"Import!E35585","v":0}]
[7,{"$f":"Import!E35486","v":0},{"$f":"Import!E35506","v":"00:00:00"},{"$f":"Import!E35526","v":"00:00:00"},{"$f":"Import!E35546","v":"00:00:00"},{"$f":"Import!E35566","v":0},{"$f":"Import!E35586","v":0}]
[8,{"$f":"Import!E35487","v":0},{"$f":"Import!E35507","v":"00:00:00"},{"$f":"Import!E35527","v":"00:00:00"},{"$f":"Import!E35547","v":"00:00:00"},{"$f":"Import!E35567","v":0},{"$f":"Import!E35587","v":0}]
[9,{"$f":"Import!E35488","v":0},{"$f":"Import!E35508","v":"00:00:00"},{"$f":"Import!E35528","v":"00:00:00"},{"$f":"Import!E35548","v":"00:00:00"},{"$f":"Import!E35568","v":0},{"$f":"Import!E35588","v":0}]
[10,{"$f":"Import!E35489","v":0},{"$f":"Import!E35509","v":"00:00:00"},{"$f":"Import!E35529","v":"00:00:00"},{"$f":"Import!E35549","v":"00:00:00"},{"$f":"Import!E35569","v":0},{"$f":"Import!E35589","v":0}]
[11,{"$f":"Import!E35490","v":0},{"$f":"Import!E35510","v":"00:00:00"},{"$f":"Import!E35530","v":"00:00:00"},{"$f":"Import!E35550","v":"00:00:00"},{"$f":"Import!E35570","v":0},{"$f":"Import!E35590","v":0}]
[12,{"$f":"Import!E35491","v":0},{"$f":"Import!E35511","v":"00:00:00"},{"$f":"Import!E35531","v":"00:00:00"},{"$f":"Import!E35551","v":"00:00:00"},{"$f":"Import!E35571","v":0},{"$f":"Import!E35591","v":0}]
[13,{"$f":"Import!E35492","v":0},{"$f":"Import!E35512","v":"00:00:00"},{"$f":"Import!E35532","v":"00:00:00"},{"$f":"Import!E35552","v":"00:00:00"},{"$f":"Import!E35572","v":0},{"$f":"Import!E35592","v":0}]
[14,{"$f":"Import!E35493","v":0},{"$f":"Import!E35513","v":"00:00:00"},{"$f":"Import!E35533","v":"00:00:00"},{"$f":"Import!E35553","v":"00:00:00"},{"$f":"Import!E35573","v":0},{"$f":"Import!E35593","v":0}]
[15,{"$f":"Import!E35494","v":0},{"$f":"Import!E35514","v":"00:00:00"},{"$f":"Import!E35534","v":"00:00:00"},{"$f":"Import!E35554","v":"00:00:00"},{"$f":"Import!E35574","v":0},{"$f":"Import!E35594","v":0}]
[16,{"$f":"Import!E35495","v":0},{"$f":"Import!E35515","v":"00:00:00"},{"$f":"Import!E35535","v":"00:00:00"},{"$f":"Import!E35555","v":"00:00:00"},{"$f":"Import!E35575","v":0},{"$f":"Import!E35595","v":0}]
[17,{"$f":"Import!E35496","v":0},{"$f":"Import!E35516","v":"00:00:00"},{"$f":"Import!E35536","v":"00:00:00"},{"$f":"Import!E35556","v":"00:00:00"},{"$f":"Import!E35576","v":0},{"$f":"Import!E35596","v":0}]
[18,{"$f":"Import!E35497","v":0},{"$f":"Import!E35517","v":"00:00:00"},{"$f":"Import!E35537","v":"00:00:00"},{"$f":"Import!E35557","v":"00:00:00"},{"$f":"Import!E35577","v":0},{"$f":"Import!E35597","v":0}]
[19,{"$f":"Import!E35498","v":0},{"$f":"Import!E35518","v":"00:00:00"},{"$f":"Import!E35538","v":"00:00:00"},{"$f":"Import!E35558","v":"00:00:00"},{"$f":"Import!E35578","v":0},{"$f":"Import!E35598","v":0}]
[20,{"$f":"Import!E35499","v":0},{"$f":"Import!E35519","v":"00:00:00"},{"$f":"Import!E35539","v":"00:00:00"},{"$f":"Import!E35559","v":"00:00:00"},{"$f":"Import!E35579","v":0},{"$f":"Import!E35599","v":0}]
[21]
[22]
[23]
[24]
[25]
[26]
[27]
[28]
[29]
[30]
[31]
[32]
[33]
[34]
[35]
[36]
[37]
[38]
[39]
[40]
[41]
[42]
[43]
[44]
[45]
[46]
[47]
[48]
[49]
[50]
[51]
[52]
[53]
[54]
[55]
[56]
[57]
[58]
[59]
[60]
[61]
[62]
[63]
[64]
[65]
[66]
[67]
[68]
[69]
[70]
[71]
[72]
[73]
[74]
[75]
[76]
[77]
[78]
[79]
[80]
[81]
[82]
[83]
[84]
[85]
[86]
[87]
[88]
[89]
[90]
[91]
[92]
[93]
[94]
[95]
[96]
[97]
[98]
[99]
[100]
[101]
[102]
[103]
[104]
[105]
[106]
[107]
[108]
[109]
[110]
[111]
[112]
[113]
[114]
[115]
[116]
[117]
[118]
[119]
[120]
[121]
[122]
[123]
[124]
[125]
[126]
[127]
[128]
[129]
[130]
[131]
[132]
[133]
[134]
[135]
[136]
[137]
[138]
[139]
[140]
[141]
[142]
[143]
[144]
[145]
[146]
[147]
[148]
[149]
[150]
[151]
[152]
[153]
[154]
[155]
[156]
[157]
[158]
[159]
[160]
[161]
[162]
[163]
[164]
[165]
[166]
[167]
[168]
[169]
[170]
[171]
[172]
[173]
[174]
[175]
[176]
[177]
[178]
[179]
[180]
[181]
[182]
[183]
[184]
[185]
[186]
[187]
[188]
[189]
[190]
[191]
[192]
[193]
[194]
[195]
[196]
[197]
[198]
[199]
[200]
[null,"Total Preferred Shares, Treasury Shares and Other Fixed Capital",null,null,null,{"$f":"SUM(F11:F210)","v":0}]
[]
[null,null,null,null,null,{"$f":"IF('Insurer Information'!$C$2=\"IFRS\",'Form 8ASFS'!O17-'Form 8ASFS'!O25+'Form 8ASFS'!O34,\n'Form 8SFS'!O17-'Form 8SFS'!O25+'Form 8SFS'!O34)","v":0}]
[]
[null,null,null,null,null,{"$f":"IF(F216=\"TRUE\",HYPERLINK(\"#'Form 8SFS'!O17:O34\",\"TRUE\"),HYPERLINK(\"#'Form 8SFS'!O17:O34\",\"FALSE\"))","v":"TRUE"}]
[null,null,null,null,null,{"$f":"IF(ROUND((F211-F213),0)=0,\"TRUE\",\"FALSE\")","v":"TRUE"}]
[null,null,null,null,null,{"$f":"ROUND((F213-F211),0)","v":0}]
[]
[null,null,null,null,null,{"$f":"IF(F215=\"False\",\"Does not equal Form 8SFS Lines 1(a)(ii), 1(a)(iii) & 1(c)(iii)\",\"\")","v":""}]

{"sheet":"Schedule XVI","index":71,"n_rows":211,"n_cols":17,"rows_kept":211,"cut":false,"hidden":false,"merged":[[3,2,3,3]]}
[null,"SCHEDULE OF REGULATED NON-INSURANCE FINANCIAL OPERATING ENTITIES",null,null,null,null,null,null,null,null,null,null,{"$f":"HYPERLINK(\"#'Index'!A1\",\"Return to Index\")","v":"Return to Index"}]
[]
[null,{"$f":"'Insurer Information'!C7","v":"Enter Company Name"}]
[null,"For the year ending",{"$f":" TEXT('Insurer Information'!C3,\"D MMMM YYYY\")","v":"31 December 2023"},null,null,null,null,null,null,null,null,null,"SCHEDULE XVI"]
[null,{"$f":"\"expressed in\"& IF(CONFIGURATION!$B$12>1,\" ['\"&MID(CONFIGURATION!$B$12,2,LEN(CONFIGURATION!$B$12))&\"s]\",\"\")","v":"expressed in ['000s]"},{"$f":"'Form 4EBS'!C4","v":"United States Dollars"},null,null,null,null,null,null,null,null,null,null,null,"Select","Select","Select"]
[null,null,null,null,null,null,null,null,null,null,null,null,null,null,"Energy","Holding Entity","Significant Influence"]
[null," Enter Number of Regulated Non-Insurance Entities",{"$f":"Import!I35601","v":0},null,null,null,null,null,null,null,null,null,null,null,"Materials","Operating Entity","Control"]
[null," Enter information for each entity",null,null,null,null,null,null,null,null,null,null,null,null,"Industrial","Branch"]
[null,null,null,null,null,null,null,null,null,null,null,null,null,null,"Consumer Discretionary"]
[null,"Entity name","Jurisdiction","Sector Classification (Select from drop-down list)","Strategic Purpose","Entity Type (Select from drop-down list)","Products & Services Offered","Participation (Select from drop-down list)","Percent of Participating Interest","Assets","Investment Amount (equity method)","Regulatory Capital Requirement for Regulated Entities (RCR) (100%)","Applicable Share of the RCR",null,"Consumer Staples"]
[1,{"$f":"Import!I35602","v":0},{"$f":"Import!I35617","v":0},{"$f":"Import!I35632","v":"Select"},{"$f":"Import!I35647","v":0},{"$f":"Import!I35662","v":"Select"},{"$f":"Import!I35677","v":0},{"$f":"Import!I35692","v":"Select"},{"$f":"Import!I35707","v":0},{"$f":"Import!I35722","v":0},{"$f":"Import!I35738","v":0},{"$f":"Import!I35754","v":0},{"$f":"I11*L11","v":0},null,"Healthcare"]
[2,{"$f":"Import!I35603","v":0},{"$f":"Import!I35618","v":0},{"$f":"Import!I35633","v":"Select"},{"$f":"Import!I35648","v":0},{"$f":"Import!I35663","v":"Select"},{"$f":"Import!I35678","v":0},{"$f":"Import!I35693","v":"Select"},{"$f":"Import!I35708","v":0},{"$f":"Import!I35723","v":0},{"$f":"Import!I35739","v":0},{"$f":"Import!I35755","v":0},0,null,"Financial"]
[3,{"$f":"Import!I35604","v":0},{"$f":"Import!I35619","v":0},{"$f":"Import!I35634","v":"Select"},{"$f":"Import!I35649","v":0},{"$f":"Import!I35664","v":"Select"},{"$f":"Import!I35679","v":0},{"$f":"Import!I35694","v":"Select"},{"$f":"Import!I35709","v":0},{"$f":"Import!I35724","v":0},{"$f":"Import!I35740","v":0},{"$f":"Import!I35756","v":0},0]
[4,{"$f":"Import!I35605","v":0},{"$f":"Import!I35620","v":0},{"$f":"Import!I35635","v":"Select"},{"$f":"Import!I35650","v":0},{"$f":"Import!I35665","v":"Select"},{"$f":"Import!I35680","v":0},{"$f":"Import!I35695","v":"Select"},{"$f":"Import!I35710","v":0},{"$f":"Import!I35725","v":0},{"$f":"Import!I35741","v":0},{"$f":"Import!I35757","v":0},0]
[5,{"$f":"Import!I35606","v":0},{"$f":"Import!I35621","v":0},{"$f":"Import!I35636","v":"Select"},{"$f":"Import!I35651","v":0},{"$f":"Import!I35666","v":"Select"},{"$f":"Import!I35681","v":0},{"$f":"Import!I35696","v":"Select"},{"$f":"Import!I35711","v":0},{"$f":"Import!I35726","v":0},{"$f":"Import!I35742","v":0},{"$f":"Import!I35758","v":0},0]
[6,{"$f":"Import!I35607","v":0},{"$f":"Import!I35622","v":0},{"$f":"Import!I35637","v":"Select"},{"$f":"Import!I35652","v":0},{"$f":"Import!I35667","v":"Select"},{"$f":"Import!I35682","v":0},{"$f":"Import!I35697","v":"Select"},{"$f":"Import!I35712","v":0},{"$f":"Import!I35727","v":0},{"$f":"Import!I35743","v":0},{"$f":"Import!I35759","v":0},0]
[7,{"$f":"Import!I35608","v":0},{"$f":"Import!I35623","v":0},{"$f":"Import!I35638","v":"Select"},{"$f":"Import!I35653","v":0},{"$f":"Import!I35668","v":"Select"},{"$f":"Import!I35683","v":0},{"$f":"Import!I35698","v":"Select"},{"$f":"Import!I35713","v":0},{"$f":"Import!I35728","v":0},{"$f":"Import!I35744","v":0},{"$f":"Import!I35760","v":0},0]
[8,{"$f":"Import!I35609","v":0},{"$f":"Import!I35624","v":0},{"$f":"Import!I35639","v":"Select"},{"$f":"Import!I35654","v":0},{"$f":"Import!I35669","v":"Select"},{"$f":"Import!I35684","v":0},{"$f":"Import!I35699","v":"Select"},{"$f":"Import!I35714","v":0},{"$f":"Import!I35729","v":0},{"$f":"Import!I35745","v":0},{"$f":"Import!I35761","v":0},0]
[9,{"$f":"Import!I35610","v":0},{"$f":"Import!I35625","v":0},{"$f":"Import!I35640","v":"Select"},{"$f":"Import!I35655","v":0},{"$f":"Import!I35670","v":"Select"},{"$f":"Import!I35685","v":0},{"$f":"Import!I35700","v":"Select"},{"$f":"Import!I35715","v":0},{"$f":"Import!I35730","v":0},{"$f":"Import!I35746","v":0},{"$f":"Import!I35762","v":0},0]
[10,{"$f":"Import!I35611","v":0},{"$f":"Import!I35626","v":0},{"$f":"Import!I35641","v":"Select"},{"$f":"Import!I35656","v":0},{"$f":"Import!I35671","v":"Select"},{"$f":"Import!I35686","v":0},{"$f":"Import!I35701","v":"Select"},{"$f":"Import!I35716","v":0},{"$f":"Import!I35731","v":0},{"$f":"Import!I35747","v":0},{"$f":"Import!I35763","v":0},0]
[11,{"$f":"Import!I35612","v":0},{"$f":"Import!I35627","v":0},{"$f":"Import!I35642","v":"Select"},{"$f":"Import!I35657","v":0},{"$f":"Import!I35672","v":"Select"},{"$f":"Import!I35687","v":0},{"$f":"Import!I35702","v":"Select"},{"$f":"Import!I35717","v":0},{"$f":"Import!I35732","v":0},{"$f":"Import!I35748","v":0},{"$f":"Import!I35764","v":0},0]
[12,{"$f":"Import!I35613","v":0},{"$f":"Import!I35628","v":0},{"$f":"Import!I35643","v":"Select"},{"$f":"Import!I35658","v":0},{"$f":"Import!I35673","v":"Select"},{"$f":"Import!I35688","v":0},{"$f":"Import!I35703","v":"Select"},{"$f":"Import!I35718","v":0},{"$f":"Import!I35733","v":0},{"$f":"Import!I35749","v":0},{"$f":"Import!I35765","v":0},0]
[13,{"$f":"Import!I35614","v":0},{"$f":"Import!I35629","v":0},{"$f":"Import!I35644","v":"Select"},{"$f":"Import!I35659","v":0},{"$f":"Import!I35674","v":"Select"},{"$f":"Import!I35689","v":0},{"$f":"Import!I35704","v":"Select"},{"$f":"Import!I35719","v":0},{"$f":"Import!I35734","v":0},{"$f":"Import!I35750","v":0},{"$f":"Import!I35766","v":0},0]
[14,{"$f":"Import!I35615","v":0},{"$f":"Import!I35630","v":0},{"$f":"Import!I35645","v":"Select"},{"$f":"Import!I35660","v":0},{"$f":"Import!I35675","v":"Select"},{"$f":"Import!I35690","v":0},{"$f":"Import!I35705","v":"Select"},{"$f":"Import!I35720","v":0},{"$f":"Import!I35735","v":0},{"$f":"Import!I35751","v":0},{"$f":"Import!I35767","v":0},0]
[15,{"$f":"Import!I35616","v":0},{"$f":"Import!I35631","v":0},{"$f":"Import!I35646","v":"Select"},{"$f":"Import!I35661","v":0},{"$f":"Import!I35676","v":"Select"},{"$f":"Import!I35691","v":0},{"$f":"Import!I35706","v":"Select"},{"$f":"Import!I35721","v":0},{"$f":"Import!I35736","v":0},{"$f":"Import!I35752","v":0},{"$f":"Import!I35768","v":0},0]
[16,null,null,null,null,null,null,null,null,null,null,null,0]
[17,null,null,null,null,null,null,null,null,null,null,null,0]
[18,null,null,null,null,null,null,null,null,null,null,null,0]
[19,null,null,null,null,null,null,null,null,null,null,null,0]
[20,null,null,null,null,null,null,null,null,null,null,null,0]
[21,null,null,null,null,null,null,null,null,null,null,null,0]
[22,null,null,null,null,null,null,null,null,null,null,null,0]
[23,null,null,null,null,null,null,null,null,null,null,null,0]
[24,null,null,null,null,null,null,null,null,null,null,null,0]
[25,null,null,null,null,null,null,null,null,null,null,null,0]
[26,null,null,null,null,null,null,null,null,null,null,null,0]
[27,null,null,null,null,null,null,null,null,null,null,null,0]
[28,null,null,null,null,null,null,null,null,null,null,null,0]
[29,null,null,null,null,null,null,null,null,null,null,null,0]
[30,null,null,null,null,null,null,null,null,null,null,null,0]
[31,null,null,null,null,null,null,null,null,null,null,null,0]
[32,null,null,null,null,null,null,null,null,null,null,null,0]
[33,null,null,null,null,null,null,null,null,null,null,null,0]
[34,null,null,null,null,null,null,null,null,null,null,null,0]
[35,null,null,null,null,null,null,null,null,null,null,null,0]
[36,null,null,null,null,null,null,null,null,null,null,null,0]
[37,null,null,null,null,null,null,null,null,null,null,null,0]
[38,null,null,null,null,null,null,null,null,null,null,null,0]
[39,null,null,null,null,null,null,null,null,null,null,null,0]
[40,null,null,null,null,null,null,null,null,null,null,null,0]
[41,null,null,null,null,null,null,null,null,null,null,null,0]
[42,null,null,null,null,null,null,null,null,null,null,null,0]
[43,null,null,null,null,null,null,null,null,null,null,null,0]
[44,null,null,null,null,null,null,null,null,null,null,null,0]
[45,null,null,null,null,null,null,null,null,null,null,null,0]
[46,null,null,null,null,null,null,null,null,null,null,null,0]
[47,null,null,null,null,null,null,null,null,null,null,null,0]
[48,null,null,null,null,null,null,null,null,null,null,null,0]
[49,null,null,null,null,null,null,null,null,null,null,null,0]
[50,null,null,null,null,null,null,null,null,null,null,null,0]
[51,null,null,null,null,null,null,null,null,null,null,null,0]
[52,null,null,null,null,null,null,null,null,null,null,null,0]
[53,null,null,null,null,null,null,null,null,null,null,null,0]
[54,null,null,null,null,null,null,null,null,null,null,null,0]
[55,null,null,null,null,null,null,null,null,null,null,null,0]
[56,null,null,null,null,null,null,null,null,null,null,null,0]
[57,null,null,null,null,null,null,null,null,null,null,null,0]
[58,null,null,null,null,null,null,null,null,null,null,null,0]
[59,null,null,null,null,null,null,null,null,null,null,null,0]
[60,null,null,null,null,null,null,null,null,null,null,null,0]
[61,null,null,null,null,null,null,null,null,null,null,null,0]
[62,null,null,null,null,null,null,null,null,null,null,null,0]
[63,null,null,null,null,null,null,null,null,null,null,null,0]
[64,null,null,null,null,null,null,null,null,null,null,null,0]
[65,null,null,null,null,null,null,null,null,null,null,null,{"$f":"I75*L75","v":0}]
[66,null,null,null,null,null,null,null,null,null,null,null,0]
[67,null,null,null,null,null,null,null,null,null,null,null,0]
[68,null,null,null,null,null,null,null,null,null,null,null,0]
[69,null,null,null,null,null,null,null,null,null,null,null,0]
[70,null,null,null,null,null,null,null,null,null,null,null,0]
[71,null,null,null,null,null,null,null,null,null,null,null,0]
[72,null,null,null,null,null,null,null,null,null,null,null,0]
[73,null,null,null,null,null,null,null,null,null,null,null,0]
[74,null,null,null,null,null,null,null,null,null,null,null,0]
[75,null,null,null,null,null,null,null,null,null,null,null,0]
[76,null,null,null,null,null,null,null,null,null,null,null,0]
[77,null,null,null,null,null,null,null,null,null,null,null,0]
[78,null,null,null,null,null,null,null,null,null,null,null,0]
[79,null,null,null,null,null,null,null,null,null,null,null,0]
[80,null,null,null,null,null,null,null,null,null,null,null,0]
[81,null,null,null,null,null,null,null,null,null,null,null,0]
[82,null,null,null,null,null,null,null,null,null,null,null,0]
[83,null,null,null,null,null,null,null,null,null,null,null,0]
[84,null,null,null,null,null,null,null,null,null,null,null,0]
[85,null,null,null,null,null,null,null,null,null,null,null,0]
[86,null,null,null,null,null,null,null,null,null,null,null,0]
[87,null,null,null,null,null,null,null,null,null,null,null,0]
[88,null,null,null,null,null,null,null,null,null,null,null,0]
[89,null,null,null,null,null,null,null,null,null,null,null,0]
[90,null,null,null,null,null,null,null,null,null,null,null,0]
[91,null,null,null,null,null,null,null,null,null,null,null,0]
[92,null,null,null,null,null,null,null,null,null,null,null,0]
[93,null,null,null,null,null,null,null,null,null,null,null,0]
[94,null,null,null,null,null,null,null,null,null,null,null,0]
[95,null,null,null,null,null,null,null,null,null,null,null,0]
[96,null,null,null,null,null,null,null,null,null,null,null,0]
[97,null,null,null,null,null,null,null,null,null,null,null,0]
[98,null,null,null,null,null,null,null,null,null,null,null,0]
[99,null,null,null,null,null,null,null,null,null,null,null,0]
[100,null,null,null,null,null,null,null,null,null,null,null,0]
[101,null,null,null,null,null,null,null,null,null,null,null,0]
[102,null,null,null,null,null,null,null,null,null,null,null,0]
[103,null,null,null,null,null,null,null,null,null,null,null,0]
[104,null,null,null,null,null,null,null,null,null,null,null,0]
[105,null,null,null,null,null,null,null,null,null,null,null,0]
[106,null,null,null,null,null,null,null,null,null,null,null,0]
[107,null,null,null,null,null,null,null,null,null,null,null,0]
[108,null,null,null,null,null,null,null,null,null,null,null,0]
[109,null,null,null,null,null,null,null,null,null,null,null,0]
[110,null,null,null,null,null,null,null,null,null,null,null,0]
[111,null,null,null,null,null,null,null,null,null,null,null,0]
[112,null,null,null,null,null,null,null,null,null,null,null,0]
[113,null,null,null,null,null,null,null,null,null,null,null,0]
[114,null,null,null,null,null,null,null,null,null,null,null,0]
[115,null,null,null,null,null,null,null,null,null,null,null,0]
[116,null,null,null,null,null,null,null,null,null,null,null,0]
[117,null,null,null,null,null,null,null,null,null,null,null,0]
[118,null,null,null,null,null,null,null,null,null,null,null,0]
[119,null,null,null,null,null,null,null,null,null,null,null,0]
[120,null,null,null,null,null,null,null,null,null,null,null,0]
[121,null,null,null,null,null,null,null,null,null,null,null,0]
[122,null,null,null,null,null,null,null,null,null,null,null,0]
[123,null,null,null,null,null,null,null,null,null,null,null,0]
[124,null,null,null,null,null,null,null,null,null,null,null,0]
[125,null,null,null,null,null,null,null,null,null,null,null,0]
[126,null,null,null,null,null,null,null,null,null,null,null,0]
[127,null,null,null,null,null,null,null,null,null,null,null,0]
[128,null,null,null,null,null,null,null,null,null,null,null,0]
[129,null,null,null,null,null,null,null,null,null,null,null,{"$f":"I139*L139","v":0}]
[130,null,null,null,null,null,null,null,null,null,null,null,0]
[131,null,null,null,null,null,null,null,null,null,null,null,0]
[132,null,null,null,null,null,null,null,null,null,null,null,0]
[133,null,null,null,null,null,null,null,null,null,null,null,0]
[134,null,null,null,null,null,null,null,null,null,null,null,0]
[135,null,null,null,null,null,null,null,null,null,null,null,0]
[136,null,null,null,null,null,null,null,null,null,null,null,0]
[137,null,null,null,null,null,null,null,null,null,null,null,0]
[138,null,null,null,null,null,null,null,null,null,null,null,0]
[139,null,null,null,null,null,null,null,null,null,null,null,0]
[140,null,null,null,null,null,null,null,null,null,null,null,0]
[141,null,null,null,null,null,null,null,null,null,null,null,0]
[142,null,null,null,null,null,null,null,null,null,null,null,0]
[143,null,null,null,null,null,null,null,null,null,null,null,0]
[144,null,null,null,null,null,null,null,null,null,null,null,0]
[145,null,null,null,null,null,null,null,null,null,null,null,0]
[146,null,null,null,null,null,null,null,null,null,null,null,0]
[147,null,null,null,null,null,null,null,null,null,null,null,0]
[148,null,null,null,null,null,null,null,null,null,null,null,0]
[149,null,null,null,null,null,null,null,null,null,null,null,0]
[150,null,null,null,null,null,null,null,null,null,null,null,0]
[151,null,null,null,null,null,null,null,null,null,null,null,0]
[152,null,null,null,null,null,null,null,null,null,null,null,0]
[153,null,null,null,null,null,null,null,null,null,null,null,0]
[154,null,null,null,null,null,null,null,null,null,null,null,0]
[155,null,null,null,null,null,null,null,null,null,null,null,0]
[156,null,null,null,null,null,null,null,null,null,null,null,0]
[157,null,null,null,null,null,null,null,null,null,null,null,0]
[158,null,null,null,null,null,null,null,null,null,null,null,0]
[159,null,null,null,null,null,null,null,null,null,null,null,0]
[160,null,null,null,null,null,null,null,null,null,null,null,0]
[161,null,null,null,null,null,null,null,null,null,null,null,0]
[162,null,null,null,null,null,null,null,null,null,null,null,0]
[163,null,null,null,null,null,null,null,null,null,null,null,0]
[164,null,null,null,null,null,null,null,null,null,null,null,0]
[165,null,null,null,null,null,null,null,null,null,null,null,0]
[166,null,null,null,null,null,null,null,null,null,null,null,0]
[167,null,null,null,null,null,null,null,null,null,null,null,0]
[168,null,null,null,null,null,null,null,null,null,null,null,0]
[169,null,null,null,null,null,null,null,null,null,null,null,0]
[170,null,null,null,null,null,null,null,null,null,null,null,0]
[171,null,null,null,null,null,null,null,null,null,null,null,0]
[172,null,null,null,null,null,null,null,null,null,null,null,0]
[173,null,null,null,null,null,null,null,null,null,null,null,0]
[174,null,null,null,null,null,null,null,null,null,null,null,0]
[175,null,null,null,null,null,null,null,null,null,null,null,0]
[176,null,null,null,null,null,null,null,null,null,null,null,0]
[177,null,null,null,null,null,null,null,null,null,null,null,0]
[178,null,null,null,null,null,null,null,null,null,null,null,0]
[179,null,null,null,null,null,null,null,null,null,null,null,0]
[180,null,null,null,null,null,null,null,null,null,null,null,0]
[181,null,null,null,null,null,null,null,null,null,null,null,0]
[182,null,null,null,null,null,null,null,null,null,null,null,0]
[183,null,null,null,null,null,null,null,null,null,null,null,0]
[184,null,null,null,null,null,null,null,null,null,null,null,0]
[185,null,null,null,null,null,null,null,null,null,null,null,0]
[186,null,null,null,null,null,null,null,null,null,null,null,0]
[187,null,null,null,null,null,null,null,null,null,null,null,0]
[188,null,null,null,null,null,null,null,null,null,null,null,0]
[189,null,null,null,null,null,null,null,null,null,null,null,0]
[190,null,null,null,null,null,null,null,null,null,null,null,0]
[191,null,null,null,null,null,null,null,null,null,null,null,0]
[192,null,null,null,null,null,null,null,null,null,null,null,0]
[193,null,null,null,null,null,null,null,null,null,null,null,{"$f":"I203*L203","v":0}]
[194,null,null,null,null,null,null,null,null,null,null,null,0]
[195,null,null,null,null,null,null,null,null,null,null,null,0]
[196,null,null,null,null,null,null,null,null,null,null,null,0]
[197,null,null,null,null,null,null,null,null,null,null,null,0]
[198,null,null,null,null,null,null,null,null,null,null,null,0]
[199,null,null,null,null,null,null,null,null,null,null,null,0]
[200,null,null,null,null,null,null,null,null,null,null,null,{"$f":"I210*L210","v":0}]
[null,null,null,null,null,null,null,null,null,{"$f":"SUM(J11:J210)","v":0},{"$f":"SUM(K11:K210)","v":0},null,{"$f":"SUM(M11:M210)","v":0}]

{"sheet":"Schedule XVII","index":72,"n_rows":219,"n_cols":14,"rows_kept":219,"cut":false,"hidden":false,"merged":[[3,2,3,3]]}
[null,"SCHEDULE OF SOLVENCY",null,null,null,null,null,null,null,{"$f":"HYPERLINK(\"#'Index'!A1\",\"Return to Index\")","v":"Return to Index"}]
[]
[null,{"$f":"'Insurer Information'!C7","v":"Enter Company Name"}]
[null,"For the year ending",{"$f":" TEXT('Insurer Information'!C3,\"D MMMM YYYY\")","v":"31 December 2023"},null,null,null,null,null,null,"SCHEDULE XVII"]
[null,{"$f":"\"expressed in\"& IF(CONFIGURATION!$B$12>1,\" ['\"&MID(CONFIGURATION!$B$12,2,LEN(CONFIGURATION!$B$12))&\"s]\",\"\")","v":"expressed in ['000s]"},{"$f":"'Form 4EBS'!C4","v":"United States Dollars"},null,null,null,null,null,null,null,null,null,"Select"]
[null,null,null,null,null,null,null,null,null,null,null,"Energy","Holding Entity"]
[null,"Enter Number of Entities ",{"$f":"Import!I35770","v":0},null,null,null,null,null,null,null,null,"Materials","Operating Entity","Control"]
[null," Enter information for each entity",null,null,null,null,null,null,null,null,null,"Industrial","Branch"]
[null,null,null,null,null,null,null,null,null,null,null,"Consumer Discretionary"]
[null,"Entity name","Jurisdiction","Entity Type","Percent of Participating Interest","Gross Premiums Written","Net Premiums Written","Total Assets ","Net Assets","Regulatory Capital Requirement (ECR Equivalent)",null,"Consumer Staples"]
[1,{"$f":"Import!I35771","v":0},{"$f":"Import!I35801","v":0},{"$f":"Import!I35831","v":"Select"},{"$f":"Import!I35861","v":0},{"$f":"Import!I35891","v":0},{"$f":"Import!I35922","v":0},{"$f":"Import!I35953","v":0},{"$f":"Import!I35984","v":0},{"$f":"Import!I36015","v":0},null,"Healthcare"]
[2,{"$f":"Import!I35772","v":0},{"$f":"Import!I35802","v":0},{"$f":"Import!I35832","v":"Select"},{"$f":"Import!I35862","v":0},{"$f":"Import!I35892","v":0},{"$f":"Import!I35923","v":0},{"$f":"Import!I35954","v":0},{"$f":"Import!I35985","v":0},{"$f":"Import!I36016","v":0},null,"Financial"]
[3,{"$f":"Import!I35773","v":0},{"$f":"Import!I35803","v":0},{"$f":"Import!I35833","v":"Select"},{"$f":"Import!I35863","v":0},{"$f":"Import!I35893","v":0},{"$f":"Import!I35924","v":0},{"$f":"Import!I35955","v":0},{"$f":"Import!I35986","v":0},{"$f":"Import!I36017","v":0}]
[4,{"$f":"Import!I35774","v":0},{"$f":"Import!I35804","v":0},{"$f":"Import!I35834","v":"Select"},{"$f":"Import!I35864","v":0},{"$f":"Import!I35894","v":0},{"$f":"Import!I35925","v":0},{"$f":"Import!I35956","v":0},{"$f":"Import!I35987","v":0},{"$f":"Import!I36018","v":0}]
[5,{"$f":"Import!I35775","v":0},{"$f":"Import!I35805","v":0},{"$f":"Import!I35835","v":"Select"},{"$f":"Import!I35865","v":0},{"$f":"Import!I35895","v":0},{"$f":"Import!I35926","v":0},{"$f":"Import!I35957","v":0},{"$f":"Import!I35988","v":0},{"$f":"Import!I36019","v":0}]
[6,{"$f":"Import!I35776","v":0},{"$f":"Import!I35806","v":0},{"$f":"Import!I35836","v":"Select"},{"$f":"Import!I35866","v":0},{"$f":"Import!I35896","v":0},{"$f":"Import!I35927","v":0},{"$f":"Import!I35958","v":0},{"$f":"Import!I35989","v":0},{"$f":"Import!I36020","v":0}]
[7,{"$f":"Import!I35777","v":0},{"$f":"Import!I35807","v":0},{"$f":"Import!I35837","v":"Select"},{"$f":"Import!I35867","v":0},{"$f":"Import!I35897","v":0},{"$f":"Import!I35928","v":0},{"$f":"Import!I35959","v":0},{"$f":"Import!I35990","v":0},{"$f":"Import!I36021","v":0}]
[8,{"$f":"Import!I35778","v":0},{"$f":"Import!I35808","v":0},{"$f":"Import!I35838","v":"Select"},{"$f":"Import!I35868","v":0},{"$f":"Import!I35898","v":0},{"$f":"Import!I35929","v":0},{"$f":"Import!I35960","v":0},{"$f":"Import!I35991","v":0},{"$f":"Import!I36022","v":0}]
[9,{"$f":"Import!I35779","v":0},{"$f":"Import!I35809","v":0},{"$f":"Import!I35839","v":"Select"},{"$f":"Import!I35869","v":0},{"$f":"Import!I35899","v":0},{"$f":"Import!I35930","v":0},{"$f":"Import!I35961","v":0},{"$f":"Import!I35992","v":0},{"$f":"Import!I36023","v":0}]
[10,{"$f":"Import!I35780","v":0},{"$f":"Import!I35810","v":0},{"$f":"Import!I35840","v":"Select"},{"$f":"Import!I35870","v":0},{"$f":"Import!I35900","v":0},{"$f":"Import!I35931","v":0},{"$f":"Import!I35962","v":0},{"$f":"Import!I35993","v":0},{"$f":"Import!I36024","v":0}]
[11,{"$f":"Import!I35781","v":0},{"$f":"Import!I35811","v":0},{"$f":"Import!I35841","v":"Select"},{"$f":"Import!I35871","v":0},{"$f":"Import!I35901","v":0},{"$f":"Import!I35932","v":0},{"$f":"Import!I35963","v":0},{"$f":"Import!I35994","v":0},{"$f":"Import!I36025","v":0}]
[12,{"$f":"Import!I35782","v":0},{"$f":"Import!I35812","v":0},{"$f":"Import!I35842","v":"Select"},{"$f":"Import!I35872","v":0},{"$f":"Import!I35902","v":0},{"$f":"Import!I35933","v":0},{"$f":"Import!I35964","v":0},{"$f":"Import!I35995","v":0},{"$f":"Import!I36026","v":0}]
[13,{"$f":"Import!I35783","v":0},{"$f":"Import!I35813","v":0},{"$f":"Import!I35843","v":"Select"},{"$f":"Import!I35873","v":0},{"$f":"Import!I35903","v":0},{"$f":"Import!I35934","v":0},{"$f":"Import!I35965","v":0},{"$f":"Import!I35996","v":0},{"$f":"Import!I36027","v":0}]
[14,{"$f":"Import!I35784","v":0},{"$f":"Import!I35814","v":0},{"$f":"Import!I35844","v":"Select"},{"$f":"Import!I35874","v":0},{"$f":"Import!I35904","v":0},{"$f":"Import!I35935","v":0},{"$f":"Import!I35966","v":0},{"$f":"Import!I35997","v":0},{"$f":"Import!I36028","v":0}]
[15,{"$f":"Import!I35785","v":0},{"$f":"Import!I35815","v":0},{"$f":"Import!I35845","v":"Select"},{"$f":"Import!I35875","v":0},{"$f":"Import!I35905","v":0},{"$f":"Import!I35936","v":0},{"$f":"Import!I35967","v":0},{"$f":"Import!I35998","v":0},{"$f":"Import!I36029","v":0}]
[16,{"$f":"Import!I35786","v":0},{"$f":"Import!I35816","v":0},{"$f":"Import!I35846","v":"Select"},{"$f":"Import!I35876","v":0},{"$f":"Import!I35906","v":0},{"$f":"Import!I35937","v":0},{"$f":"Import!I35968","v":0},{"$f":"Import!I35999","v":0},{"$f":"Import!I36030","v":0}]
[17,{"$f":"Import!I35787","v":0},{"$f":"Import!I35817","v":0},{"$f":"Import!I35847","v":"Select"},{"$f":"Import!I35877","v":0},{"$f":"Import!I35907","v":0},{"$f":"Import!I35938","v":0},{"$f":"Import!I35969","v":0},{"$f":"Import!I36000","v":0},{"$f":"Import!I36031","v":0}]
[18,{"$f":"Import!I35788","v":0},{"$f":"Import!I35818","v":0},{"$f":"Import!I35848","v":"Select"},{"$f":"Import!I35878","v":0},{"$f":"Import!I35908","v":0},{"$f":"Import!I35939","v":0},{"$f":"Import!I35970","v":0},{"$f":"Import!I36001","v":0},{"$f":"Import!I36032","v":0}]
[19,{"$f":"Import!I35789","v":0},{"$f":"Import!I35819","v":0},{"$f":"Import!I35849","v":"Select"},{"$f":"Import!I35879","v":0},{"$f":"Import!I35909","v":0},{"$f":"Import!I35940","v":0},{"$f":"Import!I35971","v":0},{"$f":"Import!I36002","v":0},{"$f":"Import!I36033","v":0}]
[20,{"$f":"Import!I35790","v":0},{"$f":"Import!I35820","v":0},{"$f":"Import!I35850","v":"Select"},{"$f":"Import!I35880","v":0},{"$f":"Import!I35910","v":0},{"$f":"Import!I35941","v":0},{"$f":"Import!I35972","v":0},{"$f":"Import!I36003","v":0},{"$f":"Import!I36034","v":0}]
[21,{"$f":"Import!I35791","v":0},{"$f":"Import!I35821","v":0},{"$f":"Import!I35851","v":"Select"},{"$f":"Import!I35881","v":0},{"$f":"Import!I35911","v":0},{"$f":"Import!I35942","v":0},{"$f":"Import!I35973","v":0},{"$f":"Import!I36004","v":0},{"$f":"Import!I36035","v":0}]
[22,{"$f":"Import!I35792","v":0},{"$f":"Import!I35822","v":0},{"$f":"Import!I35852","v":"Select"},{"$f":"Import!I35882","v":0},{"$f":"Import!I35912","v":0},{"$f":"Import!I35943","v":0},{"$f":"Import!I35974","v":0},{"$f":"Import!I36005","v":0},{"$f":"Import!I36036","v":0}]
[23,{"$f":"Import!I35793","v":0},{"$f":"Import!I35823","v":0},{"$f":"Import!I35853","v":"Select"},{"$f":"Import!I35883","v":0},{"$f":"Import!I35913","v":0},{"$f":"Import!I35944","v":0},{"$f":"Import!I35975","v":0},{"$f":"Import!I36006","v":0},{"$f":"Import!I36037","v":0}]
[24,{"$f":"Import!I35794","v":0},{"$f":"Import!I35824","v":0},{"$f":"Import!I35854","v":"Select"},{"$f":"Import!I35884","v":0},{"$f":"Import!I35914","v":0},{"$f":"Import!I35945","v":0},{"$f":"Import!I35976","v":0},{"$f":"Import!I36007","v":0},{"$f":"Import!I36038","v":0}]
[25,{"$f":"Import!I35795","v":0},{"$f":"Import!I35825","v":0},{"$f":"Import!I35855","v":"Select"},{"$f":"Import!I35885","v":0},{"$f":"Import!I35915","v":0},{"$f":"Import!I35946","v":0},{"$f":"Import!I35977","v":0},{"$f":"Import!I36008","v":0},{"$f":"Import!I36039","v":0}]
[26,{"$f":"Import!I35796","v":0},{"$f":"Import!I35826","v":0},{"$f":"Import!I35856","v":"Select"},{"$f":"Import!I35886","v":0},{"$f":"Import!I35916","v":0},{"$f":"Import!I35947","v":0},{"$f":"Import!I35978","v":0},{"$f":"Import!I36009","v":0},{"$f":"Import!I36040","v":0}]
[27,{"$f":"Import!I35797","v":0},{"$f":"Import!I35827","v":0},{"$f":"Import!I35857","v":"Select"},{"$f":"Import!I35887","v":0},{"$f":"Import!I35917","v":0},{"$f":"Import!I35948","v":0},{"$f":"Import!I35979","v":0},{"$f":"Import!I36010","v":0},{"$f":"Import!I36041","v":0}]
[28,{"$f":"Import!I35798","v":0},{"$f":"Import!I35828","v":0},{"$f":"Import!I35858","v":"Select"},{"$f":"Import!I35888","v":0},{"$f":"Import!I35918","v":0},{"$f":"Import!I35949","v":0},{"$f":"Import!I35980","v":0},{"$f":"Import!I36011","v":0},{"$f":"Import!I36042","v":0}]
[29,{"$f":"Import!I35799","v":0},{"$f":"Import!I35829","v":0},{"$f":"Import!I35859","v":"Select"},{"$f":"Import!I35889","v":0},{"$f":"Import!I35919","v":0},{"$f":"Import!I35950","v":0},{"$f":"Import!I35981","v":0},{"$f":"Import!I36012","v":0},{"$f":"Import!I36043","v":0}]
[30,{"$f":"Import!I35800","v":0},{"$f":"Import!I35830","v":0},{"$f":"Import!I35860","v":"Select"},{"$f":"Import!I35890","v":0},{"$f":"Import!I35920","v":0},{"$f":"Import!I35951","v":0},{"$f":"Import!I35982","v":0},{"$f":"Import!I36013","v":0},{"$f":"Import!I36044","v":0}]
[31]
[32]
[33]
[34]
[35]
[36]
[37]
[38]
[39]
[40]
[41]
[42]
[43]
[44]
[45]
[46]
[47]
[48]
[49]
[50]
[51]
[52]
[53]
[54]
[55]
[56]
[57]
[58]
[59]
[60]
[61]
[62]
[63]
[64]
[65]
[66]
[67]
[68]
[69]
[70]
[71]
[72]
[73]
[74]
[75]
[76]
[77]
[78]
[79]
[80]
[81]
[82]
[83]
[84]
[85]
[86]
[87]
[88]
[89]
[90]
[91]
[92]
[93]
[94]
[95]
[96]
[97]
[98]
[99]
[100]
[101]
[102]
[103]
[104]
[105]
[106]
[107]
[108]
[109]
[110]
[111]
[112]
[113]
[114]
[115]
[116]
[117]
[118]
[119]
[120]
[121]
[122]
[123]
[124]
[125]
[126]
[127]
[128]
[129]
[130]
[131]
[132]
[133]
[134]
[135]
[136]
[137]
[138]
[139]
[140]
[141]
[142]
[143]
[144]
[145]
[146]
[147]
[148]
[149]
[150]
[151]
[152]
[153]
[154]
[155]
[156]
[157]
[158]
[159]
[160]
[161]
[162]
[163]
[164]
[165]
[166]
[167]
[168]
[169]
[170]
[171]
[172]
[173]
[174]
[175]
[176]
[177]
[178]
[179]
[180]
[181]
[182]
[183]
[184]
[185]
[186]
[187]
[188]
[189]
[190]
[191]
[192]
[193]
[194]
[195]
[196]
[197]
[198]
[199]
[200]
[null,null,null,null,null,{"$f":"SUM(F11:F210)","v":0},{"$f":"SUM(G11:G210)","v":0},{"$f":"SUM(H11:H210)","v":0},{"$f":"SUM(I11:I210)","v":0},{"$f":"SUM(J11:J210)","v":0}]
[]
[]
[]
[null,null,null,"Select"]
[null,null,null,"Holding Entity"]
[null,null,null,"Operating Entity"]
[null,null,null,"Branch"]
[null,null,null,"Other"]

{"sheet":"Schedule XVIII","index":73,"n_rows":104,"n_cols":15,"rows_kept":104,"cut":false,"hidden":false,"merged":[[18,2,18,3],[0,2,0,10],[1,2,1,4],[2,2,2,3],[3,2,3,3],[7,2,7,14],[12,2,12,3],[13,2,13,3],[14,2,14,3],[15,2,15,3],[16,2,16,3],[17,2,17,3],[30,2,30,3],[19,2,19,3],[20,2,20,3],[21,2,21,3],[22,2,22,3],[23,2,23,3],[24,2,24,3],[25,2,25,3],[26,2,26,3],[27,2,27,3],[28,2,28,3],[29,2,29,3],[42,2,42,3],[31,2,31,3],[32,2,32,3],[33,2,33,3],[34,2,34,3],[35,2,35,3],[36,2,36,3],[37,2,37,3],[38,2,38,3],[39,2,39,3],[40,2,40,3],[41,2,41,3],[56,3,56,4],[43,2,43,3],[44,2,44,3],[45,2,45,3],[46,2,46,3],[47,2,47,3],[48,2,48,3],[49,2,49,3],[50,2,50,3],[51,2,51,3],[52,2,52,3],[55,3,55,4],[87,3,87,4],[57,3,57,4],[58,3,58,4],[59,3,59,4],[60,3,60,4],[61,3,61,4],[62,3,62,4],[63,3,63,4],[64,3,64,4],[69,3,71,4],[83,3,84,14],[86,3,86,4],[94,3,94,4],[98,3,99,14],[88,3,88,4],[89,3,89,4],[90,3,90,4],[91,3,91,4],[92,3,92,4],[93,3,93,4]]}
[null,null,"SCHEDULE OF PARTICULARS OF CEDED REINSURANCE",null,null,null,null,null,null,null,null,null,null,null,{"$f":"HYPERLINK(\"#'Index'!A1\",\"Return to Index\")","v":"Return to Index"}]
[null,null,{"$f":"+'Insurer Information'!C7","v":"Enter Company Name"}]
[null,null,{"$f":" TEXT('Insurer Information'!C3,\"D MMMM YYYY\")","v":"31 December 2023"}]
[null,null,{"$f":"+'Form 4EBS'!B4","v":"Expressed in  ['000s]"},null,null,null,null,null,null,null,null,null,null,null,"SCHEDULE XVIII"]
[]
[null,null,"Particulars of reinsurance balances "]
[]
[null,null,"Enter at Least the 10 Largest Reinsurance Exposures with the Remaining Reinsurance Exposures Grouped According to BSCR Rating and/or a Single Consolidated Reinsurance Exposure"]
[]
[null,null,"Enter Number of Entities",null,{"$f":"Import!E36047","v":0}]
[]
[null,null,"Exposure by Reinsurer",null,null,null,"(A)",null,"(B)",null,"(C)",null,"(D)",null,"(E)"]
[null,null,"Name of Reinsurer",null,"BSCR Rating",null,"Reinsurance Assets\nForm 1SFS Lines 11(e), 12 and 27(c) \n(Include Form 4, Line 12(c) Only to the Extent That They Are Not Already Included Under Schedule IIA)",null,"Reinsurance Payable\nForm 1SFS, Lines 28, 29, 33 and 34(c) ",null,"Collateral\nNotes to Form 1SFS Lines 11(e) and Line 27(c) ",null,"Qualifying Collateral\nMax(0,Min(C,(A-B)/.98))",null,"Net Qualifying Exposure\nMax (0, (A - B - D x 98%))"]
[null,1,{"$f":"Import!E36048","v":0},null,{"$f":"Import!E36078","v":"Select"},null,{"$f":"Import!E36108","v":0},null,{"$f":"Import!E36139","v":0},null,{"$f":"Import!E36170","v":0},null,{"$f":"IF(K14=0,0,MAX(0,MIN(K14,(G14-I14)/0.98)))","v":0},null,{"$f":"MAX(0,(G14-I14-M14*98%))","v":0}]
[null,2,{"$f":"Import!E36049","v":0},null,{"$f":"Import!E36079","v":"Select"},null,{"$f":"Import!E36109","v":0},null,{"$f":"Import!E36140","v":0},null,{"$f":"Import!E36171","v":0},null,{"$f":"IF(K15=0,0,MAX(0,MIN(K15,(G15-I15)/0.98)))","v":0},null,0]
[null,3,{"$f":"Import!E36050","v":0},null,{"$f":"Import!E36080","v":"Select"},null,{"$f":"Import!E36110","v":0},null,{"$f":"Import!E36141","v":0},null,{"$f":"Import!E36172","v":0},null,0,null,0]
[null,4,{"$f":"Import!E36051","v":0},null,{"$f":"Import!E36081","v":"Select"},null,{"$f":"Import!E36111","v":0},null,{"$f":"Import!E36142","v":0},null,{"$f":"Import!E36173","v":0},null,0,null,0]
[null,5,{"$f":"Import!E36052","v":0},null,{"$f":"Import!E36082","v":"Select"},null,{"$f":"Import!E36112","v":0},null,{"$f":"Import!E36143","v":0},null,{"$f":"Import!E36174","v":0},null,0,null,0]
[null,6,{"$f":"Import!E36053","v":0},null,{"$f":"Import!E36083","v":"Select"},null,{"$f":"Import!E36113","v":0},null,{"$f":"Import!E36144","v":0},null,{"$f":"Import!E36175","v":0},null,0,null,0]
[null,7,{"$f":"Import!E36054","v":0},null,{"$f":"Import!E36084","v":"Select"},null,{"$f":"Import!E36114","v":0},null,{"$f":"Import!E36145","v":0},null,{"$f":"Import!E36176","v":0},null,0,null,0]
[null,8,{"$f":"Import!E36055","v":0},null,{"$f":"Import!E36085","v":"Select"},null,{"$f":"Import!E36115","v":0},null,{"$f":"Import!E36146","v":0},null,{"$f":"Import!E36177","v":0},null,0,null,0]
[null,9,{"$f":"Import!E36056","v":0},null,{"$f":"Import!E36086","v":"Select"},null,{"$f":"Import!E36116","v":0},null,{"$f":"Import!E36147","v":0},null,{"$f":"Import!E36178","v":0},null,0,null,0]
[null,10,{"$f":"Import!E36057","v":0},null,{"$f":"Import!E36087","v":"Select"},null,{"$f":"Import!E36117","v":0},null,{"$f":"Import!E36148","v":0},null,{"$f":"Import!E36179","v":0},null,0,null,0]
[null,11,{"$f":"Import!E36058","v":0},null,{"$f":"Import!E36088","v":"Select"},null,{"$f":"Import!E36118","v":0},null,{"$f":"Import!E36149","v":0},null,{"$f":"Import!E36180","v":0},null,0,null,0]
[null,12,{"$f":"Import!E36059","v":0},null,{"$f":"Import!E36089","v":"Select"},null,{"$f":"Import!E36119","v":0},null,{"$f":"Import!E36150","v":0},null,{"$f":"Import!E36181","v":0},null,0,null,0]
[null,13,{"$f":"Import!E36060","v":0},null,{"$f":"Import!E36090","v":"Select"},null,{"$f":"Import!E36120","v":0},null,{"$f":"Import!E36151","v":0},null,{"$f":"Import!E36182","v":0},null,0,null,0]
[null,14,{"$f":"Import!E36061","v":0},null,{"$f":"Import!E36091","v":"Select"},null,{"$f":"Import!E36121","v":0},null,{"$f":"Import!E36152","v":0},null,{"$f":"Import!E36183","v":0},null,0,null,0]
[null,15,{"$f":"Import!E36062","v":0},null,{"$f":"Import!E36092","v":"Select"},null,{"$f":"Import!E36122","v":0},null,{"$f":"Import!E36153","v":0},null,{"$f":"Import!E36184","v":0},null,0,null,0]
[null,16,{"$f":"Import!E36063","v":0},null,{"$f":"Import!E36093","v":"Select"},null,{"$f":"Import!E36123","v":0},null,{"$f":"Import!E36154","v":0},null,{"$f":"Import!E36185","v":0},null,0,null,0]
[null,17,{"$f":"Import!E36064","v":0},null,{"$f":"Import!E36094","v":"Select"},null,{"$f":"Import!E36124","v":0},null,{"$f":"Import!E36155","v":0},null,{"$f":"Import!E36186","v":0},null,0,null,0]
[null,18,{"$f":"Import!E36065","v":0},null,{"$f":"Import!E36095","v":"Select"},null,{"$f":"Import!E36125","v":0},null,{"$f":"Import!E36156","v":0},null,{"$f":"Import!E36187","v":0},null,0,null,0]
[null,19,{"$f":"Import!E36066","v":0},null,{"$f":"Import!E36096","v":"Select"},null,{"$f":"Import!E36126","v":0},null,{"$f":"Import!E36157","v":0},null,{"$f":"Import!E36188","v":0},null,0,null,0]
[null,20,{"$f":"Import!E36067","v":0},null,{"$f":"Import!E36097","v":"Select"},null,{"$f":"Import!E36127","v":0},null,{"$f":"Import!E36158","v":0},null,{"$f":"Import!E36189","v":0},null,0,null,0]
[null,21,{"$f":"Import!E36068","v":0},null,{"$f":"Import!E36098","v":"Select"},null,{"$f":"Import!E36128","v":0},null,{"$f":"Import!E36159","v":0},null,{"$f":"Import!E36190","v":0},null,0,null,0]
[null,22,{"$f":"Import!E36069","v":0},null,{"$f":"Import!E36099","v":"Select"},null,{"$f":"Import!E36129","v":0},null,{"$f":"Import!E36160","v":0},null,{"$f":"Import!E36191","v":0},null,0,null,0]
[null,23,{"$f":"Import!E36070","v":0},null,{"$f":"Import!E36100","v":"Select"},null,{"$f":"Import!E36130","v":0},null,{"$f":"Import!E36161","v":0},null,{"$f":"Import!E36192","v":0},null,0,null,0]
[null,24,{"$f":"Import!E36071","v":0},null,{"$f":"Import!E36101","v":"Select"},null,{"$f":"Import!E36131","v":0},null,{"$f":"Import!E36162","v":0},null,{"$f":"Import!E36193","v":0},null,0,null,0]
[null,25,{"$f":"Import!E36072","v":0},null,{"$f":"Import!E36102","v":"Select"},null,{"$f":"Import!E36132","v":0},null,{"$f":"Import!E36163","v":0},null,{"$f":"Import!E36194","v":0},null,0,null,0]
[null,26,{"$f":"Import!E36073","v":0},null,{"$f":"Import!E36103","v":"Select"},null,{"$f":"Import!E36133","v":0},null,{"$f":"Import!E36164","v":0},null,{"$f":"Import!E36195","v":0},null,0,null,0]
[null,27,{"$f":"Import!E36074","v":0},null,{"$f":"Import!E36104","v":"Select"},null,{"$f":"Import!E36134","v":0},null,{"$f":"Import!E36165","v":0},null,{"$f":"Import!E36196","v":0},null,0,null,0]
[null,28,{"$f":"Import!E36075","v":0},null,{"$f":"Import!E36105","v":"Select"},null,{"$f":"Import!E36135","v":0},null,{"$f":"Import!E36166","v":0},null,{"$f":"Import!E36197","v":0},null,0,null,0]
[null,29,{"$f":"Import!E36076","v":0},null,{"$f":"Import!E36106","v":"Select"},null,{"$f":"Import!E36136","v":0},null,{"$f":"Import!E36167","v":0},null,{"$f":"Import!E36198","v":0},null,0,null,0]
[null,30,{"$f":"Import!E36077","v":0},null,{"$f":"Import!E36107","v":"Select"},null,{"$f":"Import!E36137","v":0},null,{"$f":"Import!E36168","v":0},null,{"$f":"Import!E36199","v":0},null,0,null,0]
[null,31,null,null,null,null,null,null,null,null,null,null,0,null,0]
[null,32,null,null,null,null,null,null,null,null,null,null,0,null,0]
[null,33,null,null,null,null,null,null,null,null,null,null,0,null,0]
[null,34,null,null,null,null,null,null,null,null,null,null,0,null,0]
[null,35,null,null,null,null,null,null,null,null,null,null,0,null,0]
[null,36,null,null,null,null,null,null,null,null,null,null,0,null,0]
[null,37,null,null,null,null,null,null,null,null,null,null,0,null,0]
[null,38,null,null,null,null,null,null,null,null,null,null,0,null,0]
[null,39,null,null,null,null,null,null,null,null,null,null,0,null,0]
[null,40,null,null,null,null,null,null,null,null,null,null,0,null,0]
[null,null,"Total Exposure By Reinsurer",null,null,null,{"$f":"SUM(G14:G53)","v":0},null,{"$f":"SUM(I14:I53)","v":0},null,{"$f":"SUM(K14:K53)","v":0},null,{"$f":"SUM(M14:M53)","v":0},null,{"$f":"SUM(O14:O53)","v":0}]
[]
[null,null,null,"Exposure by BSCR Rating"]
[null,null,null,"BSCR Rating 0 (Domestic Affiliates)",null,null,{"$f":"Import!E36201","v":0},null,{"$f":"Import!E36212","v":0},null,{"$f":"Import!E36223","v":0},null,{"$f":"IF(K57=0,0,MAX(0,MIN(K57,(G57-I57)/0.98)))","v":0},null,{"$f":"MAX(0,(G57-I57-M57*98%))","v":0}]
[null,null,null,"BSCR Rating 1",null,null,{"$f":"Import!E36202","v":0},null,{"$f":"Import!E36213","v":0},null,{"$f":"Import!E36224","v":0},null,0,null,0]
[null,null,null,"BSCR Rating 2",null,null,{"$f":"Import!E36203","v":0},null,{"$f":"Import!E36214","v":0},null,{"$f":"Import!E36225","v":0},null,0,null,0]
[null,null,null,"BSCR Rating 3",null,null,{"$f":"Import!E36204","v":0},null,{"$f":"Import!E36215","v":0},null,{"$f":"Import!E36226","v":0},null,0,null,0]
[null,null,null,"BSCR Rating 4",null,null,{"$f":"Import!E36205","v":0},null,{"$f":"Import!E36216","v":0},null,{"$f":"Import!E36227","v":0},null,0,null,0]
[null,null,null,"BSCR Rating 5",null,null,{"$f":"Import!E36206","v":0},null,{"$f":"Import!E36217","v":0},null,{"$f":"Import!E36228","v":0},null,0,null,0]
[null,null,null,"BSCR Rating 6",null,null,{"$f":"Import!E36207","v":0},null,{"$f":"Import!E36218","v":0},null,{"$f":"Import!E36229","v":0},null,0,null,0]
[null,null,null,"BSCR Rating 7",null,null,{"$f":"Import!E36208","v":0},null,{"$f":"Import!E36219","v":0},null,{"$f":"Import!E36230","v":0},null,{"$f":"IF(K64=0,0,MAX(0,MIN(K64,(G64-I64)/0.98)))","v":0},null,0]
[null,null,null,"BSCR Rating 8",null,null,{"$f":"Import!E36209","v":0},null,{"$f":"Import!E36220","v":0},null,{"$f":"Import!E36231","v":0},null,0,null,0]
[null,null,null,"Total Exposure by BSCR Rating",null,null,{"$f":"SUM(G57:G65)","v":0},null,{"$f":"SUM(I57:I65)","v":0},null,{"$f":"SUM(K57:K65)","v":0},null,{"$f":"SUM(M57:M65)","v":0},null,{"$f":"SUM(O57:O65)","v":0}]
[]
[null,null,null,"Single Consolidated Exposure",null,null,{"$f":"IF('Insurer Information'!$C$2=\"IFRS\",0,'Form 1SFS'!F77+'Form 1SFS'!H77+'Form 1SFS'!F79+'Form 1SFS'!H79+'Form 1SFS'!H153-'Schedule IIA'!D74-G54-G66)","v":0},null,{"$f":"Import!E36222","v":0},null,null,null,{"$f":"IF(K68=0,0,MAX(0,MIN(K68,(G68-I68)/0.98)))","v":0},null,{"$f":"MAX(0,(G68-I68-M68*98%))","v":0}]
[]
[null,null,null,"Total Balance Sheet Adjusted for Schedule IIA, Line 28, Column (1)"]
[null,null,null,null,null,null,{"$f":"IF('Insurer Information'!$C$2=\"IFRS\",0,'Form 1SFS'!F77+'Form 1SFS'!H77+'Form 1SFS'!F79+'Form 1SFS'!H79+'Form 1SFS'!H153-'Schedule IIA'!D74)","v":0}]
[]
[]
[null,null,null,"Total Collateral",null,null,null,null,null,null,{"$f":"IF('Insurer Information'!$C$2=\"IFRS\",0,'Form 1SFS'!K212+'Form 1SFS'!K214)","v":0}]
[]
[null,null,null,null,null,null,{"$f":"IF(ROUND((G54+G66+G68-G71),0)=0,\"TRUE\",\"FALSE\")","v":"TRUE"},null,null,null,{"$f":"IF(ROUND((K54+K66+K68-K74),0)=0,\"TRUE\",\"FALSE\")","v":"TRUE"}]
[]
[null,null,null,"Difference",null,null,{"$f":"ROUND(G71-G54-G66-G68,0)","v":0},null,null,null,{"$f":"ROUND(K74-K54-K66-K68,0)","v":0}]
[]
[null,null,null,"Total Qualifying Collateral",null,null,null,null,null,null,null,null,{"$f":"IF(K74=0,0,MAX(0,MIN(K74,(G71)/0.98)))","v":0}]
[]
[null,null,null,"Total Net Qualifying Exposure",null,null,null,null,null,null,null,null,null,null,{"$f":"O54+O66+O68","v":0}]
[]
[null,null,null,"Particulars of Reinsurance Balances by BSCR Rating"]
[]
[null,null,null,"Select",null,null,"Reinsurance Assets",null,"Reinsurance Payable",null,"Collateral",null,"Qualifying Collateral",null,"Net Qualifying Exposure"]
[null,null,null,"BSCR Rating 0 (Domestic Affiliates)",null,null,{"$f":"SUMPRODUCT(G$14:G$53,($E$14:$E$53=D87)*1)+G57","v":0},null,{"$f":"SUMPRODUCT(I$14:I$53,($E$14:$E$53=D87)*1)+I57","v":0},null,{"$f":"SUMPRODUCT(K$14:K$53,($E$14:$E$53=D87)*1)+K57","v":0},null,{"$f":"SUMPRODUCT(M$14:M$53,($E$14:$E$53=D87)*1)+M57","v":0},null,{"$f":"SUMPRODUCT(O$14:O$53,($E$14:$E$53=D87)*1)+O57","v":0}]
[null,null,null,"BSCR Rating 1",null,null,0,null,0,null,0,null,0,null,0]
[null,null,null,"BSCR Rating 2",null,null,0,null,0,null,0,null,0,null,0]
[null,null,null,"BSCR Rating 3",null,null,0,null,0,null,0,null,0,null,0]
[null,null,null,"BSCR Rating 4",null,null,0,null,0,null,0,null,0,null,0]
[null,null,null,"BSCR Rating 5",null,null,0,null,0,null,0,null,0,null,0]
[null,null,null,"BSCR Rating 6",null,null,0,null,0,null,0,null,0,null,0]
[null,null,null,"BSCR Rating 7",null,null,0,null,0,null,0,null,0,null,0]
[null,null,null,"BSCR Rating 8",null,null,{"$f":"SUMPRODUCT(G$14:G$53,($E$14:$E$53=D95)*1)+G65+G68","v":0},null,{"$f":"SUMPRODUCT(I$14:I$53,($E$14:$E$53=D95)*1)+I65+I68","v":0},null,{"$f":"SUMPRODUCT(K$14:K$53,($E$14:$E$53=D95)*1)+K65+K68","v":0},null,{"$f":"SUMPRODUCT(M$14:M$53,($E$14:$E$53=D95)*1)+M65+M68","v":0},null,{"$f":"SUMPRODUCT(O$14:O$53,($E$14:$E$53=D95)*1)+O65+O68","v":0}]
[null,null,null,"Total",null,null,{"$f":"SUM(G87:G95)","v":0},null,{"$f":"SUM(I87:I95)","v":0},null,{"$f":"SUM(K87:K95)","v":0},null,{"$f":"SUM(M87:M95)","v":0},null,{"$f":"SUM(O87:O95)","v":0}]
[]
[]
[null,null,null,"Diversification Adjustment Calculation On a Net Qualifying Exposure Basis"]
[]
[null,null,null,"Maximum Net Qualifying Exposure Balance On a Single Reinsurer Basis",null,null,null,null,null,null,null,null,null,null,{"$f":"MAX(O14:O53)","v":0}]
[null,null,null,"Total Net Qualifying Exposure",null,null,null,null,null,null,null,null,null,null,{"$f":"O82","v":0}]
[null,null,null,"Percentage",null,null,null,null,null,null,null,null,null,null,{"$f":"IF(O102=0,0,O101/O102)","v":0}]
[null,null,null,"Diversification Adjustment up to 40%",null,null,null,null,null,null,null,null,null,null,{"$f":"IF(O101=0,0,(1-O103)*40%)","v":0}]

{"sheet":"Schedule XVIII (EBS)","index":74,"n_rows":104,"n_cols":15,"rows_kept":104,"cut":false,"hidden":false,"merged":[[92,3,92,4],[93,3,93,4],[94,3,94,4],[86,3,86,4],[87,3,87,4],[88,3,88,4],[89,3,89,4],[90,3,90,4],[91,3,91,4],[62,3,62,4],[63,3,63,4],[64,3,64,4],[61,3,61,4],[56,3,56,4],[57,3,57,4],[58,3,58,4],[60,3,60,4],[59,3,59,4],[50,2,50,3],[51,2,51,3],[52,2,52,3],[55,3,55,4],[44,2,44,3],[45,2,45,3],[46,2,46,3],[47,2,47,3],[48,2,48,3],[40,2,40,3],[41,2,41,3],[42,2,42,3],[43,2,43,3],[49,2,49,3],[35,2,35,3],[36,2,36,3],[37,2,37,3],[38,2,38,3],[39,2,39,3],[30,2,30,3],[31,2,31,3],[32,2,32,3],[33,2,33,3],[34,2,34,3],[15,2,15,3],[1,2,1,4],[2,2,2,3],[3,2,3,3],[23,2,23,3],[0,2,0,10],[7,2,7,14],[13,2,13,3],[12,2,12,3],[14,2,14,3],[69,3,71,4],[83,3,84,14],[98,3,99,14],[16,2,16,3],[17,2,17,3],[18,2,18,3],[19,2,19,3],[20,2,20,3],[21,2,21,3],[22,2,22,3],[24,2,24,3],[25,2,25,3],[26,2,26,3],[27,2,27,3],[28,2,28,3],[29,2,29,3]]}
[null,null,"SCHEDULE OF PARTICULARS OF CEDED REINSURANCE",null,null,null,null,null,null,null,null,null,null,null,{"$f":"HYPERLINK(\"#'Index'!A1\",\"Return to Index\")","v":"Return to Index"}]
[null,null,{"$f":"+'Insurer Information'!C7","v":"Enter Company Name"}]
[null,null,{"$f":" TEXT('Insurer Information'!C3,\"D MMMM YYYY\")","v":"31 December 2023"}]
[null,null,{"$f":"+'Form 4EBS'!B4","v":"Expressed in  ['000s]"},null,null,null,null,null,null,null,null,null,null,null,"SCHEDULE XVIII (EBS)"]
[]
[null,null,"Particulars of reinsurance balances "]
[]
[null,null,"Enter at Least the 10 Largest Reinsurance Exposures with the Remaining Reinsurance Exposures Grouped According to BSCR Rating and/or a Single Consolidated Reinsurance Exposure"]
[]
[null,null,"Enter Number of Entities",null,{"$f":"Import!M36047","v":0}]
[]
[null,null,"Exposure by Reinsurer",null,null,null,"(A)",null,"(B)",null,"(C)",null,"(D)",null,"(E)"]
[null,null,"Name of Reinsurer",null,"BSCR Rating",null,"Reinsurance Assets\nForm 4EBS Lines 11(e), 12(c) and 27(c) \n(Include Form 4EBS, Line 12(c) Only to the Extent That They Are Not Already Included Under Schedule IIA)",null,"Reinsurance Payable\nForm 4EBS, Lines 28, 29, 33 and 34(c) ",null,"Collateral\nNotes to Form 4EBS Lines 11(e) and Line 27(c) ",null,"Qualifying Collateral\nMax(0,Min(C,(A-B)/.98))",null,"Net Qualifying Exposure\nMax (0, (A - B - D x 98%))"]
[null,1,{"$f":"Import!M36048","v":0},null,{"$f":"Import!M36078","v":"Select"},null,{"$f":"Import!M36108","v":0},null,{"$f":"Import!M36139","v":0},null,{"$f":"Import!M36170","v":0},null,{"$f":"IF(K14=0,0,MAX(0,MIN(K14,(G14-I14)/0.98)))","v":0},null,{"$f":"MAX(0,(G14-I14-M14*98%))","v":0}]
[null,2,{"$f":"Import!M36049","v":0},null,{"$f":"Import!M36079","v":"Select"},null,{"$f":"Import!M36109","v":0},null,{"$f":"Import!M36140","v":0},null,{"$f":"Import!M36171","v":0},null,{"$f":"IF(K15=0,0,MAX(0,MIN(K15,(G15-I15)/0.98)))","v":0},null,0]
[null,3,{"$f":"Import!M36050","v":0},null,{"$f":"Import!M36080","v":"Select"},null,{"$f":"Import!M36110","v":0},null,{"$f":"Import!M36141","v":0},null,{"$f":"Import!M36172","v":0},null,0,null,0]
[null,4,{"$f":"Import!M36051","v":0},null,{"$f":"Import!M36081","v":"Select"},null,{"$f":"Import!M36111","v":0},null,{"$f":"Import!M36142","v":0},null,{"$f":"Import!M36173","v":0},null,0,null,0]
[null,5,{"$f":"Import!M36052","v":0},null,{"$f":"Import!M36082","v":"Select"},null,{"$f":"Import!M36112","v":0},null,{"$f":"Import!M36143","v":0},null,{"$f":"Import!M36174","v":0},null,0,null,0]
[null,6,{"$f":"Import!M36053","v":0},null,{"$f":"Import!M36083","v":"Select"},null,{"$f":"Import!M36113","v":0},null,{"$f":"Import!M36144","v":0},null,{"$f":"Import!M36175","v":0},null,0,null,0]
[null,7,{"$f":"Import!M36054","v":0},null,{"$f":"Import!M36084","v":"Select"},null,{"$f":"Import!M36114","v":0},null,{"$f":"Import!M36145","v":0},null,{"$f":"Import!M36176","v":0},null,0,null,0]
[null,8,{"$f":"Import!M36055","v":0},null,{"$f":"Import!M36085","v":"Select"},null,{"$f":"Import!M36115","v":0},null,{"$f":"Import!M36146","v":0},null,{"$f":"Import!M36177","v":0},null,0,null,0]
[null,9,{"$f":"Import!M36056","v":0},null,{"$f":"Import!M36086","v":"Select"},null,{"$f":"Import!M36116","v":0},null,{"$f":"Import!M36147","v":0},null,{"$f":"Import!M36178","v":0},null,0,null,0]
[null,10,{"$f":"Import!M36057","v":0},null,{"$f":"Import!M36087","v":"Select"},null,{"$f":"Import!M36117","v":0},null,{"$f":"Import!M36148","v":0},null,{"$f":"Import!M36179","v":0},null,0,null,0]
[null,11,{"$f":"Import!M36058","v":0},null,{"$f":"Import!M36088","v":"Select"},null,{"$f":"Import!M36118","v":0},null,{"$f":"Import!M36149","v":0},null,{"$f":"Import!M36180","v":0},null,0,null,0]
[null,12,{"$f":"Import!M36059","v":0},null,{"$f":"Import!M36089","v":"Select"},null,{"$f":"Import!M36119","v":0},null,{"$f":"Import!M36150","v":0},null,{"$f":"Import!M36181","v":0},null,0,null,0]
[null,13,{"$f":"Import!M36060","v":0},null,{"$f":"Import!M36090","v":"Select"},null,{"$f":"Import!M36120","v":0},null,{"$f":"Import!M36151","v":0},null,{"$f":"Import!M36182","v":0},null,0,null,0]
[null,14,{"$f":"Import!M36061","v":0},null,{"$f":"Import!M36091","v":"Select"},null,{"$f":"Import!M36121","v":0},null,{"$f":"Import!M36152","v":0},null,{"$f":"Import!M36183","v":0},null,0,null,0]
[null,15,{"$f":"Import!M36062","v":0},null,{"$f":"Import!M36092","v":"Select"},null,{"$f":"Import!M36122","v":0},null,{"$f":"Import!M36153","v":0},null,{"$f":"Import!M36184","v":0},null,0,null,0]
[null,16,{"$f":"Import!M36063","v":0},null,{"$f":"Import!M36093","v":"Select"},null,{"$f":"Import!M36123","v":0},null,{"$f":"Import!M36154","v":0},null,{"$f":"Import!M36185","v":0},null,0,null,0]
[null,17,{"$f":"Import!M36064","v":0},null,{"$f":"Import!M36094","v":"Select"},null,{"$f":"Import!M36124","v":0},null,{"$f":"Import!M36155","v":0},null,{"$f":"Import!M36186","v":0},null,0,null,0]
[null,18,{"$f":"Import!M36065","v":0},null,{"$f":"Import!M36095","v":"Select"},null,{"$f":"Import!M36125","v":0},null,{"$f":"Import!M36156","v":0},null,{"$f":"Import!M36187","v":0},null,0,null,0]
[null,19,{"$f":"Import!M36066","v":0},null,{"$f":"Import!M36096","v":"Select"},null,{"$f":"Import!M36126","v":0},null,{"$f":"Import!M36157","v":0},null,{"$f":"Import!M36188","v":0},null,0,null,0]
[null,20,{"$f":"Import!M36067","v":0},null,{"$f":"Import!M36097","v":"Select"},null,{"$f":"Import!M36127","v":0},null,{"$f":"Import!M36158","v":0},null,{"$f":"Import!M36189","v":0},null,0,null,0]
[null,21,{"$f":"Import!M36068","v":0},null,{"$f":"Import!M36098","v":"Select"},null,{"$f":"Import!M36128","v":0},null,{"$f":"Import!M36159","v":0},null,{"$f":"Import!M36190","v":0},null,0,null,0]
[null,22,{"$f":"Import!M36069","v":0},null,{"$f":"Import!M36099","v":"Select"},null,{"$f":"Import!M36129","v":0},null,{"$f":"Import!M36160","v":0},null,{"$f":"Import!M36191","v":0},null,0,null,0]
[null,23,{"$f":"Import!M36070","v":0},null,{"$f":"Import!M36100","v":"Select"},null,{"$f":"Import!M36130","v":0},null,{"$f":"Import!M36161","v":0},null,{"$f":"Import!M36192","v":0},null,0,null,0]
[null,24,{"$f":"Import!M36071","v":0},null,{"$f":"Import!M36101","v":"Select"},null,{"$f":"Import!M36131","v":0},null,{"$f":"Import!M36162","v":0},null,{"$f":"Import!M36193","v":0},null,0,null,0]
[null,25,{"$f":"Import!M36072","v":0},null,{"$f":"Import!M36102","v":"Select"},null,{"$f":"Import!M36132","v":0},null,{"$f":"Import!M36163","v":0},null,{"$f":"Import!M36194","v":0},null,0,null,0]
[null,26,{"$f":"Import!M36073","v":0},null,{"$f":"Import!M36103","v":"Select"},null,{"$f":"Import!M36133","v":0},null,{"$f":"Import!M36164","v":0},null,{"$f":"Import!M36195","v":0},null,0,null,0]
[null,27,{"$f":"Import!M36074","v":0},null,{"$f":"Import!M36104","v":"Select"},null,{"$f":"Import!M36134","v":0},null,{"$f":"Import!M36165","v":0},null,{"$f":"Import!M36196","v":0},null,0,null,0]
[null,28,{"$f":"Import!M36075","v":0},null,{"$f":"Import!M36105","v":"Select"},null,{"$f":"Import!M36135","v":0},null,{"$f":"Import!M36166","v":0},null,{"$f":"Import!M36197","v":0},null,0,null,0]
[null,29,{"$f":"Import!M36076","v":0},null,{"$f":"Import!M36106","v":"Select"},null,{"$f":"Import!M36136","v":0},null,{"$f":"Import!M36167","v":0},null,{"$f":"Import!M36198","v":0},null,0,null,0]
[null,30,{"$f":"Import!M36077","v":0},null,{"$f":"Import!M36107","v":"Select"},null,{"$f":"Import!M36137","v":0},null,{"$f":"Import!M36168","v":0},null,{"$f":"Import!M36199","v":0},null,0,null,0]
[null,31,null,null,null,null,null,null,null,null,null,null,0,null,0]
[null,32,null,null,null,null,null,null,null,null,null,null,0,null,0]
[null,33,null,null,null,null,null,null,null,null,null,null,0,null,0]
[null,34,null,null,null,null,null,null,null,null,null,null,0,null,0]
[null,35,null,null,null,null,null,null,null,null,null,null,0,null,0]
[null,36,null,null,null,null,null,null,null,null,null,null,0,null,0]
[null,37,null,null,null,null,null,null,null,null,null,null,0,null,0]
[null,38,null,null,null,null,null,null,null,null,null,null,0,null,0]
[null,39,null,null,null,null,null,null,null,null,null,null,0,null,0]
[null,40,null,null,null,null,null,null,null,null,null,null,0,null,0]
[null,null,"Total Exposure By Reinsurer",null,null,null,{"$f":"SUM(G14:G53)","v":0},null,{"$f":"SUM(I14:I53)","v":0},null,{"$f":"SUM(K14:K53)","v":0},null,{"$f":"SUM(M14:M53)","v":0},null,{"$f":"SUM(O14:O53)","v":0}]
[]
[null,null,null,"Exposure by BSCR Rating"]
[null,null,null,"BSCR Rating 0 (Domestic Affiliates)",null,null,{"$f":"Import!M36201","v":0},null,{"$f":"Import!M36212","v":0},null,{"$f":"Import!M36223","v":0},null,{"$f":"IF(K57=0,0,MAX(0,MIN(K57,(G57-I57)/0.98)))","v":0},null,{"$f":"MAX(0,(G57-I57-M57*98%))","v":0}]
[null,null,null,"BSCR Rating 1",null,null,{"$f":"Import!M36202","v":0},null,{"$f":"Import!M36213","v":0},null,{"$f":"Import!M36224","v":0},null,0,null,0]
[null,null,null,"BSCR Rating 2",null,null,{"$f":"Import!M36203","v":0},null,{"$f":"Import!M36214","v":0},null,{"$f":"Import!M36225","v":0},null,0,null,0]
[null,null,null,"BSCR Rating 3",null,null,{"$f":"Import!M36204","v":0},null,{"$f":"Import!M36215","v":0},null,{"$f":"Import!M36226","v":0},null,0,null,0]
[null,null,null,"BSCR Rating 4",null,null,{"$f":"Import!M36205","v":0},null,{"$f":"Import!M36216","v":0},null,{"$f":"Import!M36227","v":0},null,0,null,0]
[null,null,null,"BSCR Rating 5",null,null,{"$f":"Import!M36206","v":0},null,{"$f":"Import!M36217","v":0},null,{"$f":"Import!M36228","v":0},null,0,null,0]
[null,null,null,"BSCR Rating 6",null,null,{"$f":"Import!M36207","v":0},null,{"$f":"Import!M36218","v":0},null,{"$f":"Import!M36229","v":0},null,0,null,0]
[null,null,null,"BSCR Rating 7",null,null,{"$f":"Import!M36208","v":0},null,{"$f":"Import!M36219","v":0},null,{"$f":"Import!M36230","v":0},null,{"$f":"IF(K64=0,0,MAX(0,MIN(K64,(G64-I64)/0.98)))","v":0},null,0]
[null,null,null,"BSCR Rating 8",null,null,{"$f":"Import!M36209","v":0},null,{"$f":"Import!M36220","v":0},null,{"$f":"Import!M36231","v":0},null,0,null,0]
[null,null,null,"Total Exposure by BSCR Rating",null,null,{"$f":"SUM(G57:G65)","v":0},null,{"$f":"SUM(I57:I65)","v":0},null,{"$f":"SUM(K57:K65)","v":0},null,{"$f":"SUM(M57:M65)","v":0},null,{"$f":"SUM(O57:O65)","v":0}]
[]
[null,null,null,"Single Consolidated Exposure",null,null,{"$f":"'Form 4EBS'!F68+'Form 4EBS'!F73+'Form 4EBS'!F121-'Schedule IIA (EBS)'!D74-G54-G66","v":0},null,{"$f":"Import!M36222","v":0},null,null,null,{"$f":"IF(K68=0,0,MAX(0,MIN(K68,(G68-I68)/0.98)))","v":0},null,{"$f":"MAX(0,(G68-I68-M68*98%))","v":0}]
[]
[null,null,null,"Total Balance Sheet Adjusted for Schedule IIA, Line 28, Column (1)"]
[null,null,null,null,null,null,{"$f":"'Form 4EBS'!F68+'Form 4EBS'!F73+'Form 4EBS'!F121-'Schedule IIA (EBS)'!D74","v":0}]
[]
[]
[null,null,null,"Total Collateral",null,null,null,null,null,null,{"$f":"'Form 4EBS'!F197+'Form 4EBS'!F198","v":0}]
[]
[null,null,null,null,null,null,{"$f":"IF(ROUND((G54+G66+G68-G71),0)=0,\"TRUE\",\"FALSE\")","v":"TRUE"},null,null,null,{"$f":"IF(ROUND((K54+K66+K68-K74),0)=0,\"TRUE\",\"FALSE\")","v":"TRUE"}]
[]
[null,null,null,"Difference",null,null,{"$f":"ROUND(G71-G54-G66-G68,0)","v":0},null,null,null,{"$f":"ROUND(K74-K54-K66-K68,0)","v":0}]
[]
[null,null,null,"Total Qualifying Collateral",null,null,null,null,null,null,null,null,{"$f":"IF(K74=0,0,MAX(0,MIN(K74,(G71)/0.98)))","v":0}]
[]
[null,null,null,"Total Net Qualifying Exposure",null,null,null,null,null,null,null,null,null,null,{"$f":"O54+O66+O68","v":0}]
[]
[null,null,null,"Particulars of Reinsurance Balances by BSCR Rating"]
[]
[null,null,null,"Select",null,null,"Reinsurance Assets",null,"Reinsurance Payable",null,"Collateral",null,"Qualifying Collateral",null,"Net Qualifying Exposure"]
[null,null,null,"BSCR Rating 0 (Domestic Affiliates)",null,null,{"$f":"SUMPRODUCT(G$14:G$53,($E$14:$E$53=D87)*1)+G57","v":0},null,{"$f":"SUMPRODUCT(I$14:I$53,($E$14:$E$53=D87)*1)+I57","v":0},null,{"$f":"SUMPRODUCT(K$14:K$53,($E$14:$E$53=D87)*1)+K57","v":0},null,{"$f":"SUMPRODUCT(M$14:M$53,($E$14:$E$53=D87)*1)+M57","v":0},null,{"$f":"SUMPRODUCT(O$14:O$53,($E$14:$E$53=D87)*1)+O57","v":0}]
[null,null,null,"BSCR Rating 1",null,null,0,null,0,null,0,null,0,null,0]
[null,null,null,"BSCR Rating 2",null,null,0,null,0,null,0,null,0,null,0]
[null,null,null,"BSCR Rating 3",null,null,0,null,0,null,0,null,0,null,0]
[null,null,null,"BSCR Rating 4",null,null,0,null,0,null,0,null,0,null,0]
[null,null,null,"BSCR Rating 5",null,null,0,null,0,null,0,null,0,null,0]
[null,null,null,"BSCR Rating 6",null,null,0,null,0,null,0,null,0,null,0]
[null,null,null,"BSCR Rating 7",null,null,0,null,0,null,0,null,0,null,0]
[null,null,null,"BSCR Rating 8",null,null,{"$f":"SUMPRODUCT(G$14:G$53,($E$14:$E$53=D95)*1)+G65+G68","v":0},null,{"$f":"SUMPRODUCT(I$14:I$53,($E$14:$E$53=D95)*1)+I65+I68","v":0},null,{"$f":"SUMPRODUCT(K$14:K$53,($E$14:$E$53=D95)*1)+K65+K68","v":0},null,{"$f":"SUMPRODUCT(M$14:M$53,($E$14:$E$53=D95)*1)+M65+M68","v":0},null,{"$f":"SUMPRODUCT(O$14:O$53,($E$14:$E$53=D95)*1)+O65+O68","v":0}]
[null,null,null,"Total",null,null,{"$f":"SUM(G87:G95)","v":0},null,{"$f":"SUM(I87:I95)","v":0},null,{"$f":"SUM(K87:K95)","v":0},null,{"$f":"SUM(M87:M95)","v":0},null,{"$f":"SUM(O87:O95)","v":0}]
[]
[]
[null,null,null,"Diversification Adjustment Calculation On a Net Qualifying Exposure Basis"]
[]
[null,null,null,"Maximum Net Qualifying Exposure Balance On a Single Reinsurer Basis",null,null,null,null,null,null,null,null,null,null,{"$f":"MAX(O14:O53)","v":0}]
[null,null,null,"Total Net Qualifying Exposure",null,null,null,null,null,null,null,null,null,null,{"$f":"O82","v":0}]
[null,null,null,"Percentage",null,null,null,null,null,null,null,null,null,null,{"$f":"IF(O102=0,0,O101/O102)","v":0}]
[null,null,null,"Diversification Adjustment up to 40%",null,null,null,null,null,null,null,null,null,null,{"$f":"IF(O101=0,0,(1-O103)*40%)","v":0}]

{"sheet":"Schedule XIX","index":75,"n_rows":98,"n_cols":8,"rows_kept":98,"cut":false,"hidden":false,"merged":[[77,2,78,7],[0,2,0,4],[7,2,7,7],[56,2,56,3],[57,2,57,3],[58,2,58,3],[59,2,59,3],[60,2,60,3],[61,2,61,3],[62,2,62,3],[63,2,63,3],[64,2,64,3],[1,5,6,6],[85,2,85,3],[86,2,86,3],[87,2,87,3],[88,2,88,3],[80,2,80,3],[81,2,81,3],[82,2,82,3],[83,2,83,3],[84,2,84,3]]}
[null,null,"SCHEDULE OF RISK MANAGEMENT -  CASH AND CASH EQUIVALENTS COUNTERPARTY ANALYSIS",null,null,null,null,{"$f":"HYPERLINK(\"#'Index'!A1\",\"Return to Index\")","v":"Return to Index"}]
[null,null,{"$f":"+'Insurer Information'!C7","v":"Enter Company Name"},null,null,"Note if an insurer does not have any entities to consolidate, enter EBS Valuation information only (This cell is editable for deletion)"]
[null,null,{"$f":" TEXT('Insurer Information'!C3,\"D MMMM YYYY\")","v":"31 December 2023"}]
[null,null,{"$f":"+'Form 4EBS'!B4","v":"Expressed in  ['000s]"},null,null,null,null,"SCHEDULE XIX"]
[]
[null,null,"Cash and cash equivalent countparty balances"]
[]
[null,null,"Enter at Least the 10 Largest Balances for Cash and Cash Equivalents with the Remaining Balances Grouped According to BSCR Ratings and/or a Single Consolidated Cash Balance"]
[]
[null,null,"Enter Number of Balances",{"$f":"Import!E36234","v":0},null,"Unconsolidated SFS",null,"EBS Valuation"]
[]
[null,null,"Cash and Cash Equivalent Counterparty Balance",null,null,"(A)",null,"(B)"]
[null,null,"Name of Cash and Cash Equivalent Counterparty Balance","BSCR Rating",null,"Cash and Cash Equivalent Balance\n(Form 1SFS, Line 1 & Schedule IIA Line 27)",null,"Cash and Cash Equivalent Balance\n(Form 4EBS, Line 1 & Schedule IIA Line 27)"]
[null,1,{"$f":"Import!E36235","v":0},{"$f":"Import!E36255","v":"Select"},null,{"$f":"Import!E36275","v":0},null,{"$f":"Import!M36275","v":0}]
[null,2,{"$f":"Import!E36236","v":0},{"$f":"Import!E36256","v":"Select"},null,{"$f":"Import!E36276","v":0},null,{"$f":"Import!M36276","v":0}]
[null,3,{"$f":"Import!E36237","v":0},{"$f":"Import!E36257","v":"Select"},null,{"$f":"Import!E36277","v":0},null,{"$f":"Import!M36277","v":0}]
[null,4,{"$f":"Import!E36238","v":0},{"$f":"Import!E36258","v":"Select"},null,{"$f":"Import!E36278","v":0},null,{"$f":"Import!M36278","v":0}]
[null,5,{"$f":"Import!E36239","v":0},{"$f":"Import!E36259","v":"Select"},null,{"$f":"Import!E36279","v":0},null,{"$f":"Import!M36279","v":0}]
[null,6,{"$f":"Import!E36240","v":0},{"$f":"Import!E36260","v":"Select"},null,{"$f":"Import!E36280","v":0},null,{"$f":"Import!M36280","v":0}]
[null,7,{"$f":"Import!E36241","v":0},{"$f":"Import!E36261","v":"Select"},null,{"$f":"Import!E36281","v":0},null,{"$f":"Import!M36281","v":0}]
[null,8,{"$f":"Import!E36242","v":0},{"$f":"Import!E36262","v":"Select"},null,{"$f":"Import!E36282","v":0},null,{"$f":"Import!M36282","v":0}]
[null,9,{"$f":"Import!E36243","v":0},{"$f":"Import!E36263","v":"Select"},null,{"$f":"Import!E36283","v":0},null,{"$f":"Import!M36283","v":0}]
[null,10,{"$f":"Import!E36244","v":0},{"$f":"Import!E36264","v":"Select"},null,{"$f":"Import!E36284","v":0},null,{"$f":"Import!M36284","v":0}]
[null,11,{"$f":"Import!E36245","v":0},{"$f":"Import!E36265","v":"Select"},null,{"$f":"Import!E36285","v":0},null,{"$f":"Import!M36285","v":0}]
[null,12,{"$f":"Import!E36246","v":0},{"$f":"Import!E36266","v":"Select"},null,{"$f":"Import!E36286","v":0},null,{"$f":"Import!M36286","v":0}]
[null,13,{"$f":"Import!E36247","v":0},{"$f":"Import!E36267","v":"Select"},null,{"$f":"Import!E36287","v":0},null,{"$f":"Import!M36287","v":0}]
[null,14,{"$f":"Import!E36248","v":0},{"$f":"Import!E36268","v":"Select"},null,{"$f":"Import!E36288","v":0},null,{"$f":"Import!M36288","v":0}]
[null,15,{"$f":"Import!E36249","v":0},{"$f":"Import!E36269","v":"Select"},null,{"$f":"Import!E36289","v":0},null,{"$f":"Import!M36289","v":0}]
[null,16,{"$f":"Import!E36250","v":0},{"$f":"Import!E36270","v":"Select"},null,{"$f":"Import!E36290","v":0},null,{"$f":"Import!M36290","v":0}]
[null,17,{"$f":"Import!E36251","v":0},{"$f":"Import!E36271","v":"Select"},null,{"$f":"Import!E36291","v":0},null,{"$f":"Import!M36291","v":0}]
[null,18,{"$f":"Import!E36252","v":0},{"$f":"Import!E36272","v":"Select"},null,{"$f":"Import!E36292","v":0},null,{"$f":"Import!M36292","v":0}]
[null,19,{"$f":"Import!E36253","v":0},{"$f":"Import!E36273","v":"Select"},null,{"$f":"Import!E36293","v":0},null,{"$f":"Import!M36293","v":0}]
[null,20,{"$f":"Import!E36254","v":0},{"$f":"Import!E36274","v":"Select"},null,{"$f":"Import!E36294","v":0},null,{"$f":"Import!M36294","v":0}]
[null,21]
[null,22]
[null,23]
[null,24]
[null,25]
[null,26]
[null,27]
[null,28]
[null,29]
[null,30]
[null,31]
[null,32]
[null,33]
[null,34]
[null,35]
[null,36]
[null,37]
[null,38]
[null,39]
[null,40]
[null,null,"Total Cash and Cash Equivalent Counterparty Balance",null,null,{"$f":"SUM(F14:F53)","v":0},null,{"$f":"SUM(H14:H53)","v":0}]
[]
[null,null,"Exposure by BSCR Rating"]
[null,null,"BSCR Rating 0 (Domestic Affiliates)",null,null,{"$f":"Import!E36296","v":0},null,{"$f":"Import!M36296","v":0}]
[null,null,"BSCR Rating 1",null,null,{"$f":"Import!E36297","v":0},null,{"$f":"Import!M36297","v":0}]
[null,null,"BSCR Rating 2",null,null,{"$f":"Import!E36298","v":0},null,{"$f":"Import!M36298","v":0}]
[null,null,"BSCR Rating 3",null,null,{"$f":"Import!E36299","v":0},null,{"$f":"Import!M36299","v":0}]
[null,null,"BSCR Rating 4",null,null,{"$f":"Import!E36300","v":0},null,{"$f":"Import!M36300","v":0}]
[null,null,"BSCR Rating 5",null,null,{"$f":"Import!E36301","v":0},null,{"$f":"Import!M36301","v":0}]
[null,null,"BSCR Rating 6",null,null,{"$f":"Import!E36302","v":0},null,{"$f":"Import!M36302","v":0}]
[null,null,"BSCR Rating 7",null,null,{"$f":"Import!E36303","v":0},null,{"$f":"Import!M36303","v":0}]
[null,null,"BSCR Rating 8",null,null,{"$f":"Import!E36304","v":0},null,{"$f":"Import!M36304","v":0}]
[null,null,"Total Exposure by BSCR Rating",null,null,{"$f":"SUM(F57:F65)","v":0},null,{"$f":"SUM(H57:H65)","v":0}]
[]
[null,null,"Single Consolidated Exposure",null,null,{"$f":"IF('Insurer Information'!$C$2=\"IFRS\",'Form 1ASFS'!E10+'Form 1ASFS'!I10+'Schedule IIA'!D68-F54-F66,\n'Form 1SFS'!F12+'Form 1SFS'!H12+'Schedule IIA'!D68-F54-F66)","v":0},null,{"$f":"'Form 4EBS'!F10+'Schedule IIA (EBS)'!D68-H54-H66","v":0}]
[]
[null,null,"Total Cash and Cash Equivalent Balance",null,null,{"$f":"F54+F66+F68","v":0},null,{"$f":"H54+H66+H68","v":0}]
[]
[null,null,"Cash and Cash Equivalent Check",null,null,{"$f":"IF('Insurer Information'!$C$2=\"IFRS\",'Form 1ASFS'!E10+'Form 1ASFS'!I10+'Schedule IIA'!D68,\n'Form 1SFS'!F12+'Form 1SFS'!H12+'Schedule IIA'!D68)","v":0},null,{"$f":"'Form 4EBS'!F10+'Schedule IIA (EBS)'!D68","v":0}]
[]
[null,null,null,null,null,{"$f":"IF(F75=\"TRUE\",HYPERLINK(\"#'Form 1SFS'!F12:K12\",\"TRUE\"),HYPERLINK(\"#'Form 1SFS'!F12:K12\",\"FALSE\"))","v":"TRUE"},null,{"$f":"IF(H75=\"TRUE\",HYPERLINK(\"#'Form 4EBS'!F10\",\"TRUE\"),HYPERLINK(\"#'Form 4EBS'!F10\",\"FALSE\"))","v":"TRUE"}]
[null,null,null,null,null,{"$f":"IF((F70-F72)=0,\"TRUE\",\"FALSE\")","v":"TRUE"},null,{"$f":"IF((H70-H72)=0,\"TRUE\",\"FALSE\")","v":"TRUE"}]
[null,null,"Difference",null,null,{"$f":"ROUND(F70-F72,0)","v":0},null,{"$f":"ROUND(H70-H72,0)","v":0}]
[]
[null,null,"Cash and Cash Equivalents Counterparty Balance by BSCR Rating"]
[]
[null,null,"Select",null,null,null,null,"Cash and Cash Equivalent Exposure"]
[null,null,"BSCR Rating 0 (Domestic Affiliates)",null,null,null,null,{"$f":"SUMPRODUCT(H$14:H$53,($D$14:$D$53=C81)*1)+H57","v":0}]
[null,null,"BSCR Rating 1",null,null,null,null,0]
[null,null,"BSCR Rating 2",null,null,null,null,0]
[null,null,"BSCR Rating 3",null,null,null,null,0]
[null,null,"BSCR Rating 4",null,null,null,null,0]
[null,null,"BSCR Rating 5",null,null,null,null,0]
[null,null,"BSCR Rating 6",null,null,null,null,0]
[null,null,"BSCR Rating 7",null,null,null,null,0]
[null,null,"BSCR Rating 8",null,null,null,null,{"$f":"SUMPRODUCT(H$14:H$53,($D$14:$D$53=C89)*1)+H65+H68","v":0}]
[null,null,"Total",null,null,null,null,{"$f":"SUM(H81:H89)","v":0}]
[]
[]
[null,null,"Diversification Adjustment Calculation On an Exposure Basis"]
[]
[null,null,"Maximum Cash and Cash Equivalent Counterparty Balance On a Single Exposure Basis",null,null,null,null,{"$f":"MAX(H14:H53)","v":0}]
[null,null,"Total Cash and Cash Equivalent Counterparty Balance",null,null,null,null,{"$f":"H72","v":0}]
[null,null,"Percentage",null,null,null,null,{"$f":"IF(H96=0,0,H95/H96)","v":0}]
[null,null,"Diversification Adjustment up to 40%",null,null,null,null,{"$f":"IF(H95=0,0,(1-H97)*40%)","v":0}]

{"sheet":"Schedule XIXA","index":76,"n_rows":98,"n_cols":6,"rows_kept":98,"cut":false,"hidden":false,"merged":[[64,2,64,3],[0,2,0,4],[7,2,7,5],[56,2,56,3],[57,2,57,3],[58,2,58,3],[59,2,59,3],[60,2,60,3],[61,2,61,3],[62,2,62,3],[63,2,63,3],[85,2,85,3],[86,2,86,3],[87,2,87,3],[88,2,88,3],[77,2,78,5],[80,2,80,3],[81,2,81,3],[82,2,82,3],[83,2,83,3],[84,2,84,3]]}
[null,null,"SCHEDULE OF RISK MANAGEMENT -  CASH AND CASH EQUIVALENTS COUNTERPARTY ANALYSIS",null,null,{"$f":"HYPERLINK(\"#'Index'!A1\",\"Return to Index\")","v":"Return to Index"}]
[null,null,{"$f":"+'Insurer Information'!C7","v":"Enter Company Name"}]
[null,null,{"$f":" TEXT('Insurer Information'!C3,\"D MMMM YYYY\")","v":"31 December 2023"}]
[null,null,{"$f":"+'Form 4EBS'!B4","v":"Expressed in  ['000s]"},null,null,"SCHEDULE XIXA"]
[]
[null,null,"Cash and cash equivalent countparty balances"]
[]
[null,null,"Enter at Least the 10 Largest Balances for Cash and Cash Equivalents with the Remaining Balances Grouped According to BSCR Ratings and/or a Single Consolidated Cash Balance"]
[]
[null,null,"Enter Number of Balances",{"$f":"Import!M39034","v":0},null,"EBS Valuation"]
[]
[null,null,"Cash and Cash Equivalent Counterparty Balance",null,null,"(A)"]
[null,null,"Name of Cash and Cash Equivalent Counterparty Balance","BSCR Rating",null,"Cash and Cash Equivalent Balance\n(Form 4EBS Line 1 & Schedule IIB-IIF Line 58)"]
[null,1,{"$f":"Import!M39035","v":0},{"$f":"Import!M39055","v":"Select"},null,{"$f":"Import!M39075","v":0}]
[null,2,{"$f":"Import!M39036","v":0},{"$f":"Import!M39056","v":"Select"},null,{"$f":"Import!M39076","v":0}]
[null,3,{"$f":"Import!M39037","v":0},{"$f":"Import!M39057","v":"Select"},null,{"$f":"Import!M39077","v":0}]
[null,4,{"$f":"Import!M39038","v":0},{"$f":"Import!M39058","v":"Select"},null,{"$f":"Import!M39078","v":0}]
[null,5,{"$f":"Import!M39039","v":0},{"$f":"Import!M39059","v":"Select"},null,{"$f":"Import!M39079","v":0}]
[null,6,{"$f":"Import!M39040","v":0},{"$f":"Import!M39060","v":"Select"},null,{"$f":"Import!M39080","v":0}]
[null,7,{"$f":"Import!M39041","v":0},{"$f":"Import!M39061","v":"Select"},null,{"$f":"Import!M39081","v":0}]
[null,8,{"$f":"Import!M39042","v":0},{"$f":"Import!M39062","v":"Select"},null,{"$f":"Import!M39082","v":0}]
[null,9,{"$f":"Import!M39043","v":0},{"$f":"Import!M39063","v":"Select"},null,{"$f":"Import!M39083","v":0}]
[null,10,{"$f":"Import!M39044","v":0},{"$f":"Import!M39064","v":"Select"},null,{"$f":"Import!M39084","v":0}]
[null,11,{"$f":"Import!M39045","v":0},{"$f":"Import!M39065","v":"Select"},null,{"$f":"Import!M39085","v":0}]
[null,12,{"$f":"Import!M39046","v":0},{"$f":"Import!M39066","v":"Select"},null,{"$f":"Import!M39086","v":0}]
[null,13,{"$f":"Import!M39047","v":0},{"$f":"Import!M39067","v":"Select"},null,{"$f":"Import!M39087","v":0}]
[null,14,{"$f":"Import!M39048","v":0},{"$f":"Import!M39068","v":"Select"},null,{"$f":"Import!M39088","v":0}]
[null,15,{"$f":"Import!M39049","v":0},{"$f":"Import!M39069","v":"Select"},null,{"$f":"Import!M39089","v":0}]
[null,16,{"$f":"Import!M39050","v":0},{"$f":"Import!M39070","v":"Select"},null,{"$f":"Import!M39090","v":0}]
[null,17,{"$f":"Import!M39051","v":0},{"$f":"Import!M39071","v":"Select"},null,{"$f":"Import!M39091","v":0}]
[null,18,{"$f":"Import!M39052","v":0},{"$f":"Import!M39072","v":"Select"},null,{"$f":"Import!M39092","v":0}]
[null,19,{"$f":"Import!M39053","v":0},{"$f":"Import!M39073","v":"Select"},null,{"$f":"Import!M39093","v":0}]
[null,20,{"$f":"Import!M39054","v":0},{"$f":"Import!M39074","v":"Select"},null,{"$f":"Import!M39094","v":0}]
[null,21]
[null,22]
[null,23]
[null,24]
[null,25]
[null,26]
[null,27]
[null,28]
[null,29]
[null,30]
[null,31]
[null,32]
[null,33]
[null,34]
[null,35]
[null,36]
[null,37]
[null,38]
[null,39]
[null,40]
[null,null,"Total Cash and Cash Equivalent Counterparty Balance",null,null,{"$f":"SUM(F14:F53)","v":0}]
[]
[null,null,"Exposure by BSCR Rating"]
[null,null,"BSCR Rating 0 (Domestic Affiliates)",null,null,{"$f":"Import!M39096","v":0}]
[null,null,"BSCR Rating 1",null,null,{"$f":"Import!M39097","v":0}]
[null,null,"BSCR Rating 2",null,null,{"$f":"Import!M39098","v":0}]
[null,null,"BSCR Rating 3",null,null,{"$f":"Import!M39099","v":0}]
[null,null,"BSCR Rating 4",null,null,{"$f":"Import!M39100","v":0}]
[null,null,"BSCR Rating 5",null,null,{"$f":"Import!M39101","v":0}]
[null,null,"BSCR Rating 6",null,null,{"$f":"Import!M39102","v":0}]
[null,null,"BSCR Rating 7",null,null,{"$f":"Import!M39103","v":0}]
[null,null,"BSCR Rating 8",null,null,{"$f":"Import!M39104","v":0}]
[null,null,"Total Exposure by BSCR Rating",null,null,{"$f":"SUM(F57:F65)","v":0}]
[]
[null,null,"Single Consolidated Exposure",null,null,{"$f":"'Form 4EBS'!F10+'Schedule IIB (EBS)'!D95+'Schedule IIC (EBS)'!D95+'Schedule IID (EBS)'!D95+'Schedule IIE (EBS)'!D95+'Schedule IIF (EBS)'!D95-F54-F66","v":0}]
[]
[null,null,"Total Cash and Cash Equivalent Balance",null,null,{"$f":"F54+F66+F68","v":0}]
[]
[null,null,"Cash and Cash Equivalent Check",null,null,{"$f":"'Form 4EBS'!F10+'Schedule IIB (EBS)'!D95+'Schedule IIC (EBS)'!D95+'Schedule IID (EBS)'!D95+'Schedule IIE (EBS)'!D95+'Schedule IIF (EBS)'!D95","v":0}]
[]
[null,null,null,null,null,{"$f":"IF((F70-F72)=0,\"TRUE\",\"FALSE\")","v":"TRUE"}]
[]
[null,null,"Difference",null,null,{"$f":"F70-F72","v":0}]
[]
[null,null,"Cash and Cash Equivalents Counterparty Balance by BSCR Rating"]
[]
[null,null,"Select",null,null,"Cash and Cash Equivalent Exposure"]
[null,null,"BSCR Rating 0 (Domestic Affiliates)",null,null,{"$f":"SUMPRODUCT(F$14:F$53,($D$14:$D$53=C81)*1)+F57","v":0}]
[null,null,"BSCR Rating 1",null,null,0]
[null,null,"BSCR Rating 2",null,null,0]
[null,null,"BSCR Rating 3",null,null,0]
[null,null,"BSCR Rating 4",null,null,0]
[null,null,"BSCR Rating 5",null,null,0]
[null,null,"BSCR Rating 6",null,null,0]
[null,null,"BSCR Rating 7",null,null,0]
[null,null,"BSCR Rating 8",null,null,{"$f":"SUMPRODUCT(F$14:F$53,($D$14:$D$53=C89)*1)+F65+F68","v":0}]
[null,null,"Total",null,null,{"$f":"SUM(F81:F89)","v":0}]
[]
[]
[null,null,"Diversification Adjustment Calculation On an Exposure Basis"]
[]
[null,null,"Maximum Cash and Cash Equivalent Counterparty Balance On a Single Exposure Basis",null,null,{"$f":"MAX(F14:F53)","v":0}]
[null,null,"Total Cash and Cash Equivalent Counterparty Balance",null,null,{"$f":"F72","v":0}]
[null,null,"Percentage",null,null,{"$f":"IF(F96=0,0,F95/F96)","v":0}]
[null,null,"Diversification Adjustment up to 40%",null,null,{"$f":"IF(F95=0,0,(1-F97)*40%)","v":0}]

{"sheet":"Schedule XX","index":77,"n_rows":38,"n_cols":20,"rows_kept":38,"cut":false,"hidden":false,"merged":[[4,3,4,9],[4,11,4,17],[2,3,3,9]]}
[null,"SCHEDULE OF CURRENCY RISK",null,null,null,null,null,null,null,null,null,null,null,null,null,null,null,null,null,{"$f":"HYPERLINK(\"#'Index'!A1\",\"Return to Index\")","v":"Return to Index"}]
[null,{"$f":"+'Insurer Information'!C7","v":"Enter Company Name"}]
[null,{"$f":" TEXT('Insurer Information'!C3,\"D MMMM YYYY\")","v":"31 December 2023"},null,"Note if an insurer does not have any entities to consolidate, enter EBS Valuation information only \n(This cell is editable for deletion)",null,null,null,null,null,null,null,null,null,null,null,null,null,null,null,"SCHEDULE XX"]
[null,{"$f":"+'Form 4EBS'!B4","v":"Expressed in  ['000s]"}]
[null,null,null,"Unconsolidated SFS",null,null,null,null,null,null,null,"EBS Valuation"]
[null,null,null,"(A)",null,"(B)",null,"(C)",null,"(D)",null,"(E)",null,"(F)",null,"(G)",null,"(H)",null,"(I)"]
[null,"Currency",null,"Assets",null,"Assets with Hedging Arrangements",null,"Liabilities",null,"Liabilities with Hedging Arrangements",null,"Assets",null,"Assets with Hedging Arrangements",null,"Liabilities",null,"Liabilities with Hedging Arrangements",null,"Net Asset Value"]
[]
[null,{"$f":"'Form 4EBS'!C4","v":"United States Dollars"},null,{"$f":"Import!E36306","v":0},null,{"$f":"Import!E36322","v":0},null,{"$f":"Import!E36338","v":0},null,{"$f":"Import!E36354","v":0},null,{"$f":"Import!M36306","v":0},null,{"$f":"Import!M36322","v":0},null,{"$f":"Import!M36338","v":0},null,{"$f":"Import!M36354","v":0},null,{"$f":"L9-P9","v":0}]
[null,{"$f":"IF($B$9=\"Euro\",\"United States Dollar\",\"Euro\")","v":"Euro"},null,{"$f":"Import!E36307","v":0},null,{"$f":"Import!E36323","v":0},null,{"$f":"Import!E36339","v":0},null,{"$f":"Import!E36355","v":0},null,{"$f":"Import!M36307","v":0},null,{"$f":"Import!M36323","v":0},null,{"$f":"Import!M36339","v":0},null,{"$f":"Import!M36355","v":0},null,{"$f":"L10-P10","v":0}]
[null,{"$f":"IF($B$9=\"United Kingdom Pounds\",\"United States Dollar\",\"United Kingdom Pounds\")","v":"United Kingdom Pounds"},null,{"$f":"Import!E36308","v":0},null,{"$f":"Import!E36324","v":0},null,{"$f":"Import!E36340","v":0},null,{"$f":"Import!E36356","v":0},null,{"$f":"Import!M36308","v":0},null,{"$f":"Import!M36324","v":0},null,{"$f":"Import!M36340","v":0},null,{"$f":"Import!M36356","v":0},null,0]
[null,{"$f":"IF($B$9=\"Canada Dollars\",\"United States Dollar\",\"Canada Dollars\")","v":"Canada Dollars"},null,{"$f":"Import!E36309","v":0},null,{"$f":"Import!E36325","v":0},null,{"$f":"Import!E36341","v":0},null,{"$f":"Import!E36357","v":0},null,{"$f":"Import!M36309","v":0},null,{"$f":"Import!M36325","v":0},null,{"$f":"Import!M36341","v":0},null,{"$f":"Import!M36357","v":0},null,0]
[null,{"$f":"IF($B$9=\"Japan Yen\",\"United States Dollar\",\"Japan Yen\")","v":"Japan Yen"},null,{"$f":"Import!E36310","v":0},null,{"$f":"Import!E36326","v":0},null,{"$f":"Import!E36342","v":0},null,{"$f":"Import!E36358","v":0},null,{"$f":"Import!M36310","v":0},null,{"$f":"Import!M36326","v":0},null,{"$f":"Import!M36342","v":0},null,{"$f":"Import!M36358","v":0},null,0]
[null,"Other currency 1",null,{"$f":"Import!E36311","v":0},null,{"$f":"Import!E36327","v":0},null,{"$f":"Import!E36343","v":0},null,{"$f":"Import!E36359","v":0},null,{"$f":"Import!M36311","v":0},null,{"$f":"Import!M36327","v":0},null,{"$f":"Import!M36343","v":0},null,{"$f":"Import!M36359","v":0},null,0]
[null,"Other currency 2",null,{"$f":"Import!E36312","v":0},null,{"$f":"Import!E36328","v":0},null,{"$f":"Import!E36344","v":0},null,{"$f":"Import!E36360","v":0},null,{"$f":"Import!M36312","v":0},null,{"$f":"Import!M36328","v":0},null,{"$f":"Import!M36344","v":0},null,{"$f":"Import!M36360","v":0},null,0]
[null,"Other currency 3",null,{"$f":"Import!E36313","v":0},null,{"$f":"Import!E36329","v":0},null,{"$f":"Import!E36345","v":0},null,{"$f":"Import!E36361","v":0},null,{"$f":"Import!M36313","v":0},null,{"$f":"Import!M36329","v":0},null,{"$f":"Import!M36345","v":0},null,{"$f":"Import!M36361","v":0},null,0]
[null,"Other currency 4",null,{"$f":"Import!E36314","v":0},null,{"$f":"Import!E36330","v":0},null,{"$f":"Import!E36346","v":0},null,{"$f":"Import!E36362","v":0},null,{"$f":"Import!M36314","v":0},null,{"$f":"Import!M36330","v":0},null,{"$f":"Import!M36346","v":0},null,{"$f":"Import!M36362","v":0},null,0]
[null,"Other currency 5",null,{"$f":"Import!E36315","v":0},null,{"$f":"Import!E36331","v":0},null,{"$f":"Import!E36347","v":0},null,{"$f":"Import!E36363","v":0},null,{"$f":"Import!M36315","v":0},null,{"$f":"Import!M36331","v":0},null,{"$f":"Import!M36347","v":0},null,{"$f":"Import!M36363","v":0},null,0]
[null,"Other currency 6",null,{"$f":"Import!E36316","v":0},null,{"$f":"Import!E36332","v":0},null,{"$f":"Import!E36348","v":0},null,{"$f":"Import!E36364","v":0},null,{"$f":"Import!M36316","v":0},null,{"$f":"Import!M36332","v":0},null,{"$f":"Import!M36348","v":0},null,{"$f":"Import!M36364","v":0},null,0]
[null,"Other currency 7",null,{"$f":"Import!E36317","v":0},null,{"$f":"Import!E36333","v":0},null,{"$f":"Import!E36349","v":0},null,{"$f":"Import!E36365","v":0},null,{"$f":"Import!M36317","v":0},null,{"$f":"Import!M36333","v":0},null,{"$f":"Import!M36349","v":0},null,{"$f":"Import!M36365","v":0},null,0]
[null,"Other currency 8",null,{"$f":"Import!E36318","v":0},null,{"$f":"Import!E36334","v":0},null,{"$f":"Import!E36350","v":0},null,{"$f":"Import!E36366","v":0},null,{"$f":"Import!M36318","v":0},null,{"$f":"Import!M36334","v":0},null,{"$f":"Import!M36350","v":0},null,{"$f":"Import!M36366","v":0},null,0]
[null,"Other currency 9",null,{"$f":"Import!E36319","v":0},null,{"$f":"Import!E36335","v":0},null,{"$f":"Import!E36351","v":0},null,{"$f":"Import!E36367","v":0},null,{"$f":"Import!M36319","v":0},null,{"$f":"Import!M36335","v":0},null,{"$f":"Import!M36351","v":0},null,{"$f":"Import!M36367","v":0},null,0]
[null,"Other currency 10",null,{"$f":"Import!E36320","v":0},null,{"$f":"Import!E36336","v":0},null,{"$f":"Import!E36352","v":0},null,{"$f":"Import!E36368","v":0},null,{"$f":"Import!M36320","v":0},null,{"$f":"Import!M36336","v":0},null,{"$f":"Import!M36352","v":0},null,{"$f":"Import!M36368","v":0},null,0]
[null,"Currency Total",null,{"$f":"SUM(D9:D23)","v":0},null,{"$f":"SUM(F9:F23)","v":0},null,{"$f":"SUM(H9:H23)","v":0},null,{"$f":"SUM(J9:J23)","v":0},null,{"$f":"SUM(L9:L23)","v":0},null,{"$f":"SUM(N9:N23)","v":0},null,{"$f":"SUM(P9:P23)","v":0},null,{"$f":"SUM(R9:R23)","v":0},null,{"$f":"SUM(T9:T23)","v":0}]
[]
[null,null,null,null,null,null,null,null,null,null,null,"Form 4EBS Line 15",null,null,null,"Form 4EBS Line 39"]
[null,"Balance Sheet Total",null,null,null,null,null,null,null,null,null,{"$f":"+'Form 4EBS'!F93","v":0},null,null,null,{"$f":"+'Form 4EBS'!F180","v":0}]
[null,"% of Balance Sheet Total",null,null,null,null,null,null,null,null,null,{"$f":"IF(L27=0,0,L24/L27)","v":0},null,null,null,{"$f":"IF(P27=0,0,P24/P27)","v":0}]
[]
[null,"95% Minimum Test Met",null,null,null,null,null,null,null,null,null,{"$f":"IF(L27=0,\"Form 4EBS is Blank\",IF(L28<=95%,\"False\",IF(L28>100%,\"False\",\"True\")))","v":"Form 4EBS is Blank"},null,null,null,{"$f":"IF(P27=0,\"Form 4EBS is Blank\",IF(P28<=95%,\"False\",IF(P28>100%,\"False\",\"True\")))","v":"Form 4EBS is Blank"}]
[]
[null,null,null,null,null,null,null,null,null,null,null,"Liabilities",null,null,null,"ECR Charge",null,"Ratio",null,"Assessment*"]
[null,null,null,null,null,null,null,null,null,null,null,"Form 4EBS, Line 39",null,null,null,"Summary tab"]
[null,{"$f":"'Form 4EBS'!H6","v":"2022-12-31"},null,null,null,null,null,null,null,null,null,{"$f":"Import!M36370","v":0},null,null,null,{"$f":"Import!M36373","v":0},null,{"$f":"IF(P34=0,\"\",P34/L34)","v":""}]
[null,{"$f":"DATE(YEAR(B34)-1,MONTH(B34),DAY(B34))","v":"2021-12-31"},null,null,null,null,null,null,null,null,null,{"$f":"Import!M36371","v":0},null,null,null,{"$f":"Import!M36374","v":0},null,{"$f":"IF(P35=0,\"\",P35/L35)","v":""}]
[null,{"$f":"DATE(YEAR(B35)-1,MONTH(B35),DAY(B35))","v":"2020-12-31"},null,null,null,null,null,null,null,null,null,{"$f":"Import!M36372","v":0},null,null,null,{"$f":"Import!M36375","v":0},null,{"$f":"IF(P36=0,\"\",P36/L36)","v":""},null,{"$f":"IF(SUM(R34:R36)=0,IF(P34=0,0%,R34),MAX(R34,AVERAGE(R34:R36)))","v":0}]
[]
[null,"*If there are no amounts for previous years, enter the results from the current year without taking currency risk into account into the prior year"]

{"sheet":"Schedule XXA","index":78,"n_rows":47,"n_cols":34,"rows_kept":47,"cut":false,"hidden":false,"merged":[[2,3,3,3],[4,3,4,33],[6,5,6,7],[6,9,6,11],[6,23,6,25],[6,27,6,29],[5,3,5,14],[5,21,5,33]]}
[null,"SCHEDULE OF CURRENCY RISK",null,null,null,null,null,null,null,null,null,null,null,null,null,null,null,null,null,null,null,null,null,null,null,null,null,null,null,null,null,null,null,{"$f":"HYPERLINK(\"#'Index'!A1\",\"Return to Index\")","v":"Return to Index"}]
[null,{"$f":"+'Insurer Information'!C7","v":"Enter Company Name"}]
[null,{"$f":" TEXT('Insurer Information'!C3,\"D MMMM YYYY\")","v":"31 December 2023"},null,null,null,null,null,null,null,null,null,null,null,null,null,null,null,null,null,null,null,null,null,null,null,null,null,null,null,null,null,null,null,"SCHEDULE XXA"]
[null,{"$f":"+'Form 4EBS'!B4","v":"Expressed in  ['000s]"}]
[null,null,null,"EBS Valuation"]
[null,null,null,"MARKET VALUE BEFORE SHOCK",null,null,null,null,null,null,null,null,null,null,null,null,null,null,null,null,null,"MARKET VALUE AFTER SHOCK"]
[null,null,null,null,null,"Long Exposures",null,null,null,"Short Exposures",null,null,null,null,null,null,null,null,null,null,null,null,null,"Long Exposures",null,null,null,"Short Exposures"]
[null,"Currency",null,"Assets - Excluding currency- derivatives",null,"Currency Derivatives Qualifying as held for risk-mitigation purposes",null,"Currency Derivatives Not Qualifying as held for risk-mitigation purposes",null,"Currency Derivatives Qualifying as held for risk-mitigation purposes",null,"Currency Derivatives Not Qualifying as held for risk-mitigation purposes",null,"Best Estimate Liabilities without Management Actions",null,"Proxy BSCR",null,"Surplus Assets",null,"Shock",null,"Assets - Excluding currency- derivatives",null,"Currency Derivatives Qualifying as held for risk-mitigation purposes",null,"Currency Derivatives Not Qualifying as held for risk-mitigation purposes",null,"Currency Derivatives Qualifying as held for risk-mitigation purposes",null,"Currency Derivatives Not Qualifying as held for risk-mitigation purposes",null,"Best Estimate Liabilities without Management Actions",null,"Best Estimate Liabilities with Management Actions"]
[null,null,null,"(A)",null,"(B)",null,"(C)",null,"(D)",null,"(E)",null,"(F)",null,null,null,null,null,null,null,"(G)",null,"(H)",null,"(I)",null,"(J)",null,"(K)",null,"(L)",null,"(M)"]
[null,{"$f":"'Form 4EBS'!C4","v":"United States Dollars"},null,{"$f":"Import!M39116","v":0},null,{"$f":"Import!M39139","v":0},null,{"$f":"Import!M39162","v":0},null,{"$f":"Import!M39185","v":0},null,{"$f":"Import!M39208","v":0},null,{"$f":"Import!M39231","v":0},null,{"$f":"$P$45*N10","v":0},null,{"$f":"D10+F10+H10+J10+L10-N10-P10","v":0},null,0,null,{"$f":"IF(OR(Import!M39254=0,Import!M39254=\"\"),(1+T10)*D10,Import!M39254)","v":0},null,{"$f":"Import!M39277","v":0},null,{"$f":"Import!M39300","v":0},null,{"$f":"Import!M39323","v":0},null,{"$f":"Import!M39346","v":0},null,{"$f":"IF(OR(Import!M39369=0,Import!M39369=\"\"),(1+T10)*N10,Import!M39369)","v":0},null,{"$f":"IF(OR(Import!M39392=0,Import!M39392=\"\"),AF10,Import!M39392)","v":0}]
[null,{"$f":"IF($B$10=\"Bermuda Dollars\",\"United States Dollar\",\"Bermuda Dollars\")","v":"Bermuda Dollars"},null,{"$f":"Import!M39117","v":0},null,{"$f":"Import!M39140","v":0},null,{"$f":"Import!M39163","v":0},null,{"$f":"Import!M39186","v":0},null,{"$f":"Import!M39209","v":0},null,{"$f":"Import!M39232","v":0},null,{"$f":"$P$45*N11","v":0},null,{"$f":"D11+F11+H11+J11+L11-N11-P11","v":0},null,{"$f":"IF($B$10=\"Bermuda Dollars\",0%,IF($B$10=\"United States Dollars\",0%,IF((D11+F11+H11+J11+L11)>(N11+P11),0%,25%)))","v":0},null,{"$f":"IF(OR(Import!M39255=0,Import!M39255=\"\"),(1+T11)*D11,Import!M39255)","v":0},null,{"$f":"Import!M39278","v":0},null,{"$f":"Import!M39301","v":0},null,{"$f":"Import!M39324","v":0},null,{"$f":"Import!M39347","v":0},null,{"$f":"IF(OR(Import!M39370=0,Import!M39370=\"\"),(1+T11)*N11,Import!M39370)","v":0},null,{"$f":"IF(OR(Import!M39393=0,Import!M39393=\"\"),AF11,Import!M39393)","v":0}]
[null,{"$f":"IF($B$10=\"Qatar Riyals\",\"United States Dollar\",\"Qatar Riyals\")","v":"Qatar Riyals"},null,{"$f":"Import!M39118","v":0},null,{"$f":"Import!M39141","v":0},null,{"$f":"Import!M39164","v":0},null,{"$f":"Import!M39187","v":0},null,{"$f":"Import!M39210","v":0},null,{"$f":"Import!M39233","v":0},null,0,null,0,null,{"$f":"IF($B$10=\"Qatar Riyals\",IF((D12+F12+H12+J12+L12)>(N12+P12),0%,5%),IF($B$10=\"United States Dollars\",IF((D12+F12+H12+J12+L12)>(N12+P12),0%,5%),IF((D12+F12+H12+J12+L12)>(N12+P12),0%,25%)))","v":0.05},null,{"$f":"IF(OR(Import!M39256=0,Import!M39256=\"\"),(1+T12)*D12,Import!M39256)","v":0},null,{"$f":"Import!M39279","v":0},null,{"$f":"Import!M39302","v":0},null,{"$f":"Import!M39325","v":0},null,{"$f":"Import!M39348","v":0},null,{"$f":"IF(OR(Import!M39371=0,Import!M39371=\"\"),(1+T12)*N12,Import!M39371)","v":0},null,{"$f":"IF(OR(Import!M39394=0,Import!M39394=\"\"),AF12,Import!M39394)","v":0}]
[null,{"$f":"IF($B$10=\"Hong Kong Dollars\",\"United States Dollar\",\"Hong Kong Dollars\")","v":"Hong Kong Dollars"},null,{"$f":"Import!M39119","v":0},null,{"$f":"Import!M39142","v":0},null,{"$f":"Import!M39165","v":0},null,{"$f":"Import!M39188","v":0},null,{"$f":"Import!M39211","v":0},null,{"$f":"Import!M39234","v":0},null,0,null,0,null,{"$f":"IF($B$10=\"Hong Kong Dollars\",IF((D13+F13+H13+J13+L13)>(N13+P13),0%,1%),IF($B$10=\"United States Dollars\",IF((D13+F13+H13+J13+L13)>(N13+P13),0%,1%),IF((D13+F13+H13+J13+L13)>(N13+P13),0%,25%)))","v":0.01},null,{"$f":"IF(OR(Import!M39257=0,Import!M39257=\"\"),(1+T13)*D13,Import!M39257)","v":0},null,{"$f":"Import!M39280","v":0},null,{"$f":"Import!M39303","v":0},null,{"$f":"Import!M39326","v":0},null,{"$f":"Import!M39349","v":0},null,{"$f":"IF(OR(Import!M39372=0,Import!M39372=\"\"),(1+T13)*N13,Import!M39372)","v":0},null,{"$f":"IF(OR(Import!M39395=0,Import!M39395=\"\"),AF13,Import!M39395)","v":0}]
[null,{"$f":"IF($B$10=\"Euro\",\"United States Dollar\",\"Euro\")","v":"Euro"},null,{"$f":"Import!M39120","v":0},null,{"$f":"Import!M39143","v":0},null,{"$f":"Import!M39166","v":0},null,{"$f":"Import!M39189","v":0},null,{"$f":"Import!M39212","v":0},null,{"$f":"Import!M39235","v":0},null,0,null,0,null,{"$f":"IF($B$10=\"Denmark Kroner\",IF((D14+F14+H14+J14+L14)>(N14+P14),0%,0.39%),IF($B$10=\"Bulgaria Leva\",IF((D14+F14+H14+J14+L14)>(N14+P14),0%,1.81%),IF($B$10=\"West African CFA Francs\",IF((D14+F14+H14+J14+L14)>(N14+P14),0%,2.18%),IF($B$10=\"Central African CFA Francs\",IF((D14+F14+H14+J14+L14)>(N14+P14),0%,1.96%),IF($B$10=\"Comorian Francs\",IF((D14+F14+H14+J14+L14)>(N14+P14),0%,2%),IF((D14+F14+H14+J14+L14)>(N14+P14),0%,25%))))))","v":0.25},null,{"$f":"IF(OR(Import!M39258=0,Import!M39258=\"\"),(1+T14)*D14,Import!M39258)","v":0},null,{"$f":"Import!M39281","v":0},null,{"$f":"Import!M39304","v":0},null,{"$f":"Import!M39327","v":0},null,{"$f":"Import!M39350","v":0},null,{"$f":"IF(OR(Import!M39373=0,Import!M39373=\"\"),(1+T14)*N14,Import!M39373)","v":0},null,{"$f":"IF(OR(Import!M39396=0,Import!M39396=\"\"),AF14,Import!M39396)","v":0}]
[null,{"$f":"IF($B$10=\"Denmark Kroner\",\"United States Dollar\",\"Denmark Kroner\")","v":"Denmark Kroner"},null,{"$f":"Import!M39121","v":0},null,{"$f":"Import!M39144","v":0},null,{"$f":"Import!M39167","v":0},null,{"$f":"Import!M39190","v":0},null,{"$f":"Import!M39213","v":0},null,{"$f":"Import!M39236","v":0},null,0,null,0,null,{"$f":"IF($B$10=\"Euro\",IF((D15+F15+H15+J15+L15)>(N15+P15),0%,0.39%),IF((D15+F15+H15+J15+L15)>(N15+P15),0%,25%))","v":0.25},null,{"$f":"IF(OR(Import!M39259=0,Import!M39259=\"\"),(1+T15)*D15,Import!M39259)","v":0},null,{"$f":"Import!M39282","v":0},null,{"$f":"Import!M39305","v":0},null,{"$f":"Import!M39328","v":0},null,{"$f":"Import!M39351","v":0},null,{"$f":"IF(OR(Import!M39374=0,Import!M39374=\"\"),(1+T15)*N15,Import!M39374)","v":0},null,{"$f":"IF(OR(Import!M39397=0,Import!M39397=\"\"),AF15,Import!M39397)","v":0}]
[null,{"$f":"IF($B$10=\"Bulgaria Leva\",\"United States Dollar\",\"Bulgaria Leva\")","v":"Bulgaria Leva"},null,{"$f":"Import!M39122","v":0},null,{"$f":"Import!M39145","v":0},null,{"$f":"Import!M39168","v":0},null,{"$f":"Import!M39191","v":0},null,{"$f":"Import!M39214","v":0},null,{"$f":"Import!M39237","v":0},null,0,null,0,null,{"$f":"IF($B$10=\"Euro\",IF((D16+F16+H16+J16+L16)>(N16+P16),0%,1.81%),IF((D16+F16+H16+J16+L16)>(N16+P16),0%,25%))","v":0.25},null,{"$f":"IF(OR(Import!M39260=0,Import!M39260=\"\"),(1+T16)*D16,Import!M39260)","v":0},null,{"$f":"Import!M39283","v":0},null,{"$f":"Import!M39306","v":0},null,{"$f":"Import!M39329","v":0},null,{"$f":"Import!M39352","v":0},null,{"$f":"IF(OR(Import!M39375=0,Import!M39375=\"\"),(1+T16)*N16,Import!M39375)","v":0},null,{"$f":"IF(OR(Import!M39398=0,Import!M39398=\"\"),AF16,Import!M39398)","v":0}]
[null,{"$f":"IF($B$10=\"West African CFA Francs\",\"United States Dollar\",\"West African CFA Francs\")","v":"West African CFA Francs"},null,{"$f":"Import!M39123","v":0},null,{"$f":"Import!M39146","v":0},null,{"$f":"Import!M39169","v":0},null,{"$f":"Import!M39192","v":0},null,{"$f":"Import!M39215","v":0},null,{"$f":"Import!M39238","v":0},null,0,null,0,null,{"$f":"IF($B$10=\"Euro\",IF((D17+F17+H17+J17+L17)>(N17+P17),0%,2.18%),IF((D17+F17+H17+J17+L17)>(N17+P17),0%,25%))","v":0.25},null,{"$f":"IF(OR(Import!M39261=0,Import!M39261=\"\"),(1+T17)*D17,Import!M39261)","v":0},null,{"$f":"Import!M39284","v":0},null,{"$f":"Import!M39307","v":0},null,{"$f":"Import!M39330","v":0},null,{"$f":"Import!M39353","v":0},null,{"$f":"IF(OR(Import!M39376=0,Import!M39376=\"\"),(1+T17)*N17,Import!M39376)","v":0},null,{"$f":"IF(OR(Import!M39399=0,Import!M39399=\"\"),AF17,Import!M39399)","v":0}]
[null,{"$f":"IF($B$10=\"Central African CFA Francs\",\"United States Dollar\",\"Central African CFA Francs\")","v":"Central African CFA Francs"},null,{"$f":"Import!M39124","v":0},null,{"$f":"Import!M39147","v":0},null,{"$f":"Import!M39170","v":0},null,{"$f":"Import!M39193","v":0},null,{"$f":"Import!M39216","v":0},null,{"$f":"Import!M39239","v":0},null,0,null,0,null,{"$f":"IF($B$10=\"Euro\",IF((D18+F18+H18+J18+L18)>(N18+P18),0%,1.96%),IF((D18+F18+H18+J18+L18)>(N18+P18),0%,25%))","v":0.25},null,{"$f":"IF(OR(Import!M39262=0,Import!M39262=\"\"),(1+T18)*D18,Import!M39262)","v":0},null,{"$f":"Import!M39285","v":0},null,{"$f":"Import!M39308","v":0},null,{"$f":"Import!M39331","v":0},null,{"$f":"Import!M39354","v":0},null,{"$f":"IF(OR(Import!M39377=0,Import!M39377=\"\"),(1+T18)*N18,Import!M39377)","v":0},null,{"$f":"IF(OR(Import!M39400=0,Import!M39400=\"\"),AF18,Import!M39400)","v":0}]
[null,{"$f":"IF($B$10=\"Comorian Francs\",\"United States Dollar\",\"Comorian Francs\")","v":"Comorian Francs"},null,{"$f":"Import!M39125","v":0},null,{"$f":"Import!M39148","v":0},null,{"$f":"Import!M39171","v":0},null,{"$f":"Import!M39194","v":0},null,{"$f":"Import!M39217","v":0},null,{"$f":"Import!M39240","v":0},null,0,null,0,null,{"$f":"IF($B$10=\"Euro\",IF((D19+F19+H19+J19+L19)>(N19+P19),0%,2%),IF((D19+F19+H19+J19+L19)>(N19+P19),0%,25%))","v":0.25},null,{"$f":"IF(OR(Import!M39263=0,Import!M39263=\"\"),(1+T19)*D19,Import!M39263)","v":0},null,{"$f":"Import!M39286","v":0},null,{"$f":"Import!M39309","v":0},null,{"$f":"Import!M39332","v":0},null,{"$f":"Import!M39355","v":0},null,{"$f":"IF(OR(Import!M39378=0,Import!M39378=\"\"),(1+T19)*N19,Import!M39378)","v":0},null,{"$f":"IF(OR(Import!M39401=0,Import!M39401=\"\"),AF19,Import!M39401)","v":0}]
[null,{"$f":"IF($B$10=\"United Kingdom Pounds\",\"United States Dollar\",\"United Kingdom Pounds\")","v":"United Kingdom Pounds"},null,{"$f":"Import!M39126","v":0},null,{"$f":"Import!M39149","v":0},null,{"$f":"Import!M39172","v":0},null,{"$f":"Import!M39195","v":0},null,{"$f":"Import!M39218","v":0},null,{"$f":"Import!M39241","v":0},null,0,null,0,null,{"$f":"IF((D20+F20+H20+J20+L20)>(N20+P20),0%,25%)","v":0.25},null,{"$f":"IF(OR(Import!M39264=0,Import!M39264=\"\"),(1+T20)*D20,Import!M39264)","v":0},null,{"$f":"Import!M39287","v":0},null,{"$f":"Import!M39310","v":0},null,{"$f":"Import!M39333","v":0},null,{"$f":"Import!M39356","v":0},null,{"$f":"IF(OR(Import!M39379=0,Import!M39379=\"\"),(1+T20)*N20,Import!M39379)","v":0},null,{"$f":"IF(OR(Import!M39402=0,Import!M39402=\"\"),AF20,Import!M39402)","v":0}]
[null,{"$f":"IF($B$10=\"Canada Dollars\",\"United States Dollar\",\"Canada Dollars\")","v":"Canada Dollars"},null,{"$f":"Import!M39127","v":0},null,{"$f":"Import!M39150","v":0},null,{"$f":"Import!M39173","v":0},null,{"$f":"Import!M39196","v":0},null,{"$f":"Import!M39219","v":0},null,{"$f":"Import!M39242","v":0},null,0,null,0,null,{"$f":"IF((D21+F21+H21+J21+L21)>(N21+P21),0%,25%)","v":0.25},null,{"$f":"IF(OR(Import!M39265=0,Import!M39265=\"\"),(1+T21)*D21,Import!M39265)","v":0},null,{"$f":"Import!M39288","v":0},null,{"$f":"Import!M39311","v":0},null,{"$f":"Import!M39334","v":0},null,{"$f":"Import!M39357","v":0},null,{"$f":"IF(OR(Import!M39380=0,Import!M39380=\"\"),(1+T21)*N21,Import!M39380)","v":0},null,{"$f":"IF(OR(Import!M39403=0,Import!M39403=\"\"),AF21,Import!M39403)","v":0}]
[null,{"$f":"IF($B$10=\"Japan Yen\",\"United States Dollar\",\"Japan Yen\")","v":"Japan Yen"},null,{"$f":"Import!M39128","v":0},null,{"$f":"Import!M39151","v":0},null,{"$f":"Import!M39174","v":0},null,{"$f":"Import!M39197","v":0},null,{"$f":"Import!M39220","v":0},null,{"$f":"Import!M39243","v":0},null,0,null,0,null,{"$f":"IF((D22+F22+H22+J22+L22)>(N22+P22),0%,25%)","v":0.25},null,{"$f":"IF(OR(Import!M39266=0,Import!M39266=\"\"),(1+T22)*D22,Import!M39266)","v":0},null,{"$f":"Import!M39289","v":0},null,{"$f":"Import!M39312","v":0},null,{"$f":"Import!M39335","v":0},null,{"$f":"Import!M39358","v":0},null,{"$f":"IF(OR(Import!M39381=0,Import!M39381=\"\"),(1+T22)*N22,Import!M39381)","v":0},null,{"$f":"IF(OR(Import!M39404=0,Import!M39404=\"\"),AF22,Import!M39404)","v":0}]
[null,"Other currency 1",null,{"$f":"Import!M39129","v":0},null,{"$f":"Import!M39152","v":0},null,{"$f":"Import!M39175","v":0},null,{"$f":"Import!M39198","v":0},null,{"$f":"Import!M39221","v":0},null,{"$f":"Import!M39244","v":0},null,0,null,0,null,0.25,null,{"$f":"IF(OR(Import!M39267=0,Import!M39267=\"\"),(1+T23)*D23,Import!M39267)","v":0},null,{"$f":"Import!M39290","v":0},null,{"$f":"Import!M39313","v":0},null,{"$f":"Import!M39336","v":0},null,{"$f":"Import!M39359","v":0},null,{"$f":"IF(OR(Import!M39382=0,Import!M39382=\"\"),(1+T23)*N23,Import!M39382)","v":0},null,{"$f":"IF(OR(Import!M39405=0,Import!M39405=\"\"),AF23,Import!M39405)","v":0}]
[null,"Other currency 2",null,{"$f":"Import!M39130","v":0},null,{"$f":"Import!M39153","v":0},null,{"$f":"Import!M39176","v":0},null,{"$f":"Import!M39199","v":0},null,{"$f":"Import!M39222","v":0},null,{"$f":"Import!M39245","v":0},null,0,null,0,null,0.25,null,{"$f":"IF(OR(Import!M39268=0,Import!M39268=\"\"),(1+T24)*D24,Import!M39268)","v":0},null,{"$f":"Import!M39291","v":0},null,{"$f":"Import!M39314","v":0},null,{"$f":"Import!M39337","v":0},null,{"$f":"Import!M39360","v":0},null,{"$f":"IF(OR(Import!M39383=0,Import!M39383=\"\"),(1+T24)*N24,Import!M39383)","v":0},null,{"$f":"IF(OR(Import!M39406=0,Import!M39406=\"\"),AF24,Import!M39406)","v":0}]
[null,"Other currency 3",null,{"$f":"Import!M39131","v":0},null,{"$f":"Import!M39154","v":0},null,{"$f":"Import!M39177","v":0},null,{"$f":"Import!M39200","v":0},null,{"$f":"Import!M39223","v":0},null,{"$f":"Import!M39246","v":0},null,0,null,0,null,0.25,null,{"$f":"IF(OR(Import!M39269=0,Import!M39269=\"\"),(1+T25)*D25,Import!M39269)","v":0},null,{"$f":"Import!M39292","v":0},null,{"$f":"Import!M39315","v":0},null,{"$f":"Import!M39338","v":0},null,{"$f":"Import!M39361","v":0},null,{"$f":"IF(OR(Import!M39384=0,Import!M39384=\"\"),(1+T25)*N25,Import!M39384)","v":0},null,{"$f":"IF(OR(Import!M39407=0,Import!M39407=\"\"),AF25,Import!M39407)","v":0}]
[null,"Other currency 4",null,{"$f":"Import!M39132","v":0},null,{"$f":"Import!M39155","v":0},null,{"$f":"Import!M39178","v":0},null,{"$f":"Import!M39201","v":0},null,{"$f":"Import!M39224","v":0},null,{"$f":"Import!M39247","v":0},null,0,null,0,null,0.25,null,{"$f":"IF(OR(Import!M39270=0,Import!M39270=\"\"),(1+T26)*D26,Import!M39270)","v":0},null,{"$f":"Import!M39293","v":0},null,{"$f":"Import!M39316","v":0},null,{"$f":"Import!M39339","v":0},null,{"$f":"Import!M39362","v":0},null,{"$f":"IF(OR(Import!M39385=0,Import!M39385=\"\"),(1+T26)*N26,Import!M39385)","v":0},null,{"$f":"IF(OR(Import!M39408=0,Import!M39408=\"\"),AF26,Import!M39408)","v":0}]
[null,"Other currency 5",null,{"$f":"Import!M39133","v":0},null,{"$f":"Import!M39156","v":0},null,{"$f":"Import!M39179","v":0},null,{"$f":"Import!M39202","v":0},null,{"$f":"Import!M39225","v":0},null,{"$f":"Import!M39248","v":0},null,0,null,0,null,0.25,null,{"$f":"IF(OR(Import!M39271=0,Import!M39271=\"\"),(1+T27)*D27,Import!M39271)","v":0},null,{"$f":"Import!M39294","v":0},null,{"$f":"Import!M39317","v":0},null,{"$f":"Import!M39340","v":0},null,{"$f":"Import!M39363","v":0},null,{"$f":"IF(OR(Import!M39386=0,Import!M39386=\"\"),(1+T27)*N27,Import!M39386)","v":0},null,{"$f":"IF(OR(Import!M39409=0,Import!M39409=\"\"),AF27,Import!M39409)","v":0}]
[null,"Other currency 6",null,{"$f":"Import!M39134","v":0},null,{"$f":"Import!M39157","v":0},null,{"$f":"Import!M39180","v":0},null,{"$f":"Import!M39203","v":0},null,{"$f":"Import!M39226","v":0},null,{"$f":"Import!M39249","v":0},null,0,null,0,null,0.25,null,{"$f":"IF(OR(Import!M39272=0,Import!M39272=\"\"),(1+T28)*D28,Import!M39272)","v":0},null,{"$f":"Import!M39295","v":0},null,{"$f":"Import!M39318","v":0},null,{"$f":"Import!M39341","v":0},null,{"$f":"Import!M39364","v":0},null,{"$f":"IF(OR(Import!M39387=0,Import!M39387=\"\"),(1+T28)*N28,Import!M39387)","v":0},null,{"$f":"IF(OR(Import!M39410=0,Import!M39410=\"\"),AF28,Import!M39410)","v":0}]
[null,"Other currency 7",null,{"$f":"Import!M39135","v":0},null,{"$f":"Import!M39158","v":0},null,{"$f":"Import!M39181","v":0},null,{"$f":"Import!M39204","v":0},null,{"$f":"Import!M39227","v":0},null,{"$f":"Import!M39250","v":0},null,0,null,0,null,0.25,null,{"$f":"IF(OR(Import!M39273=0,Import!M39273=\"\"),(1+T29)*D29,Import!M39273)","v":0},null,{"$f":"Import!M39296","v":0},null,{"$f":"Import!M39319","v":0},null,{"$f":"Import!M39342","v":0},null,{"$f":"Import!M39365","v":0},null,{"$f":"IF(OR(Import!M39388=0,Import!M39388=\"\"),(1+T29)*N29,Import!M39388)","v":0},null,{"$f":"IF(OR(Import!M39411=0,Import!M39411=\"\"),AF29,Import!M39411)","v":0}]
[null,"Other currency 8",null,{"$f":"Import!M39136","v":0},null,{"$f":"Import!M39159","v":0},null,{"$f":"Import!M39182","v":0},null,{"$f":"Import!M39205","v":0},null,{"$f":"Import!M39228","v":0},null,{"$f":"Import!M39251","v":0},null,0,null,0,null,0.25,null,{"$f":"IF(OR(Import!M39274=0,Import!M39274=\"\"),(1+T30)*D30,Import!M39274)","v":0},null,{"$f":"Import!M39297","v":0},null,{"$f":"Import!M39320","v":0},null,{"$f":"Import!M39343","v":0},null,{"$f":"Import!M39366","v":0},null,{"$f":"IF(OR(Import!M39389=0,Import!M39389=\"\"),(1+T30)*N30,Import!M39389)","v":0},null,{"$f":"IF(OR(Import!M39412=0,Import!M39412=\"\"),AF30,Import!M39412)","v":0}]
[null,"Other currency 9",null,{"$f":"Import!M39137","v":0},null,{"$f":"Import!M39160","v":0},null,{"$f":"Import!M39183","v":0},null,{"$f":"Import!M39206","v":0},null,{"$f":"Import!M39229","v":0},null,{"$f":"Import!M39252","v":0},null,0,null,0,null,0.25,null,{"$f":"IF(OR(Import!M39275=0,Import!M39275=\"\"),(1+T31)*D31,Import!M39275)","v":0},null,{"$f":"Import!M39298","v":0},null,{"$f":"Import!M39321","v":0},null,{"$f":"Import!M39344","v":0},null,{"$f":"Import!M39367","v":0},null,{"$f":"IF(OR(Import!M39390=0,Import!M39390=\"\"),(1+T31)*N31,Import!M39390)","v":0},null,{"$f":"IF(OR(Import!M39413=0,Import!M39413=\"\"),AF31,Import!M39413)","v":0}]
[null,"Other currency 10",null,{"$f":"Import!M39138","v":0},null,{"$f":"Import!M39161","v":0},null,{"$f":"Import!M39184","v":0},null,{"$f":"Import!M39207","v":0},null,{"$f":"Import!M39230","v":0},null,{"$f":"Import!M39253","v":0},null,0,null,0,null,0.25,null,{"$f":"IF(OR(Import!M39276=0,Import!M39276=\"\"),(1+T32)*D32,Import!M39276)","v":0},null,{"$f":"Import!M39299","v":0},null,{"$f":"Import!M39322","v":0},null,{"$f":"Import!M39345","v":0},null,{"$f":"Import!M39368","v":0},null,{"$f":"IF(OR(Import!M39391=0,Import!M39391=\"\"),(1+T32)*N32,Import!M39391)","v":0},null,{"$f":"IF(OR(Import!M39414=0,Import!M39414=\"\"),AF32,Import!M39414)","v":0}]
[null,"Currency Total",null,{"$f":"SUM(D10:D32)","v":0},null,{"$f":"SUM(F10:F32)","v":0},null,{"$f":"SUM(H10:H32)","v":0},null,{"$f":"SUM(J10:J32)","v":0},null,{"$f":"SUM(L10:L32)","v":0},null,{"$f":"SUM(N10:N32)","v":0},null,null,null,null,null,null,null,{"$f":"SUM(V10:V32)","v":0},null,{"$f":"SUM(X10:X32)","v":0},null,{"$f":"SUM(Z10:Z32)","v":0},null,{"$f":"SUM(AB10:AB32)","v":0},null,{"$f":"SUM(AD10:AD32)","v":0},null,{"$f":"SUM(AF10:AF32)","v":0},null,{"$f":"SUM(AH10:AH32)","v":0}]
[]
[null,null,null,"Form 4EBS Line 15",null,null,null,null,null,null,null,null,null,"Form 4EBS Line 39"]
[null,"Balance Sheet Total",null,{"$f":"+'Form 4EBS'!F93","v":0},null,null,null,null,null,null,null,null,null,{"$f":"+'Form 4EBS'!F180","v":0}]
[null,"% of Balance Sheet Total",null,{"$f":"IF(D36=0,0,(SUM(D33:L33))/D36)","v":0},null,null,null,null,null,null,null,null,null,{"$f":"IF(N36=0,0,N33/N36)","v":0}]
[]
[null,"95% Minimum Test Met",null,{"$f":"IF(D36=0,\"Form 4EBS is Blank\",IF(D37<=95%,\"False\",IF(D37>100%,\"False\",\"True\")))","v":"Form 4EBS is Blank"},null,null,null,null,null,null,null,null,null,{"$f":"IF(N36=0,\"Form 4EBS is Blank\",IF(N37<=95%,\"False\",IF(N37>100%,\"False\",\"True\")))","v":"Form 4EBS is Blank"}]
[]
[null,null,null,"Liabilities",null,null,null,"ECR Charge",null,null,null,null,null,"Ratio",null,"Assessment*"]
[null,null,null,"Form 4EBS, Line 39",null,null,null,"Summary tab"]
[null,{"$f":"'Form 4EBS'!H6","v":"2022-12-31"},null,{"$f":"Import!M39415","v":0},null,null,null,{"$f":"Import!M39418","v":0},null,null,null,null,null,{"$f":"IF(H43=0,\"\",H43/D43)","v":""}]
[null,{"$f":"DATE(YEAR(B43)-1,MONTH(B43),DAY(B43))","v":"2021-12-31"},null,{"$f":"Import!M39416","v":0},null,null,null,{"$f":"Import!M39419","v":0},null,null,null,null,null,{"$f":"IF(H44=0,\"\",H44/D44)","v":""}]
[null,{"$f":"DATE(YEAR(B44)-1,MONTH(B44),DAY(B44))","v":"2020-12-31"},null,{"$f":"Import!M39417","v":0},null,null,null,{"$f":"Import!M39420","v":0},null,null,null,null,null,{"$f":"IF(H45=0,\"\",H45/D45)","v":""},null,{"$f":"IF(SUM(N43:N45)=0,IF(H43=0,0%,N43),MAX(N43,AVERAGE(N43:N45)))","v":0}]
[]
[null,"*If there are no amounts for previous years, enter the results from the current year without taking currency risk into account into the prior year"]

{"sheet":"Schedule XXI","index":79,"n_rows":77,"n_cols":13,"rows_kept":77,"cut":false,"hidden":false,"merged":[[4,9,4,12],[2,1,2,2],[4,4,4,7],[61,9,62,12]]}
[null,null,"SCHEDULE OF CONCENTRATION RISK",null,null,null,null,null,null,null,null,null,{"$f":"HYPERLINK(\"#'Index'!A1\",\"Return to Index\")","v":"Return to Index"}]
[null,{"$f":"+'Insurer Information'!C7","v":"Enter Company Name"}]
[null,{"$f":" TEXT('Insurer Information'!C3,\"D MMMM YYYY\")","v":"31 December 2023"},null,null,null,null,null,null,null,{"$f":"Import!E36377","v":0},null,"Enter # of Rows","SCHEDULE XXI"]
[null,{"$f":"+'Form 4EBS'!B4","v":"Expressed in  ['000s]"}]
[null,null,null,null,"Unconsolidated SFS",null,null,null,null,"EBS Valuation"]
[null,null,null,null,"(A)","(B)","(C)","(D)",null,"(E)","(F)","(G)","(H)"]
[null,null,"Name of Exposure",null,"Asset Type","Bond / Mortgage Loan Type","BSCR Rating","Asset Value",null,"Asset Type","Bond / Mortgage Loan Type","BSCR Rating","Asset Value"]
[null,1,{"$f":"Import!E36378","v":0},null,{"$f":"Import!E36428","v":"Select"},{"$f":"Import!E36478","v":"Select"},{"$f":"Import!E36528","v":"Select"},{"$f":"Import!E36578","v":0},null,{"$f":"Import!M36428","v":"Select"},{"$f":"Import!M36478","v":"Select"},{"$f":"Import!M36528","v":"Select"},{"$f":"Import!M36578","v":0}]
[null,{"$f":"B8+1","v":2},{"$f":"Import!E36379","v":0},null,{"$f":"Import!E36429","v":"Select"},{"$f":"Import!E36479","v":"Select"},{"$f":"Import!E36529","v":"Select"},{"$f":"Import!E36579","v":0},null,{"$f":"Import!M36429","v":"Select"},{"$f":"Import!M36479","v":"Select"},{"$f":"Import!M36529","v":"Select"},{"$f":"Import!M36579","v":0}]
[null,{"$f":"B9+1","v":3},{"$f":"Import!E36380","v":0},null,{"$f":"Import!E36430","v":"Select"},{"$f":"Import!E36480","v":"Select"},{"$f":"Import!E36530","v":"Select"},{"$f":"Import!E36580","v":0},null,{"$f":"Import!M36430","v":"Select"},{"$f":"Import!M36480","v":"Select"},{"$f":"Import!M36530","v":"Select"},{"$f":"Import!M36580","v":0}]
[null,4,{"$f":"Import!E36381","v":0},null,{"$f":"Import!E36431","v":"Select"},{"$f":"Import!E36481","v":"Select"},{"$f":"Import!E36531","v":"Select"},{"$f":"Import!E36581","v":0},null,{"$f":"Import!M36431","v":"Select"},{"$f":"Import!M36481","v":"Select"},{"$f":"Import!M36531","v":"Select"},{"$f":"Import!M36581","v":0}]
[null,5,{"$f":"Import!E36382","v":0},null,{"$f":"Import!E36432","v":"Select"},{"$f":"Import!E36482","v":"Select"},{"$f":"Import!E36532","v":"Select"},{"$f":"Import!E36582","v":0},null,{"$f":"Import!M36432","v":"Select"},{"$f":"Import!M36482","v":"Select"},{"$f":"Import!M36532","v":"Select"},{"$f":"Import!M36582","v":0}]
[null,6,{"$f":"Import!E36383","v":0},null,{"$f":"Import!E36433","v":"Select"},{"$f":"Import!E36483","v":"Select"},{"$f":"Import!E36533","v":"Select"},{"$f":"Import!E36583","v":0},null,{"$f":"Import!M36433","v":"Select"},{"$f":"Import!M36483","v":"Select"},{"$f":"Import!M36533","v":"Select"},{"$f":"Import!M36583","v":0}]
[null,7,{"$f":"Import!E36384","v":0},null,{"$f":"Import!E36434","v":"Select"},{"$f":"Import!E36484","v":"Select"},{"$f":"Import!E36534","v":"Select"},{"$f":"Import!E36584","v":0},null,{"$f":"Import!M36434","v":"Select"},{"$f":"Import!M36484","v":"Select"},{"$f":"Import!M36534","v":"Select"},{"$f":"Import!M36584","v":0}]
[null,8,{"$f":"Import!E36385","v":0},null,{"$f":"Import!E36435","v":"Select"},{"$f":"Import!E36485","v":"Select"},{"$f":"Import!E36535","v":"Select"},{"$f":"Import!E36585","v":0},null,{"$f":"Import!M36435","v":"Select"},{"$f":"Import!M36485","v":"Select"},{"$f":"Import!M36535","v":"Select"},{"$f":"Import!M36585","v":0}]
[null,9,{"$f":"Import!E36386","v":0},null,{"$f":"Import!E36436","v":"Select"},{"$f":"Import!E36486","v":"Select"},{"$f":"Import!E36536","v":"Select"},{"$f":"Import!E36586","v":0},null,{"$f":"Import!M36436","v":"Select"},{"$f":"Import!M36486","v":"Select"},{"$f":"Import!M36536","v":"Select"},{"$f":"Import!M36586","v":0}]
[null,10,{"$f":"Import!E36387","v":0},null,{"$f":"Import!E36437","v":"Select"},{"$f":"Import!E36487","v":"Select"},{"$f":"Import!E36537","v":"Select"},{"$f":"Import!E36587","v":0},null,{"$f":"Import!M36437","v":"Select"},{"$f":"Import!M36487","v":"Select"},{"$f":"Import!M36537","v":"Select"},{"$f":"Import!M36587","v":0}]
[null,11,{"$f":"Import!E36388","v":0},null,{"$f":"Import!E36438","v":"Select"},{"$f":"Import!E36488","v":"Select"},{"$f":"Import!E36538","v":"Select"},{"$f":"Import!E36588","v":0},null,{"$f":"Import!M36438","v":"Select"},{"$f":"Import!M36488","v":"Select"},{"$f":"Import!M36538","v":"Select"},{"$f":"Import!M36588","v":0}]
[null,12,{"$f":"Import!E36389","v":0},null,{"$f":"Import!E36439","v":"Select"},{"$f":"Import!E36489","v":"Select"},{"$f":"Import!E36539","v":"Select"},{"$f":"Import!E36589","v":0},null,{"$f":"Import!M36439","v":"Select"},{"$f":"Import!M36489","v":"Select"},{"$f":"Import!M36539","v":"Select"},{"$f":"Import!M36589","v":0}]
[null,13,{"$f":"Import!E36390","v":0},null,{"$f":"Import!E36440","v":"Select"},{"$f":"Import!E36490","v":"Select"},{"$f":"Import!E36540","v":"Select"},{"$f":"Import!E36590","v":0},null,{"$f":"Import!M36440","v":"Select"},{"$f":"Import!M36490","v":"Select"},{"$f":"Import!M36540","v":"Select"},{"$f":"Import!M36590","v":0}]
[null,14,{"$f":"Import!E36391","v":0},null,{"$f":"Import!E36441","v":"Select"},{"$f":"Import!E36491","v":"Select"},{"$f":"Import!E36541","v":"Select"},{"$f":"Import!E36591","v":0},null,{"$f":"Import!M36441","v":"Select"},{"$f":"Import!M36491","v":"Select"},{"$f":"Import!M36541","v":"Select"},{"$f":"Import!M36591","v":0}]
[null,15,{"$f":"Import!E36392","v":0},null,{"$f":"Import!E36442","v":"Select"},{"$f":"Import!E36492","v":"Select"},{"$f":"Import!E36542","v":"Select"},{"$f":"Import!E36592","v":0},null,{"$f":"Import!M36442","v":"Select"},{"$f":"Import!M36492","v":"Select"},{"$f":"Import!M36542","v":"Select"},{"$f":"Import!M36592","v":0}]
[null,16,{"$f":"Import!E36393","v":0},null,{"$f":"Import!E36443","v":"Select"},{"$f":"Import!E36493","v":"Select"},{"$f":"Import!E36543","v":"Select"},{"$f":"Import!E36593","v":0},null,{"$f":"Import!M36443","v":"Select"},{"$f":"Import!M36493","v":"Select"},{"$f":"Import!M36543","v":"Select"},{"$f":"Import!M36593","v":0}]
[null,17,{"$f":"Import!E36394","v":0},null,{"$f":"Import!E36444","v":"Select"},{"$f":"Import!E36494","v":"Select"},{"$f":"Import!E36544","v":"Select"},{"$f":"Import!E36594","v":0},null,{"$f":"Import!M36444","v":"Select"},{"$f":"Import!M36494","v":"Select"},{"$f":"Import!M36544","v":"Select"},{"$f":"Import!M36594","v":0}]
[null,18,{"$f":"Import!E36395","v":0},null,{"$f":"Import!E36445","v":"Select"},{"$f":"Import!E36495","v":"Select"},{"$f":"Import!E36545","v":"Select"},{"$f":"Import!E36595","v":0},null,{"$f":"Import!M36445","v":"Select"},{"$f":"Import!M36495","v":"Select"},{"$f":"Import!M36545","v":"Select"},{"$f":"Import!M36595","v":0}]
[null,19,{"$f":"Import!E36396","v":0},null,{"$f":"Import!E36446","v":"Select"},{"$f":"Import!E36496","v":"Select"},{"$f":"Import!E36546","v":"Select"},{"$f":"Import!E36596","v":0},null,{"$f":"Import!M36446","v":"Select"},{"$f":"Import!M36496","v":"Select"},{"$f":"Import!M36546","v":"Select"},{"$f":"Import!M36596","v":0}]
[null,20,{"$f":"Import!E36397","v":0},null,{"$f":"Import!E36447","v":"Select"},{"$f":"Import!E36497","v":"Select"},{"$f":"Import!E36547","v":"Select"},{"$f":"Import!E36597","v":0},null,{"$f":"Import!M36447","v":"Select"},{"$f":"Import!M36497","v":"Select"},{"$f":"Import!M36547","v":"Select"},{"$f":"Import!M36597","v":0}]
[null,21,{"$f":"Import!E36398","v":0},null,{"$f":"Import!E36448","v":"Select"},{"$f":"Import!E36498","v":"Select"},{"$f":"Import!E36548","v":"Select"},{"$f":"Import!E36598","v":0},null,{"$f":"Import!M36448","v":"Select"},{"$f":"Import!M36498","v":"Select"},{"$f":"Import!M36548","v":"Select"},{"$f":"Import!M36598","v":0}]
[null,22,{"$f":"Import!E36399","v":0},null,{"$f":"Import!E36449","v":"Select"},{"$f":"Import!E36499","v":"Select"},{"$f":"Import!E36549","v":"Select"},{"$f":"Import!E36599","v":0},null,{"$f":"Import!M36449","v":"Select"},{"$f":"Import!M36499","v":"Select"},{"$f":"Import!M36549","v":"Select"},{"$f":"Import!M36599","v":0}]
[null,23,{"$f":"Import!E36400","v":0},null,{"$f":"Import!E36450","v":"Select"},{"$f":"Import!E36500","v":"Select"},{"$f":"Import!E36550","v":"Select"},{"$f":"Import!E36600","v":0},null,{"$f":"Import!M36450","v":"Select"},{"$f":"Import!M36500","v":"Select"},{"$f":"Import!M36550","v":"Select"},{"$f":"Import!M36600","v":0}]
[null,24,{"$f":"Import!E36401","v":0},null,{"$f":"Import!E36451","v":"Select"},{"$f":"Import!E36501","v":"Select"},{"$f":"Import!E36551","v":"Select"},{"$f":"Import!E36601","v":0},null,{"$f":"Import!M36451","v":"Select"},{"$f":"Import!M36501","v":"Select"},{"$f":"Import!M36551","v":"Select"},{"$f":"Import!M36601","v":0}]
[null,25,{"$f":"Import!E36402","v":0},null,{"$f":"Import!E36452","v":"Select"},{"$f":"Import!E36502","v":"Select"},{"$f":"Import!E36552","v":"Select"},{"$f":"Import!E36602","v":0},null,{"$f":"Import!M36452","v":"Select"},{"$f":"Import!M36502","v":"Select"},{"$f":"Import!M36552","v":"Select"},{"$f":"Import!M36602","v":0}]
[null,26,{"$f":"Import!E36403","v":0},null,{"$f":"Import!E36453","v":"Select"},{"$f":"Import!E36503","v":"Select"},{"$f":"Import!E36553","v":"Select"},{"$f":"Import!E36603","v":0},null,{"$f":"Import!M36453","v":"Select"},{"$f":"Import!M36503","v":"Select"},{"$f":"Import!M36553","v":"Select"},{"$f":"Import!M36603","v":0}]
[null,27,{"$f":"Import!E36404","v":0},null,{"$f":"Import!E36454","v":"Select"},{"$f":"Import!E36504","v":"Select"},{"$f":"Import!E36554","v":"Select"},{"$f":"Import!E36604","v":0},null,{"$f":"Import!M36454","v":"Select"},{"$f":"Import!M36504","v":"Select"},{"$f":"Import!M36554","v":"Select"},{"$f":"Import!M36604","v":0}]
[null,28,{"$f":"Import!E36405","v":0},null,{"$f":"Import!E36455","v":"Select"},{"$f":"Import!E36505","v":"Select"},{"$f":"Import!E36555","v":"Select"},{"$f":"Import!E36605","v":0},null,{"$f":"Import!M36455","v":"Select"},{"$f":"Import!M36505","v":"Select"},{"$f":"Import!M36555","v":"Select"},{"$f":"Import!M36605","v":0}]
[null,29,{"$f":"Import!E36406","v":0},null,{"$f":"Import!E36456","v":"Select"},{"$f":"Import!E36506","v":"Select"},{"$f":"Import!E36556","v":"Select"},{"$f":"Import!E36606","v":0},null,{"$f":"Import!M36456","v":"Select"},{"$f":"Import!M36506","v":"Select"},{"$f":"Import!M36556","v":"Select"},{"$f":"Import!M36606","v":0}]
[null,30,{"$f":"Import!E36407","v":0},null,{"$f":"Import!E36457","v":"Select"},{"$f":"Import!E36507","v":"Select"},{"$f":"Import!E36557","v":"Select"},{"$f":"Import!E36607","v":0},null,{"$f":"Import!M36457","v":"Select"},{"$f":"Import!M36507","v":"Select"},{"$f":"Import!M36557","v":"Select"},{"$f":"Import!M36607","v":0}]
[null,31,{"$f":"Import!E36408","v":0},null,{"$f":"Import!E36458","v":"Select"},{"$f":"Import!E36508","v":"Select"},{"$f":"Import!E36558","v":"Select"},{"$f":"Import!E36608","v":0},null,{"$f":"Import!M36458","v":"Select"},{"$f":"Import!M36508","v":"Select"},{"$f":"Import!M36558","v":"Select"},{"$f":"Import!M36608","v":0}]
[null,32,{"$f":"Import!E36409","v":0},null,{"$f":"Import!E36459","v":"Select"},{"$f":"Import!E36509","v":"Select"},{"$f":"Import!E36559","v":"Select"},{"$f":"Import!E36609","v":0},null,{"$f":"Import!M36459","v":"Select"},{"$f":"Import!M36509","v":"Select"},{"$f":"Import!M36559","v":"Select"},{"$f":"Import!M36609","v":0}]
[null,33,{"$f":"Import!E36410","v":0},null,{"$f":"Import!E36460","v":"Select"},{"$f":"Import!E36510","v":"Select"},{"$f":"Import!E36560","v":"Select"},{"$f":"Import!E36610","v":0},null,{"$f":"Import!M36460","v":"Select"},{"$f":"Import!M36510","v":"Select"},{"$f":"Import!M36560","v":"Select"},{"$f":"Import!M36610","v":0}]
[null,34,{"$f":"Import!E36411","v":0},null,{"$f":"Import!E36461","v":"Select"},{"$f":"Import!E36511","v":"Select"},{"$f":"Import!E36561","v":"Select"},{"$f":"Import!E36611","v":0},null,{"$f":"Import!M36461","v":"Select"},{"$f":"Import!M36511","v":"Select"},{"$f":"Import!M36561","v":"Select"},{"$f":"Import!M36611","v":0}]
[null,35,{"$f":"Import!E36412","v":0},null,{"$f":"Import!E36462","v":"Select"},{"$f":"Import!E36512","v":"Select"},{"$f":"Import!E36562","v":"Select"},{"$f":"Import!E36612","v":0},null,{"$f":"Import!M36462","v":"Select"},{"$f":"Import!M36512","v":"Select"},{"$f":"Import!M36562","v":"Select"},{"$f":"Import!M36612","v":0}]
[null,36,{"$f":"Import!E36413","v":0},null,{"$f":"Import!E36463","v":"Select"},{"$f":"Import!E36513","v":"Select"},{"$f":"Import!E36563","v":"Select"},{"$f":"Import!E36613","v":0},null,{"$f":"Import!M36463","v":"Select"},{"$f":"Import!M36513","v":"Select"},{"$f":"Import!M36563","v":"Select"},{"$f":"Import!M36613","v":0}]
[null,37,{"$f":"Import!E36414","v":0},null,{"$f":"Import!E36464","v":"Select"},{"$f":"Import!E36514","v":"Select"},{"$f":"Import!E36564","v":"Select"},{"$f":"Import!E36614","v":0},null,{"$f":"Import!M36464","v":"Select"},{"$f":"Import!M36514","v":"Select"},{"$f":"Import!M36564","v":"Select"},{"$f":"Import!M36614","v":0}]
[null,38,{"$f":"Import!E36415","v":0},null,{"$f":"Import!E36465","v":"Select"},{"$f":"Import!E36515","v":"Select"},{"$f":"Import!E36565","v":"Select"},{"$f":"Import!E36615","v":0},null,{"$f":"Import!M36465","v":"Select"},{"$f":"Import!M36515","v":"Select"},{"$f":"Import!M36565","v":"Select"},{"$f":"Import!M36615","v":0}]
[null,39,{"$f":"Import!E36416","v":0},null,{"$f":"Import!E36466","v":"Select"},{"$f":"Import!E36516","v":"Select"},{"$f":"Import!E36566","v":"Select"},{"$f":"Import!E36616","v":0},null,{"$f":"Import!M36466","v":"Select"},{"$f":"Import!M36516","v":"Select"},{"$f":"Import!M36566","v":"Select"},{"$f":"Import!M36616","v":0}]
[null,40,{"$f":"Import!E36417","v":0},null,{"$f":"Import!E36467","v":"Select"},{"$f":"Import!E36517","v":"Select"},{"$f":"Import!E36567","v":"Select"},{"$f":"Import!E36617","v":0},null,{"$f":"Import!M36467","v":"Select"},{"$f":"Import!M36517","v":"Select"},{"$f":"Import!M36567","v":"Select"},{"$f":"Import!M36617","v":0}]
[null,41,{"$f":"Import!E36418","v":0},null,{"$f":"Import!E36468","v":"Select"},{"$f":"Import!E36518","v":"Select"},{"$f":"Import!E36568","v":"Select"},{"$f":"Import!E36618","v":0},null,{"$f":"Import!M36468","v":"Select"},{"$f":"Import!M36518","v":"Select"},{"$f":"Import!M36568","v":"Select"},{"$f":"Import!M36618","v":0}]
[null,42,{"$f":"Import!E36419","v":0},null,{"$f":"Import!E36469","v":"Select"},{"$f":"Import!E36519","v":"Select"},{"$f":"Import!E36569","v":"Select"},{"$f":"Import!E36619","v":0},null,{"$f":"Import!M36469","v":"Select"},{"$f":"Import!M36519","v":"Select"},{"$f":"Import!M36569","v":"Select"},{"$f":"Import!M36619","v":0}]
[null,43,{"$f":"Import!E36420","v":0},null,{"$f":"Import!E36470","v":"Select"},{"$f":"Import!E36520","v":"Select"},{"$f":"Import!E36570","v":"Select"},{"$f":"Import!E36620","v":0},null,{"$f":"Import!M36470","v":"Select"},{"$f":"Import!M36520","v":"Select"},{"$f":"Import!M36570","v":"Select"},{"$f":"Import!M36620","v":0}]
[null,44,{"$f":"Import!E36421","v":0},null,{"$f":"Import!E36471","v":"Select"},{"$f":"Import!E36521","v":"Select"},{"$f":"Import!E36571","v":"Select"},{"$f":"Import!E36621","v":0},null,{"$f":"Import!M36471","v":"Select"},{"$f":"Import!M36521","v":"Select"},{"$f":"Import!M36571","v":"Select"},{"$f":"Import!M36621","v":0}]
[null,45,{"$f":"Import!E36422","v":0},null,{"$f":"Import!E36472","v":"Select"},{"$f":"Import!E36522","v":"Select"},{"$f":"Import!E36572","v":"Select"},{"$f":"Import!E36622","v":0},null,{"$f":"Import!M36472","v":"Select"},{"$f":"Import!M36522","v":"Select"},{"$f":"Import!M36572","v":"Select"},{"$f":"Import!M36622","v":0}]
[null,46,{"$f":"Import!E36423","v":0},null,{"$f":"Import!E36473","v":"Select"},{"$f":"Import!E36523","v":"Select"},{"$f":"Import!E36573","v":"Select"},{"$f":"Import!E36623","v":0},null,{"$f":"Import!M36473","v":"Select"},{"$f":"Import!M36523","v":"Select"},{"$f":"Import!M36573","v":"Select"},{"$f":"Import!M36623","v":0}]
[null,47,{"$f":"Import!E36424","v":0},null,{"$f":"Import!E36474","v":"Select"},{"$f":"Import!E36524","v":"Select"},{"$f":"Import!E36574","v":"Select"},{"$f":"Import!E36624","v":0},null,{"$f":"Import!M36474","v":"Select"},{"$f":"Import!M36524","v":"Select"},{"$f":"Import!M36574","v":"Select"},{"$f":"Import!M36624","v":0}]
[null,48,{"$f":"Import!E36425","v":0},null,{"$f":"Import!E36475","v":"Select"},{"$f":"Import!E36525","v":"Select"},{"$f":"Import!E36575","v":"Select"},{"$f":"Import!E36625","v":0},null,{"$f":"Import!M36475","v":"Select"},{"$f":"Import!M36525","v":"Select"},{"$f":"Import!M36575","v":"Select"},{"$f":"Import!M36625","v":0}]
[null,49,{"$f":"Import!E36426","v":0},null,{"$f":"Import!E36476","v":"Select"},{"$f":"Import!E36526","v":"Select"},{"$f":"Import!E36576","v":"Select"},{"$f":"Import!E36626","v":0},null,{"$f":"Import!M36476","v":"Select"},{"$f":"Import!M36526","v":"Select"},{"$f":"Import!M36576","v":"Select"},{"$f":"Import!M36626","v":0}]
[null,50,{"$f":"Import!E36427","v":0},null,{"$f":"Import!E36477","v":"Select"},{"$f":"Import!E36527","v":"Select"},{"$f":"Import!E36577","v":"Select"},{"$f":"Import!E36627","v":0},null,{"$f":"Import!M36477","v":"Select"},{"$f":"Import!M36527","v":"Select"},{"$f":"Import!M36577","v":"Select"},{"$f":"Import!M36627","v":0}]
[null,null,"TOTAL CONCENTRATION RISK",null,null,null,null,{"$f":"SUM(H8:H57)","v":0},null,null,null,null,{"$f":"SUM(M8:M57)","v":0}]
[]
[null,null,"Asset Type",null,null,"Bond Types",null,"BSCR Rating Reference"]
[null,null,"Select",null,null,"Select",null,"Select"]
[null,null,"Cash and Cash Equivalent",null,null,"Corporate & Sovereign Bonds",null,"BSCR Rating 0",null,"Note if an insurer does not have any entities to consolidate, enter consolidated information only (This cell is editable for deletion)"]
[null,null,"Bond Types",null,null,"Residential Mortgage-Backed Securities",null,"BSCR Rating 1"]
[null,null,"Preferred Shares",null,null,"Commercial Mortgage-Backed Securities",null,"BSCR Rating 2"]
[null,null,"MortgageLoanTypes",null,null,"Bond Mutual Funds",null,"BSCR Rating 3"]
[null,null,"Common Stock and Mutual Funds",null,null,null,null,"BSCR Rating 4"]
[null,null,"Other Investments",null,null,"Mortgage Loan Categories",null,"BSCR Rating 5"]
[null,null,"Investment in Affiliates – Unregulated entities that conduct ancillary services",null,null,"Select",null,"BSCR Rating 6"]
[null,null,"Investment in Affiliates - Unregulated non-financial operating entities",null,null,"Insured/Guaranteed Mortgages",null,"BSCR Rating 7"]
[null,null,"Investment in Affiliates - Unregulated financial operating entities",null,null,"Other Commercial and Farm Mortgages",null,"BSCR Rating 8"]
[null,null,"Investment in Affiliates - Regulated non-insurance financial operating entities",null,null,"Other Residential Mortgages"]
[null,null,"Investment in Affiliates - Regulated insurance financial operating entities",null,null,"Mortgages Not In Good Standing"]
[null,null,"Advances to Affiliates - "]
[null,null,"Policy Loans"]
[null,null,"Real Estate: Occupied by company"]
[null,null,"Real Estate: Other properties"]
[null,null,"Collateral Loans"]

{"sheet":"Schedule XXIA","index":80,"n_rows":86,"n_cols":13,"rows_kept":86,"cut":false,"hidden":false,"merged":[[2,1,2,2],[4,4,4,7],[4,9,4,12],[61,9,62,12]]}
[null,null,"SCHEDULE OF CONCENTRATION RISK",null,null,null,null,null,null,null,null,null,{"$f":"HYPERLINK(\"#'Index'!A1\",\"Return to Index\")","v":"Return to Index"}]
[null,{"$f":"+'Insurer Information'!C7","v":"Enter Company Name"}]
[null,{"$f":" TEXT('Insurer Information'!C3,\"D MMMM YYYY\")","v":"31 December 2023"},null,null,{"$f":"Import!E39422","v":0},null,"Enter Number of Rows Required",null,null,null,null,null,"SCHEDULE XXIA"]
[null,{"$f":"+'Form 4EBS'!B4","v":"Expressed in  ['000s]"}]
[null,null,null,null,"Unconsolidated SFS",null,null,null,null,"EBS Valuation"]
[null,null,null,null,"(A)","(B)","(C)","(D)",null,"(E)","(F)","(G)","(H)"]
[null,null,"Name of Exposure",null,"Asset Type","Bond / Mortgage Loan Type","BSCR Rating","Asset Value",null,"Asset Type","Bond / Mortgage Loan Type","BSCR Rating","Asset Value"]
[null,1,{"$f":"Import!E39423","v":0},null,{"$f":"Import!E39473","v":"Select"},{"$f":"Import!E39523","v":"Select"},{"$f":"Import!E39573","v":"Select"},{"$f":"Import!E39623","v":0},null,{"$f":"Import!M39473","v":"Select"},{"$f":"Import!M39523","v":"Select"},{"$f":"Import!M39573","v":"Select"},{"$f":"Import!M39623","v":0}]
[null,{"$f":"B8+1","v":2},{"$f":"Import!E39424","v":0},null,{"$f":"Import!E39474","v":"Select"},{"$f":"Import!E39524","v":"Select"},{"$f":"Import!E39574","v":"Select"},{"$f":"Import!E39624","v":0},null,{"$f":"Import!M39474","v":"Select"},{"$f":"Import!M39524","v":"Select"},{"$f":"Import!M39574","v":"Select"},{"$f":"Import!M39624","v":0}]
[null,{"$f":"B9+1","v":3},{"$f":"Import!E39425","v":0},null,{"$f":"Import!E39475","v":"Select"},{"$f":"Import!E39525","v":"Select"},{"$f":"Import!E39575","v":"Select"},{"$f":"Import!E39625","v":0},null,{"$f":"Import!M39475","v":"Select"},{"$f":"Import!M39525","v":"Select"},{"$f":"Import!M39575","v":"Select"},{"$f":"Import!M39625","v":0}]
[null,4,{"$f":"Import!E39426","v":0},null,{"$f":"Import!E39476","v":"Select"},{"$f":"Import!E39526","v":"Select"},{"$f":"Import!E39576","v":"Select"},{"$f":"Import!E39626","v":0},null,{"$f":"Import!M39476","v":"Select"},{"$f":"Import!M39526","v":"Select"},{"$f":"Import!M39576","v":"Select"},{"$f":"Import!M39626","v":0}]
[null,5,{"$f":"Import!E39427","v":0},null,{"$f":"Import!E39477","v":"Select"},{"$f":"Import!E39527","v":"Select"},{"$f":"Import!E39577","v":"Select"},{"$f":"Import!E39627","v":0},null,{"$f":"Import!M39477","v":"Select"},{"$f":"Import!M39527","v":"Select"},{"$f":"Import!M39577","v":"Select"},{"$f":"Import!M39627","v":0}]
[null,6,{"$f":"Import!E39428","v":0},null,{"$f":"Import!E39478","v":"Select"},{"$f":"Import!E39528","v":"Select"},{"$f":"Import!E39578","v":"Select"},{"$f":"Import!E39628","v":0},null,{"$f":"Import!M39478","v":"Select"},{"$f":"Import!M39528","v":"Select"},{"$f":"Import!M39578","v":"Select"},{"$f":"Import!M39628","v":0}]
[null,7,{"$f":"Import!E39429","v":0},null,{"$f":"Import!E39479","v":"Select"},{"$f":"Import!E39529","v":"Select"},{"$f":"Import!E39579","v":"Select"},{"$f":"Import!E39629","v":0},null,{"$f":"Import!M39479","v":"Select"},{"$f":"Import!M39529","v":"Select"},{"$f":"Import!M39579","v":"Select"},{"$f":"Import!M39629","v":0}]
[null,8,{"$f":"Import!E39430","v":0},null,{"$f":"Import!E39480","v":"Select"},{"$f":"Import!E39530","v":"Select"},{"$f":"Import!E39580","v":"Select"},{"$f":"Import!E39630","v":0},null,{"$f":"Import!M39480","v":"Select"},{"$f":"Import!M39530","v":"Select"},{"$f":"Import!M39580","v":"Select"},{"$f":"Import!M39630","v":0}]
[null,9,{"$f":"Import!E39431","v":0},null,{"$f":"Import!E39481","v":"Select"},{"$f":"Import!E39531","v":"Select"},{"$f":"Import!E39581","v":"Select"},{"$f":"Import!E39631","v":0},null,{"$f":"Import!M39481","v":"Select"},{"$f":"Import!M39531","v":"Select"},{"$f":"Import!M39581","v":"Select"},{"$f":"Import!M39631","v":0}]
[null,10,{"$f":"Import!E39432","v":0},null,{"$f":"Import!E39482","v":"Select"},{"$f":"Import!E39532","v":"Select"},{"$f":"Import!E39582","v":"Select"},{"$f":"Import!E39632","v":0},null,{"$f":"Import!M39482","v":"Select"},{"$f":"Import!M39532","v":"Select"},{"$f":"Import!M39582","v":"Select"},{"$f":"Import!M39632","v":0}]
[null,11,{"$f":"Import!E39433","v":0},null,{"$f":"Import!E39483","v":"Select"},{"$f":"Import!E39533","v":"Select"},{"$f":"Import!E39583","v":"Select"},{"$f":"Import!E39633","v":0},null,{"$f":"Import!M39483","v":"Select"},{"$f":"Import!M39533","v":"Select"},{"$f":"Import!M39583","v":"Select"},{"$f":"Import!M39633","v":0}]
[null,12,{"$f":"Import!E39434","v":0},null,{"$f":"Import!E39484","v":"Select"},{"$f":"Import!E39534","v":"Select"},{"$f":"Import!E39584","v":"Select"},{"$f":"Import!E39634","v":0},null,{"$f":"Import!M39484","v":"Select"},{"$f":"Import!M39534","v":"Select"},{"$f":"Import!M39584","v":"Select"},{"$f":"Import!M39634","v":0}]
[null,13,{"$f":"Import!E39435","v":0},null,{"$f":"Import!E39485","v":"Select"},{"$f":"Import!E39535","v":"Select"},{"$f":"Import!E39585","v":"Select"},{"$f":"Import!E39635","v":0},null,{"$f":"Import!M39485","v":"Select"},{"$f":"Import!M39535","v":"Select"},{"$f":"Import!M39585","v":"Select"},{"$f":"Import!M39635","v":0}]
[null,14,{"$f":"Import!E39436","v":0},null,{"$f":"Import!E39486","v":"Select"},{"$f":"Import!E39536","v":"Select"},{"$f":"Import!E39586","v":"Select"},{"$f":"Import!E39636","v":0},null,{"$f":"Import!M39486","v":"Select"},{"$f":"Import!M39536","v":"Select"},{"$f":"Import!M39586","v":"Select"},{"$f":"Import!M39636","v":0}]
[null,15,{"$f":"Import!E39437","v":0},null,{"$f":"Import!E39487","v":"Select"},{"$f":"Import!E39537","v":"Select"},{"$f":"Import!E39587","v":"Select"},{"$f":"Import!E39637","v":0},null,{"$f":"Import!M39487","v":"Select"},{"$f":"Import!M39537","v":"Select"},{"$f":"Import!M39587","v":"Select"},{"$f":"Import!M39637","v":0}]
[null,16,{"$f":"Import!E39438","v":0},null,{"$f":"Import!E39488","v":"Select"},{"$f":"Import!E39538","v":"Select"},{"$f":"Import!E39588","v":"Select"},{"$f":"Import!E39638","v":0},null,{"$f":"Import!M39488","v":"Select"},{"$f":"Import!M39538","v":"Select"},{"$f":"Import!M39588","v":"Select"},{"$f":"Import!M39638","v":0}]
[null,17,{"$f":"Import!E39439","v":0},null,{"$f":"Import!E39489","v":"Select"},{"$f":"Import!E39539","v":"Select"},{"$f":"Import!E39589","v":"Select"},{"$f":"Import!E39639","v":0},null,{"$f":"Import!M39489","v":"Select"},{"$f":"Import!M39539","v":"Select"},{"$f":"Import!M39589","v":"Select"},{"$f":"Import!M39639","v":0}]
[null,18,{"$f":"Import!E39440","v":0},null,{"$f":"Import!E39490","v":"Select"},{"$f":"Import!E39540","v":"Select"},{"$f":"Import!E39590","v":"Select"},{"$f":"Import!E39640","v":0},null,{"$f":"Import!M39490","v":"Select"},{"$f":"Import!M39540","v":"Select"},{"$f":"Import!M39590","v":"Select"},{"$f":"Import!M39640","v":0}]
[null,19,{"$f":"Import!E39441","v":0},null,{"$f":"Import!E39491","v":"Select"},{"$f":"Import!E39541","v":"Select"},{"$f":"Import!E39591","v":"Select"},{"$f":"Import!E39641","v":0},null,{"$f":"Import!M39491","v":"Select"},{"$f":"Import!M39541","v":"Select"},{"$f":"Import!M39591","v":"Select"},{"$f":"Import!M39641","v":0}]
[null,20,{"$f":"Import!E39442","v":0},null,{"$f":"Import!E39492","v":"Select"},{"$f":"Import!E39542","v":"Select"},{"$f":"Import!E39592","v":"Select"},{"$f":"Import!E39642","v":0},null,{"$f":"Import!M39492","v":"Select"},{"$f":"Import!M39542","v":"Select"},{"$f":"Import!M39592","v":"Select"},{"$f":"Import!M39642","v":0}]
[null,21,{"$f":"Import!E39443","v":0},null,{"$f":"Import!E39493","v":"Select"},{"$f":"Import!E39543","v":"Select"},{"$f":"Import!E39593","v":"Select"},{"$f":"Import!E39643","v":0},null,{"$f":"Import!M39493","v":"Select"},{"$f":"Import!M39543","v":"Select"},{"$f":"Import!M39593","v":"Select"},{"$f":"Import!M39643","v":0}]
[null,22,{"$f":"Import!E39444","v":0},null,{"$f":"Import!E39494","v":"Select"},{"$f":"Import!E39544","v":"Select"},{"$f":"Import!E39594","v":"Select"},{"$f":"Import!E39644","v":0},null,{"$f":"Import!M39494","v":"Select"},{"$f":"Import!M39544","v":"Select"},{"$f":"Import!M39594","v":"Select"},{"$f":"Import!M39644","v":0}]
[null,23,{"$f":"Import!E39445","v":0},null,{"$f":"Import!E39495","v":"Select"},{"$f":"Import!E39545","v":"Select"},{"$f":"Import!E39595","v":"Select"},{"$f":"Import!E39645","v":0},null,{"$f":"Import!M39495","v":"Select"},{"$f":"Import!M39545","v":"Select"},{"$f":"Import!M39595","v":"Select"},{"$f":"Import!M39645","v":0}]
[null,24,{"$f":"Import!E39446","v":0},null,{"$f":"Import!E39496","v":"Select"},{"$f":"Import!E39546","v":"Select"},{"$f":"Import!E39596","v":"Select"},{"$f":"Import!E39646","v":0},null,{"$f":"Import!M39496","v":"Select"},{"$f":"Import!M39546","v":"Select"},{"$f":"Import!M39596","v":"Select"},{"$f":"Import!M39646","v":0}]
[null,25,{"$f":"Import!E39447","v":0},null,{"$f":"Import!E39497","v":"Select"},{"$f":"Import!E39547","v":"Select"},{"$f":"Import!E39597","v":"Select"},{"$f":"Import!E39647","v":0},null,{"$f":"Import!M39497","v":"Select"},{"$f":"Import!M39547","v":"Select"},{"$f":"Import!M39597","v":"Select"},{"$f":"Import!M39647","v":0}]
[null,26,{"$f":"Import!E39448","v":0},null,{"$f":"Import!E39498","v":"Select"},{"$f":"Import!E39548","v":"Select"},{"$f":"Import!E39598","v":"Select"},{"$f":"Import!E39648","v":0},null,{"$f":"Import!M39498","v":"Select"},{"$f":"Import!M39548","v":"Select"},{"$f":"Import!M39598","v":"Select"},{"$f":"Import!M39648","v":0}]
[null,27,{"$f":"Import!E39449","v":0},null,{"$f":"Import!E39499","v":"Select"},{"$f":"Import!E39549","v":"Select"},{"$f":"Import!E39599","v":"Select"},{"$f":"Import!E39649","v":0},null,{"$f":"Import!M39499","v":"Select"},{"$f":"Import!M39549","v":"Select"},{"$f":"Import!M39599","v":"Select"},{"$f":"Import!M39649","v":0}]
[null,28,{"$f":"Import!E39450","v":0},null,{"$f":"Import!E39500","v":"Select"},{"$f":"Import!E39550","v":"Select"},{"$f":"Import!E39600","v":"Select"},{"$f":"Import!E39650","v":0},null,{"$f":"Import!M39500","v":"Select"},{"$f":"Import!M39550","v":"Select"},{"$f":"Import!M39600","v":"Select"},{"$f":"Import!M39650","v":0}]
[null,29,{"$f":"Import!E39451","v":0},null,{"$f":"Import!E39501","v":"Select"},{"$f":"Import!E39551","v":"Select"},{"$f":"Import!E39601","v":"Select"},{"$f":"Import!E39651","v":0},null,{"$f":"Import!M39501","v":"Select"},{"$f":"Import!M39551","v":"Select"},{"$f":"Import!M39601","v":"Select"},{"$f":"Import!M39651","v":0}]
[null,30,{"$f":"Import!E39452","v":0},null,{"$f":"Import!E39502","v":"Select"},{"$f":"Import!E39552","v":"Select"},{"$f":"Import!E39602","v":"Select"},{"$f":"Import!E39652","v":0},null,{"$f":"Import!M39502","v":"Select"},{"$f":"Import!M39552","v":"Select"},{"$f":"Import!M39602","v":"Select"},{"$f":"Import!M39652","v":0}]
[null,31,{"$f":"Import!E39453","v":0},null,{"$f":"Import!E39503","v":"Select"},{"$f":"Import!E39553","v":"Select"},{"$f":"Import!E39603","v":"Select"},{"$f":"Import!E39653","v":0},null,{"$f":"Import!M39503","v":"Select"},{"$f":"Import!M39553","v":"Select"},{"$f":"Import!M39603","v":"Select"},{"$f":"Import!M39653","v":0}]
[null,32,{"$f":"Import!E39454","v":0},null,{"$f":"Import!E39504","v":"Select"},{"$f":"Import!E39554","v":"Select"},{"$f":"Import!E39604","v":"Select"},{"$f":"Import!E39654","v":0},null,{"$f":"Import!M39504","v":"Select"},{"$f":"Import!M39554","v":"Select"},{"$f":"Import!M39604","v":"Select"},{"$f":"Import!M39654","v":0}]
[null,33,{"$f":"Import!E39455","v":0},null,{"$f":"Import!E39505","v":"Select"},{"$f":"Import!E39555","v":"Select"},{"$f":"Import!E39605","v":"Select"},{"$f":"Import!E39655","v":0},null,{"$f":"Import!M39505","v":"Select"},{"$f":"Import!M39555","v":"Select"},{"$f":"Import!M39605","v":"Select"},{"$f":"Import!M39655","v":0}]
[null,34,{"$f":"Import!E39456","v":0},null,{"$f":"Import!E39506","v":"Select"},{"$f":"Import!E39556","v":"Select"},{"$f":"Import!E39606","v":"Select"},{"$f":"Import!E39656","v":0},null,{"$f":"Import!M39506","v":"Select"},{"$f":"Import!M39556","v":"Select"},{"$f":"Import!M39606","v":"Select"},{"$f":"Import!M39656","v":0}]
[null,35,{"$f":"Import!E39457","v":0},null,{"$f":"Import!E39507","v":"Select"},{"$f":"Import!E39557","v":"Select"},{"$f":"Import!E39607","v":"Select"},{"$f":"Import!E39657","v":0},null,{"$f":"Import!M39507","v":"Select"},{"$f":"Import!M39557","v":"Select"},{"$f":"Import!M39607","v":"Select"},{"$f":"Import!M39657","v":0}]
[null,36,{"$f":"Import!E39458","v":0},null,{"$f":"Import!E39508","v":"Select"},{"$f":"Import!E39558","v":"Select"},{"$f":"Import!E39608","v":"Select"},{"$f":"Import!E39658","v":0},null,{"$f":"Import!M39508","v":"Select"},{"$f":"Import!M39558","v":"Select"},{"$f":"Import!M39608","v":"Select"},{"$f":"Import!M39658","v":0}]
[null,37,{"$f":"Import!E39459","v":0},null,{"$f":"Import!E39509","v":"Select"},{"$f":"Import!E39559","v":"Select"},{"$f":"Import!E39609","v":"Select"},{"$f":"Import!E39659","v":0},null,{"$f":"Import!M39509","v":"Select"},{"$f":"Import!M39559","v":"Select"},{"$f":"Import!M39609","v":"Select"},{"$f":"Import!M39659","v":0}]
[null,38,{"$f":"Import!E39460","v":0},null,{"$f":"Import!E39510","v":"Select"},{"$f":"Import!E39560","v":"Select"},{"$f":"Import!E39610","v":"Select"},{"$f":"Import!E39660","v":0},null,{"$f":"Import!M39510","v":"Select"},{"$f":"Import!M39560","v":"Select"},{"$f":"Import!M39610","v":"Select"},{"$f":"Import!M39660","v":0}]
[null,39,{"$f":"Import!E39461","v":0},null,{"$f":"Import!E39511","v":"Select"},{"$f":"Import!E39561","v":"Select"},{"$f":"Import!E39611","v":"Select"},{"$f":"Import!E39661","v":0},null,{"$f":"Import!M39511","v":"Select"},{"$f":"Import!M39561","v":"Select"},{"$f":"Import!M39611","v":"Select"},{"$f":"Import!M39661","v":0}]
[null,40,{"$f":"Import!E39462","v":0},null,{"$f":"Import!E39512","v":"Select"},{"$f":"Import!E39562","v":"Select"},{"$f":"Import!E39612","v":"Select"},{"$f":"Import!E39662","v":0},null,{"$f":"Import!M39512","v":"Select"},{"$f":"Import!M39562","v":"Select"},{"$f":"Import!M39612","v":"Select"},{"$f":"Import!M39662","v":0}]
[null,41,{"$f":"Import!E39463","v":0},null,{"$f":"Import!E39513","v":"Select"},{"$f":"Import!E39563","v":"Select"},{"$f":"Import!E39613","v":"Select"},{"$f":"Import!E39663","v":0},null,{"$f":"Import!M39513","v":"Select"},{"$f":"Import!M39563","v":"Select"},{"$f":"Import!M39613","v":"Select"},{"$f":"Import!M39663","v":0}]
[null,42,{"$f":"Import!E39464","v":0},null,{"$f":"Import!E39514","v":"Select"},{"$f":"Import!E39564","v":"Select"},{"$f":"Import!E39614","v":"Select"},{"$f":"Import!E39664","v":0},null,{"$f":"Import!M39514","v":"Select"},{"$f":"Import!M39564","v":"Select"},{"$f":"Import!M39614","v":"Select"},{"$f":"Import!M39664","v":0}]
[null,43,{"$f":"Import!E39465","v":0},null,{"$f":"Import!E39515","v":"Select"},{"$f":"Import!E39565","v":"Select"},{"$f":"Import!E39615","v":"Select"},{"$f":"Import!E39665","v":0},null,{"$f":"Import!M39515","v":"Select"},{"$f":"Import!M39565","v":"Select"},{"$f":"Import!M39615","v":"Select"},{"$f":"Import!M39665","v":0}]
[null,44,{"$f":"Import!E39466","v":0},null,{"$f":"Import!E39516","v":"Select"},{"$f":"Import!E39566","v":"Select"},{"$f":"Import!E39616","v":"Select"},{"$f":"Import!E39666","v":0},null,{"$f":"Import!M39516","v":"Select"},{"$f":"Import!M39566","v":"Select"},{"$f":"Import!M39616","v":"Select"},{"$f":"Import!M39666","v":0}]
[null,45,{"$f":"Import!E39467","v":0},null,{"$f":"Import!E39517","v":"Select"},{"$f":"Import!E39567","v":"Select"},{"$f":"Import!E39617","v":"Select"},{"$f":"Import!E39667","v":0},null,{"$f":"Import!M39517","v":"Select"},{"$f":"Import!M39567","v":"Select"},{"$f":"Import!M39617","v":"Select"},{"$f":"Import!M39667","v":0}]
[null,46,{"$f":"Import!E39468","v":0},null,{"$f":"Import!E39518","v":"Select"},{"$f":"Import!E39568","v":"Select"},{"$f":"Import!E39618","v":"Select"},{"$f":"Import!E39668","v":0},null,{"$f":"Import!M39518","v":"Select"},{"$f":"Import!M39568","v":"Select"},{"$f":"Import!M39618","v":"Select"},{"$f":"Import!M39668","v":0}]
[null,47,{"$f":"Import!E39469","v":0},null,{"$f":"Import!E39519","v":"Select"},{"$f":"Import!E39569","v":"Select"},{"$f":"Import!E39619","v":"Select"},{"$f":"Import!E39669","v":0},null,{"$f":"Import!M39519","v":"Select"},{"$f":"Import!M39569","v":"Select"},{"$f":"Import!M39619","v":"Select"},{"$f":"Import!M39669","v":0}]
[null,48,{"$f":"Import!E39470","v":0},null,{"$f":"Import!E39520","v":"Select"},{"$f":"Import!E39570","v":"Select"},{"$f":"Import!E39620","v":"Select"},{"$f":"Import!E39670","v":0},null,{"$f":"Import!M39520","v":"Select"},{"$f":"Import!M39570","v":"Select"},{"$f":"Import!M39620","v":"Select"},{"$f":"Import!M39670","v":0}]
[null,49,{"$f":"Import!E39471","v":0},null,{"$f":"Import!E39521","v":"Select"},{"$f":"Import!E39571","v":"Select"},{"$f":"Import!E39621","v":"Select"},{"$f":"Import!E39671","v":0},null,{"$f":"Import!M39521","v":"Select"},{"$f":"Import!M39571","v":"Select"},{"$f":"Import!M39621","v":"Select"},{"$f":"Import!M39671","v":0}]
[null,50,{"$f":"Import!E39472","v":0},null,{"$f":"Import!E39522","v":"Select"},{"$f":"Import!E39572","v":"Select"},{"$f":"Import!E39622","v":"Select"},{"$f":"Import!E39672","v":0},null,{"$f":"Import!M39522","v":"Select"},{"$f":"Import!M39572","v":"Select"},{"$f":"Import!M39622","v":"Select"},{"$f":"Import!M39672","v":0}]
[null,null,"TOTAL CONCENTRATION RISK",null,null,null,null,{"$f":"SUM(H8:H57)","v":0},null,null,null,null,{"$f":"SUM(M8:M57)","v":0}]
[]
[null,null,"Asset Type",null,null,"Bond Types",null,"BSCR Rating Reference"]
[null,null,"Select",null,null,"Select",null,"Select"]
[null,null,"Cash and Cash Equivalent",null,null,"Corporate & Sovereign Bonds",null,"BSCR Rating 0",null,"Note if an insurer does not have any entities to consolidate, enter consolidated information only (This cell is editable for deletion)"]
[null,null,"Bond Types",null,null,"Residential Mortgage-Backed Securities",null,"BSCR Rating 1"]
[null,null,"Preferred Shares",null,null,"Commercial Mortgage-Backed Securities",null,"BSCR Rating 2"]
[null,null,"MortgageLoanTypes",null,null,"Bond Mutual Funds",null,"BSCR Rating 3"]
[null,null,"Infrastructure (Non-affiliate holdings, non-duration based)",null,null,null,null,"BSCR Rating 4"]
[null,null,"Listed Equity Securities in Developed Markets",null,null,"Mortgage Loan Categories",null,"BSCR Rating 5"]
[null,null,"Other Equities",null,null,"Select",null,"BSCR Rating 6"]
[null,null,"Strategic Holdings",null,null,"Insured/Guaranteed Mortgages",null,"BSCR Rating 7"]
[null,null,"Duration Based",null,null,"Other Commercial and Farm Mortgages",null,"BSCR Rating 8"]
[null,null,"Letters of Credit",null,null,"Other Residential Mortgages"]
[null,null,"Advances to Affiliates - ",null,null,"Mortgages Not In Good Standing"]
[null,null,"Policy Loans"]
[null,null,"Equity Real Estate 1"]
[null,null,"Equity Real Estate 2"]
[null,null,"Collateral Loans"]
[]
[null,null,"Grandfathered - Common Stock and Mutual Funds"]
[null,null,"Grandfathered - Other Investments"]
[null,null,"Grandfathered - Investment in Affiliates – Unregulated entities that conduct ancillary services"]
[null,null,"Grandfathered - Investment in Affiliates - Unregulated non-financial operating entities"]
[null,null,"Grandfathered - Investment in Affiliates - Unregulated financial operating entities"]
[null,null,"Grandfathered - Investment in Affiliates - Regulated non-insurance financial operating entities"]
[null,null,"Grandfathered - Investment in Affiliates - Regulated insurance financial operating entities"]
[null,null,"Grandfathered - Real Estate: Occupied by company"]
[null,null,"Grandfathered - Real Estate: Other properties"]

{"sheet":"Schedule XXIII","index":81,"n_rows":56,"n_cols":22,"rows_kept":56,"cut":false,"hidden":false,"merged":[[29,4,29,21],[30,4,30,10],[30,12,30,21],[31,4,31,5],[31,12,31,13],[31,15,31,16],[2,4,3,4],[4,4,4,21],[5,4,5,10],[5,12,5,21],[6,4,6,5],[6,12,6,13],[6,15,6,16]]}
[null,null,"SCHEDULE OF INTEREST RATE SENSITIVE ASSETS AND LIABILITIES",null,null,null,null,null,null,null,null,null,null,null,null,null,null,null,null,null,null,{"$f":"HYPERLINK(\"#'Index'!A1\",\"Return to Index\")","v":"Return to Index"}]
[null,null,{"$f":"+'Insurer Information'!C7","v":"Enter Company Name"}]
[null,null,{"$f":" TEXT('Insurer Information'!C3,\"D MMMM YYYY\")","v":"31 December 2023"},null,null,null,null,null,null,null,null,null,null,null,null,null,null,null,null,null,null,"SCHEDULE XXIII"]
[null,null,{"$f":"+'Form 4EBS'!B4","v":"Expressed in  ['000s]"}]
[null,null,null,null,"INTEREST RATE DOWN SHOCK"]
[null,null,null,null,"Exposures other than derivatives",null,null,null,null,null,null,null,"Derivative exposures"]
[null,null,"Currency",null,"Assets",null,null,"Liabilities","Liabilities without Management Actions",null,"Liabilities with Management Actions",null,"Assets - Qualifying as held for risk-mitigation purposes",null,null,"Assets - Not Qualifying as held for risk-mitigation purposes",null,null,"Liabilities","Liabilities without Management Actions",null,"Liabilities with Management Actions"]
[null,null,null,null,"Before Shock","After Shock",null,"Before Shock","After Shock",null,"After Shock",null,"Before Shock","After Shock",null,"Before Shock","After Shock",null,"Before Shock","After Shock",null,"After Shock"]
[null,null,null,null,"(A)","(B)",null,"(C)","(D)",null,"(F)",null,"(G)","(H)",null,"(I)","(J)",null,"(K)","(L)",null,"(N)"]
[null,1,"United States Dollars",null,{"$f":"Import!M39685","v":0},{"$f":"Import!M39704","v":0},null,{"$f":"Import!M39723","v":0},{"$f":"Import!M39742","v":0},null,{"$f":"Import!M39761","v":0},null,{"$f":"Import!M39780","v":0},{"$f":"Import!M39799","v":0},null,{"$f":"Import!M39818","v":0},{"$f":"Import!M39837","v":0},null,{"$f":"Import!M39856","v":0},{"$f":"Import!M39875","v":0},null,{"$f":"Import!M39894","v":0}]
[null,{"$f":"B10+1","v":2},"Euro",null,{"$f":"Import!M39686","v":0},{"$f":"Import!M39705","v":0},null,{"$f":"Import!M39724","v":0},{"$f":"Import!M39743","v":0},null,{"$f":"Import!M39762","v":0},null,{"$f":"Import!M39781","v":0},{"$f":"Import!M39800","v":0},null,{"$f":"Import!M39819","v":0},{"$f":"Import!M39838","v":0},null,{"$f":"Import!M39857","v":0},{"$f":"Import!M39876","v":0},null,{"$f":"Import!M39895","v":0}]
[null,{"$f":"B11+1","v":3},"United Kingdom Pounds",null,{"$f":"Import!M39687","v":0},{"$f":"Import!M39706","v":0},null,{"$f":"Import!M39725","v":0},{"$f":"Import!M39744","v":0},null,{"$f":"Import!M39763","v":0},null,{"$f":"Import!M39782","v":0},{"$f":"Import!M39801","v":0},null,{"$f":"Import!M39820","v":0},{"$f":"Import!M39839","v":0},null,{"$f":"Import!M39858","v":0},{"$f":"Import!M39877","v":0},null,{"$f":"Import!M39896","v":0}]
[null,4,"Japan Yen",null,{"$f":"Import!M39688","v":0},{"$f":"Import!M39707","v":0},null,{"$f":"Import!M39726","v":0},{"$f":"Import!M39745","v":0},null,{"$f":"Import!M39764","v":0},null,{"$f":"Import!M39783","v":0},{"$f":"Import!M39802","v":0},null,{"$f":"Import!M39821","v":0},{"$f":"Import!M39840","v":0},null,{"$f":"Import!M39859","v":0},{"$f":"Import!M39878","v":0},null,{"$f":"Import!M39897","v":0}]
[null,5,"Canada Dollars",null,{"$f":"Import!M39689","v":0},{"$f":"Import!M39708","v":0},null,{"$f":"Import!M39727","v":0},{"$f":"Import!M39746","v":0},null,{"$f":"Import!M39765","v":0},null,{"$f":"Import!M39784","v":0},{"$f":"Import!M39803","v":0},null,{"$f":"Import!M39822","v":0},{"$f":"Import!M39841","v":0},null,{"$f":"Import!M39860","v":0},{"$f":"Import!M39879","v":0},null,{"$f":"Import!M39898","v":0}]
[null,6,"Swiss Francs",null,{"$f":"Import!M39690","v":0},{"$f":"Import!M39709","v":0},null,{"$f":"Import!M39728","v":0},{"$f":"Import!M39747","v":0},null,{"$f":"Import!M39766","v":0},null,{"$f":"Import!M39785","v":0},{"$f":"Import!M39804","v":0},null,{"$f":"Import!M39823","v":0},{"$f":"Import!M39842","v":0},null,{"$f":"Import!M39861","v":0},{"$f":"Import!M39880","v":0},null,{"$f":"Import!M39899","v":0}]
[null,7,"Australia Dollar",null,{"$f":"Import!M39691","v":0},{"$f":"Import!M39710","v":0},null,{"$f":"Import!M39729","v":0},{"$f":"Import!M39748","v":0},null,{"$f":"Import!M39767","v":0},null,{"$f":"Import!M39786","v":0},{"$f":"Import!M39805","v":0},null,{"$f":"Import!M39824","v":0},{"$f":"Import!M39843","v":0},null,{"$f":"Import!M39862","v":0},{"$f":"Import!M39881","v":0},null,{"$f":"Import!M39900","v":0}]
[null,8,"New Zealand Dollar",null,{"$f":"Import!M39692","v":0},{"$f":"Import!M39711","v":0},null,{"$f":"Import!M39730","v":0},{"$f":"Import!M39749","v":0},null,{"$f":"Import!M39768","v":0},null,{"$f":"Import!M39787","v":0},{"$f":"Import!M39806","v":0},null,{"$f":"Import!M39825","v":0},{"$f":"Import!M39844","v":0},null,{"$f":"Import!M39863","v":0},{"$f":"Import!M39882","v":0},null,{"$f":"Import!M39901","v":0}]
[null,9,{"$f":"Import!M39675","v":"Other currency 1"},null,{"$f":"Import!M39693","v":0},{"$f":"Import!M39712","v":0},null,{"$f":"Import!M39731","v":0},{"$f":"Import!M39750","v":0},null,{"$f":"Import!M39769","v":0},null,{"$f":"Import!M39788","v":0},{"$f":"Import!M39807","v":0},null,{"$f":"Import!M39826","v":0},{"$f":"Import!M39845","v":0},null,{"$f":"Import!M39864","v":0},{"$f":"Import!M39883","v":0},null,{"$f":"Import!M39902","v":0}]
[null,10,{"$f":"Import!M39676","v":"Other currency 2"},null,{"$f":"Import!M39694","v":0},{"$f":"Import!M39713","v":0},null,{"$f":"Import!M39732","v":0},{"$f":"Import!M39751","v":0},null,{"$f":"Import!M39770","v":0},null,{"$f":"Import!M39789","v":0},{"$f":"Import!M39808","v":0},null,{"$f":"Import!M39827","v":0},{"$f":"Import!M39846","v":0},null,{"$f":"Import!M39865","v":0},{"$f":"Import!M39884","v":0},null,{"$f":"Import!M39903","v":0}]
[null,11,{"$f":"Import!M39677","v":"Other currency 3"},null,{"$f":"Import!M39695","v":0},{"$f":"Import!M39714","v":0},null,{"$f":"Import!M39733","v":0},{"$f":"Import!M39752","v":0},null,{"$f":"Import!M39771","v":0},null,{"$f":"Import!M39790","v":0},{"$f":"Import!M39809","v":0},null,{"$f":"Import!M39828","v":0},{"$f":"Import!M39847","v":0},null,{"$f":"Import!M39866","v":0},{"$f":"Import!M39885","v":0},null,{"$f":"Import!M39904","v":0}]
[null,12,{"$f":"Import!M39678","v":"Other currency 4"},null,{"$f":"Import!M39696","v":0},{"$f":"Import!M39715","v":0},null,{"$f":"Import!M39734","v":0},{"$f":"Import!M39753","v":0},null,{"$f":"Import!M39772","v":0},null,{"$f":"Import!M39791","v":0},{"$f":"Import!M39810","v":0},null,{"$f":"Import!M39829","v":0},{"$f":"Import!M39848","v":0},null,{"$f":"Import!M39867","v":0},{"$f":"Import!M39886","v":0},null,{"$f":"Import!M39905","v":0}]
[null,13,{"$f":"Import!M39679","v":"Other currency 5"},null,{"$f":"Import!M39697","v":0},{"$f":"Import!M39716","v":0},null,{"$f":"Import!M39735","v":0},{"$f":"Import!M39754","v":0},null,{"$f":"Import!M39773","v":0},null,{"$f":"Import!M39792","v":0},{"$f":"Import!M39811","v":0},null,{"$f":"Import!M39830","v":0},{"$f":"Import!M39849","v":0},null,{"$f":"Import!M39868","v":0},{"$f":"Import!M39887","v":0},null,{"$f":"Import!M39906","v":0}]
[null,14,{"$f":"Import!M39680","v":"Other currency 6"},null,{"$f":"Import!M39698","v":0},{"$f":"Import!M39717","v":0},null,{"$f":"Import!M39736","v":0},{"$f":"Import!M39755","v":0},null,{"$f":"Import!M39774","v":0},null,{"$f":"Import!M39793","v":0},{"$f":"Import!M39812","v":0},null,{"$f":"Import!M39831","v":0},{"$f":"Import!M39850","v":0},null,{"$f":"Import!M39869","v":0},{"$f":"Import!M39888","v":0},null,{"$f":"Import!M39907","v":0}]
[null,15,{"$f":"Import!M39681","v":"Other currency 7"},null,{"$f":"Import!M39699","v":0},{"$f":"Import!M39718","v":0},null,{"$f":"Import!M39737","v":0},{"$f":"Import!M39756","v":0},null,{"$f":"Import!M39775","v":0},null,{"$f":"Import!M39794","v":0},{"$f":"Import!M39813","v":0},null,{"$f":"Import!M39832","v":0},{"$f":"Import!M39851","v":0},null,{"$f":"Import!M39870","v":0},{"$f":"Import!M39889","v":0},null,{"$f":"Import!M39908","v":0}]
[null,16,{"$f":"Import!M39682","v":"Other currency 8"},null,{"$f":"Import!M39700","v":0},{"$f":"Import!M39719","v":0},null,{"$f":"Import!M39738","v":0},{"$f":"Import!M39757","v":0},null,{"$f":"Import!M39776","v":0},null,{"$f":"Import!M39795","v":0},{"$f":"Import!M39814","v":0},null,{"$f":"Import!M39833","v":0},{"$f":"Import!M39852","v":0},null,{"$f":"Import!M39871","v":0},{"$f":"Import!M39890","v":0},null,{"$f":"Import!M39909","v":0}]
[null,17,{"$f":"Import!M39683","v":"Other currency 9"},null,{"$f":"Import!M39701","v":0},{"$f":"Import!M39720","v":0},null,{"$f":"Import!M39739","v":0},{"$f":"Import!M39758","v":0},null,{"$f":"Import!M39777","v":0},null,{"$f":"Import!M39796","v":0},{"$f":"Import!M39815","v":0},null,{"$f":"Import!M39834","v":0},{"$f":"Import!M39853","v":0},null,{"$f":"Import!M39872","v":0},{"$f":"Import!M39891","v":0},null,{"$f":"Import!M39910","v":0}]
[null,18,{"$f":"Import!M39684","v":"Other currency 10"},null,{"$f":"Import!M39702","v":0},{"$f":"Import!M39721","v":0},null,{"$f":"Import!M39740","v":0},{"$f":"Import!M39759","v":0},null,{"$f":"Import!M39778","v":0},null,{"$f":"Import!M39797","v":0},{"$f":"Import!M39816","v":0},null,{"$f":"Import!M39835","v":0},{"$f":"Import!M39854","v":0},null,{"$f":"Import!M39873","v":0},{"$f":"Import!M39892","v":0},null,{"$f":"Import!M39911","v":0}]
[null,19,"IR Down Shock Total",null,{"$f":"SUM(E10:E27)","v":0},{"$f":"SUM(F10:F27)","v":0},null,{"$f":"SUM(H10:H27)","v":0},{"$f":"SUM(I10:I27)","v":0},null,{"$f":"SUM(K10:K27)","v":0},null,{"$f":"SUM(M10:M27)","v":0},{"$f":"SUM(N10:N27)","v":0},null,{"$f":"SUM(P10:P27)","v":0},{"$f":"SUM(Q10:Q27)","v":0},null,{"$f":"SUM(S10:S27)","v":0},{"$f":"SUM(T10:T27)","v":0},null,{"$f":"SUM(V10:V27)","v":0}]
[]
[null,null,null,null,"INTEREST RATE UP SHOCK"]
[null,null,null,null,"Exposures other than derivatives",null,null,null,null,null,null,null,"Derivative exposures"]
[null,null,"Currency",null,"Assets",null,null,"Liabilities","Liabilities without Management Actions",null,"Liabilities with Management Actions",null,"Assets - Qualifying as held for risk-mitigation purposes",null,null,"Assets - Not Qualifying as held for risk-mitigation purposes",null,null,"Liabilities","Liabilities without Management Actions",null,"Liabilities with Management Actions"]
[null,null,null,null,"Before Shock","After Shock",null,"Before Shock","After Shock",null,"After Shock",null,"Before Shock","After Shock",null,"Before Shock","After Shock",null,"Before Shock","After Shock",null,"After Shock"]
[null,null,null,null,"(A)","(B)",null,"(C)","(D)",null,"(F)",null,"(G)","(H)",null,"(I)","(J)",null,"(K)","(L)",null,"(N)"]
[null,{"$f":"B28+1","v":20},"United States Dollars",null,{"$f":"Import!M39923","v":0},{"$f":"Import!M39942","v":0},null,{"$f":"Import!M39961","v":0},{"$f":"Import!M39980","v":0},null,{"$f":"Import!M39999","v":0},null,{"$f":"Import!M40018","v":0},{"$f":"Import!M40037","v":0},null,{"$f":"Import!M40056","v":0},{"$f":"Import!M40075","v":0},null,{"$f":"Import!M40094","v":0},{"$f":"Import!M40113","v":0},null,{"$f":"Import!M40132","v":0}]
[null,{"$f":"B35+1","v":21},"Euro",null,{"$f":"Import!M39924","v":0},{"$f":"Import!M39943","v":0},null,{"$f":"Import!M39962","v":0},{"$f":"Import!M39981","v":0},null,{"$f":"Import!M40000","v":0},null,{"$f":"Import!M40019","v":0},{"$f":"Import!M40038","v":0},null,{"$f":"Import!M40057","v":0},{"$f":"Import!M40076","v":0},null,{"$f":"Import!M40095","v":0},{"$f":"Import!M40114","v":0},null,{"$f":"Import!M40133","v":0}]
[null,{"$f":"B36+1","v":22},"United Kingdom Pounds",null,{"$f":"Import!M39925","v":0},{"$f":"Import!M39944","v":0},null,{"$f":"Import!M39963","v":0},{"$f":"Import!M39982","v":0},null,{"$f":"Import!M40001","v":0},null,{"$f":"Import!M40020","v":0},{"$f":"Import!M40039","v":0},null,{"$f":"Import!M40058","v":0},{"$f":"Import!M40077","v":0},null,{"$f":"Import!M40096","v":0},{"$f":"Import!M40115","v":0},null,{"$f":"Import!M40134","v":0}]
[null,23,"Japan Yen",null,{"$f":"Import!M39926","v":0},{"$f":"Import!M39945","v":0},null,{"$f":"Import!M39964","v":0},{"$f":"Import!M39983","v":0},null,{"$f":"Import!M40002","v":0},null,{"$f":"Import!M40021","v":0},{"$f":"Import!M40040","v":0},null,{"$f":"Import!M40059","v":0},{"$f":"Import!M40078","v":0},null,{"$f":"Import!M40097","v":0},{"$f":"Import!M40116","v":0},null,{"$f":"Import!M40135","v":0}]
[null,24,"Canada Dollars",null,{"$f":"Import!M39927","v":0},{"$f":"Import!M39946","v":0},null,{"$f":"Import!M39965","v":0},{"$f":"Import!M39984","v":0},null,{"$f":"Import!M40003","v":0},null,{"$f":"Import!M40022","v":0},{"$f":"Import!M40041","v":0},null,{"$f":"Import!M40060","v":0},{"$f":"Import!M40079","v":0},null,{"$f":"Import!M40098","v":0},{"$f":"Import!M40117","v":0},null,{"$f":"Import!M40136","v":0}]
[null,25,"Swiss Francs",null,{"$f":"Import!M39928","v":0},{"$f":"Import!M39947","v":0},null,{"$f":"Import!M39966","v":0},{"$f":"Import!M39985","v":0},null,{"$f":"Import!M40004","v":0},null,{"$f":"Import!M40023","v":0},{"$f":"Import!M40042","v":0},null,{"$f":"Import!M40061","v":0},{"$f":"Import!M40080","v":0},null,{"$f":"Import!M40099","v":0},{"$f":"Import!M40118","v":0},null,{"$f":"Import!M40137","v":0}]
[null,26,"Australia Dollar",null,{"$f":"Import!M39929","v":0},{"$f":"Import!M39948","v":0},null,{"$f":"Import!M39967","v":0},{"$f":"Import!M39986","v":0},null,{"$f":"Import!M40005","v":0},null,{"$f":"Import!M40024","v":0},{"$f":"Import!M40043","v":0},null,{"$f":"Import!M40062","v":0},{"$f":"Import!M40081","v":0},null,{"$f":"Import!M40100","v":0},{"$f":"Import!M40119","v":0},null,{"$f":"Import!M40138","v":0}]
[null,27,"New Zealand Dollar",null,{"$f":"Import!M39930","v":0},{"$f":"Import!M39949","v":0},null,{"$f":"Import!M39968","v":0},{"$f":"Import!M39987","v":0},null,{"$f":"Import!M40006","v":0},null,{"$f":"Import!M40025","v":0},{"$f":"Import!M40044","v":0},null,{"$f":"Import!M40063","v":0},{"$f":"Import!M40082","v":0},null,{"$f":"Import!M40101","v":0},{"$f":"Import!M40120","v":0},null,{"$f":"Import!M40139","v":0}]
[null,28,{"$f":"Import!M39913","v":"Other currency 1"},null,{"$f":"Import!M39931","v":0},{"$f":"Import!M39950","v":0},null,{"$f":"Import!M39969","v":0},{"$f":"Import!M39988","v":0},null,{"$f":"Import!M40007","v":0},null,{"$f":"Import!M40026","v":0},{"$f":"Import!M40045","v":0},null,{"$f":"Import!M40064","v":0},{"$f":"Import!M40083","v":0},null,{"$f":"Import!M40102","v":0},{"$f":"Import!M40121","v":0},null,{"$f":"Import!M40140","v":0}]
[null,29,{"$f":"Import!M39914","v":"Other currency 2"},null,{"$f":"Import!M39932","v":0},{"$f":"Import!M39951","v":0},null,{"$f":"Import!M39970","v":0},{"$f":"Import!M39989","v":0},null,{"$f":"Import!M40008","v":0},null,{"$f":"Import!M40027","v":0},{"$f":"Import!M40046","v":0},null,{"$f":"Import!M40065","v":0},{"$f":"Import!M40084","v":0},null,{"$f":"Import!M40103","v":0},{"$f":"Import!M40122","v":0},null,{"$f":"Import!M40141","v":0}]
[null,30,{"$f":"Import!M39915","v":"Other currency 3"},null,{"$f":"Import!M39933","v":0},{"$f":"Import!M39952","v":0},null,{"$f":"Import!M39971","v":0},{"$f":"Import!M39990","v":0},null,{"$f":"Import!M40009","v":0},null,{"$f":"Import!M40028","v":0},{"$f":"Import!M40047","v":0},null,{"$f":"Import!M40066","v":0},{"$f":"Import!M40085","v":0},null,{"$f":"Import!M40104","v":0},{"$f":"Import!M40123","v":0},null,{"$f":"Import!M40142","v":0}]
[null,31,{"$f":"Import!M39916","v":"Other currency 4"},null,{"$f":"Import!M39934","v":0},{"$f":"Import!M39953","v":0},null,{"$f":"Import!M39972","v":0},{"$f":"Import!M39991","v":0},null,{"$f":"Import!M40010","v":0},null,{"$f":"Import!M40029","v":0},{"$f":"Import!M40048","v":0},null,{"$f":"Import!M40067","v":0},{"$f":"Import!M40086","v":0},null,{"$f":"Import!M40105","v":0},{"$f":"Import!M40124","v":0},null,{"$f":"Import!M40143","v":0}]
[null,32,{"$f":"Import!M39917","v":"Other currency 5"},null,{"$f":"Import!M39935","v":0},{"$f":"Import!M39954","v":0},null,{"$f":"Import!M39973","v":0},{"$f":"Import!M39992","v":0},null,{"$f":"Import!M40011","v":0},null,{"$f":"Import!M40030","v":0},{"$f":"Import!M40049","v":0},null,{"$f":"Import!M40068","v":0},{"$f":"Import!M40087","v":0},null,{"$f":"Import!M40106","v":0},{"$f":"Import!M40125","v":0},null,{"$f":"Import!M40144","v":0}]
[null,33,{"$f":"Import!M39918","v":"Other currency 6"},null,{"$f":"Import!M39936","v":0},{"$f":"Import!M39955","v":0},null,{"$f":"Import!M39974","v":0},{"$f":"Import!M39993","v":0},null,{"$f":"Import!M40012","v":0},null,{"$f":"Import!M40031","v":0},{"$f":"Import!M40050","v":0},null,{"$f":"Import!M40069","v":0},{"$f":"Import!M40088","v":0},null,{"$f":"Import!M40107","v":0},{"$f":"Import!M40126","v":0},null,{"$f":"Import!M40145","v":0}]
[null,34,{"$f":"Import!M39919","v":"Other currency 7"},null,{"$f":"Import!M39937","v":0},{"$f":"Import!M39956","v":0},null,{"$f":"Import!M39975","v":0},{"$f":"Import!M39994","v":0},null,{"$f":"Import!M40013","v":0},null,{"$f":"Import!M40032","v":0},{"$f":"Import!M40051","v":0},null,{"$f":"Import!M40070","v":0},{"$f":"Import!M40089","v":0},null,{"$f":"Import!M40108","v":0},{"$f":"Import!M40127","v":0},null,{"$f":"Import!M40146","v":0}]
[null,35,{"$f":"Import!M39920","v":"Other currency 8"},null,{"$f":"Import!M39938","v":0},{"$f":"Import!M39957","v":0},null,{"$f":"Import!M39976","v":0},{"$f":"Import!M39995","v":0},null,{"$f":"Import!M40014","v":0},null,{"$f":"Import!M40033","v":0},{"$f":"Import!M40052","v":0},null,{"$f":"Import!M40071","v":0},{"$f":"Import!M40090","v":0},null,{"$f":"Import!M40109","v":0},{"$f":"Import!M40128","v":0},null,{"$f":"Import!M40147","v":0}]
[null,36,{"$f":"Import!M39921","v":"Other currency 9"},null,{"$f":"Import!M39939","v":0},{"$f":"Import!M39958","v":0},null,{"$f":"Import!M39977","v":0},{"$f":"Import!M39996","v":0},null,{"$f":"Import!M40015","v":0},null,{"$f":"Import!M40034","v":0},{"$f":"Import!M40053","v":0},null,{"$f":"Import!M40072","v":0},{"$f":"Import!M40091","v":0},null,{"$f":"Import!M40110","v":0},{"$f":"Import!M40129","v":0},null,{"$f":"Import!M40148","v":0}]
[null,37,{"$f":"Import!M39922","v":"Other currency 10"},null,{"$f":"Import!M39940","v":0},{"$f":"Import!M39959","v":0},null,{"$f":"Import!M39978","v":0},{"$f":"Import!M39997","v":0},null,{"$f":"Import!M40016","v":0},null,{"$f":"Import!M40035","v":0},{"$f":"Import!M40054","v":0},null,{"$f":"Import!M40073","v":0},{"$f":"Import!M40092","v":0},null,{"$f":"Import!M40111","v":0},{"$f":"Import!M40130","v":0},null,{"$f":"Import!M40149","v":0}]
[null,38,"IR UP Shock Total",null,{"$f":"SUM(E35:E52)","v":0},{"$f":"SUM(F35:F52)","v":0},null,{"$f":"SUM(H35:H52)","v":0},{"$f":"SUM(I35:I52)","v":0},null,{"$f":"SUM(K35:K52)","v":0},null,{"$f":"SUM(M35:M52)","v":0},{"$f":"SUM(N35:N52)","v":0},null,{"$f":"SUM(P35:P52)","v":0},{"$f":"SUM(Q35:Q52)","v":0},null,{"$f":"SUM(S35:S52)","v":0},{"$f":"SUM(T35:T52)","v":0},null,{"$f":"SUM(V35:V52)","v":0}]
[]
[null,null,"Interest Rate Check",null,{"$f":"IF(ROUND(E28-E53,0)=0,\"Yes\",\"No\")","v":"Yes"},null,null,{"$f":"IF(ROUND(H28-H53,0)=0,\"Yes\",\"No\")","v":"Yes"},null,null,null,null,{"$f":"IF(ROUND(M28-M53,0)=0,\"Yes\",\"No\")","v":"Yes"},null,null,{"$f":"IF(ROUND(P28-P53,0)=0,\"Yes\",\"No\")","v":"Yes"},null,null,{"$f":"IF(ROUND(S28-S53,0)=0,\"Yes\",\"No\")","v":"Yes"}]
[null,null,"Difference",null,{"$f":"ROUND(E28-E53,0)","v":0},null,null,{"$f":"ROUND(H28-H53,0)","v":0},null,null,null,null,{"$f":"ROUND(M28-M53,0)","v":0},null,null,{"$f":"ROUND(P28-P53,0)","v":0},null,null,{"$f":"ROUND(S28-S53,0)","v":0}]

{"sheet":"Corp Gov","index":82,"n_rows":19,"n_cols":4,"rows_kept":19,"cut":false,"hidden":false,"merged":[[4,1,4,3],[19,1,19,3],[0,2,0,3]]}
[null,"OPERATIONAL RISK: CORPORATE GOVERNANCE",{"$f":"HYPERLINK(\"#'Index'!A1\",\"Return to Index\")","v":"Return to Index"}]
[null,{"$f":"'Insurer Information'!C7","v":"Enter Company Name"}]
[null,{"$f":" TEXT('Insurer Information'!C3,\"D MMMM YYYY\")","v":"31 December 2023"}]
[]
[null,"The insurer is to review the following statements below.  The insurer is to place an “X” in the column “Implemented” where the Corporate Governance function meets the criteria (200 points for each fulfilled criteria).  The worksheet will automatically aggregate all scores."]
[]
[null,"The Board of Directors:"]
[]
[null,"Description","Implemented","Score"]
[null,"Sets risk policies, practices and tolerance limits for all material foreseeable operational risks at least annually and ensures they are communicated to releveant business units",null,{"$f":"IF(C10=\"\",Import!I36630,IF(C10=\"X\", 200, 0))","v":0}]
[null,"Ensures that risk policies, practices and tolerance limits for all material foreseeable operational risks are communicated to relevant business units at least annually",null,{"$f":"IF(C11=\"\",Import!I36631,IF(C11=\"X\", 200, 0))","v":0}]
[null,"Monitors adherence to operational risk tolerance limits more regularly than annually",null,{"$f":"IF(C12=\"\",Import!I36632,IF(C12=\"X\", 200, 0))","v":0}]
[null,"Receives, at least annually, reports on the effectiveness of material operational risk internal controls as well as management’s plans to address related weaknesses",null,{"$f":"IF(C13=\"\",Import!I36633,IF(C13=\"X\", 200, 0))","v":0}]
[null,"Ensures that systems and/or procedures are in place to identify, report and promptly address internal control deficiencies related to operational risks",null,{"$f":"IF(C14=\"\",Import!I36634,IF(C14=\"X\", 200, 0))","v":0}]
[null,"Promotes full, open and timely disclosure from senior management on all significant issues related to operational risk",null,{"$f":"IF(C15=\"\",Import!I36635,IF(C15=\"X\", 200, 0))","v":0}]
[null,"Ensures that periodic independent reviews of the risk management function are performed and receives the findings of the review",null,{"$f":"IF(C16=\"\",Import!I36636,IF(C16=\"X\", 200, 0))","v":0}]
[null,null,null,{"$f":"SUM(D10:D16)","v":0}]
[]
[null,"Comments (optionally, the insurer may provide comments in the box below to support its responses above):"]

{"sheet":"Risk Man","index":83,"n_rows":20,"n_cols":4,"rows_kept":20,"cut":false,"hidden":false,"merged":[[5,1,5,3],[20,1,20,3],[0,2,0,3]]}
[null,"OPERATIONAL RISK: RISK MANAGEMENT FUNCTION",{"$f":"HYPERLINK(\"#'Index'!A1\",\"Return to Index\")","v":"Return to Index"}]
[]
[null,{"$f":"'Insurer Information'!C7","v":"Enter Company Name"}]
[null,{"$f":" TEXT('Insurer Information'!C3,\"D MMMM YYYY\")","v":"31 December 2023"},null,{"$f":"IF('Insurer Information'!$F$9=\"Class C\",200,150)","v":200}]
[]
[null,{"$f":"\"The insurer is to review the following statements below.  The insurer is to place an X in the column Implemented where the Risk Management function meets the criteria (\"&D4&\" points for each fulfilled criteria).  The worksheet will automatically aggregate all scores.\"","v":"The insurer is to review the following statements below.  The insurer is to place an X in the column Implemented where the Risk Management function meets the criteria (200 points for each fulfilled criteria).  The worksheet will automatically aggregate all scores."}]
[]
[null,"The Risk Management Function:"]
[]
[null,"Description","Implemented","Score"]
[null,"Is independent of other operational units and has direct access to the Board of Directors",null,{"$f":"IF(C11=\"\",Import!I36637,IF('Insurer Information'!$F$9=\"Class C\",IF(C11=\"X\", 200, 0),IF(C11=\"X\", 150, 0)))","v":0}]
[null,"Is entrenched in strategic planning, decision making and budgeting process",null,{"$f":"IF(C12=\"\",Import!I36638,IF('Insurer Information'!$F$9=\"Class C\",IF(C12=\"X\", 200, 0),IF(C12=\"X\", 150, 0)))","v":0}]
[null,"Ensures that the risk management procedures and policies are well documented and approved by the Board of Directors",null,{"$f":"IF(C13=\"\",Import!I36639,IF('Insurer Information'!$F$9=\"Class C\",IF(C13=\"X\", 200, 0),IF(C13=\"X\", 150, 0)))","v":0}]
[null,"Ensures the risk management policies and procedures are communicated throughout the organisation.",null,{"$f":"IF(C14=\"\",Import!I36640,IF('Insurer Information'!$F$9=\"Class C\",IF(C14=\"X\", 200, 0),IF(C14=\"X\", 150, 0)))","v":0}]
[null,"Reviews operational risk management processes and procedures at least annually",null,{"$f":"IF(C15=\"\",Import!I36641,IF('Insurer Information'!$F$9=\"Class C\",IF(C15=\"X\", 200, 0),IF(C15=\"X\", 150, 0)))","v":0}]
[null,"Ensures that loss events arising from operational risks are documented and loss event data is integrated into enterprise risk management ",null,{"$f":"IF(C16=\"\",Import!I36642,IF('Insurer Information'!$F$9=\"Class C\",IF(C16=\"X\", 200, 0),IF(C16=\"X\", 150, 0)))","v":0}]
[null,"Documents its risk management recommendations for operational units, ensures that deficiencies have remedial plans and progress on the execution of such plans are reported to the Board of Directors at least annually",null,{"$f":"IF(C17=\"\",Import!I36643,IF('Insurer Information'!$F$9=\"Class C\",IF(C17=\"X\", 200, 0),IF(C17=\"X\", 150, 0)))","v":0}]
[null,null,null,{"$f":"SUM(D11:D17)","v":0}]
[]
[null,"Comments (optionally, the insurer may provide comments in the box below to support its responses above):"]

{"sheet":"Identification","index":84,"n_rows":21,"n_cols":14,"rows_kept":21,"cut":false,"hidden":true,"merged":[[0,11,0,12],[2,1,2,2],[21,1,21,12],[12,1,12,2],[12,3,13,3],[12,4,12,12],[20,1,20,7],[4,1,4,12],[6,1,6,10],[6,11,6,12]]}
[null,"OPERATIONAL RISK: RISK IDENTIFICATION",null,null,null,null,null,null,null,null,null,{"$f":"HYPERLINK(\"#'Index'!A1\",\"Return to Index\")","v":"Return to Index"}]
[null,{"$f":"'Insurer Information'!C7","v":"Enter Company Name"}]
[null,{"$f":" TEXT('Insurer Information'!C3,\"D MMMM YYYY\")","v":"31 December 2023"}]
[]
[null,"The insurer is to answer the following question.  If the answer to the question is \"No\" then the insurer does not have to complete the matrix/grid.  If the answer to the question is \"Yes\" then the insurer is to identify the stage of progression of each Operational Risk Area based upon the Dimension descriptor.  The insurer is then to input an “X” in the grid corresponding to the stage in the matrix table under the relevant Operational Risk Area."]
[]
[null,"Has your company taken steps to identify material risks arising from the Operational Risk Areas identified below? (Y/N) "]
[]
[null,"If \"Y\", identify the stage of each Operational Risk Area and input an \"X\" in the appropriate grid under each area."]
[]
[null,"Risk Identification Processes are:"]
[]
[null,"Progression",null,"Dimension","Operational Risk Areas"]
[null,"Stage","Scoring",null,"Fraud","Human Resources","Outsourcing","Distribution Channels","Business Processes","Business Continuity","Information Systems","Compliance","Total (Si)"]
[null,1,50,"“ad hoc”"]
[null,2,100,"Implemented but not standardised across the organisation"]
[null,3,150,"Implemented, well documented policies and procedures that are understood by relevant staff, and standardised across the entire organisation"]
[null,4,200,"In addition to Stage 3, processes are reviewed at least annually with the view to assessing effectiveness and introducing improvements"]
[null,null,null,null,{"$f":"IF(COUNTA(E15:E18)=0,Import!$I36644,IF(E15=\"X\", 50, IF(E16=\"X\", 100, IF(E17=\"X\", 150, IF(E18=\"X\", 200, 0)))))","v":0},{"$f":"IF(COUNTA(F15:F18)=0,Import!$I36645,IF(F15=\"X\", 50, IF(F16=\"X\", 100, IF(F17=\"X\", 150, IF(F18=\"X\", 200, 0)))))","v":0},{"$f":"IF(COUNTA(G15:G18)=0,Import!$I36646,IF(G15=\"X\", 50, IF(G16=\"X\", 100, IF(G17=\"X\", 150, IF(G18=\"X\", 200, 0)))))","v":0},{"$f":"IF(COUNTA(H15:H18)=0,Import!$I36647,IF(H15=\"X\", 50, IF(H16=\"X\", 100, IF(H17=\"X\", 150, IF(H18=\"X\", 200, 0)))))","v":0},{"$f":"IF(COUNTA(I15:I18)=0,Import!$I36648,IF(I15=\"X\", 50, IF(I16=\"X\", 100, IF(I17=\"X\", 150, IF(I18=\"X\", 200, 0)))))","v":0},{"$f":"IF(COUNTA(J15:J18)=0,Import!$I36649,IF(J15=\"X\", 50, IF(J16=\"X\", 100, IF(J17=\"X\", 150, IF(J18=\"X\", 200, 0)))))","v":0},{"$f":"IF(COUNTA(K15:K18)=0,Import!$I36650,IF(K15=\"X\", 50, IF(K16=\"X\", 100, IF(K17=\"X\", 150, IF(K18=\"X\", 200, 0)))))","v":0},{"$f":"IF(COUNTA(L15:L18)=0,Import!$I36651,IF(L15=\"X\", 50, IF(L16=\"X\", 100, IF(L17=\"X\", 150, IF(L18=\"X\", 200, 0)))))","v":0},{"$f":"SUM(E19:L19)","v":0},{"$f":"IF(M19>1600, \"ERR\", \"OK\")","v":"OK"}]
[]
[null,"Comments (optionally, the insurer may provide comments in the box below to support its responses above):"]

{"sheet":"Measurement","index":85,"n_rows":21,"n_cols":14,"rows_kept":21,"cut":false,"hidden":true,"merged":[[0,11,0,12],[12,4,12,12],[21,1,21,12],[2,1,2,2],[6,1,6,10],[6,11,6,12],[20,1,20,7],[4,1,4,12],[12,1,12,2],[12,3,13,3]]}
[null,"OPERATIONAL RISK: RISK MEASUREMENT",null,null,null,null,null,null,null,null,null,{"$f":"HYPERLINK(\"#'Index'!A1\",\"Return to Index\")","v":"Return to Index"}]
[null,{"$f":"'Insurer Information'!C7","v":"Enter Company Name"}]
[null,{"$f":" TEXT('Insurer Information'!C3,\"D MMMM YYYY\")","v":"31 December 2023"}]
[]
[null,"The insurer is to answer the following question.  If the answer to the question is \"No\" then the insurer does not have to complete the matrix/grid.  If the answer to the question is \"Yes\" then the insurer is to identify the stage of progression of each Operational Risk Area based upon the Dimension descriptor.  The insurer is then to input an “X” in the grid corresponding to the stage in the matrix table under the relevant Operational Risk Area."]
[]
[null,"Has your company taken steps to measure material risks arising from the Operational Risk Areas identified below? (Y/N) "]
[]
[null,"If \"Y\", identify the stage of each Operational Risk Area and input an \"X\" in the appropriate grid under each area."]
[]
[null,"Risk Identification Processes are:"]
[]
[null,"Progression",null,"Dimension","Operational Risk Areas"]
[null,"Stage","Scoring",null,"Fraud","Human Resources","Outsourcing","Distribution Channels","Business Processes","Business Continuity","Information Systems","Compliance","Total (Si)"]
[null,1,50,"“ad hoc”"]
[null,2,100,"Implemented but not standardised across the organisation"]
[null,3,150,"Implemented, well documented policies and procedures that are understood by relevant staff, and standardised across the entire organisation"]
[null,4,200,"In addition to Stage 3, processes are reviewed at least annually with the view to assessing effectiveness and introducing improvements"]
[null,null,null,null,{"$f":"IF(COUNTA(E15:E18)=0,Import!$I36652,IF(E15=\"X\", 50, IF(E16=\"X\", 100, IF(E17=\"X\", 150, IF(E18=\"X\", 200, 0)))))","v":0},{"$f":"IF(COUNTA(F15:F18)=0,Import!$I36653,IF(F15=\"X\", 50, IF(F16=\"X\", 100, IF(F17=\"X\", 150, IF(F18=\"X\", 200, 0)))))","v":0},{"$f":"IF(COUNTA(G15:G18)=0,Import!$I36654,IF(G15=\"X\", 50, IF(G16=\"X\", 100, IF(G17=\"X\", 150, IF(G18=\"X\", 200, 0)))))","v":0},{"$f":"IF(COUNTA(H15:H18)=0,Import!$I36655,IF(H15=\"X\", 50, IF(H16=\"X\", 100, IF(H17=\"X\", 150, IF(H18=\"X\", 200, 0)))))","v":0},{"$f":"IF(COUNTA(I15:I18)=0,Import!$I36656,IF(I15=\"X\", 50, IF(I16=\"X\", 100, IF(I17=\"X\", 150, IF(I18=\"X\", 200, 0)))))","v":0},{"$f":"IF(COUNTA(J15:J18)=0,Import!$I36657,IF(J15=\"X\", 50, IF(J16=\"X\", 100, IF(J17=\"X\", 150, IF(J18=\"X\", 200, 0)))))","v":0},{"$f":"IF(COUNTA(K15:K18)=0,Import!$I36658,IF(K15=\"X\", 50, IF(K16=\"X\", 100, IF(K17=\"X\", 150, IF(K18=\"X\", 200, 0)))))","v":0},{"$f":"IF(COUNTA(L15:L18)=0,Import!$I36659,IF(L15=\"X\", 50, IF(L16=\"X\", 100, IF(L17=\"X\", 150, IF(L18=\"X\", 200, 0)))))","v":0},{"$f":"SUM(E19:L19)","v":0},{"$f":"IF(M19>1600, \"ERR\", \"OK\")","v":"OK"}]
[]
[null,"Comments (optionally, the insurer may provide comments in the box below to support its responses above):"]

{"sheet":"Response","index":86,"n_rows":21,"n_cols":14,"rows_kept":21,"cut":false,"hidden":true,"merged":[[0,11,0,12],[4,1,4,12],[21,1,21,12],[12,1,12,2],[12,3,13,3],[12,4,12,12],[20,1,20,7],[3,1,3,12],[5,1,5,10],[6,11,6,12]]}
[null,"OPERATIONAL RISK: RISK RESPONSE",null,null,null,null,null,null,null,null,null,{"$f":"HYPERLINK(\"#'Index'!A1\",\"Return to Index\")","v":"Return to Index"}]
[null,{"$f":"'Insurer Information'!C7","v":"Enter Company Name"}]
[null,{"$f":" TEXT('Insurer Information'!C3,\"D MMMM YYYY\")","v":"31 December 2023"}]
[]
[null,"The insurer is to answer the following question.  If the answer to the question is \"No\" then the insurer does not have to complete the matrix/grid.  If the answer to the question is \"Yes\" then the insurer is to identify the stage of progression of each Operational Risk Area based upon the Dimension descriptor.  The insurer is then to input an “X” in the grid corresponding to the stage in the matrix table under the relevant Operational Risk Area."]
[]
[null,"Has your company taken steps to control and/or mitigate material risks arising from the Operational Risk Areas identified below? (Y/N)"]
[]
[null,"If \"Y\", identify the stage of each Operational Risk Area and input an \"X\" in the appropriate grid under each area."]
[]
[null,"Risk Response processes are:"]
[]
[null,"Progression",null,"Dimension","Operational Risk Areas"]
[null,"Stage","Scoring",null,"Fraud","Human Resources","Outsourcing","Distribution Channels","Business Processes","Business Continuity","Information Systems","Compliance","Total (Si)"]
[null,1,50,"“ad hoc”"]
[null,2,100,"Implemented but not standardized across the organisation"]
[null,3,150,"Implemented, well documented policies and procedures that are understood by relevant staff, and standardized across the entire organisation"]
[null,4,200,"In addition to Stage 3, processes are reviewed at least annually with the view to assessing effectiveness and introducing improvements"]
[null,null,null,null,{"$f":"IF(COUNTA(E15:E18)=0,Import!$I36660,IF(E15=\"X\", 50, IF(E16=\"X\", 100, IF(E17=\"X\", 150, IF(E18=\"X\", 200, 0)))))","v":0},{"$f":"IF(COUNTA(F15:F18)=0,Import!$I36661,IF(F15=\"X\", 50, IF(F16=\"X\", 100, IF(F17=\"X\", 150, IF(F18=\"X\", 200, 0)))))","v":0},{"$f":"IF(COUNTA(G15:G18)=0,Import!$I36662,IF(G15=\"X\", 50, IF(G16=\"X\", 100, IF(G17=\"X\", 150, IF(G18=\"X\", 200, 0)))))","v":0},{"$f":"IF(COUNTA(H15:H18)=0,Import!$I36663,IF(H15=\"X\", 50, IF(H16=\"X\", 100, IF(H17=\"X\", 150, IF(H18=\"X\", 200, 0)))))","v":0},{"$f":"IF(COUNTA(I15:I18)=0,Import!$I36664,IF(I15=\"X\", 50, IF(I16=\"X\", 100, IF(I17=\"X\", 150, IF(I18=\"X\", 200, 0)))))","v":0},{"$f":"IF(COUNTA(J15:J18)=0,Import!$I36665,IF(J15=\"X\", 50, IF(J16=\"X\", 100, IF(J17=\"X\", 150, IF(J18=\"X\", 200, 0)))))","v":0},{"$f":"IF(COUNTA(K15:K18)=0,Import!$I36666,IF(K15=\"X\", 50, IF(K16=\"X\", 100, IF(K17=\"X\", 150, IF(K18=\"X\", 200, 0)))))","v":0},{"$f":"IF(COUNTA(L15:L18)=0,Import!$I36667,IF(L15=\"X\", 50, IF(L16=\"X\", 100, IF(L17=\"X\", 150, IF(L18=\"X\", 200, 0)))))","v":0},{"$f":"SUM(E19:L19)","v":0},{"$f":"IF(M19>1600, \"ERR\", \"OK\")","v":"OK"}]
[]
[null,"Comments (optionally, the insurer may provide comments in the box below to support its responses above):"]

{"sheet":"Monitoring & Reporting","index":87,"n_rows":21,"n_cols":14,"rows_kept":21,"cut":false,"hidden":true,"merged":[[0,11,0,12],[3,1,3,12],[5,1,5,10],[4,1,4,12],[6,11,6,12],[21,1,21,12],[12,1,12,2],[12,3,13,3],[12,4,12,12],[20,1,20,7]]}
[null,"OPERATIONAL RISK: RISK MONITORING & REPORTING",null,null,null,null,null,null,null,null,null,{"$f":"HYPERLINK(\"#'Index'!A1\",\"Return to Index\")","v":"Return to Index"}]
[null,{"$f":"'Insurer Information'!C7","v":"Enter Company Name"}]
[null,{"$f":" TEXT('Insurer Information'!C3,\"D MMMM YYYY\")","v":"31 December 2023"}]
[]
[null,"The insurer is to answer the following question.  If the answer to the question is \"No\" then the insurer does not have to complete the matrix/grid.  If the answer to the question is \"Yes\" then the insurer is to identify the stage of progression of each Operational Risk Area based upon the Dimension descriptor.  The insurer is then to input an “X” in the grid corresponding to the stage in the matrix table under the relevant Operational Risk Area."]
[]
[null,"Has your company taken steps to monitor and report material risks arising from the Operational Risk Areas identified below? (Y/N)"]
[]
[null,"If \"Y\", identify the stage of each Operational Risk Area and input an \"X\" in the appropriate grid under each area."]
[]
[null,"Risk Monitoring & Reporting processes are:"]
[]
[null,"Progression",null,"Dimension","Operational Risk Areas"]
[null,"Stage","Scoring",null,"Fraud","Human Resources","Outsourcing","Distribution Channels","Business Processes","Business Continuity","Information Systems","Compliance","Total (Si)"]
[null,1,50,"“ad hoc”"]
[null,2,100,"Implemented but not standardized across the organisation"]
[null,3,150,"Implemented, well documented policies and procedures that are understood by relevant staff, and standardized across the entire organisation"]
[null,4,200,"In addition to Stage 3, processes are reviewed at least annually with the view to assessing effectiveness and introducing improvements"]
[null,null,null,null,{"$f":"IF(COUNTA(E15:E18)=0,Import!$I36668,IF(E15=\"X\", 50, IF(E16=\"X\", 100, IF(E17=\"X\", 150, IF(E18=\"X\", 200, 0)))))","v":0},{"$f":"IF(COUNTA(F15:F18)=0,Import!$I36669,IF(F15=\"X\", 50, IF(F16=\"X\", 100, IF(F17=\"X\", 150, IF(F18=\"X\", 200, 0)))))","v":0},{"$f":"IF(COUNTA(G15:G18)=0,Import!$I36670,IF(G15=\"X\", 50, IF(G16=\"X\", 100, IF(G17=\"X\", 150, IF(G18=\"X\", 200, 0)))))","v":0},{"$f":"IF(COUNTA(H15:H18)=0,Import!$I36671,IF(H15=\"X\", 50, IF(H16=\"X\", 100, IF(H17=\"X\", 150, IF(H18=\"X\", 200, 0)))))","v":0},{"$f":"IF(COUNTA(I15:I18)=0,Import!$I36672,IF(I15=\"X\", 50, IF(I16=\"X\", 100, IF(I17=\"X\", 150, IF(I18=\"X\", 200, 0)))))","v":0},{"$f":"IF(COUNTA(J15:J18)=0,Import!$I36673,IF(J15=\"X\", 50, IF(J16=\"X\", 100, IF(J17=\"X\", 150, IF(J18=\"X\", 200, 0)))))","v":0},{"$f":"IF(COUNTA(K15:K18)=0,Import!$I36674,IF(K15=\"X\", 50, IF(K16=\"X\", 100, IF(K17=\"X\", 150, IF(K18=\"X\", 200, 0)))))","v":0},{"$f":"IF(COUNTA(L15:L18)=0,Import!$I36675,IF(L15=\"X\", 50, IF(L16=\"X\", 100, IF(L17=\"X\", 150, IF(L18=\"X\", 200, 0)))))","v":0},{"$f":"SUM(E19:L19)","v":0},{"$f":"IF(M19>1600, \"ERR\", \"OK\")","v":"OK"}]
[]
[null,"Comments (optionally, the insurer may provide comments in the box below to support its responses above):"]

{"sheet":"Op Risk","index":88,"n_rows":45,"n_cols":8,"rows_kept":45,"cut":false,"hidden":false,"merged":[[1,1,1,7],[44,3,44,7],[31,3,31,7],[26,3,26,7],[28,3,28,7],[33,3,33,7],[35,3,35,7],[38,3,38,7]]}
[null,"OPERATIONAL RISK: OPERATIONAL RISK CHARGE CALCULATION",null,null,null,null,null,{"$f":"HYPERLINK(\"#'Index'!A1\",\"Return to Index\")","v":"Return to Index"}]
[null,"Subject to the Authority applying a re-assessment upon onsite inspection, the “Total Operational Risk Capital Charge” below will be applied to the insurer’s BSCR (After Covariance Adjustment) sub-total in the BSCR model for purposes of arriving at its Enhanced Capital Requirement for the year-end filing."]
[]
[null,null,"Overall CIRA Score",{"$f":"'Corp Gov'!D17+'Risk Man'!D18+Identification!M19+Measurement!M19+'Monitoring & Reporting'!M19+Response!M19","v":0}]
[]
[null,null,"CIRA Scoring Grid"]
[]
[null,null,"OVERALL SCORE","APPLICABLE OPERATIONAL RISK CHARGE % OF \"BSCR AFTER COVARIANCE ADJUSTMENT\""]
[]
[null,null,{"$f":"IF('Insurer Information'!F9=\"Class E\",\"<= 5,200\",IF('Insurer Information'!F9=\"Class D\",\"<= 5,200\",\"<=800\"))","v":"<=800"},0.1]
[null,null,{"$f":"IF('Insurer Information'!F9=\"Class E\",\"> 5,200 <= 6,000\",IF('Insurer Information'!F9=\"Class D\",\"> 5,200 <= 6,000\",\"> 800 <= 1,200\"))","v":"> 800 <= 1,200"},0.09]
[null,null,{"$f":"IF('Insurer Information'!F9=\"Class E\",\"> 6,000 <= 6,650\",IF('Insurer Information'!F9=\"Class D\",\"> 6,000 <= 6,650\",\"> 1,200 <= 1,400\"))","v":"> 1,200 <= 1,400"},0.08]
[null,null,{"$f":"IF('Insurer Information'!F9=\"Class E\",\"> 6,650 <= 7,250\",IF('Insurer Information'!F9=\"Class D\",\"> 6,650 <= 7,250\",\"> 1,400 <= 1,600\"))","v":"> 1,400 <= 1,600"},7.0000000000000007E-2]
[null,null,{"$f":"IF('Insurer Information'!F9=\"Class E\",\"> 7,250 <= 7,650\",IF('Insurer Information'!F9=\"Class D\",\"> 7,250 <= 7,650\",\"> 1,600 <= 1,800\"))","v":"> 1,600 <= 1,800"},0.06]
[null,null,{"$f":"IF('Insurer Information'!F9=\"Class E\",\"> 7,650 <= 7,850\",IF('Insurer Information'!F9=\"Class D\",\"> 7,650 <= 7,850\",\"> 1,800 <= 2,000\"))","v":"> 1,800 <= 2,000"},0.05]
[null,null,{"$f":"IF('Insurer Information'!F9=\"Class E\",\"> 7,850 <= 8,050\",IF('Insurer Information'!F9=\"Class D\",\"> 7,850 <= 8,050\",\"> 2,000 <= 2,200\"))","v":"> 2,000 <= 2,200"},0.04]
[null,null,{"$f":"IF('Insurer Information'!F9=\"Class E\",\"> 8,050 <= 8,250\",IF('Insurer Information'!F9=\"Class D\",\"> 8,050 <= 8,250\",\"> 2,200 <= 2,400\"))","v":"> 2,200 <= 2,400"},0.03]
[null,null,{"$f":"IF('Insurer Information'!F9=\"Class E\",\"> 8,250 <= 8,450\",IF('Insurer Information'!F9=\"Class D\",\"> 8,250 <= 8,450\",\"> 2,400 <= 2,600\"))","v":"> 2,400 <= 2,600"},0.02]
[null,null,{"$f":"IF('Insurer Information'!F9=\"Class E\",\"> 8,450\",IF('Insurer Information'!F9=\"Class D\",\"> 8,450\",\"> 2,600\"))","v":"> 2,600"},0.01]
[]
[null,null,"BSCR After Covariance Adjustment:",{"$f":"Summary!G60","v":0}]
[]
[null,null,"Operational Risk Charge %:",{"$f":"IF('Insurer Information'!F9=\"Class C\",F23,F25)","v":0.1},null,{"$f":"IF(D4<=800,0.1, IF(D4<=1200, 0.09, IF(D4<=1400, 0.08, IF(D4<=1600, 0.07, IF(D4<=1800, 0.06, IF(D4<=2000, 0.05, IF(D4<=2200, 0.04, IF(D4<=2400, 0.03,IF(D4<=2400, 0.03,IF(D4<=2600,0.02,IF(D4>2600,0.01,\"N/A\")))))))))))","v":0.1}]
[]
[null,null,"Total Operational Risk Capital Charge:",{"$f":"D21*D23","v":0},null,{"$f":"IF(D4<=5200,0.1, IF(D4<=6000, 0.09, IF(D4<=6650, 0.08, IF(D4<=7250, 0.07, IF(D4<=7650, 0.06, IF(D4<=7850, 0.05, IF(D4<=8050, 0.04, IF(D4<=8250, 0.03, IF(D4<=8250, 0.03,IF(D4<=8450,0.02,IF(D4>8450,0.01,\"N/A\")))))))))))","v":0.1}]
[]
[null,null,"Signatory:"]
[]
[null,null,"Print Name:"]
[null,null,null,"Resident Director"]
[]
[null,null,"Date:"]
[]
[null,null,"Signatory:"]
[]
[null,null,"Print Name:"]
[null,null,null,"Director"]
[]
[null,null,"Date:"]
[]
[null,null,"Insurer Name:",{"$f":"'Insurer Information'!C7","v":"Enter Company Name"}]
[]
[null,null,"Year-end:",{"$f":"'Form 4EBS'!C3","v":"2023-12-31"}]
[]
[null,null,"Insurer Registration No.",{"$f":"CONFIGURATION!B1","v":0}]

{"sheet":"Op Risk (Revised)","index":89,"n_rows":45,"n_cols":8,"rows_kept":45,"cut":false,"hidden":false,"merged":[[38,3,38,7],[44,3,44,7],[1,1,1,7],[26,3,26,7],[28,3,28,7],[31,3,31,7],[33,3,33,7],[35,3,35,7]]}
[null,"OPERATIONAL RISK: OPERATIONAL RISK CHARGE CALCULATION",null,null,null,null,null,{"$f":"HYPERLINK(\"#'Index'!A1\",\"Return to Index\")","v":"Return to Index"}]
[null,"Subject to the Authority applying a re-assessment upon onsite inspection, the “Total Operational Risk Capital Charge” below will be applied to the insurer’s BSCR (After Covariance Adjustment) sub-total in the BSCR model for purposes of arriving at its Enhanced Capital Requirement for the year-end filing."]
[]
[null,null,"Overall CIRA Score",{"$f":"'Corp Gov'!D17+'Risk Man'!D18+Identification!M19+Measurement!M19+'Monitoring & Reporting'!M19+Response!M19","v":0}]
[]
[null,null,"CIRA Scoring Grid"]
[]
[null,null,"OVERALL SCORE","APPLICABLE OPERATIONAL RISK CHARGE % OF \"BSCR AFTER COVARIANCE ADJUSTMENT\""]
[]
[null,null,{"$f":"IF('Insurer Information'!F9=\"Class E\",\"<= 4,000\",IF('Insurer Information'!F9=\"Class D\",\"<= 4,000\",\"<=800\"))","v":"<=800"},0.2]
[null,null,{"$f":"IF('Insurer Information'!F9=\"Class E\",\"> 4,000 <= 5,200\",IF('Insurer Information'!F9=\"Class D\",\"> 4,000 <= 5,200\",\"> 800 <= 1,200\"))","v":"> 800 <= 1,200"},0.18]
[null,null,{"$f":"IF('Insurer Information'!F9=\"Class E\",\"> 5,200 <= 6,000\",IF('Insurer Information'!F9=\"Class D\",\"> 5,200 <= 6,000\",\"> 1,200 <= 1,400\"))","v":"> 1,200 <= 1,400"},0.15]
[null,null,{"$f":"IF('Insurer Information'!F9=\"Class E\",\"> 6,000 <= 6,650\",IF('Insurer Information'!F9=\"Class D\",\"> 6,000 <= 6,650\",\"> 1,400 <= 1,600\"))","v":"> 1,400 <= 1,600"},0.12]
[null,null,{"$f":"IF('Insurer Information'!F9=\"Class E\",\"> 6,650 <= 7,250\",IF('Insurer Information'!F9=\"Class D\",\"> 6,650 <= 7,250\",\"> 1,600 <= 1,800\"))","v":"> 1,600 <= 1,800"},0.09]
[null,null,{"$f":"IF('Insurer Information'!F9=\"Class E\",\"> 7,250 <= 7,650\",IF('Insurer Information'!F9=\"Class D\",\"> 7,250 <= 7,650\",\"> 1,800 <= 2,000\"))","v":"> 1,800 <= 2,000"},7.0000000000000007E-2]
[null,null,{"$f":"IF('Insurer Information'!F9=\"Class E\",\"> 7,650 <= 7,850\",IF('Insurer Information'!F9=\"Class D\",\"> 7,650 <= 7,850\",\"> 2,000 <= 2,200\"))","v":"> 2,000 <= 2,200"},0.05]
[null,null,{"$f":"IF('Insurer Information'!F9=\"Class E\",\"> 7,850 <= 8,050\",IF('Insurer Information'!F9=\"Class D\",\"> 7,850 <= 8,050\",\"> 2,200 <= 2,400\"))","v":"> 2,200 <= 2,400"},0.03]
[null,null,{"$f":"IF('Insurer Information'!F9=\"Class E\",\"> 8,050 <= 8,250\",IF('Insurer Information'!F9=\"Class D\",\"> 8,050 <= 8,250\",\"> 2,400 <= 2,600\"))","v":"> 2,400 <= 2,600"},0.02]
[null,null,{"$f":"IF('Insurer Information'!F9=\"Class E\",\"> 8,250\",IF('Insurer Information'!F9=\"Class D\",\"> 8,250\",\"> 2,600\"))","v":"> 2,600"},0.01]
[]
[null,null,"BSCR After Covariance Adjustment:",{"$f":"Summary!N60","v":0}]
[]
[null,null,"Operational Risk Charge %:",{"$f":"IF('Insurer Information'!F9=\"Class C\",F23,F24)","v":0.2},null,{"$f":"IF(D4<=800,0.2, IF(D4<=1200, 0.18, IF(D4<=1400, 0.15, IF(D4<=1600, 0.12, IF(D4<=1800, 0.09, IF(D4<=2000, 0.07, IF(D4<=2200, 0.05, IF(D4<=2400, 0.03, IF(D4<=2600,0.02,IF(D4>2600,0.01,\"N/A\"))))))))))","v":0.2}]
[null,null,null,null,null,{"$f":"IF(D4<=4000,0.2,IF(D4<=5200,0.18,IF(D4<=6000,0.15,IF(D4<=6650,0.12,IF(D4<=7250,0.09,IF(D4<=7650,0.07,IF(D4<=7850,0.05,IF(D4<=8050,0.03,IF(D4<=8250,0.02,IF(D4>8250,0.01,\"N/A\"))))))))))","v":0.2}]
[null,null,"Total Operational Risk Capital Charge:",{"$f":"D21*D23","v":0}]
[]
[null,null,"Signatory:"]
[]
[null,null,"Print Name:"]
[null,null,null,"Resident Director"]
[]
[null,null,"Date:"]
[]
[null,null,"Signatory:"]
[]
[null,null,"Print Name:"]
[null,null,null,"Director"]
[]
[null,null,"Date:"]
[]
[null,null,"Insurer Name:",{"$f":"'Insurer Information'!C7","v":"Enter Company Name"}]
[]
[null,null,"Year-end:",{"$f":"'Form 4EBS'!C3","v":"2023-12-31"}]
[]
[null,null,"Insurer Registration No.",{"$f":"CONFIGURATION!B1","v":0}]

{"sheet":"Summary","index":90,"n_rows":168,"n_cols":33,"rows_kept":168,"cut":false,"hidden":false,"merged":[[149,10,149,13],[156,7,156,8],[57,40,59,41],[65,2,65,3],[57,34,57,35],[57,36,57,37],[57,38,57,39],[142,7,142,8],[93,10,93,13],[103,10,103,13],[128,10,128,13],[135,10,135,13],[6,1,6,17],[35,10,35,13],[33,1,33,18],[77,10,77,13],[87,10,87,13],[37,10,37,11],[37,12,37,13],[35,5,35,6]]}
["SUMMARY",null,null,null,null,null,null,null,null,null,null,null,null,null,null,null,null,{"$f":"HYPERLINK(\"#'Index'!A1\",\"Return to Index\")","v":"Return to Index"}]
[{"$f":"'Insurer Information'!C7","v":"Enter Company Name"}]
[{"$f":"IF('Insurer Information'!F9=\"Class C\",\"Bermuda Solvency Capital Requirement - Class C Insurers (BSCR-LT)\",\"Bermuda Solvency Capital Requirement - Class D and Class E Insurers (BSCR-LT)\")","v":"Bermuda Solvency Capital Requirement - Class C Insurers (BSCR-LT)"}]
[{"$f":"\"For the Year Ending \"","v":"For the Year Ending "},null,null,{"$f":" TEXT('Insurer Information'!C3,\"D MMMM YYYY\")","v":"31 December 2023"}]
[{"$f":"\"Expressed in \" & IF(CONFIGURATION!$B$12>1,\" ['\"&MID(CONFIGURATION!$B$12,2,LEN(CONFIGURATION!$B$12))&\"s]\",\"\")","v":"Expressed in  ['000s]"},null,null,{"$f":"'Form 4EBS'!C4","v":"United States Dollars"}]
[]
[null,"UNCONSOLIDATED BASIS"]
[]
[null,"Long-Term Business Minimum Solvency Margin",null,null,null,null,null,null,null,null,"Statutory Capital & Surplus Reduction"]
[]
[null,"Unconsolidated Capital & Surplus (Form 8SFS, Line 4)",null,null,null,null,{"$f":"IF('Insurer Information'!$C$2=\"IFRS\",IF('Insurer Information'!$F$2=\"Unconsolidated BSCR Model\",'Form 1ASFS'!M142,'Form 1ASFS'!I142),\nIF('Insurer Information'!$F$2=\"Unconsolidated BSCR Model\",'Form 1SFS'!$K$198,'Form 1SFS'!$H$198))","v":0},null,null,null,"31B Statutory Capital & Surplus Reduction (Dividend Payment Maximum 25%)"]
[]
[null,"Long-Term Assets for Minimum Margin of Solvency Calculation",null,null,null,null,null,null,null,null,{"$f":"\"Unconsolidated Statutory Capital & Surplus for \"&YEAR('Form 1SFS'!$G$9)","v":"Unconsolidated Statutory Capital & Surplus for 2022"},null,null,null,{"$f":"IF('Insurer Information'!$C$2=\"IFRS\",IF('Insurer Information'!$F$2=\"Unconsolidated BSCR Model\",'Form 8ASFS'!Q58,'Form 8ASFS'!M58+'Form 8ASFS'!I58),\nIF('Insurer Information'!$F$2=\"Unconsolidated BSCR Model\",'Form 8SFS'!$Q$58,'Form 8SFS'!M58+'Form 8SFS'!I58))","v":0}]
[null,"Total Unconsolidated Assets (Form 1SFS/1ASFS, Line 15)",null,null,null,{"$f":"IF('Insurer Information'!$C$2=\"IFRS\",IF('Insurer Information'!$F$2=\"Unconsolidated BSCR Model\",'Form 1ASFS'!M88,'Form 1ASFS'!I88),\nIF('Insurer Information'!$F$2=\"Unconsolidated BSCR Model\",'Form 1SFS'!$K$100,'Form 1SFS'!$H$100))","v":0}]
[null,"less: [Form 1SFS/1ASFS]",null,null,null,null,null,null,null,null,"Maximum Dividend",null,null,{"$f":"25%*O13","v":0}]
[null,"a)","Segregated - Annuities (Form 1SFS/1ASFS, Line 13(b))",null,null,{"$f":"IF('Insurer Information'!$C$2=\"IFRS\",-IF('Insurer Information'!$F$2=\"Unconsolidated BSCR Model\",'Form 1ASFS'!M72,'Form 1ASFS'!I72),\n-IF('Insurer Information'!$F$2=\"Unconsolidated BSCR Model\",'Form 1SFS'!$K$83,'Form 1SFS'!$H$83))","v":0},null,null,null,null,{"$f":"\"Dividend Payment in \"&YEAR('Form 1SFS'!$F$9)","v":"Dividend Payment in 2023"},null,null,{"$f":"IF('Insurer Information'!$C$2=\"IFRS\",-IF('Insurer Information'!$F$2=\"Unconsolidated BSCR Model\",'Form 8ASFS'!O44,'Form 8ASFS'!G44+'Form 8ASFS'!K44),\n-IF('Insurer Information'!$F$2=\"Unconsolidated BSCR Model\",'Form 8SFS'!$O$44,'Form 8SFS'!G44+'Form 8SFS'!K44))","v":0}]
[null,"b)","Segregated - Other (Form 1SFS/1ASFS, Line 13(c))",null,null,{"$f":"IF('Insurer Information'!$C$2=\"IFRS\",-IF('Insurer Information'!$F$2=\"Unconsolidated BSCR Model\",'Form 1ASFS'!M73,'Form 1ASFS'!I73),\n-IF('Insurer Information'!$F$2=\"Unconsolidated BSCR Model\",'Form 1SFS'!$K$84,'Form 1SFS'!$H$84))","v":0}]
[]
[null,"Long-Term Assets for Minimum Margin of Solvency Calculation",null,null,null,null,{"$f":"SUM(F14:F17)","v":0},null,null,null,"Insurer met Dividend Payment Requirement",null,null,null,{"$f":"IF(N15>=N16,\"YES\",\"NO\")","v":"YES"}]
[null,null,null,null,{"$f":"'Information Sheet'!$H$16","v":"United States Dollars"},"USD/BDA",{"$f":"'Information Sheet'!$H$16","v":"United States Dollars"}]
[null,"Test A - Minimum Capital ",null,null,null,{"$f":"IF('Insurer Information'!$F$9=\"Class C\",500,IF('Insurer Information'!$F$9=\"Class D\",4000,IF('Insurer Information'!$F$9=\"Class E\",8000,\"Error\")))","v":500},{"$f":"F21*IFERROR((1/'Information Sheet'!$H$18),1)","v":500},null,null,null,"Statutory Capital Reduction"]
[]
[null,"Test B - Asset Test",null,{"$f":"IF('Insurer Information'!$F$9=\"Class C\",1.5%,IF('Insurer Information'!$F$9=\"Class D\",1.5%,IF('Insurer Information'!$F$9=\"Class E\",1.5%,\"Error\")))","v":1.4999999999999999E-2},{"$f":"G19","v":0},{"$f":"E23*(IFERROR(1*'Information Sheet'!$H$18,1))","v":0},null,null,null,null,"31C Statutory Capital Reduction (Maximum Reduction of 15%)"]
[null,null,null,null,null,{"$f":"IF('Insurer Information'!$F$9=\"Class C\",F23*D23,(IF('Insurer Information'!$F$9=\"Class D\",IF(F23>250000,5000+(F23-250000)*1.5%,F23*2%),(IF('Insurer Information'!$F$9=\"Class E\",IF(F23>500000,10000+(F23-500000)*1.5%,F23*2%),\"Error\")))))","v":0},{"$f":"F24*IFERROR((1/'Information Sheet'!$H$18),1)","v":0}]
[null,"Test C - 25% of ECR",null,null,{"$f":"N74","v":0},null,{"$f":"E25*25%","v":0},null,null,null,{"$f":"\"Unconsolidated Statutory Capital for \"&YEAR('Form 1SFS'!$F9)","v":"Unconsolidated Statutory Capital for 2023"},null,null,null,{"$f":"IF('Insurer Information'!$C$2=\"IFRS\",IF('Insurer Information'!$F$2=\"Unconsolidated BSCR Model\",'Form 8ASFS'!O36,'Form 8ASFS'!G36+'Form 8ASFS'!K36),\nIF('Insurer Information'!$F$2=\"Unconsolidated BSCR Model\",'Form 8SFS'!$O$36,'Form 8SFS'!G36+'Form 8SFS'!K36))","v":0}]
[null,null,null,null,null,null,null,null,null,null,{"$f":"\"Unconsolidated Statutory Capital for \"&YEAR('Form 1SFS'!$G9)","v":"Unconsolidated Statutory Capital for 2022"},null,null,null,{"$f":"IF('Insurer Information'!$C$2=\"IFRS\",IF('Insurer Information'!$F$2=\"Unconsolidated BSCR Model\",'Form 8ASFS'!Q36,'Form 8ASFS'!I36+'Form 8ASFS'!M36),\nIF('Insurer Information'!$F$2=\"Unconsolidated BSCR Model\",'Form 8SFS'!$Q$36,'Form 8SFS'!I36+'Form 8SFS'!M36))","v":0}]
[null,"Modified MSM (if Applicable)"]
[null,null,null,null,null,null,null,null,null,null,{"$f":"\"Statutory Capital Change from \"&YEAR('Form 1SFS'!$G9)&\" to \"&YEAR('Form 1SFS'!$F9)","v":"Statutory Capital Change from 2022 to 2023"},null,null,{"$f":"O25-O26","v":0}]
[null,{"$f":"\"MSM for \"&YEAR('Form 1SFS'!$F$9)","v":"MSM for 2023"},null,null,null,null,{"$f":"IF(G27=\"\",MAX(G21,G24,G25),G27)","v":500},null,null,null,"Maximum Reduction",null,null,{"$f":"O26*-15%","v":0}]
[]
[null,"Minimum Margin of Solvency Met",null,null,null,null,{"$f":"IF(G11>=G29,\"YES\",\"NO\")","v":"NO"},null,null,null,"Insurer met Capital Reduction Requirement",null,null,null,{"$f":"IF(N29<N28,\"YES\",\"NO\")","v":"NO"}]
[]
[]
[null,"CONSOLIDATED ECONOMIC BALANCE SHEET BASIS"]
[]
[null,"REQUIRED CAPITAL AND SURPLUS",null,null,null,"2018 Year-End Methodology",null,null,null,null,"2019 Year-End Methodology",null,null,null,null,null,null,null,null,null,null,null,"Data for Pie Chart"]
[]
[null,null,null,null,null,null,null,null,null,null,"Net Capital Charge",null,"Gross Capital Charge"]
[null,"Market Risk",null,null,null,null,null,null,null,null,null,{"$f":"SQRT(MMULT(TRANSPOSE(K40:K44),MMULT('Correlation Matrix'!B7:F11,K40:K44)))","v":0},null,{"$f":"SQRT(MMULT(TRANSPOSE(M40:M44),MMULT('Correlation Matrix'!B7:F11,M40:M44)))","v":0}]
[null,"Cfi","Fixed Income Investment Risk",null,null,null,{"$f":"ROUND('Fixed Income Investments'!F99,$N$167)","v":0},null,null,null,{"$f":"ROUND('Fixed Income Investments (Rev.)'!I136,$N$167)","v":0},null,{"$f":"ROUND('Fixed Income Investments (Rev.)'!I136,$N$167)","v":0},null,null,null,null,null,null,"Fixed Income",{"$f":"G40","v":0},null,{"$f":"IF($G$60=0,1/13,U40/$U$54)","v":7.6923076923076927E-2},null,{"$f":"M40","v":0},{"$f":"IF($N$60=0,1/13,Y40/$Y$54)","v":7.6923076923076927E-2}]
[null,"Ceq","Equity Investment Risk",null,"Without Grandfathering",null,{"$f":"ROUND('Equity Investments'!F51,$N$167)","v":0},null,null,null,{"$f":"ROUND(IF(E41=\"With Grandfathering\",('Equity Investments (Grandf)'!F51+'Equity Investments (Non-Grandf)'!R58),'Equity Investments (Revised)'!R56),$N$167)","v":0},null,{"$f":"ROUND(IF(E41=\"With Grandfathering\",('Equity Investments (Grandf)'!F51+'Equity Investments (Non-Grandf)'!P58),'Equity Investments (Revised)'!P56),$N$167)","v":0},null,null,null,null,null,null,"Equity",{"$f":"G41","v":0},null,{"$f":"IF($G$60=0,1/13,U41/$U$54)","v":7.6923076923076927E-2},null,{"$f":"M41","v":0},{"$f":"IF($N$60=0,1/13,Y41/$Y$54)","v":7.6923076923076927E-2}]
[null,"CLTint","Long Term Interest and Liquidity Risk",null,"Duration-Based Approach",null,{"$f":"ROUND('Interest Rate-Liquidity Risk'!L14,$N$167)","v":0},null,null,null,{"$f":"ROUND(IF(E42=\"Duration-Based Approach\",'Interest Rate-Liquidity Risk'!L14,'Interest Rate-Liquidity (Rev.)'!$E$117),$N$167)","v":0},null,{"$f":"ROUND(IF(E42=\"Duration-Based Approach\",'Interest Rate-Liquidity Risk'!L15,'Interest Rate-Liquidity (Rev.)'!$D$117),$N$167)","v":0},null,null,null,null,null,null,"Interest and Liquidity Risk",{"$f":"G42","v":0},null,7.6923076923076927E-2,null,{"$f":"M42","v":0},7.6923076923076927E-2]
[null,"CCur","Currency Risk",null,null,null,{"$f":"ROUND('Currency Risk'!I28,$N$167)","v":0},null,null,null,{"$f":"ROUND('Currency Risk (Revised)'!Y39,$N$167)","v":0},null,{"$f":"ROUND('Currency Risk (Revised)'!X39,$N$167)","v":0},null,null,null,null,null,null,"Currency Risk",{"$f":"G43","v":0},null,7.6923076923076927E-2,null,{"$f":"M43","v":0},7.6923076923076927E-2]
[null,"CCon","Concentration Risk",null,null,null,{"$f":"+'Concentration Risk'!F111","v":0},null,null,null,{"$f":"'Concentration Risk (Revised)'!F123","v":0},null,{"$f":"'Concentration Risk (Revised)'!F123","v":0},null,null,null,null,null,null,"Concentration Risk",{"$f":"G44","v":0},null,7.6923076923076927E-2,null,{"$f":"M44","v":0},7.6923076923076927E-2]
[null,null,null,null,null,null,null,null,null,null,null,null,null,null,null,null,null,null,null,"Credit Risk",{"$f":"G47","v":0},null,7.6923076923076927E-2,null,{"$f":"M47","v":0},7.6923076923076927E-2]
[null,"Credit Risk",null,null,null,null,null,null,null,null,null,{"$f":"K47","v":0},null,{"$f":"M47","v":0},null,null,null,null,null,"Mortality",{"$f":"G50","v":0},null,7.6923076923076927E-2,null,{"$f":"M50","v":0},7.6923076923076927E-2]
[null,"Ccred","Credit Risk",null,null,null,{"$f":"ROUND('Credit Risk'!F42,$N$167)","v":0},null,null,null,{"$f":"ROUND('Credit Risk (Revised)'!H59,$N$167)","v":0},null,{"$f":"ROUND('Credit Risk (Revised)'!H59,$N$167)","v":0},null,null,null,null,null,null,"Stop-Loss",0,null,7.6923076923076927E-2,null,0,7.6923076923076927E-2]
[null,null,null,null,null,null,null,null,null,null,null,null,null,null,null,null,null,null,null,"Riders",0,null,7.6923076923076927E-2,null,0,7.6923076923076927E-2]
[null,"Long-term Insurance Risk",null,null,null,null,null,null,null,null,null,{"$f":"SQRT(MMULT(TRANSPOSE(K50:K56),MMULT('Correlation Matrix'!I7:O13,K50:K56)))","v":0},null,{"$f":"SQRT(MMULT(TRANSPOSE(M50:M56),MMULT('Correlation Matrix'!I7:O13,M50:M56)))","v":0},null,null,null,null,null,"Morbidity and Disability",0,null,7.6923076923076927E-2,null,0,7.6923076923076927E-2]
[null,"CLTmort","Long-Term Insurance Risk - Mortality",null,null,null,{"$f":"ROUND('LT Insurance Risk'!O60,$N$167)","v":0},null,null,null,{"$f":"ROUND('LT Insurance Risk'!O60,$N$167)","v":0},null,{"$f":"ROUND('LT Insurance Risk'!O60,$N$167)","v":0},null,null,null,null,null,null,"Longevity",0,null,7.6923076923076927E-2,null,0,7.6923076923076927E-2]
[null,"CLTsl","Long-Term Insurance Risk - Stop-Loss",null,null,null,{"$f":"ROUND('LT Insurance Risk'!O61,$N$167)","v":0},null,null,null,{"$f":"ROUND('LT Insurance Risk'!O61,$N$167)","v":0},null,{"$f":"ROUND('LT Insurance Risk'!O61,$N$167)","v":0},null,null,null,null,null,null,"Variable Annuity",0,null,7.6923076923076927E-2,null,0,7.6923076923076927E-2]
[null,"CLTr","Long-Term Insurance Risk - Riders",null,null,null,{"$f":"ROUND('LT Insurance Risk'!O62,$N$167)","v":0},null,null,null,{"$f":"ROUND('LT Insurance Risk'!O62,$N$167)","v":0},null,{"$f":"ROUND('LT Insurance Risk'!O62,$N$167)","v":0},null,null,null,null,null,null,"Other Ins.",0,null,7.6923076923076927E-2,null,0,7.6923076923076927E-2]
[null,"CLTmorb","Long-Term Insurance Risk - Morbidity and Disability",null,null,null,{"$f":"ROUND('LT Insurance Risk'!O63,$N$167)","v":0},null,null,null,{"$f":"ROUND('LT Insurance Risk'!O63,$N$167)","v":0},null,{"$f":"ROUND('LT Insurance Risk'!O63,$N$167)","v":0}]
[null,"CLTlong","Long-Term Insurance Risk - Longevity",null,null,null,{"$f":"ROUND('LT Insurance Risk'!O64,$N$167)","v":0},null,null,null,{"$f":"ROUND('LT Insurance Risk'!O64,$N$167)","v":0},null,{"$f":"ROUND('LT Insurance Risk'!O64,$N$167)","v":0},null,null,null,null,null,null,null,{"$f":"SUM(U40:U53)","v":0},null,{"$f":"SUM(X40:X56)","v":0},null,{"$f":"SUM(Y40:Y53)","v":0},{"$f":"SUM(AA40:AA56)","v":0}]
[null,"CLTVA","Long-Term Variable Annuity Guarantee Risk",null,null,null,{"$f":"ROUND(IF('Schedule VIIIA (EBS)'!S12=0,'LT Variable Annuity Gte Risk'!W60,'Schedule VIIIA (EBS)'!S12),N$167)","v":0},null,null,null,{"$f":"ROUND(IF('Schedule VIIIA (EBS)'!S12=0,'LT Variable Annuity Gte Risk'!W60,'Schedule VIIIA (EBS)'!S12),N$167)","v":0},null,{"$f":"ROUND(IF('Schedule VIIIA (EBS)'!S12=0,'LT Variable Annuity Gte Risk'!W60,'Schedule VIIIA (EBS)'!S12),N$167)","v":0}]
[null,"CLToth","Long-Term Other Insurance Risk",null,null,null,{"$f":"ROUND('LT Other Insurance Risk'!I27,$N$167)","v":0},null,null,null,{"$f":"ROUND('LT Other Insurance Risk'!I27,$N$167)","v":0},null,{"$f":"ROUND('LT Other Insurance Risk'!I27,$N$167)","v":0}]
[]
[null,"BSCRLT (Prior to Covariance Adjustment and prior to Cop)",null,null,null,null,{"$f":"SUM(G40:G56)","v":0},null,null,null,null,{"$f":"SUM(K40:K56)","v":0},null,{"$f":"SUM(M40:M56)","v":0}]
[]
[null,"BSCRLT (After Covariance Adjustment and prior to Cop)",null,null,null,null,{"$f":"(G40^2+G41^2+G47^2+G42^2+G43^2+G44^2+((G50+G51+G52))^2+G53^2+G54^2+-0.5*((G50+G51+G52)*G54)+G55^2+G56^2)^0.5","v":0},null,null,null,null,{"$f":"SQRT(MMULT(TRANSPOSE('Correlation Matrix'!W12:W14),MMULT('Correlation Matrix'!R7:T9,'Correlation Matrix'!W12:W14)))","v":0},null,{"$f":"SQRT(MMULT(TRANSPOSE('Correlation Matrix'!W6:W8),MMULT('Correlation Matrix'!R7:T9,'Correlation Matrix'!W6:W8)))","v":0},null,null,null,null,null,null,null,null,null,"Minimum Solvency Margin"]
[]
[null,"Operational risk charge (%)",null,null,null,null,{"$f":"'Op Risk'!D23","v":0.1},null,null,null,null,null,null,{"$f":"'Op Risk (Revised)'!D23","v":0.2},null,null,null,null,null,null,null,null,null,"Asset Base",null,{"$f":"F23","v":0},"First Cap Factor",null,"Second Cap Factor","Fixed Limit","Minimum Amount"]
[null,null,null,null,null,null,null,null,null,null,null,null,null,null,null,null,null,null,null,null,null,null,null,"Class A",null,null,0,null,5.0000000000000001E-3,0,120,null,{"$f":"MAX(AE63,AA63*MIN(Z$62,AD63)+AC63*MAX((Z$62-AD63),0))*IFERROR((1/'Information Sheet'!$H$18),1)","v":120}]
[null,"Cop","Operational risk capital charge ($)",null,null,null,{"$f":"$G$60*$G$62","v":0},null,null,null,null,null,null,{"$f":"($N$60+N133)*$N$62","v":0},null,null,null,null,null,null,null,null,null,"Class B",null,null,0,null,0.01,0,250,null,{"$f":"MAX(AE64,AA64*MIN(Z$62,AD64)+AC64*MAX((Z$62-AD64),0))*IFERROR((1/'Information Sheet'!$H$18),1)","v":250}]
[null,null,null,null,null,null,null,null,null,null,null,null,null,null,null,null,null,null,null,null,null,null,null,"Class C",null,null,0,null,1.4999999999999999E-2,0,500,null,{"$f":"MAX(AE65,AA65*MIN(Z$62,AD65)+AC65*MAX((Z$62-AD65),0))*IFERROR((1/'Information Sheet'!$H$18),1)","v":500}]
[null,"Cadj","Capital Adjustment for (Regulatory) Capital Requirement for Regulated Non-Insurance Financial Operating Entities:",null,null,null,{"$f":"+'Schedule XVI'!M211","v":0},null,null,null,null,null,null,{"$f":"+'Schedule XVI'!M211","v":0}]
[]
[null,"Capital add-on / reduction (BMA assessment)",null,null,null,null,{"$f":"'Company Specific Parameters'!I553-'Company Specific Parameters'!F553","v":0},null,null,null,null,null,null,{"$f":"'CSP (Revised)'!L747-'CSP (Revised)'!I747","v":0},null,null,null,null,null,null,null,null,null,"Class D",null,null,0.02,null,1.4999999999999999E-2,250000,4000,null,{"$f":"MAX(AE68,AA68*MIN(Z$62,AD68)+AC68*MAX((Z$62-AD68),0))*IFERROR((1/'Information Sheet'!$H$18),1)","v":4000}]
[null,null,null,null,null,null,null,null,null,null,null,null,null,null,null,null,null,null,null,null,null,null,null,"Class E",null,null,0.02,null,1.4999999999999999E-2,500000,8000,null,{"$f":"MAX(AE69,AA69*MIN(Z$62,AD69)+AC69*MAX((Z$62-AD69),0))*IFERROR((1/'Information Sheet'!$H$18),1)","v":8000}]
[null,"CMgmtAction",null,null,null,null,null,null,null,null,null,null,null,{"$f":"N133","v":0}]
[]
[null,"Other Capital Adjustment",null,null,null,null,{"$f":"N152","v":0},null,null,null,null,null,null,{"$f":"N138","v":0}]
[]
[null,"Transition BSCR ",null,null,null,null,null,null,null,null,"Rate",{"$f":"IF('Information Sheet'!$H$13>='Correlation Matrix'!$A$25,'Correlation Matrix'!$B$25,IF('Information Sheet'!$H$13>='Correlation Matrix'!$A$24,'Correlation Matrix'!$B$24,IF('Information Sheet'!$H$13>='Correlation Matrix'!$A$23,'Correlation Matrix'!$B$23,IF('Information Sheet'!$H$13>='Correlation Matrix'!$A$22,'Correlation Matrix'!$B$22,IF('Information Sheet'!$H$13>='Correlation Matrix'!$A$21,'Correlation Matrix'!$B$21,IF('Information Sheet'!$H$13>='Correlation Matrix'!$A$20,'Correlation Matrix'!$B$20,IF('Information Sheet'!$H$13>='Correlation Matrix'!$A$19,'Correlation Matrix'!$B$19,IF('Information Sheet'!$H$13>='Correlation Matrix'!$A$18,'Correlation Matrix'!$B$18,IF('Information Sheet'!$H$13>='Correlation Matrix'!$A$17,'Correlation Matrix'!$B$17,'Correlation Matrix'!$B$16)))))))))","v":0.1},null,{"$f":"G76+((N76-G76)*L74)","v":0}]
[]
[null,"Final BSCRLT",null,null,null,null,{"$f":"G64+G68+G60+G66+G72","v":0},null,null,null,null,null,null,{"$f":"N64+N68+N60+N66+N72+N70","v":0}]
[]
[null,"AVAILABLE STATUTORY CAPITAL AND SURPLUS",null,null,null,null,null,null,null,null,"2019 Year-End Methodology"]
[null,null,null,null,null,null,null,null,null,null,null,null,null,null,null,null,null,null,null,null,null,null,null,null,null,{"$f":"N90","v":500}]
[null,"Total statutory economic capital and surplus",null,null,"Form 4EBS, line (40)",null,null,null,null,null,null,null,null,{"$f":"'Form 4EBS'!F184","v":0},null,null,null,null,null,null,null,null,"Data for Column Chart"]
[null,"Capital contribution"]
[null,"Pre-adjustment available statutory economic capital and surplus",null,null,null,null,null,null,null,null,null,null,null,{"$f":"N80+N81","v":0}]
[]
[null,null,"Capital add-on / reduction (BMA Assessment)",null,null,null,null,null,null,null,null,null,null,0]
[]
[null,"Available Statutory Economic Capital and Surplus",null,null,null,null,null,null,null,null,null,null,null,{"$f":"N82+N84","v":0},null,null,null,null,null,null,null,null,"Data for Column Chart"]
[]
[null,"MINIMUM MARGIN OF SOLVENCY",null,null,null,null,null,null,null,null,"2019 Year-End Methodology"]
[]
[null,"Minimum Margin of Solvency (Calculation)",null,null,null,null,null,null,null,null,null,null,null,{"$f":"MAX((N74*25%),(IF('Insurer Information'!F9=\"Class E\",AG69,IF('Insurer Information'!F9=\"Class D\",AG68,IF('Insurer Information'!F9=\"Class C\",AG65,IF('Insurer Information'!F9=\"Class B\",AG64,IF('Insurer Information'!F9=\"Class A\",AG63,0)))))))","v":500},null,null,null,null,null,null,null,null,"2020-12-31",null,null,null,"Bottom",null,"Top","Level"]
[null,"Approved Minimum Margin of Solvency (if applicable)",null,null,null,null,null,null,null,null,null,null,null,null,null,null,null,null,null,null,null,null,"2021-12-31"]
[null,"Minimum Margin of Solvency",null,null,null,null,null,null,null,null,null,null,null,{"$f":"SUM(N90:N91)","v":500},null,null,null,null,null,null,null,null,"2022-12-31"]
[null,null,null,null,null,null,null,null,null,null,null,null,null,null,null,null,null,null,null,null,null,null,"2023-12-31"]
[null,"ENHANCED CAPITAL REQUIREMENT & TARGET CAPITAL LEVEL",null,null,null,null,null,null,null,null,"2019 Year-End Methodology",null,null,null,null,null,null,null,null,null,null,null,"2024-12-31","Adjusted Surplus","Available Statutory Capital and Surplus",null,{"$f":"G86","v":0},null,{"$f":"AC$102-AA94","v":25000000},{"$f":"IF($N$86=0,25000000,1000*$N$86)","v":25000000}]
[null,null,null,null,null,null,null,null,null,null,null,null,null,null,null,null,null,null,null,null,null,null,"2025-12-31"]
[null,"Transition Enhanced Capital Requirement",null,null,null,null,null,null,null,null,null,null,null,{"$f":"MAX(N74,N92)","v":500},null,null,null,null,null,null,null,null,"2026-12-31"]
[null,null,null,null,null,null,null,null,null,null,null,null,null,null,null,null,null,null,null,null,null,null,"2027-12-31"]
[null,"Enhanced Capital Requirement",null,null,null,null,null,null,null,null,null,null,null,{"$f":"MAX(N76,N92)","v":500},null,null,null,null,null,null,null,null,"2028-12-31","Mandatory Control Level (100% of ACL)","Regulatory Action Level 1",null,null,null,{"$f":"AC$102-AA98","v":25000000},{"$f":"IF(N98=0,15000000,1000*N98)","v":500000}]
[]
[null,"Transition Target Capital Level",null,null,null,null,null,null,null,null,null,null,null,{"$f":"N96*1.2","v":600},null,null,null,null,null,null,null,null,null,"Authorized Control Level (120% of ACL)","Regulatory Action Level 2",null,null,null,{"$f":"AC$102-AA100","v":25000000},{"$f":"IF($N$102=0,18000000,1000*$N$102)","v":600000}]
[]
[null,"Target Capital Level",null,null,null,null,null,null,null,null,null,null,null,{"$f":"$N$98*1.2","v":600},null,null,null,null,null,null,null,null,null,null,null,null,"Max Column",null,{"$f":"MAX(AD94:AD103)","v":25000000}]
[]
[null,"RATIOS",null,null,null,null,null,null,null,null,"2019 Year-End Methodology"]
[]
[null,"Transition Bermuda Solvency Capital Requirement Ratio",null,null,null,null,null,null,null,null,null,null,null,{"$f":"IF(N74=0,\"n/a\",N86/N74)","v":"n/a"}]
[]
[null,"Bermuda Solvency Capital Requirement Ratio",null,null,null,null,null,null,null,null,null,null,null,{"$f":"IF($N$76=0,\"n/a\",$N$86/$N$76)","v":"n/a"}]
[]
[null,"Transition Enhanced Capital Requirement Ratio",null,null,null,null,null,null,null,null,null,null,null,{"$f":"IF(N96=0,\"n/a\",N86/N96)","v":0}]
[]
[null,"Enhanced Capital Requirement Ratio",null,null,null,null,null,null,null,null,null,null,null,{"$f":"IF(N98=0,\"n/a\",$N$86/N98)","v":0}]
[]
[null,"Enhancement Capital Requirement Met",null,null,null,null,null,null,null,null,null,null,null,{"$f":"IF(AND(N110>100%,E126=\"Yes\",G126=\"Yes\"),\"YES\",\"NO\")","v":"NO"}]
[]
[]
[null,"Eligible Capital",null,null,null,null,{"$f":"'Form 4EBS'!$F$6","v":"2023-12-31"}]
[]
[null,null,null,null,"Applied to MSM",null,"Applied to ECR"]
[]
[null,"Tier 1 Capital ",null,null,{"$f":"'Schedule XII(a)'!G93","v":0},null,{"$f":"'Schedule XII(a)'!I93","v":0}]
[null,"Tier 2 Capital ",null,null,{"$f":"'Schedule XII(a)'!G94","v":0},null,{"$f":"'Schedule XII(a)'!I94","v":0}]
[null,"Tier 3 Capital ",null,null,null,null,{"$f":"'Schedule XII(a)'!I95","v":0}]
[null,"Total Capital",null,null,{"$f":"+'Schedule XII(a)'!G96","v":0},null,{"$f":"+'Schedule XII(a)'!I96","v":0}]
[]
[null,"Insurer met Eligible Capital Requirement",null,null,{"$f":"IF(E124>=N92,\"YES\",\"NO\")","v":"NO"},null,{"$f":"IF(G124>=N96,\"YES\",\"NO\")","v":"NO"}]
[]
[]
[null,"Capital Adjustment - Management Action ",null,null,null,null,null,null,null,null,"2019 Year-End Methodology"]
[]
[null,"Implied Loss-absorbing capacity of Technical Provisions without cap",null,null,null,null,null,null,null,null,null,null,null,{"$f":"N60-L60","v":0}]
[null,"Initial FDB / Bonus reserve on EBS basis",null,null,null,null,null,null,null,null,null,null,null,{"$f":"Import!M36681","v":0}]
[null,"Adj. for the Loss-absorbing capacity of Tech. Provisions",null,null,null,null,null,null,null,null,null,null,null,{"$f":"-MAX(MIN(N131,N132),0)","v":0}]
[]
[]
[null,"Other Capital Adjustment",null,null,null,null,null,null,null,null,"2019 Year-End Methodology"]
[]
[null,"Adjustment = min (BSCR x t, Limit, 20% x BSCR)",null,null,null,null,null,null,null,null,null,null,null,{"$f":"-MIN(D144,G147,N143)","v":0}]
[]
[null,"Test 1",null,null,"Test 2",null,null,"Test 3"]
[]
[null,"BSCR",null,{"$f":"N60+N64+N66+N68+N70","v":0},"Limit = Past LAC + Current LAC + Future LAC",null,null,"BSCR",null,null,null,null,null,{"$f":"N60+N64+N66+N68+N70","v":0}]
[null,"T",null,{"$f":"Import!M36679","v":0},"Loss Carryback",null,{"$f":"MAX(0,Import!M36680)","v":0},0.2,null,null,null,null,null,{"$f":"N142*H143","v":0}]
[null,"Test Result",null,{"$f":"MAX(0,D142*D143)","v":0},"PAST LAC",null,{"$f":"G143*D143","v":0}]
[null,null,null,null,"Current LAC",null,{"$f":"'Form 4EBS'!F148-'Form 4EBS'!F82","v":0}]
[null,null,null,null,"Future LAC",null,{"$f":"'Form 4EBS'!F124*D143","v":0}]
[null,null,null,null,"Total Limit",null,{"$f":"MAX(0,SUM(G144:G146))","v":0}]
[]
[]
[null,"Other Capital Adjustment",null,null,null,null,null,null,null,null,"2018 Year-End Methodology"]
[]
[null,"Adjustment = min (BSCR x t, Limit, 20% x BSCR)",null,null,null,null,null,null,null,null,null,null,null,{"$f":"-MIN(D158,G161,N157)","v":0}]
[]
[null,"Test 1",null,null,"Test 2",null,null,"Test 3"]
[]
[null,"BSCR",null,{"$f":"G60+G64+G66+G68+G70","v":0},"Limit = Past LAC + Current LAC + Future LAC",null,null,"BSCR",null,null,null,null,null,{"$f":"G60+G64+G66+G68+G70","v":0}]
[null,"T",null,{"$f":"Import!M36679","v":0},"Loss Carryback",null,{"$f":"MAX(0,Import!M36680)","v":0},0.2,null,null,null,null,null,{"$f":"N156*H157","v":0}]
[null,"Test Result",null,{"$f":"MAX(0,D156*D157)","v":0},"PAST LAC",null,{"$f":"G157*D157","v":0}]
[null,null,null,null,"Current LAC",null,{"$f":"'Form 4EBS'!F148-'Form 4EBS'!F82","v":0}]
[null,null,null,null,"Future LAC",null,{"$f":"'Form 4EBS'!F124*D157","v":0}]
[null,null,null,null,"Total Limit",null,{"$f":"MAX(0,SUM(G158:G160))","v":0}]
[]
[]
[]
[]
[]
[null,"Rounding (decimal places)",null,{"$f":"IF($D$4=\"\",\"\",TEXT(DATE(YEAR($D$4+1)-1,MONTH($D$4+1),DAY($D$4+1)),\"mm/dd/yyyy\"))","v":"01/01/2023"},null,null,null,null,null,null,null,null,null,10]
[null,null,null,{"$f":"IF($D$4=\"\",\"\",TEXT($D$4,\"mm/dd/yyyy\"))","v":"12/31/2023"}]

{"sheet":"Fixed Income Investments","index":91,"n_rows":99,"n_cols":6,"rows_kept":99,"cut":false,"hidden":false,"merged":[[103,0,103,1],[0,5,0,6],[49,1,50,2]]}
["FIXED INCOME INVESTMENTS",null,null,null,null,{"$f":"HYPERLINK(\"#'Index'!A1\",\"Return to Index\")","v":"Return to Index"}]
[{"$f":"'Insurer Information'!C7","v":"Enter Company Name"}]
["Fixed Income Investment Risk",null,{"$f":" TEXT('Insurer Information'!C3,\"D MMMM YYYY\")","v":"31 December 2023"},"(1)","(2)","(3)"]
[]
[]
[null,"TYPE OF ",null,"ASSET","CAPITAL","REQUIRED"]
[null,"FIXED INCOME INVESTMENTS","STATEMENT SOURCE","VALUE","FACTOR","CAPITAL"]
[]
[null,"(a)  Corporate & Sovereign Bonds",null,null,null,"(1) x (2)"]
[]
[null,"BSCR Rating"]
[null,0,"Sch II EBS, Line (1), Column 1 & Sch IIA EBS, Line (1), Column 1",{"$f":"+'Schedule II (EBS)'!D12+'Schedule IIA (EBS)'!D12","v":0},0,{"$f":"IF(D12<0,0,D12*E12)","v":0}]
[null,1,"Sch II EBS, Line (2), Column 1 & Sch IIA EBS, Line (2), Column 1",{"$f":"+'Schedule II (EBS)'!D13+'Schedule IIA (EBS)'!D13","v":0},4.0000000000000001E-3,{"$f":"IF(D13<0,0,D13*E13)","v":0}]
[null,2,"Sch II EBS, Line (3), Column 1 & Sch IIA EBS, Line (3), Column 1",{"$f":"+'Schedule II (EBS)'!D14+'Schedule IIA (EBS)'!D14","v":0},8.0000000000000002E-3,0]
[null,3,"Sch II EBS, Line (4), Column 1 & Sch IIA EBS, Line (4), Column 1",{"$f":"+'Schedule II (EBS)'!D15+'Schedule IIA (EBS)'!D15","v":0},1.4999999999999999E-2,0]
[null,4,"Sch II EBS, Line (5), Column 1 & Sch IIA EBS, Line (5), Column 1",{"$f":"+'Schedule II (EBS)'!D16+'Schedule IIA (EBS)'!D16","v":0},0.03,0]
[null,5,"Sch II EBS, Line (6), Column 1 & Sch IIA EBS, Line (6), Column 1",{"$f":"+'Schedule II (EBS)'!D17+'Schedule IIA (EBS)'!D17","v":0},0.08,0]
[null,6,"Sch II EBS, Line (7), Column 1 & Sch IIA EBS, Line (7), Column 1",{"$f":"+'Schedule II (EBS)'!D18+'Schedule IIA (EBS)'!D18","v":0},0.15,0]
[null,7,"Sch II EBS, Line (8), Column 1 & Sch IIA EBS, Line (8), Column 1",{"$f":"+'Schedule II (EBS)'!D19+'Schedule IIA (EBS)'!D19","v":0},0.26300000000000001,0]
[null,8,"Sch II EBS, Line (9), Column 1 & Sch IIA EBS, Line (9), Column 1",{"$f":"+'Schedule II (EBS)'!D20+'Schedule IIA (EBS)'!D20","v":0},0.35,0]
[]
[null,"(a)  SUBTOTAL -  CORPORATE BONDS",null,{"$f":"SUM(D12:D20)","v":0},null,{"$f":"MAX(0,SUM(F12:F20))","v":0}]
[]
[null,"(b) Residential Mortgage-Backed Securities"]
[]
[null,"BSCR Rating"]
[null,1,"Sch II EBS, Line (2), Column 3 & Sch IIA EBS, Line (2), Column 3",{"$f":"+'Schedule II (EBS)'!H13+'Schedule IIA (EBS)'!H13","v":0},6.0000000000000001E-3,{"$f":"IF(D27<0,0,D27*E27)","v":0}]
[null,2,"Sch II EBS, Line (3), Column 3 & Sch IIA EBS, Line (3), Column 3",{"$f":"+'Schedule II (EBS)'!H14+'Schedule IIA (EBS)'!H14","v":0},1.2E-2,0]
[null,3,"Sch II EBS, Line (4), Column 3 & Sch IIA EBS, Line (4), Column 3",{"$f":"+'Schedule II (EBS)'!H15+'Schedule IIA (EBS)'!H15","v":0},0.02,0]
[null,4,"Sch II EBS, Line (5), Column 3 & Sch IIA EBS, Line (5), Column 3",{"$f":"+'Schedule II (EBS)'!H16+'Schedule IIA (EBS)'!H16","v":0},0.04,0]
[null,5,"Sch II EBS, Line (6), Column 3 & Sch IIA EBS, Line (6), Column 3",{"$f":"+'Schedule II (EBS)'!H17+'Schedule IIA (EBS)'!H17","v":0},0.11,0]
[null,6,"Sch II EBS, Line (7), Column 3 & Sch IIA EBS, Line (7), Column 3",{"$f":"+'Schedule II (EBS)'!H18+'Schedule IIA (EBS)'!H18","v":0},0.25,0]
[null,7,"Sch II EBS, Line (8), Column 3 & Sch IIA EBS, Line (8), Column 3",{"$f":"+'Schedule II (EBS)'!H19+'Schedule IIA (EBS)'!H19","v":0},0.35,0]
[null,8,"Sch II EBS, Line (9), Column 3 & Sch IIA EBS, Line (9), Column 3",{"$f":"+'Schedule II (EBS)'!H20+'Schedule IIA (EBS)'!H20","v":0},0.35,0]
[]
[null,"(b)  SUBTOTAL - RESIDENTIAL MORTGAGE-BACKED SECURITIES",null,{"$f":"SUM(D26:D34)","v":0},null,{"$f":"MAX(0,SUM(F26:F34))","v":0}]
[]
[null,"(c) Commercial Mortgage-Backed Securities / Asset Backed Securities"]
[]
[null,"BSCR Rating"]
[null,1,"Sch II EBS, Line (2), Column 5 & Sch IIA EBS, Line (2), Column 5",{"$f":"+'Schedule II (EBS)'!L13+'Schedule IIA (EBS)'!L13","v":0},5.0000000000000001E-3,{"$f":"IF(D41<0,0,D41*E41)","v":0}]
[null,2,"Sch II EBS, Line (3), Column 5 & Sch IIA EBS, Line (3), Column 5",{"$f":"+'Schedule II (EBS)'!L14+'Schedule IIA (EBS)'!L14","v":0},0.01,0]
[null,3,"Sch II EBS, Line (4), Column 5 & Sch IIA EBS, Line (4), Column 5",{"$f":"+'Schedule II (EBS)'!L15+'Schedule IIA (EBS)'!L15","v":0},1.7999999999999999E-2,0]
[null,4,"Sch II EBS, Line (5), Column 5 & Sch IIA EBS, Line (5), Column 5",{"$f":"+'Schedule II (EBS)'!L16+'Schedule IIA (EBS)'!L16","v":0},3.5000000000000003E-2,0]
[null,5,"Sch II EBS, Line (6), Column 5 & Sch IIA EBS, Line (6), Column 5",{"$f":"+'Schedule II (EBS)'!L17+'Schedule IIA (EBS)'!L17","v":0},0.1,0]
[null,6,"Sch II EBS, Line (7), Column 5 & Sch IIA EBS, Line (7), Column 5",{"$f":"+'Schedule II (EBS)'!L18+'Schedule IIA (EBS)'!L18","v":0},0.2,0]
[null,7,"Sch II EBS, Line (8), Column 5 & Sch IIA EBS, Line (8), Column 5",{"$f":"+'Schedule II (EBS)'!L19+'Schedule IIA (EBS)'!L19","v":0},0.3,0]
[null,8,"Sch II EBS, Line (9), Column 5 & Sch IIA EBS, Line (9), Column 5",{"$f":"+'Schedule II (EBS)'!L20+'Schedule IIA (EBS)'!L20","v":0},0.35,0]
[]
[null,"(c)  SUBTOTAL - COMMERCIAL MORTGAGE-BACKED SECURITIES / ASSET-BACKED SECURITIES"]
[null,null,null,{"$f":"SUM(D41:D48)","v":0},null,{"$f":"MAX(0,SUM(F41:F48))","v":0}]
[]
[null,"(d) Bond Mutual Funds"]
[]
[null,"BSCR Rating"]
[null,0,"Sch II EBS, Line (1), Column 7 & Sch IIA EBS, Line (1), Column 7",{"$f":"'Schedule II (EBS)'!P12+'Schedule IIA (EBS)'!P12","v":0},0,{"$f":"IF(D56<0,0,D56*E56)","v":0}]
[null,1,"Sch II EBS, Line (2), Column 7 & Sch IIA EBS, Line (2), Column 7",{"$f":"'Schedule II (EBS)'!P13+'Schedule IIA (EBS)'!P13","v":0},4.0000000000000001E-3,0]
[null,2,"Sch II EBS, Line (3), Column 7 & Sch IIA EBS, Line (3), Column 7",{"$f":"'Schedule II (EBS)'!P14+'Schedule IIA (EBS)'!P14","v":0},8.0000000000000002E-3,0]
[null,3,"Sch II EBS, Line (4), Column 7 & Sch IIA EBS, Line (4), Column 7",{"$f":"'Schedule II (EBS)'!P15+'Schedule IIA (EBS)'!P15","v":0},1.4999999999999999E-2,0]
[null,4,"Sch II EBS, Line (5), Column 7 & Sch IIA EBS, Line (5), Column 7",{"$f":"'Schedule II (EBS)'!P16+'Schedule IIA (EBS)'!P16","v":0},0.03,0]
[null,5,"Sch II EBS, Line (6), Column 7 & Sch IIA EBS, Line (6), Column 7",{"$f":"'Schedule II (EBS)'!P17+'Schedule IIA (EBS)'!P17","v":0},0.08,0]
[null,6,"Sch II EBS, Line (7), Column 7 & Sch IIA EBS, Line (7), Column 7",{"$f":"'Schedule II (EBS)'!P18+'Schedule IIA (EBS)'!P18","v":0},0.15,0]
[null,7,"Sch II EBS, Line (8), Column 7 & Sch IIA EBS, Line (8), Column 7",{"$f":"'Schedule II (EBS)'!P19+'Schedule IIA (EBS)'!P19","v":0},0.26300000000000001,0]
[null,8,"Sch II EBS, Line (9), Column 7 & Sch IIA EBS, Line (9), Column 7",{"$f":"'Schedule II (EBS)'!P20+'Schedule IIA (EBS)'!P20","v":0},0.35,0]
[]
[null,"(d)  SUBTOTAL - BOND MUTUAL FUNDS",null,{"$f":"SUM(D56:D64)","v":0},null,{"$f":"MAX(0,SUM(F56:F64))","v":0}]
[]
[null,"(e) Mortgage Loans"]
[]
[null,"Insured/Guaranteed Mortgages","Sch II EBS, Line (22), Column 1 & Sch IIA EBS, Line (22), Column 1",{"$f":"+'Schedule II (EBS)'!D57+'Schedule IIA (EBS)'!D57","v":0},3.0000000000000001E-3,{"$f":"IF(D70<0,0,D70*E70)","v":0}]
[null,"Other Commercial and Farm Mortgages","Sch II EBS, Line (23), Column 1 & Sch IIA EBS, Line (23), Column 1 ",{"$f":"+'Schedule II (EBS)'!D58+'Schedule IIA (EBS)'!D58","v":0},0.05,{"$f":"IF(D71<0,0,D71*E71)","v":0}]
[null,"Other Residential Mortgages","Sch II EBS, Line (24), Column 1 & Sch IIA EBS, Line (24), Column 1",{"$f":"+'Schedule II (EBS)'!D59+'Schedule IIA (EBS)'!D59","v":0},1.4999999999999999E-2,{"$f":"IF(D72<0,0,D72*E72)","v":0}]
[null,"Mortgages Not In Good Standing","Sch II EBS, Line (25), Column 1 & Sch IIA EBS, Line (25), Column 1",{"$f":"+'Schedule II (EBS)'!D60+'Schedule IIA (EBS)'!D60","v":0},0.25,{"$f":"IF(D73<0,0,D73*E73)","v":0}]
[]
[null,"(e)  SUBTOTAL - MORTGAGE LOANS",null,{"$f":"SUM(D70:D73)","v":0},null,{"$f":"MAX(0,SUM(F70:F73))","v":0}]
[]
[null,"(f) Other Fixed Income Investments"]
[]
[null,"Other Loans","Form 4EBS, Line (8)",{"$f":"+'Form 4EBS'!F54","v":0},0.05,{"$f":"IF(D79<0,0,D79*E79)","v":0}]
[]
[null,"Cash and Cash Equivalent Counterparty Balances By BSCR Rating"]
[]
[null,"BSCR Rating 0 ","Schedule XIX, Column B",{"$f":"+'Schedule XIX'!H81","v":0},0,{"$f":"IF($D$83<0,0,$D$83*$E$83)","v":0}]
[null,"BSCR Rating 1","Schedule XIX, Column B",{"$f":"+'Schedule XIX'!H82","v":0},1E-3,{"$f":"IF($D$84<0,0,$D$84*$E$84)","v":0}]
[null,"BSCR Rating 2","Schedule XIX, Column B",{"$f":"+'Schedule XIX'!H83","v":0},2E-3,{"$f":"IF($D$85<0,0,$D$85*$E$85)","v":0}]
[null,"BSCR Rating 3","Schedule XIX, Column B",{"$f":"+'Schedule XIX'!H84","v":0},3.0000000000000001E-3,{"$f":"IF($D$86<0,0,$D$86*$E$86)","v":0}]
[null,"BSCR Rating 4","Schedule XIX, Column B",{"$f":"+'Schedule XIX'!H85","v":0},5.0000000000000001E-3,{"$f":"IF($D$87<0,0,$D$87*$E$87)","v":0}]
[null,"BSCR Rating 5","Schedule XIX, Column B",{"$f":"+'Schedule XIX'!H86","v":0},1.4999999999999999E-2,{"$f":"IF($D$88<0,0,$D$88*$E$88)","v":0}]
[null,"BSCR Rating 6","Schedule XIX, Column B",{"$f":"+'Schedule XIX'!H87","v":0},0.04,{"$f":"IF($D$89<0,0,$D$89*$E$89)","v":0}]
[null,"BSCR Rating 7","Schedule XIX, Column B",{"$f":"+'Schedule XIX'!H88","v":0},0.06,{"$f":"IF($D$90<0,0,$D$90*$E$90)","v":0}]
[null,"BSCR Rating 8","Schedule XIX, Column B",{"$f":"+'Schedule XIX'!H89","v":0},0.09,{"$f":"IF($D$91<0,0,$D$91*$E$91)","v":0}]
[]
[null,"Total",null,{"$f":"SUM(D83:D92)","v":0},null,{"$f":"SUM(F83:F92)","v":0}]
[]
[null,"Diversification Adjustment up to 40%",null,null,{"$f":"+'Schedule XIX'!H98","v":0},{"$f":"SUM(F83:F91)*-(+'Schedule XIX'!H98)","v":0}]
[]
[null,"(f)  SUBTOTAL - OTHER FIXED INCOME SECURITIES",null,{"$f":"SUM(D79,D93)","v":0},null,{"$f":"MAX(0,SUM(F79,F83:F91,F95))","v":0}]
[]
[null,"(G)  TOTAL FIXED INCOME INVESTMENTS [ (a)+(b)+(c)+(d)+(e)+(f) ]",null,{"$f":"D22+D36+D75+D66+D51+D97","v":0},null,{"$f":"MAX(0,F22+F36+F75+F66+F51+F97)","v":0}]

{"sheet":"Fixed Income Investments (Rev.)","index":92,"n_rows":136,"n_cols":11,"rows_kept":136,"cut":false,"hidden":false,"merged":[[71,2,71,5],[72,2,72,5],[27,2,27,5],[28,2,28,5],[29,2,29,5],[30,2,30,5],[31,2,31,5],[59,2,59,5],[60,2,60,5],[61,2,61,5],[62,2,62,5],[63,2,63,5],[69,2,69,5],[70,2,70,5],[47,2,47,5],[55,2,55,5],[56,2,56,5],[57,2,57,5],[58,2,58,5],[42,2,42,5],[43,2,43,5],[44,2,44,5],[45,2,45,5],[46,2,46,5],[32,2,32,5],[33,2,33,5],[40,2,40,5],[41,2,41,5],[0,8,0,9],[11,2,11,5],[12,2,12,5],[13,2,13,5],[14,2,14,5],[15,2,15,5],[16,2,16,5],[17,2,17,5],[18,2,18,5],[19,2,19,5],[26,2,26,5],[140,0,140,1],[100,2,100,5],[101,4,101,5],[115,2,115,5],[116,2,116,3],[116,4,116,5],[101,2,101,3]]}
["FIXED INCOME INVESTMENTS (REVISED)",null,null,null,null,null,null,null,{"$f":"HYPERLINK(\"#'Index'!A1\",\"Return to Index\")","v":"Return to Index"}]
[{"$f":"'Insurer Information'!C7","v":"Enter Company Name"}]
[{"$f":"\"Fixed Income Investment Risk\" & \" ($\" & IF(CONFIGURATION!$B$12>1,\"'\"&MID(CONFIGURATION!$B$12,2,LEN(CONFIGURATION!$B$12)),\"\") & \")\"","v":"Fixed Income Investment Risk ($'000)"},null,{"$f":" TEXT('Insurer Information'!C3,\"D MMMM YYYY\")","v":"31 December 2023"},null,null,null,"(1)","(2)","(3)"]
[]
[]
[null,"TYPE OF ",null,null,null,null,"ASSET","CAPITAL","REQUIRED",null,{"$f":"YEAR('Insurer Information'!C3)","v":2023}]
[null,"FIXED INCOME INVESTMENTS","STATEMENT SOURCE",null,null,null,"VALUE","FACTOR","CAPITAL"]
[]
[null,"(a)  Corporate & Sovereign Bonds",null,null,null,null,null,null,"(1) x (2)"]
[]
[null,"BSCR Rating"]
[null,0,"Sch IIB, Column (1), Line 1, Sch IIC, Column (1), Line 1, (Sch IID, Column (1), Line 1 - Column (2), Line 1), Sch IIE, Column (1), Line 1, Sch IIF, Column (1), Line 1",null,null,null,{"$f":"'Schedule IIB (EBS)'!D13+'Schedule IIC (EBS)'!D13+(MAX(0,'Schedule IID (EBS)'!D13-'Schedule IID (EBS)'!F13))+'Schedule IIE (EBS)'!D13+'Schedule IIF (EBS)'!D13","v":0},0,{"$f":"IF(G12<0,0,G12*H12)","v":0}]
[null,1,"Sch IIB, Column (1), Line 2, Sch IIC, Column (1), Line 2, (Sch IID, Column (1), Line 2 - Column (2), Line 2), Sch IIE, Column (1), Line 2, Sch IIF, Column (1), Line 2",null,null,null,{"$f":"'Schedule IIB (EBS)'!D14+'Schedule IIC (EBS)'!D14+(MAX(0,'Schedule IID (EBS)'!D14-'Schedule IID (EBS)'!F14))+'Schedule IIE (EBS)'!D14+'Schedule IIF (EBS)'!D14","v":0},4.0000000000000001E-3,{"$f":"IF(G13<0,0,G13*H13)","v":0}]
[null,2,"Sch IIB, Column (1), Line 3, Sch IIC, Column (1), Line 3, (Sch IID, Column (1), Line 3 - Column (2), Line 3), Sch IIE, Column (1), Line 3, Sch IIF, Column (1), Line 3",null,null,null,{"$f":"'Schedule IIB (EBS)'!D15+'Schedule IIC (EBS)'!D15+(MAX(0,'Schedule IID (EBS)'!D15-'Schedule IID (EBS)'!F15))+'Schedule IIE (EBS)'!D15+'Schedule IIF (EBS)'!D15","v":0},8.0000000000000002E-3,0]
[null,3,"Sch IIB, Column (1), Line 4, Sch IIC, Column (1), Line 4, (Sch IID, Column (1), Line 4 - Column (2), Line 4), Sch IIE, Column (1), Line 4, Sch IIF, Column (1), Line 4",null,null,null,{"$f":"'Schedule IIB (EBS)'!D16+'Schedule IIC (EBS)'!D16+(MAX(0,'Schedule IID (EBS)'!D16-'Schedule IID (EBS)'!F16))+'Schedule IIE (EBS)'!D16+'Schedule IIF (EBS)'!D16","v":0},1.4999999999999999E-2,0]
[null,4,"Sch IIB, Column (1), Line 5, Sch IIC, Column (1), Line 5, (Sch IID, Column (1), Line 5 - Column (2), Line 5), Sch IIE, Column (1), Line 5, Sch IIF, Column (1), Line 5",null,null,null,{"$f":"'Schedule IIB (EBS)'!D17+'Schedule IIC (EBS)'!D17+(MAX(0,'Schedule IID (EBS)'!D17-'Schedule IID (EBS)'!F17))+'Schedule IIE (EBS)'!D17+'Schedule IIF (EBS)'!D17","v":0},0.03,0]
[null,5,"Sch IIB, Column (1), Line 6, Sch IIC, Column (1), Line 6, (Sch IID, Column (1), Line 6 - Column (2), Line 6), Sch IIE, Column (1), Line 6, Sch IIF, Column (1), Line 6",null,null,null,{"$f":"'Schedule IIB (EBS)'!D18+'Schedule IIC (EBS)'!D18+(MAX(0,'Schedule IID (EBS)'!D18-'Schedule IID (EBS)'!F18))+'Schedule IIE (EBS)'!D18+'Schedule IIF (EBS)'!D18","v":0},0.08,0]
[null,6,"Sch IIB, Column (1), Line 7, Sch IIC, Column (1), Line 7, (Sch IID, Column (1), Line 7 - Column (2), Line 7), Sch IIE, Column (1), Line 7, Sch IIF, Column (1), Line 7",null,null,null,{"$f":"'Schedule IIB (EBS)'!D19+'Schedule IIC (EBS)'!D19+(MAX(0,'Schedule IID (EBS)'!D19-'Schedule IID (EBS)'!F19))+'Schedule IIE (EBS)'!D19+'Schedule IIF (EBS)'!D19","v":0},0.15,0]
[null,7,"Sch IIB, Column (1), Line 8, Sch IIC, Column (1), Line 8, (Sch IID, Column (1), Line 8 - Column (2), Line 8), Sch IIE, Column (1), Line 8, Sch IIF, Column (1), Line 8",null,null,null,{"$f":"'Schedule IIB (EBS)'!D20+'Schedule IIC (EBS)'!D20+(MAX(0,'Schedule IID (EBS)'!D20-'Schedule IID (EBS)'!F20))+'Schedule IIE (EBS)'!D20+'Schedule IIF (EBS)'!D20","v":0},0.26300000000000001,0]
[null,8,"Sch IIB, Column (1), Line 9, Sch IIC, Column (1), Line 9, (Sch IID, Column (1), Line 9 - Column (2), Line 9), Sch IIE, Column (1), Line 9, Sch IIF, Column (1), Line 9",null,null,null,{"$f":"'Schedule IIB (EBS)'!D21+'Schedule IIC (EBS)'!D21+(MAX(0,'Schedule IID (EBS)'!D21-'Schedule IID (EBS)'!F21))+'Schedule IIE (EBS)'!D21+'Schedule IIF (EBS)'!D21","v":0},0.35,0]
[]
[null,"(a)  SUBTOTAL -  CORPORATE BONDS",null,null,null,null,{"$f":"SUM(G11:G20)","v":0},null,{"$f":"MAX(0,SUM(I12:I20))","v":0}]
[]
[null,"(b) Residential Mortgage-Backed Securities"]
[]
[null,"BSCR Rating"]
[null,1,"Sch IIB, Column (3), Line 2, Sch IIC, Column (3), Line 2, (Sch IID, Column (3), Line 2 - Column (4), Line 2), Sch IIE, Column (3), Line 2, Sch IIF, Column (3), Line 2",null,null,null,{"$f":"'Schedule IIB (EBS)'!H14+'Schedule IIC (EBS)'!H14+(MAX(0,'Schedule IID (EBS)'!H14-'Schedule IID (EBS)'!J14))+'Schedule IIE (EBS)'!H14+'Schedule IIF (EBS)'!H14","v":0},6.0000000000000001E-3,{"$f":"IF(G27<0,0,G27*H27)","v":0}]
[null,2,"Sch IIB, Column (3), Line 3, Sch IIC, Column (3), Line 3, (Sch IID, Column (3), Line 3 - Column (4), Line 3), Sch IIE, Column (3), Line 3, Sch IIF, Column (3), Line 3",null,null,null,{"$f":"'Schedule IIB (EBS)'!H15+'Schedule IIC (EBS)'!H15+(MAX(0,'Schedule IID (EBS)'!H15-'Schedule IID (EBS)'!J15))+'Schedule IIE (EBS)'!H15+'Schedule IIF (EBS)'!H15","v":0},1.2E-2,0]
[null,3,"Sch IIB, Column (3), Line 4, Sch IIC, Column (3), Line 4, (Sch IID, Column (3), Line 4 - Column (4), Line 4), Sch IIE, Column (3), Line 4, Sch IIF, Column (3), Line 4",null,null,null,{"$f":"'Schedule IIB (EBS)'!H16+'Schedule IIC (EBS)'!H16+(MAX(0,'Schedule IID (EBS)'!H16-'Schedule IID (EBS)'!J16))+'Schedule IIE (EBS)'!H16+'Schedule IIF (EBS)'!H16","v":0},0.02,0]
[null,4,"Sch IIB, Column (3), Line 5, Sch IIC, Column (3), Line 5, (Sch IID, Column (3), Line 5 - Column (4), Line 5), Sch IIE, Column (3), Line 5, Sch IIF, Column (3), Line 5",null,null,null,{"$f":"'Schedule IIB (EBS)'!H17+'Schedule IIC (EBS)'!H17+(MAX(0,'Schedule IID (EBS)'!H17-'Schedule IID (EBS)'!J17))+'Schedule IIE (EBS)'!H17+'Schedule IIF (EBS)'!H17","v":0},0.04,0]
[null,5,"Sch IIB, Column (3), Line 6, Sch IIC, Column (3), Line 6, (Sch IID, Column (3), Line 6 - Column (4), Line 6), Sch IIE, Column (3), Line 6, Sch IIF, Column (3), Line 6",null,null,null,{"$f":"'Schedule IIB (EBS)'!H18+'Schedule IIC (EBS)'!H18+(MAX(0,'Schedule IID (EBS)'!H18-'Schedule IID (EBS)'!J18))+'Schedule IIE (EBS)'!H18+'Schedule IIF (EBS)'!H18","v":0},0.11,0]
[null,6,"Sch IIB, Column (3), Line 7, Sch IIC, Column (3), Line 7, (Sch IID, Column (3), Line 7 - Column (4), Line 7), Sch IIE, Column (3), Line 7, Sch IIF, Column (3), Line 7",null,null,null,{"$f":"'Schedule IIB (EBS)'!H19+'Schedule IIC (EBS)'!H19+(MAX(0,'Schedule IID (EBS)'!H19-'Schedule IID (EBS)'!J19))+'Schedule IIE (EBS)'!H19+'Schedule IIF (EBS)'!H19","v":0},0.25,0]
[null,7,"Sch IIB, Column (3), Line 8, Sch IIC, Column (3), Line 8, (Sch IID, Column (3), Line 8 - Column (4), Line 8), Sch IIE, Column (3), Line 8, Sch IIF, Column (3), Line 8",null,null,null,{"$f":"'Schedule IIB (EBS)'!H20+'Schedule IIC (EBS)'!H20+(MAX(0,'Schedule IID (EBS)'!H20-'Schedule IID (EBS)'!J20))+'Schedule IIE (EBS)'!H20+'Schedule IIF (EBS)'!H20","v":0},0.35,0]
[null,8,"Sch IIB, Column (3), Line 9, Sch IIC, Column (3), Line 9, (Sch IID, Column (3), Line 9 - Column (4), Line 9), Sch IIE, Column (3), Line 9, Sch IIF, Column (3), Line 9",null,null,null,{"$f":"'Schedule IIB (EBS)'!H21+'Schedule IIC (EBS)'!H21+(MAX(0,'Schedule IID (EBS)'!H21-'Schedule IID (EBS)'!J21))+'Schedule IIE (EBS)'!H21+'Schedule IIF (EBS)'!H21","v":0},0.35,0]
[]
[null,"(b)  SUBTOTAL - RESIDENTIAL MORTGAGE-BACKED SECURITIES",null,null,null,null,{"$f":"SUM(G27:G34)","v":0},null,{"$f":"MAX(0,SUM(I26:I34))","v":0}]
[]
[null,"(c) Commercial Mortgage-Backed Securities / Asset Backed Securities"]
[]
[null,"BSCR Rating"]
[null,1,"Sch IIB, Column (5), Line 2, Sch IIC, Column (5), Line 2, (Sch IID, Column (5), Line 2 - Column (4), Line 2), Sch IIE, Column (5), Line 2, Sch IIF, Column (5), Line 2",null,null,null,{"$f":"'Schedule IIB (EBS)'!L14+'Schedule IIC (EBS)'!L14+(MAX(0,'Schedule IID (EBS)'!L14-'Schedule IID (EBS)'!N14))+'Schedule IIE (EBS)'!L14+'Schedule IIF (EBS)'!L14","v":0},5.0000000000000001E-3,{"$f":"IF(G41<0,0,G41*H41)","v":0}]
[null,2,"Sch IIB, Column (5), Line 3, Sch IIC, Column (5), Line 3, (Sch IID, Column (5), Line 3 - Column (4), Line 3), Sch IIE, Column (5), Line 3, Sch IIF, Column (5), Line 3",null,null,null,{"$f":"'Schedule IIB (EBS)'!L15+'Schedule IIC (EBS)'!L15+(MAX(0,'Schedule IID (EBS)'!L15-'Schedule IID (EBS)'!N15))+'Schedule IIE (EBS)'!L15+'Schedule IIF (EBS)'!L15","v":0},0.01,0]
[null,3,"Sch IIB, Column (5), Line 4, Sch IIC, Column (5), Line 4, (Sch IID, Column (5), Line 4 - Column (4), Line 4), Sch IIE, Column (5), Line 4, Sch IIF, Column (5), Line 4",null,null,null,{"$f":"'Schedule IIB (EBS)'!L16+'Schedule IIC (EBS)'!L16+(MAX(0,'Schedule IID (EBS)'!L16-'Schedule IID (EBS)'!N16))+'Schedule IIE (EBS)'!L16+'Schedule IIF (EBS)'!L16","v":0},1.7999999999999999E-2,0]
[null,4,"Sch IIB, Column (5), Line 5, Sch IIC, Column (5), Line 5, (Sch IID, Column (5), Line 5 - Column (4), Line 5), Sch IIE, Column (5), Line 5, Sch IIF, Column (5), Line 5",null,null,null,{"$f":"'Schedule IIB (EBS)'!L17+'Schedule IIC (EBS)'!L17+(MAX(0,'Schedule IID (EBS)'!L17-'Schedule IID (EBS)'!N17))+'Schedule IIE (EBS)'!L17+'Schedule IIF (EBS)'!L17","v":0},3.5000000000000003E-2,0]
[null,5,"Sch IIB, Column (5), Line 6, Sch IIC, Column (5), Line 6, (Sch IID, Column (5), Line 6 - Column (4), Line 6), Sch IIE, Column (5), Line 6, Sch IIF, Column (5), Line 6",null,null,null,{"$f":"'Schedule IIB (EBS)'!L18+'Schedule IIC (EBS)'!L18+(MAX(0,'Schedule IID (EBS)'!L18-'Schedule IID (EBS)'!N18))+'Schedule IIE (EBS)'!L18+'Schedule IIF (EBS)'!L18","v":0},0.1,0]
[null,6,"Sch IIB, Column (5), Line 7, Sch IIC, Column (5), Line 7, (Sch IID, Column (5), Line 7 - Column (4), Line 7), Sch IIE, Column (5), Line 7, Sch IIF, Column (5), Line 7",null,null,null,{"$f":"'Schedule IIB (EBS)'!L19+'Schedule IIC (EBS)'!L19+(MAX(0,'Schedule IID (EBS)'!L19-'Schedule IID (EBS)'!N19))+'Schedule IIE (EBS)'!L19+'Schedule IIF (EBS)'!L19","v":0},0.2,0]
[null,7,"Sch IIB, Column (5), Line 8, Sch IIC, Column (5), Line 8, (Sch IID, Column (5), Line 8 - Column (4), Line 8), Sch IIE, Column (5), Line 8, Sch IIF, Column (5), Line 8",null,null,null,{"$f":"'Schedule IIB (EBS)'!L20+'Schedule IIC (EBS)'!L20+(MAX(0,'Schedule IID (EBS)'!L20-'Schedule IID (EBS)'!N20))+'Schedule IIE (EBS)'!L20+'Schedule IIF (EBS)'!L20","v":0},0.3,0]
[null,8,"Sch IIB, Column (5), Line 9, Sch IIC, Column (5), Line 9, (Sch IID, Column (5), Line 9 - Column (4), Line 9), Sch IIE, Column (5), Line 9, Sch IIF, Column (5), Line 9",null,null,null,{"$f":"'Schedule IIB (EBS)'!L21+'Schedule IIC (EBS)'!L21+(MAX(0,'Schedule IID (EBS)'!L21-'Schedule IID (EBS)'!N21))+'Schedule IIE (EBS)'!L21+'Schedule IIF (EBS)'!L21","v":0},0.35,0]
[]
[]
[null,"(c)  SUBTOTAL - COMMERCIAL MORTGAGE-BACKED SECURITIES / ASSET-BACKED SECURITIES",null,null,null,null,{"$f":"SUM(G41:G48)","v":0},null,{"$f":"MAX(0,SUM(I41:I48))","v":0}]
[]
[null,"(d) Bond Mutual Funds"]
[]
[null,"BSCR Rating"]
[null,0,"Sch IIB, Column (7), Line 1, Sch IIC, Column (7), Line 1, (Sch IID, Column (7), Line 1 - Column (8), Line 1), Sch IIE, Column (7), Line 1, Sch IIF, Column (7), Line 1",null,null,null,{"$f":"'Schedule IIB (EBS)'!P13+'Schedule IIC (EBS)'!P13+(MAX(0,'Schedule IID (EBS)'!P13-'Schedule IID (EBS)'!R13))+'Schedule IIE (EBS)'!P13+'Schedule IIF (EBS)'!P13","v":0},0,{"$f":"IF(G56<0,0,G56*H56)","v":0}]
[null,1,"Sch IIB, Column (7), Line 2, Sch IIC, Column (7), Line 2, (Sch IID, Column (7), Line 2 - Column (8), Line 2), Sch IIE, Column (7), Line 2, Sch IIF, Column (7), Line 2",null,null,null,{"$f":"'Schedule IIB (EBS)'!P14+'Schedule IIC (EBS)'!P14+(MAX(0,'Schedule IID (EBS)'!P14-'Schedule IID (EBS)'!R14))+'Schedule IIE (EBS)'!P14+'Schedule IIF (EBS)'!P14","v":0},4.0000000000000001E-3,0]
[null,2,"Sch IIB, Column (7), Line 3, Sch IIC, Column (7), Line 3, (Sch IID, Column (7), Line 3 - Column (8), Line 3), Sch IIE, Column (7), Line 3, Sch IIF, Column (7), Line 3",null,null,null,{"$f":"'Schedule IIB (EBS)'!P15+'Schedule IIC (EBS)'!P15+(MAX(0,'Schedule IID (EBS)'!P15-'Schedule IID (EBS)'!R15))+'Schedule IIE (EBS)'!P15+'Schedule IIF (EBS)'!P15","v":0},8.0000000000000002E-3,0]
[null,3,"Sch IIB, Column (7), Line 4, Sch IIC, Column (7), Line 4, (Sch IID, Column (7), Line 4 - Column (8), Line 4), Sch IIE, Column (7), Line 4, Sch IIF, Column (7), Line 4",null,null,null,{"$f":"'Schedule IIB (EBS)'!P16+'Schedule IIC (EBS)'!P16+(MAX(0,'Schedule IID (EBS)'!P16-'Schedule IID (EBS)'!R16))+'Schedule IIE (EBS)'!P16+'Schedule IIF (EBS)'!P16","v":0},1.4999999999999999E-2,0]
[null,4,"Sch IIB, Column (7), Line 5, Sch IIC, Column (7), Line 5, (Sch IID, Column (7), Line 5 - Column (8), Line 5), Sch IIE, Column (7), Line 5, Sch IIF, Column (7), Line 5",null,null,null,{"$f":"'Schedule IIB (EBS)'!P17+'Schedule IIC (EBS)'!P17+(MAX(0,'Schedule IID (EBS)'!P17-'Schedule IID (EBS)'!R17))+'Schedule IIE (EBS)'!P17+'Schedule IIF (EBS)'!P17","v":0},0.03,0]
[null,5,"Sch IIB, Column (7), Line 6, Sch IIC, Column (7), Line 6, (Sch IID, Column (7), Line 6 - Column (8), Line 6), Sch IIE, Column (7), Line 6, Sch IIF, Column (7), Line 6",null,null,null,{"$f":"'Schedule IIB (EBS)'!P18+'Schedule IIC (EBS)'!P18+(MAX(0,'Schedule IID (EBS)'!P18-'Schedule IID (EBS)'!R18))+'Schedule IIE (EBS)'!P18+'Schedule IIF (EBS)'!P18","v":0},0.08,0]
[null,6,"Sch IIB, Column (7), Line 7, Sch IIC, Column (7), Line 7, (Sch IID, Column (7), Line 7 - Column (8), Line 7), Sch IIE, Column (7), Line 7, Sch IIF, Column (7), Line 7",null,null,null,{"$f":"'Schedule IIB (EBS)'!P19+'Schedule IIC (EBS)'!P19+(MAX(0,'Schedule IID (EBS)'!P19-'Schedule IID (EBS)'!R19))+'Schedule IIE (EBS)'!P19+'Schedule IIF (EBS)'!P19","v":0},0.15,0]
[null,7,"Sch IIB, Column (7), Line 8, Sch IIC, Column (7), Line 8, (Sch IID, Column (7), Line 8 - Column (8), Line 8), Sch IIE, Column (7), Line 8, Sch IIF, Column (7), Line 8",null,null,null,{"$f":"'Schedule IIB (EBS)'!P20+'Schedule IIC (EBS)'!P20+(MAX(0,'Schedule IID (EBS)'!P20-'Schedule IID (EBS)'!R20))+'Schedule IIE (EBS)'!P20+'Schedule IIF (EBS)'!P20","v":0},0.26300000000000001,0]
[null,8,"Sch IIB, Column (7), Line 9, Sch IIC, Column (7), Line 9, (Sch IID, Column (7), Line 9 - Column (8), Line 9), Sch IIE, Column (7), Line 9, Sch IIF, Column (7), Line 9",null,null,null,{"$f":"'Schedule IIB (EBS)'!P21+'Schedule IIC (EBS)'!P21+(MAX(0,'Schedule IID (EBS)'!P21-'Schedule IID (EBS)'!R21))+'Schedule IIE (EBS)'!P21+'Schedule IIF (EBS)'!P21","v":0},0.35,0]
[]
[null,"(d)  SUBTOTAL - BOND MUTUAL FUNDS",null,null,null,null,{"$f":"SUM(G56:G64)","v":0},null,{"$f":"MAX(0,SUM(I56:I64))","v":0}]
[]
[null,"(e) Mortgage Loans"]
[]
[null,"Insured/Guaranteed Mortgages","Sch IIB, Column (9), Line 10, Sch IIC, Column (9), Line 10, (Sch IID, Column (9), Line 10 - Column (10), Line 10), Sch IIE, Column (9), Line 10, Sch IIF, Column (9), Line 10",null,null,null,{"$f":"'Schedule IIB (EBS)'!T22+'Schedule IIC (EBS)'!T22+(MAX(0,'Schedule IID (EBS)'!T22-'Schedule IID (EBS)'!V22))+'Schedule IIE (EBS)'!T22+'Schedule IIF (EBS)'!T22","v":0},3.0000000000000001E-3,{"$f":"IF(G70<0,0,G70*H70)","v":0}]
[null,"Other Commercial and Farm Mortgages","Sch IIB, Column (9), Line 11, Sch IIC, Column (9), Line 11, (Sch IID, Column (9), Line 11 - Column (10), Line 11), Sch IIE, Column (9), Line 11, Sch IIF, Column (9), Line 11",null,null,null,{"$f":"'Schedule IIB (EBS)'!T23+'Schedule IIC (EBS)'!T23+(MAX(0,'Schedule IID (EBS)'!T23-'Schedule IID (EBS)'!V23))+'Schedule IIE (EBS)'!T23+'Schedule IIF (EBS)'!T23","v":0},0.05,{"$f":"IF(G71<0,0,G71*H71)","v":0}]
[null,"Other Residential Mortgages","Sch IIB, Column (9), Line 12, Sch IIC, Column (9), Line 12, (Sch IID, Column (9), Line 12 - Column (10), Line 12), Sch IIE, Column (9), Line 12, Sch IIF, Column (9), Line 12",null,null,null,{"$f":"'Schedule IIB (EBS)'!T24+'Schedule IIC (EBS)'!T24+(MAX(0,'Schedule IID (EBS)'!T24-'Schedule IID (EBS)'!V24))+'Schedule IIE (EBS)'!T24+'Schedule IIF (EBS)'!T24","v":0},1.4999999999999999E-2,{"$f":"IF(G72<0,0,G72*H72)","v":0}]
[null,"Mortgages Not In Good Standing","Sch IIB, Column (9), Line 13, Sch IIC, Column (9), Line 13, (Sch IID, Column (9), Line 13 - Column (10), Line 13), Sch IIE, Column (9), Line 13, Sch IIF, Column (9), Line 13",null,null,null,{"$f":"'Schedule IIB (EBS)'!T25+'Schedule IIC (EBS)'!T25+(MAX(0,'Schedule IID (EBS)'!T25-'Schedule IID (EBS)'!V25))+'Schedule IIE (EBS)'!T25+'Schedule IIF (EBS)'!T25","v":0},0.25,{"$f":"IF(G73<0,0,G73*H73)","v":0}]
[]
[null,"(e)  SUBTOTAL - MORTGAGE LOANS",null,null,null,null,{"$f":"SUM(G70:G73)","v":0},null,{"$f":"MAX(0,SUM(I70:I73))","v":0}]
[]
[null,"(f) Other Fixed Income Investments"]
[]
[null,"Other Loans","Form 4EBS, Line (8)",null,null,null,{"$f":"+'Form 4EBS'!F54","v":0},0.05,{"$f":"IF(G79<0,0,G79*H79)","v":0}]
[]
[null,"Cash and Cash Equivalent Counterparty Balances By BSCR Rating"]
[]
[null,"BSCR Rating 0 ","Schedule XIXA, Column B",null,null,null,{"$f":"'Schedule XIXA'!F81","v":0},0,{"$f":"IF($G$83<0,0,$G$83*$H$83)","v":0}]
[null,"BSCR Rating 1","Schedule XIXA, Column B",null,null,null,{"$f":"'Schedule XIXA'!F82","v":0},1E-3,{"$f":"IF($G$84<0,0,$G$84*$H$84)","v":0}]
[null,"BSCR Rating 2","Schedule XIXA, Column B",null,null,null,{"$f":"'Schedule XIXA'!F83","v":0},2E-3,{"$f":"IF($G$85<0,0,$G$85*$H$85)","v":0}]
[null,"BSCR Rating 3","Schedule XIXA, Column B",null,null,null,{"$f":"'Schedule XIXA'!F84","v":0},3.0000000000000001E-3,{"$f":"IF($G$86<0,0,$G$86*$H$86)","v":0}]
[null,"BSCR Rating 4","Schedule XIXA, Column B",null,null,null,{"$f":"'Schedule XIXA'!F85","v":0},5.0000000000000001E-3,{"$f":"IF($G$87<0,0,$G$87*$H$87)","v":0}]
[null,"BSCR Rating 5","Schedule XIXA, Column B",null,null,null,{"$f":"'Schedule XIXA'!F86","v":0},1.4999999999999999E-2,{"$f":"IF($G$88<0,0,$G$88*$H$88)","v":0}]
[null,"BSCR Rating 6","Schedule XIXA, Column B",null,null,null,{"$f":"'Schedule XIXA'!F87","v":0},0.04,{"$f":"IF($G$89<0,0,$G$89*$H$89)","v":0}]
[null,"BSCR Rating 7","Schedule XIXA, Column B",null,null,null,{"$f":"'Schedule XIXA'!F88","v":0},0.06,{"$f":"IF($G$90<0,0,$G$90*$H$90)","v":0}]
[null,"BSCR Rating 8","Schedule XIXA, Column B",null,null,null,{"$f":"'Schedule XIXA'!F89","v":0},0.09,{"$f":"IF($G$91<0,0,$G$91*$H$91)","v":0}]
[]
[null,"Total",null,null,null,null,{"$f":"SUM(G83:G92)","v":0},null,{"$f":"SUM(I83:I92)","v":0}]
[]
[null,"Diversification Adjustment up to 40%",null,null,null,null,null,{"$f":"'Schedule XIXA'!$F$98","v":0},{"$f":"SUM(I83:I91)*-('Schedule XIXA'!$F$98)","v":0}]
[]
[null,"(f)  SUBTOTAL - OTHER FIXED INCOME SECURITIES",null,null,null,null,{"$f":"SUM(G79,G93)","v":0},null,{"$f":"MAX(0,SUM(I79,I83:I91,I95))","v":0}]
[]
[null,"(g) Spread Risk for Credit Derivatives"]
[]
[null,null,"SPREAD UP"]
[null,null,"Long Exposures",null,"Short Exposures"]
[null,null,"Before Shock","After Shock","Before Shock","After Shock"]
[null,"Spread Up",null,null,null,null,null,"Shock (bps)"]
[null,"BSCR Rating 0 ",{"$f":"'Schedule IIB (EBS)'!D68+'Schedule IIC (EBS)'!D68+'Schedule IID (EBS)'!D68+'Schedule IIE (EBS)'!D68+'Schedule IIF (EBS)'!D68","v":0},{"$f":"'Schedule IIB (EBS)'!F68+'Schedule IIC (EBS)'!F68+'Schedule IID (EBS)'!F68+'Schedule IIE (EBS)'!F68+'Schedule IIF (EBS)'!F68","v":0},{"$f":"'Schedule IIB (EBS)'!H68+'Schedule IIC (EBS)'!H68+'Schedule IID (EBS)'!H68+'Schedule IIE (EBS)'!H68+'Schedule IIF (EBS)'!H68","v":0},{"$f":"'Schedule IIB (EBS)'!J68+'Schedule IIC (EBS)'!J68+'Schedule IID (EBS)'!J68+'Schedule IIE (EBS)'!J68+'Schedule IIF (EBS)'!J68","v":0},null,0,{"$f":"(C105-D105)+MAX(0,E105-F105)","v":0}]
[null,"BSCR Rating 1",{"$f":"'Schedule IIB (EBS)'!D69+'Schedule IIC (EBS)'!D69+'Schedule IID (EBS)'!D69+'Schedule IIE (EBS)'!D69+'Schedule IIF (EBS)'!D69","v":0},{"$f":"'Schedule IIB (EBS)'!F69+'Schedule IIC (EBS)'!F69+'Schedule IID (EBS)'!F69+'Schedule IIE (EBS)'!F69+'Schedule IIF (EBS)'!F69","v":0},{"$f":"'Schedule IIB (EBS)'!H69+'Schedule IIC (EBS)'!H69+'Schedule IID (EBS)'!H69+'Schedule IIE (EBS)'!H69+'Schedule IIF (EBS)'!H69","v":0},{"$f":"'Schedule IIB (EBS)'!J69+'Schedule IIC (EBS)'!J69+'Schedule IID (EBS)'!J69+'Schedule IIE (EBS)'!J69+'Schedule IIF (EBS)'!J69","v":0},null,130,0]
[null,"BSCR Rating 2",{"$f":"'Schedule IIB (EBS)'!D70+'Schedule IIC (EBS)'!D70+'Schedule IID (EBS)'!D70+'Schedule IIE (EBS)'!D70+'Schedule IIF (EBS)'!D70","v":0},{"$f":"'Schedule IIB (EBS)'!F70+'Schedule IIC (EBS)'!F70+'Schedule IID (EBS)'!F70+'Schedule IIE (EBS)'!F70+'Schedule IIF (EBS)'!F70","v":0},{"$f":"'Schedule IIB (EBS)'!H70+'Schedule IIC (EBS)'!H70+'Schedule IID (EBS)'!H70+'Schedule IIE (EBS)'!H70+'Schedule IIF (EBS)'!H70","v":0},{"$f":"'Schedule IIB (EBS)'!J70+'Schedule IIC (EBS)'!J70+'Schedule IID (EBS)'!J70+'Schedule IIE (EBS)'!J70+'Schedule IIF (EBS)'!J70","v":0},null,150,0]
[null,"BSCR Rating 3",{"$f":"'Schedule IIB (EBS)'!D71+'Schedule IIC (EBS)'!D71+'Schedule IID (EBS)'!D71+'Schedule IIE (EBS)'!D71+'Schedule IIF (EBS)'!D71","v":0},{"$f":"'Schedule IIB (EBS)'!F71+'Schedule IIC (EBS)'!F71+'Schedule IID (EBS)'!F71+'Schedule IIE (EBS)'!F71+'Schedule IIF (EBS)'!F71","v":0},{"$f":"'Schedule IIB (EBS)'!H71+'Schedule IIC (EBS)'!H71+'Schedule IID (EBS)'!H71+'Schedule IIE (EBS)'!H71+'Schedule IIF (EBS)'!H71","v":0},{"$f":"'Schedule IIB (EBS)'!J71+'Schedule IIC (EBS)'!J71+'Schedule IID (EBS)'!J71+'Schedule IIE (EBS)'!J71+'Schedule IIF (EBS)'!J71","v":0},null,260,0]
[null,"BSCR Rating 4",{"$f":"'Schedule IIB (EBS)'!D72+'Schedule IIC (EBS)'!D72+'Schedule IID (EBS)'!D72+'Schedule IIE (EBS)'!D72+'Schedule IIF (EBS)'!D72","v":0},{"$f":"'Schedule IIB (EBS)'!F72+'Schedule IIC (EBS)'!F72+'Schedule IID (EBS)'!F72+'Schedule IIE (EBS)'!F72+'Schedule IIF (EBS)'!F72","v":0},{"$f":"'Schedule IIB (EBS)'!H72+'Schedule IIC (EBS)'!H72+'Schedule IID (EBS)'!H72+'Schedule IIE (EBS)'!H72+'Schedule IIF (EBS)'!H72","v":0},{"$f":"'Schedule IIB (EBS)'!J72+'Schedule IIC (EBS)'!J72+'Schedule IID (EBS)'!J72+'Schedule IIE (EBS)'!J72+'Schedule IIF (EBS)'!J72","v":0},null,450,0]
[null,"BSCR Rating 5",{"$f":"'Schedule IIB (EBS)'!D73+'Schedule IIC (EBS)'!D73+'Schedule IID (EBS)'!D73+'Schedule IIE (EBS)'!D73+'Schedule IIF (EBS)'!D73","v":0},{"$f":"'Schedule IIB (EBS)'!F73+'Schedule IIC (EBS)'!F73+'Schedule IID (EBS)'!F73+'Schedule IIE (EBS)'!F73+'Schedule IIF (EBS)'!F73","v":0},{"$f":"'Schedule IIB (EBS)'!H73+'Schedule IIC (EBS)'!H73+'Schedule IID (EBS)'!H73+'Schedule IIE (EBS)'!H73+'Schedule IIF (EBS)'!H73","v":0},{"$f":"'Schedule IIB (EBS)'!J73+'Schedule IIC (EBS)'!J73+'Schedule IID (EBS)'!J73+'Schedule IIE (EBS)'!J73+'Schedule IIF (EBS)'!J73","v":0},null,840,0]
[null,"BSCR Rating 6",{"$f":"'Schedule IIB (EBS)'!D74+'Schedule IIC (EBS)'!D74+'Schedule IID (EBS)'!D74+'Schedule IIE (EBS)'!D74+'Schedule IIF (EBS)'!D74","v":0},{"$f":"'Schedule IIB (EBS)'!F74+'Schedule IIC (EBS)'!F74+'Schedule IID (EBS)'!F74+'Schedule IIE (EBS)'!F74+'Schedule IIF (EBS)'!F74","v":0},{"$f":"'Schedule IIB (EBS)'!H74+'Schedule IIC (EBS)'!H74+'Schedule IID (EBS)'!H74+'Schedule IIE (EBS)'!H74+'Schedule IIF (EBS)'!H74","v":0},{"$f":"'Schedule IIB (EBS)'!J74+'Schedule IIC (EBS)'!J74+'Schedule IID (EBS)'!J74+'Schedule IIE (EBS)'!J74+'Schedule IIF (EBS)'!J74","v":0},null,1620,0]
[null,"BSCR Rating 7",{"$f":"'Schedule IIB (EBS)'!D75+'Schedule IIC (EBS)'!D75+'Schedule IID (EBS)'!D75+'Schedule IIE (EBS)'!D75+'Schedule IIF (EBS)'!D75","v":0},{"$f":"'Schedule IIB (EBS)'!F75+'Schedule IIC (EBS)'!F75+'Schedule IID (EBS)'!F75+'Schedule IIE (EBS)'!F75+'Schedule IIF (EBS)'!F75","v":0},{"$f":"'Schedule IIB (EBS)'!H75+'Schedule IIC (EBS)'!H75+'Schedule IID (EBS)'!H75+'Schedule IIE (EBS)'!H75+'Schedule IIF (EBS)'!H75","v":0},{"$f":"'Schedule IIB (EBS)'!J75+'Schedule IIC (EBS)'!J75+'Schedule IID (EBS)'!J75+'Schedule IIE (EBS)'!J75+'Schedule IIF (EBS)'!J75","v":0},null,1620,0]
[null,"BSCR Rating 8",{"$f":"'Schedule IIB (EBS)'!D76+'Schedule IIC (EBS)'!D76+'Schedule IID (EBS)'!D76+'Schedule IIE (EBS)'!D76+'Schedule IIF (EBS)'!D76","v":0},{"$f":"'Schedule IIB (EBS)'!F76+'Schedule IIC (EBS)'!F76+'Schedule IID (EBS)'!F76+'Schedule IIE (EBS)'!F76+'Schedule IIF (EBS)'!F76","v":0},{"$f":"'Schedule IIB (EBS)'!H76+'Schedule IIC (EBS)'!H76+'Schedule IID (EBS)'!H76+'Schedule IIE (EBS)'!H76+'Schedule IIF (EBS)'!H76","v":0},{"$f":"'Schedule IIB (EBS)'!J76+'Schedule IIC (EBS)'!J76+'Schedule IID (EBS)'!J76+'Schedule IIE (EBS)'!J76+'Schedule IIF (EBS)'!J76","v":0},null,1620,0]
[null,"Total Spread Up",{"$f":"SUM(C105:C113)","v":0},{"$f":"SUM(D105:D113)","v":0},{"$f":"SUM(E105:E113)","v":0},{"$f":"SUM(F105:F113)","v":0},null,null,{"$f":"MAX(SUM(I105:I113),0)","v":0}]
[]
[null,null,"SPREAD DOWN"]
[null,null,"Long Exposures",null,"Short Exposures"]
[null,null,"Before Shock","After Shock","Before Shock","After Shock"]
[null,"Spread Down",null,null,null,null,null,"Shock (%)"]
[null,"BSCR Rating 0 ",{"$f":"'Schedule IIB (EBS)'!N68+'Schedule IIC (EBS)'!N68+'Schedule IID (EBS)'!N68+'Schedule IIE (EBS)'!N68+'Schedule IIF (EBS)'!N68","v":0},{"$f":"'Schedule IIB (EBS)'!P68+'Schedule IIC (EBS)'!P68+'Schedule IID (EBS)'!P68+'Schedule IIE (EBS)'!P68+'Schedule IIF (EBS)'!P68","v":0},{"$f":"'Schedule IIB (EBS)'!R68+'Schedule IIC (EBS)'!R68+'Schedule IID (EBS)'!R68+'Schedule IIE (EBS)'!R68+'Schedule IIF (EBS)'!R68","v":0},{"$f":"'Schedule IIB (EBS)'!T68+'Schedule IIC (EBS)'!T68+'Schedule IID (EBS)'!T68+'Schedule IIE (EBS)'!T68+'Schedule IIF (EBS)'!T68","v":0},null,0,{"$f":"(C120-D120)+MAX(0,E120-F120)","v":0}]
[null,"BSCR Rating 1",{"$f":"'Schedule IIB (EBS)'!N69+'Schedule IIC (EBS)'!N69+'Schedule IID (EBS)'!N69+'Schedule IIE (EBS)'!N69+'Schedule IIF (EBS)'!N69","v":0},{"$f":"'Schedule IIB (EBS)'!P69+'Schedule IIC (EBS)'!P69+'Schedule IID (EBS)'!P69+'Schedule IIE (EBS)'!P69+'Schedule IIF (EBS)'!P69","v":0},{"$f":"'Schedule IIB (EBS)'!R69+'Schedule IIC (EBS)'!R69+'Schedule IID (EBS)'!R69+'Schedule IIE (EBS)'!R69+'Schedule IIF (EBS)'!R69","v":0},{"$f":"'Schedule IIB (EBS)'!T69+'Schedule IIC (EBS)'!T69+'Schedule IID (EBS)'!T69+'Schedule IIE (EBS)'!T69+'Schedule IIF (EBS)'!T69","v":0},null,-0.75,0]
[null,"BSCR Rating 2",{"$f":"'Schedule IIB (EBS)'!N70+'Schedule IIC (EBS)'!N70+'Schedule IID (EBS)'!N70+'Schedule IIE (EBS)'!N70+'Schedule IIF (EBS)'!N70","v":0},{"$f":"'Schedule IIB (EBS)'!P70+'Schedule IIC (EBS)'!P70+'Schedule IID (EBS)'!P70+'Schedule IIE (EBS)'!P70+'Schedule IIF (EBS)'!P70","v":0},{"$f":"'Schedule IIB (EBS)'!R70+'Schedule IIC (EBS)'!R70+'Schedule IID (EBS)'!R70+'Schedule IIE (EBS)'!R70+'Schedule IIF (EBS)'!R70","v":0},{"$f":"'Schedule IIB (EBS)'!T70+'Schedule IIC (EBS)'!T70+'Schedule IID (EBS)'!T70+'Schedule IIE (EBS)'!T70+'Schedule IIF (EBS)'!T70","v":0},null,-0.75,0]
[null,"BSCR Rating 3",{"$f":"'Schedule IIB (EBS)'!N71+'Schedule IIC (EBS)'!N71+'Schedule IID (EBS)'!N71+'Schedule IIE (EBS)'!N71+'Schedule IIF (EBS)'!N71","v":0},{"$f":"'Schedule IIB (EBS)'!P71+'Schedule IIC (EBS)'!P71+'Schedule IID (EBS)'!P71+'Schedule IIE (EBS)'!P71+'Schedule IIF (EBS)'!P71","v":0},{"$f":"'Schedule IIB (EBS)'!R71+'Schedule IIC (EBS)'!R71+'Schedule IID (EBS)'!R71+'Schedule IIE (EBS)'!R71+'Schedule IIF (EBS)'!R71","v":0},{"$f":"'Schedule IIB (EBS)'!T71+'Schedule IIC (EBS)'!T71+'Schedule IID (EBS)'!T71+'Schedule IIE (EBS)'!T71+'Schedule IIF (EBS)'!T71","v":0},null,-0.75,0]
[null,"BSCR Rating 4",{"$f":"'Schedule IIB (EBS)'!N72+'Schedule IIC (EBS)'!N72+'Schedule IID (EBS)'!N72+'Schedule IIE (EBS)'!N72+'Schedule IIF (EBS)'!N72","v":0},{"$f":"'Schedule IIB (EBS)'!P72+'Schedule IIC (EBS)'!P72+'Schedule IID (EBS)'!P72+'Schedule IIE (EBS)'!P72+'Schedule IIF (EBS)'!P72","v":0},{"$f":"'Schedule IIB (EBS)'!R72+'Schedule IIC (EBS)'!R72+'Schedule IID (EBS)'!R72+'Schedule IIE (EBS)'!R72+'Schedule IIF (EBS)'!R72","v":0},{"$f":"'Schedule IIB (EBS)'!T72+'Schedule IIC (EBS)'!T72+'Schedule IID (EBS)'!T72+'Schedule IIE (EBS)'!T72+'Schedule IIF (EBS)'!T72","v":0},null,-0.75,0]
[null,"BSCR Rating 5",{"$f":"'Schedule IIB (EBS)'!N73+'Schedule IIC (EBS)'!N73+'Schedule IID (EBS)'!N73+'Schedule IIE (EBS)'!N73+'Schedule IIF (EBS)'!N73","v":0},{"$f":"'Schedule IIB (EBS)'!P73+'Schedule IIC (EBS)'!P73+'Schedule IID (EBS)'!P73+'Schedule IIE (EBS)'!P73+'Schedule IIF (EBS)'!P73","v":0},{"$f":"'Schedule IIB (EBS)'!R73+'Schedule IIC (EBS)'!R73+'Schedule IID (EBS)'!R73+'Schedule IIE (EBS)'!R73+'Schedule IIF (EBS)'!R73","v":0},{"$f":"'Schedule IIB (EBS)'!T73+'Schedule IIC (EBS)'!T73+'Schedule IID (EBS)'!T73+'Schedule IIE (EBS)'!T73+'Schedule IIF (EBS)'!T73","v":0},null,-0.75,0]
[null,"BSCR Rating 6",{"$f":"'Schedule IIB (EBS)'!N74+'Schedule IIC (EBS)'!N74+'Schedule IID (EBS)'!N74+'Schedule IIE (EBS)'!N74+'Schedule IIF (EBS)'!N74","v":0},{"$f":"'Schedule IIB (EBS)'!P74+'Schedule IIC (EBS)'!P74+'Schedule IID (EBS)'!P74+'Schedule IIE (EBS)'!P74+'Schedule IIF (EBS)'!P74","v":0},{"$f":"'Schedule IIB (EBS)'!R74+'Schedule IIC (EBS)'!R74+'Schedule IID (EBS)'!R74+'Schedule IIE (EBS)'!R74+'Schedule IIF (EBS)'!R74","v":0},{"$f":"'Schedule IIB (EBS)'!T74+'Schedule IIC (EBS)'!T74+'Schedule IID (EBS)'!T74+'Schedule IIE (EBS)'!T74+'Schedule IIF (EBS)'!T74","v":0},null,-0.75,0]
[null,"BSCR Rating 7",{"$f":"'Schedule IIB (EBS)'!N75+'Schedule IIC (EBS)'!N75+'Schedule IID (EBS)'!N75+'Schedule IIE (EBS)'!N75+'Schedule IIF (EBS)'!N75","v":0},{"$f":"'Schedule IIB (EBS)'!P75+'Schedule IIC (EBS)'!P75+'Schedule IID (EBS)'!P75+'Schedule IIE (EBS)'!P75+'Schedule IIF (EBS)'!P75","v":0},{"$f":"'Schedule IIB (EBS)'!R75+'Schedule IIC (EBS)'!R75+'Schedule IID (EBS)'!R75+'Schedule IIE (EBS)'!R75+'Schedule IIF (EBS)'!R75","v":0},{"$f":"'Schedule IIB (EBS)'!T75+'Schedule IIC (EBS)'!T75+'Schedule IID (EBS)'!T75+'Schedule IIE (EBS)'!T75+'Schedule IIF (EBS)'!T75","v":0},null,-0.75,0]
[null,"BSCR Rating 8",{"$f":"'Schedule IIB (EBS)'!N76+'Schedule IIC (EBS)'!N76+'Schedule IID (EBS)'!N76+'Schedule IIE (EBS)'!N76+'Schedule IIF (EBS)'!N76","v":0},{"$f":"'Schedule IIB (EBS)'!P76+'Schedule IIC (EBS)'!P76+'Schedule IID (EBS)'!P76+'Schedule IIE (EBS)'!P76+'Schedule IIF (EBS)'!P76","v":0},{"$f":"'Schedule IIB (EBS)'!R76+'Schedule IIC (EBS)'!R76+'Schedule IID (EBS)'!R76+'Schedule IIE (EBS)'!R76+'Schedule IIF (EBS)'!R76","v":0},{"$f":"'Schedule IIB (EBS)'!T76+'Schedule IIC (EBS)'!T76+'Schedule IID (EBS)'!T76+'Schedule IIE (EBS)'!T76+'Schedule IIF (EBS)'!T76","v":0},null,-0.75,0]
[null,"Total Spread Down",{"$f":"SUM(C120:C128)","v":0},{"$f":"SUM(D120:D128)","v":0},{"$f":"SUM(E120:E128)","v":0},{"$f":"SUM(F120:F128)","v":0},null,null,{"$f":"MAX(SUM(I120:I128),0)","v":0}]
[]
[null,"Spread Up",null,null,null,null,null,null,{"$f":"I114","v":0}]
[null,"Spread Down",null,null,null,null,null,null,{"$f":"I129","v":0}]
[]
[null,"(g) Total Spread Risk",null,null,null,null,null,null,{"$f":"MAX(I131,I132)","v":0}]
[]
[null,"(H)  TOTAL FIXED INCOME INVESTMENTS [ (a)+(b)+(c)+(d)+(e)+(f)+(g) ]",null,null,null,null,{"$f":"G22+G36+G75+G66+G51+G97","v":0},null,{"$f":"MAX(0,I22+I36+I75+I66+I51+I97+I134)","v":0}]

{"sheet":"Equity Investments","index":93,"n_rows":51,"n_cols":6,"rows_kept":51,"cut":false,"hidden":false,"merged":[[52,0,52,1],[0,5,0,6]]}
["EQUITY INVESTMENTS",null,null,null,null,{"$f":"HYPERLINK(\"#'Index'!A1\",\"Return to Index\")","v":"Return to Index"}]
[{"$f":"'Insurer Information'!C7","v":"Enter Company Name"}]
[{"$f":"\"Equity Investment Risk\"& \" ($\" & IF(CONFIGURATION!$B$12>1,\"'\"&MID(CONFIGURATION!$B$12,2,LEN(CONFIGURATION!$B$12)),\"\") & \")\"","v":"Equity Investment Risk ($'000)"},null,{"$f":" TEXT('Insurer Information'!C3,\"D MMMM YYYY\")","v":"31 December 2023"},"(1)","(2)","(3)"]
[]
[]
[null,"TYPE OF ",null,"ASSET","CAPITAL","REQUIRED"]
[null,"EQUITY INVESTMENTS","STATEMENT SOURCE","VALUE","FACTOR","CAPITAL"]
[]
[null,"(a)  Common Stocks",null,null,null,"(1) x (2)"]
[]
[null,"Non-Affiliated (Quoted)","Sch II EBS, Line (19), Column (1) and Sch IIA EBS, Line (19), Column (1)",{"$f":"'Schedule II (EBS)'!D41+'Schedule IIA (EBS)'!D41","v":0},0.14399999999999999,{"$f":"IF(D11<0,0,D11*E11)","v":0}]
[null,"Non-Affiliated (Unquoted)","Sch II EBS, Line (20), Column (1) and Sch IIA EBS, Line (20), Column (1)",{"$f":"'Schedule II (EBS)'!D42+'Schedule IIA (EBS)'!D42","v":0},0.14399999999999999,{"$f":"IF(D12<0,0,D12*E12)","v":0}]
[null,"Equity mutual funds","Sch II EBS, Line (21), Column (5) and Sch IIA EBS, Line (21), Column (5)",{"$f":"'Schedule II (EBS)'!L41+'Schedule II (EBS)'!L42+'Schedule IIA (EBS)'!L41+'Schedule IIA (EBS)'!L42","v":0},0.14399999999999999,{"$f":"IF(D13<0,0,D13*E13)","v":0}]
[]
[null,"(a)  SUBTOTAL - COMMON STOCKS",null,{"$f":"SUM(D11:D13)","v":0},null,{"$f":"MAX(0,(SUM(F11:F13)))","v":0}]
[]
[null,"(b)  Preferred Stocks"]
[]
[null,"BSCR Rating"]
[null,1,"Sch II EBS, Line (11), Column (3) and Sch IIA EBS, Line (11), Column (3)",{"$f":"+'Schedule II (EBS)'!H33+'Schedule IIA (EBS)'!H33","v":0},6.0000000000000001E-3,{"$f":"IF(D20<0,0,D20*E20)","v":0}]
[null,2,"Sch II EBS, Line (12), Column (3) and Sch IIA EBS, Line (12), Column (3)",{"$f":"+'Schedule II (EBS)'!H34+'Schedule IIA (EBS)'!H34","v":0},1.2E-2,0]
[null,3,"Sch II EBS, Line (13), Column (3) and Sch IIA EBS, Line (13), Column (3)",{"$f":"+'Schedule II (EBS)'!H35+'Schedule IIA (EBS)'!H35","v":0},0.02,0]
[null,4,"Sch II EBS, Line (14), Column (3) and Sch IIA EBS, Line (14), Column (3)",{"$f":"+'Schedule II (EBS)'!H36+'Schedule IIA (EBS)'!H36","v":0},0.04,0]
[null,5,"Sch II EBS, Line (15), Column (3) and Sch IIA EBS, Line (15), Column (3)",{"$f":"+'Schedule II (EBS)'!H37+'Schedule IIA (EBS)'!H37","v":0},0.11,0]
[null,6,"Sch II EBS, Line (16), Column (3) and Sch IIA EBS, Line (16), Column (3)",{"$f":"+'Schedule II (EBS)'!H38+'Schedule IIA (EBS)'!H38","v":0},0.25,0]
[null,7,"Sch II EBS, Line (17), Column (3) and Sch IIA EBS, Line (17), Column (3)",{"$f":"+'Schedule II (EBS)'!H39+'Schedule IIA (EBS)'!H39","v":0},0.35,0]
[null,8,"Sch II EBS, Line (18), Column (3) and Sch IIA EBS, Line (18), Column (3)",{"$f":"+'Schedule II (EBS)'!H40+'Schedule IIA (EBS)'!H40","v":0},0.35,0]
[]
[null,"(b)  SUBTOTAL - PREFERRED STOCKS",null,{"$f":"SUM(D19:D27)","v":0},null,{"$f":"MAX(0,(SUM(F19:F27)))","v":0}]
[]
[null,"(c)  Other Equity Investments"]
[]
[null,"Real Estate"]
[null,"Company-Occupied Less Encumbrances","Form 4EBS, Line (7a)",{"$f":"'Form 4EBS'!F50","v":0},0.1,{"$f":"IF(D34<0,0,D34*E34)","v":0}]
[null,"Investments Less Encumbrances","Form 4EBS, Line (7b)",{"$f":"'Form 4EBS'!F51","v":0},0.2,{"$f":"IF(D35<0,0,D35*E35)","v":0}]
[]
[null,"Other Equity Investments","Form 4EBS, Lines (2e), (3e) & Schedule IIA EBS, Line 21, Column (7)",{"$f":"'Form 4EBS'!F19+'Form 4EBS'!F29+'Schedule IIA (EBS)'!P44","v":0},0.2,{"$f":"IF(D37<0,0,D37*E37)","v":0}]
[null,"Other Tangible Assets (Net of Segregated Accounts Companies)","Form 4EBS, Lines (13k), (14d), and (36f) Less Form 4EBS, Lines (13b),  (13c) and (13h)",{"$f":"'Form 4EBS'!F85-'Form 4EBS'!F77-'Form 4EBS'!F78-'Form 4EBS'!F82+'Form 4EBS'!F91+'Form 4EBS'!F166","v":0},0.2,{"$f":"IF(D38<0,0,D38*E38)","v":0}]
[]
[null,"(c)  SUBTOTAL - OTHER EQUITY INVESTMENTS",null,{"$f":"SUM(D34:D35,D37:D38)","v":0},null,{"$f":"MAX(0,(SUM(F34:F38)))","v":0}]
[]
[null,"(d)  Investments in Affiliates"]
[]
[null,"Unregulated Entities That Conduct Ancillary Services","Form 4EBS, Line (4a)",{"$f":"+'Form 4EBS'!F33","v":0},0.05,{"$f":"IF(D44<0,0,D44*E44)","v":0}]
[null,"Unregulated Non-Financial Operating Entities","Form 4EBS, Line (4b)",{"$f":"+'Form 4EBS'!F34","v":0},0.2,{"$f":"IF(D45<0,0,D45*E45)","v":0}]
[null,"Unregulated Financial Operating Entities","Form 4EBS, Line (4c)",{"$f":"+'Form 4EBS'!F35","v":0},0.55000000000000004,{"$f":"IF(D46<0,0,D46*E46)","v":0}]
[null,"Regulated Insurance Financial Operating Entities","Form 4EBS, Line (4e)",{"$f":"+'Form 4EBS'!F37","v":0},0.2,{"$f":"IF(D47<0,0,D47*E47)","v":0}]
[]
[null,"(d)  SUBTOTAL - INVESTMENTS IN AFFILIATES",null,{"$f":"SUM(D44:D47)","v":0},null,{"$f":"MAX(0,SUM(F44:F47))","v":0}]
[]
[null,"(e)  TOTAL EQUITY INVESTMENTS [ (a) + (b) + (c) + (d) ]",null,{"$f":"D15+D29+D40+D49","v":0},null,{"$f":"MAX(0,(F15+F29+F40+F49))","v":0}]

{"sheet":"Equity Investments (Revised)","index":94,"n_rows":56,"n_cols":18,"rows_kept":56,"cut":false,"hidden":false,"merged":[[5,17,6,17],[6,5,6,6],[6,7,6,8],[0,17,0,18],[57,0,57,1],[4,3,4,8],[4,9,4,11],[4,15,6,15],[5,3,6,4],[5,5,5,8],[5,11,6,11],[5,9,6,9],[5,10,6,10]]}
["EQUITY INVESTMENTS (REVISED)",null,null,null,null,null,null,null,null,null,null,null,null,null,null,null,null,{"$f":"HYPERLINK(\"#'Index'!A1\",\"Return to Index\")","v":"Return to Index"}]
[{"$f":"'Insurer Information'!C7","v":"Enter Company Name"}]
[{"$f":"\"Equity Investment Risk\"& \" ($\" & IF(CONFIGURATION!$B$12>1,\"'\"&MID(CONFIGURATION!$B$12,2,LEN(CONFIGURATION!$B$12)),\"\") & \")\"","v":"Equity Investment Risk ($'000)"},null,{"$f":" TEXT('Insurer Information'!C3,\"D MMMM YYYY\")","v":"31 December 2023"},null,null,null,null,null,null,null,null,null,null,null,null,null,null,"(3)"]
[]
[null,null,null,"ASSETS",null,null,null,null,null,"LIABILITIES",null,null,null,null,null,"WITHOUT MANAGEMENT ACTIONS"]
[null,null,null,"Long Exposure",null,"Short Exposure",null,null,null,null,"Without Mgmt Actions","With Mgmt Actions",null,null,null,null,null,"WITH MANAGEMENT ACTIONS"]
[null,"TYPE OF ",null,null,null,"Qualifying as Assets held for risk-mitigation purposes",null,"Not Qualifying as Assets held for risk-mitigation purposes",null,null,null,null,null,"CAPITAL"]
[null,"EQUITY INVESTMENTS","STATEMENT SOURCE","Before Shock","After Shock","Before Shock","After Shock","Before Shock","After Shock","Before Shock","After Shock","After Shock",null,"FACTOR",null,"REQUIRED CAPITAL",null,"CAPITAL"]
[]
[null,"Type 1 Equity Holdings"]
[null,"Strategic Holdings - Listed","Sch IIB, IIC, IID, IIE and IIF Line (15)",{"$f":"'Schedule IIB (EBS)'!D39+'Schedule IIC (EBS)'!D39+'Schedule IID (EBS)'!D39+'Schedule IIE (EBS)'!D39+'Schedule IIF (EBS)'!D39","v":0},{"$f":"'Schedule IIB (EBS)'!F39+'Schedule IIC (EBS)'!F39+'Schedule IID (EBS)'!F39+'Schedule IIE (EBS)'!F39+'Schedule IIF (EBS)'!F39","v":0},{"$f":"'Schedule IIB (EBS)'!H39+'Schedule IIC (EBS)'!H39+'Schedule IID (EBS)'!H39+'Schedule IIE (EBS)'!H39+'Schedule IIF (EBS)'!H39","v":0},{"$f":"'Schedule IIB (EBS)'!J39+'Schedule IIC (EBS)'!J39+'Schedule IID (EBS)'!J39+'Schedule IIE (EBS)'!J39+'Schedule IIF (EBS)'!J39","v":0},{"$f":"'Schedule IIB (EBS)'!L39+'Schedule IIC (EBS)'!L39+'Schedule IID (EBS)'!L39+'Schedule IIE (EBS)'!L39+'Schedule IIF (EBS)'!L39","v":0},{"$f":"'Schedule IIB (EBS)'!N39+'Schedule IIC (EBS)'!N39+'Schedule IID (EBS)'!N39+'Schedule IIE (EBS)'!N39+'Schedule IIF (EBS)'!N39","v":0},{"$f":"'Schedule IIB (EBS)'!P39+'Schedule IIC (EBS)'!P39+'Schedule IID (EBS)'!P39+'Schedule IIE (EBS)'!P39+'Schedule IIF (EBS)'!P39","v":0},{"$f":"'Schedule IIB (EBS)'!R39+'Schedule IIC (EBS)'!R39+'Schedule IID (EBS)'!R39+'Schedule IIE (EBS)'!R39+'Schedule IIF (EBS)'!R39","v":0},{"$f":"'Schedule IIB (EBS)'!T39+'Schedule IIC (EBS)'!T39+'Schedule IID (EBS)'!T39+'Schedule IIE (EBS)'!T39+'Schedule IIF (EBS)'!T39","v":0},null,0.2,null,{"$f":"MAX(D11-E11,0)+(F11-G11)+MAX(H11-I11,0)+(K11-J11)","v":0},null,{"$f":"MAX(D11-E11,0)+(F11-G11)+MAX(H11-I11,0)+(L11-J11)","v":0}]
[null,"Duration Based","Sch IIB, IIC, IID, IIE and IIF Line (16)",{"$f":"'Schedule IIB (EBS)'!D40+'Schedule IIC (EBS)'!D40+'Schedule IID (EBS)'!D40+'Schedule IIE (EBS)'!D40+'Schedule IIF (EBS)'!D40","v":0},{"$f":"'Schedule IIB (EBS)'!F40+'Schedule IIC (EBS)'!F40+'Schedule IID (EBS)'!F40+'Schedule IIE (EBS)'!F40+'Schedule IIF (EBS)'!F40","v":0},{"$f":"'Schedule IIB (EBS)'!H40+'Schedule IIC (EBS)'!H40+'Schedule IID (EBS)'!H40+'Schedule IIE (EBS)'!H40+'Schedule IIF (EBS)'!H40","v":0},{"$f":"'Schedule IIB (EBS)'!J40+'Schedule IIC (EBS)'!J40+'Schedule IID (EBS)'!J40+'Schedule IIE (EBS)'!J40+'Schedule IIF (EBS)'!J40","v":0},{"$f":"'Schedule IIB (EBS)'!L40+'Schedule IIC (EBS)'!L40+'Schedule IID (EBS)'!L40+'Schedule IIE (EBS)'!L40+'Schedule IIF (EBS)'!L40","v":0},{"$f":"'Schedule IIB (EBS)'!N40+'Schedule IIC (EBS)'!N40+'Schedule IID (EBS)'!N40+'Schedule IIE (EBS)'!N40+'Schedule IIF (EBS)'!N40","v":0},{"$f":"'Schedule IIB (EBS)'!P40+'Schedule IIC (EBS)'!P40+'Schedule IID (EBS)'!P40+'Schedule IIE (EBS)'!P40+'Schedule IIF (EBS)'!P40","v":0},{"$f":"'Schedule IIB (EBS)'!R40+'Schedule IIC (EBS)'!R40+'Schedule IID (EBS)'!R40+'Schedule IIE (EBS)'!R40+'Schedule IIF (EBS)'!R40","v":0},{"$f":"'Schedule IIB (EBS)'!T40+'Schedule IIC (EBS)'!T40+'Schedule IID (EBS)'!T40+'Schedule IIE (EBS)'!T40+'Schedule IIF (EBS)'!T40","v":0},null,0.2,null,0,null,{"$f":"MAX(D12-E12,0)+(F12-G12)+MAX(H12-I12,0)+(L12-J12)","v":0}]
[null,"Listed Equity Securities in Developed Markets","Sch IIB, IIC, IID, IIE and IIF Line (17)",{"$f":"'Schedule IIB (EBS)'!D41+'Schedule IIC (EBS)'!D41+'Schedule IID (EBS)'!D41+'Schedule IIE (EBS)'!D41+'Schedule IIF (EBS)'!D41","v":0},{"$f":"'Schedule IIB (EBS)'!F41+'Schedule IIC (EBS)'!F41+'Schedule IID (EBS)'!F41+'Schedule IIE (EBS)'!F41+'Schedule IIF (EBS)'!F41","v":0},{"$f":"'Schedule IIB (EBS)'!H41+'Schedule IIC (EBS)'!H41+'Schedule IID (EBS)'!H41+'Schedule IIE (EBS)'!H41+'Schedule IIF (EBS)'!H41","v":0},{"$f":"'Schedule IIB (EBS)'!J41+'Schedule IIC (EBS)'!J41+'Schedule IID (EBS)'!J41+'Schedule IIE (EBS)'!J41+'Schedule IIF (EBS)'!J41","v":0},{"$f":"'Schedule IIB (EBS)'!L41+'Schedule IIC (EBS)'!L41+'Schedule IID (EBS)'!L41+'Schedule IIE (EBS)'!L41+'Schedule IIF (EBS)'!L41","v":0},{"$f":"'Schedule IIB (EBS)'!N41+'Schedule IIC (EBS)'!N41+'Schedule IID (EBS)'!N41+'Schedule IIE (EBS)'!N41+'Schedule IIF (EBS)'!N41","v":0},{"$f":"'Schedule IIB (EBS)'!P41+'Schedule IIC (EBS)'!P41+'Schedule IID (EBS)'!P41+'Schedule IIE (EBS)'!P41+'Schedule IIF (EBS)'!P41","v":0},{"$f":"'Schedule IIB (EBS)'!R41+'Schedule IIC (EBS)'!R41+'Schedule IID (EBS)'!R41+'Schedule IIE (EBS)'!R41+'Schedule IIF (EBS)'!R41","v":0},{"$f":"'Schedule IIB (EBS)'!T41+'Schedule IIC (EBS)'!T41+'Schedule IID (EBS)'!T41+'Schedule IIE (EBS)'!T41+'Schedule IIF (EBS)'!T41","v":0},null,0.35,null,0,null,0]
[null,"Preferred Stocks, BSCR Rating 1","Sch IIB, IIC, IID, IIE and IIF Line (18)",{"$f":"'Schedule IIB (EBS)'!D42+'Schedule IIC (EBS)'!D42+'Schedule IID (EBS)'!D42+'Schedule IIE (EBS)'!D42+'Schedule IIF (EBS)'!D42","v":0},{"$f":"'Schedule IIB (EBS)'!F42+'Schedule IIC (EBS)'!F42+'Schedule IID (EBS)'!F42+'Schedule IIE (EBS)'!F42+'Schedule IIF (EBS)'!F42","v":0},{"$f":"'Schedule IIB (EBS)'!H42+'Schedule IIC (EBS)'!H42+'Schedule IID (EBS)'!H42+'Schedule IIE (EBS)'!H42+'Schedule IIF (EBS)'!H42","v":0},{"$f":"'Schedule IIB (EBS)'!J42+'Schedule IIC (EBS)'!J42+'Schedule IID (EBS)'!J42+'Schedule IIE (EBS)'!J42+'Schedule IIF (EBS)'!J42","v":0},{"$f":"'Schedule IIB (EBS)'!L42+'Schedule IIC (EBS)'!L42+'Schedule IID (EBS)'!L42+'Schedule IIE (EBS)'!L42+'Schedule IIF (EBS)'!L42","v":0},{"$f":"'Schedule IIB (EBS)'!N42+'Schedule IIC (EBS)'!N42+'Schedule IID (EBS)'!N42+'Schedule IIE (EBS)'!N42+'Schedule IIF (EBS)'!N42","v":0},{"$f":"'Schedule IIB (EBS)'!P42+'Schedule IIC (EBS)'!P42+'Schedule IID (EBS)'!P42+'Schedule IIE (EBS)'!P42+'Schedule IIF (EBS)'!P42","v":0},{"$f":"'Schedule IIB (EBS)'!R42+'Schedule IIC (EBS)'!R42+'Schedule IID (EBS)'!R42+'Schedule IIE (EBS)'!R42+'Schedule IIF (EBS)'!R42","v":0},{"$f":"'Schedule IIB (EBS)'!T42+'Schedule IIC (EBS)'!T42+'Schedule IID (EBS)'!T42+'Schedule IIE (EBS)'!T42+'Schedule IIF (EBS)'!T42","v":0},null,6.0000000000000001E-3,null,0,null,0]
[null,"Preferred Stocks, BSCR Rating 2","Sch IIB, IIC, IID, IIE and IIF Line (19)",{"$f":"'Schedule IIB (EBS)'!D43+'Schedule IIC (EBS)'!D43+'Schedule IID (EBS)'!D43+'Schedule IIE (EBS)'!D43+'Schedule IIF (EBS)'!D43","v":0},{"$f":"'Schedule IIB (EBS)'!F43+'Schedule IIC (EBS)'!F43+'Schedule IID (EBS)'!F43+'Schedule IIE (EBS)'!F43+'Schedule IIF (EBS)'!F43","v":0},{"$f":"'Schedule IIB (EBS)'!H43+'Schedule IIC (EBS)'!H43+'Schedule IID (EBS)'!H43+'Schedule IIE (EBS)'!H43+'Schedule IIF (EBS)'!H43","v":0},{"$f":"'Schedule IIB (EBS)'!J43+'Schedule IIC (EBS)'!J43+'Schedule IID (EBS)'!J43+'Schedule IIE (EBS)'!J43+'Schedule IIF (EBS)'!J43","v":0},{"$f":"'Schedule IIB (EBS)'!L43+'Schedule IIC (EBS)'!L43+'Schedule IID (EBS)'!L43+'Schedule IIE (EBS)'!L43+'Schedule IIF (EBS)'!L43","v":0},{"$f":"'Schedule IIB (EBS)'!N43+'Schedule IIC (EBS)'!N43+'Schedule IID (EBS)'!N43+'Schedule IIE (EBS)'!N43+'Schedule IIF (EBS)'!N43","v":0},{"$f":"'Schedule IIB (EBS)'!P43+'Schedule IIC (EBS)'!P43+'Schedule IID (EBS)'!P43+'Schedule IIE (EBS)'!P43+'Schedule IIF (EBS)'!P43","v":0},{"$f":"'Schedule IIB (EBS)'!R43+'Schedule IIC (EBS)'!R43+'Schedule IID (EBS)'!R43+'Schedule IIE (EBS)'!R43+'Schedule IIF (EBS)'!R43","v":0},{"$f":"'Schedule IIB (EBS)'!T43+'Schedule IIC (EBS)'!T43+'Schedule IID (EBS)'!T43+'Schedule IIE (EBS)'!T43+'Schedule IIF (EBS)'!T43","v":0},null,1.2E-2,null,0,null,0]
[null,"Preferred Stocks, BSCR Rating 3","Sch IIB, IIC, IID, IIE and IIF Line (20)",{"$f":"'Schedule IIB (EBS)'!D44+'Schedule IIC (EBS)'!D44+'Schedule IID (EBS)'!D44+'Schedule IIE (EBS)'!D44+'Schedule IIF (EBS)'!D44","v":0},{"$f":"'Schedule IIB (EBS)'!F44+'Schedule IIC (EBS)'!F44+'Schedule IID (EBS)'!F44+'Schedule IIE (EBS)'!F44+'Schedule IIF (EBS)'!F44","v":0},{"$f":"'Schedule IIB (EBS)'!H44+'Schedule IIC (EBS)'!H44+'Schedule IID (EBS)'!H44+'Schedule IIE (EBS)'!H44+'Schedule IIF (EBS)'!H44","v":0},{"$f":"'Schedule IIB (EBS)'!J44+'Schedule IIC (EBS)'!J44+'Schedule IID (EBS)'!J44+'Schedule IIE (EBS)'!J44+'Schedule IIF (EBS)'!J44","v":0},{"$f":"'Schedule IIB (EBS)'!L44+'Schedule IIC (EBS)'!L44+'Schedule IID (EBS)'!L44+'Schedule IIE (EBS)'!L44+'Schedule IIF (EBS)'!L44","v":0},{"$f":"'Schedule IIB (EBS)'!N44+'Schedule IIC (EBS)'!N44+'Schedule IID (EBS)'!N44+'Schedule IIE (EBS)'!N44+'Schedule IIF (EBS)'!N44","v":0},{"$f":"'Schedule IIB (EBS)'!P44+'Schedule IIC (EBS)'!P44+'Schedule IID (EBS)'!P44+'Schedule IIE (EBS)'!P44+'Schedule IIF (EBS)'!P44","v":0},{"$f":"'Schedule IIB (EBS)'!R44+'Schedule IIC (EBS)'!R44+'Schedule IID (EBS)'!R44+'Schedule IIE (EBS)'!R44+'Schedule IIF (EBS)'!R44","v":0},{"$f":"'Schedule IIB (EBS)'!T44+'Schedule IIC (EBS)'!T44+'Schedule IID (EBS)'!T44+'Schedule IIE (EBS)'!T44+'Schedule IIF (EBS)'!T44","v":0},null,0.02,null,0,null,0]
[null,"Preferred Stocks, BSCR Rating 4","Sch IIB, IIC, IID, IIE and IIF Line (21)",{"$f":"'Schedule IIB (EBS)'!D45+'Schedule IIC (EBS)'!D45+'Schedule IID (EBS)'!D45+'Schedule IIE (EBS)'!D45+'Schedule IIF (EBS)'!D45","v":0},{"$f":"'Schedule IIB (EBS)'!F45+'Schedule IIC (EBS)'!F45+'Schedule IID (EBS)'!F45+'Schedule IIE (EBS)'!F45+'Schedule IIF (EBS)'!F45","v":0},{"$f":"'Schedule IIB (EBS)'!H45+'Schedule IIC (EBS)'!H45+'Schedule IID (EBS)'!H45+'Schedule IIE (EBS)'!H45+'Schedule IIF (EBS)'!H45","v":0},{"$f":"'Schedule IIB (EBS)'!J45+'Schedule IIC (EBS)'!J45+'Schedule IID (EBS)'!J45+'Schedule IIE (EBS)'!J45+'Schedule IIF (EBS)'!J45","v":0},{"$f":"'Schedule IIB (EBS)'!L45+'Schedule IIC (EBS)'!L45+'Schedule IID (EBS)'!L45+'Schedule IIE (EBS)'!L45+'Schedule IIF (EBS)'!L45","v":0},{"$f":"'Schedule IIB (EBS)'!N45+'Schedule IIC (EBS)'!N45+'Schedule IID (EBS)'!N45+'Schedule IIE (EBS)'!N45+'Schedule IIF (EBS)'!N45","v":0},{"$f":"'Schedule IIB (EBS)'!P45+'Schedule IIC (EBS)'!P45+'Schedule IID (EBS)'!P45+'Schedule IIE (EBS)'!P45+'Schedule IIF (EBS)'!P45","v":0},{"$f":"'Schedule IIB (EBS)'!R45+'Schedule IIC (EBS)'!R45+'Schedule IID (EBS)'!R45+'Schedule IIE (EBS)'!R45+'Schedule IIF (EBS)'!R45","v":0},{"$f":"'Schedule IIB (EBS)'!T45+'Schedule IIC (EBS)'!T45+'Schedule IID (EBS)'!T45+'Schedule IIE (EBS)'!T45+'Schedule IIF (EBS)'!T45","v":0},null,0.04,null,0,null,0]
[null,"Preferred Stocks, BSCR Rating 5","Sch IIB, IIC, IID, IIE and IIF Line (22)",{"$f":"'Schedule IIB (EBS)'!D46+'Schedule IIC (EBS)'!D46+'Schedule IID (EBS)'!D46+'Schedule IIE (EBS)'!D46+'Schedule IIF (EBS)'!D46","v":0},{"$f":"'Schedule IIB (EBS)'!F46+'Schedule IIC (EBS)'!F46+'Schedule IID (EBS)'!F46+'Schedule IIE (EBS)'!F46+'Schedule IIF (EBS)'!F46","v":0},{"$f":"'Schedule IIB (EBS)'!H46+'Schedule IIC (EBS)'!H46+'Schedule IID (EBS)'!H46+'Schedule IIE (EBS)'!H46+'Schedule IIF (EBS)'!H46","v":0},{"$f":"'Schedule IIB (EBS)'!J46+'Schedule IIC (EBS)'!J46+'Schedule IID (EBS)'!J46+'Schedule IIE (EBS)'!J46+'Schedule IIF (EBS)'!J46","v":0},{"$f":"'Schedule IIB (EBS)'!L46+'Schedule IIC (EBS)'!L46+'Schedule IID (EBS)'!L46+'Schedule IIE (EBS)'!L46+'Schedule IIF (EBS)'!L46","v":0},{"$f":"'Schedule IIB (EBS)'!N46+'Schedule IIC (EBS)'!N46+'Schedule IID (EBS)'!N46+'Schedule IIE (EBS)'!N46+'Schedule IIF (EBS)'!N46","v":0},{"$f":"'Schedule IIB (EBS)'!P46+'Schedule IIC (EBS)'!P46+'Schedule IID (EBS)'!P46+'Schedule IIE (EBS)'!P46+'Schedule IIF (EBS)'!P46","v":0},{"$f":"'Schedule IIB (EBS)'!R46+'Schedule IIC (EBS)'!R46+'Schedule IID (EBS)'!R46+'Schedule IIE (EBS)'!R46+'Schedule IIF (EBS)'!R46","v":0},{"$f":"'Schedule IIB (EBS)'!T46+'Schedule IIC (EBS)'!T46+'Schedule IID (EBS)'!T46+'Schedule IIE (EBS)'!T46+'Schedule IIF (EBS)'!T46","v":0},null,0.11,null,0,null,0]
[null,"Preferred Stocks, BSCR Rating 6","Sch IIB, IIC, IID, IIE and IIF Line (23)",{"$f":"'Schedule IIB (EBS)'!D47+'Schedule IIC (EBS)'!D47+'Schedule IID (EBS)'!D47+'Schedule IIE (EBS)'!D47+'Schedule IIF (EBS)'!D47","v":0},{"$f":"'Schedule IIB (EBS)'!F47+'Schedule IIC (EBS)'!F47+'Schedule IID (EBS)'!F47+'Schedule IIE (EBS)'!F47+'Schedule IIF (EBS)'!F47","v":0},{"$f":"'Schedule IIB (EBS)'!H47+'Schedule IIC (EBS)'!H47+'Schedule IID (EBS)'!H47+'Schedule IIE (EBS)'!H47+'Schedule IIF (EBS)'!H47","v":0},{"$f":"'Schedule IIB (EBS)'!J47+'Schedule IIC (EBS)'!J47+'Schedule IID (EBS)'!J47+'Schedule IIE (EBS)'!J47+'Schedule IIF (EBS)'!J47","v":0},{"$f":"'Schedule IIB (EBS)'!L47+'Schedule IIC (EBS)'!L47+'Schedule IID (EBS)'!L47+'Schedule IIE (EBS)'!L47+'Schedule IIF (EBS)'!L47","v":0},{"$f":"'Schedule IIB (EBS)'!N47+'Schedule IIC (EBS)'!N47+'Schedule IID (EBS)'!N47+'Schedule IIE (EBS)'!N47+'Schedule IIF (EBS)'!N47","v":0},{"$f":"'Schedule IIB (EBS)'!P47+'Schedule IIC (EBS)'!P47+'Schedule IID (EBS)'!P47+'Schedule IIE (EBS)'!P47+'Schedule IIF (EBS)'!P47","v":0},{"$f":"'Schedule IIB (EBS)'!R47+'Schedule IIC (EBS)'!R47+'Schedule IID (EBS)'!R47+'Schedule IIE (EBS)'!R47+'Schedule IIF (EBS)'!R47","v":0},{"$f":"'Schedule IIB (EBS)'!T47+'Schedule IIC (EBS)'!T47+'Schedule IID (EBS)'!T47+'Schedule IIE (EBS)'!T47+'Schedule IIF (EBS)'!T47","v":0},null,0.25,null,0,null,0]
[null,"Preferred Stocks, BSCR Rating 7","Sch IIB, IIC, IID, IIE and IIF Line (24)",{"$f":"'Schedule IIB (EBS)'!D48+'Schedule IIC (EBS)'!D48+'Schedule IID (EBS)'!D48+'Schedule IIE (EBS)'!D48+'Schedule IIF (EBS)'!D48","v":0},{"$f":"'Schedule IIB (EBS)'!F48+'Schedule IIC (EBS)'!F48+'Schedule IID (EBS)'!F48+'Schedule IIE (EBS)'!F48+'Schedule IIF (EBS)'!F48","v":0},{"$f":"'Schedule IIB (EBS)'!H48+'Schedule IIC (EBS)'!H48+'Schedule IID (EBS)'!H48+'Schedule IIE (EBS)'!H48+'Schedule IIF (EBS)'!H48","v":0},{"$f":"'Schedule IIB (EBS)'!J48+'Schedule IIC (EBS)'!J48+'Schedule IID (EBS)'!J48+'Schedule IIE (EBS)'!J48+'Schedule IIF (EBS)'!J48","v":0},{"$f":"'Schedule IIB (EBS)'!L48+'Schedule IIC (EBS)'!L48+'Schedule IID (EBS)'!L48+'Schedule IIE (EBS)'!L48+'Schedule IIF (EBS)'!L48","v":0},{"$f":"'Schedule IIB (EBS)'!N48+'Schedule IIC (EBS)'!N48+'Schedule IID (EBS)'!N48+'Schedule IIE (EBS)'!N48+'Schedule IIF (EBS)'!N48","v":0},{"$f":"'Schedule IIB (EBS)'!P48+'Schedule IIC (EBS)'!P48+'Schedule IID (EBS)'!P48+'Schedule IIE (EBS)'!P48+'Schedule IIF (EBS)'!P48","v":0},{"$f":"'Schedule IIB (EBS)'!R48+'Schedule IIC (EBS)'!R48+'Schedule IID (EBS)'!R48+'Schedule IIE (EBS)'!R48+'Schedule IIF (EBS)'!R48","v":0},{"$f":"'Schedule IIB (EBS)'!T48+'Schedule IIC (EBS)'!T48+'Schedule IID (EBS)'!T48+'Schedule IIE (EBS)'!T48+'Schedule IIF (EBS)'!T48","v":0},null,0.35,null,0,null,0]
[null,"Preferred Stocks, BSCR Rating 8","Sch IIB, IIC, IID, IIE and IIF Line (25)",{"$f":"'Schedule IIB (EBS)'!D49+'Schedule IIC (EBS)'!D49+'Schedule IID (EBS)'!D49+'Schedule IIE (EBS)'!D49+'Schedule IIF (EBS)'!D49","v":0},{"$f":"'Schedule IIB (EBS)'!F49+'Schedule IIC (EBS)'!F49+'Schedule IID (EBS)'!F49+'Schedule IIE (EBS)'!F49+'Schedule IIF (EBS)'!F49","v":0},{"$f":"'Schedule IIB (EBS)'!H49+'Schedule IIC (EBS)'!H49+'Schedule IID (EBS)'!H49+'Schedule IIE (EBS)'!H49+'Schedule IIF (EBS)'!H49","v":0},{"$f":"'Schedule IIB (EBS)'!J49+'Schedule IIC (EBS)'!J49+'Schedule IID (EBS)'!J49+'Schedule IIE (EBS)'!J49+'Schedule IIF (EBS)'!J49","v":0},{"$f":"'Schedule IIB (EBS)'!L49+'Schedule IIC (EBS)'!L49+'Schedule IID (EBS)'!L49+'Schedule IIE (EBS)'!L49+'Schedule IIF (EBS)'!L49","v":0},{"$f":"'Schedule IIB (EBS)'!N49+'Schedule IIC (EBS)'!N49+'Schedule IID (EBS)'!N49+'Schedule IIE (EBS)'!N49+'Schedule IIF (EBS)'!N49","v":0},{"$f":"'Schedule IIB (EBS)'!P49+'Schedule IIC (EBS)'!P49+'Schedule IID (EBS)'!P49+'Schedule IIE (EBS)'!P49+'Schedule IIF (EBS)'!P49","v":0},{"$f":"'Schedule IIB (EBS)'!R49+'Schedule IIC (EBS)'!R49+'Schedule IID (EBS)'!R49+'Schedule IIE (EBS)'!R49+'Schedule IIF (EBS)'!R49","v":0},{"$f":"'Schedule IIB (EBS)'!T49+'Schedule IIC (EBS)'!T49+'Schedule IID (EBS)'!T49+'Schedule IIE (EBS)'!T49+'Schedule IIF (EBS)'!T49","v":0},null,0.35,null,0,null,0]
[null,"Equity Derivatives on Type 1 Equities","Sch IIB, IIC, IID, IIE and IIF Line (26)",{"$f":"'Schedule IIB (EBS)'!D50+'Schedule IIC (EBS)'!D50+'Schedule IID (EBS)'!D50+'Schedule IIE (EBS)'!D50+'Schedule IIF (EBS)'!D50","v":0},{"$f":"'Schedule IIB (EBS)'!F50+'Schedule IIC (EBS)'!F50+'Schedule IID (EBS)'!F50+'Schedule IIE (EBS)'!F50+'Schedule IIF (EBS)'!F50","v":0},{"$f":"'Schedule IIB (EBS)'!H50+'Schedule IIC (EBS)'!H50+'Schedule IID (EBS)'!H50+'Schedule IIE (EBS)'!H50+'Schedule IIF (EBS)'!H50","v":0},{"$f":"'Schedule IIB (EBS)'!J50+'Schedule IIC (EBS)'!J50+'Schedule IID (EBS)'!J50+'Schedule IIE (EBS)'!J50+'Schedule IIF (EBS)'!J50","v":0},{"$f":"'Schedule IIB (EBS)'!L50+'Schedule IIC (EBS)'!L50+'Schedule IID (EBS)'!L50+'Schedule IIE (EBS)'!L50+'Schedule IIF (EBS)'!L50","v":0},{"$f":"'Schedule IIB (EBS)'!N50+'Schedule IIC (EBS)'!N50+'Schedule IID (EBS)'!N50+'Schedule IIE (EBS)'!N50+'Schedule IIF (EBS)'!N50","v":0},{"$f":"'Schedule IIB (EBS)'!P50+'Schedule IIC (EBS)'!P50+'Schedule IID (EBS)'!P50+'Schedule IIE (EBS)'!P50+'Schedule IIF (EBS)'!P50","v":0},{"$f":"'Schedule IIB (EBS)'!R50+'Schedule IIC (EBS)'!R50+'Schedule IID (EBS)'!R50+'Schedule IIE (EBS)'!R50+'Schedule IIF (EBS)'!R50","v":0},{"$f":"'Schedule IIB (EBS)'!T50+'Schedule IIC (EBS)'!T50+'Schedule IID (EBS)'!T50+'Schedule IIE (EBS)'!T50+'Schedule IIF (EBS)'!T50","v":0},null,0.35,null,0,null,0]
[]
[null,"Subtotal - Type 1 Equity Holdings",null,{"$f":"SUM(D11:D23)","v":0},0,0,0,0,0,0,0,0,null,null,null,{"$f":"MAX(SUM(P11:P22),0)","v":0},null,{"$f":"MAX(SUM(R11:R22),0)","v":0}]
[]
[null,"Type 2 Equity Holdings"]
[null,"Strategic Holdings - Unlisted","Sch IIB, IIC, IID, IIE and IIF Line (27)",{"$f":"'Schedule IIB (EBS)'!D51+'Schedule IIC (EBS)'!D51+'Schedule IID (EBS)'!D51+'Schedule IIE (EBS)'!D51+'Schedule IIF (EBS)'!D51","v":0},{"$f":"'Schedule IIB (EBS)'!F51+'Schedule IIC (EBS)'!F51+'Schedule IID (EBS)'!F51+'Schedule IIE (EBS)'!F51+'Schedule IIF (EBS)'!F51","v":0},{"$f":"'Schedule IIB (EBS)'!H51+'Schedule IIC (EBS)'!H51+'Schedule IID (EBS)'!H51+'Schedule IIE (EBS)'!H51+'Schedule IIF (EBS)'!H51","v":0},{"$f":"'Schedule IIB (EBS)'!J51+'Schedule IIC (EBS)'!J51+'Schedule IID (EBS)'!J51+'Schedule IIE (EBS)'!J51+'Schedule IIF (EBS)'!J51","v":0},{"$f":"'Schedule IIB (EBS)'!L51+'Schedule IIC (EBS)'!L51+'Schedule IID (EBS)'!L51+'Schedule IIE (EBS)'!L51+'Schedule IIF (EBS)'!L51","v":0},{"$f":"'Schedule IIB (EBS)'!N51+'Schedule IIC (EBS)'!N51+'Schedule IID (EBS)'!N51+'Schedule IIE (EBS)'!N51+'Schedule IIF (EBS)'!N51","v":0},{"$f":"'Schedule IIB (EBS)'!P51+'Schedule IIC (EBS)'!P51+'Schedule IID (EBS)'!P51+'Schedule IIE (EBS)'!P51+'Schedule IIF (EBS)'!P51","v":0},{"$f":"'Schedule IIB (EBS)'!R51+'Schedule IIC (EBS)'!R51+'Schedule IID (EBS)'!R51+'Schedule IIE (EBS)'!R51+'Schedule IIF (EBS)'!R51","v":0},{"$f":"'Schedule IIB (EBS)'!T51+'Schedule IIC (EBS)'!T51+'Schedule IID (EBS)'!T51+'Schedule IIE (EBS)'!T51+'Schedule IIF (EBS)'!T51","v":0},null,0.2,null,{"$f":"MAX(D27-E27,0)+(F27-G27)+MAX(H27-I27,0)+(K27-J27)","v":0},null,{"$f":"MAX(D27-E27,0)+(F27-G27)+MAX(H27-I27,0)+(L27-J27)","v":0}]
[null,"Other Equities","Sch IIB, IIC, IID, IIE and IIF Line (28)",{"$f":"'Schedule IIB (EBS)'!D52+'Schedule IIC (EBS)'!D52+'Schedule IID (EBS)'!D52+'Schedule IIE (EBS)'!D52+'Schedule IIF (EBS)'!D52","v":0},{"$f":"'Schedule IIB (EBS)'!F52+'Schedule IIC (EBS)'!F52+'Schedule IID (EBS)'!F52+'Schedule IIE (EBS)'!F52+'Schedule IIF (EBS)'!F52","v":0},{"$f":"'Schedule IIB (EBS)'!H52+'Schedule IIC (EBS)'!H52+'Schedule IID (EBS)'!H52+'Schedule IIE (EBS)'!H52+'Schedule IIF (EBS)'!H52","v":0},{"$f":"'Schedule IIB (EBS)'!J52+'Schedule IIC (EBS)'!J52+'Schedule IID (EBS)'!J52+'Schedule IIE (EBS)'!J52+'Schedule IIF (EBS)'!J52","v":0},{"$f":"'Schedule IIB (EBS)'!L52+'Schedule IIC (EBS)'!L52+'Schedule IID (EBS)'!L52+'Schedule IIE (EBS)'!L52+'Schedule IIF (EBS)'!L52","v":0},{"$f":"'Schedule IIB (EBS)'!N52+'Schedule IIC (EBS)'!N52+'Schedule IID (EBS)'!N52+'Schedule IIE (EBS)'!N52+'Schedule IIF (EBS)'!N52","v":0},{"$f":"'Schedule IIB (EBS)'!P52+'Schedule IIC (EBS)'!P52+'Schedule IID (EBS)'!P52+'Schedule IIE (EBS)'!P52+'Schedule IIF (EBS)'!P52","v":0},{"$f":"'Schedule IIB (EBS)'!R52+'Schedule IIC (EBS)'!R52+'Schedule IID (EBS)'!R52+'Schedule IIE (EBS)'!R52+'Schedule IIF (EBS)'!R52","v":0},{"$f":"'Schedule IIB (EBS)'!T52+'Schedule IIC (EBS)'!T52+'Schedule IID (EBS)'!T52+'Schedule IIE (EBS)'!T52+'Schedule IIF (EBS)'!T52","v":0},null,0.45,null,0,null,0]
[null,"Letters of Credit","Sch IIB, IIC, IID, IIE and IIF Line (29)",{"$f":"'Schedule IIB (EBS)'!D53+'Schedule IIC (EBS)'!D53+'Schedule IID (EBS)'!D53+'Schedule IIE (EBS)'!D53+'Schedule IIF (EBS)'!D53","v":0},{"$f":"'Schedule IIB (EBS)'!F53+'Schedule IIC (EBS)'!F53+'Schedule IID (EBS)'!F53+'Schedule IIE (EBS)'!F53+'Schedule IIF (EBS)'!F53","v":0},{"$f":"'Schedule IIB (EBS)'!H53+'Schedule IIC (EBS)'!H53+'Schedule IID (EBS)'!H53+'Schedule IIE (EBS)'!H53+'Schedule IIF (EBS)'!H53","v":0},{"$f":"'Schedule IIB (EBS)'!J53+'Schedule IIC (EBS)'!J53+'Schedule IID (EBS)'!J53+'Schedule IIE (EBS)'!J53+'Schedule IIF (EBS)'!J53","v":0},{"$f":"'Schedule IIB (EBS)'!L53+'Schedule IIC (EBS)'!L53+'Schedule IID (EBS)'!L53+'Schedule IIE (EBS)'!L53+'Schedule IIF (EBS)'!L53","v":0},{"$f":"'Schedule IIB (EBS)'!N53+'Schedule IIC (EBS)'!N53+'Schedule IID (EBS)'!N53+'Schedule IIE (EBS)'!N53+'Schedule IIF (EBS)'!N53","v":0},{"$f":"'Schedule IIB (EBS)'!P53+'Schedule IIC (EBS)'!P53+'Schedule IID (EBS)'!P53+'Schedule IIE (EBS)'!P53+'Schedule IIF (EBS)'!P53","v":0},{"$f":"'Schedule IIB (EBS)'!R53+'Schedule IIC (EBS)'!R53+'Schedule IID (EBS)'!R53+'Schedule IIE (EBS)'!R53+'Schedule IIF (EBS)'!R53","v":0},{"$f":"'Schedule IIB (EBS)'!T53+'Schedule IIC (EBS)'!T53+'Schedule IID (EBS)'!T53+'Schedule IIE (EBS)'!T53+'Schedule IIF (EBS)'!T53","v":0},null,0.2,null,0,null,0]
[null,"Intangible assets","Sch IIB, IIC, IID, IIE and IIF Line (30)",{"$f":"'Schedule IIB (EBS)'!D54+'Schedule IIC (EBS)'!D54+'Schedule IID (EBS)'!D54+'Schedule IIE (EBS)'!D54+'Schedule IIF (EBS)'!D54","v":0},{"$f":"'Schedule IIB (EBS)'!F54+'Schedule IIC (EBS)'!F54+'Schedule IID (EBS)'!F54+'Schedule IIE (EBS)'!F54+'Schedule IIF (EBS)'!F54","v":0},{"$f":"'Schedule IIB (EBS)'!H54+'Schedule IIC (EBS)'!H54+'Schedule IID (EBS)'!H54+'Schedule IIE (EBS)'!H54+'Schedule IIF (EBS)'!H54","v":0},{"$f":"'Schedule IIB (EBS)'!J54+'Schedule IIC (EBS)'!J54+'Schedule IID (EBS)'!J54+'Schedule IIE (EBS)'!J54+'Schedule IIF (EBS)'!J54","v":0},{"$f":"'Schedule IIB (EBS)'!L54+'Schedule IIC (EBS)'!L54+'Schedule IID (EBS)'!L54+'Schedule IIE (EBS)'!L54+'Schedule IIF (EBS)'!L54","v":0},{"$f":"'Schedule IIB (EBS)'!N54+'Schedule IIC (EBS)'!N54+'Schedule IID (EBS)'!N54+'Schedule IIE (EBS)'!N54+'Schedule IIF (EBS)'!N54","v":0},{"$f":"'Schedule IIB (EBS)'!P54+'Schedule IIC (EBS)'!P54+'Schedule IID (EBS)'!P54+'Schedule IIE (EBS)'!P54+'Schedule IIF (EBS)'!P54","v":0},{"$f":"'Schedule IIB (EBS)'!R54+'Schedule IIC (EBS)'!R54+'Schedule IID (EBS)'!R54+'Schedule IIE (EBS)'!R54+'Schedule IIF (EBS)'!R54","v":0},{"$f":"'Schedule IIB (EBS)'!T54+'Schedule IIC (EBS)'!T54+'Schedule IID (EBS)'!T54+'Schedule IIE (EBS)'!T54+'Schedule IIF (EBS)'!T54","v":0},null,0.2,null,0,null,0]
[null,"Pension Benefit Surplus","Sch IIB, IIC, IID, IIE and IIF Line (31)",{"$f":"'Schedule IIB (EBS)'!D55+'Schedule IIC (EBS)'!D55+'Schedule IID (EBS)'!D55+'Schedule IIE (EBS)'!D55+'Schedule IIF (EBS)'!D55","v":0},{"$f":"'Schedule IIB (EBS)'!F55+'Schedule IIC (EBS)'!F55+'Schedule IID (EBS)'!F55+'Schedule IIE (EBS)'!F55+'Schedule IIF (EBS)'!F55","v":0},{"$f":"'Schedule IIB (EBS)'!H55+'Schedule IIC (EBS)'!H55+'Schedule IID (EBS)'!H55+'Schedule IIE (EBS)'!H55+'Schedule IIF (EBS)'!H55","v":0},{"$f":"'Schedule IIB (EBS)'!J55+'Schedule IIC (EBS)'!J55+'Schedule IID (EBS)'!J55+'Schedule IIE (EBS)'!J55+'Schedule IIF (EBS)'!J55","v":0},{"$f":"'Schedule IIB (EBS)'!L55+'Schedule IIC (EBS)'!L55+'Schedule IID (EBS)'!L55+'Schedule IIE (EBS)'!L55+'Schedule IIF (EBS)'!L55","v":0},{"$f":"'Schedule IIB (EBS)'!N55+'Schedule IIC (EBS)'!N55+'Schedule IID (EBS)'!N55+'Schedule IIE (EBS)'!N55+'Schedule IIF (EBS)'!N55","v":0},{"$f":"'Schedule IIB (EBS)'!P55+'Schedule IIC (EBS)'!P55+'Schedule IID (EBS)'!P55+'Schedule IIE (EBS)'!P55+'Schedule IIF (EBS)'!P55","v":0},{"$f":"'Schedule IIB (EBS)'!R55+'Schedule IIC (EBS)'!R55+'Schedule IID (EBS)'!R55+'Schedule IIE (EBS)'!R55+'Schedule IIF (EBS)'!R55","v":0},{"$f":"'Schedule IIB (EBS)'!T55+'Schedule IIC (EBS)'!T55+'Schedule IID (EBS)'!T55+'Schedule IIE (EBS)'!T55+'Schedule IIF (EBS)'!T55","v":0},null,0.2,null,0,null,0]
[null,"Equity Derivatives on Type 2 Equities","Sch IIB, IIC, IID, IIE and IIF Line (32)",{"$f":"'Schedule IIB (EBS)'!D56+'Schedule IIC (EBS)'!D56+'Schedule IID (EBS)'!D56+'Schedule IIE (EBS)'!D56+'Schedule IIF (EBS)'!D56","v":0},{"$f":"'Schedule IIB (EBS)'!F56+'Schedule IIC (EBS)'!F56+'Schedule IID (EBS)'!F56+'Schedule IIE (EBS)'!F56+'Schedule IIF (EBS)'!F56","v":0},{"$f":"'Schedule IIB (EBS)'!H56+'Schedule IIC (EBS)'!H56+'Schedule IID (EBS)'!H56+'Schedule IIE (EBS)'!H56+'Schedule IIF (EBS)'!H56","v":0},{"$f":"'Schedule IIB (EBS)'!J56+'Schedule IIC (EBS)'!J56+'Schedule IID (EBS)'!J56+'Schedule IIE (EBS)'!J56+'Schedule IIF (EBS)'!J56","v":0},{"$f":"'Schedule IIB (EBS)'!L56+'Schedule IIC (EBS)'!L56+'Schedule IID (EBS)'!L56+'Schedule IIE (EBS)'!L56+'Schedule IIF (EBS)'!L56","v":0},{"$f":"'Schedule IIB (EBS)'!N56+'Schedule IIC (EBS)'!N56+'Schedule IID (EBS)'!N56+'Schedule IIE (EBS)'!N56+'Schedule IIF (EBS)'!N56","v":0},{"$f":"'Schedule IIB (EBS)'!P56+'Schedule IIC (EBS)'!P56+'Schedule IID (EBS)'!P56+'Schedule IIE (EBS)'!P56+'Schedule IIF (EBS)'!P56","v":0},{"$f":"'Schedule IIB (EBS)'!R56+'Schedule IIC (EBS)'!R56+'Schedule IID (EBS)'!R56+'Schedule IIE (EBS)'!R56+'Schedule IIF (EBS)'!R56","v":0},{"$f":"'Schedule IIB (EBS)'!T56+'Schedule IIC (EBS)'!T56+'Schedule IID (EBS)'!T56+'Schedule IIE (EBS)'!T56+'Schedule IIF (EBS)'!T56","v":0},null,0.45,null,0,null,0]
[]
[null,"Subtotal - Type 2 Equity Holdings",null,{"$f":"SUM(D27:D33)","v":0},{"$f":"SUM(E27:E33)","v":0},0,0,0,0,0,0,{"$f":"SUM(L27:L33)","v":0},null,null,null,{"$f":"MAX(SUM(P27:P33),0)","v":0},null,{"$f":"MAX(SUM(R27:R33),0)","v":0}]
[]
[null,"Type 3 Equity Holdings"]
[null,"Infrastructure","Sch IIB, IIC, IID, IIE and IIF Line (33)",{"$f":"'Schedule IIB (EBS)'!D57+'Schedule IIC (EBS)'!D57+'Schedule IID (EBS)'!D57+'Schedule IIE (EBS)'!D57+'Schedule IIF (EBS)'!D57","v":0},{"$f":"'Schedule IIB (EBS)'!F57+'Schedule IIC (EBS)'!F57+'Schedule IID (EBS)'!F57+'Schedule IIE (EBS)'!F57+'Schedule IIF (EBS)'!F57","v":0},{"$f":"'Schedule IIB (EBS)'!H57+'Schedule IIC (EBS)'!H57+'Schedule IID (EBS)'!H57+'Schedule IIE (EBS)'!H57+'Schedule IIF (EBS)'!H57","v":0},{"$f":"'Schedule IIB (EBS)'!J57+'Schedule IIC (EBS)'!J57+'Schedule IID (EBS)'!J57+'Schedule IIE (EBS)'!J57+'Schedule IIF (EBS)'!J57","v":0},{"$f":"'Schedule IIB (EBS)'!L57+'Schedule IIC (EBS)'!L57+'Schedule IID (EBS)'!L57+'Schedule IIE (EBS)'!L57+'Schedule IIF (EBS)'!L57","v":0},{"$f":"'Schedule IIB (EBS)'!N57+'Schedule IIC (EBS)'!N57+'Schedule IID (EBS)'!N57+'Schedule IIE (EBS)'!N57+'Schedule IIF (EBS)'!N57","v":0},{"$f":"'Schedule IIB (EBS)'!P57+'Schedule IIC (EBS)'!P57+'Schedule IID (EBS)'!P57+'Schedule IIE (EBS)'!P57+'Schedule IIF (EBS)'!P57","v":0},{"$f":"'Schedule IIB (EBS)'!R57+'Schedule IIC (EBS)'!R57+'Schedule IID (EBS)'!R57+'Schedule IIE (EBS)'!R57+'Schedule IIF (EBS)'!R57","v":0},{"$f":"'Schedule IIB (EBS)'!T57+'Schedule IIC (EBS)'!T57+'Schedule IID (EBS)'!T57+'Schedule IIE (EBS)'!T57+'Schedule IIF (EBS)'!T57","v":0},null,0.25,null,{"$f":"MAX(D37-E37,0)+(F37-G37)+MAX(H37-I37,0)+(K37-J37)","v":0},null,{"$f":"MAX(D37-E37,0)+(F37-G37)+MAX(H37-I37,0)+(L37-J37)","v":0}]
[null,"Derivatives on Infrastructure","Sch IIB, IIC, IID, IIE and IIF Line (34)",{"$f":"'Schedule IIB (EBS)'!D58+'Schedule IIC (EBS)'!D58+'Schedule IID (EBS)'!D58+'Schedule IIE (EBS)'!D58+'Schedule IIF (EBS)'!D58","v":0},{"$f":"'Schedule IIB (EBS)'!F58+'Schedule IIC (EBS)'!F58+'Schedule IID (EBS)'!F58+'Schedule IIE (EBS)'!F58+'Schedule IIF (EBS)'!F58","v":0},{"$f":"'Schedule IIB (EBS)'!H58+'Schedule IIC (EBS)'!H58+'Schedule IID (EBS)'!H58+'Schedule IIE (EBS)'!H58+'Schedule IIF (EBS)'!H58","v":0},{"$f":"'Schedule IIB (EBS)'!J58+'Schedule IIC (EBS)'!J58+'Schedule IID (EBS)'!J58+'Schedule IIE (EBS)'!J58+'Schedule IIF (EBS)'!J58","v":0},{"$f":"'Schedule IIB (EBS)'!L58+'Schedule IIC (EBS)'!L58+'Schedule IID (EBS)'!L58+'Schedule IIE (EBS)'!L58+'Schedule IIF (EBS)'!L58","v":0},{"$f":"'Schedule IIB (EBS)'!N58+'Schedule IIC (EBS)'!N58+'Schedule IID (EBS)'!N58+'Schedule IIE (EBS)'!N58+'Schedule IIF (EBS)'!N58","v":0},{"$f":"'Schedule IIB (EBS)'!P58+'Schedule IIC (EBS)'!P58+'Schedule IID (EBS)'!P58+'Schedule IIE (EBS)'!P58+'Schedule IIF (EBS)'!P58","v":0},{"$f":"'Schedule IIB (EBS)'!R58+'Schedule IIC (EBS)'!R58+'Schedule IID (EBS)'!R58+'Schedule IIE (EBS)'!R58+'Schedule IIF (EBS)'!R58","v":0},{"$f":"'Schedule IIB (EBS)'!T58+'Schedule IIC (EBS)'!T58+'Schedule IID (EBS)'!T58+'Schedule IIE (EBS)'!T58+'Schedule IIF (EBS)'!T58","v":0},null,0.25,null,{"$f":"MAX(D38-E38,0)+(F38-G38)+MAX(H38-I38,0)+(K38-J38)","v":0},null,0]
[]
[null,"Subtotal - Type 3 Equity Holdings",null,{"$f":"SUM(D37:D39)","v":0},{"$f":"SUM(E37:E39)","v":0},0,0,0,0,0,0,{"$f":"SUM(L37:L39)","v":0},null,null,null,{"$f":"MAX(SUM(P37:P39),0)","v":0},null,{"$f":"MAX(SUM(R37:R39),0)","v":0}]
[]
[null,"Type 4 Equity Holdings"]
[null,"Equity Real Estate 1","Sch IIB, IIC, IID, IIE and IIF Line (35)",{"$f":"'Schedule IIB (EBS)'!D59+'Schedule IIC (EBS)'!D59+'Schedule IID (EBS)'!D59+'Schedule IIE (EBS)'!D59+'Schedule IIF (EBS)'!D59","v":0},{"$f":"'Schedule IIB (EBS)'!F59+'Schedule IIC (EBS)'!F59+'Schedule IID (EBS)'!F59+'Schedule IIE (EBS)'!F59+'Schedule IIF (EBS)'!F59","v":0},{"$f":"'Schedule IIB (EBS)'!H59+'Schedule IIC (EBS)'!H59+'Schedule IID (EBS)'!H59+'Schedule IIE (EBS)'!H59+'Schedule IIF (EBS)'!H59","v":0},{"$f":"'Schedule IIB (EBS)'!J59+'Schedule IIC (EBS)'!J59+'Schedule IID (EBS)'!J59+'Schedule IIE (EBS)'!J59+'Schedule IIF (EBS)'!J59","v":0},{"$f":"'Schedule IIB (EBS)'!L59+'Schedule IIC (EBS)'!L59+'Schedule IID (EBS)'!L59+'Schedule IIE (EBS)'!L59+'Schedule IIF (EBS)'!L59","v":0},{"$f":"'Schedule IIB (EBS)'!N59+'Schedule IIC (EBS)'!N59+'Schedule IID (EBS)'!N59+'Schedule IIE (EBS)'!N59+'Schedule IIF (EBS)'!N59","v":0},{"$f":"'Schedule IIB (EBS)'!P59+'Schedule IIC (EBS)'!P59+'Schedule IID (EBS)'!P59+'Schedule IIE (EBS)'!P59+'Schedule IIF (EBS)'!P59","v":0},{"$f":"'Schedule IIB (EBS)'!R59+'Schedule IIC (EBS)'!R59+'Schedule IID (EBS)'!R59+'Schedule IIE (EBS)'!R59+'Schedule IIF (EBS)'!R59","v":0},{"$f":"'Schedule IIB (EBS)'!T59+'Schedule IIC (EBS)'!T59+'Schedule IID (EBS)'!T59+'Schedule IIE (EBS)'!T59+'Schedule IIF (EBS)'!T59","v":0},null,0.1,null,{"$f":"MAX(D43-E43,0)+(F43-G43)+MAX(H43-I43,0)+(K43-J43)","v":0},null,{"$f":"MAX(D43-E43,0)+(F43-G43)+MAX(H43-I43,0)+(L43-J43)","v":0}]
[null,"Equity Real Estate 2","Sch IIB, IIC, IID, IIE and IIF Line (36)",{"$f":"'Schedule IIB (EBS)'!D60+'Schedule IIC (EBS)'!D60+'Schedule IID (EBS)'!D60+'Schedule IIE (EBS)'!D60+'Schedule IIF (EBS)'!D60","v":0},{"$f":"'Schedule IIB (EBS)'!F60+'Schedule IIC (EBS)'!F60+'Schedule IID (EBS)'!F60+'Schedule IIE (EBS)'!F60+'Schedule IIF (EBS)'!F60","v":0},{"$f":"'Schedule IIB (EBS)'!H60+'Schedule IIC (EBS)'!H60+'Schedule IID (EBS)'!H60+'Schedule IIE (EBS)'!H60+'Schedule IIF (EBS)'!H60","v":0},{"$f":"'Schedule IIB (EBS)'!J60+'Schedule IIC (EBS)'!J60+'Schedule IID (EBS)'!J60+'Schedule IIE (EBS)'!J60+'Schedule IIF (EBS)'!J60","v":0},{"$f":"'Schedule IIB (EBS)'!L60+'Schedule IIC (EBS)'!L60+'Schedule IID (EBS)'!L60+'Schedule IIE (EBS)'!L60+'Schedule IIF (EBS)'!L60","v":0},{"$f":"'Schedule IIB (EBS)'!N60+'Schedule IIC (EBS)'!N60+'Schedule IID (EBS)'!N60+'Schedule IIE (EBS)'!N60+'Schedule IIF (EBS)'!N60","v":0},{"$f":"'Schedule IIB (EBS)'!P60+'Schedule IIC (EBS)'!P60+'Schedule IID (EBS)'!P60+'Schedule IIE (EBS)'!P60+'Schedule IIF (EBS)'!P60","v":0},{"$f":"'Schedule IIB (EBS)'!R60+'Schedule IIC (EBS)'!R60+'Schedule IID (EBS)'!R60+'Schedule IIE (EBS)'!R60+'Schedule IIF (EBS)'!R60","v":0},{"$f":"'Schedule IIB (EBS)'!T60+'Schedule IIC (EBS)'!T60+'Schedule IID (EBS)'!T60+'Schedule IIE (EBS)'!T60+'Schedule IIF (EBS)'!T60","v":0},null,0.2,null,{"$f":"MAX(D44-E44,0)+(F44-G44)+MAX(H44-I44,0)+(K44-J44)","v":0},null,0]
[]
[null,"Subtotal - Type 4 Equity Holdings",null,{"$f":"SUM(D43:D45)","v":0},{"$f":"SUM(E43:E45)","v":0},0,0,0,0,0,{"$f":"SUM(K43:K45)","v":0},{"$f":"SUM(L43:L45)","v":0},null,null,null,{"$f":"MAX(SUM(P43:P45),0)","v":0},null,{"$f":"MAX(SUM(R43:R45),0)","v":0}]
[]
[null,"Total Equity Risk before Diversification",null,{"$f":"D40+D34+D24+D46","v":0},{"$f":"E40+E34+E24+E46","v":0},0,0,0,0,0,{"$f":"K40+K34+K24+K46","v":0},{"$f":"L40+L34+L24+L46","v":0},null,null,null,{"$f":"P40+P34+P24+P46","v":0},null,{"$f":"R40+R34+R24+R46","v":0}]
[]
[null,"Aggregation of Risks","Correlation Matrix","Type 1","Type 2","Type 3","Type 4"]
[null,null,"Type 1",1,0.75,0.75,0.5,null,null,null,null,null,null,"Total Type 1 Risk ",null,{"$f":"P24","v":0},null,{"$f":"R24","v":0}]
[null,null,"Type 2",0.75,1,0.75,0.5,null,null,null,null,null,null,"Total Type 2 Risk ",null,{"$f":"P34","v":0},null,{"$f":"R34","v":0}]
[null,null,"Type 3",0.75,0.75,1,0.5,null,null,null,null,null,null,"Total Type 3 Risk",null,{"$f":"P40","v":0},null,{"$f":"R40","v":0}]
[null,null,"Type 4",0.5,0.5,0.5,1,null,null,null,null,null,null,"Total Type 4 Risk",null,{"$f":"P46","v":0},null,{"$f":"R46","v":0}]
[]
[null,"Total Equity Risk (Post Diversification) ",null,null,null,null,null,null,null,null,null,null,null,null,null,{"$f":"SQRT(MMULT(TRANSPOSE($P$51:$P$54),MMULT($D$51:$G$54,$P$51:$P$54)))","v":0},null,{"$f":"SQRT(MMULT(TRANSPOSE($R$51:$R$54),MMULT($D$51:$G$54,$R$51:$R$54)))","v":0}]

{"sheet":"Equity Grandfathering","index":95,"n_rows":51,"n_cols":17,"rows_kept":51,"cut":false,"hidden":false,"merged":[[12,1,12,4],[0,16,0,17]]}
[null,null,null,"Calculation of Grandfathered Equity Limits",null,null,null,null,null,null,null,null,null,"Application of Grandfathered Equity Limits",null,null,{"$f":"HYPERLINK(\"#'Index'!A1\",\"Return to Index\")","v":"Return to Index"}]
[]
[null,null,null,null,null,null,null,null,null,null,null,null,"Application of Grandfathered Equity Limits"]
[]
[null,null,null,null,null,null,null,null,null,null,null,null,null,"Current"]
[null,null,null,null,null,null,null,null,null,null,null,null,"Year",{"$f":"YEAR('Insurer Information'!C3)","v":2023}]
[null,null,null,null,null,null,null,null,null,null,null,null,"Legacy Reserves",0]
[null,null,null,null,null,null,null,null,null,null,null,null,"Other reserves",0]
[null,null,null,null,null,null,null,null,null,null,null,null,"Capped legacy reserves",{"$f":"MIN(N7,E46)","v":0}]
[null,null,null,null,null,null,null,null,null,null,null,null,"Grandfathered percentage",{"$f":"F50","v":0}]
[null,null,null,null,null,null,null,null,null,null,null,null,"Grandfathered Equities",{"$f":"N10*N9","v":0}]
[]
[null,"Historical Equity Holdings",null,null,null,null,null,null,"Percentages"]
[null,"Year",2016,2017,2018,null,2016,2017,2018,"Average",null,null,null,"Available for","Actual Market Value","Grandfathered","Non-Grandfathered"]
[null,"Type 1",null,null,null,null,null,null,null,null,null,null,"Type 1","Grandfathering","as of Valuation Date","Amount","Amount"]
["Equity classes","Strategic Holdings - Listed",null,null,null,null,{"$f":"IF(C$42=0,0,C16/C$42)","v":0},0,0,{"$f":"AVERAGE(G16:I16)","v":0},null,null,"Strategic Holdings - Listed",{"$f":"N$11*$J16","v":0},{"$f":"'Schedule IIB (EBS)'!D39+'Schedule IIC (EBS)'!D39+'Schedule IID (EBS)'!D39+'Schedule IIE (EBS)'!D39+'Schedule IIF (EBS)'!D39","v":0},{"$f":"MIN(N16,O16)","v":0},{"$f":"O16-P16","v":0}]
[null,"Duration based",null,null,null,null,0,0,0,{"$f":"AVERAGE(G17:I17)","v":0},null,null,"Duration based",{"$f":"N$11*$J17","v":0},{"$f":"'Schedule IIB (EBS)'!D40+'Schedule IIC (EBS)'!D40+'Schedule IID (EBS)'!D40+'Schedule IIE (EBS)'!D40+'Schedule IIF (EBS)'!D40","v":0},{"$f":"MIN(N17,O17)","v":0},{"$f":"O17-P17","v":0}]
[null,"Listed equities in developed markets",null,null,null,null,0,0,0,{"$f":"AVERAGE(G18:I18)","v":0},null,null,"Listed equities in developed markets",{"$f":"N$11*$J18","v":0},{"$f":"'Schedule IIB (EBS)'!D41+'Schedule IIC (EBS)'!D41+'Schedule IID (EBS)'!D41+'Schedule IIE (EBS)'!D41+'Schedule IIF (EBS)'!D41","v":0},0,0]
[null,"Preferred Stocks, BSCR Rating 1",null,null,null,null,0,0,0,{"$f":"AVERAGE(G19:I19)","v":0},null,null,"Preferred Stocks, BSCR Rating 1",{"$f":"N$11*$J19","v":0},{"$f":"'Schedule IIB (EBS)'!D42+'Schedule IIC (EBS)'!D42+'Schedule IID (EBS)'!D42+'Schedule IIE (EBS)'!D42+'Schedule IIF (EBS)'!D42","v":0},0,0]
[null,"Preferred Stocks, BSCR Rating 2",null,null,null,null,0,0,0,{"$f":"AVERAGE(G20:I20)","v":0},null,null,"Preferred Stocks, BSCR Rating 2",{"$f":"N$11*$J20","v":0},{"$f":"'Schedule IIB (EBS)'!D43+'Schedule IIC (EBS)'!D43+'Schedule IID (EBS)'!D43+'Schedule IIE (EBS)'!D43+'Schedule IIF (EBS)'!D43","v":0},0,0]
[null,"Preferred Stocks, BSCR Rating 3",null,null,null,null,0,0,0,0,null,null,"Preferred Stocks, BSCR Rating 3",0,{"$f":"'Schedule IIB (EBS)'!D44+'Schedule IIC (EBS)'!D44+'Schedule IID (EBS)'!D44+'Schedule IIE (EBS)'!D44+'Schedule IIF (EBS)'!D44","v":0},0,0]
[null,"Preferred Stocks, BSCR Rating 4",null,null,null,null,0,0,0,0,null,null,"Preferred Stocks, BSCR Rating 4",0,{"$f":"'Schedule IIB (EBS)'!D45+'Schedule IIC (EBS)'!D45+'Schedule IID (EBS)'!D45+'Schedule IIE (EBS)'!D45+'Schedule IIF (EBS)'!D45","v":0},0,0]
[null,"Preferred Stocks, BSCR Rating 5",null,null,null,null,0,0,0,0,null,null,"Preferred Stocks, BSCR Rating 5",0,{"$f":"'Schedule IIB (EBS)'!D46+'Schedule IIC (EBS)'!D46+'Schedule IID (EBS)'!D46+'Schedule IIE (EBS)'!D46+'Schedule IIF (EBS)'!D46","v":0},0,0]
[null,"Preferred Stocks, BSCR Rating 6",null,null,null,null,0,0,0,0,null,null,"Preferred Stocks, BSCR Rating 6",0,{"$f":"'Schedule IIB (EBS)'!D47+'Schedule IIC (EBS)'!D47+'Schedule IID (EBS)'!D47+'Schedule IIE (EBS)'!D47+'Schedule IIF (EBS)'!D47","v":0},0,0]
[null,"Preferred Stocks, BSCR Rating 7",null,null,null,null,0,0,0,0,null,null,"Preferred Stocks, BSCR Rating 7",0,{"$f":"'Schedule IIB (EBS)'!D48+'Schedule IIC (EBS)'!D48+'Schedule IID (EBS)'!D48+'Schedule IIE (EBS)'!D48+'Schedule IIF (EBS)'!D48","v":0},0,0]
[null,"Preferred Stocks, BSCR Rating 8",null,null,null,null,0,0,0,0,null,null,"Preferred Stocks, BSCR Rating 8",0,{"$f":"'Schedule IIB (EBS)'!D49+'Schedule IIC (EBS)'!D49+'Schedule IID (EBS)'!D49+'Schedule IIE (EBS)'!D49+'Schedule IIF (EBS)'!D49","v":0},0,0]
[null,"Equity derivatives on type 1",null,null,null,null,0,0,0,0,null,null,"Equity derivatives on type 1",0,{"$f":"'Schedule IIB (EBS)'!D50+'Schedule IIC (EBS)'!D50+'Schedule IID (EBS)'!D50+'Schedule IIE (EBS)'!D50+'Schedule IIF (EBS)'!D50","v":0},0,0]
[null,"Type 2",null,null,null,null,null,null,null,null,null,null,"Type 2"]
[null,"Strategic Holdings- Unlisted",null,null,null,null,{"$f":"IF(C$42=0,0,C29/C$42)","v":0},0,0,{"$f":"AVERAGE(G29:I29)","v":0},null,null,"Strategic Holdings- Unlisted",{"$f":"N$11*$J29","v":0},{"$f":"'Schedule IIB (EBS)'!D51+'Schedule IIC (EBS)'!D51+'Schedule IID (EBS)'!D51+'Schedule IIE (EBS)'!D51+'Schedule IIF (EBS)'!D51","v":0},0,0]
[null,"Other Equities",null,null,null,null,0,0,0,0,null,null,"Other Equities",0,{"$f":"'Schedule IIB (EBS)'!D52+'Schedule IIC (EBS)'!D52+'Schedule IID (EBS)'!D52+'Schedule IIE (EBS)'!D52+'Schedule IIF (EBS)'!D52","v":0},0,0]
[null,"Letters of Credit",null,null,null,null,0,0,0,0,null,null,"Letters of Credit",0,{"$f":"'Schedule IIB (EBS)'!D53+'Schedule IIC (EBS)'!D53+'Schedule IID (EBS)'!D53+'Schedule IIE (EBS)'!D53+'Schedule IIF (EBS)'!D53","v":0},0,0]
[null,"Intangible Assets",null,null,null,null,0,0,0,0,null,null,"Intangible Assets",0,{"$f":"'Schedule IIB (EBS)'!D54+'Schedule IIC (EBS)'!D54+'Schedule IID (EBS)'!D54+'Schedule IIE (EBS)'!D54+'Schedule IIF (EBS)'!D54","v":0},0,0]
[null,"Pension Benefit Surplus",null,null,null,null,0,0,0,0,null,null,"Pension Benefit Surplus",0,{"$f":"'Schedule IIB (EBS)'!D55+'Schedule IIC (EBS)'!D55+'Schedule IID (EBS)'!D55+'Schedule IIE (EBS)'!D55+'Schedule IIF (EBS)'!D55","v":0},0,0]
[null,"Equity Derivatives on Type 2",null,null,null,null,0,0,0,0,null,null,"Equity Derivatives on Type 2",0,{"$f":"'Schedule IIB (EBS)'!D56+'Schedule IIC (EBS)'!D56+'Schedule IID (EBS)'!D56+'Schedule IIE (EBS)'!D56+'Schedule IIF (EBS)'!D56","v":0},0,0]
[null,"Type 3",null,null,null,null,null,null,null,null,null,null,"Type 3"]
[null,"Infrastructure",null,null,null,null,{"$f":"IF(C$42=0,0,C36/C$42)","v":0},0,0,0,null,null,"Infrastructure",{"$f":"N$11*$J36","v":0},{"$f":"'Schedule IIB (EBS)'!D57+'Schedule IIC (EBS)'!D57+'Schedule IID (EBS)'!D57+'Schedule IIE (EBS)'!D57+'Schedule IIF (EBS)'!D57","v":0},0,0]
[null,"Derivatives on Infrastructure",null,null,null,null,0,0,0,0,null,null,"Derivatives on Infrastructure",{"$f":"N$11*$J37","v":0},{"$f":"'Schedule IIB (EBS)'!D58+'Schedule IIC (EBS)'!D58+'Schedule IID (EBS)'!D58+'Schedule IIE (EBS)'!D58+'Schedule IIF (EBS)'!D58","v":0},0,0]
[null,"Type 4",null,null,null,null,null,null,null,null,null,null,"Type 4"]
[null,"Equity real estate 1",null,null,null,null,{"$f":"IF(C$42=0,0,C39/C$42)","v":0},0,0,0,null,null,"Equity real estate 1",{"$f":"N$11*$J39","v":0},{"$f":"'Schedule IIB (EBS)'!D59+'Schedule IIC (EBS)'!D59+'Schedule IID (EBS)'!D59+'Schedule IIE (EBS)'!D59+'Schedule IIF (EBS)'!D59","v":0},0,0]
[null,"Equity real estate 2",null,null,null,null,0,0,0,0,null,null,"Equity real estate 2",{"$f":"N$11*$J40","v":0},{"$f":"'Schedule IIB (EBS)'!D60+'Schedule IIC (EBS)'!D60+'Schedule IID (EBS)'!D60+'Schedule IIE (EBS)'!D60+'Schedule IIF (EBS)'!D60","v":0},0,0]
[null,null,null,null,null,null,null,null,null,{"$f":"SUM(J16:J40)","v":0},null,null,"Total",{"$f":"SUM(N16:N40)","v":0},{"$f":"SUM(O16:O40)","v":0},{"$f":"SUM(P16:P40)","v":0},{"$f":"SUM(Q16:Q40)","v":0}]
[null,"Total",{"$f":"SUM(C16:C40)","v":0},{"$f":"SUM(D16:D40)","v":0},{"$f":"SUM(E16:E40)","v":0},null,null,null,null,null,null,null,"In Equity Risk Calculations",null,{"$f":"'Equity Investments (Revised)'!D48","v":0},{"$f":"'Equity Investments (Grandf)'!$D$51","v":0},{"$f":"'Equity Investments (Non-Grandf)'!$D$48","v":0}]
[null,null,null,null,null,null,null,null,null,null,null,null,"Check",null,{"$f":"O41-O42","v":0},{"$f":"P41-P42","v":0},{"$f":"Q41-Q42","v":0}]
[null,"P&C reserves",null,null,null,null,null,null,null,null,null,null,null,null,{"$f":"IF(ROUND(O43,0)<>0,\"Actual amount of equities must match the amount of equities filled in the new equity risk calculation without Grandfathering\",\"OK\")","v":"OK"},{"$f":"IF(ROUND(P43,0)<>0,\"Amount of equities included in the Grandfathered equity risk calculation must match the Grandfathered Amount here\",\"OK\")","v":"OK"},{"$f":"IF(ROUND(Q43,0)<>0,\"Amount of equities included in the new Non-Grandfathered equity risk calculation must match the Non-Grandfathered Amount here\",\"OK\")","v":"OK"}]
[]
[null,"Long-Term Reserves"]
[null,"Percentage",{"$f":"IF(C46=0,0,C42/C46)","v":0},{"$f":"IF(D46=0,0,D42/D46)","v":0},{"$f":"IF(E46=0,0,E42/E46)","v":0}]
[null,"Average 3 year %",null,null,null,{"$f":"AVERAGE(C47:E47)","v":0}]
[null,"Long-Term reserves % of total",null,null,null,{"$f":"IF((E46+E44)=0,0,E46/(E46+E44))","v":0}]
[null,"Allowable average 3 year %",null,null,null,{"$f":"F49*F48","v":0}]
[null,"Grandfathered Equity amount",null,null,null,{"$f":"F50*E46","v":0}]

{"sheet":"Equity Investments (Grandf)","index":96,"n_rows":51,"n_cols":6,"rows_kept":51,"cut":false,"hidden":false,"merged":[[0,5,0,6],[52,0,52,1]]}
["EQUITY INVESTMENTS - GRANDFATHERED EQUITY PORTION ONLY",null,null,null,null,{"$f":"HYPERLINK(\"#'Index'!A1\",\"Return to Index\")","v":"Return to Index"}]
[{"$f":"'Insurer Information'!C7","v":"Enter Company Name"}]
[{"$f":"\"Equity Investment Risk\"& \" ($\" & IF(CONFIGURATION!$B$12>1,\"'\"&MID(CONFIGURATION!$B$12,2,LEN(CONFIGURATION!$B$12)),\"\") & \")\"","v":"Equity Investment Risk ($'000)"},null,{"$f":" TEXT('Insurer Information'!C3,\"D MMMM YYYY\")","v":"31 December 2023"},"(1)","(2)","(3)"]
[]
[]
[null,"TYPE OF ",null,"ASSET","CAPITAL","REQUIRED"]
[null,"EQUITY INVESTMENTS","STATEMENT SOURCE","VALUE","FACTOR","CAPITAL"]
[]
[null,"(a)  Common Stocks",null,null,null,"(1) x (2)"]
[]
[null,"Non-Affiliated (Quoted)","Sch II EBS, Line (19), Column (1) and Sch IIA EBS, Line (19), Column (1)",{"$f":"'Grandfathered Equity Part'!D11","v":0},0.14399999999999999,{"$f":"IF(D11<0,0,D11*E11)","v":0}]
[null,"Non-Affiliated (Unquoted)","Sch II EBS, Line (20), Column (1) and Sch IIA EBS, Line (20), Column (1)",{"$f":"'Grandfathered Equity Part'!D12","v":0},0.14399999999999999,{"$f":"IF(D12<0,0,D12*E12)","v":0}]
[null,"Equity mutual funds","Sch II EBS, Line (21), Column (5) and Sch IIA EBS, Line (21), Column (5)",{"$f":"'Grandfathered Equity Part'!D13","v":0},0.14399999999999999,{"$f":"IF(D13<0,0,D13*E13)","v":0}]
[]
[null,"(a)  SUBTOTAL - COMMON STOCKS",null,{"$f":"SUM(D11:D13)","v":0},null,{"$f":"MAX(0,(SUM(F11:F13)))","v":0}]
[]
[null,"(b)  Preferred Stocks"]
[]
[null,"BSCR Rating"]
[null,1,"Sch II EBS, Line (11), Column (3) and Sch IIA EBS, Line (11), Column (3)",{"$f":"'Grandfathered Equity Part'!D20","v":0},6.0000000000000001E-3,{"$f":"IF(D20<0,0,D20*E20)","v":0}]
[null,2,"Sch II EBS, Line (12), Column (3) and Sch IIA EBS, Line (12), Column (3)",{"$f":"'Grandfathered Equity Part'!D21","v":0},1.2E-2,0]
[null,3,"Sch II EBS, Line (13), Column (3) and Sch IIA EBS, Line (13), Column (3)",{"$f":"'Grandfathered Equity Part'!D22","v":0},0.02,0]
[null,4,"Sch II EBS, Line (14), Column (3) and Sch IIA EBS, Line (14), Column (3)",{"$f":"'Grandfathered Equity Part'!D23","v":0},0.04,0]
[null,5,"Sch II EBS, Line (15), Column (3) and Sch IIA EBS, Line (15), Column (3)",{"$f":"'Grandfathered Equity Part'!D24","v":0},0.11,0]
[null,6,"Sch II EBS, Line (16), Column (3) and Sch IIA EBS, Line (16), Column (3)",{"$f":"'Grandfathered Equity Part'!D25","v":0},0.25,0]
[null,7,"Sch II EBS, Line (17), Column (3) and Sch IIA EBS, Line (17), Column (3)",{"$f":"'Grandfathered Equity Part'!D26","v":0},0.35,0]
[null,8,"Sch II EBS, Line (18), Column (3) and Sch IIA EBS, Line (18), Column (3)",{"$f":"'Grandfathered Equity Part'!D27","v":0},0.35,0]
[]
[null,"(b)  SUBTOTAL - PREFERRED STOCKS",null,{"$f":"SUM(D19:D27)","v":0},null,{"$f":"MAX(0,(SUM(F19:F27)))","v":0}]
[]
[null,"(c)  Other Equity Investments"]
[]
[null,"Real Estate"]
[null,"Company-Occupied Less Encumbrances","Form 4EBS, Line (7a)",{"$f":"'Grandfathered Equity Part'!D34","v":0},0.1,{"$f":"IF(D34<0,0,D34*E34)","v":0}]
[null,"Investments Less Encumbrances","Form 4EBS, Line (7b)",{"$f":"'Grandfathered Equity Part'!D35","v":0},0.2,{"$f":"IF(D35<0,0,D35*E35)","v":0}]
[]
[null,"Other Equity Investments","Form 4EBS, Lines (2e), (3e) & Schedule IIA EBS, Line 21, Column (7)",{"$f":"'Grandfathered Equity Part'!D37","v":0},0.2,{"$f":"IF(D37<0,0,D37*E37)","v":0}]
[null,"Other Tangible Assets (Net of Segregated Accounts Companies)","Form 4EBS, Lines (13k), (14d), and (36f) Less Form 4EBS, Lines (13b), (13c) and (13h)",{"$f":"'Grandfathered Equity Part'!D38","v":0},0.2,{"$f":"IF(D38<0,0,D38*E38)","v":0}]
[]
[null,"(c)  SUBTOTAL - OTHER EQUITY INVESTMENTS",null,{"$f":"SUM(D34:D35,D37:D38)","v":0},null,{"$f":"MAX(0,(SUM(F34:F38)))","v":0}]
[]
[null,"(d)  Investments in Affiliates"]
[]
[null,"Unregulated Entities That Conduct Ancillary Services","Form 4EBS, Line (4a)",{"$f":"'Grandfathered Equity Part'!D44","v":0},0.05,{"$f":"IF(D44<0,0,D44*E44)","v":0}]
[null,"Unregulated Non-Financial Operating Entities","Form 4EBS, Line (4b)",{"$f":"'Grandfathered Equity Part'!D45","v":0},0.2,{"$f":"IF(D45<0,0,D45*E45)","v":0}]
[null,"Unregulated Financial Operating Entities","Form 4EBS, Line (4c)",{"$f":"'Grandfathered Equity Part'!D46","v":0},0.55000000000000004,{"$f":"IF(D46<0,0,D46*E46)","v":0}]
[null,"Regulated Insurance Financial Operating Entities","Form 4EBS, Line (4e)",{"$f":"'Grandfathered Equity Part'!D47","v":0},0.2,{"$f":"IF(D47<0,0,D47*E47)","v":0}]
[]
[null,"(d)  SUBTOTAL - INVESTMENTS IN AFFILIATES",null,{"$f":"SUM(D44:D47)","v":0},null,{"$f":"MAX(0,SUM(F44:F47))","v":0}]
[]
[null,"(e)  TOTAL EQUITY INVESTMENTS [ (a) + (b) + (c) + (d) ]",null,{"$f":"D15+D29+D40+D49","v":0},null,{"$f":"MAX(0,(F15+F29+F40+F49))","v":0}]

{"sheet":"Equity Investments (Non-Grandf)","index":97,"n_rows":58,"n_cols":18,"rows_kept":58,"cut":false,"hidden":false,"merged":[[6,5,6,6],[6,7,6,8],[59,0,59,1],[0,17,0,18],[4,3,4,8],[4,9,4,11],[4,15,6,15],[5,3,6,4],[5,5,5,8],[5,9,6,9],[5,10,6,10],[5,11,6,11],[5,17,6,17]]}
["EQUITY INVESTMENTS (REVISED) - NON-GRANDFATHERED EQUITY PORTION ONLY",null,null,null,null,null,null,null,null,null,null,null,null,null,null,null,null,{"$f":"HYPERLINK(\"#'Index'!A1\",\"Return to Index\")","v":"Return to Index"}]
[{"$f":"'Insurer Information'!C7","v":"Enter Company Name"}]
[{"$f":"\"Equity Investment Risk\"& \" ($\" & IF(CONFIGURATION!$B$12>1,\"'\"&MID(CONFIGURATION!$B$12,2,LEN(CONFIGURATION!$B$12)),\"\") & \")\"","v":"Equity Investment Risk ($'000)"},null,{"$f":" TEXT('Insurer Information'!C3,\"D MMMM YYYY\")","v":"31 December 2023"},null,null,null,null,null,null,null,null,null,null,null,null,null,null,"(3)"]
[]
[null,null,null,"ASSETS",null,null,null,null,null,"LIABILITIES",null,null,null,null,null,"WITHOUT MANAGEMENT ACTIONS"]
[null,null,null,"Long Exposure",null,"Short Exposure",null,null,null,null,"Without Mgmt Actions","With Mgmt Actions",null,null,null,null,null,"WITH MANAGEMENT ACTIONS"]
[null,"TYPE OF ",null,null,null,"Qualifying as Assets held for risk-mitigation purposes",null,"Not Qualifying as Assets held for risk-mitigation purposes",null,null,null,null,null,"CAPITAL"]
[null,"EQUITY INVESTMENTS","STATEMENT SOURCE","Before Shock","After Shock","Before Shock","After Shock","Before Shock","After Shock","Before Shock","After Shock","After Shock",null,"FACTOR",null,"REQUIRED CAPITAL",null,"CAPITAL"]
[]
[null,"Type 1 Equity Holdings"]
[null,"Strategic Holdings - Listed","Sch IIB, IIC, IID, IIE and IIF Line (15)",{"$f":"'Non-Grandfathered Equity Part'!D15","v":0},{"$f":"'Non-Grandfathered Equity Part'!F15","v":0},{"$f":"'Non-Grandfathered Equity Part'!H15","v":0},{"$f":"'Non-Grandfathered Equity Part'!J15","v":0},{"$f":"'Non-Grandfathered Equity Part'!L15","v":0},{"$f":"'Non-Grandfathered Equity Part'!N15","v":0},{"$f":"'Non-Grandfathered Equity Part'!P15","v":0},{"$f":"'Non-Grandfathered Equity Part'!R15","v":0},{"$f":"'Non-Grandfathered Equity Part'!T15","v":0},null,0.2,null,{"$f":"MAX(D11-E11,0)+(F11-G11)+MAX(H11-I11,0)+(K11-J11)","v":0},null,{"$f":"MAX(D11-E11,0)+(F11-G11)+MAX(H11-I11,0)+(L11-J11)","v":0}]
[null,"Duration Based","Sch IIB, IIC, IID, IIE and IIF Line (16)",{"$f":"'Non-Grandfathered Equity Part'!D16","v":0},{"$f":"'Non-Grandfathered Equity Part'!F16","v":0},{"$f":"'Non-Grandfathered Equity Part'!H16","v":0},{"$f":"'Non-Grandfathered Equity Part'!J16","v":0},{"$f":"'Non-Grandfathered Equity Part'!L16","v":0},{"$f":"'Non-Grandfathered Equity Part'!N16","v":0},{"$f":"'Non-Grandfathered Equity Part'!P16","v":0},{"$f":"'Non-Grandfathered Equity Part'!R16","v":0},{"$f":"'Non-Grandfathered Equity Part'!T16","v":0},null,0.2,null,0,null,{"$f":"MAX(D12-E12,0)+(F12-G12)+MAX(H12-I12,0)+(L12-J12)","v":0}]
[null,"Listed Equity Securities in Developed Markets","Sch IIB, IIC, IID, IIE and IIF Line (17)",{"$f":"'Non-Grandfathered Equity Part'!D17","v":0},{"$f":"'Non-Grandfathered Equity Part'!F17","v":0},{"$f":"'Non-Grandfathered Equity Part'!H17","v":0},{"$f":"'Non-Grandfathered Equity Part'!J17","v":0},{"$f":"'Non-Grandfathered Equity Part'!L17","v":0},{"$f":"'Non-Grandfathered Equity Part'!N17","v":0},{"$f":"'Non-Grandfathered Equity Part'!P17","v":0},{"$f":"'Non-Grandfathered Equity Part'!R17","v":0},{"$f":"'Non-Grandfathered Equity Part'!T17","v":0},null,0.35,null,0,null,0]
[null,"Preferred Stocks, BSCR Rating 1","Sch IIB, IIC, IID, IIE and IIF Line (18)",{"$f":"'Non-Grandfathered Equity Part'!D18","v":0},{"$f":"'Non-Grandfathered Equity Part'!F18","v":0},{"$f":"'Non-Grandfathered Equity Part'!H18","v":0},{"$f":"'Non-Grandfathered Equity Part'!J18","v":0},{"$f":"'Non-Grandfathered Equity Part'!L18","v":0},{"$f":"'Non-Grandfathered Equity Part'!N18","v":0},{"$f":"'Non-Grandfathered Equity Part'!P18","v":0},{"$f":"'Non-Grandfathered Equity Part'!R18","v":0},{"$f":"'Non-Grandfathered Equity Part'!T18","v":0},null,6.0000000000000001E-3,null,0,null,0]
[null,"Preferred Stocks, BSCR Rating 2","Sch IIB, IIC, IID, IIE and IIF Line (19)",{"$f":"'Non-Grandfathered Equity Part'!D19","v":0},{"$f":"'Non-Grandfathered Equity Part'!F19","v":0},{"$f":"'Non-Grandfathered Equity Part'!H19","v":0},{"$f":"'Non-Grandfathered Equity Part'!J19","v":0},{"$f":"'Non-Grandfathered Equity Part'!L19","v":0},{"$f":"'Non-Grandfathered Equity Part'!N19","v":0},{"$f":"'Non-Grandfathered Equity Part'!P19","v":0},{"$f":"'Non-Grandfathered Equity Part'!R19","v":0},{"$f":"'Non-Grandfathered Equity Part'!T19","v":0},null,1.2E-2,null,0,null,0]
[null,"Preferred Stocks, BSCR Rating 3","Sch IIB, IIC, IID, IIE and IIF Line (20)",{"$f":"'Non-Grandfathered Equity Part'!D20","v":0},{"$f":"'Non-Grandfathered Equity Part'!F20","v":0},{"$f":"'Non-Grandfathered Equity Part'!H20","v":0},{"$f":"'Non-Grandfathered Equity Part'!J20","v":0},{"$f":"'Non-Grandfathered Equity Part'!L20","v":0},{"$f":"'Non-Grandfathered Equity Part'!N20","v":0},{"$f":"'Non-Grandfathered Equity Part'!P20","v":0},{"$f":"'Non-Grandfathered Equity Part'!R20","v":0},{"$f":"'Non-Grandfathered Equity Part'!T20","v":0},null,0.02,null,0,null,0]
[null,"Preferred Stocks, BSCR Rating 4","Sch IIB, IIC, IID, IIE and IIF Line (21)",{"$f":"'Non-Grandfathered Equity Part'!D21","v":0},{"$f":"'Non-Grandfathered Equity Part'!F21","v":0},{"$f":"'Non-Grandfathered Equity Part'!H21","v":0},{"$f":"'Non-Grandfathered Equity Part'!J21","v":0},{"$f":"'Non-Grandfathered Equity Part'!L21","v":0},{"$f":"'Non-Grandfathered Equity Part'!N21","v":0},{"$f":"'Non-Grandfathered Equity Part'!P21","v":0},{"$f":"'Non-Grandfathered Equity Part'!R21","v":0},{"$f":"'Non-Grandfathered Equity Part'!T21","v":0},null,0.04,null,0,null,0]
[null,"Preferred Stocks, BSCR Rating 5","Sch IIB, IIC, IID, IIE and IIF Line (22)",{"$f":"'Non-Grandfathered Equity Part'!D22","v":0},{"$f":"'Non-Grandfathered Equity Part'!F22","v":0},{"$f":"'Non-Grandfathered Equity Part'!H22","v":0},{"$f":"'Non-Grandfathered Equity Part'!J22","v":0},{"$f":"'Non-Grandfathered Equity Part'!L22","v":0},{"$f":"'Non-Grandfathered Equity Part'!N22","v":0},{"$f":"'Non-Grandfathered Equity Part'!P22","v":0},{"$f":"'Non-Grandfathered Equity Part'!R22","v":0},{"$f":"'Non-Grandfathered Equity Part'!T22","v":0},null,0.11,null,0,null,0]
[null,"Preferred Stocks, BSCR Rating 6","Sch IIB, IIC, IID, IIE and IIF Line (23)",{"$f":"'Non-Grandfathered Equity Part'!D23","v":0},{"$f":"'Non-Grandfathered Equity Part'!F23","v":0},{"$f":"'Non-Grandfathered Equity Part'!H23","v":0},{"$f":"'Non-Grandfathered Equity Part'!J23","v":0},{"$f":"'Non-Grandfathered Equity Part'!L23","v":0},{"$f":"'Non-Grandfathered Equity Part'!N23","v":0},{"$f":"'Non-Grandfathered Equity Part'!P23","v":0},{"$f":"'Non-Grandfathered Equity Part'!R23","v":0},{"$f":"'Non-Grandfathered Equity Part'!T23","v":0},null,0.25,null,0,null,0]
[null,"Preferred Stocks, BSCR Rating 7","Sch IIB, IIC, IID, IIE and IIF Line (24)",{"$f":"'Non-Grandfathered Equity Part'!D24","v":0},{"$f":"'Non-Grandfathered Equity Part'!F24","v":0},{"$f":"'Non-Grandfathered Equity Part'!H24","v":0},{"$f":"'Non-Grandfathered Equity Part'!J24","v":0},{"$f":"'Non-Grandfathered Equity Part'!L24","v":0},{"$f":"'Non-Grandfathered Equity Part'!N24","v":0},{"$f":"'Non-Grandfathered Equity Part'!P24","v":0},{"$f":"'Non-Grandfathered Equity Part'!R24","v":0},{"$f":"'Non-Grandfathered Equity Part'!T24","v":0},null,0.35,null,0,null,0]
[null,"Preferred Stocks, BSCR Rating 8","Sch IIB, IIC, IID, IIE and IIF Line (25)",{"$f":"'Non-Grandfathered Equity Part'!D25","v":0},{"$f":"'Non-Grandfathered Equity Part'!F25","v":0},{"$f":"'Non-Grandfathered Equity Part'!H25","v":0},{"$f":"'Non-Grandfathered Equity Part'!J25","v":0},{"$f":"'Non-Grandfathered Equity Part'!L25","v":0},{"$f":"'Non-Grandfathered Equity Part'!N25","v":0},{"$f":"'Non-Grandfathered Equity Part'!P25","v":0},{"$f":"'Non-Grandfathered Equity Part'!R25","v":0},{"$f":"'Non-Grandfathered Equity Part'!T25","v":0},null,0.35,null,0,null,0]
[null,"Equity Derivatives on Type 1 Equities","Sch IIB, IIC, IID, IIE and IIF Line (26)",{"$f":"'Non-Grandfathered Equity Part'!D26","v":0},{"$f":"'Non-Grandfathered Equity Part'!F26","v":0},{"$f":"'Non-Grandfathered Equity Part'!H26","v":0},{"$f":"'Non-Grandfathered Equity Part'!J26","v":0},{"$f":"'Non-Grandfathered Equity Part'!L26","v":0},{"$f":"'Non-Grandfathered Equity Part'!N26","v":0},{"$f":"'Non-Grandfathered Equity Part'!P26","v":0},{"$f":"'Non-Grandfathered Equity Part'!R26","v":0},{"$f":"'Non-Grandfathered Equity Part'!T26","v":0},null,0.35,null,0,null,0]
[]
[null,"Subtotal - Type 1 Equity Holdings",null,{"$f":"SUM(D11:D23)","v":0},0,0,0,0,0,0,0,0,null,null,null,{"$f":"MAX(SUM(P11:P22),0)","v":0},null,{"$f":"MAX(SUM(R11:R22),0)","v":0}]
[]
[null,"Type 2 Equity Holdings"]
[null,"Strategic Holdings - Unlisted","Sch IIB, IIC, IID, IIE and IIF Line (27)",{"$f":"'Non-Grandfathered Equity Part'!D27","v":0},{"$f":"'Non-Grandfathered Equity Part'!F27","v":0},{"$f":"'Non-Grandfathered Equity Part'!H27","v":0},{"$f":"'Non-Grandfathered Equity Part'!J27","v":0},{"$f":"'Non-Grandfathered Equity Part'!L27","v":0},{"$f":"'Non-Grandfathered Equity Part'!N27","v":0},{"$f":"'Non-Grandfathered Equity Part'!P27","v":0},{"$f":"'Non-Grandfathered Equity Part'!R27","v":0},{"$f":"'Non-Grandfathered Equity Part'!T27","v":0},null,0.2,null,{"$f":"MAX(D27-E27,0)+(F27-G27)+MAX(H27-I27,0)+(K27-J27)","v":0},null,{"$f":"MAX(D27-E27,0)+(F27-G27)+MAX(H27-I27,0)+(L27-J27)","v":0}]
[null,"Other Equities","Sch IIB, IIC, IID, IIE and IIF Line (28)",{"$f":"'Non-Grandfathered Equity Part'!D28","v":0},{"$f":"'Non-Grandfathered Equity Part'!F28","v":0},{"$f":"'Non-Grandfathered Equity Part'!H28","v":0},{"$f":"'Non-Grandfathered Equity Part'!J28","v":0},{"$f":"'Non-Grandfathered Equity Part'!L28","v":0},{"$f":"'Non-Grandfathered Equity Part'!N28","v":0},{"$f":"'Non-Grandfathered Equity Part'!P28","v":0},{"$f":"'Non-Grandfathered Equity Part'!R28","v":0},{"$f":"'Non-Grandfathered Equity Part'!T28","v":0},null,0.45,null,0,null,0]
[null,"Letters of Credit","Sch IIB, IIC, IID, IIE and IIF Line (29)",{"$f":"'Non-Grandfathered Equity Part'!D29","v":0},{"$f":"'Non-Grandfathered Equity Part'!F29","v":0},{"$f":"'Non-Grandfathered Equity Part'!H29","v":0},{"$f":"'Non-Grandfathered Equity Part'!J29","v":0},{"$f":"'Non-Grandfathered Equity Part'!L29","v":0},{"$f":"'Non-Grandfathered Equity Part'!N29","v":0},{"$f":"'Non-Grandfathered Equity Part'!P29","v":0},{"$f":"'Non-Grandfathered Equity Part'!R29","v":0},{"$f":"'Non-Grandfathered Equity Part'!T29","v":0},null,0.2,null,0,null,0]
[null,"Intangible assets","Sch IIB, IIC, IID, IIE and IIF Line (30)",{"$f":"'Non-Grandfathered Equity Part'!D30","v":0},{"$f":"'Non-Grandfathered Equity Part'!F30","v":0},{"$f":"'Non-Grandfathered Equity Part'!H30","v":0},{"$f":"'Non-Grandfathered Equity Part'!J30","v":0},{"$f":"'Non-Grandfathered Equity Part'!L30","v":0},{"$f":"'Non-Grandfathered Equity Part'!N30","v":0},{"$f":"'Non-Grandfathered Equity Part'!P30","v":0},{"$f":"'Non-Grandfathered Equity Part'!R30","v":0},{"$f":"'Non-Grandfathered Equity Part'!T30","v":0},null,0.2,null,0,null,0]
[null,"Pension Benefit Surplus","Sch IIB, IIC, IID, IIE and IIF Line (31)",{"$f":"'Non-Grandfathered Equity Part'!D31","v":0},{"$f":"'Non-Grandfathered Equity Part'!F31","v":0},{"$f":"'Non-Grandfathered Equity Part'!H31","v":0},{"$f":"'Non-Grandfathered Equity Part'!J31","v":0},{"$f":"'Non-Grandfathered Equity Part'!L31","v":0},{"$f":"'Non-Grandfathered Equity Part'!N31","v":0},{"$f":"'Non-Grandfathered Equity Part'!P31","v":0},{"$f":"'Non-Grandfathered Equity Part'!R31","v":0},{"$f":"'Non-Grandfathered Equity Part'!T31","v":0},null,0.2,null,0,null,0]
[null,"Equity Derivatives on Type 2 Equities","Sch IIB, IIC, IID, IIE and IIF Line (32)",{"$f":"'Non-Grandfathered Equity Part'!D32","v":0},{"$f":"'Non-Grandfathered Equity Part'!F32","v":0},{"$f":"'Non-Grandfathered Equity Part'!H32","v":0},{"$f":"'Non-Grandfathered Equity Part'!J32","v":0},{"$f":"'Non-Grandfathered Equity Part'!L32","v":0},{"$f":"'Non-Grandfathered Equity Part'!N32","v":0},{"$f":"'Non-Grandfathered Equity Part'!P32","v":0},{"$f":"'Non-Grandfathered Equity Part'!R32","v":0},{"$f":"'Non-Grandfathered Equity Part'!T32","v":0},null,0.45,null,0,null,0]
[]
[null,"Subtotal - Type 2 Equity Holdings",null,{"$f":"SUM(D27:D33)","v":0},{"$f":"SUM(E27:E33)","v":0},0,0,0,0,0,0,{"$f":"SUM(L27:L33)","v":0},null,null,null,{"$f":"MAX(SUM(P27:P33),0)","v":0},null,{"$f":"MAX(SUM(R27:R33),0)","v":0}]
[]
[null,"Type 3 Equity Holdings"]
[null,"Infrastructure","Sch IIB, IIC, IID, IIE and IIF Line (33)",{"$f":"'Non-Grandfathered Equity Part'!D33","v":0},{"$f":"'Non-Grandfathered Equity Part'!F33","v":0},{"$f":"'Non-Grandfathered Equity Part'!H33","v":0},{"$f":"'Non-Grandfathered Equity Part'!J33","v":0},{"$f":"'Non-Grandfathered Equity Part'!L33","v":0},{"$f":"'Non-Grandfathered Equity Part'!N33","v":0},{"$f":"'Non-Grandfathered Equity Part'!P33","v":0},{"$f":"'Non-Grandfathered Equity Part'!R33","v":0},{"$f":"'Non-Grandfathered Equity Part'!T33","v":0},null,0.25,null,{"$f":"MAX(D37-E37,0)+(F37-G37)+MAX(H37-I37,0)+(K37-J37)","v":0},null,{"$f":"MAX(D37-E37,0)+(F37-G37)+MAX(H37-I37,0)+(L37-J37)","v":0}]
[null,"Derivatives on Infrastructure","Sch IIB, IIC, IID, IIE and IIF Line (34)",{"$f":"'Non-Grandfathered Equity Part'!D34","v":0},{"$f":"'Non-Grandfathered Equity Part'!F34","v":0},{"$f":"'Non-Grandfathered Equity Part'!H34","v":0},{"$f":"'Non-Grandfathered Equity Part'!J34","v":0},{"$f":"'Non-Grandfathered Equity Part'!L34","v":0},{"$f":"'Non-Grandfathered Equity Part'!N34","v":0},{"$f":"'Non-Grandfathered Equity Part'!P34","v":0},{"$f":"'Non-Grandfathered Equity Part'!R34","v":0},{"$f":"'Non-Grandfathered Equity Part'!T34","v":0},null,0.25,null,{"$f":"MAX(D38-E38,0)+(F38-G38)+MAX(H38-I38,0)+(K38-J38)","v":0},null,0]
[]
[null,"Subtotal - Type 3 Equity Holdings",null,{"$f":"SUM(D37:D39)","v":0},{"$f":"SUM(E37:E39)","v":0},0,0,0,0,0,0,{"$f":"SUM(L37:L39)","v":0},null,null,null,{"$f":"MAX(SUM(P37:P39),0)","v":0},null,{"$f":"MAX(SUM(R37:R39),0)","v":0}]
[]
[null,"Type 4 Equity Holdings"]
[null,"Equity Real Estate 1","Sch IIB, IIC, IID, IIE and IIF Line (35)",{"$f":"'Non-Grandfathered Equity Part'!D35","v":0},{"$f":"'Non-Grandfathered Equity Part'!F35","v":0},{"$f":"'Non-Grandfathered Equity Part'!H35","v":0},{"$f":"'Non-Grandfathered Equity Part'!J35","v":0},{"$f":"'Non-Grandfathered Equity Part'!L35","v":0},{"$f":"'Non-Grandfathered Equity Part'!N35","v":0},{"$f":"'Non-Grandfathered Equity Part'!P35","v":0},{"$f":"'Non-Grandfathered Equity Part'!R35","v":0},{"$f":"'Non-Grandfathered Equity Part'!T35","v":0},null,0.1,null,{"$f":"MAX(D43-E43,0)+(F43-G43)+MAX(H43-I43,0)+(K43-J43)","v":0},null,{"$f":"MAX(D43-E43,0)+(F43-G43)+MAX(H43-I43,0)+(L43-J43)","v":0}]
[null,"Equity Real Estate 2","Sch IIB, IIC, IID, IIE and IIF Line (36)",{"$f":"'Non-Grandfathered Equity Part'!D36","v":0},{"$f":"'Non-Grandfathered Equity Part'!F36","v":0},{"$f":"'Non-Grandfathered Equity Part'!H36","v":0},{"$f":"'Non-Grandfathered Equity Part'!J36","v":0},{"$f":"'Non-Grandfathered Equity Part'!L36","v":0},{"$f":"'Non-Grandfathered Equity Part'!N36","v":0},{"$f":"'Non-Grandfathered Equity Part'!P36","v":0},{"$f":"'Non-Grandfathered Equity Part'!R36","v":0},{"$f":"'Non-Grandfathered Equity Part'!T36","v":0},null,0.2,null,{"$f":"MAX(D44-E44,0)+(F44-G44)+MAX(H44-I44,0)+(K44-J44)","v":0},null,0]
[]
[null,"Subtotal - Type 4 Equity Holdings",null,{"$f":"SUM(D43:D45)","v":0},{"$f":"SUM(E43:E45)","v":0},0,0,0,0,0,{"$f":"SUM(K43:K45)","v":0},{"$f":"SUM(L43:L45)","v":0},null,null,null,{"$f":"MAX(SUM(P43:P45),0)","v":0},null,{"$f":"MAX(SUM(R43:R45),0)","v":0}]
[]
[null,"Total Equity Risk before Diversification",null,{"$f":"D40+D34+D24+D46","v":0},{"$f":"E40+E34+E24+E46","v":0},0,0,0,0,0,{"$f":"K40+K34+K24+K46","v":0},{"$f":"L40+L34+L24+L46","v":0},null,null,null,{"$f":"P40+P34+P24+P46","v":0},null,{"$f":"R40+R34+R24+R46","v":0}]
[]
[null,"Aggregation of Risks","Correlation Matrix","Type 1","Type 2","Type 3","Type 4"]
[null,null,"Type 1",1,0.75,0.75,0.5,null,null,null,null,null,null,"Total Type 1 Risk ",null,{"$f":"P24","v":0},null,{"$f":"R24","v":0}]
[null,null,"Type 2",0.75,1,0.75,0.5,null,null,null,null,null,null,"Total Type 2 Risk ",null,{"$f":"P34","v":0},null,{"$f":"R34","v":0}]
[null,null,"Type 3",0.75,0.75,1,0.5,null,null,null,null,null,null,"Total Type 3 Risk",null,{"$f":"P40","v":0},null,{"$f":"R40","v":0}]
[null,null,"Type 4",0.5,0.5,0.5,1,null,null,null,null,null,null,"Total Type 4 Risk",null,{"$f":"P46","v":0},null,{"$f":"R46","v":0}]
[]
[]
[]
[null,"Total Equity Risk (Post Diversification) ",null,null,null,null,null,null,null,null,null,null,null,null,null,{"$f":"SQRT(MMULT(TRANSPOSE($P$51:$P$54),MMULT($D$51:$G$54,$P$51:$P$54)))","v":0},null,{"$f":"SQRT(MMULT(TRANSPOSE($R$51:$R$54),MMULT($D$51:$G$54,$R$51:$R$54)))","v":0}]

{"sheet":"Interest Rate-Liquidity Risk","index":98,"n_rows":39,"n_cols":12,"rows_kept":39,"cut":false,"hidden":false,"merged":[[0,10,0,11]]}
["INTEREST AND LIQUIDITY RISK",null,null,null,null,null,null,null,null,null,{"$f":"HYPERLINK(\"#'Index'!A1\",\"Return to Index\")","v":"Return to Index"}]
[{"$f":"'Insurer Information'!C7","v":"Enter Company Name"}]
[{"$f":"\"Interest Rate and Liquidity Risk\"& \" ($\" & IF(CONFIGURATION!$B$12>1,\"'\"&MID(CONFIGURATION!$B$12,2,LEN(CONFIGURATION!$B$12)),\"\") & \")\"","v":"Interest Rate and Liquidity Risk ($'000)"},null,"(1)","(2)","(3)","(4)","(5)","(6)","(7)","(8)","(9)","(10)"]
[{"$f":" TEXT('Insurer Information'!C3,\"D MMMM YYYY\")","v":"31 December 2023"}]
[]
[null,"EXTENT OF MISMATCH","200 BASIS POINT INTEREST RATE SHOCK","STATEMENT SOURCE","WEIGHTED AVERAGE OF THE DIFFERENCE IN ASSET AND LIABILITY DURATION (MINIMUM OF 1 YEAR)","STATEMENT SOURCE","RESERVES WITH KNOWN DURATIONS / TOTAL RESERVES","STATEMENT SOURCE","ASSET VALUE","ALM CREDIT","CAPITAL FACTOR","REQUIRED CAPITAL"]
[]
[null,"For assets (and liabilities) where the extent of the duration mismatch is:"]
[null,"(a) Known"]
[null,"(a.1) With Management Actions",0.02,"Schedule V, Line (f)",{"$f":"MAX(1,ABS('Schedule V'!H15))","v":1},{"$f":"IF('Insurer Information'!F9=\"Class C\",\"Schedule V, Line (g)\",\"Schedule V, Line (h)\")","v":"Schedule V, Line (g)"},{"$f":"'Schedule V'!H20","v":0},"Sch II EBS & Sch IIA EBS, Line 10, Column 9 Sch II EBS & Sch IIA EBS, Line 21, Column 3 Sch II EBS & Sch IIA EBS , Line 26, Column 1",{"$f":"E39","v":0},{"$f":"L31","v":0},{"$f":"C10*MAX(1,IF(E10=\"\",ABS('Schedule V'!$H$15),ABS(E10)))*G10*(1-J10)","v":0},{"$f":"I10*K10","v":0}]
[null,"(a.2) Without Management Actions",0.02,"Schedule V, Line (f)",{"$f":"IF('Schedule V'!H16=0,E10,MAX(1,ABS('Schedule V'!H16)))","v":1},{"$f":"IF('Insurer Information'!F10=\"Class C\",\"Schedule V, Line (g)\",\"Schedule V, Line (h)\")","v":"Schedule V, Line (h)"},{"$f":"'Schedule V'!H20","v":0},"Sch II EBS & Sch IIA EBS, Line 10, Column 9 Sch II EBS & Sch IIA EBS, Line 21, Column 3 Sch II EBS & Sch IIA EBS , Line 26, Column 1",{"$f":"E39","v":0},{"$f":"L31","v":0},{"$f":"C11*MAX(1,IF(E11=\"\",ABS('Schedule V'!$H$15),ABS(E11)))*G11*(1-J11)","v":0},{"$f":"I11*K11","v":0}]
[null,"(b) Unknown",0.02,null,2,null,"N/A","Sch II EBS & Sch IIA EBS, Line 10, Column 9 Sch II EBS & Sch IIA EBS, Line 21, Column 3 Sch II EBS & Sch IIA EBS , Line 26, Column 1",{"$f":"I10","v":0},"N/A",{"$f":"C12*E12*(1-G10)","v":0.04},{"$f":"I12*K12","v":0}]
[]
[null,"TOTAL INTEREST RATE AND LIQUIDITY RISK With Management Actions",null,null,null,null,null,null,null,null,null,{"$f":"L10+L12","v":0}]
[null,"TOTAL INTEREST RATE AND LIQUIDITY RISK Without Management Actions",null,null,null,null,null,null,null,null,null,{"$f":"L11+L12","v":0}]
[]
[null,"ALM CREDIT",null,null,null,null,null,null,null,null,null,"DISCOUNT FACTOR"]
[]
[null,"Has the insurer implemented policies on Asset Liability Management, including tolerances for deviation?"]
[null,null,null,null,null,null,null,null,null,null,"Yes/No"]
[null,"Question 1: Have clear roles and responsibilities for the execution of the Asset Liability Management programme been assigned?",null,null,null,null,null,null,null,null,null,{"$f":"IF($J$19=\"No\",0,IF(K21=\"Yes\",0.1,0))","v":0}]
[]
[null,"Question 2: Are Asset Liability Management positions / tolerances communicated to the investment function, senior management and the board on a timely basis?",null,null,null,null,null,null,null,null,null,{"$f":"IF($J$19=\"No\",0,IF(K23=\"Yes\",0.1,0))","v":0}]
[]
[null,"Question 3: Have systems and procedures been established to identify, report and promptly address Asset Liability Management deficiencies?",null,null,null,null,null,null,null,null,null,{"$f":"IF($J$19=\"No\",0,IF(K25=\"Yes\",0.1,0))","v":0}]
[]
[null,"Question 4: Are the Asset Liability Management policies and procedures reviewed and reapproved or revised at least annually?",null,null,null,null,null,null,null,null,null,{"$f":"IF($J$19=\"No\",0,IF(K27=\"Yes\",0.1,0))","v":0}]
[]
[null,"Question 5: Is the insurer's current Asset Liability Management position in compliance with the insurer’s policies?",null,null,null,null,null,null,null,null,null,{"$f":"IF($J$19=\"No\",0,IF(K29=\"Yes\",0.1,0))","v":0}]
[]
[null,"Total discount factor to apply on the interest rate / liquidity risk capital requirement",null,null,null,null,null,null,null,null,"Total",{"$f":"MIN(50%,IF(Import!M36683=0,SUM(L21:L29),Import!M36683))","v":0}]
[]
[]
[null,"Quoted & Unquoted Bonds and debentures","Schedule II (Consolidated), Line 10, Column 9",null,{"$f":"IF('Schedule II (EBS)'!T22=0,('Schedule IIB (EBS)'!D27+'Schedule IIB (EBS)'!H27+'Schedule IIB (EBS)'!L27+'Schedule IIB (EBS)'!P27),'Schedule II (EBS)'!T22)","v":0}]
[null,"Quoted & Unquoted Bonds and debentures","Schedule IIA (Consolidated), Line 10, Column 9",null,{"$f":"IF('Schedule IIA (EBS)'!T22=0,('Schedule IIC (EBS)'!D27+'Schedule IIC (EBS)'!H27+'Schedule IIC (EBS)'!L27+'Schedule IIC (EBS)'!P27),'Schedule IIA (EBS)'!T22)","v":0}]
[null,"Quoted & Unquoted Preferred stocks","Schedule II (Consolidated), Line 21, Column 3",null,{"$f":"IF('Schedule II (EBS)'!H44=0,SUM('Schedule IIB (EBS)'!X42:X49),'Schedule II (EBS)'!H44)","v":0}]
[null,"Quoted & Unquoted Preferred stocks","Schedule II (Consolidated), Line 21, Column 3",null,{"$f":"IF('Schedule IIA (EBS)'!H44=0,SUM('Schedule IIC (EBS)'!X42:X49),'Schedule IIA (EBS)'!H44)","v":0}]
[null,"Mortgage loans ","Schedule II & IIA (Consolidated), Line 26, Column 1",null,{"$f":"IF(('Schedule II (EBS)'!D62+'Schedule IIA (EBS)'!D62)=0,('Schedule IIB (EBS)'!T27+'Schedule IIC (EBS)'!T27),'Schedule II (EBS)'!D62+'Schedule IIA (EBS)'!D62)","v":0}]
[null,"Total",null,null,{"$f":"SUM(E34:E38)","v":0}]

{"sheet":"Interest Rate-Liquidity (Rev.)","index":99,"n_rows":117,"n_cols":20,"rows_kept":117,"cut":false,"hidden":false,"merged":[[97,10,97,11],[97,14,97,15],[98,10,98,11],[98,14,98,15],[5,2,5,8],[5,10,5,12],[6,2,6,3],[6,4,6,5],[6,7,6,8],[6,10,6,11]]}
["INTEREST RATE - LIQUIDITY RISK (REVISED)",null,null,null,null,null,null,null,null,null,null,null,null,null,null,null,null,null,null,{"$f":"HYPERLINK(\"#'Index'!A1\",\"Return to Index\")","v":"Return to Index"}]
[{"$f":"'Insurer Information'!C7","v":"Enter Company Name"}]
[{"$f":"\"Interest Rate / Liquidity Risk\" & \" ($\" & IF(CONFIGURATION!$B$12>1,\"'\"&MID(CONFIGURATION!$B$12,2,LEN(CONFIGURATION!$B$12)),\"\") & \")\"","v":"Interest Rate / Liquidity Risk ($'000)"},null,null,null,{"$f":" TEXT('Insurer Information'!C3,\"D MMMM YYYY\")","v":"31 December 2023"}]
[]
[null,null,-1,{"$f":"C5-1","v":-2},{"$f":"D5-1","v":-3},{"$f":"E5-1","v":-4},null,{"$f":"F5-1","v":-5},{"$f":"H5-1","v":-6},null,{"$f":"I5-1","v":-7},{"$f":"K5-1","v":-8},{"$f":"L5-1","v":-9},null,{"$f":"M5-1","v":-10},{"$f":"O5-1","v":-11},{"$f":"P5-1","v":-12},null,{"$f":"Q5-1","v":-13},{"$f":"S5-1","v":-14}]
[null,null,"ASSETS",null,null,null,null,null,null,null,"LIABILITIES"]
[null,null,"Assets including derivatives qualifying as held for risk-mitigation purposes",null,"Derivatives not qualifying as held for risk-mitigation purposes",null,null,"Gross Position",null,null,"Without Management Actions",null,"With Management Actions"]
[null,"Currency","Market Value Before Shock","Market Value After Shock","Market Value Before Shock","Market Value After Shock",null,"Market Value Before Shock","Market Value After Shock",null,"Best Estimate Before Shock","Best Estimate After Shock","Best Estimate After Shock",null,"IR - Assets","IR Risk - TP without MA","IR Risk - TP with MA",null,"IR Risk - without MA","IR Risk - with MA"]
[]
[null,"IR Down- Exposures without Derivatives",null,"x"]
[null,{"$f":"'Schedule XXIII'!C10","v":"United States Dollars"},{"$f":"'Schedule XXIII'!E10","v":0},{"$f":"'Schedule XXIII'!F10","v":0},null,null,null,{"$f":"C11+E11","v":0},{"$f":"D11+F11","v":0},null,{"$f":"'Schedule XXIII'!H10","v":0},{"$f":"'Schedule XXIII'!I10","v":0},{"$f":"'Schedule XXIII'!K10","v":0},null,{"$f":"C11-D11","v":0},{"$f":"L11-K11","v":0},{"$f":"M11-K11","v":0},null,{"$f":"$O11+P11","v":0},{"$f":"$O11+Q11","v":0}]
[null,{"$f":"'Schedule XXIII'!C11","v":"Euro"},{"$f":"'Schedule XXIII'!E11","v":0},{"$f":"'Schedule XXIII'!F11","v":0},null,null,null,{"$f":"C12+E12","v":0},0,null,{"$f":"'Schedule XXIII'!H11","v":0},{"$f":"'Schedule XXIII'!I11","v":0},{"$f":"'Schedule XXIII'!K11","v":0},null,0,0,{"$f":"M12-K12","v":0},null,{"$f":"$O12+P12","v":0},0]
[null,{"$f":"'Schedule XXIII'!C12","v":"United Kingdom Pounds"},{"$f":"'Schedule XXIII'!E12","v":0},{"$f":"'Schedule XXIII'!F12","v":0},null,null,null,0,0,null,{"$f":"'Schedule XXIII'!H12","v":0},{"$f":"'Schedule XXIII'!I12","v":0},{"$f":"'Schedule XXIII'!K12","v":0},null,0,0,0,null,0,0]
[null,{"$f":"'Schedule XXIII'!C13","v":"Japan Yen"},{"$f":"'Schedule XXIII'!E13","v":0},{"$f":"'Schedule XXIII'!F13","v":0},null,null,null,0,0,null,{"$f":"'Schedule XXIII'!H13","v":0},{"$f":"'Schedule XXIII'!I13","v":0},{"$f":"'Schedule XXIII'!K13","v":0},null,0,0,0,null,0,0]
[null,{"$f":"'Schedule XXIII'!C14","v":"Canada Dollars"},{"$f":"'Schedule XXIII'!E14","v":0},{"$f":"'Schedule XXIII'!F14","v":0},null,null,null,0,0,null,{"$f":"'Schedule XXIII'!H14","v":0},{"$f":"'Schedule XXIII'!I14","v":0},{"$f":"'Schedule XXIII'!K14","v":0},null,0,0,0,null,0,0]
[null,{"$f":"'Schedule XXIII'!C15","v":"Swiss Francs"},{"$f":"'Schedule XXIII'!E15","v":0},{"$f":"'Schedule XXIII'!F15","v":0},null,null,null,0,0,null,{"$f":"'Schedule XXIII'!H15","v":0},{"$f":"'Schedule XXIII'!I15","v":0},{"$f":"'Schedule XXIII'!K15","v":0},null,0,0,0,null,0,0]
[null,{"$f":"'Schedule XXIII'!C16","v":"Australia Dollar"},{"$f":"'Schedule XXIII'!E16","v":0},{"$f":"'Schedule XXIII'!F16","v":0},null,null,null,0,0,null,{"$f":"'Schedule XXIII'!H16","v":0},{"$f":"'Schedule XXIII'!I16","v":0},{"$f":"'Schedule XXIII'!K16","v":0},null,0,0,0,null,0,0]
[null,{"$f":"'Schedule XXIII'!C17","v":"New Zealand Dollar"},{"$f":"'Schedule XXIII'!E17","v":0},{"$f":"'Schedule XXIII'!F17","v":0},null,null,null,0,0,null,{"$f":"'Schedule XXIII'!H17","v":0},{"$f":"'Schedule XXIII'!I17","v":0},{"$f":"'Schedule XXIII'!K17","v":0},null,0,0,0,null,0,0]
[null,{"$f":"'Schedule XXIII'!C18","v":"Other currency 1"},{"$f":"'Schedule XXIII'!E18","v":0},{"$f":"'Schedule XXIII'!F18","v":0},null,null,null,0,0,null,{"$f":"'Schedule XXIII'!H18","v":0},{"$f":"'Schedule XXIII'!I18","v":0},{"$f":"'Schedule XXIII'!K18","v":0},null,0,0,0,null,0,0]
[null,{"$f":"'Schedule XXIII'!C19","v":"Other currency 2"},{"$f":"'Schedule XXIII'!E19","v":0},{"$f":"'Schedule XXIII'!F19","v":0},null,null,null,0,0,null,{"$f":"'Schedule XXIII'!H19","v":0},{"$f":"'Schedule XXIII'!I19","v":0},{"$f":"'Schedule XXIII'!K19","v":0},null,0,0,0,null,0,0]
[null,{"$f":"'Schedule XXIII'!C20","v":"Other currency 3"},{"$f":"'Schedule XXIII'!E20","v":0},{"$f":"'Schedule XXIII'!F20","v":0},null,null,null,0,0,null,{"$f":"'Schedule XXIII'!H20","v":0},{"$f":"'Schedule XXIII'!I20","v":0},{"$f":"'Schedule XXIII'!K20","v":0},null,0,0,0,null,0,0]
[null,{"$f":"'Schedule XXIII'!C21","v":"Other currency 4"},{"$f":"'Schedule XXIII'!E21","v":0},{"$f":"'Schedule XXIII'!F21","v":0},null,null,null,0,0,null,{"$f":"'Schedule XXIII'!H21","v":0},{"$f":"'Schedule XXIII'!I21","v":0},{"$f":"'Schedule XXIII'!K21","v":0},null,0,0,0,null,0,0]
[null,{"$f":"'Schedule XXIII'!C22","v":"Other currency 5"},{"$f":"'Schedule XXIII'!E22","v":0},{"$f":"'Schedule XXIII'!F22","v":0},null,null,null,0,0,null,{"$f":"'Schedule XXIII'!H22","v":0},{"$f":"'Schedule XXIII'!I22","v":0},{"$f":"'Schedule XXIII'!K22","v":0},null,0,0,0,null,0,0]
[null,{"$f":"'Schedule XXIII'!C23","v":"Other currency 6"},{"$f":"'Schedule XXIII'!E23","v":0},{"$f":"'Schedule XXIII'!F23","v":0},null,null,null,0,0,null,{"$f":"'Schedule XXIII'!H23","v":0},{"$f":"'Schedule XXIII'!I23","v":0},{"$f":"'Schedule XXIII'!K23","v":0},null,0,0,0,null,0,0]
[null,{"$f":"'Schedule XXIII'!C24","v":"Other currency 7"},{"$f":"'Schedule XXIII'!E24","v":0},{"$f":"'Schedule XXIII'!F24","v":0},null,null,null,0,0,null,{"$f":"'Schedule XXIII'!H24","v":0},{"$f":"'Schedule XXIII'!I24","v":0},{"$f":"'Schedule XXIII'!K24","v":0},null,0,0,0,null,0,0]
[null,{"$f":"'Schedule XXIII'!C25","v":"Other currency 8"},{"$f":"'Schedule XXIII'!E25","v":0},{"$f":"'Schedule XXIII'!F25","v":0},null,null,null,0,0,null,{"$f":"'Schedule XXIII'!H25","v":0},{"$f":"'Schedule XXIII'!I25","v":0},{"$f":"'Schedule XXIII'!K25","v":0},null,0,0,0,null,0,0]
[null,{"$f":"'Schedule XXIII'!C26","v":"Other currency 9"},{"$f":"'Schedule XXIII'!E26","v":0},{"$f":"'Schedule XXIII'!F26","v":0},null,null,null,0,0,null,{"$f":"'Schedule XXIII'!H26","v":0},{"$f":"'Schedule XXIII'!I26","v":0},{"$f":"'Schedule XXIII'!K26","v":0},null,0,0,0,null,0,0]
[null,{"$f":"'Schedule XXIII'!C27","v":"Other currency 10"},{"$f":"'Schedule XXIII'!E27","v":0},{"$f":"'Schedule XXIII'!F27","v":0},null,null,null,{"$f":"C28+E28","v":0},0,null,{"$f":"'Schedule XXIII'!H27","v":0},{"$f":"'Schedule XXIII'!I27","v":0},{"$f":"'Schedule XXIII'!K27","v":0},null,0,0,0,null,0,0]
[null,"Total IR - Other",{"$f":"SUM(C11:C28)","v":0},{"$f":"SUM(D11:D28)","v":0},{"$f":"SUM(E11:E28)","v":0},{"$f":"SUM(F11:F28)","v":0},null,{"$f":"SUM(H11:H28)","v":0},{"$f":"SUM(I11:I28)","v":0},null,{"$f":"SUM(K11:K28)","v":0},{"$f":"SUM(L11:L28)","v":0},{"$f":"SUM(M11:M28)","v":0},null,{"$f":"SUM(O11:O28)","v":0},{"$f":"SUM(P11:P28)","v":0},{"$f":"SUM(Q11:Q28)","v":0},null,{"$f":"SUM(S11:S28)","v":0},{"$f":"SUM(T11:T28)","v":0}]
[]
[null,"IR Down- Derivatives"]
[null,{"$f":"'Schedule XXIII'!C10","v":"United States Dollars"},{"$f":"'Schedule XXIII'!M10","v":0},{"$f":"'Schedule XXIII'!N10","v":0},{"$f":"'Schedule XXIII'!P10","v":0},{"$f":"'Schedule XXIII'!Q10","v":0},null,{"$f":"C32+E32","v":0},{"$f":"D32+F32","v":0},null,{"$f":"'Schedule XXIII'!S10","v":0},{"$f":"'Schedule XXIII'!T10","v":0},{"$f":"'Schedule XXIII'!V10","v":0},null,{"$f":"C32-D32 + MAX(0,E32-F32)","v":0},{"$f":"L32-K32","v":0},{"$f":"M32-K32","v":0},null,{"$f":"$O32+P32","v":0},{"$f":"$O32+Q32","v":0}]
[null,{"$f":"'Schedule XXIII'!C11","v":"Euro"},{"$f":"'Schedule XXIII'!M11","v":0},{"$f":"'Schedule XXIII'!N11","v":0},{"$f":"'Schedule XXIII'!P11","v":0},{"$f":"'Schedule XXIII'!Q11","v":0},null,{"$f":"C33+E33","v":0},0,null,{"$f":"'Schedule XXIII'!S11","v":0},{"$f":"'Schedule XXIII'!T11","v":0},{"$f":"'Schedule XXIII'!V11","v":0},null,0,0,0,null,{"$f":"$O33+P33","v":0},0]
[null,{"$f":"'Schedule XXIII'!C12","v":"United Kingdom Pounds"},{"$f":"'Schedule XXIII'!M12","v":0},{"$f":"'Schedule XXIII'!N12","v":0},{"$f":"'Schedule XXIII'!P12","v":0},{"$f":"'Schedule XXIII'!Q12","v":0},null,0,0,null,{"$f":"'Schedule XXIII'!S12","v":0},{"$f":"'Schedule XXIII'!T12","v":0},{"$f":"'Schedule XXIII'!V12","v":0},null,0,0,0,null,0,0]
[null,{"$f":"'Schedule XXIII'!C13","v":"Japan Yen"},{"$f":"'Schedule XXIII'!M13","v":0},{"$f":"'Schedule XXIII'!N13","v":0},{"$f":"'Schedule XXIII'!P13","v":0},{"$f":"'Schedule XXIII'!Q13","v":0},null,0,0,null,{"$f":"'Schedule XXIII'!S13","v":0},{"$f":"'Schedule XXIII'!T13","v":0},{"$f":"'Schedule XXIII'!V13","v":0},null,0,0,0,null,0,0]
[null,{"$f":"'Schedule XXIII'!C14","v":"Canada Dollars"},{"$f":"'Schedule XXIII'!M14","v":0},{"$f":"'Schedule XXIII'!N14","v":0},{"$f":"'Schedule XXIII'!P14","v":0},{"$f":"'Schedule XXIII'!Q14","v":0},null,0,0,null,{"$f":"'Schedule XXIII'!S14","v":0},{"$f":"'Schedule XXIII'!T14","v":0},{"$f":"'Schedule XXIII'!V14","v":0},null,0,0,0,null,0,0]
[null,{"$f":"'Schedule XXIII'!C15","v":"Swiss Francs"},{"$f":"'Schedule XXIII'!M15","v":0},{"$f":"'Schedule XXIII'!N15","v":0},{"$f":"'Schedule XXIII'!P15","v":0},{"$f":"'Schedule XXIII'!Q15","v":0},null,0,0,null,{"$f":"'Schedule XXIII'!S15","v":0},{"$f":"'Schedule XXIII'!T15","v":0},{"$f":"'Schedule XXIII'!V15","v":0},null,0,0,0,null,0,0]
[null,{"$f":"'Schedule XXIII'!C16","v":"Australia Dollar"},{"$f":"'Schedule XXIII'!M16","v":0},{"$f":"'Schedule XXIII'!N16","v":0},{"$f":"'Schedule XXIII'!P16","v":0},{"$f":"'Schedule XXIII'!Q16","v":0},null,0,0,null,{"$f":"'Schedule XXIII'!S16","v":0},{"$f":"'Schedule XXIII'!T16","v":0},{"$f":"'Schedule XXIII'!V16","v":0},null,0,0,0,null,0,0]
[null,{"$f":"'Schedule XXIII'!C17","v":"New Zealand Dollar"},{"$f":"'Schedule XXIII'!M17","v":0},{"$f":"'Schedule XXIII'!N17","v":0},{"$f":"'Schedule XXIII'!P17","v":0},{"$f":"'Schedule XXIII'!Q17","v":0},null,0,0,null,{"$f":"'Schedule XXIII'!S17","v":0},{"$f":"'Schedule XXIII'!T17","v":0},{"$f":"'Schedule XXIII'!V17","v":0},null,0,0,0,null,0,0]
[null,{"$f":"'Schedule XXIII'!C18","v":"Other currency 1"},{"$f":"'Schedule XXIII'!M18","v":0},{"$f":"'Schedule XXIII'!N18","v":0},{"$f":"'Schedule XXIII'!P18","v":0},{"$f":"'Schedule XXIII'!Q18","v":0},null,0,0,null,{"$f":"'Schedule XXIII'!S18","v":0},{"$f":"'Schedule XXIII'!T18","v":0},{"$f":"'Schedule XXIII'!V18","v":0},null,0,0,0,null,0,0]
[null,{"$f":"'Schedule XXIII'!C19","v":"Other currency 2"},{"$f":"'Schedule XXIII'!M19","v":0},{"$f":"'Schedule XXIII'!N19","v":0},{"$f":"'Schedule XXIII'!P19","v":0},{"$f":"'Schedule XXIII'!Q19","v":0},null,0,0,null,{"$f":"'Schedule XXIII'!S19","v":0},{"$f":"'Schedule XXIII'!T19","v":0},{"$f":"'Schedule XXIII'!V19","v":0},null,0,0,0,null,0,0]
[null,{"$f":"'Schedule XXIII'!C20","v":"Other currency 3"},{"$f":"'Schedule XXIII'!M20","v":0},{"$f":"'Schedule XXIII'!N20","v":0},{"$f":"'Schedule XXIII'!P20","v":0},{"$f":"'Schedule XXIII'!Q20","v":0},null,0,0,null,{"$f":"'Schedule XXIII'!S20","v":0},{"$f":"'Schedule XXIII'!T20","v":0},{"$f":"'Schedule XXIII'!V20","v":0},null,0,0,0,null,0,0]
[null,{"$f":"'Schedule XXIII'!C21","v":"Other currency 4"},{"$f":"'Schedule XXIII'!M21","v":0},{"$f":"'Schedule XXIII'!N21","v":0},{"$f":"'Schedule XXIII'!P21","v":0},{"$f":"'Schedule XXIII'!Q21","v":0},null,0,0,null,{"$f":"'Schedule XXIII'!S21","v":0},{"$f":"'Schedule XXIII'!T21","v":0},{"$f":"'Schedule XXIII'!V21","v":0},null,0,0,0,null,0,0]
[null,{"$f":"'Schedule XXIII'!C22","v":"Other currency 5"},{"$f":"'Schedule XXIII'!M22","v":0},{"$f":"'Schedule XXIII'!N22","v":0},{"$f":"'Schedule XXIII'!P22","v":0},{"$f":"'Schedule XXIII'!Q22","v":0},null,0,0,null,{"$f":"'Schedule XXIII'!S22","v":0},{"$f":"'Schedule XXIII'!T22","v":0},{"$f":"'Schedule XXIII'!V22","v":0},null,0,0,0,null,0,0]
[null,{"$f":"'Schedule XXIII'!C23","v":"Other currency 6"},{"$f":"'Schedule XXIII'!M23","v":0},{"$f":"'Schedule XXIII'!N23","v":0},{"$f":"'Schedule XXIII'!P23","v":0},{"$f":"'Schedule XXIII'!Q23","v":0},null,0,0,null,{"$f":"'Schedule XXIII'!S23","v":0},{"$f":"'Schedule XXIII'!T23","v":0},{"$f":"'Schedule XXIII'!V23","v":0},null,0,0,0,null,0,0]
[null,{"$f":"'Schedule XXIII'!C24","v":"Other currency 7"},{"$f":"'Schedule XXIII'!M24","v":0},{"$f":"'Schedule XXIII'!N24","v":0},{"$f":"'Schedule XXIII'!P24","v":0},{"$f":"'Schedule XXIII'!Q24","v":0},null,0,0,null,{"$f":"'Schedule XXIII'!S24","v":0},{"$f":"'Schedule XXIII'!T24","v":0},{"$f":"'Schedule XXIII'!V24","v":0},null,0,0,0,null,0,0]
[null,{"$f":"'Schedule XXIII'!C25","v":"Other currency 8"},{"$f":"'Schedule XXIII'!M25","v":0},{"$f":"'Schedule XXIII'!N25","v":0},{"$f":"'Schedule XXIII'!P25","v":0},{"$f":"'Schedule XXIII'!Q25","v":0},null,0,0,null,{"$f":"'Schedule XXIII'!S25","v":0},{"$f":"'Schedule XXIII'!T25","v":0},{"$f":"'Schedule XXIII'!V25","v":0},null,0,0,0,null,0,0]
[null,{"$f":"'Schedule XXIII'!C26","v":"Other currency 9"},{"$f":"'Schedule XXIII'!M26","v":0},{"$f":"'Schedule XXIII'!N26","v":0},{"$f":"'Schedule XXIII'!P26","v":0},{"$f":"'Schedule XXIII'!Q26","v":0},null,0,0,null,{"$f":"'Schedule XXIII'!S26","v":0},{"$f":"'Schedule XXIII'!T26","v":0},{"$f":"'Schedule XXIII'!V26","v":0},null,0,0,0,null,0,0]
[null,{"$f":"'Schedule XXIII'!C27","v":"Other currency 10"},{"$f":"'Schedule XXIII'!M27","v":0},{"$f":"'Schedule XXIII'!N27","v":0},{"$f":"'Schedule XXIII'!P27","v":0},{"$f":"'Schedule XXIII'!Q27","v":0},null,0,0,null,{"$f":"'Schedule XXIII'!S27","v":0},{"$f":"'Schedule XXIII'!T27","v":0},{"$f":"'Schedule XXIII'!V27","v":0},null,0,0,0,null,0,0]
[null,"Total IR - Derivatives",{"$f":"SUM(C32:C49)","v":0},{"$f":"SUM(D32:D49)","v":0},{"$f":"SUM(E32:E49)","v":0},{"$f":"SUM(F32:F49)","v":0},null,{"$f":"SUM(H32:H49)","v":0},{"$f":"SUM(I32:I49)","v":0},null,{"$f":"SUM(K32:K49)","v":0},{"$f":"SUM(L32:L49)","v":0},{"$f":"SUM(M32:M49)","v":0},null,{"$f":"SUM(O32:O49)","v":0},{"$f":"SUM(P32:P49)","v":0},{"$f":"SUM(Q32:Q49)","v":0},null,{"$f":"SUM(S32:S49)","v":0},{"$f":"SUM(T32:T49)","v":0}]
[null,"Total IR - DOWN",{"$f":"C29+C50","v":0},{"$f":"D29+D50","v":0},{"$f":"E29+E50","v":0},{"$f":"F29+F50","v":0},null,{"$f":"H29+H50","v":0},{"$f":"I29+I50","v":0},null,{"$f":"K29+K50","v":0},{"$f":"L29+L50","v":0},{"$f":"M29+M50","v":0},null,{"$f":"O29+O50","v":0},{"$f":"P29+P50","v":0},{"$f":"Q29+Q50","v":0},null,{"$f":"MAX(0,S29+S50)","v":0},{"$f":"MAX(0,T29+T50)","v":0}]
[]
[null,"IR UP - Exposures without Derivatives"]
[null,{"$f":"'Schedule XXIII'!C35","v":"United States Dollars"},{"$f":"'Schedule XXIII'!E35","v":0},{"$f":"'Schedule XXIII'!F35","v":0},null,null,null,{"$f":"C54+E54","v":0},{"$f":"D54+F54","v":0},null,{"$f":"'Schedule XXIII'!H35","v":0},{"$f":"'Schedule XXIII'!I35","v":0},{"$f":"'Schedule XXIII'!K35","v":0},null,{"$f":"C54-D54","v":0},{"$f":"L54-K54","v":0},{"$f":"M54-K54","v":0},null,{"$f":"$O54+P54","v":0},{"$f":"$O54+Q54","v":0}]
[null,{"$f":"'Schedule XXIII'!C36","v":"Euro"},{"$f":"'Schedule XXIII'!E36","v":0},{"$f":"'Schedule XXIII'!F36","v":0},null,null,null,{"$f":"C55+E55","v":0},0,null,{"$f":"'Schedule XXIII'!H36","v":0},{"$f":"'Schedule XXIII'!I36","v":0},{"$f":"'Schedule XXIII'!K36","v":0},null,0,0,0,null,{"$f":"$O55+P55","v":0},0]
[null,{"$f":"'Schedule XXIII'!C37","v":"United Kingdom Pounds"},{"$f":"'Schedule XXIII'!E37","v":0},{"$f":"'Schedule XXIII'!F37","v":0},null,null,null,0,0,null,{"$f":"'Schedule XXIII'!H37","v":0},{"$f":"'Schedule XXIII'!I37","v":0},{"$f":"'Schedule XXIII'!K37","v":0},null,0,0,0,null,0,0]
[null,{"$f":"'Schedule XXIII'!C38","v":"Japan Yen"},{"$f":"'Schedule XXIII'!E38","v":0},{"$f":"'Schedule XXIII'!F38","v":0},null,null,null,0,0,null,{"$f":"'Schedule XXIII'!H38","v":0},{"$f":"'Schedule XXIII'!I38","v":0},{"$f":"'Schedule XXIII'!K38","v":0},null,0,0,0,null,0,0]
[null,{"$f":"'Schedule XXIII'!C39","v":"Canada Dollars"},{"$f":"'Schedule XXIII'!E39","v":0},{"$f":"'Schedule XXIII'!F39","v":0},null,null,null,0,0,null,{"$f":"'Schedule XXIII'!H39","v":0},{"$f":"'Schedule XXIII'!I39","v":0},{"$f":"'Schedule XXIII'!K39","v":0},null,0,0,0,null,0,0]
[null,{"$f":"'Schedule XXIII'!C40","v":"Swiss Francs"},{"$f":"'Schedule XXIII'!E40","v":0},{"$f":"'Schedule XXIII'!F40","v":0},null,null,null,0,0,null,{"$f":"'Schedule XXIII'!H40","v":0},{"$f":"'Schedule XXIII'!I40","v":0},{"$f":"'Schedule XXIII'!K40","v":0},null,0,0,0,null,0,0]
[null,{"$f":"'Schedule XXIII'!C41","v":"Australia Dollar"},{"$f":"'Schedule XXIII'!E41","v":0},{"$f":"'Schedule XXIII'!F41","v":0},null,null,null,0,0,null,{"$f":"'Schedule XXIII'!H41","v":0},{"$f":"'Schedule XXIII'!I41","v":0},{"$f":"'Schedule XXIII'!K41","v":0},null,0,0,0,null,0,0]
[null,{"$f":"'Schedule XXIII'!C42","v":"New Zealand Dollar"},{"$f":"'Schedule XXIII'!E42","v":0},{"$f":"'Schedule XXIII'!F42","v":0},null,null,null,0,0,null,{"$f":"'Schedule XXIII'!H42","v":0},{"$f":"'Schedule XXIII'!I42","v":0},{"$f":"'Schedule XXIII'!K42","v":0},null,0,0,0,null,0,0]
[null,{"$f":"'Schedule XXIII'!C43","v":"Other currency 1"},{"$f":"'Schedule XXIII'!E43","v":0},{"$f":"'Schedule XXIII'!F43","v":0},null,null,null,0,0,null,{"$f":"'Schedule XXIII'!H43","v":0},{"$f":"'Schedule XXIII'!I43","v":0},{"$f":"'Schedule XXIII'!K43","v":0},null,0,0,0,null,0,0]
[null,{"$f":"'Schedule XXIII'!C44","v":"Other currency 2"},{"$f":"'Schedule XXIII'!E44","v":0},{"$f":"'Schedule XXIII'!F44","v":0},null,null,null,0,0,null,{"$f":"'Schedule XXIII'!H44","v":0},{"$f":"'Schedule XXIII'!I44","v":0},{"$f":"'Schedule XXIII'!K44","v":0},null,0,0,0,null,0,0]
[null,{"$f":"'Schedule XXIII'!C45","v":"Other currency 3"},{"$f":"'Schedule XXIII'!E45","v":0},{"$f":"'Schedule XXIII'!F45","v":0},null,null,null,0,0,null,{"$f":"'Schedule XXIII'!H45","v":0},{"$f":"'Schedule XXIII'!I45","v":0},{"$f":"'Schedule XXIII'!K45","v":0},null,0,0,0,null,0,0]
[null,{"$f":"'Schedule XXIII'!C46","v":"Other currency 4"},{"$f":"'Schedule XXIII'!E46","v":0},{"$f":"'Schedule XXIII'!F46","v":0},null,null,null,0,0,null,{"$f":"'Schedule XXIII'!H46","v":0},{"$f":"'Schedule XXIII'!I46","v":0},{"$f":"'Schedule XXIII'!K46","v":0},null,0,0,0,null,0,0]
[null,{"$f":"'Schedule XXIII'!C47","v":"Other currency 5"},{"$f":"'Schedule XXIII'!E47","v":0},{"$f":"'Schedule XXIII'!F47","v":0},null,null,null,0,0,null,{"$f":"'Schedule XXIII'!H47","v":0},{"$f":"'Schedule XXIII'!I47","v":0},{"$f":"'Schedule XXIII'!K47","v":0},null,0,0,0,null,0,0]
[null,{"$f":"'Schedule XXIII'!C48","v":"Other currency 6"},{"$f":"'Schedule XXIII'!E48","v":0},{"$f":"'Schedule XXIII'!F48","v":0},null,null,null,0,0,null,{"$f":"'Schedule XXIII'!H48","v":0},{"$f":"'Schedule XXIII'!I48","v":0},{"$f":"'Schedule XXIII'!K48","v":0},null,0,0,0,null,0,0]
[null,{"$f":"'Schedule XXIII'!C49","v":"Other currency 7"},{"$f":"'Schedule XXIII'!E49","v":0},{"$f":"'Schedule XXIII'!F49","v":0},null,null,null,0,0,null,{"$f":"'Schedule XXIII'!H49","v":0},{"$f":"'Schedule XXIII'!I49","v":0},{"$f":"'Schedule XXIII'!K49","v":0},null,0,0,0,null,0,0]
[null,{"$f":"'Schedule XXIII'!C50","v":"Other currency 8"},{"$f":"'Schedule XXIII'!E50","v":0},{"$f":"'Schedule XXIII'!F50","v":0},null,null,null,0,0,null,{"$f":"'Schedule XXIII'!H50","v":0},{"$f":"'Schedule XXIII'!I50","v":0},{"$f":"'Schedule XXIII'!K50","v":0},null,0,0,0,null,0,0]
[null,{"$f":"'Schedule XXIII'!C51","v":"Other currency 9"},{"$f":"'Schedule XXIII'!E51","v":0},{"$f":"'Schedule XXIII'!F51","v":0},null,null,null,0,0,null,{"$f":"'Schedule XXIII'!H51","v":0},{"$f":"'Schedule XXIII'!I51","v":0},{"$f":"'Schedule XXIII'!K51","v":0},null,0,0,0,null,0,0]
[null,{"$f":"'Schedule XXIII'!C52","v":"Other currency 10"},{"$f":"'Schedule XXIII'!E52","v":0},{"$f":"'Schedule XXIII'!F52","v":0},null,null,null,0,0,null,{"$f":"'Schedule XXIII'!H52","v":0},{"$f":"'Schedule XXIII'!I52","v":0},{"$f":"'Schedule XXIII'!K52","v":0},null,0,0,0,null,0,0]
[null,"Total IR - Other",{"$f":"SUM(C54:C71)","v":0},{"$f":"SUM(D54:D71)","v":0},{"$f":"SUM(E54:E71)","v":0},{"$f":"SUM(F54:F71)","v":0},null,{"$f":"SUM(H54:H71)","v":0},{"$f":"SUM(I54:I71)","v":0},null,{"$f":"SUM(K54:K71)","v":0},{"$f":"SUM(L54:L71)","v":0},{"$f":"SUM(M54:M71)","v":0},null,{"$f":"SUM(O54:O71)","v":0},{"$f":"SUM(P54:P71)","v":0},{"$f":"SUM(Q54:Q71)","v":0},null,{"$f":"SUM(S54:S71)","v":0},{"$f":"SUM(T54:T71)","v":0}]
[]
[null,"IR Up - Derivatives"]
[null,{"$f":"'Schedule XXIII'!C35","v":"United States Dollars"},{"$f":"'Schedule XXIII'!M35","v":0},{"$f":"'Schedule XXIII'!N35","v":0},{"$f":"'Schedule XXIII'!P35","v":0},{"$f":"'Schedule XXIII'!Q35","v":0},null,{"$f":"C75+E75","v":0},{"$f":"D75+F75","v":0},null,{"$f":"'Schedule XXIII'!S35","v":0},{"$f":"'Schedule XXIII'!T35","v":0},{"$f":"'Schedule XXIII'!V35","v":0},null,{"$f":"C75-D75 + MAX(0,E75-F75)","v":0},{"$f":"L75-K75","v":0},{"$f":"M75-K75","v":0},null,{"$f":"$O75+P75","v":0},{"$f":"$O75+Q75","v":0}]
[null,{"$f":"'Schedule XXIII'!C36","v":"Euro"},{"$f":"'Schedule XXIII'!M36","v":0},{"$f":"'Schedule XXIII'!N36","v":0},{"$f":"'Schedule XXIII'!P36","v":0},{"$f":"'Schedule XXIII'!Q36","v":0},null,{"$f":"C76+E76","v":0},0,null,{"$f":"'Schedule XXIII'!S36","v":0},{"$f":"'Schedule XXIII'!T36","v":0},{"$f":"'Schedule XXIII'!V36","v":0},null,{"$f":"C76-D76 + MAX(0,E76-F76)","v":0},0,0,null,{"$f":"$O76+P76","v":0},0]
[null,{"$f":"'Schedule XXIII'!C37","v":"United Kingdom Pounds"},{"$f":"'Schedule XXIII'!M37","v":0},{"$f":"'Schedule XXIII'!N37","v":0},{"$f":"'Schedule XXIII'!P37","v":0},{"$f":"'Schedule XXIII'!Q37","v":0},null,0,0,null,{"$f":"'Schedule XXIII'!S37","v":0},{"$f":"'Schedule XXIII'!T37","v":0},{"$f":"'Schedule XXIII'!V37","v":0},null,{"$f":"C77-D77 + MAX(0,E77-F77)","v":0},0,0,null,0,0]
[null,{"$f":"'Schedule XXIII'!C38","v":"Japan Yen"},{"$f":"'Schedule XXIII'!M38","v":0},{"$f":"'Schedule XXIII'!N38","v":0},{"$f":"'Schedule XXIII'!P38","v":0},{"$f":"'Schedule XXIII'!Q38","v":0},null,0,0,null,{"$f":"'Schedule XXIII'!S38","v":0},{"$f":"'Schedule XXIII'!T38","v":0},{"$f":"'Schedule XXIII'!V38","v":0},null,{"$f":"C78-D78 + MAX(0,E78-F78)","v":0},0,0,null,0,0]
[null,{"$f":"'Schedule XXIII'!C39","v":"Canada Dollars"},{"$f":"'Schedule XXIII'!M39","v":0},{"$f":"'Schedule XXIII'!N39","v":0},{"$f":"'Schedule XXIII'!P39","v":0},{"$f":"'Schedule XXIII'!Q39","v":0},null,0,0,null,{"$f":"'Schedule XXIII'!S39","v":0},{"$f":"'Schedule XXIII'!T39","v":0},{"$f":"'Schedule XXIII'!V39","v":0},null,{"$f":"C79-D79 + MAX(0,E79-F79)","v":0},0,0,null,0,0]
[null,{"$f":"'Schedule XXIII'!C40","v":"Swiss Francs"},{"$f":"'Schedule XXIII'!M40","v":0},{"$f":"'Schedule XXIII'!N40","v":0},{"$f":"'Schedule XXIII'!P40","v":0},{"$f":"'Schedule XXIII'!Q40","v":0},null,0,0,null,{"$f":"'Schedule XXIII'!S40","v":0},{"$f":"'Schedule XXIII'!T40","v":0},{"$f":"'Schedule XXIII'!V40","v":0},null,{"$f":"C80-D80 + MAX(0,E80-F80)","v":0},0,0,null,0,0]
[null,{"$f":"'Schedule XXIII'!C41","v":"Australia Dollar"},{"$f":"'Schedule XXIII'!M41","v":0},{"$f":"'Schedule XXIII'!N41","v":0},{"$f":"'Schedule XXIII'!P41","v":0},{"$f":"'Schedule XXIII'!Q41","v":0},null,0,0,null,{"$f":"'Schedule XXIII'!S41","v":0},{"$f":"'Schedule XXIII'!T41","v":0},{"$f":"'Schedule XXIII'!V41","v":0},null,0,0,0,null,0,0]
[null,{"$f":"'Schedule XXIII'!C42","v":"New Zealand Dollar"},{"$f":"'Schedule XXIII'!M42","v":0},{"$f":"'Schedule XXIII'!N42","v":0},{"$f":"'Schedule XXIII'!P42","v":0},{"$f":"'Schedule XXIII'!Q42","v":0},null,0,0,null,{"$f":"'Schedule XXIII'!S42","v":0},{"$f":"'Schedule XXIII'!T42","v":0},{"$f":"'Schedule XXIII'!V42","v":0},null,0,0,0,null,0,0]
[null,{"$f":"'Schedule XXIII'!C43","v":"Other currency 1"},{"$f":"'Schedule XXIII'!M43","v":0},{"$f":"'Schedule XXIII'!N43","v":0},{"$f":"'Schedule XXIII'!P43","v":0},{"$f":"'Schedule XXIII'!Q43","v":0},null,0,0,null,{"$f":"'Schedule XXIII'!S43","v":0},{"$f":"'Schedule XXIII'!T43","v":0},{"$f":"'Schedule XXIII'!V43","v":0},null,0,0,0,null,0,0]
[null,{"$f":"'Schedule XXIII'!C44","v":"Other currency 2"},{"$f":"'Schedule XXIII'!M44","v":0},{"$f":"'Schedule XXIII'!N44","v":0},{"$f":"'Schedule XXIII'!P44","v":0},{"$f":"'Schedule XXIII'!Q44","v":0},null,0,0,null,{"$f":"'Schedule XXIII'!S44","v":0},{"$f":"'Schedule XXIII'!T44","v":0},{"$f":"'Schedule XXIII'!V44","v":0},null,0,0,0,null,0,0]
[null,{"$f":"'Schedule XXIII'!C45","v":"Other currency 3"},{"$f":"'Schedule XXIII'!M45","v":0},{"$f":"'Schedule XXIII'!N45","v":0},{"$f":"'Schedule XXIII'!P45","v":0},{"$f":"'Schedule XXIII'!Q45","v":0},null,0,0,null,{"$f":"'Schedule XXIII'!S45","v":0},{"$f":"'Schedule XXIII'!T45","v":0},{"$f":"'Schedule XXIII'!V45","v":0},null,0,0,0,null,0,0]
[null,{"$f":"'Schedule XXIII'!C46","v":"Other currency 4"},{"$f":"'Schedule XXIII'!M46","v":0},{"$f":"'Schedule XXIII'!N46","v":0},{"$f":"'Schedule XXIII'!P46","v":0},{"$f":"'Schedule XXIII'!Q46","v":0},null,0,0,null,{"$f":"'Schedule XXIII'!S46","v":0},{"$f":"'Schedule XXIII'!T46","v":0},{"$f":"'Schedule XXIII'!V46","v":0},null,0,0,0,null,0,0]
[null,{"$f":"'Schedule XXIII'!C47","v":"Other currency 5"},{"$f":"'Schedule XXIII'!M47","v":0},{"$f":"'Schedule XXIII'!N47","v":0},{"$f":"'Schedule XXIII'!P47","v":0},{"$f":"'Schedule XXIII'!Q47","v":0},null,0,0,null,{"$f":"'Schedule XXIII'!S47","v":0},{"$f":"'Schedule XXIII'!T47","v":0},{"$f":"'Schedule XXIII'!V47","v":0},null,0,0,0,null,0,0]
[null,{"$f":"'Schedule XXIII'!C48","v":"Other currency 6"},{"$f":"'Schedule XXIII'!M48","v":0},{"$f":"'Schedule XXIII'!N48","v":0},{"$f":"'Schedule XXIII'!P48","v":0},{"$f":"'Schedule XXIII'!Q48","v":0},null,0,0,null,{"$f":"'Schedule XXIII'!S48","v":0},{"$f":"'Schedule XXIII'!T48","v":0},{"$f":"'Schedule XXIII'!V48","v":0},null,0,0,0,null,0,0]
[null,{"$f":"'Schedule XXIII'!C49","v":"Other currency 7"},{"$f":"'Schedule XXIII'!M49","v":0},{"$f":"'Schedule XXIII'!N49","v":0},{"$f":"'Schedule XXIII'!P49","v":0},{"$f":"'Schedule XXIII'!Q49","v":0},null,0,0,null,{"$f":"'Schedule XXIII'!S49","v":0},{"$f":"'Schedule XXIII'!T49","v":0},{"$f":"'Schedule XXIII'!V49","v":0},null,0,0,0,null,0,0]
[null,{"$f":"'Schedule XXIII'!C50","v":"Other currency 8"},{"$f":"'Schedule XXIII'!M50","v":0},{"$f":"'Schedule XXIII'!N50","v":0},{"$f":"'Schedule XXIII'!P50","v":0},{"$f":"'Schedule XXIII'!Q50","v":0},null,0,0,null,{"$f":"'Schedule XXIII'!S50","v":0},{"$f":"'Schedule XXIII'!T50","v":0},{"$f":"'Schedule XXIII'!V50","v":0},null,0,0,0,null,0,0]
[null,{"$f":"'Schedule XXIII'!C51","v":"Other currency 9"},{"$f":"'Schedule XXIII'!M51","v":0},{"$f":"'Schedule XXIII'!N51","v":0},{"$f":"'Schedule XXIII'!P51","v":0},{"$f":"'Schedule XXIII'!Q51","v":0},null,0,0,null,{"$f":"'Schedule XXIII'!S51","v":0},{"$f":"'Schedule XXIII'!T51","v":0},{"$f":"'Schedule XXIII'!V51","v":0},null,0,0,0,null,0,0]
[null,{"$f":"'Schedule XXIII'!C52","v":"Other currency 10"},{"$f":"'Schedule XXIII'!M52","v":0},{"$f":"'Schedule XXIII'!N52","v":0},{"$f":"'Schedule XXIII'!P52","v":0},{"$f":"'Schedule XXIII'!Q52","v":0},null,0,0,null,{"$f":"'Schedule XXIII'!S52","v":0},{"$f":"'Schedule XXIII'!T52","v":0},{"$f":"'Schedule XXIII'!V52","v":0},null,0,0,0,null,0,0]
[null,"Total IR - Derivatives",{"$f":"SUM(C75:C92)","v":0},{"$f":"SUM(D75:D92)","v":0},{"$f":"SUM(E75:E92)","v":0},{"$f":"SUM(F75:F92)","v":0},null,{"$f":"SUM(H75:H92)","v":0},{"$f":"SUM(I75:I92)","v":0},null,{"$f":"SUM(K75:K92)","v":0},{"$f":"SUM(L75:L92)","v":0},{"$f":"SUM(M75:M92)","v":0},null,{"$f":"SUM(O75:O92)","v":0},{"$f":"SUM(P75:P92)","v":0},{"$f":"SUM(Q75:Q92)","v":0},null,{"$f":"SUM(S75:S92)","v":0},{"$f":"SUM(T75:T92)","v":0}]
[null,"Total IR - UP",{"$f":"C72+C93","v":0},{"$f":"D72+D93","v":0},{"$f":"E72+E93","v":0},{"$f":"F72+F93","v":0},null,{"$f":"H72+H93","v":0},{"$f":"I72+I93","v":0},null,{"$f":"K72+K93","v":0},{"$f":"L72+L93","v":0},{"$f":"M72+M93","v":0},null,{"$f":"O72+O93","v":0},{"$f":"P72+P93","v":0},{"$f":"Q72+Q93","v":0},null,{"$f":"MAX(0,S72+S93)","v":0},{"$f":"MAX(0,T72+T93)","v":0}]
[]
[]
[null,"Overall Interest Rate Risk",null,null,null,null,null,"Scenario-Based Approach"]
[null,null,null,null,null,null,null,null,null,null,"Without Management Actions",null,null,null,"With Management Actions"]
[null,"Interest Rates Down Shock - without Management Actions",null,null,{"$f":"S51","v":0},null,null,null,"EBS Base",null,"EBS Shock",null,null,null,"EBS Shock"]
[null,"Interest Rates Up Shock - without Management Actions",null,null,{"$f":"S94","v":0}]
[null,"Max(IR Down, IR Up) - without MA",null,null,{"$f":"MAX(0,E99,E100)","v":0},null,null,"Shock used",null,null,"Down","Up",null,null,"Down","Up"]
[]
[null,"Interest Rate Risk without Management Actions",null,null,{"$f":"MAX(0,IF(E109=\"UP\",E100,E99))","v":0},null,null,"MV Assets",{"$f":"C51","v":0},null,{"$f":"D51-(O50-(C50-D50))","v":0},{"$f":"D94-(O93-(C93-D93))","v":0},null,null,{"$f":"K103","v":0},{"$f":"L103","v":0}]
[null,null,null,null,null,null,null,"BEL",{"$f":"K51","v":0},null,{"$f":"L51","v":0},{"$f":"L94","v":0},null,null,{"$f":"M51","v":0},{"$f":"M94","v":0}]
[]
[null,"Interest Rates Down Shock - with Management Actions",null,null,{"$f":"T51","v":0},null,null,"BEL-Worst",{"$f":"'Form 4EBS'!$F$233","v":0},null,{"$f":"$I106","v":0},{"$f":"$I106","v":0},null,null,{"$f":"$I106","v":0},{"$f":"$I106","v":0}]
[null,"Interest Rates Up Shock - with Management Actions",null,null,{"$f":"T94","v":0},null,null,"BEL-Base",{"$f":"'Form 4EBS'!$F$235","v":0},null,{"$f":"$I107","v":0},{"$f":"$I107","v":0},null,null,{"$f":"$I107","v":0},{"$f":"$I107","v":0}]
[null,"Max(IR Down, IR Up) - with MA",null,null,{"$f":"MAX(E106,E107)","v":0}]
[null,"Biting scenario",null,null,{"$f":"IF(E108=E106,\"DOWN\",\"UP\")","v":"DOWN"},null,null,"\"NAV\"",{"$f":"I$103-I$104","v":0},null,{"$f":"K$103-K$104","v":0},{"$f":"L$103-L$104","v":0},null,null,{"$f":"O$103-O$104","v":0},{"$f":"P$103-P$104","v":0}]
[]
[null,"Interest Rate Risk with Management Actions",null,null,{"$f":"MAX(0,E108)","v":0},null,null,"CR IR",null,null,{"$f":"MAX(0,$I109-K109)","v":0},{"$f":"MAX(0,$I109-L109)","v":0},null,null,{"$f":"MAX(0,$I109-O109)","v":0},{"$f":"MAX(0,$I109-P109)","v":0}]
[null,null,null,null,null,null,null,"Floor (25 % of CR IR)",null,null,{"$f":"25%*K111","v":0},{"$f":"25%*L111","v":0},null,null,{"$f":"25%*O111","v":0},{"$f":"25%*P111","v":0}]
[null,null,null,null,null,null,null,"BEL Deduction",null,null,{"$f":"K$106-K$107","v":0},{"$f":"L$106-L$107","v":0},null,null,{"$f":"O$106-O$107","v":0},{"$f":"P$106-P$107","v":0}]
[null,"Adjustment to IR Risk capital requirement",null,"Without MA","With MA",null,null,"Factor-adjusted BEL Deduct",null,null,{"$f":"50%*K113","v":0},{"$f":"50%*L113","v":0},null,null,{"$f":"50%*O113","v":0},{"$f":"50%*P113","v":0}]
[null,"For companies using Scenario-Based Approach",null,{"$f":"IF(OR(VALUE(I107)=0,VALUE(I106)=0),0,IF($E$109=\"DOWN\",K116-K111,L116-L111))","v":0},{"$f":"IF(OR(VALUE(I107)=0,VALUE(I106)=0),0,IF($E$109=\"DOWN\",O116-O111,P116-P111))","v":0}]
[null,null,null,null,null,null,null,"Capital Charge with 50 % factor",null,null,{"$f":"MAX(K112,K111-K114)","v":0},{"$f":"MAX(L112,L111-L114)","v":0},null,null,{"$f":"MAX(O112,O111-O114)","v":0},{"$f":"MAX(P112,P111-P114)","v":0}]
[null,"Interest Rate Risk capital requirement",null,{"$f":"MAX(E103+D115,0)","v":0},{"$f":"MAX(E111+E115,0)","v":0},null,null,"Max(Down,Up)",null,null,{"$f":"IF(K111>L111,K116,L116)","v":0},null,null,null,{"$f":"IF(O111>P111,O116,P116)","v":0}]

{"sheet":"Currency Risk","index":100,"n_rows":28,"n_cols":9,"rows_kept":28,"cut":false,"hidden":false,"merged":[[0,8,0,9],[4,7,5,7],[4,8,4,9]]}
["CURRENCY RISK",null,null,null,null,null,null,null,{"$f":"HYPERLINK(\"#'Index'!A1\",\"Return to Index\")","v":"Return to Index"}]
[{"$f":"'Insurer Information'!C7","v":"Enter Company Name"}]
[{"$f":"\"Currency Risk\" & \" ($\" & IF(CONFIGURATION!$B$12>1,\"'\"&MID(CONFIGURATION!$B$12,2,LEN(CONFIGURATION!$B$12)),\"\") & \")\"","v":"Currency Risk ($'000)"},null,{"$f":" TEXT('Insurer Information'!C3,\"D MMMM YYYY\")","v":"31 December 2023"}]
[]
[null,null,"(A)","(B)","(C)","(D)",{"$f":"\"(E) = (\"&ROUND(G6,2)*100&\"% of C)\"","v":"(E) = (0% of C)"},"(F) = (if(A>(C+E), 0%, 25%))","(G) = F x ABS(A-C-E)"]
[null,null,"ASSETS","TOTAL ASSETS WITH","LIABILITIES","TOTAL LIABILITIES WITH",{"$f":"+'Schedule XX'!T36","v":0},null,"REQUIRED"]
[null,"CURRENCY","Form 1EBS, Line 15","HEDGING ARRAGEMENTS","Form 1EBS, Line 39","HEDGING ARRAGEMENTS","PROXY BSCR","CHARGE","CAPITAL"]
[]
[null,{"$f":"'Schedule XX'!B9","v":"United States Dollars"},{"$f":"+'Schedule XX'!L9","v":0},{"$f":"+'Schedule XX'!N9","v":0},{"$f":"+'Schedule XX'!P9","v":0},{"$f":"+'Schedule XX'!R9","v":0},{"$f":"IF(F9=0,E9*$G$6,F9*$G$6)","v":0},0,{"$f":"IF(SUM(C10:E23)=0,0,IF(D9=0,H9*ABS(C9-E9-G9),H9*ABS(D9-F9-G9)))","v":0}]
[null,{"$f":"'Schedule XX'!B10","v":"Euro"},{"$f":"+'Schedule XX'!L10","v":0},{"$f":"+'Schedule XX'!N10","v":0},{"$f":"+'Schedule XX'!P10","v":0},{"$f":"+'Schedule XX'!R10","v":0},{"$f":"IF(F10=0,E10*$G$6,F10*$G$6)","v":0},{"$f":"IF(D10=0,IF(C10>(E10+G10),0%,25%),IF(D10>(F10+G10),0%,25%))","v":0.25},{"$f":"IF(D10=0,H10*ABS(C10-E10-G10),H10*ABS(D10-F10-G10))","v":0}]
[null,{"$f":"'Schedule XX'!B11","v":"United Kingdom Pounds"},{"$f":"+'Schedule XX'!L11","v":0},{"$f":"+'Schedule XX'!N11","v":0},{"$f":"+'Schedule XX'!P11","v":0},{"$f":"+'Schedule XX'!R11","v":0},0,0.25,0]
[null,{"$f":"'Schedule XX'!B12","v":"Canada Dollars"},{"$f":"+'Schedule XX'!L12","v":0},{"$f":"+'Schedule XX'!N12","v":0},{"$f":"+'Schedule XX'!P12","v":0},{"$f":"+'Schedule XX'!R12","v":0},0,0.25,0]
[null,{"$f":"'Schedule XX'!B13","v":"Japan Yen"},{"$f":"+'Schedule XX'!L13","v":0},{"$f":"+'Schedule XX'!N13","v":0},{"$f":"+'Schedule XX'!P13","v":0},{"$f":"+'Schedule XX'!R13","v":0},0,0.25,0]
[null,{"$f":"'Schedule XX'!B14","v":"Other currency 1"},{"$f":"+'Schedule XX'!L14","v":0},{"$f":"+'Schedule XX'!N14","v":0},{"$f":"+'Schedule XX'!P14","v":0},{"$f":"+'Schedule XX'!R14","v":0},0,0.25,0]
[null,{"$f":"'Schedule XX'!B15","v":"Other currency 2"},{"$f":"+'Schedule XX'!L15","v":0},{"$f":"+'Schedule XX'!N15","v":0},{"$f":"+'Schedule XX'!P15","v":0},{"$f":"+'Schedule XX'!R15","v":0},0,0.25,0]
[null,{"$f":"'Schedule XX'!B16","v":"Other currency 3"},{"$f":"+'Schedule XX'!L16","v":0},{"$f":"+'Schedule XX'!N16","v":0},{"$f":"+'Schedule XX'!P16","v":0},{"$f":"+'Schedule XX'!R16","v":0},0,0.25,0]
[null,{"$f":"'Schedule XX'!B17","v":"Other currency 4"},{"$f":"+'Schedule XX'!L17","v":0},{"$f":"+'Schedule XX'!N17","v":0},{"$f":"+'Schedule XX'!P17","v":0},{"$f":"+'Schedule XX'!R17","v":0},0,0.25,0]
[null,{"$f":"'Schedule XX'!B18","v":"Other currency 5"},{"$f":"+'Schedule XX'!L18","v":0},{"$f":"+'Schedule XX'!N18","v":0},{"$f":"+'Schedule XX'!P18","v":0},{"$f":"+'Schedule XX'!R18","v":0},0,0.25,{"$f":"IF(D18=0,H18*ABS(C18-E18-G18),H18*ABS(D18-F18-G18))","v":0}]
[null,{"$f":"'Schedule XX'!B19","v":"Other currency 6"},{"$f":"+'Schedule XX'!L19","v":0},{"$f":"+'Schedule XX'!N19","v":0},{"$f":"+'Schedule XX'!P19","v":0},{"$f":"+'Schedule XX'!R19","v":0},0,0.25,0]
[null,{"$f":"'Schedule XX'!B20","v":"Other currency 7"},{"$f":"+'Schedule XX'!L20","v":0},{"$f":"+'Schedule XX'!N20","v":0},{"$f":"+'Schedule XX'!P20","v":0},{"$f":"+'Schedule XX'!R20","v":0},0,0.25,0]
[null,{"$f":"'Schedule XX'!B21","v":"Other currency 8"},{"$f":"+'Schedule XX'!L21","v":0},{"$f":"+'Schedule XX'!N21","v":0},{"$f":"+'Schedule XX'!P21","v":0},{"$f":"+'Schedule XX'!R21","v":0},0,0.25,0]
[null,{"$f":"'Schedule XX'!B22","v":"Other currency 9"},{"$f":"+'Schedule XX'!L22","v":0},{"$f":"+'Schedule XX'!N22","v":0},{"$f":"+'Schedule XX'!P22","v":0},{"$f":"+'Schedule XX'!R22","v":0},0,0.25,0]
[null,{"$f":"'Schedule XX'!B23","v":"Other currency 10"},{"$f":"+'Schedule XX'!L23","v":0},{"$f":"+'Schedule XX'!N23","v":0},{"$f":"+'Schedule XX'!P23","v":0},{"$f":"+'Schedule XX'!R23","v":0},0,0.25,0]
[null,"Total Identified",{"$f":"SUM(C9:C23)","v":0},{"$f":"SUM(D9:D23)","v":0},{"$f":"SUM(E9:E23)","v":0},{"$f":"SUM(F9:F23)","v":0}]
[null,"Total",{"$f":"+'Schedule XX'!L27","v":0},null,{"$f":"+'Schedule XX'!P27","v":0}]
[null,"% Identified",{"$f":"IF(C24=0,0,C24/C25)","v":0},null,{"$f":"IF(E24=0,0,E24/E25)","v":0}]
[]
[null,"TOTAL CURRENCY RISK",{"$f":"SUM(C9:C23)","v":0},null,{"$f":"SUM(E9:E23)","v":0},null,null,null,{"$f":"IF(SUM(I9:I26)>=0,SUM(I9:I26),0)","v":0}]

{"sheet":"Currency Risk (Revised)","index":101,"n_rows":39,"n_cols":25,"rows_kept":39,"cut":false,"hidden":false,"merged":[[5,2,5,9],[5,11,5,17],[5,19,5,21],[5,23,5,24],[8,3,8,4],[8,5,8,6],[8,12,8,13],[8,14,8,15]]}
["CURRENCY RISK (REVISED)",null,null,null,null,null,null,null,null,null,null,null,null,null,null,null,null,null,null,null,null,null,null,null,{"$f":"HYPERLINK(\"#'Index'!A1\",\"Return to Index\")","v":"Return to Index"}]
[{"$f":"'Insurer Information'!C7","v":"Enter Company Name"}]
[{"$f":"\"Currency Risk\" & \" ($\" & IF(CONFIGURATION!$B$12>1,\"'\"&MID(CONFIGURATION!$B$12,2,LEN(CONFIGURATION!$B$12)),\"\") & \")\"","v":"Currency Risk ($'000)"},null,null,null,null,null,{"$f":" TEXT('Insurer Information'!C3,\"D MMMM YYYY\")","v":"31 December 2023"}]
[]
[null,null,-1,{"$f":"C5-1","v":-2},-3,-4,-5,-6,-7,-8,null,{"$f":"J5-1","v":-9},{"$f":"L5-1","v":-10},-11,-12,-13,-14,-15,null,{"$f":"R5-1","v":-16},{"$f":"T5-1","v":-17},{"$f":"U5-1","v":-18},null,{"$f":"V5-1","v":-19},{"$f":"X5-1","v":-20}]
[null,null,"MARKET VALUE BEFORE SHOCK",null,null,null,null,null,null,null,null,"MARKET VALUE AFTER SHOCK",null,null,null,null,null,null,null,"CURRENCY RISK"]
[null,null,null,null,null,null,null,null,"(6) x BSCR PROXY","if(((1) + (2) + (3) + (4) + (5)) > ((6) + (7)), 0, X1)"]
[null,null,null,null,null,null,null,null,"PROXY BSCR",null,null,"(1) + (8) x (1)",null,null,null,null,"(6) + (8) x (6)",null,null,"((1) - (9)) + ((2) - (10)) + ((3) - (11)) + MAX((4) - (12),0) + MAX((5) - (13),0)","(14) - (6)","(15) - (6)",null,"(16) + (17)","(16) + (18)"]
[null,null,null,"Long Exposures",null,"Short Exposures",null,null,null,null,null,null,"Long Exposures",null,"Short Exposures"]
[null,"CURRENCY","Assets - Excluding currency-sensitive derivatives","Currency Derivatives Qualifying as held for risk-mitigation purposes","Currency Derivatives Not Qualifying as held for risk-mitigation purposes","Currency Derivatives Qualifying as held for risk-mitigation purposes","Currency Derivatives Not Qualifying as held for risk-mitigation purposes","Best Estimate Liabilities",{"$f":"'Schedule XXA'!P45","v":0},"SHOCK",null,"Assets - Excluding currency-sensitive derivatives","Currency Derivatives Qualifying as held for risk-mitigation purposes","Currency Derivatives Not Qualifying as held for risk-mitigation purposes","Currency Derivatives Qualifying as held for risk-mitigation purposes","Currency Derivatives Not Qualifying as held for risk-mitigation purposes","Best Estimate Liabilities without Management Actions","Best Estimate Liabilities with Management Actions",null,"ASSETS","TECHNICAL PROVISIONS WITHOUT MANAGEMENT ACTIONS","TECHNICAL PROVISIONS WITH MANAGEMENT ACTIONS",null,"CAPITAL CHARGE WITHOUT MANAGEMENT ACTIONS","CAPITAL CHARGE WITH MANAGEMENT ACTIONS"]
[]
[null,{"$f":"'Schedule XXA'!B10","v":"United States Dollars"},{"$f":"'Schedule XXA'!D10","v":0},{"$f":"'Schedule XXA'!F10","v":0},{"$f":"'Schedule XXA'!H10","v":0},{"$f":"'Schedule XXA'!J10","v":0},{"$f":"'Schedule XXA'!L10","v":0},{"$f":"'Schedule XXA'!N10","v":0},{"$f":"$I$10*H12","v":0},0,null,{"$f":"'Schedule XXA'!V10","v":0},{"$f":"'Schedule XXA'!X10","v":0},{"$f":"'Schedule XXA'!Z10","v":0},{"$f":"'Schedule XXA'!AB10","v":0},{"$f":"'Schedule XXA'!AD10","v":0},{"$f":"'Schedule XXA'!AF10","v":0},{"$f":"IF('Schedule XXA'!AH10=0,Q12,'Schedule XXA'!AH10)","v":0},null,{"$f":"(C12-L12)+(D12-M12)+(F12-O12)+MAX(E12-N12,0)+MAX(G12-P12,0)","v":0},{"$f":"Q12-$H12","v":0},{"$f":"R12-$H12","v":0},null,{"$f":"MAX(0,$T12+U12+(J12*I12))","v":0},{"$f":"MAX(0,$T12+V12+(J12*I12))","v":0}]
[null,{"$f":"'Schedule XXA'!B11","v":"Bermuda Dollars"},{"$f":"'Schedule XXA'!D11","v":0},{"$f":"'Schedule XXA'!F11","v":0},{"$f":"'Schedule XXA'!H11","v":0},{"$f":"'Schedule XXA'!J11","v":0},{"$f":"'Schedule XXA'!L11","v":0},{"$f":"'Schedule XXA'!N11","v":0},{"$f":"$I$10*H13","v":0},{"$f":"IF($B$12=\"Bermuda Dollars\",0%,IF($B$12=\"United States Dollars\",0%,IF((SUM(C13:G13))>(H13+I13),0%,25%)))","v":0},null,{"$f":"'Schedule XXA'!V11","v":0},{"$f":"'Schedule XXA'!X11","v":0},{"$f":"'Schedule XXA'!Z11","v":0},{"$f":"'Schedule XXA'!AB11","v":0},{"$f":"'Schedule XXA'!AD11","v":0},{"$f":"'Schedule XXA'!AF11","v":0},{"$f":"IF('Schedule XXA'!AH11=0,Q13,'Schedule XXA'!AH11)","v":0},null,{"$f":"(C13-L13)+(D13-M13)+(F13-O13)+MAX(E13-N13,0)+MAX(G13-P13,0)","v":0},{"$f":"Q13-$H13","v":0},0,null,{"$f":"MAX(0,$T13+U13+(J13*I13))","v":0},{"$f":"MAX(0,$T13+V13+(J13*I13))","v":0}]
[null,{"$f":"'Schedule XXA'!B12","v":"Qatar Riyals"},{"$f":"'Schedule XXA'!D12","v":0},{"$f":"'Schedule XXA'!F12","v":0},{"$f":"'Schedule XXA'!H12","v":0},{"$f":"'Schedule XXA'!J12","v":0},{"$f":"'Schedule XXA'!L12","v":0},{"$f":"'Schedule XXA'!N12","v":0},0,{"$f":"IF($B$12=\"Qatar Riyals\",IF((SUM(C14:G14))>(H14+I14),0%,5%),IF($B$12=\"United States Dollars\",IF((C14+E14)>(H14+I14),0%,5%),IF((SUM(C14:G14))>(H14+I14),0%,25%)))","v":0.05},null,{"$f":"'Schedule XXA'!V12","v":0},{"$f":"'Schedule XXA'!X12","v":0},{"$f":"'Schedule XXA'!Z12","v":0},{"$f":"'Schedule XXA'!AB12","v":0},{"$f":"'Schedule XXA'!AD12","v":0},{"$f":"'Schedule XXA'!AF12","v":0},{"$f":"IF('Schedule XXA'!AH12=0,Q14,'Schedule XXA'!AH12)","v":0},null,0,0,0,null,0,0]
[null,{"$f":"'Schedule XXA'!B13","v":"Hong Kong Dollars"},{"$f":"'Schedule XXA'!D13","v":0},{"$f":"'Schedule XXA'!F13","v":0},{"$f":"'Schedule XXA'!H13","v":0},{"$f":"'Schedule XXA'!J13","v":0},{"$f":"'Schedule XXA'!L13","v":0},{"$f":"'Schedule XXA'!N13","v":0},0,{"$f":"IF($B$12=\"Hong Kong Dollars\",IF((SUM(C15:G15))>(H15+I15),0%,1%),IF($B$12=\"United States Dollars\",IF((C15+E15)>(H15+I15),0%,1%),IF((SUM(C15:G15))>(H15+I15),0%,25%)))","v":0.01},null,{"$f":"'Schedule XXA'!V13","v":0},{"$f":"'Schedule XXA'!X13","v":0},{"$f":"'Schedule XXA'!Z13","v":0},{"$f":"'Schedule XXA'!AB13","v":0},{"$f":"'Schedule XXA'!AD13","v":0},{"$f":"'Schedule XXA'!AF13","v":0},{"$f":"IF('Schedule XXA'!AH13=0,Q15,'Schedule XXA'!AH13)","v":0},null,0,0,0,null,0,0]
[null,{"$f":"'Schedule XXA'!B14","v":"Euro"},{"$f":"'Schedule XXA'!D14","v":0},{"$f":"'Schedule XXA'!F14","v":0},{"$f":"'Schedule XXA'!H14","v":0},{"$f":"'Schedule XXA'!J14","v":0},{"$f":"'Schedule XXA'!L14","v":0},{"$f":"'Schedule XXA'!N14","v":0},0,{"$f":"IF($B$12=\"Denmark Kroner\",IF((C16+D16+E16+F16+G16)>(H16+I16),0%,0.39%),IF($B$12=\"Bulgaria Leva\",IF((C16+D16+E16+F16+G16)>(H16+I16),0%,1.81%),IF($B$12=\"West African CFA Francs\",IF((C16+D16+E16+F16+G16)>(H16+I16),0%,2.18%),IF($B$12=\"Central African CFA Francs\",IF((C16+D16+E16+F16+G16)>(H16+I16),0%,1.96%),IF($B$12=\"Comorian Francs\",IF((C16+D16+E16+F16+G16)>(H16+I16),0%,2%),IF((C16+D16+E16+F16+G16)>(H16+I16),0%,25%))))))","v":0.25},null,{"$f":"'Schedule XXA'!V14","v":0},{"$f":"'Schedule XXA'!X14","v":0},{"$f":"'Schedule XXA'!Z14","v":0},{"$f":"'Schedule XXA'!AB14","v":0},{"$f":"'Schedule XXA'!AD14","v":0},{"$f":"'Schedule XXA'!AF14","v":0},{"$f":"IF('Schedule XXA'!AH14=0,Q16,'Schedule XXA'!AH14)","v":0},null,0,0,0,null,0,0]
[null,{"$f":"'Schedule XXA'!B15","v":"Denmark Kroner"},{"$f":"'Schedule XXA'!D15","v":0},{"$f":"'Schedule XXA'!F15","v":0},{"$f":"'Schedule XXA'!H15","v":0},{"$f":"'Schedule XXA'!J15","v":0},{"$f":"'Schedule XXA'!L15","v":0},{"$f":"'Schedule XXA'!N15","v":0},0,{"$f":"IF($B$12=\"Euro\",IF((SUM(C17:G17))>(H17+I17),0%,0.39%),IF((SUM(C17:G17))>(H17+I17),0%,25%))","v":0.25},null,{"$f":"'Schedule XXA'!V15","v":0},{"$f":"'Schedule XXA'!X15","v":0},{"$f":"'Schedule XXA'!Z15","v":0},{"$f":"'Schedule XXA'!AB15","v":0},{"$f":"'Schedule XXA'!AD15","v":0},{"$f":"'Schedule XXA'!AF15","v":0},{"$f":"IF('Schedule XXA'!AH15=0,Q17,'Schedule XXA'!AH15)","v":0},null,0,0,0,null,0,0]
[null,{"$f":"'Schedule XXA'!B16","v":"Bulgaria Leva"},{"$f":"'Schedule XXA'!D16","v":0},{"$f":"'Schedule XXA'!F16","v":0},{"$f":"'Schedule XXA'!H16","v":0},{"$f":"'Schedule XXA'!J16","v":0},{"$f":"'Schedule XXA'!L16","v":0},{"$f":"'Schedule XXA'!N16","v":0},0,{"$f":"IF($B$12=\"Euro\",IF((SUM(C18:G18))>(H18+I18),0%,1.81%),IF((SUM(C18:G18))>(H18+I18),0%,25%))","v":0.25},null,{"$f":"'Schedule XXA'!V16","v":0},{"$f":"'Schedule XXA'!X16","v":0},{"$f":"'Schedule XXA'!Z16","v":0},{"$f":"'Schedule XXA'!AB16","v":0},{"$f":"'Schedule XXA'!AD16","v":0},{"$f":"'Schedule XXA'!AF16","v":0},{"$f":"IF('Schedule XXA'!AH16=0,Q18,'Schedule XXA'!AH16)","v":0},null,0,0,0,null,0,0]
[null,{"$f":"'Schedule XXA'!B17","v":"West African CFA Francs"},{"$f":"'Schedule XXA'!D17","v":0},{"$f":"'Schedule XXA'!F17","v":0},{"$f":"'Schedule XXA'!H17","v":0},{"$f":"'Schedule XXA'!J17","v":0},{"$f":"'Schedule XXA'!L17","v":0},{"$f":"'Schedule XXA'!N17","v":0},0,{"$f":"IF($B$12=\"Euro\",IF((SUM(C19:G19))>(H19+I19),0%,2.18%),IF((SUM(C19:G19))>(H19+I19),0%,25%))","v":0.25},null,{"$f":"'Schedule XXA'!V17","v":0},{"$f":"'Schedule XXA'!X17","v":0},{"$f":"'Schedule XXA'!Z17","v":0},{"$f":"'Schedule XXA'!AB17","v":0},{"$f":"'Schedule XXA'!AD17","v":0},{"$f":"'Schedule XXA'!AF17","v":0},{"$f":"IF('Schedule XXA'!AH17=0,Q19,'Schedule XXA'!AH17)","v":0},null,0,0,0,null,0,0]
[null,{"$f":"'Schedule XXA'!B18","v":"Central African CFA Francs"},{"$f":"'Schedule XXA'!D18","v":0},{"$f":"'Schedule XXA'!F18","v":0},{"$f":"'Schedule XXA'!H18","v":0},{"$f":"'Schedule XXA'!J18","v":0},{"$f":"'Schedule XXA'!L18","v":0},{"$f":"'Schedule XXA'!N18","v":0},0,{"$f":"IF($B$12=\"Euro\",IF((SUM(C20:G20))>(H20+I20),0%,1.96%),IF((SUM(C20:G20))>(H20+I20),0%,25%))","v":0.25},null,{"$f":"'Schedule XXA'!V18","v":0},{"$f":"'Schedule XXA'!X18","v":0},{"$f":"'Schedule XXA'!Z18","v":0},{"$f":"'Schedule XXA'!AB18","v":0},{"$f":"'Schedule XXA'!AD18","v":0},{"$f":"'Schedule XXA'!AF18","v":0},{"$f":"IF('Schedule XXA'!AH18=0,Q20,'Schedule XXA'!AH18)","v":0},null,0,0,0,null,0,0]
[null,{"$f":"'Schedule XXA'!B19","v":"Comorian Francs"},{"$f":"'Schedule XXA'!D19","v":0},{"$f":"'Schedule XXA'!F19","v":0},{"$f":"'Schedule XXA'!H19","v":0},{"$f":"'Schedule XXA'!J19","v":0},{"$f":"'Schedule XXA'!L19","v":0},{"$f":"'Schedule XXA'!N19","v":0},0,{"$f":"IF($B$12=\"Euro\",IF((SUM(C21:G21))>(H21+I21),0%,2%),IF((SUM(C21:G21))>(H21+I21),0%,25%))","v":0.25},null,{"$f":"'Schedule XXA'!V19","v":0},{"$f":"'Schedule XXA'!X19","v":0},{"$f":"'Schedule XXA'!Z19","v":0},{"$f":"'Schedule XXA'!AB19","v":0},{"$f":"'Schedule XXA'!AD19","v":0},{"$f":"'Schedule XXA'!AF19","v":0},{"$f":"IF('Schedule XXA'!AH19=0,Q21,'Schedule XXA'!AH19)","v":0},null,0,0,0,null,0,0]
[null,{"$f":"'Schedule XXA'!B20","v":"United Kingdom Pounds"},{"$f":"'Schedule XXA'!D20","v":0},{"$f":"'Schedule XXA'!F20","v":0},{"$f":"'Schedule XXA'!H20","v":0},{"$f":"'Schedule XXA'!J20","v":0},{"$f":"'Schedule XXA'!L20","v":0},{"$f":"'Schedule XXA'!N20","v":0},0,{"$f":"IF((SUM(C22:G22))>(H22+I22),0%,25%)","v":0.25},null,{"$f":"'Schedule XXA'!V20","v":0},{"$f":"'Schedule XXA'!X20","v":0},{"$f":"'Schedule XXA'!Z20","v":0},{"$f":"'Schedule XXA'!AB20","v":0},{"$f":"'Schedule XXA'!AD20","v":0},{"$f":"'Schedule XXA'!AF20","v":0},{"$f":"IF('Schedule XXA'!AH20=0,Q22,'Schedule XXA'!AH20)","v":0},null,0,0,0,null,0,0]
[null,{"$f":"'Schedule XXA'!B21","v":"Canada Dollars"},{"$f":"'Schedule XXA'!D21","v":0},{"$f":"'Schedule XXA'!F21","v":0},{"$f":"'Schedule XXA'!H21","v":0},{"$f":"'Schedule XXA'!J21","v":0},{"$f":"'Schedule XXA'!L21","v":0},{"$f":"'Schedule XXA'!N21","v":0},0,{"$f":"IF((SUM(C23:G23))>(H23+I23),0%,25%)","v":0.25},null,{"$f":"'Schedule XXA'!V21","v":0},{"$f":"'Schedule XXA'!X21","v":0},{"$f":"'Schedule XXA'!Z21","v":0},{"$f":"'Schedule XXA'!AB21","v":0},{"$f":"'Schedule XXA'!AD21","v":0},{"$f":"'Schedule XXA'!AF21","v":0},{"$f":"IF('Schedule XXA'!AH21=0,Q23,'Schedule XXA'!AH21)","v":0},null,0,0,0,null,0,0]
[null,{"$f":"'Schedule XXA'!B22","v":"Japan Yen"},{"$f":"'Schedule XXA'!D22","v":0},{"$f":"'Schedule XXA'!F22","v":0},{"$f":"'Schedule XXA'!H22","v":0},{"$f":"'Schedule XXA'!J22","v":0},{"$f":"'Schedule XXA'!L22","v":0},{"$f":"'Schedule XXA'!N22","v":0},0,{"$f":"IF((SUM(C24:G24))>(H24+I24),0%,25%)","v":0.25},null,{"$f":"'Schedule XXA'!V22","v":0},{"$f":"'Schedule XXA'!X22","v":0},{"$f":"'Schedule XXA'!Z22","v":0},{"$f":"'Schedule XXA'!AB22","v":0},{"$f":"'Schedule XXA'!AD22","v":0},{"$f":"'Schedule XXA'!AF22","v":0},{"$f":"IF('Schedule XXA'!AH22=0,Q24,'Schedule XXA'!AH22)","v":0},null,0,0,0,null,0,0]
[null,{"$f":"'Schedule XXA'!B23","v":"Other currency 1"},{"$f":"'Schedule XXA'!D23","v":0},{"$f":"'Schedule XXA'!F23","v":0},{"$f":"'Schedule XXA'!H23","v":0},{"$f":"'Schedule XXA'!J23","v":0},{"$f":"'Schedule XXA'!L23","v":0},{"$f":"'Schedule XXA'!N23","v":0},0,{"$f":"IF((SUM(C25:G25))>(H25+I25),0%,25%)","v":0.25},null,{"$f":"'Schedule XXA'!V23","v":0},{"$f":"'Schedule XXA'!X23","v":0},{"$f":"'Schedule XXA'!Z23","v":0},{"$f":"'Schedule XXA'!AB23","v":0},{"$f":"'Schedule XXA'!AD23","v":0},{"$f":"'Schedule XXA'!AF23","v":0},{"$f":"IF('Schedule XXA'!AH23=0,Q25,'Schedule XXA'!AH23)","v":0},null,0,0,0,null,0,0]
[null,{"$f":"'Schedule XXA'!B24","v":"Other currency 2"},{"$f":"'Schedule XXA'!D24","v":0},{"$f":"'Schedule XXA'!F24","v":0},{"$f":"'Schedule XXA'!H24","v":0},{"$f":"'Schedule XXA'!J24","v":0},{"$f":"'Schedule XXA'!L24","v":0},{"$f":"'Schedule XXA'!N24","v":0},0,0.25,null,{"$f":"'Schedule XXA'!V24","v":0},{"$f":"'Schedule XXA'!X24","v":0},{"$f":"'Schedule XXA'!Z24","v":0},{"$f":"'Schedule XXA'!AB24","v":0},{"$f":"'Schedule XXA'!AD24","v":0},{"$f":"'Schedule XXA'!AF24","v":0},{"$f":"IF('Schedule XXA'!AH24=0,Q26,'Schedule XXA'!AH24)","v":0},null,0,0,0,null,0,0]
[null,{"$f":"'Schedule XXA'!B25","v":"Other currency 3"},{"$f":"'Schedule XXA'!D25","v":0},{"$f":"'Schedule XXA'!F25","v":0},{"$f":"'Schedule XXA'!H25","v":0},{"$f":"'Schedule XXA'!J25","v":0},{"$f":"'Schedule XXA'!L25","v":0},{"$f":"'Schedule XXA'!N25","v":0},0,0.25,null,{"$f":"'Schedule XXA'!V25","v":0},{"$f":"'Schedule XXA'!X25","v":0},{"$f":"'Schedule XXA'!Z25","v":0},{"$f":"'Schedule XXA'!AB25","v":0},{"$f":"'Schedule XXA'!AD25","v":0},{"$f":"'Schedule XXA'!AF25","v":0},{"$f":"IF('Schedule XXA'!AH25=0,Q27,'Schedule XXA'!AH25)","v":0},null,0,0,0,null,0,0]
[null,{"$f":"'Schedule XXA'!B26","v":"Other currency 4"},{"$f":"'Schedule XXA'!D26","v":0},{"$f":"'Schedule XXA'!F26","v":0},{"$f":"'Schedule XXA'!H26","v":0},{"$f":"'Schedule XXA'!J26","v":0},{"$f":"'Schedule XXA'!L26","v":0},{"$f":"'Schedule XXA'!N26","v":0},0,0.25,null,{"$f":"'Schedule XXA'!V26","v":0},{"$f":"'Schedule XXA'!X26","v":0},{"$f":"'Schedule XXA'!Z26","v":0},{"$f":"'Schedule XXA'!AB26","v":0},{"$f":"'Schedule XXA'!AD26","v":0},{"$f":"'Schedule XXA'!AF26","v":0},{"$f":"IF('Schedule XXA'!AH26=0,Q28,'Schedule XXA'!AH26)","v":0},null,0,0,0,null,0,0]
[null,{"$f":"'Schedule XXA'!B27","v":"Other currency 5"},{"$f":"'Schedule XXA'!D27","v":0},{"$f":"'Schedule XXA'!F27","v":0},{"$f":"'Schedule XXA'!H27","v":0},{"$f":"'Schedule XXA'!J27","v":0},{"$f":"'Schedule XXA'!L27","v":0},{"$f":"'Schedule XXA'!N27","v":0},0,0.25,null,{"$f":"'Schedule XXA'!V27","v":0},{"$f":"'Schedule XXA'!X27","v":0},{"$f":"'Schedule XXA'!Z27","v":0},{"$f":"'Schedule XXA'!AB27","v":0},{"$f":"'Schedule XXA'!AD27","v":0},{"$f":"'Schedule XXA'!AF27","v":0},{"$f":"IF('Schedule XXA'!AH27=0,Q29,'Schedule XXA'!AH27)","v":0},null,0,0,0,null,0,0]
[null,{"$f":"'Schedule XXA'!B28","v":"Other currency 6"},{"$f":"'Schedule XXA'!D28","v":0},{"$f":"'Schedule XXA'!F28","v":0},{"$f":"'Schedule XXA'!H28","v":0},{"$f":"'Schedule XXA'!J28","v":0},{"$f":"'Schedule XXA'!L28","v":0},{"$f":"'Schedule XXA'!N28","v":0},0,0.25,null,{"$f":"'Schedule XXA'!V28","v":0},{"$f":"'Schedule XXA'!X28","v":0},{"$f":"'Schedule XXA'!Z28","v":0},{"$f":"'Schedule XXA'!AB28","v":0},{"$f":"'Schedule XXA'!AD28","v":0},{"$f":"'Schedule XXA'!AF28","v":0},{"$f":"IF('Schedule XXA'!AH28=0,Q30,'Schedule XXA'!AH28)","v":0},null,0,0,0,null,0,0]
[null,{"$f":"'Schedule XXA'!B29","v":"Other currency 7"},{"$f":"'Schedule XXA'!D29","v":0},{"$f":"'Schedule XXA'!F29","v":0},{"$f":"'Schedule XXA'!H29","v":0},{"$f":"'Schedule XXA'!J29","v":0},{"$f":"'Schedule XXA'!L29","v":0},{"$f":"'Schedule XXA'!N29","v":0},0,0.25,null,{"$f":"'Schedule XXA'!V29","v":0},{"$f":"'Schedule XXA'!X29","v":0},{"$f":"'Schedule XXA'!Z29","v":0},{"$f":"'Schedule XXA'!AB29","v":0},{"$f":"'Schedule XXA'!AD29","v":0},{"$f":"'Schedule XXA'!AF29","v":0},{"$f":"IF('Schedule XXA'!AH29=0,Q31,'Schedule XXA'!AH29)","v":0},null,0,0,0,null,0,0]
[null,{"$f":"'Schedule XXA'!B30","v":"Other currency 8"},{"$f":"'Schedule XXA'!D30","v":0},{"$f":"'Schedule XXA'!F30","v":0},{"$f":"'Schedule XXA'!H30","v":0},{"$f":"'Schedule XXA'!J30","v":0},{"$f":"'Schedule XXA'!L30","v":0},{"$f":"'Schedule XXA'!N30","v":0},0,0.25,null,{"$f":"'Schedule XXA'!V30","v":0},{"$f":"'Schedule XXA'!X30","v":0},{"$f":"'Schedule XXA'!Z30","v":0},{"$f":"'Schedule XXA'!AB30","v":0},{"$f":"'Schedule XXA'!AD30","v":0},{"$f":"'Schedule XXA'!AF30","v":0},{"$f":"IF('Schedule XXA'!AH30=0,Q32,'Schedule XXA'!AH30)","v":0},null,0,0,0,null,0,0]
[null,{"$f":"'Schedule XXA'!B31","v":"Other currency 9"},{"$f":"'Schedule XXA'!D31","v":0},{"$f":"'Schedule XXA'!F31","v":0},{"$f":"'Schedule XXA'!H31","v":0},{"$f":"'Schedule XXA'!J31","v":0},{"$f":"'Schedule XXA'!L31","v":0},{"$f":"'Schedule XXA'!N31","v":0},0,0.25,null,{"$f":"'Schedule XXA'!V31","v":0},{"$f":"'Schedule XXA'!X31","v":0},{"$f":"'Schedule XXA'!Z31","v":0},{"$f":"'Schedule XXA'!AB31","v":0},{"$f":"'Schedule XXA'!AD31","v":0},{"$f":"'Schedule XXA'!AF31","v":0},{"$f":"IF('Schedule XXA'!AH31=0,Q33,'Schedule XXA'!AH31)","v":0},null,0,0,0,null,0,0]
[null,{"$f":"'Schedule XXA'!B32","v":"Other currency 10"},{"$f":"'Schedule XXA'!D32","v":0},{"$f":"'Schedule XXA'!F32","v":0},{"$f":"'Schedule XXA'!H32","v":0},{"$f":"'Schedule XXA'!J32","v":0},{"$f":"'Schedule XXA'!L32","v":0},{"$f":"'Schedule XXA'!N32","v":0},0,0.25,null,{"$f":"'Schedule XXA'!V32","v":0},{"$f":"'Schedule XXA'!X32","v":0},{"$f":"'Schedule XXA'!Z32","v":0},{"$f":"'Schedule XXA'!AB32","v":0},{"$f":"'Schedule XXA'!AD32","v":0},{"$f":"'Schedule XXA'!AF32","v":0},{"$f":"IF('Schedule XXA'!AH32=0,Q34,'Schedule XXA'!AH32)","v":0},null,0,0,0,null,0,0]
[null,"Total Identified",{"$f":"SUM(C12:C34)","v":0},0,0,0,0,0,null,null,null,{"$f":"SUM(L12:L34)","v":0},0,0,0,0,0,0,null,{"$f":"SUM(T12:T34)","v":0},0,0,null,{"$f":"SUM(X12:X34)","v":0},0]
[null,"Total",{"$f":"+'Schedule XXA'!D36","v":0},null,null,null,null,{"$f":"'Schedule XXA'!N36","v":0}]
[null,"% Identified",{"$f":"IF(C35=0,0,(C35+G35)/C36)","v":0},null,null,null,null,{"$f":"IF(H35=0,0,H35/H36)","v":0}]
[]
[null,"TOTAL CURRENCY RISK",null,null,null,null,null,null,null,null,null,null,null,null,null,null,null,null,null,null,null,null,null,{"$f":"IF(SUM(X12:X34)>=0,SUM(X12:X34),0)","v":0},{"$f":"IF(SUM(Y12:Y34)>=0,SUM(Y12:Y34),0)","v":0}]

{"sheet":"Concentration Risk","index":102,"n_rows":111,"n_cols":6,"rows_kept":111,"cut":false,"hidden":false,"merged":[[0,5,0,6]]}
["CONCENTRATION RISK",null,null,null,null,{"$f":"HYPERLINK(\"#'Index'!A1\",\"Return to Index\")","v":"Return to Index"}]
[{"$f":"'Insurer Information'!C7","v":"Enter Company Name"}]
[{"$f":"\"Concentration Risk\" & \" ($\" & IF(CONFIGURATION!$B$12>1,\"'\"&MID(CONFIGURATION!$B$12,2,LEN(CONFIGURATION!$B$12)),\"\") & \")\"","v":"Concentration Risk ($'000)"},null,{"$f":" TEXT('Insurer Information'!C3,\"D MMMM YYYY\")","v":"31 December 2023"}]
[null,null,null,"(1)","(2)","(3)"]
[]
[null,"ASSET",null,null,"CAPITAL","REQUIRED"]
[null,"TYPE","STATEMENT SOURCE","EXPOSURE","FACTOR","CAPITAL"]
[]
[null,"(a) Cash and Cash Equivalents",null,"Cash and Cash Equivalent"]
[null,"BSCR Rating 0","Schedule XXI, Column H",{"$f":"SUMIFS('Schedule XXI'!$M$8:$M$57,'Schedule XXI'!$J$8:$J$57,$D$9,'Schedule XXI'!$L$8:$L$57,$B10)","v":0},{"$f":"+'Fixed Income Investments'!E83","v":0},{"$f":"MAX(0,(D10*E10))","v":0}]
[null,"BSCR Rating 1","Schedule XXI, Column H",{"$f":"SUMIFS('Schedule XXI'!$M$8:$M$57,'Schedule XXI'!$J$8:$J$57,$D$9,'Schedule XXI'!$L$8:$L$57,$B11)","v":0},{"$f":"+'Fixed Income Investments'!E84","v":1E-3},{"$f":"MAX(0,(D11*E11))","v":0}]
[null,"BSCR Rating 2","Schedule XXI, Column H",{"$f":"SUMIFS('Schedule XXI'!$M$8:$M$57,'Schedule XXI'!$J$8:$J$57,$D$9,'Schedule XXI'!$L$8:$L$57,$B12)","v":0},{"$f":"+'Fixed Income Investments'!E85","v":2E-3},0]
[null,"BSCR Rating 3","Schedule XXI, Column H",{"$f":"SUMIFS('Schedule XXI'!$M$8:$M$57,'Schedule XXI'!$J$8:$J$57,$D$9,'Schedule XXI'!$L$8:$L$57,$B13)","v":0},{"$f":"+'Fixed Income Investments'!E86","v":3.0000000000000001E-3},0]
[null,"BSCR Rating 4","Schedule XXI, Column H",{"$f":"SUMIFS('Schedule XXI'!$M$8:$M$57,'Schedule XXI'!$J$8:$J$57,$D$9,'Schedule XXI'!$L$8:$L$57,$B14)","v":0},{"$f":"+'Fixed Income Investments'!E87","v":5.0000000000000001E-3},0]
[null,"BSCR Rating 5","Schedule XXI, Column H",{"$f":"SUMIFS('Schedule XXI'!$M$8:$M$57,'Schedule XXI'!$J$8:$J$57,$D$9,'Schedule XXI'!$L$8:$L$57,$B15)","v":0},{"$f":"+'Fixed Income Investments'!E88","v":1.4999999999999999E-2},0]
[null,"BSCR Rating 6","Schedule XXI, Column H",{"$f":"SUMIFS('Schedule XXI'!$M$8:$M$57,'Schedule XXI'!$J$8:$J$57,$D$9,'Schedule XXI'!$L$8:$L$57,$B16)","v":0},{"$f":"+'Fixed Income Investments'!E89","v":0.04},0]
[null,"BSCR Rating 7","Schedule XXI, Column H",{"$f":"SUMIFS('Schedule XXI'!$M$8:$M$57,'Schedule XXI'!$J$8:$J$57,$D$9,'Schedule XXI'!$L$8:$L$57,$B17)","v":0},{"$f":"+'Fixed Income Investments'!E90","v":0.06},0]
[null,"BSCR Rating 8","Schedule XXI, Column H",{"$f":"SUMIFS('Schedule XXI'!$M$8:$M$57,'Schedule XXI'!$J$8:$J$57,$D$9,'Schedule XXI'!$L$8:$L$57,$B18)","v":0},{"$f":"+'Fixed Income Investments'!E91","v":0.09},0]
[]
[null,"(a)  SUBTOTAL - CASH AND CASH EQUIVALENTS",null,{"$f":"SUM(D10:D18)","v":0},null,{"$f":"SUM(F10:F18)","v":0}]
[]
[null,"(b) Corporate & Sovereign Bonds",null,"Corporate & Sovereign Bonds"]
[null,"BSCR Rating 0","Schedule XXI, Column H",{"$f":"SUMIFS('Schedule XXI'!$M$8:$M$57,'Schedule XXI'!$K$8:$K$57,$D$22,'Schedule XXI'!$L$8:$L$57,$B23)","v":0},0,{"$f":"MAX(0,(D23*E23))","v":0}]
[null,"BSCR Rating 1","Schedule XXI, Column H",{"$f":"SUMIFS('Schedule XXI'!$M$8:$M$57,'Schedule XXI'!$K$8:$K$57,$D$22,'Schedule XXI'!$L$8:$L$57,$B24)","v":0},4.0000000000000001E-3,{"$f":"MAX(0,(D24*E24))","v":0}]
[null,"BSCR Rating 2","Schedule XXI, Column H",{"$f":"SUMIFS('Schedule XXI'!$M$8:$M$57,'Schedule XXI'!$K$8:$K$57,$D$22,'Schedule XXI'!$L$8:$L$57,$B25)","v":0},8.0000000000000002E-3,0]
[null,"BSCR Rating 3","Schedule XXI, Column H",{"$f":"SUMIFS('Schedule XXI'!$M$8:$M$57,'Schedule XXI'!$K$8:$K$57,$D$22,'Schedule XXI'!$L$8:$L$57,$B26)","v":0},1.4999999999999999E-2,0]
[null,"BSCR Rating 4","Schedule XXI, Column H",{"$f":"SUMIFS('Schedule XXI'!$M$8:$M$57,'Schedule XXI'!$K$8:$K$57,$D$22,'Schedule XXI'!$L$8:$L$57,$B27)","v":0},0.03,0]
[null,"BSCR Rating 5","Schedule XXI, Column H",{"$f":"SUMIFS('Schedule XXI'!$M$8:$M$57,'Schedule XXI'!$K$8:$K$57,$D$22,'Schedule XXI'!$L$8:$L$57,$B28)","v":0},0.08,0]
[null,"BSCR Rating 6","Schedule XXI, Column H",{"$f":"SUMIFS('Schedule XXI'!$M$8:$M$57,'Schedule XXI'!$K$8:$K$57,$D$22,'Schedule XXI'!$L$8:$L$57,$B29)","v":0},0.15,0]
[null,"BSCR Rating 7","Schedule XXI, Column H",{"$f":"SUMIFS('Schedule XXI'!$M$8:$M$57,'Schedule XXI'!$K$8:$K$57,$D$22,'Schedule XXI'!$L$8:$L$57,$B30)","v":0},0.26300000000000001,0]
[null,"BSCR Rating 8","Schedule XXI, Column H",{"$f":"SUMIFS('Schedule XXI'!$M$8:$M$57,'Schedule XXI'!$K$8:$K$57,$D$22,'Schedule XXI'!$L$8:$L$57,$B31)","v":0},0.35,0]
[]
[null,"(b)  SUBTOTAL - CORPORATE & SOVEREIGN BONDS",null,{"$f":"SUM(D23:D31)","v":0},null,{"$f":"SUM(F23:F31)","v":0}]
[]
[null,"(c) Residential Mortage-Backed Securities",null,"Residential Mortgage-Backed Securities"]
[null,"BSCR Rating 0","Schedule XXI, Column H",{"$f":"SUMIFS('Schedule XXI'!$M$8:$M$57,'Schedule XXI'!$K$8:$K$57,$D$35,'Schedule XXI'!$L$8:$L$57,$B36)","v":0},0,{"$f":"MAX(0,(D36*E36))","v":0}]
[null,"BSCR Rating 1","Schedule XXI, Column H",{"$f":"SUMIFS('Schedule XXI'!$M$8:$M$57,'Schedule XXI'!$K$8:$K$57,$D$35,'Schedule XXI'!$L$8:$L$57,$B37)","v":0},6.0000000000000001E-3,{"$f":"MAX(0,(D37*E37))","v":0}]
[null,"BSCR Rating 2","Schedule XXI, Column H",{"$f":"SUMIFS('Schedule XXI'!$M$8:$M$57,'Schedule XXI'!$K$8:$K$57,$D$35,'Schedule XXI'!$L$8:$L$57,$B38)","v":0},1.2E-2,0]
[null,"BSCR Rating 3","Schedule XXI, Column H",{"$f":"SUMIFS('Schedule XXI'!$M$8:$M$57,'Schedule XXI'!$K$8:$K$57,$D$35,'Schedule XXI'!$L$8:$L$57,$B39)","v":0},0.02,0]
[null,"BSCR Rating 4","Schedule XXI, Column H",{"$f":"SUMIFS('Schedule XXI'!$M$8:$M$57,'Schedule XXI'!$K$8:$K$57,$D$35,'Schedule XXI'!$L$8:$L$57,$B40)","v":0},0.04,0]
[null,"BSCR Rating 5","Schedule XXI, Column H",{"$f":"SUMIFS('Schedule XXI'!$M$8:$M$57,'Schedule XXI'!$K$8:$K$57,$D$35,'Schedule XXI'!$L$8:$L$57,$B41)","v":0},0.11,0]
[null,"BSCR Rating 6","Schedule XXI, Column H",{"$f":"SUMIFS('Schedule XXI'!$M$8:$M$57,'Schedule XXI'!$K$8:$K$57,$D$35,'Schedule XXI'!$L$8:$L$57,$B42)","v":0},0.25,0]
[null,"BSCR Rating 7","Schedule XXI, Column H",{"$f":"SUMIFS('Schedule XXI'!$M$8:$M$57,'Schedule XXI'!$K$8:$K$57,$D$35,'Schedule XXI'!$L$8:$L$57,$B43)","v":0},0.35,0]
[null,"BSCR Rating 8","Schedule XXI, Column H",{"$f":"SUMIFS('Schedule XXI'!$M$8:$M$57,'Schedule XXI'!$K$8:$K$57,$D$35,'Schedule XXI'!$L$8:$L$57,$B44)","v":0},0.35,0]
[]
[null,"(c)  SUBTOTAL - RESIDENTIAL MORTGAGE-BACKED SECURITIES",null,{"$f":"SUM(D36:D44)","v":0},null,{"$f":"SUM(F36:F44)","v":0}]
[]
[null,"(d) Commercial Mortgage-Backed Securities / Asset-Backed Securities",null,"Commercial Mortgage-Backed Securities"]
[null,"BSCR Rating 0","Schedule XXI, Column H",{"$f":"SUMIFS('Schedule XXI'!$M$8:$M$57,'Schedule XXI'!$K$8:$K$57,$D$48,'Schedule XXI'!$L$8:$L$57,$B49)","v":0},0,{"$f":"MAX(0,(D49*E49))","v":0}]
[null,"BSCR Rating 1","Schedule XXI, Column H",{"$f":"SUMIFS('Schedule XXI'!$M$8:$M$57,'Schedule XXI'!$K$8:$K$57,$D$48,'Schedule XXI'!$L$8:$L$57,$B50)","v":0},5.0000000000000001E-3,{"$f":"MAX(0,(D50*E50))","v":0}]
[null,"BSCR Rating 2","Schedule XXI, Column H",{"$f":"SUMIFS('Schedule XXI'!$M$8:$M$57,'Schedule XXI'!$K$8:$K$57,$D$48,'Schedule XXI'!$L$8:$L$57,$B51)","v":0},0.01,0]
[null,"BSCR Rating 3","Schedule XXI, Column H",{"$f":"SUMIFS('Schedule XXI'!$M$8:$M$57,'Schedule XXI'!$K$8:$K$57,$D$48,'Schedule XXI'!$L$8:$L$57,$B52)","v":0},1.7999999999999999E-2,0]
[null,"BSCR Rating 4","Schedule XXI, Column H",{"$f":"SUMIFS('Schedule XXI'!$M$8:$M$57,'Schedule XXI'!$K$8:$K$57,$D$48,'Schedule XXI'!$L$8:$L$57,$B53)","v":0},3.5000000000000003E-2,0]
[null,"BSCR Rating 5","Schedule XXI, Column H",{"$f":"SUMIFS('Schedule XXI'!$M$8:$M$57,'Schedule XXI'!$K$8:$K$57,$D$48,'Schedule XXI'!$L$8:$L$57,$B54)","v":0},0.1,0]
[null,"BSCR Rating 6","Schedule XXI, Column H",{"$f":"SUMIFS('Schedule XXI'!$M$8:$M$57,'Schedule XXI'!$K$8:$K$57,$D$48,'Schedule XXI'!$L$8:$L$57,$B55)","v":0},0.2,0]
[null,"BSCR Rating 7","Schedule XXI, Column H",{"$f":"SUMIFS('Schedule XXI'!$M$8:$M$57,'Schedule XXI'!$K$8:$K$57,$D$48,'Schedule XXI'!$L$8:$L$57,$B56)","v":0},0.3,0]
[null,"BSCR Rating 8","Schedule XXI, Column H",{"$f":"SUMIFS('Schedule XXI'!$M$8:$M$57,'Schedule XXI'!$K$8:$K$57,$D$48,'Schedule XXI'!$L$8:$L$57,$B57)","v":0},0.35,0]
[]
[null,"(d)  SUBTOTAL - COMMERCIAL MORTGAGE-BACKED SECURITIES / ASSET-BACKED SECURITIES",null,{"$f":"SUM(D49:D57)","v":0},null,{"$f":"SUM(F49:F57)","v":0}]
[]
[null,"(e) Bond Mutual Funds",null,"Bond Mutual Funds"]
[null,"BSCR Rating 0","Schedule XXI, Column H",{"$f":"SUMIFS('Schedule XXI'!$M$8:$M$57,'Schedule XXI'!$K$8:$K$57,$D$61,'Schedule XXI'!$L$8:$L$57,$B62)","v":0},0,{"$f":"MAX(0,(D62*E62))","v":0}]
[null,"BSCR Rating 1","Schedule XXI, Column H",{"$f":"SUMIFS('Schedule XXI'!$M$8:$M$57,'Schedule XXI'!$K$8:$K$57,$D$61,'Schedule XXI'!$L$8:$L$57,$B63)","v":0},4.0000000000000001E-3,{"$f":"MAX(0,(D63*E63))","v":0}]
[null,"BSCR Rating 2","Schedule XXI, Column H",{"$f":"SUMIFS('Schedule XXI'!$M$8:$M$57,'Schedule XXI'!$K$8:$K$57,$D$61,'Schedule XXI'!$L$8:$L$57,$B64)","v":0},8.0000000000000002E-3,0]
[null,"BSCR Rating 3","Schedule XXI, Column H",{"$f":"SUMIFS('Schedule XXI'!$M$8:$M$57,'Schedule XXI'!$K$8:$K$57,$D$61,'Schedule XXI'!$L$8:$L$57,$B65)","v":0},1.4999999999999999E-2,0]
[null,"BSCR Rating 4","Schedule XXI, Column H",{"$f":"SUMIFS('Schedule XXI'!$M$8:$M$57,'Schedule XXI'!$K$8:$K$57,$D$61,'Schedule XXI'!$L$8:$L$57,$B66)","v":0},0.03,0]
[null,"BSCR Rating 5","Schedule XXI, Column H",{"$f":"SUMIFS('Schedule XXI'!$M$8:$M$57,'Schedule XXI'!$K$8:$K$57,$D$61,'Schedule XXI'!$L$8:$L$57,$B67)","v":0},0.08,0]
[null,"BSCR Rating 6","Schedule XXI, Column H",{"$f":"SUMIFS('Schedule XXI'!$M$8:$M$57,'Schedule XXI'!$K$8:$K$57,$D$61,'Schedule XXI'!$L$8:$L$57,$B68)","v":0},0.15,0]
[null,"BSCR Rating 7","Schedule XXI, Column H",{"$f":"SUMIFS('Schedule XXI'!$M$8:$M$57,'Schedule XXI'!$K$8:$K$57,$D$61,'Schedule XXI'!$L$8:$L$57,$B69)","v":0},0.26300000000000001,0]
[null,"BSCR Rating 8","Schedule XXI, Column H",{"$f":"SUMIFS('Schedule XXI'!$M$8:$M$57,'Schedule XXI'!$K$8:$K$57,$D$61,'Schedule XXI'!$L$8:$L$57,$B70)","v":0},0.35,0]
[]
[null,"(e)  SUBTOTAL - BOND MUTUAL FUNDS",null,{"$f":"SUM(D62:D70)","v":0},null,{"$f":"SUM(F62:F70)","v":0}]
[]
[null,"(f) Preferred Shares",null,"Preferred Shares"]
[null,"BSCR Rating 0","Schedule XXI, Column H",{"$f":"SUMIFS('Schedule XXI'!$M$8:$M$57,'Schedule XXI'!$J$8:$J$57,$D$74,'Schedule XXI'!$L$8:$L$57,$B75)","v":0},0,{"$f":"MAX(0,(D75*E75))","v":0}]
[null,"BSCR Rating 1","Schedule XXI, Column H",{"$f":"SUMIFS('Schedule XXI'!$M$8:$M$57,'Schedule XXI'!$J$8:$J$57,$D$74,'Schedule XXI'!$L$8:$L$57,$B76)","v":0},6.0000000000000001E-3,0]
[null,"BSCR Rating 2","Schedule XXI, Column H",{"$f":"SUMIFS('Schedule XXI'!$M$8:$M$57,'Schedule XXI'!$J$8:$J$57,$D$74,'Schedule XXI'!$L$8:$L$57,$B77)","v":0},1.2E-2,0]
[null,"BSCR Rating 3","Schedule XXI, Column H",{"$f":"SUMIFS('Schedule XXI'!$M$8:$M$57,'Schedule XXI'!$J$8:$J$57,$D$74,'Schedule XXI'!$L$8:$L$57,$B78)","v":0},0.02,0]
[null,"BSCR Rating 4","Schedule XXI, Column H",{"$f":"SUMIFS('Schedule XXI'!$M$8:$M$57,'Schedule XXI'!$J$8:$J$57,$D$74,'Schedule XXI'!$L$8:$L$57,$B79)","v":0},0.04,0]
[null,"BSCR Rating 5","Schedule XXI, Column H",{"$f":"SUMIFS('Schedule XXI'!$M$8:$M$57,'Schedule XXI'!$J$8:$J$57,$D$74,'Schedule XXI'!$L$8:$L$57,$B80)","v":0},0.11,0]
[null,"BSCR Rating 6","Schedule XXI, Column H",{"$f":"SUMIFS('Schedule XXI'!$M$8:$M$57,'Schedule XXI'!$J$8:$J$57,$D$74,'Schedule XXI'!$L$8:$L$57,$B81)","v":0},0.25,0]
[null,"BSCR Rating 7","Schedule XXI, Column H",{"$f":"SUMIFS('Schedule XXI'!$M$8:$M$57,'Schedule XXI'!$J$8:$J$57,$D$74,'Schedule XXI'!$L$8:$L$57,$B82)","v":0},0.35,0]
[null,"BSCR Rating 8","Schedule XXI, Column H",{"$f":"SUMIFS('Schedule XXI'!$M$8:$M$57,'Schedule XXI'!$J$8:$J$57,$D$74,'Schedule XXI'!$L$8:$L$57,$B83)","v":0},0.35,0]
[]
[null,"(f)  SUBTOTAL - PREFERRED SHARES",null,{"$f":"SUM(D75:D83)","v":0},null,{"$f":"SUM(F75:F83)","v":0}]
[]
[null,"(g) Mortgage Loans",null,"MortgageLoanTypes"]
[null,"Insured/Guaranteed Mortgages","Schedule XXI, Column H",{"$f":"SUMIFS('Schedule XXI'!$M$8:$M$57,'Schedule XXI'!$J$8:$J$57,$D$87,'Schedule XXI'!$K$8:$K$57,$B88)","v":0},{"$f":"'Fixed Income Investments'!E70","v":3.0000000000000001E-3},{"$f":"MAX(0,(D88*E88))","v":0}]
[null,"Other Commercial and Farm Mortgages","Schedule XXI, Column H",{"$f":"SUMIFS('Schedule XXI'!$M$8:$M$57,'Schedule XXI'!$J$8:$J$57,$D$87,'Schedule XXI'!$K$8:$K$57,$B89)","v":0},{"$f":"'Fixed Income Investments'!E71","v":0.05},{"$f":"MAX(0,(D89*E89))","v":0}]
[null,"Other Residential Mortgages","Schedule XXI, Column H",{"$f":"SUMIFS('Schedule XXI'!$M$8:$M$57,'Schedule XXI'!$J$8:$J$57,$D$87,'Schedule XXI'!$K$8:$K$57,$B90)","v":0},{"$f":"'Fixed Income Investments'!E72","v":1.4999999999999999E-2},{"$f":"MAX(0,(D90*E90))","v":0}]
[null,"Mortgages Not In Good Standing","Schedule XXI, Column H",{"$f":"SUMIFS('Schedule XXI'!$M$8:$M$57,'Schedule XXI'!$J$8:$J$57,$D$87,'Schedule XXI'!$K$8:$K$57,$B91)","v":0},{"$f":"'Fixed Income Investments'!E73","v":0.25},{"$f":"MAX(0,(D91*E91))","v":0}]
[]
[null,"(g)  SUBTOTAL - Mortgage Loans",null,{"$f":"SUM(D88:D91)","v":0},null,{"$f":"SUM(F88:F91)","v":0}]
[]
[null,"(h) Other Asset Classes"]
[null,"Common Stock and Mutual Funds","Schedule XXI, Column H",{"$f":"SUMIFS('Schedule XXI'!$M$8:$M$57,'Schedule XXI'!$J$8:$J$57,$B96)","v":0},0.14399999999999999,{"$f":"MAX(0,(D96*E96))","v":0}]
[null,"Other Investments","Schedule XXI, Column H",{"$f":"SUMIFS('Schedule XXI'!$M$8:$M$57,'Schedule XXI'!$J$8:$J$57,$B97)","v":0},0.2,0]
[null,"Investment in Affiliates – Unregulated entities that conduct ancillary services",null,{"$f":"SUMIFS('Schedule XXI'!$M$8:$M$57,'Schedule XXI'!$J$8:$J$57,$B98)","v":0},0.05,0]
[null,"Investment in Affiliates - Unregulated non-financial operating entities",null,{"$f":"SUMIFS('Schedule XXI'!$M$8:$M$57,'Schedule XXI'!$J$8:$J$57,$B99)","v":0},0.2,0]
[null,"Investment in Affiliates - Unregulated financial operating entities",null,{"$f":"SUMIFS('Schedule XXI'!$M$8:$M$57,'Schedule XXI'!$J$8:$J$57,$B100)","v":0},0.55000000000000004,0]
[null,"Investment in Affiliates - Regulated non-insurance financial operating entities",null,{"$f":"SUMIFS('Schedule XXI'!$M$8:$M$57,'Schedule XXI'!$J$8:$J$57,$B101)","v":0},0.55000000000000004,0]
[null,"Investment in Affiliates - Regulated insurance financial operating entities",null,{"$f":"SUMIFS('Schedule XXI'!$M$8:$M$57,'Schedule XXI'!$J$8:$J$57,$B102)","v":0},0.2,0]
[null,"Advances to Affiliates - ","Schedule XXI, Column H",{"$f":"SUMIFS('Schedule XXI'!$M$8:$M$57,'Schedule XXI'!$J$8:$J$57,$B103)","v":0},0.05,0]
[null,"Policy Loans","Schedule XXI, Column H",{"$f":"SUMIFS('Schedule XXI'!$M$8:$M$57,'Schedule XXI'!$J$8:$J$57,$B104)","v":0},0,0]
[null,"Real Estate: Occupied by company","Schedule XXI, Column H",{"$f":"SUMIFS('Schedule XXI'!$M$8:$M$57,'Schedule XXI'!$J$8:$J$57,$B105)","v":0},0.1,0]
[null,"Real Estate: Other properties","Schedule XXI, Column H",{"$f":"SUMIFS('Schedule XXI'!$M$8:$M$57,'Schedule XXI'!$J$8:$J$57,$B106)","v":0},0.2,0]
[null,"Collateral Loans","Schedule XXI, Column H",{"$f":"SUMIFS('Schedule XXI'!$M$8:$M$57,'Schedule XXI'!$J$8:$J$57,$B107)","v":0},0.05,0]
[]
[null,"(h)  SUBTOTAL - OTHER ASSET CLASSES",null,{"$f":"SUM(D96:D107)","v":0},null,{"$f":"SUM(F96:F107)","v":0}]
[]
[null,"TOTAL CONCENTRATION RISK",null,{"$f":"D109+D93+D85+D72+D59+D46+D33+D20","v":0},null,{"$f":"F109+F93+F85+F72+F59+F46+F33+F20","v":0}]

{"sheet":"Concentration Risk (Revised)","index":103,"n_rows":123,"n_cols":6,"rows_kept":123,"cut":false,"hidden":false,"merged":[[0,5,0,6]]}
["CONCENTRATION RISK (REVISED)",null,null,null,null,{"$f":"HYPERLINK(\"#'Index'!A1\",\"Return to Index\")","v":"Return to Index"}]
[{"$f":"'Insurer Information'!C7","v":"Enter Company Name"}]
[{"$f":"\"Concentration Risk\" & \" ($\" & IF(CONFIGURATION!$B$12>1,\"'\"&MID(CONFIGURATION!$B$12,2,LEN(CONFIGURATION!$B$12)),\"\") & \")\"","v":"Concentration Risk ($'000)"},null,{"$f":" TEXT('Insurer Information'!C3,\"D MMMM YYYY\")","v":"31 December 2023"}]
[null,null,null,"(1)","(2)","(3)"]
[]
[null,"ASSET",null,null,"CAPITAL","REQUIRED"]
[null,"TYPE","STATEMENT SOURCE","EXPOSURE","FACTOR","CAPITAL"]
[]
[null,"(a) Cash and Cash Equivalents",null,"Cash and Cash Equivalent"]
[null,"BSCR Rating 0","Schedule XXIA, Column H",{"$f":"SUMIFS('Schedule XXIA'!$M$8:$M$57,'Schedule XXIA'!$J$8:$J$57,$D$9,'Schedule XXIA'!$L$8:$L$57,$B10)","v":0},{"$f":"+'Fixed Income Investments'!E83","v":0},{"$f":"MAX(0,(D10*E10))","v":0}]
[null,"BSCR Rating 1","Schedule XXIA, Column H",{"$f":"SUMIFS('Schedule XXIA'!$M$8:$M$57,'Schedule XXIA'!$J$8:$J$57,$D$9,'Schedule XXIA'!$L$8:$L$57,$B11)","v":0},{"$f":"+'Fixed Income Investments'!E84","v":1E-3},{"$f":"MAX(0,(D11*E11))","v":0}]
[null,"BSCR Rating 2","Schedule XXIA, Column H",{"$f":"SUMIFS('Schedule XXIA'!$M$8:$M$57,'Schedule XXIA'!$J$8:$J$57,$D$9,'Schedule XXIA'!$L$8:$L$57,$B12)","v":0},{"$f":"+'Fixed Income Investments'!E85","v":2E-3},0]
[null,"BSCR Rating 3","Schedule XXIA, Column H",{"$f":"SUMIFS('Schedule XXIA'!$M$8:$M$57,'Schedule XXIA'!$J$8:$J$57,$D$9,'Schedule XXIA'!$L$8:$L$57,$B13)","v":0},{"$f":"+'Fixed Income Investments'!E86","v":3.0000000000000001E-3},0]
[null,"BSCR Rating 4","Schedule XXIA, Column H",{"$f":"SUMIFS('Schedule XXIA'!$M$8:$M$57,'Schedule XXIA'!$J$8:$J$57,$D$9,'Schedule XXIA'!$L$8:$L$57,$B14)","v":0},{"$f":"+'Fixed Income Investments'!E87","v":5.0000000000000001E-3},0]
[null,"BSCR Rating 5","Schedule XXIA, Column H",{"$f":"SUMIFS('Schedule XXIA'!$M$8:$M$57,'Schedule XXIA'!$J$8:$J$57,$D$9,'Schedule XXIA'!$L$8:$L$57,$B15)","v":0},{"$f":"+'Fixed Income Investments'!E88","v":1.4999999999999999E-2},0]
[null,"BSCR Rating 6","Schedule XXIA, Column H",{"$f":"SUMIFS('Schedule XXIA'!$M$8:$M$57,'Schedule XXIA'!$J$8:$J$57,$D$9,'Schedule XXIA'!$L$8:$L$57,$B16)","v":0},{"$f":"+'Fixed Income Investments'!E89","v":0.04},0]
[null,"BSCR Rating 7","Schedule XXIA, Column H",{"$f":"SUMIFS('Schedule XXIA'!$M$8:$M$57,'Schedule XXIA'!$J$8:$J$57,$D$9,'Schedule XXIA'!$L$8:$L$57,$B17)","v":0},{"$f":"+'Fixed Income Investments'!E90","v":0.06},0]
[null,"BSCR Rating 8","Schedule XXIA, Column H",{"$f":"SUMIFS('Schedule XXIA'!$M$8:$M$57,'Schedule XXIA'!$J$8:$J$57,$D$9,'Schedule XXIA'!$L$8:$L$57,$B18)","v":0},{"$f":"+'Fixed Income Investments'!E91","v":0.09},0]
[]
[null,"(a)  SUBTOTAL - CASH AND CASH EQUIVALENTS",null,{"$f":"SUM(D10:D18)","v":0},null,{"$f":"SUM(F10:F18)","v":0}]
[]
[null,"(b) Corporate & Sovereign Bonds",null,"Corporate & Sovereign Bonds"]
[null,"BSCR Rating 0","Schedule XXIA, Column H",{"$f":"SUMIFS('Schedule XXIA'!$M$8:$M$57,'Schedule XXIA'!$K$8:$K$57,$D$22,'Schedule XXIA'!$L$8:$L$57,$B23)","v":0},0,{"$f":"MAX(0,(D23*E23))","v":0}]
[null,"BSCR Rating 1","Schedule XXIA, Column H",{"$f":"SUMIFS('Schedule XXIA'!$M$8:$M$57,'Schedule XXIA'!$K$8:$K$57,$D$22,'Schedule XXIA'!$L$8:$L$57,$B24)","v":0},4.0000000000000001E-3,{"$f":"MAX(0,(D24*E24))","v":0}]
[null,"BSCR Rating 2","Schedule XXIA, Column H",{"$f":"SUMIFS('Schedule XXIA'!$M$8:$M$57,'Schedule XXIA'!$K$8:$K$57,$D$22,'Schedule XXIA'!$L$8:$L$57,$B25)","v":0},8.0000000000000002E-3,0]
[null,"BSCR Rating 3","Schedule XXIA, Column H",{"$f":"SUMIFS('Schedule XXIA'!$M$8:$M$57,'Schedule XXIA'!$K$8:$K$57,$D$22,'Schedule XXIA'!$L$8:$L$57,$B26)","v":0},1.4999999999999999E-2,0]
[null,"BSCR Rating 4","Schedule XXIA, Column H",{"$f":"SUMIFS('Schedule XXIA'!$M$8:$M$57,'Schedule XXIA'!$K$8:$K$57,$D$22,'Schedule XXIA'!$L$8:$L$57,$B27)","v":0},0.03,0]
[null,"BSCR Rating 5","Schedule XXIA, Column H",{"$f":"SUMIFS('Schedule XXIA'!$M$8:$M$57,'Schedule XXIA'!$K$8:$K$57,$D$22,'Schedule XXIA'!$L$8:$L$57,$B28)","v":0},0.08,0]
[null,"BSCR Rating 6","Schedule XXIA, Column H",{"$f":"SUMIFS('Schedule XXIA'!$M$8:$M$57,'Schedule XXIA'!$K$8:$K$57,$D$22,'Schedule XXIA'!$L$8:$L$57,$B29)","v":0},0.15,0]
[null,"BSCR Rating 7","Schedule XXIA, Column H",{"$f":"SUMIFS('Schedule XXIA'!$M$8:$M$57,'Schedule XXIA'!$K$8:$K$57,$D$22,'Schedule XXIA'!$L$8:$L$57,$B30)","v":0},0.26300000000000001,0]
[null,"BSCR Rating 8","Schedule XXIA, Column H",{"$f":"SUMIFS('Schedule XXIA'!$M$8:$M$57,'Schedule XXIA'!$K$8:$K$57,$D$22,'Schedule XXIA'!$L$8:$L$57,$B31)","v":0},0.35,0]
[]
[null,"(b)  SUBTOTAL - CORPORATE & SOVEREIGN BONDS",null,{"$f":"SUM(D23:D31)","v":0},null,{"$f":"SUM(F23:F31)","v":0}]
[]
[null,"(c) Residential Mortage-Backed Securities",null,"Residential Mortgage-Backed Securities"]
[null,"BSCR Rating 0","Schedule XXIA, Column H",{"$f":"SUMIFS('Schedule XXIA'!$M$8:$M$57,'Schedule XXIA'!$K$8:$K$57,$D$35,'Schedule XXIA'!$L$8:$L$57,$B36)","v":0},0,{"$f":"MAX(0,(D36*E36))","v":0}]
[null,"BSCR Rating 1","Schedule XXIA, Column H",{"$f":"SUMIFS('Schedule XXIA'!$M$8:$M$57,'Schedule XXIA'!$K$8:$K$57,$D$35,'Schedule XXIA'!$L$8:$L$57,$B37)","v":0},6.0000000000000001E-3,{"$f":"MAX(0,(D37*E37))","v":0}]
[null,"BSCR Rating 2","Schedule XXIA, Column H",{"$f":"SUMIFS('Schedule XXIA'!$M$8:$M$57,'Schedule XXIA'!$K$8:$K$57,$D$35,'Schedule XXIA'!$L$8:$L$57,$B38)","v":0},1.2E-2,0]
[null,"BSCR Rating 3","Schedule XXIA, Column H",{"$f":"SUMIFS('Schedule XXIA'!$M$8:$M$57,'Schedule XXIA'!$K$8:$K$57,$D$35,'Schedule XXIA'!$L$8:$L$57,$B39)","v":0},0.02,0]
[null,"BSCR Rating 4","Schedule XXIA, Column H",{"$f":"SUMIFS('Schedule XXIA'!$M$8:$M$57,'Schedule XXIA'!$K$8:$K$57,$D$35,'Schedule XXIA'!$L$8:$L$57,$B40)","v":0},0.04,0]
[null,"BSCR Rating 5","Schedule XXIA, Column H",{"$f":"SUMIFS('Schedule XXIA'!$M$8:$M$57,'Schedule XXIA'!$K$8:$K$57,$D$35,'Schedule XXIA'!$L$8:$L$57,$B41)","v":0},0.11,0]
[null,"BSCR Rating 6","Schedule XXIA, Column H",{"$f":"SUMIFS('Schedule XXIA'!$M$8:$M$57,'Schedule XXIA'!$K$8:$K$57,$D$35,'Schedule XXIA'!$L$8:$L$57,$B42)","v":0},0.25,0]
[null,"BSCR Rating 7","Schedule XXIA, Column H",{"$f":"SUMIFS('Schedule XXIA'!$M$8:$M$57,'Schedule XXIA'!$K$8:$K$57,$D$35,'Schedule XXIA'!$L$8:$L$57,$B43)","v":0},0.35,0]
[null,"BSCR Rating 8","Schedule XXIA, Column H",{"$f":"SUMIFS('Schedule XXIA'!$M$8:$M$57,'Schedule XXIA'!$K$8:$K$57,$D$35,'Schedule XXIA'!$L$8:$L$57,$B44)","v":0},0.35,0]
[]
[null,"(c)  SUBTOTAL - RESIDENTIAL MORTGAGE-BACKED SECURITIES",null,{"$f":"SUM(D36:D44)","v":0},null,{"$f":"SUM(F36:F44)","v":0}]
[]
[null,"(d) Commercial Mortgage-Backed Securities / Asset-Backed Securities",null,"Commercial Mortgage-Backed Securities"]
[null,"BSCR Rating 0","Schedule XXIA, Column H",{"$f":"SUMIFS('Schedule XXIA'!$M$8:$M$57,'Schedule XXIA'!$K$8:$K$57,$D$48,'Schedule XXIA'!$L$8:$L$57,$B49)","v":0},0,{"$f":"MAX(0,(D49*E49))","v":0}]
[null,"BSCR Rating 1","Schedule XXIA, Column H",{"$f":"SUMIFS('Schedule XXIA'!$M$8:$M$57,'Schedule XXIA'!$K$8:$K$57,$D$48,'Schedule XXIA'!$L$8:$L$57,$B50)","v":0},5.0000000000000001E-3,{"$f":"MAX(0,(D50*E50))","v":0}]
[null,"BSCR Rating 2","Schedule XXIA, Column H",{"$f":"SUMIFS('Schedule XXIA'!$M$8:$M$57,'Schedule XXIA'!$K$8:$K$57,$D$48,'Schedule XXIA'!$L$8:$L$57,$B51)","v":0},0.01,0]
[null,"BSCR Rating 3","Schedule XXIA, Column H",{"$f":"SUMIFS('Schedule XXIA'!$M$8:$M$57,'Schedule XXIA'!$K$8:$K$57,$D$48,'Schedule XXIA'!$L$8:$L$57,$B52)","v":0},1.7999999999999999E-2,0]
[null,"BSCR Rating 4","Schedule XXIA, Column H",{"$f":"SUMIFS('Schedule XXIA'!$M$8:$M$57,'Schedule XXIA'!$K$8:$K$57,$D$48,'Schedule XXIA'!$L$8:$L$57,$B53)","v":0},3.5000000000000003E-2,0]
[null,"BSCR Rating 5","Schedule XXIA, Column H",{"$f":"SUMIFS('Schedule XXIA'!$M$8:$M$57,'Schedule XXIA'!$K$8:$K$57,$D$48,'Schedule XXIA'!$L$8:$L$57,$B54)","v":0},0.1,0]
[null,"BSCR Rating 6","Schedule XXIA, Column H",{"$f":"SUMIFS('Schedule XXIA'!$M$8:$M$57,'Schedule XXIA'!$K$8:$K$57,$D$48,'Schedule XXIA'!$L$8:$L$57,$B55)","v":0},0.2,0]
[null,"BSCR Rating 7","Schedule XXIA, Column H",{"$f":"SUMIFS('Schedule XXIA'!$M$8:$M$57,'Schedule XXIA'!$K$8:$K$57,$D$48,'Schedule XXIA'!$L$8:$L$57,$B56)","v":0},0.3,0]
[null,"BSCR Rating 8","Schedule XXIA, Column H",{"$f":"SUMIFS('Schedule XXIA'!$M$8:$M$57,'Schedule XXIA'!$K$8:$K$57,$D$48,'Schedule XXIA'!$L$8:$L$57,$B57)","v":0},0.35,0]
[]
[null,"(d)  SUBTOTAL - COMMERCIAL MORTGAGE-BACKED SECURITIES / ASSET-BACKED SECURITIES",null,{"$f":"SUM(D49:D57)","v":0},null,{"$f":"SUM(F49:F57)","v":0}]
[]
[null,"(e) Bond Mutual Funds",null,"Bond Mutual Funds"]
[null,"BSCR Rating 0","Schedule XXIA, Column H",{"$f":"SUMIFS('Schedule XXIA'!$M$8:$M$57,'Schedule XXIA'!$K$8:$K$57,$D$61,'Schedule XXIA'!$L$8:$L$57,$B62)","v":0},0,{"$f":"MAX(0,(D62*E62))","v":0}]
[null,"BSCR Rating 1","Schedule XXIA, Column H",{"$f":"SUMIFS('Schedule XXIA'!$M$8:$M$57,'Schedule XXIA'!$K$8:$K$57,$D$61,'Schedule XXIA'!$L$8:$L$57,$B63)","v":0},4.0000000000000001E-3,{"$f":"MAX(0,(D63*E63))","v":0}]
[null,"BSCR Rating 2","Schedule XXIA, Column H",{"$f":"SUMIFS('Schedule XXIA'!$M$8:$M$57,'Schedule XXIA'!$K$8:$K$57,$D$61,'Schedule XXIA'!$L$8:$L$57,$B64)","v":0},8.0000000000000002E-3,0]
[null,"BSCR Rating 3","Schedule XXIA, Column H",{"$f":"SUMIFS('Schedule XXIA'!$M$8:$M$57,'Schedule XXIA'!$K$8:$K$57,$D$61,'Schedule XXIA'!$L$8:$L$57,$B65)","v":0},1.4999999999999999E-2,0]
[null,"BSCR Rating 4","Schedule XXIA, Column H",{"$f":"SUMIFS('Schedule XXIA'!$M$8:$M$57,'Schedule XXIA'!$K$8:$K$57,$D$61,'Schedule XXIA'!$L$8:$L$57,$B66)","v":0},0.03,0]
[null,"BSCR Rating 5","Schedule XXIA, Column H",{"$f":"SUMIFS('Schedule XXIA'!$M$8:$M$57,'Schedule XXIA'!$K$8:$K$57,$D$61,'Schedule XXIA'!$L$8:$L$57,$B67)","v":0},0.08,0]
[null,"BSCR Rating 6","Schedule XXIA, Column H",{"$f":"SUMIFS('Schedule XXIA'!$M$8:$M$57,'Schedule XXIA'!$K$8:$K$57,$D$61,'Schedule XXIA'!$L$8:$L$57,$B68)","v":0},0.15,0]
[null,"BSCR Rating 7","Schedule XXIA, Column H",{"$f":"SUMIFS('Schedule XXIA'!$M$8:$M$57,'Schedule XXIA'!$K$8:$K$57,$D$61,'Schedule XXIA'!$L$8:$L$57,$B69)","v":0},0.26300000000000001,0]
[null,"BSCR Rating 8","Schedule XXIA, Column H",{"$f":"SUMIFS('Schedule XXIA'!$M$8:$M$57,'Schedule XXIA'!$K$8:$K$57,$D$61,'Schedule XXIA'!$L$8:$L$57,$B70)","v":0},0.35,0]
[]
[null,"(e)  SUBTOTAL - BOND MUTUAL FUNDS",null,{"$f":"SUM(D62:D70)","v":0},null,{"$f":"SUM(F62:F70)","v":0}]
[]
[null,"(f) Preferred Shares",null,"Preferred Shares"]
[null,"BSCR Rating 0","Schedule XXIA, Column H",{"$f":"SUMIFS('Schedule XXIA'!$M$8:$M$57,'Schedule XXIA'!$J$8:$J$57,$D$74,'Schedule XXIA'!$L$8:$L$57,$B75)","v":0},0,{"$f":"MAX(0,(D75*E75))","v":0}]
[null,"BSCR Rating 1","Schedule XXIA, Column H",{"$f":"SUMIFS('Schedule XXIA'!$M$8:$M$57,'Schedule XXIA'!$J$8:$J$57,$D$74,'Schedule XXIA'!$L$8:$L$57,$B76)","v":0},6.0000000000000001E-3,0]
[null,"BSCR Rating 2","Schedule XXIA, Column H",{"$f":"SUMIFS('Schedule XXIA'!$M$8:$M$57,'Schedule XXIA'!$J$8:$J$57,$D$74,'Schedule XXIA'!$L$8:$L$57,$B77)","v":0},1.2E-2,0]
[null,"BSCR Rating 3","Schedule XXIA, Column H",{"$f":"SUMIFS('Schedule XXIA'!$M$8:$M$57,'Schedule XXIA'!$J$8:$J$57,$D$74,'Schedule XXIA'!$L$8:$L$57,$B78)","v":0},0.02,0]
[null,"BSCR Rating 4","Schedule XXIA, Column H",{"$f":"SUMIFS('Schedule XXIA'!$M$8:$M$57,'Schedule XXIA'!$J$8:$J$57,$D$74,'Schedule XXIA'!$L$8:$L$57,$B79)","v":0},0.04,0]
[null,"BSCR Rating 5","Schedule XXIA, Column H",{"$f":"SUMIFS('Schedule XXIA'!$M$8:$M$57,'Schedule XXIA'!$J$8:$J$57,$D$74,'Schedule XXIA'!$L$8:$L$57,$B80)","v":0},0.11,0]
[null,"BSCR Rating 6","Schedule XXIA, Column H",{"$f":"SUMIFS('Schedule XXIA'!$M$8:$M$57,'Schedule XXIA'!$J$8:$J$57,$D$74,'Schedule XXIA'!$L$8:$L$57,$B81)","v":0},0.25,0]
[null,"BSCR Rating 7","Schedule XXIA, Column H",{"$f":"SUMIFS('Schedule XXIA'!$M$8:$M$57,'Schedule XXIA'!$J$8:$J$57,$D$74,'Schedule XXIA'!$L$8:$L$57,$B82)","v":0},0.35,0]
[null,"BSCR Rating 8","Schedule XXIA, Column H",{"$f":"SUMIFS('Schedule XXIA'!$M$8:$M$57,'Schedule XXIA'!$J$8:$J$57,$D$74,'Schedule XXIA'!$L$8:$L$57,$B83)","v":0},0.35,0]
[]
[null,"(f)  SUBTOTAL - PREFERRED SHARES",null,{"$f":"SUM(D75:D83)","v":0},null,{"$f":"SUM(F75:F83)","v":0}]
[]
[null,"(g) Mortgage Loans",null,"MortgageLoanTypes"]
[null,"Insured/Guaranteed Mortgages","Schedule XXIA, Column H",{"$f":"SUMIFS('Schedule XXIA'!$M$8:$M$57,'Schedule XXIA'!$J$8:$J$57,$D$87,'Schedule XXIA'!$K$8:$K$57,$B88)","v":0},{"$f":"'Fixed Income Investments (Rev.)'!H70","v":3.0000000000000001E-3},{"$f":"MAX(0,(D88*E88))","v":0}]
[null,"Other Commercial and Farm Mortgages","Schedule XXIA, Column H",{"$f":"SUMIFS('Schedule XXIA'!$M$8:$M$57,'Schedule XXIA'!$J$8:$J$57,$D$87,'Schedule XXIA'!$K$8:$K$57,$B89)","v":0},{"$f":"'Fixed Income Investments (Rev.)'!H71","v":0.05},{"$f":"MAX(0,(D89*E89))","v":0}]
[null,"Other Residential Mortgages","Schedule XXIA, Column H",{"$f":"SUMIFS('Schedule XXIA'!$M$8:$M$57,'Schedule XXIA'!$J$8:$J$57,$D$87,'Schedule XXIA'!$K$8:$K$57,$B90)","v":0},{"$f":"'Fixed Income Investments (Rev.)'!H72","v":1.4999999999999999E-2},{"$f":"MAX(0,(D90*E90))","v":0}]
[null,"Mortgages Not In Good Standing","Schedule XXIA, Column H",{"$f":"SUMIFS('Schedule XXIA'!$M$8:$M$57,'Schedule XXIA'!$J$8:$J$57,$D$87,'Schedule XXIA'!$K$8:$K$57,$B91)","v":0},{"$f":"'Fixed Income Investments (Rev.)'!H73","v":0.25},{"$f":"MAX(0,(D91*E91))","v":0}]
[]
[null,"(g)  SUBTOTAL - Mortgage Loans",null,{"$f":"SUM(D88:D91)","v":0},null,{"$f":"SUM(F88:F91)","v":0}]
[]
[null,"(h) Other Asset Classes"]
[null,"Infrastructure (Non-affiliate holdings, non-duration based)","Schedule XXIA, Column H",{"$f":"SUMIFS('Schedule XXIA'!$M$8:$M$57,'Schedule XXIA'!$J$8:$J$57,$B96)","v":0},0.25,{"$f":"MAX(0,(D96*E96))","v":0}]
[null,"Listed Equity Securities in Developed Markets","Schedule XXIA, Column H",{"$f":"SUMIFS('Schedule XXIA'!$M$8:$M$57,'Schedule XXIA'!$J$8:$J$57,$B97)","v":0},0.35,{"$f":"MAX(0,(D97*E97))","v":0}]
[null,"Other Equities","Schedule XXIA, Column H",{"$f":"SUMIFS('Schedule XXIA'!$M$8:$M$57,'Schedule XXIA'!$J$8:$J$57,$B98)","v":0},0.45,0]
[null,"Strategic Holdings","Schedule XXIA, Column H",{"$f":"SUMIFS('Schedule XXIA'!$M$8:$M$57,'Schedule XXIA'!$J$8:$J$57,$B99)","v":0},0.2,0]
[null,"Duration Based","Schedule XXIA, Column H",{"$f":"SUMIFS('Schedule XXIA'!$M$8:$M$57,'Schedule XXIA'!$J$8:$J$57,$B100)","v":0},0.2,0]
[null,"Letters of Credit","Schedule XXIA, Column H",{"$f":"SUMIFS('Schedule XXIA'!$M$8:$M$57,'Schedule XXIA'!$J$8:$J$57,$B101)","v":0},0.2,0]
[null,"Advances to Affiliates - ","Schedule XXIA, Column H",{"$f":"SUMIFS('Schedule XXIA'!$M$8:$M$57,'Schedule XXIA'!$J$8:$J$57,$B102)","v":0},0.05,0]
[null,"Policy Loans","Schedule XXIA, Column H",{"$f":"SUMIFS('Schedule XXIA'!$M$8:$M$57,'Schedule XXIA'!$J$8:$J$57,$B103)","v":0},0,0]
[null,"Equity Real Estate 1","Schedule XXIA, Column H",{"$f":"SUMIFS('Schedule XXIA'!$M$8:$M$57,'Schedule XXIA'!$J$8:$J$57,$B104)","v":0},0.1,0]
[null,"Equity Real Estate 2","Schedule XXIA, Column H",{"$f":"SUMIFS('Schedule XXIA'!$M$8:$M$57,'Schedule XXIA'!$J$8:$J$57,$B105)","v":0},0.2,0]
[null,"Collateral Loans","Schedule XXIA, Column H",{"$f":"SUMIFS('Schedule XXIA'!$M$8:$M$57,'Schedule XXIA'!$J$8:$J$57,$B106)","v":0},0.05,0]
[]
[null,"(h)  SUBTOTAL - OTHER ASSET CLASSES",null,{"$f":"SUM(D96:D106)","v":0},null,{"$f":"SUM(F96:F106)","v":0}]
[]
[null,"(i) Grandfathered - Other Asset Classes"]
[null,"Grandfathered - Common Stock and Mutual Funds","Schedule XXIA, Column H",{"$f":"SUMIFS('Schedule XXIA'!$M$8:$M$57,'Schedule XXIA'!$J$8:$J$57,$B111)","v":0},0.14399999999999999,{"$f":"MAX(0,(D111*E111))","v":0}]
[null,"Grandfathered - Other Investments","Schedule XXIA, Column H",{"$f":"SUMIFS('Schedule XXIA'!$M$8:$M$57,'Schedule XXIA'!$J$8:$J$57,$B112)","v":0},0.2,0]
[null,"Grandfathered - Investment in Affiliates – Unregulated entities that conduct ancillary services",null,{"$f":"SUMIFS('Schedule XXIA'!$M$8:$M$57,'Schedule XXIA'!$J$8:$J$57,$B113)","v":0},0.05,0]
[null,"Grandfathered - Investment in Affiliates - Unregulated non-financial operating entities",null,{"$f":"SUMIFS('Schedule XXIA'!$M$8:$M$57,'Schedule XXIA'!$J$8:$J$57,$B114)","v":0},0.2,0]
[null,"Grandfathered - Investment in Affiliates - Unregulated financial operating entities",null,{"$f":"SUMIFS('Schedule XXIA'!$M$8:$M$57,'Schedule XXIA'!$J$8:$J$57,$B115)","v":0},0.55000000000000004,0]
[null,"Grandfathered - Investment in Affiliates - Regulated non-insurance financial operating entities",null,{"$f":"SUMIFS('Schedule XXIA'!$M$8:$M$57,'Schedule XXIA'!$J$8:$J$57,$B116)","v":0},0.55000000000000004,0]
[null,"Grandfathered - Investment in Affiliates - Regulated insurance financial operating entities",null,{"$f":"SUMIFS('Schedule XXIA'!$M$8:$M$57,'Schedule XXIA'!$J$8:$J$57,$B117)","v":0},0.2,0]
[null,"Grandfathered - Real Estate: Occupied by company","Schedule XXIA, Column H",{"$f":"SUMIFS('Schedule XXIA'!$M$8:$M$57,'Schedule XXIA'!$J$8:$J$57,$B118)","v":0},0.1,0]
[null,"Grandfathered - Real Estate: Other properties","Schedule XXIA, Column H",{"$f":"SUMIFS('Schedule XXIA'!$M$8:$M$57,'Schedule XXIA'!$J$8:$J$57,$B119)","v":0},0.2,0]
[]
[null,"(i)  SUBTOTAL - GRANDFATHERED OTHER ASSET CLASSES",null,{"$f":"SUM(D111:D119)","v":0},null,{"$f":"SUM(F111:F119)","v":0}]
[]
[null,"TOTAL CONCENTRATION RISK",null,{"$f":"D121+D108+D93+D85+D72+D59+D46+D33+D20","v":0},null,{"$f":"F121+F108+F93+F85+F72+F59+F46+F33+F20","v":0}]

{"sheet":"Credit Risk","index":104,"n_rows":42,"n_cols":6,"rows_kept":42,"cut":false,"hidden":false,"merged":[[44,0,44,1],[0,5,0,6]]}
["CREDIT RISK",null,null,null,null,{"$f":"HYPERLINK(\"#'Index'!A1\",\"Return to Index\")","v":"Return to Index"}]
[{"$f":"'Insurer Information'!C7","v":"Enter Company Name"}]
[{"$f":"\"Credit Risk\"& \" ($\" & IF(CONFIGURATION!$B$12>1,\"'\"&MID(CONFIGURATION!$B$12,2,LEN(CONFIGURATION!$B$12)),\"\") & \")\"","v":"Credit Risk ($'000)"},null,{"$f":" TEXT('Insurer Information'!C3,\"D MMMM YYYY\")","v":"31 December 2023"},"(1)","(2)","(3)"]
[]
[]
[null,"TYPE OF ",null,"RECEIVABLES/","CAPITAL","REQUIRED"]
[null,"DEBTOR","STATEMENT SOURCE","RECOVERABLES","FACTOR","CAPITAL"]
[]
[null,"(a)  Accounts and Premiums Receivable",null,null,null,"(1) x (2)"]
[]
[null,"In Course of Collection ","Form 4EBS, Line (10a)",{"$f":"'Form 4EBS'!F59","v":0},0.05,{"$f":"D11*E11","v":0}]
[null,"Receivables from retrocessional contracts Less: Collateralized Balances","Form 4EBS, Line (10c) Less Notes to Form 4EBS",{"$f":"'Form 4EBS'!F60-'Form 4EBS'!F196","v":0},0.1,{"$f":"D12*E12","v":0}]
[]
[null,"(a)  SUBTOTAL - ACCOUNTS AND PREMIUMS RECEIVABLE",null,{"$f":"SUM(D11:D12)","v":0},null,{"$f":"IF(SUM(F11:F12)>=0,SUM(F11:F12),0)","v":0}]
[]
[null,"(b)  All Other Receivables"]
[]
[null,"Accrued Investment Income","Form 4EBS, Line (9)",{"$f":"'Form 4EBS'!F56","v":0},2.5000000000000001E-2,{"$f":"D18*E18","v":0}]
[null,"Advances to Affiliates","Form 4EBS, Line (4g)",{"$f":"'Form 4EBS'!F39","v":0},0.05,{"$f":"D19*E19","v":0}]
[null,"Policy Loans","Form 4EBS, Line (6)",{"$f":"'Form 4EBS'!F47","v":0},0,{"$f":"D20*E20","v":0}]
[]
[null,"(b)  SUBTOTAL - ALL OTHER RECEIVABLES",null,{"$f":"SUM(D18:D20)","v":0},null,{"$f":"IF(SUM(F18:F20)>=0,SUM(F18:F20),0)","v":0}]
[]
[null,"(c) Particulars of Reinsurance Balances By BSCR Rating",null,null,null,"Max(0, (Column (1) x Column (2) ))"]
[null,0]
[null,"BSCR Rating 0","Schedule XVIII EBS, Column E",{"$f":"+'Schedule XVIII (EBS)'!O87","v":0},0,{"$f":"MAX(0,(D26*E26))","v":0}]
[null,"BSCR Rating 1","Schedule XVIII EBS, Column E",{"$f":"+'Schedule XVIII (EBS)'!O88","v":0},7.0000000000000001E-3,0]
[null,"BSCR Rating 2","Schedule XVIII EBS, Column E",{"$f":"+'Schedule XVIII (EBS)'!O89","v":0},1.4999999999999999E-2,0]
[null,"BSCR Rating 3","Schedule XVIII EBS, Column E",{"$f":"+'Schedule XVIII (EBS)'!O90","v":0},3.5000000000000003E-2,0]
[null,"BSCR Rating 4","Schedule XVIII EBS, Column E",{"$f":"+'Schedule XVIII (EBS)'!O91","v":0},7.0000000000000007E-2,0]
[null,"BSCR Rating 5","Schedule XVIII EBS, Column E",{"$f":"+'Schedule XVIII (EBS)'!O92","v":0},0.12,0]
[null,"BSCR Rating 6","Schedule XVIII EBS, Column E",{"$f":"+'Schedule XVIII (EBS)'!O93","v":0},0.2,0]
[null,"BSCR Rating 7","Schedule XVIII EBS, Column E",{"$f":"+'Schedule XVIII (EBS)'!O94","v":0},0.27,0]
[null,"BSCR Rating 8","Schedule XVIII EBS, Column E",{"$f":"+'Schedule XVIII (EBS)'!O95","v":0},0.35,0]
[]
[null,"Total",null,{"$f":"SUM(D26:D35)","v":0},null,{"$f":"SUM(F26:F35)","v":0}]
[]
[null,{"$f":"\"Less: Diversification Adjustment up to \"&(ROUND('Schedule XVIII (EBS)'!O104,2)*100&\"%\")","v":"Less: Diversification Adjustment up to 0%"},"Schedule XVIII EBS, Column E",null,{"$f":"'Schedule XVIII (EBS)'!O104","v":0},{"$f":"SUM(F26:F35)*-('Schedule XVIII (EBS)'!O104)","v":0}]
[]
[null,"(c)  SUBTOTAL - PARTICULARS OF REINSURANCE BALANCES BY BSCR RATING",null,{"$f":"MAX(+D36,0)","v":0},null,{"$f":"MAX(0,SUM(F26:F35)+F38)","v":0}]
[]
[null,"(d)  TOTAL CREDIT RISK  [ (a) + (b) + (c) ]",null,{"$f":"D40+D22+D14","v":0},null,{"$f":"F40+F22+F14","v":0}]

{"sheet":"Credit Risk (Revised)","index":105,"n_rows":59,"n_cols":8,"rows_kept":59,"cut":false,"hidden":false,"merged":[[0,7,0,8],[61,0,61,1]]}
["CREDIT RISK (REVISED)",null,null,null,null,null,null,{"$f":"HYPERLINK(\"#'Index'!A1\",\"Return to Index\")","v":"Return to Index"}]
[{"$f":"'Insurer Information'!C7","v":"Enter Company Name"}]
[{"$f":"\"Credit Risk\"& \" ($\" & IF(CONFIGURATION!$B$12>1,\"'\"&MID(CONFIGURATION!$B$12,2,LEN(CONFIGURATION!$B$12)),\"\") & \")\"","v":"Credit Risk ($'000)"},null,null,null,{"$f":" TEXT('Insurer Information'!C3,\"D MMMM YYYY\")","v":"31 December 2023"},"(1)","(2)","(3)"]
[]
[]
[null,"TYPE OF ",null,null,null,"RECEIVABLES/","CAPITAL","REQUIRED"]
[null,"DEBTOR",null,null,"STATEMENT SOURCE","RECOVERABLES","FACTOR","CAPITAL"]
[]
[null,"(a)  Accounts and Premiums Receivable",null,null,null,null,null,"(1) x (2)"]
[]
[null,"In Course of Collection ","Form 4EBS, Line (10a)",null,null,{"$f":"'Form 4EBS'!F59","v":0},0.05,{"$f":"F11*G11","v":0}]
[null,"Deferred - Not Yet Due","Form 1SFS, Line (10b)",null,null,{"$f":"IF('Form 1SFS'!K68=0,'Form 1SFS'!F68+'Form 1SFS'!H68,'Form 1SFS'!K68)","v":0},0.05,{"$f":"F12*G12","v":0}]
[null,"Receivables from retrocessional contracts Less: Collateralized Balances","Form 4EBS, Line (10c) Less Notes to Form 4EBS",null,null,{"$f":"'Form 4EBS'!F60-'Form 4EBS'!F196","v":0},0.1,{"$f":"F13*G13","v":0}]
[]
[null,"(a)  SUBTOTAL - ACCOUNTS AND PREMIUMS RECEIVABLE",null,null,null,{"$f":"SUM(F11:F13)","v":0},null,{"$f":"IF(SUM(H11:H13)>=0,SUM(H11:H13),0)","v":0}]
[]
[null,"(b)  All Other Receivables"]
[]
[null,"Accrued Investment Income","Form 4EBS, Line (9)",null,null,{"$f":"'Form 4EBS'!F56","v":0},2.5000000000000001E-2,{"$f":"F19*G19","v":0}]
[null,"Advances to Affiliates","Form 4EBS, Line (4g)",null,null,{"$f":"'Form 4EBS'!F39","v":0},0.05,{"$f":"F20*G20","v":0}]
[null,"Policy Loans","Form 4EBS, Line (6)",null,null,{"$f":"'Form 4EBS'!F47","v":0},0,{"$f":"F21*G21","v":0}]
[null,"Balances receivable on sale of investments","Form 4EBS, Line (13f)",null,null,{"$f":"'Form 4EBS'!F80","v":0},2.5000000000000001E-2,{"$f":"F22*G22","v":0}]
[]
[null,"(b)  SUBTOTAL - ALL OTHER RECEIVABLES",null,null,null,{"$f":"SUM(F19:F22)","v":0},null,{"$f":"IF(SUM(H19:H22)>=0,SUM(H19:H22),0)","v":0}]
[]
[null,"(c) Particulars of Reinsurance Balances By BSCR Rating",null,null,null,null,null,"Max(0, (Column (1) x Column (2) ))"]
[null,0]
[null,"BSCR Rating 0",null,"Schedule XVIII EBS, Column E",null,{"$f":"+'Schedule XVIII (EBS)'!O87","v":0},0,{"$f":"MAX(0,(F28*G28))","v":0}]
[null,"BSCR Rating 1",null,"Schedule XVIII EBS, Column E",null,{"$f":"+'Schedule XVIII (EBS)'!O88","v":0},7.0000000000000001E-3,0]
[null,"BSCR Rating 2",null,"Schedule XVIII EBS, Column E",null,{"$f":"+'Schedule XVIII (EBS)'!O89","v":0},1.4999999999999999E-2,0]
[null,"BSCR Rating 3",null,"Schedule XVIII EBS, Column E",null,{"$f":"+'Schedule XVIII (EBS)'!O90","v":0},3.5000000000000003E-2,0]
[null,"BSCR Rating 4",null,"Schedule XVIII EBS, Column E",null,{"$f":"+'Schedule XVIII (EBS)'!O91","v":0},7.0000000000000007E-2,0]
[null,"BSCR Rating 5",null,"Schedule XVIII EBS, Column E",null,{"$f":"+'Schedule XVIII (EBS)'!O92","v":0},0.12,0]
[null,"BSCR Rating 6",null,"Schedule XVIII EBS, Column E",null,{"$f":"+'Schedule XVIII (EBS)'!O93","v":0},0.2,0]
[null,"BSCR Rating 7",null,"Schedule XVIII EBS, Column E",null,{"$f":"+'Schedule XVIII (EBS)'!O94","v":0},0.27,0]
[null,"BSCR Rating 8",null,"Schedule XVIII EBS, Column E",null,{"$f":"+'Schedule XVIII (EBS)'!O95","v":0},0.35,0]
[]
[null,"Total",null,null,null,{"$f":"SUM(F28:F37)","v":0},null,{"$f":"SUM(H28:H37)","v":0}]
[]
[null,{"$f":"\"Less: Diversification Adjustment up to \"&(ROUND('Schedule XVIII (EBS)'!O104,2)*100&\"%\")","v":"Less: Diversification Adjustment up to 0%"},null,"Schedule XVIII EBS, Column E",null,null,{"$f":"'Schedule XVIII (EBS)'!O104","v":0},{"$f":"SUM(H28:H37)*-('Schedule XVIII (EBS)'!O104)","v":0}]
[]
[null,"(c)  SUBTOTAL - PARTICULARS OF REINSURANCE BALANCES BY BSCR RATING",null,null,null,{"$f":"MAX(+F38,0)","v":0},null,{"$f":"MAX(0,SUM(H28:H37)+H40)","v":0}]
[]
[null,"(d) Counterparty Default Risk for OTC Derivatives"]
[]
[null,null,"Market Value of Derivatives with Positive Market Value","Market Value of Derivatives with Negative Market Value","Market Value of Collateral, Excluding any overcollateralization","Capital Factor","Haircut on Collateral"]
[null,"BSCR Rating 0 ",{"$f":"'Schedule IIB (EBS)'!D84+'Schedule IIC (EBS)'!D84+'Schedule IID (EBS)'!D84+'Schedule IIE (EBS)'!D84+'Schedule IIF (EBS)'!D84","v":0},{"$f":"'Schedule IIB (EBS)'!F84+'Schedule IIC (EBS)'!F84+'Schedule IID (EBS)'!F84+'Schedule IIE (EBS)'!F84+'Schedule IIF (EBS)'!F84","v":0},{"$f":"'Schedule IIB (EBS)'!H84+'Schedule IIC (EBS)'!H84+'Schedule IID (EBS)'!H84+'Schedule IIE (EBS)'!H84+'Schedule IIF (EBS)'!H84","v":0},0,0.03,{"$f":"MAX(0,C47-(1-G47)*MIN(C47,E47))*F47","v":0}]
[null,"BSCR Rating 1",{"$f":"'Schedule IIB (EBS)'!D85+'Schedule IIC (EBS)'!D85+'Schedule IID (EBS)'!D85+'Schedule IIE (EBS)'!D85+'Schedule IIF (EBS)'!D85","v":0},{"$f":"'Schedule IIB (EBS)'!F85+'Schedule IIC (EBS)'!F85+'Schedule IID (EBS)'!F85+'Schedule IIE (EBS)'!F85+'Schedule IIF (EBS)'!F85","v":0},{"$f":"'Schedule IIB (EBS)'!H85+'Schedule IIC (EBS)'!H85+'Schedule IID (EBS)'!H85+'Schedule IIE (EBS)'!H85+'Schedule IIF (EBS)'!H85","v":0},4.0000000000000001E-3,0.03,{"$f":"MAX(0,C48-(1-G48)*MIN(C48,E48))*F48","v":0}]
[null,"BSCR Rating 2",{"$f":"'Schedule IIB (EBS)'!D86+'Schedule IIC (EBS)'!D86+'Schedule IID (EBS)'!D86+'Schedule IIE (EBS)'!D86+'Schedule IIF (EBS)'!D86","v":0},{"$f":"'Schedule IIB (EBS)'!F86+'Schedule IIC (EBS)'!F86+'Schedule IID (EBS)'!F86+'Schedule IIE (EBS)'!F86+'Schedule IIF (EBS)'!F86","v":0},{"$f":"'Schedule IIB (EBS)'!H86+'Schedule IIC (EBS)'!H86+'Schedule IID (EBS)'!H86+'Schedule IIE (EBS)'!H86+'Schedule IIF (EBS)'!H86","v":0},8.0000000000000002E-3,0.03,0]
[null,"BSCR Rating 3",{"$f":"'Schedule IIB (EBS)'!D87+'Schedule IIC (EBS)'!D87+'Schedule IID (EBS)'!D87+'Schedule IIE (EBS)'!D87+'Schedule IIF (EBS)'!D87","v":0},{"$f":"'Schedule IIB (EBS)'!F87+'Schedule IIC (EBS)'!F87+'Schedule IID (EBS)'!F87+'Schedule IIE (EBS)'!F87+'Schedule IIF (EBS)'!F87","v":0},{"$f":"'Schedule IIB (EBS)'!H87+'Schedule IIC (EBS)'!H87+'Schedule IID (EBS)'!H87+'Schedule IIE (EBS)'!H87+'Schedule IIF (EBS)'!H87","v":0},1.4999999999999999E-2,0.03,0]
[null,"BSCR Rating 4",{"$f":"'Schedule IIB (EBS)'!D88+'Schedule IIC (EBS)'!D88+'Schedule IID (EBS)'!D88+'Schedule IIE (EBS)'!D88+'Schedule IIF (EBS)'!D88","v":0},{"$f":"'Schedule IIB (EBS)'!F88+'Schedule IIC (EBS)'!F88+'Schedule IID (EBS)'!F88+'Schedule IIE (EBS)'!F88+'Schedule IIF (EBS)'!F88","v":0},{"$f":"'Schedule IIB (EBS)'!H88+'Schedule IIC (EBS)'!H88+'Schedule IID (EBS)'!H88+'Schedule IIE (EBS)'!H88+'Schedule IIF (EBS)'!H88","v":0},0.03,0.03,0]
[null,"BSCR Rating 5",{"$f":"'Schedule IIB (EBS)'!D89+'Schedule IIC (EBS)'!D89+'Schedule IID (EBS)'!D89+'Schedule IIE (EBS)'!D89+'Schedule IIF (EBS)'!D89","v":0},{"$f":"'Schedule IIB (EBS)'!F89+'Schedule IIC (EBS)'!F89+'Schedule IID (EBS)'!F89+'Schedule IIE (EBS)'!F89+'Schedule IIF (EBS)'!F89","v":0},{"$f":"'Schedule IIB (EBS)'!H89+'Schedule IIC (EBS)'!H89+'Schedule IID (EBS)'!H89+'Schedule IIE (EBS)'!H89+'Schedule IIF (EBS)'!H89","v":0},0.08,0.03,0]
[null,"BSCR Rating 6",{"$f":"'Schedule IIB (EBS)'!D90+'Schedule IIC (EBS)'!D90+'Schedule IID (EBS)'!D90+'Schedule IIE (EBS)'!D90+'Schedule IIF (EBS)'!D90","v":0},{"$f":"'Schedule IIB (EBS)'!F90+'Schedule IIC (EBS)'!F90+'Schedule IID (EBS)'!F90+'Schedule IIE (EBS)'!F90+'Schedule IIF (EBS)'!F90","v":0},{"$f":"'Schedule IIB (EBS)'!H90+'Schedule IIC (EBS)'!H90+'Schedule IID (EBS)'!H90+'Schedule IIE (EBS)'!H90+'Schedule IIF (EBS)'!H90","v":0},0.15,0.03,0]
[null,"BSCR Rating 7",{"$f":"'Schedule IIB (EBS)'!D91+'Schedule IIC (EBS)'!D91+'Schedule IID (EBS)'!D91+'Schedule IIE (EBS)'!D91+'Schedule IIF (EBS)'!D91","v":0},{"$f":"'Schedule IIB (EBS)'!F91+'Schedule IIC (EBS)'!F91+'Schedule IID (EBS)'!F91+'Schedule IIE (EBS)'!F91+'Schedule IIF (EBS)'!F91","v":0},{"$f":"'Schedule IIB (EBS)'!H91+'Schedule IIC (EBS)'!H91+'Schedule IID (EBS)'!H91+'Schedule IIE (EBS)'!H91+'Schedule IIF (EBS)'!H91","v":0},0.26300000000000001,0.03,0]
[null,"BSCR Rating 8",{"$f":"'Schedule IIB (EBS)'!D92+'Schedule IIC (EBS)'!D92+'Schedule IID (EBS)'!D92+'Schedule IIE (EBS)'!D92+'Schedule IIF (EBS)'!D92","v":0},{"$f":"'Schedule IIB (EBS)'!F92+'Schedule IIC (EBS)'!F92+'Schedule IID (EBS)'!F92+'Schedule IIE (EBS)'!F92+'Schedule IIF (EBS)'!F92","v":0},{"$f":"'Schedule IIB (EBS)'!H92+'Schedule IIC (EBS)'!H92+'Schedule IID (EBS)'!H92+'Schedule IIE (EBS)'!H92+'Schedule IIF (EBS)'!H92","v":0},0.35,0.03,0]
[]
[null,"(d)  SUBTOTAL - COUNTERPARTY DEFAULT RISK FOR OTC DERIVATIVES",null,null,null,null,null,{"$f":"SUM(H47:H55)","v":0}]
[]
[null,"(e)  TOTAL CREDIT RISK  [ (a) + (b) + (c) + (d) ]",null,null,null,{"$f":"F42+F24+F15","v":0},null,{"$f":"H24+H15+H42+H57","v":0}]

{"sheet":"LT Insurance Risk","index":106,"n_rows":64,"n_cols":15,"rows_kept":64,"cut":false,"hidden":false,"merged":[[54,11,54,12],[55,11,55,12],[25,11,25,12],[40,11,40,12],[40,3,40,4],[41,3,41,4],[41,11,41,12],[49,11,49,12],[50,11,50,12],[53,11,53,12],[43,11,43,12],[39,11,39,12],[34,11,34,12],[53,3,53,4],[55,6,55,7],[50,6,50,7],[0,14,0,15],[16,11,16,12],[24,11,24,12],[29,11,29,12],[4,13,4,14],[28,11,28,12],[26,11,26,12],[27,11,27,12],[4,11,4,12],[9,11,9,12],[9,7,10,7],[24,3,24,4],[43,3,43,4],[39,3,39,4],[40,6,40,7],[21,2,21,4],[32,6,32,7],[26,6,26,7],[27,6,27,7],[28,6,28,7],[29,6,29,7],[33,3,33,4],[35,3,35,4],[25,6,25,7],[25,3,25,4],[27,3,27,4],[41,6,41,7],[34,3,34,4],[34,6,34,7],[28,3,28,4],[29,3,29,4],[55,3,55,4],[54,3,54,4],[30,3,30,4],[31,3,31,4],[4,6,4,7],[9,3,9,4],[16,3,16,4],[18,2,18,3],[9,6,10,6],[16,6,17,6],[16,7,17,7],[4,3,4,4],[49,3,49,4],[50,3,50,4],[54,6,54,7],[26,3,26,4],[31,11,31,12],[32,11,32,12],[33,11,33,12],[35,11,35,12],[36,11,36,12],[37,11,37,12],[32,3,32,4],[33,6,33,7],[35,6,35,7],[36,6,36,7],[37,6,37,7],[36,3,36,4],[37,3,37,4]]}
["LONG-TERM INSURANCE RISK",null,null,null,null,null,null,null,null,null,null,null,null,null,{"$f":"HYPERLINK(\"#'Index'!A1\",\"Return to Index\")","v":"Return to Index"}]
[{"$f":"'Insurer Information'!C7","v":"Enter Company Name"},null,null,{"$f":" TEXT('Insurer Information'!C3,\"D MMMM YYYY\")","v":"31 December 2023"}]
[{"$f":"\"Long Term Insurance Risk\"& \" ($\" & IF(CONFIGURATION!$B$12>1,\"'\"&MID(CONFIGURATION!$B$12,2,LEN(CONFIGURATION!$B$12)),\"\") & \")\"","v":"Long Term Insurance Risk ($'000)"},null,null,"(1)","(2)",null,null,null,null,null,null,"(3)","(4)","(5)","(6)"]
[]
[null,null,"TYPE OF RISK","RISK MEASURE",null,null,"STATEMENT SOURCE",null,null,null,null,"CAPITAL FACTORS",null,"CAPITAL REQUIREMENTS"]
[]
[null,null,"Insurance risks"]
[null,null,"Definition of Adjustable: (re)insurer has the ability to make a material adjustment to the cost of insurance, based on recent experience"]
[null,null,null,"Adjustable product/treaty","Non-adjustable product/treaty",null,"Adjustable product/treaty","Non-adjustable product/treaty",null,"Tier","NAR (B=$Billions)","Adjustable product/treaty","Non-adjustable product/treaty","Adjustable product/treaty","Non-adjustable product/treaty"]
[null,null,null,"Net Amount at Risk",null,null,"Schedule VII EBS, Line 1, Column (9)","Schedule VII EBS, Line 1, Column (10)",null,null,null,"Factor (per 1000 of NAR)",null,"(1) * (3)","(2) * (4)"]
[null,null,"Mortality ",{"$f":"'Schedule VII (EBS)'!H10","v":0},{"$f":"'Schedule VII (EBS)'!I10","v":0},null,null,null,null,1,"NAR <1B",{"$f":"M11/2","v":1.9850000000000001},3.97,{"$f":"IF(D11>1000000,L11*1000000,L11*D11)/1000","v":0},{"$f":"IF(E11>1000000,M11*1000000,M11*E11)/1000","v":0}]
[null,null,"  (term assurance, whole life, universal life, AD&D)",null,null,null,null,null,null,2,"1B - 5B",{"$f":"M12/2","v":0.9},1.8,{"$f":"IF(D11<1000000,0,IF(D11>5000000,L12*4000000,L12*(D11-1000000)))/1000","v":0},{"$f":"IF(E11<1000000,0,IF(E11>5000000,M12*4000000,M12*(E11-1000000)))/1000","v":0}]
[null,null,null,null,null,null,null,null,null,3,"5B -10B",{"$f":"M13/2","v":0.72},1.44,{"$f":"IF(D11<5000000,0,IF(D11>10000000,L13*5000000,L13*(D11-5000000)))/1000","v":0},{"$f":"IF(E11<5000000,0,IF(E11>10000000,M13*5000000,M13*(E11-5000000)))/1000","v":0}]
[null,null,null,null,null,null,null,null,null,4,"10B - 50B",{"$f":"M14/2","v":0.64500000000000002},1.29,{"$f":"IF(D11<10000000,0,IF(D11>50000000,L14*40000000,L14*(D11-10000000)))/1000","v":0},{"$f":"IF(E11<10000000,0,IF(E11>50000000,M14*40000000,M14*(E11-10000000)))/1000","v":0}]
[null,null,null,null,null,null,null,null,null,5,"NAR > 50B",{"$f":"M15/2","v":0.56499999999999995},1.1299999999999999,{"$f":"IF(D11<50000000,0,L15*(D11-50000000))/1000","v":0},{"$f":"IF(E11<50000000,0,M15*(E11-50000000))/1000","v":0}]
[null,null,null,null,null,null,null,null,null,null,null,null,"Subtotal",{"$f":"SUM(N11:N15)","v":0},{"$f":"SUM(O11:O15)","v":0}]
[null,null,null,"Net Amount at Risk",null,null,"Schedule VII EBS, Line 2, Column (9)","Schedule VII EBS, Line 2, Column (10)",null,null,null,"Factor (per 1000 of NAR)"]
[null,null,"Critical Illness",{"$f":"'Schedule VII (EBS)'!H11","v":0},{"$f":"'Schedule VII (EBS)'!I11","v":0},null,null,null,null,1,"NAR <1B",{"$f":"M18/2","v":5.9550000000000001},{"$f":"M11*3","v":11.91},{"$f":"IF(D18>1000000,L18*1000000,L18*D18)/1000","v":0},{"$f":"IF(E18>1000000,M18*1000000,M18*E18)/1000","v":0}]
[null,null,"  (including accelerated critical illness products)",null,null,null,null,null,null,2,"1B - 5B",{"$f":"M19/2","v":2.7},{"$f":"M12*3","v":5.4},{"$f":"IF(D18<1000000,0,IF(D18>5000000,L19*4000000,L19*(D18-1000000)))/1000","v":0},{"$f":"IF(E18<1000000,0,IF(E18>5000000,M19*4000000,M19*(E18-1000000)))/1000","v":0}]
[null,null,null,null,null,null,null,null,null,3,"5B -10B",{"$f":"M20/2","v":2.16},{"$f":"M13*3","v":4.32},{"$f":"IF(D18<5000000,0,IF(D18>10000000,L20*5000000,L20*(D18-5000000)))/1000","v":0},{"$f":"IF(E18<5000000,0,IF(E18>10000000,M20*5000000,M20*(E18-5000000)))/1000","v":0}]
[null,null,null,null,null,null,null,null,null,4,"10B - 50B",{"$f":"M21/2","v":1.9350000000000001},{"$f":"M14*3","v":3.87},{"$f":"IF(D18<10000000,0,IF(D18>50000000,L21*40000000,L21*(D18-10000000)))/1000","v":0},{"$f":"IF(E18<10000000,0,IF(E18>50000000,M21*40000000,M21*(E18-10000000)))/1000","v":0}]
[null,null,null,null,null,null,null,null,null,5,"NAR > 50B",{"$f":"M22/2","v":1.6949999999999998},{"$f":"M15*3","v":3.3899999999999997},{"$f":"IF(D18<50000000,0,L22*(D18-50000000))/1000","v":0},{"$f":"IF(E18<50000000,0,M22*(E18-50000000))/1000","v":0}]
[null,null,null,null,null,null,null,null,null,null,null,null,"Subtotal",{"$f":"SUM(N18:N22)","v":0},{"$f":"SUM(O18:O22)","v":0}]
[]
[null,null,"Longevity Risk (immediate pay-out annuities, contingent annuities, pension pay-outs) - attained age of annuitant:","BSCR ADJUSTED RESERVE",null,null,null,null,null,null,null,"% of BSCR Adjusted Reserves"]
[null,null,"(a) 0 - 55",{"$f":"+'Schedule VII (EBS)'!F14","v":0},null,null,"Schedule VII EBS, Line 3(a), Column (7)",null,null,null,null,0.02,null,"(1) * (4)",{"$f":"D26*L26","v":0}]
[null,null,"(b) 56 - 65",{"$f":"+'Schedule VII (EBS)'!F15","v":0},null,null,"Schedule VII EBS, Line 3(b), Column (7)",null,null,null,null,0.03,null,"(1) * (4)",{"$f":"D27*L27","v":0}]
[null,null,"(c) 66 - 70",{"$f":"+'Schedule VII (EBS)'!F16","v":0},null,null,"Schedule VII EBS, Line 3(c), Column (7)",null,null,null,null,0.04,null,"(1) * (4)",{"$f":"D28*L28","v":0}]
[null,null,"(d) 71 - 80",{"$f":"+'Schedule VII (EBS)'!F17","v":0},null,null,"Schedule VII EBS, Line 3(d), Column (7)",null,null,null,null,0.05,null,"(1) * (4)",{"$f":"D29*L29","v":0}]
[null,null,"(e) 81+",{"$f":"+'Schedule VII (EBS)'!F18","v":0},null,null,"Schedule VII EBS, Line 3(e), Column (7)",null,null,null,null,0.06,null,"(1) * (4)",{"$f":"D30*L30","v":0}]
[]
[null,null,"Longevity (deferred pay-out annuities, future contingent annuities, future pension pay-outs) - age at which annuity benefit commences:","BSCR ADJUSTED RESERVE",null,null,null,null,null,null,null,"% of BSCR Adjusted Reserves"]
[null,null,"(a) 0 - 55",{"$f":"+'Schedule VII (EBS)'!F22","v":0},null,null,"Schedule VII EBS, Line 4(a), Column (7)",null,null,null,null,0.02,null,"(1) * (4)",{"$f":"D33*L33","v":0}]
[null,null,"(b) 56 - 60",{"$f":"+'Schedule VII (EBS)'!F23","v":0},null,null,"Schedule VII EBS, Line 4(b), Column (7)",null,null,null,null,0.03,null,"(1) * (4)",0]
[null,null,"(c) 61 - 65",{"$f":"+'Schedule VII (EBS)'!F24","v":0},null,null,"Schedule VII EBS, Line 4(c), Column (7)",null,null,null,null,0.04,null,"(1) * (4)",0]
[null,null,"(d) 66 - 70",{"$f":"+'Schedule VII (EBS)'!F25","v":0},null,null,"Schedule VII EBS, Line 4(d), Column (7)",null,null,null,null,0.05,null,"(1) * (4)",0]
[null,null,"(e) 71 - 75",{"$f":"+'Schedule VII (EBS)'!F26","v":0},null,null,"Schedule VII EBS, Line 4(e), Column (7)",null,null,null,null,0.06,null,"(1) * (4)",0]
[null,null,"(f) 76+",{"$f":"+'Schedule VII (EBS)'!F27","v":0},null,null,"Schedule VII EBS, Line 4(f), Column (7)",null,null,null,null,7.0000000000000007E-2,null,"(1) * (4)",0]
[]
[null,null,null,"BSCR ADJUSTED RESERVE",null,null,null,null,null,null,null,"% of BSCR Adjusted Reserves"]
[null,null,"Disability income: claims in payment Waiver of premium and long-term care",{"$f":"'Schedule VII (EBS)'!F38","v":0},null,null,"Schedule VII EBS, Line 9, Column (7)",null,null,null,null,7.0000000000000007E-2,null,"(1) * (4)",{"$f":"D41*L41","v":0}]
[null,null,"Disability income: claims in payment Other accident and sickness",{"$f":"'Schedule VII (EBS)'!F39","v":0},null,null,"Schedule VII EBS, Line 10, Column (7)",null,null,null,null,0.1,null,"(1) * (4)",{"$f":"D42*L42","v":0}]
[]
[null,null,"Disability income: active lives (including waiver of premium and long-term care)","Net Annual Premium ",null,null,null,null,null,null,null,"% of Annual Premiums"]
[null,null,"Length of premium guarantee","Benefit Period <= 2 years","Benefit Period > 2 years",null,null,null,null,null,null,"Benefit Period <= 2 years","Benefit Period > 2 years"]
[null,null,"<= 1 year",{"$f":"'Schedule VII (EBS)'!H33","v":0},{"$f":"'Schedule VII (EBS)'!I33","v":0},null,"Schedule VII EBS, Line 7(a), Column (9)","Schedule VII EBS, Line 7(a), Column (10)",null,null,null,{"$f":"M46*0.75","v":0.09},0.12,"(1) * (3) + (2) * (4)",{"$f":"D46*L46+E46*M46","v":0}]
[null,null,"1 - 5 years",{"$f":"'Schedule VII (EBS)'!H34","v":0},{"$f":"'Schedule VII (EBS)'!I34","v":0},null,"Schedule VII EBS, Line 7(b), Column (9)","Schedule VII EBS, Line 7(b), Column (10)",null,null,null,{"$f":"M47*0.75","v":0.15000000000000002},0.2,"(1) * (3) + (2) * (4)",{"$f":"D47*L47+E47*M47","v":0}]
[null,null,">5 years",{"$f":"'Schedule VII (EBS)'!H35","v":0},{"$f":"'Schedule VII (EBS)'!I35","v":0},null,"Schedule VII EBS, Line 7(c), Column (9)","Schedule VII EBS, Line 7(c), Column (10)",null,null,null,{"$f":"M48*0.75","v":0.22499999999999998},0.3,"(1) * (3) + (2) * (4)",{"$f":"D48*L48+E48*M48","v":0}]
[]
[null,null,null,"Net Annual Premium ",null,null,null,null,null,null,null,"% of Annual Premiums"]
[null,null,"Disability income: active lives  Other accident and sickness",{"$f":"'Schedule VII (EBS)'!J37","v":0},null,null,"Schedule VII EBS, Line 8, Column (11)",null,null,null,null,0.12,null,"(1) * (4)",{"$f":"D51*L51","v":0}]
[]
[]
[null,null,null,"Net Annual Premium ",null,null,null,null,null,null,null,"% of Annual Premiums"]
[null,null,"Stop Loss ",{"$f":"'Schedule VII (EBS)'!J43","v":0},null,null,"Schedule VII EBS, Line 14, Column (11)",null,null,null,null,0.5,null,"(1) * (4)",{"$f":"D55*L55","v":0}]
[null,null,"Rider (Other product riders not included above)",{"$f":"'Schedule VII (EBS)'!J44","v":0},null,null,"Schedule VII EBS, Line 15, Column (11)",null,null,null,null,0.25,null,"(1) * (4)",{"$f":"D56*L56","v":0}]
[null,null,"(for example: Guaranteed Insurability Options, Conversion options, etc)"]
[]
[null,null,"TOTAL INSURANCE RISK"]
[null,null,"Mortality",null,null,null,null,null,null,null,null,null,null,null,{"$f":"MAX(0,N16+O16)","v":0}]
[null,null,"Stop Loss",null,null,null,null,null,null,null,null,null,null,null,{"$f":"MAX(0,O55)","v":0}]
[null,null,"Riders ",null,null,null,null,null,null,null,null,null,null,null,{"$f":"MAX(0,O56)","v":0}]
[null,null,"Morbidity and Disability",null,null,null,null,null,null,null,null,null,null,null,{"$f":"MAX(0,N23+O23+O41+O42+O46+O47+O48+O51)","v":0}]
[null,null,"Longevity",null,null,null,null,null,null,null,null,null,null,null,{"$f":"MAX(0,(SUM(O26:O38)))","v":0}]

{"sheet":"LT Other Insurance Risk","index":107,"n_rows":27,"n_cols":9,"rows_kept":27,"cut":false,"hidden":false,"merged":[[0,7,0,9]]}
[{"$f":"\"LONG-TERM OTHER INSURANCE RISK\"& \" ($\" & IF(CONFIGURATION!$B$12>1,\"'\"&MID(CONFIGURATION!$B$12,2,LEN(CONFIGURATION!$B$12)),\"\") & \")\"","v":"LONG-TERM OTHER INSURANCE RISK ($'000)"},null,null,null,null,null,null,{"$f":"HYPERLINK(\"#'Index'!A1\",\"Return to Index\")","v":"Return to Index"}]
[{"$f":"'Insurer Information'!C7","v":"Enter Company Name"}]
[{"$f":" TEXT('Insurer Information'!C3,\"D MMMM YYYY\")","v":"31 December 2023"},null,null,null,"(1)",null,"(2)",null,"(3)"]
[]
[]
[null,null,"OTHER INSURANCE RISK","STATEMENT SOURCE","BERMUDA ADJUSTED RESERVE",null,"CAPITAL FACTOR",null,"CAPITAL REQUIREMENT"]
[null,null,"(covering insurance risks such as policyholder behaviour, expenses, and product guarantees)"]
[null,null,null,null,null,null,null,null,"Max [0, (1) x (2)]"]
[null,null,"Line of Business"]
[null,null,"Mortality (term insurance, whole life, universal life)","Schedule VII EBS, Line 1, Column (7)",{"$f":"'Schedule VII (EBS)'!F10","v":0},null,0.02,null,{"$f":"MAX(0,E10*G10)","v":0}]
[null,null,"Critical Illness (including accelerated critical illness products)","Schedule VII EBS, Line 2, Column (7)",{"$f":"'Schedule VII (EBS)'!F11","v":0},null,0.02,null,0]
[null,null,"Longevity (immediate pay-out annuities, contingent annuities, pension pay-outs)","Schedule VII EBS, Line 3(f), Column (7)",{"$f":"+'Schedule VII (EBS)'!F19","v":0},null,5.0000000000000001E-3,null,0]
[null,null,"Longevity (deferred pay-out annuities, future contingent annuities, future pension pay-outs) ","Schedule VII EBS, Line 4(g), Column (7)",{"$f":"+'Schedule VII (EBS)'!F28","v":0},null,5.0000000000000001E-3,null,0]
[null,null,"Annuities certain only","Schedule VII EBS, Line 5, Column (7)",{"$f":"+'Schedule VII (EBS)'!F29","v":0},null,5.0000000000000001E-3,null,0]
[null,null,"Deferred accumulation annuities","Schedule VII EBS, Line 6, Column (7)",{"$f":"+'Schedule VII (EBS)'!F30","v":0},null,5.0000000000000001E-3,null,0]
[null,null,"Disability Income: active lives - including waiver of premium and long-term care","Schedule VII EBS, Line 7(d), Column (7)",{"$f":"'Schedule VII (EBS)'!F36","v":0},null,0.02,null,{"$f":"MAX(0,E16*G16)","v":0}]
[null,null,"Disability Income: active lives - other accident and sickness","Schedule VII EBS, Line 8, Column (7)",{"$f":"'Schedule VII (EBS)'!F37","v":0},null,0.02,null,0]
[null,null,"Disability Income: claims in payment - including waiver of premium and long-term care","Schedule VII EBS, Line 9, Column (7)",{"$f":"'Schedule VII (EBS)'!F38","v":0},null,5.0000000000000001E-3,null,0]
[null,null,"Disability Income: claims in payment - other accident and sickness","Schedule VII EBS, Line 10, Column (7)",{"$f":"'Schedule VII (EBS)'!F39","v":0},null,5.0000000000000001E-3,null,0]
[null,null,"Group Life","Schedule VII EBS, Line 11, Column (7)",{"$f":"'Schedule VII (EBS)'!F40","v":0},null,5.0000000000000001E-3,null,0]
[null,null,"Group Disability","Schedule VII EBS, Line 12, Column (7)",{"$f":"'Schedule VII (EBS)'!F41","v":0},null,5.0000000000000001E-3,null,0]
[null,null,"Group Health","Schedule VII EBS, Line 13, Column (7)",{"$f":"'Schedule VII (EBS)'!F42","v":0},null,5.0000000000000001E-3,null,0]
[null,null,"Stop Loss arrangements","Schedule VII EBS, Line 14, Column (7)",{"$f":"'Schedule VII (EBS)'!F43","v":0},null,0.02,null,0]
[null,null,"Riders (all other products not included above)","Schedule VII EBS, Line 15, Column (7)",{"$f":"'Schedule VII (EBS)'!F44","v":0},null,0.02,null,0]
[]
[]
[null,null,"TOTAL OTHER INSURANCE RISK",null,{"$f":"SUM(E10:E24)","v":0},null,null,null,{"$f":"MAX(0,SUM(I10:I24))","v":0}]

{"sheet":"LT Variable Annuity Gte Risk","index":108,"n_rows":76,"n_cols":27,"rows_kept":76,"cut":false,"hidden":false,"merged":[[65,7,65,16],[6,26,8,26],[7,4,7,5],[7,7,7,8],[7,10,7,11],[6,3,6,4],[6,22,8,22],[6,24,8,24],[7,13,7,14],[7,16,7,17],[7,19,7,20]]}
["LONG-TERM VARIABLE ANNUITY GUARANTEE RISK",null,null,null,null,null,null,null,null,null,null,null,null,null,null,null,null,null,null,null,null,null,{"$f":"HYPERLINK(\"#'Index'!A1\",\"Return to Index\")","v":"Return to Index"}]
[{"$f":"'Insurer Information'!C7","v":"Enter Company Name"}]
[{"$f":"\"Long-Term Business Variable Annuity Guarantee Risk\"& \" ($\" & IF(CONFIGURATION!$B$12>1,\"'\"&MID(CONFIGURATION!$B$12,2,LEN(CONFIGURATION!$B$12)),\"\") & \")\"","v":"Long-Term Business Variable Annuity Guarantee Risk ($'000)"},null,null,null,null,null,null,null,null,null,null,{"$f":" TEXT('Insurer Information'!C3,\"D MMMM YYYY\")","v":"31 December 2023"}]
[]
[null,null,null,null,"(1)","(2)",null,"(3)","(4)",null,"(5)","(6)",null,"(7)","(8)",null,"(9)","(10)",null,"(11)","(12)",null,"(13)",null,"(13)",null,"(14)"]
[]
[null,null,null,null,null,null,null,null,null,null,null,null,null,null,null,null,null,null,null,null,null,null,"CAPITAL REQUIREMENTS",null,"BERMUDA STATUTORY RESERVES",null,"CAPITAL REQUIREMENT"]
[null,null,null,null,"Volatility (0% - 10.0%]",null,null,"Volatility (10.0% - 15.0%]",null,null,"Volatility >15.0%",null,null,"Volatility (0% - 10.0%]",null,null,"Volatility (10.0% - 15.0%]",null,null,"Volatility >15.0%"]
[null,null,null,null,"Guaranteed Value","Capital Factor",null,"Guaranteed Value","Capital Factor",null,"Guaranteed Value","Capital Factor",null,"Net Value at Risk","Capital Factor",null,"Net Value at Risk","Capital Factor",null,"Net Value at Risk","Capital Factor"]
[]
[null,null,null,"Variable Annuity Guarantee Risk",null,null,null,null,null,null,null,null,null,null," ",null,null,null,null,null,null,null,"Max [{(1) x (2) + (3) x (4) + (5) x (6)},(7) x (8) + (9) x (10) + (11) x (12)]",null,null,null,"(13) - (12)"]
[]
[null,null,null,"Guaranteed Minimum Death Benefit: Return of Premium, Ratchet and Reset "]
[null,1,null,null,{"$f":"'Schedule VIII (EBS)'!H13","v":0},2.5000000000000001E-3,null,{"$f":"'Schedule VIII (EBS)'!J13","v":0},5.0000000000000001E-3,null,{"$f":"'Schedule VIII (EBS)'!L13","v":0},7.4999999999999997E-3,null,{"$f":"'Schedule VIII (EBS)'!N13","v":0},0.04,null,{"$f":"+'Schedule VIII (EBS)'!P13","v":0},8.5000000000000006E-2,null,{"$f":"+'Schedule VIII (EBS)'!R13","v":0},0.13,null,{"$f":"IF(ISERROR(OR(E14*F14+H14*I14+K14*L14,N14*O14+Q14*R14+T14*U14)),0,MAX(E14*F14+H14*I14+K14*L14,N14*O14+Q14*R14+T14*U14))","v":0},null,{"$f":"'Schedule VIII (EBS)'!F13","v":0},null,{"$f":"MAX(0,W14-Y14)","v":0}]
[null,16,null,null,{"$f":"+'Schedule VIII (EBS)'!H31","v":0},2.5000000000000001E-3,null,{"$f":"'Schedule VIII (EBS)'!J31","v":0},5.0000000000000001E-3,null,{"$f":"'Schedule VIII (EBS)'!L31","v":0},7.4999999999999997E-3,null,null,null,null,null,null,null,null,null,null,{"$f":"IF(ISERROR(OR(E15*F15+H15*I15+K15*L15,N15*O15+Q15*R15+T15*U15)),0,MAX(E15*F15+H15*I15+K15*L15,N15*O15+Q15*R15+T15*U15))","v":0},null,{"$f":"'Schedule VIII (EBS)'!F14","v":0},null,{"$f":"MAX(0,W15-Y15)","v":0}]
[]
[null,null,null,"Guaranteed Minimum Death Benefit: Enhanced Benefits (Roll up) "]
[null,2,null,null,{"$f":"'Schedule VIII (EBS)'!H14","v":0},7.4999999999999997E-3,null,{"$f":"'Schedule VIII (EBS)'!J14","v":0},0.01,null,{"$f":"'Schedule VIII (EBS)'!L14","v":0},1.2500000000000001E-2,null,{"$f":"'Schedule VIII (EBS)'!N14","v":0},0.12,null,{"$f":"+'Schedule VIII (EBS)'!P14","v":0},0.16500000000000001,null,{"$f":"+'Schedule VIII (EBS)'!R14","v":0},0.21,null,{"$f":"IF(ISERROR(OR(E18*F18+H18*I18+K18*L18,N18*O18+Q18*R18+T18*U18)),0,MAX(E18*F18+H18*I18+K18*L18,N18*O18+Q18*R18+T18*U18))","v":0},null,{"$f":"'Schedule VIII (EBS)'!F14","v":0},null,{"$f":"MAX(0,W18-Y18)","v":0}]
[null,17,null,null,{"$f":"+'Schedule VIII (EBS)'!H32","v":0},7.4999999999999997E-3,null,{"$f":"'Schedule VIII (EBS)'!J32","v":0},0.01,null,{"$f":"'Schedule VIII (EBS)'!L32","v":0},1.2500000000000001E-2,null,null,null,null,null,null,null,null,null,null,{"$f":"IF(ISERROR(OR(E19*F19+H19*I19+K19*L19,N19*O19+Q19*R19+T19*U19)),0,MAX(E19*F19+H19*I19+K19*L19,N19*O19+Q19*R19+T19*U19))","v":0},null,{"$f":"'Schedule VIII (EBS)'!F15","v":0},null,{"$f":"MAX(0,W19-Y19)","v":0}]
[]
[null,null,null,"Guaranteed Minimum Income Benefit (GMIB)"]
[null,3,null,null,{"$f":"'Schedule VIII (EBS)'!H15","v":0},0.05,null,{"$f":"'Schedule VIII (EBS)'!J15","v":0},6.5000000000000002E-2,null,{"$f":"'Schedule VIII (EBS)'!L15","v":0},0.08,null,{"$f":"'Schedule VIII (EBS)'!N15","v":0},1,null,{"$f":"+'Schedule VIII (EBS)'!P15","v":0},1.3,null,{"$f":"+'Schedule VIII (EBS)'!R15","v":0},1.6,null,{"$f":"IF(ISERROR(OR(E22*F22+H22*I22+K22*L22,N22*O22+Q22*R22+T22*U22)),0,MAX(E22*F22+H22*I22+K22*L22,N22*O22+Q22*R22+T22*U22))","v":0},null,{"$f":"'Schedule VIII (EBS)'!F15","v":0},null,{"$f":"MAX(0,W22-Y22)","v":0}]
[null,18,null,null,{"$f":"'Schedule VIII (EBS)'!H33","v":0},0.05,null,{"$f":"'Schedule VIII (EBS)'!J33","v":0},6.5000000000000002E-2,null,{"$f":"'Schedule VIII (EBS)'!L33","v":0},0.08,null,null,null,null,null,null,null,null,null,null,{"$f":"IF(ISERROR(OR(E23*F23+H23*I23+K23*L23,N23*O23+Q23*R23+T23*U23)),0,MAX(E23*F23+H23*I23+K23*L23,N23*O23+Q23*R23+T23*U23))","v":0},null,{"$f":"'Schedule VIII (EBS)'!F16","v":0},null,{"$f":"MAX(0,W23-Y23)","v":0}]
[]
[null,null,null,"Guaranteed Minimum Withdrawal Benefit (GMWB)"]
[null,4,null,null,{"$f":"'Schedule VIII (EBS)'!H16","v":0},3.2500000000000001E-2,null,{"$f":"'Schedule VIII (EBS)'!J16","v":0},4.2500000000000003E-2,null,{"$f":"'Schedule VIII (EBS)'!L16","v":0},0.05,null,{"$f":"'Schedule VIII (EBS)'!N16","v":0},0.6,null,{"$f":"+'Schedule VIII (EBS)'!P16","v":0},0.75,null,{"$f":"+'Schedule VIII (EBS)'!R16","v":0},0.9,null,{"$f":"IF(ISERROR(OR(E26*F26+H26*I26+K26*L26,N26*O26+Q26*R26+T26*U26)),0,MAX(E26*F26+H26*I26+K26*L26,N26*O26+Q26*R26+T26*U26))","v":0},null,{"$f":"'Schedule VIII (EBS)'!F16","v":0},null,{"$f":"MAX(0,W26-Y26)","v":0}]
[null,19,null,null,{"$f":"'Schedule VIII (EBS)'!H34","v":0},3.2500000000000001E-2,null,{"$f":"'Schedule VIII (EBS)'!J34","v":0},4.2500000000000003E-2,null,{"$f":"'Schedule VIII (EBS)'!L34","v":0},0.05,null,null,null,null,null,null,null,null,null,null,{"$f":"IF(ISERROR(OR(E27*F27+H27*I27+K27*L27,N27*O27+Q27*R27+T27*U27)),0,MAX(E27*F27+H27*I27+K27*L27,N27*O27+Q27*R27+T27*U27))","v":0},null,{"$f":"'Schedule VIII (EBS)'!F17","v":0},null,{"$f":"MAX(0,W27-Y27)","v":0}]
[]
[null,null,null,"Guaranteed Enhanced Earnings Benefit (GEEB)"]
[null,5,null,null,{"$f":"'Schedule VIII (EBS)'!H17","v":0},0,null,{"$f":"'Schedule VIII (EBS)'!J17","v":0},5.0000000000000001E-3,null,{"$f":"'Schedule VIII (EBS)'!L17","v":0},0.01,null,{"$f":"'Schedule VIII (EBS)'!N17","v":0},0.01,null,{"$f":"+'Schedule VIII (EBS)'!P17","v":0},0.09,null,{"$f":"+'Schedule VIII (EBS)'!R17","v":0},0.17,null,{"$f":"IF(ISERROR(OR(E30*F30+H30*I30+K30*L30,N30*O30+Q30*R30+T30*U30)),0,MAX(E30*F30+H30*I30+K30*L30,N30*O30+Q30*R30+T30*U30))","v":0},null,{"$f":"'Schedule VIII (EBS)'!F17","v":0},null,{"$f":"MAX(0,W30-Y30)","v":0}]
[null,20,null,null,{"$f":"'Schedule VIII (EBS)'!H35","v":0},0,null,{"$f":"'Schedule VIII (EBS)'!J35","v":0},5.0000000000000001E-3,null,{"$f":"'Schedule VIII (EBS)'!L35","v":0},0.01,null,null,null,null,null,null,null,null,null,null,{"$f":"IF(ISERROR(OR(E31*F31+H31*I31+K31*L31,N31*O31+Q31*R31+T31*U31)),0,MAX(E31*F31+H31*I31+K31*L31,N31*O31+Q31*R31+T31*U31))","v":0},null,{"$f":"'Schedule VIII (EBS)'!F18","v":0},null,{"$f":"MAX(0,W31-Y31)","v":0}]
[]
[null,null,null,"Guaranteed Minimum Accumulation Benefit (GMAB): "]
[null,6,null,"0-1",{"$f":"+'Schedule VIII (EBS)'!H19","v":0},3.2000000000000001E-2,null,{"$f":"+'Schedule VIII (EBS)'!J19","v":0},0.05,null,{"$f":"+'Schedule VIII (EBS)'!L19","v":0},0.09,null,{"$f":"+'Schedule VIII (EBS)'!N19","v":0},0.9,null,{"$f":"+'Schedule VIII (EBS)'!P19","v":0},1.3,null,{"$f":"+'Schedule VIII (EBS)'!R19","v":0},2.5,null,{"$f":"IF(ISERROR(OR(E34*F34+H34*I34+K34*L34,N34*O34+Q34*R34+T34*U34)),0,MAX(E34*F34+H34*I34+K34*L34,N34*O34+Q34*R34+T34*U34))","v":0},null,{"$f":"+'Schedule VIII (EBS)'!F19","v":0},null,{"$f":"MAX(0,W34-Y34)","v":0}]
[null,7,null,"1-2",{"$f":"+'Schedule VIII (EBS)'!H20","v":0},0.03,null,{"$f":"+'Schedule VIII (EBS)'!J20","v":0},0.05,null,{"$f":"+'Schedule VIII (EBS)'!L20","v":0},8.8999999999999996E-2,null,{"$f":"+'Schedule VIII (EBS)'!N20","v":0},0.8,null,{"$f":"+'Schedule VIII (EBS)'!P20","v":0},1.1499999999999999,null,{"$f":"+'Schedule VIII (EBS)'!R20","v":0},2,null,0,null,{"$f":"+'Schedule VIII (EBS)'!F20","v":0},null,0]
[null,8,null,"2-3",{"$f":"+'Schedule VIII (EBS)'!H21","v":0},0.03,null,{"$f":"+'Schedule VIII (EBS)'!J21","v":0},0.05,null,{"$f":"+'Schedule VIII (EBS)'!L21","v":0},8.8999999999999996E-2,null,{"$f":"+'Schedule VIII (EBS)'!N21","v":0},0.7,null,{"$f":"+'Schedule VIII (EBS)'!P21","v":0},1.05,null,{"$f":"+'Schedule VIII (EBS)'!R21","v":0},1.6,null,0,null,{"$f":"+'Schedule VIII (EBS)'!F21","v":0},null,0]
[null,9,null,"3-4",{"$f":"+'Schedule VIII (EBS)'!H22","v":0},2.8000000000000001E-2,null,{"$f":"+'Schedule VIII (EBS)'!J22","v":0},0.05,null,{"$f":"+'Schedule VIII (EBS)'!L22","v":0},8.7999999999999995E-2,null,{"$f":"+'Schedule VIII (EBS)'!N22","v":0},0.6,null,{"$f":"+'Schedule VIII (EBS)'!P22","v":0},0.95,null,{"$f":"+'Schedule VIII (EBS)'!R22","v":0},1.35,null,0,null,{"$f":"+'Schedule VIII (EBS)'!F22","v":0},null,0]
[null,10,null,"4-5",{"$f":"+'Schedule VIII (EBS)'!H23","v":0},2.4E-2,null,{"$f":"+'Schedule VIII (EBS)'!J23","v":0},4.2999999999999997E-2,null,{"$f":"+'Schedule VIII (EBS)'!L23","v":0},0.08,null,{"$f":"+'Schedule VIII (EBS)'!N23","v":0},0.55000000000000004,null,{"$f":"+'Schedule VIII (EBS)'!P23","v":0},0.85,null,{"$f":"+'Schedule VIII (EBS)'!R23","v":0},1.1499999999999999,null,0,null,{"$f":"+'Schedule VIII (EBS)'!F23","v":0},null,0]
[null,11,null,"5-6",{"$f":"+'Schedule VIII (EBS)'!H24","v":0},0.02,null,{"$f":"+'Schedule VIII (EBS)'!J24","v":0},3.5000000000000003E-2,null,{"$f":"+'Schedule VIII (EBS)'!L24","v":0},6.8000000000000005E-2,null,{"$f":"+'Schedule VIII (EBS)'!N24","v":0},0.5,null,{"$f":"+'Schedule VIII (EBS)'!P24","v":0},0.75,null,{"$f":"+'Schedule VIII (EBS)'!R24","v":0},1,null,0,null,{"$f":"+'Schedule VIII (EBS)'!F24","v":0},null,0]
[null,12,null,"6-7",{"$f":"+'Schedule VIII (EBS)'!H25","v":0},1.7000000000000001E-2,null,{"$f":"+'Schedule VIII (EBS)'!J25","v":0},2.8000000000000001E-2,null,{"$f":"+'Schedule VIII (EBS)'!L25","v":0},5.8999999999999997E-2,null,{"$f":"+'Schedule VIII (EBS)'!N25","v":0},0.45,null,{"$f":"+'Schedule VIII (EBS)'!P25","v":0},0.65,null,{"$f":"+'Schedule VIII (EBS)'!R25","v":0},0.9,null,0,null,{"$f":"+'Schedule VIII (EBS)'!F25","v":0},null,0]
[null,13,null,"7-8",{"$f":"+'Schedule VIII (EBS)'!H26","v":0},1.4E-2,null,{"$f":"+'Schedule VIII (EBS)'!J26","v":0},2.1000000000000001E-2,null,{"$f":"+'Schedule VIII (EBS)'!L26","v":0},4.9000000000000002E-2,null,{"$f":"+'Schedule VIII (EBS)'!N26","v":0},0.4,null,{"$f":"+'Schedule VIII (EBS)'!P26","v":0},0.55000000000000004,null,{"$f":"+'Schedule VIII (EBS)'!R26","v":0},0.8,null,0,null,{"$f":"+'Schedule VIII (EBS)'!F26","v":0},null,0]
[null,14,null,"8-9",{"$f":"+'Schedule VIII (EBS)'!H27","v":0},1.0999999999999999E-2,null,{"$f":"+'Schedule VIII (EBS)'!J27","v":0},1.7000000000000001E-2,null,{"$f":"+'Schedule VIII (EBS)'!L27","v":0},4.2999999999999997E-2,null,{"$f":"+'Schedule VIII (EBS)'!N27","v":0},0.35,null,{"$f":"+'Schedule VIII (EBS)'!P27","v":0},0.5,null,{"$f":"+'Schedule VIII (EBS)'!R27","v":0},0.7,null,0,null,{"$f":"+'Schedule VIII (EBS)'!F27","v":0},null,0]
[null,15,null,">9",{"$f":"+'Schedule VIII (EBS)'!H28","v":0},0.01,null,{"$f":"+'Schedule VIII (EBS)'!J28","v":0},1.4E-2,null,{"$f":"+'Schedule VIII (EBS)'!L28","v":0},3.9E-2,null,{"$f":"+'Schedule VIII (EBS)'!N28","v":0},0.3,null,{"$f":"+'Schedule VIII (EBS)'!P28","v":0},0.45,null,{"$f":"+'Schedule VIII (EBS)'!R28","v":0},0.6,null,0,null,{"$f":"+'Schedule VIII (EBS)'!F28","v":0},null,0]
[]
[null,21,null,"0-1",{"$f":"+'Schedule VIII (EBS)'!H37","v":0},3.2000000000000001E-2,null,{"$f":"+'Schedule VIII (EBS)'!J37","v":0},0.05,null,{"$f":"+'Schedule VIII (EBS)'!L37","v":0},0.09,null,null,null,null,null,null,null,null,null,null,{"$f":"IF(ISERROR(OR(E45*F45+H45*I45+K45*L45,N45*O45+Q45*R45+T45*U45)),0,MAX(E45*F45+H45*I45+K45*L45,N45*O45+Q45*R45+T45*U45))","v":0},null,{"$f":"+'Schedule VIII (EBS)'!F30","v":0},null,{"$f":"MAX(0,W45-Y45)","v":0}]
[null,22,null,"1-2",{"$f":"+'Schedule VIII (EBS)'!H38","v":0},0.03,null,{"$f":"+'Schedule VIII (EBS)'!J38","v":0},0.05,null,{"$f":"+'Schedule VIII (EBS)'!L38","v":0},8.8999999999999996E-2,null,null,null,null,null,null,null,null,null,null,0,null,{"$f":"+'Schedule VIII (EBS)'!F31","v":0},null,0]
[null,23,null,"2-3",{"$f":"+'Schedule VIII (EBS)'!H39","v":0},0.03,null,{"$f":"+'Schedule VIII (EBS)'!J39","v":0},0.05,null,{"$f":"+'Schedule VIII (EBS)'!L39","v":0},8.8999999999999996E-2,null,null,null,null,null,null,null,null,null,null,0,null,{"$f":"+'Schedule VIII (EBS)'!F32","v":0},null,0]
[null,24,null,"3-4",{"$f":"+'Schedule VIII (EBS)'!H40","v":0},2.8000000000000001E-2,null,{"$f":"+'Schedule VIII (EBS)'!J40","v":0},0.05,null,{"$f":"+'Schedule VIII (EBS)'!L40","v":0},8.7999999999999995E-2,null,null,null,null,null,null,null,null,null,null,0,null,{"$f":"+'Schedule VIII (EBS)'!F33","v":0},null,0]
[null,25,null,"4-5",{"$f":"+'Schedule VIII (EBS)'!H41","v":0},2.4E-2,null,{"$f":"+'Schedule VIII (EBS)'!J41","v":0},4.2999999999999997E-2,null,{"$f":"+'Schedule VIII (EBS)'!L41","v":0},0.08,null,null,null,null,null,null,null,null,null,null,0,null,{"$f":"+'Schedule VIII (EBS)'!F34","v":0},null,0]
[null,26,null,"5-6",{"$f":"+'Schedule VIII (EBS)'!H42","v":0},0.02,null,{"$f":"+'Schedule VIII (EBS)'!J42","v":0},3.5000000000000003E-2,null,{"$f":"+'Schedule VIII (EBS)'!L42","v":0},6.8000000000000005E-2,null,null,null,null,null,null,null,null,null,null,0,null,{"$f":"+'Schedule VIII (EBS)'!F35","v":0},null,0]
[null,27,null,"6-7",{"$f":"+'Schedule VIII (EBS)'!H43","v":0},1.7000000000000001E-2,null,{"$f":"+'Schedule VIII (EBS)'!J43","v":0},2.8000000000000001E-2,null,{"$f":"+'Schedule VIII (EBS)'!L43","v":0},5.8999999999999997E-2,null,null,null,null,null,null,null,null,null,null,0,null,{"$f":"+'Schedule VIII (EBS)'!F36","v":0},null,0]
[null,28,null,"7-8",{"$f":"+'Schedule VIII (EBS)'!H44","v":0},1.4E-2,null,{"$f":"+'Schedule VIII (EBS)'!J44","v":0},2.1000000000000001E-2,null,{"$f":"+'Schedule VIII (EBS)'!L44","v":0},4.9000000000000002E-2,null,null,null,null,null,null,null,null,null,null,0,null,{"$f":"+'Schedule VIII (EBS)'!F37","v":0},null,0]
[null,29,null,"8-9",{"$f":"+'Schedule VIII (EBS)'!H45","v":0},1.0999999999999999E-2,null,{"$f":"+'Schedule VIII (EBS)'!J45","v":0},1.7000000000000001E-2,null,{"$f":"+'Schedule VIII (EBS)'!L45","v":0},4.2999999999999997E-2,null,null,null,null,null,null,null,null,null,null,0,null,{"$f":"+'Schedule VIII (EBS)'!F38","v":0},null,0]
[null,30,null,">9",{"$f":"+'Schedule VIII (EBS)'!H46","v":0},0.01,null,{"$f":"+'Schedule VIII (EBS)'!J46","v":0},1.4E-2,null,{"$f":"+'Schedule VIII (EBS)'!L46","v":0},3.9E-2,null,null,null,null,null,null,null,null,null,null,0,null,{"$f":"+'Schedule VIII (EBS)'!F39","v":0},null,0]
[]
[null,null,null,"Reduction:"]
[null,31,null,"Percentage of Guaranteed Minimum Death Benefit with Multiple Guarantees",null,null,null,null,null,null,null,null,null,null,null,null,null,null,null,null,null,{"$f":"+'Schedule VIII (EBS)'!L50","v":0},{"$f":"IF(V57=0,0,(W14+W15+W18+W19)*(-V57))","v":0}]
[null,32,null,"Total BSCR Adjusted Reserves for Variable Annuities",null,null,null,null,null,null,null,null,null,null,null,null,null,null,null,null,null,null,{"$f":"-'Schedule VII (EBS)'!F47","v":0}]
[]
[null,33,null,"TOTAL - VARIABLE ANNUITY GUARANTEE RISK",null,null,null,null,null,null,null,null,null,null,null,null,null,null,null,null,null,null,{"$f":"MAX(0,SUM(W14:W58))","v":0},null,{"$f":"MAX(0,SUM(Y14:Y58))","v":0},null,{"$f":"MAX(0,SUM(AA14:AA58))","v":0}]
[]
[null,null,null,"Notes"]
[null,null,null,"1.  Factors should be applied to Net Amount at Risk (NAR) defined as:"]
[null,null,null,null,"GMAB",null,null,"Total claim payable if all contracts mature immediately"]
[null,null,null,null,"GMDB",null,null,"Total claim amount payable upon immediate death of all policyholders"]
[null,null,null,null,"GMIB",null,null,"Total claim payable upon full and immediate annuitisation of all policies using an 80% factor applied to the Guaranteed Value (the 80% represents the ratio between current market annuitisation factors and the guaranteed annuitisation factors)"]
[null,null,null,null,"GMWB",null,null,"Total claim payable if 100% of the guaranteed withdrawal benefit base in excess of the current account value is withdrawn immediately"]
[null,null,null,null,"GEEB",null,null,"Total guaranteed enhanced payments upon immediate death of all policyholders"]
[]
[null,null,null,"2.  Where ratchets, resets and roll-ups exist, please use the roll-up category."]
[]
[null,null,null,"3.  NAR is net of reinsurance."]
[]
[null,null,null,"4.  The proportion used for the account value under reinsurance is the proportion used for NAR."]
[]
[null,null,null,"5.  Need minimium amount when Guaranteed Value (GV) < Account Value (AV), the minimum floor factor is applied to AV."]

{"sheet":"Company Specific Parameters","index":109,"n_rows":553,"n_cols":9,"rows_kept":553,"cut":false,"hidden":false,"merged":[[0,0,0,6],[441,6,442,6],[372,1,372,4],[391,1,391,4],[392,2,393,3],[353,2,355,3],[343,3,343,4],[344,3,344,4],[351,3,351,4],[441,7,442,7],[2,5,3,8],[5,1,5,8],[331,3,331,4],[332,3,332,4],[420,1,421,1],[441,2,442,2],[441,8,442,8],[337,3,337,4],[338,3,338,4],[412,3,412,4],[441,3,442,3],[441,4,442,4],[373,2,374,3],[2,0,2,2],[441,5,442,5]]}
["COMPANY-SPECIFIC PARAMETERS",null,null,null,null,null,null,null,{"$f":"HYPERLINK(\"#'Index'!A1\",\"Return to Index\")","v":"Return to Index"}]
[]
[{"$f":"+'Insurer Information'!C7","v":"Enter Company Name"},null,null,null,null,{"$f":"HYPERLINK(\"#'Attachments'!A184\",\"Details of User Capital Factor to be included in the attachments section 9.\")","v":"Details of User Capital Factor to be included in the attachments section 9."}]
["For the Year Ending ",null,{"$f":" TEXT('Insurer Information'!C3,\"D MMMM YYYY\")","v":"31 December 2023"}]
[]
[null,"To be completed only with prior approval from the Bermuda Monetary Authority"]
[]
[null,null,null,null,"STANDARD","STANDARD",null,"USER","USER"]
[null,"TYPE OF ",null,"ASSET","CAPITAL","REQUIRED",null,"CAPITAL","REQUIRED"]
[null,"FIXED INCOME INVESTMENTS","STATEMENT SOURCE","VALUE","FACTOR","CAPITAL",null,"FACTOR","CAPITAL"]
[]
[null,"(a)  Corporate & Sovereign Bonds",null,"(1) ","(2)","(1) x (2)",null,"(3)","(1) x (3)"]
[]
[null,"BSCR Rating"]
[null,0,"Sch II EBS, Line (1), Column 1 & Sch IIA EBS, Line (1), Column 1",{"$f":"+'Schedule II (EBS)'!D12+'Schedule IIA (EBS)'!D12","v":0},{"$f":"+'Fixed Income Investments'!E12","v":0},{"$f":"IF(D15<0,0,D15*E15)","v":0},null,null,{"$f":"MAX(0,IF(H15=\"\",E15*D15,D15*H15))","v":0}]
[null,1,"Sch II EBS, Line (2), Column 1 & Sch IIA EBS, Line (2), Column 1",{"$f":"+'Schedule II (EBS)'!D13+'Schedule IIA (EBS)'!D13","v":0},{"$f":"+'Fixed Income Investments'!E13","v":4.0000000000000001E-3},{"$f":"IF(D16<0,0,D16*E16)","v":0},null,null,{"$f":"MAX(0,IF(H16=\"\",E16*D16,D16*H16))","v":0}]
[null,2,"Sch II EBS, Line (3), Column 1 & Sch IIA EBS, Line (3), Column 1",{"$f":"+'Schedule II (EBS)'!D14+'Schedule IIA (EBS)'!D14","v":0},{"$f":"+'Fixed Income Investments'!E14","v":8.0000000000000002E-3},0,null,null,0]
[null,3,"Sch II EBS, Line (4), Column 1 & Sch IIA EBS, Line (4), Column 1",{"$f":"+'Schedule II (EBS)'!D15+'Schedule IIA (EBS)'!D15","v":0},{"$f":"+'Fixed Income Investments'!E15","v":1.4999999999999999E-2},0,null,null,0]
[null,4,"Sch II EBS, Line (5), Column 1 & Sch IIA EBS, Line (5), Column 1",{"$f":"+'Schedule II (EBS)'!D16+'Schedule IIA (EBS)'!D16","v":0},{"$f":"+'Fixed Income Investments'!E16","v":0.03},0,null,null,0]
[null,5,"Sch II EBS, Line (6), Column 1 & Sch IIA EBS, Line (6), Column 1",{"$f":"+'Schedule II (EBS)'!D17+'Schedule IIA (EBS)'!D17","v":0},{"$f":"+'Fixed Income Investments'!E17","v":0.08},0,null,null,0]
[null,6,"Sch II EBS, Line (7), Column 1 & Sch IIA EBS, Line (7), Column 1",{"$f":"+'Schedule II (EBS)'!D18+'Schedule IIA (EBS)'!D18","v":0},{"$f":"+'Fixed Income Investments'!E18","v":0.15},0,null,null,0]
[null,7,"Sch II EBS, Line (8), Column 1 & Sch IIA EBS, Line (8), Column 1",{"$f":"+'Schedule II (EBS)'!D19+'Schedule IIA (EBS)'!D19","v":0},{"$f":"+'Fixed Income Investments'!E19","v":0.26300000000000001},{"$f":"IF(D22<0,0,D22*E22)","v":0},null,null,0]
[null,8,"Sch II EBS, Line (9), Column 1 & Sch IIA EBS, Line (9), Column 1",{"$f":"+'Schedule II (EBS)'!D20+'Schedule IIA (EBS)'!D20","v":0},{"$f":"+'Fixed Income Investments'!E20","v":0.35},{"$f":"IF(D23<0,0,D23*E23)","v":0},null,null,0]
[]
[null,"(a)  SUBTOTAL -  CORPORATE BONDS",null,{"$f":"SUM(D15:D23)","v":0},null,{"$f":"IF(SUM(F15:F23)>=0,SUM(F15:F23),0)","v":0},null,null,{"$f":"IF(SUM(I15:I23)>=0,SUM(I15:I23),0)","v":0}]
[]
[null,"(b) Residential Mortgage-Backed Securities",null,"(1) ","(2)","(1) x (2)",null,"(3)","(1) x (3)"]
[]
[null,"BSCR Rating"]
[null,1,"Sch II EBS, Line (2), Column 3 & Sch IIA EBS, Line (2), Column 3",{"$f":"+'Schedule II (EBS)'!H13+'Schedule IIA (EBS)'!H13","v":0},{"$f":"+'Fixed Income Investments'!E27","v":6.0000000000000001E-3},{"$f":"IF(D30<0,0,D30*E30)","v":0},null,null,{"$f":"MAX(0,IF(H30=\"\",E30*D30,D30*H30))","v":0}]
[null,2,"Sch II EBS, Line (3), Column 3 & Sch IIA EBS, Line (3), Column 3",{"$f":"+'Schedule II (EBS)'!H14+'Schedule IIA (EBS)'!H14","v":0},{"$f":"+'Fixed Income Investments'!E28","v":1.2E-2},0,null,null,0]
[null,3,"Sch II EBS, Line (4), Column 3 & Sch IIA EBS, Line (4), Column 3",{"$f":"+'Schedule II (EBS)'!H15+'Schedule IIA (EBS)'!H15","v":0},{"$f":"+'Fixed Income Investments'!E29","v":0.02},0,null,null,0]
[null,4,"Sch II EBS, Line (5), Column 3 & Sch IIA EBS, Line (5), Column 3",{"$f":"+'Schedule II (EBS)'!H16+'Schedule IIA (EBS)'!H16","v":0},{"$f":"+'Fixed Income Investments'!E30","v":0.04},0,null,null,0]
[null,5,"Sch II EBS, Line (6), Column 3 & Sch IIA EBS, Line (6), Column 3",{"$f":"+'Schedule II (EBS)'!H17+'Schedule IIA (EBS)'!H17","v":0},{"$f":"+'Fixed Income Investments'!E31","v":0.11},0,null,null,0]
[null,6,"Sch II EBS, Line (7), Column 3 & Sch IIA EBS, Line (7), Column 3",{"$f":"+'Schedule II (EBS)'!H18+'Schedule IIA (EBS)'!H18","v":0},{"$f":"+'Fixed Income Investments'!E32","v":0.25},0,null,null,0]
[null,7,"Sch II EBS, Line (8), Column 3 & Sch IIA EBS, Line (8), Column 3",{"$f":"+'Schedule II (EBS)'!H19+'Schedule IIA (EBS)'!H19","v":0},{"$f":"+'Fixed Income Investments'!E33","v":0.35},{"$f":"IF(D36<0,0,D36*E36)","v":0},null,null,0]
[null,8,"Sch II EBS, Line (9), Column 3 & Sch IIA EBS, Line (9), Column 3",{"$f":"+'Schedule II (EBS)'!H20+'Schedule IIA (EBS)'!H20","v":0},{"$f":"+'Fixed Income Investments'!E34","v":0.35},{"$f":"IF(D37<0,0,D37*E37)","v":0},null,null,0]
[]
[null,"(b)  SUBTOTAL - RESIDENTIAL MORTGAGE-BACKED SECURITIES",null,{"$f":"SUM(D30:D37)","v":0},null,{"$f":"IF(SUM(F30:F37)>=0,SUM(F30:F37),0)","v":0},null,null,{"$f":"IF(SUM(I30:I37)>=0,SUM(I30:I37),0)","v":0}]
[]
[null,"(c) Commercial Mortgage-Backed Securities / Asset Backed Securities",null,"(1) ","(2)","(1) x (2)",null,"(3)","(1) x (3)"]
[]
[null,"BSCR Rating"]
[null,1,"Sch II EBS, Line (2), Column 5 & Sch IIA EBS, Line (2), Column 5",{"$f":"+'Schedule II (EBS)'!L13+'Schedule IIA (EBS)'!L13","v":0},{"$f":"+'Fixed Income Investments'!E41","v":5.0000000000000001E-3},{"$f":"IF(D44<0,0,D44*E44)","v":0},null,null,{"$f":"MAX(0,IF(H44=\"\",E44*D44,D44*H44))","v":0}]
[null,2,"Sch II EBS, Line (3), Column 5 & Sch IIA EBS, Line (3), Column 5",{"$f":"+'Schedule II (EBS)'!L14+'Schedule IIA (EBS)'!L14","v":0},{"$f":"+'Fixed Income Investments'!E42","v":0.01},0,null,null,0]
[null,3,"Sch II EBS, Line (4), Column 5 & Sch IIA EBS, Line (4), Column 5",{"$f":"+'Schedule II (EBS)'!L15+'Schedule IIA (EBS)'!L15","v":0},{"$f":"+'Fixed Income Investments'!E43","v":1.7999999999999999E-2},0,null,null,0]
[null,4,"Sch II EBS, Line (5), Column 5 & Sch IIA EBS, Line (5), Column 5",{"$f":"+'Schedule II (EBS)'!L16+'Schedule IIA (EBS)'!L16","v":0},{"$f":"+'Fixed Income Investments'!E44","v":3.5000000000000003E-2},0,null,null,0]
[null,5,"Sch II EBS, Line (6), Column 5 & Sch IIA EBS, Line (6), Column 5",{"$f":"+'Schedule II (EBS)'!L17+'Schedule IIA (EBS)'!L17","v":0},{"$f":"+'Fixed Income Investments'!E45","v":0.1},0,null,null,0]
[null,6,"Sch II EBS, Line (7), Column 5 & Sch IIA EBS, Line (7), Column 5",{"$f":"+'Schedule II (EBS)'!L18+'Schedule IIA (EBS)'!L18","v":0},{"$f":"+'Fixed Income Investments'!E46","v":0.2},0,null,null,0]
[null,7,"Sch II EBS, Line (8), Column 5 & Sch IIA EBS, Line (8), Column 5",{"$f":"+'Schedule II (EBS)'!L19+'Schedule IIA (EBS)'!L19","v":0},{"$f":"+'Fixed Income Investments'!E47","v":0.3},{"$f":"IF(D50<0,0,D50*E50)","v":0},null,null,0]
[null,8,"Sch II EBS, Line (9), Column 5 & Sch IIA EBS, Line (9), Column 5",{"$f":"+'Schedule II (EBS)'!L20+'Schedule IIA (EBS)'!L20","v":0},{"$f":"+'Fixed Income Investments'!E48","v":0.35},{"$f":"IF(D51<0,0,D51*E51)","v":0},null,null,0]
[]
[null,"(c)  SUBTOTAL - COMMERCIAL MORTGAGE-BACKED SECURITIES / ASSET-BACKED SECURITIES",null,{"$f":"SUM(D44:D51)","v":0},null,{"$f":"IF(SUM(F44:F51)>=0,SUM(F44:F51),0)","v":0},null,null,{"$f":"IF(SUM(I44:I51)>=0,SUM(I44:I51),0)","v":0}]
[]
[null,"(d) Bond Mutual Funds",null,"(1) ","(2)","(1) x (2)",null,"(3)","(1) x (3)"]
[]
[null,"BSCR Rating"]
[null,0,"Sch II EBS, Line (1), Column 7 & Sch IIA EBS, Line (1), Column 7",{"$f":"'Schedule II (EBS)'!P12+'Schedule IIA (EBS)'!P12","v":0},{"$f":"+'Fixed Income Investments'!E56","v":0},{"$f":"IF(D58<0,0,D58*E58)","v":0},null,null,{"$f":"MAX(0,IF(H58=\"\",E58*D58,D58*H58))","v":0}]
[null,1,"Sch II EBS, Line (2), Column 7 & Sch IIA EBS, Line (2), Column 7",{"$f":"'Schedule II (EBS)'!P13+'Schedule IIA (EBS)'!P13","v":0},{"$f":"+'Fixed Income Investments'!E57","v":4.0000000000000001E-3},{"$f":"IF(D59<0,0,D59*E59)","v":0},null,null,0]
[null,2,"Sch II EBS, Line (3), Column 7 & Sch IIA EBS, Line (3), Column 7",{"$f":"'Schedule II (EBS)'!P14+'Schedule IIA (EBS)'!P14","v":0},{"$f":"+'Fixed Income Investments'!E58","v":8.0000000000000002E-3},0,null,null,0]
[null,3,"Sch II EBS, Line (4), Column 7 & Sch IIA EBS, Line (4), Column 7",{"$f":"'Schedule II (EBS)'!P15+'Schedule IIA (EBS)'!P15","v":0},{"$f":"+'Fixed Income Investments'!E59","v":1.4999999999999999E-2},0,null,null,0]
[null,4,"Sch II EBS, Line (5), Column 7 & Sch IIA EBS, Line (5), Column 7",{"$f":"'Schedule II (EBS)'!P16+'Schedule IIA (EBS)'!P16","v":0},{"$f":"+'Fixed Income Investments'!E60","v":0.03},0,null,null,0]
[null,5,"Sch II EBS, Line (6), Column 7 & Sch IIA EBS, Line (6), Column 7",{"$f":"'Schedule II (EBS)'!P17+'Schedule IIA (EBS)'!P17","v":0},{"$f":"+'Fixed Income Investments'!E61","v":0.08},0,null,null,0]
[null,6,"Sch II EBS, Line (7), Column 7 & Sch IIA EBS, Line (7), Column 7",{"$f":"'Schedule II (EBS)'!P18+'Schedule IIA (EBS)'!P18","v":0},{"$f":"+'Fixed Income Investments'!E62","v":0.15},0,null,null,0]
[null,7,"Sch II EBS, Line (8), Column 7 & Sch IIA EBS, Line (8), Column 7",{"$f":"'Schedule II (EBS)'!P19+'Schedule IIA (EBS)'!P19","v":0},{"$f":"+'Fixed Income Investments'!E63","v":0.26300000000000001},{"$f":"IF(D65<0,0,D65*E65)","v":0},null,null,0]
[null,8,"Sch II EBS, Line (9), Column 7 & Sch IIA EBS, Line (9), Column 7",{"$f":"'Schedule II (EBS)'!P20+'Schedule IIA (EBS)'!P20","v":0},{"$f":"+'Fixed Income Investments'!E64","v":0.35},{"$f":"IF(D66<0,0,D66*E66)","v":0},null,null,0]
[]
[null,"(d)  SUBTOTAL - BOND MUTUAL FUNDS",null,{"$f":"SUM(D58:D66)","v":0},null,{"$f":"IF(SUM(F58:F66)>=0,SUM(F58:F66),0)","v":0},null,null,{"$f":"IF(SUM(I58:I66)>=0,SUM(I58:I66),0)","v":0}]
[]
[null,"(e) Mortgage Loans"]
[]
[null,"Insured/Guaranteed Mortgages","Sch II EBS, Line (22), Column 1 & Sch IIA EBS, Line (22), Column 1",{"$f":"+'Schedule II (EBS)'!D57+'Schedule IIA (EBS)'!D57","v":0},{"$f":"+'Fixed Income Investments'!E70","v":3.0000000000000001E-3},{"$f":"IF(D72<0,0,D72*E72)","v":0},null,null,{"$f":"MAX(0,IF(H72=\"\",E72*D72,D72*H72))","v":0}]
[null,"Other Commercial and Farm Mortgages","Sch II EBS, Line (23), Column 1 & Sch IIA EBS, Line (23), Column 1 ",{"$f":"+'Schedule II (EBS)'!D58+'Schedule IIA (EBS)'!D58","v":0},{"$f":"+'Fixed Income Investments'!E71","v":0.05},{"$f":"IF(D73<0,0,D73*E73)","v":0},null,null,{"$f":"MAX(0,IF(H73=\"\",E73*D73,D73*H73))","v":0}]
[null,"Other Residential Mortgages","Sch II EBS, Line (24), Column 1 & Sch IIA EBS, Line (24), Column 1",{"$f":"+'Schedule II (EBS)'!D59+'Schedule IIA (EBS)'!D59","v":0},{"$f":"+'Fixed Income Investments'!E72","v":1.4999999999999999E-2},{"$f":"IF(D74<0,0,D74*E74)","v":0},null,null,{"$f":"MAX(0,IF(H74=\"\",E74*D74,D74*H74))","v":0}]
[null,"Mortgages Not In Good Standing","Sch II EBS, Line (25), Column 1 & Sch IIA EBS, Line (25), Column 1",{"$f":"+'Schedule II (EBS)'!D60+'Schedule IIA (EBS)'!D60","v":0},{"$f":"+'Fixed Income Investments'!E73","v":0.25},{"$f":"IF(D75<0,0,D75*E75)","v":0},null,null,{"$f":"MAX(0,IF(H75=\"\",E75*D75,D75*H75))","v":0}]
[]
[null,"(e)  SUBTOTAL - MORTGAGE LOANS",null,{"$f":"SUM(D72:D75)","v":0},null,{"$f":"IF(SUM(F72:F75)>=0,SUM(F72:F75),0)","v":0},null,null,{"$f":"IF(SUM(I72:I75)>=0,SUM(I72:I75),0)","v":0}]
[]
[null,"(f) Other Fixed Income Investments"]
[]
[null,"Other Loans","Form 4EBS, Line (8)",{"$f":"+'Form 4EBS'!F54","v":0},{"$f":"+'Fixed Income Investments'!E79","v":0.05},{"$f":"IF(D81<0,0,D81*E81)","v":0},null,null,{"$f":"MAX(0,IF(H81=\"\",E81*D81,D81*H81))","v":0}]
[]
[null,"Cash and Cash Equivalent Counterparty Balances By BSCR Rating"]
[]
[null,"BSCR Rating 0 ","Schedule XIX, Column B",{"$f":"+'Schedule XIX'!H81","v":0},{"$f":"+'Fixed Income Investments'!E83","v":0},{"$f":"IF(D85<0,0,D85*E85)","v":0},null,null,{"$f":"MAX(0,IF(H85=\"\",E85*D85,D85*H85))","v":0}]
[null,"BSCR Rating 1","Schedule XIX, Column B",{"$f":"+'Schedule XIX'!H82","v":0},{"$f":"+'Fixed Income Investments'!E84","v":1E-3},{"$f":"IF(D86<0,0,D86*E86)","v":0},null,null,{"$f":"MAX(0,IF(H86=\"\",E86*D86,D86*H86))","v":0}]
[null,"BSCR Rating 2","Schedule XIX, Column B",{"$f":"+'Schedule XIX'!H83","v":0},{"$f":"+'Fixed Income Investments'!E85","v":2E-3},0,null,null,0]
[null,"BSCR Rating 3","Schedule XIX, Column B",{"$f":"+'Schedule XIX'!H84","v":0},{"$f":"+'Fixed Income Investments'!E86","v":3.0000000000000001E-3},0,null,null,0]
[null,"BSCR Rating 4","Schedule XIX, Column B",{"$f":"+'Schedule XIX'!H85","v":0},{"$f":"+'Fixed Income Investments'!E87","v":5.0000000000000001E-3},0,null,null,0]
[null,"BSCR Rating 5","Schedule XIX, Column B",{"$f":"+'Schedule XIX'!H86","v":0},{"$f":"+'Fixed Income Investments'!E88","v":1.4999999999999999E-2},0,null,null,0]
[null,"BSCR Rating 6","Schedule XIX, Column B",{"$f":"+'Schedule XIX'!H87","v":0},{"$f":"+'Fixed Income Investments'!E89","v":0.04},0,null,null,0]
[null,"BSCR Rating 7","Schedule XIX, Column B",{"$f":"+'Schedule XIX'!H88","v":0},{"$f":"+'Fixed Income Investments'!E90","v":0.06},0,null,null,0]
[null,"BSCR Rating 8","Schedule XIX, Column B",{"$f":"+'Schedule XIX'!H89","v":0},{"$f":"+'Fixed Income Investments'!E91","v":0.09},0,null,null,0]
[]
[null,"Total",null,{"$f":"SUM(D85:D94)","v":0},null,{"$f":"SUM(F85:F94)","v":0},null,null,{"$f":"SUM(I85:I94)","v":0}]
[]
[null,"Diversification Adj at 40%","Schedule XIX, Column B",null,null,{"$f":"SUM(F85:F93)*-('Schedule XIX'!H98)","v":0},null,null,{"$f":"SUM(I85:I93)*-('Schedule XIX'!H98)","v":0}]
[]
[null,"(f)  SUBTOTAL - OTHER FIXED INCOME SECURITIES",null,{"$f":"SUM(D81,D95)","v":0},null,{"$f":"IF(SUM(F81,F95,F97)>=0,SUM(F81,F95,F97),0)","v":0},null,null,{"$f":"IF(SUM(I81,I95,I97)>=0,SUM(I81,I95,I97),0)","v":0}]
[]
[null,"(G)  TOTAL FIXED INCOME INVESTMENTS [ (a)+(b)+(c)+(d)+(e)+(f) ]",null,{"$f":"D25+D39+D53+D68+D77+D99","v":0},null,{"$f":"F25+F39+F53+F68+F77+F99","v":0},null,null,{"$f":"I25+I39+I53+I68+I77+I99","v":0}]
[]
[null,null,null,null,"STANDARD","STANDARD",null,"USER","USER"]
[null,"TYPE OF ",null,"ASSET","CAPITAL","REQUIRED",null,"CAPITAL","REQUIRED"]
[null,"EQUITY INVESTMENTS","STATEMENT SOURCE","VALUE","FACTOR","CAPITAL",null,"FACTOR","CAPITAL"]
[]
[null,"(a)  Common Stocks",null,"(1) ","(2)","(1) x (2)",null,"(3)","(1) x (3)"]
[]
[null,"Non-Affiliated (Quoted)","Sch II EBS, Line (19), Column (1) and Sch IIA EBS, Line (19), Column (1)",{"$f":"'Schedule II (EBS)'!D41+'Schedule IIA (EBS)'!D41","v":0},{"$f":"+'Equity Investments'!E11","v":0.14399999999999999},{"$f":"IF(D109<0,0,D109*E109)","v":0},null,null,{"$f":"MAX(0,IF(H109=\"\",E109*D109,D109*H109))","v":0}]
[null,"Non-Affiliated (Unquoted)","Sch II EBS, Line (20), Column (1) and Sch IIA EBS, Line (20), Column (1)",{"$f":"'Schedule II (EBS)'!D42+'Schedule IIA (EBS)'!D42","v":0},{"$f":"+'Equity Investments'!E12","v":0.14399999999999999},{"$f":"IF(D110<0,0,D110*E110)","v":0},null,null,{"$f":"MAX(0,IF(H110=\"\",E110*D110,D110*H110))","v":0}]
[null,"Equity Mutual Funds","Sch II EBS, Line (21), Column (5) and Sch IIA EBS, Line (21), Column (5)",{"$f":"'Schedule II (EBS)'!L41+'Schedule II (EBS)'!L42+'Schedule IIA (EBS)'!L41+'Schedule IIA (EBS)'!L42","v":0},{"$f":"+'Equity Investments'!E13","v":0.14399999999999999},{"$f":"IF(D111<0,0,D111*E111)","v":0},null,null,{"$f":"MAX(0,IF(H111=\"\",E111*D111,D111*H111))","v":0}]
[]
[null,"(a)  SUBTOTAL - COMMON STOCKS",null,{"$f":"SUM(D109:D111)","v":0},null,{"$f":"IF(SUM(F109:F111)>=0,SUM(F109:F111),0)","v":0},null,null,{"$f":"IF(SUM(I109:I111)>=0,SUM(I109:I111),0)","v":0}]
[]
[null,"(b)  Preferred Stocks"]
[]
[null,"BSCR Rating"]
[null,1,"Sch II EBS, Line (11), Column (3) and Sch IIA EBS, Line (11), Column (3)",{"$f":"+'Schedule II (EBS)'!H33+'Schedule IIA (EBS)'!H33","v":0},{"$f":"+'Equity Investments'!E20","v":6.0000000000000001E-3},{"$f":"IF(D118<0,0,D118*E118)","v":0},null,null,{"$f":"MAX(0,IF(H118=\"\",E118*D118,D118*H118))","v":0}]
[null,2,"Sch II EBS, Line (12), Column (3) and Sch IIA EBS, Line (12), Column (3)",{"$f":"+'Schedule II (EBS)'!H34+'Schedule IIA (EBS)'!H34","v":0},{"$f":"+'Equity Investments'!E21","v":1.2E-2},{"$f":"IF(D119<0,0,D119*E119)","v":0},null,null,0]
[null,3,"Sch II EBS, Line (13), Column (3) and Sch IIA EBS, Line (13), Column (3)",{"$f":"+'Schedule II (EBS)'!H35+'Schedule IIA (EBS)'!H35","v":0},{"$f":"+'Equity Investments'!E22","v":0.02},0,null,null,0]
[null,4,"Sch II EBS, Line (14), Column (3) and Sch IIA EBS, Line (14), Column (3)",{"$f":"+'Schedule II (EBS)'!H36+'Schedule IIA (EBS)'!H36","v":0},{"$f":"+'Equity Investments'!E23","v":0.04},0,null,null,0]
[null,5,"Sch II EBS, Line (15), Column (3) and Sch IIA EBS, Line (15), Column (3)",{"$f":"+'Schedule II (EBS)'!H37+'Schedule IIA (EBS)'!H37","v":0},{"$f":"+'Equity Investments'!E24","v":0.11},0,null,null,0]
[null,6,"Sch II EBS, Line (16), Column (3) and Sch IIA EBS, Line (16), Column (3)",{"$f":"+'Schedule II (EBS)'!H38+'Schedule IIA (EBS)'!H38","v":0},{"$f":"+'Equity Investments'!E25","v":0.25},0,null,null,0]
[null,7,"Sch II EBS, Line (17), Column (3) and Sch IIA EBS, Line (17), Column (3)",{"$f":"+'Schedule II (EBS)'!H39+'Schedule IIA (EBS)'!H39","v":0},{"$f":"+'Equity Investments'!E26","v":0.35},0,null,null,0]
[null,8,"Sch II EBS, Line (18), Column (3) and Sch IIA EBS, Line (18), Column (3)",{"$f":"+'Schedule II (EBS)'!H40+'Schedule IIA (EBS)'!H40","v":0},{"$f":"+'Equity Investments'!E27","v":0.35},{"$f":"IF(D125<0,0,D125*E125)","v":0},null,null,0]
[]
[null,"(b)  SUBTOTAL - PREFERRED STOCKS",null,{"$f":"SUM(D118:D125)","v":0},null,{"$f":"IF(SUM(F118:F125)>=0,SUM(F118:F125),0)","v":0},null,null,{"$f":"IF(SUM(I118:I125)>=0,SUM(I118:I125),0)","v":0}]
[]
[null,"(c)  Other Equity Investments"]
[]
[null,"Real Estate"]
[null,"Company-Occupied Less Encumbrances","Form 4EBS, Line (7a)",{"$f":"+'Form 4EBS'!F50","v":0},{"$f":"+'Equity Investments'!E34","v":0.1},{"$f":"IF(D132<0,0,D132*E132)","v":0},null,null,{"$f":"MAX(0,IF(H132=\"\",E132*D132,D132*H132))","v":0}]
[null,"Investments Less Encumbrances","Form 4EBS, Line (7b)",{"$f":"+'Form 4EBS'!F51","v":0},{"$f":"+'Equity Investments'!E35","v":0.2},{"$f":"IF(D133<0,0,D133*E133)","v":0},null,null,{"$f":"MAX(0,IF(H133=\"\",E133*D133,D133*H133))","v":0}]
[]
[null,"Other Equity Investments","Form 4EBS, Lines (2e), (3e) & Schedule IIA EBS, Line 21, Column (7)",{"$f":"+'Form 4EBS'!F19+'Form 4EBS'!F29+'Schedule IIA (EBS)'!P44","v":0},{"$f":"+'Equity Investments'!E37","v":0.2},{"$f":"IF(D135<0,0,D135*E135)","v":0},null,null,{"$f":"MAX(0,IF(H135=\"\",E135*D135,D135*H135))","v":0}]
[null,"Other Tangible Assets - Net of Segregated Accounts Companies","Form 4EBS, Lines (13k), (14d), and (36f) Less Form 4EBS, Lines (13b),  (13c) and (13h)",{"$f":"'Form 4EBS'!F85-'Form 4EBS'!F77-'Form 4EBS'!F78-'Form 4EBS'!F82+'Form 4EBS'!F91+'Form 4EBS'!F166","v":0},{"$f":"+'Equity Investments'!E38","v":0.2},{"$f":"IF(D136<0,0,D136*E136)","v":0},null,null,{"$f":"MAX(0,IF(H136=\"\",E136*D136,D136*H136))","v":0}]
[]
[null,"(c)  SUBTOTAL - OTHER EQUITY INVESTMENTS",null,{"$f":"SUM(D132:D136)","v":0},null,{"$f":"IF(SUM(F132:F136)>=0,SUM(F132:F136),0)","v":0},null,null,{"$f":"IF(SUM(I132:I136)>=0,SUM(I132:I136),0)","v":0}]
[]
[null,"(d)  Investments in Affiliates"]
[]
[null,"Unregulated Entities That Conduct Ancillary Services","Form 4EBS, Line (4a)",{"$f":"+'Form 4EBS'!F33","v":0},{"$f":"+'Equity Investments'!E44","v":0.05},{"$f":"IF(D142<0,0,D142*E142)","v":0},null,null,{"$f":"MAX(0,IF(H142=\"\",E142*D142,D142*H142))","v":0}]
[null,"Unregulated Non-Financial Operating Entities","Form 4EBS, Line (4b)",{"$f":"+'Form 4EBS'!F34","v":0},{"$f":"+'Equity Investments'!E45","v":0.2},{"$f":"IF(D143<0,0,D143*E143)","v":0},null,null,{"$f":"MAX(0,IF(H143=\"\",E143*D143,D143*H143))","v":0}]
[null,"Unregulated Financial Operating Entities","Form 4EBS, Line (4c)",{"$f":"+'Form 4EBS'!F35","v":0},{"$f":"+'Equity Investments'!E46","v":0.55000000000000004},{"$f":"IF(D144<0,0,D144*E144)","v":0},null,null,{"$f":"MAX(0,IF(H144=\"\",E144*D144,D144*H144))","v":0}]
[null,"Regulated Insurance Financial Operating Entities","Form 4EBS, Line (4e)",{"$f":"+'Form 4EBS'!F37","v":0},{"$f":"+'Equity Investments'!E47","v":0.2},{"$f":"IF(D145<0,0,D145*E145)","v":0},null,null,{"$f":"MAX(0,IF(H145=\"\",E145*D145,D145*H145))","v":0}]
[]
[null,"(d)  SUBTOTAL - INVESTMENTS IN AFFILIATES",null,{"$f":"SUM(D142:D145)","v":0},null,{"$f":"IF(SUM(F142:F145)>=0,SUM(F142:F145),0)","v":0},null,null,{"$f":"IF(SUM(I142:I145)>=0,SUM(I142:I145),0)","v":0}]
[]
[null,"(e)  TOTAL EQUITY INVESTMENTS [ (a) + (b) + (c) + (d) ]",null,{"$f":"D113+D127+D138+D147","v":0},null,{"$f":"F113+F127+F138+F147","v":0},null,null,{"$f":"I113+I127+I138+I147","v":0}]
[]
[null,null,null,null,"STANDARD","STANDARD",null,"USER","USER"]
[null,null,null,null,"CAPITAL","REQUIRED",null,"CAPITAL","REQUIRED"]
[null,"CURRENCY RISK","ASSETS","LIABILITIES","FACTOR","CAPITAL",null,"FACTOR","CAPITAL"]
[]
[null,{"$f":"'Schedule XX'!B9","v":"United States Dollars"},{"$f":"IF('Currency Risk'!D9=0,'Currency Risk'!C9,'Currency Risk'!D9)","v":0},{"$f":"IF('Currency Risk'!D9=0,'Currency Risk'!E9,'Currency Risk'!F9)","v":0},{"$f":"'Currency Risk'!H9","v":0},{"$f":"'Currency Risk'!I9","v":0},null,null,{"$f":"IF(H155=\"\",F155,H155*ABS(D155-C155))","v":0}]
[null,{"$f":"'Schedule XX'!B10","v":"Euro"},{"$f":"IF('Currency Risk'!D10=0,'Currency Risk'!C10,'Currency Risk'!D10)","v":0},{"$f":"IF('Currency Risk'!D10=0,'Currency Risk'!E10,'Currency Risk'!F10)","v":0},{"$f":"'Currency Risk'!H10","v":0.25},{"$f":"'Currency Risk'!I10","v":0},null,null,{"$f":"IF(H156=\"\",F156,H156*ABS(D156-C156))","v":0}]
[null,{"$f":"'Schedule XX'!B11","v":"United Kingdom Pounds"},{"$f":"IF('Currency Risk'!D11=0,'Currency Risk'!C11,'Currency Risk'!D11)","v":0},{"$f":"IF('Currency Risk'!D11=0,'Currency Risk'!E11,'Currency Risk'!F11)","v":0},{"$f":"'Currency Risk'!H11","v":0.25},{"$f":"'Currency Risk'!I11","v":0},null,null,0]
[null,{"$f":"'Schedule XX'!B12","v":"Canada Dollars"},{"$f":"IF('Currency Risk'!D12=0,'Currency Risk'!C12,'Currency Risk'!D12)","v":0},{"$f":"IF('Currency Risk'!D12=0,'Currency Risk'!E12,'Currency Risk'!F12)","v":0},{"$f":"'Currency Risk'!H12","v":0.25},{"$f":"'Currency Risk'!I12","v":0},null,null,0]
[null,{"$f":"'Schedule XX'!B13","v":"Japan Yen"},{"$f":"IF('Currency Risk'!D13=0,'Currency Risk'!C13,'Currency Risk'!D13)","v":0},{"$f":"IF('Currency Risk'!D13=0,'Currency Risk'!E13,'Currency Risk'!F13)","v":0},{"$f":"'Currency Risk'!H13","v":0.25},{"$f":"'Currency Risk'!I13","v":0},null,null,0]
[null,{"$f":"'Schedule XX'!B14","v":"Other currency 1"},{"$f":"IF('Currency Risk'!D14=0,'Currency Risk'!C14,'Currency Risk'!D14)","v":0},{"$f":"IF('Currency Risk'!D14=0,'Currency Risk'!E14,'Currency Risk'!F14)","v":0},{"$f":"'Currency Risk'!H14","v":0.25},{"$f":"'Currency Risk'!I14","v":0},null,null,0]
[null,{"$f":"'Schedule XX'!B15","v":"Other currency 2"},{"$f":"IF('Currency Risk'!D15=0,'Currency Risk'!C15,'Currency Risk'!D15)","v":0},{"$f":"IF('Currency Risk'!D15=0,'Currency Risk'!E15,'Currency Risk'!F15)","v":0},{"$f":"'Currency Risk'!H15","v":0.25},{"$f":"'Currency Risk'!I15","v":0},null,null,0]
[null,{"$f":"'Schedule XX'!B16","v":"Other currency 3"},{"$f":"IF('Currency Risk'!D16=0,'Currency Risk'!C16,'Currency Risk'!D16)","v":0},{"$f":"IF('Currency Risk'!D16=0,'Currency Risk'!E16,'Currency Risk'!F16)","v":0},{"$f":"'Currency Risk'!H16","v":0.25},{"$f":"'Currency Risk'!I16","v":0},null,null,0]
[null,{"$f":"'Schedule XX'!B17","v":"Other currency 4"},{"$f":"IF('Currency Risk'!D17=0,'Currency Risk'!C17,'Currency Risk'!D17)","v":0},{"$f":"IF('Currency Risk'!D17=0,'Currency Risk'!E17,'Currency Risk'!F17)","v":0},{"$f":"'Currency Risk'!H17","v":0.25},{"$f":"'Currency Risk'!I17","v":0},null,null,0]
[null,{"$f":"'Schedule XX'!B18","v":"Other currency 5"},{"$f":"IF('Currency Risk'!D18=0,'Currency Risk'!C18,'Currency Risk'!D18)","v":0},{"$f":"IF('Currency Risk'!D18=0,'Currency Risk'!E18,'Currency Risk'!F18)","v":0},{"$f":"'Currency Risk'!H18","v":0.25},{"$f":"'Currency Risk'!I18","v":0},null,null,0]
[null,{"$f":"'Schedule XX'!B19","v":"Other currency 6"},{"$f":"IF('Currency Risk'!D19=0,'Currency Risk'!C19,'Currency Risk'!D19)","v":0},{"$f":"IF('Currency Risk'!D19=0,'Currency Risk'!E19,'Currency Risk'!F19)","v":0},{"$f":"'Currency Risk'!H19","v":0.25},{"$f":"'Currency Risk'!I19","v":0},null,null,0]
[null,{"$f":"'Schedule XX'!B20","v":"Other currency 7"},{"$f":"IF('Currency Risk'!D20=0,'Currency Risk'!C20,'Currency Risk'!D20)","v":0},{"$f":"IF('Currency Risk'!D20=0,'Currency Risk'!E20,'Currency Risk'!F20)","v":0},{"$f":"'Currency Risk'!H20","v":0.25},{"$f":"'Currency Risk'!I20","v":0},null,null,0]
[null,{"$f":"'Schedule XX'!B21","v":"Other currency 8"},{"$f":"IF('Currency Risk'!D21=0,'Currency Risk'!C21,'Currency Risk'!D21)","v":0},{"$f":"IF('Currency Risk'!D21=0,'Currency Risk'!E21,'Currency Risk'!F21)","v":0},{"$f":"'Currency Risk'!H21","v":0.25},{"$f":"'Currency Risk'!I21","v":0},null,null,0]
[null,{"$f":"'Schedule XX'!B22","v":"Other currency 9"},{"$f":"IF('Currency Risk'!D22=0,'Currency Risk'!C22,'Currency Risk'!D22)","v":0},{"$f":"IF('Currency Risk'!D22=0,'Currency Risk'!E22,'Currency Risk'!F22)","v":0},{"$f":"'Currency Risk'!H22","v":0.25},{"$f":"'Currency Risk'!I22","v":0},null,null,0]
[null,{"$f":"'Schedule XX'!B23","v":"Other currency 10"},{"$f":"IF('Currency Risk'!D23=0,'Currency Risk'!C23,'Currency Risk'!D23)","v":0},{"$f":"IF('Currency Risk'!D23=0,'Currency Risk'!E23,'Currency Risk'!F23)","v":0},{"$f":"'Currency Risk'!H23","v":0.25},{"$f":"'Currency Risk'!I23","v":0},null,null,0]
[null,"Total Identified",{"$f":"SUM(C155:C169)","v":0},{"$f":"SUM(D155:D169)","v":0}]
[null,"Total",{"$f":"+'Schedule XX'!L27","v":0},{"$f":"+'Schedule XX'!P27","v":0}]
[null,"% Identified",{"$f":"IF(C170=0,0,C170/C171)","v":0},{"$f":"IF(D170=0,0,D170/D171)","v":0}]
[]
[null,"TOTAL CURRENCY RISK",{"$f":"SUM(C155:C169)","v":0},{"$f":"SUM(D155:D169)","v":0},null,{"$f":"IF(SUM(F155:F172)>=0,SUM(F155:F172),0)","v":0},null,null,{"$f":"IF(SUM(I155:I172)>=0,SUM(I155:I172),0)","v":0}]
[]
[null,"CONCENTRATION RISK",null,null,"STANDARD","STANDARD",null,"USER","USER"]
[null,null,null,"EXPOSURE","CAPITAL","REQUIRED",null,"CAPITAL","REQUIRED"]
[null,"ASSET TYPE","STATEMENT SOURCE","VALUE","FACTOR","CAPITAL",null,"FACTOR","CAPITAL"]
[]
[null,"(a) Cash and Cash Equivalents"]
[null,"BSCR Rating 0","Schedule XXI, Column H",{"$f":"+'Concentration Risk'!D10","v":0},{"$f":"+'Fixed Income Investments'!E83","v":0},{"$f":"IF(D181<0,0,D181*E181)","v":0},null,null,{"$f":"MAX(0,IF(H181=\"\",E181*D181,D181*H181))","v":0}]
[null,"BSCR Rating 1","Schedule XXI, Column H",{"$f":"+'Concentration Risk'!D11","v":0},{"$f":"+'Fixed Income Investments'!E84","v":1E-3},{"$f":"IF(D182<0,0,D182*E182)","v":0},null,null,0]
[null,"BSCR Rating 2","Schedule XXI, Column H",{"$f":"+'Concentration Risk'!D12","v":0},{"$f":"+'Fixed Income Investments'!E85","v":2E-3},0,null,null,0]
[null,"BSCR Rating 3","Schedule XXI, Column H",{"$f":"+'Concentration Risk'!D13","v":0},{"$f":"+'Fixed Income Investments'!E86","v":3.0000000000000001E-3},0,null,null,0]
[null,"BSCR Rating 4","Schedule XXI, Column H",{"$f":"+'Concentration Risk'!D14","v":0},{"$f":"+'Fixed Income Investments'!E87","v":5.0000000000000001E-3},0,null,null,0]
[null,"BSCR Rating 5","Schedule XXI, Column H",{"$f":"+'Concentration Risk'!D15","v":0},{"$f":"+'Fixed Income Investments'!E88","v":1.4999999999999999E-2},0,null,null,0]
[null,"BSCR Rating 6","Schedule XXI, Column H",{"$f":"+'Concentration Risk'!D16","v":0},{"$f":"+'Fixed Income Investments'!E89","v":0.04},0,null,null,0]
[null,"BSCR Rating 7","Schedule XXI, Column H",{"$f":"+'Concentration Risk'!D17","v":0},{"$f":"+'Fixed Income Investments'!E90","v":0.06},0,null,null,0]
[null,"BSCR Rating 8","Schedule XXI, Column H",{"$f":"+'Concentration Risk'!D18","v":0},{"$f":"+'Fixed Income Investments'!E91","v":0.09},0,null,null,0]
[]
[null,"(a)  SUBTOTAL - CASH AND CASH EQUIVALENTS",null,{"$f":"SUM(D181:D189)","v":0},null,{"$f":"SUM(F181:F189)","v":0},null,null,{"$f":"SUM(I181:I189)","v":0}]
[]
[null,"(b) Corporate & Sovereign Bonds"]
[null,"BSCR Rating 0","Schedule XXI, Column H",{"$f":"+'Concentration Risk'!D23","v":0},{"$f":"+E15","v":0},{"$f":"IF(D194<0,0,D194*E194)","v":0},null,null,{"$f":"MAX(0,IF(H194=\"\",E194*D194,D194*H194))","v":0}]
[null,"BSCR Rating 1","Schedule XXI, Column H",{"$f":"+'Concentration Risk'!D24","v":0},4.0000000000000001E-3,{"$f":"IF(D195<0,0,D195*E195)","v":0},null,null,0]
[null,"BSCR Rating 2","Schedule XXI, Column H",{"$f":"+'Concentration Risk'!D25","v":0},8.0000000000000002E-3,0,null,null,0]
[null,"BSCR Rating 3","Schedule XXI, Column H",{"$f":"+'Concentration Risk'!D26","v":0},1.4999999999999999E-2,0,null,null,0]
[null,"BSCR Rating 4","Schedule XXI, Column H",{"$f":"+'Concentration Risk'!D27","v":0},0.03,0,null,null,0]
[null,"BSCR Rating 5","Schedule XXI, Column H",{"$f":"+'Concentration Risk'!D28","v":0},0.08,0,null,null,0]
[null,"BSCR Rating 6","Schedule XXI, Column H",{"$f":"+'Concentration Risk'!D29","v":0},0.15,0,null,null,0]
[null,"BSCR Rating 7","Schedule XXI, Column H",{"$f":"+'Concentration Risk'!D30","v":0},0.26300000000000001,0,null,null,0]
[null,"BSCR Rating 8","Schedule XXI, Column H",{"$f":"+'Concentration Risk'!D31","v":0},0.35,0,null,null,0]
[]
[null,"(b)  SUBTOTAL - CORPORATE & SOVEREIGN BONDS",null,{"$f":"SUM(D194:D202)","v":0},null,{"$f":"SUM(F194:F202)","v":0},null,null,{"$f":"SUM(I194:I202)","v":0}]
[]
[null,"(c) Residential Mortage-Backed Securities"]
[null,"BSCR Rating 0","Schedule XXI, Column H",{"$f":"+'Concentration Risk'!D36","v":0},0,{"$f":"IF(D207<0,0,D207*E207)","v":0},null,null,{"$f":"MAX(0,IF(H207=\"\",E207*D207,D207*H207))","v":0}]
[null,"BSCR Rating 1","Schedule XXI, Column H",{"$f":"+'Concentration Risk'!D37","v":0},{"$f":"+E30","v":6.0000000000000001E-3},{"$f":"IF(D208<0,0,D208*E208)","v":0},null,null,0]
[null,"BSCR Rating 2","Schedule XXI, Column H",{"$f":"+'Concentration Risk'!D38","v":0},1.2E-2,0,null,null,0]
[null,"BSCR Rating 3","Schedule XXI, Column H",{"$f":"+'Concentration Risk'!D39","v":0},0.02,0,null,null,0]
[null,"BSCR Rating 4","Schedule XXI, Column H",{"$f":"+'Concentration Risk'!D40","v":0},0.04,0,null,null,0]
[null,"BSCR Rating 5","Schedule XXI, Column H",{"$f":"+'Concentration Risk'!D41","v":0},0.11,0,null,null,0]
[null,"BSCR Rating 6","Schedule XXI, Column H",{"$f":"+'Concentration Risk'!D42","v":0},0.25,0,null,null,0]
[null,"BSCR Rating 7","Schedule XXI, Column H",{"$f":"+'Concentration Risk'!D43","v":0},0.35,0,null,null,0]
[null,"BSCR Rating 8","Schedule XXI, Column H",{"$f":"+'Concentration Risk'!D44","v":0},0.35,0,null,null,0]
[]
[null,"(c)  SUBTOTAL - RESIDENTIAL MORTGAGE-BACKED SECURITIES",null,{"$f":"SUM(D207:D215)","v":0},null,{"$f":"SUM(F207:F215)","v":0},null,null,{"$f":"SUM(I207:I215)","v":0}]
[]
[null,"(d) Commercial Mortgage-Backed Securities / Asset-Backed Securities"]
[null,"BSCR Rating 0","Schedule XXI, Column H",{"$f":"+'Concentration Risk'!D49","v":0},0,{"$f":"IF(D220<0,0,D220*E220)","v":0},null,null,{"$f":"MAX(0,IF(H220=\"\",E220*D220,D220*H220))","v":0}]
[null,"BSCR Rating 1","Schedule XXI, Column H",{"$f":"+'Concentration Risk'!D50","v":0},{"$f":"+E44","v":5.0000000000000001E-3},{"$f":"IF(D221<0,0,D221*E221)","v":0},null,null,0]
[null,"BSCR Rating 2","Schedule XXI, Column H",{"$f":"+'Concentration Risk'!D51","v":0},0.01,0,null,null,0]
[null,"BSCR Rating 3","Schedule XXI, Column H",{"$f":"+'Concentration Risk'!D52","v":0},1.7999999999999999E-2,0,null,null,0]
[null,"BSCR Rating 4","Schedule XXI, Column H",{"$f":"+'Concentration Risk'!D53","v":0},3.5000000000000003E-2,0,null,null,0]
[null,"BSCR Rating 5","Schedule XXI, Column H",{"$f":"+'Concentration Risk'!D54","v":0},0.1,0,null,null,0]
[null,"BSCR Rating 6","Schedule XXI, Column H",{"$f":"+'Concentration Risk'!D55","v":0},0.2,0,null,null,0]
[null,"BSCR Rating 7","Schedule XXI, Column H",{"$f":"+'Concentration Risk'!D56","v":0},0.3,0,null,null,0]
[null,"BSCR Rating 8","Schedule XXI, Column H",{"$f":"+'Concentration Risk'!D57","v":0},0.35,0,null,null,0]
[]
[null,"(d)  SUBTOTAL - COMMERCIAL MORTGAGE-BACKED SECURITIES / ASSET-BACKED SECURITIES",null,{"$f":"SUM(D220:D228)","v":0},null,{"$f":"SUM(F220:F228)","v":0},null,null,{"$f":"SUM(I220:I228)","v":0}]
[]
[null,"(e) Bond Mutual Funds"]
[null,"BSCR Rating 0","Schedule XXI, Column H",{"$f":"+'Concentration Risk'!D62","v":0},{"$f":"+E58","v":0},{"$f":"IF(D233<0,0,D233*E233)","v":0},null,null,{"$f":"MAX(0,IF(H233=\"\",E233*D233,D233*H233))","v":0}]
[null,"BSCR Rating 1","Schedule XXI, Column H",{"$f":"+'Concentration Risk'!D63","v":0},4.0000000000000001E-3,{"$f":"IF(D234<0,0,D234*E234)","v":0},null,null,0]
[null,"BSCR Rating 2","Schedule XXI, Column H",{"$f":"+'Concentration Risk'!D64","v":0},8.0000000000000002E-3,0,null,null,0]
[null,"BSCR Rating 3","Schedule XXI, Column H",{"$f":"+'Concentration Risk'!D65","v":0},1.4999999999999999E-2,0,null,null,0]
[null,"BSCR Rating 4","Schedule XXI, Column H",{"$f":"+'Concentration Risk'!D66","v":0},0.03,0,null,null,0]
[null,"BSCR Rating 5","Schedule XXI, Column H",{"$f":"+'Concentration Risk'!D67","v":0},0.08,0,null,null,0]
[null,"BSCR Rating 6","Schedule XXI, Column H",{"$f":"+'Concentration Risk'!D68","v":0},0.15,0,null,null,0]
[null,"BSCR Rating 7","Schedule XXI, Column H",{"$f":"+'Concentration Risk'!D69","v":0},0.26300000000000001,0,null,null,0]
[null,"BSCR Rating 8","Schedule XXI, Column H",{"$f":"+'Concentration Risk'!D70","v":0},0.35,0,null,null,0]
[]
[null,"(e)  SUBTOTAL - BOND MUTUAL FUNDS",null,{"$f":"SUM(D233:D241)","v":0},null,{"$f":"SUM(F233:F241)","v":0},null,null,{"$f":"SUM(I233:I241)","v":0}]
[]
[null,"(f) Preferred Shares"]
[null,"BSCR Rating 0","Schedule XXI, Column H",{"$f":"+'Concentration Risk'!D75","v":0},{"$f":"+'Concentration Risk'!E75","v":0},{"$f":"MAX(0,(D246*E246))","v":0},null,null,{"$f":"MAX(0,IF(H246=\"\",D246*E246,D246*H246))","v":0}]
[null,"BSCR Rating 1","Schedule XXI, Column H",{"$f":"+'Concentration Risk'!D76","v":0},{"$f":"+'Concentration Risk'!E76","v":6.0000000000000001E-3},{"$f":"MAX(0,(D247*E247))","v":0},null,null,{"$f":"MAX(0,IF(H247=\"\",D247*E247,D247*H247))","v":0}]
[null,"BSCR Rating 2","Schedule XXI, Column H",{"$f":"+'Concentration Risk'!D77","v":0},{"$f":"+'Concentration Risk'!E77","v":1.2E-2},0,null,null,0]
[null,"BSCR Rating 3","Schedule XXI, Column H",{"$f":"+'Concentration Risk'!D78","v":0},{"$f":"+'Concentration Risk'!E78","v":0.02},0,null,null,0]
[null,"BSCR Rating 4","Schedule XXI, Column H",{"$f":"+'Concentration Risk'!D79","v":0},{"$f":"+'Concentration Risk'!E79","v":0.04},0,null,null,0]
[null,"BSCR Rating 5","Schedule XXI, Column H",{"$f":"+'Concentration Risk'!D80","v":0},{"$f":"+'Concentration Risk'!E80","v":0.11},0,null,null,0]
[null,"BSCR Rating 6","Schedule XXI, Column H",{"$f":"+'Concentration Risk'!D81","v":0},{"$f":"+'Concentration Risk'!E81","v":0.25},0,null,null,0]
[null,"BSCR Rating 7","Schedule XXI, Column H",{"$f":"+'Concentration Risk'!D82","v":0},{"$f":"+'Concentration Risk'!E82","v":0.35},0,null,null,0]
[null,"BSCR Rating 8","Schedule XXI, Column H",{"$f":"+'Concentration Risk'!D83","v":0},{"$f":"+'Concentration Risk'!E83","v":0.35},0,null,null,0]
[]
[null,"(f)  SUBTOTAL - PREFERRED SHARES",null,{"$f":"SUM(D246:D254)","v":0},null,{"$f":"SUM(F246:F254)","v":0},null,null,{"$f":"SUM(I246:I254)","v":0}]
[]
[null,"(g) Mortgage Loans"]
[null,"Insured/Guaranteed Mortgages","Schedule XXI, Column H",{"$f":"+'Concentration Risk'!D88","v":0},{"$f":"+'Concentration Risk'!E88","v":3.0000000000000001E-3},{"$f":"MAX(0,(D259*E259))","v":0},null,null,{"$f":"MAX(0,IF(H259=\"\",D259*E259,D259*H259))","v":0}]
[null,"Other Commercial and Farm Mortgages","Schedule XXI, Column H",{"$f":"+'Concentration Risk'!D89","v":0},{"$f":"+'Concentration Risk'!E89","v":0.05},{"$f":"MAX(0,(D260*E260))","v":0},null,null,{"$f":"MAX(0,IF(H260=\"\",D260*E260,D260*H260))","v":0}]
[null,"Other Residential Mortgages","Schedule XXI, Column H",{"$f":"+'Concentration Risk'!D90","v":0},{"$f":"+'Concentration Risk'!E90","v":1.4999999999999999E-2},{"$f":"MAX(0,(D261*E261))","v":0},null,null,{"$f":"MAX(0,IF(H261=\"\",D261*E261,D261*H261))","v":0}]
[null,"Mortgages Not In Good Standing","Schedule XXI, Column H",{"$f":"+'Concentration Risk'!D91","v":0},{"$f":"+'Concentration Risk'!E91","v":0.25},{"$f":"MAX(0,(D262*E262))","v":0},null,null,{"$f":"MAX(0,IF(H262=\"\",D262*E262,D262*H262))","v":0}]
[]
[null,"(g)  SUBTOTAL - MORTGAGE LOANS",null,{"$f":"SUM(D259:D262)","v":0},null,{"$f":"SUM(F259:F262)","v":0},null,null,{"$f":"SUM(I259:I262)","v":0}]
[]
[null,"(h) Other Asset Classes"]
[null,"Common Stock and Mutual Funds","Schedule XXI, Column H",{"$f":"+'Concentration Risk'!D96","v":0},{"$f":"+'Concentration Risk'!E96","v":0.14399999999999999},{"$f":"MAX(0,(D267*E267))","v":0},null,null,{"$f":"MAX(0,IF(H267=\"\",D267*E267,D267*H267))","v":0}]
[null,"Other Investments","Schedule XXI, Column H",{"$f":"+'Concentration Risk'!D97","v":0},{"$f":"+'Concentration Risk'!E97","v":0.2},0,null,null,0]
[null,"Investment in Affiliates – Unregulated entities that conduct ancillary services",null,{"$f":"+'Concentration Risk'!D98","v":0},{"$f":"+'Concentration Risk'!E98","v":0.05},0,null,null,0]
[null,"Investment in Affiliates - Unregulated non-financial operating entities",null,{"$f":"+'Concentration Risk'!D99","v":0},{"$f":"+'Concentration Risk'!E99","v":0.2},0,null,null,0]
[null,"Investment in Affiliates - Unregulated financial operating entities",null,{"$f":"+'Concentration Risk'!D100","v":0},{"$f":"+'Concentration Risk'!E100","v":0.55000000000000004},0,null,null,0]
[null,"Investment in Affiliates - Regulated non-insurance financial operating entities",null,{"$f":"+'Concentration Risk'!D101","v":0},{"$f":"+'Concentration Risk'!E101","v":0.55000000000000004},0,null,null,0]
[null,"Investment in Affiliates - Regulated insurance financial operating entities",null,{"$f":"+'Concentration Risk'!D102","v":0},{"$f":"+'Concentration Risk'!E102","v":0.2},0,null,null,0]
[null,"Advances to Affiliates - ","Schedule XXI, Column H",{"$f":"+'Concentration Risk'!D103","v":0},{"$f":"+'Concentration Risk'!E103","v":0.05},0,null,null,0]
[null,"Policy Loans","Schedule XXI, Column H",{"$f":"+'Concentration Risk'!D104","v":0},{"$f":"+'Concentration Risk'!E104","v":0},0,null,null,0]
[null,"Real Estate: Occupied by company","Schedule XXI, Column H",{"$f":"+'Concentration Risk'!D105","v":0},{"$f":"+'Concentration Risk'!E105","v":0.1},0,null,null,0]
[null,"Real Estate: Other properties","Schedule XXI, Column H",{"$f":"+'Concentration Risk'!D106","v":0},{"$f":"+'Concentration Risk'!E106","v":0.2},0,null,null,0]
[null,"Collateral Loans","Schedule XXI, Column H",{"$f":"+'Concentration Risk'!D107","v":0},{"$f":"+'Concentration Risk'!E107","v":0.05},0,null,null,0]
[]
[null,"(h)  SUBTOTAL - OTHER CONCENTRATION RISK",null,{"$f":"SUM(D267:D279)","v":0},null,{"$f":"SUM(F267:F279)","v":0},null,null,{"$f":"SUM(I267:I279)","v":0}]
[]
[null,"TOTAL CONCENTRATION RISK",null,{"$f":"D191+D204+D217+D230+D243+D256+D264+D280","v":0},null,{"$f":"F191+F204+F217+F230+F243+F256+F264+F280","v":0},null,null,{"$f":"I191+I204+I217+I230+I243+I256+I264+I280","v":0}]
[]
[null,null,null,null,"STANDARD","STANDARD",null,"USER","USER"]
[null,"TYPE OF ",null,"ASSET","CAPITAL","REQUIRED",null,"CAPITAL","REQUIRED"]
[null,"DEBTOR","STATEMENT SOURCE","VALUE","FACTOR","CAPITAL",null,"FACTOR","CAPITAL"]
[]
[null,"(a)  Accounts and Premiums Receivable",null,"(1) ","(2)","(1) x (2)",null,"(3)","(1) x (3)"]
[]
[null,"In Course of Collection","Form 4EBS, Line (10a)",{"$f":"+'Form 4EBS'!F59","v":0},{"$f":"+'Credit Risk'!E11","v":0.05},{"$f":"IF(D290<0,0,D290*E290)","v":0},null,null,{"$f":"MAX(0,IF(H290=\"\",E290*D290,D290*H290))","v":0}]
[null,"Receivables from retrocessional contracts                            Less: Collateralized Balances","Form 4EBS, Line (10c), Notes to Form 4EBS, \nLine (10)",{"$f":"+'Form 4EBS'!F60-'Form 4EBS'!F196","v":0},{"$f":"+'Credit Risk'!E12","v":0.1},{"$f":"(D291*E291)","v":0},null,null,{"$f":"IF(H291=\"\",E291*D291,D291*H291)","v":0}]
[]
[null,"(a)  SUBTOTAL - ACCOUNTS AND PREMIUMS RECEIVABLE",null,{"$f":"SUM(D290:D291)","v":0},null,{"$f":"IF(SUM(F290:F291)>=0,SUM(F290:F291),0)","v":0},null,null,{"$f":"IF(SUM(I290:I291)>=0,SUM(I290:I291),0)","v":0}]
[]
[null,"(b)  All Other Receivables"]
[]
[null,"Accrued Investment Income","Form 4EBS, Line (9)",{"$f":"+'Form 4EBS'!F56","v":0},{"$f":"+'Credit Risk'!E18","v":2.5000000000000001E-2},{"$f":"IF(D297<0,0,D297*E297)","v":0},null,null,{"$f":"MAX(0,IF(H297=\"\",E297*D297,D297*H297))","v":0}]
[null,"Advances to Affiliates","Form 4EBS, Line (4g)",{"$f":"+'Form 4EBS'!F39","v":0},{"$f":"+'Credit Risk'!E19","v":0.05},{"$f":"IF(D298<0,0,D298*E298)","v":0},null,null,{"$f":"MAX(0,IF(H298=\"\",E298*D298,D298*H298))","v":0}]
[null,"Policy Loans","Form 4EBS, Line (6)",{"$f":"+'Form 4EBS'!F47","v":0},{"$f":"+'Credit Risk'!E20","v":0},{"$f":"IF(D299<0,0,D299*E299)","v":0},null,null,{"$f":"MAX(0,IF(H299=\"\",E299*D299,D299*H299))","v":0}]
[]
[null,"(b)  SUBTOTAL - ALL OTHER RECEIVABLES",null,{"$f":"SUM(D297:D299)","v":0},null,{"$f":"IF(SUM(F297:F299)>=0,SUM(F297:F299),0)","v":0},null,null,{"$f":"IF(SUM(I297:I299)>=0,SUM(I297:I299),0)","v":0}]
[]
[null,"(c) Particulars of Reinsurance Balances By BSCR Rating"]
[]
[null,"BSCR Rating 0 (Domestic Affiliates)","Schedule XVIII EBS, Column E",{"$f":"+'Schedule XVIII (EBS)'!O87","v":0},{"$f":"+'Credit Risk'!E26","v":0},{"$f":"IF(D305<0,0,D305*E305)","v":0},null,null,{"$f":"MAX(0,IF(H305=\"\",E305*D305,D305*H305))","v":0}]
[null,"BSCR Rating 1","Schedule XVIII EBS, Column E",{"$f":"+'Schedule XVIII (EBS)'!O88","v":0},{"$f":"+'Credit Risk'!E27","v":7.0000000000000001E-3},{"$f":"IF(D306<0,0,D306*E306)","v":0},null,null,0]
[null,"BSCR Rating 2","Schedule XVIII EBS, Column E",{"$f":"+'Schedule XVIII (EBS)'!O89","v":0},{"$f":"+'Credit Risk'!E28","v":1.4999999999999999E-2},0,null,null,0]
[null,"BSCR Rating 3","Schedule XVIII EBS, Column E",{"$f":"+'Schedule XVIII (EBS)'!O90","v":0},{"$f":"+'Credit Risk'!E29","v":3.5000000000000003E-2},0,null,null,0]
[null,"BSCR Rating 4","Schedule XVIII EBS, Column E",{"$f":"+'Schedule XVIII (EBS)'!O91","v":0},{"$f":"+'Credit Risk'!E30","v":7.0000000000000007E-2},0,null,null,0]
[null,"BSCR Rating 5","Schedule XVIII EBS, Column E",{"$f":"+'Schedule XVIII (EBS)'!O92","v":0},{"$f":"+'Credit Risk'!E31","v":0.12},0,null,null,0]
[null,"BSCR Rating 6","Schedule XVIII EBS, Column E",{"$f":"+'Schedule XVIII (EBS)'!O93","v":0},{"$f":"+'Credit Risk'!E32","v":0.2},0,null,null,0]
[null,"BSCR Rating 7","Schedule XVIII EBS, Column E",{"$f":"+'Schedule XVIII (EBS)'!O94","v":0},{"$f":"+'Credit Risk'!E33","v":0.27},0,null,null,0]
[null,"BSCR Rating 8","Schedule XVIII EBS, Column E",{"$f":"+'Schedule XVIII (EBS)'!O95","v":0},{"$f":"+'Credit Risk'!E34","v":0.35},0,null,null,0]
[]
[null,"Total",null,{"$f":"SUM(D305:D314)","v":0},null,{"$f":"SUM(F305:F314)","v":0},null,null,{"$f":"SUM(I305:I314)","v":0}]
[]
[null,"Less: Diversification Adjustment at 40%",null,null,null,{"$f":"SUM(F305:F313)*-('Schedule XVIII (EBS)'!O104)","v":0},null,null,{"$f":"SUM(I305:I313)*-('Schedule XVIII (EBS)'!O104)","v":0}]
[]
[null,"(c)  SUBTOTAL - PARTICULARS OF REINSURANCE BALANCES",null,{"$f":"SUM(D305:D313)","v":0},null,{"$f":"IF(SUM(F305:F313,F317)>=0,SUM(F305:F313,F317),0)","v":0},null,null,{"$f":"IF(SUM(I305:I313,I317)>=0,SUM(I305:I313,I317),0)","v":0}]
[]
[null,"(d)  TOTAL CREDIT RISK  [ (a) + (b) + (c) ]",null,{"$f":"D293+D301+D319","v":0},null,{"$f":"F293+F301+F319","v":0},null,null,{"$f":"I293+I301+I319","v":0}]
[]
[null,null,null,null,"STANDARD","STANDARD",null,"USER","USER"]
[null,"TYPE OF ",null,"ASSET","CAPITAL","REQUIRED",null,"CAPITAL","REQUIRED"]
[null,"INTEREST RATE/LIQUIDITY RISK","STATEMENT SOURCE","VALUE","FACTOR","CAPITAL",null,"FACTOR","CAPITAL"]
[]
[null,"Known","Sch II EBS & Sch IIA EBS, Line 10, Column 9, Line 21, Column 3, Line 26, Column 1",{"$f":"'Interest Rate-Liquidity Risk'!I11","v":0},{"$f":"2%*MAX(1,ABS('Schedule V'!H15))*+'Schedule V'!H20*(1-'Interest Rate-Liquidity Risk'!L31)","v":0},{"$f":"D327*E327","v":0},null,null,{"$f":"MAX(0,IF(H327=\"\",E327*D327,D327*H327))","v":0}]
[null,"Unknown","Sch II EBS & Sch IIA EBS, Line 10, Column 9, Line 21, Column 3, Line 26, Column 1",{"$f":"'Interest Rate-Liquidity Risk'!I12","v":0},{"$f":"2%*2*(1-+'Schedule V'!H20)","v":0.04},{"$f":"D328*E328","v":0},null,null,{"$f":"MAX(0,IF(H328=\"\",E328*D328,D328*H328))","v":0}]
[]
[null,"TOTAL INTEREST RATE / LIQUIDITY RISK",null,{"$f":"SUM(D327:D328)","v":0},null,{"$f":"SUM(F327:F328)","v":0},null,null,{"$f":"SUM(I327:I328)","v":0}]
[]
[null,null,null,null,null,"STANDARD",null,"USER","USER"]
[null,null,null,"Net Amount of Risk",null,"REQUIRED",null,"CAPITAL","REQUIRED"]
[null,"Mortality","Statement Source","Adjustable","Non-Adjust","CAPITAL",null,"FACTOR","CAPITAL"]
[]
[null,"Mortality","Sch VII EBS, Line 1, Column (9) and Sch VII EBS, Line 1, Column (10)",{"$f":"'Schedule VII (EBS)'!H10","v":0},{"$f":"'Schedule VII (EBS)'!I10","v":0},{"$f":"(IF(D336>1000000,1.985*1000000,1.985*D336)/1000)+(IF(D336<1000000,0,IF(D336>5000000,0.9*4000000,0.9*(D336-1000000)))/1000)+(IF(D336<5000000,0,IF(D336>10000000,0.72*5000000,0.72*(D336-5000000)))/1000)+(IF(D336<10000000,0,IF(D336>50000000,0.645*40000000,0.645*(D336-10000000)))/1000)+(IF(D336<50000000,0,0.565*(D336-50000000))/1000)+(IF(E336>1000000,3.97*1000000,3.97*E336)/1000)+(IF(E336<1000000,0,IF(E336>5000000,1.8*4000000,1.8*(E336-1000000)))/1000)+(IF(E336<5000000,0,IF(E336>10000000,1.44*5000000,1.44*(E336-5000000)))/1000)+(IF(E336<10000000,0,IF(E336>50000000,1.29*40000000,1.29*(E336-10000000)))/1000)+(IF(E336<50000000,0,1.13*(E336-50000000))/1000)","v":0},null,null,{"$f":"IF(H336=\"\",F336,(D336+E336)*H336)","v":0}]
[]
[null,null,null,null,null,"STANDARD",null,"USER","USER"]
[null,null,null,"Net Annual Premium",null,"REQUIRED",null,"CAPITAL","REQUIRED"]
[null,"Morbidity","Statement Source","<2 years",">2 years","CAPITAL",null,"FACTOR","CAPITAL"]
[]
[null,"Critical Illness","Sch VII EBS, Line 2, Column (9) and Sch VII EBS, Line 2, Column (10)",{"$f":"'Schedule VII (EBS)'!H11","v":0},{"$f":"'Schedule VII (EBS)'!I11","v":0},{"$f":"(IF(D342>1000000,5.955*1000000,5.955*D342)/1000)+(IF(D342<1000000,0,IF(D342>5000000,2.7*4000000,2.7*(D342-1000000)))/1000)+(IF(D342<5000000,0,IF(D342>10000000,2.16*5000000,2.16*(D342-5000000)))/1000)+(IF(D342<10000000,0,IF(D342>50000000,1.935*40000000,1.935*(D342-10000000)))/1000)+(IF(D342<50000000,0,1.695*(D342-50000000))/1000)+(IF(E342>1000000,11.91*1000000,11.91*E342)/1000)+(IF(E342<1000000,0,IF(E342>5000000,5.4*4000000,5.4*(E342-1000000)))/1000)+(IF(E342<5000000,0,IF(E342>10000000,4.32*5000000,4.32*(E342-5000000)))/1000)+(IF(E342<10000000,0,IF(E342>50000000,3.87*40000000,3.87*(E342-10000000)))/1000)+(IF(E342<50000000,0,3.39*(E342-50000000))/1000)","v":0},null,null,{"$f":"IF(H342=\"\",F342,(D342+E342)*H342)","v":0}]
[]
[null,"Dis. Inc :Claim in Pymnt (1)","Schedule VII EBS, Line 9, Column (7)",{"$f":"'Schedule VII (EBS)'!F38","v":0},null,{"$f":"D344*7%","v":0},null,null,{"$f":"IF(H344=\"\",F344,D344*H344)","v":0}]
[null,"Dis. Inc :Claim in Pymnt (2)","Schedule VII EBS, Line 10, Column (7)",{"$f":"'Schedule VII (EBS)'!F39","v":0},null,{"$f":"D345*10%","v":0},null,null,{"$f":"IF(H345=\"\",F345,D345*H345)","v":0}]
[]
[null,"Disability Income: active lives (including waiver of premium and long-term care)"]
[null,"< = 1 Year","Sch VII EBS, Line 7(a), Column (9) and Sch VII EBS, Line 7(a), Column (10)",{"$f":"'Schedule VII (EBS)'!H33","v":0},{"$f":"'Schedule VII (EBS)'!I33","v":0},{"$f":"D348*9%+E348*12%","v":0},null,null,{"$f":"IF(H348=\"\",F348,(D348+E348)*H348)","v":0}]
[null,"1 - 5 years","Sch VII EBS, Line 7(b), Column (9) and Sch VII EBS, Line 7(b), Column (10)",{"$f":"'Schedule VII (EBS)'!H34","v":0},{"$f":"'Schedule VII (EBS)'!I34","v":0},{"$f":"D349*15%+E349*20%","v":0},null,null,{"$f":"IF(H349=\"\",F349,(D349+E349)*H349)","v":0}]
[null,"> 5 years","Sch VII EBS, Line 7(c), Column (9) and Sch VII EBS, Line 7(c), Column (10)",{"$f":"'Schedule VII (EBS)'!H35","v":0},{"$f":"'Schedule VII (EBS)'!I35","v":0},{"$f":"D350*22.5%+E350*30%","v":0},null,null,{"$f":"IF(H350=\"\",F350,(D350+E350)*H350)","v":0}]
[]
[null,"Other Accident & Sickness","Schedule VII EBS, Line 8, Column (11)",{"$f":"'Schedule VII (EBS)'!J37","v":0},null,{"$f":"D352*12%","v":0},null,null,{"$f":"IF(H352=\"\",F352,D352*H352)","v":0}]
[]
[null,null,"Bermuda EBS Best Estimate Provision on Schedule VII",null,null,"STANDARD",null,"USER","USER"]
[null,null,null,null,"CAPITAL","REQUIRED",null,"CAPITAL","REQUIRED"]
[null,"Longevity",null,null,"FACTOR","CAPITAL",null,"FACTOR","CAPITAL"]
[]
[null,"Longevity Risk (immediate pay-out annuities, contingent annuities, pension pay-outs)"]
[null,"(a) 0 - 55","Schedule VII EBS, Line 3(a), Column (7)",{"$f":"+'Schedule VII (EBS)'!F14","v":0},{"$f":"+'LT Insurance Risk'!L26","v":0.02},{"$f":"D359*E359","v":0},null,null,{"$f":"IF(H359=\"\",F359,(D359)*H359)","v":0}]
[null,"(b) 56 - 65","Schedule VII EBS, Line 3(b), Column (7)",{"$f":"+'Schedule VII (EBS)'!F15","v":0},{"$f":"+'LT Insurance Risk'!L27","v":0.03},{"$f":"D360*E360","v":0},null,null,{"$f":"IF(H360=\"\",F360,(D360)*H360)","v":0}]
[null,"(c) 66 - 70","Schedule VII EBS, Line 3(c), Column (7)",{"$f":"+'Schedule VII (EBS)'!F16","v":0},{"$f":"+'LT Insurance Risk'!L28","v":0.04},{"$f":"D361*E361","v":0},null,null,0]
[null,"(d) 71 - 80","Schedule VII EBS, Line 3(d), Column (7)",{"$f":"+'Schedule VII (EBS)'!F17","v":0},{"$f":"+'LT Insurance Risk'!L29","v":0.05},{"$f":"D362*E362","v":0},null,null,0]
[null,"(e) 81+","Schedule VII EBS, Line 3(e), Column (7)",{"$f":"+'Schedule VII (EBS)'!F18","v":0},{"$f":"+'LT Insurance Risk'!L30","v":0.06},{"$f":"D363*E363","v":0},null,null,0]
[]
[null,"Longevity (deferred pay-out annuities, future contingent annuities, future pension pay-outs)"]
[null,"(a) 0 - 55","Schedule VII EBS, Line 4(a), Column (7)",{"$f":"+'Schedule VII (EBS)'!F22","v":0},{"$f":"+'LT Insurance Risk'!L33","v":0.02},{"$f":"D366*E366","v":0},null,null,{"$f":"IF(H366=\"\",F366,(D366)*H366)","v":0}]
[null,"(b) 56 - 60","Schedule VII EBS, Line 4(b), Column (7)",{"$f":"+'Schedule VII (EBS)'!F23","v":0},{"$f":"+'LT Insurance Risk'!L34","v":0.03},0,null,null,0]
[null,"(c) 61 - 65","Schedule VII EBS, Line 4(c), Column (7)",{"$f":"+'Schedule VII (EBS)'!F24","v":0},{"$f":"+'LT Insurance Risk'!L35","v":0.04},0,null,null,0]
[null,"(d) 66 - 70","Schedule VII EBS, Line 4(d), Column (7)",{"$f":"+'Schedule VII (EBS)'!F25","v":0},{"$f":"+'LT Insurance Risk'!L36","v":0.05},0,null,null,0]
[null,"(e) 71 - 75","Schedule VII EBS, Line 4(e), Column (7)",{"$f":"+'Schedule VII (EBS)'!F26","v":0},{"$f":"+'LT Insurance Risk'!L37","v":0.06},0,null,null,0]
[null,"(f) 76+","Schedule VII EBS, Line 4(f), Column (7)",{"$f":"+'Schedule VII (EBS)'!F27","v":0},{"$f":"+'LT Insurance Risk'!L38","v":7.0000000000000007E-2},0,null,null,0]
[]
[null," - Part (A) Removes any Longevity Swap Capital Requirement that has been included in the Standard Longevity Capital Requirement",null,null,null,null,null,"ACTUAL"]
[null,null,"BSCR ADJUSTED RESERVE for Regular Longevity Risk Business only (excluding Longevity Swaps)",null,"CAPITAL","CAPITAL",null,"CAPITAL"]
[null,"Longevity Capital Adj",null,null,"FACTOR","FROM ABOVE",null,"REQUIRED","ADJUSTMENT"]
[]
[null,"Longevity Risk (immediate pay-out annuities, contingent annuities, pension pay-outs)"]
[null,"(a) 0 - 55",null,null,{"$f":"IF(H359=\"\",'LT Insurance Risk'!L26,H359)","v":0.02},{"$f":"I359","v":0},null,{"$f":"MAX(0,IF(D378=\"\",0,E378*D378))","v":0},{"$f":"IF(D378=\"\",0,H378-F378)","v":0}]
[null,"(b) 56 - 65",null,null,{"$f":"IF(H360=\"\",'LT Insurance Risk'!L27,H360)","v":0.03},{"$f":"I360","v":0},null,{"$f":"MAX(0,IF(D379=\"\",0,E379*D379))","v":0},{"$f":"IF(D379=\"\",0,H379-F379)","v":0}]
[null,"(c) 66 - 70",null,null,{"$f":"IF(H361=\"\",'LT Insurance Risk'!L28,H361)","v":0.04},0,null,0,0]
[null,"(d) 71 - 80",null,null,{"$f":"IF(H362=\"\",'LT Insurance Risk'!L29,H362)","v":0.05},0,null,0,0]
[null,"(e) 81+",null,null,{"$f":"IF(H363=\"\",'LT Insurance Risk'!L30,H363)","v":0.06},0,null,0,0]
[null,null,null,null,{"$f":"IF(H364=\"\",'LT Insurance Risk'!L31,H364)","v":0}]
[null,"Longevity (deferred pay-out annuities, future contingent annuities, future pension pay-outs)"]
[null,"(a) 0 - 55",null,null,{"$f":"IF(H366=\"\",'LT Insurance Risk'!L33,H366)","v":0.02},0,null,0,0]
[null,"(b) 56 - 60",null,null,{"$f":"IF(H367=\"\",'LT Insurance Risk'!L34,H367)","v":0.03},0,null,0,0]
[null,"(c) 61 - 65",null,null,{"$f":"IF(H368=\"\",'LT Insurance Risk'!L35,H368)","v":0.04},0,null,0,0]
[null,"(d) 66 - 70",null,null,{"$f":"IF(H369=\"\",'LT Insurance Risk'!L36,H369)","v":0.05},0,null,0,0]
[null,"(e) 71 - 75",null,null,{"$f":"IF(H370=\"\",'LT Insurance Risk'!L37,H370)","v":0.06},0,null,0,0]
[null,"(f) 76+",null,null,{"$f":"IF(H371=\"\",'LT Insurance Risk'!L38,H371)","v":7.0000000000000007E-2},0,null,{"$f":"MAX(0,IF(D390=\"\",0,E390*D390))","v":0},0]
[]
[null," - Part (B) Determines Appropriate Capital Requirment to include for Longevity Swaps"]
[null,null,"Bermuda EBS Best Estimate Provision for the Floating Leg of Longevity Swap",null,null,null,null,"CAPITAL"]
[null,"Longevity Capital Adj",null,null,null,null,null,"FACTOR","ADJUSTMENT"]
[]
[null,"Longevity Risk (immediate pay-out annuities, contingent annuities, pension pay-outs)"]
[null,"(a) 0 - 55",null,null,null,null,null,{"$f":"+'LT Insurance Risk'!L26","v":0.02},{"$f":"IF(D397=\"\",0,H397*D397)","v":0}]
[null,"(b) 56 - 65",null,null,null,null,null,{"$f":"+'LT Insurance Risk'!L27","v":0.03},{"$f":"IF(D398=\"\",0,H398*D398)","v":0}]
[null,"(c) 66 - 70",null,null,null,null,null,{"$f":"+'LT Insurance Risk'!L28","v":0.04},0]
[null,"(d) 71 - 80",null,null,null,null,null,{"$f":"+'LT Insurance Risk'!L29","v":0.05},0]
[null,"(e) 81+",null,null,null,null,null,{"$f":"+'LT Insurance Risk'!L30","v":0.06},0]
[null,null,null,null,null,null,null,{"$f":"+'LT Insurance Risk'!L50","v":"% of Annual Premiums"}]
[null,"Longevity (deferred pay-out annuities, future contingent annuities, future pension pay-outs)"]
[null,"(a) 0 - 55",null,null,null,null,null,{"$f":"+'LT Insurance Risk'!L33","v":0.02},{"$f":"IF(D404=\"\",0,H404*D404)","v":0}]
[null,"(b) 56 - 60",null,null,null,null,null,{"$f":"+'LT Insurance Risk'!L34","v":0.03},0]
[null,"(c) 61 - 65",null,null,null,null,null,{"$f":"+'LT Insurance Risk'!L35","v":0.04},0]
[null,"(d) 66 - 70",null,null,null,null,null,{"$f":"+'LT Insurance Risk'!L36","v":0.05},0]
[null,"(e) 71 - 75",null,null,null,null,null,{"$f":"+'LT Insurance Risk'!L37","v":0.06},0]
[null,"(f) 76+",null,null,null,null,null,{"$f":"+'LT Insurance Risk'!L38","v":7.0000000000000007E-2},0]
[]
[null,null,null,null,null,"STANDARD",null,"USER","USER"]
[null,null,null,null,null,"REQUIRED",null,"CAPITAL","REQUIRED"]
[null,null,"Statement Source","Net Annual Premium",null,"CAPITAL",null,"FACTOR","CAPITAL"]
[]
[null,"Stop Loss","Schedule VII EBS, Line 14, Column (11)",{"$f":"'Schedule VII (EBS)'!J43","v":0},{"$f":"+'LT Insurance Risk'!L55","v":0.5},{"$f":"D415*E415","v":0},null,null,{"$f":"IF(H415=\"\",F415,D415*H415)","v":0}]
[]
[null,"Rider","Schedule VII EBS, Line 15, Column (11)",{"$f":"'Schedule VII (EBS)'!J44","v":0},{"$f":"+'LT Insurance Risk'!L56","v":0.25},{"$f":"D417*E417","v":0},null,null,{"$f":"IF(H417=\"\",F417,D417*H417)","v":0}]
[]
[]
[null,null,null,null,"STANDARD","STANDARD",null,"USER","USER"]
[null,"LINE OF LONG-TERM BUSINESS",null,null,"CAPITAL","REQUIRED",null,"CAPITAL","REQUIRED"]
[null,null,"STATEMENT SOURCE","NET RESERVES","FACTOR","CAPITAL",null,"FACTOR","CAPITAL"]
[]
[null,"Mortality","Schedule VII EBS, Line 1, Column (7)",{"$f":"'Schedule VII (EBS)'!F10","v":0},{"$f":"+'LT Other Insurance Risk'!G10","v":0.02},{"$f":"IF(D424<0,0,D424*E424)","v":0},null,null,{"$f":"IF(H424=\"\",E424*D424,D424*H424)","v":0}]
[null,"Critical Illness","Schedule VII EBS, Line 2, Column (7)",{"$f":"'Schedule VII (EBS)'!F11","v":0},{"$f":"+'LT Other Insurance Risk'!G11","v":0.02},{"$f":"IF(D425<0,0,D425*E425)","v":0},null,null,0]
[null,"Longevity (1)","Schedule VII EBS, Line 3(f), Column (7)",{"$f":"'Schedule VII (EBS)'!F19","v":0},{"$f":"+'LT Other Insurance Risk'!G12","v":5.0000000000000001E-3},0,null,null,0]
[null,"Longevity (2)","Schedule VII EBS, Line 4(g), Column (7)",{"$f":"+'Schedule VII (EBS)'!F28","v":0},{"$f":"+'LT Other Insurance Risk'!G13","v":5.0000000000000001E-3},0,null,null,0]
[null,"Annuities certain only","Schedule VII EBS, Line 5, Column (7)",{"$f":"+'Schedule VII (EBS)'!F29","v":0},{"$f":"+'LT Other Insurance Risk'!G14","v":5.0000000000000001E-3},0,null,null,0]
[null,"Deferred accumulation annuities","Schedule VII EBS, Line 6, Column (7)",{"$f":"+'Schedule VII (EBS)'!F30","v":0},{"$f":"+'LT Other Insurance Risk'!G15","v":5.0000000000000001E-3},{"$f":"IF(D429<0,0,D429*E429)","v":0},null,null,0]
[null,"Disability Income: active lives","Schedule VII EBS, Line 7, Column (7)",{"$f":"'Schedule VII (EBS)'!F36","v":0},{"$f":"+'LT Other Insurance Risk'!G16","v":0.02},0,null,null,0]
[null,"Disability: accident & sickness","Schedule VII EBS, Line 8, Column (7)",{"$f":"'Schedule VII (EBS)'!F37","v":0},{"$f":"+'LT Other Insurance Risk'!G17","v":0.02},0,null,null,0]
[null,"Disability claims in payment (1)","Schedule VII EBS, Line 9, Column (7)",{"$f":"'Schedule VII (EBS)'!F38","v":0},{"$f":"+'LT Other Insurance Risk'!G18","v":5.0000000000000001E-3},0,null,null,0]
[null,"Disability claims in payment (2)","Schedule VII EBS, Line 10, Column (7)",{"$f":"'Schedule VII (EBS)'!F39","v":0},{"$f":"+'LT Other Insurance Risk'!G19","v":5.0000000000000001E-3},0,null,null,0]
[null,"Group Life","Schedule VII EBS, Line 11, Column (7)",{"$f":"'Schedule VII (EBS)'!F40","v":0},{"$f":"+'LT Other Insurance Risk'!G20","v":5.0000000000000001E-3},0,null,null,0]
[null,"Group Disability","Schedule VII EBS, Line 12, Column (7)",{"$f":"'Schedule VII (EBS)'!F41","v":0},{"$f":"+'LT Other Insurance Risk'!G21","v":5.0000000000000001E-3},0,null,null,0]
[null,"Group Health","Schedule VII EBS, Line 13, Column (7)",{"$f":"'Schedule VII (EBS)'!F42","v":0},{"$f":"+'LT Other Insurance Risk'!G22","v":5.0000000000000001E-3},0,null,null,0]
[null,"Stop Loss","Schedule VII EBS, Line 14, Column (7)",{"$f":"'Schedule VII (EBS)'!F43","v":0},{"$f":"+'LT Other Insurance Risk'!G23","v":0.02},0,null,null,0]
[null,"Rider","Schedule VII EBS, Line 15, Column (7)",{"$f":"'Schedule VII (EBS)'!F44","v":0},{"$f":"+'LT Other Insurance Risk'!G24","v":0.02},0,null,null,0]
[]
[null,"REQUIRED CAPITAL FOR OTHER INSURANCE RISK",null,{"$f":"IF(SUM(D424:D438)>=0,(SUM(D424:D438)),0)","v":0},null,{"$f":"IF(SUM(F424:F438)>=0,(SUM(F424:F438)),0)","v":0},null,null,{"$f":"IF(SUM(I424:I438)>=0,(SUM(I424:I438)),0)","v":0}]
[]
[null,null,"Volatility \n(0%-10.0%]","Volatility 10.0% - 15.0%","Volatility >15.0%","STANDARD REQUIRED CAPITAL",null,"USER CAPITAL FACTOR","USER REQUIRED CAPITAL"]
[null,"Variable Annuity Guarantee Risk"]
[]
[null,"GMDB - Guar. Val In Money",{"$f":"'Schedule VIII (EBS)'!H13","v":0},{"$f":"'Schedule VIII (EBS)'!J13","v":0},{"$f":"'Schedule VIII (EBS)'!L13","v":0},{"$f":"(C445*0.25%)+(D445*0.5%)+(E445*0.75%)","v":0},null,null,{"$f":"IF(H445=\"\",F445,(C445+D445+E445)*H445)","v":0}]
[null,"GMDB - Net Value at Risk",{"$f":"'Schedule VIII (EBS)'!N13","v":0},{"$f":"+'Schedule VIII (EBS)'!P13","v":0},{"$f":"+'Schedule VIII (EBS)'!R13","v":0},{"$f":"(C446*4%)+(D446*8.5%)+(E446*13%)","v":0},null,null,{"$f":"IF(H446=\"\",F446,(C446+D446+E446)*H446)","v":0}]
[null,"GMDB - Guar. Val Out Money",{"$f":"'Schedule VIII (EBS)'!H31","v":0},{"$f":"'Schedule VIII (EBS)'!J31","v":0},{"$f":"'Schedule VIII (EBS)'!L31","v":0},{"$f":"(C447*0.25%)+(D447*0.5%)+(E447*0.75%)","v":0},null,null,{"$f":"IF(H447=\"\",F447,(C447+D447+E447)*H447)","v":0}]
[null,"GMDB - Total",null,null,null,{"$f":"F447+(MAX(F445,F446))","v":0},null,null,{"$f":"I447+(MAX(I445,I446))","v":0}]
[]
[null,"GMDB (2) - Guar. Val In Money",{"$f":"'Schedule VIII (EBS)'!H14","v":0},{"$f":"'Schedule VIII (EBS)'!J14","v":0},{"$f":"'Schedule VIII (EBS)'!L14","v":0},{"$f":"(C450*0.75%)+(D450*1%)+(E450*1.25%)","v":0},null,null,{"$f":"IF(H450=\"\",F450,(C450+D450+E450)*H450)","v":0}]
[null,"GMDB (2) - Net Value at Risk",{"$f":"'Schedule VIII (EBS)'!N14","v":0},{"$f":"+'Schedule VIII (EBS)'!P14","v":0},{"$f":"+'Schedule VIII (EBS)'!R14","v":0},{"$f":"(C451*12%)+(D451*16.5%)+(E451*21%)","v":0},null,null,{"$f":"IF(H451=\"\",F451,(C451+D451+E451)*H451)","v":0}]
[null,"GMDB (2) - Guar. Val Out Money",{"$f":"'Schedule VIII (EBS)'!H32","v":0},{"$f":"'Schedule VIII (EBS)'!J32","v":0},{"$f":"'Schedule VIII (EBS)'!L32","v":0},{"$f":"(C452*0.75%)+(D452*1%)+(E452*1.25%)","v":0},null,null,{"$f":"IF(H452=\"\",F452,(C452+D452+E452)*H452)","v":0}]
[null,"GMDB (2) - Total",null,null,null,{"$f":"F452+(MAX(F450,F451))","v":0},null,null,{"$f":"I452+(MAX(I450,I451))","v":0}]
[]
[null,"GMIB - Guar. Val In Money",{"$f":"'Schedule VIII (EBS)'!H15","v":0},{"$f":"'Schedule VIII (EBS)'!J15","v":0},{"$f":"'Schedule VIII (EBS)'!L15","v":0},{"$f":"(C455*5%)+(D455*6.5%)+(E455*8%)","v":0},null,null,{"$f":"IF(H455=\"\",F455,(C455+D455+E455)*H455)","v":0}]
[null,"GMIB - Net Value at Risk",{"$f":"'Schedule VIII (EBS)'!N15","v":0},{"$f":"+'Schedule VIII (EBS)'!P15","v":0},{"$f":"+'Schedule VIII (EBS)'!R15","v":0},{"$f":"(C456*100%)+(D456*130%)+(E456*160%)","v":0},null,null,{"$f":"IF(H456=\"\",F456,(C456+D456+E456)*H456)","v":0}]
[null,"GMIB - Guar. Val Out Money",{"$f":"'Schedule VIII (EBS)'!H33","v":0},{"$f":"'Schedule VIII (EBS)'!J33","v":0},{"$f":"'Schedule VIII (EBS)'!L33","v":0},{"$f":"(C457*5%)+(D457*6.5%)+(E457*8%)","v":0},null,null,{"$f":"IF(H457=\"\",F457,(C457+D457+E457)*H457)","v":0}]
[null,"GMIB - Total",null,null,null,{"$f":"F457+(MAX(F455,F456))","v":0},null,null,{"$f":"I457+(MAX(I455,I456))","v":0}]
[]
[null,"GMWB - Guar. Val In Money",{"$f":"'Schedule VIII (EBS)'!H16","v":0},{"$f":"'Schedule VIII (EBS)'!J16","v":0},{"$f":"'Schedule VIII (EBS)'!L16","v":0},{"$f":"(C460*3.25%)+(D460*4.25%)+(E460*5%)","v":0},null,null,{"$f":"IF(H460=\"\",F460,(C460+D460+E460)*H460)","v":0}]
[null,"GMWB - Net Value at Risk",{"$f":"'Schedule VIII (EBS)'!N16","v":0},{"$f":"+'Schedule VIII (EBS)'!P16","v":0},{"$f":"+'Schedule VIII (EBS)'!R16","v":0},{"$f":"(C461*60%)+(D461*75%)+(E461*90%)","v":0},null,null,{"$f":"IF(H461=\"\",F461,(C461+D461+E461)*H461)","v":0}]
[null,"GMWB - Guar. Val Out Money",{"$f":"'Schedule VIII (EBS)'!H34","v":0},{"$f":"'Schedule VIII (EBS)'!J34","v":0},{"$f":"'Schedule VIII (EBS)'!L34","v":0},{"$f":"(C462*3.25%)+(D462*4.25%)+(E462*5%)","v":0},null,null,{"$f":"IF(H462=\"\",F462,(C462+D462+E462)*H462)","v":0}]
[null,"GMWB - Total",null,null,null,{"$f":"F462+(MAX(F460,F461))","v":0},null,null,{"$f":"I462+(MAX(I460,I461))","v":0}]
[]
[null,"GEEB - Guar. Val In Money",{"$f":"'Schedule VIII (EBS)'!H17","v":0},{"$f":"'Schedule VIII (EBS)'!J17","v":0},{"$f":"'Schedule VIII (EBS)'!L17","v":0},{"$f":"(C465*0%)+(D465*0.5%)+(E465*1%)","v":0},null,null,{"$f":"IF(H465=\"\",F465,(C465+D465+E465)*H465)","v":0}]
[null,"GEEB - Net Value at Risk",{"$f":"'Schedule VIII (EBS)'!N17","v":0},{"$f":"+'Schedule VIII (EBS)'!P17","v":0},{"$f":"+'Schedule VIII (EBS)'!R17","v":0},{"$f":"(C466*1%)+(D466*9%)+(E466*17%)","v":0},null,null,{"$f":"IF(H466=\"\",F466,(C466+D466+E466)*H466)","v":0}]
[null,"GEEB - Guar. Val Out Money",{"$f":"'Schedule VIII (EBS)'!H35","v":0},{"$f":"'Schedule VIII (EBS)'!J35","v":0},{"$f":"'Schedule VIII (EBS)'!L35","v":0},{"$f":"(C467*0%)+(D467*0.5%)+(E467*1%)","v":0},null,null,{"$f":"IF(H467=\"\",F467,(C467+D467+E467)*H467)","v":0}]
[null,"GEEB - Total",null,null,null,{"$f":"F467+(MAX(F465,F466))","v":0},null,null,{"$f":"I467+(MAX(I465,I466))","v":0}]
[]
[null,"GMAB 0-1 Guar. Val In Money",{"$f":"'Schedule VIII (EBS)'!H19","v":0},{"$f":"'Schedule VIII (EBS)'!J19","v":0},{"$f":"'Schedule VIII (EBS)'!L19","v":0},{"$f":"(C470*3.2%)+(D470*5%)+(E470*9%)","v":0},null,null,{"$f":"IF(H470=\"\",F470,(C470+D470+E470)*H470)","v":0}]
[null,"GMWB 0-1 Net Value at Risk",{"$f":"'Schedule VIII (EBS)'!N19","v":0},{"$f":"+'Schedule VIII (EBS)'!P19","v":0},{"$f":"+'Schedule VIII (EBS)'!R19","v":0},{"$f":"(C471*90%)+(D471*130%)+(E471*250%)","v":0},null,null,{"$f":"IF(H471=\"\",F471,(C471+D471+E471)*H471)","v":0}]
[null,"GMWB 0-1 Guar. Val Out Money",{"$f":"'Schedule VIII (EBS)'!H37","v":0},{"$f":"'Schedule VIII (EBS)'!J37","v":0},{"$f":"'Schedule VIII (EBS)'!L37","v":0},{"$f":"(C472*3.2%)+(D472*5%)+(E472*9%)","v":0},null,null,{"$f":"IF(H472=\"\",F472,(C472+D472+E472)*H472)","v":0}]
[null,"GMWB - Total for 0-1",null,null,null,{"$f":"F472+(MAX(F470,F471))","v":0},null,null,{"$f":"I472+(MAX(I470,I471))","v":0}]
[]
[null,"GMAB 1-2 Guar. Val In Money",{"$f":"'Schedule VIII (EBS)'!H20","v":0},{"$f":"'Schedule VIII (EBS)'!J20","v":0},{"$f":"'Schedule VIII (EBS)'!L20","v":0},{"$f":"(C475*3%)+(D475*5%)+(E475*8.9%)","v":0},null,null,{"$f":"IF(H475=\"\",F475,(C475+D475+E475)*H475)","v":0}]
[null,"GMWB 1-2 Net Value at Risk",{"$f":"'Schedule VIII (EBS)'!N20","v":0},{"$f":"+'Schedule VIII (EBS)'!P20","v":0},{"$f":"+'Schedule VIII (EBS)'!R20","v":0},{"$f":"(C476*80%)+(D476*115%)+(E476*200%)","v":0},null,null,{"$f":"IF(H476=\"\",F476,(C476+D476+E476)*H476)","v":0}]
[null,"GMWB 1-2 Guar. Val Out Money",{"$f":"'Schedule VIII (EBS)'!H38","v":0},{"$f":"'Schedule VIII (EBS)'!J38","v":0},{"$f":"'Schedule VIII (EBS)'!L38","v":0},{"$f":"(C477*3%)+(D477*5%)+(E477*8.9%)","v":0},null,null,{"$f":"IF(H477=\"\",F477,(C477+D477+E477)*H477)","v":0}]
[null,"GMWB - Total for 1-2",null,null,null,{"$f":"F477+(MAX(F475,F476))","v":0},null,null,{"$f":"I477+(MAX(I475,I476))","v":0}]
[]
[null,"GMAB 2-3 Guar. Val In Money",{"$f":"'Schedule VIII (EBS)'!H21","v":0},{"$f":"'Schedule VIII (EBS)'!J21","v":0},{"$f":"'Schedule VIII (EBS)'!L21","v":0},{"$f":"(C480*3%)+(D480*5%)+(E480*8.9%)","v":0},null,null,{"$f":"IF(H480=\"\",F480,(C480+D480+E480)*H480)","v":0}]
[null,"GMWB 2-3 Net Value at Risk",{"$f":"'Schedule VIII (EBS)'!N21","v":0},{"$f":"+'Schedule VIII (EBS)'!P21","v":0},{"$f":"+'Schedule VIII (EBS)'!R21","v":0},{"$f":"(C481*70%)+(D481*105%)+(E481*160%)","v":0},null,null,{"$f":"IF(H481=\"\",F481,(C481+D481+E481)*H481)","v":0}]
[null,"GMWB 2-3 Guar. Val Out Money",{"$f":"'Schedule VIII (EBS)'!H39","v":0},{"$f":"'Schedule VIII (EBS)'!J39","v":0},{"$f":"'Schedule VIII (EBS)'!L39","v":0},{"$f":"(C482*3%)+(D482*5%)+(E482*8.9%)","v":0},null,null,{"$f":"IF(H482=\"\",F482,(C482+D482+E482)*H482)","v":0}]
[null,"GMWB - Total for 2-3",null,null,null,{"$f":"F482+(MAX(F480,F481))","v":0},null,null,{"$f":"I482+(MAX(I480,I481))","v":0}]
[]
[null,"GMAB 3-4 Guar. Val In Money",{"$f":"'Schedule VIII (EBS)'!H22","v":0},{"$f":"'Schedule VIII (EBS)'!J22","v":0},{"$f":"'Schedule VIII (EBS)'!L22","v":0},{"$f":"(C485*2.8%)+(D485*5%)+(E485*8.8%)","v":0},null,null,{"$f":"IF(H485=\"\",F485,(C485+D485+E485)*H485)","v":0}]
[null,"GMWB 3-4 Net Value at Risk",{"$f":"'Schedule VIII (EBS)'!N22","v":0},{"$f":"+'Schedule VIII (EBS)'!P22","v":0},{"$f":"+'Schedule VIII (EBS)'!R22","v":0},{"$f":"(C486*60%)+(D486*95%)+(E486*135%)","v":0},null,null,{"$f":"IF(H486=\"\",F486,(C486+D486+E486)*H486)","v":0}]
[null,"GMWB 3-4 Guar. Val Out Money",{"$f":"'Schedule VIII (EBS)'!H40","v":0},{"$f":"'Schedule VIII (EBS)'!J40","v":0},{"$f":"'Schedule VIII (EBS)'!L40","v":0},{"$f":"(C487*2.8%)+(D487*5%)+(E487*8.8%)","v":0},null,null,{"$f":"IF(H487=\"\",F487,(C487+D487+E487)*H487)","v":0}]
[null,"GMWB - Total for 3-4",null,null,null,{"$f":"F487+(MAX(F485,F486))","v":0},null,null,{"$f":"I487+(MAX(I485,I486))","v":0}]
[]
[null,"GMAB 4-5 Guar. Val In Money",{"$f":"'Schedule VIII (EBS)'!H23","v":0},{"$f":"'Schedule VIII (EBS)'!J23","v":0},{"$f":"'Schedule VIII (EBS)'!L23","v":0},{"$f":"(C490*2.4%)+(D490*4.3%)+(E490*8%)","v":0},null,null,{"$f":"IF(H490=\"\",F490,(C490+D490+E490)*H490)","v":0}]
[null,"GMWB 4-5 Net Value at Risk",{"$f":"'Schedule VIII (EBS)'!N23","v":0},{"$f":"+'Schedule VIII (EBS)'!P23","v":0},{"$f":"+'Schedule VIII (EBS)'!R23","v":0},{"$f":"(C491*55%)+(D491*85%)+(E491*115%)","v":0},null,null,{"$f":"IF(H491=\"\",F491,(C491+D491+E491)*H491)","v":0}]
[null,"GMWB 4-5 Guar. Val Out Money",{"$f":"'Schedule VIII (EBS)'!H41","v":0},{"$f":"'Schedule VIII (EBS)'!J41","v":0},{"$f":"'Schedule VIII (EBS)'!L41","v":0},{"$f":"(C492*2.4%)+(D492*4.3%)+(E492*8%)","v":0},null,null,{"$f":"IF(H492=\"\",F492,(C492+D492+E492)*H492)","v":0}]
[null,"GMWB - Total for 4-5",null,null,null,{"$f":"F492+(MAX(F490,F491))","v":0},null,null,{"$f":"I492+(MAX(I490,I491))","v":0}]
[]
[null,"GMAB 5-6 Guar. Val In Money",{"$f":"'Schedule VIII (EBS)'!H24","v":0},{"$f":"'Schedule VIII (EBS)'!J24","v":0},{"$f":"'Schedule VIII (EBS)'!L24","v":0},{"$f":"(C495*2%)+(D495*3.5%)+(E495*6.8%)","v":0},null,null,{"$f":"IF(H495=\"\",F495,(C495+D495+E495)*H495)","v":0}]
[null,"GMWB 5-6 Net Value at Risk",{"$f":"'Schedule VIII (EBS)'!N24","v":0},{"$f":"+'Schedule VIII (EBS)'!P24","v":0},{"$f":"+'Schedule VIII (EBS)'!R24","v":0},{"$f":"(C496*50%)+(D496*75%)+(E496*100%)","v":0},null,null,{"$f":"IF(H496=\"\",F496,(C496+D496+E496)*H496)","v":0}]
[null,"GMWB 5-6 Guar. Val Out Money",{"$f":"'Schedule VIII (EBS)'!H42","v":0},{"$f":"'Schedule VIII (EBS)'!J42","v":0},{"$f":"'Schedule VIII (EBS)'!L42","v":0},{"$f":"(C497*2%)+(D497*3.5%)+(E497*6.8%)","v":0},null,null,{"$f":"IF(H497=\"\",F497,(C497+D497+E497)*H497)","v":0}]
[null,"GMWB - Total for 5-6",null,null,null,{"$f":"F497+(MAX(F495,F496))","v":0},null,null,{"$f":"I497+(MAX(I495,I496))","v":0}]
[]
[null,"GMAB 6-7 Guar. Val In Money",{"$f":"'Schedule VIII (EBS)'!H25","v":0},{"$f":"'Schedule VIII (EBS)'!J25","v":0},{"$f":"'Schedule VIII (EBS)'!L25","v":0},{"$f":"(C500*1.7%)+(D500*2.8%)+(E500*5.9%)","v":0},null,null,{"$f":"IF(H500=\"\",F500,(C500+D500+E500)*H500)","v":0}]
[null,"GMWB 6-7 Net Value at Risk",{"$f":"'Schedule VIII (EBS)'!N25","v":0},{"$f":"+'Schedule VIII (EBS)'!P25","v":0},{"$f":"+'Schedule VIII (EBS)'!R25","v":0},{"$f":"(C501*45%)+(D501*65%)+(E501*90%)","v":0},null,null,{"$f":"IF(H501=\"\",F501,(C501+D501+E501)*H501)","v":0}]
[null,"GMWB 6-7 Guar. Val Out Money",{"$f":"'Schedule VIII (EBS)'!H43","v":0},{"$f":"'Schedule VIII (EBS)'!J43","v":0},{"$f":"'Schedule VIII (EBS)'!L43","v":0},{"$f":"(C502*1.7%)+(D502*2.8%)+(E502*5.9%)","v":0},null,null,{"$f":"IF(H502=\"\",F502,(C502+D502+E502)*H502)","v":0}]
[null,"GMWB - Total for 6-7",null,null,null,{"$f":"F502+(MAX(F500,F501))","v":0},null,null,{"$f":"I502+(MAX(I500,I501))","v":0}]
[]
[null,"GMAB 7-8 Guar. Val In Money",{"$f":"'Schedule VIII (EBS)'!H26","v":0},{"$f":"'Schedule VIII (EBS)'!J26","v":0},{"$f":"'Schedule VIII (EBS)'!L26","v":0},{"$f":"(C505*1.4%)+(D505*2.1%)+(E505*4.9%)","v":0},null,null,{"$f":"IF(H505=\"\",F505,(C505+D505+E505)*H505)","v":0}]
[null,"GMWB 7-8 Net Value at Risk",{"$f":"'Schedule VIII (EBS)'!N26","v":0},{"$f":"+'Schedule VIII (EBS)'!P26","v":0},{"$f":"+'Schedule VIII (EBS)'!R26","v":0},{"$f":"(C506*40%)+(D506*55%)+(E506*80%)","v":0},null,null,{"$f":"IF(H506=\"\",F506,(C506+D506+E506)*H506)","v":0}]
[null,"GMWB 7-8 Guar. Val Out Money",{"$f":"'Schedule VIII (EBS)'!H44","v":0},{"$f":"'Schedule VIII (EBS)'!J44","v":0},{"$f":"'Schedule VIII (EBS)'!L44","v":0},{"$f":"(C507*1.4%)+(D507*2.1%)+(E507*4.9%)","v":0},null,null,{"$f":"IF(H507=\"\",F507,(C507+D507+E507)*H507)","v":0}]
[null,"GMWB - Total for 7-8",null,null,null,{"$f":"F507+(MAX(F505,F506))","v":0},null,null,{"$f":"I507+(MAX(I505,I506))","v":0}]
[]
[null,"GMAB 8-9 Guar. Val In Money",{"$f":"'Schedule VIII (EBS)'!H27","v":0},{"$f":"'Schedule VIII (EBS)'!J27","v":0},{"$f":"'Schedule VIII (EBS)'!L27","v":0},{"$f":"(C510*1.1%)+(D510*1.7%)+(E510*4.3%)","v":0},null,null,{"$f":"IF(H510=\"\",F510,(C510+D510+E510)*H510)","v":0}]
[null,"GMWB 8-9 Net Value at Risk",{"$f":"'Schedule VIII (EBS)'!N27","v":0},{"$f":"+'Schedule VIII (EBS)'!P27","v":0},{"$f":"+'Schedule VIII (EBS)'!R27","v":0},{"$f":"(C511*35%)+(D511*50%)+(E511*70%)","v":0},null,null,{"$f":"IF(H511=\"\",F511,(C511+D511+E511)*H511)","v":0}]
[null,"GMWB 8-9 Guar. Val Out Money",{"$f":"'Schedule VIII (EBS)'!H45","v":0},{"$f":"'Schedule VIII (EBS)'!J45","v":0},{"$f":"'Schedule VIII (EBS)'!L45","v":0},{"$f":"(C512*1.1%)+(D512*1.7%)+(E512*4.3%)","v":0},null,null,{"$f":"IF(H512=\"\",F512,(C512+D512+E512)*H512)","v":0}]
[null,"GMWB - Total for 8-9",null,null,null,{"$f":"F512+(MAX(F510,F511))","v":0},null,null,{"$f":"I512+(MAX(I510,I511))","v":0}]
[]
[null,"GMAB >9 Guar. Val In Money",{"$f":"'Schedule VIII (EBS)'!H28","v":0},{"$f":"'Schedule VIII (EBS)'!J28","v":0},{"$f":"'Schedule VIII (EBS)'!L28","v":0},{"$f":"(C515*1%)+(D515*1.4%)+(E515*3.9%)","v":0},null,null,{"$f":"IF(H515=\"\",F515,(C515+D515+E515)*H515)","v":0}]
[null,"GMWB >9 Net Value at Risk",{"$f":"'Schedule VIII (EBS)'!N28","v":0},{"$f":"+'Schedule VIII (EBS)'!P28","v":0},{"$f":"+'Schedule VIII (EBS)'!R28","v":0},{"$f":"(C516*30%)+(D516*45%)+(E516*60%)","v":0},null,null,{"$f":"IF(H516=\"\",F516,(C516+D516+E516)*H516)","v":0}]
[null,"GMWB >9 Guar. Val Out Money",{"$f":"'Schedule VIII (EBS)'!H46","v":0},{"$f":"'Schedule VIII (EBS)'!J46","v":0},{"$f":"'Schedule VIII (EBS)'!L46","v":0},{"$f":"(C517*1%)+(D517*1.4%)+(E517*3.9%)","v":0},null,null,{"$f":"IF(H517=\"\",F517,(C517+D517+E517)*H517)","v":0}]
[null,"GMWB - Total for >9",null,null,null,{"$f":"F517+(MAX(F515,F516))","v":0},null,null,{"$f":"I517+(MAX(I515,I516))","v":0}]
[]
[null,"Percentage of Guaranteed Minimum Death Benefit with Multiple Guarantees",null,null,{"$f":"+'Schedule VIII (EBS)'!L50","v":0},{"$f":"IF(E520=0,0,(F448+F453)*(-E520))","v":0},null,null,{"$f":"IF(E520=0,0,(I448+I453)*(-E520))","v":0}]
[null,"Total BSCR-Adjusted Reserves for Variable Annuities",null,null,null,{"$f":"-'Schedule VII (EBS)'!F47","v":0},null,null,{"$f":"-'Schedule VII (EBS)'!F47","v":0}]
[]
[null,"(a) REQUIRED CAPITAL FOR VARIABLE ANNUITY GUARANTEE RISK ",null,null,null,{"$f":"MAX(0,SUM(F448,F453,F458,F463,F468,F473,F478,F483,F488,F493,F498,F503,F508,F513,F518,F520,F521))","v":0},null,null,{"$f":"MAX(0,SUM(I448,I453,I458,I463,I468,I473,I478,I483,I488,I493,I498,I503,I508,I513,I518,I520,I521))","v":0}]
[]
[null,"REQUIRED CAPITAL AND SURPLUS"]
[]
[null,"Fixed Income Investment Risk",null,null,null,{"$f":"MAX(0,+F101)","v":0},null,null,{"$f":"MAX(0,+I101)","v":0}]
[null,"Equity Investment Risk",null,null,null,{"$f":"MAX(0,+F149)","v":0},null,null,{"$f":"MAX(0,+I149)","v":0}]
[null,"Interest Rate / Liquidity Risk",null,null,null,{"$f":"MAX(0,+F330)","v":0},null,null,{"$f":"MAX(0,+I330)","v":0}]
[null,"Currency Risk",null,null,null,{"$f":"+F174","v":0},null,null,{"$f":"+I174","v":0}]
[null,"Concentration Risk",null,null,null,{"$f":"+F282","v":0},null,null,{"$f":"+I282","v":0}]
[null,"Credit Risk",null,null,null,{"$f":"MAX(0,+F321)","v":0},null,null,{"$f":"MAX(0,+I321)","v":0}]
[null,"Mortality",null,null,null,{"$f":"F336","v":0},null,null,{"$f":"I336","v":0}]
[null,"Stop Loss",null,null,null,{"$f":"MAX(0,+F415)","v":0},null,null,{"$f":"MAX(0,+I415)","v":0}]
[null,"Riders",null,null,null,{"$f":"MAX(0,+F417)","v":0},null,null,{"$f":"MAX(0,+I417)","v":0}]
[null,"Morbidity and Disability",null,null,null,{"$f":"MAX(0,+F342+F348+F349+F350+F344+F345+F352)","v":0},null,null,{"$f":"MAX(0,+I342+I348+I349+I350+I344+I345+I352)","v":0}]
[null,"Longevity",null,null,null,{"$f":"MAX(0,SUM(F359:F371))","v":0},null,null,{"$f":"MAX(0,(SUM(I359:I371)+SUM(I378:I390)+SUM(I397:I409)))","v":0}]
[null,"Variable Annuity Guarantee Risk",null,null,null,{"$f":"IF('Schedule VIIIA (EBS)'!$S$12=0,F523,'Schedule VIIIA (EBS)'!$S$12)","v":0},null,null,{"$f":"IF('Schedule VIIIA (EBS)'!$S$12=0,I523,'Schedule VIIIA (EBS)'!$S$12)","v":0}]
[null,"Other Insurance Risk",null,null,null,{"$f":"MAX(0,+F440)","v":0},null,null,{"$f":"MAX(0,+I440)","v":0}]
[]
[null,"BSCR (Prior to Covariance Adjustment)",null,null,null,{"$f":"SUM(F527:F539)","v":0},null,null,{"$f":"SUM(I527:I539)","v":0}]
[]
[null,"BSCR (After Covariance Adjustment)",null,null,null,{"$f":"(F527^2+F528^2+F529^2+F530^2+F531^2+F532^2+((F533+F534+F535))^2+F536^2+F537^2+-0.5*((F533+F534+F535)*F537)+F538^2+F539^2)^0.5","v":0},null,null,{"$f":"(I527^2+I528^2+I529^2+I530^2+I531^2+I532^2+((I533+I534+I535))^2+I536^2+I537^2+-0.5*((I533+I534+I535)*I537)+I538^2+I539^2)^0.5","v":0}]
[]
[null,"Operational risk charge (%)",null,null,null,{"$f":"+Summary!G62","v":0.1}]
[]
[null,"Operational risk capital charge ($)",null,null,null,{"$f":"F543*F545","v":0},null,null,{"$f":"IF(I545=\"\",I543*F545,I543*I545)","v":0}]
[]
[null,"Other Capital Adjustment",null,null,null,{"$f":"-MIN(((F543+F547+F551)*Summary!$D$157),Summary!$G$161,((F543+F547+F551)*Summary!$H$157))","v":0},null,null,{"$f":"-MIN(((I543+I547+I551)*Summary!$D$157),Summary!$G$161,((I543+I547+I551)*Summary!$H$157))","v":0}]
[]
[null,{"$f":"+Summary!C66","v":"Capital Adjustment for (Regulatory) Capital Requirement for Regulated Non-Insurance Financial Operating Entities:"},null,null,null,{"$f":"+'Schedule XVI'!M211","v":0},null,null,{"$f":"+'Schedule XVI'!M211","v":0}]
[]
[null,"BSCR ",null,null,null,{"$f":"F543+F547+F549","v":0},null,null,{"$f":"I543+I547+I549","v":0}]

{"sheet":"Crosscheck - SFS","index":110,"n_rows":98,"n_cols":4,"rows_kept":98,"cut":false,"hidden":true,"merged":[]}
[{"$f":"'Insurer Information'!C7","v":"Enter Company Name"}]
["Summary of SFS Inputs ($000) - For BMA Use Only"]
[{"$f":"'Insurer Information'!B3","v":"For the Year Ending "}]
[]
[]
[]
[null,"INPUT","STATEMENT SOURCE","VALUE"]
[]
[null,"Cash and time deposits","Form 4, Line 1",{"$f":"'Form 4EBS'!F10","v":0}]
[null,"Quoted invesments, bonds and debentures","Form 4, Line 2(a)",{"$f":"'Form 4EBS'!F13","v":0}]
[null,"Quoted investments, equities - common stocks","Form 4, Line 2(c)(i)",{"$f":"'Form 4EBS'!F15","v":0}]
[null,"Quoted investments, equities - preferred stocks","Form 4, Line 2(c)(ii)",{"$f":"'Form 4EBS'!F16","v":0}]
[null,"Quoted investments, equities - mutual funds","Form 4, Line 2(c)(iii)",{"$f":"'Form 4EBS'!F17","v":0}]
[null,"Other quoted investments","Form 4, Line 2(e)",{"$f":"'Form 4EBS'!F19","v":0}]
[null,"Unquoted investments, bonds and debentures","Form 4, Line 3(a)",{"$f":"'Form 4EBS'!F23","v":0}]
[null,"Unquoted investments, equities - common stocks","Form 4, Line 3(c)(i)",{"$f":"'Form 4EBS'!F25","v":0}]
[null,"Unquoted investments, equities - preferred stocks","Form 4, Line 3(c)(ii)",{"$f":"'Form 4EBS'!F26","v":0}]
[null,"Unquoted investments, equities - mutual funds","Form 4, Line 3(c)(iii)",{"$f":"'Form 4EBS'!F27","v":0}]
[null,"Other unquoted investments","Form 4, Line 3(e)",{"$f":"'Form 4EBS'!F29","v":0}]
[null,"Investments in and advances to affiliates","Form 4, Line 4",{"$f":"'Form 4EBS'!F32","v":0}]
[null,"Investment in mortgage loans on real estate","Form 4, Line 5",{"$f":"'Form 4EBS'!F42","v":0}]
[null,"Mortgage loans","Form 4, Line 6",{"$f":"'Form 4EBS'!F47","v":0}]
[null,"Real estate, occupied by the company (less encumbrances)","Form 4, Line 7(a)",{"$f":"'Form 4EBS'!F50","v":0}]
[null,"Real estate, other properties (less encumbrances)","Form 4, Line 7(b)",{"$f":"'Form 4EBS'!F51","v":0}]
[null,"Collateral loans","Form 4, Line 8",{"$f":"'Form 4EBS'!F54","v":0}]
[null,"Investment income due and accrued","Form 4, Line 9",{"$f":"'Form 4EBS'!F56","v":0}]
[null,"Accounts and premium receivable - in course of collection","Form 4, Line 10(a)",{"$f":"'Form 4EBS'!F59","v":0}]
[null,"Accounts and premium receivable - deferred - not yet due","Form 4, Line 10(b)"]
[null,"Accounts and premium receivable - receivables from retrocessional contracts","Form 4, Line 10(c)",{"$f":"'Form 4EBS'!F60","v":0}]
[null,"Reinsurance balances receivable - foreign affiliates","Form 4, Line 11(a)",{"$f":"'Form 4EBS'!F64","v":0}]
[null,"Reinsurance balances receivable - domestic affiliates","Form 4, Line 11(b)",{"$f":"'Form 4EBS'!F65","v":0}]
[null,"Reinsurance balances receivable - pools & associations","Form 4, Line 11(c)",{"$f":"'Form 4EBS'!F66","v":0}]
[null,"Reinsurance balances receivable - all other insurers","Form 4, Line 11(d)",{"$f":"'Form 4EBS'!F67","v":0}]
[null,"Funds held by ceding companies","Form 4, Line 12",{"$f":"'Form 4EBS'!F70","v":0}]
[null,"Sundry assets - derivative instruments","Form 4, Line 13(a)",{"$f":"'Form 4EBS'!F76","v":0}]
[null,"Sundry assets - segregated accounts companies","Form 4, Line 13(b)",{"$f":"'Form 4EBS'!F77","v":0}]
[null,"Sundry assets - deposit assets","Form 4, Line 13(c)",{"$f":"'Form 4EBS'!F79","v":0}]
[null,"Sundry assets - others","Form 4, Line 13(d)",{"$f":"'Form 4EBS'!F84","v":0}]
[null,"Letters of credit, guarantees and other instruments - letters of credit","Form 4, Line 14(a)",{"$f":"'Form 4EBS'!F88","v":0}]
[null,"Letters of credit, guarantees and other instruments - guarantees","Form 4, Line 14(b)",{"$f":"'Form 4EBS'!F89","v":0}]
[null,"Letters of credit, guarantees and other instruments - other instruments","Form 4, Line 14(c)",{"$f":"'Form 4EBS'!F90","v":0}]
[null,"Reserves for reported claims","Form 4, Line 20",{"$f":"'Form 4EBS'!F100","v":0}]
[null,"Reserves for unreported claims","Form 4, Line 21",{"$f":"'Form 4EBS'!F102","v":0}]
[null,"Policy reserves life","Form 4, Line 22",{"$f":"'Form 4EBS'!F104","v":0}]
[null,"Policy reserves accident and health","Form 4, Line 23",{"$f":"'Form 4EBS'!F106","v":0}]
[null,"Policyholder's funds on deposit","Form 4, Line 24",{"$f":"'Form 4EBS'!F108","v":0}]
[null,"Liability for future policyholder dividends","Form 4, Line 25",{"$f":"'Form 4EBS'!F110","v":0}]
[null,"Other insurance reserves - long-term","Form 4, Line 26",{"$f":"'Form 4EBS'!F112","v":0}]
[null,"Insurance and reinsurance balances payable","Form 4, Line 28",{"$f":"'Form 4EBS'!F140","v":0}]
[null,"Commissions, expenses, fees and taxes payable","Form 4, Line 29",{"$f":"'Form 4EBS'!F142","v":0}]
[null,"Loans and notes payable","Form 4, Line 30",{"$f":"'Form 4EBS'!F144","v":0}]
[null,"Income taxes payable","Form 4, Line 31(a)",{"$f":"'Form 4EBS'!F147","v":0}]
[null,"Deferred income taxes","Form 4, Line 31(b)",{"$f":"'Form 4EBS'!F148","v":0}]
[null,"Amounts due to affiliates","Form 4, Line 32",{"$f":"'Form 4EBS'!F150","v":0}]
[null,"Accounts payable and accrued liabilities","Form 4, Line 33",{"$f":"'Form 4EBS'!F152","v":0}]
[null,"Funds held under reinsurance contracts","Form 4, Line 34",{"$f":"'Form 4EBS'!F154","v":0}]
[null,"Dividends payable","Form 4, Line 35",{"$f":"'Form 4EBS'!F159","v":0}]
[null,"Sundry liabilities - derivative instruments","Form 4, Line 36(a)",{"$f":"'Form 4EBS'!F162","v":0}]
[null,"Sundry liabilities - segregated accounts companies","Form 4, Line 36(b)",{"$f":"'Form 4EBS'!F164","v":0}]
[null,"Sundry liabilities - deposit liabilities","Form 4, Line 36(c)",{"$f":"'Form 4EBS'!F166","v":0}]
[null,"Sundry liabilities - others","Form 4, Line 36(d)",{"$f":"'Form 4EBS'!F169","v":0}]
[null,"Letters of credit, guarantees and other instruments - letters of credit","Form 4, Line 37(a)",{"$f":"'Form 4EBS'!F173","v":0}]
[null,"Letters of credit, guarantees and other instruments - guarantees","Form 4, Line 37(b)",{"$f":"'Form 4EBS'!F174","v":0}]
[null,"Letters of credit, guarantees and other instruments - other instruments","Form 4, Line 37(c)",{"$f":"'Form 4EBS'!F175","v":0}]
[null,"Government","Schedule II, Line (1)",{"$f":"'Schedule II (EBS)'!T12","v":0}]
[null,"High Investment Grade (AAA & AA)","Schedule II, Line (2)",{"$f":"'Schedule II (EBS)'!T13","v":0}]
[null,"Medium Investment Grade (A)","Schedule II, Line (3)",{"$f":"'Schedule II (EBS)'!T14","v":0}]
[null,"Low Investment Grade (BBB)","Schedule II, Line (4)",{"$f":"'Schedule II (EBS)'!T15","v":0}]
[null,"Non Investment Grade","Schedule II, Line (5)",{"$f":"'Schedule II (EBS)'!T16","v":0}]
[null,"Mortgage Backed","Schedule II, Line (6)",{"$f":"'Schedule II (EBS)'!T17","v":0}]
[null,"Mutual Funds","Schedule II, Line (7)",{"$f":"'Schedule II (EBS)'!T18","v":0}]
[null,"Non Rated","Schedule II, Line (8)",{"$f":"'Schedule II (EBS)'!T19","v":0}]
[null,"Mortality (term assurance, whole life, universal life) - Bermuda Statutory Reserve","Schedule III, Line (1) col (1)",{"$f":"'Schedule VII (EBS)'!D10","v":0}]
[null,"Critical Illness (including accelerated CI products) - Bermuda Statutory Reserve","Schedule III, Line (2) col (1)",{"$f":"'Schedule VII (EBS)'!D11","v":0}]
[null,"Longevity (payout annuities, contingent annuities) - Bermuda Statutory Reserve","Schedule III, Line (3) col (1)",{"$f":"'Schedule VII (EBS)'!D12","v":0}]
[null,"Deferred annuities (including index linked products with no guarantees) - Bermuda Statutory Reserve","Schedule III, Line (4) col (1)",{"$f":"'Schedule VII (EBS)'!D20","v":0}]
[null,"Disability Income: active lives - incl. waiver of premium and LTC - Bermuda Statutory Reserve","Schedule III, Line (5) col (1)",{"$f":"'Schedule VII (EBS)'!D36","v":0}]
[null,{"$f":"'Schedule VII (EBS)'!C37&\" - Bermuda Statutory Reserve\"","v":"Disability income: active lives - other accident and sickness - Bermuda Statutory Reserve"},"Schedule III, Line (6) col (1)",{"$f":"'Schedule VII (EBS)'!D37","v":0}]
[null,{"$f":"'Schedule VII (EBS)'!C38&\" - Bermuda Statutory Reserve\"","v":"Disability income: claims in payment - including waiver of premium and long-term care - Bermuda Statutory Reserve"},"Schedule III, Line (7) col (1)",{"$f":"'Schedule VII (EBS)'!D38","v":0}]
[null,{"$f":"'Schedule VII (EBS)'!C39&\" - Bermuda Statutory Reserve\"","v":"Disability income: claims in payment - other accident and sickness - Bermuda Statutory Reserve"},"Schedule III, Line (8) col (1)",{"$f":"'Schedule VII (EBS)'!D39","v":0}]
[null,{"$f":"'Schedule VII (EBS)'!C40&\" - Bermuda Statutory Reserve\"","v":"Group Life - Bermuda Statutory Reserve"},"Schedule III, Line (9) col (1)",{"$f":"'Schedule VII (EBS)'!D40","v":0}]
[null,{"$f":"'Schedule VII (EBS)'!C41&\" - Bermuda Statutory Reserve\"","v":"Group Disability - Bermuda Statutory Reserve"},"Schedule III, Line (10) col (1)",{"$f":"'Schedule VII (EBS)'!D41","v":0}]
[null,{"$f":"'Schedule VII (EBS)'!C42&\" - Bermuda Statutory Reserve\"","v":"Group Health - Bermuda Statutory Reserve"},"Schedule III, Line (11) col (1)",{"$f":"'Schedule VII (EBS)'!D42","v":0}]
[null,{"$f":"'Schedule VII (EBS)'!C43&\" - Bermuda Statutory Reserve\"","v":"Stop Loss - Bermuda Statutory Reserve"},"Schedule III, Line (12) col (1)",{"$f":"'Schedule VII (EBS)'!D43","v":0}]
[null,{"$f":"'Schedule VII (EBS)'!C44&\" - Bermuda Statutory Reserve\"","v":"Rider (other product riders not included above) - Bermuda Statutory Reserve"},"Schedule III, Line (13) col (1)",{"$f":"'Schedule VII (EBS)'!D44","v":0}]
[null,{"$f":"'Schedule VII (EBS)'!C10&\" - DAC\"","v":"Mortality (term assurance, whole life, universal life) - DAC"},"Schedule III, Line (1) col (2)"]
[null,{"$f":"'Schedule VII (EBS)'!C11&\" - DAC\"","v":"Critical Illness (including accelerated critical illness products) - DAC"},"Schedule III, Line (2) col (2)"]
[null,{"$f":"'Schedule VII (EBS)'!C12&\" - DAC\"","v":"Longevity (immediate pay-out annuities, contingent annuities, pension pay-outs) - DAC"},"Schedule III, Line (3) col (2)"]
[null,{"$f":"'Schedule VII (EBS)'!C20&\" - DAC\"","v":"Longevity (deferred pay-out annuities, future contingent annuities, future pension pay-outs) - DAC"},"Schedule III, Line (4) col (2)"]
[null,{"$f":"'Schedule VII (EBS)'!C31&\" - DAC\"","v":"Disability Income: active lives - including waiver of premium and long-term care - DAC"},"Schedule III, Line (5) col (2)"]
[null,{"$f":"'Schedule VII (EBS)'!C37&\" - DAC\"","v":"Disability income: active lives - other accident and sickness - DAC"},"Schedule III, Line (11) col (2)"]
[null,{"$f":"'Schedule VII (EBS)'!C38&\" - DAC\"","v":"Disability income: claims in payment - including waiver of premium and long-term care - DAC"},"Schedule III, Line (12) col (2)"]
[null,{"$f":"'Schedule VII (EBS)'!C39&\" - DAC\"","v":"Disability income: claims in payment - other accident and sickness - DAC"},"Schedule III, Line (13) col (2)"]
[null,{"$f":"'Schedule VII (EBS)'!C40&\" - DAC\"","v":"Group Life - DAC"},"Schedule III, Line (13) col (2)"]
[null,{"$f":"'Schedule VII (EBS)'!C41&\" - DAC\"","v":"Group Disability - DAC"},"Schedule III, Line (13) col (2)"]
[null,{"$f":"'Schedule VII (EBS)'!C42&\" - DAC\"","v":"Group Health - DAC"},"Schedule III, Line (13) col (2)"]
[null,{"$f":"'Schedule VII (EBS)'!C43&\" - DAC\"","v":"Stop Loss - DAC"},"Schedule III, Line (13) col (2)"]
[null,{"$f":"'Schedule VII (EBS)'!C44&\" - DAC\"","v":"Rider (other product riders not included above) - DAC"},"Schedule III, Line (13) col (2)"]

{"sheet":"Crosscheck-Model","index":111,"n_rows":95,"n_cols":4,"rows_kept":95,"cut":false,"hidden":true,"merged":[]}
[{"$f":"'Insurer Information'!C7","v":"Enter Company Name"}]
["Summary of Inputs ($000) - For BMA Use Only"]
[{"$f":"'Insurer Information'!B3","v":"For the Year Ending "}]
[]
[]
[]
[null,"INPUT","STATEMENT SOURCE","VALUE"]
[]
[null,"Reported Surplus","Form 1A, Line (40)",{"$f":"Summary!N80","v":0}]
[null,"Government","Schedule II, Line (1)",{"$f":"'Fixed Income Investments'!D12","v":0}]
[null,"High Investment Grade (AAA & AA)","Schedule II, Line (2)",{"$f":"'Fixed Income Investments'!D13","v":0}]
[null,"Medium Investment Grade (A)","Schedule II, Line (3)",{"$f":"'Fixed Income Investments'!D14","v":0}]
[null,"Low Investment Grade (BBB)","Schedule II, Line (4)",{"$f":"'Fixed Income Investments'!D15","v":0}]
[null,"Non Investment Grade","Schedule II, Line (5)",{"$f":"'Fixed Income Investments'!D16","v":0}]
[null,"Mortgage Backed","Schedule II, Line (6)",{"$f":"'Fixed Income Investments'!D17","v":0}]
[null,"Mutual Funds","Schedule II, Line (7)",{"$f":"'Fixed Income Investments'!D18","v":0}]
[null,"Non Rated","Schedule II, Line (8)",{"$f":"'Fixed Income Investments'!D20","v":0}]
[null,"Mortgage Loans","Form 1A, Line (5c)",{"$f":"'Fixed Income Investments'!D26","v":0}]
[null,"Other Loans","Form 1A, Line (8)"]
[null,"Cash","Form 1A, Line (1)"]
[null,"Non-Affiliated (Quoted)","Form 1A, Line (2c)-i",{"$f":"'Equity Investments'!D11","v":0}]
[null,"Non-Affiliated (Unquoted)","Form 1A, Line (3c)-i",{"$f":"'Equity Investments'!D12","v":0}]
[null,"Mutual Funds","Form 1A, Lines (2c)-iii, (3c)-iii"]
[null,"Non-Affiliated (Quoted)","Form 1A, Line (2c)-ii",{"$f":"'Equity Investments'!D19","v":0}]
[null,"Non-Affiliated (Unquoted)","Form 1A, Line (3c)-ii",{"$f":"'Equity Investments'!D20","v":0}]
[null,"Company-Occupied Less Encumbrances","Form 1A, Line (7a)",{"$f":"'Equity Investments'!D34","v":0}]
[null,"Investments Less Encumbrances","Form 1A, Line (7b)",{"$f":"'Equity Investments'!D35","v":0}]
[null,"Other Investments","Form 1A, Lines (2e), (3e)",{"$f":"'Equity Investments'!D37","v":0}]
[null,"Other Tangible Assets","Form 1A, Lines (13e), (14d)",{"$f":"'Equity Investments'!D38","v":0}]
[null,"Bonds (Quoted Only)","Form 1A, Lines (2a)-ii and (3a)-ii"]
[null,"In Course of Collection","Form 1A, Line (10a)",{"$f":"'Credit Risk'!D11","v":0}]
[null,"Deferred - Not Yet Due","Form 1A, Line (10b)"]
[null,"Receivables from retrocessional contracts  less: Collateralized Balances","Form 1A, Line (10c)",{"$f":"'Credit Risk'!D12","v":0}]
[null,"Foreign Affiliates","Form 1A, Line (11a)"]
[null,"Domestic Affiliates","Form 1A, Line (11b)"]
[null,"Pools & Associations","Form 1A, Line (11c)"]
[null,"All Other Insurers","Form 1A, Line (11d)"]
[null,"Letter of credits","Notes to Form 1A, Line 11"]
[null,"Funds held by Company","Form 1A, Line 34(c)"]
[null,"Funds Held by Ceding Reinsurers","Form 1A, Line (12c)"]
[null,"Accrued Investment Income","Form 1A, Line (9)",{"$f":"'Credit Risk'!D18","v":0}]
[null,"Receivable from Affiliates","Form 1A, Line (4c)",{"$f":"'Credit Risk'!D19","v":0}]
[null,"Foreign Affiliates","Form 1A, Line (17b)-i"]
[null,"Domestic Affiliates","Form 1A, Line (17b)-ii"]
[null,"Pools & Associations","Form 1A, Line (17b)-iii"]
[null,"All Other Insurers","Form 1A, Line (17b)-iv"]
[null,"Premium - Property Catastrophe","Schedule IV, Line (1)"]
[null,"Premium - Property","Schedule IV, Line (2)"]
[null,"Premium - Property Non-Proportional","Schedule IV, Line (3)"]
[null,"Premium - Personal Accident","Schedule IV, Line (4)"]
[null,"Premium - Personal Accident Non-Proportional","Schedule IV, Line (5)"]
[null,"Premium - Aviation","Schedule IV, Line (6)"]
[null,"Premium - Aviation Non-Proportional","Schedule IV, Line (7)"]
[null,"Premium - Credit / Surety","Schedule IV, Line (8)"]
[null,"Premium - Credit / Surety Non-Proportional","Schedule IV, Line (9)"]
[null,"Premium - Energy Offshore / Marine","Schedule IV, Line (10)"]
[null,"Premium - Energy Offshore / Marine Non-Proportional","Schedule IV, Line (11)"]
[null,"Premium - US Casualty","Schedule IV, Line (12)"]
[null,"Premium - US Casualty Non-Proportional","Schedule IV, Line (13)"]
[null,"Premium - US Professional","Schedule IV, Line (14)"]
[null,"Premium - US Professional Non-Proportional","Schedule IV, Line (15)"]
[null,"Premium - US Specialty","Schedule IV, Line (16)"]
[null,"Premium - US Specialty Non-Proportional","Schedule IV, Line (17)"]
[null,"Premium - International Motor","Schedule IV, Line (18)"]
[null,"Premium - International Motor Non-Proportional","Schedule IV, Line (19)"]
[null,"Premium - International Casualty Non-Motor","Schedule IV, Line (20)"]
[null,"Premium - International Casualty Non-Motor Non-Proportional","Schedule IV, Line (21)"]
[null,"Premium - Retro Property","Schedule IV, Line (22)"]
[null,"Premium - Structured / Finite Reinsurance","Schedule IV, Line (23)"]
[null,null,"Schedule III, Line (1)"]
[null,null,"Schedule III, Line (2)"]
[null,null,"Schedule III, Line (3)"]
[null,null,"Schedule III, Line (4)"]
[null,null,"Schedule III, Line (5)"]
[null,null,"Schedule III, Line (6)"]
[null,null,"Schedule III, Line (7)"]
[null,null,"Schedule III, Line (8)"]
[null,null,"Schedule III, Line (9)"]
[null,null,"Schedule III, Line (10)"]
[null,null,"Schedule III, Line (11)"]
[null,null,"Schedule III, Line (12)"]
[null,null,"Schedule III, Line (13)"]
[null,null,"Schedule III, Line (14)"]
[null,null,"Schedule III, Line (15)"]
[null,null,"Schedule III, Line (16)"]
[null,null,"Schedule III, Line (17)"]
[null,null,"Schedule III, Line (18)"]
[null,null,"Schedule III, Line (19)"]
[null,null,"Schedule III, Line (20)"]
[null,null,"Schedule III, Line (21)"]
[null,null,"Schedule III, Line (22)"]
[null,null,"Schedule III, Line (23)"]
[null,"Gross Probable Maximum Loss","Schedule V, Line (b)"]
[null,"Net Probable Maximum Loss","Schedule V, Line (c)"]
[null,"Average Annual Loss (AAL) Excluding Property Catastrophe","Schedule V, Line (d)"]

{"sheet":"Crosscheck - Op Risk","index":112,"n_rows":153,"n_cols":4,"rows_kept":153,"cut":false,"hidden":true,"merged":[]}
["Sample Company"]
["Summary of Operational Risk - For BMA Use Only"]
["For the Year Ending "]
[]
[]
[]
[null,"INPUT","STATEMENT SOURCE","SCORE"]
[]
[null,"Corporate Governance - 1","Corp Gov",{"$f":"'Corp Gov'!C10","v":0}]
[null,"Corporate Governance - 2","Corp Gov",{"$f":"'Corp Gov'!C12","v":0}]
[null,"Corporate Governance - 3","Corp Gov",{"$f":"'Corp Gov'!C13","v":0}]
[null,"Corporate Governance - 4","Corp Gov",{"$f":"'Corp Gov'!C14","v":0}]
[null,"Corporate Governance - 5","Corp Gov",{"$f":"'Corp Gov'!C15","v":0}]
[null,"Corporate Governance - 6","Corp Gov",{"$f":"'Corp Gov'!C16","v":0}]
[null,"Risk Management - 1","Risk Man",{"$f":"'Risk Man'!C11","v":0}]
[null,"Risk Management - 2","Risk Man",{"$f":"'Risk Man'!C12","v":0}]
[null,"Risk Management - 3","Risk Man",{"$f":"'Risk Man'!C13","v":0}]
[null,"Risk Management - 4","Risk Man",{"$f":"'Risk Man'!C14","v":0}]
[null,"Risk Management - 5","Risk Man",{"$f":"'Risk Man'!C15","v":0}]
[null,"Risk Management - 6","Risk Man",{"$f":"'Risk Man'!C16","v":0}]
[null,"Risk Management - 7","Risk Man",{"$f":"'Risk Man'!C17","v":0}]
[null,"Risk Identification"]
[null,"Fraud - Stage 1","Identification",{"$f":"Identification!E15","v":0}]
[null,"Fraud - Stage 2","Identification",{"$f":"Identification!E16","v":0}]
[null,"Fraud - Stage 3","Identification",{"$f":"Identification!E17","v":0}]
[null,"Fraud - Stage 4","Identification",{"$f":"Identification!E18","v":0}]
[null,"Human Resources - Stage 1","Identification",{"$f":"Identification!F15","v":0}]
[null,"Human Resources - Stage 2","Identification",{"$f":"Identification!F16","v":0}]
[null,"Human Resources - Stage 3","Identification",{"$f":"Identification!F17","v":0}]
[null,"Human Resources - Stage 4","Identification",{"$f":"Identification!F18","v":0}]
[null,"Outsourcing - Stage 1","Identification",{"$f":"Identification!G15","v":0}]
[null,"Outsourcing - Stage 2","Identification",{"$f":"Identification!G16","v":0}]
[null,"Outsourcing - Stage 3","Identification",{"$f":"Identification!G17","v":0}]
[null,"Outsourcing - Stage 4","Identification",{"$f":"Identification!G18","v":0}]
[null,"Distribution Channels - Stage 1","Identification",{"$f":"Identification!H15","v":0}]
[null,"Distribution Channels - Stage 2","Identification",{"$f":"Identification!H16","v":0}]
[null,"Distribution Channels - Stage 3","Identification",{"$f":"Identification!H17","v":0}]
[null,"Distribution Channels - Stage 4","Identification",{"$f":"Identification!H18","v":0}]
[null,"Business Processes - Stage 1","Identification",{"$f":"Identification!I15","v":0}]
[null,"Business Processes - Stage 2","Identification",{"$f":"Identification!I16","v":0}]
[null,"Business Processes - Stage 3","Identification",{"$f":"Identification!I17","v":0}]
[null,"Business Processes - Stage 4","Identification",{"$f":"Identification!I18","v":0}]
[null,"Business Continuity - Stage 1","Identification",{"$f":"Identification!J15","v":0}]
[null,"Business Continuity - Stage 2","Identification",{"$f":"Identification!J16","v":0}]
[null,"Business Continuity - Stage 3","Identification",{"$f":"Identification!J17","v":0}]
[null,"Business Continuity - Stage 4","Identification",{"$f":"Identification!J18","v":0}]
[null,"Information Systems - Stage 1","Identification",{"$f":"Identification!K15","v":0}]
[null,"Information Systems - Stage 2","Identification",{"$f":"Identification!K16","v":0}]
[null,"Information Systems - Stage 3","Identification",{"$f":"Identification!K17","v":0}]
[null,"Information Systems - Stage 4","Identification",{"$f":"Identification!K18","v":0}]
[null,"Compliance - Stage 1","Identification",{"$f":"Identification!L15","v":0}]
[null,"Compliance - Stage 2","Identification",{"$f":"Identification!L16","v":0}]
[null,"Compliance - Stage 3","Identification",{"$f":"Identification!L17","v":0}]
[null,"Compliance - Stage 4","Identification",{"$f":"Identification!L18","v":0}]
[null,"Risk Measurement"]
[null,"Fraud - Stage 1","Measurement",{"$f":"Measurement!E14","v":"Fraud"}]
[null,"Fraud - Stage 2","Measurement",{"$f":"Measurement!E15","v":0}]
[null,"Fraud - Stage 3","Measurement",{"$f":"Measurement!E16","v":0}]
[null,"Fraud - Stage 4","Measurement",{"$f":"Measurement!E17","v":0}]
[null,"Human Resources - Stage 1","Measurement",{"$f":"Measurement!F14","v":"Human Resources"}]
[null,"Human Resources - Stage 2","Measurement",{"$f":"Measurement!F15","v":0}]
[null,"Human Resources - Stage 3","Measurement",{"$f":"Measurement!F16","v":0}]
[null,"Human Resources - Stage 4","Measurement",{"$f":"Measurement!F17","v":0}]
[null,"Outsourcing - Stage 1","Measurement",{"$f":"Measurement!G14","v":"Outsourcing"}]
[null,"Outsourcing - Stage 2","Measurement",{"$f":"Measurement!G15","v":0}]
[null,"Outsourcing - Stage 3","Measurement",{"$f":"Measurement!G16","v":0}]
[null,"Outsourcing - Stage 4","Measurement",{"$f":"Measurement!G17","v":0}]
[null,"Distribution Channels - Stage 1","Measurement",{"$f":"Measurement!H14","v":"Distribution Channels"}]
[null,"Distribution Channels - Stage 2","Measurement",{"$f":"Measurement!H15","v":0}]
[null,"Distribution Channels - Stage 3","Measurement",{"$f":"Measurement!H16","v":0}]
[null,"Distribution Channels - Stage 4","Measurement",{"$f":"Measurement!H17","v":0}]
[null,"Business Processes - Stage 1","Measurement",{"$f":"Measurement!I14","v":"Business Processes"}]
[null,"Business Processes - Stage 2","Measurement",{"$f":"Measurement!I15","v":0}]
[null,"Business Processes - Stage 3","Measurement",{"$f":"Measurement!I16","v":0}]
[null,"Business Processes - Stage 4","Measurement",{"$f":"Measurement!I17","v":0}]
[null,"Business Continuity - Stage 1","Measurement",{"$f":"Measurement!J14","v":"Business Continuity"}]
[null,"Business Continuity - Stage 2","Measurement",{"$f":"Measurement!J15","v":0}]
[null,"Business Continuity - Stage 3","Measurement",{"$f":"Measurement!J16","v":0}]
[null,"Business Continuity - Stage 4","Measurement",{"$f":"Measurement!J17","v":0}]
[null,"Information Systems - Stage 1","Measurement",{"$f":"Measurement!K14","v":"Information Systems"}]
[null,"Information Systems - Stage 2","Measurement",{"$f":"Measurement!K15","v":0}]
[null,"Information Systems - Stage 3","Measurement",{"$f":"Measurement!K16","v":0}]
[null,"Information Systems - Stage 4","Measurement",{"$f":"Measurement!K17","v":0}]
[null,"Compliance - Stage 1","Measurement",{"$f":"Measurement!L14","v":"Compliance"}]
[null,"Compliance - Stage 2","Measurement",{"$f":"Measurement!L15","v":0}]
[null,"Compliance - Stage 3","Measurement",{"$f":"Measurement!L16","v":0}]
[null,"Compliance - Stage 4","Measurement",{"$f":"Measurement!L17","v":0}]
[null,"Risk Response"]
[null,"Fraud - Stage 1","Response",{"$f":"Response!E15","v":0}]
[null,"Fraud - Stage 2","Response",{"$f":"Response!E16","v":0}]
[null,"Fraud - Stage 3","Response",{"$f":"Response!E17","v":0}]
[null,"Fraud - Stage 4","Response",{"$f":"Response!E18","v":0}]
[null,"Human Resources - Stage 1","Response",{"$f":"Response!F15","v":0}]
[null,"Human Resources - Stage 2","Response",{"$f":"Response!F16","v":0}]
[null,"Human Resources - Stage 3","Response",{"$f":"Response!F17","v":0}]
[null,"Human Resources - Stage 4","Response",{"$f":"Response!F18","v":0}]
[null,"Outsourcing - Stage 1","Response",{"$f":"Response!G15","v":0}]
[null,"Outsourcing - Stage 2","Response",{"$f":"Response!G16","v":0}]
[null,"Outsourcing - Stage 3","Response",{"$f":"Response!G17","v":0}]
[null,"Outsourcing - Stage 4","Response",{"$f":"Response!G18","v":0}]
[null,"Distribution Channels - Stage 1","Response",{"$f":"Response!H15","v":0}]
[null,"Distribution Channels - Stage 2","Response",{"$f":"Response!H16","v":0}]
[null,"Distribution Channels - Stage 3","Response",{"$f":"Response!H17","v":0}]
[null,"Distribution Channels - Stage 4","Response",{"$f":"Response!H18","v":0}]
[null,"Business Processes - Stage 1","Response",{"$f":"Response!I15","v":0}]
[null,"Business Processes - Stage 2","Response",{"$f":"Response!I16","v":0}]
[null,"Business Processes - Stage 3","Response",{"$f":"Response!I17","v":0}]
[null,"Business Processes - Stage 4","Response",{"$f":"Response!I18","v":0}]
[null,"Business Continuity - Stage 1","Response",{"$f":"Response!J15","v":0}]
[null,"Business Continuity - Stage 2","Response",{"$f":"Response!J16","v":0}]
[null,"Business Continuity - Stage 3","Response",{"$f":"Response!J17","v":0}]
[null,"Business Continuity - Stage 4","Response",{"$f":"Response!J18","v":0}]
[null,"Information Systems - Stage 1","Response",{"$f":"Response!K15","v":0}]
[null,"Information Systems - Stage 2","Response",{"$f":"Response!K16","v":0}]
[null,"Information Systems - Stage 3","Response",{"$f":"Response!K17","v":0}]
[null,"Information Systems - Stage 4","Response",{"$f":"Response!K18","v":0}]
[null,"Compliance - Stage 1","Response",{"$f":"Response!L15","v":0}]
[null,"Compliance - Stage 2","Response",{"$f":"Response!L16","v":0}]
[null,"Compliance - Stage 3","Response",{"$f":"Response!L17","v":0}]
[null,"Compliance - Stage 4","Response",{"$f":"Response!L18","v":0}]
[null,"Risk Monitoring & Reporting"]
[null,"Fraud - Stage 1","Monitoring & Reporting",{"$f":"'Monitoring & Reporting'!E15","v":0}]
[null,"Fraud - Stage 2","Monitoring & Reporting",{"$f":"'Monitoring & Reporting'!E16","v":0}]
[null,"Fraud - Stage 3","Monitoring & Reporting",{"$f":"'Monitoring & Reporting'!E17","v":0}]
[null,"Fraud - Stage 4","Monitoring & Reporting",{"$f":"'Monitoring & Reporting'!E18","v":0}]
[null,"Human Resources - Stage 1","Monitoring & Reporting",{"$f":"'Monitoring & Reporting'!F15","v":0}]
[null,"Human Resources - Stage 2","Monitoring & Reporting",{"$f":"'Monitoring & Reporting'!F16","v":0}]
[null,"Human Resources - Stage 3","Monitoring & Reporting",{"$f":"'Monitoring & Reporting'!F17","v":0}]
[null,"Human Resources - Stage 4","Monitoring & Reporting",{"$f":"'Monitoring & Reporting'!F18","v":0}]
[null,"Outsourcing - Stage 1","Monitoring & Reporting",{"$f":"'Monitoring & Reporting'!G15","v":0}]
[null,"Outsourcing - Stage 2","Monitoring & Reporting",{"$f":"'Monitoring & Reporting'!G16","v":0}]
[null,"Outsourcing - Stage 3","Monitoring & Reporting",{"$f":"'Monitoring & Reporting'!G17","v":0}]
[null,"Outsourcing - Stage 4","Monitoring & Reporting",{"$f":"'Monitoring & Reporting'!G18","v":0}]
[null,"Distribution Channels - Stage 1","Monitoring & Reporting",{"$f":"'Monitoring & Reporting'!H15","v":0}]
[null,"Distribution Channels - Stage 2","Monitoring & Reporting",{"$f":"'Monitoring & Reporting'!H16","v":0}]
[null,"Distribution Channels - Stage 3","Monitoring & Reporting",{"$f":"'Monitoring & Reporting'!H17","v":0}]
[null,"Distribution Channels - Stage 4","Monitoring & Reporting",{"$f":"'Monitoring & Reporting'!H18","v":0}]
[null,"Business Processes - Stage 1","Monitoring & Reporting",{"$f":"'Monitoring & Reporting'!I15","v":0}]
[null,"Business Processes - Stage 2","Monitoring & Reporting",{"$f":"'Monitoring & Reporting'!I16","v":0}]
[null,"Business Processes - Stage 3","Monitoring & Reporting",{"$f":"'Monitoring & Reporting'!I17","v":0}]
[null,"Business Processes - Stage 4","Monitoring & Reporting",{"$f":"'Monitoring & Reporting'!I18","v":0}]
[null,"Business Continuity - Stage 1","Monitoring & Reporting",{"$f":"'Monitoring & Reporting'!J15","v":0}]
[null,"Business Continuity - Stage 2","Monitoring & Reporting",{"$f":"'Monitoring & Reporting'!J16","v":0}]
[null,"Business Continuity - Stage 3","Monitoring & Reporting",{"$f":"'Monitoring & Reporting'!J17","v":0}]
[null,"Business Continuity - Stage 4","Monitoring & Reporting",{"$f":"'Monitoring & Reporting'!J18","v":0}]
[null,"Information Systems - Stage 1","Monitoring & Reporting",{"$f":"'Monitoring & Reporting'!K15","v":0}]
[null,"Information Systems - Stage 2","Monitoring & Reporting",{"$f":"'Monitoring & Reporting'!K16","v":0}]
[null,"Information Systems - Stage 3","Monitoring & Reporting",{"$f":"'Monitoring & Reporting'!K17","v":0}]
[null,"Information Systems - Stage 4","Monitoring & Reporting",{"$f":"'Monitoring & Reporting'!K18","v":0}]
[null,"Compliance - Stage 1","Monitoring & Reporting",{"$f":"'Monitoring & Reporting'!L15","v":0}]
[null,"Compliance - Stage 2","Monitoring & Reporting",{"$f":"'Monitoring & Reporting'!L16","v":0}]
[null,"Compliance - Stage 3","Monitoring & Reporting",{"$f":"'Monitoring & Reporting'!L17","v":0}]
[null,"Compliance - Stage 4","Monitoring & Reporting",{"$f":"'Monitoring & Reporting'!L18","v":0}]

{"sheet":"prt_res","index":113,"n_rows":54,"n_cols":4,"rows_kept":54,"cut":false,"hidden":true,"merged":[]}
[true,"Company_Information_Print",null,true]
[true,"Summary_Print",null,false]
[true,"Fixed_Income_Print"]
[true,"Equity_Print"]
[true,"Interest_Rate_Print"]
[true,"Credit_Print"]
[true,"Premium_Print"]
[true,"Reserve_Print"]
[true,"Cat_Print"]
[]
[]
[]
[]
[]
[]
[]
[]
[]
[]
[]
[]
[]
[]
[]
[]
[]
[]
[]
[]
[]
[]
[]
[]
[]
[]
[]
[]
[]
[]
[]
[]
[]
[]
[]
[]
[]
[]
[]
[]
[]
[]
[]
[]
[null,"a"]

{"sheet":"CSP (Revised)","index":114,"n_rows":759,"n_cols":12,"rows_kept":759,"cut":false,"hidden":false,"merged":[[522,6,522,7],[0,0,0,6],[2,0,2,2],[138,6,139,6],[201,3,202,4],[500,2,502,2],[500,3,502,3],[500,4,502,4],[500,5,502,5],[310,3,310,4],[310,5,310,6],[2,8,3,11],[5,1,5,11],[521,6,521,7],[3,2,3,3],[102,3,102,6],[103,3,103,4],[103,5,103,6],[116,3,116,6],[117,3,117,4],[117,5,117,6],[201,5,203,5],[137,3,137,5],[138,4,138,5],[309,2,309,6],[610,1,611,1],[631,2,632,2],[631,6,632,6],[631,7,632,7],[527,6,527,7],[528,6,528,7],[543,2,545,6],[562,1,562,7],[563,2,564,6],[581,1,581,7],[631,8,632,8],[631,9,632,9],[631,10,632,10],[631,11,632,11],[582,2,583,6],[602,6,602,7]]}
["COMPANY-SPECIFIC PARAMETERS (REVISED)",null,null,null,null,null,null,null,null,null,null,{"$f":"HYPERLINK(\"#'Index'!A1\",\"Return to Index\")","v":"Return to Index"}]
[]
[{"$f":"+'Insurer Information'!C7","v":"Enter Company Name"},null,null,null,null,null,null,null,{"$f":"HYPERLINK(\"#'Attachments'!A184\",\"Details of User Capital Factor to be included in the attachments section 9.\")","v":"Details of User Capital Factor to be included in the attachments section 9."}]
["For the Year Ending ",null,{"$f":" TEXT('Insurer Information'!C3,\"D MMMM YYYY\")","v":"31 December 2023"}]
[]
[null,"To be completed only with prior approval from the Bermuda Monetary Authority"]
[]
[null,null,null,null,null,null,null,"STANDARD","STANDARD",null,"USER","USER"]
[null,"TYPE OF ",null,null,null,null,"ASSET","CAPITAL","REQUIRED",null,"CAPITAL","REQUIRED"]
[null,"FIXED INCOME INVESTMENTS",null,null,null,null,"VALUE","FACTOR","CAPITAL",null,"FACTOR","CAPITAL"]
[]
[null,"(a) Corporate & Sovereign Bonds",null,null,null,null,"(1) ","(2)","(1) x (2)",null,"(3)","(1) x (3)"]
[]
[null,"BSCR Rating"]
[null,0,null,null,null,null,{"$f":"'Schedule IIB (EBS)'!D13+'Schedule IIC (EBS)'!D13+(MAX(0,'Schedule IID (EBS)'!D13-'Schedule IID (EBS)'!F13))+'Schedule IIE (EBS)'!D13+'Schedule IIF (EBS)'!D13","v":0},{"$f":"'Fixed Income Investments (Rev.)'!H12","v":0},{"$f":"IF(G15<0,0,G15*H15)","v":0},null,null,{"$f":"MAX(0,IF(K15=\"\",H15*G15,G15*K15))","v":0}]
[null,1,null,null,null,null,{"$f":"'Schedule IIB (EBS)'!D14+'Schedule IIC (EBS)'!D14+(MAX(0,'Schedule IID (EBS)'!D14-'Schedule IID (EBS)'!F14))+'Schedule IIE (EBS)'!D14+'Schedule IIF (EBS)'!D14","v":0},{"$f":"'Fixed Income Investments (Rev.)'!H13","v":4.0000000000000001E-3},0,null,null,{"$f":"MAX(0,IF(K16=\"\",H16*G16,G16*K16))","v":0}]
[null,2,null,null,null,null,{"$f":"'Schedule IIB (EBS)'!D15+'Schedule IIC (EBS)'!D15+(MAX(0,'Schedule IID (EBS)'!D15-'Schedule IID (EBS)'!F15))+'Schedule IIE (EBS)'!D15+'Schedule IIF (EBS)'!D15","v":0},{"$f":"'Fixed Income Investments (Rev.)'!H14","v":8.0000000000000002E-3},0,null,null,0]
[null,3,null,null,null,null,{"$f":"'Schedule IIB (EBS)'!D16+'Schedule IIC (EBS)'!D16+(MAX(0,'Schedule IID (EBS)'!D16-'Schedule IID (EBS)'!F16))+'Schedule IIE (EBS)'!D16+'Schedule IIF (EBS)'!D16","v":0},{"$f":"'Fixed Income Investments (Rev.)'!H15","v":1.4999999999999999E-2},0,null,null,0]
[null,4,null,null,null,null,{"$f":"'Schedule IIB (EBS)'!D17+'Schedule IIC (EBS)'!D17+(MAX(0,'Schedule IID (EBS)'!D17-'Schedule IID (EBS)'!F17))+'Schedule IIE (EBS)'!D17+'Schedule IIF (EBS)'!D17","v":0},{"$f":"'Fixed Income Investments (Rev.)'!H16","v":0.03},0,null,null,0]
[null,5,null,null,null,null,{"$f":"'Schedule IIB (EBS)'!D18+'Schedule IIC (EBS)'!D18+(MAX(0,'Schedule IID (EBS)'!D18-'Schedule IID (EBS)'!F18))+'Schedule IIE (EBS)'!D18+'Schedule IIF (EBS)'!D18","v":0},{"$f":"'Fixed Income Investments (Rev.)'!H17","v":0.08},0,null,null,0]
[null,6,null,null,null,null,{"$f":"'Schedule IIB (EBS)'!D19+'Schedule IIC (EBS)'!D19+(MAX(0,'Schedule IID (EBS)'!D19-'Schedule IID (EBS)'!F19))+'Schedule IIE (EBS)'!D19+'Schedule IIF (EBS)'!D19","v":0},{"$f":"'Fixed Income Investments (Rev.)'!H18","v":0.15},0,null,null,0]
[null,7,null,null,null,null,{"$f":"'Schedule IIB (EBS)'!D20+'Schedule IIC (EBS)'!D20+(MAX(0,'Schedule IID (EBS)'!D20-'Schedule IID (EBS)'!F20))+'Schedule IIE (EBS)'!D20+'Schedule IIF (EBS)'!D20","v":0},{"$f":"'Fixed Income Investments (Rev.)'!H19","v":0.26300000000000001},0,null,null,0]
[null,8,null,null,null,null,{"$f":"'Schedule IIB (EBS)'!D21+'Schedule IIC (EBS)'!D21+(MAX(0,'Schedule IID (EBS)'!D21-'Schedule IID (EBS)'!F21))+'Schedule IIE (EBS)'!D21+'Schedule IIF (EBS)'!D21","v":0},{"$f":"'Fixed Income Investments (Rev.)'!H20","v":0.35},0,null,null,0]
[]
[null,"(a)  SUBTOTAL -  CORPORATE BONDS",null,null,null,null,{"$f":"SUM(G15:G24)","v":0},null,{"$f":"IF(SUM(I15:I23)>=0,SUM(I15:I23),0)","v":0},null,null,{"$f":"IF(SUM(L15:L23)>=0,SUM(L15:L23),0)","v":0}]
[]
[null,"(b) Residential Mortgage-Backed Securities"]
[]
[null,"BSCR Rating"]
[null,1,null,null,null,null,{"$f":"'Schedule IIB (EBS)'!H14+'Schedule IIC (EBS)'!H14+(MAX(0,'Schedule IID (EBS)'!H14-'Schedule IID (EBS)'!J14))+'Schedule IIE (EBS)'!H14+'Schedule IIF (EBS)'!H14","v":0},{"$f":"'Fixed Income Investments (Rev.)'!H27","v":6.0000000000000001E-3},{"$f":"IF(G30<0,0,G30*H30)","v":0},null,null,{"$f":"MAX(0,IF(K30=\"\",H30*G30,G30*K30))","v":0}]
[null,2,null,null,null,null,{"$f":"'Schedule IIB (EBS)'!H15+'Schedule IIC (EBS)'!H15+(MAX(0,'Schedule IID (EBS)'!H15-'Schedule IID (EBS)'!J15))+'Schedule IIE (EBS)'!H15+'Schedule IIF (EBS)'!H15","v":0},{"$f":"'Fixed Income Investments (Rev.)'!H28","v":1.2E-2},0,null,null,0]
[null,3,null,null,null,null,{"$f":"'Schedule IIB (EBS)'!H16+'Schedule IIC (EBS)'!H16+(MAX(0,'Schedule IID (EBS)'!H16-'Schedule IID (EBS)'!J16))+'Schedule IIE (EBS)'!H16+'Schedule IIF (EBS)'!H16","v":0},{"$f":"'Fixed Income Investments (Rev.)'!H29","v":0.02},0,null,null,0]
[null,4,null,null,null,null,{"$f":"'Schedule IIB (EBS)'!H17+'Schedule IIC (EBS)'!H17+(MAX(0,'Schedule IID (EBS)'!H17-'Schedule IID (EBS)'!J17))+'Schedule IIE (EBS)'!H17+'Schedule IIF (EBS)'!H17","v":0},{"$f":"'Fixed Income Investments (Rev.)'!H30","v":0.04},0,null,null,0]
[null,5,null,null,null,null,{"$f":"'Schedule IIB (EBS)'!H18+'Schedule IIC (EBS)'!H18+(MAX(0,'Schedule IID (EBS)'!H18-'Schedule IID (EBS)'!J18))+'Schedule IIE (EBS)'!H18+'Schedule IIF (EBS)'!H18","v":0},{"$f":"'Fixed Income Investments (Rev.)'!H31","v":0.11},0,null,null,0]
[null,6,null,null,null,null,{"$f":"'Schedule IIB (EBS)'!H19+'Schedule IIC (EBS)'!H19+(MAX(0,'Schedule IID (EBS)'!H19-'Schedule IID (EBS)'!J19))+'Schedule IIE (EBS)'!H19+'Schedule IIF (EBS)'!H19","v":0},{"$f":"'Fixed Income Investments (Rev.)'!H32","v":0.25},0,null,null,0]
[null,7,null,null,null,null,{"$f":"'Schedule IIB (EBS)'!H20+'Schedule IIC (EBS)'!H20+(MAX(0,'Schedule IID (EBS)'!H20-'Schedule IID (EBS)'!J20))+'Schedule IIE (EBS)'!H20+'Schedule IIF (EBS)'!H20","v":0},{"$f":"'Fixed Income Investments (Rev.)'!H33","v":0.35},0,null,null,0]
[null,8,null,null,null,null,{"$f":"'Schedule IIB (EBS)'!H21+'Schedule IIC (EBS)'!H21+(MAX(0,'Schedule IID (EBS)'!H21-'Schedule IID (EBS)'!J21))+'Schedule IIE (EBS)'!H21+'Schedule IIF (EBS)'!H21","v":0},{"$f":"'Fixed Income Investments (Rev.)'!H34","v":0.35},0,null,null,0]
[]
[null,"(b)  SUBTOTAL - RESIDENTIAL MORTGAGE-BACKED SECURITIES",null,null,null,null,{"$f":"SUM(G29:G38)","v":0},null,{"$f":"IF(SUM(I29:I37)>=0,SUM(I29:I37),0)","v":0},null,null,{"$f":"IF(SUM(L29:L37)>=0,SUM(L29:L37),0)","v":0}]
[]
[null,"(c) Commercial Mortgage-Backed Securities / Asset-Backed Securities"]
[]
[null,"BSCR Rating"]
[null,1,null,null,null,null,{"$f":"'Schedule IIB (EBS)'!L14+'Schedule IIC (EBS)'!L14+(MAX(0,'Schedule IID (EBS)'!L14-'Schedule IID (EBS)'!N14))+'Schedule IIE (EBS)'!L14+'Schedule IIF (EBS)'!L14","v":0},{"$f":"'Fixed Income Investments (Rev.)'!H41","v":5.0000000000000001E-3},{"$f":"IF(G44<0,0,G44*H44)","v":0},null,null,{"$f":"MAX(0,IF(K44=\"\",H44*G44,G44*K44))","v":0}]
[null,2,null,null,null,null,{"$f":"'Schedule IIB (EBS)'!L15+'Schedule IIC (EBS)'!L15+(MAX(0,'Schedule IID (EBS)'!L15-'Schedule IID (EBS)'!N15))+'Schedule IIE (EBS)'!L15+'Schedule IIF (EBS)'!L15","v":0},{"$f":"'Fixed Income Investments (Rev.)'!H42","v":0.01},0,null,null,0]
[null,3,null,null,null,null,{"$f":"'Schedule IIB (EBS)'!L16+'Schedule IIC (EBS)'!L16+(MAX(0,'Schedule IID (EBS)'!L16-'Schedule IID (EBS)'!N16))+'Schedule IIE (EBS)'!L16+'Schedule IIF (EBS)'!L16","v":0},{"$f":"'Fixed Income Investments (Rev.)'!H43","v":1.7999999999999999E-2},0,null,null,0]
[null,4,null,null,null,null,{"$f":"'Schedule IIB (EBS)'!L17+'Schedule IIC (EBS)'!L17+(MAX(0,'Schedule IID (EBS)'!L17-'Schedule IID (EBS)'!N17))+'Schedule IIE (EBS)'!L17+'Schedule IIF (EBS)'!L17","v":0},{"$f":"'Fixed Income Investments (Rev.)'!H44","v":3.5000000000000003E-2},0,null,null,0]
[null,5,null,null,null,null,{"$f":"'Schedule IIB (EBS)'!L18+'Schedule IIC (EBS)'!L18+(MAX(0,'Schedule IID (EBS)'!L18-'Schedule IID (EBS)'!N18))+'Schedule IIE (EBS)'!L18+'Schedule IIF (EBS)'!L18","v":0},{"$f":"'Fixed Income Investments (Rev.)'!H45","v":0.1},0,null,null,0]
[null,6,null,null,null,null,{"$f":"'Schedule IIB (EBS)'!L19+'Schedule IIC (EBS)'!L19+(MAX(0,'Schedule IID (EBS)'!L19-'Schedule IID (EBS)'!N19))+'Schedule IIE (EBS)'!L19+'Schedule IIF (EBS)'!L19","v":0},{"$f":"'Fixed Income Investments (Rev.)'!H46","v":0.2},0,null,null,0]
[null,7,null,null,null,null,{"$f":"'Schedule IIB (EBS)'!L20+'Schedule IIC (EBS)'!L20+(MAX(0,'Schedule IID (EBS)'!L20-'Schedule IID (EBS)'!N20))+'Schedule IIE (EBS)'!L20+'Schedule IIF (EBS)'!L20","v":0},{"$f":"'Fixed Income Investments (Rev.)'!H47","v":0.3},0,null,null,0]
[null,8,null,null,null,null,{"$f":"'Schedule IIB (EBS)'!L21+'Schedule IIC (EBS)'!L21+(MAX(0,'Schedule IID (EBS)'!L21-'Schedule IID (EBS)'!N21))+'Schedule IIE (EBS)'!L21+'Schedule IIF (EBS)'!L21","v":0},{"$f":"'Fixed Income Investments (Rev.)'!H48","v":0.35},0,null,null,0]
[]
[null,"(c)  SUBTOTAL - COMMERCIAL MORTGAGE-BACKED SECURITIES / ASSET-BACKED SECURITIES",null,null,null,null,{"$f":"SUM(G43:G52)","v":0},null,{"$f":"IF(SUM(I43:I51)>=0,SUM(I43:I51),0)","v":0},null,null,{"$f":"IF(SUM(L43:L51)>=0,SUM(L43:L51),0)","v":0}]
[]
[null,"(d) Bond Mutual Funds"]
[]
[null,"BSCR Rating"]
[null,0,null,null,null,null,{"$f":"'Schedule IIB (EBS)'!P13+'Schedule IIC (EBS)'!P13+(MAX(0,'Schedule IID (EBS)'!P13-'Schedule IID (EBS)'!R13))+'Schedule IIE (EBS)'!P13+'Schedule IIF (EBS)'!P13","v":0},{"$f":"'Fixed Income Investments (Rev.)'!H56","v":0},{"$f":"IF(G58<0,0,G58*H58)","v":0},null,null,{"$f":"MAX(0,IF(K58=\"\",H58*G58,G58*K58))","v":0}]
[null,1,null,null,null,null,{"$f":"'Schedule IIB (EBS)'!P14+'Schedule IIC (EBS)'!P14+(MAX(0,'Schedule IID (EBS)'!P14-'Schedule IID (EBS)'!R14))+'Schedule IIE (EBS)'!P14+'Schedule IIF (EBS)'!P14","v":0},{"$f":"'Fixed Income Investments (Rev.)'!H57","v":4.0000000000000001E-3},0,null,null,0]
[null,2,null,null,null,null,{"$f":"'Schedule IIB (EBS)'!P15+'Schedule IIC (EBS)'!P15+(MAX(0,'Schedule IID (EBS)'!P15-'Schedule IID (EBS)'!R15))+'Schedule IIE (EBS)'!P15+'Schedule IIF (EBS)'!P15","v":0},{"$f":"'Fixed Income Investments (Rev.)'!H58","v":8.0000000000000002E-3},0,null,null,0]
[null,3,null,null,null,null,{"$f":"'Schedule IIB (EBS)'!P16+'Schedule IIC (EBS)'!P16+(MAX(0,'Schedule IID (EBS)'!P16-'Schedule IID (EBS)'!R16))+'Schedule IIE (EBS)'!P16+'Schedule IIF (EBS)'!P16","v":0},{"$f":"'Fixed Income Investments (Rev.)'!H59","v":1.4999999999999999E-2},0,null,null,0]
[null,4,null,null,null,null,{"$f":"'Schedule IIB (EBS)'!P17+'Schedule IIC (EBS)'!P17+(MAX(0,'Schedule IID (EBS)'!P17-'Schedule IID (EBS)'!R17))+'Schedule IIE (EBS)'!P17+'Schedule IIF (EBS)'!P17","v":0},{"$f":"'Fixed Income Investments (Rev.)'!H60","v":0.03},0,null,null,0]
[null,5,null,null,null,null,{"$f":"'Schedule IIB (EBS)'!P18+'Schedule IIC (EBS)'!P18+(MAX(0,'Schedule IID (EBS)'!P18-'Schedule IID (EBS)'!R18))+'Schedule IIE (EBS)'!P18+'Schedule IIF (EBS)'!P18","v":0},{"$f":"'Fixed Income Investments (Rev.)'!H61","v":0.08},0,null,null,0]
[null,6,null,null,null,null,{"$f":"'Schedule IIB (EBS)'!P19+'Schedule IIC (EBS)'!P19+(MAX(0,'Schedule IID (EBS)'!P19-'Schedule IID (EBS)'!R19))+'Schedule IIE (EBS)'!P19+'Schedule IIF (EBS)'!P19","v":0},{"$f":"'Fixed Income Investments (Rev.)'!H62","v":0.15},0,null,null,0]
[null,7,null,null,null,null,{"$f":"'Schedule IIB (EBS)'!P20+'Schedule IIC (EBS)'!P20+(MAX(0,'Schedule IID (EBS)'!P20-'Schedule IID (EBS)'!R20))+'Schedule IIE (EBS)'!P20+'Schedule IIF (EBS)'!P20","v":0},{"$f":"'Fixed Income Investments (Rev.)'!H63","v":0.26300000000000001},0,null,null,0]
[null,8,null,null,null,null,{"$f":"'Schedule IIB (EBS)'!P21+'Schedule IIC (EBS)'!P21+(MAX(0,'Schedule IID (EBS)'!P21-'Schedule IID (EBS)'!R21))+'Schedule IIE (EBS)'!P21+'Schedule IIF (EBS)'!P21","v":0},{"$f":"'Fixed Income Investments (Rev.)'!H64","v":0.35},0,null,null,0]
[]
[null,"(d)  SUBTOTAL - BOND MUTUAL FUNDS",null,null,null,null,{"$f":"SUM(G58:G67)","v":0},null,{"$f":"IF(SUM(I58:I66)>=0,SUM(I58:I66),0)","v":0},null,null,{"$f":"IF(SUM(L58:L66)>=0,SUM(L58:L66),0)","v":0}]
[]
[null,"(e) Mortgage Loans"]
[]
[null,"Insured/Guaranteed Mortgages",null,null,null,null,{"$f":"'Schedule IIB (EBS)'!T22+'Schedule IIC (EBS)'!T22+(MAX(0,'Schedule IID (EBS)'!T22-'Schedule IID (EBS)'!V22))+'Schedule IIE (EBS)'!T22+'Schedule IIF (EBS)'!T22","v":0},{"$f":"'Fixed Income Investments (Rev.)'!H70","v":3.0000000000000001E-3},{"$f":"IF(G72<0,0,G72*H72)","v":0},null,null,{"$f":"MAX(0,IF(K72=\"\",H72*G72,G72*K72))","v":0}]
[null,"Other Commercial and Farm Mortgages",null,null,null,null,{"$f":"'Schedule IIB (EBS)'!T23+'Schedule IIC (EBS)'!T23+(MAX(0,'Schedule IID (EBS)'!T23-'Schedule IID (EBS)'!V23))+'Schedule IIE (EBS)'!T23+'Schedule IIF (EBS)'!T23","v":0},{"$f":"'Fixed Income Investments (Rev.)'!H71","v":0.05},{"$f":"IF(G73<0,0,G73*H73)","v":0},null,null,{"$f":"MAX(0,IF(K73=\"\",H73*G73,G73*K73))","v":0}]
[null,"Other Residential Mortgages",null,null,null,null,{"$f":"'Schedule IIB (EBS)'!T24+'Schedule IIC (EBS)'!T24+(MAX(0,'Schedule IID (EBS)'!T24-'Schedule IID (EBS)'!V24))+'Schedule IIE (EBS)'!T24+'Schedule IIF (EBS)'!T24","v":0},{"$f":"'Fixed Income Investments (Rev.)'!H72","v":1.4999999999999999E-2},{"$f":"IF(G74<0,0,G74*H74)","v":0},null,null,{"$f":"MAX(0,IF(K74=\"\",H74*G74,G74*K74))","v":0}]
[null,"Mortgages Not In Good Standing",null,null,null,null,{"$f":"'Schedule IIB (EBS)'!T25+'Schedule IIC (EBS)'!T25+(MAX(0,'Schedule IID (EBS)'!T25-'Schedule IID (EBS)'!V25))+'Schedule IIE (EBS)'!T25+'Schedule IIF (EBS)'!T25","v":0},{"$f":"'Fixed Income Investments (Rev.)'!H73","v":0.25},{"$f":"IF(G75<0,0,G75*H75)","v":0},null,null,{"$f":"MAX(0,IF(K75=\"\",H75*G75,G75*K75))","v":0}]
[]
[null,"(e)  SUBTOTAL - MORTGAGE LOANS",null,null,null,null,{"$f":"SUM(G72:G76)","v":0},null,{"$f":"IF(SUM(I72:I75)>=0,SUM(I72:I75),0)","v":0},null,null,{"$f":"IF(SUM(L72:L75)>=0,SUM(L72:L75),0)","v":0}]
[]
[null,"(f) Other Fixed Income Investments"]
[]
[null,"Other Loans",null,null,null,null,{"$f":"'Form 4EBS'!F54","v":0},{"$f":"'Fixed Income Investments (Rev.)'!H79","v":0.05},{"$f":"IF(G81<0,0,G81*H81)","v":0},null,null,{"$f":"MAX(0,IF(K81=\"\",H81*G81,G81*K81))","v":0}]
[]
[null,"Cash and Cash Equivalent Counterparty Balances By BSCR Rating"]
[]
[null,"BSCR Rating 0 ",null,null,null,null,{"$f":"'Schedule XIXA'!F81","v":0},{"$f":"'Fixed Income Investments (Rev.)'!H83","v":0},{"$f":"IF(G85<0,0,G85*H85)","v":0},null,null,{"$f":"MAX(0,IF(K85=\"\",H85*G85,G85*K85))","v":0}]
[null,"BSCR Rating 1",null,null,null,null,{"$f":"'Schedule XIXA'!F82","v":0},{"$f":"'Fixed Income Investments (Rev.)'!H84","v":1E-3},{"$f":"IF(G86<0,0,G86*H86)","v":0},null,null,{"$f":"MAX(0,IF(K86=\"\",H86*G86,G86*K86))","v":0}]
[null,"BSCR Rating 2",null,null,null,null,{"$f":"'Schedule XIXA'!F83","v":0},{"$f":"'Fixed Income Investments (Rev.)'!H85","v":2E-3},0,null,null,0]
[null,"BSCR Rating 3",null,null,null,null,{"$f":"'Schedule XIXA'!F84","v":0},{"$f":"'Fixed Income Investments (Rev.)'!H86","v":3.0000000000000001E-3},0,null,null,0]
[null,"BSCR Rating 4",null,null,null,null,{"$f":"'Schedule XIXA'!F85","v":0},{"$f":"'Fixed Income Investments (Rev.)'!H87","v":5.0000000000000001E-3},0,null,null,0]
[null,"BSCR Rating 5",null,null,null,null,{"$f":"'Schedule XIXA'!F86","v":0},{"$f":"'Fixed Income Investments (Rev.)'!H88","v":1.4999999999999999E-2},0,null,null,0]
[null,"BSCR Rating 6",null,null,null,null,{"$f":"'Schedule XIXA'!F87","v":0},{"$f":"'Fixed Income Investments (Rev.)'!H89","v":0.04},0,null,null,0]
[null,"BSCR Rating 7",null,null,null,null,{"$f":"'Schedule XIXA'!F88","v":0},{"$f":"'Fixed Income Investments (Rev.)'!H90","v":0.06},0,null,null,0]
[null,"BSCR Rating 8",null,null,null,null,{"$f":"'Schedule XIXA'!F89","v":0},{"$f":"'Fixed Income Investments (Rev.)'!H91","v":0.09},0,null,null,0]
[]
[null,"Total",null,null,null,null,{"$f":"SUM(G85:G94)","v":0},null,{"$f":"SUM(I85:I94)","v":0},null,null,{"$f":"SUM(L85:L94)","v":0}]
[]
[null,"Diversification Adj at 40%",null,null,null,null,null,null,{"$f":"SUM(I85:I93)*-('Schedule XIXA'!$F$98)","v":0},null,null,{"$f":"SUM(L85:L93)*-('Schedule XIXA'!$F$98)","v":0}]
[]
[null,"(f)  SUBTOTAL - OTHER FIXED INCOME SECURITIES",null,null,null,null,{"$f":"G81+G95","v":0},null,{"$f":"IF(SUM(I81,I95,I97)>=0,SUM(I81,I95,I97),0)","v":0},null,null,{"$f":"IF(SUM(L81,L95,L97)>=0,SUM(L81,L95,L97),0)","v":0}]
[]
[null,"(g) Spread Risk for Credit Derivatives"]
[]
[null,null,null,"Spread Up"]
[null,null,null,"Long Exposures",null,"Short Exposures"]
[null,"Spread Up",null,"Before Shock","After Shock","Before Shock","After Shock"]
[null,"BSCR Rating 0 ",null,{"$f":"'Schedule IIB (EBS)'!D68+'Schedule IIC (EBS)'!D68+'Schedule IID (EBS)'!D68+'Schedule IIE (EBS)'!D68+'Schedule IIF (EBS)'!D68","v":0},{"$f":"'Schedule IIB (EBS)'!F68+'Schedule IIC (EBS)'!F68+'Schedule IID (EBS)'!F68+'Schedule IIE (EBS)'!F68+'Schedule IIF (EBS)'!F68","v":0},{"$f":"'Schedule IIB (EBS)'!H68+'Schedule IIC (EBS)'!H68+'Schedule IID (EBS)'!H68+'Schedule IIE (EBS)'!H68+'Schedule IIF (EBS)'!H68","v":0},{"$f":"'Schedule IIB (EBS)'!J68+'Schedule IIC (EBS)'!J68+'Schedule IID (EBS)'!J68+'Schedule IIE (EBS)'!J68+'Schedule IIF (EBS)'!J68","v":0},0,{"$f":"'Fixed Income Investments (Rev.)'!I105","v":0},null,null,{"$f":"IF(K106=\"\",I106,K106)","v":0}]
[null,"BSCR Rating 1",null,{"$f":"'Schedule IIB (EBS)'!D69+'Schedule IIC (EBS)'!D69+'Schedule IID (EBS)'!D69+'Schedule IIE (EBS)'!D69+'Schedule IIF (EBS)'!D69","v":0},{"$f":"'Schedule IIB (EBS)'!F69+'Schedule IIC (EBS)'!F69+'Schedule IID (EBS)'!F69+'Schedule IIE (EBS)'!F69+'Schedule IIF (EBS)'!F69","v":0},{"$f":"'Schedule IIB (EBS)'!H69+'Schedule IIC (EBS)'!H69+'Schedule IID (EBS)'!H69+'Schedule IIE (EBS)'!H69+'Schedule IIF (EBS)'!H69","v":0},{"$f":"'Schedule IIB (EBS)'!J69+'Schedule IIC (EBS)'!J69+'Schedule IID (EBS)'!J69+'Schedule IIE (EBS)'!J69+'Schedule IIF (EBS)'!J69","v":0},130,{"$f":"'Fixed Income Investments (Rev.)'!I106","v":0},null,null,{"$f":"IF(K107=\"\",I107,K107)","v":0}]
[null,"BSCR Rating 2",null,{"$f":"'Schedule IIB (EBS)'!D70+'Schedule IIC (EBS)'!D70+'Schedule IID (EBS)'!D70+'Schedule IIE (EBS)'!D70+'Schedule IIF (EBS)'!D70","v":0},{"$f":"'Schedule IIB (EBS)'!F70+'Schedule IIC (EBS)'!F70+'Schedule IID (EBS)'!F70+'Schedule IIE (EBS)'!F70+'Schedule IIF (EBS)'!F70","v":0},{"$f":"'Schedule IIB (EBS)'!H70+'Schedule IIC (EBS)'!H70+'Schedule IID (EBS)'!H70+'Schedule IIE (EBS)'!H70+'Schedule IIF (EBS)'!H70","v":0},{"$f":"'Schedule IIB (EBS)'!J70+'Schedule IIC (EBS)'!J70+'Schedule IID (EBS)'!J70+'Schedule IIE (EBS)'!J70+'Schedule IIF (EBS)'!J70","v":0},150,{"$f":"'Fixed Income Investments (Rev.)'!I107","v":0},null,null,0]
[null,"BSCR Rating 3",null,{"$f":"'Schedule IIB (EBS)'!D71+'Schedule IIC (EBS)'!D71+'Schedule IID (EBS)'!D71+'Schedule IIE (EBS)'!D71+'Schedule IIF (EBS)'!D71","v":0},{"$f":"'Schedule IIB (EBS)'!F71+'Schedule IIC (EBS)'!F71+'Schedule IID (EBS)'!F71+'Schedule IIE (EBS)'!F71+'Schedule IIF (EBS)'!F71","v":0},{"$f":"'Schedule IIB (EBS)'!H71+'Schedule IIC (EBS)'!H71+'Schedule IID (EBS)'!H71+'Schedule IIE (EBS)'!H71+'Schedule IIF (EBS)'!H71","v":0},{"$f":"'Schedule IIB (EBS)'!J71+'Schedule IIC (EBS)'!J71+'Schedule IID (EBS)'!J71+'Schedule IIE (EBS)'!J71+'Schedule IIF (EBS)'!J71","v":0},260,{"$f":"'Fixed Income Investments (Rev.)'!I108","v":0},null,null,0]
[null,"BSCR Rating 4",null,{"$f":"'Schedule IIB (EBS)'!D72+'Schedule IIC (EBS)'!D72+'Schedule IID (EBS)'!D72+'Schedule IIE (EBS)'!D72+'Schedule IIF (EBS)'!D72","v":0},{"$f":"'Schedule IIB (EBS)'!F72+'Schedule IIC (EBS)'!F72+'Schedule IID (EBS)'!F72+'Schedule IIE (EBS)'!F72+'Schedule IIF (EBS)'!F72","v":0},{"$f":"'Schedule IIB (EBS)'!H72+'Schedule IIC (EBS)'!H72+'Schedule IID (EBS)'!H72+'Schedule IIE (EBS)'!H72+'Schedule IIF (EBS)'!H72","v":0},{"$f":"'Schedule IIB (EBS)'!J72+'Schedule IIC (EBS)'!J72+'Schedule IID (EBS)'!J72+'Schedule IIE (EBS)'!J72+'Schedule IIF (EBS)'!J72","v":0},450,{"$f":"'Fixed Income Investments (Rev.)'!I109","v":0},null,null,0]
[null,"BSCR Rating 5",null,{"$f":"'Schedule IIB (EBS)'!D73+'Schedule IIC (EBS)'!D73+'Schedule IID (EBS)'!D73+'Schedule IIE (EBS)'!D73+'Schedule IIF (EBS)'!D73","v":0},{"$f":"'Schedule IIB (EBS)'!F73+'Schedule IIC (EBS)'!F73+'Schedule IID (EBS)'!F73+'Schedule IIE (EBS)'!F73+'Schedule IIF (EBS)'!F73","v":0},{"$f":"'Schedule IIB (EBS)'!H73+'Schedule IIC (EBS)'!H73+'Schedule IID (EBS)'!H73+'Schedule IIE (EBS)'!H73+'Schedule IIF (EBS)'!H73","v":0},{"$f":"'Schedule IIB (EBS)'!J73+'Schedule IIC (EBS)'!J73+'Schedule IID (EBS)'!J73+'Schedule IIE (EBS)'!J73+'Schedule IIF (EBS)'!J73","v":0},840,{"$f":"'Fixed Income Investments (Rev.)'!I110","v":0},null,null,0]
[null,"BSCR Rating 6",null,{"$f":"'Schedule IIB (EBS)'!D74+'Schedule IIC (EBS)'!D74+'Schedule IID (EBS)'!D74+'Schedule IIE (EBS)'!D74+'Schedule IIF (EBS)'!D74","v":0},{"$f":"'Schedule IIB (EBS)'!F74+'Schedule IIC (EBS)'!F74+'Schedule IID (EBS)'!F74+'Schedule IIE (EBS)'!F74+'Schedule IIF (EBS)'!F74","v":0},{"$f":"'Schedule IIB (EBS)'!H74+'Schedule IIC (EBS)'!H74+'Schedule IID (EBS)'!H74+'Schedule IIE (EBS)'!H74+'Schedule IIF (EBS)'!H74","v":0},{"$f":"'Schedule IIB (EBS)'!J74+'Schedule IIC (EBS)'!J74+'Schedule IID (EBS)'!J74+'Schedule IIE (EBS)'!J74+'Schedule IIF (EBS)'!J74","v":0},1620,{"$f":"'Fixed Income Investments (Rev.)'!I111","v":0},null,null,0]
[null,"BSCR Rating 7",null,{"$f":"'Schedule IIB (EBS)'!D75+'Schedule IIC (EBS)'!D75+'Schedule IID (EBS)'!D75+'Schedule IIE (EBS)'!D75+'Schedule IIF (EBS)'!D75","v":0},{"$f":"'Schedule IIB (EBS)'!F75+'Schedule IIC (EBS)'!F75+'Schedule IID (EBS)'!F75+'Schedule IIE (EBS)'!F75+'Schedule IIF (EBS)'!F75","v":0},{"$f":"'Schedule IIB (EBS)'!H75+'Schedule IIC (EBS)'!H75+'Schedule IID (EBS)'!H75+'Schedule IIE (EBS)'!H75+'Schedule IIF (EBS)'!H75","v":0},{"$f":"'Schedule IIB (EBS)'!J75+'Schedule IIC (EBS)'!J75+'Schedule IID (EBS)'!J75+'Schedule IIE (EBS)'!J75+'Schedule IIF (EBS)'!J75","v":0},1620,{"$f":"'Fixed Income Investments (Rev.)'!I112","v":0},null,null,0]
[null,"BSCR Rating 8",null,{"$f":"'Schedule IIB (EBS)'!D76+'Schedule IIC (EBS)'!D76+'Schedule IID (EBS)'!D76+'Schedule IIE (EBS)'!D76+'Schedule IIF (EBS)'!D76","v":0},{"$f":"'Schedule IIB (EBS)'!F76+'Schedule IIC (EBS)'!F76+'Schedule IID (EBS)'!F76+'Schedule IIE (EBS)'!F76+'Schedule IIF (EBS)'!F76","v":0},{"$f":"'Schedule IIB (EBS)'!H76+'Schedule IIC (EBS)'!H76+'Schedule IID (EBS)'!H76+'Schedule IIE (EBS)'!H76+'Schedule IIF (EBS)'!H76","v":0},{"$f":"'Schedule IIB (EBS)'!J76+'Schedule IIC (EBS)'!J76+'Schedule IID (EBS)'!J76+'Schedule IIE (EBS)'!J76+'Schedule IIF (EBS)'!J76","v":0},1620,{"$f":"'Fixed Income Investments (Rev.)'!I113","v":0},null,null,0]
[null,"Total Spread Up",null,{"$f":"SUM(D106:D114)","v":0},{"$f":"SUM(E106:E114)","v":0},{"$f":"SUM(F106:F114)","v":0},{"$f":"SUM(G106:G114)","v":0},null,{"$f":"SUM(I106:I114)","v":0},null,{"$f":"SUM(K106:K114)","v":0},{"$f":"SUM(L106:L114)","v":0}]
[]
[null,null,null,"Spread Down"]
[null,null,null,"Long Exposures",null,"Short Exposures"]
[null,"Spread Up",null,"Before Shock","After Shock","Before Shock","After Shock"]
[null,"BSCR Rating 0 ",null,{"$f":"'Schedule IIB (EBS)'!N68+'Schedule IIC (EBS)'!N68+'Schedule IID (EBS)'!N68+'Schedule IIE (EBS)'!N68+'Schedule IIF (EBS)'!N68","v":0},{"$f":"'Schedule IIB (EBS)'!P68+'Schedule IIC (EBS)'!P68+'Schedule IID (EBS)'!P68+'Schedule IIE (EBS)'!P68+'Schedule IIF (EBS)'!P68","v":0},{"$f":"'Schedule IIB (EBS)'!R68+'Schedule IIC (EBS)'!R68+'Schedule IID (EBS)'!R68+'Schedule IIE (EBS)'!R68+'Schedule IIF (EBS)'!R68","v":0},{"$f":"'Schedule IIB (EBS)'!T68+'Schedule IIC (EBS)'!T68+'Schedule IID (EBS)'!T68+'Schedule IIE (EBS)'!T68+'Schedule IIF (EBS)'!T68","v":0},0,{"$f":"'Fixed Income Investments (Rev.)'!I120","v":0},null,null,{"$f":"IF(K120=\"\",I120,K120)","v":0}]
[null,"BSCR Rating 1",null,{"$f":"'Schedule IIB (EBS)'!N69+'Schedule IIC (EBS)'!N69+'Schedule IID (EBS)'!N69+'Schedule IIE (EBS)'!N69+'Schedule IIF (EBS)'!N69","v":0},{"$f":"'Schedule IIB (EBS)'!P69+'Schedule IIC (EBS)'!P69+'Schedule IID (EBS)'!P69+'Schedule IIE (EBS)'!P69+'Schedule IIF (EBS)'!P69","v":0},{"$f":"'Schedule IIB (EBS)'!R69+'Schedule IIC (EBS)'!R69+'Schedule IID (EBS)'!R69+'Schedule IIE (EBS)'!R69+'Schedule IIF (EBS)'!R69","v":0},{"$f":"'Schedule IIB (EBS)'!T69+'Schedule IIC (EBS)'!T69+'Schedule IID (EBS)'!T69+'Schedule IIE (EBS)'!T69+'Schedule IIF (EBS)'!T69","v":0},-0.75,{"$f":"'Fixed Income Investments (Rev.)'!I121","v":0},null,null,0]
[null,"BSCR Rating 2",null,{"$f":"'Schedule IIB (EBS)'!N70+'Schedule IIC (EBS)'!N70+'Schedule IID (EBS)'!N70+'Schedule IIE (EBS)'!N70+'Schedule IIF (EBS)'!N70","v":0},{"$f":"'Schedule IIB (EBS)'!P70+'Schedule IIC (EBS)'!P70+'Schedule IID (EBS)'!P70+'Schedule IIE (EBS)'!P70+'Schedule IIF (EBS)'!P70","v":0},{"$f":"'Schedule IIB (EBS)'!R70+'Schedule IIC (EBS)'!R70+'Schedule IID (EBS)'!R70+'Schedule IIE (EBS)'!R70+'Schedule IIF (EBS)'!R70","v":0},{"$f":"'Schedule IIB (EBS)'!T70+'Schedule IIC (EBS)'!T70+'Schedule IID (EBS)'!T70+'Schedule IIE (EBS)'!T70+'Schedule IIF (EBS)'!T70","v":0},-0.75,{"$f":"'Fixed Income Investments (Rev.)'!I122","v":0},null,null,0]
[null,"BSCR Rating 3",null,{"$f":"'Schedule IIB (EBS)'!N71+'Schedule IIC (EBS)'!N71+'Schedule IID (EBS)'!N71+'Schedule IIE (EBS)'!N71+'Schedule IIF (EBS)'!N71","v":0},{"$f":"'Schedule IIB (EBS)'!P71+'Schedule IIC (EBS)'!P71+'Schedule IID (EBS)'!P71+'Schedule IIE (EBS)'!P71+'Schedule IIF (EBS)'!P71","v":0},{"$f":"'Schedule IIB (EBS)'!R71+'Schedule IIC (EBS)'!R71+'Schedule IID (EBS)'!R71+'Schedule IIE (EBS)'!R71+'Schedule IIF (EBS)'!R71","v":0},{"$f":"'Schedule IIB (EBS)'!T71+'Schedule IIC (EBS)'!T71+'Schedule IID (EBS)'!T71+'Schedule IIE (EBS)'!T71+'Schedule IIF (EBS)'!T71","v":0},-0.75,{"$f":"'Fixed Income Investments (Rev.)'!I123","v":0},null,null,0]
[null,"BSCR Rating 4",null,{"$f":"'Schedule IIB (EBS)'!N72+'Schedule IIC (EBS)'!N72+'Schedule IID (EBS)'!N72+'Schedule IIE (EBS)'!N72+'Schedule IIF (EBS)'!N72","v":0},{"$f":"'Schedule IIB (EBS)'!P72+'Schedule IIC (EBS)'!P72+'Schedule IID (EBS)'!P72+'Schedule IIE (EBS)'!P72+'Schedule IIF (EBS)'!P72","v":0},{"$f":"'Schedule IIB (EBS)'!R72+'Schedule IIC (EBS)'!R72+'Schedule IID (EBS)'!R72+'Schedule IIE (EBS)'!R72+'Schedule IIF (EBS)'!R72","v":0},{"$f":"'Schedule IIB (EBS)'!T72+'Schedule IIC (EBS)'!T72+'Schedule IID (EBS)'!T72+'Schedule IIE (EBS)'!T72+'Schedule IIF (EBS)'!T72","v":0},-0.75,{"$f":"'Fixed Income Investments (Rev.)'!I124","v":0},null,null,0]
[null,"BSCR Rating 5",null,{"$f":"'Schedule IIB (EBS)'!N73+'Schedule IIC (EBS)'!N73+'Schedule IID (EBS)'!N73+'Schedule IIE (EBS)'!N73+'Schedule IIF (EBS)'!N73","v":0},{"$f":"'Schedule IIB (EBS)'!P73+'Schedule IIC (EBS)'!P73+'Schedule IID (EBS)'!P73+'Schedule IIE (EBS)'!P73+'Schedule IIF (EBS)'!P73","v":0},{"$f":"'Schedule IIB (EBS)'!R73+'Schedule IIC (EBS)'!R73+'Schedule IID (EBS)'!R73+'Schedule IIE (EBS)'!R73+'Schedule IIF (EBS)'!R73","v":0},{"$f":"'Schedule IIB (EBS)'!T73+'Schedule IIC (EBS)'!T73+'Schedule IID (EBS)'!T73+'Schedule IIE (EBS)'!T73+'Schedule IIF (EBS)'!T73","v":0},-0.75,{"$f":"'Fixed Income Investments (Rev.)'!I125","v":0},null,null,0]
[null,"BSCR Rating 6",null,{"$f":"'Schedule IIB (EBS)'!N74+'Schedule IIC (EBS)'!N74+'Schedule IID (EBS)'!N74+'Schedule IIE (EBS)'!N74+'Schedule IIF (EBS)'!N74","v":0},{"$f":"'Schedule IIB (EBS)'!P74+'Schedule IIC (EBS)'!P74+'Schedule IID (EBS)'!P74+'Schedule IIE (EBS)'!P74+'Schedule IIF (EBS)'!P74","v":0},{"$f":"'Schedule IIB (EBS)'!R74+'Schedule IIC (EBS)'!R74+'Schedule IID (EBS)'!R74+'Schedule IIE (EBS)'!R74+'Schedule IIF (EBS)'!R74","v":0},{"$f":"'Schedule IIB (EBS)'!T74+'Schedule IIC (EBS)'!T74+'Schedule IID (EBS)'!T74+'Schedule IIE (EBS)'!T74+'Schedule IIF (EBS)'!T74","v":0},-0.75,{"$f":"'Fixed Income Investments (Rev.)'!I126","v":0},null,null,0]
[null,"BSCR Rating 7",null,{"$f":"'Schedule IIB (EBS)'!N75+'Schedule IIC (EBS)'!N75+'Schedule IID (EBS)'!N75+'Schedule IIE (EBS)'!N75+'Schedule IIF (EBS)'!N75","v":0},{"$f":"'Schedule IIB (EBS)'!P75+'Schedule IIC (EBS)'!P75+'Schedule IID (EBS)'!P75+'Schedule IIE (EBS)'!P75+'Schedule IIF (EBS)'!P75","v":0},{"$f":"'Schedule IIB (EBS)'!R75+'Schedule IIC (EBS)'!R75+'Schedule IID (EBS)'!R75+'Schedule IIE (EBS)'!R75+'Schedule IIF (EBS)'!R75","v":0},{"$f":"'Schedule IIB (EBS)'!T75+'Schedule IIC (EBS)'!T75+'Schedule IID (EBS)'!T75+'Schedule IIE (EBS)'!T75+'Schedule IIF (EBS)'!T75","v":0},-0.75,{"$f":"'Fixed Income Investments (Rev.)'!I127","v":0},null,null,0]
[null,"BSCR Rating 8",null,{"$f":"'Schedule IIB (EBS)'!N76+'Schedule IIC (EBS)'!N76+'Schedule IID (EBS)'!N76+'Schedule IIE (EBS)'!N76+'Schedule IIF (EBS)'!N76","v":0},{"$f":"'Schedule IIB (EBS)'!P76+'Schedule IIC (EBS)'!P76+'Schedule IID (EBS)'!P76+'Schedule IIE (EBS)'!P76+'Schedule IIF (EBS)'!P76","v":0},{"$f":"'Schedule IIB (EBS)'!R76+'Schedule IIC (EBS)'!R76+'Schedule IID (EBS)'!R76+'Schedule IIE (EBS)'!R76+'Schedule IIF (EBS)'!R76","v":0},{"$f":"'Schedule IIB (EBS)'!T76+'Schedule IIC (EBS)'!T76+'Schedule IID (EBS)'!T76+'Schedule IIE (EBS)'!T76+'Schedule IIF (EBS)'!T76","v":0},-0.75,{"$f":"'Fixed Income Investments (Rev.)'!I128","v":0},null,null,0]
[null,"Total Spread Down",null,{"$f":"SUM(D120:D128)","v":0},{"$f":"SUM(E120:E128)","v":0},{"$f":"SUM(F120:F128)","v":0},{"$f":"SUM(G120:G128)","v":0},null,{"$f":"SUM(I120:I128)","v":0},null,{"$f":"SUM(K120:K128)","v":0},{"$f":"SUM(L120:L128)","v":0}]
[]
[null,"Spread Up",null,null,null,null,null,null,{"$f":"I115","v":0},null,null,{"$f":"L115","v":0}]
[null,"Spread Down",null,null,null,null,null,null,{"$f":"I129","v":0},null,null,{"$f":"L129","v":0}]
[]
[null,"(g) Total Spread Risk",null,null,null,null,null,null,{"$f":"MAX(0,I131,I132)","v":0},null,null,{"$f":"MAX(0,L131,L132)","v":0}]
[]
[null,"(h)  TOTAL FIXED INCOME INVESTMENTS [ (a)+(b)+(c)+(d)+(e)+(f)+(g) ]",null,null,null,null,{"$f":"G25+G39+G53+G68+G77+G99","v":0},null,{"$f":"IF(SUM(I25+I39+I53+I68+I77+I99+I134)>=0,SUM(I25+I39+I53+I68+I77+I99+I134),0)","v":0},null,null,{"$f":"IF(SUM(L25+L39+L53+L68+L77+L99+L134)>=0,SUM(L25+L39+L53+L68+L77+L99+L134),0)","v":0}]
[]
[null,null,null,"ASSETS",null,null,"LIABILITIES","STANDARD","STANDARD",null,"USER","USER"]
[null,"TYPE OF ",null,"Long Exposures","Short Exposures",null,null,"CAPITAL","REQUIRED",null,"CAPITAL","REQUIRED"]
[null,"EQUITY INVESTMENTS",null,"Qualified Assets","Qualified Assets","Not Qual. Assets",null,"FACTOR","CAPITAL",null,"FACTOR","CAPITAL"]
[]
[null,"Type 1 Equity Holdings"]
[null,"Strategic Holdings - Listed",null,{"$f":"'Schedule IIB (EBS)'!D39+'Schedule IIC (EBS)'!D39+'Schedule IID (EBS)'!D39+'Schedule IIE (EBS)'!D39+'Schedule IIF (EBS)'!D39","v":0},{"$f":"'Schedule IIB (EBS)'!H39+'Schedule IIC (EBS)'!H39+'Schedule IID (EBS)'!H39+'Schedule IIE (EBS)'!H39+'Schedule IIF (EBS)'!H39","v":0},{"$f":"'Schedule IIB (EBS)'!L39+'Schedule IIC (EBS)'!L39+'Schedule IID (EBS)'!L39+'Schedule IIE (EBS)'!L39+'Schedule IIF (EBS)'!L39","v":0},{"$f":"'Schedule IIB (EBS)'!P39+'Schedule IIC (EBS)'!P39+'Schedule IID (EBS)'!P39+'Schedule IIE (EBS)'!P39+'Schedule IIF (EBS)'!P39","v":0},{"$f":"'Equity Investments (Revised)'!N11","v":0.2},{"$f":"'Equity Investments (Revised)'!P11","v":0},null,null,{"$f":"IF(K143=\"\",I143,K143*(SUM(D143:F143)))","v":0}]
[null,"Duration Based",null,{"$f":"'Schedule IIB (EBS)'!D40+'Schedule IIC (EBS)'!D40+'Schedule IID (EBS)'!D40+'Schedule IIE (EBS)'!D40+'Schedule IIF (EBS)'!D40","v":0},{"$f":"'Schedule IIB (EBS)'!H40+'Schedule IIC (EBS)'!H40+'Schedule IID (EBS)'!H40+'Schedule IIE (EBS)'!H40+'Schedule IIF (EBS)'!H40","v":0},{"$f":"'Schedule IIB (EBS)'!L40+'Schedule IIC (EBS)'!L40+'Schedule IID (EBS)'!L40+'Schedule IIE (EBS)'!L40+'Schedule IIF (EBS)'!L40","v":0},{"$f":"'Schedule IIB (EBS)'!P40+'Schedule IIC (EBS)'!P40+'Schedule IID (EBS)'!P40+'Schedule IIE (EBS)'!P40+'Schedule IIF (EBS)'!P40","v":0},{"$f":"'Equity Investments (Revised)'!N12","v":0.2},{"$f":"'Equity Investments (Revised)'!P12","v":0},null,null,{"$f":"IF(K144=\"\",I144,K144*(SUM(D144:F144)))","v":0}]
[null,"Listed Equity Securities in Developed Markets",null,{"$f":"'Schedule IIB (EBS)'!D41+'Schedule IIC (EBS)'!D41+'Schedule IID (EBS)'!D41+'Schedule IIE (EBS)'!D41+'Schedule IIF (EBS)'!D41","v":0},{"$f":"'Schedule IIB (EBS)'!H41+'Schedule IIC (EBS)'!H41+'Schedule IID (EBS)'!H41+'Schedule IIE (EBS)'!H41+'Schedule IIF (EBS)'!H41","v":0},{"$f":"'Schedule IIB (EBS)'!L41+'Schedule IIC (EBS)'!L41+'Schedule IID (EBS)'!L41+'Schedule IIE (EBS)'!L41+'Schedule IIF (EBS)'!L41","v":0},{"$f":"'Schedule IIB (EBS)'!P41+'Schedule IIC (EBS)'!P41+'Schedule IID (EBS)'!P41+'Schedule IIE (EBS)'!P41+'Schedule IIF (EBS)'!P41","v":0},{"$f":"'Equity Investments (Revised)'!N13","v":0.35},{"$f":"'Equity Investments (Revised)'!P13","v":0},null,null,0]
[null,"Preferred Stocks, BSCR Rating 1",null,{"$f":"'Schedule IIB (EBS)'!D42+'Schedule IIC (EBS)'!D42+'Schedule IID (EBS)'!D42+'Schedule IIE (EBS)'!D42+'Schedule IIF (EBS)'!D42","v":0},{"$f":"'Schedule IIB (EBS)'!H42+'Schedule IIC (EBS)'!H42+'Schedule IID (EBS)'!H42+'Schedule IIE (EBS)'!H42+'Schedule IIF (EBS)'!H42","v":0},{"$f":"'Schedule IIB (EBS)'!L42+'Schedule IIC (EBS)'!L42+'Schedule IID (EBS)'!L42+'Schedule IIE (EBS)'!L42+'Schedule IIF (EBS)'!L42","v":0},{"$f":"'Schedule IIB (EBS)'!P42+'Schedule IIC (EBS)'!P42+'Schedule IID (EBS)'!P42+'Schedule IIE (EBS)'!P42+'Schedule IIF (EBS)'!P42","v":0},{"$f":"'Equity Investments (Revised)'!N14","v":6.0000000000000001E-3},{"$f":"'Equity Investments (Revised)'!P14","v":0},null,null,0]
[null,"Preferred Stocks, BSCR Rating 2",null,{"$f":"'Schedule IIB (EBS)'!D43+'Schedule IIC (EBS)'!D43+'Schedule IID (EBS)'!D43+'Schedule IIE (EBS)'!D43+'Schedule IIF (EBS)'!D43","v":0},{"$f":"'Schedule IIB (EBS)'!H43+'Schedule IIC (EBS)'!H43+'Schedule IID (EBS)'!H43+'Schedule IIE (EBS)'!H43+'Schedule IIF (EBS)'!H43","v":0},{"$f":"'Schedule IIB (EBS)'!L43+'Schedule IIC (EBS)'!L43+'Schedule IID (EBS)'!L43+'Schedule IIE (EBS)'!L43+'Schedule IIF (EBS)'!L43","v":0},{"$f":"'Schedule IIB (EBS)'!P43+'Schedule IIC (EBS)'!P43+'Schedule IID (EBS)'!P43+'Schedule IIE (EBS)'!P43+'Schedule IIF (EBS)'!P43","v":0},{"$f":"'Equity Investments (Revised)'!N15","v":1.2E-2},{"$f":"'Equity Investments (Revised)'!P15","v":0},null,null,0]
[null,"Preferred Stocks, BSCR Rating 3",null,{"$f":"'Schedule IIB (EBS)'!D44+'Schedule IIC (EBS)'!D44+'Schedule IID (EBS)'!D44+'Schedule IIE (EBS)'!D44+'Schedule IIF (EBS)'!D44","v":0},{"$f":"'Schedule IIB (EBS)'!H44+'Schedule IIC (EBS)'!H44+'Schedule IID (EBS)'!H44+'Schedule IIE (EBS)'!H44+'Schedule IIF (EBS)'!H44","v":0},{"$f":"'Schedule IIB (EBS)'!L44+'Schedule IIC (EBS)'!L44+'Schedule IID (EBS)'!L44+'Schedule IIE (EBS)'!L44+'Schedule IIF (EBS)'!L44","v":0},{"$f":"'Schedule IIB (EBS)'!P44+'Schedule IIC (EBS)'!P44+'Schedule IID (EBS)'!P44+'Schedule IIE (EBS)'!P44+'Schedule IIF (EBS)'!P44","v":0},{"$f":"'Equity Investments (Revised)'!N16","v":0.02},{"$f":"'Equity Investments (Revised)'!P16","v":0},null,null,0]
[null,"Preferred Stocks, BSCR Rating 4",null,{"$f":"'Schedule IIB (EBS)'!D45+'Schedule IIC (EBS)'!D45+'Schedule IID (EBS)'!D45+'Schedule IIE (EBS)'!D45+'Schedule IIF (EBS)'!D45","v":0},{"$f":"'Schedule IIB (EBS)'!H45+'Schedule IIC (EBS)'!H45+'Schedule IID (EBS)'!H45+'Schedule IIE (EBS)'!H45+'Schedule IIF (EBS)'!H45","v":0},{"$f":"'Schedule IIB (EBS)'!L45+'Schedule IIC (EBS)'!L45+'Schedule IID (EBS)'!L45+'Schedule IIE (EBS)'!L45+'Schedule IIF (EBS)'!L45","v":0},{"$f":"'Schedule IIB (EBS)'!P45+'Schedule IIC (EBS)'!P45+'Schedule IID (EBS)'!P45+'Schedule IIE (EBS)'!P45+'Schedule IIF (EBS)'!P45","v":0},{"$f":"'Equity Investments (Revised)'!N17","v":0.04},{"$f":"'Equity Investments (Revised)'!P17","v":0},null,null,0]
[null,"Preferred Stocks, BSCR Rating 5",null,{"$f":"'Schedule IIB (EBS)'!D46+'Schedule IIC (EBS)'!D46+'Schedule IID (EBS)'!D46+'Schedule IIE (EBS)'!D46+'Schedule IIF (EBS)'!D46","v":0},{"$f":"'Schedule IIB (EBS)'!H46+'Schedule IIC (EBS)'!H46+'Schedule IID (EBS)'!H46+'Schedule IIE (EBS)'!H46+'Schedule IIF (EBS)'!H46","v":0},{"$f":"'Schedule IIB (EBS)'!L46+'Schedule IIC (EBS)'!L46+'Schedule IID (EBS)'!L46+'Schedule IIE (EBS)'!L46+'Schedule IIF (EBS)'!L46","v":0},{"$f":"'Schedule IIB (EBS)'!P46+'Schedule IIC (EBS)'!P46+'Schedule IID (EBS)'!P46+'Schedule IIE (EBS)'!P46+'Schedule IIF (EBS)'!P46","v":0},{"$f":"'Equity Investments (Revised)'!N18","v":0.11},{"$f":"'Equity Investments (Revised)'!P18","v":0},null,null,0]
[null,"Preferred Stocks, BSCR Rating 6",null,{"$f":"'Schedule IIB (EBS)'!D47+'Schedule IIC (EBS)'!D47+'Schedule IID (EBS)'!D47+'Schedule IIE (EBS)'!D47+'Schedule IIF (EBS)'!D47","v":0},{"$f":"'Schedule IIB (EBS)'!H47+'Schedule IIC (EBS)'!H47+'Schedule IID (EBS)'!H47+'Schedule IIE (EBS)'!H47+'Schedule IIF (EBS)'!H47","v":0},{"$f":"'Schedule IIB (EBS)'!L47+'Schedule IIC (EBS)'!L47+'Schedule IID (EBS)'!L47+'Schedule IIE (EBS)'!L47+'Schedule IIF (EBS)'!L47","v":0},{"$f":"'Schedule IIB (EBS)'!P47+'Schedule IIC (EBS)'!P47+'Schedule IID (EBS)'!P47+'Schedule IIE (EBS)'!P47+'Schedule IIF (EBS)'!P47","v":0},{"$f":"'Equity Investments (Revised)'!N19","v":0.25},{"$f":"'Equity Investments (Revised)'!P19","v":0},null,null,0]
[null,"Preferred Stocks, BSCR Rating 7",null,{"$f":"'Schedule IIB (EBS)'!D48+'Schedule IIC (EBS)'!D48+'Schedule IID (EBS)'!D48+'Schedule IIE (EBS)'!D48+'Schedule IIF (EBS)'!D48","v":0},{"$f":"'Schedule IIB (EBS)'!H48+'Schedule IIC (EBS)'!H48+'Schedule IID (EBS)'!H48+'Schedule IIE (EBS)'!H48+'Schedule IIF (EBS)'!H48","v":0},{"$f":"'Schedule IIB (EBS)'!L48+'Schedule IIC (EBS)'!L48+'Schedule IID (EBS)'!L48+'Schedule IIE (EBS)'!L48+'Schedule IIF (EBS)'!L48","v":0},{"$f":"'Schedule IIB (EBS)'!P48+'Schedule IIC (EBS)'!P48+'Schedule IID (EBS)'!P48+'Schedule IIE (EBS)'!P48+'Schedule IIF (EBS)'!P48","v":0},{"$f":"'Equity Investments (Revised)'!N20","v":0.35},{"$f":"'Equity Investments (Revised)'!P20","v":0},null,null,0]
[null,"Preferred Stocks, BSCR Rating 8",null,{"$f":"'Schedule IIB (EBS)'!D49+'Schedule IIC (EBS)'!D49+'Schedule IID (EBS)'!D49+'Schedule IIE (EBS)'!D49+'Schedule IIF (EBS)'!D49","v":0},{"$f":"'Schedule IIB (EBS)'!H49+'Schedule IIC (EBS)'!H49+'Schedule IID (EBS)'!H49+'Schedule IIE (EBS)'!H49+'Schedule IIF (EBS)'!H49","v":0},{"$f":"'Schedule IIB (EBS)'!L49+'Schedule IIC (EBS)'!L49+'Schedule IID (EBS)'!L49+'Schedule IIE (EBS)'!L49+'Schedule IIF (EBS)'!L49","v":0},{"$f":"'Schedule IIB (EBS)'!P49+'Schedule IIC (EBS)'!P49+'Schedule IID (EBS)'!P49+'Schedule IIE (EBS)'!P49+'Schedule IIF (EBS)'!P49","v":0},{"$f":"'Equity Investments (Revised)'!N21","v":0.35},{"$f":"'Equity Investments (Revised)'!P21","v":0},null,null,0]
[null,"Equity Derivatives on Type 1 Equities",null,{"$f":"'Schedule IIB (EBS)'!D50+'Schedule IIC (EBS)'!D50+'Schedule IID (EBS)'!D50+'Schedule IIE (EBS)'!D50+'Schedule IIF (EBS)'!D50","v":0},{"$f":"'Schedule IIB (EBS)'!H50+'Schedule IIC (EBS)'!H50+'Schedule IID (EBS)'!H50+'Schedule IIE (EBS)'!H50+'Schedule IIF (EBS)'!H50","v":0},{"$f":"'Schedule IIB (EBS)'!L50+'Schedule IIC (EBS)'!L50+'Schedule IID (EBS)'!L50+'Schedule IIE (EBS)'!L50+'Schedule IIF (EBS)'!L50","v":0},{"$f":"'Schedule IIB (EBS)'!P50+'Schedule IIC (EBS)'!P50+'Schedule IID (EBS)'!P50+'Schedule IIE (EBS)'!P50+'Schedule IIF (EBS)'!P50","v":0},{"$f":"'Equity Investments (Revised)'!N22","v":0.35},{"$f":"'Equity Investments (Revised)'!P22","v":0},null,null,0]
[]
[null,"Subtotal - Type 1 Equity Holdings",null,{"$f":"SUM(D143:D155)","v":0},{"$f":"SUM(E143:E155)","v":0},{"$f":"SUM(F143:F155)","v":0},{"$f":"SUM(G143:G155)","v":0},null,{"$f":"MAX(SUM(I143:I154),0)","v":0},null,null,{"$f":"MAX(SUM(L143:L154),0)","v":0}]
[]
[null,"Type 2 Equity Holdings"]
[null,"Strategic Holdings - Unlisted",null,{"$f":"'Schedule IIB (EBS)'!D51+'Schedule IIC (EBS)'!D51+'Schedule IID (EBS)'!D51+'Schedule IIE (EBS)'!D51+'Schedule IIF (EBS)'!D51","v":0},{"$f":"'Schedule IIB (EBS)'!H51+'Schedule IIC (EBS)'!H51+'Schedule IID (EBS)'!H51+'Schedule IIE (EBS)'!H51+'Schedule IIF (EBS)'!H51","v":0},{"$f":"'Schedule IIB (EBS)'!L51+'Schedule IIC (EBS)'!L51+'Schedule IID (EBS)'!L51+'Schedule IIE (EBS)'!L51+'Schedule IIF (EBS)'!L51","v":0},{"$f":"'Schedule IIB (EBS)'!P51+'Schedule IIC (EBS)'!P51+'Schedule IID (EBS)'!P51+'Schedule IIE (EBS)'!P51+'Schedule IIF (EBS)'!P51","v":0},{"$f":"'Equity Investments (Revised)'!N27","v":0.2},{"$f":"'Equity Investments (Revised)'!P27","v":0},null,null,{"$f":"IF(K159=\"\",I159,K159*(SUM(D159:F159)))","v":0}]
[null,"Other Equities",null,{"$f":"'Schedule IIB (EBS)'!D52+'Schedule IIC (EBS)'!D52+'Schedule IID (EBS)'!D52+'Schedule IIE (EBS)'!D52+'Schedule IIF (EBS)'!D52","v":0},{"$f":"'Schedule IIB (EBS)'!H52+'Schedule IIC (EBS)'!H52+'Schedule IID (EBS)'!H52+'Schedule IIE (EBS)'!H52+'Schedule IIF (EBS)'!H52","v":0},{"$f":"'Schedule IIB (EBS)'!L52+'Schedule IIC (EBS)'!L52+'Schedule IID (EBS)'!L52+'Schedule IIE (EBS)'!L52+'Schedule IIF (EBS)'!L52","v":0},{"$f":"'Schedule IIB (EBS)'!P52+'Schedule IIC (EBS)'!P52+'Schedule IID (EBS)'!P52+'Schedule IIE (EBS)'!P52+'Schedule IIF (EBS)'!P52","v":0},{"$f":"'Equity Investments (Revised)'!N28","v":0.45},{"$f":"'Equity Investments (Revised)'!P28","v":0},null,null,0]
[null,"Letters of Credit",null,{"$f":"'Schedule IIB (EBS)'!D53+'Schedule IIC (EBS)'!D53+'Schedule IID (EBS)'!D53+'Schedule IIE (EBS)'!D53+'Schedule IIF (EBS)'!D53","v":0},{"$f":"'Schedule IIB (EBS)'!H53+'Schedule IIC (EBS)'!H53+'Schedule IID (EBS)'!H53+'Schedule IIE (EBS)'!H53+'Schedule IIF (EBS)'!H53","v":0},{"$f":"'Schedule IIB (EBS)'!L53+'Schedule IIC (EBS)'!L53+'Schedule IID (EBS)'!L53+'Schedule IIE (EBS)'!L53+'Schedule IIF (EBS)'!L53","v":0},{"$f":"'Schedule IIB (EBS)'!P53+'Schedule IIC (EBS)'!P53+'Schedule IID (EBS)'!P53+'Schedule IIE (EBS)'!P53+'Schedule IIF (EBS)'!P53","v":0},{"$f":"'Equity Investments (Revised)'!N29","v":0.2},{"$f":"'Equity Investments (Revised)'!P29","v":0},null,null,0]
[null,"Intangible assets",null,{"$f":"'Schedule IIB (EBS)'!D54+'Schedule IIC (EBS)'!D54+'Schedule IID (EBS)'!D54+'Schedule IIE (EBS)'!D54+'Schedule IIF (EBS)'!D54","v":0},{"$f":"'Schedule IIB (EBS)'!H54+'Schedule IIC (EBS)'!H54+'Schedule IID (EBS)'!H54+'Schedule IIE (EBS)'!H54+'Schedule IIF (EBS)'!H54","v":0},{"$f":"'Schedule IIB (EBS)'!L54+'Schedule IIC (EBS)'!L54+'Schedule IID (EBS)'!L54+'Schedule IIE (EBS)'!L54+'Schedule IIF (EBS)'!L54","v":0},{"$f":"'Schedule IIB (EBS)'!P54+'Schedule IIC (EBS)'!P54+'Schedule IID (EBS)'!P54+'Schedule IIE (EBS)'!P54+'Schedule IIF (EBS)'!P54","v":0},{"$f":"'Equity Investments (Revised)'!N30","v":0.2},{"$f":"'Equity Investments (Revised)'!P30","v":0},null,null,0]
[null,"Pension Benefit Surplus",null,{"$f":"'Schedule IIB (EBS)'!D55+'Schedule IIC (EBS)'!D55+'Schedule IID (EBS)'!D55+'Schedule IIE (EBS)'!D55+'Schedule IIF (EBS)'!D55","v":0},{"$f":"'Schedule IIB (EBS)'!H55+'Schedule IIC (EBS)'!H55+'Schedule IID (EBS)'!H55+'Schedule IIE (EBS)'!H55+'Schedule IIF (EBS)'!H55","v":0},{"$f":"'Schedule IIB (EBS)'!L55+'Schedule IIC (EBS)'!L55+'Schedule IID (EBS)'!L55+'Schedule IIE (EBS)'!L55+'Schedule IIF (EBS)'!L55","v":0},{"$f":"'Schedule IIB (EBS)'!P55+'Schedule IIC (EBS)'!P55+'Schedule IID (EBS)'!P55+'Schedule IIE (EBS)'!P55+'Schedule IIF (EBS)'!P55","v":0},{"$f":"'Equity Investments (Revised)'!N31","v":0.2},{"$f":"'Equity Investments (Revised)'!P31","v":0},null,null,0]
[null,"Equity Derivatives on Type 2 Equities",null,{"$f":"'Schedule IIB (EBS)'!D56+'Schedule IIC (EBS)'!D56+'Schedule IID (EBS)'!D56+'Schedule IIE (EBS)'!D56+'Schedule IIF (EBS)'!D56","v":0},{"$f":"'Schedule IIB (EBS)'!H56+'Schedule IIC (EBS)'!H56+'Schedule IID (EBS)'!H56+'Schedule IIE (EBS)'!H56+'Schedule IIF (EBS)'!H56","v":0},{"$f":"'Schedule IIB (EBS)'!L56+'Schedule IIC (EBS)'!L56+'Schedule IID (EBS)'!L56+'Schedule IIE (EBS)'!L56+'Schedule IIF (EBS)'!L56","v":0},{"$f":"'Schedule IIB (EBS)'!P56+'Schedule IIC (EBS)'!P56+'Schedule IID (EBS)'!P56+'Schedule IIE (EBS)'!P56+'Schedule IIF (EBS)'!P56","v":0},{"$f":"'Equity Investments (Revised)'!N32","v":0.45},{"$f":"'Equity Investments (Revised)'!P32","v":0},null,null,0]
[]
[null,"Subtotal - Type 2 Equity Holdings",null,{"$f":"SUM(D159:D165)","v":0},{"$f":"SUM(E159:E165)","v":0},{"$f":"SUM(F159:F165)","v":0},{"$f":"SUM(G159:G165)","v":0},null,{"$f":"MAX(SUM(I159:I164),0)","v":0},null,null,{"$f":"MAX(SUM(L159:L164),0)","v":0}]
[]
[null,"Type 3 Equity Holdings"]
[null,"Infrastructure",null,{"$f":"'Schedule IIB (EBS)'!D57+'Schedule IIC (EBS)'!D57+'Schedule IID (EBS)'!D57+'Schedule IIE (EBS)'!D57+'Schedule IIF (EBS)'!D57","v":0},{"$f":"'Schedule IIB (EBS)'!H57+'Schedule IIC (EBS)'!H57+'Schedule IID (EBS)'!H57+'Schedule IIE (EBS)'!H57+'Schedule IIF (EBS)'!H57","v":0},{"$f":"'Schedule IIB (EBS)'!L57+'Schedule IIC (EBS)'!L57+'Schedule IID (EBS)'!L57+'Schedule IIE (EBS)'!L57+'Schedule IIF (EBS)'!L57","v":0},{"$f":"'Schedule IIB (EBS)'!P57+'Schedule IIC (EBS)'!P57+'Schedule IID (EBS)'!P57+'Schedule IIE (EBS)'!P57+'Schedule IIF (EBS)'!P57","v":0},{"$f":"'Equity Investments (Revised)'!N37","v":0.25},{"$f":"'Equity Investments (Revised)'!P37","v":0},null,null,{"$f":"IF(K169=\"\",I169,K169*(SUM(D169:F169)))","v":0}]
[null,"Derivatives on Infrastructure",null,{"$f":"'Schedule IIB (EBS)'!D58+'Schedule IIC (EBS)'!D58+'Schedule IID (EBS)'!D58+'Schedule IIE (EBS)'!D58+'Schedule IIF (EBS)'!D58","v":0},{"$f":"'Schedule IIB (EBS)'!H58+'Schedule IIC (EBS)'!H58+'Schedule IID (EBS)'!H58+'Schedule IIE (EBS)'!H58+'Schedule IIF (EBS)'!H58","v":0},{"$f":"'Schedule IIB (EBS)'!L58+'Schedule IIC (EBS)'!L58+'Schedule IID (EBS)'!L58+'Schedule IIE (EBS)'!L58+'Schedule IIF (EBS)'!L58","v":0},{"$f":"'Schedule IIB (EBS)'!P58+'Schedule IIC (EBS)'!P58+'Schedule IID (EBS)'!P58+'Schedule IIE (EBS)'!P58+'Schedule IIF (EBS)'!P58","v":0},{"$f":"'Equity Investments (Revised)'!N38","v":0.25},{"$f":"'Equity Investments (Revised)'!P38","v":0},null,null,0]
[]
[null,"Subtotal - Type 3 Equity Holdings",null,{"$f":"SUM(D169:D171)","v":0},{"$f":"SUM(E169:E171)","v":0},{"$f":"SUM(F169:F171)","v":0},{"$f":"SUM(G169:G171)","v":0},null,{"$f":"MAX(SUM(I169:I171),0)","v":0},null,null,{"$f":"MAX(SUM(L169:L171),0)","v":0}]
[]
[null,"Type 4 Equity Holdings"]
[null,"Equity Real Estate 1",null,{"$f":"'Schedule IIB (EBS)'!D59+'Schedule IIC (EBS)'!D59+'Schedule IID (EBS)'!D59+'Schedule IIE (EBS)'!D59+'Schedule IIF (EBS)'!D59","v":0},{"$f":"'Schedule IIB (EBS)'!H59+'Schedule IIC (EBS)'!H59+'Schedule IID (EBS)'!H59+'Schedule IIE (EBS)'!H59+'Schedule IIF (EBS)'!H59","v":0},{"$f":"'Schedule IIB (EBS)'!L59+'Schedule IIC (EBS)'!L59+'Schedule IID (EBS)'!L59+'Schedule IIE (EBS)'!L59+'Schedule IIF (EBS)'!L59","v":0},{"$f":"'Schedule IIB (EBS)'!P59+'Schedule IIC (EBS)'!P59+'Schedule IID (EBS)'!P59+'Schedule IIE (EBS)'!P59+'Schedule IIF (EBS)'!P59","v":0},{"$f":"'Equity Investments (Revised)'!N43","v":0.1},{"$f":"'Equity Investments (Revised)'!P43","v":0},null,null,{"$f":"IF(K175=\"\",I175,K175*(SUM(D175:F175)))","v":0}]
[null,"Equity Real Estate 2",null,{"$f":"'Schedule IIB (EBS)'!D60+'Schedule IIC (EBS)'!D60+'Schedule IID (EBS)'!D60+'Schedule IIE (EBS)'!D60+'Schedule IIF (EBS)'!D60","v":0},{"$f":"'Schedule IIB (EBS)'!H60+'Schedule IIC (EBS)'!H60+'Schedule IID (EBS)'!H60+'Schedule IIE (EBS)'!H60+'Schedule IIF (EBS)'!H60","v":0},{"$f":"'Schedule IIB (EBS)'!L60+'Schedule IIC (EBS)'!L60+'Schedule IID (EBS)'!L60+'Schedule IIE (EBS)'!L60+'Schedule IIF (EBS)'!L60","v":0},{"$f":"'Schedule IIB (EBS)'!P60+'Schedule IIC (EBS)'!P60+'Schedule IID (EBS)'!P60+'Schedule IIE (EBS)'!P60+'Schedule IIF (EBS)'!P60","v":0},{"$f":"'Equity Investments (Revised)'!N44","v":0.2},{"$f":"'Equity Investments (Revised)'!P44","v":0},null,null,0]
[]
[null,"Subtotal - Type 4 Equity Holdings",null,{"$f":"SUM(D175:D177)","v":0},{"$f":"SUM(E175:E177)","v":0},{"$f":"SUM(F175:F177)","v":0},{"$f":"SUM(G175:G177)","v":0},null,{"$f":"MAX(SUM(I175:I177),0)","v":0},null,null,{"$f":"MAX(SUM(L175:L177),0)","v":0}]
[]
[null,"Total Equity Risk before Diversification"]
[]
[null,"Correlation Matrix","Type 1","Type 2","Type 3","Type 4","W/O Mgmt. Action","Mgmt. Action",null,null,"W/O Mgmt. Action","Mgmt. Action"]
[null,"Type 1",1,0.75,0.75,0.5,{"$f":"I156","v":0},{"$f":"'Equity Investments (Revised)'!R51","v":0},null,null,{"$f":"L156","v":0},{"$f":"H183","v":0}]
[null,"Type 2",0.75,1,0.75,0.5,{"$f":"I166","v":0},{"$f":"'Equity Investments (Revised)'!R52","v":0},null,null,{"$f":"L166","v":0},{"$f":"H184","v":0}]
[null,"Type 3",0.75,0.75,1,0.5,{"$f":"I172","v":0},{"$f":"'Equity Investments (Revised)'!R53","v":0},null,null,{"$f":"L172","v":0},0]
[null,"Type 4",0.5,0.5,0.5,1,{"$f":"I178","v":0},{"$f":"'Equity Investments (Revised)'!R54","v":0},null,null,{"$f":"L178","v":0},0]
[]
[null,"Adjustment for Grandfathering of Equity Holdings for years-ending 2018 and prior"]
[]
[null,"(f)  TOTAL EQUITY INVESTMENTS (AFTER CORRELATION ADJUSTMENT)",null,null,null,null,{"$f":"SQRT(MMULT(TRANSPOSE(G183:G186),MMULT($C$183:$F$186,G183:G186)))+G188","v":0},{"$f":"SQRT(MMULT(TRANSPOSE(H183:H186),MMULT($C$183:$F$186,H183:H186)))+H188","v":0},null,null,{"$f":"SQRT(MMULT(TRANSPOSE(K183:K186),MMULT($C$183:$F$186,K183:K186)))+K188","v":0},{"$f":"SQRT(MMULT(TRANSPOSE(L183:L186),MMULT($C$183:$F$186,L183:L186)))+L188","v":0}]
[]
[null,null,null,null,null,null,"STANDARD","REQUIRED","REQUIRED",null,"USER","USER"]
[null,"TYPE OF ",null,null,null,"ASSET","CAPITAL","CAPITAL","CAPITAL",null,"CAPITAL","CAPITAL"]
[null,"INTEREST LIQUIDITY RISK",null,null,null,"VALUE","FACTOR","W/O MGMT","W MGMT ACTION",null,"W/O MGMT","W MGMT ACTION"]
[]
[null,"(a.1) Known With Management Actions",null,null,null,{"$f":"'Interest Rate-Liquidity Risk'!I10","v":0},{"$f":"'Interest Rate-Liquidity Risk'!K10","v":0},{"$f":"F196*G196","v":0},{"$f":"H196","v":0},null,null,{"$f":"I196","v":0}]
[null,"(a.2) Known Without Management Actions",null,null,null,{"$f":"'Interest Rate-Liquidity Risk'!I11","v":0},{"$f":"'Interest Rate-Liquidity Risk'!K11","v":0},{"$f":"F197*G197","v":0},{"$f":"H197","v":0},null,{"$f":"H197","v":0}]
[null,"(a.3) Unknown ",null,null,null,{"$f":"'Interest Rate-Liquidity Risk'!I12","v":0},{"$f":"'Interest Rate-Liquidity Risk'!K12","v":0.04},{"$f":"F198*G198","v":0},{"$f":"H198","v":0},null,{"$f":"H198","v":0},{"$f":"I198","v":0}]
[]
[null,"TOTAL INTEREST LIQUIDITY RISK",null,null,null,{"$f":"SUM(F196:F198)","v":0},null,{"$f":"H197+H198","v":0},{"$f":"I196+I198","v":0},null,{"$f":"K197+K198","v":0},{"$f":"L196+L198","v":0}]
[]
[null,null,null,"ASSETS",null,"LIABILITIES",null,"CAPITAL","CAPITAL",null,"USER","USER"]
[null,"INTEREST RATE -",null,null,null,null,null,"CHARGE","CHARGE",null,"CAPITAL","CAPITAL"]
[null,"LIQUIDITY RISK",null,"Qualified Assets","Not Qual. Assets",null,null,"W/O MGMT","W MGMT",null,"W/O MGMT","W MGMT ACTION"]
[]
[null,"IR Down- Exposures without Derivatives"]
[null,{"$f":"'Interest Rate-Liquidity (Rev.)'!B11","v":"United States Dollars"},null,{"$f":"'Schedule XXIII'!E10","v":0},null,{"$f":"'Schedule XXIII'!H10","v":0},null,{"$f":"'Interest Rate-Liquidity (Rev.)'!S11","v":0},{"$f":"'Interest Rate-Liquidity (Rev.)'!T11","v":0},null,null,{"$f":"IF(K207=\"\",\"\",K207)","v":""}]
[null,{"$f":"'Interest Rate-Liquidity (Rev.)'!B12","v":"Euro"},null,{"$f":"'Schedule XXIII'!E11","v":0},null,{"$f":"'Schedule XXIII'!H11","v":0},null,{"$f":"'Interest Rate-Liquidity (Rev.)'!S12","v":0},{"$f":"'Interest Rate-Liquidity (Rev.)'!T12","v":0},null,null,{"$f":"IF(K208=\"\",\"\",K208)","v":""}]
[null,{"$f":"'Interest Rate-Liquidity (Rev.)'!B13","v":"United Kingdom Pounds"},null,{"$f":"'Schedule XXIII'!E12","v":0},null,{"$f":"'Schedule XXIII'!H12","v":0},null,{"$f":"'Interest Rate-Liquidity (Rev.)'!S13","v":0},{"$f":"'Interest Rate-Liquidity (Rev.)'!T13","v":0},null,null,""]
[null,{"$f":"'Interest Rate-Liquidity (Rev.)'!B14","v":"Japan Yen"},null,{"$f":"'Schedule XXIII'!E13","v":0},null,{"$f":"'Schedule XXIII'!H13","v":0},null,{"$f":"'Interest Rate-Liquidity (Rev.)'!S14","v":0},{"$f":"'Interest Rate-Liquidity (Rev.)'!T14","v":0},null,null,""]
[null,{"$f":"'Interest Rate-Liquidity (Rev.)'!B15","v":"Canada Dollars"},null,{"$f":"'Schedule XXIII'!E14","v":0},null,{"$f":"'Schedule XXIII'!H14","v":0},null,{"$f":"'Interest Rate-Liquidity (Rev.)'!S15","v":0},{"$f":"'Interest Rate-Liquidity (Rev.)'!T15","v":0},null,null,""]
[null,{"$f":"'Interest Rate-Liquidity (Rev.)'!B16","v":"Swiss Francs"},null,{"$f":"'Schedule XXIII'!E15","v":0},null,{"$f":"'Schedule XXIII'!H15","v":0},null,{"$f":"'Interest Rate-Liquidity (Rev.)'!S16","v":0},{"$f":"'Interest Rate-Liquidity (Rev.)'!T16","v":0},null,null,""]
[null,{"$f":"'Interest Rate-Liquidity (Rev.)'!B17","v":"Australia Dollar"},null,{"$f":"'Schedule XXIII'!E16","v":0},null,{"$f":"'Schedule XXIII'!H16","v":0},null,{"$f":"'Interest Rate-Liquidity (Rev.)'!S17","v":0},{"$f":"'Interest Rate-Liquidity (Rev.)'!T17","v":0},null,null,""]
[null,{"$f":"'Interest Rate-Liquidity (Rev.)'!B18","v":"New Zealand Dollar"},null,{"$f":"'Schedule XXIII'!E17","v":0},null,{"$f":"'Schedule XXIII'!H17","v":0},null,{"$f":"'Interest Rate-Liquidity (Rev.)'!S18","v":0},{"$f":"'Interest Rate-Liquidity (Rev.)'!T18","v":0},null,null,""]
[null,{"$f":"'Interest Rate-Liquidity (Rev.)'!B19","v":"Other currency 1"},null,{"$f":"'Schedule XXIII'!E18","v":0},null,{"$f":"'Schedule XXIII'!H18","v":0},null,{"$f":"'Interest Rate-Liquidity (Rev.)'!S19","v":0},{"$f":"'Interest Rate-Liquidity (Rev.)'!T19","v":0},null,null,""]
[null,{"$f":"'Interest Rate-Liquidity (Rev.)'!B20","v":"Other currency 2"},null,{"$f":"'Schedule XXIII'!E19","v":0},null,{"$f":"'Schedule XXIII'!H19","v":0},null,{"$f":"'Interest Rate-Liquidity (Rev.)'!S20","v":0},{"$f":"'Interest Rate-Liquidity (Rev.)'!T20","v":0},null,null,""]
[null,{"$f":"'Interest Rate-Liquidity (Rev.)'!B21","v":"Other currency 3"},null,{"$f":"'Schedule XXIII'!E20","v":0},null,{"$f":"'Schedule XXIII'!H20","v":0},null,{"$f":"'Interest Rate-Liquidity (Rev.)'!S21","v":0},{"$f":"'Interest Rate-Liquidity (Rev.)'!T21","v":0},null,null,""]
[null,{"$f":"'Interest Rate-Liquidity (Rev.)'!B22","v":"Other currency 4"},null,{"$f":"'Schedule XXIII'!E21","v":0},null,{"$f":"'Schedule XXIII'!H21","v":0},null,{"$f":"'Interest Rate-Liquidity (Rev.)'!S22","v":0},{"$f":"'Interest Rate-Liquidity (Rev.)'!T22","v":0},null,null,""]
[null,{"$f":"'Interest Rate-Liquidity (Rev.)'!B23","v":"Other currency 5"},null,{"$f":"'Schedule XXIII'!E22","v":0},null,{"$f":"'Schedule XXIII'!H22","v":0},null,{"$f":"'Interest Rate-Liquidity (Rev.)'!S23","v":0},{"$f":"'Interest Rate-Liquidity (Rev.)'!T23","v":0},null,null,""]
[null,{"$f":"'Interest Rate-Liquidity (Rev.)'!B24","v":"Other currency 6"},null,{"$f":"'Schedule XXIII'!E23","v":0},null,{"$f":"'Schedule XXIII'!H23","v":0},null,{"$f":"'Interest Rate-Liquidity (Rev.)'!S24","v":0},{"$f":"'Interest Rate-Liquidity (Rev.)'!T24","v":0},null,null,""]
[null,{"$f":"'Interest Rate-Liquidity (Rev.)'!B25","v":"Other currency 7"},null,{"$f":"'Schedule XXIII'!E24","v":0},null,{"$f":"'Schedule XXIII'!H24","v":0},null,{"$f":"'Interest Rate-Liquidity (Rev.)'!S25","v":0},{"$f":"'Interest Rate-Liquidity (Rev.)'!T25","v":0},null,null,""]
[null,{"$f":"'Interest Rate-Liquidity (Rev.)'!B26","v":"Other currency 8"},null,{"$f":"'Schedule XXIII'!E25","v":0},null,{"$f":"'Schedule XXIII'!H25","v":0},null,{"$f":"'Interest Rate-Liquidity (Rev.)'!S26","v":0},{"$f":"'Interest Rate-Liquidity (Rev.)'!T26","v":0},null,null,""]
[null,{"$f":"'Interest Rate-Liquidity (Rev.)'!B27","v":"Other currency 9"},null,{"$f":"'Schedule XXIII'!E26","v":0},null,{"$f":"'Schedule XXIII'!H26","v":0},null,{"$f":"'Interest Rate-Liquidity (Rev.)'!S27","v":0},{"$f":"'Interest Rate-Liquidity (Rev.)'!T27","v":0},null,null,""]
[null,{"$f":"'Interest Rate-Liquidity (Rev.)'!B28","v":"Other currency 10"},null,{"$f":"'Schedule XXIII'!E27","v":0},null,{"$f":"'Schedule XXIII'!H27","v":0},null,{"$f":"'Interest Rate-Liquidity (Rev.)'!S28","v":0},{"$f":"'Interest Rate-Liquidity (Rev.)'!T28","v":0},null,null,""]
[null,{"$f":"'Interest Rate-Liquidity (Rev.)'!B29","v":"Total IR - Other"},null,{"$f":"SUM(D207:D224)","v":0},null,{"$f":"SUM(F207:F224)","v":0},null,{"$f":"SUM(H207:H224)","v":0},{"$f":"SUM(I207:I224)","v":0},null,{"$f":"SUM(K207:K224)","v":0},{"$f":"SUM(L207:L224)","v":0}]
[]
[null,{"$f":"'Interest Rate-Liquidity (Rev.)'!B31","v":"IR Down- Derivatives"}]
[null,{"$f":"'Interest Rate-Liquidity (Rev.)'!B32","v":"United States Dollars"},null,{"$f":"'Schedule XXIII'!M10","v":0},{"$f":"'Schedule XXIII'!P10","v":0},{"$f":"'Schedule XXIII'!S10","v":0},null,{"$f":"'Interest Rate-Liquidity (Rev.)'!S32","v":0},{"$f":"'Interest Rate-Liquidity (Rev.)'!T32","v":0},null,null,{"$f":"IF(K228=\"\",\"\",K228)","v":""}]
[null,{"$f":"'Interest Rate-Liquidity (Rev.)'!B33","v":"Euro"},null,{"$f":"'Schedule XXIII'!M11","v":0},{"$f":"'Schedule XXIII'!P11","v":0},{"$f":"'Schedule XXIII'!S11","v":0},null,{"$f":"'Interest Rate-Liquidity (Rev.)'!S33","v":0},{"$f":"'Interest Rate-Liquidity (Rev.)'!T33","v":0},null,null,{"$f":"IF(K229=\"\",\"\",K229)","v":""}]
[null,{"$f":"'Interest Rate-Liquidity (Rev.)'!B34","v":"United Kingdom Pounds"},null,{"$f":"'Schedule XXIII'!M12","v":0},{"$f":"'Schedule XXIII'!P12","v":0},{"$f":"'Schedule XXIII'!S12","v":0},null,{"$f":"'Interest Rate-Liquidity (Rev.)'!S34","v":0},{"$f":"'Interest Rate-Liquidity (Rev.)'!T34","v":0},null,null,""]
[null,{"$f":"'Interest Rate-Liquidity (Rev.)'!B35","v":"Japan Yen"},null,{"$f":"'Schedule XXIII'!M13","v":0},{"$f":"'Schedule XXIII'!P13","v":0},{"$f":"'Schedule XXIII'!S13","v":0},null,{"$f":"'Interest Rate-Liquidity (Rev.)'!S35","v":0},{"$f":"'Interest Rate-Liquidity (Rev.)'!T35","v":0},null,null,""]
[null,{"$f":"'Interest Rate-Liquidity (Rev.)'!B36","v":"Canada Dollars"},null,{"$f":"'Schedule XXIII'!M14","v":0},{"$f":"'Schedule XXIII'!P14","v":0},{"$f":"'Schedule XXIII'!S14","v":0},null,{"$f":"'Interest Rate-Liquidity (Rev.)'!S36","v":0},{"$f":"'Interest Rate-Liquidity (Rev.)'!T36","v":0},null,null,""]
[null,{"$f":"'Interest Rate-Liquidity (Rev.)'!B37","v":"Swiss Francs"},null,{"$f":"'Schedule XXIII'!M15","v":0},{"$f":"'Schedule XXIII'!P15","v":0},{"$f":"'Schedule XXIII'!S15","v":0},null,{"$f":"'Interest Rate-Liquidity (Rev.)'!S37","v":0},{"$f":"'Interest Rate-Liquidity (Rev.)'!T37","v":0},null,null,""]
[null,{"$f":"'Interest Rate-Liquidity (Rev.)'!B38","v":"Australia Dollar"},null,{"$f":"'Schedule XXIII'!M16","v":0},{"$f":"'Schedule XXIII'!P16","v":0},{"$f":"'Schedule XXIII'!S16","v":0},null,{"$f":"'Interest Rate-Liquidity (Rev.)'!S38","v":0},{"$f":"'Interest Rate-Liquidity (Rev.)'!T38","v":0},null,null,""]
[null,{"$f":"'Interest Rate-Liquidity (Rev.)'!B39","v":"New Zealand Dollar"},null,{"$f":"'Schedule XXIII'!M17","v":0},{"$f":"'Schedule XXIII'!P17","v":0},{"$f":"'Schedule XXIII'!S17","v":0},null,{"$f":"'Interest Rate-Liquidity (Rev.)'!S39","v":0},{"$f":"'Interest Rate-Liquidity (Rev.)'!T39","v":0},null,null,""]
[null,{"$f":"'Interest Rate-Liquidity (Rev.)'!B40","v":"Other currency 1"},null,{"$f":"'Schedule XXIII'!M18","v":0},{"$f":"'Schedule XXIII'!P18","v":0},{"$f":"'Schedule XXIII'!S18","v":0},null,{"$f":"'Interest Rate-Liquidity (Rev.)'!S40","v":0},{"$f":"'Interest Rate-Liquidity (Rev.)'!T40","v":0},null,null,""]
[null,{"$f":"'Interest Rate-Liquidity (Rev.)'!B41","v":"Other currency 2"},null,{"$f":"'Schedule XXIII'!M19","v":0},{"$f":"'Schedule XXIII'!P19","v":0},{"$f":"'Schedule XXIII'!S19","v":0},null,{"$f":"'Interest Rate-Liquidity (Rev.)'!S41","v":0},{"$f":"'Interest Rate-Liquidity (Rev.)'!T41","v":0},null,null,""]
[null,{"$f":"'Interest Rate-Liquidity (Rev.)'!B42","v":"Other currency 3"},null,{"$f":"'Schedule XXIII'!M20","v":0},{"$f":"'Schedule XXIII'!P20","v":0},{"$f":"'Schedule XXIII'!S20","v":0},null,{"$f":"'Interest Rate-Liquidity (Rev.)'!S42","v":0},{"$f":"'Interest Rate-Liquidity (Rev.)'!T42","v":0},null,null,""]
[null,{"$f":"'Interest Rate-Liquidity (Rev.)'!B43","v":"Other currency 4"},null,{"$f":"'Schedule XXIII'!M21","v":0},{"$f":"'Schedule XXIII'!P21","v":0},{"$f":"'Schedule XXIII'!S21","v":0},null,{"$f":"'Interest Rate-Liquidity (Rev.)'!S43","v":0},{"$f":"'Interest Rate-Liquidity (Rev.)'!T43","v":0},null,null,""]
[null,{"$f":"'Interest Rate-Liquidity (Rev.)'!B44","v":"Other currency 5"},null,{"$f":"'Schedule XXIII'!M22","v":0},{"$f":"'Schedule XXIII'!P22","v":0},{"$f":"'Schedule XXIII'!S22","v":0},null,{"$f":"'Interest Rate-Liquidity (Rev.)'!S44","v":0},{"$f":"'Interest Rate-Liquidity (Rev.)'!T44","v":0},null,null,""]
[null,{"$f":"'Interest Rate-Liquidity (Rev.)'!B45","v":"Other currency 6"},null,{"$f":"'Schedule XXIII'!M23","v":0},{"$f":"'Schedule XXIII'!P23","v":0},{"$f":"'Schedule XXIII'!S23","v":0},null,{"$f":"'Interest Rate-Liquidity (Rev.)'!S45","v":0},{"$f":"'Interest Rate-Liquidity (Rev.)'!T45","v":0},null,null,""]
[null,{"$f":"'Interest Rate-Liquidity (Rev.)'!B46","v":"Other currency 7"},null,{"$f":"'Schedule XXIII'!M24","v":0},{"$f":"'Schedule XXIII'!P24","v":0},{"$f":"'Schedule XXIII'!S24","v":0},null,{"$f":"'Interest Rate-Liquidity (Rev.)'!S46","v":0},{"$f":"'Interest Rate-Liquidity (Rev.)'!T46","v":0},null,null,""]
[null,{"$f":"'Interest Rate-Liquidity (Rev.)'!B47","v":"Other currency 8"},null,{"$f":"'Schedule XXIII'!M25","v":0},{"$f":"'Schedule XXIII'!P25","v":0},{"$f":"'Schedule XXIII'!S25","v":0},null,{"$f":"'Interest Rate-Liquidity (Rev.)'!S47","v":0},{"$f":"'Interest Rate-Liquidity (Rev.)'!T47","v":0},null,null,""]
[null,{"$f":"'Interest Rate-Liquidity (Rev.)'!B48","v":"Other currency 9"},null,{"$f":"'Schedule XXIII'!M26","v":0},{"$f":"'Schedule XXIII'!P26","v":0},{"$f":"'Schedule XXIII'!S26","v":0},null,{"$f":"'Interest Rate-Liquidity (Rev.)'!S48","v":0},{"$f":"'Interest Rate-Liquidity (Rev.)'!T48","v":0},null,null,""]
[null,{"$f":"'Interest Rate-Liquidity (Rev.)'!B49","v":"Other currency 10"},null,{"$f":"'Schedule XXIII'!M27","v":0},{"$f":"'Schedule XXIII'!P27","v":0},{"$f":"'Schedule XXIII'!S27","v":0},null,{"$f":"'Interest Rate-Liquidity (Rev.)'!S49","v":0},{"$f":"'Interest Rate-Liquidity (Rev.)'!T49","v":0},null,null,""]
[null,{"$f":"'Interest Rate-Liquidity (Rev.)'!B50","v":"Total IR - Derivatives"},null,{"$f":"SUM(D228:D245)","v":0},0,0,null,0,0,null,{"$f":"SUM(K228:K245)","v":0},{"$f":"SUM(L228:L245)","v":0}]
[null,{"$f":"'Interest Rate-Liquidity (Rev.)'!B51","v":"Total IR - DOWN"},null,{"$f":"D225+D246","v":0},{"$f":"E225+E246","v":0},0,null,{"$f":"MAX(0,H225+H246)","v":0},{"$f":"MAX(0,I225+I246)","v":0},null,{"$f":"MAX(0,K225+K246)","v":0},{"$f":"MAX(0,L225+L246)","v":0}]
[]
[null,{"$f":"'Interest Rate-Liquidity (Rev.)'!B53","v":"IR UP - Exposures without Derivatives"}]
[null,{"$f":"'Interest Rate-Liquidity (Rev.)'!B54","v":"United States Dollars"},null,{"$f":"'Schedule XXIII'!E35","v":0},null,{"$f":"'Schedule XXIII'!H35","v":0},null,{"$f":"'Interest Rate-Liquidity (Rev.)'!S54","v":0},{"$f":"'Interest Rate-Liquidity (Rev.)'!T54","v":0},null,null,{"$f":"IF(K250=\"\",\"\",K250)","v":""}]
[null,{"$f":"'Interest Rate-Liquidity (Rev.)'!B55","v":"Euro"},null,{"$f":"'Schedule XXIII'!E36","v":0},null,{"$f":"'Schedule XXIII'!H36","v":0},null,{"$f":"'Interest Rate-Liquidity (Rev.)'!S55","v":0},{"$f":"'Interest Rate-Liquidity (Rev.)'!T55","v":0},null,null,{"$f":"IF(K251=\"\",\"\",K251)","v":""}]
[null,{"$f":"'Interest Rate-Liquidity (Rev.)'!B56","v":"United Kingdom Pounds"},null,{"$f":"'Schedule XXIII'!E37","v":0},null,{"$f":"'Schedule XXIII'!H37","v":0},null,{"$f":"'Interest Rate-Liquidity (Rev.)'!S56","v":0},{"$f":"'Interest Rate-Liquidity (Rev.)'!T56","v":0},null,null,""]
[null,{"$f":"'Interest Rate-Liquidity (Rev.)'!B57","v":"Japan Yen"},null,{"$f":"'Schedule XXIII'!E38","v":0},null,{"$f":"'Schedule XXIII'!H38","v":0},null,{"$f":"'Interest Rate-Liquidity (Rev.)'!S57","v":0},{"$f":"'Interest Rate-Liquidity (Rev.)'!T57","v":0},null,null,""]
[null,{"$f":"'Interest Rate-Liquidity (Rev.)'!B58","v":"Canada Dollars"},null,{"$f":"'Schedule XXIII'!E39","v":0},null,{"$f":"'Schedule XXIII'!H39","v":0},null,{"$f":"'Interest Rate-Liquidity (Rev.)'!S58","v":0},{"$f":"'Interest Rate-Liquidity (Rev.)'!T58","v":0},null,null,""]
[null,{"$f":"'Interest Rate-Liquidity (Rev.)'!B59","v":"Swiss Francs"},null,{"$f":"'Schedule XXIII'!E40","v":0},null,{"$f":"'Schedule XXIII'!H40","v":0},null,{"$f":"'Interest Rate-Liquidity (Rev.)'!S59","v":0},{"$f":"'Interest Rate-Liquidity (Rev.)'!T59","v":0},null,null,""]
[null,{"$f":"'Interest Rate-Liquidity (Rev.)'!B60","v":"Australia Dollar"},null,{"$f":"'Schedule XXIII'!E41","v":0},null,{"$f":"'Schedule XXIII'!H41","v":0},null,{"$f":"'Interest Rate-Liquidity (Rev.)'!S60","v":0},{"$f":"'Interest Rate-Liquidity (Rev.)'!T60","v":0},null,null,""]
[null,{"$f":"'Interest Rate-Liquidity (Rev.)'!B61","v":"New Zealand Dollar"},null,{"$f":"'Schedule XXIII'!E42","v":0},null,{"$f":"'Schedule XXIII'!H42","v":0},null,{"$f":"'Interest Rate-Liquidity (Rev.)'!S61","v":0},{"$f":"'Interest Rate-Liquidity (Rev.)'!T61","v":0},null,null,""]
[null,{"$f":"'Interest Rate-Liquidity (Rev.)'!B62","v":"Other currency 1"},null,{"$f":"'Schedule XXIII'!E43","v":0},null,{"$f":"'Schedule XXIII'!H43","v":0},null,{"$f":"'Interest Rate-Liquidity (Rev.)'!S62","v":0},{"$f":"'Interest Rate-Liquidity (Rev.)'!T62","v":0},null,null,""]
[null,{"$f":"'Interest Rate-Liquidity (Rev.)'!B63","v":"Other currency 2"},null,{"$f":"'Schedule XXIII'!E44","v":0},null,{"$f":"'Schedule XXIII'!H44","v":0},null,{"$f":"'Interest Rate-Liquidity (Rev.)'!S63","v":0},{"$f":"'Interest Rate-Liquidity (Rev.)'!T63","v":0},null,null,""]
[null,{"$f":"'Interest Rate-Liquidity (Rev.)'!B64","v":"Other currency 3"},null,{"$f":"'Schedule XXIII'!E45","v":0},null,{"$f":"'Schedule XXIII'!H45","v":0},null,{"$f":"'Interest Rate-Liquidity (Rev.)'!S64","v":0},{"$f":"'Interest Rate-Liquidity (Rev.)'!T64","v":0},null,null,""]
[null,{"$f":"'Interest Rate-Liquidity (Rev.)'!B65","v":"Other currency 4"},null,{"$f":"'Schedule XXIII'!E46","v":0},null,{"$f":"'Schedule XXIII'!H46","v":0},null,{"$f":"'Interest Rate-Liquidity (Rev.)'!S65","v":0},{"$f":"'Interest Rate-Liquidity (Rev.)'!T65","v":0},null,null,""]
[null,{"$f":"'Interest Rate-Liquidity (Rev.)'!B66","v":"Other currency 5"},null,{"$f":"'Schedule XXIII'!E47","v":0},null,{"$f":"'Schedule XXIII'!H47","v":0},null,{"$f":"'Interest Rate-Liquidity (Rev.)'!S66","v":0},{"$f":"'Interest Rate-Liquidity (Rev.)'!T66","v":0},null,null,""]
[null,{"$f":"'Interest Rate-Liquidity (Rev.)'!B67","v":"Other currency 6"},null,{"$f":"'Schedule XXIII'!E48","v":0},null,{"$f":"'Schedule XXIII'!H48","v":0},null,{"$f":"'Interest Rate-Liquidity (Rev.)'!S67","v":0},{"$f":"'Interest Rate-Liquidity (Rev.)'!T67","v":0},null,null,""]
[null,{"$f":"'Interest Rate-Liquidity (Rev.)'!B68","v":"Other currency 7"},null,{"$f":"'Schedule XXIII'!E49","v":0},null,{"$f":"'Schedule XXIII'!H49","v":0},null,{"$f":"'Interest Rate-Liquidity (Rev.)'!S68","v":0},{"$f":"'Interest Rate-Liquidity (Rev.)'!T68","v":0},null,null,""]
[null,{"$f":"'Interest Rate-Liquidity (Rev.)'!B69","v":"Other currency 8"},null,{"$f":"'Schedule XXIII'!E50","v":0},null,{"$f":"'Schedule XXIII'!H50","v":0},null,{"$f":"'Interest Rate-Liquidity (Rev.)'!S69","v":0},{"$f":"'Interest Rate-Liquidity (Rev.)'!T69","v":0},null,null,""]
[null,{"$f":"'Interest Rate-Liquidity (Rev.)'!B70","v":"Other currency 9"},null,{"$f":"'Schedule XXIII'!E51","v":0},null,{"$f":"'Schedule XXIII'!H51","v":0},null,{"$f":"'Interest Rate-Liquidity (Rev.)'!S70","v":0},{"$f":"'Interest Rate-Liquidity (Rev.)'!T70","v":0},null,null,""]
[null,{"$f":"'Interest Rate-Liquidity (Rev.)'!B71","v":"Other currency 10"},null,{"$f":"'Schedule XXIII'!E52","v":0},null,{"$f":"'Schedule XXIII'!H52","v":0},null,{"$f":"'Interest Rate-Liquidity (Rev.)'!S71","v":0},{"$f":"'Interest Rate-Liquidity (Rev.)'!T71","v":0},null,null,""]
[null,{"$f":"'Interest Rate-Liquidity (Rev.)'!B72","v":"Total IR - Other"},null,{"$f":"SUM(D250:D267)","v":0},null,{"$f":"SUM(F250:F267)","v":0},null,{"$f":"SUM(H250:H267)","v":0},{"$f":"SUM(I250:I267)","v":0},null,{"$f":"SUM(K250:K267)","v":0},{"$f":"SUM(L250:L267)","v":0}]
[]
[null,{"$f":"'Interest Rate-Liquidity (Rev.)'!B74","v":"IR Up - Derivatives"}]
[null,{"$f":"'Interest Rate-Liquidity (Rev.)'!B75","v":"United States Dollars"},null,{"$f":"'Schedule XXIII'!M35","v":0},{"$f":"'Schedule XXIII'!P35","v":0},{"$f":"'Schedule XXIII'!S35","v":0},null,{"$f":"'Interest Rate-Liquidity (Rev.)'!S75","v":0},{"$f":"'Interest Rate-Liquidity (Rev.)'!T75","v":0},null,null,{"$f":"IF(K271=\"\",\"\",K271)","v":""}]
[null,{"$f":"'Interest Rate-Liquidity (Rev.)'!B76","v":"Euro"},null,{"$f":"'Schedule XXIII'!M36","v":0},{"$f":"'Schedule XXIII'!P36","v":0},{"$f":"'Schedule XXIII'!S36","v":0},null,{"$f":"'Interest Rate-Liquidity (Rev.)'!S76","v":0},{"$f":"'Interest Rate-Liquidity (Rev.)'!T76","v":0},null,null,{"$f":"IF(K272=\"\",\"\",K272)","v":""}]
[null,{"$f":"'Interest Rate-Liquidity (Rev.)'!B77","v":"United Kingdom Pounds"},null,{"$f":"'Schedule XXIII'!M37","v":0},{"$f":"'Schedule XXIII'!P37","v":0},{"$f":"'Schedule XXIII'!S37","v":0},null,{"$f":"'Interest Rate-Liquidity (Rev.)'!S77","v":0},{"$f":"'Interest Rate-Liquidity (Rev.)'!T77","v":0},null,null,""]
[null,{"$f":"'Interest Rate-Liquidity (Rev.)'!B78","v":"Japan Yen"},null,{"$f":"'Schedule XXIII'!M38","v":0},{"$f":"'Schedule XXIII'!P38","v":0},{"$f":"'Schedule XXIII'!S38","v":0},null,{"$f":"'Interest Rate-Liquidity (Rev.)'!S78","v":0},{"$f":"'Interest Rate-Liquidity (Rev.)'!T78","v":0},null,null,""]
[null,{"$f":"'Interest Rate-Liquidity (Rev.)'!B79","v":"Canada Dollars"},null,{"$f":"'Schedule XXIII'!M39","v":0},{"$f":"'Schedule XXIII'!P39","v":0},{"$f":"'Schedule XXIII'!S39","v":0},null,{"$f":"'Interest Rate-Liquidity (Rev.)'!S79","v":0},{"$f":"'Interest Rate-Liquidity (Rev.)'!T79","v":0},null,null,""]
[null,{"$f":"'Interest Rate-Liquidity (Rev.)'!B80","v":"Swiss Francs"},null,{"$f":"'Schedule XXIII'!M40","v":0},{"$f":"'Schedule XXIII'!P40","v":0},{"$f":"'Schedule XXIII'!S40","v":0},null,{"$f":"'Interest Rate-Liquidity (Rev.)'!S80","v":0},{"$f":"'Interest Rate-Liquidity (Rev.)'!T80","v":0},null,null,""]
[null,{"$f":"'Interest Rate-Liquidity (Rev.)'!B81","v":"Australia Dollar"},null,{"$f":"'Schedule XXIII'!M41","v":0},{"$f":"'Schedule XXIII'!P41","v":0},{"$f":"'Schedule XXIII'!S41","v":0},null,{"$f":"'Interest Rate-Liquidity (Rev.)'!S81","v":0},{"$f":"'Interest Rate-Liquidity (Rev.)'!T81","v":0},null,null,""]
[null,{"$f":"'Interest Rate-Liquidity (Rev.)'!B82","v":"New Zealand Dollar"},null,{"$f":"'Schedule XXIII'!M42","v":0},{"$f":"'Schedule XXIII'!P42","v":0},{"$f":"'Schedule XXIII'!S42","v":0},null,{"$f":"'Interest Rate-Liquidity (Rev.)'!S82","v":0},{"$f":"'Interest Rate-Liquidity (Rev.)'!T82","v":0},null,null,""]
[null,{"$f":"'Interest Rate-Liquidity (Rev.)'!B83","v":"Other currency 1"},null,{"$f":"'Schedule XXIII'!M43","v":0},{"$f":"'Schedule XXIII'!P43","v":0},{"$f":"'Schedule XXIII'!S43","v":0},null,{"$f":"'Interest Rate-Liquidity (Rev.)'!S83","v":0},{"$f":"'Interest Rate-Liquidity (Rev.)'!T83","v":0},null,null,""]
[null,{"$f":"'Interest Rate-Liquidity (Rev.)'!B84","v":"Other currency 2"},null,{"$f":"'Schedule XXIII'!M44","v":0},{"$f":"'Schedule XXIII'!P44","v":0},{"$f":"'Schedule XXIII'!S44","v":0},null,{"$f":"'Interest Rate-Liquidity (Rev.)'!S84","v":0},{"$f":"'Interest Rate-Liquidity (Rev.)'!T84","v":0},null,null,""]
[null,{"$f":"'Interest Rate-Liquidity (Rev.)'!B85","v":"Other currency 3"},null,{"$f":"'Schedule XXIII'!M45","v":0},{"$f":"'Schedule XXIII'!P45","v":0},{"$f":"'Schedule XXIII'!S45","v":0},null,{"$f":"'Interest Rate-Liquidity (Rev.)'!S85","v":0},{"$f":"'Interest Rate-Liquidity (Rev.)'!T85","v":0},null,null,""]
[null,{"$f":"'Interest Rate-Liquidity (Rev.)'!B86","v":"Other currency 4"},null,{"$f":"'Schedule XXIII'!M46","v":0},{"$f":"'Schedule XXIII'!P46","v":0},{"$f":"'Schedule XXIII'!S46","v":0},null,{"$f":"'Interest Rate-Liquidity (Rev.)'!S86","v":0},{"$f":"'Interest Rate-Liquidity (Rev.)'!T86","v":0},null,null,""]
[null,{"$f":"'Interest Rate-Liquidity (Rev.)'!B87","v":"Other currency 5"},null,{"$f":"'Schedule XXIII'!M47","v":0},{"$f":"'Schedule XXIII'!P47","v":0},{"$f":"'Schedule XXIII'!S47","v":0},null,{"$f":"'Interest Rate-Liquidity (Rev.)'!S87","v":0},{"$f":"'Interest Rate-Liquidity (Rev.)'!T87","v":0},null,null,""]
[null,{"$f":"'Interest Rate-Liquidity (Rev.)'!B88","v":"Other currency 6"},null,{"$f":"'Schedule XXIII'!M48","v":0},{"$f":"'Schedule XXIII'!P48","v":0},{"$f":"'Schedule XXIII'!S48","v":0},null,{"$f":"'Interest Rate-Liquidity (Rev.)'!S88","v":0},{"$f":"'Interest Rate-Liquidity (Rev.)'!T88","v":0},null,null,""]
[null,{"$f":"'Interest Rate-Liquidity (Rev.)'!B89","v":"Other currency 7"},null,{"$f":"'Schedule XXIII'!M49","v":0},{"$f":"'Schedule XXIII'!P49","v":0},{"$f":"'Schedule XXIII'!S49","v":0},null,{"$f":"'Interest Rate-Liquidity (Rev.)'!S89","v":0},{"$f":"'Interest Rate-Liquidity (Rev.)'!T89","v":0},null,null,""]
[null,{"$f":"'Interest Rate-Liquidity (Rev.)'!B90","v":"Other currency 8"},null,{"$f":"'Schedule XXIII'!M50","v":0},{"$f":"'Schedule XXIII'!P50","v":0},{"$f":"'Schedule XXIII'!S50","v":0},null,{"$f":"'Interest Rate-Liquidity (Rev.)'!S90","v":0},{"$f":"'Interest Rate-Liquidity (Rev.)'!T90","v":0},null,null,""]
[null,{"$f":"'Interest Rate-Liquidity (Rev.)'!B91","v":"Other currency 9"},null,{"$f":"'Schedule XXIII'!M51","v":0},{"$f":"'Schedule XXIII'!P51","v":0},{"$f":"'Schedule XXIII'!S51","v":0},null,{"$f":"'Interest Rate-Liquidity (Rev.)'!S91","v":0},{"$f":"'Interest Rate-Liquidity (Rev.)'!T91","v":0},null,null,""]
[null,{"$f":"'Interest Rate-Liquidity (Rev.)'!B92","v":"Other currency 10"},null,{"$f":"'Schedule XXIII'!M52","v":0},{"$f":"'Schedule XXIII'!P52","v":0},{"$f":"'Schedule XXIII'!S52","v":0},null,{"$f":"'Interest Rate-Liquidity (Rev.)'!S92","v":0},{"$f":"'Interest Rate-Liquidity (Rev.)'!T92","v":0},null,null,""]
[null,{"$f":"'Interest Rate-Liquidity (Rev.)'!B93","v":"Total IR - Derivatives"},null,{"$f":"SUM(D271:D288)","v":0},0,0,null,0,0,null,{"$f":"SUM(K271:K288)","v":0},{"$f":"SUM(L271:L288)","v":0}]
[null,{"$f":"'Interest Rate-Liquidity (Rev.)'!B94","v":"Total IR - UP"},null,{"$f":"D268+D289","v":0},{"$f":"E268+E289","v":0},0,null,{"$f":"MAX(0,H268+H289)","v":0},{"$f":"MAX(0,I268+I289)","v":0},null,{"$f":"MAX(0,K268+K289)","v":0},{"$f":"MAX(0,L268+L289)","v":0}]
[]
[null,{"$f":"'Interest Rate-Liquidity (Rev.)'!B97","v":"Overall Interest Rate Risk"},null,null,null,null,"Scenario-Based Approach"]
[]
[null,{"$f":"'Interest Rate-Liquidity (Rev.)'!B99","v":"Interest Rates Down Shock - without Management Actions"},null,null,null,{"$f":"H247","v":0},null,null,null,null,{"$f":"IF(K247=0,F294,K247)","v":0}]
[null,{"$f":"'Interest Rate-Liquidity (Rev.)'!B100","v":"Interest Rates Up Shock - without Management Actions"},null,null,null,{"$f":"H268","v":0},null,null,null,null,{"$f":"IF(K290=0,F295,K290)","v":0}]
[null,{"$f":"'Interest Rate-Liquidity (Rev.)'!B101","v":"Max(IR Down, IR Up) - without MA"},null,null,null,{"$f":"MAX(0,F294,F295)","v":0},null,null,null,null,{"$f":"MAX(0,K294,K295)","v":0}]
[]
[null,{"$f":"'Interest Rate-Liquidity (Rev.)'!B103","v":"Interest Rate Risk without Management Actions"},null,null,null,{"$f":"IF(F304=\"UP\",F295,F294)","v":0},"Adj. IR Risk Cap. Req.",{"$f":"'Interest Rate-Liquidity (Rev.)'!D115","v":0},{"$f":"'Interest Rate-Liquidity (Rev.)'!E115","v":0},null,{"$f":"IF(K304=\"UP\",K295,K294)","v":0}]
[]
[]
[null,{"$f":"'Interest Rate-Liquidity (Rev.)'!B106","v":"Interest Rates Down Shock - with Management Actions"},null,null,null,{"$f":"I247","v":0},null,null,null,null,{"$f":"IF(L247=0,F301,L247)","v":0}]
[null,{"$f":"'Interest Rate-Liquidity (Rev.)'!B107","v":"Interest Rates Up Shock - with Management Actions"},null,null,null,{"$f":"I268","v":0},null,null,null,null,{"$f":"IF(L290=0,F302,L290)","v":0}]
[null,{"$f":"'Interest Rate-Liquidity (Rev.)'!B108","v":"Max(IR Down, IR Up) - with MA"},null,null,null,{"$f":"MAX(F301,F302)","v":0},null,null,null,null,{"$f":"MAX(0,K301,K302)","v":0}]
[null,{"$f":"'Interest Rate-Liquidity (Rev.)'!B109","v":"Biting scenario"},null,null,null,{"$f":"IF(F303=F301,\"DOWN\",\"UP\")","v":"DOWN"},null,"W/O Mgmt. Action","Mgmt. Action",null,{"$f":"IF(K303=K301,\"DOWN\",\"UP\")","v":"DOWN"}]
[]
[null,{"$f":"'Interest Rate-Liquidity (Rev.)'!B111","v":"Interest Rate Risk with Management Actions"},null,null,null,{"$f":"F303","v":0},null,null,null,null,{"$f":"K303","v":0}]
[]
[null,"Interest Rate Risk capital requirement",null,null,null,null,null,{"$f":"'Interest Rate-Liquidity (Rev.)'!D117","v":0},{"$f":"'Interest Rate-Liquidity (Rev.)'!E117","v":0},null,{"$f":"K298-MIN(0.75*K298,IF(K304=\"DOWN\",'Interest Rate-Liquidity (Rev.)'!$K$114,'Interest Rate-Liquidity (Rev.)'!$L$114))","v":0},{"$f":"K306-MIN(0.75*K306,IF(K304=\"DOWN\",'Interest Rate-Liquidity (Rev.)'!$O$114,'Interest Rate-Liquidity (Rev.)'!$P$114))","v":0}]
[]
[null,null,"ASSETS",null,null,null,null,"CAPITAL","CAPITAL",null,"USER","USER"]
[null,null,null,"Long Exposures",null,"Long Exposures",null,"CHARGE","CHARGE",null,"CAPITAL","REQUIRED"]
[null,"CURRENCY RISK","Assets - Excluding currency-sensitive derivatives","Currency Derivatives Qualifying as held for risk-mitigation purposes","Currency Derivatives Not Qualifying as held for risk-mitigation purposes","Currency Derivatives Qualifying as held for risk-mitigation purposes","Currency Derivatives Not Qualifying as held for risk-mitigation purposes","W/O MGMT","W MGMT",null,"FACTOR","CAPITAL"]
[]
[null,{"$f":"'Currency Risk (Revised)'!B12","v":"United States Dollars"},{"$f":"'Schedule XXA'!D10","v":0},{"$f":"'Schedule XXA'!F10","v":0},{"$f":"'Schedule XXA'!H10","v":0},{"$f":"'Schedule XXA'!J10","v":0},{"$f":"'Schedule XXA'!L10","v":0},{"$f":"'Currency Risk (Revised)'!X12","v":0},{"$f":"'Currency Risk (Revised)'!Y12","v":0},null,null,{"$f":"MAX(0,IF(K314=\"\",H314,K314*SUM(C314:G314)))","v":0}]
[null,{"$f":"'Currency Risk (Revised)'!B13","v":"Bermuda Dollars"},{"$f":"'Schedule XXA'!D11","v":0},{"$f":"'Schedule XXA'!F11","v":0},{"$f":"'Schedule XXA'!H11","v":0},{"$f":"'Schedule XXA'!J11","v":0},{"$f":"'Schedule XXA'!L11","v":0},{"$f":"'Currency Risk (Revised)'!X13","v":0},{"$f":"'Currency Risk (Revised)'!Y13","v":0},null,null,{"$f":"MAX(0,IF(K315=\"\",H315,K315*SUM(C315:G315)))","v":0}]
[null,{"$f":"'Currency Risk (Revised)'!B14","v":"Qatar Riyals"},{"$f":"'Schedule XXA'!D12","v":0},{"$f":"'Schedule XXA'!F12","v":0},{"$f":"'Schedule XXA'!H12","v":0},{"$f":"'Schedule XXA'!J12","v":0},{"$f":"'Schedule XXA'!L12","v":0},{"$f":"'Currency Risk (Revised)'!X14","v":0},{"$f":"'Currency Risk (Revised)'!Y14","v":0},null,null,{"$f":"MAX(0,IF(K316=\"\",H316,K316*SUM(C316:G316)))","v":0}]
[null,{"$f":"'Currency Risk (Revised)'!B15","v":"Hong Kong Dollars"},{"$f":"'Schedule XXA'!D13","v":0},{"$f":"'Schedule XXA'!F13","v":0},{"$f":"'Schedule XXA'!H13","v":0},{"$f":"'Schedule XXA'!J13","v":0},{"$f":"'Schedule XXA'!L13","v":0},{"$f":"'Currency Risk (Revised)'!X15","v":0},{"$f":"'Currency Risk (Revised)'!Y15","v":0},null,null,0]
[null,{"$f":"'Currency Risk (Revised)'!B16","v":"Euro"},{"$f":"'Schedule XXA'!D14","v":0},{"$f":"'Schedule XXA'!F14","v":0},{"$f":"'Schedule XXA'!H14","v":0},{"$f":"'Schedule XXA'!J14","v":0},{"$f":"'Schedule XXA'!L14","v":0},{"$f":"'Currency Risk (Revised)'!X16","v":0},{"$f":"'Currency Risk (Revised)'!Y16","v":0},null,null,0]
[null,{"$f":"'Currency Risk (Revised)'!B17","v":"Denmark Kroner"},{"$f":"'Schedule XXA'!D15","v":0},{"$f":"'Schedule XXA'!F15","v":0},{"$f":"'Schedule XXA'!H15","v":0},{"$f":"'Schedule XXA'!J15","v":0},{"$f":"'Schedule XXA'!L15","v":0},{"$f":"'Currency Risk (Revised)'!X17","v":0},{"$f":"'Currency Risk (Revised)'!Y17","v":0},null,null,0]
[null,{"$f":"'Currency Risk (Revised)'!B18","v":"Bulgaria Leva"},{"$f":"'Schedule XXA'!D16","v":0},{"$f":"'Schedule XXA'!F16","v":0},{"$f":"'Schedule XXA'!H16","v":0},{"$f":"'Schedule XXA'!J16","v":0},{"$f":"'Schedule XXA'!L16","v":0},{"$f":"'Currency Risk (Revised)'!X18","v":0},{"$f":"'Currency Risk (Revised)'!Y18","v":0},null,null,0]
[null,{"$f":"'Currency Risk (Revised)'!B19","v":"West African CFA Francs"},{"$f":"'Schedule XXA'!D17","v":0},{"$f":"'Schedule XXA'!F17","v":0},{"$f":"'Schedule XXA'!H17","v":0},{"$f":"'Schedule XXA'!J17","v":0},{"$f":"'Schedule XXA'!L17","v":0},{"$f":"'Currency Risk (Revised)'!X19","v":0},{"$f":"'Currency Risk (Revised)'!Y19","v":0},null,null,0]
[null,{"$f":"'Currency Risk (Revised)'!B20","v":"Central African CFA Francs"},{"$f":"'Schedule XXA'!D18","v":0},{"$f":"'Schedule XXA'!F18","v":0},{"$f":"'Schedule XXA'!H18","v":0},{"$f":"'Schedule XXA'!J18","v":0},{"$f":"'Schedule XXA'!L18","v":0},{"$f":"'Currency Risk (Revised)'!X20","v":0},{"$f":"'Currency Risk (Revised)'!Y20","v":0},null,null,0]
[null,{"$f":"'Currency Risk (Revised)'!B21","v":"Comorian Francs"},{"$f":"'Schedule XXA'!D19","v":0},{"$f":"'Schedule XXA'!F19","v":0},{"$f":"'Schedule XXA'!H19","v":0},{"$f":"'Schedule XXA'!J19","v":0},{"$f":"'Schedule XXA'!L19","v":0},{"$f":"'Currency Risk (Revised)'!X21","v":0},{"$f":"'Currency Risk (Revised)'!Y21","v":0},null,null,0]
[null,{"$f":"'Currency Risk (Revised)'!B22","v":"United Kingdom Pounds"},{"$f":"'Schedule XXA'!D20","v":0},{"$f":"'Schedule XXA'!F20","v":0},{"$f":"'Schedule XXA'!H20","v":0},{"$f":"'Schedule XXA'!J20","v":0},{"$f":"'Schedule XXA'!L20","v":0},{"$f":"'Currency Risk (Revised)'!X22","v":0},{"$f":"'Currency Risk (Revised)'!Y22","v":0},null,null,0]
[null,{"$f":"'Currency Risk (Revised)'!B23","v":"Canada Dollars"},{"$f":"'Schedule XXA'!D21","v":0},{"$f":"'Schedule XXA'!F21","v":0},{"$f":"'Schedule XXA'!H21","v":0},{"$f":"'Schedule XXA'!J21","v":0},{"$f":"'Schedule XXA'!L21","v":0},{"$f":"'Currency Risk (Revised)'!X23","v":0},{"$f":"'Currency Risk (Revised)'!Y23","v":0},null,null,0]
[null,{"$f":"'Currency Risk (Revised)'!B24","v":"Japan Yen"},{"$f":"'Schedule XXA'!D22","v":0},{"$f":"'Schedule XXA'!F22","v":0},{"$f":"'Schedule XXA'!H22","v":0},{"$f":"'Schedule XXA'!J22","v":0},{"$f":"'Schedule XXA'!L22","v":0},{"$f":"'Currency Risk (Revised)'!X24","v":0},{"$f":"'Currency Risk (Revised)'!Y24","v":0},null,null,0]
[null,{"$f":"'Currency Risk (Revised)'!B25","v":"Other currency 1"},{"$f":"'Schedule XXA'!D23","v":0},{"$f":"'Schedule XXA'!F23","v":0},{"$f":"'Schedule XXA'!H23","v":0},{"$f":"'Schedule XXA'!J23","v":0},{"$f":"'Schedule XXA'!L23","v":0},{"$f":"'Currency Risk (Revised)'!X25","v":0},{"$f":"'Currency Risk (Revised)'!Y25","v":0},null,null,0]
[null,{"$f":"'Currency Risk (Revised)'!B26","v":"Other currency 2"},{"$f":"'Schedule XXA'!D24","v":0},{"$f":"'Schedule XXA'!F24","v":0},{"$f":"'Schedule XXA'!H24","v":0},{"$f":"'Schedule XXA'!J24","v":0},{"$f":"'Schedule XXA'!L24","v":0},{"$f":"'Currency Risk (Revised)'!X26","v":0},{"$f":"'Currency Risk (Revised)'!Y26","v":0},null,null,0]
[null,{"$f":"'Currency Risk (Revised)'!B27","v":"Other currency 3"},{"$f":"'Schedule XXA'!D25","v":0},{"$f":"'Schedule XXA'!F25","v":0},{"$f":"'Schedule XXA'!H25","v":0},{"$f":"'Schedule XXA'!J25","v":0},{"$f":"'Schedule XXA'!L25","v":0},{"$f":"'Currency Risk (Revised)'!X27","v":0},{"$f":"'Currency Risk (Revised)'!Y27","v":0},null,null,0]
[null,{"$f":"'Currency Risk (Revised)'!B28","v":"Other currency 4"},{"$f":"'Schedule XXA'!D26","v":0},{"$f":"'Schedule XXA'!F26","v":0},{"$f":"'Schedule XXA'!H26","v":0},{"$f":"'Schedule XXA'!J26","v":0},{"$f":"'Schedule XXA'!L26","v":0},{"$f":"'Currency Risk (Revised)'!X28","v":0},{"$f":"'Currency Risk (Revised)'!Y28","v":0},null,null,0]
[null,{"$f":"'Currency Risk (Revised)'!B29","v":"Other currency 5"},{"$f":"'Schedule XXA'!D27","v":0},{"$f":"'Schedule XXA'!F27","v":0},{"$f":"'Schedule XXA'!H27","v":0},{"$f":"'Schedule XXA'!J27","v":0},{"$f":"'Schedule XXA'!L27","v":0},{"$f":"'Currency Risk (Revised)'!X29","v":0},{"$f":"'Currency Risk (Revised)'!Y29","v":0},null,null,0]
[null,{"$f":"'Currency Risk (Revised)'!B30","v":"Other currency 6"},{"$f":"'Schedule XXA'!D28","v":0},{"$f":"'Schedule XXA'!F28","v":0},{"$f":"'Schedule XXA'!H28","v":0},{"$f":"'Schedule XXA'!J28","v":0},{"$f":"'Schedule XXA'!L28","v":0},{"$f":"'Currency Risk (Revised)'!X30","v":0},{"$f":"'Currency Risk (Revised)'!Y30","v":0},null,null,0]
[null,{"$f":"'Currency Risk (Revised)'!B31","v":"Other currency 7"},{"$f":"'Schedule XXA'!D29","v":0},{"$f":"'Schedule XXA'!F29","v":0},{"$f":"'Schedule XXA'!H29","v":0},{"$f":"'Schedule XXA'!J29","v":0},{"$f":"'Schedule XXA'!L29","v":0},{"$f":"'Currency Risk (Revised)'!X31","v":0},{"$f":"'Currency Risk (Revised)'!Y31","v":0},null,null,0]
[null,{"$f":"'Currency Risk (Revised)'!B32","v":"Other currency 8"},{"$f":"'Schedule XXA'!D30","v":0},{"$f":"'Schedule XXA'!F30","v":0},{"$f":"'Schedule XXA'!H30","v":0},{"$f":"'Schedule XXA'!J30","v":0},{"$f":"'Schedule XXA'!L30","v":0},{"$f":"'Currency Risk (Revised)'!X32","v":0},{"$f":"'Currency Risk (Revised)'!Y32","v":0},null,null,0]
[null,{"$f":"'Currency Risk (Revised)'!B33","v":"Other currency 9"},{"$f":"'Schedule XXA'!D31","v":0},{"$f":"'Schedule XXA'!F31","v":0},{"$f":"'Schedule XXA'!H31","v":0},{"$f":"'Schedule XXA'!J31","v":0},{"$f":"'Schedule XXA'!L31","v":0},{"$f":"'Currency Risk (Revised)'!X33","v":0},{"$f":"'Currency Risk (Revised)'!Y33","v":0},null,null,0]
[null,{"$f":"'Currency Risk (Revised)'!B34","v":"Other currency 10"},{"$f":"'Schedule XXA'!D32","v":0},{"$f":"'Schedule XXA'!F32","v":0},{"$f":"'Schedule XXA'!H32","v":0},{"$f":"'Schedule XXA'!J32","v":0},{"$f":"'Schedule XXA'!L32","v":0},{"$f":"'Currency Risk (Revised)'!X34","v":0},{"$f":"'Currency Risk (Revised)'!Y34","v":0},null,null,0]
[null,{"$f":"'Currency Risk (Revised)'!B36","v":"Total"},{"$f":"SUM(C314:C336)","v":0},{"$f":"SUM(D314:D336)","v":0},{"$f":"SUM(E314:E336)","v":0},{"$f":"SUM(F314:F336)","v":0},{"$f":"SUM(G314:G336)","v":0},{"$f":"SUM(H314:H336)","v":0},0,null,{"$f":"SUM(K314:K336)","v":0},{"$f":"SUM(L314:L336)","v":0}]
[]
[null,null,null,null,null,null,null,"W/O Mgmt. Action","Mgmt. Action",null,"W/O Mgmt. Action","Mgmt. Action"]
[]
[null,"CURRENCY RISK",null,null,null,null,null,{"$f":"IF(SUM(H314:H336)>=0,SUM(H314:H336),0)","v":0},{"$f":"IF(SUM(I314:I336)>=0,SUM(I314:I336),0)","v":0},null,{"$f":"IF(SUM(L314:L336)>=0,SUM(L314:L336),0)","v":0},{"$f":"I341","v":0}]
[]
[null,"CONCENTRATION RISK",null,null,null,null,null,"STANDARD","STANDARD",null,"USER","USER"]
[null,null,null,null,null,null,"EXPOSURE","CAPITAL","REQUIRED",null,"CAPITAL","REQUIRED"]
[null,"ASSET TYPE",null,null,null,null,"VALUE","FACTOR","CAPITAL",null,"FACTOR","CAPITAL"]
[]
[null,"(a) Cash and Cash Equivalents"]
[null,"BSCR Rating 0",null,null,null,null,{"$f":"'Concentration Risk (Revised)'!D10","v":0},{"$f":"+'Fixed Income Investments'!E83","v":0},{"$f":"IF(G348<0,0,G348*H348)","v":0},null,null,{"$f":"MAX(0,IF(K348=\"\",H348*G348,G348*K348))","v":0}]
[null,"BSCR Rating 1",null,null,null,null,{"$f":"'Concentration Risk (Revised)'!D11","v":0},{"$f":"+'Fixed Income Investments'!E84","v":1E-3},{"$f":"IF(G349<0,0,G349*H349)","v":0},null,null,{"$f":"MAX(0,IF(K349=\"\",H349*G349,G349*K349))","v":0}]
[null,"BSCR Rating 2",null,null,null,null,{"$f":"'Concentration Risk (Revised)'!D12","v":0},{"$f":"+'Fixed Income Investments'!E85","v":2E-3},{"$f":"IF(G350<0,0,G350*H350)","v":0},null,null,{"$f":"MAX(0,IF(K350=\"\",H350*G350,G350*K350))","v":0}]
[null,"BSCR Rating 3",null,null,null,null,{"$f":"'Concentration Risk (Revised)'!D13","v":0},{"$f":"+'Fixed Income Investments'!E86","v":3.0000000000000001E-3},0,null,null,0]
[null,"BSCR Rating 4",null,null,null,null,{"$f":"'Concentration Risk (Revised)'!D14","v":0},{"$f":"+'Fixed Income Investments'!E87","v":5.0000000000000001E-3},0,null,null,0]
[null,"BSCR Rating 5",null,null,null,null,{"$f":"'Concentration Risk (Revised)'!D15","v":0},{"$f":"+'Fixed Income Investments'!E88","v":1.4999999999999999E-2},0,null,null,0]
[null,"BSCR Rating 6",null,null,null,null,{"$f":"'Concentration Risk (Revised)'!D16","v":0},{"$f":"+'Fixed Income Investments'!E89","v":0.04},0,null,null,0]
[null,"BSCR Rating 7",null,null,null,null,{"$f":"'Concentration Risk (Revised)'!D17","v":0},{"$f":"+'Fixed Income Investments'!E90","v":0.06},0,null,null,0]
[null,"BSCR Rating 8",null,null,null,null,{"$f":"'Concentration Risk (Revised)'!D18","v":0},{"$f":"+'Fixed Income Investments'!E91","v":0.09},0,null,null,0]
[]
[null,"(a)  SUBTOTAL - CASH AND CASH EQUIVALENTS",null,null,null,null,{"$f":"SUM(G348:G356)","v":0},null,{"$f":"SUM(I348:I356)","v":0},null,null,{"$f":"SUM(L348:L356)","v":0}]
[]
[null,"(b) Corporate & Sovereign Bonds"]
[null,"BSCR Rating 0",null,null,null,null,{"$f":"'Concentration Risk (Revised)'!D23","v":0},{"$f":"+H15","v":0},{"$f":"IF(G361<0,0,G361*H361)","v":0},null,null,{"$f":"MAX(0,IF(K361=\"\",H361*G361,G361*K361))","v":0}]
[null,"BSCR Rating 1",null,null,null,null,{"$f":"'Concentration Risk (Revised)'!D24","v":0},4.0000000000000001E-3,0,null,null,{"$f":"MAX(0,IF(K362=\"\",H362*G362,G362*K362))","v":0}]
[null,"BSCR Rating 2",null,null,null,null,{"$f":"'Concentration Risk (Revised)'!D25","v":0},8.0000000000000002E-3,0,null,null,{"$f":"MAX(0,IF(K363=\"\",H363*G363,G363*K363))","v":0}]
[null,"BSCR Rating 3",null,null,null,null,{"$f":"'Concentration Risk (Revised)'!D26","v":0},1.4999999999999999E-2,0,null,null,0]
[null,"BSCR Rating 4",null,null,null,null,{"$f":"'Concentration Risk (Revised)'!D27","v":0},0.03,0,null,null,0]
[null,"BSCR Rating 5",null,null,null,null,{"$f":"'Concentration Risk (Revised)'!D28","v":0},0.08,0,null,null,0]
[null,"BSCR Rating 6",null,null,null,null,{"$f":"'Concentration Risk (Revised)'!D29","v":0},0.15,0,null,null,0]
[null,"BSCR Rating 7",null,null,null,null,{"$f":"'Concentration Risk (Revised)'!D30","v":0},0.26300000000000001,0,null,null,0]
[null,"BSCR Rating 8",null,null,null,null,{"$f":"'Concentration Risk (Revised)'!D31","v":0},0.35,0,null,null,0]
[]
[null,"(b)  SUBTOTAL - CORPORATE & SOVEREIGN BONDS",null,null,null,null,{"$f":"SUM(G361:G369)","v":0},null,{"$f":"SUM(I361:I369)","v":0},null,null,{"$f":"SUM(L361:L369)","v":0}]
[]
[null,"(c) Residential Mortage-Backed Securities"]
[null,"BSCR Rating 0",null,null,null,null,{"$f":"'Concentration Risk (Revised)'!D36","v":0},0,{"$f":"IF(G374<0,0,G374*H374)","v":0},null,null,{"$f":"MAX(0,IF(K374=\"\",H374*G374,G374*K374))","v":0}]
[null,"BSCR Rating 1",null,null,null,null,{"$f":"'Concentration Risk (Revised)'!D37","v":0},{"$f":"+H30","v":6.0000000000000001E-3},0,null,null,{"$f":"MAX(0,IF(K375=\"\",H375*G375,G375*K375))","v":0}]
[null,"BSCR Rating 2",null,null,null,null,{"$f":"'Concentration Risk (Revised)'!D38","v":0},1.2E-2,0,null,null,{"$f":"MAX(0,IF(K376=\"\",H376*G376,G376*K376))","v":0}]
[null,"BSCR Rating 3",null,null,null,null,{"$f":"'Concentration Risk (Revised)'!D39","v":0},0.02,0,null,null,0]
[null,"BSCR Rating 4",null,null,null,null,{"$f":"'Concentration Risk (Revised)'!D40","v":0},0.04,0,null,null,0]
[null,"BSCR Rating 5",null,null,null,null,{"$f":"'Concentration Risk (Revised)'!D41","v":0},0.11,0,null,null,0]
[null,"BSCR Rating 6",null,null,null,null,{"$f":"'Concentration Risk (Revised)'!D42","v":0},0.25,0,null,null,0]
[null,"BSCR Rating 7",null,null,null,null,{"$f":"'Concentration Risk (Revised)'!D43","v":0},0.35,0,null,null,0]
[null,"BSCR Rating 8",null,null,null,null,{"$f":"'Concentration Risk (Revised)'!D44","v":0},0.35,0,null,null,0]
[]
[null,"(c)  SUBTOTAL - RESIDENTIAL MORTGAGE-BACKED SECURITIES",null,null,null,null,{"$f":"SUM(G374:G382)","v":0},null,{"$f":"SUM(I374:I382)","v":0},null,null,{"$f":"SUM(L374:L382)","v":0}]
[]
[null,"(d) Commercial Mortgage-Backed Securities / Asset-Backed Securities"]
[null,"BSCR Rating 0",null,null,null,null,{"$f":"'Concentration Risk (Revised)'!D49","v":0},0,{"$f":"IF(G387<0,0,G387*H387)","v":0},null,null,{"$f":"MAX(0,IF(K387=\"\",H387*G387,G387*K387))","v":0}]
[null,"BSCR Rating 1",null,null,null,null,{"$f":"'Concentration Risk (Revised)'!D50","v":0},{"$f":"+H44","v":5.0000000000000001E-3},0,null,null,{"$f":"MAX(0,IF(K388=\"\",H388*G388,G388*K388))","v":0}]
[null,"BSCR Rating 2",null,null,null,null,{"$f":"'Concentration Risk (Revised)'!D51","v":0},0.01,0,null,null,{"$f":"MAX(0,IF(K389=\"\",H389*G389,G389*K389))","v":0}]
[null,"BSCR Rating 3",null,null,null,null,{"$f":"'Concentration Risk (Revised)'!D52","v":0},1.7999999999999999E-2,0,null,null,0]
[null,"BSCR Rating 4",null,null,null,null,{"$f":"'Concentration Risk (Revised)'!D53","v":0},3.5000000000000003E-2,0,null,null,0]
[null,"BSCR Rating 5",null,null,null,null,{"$f":"'Concentration Risk (Revised)'!D54","v":0},0.1,0,null,null,0]
[null,"BSCR Rating 6",null,null,null,null,{"$f":"'Concentration Risk (Revised)'!D55","v":0},0.2,0,null,null,0]
[null,"BSCR Rating 7",null,null,null,null,{"$f":"'Concentration Risk (Revised)'!D56","v":0},0.3,0,null,null,0]
[null,"BSCR Rating 8",null,null,null,null,{"$f":"'Concentration Risk (Revised)'!D57","v":0},0.35,0,null,null,0]
[]
[null,"(d)  SUBTOTAL - COMMERCIAL MORTGAGE-BACKED SECURITIES / ASSET-BACKED SECURITIES",null,null,null,null,{"$f":"SUM(G387:G395)","v":0},null,{"$f":"SUM(I387:I395)","v":0},null,null,{"$f":"SUM(L387:L395)","v":0}]
[]
[null,"(e) Bond Mutual Funds"]
[null,"BSCR Rating 0",null,null,null,null,{"$f":"'Concentration Risk (Revised)'!D62","v":0},{"$f":"+H58","v":0},{"$f":"IF(G400<0,0,G400*H400)","v":0},null,null,{"$f":"MAX(0,IF(K400=\"\",H400*G400,G400*K400))","v":0}]
[null,"BSCR Rating 1",null,null,null,null,{"$f":"'Concentration Risk (Revised)'!D63","v":0},4.0000000000000001E-3,0,null,null,{"$f":"MAX(0,IF(K401=\"\",H401*G401,G401*K401))","v":0}]
[null,"BSCR Rating 2",null,null,null,null,{"$f":"'Concentration Risk (Revised)'!D64","v":0},8.0000000000000002E-3,0,null,null,{"$f":"MAX(0,IF(K402=\"\",H402*G402,G402*K402))","v":0}]
[null,"BSCR Rating 3",null,null,null,null,{"$f":"'Concentration Risk (Revised)'!D65","v":0},1.4999999999999999E-2,0,null,null,0]
[null,"BSCR Rating 4",null,null,null,null,{"$f":"'Concentration Risk (Revised)'!D66","v":0},0.03,0,null,null,0]
[null,"BSCR Rating 5",null,null,null,null,{"$f":"'Concentration Risk (Revised)'!D67","v":0},0.08,0,null,null,0]
[null,"BSCR Rating 6",null,null,null,null,{"$f":"'Concentration Risk (Revised)'!D68","v":0},0.15,0,null,null,0]
[null,"BSCR Rating 7",null,null,null,null,{"$f":"'Concentration Risk (Revised)'!D69","v":0},0.26300000000000001,0,null,null,0]
[null,"BSCR Rating 8",null,null,null,null,{"$f":"'Concentration Risk (Revised)'!D70","v":0},0.35,0,null,null,0]
[]
[null,"(e)  SUBTOTAL - BOND MUTUAL FUNDS",null,null,null,null,{"$f":"SUM(G400:G408)","v":0},null,{"$f":"SUM(I400:I408)","v":0},null,null,{"$f":"SUM(L400:L408)","v":0}]
[]
[null,"(f) Preferred Shares"]
[null,"BSCR Rating 0",null,null,null,null,{"$f":"'Concentration Risk (Revised)'!D75","v":0},{"$f":"+'Concentration Risk'!E75","v":0},{"$f":"IF(G413<0,0,G413*H413)","v":0},null,null,{"$f":"MAX(0,IF(K413=\"\",H413*G413,G413*K413))","v":0}]
[null,"BSCR Rating 1",null,null,null,null,{"$f":"'Concentration Risk (Revised)'!D76","v":0},{"$f":"+'Concentration Risk'!E76","v":6.0000000000000001E-3},{"$f":"IF(G414<0,0,G414*H414)","v":0},null,null,{"$f":"MAX(0,IF(K414=\"\",H414*G414,G414*K414))","v":0}]
[null,"BSCR Rating 2",null,null,null,null,{"$f":"'Concentration Risk (Revised)'!D77","v":0},{"$f":"+'Concentration Risk'!E77","v":1.2E-2},0,null,null,0]
[null,"BSCR Rating 3",null,null,null,null,{"$f":"'Concentration Risk (Revised)'!D78","v":0},{"$f":"+'Concentration Risk'!E78","v":0.02},0,null,null,0]
[null,"BSCR Rating 4",null,null,null,null,{"$f":"'Concentration Risk (Revised)'!D79","v":0},{"$f":"+'Concentration Risk'!E79","v":0.04},0,null,null,0]
[null,"BSCR Rating 5",null,null,null,null,{"$f":"'Concentration Risk (Revised)'!D80","v":0},{"$f":"+'Concentration Risk'!E80","v":0.11},0,null,null,0]
[null,"BSCR Rating 6",null,null,null,null,{"$f":"'Concentration Risk (Revised)'!D81","v":0},{"$f":"+'Concentration Risk'!E81","v":0.25},0,null,null,0]
[null,"BSCR Rating 7",null,null,null,null,{"$f":"'Concentration Risk (Revised)'!D82","v":0},{"$f":"+'Concentration Risk'!E82","v":0.35},0,null,null,0]
[null,"BSCR Rating 8",null,null,null,null,{"$f":"'Concentration Risk (Revised)'!D83","v":0},{"$f":"+'Concentration Risk'!E83","v":0.35},0,null,null,0]
[]
[null,"(f)  SUBTOTAL - PREFERRED SHARES",null,null,null,null,{"$f":"SUM(G413:G421)","v":0},null,{"$f":"SUM(I413:I421)","v":0},null,null,{"$f":"SUM(L413:L421)","v":0}]
[]
[null,"(g) Mortgage Loans"]
[null,"Insured/Guaranteed Mortgages",null,null,null,null,{"$f":"'Concentration Risk (Revised)'!D88","v":0},{"$f":"+'Concentration Risk'!E88","v":3.0000000000000001E-3},{"$f":"IF(G426<0,0,G426*H426)","v":0},null,null,{"$f":"MAX(0,IF(K426=\"\",H426*G426,G426*K426))","v":0}]
[null,"Other Commercial and Farm Mortgages",null,null,null,null,{"$f":"'Concentration Risk (Revised)'!D89","v":0},{"$f":"+'Concentration Risk'!E89","v":0.05},{"$f":"IF(G427<0,0,G427*H427)","v":0},null,null,{"$f":"MAX(0,IF(K427=\"\",H427*G427,G427*K427))","v":0}]
[null,"Other Residential Mortgages",null,null,null,null,{"$f":"'Concentration Risk (Revised)'!D90","v":0},{"$f":"+'Concentration Risk'!E90","v":1.4999999999999999E-2},{"$f":"IF(G428<0,0,G428*H428)","v":0},null,null,{"$f":"MAX(0,IF(K428=\"\",H428*G428,G428*K428))","v":0}]
[null,"Mortgages Not In Good Standing",null,null,null,null,{"$f":"'Concentration Risk (Revised)'!D91","v":0},{"$f":"+'Concentration Risk'!E91","v":0.25},{"$f":"IF(G429<0,0,G429*H429)","v":0},null,null,{"$f":"MAX(0,IF(K429=\"\",H429*G429,G429*K429))","v":0}]
[]
[null,"(g)  SUBTOTAL - Mortgage Loans",null,null,null,null,{"$f":"SUM(G425:G429)","v":0},null,{"$f":"SUM(I425:I429)","v":0},null,null,{"$f":"SUM(L425:L429)","v":0}]
[]
[null,"(h) Other Asset Classes"]
[null,"Infrastructure (Non-affiliate holdings, non-duration based)",null,null,null,null,{"$f":"'Concentration Risk (Revised)'!D96","v":0},{"$f":"'Concentration Risk (Revised)'!E96","v":0.25},{"$f":"IF(G434<0,0,G434*H434)","v":0},null,null,{"$f":"MAX(0,IF(K434=\"\",H434*G434,G434*K434))","v":0}]
[null,"Listed Equity Securities in Developed Markets",null,null,null,null,{"$f":"'Concentration Risk (Revised)'!D97","v":0},{"$f":"'Concentration Risk (Revised)'!E97","v":0.35},0,null,null,0]
[null,"Other Equities",null,null,null,null,{"$f":"'Concentration Risk (Revised)'!D98","v":0},{"$f":"'Concentration Risk (Revised)'!E98","v":0.45},0,null,null,0]
[null,"Strategic Holdings",null,null,null,null,{"$f":"'Concentration Risk (Revised)'!D99","v":0},{"$f":"'Concentration Risk (Revised)'!E99","v":0.2},0,null,null,0]
[null,"Duration Based",null,null,null,null,{"$f":"'Concentration Risk (Revised)'!D100","v":0},{"$f":"'Concentration Risk (Revised)'!E100","v":0.2},0,null,null,0]
[null,"Letters of Credit",null,null,null,null,{"$f":"'Concentration Risk (Revised)'!D101","v":0},{"$f":"'Concentration Risk (Revised)'!E101","v":0.2},0,null,null,0]
[null,"Advances to Affiliates - ",null,null,null,null,{"$f":"'Concentration Risk (Revised)'!D102","v":0},{"$f":"+'Concentration Risk'!E103","v":0.05},0,null,null,0]
[null,"Policy Loans",null,null,null,null,{"$f":"'Concentration Risk (Revised)'!D103","v":0},{"$f":"+'Concentration Risk'!E104","v":0},0,null,null,0]
[null,"Equity Real Estate 1",null,null,null,null,{"$f":"'Concentration Risk (Revised)'!D104","v":0},{"$f":"+'Concentration Risk'!E105","v":0.1},0,null,null,0]
[null,"Equity Real Estate 2",null,null,null,null,{"$f":"'Concentration Risk (Revised)'!D105","v":0},{"$f":"+'Concentration Risk'!E106","v":0.2},0,null,null,0]
[null,"Collateral Loans",null,null,null,null,{"$f":"'Concentration Risk (Revised)'!D106","v":0},{"$f":"+'Concentration Risk'!E107","v":0.05},0,null,null,0]
[]
[null,"(h)  SUBTOTAL - OTHER ASSET CLASSES",null,null,null,null,{"$f":"SUM(G434:G445)","v":0},null,{"$f":"SUM(I434:I445)","v":0},null,null,{"$f":"SUM(L434:L445)","v":0}]
[]
[null,"(i) Grandfathered - Other Asset Classes"]
[null,"Grandfathered - Common Stock and Mutual Funds",null,null,null,null,{"$f":"'Concentration Risk (Revised)'!D111","v":0},{"$f":"'Concentration Risk (Revised)'!E111","v":0.14399999999999999},{"$f":"IF(G449<0,0,G449*H449)","v":0},null,null,{"$f":"MAX(0,IF(K449=\"\",H449*G449,G449*K449))","v":0}]
[null,"Grandfathered - Other Investments",null,null,null,null,{"$f":"'Concentration Risk (Revised)'!D112","v":0},{"$f":"'Concentration Risk (Revised)'!E112","v":0.2},0,null,null,0]
[null,"Grandfathered - Investment in Affiliates – Unregulated entities that conduct ancillary services",null,null,null,null,{"$f":"'Concentration Risk (Revised)'!D113","v":0},{"$f":"'Concentration Risk (Revised)'!E113","v":0.05},0,null,null,0]
[null,"Grandfathered - Investment in Affiliates - Unregulated non-financial operating entities",null,null,null,null,{"$f":"'Concentration Risk (Revised)'!D114","v":0},{"$f":"'Concentration Risk (Revised)'!E114","v":0.2},0,null,null,0]
[null,"Grandfathered - Investment in Affiliates - Unregulated financial operating entities",null,null,null,null,{"$f":"'Concentration Risk (Revised)'!D115","v":0},{"$f":"'Concentration Risk (Revised)'!E115","v":0.55000000000000004},0,null,null,0]
[null,"Grandfathered - Investment in Affiliates - Regulated non-insurance financial operating entities",null,null,null,null,{"$f":"'Concentration Risk (Revised)'!D116","v":0},{"$f":"'Concentration Risk (Revised)'!E116","v":0.55000000000000004},0,null,null,0]
[null,"Grandfathered - Investment in Affiliates - Regulated insurance financial operating entities",null,null,null,null,{"$f":"'Concentration Risk (Revised)'!D117","v":0},{"$f":"'Concentration Risk (Revised)'!E117","v":0.2},0,null,null,0]
[null,"Grandfathered - Real Estate: Occupied by company",null,null,null,null,{"$f":"'Concentration Risk (Revised)'!D118","v":0},{"$f":"'Concentration Risk (Revised)'!E118","v":0.1},0,null,null,0]
[null,"Grandfathered - Real Estate: Other properties",null,null,null,null,{"$f":"'Concentration Risk (Revised)'!D119","v":0},{"$f":"'Concentration Risk (Revised)'!E119","v":0.2},0,null,null,0]
[]
[null,"(i)  SUBTOTAL - GRANDFATHERED OTHER ASSET CLASSES",null,null,null,null,{"$f":"SUM(G449:G457)","v":0},null,{"$f":"SUM(I449:I457)","v":0},null,null,{"$f":"SUM(L449:L457)","v":0}]
[]
[null,"TOTAL CONCENTRATION RISK",null,null,null,null,{"$f":"G358+G371+G384+G397+G410+G423+G431+G446+G459","v":0},null,{"$f":"I358+I371+I384+I397+I410+I423+I431+I446+I459","v":0},null,null,{"$f":"L358+L371+L384+L397+L410+L423+L431+L446+L459","v":0}]
[]
[null,null,null,null,null,null,null,"STANDARD","STANDARD",null,"USER","USER"]
[null,"TYPE OF ",null,null,null,null,"ASSET","CAPITAL","REQUIRED",null,"CAPITAL","REQUIRED"]
[null,"CREDIT RISK",null,null,null,null,"VALUE","FACTOR","CAPITAL",null,"FACTOR","CAPITAL"]
[]
[null,"(a)  Accounts and Premiums Receivable",null,null,null,null,"(1) ","(2)","(1) x (2)",null,"(3)","(1) x (3)"]
[]
[null,"In Course of Collection",null,null,null,null,{"$f":"'Form 4EBS'!F59","v":0},{"$f":"'Credit Risk (Revised)'!G11","v":0.05},{"$f":"IF(G469<0,0,G469*H469)","v":0},null,null,{"$f":"MAX(0,IF(K469=\"\",H469*G469,G469*K469))","v":0}]
[null,"Deferred - Not Yet Due",null,null,null,null,{"$f":"IF('Form 1SFS'!K68=0,'Form 1SFS'!F68+'Form 1SFS'!H68,'Form 1SFS'!K68)","v":0},{"$f":"'Credit Risk (Revised)'!G12","v":0.05},{"$f":"IF(G470<0,0,G470*H470)","v":0},null,null,{"$f":"MAX(0,IF(K470=\"\",H470*G470,G470*K470))","v":0}]
[null,"Receivables from retrocessional contracts Less: Collateralized Balances",null,null,null,null,{"$f":"'Form 4EBS'!F60-'Form 4EBS'!F196","v":0},{"$f":"'Credit Risk (Revised)'!G13","v":0.1},{"$f":"(G471*H471)","v":0},null,null,{"$f":"IF(K471=\"\",H471*G471,G471*K471)","v":0}]
[]
[null,"(a)  SUBTOTAL - ACCOUNTS AND PREMIUMS RECEIVABLE",null,null,null,null,{"$f":"SUM(G469:G471)","v":0},null,{"$f":"IF(SUM(I469:I471)>=0,SUM(I469:I471),0)","v":0},null,null,{"$f":"IF(SUM(L469:L471)>=0,SUM(L469:L471),0)","v":0}]
[]
[null,"(b)  All Other Receivables"]
[]
[null,"Accrued Investment Income",null,null,null,null,{"$f":"'Form 4EBS'!F56","v":0},{"$f":"'Credit Risk (Revised)'!G19","v":2.5000000000000001E-2},{"$f":"IF(G477<0,0,G477*H477)","v":0},null,null,{"$f":"MAX(0,IF(K477=\"\",H477*G477,G477*K477))","v":0}]
[null,"Advances to Affiliates",null,null,null,null,{"$f":"'Form 4EBS'!F39","v":0},{"$f":"'Credit Risk (Revised)'!G20","v":0.05},{"$f":"IF(G478<0,0,G478*H478)","v":0},null,null,{"$f":"MAX(0,IF(K478=\"\",H478*G478,G478*K478))","v":0}]
[null,"Balances receivable on sale of investments",null,null,null,null,{"$f":"'Form 4EBS'!F80","v":0},{"$f":"'Credit Risk (Revised)'!G22","v":2.5000000000000001E-2},{"$f":"IF(G479<0,0,G479*H479)","v":0},null,null,{"$f":"MAX(0,IF(K479=\"\",H479*G479,G479*K479))","v":0}]
[]
[null,"(b)  SUBTOTAL - ALL OTHER RECEIVABLES",null,null,null,null,{"$f":"SUM(G477:G479)","v":0},null,{"$f":"IF(SUM(I477:I479)>=0,SUM(I477:I479),0)","v":0},null,null,{"$f":"IF(SUM(L477:L479)>=0,SUM(L477:L479),0)","v":0}]
[]
[null,"(c) Particulars of Reinsurance Balances For Current Year By BSCR Rating"]
[]
[null,"BSCR Rating 0 (Domestic Affiliates)",null,null,null,null,{"$f":"'Schedule XVIII (EBS)'!O87","v":0},{"$f":"'Credit Risk (Revised)'!G28","v":0},{"$f":"IF(G485<0,0,G485*H485)","v":0},null,null,{"$f":"MAX(0,IF(K485=\"\",H485*G485,G485*K485))","v":0}]
[null,"BSCR Rating 1",null,null,null,null,{"$f":"'Schedule XVIII (EBS)'!O88","v":0},{"$f":"'Credit Risk (Revised)'!G29","v":7.0000000000000001E-3},{"$f":"IF(G486<0,0,G486*H486)","v":0},null,null,0]
[null,"BSCR Rating 2",null,null,null,null,{"$f":"'Schedule XVIII (EBS)'!O89","v":0},{"$f":"'Credit Risk (Revised)'!G30","v":1.4999999999999999E-2},0,null,null,0]
[null,"BSCR Rating 3",null,null,null,null,{"$f":"'Schedule XVIII (EBS)'!O90","v":0},{"$f":"'Credit Risk (Revised)'!G31","v":3.5000000000000003E-2},0,null,null,0]
[null,"BSCR Rating 4",null,null,null,null,{"$f":"'Schedule XVIII (EBS)'!O91","v":0},{"$f":"'Credit Risk (Revised)'!G32","v":7.0000000000000007E-2},0,null,null,0]
[null,"BSCR Rating 5",null,null,null,null,{"$f":"'Schedule XVIII (EBS)'!O92","v":0},{"$f":"'Credit Risk (Revised)'!G33","v":0.12},0,null,null,0]
[null,"BSCR Rating 6",null,null,null,null,{"$f":"'Schedule XVIII (EBS)'!O93","v":0},{"$f":"'Credit Risk (Revised)'!G34","v":0.2},0,null,null,0]
[null,"BSCR Rating 7",null,null,null,null,{"$f":"'Schedule XVIII (EBS)'!O94","v":0},{"$f":"'Credit Risk (Revised)'!G35","v":0.27},0,null,null,0]
[null,"BSCR Rating 8",null,null,null,null,{"$f":"'Schedule XVIII (EBS)'!O95","v":0},{"$f":"'Credit Risk (Revised)'!G36","v":0.35},0,null,null,0]
[]
[null,"Total",null,null,null,null,{"$f":"SUM(G485:G494)","v":0},null,{"$f":"SUM(I485:I494)","v":0},null,null,{"$f":"SUM(L485:L494)","v":0}]
[]
[null,"Diversification Adjustment at 40%",null,null,null,null,null,null,{"$f":"SUM(I485:I493)*-('Schedule XVIII (EBS)'!O104)","v":0},null,null,{"$f":"SUM(L485:L493)*-('Schedule XVIII (EBS)'!O104)","v":0}]
[]
[null,"(c)  SUBTOTAL - PARTICULARS OF REINSURANCE BALANCES BY BSCR RATING",null,null,null,null,{"$f":"+G495","v":0},null,{"$f":"IF(SUM(I485:I493,I497)>=0,SUM(I485:I493,I497),0)","v":0},null,null,{"$f":"IF(SUM(L485:L493,L497)>=0,SUM(L485:L493,L497),0)","v":0}]
[]
[null,null,null,"Market Value of Derivatives with Positive Market Value","Market Value of Derivatives with Negative Market Value","Market Value of Collateral, Excluding any overcollateralization","STANDARD","HAIRCUT","STANDARD",null,"USER","USER"]
[null,null,null,null,null,null,"CAPITAL","ON","REQUIRED",null,"CAPITAL","REQUIRED"]
[null,null,null,null,null,null,"FACTOR","COLLATERAL","CAPITAL",null,"FACTOR","CAPITAL"]
[]
[null,"(d) Counterparty Default Risk for OTC Derivatives"]
[]
[null,"BSCR Rating 0 ",null,{"$f":"'Schedule IIB (EBS)'!D84+'Schedule IIC (EBS)'!D84+'Schedule IID (EBS)'!D84+'Schedule IIE (EBS)'!D84+'Schedule IIF (EBS)'!D84","v":0},{"$f":"'Schedule IIB (EBS)'!F84+'Schedule IIC (EBS)'!F84+'Schedule IID (EBS)'!F84+'Schedule IIE (EBS)'!F84+'Schedule IIF (EBS)'!F84","v":0},{"$f":"'Schedule IIB (EBS)'!H84+'Schedule IIC (EBS)'!H84+'Schedule IID (EBS)'!H84+'Schedule IIE (EBS)'!H84+'Schedule IIF (EBS)'!H84","v":0},{"$f":"'Credit Risk (Revised)'!F47","v":0},{"$f":"'Credit Risk (Revised)'!G47","v":0.03},{"$f":"MAX(0,D507-(1-H507)*MIN(D507,F507))*G507","v":0},null,null,{"$f":"IF(K507=\"\",I507,MAX(0,D507-(1-H507)*MIN(D507,F507))*K507)","v":0}]
[null,"BSCR Rating 1",null,{"$f":"'Schedule IIB (EBS)'!D85+'Schedule IIC (EBS)'!D85+'Schedule IID (EBS)'!D85+'Schedule IIE (EBS)'!D85+'Schedule IIF (EBS)'!D85","v":0},{"$f":"'Schedule IIB (EBS)'!F85+'Schedule IIC (EBS)'!F85+'Schedule IID (EBS)'!F85+'Schedule IIE (EBS)'!F85+'Schedule IIF (EBS)'!F85","v":0},{"$f":"'Schedule IIB (EBS)'!H85+'Schedule IIC (EBS)'!H85+'Schedule IID (EBS)'!H85+'Schedule IIE (EBS)'!H85+'Schedule IIF (EBS)'!H85","v":0},{"$f":"'Credit Risk (Revised)'!F48","v":4.0000000000000001E-3},{"$f":"'Credit Risk (Revised)'!G48","v":0.03},{"$f":"MAX(0,D508-(1-H508)*MIN(D508,F508))*G508","v":0},null,null,{"$f":"IF(K508=\"\",I508,MAX(0,D508-(1-H508)*MIN(D508,F508))*K508)","v":0}]
[null,"BSCR Rating 2",null,{"$f":"'Schedule IIB (EBS)'!D86+'Schedule IIC (EBS)'!D86+'Schedule IID (EBS)'!D86+'Schedule IIE (EBS)'!D86+'Schedule IIF (EBS)'!D86","v":0},{"$f":"'Schedule IIB (EBS)'!F86+'Schedule IIC (EBS)'!F86+'Schedule IID (EBS)'!F86+'Schedule IIE (EBS)'!F86+'Schedule IIF (EBS)'!F86","v":0},{"$f":"'Schedule IIB (EBS)'!H86+'Schedule IIC (EBS)'!H86+'Schedule IID (EBS)'!H86+'Schedule IIE (EBS)'!H86+'Schedule IIF (EBS)'!H86","v":0},{"$f":"'Credit Risk (Revised)'!F49","v":8.0000000000000002E-3},{"$f":"'Credit Risk (Revised)'!G49","v":0.03},0,null,null,0]
[null,"BSCR Rating 3",null,{"$f":"'Schedule IIB (EBS)'!D87+'Schedule IIC (EBS)'!D87+'Schedule IID (EBS)'!D87+'Schedule IIE (EBS)'!D87+'Schedule IIF (EBS)'!D87","v":0},{"$f":"'Schedule IIB (EBS)'!F87+'Schedule IIC (EBS)'!F87+'Schedule IID (EBS)'!F87+'Schedule IIE (EBS)'!F87+'Schedule IIF (EBS)'!F87","v":0},{"$f":"'Schedule IIB (EBS)'!H87+'Schedule IIC (EBS)'!H87+'Schedule IID (EBS)'!H87+'Schedule IIE (EBS)'!H87+'Schedule IIF (EBS)'!H87","v":0},{"$f":"'Credit Risk (Revised)'!F50","v":1.4999999999999999E-2},{"$f":"'Credit Risk (Revised)'!G50","v":0.03},0,null,null,0]
[null,"BSCR Rating 4",null,{"$f":"'Schedule IIB (EBS)'!D88+'Schedule IIC (EBS)'!D88+'Schedule IID (EBS)'!D88+'Schedule IIE (EBS)'!D88+'Schedule IIF (EBS)'!D88","v":0},{"$f":"'Schedule IIB (EBS)'!F88+'Schedule IIC (EBS)'!F88+'Schedule IID (EBS)'!F88+'Schedule IIE (EBS)'!F88+'Schedule IIF (EBS)'!F88","v":0},{"$f":"'Schedule IIB (EBS)'!H88+'Schedule IIC (EBS)'!H88+'Schedule IID (EBS)'!H88+'Schedule IIE (EBS)'!H88+'Schedule IIF (EBS)'!H88","v":0},{"$f":"'Credit Risk (Revised)'!F51","v":0.03},{"$f":"'Credit Risk (Revised)'!G51","v":0.03},0,null,null,0]
[null,"BSCR Rating 5",null,{"$f":"'Schedule IIB (EBS)'!D89+'Schedule IIC (EBS)'!D89+'Schedule IID (EBS)'!D89+'Schedule IIE (EBS)'!D89+'Schedule IIF (EBS)'!D89","v":0},{"$f":"'Schedule IIB (EBS)'!F89+'Schedule IIC (EBS)'!F89+'Schedule IID (EBS)'!F89+'Schedule IIE (EBS)'!F89+'Schedule IIF (EBS)'!F89","v":0},{"$f":"'Schedule IIB (EBS)'!H89+'Schedule IIC (EBS)'!H89+'Schedule IID (EBS)'!H89+'Schedule IIE (EBS)'!H89+'Schedule IIF (EBS)'!H89","v":0},{"$f":"'Credit Risk (Revised)'!F52","v":0.08},{"$f":"'Credit Risk (Revised)'!G52","v":0.03},0,null,null,0]
[null,"BSCR Rating 6",null,{"$f":"'Schedule IIB (EBS)'!D90+'Schedule IIC (EBS)'!D90+'Schedule IID (EBS)'!D90+'Schedule IIE (EBS)'!D90+'Schedule IIF (EBS)'!D90","v":0},{"$f":"'Schedule IIB (EBS)'!F90+'Schedule IIC (EBS)'!F90+'Schedule IID (EBS)'!F90+'Schedule IIE (EBS)'!F90+'Schedule IIF (EBS)'!F90","v":0},{"$f":"'Schedule IIB (EBS)'!H90+'Schedule IIC (EBS)'!H90+'Schedule IID (EBS)'!H90+'Schedule IIE (EBS)'!H90+'Schedule IIF (EBS)'!H90","v":0},{"$f":"'Credit Risk (Revised)'!F53","v":0.15},{"$f":"'Credit Risk (Revised)'!G53","v":0.03},0,null,null,0]
[null,"BSCR Rating 7",null,{"$f":"'Schedule IIB (EBS)'!D91+'Schedule IIC (EBS)'!D91+'Schedule IID (EBS)'!D91+'Schedule IIE (EBS)'!D91+'Schedule IIF (EBS)'!D91","v":0},{"$f":"'Schedule IIB (EBS)'!F91+'Schedule IIC (EBS)'!F91+'Schedule IID (EBS)'!F91+'Schedule IIE (EBS)'!F91+'Schedule IIF (EBS)'!F91","v":0},{"$f":"'Schedule IIB (EBS)'!H91+'Schedule IIC (EBS)'!H91+'Schedule IID (EBS)'!H91+'Schedule IIE (EBS)'!H91+'Schedule IIF (EBS)'!H91","v":0},{"$f":"'Credit Risk (Revised)'!F54","v":0.26300000000000001},{"$f":"'Credit Risk (Revised)'!G54","v":0.03},0,null,null,0]
[null,"BSCR Rating 8",null,{"$f":"'Schedule IIB (EBS)'!D92+'Schedule IIC (EBS)'!D92+'Schedule IID (EBS)'!D92+'Schedule IIE (EBS)'!D92+'Schedule IIF (EBS)'!D92","v":0},{"$f":"'Schedule IIB (EBS)'!F92+'Schedule IIC (EBS)'!F92+'Schedule IID (EBS)'!F92+'Schedule IIE (EBS)'!F92+'Schedule IIF (EBS)'!F92","v":0},{"$f":"'Schedule IIB (EBS)'!H92+'Schedule IIC (EBS)'!H92+'Schedule IID (EBS)'!H92+'Schedule IIE (EBS)'!H92+'Schedule IIF (EBS)'!H92","v":0},{"$f":"'Credit Risk (Revised)'!F55","v":0.35},{"$f":"'Credit Risk (Revised)'!G55","v":0.03},0,null,null,0]
[null,null,null,{"$f":"SUM(D507:D515)","v":0},{"$f":"SUM(E507:E515)","v":0},{"$f":"SUM(F507:F515)","v":0},null,null,{"$f":"SUM(I507:I515)","v":0},null,null,{"$f":"SUM(L507:L515)","v":0}]
[]
[null,"(d)  SUBTOTAL - COUNTERPARTY DEFAULT RISK FOR OTC DERIVATIVES",null,null,null,null,null,null,{"$f":"SUM(I507:I515)","v":0},null,null,{"$f":"SUM(L507:L515)","v":0}]
[]
[null,"(d)  TOTAL CREDIT RISK  [ (a) + (b) + (c) ]",null,null,null,null,{"$f":"G499+G481+G473","v":0},null,{"$f":"I481+I473+I499+I518","v":0},null,null,{"$f":"L481+L473+L499+L518","v":0}]
[]
[null,null,null,null,null,null,null,null,"STANDARD",null,"USER","USER"]
[null,null,null,null,null,null,"Net Amount of Risk",null,"REQUIRED",null,"CAPITAL","REQUIRED"]
[null,"Mortality","Statement Source",null,null,null,"Adjustable","Non-Adjust","CAPITAL",null,"FACTOR","CAPITAL"]
[]
[null,"Mortality","Sch VII EBS, Line 1, Column (9) and Sch VII EBS, Line 1, Column (10)",null,null,null,{"$f":"'Schedule VII (EBS)'!H10","v":0},{"$f":"'Schedule VII (EBS)'!I10","v":0},{"$f":"(IF(G526>1000000,1.985*1000000,1.985*G526)/1000)+(IF(G526<1000000,0,IF(G526>5000000,0.9*4000000,0.9*(G526-1000000)))/1000)+(IF(G526<5000000,0,IF(G526>10000000,0.72*5000000,0.72*(G526-5000000)))/1000)+(IF(G526<10000000,0,IF(G526>50000000,0.645*40000000,0.645*(G526-10000000)))/1000)+(IF(G526<50000000,0,0.565*(G526-50000000))/1000)+(IF(H526>1000000,3.97*1000000,3.97*H526)/1000)+(IF(H526<1000000,0,IF(H526>5000000,1.8*4000000,1.8*(H526-1000000)))/1000)+(IF(H526<5000000,0,IF(H526>10000000,1.44*5000000,1.44*(H526-5000000)))/1000)+(IF(H526<10000000,0,IF(H526>50000000,1.29*40000000,1.29*(H526-10000000)))/1000)+(IF(H526<50000000,0,1.13*(H526-50000000))/1000)","v":0},null,null,{"$f":"IF(K526=\"\",I526,(G526+H526)*K526)","v":0}]
[]
[null,null,null,null,null,null,null,null,"STANDARD",null,"USER","USER"]
[null,null,null,null,null,null,"Net Annual Premium",null,"REQUIRED",null,"CAPITAL","REQUIRED"]
[null,"Morbidity","Statement Source",null,null,null,"<2 years",">2 years","CAPITAL",null,"FACTOR","CAPITAL"]
[]
[null,"Critical Illness","Sch VII EBS, Line 2, Column (9) and Sch VII EBS, Line 2, Column (10)",null,null,null,{"$f":"'Schedule VII (EBS)'!H11","v":0},{"$f":"'Schedule VII (EBS)'!I11","v":0},{"$f":"(IF(G532>1000000,5.955*1000000,5.955*G532)/1000)+(IF(G532<1000000,0,IF(G532>5000000,2.7*4000000,2.7*(G532-1000000)))/1000)+(IF(G532<5000000,0,IF(G532>10000000,2.16*5000000,2.16*(G532-5000000)))/1000)+(IF(G532<10000000,0,IF(G532>50000000,1.935*40000000,1.935*(G532-10000000)))/1000)+(IF(G532<50000000,0,1.695*(G532-50000000))/1000)+(IF(H532>1000000,11.91*1000000,11.91*H532)/1000)+(IF(H532<1000000,0,IF(H532>5000000,5.4*4000000,5.4*(H532-1000000)))/1000)+(IF(H532<5000000,0,IF(H532>10000000,4.32*5000000,4.32*(H532-5000000)))/1000)+(IF(H532<10000000,0,IF(H532>50000000,3.87*40000000,3.87*(H532-10000000)))/1000)+(IF(H532<50000000,0,3.39*(H532-50000000))/1000)","v":0},null,null,{"$f":"IF(K532=\"\",I532,(G532+H532)*K532)","v":0}]
[]
[null,"Dis. Inc :Claim in Pymnt (1)","Schedule VII EBS, Line 9, Column (7)",null,null,null,{"$f":"'Schedule VII (EBS)'!F38","v":0},null,{"$f":"G534*7%","v":0},null,null,{"$f":"IF(K534=\"\",I534,G534*K534)","v":0}]
[null,"Dis. Inc :Claim in Pymnt (2)","Schedule VII EBS, Line 10, Column (7)",null,null,null,{"$f":"'Schedule VII (EBS)'!F39","v":0},null,{"$f":"G535*10%","v":0},null,null,{"$f":"IF(K535=\"\",I535,G535*K535)","v":0}]
[]
[null,"Disability Income: active lives (including waiver of premium and long-term care)"]
[null,"< = 1 Year","Sch VII EBS, Line 7(a), Column (9) and Sch VII EBS, Line 7(a), Column (10)",null,null,null,{"$f":"'Schedule VII (EBS)'!H33","v":0},{"$f":"'Schedule VII (EBS)'!I33","v":0},{"$f":"G538*9%+H538*12%","v":0},null,null,{"$f":"IF(K538=\"\",I538,(G538+H538)*K538)","v":0}]
[null,"1 - 5 years","Sch VII EBS, Line 7(b), Column (9) and Sch VII EBS, Line 7(b), Column (10)",null,null,null,{"$f":"'Schedule VII (EBS)'!H34","v":0},{"$f":"'Schedule VII (EBS)'!I34","v":0},{"$f":"G539*15%+H539*20%","v":0},null,null,{"$f":"IF(K539=\"\",I539,(G539+H539)*K539)","v":0}]
[null,"> 5 years","Sch VII EBS, Line 7(c), Column (9) and Sch VII EBS, Line 7(c), Column (10)",null,null,null,{"$f":"'Schedule VII (EBS)'!H35","v":0},{"$f":"'Schedule VII (EBS)'!I35","v":0},{"$f":"G540*22.5%+H540*30%","v":0},null,null,{"$f":"IF(K540=\"\",I540,(G540+H540)*K540)","v":0}]
[]
[null,"Other Accident & Sickness","Schedule VII EBS, Line 8, Column (11)",null,null,null,{"$f":"'Schedule VII (EBS)'!J37","v":0},null,{"$f":"G542*12%","v":0},null,null,{"$f":"IF(K542=\"\",I542,G542*K542)","v":0}]
[]
[null,null,"Bermuda EBS Best Estimate Provision on Schedule VII",null,null,null,null,null,"STANDARD",null,"USER","USER"]
[null,null,null,null,null,null,null,"CAPITAL","REQUIRED",null,"CAPITAL","REQUIRED"]
[null,"Longevity",null,null,null,null,null,"FACTOR","CAPITAL",null,"FACTOR","CAPITAL"]
[]
[null,"Longevity Risk (immediate pay-out annuities, contingent annuities, pension pay-outs)"]
[null,"(a) 0 - 55","Schedule VII EBS, Line 3(a), Column (7)",null,null,null,{"$f":"+'Schedule VII (EBS)'!F14","v":0},{"$f":"+'LT Insurance Risk'!L26","v":0.02},{"$f":"G549*H549","v":0},null,null,{"$f":"IF(K549=\"\",I549,(G549)*K549)","v":0}]
[null,"(b) 56 - 65","Schedule VII EBS, Line 3(b), Column (7)",null,null,null,{"$f":"+'Schedule VII (EBS)'!F15","v":0},{"$f":"+'LT Insurance Risk'!L27","v":0.03},{"$f":"G550*H550","v":0},null,null,{"$f":"IF(K550=\"\",I550,(G550)*K550)","v":0}]
[null,"(c) 66 - 70","Schedule VII EBS, Line 3(c), Column (7)",null,null,null,{"$f":"+'Schedule VII (EBS)'!F16","v":0},{"$f":"+'LT Insurance Risk'!L28","v":0.04},{"$f":"G551*H551","v":0},null,null,0]
[null,"(d) 71 - 80","Schedule VII EBS, Line 3(d), Column (7)",null,null,null,{"$f":"+'Schedule VII (EBS)'!F17","v":0},{"$f":"+'LT Insurance Risk'!L29","v":0.05},{"$f":"G552*H552","v":0},null,null,0]
[null,"(e) 81+","Schedule VII EBS, Line 3(e), Column (7)",null,null,null,{"$f":"+'Schedule VII (EBS)'!F18","v":0},{"$f":"+'LT Insurance Risk'!L30","v":0.06},{"$f":"G553*H553","v":0},null,null,0]
[]
[null,"Longevity (deferred pay-out annuities, future contingent annuities, future pension pay-outs)"]
[null,"(a) 0 - 55","Schedule VII EBS, Line 4(a), Column (7)",null,null,null,{"$f":"+'Schedule VII (EBS)'!F22","v":0},{"$f":"+'LT Insurance Risk'!L33","v":0.02},{"$f":"G556*H556","v":0},null,null,{"$f":"IF(K556=\"\",I556,(G556)*K556)","v":0}]
[null,"(b) 56 - 60","Schedule VII EBS, Line 4(b), Column (7)",null,null,null,{"$f":"+'Schedule VII (EBS)'!F23","v":0},{"$f":"+'LT Insurance Risk'!L34","v":0.03},0,null,null,0]
[null,"(c) 61 - 65","Schedule VII EBS, Line 4(c), Column (7)",null,null,null,{"$f":"+'Schedule VII (EBS)'!F24","v":0},{"$f":"+'LT Insurance Risk'!L35","v":0.04},0,null,null,0]
[null,"(d) 66 - 70","Schedule VII EBS, Line 4(d), Column (7)",null,null,null,{"$f":"+'Schedule VII (EBS)'!F25","v":0},{"$f":"+'LT Insurance Risk'!L36","v":0.05},0,null,null,0]
[null,"(e) 71 - 75","Schedule VII EBS, Line 4(e), Column (7)",null,null,null,{"$f":"+'Schedule VII (EBS)'!F26","v":0},{"$f":"+'LT Insurance Risk'!L37","v":0.06},0,null,null,0]
[null,"(f) 76+","Schedule VII EBS, Line 4(f), Column (7)",null,null,null,{"$f":"+'Schedule VII (EBS)'!F27","v":0},{"$f":"+'LT Insurance Risk'!L38","v":7.0000000000000007E-2},0,null,null,0]
[]
[null," - Part (A) Removes any Longevity Swap Capital Requirement that has been included in the Standard Longevity Capital Requirement",null,null,null,null,null,null,null,null,"ACTUAL"]
[null,null,"BSCR ADJUSTED RESERVE for Regular Longevity Risk Business only (excluding Longevity Swaps)",null,null,null,null,"CAPITAL","CAPITAL",null,"CAPITAL"]
[null,"Longevity Capital Adj",null,null,null,null,null,"FACTOR","FROM ABOVE",null,"REQUIRED","ADJUSTMENT"]
[]
[null,"Longevity Risk (immediate pay-out annuities, contingent annuities, pension pay-outs)"]
[null,"(a) 0 - 55",null,null,null,null,null,{"$f":"IF(K549=\"\",'LT Insurance Risk'!L26,K549)","v":0.02},{"$f":"L549","v":0},null,{"$f":"MAX(0,IF(G568=\"\",0,H568*G568))","v":0},{"$f":"IF(G568=\"\",0,K568-I568)","v":0}]
[null,"(b) 56 - 65",null,null,null,null,null,{"$f":"IF(K550=\"\",'LT Insurance Risk'!L27,K550)","v":0.03},{"$f":"L550","v":0},null,{"$f":"MAX(0,IF(G569=\"\",0,H569*G569))","v":0},{"$f":"IF(G569=\"\",0,K569-I569)","v":0}]
[null,"(c) 66 - 70",null,null,null,null,null,{"$f":"IF(K551=\"\",'LT Insurance Risk'!L28,K551)","v":0.04},0,null,0,0]
[null,"(d) 71 - 80",null,null,null,null,null,{"$f":"IF(K552=\"\",'LT Insurance Risk'!L29,K552)","v":0.05},0,null,0,0]
[null,"(e) 81+",null,null,null,null,null,{"$f":"IF(K553=\"\",'LT Insurance Risk'!L30,K553)","v":0.06},0,null,0,0]
[null,null,null,null,null,null,null,{"$f":"IF(K554=\"\",'LT Insurance Risk'!L31,K554)","v":0}]
[null,"Longevity (deferred pay-out annuities, future contingent annuities, future pension pay-outs)"]
[null,"(a) 0 - 55",null,null,null,null,null,{"$f":"IF(K556=\"\",'LT Insurance Risk'!L33,K556)","v":0.02},0,null,0,0]
[null,"(b) 56 - 60",null,null,null,null,null,{"$f":"IF(K557=\"\",'LT Insurance Risk'!L34,K557)","v":0.03},0,null,0,0]
[null,"(c) 61 - 65",null,null,null,null,null,{"$f":"IF(K558=\"\",'LT Insurance Risk'!L35,K558)","v":0.04},0,null,0,0]
[null,"(d) 66 - 70",null,null,null,null,null,{"$f":"IF(K559=\"\",'LT Insurance Risk'!L36,K559)","v":0.05},0,null,0,0]
[null,"(e) 71 - 75",null,null,null,null,null,{"$f":"IF(K560=\"\",'LT Insurance Risk'!L37,K560)","v":0.06},0,null,0,0]
[null,"(f) 76+",null,null,null,null,null,{"$f":"IF(K561=\"\",'LT Insurance Risk'!L38,K561)","v":7.0000000000000007E-2},0,null,0,0]
[]
[null," - Part (B) Determines Appropriate Capital Requirment to include for Longevity Swaps"]
[null,null,"Bermuda EBS Best Estimate Provision for the Floating Leg of Longevity Swap",null,null,null,null,null,null,null,"CAPITAL"]
[null,"Longevity Capital Adj",null,null,null,null,null,null,null,null,"FACTOR","ADJUSTMENT"]
[]
[null,"Longevity Risk (immediate pay-out annuities, contingent annuities, pension pay-outs)"]
[null,"(a) 0 - 55",null,null,null,null,null,null,null,null,{"$f":"+'LT Insurance Risk'!L26","v":0.02},{"$f":"IF(G587=\"\",0,K587*G587)","v":0}]
[null,"(b) 56 - 65",null,null,null,null,null,null,null,null,{"$f":"+'LT Insurance Risk'!L27","v":0.03},{"$f":"IF(G588=\"\",0,K588*G588)","v":0}]
[null,"(c) 66 - 70",null,null,null,null,null,null,null,null,{"$f":"+'LT Insurance Risk'!L28","v":0.04},0]
[null,"(d) 71 - 80",null,null,null,null,null,null,null,null,{"$f":"+'LT Insurance Risk'!L29","v":0.05},0]
[null,"(e) 81+",null,null,null,null,null,null,null,null,{"$f":"+'LT Insurance Risk'!L30","v":0.06},0]
[null,null,null,null,null,null,null,null,null,null,{"$f":"+'LT Insurance Risk'!L50","v":"% of Annual Premiums"}]
[null,"Longevity (deferred pay-out annuities, future contingent annuities, future pension pay-outs)"]
[null,"(a) 0 - 55",null,null,null,null,null,null,null,null,{"$f":"+'LT Insurance Risk'!L33","v":0.02},{"$f":"IF(G594=\"\",0,K594*G594)","v":0}]
[null,"(b) 56 - 60",null,null,null,null,null,null,null,null,{"$f":"+'LT Insurance Risk'!L34","v":0.03},0]
[null,"(c) 61 - 65",null,null,null,null,null,null,null,null,{"$f":"+'LT Insurance Risk'!L35","v":0.04},0]
[null,"(d) 66 - 70",null,null,null,null,null,null,null,null,{"$f":"+'LT Insurance Risk'!L36","v":0.05},0]
[null,"(e) 71 - 75",null,null,null,null,null,null,null,null,{"$f":"+'LT Insurance Risk'!L37","v":0.06},0]
[null,"(f) 76+",null,null,null,null,null,null,null,null,{"$f":"+'LT Insurance Risk'!L38","v":7.0000000000000007E-2},{"$f":"IF(G599=\"\",0,K599*G599)","v":0}]
[]
[null,null,null,null,null,null,null,null,"STANDARD",null,"USER","USER"]
[null,null,null,null,null,null,null,null,"REQUIRED",null,"CAPITAL","REQUIRED"]
[null,null,"Statement Source",null,null,null,"Net Annual Premium",null,"CAPITAL",null,"FACTOR","CAPITAL"]
[]
[null,"Stop Loss","Schedule VII EBS, Line 14, Column (11)",null,null,null,{"$f":"'Schedule VII (EBS)'!J43","v":0},{"$f":"+'LT Insurance Risk'!L55","v":0.5},{"$f":"G605*H605","v":0},null,null,{"$f":"IF(K605=\"\",I605,G605*K605)","v":0}]
[]
[null,"Rider","Schedule VII EBS, Line 15, Column (11)",null,null,null,{"$f":"'Schedule VII (EBS)'!J44","v":0},{"$f":"+'LT Insurance Risk'!L56","v":0.25},{"$f":"G607*H607","v":0},null,null,{"$f":"IF(K607=\"\",I607,G607*K607)","v":0}]
[]
[]
[null,null,null,null,null,null,null,"STANDARD","STANDARD",null,"USER","USER"]
[null,"LINE OF LONG-TERM BUSINESS",null,null,null,null,null,"CAPITAL","REQUIRED",null,"CAPITAL","REQUIRED"]
[null,null,"STATEMENT SOURCE",null,null,null,"NET RESERVES","FACTOR","CAPITAL",null,"FACTOR","CAPITAL"]
[]
[null,"Mortality (term assurance)","Schedule VII EBS, Line 1, Column (7)",null,null,null,{"$f":"'Schedule VII (EBS)'!F10","v":0},{"$f":"+'LT Other Insurance Risk'!G10","v":0.02},{"$f":"IF(G614<0,0,G614*H614)","v":0},null,null,{"$f":"IF(K614=\"\",H614*G614,G614*K614)","v":0}]
[null,"Critical Illness","Schedule VII EBS, Line 2, Column (7)",null,null,null,{"$f":"'Schedule VII (EBS)'!F11","v":0},{"$f":"+'LT Other Insurance Risk'!G11","v":0.02},{"$f":"IF(G615<0,0,G615*H615)","v":0},null,null,0]
[null,"Longevity (1)","Schedule VII EBS, Line 3(f), Column (7)",null,null,null,{"$f":"'Schedule VII (EBS)'!F19","v":0},{"$f":"+'LT Other Insurance Risk'!G12","v":5.0000000000000001E-3},0,null,null,0]
[null,"Longevity (2)","Schedule VII EBS, Line 4(g), Column (7)",null,null,null,{"$f":"+'Schedule VII (EBS)'!F28","v":0},{"$f":"+'LT Other Insurance Risk'!G13","v":5.0000000000000001E-3},0,null,null,0]
[null,"Annuities certain only","Schedule VII EBS, Line 5, Column (7)",null,null,null,{"$f":"+'Schedule VII (EBS)'!F29","v":0},{"$f":"+'LT Other Insurance Risk'!G14","v":5.0000000000000001E-3},0,null,null,0]
[null,"Deferred accumulation annuities","Schedule VII EBS, Line 6, Column (7)",null,null,null,{"$f":"+'Schedule VII (EBS)'!F30","v":0},{"$f":"+'LT Other Insurance Risk'!G15","v":5.0000000000000001E-3},{"$f":"IF(G619<0,0,G619*H619)","v":0},null,null,0]
[null,"Disability Income: active lives","Schedule VII EBS, Line 7, Column (7)",null,null,null,{"$f":"'Schedule VII (EBS)'!F36","v":0},{"$f":"+'LT Other Insurance Risk'!G16","v":0.02},0,null,null,0]
[null,"Disability: accident & sickness","Schedule VII EBS, Line 8, Column (7)",null,null,null,{"$f":"'Schedule VII (EBS)'!F37","v":0},{"$f":"+'LT Other Insurance Risk'!G17","v":0.02},0,null,null,0]
[null,"Disability claims in payment (1)","Schedule VII EBS, Line 9, Column (7)",null,null,null,{"$f":"'Schedule VII (EBS)'!F38","v":0},{"$f":"+'LT Other Insurance Risk'!G18","v":5.0000000000000001E-3},0,null,null,0]
[null,"Disability claims in payment (2)","Schedule VII EBS, Line 10, Column (7)",null,null,null,{"$f":"'Schedule VII (EBS)'!F39","v":0},{"$f":"+'LT Other Insurance Risk'!G19","v":5.0000000000000001E-3},0,null,null,0]
[null,"Group Life","Schedule VII EBS, Line 11, Column (7)",null,null,null,{"$f":"'Schedule VII (EBS)'!F40","v":0},{"$f":"+'LT Other Insurance Risk'!G20","v":5.0000000000000001E-3},0,null,null,0]
[null,"Group Disability","Schedule VII EBS, Line 12, Column (7)",null,null,null,{"$f":"'Schedule VII (EBS)'!F41","v":0},{"$f":"+'LT Other Insurance Risk'!G21","v":5.0000000000000001E-3},0,null,null,0]
[null,"Group Health","Schedule VII EBS, Line 13, Column (7)",null,null,null,{"$f":"'Schedule VII (EBS)'!F42","v":0},{"$f":"+'LT Other Insurance Risk'!G22","v":5.0000000000000001E-3},0,null,null,0]
[null,"Stop Loss","Schedule VII EBS, Line 14, Column (7)",null,null,null,{"$f":"'Schedule VII (EBS)'!F43","v":0},{"$f":"+'LT Other Insurance Risk'!G23","v":0.02},0,null,null,0]
[null,"Rider","Schedule VII EBS, Line 15, Column (7)",null,null,null,{"$f":"'Schedule VII (EBS)'!F44","v":0},{"$f":"+'LT Other Insurance Risk'!G24","v":0.02},0,null,null,0]
[]
[null,"REQUIRED CAPITAL FOR OTHER INSURANCE RISK",null,null,null,null,{"$f":"IF(SUM(G614:G628)>=0,(SUM(G614:G628)),0)","v":0},null,{"$f":"IF(SUM(I614:I628)>=0,(SUM(I614:I628)),0)","v":0},null,null,{"$f":"IF(SUM(L614:L628)>=0,(SUM(L614:L628)),0)","v":0}]
[]
[null,null,"Volatility \n(0%-10.0%]",null,null,null,"Volatility 10.0% - 15.0%","Volatility >15.0%","STANDARD REQUIRED CAPITAL",null,"USER CAPITAL FACTOR","USER REQUIRED CAPITAL"]
[null,"Variable Annuity Guarantee Risk"]
[]
[null,"GMDB - Guar. Val In Money",{"$f":"'Schedule VIII (EBS)'!H13","v":0},null,null,null,{"$f":"'Schedule VIII (EBS)'!J13","v":0},{"$f":"'Schedule VIII (EBS)'!L13","v":0},{"$f":"(C635*0.25%)+(G635*0.5%)+(H635*0.75%)","v":0},null,null,{"$f":"IF(K635=\"\",I635,(C635+G635+H635)*K635)","v":0}]
[null,"GMDB - Net Value at Risk",{"$f":"'Schedule VIII (EBS)'!N13","v":0},null,null,null,{"$f":"+'Schedule VIII (EBS)'!P13","v":0},{"$f":"+'Schedule VIII (EBS)'!R13","v":0},{"$f":"(C636*4%)+(G636*8.5%)+(H636*13%)","v":0},null,null,{"$f":"IF(K636=\"\",I636,(C636+G636+H636)*K636)","v":0}]
[null,"GMDB - Guar. Val Out Money",{"$f":"'Schedule VIII (EBS)'!H31","v":0},null,null,null,{"$f":"'Schedule VIII (EBS)'!J31","v":0},{"$f":"'Schedule VIII (EBS)'!L31","v":0},{"$f":"(C637*0.25%)+(G637*0.5%)+(H637*0.75%)","v":0},null,null,{"$f":"IF(K637=\"\",I637,(C637+G637+H637)*K637)","v":0}]
[null,"GMDB - Total",null,null,null,null,null,null,{"$f":"I637+(MAX(I635,I636))","v":0},null,null,{"$f":"L637+(MAX(L635,L636))","v":0}]
[]
[null,"GMDB (2) - Guar. Val In Money",{"$f":"'Schedule VIII (EBS)'!H14","v":0},null,null,null,{"$f":"'Schedule VIII (EBS)'!J14","v":0},{"$f":"'Schedule VIII (EBS)'!L14","v":0},{"$f":"(C640*0.75%)+(G640*1%)+(H640*1.25%)","v":0},null,null,{"$f":"IF(K640=\"\",I640,(C640+G640+H640)*K640)","v":0}]
[null,"GMDB (2) - Net Value at Risk",{"$f":"'Schedule VIII (EBS)'!N14","v":0},null,null,null,{"$f":"+'Schedule VIII (EBS)'!P14","v":0},{"$f":"+'Schedule VIII (EBS)'!R14","v":0},{"$f":"(C641*12%)+(G641*16.5%)+(H641*21%)","v":0},null,null,{"$f":"IF(K641=\"\",I641,(C641+G641+H641)*K641)","v":0}]
[null,"GMDB (2) - Guar. Val Out Money",{"$f":"'Schedule VIII (EBS)'!H32","v":0},null,null,null,{"$f":"'Schedule VIII (EBS)'!J32","v":0},{"$f":"'Schedule VIII (EBS)'!L32","v":0},{"$f":"(C642*0.75%)+(G642*1%)+(H642*1.25%)","v":0},null,null,{"$f":"IF(K642=\"\",I642,(C642+G642+H642)*K642)","v":0}]
[null,"GMDB (2) - Total",null,null,null,null,null,null,{"$f":"I642+(MAX(I640,I641))","v":0},null,null,{"$f":"L642+(MAX(L640,L641))","v":0}]
[]
[null,"GMIB - Guar. Val In Money",{"$f":"'Schedule VIII (EBS)'!H15","v":0},null,null,null,{"$f":"'Schedule VIII (EBS)'!J15","v":0},{"$f":"'Schedule VIII (EBS)'!L15","v":0},{"$f":"(C645*5%)+(G645*6.5%)+(H645*8%)","v":0},null,null,{"$f":"IF(K645=\"\",I645,(C645+G645+H645)*K645)","v":0}]
[null,"GMIB - Net Value at Risk",{"$f":"'Schedule VIII (EBS)'!N15","v":0},null,null,null,{"$f":"+'Schedule VIII (EBS)'!P15","v":0},{"$f":"+'Schedule VIII (EBS)'!R15","v":0},{"$f":"(C646*100%)+(G646*130%)+(H646*160%)","v":0},null,null,{"$f":"IF(K646=\"\",I646,(C646+G646+H646)*K646)","v":0}]
[null,"GMIB - Guar. Val Out Money",{"$f":"'Schedule VIII (EBS)'!H33","v":0},null,null,null,{"$f":"'Schedule VIII (EBS)'!J33","v":0},{"$f":"'Schedule VIII (EBS)'!L33","v":0},{"$f":"(C647*5%)+(G647*6.5%)+(H647*8%)","v":0},null,null,{"$f":"IF(K647=\"\",I647,(C647+G647+H647)*K647)","v":0}]
[null,"GMIB - Total",null,null,null,null,null,null,{"$f":"I647+(MAX(I645,I646))","v":0},null,null,{"$f":"L647+(MAX(L645,L646))","v":0}]
[]
[null,"GMWB - Guar. Val In Money",{"$f":"'Schedule VIII (EBS)'!H16","v":0},null,null,null,{"$f":"'Schedule VIII (EBS)'!J16","v":0},{"$f":"'Schedule VIII (EBS)'!L16","v":0},{"$f":"(C650*3.25%)+(G650*4.25%)+(H650*5%)","v":0},null,null,{"$f":"IF(K650=\"\",I650,(C650+G650+H650)*K650)","v":0}]
[null,"GMWB - Net Value at Risk",{"$f":"'Schedule VIII (EBS)'!N16","v":0},null,null,null,{"$f":"+'Schedule VIII (EBS)'!P16","v":0},{"$f":"+'Schedule VIII (EBS)'!R16","v":0},{"$f":"(C651*60%)+(G651*75%)+(H651*90%)","v":0},null,null,{"$f":"IF(K651=\"\",I651,(C651+G651+H651)*K651)","v":0}]
[null,"GMWB - Guar. Val Out Money",{"$f":"'Schedule VIII (EBS)'!H34","v":0},null,null,null,{"$f":"'Schedule VIII (EBS)'!J34","v":0},{"$f":"'Schedule VIII (EBS)'!L34","v":0},{"$f":"(C652*3.25%)+(G652*4.25%)+(H652*5%)","v":0},null,null,{"$f":"IF(K652=\"\",I652,(C652+G652+H652)*K652)","v":0}]
[null,"GMWB - Total",null,null,null,null,null,null,{"$f":"I652+(MAX(I650,I651))","v":0},null,null,{"$f":"L652+(MAX(L650,L651))","v":0}]
[]
[null,"GEEB - Guar. Val In Money",{"$f":"'Schedule VIII (EBS)'!H17","v":0},null,null,null,{"$f":"'Schedule VIII (EBS)'!J17","v":0},{"$f":"'Schedule VIII (EBS)'!L17","v":0},{"$f":"(C655*0%)+(G655*0.5%)+(H655*1%)","v":0},null,null,{"$f":"IF(K655=\"\",I655,(C655+G655+H655)*K655)","v":0}]
[null,"GEEB - Net Value at Risk",{"$f":"'Schedule VIII (EBS)'!N17","v":0},null,null,null,{"$f":"+'Schedule VIII (EBS)'!P17","v":0},{"$f":"+'Schedule VIII (EBS)'!R17","v":0},{"$f":"(C656*1%)+(G656*9%)+(H656*17%)","v":0},null,null,{"$f":"IF(K656=\"\",I656,(C656+G656+H656)*K656)","v":0}]
[null,"GEEB - Guar. Val Out Money",{"$f":"'Schedule VIII (EBS)'!H35","v":0},null,null,null,{"$f":"'Schedule VIII (EBS)'!J35","v":0},{"$f":"'Schedule VIII (EBS)'!L35","v":0},{"$f":"(C657*0%)+(G657*0.5%)+(H657*1%)","v":0},null,null,{"$f":"IF(K657=\"\",I657,(C657+G657+H657)*K657)","v":0}]
[null,"GEEB - Total",null,null,null,null,null,null,{"$f":"I657+(MAX(I655,I656))","v":0},null,null,{"$f":"L657+(MAX(L655,L656))","v":0}]
[]
[null,"GMAB 0-1 Guar. Val In Money",{"$f":"'Schedule VIII (EBS)'!H19","v":0},null,null,null,{"$f":"'Schedule VIII (EBS)'!J19","v":0},{"$f":"'Schedule VIII (EBS)'!L19","v":0},{"$f":"(C660*3.2%)+(G660*5%)+(H660*9%)","v":0},null,null,{"$f":"IF(K660=\"\",I660,(C660+G660+H660)*K660)","v":0}]
[null,"GMWB 0-1 Net Value at Risk",{"$f":"'Schedule VIII (EBS)'!N19","v":0},null,null,null,{"$f":"+'Schedule VIII (EBS)'!P19","v":0},{"$f":"+'Schedule VIII (EBS)'!R19","v":0},{"$f":"(C661*90%)+(G661*130%)+(H661*250%)","v":0},null,null,{"$f":"IF(K661=\"\",I661,(C661+G661+H661)*K661)","v":0}]
[null,"GMWB 0-1 Guar. Val Out Money",{"$f":"'Schedule VIII (EBS)'!H37","v":0},null,null,null,{"$f":"'Schedule VIII (EBS)'!J37","v":0},{"$f":"'Schedule VIII (EBS)'!L37","v":0},{"$f":"(C662*3.2%)+(G662*5%)+(H662*9%)","v":0},null,null,{"$f":"IF(K662=\"\",I662,(C662+G662+H662)*K662)","v":0}]
[null,"GMWB - Total for 0-1",null,null,null,null,null,null,{"$f":"I662+(MAX(I660,I661))","v":0},null,null,{"$f":"L662+(MAX(L660,L661))","v":0}]
[]
[null,"GMAB 1-2 Guar. Val In Money",{"$f":"'Schedule VIII (EBS)'!H20","v":0},null,null,null,{"$f":"'Schedule VIII (EBS)'!J20","v":0},{"$f":"'Schedule VIII (EBS)'!L20","v":0},{"$f":"(C665*3%)+(G665*5%)+(H665*8.9%)","v":0},null,null,{"$f":"IF(K665=\"\",I665,(C665+G665+H665)*K665)","v":0}]
[null,"GMWB 1-2 Net Value at Risk",{"$f":"'Schedule VIII (EBS)'!N20","v":0},null,null,null,{"$f":"+'Schedule VIII (EBS)'!P20","v":0},{"$f":"+'Schedule VIII (EBS)'!R20","v":0},{"$f":"(C666*80%)+(G666*115%)+(H666*200%)","v":0},null,null,{"$f":"IF(K666=\"\",I666,(C666+G666+H666)*K666)","v":0}]
[null,"GMWB 1-2 Guar. Val Out Money",{"$f":"'Schedule VIII (EBS)'!H38","v":0},null,null,null,{"$f":"'Schedule VIII (EBS)'!J38","v":0},{"$f":"'Schedule VIII (EBS)'!L38","v":0},{"$f":"(C667*3%)+(G667*5%)+(H667*8.9%)","v":0},null,null,{"$f":"IF(K667=\"\",I667,(C667+G667+H667)*K667)","v":0}]
[null,"GMWB - Total for 1-2",null,null,null,null,null,null,{"$f":"I667+(MAX(I665,I666))","v":0},null,null,{"$f":"L667+(MAX(L665,L666))","v":0}]
[]
[null,"GMAB 2-3 Guar. Val In Money",{"$f":"'Schedule VIII (EBS)'!H21","v":0},null,null,null,{"$f":"'Schedule VIII (EBS)'!J21","v":0},{"$f":"'Schedule VIII (EBS)'!L21","v":0},{"$f":"(C670*3%)+(G670*5%)+(H670*8.9%)","v":0},null,null,{"$f":"IF(K670=\"\",I670,(C670+G670+H670)*K670)","v":0}]
[null,"GMWB 2-3 Net Value at Risk",{"$f":"'Schedule VIII (EBS)'!N21","v":0},null,null,null,{"$f":"+'Schedule VIII (EBS)'!P21","v":0},{"$f":"+'Schedule VIII (EBS)'!R21","v":0},{"$f":"(C671*70%)+(G671*105%)+(H671*160%)","v":0},null,null,{"$f":"IF(K671=\"\",I671,(C671+G671+H671)*K671)","v":0}]
[null,"GMWB 2-3 Guar. Val Out Money",{"$f":"'Schedule VIII (EBS)'!H39","v":0},null,null,null,{"$f":"'Schedule VIII (EBS)'!J39","v":0},{"$f":"'Schedule VIII (EBS)'!L39","v":0},{"$f":"(C672*3%)+(G672*5%)+(H672*8.9%)","v":0},null,null,{"$f":"IF(K672=\"\",I672,(C672+G672+H672)*K672)","v":0}]
[null,"GMWB - Total for 2-3",null,null,null,null,null,null,{"$f":"I672+(MAX(I670,I671))","v":0},null,null,{"$f":"L672+(MAX(L670,L671))","v":0}]
[]
[null,"GMAB 3-4 Guar. Val In Money",{"$f":"'Schedule VIII (EBS)'!H22","v":0},null,null,null,{"$f":"'Schedule VIII (EBS)'!J22","v":0},{"$f":"'Schedule VIII (EBS)'!L22","v":0},{"$f":"(C675*2.8%)+(G675*5%)+(H675*8.8%)","v":0},null,null,{"$f":"IF(K675=\"\",I675,(C675+G675+H675)*K675)","v":0}]
[null,"GMWB 3-4 Net Value at Risk",{"$f":"'Schedule VIII (EBS)'!N22","v":0},null,null,null,{"$f":"+'Schedule VIII (EBS)'!P22","v":0},{"$f":"+'Schedule VIII (EBS)'!R22","v":0},{"$f":"(C676*60%)+(G676*95%)+(H676*135%)","v":0},null,null,{"$f":"IF(K676=\"\",I676,(C676+G676+H676)*K676)","v":0}]
[null,"GMWB 3-4 Guar. Val Out Money",{"$f":"'Schedule VIII (EBS)'!H40","v":0},null,null,null,{"$f":"'Schedule VIII (EBS)'!J40","v":0},{"$f":"'Schedule VIII (EBS)'!L40","v":0},{"$f":"(C677*2.8%)+(G677*5%)+(H677*8.8%)","v":0},null,null,{"$f":"IF(K677=\"\",I677,(C677+G677+H677)*K677)","v":0}]
[null,"GMWB - Total for 3-4",null,null,null,null,null,null,{"$f":"I677+(MAX(I675,I676))","v":0},null,null,{"$f":"L677+(MAX(L675,L676))","v":0}]
[]
[null,"GMAB 4-5 Guar. Val In Money",{"$f":"'Schedule VIII (EBS)'!H23","v":0},null,null,null,{"$f":"'Schedule VIII (EBS)'!J23","v":0},{"$f":"'Schedule VIII (EBS)'!L23","v":0},{"$f":"(C680*2.4%)+(G680*4.3%)+(H680*8%)","v":0},null,null,{"$f":"IF(K680=\"\",I680,(C680+G680+H680)*K680)","v":0}]
[null,"GMWB 4-5 Net Value at Risk",{"$f":"'Schedule VIII (EBS)'!N23","v":0},null,null,null,{"$f":"+'Schedule VIII (EBS)'!P23","v":0},{"$f":"+'Schedule VIII (EBS)'!R23","v":0},{"$f":"(C681*55%)+(G681*85%)+(H681*115%)","v":0},null,null,{"$f":"IF(K681=\"\",I681,(C681+G681+H681)*K681)","v":0}]
[null,"GMWB 4-5 Guar. Val Out Money",{"$f":"'Schedule VIII (EBS)'!H41","v":0},null,null,null,{"$f":"'Schedule VIII (EBS)'!J41","v":0},{"$f":"'Schedule VIII (EBS)'!L41","v":0},{"$f":"(C682*2.4%)+(G682*4.3%)+(H682*8%)","v":0},null,null,{"$f":"IF(K682=\"\",I682,(C682+G682+H682)*K682)","v":0}]
[null,"GMWB - Total for 4-5",null,null,null,null,null,null,{"$f":"I682+(MAX(I680,I681))","v":0},null,null,{"$f":"L682+(MAX(L680,L681))","v":0}]
[]
[null,"GMAB 5-6 Guar. Val In Money",{"$f":"'Schedule VIII (EBS)'!H24","v":0},null,null,null,{"$f":"'Schedule VIII (EBS)'!J24","v":0},{"$f":"'Schedule VIII (EBS)'!L24","v":0},{"$f":"(C685*2%)+(G685*3.5%)+(H685*6.8%)","v":0},null,null,{"$f":"IF(K685=\"\",I685,(C685+G685+H685)*K685)","v":0}]
[null,"GMWB 5-6 Net Value at Risk",{"$f":"'Schedule VIII (EBS)'!N24","v":0},null,null,null,{"$f":"+'Schedule VIII (EBS)'!P24","v":0},{"$f":"+'Schedule VIII (EBS)'!R24","v":0},{"$f":"(C686*50%)+(G686*75%)+(H686*100%)","v":0},null,null,{"$f":"IF(K686=\"\",I686,(C686+G686+H686)*K686)","v":0}]
[null,"GMWB 5-6 Guar. Val Out Money",{"$f":"'Schedule VIII (EBS)'!H42","v":0},null,null,null,{"$f":"'Schedule VIII (EBS)'!J42","v":0},{"$f":"'Schedule VIII (EBS)'!L42","v":0},{"$f":"(C687*2%)+(G687*3.5%)+(H687*6.8%)","v":0},null,null,{"$f":"IF(K687=\"\",I687,(C687+G687+H687)*K687)","v":0}]
[null,"GMWB - Total for 5-6",null,null,null,null,null,null,{"$f":"I687+(MAX(I685,I686))","v":0},null,null,{"$f":"L687+(MAX(L685,L686))","v":0}]
[]
[null,"GMAB 6-7 Guar. Val In Money",{"$f":"'Schedule VIII (EBS)'!H25","v":0},null,null,null,{"$f":"'Schedule VIII (EBS)'!J25","v":0},{"$f":"'Schedule VIII (EBS)'!L25","v":0},{"$f":"(C690*1.7%)+(G690*2.8%)+(H690*5.9%)","v":0},null,null,{"$f":"IF(K690=\"\",I690,(C690+G690+H690)*K690)","v":0}]
[null,"GMWB 6-7 Net Value at Risk",{"$f":"'Schedule VIII (EBS)'!N25","v":0},null,null,null,{"$f":"+'Schedule VIII (EBS)'!P25","v":0},{"$f":"+'Schedule VIII (EBS)'!R25","v":0},{"$f":"(C691*45%)+(G691*65%)+(H691*90%)","v":0},null,null,{"$f":"IF(K691=\"\",I691,(C691+G691+H691)*K691)","v":0}]
[null,"GMWB 6-7 Guar. Val Out Money",{"$f":"'Schedule VIII (EBS)'!H43","v":0},null,null,null,{"$f":"'Schedule VIII (EBS)'!J43","v":0},{"$f":"'Schedule VIII (EBS)'!L43","v":0},{"$f":"(C692*1.7%)+(G692*2.8%)+(H692*5.9%)","v":0},null,null,{"$f":"IF(K692=\"\",I692,(C692+G692+H692)*K692)","v":0}]
[null,"GMWB - Total for 6-7",null,null,null,null,null,null,{"$f":"I692+(MAX(I690,I691))","v":0},null,null,{"$f":"L692+(MAX(L690,L691))","v":0}]
[]
[null,"GMAB 7-8 Guar. Val In Money",{"$f":"'Schedule VIII (EBS)'!H26","v":0},null,null,null,{"$f":"'Schedule VIII (EBS)'!J26","v":0},{"$f":"'Schedule VIII (EBS)'!L26","v":0},{"$f":"(C695*1.4%)+(G695*2.1%)+(H695*4.9%)","v":0},null,null,{"$f":"IF(K695=\"\",I695,(C695+G695+H695)*K695)","v":0}]
[null,"GMWB 7-8 Net Value at Risk",{"$f":"'Schedule VIII (EBS)'!N26","v":0},null,null,null,{"$f":"+'Schedule VIII (EBS)'!P26","v":0},{"$f":"+'Schedule VIII (EBS)'!R26","v":0},{"$f":"(C696*40%)+(G696*55%)+(H696*80%)","v":0},null,null,{"$f":"IF(K696=\"\",I696,(C696+G696+H696)*K696)","v":0}]
[null,"GMWB 7-8 Guar. Val Out Money",{"$f":"'Schedule VIII (EBS)'!H44","v":0},null,null,null,{"$f":"'Schedule VIII (EBS)'!J44","v":0},{"$f":"'Schedule VIII (EBS)'!L44","v":0},{"$f":"(C697*1.4%)+(G697*2.1%)+(H697*4.9%)","v":0},null,null,{"$f":"IF(K697=\"\",I697,(C697+G697+H697)*K697)","v":0}]
[null,"GMWB - Total for 7-8",null,null,null,null,null,null,{"$f":"I697+(MAX(I695,I696))","v":0},null,null,{"$f":"L697+(MAX(L695,L696))","v":0}]
[]
[null,"GMAB 8-9 Guar. Val In Money",{"$f":"'Schedule VIII (EBS)'!H27","v":0},null,null,null,{"$f":"'Schedule VIII (EBS)'!J27","v":0},{"$f":"'Schedule VIII (EBS)'!L27","v":0},{"$f":"(C700*1.1%)+(G700*1.7%)+(H700*4.3%)","v":0},null,null,{"$f":"IF(K700=\"\",I700,(C700+G700+H700)*K700)","v":0}]
[null,"GMWB 8-9 Net Value at Risk",{"$f":"'Schedule VIII (EBS)'!N27","v":0},null,null,null,{"$f":"+'Schedule VIII (EBS)'!P27","v":0},{"$f":"+'Schedule VIII (EBS)'!R27","v":0},{"$f":"(C701*35%)+(G701*50%)+(H701*70%)","v":0},null,null,{"$f":"IF(K701=\"\",I701,(C701+G701+H701)*K701)","v":0}]
[null,"GMWB 8-9 Guar. Val Out Money",{"$f":"'Schedule VIII (EBS)'!H45","v":0},null,null,null,{"$f":"'Schedule VIII (EBS)'!J45","v":0},{"$f":"'Schedule VIII (EBS)'!L45","v":0},{"$f":"(C702*1.1%)+(G702*1.7%)+(H702*4.3%)","v":0},null,null,{"$f":"IF(K702=\"\",I702,(C702+G702+H702)*K702)","v":0}]
[null,"GMWB - Total for 8-9",null,null,null,null,null,null,{"$f":"I702+(MAX(I700,I701))","v":0},null,null,{"$f":"L702+(MAX(L700,L701))","v":0}]
[]
[null,"GMAB >9 Guar. Val In Money",{"$f":"'Schedule VIII (EBS)'!H28","v":0},null,null,null,{"$f":"'Schedule VIII (EBS)'!J28","v":0},{"$f":"'Schedule VIII (EBS)'!L28","v":0},{"$f":"(C705*1%)+(G705*1.4%)+(H705*3.9%)","v":0},null,null,{"$f":"IF(K705=\"\",I705,(C705+G705+H705)*K705)","v":0}]
[null,"GMWB >9 Net Value at Risk",{"$f":"'Schedule VIII (EBS)'!N28","v":0},null,null,null,{"$f":"+'Schedule VIII (EBS)'!P28","v":0},{"$f":"+'Schedule VIII (EBS)'!R28","v":0},{"$f":"(C706*30%)+(G706*45%)+(H706*60%)","v":0},null,null,{"$f":"IF(K706=\"\",I706,(C706+G706+H706)*K706)","v":0}]
[null,"GMWB >9 Guar. Val Out Money",{"$f":"'Schedule VIII (EBS)'!H46","v":0},null,null,null,{"$f":"'Schedule VIII (EBS)'!J46","v":0},{"$f":"'Schedule VIII (EBS)'!L46","v":0},{"$f":"(C707*1%)+(G707*1.4%)+(H707*3.9%)","v":0},null,null,{"$f":"IF(K707=\"\",I707,(C707+G707+H707)*K707)","v":0}]
[null,"GMWB - Total for >9",null,null,null,null,null,null,{"$f":"I707+(MAX(I705,I706))","v":0},null,null,{"$f":"L707+(MAX(L705,L706))","v":0}]
[]
[null,"Percentage of Guaranteed Minimum Death Benefit with Multiple Guarantees",null,null,null,null,null,{"$f":"+'Schedule VIII (EBS)'!L50","v":0},{"$f":"IF(H710=0,0,(I638+I643)*(-H710))","v":0},null,null,{"$f":"IF(H710=0,0,(L638+L643)*(-H710))","v":0}]
[null,"Total BSCR-Adjusted Reserves for Variable Annuities",null,null,null,null,null,null,{"$f":"-'Schedule VII (EBS)'!F47","v":0},null,null,{"$f":"-'Schedule VII (EBS)'!F47","v":0}]
[]
[null,"(a) REQUIRED CAPITAL FOR VARIABLE ANNUITY GUARANTEE RISK ",null,null,null,null,null,null,{"$f":"MAX(0,SUM(I638,I643,I648,I653,I658,I663,I668,I673,I678,I683,I688,I693,I698,I703,I708,I710,I711))","v":0},null,null,{"$f":"MAX(0,SUM(L638,L643,L648,L653,L658,L663,L668,L673,L678,L683,L688,L693,L698,L703,L708,L710,L711))","v":0}]
[]
[null,"REQUIRED CAPITAL AND SURPLUS"]
[]
[null,null,null,null,null,null,null,"Net","Gross",null,"Net","Gross"]
[]
[null,"Fixed Income Investment Risk",null,null,null,null,null,{"$f":"I136","v":0},{"$f":"I136","v":0},null,{"$f":"+L136","v":0},{"$f":"+L136","v":0}]
[null,"Equity Investment Risk",null,null,null,null,null,{"$f":"IF(Summary!E41=\"With Grandfathering\",('Equity Investments (Grandf)'!F51+'Equity Investments (Non-Grandf)'!R58),H190)","v":0},{"$f":"IF(Summary!E41=\"With Grandfathering\",('Equity Investments (Grandf)'!F51+'Equity Investments (Non-Grandf)'!P58),G190)","v":0},null,{"$f":"IF(Summary!E41=\"With Grandfathering\",('Equity Investments (Grandf)'!F51+'Equity Investments (Non-Grandf)'!R58),L190)","v":0},{"$f":"IF(Summary!E41=\"With Grandfathering\",('Equity Investments (Grandf)'!F51+'Equity Investments (Non-Grandf)'!P58),K190)","v":0}]
[null,"Interest Rate / Liquidity Risk",null,null,null,null,null,{"$f":"IF(Summary!$E$42=\"Duration-Based Approach\",I200,I308)","v":0},{"$f":"IF(Summary!$E$42=\"Duration-Based Approach\",H200,H308)","v":0},null,{"$f":"IF(Summary!$E$42=\"Duration-Based Approach\",L200,L308)","v":0},{"$f":"IF(Summary!$E$42=\"Duration-Based Approach\",K200,K308)","v":0}]
[null,"Currency Risk",null,null,null,null,null,{"$f":"I341","v":0},{"$f":"H341","v":0},null,{"$f":"L341","v":0},{"$f":"K341","v":0}]
[null,"Concentration Risk",null,null,null,null,null,{"$f":"I461","v":0},{"$f":"I461","v":0},null,{"$f":"+L461","v":0},{"$f":"+L461","v":0}]
[null,"Credit Risk",null,null,null,null,null,null,{"$f":"I520","v":0},null,null,{"$f":"+L520","v":0}]
[null,"Mortality",null,null,null,null,null,null,{"$f":"I526","v":0},null,null,{"$f":"L526","v":0}]
[null,"Stop Loss",null,null,null,null,null,null,{"$f":"MAX(0,+I605)","v":0},null,null,{"$f":"MAX(0,+L605)","v":0}]
[null,"Riders",null,null,null,null,null,null,{"$f":"MAX(0,+I607)","v":0},null,null,{"$f":"MAX(0,+L607)","v":0}]
[null,"Morbidity and Disability",null,null,null,null,null,null,{"$f":"MAX(0,SUM(I532:I542))","v":0},null,null,{"$f":"MAX(0,SUM(L532:L542))","v":0}]
[null,"Longevity",null,null,null,null,null,null,{"$f":"MAX(0,SUM(I549:I561))","v":0},null,null,{"$f":"MAX(0,(SUM(L549:L561)+SUM(L568:L580)+SUM(L587:L599)))","v":0}]
[null,"Variable Annuity Guarantee Risk",null,null,null,null,null,null,{"$f":"IF('Schedule VIIIA (EBS)'!$S$12=0,I713,'Schedule VIIIA (EBS)'!$S$12)","v":0},null,null,{"$f":"IF('Schedule VIIIA (EBS)'!$S$12=0,L713,'Schedule VIIIA (EBS)'!$S$12)","v":0}]
[null,"Other Insurance Risk",null,null,null,null,null,null,{"$f":"MAX(0,I630)","v":0},null,null,{"$f":"MAX(0,+L630)","v":0}]
[]
[null,"BSCR (Prior to Correlation Adjustment)",null,null,null,null,null,null,{"$f":"SUM(I719:I731)","v":0},null,null,{"$f":"SUM(L719:L731)","v":0}]
[]
[null,"BSCR (After Correlation Adjustment)",null,null,null,null,null,{"$f":"SQRT(MMULT(TRANSPOSE(H751:H753),MMULT('Correlation Matrix'!$R$7:$T$9,H751:H753)))","v":0},{"$f":"SQRT(MMULT(TRANSPOSE(I751:I753),MMULT('Correlation Matrix'!$R$7:$T$9,I751:I753)))","v":0},null,{"$f":"SQRT(MMULT(TRANSPOSE(K751:K753),MMULT('Correlation Matrix'!$R$7:$T$9,K751:K753)))","v":0},{"$f":"SQRT(MMULT(TRANSPOSE(L751:L753),MMULT('Correlation Matrix'!$R$7:$T$9,L751:L753)))","v":0}]
[]
[null,"Operational risk charge (%)",null,null,null,null,null,null,{"$f":"Summary!N62","v":0.2}]
[]
[null,"Operational risk capital charge ($)",null,null,null,null,null,null,{"$f":"(I735+I759)*I737","v":0},null,null,{"$f":"IF(L737=\"\",(L735+L759)*I737,(L735+L759)*L737)","v":0}]
[]
[null,"Capital Adjustment for (Regulatory) Capital Requirement for Regulated Non-Insurance Financial Operating Entities:",null,null,null,null,null,null,{"$f":"'Schedule XVI'!M211","v":0},null,null,{"$f":"'Schedule XVI'!M211","v":0}]
[]
[null,"CMgmtAction",null,null,null,null,null,null,{"$f":"I759","v":0},null,null,{"$f":"L759","v":0}]
[]
[null,"Other Capital Adjustment"]
[]
[null,"BSCR ",null,null,null,null,null,null,{"$f":"I735+I739+I741+I743+I745","v":0},null,null,{"$f":"L735+L739+L741+L743+L745","v":0}]
[]
[]
[null,"Capital Charges",null,null,null,null,null,"Net","Gross",null,"Net","Gross"]
[null,"Market Risk",null,null,null,null,null,{"$f":"SQRT(MMULT(TRANSPOSE(H719:H723),MMULT('Correlation Matrix'!$B$7:$F$11,H719:H723)))","v":0},{"$f":"SQRT(MMULT(TRANSPOSE(I719:I723),MMULT('Correlation Matrix'!$B$7:$F$11,I719:I723)))","v":0},null,{"$f":"SQRT(MMULT(TRANSPOSE(K719:K723),MMULT('Correlation Matrix'!$B$7:$F$11,K719:K723)))","v":0},{"$f":"SQRT(MMULT(TRANSPOSE(L719:L723),MMULT('Correlation Matrix'!$B$7:$F$11,L719:L723)))","v":0}]
[null,"Credit Risk",null,null,null,null,null,{"$f":"I724","v":0},{"$f":"I724","v":0},null,{"$f":"L724","v":0},{"$f":"L724","v":0}]
[null,"LT Insurance Risk",null,null,null,null,null,{"$f":"SQRT(MMULT(TRANSPOSE(I725:I731),MMULT('Correlation Matrix'!$I$7:$O$13,I725:I731)))","v":0},{"$f":"SQRT(MMULT(TRANSPOSE(I725:I731),MMULT('Correlation Matrix'!$I$7:$O$13,I725:I731)))","v":0},null,{"$f":"SQRT(MMULT(TRANSPOSE(L725:L731),MMULT('Correlation Matrix'!$I$7:$O$13,L725:L731)))","v":0},{"$f":"SQRT(MMULT(TRANSPOSE(L725:L731),MMULT('Correlation Matrix'!$I$7:$O$13,L725:L731)))","v":0}]
[null,"Total",null,null,null,null,null,{"$f":"SUM(H751:H753)","v":0},{"$f":"SUM(I751:I753)","v":0},null,{"$f":"SUM(K751:K753)","v":0},{"$f":"SUM(L751:L753)","v":0}]
[]
[null,"Management Action"]
[null,"Implied Loss-absorbing capacity of Technical Provisions without cap",null,null,null,null,null,null,{"$f":"I735-H735","v":0},null,null,{"$f":"L735-K735","v":0}]
[null,"Initial FDB / Bonus reserve",null,null,null,null,null,null,{"$f":"Summary!$N$132","v":0},null,null,{"$f":"Summary!$N$132","v":0}]
[null,"Adjustment for the LaC of TP",null,null,null,null,null,null,{"$f":"-MAX(MIN(I757,I758),0)","v":0},null,null,{"$f":"-MAX(MIN(L757,L758),0)","v":0}]

{"sheet":"Correlation Matrix","index":115,"n_rows":25,"n_cols":23,"rows_kept":25,"cut":false,"hidden":false,"merged":[[2,3,2,5]]}
["Correlation Factors",null,null,null,null,null,null,null,null,null,null,null,null,null,null,null,null,null,null,null,null,null,{"$f":"HYPERLINK(\"#'Index'!A1\",\"Return to Index\")","v":"Return to Index"}]
[]
[]
[]
["Market Risk",null,null,null,null,null,null,"Long-term Insurance Risk",null,null,null,null,null,null,null,null,"Overall BSCR",null,null,null,null,"Capital Charges - Gross"]
[null,"Cfi","Ceq","Cint","CCur","Cconc",null,null,"Mort","Stop Loss","Riders","Morb & Dis","Long","VA Guar","Other",null,null,"Market","Credit","LT Ins",null,"Market",{"$f":"Summary!N39","v":0}]
["Cfi",1,0.5,{"$f":"IF(Summary!E42=\"Duration-Based Approach\",0.25,IF('Interest Rate-Liquidity (Rev.)'!$E$109=\"Down\",0.25,0))","v":0.25},0.25,0,null,"Mort",1,0.75,0.75,0.25,-0.5,0,0.125,null,"Market",1,0.25,0.125,null,"Credit",{"$f":"Summary!N46","v":0}]
["Ceq",0.5,1,{"$f":"IF(Summary!E42=\"Duration-Based Approach\",0.25,IF('Interest Rate-Liquidity (Rev.)'!$E$109=\"Down\",0.25,0))","v":0.25},0.25,0,null,"Stop Loss",0.75,1,0.75,0,-0.5,0,0.25,null,"Credit",0.25,1,0.25,null,"Long-Term",{"$f":"Summary!N49","v":0}]
["Cint",{"$f":"IF(Summary!E42=\"Duration-Based Approach\",0.25,IF('Interest Rate-Liquidity (Rev.)'!$E$109=\"Down\",0.25,0))","v":0.25},{"$f":"IF(Summary!E42=\"Duration-Based Approach\",0.25,IF('Interest Rate-Liquidity (Rev.)'!$E$109=\"Down\",0.25,0))","v":0.25},1,0.25,0,null,"Riders",0.75,0.75,1,0,-0.5,0,0.25,null,"LT Ins",0.125,0.25,1,null,null,{"$f":"SUM(W6:W8)","v":0}]
["CCur",0.25,0.25,0.25,1,0,null,"Morb & Dis",0.25,0,0,1,0,0,0.25]
["Cconc",0,0,0,0,1,null,"Long",-0.5,-0.5,-0.5,0,1,0,0.25,null,null,null,null,null,null,"Capital Charges - Net"]
[null,null,null,null,null,null,null,"VA Guar",0,0,0,0,0,1,0.25,null,null,null,null,null,null,"Market",{"$f":"Summary!L39","v":0}]
[null,null,null,null,null,null,null,"Other",0.125,0.25,0.25,0.25,0.25,0.25,1,null,null,null,null,null,null,"Credit",{"$f":"Summary!L46","v":0}]
[null,null,null,null,null,null,null,null,null,null,null,null,null,null,null,null,null,null,null,null,null,"Long-Term",{"$f":"Summary!L49","v":0}]
["Year-End","Transition Rate",null,null,null,null,null,null,null,null,null,null,null,null,null,null,null,null,null,null,null,null,{"$f":"SUM(W12:W14)","v":0}]
["2019-01-01",0.1]
["2020-01-01",0.2]
["2021-01-01",0.3]
["2022-01-01",0.4]
["2023-01-01",0.5]
["2024-01-01",0.6]
["2025-01-01",0.7]
["2026-01-01",0.8]
["2027-01-01",0.9]
["2028-01-01",1]

{"sheet":"HiddenFormulas","index":116,"n_rows":373,"n_cols":27,"rows_kept":373,"cut":false,"hidden":true,"merged":[]}
["Summary",null,null,"Fixed Income Investments",null,null,"Equity Investments",null,null,"Interest Rate-Liquidity Risk",null,null,"Concentration Risk",null,null,"Credit Risk",null,null,"LT Insurance Risk",null,null,"LT Variable Annuity Gte Risk",null,null,"LT Other Insurance Risk"]
[{"$f":"IFERROR(SUM(C2:AA2),999)","v":0},null,{"$f":"IFERROR(SUM(C3:C248),999)","v":0},null,null,{"$f":"IFERROR(SUM(F3:F168),999)","v":0},null,null,{"$f":"IFERROR(SUM(I3:I74),999)","v":0},null,null,{"$f":"IFERROR(SUM(L3:L40),999)","v":0},null,null,{"$f":"IFERROR(SUM(O3:O312),999)","v":0},null,null,{"$f":"IFERROR(SUM(R3:R62),999)","v":0},null,null,{"$f":"IFERROR(SUM(U3:U123),999)","v":0},null,null,{"$f":"IFERROR(SUM(X3:X373),999)","v":0},null,null,{"$f":"IFERROR(SUM(AA3:AA54),999)","v":0}]
[{"$f":"IF(_xlfn.FORMULATEXT(INDIRECT(Y53))=Z53,0,1)","v":0},null,248,null,null,168,null,null,74,null,null,40,null,null,312,null,null,62,null,null,123,null,null,373,null,null,54]
[{"$f":"ADDRESS(2,1,1,1,$A$1)","v":"Summary!$A$2"},"='Insurer Information'!C7",{"$f":"IF(_xlfn.FORMULATEXT(INDIRECT(A4))=B4,0,1)","v":0},{"$f":"ADDRESS(2,1,1,1,$D$1)","v":"'Fixed Income Investments'!$A$2"},"='Insurer Information'!C7",{"$f":"IF(_xlfn.FORMULATEXT(INDIRECT(D4))=E4,0,1)","v":0},{"$f":"ADDRESS(2,1,1,1,$G$1)","v":"'Equity Investments'!$A$2"},"='Insurer Information'!C7",{"$f":"IF(_xlfn.FORMULATEXT(INDIRECT(G4))=H4,0,1)","v":0},{"$f":"ADDRESS(2,1,1,1,$J$1)","v":"'Interest Rate-Liquidity Risk'!$A$2"},"='Insurer Information'!C7",{"$f":"IF(_xlfn.FORMULATEXT(INDIRECT(J4))=K4,0,1)","v":0},{"$f":"ADDRESS(2,1,1,1,$M$1)","v":"'Concentration Risk'!$A$2"},"='Insurer Information'!C7",{"$f":"IF(_xlfn.FORMULATEXT(INDIRECT(M4))=N4,0,1)","v":0},{"$f":"ADDRESS(2,1,1,1,$P$1)","v":"'Credit Risk'!$A$2"},"='Insurer Information'!C7",{"$f":"IF(_xlfn.FORMULATEXT(INDIRECT(P4))=Q4,0,1)","v":0},{"$f":"ADDRESS(2,1,1,1,$S$1)","v":"'LT Insurance Risk'!$A$2"},"='Insurer Information'!C7",{"$f":"IF(_xlfn.FORMULATEXT(INDIRECT(S4))=T4,0,1)","v":0},{"$f":"ADDRESS(2,1,1,1,$V$1)","v":"'LT Variable Annuity Gte Risk'!$A$2"},"='Insurer Information'!C7",{"$f":"IF(_xlfn.FORMULATEXT(INDIRECT(V4))=W4,0,1)","v":0},{"$f":"ADDRESS(1,1,1,1,$Y$1)","v":"'LT Other Insurance Risk'!$A$1"},"=\"LONG-TERM OTHER INSURANCE RISK\"& \" ($\" & IF(CONFIGURATION!$B$12>1,\"'\"&MID(CONFIGURATION!$B$12,2,LEN(CONFIGURATION!$B$12)),\"\") & \")\"",{"$f":"IF(_xlfn.FORMULATEXT(INDIRECT(Y4))=Z4,0,1)","v":0}]
[{"$f":"ADDRESS(3,1,1,1,$A$1)","v":"Summary!$A$3"},"=IF('Insurer Information'!F9=\"Class C\",\"Bermuda Solvency Capital Requirement - Class C Insurers (BSCR-LT)\",\"Bermuda Solvency Capital Requirement - Class D and Class E Insurers (BSCR-LT)\")",0,{"$f":"ADDRESS(3,3,1,1,$D$1)","v":"'Fixed Income Investments'!$C$3"},"= TEXT('Insurer Information'!C3,\"D MMMM YYYY\")",{"$f":"IF(_xlfn.FORMULATEXT(INDIRECT(D5))=E5,0,1)","v":0},{"$f":"ADDRESS(3,1,1,1,$G$1)","v":"'Equity Investments'!$A$3"},"=\"Equity Investment Risk\"& \" ($\" & IF(CONFIGURATION!$B$12>1,\"'\"&MID(CONFIGURATION!$B$12,2,LEN(CONFIGURATION!$B$12)),\"\") & \")\"",{"$f":"IF(_xlfn.FORMULATEXT(INDIRECT(G5))=H5,0,1)","v":0},{"$f":"ADDRESS(3,1,1,1,$J$1)","v":"'Interest Rate-Liquidity Risk'!$A$3"},"=\"Interest Rate and Liquidity Risk\"& \" ($\" & IF(CONFIGURATION!$B$12>1,\"'\"&MID(CONFIGURATION!$B$12,2,LEN(CONFIGURATION!$B$12)),\"\") & \")\"",{"$f":"IF(_xlfn.FORMULATEXT(INDIRECT(J5))=K5,0,1)","v":0},{"$f":"ADDRESS(3,1,1,1,$M$1)","v":"'Concentration Risk'!$A$3"},"=\"Concentration Risk\" & \" ($\" & IF(CONFIGURATION!$B$12>1,\"'\"&MID(CONFIGURATION!$B$12,2,LEN(CONFIGURATION!$B$12)),\"\") & \")\"",{"$f":"IF(_xlfn.FORMULATEXT(INDIRECT(M5))=N5,0,1)","v":0},{"$f":"ADDRESS(3,1,1,1,$P$1)","v":"'Credit Risk'!$A$3"},"=\"Credit Risk\"& \" ($\" & IF(CONFIGURATION!$B$12>1,\"'\"&MID(CONFIGURATION!$B$12,2,LEN(CONFIGURATION!$B$12)),\"\") & \")\"",{"$f":"IF(_xlfn.FORMULATEXT(INDIRECT(P5))=Q5,0,1)","v":0},{"$f":"ADDRESS(2,4,1,1,$S$1)","v":"'LT Insurance Risk'!$D$2"},"= TEXT('Insurer Information'!C3,\"D MMMM YYYY\")",0,{"$f":"ADDRESS(3,1,1,1,$V$1)","v":"'LT Variable Annuity Gte Risk'!$A$3"},"=\"Long-Term Business Variable Annuity Guarantee Risk\"& \" ($\" & IF(CONFIGURATION!$B$12>1,\"'\"&MID(CONFIGURATION!$B$12,2,LEN(CONFIGURATION!$B$12)),\"\") & \")\"",{"$f":"IF(_xlfn.FORMULATEXT(INDIRECT(V5))=W5,0,1)","v":0},{"$f":"ADDRESS(2,1,1,1,$Y$1)","v":"'LT Other Insurance Risk'!$A$2"},"='Insurer Information'!C7",{"$f":"IF(_xlfn.FORMULATEXT(INDIRECT(Y5))=Z5,0,1)","v":0}]
[{"$f":"ADDRESS(4,1,1,1,$A$1)","v":"Summary!$A$4"},"=\"For the Year Ending \"",0,{"$f":"ADDRESS(12,4,1,1,$D$1)","v":"'Fixed Income Investments'!$D$12"},"=+'Schedule II (EBS)'!D12+'Schedule IIA (EBS)'!D12",{"$f":"IF(_xlfn.FORMULATEXT(INDIRECT(D6))=E6,0,1)","v":0},{"$f":"ADDRESS(3,3,1,1,$G$1)","v":"'Equity Investments'!$C$3"},"= TEXT('Insurer Information'!C3,\"D MMMM YYYY\")",{"$f":"IF(_xlfn.FORMULATEXT(INDIRECT(G6))=H6,0,1)","v":0},{"$f":"ADDRESS(4,1,1,1,$J$1)","v":"'Interest Rate-Liquidity Risk'!$A$4"},"= TEXT('Insurer Information'!C3,\"D MMMM YYYY\")",{"$f":"IF(_xlfn.FORMULATEXT(INDIRECT(J6))=K6,0,1)","v":0},{"$f":"ADDRESS(3,3,1,1,$M$1)","v":"'Concentration Risk'!$C$3"},"= TEXT('Insurer Information'!C3,\"D MMMM YYYY\")",{"$f":"IF(_xlfn.FORMULATEXT(INDIRECT(M6))=N6,0,1)","v":0},{"$f":"ADDRESS(3,3,1,1,$P$1)","v":"'Credit Risk'!$C$3"},"= TEXT('Insurer Information'!C3,\"D MMMM YYYY\")",{"$f":"IF(_xlfn.FORMULATEXT(INDIRECT(P6))=Q6,0,1)","v":0},{"$f":"ADDRESS(3,1,1,1,$S$1)","v":"'LT Insurance Risk'!$A$3"},"=\"Long Term Insurance Risk\"& \" ($\" & IF(CONFIGURATION!$B$12>1,\"'\"&MID(CONFIGURATION!$B$12,2,LEN(CONFIGURATION!$B$12)),\"\") & \")\"",0,{"$f":"ADDRESS(3,12,1,1,$V$1)","v":"'LT Variable Annuity Gte Risk'!$L$3"},"= TEXT('Insurer Information'!C3,\"D MMMM YYYY\")",{"$f":"IF(_xlfn.FORMULATEXT(INDIRECT(V6))=W6,0,1)","v":0},{"$f":"ADDRESS(3,1,1,1,$Y$1)","v":"'LT Other Insurance Risk'!$A$3"},"= TEXT('Insurer Information'!C3,\"D MMMM YYYY\")",{"$f":"IF(_xlfn.FORMULATEXT(INDIRECT(Y6))=Z6,0,1)","v":0}]
[{"$f":"ADDRESS(4,4,1,1,$A$1)","v":"Summary!$D$4"},"= TEXT('Insurer Information'!C3,\"D MMMM YYYY\")",0,{"$f":"ADDRESS(12,5,1,1,$D$1)","v":"'Fixed Income Investments'!$E$12"},0,{"$f":"IF(INDIRECT(D7)=E7,0,1)","v":0},{"$f":"ADDRESS(11,4,1,1,$G$1)","v":"'Equity Investments'!$D$11"},"='Schedule II (EBS)'!D41+'Schedule IIA (EBS)'!D41",{"$f":"IF(_xlfn.FORMULATEXT(INDIRECT(G7))=H7,0,1)","v":0},{"$f":"ADDRESS(10,3,1,1,$J$1)","v":"'Interest Rate-Liquidity Risk'!$C$10"},0.02,{"$f":"IF(INDIRECT(J7)=K7,0,1)","v":0},{"$f":"ADDRESS(9,4,1,1,$M$1)","v":"'Concentration Risk'!$D$9"},"Cash and Cash Equivalent",{"$f":"IF(INDIRECT(M7)=N7,0,1)","v":0},{"$f":"ADDRESS(11,4,1,1,$P$1)","v":"'Credit Risk'!$D$11"},"='Form 4EBS'!F59",{"$f":"IF(_xlfn.FORMULATEXT(INDIRECT(P7))=Q7,0,1)","v":0},{"$f":"ADDRESS(11,4,1,1,$S$1)","v":"'LT Insurance Risk'!$D$11"},"='Schedule VII (EBS)'!H10",0,{"$f":"ADDRESS(14,5,1,1,$V$1)","v":"'LT Variable Annuity Gte Risk'!$E$14"},"='Schedule VIII (EBS)'!H13",{"$f":"IF(_xlfn.FORMULATEXT(INDIRECT(V7))=W7,0,1)","v":0},{"$f":"ADDRESS(10,5,1,1,$Y$1)","v":"'LT Other Insurance Risk'!$E$10"},"='Schedule VII (EBS)'!F10",{"$f":"IF(_xlfn.FORMULATEXT(INDIRECT(Y7))=Z7,0,1)","v":0}]
[{"$f":"ADDRESS(5,1,1,1,$A$1)","v":"Summary!$A$5"},"=\"Expressed in \" & IF(CONFIGURATION!$B$12>1,\" ['\"&MID(CONFIGURATION!$B$12,2,LEN(CONFIGURATION!$B$12))&\"s]\",\"\")",0,{"$f":"ADDRESS(12,6,1,1,$D$1)","v":"'Fixed Income Investments'!$F$12"},"=IF(D12<0,0,D12*E12)",{"$f":"IF(_xlfn.FORMULATEXT(INDIRECT(D8))=E8,0,1)","v":0},{"$f":"ADDRESS(11,5,1,1,$G$1)","v":"'Equity Investments'!$E$11"},0.14399999999999999,{"$f":"IF(INDIRECT(G8)=H8,0,1)","v":0},{"$f":"ADDRESS(10,6,1,1,$J$1)","v":"'Interest Rate-Liquidity Risk'!$F$10"},"=IF('Insurer Information'!F9=\"Class C\",\"Schedule V, Line (g)\",\"Schedule V, Line (h)\")",{"$f":"IF(_xlfn.FORMULATEXT(INDIRECT(J8))=K8,0,1)","v":0},{"$f":"ADDRESS(10,2,1,1,$M$1)","v":"'Concentration Risk'!$B$10"},"BSCR Rating 0",{"$f":"IF(INDIRECT(M8)=N8,0,1)","v":0},{"$f":"ADDRESS(11,5,1,1,$P$1)","v":"'Credit Risk'!$E$11"},0.05,{"$f":"IF(INDIRECT(P8)=Q8,0,1)","v":0},{"$f":"ADDRESS(11,5,1,1,$S$1)","v":"'LT Insurance Risk'!$E$11"},"='Schedule VII (EBS)'!I10",0,{"$f":"ADDRESS(14,6,1,1,$V$1)","v":"'LT Variable Annuity Gte Risk'!$F$14"},2.5000000000000001E-3,{"$f":"IF(INDIRECT(V8)=W8,0,1)","v":0},{"$f":"ADDRESS(10,7,1,1,$Y$1)","v":"'LT Other Insurance Risk'!$G$10"},0.02,{"$f":"IF(INDIRECT(Y8)=Z8,0,1)","v":0}]
[{"$f":"ADDRESS(5,4,1,1,$A$1)","v":"Summary!$D$5"},"='Form 4EBS'!C4",0,{"$f":"ADDRESS(13,4,1,1,$D$1)","v":"'Fixed Income Investments'!$D$13"},"=+'Schedule II (EBS)'!D13+'Schedule IIA (EBS)'!D13",{"$f":"IF(_xlfn.FORMULATEXT(INDIRECT(D9))=E9,0,1)","v":0},{"$f":"ADDRESS(11,6,1,1,$G$1)","v":"'Equity Investments'!$F$11"},"=IF(D11<0,0,D11*E11)",{"$f":"IF(_xlfn.FORMULATEXT(INDIRECT(G9))=H9,0,1)","v":0},{"$f":"ADDRESS(10,7,1,1,$J$1)","v":"'Interest Rate-Liquidity Risk'!$G$10"},"='Schedule V'!H20",0,{"$f":"ADDRESS(10,4,1,1,$M$1)","v":"'Concentration Risk'!$D$10"},"=SUMIFS('Schedule XXI'!$M$8:$M$57,'Schedule XXI'!$J$8:$J$57,$D$9,'Schedule XXI'!$L$8:$L$57,$B10)",{"$f":"IF(_xlfn.FORMULATEXT(INDIRECT(M9))=N9,0,1)","v":0},{"$f":"ADDRESS(11,6,1,1,$P$1)","v":"'Credit Risk'!$F$11"},"=D11*E11",{"$f":"IF(_xlfn.FORMULATEXT(INDIRECT(P9))=Q9,0,1)","v":0},{"$f":"ADDRESS(11,12,1,1,$S$1)","v":"'LT Insurance Risk'!$L$11"},"=M11/2",0,{"$f":"ADDRESS(14,8,1,1,$V$1)","v":"'LT Variable Annuity Gte Risk'!$H$14"},"='Schedule VIII (EBS)'!J13",{"$f":"IF(_xlfn.FORMULATEXT(INDIRECT(V9))=W9,0,1)","v":0},{"$f":"ADDRESS(10,9,1,1,$Y$1)","v":"'LT Other Insurance Risk'!$I$10"},"=MAX(0,E10*G10)",{"$f":"IF(_xlfn.FORMULATEXT(INDIRECT(Y9))=Z9,0,1)","v":0}]
[{"$f":"ADDRESS(11,7,1,1,$A$1)","v":"Summary!$G$11"},"=IF('Insurer Information'!$C$2=\"IFRS\",IF('Insurer Information'!$F$2=\"Unconsolidated BSCR Model\",'Form 1ASFS'!M142,'Form 1ASFS'!I142),\nIF('Insurer Information'!$F$2=\"Unconsolidated BSCR Model\",'Form 1SFS'!$K$198,'Form 1SFS'!$H$198))",0,{"$f":"ADDRESS(13,5,1,1,$D$1)","v":"'Fixed Income Investments'!$E$13"},4.0000000000000001E-3,{"$f":"IF(INDIRECT(D10)=E10,0,1)","v":0},{"$f":"ADDRESS(12,4,1,1,$G$1)","v":"'Equity Investments'!$D$12"},"='Schedule II (EBS)'!D42+'Schedule IIA (EBS)'!D42",{"$f":"IF(_xlfn.FORMULATEXT(INDIRECT(G10))=H10,0,1)","v":0},{"$f":"ADDRESS(10,9,1,1,$J$1)","v":"'Interest Rate-Liquidity Risk'!$I$10"},"=E39",0,{"$f":"ADDRESS(10,5,1,1,$M$1)","v":"'Concentration Risk'!$E$10"},"=+'Fixed Income Investments'!E83",{"$f":"IF(_xlfn.FORMULATEXT(INDIRECT(M10))=N10,0,1)","v":0},{"$f":"ADDRESS(12,4,1,1,$P$1)","v":"'Credit Risk'!$D$12"},"='Form 4EBS'!F60-'Form 4EBS'!F196",{"$f":"IF(_xlfn.FORMULATEXT(INDIRECT(P10))=Q10,0,1)","v":0},{"$f":"ADDRESS(11,13,1,1,$S$1)","v":"'LT Insurance Risk'!$M$11"},3.97,{"$f":"IF(INDIRECT(S10)=T10,0,1)","v":0},{"$f":"ADDRESS(14,9,1,1,$V$1)","v":"'LT Variable Annuity Gte Risk'!$I$14"},5.0000000000000001E-3,{"$f":"IF(INDIRECT(V10)=W10,0,1)","v":0},{"$f":"ADDRESS(11,5,1,1,$Y$1)","v":"'LT Other Insurance Risk'!$E$11"},"='Schedule VII (EBS)'!F11",{"$f":"IF(_xlfn.FORMULATEXT(INDIRECT(Y10))=Z10,0,1)","v":0}]
[{"$f":"ADDRESS(13,11,1,1,$A$1)","v":"Summary!$K$13"},"=\"Unconsolidated Statutory Capital & Surplus for \"&YEAR('Form 1SFS'!$G$9)",0,{"$f":"ADDRESS(13,6,1,1,$D$1)","v":"'Fixed Income Investments'!$F$13"},"=IF(D13<0,0,D13*E13)",{"$f":"IF(_xlfn.FORMULATEXT(INDIRECT(D11))=E11,0,1)","v":0},{"$f":"ADDRESS(12,5,1,1,$G$1)","v":"'Equity Investments'!$E$12"},0.14399999999999999,{"$f":"IF(INDIRECT(G11)=H11,0,1)","v":0},{"$f":"ADDRESS(10,10,1,1,$J$1)","v":"'Interest Rate-Liquidity Risk'!$J$10"},"=L31",0,{"$f":"ADDRESS(10,6,1,1,$M$1)","v":"'Concentration Risk'!$F$10"},"=MAX(0,(D10*E10))",{"$f":"IF(_xlfn.FORMULATEXT(INDIRECT(M11))=N11,0,1)","v":0},{"$f":"ADDRESS(12,5,1,1,$P$1)","v":"'Credit Risk'!$E$12"},0.1,{"$f":"IF(INDIRECT(P11)=Q11,0,1)","v":0},{"$f":"ADDRESS(11,14,1,1,$S$1)","v":"'LT Insurance Risk'!$N$11"},"=IF(D11>1000000,L11*1000000,L11*D11)/1000",{"$f":"IF(_xlfn.FORMULATEXT(INDIRECT(S11))=T11,0,1)","v":0},{"$f":"ADDRESS(14,11,1,1,$V$1)","v":"'LT Variable Annuity Gte Risk'!$K$14"},"='Schedule VIII (EBS)'!L13",{"$f":"IF(_xlfn.FORMULATEXT(INDIRECT(V11))=W11,0,1)","v":0},{"$f":"ADDRESS(11,7,1,1,$Y$1)","v":"'LT Other Insurance Risk'!$G$11"},0.02,{"$f":"IF(INDIRECT(Y11)=Z11,0,1)","v":0}]
[{"$f":"ADDRESS(13,15,1,1,$A$1)","v":"Summary!$O$13"},"=IF('Insurer Information'!$C$2=\"IFRS\",IF('Insurer Information'!$F$2=\"Unconsolidated BSCR Model\",'Form 8ASFS'!Q58,'Form 8ASFS'!M58+'Form 8ASFS'!I58),\nIF('Insurer Information'!$F$2=\"Unconsolidated BSCR Model\",'Form 8SFS'!$Q$58,'Form 8SFS'!M58+'Form 8SFS'!I58))",0,{"$f":"ADDRESS(14,4,1,1,$D$1)","v":"'Fixed Income Investments'!$D$14"},"=+'Schedule II (EBS)'!D14+'Schedule IIA (EBS)'!D14",{"$f":"IF(_xlfn.FORMULATEXT(INDIRECT(D12))=E12,0,1)","v":0},{"$f":"ADDRESS(12,6,1,1,$G$1)","v":"'Equity Investments'!$F$12"},"=IF(D12<0,0,D12*E12)",{"$f":"IF(_xlfn.FORMULATEXT(INDIRECT(G12))=H12,0,1)","v":0},{"$f":"ADDRESS(10,11,1,1,$J$1)","v":"'Interest Rate-Liquidity Risk'!$K$10"},"=C10*MAX(1,IF(E10=\"\",ABS('Schedule V'!$H$15),ABS(E10)))*G10*(1-J10)",0,{"$f":"ADDRESS(11,2,1,1,$M$1)","v":"'Concentration Risk'!$B$11"},"BSCR Rating 1",{"$f":"IF(INDIRECT(M12)=N12,0,1)","v":0},{"$f":"ADDRESS(12,6,1,1,$P$1)","v":"'Credit Risk'!$F$12"},"=D12*E12",{"$f":"IF(_xlfn.FORMULATEXT(INDIRECT(P12))=Q12,0,1)","v":0},{"$f":"ADDRESS(11,15,1,1,$S$1)","v":"'LT Insurance Risk'!$O$11"},"=IF(E11>1000000,M11*1000000,M11*E11)/1000",{"$f":"IF(_xlfn.FORMULATEXT(INDIRECT(S12))=T12,0,1)","v":0},{"$f":"ADDRESS(14,12,1,1,$V$1)","v":"'LT Variable Annuity Gte Risk'!$L$14"},7.4999999999999997E-3,{"$f":"IF(INDIRECT(V12)=W12,0,1)","v":0},{"$f":"ADDRESS(11,9,1,1,$Y$1)","v":"'LT Other Insurance Risk'!$I$11"},"=MAX(0,E11*G11)",{"$f":"IF(_xlfn.FORMULATEXT(INDIRECT(Y12))=Z12,0,1)","v":0}]
[{"$f":"ADDRESS(14,6,1,1,$A$1)","v":"Summary!$F$14"},"=IF('Insurer Information'!$C$2=\"IFRS\",IF('Insurer Information'!$F$2=\"Unconsolidated BSCR Model\",'Form 1ASFS'!M88,'Form 1ASFS'!I88),\nIF('Insurer Information'!$F$2=\"Unconsolidated BSCR Model\",'Form 1SFS'!$K$100,'Form 1SFS'!$H$100))",0,{"$f":"ADDRESS(14,5,1,1,$D$1)","v":"'Fixed Income Investments'!$E$14"},8.0000000000000002E-3,{"$f":"IF(INDIRECT(D13)=E13,0,1)","v":0},{"$f":"ADDRESS(13,4,1,1,$G$1)","v":"'Equity Investments'!$D$13"},"='Schedule II (EBS)'!L41+'Schedule II (EBS)'!L42+'Schedule IIA (EBS)'!L41+'Schedule IIA (EBS)'!L42",{"$f":"IF(_xlfn.FORMULATEXT(INDIRECT(G13))=H13,0,1)","v":0},{"$f":"ADDRESS(10,12,1,1,$J$1)","v":"'Interest Rate-Liquidity Risk'!$L$10"},"=I10*K10",0,{"$f":"ADDRESS(11,4,1,1,$M$1)","v":"'Concentration Risk'!$D$11"},"=SUMIFS('Schedule XXI'!$M$8:$M$57,'Schedule XXI'!$J$8:$J$57,$D$9,'Schedule XXI'!$L$8:$L$57,$B11)",{"$f":"IF(_xlfn.FORMULATEXT(INDIRECT(M13))=N13,0,1)","v":0},{"$f":"ADDRESS(14,4,1,1,$P$1)","v":"'Credit Risk'!$D$14"},"=SUM(D11:D12)",{"$f":"IF(_xlfn.FORMULATEXT(INDIRECT(P13))=Q13,0,1)","v":0},{"$f":"ADDRESS(12,12,1,1,$S$1)","v":"'LT Insurance Risk'!$L$12"},"=M12/2",{"$f":"IF(_xlfn.FORMULATEXT(INDIRECT(S13))=T13,0,1)","v":0},{"$f":"ADDRESS(14,14,1,1,$V$1)","v":"'LT Variable Annuity Gte Risk'!$N$14"},"='Schedule VIII (EBS)'!N13",{"$f":"IF(_xlfn.FORMULATEXT(INDIRECT(V13))=W13,0,1)","v":0},{"$f":"ADDRESS(12,5,1,1,$Y$1)","v":"'LT Other Insurance Risk'!$E$12"},"=+'Schedule VII (EBS)'!F19",{"$f":"IF(_xlfn.FORMULATEXT(INDIRECT(Y13))=Z13,0,1)","v":0}]
[{"$f":"ADDRESS(15,14,1,1,$A$1)","v":"Summary!$N$15"},"=25%*O13",0,{"$f":"ADDRESS(14,6,1,1,$D$1)","v":"'Fixed Income Investments'!$F$14"},"=IF(D14<0,0,D14*E14)",{"$f":"IF(_xlfn.FORMULATEXT(INDIRECT(D14))=E14,0,1)","v":0},{"$f":"ADDRESS(13,5,1,1,$G$1)","v":"'Equity Investments'!$E$13"},0.14399999999999999,{"$f":"IF(INDIRECT(G14)=H14,0,1)","v":0},{"$f":"ADDRESS(11,3,1,1,$J$1)","v":"'Interest Rate-Liquidity Risk'!$C$11"},0.02,{"$f":"IF(INDIRECT(J14)=K14,0,1)","v":0},{"$f":"ADDRESS(11,5,1,1,$M$1)","v":"'Concentration Risk'!$E$11"},"=+'Fixed Income Investments'!E84",{"$f":"IF(_xlfn.FORMULATEXT(INDIRECT(M14))=N14,0,1)","v":0},{"$f":"ADDRESS(14,6,1,1,$P$1)","v":"'Credit Risk'!$F$14"},"=IF(SUM(F11:F12)>=0,SUM(F11:F12),0)",{"$f":"IF(_xlfn.FORMULATEXT(INDIRECT(P14))=Q14,0,1)","v":0},{"$f":"ADDRESS(12,13,1,1,$S$1)","v":"'LT Insurance Risk'!$M$12"},1.8,{"$f":"IF(INDIRECT(S14)=T14,0,1)","v":0},{"$f":"ADDRESS(14,15,1,1,$V$1)","v":"'LT Variable Annuity Gte Risk'!$O$14"},0.04,{"$f":"IF(INDIRECT(V14)=W14,0,1)","v":0},{"$f":"ADDRESS(12,7,1,1,$Y$1)","v":"'LT Other Insurance Risk'!$G$12"},5.0000000000000001E-3,{"$f":"IF(INDIRECT(Y14)=Z14,0,1)","v":0}]
[{"$f":"ADDRESS(16,6,1,1,$A$1)","v":"Summary!$F$16"},"=IF('Insurer Information'!$C$2=\"IFRS\",-IF('Insurer Information'!$F$2=\"Unconsolidated BSCR Model\",'Form 1ASFS'!M72,'Form 1ASFS'!I72),\n-IF('Insurer Information'!$F$2=\"Unconsolidated BSCR Model\",'Form 1SFS'!$K$83,'Form 1SFS'!$H$83))",0,{"$f":"ADDRESS(15,4,1,1,$D$1)","v":"'Fixed Income Investments'!$D$15"},"=+'Schedule II (EBS)'!D15+'Schedule IIA (EBS)'!D15",{"$f":"IF(_xlfn.FORMULATEXT(INDIRECT(D15))=E15,0,1)","v":0},{"$f":"ADDRESS(13,6,1,1,$G$1)","v":"'Equity Investments'!$F$13"},"=IF(D13<0,0,D13*E13)",{"$f":"IF(_xlfn.FORMULATEXT(INDIRECT(G15))=H15,0,1)","v":0},{"$f":"ADDRESS(11,6,1,1,$J$1)","v":"'Interest Rate-Liquidity Risk'!$F$11"},"=IF('Insurer Information'!F10=\"Class C\",\"Schedule V, Line (g)\",\"Schedule V, Line (h)\")",{"$f":"IF(_xlfn.FORMULATEXT(INDIRECT(J15))=K15,0,1)","v":0},{"$f":"ADDRESS(11,6,1,1,$M$1)","v":"'Concentration Risk'!$F$11"},"=MAX(0,(D11*E11))",{"$f":"IF(_xlfn.FORMULATEXT(INDIRECT(M15))=N15,0,1)","v":0},{"$f":"ADDRESS(18,4,1,1,$P$1)","v":"'Credit Risk'!$D$18"},"='Form 4EBS'!F56",{"$f":"IF(_xlfn.FORMULATEXT(INDIRECT(P15))=Q15,0,1)","v":0},{"$f":"ADDRESS(12,14,1,1,$S$1)","v":"'LT Insurance Risk'!$N$12"},"=IF(D11<1000000,0,IF(D11>5000000,L12*4000000,L12*(D11-1000000)))/1000",{"$f":"IF(_xlfn.FORMULATEXT(INDIRECT(S15))=T15,0,1)","v":0},{"$f":"ADDRESS(14,17,1,1,$V$1)","v":"'LT Variable Annuity Gte Risk'!$Q$14"},"=+'Schedule VIII (EBS)'!P13",{"$f":"IF(_xlfn.FORMULATEXT(INDIRECT(V15))=W15,0,1)","v":0},{"$f":"ADDRESS(12,9,1,1,$Y$1)","v":"'LT Other Insurance Risk'!$I$12"},"=MAX(0,E12*G12)",{"$f":"IF(_xlfn.FORMULATEXT(INDIRECT(Y15))=Z15,0,1)","v":0}]
[{"$f":"ADDRESS(16,11,1,1,$A$1)","v":"Summary!$K$16"},"=\"Dividend Payment in \"&YEAR('Form 1SFS'!$F$9)",0,{"$f":"ADDRESS(15,5,1,1,$D$1)","v":"'Fixed Income Investments'!$E$15"},1.4999999999999999E-2,{"$f":"IF(INDIRECT(D16)=E16,0,1)","v":0},{"$f":"ADDRESS(15,4,1,1,$G$1)","v":"'Equity Investments'!$D$15"},"=SUM(D11:D13)",{"$f":"IF(_xlfn.FORMULATEXT(INDIRECT(G16))=H16,0,1)","v":0},{"$f":"ADDRESS(11,7,1,1,$J$1)","v":"'Interest Rate-Liquidity Risk'!$G$11"},"='Schedule V'!H20",0,{"$f":"ADDRESS(12,2,1,1,$M$1)","v":"'Concentration Risk'!$B$12"},"BSCR Rating 2",{"$f":"IF(INDIRECT(M16)=N16,0,1)","v":0},{"$f":"ADDRESS(18,5,1,1,$P$1)","v":"'Credit Risk'!$E$18"},2.5000000000000001E-2,{"$f":"IF(INDIRECT(P16)=Q16,0,1)","v":0},{"$f":"ADDRESS(12,15,1,1,$S$1)","v":"'LT Insurance Risk'!$O$12"},"=IF(E11<1000000,0,IF(E11>5000000,M12*4000000,M12*(E11-1000000)))/1000",{"$f":"IF(_xlfn.FORMULATEXT(INDIRECT(S16))=T16,0,1)","v":0},{"$f":"ADDRESS(14,18,1,1,$V$1)","v":"'LT Variable Annuity Gte Risk'!$R$14"},8.5000000000000006E-2,{"$f":"IF(INDIRECT(V16)=W16,0,1)","v":0},{"$f":"ADDRESS(13,5,1,1,$Y$1)","v":"'LT Other Insurance Risk'!$E$13"},"=+'Schedule VII (EBS)'!F28",{"$f":"IF(_xlfn.FORMULATEXT(INDIRECT(Y16))=Z16,0,1)","v":0}]
[{"$f":"ADDRESS(16,14,1,1,$A$1)","v":"Summary!$N$16"},"=IF('Insurer Information'!$C$2=\"IFRS\",-IF('Insurer Information'!$F$2=\"Unconsolidated BSCR Model\",'Form 8ASFS'!O44,'Form 8ASFS'!G44+'Form 8ASFS'!K44),\n-IF('Insurer Information'!$F$2=\"Unconsolidated BSCR Model\",'Form 8SFS'!$O$44,'Form 8SFS'!G44+'Form 8SFS'!K44))",0,{"$f":"ADDRESS(15,6,1,1,$D$1)","v":"'Fixed Income Investments'!$F$15"},"=IF(D15<0,0,D15*E15)",{"$f":"IF(_xlfn.FORMULATEXT(INDIRECT(D17))=E17,0,1)","v":0},{"$f":"ADDRESS(15,6,1,1,$G$1)","v":"'Equity Investments'!$F$15"},"=MAX(0,(SUM(F11:F13)))",{"$f":"IF(_xlfn.FORMULATEXT(INDIRECT(G17))=H17,0,1)","v":0},{"$f":"ADDRESS(11,9,1,1,$J$1)","v":"'Interest Rate-Liquidity Risk'!$I$11"},"=E39",0,{"$f":"ADDRESS(12,4,1,1,$M$1)","v":"'Concentration Risk'!$D$12"},"=SUMIFS('Schedule XXI'!$M$8:$M$57,'Schedule XXI'!$J$8:$J$57,$D$9,'Schedule XXI'!$L$8:$L$57,$B12)",{"$f":"IF(_xlfn.FORMULATEXT(INDIRECT(M17))=N17,0,1)","v":0},{"$f":"ADDRESS(18,6,1,1,$P$1)","v":"'Credit Risk'!$F$18"},"=D18*E18",{"$f":"IF(_xlfn.FORMULATEXT(INDIRECT(P17))=Q17,0,1)","v":0},{"$f":"ADDRESS(13,12,1,1,$S$1)","v":"'LT Insurance Risk'!$L$13"},"=M13/2",{"$f":"IF(_xlfn.FORMULATEXT(INDIRECT(S17))=T17,0,1)","v":0},{"$f":"ADDRESS(14,20,1,1,$V$1)","v":"'LT Variable Annuity Gte Risk'!$T$14"},"=+'Schedule VIII (EBS)'!R13",{"$f":"IF(_xlfn.FORMULATEXT(INDIRECT(V17))=W17,0,1)","v":0},{"$f":"ADDRESS(13,7,1,1,$Y$1)","v":"'LT Other Insurance Risk'!$G$13"},5.0000000000000001E-3,{"$f":"IF(INDIRECT(Y17)=Z17,0,1)","v":0}]
[{"$f":"ADDRESS(17,6,1,1,$A$1)","v":"Summary!$F$17"},"=IF('Insurer Information'!$C$2=\"IFRS\",-IF('Insurer Information'!$F$2=\"Unconsolidated BSCR Model\",'Form 1ASFS'!M73,'Form 1ASFS'!I73),\n-IF('Insurer Information'!$F$2=\"Unconsolidated BSCR Model\",'Form 1SFS'!$K$84,'Form 1SFS'!$H$84))",0,{"$f":"ADDRESS(16,4,1,1,$D$1)","v":"'Fixed Income Investments'!$D$16"},"=+'Schedule II (EBS)'!D16+'Schedule IIA (EBS)'!D16",{"$f":"IF(_xlfn.FORMULATEXT(INDIRECT(D18))=E18,0,1)","v":0},{"$f":"ADDRESS(20,4,1,1,$G$1)","v":"'Equity Investments'!$D$20"},"=+'Schedule II (EBS)'!H33+'Schedule IIA (EBS)'!H33",{"$f":"IF(_xlfn.FORMULATEXT(INDIRECT(G18))=H18,0,1)","v":0},{"$f":"ADDRESS(11,10,1,1,$J$1)","v":"'Interest Rate-Liquidity Risk'!$J$11"},"=L31",0,{"$f":"ADDRESS(12,5,1,1,$M$1)","v":"'Concentration Risk'!$E$12"},"=+'Fixed Income Investments'!E85",{"$f":"IF(_xlfn.FORMULATEXT(INDIRECT(M18))=N18,0,1)","v":0},{"$f":"ADDRESS(19,4,1,1,$P$1)","v":"'Credit Risk'!$D$19"},"='Form 4EBS'!F39",{"$f":"IF(_xlfn.FORMULATEXT(INDIRECT(P18))=Q18,0,1)","v":0},{"$f":"ADDRESS(13,13,1,1,$S$1)","v":"'LT Insurance Risk'!$M$13"},1.44,{"$f":"IF(INDIRECT(S18)=T18,0,1)","v":0},{"$f":"ADDRESS(14,21,1,1,$V$1)","v":"'LT Variable Annuity Gte Risk'!$U$14"},0.13,{"$f":"IF(INDIRECT(V18)=W18,0,1)","v":0},{"$f":"ADDRESS(13,9,1,1,$Y$1)","v":"'LT Other Insurance Risk'!$I$13"},"=MAX(0,E13*G13)",{"$f":"IF(_xlfn.FORMULATEXT(INDIRECT(Y18))=Z18,0,1)","v":0}]
[{"$f":"ADDRESS(19,7,1,1,$A$1)","v":"Summary!$G$19"},"=SUM(F14:F17)",0,{"$f":"ADDRESS(16,5,1,1,$D$1)","v":"'Fixed Income Investments'!$E$16"},0.03,{"$f":"IF(INDIRECT(D19)=E19,0,1)","v":0},{"$f":"ADDRESS(20,5,1,1,$G$1)","v":"'Equity Investments'!$E$20"},6.0000000000000001E-3,{"$f":"IF(INDIRECT(G19)=H19,0,1)","v":0},{"$f":"ADDRESS(11,11,1,1,$J$1)","v":"'Interest Rate-Liquidity Risk'!$K$11"},"=C11*MAX(1,IF(E11=\"\",ABS('Schedule V'!$H$15),ABS(E11)))*G11*(1-J11)",0,{"$f":"ADDRESS(12,6,1,1,$M$1)","v":"'Concentration Risk'!$F$12"},"=MAX(0,(D12*E12))",{"$f":"IF(_xlfn.FORMULATEXT(INDIRECT(M19))=N19,0,1)","v":0},{"$f":"ADDRESS(19,5,1,1,$P$1)","v":"'Credit Risk'!$E$19"},0.05,{"$f":"IF(INDIRECT(P19)=Q19,0,1)","v":0},{"$f":"ADDRESS(13,14,1,1,$S$1)","v":"'LT Insurance Risk'!$N$13"},"=IF(D11<5000000,0,IF(D11>10000000,L13*5000000,L13*(D11-5000000)))/1000",{"$f":"IF(_xlfn.FORMULATEXT(INDIRECT(S19))=T19,0,1)","v":0},{"$f":"ADDRESS(14,23,1,1,$V$1)","v":"'LT Variable Annuity Gte Risk'!$W$14"},"=IF(ISERROR(OR(E14*F14+H14*I14+K14*L14,N14*O14+Q14*R14+T14*U14)),0,MAX(E14*F14+H14*I14+K14*L14,N14*O14+Q14*R14+T14*U14))",{"$f":"IF(_xlfn.FORMULATEXT(INDIRECT(V19))=W19,0,1)","v":0},{"$f":"ADDRESS(14,5,1,1,$Y$1)","v":"'LT Other Insurance Risk'!$E$14"},"=+'Schedule VII (EBS)'!F29",{"$f":"IF(_xlfn.FORMULATEXT(INDIRECT(Y19))=Z19,0,1)","v":0}]
[{"$f":"ADDRESS(19,15,1,1,$A$1)","v":"Summary!$O$19"},"=IF(N15>=N16,\"YES\",\"NO\")",0,{"$f":"ADDRESS(16,6,1,1,$D$1)","v":"'Fixed Income Investments'!$F$16"},"=IF(D16<0,0,D16*E16)",{"$f":"IF(_xlfn.FORMULATEXT(INDIRECT(D20))=E20,0,1)","v":0},{"$f":"ADDRESS(20,6,1,1,$G$1)","v":"'Equity Investments'!$F$20"},"=IF(D20<0,0,D20*E20)",{"$f":"IF(_xlfn.FORMULATEXT(INDIRECT(G20))=H20,0,1)","v":0},{"$f":"ADDRESS(11,12,1,1,$J$1)","v":"'Interest Rate-Liquidity Risk'!$L$11"},"=I11*K11",0,{"$f":"ADDRESS(13,2,1,1,$M$1)","v":"'Concentration Risk'!$B$13"},"BSCR Rating 3",{"$f":"IF(INDIRECT(M20)=N20,0,1)","v":0},{"$f":"ADDRESS(19,6,1,1,$P$1)","v":"'Credit Risk'!$F$19"},"=D19*E19",{"$f":"IF(_xlfn.FORMULATEXT(INDIRECT(P20))=Q20,0,1)","v":0},{"$f":"ADDRESS(13,15,1,1,$S$1)","v":"'LT Insurance Risk'!$O$13"},"=IF(E11<5000000,0,IF(E11>10000000,M13*5000000,M13*(E11-5000000)))/1000",{"$f":"IF(_xlfn.FORMULATEXT(INDIRECT(S20))=T20,0,1)","v":0},{"$f":"ADDRESS(14,25,1,1,$V$1)","v":"'LT Variable Annuity Gte Risk'!$Y$14"},"='Schedule VIII (EBS)'!F13",{"$f":"IF(_xlfn.FORMULATEXT(INDIRECT(V20))=W20,0,1)","v":0},{"$f":"ADDRESS(14,7,1,1,$Y$1)","v":"'LT Other Insurance Risk'!$G$14"},5.0000000000000001E-3,{"$f":"IF(INDIRECT(Y20)=Z20,0,1)","v":0}]
[{"$f":"ADDRESS(20,5,1,1,$A$1)","v":"Summary!$E$20"},"='Information Sheet'!$H$16",0,{"$f":"ADDRESS(17,4,1,1,$D$1)","v":"'Fixed Income Investments'!$D$17"},"=+'Schedule II (EBS)'!D17+'Schedule IIA (EBS)'!D17",{"$f":"IF(_xlfn.FORMULATEXT(INDIRECT(D21))=E21,0,1)","v":0},{"$f":"ADDRESS(21,4,1,1,$G$1)","v":"'Equity Investments'!$D$21"},"=+'Schedule II (EBS)'!H34+'Schedule IIA (EBS)'!H34",{"$f":"IF(_xlfn.FORMULATEXT(INDIRECT(G21))=H21,0,1)","v":0},{"$f":"ADDRESS(12,3,1,1,$J$1)","v":"'Interest Rate-Liquidity Risk'!$C$12"},0.02,{"$f":"IF(INDIRECT(J21)=K21,0,1)","v":0},{"$f":"ADDRESS(13,4,1,1,$M$1)","v":"'Concentration Risk'!$D$13"},"=SUMIFS('Schedule XXI'!$M$8:$M$57,'Schedule XXI'!$J$8:$J$57,$D$9,'Schedule XXI'!$L$8:$L$57,$B13)",{"$f":"IF(_xlfn.FORMULATEXT(INDIRECT(M21))=N21,0,1)","v":0},{"$f":"ADDRESS(20,4,1,1,$P$1)","v":"'Credit Risk'!$D$20"},"='Form 4EBS'!F47",{"$f":"IF(_xlfn.FORMULATEXT(INDIRECT(P21))=Q21,0,1)","v":0},{"$f":"ADDRESS(14,12,1,1,$S$1)","v":"'LT Insurance Risk'!$L$14"},"=M14/2",{"$f":"IF(_xlfn.FORMULATEXT(INDIRECT(S21))=T21,0,1)","v":0},{"$f":"ADDRESS(14,27,1,1,$V$1)","v":"'LT Variable Annuity Gte Risk'!$AA$14"},"=MAX(0,W14-Y14)",{"$f":"IF(_xlfn.FORMULATEXT(INDIRECT(V21))=W21,0,1)","v":0},{"$f":"ADDRESS(14,9,1,1,$Y$1)","v":"'LT Other Insurance Risk'!$I$14"},"=MAX(0,E14*G14)",{"$f":"IF(_xlfn.FORMULATEXT(INDIRECT(Y21))=Z21,0,1)","v":0}]
[{"$f":"ADDRESS(20,7,1,1,$A$1)","v":"Summary!$G$20"},"='Information Sheet'!$H$16",0,{"$f":"ADDRESS(17,5,1,1,$D$1)","v":"'Fixed Income Investments'!$E$17"},0.08,{"$f":"IF(INDIRECT(D22)=E22,0,1)","v":0},{"$f":"ADDRESS(21,5,1,1,$G$1)","v":"'Equity Investments'!$E$21"},1.2E-2,{"$f":"IF(INDIRECT(G22)=H22,0,1)","v":0},{"$f":"ADDRESS(12,5,1,1,$J$1)","v":"'Interest Rate-Liquidity Risk'!$E$12"},2,{"$f":"IF(INDIRECT(J22)=K22,0,1)","v":0},{"$f":"ADDRESS(13,5,1,1,$M$1)","v":"'Concentration Risk'!$E$13"},"=+'Fixed Income Investments'!E86",{"$f":"IF(_xlfn.FORMULATEXT(INDIRECT(M22))=N22,0,1)","v":0},{"$f":"ADDRESS(20,5,1,1,$P$1)","v":"'Credit Risk'!$E$20"},0,{"$f":"IF(INDIRECT(P22)=Q22,0,1)","v":0},{"$f":"ADDRESS(14,13,1,1,$S$1)","v":"'LT Insurance Risk'!$M$14"},1.29,{"$f":"IF(INDIRECT(S22)=T22,0,1)","v":0},{"$f":"ADDRESS(15,5,1,1,$V$1)","v":"'LT Variable Annuity Gte Risk'!$E$15"},"=+'Schedule VIII (EBS)'!H31",{"$f":"IF(_xlfn.FORMULATEXT(INDIRECT(V22))=W22,0,1)","v":0},{"$f":"ADDRESS(15,5,1,1,$Y$1)","v":"'LT Other Insurance Risk'!$E$15"},"=+'Schedule VII (EBS)'!F30",{"$f":"IF(_xlfn.FORMULATEXT(INDIRECT(Y22))=Z22,0,1)","v":0}]
[{"$f":"ADDRESS(21,6,1,1,$A$1)","v":"Summary!$F$21"},"=IF('Insurer Information'!$F$9=\"Class C\",500,IF('Insurer Information'!$F$9=\"Class D\",4000,IF('Insurer Information'!$F$9=\"Class E\",8000,\"Error\")))",0,{"$f":"ADDRESS(17,6,1,1,$D$1)","v":"'Fixed Income Investments'!$F$17"},"=IF(D17<0,0,D17*E17)",{"$f":"IF(_xlfn.FORMULATEXT(INDIRECT(D23))=E23,0,1)","v":0},{"$f":"ADDRESS(21,6,1,1,$G$1)","v":"'Equity Investments'!$F$21"},"=IF(D21<0,0,D21*E21)",{"$f":"IF(_xlfn.FORMULATEXT(INDIRECT(G23))=H23,0,1)","v":0},{"$f":"ADDRESS(12,9,1,1,$J$1)","v":"'Interest Rate-Liquidity Risk'!$I$12"},"=I10",{"$f":"IF(_xlfn.FORMULATEXT(INDIRECT(J23))=K23,0,1)","v":0},{"$f":"ADDRESS(13,6,1,1,$M$1)","v":"'Concentration Risk'!$F$13"},"=MAX(0,(D13*E13))",{"$f":"IF(_xlfn.FORMULATEXT(INDIRECT(M23))=N23,0,1)","v":0},{"$f":"ADDRESS(20,6,1,1,$P$1)","v":"'Credit Risk'!$F$20"},"=D20*E20",{"$f":"IF(_xlfn.FORMULATEXT(INDIRECT(P23))=Q23,0,1)","v":0},{"$f":"ADDRESS(14,14,1,1,$S$1)","v":"'LT Insurance Risk'!$N$14"},"=IF(D11<10000000,0,IF(D11>50000000,L14*40000000,L14*(D11-10000000)))/1000",{"$f":"IF(_xlfn.FORMULATEXT(INDIRECT(S23))=T23,0,1)","v":0},{"$f":"ADDRESS(15,6,1,1,$V$1)","v":"'LT Variable Annuity Gte Risk'!$F$15"},2.5000000000000001E-3,{"$f":"IF(INDIRECT(V23)=W23,0,1)","v":0},{"$f":"ADDRESS(15,7,1,1,$Y$1)","v":"'LT Other Insurance Risk'!$G$15"},5.0000000000000001E-3,{"$f":"IF(INDIRECT(Y23)=Z23,0,1)","v":0}]
[{"$f":"ADDRESS(21,7,1,1,$A$1)","v":"Summary!$G$21"},"=F21*IFERROR((1/'Information Sheet'!$H$18),1)",0,{"$f":"ADDRESS(18,4,1,1,$D$1)","v":"'Fixed Income Investments'!$D$18"},"=+'Schedule II (EBS)'!D18+'Schedule IIA (EBS)'!D18",{"$f":"IF(_xlfn.FORMULATEXT(INDIRECT(D24))=E24,0,1)","v":0},{"$f":"ADDRESS(22,4,1,1,$G$1)","v":"'Equity Investments'!$D$22"},"=+'Schedule II (EBS)'!H35+'Schedule IIA (EBS)'!H35",{"$f":"IF(_xlfn.FORMULATEXT(INDIRECT(G24))=H24,0,1)","v":0},{"$f":"ADDRESS(12,11,1,1,$J$1)","v":"'Interest Rate-Liquidity Risk'!$K$12"},"=C12*E12*(1-G10)",0,{"$f":"ADDRESS(14,2,1,1,$M$1)","v":"'Concentration Risk'!$B$14"},"BSCR Rating 4",{"$f":"IF(INDIRECT(M24)=N24,0,1)","v":0},{"$f":"ADDRESS(22,4,1,1,$P$1)","v":"'Credit Risk'!$D$22"},"=SUM(D18:D20)",{"$f":"IF(_xlfn.FORMULATEXT(INDIRECT(P24))=Q24,0,1)","v":0},{"$f":"ADDRESS(14,15,1,1,$S$1)","v":"'LT Insurance Risk'!$O$14"},"=IF(E11<10000000,0,IF(E11>50000000,M14*40000000,M14*(E11-10000000)))/1000",{"$f":"IF(_xlfn.FORMULATEXT(INDIRECT(S24))=T24,0,1)","v":0},{"$f":"ADDRESS(15,8,1,1,$V$1)","v":"'LT Variable Annuity Gte Risk'!$H$15"},"='Schedule VIII (EBS)'!J31",{"$f":"IF(_xlfn.FORMULATEXT(INDIRECT(V24))=W24,0,1)","v":0},{"$f":"ADDRESS(15,9,1,1,$Y$1)","v":"'LT Other Insurance Risk'!$I$15"},"=MAX(0,E15*G15)",{"$f":"IF(_xlfn.FORMULATEXT(INDIRECT(Y24))=Z24,0,1)","v":0}]
[{"$f":"ADDRESS(23,4,1,1,$A$1)","v":"Summary!$D$23"},"=IF('Insurer Information'!$F$9=\"Class C\",1.5%,IF('Insurer Information'!$F$9=\"Class D\",1.5%,IF('Insurer Information'!$F$9=\"Class E\",1.5%,\"Error\")))",0,{"$f":"ADDRESS(18,5,1,1,$D$1)","v":"'Fixed Income Investments'!$E$18"},0.15,{"$f":"IF(INDIRECT(D25)=E25,0,1)","v":0},{"$f":"ADDRESS(22,5,1,1,$G$1)","v":"'Equity Investments'!$E$22"},0.02,{"$f":"IF(INDIRECT(G25)=H25,0,1)","v":0},{"$f":"ADDRESS(12,12,1,1,$J$1)","v":"'Interest Rate-Liquidity Risk'!$L$12"},"=I12*K12",0,{"$f":"ADDRESS(14,4,1,1,$M$1)","v":"'Concentration Risk'!$D$14"},"=SUMIFS('Schedule XXI'!$M$8:$M$57,'Schedule XXI'!$J$8:$J$57,$D$9,'Schedule XXI'!$L$8:$L$57,$B14)",{"$f":"IF(_xlfn.FORMULATEXT(INDIRECT(M25))=N25,0,1)","v":0},{"$f":"ADDRESS(22,6,1,1,$P$1)","v":"'Credit Risk'!$F$22"},"=IF(SUM(F18:F20)>=0,SUM(F18:F20),0)",{"$f":"IF(_xlfn.FORMULATEXT(INDIRECT(P25))=Q25,0,1)","v":0},{"$f":"ADDRESS(15,12,1,1,$S$1)","v":"'LT Insurance Risk'!$L$15"},"=M15/2",{"$f":"IF(_xlfn.FORMULATEXT(INDIRECT(S25))=T25,0,1)","v":0},{"$f":"ADDRESS(15,9,1,1,$V$1)","v":"'LT Variable Annuity Gte Risk'!$I$15"},5.0000000000000001E-3,{"$f":"IF(INDIRECT(V25)=W25,0,1)","v":0},{"$f":"ADDRESS(16,5,1,1,$Y$1)","v":"'LT Other Insurance Risk'!$E$16"},"='Schedule VII (EBS)'!F36",{"$f":"IF(_xlfn.FORMULATEXT(INDIRECT(Y25))=Z25,0,1)","v":0}]
[{"$f":"ADDRESS(23,5,1,1,$A$1)","v":"Summary!$E$23"},"=G19",0,{"$f":"ADDRESS(18,6,1,1,$D$1)","v":"'Fixed Income Investments'!$F$18"},"=IF(D18<0,0,D18*E18)",{"$f":"IF(_xlfn.FORMULATEXT(INDIRECT(D26))=E26,0,1)","v":0},{"$f":"ADDRESS(22,6,1,1,$G$1)","v":"'Equity Investments'!$F$22"},"=IF(D22<0,0,D22*E22)",{"$f":"IF(_xlfn.FORMULATEXT(INDIRECT(G26))=H26,0,1)","v":0},{"$f":"ADDRESS(14,12,1,1,$J$1)","v":"'Interest Rate-Liquidity Risk'!$L$14"},"=L10+L12",0,{"$f":"ADDRESS(14,5,1,1,$M$1)","v":"'Concentration Risk'!$E$14"},"=+'Fixed Income Investments'!E87",{"$f":"IF(_xlfn.FORMULATEXT(INDIRECT(M26))=N26,0,1)","v":0},{"$f":"ADDRESS(26,4,1,1,$P$1)","v":"'Credit Risk'!$D$26"},"=+'Schedule XVIII (EBS)'!O87",{"$f":"IF(_xlfn.FORMULATEXT(INDIRECT(P26))=Q26,0,1)","v":0},{"$f":"ADDRESS(15,13,1,1,$S$1)","v":"'LT Insurance Risk'!$M$15"},1.1299999999999999,{"$f":"IF(INDIRECT(S26)=T26,0,1)","v":0},{"$f":"ADDRESS(15,11,1,1,$V$1)","v":"'LT Variable Annuity Gte Risk'!$K$15"},"='Schedule VIII (EBS)'!L31",{"$f":"IF(_xlfn.FORMULATEXT(INDIRECT(V26))=W26,0,1)","v":0},{"$f":"ADDRESS(16,7,1,1,$Y$1)","v":"'LT Other Insurance Risk'!$G$16"},0.02,{"$f":"IF(INDIRECT(Y26)=Z26,0,1)","v":0}]
[{"$f":"ADDRESS(23,6,1,1,$A$1)","v":"Summary!$F$23"},"=E23*(IFERROR(1*'Information Sheet'!$H$18,1))",0,{"$f":"ADDRESS(19,4,1,1,$D$1)","v":"'Fixed Income Investments'!$D$19"},"=+'Schedule II (EBS)'!D19+'Schedule IIA (EBS)'!D19",{"$f":"IF(_xlfn.FORMULATEXT(INDIRECT(D27))=E27,0,1)","v":0},{"$f":"ADDRESS(23,4,1,1,$G$1)","v":"'Equity Investments'!$D$23"},"=+'Schedule II (EBS)'!H36+'Schedule IIA (EBS)'!H36",{"$f":"IF(_xlfn.FORMULATEXT(INDIRECT(G27))=H27,0,1)","v":0},{"$f":"ADDRESS(15,12,1,1,$J$1)","v":"'Interest Rate-Liquidity Risk'!$L$15"},"=L11+L12",0,{"$f":"ADDRESS(14,6,1,1,$M$1)","v":"'Concentration Risk'!$F$14"},"=MAX(0,(D14*E14))",{"$f":"IF(_xlfn.FORMULATEXT(INDIRECT(M27))=N27,0,1)","v":0},{"$f":"ADDRESS(26,5,1,1,$P$1)","v":"'Credit Risk'!$E$26"},0,{"$f":"IF(INDIRECT(P27)=Q27,0,1)","v":0},{"$f":"ADDRESS(15,14,1,1,$S$1)","v":"'LT Insurance Risk'!$N$15"},"=IF(D11<50000000,0,L15*(D11-50000000))/1000",{"$f":"IF(_xlfn.FORMULATEXT(INDIRECT(S27))=T27,0,1)","v":0},{"$f":"ADDRESS(15,12,1,1,$V$1)","v":"'LT Variable Annuity Gte Risk'!$L$15"},7.4999999999999997E-3,{"$f":"IF(INDIRECT(V27)=W27,0,1)","v":0},{"$f":"ADDRESS(16,9,1,1,$Y$1)","v":"'LT Other Insurance Risk'!$I$16"},"=MAX(0,E16*G16)",{"$f":"IF(_xlfn.FORMULATEXT(INDIRECT(Y27))=Z27,0,1)","v":0}]
[{"$f":"ADDRESS(24,6,1,1,$A$1)","v":"Summary!$F$24"},"=IF('Insurer Information'!$F$9=\"Class C\",F23*D23,(IF('Insurer Information'!$F$9=\"Class D\",IF(F23>250000,5000+(F23-250000)*1.5%,F23*2%),(IF('Insurer Information'!$F$9=\"Class E\",IF(F23>500000,10000+(F23-500000)*1.5%,F23*2%),\"Error\")))))",0,{"$f":"ADDRESS(19,5,1,1,$D$1)","v":"'Fixed Income Investments'!$E$19"},0.26300000000000001,{"$f":"IF(INDIRECT(D28)=E28,0,1)","v":0},{"$f":"ADDRESS(23,5,1,1,$G$1)","v":"'Equity Investments'!$E$23"},0.04,{"$f":"IF(INDIRECT(G28)=H28,0,1)","v":0},{"$f":"ADDRESS(21,12,1,1,$J$1)","v":"'Interest Rate-Liquidity Risk'!$L$21"},"=IF($J$19=\"No\",0,IF(K21=\"Yes\",0.1,0))",0,{"$f":"ADDRESS(15,2,1,1,$M$1)","v":"'Concentration Risk'!$B$15"},"BSCR Rating 5",{"$f":"IF(INDIRECT(M28)=N28,0,1)","v":0},{"$f":"ADDRESS(26,6,1,1,$P$1)","v":"'Credit Risk'!$F$26"},"=MAX(0,(D26*E26))",{"$f":"IF(_xlfn.FORMULATEXT(INDIRECT(P28))=Q28,0,1)","v":0},{"$f":"ADDRESS(15,15,1,1,$S$1)","v":"'LT Insurance Risk'!$O$15"},"=IF(E11<50000000,0,M15*(E11-50000000))/1000",0,{"$f":"ADDRESS(15,23,1,1,$V$1)","v":"'LT Variable Annuity Gte Risk'!$W$15"},"=IF(ISERROR(OR(E15*F15+H15*I15+K15*L15,N15*O15+Q15*R15+T15*U15)),0,MAX(E15*F15+H15*I15+K15*L15,N15*O15+Q15*R15+T15*U15))",{"$f":"IF(_xlfn.FORMULATEXT(INDIRECT(V28))=W28,0,1)","v":0},{"$f":"ADDRESS(17,5,1,1,$Y$1)","v":"'LT Other Insurance Risk'!$E$17"},"='Schedule VII (EBS)'!F37",{"$f":"IF(_xlfn.FORMULATEXT(INDIRECT(Y28))=Z28,0,1)","v":0}]
[{"$f":"ADDRESS(24,7,1,1,$A$1)","v":"Summary!$G$24"},"=F24*IFERROR((1/'Information Sheet'!$H$18),1)",0,{"$f":"ADDRESS(19,6,1,1,$D$1)","v":"'Fixed Income Investments'!$F$19"},"=IF(D19<0,0,D19*E19)",{"$f":"IF(_xlfn.FORMULATEXT(INDIRECT(D29))=E29,0,1)","v":0},{"$f":"ADDRESS(23,6,1,1,$G$1)","v":"'Equity Investments'!$F$23"},"=IF(D23<0,0,D23*E23)",{"$f":"IF(_xlfn.FORMULATEXT(INDIRECT(G29))=H29,0,1)","v":0},{"$f":"ADDRESS(23,12,1,1,$J$1)","v":"'Interest Rate-Liquidity Risk'!$L$23"},"=IF($J$19=\"No\",0,IF(K23=\"Yes\",0.1,0))",0,{"$f":"ADDRESS(15,4,1,1,$M$1)","v":"'Concentration Risk'!$D$15"},"=SUMIFS('Schedule XXI'!$M$8:$M$57,'Schedule XXI'!$J$8:$J$57,$D$9,'Schedule XXI'!$L$8:$L$57,$B15)",{"$f":"IF(_xlfn.FORMULATEXT(INDIRECT(M29))=N29,0,1)","v":0},{"$f":"ADDRESS(27,4,1,1,$P$1)","v":"'Credit Risk'!$D$27"},"=+'Schedule XVIII (EBS)'!O88",{"$f":"IF(_xlfn.FORMULATEXT(INDIRECT(P29))=Q29,0,1)","v":0},{"$f":"ADDRESS(16,14,1,1,$S$1)","v":"'LT Insurance Risk'!$N$16"},"=SUM(N11:N15)",0,{"$f":"ADDRESS(15,25,1,1,$V$1)","v":"'LT Variable Annuity Gte Risk'!$Y$15"},"='Schedule VIII (EBS)'!F14",{"$f":"IF(_xlfn.FORMULATEXT(INDIRECT(V29))=W29,0,1)","v":0},{"$f":"ADDRESS(17,7,1,1,$Y$1)","v":"'LT Other Insurance Risk'!$G$17"},0.02,{"$f":"IF(INDIRECT(Y29)=Z29,0,1)","v":0}]
[{"$f":"ADDRESS(25,5,1,1,$A$1)","v":"Summary!$E$25"},"=N74",0,{"$f":"ADDRESS(20,4,1,1,$D$1)","v":"'Fixed Income Investments'!$D$20"},"=+'Schedule II (EBS)'!D20+'Schedule IIA (EBS)'!D20",{"$f":"IF(_xlfn.FORMULATEXT(INDIRECT(D30))=E30,0,1)","v":0},{"$f":"ADDRESS(24,4,1,1,$G$1)","v":"'Equity Investments'!$D$24"},"=+'Schedule II (EBS)'!H37+'Schedule IIA (EBS)'!H37",{"$f":"IF(_xlfn.FORMULATEXT(INDIRECT(G30))=H30,0,1)","v":0},{"$f":"ADDRESS(25,12,1,1,$J$1)","v":"'Interest Rate-Liquidity Risk'!$L$25"},"=IF($J$19=\"No\",0,IF(K25=\"Yes\",0.1,0))",0,{"$f":"ADDRESS(15,5,1,1,$M$1)","v":"'Concentration Risk'!$E$15"},"=+'Fixed Income Investments'!E88",{"$f":"IF(_xlfn.FORMULATEXT(INDIRECT(M30))=N30,0,1)","v":0},{"$f":"ADDRESS(27,5,1,1,$P$1)","v":"'Credit Risk'!$E$27"},7.0000000000000001E-3,{"$f":"IF(INDIRECT(P30)=Q30,0,1)","v":0},{"$f":"ADDRESS(16,15,1,1,$S$1)","v":"'LT Insurance Risk'!$O$16"},"=SUM(O11:O15)",0,{"$f":"ADDRESS(15,27,1,1,$V$1)","v":"'LT Variable Annuity Gte Risk'!$AA$15"},"=MAX(0,W15-Y15)",{"$f":"IF(_xlfn.FORMULATEXT(INDIRECT(V30))=W30,0,1)","v":0},{"$f":"ADDRESS(17,9,1,1,$Y$1)","v":"'LT Other Insurance Risk'!$I$17"},"=MAX(0,E17*G17)",{"$f":"IF(_xlfn.FORMULATEXT(INDIRECT(Y30))=Z30,0,1)","v":0}]
[{"$f":"ADDRESS(25,7,1,1,$A$1)","v":"Summary!$G$25"},"=E25*25%",0,{"$f":"ADDRESS(20,5,1,1,$D$1)","v":"'Fixed Income Investments'!$E$20"},0.35,{"$f":"IF(INDIRECT(D31)=E31,0,1)","v":0},{"$f":"ADDRESS(24,5,1,1,$G$1)","v":"'Equity Investments'!$E$24"},0.11,{"$f":"IF(INDIRECT(G31)=H31,0,1)","v":0},{"$f":"ADDRESS(27,12,1,1,$J$1)","v":"'Interest Rate-Liquidity Risk'!$L$27"},"=IF($J$19=\"No\",0,IF(K27=\"Yes\",0.1,0))",0,{"$f":"ADDRESS(15,6,1,1,$M$1)","v":"'Concentration Risk'!$F$15"},"=MAX(0,(D15*E15))",{"$f":"IF(_xlfn.FORMULATEXT(INDIRECT(M31))=N31,0,1)","v":0},{"$f":"ADDRESS(27,6,1,1,$P$1)","v":"'Credit Risk'!$F$27"},"=MAX(0,(D27*E27))",{"$f":"IF(_xlfn.FORMULATEXT(INDIRECT(P31))=Q31,0,1)","v":0},{"$f":"ADDRESS(18,4,1,1,$S$1)","v":"'LT Insurance Risk'!$D$18"},"='Schedule VII (EBS)'!H11",0,{"$f":"ADDRESS(18,5,1,1,$V$1)","v":"'LT Variable Annuity Gte Risk'!$E$18"},"='Schedule VIII (EBS)'!H14",{"$f":"IF(_xlfn.FORMULATEXT(INDIRECT(V31))=W31,0,1)","v":0},{"$f":"ADDRESS(18,5,1,1,$Y$1)","v":"'LT Other Insurance Risk'!$E$18"},"='Schedule VII (EBS)'!F38",{"$f":"IF(_xlfn.FORMULATEXT(INDIRECT(Y31))=Z31,0,1)","v":0}]
[{"$f":"ADDRESS(25,11,1,1,$A$1)","v":"Summary!$K$25"},"=\"Unconsolidated Statutory Capital for \"&YEAR('Form 1SFS'!$F9)",0,{"$f":"ADDRESS(20,6,1,1,$D$1)","v":"'Fixed Income Investments'!$F$20"},"=IF(D20<0,0,D20*E20)",{"$f":"IF(_xlfn.FORMULATEXT(INDIRECT(D32))=E32,0,1)","v":0},{"$f":"ADDRESS(24,6,1,1,$G$1)","v":"'Equity Investments'!$F$24"},"=IF(D24<0,0,D24*E24)",{"$f":"IF(_xlfn.FORMULATEXT(INDIRECT(G32))=H32,0,1)","v":0},{"$f":"ADDRESS(29,12,1,1,$J$1)","v":"'Interest Rate-Liquidity Risk'!$L$29"},"=IF($J$19=\"No\",0,IF(K29=\"Yes\",0.1,0))",0,{"$f":"ADDRESS(16,2,1,1,$M$1)","v":"'Concentration Risk'!$B$16"},"BSCR Rating 6",{"$f":"IF(INDIRECT(M32)=N32,0,1)","v":0},{"$f":"ADDRESS(28,4,1,1,$P$1)","v":"'Credit Risk'!$D$28"},"=+'Schedule XVIII (EBS)'!O89",{"$f":"IF(_xlfn.FORMULATEXT(INDIRECT(P32))=Q32,0,1)","v":0},{"$f":"ADDRESS(18,5,1,1,$S$1)","v":"'LT Insurance Risk'!$E$18"},"='Schedule VII (EBS)'!I11",0,{"$f":"ADDRESS(18,6,1,1,$V$1)","v":"'LT Variable Annuity Gte Risk'!$F$18"},7.4999999999999997E-3,{"$f":"IF(INDIRECT(V32)=W32,0,1)","v":0},{"$f":"ADDRESS(18,7,1,1,$Y$1)","v":"'LT Other Insurance Risk'!$G$18"},5.0000000000000001E-3,{"$f":"IF(INDIRECT(Y32)=Z32,0,1)","v":0}]
[{"$f":"ADDRESS(25,15,1,1,$A$1)","v":"Summary!$O$25"},"=IF('Insurer Information'!$C$2=\"IFRS\",IF('Insurer Information'!$F$2=\"Unconsolidated BSCR Model\",'Form 8ASFS'!O36,'Form 8ASFS'!G36+'Form 8ASFS'!K36),\nIF('Insurer Information'!$F$2=\"Unconsolidated BSCR Model\",'Form 8SFS'!$O$36,'Form 8SFS'!G36+'Form 8SFS'!K36))",0,{"$f":"ADDRESS(22,4,1,1,$D$1)","v":"'Fixed Income Investments'!$D$22"},"=SUM(D12:D20)",{"$f":"IF(_xlfn.FORMULATEXT(INDIRECT(D33))=E33,0,1)","v":0},{"$f":"ADDRESS(25,4,1,1,$G$1)","v":"'Equity Investments'!$D$25"},"=+'Schedule II (EBS)'!H38+'Schedule IIA (EBS)'!H38",{"$f":"IF(_xlfn.FORMULATEXT(INDIRECT(G33))=H33,0,1)","v":0},{"$f":"ADDRESS(31,12,1,1,$J$1)","v":"'Interest Rate-Liquidity Risk'!$L$31"},"=MIN(50%,IF(Import!M36683=0,SUM(L21:L29),Import!M36683))",0,{"$f":"ADDRESS(16,4,1,1,$M$1)","v":"'Concentration Risk'!$D$16"},"=SUMIFS('Schedule XXI'!$M$8:$M$57,'Schedule XXI'!$J$8:$J$57,$D$9,'Schedule XXI'!$L$8:$L$57,$B16)",{"$f":"IF(_xlfn.FORMULATEXT(INDIRECT(M33))=N33,0,1)","v":0},{"$f":"ADDRESS(28,5,1,1,$P$1)","v":"'Credit Risk'!$E$28"},1.4999999999999999E-2,{"$f":"IF(INDIRECT(P33)=Q33,0,1)","v":0},{"$f":"ADDRESS(18,12,1,1,$S$1)","v":"'LT Insurance Risk'!$L$18"},"=M18/2",0,{"$f":"ADDRESS(18,8,1,1,$V$1)","v":"'LT Variable Annuity Gte Risk'!$H$18"},"='Schedule VIII (EBS)'!J14",{"$f":"IF(_xlfn.FORMULATEXT(INDIRECT(V33))=W33,0,1)","v":0},{"$f":"ADDRESS(18,9,1,1,$Y$1)","v":"'LT Other Insurance Risk'!$I$18"},"=MAX(0,E18*G18)",{"$f":"IF(_xlfn.FORMULATEXT(INDIRECT(Y33))=Z33,0,1)","v":0}]
[{"$f":"ADDRESS(26,11,1,1,$A$1)","v":"Summary!$K$26"},"=\"Unconsolidated Statutory Capital for \"&YEAR('Form 1SFS'!$G9)",0,{"$f":"ADDRESS(22,6,1,1,$D$1)","v":"'Fixed Income Investments'!$F$22"},"=MAX(0,SUM(F12:F20))",{"$f":"IF(_xlfn.FORMULATEXT(INDIRECT(D34))=E34,0,1)","v":0},{"$f":"ADDRESS(25,5,1,1,$G$1)","v":"'Equity Investments'!$E$25"},0.25,{"$f":"IF(INDIRECT(G34)=H34,0,1)","v":0},{"$f":"ADDRESS(34,5,1,1,$J$1)","v":"'Interest Rate-Liquidity Risk'!$E$34"},"=IF('Schedule II (EBS)'!T22=0,('Schedule IIB (EBS)'!D27+'Schedule IIB (EBS)'!H27+'Schedule IIB (EBS)'!L27+'Schedule IIB (EBS)'!P27),'Schedule II (EBS)'!T22)",0,{"$f":"ADDRESS(16,5,1,1,$M$1)","v":"'Concentration Risk'!$E$16"},"=+'Fixed Income Investments'!E89",{"$f":"IF(_xlfn.FORMULATEXT(INDIRECT(M34))=N34,0,1)","v":0},{"$f":"ADDRESS(28,6,1,1,$P$1)","v":"'Credit Risk'!$F$28"},"=MAX(0,(D28*E28))",{"$f":"IF(_xlfn.FORMULATEXT(INDIRECT(P34))=Q34,0,1)","v":0},{"$f":"ADDRESS(18,13,1,1,$S$1)","v":"'LT Insurance Risk'!$M$18"},"=M11*3",0,{"$f":"ADDRESS(18,9,1,1,$V$1)","v":"'LT Variable Annuity Gte Risk'!$I$18"},0.01,{"$f":"IF(INDIRECT(V34)=W34,0,1)","v":0},{"$f":"ADDRESS(19,5,1,1,$Y$1)","v":"'LT Other Insurance Risk'!$E$19"},"='Schedule VII (EBS)'!F39",{"$f":"IF(_xlfn.FORMULATEXT(INDIRECT(Y34))=Z34,0,1)","v":0}]
[{"$f":"ADDRESS(26,15,1,1,$A$1)","v":"Summary!$O$26"},"=IF('Insurer Information'!$C$2=\"IFRS\",IF('Insurer Information'!$F$2=\"Unconsolidated BSCR Model\",'Form 8ASFS'!Q36,'Form 8ASFS'!I36+'Form 8ASFS'!M36),\nIF('Insurer Information'!$F$2=\"Unconsolidated BSCR Model\",'Form 8SFS'!$Q$36,'Form 8SFS'!I36+'Form 8SFS'!M36))",0,{"$f":"ADDRESS(27,4,1,1,$D$1)","v":"'Fixed Income Investments'!$D$27"},"=+'Schedule II (EBS)'!H13+'Schedule IIA (EBS)'!H13",{"$f":"IF(_xlfn.FORMULATEXT(INDIRECT(D35))=E35,0,1)","v":0},{"$f":"ADDRESS(25,6,1,1,$G$1)","v":"'Equity Investments'!$F$25"},"=IF(D25<0,0,D25*E25)",{"$f":"IF(_xlfn.FORMULATEXT(INDIRECT(G35))=H35,0,1)","v":0},{"$f":"ADDRESS(35,5,1,1,$J$1)","v":"'Interest Rate-Liquidity Risk'!$E$35"},"=IF('Schedule IIA (EBS)'!T22=0,('Schedule IIC (EBS)'!D27+'Schedule IIC (EBS)'!H27+'Schedule IIC (EBS)'!L27+'Schedule IIC (EBS)'!P27),'Schedule IIA (EBS)'!T22)",0,{"$f":"ADDRESS(16,6,1,1,$M$1)","v":"'Concentration Risk'!$F$16"},"=MAX(0,(D16*E16))",{"$f":"IF(_xlfn.FORMULATEXT(INDIRECT(M35))=N35,0,1)","v":0},{"$f":"ADDRESS(29,4,1,1,$P$1)","v":"'Credit Risk'!$D$29"},"=+'Schedule XVIII (EBS)'!O90",{"$f":"IF(_xlfn.FORMULATEXT(INDIRECT(P35))=Q35,0,1)","v":0},{"$f":"ADDRESS(18,14,1,1,$S$1)","v":"'LT Insurance Risk'!$N$18"},"=IF(D18>1000000,L18*1000000,L18*D18)/1000",0,{"$f":"ADDRESS(18,11,1,1,$V$1)","v":"'LT Variable Annuity Gte Risk'!$K$18"},"='Schedule VIII (EBS)'!L14",{"$f":"IF(_xlfn.FORMULATEXT(INDIRECT(V35))=W35,0,1)","v":0},{"$f":"ADDRESS(19,7,1,1,$Y$1)","v":"'LT Other Insurance Risk'!$G$19"},5.0000000000000001E-3,{"$f":"IF(INDIRECT(Y35)=Z35,0,1)","v":0}]
[{"$f":"ADDRESS(28,11,1,1,$A$1)","v":"Summary!$K$28"},"=\"Statutory Capital Change from \"&YEAR('Form 1SFS'!$G9)&\" to \"&YEAR('Form 1SFS'!$F9)",{"$f":"IF(_xlfn.FORMULATEXT(INDIRECT(A36))=B36,0,1)","v":0},{"$f":"ADDRESS(27,5,1,1,$D$1)","v":"'Fixed Income Investments'!$E$27"},6.0000000000000001E-3,{"$f":"IF(INDIRECT(D36)=E36,0,1)","v":0},{"$f":"ADDRESS(26,4,1,1,$G$1)","v":"'Equity Investments'!$D$26"},"=+'Schedule II (EBS)'!H39+'Schedule IIA (EBS)'!H39",{"$f":"IF(_xlfn.FORMULATEXT(INDIRECT(G36))=H36,0,1)","v":0},{"$f":"ADDRESS(36,5,1,1,$J$1)","v":"'Interest Rate-Liquidity Risk'!$E$36"},"=IF('Schedule II (EBS)'!H44=0,SUM('Schedule IIB (EBS)'!X42:X49),'Schedule II (EBS)'!H44)",0,{"$f":"ADDRESS(17,2,1,1,$M$1)","v":"'Concentration Risk'!$B$17"},"BSCR Rating 7",{"$f":"IF(INDIRECT(M36)=N36,0,1)","v":0},{"$f":"ADDRESS(29,5,1,1,$P$1)","v":"'Credit Risk'!$E$29"},3.5000000000000003E-2,{"$f":"IF(INDIRECT(P36)=Q36,0,1)","v":0},{"$f":"ADDRESS(18,15,1,1,$S$1)","v":"'LT Insurance Risk'!$O$18"},"=IF(E18>1000000,M18*1000000,M18*E18)/1000",0,{"$f":"ADDRESS(18,12,1,1,$V$1)","v":"'LT Variable Annuity Gte Risk'!$L$18"},1.2500000000000001E-2,{"$f":"IF(INDIRECT(V36)=W36,0,1)","v":0},{"$f":"ADDRESS(19,9,1,1,$Y$1)","v":"'LT Other Insurance Risk'!$I$19"},"=MAX(0,E19*G19)",{"$f":"IF(_xlfn.FORMULATEXT(INDIRECT(Y36))=Z36,0,1)","v":0}]
[{"$f":"ADDRESS(28,14,1,1,$A$1)","v":"Summary!$N$28"},"=O25-O26",0,{"$f":"ADDRESS(27,6,1,1,$D$1)","v":"'Fixed Income Investments'!$F$27"},"=IF(D27<0,0,D27*E27)",{"$f":"IF(_xlfn.FORMULATEXT(INDIRECT(D37))=E37,0,1)","v":0},{"$f":"ADDRESS(26,5,1,1,$G$1)","v":"'Equity Investments'!$E$26"},0.35,{"$f":"IF(INDIRECT(G37)=H37,0,1)","v":0},{"$f":"ADDRESS(37,5,1,1,$J$1)","v":"'Interest Rate-Liquidity Risk'!$E$37"},"=IF('Schedule IIA (EBS)'!H44=0,SUM('Schedule IIC (EBS)'!X42:X49),'Schedule IIA (EBS)'!H44)",0,{"$f":"ADDRESS(17,4,1,1,$M$1)","v":"'Concentration Risk'!$D$17"},"=SUMIFS('Schedule XXI'!$M$8:$M$57,'Schedule XXI'!$J$8:$J$57,$D$9,'Schedule XXI'!$L$8:$L$57,$B17)",{"$f":"IF(_xlfn.FORMULATEXT(INDIRECT(M37))=N37,0,1)","v":0},{"$f":"ADDRESS(29,6,1,1,$P$1)","v":"'Credit Risk'!$F$29"},"=MAX(0,(D29*E29))",{"$f":"IF(_xlfn.FORMULATEXT(INDIRECT(P37))=Q37,0,1)","v":0},{"$f":"ADDRESS(19,12,1,1,$S$1)","v":"'LT Insurance Risk'!$L$19"},"=M19/2",0,{"$f":"ADDRESS(18,14,1,1,$V$1)","v":"'LT Variable Annuity Gte Risk'!$N$18"},"='Schedule VIII (EBS)'!N14",{"$f":"IF(_xlfn.FORMULATEXT(INDIRECT(V37))=W37,0,1)","v":0},{"$f":"ADDRESS(20,5,1,1,$Y$1)","v":"'LT Other Insurance Risk'!$E$20"},"='Schedule VII (EBS)'!F40",{"$f":"IF(_xlfn.FORMULATEXT(INDIRECT(Y37))=Z37,0,1)","v":0}]
[{"$f":"ADDRESS(29,2,1,1,$A$1)","v":"Summary!$B$29"},"=\"MSM for \"&YEAR('Form 1SFS'!$F$9)",0,{"$f":"ADDRESS(28,4,1,1,$D$1)","v":"'Fixed Income Investments'!$D$28"},"=+'Schedule II (EBS)'!H14+'Schedule IIA (EBS)'!H14",{"$f":"IF(_xlfn.FORMULATEXT(INDIRECT(D38))=E38,0,1)","v":0},{"$f":"ADDRESS(26,6,1,1,$G$1)","v":"'Equity Investments'!$F$26"},"=IF(D26<0,0,D26*E26)",{"$f":"IF(_xlfn.FORMULATEXT(INDIRECT(G38))=H38,0,1)","v":0},{"$f":"ADDRESS(38,5,1,1,$J$1)","v":"'Interest Rate-Liquidity Risk'!$E$38"},"=IF(('Schedule II (EBS)'!D62+'Schedule IIA (EBS)'!D62)=0,('Schedule IIB (EBS)'!T27+'Schedule IIC (EBS)'!T27),'Schedule II (EBS)'!D62+'Schedule IIA (EBS)'!D62)",0,{"$f":"ADDRESS(17,5,1,1,$M$1)","v":"'Concentration Risk'!$E$17"},"=+'Fixed Income Investments'!E90",{"$f":"IF(_xlfn.FORMULATEXT(INDIRECT(M38))=N38,0,1)","v":0},{"$f":"ADDRESS(30,4,1,1,$P$1)","v":"'Credit Risk'!$D$30"},"=+'Schedule XVIII (EBS)'!O91",{"$f":"IF(_xlfn.FORMULATEXT(INDIRECT(P38))=Q38,0,1)","v":0},{"$f":"ADDRESS(19,13,1,1,$S$1)","v":"'LT Insurance Risk'!$M$19"},"=M12*3",0,{"$f":"ADDRESS(18,15,1,1,$V$1)","v":"'LT Variable Annuity Gte Risk'!$O$18"},0.12,{"$f":"IF(INDIRECT(V38)=W38,0,1)","v":0},{"$f":"ADDRESS(20,7,1,1,$Y$1)","v":"'LT Other Insurance Risk'!$G$20"},5.0000000000000001E-3,{"$f":"IF(INDIRECT(Y38)=Z38,0,1)","v":0}]
[{"$f":"ADDRESS(29,7,1,1,$A$1)","v":"Summary!$G$29"},"=IF(G27=\"\",MAX(G21,G24,G25),G27)",0,{"$f":"ADDRESS(28,5,1,1,$D$1)","v":"'Fixed Income Investments'!$E$28"},1.2E-2,{"$f":"IF(INDIRECT(D39)=E39,0,1)","v":0},{"$f":"ADDRESS(27,4,1,1,$G$1)","v":"'Equity Investments'!$D$27"},"=+'Schedule II (EBS)'!H40+'Schedule IIA (EBS)'!H40",{"$f":"IF(_xlfn.FORMULATEXT(INDIRECT(G39))=H39,0,1)","v":0},{"$f":"ADDRESS(39,5,1,1,$J$1)","v":"'Interest Rate-Liquidity Risk'!$E$39"},"=SUM(E34:E38)",0,{"$f":"ADDRESS(17,6,1,1,$M$1)","v":"'Concentration Risk'!$F$17"},"=MAX(0,(D17*E17))",{"$f":"IF(_xlfn.FORMULATEXT(INDIRECT(M39))=N39,0,1)","v":0},{"$f":"ADDRESS(30,5,1,1,$P$1)","v":"'Credit Risk'!$E$30"},7.0000000000000007E-2,{"$f":"IF(INDIRECT(P39)=Q39,0,1)","v":0},{"$f":"ADDRESS(19,14,1,1,$S$1)","v":"'LT Insurance Risk'!$N$19"},"=IF(D18<1000000,0,IF(D18>5000000,L19*4000000,L19*(D18-1000000)))/1000",0,{"$f":"ADDRESS(18,17,1,1,$V$1)","v":"'LT Variable Annuity Gte Risk'!$Q$18"},"=+'Schedule VIII (EBS)'!P14",{"$f":"IF(_xlfn.FORMULATEXT(INDIRECT(V39))=W39,0,1)","v":0},{"$f":"ADDRESS(20,9,1,1,$Y$1)","v":"'LT Other Insurance Risk'!$I$20"},"=MAX(0,E20*G20)",{"$f":"IF(_xlfn.FORMULATEXT(INDIRECT(Y39))=Z39,0,1)","v":0}]
[{"$f":"ADDRESS(29,14,1,1,$A$1)","v":"Summary!$N$29"},"=O26*-15%",0,{"$f":"ADDRESS(28,6,1,1,$D$1)","v":"'Fixed Income Investments'!$F$28"},"=IF(D28<0,0,D28*E28)",{"$f":"IF(_xlfn.FORMULATEXT(INDIRECT(D40))=E40,0,1)","v":0},{"$f":"ADDRESS(27,5,1,1,$G$1)","v":"'Equity Investments'!$E$27"},0.35,{"$f":"IF(INDIRECT(G40)=H40,0,1)","v":0},null,null,-40,{"$f":"ADDRESS(18,2,1,1,$M$1)","v":"'Concentration Risk'!$B$18"},"BSCR Rating 8",{"$f":"IF(INDIRECT(M40)=N40,0,1)","v":0},{"$f":"ADDRESS(30,6,1,1,$P$1)","v":"'Credit Risk'!$F$30"},"=MAX(0,(D30*E30))",{"$f":"IF(_xlfn.FORMULATEXT(INDIRECT(P40))=Q40,0,1)","v":0},{"$f":"ADDRESS(19,15,1,1,$S$1)","v":"'LT Insurance Risk'!$O$19"},"=IF(E18<1000000,0,IF(E18>5000000,M19*4000000,M19*(E18-1000000)))/1000",0,{"$f":"ADDRESS(18,18,1,1,$V$1)","v":"'LT Variable Annuity Gte Risk'!$R$18"},0.16500000000000001,{"$f":"IF(INDIRECT(V40)=W40,0,1)","v":0},{"$f":"ADDRESS(21,5,1,1,$Y$1)","v":"'LT Other Insurance Risk'!$E$21"},"='Schedule VII (EBS)'!F41",{"$f":"IF(_xlfn.FORMULATEXT(INDIRECT(Y40))=Z40,0,1)","v":0}]
[{"$f":"ADDRESS(31,7,1,1,$A$1)","v":"Summary!$G$31"},"=IF(G11>=G29,\"YES\",\"NO\")",0,{"$f":"ADDRESS(29,4,1,1,$D$1)","v":"'Fixed Income Investments'!$D$29"},"=+'Schedule II (EBS)'!H15+'Schedule IIA (EBS)'!H15",{"$f":"IF(_xlfn.FORMULATEXT(INDIRECT(D41))=E41,0,1)","v":0},{"$f":"ADDRESS(27,6,1,1,$G$1)","v":"'Equity Investments'!$F$27"},"=IF(D27<0,0,D27*E27)",{"$f":"IF(_xlfn.FORMULATEXT(INDIRECT(G41))=H41,0,1)","v":0},null,null,null,{"$f":"ADDRESS(18,4,1,1,$M$1)","v":"'Concentration Risk'!$D$18"},"=SUMIFS('Schedule XXI'!$M$8:$M$57,'Schedule XXI'!$J$8:$J$57,$D$9,'Schedule XXI'!$L$8:$L$57,$B18)",{"$f":"IF(_xlfn.FORMULATEXT(INDIRECT(M41))=N41,0,1)","v":0},{"$f":"ADDRESS(31,4,1,1,$P$1)","v":"'Credit Risk'!$D$31"},"=+'Schedule XVIII (EBS)'!O92",{"$f":"IF(_xlfn.FORMULATEXT(INDIRECT(P41))=Q41,0,1)","v":0},{"$f":"ADDRESS(20,12,1,1,$S$1)","v":"'LT Insurance Risk'!$L$20"},"=M20/2",0,{"$f":"ADDRESS(18,20,1,1,$V$1)","v":"'LT Variable Annuity Gte Risk'!$T$18"},"=+'Schedule VIII (EBS)'!R14",{"$f":"IF(_xlfn.FORMULATEXT(INDIRECT(V41))=W41,0,1)","v":0},{"$f":"ADDRESS(21,7,1,1,$Y$1)","v":"'LT Other Insurance Risk'!$G$21"},5.0000000000000001E-3,{"$f":"IF(INDIRECT(Y41)=Z41,0,1)","v":0}]
[{"$f":"ADDRESS(31,15,1,1,$A$1)","v":"Summary!$O$31"},"=IF(N29<N28,\"YES\",\"NO\")",0,{"$f":"ADDRESS(29,5,1,1,$D$1)","v":"'Fixed Income Investments'!$E$29"},0.02,{"$f":"IF(INDIRECT(D42)=E42,0,1)","v":0},{"$f":"ADDRESS(29,4,1,1,$G$1)","v":"'Equity Investments'!$D$29"},"=SUM(D19:D27)",{"$f":"IF(_xlfn.FORMULATEXT(INDIRECT(G42))=H42,0,1)","v":0},null,null,null,{"$f":"ADDRESS(18,5,1,1,$M$1)","v":"'Concentration Risk'!$E$18"},"=+'Fixed Income Investments'!E91",{"$f":"IF(_xlfn.FORMULATEXT(INDIRECT(M42))=N42,0,1)","v":0},{"$f":"ADDRESS(31,5,1,1,$P$1)","v":"'Credit Risk'!$E$31"},0.12,{"$f":"IF(INDIRECT(P42)=Q42,0,1)","v":0},{"$f":"ADDRESS(20,13,1,1,$S$1)","v":"'LT Insurance Risk'!$M$20"},"=M13*3",0,{"$f":"ADDRESS(18,21,1,1,$V$1)","v":"'LT Variable Annuity Gte Risk'!$U$18"},0.21,{"$f":"IF(INDIRECT(V42)=W42,0,1)","v":0},{"$f":"ADDRESS(21,9,1,1,$Y$1)","v":"'LT Other Insurance Risk'!$I$21"},"=MAX(0,E21*G21)",{"$f":"IF(_xlfn.FORMULATEXT(INDIRECT(Y42))=Z42,0,1)","v":0}]
[{"$f":"ADDRESS(39,12,1,1,$A$1)","v":"Summary!$L$39"},"{=SQRT(MMULT(TRANSPOSE(K40:K44),MMULT('Correlation Matrix'!B7:F11,K40:K44)))}",0,{"$f":"ADDRESS(29,6,1,1,$D$1)","v":"'Fixed Income Investments'!$F$29"},"=IF(D29<0,0,D29*E29)",{"$f":"IF(_xlfn.FORMULATEXT(INDIRECT(D43))=E43,0,1)","v":0},{"$f":"ADDRESS(29,6,1,1,$G$1)","v":"'Equity Investments'!$F$29"},"=MAX(0,(SUM(F19:F27)))",{"$f":"IF(_xlfn.FORMULATEXT(INDIRECT(G43))=H43,0,1)","v":0},null,null,null,{"$f":"ADDRESS(18,6,1,1,$M$1)","v":"'Concentration Risk'!$F$18"},"=MAX(0,(D18*E18))",{"$f":"IF(_xlfn.FORMULATEXT(INDIRECT(M43))=N43,0,1)","v":0},{"$f":"ADDRESS(31,6,1,1,$P$1)","v":"'Credit Risk'!$F$31"},"=MAX(0,(D31*E31))",{"$f":"IF(_xlfn.FORMULATEXT(INDIRECT(P43))=Q43,0,1)","v":0},{"$f":"ADDRESS(20,14,1,1,$S$1)","v":"'LT Insurance Risk'!$N$20"},"=IF(D18<5000000,0,IF(D18>10000000,L20*5000000,L20*(D18-5000000)))/1000",0,{"$f":"ADDRESS(18,23,1,1,$V$1)","v":"'LT Variable Annuity Gte Risk'!$W$18"},"=IF(ISERROR(OR(E18*F18+H18*I18+K18*L18,N18*O18+Q18*R18+T18*U18)),0,MAX(E18*F18+H18*I18+K18*L18,N18*O18+Q18*R18+T18*U18))",{"$f":"IF(_xlfn.FORMULATEXT(INDIRECT(V43))=W43,0,1)","v":0},{"$f":"ADDRESS(22,5,1,1,$Y$1)","v":"'LT Other Insurance Risk'!$E$22"},"='Schedule VII (EBS)'!F42",{"$f":"IF(_xlfn.FORMULATEXT(INDIRECT(Y43))=Z43,0,1)","v":0}]
[{"$f":"ADDRESS(39,14,1,1,$A$1)","v":"Summary!$N$39"},"{=SQRT(MMULT(TRANSPOSE(M40:M44),MMULT('Correlation Matrix'!B7:F11,M40:M44)))}",0,{"$f":"ADDRESS(30,4,1,1,$D$1)","v":"'Fixed Income Investments'!$D$30"},"=+'Schedule II (EBS)'!H16+'Schedule IIA (EBS)'!H16",{"$f":"IF(_xlfn.FORMULATEXT(INDIRECT(D44))=E44,0,1)","v":0},{"$f":"ADDRESS(34,4,1,1,$G$1)","v":"'Equity Investments'!$D$34"},"='Form 4EBS'!F50",{"$f":"IF(_xlfn.FORMULATEXT(INDIRECT(G44))=H44,0,1)","v":0},null,null,null,{"$f":"ADDRESS(20,4,1,1,$M$1)","v":"'Concentration Risk'!$D$20"},"=SUM(D10:D18)",{"$f":"IF(_xlfn.FORMULATEXT(INDIRECT(M44))=N44,0,1)","v":0},{"$f":"ADDRESS(32,4,1,1,$P$1)","v":"'Credit Risk'!$D$32"},"=+'Schedule XVIII (EBS)'!O93",{"$f":"IF(_xlfn.FORMULATEXT(INDIRECT(P44))=Q44,0,1)","v":0},{"$f":"ADDRESS(20,15,1,1,$S$1)","v":"'LT Insurance Risk'!$O$20"},"=IF(E18<5000000,0,IF(E18>10000000,M20*5000000,M20*(E18-5000000)))/1000",0,{"$f":"ADDRESS(18,25,1,1,$V$1)","v":"'LT Variable Annuity Gte Risk'!$Y$18"},"='Schedule VIII (EBS)'!F14",{"$f":"IF(_xlfn.FORMULATEXT(INDIRECT(V44))=W44,0,1)","v":0},{"$f":"ADDRESS(22,7,1,1,$Y$1)","v":"'LT Other Insurance Risk'!$G$22"},5.0000000000000001E-3,{"$f":"IF(INDIRECT(Y44)=Z44,0,1)","v":0}]
[{"$f":"ADDRESS(40,7,1,1,$A$1)","v":"Summary!$G$40"},"=ROUND('Fixed Income Investments'!F99,$N$167)",0,{"$f":"ADDRESS(30,5,1,1,$D$1)","v":"'Fixed Income Investments'!$E$30"},0.04,{"$f":"IF(INDIRECT(D45)=E45,0,1)","v":0},{"$f":"ADDRESS(34,5,1,1,$G$1)","v":"'Equity Investments'!$E$34"},0.1,{"$f":"IF(INDIRECT(G45)=H45,0,1)","v":0},null,null,null,{"$f":"ADDRESS(20,6,1,1,$M$1)","v":"'Concentration Risk'!$F$20"},"=SUM(F10:F18)",{"$f":"IF(_xlfn.FORMULATEXT(INDIRECT(M45))=N45,0,1)","v":0},{"$f":"ADDRESS(32,5,1,1,$P$1)","v":"'Credit Risk'!$E$32"},0.2,{"$f":"IF(INDIRECT(P45)=Q45,0,1)","v":0},{"$f":"ADDRESS(21,12,1,1,$S$1)","v":"'LT Insurance Risk'!$L$21"},"=M21/2",0,{"$f":"ADDRESS(18,27,1,1,$V$1)","v":"'LT Variable Annuity Gte Risk'!$AA$18"},"=MAX(0,W18-Y18)",{"$f":"IF(_xlfn.FORMULATEXT(INDIRECT(V45))=W45,0,1)","v":0},{"$f":"ADDRESS(22,9,1,1,$Y$1)","v":"'LT Other Insurance Risk'!$I$22"},"=MAX(0,E22*G22)",{"$f":"IF(_xlfn.FORMULATEXT(INDIRECT(Y45))=Z45,0,1)","v":0}]
[{"$f":"ADDRESS(40,11,1,1,$A$1)","v":"Summary!$K$40"},"=ROUND('Fixed Income Investments (Rev.)'!I136,$N$167)",0,{"$f":"ADDRESS(30,6,1,1,$D$1)","v":"'Fixed Income Investments'!$F$30"},"=IF(D30<0,0,D30*E30)",{"$f":"IF(_xlfn.FORMULATEXT(INDIRECT(D46))=E46,0,1)","v":0},{"$f":"ADDRESS(34,6,1,1,$G$1)","v":"'Equity Investments'!$F$34"},"=IF(D34<0,0,D34*E34)",{"$f":"IF(_xlfn.FORMULATEXT(INDIRECT(G46))=H46,0,1)","v":0},null,null,null,{"$f":"ADDRESS(22,4,1,1,$M$1)","v":"'Concentration Risk'!$D$22"},"Corporate & Sovereign Bonds",{"$f":"IF(INDIRECT(M46)=N46,0,1)","v":0},{"$f":"ADDRESS(32,6,1,1,$P$1)","v":"'Credit Risk'!$F$32"},"=MAX(0,(D32*E32))",{"$f":"IF(_xlfn.FORMULATEXT(INDIRECT(P46))=Q46,0,1)","v":0},{"$f":"ADDRESS(21,13,1,1,$S$1)","v":"'LT Insurance Risk'!$M$21"},"=M14*3",0,{"$f":"ADDRESS(19,5,1,1,$V$1)","v":"'LT Variable Annuity Gte Risk'!$E$19"},"=+'Schedule VIII (EBS)'!H32",{"$f":"IF(_xlfn.FORMULATEXT(INDIRECT(V46))=W46,0,1)","v":0},{"$f":"ADDRESS(23,5,1,1,$Y$1)","v":"'LT Other Insurance Risk'!$E$23"},"='Schedule VII (EBS)'!F43",{"$f":"IF(_xlfn.FORMULATEXT(INDIRECT(Y46))=Z46,0,1)","v":0}]
[{"$f":"ADDRESS(40,13,1,1,$A$1)","v":"Summary!$M$40"},"=ROUND('Fixed Income Investments (Rev.)'!I136,$N$167)",0,{"$f":"ADDRESS(31,4,1,1,$D$1)","v":"'Fixed Income Investments'!$D$31"},"=+'Schedule II (EBS)'!H17+'Schedule IIA (EBS)'!H17",{"$f":"IF(_xlfn.FORMULATEXT(INDIRECT(D47))=E47,0,1)","v":0},{"$f":"ADDRESS(35,4,1,1,$G$1)","v":"'Equity Investments'!$D$35"},"='Form 4EBS'!F51",{"$f":"IF(_xlfn.FORMULATEXT(INDIRECT(G47))=H47,0,1)","v":0},null,null,null,{"$f":"ADDRESS(23,2,1,1,$M$1)","v":"'Concentration Risk'!$B$23"},"BSCR Rating 0",{"$f":"IF(INDIRECT(M47)=N47,0,1)","v":0},{"$f":"ADDRESS(33,4,1,1,$P$1)","v":"'Credit Risk'!$D$33"},"=+'Schedule XVIII (EBS)'!O94",{"$f":"IF(_xlfn.FORMULATEXT(INDIRECT(P47))=Q47,0,1)","v":0},{"$f":"ADDRESS(21,14,1,1,$S$1)","v":"'LT Insurance Risk'!$N$21"},"=IF(D18<10000000,0,IF(D18>50000000,L21*40000000,L21*(D18-10000000)))/1000",0,{"$f":"ADDRESS(19,6,1,1,$V$1)","v":"'LT Variable Annuity Gte Risk'!$F$19"},7.4999999999999997E-3,{"$f":"IF(INDIRECT(V47)=W47,0,1)","v":0},{"$f":"ADDRESS(23,7,1,1,$Y$1)","v":"'LT Other Insurance Risk'!$G$23"},0.02,{"$f":"IF(INDIRECT(Y47)=Z47,0,1)","v":0}]
[{"$f":"ADDRESS(40,21,1,1,$A$1)","v":"Summary!$U$40"},"=G40",0,{"$f":"ADDRESS(31,5,1,1,$D$1)","v":"'Fixed Income Investments'!$E$31"},0.11,{"$f":"IF(INDIRECT(D48)=E48,0,1)","v":0},{"$f":"ADDRESS(35,5,1,1,$G$1)","v":"'Equity Investments'!$E$35"},0.2,{"$f":"IF(INDIRECT(G48)=H48,0,1)","v":0},null,null,null,{"$f":"ADDRESS(23,4,1,1,$M$1)","v":"'Concentration Risk'!$D$23"},"=SUMIFS('Schedule XXI'!$M$8:$M$57,'Schedule XXI'!$K$8:$K$57,$D$22,'Schedule XXI'!$L$8:$L$57,$B23)",{"$f":"IF(_xlfn.FORMULATEXT(INDIRECT(M48))=N48,0,1)","v":0},{"$f":"ADDRESS(33,5,1,1,$P$1)","v":"'Credit Risk'!$E$33"},0.27,{"$f":"IF(INDIRECT(P48)=Q48,0,1)","v":0},{"$f":"ADDRESS(21,15,1,1,$S$1)","v":"'LT Insurance Risk'!$O$21"},"=IF(E18<10000000,0,IF(E18>50000000,M21*40000000,M21*(E18-10000000)))/1000",0,{"$f":"ADDRESS(19,8,1,1,$V$1)","v":"'LT Variable Annuity Gte Risk'!$H$19"},"='Schedule VIII (EBS)'!J32",{"$f":"IF(_xlfn.FORMULATEXT(INDIRECT(V48))=W48,0,1)","v":0},{"$f":"ADDRESS(23,9,1,1,$Y$1)","v":"'LT Other Insurance Risk'!$I$23"},"=MAX(0,E23*G23)",{"$f":"IF(_xlfn.FORMULATEXT(INDIRECT(Y48))=Z48,0,1)","v":0}]
[{"$f":"ADDRESS(40,23,1,1,$A$1)","v":"Summary!$W$40"},"=IF($G$60=0,1/13,U40/$U$54)",0,{"$f":"ADDRESS(31,6,1,1,$D$1)","v":"'Fixed Income Investments'!$F$31"},"=IF(D31<0,0,D31*E31)",{"$f":"IF(_xlfn.FORMULATEXT(INDIRECT(D49))=E49,0,1)","v":0},{"$f":"ADDRESS(35,6,1,1,$G$1)","v":"'Equity Investments'!$F$35"},"=IF(D35<0,0,D35*E35)",{"$f":"IF(_xlfn.FORMULATEXT(INDIRECT(G49))=H49,0,1)","v":0},null,null,null,{"$f":"ADDRESS(23,5,1,1,$M$1)","v":"'Concentration Risk'!$E$23"},0,{"$f":"IF(INDIRECT(M49)=N49,0,1)","v":0},{"$f":"ADDRESS(33,6,1,1,$P$1)","v":"'Credit Risk'!$F$33"},"=MAX(0,(D33*E33))",{"$f":"IF(_xlfn.FORMULATEXT(INDIRECT(P49))=Q49,0,1)","v":0},{"$f":"ADDRESS(22,12,1,1,$S$1)","v":"'LT Insurance Risk'!$L$22"},"=M22/2",0,{"$f":"ADDRESS(19,9,1,1,$V$1)","v":"'LT Variable Annuity Gte Risk'!$I$19"},0.01,{"$f":"IF(INDIRECT(V49)=W49,0,1)","v":0},{"$f":"ADDRESS(24,5,1,1,$Y$1)","v":"'LT Other Insurance Risk'!$E$24"},"='Schedule VII (EBS)'!F44",{"$f":"IF(_xlfn.FORMULATEXT(INDIRECT(Y49))=Z49,0,1)","v":0}]
[{"$f":"ADDRESS(40,25,1,1,$A$1)","v":"Summary!$Y$40"},"=M40",0,{"$f":"ADDRESS(32,4,1,1,$D$1)","v":"'Fixed Income Investments'!$D$32"},"=+'Schedule II (EBS)'!H18+'Schedule IIA (EBS)'!H18",{"$f":"IF(_xlfn.FORMULATEXT(INDIRECT(D50))=E50,0,1)","v":0},{"$f":"ADDRESS(37,4,1,1,$G$1)","v":"'Equity Investments'!$D$37"},"='Form 4EBS'!F19+'Form 4EBS'!F29+'Schedule IIA (EBS)'!P44",{"$f":"IF(_xlfn.FORMULATEXT(INDIRECT(G50))=H50,0,1)","v":0},null,null,null,{"$f":"ADDRESS(23,6,1,1,$M$1)","v":"'Concentration Risk'!$F$23"},"=MAX(0,(D23*E23))",{"$f":"IF(_xlfn.FORMULATEXT(INDIRECT(M50))=N50,0,1)","v":0},{"$f":"ADDRESS(34,4,1,1,$P$1)","v":"'Credit Risk'!$D$34"},"=+'Schedule XVIII (EBS)'!O95",{"$f":"IF(_xlfn.FORMULATEXT(INDIRECT(P50))=Q50,0,1)","v":0},{"$f":"ADDRESS(22,13,1,1,$S$1)","v":"'LT Insurance Risk'!$M$22"},"=M15*3",0,{"$f":"ADDRESS(19,11,1,1,$V$1)","v":"'LT Variable Annuity Gte Risk'!$K$19"},"='Schedule VIII (EBS)'!L32",{"$f":"IF(_xlfn.FORMULATEXT(INDIRECT(V50))=W50,0,1)","v":0},{"$f":"ADDRESS(24,7,1,1,$Y$1)","v":"'LT Other Insurance Risk'!$G$24"},0.02,{"$f":"IF(INDIRECT(Y50)=Z50,0,1)","v":0}]
[{"$f":"ADDRESS(40,26,1,1,$A$1)","v":"Summary!$Z$40"},"=IF($N$60=0,1/13,Y40/$Y$54)",0,{"$f":"ADDRESS(32,5,1,1,$D$1)","v":"'Fixed Income Investments'!$E$32"},0.25,{"$f":"IF(INDIRECT(D51)=E51,0,1)","v":0},{"$f":"ADDRESS(37,5,1,1,$G$1)","v":"'Equity Investments'!$E$37"},0.2,{"$f":"IF(INDIRECT(G51)=H51,0,1)","v":0},null,null,null,{"$f":"ADDRESS(24,2,1,1,$M$1)","v":"'Concentration Risk'!$B$24"},"BSCR Rating 1",{"$f":"IF(INDIRECT(M51)=N51,0,1)","v":0},{"$f":"ADDRESS(34,5,1,1,$P$1)","v":"'Credit Risk'!$E$34"},0.35,{"$f":"IF(INDIRECT(P51)=Q51,0,1)","v":0},{"$f":"ADDRESS(22,14,1,1,$S$1)","v":"'LT Insurance Risk'!$N$22"},"=IF(D18<50000000,0,L22*(D18-50000000))/1000",0,{"$f":"ADDRESS(19,12,1,1,$V$1)","v":"'LT Variable Annuity Gte Risk'!$L$19"},1.2500000000000001E-2,{"$f":"IF(INDIRECT(V51)=W51,0,1)","v":0},{"$f":"ADDRESS(24,9,1,1,$Y$1)","v":"'LT Other Insurance Risk'!$I$24"},"=MAX(0,E24*G24)",{"$f":"IF(_xlfn.FORMULATEXT(INDIRECT(Y51))=Z51,0,1)","v":0}]
[{"$f":"ADDRESS(41,7,1,1,$A$1)","v":"Summary!$G$41"},"=ROUND('Equity Investments'!F51,$N$167)",0,{"$f":"ADDRESS(32,6,1,1,$D$1)","v":"'Fixed Income Investments'!$F$32"},"=IF(D32<0,0,D32*E32)",{"$f":"IF(_xlfn.FORMULATEXT(INDIRECT(D52))=E52,0,1)","v":0},{"$f":"ADDRESS(37,6,1,1,$G$1)","v":"'Equity Investments'!$F$37"},"=IF(D37<0,0,D37*E37)",{"$f":"IF(_xlfn.FORMULATEXT(INDIRECT(G52))=H52,0,1)","v":0},null,null,null,{"$f":"ADDRESS(24,4,1,1,$M$1)","v":"'Concentration Risk'!$D$24"},"=SUMIFS('Schedule XXI'!$M$8:$M$57,'Schedule XXI'!$K$8:$K$57,$D$22,'Schedule XXI'!$L$8:$L$57,$B24)",{"$f":"IF(_xlfn.FORMULATEXT(INDIRECT(M52))=N52,0,1)","v":0},{"$f":"ADDRESS(34,6,1,1,$P$1)","v":"'Credit Risk'!$F$34"},"=MAX(0,(D34*E34))",{"$f":"IF(_xlfn.FORMULATEXT(INDIRECT(P52))=Q52,0,1)","v":0},{"$f":"ADDRESS(22,15,1,1,$S$1)","v":"'LT Insurance Risk'!$O$22"},"=IF(E18<50000000,0,M22*(E18-50000000))/1000",0,{"$f":"ADDRESS(19,23,1,1,$V$1)","v":"'LT Variable Annuity Gte Risk'!$W$19"},"=IF(ISERROR(OR(E19*F19+H19*I19+K19*L19,N19*O19+Q19*R19+T19*U19)),0,MAX(E19*F19+H19*I19+K19*L19,N19*O19+Q19*R19+T19*U19))",{"$f":"IF(_xlfn.FORMULATEXT(INDIRECT(V52))=W52,0,1)","v":0},{"$f":"ADDRESS(27,5,1,1,$Y$1)","v":"'LT Other Insurance Risk'!$E$27"},"=SUM(E10:E24)",{"$f":"IF(_xlfn.FORMULATEXT(INDIRECT(Y52))=Z52,0,1)","v":0}]
[{"$f":"ADDRESS(41,11,1,1,$A$1)","v":"Summary!$K$41"},"=ROUND(IF(E41=\"With Grandfathering\",('Equity Investments (Grandf)'!F51+'Equity Investments (Non-Grandf)'!R58),'Equity Investments (Revised)'!R56),$N$167)",0,{"$f":"ADDRESS(33,4,1,1,$D$1)","v":"'Fixed Income Investments'!$D$33"},"=+'Schedule II (EBS)'!H19+'Schedule IIA (EBS)'!H19",{"$f":"IF(_xlfn.FORMULATEXT(INDIRECT(D53))=E53,0,1)","v":0},{"$f":"ADDRESS(38,4,1,1,$G$1)","v":"'Equity Investments'!$D$38"},"='Form 4EBS'!F85-'Form 4EBS'!F77-'Form 4EBS'!F78-'Form 4EBS'!F82+'Form 4EBS'!F91+'Form 4EBS'!F166",{"$f":"IF(_xlfn.FORMULATEXT(INDIRECT(G53))=H53,0,1)","v":0},null,null,null,{"$f":"ADDRESS(24,5,1,1,$M$1)","v":"'Concentration Risk'!$E$24"},4.0000000000000001E-3,{"$f":"IF(INDIRECT(M53)=N53,0,1)","v":0},{"$f":"ADDRESS(36,4,1,1,$P$1)","v":"'Credit Risk'!$D$36"},"=SUM(D26:D35)",0,{"$f":"ADDRESS(23,14,1,1,$S$1)","v":"'LT Insurance Risk'!$N$23"},"=SUM(N18:N22)",0,{"$f":"ADDRESS(19,25,1,1,$V$1)","v":"'LT Variable Annuity Gte Risk'!$Y$19"},"='Schedule VIII (EBS)'!F15",{"$f":"IF(_xlfn.FORMULATEXT(INDIRECT(V53))=W53,0,1)","v":0},{"$f":"ADDRESS(27,9,1,1,$Y$1)","v":"'LT Other Insurance Risk'!$I$27"},"=MAX(0,SUM(I10:I24))",{"$f":"IF(_xlfn.FORMULATEXT(INDIRECT(Y53))=Z53,0,1)","v":0}]
[{"$f":"ADDRESS(41,13,1,1,$A$1)","v":"Summary!$M$41"},"=ROUND(IF(E41=\"With Grandfathering\",('Equity Investments (Grandf)'!F51+'Equity Investments (Non-Grandf)'!P58),'Equity Investments (Revised)'!P56),$N$167)",0,{"$f":"ADDRESS(33,5,1,1,$D$1)","v":"'Fixed Income Investments'!$E$33"},0.35,{"$f":"IF(INDIRECT(D54)=E54,0,1)","v":0},{"$f":"ADDRESS(38,5,1,1,$G$1)","v":"'Equity Investments'!$E$38"},0.2,{"$f":"IF(INDIRECT(G54)=H54,0,1)","v":0},null,null,null,{"$f":"ADDRESS(24,6,1,1,$M$1)","v":"'Concentration Risk'!$F$24"},"=MAX(0,(D24*E24))",{"$f":"IF(_xlfn.FORMULATEXT(INDIRECT(M54))=N54,0,1)","v":0},{"$f":"ADDRESS(36,6,1,1,$P$1)","v":"'Credit Risk'!$F$36"},"=SUM(F26:F35)",0,{"$f":"ADDRESS(23,15,1,1,$S$1)","v":"'LT Insurance Risk'!$O$23"},"=SUM(O18:O22)",0,{"$f":"ADDRESS(19,27,1,1,$V$1)","v":"'LT Variable Annuity Gte Risk'!$AA$19"},"=MAX(0,W19-Y19)",{"$f":"IF(_xlfn.FORMULATEXT(INDIRECT(V54))=W54,0,1)","v":0},null,null,-54]
[{"$f":"ADDRESS(41,21,1,1,$A$1)","v":"Summary!$U$41"},"=G41",0,{"$f":"ADDRESS(33,6,1,1,$D$1)","v":"'Fixed Income Investments'!$F$33"},"=IF(D33<0,0,D33*E33)",{"$f":"IF(_xlfn.FORMULATEXT(INDIRECT(D55))=E55,0,1)","v":0},{"$f":"ADDRESS(38,6,1,1,$G$1)","v":"'Equity Investments'!$F$38"},"=IF(D38<0,0,D38*E38)",{"$f":"IF(_xlfn.FORMULATEXT(INDIRECT(G55))=H55,0,1)","v":0},null,null,null,{"$f":"ADDRESS(25,2,1,1,$M$1)","v":"'Concentration Risk'!$B$25"},"BSCR Rating 2",{"$f":"IF(INDIRECT(M55)=N55,0,1)","v":0},{"$f":"ADDRESS(38,2,1,1,$P$1)","v":"'Credit Risk'!$B$38"},"=\"Less: Diversification Adjustment up to \"&(ROUND('Schedule XVIII (EBS)'!O104,2)*100&\"%\")",0,{"$f":"ADDRESS(26,4,1,1,$S$1)","v":"'LT Insurance Risk'!$D$26"},"=+'Schedule VII (EBS)'!F14",0,{"$f":"ADDRESS(22,5,1,1,$V$1)","v":"'LT Variable Annuity Gte Risk'!$E$22"},"='Schedule VIII (EBS)'!H15",{"$f":"IF(_xlfn.FORMULATEXT(INDIRECT(V55))=W55,0,1)","v":0}]
[{"$f":"ADDRESS(41,23,1,1,$A$1)","v":"Summary!$W$41"},"=IF($G$60=0,1/13,U41/$U$54)",0,{"$f":"ADDRESS(34,4,1,1,$D$1)","v":"'Fixed Income Investments'!$D$34"},"=+'Schedule II (EBS)'!H20+'Schedule IIA (EBS)'!H20",{"$f":"IF(_xlfn.FORMULATEXT(INDIRECT(D56))=E56,0,1)","v":0},{"$f":"ADDRESS(40,4,1,1,$G$1)","v":"'Equity Investments'!$D$40"},"=SUM(D34:D35,D37:D38)",{"$f":"IF(_xlfn.FORMULATEXT(INDIRECT(G56))=H56,0,1)","v":0},null,null,null,{"$f":"ADDRESS(25,4,1,1,$M$1)","v":"'Concentration Risk'!$D$25"},"=SUMIFS('Schedule XXI'!$M$8:$M$57,'Schedule XXI'!$K$8:$K$57,$D$22,'Schedule XXI'!$L$8:$L$57,$B25)",{"$f":"IF(_xlfn.FORMULATEXT(INDIRECT(M56))=N56,0,1)","v":0},{"$f":"ADDRESS(38,5,1,1,$P$1)","v":"'Credit Risk'!$E$38"},"='Schedule XVIII (EBS)'!O104",0,{"$f":"ADDRESS(26,12,1,1,$S$1)","v":"'LT Insurance Risk'!$L$26"},0.02,{"$f":"IF(INDIRECT(S56)=T56,0,1)","v":0},{"$f":"ADDRESS(22,6,1,1,$V$1)","v":"'LT Variable Annuity Gte Risk'!$F$22"},0.05,{"$f":"IF(INDIRECT(V56)=W56,0,1)","v":0}]
[{"$f":"ADDRESS(41,25,1,1,$A$1)","v":"Summary!$Y$41"},"=M41",0,{"$f":"ADDRESS(34,5,1,1,$D$1)","v":"'Fixed Income Investments'!$E$34"},0.35,{"$f":"IF(INDIRECT(D57)=E57,0,1)","v":0},{"$f":"ADDRESS(40,6,1,1,$G$1)","v":"'Equity Investments'!$F$40"},"=MAX(0,(SUM(F34:F38)))",{"$f":"IF(_xlfn.FORMULATEXT(INDIRECT(G57))=H57,0,1)","v":0},null,null,null,{"$f":"ADDRESS(25,5,1,1,$M$1)","v":"'Concentration Risk'!$E$25"},8.0000000000000002E-3,{"$f":"IF(INDIRECT(M57)=N57,0,1)","v":0},{"$f":"ADDRESS(38,6,1,1,$P$1)","v":"'Credit Risk'!$F$38"},"=SUM(F26:F35)*-('Schedule XVIII (EBS)'!O104)",0,{"$f":"ADDRESS(26,15,1,1,$S$1)","v":"'LT Insurance Risk'!$O$26"},"=D26*L26",{"$f":"IF(_xlfn.FORMULATEXT(INDIRECT(S57))=T57,0,1)","v":0},{"$f":"ADDRESS(22,8,1,1,$V$1)","v":"'LT Variable Annuity Gte Risk'!$H$22"},"='Schedule VIII (EBS)'!J15",{"$f":"IF(_xlfn.FORMULATEXT(INDIRECT(V57))=W57,0,1)","v":0}]
[{"$f":"ADDRESS(41,26,1,1,$A$1)","v":"Summary!$Z$41"},"=IF($N$60=0,1/13,Y41/$Y$54)",0,{"$f":"ADDRESS(34,6,1,1,$D$1)","v":"'Fixed Income Investments'!$F$34"},"=IF(D34<0,0,D34*E34)",{"$f":"IF(_xlfn.FORMULATEXT(INDIRECT(D58))=E58,0,1)","v":0},{"$f":"ADDRESS(44,4,1,1,$G$1)","v":"'Equity Investments'!$D$44"},"=+'Form 4EBS'!F33",{"$f":"IF(_xlfn.FORMULATEXT(INDIRECT(G58))=H58,0,1)","v":0},null,null,null,{"$f":"ADDRESS(25,6,1,1,$M$1)","v":"'Concentration Risk'!$F$25"},"=MAX(0,(D25*E25))",{"$f":"IF(_xlfn.FORMULATEXT(INDIRECT(M58))=N58,0,1)","v":0},{"$f":"ADDRESS(40,4,1,1,$P$1)","v":"'Credit Risk'!$D$40"},"=MAX(+D36,0)",0,{"$f":"ADDRESS(27,4,1,1,$S$1)","v":"'LT Insurance Risk'!$D$27"},"=+'Schedule VII (EBS)'!F15",{"$f":"IF(_xlfn.FORMULATEXT(INDIRECT(S58))=T58,0,1)","v":0},{"$f":"ADDRESS(22,9,1,1,$V$1)","v":"'LT Variable Annuity Gte Risk'!$I$22"},6.5000000000000002E-2,{"$f":"IF(INDIRECT(V58)=W58,0,1)","v":0}]
[{"$f":"ADDRESS(42,7,1,1,$A$1)","v":"Summary!$G$42"},"=ROUND('Interest Rate-Liquidity Risk'!L14,$N$167)",0,{"$f":"ADDRESS(36,4,1,1,$D$1)","v":"'Fixed Income Investments'!$D$36"},"=SUM(D26:D34)",{"$f":"IF(_xlfn.FORMULATEXT(INDIRECT(D59))=E59,0,1)","v":0},{"$f":"ADDRESS(44,5,1,1,$G$1)","v":"'Equity Investments'!$E$44"},0.05,{"$f":"IF(INDIRECT(G59)=H59,0,1)","v":0},null,null,null,{"$f":"ADDRESS(26,2,1,1,$M$1)","v":"'Concentration Risk'!$B$26"},"BSCR Rating 3",{"$f":"IF(INDIRECT(M59)=N59,0,1)","v":0},{"$f":"ADDRESS(40,6,1,1,$P$1)","v":"'Credit Risk'!$F$40"},"=MAX(0,SUM(F26:F35)+F38)",0,{"$f":"ADDRESS(27,12,1,1,$S$1)","v":"'LT Insurance Risk'!$L$27"},0.03,{"$f":"IF(INDIRECT(S59)=T59,0,1)","v":0},{"$f":"ADDRESS(22,11,1,1,$V$1)","v":"'LT Variable Annuity Gte Risk'!$K$22"},"='Schedule VIII (EBS)'!L15",{"$f":"IF(_xlfn.FORMULATEXT(INDIRECT(V59))=W59,0,1)","v":0}]
[{"$f":"ADDRESS(42,11,1,1,$A$1)","v":"Summary!$K$42"},"=ROUND(IF(E42=\"Duration-Based Approach\",'Interest Rate-Liquidity Risk'!L14,'Interest Rate-Liquidity (Rev.)'!$E$117),$N$167)",0,{"$f":"ADDRESS(36,6,1,1,$D$1)","v":"'Fixed Income Investments'!$F$36"},"=MAX(0,SUM(F26:F34))",{"$f":"IF(_xlfn.FORMULATEXT(INDIRECT(D60))=E60,0,1)","v":0},{"$f":"ADDRESS(44,6,1,1,$G$1)","v":"'Equity Investments'!$F$44"},"=IF(D44<0,0,D44*E44)",{"$f":"IF(_xlfn.FORMULATEXT(INDIRECT(G60))=H60,0,1)","v":0},null,null,null,{"$f":"ADDRESS(26,4,1,1,$M$1)","v":"'Concentration Risk'!$D$26"},"=SUMIFS('Schedule XXI'!$M$8:$M$57,'Schedule XXI'!$K$8:$K$57,$D$22,'Schedule XXI'!$L$8:$L$57,$B26)",{"$f":"IF(_xlfn.FORMULATEXT(INDIRECT(M60))=N60,0,1)","v":0},{"$f":"ADDRESS(42,4,1,1,$P$1)","v":"'Credit Risk'!$D$42"},"=D40+D22+D14",0,{"$f":"ADDRESS(27,15,1,1,$S$1)","v":"'LT Insurance Risk'!$O$27"},"=D27*L27",{"$f":"IF(_xlfn.FORMULATEXT(INDIRECT(S60))=T60,0,1)","v":0},{"$f":"ADDRESS(22,12,1,1,$V$1)","v":"'LT Variable Annuity Gte Risk'!$L$22"},0.08,{"$f":"IF(INDIRECT(V60)=W60,0,1)","v":0}]
[{"$f":"ADDRESS(42,13,1,1,$A$1)","v":"Summary!$M$42"},"=ROUND(IF(E42=\"Duration-Based Approach\",'Interest Rate-Liquidity Risk'!L15,'Interest Rate-Liquidity (Rev.)'!$D$117),$N$167)",0,{"$f":"ADDRESS(41,4,1,1,$D$1)","v":"'Fixed Income Investments'!$D$41"},"=+'Schedule II (EBS)'!L13+'Schedule IIA (EBS)'!L13",{"$f":"IF(_xlfn.FORMULATEXT(INDIRECT(D61))=E61,0,1)","v":0},{"$f":"ADDRESS(45,4,1,1,$G$1)","v":"'Equity Investments'!$D$45"},"=+'Form 4EBS'!F34",{"$f":"IF(_xlfn.FORMULATEXT(INDIRECT(G61))=H61,0,1)","v":0},null,null,null,{"$f":"ADDRESS(26,5,1,1,$M$1)","v":"'Concentration Risk'!$E$26"},1.4999999999999999E-2,{"$f":"IF(INDIRECT(M61)=N61,0,1)","v":0},{"$f":"ADDRESS(42,6,1,1,$P$1)","v":"'Credit Risk'!$F$42"},"=F40+F22+F14",0,{"$f":"ADDRESS(28,4,1,1,$S$1)","v":"'LT Insurance Risk'!$D$28"},"=+'Schedule VII (EBS)'!F16",{"$f":"IF(_xlfn.FORMULATEXT(INDIRECT(S61))=T61,0,1)","v":0},{"$f":"ADDRESS(22,14,1,1,$V$1)","v":"'LT Variable Annuity Gte Risk'!$N$22"},"='Schedule VIII (EBS)'!N15",{"$f":"IF(_xlfn.FORMULATEXT(INDIRECT(V61))=W61,0,1)","v":0}]
[{"$f":"ADDRESS(42,21,1,1,$A$1)","v":"Summary!$U$42"},"=G42",0,{"$f":"ADDRESS(41,5,1,1,$D$1)","v":"'Fixed Income Investments'!$E$41"},5.0000000000000001E-3,{"$f":"IF(INDIRECT(D62)=E62,0,1)","v":0},{"$f":"ADDRESS(45,5,1,1,$G$1)","v":"'Equity Investments'!$E$45"},0.2,{"$f":"IF(INDIRECT(G62)=H62,0,1)","v":0},null,null,null,{"$f":"ADDRESS(26,6,1,1,$M$1)","v":"'Concentration Risk'!$F$26"},"=MAX(0,(D26*E26))",{"$f":"IF(_xlfn.FORMULATEXT(INDIRECT(M62))=N62,0,1)","v":0},null,null,-62,{"$f":"ADDRESS(28,12,1,1,$S$1)","v":"'LT Insurance Risk'!$L$28"},0.04,{"$f":"IF(INDIRECT(S62)=T62,0,1)","v":0},{"$f":"ADDRESS(22,15,1,1,$V$1)","v":"'LT Variable Annuity Gte Risk'!$O$22"},1,{"$f":"IF(INDIRECT(V62)=W62,0,1)","v":0}]
[{"$f":"ADDRESS(42,23,1,1,$A$1)","v":"Summary!$W$42"},"=IF($G$60=0,1/13,U42/$U$54)",0,{"$f":"ADDRESS(41,6,1,1,$D$1)","v":"'Fixed Income Investments'!$F$41"},"=IF(D41<0,0,D41*E41)",{"$f":"IF(_xlfn.FORMULATEXT(INDIRECT(D63))=E63,0,1)","v":0},{"$f":"ADDRESS(45,6,1,1,$G$1)","v":"'Equity Investments'!$F$45"},"=IF(D45<0,0,D45*E45)",{"$f":"IF(_xlfn.FORMULATEXT(INDIRECT(G63))=H63,0,1)","v":0},null,null,null,{"$f":"ADDRESS(27,2,1,1,$M$1)","v":"'Concentration Risk'!$B$27"},"BSCR Rating 4",{"$f":"IF(INDIRECT(M63)=N63,0,1)","v":0},null,null,null,{"$f":"ADDRESS(28,15,1,1,$S$1)","v":"'LT Insurance Risk'!$O$28"},"=D28*L28",{"$f":"IF(_xlfn.FORMULATEXT(INDIRECT(S63))=T63,0,1)","v":0},{"$f":"ADDRESS(22,17,1,1,$V$1)","v":"'LT Variable Annuity Gte Risk'!$Q$22"},"=+'Schedule VIII (EBS)'!P15",{"$f":"IF(_xlfn.FORMULATEXT(INDIRECT(V63))=W63,0,1)","v":0}]
[{"$f":"ADDRESS(42,25,1,1,$A$1)","v":"Summary!$Y$42"},"=M42",0,{"$f":"ADDRESS(42,4,1,1,$D$1)","v":"'Fixed Income Investments'!$D$42"},"=+'Schedule II (EBS)'!L14+'Schedule IIA (EBS)'!L14",{"$f":"IF(_xlfn.FORMULATEXT(INDIRECT(D64))=E64,0,1)","v":0},{"$f":"ADDRESS(46,4,1,1,$G$1)","v":"'Equity Investments'!$D$46"},"=+'Form 4EBS'!F35",{"$f":"IF(_xlfn.FORMULATEXT(INDIRECT(G64))=H64,0,1)","v":0},null,null,null,{"$f":"ADDRESS(27,4,1,1,$M$1)","v":"'Concentration Risk'!$D$27"},"=SUMIFS('Schedule XXI'!$M$8:$M$57,'Schedule XXI'!$K$8:$K$57,$D$22,'Schedule XXI'!$L$8:$L$57,$B27)",{"$f":"IF(_xlfn.FORMULATEXT(INDIRECT(M64))=N64,0,1)","v":0},null,null,null,{"$f":"ADDRESS(29,4,1,1,$S$1)","v":"'LT Insurance Risk'!$D$29"},"=+'Schedule VII (EBS)'!F17",{"$f":"IF(_xlfn.FORMULATEXT(INDIRECT(S64))=T64,0,1)","v":0},{"$f":"ADDRESS(22,18,1,1,$V$1)","v":"'LT Variable Annuity Gte Risk'!$R$22"},1.3,{"$f":"IF(INDIRECT(V64)=W64,0,1)","v":0}]
[{"$f":"ADDRESS(42,26,1,1,$A$1)","v":"Summary!$Z$42"},"=IF($N$60=0,1/13,Y42/$Y$54)",0,{"$f":"ADDRESS(42,5,1,1,$D$1)","v":"'Fixed Income Investments'!$E$42"},0.01,{"$f":"IF(INDIRECT(D65)=E65,0,1)","v":0},{"$f":"ADDRESS(46,5,1,1,$G$1)","v":"'Equity Investments'!$E$46"},0.55000000000000004,{"$f":"IF(INDIRECT(G65)=H65,0,1)","v":0},null,null,null,{"$f":"ADDRESS(27,5,1,1,$M$1)","v":"'Concentration Risk'!$E$27"},0.03,{"$f":"IF(INDIRECT(M65)=N65,0,1)","v":0},null,null,null,{"$f":"ADDRESS(29,12,1,1,$S$1)","v":"'LT Insurance Risk'!$L$29"},0.05,{"$f":"IF(INDIRECT(S65)=T65,0,1)","v":0},{"$f":"ADDRESS(22,20,1,1,$V$1)","v":"'LT Variable Annuity Gte Risk'!$T$22"},"=+'Schedule VIII (EBS)'!R15",{"$f":"IF(_xlfn.FORMULATEXT(INDIRECT(V65))=W65,0,1)","v":0}]
[{"$f":"ADDRESS(43,7,1,1,$A$1)","v":"Summary!$G$43"},"=ROUND('Currency Risk'!I28,$N$167)",0,{"$f":"ADDRESS(42,6,1,1,$D$1)","v":"'Fixed Income Investments'!$F$42"},"=IF(D42<0,0,D42*E42)",{"$f":"IF(_xlfn.FORMULATEXT(INDIRECT(D66))=E66,0,1)","v":0},{"$f":"ADDRESS(46,6,1,1,$G$1)","v":"'Equity Investments'!$F$46"},"=IF(D46<0,0,D46*E46)",{"$f":"IF(_xlfn.FORMULATEXT(INDIRECT(G66))=H66,0,1)","v":0},null,null,null,{"$f":"ADDRESS(27,6,1,1,$M$1)","v":"'Concentration Risk'!$F$27"},"=MAX(0,(D27*E27))",{"$f":"IF(_xlfn.FORMULATEXT(INDIRECT(M66))=N66,0,1)","v":0},null,null,null,{"$f":"ADDRESS(29,15,1,1,$S$1)","v":"'LT Insurance Risk'!$O$29"},"=D29*L29",{"$f":"IF(_xlfn.FORMULATEXT(INDIRECT(S66))=T66,0,1)","v":0},{"$f":"ADDRESS(22,21,1,1,$V$1)","v":"'LT Variable Annuity Gte Risk'!$U$22"},1.6,{"$f":"IF(INDIRECT(V66)=W66,0,1)","v":0}]
[{"$f":"ADDRESS(43,11,1,1,$A$1)","v":"Summary!$K$43"},"=ROUND('Currency Risk (Revised)'!Y39,$N$167)",0,{"$f":"ADDRESS(43,4,1,1,$D$1)","v":"'Fixed Income Investments'!$D$43"},"=+'Schedule II (EBS)'!L15+'Schedule IIA (EBS)'!L15",{"$f":"IF(_xlfn.FORMULATEXT(INDIRECT(D67))=E67,0,1)","v":0},{"$f":"ADDRESS(47,4,1,1,$G$1)","v":"'Equity Investments'!$D$47"},"=+'Form 4EBS'!F37",{"$f":"IF(_xlfn.FORMULATEXT(INDIRECT(G67))=H67,0,1)","v":0},null,null,null,{"$f":"ADDRESS(28,2,1,1,$M$1)","v":"'Concentration Risk'!$B$28"},"BSCR Rating 5",{"$f":"IF(INDIRECT(M67)=N67,0,1)","v":0},null,null,null,{"$f":"ADDRESS(30,4,1,1,$S$1)","v":"'LT Insurance Risk'!$D$30"},"=+'Schedule VII (EBS)'!F18",{"$f":"IF(_xlfn.FORMULATEXT(INDIRECT(S67))=T67,0,1)","v":0},{"$f":"ADDRESS(22,23,1,1,$V$1)","v":"'LT Variable Annuity Gte Risk'!$W$22"},"=IF(ISERROR(OR(E22*F22+H22*I22+K22*L22,N22*O22+Q22*R22+T22*U22)),0,MAX(E22*F22+H22*I22+K22*L22,N22*O22+Q22*R22+T22*U22))",{"$f":"IF(_xlfn.FORMULATEXT(INDIRECT(V67))=W67,0,1)","v":0}]
[{"$f":"ADDRESS(43,13,1,1,$A$1)","v":"Summary!$M$43"},"=ROUND('Currency Risk (Revised)'!X39,$N$167)",{"$f":"IF(_xlfn.FORMULATEXT(INDIRECT(A68))=B68,0,1)","v":0},{"$f":"ADDRESS(43,5,1,1,$D$1)","v":"'Fixed Income Investments'!$E$43"},1.7999999999999999E-2,{"$f":"IF(INDIRECT(D68)=E68,0,1)","v":0},{"$f":"ADDRESS(47,5,1,1,$G$1)","v":"'Equity Investments'!$E$47"},0.2,{"$f":"IF(INDIRECT(G68)=H68,0,1)","v":0},null,null,null,{"$f":"ADDRESS(28,4,1,1,$M$1)","v":"'Concentration Risk'!$D$28"},"=SUMIFS('Schedule XXI'!$M$8:$M$57,'Schedule XXI'!$K$8:$K$57,$D$22,'Schedule XXI'!$L$8:$L$57,$B28)",{"$f":"IF(_xlfn.FORMULATEXT(INDIRECT(M68))=N68,0,1)","v":0},null,null,null,{"$f":"ADDRESS(30,12,1,1,$S$1)","v":"'LT Insurance Risk'!$L$30"},0.06,{"$f":"IF(INDIRECT(S68)=T68,0,1)","v":0},{"$f":"ADDRESS(22,25,1,1,$V$1)","v":"'LT Variable Annuity Gte Risk'!$Y$22"},"='Schedule VIII (EBS)'!F15",{"$f":"IF(_xlfn.FORMULATEXT(INDIRECT(V68))=W68,0,1)","v":0}]
[{"$f":"ADDRESS(43,21,1,1,$A$1)","v":"Summary!$U$43"},"=G43",0,{"$f":"ADDRESS(43,6,1,1,$D$1)","v":"'Fixed Income Investments'!$F$43"},"=IF(D43<0,0,D43*E43)",{"$f":"IF(_xlfn.FORMULATEXT(INDIRECT(D69))=E69,0,1)","v":0},{"$f":"ADDRESS(47,6,1,1,$G$1)","v":"'Equity Investments'!$F$47"},"=IF(D47<0,0,D47*E47)",{"$f":"IF(_xlfn.FORMULATEXT(INDIRECT(G69))=H69,0,1)","v":0},null,null,null,{"$f":"ADDRESS(28,5,1,1,$M$1)","v":"'Concentration Risk'!$E$28"},0.08,{"$f":"IF(INDIRECT(M69)=N69,0,1)","v":0},null,null,null,{"$f":"ADDRESS(30,15,1,1,$S$1)","v":"'LT Insurance Risk'!$O$30"},"=D30*L30",{"$f":"IF(_xlfn.FORMULATEXT(INDIRECT(S69))=T69,0,1)","v":0},{"$f":"ADDRESS(22,27,1,1,$V$1)","v":"'LT Variable Annuity Gte Risk'!$AA$22"},"=MAX(0,W22-Y22)",{"$f":"IF(_xlfn.FORMULATEXT(INDIRECT(V69))=W69,0,1)","v":0}]
[{"$f":"ADDRESS(43,23,1,1,$A$1)","v":"Summary!$W$43"},"=IF($G$60=0,1/13,U43/$U$54)",0,{"$f":"ADDRESS(44,4,1,1,$D$1)","v":"'Fixed Income Investments'!$D$44"},"=+'Schedule II (EBS)'!L16+'Schedule IIA (EBS)'!L16",{"$f":"IF(_xlfn.FORMULATEXT(INDIRECT(D70))=E70,0,1)","v":0},{"$f":"ADDRESS(49,4,1,1,$G$1)","v":"'Equity Investments'!$D$49"},"=SUM(D44:D47)",{"$f":"IF(_xlfn.FORMULATEXT(INDIRECT(G70))=H70,0,1)","v":0},null,null,null,{"$f":"ADDRESS(28,6,1,1,$M$1)","v":"'Concentration Risk'!$F$28"},"=MAX(0,(D28*E28))",{"$f":"IF(_xlfn.FORMULATEXT(INDIRECT(M70))=N70,0,1)","v":0},null,null,null,{"$f":"ADDRESS(33,4,1,1,$S$1)","v":"'LT Insurance Risk'!$D$33"},"=+'Schedule VII (EBS)'!F22",{"$f":"IF(_xlfn.FORMULATEXT(INDIRECT(S70))=T70,0,1)","v":0},{"$f":"ADDRESS(23,5,1,1,$V$1)","v":"'LT Variable Annuity Gte Risk'!$E$23"},"='Schedule VIII (EBS)'!H33",{"$f":"IF(_xlfn.FORMULATEXT(INDIRECT(V70))=W70,0,1)","v":0}]
[{"$f":"ADDRESS(43,25,1,1,$A$1)","v":"Summary!$Y$43"},"=M43",0,{"$f":"ADDRESS(44,5,1,1,$D$1)","v":"'Fixed Income Investments'!$E$44"},3.5000000000000003E-2,{"$f":"IF(INDIRECT(D71)=E71,0,1)","v":0},{"$f":"ADDRESS(49,6,1,1,$G$1)","v":"'Equity Investments'!$F$49"},"=MAX(0,SUM(F44:F47))",{"$f":"IF(_xlfn.FORMULATEXT(INDIRECT(G71))=H71,0,1)","v":0},null,null,null,{"$f":"ADDRESS(29,2,1,1,$M$1)","v":"'Concentration Risk'!$B$29"},"BSCR Rating 6",{"$f":"IF(INDIRECT(M71)=N71,0,1)","v":0},null,null,null,{"$f":"ADDRESS(33,12,1,1,$S$1)","v":"'LT Insurance Risk'!$L$33"},0.02,{"$f":"IF(INDIRECT(S71)=T71,0,1)","v":0},{"$f":"ADDRESS(23,6,1,1,$V$1)","v":"'LT Variable Annuity Gte Risk'!$F$23"},0.05,{"$f":"IF(INDIRECT(V71)=W71,0,1)","v":0}]
[{"$f":"ADDRESS(43,26,1,1,$A$1)","v":"Summary!$Z$43"},"=IF($N$60=0,1/13,Y43/$Y$54)",0,{"$f":"ADDRESS(44,6,1,1,$D$1)","v":"'Fixed Income Investments'!$F$44"},"=IF(D44<0,0,D44*E44)",{"$f":"IF(_xlfn.FORMULATEXT(INDIRECT(D72))=E72,0,1)","v":0},{"$f":"ADDRESS(51,4,1,1,$G$1)","v":"'Equity Investments'!$D$51"},"=D15+D29+D40+D49",{"$f":"IF(_xlfn.FORMULATEXT(INDIRECT(G72))=H72,0,1)","v":0},null,null,null,{"$f":"ADDRESS(29,4,1,1,$M$1)","v":"'Concentration Risk'!$D$29"},"=SUMIFS('Schedule XXI'!$M$8:$M$57,'Schedule XXI'!$K$8:$K$57,$D$22,'Schedule XXI'!$L$8:$L$57,$B29)",{"$f":"IF(_xlfn.FORMULATEXT(INDIRECT(M72))=N72,0,1)","v":0},null,null,null,{"$f":"ADDRESS(33,15,1,1,$S$1)","v":"'LT Insurance Risk'!$O$33"},"=D33*L33",{"$f":"IF(_xlfn.FORMULATEXT(INDIRECT(S72))=T72,0,1)","v":0},{"$f":"ADDRESS(23,8,1,1,$V$1)","v":"'LT Variable Annuity Gte Risk'!$H$23"},"='Schedule VIII (EBS)'!J33",{"$f":"IF(_xlfn.FORMULATEXT(INDIRECT(V72))=W72,0,1)","v":0}]
[{"$f":"ADDRESS(44,7,1,1,$A$1)","v":"Summary!$G$44"},"=+'Concentration Risk'!F111",0,{"$f":"ADDRESS(45,4,1,1,$D$1)","v":"'Fixed Income Investments'!$D$45"},"=+'Schedule II (EBS)'!L17+'Schedule IIA (EBS)'!L17",{"$f":"IF(_xlfn.FORMULATEXT(INDIRECT(D73))=E73,0,1)","v":0},{"$f":"ADDRESS(51,6,1,1,$G$1)","v":"'Equity Investments'!$F$51"},"=MAX(0,(F15+F29+F40+F49))",{"$f":"IF(_xlfn.FORMULATEXT(INDIRECT(G73))=H73,0,1)","v":0},null,null,null,{"$f":"ADDRESS(29,5,1,1,$M$1)","v":"'Concentration Risk'!$E$29"},0.15,{"$f":"IF(INDIRECT(M73)=N73,0,1)","v":0},null,null,null,{"$f":"ADDRESS(34,4,1,1,$S$1)","v":"'LT Insurance Risk'!$D$34"},"=+'Schedule VII (EBS)'!F23",{"$f":"IF(_xlfn.FORMULATEXT(INDIRECT(S73))=T73,0,1)","v":0},{"$f":"ADDRESS(23,9,1,1,$V$1)","v":"'LT Variable Annuity Gte Risk'!$I$23"},6.5000000000000002E-2,{"$f":"IF(INDIRECT(V73)=W73,0,1)","v":0}]
[{"$f":"ADDRESS(44,11,1,1,$A$1)","v":"Summary!$K$44"},"='Concentration Risk (Revised)'!F123",0,{"$f":"ADDRESS(45,5,1,1,$D$1)","v":"'Fixed Income Investments'!$E$45"},0.1,{"$f":"IF(INDIRECT(D74)=E74,0,1)","v":0},null,null,-74,null,null,null,{"$f":"ADDRESS(29,6,1,1,$M$1)","v":"'Concentration Risk'!$F$29"},"=MAX(0,(D29*E29))",{"$f":"IF(_xlfn.FORMULATEXT(INDIRECT(M74))=N74,0,1)","v":0},null,null,null,{"$f":"ADDRESS(34,12,1,1,$S$1)","v":"'LT Insurance Risk'!$L$34"},0.03,{"$f":"IF(INDIRECT(S74)=T74,0,1)","v":0},{"$f":"ADDRESS(23,11,1,1,$V$1)","v":"'LT Variable Annuity Gte Risk'!$K$23"},"='Schedule VIII (EBS)'!L33",{"$f":"IF(_xlfn.FORMULATEXT(INDIRECT(V74))=W74,0,1)","v":0}]
[{"$f":"ADDRESS(44,13,1,1,$A$1)","v":"Summary!$M$44"},"='Concentration Risk (Revised)'!F123",0,{"$f":"ADDRESS(45,6,1,1,$D$1)","v":"'Fixed Income Investments'!$F$45"},"=IF(D45<0,0,D45*E45)",{"$f":"IF(_xlfn.FORMULATEXT(INDIRECT(D75))=E75,0,1)","v":0},null,null,null,null,null,null,{"$f":"ADDRESS(30,2,1,1,$M$1)","v":"'Concentration Risk'!$B$30"},"BSCR Rating 7",{"$f":"IF(INDIRECT(M75)=N75,0,1)","v":0},null,null,null,{"$f":"ADDRESS(34,15,1,1,$S$1)","v":"'LT Insurance Risk'!$O$34"},"=D34*L34",{"$f":"IF(_xlfn.FORMULATEXT(INDIRECT(S75))=T75,0,1)","v":0},{"$f":"ADDRESS(23,12,1,1,$V$1)","v":"'LT Variable Annuity Gte Risk'!$L$23"},0.08,{"$f":"IF(INDIRECT(V75)=W75,0,1)","v":0}]
[{"$f":"ADDRESS(44,21,1,1,$A$1)","v":"Summary!$U$44"},"=G44",0,{"$f":"ADDRESS(46,4,1,1,$D$1)","v":"'Fixed Income Investments'!$D$46"},"=+'Schedule II (EBS)'!L18+'Schedule IIA (EBS)'!L18",{"$f":"IF(_xlfn.FORMULATEXT(INDIRECT(D76))=E76,0,1)","v":0},null,null,null,null,null,null,{"$f":"ADDRESS(30,4,1,1,$M$1)","v":"'Concentration Risk'!$D$30"},"=SUMIFS('Schedule XXI'!$M$8:$M$57,'Schedule XXI'!$K$8:$K$57,$D$22,'Schedule XXI'!$L$8:$L$57,$B30)",{"$f":"IF(_xlfn.FORMULATEXT(INDIRECT(M76))=N76,0,1)","v":0},null,null,null,{"$f":"ADDRESS(35,4,1,1,$S$1)","v":"'LT Insurance Risk'!$D$35"},"=+'Schedule VII (EBS)'!F24",{"$f":"IF(_xlfn.FORMULATEXT(INDIRECT(S76))=T76,0,1)","v":0},{"$f":"ADDRESS(23,23,1,1,$V$1)","v":"'LT Variable Annuity Gte Risk'!$W$23"},"=IF(ISERROR(OR(E23*F23+H23*I23+K23*L23,N23*O23+Q23*R23+T23*U23)),0,MAX(E23*F23+H23*I23+K23*L23,N23*O23+Q23*R23+T23*U23))",{"$f":"IF(_xlfn.FORMULATEXT(INDIRECT(V76))=W76,0,1)","v":0}]
[{"$f":"ADDRESS(44,23,1,1,$A$1)","v":"Summary!$W$44"},"=IF($G$60=0,1/13,U44/$U$54)",0,{"$f":"ADDRESS(46,5,1,1,$D$1)","v":"'Fixed Income Investments'!$E$46"},0.2,{"$f":"IF(INDIRECT(D77)=E77,0,1)","v":0},null,null,null,null,null,null,{"$f":"ADDRESS(30,5,1,1,$M$1)","v":"'Concentration Risk'!$E$30"},0.26300000000000001,{"$f":"IF(INDIRECT(M77)=N77,0,1)","v":0},null,null,null,{"$f":"ADDRESS(35,12,1,1,$S$1)","v":"'LT Insurance Risk'!$L$35"},0.04,{"$f":"IF(INDIRECT(S77)=T77,0,1)","v":0},{"$f":"ADDRESS(23,25,1,1,$V$1)","v":"'LT Variable Annuity Gte Risk'!$Y$23"},"='Schedule VIII (EBS)'!F16",{"$f":"IF(_xlfn.FORMULATEXT(INDIRECT(V77))=W77,0,1)","v":0}]
[{"$f":"ADDRESS(44,25,1,1,$A$1)","v":"Summary!$Y$44"},"=M44",0,{"$f":"ADDRESS(46,6,1,1,$D$1)","v":"'Fixed Income Investments'!$F$46"},"=IF(D46<0,0,D46*E46)",{"$f":"IF(_xlfn.FORMULATEXT(INDIRECT(D78))=E78,0,1)","v":0},null,null,null,null,null,null,{"$f":"ADDRESS(30,6,1,1,$M$1)","v":"'Concentration Risk'!$F$30"},"=MAX(0,(D30*E30))",{"$f":"IF(_xlfn.FORMULATEXT(INDIRECT(M78))=N78,0,1)","v":0},null,null,null,{"$f":"ADDRESS(35,15,1,1,$S$1)","v":"'LT Insurance Risk'!$O$35"},"=D35*L35",{"$f":"IF(_xlfn.FORMULATEXT(INDIRECT(S78))=T78,0,1)","v":0},{"$f":"ADDRESS(23,27,1,1,$V$1)","v":"'LT Variable Annuity Gte Risk'!$AA$23"},"=MAX(0,W23-Y23)",{"$f":"IF(_xlfn.FORMULATEXT(INDIRECT(V78))=W78,0,1)","v":0}]
[{"$f":"ADDRESS(44,26,1,1,$A$1)","v":"Summary!$Z$44"},"=IF($N$60=0,1/13,Y44/$Y$54)",0,{"$f":"ADDRESS(47,4,1,1,$D$1)","v":"'Fixed Income Investments'!$D$47"},"=+'Schedule II (EBS)'!L19+'Schedule IIA (EBS)'!L19",{"$f":"IF(_xlfn.FORMULATEXT(INDIRECT(D79))=E79,0,1)","v":0},null,null,null,null,null,null,{"$f":"ADDRESS(31,2,1,1,$M$1)","v":"'Concentration Risk'!$B$31"},"BSCR Rating 8",{"$f":"IF(INDIRECT(M79)=N79,0,1)","v":0},null,null,null,{"$f":"ADDRESS(36,4,1,1,$S$1)","v":"'LT Insurance Risk'!$D$36"},"=+'Schedule VII (EBS)'!F25",{"$f":"IF(_xlfn.FORMULATEXT(INDIRECT(S79))=T79,0,1)","v":0},{"$f":"ADDRESS(26,5,1,1,$V$1)","v":"'LT Variable Annuity Gte Risk'!$E$26"},"='Schedule VIII (EBS)'!H16",{"$f":"IF(_xlfn.FORMULATEXT(INDIRECT(V79))=W79,0,1)","v":0}]
[{"$f":"ADDRESS(45,21,1,1,$A$1)","v":"Summary!$U$45"},"=G47",0,{"$f":"ADDRESS(47,5,1,1,$D$1)","v":"'Fixed Income Investments'!$E$47"},0.3,{"$f":"IF(INDIRECT(D80)=E80,0,1)","v":0},null,null,null,null,null,null,{"$f":"ADDRESS(31,4,1,1,$M$1)","v":"'Concentration Risk'!$D$31"},"=SUMIFS('Schedule XXI'!$M$8:$M$57,'Schedule XXI'!$K$8:$K$57,$D$22,'Schedule XXI'!$L$8:$L$57,$B31)",{"$f":"IF(_xlfn.FORMULATEXT(INDIRECT(M80))=N80,0,1)","v":0},null,null,null,{"$f":"ADDRESS(36,12,1,1,$S$1)","v":"'LT Insurance Risk'!$L$36"},0.05,{"$f":"IF(INDIRECT(S80)=T80,0,1)","v":0},{"$f":"ADDRESS(26,6,1,1,$V$1)","v":"'LT Variable Annuity Gte Risk'!$F$26"},3.2500000000000001E-2,{"$f":"IF(INDIRECT(V80)=W80,0,1)","v":0}]
[{"$f":"ADDRESS(45,23,1,1,$A$1)","v":"Summary!$W$45"},"=IF($G$60=0,1/13,U45/$U$54)",0,{"$f":"ADDRESS(47,6,1,1,$D$1)","v":"'Fixed Income Investments'!$F$47"},"=IF(D47<0,0,D47*E47)",{"$f":"IF(_xlfn.FORMULATEXT(INDIRECT(D81))=E81,0,1)","v":0},null,null,null,null,null,null,{"$f":"ADDRESS(31,5,1,1,$M$1)","v":"'Concentration Risk'!$E$31"},0.35,{"$f":"IF(INDIRECT(M81)=N81,0,1)","v":0},null,null,null,{"$f":"ADDRESS(36,15,1,1,$S$1)","v":"'LT Insurance Risk'!$O$36"},"=D36*L36",{"$f":"IF(_xlfn.FORMULATEXT(INDIRECT(S81))=T81,0,1)","v":0},{"$f":"ADDRESS(26,8,1,1,$V$1)","v":"'LT Variable Annuity Gte Risk'!$H$26"},"='Schedule VIII (EBS)'!J16",{"$f":"IF(_xlfn.FORMULATEXT(INDIRECT(V81))=W81,0,1)","v":0}]
[{"$f":"ADDRESS(45,25,1,1,$A$1)","v":"Summary!$Y$45"},"=M47",0,{"$f":"ADDRESS(48,4,1,1,$D$1)","v":"'Fixed Income Investments'!$D$48"},"=+'Schedule II (EBS)'!L20+'Schedule IIA (EBS)'!L20",{"$f":"IF(_xlfn.FORMULATEXT(INDIRECT(D82))=E82,0,1)","v":0},null,null,null,null,null,null,{"$f":"ADDRESS(31,6,1,1,$M$1)","v":"'Concentration Risk'!$F$31"},"=MAX(0,(D31*E31))",{"$f":"IF(_xlfn.FORMULATEXT(INDIRECT(M82))=N82,0,1)","v":0},null,null,null,{"$f":"ADDRESS(37,4,1,1,$S$1)","v":"'LT Insurance Risk'!$D$37"},"=+'Schedule VII (EBS)'!F26",{"$f":"IF(_xlfn.FORMULATEXT(INDIRECT(S82))=T82,0,1)","v":0},{"$f":"ADDRESS(26,9,1,1,$V$1)","v":"'LT Variable Annuity Gte Risk'!$I$26"},4.2500000000000003E-2,{"$f":"IF(INDIRECT(V82)=W82,0,1)","v":0}]
[{"$f":"ADDRESS(45,26,1,1,$A$1)","v":"Summary!$Z$45"},"=IF($N$60=0,1/13,Y45/$Y$54)",0,{"$f":"ADDRESS(48,5,1,1,$D$1)","v":"'Fixed Income Investments'!$E$48"},0.35,{"$f":"IF(INDIRECT(D83)=E83,0,1)","v":0},null,null,null,null,null,null,{"$f":"ADDRESS(33,4,1,1,$M$1)","v":"'Concentration Risk'!$D$33"},"=SUM(D23:D31)",{"$f":"IF(_xlfn.FORMULATEXT(INDIRECT(M83))=N83,0,1)","v":0},null,null,null,{"$f":"ADDRESS(37,12,1,1,$S$1)","v":"'LT Insurance Risk'!$L$37"},0.06,{"$f":"IF(INDIRECT(S83)=T83,0,1)","v":0},{"$f":"ADDRESS(26,11,1,1,$V$1)","v":"'LT Variable Annuity Gte Risk'!$K$26"},"='Schedule VIII (EBS)'!L16",{"$f":"IF(_xlfn.FORMULATEXT(INDIRECT(V83))=W83,0,1)","v":0}]
[{"$f":"ADDRESS(46,12,1,1,$A$1)","v":"Summary!$L$46"},"=K47",0,{"$f":"ADDRESS(48,6,1,1,$D$1)","v":"'Fixed Income Investments'!$F$48"},"=IF(D48<0,0,D48*E48)",{"$f":"IF(_xlfn.FORMULATEXT(INDIRECT(D84))=E84,0,1)","v":0},null,null,null,null,null,null,{"$f":"ADDRESS(33,6,1,1,$M$1)","v":"'Concentration Risk'!$F$33"},"=SUM(F23:F31)",{"$f":"IF(_xlfn.FORMULATEXT(INDIRECT(M84))=N84,0,1)","v":0},null,null,null,{"$f":"ADDRESS(37,15,1,1,$S$1)","v":"'LT Insurance Risk'!$O$37"},"=D37*L37",{"$f":"IF(_xlfn.FORMULATEXT(INDIRECT(S84))=T84,0,1)","v":0},{"$f":"ADDRESS(26,12,1,1,$V$1)","v":"'LT Variable Annuity Gte Risk'!$L$26"},0.05,{"$f":"IF(INDIRECT(V84)=W84,0,1)","v":0}]
[{"$f":"ADDRESS(46,14,1,1,$A$1)","v":"Summary!$N$46"},"=M47",0,{"$f":"ADDRESS(51,4,1,1,$D$1)","v":"'Fixed Income Investments'!$D$51"},"=SUM(D41:D48)",{"$f":"IF(_xlfn.FORMULATEXT(INDIRECT(D85))=E85,0,1)","v":0},null,null,null,null,null,null,{"$f":"ADDRESS(35,4,1,1,$M$1)","v":"'Concentration Risk'!$D$35"},"Residential Mortgage-Backed Securities",{"$f":"IF(INDIRECT(M85)=N85,0,1)","v":0},null,null,null,{"$f":"ADDRESS(38,4,1,1,$S$1)","v":"'LT Insurance Risk'!$D$38"},"=+'Schedule VII (EBS)'!F27",{"$f":"IF(_xlfn.FORMULATEXT(INDIRECT(S85))=T85,0,1)","v":0},{"$f":"ADDRESS(26,14,1,1,$V$1)","v":"'LT Variable Annuity Gte Risk'!$N$26"},"='Schedule VIII (EBS)'!N16",{"$f":"IF(_xlfn.FORMULATEXT(INDIRECT(V85))=W85,0,1)","v":0}]
[{"$f":"ADDRESS(46,21,1,1,$A$1)","v":"Summary!$U$46"},"=G50",0,{"$f":"ADDRESS(51,6,1,1,$D$1)","v":"'Fixed Income Investments'!$F$51"},"=MAX(0,SUM(F41:F48))",{"$f":"IF(_xlfn.FORMULATEXT(INDIRECT(D86))=E86,0,1)","v":0},null,null,null,null,null,null,{"$f":"ADDRESS(36,2,1,1,$M$1)","v":"'Concentration Risk'!$B$36"},"BSCR Rating 0",{"$f":"IF(INDIRECT(M86)=N86,0,1)","v":0},null,null,null,{"$f":"ADDRESS(38,12,1,1,$S$1)","v":"'LT Insurance Risk'!$L$38"},7.0000000000000007E-2,{"$f":"IF(INDIRECT(S86)=T86,0,1)","v":0},{"$f":"ADDRESS(26,15,1,1,$V$1)","v":"'LT Variable Annuity Gte Risk'!$O$26"},0.6,{"$f":"IF(INDIRECT(V86)=W86,0,1)","v":0}]
[{"$f":"ADDRESS(46,23,1,1,$A$1)","v":"Summary!$W$46"},"=IF($G$60=0,1/13,U46/$U$54)",0,{"$f":"ADDRESS(56,4,1,1,$D$1)","v":"'Fixed Income Investments'!$D$56"},"='Schedule II (EBS)'!P12+'Schedule IIA (EBS)'!P12",{"$f":"IF(_xlfn.FORMULATEXT(INDIRECT(D87))=E87,0,1)","v":0},null,null,null,null,null,null,{"$f":"ADDRESS(36,4,1,1,$M$1)","v":"'Concentration Risk'!$D$36"},"=SUMIFS('Schedule XXI'!$M$8:$M$57,'Schedule XXI'!$K$8:$K$57,$D$35,'Schedule XXI'!$L$8:$L$57,$B36)",{"$f":"IF(_xlfn.FORMULATEXT(INDIRECT(M87))=N87,0,1)","v":0},null,null,null,{"$f":"ADDRESS(38,15,1,1,$S$1)","v":"'LT Insurance Risk'!$O$38"},"=D38*L38",{"$f":"IF(_xlfn.FORMULATEXT(INDIRECT(S87))=T87,0,1)","v":0},{"$f":"ADDRESS(26,17,1,1,$V$1)","v":"'LT Variable Annuity Gte Risk'!$Q$26"},"=+'Schedule VIII (EBS)'!P16",{"$f":"IF(_xlfn.FORMULATEXT(INDIRECT(V87))=W87,0,1)","v":0}]
[{"$f":"ADDRESS(46,25,1,1,$A$1)","v":"Summary!$Y$46"},"=M50",0,{"$f":"ADDRESS(56,5,1,1,$D$1)","v":"'Fixed Income Investments'!$E$56"},0,{"$f":"IF(INDIRECT(D88)=E88,0,1)","v":0},null,null,null,null,null,null,{"$f":"ADDRESS(36,5,1,1,$M$1)","v":"'Concentration Risk'!$E$36"},0,{"$f":"IF(INDIRECT(M88)=N88,0,1)","v":0},null,null,null,{"$f":"ADDRESS(41,4,1,1,$S$1)","v":"'LT Insurance Risk'!$D$41"},"='Schedule VII (EBS)'!F38",{"$f":"IF(_xlfn.FORMULATEXT(INDIRECT(S88))=T88,0,1)","v":0},{"$f":"ADDRESS(26,18,1,1,$V$1)","v":"'LT Variable Annuity Gte Risk'!$R$26"},0.75,{"$f":"IF(INDIRECT(V88)=W88,0,1)","v":0}]
[{"$f":"ADDRESS(46,26,1,1,$A$1)","v":"Summary!$Z$46"},"=IF($N$60=0,1/13,Y46/$Y$54)",0,{"$f":"ADDRESS(56,6,1,1,$D$1)","v":"'Fixed Income Investments'!$F$56"},"=IF(D56<0,0,D56*E56)",{"$f":"IF(_xlfn.FORMULATEXT(INDIRECT(D89))=E89,0,1)","v":0},null,null,null,null,null,null,{"$f":"ADDRESS(36,6,1,1,$M$1)","v":"'Concentration Risk'!$F$36"},"=MAX(0,(D36*E36))",{"$f":"IF(_xlfn.FORMULATEXT(INDIRECT(M89))=N89,0,1)","v":0},null,null,null,{"$f":"ADDRESS(41,12,1,1,$S$1)","v":"'LT Insurance Risk'!$L$41"},7.0000000000000007E-2,{"$f":"IF(INDIRECT(S89)=T89,0,1)","v":0},{"$f":"ADDRESS(26,20,1,1,$V$1)","v":"'LT Variable Annuity Gte Risk'!$T$26"},"=+'Schedule VIII (EBS)'!R16",{"$f":"IF(_xlfn.FORMULATEXT(INDIRECT(V89))=W89,0,1)","v":0}]
[{"$f":"ADDRESS(47,7,1,1,$A$1)","v":"Summary!$G$47"},"=ROUND('Credit Risk'!F42,$N$167)",0,{"$f":"ADDRESS(57,4,1,1,$D$1)","v":"'Fixed Income Investments'!$D$57"},"='Schedule II (EBS)'!P13+'Schedule IIA (EBS)'!P13",{"$f":"IF(_xlfn.FORMULATEXT(INDIRECT(D90))=E90,0,1)","v":0},null,null,null,null,null,null,{"$f":"ADDRESS(37,2,1,1,$M$1)","v":"'Concentration Risk'!$B$37"},"BSCR Rating 1",{"$f":"IF(INDIRECT(M90)=N90,0,1)","v":0},null,null,null,{"$f":"ADDRESS(41,15,1,1,$S$1)","v":"'LT Insurance Risk'!$O$41"},"=D41*L41",{"$f":"IF(_xlfn.FORMULATEXT(INDIRECT(S90))=T90,0,1)","v":0},{"$f":"ADDRESS(26,21,1,1,$V$1)","v":"'LT Variable Annuity Gte Risk'!$U$26"},0.9,{"$f":"IF(INDIRECT(V90)=W90,0,1)","v":0}]
[{"$f":"ADDRESS(47,11,1,1,$A$1)","v":"Summary!$K$47"},"=ROUND('Credit Risk (Revised)'!H59,$N$167)",0,{"$f":"ADDRESS(57,5,1,1,$D$1)","v":"'Fixed Income Investments'!$E$57"},4.0000000000000001E-3,{"$f":"IF(INDIRECT(D91)=E91,0,1)","v":0},null,null,null,null,null,null,{"$f":"ADDRESS(37,4,1,1,$M$1)","v":"'Concentration Risk'!$D$37"},"=SUMIFS('Schedule XXI'!$M$8:$M$57,'Schedule XXI'!$K$8:$K$57,$D$35,'Schedule XXI'!$L$8:$L$57,$B37)",{"$f":"IF(_xlfn.FORMULATEXT(INDIRECT(M91))=N91,0,1)","v":0},null,null,null,{"$f":"ADDRESS(42,4,1,1,$S$1)","v":"'LT Insurance Risk'!$D$42"},"='Schedule VII (EBS)'!F39",{"$f":"IF(_xlfn.FORMULATEXT(INDIRECT(S91))=T91,0,1)","v":0},{"$f":"ADDRESS(26,23,1,1,$V$1)","v":"'LT Variable Annuity Gte Risk'!$W$26"},"=IF(ISERROR(OR(E26*F26+H26*I26+K26*L26,N26*O26+Q26*R26+T26*U26)),0,MAX(E26*F26+H26*I26+K26*L26,N26*O26+Q26*R26+T26*U26))",{"$f":"IF(_xlfn.FORMULATEXT(INDIRECT(V91))=W91,0,1)","v":0}]
[{"$f":"ADDRESS(47,13,1,1,$A$1)","v":"Summary!$M$47"},"=ROUND('Credit Risk (Revised)'!H59,$N$167)",0,{"$f":"ADDRESS(57,6,1,1,$D$1)","v":"'Fixed Income Investments'!$F$57"},"=IF(D57<0,0,D57*E57)",{"$f":"IF(_xlfn.FORMULATEXT(INDIRECT(D92))=E92,0,1)","v":0},null,null,null,null,null,null,{"$f":"ADDRESS(37,5,1,1,$M$1)","v":"'Concentration Risk'!$E$37"},6.0000000000000001E-3,{"$f":"IF(INDIRECT(M92)=N92,0,1)","v":0},null,null,null,{"$f":"ADDRESS(42,12,1,1,$S$1)","v":"'LT Insurance Risk'!$L$42"},0.1,{"$f":"IF(INDIRECT(S92)=T92,0,1)","v":0},{"$f":"ADDRESS(26,25,1,1,$V$1)","v":"'LT Variable Annuity Gte Risk'!$Y$26"},"='Schedule VIII (EBS)'!F16",{"$f":"IF(_xlfn.FORMULATEXT(INDIRECT(V92))=W92,0,1)","v":0}]
[{"$f":"ADDRESS(47,21,1,1,$A$1)","v":"Summary!$U$47"},"=G51",0,{"$f":"ADDRESS(58,4,1,1,$D$1)","v":"'Fixed Income Investments'!$D$58"},"='Schedule II (EBS)'!P14+'Schedule IIA (EBS)'!P14",{"$f":"IF(_xlfn.FORMULATEXT(INDIRECT(D93))=E93,0,1)","v":0},null,null,null,null,null,null,{"$f":"ADDRESS(37,6,1,1,$M$1)","v":"'Concentration Risk'!$F$37"},"=MAX(0,(D37*E37))",{"$f":"IF(_xlfn.FORMULATEXT(INDIRECT(M93))=N93,0,1)","v":0},null,null,null,{"$f":"ADDRESS(42,15,1,1,$S$1)","v":"'LT Insurance Risk'!$O$42"},"=D42*L42",{"$f":"IF(_xlfn.FORMULATEXT(INDIRECT(S93))=T93,0,1)","v":0},{"$f":"ADDRESS(26,27,1,1,$V$1)","v":"'LT Variable Annuity Gte Risk'!$AA$26"},"=MAX(0,W26-Y26)",{"$f":"IF(_xlfn.FORMULATEXT(INDIRECT(V93))=W93,0,1)","v":0}]
[{"$f":"ADDRESS(47,23,1,1,$A$1)","v":"Summary!$W$47"},"=IF($G$60=0,1/13,U47/$U$54)",0,{"$f":"ADDRESS(58,5,1,1,$D$1)","v":"'Fixed Income Investments'!$E$58"},8.0000000000000002E-3,{"$f":"IF(INDIRECT(D94)=E94,0,1)","v":0},null,null,null,null,null,null,{"$f":"ADDRESS(38,2,1,1,$M$1)","v":"'Concentration Risk'!$B$38"},"BSCR Rating 2",{"$f":"IF(INDIRECT(M94)=N94,0,1)","v":0},null,null,null,{"$f":"ADDRESS(46,4,1,1,$S$1)","v":"'LT Insurance Risk'!$D$46"},"='Schedule VII (EBS)'!H33",{"$f":"IF(_xlfn.FORMULATEXT(INDIRECT(S94))=T94,0,1)","v":0},{"$f":"ADDRESS(27,5,1,1,$V$1)","v":"'LT Variable Annuity Gte Risk'!$E$27"},"='Schedule VIII (EBS)'!H34",{"$f":"IF(_xlfn.FORMULATEXT(INDIRECT(V94))=W94,0,1)","v":0}]
[{"$f":"ADDRESS(47,25,1,1,$A$1)","v":"Summary!$Y$47"},"=M51",0,{"$f":"ADDRESS(58,6,1,1,$D$1)","v":"'Fixed Income Investments'!$F$58"},"=IF(D58<0,0,D58*E58)",{"$f":"IF(_xlfn.FORMULATEXT(INDIRECT(D95))=E95,0,1)","v":0},null,null,null,null,null,null,{"$f":"ADDRESS(38,4,1,1,$M$1)","v":"'Concentration Risk'!$D$38"},"=SUMIFS('Schedule XXI'!$M$8:$M$57,'Schedule XXI'!$K$8:$K$57,$D$35,'Schedule XXI'!$L$8:$L$57,$B38)",{"$f":"IF(_xlfn.FORMULATEXT(INDIRECT(M95))=N95,0,1)","v":0},null,null,null,{"$f":"ADDRESS(46,5,1,1,$S$1)","v":"'LT Insurance Risk'!$E$46"},"='Schedule VII (EBS)'!I33",{"$f":"IF(_xlfn.FORMULATEXT(INDIRECT(S95))=T95,0,1)","v":0},{"$f":"ADDRESS(27,6,1,1,$V$1)","v":"'LT Variable Annuity Gte Risk'!$F$27"},3.2500000000000001E-2,{"$f":"IF(INDIRECT(V95)=W95,0,1)","v":0}]
[{"$f":"ADDRESS(47,26,1,1,$A$1)","v":"Summary!$Z$47"},"=IF($N$60=0,1/13,Y47/$Y$54)",0,{"$f":"ADDRESS(59,4,1,1,$D$1)","v":"'Fixed Income Investments'!$D$59"},"='Schedule II (EBS)'!P15+'Schedule IIA (EBS)'!P15",{"$f":"IF(_xlfn.FORMULATEXT(INDIRECT(D96))=E96,0,1)","v":0},null,null,null,null,null,null,{"$f":"ADDRESS(38,5,1,1,$M$1)","v":"'Concentration Risk'!$E$38"},1.2E-2,{"$f":"IF(INDIRECT(M96)=N96,0,1)","v":0},null,null,null,{"$f":"ADDRESS(46,12,1,1,$S$1)","v":"'LT Insurance Risk'!$L$46"},"=M46*0.75",{"$f":"IF(_xlfn.FORMULATEXT(INDIRECT(S96))=T96,0,1)","v":0},{"$f":"ADDRESS(27,8,1,1,$V$1)","v":"'LT Variable Annuity Gte Risk'!$H$27"},"='Schedule VIII (EBS)'!J34",{"$f":"IF(_xlfn.FORMULATEXT(INDIRECT(V96))=W96,0,1)","v":0}]
[{"$f":"ADDRESS(48,21,1,1,$A$1)","v":"Summary!$U$48"},"=G52",0,{"$f":"ADDRESS(59,5,1,1,$D$1)","v":"'Fixed Income Investments'!$E$59"},1.4999999999999999E-2,{"$f":"IF(INDIRECT(D97)=E97,0,1)","v":0},null,null,null,null,null,null,{"$f":"ADDRESS(38,6,1,1,$M$1)","v":"'Concentration Risk'!$F$38"},"=MAX(0,(D38*E38))",{"$f":"IF(_xlfn.FORMULATEXT(INDIRECT(M97))=N97,0,1)","v":0},null,null,null,{"$f":"ADDRESS(46,13,1,1,$S$1)","v":"'LT Insurance Risk'!$M$46"},0.12,{"$f":"IF(INDIRECT(S97)=T97,0,1)","v":0},{"$f":"ADDRESS(27,9,1,1,$V$1)","v":"'LT Variable Annuity Gte Risk'!$I$27"},4.2500000000000003E-2,{"$f":"IF(INDIRECT(V97)=W97,0,1)","v":0}]
[{"$f":"ADDRESS(48,23,1,1,$A$1)","v":"Summary!$W$48"},"=IF($G$60=0,1/13,U48/$U$54)",0,{"$f":"ADDRESS(59,6,1,1,$D$1)","v":"'Fixed Income Investments'!$F$59"},"=IF(D59<0,0,D59*E59)",{"$f":"IF(_xlfn.FORMULATEXT(INDIRECT(D98))=E98,0,1)","v":0},null,null,null,null,null,null,{"$f":"ADDRESS(39,2,1,1,$M$1)","v":"'Concentration Risk'!$B$39"},"BSCR Rating 3",{"$f":"IF(INDIRECT(M98)=N98,0,1)","v":0},null,null,null,{"$f":"ADDRESS(46,15,1,1,$S$1)","v":"'LT Insurance Risk'!$O$46"},"=D46*L46+E46*M46",{"$f":"IF(_xlfn.FORMULATEXT(INDIRECT(S98))=T98,0,1)","v":0},{"$f":"ADDRESS(27,11,1,1,$V$1)","v":"'LT Variable Annuity Gte Risk'!$K$27"},"='Schedule VIII (EBS)'!L34",{"$f":"IF(_xlfn.FORMULATEXT(INDIRECT(V98))=W98,0,1)","v":0}]
[{"$f":"ADDRESS(48,25,1,1,$A$1)","v":"Summary!$Y$48"},"=M52",0,{"$f":"ADDRESS(60,4,1,1,$D$1)","v":"'Fixed Income Investments'!$D$60"},"='Schedule II (EBS)'!P16+'Schedule IIA (EBS)'!P16",{"$f":"IF(_xlfn.FORMULATEXT(INDIRECT(D99))=E99,0,1)","v":0},null,null,null,null,null,null,{"$f":"ADDRESS(39,4,1,1,$M$1)","v":"'Concentration Risk'!$D$39"},"=SUMIFS('Schedule XXI'!$M$8:$M$57,'Schedule XXI'!$K$8:$K$57,$D$35,'Schedule XXI'!$L$8:$L$57,$B39)",{"$f":"IF(_xlfn.FORMULATEXT(INDIRECT(M99))=N99,0,1)","v":0},null,null,null,{"$f":"ADDRESS(47,4,1,1,$S$1)","v":"'LT Insurance Risk'!$D$47"},"='Schedule VII (EBS)'!H34",{"$f":"IF(_xlfn.FORMULATEXT(INDIRECT(S99))=T99,0,1)","v":0},{"$f":"ADDRESS(27,12,1,1,$V$1)","v":"'LT Variable Annuity Gte Risk'!$L$27"},0.05,{"$f":"IF(INDIRECT(V99)=W99,0,1)","v":0}]
[{"$f":"ADDRESS(48,26,1,1,$A$1)","v":"Summary!$Z$48"},"=IF($N$60=0,1/13,Y48/$Y$54)",{"$f":"IF(_xlfn.FORMULATEXT(INDIRECT(A100))=B100,0,1)","v":0},{"$f":"ADDRESS(60,5,1,1,$D$1)","v":"'Fixed Income Investments'!$E$60"},0.03,{"$f":"IF(INDIRECT(D100)=E100,0,1)","v":0},null,null,null,null,null,null,{"$f":"ADDRESS(39,5,1,1,$M$1)","v":"'Concentration Risk'!$E$39"},0.02,{"$f":"IF(INDIRECT(M100)=N100,0,1)","v":0},null,null,null,{"$f":"ADDRESS(47,5,1,1,$S$1)","v":"'LT Insurance Risk'!$E$47"},"='Schedule VII (EBS)'!I34",{"$f":"IF(_xlfn.FORMULATEXT(INDIRECT(S100))=T100,0,1)","v":0},{"$f":"ADDRESS(27,23,1,1,$V$1)","v":"'LT Variable Annuity Gte Risk'!$W$27"},"=IF(ISERROR(OR(E27*F27+H27*I27+K27*L27,N27*O27+Q27*R27+T27*U27)),0,MAX(E27*F27+H27*I27+K27*L27,N27*O27+Q27*R27+T27*U27))",{"$f":"IF(_xlfn.FORMULATEXT(INDIRECT(V100))=W100,0,1)","v":0}]
[{"$f":"ADDRESS(49,12,1,1,$A$1)","v":"Summary!$L$49"},"{=SQRT(MMULT(TRANSPOSE(K50:K56),MMULT('Correlation Matrix'!I7:O13,K50:K56)))}",0,{"$f":"ADDRESS(60,6,1,1,$D$1)","v":"'Fixed Income Investments'!$F$60"},"=IF(D60<0,0,D60*E60)",{"$f":"IF(_xlfn.FORMULATEXT(INDIRECT(D101))=E101,0,1)","v":0},null,null,null,null,null,null,{"$f":"ADDRESS(39,6,1,1,$M$1)","v":"'Concentration Risk'!$F$39"},"=MAX(0,(D39*E39))",{"$f":"IF(_xlfn.FORMULATEXT(INDIRECT(M101))=N101,0,1)","v":0},null,null,null,{"$f":"ADDRESS(47,12,1,1,$S$1)","v":"'LT Insurance Risk'!$L$47"},"=M47*0.75",{"$f":"IF(_xlfn.FORMULATEXT(INDIRECT(S101))=T101,0,1)","v":0},{"$f":"ADDRESS(27,25,1,1,$V$1)","v":"'LT Variable Annuity Gte Risk'!$Y$27"},"='Schedule VIII (EBS)'!F17",{"$f":"IF(_xlfn.FORMULATEXT(INDIRECT(V101))=W101,0,1)","v":0}]
[{"$f":"ADDRESS(49,14,1,1,$A$1)","v":"Summary!$N$49"},"{=SQRT(MMULT(TRANSPOSE(M50:M56),MMULT('Correlation Matrix'!I7:O13,M50:M56)))}",0,{"$f":"ADDRESS(61,4,1,1,$D$1)","v":"'Fixed Income Investments'!$D$61"},"='Schedule II (EBS)'!P17+'Schedule IIA (EBS)'!P17",{"$f":"IF(_xlfn.FORMULATEXT(INDIRECT(D102))=E102,0,1)","v":0},null,null,null,null,null,null,{"$f":"ADDRESS(40,2,1,1,$M$1)","v":"'Concentration Risk'!$B$40"},"BSCR Rating 4",{"$f":"IF(INDIRECT(M102)=N102,0,1)","v":0},null,null,null,{"$f":"ADDRESS(47,13,1,1,$S$1)","v":"'LT Insurance Risk'!$M$47"},0.2,{"$f":"IF(INDIRECT(S102)=T102,0,1)","v":0},{"$f":"ADDRESS(27,27,1,1,$V$1)","v":"'LT Variable Annuity Gte Risk'!$AA$27"},"=MAX(0,W27-Y27)",{"$f":"IF(_xlfn.FORMULATEXT(INDIRECT(V102))=W102,0,1)","v":0}]
[{"$f":"ADDRESS(49,21,1,1,$A$1)","v":"Summary!$U$49"},"=G53",0,{"$f":"ADDRESS(61,5,1,1,$D$1)","v":"'Fixed Income Investments'!$E$61"},0.08,{"$f":"IF(INDIRECT(D103)=E103,0,1)","v":0},null,null,null,null,null,null,{"$f":"ADDRESS(40,4,1,1,$M$1)","v":"'Concentration Risk'!$D$40"},"=SUMIFS('Schedule XXI'!$M$8:$M$57,'Schedule XXI'!$K$8:$K$57,$D$35,'Schedule XXI'!$L$8:$L$57,$B40)",{"$f":"IF(_xlfn.FORMULATEXT(INDIRECT(M103))=N103,0,1)","v":0},null,null,null,{"$f":"ADDRESS(47,15,1,1,$S$1)","v":"'LT Insurance Risk'!$O$47"},"=D47*L47+E47*M47",{"$f":"IF(_xlfn.FORMULATEXT(INDIRECT(S103))=T103,0,1)","v":0},{"$f":"ADDRESS(30,5,1,1,$V$1)","v":"'LT Variable Annuity Gte Risk'!$E$30"},"='Schedule VIII (EBS)'!H17",{"$f":"IF(_xlfn.FORMULATEXT(INDIRECT(V103))=W103,0,1)","v":0}]
[{"$f":"ADDRESS(49,23,1,1,$A$1)","v":"Summary!$W$49"},"=IF($G$60=0,1/13,U49/$U$54)",0,{"$f":"ADDRESS(61,6,1,1,$D$1)","v":"'Fixed Income Investments'!$F$61"},"=IF(D61<0,0,D61*E61)",{"$f":"IF(_xlfn.FORMULATEXT(INDIRECT(D104))=E104,0,1)","v":0},null,null,null,null,null,null,{"$f":"ADDRESS(40,5,1,1,$M$1)","v":"'Concentration Risk'!$E$40"},0.04,{"$f":"IF(INDIRECT(M104)=N104,0,1)","v":0},null,null,null,{"$f":"ADDRESS(48,4,1,1,$S$1)","v":"'LT Insurance Risk'!$D$48"},"='Schedule VII (EBS)'!H35",{"$f":"IF(_xlfn.FORMULATEXT(INDIRECT(S104))=T104,0,1)","v":0},{"$f":"ADDRESS(30,6,1,1,$V$1)","v":"'LT Variable Annuity Gte Risk'!$F$30"},0,{"$f":"IF(INDIRECT(V104)=W104,0,1)","v":0}]
[{"$f":"ADDRESS(49,25,1,1,$A$1)","v":"Summary!$Y$49"},"=M53",0,{"$f":"ADDRESS(62,4,1,1,$D$1)","v":"'Fixed Income Investments'!$D$62"},"='Schedule II (EBS)'!P18+'Schedule IIA (EBS)'!P18",{"$f":"IF(_xlfn.FORMULATEXT(INDIRECT(D105))=E105,0,1)","v":0},null,null,null,null,null,null,{"$f":"ADDRESS(40,6,1,1,$M$1)","v":"'Concentration Risk'!$F$40"},"=MAX(0,(D40*E40))",{"$f":"IF(_xlfn.FORMULATEXT(INDIRECT(M105))=N105,0,1)","v":0},null,null,null,{"$f":"ADDRESS(48,5,1,1,$S$1)","v":"'LT Insurance Risk'!$E$48"},"='Schedule VII (EBS)'!I35",{"$f":"IF(_xlfn.FORMULATEXT(INDIRECT(S105))=T105,0,1)","v":0},{"$f":"ADDRESS(30,8,1,1,$V$1)","v":"'LT Variable Annuity Gte Risk'!$H$30"},"='Schedule VIII (EBS)'!J17",{"$f":"IF(_xlfn.FORMULATEXT(INDIRECT(V105))=W105,0,1)","v":0}]
[{"$f":"ADDRESS(49,26,1,1,$A$1)","v":"Summary!$Z$49"},"=IF($N$60=0,1/13,Y49/$Y$54)",0,{"$f":"ADDRESS(62,5,1,1,$D$1)","v":"'Fixed Income Investments'!$E$62"},0.15,{"$f":"IF(INDIRECT(D106)=E106,0,1)","v":0},null,null,null,null,null,null,{"$f":"ADDRESS(41,2,1,1,$M$1)","v":"'Concentration Risk'!$B$41"},"BSCR Rating 5",{"$f":"IF(INDIRECT(M106)=N106,0,1)","v":0},null,null,null,{"$f":"ADDRESS(48,12,1,1,$S$1)","v":"'LT Insurance Risk'!$L$48"},"=M48*0.75",{"$f":"IF(_xlfn.FORMULATEXT(INDIRECT(S106))=T106,0,1)","v":0},{"$f":"ADDRESS(30,9,1,1,$V$1)","v":"'LT Variable Annuity Gte Risk'!$I$30"},5.0000000000000001E-3,{"$f":"IF(INDIRECT(V106)=W106,0,1)","v":0}]
[{"$f":"ADDRESS(50,7,1,1,$A$1)","v":"Summary!$G$50"},"=ROUND('LT Insurance Risk'!O60,$N$167)",0,{"$f":"ADDRESS(62,6,1,1,$D$1)","v":"'Fixed Income Investments'!$F$62"},"=IF(D62<0,0,D62*E62)",{"$f":"IF(_xlfn.FORMULATEXT(INDIRECT(D107))=E107,0,1)","v":0},null,null,null,null,null,null,{"$f":"ADDRESS(41,4,1,1,$M$1)","v":"'Concentration Risk'!$D$41"},"=SUMIFS('Schedule XXI'!$M$8:$M$57,'Schedule XXI'!$K$8:$K$57,$D$35,'Schedule XXI'!$L$8:$L$57,$B41)",{"$f":"IF(_xlfn.FORMULATEXT(INDIRECT(M107))=N107,0,1)","v":0},null,null,null,{"$f":"ADDRESS(48,13,1,1,$S$1)","v":"'LT Insurance Risk'!$M$48"},0.3,{"$f":"IF(INDIRECT(S107)=T107,0,1)","v":0},{"$f":"ADDRESS(30,11,1,1,$V$1)","v":"'LT Variable Annuity Gte Risk'!$K$30"},"='Schedule VIII (EBS)'!L17",{"$f":"IF(_xlfn.FORMULATEXT(INDIRECT(V107))=W107,0,1)","v":0}]
[{"$f":"ADDRESS(50,11,1,1,$A$1)","v":"Summary!$K$50"},"=ROUND('LT Insurance Risk'!O60,$N$167)",0,{"$f":"ADDRESS(63,4,1,1,$D$1)","v":"'Fixed Income Investments'!$D$63"},"='Schedule II (EBS)'!P19+'Schedule IIA (EBS)'!P19",{"$f":"IF(_xlfn.FORMULATEXT(INDIRECT(D108))=E108,0,1)","v":0},null,null,null,null,null,null,{"$f":"ADDRESS(41,5,1,1,$M$1)","v":"'Concentration Risk'!$E$41"},0.11,{"$f":"IF(INDIRECT(M108)=N108,0,1)","v":0},null,null,null,{"$f":"ADDRESS(48,15,1,1,$S$1)","v":"'LT Insurance Risk'!$O$48"},"=D48*L48+E48*M48",{"$f":"IF(_xlfn.FORMULATEXT(INDIRECT(S108))=T108,0,1)","v":0},{"$f":"ADDRESS(30,12,1,1,$V$1)","v":"'LT Variable Annuity Gte Risk'!$L$30"},0.01,{"$f":"IF(INDIRECT(V108)=W108,0,1)","v":0}]
[{"$f":"ADDRESS(50,13,1,1,$A$1)","v":"Summary!$M$50"},"=ROUND('LT Insurance Risk'!O60,$N$167)",0,{"$f":"ADDRESS(63,5,1,1,$D$1)","v":"'Fixed Income Investments'!$E$63"},0.26300000000000001,{"$f":"IF(INDIRECT(D109)=E109,0,1)","v":0},null,null,null,null,null,null,{"$f":"ADDRESS(41,6,1,1,$M$1)","v":"'Concentration Risk'!$F$41"},"=MAX(0,(D41*E41))",{"$f":"IF(_xlfn.FORMULATEXT(INDIRECT(M109))=N109,0,1)","v":0},null,null,null,{"$f":"ADDRESS(51,4,1,1,$S$1)","v":"'LT Insurance Risk'!$D$51"},"='Schedule VII (EBS)'!J37",{"$f":"IF(_xlfn.FORMULATEXT(INDIRECT(S109))=T109,0,1)","v":0},{"$f":"ADDRESS(30,14,1,1,$V$1)","v":"'LT Variable Annuity Gte Risk'!$N$30"},"='Schedule VIII (EBS)'!N17",{"$f":"IF(_xlfn.FORMULATEXT(INDIRECT(V109))=W109,0,1)","v":0}]
[{"$f":"ADDRESS(50,21,1,1,$A$1)","v":"Summary!$U$50"},"=G54",0,{"$f":"ADDRESS(63,6,1,1,$D$1)","v":"'Fixed Income Investments'!$F$63"},"=IF(D63<0,0,D63*E63)",{"$f":"IF(_xlfn.FORMULATEXT(INDIRECT(D110))=E110,0,1)","v":0},null,null,null,null,null,null,{"$f":"ADDRESS(42,2,1,1,$M$1)","v":"'Concentration Risk'!$B$42"},"BSCR Rating 6",{"$f":"IF(INDIRECT(M110)=N110,0,1)","v":0},null,null,null,{"$f":"ADDRESS(51,12,1,1,$S$1)","v":"'LT Insurance Risk'!$L$51"},0.12,{"$f":"IF(INDIRECT(S110)=T110,0,1)","v":0},{"$f":"ADDRESS(30,15,1,1,$V$1)","v":"'LT Variable Annuity Gte Risk'!$O$30"},0.01,{"$f":"IF(INDIRECT(V110)=W110,0,1)","v":0}]
[{"$f":"ADDRESS(50,23,1,1,$A$1)","v":"Summary!$W$50"},"=IF($G$60=0,1/13,U50/$U$54)",0,{"$f":"ADDRESS(64,4,1,1,$D$1)","v":"'Fixed Income Investments'!$D$64"},"='Schedule II (EBS)'!P20+'Schedule IIA (EBS)'!P20",{"$f":"IF(_xlfn.FORMULATEXT(INDIRECT(D111))=E111,0,1)","v":0},null,null,null,null,null,null,{"$f":"ADDRESS(42,4,1,1,$M$1)","v":"'Concentration Risk'!$D$42"},"=SUMIFS('Schedule XXI'!$M$8:$M$57,'Schedule XXI'!$K$8:$K$57,$D$35,'Schedule XXI'!$L$8:$L$57,$B42)",{"$f":"IF(_xlfn.FORMULATEXT(INDIRECT(M111))=N111,0,1)","v":0},null,null,null,{"$f":"ADDRESS(51,15,1,1,$S$1)","v":"'LT Insurance Risk'!$O$51"},"=D51*L51",{"$f":"IF(_xlfn.FORMULATEXT(INDIRECT(S111))=T111,0,1)","v":0},{"$f":"ADDRESS(30,17,1,1,$V$1)","v":"'LT Variable Annuity Gte Risk'!$Q$30"},"=+'Schedule VIII (EBS)'!P17",{"$f":"IF(_xlfn.FORMULATEXT(INDIRECT(V111))=W111,0,1)","v":0}]
[{"$f":"ADDRESS(50,25,1,1,$A$1)","v":"Summary!$Y$50"},"=M54",0,{"$f":"ADDRESS(64,5,1,1,$D$1)","v":"'Fixed Income Investments'!$E$64"},0.35,{"$f":"IF(INDIRECT(D112)=E112,0,1)","v":0},null,null,null,null,null,null,{"$f":"ADDRESS(42,5,1,1,$M$1)","v":"'Concentration Risk'!$E$42"},0.25,{"$f":"IF(INDIRECT(M112)=N112,0,1)","v":0},null,null,null,{"$f":"ADDRESS(55,4,1,1,$S$1)","v":"'LT Insurance Risk'!$D$55"},"='Schedule VII (EBS)'!J43",{"$f":"IF(_xlfn.FORMULATEXT(INDIRECT(S112))=T112,0,1)","v":0},{"$f":"ADDRESS(30,18,1,1,$V$1)","v":"'LT Variable Annuity Gte Risk'!$R$30"},0.09,{"$f":"IF(INDIRECT(V112)=W112,0,1)","v":0}]
[{"$f":"ADDRESS(50,26,1,1,$A$1)","v":"Summary!$Z$50"},"=IF($N$60=0,1/13,Y50/$Y$54)",0,{"$f":"ADDRESS(64,6,1,1,$D$1)","v":"'Fixed Income Investments'!$F$64"},"=IF(D64<0,0,D64*E64)",{"$f":"IF(_xlfn.FORMULATEXT(INDIRECT(D113))=E113,0,1)","v":0},null,null,null,null,null,null,{"$f":"ADDRESS(42,6,1,1,$M$1)","v":"'Concentration Risk'!$F$42"},"=MAX(0,(D42*E42))",{"$f":"IF(_xlfn.FORMULATEXT(INDIRECT(M113))=N113,0,1)","v":0},null,null,null,{"$f":"ADDRESS(55,12,1,1,$S$1)","v":"'LT Insurance Risk'!$L$55"},0.5,{"$f":"IF(INDIRECT(S113)=T113,0,1)","v":0},{"$f":"ADDRESS(30,20,1,1,$V$1)","v":"'LT Variable Annuity Gte Risk'!$T$30"},"=+'Schedule VIII (EBS)'!R17",{"$f":"IF(_xlfn.FORMULATEXT(INDIRECT(V113))=W113,0,1)","v":0}]
[{"$f":"ADDRESS(51,7,1,1,$A$1)","v":"Summary!$G$51"},"=ROUND('LT Insurance Risk'!O61,$N$167)",0,{"$f":"ADDRESS(66,4,1,1,$D$1)","v":"'Fixed Income Investments'!$D$66"},"=SUM(D56:D64)",{"$f":"IF(_xlfn.FORMULATEXT(INDIRECT(D114))=E114,0,1)","v":0},null,null,null,null,null,null,{"$f":"ADDRESS(43,2,1,1,$M$1)","v":"'Concentration Risk'!$B$43"},"BSCR Rating 7",{"$f":"IF(INDIRECT(M114)=N114,0,1)","v":0},null,null,null,{"$f":"ADDRESS(55,15,1,1,$S$1)","v":"'LT Insurance Risk'!$O$55"},"=D55*L55",{"$f":"IF(_xlfn.FORMULATEXT(INDIRECT(S114))=T114,0,1)","v":0},{"$f":"ADDRESS(30,21,1,1,$V$1)","v":"'LT Variable Annuity Gte Risk'!$U$30"},0.17,{"$f":"IF(INDIRECT(V114)=W114,0,1)","v":0}]
[{"$f":"ADDRESS(51,11,1,1,$A$1)","v":"Summary!$K$51"},"=ROUND('LT Insurance Risk'!O61,$N$167)",0,{"$f":"ADDRESS(66,6,1,1,$D$1)","v":"'Fixed Income Investments'!$F$66"},"=MAX(0,SUM(F56:F64))",{"$f":"IF(_xlfn.FORMULATEXT(INDIRECT(D115))=E115,0,1)","v":0},null,null,null,null,null,null,{"$f":"ADDRESS(43,4,1,1,$M$1)","v":"'Concentration Risk'!$D$43"},"=SUMIFS('Schedule XXI'!$M$8:$M$57,'Schedule XXI'!$K$8:$K$57,$D$35,'Schedule XXI'!$L$8:$L$57,$B43)",{"$f":"IF(_xlfn.FORMULATEXT(INDIRECT(M115))=N115,0,1)","v":0},null,null,null,{"$f":"ADDRESS(56,4,1,1,$S$1)","v":"'LT Insurance Risk'!$D$56"},"='Schedule VII (EBS)'!J44",{"$f":"IF(_xlfn.FORMULATEXT(INDIRECT(S115))=T115,0,1)","v":0},{"$f":"ADDRESS(30,23,1,1,$V$1)","v":"'LT Variable Annuity Gte Risk'!$W$30"},"=IF(ISERROR(OR(E30*F30+H30*I30+K30*L30,N30*O30+Q30*R30+T30*U30)),0,MAX(E30*F30+H30*I30+K30*L30,N30*O30+Q30*R30+T30*U30))",{"$f":"IF(_xlfn.FORMULATEXT(INDIRECT(V115))=W115,0,1)","v":0}]
[{"$f":"ADDRESS(51,13,1,1,$A$1)","v":"Summary!$M$51"},"=ROUND('LT Insurance Risk'!O61,$N$167)",0,{"$f":"ADDRESS(70,4,1,1,$D$1)","v":"'Fixed Income Investments'!$D$70"},"=+'Schedule II (EBS)'!D57+'Schedule IIA (EBS)'!D57",{"$f":"IF(_xlfn.FORMULATEXT(INDIRECT(D116))=E116,0,1)","v":0},null,null,null,null,null,null,{"$f":"ADDRESS(43,5,1,1,$M$1)","v":"'Concentration Risk'!$E$43"},0.35,{"$f":"IF(INDIRECT(M116)=N116,0,1)","v":0},null,null,null,{"$f":"ADDRESS(56,12,1,1,$S$1)","v":"'LT Insurance Risk'!$L$56"},0.25,{"$f":"IF(INDIRECT(S116)=T116,0,1)","v":0},{"$f":"ADDRESS(30,25,1,1,$V$1)","v":"'LT Variable Annuity Gte Risk'!$Y$30"},"='Schedule VIII (EBS)'!F17",{"$f":"IF(_xlfn.FORMULATEXT(INDIRECT(V116))=W116,0,1)","v":0}]
[{"$f":"ADDRESS(51,21,1,1,$A$1)","v":"Summary!$U$51"},"=G55",0,{"$f":"ADDRESS(70,5,1,1,$D$1)","v":"'Fixed Income Investments'!$E$70"},3.0000000000000001E-3,{"$f":"IF(INDIRECT(D117)=E117,0,1)","v":0},null,null,null,null,null,null,{"$f":"ADDRESS(43,6,1,1,$M$1)","v":"'Concentration Risk'!$F$43"},"=MAX(0,(D43*E43))",{"$f":"IF(_xlfn.FORMULATEXT(INDIRECT(M117))=N117,0,1)","v":0},null,null,null,{"$f":"ADDRESS(56,15,1,1,$S$1)","v":"'LT Insurance Risk'!$O$56"},"=D56*L56",{"$f":"IF(_xlfn.FORMULATEXT(INDIRECT(S117))=T117,0,1)","v":0},{"$f":"ADDRESS(30,27,1,1,$V$1)","v":"'LT Variable Annuity Gte Risk'!$AA$30"},"=MAX(0,W30-Y30)",{"$f":"IF(_xlfn.FORMULATEXT(INDIRECT(V117))=W117,0,1)","v":0}]
[{"$f":"ADDRESS(51,23,1,1,$A$1)","v":"Summary!$W$51"},"=IF($G$60=0,1/13,U51/$U$54)",0,{"$f":"ADDRESS(70,6,1,1,$D$1)","v":"'Fixed Income Investments'!$F$70"},"=IF(D70<0,0,D70*E70)",{"$f":"IF(_xlfn.FORMULATEXT(INDIRECT(D118))=E118,0,1)","v":0},null,null,null,null,null,null,{"$f":"ADDRESS(44,2,1,1,$M$1)","v":"'Concentration Risk'!$B$44"},"BSCR Rating 8",{"$f":"IF(INDIRECT(M118)=N118,0,1)","v":0},null,null,null,{"$f":"ADDRESS(60,15,1,1,$S$1)","v":"'LT Insurance Risk'!$O$60"},"=MAX(0,N16+O16)",0,{"$f":"ADDRESS(31,5,1,1,$V$1)","v":"'LT Variable Annuity Gte Risk'!$E$31"},"='Schedule VIII (EBS)'!H35",{"$f":"IF(_xlfn.FORMULATEXT(INDIRECT(V118))=W118,0,1)","v":0}]
[{"$f":"ADDRESS(51,25,1,1,$A$1)","v":"Summary!$Y$51"},"=M55",0,{"$f":"ADDRESS(71,4,1,1,$D$1)","v":"'Fixed Income Investments'!$D$71"},"=+'Schedule II (EBS)'!D58+'Schedule IIA (EBS)'!D58",{"$f":"IF(_xlfn.FORMULATEXT(INDIRECT(D119))=E119,0,1)","v":0},null,null,null,null,null,null,{"$f":"ADDRESS(44,4,1,1,$M$1)","v":"'Concentration Risk'!$D$44"},"=SUMIFS('Schedule XXI'!$M$8:$M$57,'Schedule XXI'!$K$8:$K$57,$D$35,'Schedule XXI'!$L$8:$L$57,$B44)",{"$f":"IF(_xlfn.FORMULATEXT(INDIRECT(M119))=N119,0,1)","v":0},null,null,null,{"$f":"ADDRESS(61,15,1,1,$S$1)","v":"'LT Insurance Risk'!$O$61"},"=MAX(0,O55)",0,{"$f":"ADDRESS(31,6,1,1,$V$1)","v":"'LT Variable Annuity Gte Risk'!$F$31"},0,{"$f":"IF(INDIRECT(V119)=W119,0,1)","v":0}]
[{"$f":"ADDRESS(51,26,1,1,$A$1)","v":"Summary!$Z$51"},"=IF($N$60=0,1/13,Y51/$Y$54)",0,{"$f":"ADDRESS(71,5,1,1,$D$1)","v":"'Fixed Income Investments'!$E$71"},0.05,{"$f":"IF(INDIRECT(D120)=E120,0,1)","v":0},null,null,null,null,null,null,{"$f":"ADDRESS(44,5,1,1,$M$1)","v":"'Concentration Risk'!$E$44"},0.35,{"$f":"IF(INDIRECT(M120)=N120,0,1)","v":0},null,null,null,{"$f":"ADDRESS(62,15,1,1,$S$1)","v":"'LT Insurance Risk'!$O$62"},"=MAX(0,O56)",0,{"$f":"ADDRESS(31,8,1,1,$V$1)","v":"'LT Variable Annuity Gte Risk'!$H$31"},"='Schedule VIII (EBS)'!J35",{"$f":"IF(_xlfn.FORMULATEXT(INDIRECT(V120))=W120,0,1)","v":0}]
[{"$f":"ADDRESS(52,7,1,1,$A$1)","v":"Summary!$G$52"},"=ROUND('LT Insurance Risk'!O62,$N$167)",0,{"$f":"ADDRESS(71,6,1,1,$D$1)","v":"'Fixed Income Investments'!$F$71"},"=IF(D71<0,0,D71*E71)",{"$f":"IF(_xlfn.FORMULATEXT(INDIRECT(D121))=E121,0,1)","v":0},null,null,null,null,null,null,{"$f":"ADDRESS(44,6,1,1,$M$1)","v":"'Concentration Risk'!$F$44"},"=MAX(0,(D44*E44))",{"$f":"IF(_xlfn.FORMULATEXT(INDIRECT(M121))=N121,0,1)","v":0},null,null,null,{"$f":"ADDRESS(63,15,1,1,$S$1)","v":"'LT Insurance Risk'!$O$63"},"=MAX(0,N23+O23+O41+O42+O46+O47+O48+O51)",0,{"$f":"ADDRESS(31,9,1,1,$V$1)","v":"'LT Variable Annuity Gte Risk'!$I$31"},5.0000000000000001E-3,{"$f":"IF(INDIRECT(V121)=W121,0,1)","v":0}]
[{"$f":"ADDRESS(52,11,1,1,$A$1)","v":"Summary!$K$52"},"=ROUND('LT Insurance Risk'!O62,$N$167)",0,{"$f":"ADDRESS(72,4,1,1,$D$1)","v":"'Fixed Income Investments'!$D$72"},"=+'Schedule II (EBS)'!D59+'Schedule IIA (EBS)'!D59",{"$f":"IF(_xlfn.FORMULATEXT(INDIRECT(D122))=E122,0,1)","v":0},null,null,null,null,null,null,{"$f":"ADDRESS(46,4,1,1,$M$1)","v":"'Concentration Risk'!$D$46"},"=SUM(D36:D44)",{"$f":"IF(_xlfn.FORMULATEXT(INDIRECT(M122))=N122,0,1)","v":0},null,null,null,{"$f":"ADDRESS(64,15,1,1,$S$1)","v":"'LT Insurance Risk'!$O$64"},"=MAX(0,(SUM(O26:O38)))",0,{"$f":"ADDRESS(31,11,1,1,$V$1)","v":"'LT Variable Annuity Gte Risk'!$K$31"},"='Schedule VIII (EBS)'!L35",{"$f":"IF(_xlfn.FORMULATEXT(INDIRECT(V122))=W122,0,1)","v":0}]
[{"$f":"ADDRESS(52,13,1,1,$A$1)","v":"Summary!$M$52"},"=ROUND('LT Insurance Risk'!O62,$N$167)",0,{"$f":"ADDRESS(72,5,1,1,$D$1)","v":"'Fixed Income Investments'!$E$72"},1.4999999999999999E-2,{"$f":"IF(INDIRECT(D123)=E123,0,1)","v":0},null,null,null,null,null,null,{"$f":"ADDRESS(46,6,1,1,$M$1)","v":"'Concentration Risk'!$F$46"},"=SUM(F36:F44)",{"$f":"IF(_xlfn.FORMULATEXT(INDIRECT(M123))=N123,0,1)","v":0},null,null,null,null,null,-123,{"$f":"ADDRESS(31,12,1,1,$V$1)","v":"'LT Variable Annuity Gte Risk'!$L$31"},0.01,{"$f":"IF(INDIRECT(V123)=W123,0,1)","v":0}]
[{"$f":"ADDRESS(52,21,1,1,$A$1)","v":"Summary!$U$52"},"=G56",0,{"$f":"ADDRESS(72,6,1,1,$D$1)","v":"'Fixed Income Investments'!$F$72"},"=IF(D72<0,0,D72*E72)",{"$f":"IF(_xlfn.FORMULATEXT(INDIRECT(D124))=E124,0,1)","v":0},null,null,null,null,null,null,{"$f":"ADDRESS(48,4,1,1,$M$1)","v":"'Concentration Risk'!$D$48"},"Commercial Mortgage-Backed Securities",{"$f":"IF(INDIRECT(M124)=N124,0,1)","v":0},null,null,null,null,null,null,{"$f":"ADDRESS(31,23,1,1,$V$1)","v":"'LT Variable Annuity Gte Risk'!$W$31"},"=IF(ISERROR(OR(E31*F31+H31*I31+K31*L31,N31*O31+Q31*R31+T31*U31)),0,MAX(E31*F31+H31*I31+K31*L31,N31*O31+Q31*R31+T31*U31))",{"$f":"IF(_xlfn.FORMULATEXT(INDIRECT(V124))=W124,0,1)","v":0}]
[{"$f":"ADDRESS(52,23,1,1,$A$1)","v":"Summary!$W$52"},"=IF($G$60=0,1/13,U52/$U$54)",0,{"$f":"ADDRESS(73,4,1,1,$D$1)","v":"'Fixed Income Investments'!$D$73"},"=+'Schedule II (EBS)'!D60+'Schedule IIA (EBS)'!D60",{"$f":"IF(_xlfn.FORMULATEXT(INDIRECT(D125))=E125,0,1)","v":0},null,null,null,null,null,null,{"$f":"ADDRESS(49,2,1,1,$M$1)","v":"'Concentration Risk'!$B$49"},"BSCR Rating 0",{"$f":"IF(INDIRECT(M125)=N125,0,1)","v":0},null,null,null,null,null,null,{"$f":"ADDRESS(31,25,1,1,$V$1)","v":"'LT Variable Annuity Gte Risk'!$Y$31"},"='Schedule VIII (EBS)'!F18",{"$f":"IF(_xlfn.FORMULATEXT(INDIRECT(V125))=W125,0,1)","v":0}]
[{"$f":"ADDRESS(52,25,1,1,$A$1)","v":"Summary!$Y$52"},"=M56",0,{"$f":"ADDRESS(73,5,1,1,$D$1)","v":"'Fixed Income Investments'!$E$73"},0.25,{"$f":"IF(INDIRECT(D126)=E126,0,1)","v":0},null,null,null,null,null,null,{"$f":"ADDRESS(49,4,1,1,$M$1)","v":"'Concentration Risk'!$D$49"},"=SUMIFS('Schedule XXI'!$M$8:$M$57,'Schedule XXI'!$K$8:$K$57,$D$48,'Schedule XXI'!$L$8:$L$57,$B49)",{"$f":"IF(_xlfn.FORMULATEXT(INDIRECT(M126))=N126,0,1)","v":0},null,null,null,null,null,null,{"$f":"ADDRESS(31,27,1,1,$V$1)","v":"'LT Variable Annuity Gte Risk'!$AA$31"},"=MAX(0,W31-Y31)",{"$f":"IF(_xlfn.FORMULATEXT(INDIRECT(V126))=W126,0,1)","v":0}]
[{"$f":"ADDRESS(52,26,1,1,$A$1)","v":"Summary!$Z$52"},"=IF($N$60=0,1/13,Y52/$Y$54)",0,{"$f":"ADDRESS(73,6,1,1,$D$1)","v":"'Fixed Income Investments'!$F$73"},"=IF(D73<0,0,D73*E73)",{"$f":"IF(_xlfn.FORMULATEXT(INDIRECT(D127))=E127,0,1)","v":0},null,null,null,null,null,null,{"$f":"ADDRESS(49,5,1,1,$M$1)","v":"'Concentration Risk'!$E$49"},0,{"$f":"IF(INDIRECT(M127)=N127,0,1)","v":0},null,null,null,null,null,null,{"$f":"ADDRESS(34,5,1,1,$V$1)","v":"'LT Variable Annuity Gte Risk'!$E$34"},"=+'Schedule VIII (EBS)'!H19",{"$f":"IF(_xlfn.FORMULATEXT(INDIRECT(V127))=W127,0,1)","v":0}]
[{"$f":"ADDRESS(53,7,1,1,$A$1)","v":"Summary!$G$53"},"=ROUND('LT Insurance Risk'!O63,$N$167)",0,{"$f":"ADDRESS(75,4,1,1,$D$1)","v":"'Fixed Income Investments'!$D$75"},"=SUM(D70:D73)",{"$f":"IF(_xlfn.FORMULATEXT(INDIRECT(D128))=E128,0,1)","v":0},null,null,null,null,null,null,{"$f":"ADDRESS(49,6,1,1,$M$1)","v":"'Concentration Risk'!$F$49"},"=MAX(0,(D49*E49))",{"$f":"IF(_xlfn.FORMULATEXT(INDIRECT(M128))=N128,0,1)","v":0},null,null,null,null,null,null,{"$f":"ADDRESS(34,6,1,1,$V$1)","v":"'LT Variable Annuity Gte Risk'!$F$34"},3.2000000000000001E-2,{"$f":"IF(INDIRECT(V128)=W128,0,1)","v":0}]
[{"$f":"ADDRESS(53,11,1,1,$A$1)","v":"Summary!$K$53"},"=ROUND('LT Insurance Risk'!O63,$N$167)",0,{"$f":"ADDRESS(75,6,1,1,$D$1)","v":"'Fixed Income Investments'!$F$75"},"=MAX(0,SUM(F70:F73))",{"$f":"IF(_xlfn.FORMULATEXT(INDIRECT(D129))=E129,0,1)","v":0},null,null,null,null,null,null,{"$f":"ADDRESS(50,2,1,1,$M$1)","v":"'Concentration Risk'!$B$50"},"BSCR Rating 1",{"$f":"IF(INDIRECT(M129)=N129,0,1)","v":0},null,null,null,null,null,null,{"$f":"ADDRESS(34,8,1,1,$V$1)","v":"'LT Variable Annuity Gte Risk'!$H$34"},"=+'Schedule VIII (EBS)'!J19",{"$f":"IF(_xlfn.FORMULATEXT(INDIRECT(V129))=W129,0,1)","v":0}]
[{"$f":"ADDRESS(53,13,1,1,$A$1)","v":"Summary!$M$53"},"=ROUND('LT Insurance Risk'!O63,$N$167)",0,{"$f":"ADDRESS(79,4,1,1,$D$1)","v":"'Fixed Income Investments'!$D$79"},"=+'Form 4EBS'!F54",{"$f":"IF(_xlfn.FORMULATEXT(INDIRECT(D130))=E130,0,1)","v":0},null,null,null,null,null,null,{"$f":"ADDRESS(50,4,1,1,$M$1)","v":"'Concentration Risk'!$D$50"},"=SUMIFS('Schedule XXI'!$M$8:$M$57,'Schedule XXI'!$K$8:$K$57,$D$48,'Schedule XXI'!$L$8:$L$57,$B50)",{"$f":"IF(_xlfn.FORMULATEXT(INDIRECT(M130))=N130,0,1)","v":0},null,null,null,null,null,null,{"$f":"ADDRESS(34,9,1,1,$V$1)","v":"'LT Variable Annuity Gte Risk'!$I$34"},0.05,{"$f":"IF(INDIRECT(V130)=W130,0,1)","v":0}]
[{"$f":"ADDRESS(54,7,1,1,$A$1)","v":"Summary!$G$54"},"=ROUND('LT Insurance Risk'!O64,$N$167)",0,{"$f":"ADDRESS(79,5,1,1,$D$1)","v":"'Fixed Income Investments'!$E$79"},0.05,{"$f":"IF(INDIRECT(D131)=E131,0,1)","v":0},null,null,null,null,null,null,{"$f":"ADDRESS(50,5,1,1,$M$1)","v":"'Concentration Risk'!$E$50"},5.0000000000000001E-3,{"$f":"IF(INDIRECT(M131)=N131,0,1)","v":0},null,null,null,null,null,null,{"$f":"ADDRESS(34,11,1,1,$V$1)","v":"'LT Variable Annuity Gte Risk'!$K$34"},"=+'Schedule VIII (EBS)'!L19",{"$f":"IF(_xlfn.FORMULATEXT(INDIRECT(V131))=W131,0,1)","v":0}]
[{"$f":"ADDRESS(54,11,1,1,$A$1)","v":"Summary!$K$54"},"=ROUND('LT Insurance Risk'!O64,$N$167)",{"$f":"IF(_xlfn.FORMULATEXT(INDIRECT(A132))=B132,0,1)","v":0},{"$f":"ADDRESS(79,6,1,1,$D$1)","v":"'Fixed Income Investments'!$F$79"},"=IF(D79<0,0,D79*E79)",{"$f":"IF(_xlfn.FORMULATEXT(INDIRECT(D132))=E132,0,1)","v":0},null,null,null,null,null,null,{"$f":"ADDRESS(50,6,1,1,$M$1)","v":"'Concentration Risk'!$F$50"},"=MAX(0,(D50*E50))",{"$f":"IF(_xlfn.FORMULATEXT(INDIRECT(M132))=N132,0,1)","v":0},null,null,null,null,null,null,{"$f":"ADDRESS(34,12,1,1,$V$1)","v":"'LT Variable Annuity Gte Risk'!$L$34"},0.09,{"$f":"IF(INDIRECT(V132)=W132,0,1)","v":0}]
[{"$f":"ADDRESS(54,13,1,1,$A$1)","v":"Summary!$M$54"},"=ROUND('LT Insurance Risk'!O64,$N$167)",0,{"$f":"ADDRESS(83,4,1,1,$D$1)","v":"'Fixed Income Investments'!$D$83"},"=+'Schedule XIX'!H81",{"$f":"IF(_xlfn.FORMULATEXT(INDIRECT(D133))=E133,0,1)","v":0},null,null,null,null,null,null,{"$f":"ADDRESS(51,2,1,1,$M$1)","v":"'Concentration Risk'!$B$51"},"BSCR Rating 2",{"$f":"IF(INDIRECT(M133)=N133,0,1)","v":0},null,null,null,null,null,null,{"$f":"ADDRESS(34,14,1,1,$V$1)","v":"'LT Variable Annuity Gte Risk'!$N$34"},"=+'Schedule VIII (EBS)'!N19",{"$f":"IF(_xlfn.FORMULATEXT(INDIRECT(V133))=W133,0,1)","v":0}]
[{"$f":"ADDRESS(54,21,1,1,$A$1)","v":"Summary!$U$54"},"=SUM(U40:U53)",0,{"$f":"ADDRESS(83,5,1,1,$D$1)","v":"'Fixed Income Investments'!$E$83"},0,{"$f":"IF(INDIRECT(D134)=E134,0,1)","v":0},null,null,null,null,null,null,{"$f":"ADDRESS(51,4,1,1,$M$1)","v":"'Concentration Risk'!$D$51"},"=SUMIFS('Schedule XXI'!$M$8:$M$57,'Schedule XXI'!$K$8:$K$57,$D$48,'Schedule XXI'!$L$8:$L$57,$B51)",{"$f":"IF(_xlfn.FORMULATEXT(INDIRECT(M134))=N134,0,1)","v":0},null,null,null,null,null,null,{"$f":"ADDRESS(34,15,1,1,$V$1)","v":"'LT Variable Annuity Gte Risk'!$O$34"},0.9,{"$f":"IF(INDIRECT(V134)=W134,0,1)","v":0}]
[{"$f":"ADDRESS(54,23,1,1,$A$1)","v":"Summary!$W$54"},"=SUM(X40:X56)",0,{"$f":"ADDRESS(83,6,1,1,$D$1)","v":"'Fixed Income Investments'!$F$83"},"=IF($D$83<0,0,$D$83*$E$83)",{"$f":"IF(_xlfn.FORMULATEXT(INDIRECT(D135))=E135,0,1)","v":0},null,null,null,null,null,null,{"$f":"ADDRESS(51,5,1,1,$M$1)","v":"'Concentration Risk'!$E$51"},0.01,{"$f":"IF(INDIRECT(M135)=N135,0,1)","v":0},null,null,null,null,null,null,{"$f":"ADDRESS(34,17,1,1,$V$1)","v":"'LT Variable Annuity Gte Risk'!$Q$34"},"=+'Schedule VIII (EBS)'!P19",{"$f":"IF(_xlfn.FORMULATEXT(INDIRECT(V135))=W135,0,1)","v":0}]
[{"$f":"ADDRESS(54,25,1,1,$A$1)","v":"Summary!$Y$54"},"=SUM(Y40:Y53)",0,{"$f":"ADDRESS(84,4,1,1,$D$1)","v":"'Fixed Income Investments'!$D$84"},"=+'Schedule XIX'!H82",{"$f":"IF(_xlfn.FORMULATEXT(INDIRECT(D136))=E136,0,1)","v":0},null,null,null,null,null,null,{"$f":"ADDRESS(51,6,1,1,$M$1)","v":"'Concentration Risk'!$F$51"},"=MAX(0,(D51*E51))",{"$f":"IF(_xlfn.FORMULATEXT(INDIRECT(M136))=N136,0,1)","v":0},null,null,null,null,null,null,{"$f":"ADDRESS(34,18,1,1,$V$1)","v":"'LT Variable Annuity Gte Risk'!$R$34"},1.3,{"$f":"IF(INDIRECT(V136)=W136,0,1)","v":0}]
[{"$f":"ADDRESS(54,26,1,1,$A$1)","v":"Summary!$Z$54"},"=SUM(AA40:AA56)",0,{"$f":"ADDRESS(84,5,1,1,$D$1)","v":"'Fixed Income Investments'!$E$84"},1E-3,{"$f":"IF(INDIRECT(D137)=E137,0,1)","v":0},null,null,null,null,null,null,{"$f":"ADDRESS(52,2,1,1,$M$1)","v":"'Concentration Risk'!$B$52"},"BSCR Rating 3",{"$f":"IF(INDIRECT(M137)=N137,0,1)","v":0},null,null,null,null,null,null,{"$f":"ADDRESS(34,20,1,1,$V$1)","v":"'LT Variable Annuity Gte Risk'!$T$34"},"=+'Schedule VIII (EBS)'!R19",{"$f":"IF(_xlfn.FORMULATEXT(INDIRECT(V137))=W137,0,1)","v":0}]
[{"$f":"ADDRESS(55,7,1,1,$A$1)","v":"Summary!$G$55"},"=ROUND(IF('Schedule VIIIA (EBS)'!S12=0,'LT Variable Annuity Gte Risk'!W60,'Schedule VIIIA (EBS)'!S12),N$167)",0,{"$f":"ADDRESS(84,6,1,1,$D$1)","v":"'Fixed Income Investments'!$F$84"},"=IF($D$84<0,0,$D$84*$E$84)",{"$f":"IF(_xlfn.FORMULATEXT(INDIRECT(D138))=E138,0,1)","v":0},null,null,null,null,null,null,{"$f":"ADDRESS(52,4,1,1,$M$1)","v":"'Concentration Risk'!$D$52"},"=SUMIFS('Schedule XXI'!$M$8:$M$57,'Schedule XXI'!$K$8:$K$57,$D$48,'Schedule XXI'!$L$8:$L$57,$B52)",{"$f":"IF(_xlfn.FORMULATEXT(INDIRECT(M138))=N138,0,1)","v":0},null,null,null,null,null,null,{"$f":"ADDRESS(34,21,1,1,$V$1)","v":"'LT Variable Annuity Gte Risk'!$U$34"},2.5,{"$f":"IF(INDIRECT(V138)=W138,0,1)","v":0}]
[{"$f":"ADDRESS(55,11,1,1,$A$1)","v":"Summary!$K$55"},"=ROUND(IF('Schedule VIIIA (EBS)'!S12=0,'LT Variable Annuity Gte Risk'!W60,'Schedule VIIIA (EBS)'!S12),N$167)",0,{"$f":"ADDRESS(85,4,1,1,$D$1)","v":"'Fixed Income Investments'!$D$85"},"=+'Schedule XIX'!H83",{"$f":"IF(_xlfn.FORMULATEXT(INDIRECT(D139))=E139,0,1)","v":0},null,null,null,null,null,null,{"$f":"ADDRESS(52,5,1,1,$M$1)","v":"'Concentration Risk'!$E$52"},1.7999999999999999E-2,{"$f":"IF(INDIRECT(M139)=N139,0,1)","v":0},null,null,null,null,null,null,{"$f":"ADDRESS(34,23,1,1,$V$1)","v":"'LT Variable Annuity Gte Risk'!$W$34"},"=IF(ISERROR(OR(E34*F34+H34*I34+K34*L34,N34*O34+Q34*R34+T34*U34)),0,MAX(E34*F34+H34*I34+K34*L34,N34*O34+Q34*R34+T34*U34))",{"$f":"IF(_xlfn.FORMULATEXT(INDIRECT(V139))=W139,0,1)","v":0}]
[{"$f":"ADDRESS(55,13,1,1,$A$1)","v":"Summary!$M$55"},"=ROUND(IF('Schedule VIIIA (EBS)'!S12=0,'LT Variable Annuity Gte Risk'!W60,'Schedule VIIIA (EBS)'!S12),N$167)",0,{"$f":"ADDRESS(85,5,1,1,$D$1)","v":"'Fixed Income Investments'!$E$85"},2E-3,{"$f":"IF(INDIRECT(D140)=E140,0,1)","v":0},null,null,null,null,null,null,{"$f":"ADDRESS(52,6,1,1,$M$1)","v":"'Concentration Risk'!$F$52"},"=MAX(0,(D52*E52))",{"$f":"IF(_xlfn.FORMULATEXT(INDIRECT(M140))=N140,0,1)","v":0},null,null,null,null,null,null,{"$f":"ADDRESS(34,25,1,1,$V$1)","v":"'LT Variable Annuity Gte Risk'!$Y$34"},"=+'Schedule VIII (EBS)'!F19",{"$f":"IF(_xlfn.FORMULATEXT(INDIRECT(V140))=W140,0,1)","v":0}]
[{"$f":"ADDRESS(56,7,1,1,$A$1)","v":"Summary!$G$56"},"=ROUND('LT Other Insurance Risk'!I27,$N$167)",0,{"$f":"ADDRESS(85,6,1,1,$D$1)","v":"'Fixed Income Investments'!$F$85"},"=IF($D$85<0,0,$D$85*$E$85)",{"$f":"IF(_xlfn.FORMULATEXT(INDIRECT(D141))=E141,0,1)","v":0},null,null,null,null,null,null,{"$f":"ADDRESS(53,2,1,1,$M$1)","v":"'Concentration Risk'!$B$53"},"BSCR Rating 4",{"$f":"IF(INDIRECT(M141)=N141,0,1)","v":0},null,null,null,null,null,null,{"$f":"ADDRESS(34,27,1,1,$V$1)","v":"'LT Variable Annuity Gte Risk'!$AA$34"},"=MAX(0,W34-Y34)",{"$f":"IF(_xlfn.FORMULATEXT(INDIRECT(V141))=W141,0,1)","v":0}]
[{"$f":"ADDRESS(56,11,1,1,$A$1)","v":"Summary!$K$56"},"=ROUND('LT Other Insurance Risk'!I27,$N$167)",0,{"$f":"ADDRESS(86,4,1,1,$D$1)","v":"'Fixed Income Investments'!$D$86"},"=+'Schedule XIX'!H84",{"$f":"IF(_xlfn.FORMULATEXT(INDIRECT(D142))=E142,0,1)","v":0},null,null,null,null,null,null,{"$f":"ADDRESS(53,4,1,1,$M$1)","v":"'Concentration Risk'!$D$53"},"=SUMIFS('Schedule XXI'!$M$8:$M$57,'Schedule XXI'!$K$8:$K$57,$D$48,'Schedule XXI'!$L$8:$L$57,$B53)",{"$f":"IF(_xlfn.FORMULATEXT(INDIRECT(M142))=N142,0,1)","v":0},null,null,null,null,null,null,{"$f":"ADDRESS(35,5,1,1,$V$1)","v":"'LT Variable Annuity Gte Risk'!$E$35"},"=+'Schedule VIII (EBS)'!H20",{"$f":"IF(_xlfn.FORMULATEXT(INDIRECT(V142))=W142,0,1)","v":0}]
[{"$f":"ADDRESS(56,13,1,1,$A$1)","v":"Summary!$M$56"},"=ROUND('LT Other Insurance Risk'!I27,$N$167)",0,{"$f":"ADDRESS(86,5,1,1,$D$1)","v":"'Fixed Income Investments'!$E$86"},3.0000000000000001E-3,{"$f":"IF(INDIRECT(D143)=E143,0,1)","v":0},null,null,null,null,null,null,{"$f":"ADDRESS(53,5,1,1,$M$1)","v":"'Concentration Risk'!$E$53"},3.5000000000000003E-2,{"$f":"IF(INDIRECT(M143)=N143,0,1)","v":0},null,null,null,null,null,null,{"$f":"ADDRESS(35,6,1,1,$V$1)","v":"'LT Variable Annuity Gte Risk'!$F$35"},0.03,{"$f":"IF(INDIRECT(V143)=W143,0,1)","v":0}]
[{"$f":"ADDRESS(58,7,1,1,$A$1)","v":"Summary!$G$58"},"=SUM(G40:G56)",0,{"$f":"ADDRESS(86,6,1,1,$D$1)","v":"'Fixed Income Investments'!$F$86"},"=IF($D$86<0,0,$D$86*$E$86)",{"$f":"IF(_xlfn.FORMULATEXT(INDIRECT(D144))=E144,0,1)","v":0},null,null,null,null,null,null,{"$f":"ADDRESS(53,6,1,1,$M$1)","v":"'Concentration Risk'!$F$53"},"=MAX(0,(D53*E53))",{"$f":"IF(_xlfn.FORMULATEXT(INDIRECT(M144))=N144,0,1)","v":0},null,null,null,null,null,null,{"$f":"ADDRESS(35,8,1,1,$V$1)","v":"'LT Variable Annuity Gte Risk'!$H$35"},"=+'Schedule VIII (EBS)'!J20",{"$f":"IF(_xlfn.FORMULATEXT(INDIRECT(V144))=W144,0,1)","v":0}]
[{"$f":"ADDRESS(58,12,1,1,$A$1)","v":"Summary!$L$58"},"=SUM(K40:K56)",0,{"$f":"ADDRESS(87,4,1,1,$D$1)","v":"'Fixed Income Investments'!$D$87"},"=+'Schedule XIX'!H85",{"$f":"IF(_xlfn.FORMULATEXT(INDIRECT(D145))=E145,0,1)","v":0},null,null,null,null,null,null,{"$f":"ADDRESS(54,2,1,1,$M$1)","v":"'Concentration Risk'!$B$54"},"BSCR Rating 5",{"$f":"IF(INDIRECT(M145)=N145,0,1)","v":0},null,null,null,null,null,null,{"$f":"ADDRESS(35,9,1,1,$V$1)","v":"'LT Variable Annuity Gte Risk'!$I$35"},0.05,{"$f":"IF(INDIRECT(V145)=W145,0,1)","v":0}]
[{"$f":"ADDRESS(58,14,1,1,$A$1)","v":"Summary!$N$58"},"=SUM(M40:M56)",0,{"$f":"ADDRESS(87,5,1,1,$D$1)","v":"'Fixed Income Investments'!$E$87"},5.0000000000000001E-3,{"$f":"IF(INDIRECT(D146)=E146,0,1)","v":0},null,null,null,null,null,null,{"$f":"ADDRESS(54,4,1,1,$M$1)","v":"'Concentration Risk'!$D$54"},"=SUMIFS('Schedule XXI'!$M$8:$M$57,'Schedule XXI'!$K$8:$K$57,$D$48,'Schedule XXI'!$L$8:$L$57,$B54)",{"$f":"IF(_xlfn.FORMULATEXT(INDIRECT(M146))=N146,0,1)","v":0},null,null,null,null,null,null,{"$f":"ADDRESS(35,11,1,1,$V$1)","v":"'LT Variable Annuity Gte Risk'!$K$35"},"=+'Schedule VIII (EBS)'!L20",{"$f":"IF(_xlfn.FORMULATEXT(INDIRECT(V146))=W146,0,1)","v":0}]
[{"$f":"ADDRESS(60,7,1,1,$A$1)","v":"Summary!$G$60"},"=(G40^2+G41^2+G47^2+G42^2+G43^2+G44^2+((G50+G51+G52))^2+G53^2+G54^2+-0.5*((G50+G51+G52)*G54)+G55^2+G56^2)^0.5",0,{"$f":"ADDRESS(87,6,1,1,$D$1)","v":"'Fixed Income Investments'!$F$87"},"=IF($D$87<0,0,$D$87*$E$87)",{"$f":"IF(_xlfn.FORMULATEXT(INDIRECT(D147))=E147,0,1)","v":0},null,null,null,null,null,null,{"$f":"ADDRESS(54,5,1,1,$M$1)","v":"'Concentration Risk'!$E$54"},0.1,{"$f":"IF(INDIRECT(M147)=N147,0,1)","v":0},null,null,null,null,null,null,{"$f":"ADDRESS(35,12,1,1,$V$1)","v":"'LT Variable Annuity Gte Risk'!$L$35"},8.8999999999999996E-2,{"$f":"IF(INDIRECT(V147)=W147,0,1)","v":0}]
[{"$f":"ADDRESS(60,12,1,1,$A$1)","v":"Summary!$L$60"},"{=SQRT(MMULT(TRANSPOSE('Correlation Matrix'!W12:W14),MMULT('Correlation Matrix'!R7:T9,'Correlation Matrix'!W12:W14)))}",0,{"$f":"ADDRESS(88,4,1,1,$D$1)","v":"'Fixed Income Investments'!$D$88"},"=+'Schedule XIX'!H86",{"$f":"IF(_xlfn.FORMULATEXT(INDIRECT(D148))=E148,0,1)","v":0},null,null,null,null,null,null,{"$f":"ADDRESS(54,6,1,1,$M$1)","v":"'Concentration Risk'!$F$54"},"=MAX(0,(D54*E54))",{"$f":"IF(_xlfn.FORMULATEXT(INDIRECT(M148))=N148,0,1)","v":0},null,null,null,null,null,null,{"$f":"ADDRESS(35,14,1,1,$V$1)","v":"'LT Variable Annuity Gte Risk'!$N$35"},"=+'Schedule VIII (EBS)'!N20",{"$f":"IF(_xlfn.FORMULATEXT(INDIRECT(V148))=W148,0,1)","v":0}]
[{"$f":"ADDRESS(60,14,1,1,$A$1)","v":"Summary!$N$60"},"{=SQRT(MMULT(TRANSPOSE('Correlation Matrix'!W6:W8),MMULT('Correlation Matrix'!R7:T9,'Correlation Matrix'!W6:W8)))}",0,{"$f":"ADDRESS(88,5,1,1,$D$1)","v":"'Fixed Income Investments'!$E$88"},1.4999999999999999E-2,{"$f":"IF(INDIRECT(D149)=E149,0,1)","v":0},null,null,null,null,null,null,{"$f":"ADDRESS(55,2,1,1,$M$1)","v":"'Concentration Risk'!$B$55"},"BSCR Rating 6",{"$f":"IF(INDIRECT(M149)=N149,0,1)","v":0},null,null,null,null,null,null,{"$f":"ADDRESS(35,15,1,1,$V$1)","v":"'LT Variable Annuity Gte Risk'!$O$35"},0.8,{"$f":"IF(INDIRECT(V149)=W149,0,1)","v":0}]
[{"$f":"ADDRESS(62,26,1,1,$A$1)","v":"Summary!$Z$62"},"=F23",0,{"$f":"ADDRESS(88,6,1,1,$D$1)","v":"'Fixed Income Investments'!$F$88"},"=IF($D$88<0,0,$D$88*$E$88)",{"$f":"IF(_xlfn.FORMULATEXT(INDIRECT(D150))=E150,0,1)","v":0},null,null,null,null,null,null,{"$f":"ADDRESS(55,4,1,1,$M$1)","v":"'Concentration Risk'!$D$55"},"=SUMIFS('Schedule XXI'!$M$8:$M$57,'Schedule XXI'!$K$8:$K$57,$D$48,'Schedule XXI'!$L$8:$L$57,$B55)",{"$f":"IF(_xlfn.FORMULATEXT(INDIRECT(M150))=N150,0,1)","v":0},null,null,null,null,null,null,{"$f":"ADDRESS(35,17,1,1,$V$1)","v":"'LT Variable Annuity Gte Risk'!$Q$35"},"=+'Schedule VIII (EBS)'!P20",{"$f":"IF(_xlfn.FORMULATEXT(INDIRECT(V150))=W150,0,1)","v":0}]
[{"$f":"ADDRESS(63,27,1,1,$A$1)","v":"Summary!$AA$63"},0,{"$f":"IF(INDIRECT(A151)=B151,0,1)","v":0},{"$f":"ADDRESS(89,4,1,1,$D$1)","v":"'Fixed Income Investments'!$D$89"},"=+'Schedule XIX'!H87",{"$f":"IF(_xlfn.FORMULATEXT(INDIRECT(D151))=E151,0,1)","v":0},null,null,null,null,null,null,{"$f":"ADDRESS(55,5,1,1,$M$1)","v":"'Concentration Risk'!$E$55"},0.2,{"$f":"IF(INDIRECT(M151)=N151,0,1)","v":0},null,null,null,null,null,null,{"$f":"ADDRESS(35,18,1,1,$V$1)","v":"'LT Variable Annuity Gte Risk'!$R$35"},1.1499999999999999,{"$f":"IF(INDIRECT(V151)=W151,0,1)","v":0}]
[{"$f":"ADDRESS(63,29,1,1,$A$1)","v":"Summary!$AC$63"},5.0000000000000001E-3,{"$f":"IF(INDIRECT(A152)=B152,0,1)","v":0},{"$f":"ADDRESS(89,5,1,1,$D$1)","v":"'Fixed Income Investments'!$E$89"},0.04,{"$f":"IF(INDIRECT(D152)=E152,0,1)","v":0},null,null,null,null,null,null,{"$f":"ADDRESS(55,6,1,1,$M$1)","v":"'Concentration Risk'!$F$55"},"=MAX(0,(D55*E55))",{"$f":"IF(_xlfn.FORMULATEXT(INDIRECT(M152))=N152,0,1)","v":0},null,null,null,null,null,null,{"$f":"ADDRESS(35,20,1,1,$V$1)","v":"'LT Variable Annuity Gte Risk'!$T$35"},"=+'Schedule VIII (EBS)'!R20",{"$f":"IF(_xlfn.FORMULATEXT(INDIRECT(V152))=W152,0,1)","v":0}]
[{"$f":"ADDRESS(63,30,1,1,$A$1)","v":"Summary!$AD$63"},0,{"$f":"IF(INDIRECT(A153)=B153,0,1)","v":0},{"$f":"ADDRESS(89,6,1,1,$D$1)","v":"'Fixed Income Investments'!$F$89"},"=IF($D$89<0,0,$D$89*$E$89)",{"$f":"IF(_xlfn.FORMULATEXT(INDIRECT(D153))=E153,0,1)","v":0},null,null,null,null,null,null,{"$f":"ADDRESS(56,2,1,1,$M$1)","v":"'Concentration Risk'!$B$56"},"BSCR Rating 7",{"$f":"IF(INDIRECT(M153)=N153,0,1)","v":0},null,null,null,null,null,null,{"$f":"ADDRESS(35,21,1,1,$V$1)","v":"'LT Variable Annuity Gte Risk'!$U$35"},2,{"$f":"IF(INDIRECT(V153)=W153,0,1)","v":0}]
[{"$f":"ADDRESS(63,31,1,1,$A$1)","v":"Summary!$AE$63"},120,{"$f":"IF(INDIRECT(A154)=B154,0,1)","v":0},{"$f":"ADDRESS(90,4,1,1,$D$1)","v":"'Fixed Income Investments'!$D$90"},"=+'Schedule XIX'!H88",{"$f":"IF(_xlfn.FORMULATEXT(INDIRECT(D154))=E154,0,1)","v":0},null,null,null,null,null,null,{"$f":"ADDRESS(56,4,1,1,$M$1)","v":"'Concentration Risk'!$D$56"},"=SUMIFS('Schedule XXI'!$M$8:$M$57,'Schedule XXI'!$K$8:$K$57,$D$48,'Schedule XXI'!$L$8:$L$57,$B56)",{"$f":"IF(_xlfn.FORMULATEXT(INDIRECT(M154))=N154,0,1)","v":0},null,null,null,null,null,null,{"$f":"ADDRESS(35,23,1,1,$V$1)","v":"'LT Variable Annuity Gte Risk'!$W$35"},"=IF(ISERROR(OR(E35*F35+H35*I35+K35*L35,N35*O35+Q35*R35+T35*U35)),0,MAX(E35*F35+H35*I35+K35*L35,N35*O35+Q35*R35+T35*U35))",{"$f":"IF(_xlfn.FORMULATEXT(INDIRECT(V154))=W154,0,1)","v":0}]
[{"$f":"ADDRESS(63,33,1,1,$A$1)","v":"Summary!$AG$63"},"=MAX(AE63,AA63*MIN(Z$62,AD63)+AC63*MAX((Z$62-AD63),0))*IFERROR((1/'Information Sheet'!$H$18),1)",{"$f":"IF(_xlfn.FORMULATEXT(INDIRECT(A155))=B155,0,1)","v":0},{"$f":"ADDRESS(90,5,1,1,$D$1)","v":"'Fixed Income Investments'!$E$90"},0.06,{"$f":"IF(INDIRECT(D155)=E155,0,1)","v":0},null,null,null,null,null,null,{"$f":"ADDRESS(56,5,1,1,$M$1)","v":"'Concentration Risk'!$E$56"},0.3,{"$f":"IF(INDIRECT(M155)=N155,0,1)","v":0},null,null,null,null,null,null,{"$f":"ADDRESS(35,25,1,1,$V$1)","v":"'LT Variable Annuity Gte Risk'!$Y$35"},"=+'Schedule VIII (EBS)'!F20",{"$f":"IF(_xlfn.FORMULATEXT(INDIRECT(V155))=W155,0,1)","v":0}]
[{"$f":"ADDRESS(64,7,1,1,$A$1)","v":"Summary!$G$64"},"=$G$60*$G$62",{"$f":"IF(_xlfn.FORMULATEXT(INDIRECT(A156))=B156,0,1)","v":0},{"$f":"ADDRESS(90,6,1,1,$D$1)","v":"'Fixed Income Investments'!$F$90"},"=IF($D$90<0,0,$D$90*$E$90)",{"$f":"IF(_xlfn.FORMULATEXT(INDIRECT(D156))=E156,0,1)","v":0},null,null,null,null,null,null,{"$f":"ADDRESS(56,6,1,1,$M$1)","v":"'Concentration Risk'!$F$56"},"=MAX(0,(D56*E56))",{"$f":"IF(_xlfn.FORMULATEXT(INDIRECT(M156))=N156,0,1)","v":0},null,null,null,null,null,null,{"$f":"ADDRESS(35,27,1,1,$V$1)","v":"'LT Variable Annuity Gte Risk'!$AA$35"},"=MAX(0,W35-Y35)",{"$f":"IF(_xlfn.FORMULATEXT(INDIRECT(V156))=W156,0,1)","v":0}]
[{"$f":"ADDRESS(64,14,1,1,$A$1)","v":"Summary!$N$64"},"=($N$60+N133)*$N$62",{"$f":"IF(_xlfn.FORMULATEXT(INDIRECT(A157))=B157,0,1)","v":0},{"$f":"ADDRESS(91,4,1,1,$D$1)","v":"'Fixed Income Investments'!$D$91"},"=+'Schedule XIX'!H89",{"$f":"IF(_xlfn.FORMULATEXT(INDIRECT(D157))=E157,0,1)","v":0},null,null,null,null,null,null,{"$f":"ADDRESS(57,2,1,1,$M$1)","v":"'Concentration Risk'!$B$57"},"BSCR Rating 8",{"$f":"IF(INDIRECT(M157)=N157,0,1)","v":0},null,null,null,null,null,null,{"$f":"ADDRESS(36,5,1,1,$V$1)","v":"'LT Variable Annuity Gte Risk'!$E$36"},"=+'Schedule VIII (EBS)'!H21",{"$f":"IF(_xlfn.FORMULATEXT(INDIRECT(V157))=W157,0,1)","v":0}]
[{"$f":"ADDRESS(64,27,1,1,$A$1)","v":"Summary!$AA$64"},0,{"$f":"IF(INDIRECT(A158)=B158,0,1)","v":0},{"$f":"ADDRESS(91,5,1,1,$D$1)","v":"'Fixed Income Investments'!$E$91"},0.09,{"$f":"IF(INDIRECT(D158)=E158,0,1)","v":0},null,null,null,null,null,null,{"$f":"ADDRESS(57,4,1,1,$M$1)","v":"'Concentration Risk'!$D$57"},"=SUMIFS('Schedule XXI'!$M$8:$M$57,'Schedule XXI'!$K$8:$K$57,$D$48,'Schedule XXI'!$L$8:$L$57,$B57)",{"$f":"IF(_xlfn.FORMULATEXT(INDIRECT(M158))=N158,0,1)","v":0},null,null,null,null,null,null,{"$f":"ADDRESS(36,6,1,1,$V$1)","v":"'LT Variable Annuity Gte Risk'!$F$36"},0.03,{"$f":"IF(INDIRECT(V158)=W158,0,1)","v":0}]
[{"$f":"ADDRESS(64,29,1,1,$A$1)","v":"Summary!$AC$64"},0.01,{"$f":"IF(INDIRECT(A159)=B159,0,1)","v":0},{"$f":"ADDRESS(91,6,1,1,$D$1)","v":"'Fixed Income Investments'!$F$91"},"=IF($D$91<0,0,$D$91*$E$91)",{"$f":"IF(_xlfn.FORMULATEXT(INDIRECT(D159))=E159,0,1)","v":0},null,null,null,null,null,null,{"$f":"ADDRESS(57,5,1,1,$M$1)","v":"'Concentration Risk'!$E$57"},0.35,{"$f":"IF(INDIRECT(M159)=N159,0,1)","v":0},null,null,null,null,null,null,{"$f":"ADDRESS(36,8,1,1,$V$1)","v":"'LT Variable Annuity Gte Risk'!$H$36"},"=+'Schedule VIII (EBS)'!J21",{"$f":"IF(_xlfn.FORMULATEXT(INDIRECT(V159))=W159,0,1)","v":0}]
[{"$f":"ADDRESS(64,30,1,1,$A$1)","v":"Summary!$AD$64"},0,{"$f":"IF(INDIRECT(A160)=B160,0,1)","v":0},{"$f":"ADDRESS(93,4,1,1,$D$1)","v":"'Fixed Income Investments'!$D$93"},"=SUM(D83:D92)",0,null,null,null,null,null,null,{"$f":"ADDRESS(57,6,1,1,$M$1)","v":"'Concentration Risk'!$F$57"},"=MAX(0,(D57*E57))",{"$f":"IF(_xlfn.FORMULATEXT(INDIRECT(M160))=N160,0,1)","v":0},null,null,null,null,null,null,{"$f":"ADDRESS(36,9,1,1,$V$1)","v":"'LT Variable Annuity Gte Risk'!$I$36"},0.05,{"$f":"IF(INDIRECT(V160)=W160,0,1)","v":0}]
[{"$f":"ADDRESS(64,31,1,1,$A$1)","v":"Summary!$AE$64"},250,{"$f":"IF(INDIRECT(A161)=B161,0,1)","v":0},{"$f":"ADDRESS(93,6,1,1,$D$1)","v":"'Fixed Income Investments'!$F$93"},"=SUM(F83:F92)",0,null,null,null,null,null,null,{"$f":"ADDRESS(59,4,1,1,$M$1)","v":"'Concentration Risk'!$D$59"},"=SUM(D49:D57)",{"$f":"IF(_xlfn.FORMULATEXT(INDIRECT(M161))=N161,0,1)","v":0},null,null,null,null,null,null,{"$f":"ADDRESS(36,11,1,1,$V$1)","v":"'LT Variable Annuity Gte Risk'!$K$36"},"=+'Schedule VIII (EBS)'!L21",{"$f":"IF(_xlfn.FORMULATEXT(INDIRECT(V161))=W161,0,1)","v":0}]
[{"$f":"ADDRESS(64,33,1,1,$A$1)","v":"Summary!$AG$64"},"=MAX(AE64,AA64*MIN(Z$62,AD64)+AC64*MAX((Z$62-AD64),0))*IFERROR((1/'Information Sheet'!$H$18),1)",{"$f":"IF(_xlfn.FORMULATEXT(INDIRECT(A162))=B162,0,1)","v":0},{"$f":"ADDRESS(95,5,1,1,$D$1)","v":"'Fixed Income Investments'!$E$95"},"=+'Schedule XIX'!H98",0,null,null,null,null,null,null,{"$f":"ADDRESS(59,6,1,1,$M$1)","v":"'Concentration Risk'!$F$59"},"=SUM(F49:F57)",{"$f":"IF(_xlfn.FORMULATEXT(INDIRECT(M162))=N162,0,1)","v":0},null,null,null,null,null,null,{"$f":"ADDRESS(36,12,1,1,$V$1)","v":"'LT Variable Annuity Gte Risk'!$L$36"},8.8999999999999996E-2,{"$f":"IF(INDIRECT(V162)=W162,0,1)","v":0}]
[{"$f":"ADDRESS(65,27,1,1,$A$1)","v":"Summary!$AA$65"},0,{"$f":"IF(INDIRECT(A163)=B163,0,1)","v":0},{"$f":"ADDRESS(95,6,1,1,$D$1)","v":"'Fixed Income Investments'!$F$95"},"=SUM(F83:F91)*-(+'Schedule XIX'!H98)",0,null,null,null,null,null,null,{"$f":"ADDRESS(61,4,1,1,$M$1)","v":"'Concentration Risk'!$D$61"},"Bond Mutual Funds",{"$f":"IF(INDIRECT(M163)=N163,0,1)","v":0},null,null,null,null,null,null,{"$f":"ADDRESS(36,14,1,1,$V$1)","v":"'LT Variable Annuity Gte Risk'!$N$36"},"=+'Schedule VIII (EBS)'!N21",{"$f":"IF(_xlfn.FORMULATEXT(INDIRECT(V163))=W163,0,1)","v":0}]
[{"$f":"ADDRESS(65,29,1,1,$A$1)","v":"Summary!$AC$65"},1.4999999999999999E-2,{"$f":"IF(INDIRECT(A164)=B164,0,1)","v":0},{"$f":"ADDRESS(97,4,1,1,$D$1)","v":"'Fixed Income Investments'!$D$97"},"=SUM(D79,D93)",0,null,null,null,null,null,null,{"$f":"ADDRESS(62,2,1,1,$M$1)","v":"'Concentration Risk'!$B$62"},"BSCR Rating 0",{"$f":"IF(INDIRECT(M164)=N164,0,1)","v":0},null,null,null,null,null,null,{"$f":"ADDRESS(36,15,1,1,$V$1)","v":"'LT Variable Annuity Gte Risk'!$O$36"},0.7,{"$f":"IF(INDIRECT(V164)=W164,0,1)","v":0}]
[{"$f":"ADDRESS(65,30,1,1,$A$1)","v":"Summary!$AD$65"},0,{"$f":"IF(INDIRECT(A165)=B165,0,1)","v":0},{"$f":"ADDRESS(97,6,1,1,$D$1)","v":"'Fixed Income Investments'!$F$97"},"=MAX(0,SUM(F79,F83:F91,F95))",0,null,null,null,null,null,null,{"$f":"ADDRESS(62,4,1,1,$M$1)","v":"'Concentration Risk'!$D$62"},"=SUMIFS('Schedule XXI'!$M$8:$M$57,'Schedule XXI'!$K$8:$K$57,$D$61,'Schedule XXI'!$L$8:$L$57,$B62)",{"$f":"IF(_xlfn.FORMULATEXT(INDIRECT(M165))=N165,0,1)","v":0},null,null,null,null,null,null,{"$f":"ADDRESS(36,17,1,1,$V$1)","v":"'LT Variable Annuity Gte Risk'!$Q$36"},"=+'Schedule VIII (EBS)'!P21",{"$f":"IF(_xlfn.FORMULATEXT(INDIRECT(V165))=W165,0,1)","v":0}]
[{"$f":"ADDRESS(65,31,1,1,$A$1)","v":"Summary!$AE$65"},500,{"$f":"IF(INDIRECT(A166)=B166,0,1)","v":0},{"$f":"ADDRESS(99,4,1,1,$D$1)","v":"'Fixed Income Investments'!$D$99"},"=D22+D36+D75+D66+D51+D97",0,null,null,null,null,null,null,{"$f":"ADDRESS(62,5,1,1,$M$1)","v":"'Concentration Risk'!$E$62"},0,{"$f":"IF(INDIRECT(M166)=N166,0,1)","v":0},null,null,null,null,null,null,{"$f":"ADDRESS(36,18,1,1,$V$1)","v":"'LT Variable Annuity Gte Risk'!$R$36"},1.05,{"$f":"IF(INDIRECT(V166)=W166,0,1)","v":0}]
[{"$f":"ADDRESS(65,33,1,1,$A$1)","v":"Summary!$AG$65"},"=MAX(AE65,AA65*MIN(Z$62,AD65)+AC65*MAX((Z$62-AD65),0))*IFERROR((1/'Information Sheet'!$H$18),1)",{"$f":"IF(_xlfn.FORMULATEXT(INDIRECT(A167))=B167,0,1)","v":0},{"$f":"ADDRESS(99,6,1,1,$D$1)","v":"'Fixed Income Investments'!$F$99"},"=MAX(0,F22+F36+F75+F66+F51+F97)",0,null,null,null,null,null,null,{"$f":"ADDRESS(62,6,1,1,$M$1)","v":"'Concentration Risk'!$F$62"},"=MAX(0,(D62*E62))",{"$f":"IF(_xlfn.FORMULATEXT(INDIRECT(M167))=N167,0,1)","v":0},null,null,null,null,null,null,{"$f":"ADDRESS(36,20,1,1,$V$1)","v":"'LT Variable Annuity Gte Risk'!$T$36"},"=+'Schedule VIII (EBS)'!R21",{"$f":"IF(_xlfn.FORMULATEXT(INDIRECT(V167))=W167,0,1)","v":0}]
[{"$f":"ADDRESS(66,7,1,1,$A$1)","v":"Summary!$G$66"},"=+'Schedule XVI'!M211",{"$f":"IF(_xlfn.FORMULATEXT(INDIRECT(A168))=B168,0,1)","v":0},null,null,-168,null,null,null,null,null,null,{"$f":"ADDRESS(63,2,1,1,$M$1)","v":"'Concentration Risk'!$B$63"},"BSCR Rating 1",{"$f":"IF(INDIRECT(M168)=N168,0,1)","v":0},null,null,null,null,null,null,{"$f":"ADDRESS(36,21,1,1,$V$1)","v":"'LT Variable Annuity Gte Risk'!$U$36"},1.6,{"$f":"IF(INDIRECT(V168)=W168,0,1)","v":0}]
[{"$f":"ADDRESS(66,14,1,1,$A$1)","v":"Summary!$N$66"},"=+'Schedule XVI'!M211",{"$f":"IF(_xlfn.FORMULATEXT(INDIRECT(A169))=B169,0,1)","v":0},null,null,null,null,null,null,null,null,null,{"$f":"ADDRESS(63,4,1,1,$M$1)","v":"'Concentration Risk'!$D$63"},"=SUMIFS('Schedule XXI'!$M$8:$M$57,'Schedule XXI'!$K$8:$K$57,$D$61,'Schedule XXI'!$L$8:$L$57,$B63)",{"$f":"IF(_xlfn.FORMULATEXT(INDIRECT(M169))=N169,0,1)","v":0},null,null,null,null,null,null,{"$f":"ADDRESS(36,23,1,1,$V$1)","v":"'LT Variable Annuity Gte Risk'!$W$36"},"=IF(ISERROR(OR(E36*F36+H36*I36+K36*L36,N36*O36+Q36*R36+T36*U36)),0,MAX(E36*F36+H36*I36+K36*L36,N36*O36+Q36*R36+T36*U36))",{"$f":"IF(_xlfn.FORMULATEXT(INDIRECT(V169))=W169,0,1)","v":0}]
[{"$f":"ADDRESS(68,7,1,1,$A$1)","v":"Summary!$G$68"},"='Company Specific Parameters'!I553-'Company Specific Parameters'!F553",{"$f":"IF(_xlfn.FORMULATEXT(INDIRECT(A170))=B170,0,1)","v":0},null,null,null,null,null,null,null,null,null,{"$f":"ADDRESS(63,5,1,1,$M$1)","v":"'Concentration Risk'!$E$63"},4.0000000000000001E-3,{"$f":"IF(INDIRECT(M170)=N170,0,1)","v":0},null,null,null,null,null,null,{"$f":"ADDRESS(36,25,1,1,$V$1)","v":"'LT Variable Annuity Gte Risk'!$Y$36"},"=+'Schedule VIII (EBS)'!F21",{"$f":"IF(_xlfn.FORMULATEXT(INDIRECT(V170))=W170,0,1)","v":0}]
[{"$f":"ADDRESS(68,14,1,1,$A$1)","v":"Summary!$N$68"},"='CSP (Revised)'!L747-'CSP (Revised)'!I747",{"$f":"IF(_xlfn.FORMULATEXT(INDIRECT(A171))=B171,0,1)","v":0},null,null,null,null,null,null,null,null,null,{"$f":"ADDRESS(63,6,1,1,$M$1)","v":"'Concentration Risk'!$F$63"},"=MAX(0,(D63*E63))",{"$f":"IF(_xlfn.FORMULATEXT(INDIRECT(M171))=N171,0,1)","v":0},null,null,null,null,null,null,{"$f":"ADDRESS(36,27,1,1,$V$1)","v":"'LT Variable Annuity Gte Risk'!$AA$36"},"=MAX(0,W36-Y36)",{"$f":"IF(_xlfn.FORMULATEXT(INDIRECT(V171))=W171,0,1)","v":0}]
[{"$f":"ADDRESS(68,27,1,1,$A$1)","v":"Summary!$AA$68"},0.02,{"$f":"IF(INDIRECT(A172)=B172,0,1)","v":0},null,null,null,null,null,null,null,null,null,{"$f":"ADDRESS(64,2,1,1,$M$1)","v":"'Concentration Risk'!$B$64"},"BSCR Rating 2",{"$f":"IF(INDIRECT(M172)=N172,0,1)","v":0},null,null,null,null,null,null,{"$f":"ADDRESS(37,5,1,1,$V$1)","v":"'LT Variable Annuity Gte Risk'!$E$37"},"=+'Schedule VIII (EBS)'!H22",{"$f":"IF(_xlfn.FORMULATEXT(INDIRECT(V172))=W172,0,1)","v":0}]
[{"$f":"ADDRESS(68,29,1,1,$A$1)","v":"Summary!$AC$68"},1.4999999999999999E-2,{"$f":"IF(INDIRECT(A173)=B173,0,1)","v":0},null,null,null,null,null,null,null,null,null,{"$f":"ADDRESS(64,4,1,1,$M$1)","v":"'Concentration Risk'!$D$64"},"=SUMIFS('Schedule XXI'!$M$8:$M$57,'Schedule XXI'!$K$8:$K$57,$D$61,'Schedule XXI'!$L$8:$L$57,$B64)",{"$f":"IF(_xlfn.FORMULATEXT(INDIRECT(M173))=N173,0,1)","v":0},null,null,null,null,null,null,{"$f":"ADDRESS(37,6,1,1,$V$1)","v":"'LT Variable Annuity Gte Risk'!$F$37"},2.8000000000000001E-2,{"$f":"IF(INDIRECT(V173)=W173,0,1)","v":0}]
[{"$f":"ADDRESS(68,30,1,1,$A$1)","v":"Summary!$AD$68"},250000,{"$f":"IF(INDIRECT(A174)=B174,0,1)","v":0},null,null,null,null,null,null,null,null,null,{"$f":"ADDRESS(64,5,1,1,$M$1)","v":"'Concentration Risk'!$E$64"},8.0000000000000002E-3,{"$f":"IF(INDIRECT(M174)=N174,0,1)","v":0},null,null,null,null,null,null,{"$f":"ADDRESS(37,8,1,1,$V$1)","v":"'LT Variable Annuity Gte Risk'!$H$37"},"=+'Schedule VIII (EBS)'!J22",{"$f":"IF(_xlfn.FORMULATEXT(INDIRECT(V174))=W174,0,1)","v":0}]
[{"$f":"ADDRESS(68,31,1,1,$A$1)","v":"Summary!$AE$68"},4000,{"$f":"IF(INDIRECT(A175)=B175,0,1)","v":0},null,null,null,null,null,null,null,null,null,{"$f":"ADDRESS(64,6,1,1,$M$1)","v":"'Concentration Risk'!$F$64"},"=MAX(0,(D64*E64))",{"$f":"IF(_xlfn.FORMULATEXT(INDIRECT(M175))=N175,0,1)","v":0},null,null,null,null,null,null,{"$f":"ADDRESS(37,9,1,1,$V$1)","v":"'LT Variable Annuity Gte Risk'!$I$37"},0.05,{"$f":"IF(INDIRECT(V175)=W175,0,1)","v":0}]
[{"$f":"ADDRESS(68,33,1,1,$A$1)","v":"Summary!$AG$68"},"=MAX(AE68,AA68*MIN(Z$62,AD68)+AC68*MAX((Z$62-AD68),0))*IFERROR((1/'Information Sheet'!$H$18),1)",{"$f":"IF(_xlfn.FORMULATEXT(INDIRECT(A176))=B176,0,1)","v":0},null,null,null,null,null,null,null,null,null,{"$f":"ADDRESS(65,2,1,1,$M$1)","v":"'Concentration Risk'!$B$65"},"BSCR Rating 3",{"$f":"IF(INDIRECT(M176)=N176,0,1)","v":0},null,null,null,null,null,null,{"$f":"ADDRESS(37,11,1,1,$V$1)","v":"'LT Variable Annuity Gte Risk'!$K$37"},"=+'Schedule VIII (EBS)'!L22",{"$f":"IF(_xlfn.FORMULATEXT(INDIRECT(V176))=W176,0,1)","v":0}]
[{"$f":"ADDRESS(69,27,1,1,$A$1)","v":"Summary!$AA$69"},0.02,{"$f":"IF(INDIRECT(A177)=B177,0,1)","v":0},null,null,null,null,null,null,null,null,null,{"$f":"ADDRESS(65,4,1,1,$M$1)","v":"'Concentration Risk'!$D$65"},"=SUMIFS('Schedule XXI'!$M$8:$M$57,'Schedule XXI'!$K$8:$K$57,$D$61,'Schedule XXI'!$L$8:$L$57,$B65)",{"$f":"IF(_xlfn.FORMULATEXT(INDIRECT(M177))=N177,0,1)","v":0},null,null,null,null,null,null,{"$f":"ADDRESS(37,12,1,1,$V$1)","v":"'LT Variable Annuity Gte Risk'!$L$37"},8.7999999999999995E-2,{"$f":"IF(INDIRECT(V177)=W177,0,1)","v":0}]
[{"$f":"ADDRESS(69,29,1,1,$A$1)","v":"Summary!$AC$69"},1.4999999999999999E-2,{"$f":"IF(INDIRECT(A178)=B178,0,1)","v":0},null,null,null,null,null,null,null,null,null,{"$f":"ADDRESS(65,5,1,1,$M$1)","v":"'Concentration Risk'!$E$65"},1.4999999999999999E-2,{"$f":"IF(INDIRECT(M178)=N178,0,1)","v":0},null,null,null,null,null,null,{"$f":"ADDRESS(37,14,1,1,$V$1)","v":"'LT Variable Annuity Gte Risk'!$N$37"},"=+'Schedule VIII (EBS)'!N22",{"$f":"IF(_xlfn.FORMULATEXT(INDIRECT(V178))=W178,0,1)","v":0}]
[{"$f":"ADDRESS(69,30,1,1,$A$1)","v":"Summary!$AD$69"},500000,{"$f":"IF(INDIRECT(A179)=B179,0,1)","v":0},null,null,null,null,null,null,null,null,null,{"$f":"ADDRESS(65,6,1,1,$M$1)","v":"'Concentration Risk'!$F$65"},"=MAX(0,(D65*E65))",{"$f":"IF(_xlfn.FORMULATEXT(INDIRECT(M179))=N179,0,1)","v":0},null,null,null,null,null,null,{"$f":"ADDRESS(37,15,1,1,$V$1)","v":"'LT Variable Annuity Gte Risk'!$O$37"},0.6,{"$f":"IF(INDIRECT(V179)=W179,0,1)","v":0}]
[{"$f":"ADDRESS(69,31,1,1,$A$1)","v":"Summary!$AE$69"},8000,{"$f":"IF(INDIRECT(A180)=B180,0,1)","v":0},null,null,null,null,null,null,null,null,null,{"$f":"ADDRESS(66,2,1,1,$M$1)","v":"'Concentration Risk'!$B$66"},"BSCR Rating 4",{"$f":"IF(INDIRECT(M180)=N180,0,1)","v":0},null,null,null,null,null,null,{"$f":"ADDRESS(37,17,1,1,$V$1)","v":"'LT Variable Annuity Gte Risk'!$Q$37"},"=+'Schedule VIII (EBS)'!P22",{"$f":"IF(_xlfn.FORMULATEXT(INDIRECT(V180))=W180,0,1)","v":0}]
[{"$f":"ADDRESS(69,33,1,1,$A$1)","v":"Summary!$AG$69"},"=MAX(AE69,AA69*MIN(Z$62,AD69)+AC69*MAX((Z$62-AD69),0))*IFERROR((1/'Information Sheet'!$H$18),1)",{"$f":"IF(_xlfn.FORMULATEXT(INDIRECT(A181))=B181,0,1)","v":0},null,null,null,null,null,null,null,null,null,{"$f":"ADDRESS(66,4,1,1,$M$1)","v":"'Concentration Risk'!$D$66"},"=SUMIFS('Schedule XXI'!$M$8:$M$57,'Schedule XXI'!$K$8:$K$57,$D$61,'Schedule XXI'!$L$8:$L$57,$B66)",{"$f":"IF(_xlfn.FORMULATEXT(INDIRECT(M181))=N181,0,1)","v":0},null,null,null,null,null,null,{"$f":"ADDRESS(37,18,1,1,$V$1)","v":"'LT Variable Annuity Gte Risk'!$R$37"},0.95,{"$f":"IF(INDIRECT(V181)=W181,0,1)","v":0}]
[{"$f":"ADDRESS(70,14,1,1,$A$1)","v":"Summary!$N$70"},"=N133",0,null,null,null,null,null,null,null,null,null,{"$f":"ADDRESS(66,5,1,1,$M$1)","v":"'Concentration Risk'!$E$66"},0.03,{"$f":"IF(INDIRECT(M182)=N182,0,1)","v":0},null,null,null,null,null,null,{"$f":"ADDRESS(37,20,1,1,$V$1)","v":"'LT Variable Annuity Gte Risk'!$T$37"},"=+'Schedule VIII (EBS)'!R22",{"$f":"IF(_xlfn.FORMULATEXT(INDIRECT(V182))=W182,0,1)","v":0}]
[{"$f":"ADDRESS(72,7,1,1,$A$1)","v":"Summary!$G$72"},"=N152",0,null,null,null,null,null,null,null,null,null,{"$f":"ADDRESS(66,6,1,1,$M$1)","v":"'Concentration Risk'!$F$66"},"=MAX(0,(D66*E66))",{"$f":"IF(_xlfn.FORMULATEXT(INDIRECT(M183))=N183,0,1)","v":0},null,null,null,null,null,null,{"$f":"ADDRESS(37,21,1,1,$V$1)","v":"'LT Variable Annuity Gte Risk'!$U$37"},1.35,{"$f":"IF(INDIRECT(V183)=W183,0,1)","v":0}]
[{"$f":"ADDRESS(72,14,1,1,$A$1)","v":"Summary!$N$72"},"=N138",0,null,null,null,null,null,null,null,null,null,{"$f":"ADDRESS(67,2,1,1,$M$1)","v":"'Concentration Risk'!$B$67"},"BSCR Rating 5",{"$f":"IF(INDIRECT(M184)=N184,0,1)","v":0},null,null,null,null,null,null,{"$f":"ADDRESS(37,23,1,1,$V$1)","v":"'LT Variable Annuity Gte Risk'!$W$37"},"=IF(ISERROR(OR(E37*F37+H37*I37+K37*L37,N37*O37+Q37*R37+T37*U37)),0,MAX(E37*F37+H37*I37+K37*L37,N37*O37+Q37*R37+T37*U37))",{"$f":"IF(_xlfn.FORMULATEXT(INDIRECT(V184))=W184,0,1)","v":0}]
[{"$f":"ADDRESS(74,12,1,1,$A$1)","v":"Summary!$L$74"},"=IF('Information Sheet'!$H$13>='Correlation Matrix'!$A$25,'Correlation Matrix'!$B$25,IF('Information Sheet'!$H$13>='Correlation Matrix'!$A$24,'Correlation Matrix'!$B$24,IF('Information Sheet'!$H$13>='Correlation Matrix'!$A$23,'Correlation Matrix'!$B$23,IF('Information Sheet'!$H$13>='Correlation Matrix'!$A$22,'Correlation Matrix'!$B$22,IF('Information Sheet'!$H$13>='Correlation Matrix'!$A$21,'Correlation Matrix'!$B$21,IF('Information Sheet'!$H$13>='Correlation Matrix'!$A$20,'Correlation Matrix'!$B$20,IF('Information Sheet'!$H$13>='Correlation Matrix'!$A$19,'Correlation Matrix'!$B$19,IF('Information Sheet'!$H$13>='Correlation Matrix'!$A$18,'Correlation Matrix'!$B$18,IF('Information Sheet'!$H$13>='Correlation Matrix'!$A$17,'Correlation Matrix'!$B$17,'Correlation Matrix'!$B$16)))))))))",0,null,null,null,null,null,null,null,null,null,{"$f":"ADDRESS(67,4,1,1,$M$1)","v":"'Concentration Risk'!$D$67"},"=SUMIFS('Schedule XXI'!$M$8:$M$57,'Schedule XXI'!$K$8:$K$57,$D$61,'Schedule XXI'!$L$8:$L$57,$B67)",{"$f":"IF(_xlfn.FORMULATEXT(INDIRECT(M185))=N185,0,1)","v":0},null,null,null,null,null,null,{"$f":"ADDRESS(37,25,1,1,$V$1)","v":"'LT Variable Annuity Gte Risk'!$Y$37"},"=+'Schedule VIII (EBS)'!F22",{"$f":"IF(_xlfn.FORMULATEXT(INDIRECT(V185))=W185,0,1)","v":0}]
[{"$f":"ADDRESS(74,14,1,1,$A$1)","v":"Summary!$N$74"},"=G76+((N76-G76)*L74)",0,null,null,null,null,null,null,null,null,null,{"$f":"ADDRESS(67,5,1,1,$M$1)","v":"'Concentration Risk'!$E$67"},0.08,{"$f":"IF(INDIRECT(M186)=N186,0,1)","v":0},null,null,null,null,null,null,{"$f":"ADDRESS(37,27,1,1,$V$1)","v":"'LT Variable Annuity Gte Risk'!$AA$37"},"=MAX(0,W37-Y37)",{"$f":"IF(_xlfn.FORMULATEXT(INDIRECT(V186))=W186,0,1)","v":0}]
[{"$f":"ADDRESS(76,7,1,1,$A$1)","v":"Summary!$G$76"},"=G64+G68+G60+G66+G72",0,null,null,null,null,null,null,null,null,null,{"$f":"ADDRESS(67,6,1,1,$M$1)","v":"'Concentration Risk'!$F$67"},"=MAX(0,(D67*E67))",{"$f":"IF(_xlfn.FORMULATEXT(INDIRECT(M187))=N187,0,1)","v":0},null,null,null,null,null,null,{"$f":"ADDRESS(38,5,1,1,$V$1)","v":"'LT Variable Annuity Gte Risk'!$E$38"},"=+'Schedule VIII (EBS)'!H23",{"$f":"IF(_xlfn.FORMULATEXT(INDIRECT(V187))=W187,0,1)","v":0}]
[{"$f":"ADDRESS(76,14,1,1,$A$1)","v":"Summary!$N$76"},"=N64+N68+N60+N66+N72+N70",0,null,null,null,null,null,null,null,null,null,{"$f":"ADDRESS(68,2,1,1,$M$1)","v":"'Concentration Risk'!$B$68"},"BSCR Rating 6",{"$f":"IF(INDIRECT(M188)=N188,0,1)","v":0},null,null,null,null,null,null,{"$f":"ADDRESS(38,6,1,1,$V$1)","v":"'LT Variable Annuity Gte Risk'!$F$38"},2.4E-2,{"$f":"IF(INDIRECT(V188)=W188,0,1)","v":0}]
[{"$f":"ADDRESS(79,26,1,1,$A$1)","v":"Summary!$Z$79"},"=N90",0,null,null,null,null,null,null,null,null,null,{"$f":"ADDRESS(68,4,1,1,$M$1)","v":"'Concentration Risk'!$D$68"},"=SUMIFS('Schedule XXI'!$M$8:$M$57,'Schedule XXI'!$K$8:$K$57,$D$61,'Schedule XXI'!$L$8:$L$57,$B68)",{"$f":"IF(_xlfn.FORMULATEXT(INDIRECT(M189))=N189,0,1)","v":0},null,null,null,null,null,null,{"$f":"ADDRESS(38,8,1,1,$V$1)","v":"'LT Variable Annuity Gte Risk'!$H$38"},"=+'Schedule VIII (EBS)'!J23",{"$f":"IF(_xlfn.FORMULATEXT(INDIRECT(V189))=W189,0,1)","v":0}]
[{"$f":"ADDRESS(80,14,1,1,$A$1)","v":"Summary!$N$80"},"='Form 4EBS'!F184",0,null,null,null,null,null,null,null,null,null,{"$f":"ADDRESS(68,5,1,1,$M$1)","v":"'Concentration Risk'!$E$68"},0.15,{"$f":"IF(INDIRECT(M190)=N190,0,1)","v":0},null,null,null,null,null,null,{"$f":"ADDRESS(38,9,1,1,$V$1)","v":"'LT Variable Annuity Gte Risk'!$I$38"},4.2999999999999997E-2,{"$f":"IF(INDIRECT(V190)=W190,0,1)","v":0}]
[{"$f":"ADDRESS(82,14,1,1,$A$1)","v":"Summary!$N$82"},"=N80+N81",0,null,null,null,null,null,null,null,null,null,{"$f":"ADDRESS(68,6,1,1,$M$1)","v":"'Concentration Risk'!$F$68"},"=MAX(0,(D68*E68))",{"$f":"IF(_xlfn.FORMULATEXT(INDIRECT(M191))=N191,0,1)","v":0},null,null,null,null,null,null,{"$f":"ADDRESS(38,11,1,1,$V$1)","v":"'LT Variable Annuity Gte Risk'!$K$38"},"=+'Schedule VIII (EBS)'!L23",{"$f":"IF(_xlfn.FORMULATEXT(INDIRECT(V191))=W191,0,1)","v":0}]
[{"$f":"ADDRESS(84,14,1,1,$A$1)","v":"Summary!$N$84"},0,{"$f":"IF(INDIRECT(A192)=B192,0,1)","v":0},null,null,null,null,null,null,null,null,null,{"$f":"ADDRESS(69,2,1,1,$M$1)","v":"'Concentration Risk'!$B$69"},"BSCR Rating 7",{"$f":"IF(INDIRECT(M192)=N192,0,1)","v":0},null,null,null,null,null,null,{"$f":"ADDRESS(38,12,1,1,$V$1)","v":"'LT Variable Annuity Gte Risk'!$L$38"},0.08,{"$f":"IF(INDIRECT(V192)=W192,0,1)","v":0}]
[{"$f":"ADDRESS(86,14,1,1,$A$1)","v":"Summary!$N$86"},"=N82+N84",{"$f":"IF(_xlfn.FORMULATEXT(INDIRECT(A193))=B193,0,1)","v":0},null,null,null,null,null,null,null,null,null,{"$f":"ADDRESS(69,4,1,1,$M$1)","v":"'Concentration Risk'!$D$69"},"=SUMIFS('Schedule XXI'!$M$8:$M$57,'Schedule XXI'!$K$8:$K$57,$D$61,'Schedule XXI'!$L$8:$L$57,$B69)",{"$f":"IF(_xlfn.FORMULATEXT(INDIRECT(M193))=N193,0,1)","v":0},null,null,null,null,null,null,{"$f":"ADDRESS(38,14,1,1,$V$1)","v":"'LT Variable Annuity Gte Risk'!$N$38"},"=+'Schedule VIII (EBS)'!N23",{"$f":"IF(_xlfn.FORMULATEXT(INDIRECT(V193))=W193,0,1)","v":0}]
[{"$f":"ADDRESS(90,14,1,1,$A$1)","v":"Summary!$N$90"},"=MAX((N74*25%),(IF('Insurer Information'!F9=\"Class E\",AG69,IF('Insurer Information'!F9=\"Class D\",AG68,IF('Insurer Information'!F9=\"Class C\",AG65,IF('Insurer Information'!F9=\"Class B\",AG64,IF('Insurer Information'!F9=\"Class A\",AG63,0)))))))",0,null,null,null,null,null,null,null,null,null,{"$f":"ADDRESS(69,5,1,1,$M$1)","v":"'Concentration Risk'!$E$69"},0.26300000000000001,{"$f":"IF(INDIRECT(M194)=N194,0,1)","v":0},null,null,null,null,null,null,{"$f":"ADDRESS(38,15,1,1,$V$1)","v":"'LT Variable Annuity Gte Risk'!$O$38"},0.55000000000000004,{"$f":"IF(INDIRECT(V194)=W194,0,1)","v":0}]
[{"$f":"ADDRESS(92,14,1,1,$A$1)","v":"Summary!$N$92"},"=SUM(N90:N91)",0,null,null,null,null,null,null,null,null,null,{"$f":"ADDRESS(69,6,1,1,$M$1)","v":"'Concentration Risk'!$F$69"},"=MAX(0,(D69*E69))",{"$f":"IF(_xlfn.FORMULATEXT(INDIRECT(M195))=N195,0,1)","v":0},null,null,null,null,null,null,{"$f":"ADDRESS(38,17,1,1,$V$1)","v":"'LT Variable Annuity Gte Risk'!$Q$38"},"=+'Schedule VIII (EBS)'!P23",{"$f":"IF(_xlfn.FORMULATEXT(INDIRECT(V195))=W195,0,1)","v":0}]
[{"$f":"ADDRESS(94,27,1,1,$A$1)","v":"Summary!$AA$94"},"=G86",0,null,null,null,null,null,null,null,null,null,{"$f":"ADDRESS(70,2,1,1,$M$1)","v":"'Concentration Risk'!$B$70"},"BSCR Rating 8",{"$f":"IF(INDIRECT(M196)=N196,0,1)","v":0},null,null,null,null,null,null,{"$f":"ADDRESS(38,18,1,1,$V$1)","v":"'LT Variable Annuity Gte Risk'!$R$38"},0.85,{"$f":"IF(INDIRECT(V196)=W196,0,1)","v":0}]
[{"$f":"ADDRESS(94,29,1,1,$A$1)","v":"Summary!$AC$94"},"=AC$102-AA94",0,null,null,null,null,null,null,null,null,null,{"$f":"ADDRESS(70,4,1,1,$M$1)","v":"'Concentration Risk'!$D$70"},"=SUMIFS('Schedule XXI'!$M$8:$M$57,'Schedule XXI'!$K$8:$K$57,$D$61,'Schedule XXI'!$L$8:$L$57,$B70)",{"$f":"IF(_xlfn.FORMULATEXT(INDIRECT(M197))=N197,0,1)","v":0},null,null,null,null,null,null,{"$f":"ADDRESS(38,20,1,1,$V$1)","v":"'LT Variable Annuity Gte Risk'!$T$38"},"=+'Schedule VIII (EBS)'!R23",{"$f":"IF(_xlfn.FORMULATEXT(INDIRECT(V197))=W197,0,1)","v":0}]
[{"$f":"ADDRESS(94,30,1,1,$A$1)","v":"Summary!$AD$94"},"=IF($N$86=0,25000000,1000*$N$86)",0,null,null,null,null,null,null,null,null,null,{"$f":"ADDRESS(70,5,1,1,$M$1)","v":"'Concentration Risk'!$E$70"},0.35,{"$f":"IF(INDIRECT(M198)=N198,0,1)","v":0},null,null,null,null,null,null,{"$f":"ADDRESS(38,21,1,1,$V$1)","v":"'LT Variable Annuity Gte Risk'!$U$38"},1.1499999999999999,{"$f":"IF(INDIRECT(V198)=W198,0,1)","v":0}]
[{"$f":"ADDRESS(96,14,1,1,$A$1)","v":"Summary!$N$96"},"=MAX(N74,N92)",0,null,null,null,null,null,null,null,null,null,{"$f":"ADDRESS(70,6,1,1,$M$1)","v":"'Concentration Risk'!$F$70"},"=MAX(0,(D70*E70))",{"$f":"IF(_xlfn.FORMULATEXT(INDIRECT(M199))=N199,0,1)","v":0},null,null,null,null,null,null,{"$f":"ADDRESS(38,23,1,1,$V$1)","v":"'LT Variable Annuity Gte Risk'!$W$38"},"=IF(ISERROR(OR(E38*F38+H38*I38+K38*L38,N38*O38+Q38*R38+T38*U38)),0,MAX(E38*F38+H38*I38+K38*L38,N38*O38+Q38*R38+T38*U38))",{"$f":"IF(_xlfn.FORMULATEXT(INDIRECT(V199))=W199,0,1)","v":0}]
[{"$f":"ADDRESS(98,14,1,1,$A$1)","v":"Summary!$N$98"},"=MAX(N76,N92)",0,null,null,null,null,null,null,null,null,null,{"$f":"ADDRESS(72,4,1,1,$M$1)","v":"'Concentration Risk'!$D$72"},"=SUM(D62:D70)",{"$f":"IF(_xlfn.FORMULATEXT(INDIRECT(M200))=N200,0,1)","v":0},null,null,null,null,null,null,{"$f":"ADDRESS(38,25,1,1,$V$1)","v":"'LT Variable Annuity Gte Risk'!$Y$38"},"=+'Schedule VIII (EBS)'!F23",{"$f":"IF(_xlfn.FORMULATEXT(INDIRECT(V200))=W200,0,1)","v":0}]
[{"$f":"ADDRESS(98,29,1,1,$A$1)","v":"Summary!$AC$98"},"=AC$102-AA98",0,null,null,null,null,null,null,null,null,null,{"$f":"ADDRESS(72,6,1,1,$M$1)","v":"'Concentration Risk'!$F$72"},"=SUM(F62:F70)",{"$f":"IF(_xlfn.FORMULATEXT(INDIRECT(M201))=N201,0,1)","v":0},null,null,null,null,null,null,{"$f":"ADDRESS(38,27,1,1,$V$1)","v":"'LT Variable Annuity Gte Risk'!$AA$38"},"=MAX(0,W38-Y38)",{"$f":"IF(_xlfn.FORMULATEXT(INDIRECT(V201))=W201,0,1)","v":0}]
[{"$f":"ADDRESS(98,30,1,1,$A$1)","v":"Summary!$AD$98"},"=IF(N98=0,15000000,1000*N98)",0,null,null,null,null,null,null,null,null,null,{"$f":"ADDRESS(74,4,1,1,$M$1)","v":"'Concentration Risk'!$D$74"},"Preferred Shares",{"$f":"IF(INDIRECT(M202)=N202,0,1)","v":0},null,null,null,null,null,null,{"$f":"ADDRESS(39,5,1,1,$V$1)","v":"'LT Variable Annuity Gte Risk'!$E$39"},"=+'Schedule VIII (EBS)'!H24",{"$f":"IF(_xlfn.FORMULATEXT(INDIRECT(V202))=W202,0,1)","v":0}]
[{"$f":"ADDRESS(100,14,1,1,$A$1)","v":"Summary!$N$100"},"=N96*1.2",0,null,null,null,null,null,null,null,null,null,{"$f":"ADDRESS(75,2,1,1,$M$1)","v":"'Concentration Risk'!$B$75"},"BSCR Rating 0",{"$f":"IF(INDIRECT(M203)=N203,0,1)","v":0},null,null,null,null,null,null,{"$f":"ADDRESS(39,6,1,1,$V$1)","v":"'LT Variable Annuity Gte Risk'!$F$39"},0.02,{"$f":"IF(INDIRECT(V203)=W203,0,1)","v":0}]
[{"$f":"ADDRESS(100,29,1,1,$A$1)","v":"Summary!$AC$100"},"=AC$102-AA100",0,null,null,null,null,null,null,null,null,null,{"$f":"ADDRESS(75,4,1,1,$M$1)","v":"'Concentration Risk'!$D$75"},"=SUMIFS('Schedule XXI'!$M$8:$M$57,'Schedule XXI'!$J$8:$J$57,$D$74,'Schedule XXI'!$L$8:$L$57,$B75)",{"$f":"IF(_xlfn.FORMULATEXT(INDIRECT(M204))=N204,0,1)","v":0},null,null,null,null,null,null,{"$f":"ADDRESS(39,8,1,1,$V$1)","v":"'LT Variable Annuity Gte Risk'!$H$39"},"=+'Schedule VIII (EBS)'!J24",{"$f":"IF(_xlfn.FORMULATEXT(INDIRECT(V204))=W204,0,1)","v":0}]
[{"$f":"ADDRESS(100,30,1,1,$A$1)","v":"Summary!$AD$100"},"=IF($N$102=0,18000000,1000*$N$102)",0,null,null,null,null,null,null,null,null,null,{"$f":"ADDRESS(75,5,1,1,$M$1)","v":"'Concentration Risk'!$E$75"},0,{"$f":"IF(INDIRECT(M205)=N205,0,1)","v":0},null,null,null,null,null,null,{"$f":"ADDRESS(39,9,1,1,$V$1)","v":"'LT Variable Annuity Gte Risk'!$I$39"},3.5000000000000003E-2,{"$f":"IF(INDIRECT(V205)=W205,0,1)","v":0}]
[{"$f":"ADDRESS(102,14,1,1,$A$1)","v":"Summary!$N$102"},"=$N$98*1.2",0,null,null,null,null,null,null,null,null,null,{"$f":"ADDRESS(75,6,1,1,$M$1)","v":"'Concentration Risk'!$F$75"},"=MAX(0,(D75*E75))",{"$f":"IF(_xlfn.FORMULATEXT(INDIRECT(M206))=N206,0,1)","v":0},null,null,null,null,null,null,{"$f":"ADDRESS(39,11,1,1,$V$1)","v":"'LT Variable Annuity Gte Risk'!$K$39"},"=+'Schedule VIII (EBS)'!L24",{"$f":"IF(_xlfn.FORMULATEXT(INDIRECT(V206))=W206,0,1)","v":0}]
[{"$f":"ADDRESS(102,29,1,1,$A$1)","v":"Summary!$AC$102"},"=MAX(AD94:AD103)",0,null,null,null,null,null,null,null,null,null,{"$f":"ADDRESS(76,2,1,1,$M$1)","v":"'Concentration Risk'!$B$76"},"BSCR Rating 1",{"$f":"IF(INDIRECT(M207)=N207,0,1)","v":0},null,null,null,null,null,null,{"$f":"ADDRESS(39,12,1,1,$V$1)","v":"'LT Variable Annuity Gte Risk'!$L$39"},6.8000000000000005E-2,{"$f":"IF(INDIRECT(V207)=W207,0,1)","v":0}]
[{"$f":"ADDRESS(106,14,1,1,$A$1)","v":"Summary!$N$106"},"=IF(N74=0,\"n/a\",N86/N74)",0,null,null,null,null,null,null,null,null,null,{"$f":"ADDRESS(76,4,1,1,$M$1)","v":"'Concentration Risk'!$D$76"},"=SUMIFS('Schedule XXI'!$M$8:$M$57,'Schedule XXI'!$J$8:$J$57,$D$74,'Schedule XXI'!$L$8:$L$57,$B76)",{"$f":"IF(_xlfn.FORMULATEXT(INDIRECT(M208))=N208,0,1)","v":0},null,null,null,null,null,null,{"$f":"ADDRESS(39,14,1,1,$V$1)","v":"'LT Variable Annuity Gte Risk'!$N$39"},"=+'Schedule VIII (EBS)'!N24",{"$f":"IF(_xlfn.FORMULATEXT(INDIRECT(V208))=W208,0,1)","v":0}]
[{"$f":"ADDRESS(108,14,1,1,$A$1)","v":"Summary!$N$108"},"=IF($N$76=0,\"n/a\",$N$86/$N$76)",0,null,null,null,null,null,null,null,null,null,{"$f":"ADDRESS(76,5,1,1,$M$1)","v":"'Concentration Risk'!$E$76"},6.0000000000000001E-3,{"$f":"IF(INDIRECT(M209)=N209,0,1)","v":0},null,null,null,null,null,null,{"$f":"ADDRESS(39,15,1,1,$V$1)","v":"'LT Variable Annuity Gte Risk'!$O$39"},0.5,{"$f":"IF(INDIRECT(V209)=W209,0,1)","v":0}]
[{"$f":"ADDRESS(110,14,1,1,$A$1)","v":"Summary!$N$110"},"=IF(N96=0,\"n/a\",N86/N96)",0,null,null,null,null,null,null,null,null,null,{"$f":"ADDRESS(76,6,1,1,$M$1)","v":"'Concentration Risk'!$F$76"},"=MAX(0,(D76*E76))",{"$f":"IF(_xlfn.FORMULATEXT(INDIRECT(M210))=N210,0,1)","v":0},null,null,null,null,null,null,{"$f":"ADDRESS(39,17,1,1,$V$1)","v":"'LT Variable Annuity Gte Risk'!$Q$39"},"=+'Schedule VIII (EBS)'!P24",{"$f":"IF(_xlfn.FORMULATEXT(INDIRECT(V210))=W210,0,1)","v":0}]
[{"$f":"ADDRESS(112,14,1,1,$A$1)","v":"Summary!$N$112"},"=IF(N98=0,\"n/a\",$N$86/N98)",0,null,null,null,null,null,null,null,null,null,{"$f":"ADDRESS(77,2,1,1,$M$1)","v":"'Concentration Risk'!$B$77"},"BSCR Rating 2",{"$f":"IF(INDIRECT(M211)=N211,0,1)","v":0},null,null,null,null,null,null,{"$f":"ADDRESS(39,18,1,1,$V$1)","v":"'LT Variable Annuity Gte Risk'!$R$39"},0.75,{"$f":"IF(INDIRECT(V211)=W211,0,1)","v":0}]
[{"$f":"ADDRESS(114,14,1,1,$A$1)","v":"Summary!$N$114"},"=IF(AND(N110>100%,E126=\"Yes\",G126=\"Yes\"),\"YES\",\"NO\")",0,null,null,null,null,null,null,null,null,null,{"$f":"ADDRESS(77,4,1,1,$M$1)","v":"'Concentration Risk'!$D$77"},"=SUMIFS('Schedule XXI'!$M$8:$M$57,'Schedule XXI'!$J$8:$J$57,$D$74,'Schedule XXI'!$L$8:$L$57,$B77)",{"$f":"IF(_xlfn.FORMULATEXT(INDIRECT(M212))=N212,0,1)","v":0},null,null,null,null,null,null,{"$f":"ADDRESS(39,20,1,1,$V$1)","v":"'LT Variable Annuity Gte Risk'!$T$39"},"=+'Schedule VIII (EBS)'!R24",{"$f":"IF(_xlfn.FORMULATEXT(INDIRECT(V212))=W212,0,1)","v":0}]
[{"$f":"ADDRESS(117,7,1,1,$A$1)","v":"Summary!$G$117"},"='Form 4EBS'!$F$6",0,null,null,null,null,null,null,null,null,null,{"$f":"ADDRESS(77,5,1,1,$M$1)","v":"'Concentration Risk'!$E$77"},1.2E-2,{"$f":"IF(INDIRECT(M213)=N213,0,1)","v":0},null,null,null,null,null,null,{"$f":"ADDRESS(39,21,1,1,$V$1)","v":"'LT Variable Annuity Gte Risk'!$U$39"},1,{"$f":"IF(INDIRECT(V213)=W213,0,1)","v":0}]
[{"$f":"ADDRESS(121,5,1,1,$A$1)","v":"Summary!$E$121"},"='Schedule XII(a)'!G93",0,null,null,null,null,null,null,null,null,null,{"$f":"ADDRESS(77,6,1,1,$M$1)","v":"'Concentration Risk'!$F$77"},"=MAX(0,(D77*E77))",{"$f":"IF(_xlfn.FORMULATEXT(INDIRECT(M214))=N214,0,1)","v":0},null,null,null,null,null,null,{"$f":"ADDRESS(39,23,1,1,$V$1)","v":"'LT Variable Annuity Gte Risk'!$W$39"},"=IF(ISERROR(OR(E39*F39+H39*I39+K39*L39,N39*O39+Q39*R39+T39*U39)),0,MAX(E39*F39+H39*I39+K39*L39,N39*O39+Q39*R39+T39*U39))",{"$f":"IF(_xlfn.FORMULATEXT(INDIRECT(V214))=W214,0,1)","v":0}]
[{"$f":"ADDRESS(121,7,1,1,$A$1)","v":"Summary!$G$121"},"='Schedule XII(a)'!I93",0,null,null,null,null,null,null,null,null,null,{"$f":"ADDRESS(78,2,1,1,$M$1)","v":"'Concentration Risk'!$B$78"},"BSCR Rating 3",{"$f":"IF(INDIRECT(M215)=N215,0,1)","v":0},null,null,null,null,null,null,{"$f":"ADDRESS(39,25,1,1,$V$1)","v":"'LT Variable Annuity Gte Risk'!$Y$39"},"=+'Schedule VIII (EBS)'!F24",{"$f":"IF(_xlfn.FORMULATEXT(INDIRECT(V215))=W215,0,1)","v":0}]
[{"$f":"ADDRESS(122,5,1,1,$A$1)","v":"Summary!$E$122"},"='Schedule XII(a)'!G94",0,null,null,null,null,null,null,null,null,null,{"$f":"ADDRESS(78,4,1,1,$M$1)","v":"'Concentration Risk'!$D$78"},"=SUMIFS('Schedule XXI'!$M$8:$M$57,'Schedule XXI'!$J$8:$J$57,$D$74,'Schedule XXI'!$L$8:$L$57,$B78)",{"$f":"IF(_xlfn.FORMULATEXT(INDIRECT(M216))=N216,0,1)","v":0},null,null,null,null,null,null,{"$f":"ADDRESS(39,27,1,1,$V$1)","v":"'LT Variable Annuity Gte Risk'!$AA$39"},"=MAX(0,W39-Y39)",{"$f":"IF(_xlfn.FORMULATEXT(INDIRECT(V216))=W216,0,1)","v":0}]
[{"$f":"ADDRESS(122,7,1,1,$A$1)","v":"Summary!$G$122"},"='Schedule XII(a)'!I94",0,null,null,null,null,null,null,null,null,null,{"$f":"ADDRESS(78,5,1,1,$M$1)","v":"'Concentration Risk'!$E$78"},0.02,{"$f":"IF(INDIRECT(M217)=N217,0,1)","v":0},null,null,null,null,null,null,{"$f":"ADDRESS(40,5,1,1,$V$1)","v":"'LT Variable Annuity Gte Risk'!$E$40"},"=+'Schedule VIII (EBS)'!H25",{"$f":"IF(_xlfn.FORMULATEXT(INDIRECT(V217))=W217,0,1)","v":0}]
[{"$f":"ADDRESS(123,7,1,1,$A$1)","v":"Summary!$G$123"},"='Schedule XII(a)'!I95",0,null,null,null,null,null,null,null,null,null,{"$f":"ADDRESS(78,6,1,1,$M$1)","v":"'Concentration Risk'!$F$78"},"=MAX(0,(D78*E78))",{"$f":"IF(_xlfn.FORMULATEXT(INDIRECT(M218))=N218,0,1)","v":0},null,null,null,null,null,null,{"$f":"ADDRESS(40,6,1,1,$V$1)","v":"'LT Variable Annuity Gte Risk'!$F$40"},1.7000000000000001E-2,{"$f":"IF(INDIRECT(V218)=W218,0,1)","v":0}]
[{"$f":"ADDRESS(124,5,1,1,$A$1)","v":"Summary!$E$124"},"=+'Schedule XII(a)'!G96",0,null,null,null,null,null,null,null,null,null,{"$f":"ADDRESS(79,2,1,1,$M$1)","v":"'Concentration Risk'!$B$79"},"BSCR Rating 4",{"$f":"IF(INDIRECT(M219)=N219,0,1)","v":0},null,null,null,null,null,null,{"$f":"ADDRESS(40,8,1,1,$V$1)","v":"'LT Variable Annuity Gte Risk'!$H$40"},"=+'Schedule VIII (EBS)'!J25",{"$f":"IF(_xlfn.FORMULATEXT(INDIRECT(V219))=W219,0,1)","v":0}]
[{"$f":"ADDRESS(124,7,1,1,$A$1)","v":"Summary!$G$124"},"=+'Schedule XII(a)'!I96",0,null,null,null,null,null,null,null,null,null,{"$f":"ADDRESS(79,4,1,1,$M$1)","v":"'Concentration Risk'!$D$79"},"=SUMIFS('Schedule XXI'!$M$8:$M$57,'Schedule XXI'!$J$8:$J$57,$D$74,'Schedule XXI'!$L$8:$L$57,$B79)",{"$f":"IF(_xlfn.FORMULATEXT(INDIRECT(M220))=N220,0,1)","v":0},null,null,null,null,null,null,{"$f":"ADDRESS(40,9,1,1,$V$1)","v":"'LT Variable Annuity Gte Risk'!$I$40"},2.8000000000000001E-2,{"$f":"IF(INDIRECT(V220)=W220,0,1)","v":0}]
[{"$f":"ADDRESS(126,5,1,1,$A$1)","v":"Summary!$E$126"},"=IF(E124>=N92,\"YES\",\"NO\")",0,null,null,null,null,null,null,null,null,null,{"$f":"ADDRESS(79,5,1,1,$M$1)","v":"'Concentration Risk'!$E$79"},0.04,{"$f":"IF(INDIRECT(M221)=N221,0,1)","v":0},null,null,null,null,null,null,{"$f":"ADDRESS(40,11,1,1,$V$1)","v":"'LT Variable Annuity Gte Risk'!$K$40"},"=+'Schedule VIII (EBS)'!L25",{"$f":"IF(_xlfn.FORMULATEXT(INDIRECT(V221))=W221,0,1)","v":0}]
[{"$f":"ADDRESS(126,7,1,1,$A$1)","v":"Summary!$G$126"},"=IF(G124>=N96,\"YES\",\"NO\")",0,null,null,null,null,null,null,null,null,null,{"$f":"ADDRESS(79,6,1,1,$M$1)","v":"'Concentration Risk'!$F$79"},"=MAX(0,(D79*E79))",{"$f":"IF(_xlfn.FORMULATEXT(INDIRECT(M222))=N222,0,1)","v":0},null,null,null,null,null,null,{"$f":"ADDRESS(40,12,1,1,$V$1)","v":"'LT Variable Annuity Gte Risk'!$L$40"},5.8999999999999997E-2,{"$f":"IF(INDIRECT(V222)=W222,0,1)","v":0}]
[{"$f":"ADDRESS(131,14,1,1,$A$1)","v":"Summary!$N$131"},"=N60-L60",0,null,null,null,null,null,null,null,null,null,{"$f":"ADDRESS(80,2,1,1,$M$1)","v":"'Concentration Risk'!$B$80"},"BSCR Rating 5",{"$f":"IF(INDIRECT(M223)=N223,0,1)","v":0},null,null,null,null,null,null,{"$f":"ADDRESS(40,14,1,1,$V$1)","v":"'LT Variable Annuity Gte Risk'!$N$40"},"=+'Schedule VIII (EBS)'!N25",{"$f":"IF(_xlfn.FORMULATEXT(INDIRECT(V223))=W223,0,1)","v":0}]
[{"$f":"ADDRESS(133,14,1,1,$A$1)","v":"Summary!$N$133"},"=-MAX(MIN(N131,N132),0)",0,null,null,null,null,null,null,null,null,null,{"$f":"ADDRESS(80,4,1,1,$M$1)","v":"'Concentration Risk'!$D$80"},"=SUMIFS('Schedule XXI'!$M$8:$M$57,'Schedule XXI'!$J$8:$J$57,$D$74,'Schedule XXI'!$L$8:$L$57,$B80)",{"$f":"IF(_xlfn.FORMULATEXT(INDIRECT(M224))=N224,0,1)","v":0},null,null,null,null,null,null,{"$f":"ADDRESS(40,15,1,1,$V$1)","v":"'LT Variable Annuity Gte Risk'!$O$40"},0.45,{"$f":"IF(INDIRECT(V224)=W224,0,1)","v":0}]
[{"$f":"ADDRESS(138,14,1,1,$A$1)","v":"Summary!$N$138"},"=-MIN(D144,G147,N143)",0,null,null,null,null,null,null,null,null,null,{"$f":"ADDRESS(80,5,1,1,$M$1)","v":"'Concentration Risk'!$E$80"},0.11,{"$f":"IF(INDIRECT(M225)=N225,0,1)","v":0},null,null,null,null,null,null,{"$f":"ADDRESS(40,17,1,1,$V$1)","v":"'LT Variable Annuity Gte Risk'!$Q$40"},"=+'Schedule VIII (EBS)'!P25",{"$f":"IF(_xlfn.FORMULATEXT(INDIRECT(V225))=W225,0,1)","v":0}]
[{"$f":"ADDRESS(142,4,1,1,$A$1)","v":"Summary!$D$142"},"=N60+N64+N66+N68+N70",0,null,null,null,null,null,null,null,null,null,{"$f":"ADDRESS(80,6,1,1,$M$1)","v":"'Concentration Risk'!$F$80"},"=MAX(0,(D80*E80))",{"$f":"IF(_xlfn.FORMULATEXT(INDIRECT(M226))=N226,0,1)","v":0},null,null,null,null,null,null,{"$f":"ADDRESS(40,18,1,1,$V$1)","v":"'LT Variable Annuity Gte Risk'!$R$40"},0.65,{"$f":"IF(INDIRECT(V226)=W226,0,1)","v":0}]
[{"$f":"ADDRESS(142,14,1,1,$A$1)","v":"Summary!$N$142"},"=N60+N64+N66+N68+N70",0,null,null,null,null,null,null,null,null,null,{"$f":"ADDRESS(81,2,1,1,$M$1)","v":"'Concentration Risk'!$B$81"},"BSCR Rating 6",{"$f":"IF(INDIRECT(M227)=N227,0,1)","v":0},null,null,null,null,null,null,{"$f":"ADDRESS(40,20,1,1,$V$1)","v":"'LT Variable Annuity Gte Risk'!$T$40"},"=+'Schedule VIII (EBS)'!R25",{"$f":"IF(_xlfn.FORMULATEXT(INDIRECT(V227))=W227,0,1)","v":0}]
[{"$f":"ADDRESS(143,8,1,1,$A$1)","v":"Summary!$H$143"},0.2,{"$f":"IF(INDIRECT(A228)=B228,0,1)","v":0},null,null,null,null,null,null,null,null,null,{"$f":"ADDRESS(81,4,1,1,$M$1)","v":"'Concentration Risk'!$D$81"},"=SUMIFS('Schedule XXI'!$M$8:$M$57,'Schedule XXI'!$J$8:$J$57,$D$74,'Schedule XXI'!$L$8:$L$57,$B81)",{"$f":"IF(_xlfn.FORMULATEXT(INDIRECT(M228))=N228,0,1)","v":0},null,null,null,null,null,null,{"$f":"ADDRESS(40,21,1,1,$V$1)","v":"'LT Variable Annuity Gte Risk'!$U$40"},0.9,{"$f":"IF(INDIRECT(V228)=W228,0,1)","v":0}]
[{"$f":"ADDRESS(143,14,1,1,$A$1)","v":"Summary!$N$143"},"=N142*H143",{"$f":"IF(_xlfn.FORMULATEXT(INDIRECT(A229))=B229,0,1)","v":0},null,null,null,null,null,null,null,null,null,{"$f":"ADDRESS(81,5,1,1,$M$1)","v":"'Concentration Risk'!$E$81"},0.25,{"$f":"IF(INDIRECT(M229)=N229,0,1)","v":0},null,null,null,null,null,null,{"$f":"ADDRESS(40,23,1,1,$V$1)","v":"'LT Variable Annuity Gte Risk'!$W$40"},"=IF(ISERROR(OR(E40*F40+H40*I40+K40*L40,N40*O40+Q40*R40+T40*U40)),0,MAX(E40*F40+H40*I40+K40*L40,N40*O40+Q40*R40+T40*U40))",{"$f":"IF(_xlfn.FORMULATEXT(INDIRECT(V229))=W229,0,1)","v":0}]
[{"$f":"ADDRESS(144,4,1,1,$A$1)","v":"Summary!$D$144"},"=MAX(0,D142*D143)",0,null,null,null,null,null,null,null,null,null,{"$f":"ADDRESS(81,6,1,1,$M$1)","v":"'Concentration Risk'!$F$81"},"=MAX(0,(D81*E81))",{"$f":"IF(_xlfn.FORMULATEXT(INDIRECT(M230))=N230,0,1)","v":0},null,null,null,null,null,null,{"$f":"ADDRESS(40,25,1,1,$V$1)","v":"'LT Variable Annuity Gte Risk'!$Y$40"},"=+'Schedule VIII (EBS)'!F25",{"$f":"IF(_xlfn.FORMULATEXT(INDIRECT(V230))=W230,0,1)","v":0}]
[{"$f":"ADDRESS(144,7,1,1,$A$1)","v":"Summary!$G$144"},"=G143*D143",0,null,null,null,null,null,null,null,null,null,{"$f":"ADDRESS(82,2,1,1,$M$1)","v":"'Concentration Risk'!$B$82"},"BSCR Rating 7",{"$f":"IF(INDIRECT(M231)=N231,0,1)","v":0},null,null,null,null,null,null,{"$f":"ADDRESS(40,27,1,1,$V$1)","v":"'LT Variable Annuity Gte Risk'!$AA$40"},"=MAX(0,W40-Y40)",{"$f":"IF(_xlfn.FORMULATEXT(INDIRECT(V231))=W231,0,1)","v":0}]
[{"$f":"ADDRESS(145,7,1,1,$A$1)","v":"Summary!$G$145"},"='Form 4EBS'!F148-'Form 4EBS'!F82",0,null,null,null,null,null,null,null,null,null,{"$f":"ADDRESS(82,4,1,1,$M$1)","v":"'Concentration Risk'!$D$82"},"=SUMIFS('Schedule XXI'!$M$8:$M$57,'Schedule XXI'!$J$8:$J$57,$D$74,'Schedule XXI'!$L$8:$L$57,$B82)",{"$f":"IF(_xlfn.FORMULATEXT(INDIRECT(M232))=N232,0,1)","v":0},null,null,null,null,null,null,{"$f":"ADDRESS(41,5,1,1,$V$1)","v":"'LT Variable Annuity Gte Risk'!$E$41"},"=+'Schedule VIII (EBS)'!H26",{"$f":"IF(_xlfn.FORMULATEXT(INDIRECT(V232))=W232,0,1)","v":0}]
[{"$f":"ADDRESS(146,7,1,1,$A$1)","v":"Summary!$G$146"},"='Form 4EBS'!F124*D143",0,null,null,null,null,null,null,null,null,null,{"$f":"ADDRESS(82,5,1,1,$M$1)","v":"'Concentration Risk'!$E$82"},0.35,{"$f":"IF(INDIRECT(M233)=N233,0,1)","v":0},null,null,null,null,null,null,{"$f":"ADDRESS(41,6,1,1,$V$1)","v":"'LT Variable Annuity Gte Risk'!$F$41"},1.4E-2,{"$f":"IF(INDIRECT(V233)=W233,0,1)","v":0}]
[{"$f":"ADDRESS(147,7,1,1,$A$1)","v":"Summary!$G$147"},"=MAX(0,SUM(G144:G146))",0,null,null,null,null,null,null,null,null,null,{"$f":"ADDRESS(82,6,1,1,$M$1)","v":"'Concentration Risk'!$F$82"},"=MAX(0,(D82*E82))",{"$f":"IF(_xlfn.FORMULATEXT(INDIRECT(M234))=N234,0,1)","v":0},null,null,null,null,null,null,{"$f":"ADDRESS(41,8,1,1,$V$1)","v":"'LT Variable Annuity Gte Risk'!$H$41"},"=+'Schedule VIII (EBS)'!J26",{"$f":"IF(_xlfn.FORMULATEXT(INDIRECT(V234))=W234,0,1)","v":0}]
[{"$f":"ADDRESS(152,14,1,1,$A$1)","v":"Summary!$N$152"},"=-MIN(D158,G161,N157)",0,null,null,null,null,null,null,null,null,null,{"$f":"ADDRESS(83,2,1,1,$M$1)","v":"'Concentration Risk'!$B$83"},"BSCR Rating 8",{"$f":"IF(INDIRECT(M235)=N235,0,1)","v":0},null,null,null,null,null,null,{"$f":"ADDRESS(41,9,1,1,$V$1)","v":"'LT Variable Annuity Gte Risk'!$I$41"},2.1000000000000001E-2,{"$f":"IF(INDIRECT(V235)=W235,0,1)","v":0}]
[{"$f":"ADDRESS(156,4,1,1,$A$1)","v":"Summary!$D$156"},"=G60+G64+G66+G68+G70",0,null,null,null,null,null,null,null,null,null,{"$f":"ADDRESS(83,4,1,1,$M$1)","v":"'Concentration Risk'!$D$83"},"=SUMIFS('Schedule XXI'!$M$8:$M$57,'Schedule XXI'!$J$8:$J$57,$D$74,'Schedule XXI'!$L$8:$L$57,$B83)",{"$f":"IF(_xlfn.FORMULATEXT(INDIRECT(M236))=N236,0,1)","v":0},null,null,null,null,null,null,{"$f":"ADDRESS(41,11,1,1,$V$1)","v":"'LT Variable Annuity Gte Risk'!$K$41"},"=+'Schedule VIII (EBS)'!L26",{"$f":"IF(_xlfn.FORMULATEXT(INDIRECT(V236))=W236,0,1)","v":0}]
[{"$f":"ADDRESS(156,14,1,1,$A$1)","v":"Summary!$N$156"},"=G60+G64+G66+G68+G70",0,null,null,null,null,null,null,null,null,null,{"$f":"ADDRESS(83,5,1,1,$M$1)","v":"'Concentration Risk'!$E$83"},0.35,{"$f":"IF(INDIRECT(M237)=N237,0,1)","v":0},null,null,null,null,null,null,{"$f":"ADDRESS(41,12,1,1,$V$1)","v":"'LT Variable Annuity Gte Risk'!$L$41"},4.9000000000000002E-2,{"$f":"IF(INDIRECT(V237)=W237,0,1)","v":0}]
[{"$f":"ADDRESS(157,8,1,1,$A$1)","v":"Summary!$H$157"},0.2,{"$f":"IF(INDIRECT(A238)=B238,0,1)","v":0},null,null,null,null,null,null,null,null,null,{"$f":"ADDRESS(83,6,1,1,$M$1)","v":"'Concentration Risk'!$F$83"},"=MAX(0,(D83*E83))",{"$f":"IF(_xlfn.FORMULATEXT(INDIRECT(M238))=N238,0,1)","v":0},null,null,null,null,null,null,{"$f":"ADDRESS(41,14,1,1,$V$1)","v":"'LT Variable Annuity Gte Risk'!$N$41"},"=+'Schedule VIII (EBS)'!N26",{"$f":"IF(_xlfn.FORMULATEXT(INDIRECT(V238))=W238,0,1)","v":0}]
[{"$f":"ADDRESS(157,14,1,1,$A$1)","v":"Summary!$N$157"},"=N156*H157",{"$f":"IF(_xlfn.FORMULATEXT(INDIRECT(A239))=B239,0,1)","v":0},null,null,null,null,null,null,null,null,null,{"$f":"ADDRESS(85,4,1,1,$M$1)","v":"'Concentration Risk'!$D$85"},"=SUM(D75:D83)",{"$f":"IF(_xlfn.FORMULATEXT(INDIRECT(M239))=N239,0,1)","v":0},null,null,null,null,null,null,{"$f":"ADDRESS(41,15,1,1,$V$1)","v":"'LT Variable Annuity Gte Risk'!$O$41"},0.4,{"$f":"IF(INDIRECT(V239)=W239,0,1)","v":0}]
[{"$f":"ADDRESS(158,4,1,1,$A$1)","v":"Summary!$D$158"},"=MAX(0,D156*D157)",0,null,null,null,null,null,null,null,null,null,{"$f":"ADDRESS(85,6,1,1,$M$1)","v":"'Concentration Risk'!$F$85"},"=SUM(F75:F83)",{"$f":"IF(_xlfn.FORMULATEXT(INDIRECT(M240))=N240,0,1)","v":0},null,null,null,null,null,null,{"$f":"ADDRESS(41,17,1,1,$V$1)","v":"'LT Variable Annuity Gte Risk'!$Q$41"},"=+'Schedule VIII (EBS)'!P26",{"$f":"IF(_xlfn.FORMULATEXT(INDIRECT(V240))=W240,0,1)","v":0}]
[{"$f":"ADDRESS(158,7,1,1,$A$1)","v":"Summary!$G$158"},"=G157*D157",0,null,null,null,null,null,null,null,null,null,{"$f":"ADDRESS(87,4,1,1,$M$1)","v":"'Concentration Risk'!$D$87"},"MortgageLoanTypes",{"$f":"IF(INDIRECT(M241)=N241,0,1)","v":0},null,null,null,null,null,null,{"$f":"ADDRESS(41,18,1,1,$V$1)","v":"'LT Variable Annuity Gte Risk'!$R$41"},0.55000000000000004,{"$f":"IF(INDIRECT(V241)=W241,0,1)","v":0}]
[{"$f":"ADDRESS(159,7,1,1,$A$1)","v":"Summary!$G$159"},"='Form 4EBS'!F148-'Form 4EBS'!F82",0,null,null,null,null,null,null,null,null,null,{"$f":"ADDRESS(88,2,1,1,$M$1)","v":"'Concentration Risk'!$B$88"},"Insured/Guaranteed Mortgages",{"$f":"IF(INDIRECT(M242)=N242,0,1)","v":0},null,null,null,null,null,null,{"$f":"ADDRESS(41,20,1,1,$V$1)","v":"'LT Variable Annuity Gte Risk'!$T$41"},"=+'Schedule VIII (EBS)'!R26",{"$f":"IF(_xlfn.FORMULATEXT(INDIRECT(V242))=W242,0,1)","v":0}]
[{"$f":"ADDRESS(160,7,1,1,$A$1)","v":"Summary!$G$160"},"='Form 4EBS'!F124*D157",0,null,null,null,null,null,null,null,null,null,{"$f":"ADDRESS(88,4,1,1,$M$1)","v":"'Concentration Risk'!$D$88"},"=SUMIFS('Schedule XXI'!$M$8:$M$57,'Schedule XXI'!$J$8:$J$57,$D$87,'Schedule XXI'!$K$8:$K$57,$B88)",{"$f":"IF(_xlfn.FORMULATEXT(INDIRECT(M243))=N243,0,1)","v":0},null,null,null,null,null,null,{"$f":"ADDRESS(41,21,1,1,$V$1)","v":"'LT Variable Annuity Gte Risk'!$U$41"},0.8,{"$f":"IF(INDIRECT(V243)=W243,0,1)","v":0}]
[{"$f":"ADDRESS(161,7,1,1,$A$1)","v":"Summary!$G$161"},"=MAX(0,SUM(G158:G160))",0,null,null,null,null,null,null,null,null,null,{"$f":"ADDRESS(88,5,1,1,$M$1)","v":"'Concentration Risk'!$E$88"},"='Fixed Income Investments'!E70",{"$f":"IF(_xlfn.FORMULATEXT(INDIRECT(M244))=N244,0,1)","v":0},null,null,null,null,null,null,{"$f":"ADDRESS(41,23,1,1,$V$1)","v":"'LT Variable Annuity Gte Risk'!$W$41"},"=IF(ISERROR(OR(E41*F41+H41*I41+K41*L41,N41*O41+Q41*R41+T41*U41)),0,MAX(E41*F41+H41*I41+K41*L41,N41*O41+Q41*R41+T41*U41))",{"$f":"IF(_xlfn.FORMULATEXT(INDIRECT(V244))=W244,0,1)","v":0}]
[{"$f":"ADDRESS(167,4,1,1,$A$1)","v":"Summary!$D$167"},"=IF($D$4=\"\",\"\",TEXT(DATE(YEAR($D$4+1)-1,MONTH($D$4+1),DAY($D$4+1)),\"mm/dd/yyyy\"))",0,null,null,null,null,null,null,null,null,null,{"$f":"ADDRESS(88,6,1,1,$M$1)","v":"'Concentration Risk'!$F$88"},"=MAX(0,(D88*E88))",{"$f":"IF(_xlfn.FORMULATEXT(INDIRECT(M245))=N245,0,1)","v":0},null,null,null,null,null,null,{"$f":"ADDRESS(41,25,1,1,$V$1)","v":"'LT Variable Annuity Gte Risk'!$Y$41"},"=+'Schedule VIII (EBS)'!F26",{"$f":"IF(_xlfn.FORMULATEXT(INDIRECT(V245))=W245,0,1)","v":0}]
[{"$f":"ADDRESS(167,14,1,1,$A$1)","v":"Summary!$N$167"},10,{"$f":"IF(INDIRECT(A246)=B246,0,1)","v":0},null,null,null,null,null,null,null,null,null,{"$f":"ADDRESS(89,2,1,1,$M$1)","v":"'Concentration Risk'!$B$89"},"Other Commercial and Farm Mortgages",{"$f":"IF(INDIRECT(M246)=N246,0,1)","v":0},null,null,null,null,null,null,{"$f":"ADDRESS(41,27,1,1,$V$1)","v":"'LT Variable Annuity Gte Risk'!$AA$41"},"=MAX(0,W41-Y41)",{"$f":"IF(_xlfn.FORMULATEXT(INDIRECT(V246))=W246,0,1)","v":0}]
[{"$f":"ADDRESS(168,4,1,1,$A$1)","v":"Summary!$D$168"},"=IF($D$4=\"\",\"\",TEXT($D$4,\"mm/dd/yyyy\"))",{"$f":"IF(_xlfn.FORMULATEXT(INDIRECT(A247))=B247,0,1)","v":0},null,null,null,null,null,null,null,null,null,{"$f":"ADDRESS(89,4,1,1,$M$1)","v":"'Concentration Risk'!$D$89"},"=SUMIFS('Schedule XXI'!$M$8:$M$57,'Schedule XXI'!$J$8:$J$57,$D$87,'Schedule XXI'!$K$8:$K$57,$B89)",{"$f":"IF(_xlfn.FORMULATEXT(INDIRECT(M247))=N247,0,1)","v":0},null,null,null,null,null,null,{"$f":"ADDRESS(42,5,1,1,$V$1)","v":"'LT Variable Annuity Gte Risk'!$E$42"},"=+'Schedule VIII (EBS)'!H27",{"$f":"IF(_xlfn.FORMULATEXT(INDIRECT(V247))=W247,0,1)","v":0}]
[null,null,-248,null,null,null,null,null,null,null,null,null,{"$f":"ADDRESS(89,5,1,1,$M$1)","v":"'Concentration Risk'!$E$89"},"='Fixed Income Investments'!E71",{"$f":"IF(_xlfn.FORMULATEXT(INDIRECT(M248))=N248,0,1)","v":0},null,null,null,null,null,null,{"$f":"ADDRESS(42,6,1,1,$V$1)","v":"'LT Variable Annuity Gte Risk'!$F$42"},1.0999999999999999E-2,{"$f":"IF(INDIRECT(V248)=W248,0,1)","v":0}]
[null,null,null,null,null,null,null,null,null,null,null,null,{"$f":"ADDRESS(89,6,1,1,$M$1)","v":"'Concentration Risk'!$F$89"},"=MAX(0,(D89*E89))",{"$f":"IF(_xlfn.FORMULATEXT(INDIRECT(M249))=N249,0,1)","v":0},null,null,null,null,null,null,{"$f":"ADDRESS(42,8,1,1,$V$1)","v":"'LT Variable Annuity Gte Risk'!$H$42"},"=+'Schedule VIII (EBS)'!J27",{"$f":"IF(_xlfn.FORMULATEXT(INDIRECT(V249))=W249,0,1)","v":0}]
[null,null,null,null,null,null,null,null,null,null,null,null,{"$f":"ADDRESS(90,2,1,1,$M$1)","v":"'Concentration Risk'!$B$90"},"Other Residential Mortgages",{"$f":"IF(INDIRECT(M250)=N250,0,1)","v":0},null,null,null,null,null,null,{"$f":"ADDRESS(42,9,1,1,$V$1)","v":"'LT Variable Annuity Gte Risk'!$I$42"},1.7000000000000001E-2,{"$f":"IF(INDIRECT(V250)=W250,0,1)","v":0}]
[null,null,null,null,null,null,null,null,null,null,null,null,{"$f":"ADDRESS(90,4,1,1,$M$1)","v":"'Concentration Risk'!$D$90"},"=SUMIFS('Schedule XXI'!$M$8:$M$57,'Schedule XXI'!$J$8:$J$57,$D$87,'Schedule XXI'!$K$8:$K$57,$B90)",{"$f":"IF(_xlfn.FORMULATEXT(INDIRECT(M251))=N251,0,1)","v":0},null,null,null,null,null,null,{"$f":"ADDRESS(42,11,1,1,$V$1)","v":"'LT Variable Annuity Gte Risk'!$K$42"},"=+'Schedule VIII (EBS)'!L27",{"$f":"IF(_xlfn.FORMULATEXT(INDIRECT(V251))=W251,0,1)","v":0}]
[null,null,null,null,null,null,null,null,null,null,null,null,{"$f":"ADDRESS(90,5,1,1,$M$1)","v":"'Concentration Risk'!$E$90"},"='Fixed Income Investments'!E72",{"$f":"IF(_xlfn.FORMULATEXT(INDIRECT(M252))=N252,0,1)","v":0},null,null,null,null,null,null,{"$f":"ADDRESS(42,12,1,1,$V$1)","v":"'LT Variable Annuity Gte Risk'!$L$42"},4.2999999999999997E-2,{"$f":"IF(INDIRECT(V252)=W252,0,1)","v":0}]
[null,null,null,null,null,null,null,null,null,null,null,null,{"$f":"ADDRESS(90,6,1,1,$M$1)","v":"'Concentration Risk'!$F$90"},"=MAX(0,(D90*E90))",{"$f":"IF(_xlfn.FORMULATEXT(INDIRECT(M253))=N253,0,1)","v":0},null,null,null,null,null,null,{"$f":"ADDRESS(42,14,1,1,$V$1)","v":"'LT Variable Annuity Gte Risk'!$N$42"},"=+'Schedule VIII (EBS)'!N27",{"$f":"IF(_xlfn.FORMULATEXT(INDIRECT(V253))=W253,0,1)","v":0}]
[null,null,null,null,null,null,null,null,null,null,null,null,{"$f":"ADDRESS(91,2,1,1,$M$1)","v":"'Concentration Risk'!$B$91"},"Mortgages Not In Good Standing",{"$f":"IF(INDIRECT(M254)=N254,0,1)","v":0},null,null,null,null,null,null,{"$f":"ADDRESS(42,15,1,1,$V$1)","v":"'LT Variable Annuity Gte Risk'!$O$42"},0.35,{"$f":"IF(INDIRECT(V254)=W254,0,1)","v":0}]
[null,null,null,null,null,null,null,null,null,null,null,null,{"$f":"ADDRESS(91,4,1,1,$M$1)","v":"'Concentration Risk'!$D$91"},"=SUMIFS('Schedule XXI'!$M$8:$M$57,'Schedule XXI'!$J$8:$J$57,$D$87,'Schedule XXI'!$K$8:$K$57,$B91)",{"$f":"IF(_xlfn.FORMULATEXT(INDIRECT(M255))=N255,0,1)","v":0},null,null,null,null,null,null,{"$f":"ADDRESS(42,17,1,1,$V$1)","v":"'LT Variable Annuity Gte Risk'!$Q$42"},"=+'Schedule VIII (EBS)'!P27",{"$f":"IF(_xlfn.FORMULATEXT(INDIRECT(V255))=W255,0,1)","v":0}]
[null,null,null,null,null,null,null,null,null,null,null,null,{"$f":"ADDRESS(91,5,1,1,$M$1)","v":"'Concentration Risk'!$E$91"},"='Fixed Income Investments'!E73",{"$f":"IF(_xlfn.FORMULATEXT(INDIRECT(M256))=N256,0,1)","v":0},null,null,null,null,null,null,{"$f":"ADDRESS(42,18,1,1,$V$1)","v":"'LT Variable Annuity Gte Risk'!$R$42"},0.5,{"$f":"IF(INDIRECT(V256)=W256,0,1)","v":0}]
[null,null,null,null,null,null,null,null,null,null,null,null,{"$f":"ADDRESS(91,6,1,1,$M$1)","v":"'Concentration Risk'!$F$91"},"=MAX(0,(D91*E91))",{"$f":"IF(_xlfn.FORMULATEXT(INDIRECT(M257))=N257,0,1)","v":0},null,null,null,null,null,null,{"$f":"ADDRESS(42,20,1,1,$V$1)","v":"'LT Variable Annuity Gte Risk'!$T$42"},"=+'Schedule VIII (EBS)'!R27",{"$f":"IF(_xlfn.FORMULATEXT(INDIRECT(V257))=W257,0,1)","v":0}]
[null,null,null,null,null,null,null,null,null,null,null,null,{"$f":"ADDRESS(93,4,1,1,$M$1)","v":"'Concentration Risk'!$D$93"},"=SUM(D88:D91)",{"$f":"IF(_xlfn.FORMULATEXT(INDIRECT(M258))=N258,0,1)","v":0},null,null,null,null,null,null,{"$f":"ADDRESS(42,21,1,1,$V$1)","v":"'LT Variable Annuity Gte Risk'!$U$42"},0.7,{"$f":"IF(INDIRECT(V258)=W258,0,1)","v":0}]
[null,null,null,null,null,null,null,null,null,null,null,null,{"$f":"ADDRESS(93,6,1,1,$M$1)","v":"'Concentration Risk'!$F$93"},"=SUM(F88:F91)",{"$f":"IF(_xlfn.FORMULATEXT(INDIRECT(M259))=N259,0,1)","v":0},null,null,null,null,null,null,{"$f":"ADDRESS(42,23,1,1,$V$1)","v":"'LT Variable Annuity Gte Risk'!$W$42"},"=IF(ISERROR(OR(E42*F42+H42*I42+K42*L42,N42*O42+Q42*R42+T42*U42)),0,MAX(E42*F42+H42*I42+K42*L42,N42*O42+Q42*R42+T42*U42))",{"$f":"IF(_xlfn.FORMULATEXT(INDIRECT(V259))=W259,0,1)","v":0}]
[null,null,null,null,null,null,null,null,null,null,null,null,{"$f":"ADDRESS(96,2,1,1,$M$1)","v":"'Concentration Risk'!$B$96"},"Common Stock and Mutual Funds",{"$f":"IF(INDIRECT(M260)=N260,0,1)","v":0},null,null,null,null,null,null,{"$f":"ADDRESS(42,25,1,1,$V$1)","v":"'LT Variable Annuity Gte Risk'!$Y$42"},"=+'Schedule VIII (EBS)'!F27",{"$f":"IF(_xlfn.FORMULATEXT(INDIRECT(V260))=W260,0,1)","v":0}]
[null,null,null,null,null,null,null,null,null,null,null,null,{"$f":"ADDRESS(96,4,1,1,$M$1)","v":"'Concentration Risk'!$D$96"},"=SUMIFS('Schedule XXI'!$M$8:$M$57,'Schedule XXI'!$J$8:$J$57,$B96)",{"$f":"IF(_xlfn.FORMULATEXT(INDIRECT(M261))=N261,0,1)","v":0},null,null,null,null,null,null,{"$f":"ADDRESS(42,27,1,1,$V$1)","v":"'LT Variable Annuity Gte Risk'!$AA$42"},"=MAX(0,W42-Y42)",{"$f":"IF(_xlfn.FORMULATEXT(INDIRECT(V261))=W261,0,1)","v":0}]
[null,null,null,null,null,null,null,null,null,null,null,null,{"$f":"ADDRESS(96,5,1,1,$M$1)","v":"'Concentration Risk'!$E$96"},0.14399999999999999,{"$f":"IF(INDIRECT(M262)=N262,0,1)","v":0},null,null,null,null,null,null,{"$f":"ADDRESS(43,5,1,1,$V$1)","v":"'LT Variable Annuity Gte Risk'!$E$43"},"=+'Schedule VIII (EBS)'!H28",{"$f":"IF(_xlfn.FORMULATEXT(INDIRECT(V262))=W262,0,1)","v":0}]
[null,null,null,null,null,null,null,null,null,null,null,null,{"$f":"ADDRESS(96,6,1,1,$M$1)","v":"'Concentration Risk'!$F$96"},"=MAX(0,(D96*E96))",{"$f":"IF(_xlfn.FORMULATEXT(INDIRECT(M263))=N263,0,1)","v":0},null,null,null,null,null,null,{"$f":"ADDRESS(43,6,1,1,$V$1)","v":"'LT Variable Annuity Gte Risk'!$F$43"},0.01,{"$f":"IF(INDIRECT(V263)=W263,0,1)","v":0}]
[null,null,null,null,null,null,null,null,null,null,null,null,{"$f":"ADDRESS(97,2,1,1,$M$1)","v":"'Concentration Risk'!$B$97"},"Other Investments",{"$f":"IF(INDIRECT(M264)=N264,0,1)","v":0},null,null,null,null,null,null,{"$f":"ADDRESS(43,8,1,1,$V$1)","v":"'LT Variable Annuity Gte Risk'!$H$43"},"=+'Schedule VIII (EBS)'!J28",{"$f":"IF(_xlfn.FORMULATEXT(INDIRECT(V264))=W264,0,1)","v":0}]
[null,null,null,null,null,null,null,null,null,null,null,null,{"$f":"ADDRESS(97,4,1,1,$M$1)","v":"'Concentration Risk'!$D$97"},"=SUMIFS('Schedule XXI'!$M$8:$M$57,'Schedule XXI'!$J$8:$J$57,$B97)",{"$f":"IF(_xlfn.FORMULATEXT(INDIRECT(M265))=N265,0,1)","v":0},null,null,null,null,null,null,{"$f":"ADDRESS(43,9,1,1,$V$1)","v":"'LT Variable Annuity Gte Risk'!$I$43"},1.4E-2,{"$f":"IF(INDIRECT(V265)=W265,0,1)","v":0}]
[null,null,null,null,null,null,null,null,null,null,null,null,{"$f":"ADDRESS(97,5,1,1,$M$1)","v":"'Concentration Risk'!$E$97"},0.2,{"$f":"IF(INDIRECT(M266)=N266,0,1)","v":0},null,null,null,null,null,null,{"$f":"ADDRESS(43,11,1,1,$V$1)","v":"'LT Variable Annuity Gte Risk'!$K$43"},"=+'Schedule VIII (EBS)'!L28",{"$f":"IF(_xlfn.FORMULATEXT(INDIRECT(V266))=W266,0,1)","v":0}]
[null,null,null,null,null,null,null,null,null,null,null,null,{"$f":"ADDRESS(97,6,1,1,$M$1)","v":"'Concentration Risk'!$F$97"},"=MAX(0,(D97*E97))",{"$f":"IF(_xlfn.FORMULATEXT(INDIRECT(M267))=N267,0,1)","v":0},null,null,null,null,null,null,{"$f":"ADDRESS(43,12,1,1,$V$1)","v":"'LT Variable Annuity Gte Risk'!$L$43"},3.9E-2,{"$f":"IF(INDIRECT(V267)=W267,0,1)","v":0}]
[null,null,null,null,null,null,null,null,null,null,null,null,{"$f":"ADDRESS(98,2,1,1,$M$1)","v":"'Concentration Risk'!$B$98"},"Investment in Affiliates – Unregulated entities that conduct ancillary services",{"$f":"IF(INDIRECT(M268)=N268,0,1)","v":0},null,null,null,null,null,null,{"$f":"ADDRESS(43,14,1,1,$V$1)","v":"'LT Variable Annuity Gte Risk'!$N$43"},"=+'Schedule VIII (EBS)'!N28",{"$f":"IF(_xlfn.FORMULATEXT(INDIRECT(V268))=W268,0,1)","v":0}]
[null,null,null,null,null,null,null,null,null,null,null,null,{"$f":"ADDRESS(98,4,1,1,$M$1)","v":"'Concentration Risk'!$D$98"},"=SUMIFS('Schedule XXI'!$M$8:$M$57,'Schedule XXI'!$J$8:$J$57,$B98)",{"$f":"IF(_xlfn.FORMULATEXT(INDIRECT(M269))=N269,0,1)","v":0},null,null,null,null,null,null,{"$f":"ADDRESS(43,15,1,1,$V$1)","v":"'LT Variable Annuity Gte Risk'!$O$43"},0.3,{"$f":"IF(INDIRECT(V269)=W269,0,1)","v":0}]
[null,null,null,null,null,null,null,null,null,null,null,null,{"$f":"ADDRESS(98,5,1,1,$M$1)","v":"'Concentration Risk'!$E$98"},0.05,{"$f":"IF(INDIRECT(M270)=N270,0,1)","v":0},null,null,null,null,null,null,{"$f":"ADDRESS(43,17,1,1,$V$1)","v":"'LT Variable Annuity Gte Risk'!$Q$43"},"=+'Schedule VIII (EBS)'!P28",{"$f":"IF(_xlfn.FORMULATEXT(INDIRECT(V270))=W270,0,1)","v":0}]
[null,null,null,null,null,null,null,null,null,null,null,null,{"$f":"ADDRESS(98,6,1,1,$M$1)","v":"'Concentration Risk'!$F$98"},"=MAX(0,(D98*E98))",{"$f":"IF(_xlfn.FORMULATEXT(INDIRECT(M271))=N271,0,1)","v":0},null,null,null,null,null,null,{"$f":"ADDRESS(43,18,1,1,$V$1)","v":"'LT Variable Annuity Gte Risk'!$R$43"},0.45,{"$f":"IF(INDIRECT(V271)=W271,0,1)","v":0}]
[null,null,null,null,null,null,null,null,null,null,null,null,{"$f":"ADDRESS(99,2,1,1,$M$1)","v":"'Concentration Risk'!$B$99"},"Investment in Affiliates - Unregulated non-financial operating entities",{"$f":"IF(INDIRECT(M272)=N272,0,1)","v":0},null,null,null,null,null,null,{"$f":"ADDRESS(43,20,1,1,$V$1)","v":"'LT Variable Annuity Gte Risk'!$T$43"},"=+'Schedule VIII (EBS)'!R28",{"$f":"IF(_xlfn.FORMULATEXT(INDIRECT(V272))=W272,0,1)","v":0}]
[null,null,null,null,null,null,null,null,null,null,null,null,{"$f":"ADDRESS(99,4,1,1,$M$1)","v":"'Concentration Risk'!$D$99"},"=SUMIFS('Schedule XXI'!$M$8:$M$57,'Schedule XXI'!$J$8:$J$57,$B99)",{"$f":"IF(_xlfn.FORMULATEXT(INDIRECT(M273))=N273,0,1)","v":0},null,null,null,null,null,null,{"$f":"ADDRESS(43,21,1,1,$V$1)","v":"'LT Variable Annuity Gte Risk'!$U$43"},0.6,{"$f":"IF(INDIRECT(V273)=W273,0,1)","v":0}]
[null,null,null,null,null,null,null,null,null,null,null,null,{"$f":"ADDRESS(99,5,1,1,$M$1)","v":"'Concentration Risk'!$E$99"},0.2,{"$f":"IF(INDIRECT(M274)=N274,0,1)","v":0},null,null,null,null,null,null,{"$f":"ADDRESS(43,23,1,1,$V$1)","v":"'LT Variable Annuity Gte Risk'!$W$43"},"=IF(ISERROR(OR(E43*F43+H43*I43+K43*L43,N43*O43+Q43*R43+T43*U43)),0,MAX(E43*F43+H43*I43+K43*L43,N43*O43+Q43*R43+T43*U43))",{"$f":"IF(_xlfn.FORMULATEXT(INDIRECT(V274))=W274,0,1)","v":0}]
[null,null,null,null,null,null,null,null,null,null,null,null,{"$f":"ADDRESS(99,6,1,1,$M$1)","v":"'Concentration Risk'!$F$99"},"=MAX(0,(D99*E99))",{"$f":"IF(_xlfn.FORMULATEXT(INDIRECT(M275))=N275,0,1)","v":0},null,null,null,null,null,null,{"$f":"ADDRESS(43,25,1,1,$V$1)","v":"'LT Variable Annuity Gte Risk'!$Y$43"},"=+'Schedule VIII (EBS)'!F28",{"$f":"IF(_xlfn.FORMULATEXT(INDIRECT(V275))=W275,0,1)","v":0}]
[null,null,null,null,null,null,null,null,null,null,null,null,{"$f":"ADDRESS(100,2,1,1,$M$1)","v":"'Concentration Risk'!$B$100"},"Investment in Affiliates - Unregulated financial operating entities",{"$f":"IF(INDIRECT(M276)=N276,0,1)","v":0},null,null,null,null,null,null,{"$f":"ADDRESS(43,27,1,1,$V$1)","v":"'LT Variable Annuity Gte Risk'!$AA$43"},"=MAX(0,W43-Y43)",{"$f":"IF(_xlfn.FORMULATEXT(INDIRECT(V276))=W276,0,1)","v":0}]
[null,null,null,null,null,null,null,null,null,null,null,null,{"$f":"ADDRESS(100,4,1,1,$M$1)","v":"'Concentration Risk'!$D$100"},"=SUMIFS('Schedule XXI'!$M$8:$M$57,'Schedule XXI'!$J$8:$J$57,$B100)",{"$f":"IF(_xlfn.FORMULATEXT(INDIRECT(M277))=N277,0,1)","v":0},null,null,null,null,null,null,{"$f":"ADDRESS(45,5,1,1,$V$1)","v":"'LT Variable Annuity Gte Risk'!$E$45"},"=+'Schedule VIII (EBS)'!H37",{"$f":"IF(_xlfn.FORMULATEXT(INDIRECT(V277))=W277,0,1)","v":0}]
[null,null,null,null,null,null,null,null,null,null,null,null,{"$f":"ADDRESS(100,5,1,1,$M$1)","v":"'Concentration Risk'!$E$100"},0.55000000000000004,{"$f":"IF(INDIRECT(M278)=N278,0,1)","v":0},null,null,null,null,null,null,{"$f":"ADDRESS(45,6,1,1,$V$1)","v":"'LT Variable Annuity Gte Risk'!$F$45"},3.2000000000000001E-2,{"$f":"IF(INDIRECT(V278)=W278,0,1)","v":0}]
[null,null,null,null,null,null,null,null,null,null,null,null,{"$f":"ADDRESS(100,6,1,1,$M$1)","v":"'Concentration Risk'!$F$100"},"=MAX(0,(D100*E100))",{"$f":"IF(_xlfn.FORMULATEXT(INDIRECT(M279))=N279,0,1)","v":0},null,null,null,null,null,null,{"$f":"ADDRESS(45,8,1,1,$V$1)","v":"'LT Variable Annuity Gte Risk'!$H$45"},"=+'Schedule VIII (EBS)'!J37",{"$f":"IF(_xlfn.FORMULATEXT(INDIRECT(V279))=W279,0,1)","v":0}]
[null,null,null,null,null,null,null,null,null,null,null,null,{"$f":"ADDRESS(101,2,1,1,$M$1)","v":"'Concentration Risk'!$B$101"},"Investment in Affiliates - Regulated non-insurance financial operating entities",{"$f":"IF(INDIRECT(M280)=N280,0,1)","v":0},null,null,null,null,null,null,{"$f":"ADDRESS(45,9,1,1,$V$1)","v":"'LT Variable Annuity Gte Risk'!$I$45"},0.05,{"$f":"IF(INDIRECT(V280)=W280,0,1)","v":0}]
[null,null,null,null,null,null,null,null,null,null,null,null,{"$f":"ADDRESS(101,4,1,1,$M$1)","v":"'Concentration Risk'!$D$101"},"=SUMIFS('Schedule XXI'!$M$8:$M$57,'Schedule XXI'!$J$8:$J$57,$B101)",{"$f":"IF(_xlfn.FORMULATEXT(INDIRECT(M281))=N281,0,1)","v":0},null,null,null,null,null,null,{"$f":"ADDRESS(45,11,1,1,$V$1)","v":"'LT Variable Annuity Gte Risk'!$K$45"},"=+'Schedule VIII (EBS)'!L37",{"$f":"IF(_xlfn.FORMULATEXT(INDIRECT(V281))=W281,0,1)","v":0}]
[null,null,null,null,null,null,null,null,null,null,null,null,{"$f":"ADDRESS(101,5,1,1,$M$1)","v":"'Concentration Risk'!$E$101"},0.55000000000000004,{"$f":"IF(INDIRECT(M282)=N282,0,1)","v":0},null,null,null,null,null,null,{"$f":"ADDRESS(45,12,1,1,$V$1)","v":"'LT Variable Annuity Gte Risk'!$L$45"},0.09,{"$f":"IF(INDIRECT(V282)=W282,0,1)","v":0}]
[null,null,null,null,null,null,null,null,null,null,null,null,{"$f":"ADDRESS(101,6,1,1,$M$1)","v":"'Concentration Risk'!$F$101"},"=MAX(0,(D101*E101))",{"$f":"IF(_xlfn.FORMULATEXT(INDIRECT(M283))=N283,0,1)","v":0},null,null,null,null,null,null,{"$f":"ADDRESS(45,23,1,1,$V$1)","v":"'LT Variable Annuity Gte Risk'!$W$45"},"=IF(ISERROR(OR(E45*F45+H45*I45+K45*L45,N45*O45+Q45*R45+T45*U45)),0,MAX(E45*F45+H45*I45+K45*L45,N45*O45+Q45*R45+T45*U45))",{"$f":"IF(_xlfn.FORMULATEXT(INDIRECT(V283))=W283,0,1)","v":0}]
[null,null,null,null,null,null,null,null,null,null,null,null,{"$f":"ADDRESS(102,2,1,1,$M$1)","v":"'Concentration Risk'!$B$102"},"Investment in Affiliates - Regulated insurance financial operating entities",{"$f":"IF(INDIRECT(M284)=N284,0,1)","v":0},null,null,null,null,null,null,{"$f":"ADDRESS(45,25,1,1,$V$1)","v":"'LT Variable Annuity Gte Risk'!$Y$45"},"=+'Schedule VIII (EBS)'!F30",{"$f":"IF(_xlfn.FORMULATEXT(INDIRECT(V284))=W284,0,1)","v":0}]
[null,null,null,null,null,null,null,null,null,null,null,null,{"$f":"ADDRESS(102,4,1,1,$M$1)","v":"'Concentration Risk'!$D$102"},"=SUMIFS('Schedule XXI'!$M$8:$M$57,'Schedule XXI'!$J$8:$J$57,$B102)",{"$f":"IF(_xlfn.FORMULATEXT(INDIRECT(M285))=N285,0,1)","v":0},null,null,null,null,null,null,{"$f":"ADDRESS(45,27,1,1,$V$1)","v":"'LT Variable Annuity Gte Risk'!$AA$45"},"=MAX(0,W45-Y45)",{"$f":"IF(_xlfn.FORMULATEXT(INDIRECT(V285))=W285,0,1)","v":0}]
[null,null,null,null,null,null,null,null,null,null,null,null,{"$f":"ADDRESS(102,5,1,1,$M$1)","v":"'Concentration Risk'!$E$102"},0.2,{"$f":"IF(INDIRECT(M286)=N286,0,1)","v":0},null,null,null,null,null,null,{"$f":"ADDRESS(46,5,1,1,$V$1)","v":"'LT Variable Annuity Gte Risk'!$E$46"},"=+'Schedule VIII (EBS)'!H38",{"$f":"IF(_xlfn.FORMULATEXT(INDIRECT(V286))=W286,0,1)","v":0}]
[null,null,null,null,null,null,null,null,null,null,null,null,{"$f":"ADDRESS(102,6,1,1,$M$1)","v":"'Concentration Risk'!$F$102"},"=MAX(0,(D102*E102))",{"$f":"IF(_xlfn.FORMULATEXT(INDIRECT(M287))=N287,0,1)","v":0},null,null,null,null,null,null,{"$f":"ADDRESS(46,6,1,1,$V$1)","v":"'LT Variable Annuity Gte Risk'!$F$46"},0.03,{"$f":"IF(INDIRECT(V287)=W287,0,1)","v":0}]
[null,null,null,null,null,null,null,null,null,null,null,null,{"$f":"ADDRESS(103,2,1,1,$M$1)","v":"'Concentration Risk'!$B$103"},"Advances to Affiliates - ",{"$f":"IF(INDIRECT(M288)=N288,0,1)","v":0},null,null,null,null,null,null,{"$f":"ADDRESS(46,8,1,1,$V$1)","v":"'LT Variable Annuity Gte Risk'!$H$46"},"=+'Schedule VIII (EBS)'!J38",{"$f":"IF(_xlfn.FORMULATEXT(INDIRECT(V288))=W288,0,1)","v":0}]
[null,null,null,null,null,null,null,null,null,null,null,null,{"$f":"ADDRESS(103,4,1,1,$M$1)","v":"'Concentration Risk'!$D$103"},"=SUMIFS('Schedule XXI'!$M$8:$M$57,'Schedule XXI'!$J$8:$J$57,$B103)",{"$f":"IF(_xlfn.FORMULATEXT(INDIRECT(M289))=N289,0,1)","v":0},null,null,null,null,null,null,{"$f":"ADDRESS(46,9,1,1,$V$1)","v":"'LT Variable Annuity Gte Risk'!$I$46"},0.05,{"$f":"IF(INDIRECT(V289)=W289,0,1)","v":0}]
[null,null,null,null,null,null,null,null,null,null,null,null,{"$f":"ADDRESS(103,5,1,1,$M$1)","v":"'Concentration Risk'!$E$103"},0.05,{"$f":"IF(INDIRECT(M290)=N290,0,1)","v":0},null,null,null,null,null,null,{"$f":"ADDRESS(46,11,1,1,$V$1)","v":"'LT Variable Annuity Gte Risk'!$K$46"},"=+'Schedule VIII (EBS)'!L38",{"$f":"IF(_xlfn.FORMULATEXT(INDIRECT(V290))=W290,0,1)","v":0}]
[null,null,null,null,null,null,null,null,null,null,null,null,{"$f":"ADDRESS(103,6,1,1,$M$1)","v":"'Concentration Risk'!$F$103"},"=MAX(0,(D103*E103))",{"$f":"IF(_xlfn.FORMULATEXT(INDIRECT(M291))=N291,0,1)","v":0},null,null,null,null,null,null,{"$f":"ADDRESS(46,12,1,1,$V$1)","v":"'LT Variable Annuity Gte Risk'!$L$46"},8.8999999999999996E-2,{"$f":"IF(INDIRECT(V291)=W291,0,1)","v":0}]
[null,null,null,null,null,null,null,null,null,null,null,null,{"$f":"ADDRESS(104,2,1,1,$M$1)","v":"'Concentration Risk'!$B$104"},"Policy Loans",{"$f":"IF(INDIRECT(M292)=N292,0,1)","v":0},null,null,null,null,null,null,{"$f":"ADDRESS(46,23,1,1,$V$1)","v":"'LT Variable Annuity Gte Risk'!$W$46"},"=IF(ISERROR(OR(E46*F46+H46*I46+K46*L46,N46*O46+Q46*R46+T46*U46)),0,MAX(E46*F46+H46*I46+K46*L46,N46*O46+Q46*R46+T46*U46))",{"$f":"IF(_xlfn.FORMULATEXT(INDIRECT(V292))=W292,0,1)","v":0}]
[null,null,null,null,null,null,null,null,null,null,null,null,{"$f":"ADDRESS(104,4,1,1,$M$1)","v":"'Concentration Risk'!$D$104"},"=SUMIFS('Schedule XXI'!$M$8:$M$57,'Schedule XXI'!$J$8:$J$57,$B104)",{"$f":"IF(_xlfn.FORMULATEXT(INDIRECT(M293))=N293,0,1)","v":0},null,null,null,null,null,null,{"$f":"ADDRESS(46,25,1,1,$V$1)","v":"'LT Variable Annuity Gte Risk'!$Y$46"},"=+'Schedule VIII (EBS)'!F31",{"$f":"IF(_xlfn.FORMULATEXT(INDIRECT(V293))=W293,0,1)","v":0}]
[null,null,null,null,null,null,null,null,null,null,null,null,{"$f":"ADDRESS(104,5,1,1,$M$1)","v":"'Concentration Risk'!$E$104"},0,{"$f":"IF(INDIRECT(M294)=N294,0,1)","v":0},null,null,null,null,null,null,{"$f":"ADDRESS(46,27,1,1,$V$1)","v":"'LT Variable Annuity Gte Risk'!$AA$46"},"=MAX(0,W46-Y46)",{"$f":"IF(_xlfn.FORMULATEXT(INDIRECT(V294))=W294,0,1)","v":0}]
[null,null,null,null,null,null,null,null,null,null,null,null,{"$f":"ADDRESS(104,6,1,1,$M$1)","v":"'Concentration Risk'!$F$104"},"=MAX(0,(D104*E104))",{"$f":"IF(_xlfn.FORMULATEXT(INDIRECT(M295))=N295,0,1)","v":0},null,null,null,null,null,null,{"$f":"ADDRESS(47,5,1,1,$V$1)","v":"'LT Variable Annuity Gte Risk'!$E$47"},"=+'Schedule VIII (EBS)'!H39",{"$f":"IF(_xlfn.FORMULATEXT(INDIRECT(V295))=W295,0,1)","v":0}]
[null,null,null,null,null,null,null,null,null,null,null,null,{"$f":"ADDRESS(105,2,1,1,$M$1)","v":"'Concentration Risk'!$B$105"},"Real Estate: Occupied by company",{"$f":"IF(INDIRECT(M296)=N296,0,1)","v":0},null,null,null,null,null,null,{"$f":"ADDRESS(47,6,1,1,$V$1)","v":"'LT Variable Annuity Gte Risk'!$F$47"},0.03,{"$f":"IF(INDIRECT(V296)=W296,0,1)","v":0}]
[null,null,null,null,null,null,null,null,null,null,null,null,{"$f":"ADDRESS(105,4,1,1,$M$1)","v":"'Concentration Risk'!$D$105"},"=SUMIFS('Schedule XXI'!$M$8:$M$57,'Schedule XXI'!$J$8:$J$57,$B105)",{"$f":"IF(_xlfn.FORMULATEXT(INDIRECT(M297))=N297,0,1)","v":0},null,null,null,null,null,null,{"$f":"ADDRESS(47,8,1,1,$V$1)","v":"'LT Variable Annuity Gte Risk'!$H$47"},"=+'Schedule VIII (EBS)'!J39",{"$f":"IF(_xlfn.FORMULATEXT(INDIRECT(V297))=W297,0,1)","v":0}]
[null,null,null,null,null,null,null,null,null,null,null,null,{"$f":"ADDRESS(105,5,1,1,$M$1)","v":"'Concentration Risk'!$E$105"},0.1,{"$f":"IF(INDIRECT(M298)=N298,0,1)","v":0},null,null,null,null,null,null,{"$f":"ADDRESS(47,9,1,1,$V$1)","v":"'LT Variable Annuity Gte Risk'!$I$47"},0.05,{"$f":"IF(INDIRECT(V298)=W298,0,1)","v":0}]
[null,null,null,null,null,null,null,null,null,null,null,null,{"$f":"ADDRESS(105,6,1,1,$M$1)","v":"'Concentration Risk'!$F$105"},"=MAX(0,(D105*E105))",{"$f":"IF(_xlfn.FORMULATEXT(INDIRECT(M299))=N299,0,1)","v":0},null,null,null,null,null,null,{"$f":"ADDRESS(47,11,1,1,$V$1)","v":"'LT Variable Annuity Gte Risk'!$K$47"},"=+'Schedule VIII (EBS)'!L39",{"$f":"IF(_xlfn.FORMULATEXT(INDIRECT(V299))=W299,0,1)","v":0}]
[null,null,null,null,null,null,null,null,null,null,null,null,{"$f":"ADDRESS(106,2,1,1,$M$1)","v":"'Concentration Risk'!$B$106"},"Real Estate: Other properties",{"$f":"IF(INDIRECT(M300)=N300,0,1)","v":0},null,null,null,null,null,null,{"$f":"ADDRESS(47,12,1,1,$V$1)","v":"'LT Variable Annuity Gte Risk'!$L$47"},8.8999999999999996E-2,{"$f":"IF(INDIRECT(V300)=W300,0,1)","v":0}]
[null,null,null,null,null,null,null,null,null,null,null,null,{"$f":"ADDRESS(106,4,1,1,$M$1)","v":"'Concentration Risk'!$D$106"},"=SUMIFS('Schedule XXI'!$M$8:$M$57,'Schedule XXI'!$J$8:$J$57,$B106)",{"$f":"IF(_xlfn.FORMULATEXT(INDIRECT(M301))=N301,0,1)","v":0},null,null,null,null,null,null,{"$f":"ADDRESS(47,23,1,1,$V$1)","v":"'LT Variable Annuity Gte Risk'!$W$47"},"=IF(ISERROR(OR(E47*F47+H47*I47+K47*L47,N47*O47+Q47*R47+T47*U47)),0,MAX(E47*F47+H47*I47+K47*L47,N47*O47+Q47*R47+T47*U47))",{"$f":"IF(_xlfn.FORMULATEXT(INDIRECT(V301))=W301,0,1)","v":0}]
[null,null,null,null,null,null,null,null,null,null,null,null,{"$f":"ADDRESS(106,5,1,1,$M$1)","v":"'Concentration Risk'!$E$106"},0.2,{"$f":"IF(INDIRECT(M302)=N302,0,1)","v":0},null,null,null,null,null,null,{"$f":"ADDRESS(47,25,1,1,$V$1)","v":"'LT Variable Annuity Gte Risk'!$Y$47"},"=+'Schedule VIII (EBS)'!F32",{"$f":"IF(_xlfn.FORMULATEXT(INDIRECT(V302))=W302,0,1)","v":0}]
[null,null,null,null,null,null,null,null,null,null,null,null,{"$f":"ADDRESS(106,6,1,1,$M$1)","v":"'Concentration Risk'!$F$106"},"=MAX(0,(D106*E106))",{"$f":"IF(_xlfn.FORMULATEXT(INDIRECT(M303))=N303,0,1)","v":0},null,null,null,null,null,null,{"$f":"ADDRESS(47,27,1,1,$V$1)","v":"'LT Variable Annuity Gte Risk'!$AA$47"},"=MAX(0,W47-Y47)",{"$f":"IF(_xlfn.FORMULATEXT(INDIRECT(V303))=W303,0,1)","v":0}]
[null,null,null,null,null,null,null,null,null,null,null,null,{"$f":"ADDRESS(107,2,1,1,$M$1)","v":"'Concentration Risk'!$B$107"},"Collateral Loans",{"$f":"IF(INDIRECT(M304)=N304,0,1)","v":0},null,null,null,null,null,null,{"$f":"ADDRESS(48,5,1,1,$V$1)","v":"'LT Variable Annuity Gte Risk'!$E$48"},"=+'Schedule VIII (EBS)'!H40",{"$f":"IF(_xlfn.FORMULATEXT(INDIRECT(V304))=W304,0,1)","v":0}]
[null,null,null,null,null,null,null,null,null,null,null,null,{"$f":"ADDRESS(107,4,1,1,$M$1)","v":"'Concentration Risk'!$D$107"},"=SUMIFS('Schedule XXI'!$M$8:$M$57,'Schedule XXI'!$J$8:$J$57,$B107)",{"$f":"IF(_xlfn.FORMULATEXT(INDIRECT(M305))=N305,0,1)","v":0},null,null,null,null,null,null,{"$f":"ADDRESS(48,6,1,1,$V$1)","v":"'LT Variable Annuity Gte Risk'!$F$48"},2.8000000000000001E-2,{"$f":"IF(INDIRECT(V305)=W305,0,1)","v":0}]
[null,null,null,null,null,null,null,null,null,null,null,null,{"$f":"ADDRESS(107,5,1,1,$M$1)","v":"'Concentration Risk'!$E$107"},0.05,{"$f":"IF(INDIRECT(M306)=N306,0,1)","v":0},null,null,null,null,null,null,{"$f":"ADDRESS(48,8,1,1,$V$1)","v":"'LT Variable Annuity Gte Risk'!$H$48"},"=+'Schedule VIII (EBS)'!J40",{"$f":"IF(_xlfn.FORMULATEXT(INDIRECT(V306))=W306,0,1)","v":0}]
[null,null,null,null,null,null,null,null,null,null,null,null,{"$f":"ADDRESS(107,6,1,1,$M$1)","v":"'Concentration Risk'!$F$107"},"=MAX(0,(D107*E107))",{"$f":"IF(_xlfn.FORMULATEXT(INDIRECT(M307))=N307,0,1)","v":0},null,null,null,null,null,null,{"$f":"ADDRESS(48,9,1,1,$V$1)","v":"'LT Variable Annuity Gte Risk'!$I$48"},0.05,{"$f":"IF(INDIRECT(V307)=W307,0,1)","v":0}]
[null,null,null,null,null,null,null,null,null,null,null,null,{"$f":"ADDRESS(109,4,1,1,$M$1)","v":"'Concentration Risk'!$D$109"},"=SUM(D96:D107)",{"$f":"IF(_xlfn.FORMULATEXT(INDIRECT(M308))=N308,0,1)","v":0},null,null,null,null,null,null,{"$f":"ADDRESS(48,11,1,1,$V$1)","v":"'LT Variable Annuity Gte Risk'!$K$48"},"=+'Schedule VIII (EBS)'!L40",{"$f":"IF(_xlfn.FORMULATEXT(INDIRECT(V308))=W308,0,1)","v":0}]
[null,null,null,null,null,null,null,null,null,null,null,null,{"$f":"ADDRESS(109,6,1,1,$M$1)","v":"'Concentration Risk'!$F$109"},"=SUM(F96:F107)",{"$f":"IF(_xlfn.FORMULATEXT(INDIRECT(M309))=N309,0,1)","v":0},null,null,null,null,null,null,{"$f":"ADDRESS(48,12,1,1,$V$1)","v":"'LT Variable Annuity Gte Risk'!$L$48"},8.7999999999999995E-2,{"$f":"IF(INDIRECT(V309)=W309,0,1)","v":0}]
[null,null,null,null,null,null,null,null,null,null,null,null,{"$f":"ADDRESS(111,4,1,1,$M$1)","v":"'Concentration Risk'!$D$111"},"=D109+D93+D85+D72+D59+D46+D33+D20",{"$f":"IF(_xlfn.FORMULATEXT(INDIRECT(M310))=N310,0,1)","v":0},null,null,null,null,null,null,{"$f":"ADDRESS(48,23,1,1,$V$1)","v":"'LT Variable Annuity Gte Risk'!$W$48"},"=IF(ISERROR(OR(E48*F48+H48*I48+K48*L48,N48*O48+Q48*R48+T48*U48)),0,MAX(E48*F48+H48*I48+K48*L48,N48*O48+Q48*R48+T48*U48))",{"$f":"IF(_xlfn.FORMULATEXT(INDIRECT(V310))=W310,0,1)","v":0}]
[null,null,null,null,null,null,null,null,null,null,null,null,{"$f":"ADDRESS(111,6,1,1,$M$1)","v":"'Concentration Risk'!$F$111"},"=F109+F93+F85+F72+F59+F46+F33+F20",{"$f":"IF(_xlfn.FORMULATEXT(INDIRECT(M311))=N311,0,1)","v":0},null,null,null,null,null,null,{"$f":"ADDRESS(48,25,1,1,$V$1)","v":"'LT Variable Annuity Gte Risk'!$Y$48"},"=+'Schedule VIII (EBS)'!F33",{"$f":"IF(_xlfn.FORMULATEXT(INDIRECT(V311))=W311,0,1)","v":0}]
[null,null,null,null,null,null,null,null,null,null,null,null,null,null,-312,null,null,null,null,null,null,{"$f":"ADDRESS(48,27,1,1,$V$1)","v":"'LT Variable Annuity Gte Risk'!$AA$48"},"=MAX(0,W48-Y48)",{"$f":"IF(_xlfn.FORMULATEXT(INDIRECT(V312))=W312,0,1)","v":0}]
[null,null,null,null,null,null,null,null,null,null,null,null,null,null,null,null,null,null,null,null,null,{"$f":"ADDRESS(49,5,1,1,$V$1)","v":"'LT Variable Annuity Gte Risk'!$E$49"},"=+'Schedule VIII (EBS)'!H41",{"$f":"IF(_xlfn.FORMULATEXT(INDIRECT(V313))=W313,0,1)","v":0}]
[null,null,null,null,null,null,null,null,null,null,null,null,null,null,null,null,null,null,null,null,null,{"$f":"ADDRESS(49,6,1,1,$V$1)","v":"'LT Variable Annuity Gte Risk'!$F$49"},2.4E-2,{"$f":"IF(INDIRECT(V314)=W314,0,1)","v":0}]
[null,null,null,null,null,null,null,null,null,null,null,null,null,null,null,null,null,null,null,null,null,{"$f":"ADDRESS(49,8,1,1,$V$1)","v":"'LT Variable Annuity Gte Risk'!$H$49"},"=+'Schedule VIII (EBS)'!J41",{"$f":"IF(_xlfn.FORMULATEXT(INDIRECT(V315))=W315,0,1)","v":0}]
[null,null,null,null,null,null,null,null,null,null,null,null,null,null,null,null,null,null,null,null,null,{"$f":"ADDRESS(49,9,1,1,$V$1)","v":"'LT Variable Annuity Gte Risk'!$I$49"},4.2999999999999997E-2,{"$f":"IF(INDIRECT(V316)=W316,0,1)","v":0}]
[null,null,null,null,null,null,null,null,null,null,null,null,null,null,null,null,null,null,null,null,null,{"$f":"ADDRESS(49,11,1,1,$V$1)","v":"'LT Variable Annuity Gte Risk'!$K$49"},"=+'Schedule VIII (EBS)'!L41",{"$f":"IF(_xlfn.FORMULATEXT(INDIRECT(V317))=W317,0,1)","v":0}]
[null,null,null,null,null,null,null,null,null,null,null,null,null,null,null,null,null,null,null,null,null,{"$f":"ADDRESS(49,12,1,1,$V$1)","v":"'LT Variable Annuity Gte Risk'!$L$49"},0.08,{"$f":"IF(INDIRECT(V318)=W318,0,1)","v":0}]
[null,null,null,null,null,null,null,null,null,null,null,null,null,null,null,null,null,null,null,null,null,{"$f":"ADDRESS(49,23,1,1,$V$1)","v":"'LT Variable Annuity Gte Risk'!$W$49"},"=IF(ISERROR(OR(E49*F49+H49*I49+K49*L49,N49*O49+Q49*R49+T49*U49)),0,MAX(E49*F49+H49*I49+K49*L49,N49*O49+Q49*R49+T49*U49))",{"$f":"IF(_xlfn.FORMULATEXT(INDIRECT(V319))=W319,0,1)","v":0}]
[null,null,null,null,null,null,null,null,null,null,null,null,null,null,null,null,null,null,null,null,null,{"$f":"ADDRESS(49,25,1,1,$V$1)","v":"'LT Variable Annuity Gte Risk'!$Y$49"},"=+'Schedule VIII (EBS)'!F34",{"$f":"IF(_xlfn.FORMULATEXT(INDIRECT(V320))=W320,0,1)","v":0}]
[null,null,null,null,null,null,null,null,null,null,null,null,null,null,null,null,null,null,null,null,null,{"$f":"ADDRESS(49,27,1,1,$V$1)","v":"'LT Variable Annuity Gte Risk'!$AA$49"},"=MAX(0,W49-Y49)",{"$f":"IF(_xlfn.FORMULATEXT(INDIRECT(V321))=W321,0,1)","v":0}]
[null,null,null,null,null,null,null,null,null,null,null,null,null,null,null,null,null,null,null,null,null,{"$f":"ADDRESS(50,5,1,1,$V$1)","v":"'LT Variable Annuity Gte Risk'!$E$50"},"=+'Schedule VIII (EBS)'!H42",{"$f":"IF(_xlfn.FORMULATEXT(INDIRECT(V322))=W322,0,1)","v":0}]
[null,null,null,null,null,null,null,null,null,null,null,null,null,null,null,null,null,null,null,null,null,{"$f":"ADDRESS(50,6,1,1,$V$1)","v":"'LT Variable Annuity Gte Risk'!$F$50"},0.02,{"$f":"IF(INDIRECT(V323)=W323,0,1)","v":0}]
[null,null,null,null,null,null,null,null,null,null,null,null,null,null,null,null,null,null,null,null,null,{"$f":"ADDRESS(50,8,1,1,$V$1)","v":"'LT Variable Annuity Gte Risk'!$H$50"},"=+'Schedule VIII (EBS)'!J42",{"$f":"IF(_xlfn.FORMULATEXT(INDIRECT(V324))=W324,0,1)","v":0}]
[null,null,null,null,null,null,null,null,null,null,null,null,null,null,null,null,null,null,null,null,null,{"$f":"ADDRESS(50,9,1,1,$V$1)","v":"'LT Variable Annuity Gte Risk'!$I$50"},3.5000000000000003E-2,{"$f":"IF(INDIRECT(V325)=W325,0,1)","v":0}]
[null,null,null,null,null,null,null,null,null,null,null,null,null,null,null,null,null,null,null,null,null,{"$f":"ADDRESS(50,11,1,1,$V$1)","v":"'LT Variable Annuity Gte Risk'!$K$50"},"=+'Schedule VIII (EBS)'!L42",{"$f":"IF(_xlfn.FORMULATEXT(INDIRECT(V326))=W326,0,1)","v":0}]
[null,null,null,null,null,null,null,null,null,null,null,null,null,null,null,null,null,null,null,null,null,{"$f":"ADDRESS(50,12,1,1,$V$1)","v":"'LT Variable Annuity Gte Risk'!$L$50"},6.8000000000000005E-2,{"$f":"IF(INDIRECT(V327)=W327,0,1)","v":0}]
[null,null,null,null,null,null,null,null,null,null,null,null,null,null,null,null,null,null,null,null,null,{"$f":"ADDRESS(50,23,1,1,$V$1)","v":"'LT Variable Annuity Gte Risk'!$W$50"},"=IF(ISERROR(OR(E50*F50+H50*I50+K50*L50,N50*O50+Q50*R50+T50*U50)),0,MAX(E50*F50+H50*I50+K50*L50,N50*O50+Q50*R50+T50*U50))",{"$f":"IF(_xlfn.FORMULATEXT(INDIRECT(V328))=W328,0,1)","v":0}]
[null,null,null,null,null,null,null,null,null,null,null,null,null,null,null,null,null,null,null,null,null,{"$f":"ADDRESS(50,25,1,1,$V$1)","v":"'LT Variable Annuity Gte Risk'!$Y$50"},"=+'Schedule VIII (EBS)'!F35",{"$f":"IF(_xlfn.FORMULATEXT(INDIRECT(V329))=W329,0,1)","v":0}]
[null,null,null,null,null,null,null,null,null,null,null,null,null,null,null,null,null,null,null,null,null,{"$f":"ADDRESS(50,27,1,1,$V$1)","v":"'LT Variable Annuity Gte Risk'!$AA$50"},"=MAX(0,W50-Y50)",{"$f":"IF(_xlfn.FORMULATEXT(INDIRECT(V330))=W330,0,1)","v":0}]
[null,null,null,null,null,null,null,null,null,null,null,null,null,null,null,null,null,null,null,null,null,{"$f":"ADDRESS(51,5,1,1,$V$1)","v":"'LT Variable Annuity Gte Risk'!$E$51"},"=+'Schedule VIII (EBS)'!H43",{"$f":"IF(_xlfn.FORMULATEXT(INDIRECT(V331))=W331,0,1)","v":0}]
[null,null,null,null,null,null,null,null,null,null,null,null,null,null,null,null,null,null,null,null,null,{"$f":"ADDRESS(51,6,1,1,$V$1)","v":"'LT Variable Annuity Gte Risk'!$F$51"},1.7000000000000001E-2,{"$f":"IF(INDIRECT(V332)=W332,0,1)","v":0}]
[null,null,null,null,null,null,null,null,null,null,null,null,null,null,null,null,null,null,null,null,null,{"$f":"ADDRESS(51,8,1,1,$V$1)","v":"'LT Variable Annuity Gte Risk'!$H$51"},"=+'Schedule VIII (EBS)'!J43",{"$f":"IF(_xlfn.FORMULATEXT(INDIRECT(V333))=W333,0,1)","v":0}]
[null,null,null,null,null,null,null,null,null,null,null,null,null,null,null,null,null,null,null,null,null,{"$f":"ADDRESS(51,9,1,1,$V$1)","v":"'LT Variable Annuity Gte Risk'!$I$51"},2.8000000000000001E-2,{"$f":"IF(INDIRECT(V334)=W334,0,1)","v":0}]
[null,null,null,null,null,null,null,null,null,null,null,null,null,null,null,null,null,null,null,null,null,{"$f":"ADDRESS(51,11,1,1,$V$1)","v":"'LT Variable Annuity Gte Risk'!$K$51"},"=+'Schedule VIII (EBS)'!L43",{"$f":"IF(_xlfn.FORMULATEXT(INDIRECT(V335))=W335,0,1)","v":0}]
[null,null,null,null,null,null,null,null,null,null,null,null,null,null,null,null,null,null,null,null,null,{"$f":"ADDRESS(51,12,1,1,$V$1)","v":"'LT Variable Annuity Gte Risk'!$L$51"},5.8999999999999997E-2,{"$f":"IF(INDIRECT(V336)=W336,0,1)","v":0}]
[null,null,null,null,null,null,null,null,null,null,null,null,null,null,null,null,null,null,null,null,null,{"$f":"ADDRESS(51,23,1,1,$V$1)","v":"'LT Variable Annuity Gte Risk'!$W$51"},"=IF(ISERROR(OR(E51*F51+H51*I51+K51*L51,N51*O51+Q51*R51+T51*U51)),0,MAX(E51*F51+H51*I51+K51*L51,N51*O51+Q51*R51+T51*U51))",{"$f":"IF(_xlfn.FORMULATEXT(INDIRECT(V337))=W337,0,1)","v":0}]
[null,null,null,null,null,null,null,null,null,null,null,null,null,null,null,null,null,null,null,null,null,{"$f":"ADDRESS(51,25,1,1,$V$1)","v":"'LT Variable Annuity Gte Risk'!$Y$51"},"=+'Schedule VIII (EBS)'!F36",{"$f":"IF(_xlfn.FORMULATEXT(INDIRECT(V338))=W338,0,1)","v":0}]
[null,null,null,null,null,null,null,null,null,null,null,null,null,null,null,null,null,null,null,null,null,{"$f":"ADDRESS(51,27,1,1,$V$1)","v":"'LT Variable Annuity Gte Risk'!$AA$51"},"=MAX(0,W51-Y51)",{"$f":"IF(_xlfn.FORMULATEXT(INDIRECT(V339))=W339,0,1)","v":0}]
[null,null,null,null,null,null,null,null,null,null,null,null,null,null,null,null,null,null,null,null,null,{"$f":"ADDRESS(52,5,1,1,$V$1)","v":"'LT Variable Annuity Gte Risk'!$E$52"},"=+'Schedule VIII (EBS)'!H44",{"$f":"IF(_xlfn.FORMULATEXT(INDIRECT(V340))=W340,0,1)","v":0}]
[null,null,null,null,null,null,null,null,null,null,null,null,null,null,null,null,null,null,null,null,null,{"$f":"ADDRESS(52,6,1,1,$V$1)","v":"'LT Variable Annuity Gte Risk'!$F$52"},1.4E-2,{"$f":"IF(INDIRECT(V341)=W341,0,1)","v":0}]
[null,null,null,null,null,null,null,null,null,null,null,null,null,null,null,null,null,null,null,null,null,{"$f":"ADDRESS(52,8,1,1,$V$1)","v":"'LT Variable Annuity Gte Risk'!$H$52"},"=+'Schedule VIII (EBS)'!J44",{"$f":"IF(_xlfn.FORMULATEXT(INDIRECT(V342))=W342,0,1)","v":0}]
[null,null,null,null,null,null,null,null,null,null,null,null,null,null,null,null,null,null,null,null,null,{"$f":"ADDRESS(52,9,1,1,$V$1)","v":"'LT Variable Annuity Gte Risk'!$I$52"},2.1000000000000001E-2,{"$f":"IF(INDIRECT(V343)=W343,0,1)","v":0}]
[null,null,null,null,null,null,null,null,null,null,null,null,null,null,null,null,null,null,null,null,null,{"$f":"ADDRESS(52,11,1,1,$V$1)","v":"'LT Variable Annuity Gte Risk'!$K$52"},"=+'Schedule VIII (EBS)'!L44",{"$f":"IF(_xlfn.FORMULATEXT(INDIRECT(V344))=W344,0,1)","v":0}]
[null,null,null,null,null,null,null,null,null,null,null,null,null,null,null,null,null,null,null,null,null,{"$f":"ADDRESS(52,12,1,1,$V$1)","v":"'LT Variable Annuity Gte Risk'!$L$52"},4.9000000000000002E-2,{"$f":"IF(INDIRECT(V345)=W345,0,1)","v":0}]
[null,null,null,null,null,null,null,null,null,null,null,null,null,null,null,null,null,null,null,null,null,{"$f":"ADDRESS(52,23,1,1,$V$1)","v":"'LT Variable Annuity Gte Risk'!$W$52"},"=IF(ISERROR(OR(E52*F52+H52*I52+K52*L52,N52*O52+Q52*R52+T52*U52)),0,MAX(E52*F52+H52*I52+K52*L52,N52*O52+Q52*R52+T52*U52))",{"$f":"IF(_xlfn.FORMULATEXT(INDIRECT(V346))=W346,0,1)","v":0}]
[null,null,null,null,null,null,null,null,null,null,null,null,null,null,null,null,null,null,null,null,null,{"$f":"ADDRESS(52,25,1,1,$V$1)","v":"'LT Variable Annuity Gte Risk'!$Y$52"},"=+'Schedule VIII (EBS)'!F37",{"$f":"IF(_xlfn.FORMULATEXT(INDIRECT(V347))=W347,0,1)","v":0}]
[null,null,null,null,null,null,null,null,null,null,null,null,null,null,null,null,null,null,null,null,null,{"$f":"ADDRESS(52,27,1,1,$V$1)","v":"'LT Variable Annuity Gte Risk'!$AA$52"},"=MAX(0,W52-Y52)",{"$f":"IF(_xlfn.FORMULATEXT(INDIRECT(V348))=W348,0,1)","v":0}]
[null,null,null,null,null,null,null,null,null,null,null,null,null,null,null,null,null,null,null,null,null,{"$f":"ADDRESS(53,5,1,1,$V$1)","v":"'LT Variable Annuity Gte Risk'!$E$53"},"=+'Schedule VIII (EBS)'!H45",{"$f":"IF(_xlfn.FORMULATEXT(INDIRECT(V349))=W349,0,1)","v":0}]
[null,null,null,null,null,null,null,null,null,null,null,null,null,null,null,null,null,null,null,null,null,{"$f":"ADDRESS(53,6,1,1,$V$1)","v":"'LT Variable Annuity Gte Risk'!$F$53"},1.0999999999999999E-2,{"$f":"IF(INDIRECT(V350)=W350,0,1)","v":0}]
[null,null,null,null,null,null,null,null,null,null,null,null,null,null,null,null,null,null,null,null,null,{"$f":"ADDRESS(53,8,1,1,$V$1)","v":"'LT Variable Annuity Gte Risk'!$H$53"},"=+'Schedule VIII (EBS)'!J45",{"$f":"IF(_xlfn.FORMULATEXT(INDIRECT(V351))=W351,0,1)","v":0}]
[null,null,null,null,null,null,null,null,null,null,null,null,null,null,null,null,null,null,null,null,null,{"$f":"ADDRESS(53,9,1,1,$V$1)","v":"'LT Variable Annuity Gte Risk'!$I$53"},1.7000000000000001E-2,{"$f":"IF(INDIRECT(V352)=W352,0,1)","v":0}]
[null,null,null,null,null,null,null,null,null,null,null,null,null,null,null,null,null,null,null,null,null,{"$f":"ADDRESS(53,11,1,1,$V$1)","v":"'LT Variable Annuity Gte Risk'!$K$53"},"=+'Schedule VIII (EBS)'!L45",{"$f":"IF(_xlfn.FORMULATEXT(INDIRECT(V353))=W353,0,1)","v":0}]
[null,null,null,null,null,null,null,null,null,null,null,null,null,null,null,null,null,null,null,null,null,{"$f":"ADDRESS(53,12,1,1,$V$1)","v":"'LT Variable Annuity Gte Risk'!$L$53"},4.2999999999999997E-2,{"$f":"IF(INDIRECT(V354)=W354,0,1)","v":0}]
[null,null,null,null,null,null,null,null,null,null,null,null,null,null,null,null,null,null,null,null,null,{"$f":"ADDRESS(53,23,1,1,$V$1)","v":"'LT Variable Annuity Gte Risk'!$W$53"},"=IF(ISERROR(OR(E53*F53+H53*I53+K53*L53,N53*O53+Q53*R53+T53*U53)),0,MAX(E53*F53+H53*I53+K53*L53,N53*O53+Q53*R53+T53*U53))",{"$f":"IF(_xlfn.FORMULATEXT(INDIRECT(V355))=W355,0,1)","v":0}]
[null,null,null,null,null,null,null,null,null,null,null,null,null,null,null,null,null,null,null,null,null,{"$f":"ADDRESS(53,25,1,1,$V$1)","v":"'LT Variable Annuity Gte Risk'!$Y$53"},"=+'Schedule VIII (EBS)'!F38",{"$f":"IF(_xlfn.FORMULATEXT(INDIRECT(V356))=W356,0,1)","v":0}]
[null,null,null,null,null,null,null,null,null,null,null,null,null,null,null,null,null,null,null,null,null,{"$f":"ADDRESS(53,27,1,1,$V$1)","v":"'LT Variable Annuity Gte Risk'!$AA$53"},"=MAX(0,W53-Y53)",{"$f":"IF(_xlfn.FORMULATEXT(INDIRECT(V357))=W357,0,1)","v":0}]
[null,null,null,null,null,null,null,null,null,null,null,null,null,null,null,null,null,null,null,null,null,{"$f":"ADDRESS(54,5,1,1,$V$1)","v":"'LT Variable Annuity Gte Risk'!$E$54"},"=+'Schedule VIII (EBS)'!H46",{"$f":"IF(_xlfn.FORMULATEXT(INDIRECT(V358))=W358,0,1)","v":0}]
[null,null,null,null,null,null,null,null,null,null,null,null,null,null,null,null,null,null,null,null,null,{"$f":"ADDRESS(54,6,1,1,$V$1)","v":"'LT Variable Annuity Gte Risk'!$F$54"},0.01,{"$f":"IF(INDIRECT(V359)=W359,0,1)","v":0}]
[null,null,null,null,null,null,null,null,null,null,null,null,null,null,null,null,null,null,null,null,null,{"$f":"ADDRESS(54,8,1,1,$V$1)","v":"'LT Variable Annuity Gte Risk'!$H$54"},"=+'Schedule VIII (EBS)'!J46",{"$f":"IF(_xlfn.FORMULATEXT(INDIRECT(V360))=W360,0,1)","v":0}]
[null,null,null,null,null,null,null,null,null,null,null,null,null,null,null,null,null,null,null,null,null,{"$f":"ADDRESS(54,9,1,1,$V$1)","v":"'LT Variable Annuity Gte Risk'!$I$54"},1.4E-2,{"$f":"IF(INDIRECT(V361)=W361,0,1)","v":0}]
[null,null,null,null,null,null,null,null,null,null,null,null,null,null,null,null,null,null,null,null,null,{"$f":"ADDRESS(54,11,1,1,$V$1)","v":"'LT Variable Annuity Gte Risk'!$K$54"},"=+'Schedule VIII (EBS)'!L46",{"$f":"IF(_xlfn.FORMULATEXT(INDIRECT(V362))=W362,0,1)","v":0}]
[null,null,null,null,null,null,null,null,null,null,null,null,null,null,null,null,null,null,null,null,null,{"$f":"ADDRESS(54,12,1,1,$V$1)","v":"'LT Variable Annuity Gte Risk'!$L$54"},3.9E-2,{"$f":"IF(INDIRECT(V363)=W363,0,1)","v":0}]
[null,null,null,null,null,null,null,null,null,null,null,null,null,null,null,null,null,null,null,null,null,{"$f":"ADDRESS(54,23,1,1,$V$1)","v":"'LT Variable Annuity Gte Risk'!$W$54"},"=IF(ISERROR(OR(E54*F54+H54*I54+K54*L54,N54*O54+Q54*R54+T54*U54)),0,MAX(E54*F54+H54*I54+K54*L54,N54*O54+Q54*R54+T54*U54))",{"$f":"IF(_xlfn.FORMULATEXT(INDIRECT(V364))=W364,0,1)","v":0}]
[null,null,null,null,null,null,null,null,null,null,null,null,null,null,null,null,null,null,null,null,null,{"$f":"ADDRESS(54,25,1,1,$V$1)","v":"'LT Variable Annuity Gte Risk'!$Y$54"},"=+'Schedule VIII (EBS)'!F39",0]
[null,null,null,null,null,null,null,null,null,null,null,null,null,null,null,null,null,null,null,null,null,{"$f":"ADDRESS(54,27,1,1,$V$1)","v":"'LT Variable Annuity Gte Risk'!$AA$54"},"=MAX(0,W54-Y54)",0]
[null,null,null,null,null,null,null,null,null,null,null,null,null,null,null,null,null,null,null,null,null,{"$f":"ADDRESS(57,22,1,1,$V$1)","v":"'LT Variable Annuity Gte Risk'!$V$57"},"=+'Schedule VIII (EBS)'!L50",0]
[null,null,null,null,null,null,null,null,null,null,null,null,null,null,null,null,null,null,null,null,null,{"$f":"ADDRESS(57,23,1,1,$V$1)","v":"'LT Variable Annuity Gte Risk'!$W$57"},"=IF(V57=0,0,(W14+W15+W18+W19)*(-V57))",0]
[null,null,null,null,null,null,null,null,null,null,null,null,null,null,null,null,null,null,null,null,null,{"$f":"ADDRESS(58,23,1,1,$V$1)","v":"'LT Variable Annuity Gte Risk'!$W$58"},"=-'Schedule VII (EBS)'!F47",0]
[null,null,null,null,null,null,null,null,null,null,null,null,null,null,null,null,null,null,null,null,null,{"$f":"ADDRESS(60,23,1,1,$V$1)","v":"'LT Variable Annuity Gte Risk'!$W$60"},"=MAX(0,SUM(W14:W58))",0]
[null,null,null,null,null,null,null,null,null,null,null,null,null,null,null,null,null,null,null,null,null,{"$f":"ADDRESS(60,25,1,1,$V$1)","v":"'LT Variable Annuity Gte Risk'!$Y$60"},"=MAX(0,SUM(Y14:Y58))",0]
[null,null,null,null,null,null,null,null,null,null,null,null,null,null,null,null,null,null,null,null,null,{"$f":"ADDRESS(60,27,1,1,$V$1)","v":"'LT Variable Annuity Gte Risk'!$AA$60"},"=MAX(0,SUM(AA14:AA58))",0]
[null,null,null,null,null,null,null,null,null,null,null,null,null,null,null,null,null,null,null,null,null,null,null,-373]